{"text_format":"1","workbook":"xlsx","n_sheets":12,"sheets":["Start","1. Baseline Demand Projection","2. Conservation Measures","3. Conservation Plan","4. Plan Demand Projection","Single-Year Savings Calculator","Plumbing Fixture Inventory","Pre-Defined Measures","Passive Savings","TWDB Data","Lists & Settings","Scenarios"],"not_rendered":{"charts":5,"images":1,"macros":1,"external_links":0,"defined_names":89,"comments":6,"pivot_tables":0},"unopened":[],"bounds":{"document_bytes":16777216,"sheet_cells":100000,"rows_first":2000,"rows_last":500,"rows_between":2000,"halvings":0,"cell_chars":16384,"cell_head_chars":4096},"cells_cut":0,"cells_raw":0,"read":"whole","date_system":"1900"}

{"sheet":"Start","index":0,"n_rows":0,"n_cols":0,"rows_kept":0,"cut":false,"hidden":false,"merged":[]}

{"sheet":"1. Baseline Demand Projection","index":1,"n_rows":48,"n_cols":20,"rows_kept":48,"cut":false,"hidden":false,"merged":[[12,3,12,5],[12,14,12,16]]}
[null,"Baseline Demand Projection"]
[]
[]
[]
[]
[]
[]
[]
[]
[]
[]
[null,null,null,null,null,null,null,null,null,null,null,null,"Select Projection to Use"]
[null,"Utility",null,null,null,null,null,null,null,null,null,null,{"$f":"IF(utility=\"UNLISTED\", \"Unlisted Utility Name\",\"\")","v":""}]
[null,"Planning Region",null,{"$f":"IFERROR(INDEX(tbl_twdbdata[region],MATCH(utility,tbl_twdbdata[utility],0)),\"\")","v":""}]
[null,null,null,"TWDB Pre-Populated Projection",null,null,null,null,null,null,null,null,"User Entered Projection"]
[null,null,null,"Tables below will be blank if TWDB does not have data for your utility.",null,null,null,null,null,null,null,null,"If you are using your own Baseline Demand Projection, enter values for the yellow-shaded cells in the"]
[null,null,null,null,null,null,null,null,null,null,null,null,"tables below in the units specified."]
[null,null,null,null,null,null,null,null,null,null,"Avg Annual",null,null,null,null,null,null,null,null,"Avg Annual"]
[null,"Projections",null,"Reported","Projected",null,null,null,null,null,"Growth %",null,"Base","Projected",null,null,null,null,null,"Growth %"]
[null,null,null,2016,2020,2030,2040,2050,2060,2070,"2020-70",null,"Period",2020,2030,2040,2050,2060,2070,"2020-70"]
[]
[null,"Population"]
[null,"Retail Service Area",null,{"$f":"IFERROR(INDEX(tbl_twdbdata[pop],MATCH(utility&D$20,tbl_twdbdata[utility_yr],0)),0)","v":0},{"$f":"IFERROR(INDEX(tbl_twdbdata[pop],MATCH(utility&E$20,tbl_twdbdata[utility_yr],0)),0)","v":0},{"$f":"IFERROR(INDEX(tbl_twdbdata[pop],MATCH(utility&F$20,tbl_twdbdata[utility_yr],0)),0)","v":0},{"$f":"IFERROR(INDEX(tbl_twdbdata[pop],MATCH(utility&G$20,tbl_twdbdata[utility_yr],0)),0)","v":0},{"$f":"IFERROR(INDEX(tbl_twdbdata[pop],MATCH(utility&H$20,tbl_twdbdata[utility_yr],0)),0)","v":0},{"$f":"IFERROR(INDEX(tbl_twdbdata[pop],MATCH(utility&I$20,tbl_twdbdata[utility_yr],0)),0)","v":0},{"$f":"IFERROR(INDEX(tbl_twdbdata[pop],MATCH(utility&J$20,tbl_twdbdata[utility_yr],0)),0)","v":0},{"$f":"IF(E23>0,(J23/E23)^(1/(J$20-E$20))-1,0)","v":0},null,null,null,null,null,null,null,null,{"$f":"IF(N23>0,(S23/N23)^(1/(S$20-N$20))-1,0)","v":0}]
[]
[null,"Connections"]
[null,"Single Family",null,{"$f":"IFERROR(INDEX(tbl_twdbdata[sfconn],MATCH(utility&D$20,tbl_twdbdata[utility_yr],0)),0)","v":0},{"$f":"IFERROR(INDEX(tbl_twdbdata[sfconn],MATCH(utility&E$20,tbl_twdbdata[utility_yr],0)),0)","v":0},{"$f":"IFERROR(INDEX(tbl_twdbdata[sfconn],MATCH(utility&F$20,tbl_twdbdata[utility_yr],0)),0)","v":0},{"$f":"IFERROR(INDEX(tbl_twdbdata[sfconn],MATCH(utility&G$20,tbl_twdbdata[utility_yr],0)),0)","v":0},{"$f":"IFERROR(INDEX(tbl_twdbdata[sfconn],MATCH(utility&H$20,tbl_twdbdata[utility_yr],0)),0)","v":0},{"$f":"IFERROR(INDEX(tbl_twdbdata[sfconn],MATCH(utility&I$20,tbl_twdbdata[utility_yr],0)),0)","v":0},{"$f":"IFERROR(INDEX(tbl_twdbdata[sfconn],MATCH(utility&J$20,tbl_twdbdata[utility_yr],0)),0)","v":0},{"$f":"IF(E26>0,(J26/E26)^(1/(J$20-E$20))-1,0)","v":0},null,null,null,null,null,null,null,null,{"$f":"IF(N26>0,(S26/N26)^(1/(S$20-N$20))-1,0)","v":0}]
[null,"Multi Family",null,{"$f":"IFERROR(INDEX(tbl_twdbdata[mfconn],MATCH(utility&D$20,tbl_twdbdata[utility_yr],0)),0)","v":0},{"$f":"IFERROR(INDEX(tbl_twdbdata[mfconn],MATCH(utility&E$20,tbl_twdbdata[utility_yr],0)),0)","v":0},{"$f":"IFERROR(INDEX(tbl_twdbdata[mfconn],MATCH(utility&F$20,tbl_twdbdata[utility_yr],0)),0)","v":0},{"$f":"IFERROR(INDEX(tbl_twdbdata[mfconn],MATCH(utility&G$20,tbl_twdbdata[utility_yr],0)),0)","v":0},{"$f":"IFERROR(INDEX(tbl_twdbdata[mfconn],MATCH(utility&H$20,tbl_twdbdata[utility_yr],0)),0)","v":0},{"$f":"IFERROR(INDEX(tbl_twdbdata[mfconn],MATCH(utility&I$20,tbl_twdbdata[utility_yr],0)),0)","v":0},{"$f":"IFERROR(INDEX(tbl_twdbdata[mfconn],MATCH(utility&J$20,tbl_twdbdata[utility_yr],0)),0)","v":0},{"$f":"IF(E27>0,(J27/E27)^(1/(J$20-E$20))-1,0)","v":0},null,null,null,null,null,null,null,null,{"$f":"IF(N27>0,(S27/N27)^(1/(S$20-N$20))-1,0)","v":0}]
[null,"ICI",null,{"$f":"IFERROR(INDEX(tbl_twdbdata[iciconn],MATCH(utility&D$20,tbl_twdbdata[utility_yr],0)),0)","v":0},{"$f":"IFERROR(INDEX(tbl_twdbdata[iciconn],MATCH(utility&E$20,tbl_twdbdata[utility_yr],0)),0)","v":0},{"$f":"IFERROR(INDEX(tbl_twdbdata[iciconn],MATCH(utility&F$20,tbl_twdbdata[utility_yr],0)),0)","v":0},{"$f":"IFERROR(INDEX(tbl_twdbdata[iciconn],MATCH(utility&G$20,tbl_twdbdata[utility_yr],0)),0)","v":0},{"$f":"IFERROR(INDEX(tbl_twdbdata[iciconn],MATCH(utility&H$20,tbl_twdbdata[utility_yr],0)),0)","v":0},{"$f":"IFERROR(INDEX(tbl_twdbdata[iciconn],MATCH(utility&I$20,tbl_twdbdata[utility_yr],0)),0)","v":0},{"$f":"IFERROR(INDEX(tbl_twdbdata[iciconn],MATCH(utility&J$20,tbl_twdbdata[utility_yr],0)),0)","v":0},{"$f":"IF(E28>0,(J28/E28)^(1/(J$20-E$20))-1,0)","v":0},null,null,null,null,null,null,null,null,{"$f":"IF(N28>0,(S28/N28)^(1/(S$20-N$20))-1,0)","v":0}]
[null,"Total",null,{"$f":"SUM(D26:D28)","v":0},0,0,0,0,0,0,{"$f":"IF(E29>0,(J29/E29)^(1/(J$20-E$20))-1,0)","v":0},null,{"$f":"SUM(M26:M28)","v":0},0,0,0,0,0,0,{"$f":"IF(N29>0,(S29/N29)^(1/(S$20-N$20))-1,0)","v":0}]
[null,"ICI = Industrial, Commercial, and Institutional"]
[]
[null,"Baseline Demand",null,"(in kGal)",null,null,null,null,null,null,null,null,{"$f":"D32","v":"(in kGal)"}]
[null,"Single Family",null,{"$f":"IFERROR((INDEX(tbl_twdbdata[sfvol],MATCH(utility&D$20,tbl_twdbdata[utility_yr],0))-INDEX(tbl_passive[sfvol],MATCH(D$20,tbl_passive[Year],0)))/10^3,0)","v":0},{"$f":"IFERROR((INDEX(tbl_twdbdata[sfvol],MATCH(utility&E$20,tbl_twdbdata[utility_yr],0))-INDEX(tbl_passive[sfvol],MATCH(E$20,tbl_passive[Year],0)))/10^3,0)","v":0},{"$f":"IFERROR((INDEX(tbl_twdbdata[sfvol],MATCH(utility&F$20,tbl_twdbdata[utility_yr],0))-INDEX(tbl_passive[sfvol],MATCH(F$20,tbl_passive[Year],0)))/10^3,0)","v":0},{"$f":"IFERROR((INDEX(tbl_twdbdata[sfvol],MATCH(utility&G$20,tbl_twdbdata[utility_yr],0))-INDEX(tbl_passive[sfvol],MATCH(G$20,tbl_passive[Year],0)))/10^3,0)","v":0},{"$f":"IFERROR((INDEX(tbl_twdbdata[sfvol],MATCH(utility&H$20,tbl_twdbdata[utility_yr],0))-INDEX(tbl_passive[sfvol],MATCH(H$20,tbl_passive[Year],0)))/10^3,0)","v":0},{"$f":"IFERROR((INDEX(tbl_twdbdata[sfvol],MATCH(utility&I$20,tbl_twdbdata[utility_yr],0))-INDEX(tbl_passive[sfvol],MATCH(I$20,tbl_passive[Year],0)))/10^3,0)","v":0},{"$f":"IFERROR((INDEX(tbl_twdbdata[sfvol],MATCH(utility&J$20,tbl_twdbdata[utility_yr],0))-INDEX(tbl_passive[sfvol],MATCH(J$20,tbl_passive[Year],0)))/10^3,0)","v":0},{"$f":"IF(E33>0,(J33/E33)^(1/(J$20-E$20))-1,0)","v":0},null,null,null,null,null,null,null,null,{"$f":"IF(N33>0,(S33/N33)^(1/(S$20-N$20))-1,0)","v":0}]
[null,"Multi Family",null,{"$f":"IFERROR((INDEX(tbl_twdbdata[mfvol],MATCH(utility&D$20,tbl_twdbdata[utility_yr],0))-INDEX(tbl_passive[mfvol],MATCH(D$20,tbl_passive[Year],0)))/10^3,0)","v":0},{"$f":"IFERROR((INDEX(tbl_twdbdata[mfvol],MATCH(utility&E$20,tbl_twdbdata[utility_yr],0))-INDEX(tbl_passive[mfvol],MATCH(E$20,tbl_passive[Year],0)))/10^3,0)","v":0},{"$f":"IFERROR((INDEX(tbl_twdbdata[mfvol],MATCH(utility&F$20,tbl_twdbdata[utility_yr],0))-INDEX(tbl_passive[mfvol],MATCH(F$20,tbl_passive[Year],0)))/10^3,0)","v":0},{"$f":"IFERROR((INDEX(tbl_twdbdata[mfvol],MATCH(utility&G$20,tbl_twdbdata[utility_yr],0))-INDEX(tbl_passive[mfvol],MATCH(G$20,tbl_passive[Year],0)))/10^3,0)","v":0},{"$f":"IFERROR((INDEX(tbl_twdbdata[mfvol],MATCH(utility&H$20,tbl_twdbdata[utility_yr],0))-INDEX(tbl_passive[mfvol],MATCH(H$20,tbl_passive[Year],0)))/10^3,0)","v":0},{"$f":"IFERROR((INDEX(tbl_twdbdata[mfvol],MATCH(utility&I$20,tbl_twdbdata[utility_yr],0))-INDEX(tbl_passive[mfvol],MATCH(I$20,tbl_passive[Year],0)))/10^3,0)","v":0},{"$f":"IFERROR((INDEX(tbl_twdbdata[mfvol],MATCH(utility&J$20,tbl_twdbdata[utility_yr],0))-INDEX(tbl_passive[mfvol],MATCH(J$20,tbl_passive[Year],0)))/10^3,0)","v":0},0,null,null,null,null,null,null,null,null,{"$f":"IF(N34>0,(S34/N34)^(1/(S$20-N$20))-1,0)","v":0}]
[null,"ICI",null,{"$f":"IFERROR((INDEX(tbl_twdbdata[icivol],MATCH(utility&D$20,tbl_twdbdata[utility_yr],0))-INDEX(tbl_passive[icivol],MATCH(D$20,tbl_passive[Year],0)))/10^3,0)","v":0},{"$f":"IFERROR((INDEX(tbl_twdbdata[icivol],MATCH(utility&E$20,tbl_twdbdata[utility_yr],0))-INDEX(tbl_passive[icivol],MATCH(E$20,tbl_passive[Year],0)))/10^3,0)","v":0},{"$f":"IFERROR((INDEX(tbl_twdbdata[icivol],MATCH(utility&F$20,tbl_twdbdata[utility_yr],0))-INDEX(tbl_passive[icivol],MATCH(F$20,tbl_passive[Year],0)))/10^3,0)","v":0},{"$f":"IFERROR((INDEX(tbl_twdbdata[icivol],MATCH(utility&G$20,tbl_twdbdata[utility_yr],0))-INDEX(tbl_passive[icivol],MATCH(G$20,tbl_passive[Year],0)))/10^3,0)","v":0},{"$f":"IFERROR((INDEX(tbl_twdbdata[icivol],MATCH(utility&H$20,tbl_twdbdata[utility_yr],0))-INDEX(tbl_passive[icivol],MATCH(H$20,tbl_passive[Year],0)))/10^3,0)","v":0},{"$f":"IFERROR((INDEX(tbl_twdbdata[icivol],MATCH(utility&I$20,tbl_twdbdata[utility_yr],0))-INDEX(tbl_passive[icivol],MATCH(I$20,tbl_passive[Year],0)))/10^3,0)","v":0},{"$f":"IFERROR((INDEX(tbl_twdbdata[icivol],MATCH(utility&J$20,tbl_twdbdata[utility_yr],0))-INDEX(tbl_passive[icivol],MATCH(J$20,tbl_passive[Year],0)))/10^3,0)","v":0},0,null,null,null,null,null,null,null,null,{"$f":"IF(N35>0,(S35/N35)^(1/(S$20-N$20))-1,0)","v":0}]
[null,"Sales Subtotal",null,{"$f":"SUM(D33:D35)","v":0},{"$f":"SUM(E33:E35)","v":0},{"$f":"SUM(F33:F35)","v":0},{"$f":"SUM(G33:G35)","v":0},{"$f":"SUM(H33:H35)","v":0},{"$f":"SUM(I33:I35)","v":0},{"$f":"SUM(J33:J35)","v":0},0,null,{"$f":"SUM(M33:M35)","v":0},{"$f":"SUM(N33:N35)","v":0},{"$f":"SUM(O33:O35)","v":0},{"$f":"SUM(P33:P35)","v":0},{"$f":"SUM(Q33:Q35)","v":0},{"$f":"SUM(R33:R35)","v":0},{"$f":"SUM(S33:S35)","v":0},{"$f":"IF(N36>0,(S36/N36)^(1/(S$20-N$20))-1,0)","v":0}]
[null,"Other Uses",null,{"$f":"IFERROR(INDEX(tbl_twdbdata[othvol],MATCH(utility&D$20,tbl_twdbdata[utility_yr],0))/10^3,0)","v":0},{"$f":"IFERROR(INDEX(tbl_twdbdata[othvol],MATCH(utility&E$20,tbl_twdbdata[utility_yr],0))/10^3,0)","v":0},{"$f":"IFERROR(INDEX(tbl_twdbdata[othvol],MATCH(utility&F$20,tbl_twdbdata[utility_yr],0))/10^3,0)","v":0},{"$f":"IFERROR(INDEX(tbl_twdbdata[othvol],MATCH(utility&G$20,tbl_twdbdata[utility_yr],0))/10^3,0)","v":0},{"$f":"IFERROR(INDEX(tbl_twdbdata[othvol],MATCH(utility&H$20,tbl_twdbdata[utility_yr],0))/10^3,0)","v":0},{"$f":"IFERROR(INDEX(tbl_twdbdata[othvol],MATCH(utility&I$20,tbl_twdbdata[utility_yr],0))/10^3,0)","v":0},{"$f":"IFERROR(INDEX(tbl_twdbdata[othvol],MATCH(utility&J$20,tbl_twdbdata[utility_yr],0))/10^3,0)","v":0},0,null,null,null,null,null,null,null,null,0]
[null,"Water Loss",null,{"$f":"IFERROR(IF(ISBLANK(INDEX(tbl_twdbdata[lossvol],MATCH(utility&D$20,tbl_twdbdata[utility_yr],0))),SUM(D36:D37)*0.1/0.9,INDEX(tbl_twdbdata[lossvol],MATCH(utility&D$20,tbl_twdbdata[utility_yr],0))/10^3),0)","v":0},{"$f":"SUM(E36:E37)*($D$47/100)/(1-($D$47/100))","v":0},{"$f":"SUM(F36:F37)*($D$47/100)/(1-($D$47/100))","v":0},0,0,0,0,0,null,null,null,null,null,null,null,null,0]
[null,"Production Total",null,{"$f":"SUM(D36:D38)","v":0},0,0,0,0,0,0,0,null,{"$f":"SUM(M36:M38)","v":0},0,0,0,0,0,0,0]
[]
[null,"Baseline GPCD"]
[null,"Total",null,{"$f":"IFERROR(D39/D23/0.365,0)","v":0},{"$f":"IFERROR(E39/E23/0.365,0)","v":0},0,0,0,0,0,{"$f":"IF(E42>0,(J42/E42)^(1/(J$20-E$20))-1,0)","v":0},null,{"$f":"IF(M23>0,M39/M23/0.365,0)","v":0},0,0,0,0,0,0,{"$f":"IF(N42>0,(S42/N42)^(1/(S$20-N$20))-1,0)","v":0}]
[null,"Residential",null,{"$f":"IFERROR(SUM(D33:D34)/D23/0.365,0)","v":0},{"$f":"IFERROR(SUM(E33:E34)/E23/0.365,0)","v":0},0,0,0,0,0,{"$f":"IF(E43>0,(J43/E43)^(1/(J$20-E$20))-1,0)","v":0},null,{"$f":"IF(M23>0,SUM(M33:M34)/M23/0.365,0)","v":0},{"$f":"IF(N23>0,SUM(N33:N34)/N23/0.365,0)","v":0},0,0,0,0,0,{"$f":"IF(N43>0,(S43/N43)^(1/(S$20-N$20))-1,0)","v":0}]
[null,"Water Loss",null,{"$f":"IFERROR(D38/D23/0.365,0)","v":0},{"$f":"IFERROR(E38/E23/0.365,0)","v":0},0,0,0,0,0,0,null,{"$f":"IF(M23>0,M38/M23/0.365,0)","v":0},{"$f":"IF(N23>0,N38/N23/0.365,0)","v":0},0,0,0,0,0,0]
[null,"GPCD = gallons per capita-day"]
[]
[null,"Water Loss %",null,{"$f":"IFERROR(100*D44/D42,0)","v":0},{"$f":"IFERROR(100*E44/E42,0)","v":0},0,0,0,0,0,{"$f":"IF(E47>0,(J47/E47)^(1/(J$20-E$20))-1,0)","v":0},null,{"$f":"IFERROR(100*M44/M42,0)","v":0},0,0,0,0,0,0,{"$f":"IF(N47>0,(S47/N47)^(1/(S$20-N$20))-1,0)","v":0}]
[null,null,null,{"$f":"IF(ISBLANK(INDEX(tbl_twdbdata[lossvol],MATCH(utility&D$20,tbl_twdbdata[utility_yr],0))),\"WATER LOSS DATA MISSING. DEFAULT LOSS OF 10% ASSUMED\",\"\")","v":""}]

{"sheet":"2. Conservation Measures","index":2,"n_rows":169,"n_cols":355,"rows_kept":169,"cut":false,"hidden":false,"merged":[]}
[null,"Specify the Plan's Conservation Measures"]
[]
[]
[]
[]
[]
[]
[]
[]
[]
[]
[]
[]
[]
[null,"Utility:",{"$f":"IF(utility<>\"UNLISTED\",utility,unlisted_utility_name)","v":0},null,null,"Average Annual Level of Activity",null,null,null,null,null,null,null,null,"Cost Parameters",null,null,null,"Water Savings Parameters",null,null,null,null,null,null,"Measure",null,null,"Average Annual Cost",null,null,null,null,null,null,null,null,null,null,null,null,null,null,null,null,null,null,null,null,null,null,null,null,null,null,null,null,null,null,null,null,null,null,null,null,null,null,null,null,null,null,null,null,null,null,null,null,null,null,null,null,null,null,null,null,null,null,null,null,null,null,null,null,null,null,null,null,null,null,null,null,null,null,null,null,null,null,null,null,null,null,null,null,null,null,null,null,null,null,null,null,null,null,null,null,null,null,null,null,null,null,null,null,null,null,null,null,null,null,null,null,null,null,"Discounted"]
[null,"Scenario:",{"$f":"LoadedScenario","v":"Empty"},"Include",null,"for each Measure by Decade",null,null,null,null,null,"Measure","Measure",null,"Implementation Cost",null,"Debt Finance",null,"Unit","Freerider","Decay","Plumb. Code","Nat. Repl.","Useful",null,"Unit Costs",null,null,"for each Measure by Decade",null,null,null,null,null,"Annual % of Measure Accounting Units",null,null,null,null,null,"Annual Measure Implementation",null,null,null,null,null,null,null,null,null,null,null,null,null,null,null,null,null,null,null,null,null,null,null,null,null,null,null,null,null,null,null,null,null,null,null,null,null,null,null,null,null,null,null,null,null,null,null,null,null,null,null,"Active Water Savings by Planning Year (kGal)",null,null,null,null,null,null,null,null,null,null,null,null,null,null,null,null,null,null,null,null,null,null,null,null,null,null,null,null,null,null,null,null,null,null,null,null,null,null,null,null,null,null,null,null,null,null,null,null,null,null,"Sum of",null,"O&M Cost by Planning Year (2018 $)",null,null,null,null,null,null,null,null,null,null,null,null,null,null,null,null,null,null,null,null,null,null,null,null,null,null,null,null,null,null,null,null,null,null,null,null,null,null,null,null,null,null,null,null,null,null,null,null,null,null,null,"Capital Cost by Planning Year (2018 $)",null,null,null,null,null,null,null,null,null,null,null,null,null,null,null,null,null,null,null,null,null,null,null,null,null,null,null,null,null,null,null,null,null,null,null,null,null,null,null,null,null,null,null,null,null,null,null,null,null,null,null,"Debt Service by Planning Year (2018 $)",null,null,null,null,null,null,null,null,null,null,null,null,null,null,null,null,null,null,null,null,null,null,null,null,null,null,null,null,null,null,null,null,null,null,null,null,null,null,null,null,null,null,null,null,null,null,null,null,null,null,null,"Total Cost by Planning Year (2018 $)",null,null,null,null,null,null,null,null,null,null,null,null,null,null,null,null,null,null,null,null,null,null,null,null,null,null,null,null,null,null,null,null,null,null,null,null,null,null,null,null,null,null,null,null,null,null,null,null,null,null,null,"Unit Cost"]
[null,null,null,"in Plan?",null,{"$f":"IF('Plumbing Fixture Inventory'!N66,\"WARNING: Infeasible Fixture Replacement Level\",\"\")","v":""},null,null,null,null,null,"Accounting","Delivery",null,"$ per Unit of Activity",null,"Capital Cost?",null,"Savings (u)","Rate (f)","Rate (d)","Interaction","Rate (n)","Life (T)",null,"Per","Per",null,null,null,null,null,null,null,"Receiving Measure by Decade",null,null,null,null,null,null,null,null,null,null,null,null,null,null,null,null,null,null,null,null,null,null,null,null,null,null,null,null,null,null,null,null,null,null,null,null,null,null,null,null,null,null,null,null,null,null,null,null,null,null,null,null,null,null,null,null,null,null,null,null,null,null,null,null,null,null,null,null,null,null,null,null,null,null,null,null,null,null,null,null,null,null,null,null,null,null,null,null,null,null,null,null,null,null,null,null,null,null,null,null,null,null,null,null,null,null,null,null,"Savings",null,null,null,null,null,null,null,null,null,null,null,null,null,null,null,null,null,null,null,null,null,null,null,null,null,null,null,null,null,null,null,null,null,null,null,null,null,null,null,null,null,null,null,null,null,null,null,null,null,null,null,null,null,null,null,null,null,null,null,null,null,null,null,null,null,null,null,null,null,null,null,null,null,null,null,null,null,null,null,null,null,null,null,null,null,null,null,null,null,null,null,null,null,null,null,null,null,null,null,null,null,null,null,null,null,null,null,null,null,null,null,null,null,null,null,null,null,null,null,null,null,null,null,null,null,null,null,null,null,null,null,null,null,null,null,null,null,null,null,null,null,null,null,null,null,null,null,null,null,null,null,null,null,null,null,null,null,null,null,null,null,null,null,null,null,null,null,null,null,null,null,null,null,null,null,null,null,null,null,null,null,null,null,null,null,null,null,null,null,null,null,null,null,null,null,null,null,null,null,null,null,null,null,null,null,null,null,null,null,"Interim Calculations"]
[null,"ID","Name","Y/N",null,"2020-30","2031-40","2041-50","2051-60","2061-70",null,"Unit","Method",null,"O&M","Capital","Y/N",null,"gpd","%/yr","%/yr","Y/N","%/yr","years",null,"Activity Unit","Acre-Foot",null,"2020-30","2031-40","2041-50","2051-60","2061-70",null,"2020-30","2031-40","2041-50","2051-60","2061-70",null,2020,2021,2022,2023,2024,2025,2026,2027,2028,2029,2030,2031,2032,2033,2034,2035,2036,2037,2038,2039,2040,2041,2042,2043,2044,2045,2046,2047,2048,2049,2050,2051,2052,2053,2054,2055,2056,2057,2058,2059,2060,2061,2062,2063,2064,2065,2066,2067,2068,2069,2070,null,2020,2021,2022,2023,2024,2025,2026,2027,2028,2029,2030,2031,2032,2033,2034,2035,2036,2037,2038,2039,2040,2041,2042,2043,2044,2045,2046,2047,2048,2049,2050,2051,2052,2053,2054,2055,2056,2057,2058,2059,2060,2061,2062,2063,2064,2065,2066,2067,2068,2069,2070,"(kGal)",null,2020,2021,2022,2023,2024,2025,2026,2027,2028,2029,2030,2031,2032,2033,2034,2035,2036,2037,2038,2039,2040,2041,2042,2043,2044,2045,2046,2047,2048,2049,2050,2051,2052,2053,2054,2055,2056,2057,2058,2059,2060,2061,2062,2063,2064,2065,2066,2067,2068,2069,2070,null,2020,2021,2022,2023,2024,2025,2026,2027,2028,2029,2030,2031,2032,2033,2034,2035,2036,2037,2038,2039,2040,2041,2042,2043,2044,2045,2046,2047,2048,2049,2050,2051,2052,2053,2054,2055,2056,2057,2058,2059,2060,2061,2062,2063,2064,2065,2066,2067,2068,2069,2070,null,2020,2021,2022,2023,2024,2025,2026,2027,2028,2029,2030,2031,2032,2033,2034,2035,2036,2037,2038,2039,2040,2041,2042,2043,2044,2045,2046,2047,2048,2049,2050,2051,2052,2053,2054,2055,2056,2057,2058,2059,2060,2061,2062,2063,2064,2065,2066,2067,2068,2069,2070,null,2020,2021,2022,2023,2024,2025,2026,2027,2028,2029,2030,2031,2032,2033,2034,2035,2036,2037,2038,2039,2040,2041,2042,2043,2044,2045,2046,2047,2048,2049,2050,2051,2052,2053,2054,2055,2056,2057,2058,2059,2060,2061,2062,2063,2064,2065,2066,2067,2068,2069,2070,null,"SAVE_AFY","b"]
[]
[null,"Pre-Defined Conservation Measures"]
[]
[null,"Single-Family Measures"]
[null,"PRE-SF-01",{"$f":"INDEX(tbl_predefined_measures[MEASURE],MATCH($B23&regionid,tbl_predefined_measures[ID&REGION],0))","v":{"$error":"#N/A"}},"N",null,null,null,null,null,null,null,{"$f":"INDEX(tbl_predefined_measures[ACCOUNTING_UNIT],MATCH($B23&regionid,tbl_predefined_measures[ID&REGION],0))","v":{"$error":"#N/A"}},{"$f":"INDEX(tbl_predefined_measures[DELIVERY],MATCH($B23&regionid,tbl_predefined_measures[ID&REGION],0))","v":{"$error":"#N/A"}},null,{"$f":"INDEX(tbl_predefined_measures[COST_OM],MATCH($B23&regionid,tbl_predefined_measures[ID&REGION],0))","v":{"$error":"#N/A"}},{"$f":"INDEX(tbl_predefined_measures[COST_CAPITAL],MATCH($B23&regionid,tbl_predefined_measures[ID&REGION],0))","v":{"$error":"#N/A"}},null,null,{"$f":"INDEX(tbl_predefined_measures[SAVE_GPD],MATCH($B23&regionid,tbl_predefined_measures[ID&REGION],0))","v":{"$error":"#N/A"}},{"$f":"INDEX(tbl_predefined_measures[FREERIDE_PCT],MATCH($B23&regionid,tbl_predefined_measures[ID&REGION],0))","v":{"$error":"#N/A"}},{"$f":"INDEX(tbl_predefined_measures[DECAY_PCT],MATCH($B23&regionid,tbl_predefined_measures[ID&REGION],0))","v":{"$error":"#N/A"}},{"$f":"INDEX(tbl_predefined_measures[PLUMBCODE_YN],MATCH($B23&regionid,tbl_predefined_measures[ID&REGION],0))","v":{"$error":"#N/A"}},{"$f":"INDEX(tbl_predefined_measures[NRR_PCT],MATCH($B23&regionid,tbl_predefined_measures[ID&REGION],0))","v":{"$error":"#N/A"}},{"$f":"IF(V23=\"N\",INDEX(tbl_predefined_measures[LIFE_YRS],MATCH($B23&regionid,tbl_predefined_measures[ID&REGION],0)),99)","v":{"$error":"#N/A"}},null,{"$f":"SUM(O23:P23)","v":{"$error":"#N/A"}},{"$f":"IF(S23>0,(SUM(O23:P23)/(MP23*(1-T23)))*(MQ23-1)/(MQ23^X23-1),0)","v":{"$error":"#N/A"}},null,{"$f":"AVERAGE(KP23:KZ23)","v":{"$error":"#N/A"}},{"$f":"AVERAGE(LA23:LJ23)","v":{"$error":"#N/A"}},{"$f":"AVERAGE(LK23:LT23)","v":{"$error":"#N/A"}},{"$f":"AVERAGE(LU23:MD23)","v":{"$error":"#N/A"}},{"$f":"AVERAGE(ME23:MN23)","v":{"$error":"#N/A"}},null,{"$f":"F23/(AVERAGE(IF(baseline_selection=1,'1. Baseline Demand Projection'!E$26:F$26,'1. Baseline Demand Projection'!N$26:O$26))*sftoiletsperhhld)","v":{"$error":"#DIV/0!"}},{"$f":"G23/(AVERAGE(IF(baseline_selection=1,'1. Baseline Demand Projection'!F$26:G$26,'1. Baseline Demand Projection'!O$26:P$26))*sftoiletsperhhld)","v":{"$error":"#DIV/0!"}},{"$f":"H23/(AVERAGE(IF(baseline_selection=1,'1. Baseline Demand Projection'!G$26:H$26,'1. Baseline Demand Projection'!P$26:Q$26))*sftoiletsperhhld)","v":{"$error":"#DIV/0!"}},{"$f":"I23/(AVERAGE(IF(baseline_selection=1,'1. Baseline Demand Projection'!H$26:I$26,'1. Baseline Demand Projection'!Q$26:R$26))*sftoiletsperhhld)","v":{"$error":"#DIV/0!"}},{"$f":"J23/(AVERAGE(IF(baseline_selection=1,'1. Baseline Demand Projection'!I$26:J$26,'1. Baseline Demand Projection'!R$26:S$26))*sftoiletsperhhld)","v":{"$error":"#DIV/0!"}},null,{"$f":"$F23*IF($D23=\"Y\",1,0)","v":0},{"$f":"CHOOSE(ROUNDUP((AP$18-2020)/10,0),$F23,$G23,$H23,$I23,$J23)*IF($D23=\"Y\",1,0)","v":0},0,0,0,0,0,0,0,0,0,{"$f":"CHOOSE(ROUNDUP((AZ$18-2020)/10,0),$F23,$G23,$H23,$I23,$J23)*IF($D23=\"Y\",1,0)","v":0},0,0,0,0,0,0,0,0,0,{"$f":"CHOOSE(ROUNDUP((BJ$18-2020)/10,0),$F23,$G23,$H23,$I23,$J23)*IF($D23=\"Y\",1,0)","v":0},0,0,0,0,0,0,0,0,0,{"$f":"CHOOSE(ROUNDUP((BT$18-2020)/10,0),$F23,$G23,$H23,$I23,$J23)*IF($D23=\"Y\",1,0)","v":0},0,0,0,0,0,0,0,0,0,{"$f":"CHOOSE(ROUNDUP((CD$18-2020)/10,0),$F23,$G23,$H23,$I23,$J23)*IF($D23=\"Y\",1,0)","v":0},0,0,0,0,0,0,0,0,0,null,{"$f":"MeasureSavingsArray(AO23:CM23,S23,T23,U23,W23,X23,D23)","v":{"$error":"#VALUE!"}},{"$error":"#VALUE!"},{"$error":"#VALUE!"},{"$error":"#VALUE!"},{"$error":"#VALUE!"},{"$error":"#VALUE!"},{"$error":"#VALUE!"},{"$error":"#VALUE!"},{"$error":"#VALUE!"},{"$error":"#VALUE!"},{"$error":"#VALUE!"},{"$error":"#VALUE!"},{"$error":"#VALUE!"},{"$error":"#VALUE!"},{"$error":"#VALUE!"},{"$error":"#VALUE!"},{"$error":"#VALUE!"},{"$error":"#VALUE!"},{"$error":"#VALUE!"},{"$error":"#VALUE!"},{"$error":"#VALUE!"},{"$error":"#VALUE!"},{"$error":"#VALUE!"},{"$error":"#VALUE!"},{"$error":"#VALUE!"},{"$error":"#VALUE!"},{"$error":"#VALUE!"},{"$error":"#VALUE!"},{"$error":"#VALUE!"},{"$error":"#VALUE!"},{"$error":"#VALUE!"},{"$error":"#VALUE!"},{"$error":"#VALUE!"},{"$error":"#VALUE!"},{"$error":"#VALUE!"},{"$error":"#VALUE!"},{"$error":"#VALUE!"},{"$error":"#VALUE!"},{"$error":"#VALUE!"},{"$error":"#VALUE!"},{"$error":"#VALUE!"},{"$error":"#VALUE!"},{"$error":"#VALUE!"},{"$error":"#VALUE!"},{"$error":"#VALUE!"},{"$error":"#VALUE!"},{"$error":"#VALUE!"},{"$error":"#VALUE!"},{"$error":"#VALUE!"},{"$error":"#VALUE!"},{"$error":"#VALUE!"},{"$f":"CO23+NPV(discount_rate,CP23:EM23)","v":{"$error":"#VALUE!"}},null,{"$f":"$O23*AO23","v":{"$error":"#N/A"}},{"$f":"$O23*AP23","v":{"$error":"#N/A"}},{"$f":"$O23*AQ23","v":{"$error":"#N/A"}},{"$f":"$O23*AR23","v":{"$error":"#N/A"}},{"$f":"$O23*AS23","v":{"$error":"#N/A"}},{"$f":"$O23*AT23","v":{"$error":"#N/A"}},{"$f":"$O23*AU23","v":{"$error":"#N/A"}},{"$f":"$O23*AV23","v":{"$error":"#N/A"}},{"$f":"$O23*AW23","v":{"$error":"#N/A"}},{"$f":"$O23*AX23","v":{"$error":"#N/A"}},{"$f":"$O23*AY23","v":{"$error":"#N/A"}},{"$f":"$O23*AZ23","v":{"$error":"#N/A"}},{"$f":"$O23*BA23","v":{"$error":"#N/A"}},{"$f":"$O23*BB23","v":{"$error":"#N/A"}},{"$f":"$O23*BC23","v":{"$error":"#N/A"}},{"$f":"$O23*BD23","v":{"$error":"#N/A"}},{"$f":"$O23*BE23","v":{"$error":"#N/A"}},{"$f":"$O23*BF23","v":{"$error":"#N/A"}},{"$f":"$O23*BG23","v":{"$error":"#N/A"}},{"$f":"$O23*BH23","v":{"$error":"#N/A"}},{"$f":"$O23*BI23","v":{"$error":"#N/A"}},{"$f":"$O23*BJ23","v":{"$error":"#N/A"}},{"$f":"$O23*BK23","v":{"$error":"#N/A"}},{"$f":"$O23*BL23","v":{"$error":"#N/A"}},{"$f":"$O23*BM23","v":{"$error":"#N/A"}},{"$f":"$O23*BN23","v":{"$error":"#N/A"}},{"$f":"$O23*BO23","v":{"$error":"#N/A"}},{"$f":"$O23*BP23","v":{"$error":"#N/A"}},{"$f":"$O23*BQ23","v":{"$error":"#N/A"}},{"$f":"$O23*BR23","v":{"$error":"#N/A"}},{"$f":"$O23*BS23","v":{"$error":"#N/A"}},{"$f":"$O23*BT23","v":{"$error":"#N/A"}},{"$f":"$O23*BU23","v":{"$error":"#N/A"}},{"$f":"$O23*BV23","v":{"$error":"#N/A"}},{"$f":"$O23*BW23","v":{"$error":"#N/A"}},{"$f":"$O23*BX23","v":{"$error":"#N/A"}},{"$f":"$O23*BY23","v":{"$error":"#N/A"}},{"$f":"$O23*BZ23","v":{"$error":"#N/A"}},{"$f":"$O23*CA23","v":{"$error":"#N/A"}},{"$f":"$O23*CB23","v":{"$error":"#N/A"}},{"$f":"$O23*CC23","v":{"$error":"#N/A"}},{"$f":"$O23*CD23","v":{"$error":"#N/A"}},{"$f":"$O23*CE23","v":{"$error":"#N/A"}},{"$f":"$O23*CF23","v":{"$error":"#N/A"}},{"$f":"$O23*CG23","v":{"$error":"#N/A"}},{"$f":"$O23*CH23","v":{"$error":"#N/A"}},{"$f":"$O23*CI23","v":{"$error":"#N/A"}},{"$f":"$O23*CJ23","v":{"$error":"#N/A"}},{"$f":"$O23*CK23","v":{"$error":"#N/A"}},{"$f":"$O23*CL23","v":{"$error":"#N/A"}},{"$f":"$O23*CM23","v":{"$error":"#N/A"}},null,{"$f":"$P23*IF($Q23=\"N\",1,0)*AO23","v":{"$error":"#N/A"}},{"$f":"$P23*IF($Q23=\"N\",1,0)*AP23","v":{"$error":"#N/A"}},{"$f":"$P23*IF($Q23=\"N\",1,0)*AQ23","v":{"$error":"#N/A"}},{"$f":"$P23*IF($Q23=\"N\",1,0)*AR23","v":{"$error":"#N/A"}},{"$f":"$P23*IF($Q23=\"N\",1,0)*AS23","v":{"$error":"#N/A"}},{"$f":"$P23*IF($Q23=\"N\",1,0)*AT23","v":{"$error":"#N/A"}},{"$f":"$P23*IF($Q23=\"N\",1,0)*AU23","v":{"$error":"#N/A"}},{"$f":"$P23*IF($Q23=\"N\",1,0)*AV23","v":{"$error":"#N/A"}},{"$f":"$P23*IF($Q23=\"N\",1,0)*AW23","v":{"$error":"#N/A"}},{"$f":"$P23*IF($Q23=\"N\",1,0)*AX23","v":{"$error":"#N/A"}},{"$f":"$P23*IF($Q23=\"N\",1,0)*AY23","v":{"$error":"#N/A"}},{"$f":"$P23*IF($Q23=\"N\",1,0)*AZ23","v":{"$error":"#N/A"}},{"$f":"$P23*IF($Q23=\"N\",1,0)*BA23","v":{"$error":"#N/A"}},{"$f":"$P23*IF($Q23=\"N\",1,0)*BB23","v":{"$error":"#N/A"}},{"$f":"$P23*IF($Q23=\"N\",1,0)*BC23","v":{"$error":"#N/A"}},{"$f":"$P23*IF($Q23=\"N\",1,0)*BD23","v":{"$error":"#N/A"}},{"$f":"$P23*IF($Q23=\"N\",1,0)*BE23","v":{"$error":"#N/A"}},{"$f":"$P23*IF($Q23=\"N\",1,0)*BF23","v":{"$error":"#N/A"}},{"$f":"$P23*IF($Q23=\"N\",1,0)*BG23","v":{"$error":"#N/A"}},{"$f":"$P23*IF($Q23=\"N\",1,0)*BH23","v":{"$error":"#N/A"}},{"$f":"$P23*IF($Q23=\"N\",1,0)*BI23","v":{"$error":"#N/A"}},{"$f":"$P23*IF($Q23=\"N\",1,0)*BJ23","v":{"$error":"#N/A"}},{"$f":"$P23*IF($Q23=\"N\",1,0)*BK23","v":{"$error":"#N/A"}},{"$f":"$P23*IF($Q23=\"N\",1,0)*BL23","v":{"$error":"#N/A"}},{"$f":"$P23*IF($Q23=\"N\",1,0)*BM23","v":{"$error":"#N/A"}},{"$f":"$P23*IF($Q23=\"N\",1,0)*BN23","v":{"$error":"#N/A"}},{"$f":"$P23*IF($Q23=\"N\",1,0)*BO23","v":{"$error":"#N/A"}},{"$f":"$P23*IF($Q23=\"N\",1,0)*BP23","v":{"$error":"#N/A"}},{"$f":"$P23*IF($Q23=\"N\",1,0)*BQ23","v":{"$error":"#N/A"}},{"$f":"$P23*IF($Q23=\"N\",1,0)*BR23","v":{"$error":"#N/A"}},{"$f":"$P23*IF($Q23=\"N\",1,0)*BS23","v":{"$error":"#N/A"}},{"$f":"$P23*IF($Q23=\"N\",1,0)*BT23","v":{"$error":"#N/A"}},{"$f":"$P23*IF($Q23=\"N\",1,0)*BU23","v":{"$error":"#N/A"}},{"$f":"$P23*IF($Q23=\"N\",1,0)*BV23","v":{"$error":"#N/A"}},{"$f":"$P23*IF($Q23=\"N\",1,0)*BW23","v":{"$error":"#N/A"}},{"$f":"$P23*IF($Q23=\"N\",1,0)*BX23","v":{"$error":"#N/A"}},{"$f":"$P23*IF($Q23=\"N\",1,0)*BY23","v":{"$error":"#N/A"}},{"$f":"$P23*IF($Q23=\"N\",1,0)*BZ23","v":{"$error":"#N/A"}},{"$f":"$P23*IF($Q23=\"N\",1,0)*CA23","v":{"$error":"#N/A"}},{"$f":"$P23*IF($Q23=\"N\",1,0)*CB23","v":{"$error":"#N/A"}},{"$f":"$P23*IF($Q23=\"N\",1,0)*CC23","v":{"$error":"#N/A"}},{"$f":"$P23*IF($Q23=\"N\",1,0)*CD23","v":{"$error":"#N/A"}},{"$f":"$P23*IF($Q23=\"N\",1,0)*CE23","v":{"$error":"#N/A"}},{"$f":"$P23*IF($Q23=\"N\",1,0)*CF23","v":{"$error":"#N/A"}},{"$f":"$P23*IF($Q23=\"N\",1,0)*CG23","v":{"$error":"#N/A"}},{"$f":"$P23*IF($Q23=\"N\",1,0)*CH23","v":{"$error":"#N/A"}},{"$f":"$P23*IF($Q23=\"N\",1,0)*CI23","v":{"$error":"#N/A"}},{"$f":"$P23*IF($Q23=\"N\",1,0)*CJ23","v":{"$error":"#N/A"}},{"$f":"$P23*IF($Q23=\"N\",1,0)*CK23","v":{"$error":"#N/A"}},{"$f":"$P23*IF($Q23=\"N\",1,0)*CL23","v":{"$error":"#N/A"}},{"$f":"$P23*IF($Q23=\"N\",1,0)*CM23","v":{"$error":"#N/A"}},null,{"$f":"DebtServiceArray(AO23:CM23,P23,discount_rate,Q23,D23)","v":{"$error":"#VALUE!"}},{"$error":"#VALUE!"},{"$error":"#VALUE!"},{"$error":"#VALUE!"},{"$error":"#VALUE!"},{"$error":"#VALUE!"},{"$error":"#VALUE!"},{"$error":"#VALUE!"},{"$error":"#VALUE!"},{"$error":"#VALUE!"},{"$error":"#VALUE!"},{"$error":"#VALUE!"},{"$error":"#VALUE!"},{"$error":"#VALUE!"},{"$error":"#VALUE!"},{"$error":"#VALUE!"},{"$error":"#VALUE!"},{"$error":"#VALUE!"},{"$error":"#VALUE!"},{"$error":"#VALUE!"},{"$error":"#VALUE!"},{"$error":"#VALUE!"},{"$error":"#VALUE!"},{"$error":"#VALUE!"},{"$error":"#VALUE!"},{"$error":"#VALUE!"},{"$error":"#VALUE!"},{"$error":"#VALUE!"},{"$error":"#VALUE!"},{"$error":"#VALUE!"},{"$error":"#VALUE!"},{"$error":"#VALUE!"},{"$error":"#VALUE!"},{"$error":"#VALUE!"},{"$error":"#VALUE!"},{"$error":"#VALUE!"},{"$error":"#VALUE!"},{"$error":"#VALUE!"},{"$error":"#VALUE!"},{"$error":"#VALUE!"},{"$error":"#VALUE!"},{"$error":"#VALUE!"},{"$error":"#VALUE!"},{"$error":"#VALUE!"},{"$error":"#VALUE!"},{"$error":"#VALUE!"},{"$error":"#VALUE!"},{"$error":"#VALUE!"},{"$error":"#VALUE!"},{"$error":"#VALUE!"},{"$error":"#VALUE!"},null,{"$f":"SUM(EP23,GP23,IP23)","v":{"$error":"#N/A"}},{"$f":"SUM(EQ23,GQ23,IQ23)","v":{"$error":"#N/A"}},{"$f":"SUM(ER23,GR23,IR23)","v":{"$error":"#N/A"}},{"$f":"SUM(ES23,GS23,IS23)","v":{"$error":"#N/A"}},{"$f":"SUM(ET23,GT23,IT23)","v":{"$error":"#N/A"}},{"$f":"SUM(EU23,GU23,IU23)","v":{"$error":"#N/A"}},{"$f":"SUM(EV23,GV23,IV23)","v":{"$error":"#N/A"}},{"$f":"SUM(EW23,GW23,IW23)","v":{"$error":"#N/A"}},{"$f":"SUM(EX23,GX23,IX23)","v":{"$error":"#N/A"}},{"$f":"SUM(EY23,GY23,IY23)","v":{"$error":"#N/A"}},{"$f":"SUM(EZ23,GZ23,IZ23)","v":{"$error":"#N/A"}},{"$f":"SUM(FA23,HA23,JA23)","v":{"$error":"#N/A"}},{"$f":"SUM(FB23,HB23,JB23)","v":{"$error":"#N/A"}},{"$f":"SUM(FC23,HC23,JC23)","v":{"$error":"#N/A"}},{"$f":"SUM(FD23,HD23,JD23)","v":{"$error":"#N/A"}},{"$f":"SUM(FE23,HE23,JE23)","v":{"$error":"#N/A"}},{"$f":"SUM(FF23,HF23,JF23)","v":{"$error":"#N/A"}},{"$f":"SUM(FG23,HG23,JG23)","v":{"$error":"#N/A"}},{"$f":"SUM(FH23,HH23,JH23)","v":{"$error":"#N/A"}},{"$f":"SUM(FI23,HI23,JI23)","v":{"$error":"#N/A"}},{"$f":"SUM(FJ23,HJ23,JJ23)","v":{"$error":"#N/A"}},{"$f":"SUM(FK23,HK23,JK23)","v":{"$error":"#N/A"}},{"$f":"SUM(FL23,HL23,JL23)","v":{"$error":"#N/A"}},{"$f":"SUM(FM23,HM23,JM23)","v":{"$error":"#N/A"}},{"$f":"SUM(FN23,HN23,JN23)","v":{"$error":"#N/A"}},{"$f":"SUM(FO23,HO23,JO23)","v":{"$error":"#N/A"}},{"$f":"SUM(FP23,HP23,JP23)","v":{"$error":"#N/A"}},{"$f":"SUM(FQ23,HQ23,JQ23)","v":{"$error":"#N/A"}},{"$f":"SUM(FR23,HR23,JR23)","v":{"$error":"#N/A"}},{"$f":"SUM(FS23,HS23,JS23)","v":{"$error":"#N/A"}},{"$f":"SUM(FT23,HT23,JT23)","v":{"$error":"#N/A"}},{"$f":"SUM(FU23,HU23,JU23)","v":{"$error":"#N/A"}},{"$f":"SUM(FV23,HV23,JV23)","v":{"$error":"#N/A"}},{"$f":"SUM(FW23,HW23,JW23)","v":{"$error":"#N/A"}},{"$f":"SUM(FX23,HX23,JX23)","v":{"$error":"#N/A"}},{"$f":"SUM(FY23,HY23,JY23)","v":{"$error":"#N/A"}},{"$f":"SUM(FZ23,HZ23,JZ23)","v":{"$error":"#N/A"}},{"$f":"SUM(GA23,IA23,KA23)","v":{"$error":"#N/A"}},{"$f":"SUM(GB23,IB23,KB23)","v":{"$error":"#N/A"}},{"$f":"SUM(GC23,IC23,KC23)","v":{"$error":"#N/A"}},{"$f":"SUM(GD23,ID23,KD23)","v":{"$error":"#N/A"}},{"$f":"SUM(GE23,IE23,KE23)","v":{"$error":"#N/A"}},{"$f":"SUM(GF23,IF23,KF23)","v":{"$error":"#N/A"}},{"$f":"SUM(GG23,IG23,KG23)","v":{"$error":"#N/A"}},{"$f":"SUM(GH23,IH23,KH23)","v":{"$error":"#N/A"}},{"$f":"SUM(GI23,II23,KI23)","v":{"$error":"#N/A"}},{"$f":"SUM(GJ23,IJ23,KJ23)","v":{"$error":"#N/A"}},{"$f":"SUM(GK23,IK23,KK23)","v":{"$error":"#N/A"}},{"$f":"SUM(GL23,IL23,KL23)","v":{"$error":"#N/A"}},{"$f":"SUM(GM23,IM23,KM23)","v":{"$error":"#N/A"}},{"$f":"SUM(GN23,IN23,KN23)","v":{"$error":"#N/A"}},null,{"$f":"S23*365/325851","v":{"$error":"#N/A"}},{"$f":"(1-U23)*(1-W23)/(1+discount_rate)","v":{"$error":"#N/A"}}]
[null,"PRE-SF-02",{"$f":"INDEX(tbl_predefined_measures[MEASURE],MATCH($B24&regionid,tbl_predefined_measures[ID&REGION],0))","v":{"$error":"#N/A"}},"N",null,null,null,null,null,null,null,{"$f":"INDEX(tbl_predefined_measures[ACCOUNTING_UNIT],MATCH($B24&regionid,tbl_predefined_measures[ID&REGION],0))","v":{"$error":"#N/A"}},{"$f":"INDEX(tbl_predefined_measures[DELIVERY],MATCH($B24&regionid,tbl_predefined_measures[ID&REGION],0))","v":{"$error":"#N/A"}},null,{"$f":"INDEX(tbl_predefined_measures[COST_OM],MATCH($B24&regionid,tbl_predefined_measures[ID&REGION],0))","v":{"$error":"#N/A"}},{"$f":"INDEX(tbl_predefined_measures[COST_CAPITAL],MATCH($B24&regionid,tbl_predefined_measures[ID&REGION],0))","v":{"$error":"#N/A"}},null,null,{"$f":"INDEX(tbl_predefined_measures[SAVE_GPD],MATCH($B24&regionid,tbl_predefined_measures[ID&REGION],0))","v":{"$error":"#N/A"}},{"$f":"INDEX(tbl_predefined_measures[FREERIDE_PCT],MATCH($B24&regionid,tbl_predefined_measures[ID&REGION],0))","v":{"$error":"#N/A"}},{"$f":"INDEX(tbl_predefined_measures[DECAY_PCT],MATCH($B24&regionid,tbl_predefined_measures[ID&REGION],0))","v":{"$error":"#N/A"}},{"$f":"INDEX(tbl_predefined_measures[PLUMBCODE_YN],MATCH($B24&regionid,tbl_predefined_measures[ID&REGION],0))","v":{"$error":"#N/A"}},{"$f":"INDEX(tbl_predefined_measures[NRR_PCT],MATCH($B24&regionid,tbl_predefined_measures[ID&REGION],0))","v":{"$error":"#N/A"}},{"$f":"IF(V24=\"N\",INDEX(tbl_predefined_measures[LIFE_YRS],MATCH($B24&regionid,tbl_predefined_measures[ID&REGION],0)),99)","v":{"$error":"#N/A"}},null,{"$error":"#N/A"},{"$error":"#N/A"},null,{"$error":"#N/A"},{"$error":"#N/A"},{"$error":"#N/A"},{"$error":"#N/A"},{"$error":"#N/A"},null,{"$f":"F24/(AVERAGE(IF(baseline_selection=1,'1. Baseline Demand Projection'!E$26:F$26,'1. Baseline Demand Projection'!N$26:O$26))*sftoiletsperhhld)","v":{"$error":"#DIV/0!"}},{"$f":"G24/(AVERAGE(IF(baseline_selection=1,'1. Baseline Demand Projection'!F$26:G$26,'1. Baseline Demand Projection'!O$26:P$26))*sftoiletsperhhld)","v":{"$error":"#DIV/0!"}},{"$f":"H24/(AVERAGE(IF(baseline_selection=1,'1. Baseline Demand Projection'!G$26:H$26,'1. Baseline Demand Projection'!P$26:Q$26))*sftoiletsperhhld)","v":{"$error":"#DIV/0!"}},{"$f":"I24/(AVERAGE(IF(baseline_selection=1,'1. Baseline Demand Projection'!H$26:I$26,'1. Baseline Demand Projection'!Q$26:R$26))*sftoiletsperhhld)","v":{"$error":"#DIV/0!"}},{"$f":"J24/(AVERAGE(IF(baseline_selection=1,'1. Baseline Demand Projection'!I$26:J$26,'1. Baseline Demand Projection'!R$26:S$26))*sftoiletsperhhld)","v":{"$error":"#DIV/0!"}},null,0,0,0,0,0,0,0,0,0,0,0,0,0,0,0,0,0,0,0,0,0,0,0,0,0,0,0,0,0,0,0,0,0,0,0,0,0,0,0,0,0,0,0,0,0,0,0,0,0,0,0,null,{"$f":"MeasureSavingsArray(AO24:CM24,S24,T24,U24,W24,X24,D24)","v":{"$error":"#VALUE!"}},{"$error":"#VALUE!"},{"$error":"#VALUE!"},{"$error":"#VALUE!"},{"$error":"#VALUE!"},{"$error":"#VALUE!"},{"$error":"#VALUE!"},{"$error":"#VALUE!"},{"$error":"#VALUE!"},{"$error":"#VALUE!"},{"$error":"#VALUE!"},{"$error":"#VALUE!"},{"$error":"#VALUE!"},{"$error":"#VALUE!"},{"$error":"#VALUE!"},{"$error":"#VALUE!"},{"$error":"#VALUE!"},{"$error":"#VALUE!"},{"$error":"#VALUE!"},{"$error":"#VALUE!"},{"$error":"#VALUE!"},{"$error":"#VALUE!"},{"$error":"#VALUE!"},{"$error":"#VALUE!"},{"$error":"#VALUE!"},{"$error":"#VALUE!"},{"$error":"#VALUE!"},{"$error":"#VALUE!"},{"$error":"#VALUE!"},{"$error":"#VALUE!"},{"$error":"#VALUE!"},{"$error":"#VALUE!"},{"$error":"#VALUE!"},{"$error":"#VALUE!"},{"$error":"#VALUE!"},{"$error":"#VALUE!"},{"$error":"#VALUE!"},{"$error":"#VALUE!"},{"$error":"#VALUE!"},{"$error":"#VALUE!"},{"$error":"#VALUE!"},{"$error":"#VALUE!"},{"$error":"#VALUE!"},{"$error":"#VALUE!"},{"$error":"#VALUE!"},{"$error":"#VALUE!"},{"$error":"#VALUE!"},{"$error":"#VALUE!"},{"$error":"#VALUE!"},{"$error":"#VALUE!"},{"$error":"#VALUE!"},{"$error":"#VALUE!"},null,{"$error":"#N/A"},{"$error":"#N/A"},{"$error":"#N/A"},{"$error":"#N/A"},{"$error":"#N/A"},{"$error":"#N/A"},{"$error":"#N/A"},{"$error":"#N/A"},{"$error":"#N/A"},{"$error":"#N/A"},{"$error":"#N/A"},{"$error":"#N/A"},{"$error":"#N/A"},{"$error":"#N/A"},{"$error":"#N/A"},{"$error":"#N/A"},{"$error":"#N/A"},{"$error":"#N/A"},{"$error":"#N/A"},{"$error":"#N/A"},{"$error":"#N/A"},{"$error":"#N/A"},{"$error":"#N/A"},{"$error":"#N/A"},{"$error":"#N/A"},{"$error":"#N/A"},{"$error":"#N/A"},{"$error":"#N/A"},{"$error":"#N/A"},{"$error":"#N/A"},{"$error":"#N/A"},{"$error":"#N/A"},{"$error":"#N/A"},{"$error":"#N/A"},{"$error":"#N/A"},{"$error":"#N/A"},{"$error":"#N/A"},{"$error":"#N/A"},{"$error":"#N/A"},{"$error":"#N/A"},{"$error":"#N/A"},{"$error":"#N/A"},{"$error":"#N/A"},{"$error":"#N/A"},{"$error":"#N/A"},{"$error":"#N/A"},{"$error":"#N/A"},{"$error":"#N/A"},{"$error":"#N/A"},{"$error":"#N/A"},{"$error":"#N/A"},null,{"$error":"#N/A"},{"$error":"#N/A"},{"$error":"#N/A"},{"$error":"#N/A"},{"$error":"#N/A"},{"$error":"#N/A"},{"$error":"#N/A"},{"$error":"#N/A"},{"$error":"#N/A"},{"$error":"#N/A"},{"$error":"#N/A"},{"$error":"#N/A"},{"$error":"#N/A"},{"$error":"#N/A"},{"$error":"#N/A"},{"$error":"#N/A"},{"$error":"#N/A"},{"$error":"#N/A"},{"$error":"#N/A"},{"$error":"#N/A"},{"$error":"#N/A"},{"$error":"#N/A"},{"$error":"#N/A"},{"$error":"#N/A"},{"$error":"#N/A"},{"$error":"#N/A"},{"$error":"#N/A"},{"$error":"#N/A"},{"$error":"#N/A"},{"$error":"#N/A"},{"$error":"#N/A"},{"$error":"#N/A"},{"$error":"#N/A"},{"$error":"#N/A"},{"$error":"#N/A"},{"$error":"#N/A"},{"$error":"#N/A"},{"$error":"#N/A"},{"$error":"#N/A"},{"$error":"#N/A"},{"$error":"#N/A"},{"$error":"#N/A"},{"$error":"#N/A"},{"$error":"#N/A"},{"$error":"#N/A"},{"$error":"#N/A"},{"$error":"#N/A"},{"$error":"#N/A"},{"$error":"#N/A"},{"$error":"#N/A"},{"$error":"#N/A"},null,{"$f":"DebtServiceArray(AO24:CM24,P24,discount_rate,Q24,D24)","v":{"$error":"#VALUE!"}},{"$error":"#VALUE!"},{"$error":"#VALUE!"},{"$error":"#VALUE!"},{"$error":"#VALUE!"},{"$error":"#VALUE!"},{"$error":"#VALUE!"},{"$error":"#VALUE!"},{"$error":"#VALUE!"},{"$error":"#VALUE!"},{"$error":"#VALUE!"},{"$error":"#VALUE!"},{"$error":"#VALUE!"},{"$error":"#VALUE!"},{"$error":"#VALUE!"},{"$error":"#VALUE!"},{"$error":"#VALUE!"},{"$error":"#VALUE!"},{"$error":"#VALUE!"},{"$error":"#VALUE!"},{"$error":"#VALUE!"},{"$error":"#VALUE!"},{"$error":"#VALUE!"},{"$error":"#VALUE!"},{"$error":"#VALUE!"},{"$error":"#VALUE!"},{"$error":"#VALUE!"},{"$error":"#VALUE!"},{"$error":"#VALUE!"},{"$error":"#VALUE!"},{"$error":"#VALUE!"},{"$error":"#VALUE!"},{"$error":"#VALUE!"},{"$error":"#VALUE!"},{"$error":"#VALUE!"},{"$error":"#VALUE!"},{"$error":"#VALUE!"},{"$error":"#VALUE!"},{"$error":"#VALUE!"},{"$error":"#VALUE!"},{"$error":"#VALUE!"},{"$error":"#VALUE!"},{"$error":"#VALUE!"},{"$error":"#VALUE!"},{"$error":"#VALUE!"},{"$error":"#VALUE!"},{"$error":"#VALUE!"},{"$error":"#VALUE!"},{"$error":"#VALUE!"},{"$error":"#VALUE!"},{"$error":"#VALUE!"},null,{"$error":"#N/A"},{"$error":"#N/A"},{"$error":"#N/A"},{"$error":"#N/A"},{"$error":"#N/A"},{"$error":"#N/A"},{"$error":"#N/A"},{"$error":"#N/A"},{"$error":"#N/A"},{"$error":"#N/A"},{"$error":"#N/A"},{"$error":"#N/A"},{"$error":"#N/A"},{"$error":"#N/A"},{"$error":"#N/A"},{"$error":"#N/A"},{"$error":"#N/A"},{"$error":"#N/A"},{"$error":"#N/A"},{"$error":"#N/A"},{"$error":"#N/A"},{"$error":"#N/A"},{"$error":"#N/A"},{"$error":"#N/A"},{"$error":"#N/A"},{"$error":"#N/A"},{"$error":"#N/A"},{"$error":"#N/A"},{"$error":"#N/A"},{"$error":"#N/A"},{"$error":"#N/A"},{"$error":"#N/A"},{"$error":"#N/A"},{"$error":"#N/A"},{"$error":"#N/A"},{"$error":"#N/A"},{"$error":"#N/A"},{"$error":"#N/A"},{"$error":"#N/A"},{"$error":"#N/A"},{"$error":"#N/A"},{"$error":"#N/A"},{"$error":"#N/A"},{"$error":"#N/A"},{"$error":"#N/A"},{"$error":"#N/A"},{"$error":"#N/A"},{"$error":"#N/A"},{"$error":"#N/A"},{"$error":"#N/A"},{"$error":"#N/A"},null,{"$error":"#N/A"},{"$error":"#N/A"}]
[null,"PRE-SF-03",{"$f":"INDEX(tbl_predefined_measures[MEASURE],MATCH($B25&regionid,tbl_predefined_measures[ID&REGION],0))","v":{"$error":"#N/A"}},"N",null,null,null,null,null,null,null,{"$f":"INDEX(tbl_predefined_measures[ACCOUNTING_UNIT],MATCH($B25&regionid,tbl_predefined_measures[ID&REGION],0))","v":{"$error":"#N/A"}},{"$f":"INDEX(tbl_predefined_measures[DELIVERY],MATCH($B25&regionid,tbl_predefined_measures[ID&REGION],0))","v":{"$error":"#N/A"}},null,{"$f":"INDEX(tbl_predefined_measures[COST_OM],MATCH($B25&regionid,tbl_predefined_measures[ID&REGION],0))","v":{"$error":"#N/A"}},{"$f":"INDEX(tbl_predefined_measures[COST_CAPITAL],MATCH($B25&regionid,tbl_predefined_measures[ID&REGION],0))","v":{"$error":"#N/A"}},null,null,{"$f":"INDEX(tbl_predefined_measures[SAVE_GPD],MATCH($B25&regionid,tbl_predefined_measures[ID&REGION],0))","v":{"$error":"#N/A"}},{"$f":"INDEX(tbl_predefined_measures[FREERIDE_PCT],MATCH($B25&regionid,tbl_predefined_measures[ID&REGION],0))","v":{"$error":"#N/A"}},{"$f":"INDEX(tbl_predefined_measures[DECAY_PCT],MATCH($B25&regionid,tbl_predefined_measures[ID&REGION],0))","v":{"$error":"#N/A"}},{"$f":"INDEX(tbl_predefined_measures[PLUMBCODE_YN],MATCH($B25&regionid,tbl_predefined_measures[ID&REGION],0))","v":{"$error":"#N/A"}},{"$f":"INDEX(tbl_predefined_measures[NRR_PCT],MATCH($B25&regionid,tbl_predefined_measures[ID&REGION],0))","v":{"$error":"#N/A"}},{"$f":"IF(V25=\"N\",INDEX(tbl_predefined_measures[LIFE_YRS],MATCH($B25&regionid,tbl_predefined_measures[ID&REGION],0)),99)","v":{"$error":"#N/A"}},null,{"$error":"#N/A"},{"$error":"#N/A"},null,{"$error":"#N/A"},{"$error":"#N/A"},{"$error":"#N/A"},{"$error":"#N/A"},{"$error":"#N/A"},null,{"$f":"F25/(AVERAGE(IF(baseline_selection=1,'1. Baseline Demand Projection'!E$26:F$26,'1. Baseline Demand Projection'!N$26:O$26))*sfshwrsperhhld)","v":{"$error":"#DIV/0!"}},{"$f":"G25/(AVERAGE(IF(baseline_selection=1,'1. Baseline Demand Projection'!F$26:G$26,'1. Baseline Demand Projection'!O$26:P$26))*sfshwrsperhhld)","v":{"$error":"#DIV/0!"}},{"$f":"H25/(AVERAGE(IF(baseline_selection=1,'1. Baseline Demand Projection'!G$26:H$26,'1. Baseline Demand Projection'!P$26:Q$26))*sfshwrsperhhld)","v":{"$error":"#DIV/0!"}},{"$f":"I25/(AVERAGE(IF(baseline_selection=1,'1. Baseline Demand Projection'!H$26:I$26,'1. Baseline Demand Projection'!Q$26:R$26))*sfshwrsperhhld)","v":{"$error":"#DIV/0!"}},{"$f":"J25/(AVERAGE(IF(baseline_selection=1,'1. Baseline Demand Projection'!I$26:J$26,'1. Baseline Demand Projection'!R$26:S$26))*sfshwrsperhhld)","v":{"$error":"#DIV/0!"}},null,0,0,0,0,0,0,0,0,0,0,0,0,0,0,0,0,0,0,0,0,0,0,0,0,0,0,0,0,0,0,0,0,0,0,0,0,0,0,0,0,0,0,0,0,0,0,0,0,0,0,0,null,{"$f":"MeasureSavingsArray(AO25:CM25,S25,T25,U25,W25,X25,D25)","v":{"$error":"#VALUE!"}},{"$error":"#VALUE!"},{"$error":"#VALUE!"},{"$error":"#VALUE!"},{"$error":"#VALUE!"},{"$error":"#VALUE!"},{"$error":"#VALUE!"},{"$error":"#VALUE!"},{"$error":"#VALUE!"},{"$error":"#VALUE!"},{"$error":"#VALUE!"},{"$error":"#VALUE!"},{"$error":"#VALUE!"},{"$error":"#VALUE!"},{"$error":"#VALUE!"},{"$error":"#VALUE!"},{"$error":"#VALUE!"},{"$error":"#VALUE!"},{"$error":"#VALUE!"},{"$error":"#VALUE!"},{"$error":"#VALUE!"},{"$error":"#VALUE!"},{"$error":"#VALUE!"},{"$error":"#VALUE!"},{"$error":"#VALUE!"},{"$error":"#VALUE!"},{"$error":"#VALUE!"},{"$error":"#VALUE!"},{"$error":"#VALUE!"},{"$error":"#VALUE!"},{"$error":"#VALUE!"},{"$error":"#VALUE!"},{"$error":"#VALUE!"},{"$error":"#VALUE!"},{"$error":"#VALUE!"},{"$error":"#VALUE!"},{"$error":"#VALUE!"},{"$error":"#VALUE!"},{"$error":"#VALUE!"},{"$error":"#VALUE!"},{"$error":"#VALUE!"},{"$error":"#VALUE!"},{"$error":"#VALUE!"},{"$error":"#VALUE!"},{"$error":"#VALUE!"},{"$error":"#VALUE!"},{"$error":"#VALUE!"},{"$error":"#VALUE!"},{"$error":"#VALUE!"},{"$error":"#VALUE!"},{"$error":"#VALUE!"},{"$error":"#VALUE!"},null,{"$error":"#N/A"},{"$error":"#N/A"},{"$error":"#N/A"},{"$error":"#N/A"},{"$error":"#N/A"},{"$error":"#N/A"},{"$error":"#N/A"},{"$error":"#N/A"},{"$error":"#N/A"},{"$error":"#N/A"},{"$error":"#N/A"},{"$error":"#N/A"},{"$error":"#N/A"},{"$error":"#N/A"},{"$error":"#N/A"},{"$error":"#N/A"},{"$error":"#N/A"},{"$error":"#N/A"},{"$error":"#N/A"},{"$error":"#N/A"},{"$error":"#N/A"},{"$error":"#N/A"},{"$error":"#N/A"},{"$error":"#N/A"},{"$error":"#N/A"},{"$error":"#N/A"},{"$error":"#N/A"},{"$error":"#N/A"},{"$error":"#N/A"},{"$error":"#N/A"},{"$error":"#N/A"},{"$error":"#N/A"},{"$error":"#N/A"},{"$error":"#N/A"},{"$error":"#N/A"},{"$error":"#N/A"},{"$error":"#N/A"},{"$error":"#N/A"},{"$error":"#N/A"},{"$error":"#N/A"},{"$error":"#N/A"},{"$error":"#N/A"},{"$error":"#N/A"},{"$error":"#N/A"},{"$error":"#N/A"},{"$error":"#N/A"},{"$error":"#N/A"},{"$error":"#N/A"},{"$error":"#N/A"},{"$error":"#N/A"},{"$error":"#N/A"},null,{"$error":"#N/A"},{"$error":"#N/A"},{"$error":"#N/A"},{"$error":"#N/A"},{"$error":"#N/A"},{"$error":"#N/A"},{"$error":"#N/A"},{"$error":"#N/A"},{"$error":"#N/A"},{"$error":"#N/A"},{"$error":"#N/A"},{"$error":"#N/A"},{"$error":"#N/A"},{"$error":"#N/A"},{"$error":"#N/A"},{"$error":"#N/A"},{"$error":"#N/A"},{"$error":"#N/A"},{"$error":"#N/A"},{"$error":"#N/A"},{"$error":"#N/A"},{"$error":"#N/A"},{"$error":"#N/A"},{"$error":"#N/A"},{"$error":"#N/A"},{"$error":"#N/A"},{"$error":"#N/A"},{"$error":"#N/A"},{"$error":"#N/A"},{"$error":"#N/A"},{"$error":"#N/A"},{"$error":"#N/A"},{"$error":"#N/A"},{"$error":"#N/A"},{"$error":"#N/A"},{"$error":"#N/A"},{"$error":"#N/A"},{"$error":"#N/A"},{"$error":"#N/A"},{"$error":"#N/A"},{"$error":"#N/A"},{"$error":"#N/A"},{"$error":"#N/A"},{"$error":"#N/A"},{"$error":"#N/A"},{"$error":"#N/A"},{"$error":"#N/A"},{"$error":"#N/A"},{"$error":"#N/A"},{"$error":"#N/A"},{"$error":"#N/A"},null,{"$f":"DebtServiceArray(AO25:CM25,P25,discount_rate,Q25,D25)","v":{"$error":"#VALUE!"}},{"$error":"#VALUE!"},{"$error":"#VALUE!"},{"$error":"#VALUE!"},{"$error":"#VALUE!"},{"$error":"#VALUE!"},{"$error":"#VALUE!"},{"$error":"#VALUE!"},{"$error":"#VALUE!"},{"$error":"#VALUE!"},{"$error":"#VALUE!"},{"$error":"#VALUE!"},{"$error":"#VALUE!"},{"$error":"#VALUE!"},{"$error":"#VALUE!"},{"$error":"#VALUE!"},{"$error":"#VALUE!"},{"$error":"#VALUE!"},{"$error":"#VALUE!"},{"$error":"#VALUE!"},{"$error":"#VALUE!"},{"$error":"#VALUE!"},{"$error":"#VALUE!"},{"$error":"#VALUE!"},{"$error":"#VALUE!"},{"$error":"#VALUE!"},{"$error":"#VALUE!"},{"$error":"#VALUE!"},{"$error":"#VALUE!"},{"$error":"#VALUE!"},{"$error":"#VALUE!"},{"$error":"#VALUE!"},{"$error":"#VALUE!"},{"$error":"#VALUE!"},{"$error":"#VALUE!"},{"$error":"#VALUE!"},{"$error":"#VALUE!"},{"$error":"#VALUE!"},{"$error":"#VALUE!"},{"$error":"#VALUE!"},{"$error":"#VALUE!"},{"$error":"#VALUE!"},{"$error":"#VALUE!"},{"$error":"#VALUE!"},{"$error":"#VALUE!"},{"$error":"#VALUE!"},{"$error":"#VALUE!"},{"$error":"#VALUE!"},{"$error":"#VALUE!"},{"$error":"#VALUE!"},{"$error":"#VALUE!"},null,{"$error":"#N/A"},{"$error":"#N/A"},{"$error":"#N/A"},{"$error":"#N/A"},{"$error":"#N/A"},{"$error":"#N/A"},{"$error":"#N/A"},{"$error":"#N/A"},{"$error":"#N/A"},{"$error":"#N/A"},{"$error":"#N/A"},{"$error":"#N/A"},{"$error":"#N/A"},{"$error":"#N/A"},{"$error":"#N/A"},{"$error":"#N/A"},{"$error":"#N/A"},{"$error":"#N/A"},{"$error":"#N/A"},{"$error":"#N/A"},{"$error":"#N/A"},{"$error":"#N/A"},{"$error":"#N/A"},{"$error":"#N/A"},{"$error":"#N/A"},{"$error":"#N/A"},{"$error":"#N/A"},{"$error":"#N/A"},{"$error":"#N/A"},{"$error":"#N/A"},{"$error":"#N/A"},{"$error":"#N/A"},{"$error":"#N/A"},{"$error":"#N/A"},{"$error":"#N/A"},{"$error":"#N/A"},{"$error":"#N/A"},{"$error":"#N/A"},{"$error":"#N/A"},{"$error":"#N/A"},{"$error":"#N/A"},{"$error":"#N/A"},{"$error":"#N/A"},{"$error":"#N/A"},{"$error":"#N/A"},{"$error":"#N/A"},{"$error":"#N/A"},{"$error":"#N/A"},{"$error":"#N/A"},{"$error":"#N/A"},{"$error":"#N/A"},null,{"$error":"#N/A"},{"$error":"#N/A"}]
[null,"PRE-SF-04",{"$f":"INDEX(tbl_predefined_measures[MEASURE],MATCH($B26&regionid,tbl_predefined_measures[ID&REGION],0))","v":{"$error":"#N/A"}},"N",null,null,null,null,null,null,null,{"$f":"INDEX(tbl_predefined_measures[ACCOUNTING_UNIT],MATCH($B26&regionid,tbl_predefined_measures[ID&REGION],0))","v":{"$error":"#N/A"}},{"$f":"INDEX(tbl_predefined_measures[DELIVERY],MATCH($B26&regionid,tbl_predefined_measures[ID&REGION],0))","v":{"$error":"#N/A"}},null,{"$f":"INDEX(tbl_predefined_measures[COST_OM],MATCH($B26&regionid,tbl_predefined_measures[ID&REGION],0))","v":{"$error":"#N/A"}},{"$f":"INDEX(tbl_predefined_measures[COST_CAPITAL],MATCH($B26&regionid,tbl_predefined_measures[ID&REGION],0))","v":{"$error":"#N/A"}},null,null,{"$f":"INDEX(tbl_predefined_measures[SAVE_GPD],MATCH($B26&regionid,tbl_predefined_measures[ID&REGION],0))","v":{"$error":"#N/A"}},{"$f":"INDEX(tbl_predefined_measures[FREERIDE_PCT],MATCH($B26&regionid,tbl_predefined_measures[ID&REGION],0))","v":{"$error":"#N/A"}},{"$f":"INDEX(tbl_predefined_measures[DECAY_PCT],MATCH($B26&regionid,tbl_predefined_measures[ID&REGION],0))","v":{"$error":"#N/A"}},{"$f":"INDEX(tbl_predefined_measures[PLUMBCODE_YN],MATCH($B26&regionid,tbl_predefined_measures[ID&REGION],0))","v":{"$error":"#N/A"}},{"$f":"INDEX(tbl_predefined_measures[NRR_PCT],MATCH($B26&regionid,tbl_predefined_measures[ID&REGION],0))","v":{"$error":"#N/A"}},{"$f":"IF(V26=\"N\",INDEX(tbl_predefined_measures[LIFE_YRS],MATCH($B26&regionid,tbl_predefined_measures[ID&REGION],0)),99)","v":{"$error":"#N/A"}},null,{"$error":"#N/A"},{"$error":"#N/A"},null,{"$error":"#N/A"},{"$error":"#N/A"},{"$error":"#N/A"},{"$error":"#N/A"},{"$error":"#N/A"},null,{"$f":"F26/(AVERAGE(IF(baseline_selection=1,'1. Baseline Demand Projection'!E$26:F$26,'1. Baseline Demand Projection'!N$26:O$26))*sfwasherperhhld)","v":{"$error":"#DIV/0!"}},{"$f":"G26/(AVERAGE(IF(baseline_selection=1,'1. Baseline Demand Projection'!F$26:G$26,'1. Baseline Demand Projection'!O$26:P$26))*sfwasherperhhld)","v":{"$error":"#DIV/0!"}},{"$f":"H26/(AVERAGE(IF(baseline_selection=1,'1. Baseline Demand Projection'!G$26:H$26,'1. Baseline Demand Projection'!P$26:Q$26))*sfwasherperhhld)","v":{"$error":"#DIV/0!"}},{"$f":"I26/(AVERAGE(IF(baseline_selection=1,'1. Baseline Demand Projection'!H$26:I$26,'1. Baseline Demand Projection'!Q$26:R$26))*sfwasherperhhld)","v":{"$error":"#DIV/0!"}},{"$f":"J26/(AVERAGE(IF(baseline_selection=1,'1. Baseline Demand Projection'!I$26:J$26,'1. Baseline Demand Projection'!R$26:S$26))*sfwasherperhhld)","v":{"$error":"#DIV/0!"}},null,0,0,0,0,0,0,0,0,0,0,0,0,0,0,0,0,0,0,0,0,0,0,0,0,0,0,0,0,0,0,0,0,0,0,0,0,0,0,0,0,0,0,0,0,0,0,0,0,0,0,0,null,{"$f":"MeasureSavingsArray(AO26:CM26,S26,T26,U26,W26,X26,D26)","v":{"$error":"#VALUE!"}},{"$error":"#VALUE!"},{"$error":"#VALUE!"},{"$error":"#VALUE!"},{"$error":"#VALUE!"},{"$error":"#VALUE!"},{"$error":"#VALUE!"},{"$error":"#VALUE!"},{"$error":"#VALUE!"},{"$error":"#VALUE!"},{"$error":"#VALUE!"},{"$error":"#VALUE!"},{"$error":"#VALUE!"},{"$error":"#VALUE!"},{"$error":"#VALUE!"},{"$error":"#VALUE!"},{"$error":"#VALUE!"},{"$error":"#VALUE!"},{"$error":"#VALUE!"},{"$error":"#VALUE!"},{"$error":"#VALUE!"},{"$error":"#VALUE!"},{"$error":"#VALUE!"},{"$error":"#VALUE!"},{"$error":"#VALUE!"},{"$error":"#VALUE!"},{"$error":"#VALUE!"},{"$error":"#VALUE!"},{"$error":"#VALUE!"},{"$error":"#VALUE!"},{"$error":"#VALUE!"},{"$error":"#VALUE!"},{"$error":"#VALUE!"},{"$error":"#VALUE!"},{"$error":"#VALUE!"},{"$error":"#VALUE!"},{"$error":"#VALUE!"},{"$error":"#VALUE!"},{"$error":"#VALUE!"},{"$error":"#VALUE!"},{"$error":"#VALUE!"},{"$error":"#VALUE!"},{"$error":"#VALUE!"},{"$error":"#VALUE!"},{"$error":"#VALUE!"},{"$error":"#VALUE!"},{"$error":"#VALUE!"},{"$error":"#VALUE!"},{"$error":"#VALUE!"},{"$error":"#VALUE!"},{"$error":"#VALUE!"},{"$error":"#VALUE!"},null,{"$error":"#N/A"},{"$error":"#N/A"},{"$error":"#N/A"},{"$error":"#N/A"},{"$error":"#N/A"},{"$error":"#N/A"},{"$error":"#N/A"},{"$error":"#N/A"},{"$error":"#N/A"},{"$error":"#N/A"},{"$error":"#N/A"},{"$error":"#N/A"},{"$error":"#N/A"},{"$error":"#N/A"},{"$error":"#N/A"},{"$error":"#N/A"},{"$error":"#N/A"},{"$error":"#N/A"},{"$error":"#N/A"},{"$error":"#N/A"},{"$error":"#N/A"},{"$error":"#N/A"},{"$error":"#N/A"},{"$error":"#N/A"},{"$error":"#N/A"},{"$error":"#N/A"},{"$error":"#N/A"},{"$error":"#N/A"},{"$error":"#N/A"},{"$error":"#N/A"},{"$error":"#N/A"},{"$error":"#N/A"},{"$error":"#N/A"},{"$error":"#N/A"},{"$error":"#N/A"},{"$error":"#N/A"},{"$error":"#N/A"},{"$error":"#N/A"},{"$error":"#N/A"},{"$error":"#N/A"},{"$error":"#N/A"},{"$error":"#N/A"},{"$error":"#N/A"},{"$error":"#N/A"},{"$error":"#N/A"},{"$error":"#N/A"},{"$error":"#N/A"},{"$error":"#N/A"},{"$error":"#N/A"},{"$error":"#N/A"},{"$error":"#N/A"},null,{"$error":"#N/A"},{"$error":"#N/A"},{"$error":"#N/A"},{"$error":"#N/A"},{"$error":"#N/A"},{"$error":"#N/A"},{"$error":"#N/A"},{"$error":"#N/A"},{"$error":"#N/A"},{"$error":"#N/A"},{"$error":"#N/A"},{"$error":"#N/A"},{"$error":"#N/A"},{"$error":"#N/A"},{"$error":"#N/A"},{"$error":"#N/A"},{"$error":"#N/A"},{"$error":"#N/A"},{"$error":"#N/A"},{"$error":"#N/A"},{"$error":"#N/A"},{"$error":"#N/A"},{"$error":"#N/A"},{"$error":"#N/A"},{"$error":"#N/A"},{"$error":"#N/A"},{"$error":"#N/A"},{"$error":"#N/A"},{"$error":"#N/A"},{"$error":"#N/A"},{"$error":"#N/A"},{"$error":"#N/A"},{"$error":"#N/A"},{"$error":"#N/A"},{"$error":"#N/A"},{"$error":"#N/A"},{"$error":"#N/A"},{"$error":"#N/A"},{"$error":"#N/A"},{"$error":"#N/A"},{"$error":"#N/A"},{"$error":"#N/A"},{"$error":"#N/A"},{"$error":"#N/A"},{"$error":"#N/A"},{"$error":"#N/A"},{"$error":"#N/A"},{"$error":"#N/A"},{"$error":"#N/A"},{"$error":"#N/A"},{"$error":"#N/A"},null,{"$f":"DebtServiceArray(AO26:CM26,P26,discount_rate,Q26,D26)","v":{"$error":"#VALUE!"}},{"$error":"#VALUE!"},{"$error":"#VALUE!"},{"$error":"#VALUE!"},{"$error":"#VALUE!"},{"$error":"#VALUE!"},{"$error":"#VALUE!"},{"$error":"#VALUE!"},{"$error":"#VALUE!"},{"$error":"#VALUE!"},{"$error":"#VALUE!"},{"$error":"#VALUE!"},{"$error":"#VALUE!"},{"$error":"#VALUE!"},{"$error":"#VALUE!"},{"$error":"#VALUE!"},{"$error":"#VALUE!"},{"$error":"#VALUE!"},{"$error":"#VALUE!"},{"$error":"#VALUE!"},{"$error":"#VALUE!"},{"$error":"#VALUE!"},{"$error":"#VALUE!"},{"$error":"#VALUE!"},{"$error":"#VALUE!"},{"$error":"#VALUE!"},{"$error":"#VALUE!"},{"$error":"#VALUE!"},{"$error":"#VALUE!"},{"$error":"#VALUE!"},{"$error":"#VALUE!"},{"$error":"#VALUE!"},{"$error":"#VALUE!"},{"$error":"#VALUE!"},{"$error":"#VALUE!"},{"$error":"#VALUE!"},{"$error":"#VALUE!"},{"$error":"#VALUE!"},{"$error":"#VALUE!"},{"$error":"#VALUE!"},{"$error":"#VALUE!"},{"$error":"#VALUE!"},{"$error":"#VALUE!"},{"$error":"#VALUE!"},{"$error":"#VALUE!"},{"$error":"#VALUE!"},{"$error":"#VALUE!"},{"$error":"#VALUE!"},{"$error":"#VALUE!"},{"$error":"#VALUE!"},{"$error":"#VALUE!"},null,{"$error":"#N/A"},{"$error":"#N/A"},{"$error":"#N/A"},{"$error":"#N/A"},{"$error":"#N/A"},{"$error":"#N/A"},{"$error":"#N/A"},{"$error":"#N/A"},{"$error":"#N/A"},{"$error":"#N/A"},{"$error":"#N/A"},{"$error":"#N/A"},{"$error":"#N/A"},{"$error":"#N/A"},{"$error":"#N/A"},{"$error":"#N/A"},{"$error":"#N/A"},{"$error":"#N/A"},{"$error":"#N/A"},{"$error":"#N/A"},{"$error":"#N/A"},{"$error":"#N/A"},{"$error":"#N/A"},{"$error":"#N/A"},{"$error":"#N/A"},{"$error":"#N/A"},{"$error":"#N/A"},{"$error":"#N/A"},{"$error":"#N/A"},{"$error":"#N/A"},{"$error":"#N/A"},{"$error":"#N/A"},{"$error":"#N/A"},{"$error":"#N/A"},{"$error":"#N/A"},{"$error":"#N/A"},{"$error":"#N/A"},{"$error":"#N/A"},{"$error":"#N/A"},{"$error":"#N/A"},{"$error":"#N/A"},{"$error":"#N/A"},{"$error":"#N/A"},{"$error":"#N/A"},{"$error":"#N/A"},{"$error":"#N/A"},{"$error":"#N/A"},{"$error":"#N/A"},{"$error":"#N/A"},{"$error":"#N/A"},{"$error":"#N/A"},null,{"$error":"#N/A"},{"$error":"#N/A"}]
[null,"PRE-SF-05",{"$f":"INDEX(tbl_predefined_measures[MEASURE],MATCH($B27&regionid,tbl_predefined_measures[ID&REGION],0))","v":{"$error":"#N/A"}},"N",null,null,null,null,null,null,null,{"$f":"INDEX(tbl_predefined_measures[ACCOUNTING_UNIT],MATCH($B27&regionid,tbl_predefined_measures[ID&REGION],0))","v":{"$error":"#N/A"}},{"$f":"INDEX(tbl_predefined_measures[DELIVERY],MATCH($B27&regionid,tbl_predefined_measures[ID&REGION],0))","v":{"$error":"#N/A"}},null,{"$f":"INDEX(tbl_predefined_measures[COST_OM],MATCH($B27&regionid,tbl_predefined_measures[ID&REGION],0))","v":{"$error":"#N/A"}},{"$f":"INDEX(tbl_predefined_measures[COST_CAPITAL],MATCH($B27&regionid,tbl_predefined_measures[ID&REGION],0))","v":{"$error":"#N/A"}},null,null,{"$f":"INDEX(tbl_predefined_measures[SAVE_GPD],MATCH($B27&regionid,tbl_predefined_measures[ID&REGION],0))","v":{"$error":"#N/A"}},{"$f":"INDEX(tbl_predefined_measures[FREERIDE_PCT],MATCH($B27&regionid,tbl_predefined_measures[ID&REGION],0))","v":{"$error":"#N/A"}},{"$f":"INDEX(tbl_predefined_measures[DECAY_PCT],MATCH($B27&regionid,tbl_predefined_measures[ID&REGION],0))","v":{"$error":"#N/A"}},{"$f":"INDEX(tbl_predefined_measures[PLUMBCODE_YN],MATCH($B27&regionid,tbl_predefined_measures[ID&REGION],0))","v":{"$error":"#N/A"}},{"$f":"INDEX(tbl_predefined_measures[NRR_PCT],MATCH($B27&regionid,tbl_predefined_measures[ID&REGION],0))","v":{"$error":"#N/A"}},{"$f":"IF(V27=\"N\",INDEX(tbl_predefined_measures[LIFE_YRS],MATCH($B27&regionid,tbl_predefined_measures[ID&REGION],0)),99)","v":{"$error":"#N/A"}},null,{"$error":"#N/A"},{"$error":"#N/A"},null,{"$error":"#N/A"},{"$error":"#N/A"},{"$error":"#N/A"},{"$error":"#N/A"},{"$error":"#N/A"},null,{"$f":"F27/AVERAGE(IF(baseline_selection=1,'1. Baseline Demand Projection'!E$26:F$26,'1. Baseline Demand Projection'!N$26:O$26))","v":{"$error":"#DIV/0!"}},{"$f":"G27/AVERAGE(IF(baseline_selection=1,'1. Baseline Demand Projection'!F$26:G$26,'1. Baseline Demand Projection'!O$26:P$26))","v":{"$error":"#DIV/0!"}},{"$f":"H27/AVERAGE(IF(baseline_selection=1,'1. Baseline Demand Projection'!G$26:H$26,'1. Baseline Demand Projection'!P$26:Q$26))","v":{"$error":"#DIV/0!"}},{"$f":"I27/AVERAGE(IF(baseline_selection=1,'1. Baseline Demand Projection'!H$26:I$26,'1. Baseline Demand Projection'!Q$26:R$26))","v":{"$error":"#DIV/0!"}},{"$f":"J27/AVERAGE(IF(baseline_selection=1,'1. Baseline Demand Projection'!I$26:J$26,'1. Baseline Demand Projection'!R$26:S$26))","v":{"$error":"#DIV/0!"}},null,0,0,0,0,0,0,0,0,0,0,0,0,0,0,0,0,0,0,0,0,0,0,0,0,0,0,0,0,0,0,0,0,0,0,0,0,0,0,0,0,0,0,0,0,0,0,0,0,0,0,0,null,{"$f":"MeasureSavingsArray(AO27:CM27,S27,T27,U27,W27,X27,D27)","v":{"$error":"#VALUE!"}},{"$error":"#VALUE!"},{"$error":"#VALUE!"},{"$error":"#VALUE!"},{"$error":"#VALUE!"},{"$error":"#VALUE!"},{"$error":"#VALUE!"},{"$error":"#VALUE!"},{"$error":"#VALUE!"},{"$error":"#VALUE!"},{"$error":"#VALUE!"},{"$error":"#VALUE!"},{"$error":"#VALUE!"},{"$error":"#VALUE!"},{"$error":"#VALUE!"},{"$error":"#VALUE!"},{"$error":"#VALUE!"},{"$error":"#VALUE!"},{"$error":"#VALUE!"},{"$error":"#VALUE!"},{"$error":"#VALUE!"},{"$error":"#VALUE!"},{"$error":"#VALUE!"},{"$error":"#VALUE!"},{"$error":"#VALUE!"},{"$error":"#VALUE!"},{"$error":"#VALUE!"},{"$error":"#VALUE!"},{"$error":"#VALUE!"},{"$error":"#VALUE!"},{"$error":"#VALUE!"},{"$error":"#VALUE!"},{"$error":"#VALUE!"},{"$error":"#VALUE!"},{"$error":"#VALUE!"},{"$error":"#VALUE!"},{"$error":"#VALUE!"},{"$error":"#VALUE!"},{"$error":"#VALUE!"},{"$error":"#VALUE!"},{"$error":"#VALUE!"},{"$error":"#VALUE!"},{"$error":"#VALUE!"},{"$error":"#VALUE!"},{"$error":"#VALUE!"},{"$error":"#VALUE!"},{"$error":"#VALUE!"},{"$error":"#VALUE!"},{"$error":"#VALUE!"},{"$error":"#VALUE!"},{"$error":"#VALUE!"},{"$error":"#VALUE!"},null,{"$error":"#N/A"},{"$error":"#N/A"},{"$error":"#N/A"},{"$error":"#N/A"},{"$error":"#N/A"},{"$error":"#N/A"},{"$error":"#N/A"},{"$error":"#N/A"},{"$error":"#N/A"},{"$error":"#N/A"},{"$error":"#N/A"},{"$error":"#N/A"},{"$error":"#N/A"},{"$error":"#N/A"},{"$error":"#N/A"},{"$error":"#N/A"},{"$error":"#N/A"},{"$error":"#N/A"},{"$error":"#N/A"},{"$error":"#N/A"},{"$error":"#N/A"},{"$error":"#N/A"},{"$error":"#N/A"},{"$error":"#N/A"},{"$error":"#N/A"},{"$error":"#N/A"},{"$error":"#N/A"},{"$error":"#N/A"},{"$error":"#N/A"},{"$error":"#N/A"},{"$error":"#N/A"},{"$error":"#N/A"},{"$error":"#N/A"},{"$error":"#N/A"},{"$error":"#N/A"},{"$error":"#N/A"},{"$error":"#N/A"},{"$error":"#N/A"},{"$error":"#N/A"},{"$error":"#N/A"},{"$error":"#N/A"},{"$error":"#N/A"},{"$error":"#N/A"},{"$error":"#N/A"},{"$error":"#N/A"},{"$error":"#N/A"},{"$error":"#N/A"},{"$error":"#N/A"},{"$error":"#N/A"},{"$error":"#N/A"},{"$error":"#N/A"},null,{"$error":"#N/A"},{"$error":"#N/A"},{"$error":"#N/A"},{"$error":"#N/A"},{"$error":"#N/A"},{"$error":"#N/A"},{"$error":"#N/A"},{"$error":"#N/A"},{"$error":"#N/A"},{"$error":"#N/A"},{"$error":"#N/A"},{"$error":"#N/A"},{"$error":"#N/A"},{"$error":"#N/A"},{"$error":"#N/A"},{"$error":"#N/A"},{"$error":"#N/A"},{"$error":"#N/A"},{"$error":"#N/A"},{"$error":"#N/A"},{"$error":"#N/A"},{"$error":"#N/A"},{"$error":"#N/A"},{"$error":"#N/A"},{"$error":"#N/A"},{"$error":"#N/A"},{"$error":"#N/A"},{"$error":"#N/A"},{"$error":"#N/A"},{"$error":"#N/A"},{"$error":"#N/A"},{"$error":"#N/A"},{"$error":"#N/A"},{"$error":"#N/A"},{"$error":"#N/A"},{"$error":"#N/A"},{"$error":"#N/A"},{"$error":"#N/A"},{"$error":"#N/A"},{"$error":"#N/A"},{"$error":"#N/A"},{"$error":"#N/A"},{"$error":"#N/A"},{"$error":"#N/A"},{"$error":"#N/A"},{"$error":"#N/A"},{"$error":"#N/A"},{"$error":"#N/A"},{"$error":"#N/A"},{"$error":"#N/A"},{"$error":"#N/A"},null,{"$f":"DebtServiceArray(AO27:CM27,P27,discount_rate,Q27,D27)","v":{"$error":"#VALUE!"}},{"$error":"#VALUE!"},{"$error":"#VALUE!"},{"$error":"#VALUE!"},{"$error":"#VALUE!"},{"$error":"#VALUE!"},{"$error":"#VALUE!"},{"$error":"#VALUE!"},{"$error":"#VALUE!"},{"$error":"#VALUE!"},{"$error":"#VALUE!"},{"$error":"#VALUE!"},{"$error":"#VALUE!"},{"$error":"#VALUE!"},{"$error":"#VALUE!"},{"$error":"#VALUE!"},{"$error":"#VALUE!"},{"$error":"#VALUE!"},{"$error":"#VALUE!"},{"$error":"#VALUE!"},{"$error":"#VALUE!"},{"$error":"#VALUE!"},{"$error":"#VALUE!"},{"$error":"#VALUE!"},{"$error":"#VALUE!"},{"$error":"#VALUE!"},{"$error":"#VALUE!"},{"$error":"#VALUE!"},{"$error":"#VALUE!"},{"$error":"#VALUE!"},{"$error":"#VALUE!"},{"$error":"#VALUE!"},{"$error":"#VALUE!"},{"$error":"#VALUE!"},{"$error":"#VALUE!"},{"$error":"#VALUE!"},{"$error":"#VALUE!"},{"$error":"#VALUE!"},{"$error":"#VALUE!"},{"$error":"#VALUE!"},{"$error":"#VALUE!"},{"$error":"#VALUE!"},{"$error":"#VALUE!"},{"$error":"#VALUE!"},{"$error":"#VALUE!"},{"$error":"#VALUE!"},{"$error":"#VALUE!"},{"$error":"#VALUE!"},{"$error":"#VALUE!"},{"$error":"#VALUE!"},{"$error":"#VALUE!"},null,{"$error":"#N/A"},{"$error":"#N/A"},{"$error":"#N/A"},{"$error":"#N/A"},{"$error":"#N/A"},{"$error":"#N/A"},{"$error":"#N/A"},{"$error":"#N/A"},{"$error":"#N/A"},{"$error":"#N/A"},{"$error":"#N/A"},{"$error":"#N/A"},{"$error":"#N/A"},{"$error":"#N/A"},{"$error":"#N/A"},{"$error":"#N/A"},{"$error":"#N/A"},{"$error":"#N/A"},{"$error":"#N/A"},{"$error":"#N/A"},{"$error":"#N/A"},{"$error":"#N/A"},{"$error":"#N/A"},{"$error":"#N/A"},{"$error":"#N/A"},{"$error":"#N/A"},{"$error":"#N/A"},{"$error":"#N/A"},{"$error":"#N/A"},{"$error":"#N/A"},{"$error":"#N/A"},{"$error":"#N/A"},{"$error":"#N/A"},{"$error":"#N/A"},{"$error":"#N/A"},{"$error":"#N/A"},{"$error":"#N/A"},{"$error":"#N/A"},{"$error":"#N/A"},{"$error":"#N/A"},{"$error":"#N/A"},{"$error":"#N/A"},{"$error":"#N/A"},{"$error":"#N/A"},{"$error":"#N/A"},{"$error":"#N/A"},{"$error":"#N/A"},{"$error":"#N/A"},{"$error":"#N/A"},{"$error":"#N/A"},{"$error":"#N/A"},null,{"$error":"#N/A"},{"$error":"#N/A"}]
[null,"PRE-SF-06",{"$f":"INDEX(tbl_predefined_measures[MEASURE],MATCH($B28&regionid,tbl_predefined_measures[ID&REGION],0))","v":{"$error":"#N/A"}},"N",null,null,null,null,null,null,null,{"$f":"INDEX(tbl_predefined_measures[ACCOUNTING_UNIT],MATCH($B28&regionid,tbl_predefined_measures[ID&REGION],0))","v":{"$error":"#N/A"}},{"$f":"INDEX(tbl_predefined_measures[DELIVERY],MATCH($B28&regionid,tbl_predefined_measures[ID&REGION],0))","v":{"$error":"#N/A"}},null,{"$f":"INDEX(tbl_predefined_measures[COST_OM],MATCH($B28&regionid,tbl_predefined_measures[ID&REGION],0))","v":{"$error":"#N/A"}},{"$f":"INDEX(tbl_predefined_measures[COST_CAPITAL],MATCH($B28&regionid,tbl_predefined_measures[ID&REGION],0))","v":{"$error":"#N/A"}},null,null,{"$f":"INDEX(tbl_predefined_measures[SAVE_GPD],MATCH($B28&regionid,tbl_predefined_measures[ID&REGION],0))","v":{"$error":"#N/A"}},{"$f":"INDEX(tbl_predefined_measures[FREERIDE_PCT],MATCH($B28&regionid,tbl_predefined_measures[ID&REGION],0))","v":{"$error":"#N/A"}},{"$f":"INDEX(tbl_predefined_measures[DECAY_PCT],MATCH($B28&regionid,tbl_predefined_measures[ID&REGION],0))","v":{"$error":"#N/A"}},{"$f":"INDEX(tbl_predefined_measures[PLUMBCODE_YN],MATCH($B28&regionid,tbl_predefined_measures[ID&REGION],0))","v":{"$error":"#N/A"}},{"$f":"INDEX(tbl_predefined_measures[NRR_PCT],MATCH($B28&regionid,tbl_predefined_measures[ID&REGION],0))","v":{"$error":"#N/A"}},{"$f":"IF(V28=\"N\",INDEX(tbl_predefined_measures[LIFE_YRS],MATCH($B28&regionid,tbl_predefined_measures[ID&REGION],0)),99)","v":{"$error":"#N/A"}},null,{"$error":"#N/A"},{"$error":"#N/A"},null,{"$error":"#N/A"},{"$error":"#N/A"},{"$error":"#N/A"},{"$error":"#N/A"},{"$error":"#N/A"},null,{"$f":"F28/AVERAGE(IF(baseline_selection=1,'1. Baseline Demand Projection'!E$26:F$26,'1. Baseline Demand Projection'!N$26:O$26))","v":{"$error":"#DIV/0!"}},{"$f":"G28/AVERAGE(IF(baseline_selection=1,'1. Baseline Demand Projection'!F$26:G$26,'1. Baseline Demand Projection'!O$26:P$26))","v":{"$error":"#DIV/0!"}},{"$f":"H28/AVERAGE(IF(baseline_selection=1,'1. Baseline Demand Projection'!G$26:H$26,'1. Baseline Demand Projection'!P$26:Q$26))","v":{"$error":"#DIV/0!"}},{"$f":"I28/AVERAGE(IF(baseline_selection=1,'1. Baseline Demand Projection'!H$26:I$26,'1. Baseline Demand Projection'!Q$26:R$26))","v":{"$error":"#DIV/0!"}},{"$f":"J28/AVERAGE(IF(baseline_selection=1,'1. Baseline Demand Projection'!I$26:J$26,'1. Baseline Demand Projection'!R$26:S$26))","v":{"$error":"#DIV/0!"}},null,0,0,0,0,0,0,0,0,0,0,0,0,0,0,0,0,0,0,0,0,0,0,0,0,0,0,0,0,0,0,0,0,0,0,0,0,0,0,0,0,0,0,0,0,0,0,0,0,0,0,0,null,{"$f":"MeasureSavingsArray(AO28:CM28,S28,T28,U28,W28,X28,D28)","v":{"$error":"#VALUE!"}},{"$error":"#VALUE!"},{"$error":"#VALUE!"},{"$error":"#VALUE!"},{"$error":"#VALUE!"},{"$error":"#VALUE!"},{"$error":"#VALUE!"},{"$error":"#VALUE!"},{"$error":"#VALUE!"},{"$error":"#VALUE!"},{"$error":"#VALUE!"},{"$error":"#VALUE!"},{"$error":"#VALUE!"},{"$error":"#VALUE!"},{"$error":"#VALUE!"},{"$error":"#VALUE!"},{"$error":"#VALUE!"},{"$error":"#VALUE!"},{"$error":"#VALUE!"},{"$error":"#VALUE!"},{"$error":"#VALUE!"},{"$error":"#VALUE!"},{"$error":"#VALUE!"},{"$error":"#VALUE!"},{"$error":"#VALUE!"},{"$error":"#VALUE!"},{"$error":"#VALUE!"},{"$error":"#VALUE!"},{"$error":"#VALUE!"},{"$error":"#VALUE!"},{"$error":"#VALUE!"},{"$error":"#VALUE!"},{"$error":"#VALUE!"},{"$error":"#VALUE!"},{"$error":"#VALUE!"},{"$error":"#VALUE!"},{"$error":"#VALUE!"},{"$error":"#VALUE!"},{"$error":"#VALUE!"},{"$error":"#VALUE!"},{"$error":"#VALUE!"},{"$error":"#VALUE!"},{"$error":"#VALUE!"},{"$error":"#VALUE!"},{"$error":"#VALUE!"},{"$error":"#VALUE!"},{"$error":"#VALUE!"},{"$error":"#VALUE!"},{"$error":"#VALUE!"},{"$error":"#VALUE!"},{"$error":"#VALUE!"},{"$error":"#VALUE!"},null,{"$error":"#N/A"},{"$error":"#N/A"},{"$error":"#N/A"},{"$error":"#N/A"},{"$error":"#N/A"},{"$error":"#N/A"},{"$error":"#N/A"},{"$error":"#N/A"},{"$error":"#N/A"},{"$error":"#N/A"},{"$error":"#N/A"},{"$error":"#N/A"},{"$error":"#N/A"},{"$error":"#N/A"},{"$error":"#N/A"},{"$error":"#N/A"},{"$error":"#N/A"},{"$error":"#N/A"},{"$error":"#N/A"},{"$error":"#N/A"},{"$error":"#N/A"},{"$error":"#N/A"},{"$error":"#N/A"},{"$error":"#N/A"},{"$error":"#N/A"},{"$error":"#N/A"},{"$error":"#N/A"},{"$error":"#N/A"},{"$error":"#N/A"},{"$error":"#N/A"},{"$error":"#N/A"},{"$error":"#N/A"},{"$error":"#N/A"},{"$error":"#N/A"},{"$error":"#N/A"},{"$error":"#N/A"},{"$error":"#N/A"},{"$error":"#N/A"},{"$error":"#N/A"},{"$error":"#N/A"},{"$error":"#N/A"},{"$error":"#N/A"},{"$error":"#N/A"},{"$error":"#N/A"},{"$error":"#N/A"},{"$error":"#N/A"},{"$error":"#N/A"},{"$error":"#N/A"},{"$error":"#N/A"},{"$error":"#N/A"},{"$error":"#N/A"},null,{"$error":"#N/A"},{"$error":"#N/A"},{"$error":"#N/A"},{"$error":"#N/A"},{"$error":"#N/A"},{"$error":"#N/A"},{"$error":"#N/A"},{"$error":"#N/A"},{"$error":"#N/A"},{"$error":"#N/A"},{"$error":"#N/A"},{"$error":"#N/A"},{"$error":"#N/A"},{"$error":"#N/A"},{"$error":"#N/A"},{"$error":"#N/A"},{"$error":"#N/A"},{"$error":"#N/A"},{"$error":"#N/A"},{"$error":"#N/A"},{"$error":"#N/A"},{"$error":"#N/A"},{"$error":"#N/A"},{"$error":"#N/A"},{"$error":"#N/A"},{"$error":"#N/A"},{"$error":"#N/A"},{"$error":"#N/A"},{"$error":"#N/A"},{"$error":"#N/A"},{"$error":"#N/A"},{"$error":"#N/A"},{"$error":"#N/A"},{"$error":"#N/A"},{"$error":"#N/A"},{"$error":"#N/A"},{"$error":"#N/A"},{"$error":"#N/A"},{"$error":"#N/A"},{"$error":"#N/A"},{"$error":"#N/A"},{"$error":"#N/A"},{"$error":"#N/A"},{"$error":"#N/A"},{"$error":"#N/A"},{"$error":"#N/A"},{"$error":"#N/A"},{"$error":"#N/A"},{"$error":"#N/A"},{"$error":"#N/A"},{"$error":"#N/A"},null,{"$f":"DebtServiceArray(AO28:CM28,P28,discount_rate,Q28,D28)","v":{"$error":"#VALUE!"}},{"$error":"#VALUE!"},{"$error":"#VALUE!"},{"$error":"#VALUE!"},{"$error":"#VALUE!"},{"$error":"#VALUE!"},{"$error":"#VALUE!"},{"$error":"#VALUE!"},{"$error":"#VALUE!"},{"$error":"#VALUE!"},{"$error":"#VALUE!"},{"$error":"#VALUE!"},{"$error":"#VALUE!"},{"$error":"#VALUE!"},{"$error":"#VALUE!"},{"$error":"#VALUE!"},{"$error":"#VALUE!"},{"$error":"#VALUE!"},{"$error":"#VALUE!"},{"$error":"#VALUE!"},{"$error":"#VALUE!"},{"$error":"#VALUE!"},{"$error":"#VALUE!"},{"$error":"#VALUE!"},{"$error":"#VALUE!"},{"$error":"#VALUE!"},{"$error":"#VALUE!"},{"$error":"#VALUE!"},{"$error":"#VALUE!"},{"$error":"#VALUE!"},{"$error":"#VALUE!"},{"$error":"#VALUE!"},{"$error":"#VALUE!"},{"$error":"#VALUE!"},{"$error":"#VALUE!"},{"$error":"#VALUE!"},{"$error":"#VALUE!"},{"$error":"#VALUE!"},{"$error":"#VALUE!"},{"$error":"#VALUE!"},{"$error":"#VALUE!"},{"$error":"#VALUE!"},{"$error":"#VALUE!"},{"$error":"#VALUE!"},{"$error":"#VALUE!"},{"$error":"#VALUE!"},{"$error":"#VALUE!"},{"$error":"#VALUE!"},{"$error":"#VALUE!"},{"$error":"#VALUE!"},{"$error":"#VALUE!"},null,{"$error":"#N/A"},{"$error":"#N/A"},{"$error":"#N/A"},{"$error":"#N/A"},{"$error":"#N/A"},{"$error":"#N/A"},{"$error":"#N/A"},{"$error":"#N/A"},{"$error":"#N/A"},{"$error":"#N/A"},{"$error":"#N/A"},{"$error":"#N/A"},{"$error":"#N/A"},{"$error":"#N/A"},{"$error":"#N/A"},{"$error":"#N/A"},{"$error":"#N/A"},{"$error":"#N/A"},{"$error":"#N/A"},{"$error":"#N/A"},{"$error":"#N/A"},{"$error":"#N/A"},{"$error":"#N/A"},{"$error":"#N/A"},{"$error":"#N/A"},{"$error":"#N/A"},{"$error":"#N/A"},{"$error":"#N/A"},{"$error":"#N/A"},{"$error":"#N/A"},{"$error":"#N/A"},{"$error":"#N/A"},{"$error":"#N/A"},{"$error":"#N/A"},{"$error":"#N/A"},{"$error":"#N/A"},{"$error":"#N/A"},{"$error":"#N/A"},{"$error":"#N/A"},{"$error":"#N/A"},{"$error":"#N/A"},{"$error":"#N/A"},{"$error":"#N/A"},{"$error":"#N/A"},{"$error":"#N/A"},{"$error":"#N/A"},{"$error":"#N/A"},{"$error":"#N/A"},{"$error":"#N/A"},{"$error":"#N/A"},{"$error":"#N/A"},null,{"$error":"#N/A"},{"$error":"#N/A"}]
[null,"PRE-SF-07",{"$f":"INDEX(tbl_predefined_measures[MEASURE],MATCH($B29&regionid,tbl_predefined_measures[ID&REGION],0))","v":{"$error":"#N/A"}},"N",null,null,null,null,null,null,null,{"$f":"INDEX(tbl_predefined_measures[ACCOUNTING_UNIT],MATCH($B29&regionid,tbl_predefined_measures[ID&REGION],0))","v":{"$error":"#N/A"}},{"$f":"INDEX(tbl_predefined_measures[DELIVERY],MATCH($B29&regionid,tbl_predefined_measures[ID&REGION],0))","v":{"$error":"#N/A"}},null,{"$f":"INDEX(tbl_predefined_measures[COST_OM],MATCH($B29&regionid,tbl_predefined_measures[ID&REGION],0))","v":{"$error":"#N/A"}},{"$f":"INDEX(tbl_predefined_measures[COST_CAPITAL],MATCH($B29&regionid,tbl_predefined_measures[ID&REGION],0))","v":{"$error":"#N/A"}},null,null,{"$f":"INDEX(tbl_predefined_measures[SAVE_GPD],MATCH($B29&regionid,tbl_predefined_measures[ID&REGION],0))","v":{"$error":"#N/A"}},{"$f":"INDEX(tbl_predefined_measures[FREERIDE_PCT],MATCH($B29&regionid,tbl_predefined_measures[ID&REGION],0))","v":{"$error":"#N/A"}},{"$f":"INDEX(tbl_predefined_measures[DECAY_PCT],MATCH($B29&regionid,tbl_predefined_measures[ID&REGION],0))","v":{"$error":"#N/A"}},{"$f":"INDEX(tbl_predefined_measures[PLUMBCODE_YN],MATCH($B29&regionid,tbl_predefined_measures[ID&REGION],0))","v":{"$error":"#N/A"}},{"$f":"INDEX(tbl_predefined_measures[NRR_PCT],MATCH($B29&regionid,tbl_predefined_measures[ID&REGION],0))","v":{"$error":"#N/A"}},{"$f":"IF(V29=\"N\",INDEX(tbl_predefined_measures[LIFE_YRS],MATCH($B29&regionid,tbl_predefined_measures[ID&REGION],0)),99)","v":{"$error":"#N/A"}},null,{"$error":"#N/A"},{"$error":"#N/A"},null,{"$error":"#N/A"},{"$error":"#N/A"},{"$error":"#N/A"},{"$error":"#N/A"},{"$error":"#N/A"},null,{"$f":"F29/AVERAGE(IF(baseline_selection=1,'1. Baseline Demand Projection'!E$26:F$26,'1. Baseline Demand Projection'!N$26:O$26))","v":{"$error":"#DIV/0!"}},{"$f":"G29/AVERAGE(IF(baseline_selection=1,'1. Baseline Demand Projection'!F$26:G$26,'1. Baseline Demand Projection'!O$26:P$26))","v":{"$error":"#DIV/0!"}},{"$f":"H29/AVERAGE(IF(baseline_selection=1,'1. Baseline Demand Projection'!G$26:H$26,'1. Baseline Demand Projection'!P$26:Q$26))","v":{"$error":"#DIV/0!"}},{"$f":"I29/AVERAGE(IF(baseline_selection=1,'1. Baseline Demand Projection'!H$26:I$26,'1. Baseline Demand Projection'!Q$26:R$26))","v":{"$error":"#DIV/0!"}},{"$f":"J29/AVERAGE(IF(baseline_selection=1,'1. Baseline Demand Projection'!I$26:J$26,'1. Baseline Demand Projection'!R$26:S$26))","v":{"$error":"#DIV/0!"}},null,0,0,0,0,0,0,0,0,0,0,0,0,0,0,0,0,0,0,0,0,0,0,0,0,0,0,0,0,0,0,0,0,0,0,0,0,0,0,0,0,0,0,0,0,0,0,0,0,0,0,0,null,{"$f":"MeasureSavingsArray(AO29:CM29,S29,T29,U29,W29,X29,D29)","v":{"$error":"#VALUE!"}},{"$error":"#VALUE!"},{"$error":"#VALUE!"},{"$error":"#VALUE!"},{"$error":"#VALUE!"},{"$error":"#VALUE!"},{"$error":"#VALUE!"},{"$error":"#VALUE!"},{"$error":"#VALUE!"},{"$error":"#VALUE!"},{"$error":"#VALUE!"},{"$error":"#VALUE!"},{"$error":"#VALUE!"},{"$error":"#VALUE!"},{"$error":"#VALUE!"},{"$error":"#VALUE!"},{"$error":"#VALUE!"},{"$error":"#VALUE!"},{"$error":"#VALUE!"},{"$error":"#VALUE!"},{"$error":"#VALUE!"},{"$error":"#VALUE!"},{"$error":"#VALUE!"},{"$error":"#VALUE!"},{"$error":"#VALUE!"},{"$error":"#VALUE!"},{"$error":"#VALUE!"},{"$error":"#VALUE!"},{"$error":"#VALUE!"},{"$error":"#VALUE!"},{"$error":"#VALUE!"},{"$error":"#VALUE!"},{"$error":"#VALUE!"},{"$error":"#VALUE!"},{"$error":"#VALUE!"},{"$error":"#VALUE!"},{"$error":"#VALUE!"},{"$error":"#VALUE!"},{"$error":"#VALUE!"},{"$error":"#VALUE!"},{"$error":"#VALUE!"},{"$error":"#VALUE!"},{"$error":"#VALUE!"},{"$error":"#VALUE!"},{"$error":"#VALUE!"},{"$error":"#VALUE!"},{"$error":"#VALUE!"},{"$error":"#VALUE!"},{"$error":"#VALUE!"},{"$error":"#VALUE!"},{"$error":"#VALUE!"},{"$error":"#VALUE!"},null,{"$error":"#N/A"},{"$error":"#N/A"},{"$error":"#N/A"},{"$error":"#N/A"},{"$error":"#N/A"},{"$error":"#N/A"},{"$error":"#N/A"},{"$error":"#N/A"},{"$error":"#N/A"},{"$error":"#N/A"},{"$error":"#N/A"},{"$error":"#N/A"},{"$error":"#N/A"},{"$error":"#N/A"},{"$error":"#N/A"},{"$error":"#N/A"},{"$error":"#N/A"},{"$error":"#N/A"},{"$error":"#N/A"},{"$error":"#N/A"},{"$error":"#N/A"},{"$error":"#N/A"},{"$error":"#N/A"},{"$error":"#N/A"},{"$error":"#N/A"},{"$error":"#N/A"},{"$error":"#N/A"},{"$error":"#N/A"},{"$error":"#N/A"},{"$error":"#N/A"},{"$error":"#N/A"},{"$error":"#N/A"},{"$error":"#N/A"},{"$error":"#N/A"},{"$error":"#N/A"},{"$error":"#N/A"},{"$error":"#N/A"},{"$error":"#N/A"},{"$error":"#N/A"},{"$error":"#N/A"},{"$error":"#N/A"},{"$error":"#N/A"},{"$error":"#N/A"},{"$error":"#N/A"},{"$error":"#N/A"},{"$error":"#N/A"},{"$error":"#N/A"},{"$error":"#N/A"},{"$error":"#N/A"},{"$error":"#N/A"},{"$error":"#N/A"},null,{"$error":"#N/A"},{"$error":"#N/A"},{"$error":"#N/A"},{"$error":"#N/A"},{"$error":"#N/A"},{"$error":"#N/A"},{"$error":"#N/A"},{"$error":"#N/A"},{"$error":"#N/A"},{"$error":"#N/A"},{"$error":"#N/A"},{"$error":"#N/A"},{"$error":"#N/A"},{"$error":"#N/A"},{"$error":"#N/A"},{"$error":"#N/A"},{"$error":"#N/A"},{"$error":"#N/A"},{"$error":"#N/A"},{"$error":"#N/A"},{"$error":"#N/A"},{"$error":"#N/A"},{"$error":"#N/A"},{"$error":"#N/A"},{"$error":"#N/A"},{"$error":"#N/A"},{"$error":"#N/A"},{"$error":"#N/A"},{"$error":"#N/A"},{"$error":"#N/A"},{"$error":"#N/A"},{"$error":"#N/A"},{"$error":"#N/A"},{"$error":"#N/A"},{"$error":"#N/A"},{"$error":"#N/A"},{"$error":"#N/A"},{"$error":"#N/A"},{"$error":"#N/A"},{"$error":"#N/A"},{"$error":"#N/A"},{"$error":"#N/A"},{"$error":"#N/A"},{"$error":"#N/A"},{"$error":"#N/A"},{"$error":"#N/A"},{"$error":"#N/A"},{"$error":"#N/A"},{"$error":"#N/A"},{"$error":"#N/A"},{"$error":"#N/A"},null,{"$f":"DebtServiceArray(AO29:CM29,P29,discount_rate,Q29,D29)","v":{"$error":"#VALUE!"}},{"$error":"#VALUE!"},{"$error":"#VALUE!"},{"$error":"#VALUE!"},{"$error":"#VALUE!"},{"$error":"#VALUE!"},{"$error":"#VALUE!"},{"$error":"#VALUE!"},{"$error":"#VALUE!"},{"$error":"#VALUE!"},{"$error":"#VALUE!"},{"$error":"#VALUE!"},{"$error":"#VALUE!"},{"$error":"#VALUE!"},{"$error":"#VALUE!"},{"$error":"#VALUE!"},{"$error":"#VALUE!"},{"$error":"#VALUE!"},{"$error":"#VALUE!"},{"$error":"#VALUE!"},{"$error":"#VALUE!"},{"$error":"#VALUE!"},{"$error":"#VALUE!"},{"$error":"#VALUE!"},{"$error":"#VALUE!"},{"$error":"#VALUE!"},{"$error":"#VALUE!"},{"$error":"#VALUE!"},{"$error":"#VALUE!"},{"$error":"#VALUE!"},{"$error":"#VALUE!"},{"$error":"#VALUE!"},{"$error":"#VALUE!"},{"$error":"#VALUE!"},{"$error":"#VALUE!"},{"$error":"#VALUE!"},{"$error":"#VALUE!"},{"$error":"#VALUE!"},{"$error":"#VALUE!"},{"$error":"#VALUE!"},{"$error":"#VALUE!"},{"$error":"#VALUE!"},{"$error":"#VALUE!"},{"$error":"#VALUE!"},{"$error":"#VALUE!"},{"$error":"#VALUE!"},{"$error":"#VALUE!"},{"$error":"#VALUE!"},{"$error":"#VALUE!"},{"$error":"#VALUE!"},{"$error":"#VALUE!"},null,{"$error":"#N/A"},{"$error":"#N/A"},{"$error":"#N/A"},{"$error":"#N/A"},{"$error":"#N/A"},{"$error":"#N/A"},{"$error":"#N/A"},{"$error":"#N/A"},{"$error":"#N/A"},{"$error":"#N/A"},{"$error":"#N/A"},{"$error":"#N/A"},{"$error":"#N/A"},{"$error":"#N/A"},{"$error":"#N/A"},{"$error":"#N/A"},{"$error":"#N/A"},{"$error":"#N/A"},{"$error":"#N/A"},{"$error":"#N/A"},{"$error":"#N/A"},{"$error":"#N/A"},{"$error":"#N/A"},{"$error":"#N/A"},{"$error":"#N/A"},{"$error":"#N/A"},{"$error":"#N/A"},{"$error":"#N/A"},{"$error":"#N/A"},{"$error":"#N/A"},{"$error":"#N/A"},{"$error":"#N/A"},{"$error":"#N/A"},{"$error":"#N/A"},{"$error":"#N/A"},{"$error":"#N/A"},{"$error":"#N/A"},{"$error":"#N/A"},{"$error":"#N/A"},{"$error":"#N/A"},{"$error":"#N/A"},{"$error":"#N/A"},{"$error":"#N/A"},{"$error":"#N/A"},{"$error":"#N/A"},{"$error":"#N/A"},{"$error":"#N/A"},{"$error":"#N/A"},{"$error":"#N/A"},{"$error":"#N/A"},{"$error":"#N/A"},null,{"$error":"#N/A"},{"$error":"#N/A"}]
[null,"PRE-SF-08",{"$f":"INDEX(tbl_predefined_measures[MEASURE],MATCH($B30&regionid,tbl_predefined_measures[ID&REGION],0))","v":{"$error":"#N/A"}},"N",null,null,null,null,null,null,null,{"$f":"INDEX(tbl_predefined_measures[ACCOUNTING_UNIT],MATCH($B30&regionid,tbl_predefined_measures[ID&REGION],0))","v":{"$error":"#N/A"}},{"$f":"INDEX(tbl_predefined_measures[DELIVERY],MATCH($B30&regionid,tbl_predefined_measures[ID&REGION],0))","v":{"$error":"#N/A"}},null,{"$f":"INDEX(tbl_predefined_measures[COST_OM],MATCH($B30&regionid,tbl_predefined_measures[ID&REGION],0))","v":{"$error":"#N/A"}},{"$f":"INDEX(tbl_predefined_measures[COST_CAPITAL],MATCH($B30&regionid,tbl_predefined_measures[ID&REGION],0))","v":{"$error":"#N/A"}},null,null,{"$f":"INDEX(tbl_predefined_measures[SAVE_GPD],MATCH($B30&regionid,tbl_predefined_measures[ID&REGION],0))","v":{"$error":"#N/A"}},{"$f":"INDEX(tbl_predefined_measures[FREERIDE_PCT],MATCH($B30&regionid,tbl_predefined_measures[ID&REGION],0))","v":{"$error":"#N/A"}},{"$f":"INDEX(tbl_predefined_measures[DECAY_PCT],MATCH($B30&regionid,tbl_predefined_measures[ID&REGION],0))","v":{"$error":"#N/A"}},{"$f":"INDEX(tbl_predefined_measures[PLUMBCODE_YN],MATCH($B30&regionid,tbl_predefined_measures[ID&REGION],0))","v":{"$error":"#N/A"}},{"$f":"INDEX(tbl_predefined_measures[NRR_PCT],MATCH($B30&regionid,tbl_predefined_measures[ID&REGION],0))","v":{"$error":"#N/A"}},{"$f":"IF(V30=\"N\",INDEX(tbl_predefined_measures[LIFE_YRS],MATCH($B30&regionid,tbl_predefined_measures[ID&REGION],0)),99)","v":{"$error":"#N/A"}},null,{"$error":"#N/A"},{"$error":"#N/A"},null,{"$error":"#N/A"},{"$error":"#N/A"},{"$error":"#N/A"},{"$error":"#N/A"},{"$error":"#N/A"},null,{"$f":"F30/AVERAGE(IF(baseline_selection=1,'1. Baseline Demand Projection'!E$26:F$26,'1. Baseline Demand Projection'!N$26:O$26))","v":{"$error":"#DIV/0!"}},{"$f":"G30/AVERAGE(IF(baseline_selection=1,'1. Baseline Demand Projection'!F$26:G$26,'1. Baseline Demand Projection'!O$26:P$26))","v":{"$error":"#DIV/0!"}},{"$f":"H30/AVERAGE(IF(baseline_selection=1,'1. Baseline Demand Projection'!G$26:H$26,'1. Baseline Demand Projection'!P$26:Q$26))","v":{"$error":"#DIV/0!"}},{"$f":"I30/AVERAGE(IF(baseline_selection=1,'1. Baseline Demand Projection'!H$26:I$26,'1. Baseline Demand Projection'!Q$26:R$26))","v":{"$error":"#DIV/0!"}},{"$f":"J30/AVERAGE(IF(baseline_selection=1,'1. Baseline Demand Projection'!I$26:J$26,'1. Baseline Demand Projection'!R$26:S$26))","v":{"$error":"#DIV/0!"}},null,0,0,0,0,0,0,0,0,0,0,0,0,0,0,0,0,0,0,0,0,0,0,0,0,0,0,0,0,0,0,0,0,0,0,0,0,0,0,0,0,0,0,0,0,0,0,0,0,0,0,0,null,{"$f":"MeasureSavingsArray(AO30:CM30,S30,T30,U30,W30,X30,D30)","v":{"$error":"#VALUE!"}},{"$error":"#VALUE!"},{"$error":"#VALUE!"},{"$error":"#VALUE!"},{"$error":"#VALUE!"},{"$error":"#VALUE!"},{"$error":"#VALUE!"},{"$error":"#VALUE!"},{"$error":"#VALUE!"},{"$error":"#VALUE!"},{"$error":"#VALUE!"},{"$error":"#VALUE!"},{"$error":"#VALUE!"},{"$error":"#VALUE!"},{"$error":"#VALUE!"},{"$error":"#VALUE!"},{"$error":"#VALUE!"},{"$error":"#VALUE!"},{"$error":"#VALUE!"},{"$error":"#VALUE!"},{"$error":"#VALUE!"},{"$error":"#VALUE!"},{"$error":"#VALUE!"},{"$error":"#VALUE!"},{"$error":"#VALUE!"},{"$error":"#VALUE!"},{"$error":"#VALUE!"},{"$error":"#VALUE!"},{"$error":"#VALUE!"},{"$error":"#VALUE!"},{"$error":"#VALUE!"},{"$error":"#VALUE!"},{"$error":"#VALUE!"},{"$error":"#VALUE!"},{"$error":"#VALUE!"},{"$error":"#VALUE!"},{"$error":"#VALUE!"},{"$error":"#VALUE!"},{"$error":"#VALUE!"},{"$error":"#VALUE!"},{"$error":"#VALUE!"},{"$error":"#VALUE!"},{"$error":"#VALUE!"},{"$error":"#VALUE!"},{"$error":"#VALUE!"},{"$error":"#VALUE!"},{"$error":"#VALUE!"},{"$error":"#VALUE!"},{"$error":"#VALUE!"},{"$error":"#VALUE!"},{"$error":"#VALUE!"},{"$error":"#VALUE!"},null,{"$error":"#N/A"},{"$error":"#N/A"},{"$error":"#N/A"},{"$error":"#N/A"},{"$error":"#N/A"},{"$error":"#N/A"},{"$error":"#N/A"},{"$error":"#N/A"},{"$error":"#N/A"},{"$error":"#N/A"},{"$error":"#N/A"},{"$error":"#N/A"},{"$error":"#N/A"},{"$error":"#N/A"},{"$error":"#N/A"},{"$error":"#N/A"},{"$error":"#N/A"},{"$error":"#N/A"},{"$error":"#N/A"},{"$error":"#N/A"},{"$error":"#N/A"},{"$error":"#N/A"},{"$error":"#N/A"},{"$error":"#N/A"},{"$error":"#N/A"},{"$error":"#N/A"},{"$error":"#N/A"},{"$error":"#N/A"},{"$error":"#N/A"},{"$error":"#N/A"},{"$error":"#N/A"},{"$error":"#N/A"},{"$error":"#N/A"},{"$error":"#N/A"},{"$error":"#N/A"},{"$error":"#N/A"},{"$error":"#N/A"},{"$error":"#N/A"},{"$error":"#N/A"},{"$error":"#N/A"},{"$error":"#N/A"},{"$error":"#N/A"},{"$error":"#N/A"},{"$error":"#N/A"},{"$error":"#N/A"},{"$error":"#N/A"},{"$error":"#N/A"},{"$error":"#N/A"},{"$error":"#N/A"},{"$error":"#N/A"},{"$error":"#N/A"},null,{"$error":"#N/A"},{"$error":"#N/A"},{"$error":"#N/A"},{"$error":"#N/A"},{"$error":"#N/A"},{"$error":"#N/A"},{"$error":"#N/A"},{"$error":"#N/A"},{"$error":"#N/A"},{"$error":"#N/A"},{"$error":"#N/A"},{"$error":"#N/A"},{"$error":"#N/A"},{"$error":"#N/A"},{"$error":"#N/A"},{"$error":"#N/A"},{"$error":"#N/A"},{"$error":"#N/A"},{"$error":"#N/A"},{"$error":"#N/A"},{"$error":"#N/A"},{"$error":"#N/A"},{"$error":"#N/A"},{"$error":"#N/A"},{"$error":"#N/A"},{"$error":"#N/A"},{"$error":"#N/A"},{"$error":"#N/A"},{"$error":"#N/A"},{"$error":"#N/A"},{"$error":"#N/A"},{"$error":"#N/A"},{"$error":"#N/A"},{"$error":"#N/A"},{"$error":"#N/A"},{"$error":"#N/A"},{"$error":"#N/A"},{"$error":"#N/A"},{"$error":"#N/A"},{"$error":"#N/A"},{"$error":"#N/A"},{"$error":"#N/A"},{"$error":"#N/A"},{"$error":"#N/A"},{"$error":"#N/A"},{"$error":"#N/A"},{"$error":"#N/A"},{"$error":"#N/A"},{"$error":"#N/A"},{"$error":"#N/A"},{"$error":"#N/A"},null,{"$f":"DebtServiceArray(AO30:CM30,P30,discount_rate,Q30,D30)","v":{"$error":"#VALUE!"}},{"$error":"#VALUE!"},{"$error":"#VALUE!"},{"$error":"#VALUE!"},{"$error":"#VALUE!"},{"$error":"#VALUE!"},{"$error":"#VALUE!"},{"$error":"#VALUE!"},{"$error":"#VALUE!"},{"$error":"#VALUE!"},{"$error":"#VALUE!"},{"$error":"#VALUE!"},{"$error":"#VALUE!"},{"$error":"#VALUE!"},{"$error":"#VALUE!"},{"$error":"#VALUE!"},{"$error":"#VALUE!"},{"$error":"#VALUE!"},{"$error":"#VALUE!"},{"$error":"#VALUE!"},{"$error":"#VALUE!"},{"$error":"#VALUE!"},{"$error":"#VALUE!"},{"$error":"#VALUE!"},{"$error":"#VALUE!"},{"$error":"#VALUE!"},{"$error":"#VALUE!"},{"$error":"#VALUE!"},{"$error":"#VALUE!"},{"$error":"#VALUE!"},{"$error":"#VALUE!"},{"$error":"#VALUE!"},{"$error":"#VALUE!"},{"$error":"#VALUE!"},{"$error":"#VALUE!"},{"$error":"#VALUE!"},{"$error":"#VALUE!"},{"$error":"#VALUE!"},{"$error":"#VALUE!"},{"$error":"#VALUE!"},{"$error":"#VALUE!"},{"$error":"#VALUE!"},{"$error":"#VALUE!"},{"$error":"#VALUE!"},{"$error":"#VALUE!"},{"$error":"#VALUE!"},{"$error":"#VALUE!"},{"$error":"#VALUE!"},{"$error":"#VALUE!"},{"$error":"#VALUE!"},{"$error":"#VALUE!"},null,{"$error":"#N/A"},{"$error":"#N/A"},{"$error":"#N/A"},{"$error":"#N/A"},{"$error":"#N/A"},{"$error":"#N/A"},{"$error":"#N/A"},{"$error":"#N/A"},{"$error":"#N/A"},{"$error":"#N/A"},{"$error":"#N/A"},{"$error":"#N/A"},{"$error":"#N/A"},{"$error":"#N/A"},{"$error":"#N/A"},{"$error":"#N/A"},{"$error":"#N/A"},{"$error":"#N/A"},{"$error":"#N/A"},{"$error":"#N/A"},{"$error":"#N/A"},{"$error":"#N/A"},{"$error":"#N/A"},{"$error":"#N/A"},{"$error":"#N/A"},{"$error":"#N/A"},{"$error":"#N/A"},{"$error":"#N/A"},{"$error":"#N/A"},{"$error":"#N/A"},{"$error":"#N/A"},{"$error":"#N/A"},{"$error":"#N/A"},{"$error":"#N/A"},{"$error":"#N/A"},{"$error":"#N/A"},{"$error":"#N/A"},{"$error":"#N/A"},{"$error":"#N/A"},{"$error":"#N/A"},{"$error":"#N/A"},{"$error":"#N/A"},{"$error":"#N/A"},{"$error":"#N/A"},{"$error":"#N/A"},{"$error":"#N/A"},{"$error":"#N/A"},{"$error":"#N/A"},{"$error":"#N/A"},{"$error":"#N/A"},{"$error":"#N/A"},null,{"$error":"#N/A"},{"$error":"#N/A"}]
[null,"PRE-SF-09",{"$f":"INDEX(tbl_predefined_measures[MEASURE],MATCH($B31&regionid,tbl_predefined_measures[ID&REGION],0))","v":{"$error":"#N/A"}},"N",null,null,null,null,null,null,null,{"$f":"INDEX(tbl_predefined_measures[ACCOUNTING_UNIT],MATCH($B31&regionid,tbl_predefined_measures[ID&REGION],0))","v":{"$error":"#N/A"}},{"$f":"INDEX(tbl_predefined_measures[DELIVERY],MATCH($B31&regionid,tbl_predefined_measures[ID&REGION],0))","v":{"$error":"#N/A"}},null,{"$f":"INDEX(tbl_predefined_measures[COST_OM],MATCH($B31&regionid,tbl_predefined_measures[ID&REGION],0))","v":{"$error":"#N/A"}},{"$f":"INDEX(tbl_predefined_measures[COST_CAPITAL],MATCH($B31&regionid,tbl_predefined_measures[ID&REGION],0))","v":{"$error":"#N/A"}},null,null,{"$f":"INDEX(tbl_predefined_measures[SAVE_GPD],MATCH($B31&regionid,tbl_predefined_measures[ID&REGION],0))","v":{"$error":"#N/A"}},{"$f":"INDEX(tbl_predefined_measures[FREERIDE_PCT],MATCH($B31&regionid,tbl_predefined_measures[ID&REGION],0))","v":{"$error":"#N/A"}},{"$f":"INDEX(tbl_predefined_measures[DECAY_PCT],MATCH($B31&regionid,tbl_predefined_measures[ID&REGION],0))","v":{"$error":"#N/A"}},{"$f":"INDEX(tbl_predefined_measures[PLUMBCODE_YN],MATCH($B31&regionid,tbl_predefined_measures[ID&REGION],0))","v":{"$error":"#N/A"}},{"$f":"INDEX(tbl_predefined_measures[NRR_PCT],MATCH($B31&regionid,tbl_predefined_measures[ID&REGION],0))","v":{"$error":"#N/A"}},{"$f":"IF(V31=\"N\",INDEX(tbl_predefined_measures[LIFE_YRS],MATCH($B31&regionid,tbl_predefined_measures[ID&REGION],0)),99)","v":{"$error":"#N/A"}},null,{"$error":"#N/A"},{"$error":"#N/A"},null,{"$error":"#N/A"},{"$error":"#N/A"},{"$error":"#N/A"},{"$error":"#N/A"},{"$error":"#N/A"},null,{"$f":"F31/AVERAGE(IF(baseline_selection=1,'1. Baseline Demand Projection'!E$26:F$26,'1. Baseline Demand Projection'!N$26:O$26))","v":{"$error":"#DIV/0!"}},{"$f":"G31/AVERAGE(IF(baseline_selection=1,'1. Baseline Demand Projection'!F$26:G$26,'1. Baseline Demand Projection'!O$26:P$26))","v":{"$error":"#DIV/0!"}},{"$f":"H31/AVERAGE(IF(baseline_selection=1,'1. Baseline Demand Projection'!G$26:H$26,'1. Baseline Demand Projection'!P$26:Q$26))","v":{"$error":"#DIV/0!"}},{"$f":"I31/AVERAGE(IF(baseline_selection=1,'1. Baseline Demand Projection'!H$26:I$26,'1. Baseline Demand Projection'!Q$26:R$26))","v":{"$error":"#DIV/0!"}},{"$f":"J31/AVERAGE(IF(baseline_selection=1,'1. Baseline Demand Projection'!I$26:J$26,'1. Baseline Demand Projection'!R$26:S$26))","v":{"$error":"#DIV/0!"}},null,0,0,0,0,0,0,0,0,0,0,0,0,0,0,0,0,0,0,0,0,0,0,0,0,0,0,0,0,0,0,0,0,0,0,0,0,0,0,0,0,0,0,0,0,0,0,0,0,0,0,0,null,{"$f":"MeasureSavingsArray(AO31:CM31,S31,T31,U31,W31,X31,D31)","v":{"$error":"#VALUE!"}},{"$error":"#VALUE!"},{"$error":"#VALUE!"},{"$error":"#VALUE!"},{"$error":"#VALUE!"},{"$error":"#VALUE!"},{"$error":"#VALUE!"},{"$error":"#VALUE!"},{"$error":"#VALUE!"},{"$error":"#VALUE!"},{"$error":"#VALUE!"},{"$error":"#VALUE!"},{"$error":"#VALUE!"},{"$error":"#VALUE!"},{"$error":"#VALUE!"},{"$error":"#VALUE!"},{"$error":"#VALUE!"},{"$error":"#VALUE!"},{"$error":"#VALUE!"},{"$error":"#VALUE!"},{"$error":"#VALUE!"},{"$error":"#VALUE!"},{"$error":"#VALUE!"},{"$error":"#VALUE!"},{"$error":"#VALUE!"},{"$error":"#VALUE!"},{"$error":"#VALUE!"},{"$error":"#VALUE!"},{"$error":"#VALUE!"},{"$error":"#VALUE!"},{"$error":"#VALUE!"},{"$error":"#VALUE!"},{"$error":"#VALUE!"},{"$error":"#VALUE!"},{"$error":"#VALUE!"},{"$error":"#VALUE!"},{"$error":"#VALUE!"},{"$error":"#VALUE!"},{"$error":"#VALUE!"},{"$error":"#VALUE!"},{"$error":"#VALUE!"},{"$error":"#VALUE!"},{"$error":"#VALUE!"},{"$error":"#VALUE!"},{"$error":"#VALUE!"},{"$error":"#VALUE!"},{"$error":"#VALUE!"},{"$error":"#VALUE!"},{"$error":"#VALUE!"},{"$error":"#VALUE!"},{"$error":"#VALUE!"},{"$error":"#VALUE!"},null,{"$error":"#N/A"},{"$error":"#N/A"},{"$error":"#N/A"},{"$error":"#N/A"},{"$error":"#N/A"},{"$error":"#N/A"},{"$error":"#N/A"},{"$error":"#N/A"},{"$error":"#N/A"},{"$error":"#N/A"},{"$error":"#N/A"},{"$error":"#N/A"},{"$error":"#N/A"},{"$error":"#N/A"},{"$error":"#N/A"},{"$error":"#N/A"},{"$error":"#N/A"},{"$error":"#N/A"},{"$error":"#N/A"},{"$error":"#N/A"},{"$error":"#N/A"},{"$error":"#N/A"},{"$error":"#N/A"},{"$error":"#N/A"},{"$error":"#N/A"},{"$error":"#N/A"},{"$error":"#N/A"},{"$error":"#N/A"},{"$error":"#N/A"},{"$error":"#N/A"},{"$error":"#N/A"},{"$error":"#N/A"},{"$error":"#N/A"},{"$error":"#N/A"},{"$error":"#N/A"},{"$error":"#N/A"},{"$error":"#N/A"},{"$error":"#N/A"},{"$error":"#N/A"},{"$error":"#N/A"},{"$error":"#N/A"},{"$error":"#N/A"},{"$error":"#N/A"},{"$error":"#N/A"},{"$error":"#N/A"},{"$error":"#N/A"},{"$error":"#N/A"},{"$error":"#N/A"},{"$error":"#N/A"},{"$error":"#N/A"},{"$error":"#N/A"},null,{"$error":"#N/A"},{"$error":"#N/A"},{"$error":"#N/A"},{"$error":"#N/A"},{"$error":"#N/A"},{"$error":"#N/A"},{"$error":"#N/A"},{"$error":"#N/A"},{"$error":"#N/A"},{"$error":"#N/A"},{"$error":"#N/A"},{"$error":"#N/A"},{"$error":"#N/A"},{"$error":"#N/A"},{"$error":"#N/A"},{"$error":"#N/A"},{"$error":"#N/A"},{"$error":"#N/A"},{"$error":"#N/A"},{"$error":"#N/A"},{"$error":"#N/A"},{"$error":"#N/A"},{"$error":"#N/A"},{"$error":"#N/A"},{"$error":"#N/A"},{"$error":"#N/A"},{"$error":"#N/A"},{"$error":"#N/A"},{"$error":"#N/A"},{"$error":"#N/A"},{"$error":"#N/A"},{"$error":"#N/A"},{"$error":"#N/A"},{"$error":"#N/A"},{"$error":"#N/A"},{"$error":"#N/A"},{"$error":"#N/A"},{"$error":"#N/A"},{"$error":"#N/A"},{"$error":"#N/A"},{"$error":"#N/A"},{"$error":"#N/A"},{"$error":"#N/A"},{"$error":"#N/A"},{"$error":"#N/A"},{"$error":"#N/A"},{"$error":"#N/A"},{"$error":"#N/A"},{"$error":"#N/A"},{"$error":"#N/A"},{"$error":"#N/A"},null,{"$f":"DebtServiceArray(AO31:CM31,P31,discount_rate,Q31,D31)","v":{"$error":"#VALUE!"}},{"$error":"#VALUE!"},{"$error":"#VALUE!"},{"$error":"#VALUE!"},{"$error":"#VALUE!"},{"$error":"#VALUE!"},{"$error":"#VALUE!"},{"$error":"#VALUE!"},{"$error":"#VALUE!"},{"$error":"#VALUE!"},{"$error":"#VALUE!"},{"$error":"#VALUE!"},{"$error":"#VALUE!"},{"$error":"#VALUE!"},{"$error":"#VALUE!"},{"$error":"#VALUE!"},{"$error":"#VALUE!"},{"$error":"#VALUE!"},{"$error":"#VALUE!"},{"$error":"#VALUE!"},{"$error":"#VALUE!"},{"$error":"#VALUE!"},{"$error":"#VALUE!"},{"$error":"#VALUE!"},{"$error":"#VALUE!"},{"$error":"#VALUE!"},{"$error":"#VALUE!"},{"$error":"#VALUE!"},{"$error":"#VALUE!"},{"$error":"#VALUE!"},{"$error":"#VALUE!"},{"$error":"#VALUE!"},{"$error":"#VALUE!"},{"$error":"#VALUE!"},{"$error":"#VALUE!"},{"$error":"#VALUE!"},{"$error":"#VALUE!"},{"$error":"#VALUE!"},{"$error":"#VALUE!"},{"$error":"#VALUE!"},{"$error":"#VALUE!"},{"$error":"#VALUE!"},{"$error":"#VALUE!"},{"$error":"#VALUE!"},{"$error":"#VALUE!"},{"$error":"#VALUE!"},{"$error":"#VALUE!"},{"$error":"#VALUE!"},{"$error":"#VALUE!"},{"$error":"#VALUE!"},{"$error":"#VALUE!"},null,{"$error":"#N/A"},{"$error":"#N/A"},{"$error":"#N/A"},{"$error":"#N/A"},{"$error":"#N/A"},{"$error":"#N/A"},{"$error":"#N/A"},{"$error":"#N/A"},{"$error":"#N/A"},{"$error":"#N/A"},{"$error":"#N/A"},{"$error":"#N/A"},{"$error":"#N/A"},{"$error":"#N/A"},{"$error":"#N/A"},{"$error":"#N/A"},{"$error":"#N/A"},{"$error":"#N/A"},{"$error":"#N/A"},{"$error":"#N/A"},{"$error":"#N/A"},{"$error":"#N/A"},{"$error":"#N/A"},{"$error":"#N/A"},{"$error":"#N/A"},{"$error":"#N/A"},{"$error":"#N/A"},{"$error":"#N/A"},{"$error":"#N/A"},{"$error":"#N/A"},{"$error":"#N/A"},{"$error":"#N/A"},{"$error":"#N/A"},{"$error":"#N/A"},{"$error":"#N/A"},{"$error":"#N/A"},{"$error":"#N/A"},{"$error":"#N/A"},{"$error":"#N/A"},{"$error":"#N/A"},{"$error":"#N/A"},{"$error":"#N/A"},{"$error":"#N/A"},{"$error":"#N/A"},{"$error":"#N/A"},{"$error":"#N/A"},{"$error":"#N/A"},{"$error":"#N/A"},{"$error":"#N/A"},{"$error":"#N/A"},{"$error":"#N/A"},null,{"$error":"#N/A"},{"$error":"#N/A"}]
[null,"PRE-SF-10",{"$f":"INDEX(tbl_predefined_measures[MEASURE],MATCH($B32&regionid,tbl_predefined_measures[ID&REGION],0))","v":{"$error":"#N/A"}},"N",null,null,null,null,null,null,null,{"$f":"INDEX(tbl_predefined_measures[ACCOUNTING_UNIT],MATCH($B32&regionid,tbl_predefined_measures[ID&REGION],0))","v":{"$error":"#N/A"}},{"$f":"INDEX(tbl_predefined_measures[DELIVERY],MATCH($B32&regionid,tbl_predefined_measures[ID&REGION],0))","v":{"$error":"#N/A"}},null,{"$f":"INDEX(tbl_predefined_measures[COST_OM],MATCH($B32&regionid,tbl_predefined_measures[ID&REGION],0))","v":{"$error":"#N/A"}},{"$f":"INDEX(tbl_predefined_measures[COST_CAPITAL],MATCH($B32&regionid,tbl_predefined_measures[ID&REGION],0))","v":{"$error":"#N/A"}},null,null,{"$f":"INDEX(tbl_predefined_measures[SAVE_GPD],MATCH($B32&regionid,tbl_predefined_measures[ID&REGION],0))","v":{"$error":"#N/A"}},{"$f":"INDEX(tbl_predefined_measures[FREERIDE_PCT],MATCH($B32&regionid,tbl_predefined_measures[ID&REGION],0))","v":{"$error":"#N/A"}},{"$f":"INDEX(tbl_predefined_measures[DECAY_PCT],MATCH($B32&regionid,tbl_predefined_measures[ID&REGION],0))","v":{"$error":"#N/A"}},{"$f":"INDEX(tbl_predefined_measures[PLUMBCODE_YN],MATCH($B32&regionid,tbl_predefined_measures[ID&REGION],0))","v":{"$error":"#N/A"}},{"$f":"INDEX(tbl_predefined_measures[NRR_PCT],MATCH($B32&regionid,tbl_predefined_measures[ID&REGION],0))","v":{"$error":"#N/A"}},{"$f":"IF(V32=\"N\",INDEX(tbl_predefined_measures[LIFE_YRS],MATCH($B32&regionid,tbl_predefined_measures[ID&REGION],0)),99)","v":{"$error":"#N/A"}},null,{"$error":"#N/A"},{"$error":"#N/A"},null,{"$error":"#N/A"},{"$error":"#N/A"},{"$error":"#N/A"},{"$error":"#N/A"},{"$error":"#N/A"},null,{"$f":"F32/AVERAGE(IF(baseline_selection=1,'1. Baseline Demand Projection'!E$26:F$26,'1. Baseline Demand Projection'!N$26:O$26))","v":{"$error":"#DIV/0!"}},{"$f":"G32/AVERAGE(IF(baseline_selection=1,'1. Baseline Demand Projection'!F$26:G$26,'1. Baseline Demand Projection'!O$26:P$26))","v":{"$error":"#DIV/0!"}},{"$f":"H32/AVERAGE(IF(baseline_selection=1,'1. Baseline Demand Projection'!G$26:H$26,'1. Baseline Demand Projection'!P$26:Q$26))","v":{"$error":"#DIV/0!"}},{"$f":"I32/AVERAGE(IF(baseline_selection=1,'1. Baseline Demand Projection'!H$26:I$26,'1. Baseline Demand Projection'!Q$26:R$26))","v":{"$error":"#DIV/0!"}},{"$f":"J32/AVERAGE(IF(baseline_selection=1,'1. Baseline Demand Projection'!I$26:J$26,'1. Baseline Demand Projection'!R$26:S$26))","v":{"$error":"#DIV/0!"}},null,0,0,0,0,0,0,0,0,0,0,0,0,0,0,0,0,0,0,0,0,0,0,0,0,0,0,0,0,0,0,0,0,0,0,0,0,0,0,0,0,0,0,0,0,0,0,0,0,0,0,0,null,{"$f":"MeasureSavingsArray(AO32:CM32,S32,T32,U32,W32,X32,D32)","v":{"$error":"#VALUE!"}},{"$error":"#VALUE!"},{"$error":"#VALUE!"},{"$error":"#VALUE!"},{"$error":"#VALUE!"},{"$error":"#VALUE!"},{"$error":"#VALUE!"},{"$error":"#VALUE!"},{"$error":"#VALUE!"},{"$error":"#VALUE!"},{"$error":"#VALUE!"},{"$error":"#VALUE!"},{"$error":"#VALUE!"},{"$error":"#VALUE!"},{"$error":"#VALUE!"},{"$error":"#VALUE!"},{"$error":"#VALUE!"},{"$error":"#VALUE!"},{"$error":"#VALUE!"},{"$error":"#VALUE!"},{"$error":"#VALUE!"},{"$error":"#VALUE!"},{"$error":"#VALUE!"},{"$error":"#VALUE!"},{"$error":"#VALUE!"},{"$error":"#VALUE!"},{"$error":"#VALUE!"},{"$error":"#VALUE!"},{"$error":"#VALUE!"},{"$error":"#VALUE!"},{"$error":"#VALUE!"},{"$error":"#VALUE!"},{"$error":"#VALUE!"},{"$error":"#VALUE!"},{"$error":"#VALUE!"},{"$error":"#VALUE!"},{"$error":"#VALUE!"},{"$error":"#VALUE!"},{"$error":"#VALUE!"},{"$error":"#VALUE!"},{"$error":"#VALUE!"},{"$error":"#VALUE!"},{"$error":"#VALUE!"},{"$error":"#VALUE!"},{"$error":"#VALUE!"},{"$error":"#VALUE!"},{"$error":"#VALUE!"},{"$error":"#VALUE!"},{"$error":"#VALUE!"},{"$error":"#VALUE!"},{"$error":"#VALUE!"},{"$error":"#VALUE!"},null,{"$error":"#N/A"},{"$error":"#N/A"},{"$error":"#N/A"},{"$error":"#N/A"},{"$error":"#N/A"},{"$error":"#N/A"},{"$error":"#N/A"},{"$error":"#N/A"},{"$error":"#N/A"},{"$error":"#N/A"},{"$error":"#N/A"},{"$error":"#N/A"},{"$error":"#N/A"},{"$error":"#N/A"},{"$error":"#N/A"},{"$error":"#N/A"},{"$error":"#N/A"},{"$error":"#N/A"},{"$error":"#N/A"},{"$error":"#N/A"},{"$error":"#N/A"},{"$error":"#N/A"},{"$error":"#N/A"},{"$error":"#N/A"},{"$error":"#N/A"},{"$error":"#N/A"},{"$error":"#N/A"},{"$error":"#N/A"},{"$error":"#N/A"},{"$error":"#N/A"},{"$error":"#N/A"},{"$error":"#N/A"},{"$error":"#N/A"},{"$error":"#N/A"},{"$error":"#N/A"},{"$error":"#N/A"},{"$error":"#N/A"},{"$error":"#N/A"},{"$error":"#N/A"},{"$error":"#N/A"},{"$error":"#N/A"},{"$error":"#N/A"},{"$error":"#N/A"},{"$error":"#N/A"},{"$error":"#N/A"},{"$error":"#N/A"},{"$error":"#N/A"},{"$error":"#N/A"},{"$error":"#N/A"},{"$error":"#N/A"},{"$error":"#N/A"},null,{"$error":"#N/A"},{"$error":"#N/A"},{"$error":"#N/A"},{"$error":"#N/A"},{"$error":"#N/A"},{"$error":"#N/A"},{"$error":"#N/A"},{"$error":"#N/A"},{"$error":"#N/A"},{"$error":"#N/A"},{"$error":"#N/A"},{"$error":"#N/A"},{"$error":"#N/A"},{"$error":"#N/A"},{"$error":"#N/A"},{"$error":"#N/A"},{"$error":"#N/A"},{"$error":"#N/A"},{"$error":"#N/A"},{"$error":"#N/A"},{"$error":"#N/A"},{"$error":"#N/A"},{"$error":"#N/A"},{"$error":"#N/A"},{"$error":"#N/A"},{"$error":"#N/A"},{"$error":"#N/A"},{"$error":"#N/A"},{"$error":"#N/A"},{"$error":"#N/A"},{"$error":"#N/A"},{"$error":"#N/A"},{"$error":"#N/A"},{"$error":"#N/A"},{"$error":"#N/A"},{"$error":"#N/A"},{"$error":"#N/A"},{"$error":"#N/A"},{"$error":"#N/A"},{"$error":"#N/A"},{"$error":"#N/A"},{"$error":"#N/A"},{"$error":"#N/A"},{"$error":"#N/A"},{"$error":"#N/A"},{"$error":"#N/A"},{"$error":"#N/A"},{"$error":"#N/A"},{"$error":"#N/A"},{"$error":"#N/A"},{"$error":"#N/A"},null,{"$f":"DebtServiceArray(AO32:CM32,P32,discount_rate,Q32,D32)","v":{"$error":"#VALUE!"}},{"$error":"#VALUE!"},{"$error":"#VALUE!"},{"$error":"#VALUE!"},{"$error":"#VALUE!"},{"$error":"#VALUE!"},{"$error":"#VALUE!"},{"$error":"#VALUE!"},{"$error":"#VALUE!"},{"$error":"#VALUE!"},{"$error":"#VALUE!"},{"$error":"#VALUE!"},{"$error":"#VALUE!"},{"$error":"#VALUE!"},{"$error":"#VALUE!"},{"$error":"#VALUE!"},{"$error":"#VALUE!"},{"$error":"#VALUE!"},{"$error":"#VALUE!"},{"$error":"#VALUE!"},{"$error":"#VALUE!"},{"$error":"#VALUE!"},{"$error":"#VALUE!"},{"$error":"#VALUE!"},{"$error":"#VALUE!"},{"$error":"#VALUE!"},{"$error":"#VALUE!"},{"$error":"#VALUE!"},{"$error":"#VALUE!"},{"$error":"#VALUE!"},{"$error":"#VALUE!"},{"$error":"#VALUE!"},{"$error":"#VALUE!"},{"$error":"#VALUE!"},{"$error":"#VALUE!"},{"$error":"#VALUE!"},{"$error":"#VALUE!"},{"$error":"#VALUE!"},{"$error":"#VALUE!"},{"$error":"#VALUE!"},{"$error":"#VALUE!"},{"$error":"#VALUE!"},{"$error":"#VALUE!"},{"$error":"#VALUE!"},{"$error":"#VALUE!"},{"$error":"#VALUE!"},{"$error":"#VALUE!"},{"$error":"#VALUE!"},{"$error":"#VALUE!"},{"$error":"#VALUE!"},{"$error":"#VALUE!"},null,{"$error":"#N/A"},{"$error":"#N/A"},{"$error":"#N/A"},{"$error":"#N/A"},{"$error":"#N/A"},{"$error":"#N/A"},{"$error":"#N/A"},{"$error":"#N/A"},{"$error":"#N/A"},{"$error":"#N/A"},{"$error":"#N/A"},{"$error":"#N/A"},{"$error":"#N/A"},{"$error":"#N/A"},{"$error":"#N/A"},{"$error":"#N/A"},{"$error":"#N/A"},{"$error":"#N/A"},{"$error":"#N/A"},{"$error":"#N/A"},{"$error":"#N/A"},{"$error":"#N/A"},{"$error":"#N/A"},{"$error":"#N/A"},{"$error":"#N/A"},{"$error":"#N/A"},{"$error":"#N/A"},{"$error":"#N/A"},{"$error":"#N/A"},{"$error":"#N/A"},{"$error":"#N/A"},{"$error":"#N/A"},{"$error":"#N/A"},{"$error":"#N/A"},{"$error":"#N/A"},{"$error":"#N/A"},{"$error":"#N/A"},{"$error":"#N/A"},{"$error":"#N/A"},{"$error":"#N/A"},{"$error":"#N/A"},{"$error":"#N/A"},{"$error":"#N/A"},{"$error":"#N/A"},{"$error":"#N/A"},{"$error":"#N/A"},{"$error":"#N/A"},{"$error":"#N/A"},{"$error":"#N/A"},{"$error":"#N/A"},{"$error":"#N/A"},null,{"$error":"#N/A"},{"$error":"#N/A"}]
[null,"PRE-SF-11",{"$f":"INDEX(tbl_predefined_measures[MEASURE],MATCH($B33&regionid,tbl_predefined_measures[ID&REGION],0))","v":{"$error":"#N/A"}},"N",null,null,null,null,null,null,null,{"$f":"INDEX(tbl_predefined_measures[ACCOUNTING_UNIT],MATCH($B33&regionid,tbl_predefined_measures[ID&REGION],0))","v":{"$error":"#N/A"}},{"$f":"INDEX(tbl_predefined_measures[DELIVERY],MATCH($B33&regionid,tbl_predefined_measures[ID&REGION],0))","v":{"$error":"#N/A"}},null,{"$f":"INDEX(tbl_predefined_measures[COST_OM],MATCH($B33&regionid,tbl_predefined_measures[ID&REGION],0))","v":{"$error":"#N/A"}},{"$f":"INDEX(tbl_predefined_measures[COST_CAPITAL],MATCH($B33&regionid,tbl_predefined_measures[ID&REGION],0))","v":{"$error":"#N/A"}},null,null,{"$f":"INDEX(tbl_predefined_measures[SAVE_GPD],MATCH($B33&regionid,tbl_predefined_measures[ID&REGION],0))","v":{"$error":"#N/A"}},{"$f":"INDEX(tbl_predefined_measures[FREERIDE_PCT],MATCH($B33&regionid,tbl_predefined_measures[ID&REGION],0))","v":{"$error":"#N/A"}},{"$f":"INDEX(tbl_predefined_measures[DECAY_PCT],MATCH($B33&regionid,tbl_predefined_measures[ID&REGION],0))","v":{"$error":"#N/A"}},{"$f":"INDEX(tbl_predefined_measures[PLUMBCODE_YN],MATCH($B33&regionid,tbl_predefined_measures[ID&REGION],0))","v":{"$error":"#N/A"}},{"$f":"INDEX(tbl_predefined_measures[NRR_PCT],MATCH($B33&regionid,tbl_predefined_measures[ID&REGION],0))","v":{"$error":"#N/A"}},{"$f":"IF(V33=\"N\",INDEX(tbl_predefined_measures[LIFE_YRS],MATCH($B33&regionid,tbl_predefined_measures[ID&REGION],0)),99)","v":{"$error":"#N/A"}},null,{"$error":"#N/A"},{"$error":"#N/A"},null,{"$error":"#N/A"},{"$error":"#N/A"},{"$error":"#N/A"},{"$error":"#N/A"},{"$error":"#N/A"},null,{"$f":"F33/AVERAGE(IF(baseline_selection=1,'1. Baseline Demand Projection'!E$26:F$26,'1. Baseline Demand Projection'!N$26:O$26))","v":{"$error":"#DIV/0!"}},{"$f":"G33/AVERAGE(IF(baseline_selection=1,'1. Baseline Demand Projection'!F$26:G$26,'1. Baseline Demand Projection'!O$26:P$26))","v":{"$error":"#DIV/0!"}},{"$f":"H33/AVERAGE(IF(baseline_selection=1,'1. Baseline Demand Projection'!G$26:H$26,'1. Baseline Demand Projection'!P$26:Q$26))","v":{"$error":"#DIV/0!"}},{"$f":"I33/AVERAGE(IF(baseline_selection=1,'1. Baseline Demand Projection'!H$26:I$26,'1. Baseline Demand Projection'!Q$26:R$26))","v":{"$error":"#DIV/0!"}},{"$f":"J33/AVERAGE(IF(baseline_selection=1,'1. Baseline Demand Projection'!I$26:J$26,'1. Baseline Demand Projection'!R$26:S$26))","v":{"$error":"#DIV/0!"}},null,0,0,0,0,0,0,0,0,0,0,0,0,0,0,0,0,0,0,0,0,0,0,0,0,0,0,0,0,0,0,0,0,0,0,0,0,0,0,0,0,0,0,0,0,0,0,0,0,0,0,0,null,{"$f":"MeasureSavingsArray(AO33:CM33,S33,T33,U33,W33,X33,D33)","v":{"$error":"#VALUE!"}},{"$error":"#VALUE!"},{"$error":"#VALUE!"},{"$error":"#VALUE!"},{"$error":"#VALUE!"},{"$error":"#VALUE!"},{"$error":"#VALUE!"},{"$error":"#VALUE!"},{"$error":"#VALUE!"},{"$error":"#VALUE!"},{"$error":"#VALUE!"},{"$error":"#VALUE!"},{"$error":"#VALUE!"},{"$error":"#VALUE!"},{"$error":"#VALUE!"},{"$error":"#VALUE!"},{"$error":"#VALUE!"},{"$error":"#VALUE!"},{"$error":"#VALUE!"},{"$error":"#VALUE!"},{"$error":"#VALUE!"},{"$error":"#VALUE!"},{"$error":"#VALUE!"},{"$error":"#VALUE!"},{"$error":"#VALUE!"},{"$error":"#VALUE!"},{"$error":"#VALUE!"},{"$error":"#VALUE!"},{"$error":"#VALUE!"},{"$error":"#VALUE!"},{"$error":"#VALUE!"},{"$error":"#VALUE!"},{"$error":"#VALUE!"},{"$error":"#VALUE!"},{"$error":"#VALUE!"},{"$error":"#VALUE!"},{"$error":"#VALUE!"},{"$error":"#VALUE!"},{"$error":"#VALUE!"},{"$error":"#VALUE!"},{"$error":"#VALUE!"},{"$error":"#VALUE!"},{"$error":"#VALUE!"},{"$error":"#VALUE!"},{"$error":"#VALUE!"},{"$error":"#VALUE!"},{"$error":"#VALUE!"},{"$error":"#VALUE!"},{"$error":"#VALUE!"},{"$error":"#VALUE!"},{"$error":"#VALUE!"},{"$error":"#VALUE!"},null,{"$error":"#N/A"},{"$error":"#N/A"},{"$error":"#N/A"},{"$error":"#N/A"},{"$error":"#N/A"},{"$error":"#N/A"},{"$error":"#N/A"},{"$error":"#N/A"},{"$error":"#N/A"},{"$error":"#N/A"},{"$error":"#N/A"},{"$error":"#N/A"},{"$error":"#N/A"},{"$error":"#N/A"},{"$error":"#N/A"},{"$error":"#N/A"},{"$error":"#N/A"},{"$error":"#N/A"},{"$error":"#N/A"},{"$error":"#N/A"},{"$error":"#N/A"},{"$error":"#N/A"},{"$error":"#N/A"},{"$error":"#N/A"},{"$error":"#N/A"},{"$error":"#N/A"},{"$error":"#N/A"},{"$error":"#N/A"},{"$error":"#N/A"},{"$error":"#N/A"},{"$error":"#N/A"},{"$error":"#N/A"},{"$error":"#N/A"},{"$error":"#N/A"},{"$error":"#N/A"},{"$error":"#N/A"},{"$error":"#N/A"},{"$error":"#N/A"},{"$error":"#N/A"},{"$error":"#N/A"},{"$error":"#N/A"},{"$error":"#N/A"},{"$error":"#N/A"},{"$error":"#N/A"},{"$error":"#N/A"},{"$error":"#N/A"},{"$error":"#N/A"},{"$error":"#N/A"},{"$error":"#N/A"},{"$error":"#N/A"},{"$error":"#N/A"},null,{"$error":"#N/A"},{"$error":"#N/A"},{"$error":"#N/A"},{"$error":"#N/A"},{"$error":"#N/A"},{"$error":"#N/A"},{"$error":"#N/A"},{"$error":"#N/A"},{"$error":"#N/A"},{"$error":"#N/A"},{"$error":"#N/A"},{"$error":"#N/A"},{"$error":"#N/A"},{"$error":"#N/A"},{"$error":"#N/A"},{"$error":"#N/A"},{"$error":"#N/A"},{"$error":"#N/A"},{"$error":"#N/A"},{"$error":"#N/A"},{"$error":"#N/A"},{"$error":"#N/A"},{"$error":"#N/A"},{"$error":"#N/A"},{"$error":"#N/A"},{"$error":"#N/A"},{"$error":"#N/A"},{"$error":"#N/A"},{"$error":"#N/A"},{"$error":"#N/A"},{"$error":"#N/A"},{"$error":"#N/A"},{"$error":"#N/A"},{"$error":"#N/A"},{"$error":"#N/A"},{"$error":"#N/A"},{"$error":"#N/A"},{"$error":"#N/A"},{"$error":"#N/A"},{"$error":"#N/A"},{"$error":"#N/A"},{"$error":"#N/A"},{"$error":"#N/A"},{"$error":"#N/A"},{"$error":"#N/A"},{"$error":"#N/A"},{"$error":"#N/A"},{"$error":"#N/A"},{"$error":"#N/A"},{"$error":"#N/A"},{"$error":"#N/A"},null,{"$f":"DebtServiceArray(AO33:CM33,P33,discount_rate,Q33,D33)","v":{"$error":"#VALUE!"}},{"$error":"#VALUE!"},{"$error":"#VALUE!"},{"$error":"#VALUE!"},{"$error":"#VALUE!"},{"$error":"#VALUE!"},{"$error":"#VALUE!"},{"$error":"#VALUE!"},{"$error":"#VALUE!"},{"$error":"#VALUE!"},{"$error":"#VALUE!"},{"$error":"#VALUE!"},{"$error":"#VALUE!"},{"$error":"#VALUE!"},{"$error":"#VALUE!"},{"$error":"#VALUE!"},{"$error":"#VALUE!"},{"$error":"#VALUE!"},{"$error":"#VALUE!"},{"$error":"#VALUE!"},{"$error":"#VALUE!"},{"$error":"#VALUE!"},{"$error":"#VALUE!"},{"$error":"#VALUE!"},{"$error":"#VALUE!"},{"$error":"#VALUE!"},{"$error":"#VALUE!"},{"$error":"#VALUE!"},{"$error":"#VALUE!"},{"$error":"#VALUE!"},{"$error":"#VALUE!"},{"$error":"#VALUE!"},{"$error":"#VALUE!"},{"$error":"#VALUE!"},{"$error":"#VALUE!"},{"$error":"#VALUE!"},{"$error":"#VALUE!"},{"$error":"#VALUE!"},{"$error":"#VALUE!"},{"$error":"#VALUE!"},{"$error":"#VALUE!"},{"$error":"#VALUE!"},{"$error":"#VALUE!"},{"$error":"#VALUE!"},{"$error":"#VALUE!"},{"$error":"#VALUE!"},{"$error":"#VALUE!"},{"$error":"#VALUE!"},{"$error":"#VALUE!"},{"$error":"#VALUE!"},{"$error":"#VALUE!"},null,{"$error":"#N/A"},{"$error":"#N/A"},{"$error":"#N/A"},{"$error":"#N/A"},{"$error":"#N/A"},{"$error":"#N/A"},{"$error":"#N/A"},{"$error":"#N/A"},{"$error":"#N/A"},{"$error":"#N/A"},{"$error":"#N/A"},{"$error":"#N/A"},{"$error":"#N/A"},{"$error":"#N/A"},{"$error":"#N/A"},{"$error":"#N/A"},{"$error":"#N/A"},{"$error":"#N/A"},{"$error":"#N/A"},{"$error":"#N/A"},{"$error":"#N/A"},{"$error":"#N/A"},{"$error":"#N/A"},{"$error":"#N/A"},{"$error":"#N/A"},{"$error":"#N/A"},{"$error":"#N/A"},{"$error":"#N/A"},{"$error":"#N/A"},{"$error":"#N/A"},{"$error":"#N/A"},{"$error":"#N/A"},{"$error":"#N/A"},{"$error":"#N/A"},{"$error":"#N/A"},{"$error":"#N/A"},{"$error":"#N/A"},{"$error":"#N/A"},{"$error":"#N/A"},{"$error":"#N/A"},{"$error":"#N/A"},{"$error":"#N/A"},{"$error":"#N/A"},{"$error":"#N/A"},{"$error":"#N/A"},{"$error":"#N/A"},{"$error":"#N/A"},{"$error":"#N/A"},{"$error":"#N/A"},{"$error":"#N/A"},{"$error":"#N/A"},null,{"$error":"#N/A"},{"$error":"#N/A"}]
[null,null,null,null,null,null,null,null,null,null,null,null,null,null,null,null,null,null,null,null,null,null,null,null,null,null,null,null,null,null,null,null,null,null,null,null,null,null,null,null,null,null,null,null,null,null,null,null,null,null,null,null,null,null,null,null,null,null,null,null,null,null,null,null,null,null,null,null,null,null,null,null,null,null,null,null,null,null,null,null,null,null,null,null,null,null,null,null,null,null,null,null,{"$f":"SUM(CO23:CO33)","v":{"$error":"#VALUE!"}},{"$error":"#VALUE!"},{"$error":"#VALUE!"},{"$error":"#VALUE!"},{"$error":"#VALUE!"},{"$error":"#VALUE!"},{"$error":"#VALUE!"},{"$error":"#VALUE!"},{"$error":"#VALUE!"},{"$error":"#VALUE!"},{"$error":"#VALUE!"},{"$error":"#VALUE!"},{"$error":"#VALUE!"},{"$error":"#VALUE!"},{"$error":"#VALUE!"},{"$error":"#VALUE!"},{"$error":"#VALUE!"},{"$error":"#VALUE!"},{"$error":"#VALUE!"},{"$error":"#VALUE!"},{"$error":"#VALUE!"},{"$error":"#VALUE!"},{"$error":"#VALUE!"},{"$error":"#VALUE!"},{"$error":"#VALUE!"},{"$error":"#VALUE!"},{"$error":"#VALUE!"},{"$error":"#VALUE!"},{"$error":"#VALUE!"},{"$error":"#VALUE!"},{"$error":"#VALUE!"},{"$error":"#VALUE!"},{"$f":"SUM(DU23:DU33)","v":{"$error":"#VALUE!"}},{"$error":"#VALUE!"},{"$error":"#VALUE!"},{"$error":"#VALUE!"},{"$error":"#VALUE!"},{"$error":"#VALUE!"},{"$error":"#VALUE!"},{"$error":"#VALUE!"},{"$error":"#VALUE!"},{"$error":"#VALUE!"},{"$error":"#VALUE!"},{"$error":"#VALUE!"},{"$error":"#VALUE!"},{"$error":"#VALUE!"},{"$error":"#VALUE!"},{"$error":"#VALUE!"},{"$error":"#VALUE!"},{"$error":"#VALUE!"},{"$error":"#VALUE!"},{"$error":"#VALUE!"},null,{"$f":"SUM(EP23:EP33)","v":{"$error":"#N/A"}},{"$f":"SUM(EQ23:EQ33)","v":{"$error":"#N/A"}},{"$error":"#N/A"},{"$error":"#N/A"},{"$error":"#N/A"},{"$error":"#N/A"},{"$error":"#N/A"},{"$error":"#N/A"},{"$error":"#N/A"},{"$error":"#N/A"},{"$error":"#N/A"},{"$error":"#N/A"},{"$error":"#N/A"},{"$error":"#N/A"},{"$error":"#N/A"},{"$error":"#N/A"},{"$error":"#N/A"},{"$error":"#N/A"},{"$error":"#N/A"},{"$error":"#N/A"},{"$error":"#N/A"},{"$error":"#N/A"},{"$error":"#N/A"},{"$error":"#N/A"},{"$error":"#N/A"},{"$error":"#N/A"},{"$error":"#N/A"},{"$error":"#N/A"},{"$error":"#N/A"},{"$error":"#N/A"},{"$error":"#N/A"},{"$error":"#N/A"},{"$error":"#N/A"},{"$error":"#N/A"},{"$error":"#N/A"},{"$error":"#N/A"},{"$error":"#N/A"},{"$error":"#N/A"},{"$error":"#N/A"},{"$error":"#N/A"},{"$error":"#N/A"},{"$error":"#N/A"},{"$error":"#N/A"},{"$error":"#N/A"},{"$error":"#N/A"},{"$error":"#N/A"},{"$error":"#N/A"},{"$error":"#N/A"},{"$error":"#N/A"},{"$error":"#N/A"},{"$error":"#N/A"},null,{"$f":"SUM(GP23:GP33)","v":{"$error":"#N/A"}},{"$f":"SUM(GQ23:GQ33)","v":{"$error":"#N/A"}},{"$error":"#N/A"},{"$error":"#N/A"},{"$error":"#N/A"},{"$error":"#N/A"},{"$error":"#N/A"},{"$error":"#N/A"},{"$error":"#N/A"},{"$error":"#N/A"},{"$error":"#N/A"},{"$error":"#N/A"},{"$error":"#N/A"},{"$error":"#N/A"},{"$error":"#N/A"},{"$error":"#N/A"},{"$error":"#N/A"},{"$error":"#N/A"},{"$error":"#N/A"},{"$error":"#N/A"},{"$error":"#N/A"},{"$error":"#N/A"},{"$error":"#N/A"},{"$error":"#N/A"},{"$error":"#N/A"},{"$error":"#N/A"},{"$error":"#N/A"},{"$error":"#N/A"},{"$error":"#N/A"},{"$error":"#N/A"},{"$error":"#N/A"},{"$error":"#N/A"},{"$error":"#N/A"},{"$error":"#N/A"},{"$error":"#N/A"},{"$error":"#N/A"},{"$error":"#N/A"},{"$error":"#N/A"},{"$error":"#N/A"},{"$error":"#N/A"},{"$error":"#N/A"},{"$error":"#N/A"},{"$error":"#N/A"},{"$error":"#N/A"},{"$error":"#N/A"},{"$error":"#N/A"},{"$error":"#N/A"},{"$error":"#N/A"},{"$error":"#N/A"},{"$error":"#N/A"},{"$error":"#N/A"},null,{"$f":"SUM(IP23:IP33)","v":{"$error":"#VALUE!"}},{"$error":"#VALUE!"},{"$error":"#VALUE!"},{"$error":"#VALUE!"},{"$error":"#VALUE!"},{"$error":"#VALUE!"},{"$error":"#VALUE!"},{"$error":"#VALUE!"},{"$error":"#VALUE!"},{"$error":"#VALUE!"},{"$error":"#VALUE!"},{"$error":"#VALUE!"},{"$error":"#VALUE!"},{"$error":"#VALUE!"},{"$error":"#VALUE!"},{"$error":"#VALUE!"},{"$error":"#VALUE!"},{"$error":"#VALUE!"},{"$error":"#VALUE!"},{"$error":"#VALUE!"},{"$error":"#VALUE!"},{"$error":"#VALUE!"},{"$error":"#VALUE!"},{"$error":"#VALUE!"},{"$error":"#VALUE!"},{"$error":"#VALUE!"},{"$error":"#VALUE!"},{"$error":"#VALUE!"},{"$error":"#VALUE!"},{"$error":"#VALUE!"},{"$error":"#VALUE!"},{"$error":"#VALUE!"},{"$f":"SUM(JV23:JV33)","v":{"$error":"#VALUE!"}},{"$error":"#VALUE!"},{"$error":"#VALUE!"},{"$error":"#VALUE!"},{"$error":"#VALUE!"},{"$error":"#VALUE!"},{"$error":"#VALUE!"},{"$error":"#VALUE!"},{"$error":"#VALUE!"},{"$error":"#VALUE!"},{"$error":"#VALUE!"},{"$error":"#VALUE!"},{"$error":"#VALUE!"},{"$error":"#VALUE!"},{"$error":"#VALUE!"},{"$error":"#VALUE!"},{"$error":"#VALUE!"},{"$error":"#VALUE!"},{"$error":"#VALUE!"},null,{"$f":"SUM(KP23:KP33)","v":{"$error":"#N/A"}},{"$f":"SUM(KQ23:KQ33)","v":{"$error":"#N/A"}},{"$error":"#N/A"},{"$error":"#N/A"},{"$error":"#N/A"},{"$error":"#N/A"},{"$error":"#N/A"},{"$error":"#N/A"},{"$error":"#N/A"},{"$error":"#N/A"},{"$error":"#N/A"},{"$error":"#N/A"},{"$error":"#N/A"},{"$error":"#N/A"},{"$error":"#N/A"},{"$error":"#N/A"},{"$error":"#N/A"},{"$error":"#N/A"},{"$error":"#N/A"},{"$error":"#N/A"},{"$error":"#N/A"},{"$error":"#N/A"},{"$error":"#N/A"},{"$error":"#N/A"},{"$error":"#N/A"},{"$error":"#N/A"},{"$error":"#N/A"},{"$error":"#N/A"},{"$error":"#N/A"},{"$error":"#N/A"},{"$error":"#N/A"},{"$error":"#N/A"},{"$error":"#N/A"},{"$error":"#N/A"},{"$error":"#N/A"},{"$error":"#N/A"},{"$error":"#N/A"},{"$error":"#N/A"},{"$error":"#N/A"},{"$error":"#N/A"},{"$error":"#N/A"},{"$error":"#N/A"},{"$error":"#N/A"},{"$error":"#N/A"},{"$error":"#N/A"},{"$error":"#N/A"},{"$error":"#N/A"},{"$error":"#N/A"},{"$error":"#N/A"},{"$error":"#N/A"},{"$error":"#N/A"}]
[null,"Multi-Family Measures"]
[null,"PRE-MF-01",{"$f":"INDEX(tbl_predefined_measures[MEASURE],MATCH($B36&regionid,tbl_predefined_measures[ID&REGION],0))","v":{"$error":"#N/A"}},"N",null,null,null,null,null,null,null,{"$f":"INDEX(tbl_predefined_measures[ACCOUNTING_UNIT],MATCH($B36&regionid,tbl_predefined_measures[ID&REGION],0))","v":{"$error":"#N/A"}},{"$f":"INDEX(tbl_predefined_measures[DELIVERY],MATCH($B36&regionid,tbl_predefined_measures[ID&REGION],0))","v":{"$error":"#N/A"}},null,{"$f":"INDEX(tbl_predefined_measures[COST_OM],MATCH($B36&regionid,tbl_predefined_measures[ID&REGION],0))","v":{"$error":"#N/A"}},{"$f":"INDEX(tbl_predefined_measures[COST_CAPITAL],MATCH($B36&regionid,tbl_predefined_measures[ID&REGION],0))","v":{"$error":"#N/A"}},null,null,{"$f":"INDEX(tbl_predefined_measures[SAVE_GPD],MATCH($B36&regionid,tbl_predefined_measures[ID&REGION],0))","v":{"$error":"#N/A"}},{"$f":"INDEX(tbl_predefined_measures[FREERIDE_PCT],MATCH($B36&regionid,tbl_predefined_measures[ID&REGION],0))","v":{"$error":"#N/A"}},{"$f":"INDEX(tbl_predefined_measures[DECAY_PCT],MATCH($B36&regionid,tbl_predefined_measures[ID&REGION],0))","v":{"$error":"#N/A"}},{"$f":"INDEX(tbl_predefined_measures[PLUMBCODE_YN],MATCH($B36&regionid,tbl_predefined_measures[ID&REGION],0))","v":{"$error":"#N/A"}},{"$f":"INDEX(tbl_predefined_measures[NRR_PCT],MATCH($B36&regionid,tbl_predefined_measures[ID&REGION],0))","v":{"$error":"#N/A"}},{"$f":"IF(V36=\"N\",INDEX(tbl_predefined_measures[LIFE_YRS],MATCH($B36&regionid,tbl_predefined_measures[ID&REGION],0)),99)","v":{"$error":"#N/A"}},null,{"$f":"SUM(O36:P36)","v":{"$error":"#N/A"}},{"$f":"IF(S36>0,(SUM(O36:P36)/(MP36*(1-T36)))*(MQ36-1)/(MQ36^X36-1),0)","v":{"$error":"#N/A"}},null,{"$f":"AVERAGE(KP36:KZ36)","v":{"$error":"#N/A"}},{"$f":"AVERAGE(LA36:LJ36)","v":{"$error":"#N/A"}},{"$f":"AVERAGE(LK36:LT36)","v":{"$error":"#N/A"}},{"$f":"AVERAGE(LU36:MD36)","v":{"$error":"#N/A"}},{"$f":"AVERAGE(ME36:MN36)","v":{"$error":"#N/A"}},null,{"$f":"F36/(AVERAGE(IF(baseline_selection=1,'1. Baseline Demand Projection'!E$27:F$27,'1. Baseline Demand Projection'!N$27:O$27))*mfhhldpercomplex*mftoiletsperhhld)","v":{"$error":"#DIV/0!"}},{"$f":"G36/(AVERAGE(IF(baseline_selection=1,'1. Baseline Demand Projection'!F$27:G$27,'1. Baseline Demand Projection'!O$27:P$27))*mfhhldpercomplex*mftoiletsperhhld)","v":{"$error":"#DIV/0!"}},{"$f":"H36/(AVERAGE(IF(baseline_selection=1,'1. Baseline Demand Projection'!G$27:H$27,'1. Baseline Demand Projection'!P$27:Q$27))*mfhhldpercomplex*mftoiletsperhhld)","v":{"$error":"#DIV/0!"}},{"$f":"I36/(AVERAGE(IF(baseline_selection=1,'1. Baseline Demand Projection'!H$27:I$27,'1. Baseline Demand Projection'!Q$27:R$27))*mfhhldpercomplex*mftoiletsperhhld)","v":{"$error":"#DIV/0!"}},{"$f":"J36/(AVERAGE(IF(baseline_selection=1,'1. Baseline Demand Projection'!I$27:J$27,'1. Baseline Demand Projection'!R$27:S$27))*mfhhldpercomplex*mftoiletsperhhld)","v":{"$error":"#DIV/0!"}},null,{"$f":"$F36*IF($D36=\"Y\",1,0)","v":0},{"$f":"CHOOSE(ROUNDUP((AP$18-2020)/10,0),$F36,$G36,$H36,$I36,$J36)*IF($D36=\"Y\",1,0)","v":0},0,0,0,0,0,0,0,0,0,{"$f":"CHOOSE(ROUNDUP((AZ$18-2020)/10,0),$F36,$G36,$H36,$I36,$J36)*IF($D36=\"Y\",1,0)","v":0},0,0,0,0,0,0,0,0,0,{"$f":"CHOOSE(ROUNDUP((BJ$18-2020)/10,0),$F36,$G36,$H36,$I36,$J36)*IF($D36=\"Y\",1,0)","v":0},0,0,0,0,0,0,0,0,0,{"$f":"CHOOSE(ROUNDUP((BT$18-2020)/10,0),$F36,$G36,$H36,$I36,$J36)*IF($D36=\"Y\",1,0)","v":0},0,0,0,0,0,0,0,0,0,{"$f":"CHOOSE(ROUNDUP((CD$18-2020)/10,0),$F36,$G36,$H36,$I36,$J36)*IF($D36=\"Y\",1,0)","v":0},0,0,0,0,0,0,0,0,0,null,{"$f":"MeasureSavingsArray(AO36:CM36,S36,T36,U36,W36,X36,D36)","v":{"$error":"#VALUE!"}},{"$error":"#VALUE!"},{"$error":"#VALUE!"},{"$error":"#VALUE!"},{"$error":"#VALUE!"},{"$error":"#VALUE!"},{"$error":"#VALUE!"},{"$error":"#VALUE!"},{"$error":"#VALUE!"},{"$error":"#VALUE!"},{"$error":"#VALUE!"},{"$error":"#VALUE!"},{"$error":"#VALUE!"},{"$error":"#VALUE!"},{"$error":"#VALUE!"},{"$error":"#VALUE!"},{"$error":"#VALUE!"},{"$error":"#VALUE!"},{"$error":"#VALUE!"},{"$error":"#VALUE!"},{"$error":"#VALUE!"},{"$error":"#VALUE!"},{"$error":"#VALUE!"},{"$error":"#VALUE!"},{"$error":"#VALUE!"},{"$error":"#VALUE!"},{"$error":"#VALUE!"},{"$error":"#VALUE!"},{"$error":"#VALUE!"},{"$error":"#VALUE!"},{"$error":"#VALUE!"},{"$error":"#VALUE!"},{"$error":"#VALUE!"},{"$error":"#VALUE!"},{"$error":"#VALUE!"},{"$error":"#VALUE!"},{"$error":"#VALUE!"},{"$error":"#VALUE!"},{"$error":"#VALUE!"},{"$error":"#VALUE!"},{"$error":"#VALUE!"},{"$error":"#VALUE!"},{"$error":"#VALUE!"},{"$error":"#VALUE!"},{"$error":"#VALUE!"},{"$error":"#VALUE!"},{"$error":"#VALUE!"},{"$error":"#VALUE!"},{"$error":"#VALUE!"},{"$error":"#VALUE!"},{"$error":"#VALUE!"},{"$f":"CO36+NPV(discount_rate,CP36:EM36)","v":{"$error":"#VALUE!"}},null,{"$f":"$O36*AO36","v":{"$error":"#N/A"}},{"$f":"$O36*AP36","v":{"$error":"#N/A"}},{"$f":"$O36*AQ36","v":{"$error":"#N/A"}},{"$f":"$O36*AR36","v":{"$error":"#N/A"}},{"$f":"$O36*AS36","v":{"$error":"#N/A"}},{"$f":"$O36*AT36","v":{"$error":"#N/A"}},{"$f":"$O36*AU36","v":{"$error":"#N/A"}},{"$f":"$O36*AV36","v":{"$error":"#N/A"}},{"$f":"$O36*AW36","v":{"$error":"#N/A"}},{"$f":"$O36*AX36","v":{"$error":"#N/A"}},{"$f":"$O36*AY36","v":{"$error":"#N/A"}},{"$f":"$O36*AZ36","v":{"$error":"#N/A"}},{"$f":"$O36*BA36","v":{"$error":"#N/A"}},{"$f":"$O36*BB36","v":{"$error":"#N/A"}},{"$f":"$O36*BC36","v":{"$error":"#N/A"}},{"$f":"$O36*BD36","v":{"$error":"#N/A"}},{"$f":"$O36*BE36","v":{"$error":"#N/A"}},{"$f":"$O36*BF36","v":{"$error":"#N/A"}},{"$f":"$O36*BG36","v":{"$error":"#N/A"}},{"$f":"$O36*BH36","v":{"$error":"#N/A"}},{"$f":"$O36*BI36","v":{"$error":"#N/A"}},{"$f":"$O36*BJ36","v":{"$error":"#N/A"}},{"$f":"$O36*BK36","v":{"$error":"#N/A"}},{"$f":"$O36*BL36","v":{"$error":"#N/A"}},{"$f":"$O36*BM36","v":{"$error":"#N/A"}},{"$f":"$O36*BN36","v":{"$error":"#N/A"}},{"$f":"$O36*BO36","v":{"$error":"#N/A"}},{"$f":"$O36*BP36","v":{"$error":"#N/A"}},{"$f":"$O36*BQ36","v":{"$error":"#N/A"}},{"$f":"$O36*BR36","v":{"$error":"#N/A"}},{"$f":"$O36*BS36","v":{"$error":"#N/A"}},{"$f":"$O36*BT36","v":{"$error":"#N/A"}},{"$f":"$O36*BU36","v":{"$error":"#N/A"}},{"$f":"$O36*BV36","v":{"$error":"#N/A"}},{"$f":"$O36*BW36","v":{"$error":"#N/A"}},{"$f":"$O36*BX36","v":{"$error":"#N/A"}},{"$f":"$O36*BY36","v":{"$error":"#N/A"}},{"$f":"$O36*BZ36","v":{"$error":"#N/A"}},{"$f":"$O36*CA36","v":{"$error":"#N/A"}},{"$f":"$O36*CB36","v":{"$error":"#N/A"}},{"$f":"$O36*CC36","v":{"$error":"#N/A"}},{"$f":"$O36*CD36","v":{"$error":"#N/A"}},{"$f":"$O36*CE36","v":{"$error":"#N/A"}},{"$f":"$O36*CF36","v":{"$error":"#N/A"}},{"$f":"$O36*CG36","v":{"$error":"#N/A"}},{"$f":"$O36*CH36","v":{"$error":"#N/A"}},{"$f":"$O36*CI36","v":{"$error":"#N/A"}},{"$f":"$O36*CJ36","v":{"$error":"#N/A"}},{"$f":"$O36*CK36","v":{"$error":"#N/A"}},{"$f":"$O36*CL36","v":{"$error":"#N/A"}},{"$f":"$O36*CM36","v":{"$error":"#N/A"}},null,{"$f":"$P36*IF($Q36=\"N\",1,0)*AO36","v":{"$error":"#N/A"}},{"$f":"$P36*IF($Q36=\"N\",1,0)*AP36","v":{"$error":"#N/A"}},{"$f":"$P36*IF($Q36=\"N\",1,0)*AQ36","v":{"$error":"#N/A"}},{"$f":"$P36*IF($Q36=\"N\",1,0)*AR36","v":{"$error":"#N/A"}},{"$f":"$P36*IF($Q36=\"N\",1,0)*AS36","v":{"$error":"#N/A"}},{"$f":"$P36*IF($Q36=\"N\",1,0)*AT36","v":{"$error":"#N/A"}},{"$f":"$P36*IF($Q36=\"N\",1,0)*AU36","v":{"$error":"#N/A"}},{"$f":"$P36*IF($Q36=\"N\",1,0)*AV36","v":{"$error":"#N/A"}},{"$f":"$P36*IF($Q36=\"N\",1,0)*AW36","v":{"$error":"#N/A"}},{"$f":"$P36*IF($Q36=\"N\",1,0)*AX36","v":{"$error":"#N/A"}},{"$f":"$P36*IF($Q36=\"N\",1,0)*AY36","v":{"$error":"#N/A"}},{"$f":"$P36*IF($Q36=\"N\",1,0)*AZ36","v":{"$error":"#N/A"}},{"$f":"$P36*IF($Q36=\"N\",1,0)*BA36","v":{"$error":"#N/A"}},{"$f":"$P36*IF($Q36=\"N\",1,0)*BB36","v":{"$error":"#N/A"}},{"$f":"$P36*IF($Q36=\"N\",1,0)*BC36","v":{"$error":"#N/A"}},{"$f":"$P36*IF($Q36=\"N\",1,0)*BD36","v":{"$error":"#N/A"}},{"$f":"$P36*IF($Q36=\"N\",1,0)*BE36","v":{"$error":"#N/A"}},{"$f":"$P36*IF($Q36=\"N\",1,0)*BF36","v":{"$error":"#N/A"}},{"$f":"$P36*IF($Q36=\"N\",1,0)*BG36","v":{"$error":"#N/A"}},{"$f":"$P36*IF($Q36=\"N\",1,0)*BH36","v":{"$error":"#N/A"}},{"$f":"$P36*IF($Q36=\"N\",1,0)*BI36","v":{"$error":"#N/A"}},{"$f":"$P36*IF($Q36=\"N\",1,0)*BJ36","v":{"$error":"#N/A"}},{"$f":"$P36*IF($Q36=\"N\",1,0)*BK36","v":{"$error":"#N/A"}},{"$f":"$P36*IF($Q36=\"N\",1,0)*BL36","v":{"$error":"#N/A"}},{"$f":"$P36*IF($Q36=\"N\",1,0)*BM36","v":{"$error":"#N/A"}},{"$f":"$P36*IF($Q36=\"N\",1,0)*BN36","v":{"$error":"#N/A"}},{"$f":"$P36*IF($Q36=\"N\",1,0)*BO36","v":{"$error":"#N/A"}},{"$f":"$P36*IF($Q36=\"N\",1,0)*BP36","v":{"$error":"#N/A"}},{"$f":"$P36*IF($Q36=\"N\",1,0)*BQ36","v":{"$error":"#N/A"}},{"$f":"$P36*IF($Q36=\"N\",1,0)*BR36","v":{"$error":"#N/A"}},{"$f":"$P36*IF($Q36=\"N\",1,0)*BS36","v":{"$error":"#N/A"}},{"$f":"$P36*IF($Q36=\"N\",1,0)*BT36","v":{"$error":"#N/A"}},{"$f":"$P36*IF($Q36=\"N\",1,0)*BU36","v":{"$error":"#N/A"}},{"$f":"$P36*IF($Q36=\"N\",1,0)*BV36","v":{"$error":"#N/A"}},{"$f":"$P36*IF($Q36=\"N\",1,0)*BW36","v":{"$error":"#N/A"}},{"$f":"$P36*IF($Q36=\"N\",1,0)*BX36","v":{"$error":"#N/A"}},{"$f":"$P36*IF($Q36=\"N\",1,0)*BY36","v":{"$error":"#N/A"}},{"$f":"$P36*IF($Q36=\"N\",1,0)*BZ36","v":{"$error":"#N/A"}},{"$f":"$P36*IF($Q36=\"N\",1,0)*CA36","v":{"$error":"#N/A"}},{"$f":"$P36*IF($Q36=\"N\",1,0)*CB36","v":{"$error":"#N/A"}},{"$f":"$P36*IF($Q36=\"N\",1,0)*CC36","v":{"$error":"#N/A"}},{"$f":"$P36*IF($Q36=\"N\",1,0)*CD36","v":{"$error":"#N/A"}},{"$f":"$P36*IF($Q36=\"N\",1,0)*CE36","v":{"$error":"#N/A"}},{"$f":"$P36*IF($Q36=\"N\",1,0)*CF36","v":{"$error":"#N/A"}},{"$f":"$P36*IF($Q36=\"N\",1,0)*CG36","v":{"$error":"#N/A"}},{"$f":"$P36*IF($Q36=\"N\",1,0)*CH36","v":{"$error":"#N/A"}},{"$f":"$P36*IF($Q36=\"N\",1,0)*CI36","v":{"$error":"#N/A"}},{"$f":"$P36*IF($Q36=\"N\",1,0)*CJ36","v":{"$error":"#N/A"}},{"$f":"$P36*IF($Q36=\"N\",1,0)*CK36","v":{"$error":"#N/A"}},{"$f":"$P36*IF($Q36=\"N\",1,0)*CL36","v":{"$error":"#N/A"}},{"$f":"$P36*IF($Q36=\"N\",1,0)*CM36","v":{"$error":"#N/A"}},null,{"$f":"DebtServiceArray(AO36:CM36,P36,discount_rate,Q36,D36)","v":{"$error":"#VALUE!"}},{"$error":"#VALUE!"},{"$error":"#VALUE!"},{"$error":"#VALUE!"},{"$error":"#VALUE!"},{"$error":"#VALUE!"},{"$error":"#VALUE!"},{"$error":"#VALUE!"},{"$error":"#VALUE!"},{"$error":"#VALUE!"},{"$error":"#VALUE!"},{"$error":"#VALUE!"},{"$error":"#VALUE!"},{"$error":"#VALUE!"},{"$error":"#VALUE!"},{"$error":"#VALUE!"},{"$error":"#VALUE!"},{"$error":"#VALUE!"},{"$error":"#VALUE!"},{"$error":"#VALUE!"},{"$error":"#VALUE!"},{"$error":"#VALUE!"},{"$error":"#VALUE!"},{"$error":"#VALUE!"},{"$error":"#VALUE!"},{"$error":"#VALUE!"},{"$error":"#VALUE!"},{"$error":"#VALUE!"},{"$error":"#VALUE!"},{"$error":"#VALUE!"},{"$error":"#VALUE!"},{"$error":"#VALUE!"},{"$error":"#VALUE!"},{"$error":"#VALUE!"},{"$error":"#VALUE!"},{"$error":"#VALUE!"},{"$error":"#VALUE!"},{"$error":"#VALUE!"},{"$error":"#VALUE!"},{"$error":"#VALUE!"},{"$error":"#VALUE!"},{"$error":"#VALUE!"},{"$error":"#VALUE!"},{"$error":"#VALUE!"},{"$error":"#VALUE!"},{"$error":"#VALUE!"},{"$error":"#VALUE!"},{"$error":"#VALUE!"},{"$error":"#VALUE!"},{"$error":"#VALUE!"},{"$error":"#VALUE!"},null,{"$f":"SUM(EP36,GP36,IP36)","v":{"$error":"#N/A"}},{"$f":"SUM(EQ36,GQ36,IQ36)","v":{"$error":"#N/A"}},{"$f":"SUM(ER36,GR36,IR36)","v":{"$error":"#N/A"}},{"$f":"SUM(ES36,GS36,IS36)","v":{"$error":"#N/A"}},{"$f":"SUM(ET36,GT36,IT36)","v":{"$error":"#N/A"}},{"$f":"SUM(EU36,GU36,IU36)","v":{"$error":"#N/A"}},{"$f":"SUM(EV36,GV36,IV36)","v":{"$error":"#N/A"}},{"$f":"SUM(EW36,GW36,IW36)","v":{"$error":"#N/A"}},{"$f":"SUM(EX36,GX36,IX36)","v":{"$error":"#N/A"}},{"$f":"SUM(EY36,GY36,IY36)","v":{"$error":"#N/A"}},{"$f":"SUM(EZ36,GZ36,IZ36)","v":{"$error":"#N/A"}},{"$f":"SUM(FA36,HA36,JA36)","v":{"$error":"#N/A"}},{"$f":"SUM(FB36,HB36,JB36)","v":{"$error":"#N/A"}},{"$f":"SUM(FC36,HC36,JC36)","v":{"$error":"#N/A"}},{"$f":"SUM(FD36,HD36,JD36)","v":{"$error":"#N/A"}},{"$f":"SUM(FE36,HE36,JE36)","v":{"$error":"#N/A"}},{"$f":"SUM(FF36,HF36,JF36)","v":{"$error":"#N/A"}},{"$f":"SUM(FG36,HG36,JG36)","v":{"$error":"#N/A"}},{"$f":"SUM(FH36,HH36,JH36)","v":{"$error":"#N/A"}},{"$f":"SUM(FI36,HI36,JI36)","v":{"$error":"#N/A"}},{"$f":"SUM(FJ36,HJ36,JJ36)","v":{"$error":"#N/A"}},{"$f":"SUM(FK36,HK36,JK36)","v":{"$error":"#N/A"}},{"$f":"SUM(FL36,HL36,JL36)","v":{"$error":"#N/A"}},{"$f":"SUM(FM36,HM36,JM36)","v":{"$error":"#N/A"}},{"$f":"SUM(FN36,HN36,JN36)","v":{"$error":"#N/A"}},{"$f":"SUM(FO36,HO36,JO36)","v":{"$error":"#N/A"}},{"$f":"SUM(FP36,HP36,JP36)","v":{"$error":"#N/A"}},{"$f":"SUM(FQ36,HQ36,JQ36)","v":{"$error":"#N/A"}},{"$f":"SUM(FR36,HR36,JR36)","v":{"$error":"#N/A"}},{"$f":"SUM(FS36,HS36,JS36)","v":{"$error":"#N/A"}},{"$f":"SUM(FT36,HT36,JT36)","v":{"$error":"#N/A"}},{"$f":"SUM(FU36,HU36,JU36)","v":{"$error":"#N/A"}},{"$f":"SUM(FV36,HV36,JV36)","v":{"$error":"#N/A"}},{"$f":"SUM(FW36,HW36,JW36)","v":{"$error":"#N/A"}},{"$f":"SUM(FX36,HX36,JX36)","v":{"$error":"#N/A"}},{"$f":"SUM(FY36,HY36,JY36)","v":{"$error":"#N/A"}},{"$f":"SUM(FZ36,HZ36,JZ36)","v":{"$error":"#N/A"}},{"$f":"SUM(GA36,IA36,KA36)","v":{"$error":"#N/A"}},{"$f":"SUM(GB36,IB36,KB36)","v":{"$error":"#N/A"}},{"$f":"SUM(GC36,IC36,KC36)","v":{"$error":"#N/A"}},{"$f":"SUM(GD36,ID36,KD36)","v":{"$error":"#N/A"}},{"$f":"SUM(GE36,IE36,KE36)","v":{"$error":"#N/A"}},{"$f":"SUM(GF36,IF36,KF36)","v":{"$error":"#N/A"}},{"$f":"SUM(GG36,IG36,KG36)","v":{"$error":"#N/A"}},{"$f":"SUM(GH36,IH36,KH36)","v":{"$error":"#N/A"}},{"$f":"SUM(GI36,II36,KI36)","v":{"$error":"#N/A"}},{"$f":"SUM(GJ36,IJ36,KJ36)","v":{"$error":"#N/A"}},{"$f":"SUM(GK36,IK36,KK36)","v":{"$error":"#N/A"}},{"$f":"SUM(GL36,IL36,KL36)","v":{"$error":"#N/A"}},{"$f":"SUM(GM36,IM36,KM36)","v":{"$error":"#N/A"}},{"$f":"SUM(GN36,IN36,KN36)","v":{"$error":"#N/A"}},null,{"$f":"S36*365/325851","v":{"$error":"#N/A"}},{"$f":"(1-U36)*(1-W36)/(1+discount_rate)","v":{"$error":"#N/A"}}]
[null,"PRE-MF-02",{"$f":"INDEX(tbl_predefined_measures[MEASURE],MATCH($B37&regionid,tbl_predefined_measures[ID&REGION],0))","v":{"$error":"#N/A"}},"N",null,null,null,null,null,null,null,{"$f":"INDEX(tbl_predefined_measures[ACCOUNTING_UNIT],MATCH($B37&regionid,tbl_predefined_measures[ID&REGION],0))","v":{"$error":"#N/A"}},{"$f":"INDEX(tbl_predefined_measures[DELIVERY],MATCH($B37&regionid,tbl_predefined_measures[ID&REGION],0))","v":{"$error":"#N/A"}},null,{"$f":"INDEX(tbl_predefined_measures[COST_OM],MATCH($B37&regionid,tbl_predefined_measures[ID&REGION],0))","v":{"$error":"#N/A"}},{"$f":"INDEX(tbl_predefined_measures[COST_CAPITAL],MATCH($B37&regionid,tbl_predefined_measures[ID&REGION],0))","v":{"$error":"#N/A"}},null,null,{"$f":"INDEX(tbl_predefined_measures[SAVE_GPD],MATCH($B37&regionid,tbl_predefined_measures[ID&REGION],0))","v":{"$error":"#N/A"}},{"$f":"INDEX(tbl_predefined_measures[FREERIDE_PCT],MATCH($B37&regionid,tbl_predefined_measures[ID&REGION],0))","v":{"$error":"#N/A"}},{"$f":"INDEX(tbl_predefined_measures[DECAY_PCT],MATCH($B37&regionid,tbl_predefined_measures[ID&REGION],0))","v":{"$error":"#N/A"}},{"$f":"INDEX(tbl_predefined_measures[PLUMBCODE_YN],MATCH($B37&regionid,tbl_predefined_measures[ID&REGION],0))","v":{"$error":"#N/A"}},{"$f":"INDEX(tbl_predefined_measures[NRR_PCT],MATCH($B37&regionid,tbl_predefined_measures[ID&REGION],0))","v":{"$error":"#N/A"}},{"$f":"IF(V37=\"N\",INDEX(tbl_predefined_measures[LIFE_YRS],MATCH($B37&regionid,tbl_predefined_measures[ID&REGION],0)),99)","v":{"$error":"#N/A"}},null,{"$error":"#N/A"},{"$error":"#N/A"},null,{"$error":"#N/A"},{"$error":"#N/A"},{"$error":"#N/A"},{"$error":"#N/A"},{"$error":"#N/A"},null,{"$f":"F37/(AVERAGE(IF(baseline_selection=1,'1. Baseline Demand Projection'!E$27:F$27,'1. Baseline Demand Projection'!N$27:O$27))*mfhhldpercomplex*mftoiletsperhhld)","v":{"$error":"#DIV/0!"}},{"$f":"G37/(AVERAGE(IF(baseline_selection=1,'1. Baseline Demand Projection'!F$27:G$27,'1. Baseline Demand Projection'!O$27:P$27))*mfhhldpercomplex*mftoiletsperhhld)","v":{"$error":"#DIV/0!"}},{"$f":"H37/(AVERAGE(IF(baseline_selection=1,'1. Baseline Demand Projection'!G$27:H$27,'1. Baseline Demand Projection'!P$27:Q$27))*mfhhldpercomplex*mftoiletsperhhld)","v":{"$error":"#DIV/0!"}},{"$f":"I37/(AVERAGE(IF(baseline_selection=1,'1. Baseline Demand Projection'!H$27:I$27,'1. Baseline Demand Projection'!Q$27:R$27))*mfhhldpercomplex*mftoiletsperhhld)","v":{"$error":"#DIV/0!"}},{"$f":"J37/(AVERAGE(IF(baseline_selection=1,'1. Baseline Demand Projection'!I$27:J$27,'1. Baseline Demand Projection'!R$27:S$27))*mfhhldpercomplex*mftoiletsperhhld)","v":{"$error":"#DIV/0!"}},null,0,0,0,0,0,0,0,0,0,0,0,0,0,0,0,0,0,0,0,0,0,0,0,0,0,0,0,0,0,0,0,0,0,0,0,0,0,0,0,0,0,0,0,0,0,0,0,0,0,0,0,null,{"$f":"MeasureSavingsArray(AO37:CM37,S37,T37,U37,W37,X37,D37)","v":{"$error":"#VALUE!"}},{"$error":"#VALUE!"},{"$error":"#VALUE!"},{"$error":"#VALUE!"},{"$error":"#VALUE!"},{"$error":"#VALUE!"},{"$error":"#VALUE!"},{"$error":"#VALUE!"},{"$error":"#VALUE!"},{"$error":"#VALUE!"},{"$error":"#VALUE!"},{"$error":"#VALUE!"},{"$error":"#VALUE!"},{"$error":"#VALUE!"},{"$error":"#VALUE!"},{"$error":"#VALUE!"},{"$error":"#VALUE!"},{"$error":"#VALUE!"},{"$error":"#VALUE!"},{"$error":"#VALUE!"},{"$error":"#VALUE!"},{"$error":"#VALUE!"},{"$error":"#VALUE!"},{"$error":"#VALUE!"},{"$error":"#VALUE!"},{"$error":"#VALUE!"},{"$error":"#VALUE!"},{"$error":"#VALUE!"},{"$error":"#VALUE!"},{"$error":"#VALUE!"},{"$error":"#VALUE!"},{"$error":"#VALUE!"},{"$error":"#VALUE!"},{"$error":"#VALUE!"},{"$error":"#VALUE!"},{"$error":"#VALUE!"},{"$error":"#VALUE!"},{"$error":"#VALUE!"},{"$error":"#VALUE!"},{"$error":"#VALUE!"},{"$error":"#VALUE!"},{"$error":"#VALUE!"},{"$error":"#VALUE!"},{"$error":"#VALUE!"},{"$error":"#VALUE!"},{"$error":"#VALUE!"},{"$error":"#VALUE!"},{"$error":"#VALUE!"},{"$error":"#VALUE!"},{"$error":"#VALUE!"},{"$error":"#VALUE!"},{"$error":"#VALUE!"},null,{"$error":"#N/A"},{"$error":"#N/A"},{"$error":"#N/A"},{"$error":"#N/A"},{"$error":"#N/A"},{"$error":"#N/A"},{"$error":"#N/A"},{"$error":"#N/A"},{"$error":"#N/A"},{"$error":"#N/A"},{"$error":"#N/A"},{"$error":"#N/A"},{"$error":"#N/A"},{"$error":"#N/A"},{"$error":"#N/A"},{"$error":"#N/A"},{"$error":"#N/A"},{"$error":"#N/A"},{"$error":"#N/A"},{"$error":"#N/A"},{"$error":"#N/A"},{"$error":"#N/A"},{"$error":"#N/A"},{"$error":"#N/A"},{"$error":"#N/A"},{"$error":"#N/A"},{"$error":"#N/A"},{"$error":"#N/A"},{"$error":"#N/A"},{"$error":"#N/A"},{"$error":"#N/A"},{"$error":"#N/A"},{"$error":"#N/A"},{"$error":"#N/A"},{"$error":"#N/A"},{"$error":"#N/A"},{"$error":"#N/A"},{"$error":"#N/A"},{"$error":"#N/A"},{"$error":"#N/A"},{"$error":"#N/A"},{"$error":"#N/A"},{"$error":"#N/A"},{"$error":"#N/A"},{"$error":"#N/A"},{"$error":"#N/A"},{"$error":"#N/A"},{"$error":"#N/A"},{"$error":"#N/A"},{"$error":"#N/A"},{"$error":"#N/A"},null,{"$error":"#N/A"},{"$error":"#N/A"},{"$error":"#N/A"},{"$error":"#N/A"},{"$error":"#N/A"},{"$error":"#N/A"},{"$error":"#N/A"},{"$error":"#N/A"},{"$error":"#N/A"},{"$error":"#N/A"},{"$error":"#N/A"},{"$error":"#N/A"},{"$error":"#N/A"},{"$error":"#N/A"},{"$error":"#N/A"},{"$error":"#N/A"},{"$error":"#N/A"},{"$error":"#N/A"},{"$error":"#N/A"},{"$error":"#N/A"},{"$error":"#N/A"},{"$error":"#N/A"},{"$error":"#N/A"},{"$error":"#N/A"},{"$error":"#N/A"},{"$error":"#N/A"},{"$error":"#N/A"},{"$error":"#N/A"},{"$error":"#N/A"},{"$error":"#N/A"},{"$error":"#N/A"},{"$error":"#N/A"},{"$error":"#N/A"},{"$error":"#N/A"},{"$error":"#N/A"},{"$error":"#N/A"},{"$error":"#N/A"},{"$error":"#N/A"},{"$error":"#N/A"},{"$error":"#N/A"},{"$error":"#N/A"},{"$error":"#N/A"},{"$error":"#N/A"},{"$error":"#N/A"},{"$error":"#N/A"},{"$error":"#N/A"},{"$error":"#N/A"},{"$error":"#N/A"},{"$error":"#N/A"},{"$error":"#N/A"},{"$error":"#N/A"},null,{"$f":"DebtServiceArray(AO37:CM37,P37,discount_rate,Q37,D37)","v":{"$error":"#VALUE!"}},{"$error":"#VALUE!"},{"$error":"#VALUE!"},{"$error":"#VALUE!"},{"$error":"#VALUE!"},{"$error":"#VALUE!"},{"$error":"#VALUE!"},{"$error":"#VALUE!"},{"$error":"#VALUE!"},{"$error":"#VALUE!"},{"$error":"#VALUE!"},{"$error":"#VALUE!"},{"$error":"#VALUE!"},{"$error":"#VALUE!"},{"$error":"#VALUE!"},{"$error":"#VALUE!"},{"$error":"#VALUE!"},{"$error":"#VALUE!"},{"$error":"#VALUE!"},{"$error":"#VALUE!"},{"$error":"#VALUE!"},{"$error":"#VALUE!"},{"$error":"#VALUE!"},{"$error":"#VALUE!"},{"$error":"#VALUE!"},{"$error":"#VALUE!"},{"$error":"#VALUE!"},{"$error":"#VALUE!"},{"$error":"#VALUE!"},{"$error":"#VALUE!"},{"$error":"#VALUE!"},{"$error":"#VALUE!"},{"$error":"#VALUE!"},{"$error":"#VALUE!"},{"$error":"#VALUE!"},{"$error":"#VALUE!"},{"$error":"#VALUE!"},{"$error":"#VALUE!"},{"$error":"#VALUE!"},{"$error":"#VALUE!"},{"$error":"#VALUE!"},{"$error":"#VALUE!"},{"$error":"#VALUE!"},{"$error":"#VALUE!"},{"$error":"#VALUE!"},{"$error":"#VALUE!"},{"$error":"#VALUE!"},{"$error":"#VALUE!"},{"$error":"#VALUE!"},{"$error":"#VALUE!"},{"$error":"#VALUE!"},null,{"$error":"#N/A"},{"$error":"#N/A"},{"$error":"#N/A"},{"$error":"#N/A"},{"$error":"#N/A"},{"$error":"#N/A"},{"$error":"#N/A"},{"$error":"#N/A"},{"$error":"#N/A"},{"$error":"#N/A"},{"$error":"#N/A"},{"$error":"#N/A"},{"$error":"#N/A"},{"$error":"#N/A"},{"$error":"#N/A"},{"$error":"#N/A"},{"$error":"#N/A"},{"$error":"#N/A"},{"$error":"#N/A"},{"$error":"#N/A"},{"$error":"#N/A"},{"$error":"#N/A"},{"$error":"#N/A"},{"$error":"#N/A"},{"$error":"#N/A"},{"$error":"#N/A"},{"$error":"#N/A"},{"$error":"#N/A"},{"$error":"#N/A"},{"$error":"#N/A"},{"$error":"#N/A"},{"$error":"#N/A"},{"$error":"#N/A"},{"$error":"#N/A"},{"$error":"#N/A"},{"$error":"#N/A"},{"$error":"#N/A"},{"$error":"#N/A"},{"$error":"#N/A"},{"$error":"#N/A"},{"$error":"#N/A"},{"$error":"#N/A"},{"$error":"#N/A"},{"$error":"#N/A"},{"$error":"#N/A"},{"$error":"#N/A"},{"$error":"#N/A"},{"$error":"#N/A"},{"$error":"#N/A"},{"$error":"#N/A"},{"$error":"#N/A"},null,{"$error":"#N/A"},{"$error":"#N/A"}]
[null,"PRE-MF-03",{"$f":"INDEX(tbl_predefined_measures[MEASURE],MATCH($B38&regionid,tbl_predefined_measures[ID&REGION],0))","v":{"$error":"#N/A"}},"N",null,null,null,null,null,null,null,{"$f":"INDEX(tbl_predefined_measures[ACCOUNTING_UNIT],MATCH($B38&regionid,tbl_predefined_measures[ID&REGION],0))","v":{"$error":"#N/A"}},{"$f":"INDEX(tbl_predefined_measures[DELIVERY],MATCH($B38&regionid,tbl_predefined_measures[ID&REGION],0))","v":{"$error":"#N/A"}},null,{"$f":"INDEX(tbl_predefined_measures[COST_OM],MATCH($B38&regionid,tbl_predefined_measures[ID&REGION],0))","v":{"$error":"#N/A"}},{"$f":"INDEX(tbl_predefined_measures[COST_CAPITAL],MATCH($B38&regionid,tbl_predefined_measures[ID&REGION],0))","v":{"$error":"#N/A"}},null,null,{"$f":"INDEX(tbl_predefined_measures[SAVE_GPD],MATCH($B38&regionid,tbl_predefined_measures[ID&REGION],0))","v":{"$error":"#N/A"}},{"$f":"INDEX(tbl_predefined_measures[FREERIDE_PCT],MATCH($B38&regionid,tbl_predefined_measures[ID&REGION],0))","v":{"$error":"#N/A"}},{"$f":"INDEX(tbl_predefined_measures[DECAY_PCT],MATCH($B38&regionid,tbl_predefined_measures[ID&REGION],0))","v":{"$error":"#N/A"}},{"$f":"INDEX(tbl_predefined_measures[PLUMBCODE_YN],MATCH($B38&regionid,tbl_predefined_measures[ID&REGION],0))","v":{"$error":"#N/A"}},{"$f":"INDEX(tbl_predefined_measures[NRR_PCT],MATCH($B38&regionid,tbl_predefined_measures[ID&REGION],0))","v":{"$error":"#N/A"}},{"$f":"IF(V38=\"N\",INDEX(tbl_predefined_measures[LIFE_YRS],MATCH($B38&regionid,tbl_predefined_measures[ID&REGION],0)),99)","v":{"$error":"#N/A"}},null,{"$error":"#N/A"},{"$error":"#N/A"},null,{"$error":"#N/A"},{"$error":"#N/A"},{"$error":"#N/A"},{"$error":"#N/A"},{"$error":"#N/A"},null,{"$f":"F38/(AVERAGE(IF(baseline_selection=1,'1. Baseline Demand Projection'!E$27:F$27,'1. Baseline Demand Projection'!N$27:O$27))*mfhhldpercomplex*mfshwrsperhhld)","v":{"$error":"#DIV/0!"}},{"$f":"G38/(AVERAGE(IF(baseline_selection=1,'1. Baseline Demand Projection'!F$27:G$27,'1. Baseline Demand Projection'!O$27:P$27))*mfhhldpercomplex*mfshwrsperhhld)","v":{"$error":"#DIV/0!"}},{"$f":"H38/(AVERAGE(IF(baseline_selection=1,'1. Baseline Demand Projection'!G$27:H$27,'1. Baseline Demand Projection'!P$27:Q$27))*mfhhldpercomplex*mfshwrsperhhld)","v":{"$error":"#DIV/0!"}},{"$f":"I38/(AVERAGE(IF(baseline_selection=1,'1. Baseline Demand Projection'!H$27:I$27,'1. Baseline Demand Projection'!Q$27:R$27))*mfhhldpercomplex*mfshwrsperhhld)","v":{"$error":"#DIV/0!"}},{"$f":"J38/(AVERAGE(IF(baseline_selection=1,'1. Baseline Demand Projection'!I$27:J$27,'1. Baseline Demand Projection'!R$27:S$27))*mfhhldpercomplex*mfshwrsperhhld)","v":{"$error":"#DIV/0!"}},null,0,0,0,0,0,0,0,0,0,0,0,0,0,0,0,0,0,0,0,0,0,0,0,0,0,0,0,0,0,0,0,0,0,0,0,0,0,0,0,0,0,0,0,0,0,0,0,0,0,0,0,null,{"$f":"MeasureSavingsArray(AO38:CM38,S38,T38,U38,W38,X38,D38)","v":{"$error":"#VALUE!"}},{"$error":"#VALUE!"},{"$error":"#VALUE!"},{"$error":"#VALUE!"},{"$error":"#VALUE!"},{"$error":"#VALUE!"},{"$error":"#VALUE!"},{"$error":"#VALUE!"},{"$error":"#VALUE!"},{"$error":"#VALUE!"},{"$error":"#VALUE!"},{"$error":"#VALUE!"},{"$error":"#VALUE!"},{"$error":"#VALUE!"},{"$error":"#VALUE!"},{"$error":"#VALUE!"},{"$error":"#VALUE!"},{"$error":"#VALUE!"},{"$error":"#VALUE!"},{"$error":"#VALUE!"},{"$error":"#VALUE!"},{"$error":"#VALUE!"},{"$error":"#VALUE!"},{"$error":"#VALUE!"},{"$error":"#VALUE!"},{"$error":"#VALUE!"},{"$error":"#VALUE!"},{"$error":"#VALUE!"},{"$error":"#VALUE!"},{"$error":"#VALUE!"},{"$error":"#VALUE!"},{"$error":"#VALUE!"},{"$error":"#VALUE!"},{"$error":"#VALUE!"},{"$error":"#VALUE!"},{"$error":"#VALUE!"},{"$error":"#VALUE!"},{"$error":"#VALUE!"},{"$error":"#VALUE!"},{"$error":"#VALUE!"},{"$error":"#VALUE!"},{"$error":"#VALUE!"},{"$error":"#VALUE!"},{"$error":"#VALUE!"},{"$error":"#VALUE!"},{"$error":"#VALUE!"},{"$error":"#VALUE!"},{"$error":"#VALUE!"},{"$error":"#VALUE!"},{"$error":"#VALUE!"},{"$error":"#VALUE!"},{"$error":"#VALUE!"},null,{"$error":"#N/A"},{"$error":"#N/A"},{"$error":"#N/A"},{"$error":"#N/A"},{"$error":"#N/A"},{"$error":"#N/A"},{"$error":"#N/A"},{"$error":"#N/A"},{"$error":"#N/A"},{"$error":"#N/A"},{"$error":"#N/A"},{"$error":"#N/A"},{"$error":"#N/A"},{"$error":"#N/A"},{"$error":"#N/A"},{"$error":"#N/A"},{"$error":"#N/A"},{"$error":"#N/A"},{"$error":"#N/A"},{"$error":"#N/A"},{"$error":"#N/A"},{"$error":"#N/A"},{"$error":"#N/A"},{"$error":"#N/A"},{"$error":"#N/A"},{"$error":"#N/A"},{"$error":"#N/A"},{"$error":"#N/A"},{"$error":"#N/A"},{"$error":"#N/A"},{"$error":"#N/A"},{"$error":"#N/A"},{"$error":"#N/A"},{"$error":"#N/A"},{"$error":"#N/A"},{"$error":"#N/A"},{"$error":"#N/A"},{"$error":"#N/A"},{"$error":"#N/A"},{"$error":"#N/A"},{"$error":"#N/A"},{"$error":"#N/A"},{"$error":"#N/A"},{"$error":"#N/A"},{"$error":"#N/A"},{"$error":"#N/A"},{"$error":"#N/A"},{"$error":"#N/A"},{"$error":"#N/A"},{"$error":"#N/A"},{"$error":"#N/A"},null,{"$error":"#N/A"},{"$error":"#N/A"},{"$error":"#N/A"},{"$error":"#N/A"},{"$error":"#N/A"},{"$error":"#N/A"},{"$error":"#N/A"},{"$error":"#N/A"},{"$error":"#N/A"},{"$error":"#N/A"},{"$error":"#N/A"},{"$error":"#N/A"},{"$error":"#N/A"},{"$error":"#N/A"},{"$error":"#N/A"},{"$error":"#N/A"},{"$error":"#N/A"},{"$error":"#N/A"},{"$error":"#N/A"},{"$error":"#N/A"},{"$error":"#N/A"},{"$error":"#N/A"},{"$error":"#N/A"},{"$error":"#N/A"},{"$error":"#N/A"},{"$error":"#N/A"},{"$error":"#N/A"},{"$error":"#N/A"},{"$error":"#N/A"},{"$error":"#N/A"},{"$error":"#N/A"},{"$error":"#N/A"},{"$error":"#N/A"},{"$error":"#N/A"},{"$error":"#N/A"},{"$error":"#N/A"},{"$error":"#N/A"},{"$error":"#N/A"},{"$error":"#N/A"},{"$error":"#N/A"},{"$error":"#N/A"},{"$error":"#N/A"},{"$error":"#N/A"},{"$error":"#N/A"},{"$error":"#N/A"},{"$error":"#N/A"},{"$error":"#N/A"},{"$error":"#N/A"},{"$error":"#N/A"},{"$error":"#N/A"},{"$error":"#N/A"},null,{"$f":"DebtServiceArray(AO38:CM38,P38,discount_rate,Q38,D38)","v":{"$error":"#VALUE!"}},{"$error":"#VALUE!"},{"$error":"#VALUE!"},{"$error":"#VALUE!"},{"$error":"#VALUE!"},{"$error":"#VALUE!"},{"$error":"#VALUE!"},{"$error":"#VALUE!"},{"$error":"#VALUE!"},{"$error":"#VALUE!"},{"$error":"#VALUE!"},{"$error":"#VALUE!"},{"$error":"#VALUE!"},{"$error":"#VALUE!"},{"$error":"#VALUE!"},{"$error":"#VALUE!"},{"$error":"#VALUE!"},{"$error":"#VALUE!"},{"$error":"#VALUE!"},{"$error":"#VALUE!"},{"$error":"#VALUE!"},{"$error":"#VALUE!"},{"$error":"#VALUE!"},{"$error":"#VALUE!"},{"$error":"#VALUE!"},{"$error":"#VALUE!"},{"$error":"#VALUE!"},{"$error":"#VALUE!"},{"$error":"#VALUE!"},{"$error":"#VALUE!"},{"$error":"#VALUE!"},{"$error":"#VALUE!"},{"$error":"#VALUE!"},{"$error":"#VALUE!"},{"$error":"#VALUE!"},{"$error":"#VALUE!"},{"$error":"#VALUE!"},{"$error":"#VALUE!"},{"$error":"#VALUE!"},{"$error":"#VALUE!"},{"$error":"#VALUE!"},{"$error":"#VALUE!"},{"$error":"#VALUE!"},{"$error":"#VALUE!"},{"$error":"#VALUE!"},{"$error":"#VALUE!"},{"$error":"#VALUE!"},{"$error":"#VALUE!"},{"$error":"#VALUE!"},{"$error":"#VALUE!"},{"$error":"#VALUE!"},null,{"$error":"#N/A"},{"$error":"#N/A"},{"$error":"#N/A"},{"$error":"#N/A"},{"$error":"#N/A"},{"$error":"#N/A"},{"$error":"#N/A"},{"$error":"#N/A"},{"$error":"#N/A"},{"$error":"#N/A"},{"$error":"#N/A"},{"$error":"#N/A"},{"$error":"#N/A"},{"$error":"#N/A"},{"$error":"#N/A"},{"$error":"#N/A"},{"$error":"#N/A"},{"$error":"#N/A"},{"$error":"#N/A"},{"$error":"#N/A"},{"$error":"#N/A"},{"$error":"#N/A"},{"$error":"#N/A"},{"$error":"#N/A"},{"$error":"#N/A"},{"$error":"#N/A"},{"$error":"#N/A"},{"$error":"#N/A"},{"$error":"#N/A"},{"$error":"#N/A"},{"$error":"#N/A"},{"$error":"#N/A"},{"$error":"#N/A"},{"$error":"#N/A"},{"$error":"#N/A"},{"$error":"#N/A"},{"$error":"#N/A"},{"$error":"#N/A"},{"$error":"#N/A"},{"$error":"#N/A"},{"$error":"#N/A"},{"$error":"#N/A"},{"$error":"#N/A"},{"$error":"#N/A"},{"$error":"#N/A"},{"$error":"#N/A"},{"$error":"#N/A"},{"$error":"#N/A"},{"$error":"#N/A"},{"$error":"#N/A"},{"$error":"#N/A"},null,{"$error":"#N/A"},{"$error":"#N/A"}]
[null,"PRE-MF-04",{"$f":"INDEX(tbl_predefined_measures[MEASURE],MATCH($B39&regionid,tbl_predefined_measures[ID&REGION],0))","v":{"$error":"#N/A"}},"N",null,null,null,null,null,null,null,{"$f":"INDEX(tbl_predefined_measures[ACCOUNTING_UNIT],MATCH($B39&regionid,tbl_predefined_measures[ID&REGION],0))","v":{"$error":"#N/A"}},{"$f":"INDEX(tbl_predefined_measures[DELIVERY],MATCH($B39&regionid,tbl_predefined_measures[ID&REGION],0))","v":{"$error":"#N/A"}},null,{"$f":"INDEX(tbl_predefined_measures[COST_OM],MATCH($B39&regionid,tbl_predefined_measures[ID&REGION],0))","v":{"$error":"#N/A"}},{"$f":"INDEX(tbl_predefined_measures[COST_CAPITAL],MATCH($B39&regionid,tbl_predefined_measures[ID&REGION],0))","v":{"$error":"#N/A"}},null,null,{"$f":"INDEX(tbl_predefined_measures[SAVE_GPD],MATCH($B39&regionid,tbl_predefined_measures[ID&REGION],0))","v":{"$error":"#N/A"}},{"$f":"INDEX(tbl_predefined_measures[FREERIDE_PCT],MATCH($B39&regionid,tbl_predefined_measures[ID&REGION],0))","v":{"$error":"#N/A"}},{"$f":"INDEX(tbl_predefined_measures[DECAY_PCT],MATCH($B39&regionid,tbl_predefined_measures[ID&REGION],0))","v":{"$error":"#N/A"}},{"$f":"INDEX(tbl_predefined_measures[PLUMBCODE_YN],MATCH($B39&regionid,tbl_predefined_measures[ID&REGION],0))","v":{"$error":"#N/A"}},{"$f":"INDEX(tbl_predefined_measures[NRR_PCT],MATCH($B39&regionid,tbl_predefined_measures[ID&REGION],0))","v":{"$error":"#N/A"}},{"$f":"IF(V39=\"N\",INDEX(tbl_predefined_measures[LIFE_YRS],MATCH($B39&regionid,tbl_predefined_measures[ID&REGION],0)),99)","v":{"$error":"#N/A"}},null,{"$error":"#N/A"},{"$error":"#N/A"},null,{"$error":"#N/A"},{"$error":"#N/A"},{"$error":"#N/A"},{"$error":"#N/A"},{"$error":"#N/A"},null,{"$f":"F39/(AVERAGE(IF(baseline_selection=1,'1. Baseline Demand Projection'!E$27:F$27,'1. Baseline Demand Projection'!N$27:O$27))*(mfhhldpercomplex/mfhhldperwasher))","v":{"$error":"#DIV/0!"}},{"$f":"G39/(AVERAGE(IF(baseline_selection=1,'1. Baseline Demand Projection'!F$27:G$27,'1. Baseline Demand Projection'!O$27:P$27))*(mfhhldpercomplex/mfhhldperwasher))","v":{"$error":"#DIV/0!"}},{"$f":"H39/(AVERAGE(IF(baseline_selection=1,'1. Baseline Demand Projection'!G$27:H$27,'1. Baseline Demand Projection'!P$27:Q$27))*(mfhhldpercomplex/mfhhldperwasher))","v":{"$error":"#DIV/0!"}},{"$f":"I39/(AVERAGE(IF(baseline_selection=1,'1. Baseline Demand Projection'!H$27:I$27,'1. Baseline Demand Projection'!Q$27:R$27))*(mfhhldpercomplex/mfhhldperwasher))","v":{"$error":"#DIV/0!"}},{"$f":"J39/(AVERAGE(IF(baseline_selection=1,'1. Baseline Demand Projection'!I$27:J$27,'1. Baseline Demand Projection'!R$27:S$27))*(mfhhldpercomplex/mfhhldperwasher))","v":{"$error":"#DIV/0!"}},null,0,0,0,0,0,0,0,0,0,0,0,0,0,0,0,0,0,0,0,0,0,0,0,0,0,0,0,0,0,0,0,0,0,0,0,0,0,0,0,0,0,0,0,0,0,0,0,0,0,0,0,null,{"$f":"MeasureSavingsArray(AO39:CM39,S39,T39,U39,W39,X39,D39)","v":{"$error":"#VALUE!"}},{"$error":"#VALUE!"},{"$error":"#VALUE!"},{"$error":"#VALUE!"},{"$error":"#VALUE!"},{"$error":"#VALUE!"},{"$error":"#VALUE!"},{"$error":"#VALUE!"},{"$error":"#VALUE!"},{"$error":"#VALUE!"},{"$error":"#VALUE!"},{"$error":"#VALUE!"},{"$error":"#VALUE!"},{"$error":"#VALUE!"},{"$error":"#VALUE!"},{"$error":"#VALUE!"},{"$error":"#VALUE!"},{"$error":"#VALUE!"},{"$error":"#VALUE!"},{"$error":"#VALUE!"},{"$error":"#VALUE!"},{"$error":"#VALUE!"},{"$error":"#VALUE!"},{"$error":"#VALUE!"},{"$error":"#VALUE!"},{"$error":"#VALUE!"},{"$error":"#VALUE!"},{"$error":"#VALUE!"},{"$error":"#VALUE!"},{"$error":"#VALUE!"},{"$error":"#VALUE!"},{"$error":"#VALUE!"},{"$error":"#VALUE!"},{"$error":"#VALUE!"},{"$error":"#VALUE!"},{"$error":"#VALUE!"},{"$error":"#VALUE!"},{"$error":"#VALUE!"},{"$error":"#VALUE!"},{"$error":"#VALUE!"},{"$error":"#VALUE!"},{"$error":"#VALUE!"},{"$error":"#VALUE!"},{"$error":"#VALUE!"},{"$error":"#VALUE!"},{"$error":"#VALUE!"},{"$error":"#VALUE!"},{"$error":"#VALUE!"},{"$error":"#VALUE!"},{"$error":"#VALUE!"},{"$error":"#VALUE!"},{"$error":"#VALUE!"},null,{"$error":"#N/A"},{"$error":"#N/A"},{"$error":"#N/A"},{"$error":"#N/A"},{"$error":"#N/A"},{"$error":"#N/A"},{"$error":"#N/A"},{"$error":"#N/A"},{"$error":"#N/A"},{"$error":"#N/A"},{"$error":"#N/A"},{"$error":"#N/A"},{"$error":"#N/A"},{"$error":"#N/A"},{"$error":"#N/A"},{"$error":"#N/A"},{"$error":"#N/A"},{"$error":"#N/A"},{"$error":"#N/A"},{"$error":"#N/A"},{"$error":"#N/A"},{"$error":"#N/A"},{"$error":"#N/A"},{"$error":"#N/A"},{"$error":"#N/A"},{"$error":"#N/A"},{"$error":"#N/A"},{"$error":"#N/A"},{"$error":"#N/A"},{"$error":"#N/A"},{"$error":"#N/A"},{"$error":"#N/A"},{"$error":"#N/A"},{"$error":"#N/A"},{"$error":"#N/A"},{"$error":"#N/A"},{"$error":"#N/A"},{"$error":"#N/A"},{"$error":"#N/A"},{"$error":"#N/A"},{"$error":"#N/A"},{"$error":"#N/A"},{"$error":"#N/A"},{"$error":"#N/A"},{"$error":"#N/A"},{"$error":"#N/A"},{"$error":"#N/A"},{"$error":"#N/A"},{"$error":"#N/A"},{"$error":"#N/A"},{"$error":"#N/A"},null,{"$error":"#N/A"},{"$error":"#N/A"},{"$error":"#N/A"},{"$error":"#N/A"},{"$error":"#N/A"},{"$error":"#N/A"},{"$error":"#N/A"},{"$error":"#N/A"},{"$error":"#N/A"},{"$error":"#N/A"},{"$error":"#N/A"},{"$error":"#N/A"},{"$error":"#N/A"},{"$error":"#N/A"},{"$error":"#N/A"},{"$error":"#N/A"},{"$error":"#N/A"},{"$error":"#N/A"},{"$error":"#N/A"},{"$error":"#N/A"},{"$error":"#N/A"},{"$error":"#N/A"},{"$error":"#N/A"},{"$error":"#N/A"},{"$error":"#N/A"},{"$error":"#N/A"},{"$error":"#N/A"},{"$error":"#N/A"},{"$error":"#N/A"},{"$error":"#N/A"},{"$error":"#N/A"},{"$error":"#N/A"},{"$error":"#N/A"},{"$error":"#N/A"},{"$error":"#N/A"},{"$error":"#N/A"},{"$error":"#N/A"},{"$error":"#N/A"},{"$error":"#N/A"},{"$error":"#N/A"},{"$error":"#N/A"},{"$error":"#N/A"},{"$error":"#N/A"},{"$error":"#N/A"},{"$error":"#N/A"},{"$error":"#N/A"},{"$error":"#N/A"},{"$error":"#N/A"},{"$error":"#N/A"},{"$error":"#N/A"},{"$error":"#N/A"},null,{"$f":"DebtServiceArray(AO39:CM39,P39,discount_rate,Q39,D39)","v":{"$error":"#VALUE!"}},{"$error":"#VALUE!"},{"$error":"#VALUE!"},{"$error":"#VALUE!"},{"$error":"#VALUE!"},{"$error":"#VALUE!"},{"$error":"#VALUE!"},{"$error":"#VALUE!"},{"$error":"#VALUE!"},{"$error":"#VALUE!"},{"$error":"#VALUE!"},{"$error":"#VALUE!"},{"$error":"#VALUE!"},{"$error":"#VALUE!"},{"$error":"#VALUE!"},{"$error":"#VALUE!"},{"$error":"#VALUE!"},{"$error":"#VALUE!"},{"$error":"#VALUE!"},{"$error":"#VALUE!"},{"$error":"#VALUE!"},{"$error":"#VALUE!"},{"$error":"#VALUE!"},{"$error":"#VALUE!"},{"$error":"#VALUE!"},{"$error":"#VALUE!"},{"$error":"#VALUE!"},{"$error":"#VALUE!"},{"$error":"#VALUE!"},{"$error":"#VALUE!"},{"$error":"#VALUE!"},{"$error":"#VALUE!"},{"$error":"#VALUE!"},{"$error":"#VALUE!"},{"$error":"#VALUE!"},{"$error":"#VALUE!"},{"$error":"#VALUE!"},{"$error":"#VALUE!"},{"$error":"#VALUE!"},{"$error":"#VALUE!"},{"$error":"#VALUE!"},{"$error":"#VALUE!"},{"$error":"#VALUE!"},{"$error":"#VALUE!"},{"$error":"#VALUE!"},{"$error":"#VALUE!"},{"$error":"#VALUE!"},{"$error":"#VALUE!"},{"$error":"#VALUE!"},{"$error":"#VALUE!"},{"$error":"#VALUE!"},null,{"$error":"#N/A"},{"$error":"#N/A"},{"$error":"#N/A"},{"$error":"#N/A"},{"$error":"#N/A"},{"$error":"#N/A"},{"$error":"#N/A"},{"$error":"#N/A"},{"$error":"#N/A"},{"$error":"#N/A"},{"$error":"#N/A"},{"$error":"#N/A"},{"$error":"#N/A"},{"$error":"#N/A"},{"$error":"#N/A"},{"$error":"#N/A"},{"$error":"#N/A"},{"$error":"#N/A"},{"$error":"#N/A"},{"$error":"#N/A"},{"$error":"#N/A"},{"$error":"#N/A"},{"$error":"#N/A"},{"$error":"#N/A"},{"$error":"#N/A"},{"$error":"#N/A"},{"$error":"#N/A"},{"$error":"#N/A"},{"$error":"#N/A"},{"$error":"#N/A"},{"$error":"#N/A"},{"$error":"#N/A"},{"$error":"#N/A"},{"$error":"#N/A"},{"$error":"#N/A"},{"$error":"#N/A"},{"$error":"#N/A"},{"$error":"#N/A"},{"$error":"#N/A"},{"$error":"#N/A"},{"$error":"#N/A"},{"$error":"#N/A"},{"$error":"#N/A"},{"$error":"#N/A"},{"$error":"#N/A"},{"$error":"#N/A"},{"$error":"#N/A"},{"$error":"#N/A"},{"$error":"#N/A"},{"$error":"#N/A"},{"$error":"#N/A"},null,{"$error":"#N/A"},{"$error":"#N/A"}]
[null,"PRE-MF-05",{"$f":"INDEX(tbl_predefined_measures[MEASURE],MATCH($B40&regionid,tbl_predefined_measures[ID&REGION],0))","v":{"$error":"#N/A"}},"N",null,null,null,null,null,null,null,{"$f":"INDEX(tbl_predefined_measures[ACCOUNTING_UNIT],MATCH($B40&regionid,tbl_predefined_measures[ID&REGION],0))","v":{"$error":"#N/A"}},{"$f":"INDEX(tbl_predefined_measures[DELIVERY],MATCH($B40&regionid,tbl_predefined_measures[ID&REGION],0))","v":{"$error":"#N/A"}},null,{"$f":"INDEX(tbl_predefined_measures[COST_OM],MATCH($B40&regionid,tbl_predefined_measures[ID&REGION],0))","v":{"$error":"#N/A"}},{"$f":"INDEX(tbl_predefined_measures[COST_CAPITAL],MATCH($B40&regionid,tbl_predefined_measures[ID&REGION],0))","v":{"$error":"#N/A"}},null,null,{"$f":"INDEX(tbl_predefined_measures[SAVE_GPD],MATCH($B40&regionid,tbl_predefined_measures[ID&REGION],0))","v":{"$error":"#N/A"}},{"$f":"INDEX(tbl_predefined_measures[FREERIDE_PCT],MATCH($B40&regionid,tbl_predefined_measures[ID&REGION],0))","v":{"$error":"#N/A"}},{"$f":"INDEX(tbl_predefined_measures[DECAY_PCT],MATCH($B40&regionid,tbl_predefined_measures[ID&REGION],0))","v":{"$error":"#N/A"}},{"$f":"INDEX(tbl_predefined_measures[PLUMBCODE_YN],MATCH($B40&regionid,tbl_predefined_measures[ID&REGION],0))","v":{"$error":"#N/A"}},{"$f":"INDEX(tbl_predefined_measures[NRR_PCT],MATCH($B40&regionid,tbl_predefined_measures[ID&REGION],0))","v":{"$error":"#N/A"}},{"$f":"IF(V40=\"N\",INDEX(tbl_predefined_measures[LIFE_YRS],MATCH($B40&regionid,tbl_predefined_measures[ID&REGION],0)),99)","v":{"$error":"#N/A"}},null,{"$error":"#N/A"},{"$error":"#N/A"},null,{"$error":"#N/A"},{"$error":"#N/A"},{"$error":"#N/A"},{"$error":"#N/A"},{"$error":"#N/A"},null,{"$f":"F40/AVERAGE(IF(baseline_selection=1,'1. Baseline Demand Projection'!E$27:F$27,'1. Baseline Demand Projection'!N$27:O$27))","v":{"$error":"#DIV/0!"}},{"$f":"G40/AVERAGE(IF(baseline_selection=1,'1. Baseline Demand Projection'!F$27:G$27,'1. Baseline Demand Projection'!O$27:P$27))","v":{"$error":"#DIV/0!"}},{"$f":"H40/AVERAGE(IF(baseline_selection=1,'1. Baseline Demand Projection'!G$27:H$27,'1. Baseline Demand Projection'!P$27:Q$27))","v":{"$error":"#DIV/0!"}},{"$f":"I40/AVERAGE(IF(baseline_selection=1,'1. Baseline Demand Projection'!H$27:I$27,'1. Baseline Demand Projection'!Q$27:R$27))","v":{"$error":"#DIV/0!"}},{"$f":"J40/AVERAGE(IF(baseline_selection=1,'1. Baseline Demand Projection'!I$27:J$27,'1. Baseline Demand Projection'!R$27:S$27))","v":{"$error":"#DIV/0!"}},null,0,0,0,0,0,0,0,0,0,0,0,0,0,0,0,0,0,0,0,0,0,0,0,0,0,0,0,0,0,0,0,0,0,0,0,0,0,0,0,0,0,0,0,0,0,0,0,0,0,0,0,null,{"$f":"MeasureSavingsArray(AO40:CM40,S40,T40,U40,W40,X40,D40)","v":{"$error":"#VALUE!"}},{"$error":"#VALUE!"},{"$error":"#VALUE!"},{"$error":"#VALUE!"},{"$error":"#VALUE!"},{"$error":"#VALUE!"},{"$error":"#VALUE!"},{"$error":"#VALUE!"},{"$error":"#VALUE!"},{"$error":"#VALUE!"},{"$error":"#VALUE!"},{"$error":"#VALUE!"},{"$error":"#VALUE!"},{"$error":"#VALUE!"},{"$error":"#VALUE!"},{"$error":"#VALUE!"},{"$error":"#VALUE!"},{"$error":"#VALUE!"},{"$error":"#VALUE!"},{"$error":"#VALUE!"},{"$error":"#VALUE!"},{"$error":"#VALUE!"},{"$error":"#VALUE!"},{"$error":"#VALUE!"},{"$error":"#VALUE!"},{"$error":"#VALUE!"},{"$error":"#VALUE!"},{"$error":"#VALUE!"},{"$error":"#VALUE!"},{"$error":"#VALUE!"},{"$error":"#VALUE!"},{"$error":"#VALUE!"},{"$error":"#VALUE!"},{"$error":"#VALUE!"},{"$error":"#VALUE!"},{"$error":"#VALUE!"},{"$error":"#VALUE!"},{"$error":"#VALUE!"},{"$error":"#VALUE!"},{"$error":"#VALUE!"},{"$error":"#VALUE!"},{"$error":"#VALUE!"},{"$error":"#VALUE!"},{"$error":"#VALUE!"},{"$error":"#VALUE!"},{"$error":"#VALUE!"},{"$error":"#VALUE!"},{"$error":"#VALUE!"},{"$error":"#VALUE!"},{"$error":"#VALUE!"},{"$error":"#VALUE!"},{"$error":"#VALUE!"},null,{"$error":"#N/A"},{"$error":"#N/A"},{"$error":"#N/A"},{"$error":"#N/A"},{"$error":"#N/A"},{"$error":"#N/A"},{"$error":"#N/A"},{"$error":"#N/A"},{"$error":"#N/A"},{"$error":"#N/A"},{"$error":"#N/A"},{"$error":"#N/A"},{"$error":"#N/A"},{"$error":"#N/A"},{"$error":"#N/A"},{"$error":"#N/A"},{"$error":"#N/A"},{"$error":"#N/A"},{"$error":"#N/A"},{"$error":"#N/A"},{"$error":"#N/A"},{"$error":"#N/A"},{"$error":"#N/A"},{"$error":"#N/A"},{"$error":"#N/A"},{"$error":"#N/A"},{"$error":"#N/A"},{"$error":"#N/A"},{"$error":"#N/A"},{"$error":"#N/A"},{"$error":"#N/A"},{"$error":"#N/A"},{"$error":"#N/A"},{"$error":"#N/A"},{"$error":"#N/A"},{"$error":"#N/A"},{"$error":"#N/A"},{"$error":"#N/A"},{"$error":"#N/A"},{"$error":"#N/A"},{"$error":"#N/A"},{"$error":"#N/A"},{"$error":"#N/A"},{"$error":"#N/A"},{"$error":"#N/A"},{"$error":"#N/A"},{"$error":"#N/A"},{"$error":"#N/A"},{"$error":"#N/A"},{"$error":"#N/A"},{"$error":"#N/A"},null,{"$error":"#N/A"},{"$error":"#N/A"},{"$error":"#N/A"},{"$error":"#N/A"},{"$error":"#N/A"},{"$error":"#N/A"},{"$error":"#N/A"},{"$error":"#N/A"},{"$error":"#N/A"},{"$error":"#N/A"},{"$error":"#N/A"},{"$error":"#N/A"},{"$error":"#N/A"},{"$error":"#N/A"},{"$error":"#N/A"},{"$error":"#N/A"},{"$error":"#N/A"},{"$error":"#N/A"},{"$error":"#N/A"},{"$error":"#N/A"},{"$error":"#N/A"},{"$error":"#N/A"},{"$error":"#N/A"},{"$error":"#N/A"},{"$error":"#N/A"},{"$error":"#N/A"},{"$error":"#N/A"},{"$error":"#N/A"},{"$error":"#N/A"},{"$error":"#N/A"},{"$error":"#N/A"},{"$error":"#N/A"},{"$error":"#N/A"},{"$error":"#N/A"},{"$error":"#N/A"},{"$error":"#N/A"},{"$error":"#N/A"},{"$error":"#N/A"},{"$error":"#N/A"},{"$error":"#N/A"},{"$error":"#N/A"},{"$error":"#N/A"},{"$error":"#N/A"},{"$error":"#N/A"},{"$error":"#N/A"},{"$error":"#N/A"},{"$error":"#N/A"},{"$error":"#N/A"},{"$error":"#N/A"},{"$error":"#N/A"},{"$error":"#N/A"},null,{"$f":"DebtServiceArray(AO40:CM40,P40,discount_rate,Q40,D40)","v":{"$error":"#VALUE!"}},{"$error":"#VALUE!"},{"$error":"#VALUE!"},{"$error":"#VALUE!"},{"$error":"#VALUE!"},{"$error":"#VALUE!"},{"$error":"#VALUE!"},{"$error":"#VALUE!"},{"$error":"#VALUE!"},{"$error":"#VALUE!"},{"$error":"#VALUE!"},{"$error":"#VALUE!"},{"$error":"#VALUE!"},{"$error":"#VALUE!"},{"$error":"#VALUE!"},{"$error":"#VALUE!"},{"$error":"#VALUE!"},{"$error":"#VALUE!"},{"$error":"#VALUE!"},{"$error":"#VALUE!"},{"$error":"#VALUE!"},{"$error":"#VALUE!"},{"$error":"#VALUE!"},{"$error":"#VALUE!"},{"$error":"#VALUE!"},{"$error":"#VALUE!"},{"$error":"#VALUE!"},{"$error":"#VALUE!"},{"$error":"#VALUE!"},{"$error":"#VALUE!"},{"$error":"#VALUE!"},{"$error":"#VALUE!"},{"$error":"#VALUE!"},{"$error":"#VALUE!"},{"$error":"#VALUE!"},{"$error":"#VALUE!"},{"$error":"#VALUE!"},{"$error":"#VALUE!"},{"$error":"#VALUE!"},{"$error":"#VALUE!"},{"$error":"#VALUE!"},{"$error":"#VALUE!"},{"$error":"#VALUE!"},{"$error":"#VALUE!"},{"$error":"#VALUE!"},{"$error":"#VALUE!"},{"$error":"#VALUE!"},{"$error":"#VALUE!"},{"$error":"#VALUE!"},{"$error":"#VALUE!"},{"$error":"#VALUE!"},null,{"$error":"#N/A"},{"$error":"#N/A"},{"$error":"#N/A"},{"$error":"#N/A"},{"$error":"#N/A"},{"$error":"#N/A"},{"$error":"#N/A"},{"$error":"#N/A"},{"$error":"#N/A"},{"$error":"#N/A"},{"$error":"#N/A"},{"$error":"#N/A"},{"$error":"#N/A"},{"$error":"#N/A"},{"$error":"#N/A"},{"$error":"#N/A"},{"$error":"#N/A"},{"$error":"#N/A"},{"$error":"#N/A"},{"$error":"#N/A"},{"$error":"#N/A"},{"$error":"#N/A"},{"$error":"#N/A"},{"$error":"#N/A"},{"$error":"#N/A"},{"$error":"#N/A"},{"$error":"#N/A"},{"$error":"#N/A"},{"$error":"#N/A"},{"$error":"#N/A"},{"$error":"#N/A"},{"$error":"#N/A"},{"$error":"#N/A"},{"$error":"#N/A"},{"$error":"#N/A"},{"$error":"#N/A"},{"$error":"#N/A"},{"$error":"#N/A"},{"$error":"#N/A"},{"$error":"#N/A"},{"$error":"#N/A"},{"$error":"#N/A"},{"$error":"#N/A"},{"$error":"#N/A"},{"$error":"#N/A"},{"$error":"#N/A"},{"$error":"#N/A"},{"$error":"#N/A"},{"$error":"#N/A"},{"$error":"#N/A"},{"$error":"#N/A"},null,{"$error":"#N/A"},{"$error":"#N/A"}]
[null,"PRE-MF-06",{"$f":"INDEX(tbl_predefined_measures[MEASURE],MATCH($B41&regionid,tbl_predefined_measures[ID&REGION],0))","v":{"$error":"#N/A"}},"N",null,null,null,null,null,null,null,{"$f":"INDEX(tbl_predefined_measures[ACCOUNTING_UNIT],MATCH($B41&regionid,tbl_predefined_measures[ID&REGION],0))","v":{"$error":"#N/A"}},{"$f":"INDEX(tbl_predefined_measures[DELIVERY],MATCH($B41&regionid,tbl_predefined_measures[ID&REGION],0))","v":{"$error":"#N/A"}},null,{"$f":"INDEX(tbl_predefined_measures[COST_OM],MATCH($B41&regionid,tbl_predefined_measures[ID&REGION],0))","v":{"$error":"#N/A"}},{"$f":"INDEX(tbl_predefined_measures[COST_CAPITAL],MATCH($B41&regionid,tbl_predefined_measures[ID&REGION],0))","v":{"$error":"#N/A"}},null,null,{"$f":"INDEX(tbl_predefined_measures[SAVE_GPD],MATCH($B41&regionid,tbl_predefined_measures[ID&REGION],0))","v":{"$error":"#N/A"}},{"$f":"INDEX(tbl_predefined_measures[FREERIDE_PCT],MATCH($B41&regionid,tbl_predefined_measures[ID&REGION],0))","v":{"$error":"#N/A"}},{"$f":"INDEX(tbl_predefined_measures[DECAY_PCT],MATCH($B41&regionid,tbl_predefined_measures[ID&REGION],0))","v":{"$error":"#N/A"}},{"$f":"INDEX(tbl_predefined_measures[PLUMBCODE_YN],MATCH($B41&regionid,tbl_predefined_measures[ID&REGION],0))","v":{"$error":"#N/A"}},{"$f":"INDEX(tbl_predefined_measures[NRR_PCT],MATCH($B41&regionid,tbl_predefined_measures[ID&REGION],0))","v":{"$error":"#N/A"}},{"$f":"IF(V41=\"N\",INDEX(tbl_predefined_measures[LIFE_YRS],MATCH($B41&regionid,tbl_predefined_measures[ID&REGION],0)),99)","v":{"$error":"#N/A"}},null,{"$error":"#N/A"},{"$error":"#N/A"},null,{"$error":"#N/A"},{"$error":"#N/A"},{"$error":"#N/A"},{"$error":"#N/A"},{"$error":"#N/A"},null,{"$f":"F41/AVERAGE(IF(baseline_selection=1,'1. Baseline Demand Projection'!E$27:F$27,'1. Baseline Demand Projection'!N$27:O$27))","v":{"$error":"#DIV/0!"}},{"$f":"G41/AVERAGE(IF(baseline_selection=1,'1. Baseline Demand Projection'!F$27:G$27,'1. Baseline Demand Projection'!O$27:P$27))","v":{"$error":"#DIV/0!"}},{"$f":"H41/AVERAGE(IF(baseline_selection=1,'1. Baseline Demand Projection'!G$27:H$27,'1. Baseline Demand Projection'!P$27:Q$27))","v":{"$error":"#DIV/0!"}},{"$f":"I41/AVERAGE(IF(baseline_selection=1,'1. Baseline Demand Projection'!H$27:I$27,'1. Baseline Demand Projection'!Q$27:R$27))","v":{"$error":"#DIV/0!"}},{"$f":"J41/AVERAGE(IF(baseline_selection=1,'1. Baseline Demand Projection'!I$27:J$27,'1. Baseline Demand Projection'!R$27:S$27))","v":{"$error":"#DIV/0!"}},null,0,0,0,0,0,0,0,0,0,0,0,0,0,0,0,0,0,0,0,0,0,0,0,0,0,0,0,0,0,0,0,0,0,0,0,0,0,0,0,0,0,0,0,0,0,0,0,0,0,0,0,null,{"$f":"MeasureSavingsArray(AO41:CM41,S41,T41,U41,W41,X41,D41)","v":{"$error":"#VALUE!"}},{"$error":"#VALUE!"},{"$error":"#VALUE!"},{"$error":"#VALUE!"},{"$error":"#VALUE!"},{"$error":"#VALUE!"},{"$error":"#VALUE!"},{"$error":"#VALUE!"},{"$error":"#VALUE!"},{"$error":"#VALUE!"},{"$error":"#VALUE!"},{"$error":"#VALUE!"},{"$error":"#VALUE!"},{"$error":"#VALUE!"},{"$error":"#VALUE!"},{"$error":"#VALUE!"},{"$error":"#VALUE!"},{"$error":"#VALUE!"},{"$error":"#VALUE!"},{"$error":"#VALUE!"},{"$error":"#VALUE!"},{"$error":"#VALUE!"},{"$error":"#VALUE!"},{"$error":"#VALUE!"},{"$error":"#VALUE!"},{"$error":"#VALUE!"},{"$error":"#VALUE!"},{"$error":"#VALUE!"},{"$error":"#VALUE!"},{"$error":"#VALUE!"},{"$error":"#VALUE!"},{"$error":"#VALUE!"},{"$error":"#VALUE!"},{"$error":"#VALUE!"},{"$error":"#VALUE!"},{"$error":"#VALUE!"},{"$error":"#VALUE!"},{"$error":"#VALUE!"},{"$error":"#VALUE!"},{"$error":"#VALUE!"},{"$error":"#VALUE!"},{"$error":"#VALUE!"},{"$error":"#VALUE!"},{"$error":"#VALUE!"},{"$error":"#VALUE!"},{"$error":"#VALUE!"},{"$error":"#VALUE!"},{"$error":"#VALUE!"},{"$error":"#VALUE!"},{"$error":"#VALUE!"},{"$error":"#VALUE!"},{"$error":"#VALUE!"},null,{"$error":"#N/A"},{"$error":"#N/A"},{"$error":"#N/A"},{"$error":"#N/A"},{"$error":"#N/A"},{"$error":"#N/A"},{"$error":"#N/A"},{"$error":"#N/A"},{"$error":"#N/A"},{"$error":"#N/A"},{"$error":"#N/A"},{"$error":"#N/A"},{"$error":"#N/A"},{"$error":"#N/A"},{"$error":"#N/A"},{"$error":"#N/A"},{"$error":"#N/A"},{"$error":"#N/A"},{"$error":"#N/A"},{"$error":"#N/A"},{"$error":"#N/A"},{"$error":"#N/A"},{"$error":"#N/A"},{"$error":"#N/A"},{"$error":"#N/A"},{"$error":"#N/A"},{"$error":"#N/A"},{"$error":"#N/A"},{"$error":"#N/A"},{"$error":"#N/A"},{"$error":"#N/A"},{"$error":"#N/A"},{"$error":"#N/A"},{"$error":"#N/A"},{"$error":"#N/A"},{"$error":"#N/A"},{"$error":"#N/A"},{"$error":"#N/A"},{"$error":"#N/A"},{"$error":"#N/A"},{"$error":"#N/A"},{"$error":"#N/A"},{"$error":"#N/A"},{"$error":"#N/A"},{"$error":"#N/A"},{"$error":"#N/A"},{"$error":"#N/A"},{"$error":"#N/A"},{"$error":"#N/A"},{"$error":"#N/A"},{"$error":"#N/A"},null,{"$error":"#N/A"},{"$error":"#N/A"},{"$error":"#N/A"},{"$error":"#N/A"},{"$error":"#N/A"},{"$error":"#N/A"},{"$error":"#N/A"},{"$error":"#N/A"},{"$error":"#N/A"},{"$error":"#N/A"},{"$error":"#N/A"},{"$error":"#N/A"},{"$error":"#N/A"},{"$error":"#N/A"},{"$error":"#N/A"},{"$error":"#N/A"},{"$error":"#N/A"},{"$error":"#N/A"},{"$error":"#N/A"},{"$error":"#N/A"},{"$error":"#N/A"},{"$error":"#N/A"},{"$error":"#N/A"},{"$error":"#N/A"},{"$error":"#N/A"},{"$error":"#N/A"},{"$error":"#N/A"},{"$error":"#N/A"},{"$error":"#N/A"},{"$error":"#N/A"},{"$error":"#N/A"},{"$error":"#N/A"},{"$error":"#N/A"},{"$error":"#N/A"},{"$error":"#N/A"},{"$error":"#N/A"},{"$error":"#N/A"},{"$error":"#N/A"},{"$error":"#N/A"},{"$error":"#N/A"},{"$error":"#N/A"},{"$error":"#N/A"},{"$error":"#N/A"},{"$error":"#N/A"},{"$error":"#N/A"},{"$error":"#N/A"},{"$error":"#N/A"},{"$error":"#N/A"},{"$error":"#N/A"},{"$error":"#N/A"},{"$error":"#N/A"},null,{"$f":"DebtServiceArray(AO41:CM41,P41,discount_rate,Q41,D41)","v":{"$error":"#VALUE!"}},{"$error":"#VALUE!"},{"$error":"#VALUE!"},{"$error":"#VALUE!"},{"$error":"#VALUE!"},{"$error":"#VALUE!"},{"$error":"#VALUE!"},{"$error":"#VALUE!"},{"$error":"#VALUE!"},{"$error":"#VALUE!"},{"$error":"#VALUE!"},{"$error":"#VALUE!"},{"$error":"#VALUE!"},{"$error":"#VALUE!"},{"$error":"#VALUE!"},{"$error":"#VALUE!"},{"$error":"#VALUE!"},{"$error":"#VALUE!"},{"$error":"#VALUE!"},{"$error":"#VALUE!"},{"$error":"#VALUE!"},{"$error":"#VALUE!"},{"$error":"#VALUE!"},{"$error":"#VALUE!"},{"$error":"#VALUE!"},{"$error":"#VALUE!"},{"$error":"#VALUE!"},{"$error":"#VALUE!"},{"$error":"#VALUE!"},{"$error":"#VALUE!"},{"$error":"#VALUE!"},{"$error":"#VALUE!"},{"$error":"#VALUE!"},{"$error":"#VALUE!"},{"$error":"#VALUE!"},{"$error":"#VALUE!"},{"$error":"#VALUE!"},{"$error":"#VALUE!"},{"$error":"#VALUE!"},{"$error":"#VALUE!"},{"$error":"#VALUE!"},{"$error":"#VALUE!"},{"$error":"#VALUE!"},{"$error":"#VALUE!"},{"$error":"#VALUE!"},{"$error":"#VALUE!"},{"$error":"#VALUE!"},{"$error":"#VALUE!"},{"$error":"#VALUE!"},{"$error":"#VALUE!"},{"$error":"#VALUE!"},null,{"$error":"#N/A"},{"$error":"#N/A"},{"$error":"#N/A"},{"$error":"#N/A"},{"$error":"#N/A"},{"$error":"#N/A"},{"$error":"#N/A"},{"$error":"#N/A"},{"$error":"#N/A"},{"$error":"#N/A"},{"$error":"#N/A"},{"$error":"#N/A"},{"$error":"#N/A"},{"$error":"#N/A"},{"$error":"#N/A"},{"$error":"#N/A"},{"$error":"#N/A"},{"$error":"#N/A"},{"$error":"#N/A"},{"$error":"#N/A"},{"$error":"#N/A"},{"$error":"#N/A"},{"$error":"#N/A"},{"$error":"#N/A"},{"$error":"#N/A"},{"$error":"#N/A"},{"$error":"#N/A"},{"$error":"#N/A"},{"$error":"#N/A"},{"$error":"#N/A"},{"$error":"#N/A"},{"$error":"#N/A"},{"$error":"#N/A"},{"$error":"#N/A"},{"$error":"#N/A"},{"$error":"#N/A"},{"$error":"#N/A"},{"$error":"#N/A"},{"$error":"#N/A"},{"$error":"#N/A"},{"$error":"#N/A"},{"$error":"#N/A"},{"$error":"#N/A"},{"$error":"#N/A"},{"$error":"#N/A"},{"$error":"#N/A"},{"$error":"#N/A"},{"$error":"#N/A"},{"$error":"#N/A"},{"$error":"#N/A"},{"$error":"#N/A"},null,{"$error":"#N/A"},{"$error":"#N/A"}]
[null,"PRE-MF-07",{"$f":"INDEX(tbl_predefined_measures[MEASURE],MATCH($B42&regionid,tbl_predefined_measures[ID&REGION],0))","v":{"$error":"#N/A"}},"N",null,null,null,null,null,null,null,{"$f":"INDEX(tbl_predefined_measures[ACCOUNTING_UNIT],MATCH($B42&regionid,tbl_predefined_measures[ID&REGION],0))","v":{"$error":"#N/A"}},{"$f":"INDEX(tbl_predefined_measures[DELIVERY],MATCH($B42&regionid,tbl_predefined_measures[ID&REGION],0))","v":{"$error":"#N/A"}},null,{"$f":"INDEX(tbl_predefined_measures[COST_OM],MATCH($B42&regionid,tbl_predefined_measures[ID&REGION],0))","v":{"$error":"#N/A"}},{"$f":"INDEX(tbl_predefined_measures[COST_CAPITAL],MATCH($B42&regionid,tbl_predefined_measures[ID&REGION],0))","v":{"$error":"#N/A"}},null,null,{"$f":"INDEX(tbl_predefined_measures[SAVE_GPD],MATCH($B42&regionid,tbl_predefined_measures[ID&REGION],0))","v":{"$error":"#N/A"}},{"$f":"INDEX(tbl_predefined_measures[FREERIDE_PCT],MATCH($B42&regionid,tbl_predefined_measures[ID&REGION],0))","v":{"$error":"#N/A"}},{"$f":"INDEX(tbl_predefined_measures[DECAY_PCT],MATCH($B42&regionid,tbl_predefined_measures[ID&REGION],0))","v":{"$error":"#N/A"}},{"$f":"INDEX(tbl_predefined_measures[PLUMBCODE_YN],MATCH($B42&regionid,tbl_predefined_measures[ID&REGION],0))","v":{"$error":"#N/A"}},{"$f":"INDEX(tbl_predefined_measures[NRR_PCT],MATCH($B42&regionid,tbl_predefined_measures[ID&REGION],0))","v":{"$error":"#N/A"}},{"$f":"IF(V42=\"N\",INDEX(tbl_predefined_measures[LIFE_YRS],MATCH($B42&regionid,tbl_predefined_measures[ID&REGION],0)),99)","v":{"$error":"#N/A"}},null,{"$error":"#N/A"},{"$error":"#N/A"},null,{"$error":"#N/A"},{"$error":"#N/A"},{"$error":"#N/A"},{"$error":"#N/A"},{"$error":"#N/A"},null,{"$f":"F42/AVERAGE(IF(baseline_selection=1,'1. Baseline Demand Projection'!E$27:F$27,'1. Baseline Demand Projection'!N$27:O$27))","v":{"$error":"#DIV/0!"}},{"$f":"G42/AVERAGE(IF(baseline_selection=1,'1. Baseline Demand Projection'!F$27:G$27,'1. Baseline Demand Projection'!O$27:P$27))","v":{"$error":"#DIV/0!"}},{"$f":"H42/AVERAGE(IF(baseline_selection=1,'1. Baseline Demand Projection'!G$27:H$27,'1. Baseline Demand Projection'!P$27:Q$27))","v":{"$error":"#DIV/0!"}},{"$f":"I42/AVERAGE(IF(baseline_selection=1,'1. Baseline Demand Projection'!H$27:I$27,'1. Baseline Demand Projection'!Q$27:R$27))","v":{"$error":"#DIV/0!"}},{"$f":"J42/AVERAGE(IF(baseline_selection=1,'1. Baseline Demand Projection'!I$27:J$27,'1. Baseline Demand Projection'!R$27:S$27))","v":{"$error":"#DIV/0!"}},null,0,0,0,0,0,0,0,0,0,0,0,0,0,0,0,0,0,0,0,0,0,0,0,0,0,0,0,0,0,0,0,0,0,0,0,0,0,0,0,0,0,0,0,0,0,0,0,0,0,0,0,null,{"$f":"MeasureSavingsArray(AO42:CM42,S42,T42,U42,W42,X42,D42)","v":{"$error":"#VALUE!"}},{"$error":"#VALUE!"},{"$error":"#VALUE!"},{"$error":"#VALUE!"},{"$error":"#VALUE!"},{"$error":"#VALUE!"},{"$error":"#VALUE!"},{"$error":"#VALUE!"},{"$error":"#VALUE!"},{"$error":"#VALUE!"},{"$error":"#VALUE!"},{"$error":"#VALUE!"},{"$error":"#VALUE!"},{"$error":"#VALUE!"},{"$error":"#VALUE!"},{"$error":"#VALUE!"},{"$error":"#VALUE!"},{"$error":"#VALUE!"},{"$error":"#VALUE!"},{"$error":"#VALUE!"},{"$error":"#VALUE!"},{"$error":"#VALUE!"},{"$error":"#VALUE!"},{"$error":"#VALUE!"},{"$error":"#VALUE!"},{"$error":"#VALUE!"},{"$error":"#VALUE!"},{"$error":"#VALUE!"},{"$error":"#VALUE!"},{"$error":"#VALUE!"},{"$error":"#VALUE!"},{"$error":"#VALUE!"},{"$error":"#VALUE!"},{"$error":"#VALUE!"},{"$error":"#VALUE!"},{"$error":"#VALUE!"},{"$error":"#VALUE!"},{"$error":"#VALUE!"},{"$error":"#VALUE!"},{"$error":"#VALUE!"},{"$error":"#VALUE!"},{"$error":"#VALUE!"},{"$error":"#VALUE!"},{"$error":"#VALUE!"},{"$error":"#VALUE!"},{"$error":"#VALUE!"},{"$error":"#VALUE!"},{"$error":"#VALUE!"},{"$error":"#VALUE!"},{"$error":"#VALUE!"},{"$error":"#VALUE!"},{"$error":"#VALUE!"},null,{"$error":"#N/A"},{"$error":"#N/A"},{"$error":"#N/A"},{"$error":"#N/A"},{"$error":"#N/A"},{"$error":"#N/A"},{"$error":"#N/A"},{"$error":"#N/A"},{"$error":"#N/A"},{"$error":"#N/A"},{"$error":"#N/A"},{"$error":"#N/A"},{"$error":"#N/A"},{"$error":"#N/A"},{"$error":"#N/A"},{"$error":"#N/A"},{"$error":"#N/A"},{"$error":"#N/A"},{"$error":"#N/A"},{"$error":"#N/A"},{"$error":"#N/A"},{"$error":"#N/A"},{"$error":"#N/A"},{"$error":"#N/A"},{"$error":"#N/A"},{"$error":"#N/A"},{"$error":"#N/A"},{"$error":"#N/A"},{"$error":"#N/A"},{"$error":"#N/A"},{"$error":"#N/A"},{"$error":"#N/A"},{"$error":"#N/A"},{"$error":"#N/A"},{"$error":"#N/A"},{"$error":"#N/A"},{"$error":"#N/A"},{"$error":"#N/A"},{"$error":"#N/A"},{"$error":"#N/A"},{"$error":"#N/A"},{"$error":"#N/A"},{"$error":"#N/A"},{"$error":"#N/A"},{"$error":"#N/A"},{"$error":"#N/A"},{"$error":"#N/A"},{"$error":"#N/A"},{"$error":"#N/A"},{"$error":"#N/A"},{"$error":"#N/A"},null,{"$error":"#N/A"},{"$error":"#N/A"},{"$error":"#N/A"},{"$error":"#N/A"},{"$error":"#N/A"},{"$error":"#N/A"},{"$error":"#N/A"},{"$error":"#N/A"},{"$error":"#N/A"},{"$error":"#N/A"},{"$error":"#N/A"},{"$error":"#N/A"},{"$error":"#N/A"},{"$error":"#N/A"},{"$error":"#N/A"},{"$error":"#N/A"},{"$error":"#N/A"},{"$error":"#N/A"},{"$error":"#N/A"},{"$error":"#N/A"},{"$error":"#N/A"},{"$error":"#N/A"},{"$error":"#N/A"},{"$error":"#N/A"},{"$error":"#N/A"},{"$error":"#N/A"},{"$error":"#N/A"},{"$error":"#N/A"},{"$error":"#N/A"},{"$error":"#N/A"},{"$error":"#N/A"},{"$error":"#N/A"},{"$error":"#N/A"},{"$error":"#N/A"},{"$error":"#N/A"},{"$error":"#N/A"},{"$error":"#N/A"},{"$error":"#N/A"},{"$error":"#N/A"},{"$error":"#N/A"},{"$error":"#N/A"},{"$error":"#N/A"},{"$error":"#N/A"},{"$error":"#N/A"},{"$error":"#N/A"},{"$error":"#N/A"},{"$error":"#N/A"},{"$error":"#N/A"},{"$error":"#N/A"},{"$error":"#N/A"},{"$error":"#N/A"},null,{"$f":"DebtServiceArray(AO42:CM42,P42,discount_rate,Q42,D42)","v":{"$error":"#VALUE!"}},{"$error":"#VALUE!"},{"$error":"#VALUE!"},{"$error":"#VALUE!"},{"$error":"#VALUE!"},{"$error":"#VALUE!"},{"$error":"#VALUE!"},{"$error":"#VALUE!"},{"$error":"#VALUE!"},{"$error":"#VALUE!"},{"$error":"#VALUE!"},{"$error":"#VALUE!"},{"$error":"#VALUE!"},{"$error":"#VALUE!"},{"$error":"#VALUE!"},{"$error":"#VALUE!"},{"$error":"#VALUE!"},{"$error":"#VALUE!"},{"$error":"#VALUE!"},{"$error":"#VALUE!"},{"$error":"#VALUE!"},{"$error":"#VALUE!"},{"$error":"#VALUE!"},{"$error":"#VALUE!"},{"$error":"#VALUE!"},{"$error":"#VALUE!"},{"$error":"#VALUE!"},{"$error":"#VALUE!"},{"$error":"#VALUE!"},{"$error":"#VALUE!"},{"$error":"#VALUE!"},{"$error":"#VALUE!"},{"$error":"#VALUE!"},{"$error":"#VALUE!"},{"$error":"#VALUE!"},{"$error":"#VALUE!"},{"$error":"#VALUE!"},{"$error":"#VALUE!"},{"$error":"#VALUE!"},{"$error":"#VALUE!"},{"$error":"#VALUE!"},{"$error":"#VALUE!"},{"$error":"#VALUE!"},{"$error":"#VALUE!"},{"$error":"#VALUE!"},{"$error":"#VALUE!"},{"$error":"#VALUE!"},{"$error":"#VALUE!"},{"$error":"#VALUE!"},{"$error":"#VALUE!"},{"$error":"#VALUE!"},null,{"$error":"#N/A"},{"$error":"#N/A"},{"$error":"#N/A"},{"$error":"#N/A"},{"$error":"#N/A"},{"$error":"#N/A"},{"$error":"#N/A"},{"$error":"#N/A"},{"$error":"#N/A"},{"$error":"#N/A"},{"$error":"#N/A"},{"$error":"#N/A"},{"$error":"#N/A"},{"$error":"#N/A"},{"$error":"#N/A"},{"$error":"#N/A"},{"$error":"#N/A"},{"$error":"#N/A"},{"$error":"#N/A"},{"$error":"#N/A"},{"$error":"#N/A"},{"$error":"#N/A"},{"$error":"#N/A"},{"$error":"#N/A"},{"$error":"#N/A"},{"$error":"#N/A"},{"$error":"#N/A"},{"$error":"#N/A"},{"$error":"#N/A"},{"$error":"#N/A"},{"$error":"#N/A"},{"$error":"#N/A"},{"$error":"#N/A"},{"$error":"#N/A"},{"$error":"#N/A"},{"$error":"#N/A"},{"$error":"#N/A"},{"$error":"#N/A"},{"$error":"#N/A"},{"$error":"#N/A"},{"$error":"#N/A"},{"$error":"#N/A"},{"$error":"#N/A"},{"$error":"#N/A"},{"$error":"#N/A"},{"$error":"#N/A"},{"$error":"#N/A"},{"$error":"#N/A"},{"$error":"#N/A"},{"$error":"#N/A"},{"$error":"#N/A"},null,{"$error":"#N/A"},{"$error":"#N/A"}]
[null,"PRE-MF-08",{"$f":"INDEX(tbl_predefined_measures[MEASURE],MATCH($B43&regionid,tbl_predefined_measures[ID&REGION],0))","v":{"$error":"#N/A"}},"N",null,null,null,null,null,null,null,{"$f":"INDEX(tbl_predefined_measures[ACCOUNTING_UNIT],MATCH($B43&regionid,tbl_predefined_measures[ID&REGION],0))","v":{"$error":"#N/A"}},{"$f":"INDEX(tbl_predefined_measures[DELIVERY],MATCH($B43&regionid,tbl_predefined_measures[ID&REGION],0))","v":{"$error":"#N/A"}},null,{"$f":"INDEX(tbl_predefined_measures[COST_OM],MATCH($B43&regionid,tbl_predefined_measures[ID&REGION],0))","v":{"$error":"#N/A"}},{"$f":"INDEX(tbl_predefined_measures[COST_CAPITAL],MATCH($B43&regionid,tbl_predefined_measures[ID&REGION],0))","v":{"$error":"#N/A"}},null,null,{"$f":"INDEX(tbl_predefined_measures[SAVE_GPD],MATCH($B43&regionid,tbl_predefined_measures[ID&REGION],0))","v":{"$error":"#N/A"}},{"$f":"INDEX(tbl_predefined_measures[FREERIDE_PCT],MATCH($B43&regionid,tbl_predefined_measures[ID&REGION],0))","v":{"$error":"#N/A"}},{"$f":"INDEX(tbl_predefined_measures[DECAY_PCT],MATCH($B43&regionid,tbl_predefined_measures[ID&REGION],0))","v":{"$error":"#N/A"}},{"$f":"INDEX(tbl_predefined_measures[PLUMBCODE_YN],MATCH($B43&regionid,tbl_predefined_measures[ID&REGION],0))","v":{"$error":"#N/A"}},{"$f":"INDEX(tbl_predefined_measures[NRR_PCT],MATCH($B43&regionid,tbl_predefined_measures[ID&REGION],0))","v":{"$error":"#N/A"}},{"$f":"IF(V43=\"N\",INDEX(tbl_predefined_measures[LIFE_YRS],MATCH($B43&regionid,tbl_predefined_measures[ID&REGION],0)),99)","v":{"$error":"#N/A"}},null,{"$error":"#N/A"},{"$error":"#N/A"},null,{"$error":"#N/A"},{"$error":"#N/A"},{"$error":"#N/A"},{"$error":"#N/A"},{"$error":"#N/A"},null,{"$f":"F43/AVERAGE(IF(baseline_selection=1,'1. Baseline Demand Projection'!E$27:F$27,'1. Baseline Demand Projection'!N$27:O$27))","v":{"$error":"#DIV/0!"}},{"$f":"G43/AVERAGE(IF(baseline_selection=1,'1. Baseline Demand Projection'!F$27:G$27,'1. Baseline Demand Projection'!O$27:P$27))","v":{"$error":"#DIV/0!"}},{"$f":"H43/AVERAGE(IF(baseline_selection=1,'1. Baseline Demand Projection'!G$27:H$27,'1. Baseline Demand Projection'!P$27:Q$27))","v":{"$error":"#DIV/0!"}},{"$f":"I43/AVERAGE(IF(baseline_selection=1,'1. Baseline Demand Projection'!H$27:I$27,'1. Baseline Demand Projection'!Q$27:R$27))","v":{"$error":"#DIV/0!"}},{"$f":"J43/AVERAGE(IF(baseline_selection=1,'1. Baseline Demand Projection'!I$27:J$27,'1. Baseline Demand Projection'!R$27:S$27))","v":{"$error":"#DIV/0!"}},null,0,0,0,0,0,0,0,0,0,0,0,0,0,0,0,0,0,0,0,0,0,0,0,0,0,0,0,0,0,0,0,0,0,0,0,0,0,0,0,0,0,0,0,0,0,0,0,0,0,0,0,null,{"$f":"MeasureSavingsArray(AO43:CM43,S43,T43,U43,W43,X43,D43)","v":{"$error":"#VALUE!"}},{"$error":"#VALUE!"},{"$error":"#VALUE!"},{"$error":"#VALUE!"},{"$error":"#VALUE!"},{"$error":"#VALUE!"},{"$error":"#VALUE!"},{"$error":"#VALUE!"},{"$error":"#VALUE!"},{"$error":"#VALUE!"},{"$error":"#VALUE!"},{"$error":"#VALUE!"},{"$error":"#VALUE!"},{"$error":"#VALUE!"},{"$error":"#VALUE!"},{"$error":"#VALUE!"},{"$error":"#VALUE!"},{"$error":"#VALUE!"},{"$error":"#VALUE!"},{"$error":"#VALUE!"},{"$error":"#VALUE!"},{"$error":"#VALUE!"},{"$error":"#VALUE!"},{"$error":"#VALUE!"},{"$error":"#VALUE!"},{"$error":"#VALUE!"},{"$error":"#VALUE!"},{"$error":"#VALUE!"},{"$error":"#VALUE!"},{"$error":"#VALUE!"},{"$error":"#VALUE!"},{"$error":"#VALUE!"},{"$error":"#VALUE!"},{"$error":"#VALUE!"},{"$error":"#VALUE!"},{"$error":"#VALUE!"},{"$error":"#VALUE!"},{"$error":"#VALUE!"},{"$error":"#VALUE!"},{"$error":"#VALUE!"},{"$error":"#VALUE!"},{"$error":"#VALUE!"},{"$error":"#VALUE!"},{"$error":"#VALUE!"},{"$error":"#VALUE!"},{"$error":"#VALUE!"},{"$error":"#VALUE!"},{"$error":"#VALUE!"},{"$error":"#VALUE!"},{"$error":"#VALUE!"},{"$error":"#VALUE!"},{"$error":"#VALUE!"},null,{"$error":"#N/A"},{"$error":"#N/A"},{"$error":"#N/A"},{"$error":"#N/A"},{"$error":"#N/A"},{"$error":"#N/A"},{"$error":"#N/A"},{"$error":"#N/A"},{"$error":"#N/A"},{"$error":"#N/A"},{"$error":"#N/A"},{"$error":"#N/A"},{"$error":"#N/A"},{"$error":"#N/A"},{"$error":"#N/A"},{"$error":"#N/A"},{"$error":"#N/A"},{"$error":"#N/A"},{"$error":"#N/A"},{"$error":"#N/A"},{"$error":"#N/A"},{"$error":"#N/A"},{"$error":"#N/A"},{"$error":"#N/A"},{"$error":"#N/A"},{"$error":"#N/A"},{"$error":"#N/A"},{"$error":"#N/A"},{"$error":"#N/A"},{"$error":"#N/A"},{"$error":"#N/A"},{"$error":"#N/A"},{"$error":"#N/A"},{"$error":"#N/A"},{"$error":"#N/A"},{"$error":"#N/A"},{"$error":"#N/A"},{"$error":"#N/A"},{"$error":"#N/A"},{"$error":"#N/A"},{"$error":"#N/A"},{"$error":"#N/A"},{"$error":"#N/A"},{"$error":"#N/A"},{"$error":"#N/A"},{"$error":"#N/A"},{"$error":"#N/A"},{"$error":"#N/A"},{"$error":"#N/A"},{"$error":"#N/A"},{"$error":"#N/A"},null,{"$error":"#N/A"},{"$error":"#N/A"},{"$error":"#N/A"},{"$error":"#N/A"},{"$error":"#N/A"},{"$error":"#N/A"},{"$error":"#N/A"},{"$error":"#N/A"},{"$error":"#N/A"},{"$error":"#N/A"},{"$error":"#N/A"},{"$error":"#N/A"},{"$error":"#N/A"},{"$error":"#N/A"},{"$error":"#N/A"},{"$error":"#N/A"},{"$error":"#N/A"},{"$error":"#N/A"},{"$error":"#N/A"},{"$error":"#N/A"},{"$error":"#N/A"},{"$error":"#N/A"},{"$error":"#N/A"},{"$error":"#N/A"},{"$error":"#N/A"},{"$error":"#N/A"},{"$error":"#N/A"},{"$error":"#N/A"},{"$error":"#N/A"},{"$error":"#N/A"},{"$error":"#N/A"},{"$error":"#N/A"},{"$error":"#N/A"},{"$error":"#N/A"},{"$error":"#N/A"},{"$error":"#N/A"},{"$error":"#N/A"},{"$error":"#N/A"},{"$error":"#N/A"},{"$error":"#N/A"},{"$error":"#N/A"},{"$error":"#N/A"},{"$error":"#N/A"},{"$error":"#N/A"},{"$error":"#N/A"},{"$error":"#N/A"},{"$error":"#N/A"},{"$error":"#N/A"},{"$error":"#N/A"},{"$error":"#N/A"},{"$error":"#N/A"},null,{"$f":"DebtServiceArray(AO43:CM43,P43,discount_rate,Q43,D43)","v":{"$error":"#VALUE!"}},{"$error":"#VALUE!"},{"$error":"#VALUE!"},{"$error":"#VALUE!"},{"$error":"#VALUE!"},{"$error":"#VALUE!"},{"$error":"#VALUE!"},{"$error":"#VALUE!"},{"$error":"#VALUE!"},{"$error":"#VALUE!"},{"$error":"#VALUE!"},{"$error":"#VALUE!"},{"$error":"#VALUE!"},{"$error":"#VALUE!"},{"$error":"#VALUE!"},{"$error":"#VALUE!"},{"$error":"#VALUE!"},{"$error":"#VALUE!"},{"$error":"#VALUE!"},{"$error":"#VALUE!"},{"$error":"#VALUE!"},{"$error":"#VALUE!"},{"$error":"#VALUE!"},{"$error":"#VALUE!"},{"$error":"#VALUE!"},{"$error":"#VALUE!"},{"$error":"#VALUE!"},{"$error":"#VALUE!"},{"$error":"#VALUE!"},{"$error":"#VALUE!"},{"$error":"#VALUE!"},{"$error":"#VALUE!"},{"$error":"#VALUE!"},{"$error":"#VALUE!"},{"$error":"#VALUE!"},{"$error":"#VALUE!"},{"$error":"#VALUE!"},{"$error":"#VALUE!"},{"$error":"#VALUE!"},{"$error":"#VALUE!"},{"$error":"#VALUE!"},{"$error":"#VALUE!"},{"$error":"#VALUE!"},{"$error":"#VALUE!"},{"$error":"#VALUE!"},{"$error":"#VALUE!"},{"$error":"#VALUE!"},{"$error":"#VALUE!"},{"$error":"#VALUE!"},{"$error":"#VALUE!"},{"$error":"#VALUE!"},null,{"$error":"#N/A"},{"$error":"#N/A"},{"$error":"#N/A"},{"$error":"#N/A"},{"$error":"#N/A"},{"$error":"#N/A"},{"$error":"#N/A"},{"$error":"#N/A"},{"$error":"#N/A"},{"$error":"#N/A"},{"$error":"#N/A"},{"$error":"#N/A"},{"$error":"#N/A"},{"$error":"#N/A"},{"$error":"#N/A"},{"$error":"#N/A"},{"$error":"#N/A"},{"$error":"#N/A"},{"$error":"#N/A"},{"$error":"#N/A"},{"$error":"#N/A"},{"$error":"#N/A"},{"$error":"#N/A"},{"$error":"#N/A"},{"$error":"#N/A"},{"$error":"#N/A"},{"$error":"#N/A"},{"$error":"#N/A"},{"$error":"#N/A"},{"$error":"#N/A"},{"$error":"#N/A"},{"$error":"#N/A"},{"$error":"#N/A"},{"$error":"#N/A"},{"$error":"#N/A"},{"$error":"#N/A"},{"$error":"#N/A"},{"$error":"#N/A"},{"$error":"#N/A"},{"$error":"#N/A"},{"$error":"#N/A"},{"$error":"#N/A"},{"$error":"#N/A"},{"$error":"#N/A"},{"$error":"#N/A"},{"$error":"#N/A"},{"$error":"#N/A"},{"$error":"#N/A"},{"$error":"#N/A"},{"$error":"#N/A"},{"$error":"#N/A"},null,{"$error":"#N/A"},{"$error":"#N/A"}]
[null,"PRE-MF-09",{"$f":"INDEX(tbl_predefined_measures[MEASURE],MATCH($B44&regionid,tbl_predefined_measures[ID&REGION],0))","v":{"$error":"#N/A"}},"N",null,null,null,null,null,null,null,{"$f":"INDEX(tbl_predefined_measures[ACCOUNTING_UNIT],MATCH($B44&regionid,tbl_predefined_measures[ID&REGION],0))","v":{"$error":"#N/A"}},{"$f":"INDEX(tbl_predefined_measures[DELIVERY],MATCH($B44&regionid,tbl_predefined_measures[ID&REGION],0))","v":{"$error":"#N/A"}},null,{"$f":"INDEX(tbl_predefined_measures[COST_OM],MATCH($B44&regionid,tbl_predefined_measures[ID&REGION],0))","v":{"$error":"#N/A"}},{"$f":"INDEX(tbl_predefined_measures[COST_CAPITAL],MATCH($B44&regionid,tbl_predefined_measures[ID&REGION],0))","v":{"$error":"#N/A"}},null,null,{"$f":"INDEX(tbl_predefined_measures[SAVE_GPD],MATCH($B44&regionid,tbl_predefined_measures[ID&REGION],0))","v":{"$error":"#N/A"}},{"$f":"INDEX(tbl_predefined_measures[FREERIDE_PCT],MATCH($B44&regionid,tbl_predefined_measures[ID&REGION],0))","v":{"$error":"#N/A"}},{"$f":"INDEX(tbl_predefined_measures[DECAY_PCT],MATCH($B44&regionid,tbl_predefined_measures[ID&REGION],0))","v":{"$error":"#N/A"}},{"$f":"INDEX(tbl_predefined_measures[PLUMBCODE_YN],MATCH($B44&regionid,tbl_predefined_measures[ID&REGION],0))","v":{"$error":"#N/A"}},{"$f":"INDEX(tbl_predefined_measures[NRR_PCT],MATCH($B44&regionid,tbl_predefined_measures[ID&REGION],0))","v":{"$error":"#N/A"}},{"$f":"IF(V44=\"N\",INDEX(tbl_predefined_measures[LIFE_YRS],MATCH($B44&regionid,tbl_predefined_measures[ID&REGION],0)),99)","v":{"$error":"#N/A"}},null,{"$error":"#N/A"},{"$error":"#N/A"},null,{"$error":"#N/A"},{"$error":"#N/A"},{"$error":"#N/A"},{"$error":"#N/A"},{"$error":"#N/A"},null,{"$f":"F44/AVERAGE(IF(baseline_selection=1,'1. Baseline Demand Projection'!E$27:F$27,'1. Baseline Demand Projection'!N$27:O$27))","v":{"$error":"#DIV/0!"}},{"$f":"G44/AVERAGE(IF(baseline_selection=1,'1. Baseline Demand Projection'!F$27:G$27,'1. Baseline Demand Projection'!O$27:P$27))","v":{"$error":"#DIV/0!"}},{"$f":"H44/AVERAGE(IF(baseline_selection=1,'1. Baseline Demand Projection'!G$27:H$27,'1. Baseline Demand Projection'!P$27:Q$27))","v":{"$error":"#DIV/0!"}},{"$f":"I44/AVERAGE(IF(baseline_selection=1,'1. Baseline Demand Projection'!H$27:I$27,'1. Baseline Demand Projection'!Q$27:R$27))","v":{"$error":"#DIV/0!"}},{"$f":"J44/AVERAGE(IF(baseline_selection=1,'1. Baseline Demand Projection'!I$27:J$27,'1. Baseline Demand Projection'!R$27:S$27))","v":{"$error":"#DIV/0!"}},null,0,0,0,0,0,0,0,0,0,0,0,0,0,0,0,0,0,0,0,0,0,0,0,0,0,0,0,0,0,0,0,0,0,0,0,0,0,0,0,0,0,0,0,0,0,0,0,0,0,0,0,null,{"$f":"MeasureSavingsArray(AO44:CM44,S44,T44,U44,W44,X44,D44)","v":{"$error":"#VALUE!"}},{"$error":"#VALUE!"},{"$error":"#VALUE!"},{"$error":"#VALUE!"},{"$error":"#VALUE!"},{"$error":"#VALUE!"},{"$error":"#VALUE!"},{"$error":"#VALUE!"},{"$error":"#VALUE!"},{"$error":"#VALUE!"},{"$error":"#VALUE!"},{"$error":"#VALUE!"},{"$error":"#VALUE!"},{"$error":"#VALUE!"},{"$error":"#VALUE!"},{"$error":"#VALUE!"},{"$error":"#VALUE!"},{"$error":"#VALUE!"},{"$error":"#VALUE!"},{"$error":"#VALUE!"},{"$error":"#VALUE!"},{"$error":"#VALUE!"},{"$error":"#VALUE!"},{"$error":"#VALUE!"},{"$error":"#VALUE!"},{"$error":"#VALUE!"},{"$error":"#VALUE!"},{"$error":"#VALUE!"},{"$error":"#VALUE!"},{"$error":"#VALUE!"},{"$error":"#VALUE!"},{"$error":"#VALUE!"},{"$error":"#VALUE!"},{"$error":"#VALUE!"},{"$error":"#VALUE!"},{"$error":"#VALUE!"},{"$error":"#VALUE!"},{"$error":"#VALUE!"},{"$error":"#VALUE!"},{"$error":"#VALUE!"},{"$error":"#VALUE!"},{"$error":"#VALUE!"},{"$error":"#VALUE!"},{"$error":"#VALUE!"},{"$error":"#VALUE!"},{"$error":"#VALUE!"},{"$error":"#VALUE!"},{"$error":"#VALUE!"},{"$error":"#VALUE!"},{"$error":"#VALUE!"},{"$error":"#VALUE!"},{"$error":"#VALUE!"},null,{"$error":"#N/A"},{"$error":"#N/A"},{"$error":"#N/A"},{"$error":"#N/A"},{"$error":"#N/A"},{"$error":"#N/A"},{"$error":"#N/A"},{"$error":"#N/A"},{"$error":"#N/A"},{"$error":"#N/A"},{"$error":"#N/A"},{"$error":"#N/A"},{"$error":"#N/A"},{"$error":"#N/A"},{"$error":"#N/A"},{"$error":"#N/A"},{"$error":"#N/A"},{"$error":"#N/A"},{"$error":"#N/A"},{"$error":"#N/A"},{"$error":"#N/A"},{"$error":"#N/A"},{"$error":"#N/A"},{"$error":"#N/A"},{"$error":"#N/A"},{"$error":"#N/A"},{"$error":"#N/A"},{"$error":"#N/A"},{"$error":"#N/A"},{"$error":"#N/A"},{"$error":"#N/A"},{"$error":"#N/A"},{"$error":"#N/A"},{"$error":"#N/A"},{"$error":"#N/A"},{"$error":"#N/A"},{"$error":"#N/A"},{"$error":"#N/A"},{"$error":"#N/A"},{"$error":"#N/A"},{"$error":"#N/A"},{"$error":"#N/A"},{"$error":"#N/A"},{"$error":"#N/A"},{"$error":"#N/A"},{"$error":"#N/A"},{"$error":"#N/A"},{"$error":"#N/A"},{"$error":"#N/A"},{"$error":"#N/A"},{"$error":"#N/A"},null,{"$error":"#N/A"},{"$error":"#N/A"},{"$error":"#N/A"},{"$error":"#N/A"},{"$error":"#N/A"},{"$error":"#N/A"},{"$error":"#N/A"},{"$error":"#N/A"},{"$error":"#N/A"},{"$error":"#N/A"},{"$error":"#N/A"},{"$error":"#N/A"},{"$error":"#N/A"},{"$error":"#N/A"},{"$error":"#N/A"},{"$error":"#N/A"},{"$error":"#N/A"},{"$error":"#N/A"},{"$error":"#N/A"},{"$error":"#N/A"},{"$error":"#N/A"},{"$error":"#N/A"},{"$error":"#N/A"},{"$error":"#N/A"},{"$error":"#N/A"},{"$error":"#N/A"},{"$error":"#N/A"},{"$error":"#N/A"},{"$error":"#N/A"},{"$error":"#N/A"},{"$error":"#N/A"},{"$error":"#N/A"},{"$error":"#N/A"},{"$error":"#N/A"},{"$error":"#N/A"},{"$error":"#N/A"},{"$error":"#N/A"},{"$error":"#N/A"},{"$error":"#N/A"},{"$error":"#N/A"},{"$error":"#N/A"},{"$error":"#N/A"},{"$error":"#N/A"},{"$error":"#N/A"},{"$error":"#N/A"},{"$error":"#N/A"},{"$error":"#N/A"},{"$error":"#N/A"},{"$error":"#N/A"},{"$error":"#N/A"},{"$error":"#N/A"},null,{"$f":"DebtServiceArray(AO44:CM44,P44,discount_rate,Q44,D44)","v":{"$error":"#VALUE!"}},{"$error":"#VALUE!"},{"$error":"#VALUE!"},{"$error":"#VALUE!"},{"$error":"#VALUE!"},{"$error":"#VALUE!"},{"$error":"#VALUE!"},{"$error":"#VALUE!"},{"$error":"#VALUE!"},{"$error":"#VALUE!"},{"$error":"#VALUE!"},{"$error":"#VALUE!"},{"$error":"#VALUE!"},{"$error":"#VALUE!"},{"$error":"#VALUE!"},{"$error":"#VALUE!"},{"$error":"#VALUE!"},{"$error":"#VALUE!"},{"$error":"#VALUE!"},{"$error":"#VALUE!"},{"$error":"#VALUE!"},{"$error":"#VALUE!"},{"$error":"#VALUE!"},{"$error":"#VALUE!"},{"$error":"#VALUE!"},{"$error":"#VALUE!"},{"$error":"#VALUE!"},{"$error":"#VALUE!"},{"$error":"#VALUE!"},{"$error":"#VALUE!"},{"$error":"#VALUE!"},{"$error":"#VALUE!"},{"$error":"#VALUE!"},{"$error":"#VALUE!"},{"$error":"#VALUE!"},{"$error":"#VALUE!"},{"$error":"#VALUE!"},{"$error":"#VALUE!"},{"$error":"#VALUE!"},{"$error":"#VALUE!"},{"$error":"#VALUE!"},{"$error":"#VALUE!"},{"$error":"#VALUE!"},{"$error":"#VALUE!"},{"$error":"#VALUE!"},{"$error":"#VALUE!"},{"$error":"#VALUE!"},{"$error":"#VALUE!"},{"$error":"#VALUE!"},{"$error":"#VALUE!"},{"$error":"#VALUE!"},null,{"$error":"#N/A"},{"$error":"#N/A"},{"$error":"#N/A"},{"$error":"#N/A"},{"$error":"#N/A"},{"$error":"#N/A"},{"$error":"#N/A"},{"$error":"#N/A"},{"$error":"#N/A"},{"$error":"#N/A"},{"$error":"#N/A"},{"$error":"#N/A"},{"$error":"#N/A"},{"$error":"#N/A"},{"$error":"#N/A"},{"$error":"#N/A"},{"$error":"#N/A"},{"$error":"#N/A"},{"$error":"#N/A"},{"$error":"#N/A"},{"$error":"#N/A"},{"$error":"#N/A"},{"$error":"#N/A"},{"$error":"#N/A"},{"$error":"#N/A"},{"$error":"#N/A"},{"$error":"#N/A"},{"$error":"#N/A"},{"$error":"#N/A"},{"$error":"#N/A"},{"$error":"#N/A"},{"$error":"#N/A"},{"$error":"#N/A"},{"$error":"#N/A"},{"$error":"#N/A"},{"$error":"#N/A"},{"$error":"#N/A"},{"$error":"#N/A"},{"$error":"#N/A"},{"$error":"#N/A"},{"$error":"#N/A"},{"$error":"#N/A"},{"$error":"#N/A"},{"$error":"#N/A"},{"$error":"#N/A"},{"$error":"#N/A"},{"$error":"#N/A"},{"$error":"#N/A"},{"$error":"#N/A"},{"$error":"#N/A"},{"$error":"#N/A"},null,{"$error":"#N/A"},{"$error":"#N/A"}]
[null,null,null,null,null,null,null,null,null,null,null,null,null,null,null,null,null,null,null,null,null,null,null,null,null,null,null,null,null,null,null,null,null,null,null,null,null,null,null,null,null,null,null,null,null,null,null,null,null,null,null,null,null,null,null,null,null,null,null,null,null,null,null,null,null,null,null,null,null,null,null,null,null,null,null,null,null,null,null,null,null,null,null,null,null,null,null,null,null,null,null,null,{"$f":"SUM(CO36:CO44)","v":{"$error":"#VALUE!"}},{"$error":"#VALUE!"},{"$error":"#VALUE!"},{"$error":"#VALUE!"},{"$error":"#VALUE!"},{"$error":"#VALUE!"},{"$error":"#VALUE!"},{"$error":"#VALUE!"},{"$error":"#VALUE!"},{"$error":"#VALUE!"},{"$error":"#VALUE!"},{"$error":"#VALUE!"},{"$error":"#VALUE!"},{"$error":"#VALUE!"},{"$error":"#VALUE!"},{"$error":"#VALUE!"},{"$error":"#VALUE!"},{"$error":"#VALUE!"},{"$error":"#VALUE!"},{"$error":"#VALUE!"},{"$error":"#VALUE!"},{"$error":"#VALUE!"},{"$error":"#VALUE!"},{"$error":"#VALUE!"},{"$error":"#VALUE!"},{"$error":"#VALUE!"},{"$error":"#VALUE!"},{"$error":"#VALUE!"},{"$error":"#VALUE!"},{"$error":"#VALUE!"},{"$error":"#VALUE!"},{"$error":"#VALUE!"},{"$f":"SUM(DU36:DU44)","v":{"$error":"#VALUE!"}},{"$error":"#VALUE!"},{"$error":"#VALUE!"},{"$error":"#VALUE!"},{"$error":"#VALUE!"},{"$error":"#VALUE!"},{"$error":"#VALUE!"},{"$error":"#VALUE!"},{"$error":"#VALUE!"},{"$error":"#VALUE!"},{"$error":"#VALUE!"},{"$error":"#VALUE!"},{"$error":"#VALUE!"},{"$error":"#VALUE!"},{"$error":"#VALUE!"},{"$error":"#VALUE!"},{"$error":"#VALUE!"},{"$error":"#VALUE!"},{"$error":"#VALUE!"},{"$error":"#VALUE!"},null,{"$f":"SUM(EP36:EP44)","v":{"$error":"#N/A"}},{"$f":"SUM(EQ36:EQ44)","v":{"$error":"#N/A"}},{"$error":"#N/A"},{"$error":"#N/A"},{"$error":"#N/A"},{"$error":"#N/A"},{"$error":"#N/A"},{"$error":"#N/A"},{"$error":"#N/A"},{"$error":"#N/A"},{"$error":"#N/A"},{"$error":"#N/A"},{"$error":"#N/A"},{"$error":"#N/A"},{"$error":"#N/A"},{"$error":"#N/A"},{"$error":"#N/A"},{"$error":"#N/A"},{"$error":"#N/A"},{"$error":"#N/A"},{"$error":"#N/A"},{"$error":"#N/A"},{"$error":"#N/A"},{"$error":"#N/A"},{"$error":"#N/A"},{"$error":"#N/A"},{"$error":"#N/A"},{"$error":"#N/A"},{"$error":"#N/A"},{"$error":"#N/A"},{"$error":"#N/A"},{"$error":"#N/A"},{"$error":"#N/A"},{"$error":"#N/A"},{"$error":"#N/A"},{"$error":"#N/A"},{"$error":"#N/A"},{"$error":"#N/A"},{"$error":"#N/A"},{"$error":"#N/A"},{"$error":"#N/A"},{"$error":"#N/A"},{"$error":"#N/A"},{"$error":"#N/A"},{"$error":"#N/A"},{"$error":"#N/A"},{"$error":"#N/A"},{"$error":"#N/A"},{"$error":"#N/A"},{"$error":"#N/A"},{"$error":"#N/A"},null,{"$f":"SUM(GP36:GP44)","v":{"$error":"#N/A"}},{"$f":"SUM(GQ36:GQ44)","v":{"$error":"#N/A"}},{"$error":"#N/A"},{"$error":"#N/A"},{"$error":"#N/A"},{"$error":"#N/A"},{"$error":"#N/A"},{"$error":"#N/A"},{"$error":"#N/A"},{"$error":"#N/A"},{"$error":"#N/A"},{"$error":"#N/A"},{"$error":"#N/A"},{"$error":"#N/A"},{"$error":"#N/A"},{"$error":"#N/A"},{"$error":"#N/A"},{"$error":"#N/A"},{"$error":"#N/A"},{"$error":"#N/A"},{"$error":"#N/A"},{"$error":"#N/A"},{"$error":"#N/A"},{"$error":"#N/A"},{"$error":"#N/A"},{"$error":"#N/A"},{"$error":"#N/A"},{"$error":"#N/A"},{"$error":"#N/A"},{"$error":"#N/A"},{"$error":"#N/A"},{"$error":"#N/A"},{"$error":"#N/A"},{"$error":"#N/A"},{"$error":"#N/A"},{"$error":"#N/A"},{"$error":"#N/A"},{"$error":"#N/A"},{"$error":"#N/A"},{"$error":"#N/A"},{"$error":"#N/A"},{"$error":"#N/A"},{"$error":"#N/A"},{"$error":"#N/A"},{"$error":"#N/A"},{"$error":"#N/A"},{"$error":"#N/A"},{"$error":"#N/A"},{"$error":"#N/A"},{"$error":"#N/A"},{"$error":"#N/A"},null,{"$f":"SUM(IP36:IP44)","v":{"$error":"#VALUE!"}},{"$error":"#VALUE!"},{"$error":"#VALUE!"},{"$error":"#VALUE!"},{"$error":"#VALUE!"},{"$error":"#VALUE!"},{"$error":"#VALUE!"},{"$error":"#VALUE!"},{"$error":"#VALUE!"},{"$error":"#VALUE!"},{"$error":"#VALUE!"},{"$error":"#VALUE!"},{"$error":"#VALUE!"},{"$error":"#VALUE!"},{"$error":"#VALUE!"},{"$error":"#VALUE!"},{"$error":"#VALUE!"},{"$error":"#VALUE!"},{"$error":"#VALUE!"},{"$error":"#VALUE!"},{"$error":"#VALUE!"},{"$error":"#VALUE!"},{"$error":"#VALUE!"},{"$error":"#VALUE!"},{"$error":"#VALUE!"},{"$error":"#VALUE!"},{"$error":"#VALUE!"},{"$error":"#VALUE!"},{"$error":"#VALUE!"},{"$error":"#VALUE!"},{"$error":"#VALUE!"},{"$error":"#VALUE!"},{"$f":"SUM(JV36:JV44)","v":{"$error":"#VALUE!"}},{"$error":"#VALUE!"},{"$error":"#VALUE!"},{"$error":"#VALUE!"},{"$error":"#VALUE!"},{"$error":"#VALUE!"},{"$error":"#VALUE!"},{"$error":"#VALUE!"},{"$error":"#VALUE!"},{"$error":"#VALUE!"},{"$error":"#VALUE!"},{"$error":"#VALUE!"},{"$error":"#VALUE!"},{"$error":"#VALUE!"},{"$error":"#VALUE!"},{"$error":"#VALUE!"},{"$error":"#VALUE!"},{"$error":"#VALUE!"},{"$error":"#VALUE!"},null,{"$f":"SUM(KP36:KP44)","v":{"$error":"#N/A"}},{"$f":"SUM(KQ36:KQ44)","v":{"$error":"#N/A"}},{"$error":"#N/A"},{"$error":"#N/A"},{"$error":"#N/A"},{"$error":"#N/A"},{"$error":"#N/A"},{"$error":"#N/A"},{"$error":"#N/A"},{"$error":"#N/A"},{"$error":"#N/A"},{"$error":"#N/A"},{"$error":"#N/A"},{"$error":"#N/A"},{"$error":"#N/A"},{"$error":"#N/A"},{"$error":"#N/A"},{"$error":"#N/A"},{"$error":"#N/A"},{"$error":"#N/A"},{"$error":"#N/A"},{"$error":"#N/A"},{"$error":"#N/A"},{"$error":"#N/A"},{"$error":"#N/A"},{"$error":"#N/A"},{"$error":"#N/A"},{"$error":"#N/A"},{"$error":"#N/A"},{"$error":"#N/A"},{"$error":"#N/A"},{"$error":"#N/A"},{"$error":"#N/A"},{"$error":"#N/A"},{"$error":"#N/A"},{"$error":"#N/A"},{"$error":"#N/A"},{"$error":"#N/A"},{"$error":"#N/A"},{"$error":"#N/A"},{"$error":"#N/A"},{"$error":"#N/A"},{"$error":"#N/A"},{"$error":"#N/A"},{"$error":"#N/A"},{"$error":"#N/A"},{"$error":"#N/A"},{"$error":"#N/A"},{"$error":"#N/A"},{"$error":"#N/A"},{"$error":"#N/A"}]
[null,"Industrial, Commercial, Institutional Measures"]
[null,"PRE-ICI-01",{"$f":"INDEX(tbl_predefined_measures[MEASURE],MATCH($B47&regionid,tbl_predefined_measures[ID&REGION],0))","v":{"$error":"#N/A"}},"N",null,null,null,null,null,null,null,{"$f":"INDEX(tbl_predefined_measures[ACCOUNTING_UNIT],MATCH($B47&regionid,tbl_predefined_measures[ID&REGION],0))","v":{"$error":"#N/A"}},{"$f":"INDEX(tbl_predefined_measures[DELIVERY],MATCH($B47&regionid,tbl_predefined_measures[ID&REGION],0))","v":{"$error":"#N/A"}},null,{"$f":"INDEX(tbl_predefined_measures[COST_OM],MATCH($B47&regionid,tbl_predefined_measures[ID&REGION],0))","v":{"$error":"#N/A"}},{"$f":"INDEX(tbl_predefined_measures[COST_CAPITAL],MATCH($B47&regionid,tbl_predefined_measures[ID&REGION],0))","v":{"$error":"#N/A"}},null,null,{"$f":"INDEX(tbl_predefined_measures[SAVE_GPD],MATCH($B47&regionid,tbl_predefined_measures[ID&REGION],0))","v":{"$error":"#N/A"}},{"$f":"INDEX(tbl_predefined_measures[FREERIDE_PCT],MATCH($B47&regionid,tbl_predefined_measures[ID&REGION],0))","v":{"$error":"#N/A"}},{"$f":"INDEX(tbl_predefined_measures[DECAY_PCT],MATCH($B47&regionid,tbl_predefined_measures[ID&REGION],0))","v":{"$error":"#N/A"}},{"$f":"INDEX(tbl_predefined_measures[PLUMBCODE_YN],MATCH($B47&regionid,tbl_predefined_measures[ID&REGION],0))","v":{"$error":"#N/A"}},{"$f":"INDEX(tbl_predefined_measures[NRR_PCT],MATCH($B47&regionid,tbl_predefined_measures[ID&REGION],0))","v":{"$error":"#N/A"}},{"$f":"IF(V47=\"N\",INDEX(tbl_predefined_measures[LIFE_YRS],MATCH($B47&regionid,tbl_predefined_measures[ID&REGION],0)),99)","v":{"$error":"#N/A"}},null,{"$f":"SUM(O47:P47)","v":{"$error":"#N/A"}},{"$f":"IF(S47>0,(SUM(O47:P47)/(MP47*(1-T47)))*(MQ47-1)/(MQ47^X47-1),0)","v":{"$error":"#N/A"}},null,{"$f":"AVERAGE(KP47:KZ47)","v":{"$error":"#N/A"}},{"$f":"AVERAGE(LA47:LJ47)","v":{"$error":"#N/A"}},{"$f":"AVERAGE(LK47:LT47)","v":{"$error":"#N/A"}},{"$f":"AVERAGE(LU47:MD47)","v":{"$error":"#N/A"}},{"$f":"AVERAGE(ME47:MN47)","v":{"$error":"#N/A"}},null,{"$f":"F47/(AVERAGE(IF(baseline_selection=1,'1. Baseline Demand Projection'!E$23:F$23,'1. Baseline Demand Projection'!N$23:O$23))/poppericitoilet)","v":{"$error":"#DIV/0!"}},{"$f":"G47/(AVERAGE(IF(baseline_selection=1,'1. Baseline Demand Projection'!F$23:G$23,'1. Baseline Demand Projection'!O$23:P$23))/poppericitoilet)","v":{"$error":"#DIV/0!"}},{"$f":"H47/(AVERAGE(IF(baseline_selection=1,'1. Baseline Demand Projection'!G$23:H$23,'1. Baseline Demand Projection'!P$23:Q$23))/poppericitoilet)","v":{"$error":"#DIV/0!"}},{"$f":"I47/(AVERAGE(IF(baseline_selection=1,'1. Baseline Demand Projection'!H$23:I$23,'1. Baseline Demand Projection'!Q$23:R$23))/poppericitoilet)","v":{"$error":"#DIV/0!"}},{"$f":"J47/(AVERAGE(IF(baseline_selection=1,'1. Baseline Demand Projection'!I$23:J$23,'1. Baseline Demand Projection'!R$23:S$23))/poppericitoilet)","v":{"$error":"#DIV/0!"}},null,{"$f":"$F47*IF($D47=\"Y\",1,0)","v":0},{"$f":"CHOOSE(ROUNDUP((AP$18-2020)/10,0),$F47,$G47,$H47,$I47,$J47)*IF($D47=\"Y\",1,0)","v":0},0,0,0,0,0,0,0,0,0,{"$f":"CHOOSE(ROUNDUP((AZ$18-2020)/10,0),$F47,$G47,$H47,$I47,$J47)*IF($D47=\"Y\",1,0)","v":0},0,0,0,0,0,0,0,0,0,{"$f":"CHOOSE(ROUNDUP((BJ$18-2020)/10,0),$F47,$G47,$H47,$I47,$J47)*IF($D47=\"Y\",1,0)","v":0},0,0,0,0,0,0,0,0,0,{"$f":"CHOOSE(ROUNDUP((BT$18-2020)/10,0),$F47,$G47,$H47,$I47,$J47)*IF($D47=\"Y\",1,0)","v":0},0,0,0,0,0,0,0,0,0,{"$f":"CHOOSE(ROUNDUP((CD$18-2020)/10,0),$F47,$G47,$H47,$I47,$J47)*IF($D47=\"Y\",1,0)","v":0},0,0,0,0,0,0,0,0,0,null,{"$f":"MeasureSavingsArray(AO47:CM47,S47,T47,U47,W47,X47,D47)","v":{"$error":"#VALUE!"}},{"$error":"#VALUE!"},{"$error":"#VALUE!"},{"$error":"#VALUE!"},{"$error":"#VALUE!"},{"$error":"#VALUE!"},{"$error":"#VALUE!"},{"$error":"#VALUE!"},{"$error":"#VALUE!"},{"$error":"#VALUE!"},{"$error":"#VALUE!"},{"$error":"#VALUE!"},{"$error":"#VALUE!"},{"$error":"#VALUE!"},{"$error":"#VALUE!"},{"$error":"#VALUE!"},{"$error":"#VALUE!"},{"$error":"#VALUE!"},{"$error":"#VALUE!"},{"$error":"#VALUE!"},{"$error":"#VALUE!"},{"$error":"#VALUE!"},{"$error":"#VALUE!"},{"$error":"#VALUE!"},{"$error":"#VALUE!"},{"$error":"#VALUE!"},{"$error":"#VALUE!"},{"$error":"#VALUE!"},{"$error":"#VALUE!"},{"$error":"#VALUE!"},{"$error":"#VALUE!"},{"$error":"#VALUE!"},{"$error":"#VALUE!"},{"$error":"#VALUE!"},{"$error":"#VALUE!"},{"$error":"#VALUE!"},{"$error":"#VALUE!"},{"$error":"#VALUE!"},{"$error":"#VALUE!"},{"$error":"#VALUE!"},{"$error":"#VALUE!"},{"$error":"#VALUE!"},{"$error":"#VALUE!"},{"$error":"#VALUE!"},{"$error":"#VALUE!"},{"$error":"#VALUE!"},{"$error":"#VALUE!"},{"$error":"#VALUE!"},{"$error":"#VALUE!"},{"$error":"#VALUE!"},{"$error":"#VALUE!"},{"$f":"CO47+NPV(discount_rate,CP47:EM47)","v":{"$error":"#VALUE!"}},null,{"$f":"$O47*AO47","v":{"$error":"#N/A"}},{"$f":"$O47*AP47","v":{"$error":"#N/A"}},{"$f":"$O47*AQ47","v":{"$error":"#N/A"}},{"$f":"$O47*AR47","v":{"$error":"#N/A"}},{"$f":"$O47*AS47","v":{"$error":"#N/A"}},{"$f":"$O47*AT47","v":{"$error":"#N/A"}},{"$f":"$O47*AU47","v":{"$error":"#N/A"}},{"$f":"$O47*AV47","v":{"$error":"#N/A"}},{"$f":"$O47*AW47","v":{"$error":"#N/A"}},{"$f":"$O47*AX47","v":{"$error":"#N/A"}},{"$f":"$O47*AY47","v":{"$error":"#N/A"}},{"$f":"$O47*AZ47","v":{"$error":"#N/A"}},{"$f":"$O47*BA47","v":{"$error":"#N/A"}},{"$f":"$O47*BB47","v":{"$error":"#N/A"}},{"$f":"$O47*BC47","v":{"$error":"#N/A"}},{"$f":"$O47*BD47","v":{"$error":"#N/A"}},{"$f":"$O47*BE47","v":{"$error":"#N/A"}},{"$f":"$O47*BF47","v":{"$error":"#N/A"}},{"$f":"$O47*BG47","v":{"$error":"#N/A"}},{"$f":"$O47*BH47","v":{"$error":"#N/A"}},{"$f":"$O47*BI47","v":{"$error":"#N/A"}},{"$f":"$O47*BJ47","v":{"$error":"#N/A"}},{"$f":"$O47*BK47","v":{"$error":"#N/A"}},{"$f":"$O47*BL47","v":{"$error":"#N/A"}},{"$f":"$O47*BM47","v":{"$error":"#N/A"}},{"$f":"$O47*BN47","v":{"$error":"#N/A"}},{"$f":"$O47*BO47","v":{"$error":"#N/A"}},{"$f":"$O47*BP47","v":{"$error":"#N/A"}},{"$f":"$O47*BQ47","v":{"$error":"#N/A"}},{"$f":"$O47*BR47","v":{"$error":"#N/A"}},{"$f":"$O47*BS47","v":{"$error":"#N/A"}},{"$f":"$O47*BT47","v":{"$error":"#N/A"}},{"$f":"$O47*BU47","v":{"$error":"#N/A"}},{"$f":"$O47*BV47","v":{"$error":"#N/A"}},{"$f":"$O47*BW47","v":{"$error":"#N/A"}},{"$f":"$O47*BX47","v":{"$error":"#N/A"}},{"$f":"$O47*BY47","v":{"$error":"#N/A"}},{"$f":"$O47*BZ47","v":{"$error":"#N/A"}},{"$f":"$O47*CA47","v":{"$error":"#N/A"}},{"$f":"$O47*CB47","v":{"$error":"#N/A"}},{"$f":"$O47*CC47","v":{"$error":"#N/A"}},{"$f":"$O47*CD47","v":{"$error":"#N/A"}},{"$f":"$O47*CE47","v":{"$error":"#N/A"}},{"$f":"$O47*CF47","v":{"$error":"#N/A"}},{"$f":"$O47*CG47","v":{"$error":"#N/A"}},{"$f":"$O47*CH47","v":{"$error":"#N/A"}},{"$f":"$O47*CI47","v":{"$error":"#N/A"}},{"$f":"$O47*CJ47","v":{"$error":"#N/A"}},{"$f":"$O47*CK47","v":{"$error":"#N/A"}},{"$f":"$O47*CL47","v":{"$error":"#N/A"}},{"$f":"$O47*CM47","v":{"$error":"#N/A"}},null,{"$f":"$P47*IF($Q47=\"N\",1,0)*AO47","v":{"$error":"#N/A"}},{"$f":"$P47*IF($Q47=\"N\",1,0)*AP47","v":{"$error":"#N/A"}},{"$f":"$P47*IF($Q47=\"N\",1,0)*AQ47","v":{"$error":"#N/A"}},{"$f":"$P47*IF($Q47=\"N\",1,0)*AR47","v":{"$error":"#N/A"}},{"$f":"$P47*IF($Q47=\"N\",1,0)*AS47","v":{"$error":"#N/A"}},{"$f":"$P47*IF($Q47=\"N\",1,0)*AT47","v":{"$error":"#N/A"}},{"$f":"$P47*IF($Q47=\"N\",1,0)*AU47","v":{"$error":"#N/A"}},{"$f":"$P47*IF($Q47=\"N\",1,0)*AV47","v":{"$error":"#N/A"}},{"$f":"$P47*IF($Q47=\"N\",1,0)*AW47","v":{"$error":"#N/A"}},{"$f":"$P47*IF($Q47=\"N\",1,0)*AX47","v":{"$error":"#N/A"}},{"$f":"$P47*IF($Q47=\"N\",1,0)*AY47","v":{"$error":"#N/A"}},{"$f":"$P47*IF($Q47=\"N\",1,0)*AZ47","v":{"$error":"#N/A"}},{"$f":"$P47*IF($Q47=\"N\",1,0)*BA47","v":{"$error":"#N/A"}},{"$f":"$P47*IF($Q47=\"N\",1,0)*BB47","v":{"$error":"#N/A"}},{"$f":"$P47*IF($Q47=\"N\",1,0)*BC47","v":{"$error":"#N/A"}},{"$f":"$P47*IF($Q47=\"N\",1,0)*BD47","v":{"$error":"#N/A"}},{"$f":"$P47*IF($Q47=\"N\",1,0)*BE47","v":{"$error":"#N/A"}},{"$f":"$P47*IF($Q47=\"N\",1,0)*BF47","v":{"$error":"#N/A"}},{"$f":"$P47*IF($Q47=\"N\",1,0)*BG47","v":{"$error":"#N/A"}},{"$f":"$P47*IF($Q47=\"N\",1,0)*BH47","v":{"$error":"#N/A"}},{"$f":"$P47*IF($Q47=\"N\",1,0)*BI47","v":{"$error":"#N/A"}},{"$f":"$P47*IF($Q47=\"N\",1,0)*BJ47","v":{"$error":"#N/A"}},{"$f":"$P47*IF($Q47=\"N\",1,0)*BK47","v":{"$error":"#N/A"}},{"$f":"$P47*IF($Q47=\"N\",1,0)*BL47","v":{"$error":"#N/A"}},{"$f":"$P47*IF($Q47=\"N\",1,0)*BM47","v":{"$error":"#N/A"}},{"$f":"$P47*IF($Q47=\"N\",1,0)*BN47","v":{"$error":"#N/A"}},{"$f":"$P47*IF($Q47=\"N\",1,0)*BO47","v":{"$error":"#N/A"}},{"$f":"$P47*IF($Q47=\"N\",1,0)*BP47","v":{"$error":"#N/A"}},{"$f":"$P47*IF($Q47=\"N\",1,0)*BQ47","v":{"$error":"#N/A"}},{"$f":"$P47*IF($Q47=\"N\",1,0)*BR47","v":{"$error":"#N/A"}},{"$f":"$P47*IF($Q47=\"N\",1,0)*BS47","v":{"$error":"#N/A"}},{"$f":"$P47*IF($Q47=\"N\",1,0)*BT47","v":{"$error":"#N/A"}},{"$f":"$P47*IF($Q47=\"N\",1,0)*BU47","v":{"$error":"#N/A"}},{"$f":"$P47*IF($Q47=\"N\",1,0)*BV47","v":{"$error":"#N/A"}},{"$f":"$P47*IF($Q47=\"N\",1,0)*BW47","v":{"$error":"#N/A"}},{"$f":"$P47*IF($Q47=\"N\",1,0)*BX47","v":{"$error":"#N/A"}},{"$f":"$P47*IF($Q47=\"N\",1,0)*BY47","v":{"$error":"#N/A"}},{"$f":"$P47*IF($Q47=\"N\",1,0)*BZ47","v":{"$error":"#N/A"}},{"$f":"$P47*IF($Q47=\"N\",1,0)*CA47","v":{"$error":"#N/A"}},{"$f":"$P47*IF($Q47=\"N\",1,0)*CB47","v":{"$error":"#N/A"}},{"$f":"$P47*IF($Q47=\"N\",1,0)*CC47","v":{"$error":"#N/A"}},{"$f":"$P47*IF($Q47=\"N\",1,0)*CD47","v":{"$error":"#N/A"}},{"$f":"$P47*IF($Q47=\"N\",1,0)*CE47","v":{"$error":"#N/A"}},{"$f":"$P47*IF($Q47=\"N\",1,0)*CF47","v":{"$error":"#N/A"}},{"$f":"$P47*IF($Q47=\"N\",1,0)*CG47","v":{"$error":"#N/A"}},{"$f":"$P47*IF($Q47=\"N\",1,0)*CH47","v":{"$error":"#N/A"}},{"$f":"$P47*IF($Q47=\"N\",1,0)*CI47","v":{"$error":"#N/A"}},{"$f":"$P47*IF($Q47=\"N\",1,0)*CJ47","v":{"$error":"#N/A"}},{"$f":"$P47*IF($Q47=\"N\",1,0)*CK47","v":{"$error":"#N/A"}},{"$f":"$P47*IF($Q47=\"N\",1,0)*CL47","v":{"$error":"#N/A"}},{"$f":"$P47*IF($Q47=\"N\",1,0)*CM47","v":{"$error":"#N/A"}},null,{"$f":"DebtServiceArray(AO47:CM47,P47,discount_rate,Q47,D47)","v":{"$error":"#VALUE!"}},{"$error":"#VALUE!"},{"$error":"#VALUE!"},{"$error":"#VALUE!"},{"$error":"#VALUE!"},{"$error":"#VALUE!"},{"$error":"#VALUE!"},{"$error":"#VALUE!"},{"$error":"#VALUE!"},{"$error":"#VALUE!"},{"$error":"#VALUE!"},{"$error":"#VALUE!"},{"$error":"#VALUE!"},{"$error":"#VALUE!"},{"$error":"#VALUE!"},{"$error":"#VALUE!"},{"$error":"#VALUE!"},{"$error":"#VALUE!"},{"$error":"#VALUE!"},{"$error":"#VALUE!"},{"$error":"#VALUE!"},{"$error":"#VALUE!"},{"$error":"#VALUE!"},{"$error":"#VALUE!"},{"$error":"#VALUE!"},{"$error":"#VALUE!"},{"$error":"#VALUE!"},{"$error":"#VALUE!"},{"$error":"#VALUE!"},{"$error":"#VALUE!"},{"$error":"#VALUE!"},{"$error":"#VALUE!"},{"$error":"#VALUE!"},{"$error":"#VALUE!"},{"$error":"#VALUE!"},{"$error":"#VALUE!"},{"$error":"#VALUE!"},{"$error":"#VALUE!"},{"$error":"#VALUE!"},{"$error":"#VALUE!"},{"$error":"#VALUE!"},{"$error":"#VALUE!"},{"$error":"#VALUE!"},{"$error":"#VALUE!"},{"$error":"#VALUE!"},{"$error":"#VALUE!"},{"$error":"#VALUE!"},{"$error":"#VALUE!"},{"$error":"#VALUE!"},{"$error":"#VALUE!"},{"$error":"#VALUE!"},null,{"$f":"SUM(EP47,GP47,IP47)","v":{"$error":"#N/A"}},{"$f":"SUM(EQ47,GQ47,IQ47)","v":{"$error":"#N/A"}},{"$f":"SUM(ER47,GR47,IR47)","v":{"$error":"#N/A"}},{"$f":"SUM(ES47,GS47,IS47)","v":{"$error":"#N/A"}},{"$f":"SUM(ET47,GT47,IT47)","v":{"$error":"#N/A"}},{"$f":"SUM(EU47,GU47,IU47)","v":{"$error":"#N/A"}},{"$f":"SUM(EV47,GV47,IV47)","v":{"$error":"#N/A"}},{"$f":"SUM(EW47,GW47,IW47)","v":{"$error":"#N/A"}},{"$f":"SUM(EX47,GX47,IX47)","v":{"$error":"#N/A"}},{"$f":"SUM(EY47,GY47,IY47)","v":{"$error":"#N/A"}},{"$f":"SUM(EZ47,GZ47,IZ47)","v":{"$error":"#N/A"}},{"$f":"SUM(FA47,HA47,JA47)","v":{"$error":"#N/A"}},{"$f":"SUM(FB47,HB47,JB47)","v":{"$error":"#N/A"}},{"$f":"SUM(FC47,HC47,JC47)","v":{"$error":"#N/A"}},{"$f":"SUM(FD47,HD47,JD47)","v":{"$error":"#N/A"}},{"$f":"SUM(FE47,HE47,JE47)","v":{"$error":"#N/A"}},{"$f":"SUM(FF47,HF47,JF47)","v":{"$error":"#N/A"}},{"$f":"SUM(FG47,HG47,JG47)","v":{"$error":"#N/A"}},{"$f":"SUM(FH47,HH47,JH47)","v":{"$error":"#N/A"}},{"$f":"SUM(FI47,HI47,JI47)","v":{"$error":"#N/A"}},{"$f":"SUM(FJ47,HJ47,JJ47)","v":{"$error":"#N/A"}},{"$f":"SUM(FK47,HK47,JK47)","v":{"$error":"#N/A"}},{"$f":"SUM(FL47,HL47,JL47)","v":{"$error":"#N/A"}},{"$f":"SUM(FM47,HM47,JM47)","v":{"$error":"#N/A"}},{"$f":"SUM(FN47,HN47,JN47)","v":{"$error":"#N/A"}},{"$f":"SUM(FO47,HO47,JO47)","v":{"$error":"#N/A"}},{"$f":"SUM(FP47,HP47,JP47)","v":{"$error":"#N/A"}},{"$f":"SUM(FQ47,HQ47,JQ47)","v":{"$error":"#N/A"}},{"$f":"SUM(FR47,HR47,JR47)","v":{"$error":"#N/A"}},{"$f":"SUM(FS47,HS47,JS47)","v":{"$error":"#N/A"}},{"$f":"SUM(FT47,HT47,JT47)","v":{"$error":"#N/A"}},{"$f":"SUM(FU47,HU47,JU47)","v":{"$error":"#N/A"}},{"$f":"SUM(FV47,HV47,JV47)","v":{"$error":"#N/A"}},{"$f":"SUM(FW47,HW47,JW47)","v":{"$error":"#N/A"}},{"$f":"SUM(FX47,HX47,JX47)","v":{"$error":"#N/A"}},{"$f":"SUM(FY47,HY47,JY47)","v":{"$error":"#N/A"}},{"$f":"SUM(FZ47,HZ47,JZ47)","v":{"$error":"#N/A"}},{"$f":"SUM(GA47,IA47,KA47)","v":{"$error":"#N/A"}},{"$f":"SUM(GB47,IB47,KB47)","v":{"$error":"#N/A"}},{"$f":"SUM(GC47,IC47,KC47)","v":{"$error":"#N/A"}},{"$f":"SUM(GD47,ID47,KD47)","v":{"$error":"#N/A"}},{"$f":"SUM(GE47,IE47,KE47)","v":{"$error":"#N/A"}},{"$f":"SUM(GF47,IF47,KF47)","v":{"$error":"#N/A"}},{"$f":"SUM(GG47,IG47,KG47)","v":{"$error":"#N/A"}},{"$f":"SUM(GH47,IH47,KH47)","v":{"$error":"#N/A"}},{"$f":"SUM(GI47,II47,KI47)","v":{"$error":"#N/A"}},{"$f":"SUM(GJ47,IJ47,KJ47)","v":{"$error":"#N/A"}},{"$f":"SUM(GK47,IK47,KK47)","v":{"$error":"#N/A"}},{"$f":"SUM(GL47,IL47,KL47)","v":{"$error":"#N/A"}},{"$f":"SUM(GM47,IM47,KM47)","v":{"$error":"#N/A"}},{"$f":"SUM(GN47,IN47,KN47)","v":{"$error":"#N/A"}},null,{"$f":"S47*365/325851","v":{"$error":"#N/A"}},{"$f":"(1-U47)*(1-W47)/(1+discount_rate)","v":{"$error":"#N/A"}}]
[null,"PRE-ICI-02",{"$f":"INDEX(tbl_predefined_measures[MEASURE],MATCH($B48&regionid,tbl_predefined_measures[ID&REGION],0))","v":{"$error":"#N/A"}},"N",null,null,null,null,null,null,null,{"$f":"INDEX(tbl_predefined_measures[ACCOUNTING_UNIT],MATCH($B48&regionid,tbl_predefined_measures[ID&REGION],0))","v":{"$error":"#N/A"}},{"$f":"INDEX(tbl_predefined_measures[DELIVERY],MATCH($B48&regionid,tbl_predefined_measures[ID&REGION],0))","v":{"$error":"#N/A"}},null,{"$f":"INDEX(tbl_predefined_measures[COST_OM],MATCH($B48&regionid,tbl_predefined_measures[ID&REGION],0))","v":{"$error":"#N/A"}},{"$f":"INDEX(tbl_predefined_measures[COST_CAPITAL],MATCH($B48&regionid,tbl_predefined_measures[ID&REGION],0))","v":{"$error":"#N/A"}},null,null,{"$f":"INDEX(tbl_predefined_measures[SAVE_GPD],MATCH($B48&regionid,tbl_predefined_measures[ID&REGION],0))","v":{"$error":"#N/A"}},{"$f":"INDEX(tbl_predefined_measures[FREERIDE_PCT],MATCH($B48&regionid,tbl_predefined_measures[ID&REGION],0))","v":{"$error":"#N/A"}},{"$f":"INDEX(tbl_predefined_measures[DECAY_PCT],MATCH($B48&regionid,tbl_predefined_measures[ID&REGION],0))","v":{"$error":"#N/A"}},{"$f":"INDEX(tbl_predefined_measures[PLUMBCODE_YN],MATCH($B48&regionid,tbl_predefined_measures[ID&REGION],0))","v":{"$error":"#N/A"}},{"$f":"INDEX(tbl_predefined_measures[NRR_PCT],MATCH($B48&regionid,tbl_predefined_measures[ID&REGION],0))","v":{"$error":"#N/A"}},{"$f":"IF(V48=\"N\",INDEX(tbl_predefined_measures[LIFE_YRS],MATCH($B48&regionid,tbl_predefined_measures[ID&REGION],0)),99)","v":{"$error":"#N/A"}},null,{"$error":"#N/A"},{"$error":"#N/A"},null,{"$error":"#N/A"},{"$error":"#N/A"},{"$error":"#N/A"},{"$error":"#N/A"},{"$error":"#N/A"},null,{"$f":"F48/(iciurinalpertoilet*AVERAGE(IF(baseline_selection=1,'1. Baseline Demand Projection'!E$23:F$23,'1. Baseline Demand Projection'!N$23:O$23))/poppericitoilet)","v":{"$error":"#DIV/0!"}},{"$f":"G48/(iciurinalpertoilet*AVERAGE(IF(baseline_selection=1,'1. Baseline Demand Projection'!F$23:G$23,'1. Baseline Demand Projection'!O$23:P$23))/poppericitoilet)","v":{"$error":"#DIV/0!"}},{"$f":"H48/(iciurinalpertoilet*AVERAGE(IF(baseline_selection=1,'1. Baseline Demand Projection'!G$23:H$23,'1. Baseline Demand Projection'!P$23:Q$23))/poppericitoilet)","v":{"$error":"#DIV/0!"}},{"$f":"I48/(iciurinalpertoilet*AVERAGE(IF(baseline_selection=1,'1. Baseline Demand Projection'!H$23:I$23,'1. Baseline Demand Projection'!Q$23:R$23))/poppericitoilet)","v":{"$error":"#DIV/0!"}},{"$f":"J48/(iciurinalpertoilet*AVERAGE(IF(baseline_selection=1,'1. Baseline Demand Projection'!I$23:J$23,'1. Baseline Demand Projection'!R$23:S$23))/poppericitoilet)","v":{"$error":"#DIV/0!"}},null,0,0,0,0,0,0,0,0,0,0,0,0,0,0,0,0,0,0,0,0,0,0,0,0,0,0,0,0,0,0,0,0,0,0,0,0,0,0,0,0,0,0,0,0,0,0,0,0,0,0,0,null,{"$f":"MeasureSavingsArray(AO48:CM48,S48,T48,U48,W48,X48,D48)","v":{"$error":"#VALUE!"}},{"$error":"#VALUE!"},{"$error":"#VALUE!"},{"$error":"#VALUE!"},{"$error":"#VALUE!"},{"$error":"#VALUE!"},{"$error":"#VALUE!"},{"$error":"#VALUE!"},{"$error":"#VALUE!"},{"$error":"#VALUE!"},{"$error":"#VALUE!"},{"$error":"#VALUE!"},{"$error":"#VALUE!"},{"$error":"#VALUE!"},{"$error":"#VALUE!"},{"$error":"#VALUE!"},{"$error":"#VALUE!"},{"$error":"#VALUE!"},{"$error":"#VALUE!"},{"$error":"#VALUE!"},{"$error":"#VALUE!"},{"$error":"#VALUE!"},{"$error":"#VALUE!"},{"$error":"#VALUE!"},{"$error":"#VALUE!"},{"$error":"#VALUE!"},{"$error":"#VALUE!"},{"$error":"#VALUE!"},{"$error":"#VALUE!"},{"$error":"#VALUE!"},{"$error":"#VALUE!"},{"$error":"#VALUE!"},{"$error":"#VALUE!"},{"$error":"#VALUE!"},{"$error":"#VALUE!"},{"$error":"#VALUE!"},{"$error":"#VALUE!"},{"$error":"#VALUE!"},{"$error":"#VALUE!"},{"$error":"#VALUE!"},{"$error":"#VALUE!"},{"$error":"#VALUE!"},{"$error":"#VALUE!"},{"$error":"#VALUE!"},{"$error":"#VALUE!"},{"$error":"#VALUE!"},{"$error":"#VALUE!"},{"$error":"#VALUE!"},{"$error":"#VALUE!"},{"$error":"#VALUE!"},{"$error":"#VALUE!"},{"$error":"#VALUE!"},null,{"$error":"#N/A"},{"$error":"#N/A"},{"$error":"#N/A"},{"$error":"#N/A"},{"$error":"#N/A"},{"$error":"#N/A"},{"$error":"#N/A"},{"$error":"#N/A"},{"$error":"#N/A"},{"$error":"#N/A"},{"$error":"#N/A"},{"$error":"#N/A"},{"$error":"#N/A"},{"$error":"#N/A"},{"$error":"#N/A"},{"$error":"#N/A"},{"$error":"#N/A"},{"$error":"#N/A"},{"$error":"#N/A"},{"$error":"#N/A"},{"$error":"#N/A"},{"$error":"#N/A"},{"$error":"#N/A"},{"$error":"#N/A"},{"$error":"#N/A"},{"$error":"#N/A"},{"$error":"#N/A"},{"$error":"#N/A"},{"$error":"#N/A"},{"$error":"#N/A"},{"$error":"#N/A"},{"$error":"#N/A"},{"$error":"#N/A"},{"$error":"#N/A"},{"$error":"#N/A"},{"$error":"#N/A"},{"$error":"#N/A"},{"$error":"#N/A"},{"$error":"#N/A"},{"$error":"#N/A"},{"$error":"#N/A"},{"$error":"#N/A"},{"$error":"#N/A"},{"$error":"#N/A"},{"$error":"#N/A"},{"$error":"#N/A"},{"$error":"#N/A"},{"$error":"#N/A"},{"$error":"#N/A"},{"$error":"#N/A"},{"$error":"#N/A"},null,{"$error":"#N/A"},{"$error":"#N/A"},{"$error":"#N/A"},{"$error":"#N/A"},{"$error":"#N/A"},{"$error":"#N/A"},{"$error":"#N/A"},{"$error":"#N/A"},{"$error":"#N/A"},{"$error":"#N/A"},{"$error":"#N/A"},{"$error":"#N/A"},{"$error":"#N/A"},{"$error":"#N/A"},{"$error":"#N/A"},{"$error":"#N/A"},{"$error":"#N/A"},{"$error":"#N/A"},{"$error":"#N/A"},{"$error":"#N/A"},{"$error":"#N/A"},{"$error":"#N/A"},{"$error":"#N/A"},{"$error":"#N/A"},{"$error":"#N/A"},{"$error":"#N/A"},{"$error":"#N/A"},{"$error":"#N/A"},{"$error":"#N/A"},{"$error":"#N/A"},{"$error":"#N/A"},{"$error":"#N/A"},{"$error":"#N/A"},{"$error":"#N/A"},{"$error":"#N/A"},{"$error":"#N/A"},{"$error":"#N/A"},{"$error":"#N/A"},{"$error":"#N/A"},{"$error":"#N/A"},{"$error":"#N/A"},{"$error":"#N/A"},{"$error":"#N/A"},{"$error":"#N/A"},{"$error":"#N/A"},{"$error":"#N/A"},{"$error":"#N/A"},{"$error":"#N/A"},{"$error":"#N/A"},{"$error":"#N/A"},{"$error":"#N/A"},null,{"$f":"DebtServiceArray(AO48:CM48,P48,discount_rate,Q48,D48)","v":{"$error":"#VALUE!"}},{"$error":"#VALUE!"},{"$error":"#VALUE!"},{"$error":"#VALUE!"},{"$error":"#VALUE!"},{"$error":"#VALUE!"},{"$error":"#VALUE!"},{"$error":"#VALUE!"},{"$error":"#VALUE!"},{"$error":"#VALUE!"},{"$error":"#VALUE!"},{"$error":"#VALUE!"},{"$error":"#VALUE!"},{"$error":"#VALUE!"},{"$error":"#VALUE!"},{"$error":"#VALUE!"},{"$error":"#VALUE!"},{"$error":"#VALUE!"},{"$error":"#VALUE!"},{"$error":"#VALUE!"},{"$error":"#VALUE!"},{"$error":"#VALUE!"},{"$error":"#VALUE!"},{"$error":"#VALUE!"},{"$error":"#VALUE!"},{"$error":"#VALUE!"},{"$error":"#VALUE!"},{"$error":"#VALUE!"},{"$error":"#VALUE!"},{"$error":"#VALUE!"},{"$error":"#VALUE!"},{"$error":"#VALUE!"},{"$error":"#VALUE!"},{"$error":"#VALUE!"},{"$error":"#VALUE!"},{"$error":"#VALUE!"},{"$error":"#VALUE!"},{"$error":"#VALUE!"},{"$error":"#VALUE!"},{"$error":"#VALUE!"},{"$error":"#VALUE!"},{"$error":"#VALUE!"},{"$error":"#VALUE!"},{"$error":"#VALUE!"},{"$error":"#VALUE!"},{"$error":"#VALUE!"},{"$error":"#VALUE!"},{"$error":"#VALUE!"},{"$error":"#VALUE!"},{"$error":"#VALUE!"},{"$error":"#VALUE!"},null,{"$error":"#N/A"},{"$error":"#N/A"},{"$error":"#N/A"},{"$error":"#N/A"},{"$error":"#N/A"},{"$error":"#N/A"},{"$error":"#N/A"},{"$error":"#N/A"},{"$error":"#N/A"},{"$error":"#N/A"},{"$error":"#N/A"},{"$error":"#N/A"},{"$error":"#N/A"},{"$error":"#N/A"},{"$error":"#N/A"},{"$error":"#N/A"},{"$error":"#N/A"},{"$error":"#N/A"},{"$error":"#N/A"},{"$error":"#N/A"},{"$error":"#N/A"},{"$error":"#N/A"},{"$error":"#N/A"},{"$error":"#N/A"},{"$error":"#N/A"},{"$error":"#N/A"},{"$error":"#N/A"},{"$error":"#N/A"},{"$error":"#N/A"},{"$error":"#N/A"},{"$error":"#N/A"},{"$error":"#N/A"},{"$error":"#N/A"},{"$error":"#N/A"},{"$error":"#N/A"},{"$error":"#N/A"},{"$error":"#N/A"},{"$error":"#N/A"},{"$error":"#N/A"},{"$error":"#N/A"},{"$error":"#N/A"},{"$error":"#N/A"},{"$error":"#N/A"},{"$error":"#N/A"},{"$error":"#N/A"},{"$error":"#N/A"},{"$error":"#N/A"},{"$error":"#N/A"},{"$error":"#N/A"},{"$error":"#N/A"},{"$error":"#N/A"},null,{"$error":"#N/A"},{"$error":"#N/A"}]
[null,"PRE-ICI-03",{"$f":"INDEX(tbl_predefined_measures[MEASURE],MATCH($B49&regionid,tbl_predefined_measures[ID&REGION],0))","v":{"$error":"#N/A"}},"N",null,null,null,null,null,null,null,{"$f":"INDEX(tbl_predefined_measures[ACCOUNTING_UNIT],MATCH($B49&regionid,tbl_predefined_measures[ID&REGION],0))","v":{"$error":"#N/A"}},{"$f":"INDEX(tbl_predefined_measures[DELIVERY],MATCH($B49&regionid,tbl_predefined_measures[ID&REGION],0))","v":{"$error":"#N/A"}},null,{"$f":"INDEX(tbl_predefined_measures[COST_OM],MATCH($B49&regionid,tbl_predefined_measures[ID&REGION],0))","v":{"$error":"#N/A"}},{"$f":"INDEX(tbl_predefined_measures[COST_CAPITAL],MATCH($B49&regionid,tbl_predefined_measures[ID&REGION],0))","v":{"$error":"#N/A"}},null,null,{"$f":"INDEX(tbl_predefined_measures[SAVE_GPD],MATCH($B49&regionid,tbl_predefined_measures[ID&REGION],0))","v":{"$error":"#N/A"}},{"$f":"INDEX(tbl_predefined_measures[FREERIDE_PCT],MATCH($B49&regionid,tbl_predefined_measures[ID&REGION],0))","v":{"$error":"#N/A"}},{"$f":"INDEX(tbl_predefined_measures[DECAY_PCT],MATCH($B49&regionid,tbl_predefined_measures[ID&REGION],0))","v":{"$error":"#N/A"}},{"$f":"INDEX(tbl_predefined_measures[PLUMBCODE_YN],MATCH($B49&regionid,tbl_predefined_measures[ID&REGION],0))","v":{"$error":"#N/A"}},{"$f":"INDEX(tbl_predefined_measures[NRR_PCT],MATCH($B49&regionid,tbl_predefined_measures[ID&REGION],0))","v":{"$error":"#N/A"}},{"$f":"IF(V49=\"N\",INDEX(tbl_predefined_measures[LIFE_YRS],MATCH($B49&regionid,tbl_predefined_measures[ID&REGION],0)),99)","v":{"$error":"#N/A"}},null,{"$error":"#N/A"},{"$error":"#N/A"},null,{"$error":"#N/A"},{"$error":"#N/A"},{"$error":"#N/A"},{"$error":"#N/A"},{"$error":"#N/A"},null,"NA","NA","NA","NA","NA",null,0,0,0,0,0,0,0,0,0,0,0,0,0,0,0,0,0,0,0,0,0,0,0,0,0,0,0,0,0,0,0,0,0,0,0,0,0,0,0,0,0,0,0,0,0,0,0,0,0,0,0,null,{"$f":"MeasureSavingsArray(AO49:CM49,S49,T49,U49,W49,X49,D49)","v":{"$error":"#VALUE!"}},{"$error":"#VALUE!"},{"$error":"#VALUE!"},{"$error":"#VALUE!"},{"$error":"#VALUE!"},{"$error":"#VALUE!"},{"$error":"#VALUE!"},{"$error":"#VALUE!"},{"$error":"#VALUE!"},{"$error":"#VALUE!"},{"$error":"#VALUE!"},{"$error":"#VALUE!"},{"$error":"#VALUE!"},{"$error":"#VALUE!"},{"$error":"#VALUE!"},{"$error":"#VALUE!"},{"$error":"#VALUE!"},{"$error":"#VALUE!"},{"$error":"#VALUE!"},{"$error":"#VALUE!"},{"$error":"#VALUE!"},{"$error":"#VALUE!"},{"$error":"#VALUE!"},{"$error":"#VALUE!"},{"$error":"#VALUE!"},{"$error":"#VALUE!"},{"$error":"#VALUE!"},{"$error":"#VALUE!"},{"$error":"#VALUE!"},{"$error":"#VALUE!"},{"$error":"#VALUE!"},{"$error":"#VALUE!"},{"$error":"#VALUE!"},{"$error":"#VALUE!"},{"$error":"#VALUE!"},{"$error":"#VALUE!"},{"$error":"#VALUE!"},{"$error":"#VALUE!"},{"$error":"#VALUE!"},{"$error":"#VALUE!"},{"$error":"#VALUE!"},{"$error":"#VALUE!"},{"$error":"#VALUE!"},{"$error":"#VALUE!"},{"$error":"#VALUE!"},{"$error":"#VALUE!"},{"$error":"#VALUE!"},{"$error":"#VALUE!"},{"$error":"#VALUE!"},{"$error":"#VALUE!"},{"$error":"#VALUE!"},{"$error":"#VALUE!"},null,{"$error":"#N/A"},{"$error":"#N/A"},{"$error":"#N/A"},{"$error":"#N/A"},{"$error":"#N/A"},{"$error":"#N/A"},{"$error":"#N/A"},{"$error":"#N/A"},{"$error":"#N/A"},{"$error":"#N/A"},{"$error":"#N/A"},{"$error":"#N/A"},{"$error":"#N/A"},{"$error":"#N/A"},{"$error":"#N/A"},{"$error":"#N/A"},{"$error":"#N/A"},{"$error":"#N/A"},{"$error":"#N/A"},{"$error":"#N/A"},{"$error":"#N/A"},{"$error":"#N/A"},{"$error":"#N/A"},{"$error":"#N/A"},{"$error":"#N/A"},{"$error":"#N/A"},{"$error":"#N/A"},{"$error":"#N/A"},{"$error":"#N/A"},{"$error":"#N/A"},{"$error":"#N/A"},{"$error":"#N/A"},{"$error":"#N/A"},{"$error":"#N/A"},{"$error":"#N/A"},{"$error":"#N/A"},{"$error":"#N/A"},{"$error":"#N/A"},{"$error":"#N/A"},{"$error":"#N/A"},{"$error":"#N/A"},{"$error":"#N/A"},{"$error":"#N/A"},{"$error":"#N/A"},{"$error":"#N/A"},{"$error":"#N/A"},{"$error":"#N/A"},{"$error":"#N/A"},{"$error":"#N/A"},{"$error":"#N/A"},{"$error":"#N/A"},null,{"$error":"#N/A"},{"$error":"#N/A"},{"$error":"#N/A"},{"$error":"#N/A"},{"$error":"#N/A"},{"$error":"#N/A"},{"$error":"#N/A"},{"$error":"#N/A"},{"$error":"#N/A"},{"$error":"#N/A"},{"$error":"#N/A"},{"$error":"#N/A"},{"$error":"#N/A"},{"$error":"#N/A"},{"$error":"#N/A"},{"$error":"#N/A"},{"$error":"#N/A"},{"$error":"#N/A"},{"$error":"#N/A"},{"$error":"#N/A"},{"$error":"#N/A"},{"$error":"#N/A"},{"$error":"#N/A"},{"$error":"#N/A"},{"$error":"#N/A"},{"$error":"#N/A"},{"$error":"#N/A"},{"$error":"#N/A"},{"$error":"#N/A"},{"$error":"#N/A"},{"$error":"#N/A"},{"$error":"#N/A"},{"$error":"#N/A"},{"$error":"#N/A"},{"$error":"#N/A"},{"$error":"#N/A"},{"$error":"#N/A"},{"$error":"#N/A"},{"$error":"#N/A"},{"$error":"#N/A"},{"$error":"#N/A"},{"$error":"#N/A"},{"$error":"#N/A"},{"$error":"#N/A"},{"$error":"#N/A"},{"$error":"#N/A"},{"$error":"#N/A"},{"$error":"#N/A"},{"$error":"#N/A"},{"$error":"#N/A"},{"$error":"#N/A"},null,{"$f":"DebtServiceArray(AO49:CM49,P49,discount_rate,Q49,D49)","v":{"$error":"#VALUE!"}},{"$error":"#VALUE!"},{"$error":"#VALUE!"},{"$error":"#VALUE!"},{"$error":"#VALUE!"},{"$error":"#VALUE!"},{"$error":"#VALUE!"},{"$error":"#VALUE!"},{"$error":"#VALUE!"},{"$error":"#VALUE!"},{"$error":"#VALUE!"},{"$error":"#VALUE!"},{"$error":"#VALUE!"},{"$error":"#VALUE!"},{"$error":"#VALUE!"},{"$error":"#VALUE!"},{"$error":"#VALUE!"},{"$error":"#VALUE!"},{"$error":"#VALUE!"},{"$error":"#VALUE!"},{"$error":"#VALUE!"},{"$error":"#VALUE!"},{"$error":"#VALUE!"},{"$error":"#VALUE!"},{"$error":"#VALUE!"},{"$error":"#VALUE!"},{"$error":"#VALUE!"},{"$error":"#VALUE!"},{"$error":"#VALUE!"},{"$error":"#VALUE!"},{"$error":"#VALUE!"},{"$error":"#VALUE!"},{"$error":"#VALUE!"},{"$error":"#VALUE!"},{"$error":"#VALUE!"},{"$error":"#VALUE!"},{"$error":"#VALUE!"},{"$error":"#VALUE!"},{"$error":"#VALUE!"},{"$error":"#VALUE!"},{"$error":"#VALUE!"},{"$error":"#VALUE!"},{"$error":"#VALUE!"},{"$error":"#VALUE!"},{"$error":"#VALUE!"},{"$error":"#VALUE!"},{"$error":"#VALUE!"},{"$error":"#VALUE!"},{"$error":"#VALUE!"},{"$error":"#VALUE!"},{"$error":"#VALUE!"},null,{"$error":"#N/A"},{"$error":"#N/A"},{"$error":"#N/A"},{"$error":"#N/A"},{"$error":"#N/A"},{"$error":"#N/A"},{"$error":"#N/A"},{"$error":"#N/A"},{"$error":"#N/A"},{"$error":"#N/A"},{"$error":"#N/A"},{"$error":"#N/A"},{"$error":"#N/A"},{"$error":"#N/A"},{"$error":"#N/A"},{"$error":"#N/A"},{"$error":"#N/A"},{"$error":"#N/A"},{"$error":"#N/A"},{"$error":"#N/A"},{"$error":"#N/A"},{"$error":"#N/A"},{"$error":"#N/A"},{"$error":"#N/A"},{"$error":"#N/A"},{"$error":"#N/A"},{"$error":"#N/A"},{"$error":"#N/A"},{"$error":"#N/A"},{"$error":"#N/A"},{"$error":"#N/A"},{"$error":"#N/A"},{"$error":"#N/A"},{"$error":"#N/A"},{"$error":"#N/A"},{"$error":"#N/A"},{"$error":"#N/A"},{"$error":"#N/A"},{"$error":"#N/A"},{"$error":"#N/A"},{"$error":"#N/A"},{"$error":"#N/A"},{"$error":"#N/A"},{"$error":"#N/A"},{"$error":"#N/A"},{"$error":"#N/A"},{"$error":"#N/A"},{"$error":"#N/A"},{"$error":"#N/A"},{"$error":"#N/A"},{"$error":"#N/A"},null,{"$error":"#N/A"},{"$error":"#N/A"}]
[null,"PRE-ICI-04",{"$f":"INDEX(tbl_predefined_measures[MEASURE],MATCH($B50&regionid,tbl_predefined_measures[ID&REGION],0))","v":{"$error":"#N/A"}},"N",null,null,null,null,null,null,null,{"$f":"INDEX(tbl_predefined_measures[ACCOUNTING_UNIT],MATCH($B50&regionid,tbl_predefined_measures[ID&REGION],0))","v":{"$error":"#N/A"}},{"$f":"INDEX(tbl_predefined_measures[DELIVERY],MATCH($B50&regionid,tbl_predefined_measures[ID&REGION],0))","v":{"$error":"#N/A"}},null,{"$f":"INDEX(tbl_predefined_measures[COST_OM],MATCH($B50&regionid,tbl_predefined_measures[ID&REGION],0))","v":{"$error":"#N/A"}},{"$f":"INDEX(tbl_predefined_measures[COST_CAPITAL],MATCH($B50&regionid,tbl_predefined_measures[ID&REGION],0))","v":{"$error":"#N/A"}},null,null,{"$f":"INDEX(tbl_predefined_measures[SAVE_GPD],MATCH($B50&regionid,tbl_predefined_measures[ID&REGION],0))","v":{"$error":"#N/A"}},{"$f":"INDEX(tbl_predefined_measures[FREERIDE_PCT],MATCH($B50&regionid,tbl_predefined_measures[ID&REGION],0))","v":{"$error":"#N/A"}},{"$f":"INDEX(tbl_predefined_measures[DECAY_PCT],MATCH($B50&regionid,tbl_predefined_measures[ID&REGION],0))","v":{"$error":"#N/A"}},{"$f":"INDEX(tbl_predefined_measures[PLUMBCODE_YN],MATCH($B50&regionid,tbl_predefined_measures[ID&REGION],0))","v":{"$error":"#N/A"}},{"$f":"INDEX(tbl_predefined_measures[NRR_PCT],MATCH($B50&regionid,tbl_predefined_measures[ID&REGION],0))","v":{"$error":"#N/A"}},{"$f":"IF(V50=\"N\",INDEX(tbl_predefined_measures[LIFE_YRS],MATCH($B50&regionid,tbl_predefined_measures[ID&REGION],0)),99)","v":{"$error":"#N/A"}},null,{"$error":"#N/A"},{"$error":"#N/A"},null,{"$error":"#N/A"},{"$error":"#N/A"},{"$error":"#N/A"},{"$error":"#N/A"},{"$error":"#N/A"},null,"NA","NA","NA","NA","NA",null,0,0,0,0,0,0,0,0,0,0,0,0,0,0,0,0,0,0,0,0,0,0,0,0,0,0,0,0,0,0,0,0,0,0,0,0,0,0,0,0,0,0,0,0,0,0,0,0,0,0,0,null,{"$f":"MeasureSavingsArray(AO50:CM50,S50,T50,U50,W50,X50,D50)","v":{"$error":"#VALUE!"}},{"$error":"#VALUE!"},{"$error":"#VALUE!"},{"$error":"#VALUE!"},{"$error":"#VALUE!"},{"$error":"#VALUE!"},{"$error":"#VALUE!"},{"$error":"#VALUE!"},{"$error":"#VALUE!"},{"$error":"#VALUE!"},{"$error":"#VALUE!"},{"$error":"#VALUE!"},{"$error":"#VALUE!"},{"$error":"#VALUE!"},{"$error":"#VALUE!"},{"$error":"#VALUE!"},{"$error":"#VALUE!"},{"$error":"#VALUE!"},{"$error":"#VALUE!"},{"$error":"#VALUE!"},{"$error":"#VALUE!"},{"$error":"#VALUE!"},{"$error":"#VALUE!"},{"$error":"#VALUE!"},{"$error":"#VALUE!"},{"$error":"#VALUE!"},{"$error":"#VALUE!"},{"$error":"#VALUE!"},{"$error":"#VALUE!"},{"$error":"#VALUE!"},{"$error":"#VALUE!"},{"$error":"#VALUE!"},{"$error":"#VALUE!"},{"$error":"#VALUE!"},{"$error":"#VALUE!"},{"$error":"#VALUE!"},{"$error":"#VALUE!"},{"$error":"#VALUE!"},{"$error":"#VALUE!"},{"$error":"#VALUE!"},{"$error":"#VALUE!"},{"$error":"#VALUE!"},{"$error":"#VALUE!"},{"$error":"#VALUE!"},{"$error":"#VALUE!"},{"$error":"#VALUE!"},{"$error":"#VALUE!"},{"$error":"#VALUE!"},{"$error":"#VALUE!"},{"$error":"#VALUE!"},{"$error":"#VALUE!"},{"$error":"#VALUE!"},null,{"$error":"#N/A"},{"$error":"#N/A"},{"$error":"#N/A"},{"$error":"#N/A"},{"$error":"#N/A"},{"$error":"#N/A"},{"$error":"#N/A"},{"$error":"#N/A"},{"$error":"#N/A"},{"$error":"#N/A"},{"$error":"#N/A"},{"$error":"#N/A"},{"$error":"#N/A"},{"$error":"#N/A"},{"$error":"#N/A"},{"$error":"#N/A"},{"$error":"#N/A"},{"$error":"#N/A"},{"$error":"#N/A"},{"$error":"#N/A"},{"$error":"#N/A"},{"$error":"#N/A"},{"$error":"#N/A"},{"$error":"#N/A"},{"$error":"#N/A"},{"$error":"#N/A"},{"$error":"#N/A"},{"$error":"#N/A"},{"$error":"#N/A"},{"$error":"#N/A"},{"$error":"#N/A"},{"$error":"#N/A"},{"$error":"#N/A"},{"$error":"#N/A"},{"$error":"#N/A"},{"$error":"#N/A"},{"$error":"#N/A"},{"$error":"#N/A"},{"$error":"#N/A"},{"$error":"#N/A"},{"$error":"#N/A"},{"$error":"#N/A"},{"$error":"#N/A"},{"$error":"#N/A"},{"$error":"#N/A"},{"$error":"#N/A"},{"$error":"#N/A"},{"$error":"#N/A"},{"$error":"#N/A"},{"$error":"#N/A"},{"$error":"#N/A"},null,{"$error":"#N/A"},{"$error":"#N/A"},{"$error":"#N/A"},{"$error":"#N/A"},{"$error":"#N/A"},{"$error":"#N/A"},{"$error":"#N/A"},{"$error":"#N/A"},{"$error":"#N/A"},{"$error":"#N/A"},{"$error":"#N/A"},{"$error":"#N/A"},{"$error":"#N/A"},{"$error":"#N/A"},{"$error":"#N/A"},{"$error":"#N/A"},{"$error":"#N/A"},{"$error":"#N/A"},{"$error":"#N/A"},{"$error":"#N/A"},{"$error":"#N/A"},{"$error":"#N/A"},{"$error":"#N/A"},{"$error":"#N/A"},{"$error":"#N/A"},{"$error":"#N/A"},{"$error":"#N/A"},{"$error":"#N/A"},{"$error":"#N/A"},{"$error":"#N/A"},{"$error":"#N/A"},{"$error":"#N/A"},{"$error":"#N/A"},{"$error":"#N/A"},{"$error":"#N/A"},{"$error":"#N/A"},{"$error":"#N/A"},{"$error":"#N/A"},{"$error":"#N/A"},{"$error":"#N/A"},{"$error":"#N/A"},{"$error":"#N/A"},{"$error":"#N/A"},{"$error":"#N/A"},{"$error":"#N/A"},{"$error":"#N/A"},{"$error":"#N/A"},{"$error":"#N/A"},{"$error":"#N/A"},{"$error":"#N/A"},{"$error":"#N/A"},null,{"$f":"DebtServiceArray(AO50:CM50,P50,discount_rate,Q50,D50)","v":{"$error":"#VALUE!"}},{"$error":"#VALUE!"},{"$error":"#VALUE!"},{"$error":"#VALUE!"},{"$error":"#VALUE!"},{"$error":"#VALUE!"},{"$error":"#VALUE!"},{"$error":"#VALUE!"},{"$error":"#VALUE!"},{"$error":"#VALUE!"},{"$error":"#VALUE!"},{"$error":"#VALUE!"},{"$error":"#VALUE!"},{"$error":"#VALUE!"},{"$error":"#VALUE!"},{"$error":"#VALUE!"},{"$error":"#VALUE!"},{"$error":"#VALUE!"},{"$error":"#VALUE!"},{"$error":"#VALUE!"},{"$error":"#VALUE!"},{"$error":"#VALUE!"},{"$error":"#VALUE!"},{"$error":"#VALUE!"},{"$error":"#VALUE!"},{"$error":"#VALUE!"},{"$error":"#VALUE!"},{"$error":"#VALUE!"},{"$error":"#VALUE!"},{"$error":"#VALUE!"},{"$error":"#VALUE!"},{"$error":"#VALUE!"},{"$error":"#VALUE!"},{"$error":"#VALUE!"},{"$error":"#VALUE!"},{"$error":"#VALUE!"},{"$error":"#VALUE!"},{"$error":"#VALUE!"},{"$error":"#VALUE!"},{"$error":"#VALUE!"},{"$error":"#VALUE!"},{"$error":"#VALUE!"},{"$error":"#VALUE!"},{"$error":"#VALUE!"},{"$error":"#VALUE!"},{"$error":"#VALUE!"},{"$error":"#VALUE!"},{"$error":"#VALUE!"},{"$error":"#VALUE!"},{"$error":"#VALUE!"},{"$error":"#VALUE!"},null,{"$error":"#N/A"},{"$error":"#N/A"},{"$error":"#N/A"},{"$error":"#N/A"},{"$error":"#N/A"},{"$error":"#N/A"},{"$error":"#N/A"},{"$error":"#N/A"},{"$error":"#N/A"},{"$error":"#N/A"},{"$error":"#N/A"},{"$error":"#N/A"},{"$error":"#N/A"},{"$error":"#N/A"},{"$error":"#N/A"},{"$error":"#N/A"},{"$error":"#N/A"},{"$error":"#N/A"},{"$error":"#N/A"},{"$error":"#N/A"},{"$error":"#N/A"},{"$error":"#N/A"},{"$error":"#N/A"},{"$error":"#N/A"},{"$error":"#N/A"},{"$error":"#N/A"},{"$error":"#N/A"},{"$error":"#N/A"},{"$error":"#N/A"},{"$error":"#N/A"},{"$error":"#N/A"},{"$error":"#N/A"},{"$error":"#N/A"},{"$error":"#N/A"},{"$error":"#N/A"},{"$error":"#N/A"},{"$error":"#N/A"},{"$error":"#N/A"},{"$error":"#N/A"},{"$error":"#N/A"},{"$error":"#N/A"},{"$error":"#N/A"},{"$error":"#N/A"},{"$error":"#N/A"},{"$error":"#N/A"},{"$error":"#N/A"},{"$error":"#N/A"},{"$error":"#N/A"},{"$error":"#N/A"},{"$error":"#N/A"},{"$error":"#N/A"},null,{"$error":"#N/A"},{"$error":"#N/A"}]
[null,"PRE-ICI-05",{"$f":"INDEX(tbl_predefined_measures[MEASURE],MATCH($B51&regionid,tbl_predefined_measures[ID&REGION],0))","v":{"$error":"#N/A"}},"N",null,null,null,null,null,null,null,{"$f":"INDEX(tbl_predefined_measures[ACCOUNTING_UNIT],MATCH($B51&regionid,tbl_predefined_measures[ID&REGION],0))","v":{"$error":"#N/A"}},{"$f":"INDEX(tbl_predefined_measures[DELIVERY],MATCH($B51&regionid,tbl_predefined_measures[ID&REGION],0))","v":{"$error":"#N/A"}},null,{"$f":"INDEX(tbl_predefined_measures[COST_OM],MATCH($B51&regionid,tbl_predefined_measures[ID&REGION],0))","v":{"$error":"#N/A"}},{"$f":"INDEX(tbl_predefined_measures[COST_CAPITAL],MATCH($B51&regionid,tbl_predefined_measures[ID&REGION],0))","v":{"$error":"#N/A"}},null,null,{"$f":"INDEX(tbl_predefined_measures[SAVE_GPD],MATCH($B51&regionid,tbl_predefined_measures[ID&REGION],0))","v":{"$error":"#N/A"}},{"$f":"INDEX(tbl_predefined_measures[FREERIDE_PCT],MATCH($B51&regionid,tbl_predefined_measures[ID&REGION],0))","v":{"$error":"#N/A"}},{"$f":"INDEX(tbl_predefined_measures[DECAY_PCT],MATCH($B51&regionid,tbl_predefined_measures[ID&REGION],0))","v":{"$error":"#N/A"}},{"$f":"INDEX(tbl_predefined_measures[PLUMBCODE_YN],MATCH($B51&regionid,tbl_predefined_measures[ID&REGION],0))","v":{"$error":"#N/A"}},{"$f":"INDEX(tbl_predefined_measures[NRR_PCT],MATCH($B51&regionid,tbl_predefined_measures[ID&REGION],0))","v":{"$error":"#N/A"}},{"$f":"IF(V51=\"N\",INDEX(tbl_predefined_measures[LIFE_YRS],MATCH($B51&regionid,tbl_predefined_measures[ID&REGION],0)),99)","v":{"$error":"#N/A"}},null,{"$error":"#N/A"},{"$error":"#N/A"},null,{"$error":"#N/A"},{"$error":"#N/A"},{"$error":"#N/A"},{"$error":"#N/A"},{"$error":"#N/A"},null,{"$f":"F51/AVERAGE(IF(baseline_selection=1,'1. Baseline Demand Projection'!E$28:F$28,'1. Baseline Demand Projection'!N$28:O$28))","v":{"$error":"#DIV/0!"}},{"$f":"G51/AVERAGE(IF(baseline_selection=1,'1. Baseline Demand Projection'!F$28:G$28,'1. Baseline Demand Projection'!O$28:P$28))","v":{"$error":"#DIV/0!"}},{"$f":"H51/AVERAGE(IF(baseline_selection=1,'1. Baseline Demand Projection'!G$28:H$28,'1. Baseline Demand Projection'!P$28:Q$28))","v":{"$error":"#DIV/0!"}},{"$f":"I51/AVERAGE(IF(baseline_selection=1,'1. Baseline Demand Projection'!H$28:I$28,'1. Baseline Demand Projection'!Q$28:R$28))","v":{"$error":"#DIV/0!"}},{"$f":"J51/AVERAGE(IF(baseline_selection=1,'1. Baseline Demand Projection'!I$28:J$28,'1. Baseline Demand Projection'!R$28:S$28))","v":{"$error":"#DIV/0!"}},null,0,0,0,0,0,0,0,0,0,0,0,0,0,0,0,0,0,0,0,0,0,0,0,0,0,0,0,0,0,0,0,0,0,0,0,0,0,0,0,0,0,0,0,0,0,0,0,0,0,0,0,null,{"$f":"MeasureSavingsArray(AO51:CM51,S51,T51,U51,W51,X51,D51)","v":{"$error":"#VALUE!"}},{"$error":"#VALUE!"},{"$error":"#VALUE!"},{"$error":"#VALUE!"},{"$error":"#VALUE!"},{"$error":"#VALUE!"},{"$error":"#VALUE!"},{"$error":"#VALUE!"},{"$error":"#VALUE!"},{"$error":"#VALUE!"},{"$error":"#VALUE!"},{"$error":"#VALUE!"},{"$error":"#VALUE!"},{"$error":"#VALUE!"},{"$error":"#VALUE!"},{"$error":"#VALUE!"},{"$error":"#VALUE!"},{"$error":"#VALUE!"},{"$error":"#VALUE!"},{"$error":"#VALUE!"},{"$error":"#VALUE!"},{"$error":"#VALUE!"},{"$error":"#VALUE!"},{"$error":"#VALUE!"},{"$error":"#VALUE!"},{"$error":"#VALUE!"},{"$error":"#VALUE!"},{"$error":"#VALUE!"},{"$error":"#VALUE!"},{"$error":"#VALUE!"},{"$error":"#VALUE!"},{"$error":"#VALUE!"},{"$error":"#VALUE!"},{"$error":"#VALUE!"},{"$error":"#VALUE!"},{"$error":"#VALUE!"},{"$error":"#VALUE!"},{"$error":"#VALUE!"},{"$error":"#VALUE!"},{"$error":"#VALUE!"},{"$error":"#VALUE!"},{"$error":"#VALUE!"},{"$error":"#VALUE!"},{"$error":"#VALUE!"},{"$error":"#VALUE!"},{"$error":"#VALUE!"},{"$error":"#VALUE!"},{"$error":"#VALUE!"},{"$error":"#VALUE!"},{"$error":"#VALUE!"},{"$error":"#VALUE!"},{"$error":"#VALUE!"},null,{"$error":"#N/A"},{"$error":"#N/A"},{"$error":"#N/A"},{"$error":"#N/A"},{"$error":"#N/A"},{"$error":"#N/A"},{"$error":"#N/A"},{"$error":"#N/A"},{"$error":"#N/A"},{"$error":"#N/A"},{"$error":"#N/A"},{"$error":"#N/A"},{"$error":"#N/A"},{"$error":"#N/A"},{"$error":"#N/A"},{"$error":"#N/A"},{"$error":"#N/A"},{"$error":"#N/A"},{"$error":"#N/A"},{"$error":"#N/A"},{"$error":"#N/A"},{"$error":"#N/A"},{"$error":"#N/A"},{"$error":"#N/A"},{"$error":"#N/A"},{"$error":"#N/A"},{"$error":"#N/A"},{"$error":"#N/A"},{"$error":"#N/A"},{"$error":"#N/A"},{"$error":"#N/A"},{"$error":"#N/A"},{"$error":"#N/A"},{"$error":"#N/A"},{"$error":"#N/A"},{"$error":"#N/A"},{"$error":"#N/A"},{"$error":"#N/A"},{"$error":"#N/A"},{"$error":"#N/A"},{"$error":"#N/A"},{"$error":"#N/A"},{"$error":"#N/A"},{"$error":"#N/A"},{"$error":"#N/A"},{"$error":"#N/A"},{"$error":"#N/A"},{"$error":"#N/A"},{"$error":"#N/A"},{"$error":"#N/A"},{"$error":"#N/A"},null,{"$error":"#N/A"},{"$error":"#N/A"},{"$error":"#N/A"},{"$error":"#N/A"},{"$error":"#N/A"},{"$error":"#N/A"},{"$error":"#N/A"},{"$error":"#N/A"},{"$error":"#N/A"},{"$error":"#N/A"},{"$error":"#N/A"},{"$error":"#N/A"},{"$error":"#N/A"},{"$error":"#N/A"},{"$error":"#N/A"},{"$error":"#N/A"},{"$error":"#N/A"},{"$error":"#N/A"},{"$error":"#N/A"},{"$error":"#N/A"},{"$error":"#N/A"},{"$error":"#N/A"},{"$error":"#N/A"},{"$error":"#N/A"},{"$error":"#N/A"},{"$error":"#N/A"},{"$error":"#N/A"},{"$error":"#N/A"},{"$error":"#N/A"},{"$error":"#N/A"},{"$error":"#N/A"},{"$error":"#N/A"},{"$error":"#N/A"},{"$error":"#N/A"},{"$error":"#N/A"},{"$error":"#N/A"},{"$error":"#N/A"},{"$error":"#N/A"},{"$error":"#N/A"},{"$error":"#N/A"},{"$error":"#N/A"},{"$error":"#N/A"},{"$error":"#N/A"},{"$error":"#N/A"},{"$error":"#N/A"},{"$error":"#N/A"},{"$error":"#N/A"},{"$error":"#N/A"},{"$error":"#N/A"},{"$error":"#N/A"},{"$error":"#N/A"},null,{"$f":"DebtServiceArray(AO51:CM51,P51,discount_rate,Q51,D51)","v":{"$error":"#VALUE!"}},{"$error":"#VALUE!"},{"$error":"#VALUE!"},{"$error":"#VALUE!"},{"$error":"#VALUE!"},{"$error":"#VALUE!"},{"$error":"#VALUE!"},{"$error":"#VALUE!"},{"$error":"#VALUE!"},{"$error":"#VALUE!"},{"$error":"#VALUE!"},{"$error":"#VALUE!"},{"$error":"#VALUE!"},{"$error":"#VALUE!"},{"$error":"#VALUE!"},{"$error":"#VALUE!"},{"$error":"#VALUE!"},{"$error":"#VALUE!"},{"$error":"#VALUE!"},{"$error":"#VALUE!"},{"$error":"#VALUE!"},{"$error":"#VALUE!"},{"$error":"#VALUE!"},{"$error":"#VALUE!"},{"$error":"#VALUE!"},{"$error":"#VALUE!"},{"$error":"#VALUE!"},{"$error":"#VALUE!"},{"$error":"#VALUE!"},{"$error":"#VALUE!"},{"$error":"#VALUE!"},{"$error":"#VALUE!"},{"$error":"#VALUE!"},{"$error":"#VALUE!"},{"$error":"#VALUE!"},{"$error":"#VALUE!"},{"$error":"#VALUE!"},{"$error":"#VALUE!"},{"$error":"#VALUE!"},{"$error":"#VALUE!"},{"$error":"#VALUE!"},{"$error":"#VALUE!"},{"$error":"#VALUE!"},{"$error":"#VALUE!"},{"$error":"#VALUE!"},{"$error":"#VALUE!"},{"$error":"#VALUE!"},{"$error":"#VALUE!"},{"$error":"#VALUE!"},{"$error":"#VALUE!"},{"$error":"#VALUE!"},null,{"$error":"#N/A"},{"$error":"#N/A"},{"$error":"#N/A"},{"$error":"#N/A"},{"$error":"#N/A"},{"$error":"#N/A"},{"$error":"#N/A"},{"$error":"#N/A"},{"$error":"#N/A"},{"$error":"#N/A"},{"$error":"#N/A"},{"$error":"#N/A"},{"$error":"#N/A"},{"$error":"#N/A"},{"$error":"#N/A"},{"$error":"#N/A"},{"$error":"#N/A"},{"$error":"#N/A"},{"$error":"#N/A"},{"$error":"#N/A"},{"$error":"#N/A"},{"$error":"#N/A"},{"$error":"#N/A"},{"$error":"#N/A"},{"$error":"#N/A"},{"$error":"#N/A"},{"$error":"#N/A"},{"$error":"#N/A"},{"$error":"#N/A"},{"$error":"#N/A"},{"$error":"#N/A"},{"$error":"#N/A"},{"$error":"#N/A"},{"$error":"#N/A"},{"$error":"#N/A"},{"$error":"#N/A"},{"$error":"#N/A"},{"$error":"#N/A"},{"$error":"#N/A"},{"$error":"#N/A"},{"$error":"#N/A"},{"$error":"#N/A"},{"$error":"#N/A"},{"$error":"#N/A"},{"$error":"#N/A"},{"$error":"#N/A"},{"$error":"#N/A"},{"$error":"#N/A"},{"$error":"#N/A"},{"$error":"#N/A"},{"$error":"#N/A"},null,{"$error":"#N/A"},{"$error":"#N/A"}]
[null,"PRE-ICI-06",{"$f":"INDEX(tbl_predefined_measures[MEASURE],MATCH($B52&regionid,tbl_predefined_measures[ID&REGION],0))","v":{"$error":"#N/A"}},"N",null,null,null,null,null,null,null,{"$f":"INDEX(tbl_predefined_measures[ACCOUNTING_UNIT],MATCH($B52&regionid,tbl_predefined_measures[ID&REGION],0))","v":{"$error":"#N/A"}},{"$f":"INDEX(tbl_predefined_measures[DELIVERY],MATCH($B52&regionid,tbl_predefined_measures[ID&REGION],0))","v":{"$error":"#N/A"}},null,{"$f":"INDEX(tbl_predefined_measures[COST_OM],MATCH($B52&regionid,tbl_predefined_measures[ID&REGION],0))","v":{"$error":"#N/A"}},{"$f":"INDEX(tbl_predefined_measures[COST_CAPITAL],MATCH($B52&regionid,tbl_predefined_measures[ID&REGION],0))","v":{"$error":"#N/A"}},null,null,{"$f":"INDEX(tbl_predefined_measures[SAVE_GPD],MATCH($B52&regionid,tbl_predefined_measures[ID&REGION],0))","v":{"$error":"#N/A"}},{"$f":"INDEX(tbl_predefined_measures[FREERIDE_PCT],MATCH($B52&regionid,tbl_predefined_measures[ID&REGION],0))","v":{"$error":"#N/A"}},{"$f":"INDEX(tbl_predefined_measures[DECAY_PCT],MATCH($B52&regionid,tbl_predefined_measures[ID&REGION],0))","v":{"$error":"#N/A"}},{"$f":"INDEX(tbl_predefined_measures[PLUMBCODE_YN],MATCH($B52&regionid,tbl_predefined_measures[ID&REGION],0))","v":{"$error":"#N/A"}},{"$f":"INDEX(tbl_predefined_measures[NRR_PCT],MATCH($B52&regionid,tbl_predefined_measures[ID&REGION],0))","v":{"$error":"#N/A"}},{"$f":"IF(V52=\"N\",INDEX(tbl_predefined_measures[LIFE_YRS],MATCH($B52&regionid,tbl_predefined_measures[ID&REGION],0)),99)","v":{"$error":"#N/A"}},null,{"$error":"#N/A"},{"$error":"#N/A"},null,{"$error":"#N/A"},{"$error":"#N/A"},{"$error":"#N/A"},{"$error":"#N/A"},{"$error":"#N/A"},null,{"$f":"F52/AVERAGE(IF(baseline_selection=1,'1. Baseline Demand Projection'!E$28:F$28,'1. Baseline Demand Projection'!N$28:O$28))","v":{"$error":"#DIV/0!"}},{"$f":"G52/AVERAGE(IF(baseline_selection=1,'1. Baseline Demand Projection'!F$28:G$28,'1. Baseline Demand Projection'!O$28:P$28))","v":{"$error":"#DIV/0!"}},{"$f":"H52/AVERAGE(IF(baseline_selection=1,'1. Baseline Demand Projection'!G$28:H$28,'1. Baseline Demand Projection'!P$28:Q$28))","v":{"$error":"#DIV/0!"}},{"$f":"I52/AVERAGE(IF(baseline_selection=1,'1. Baseline Demand Projection'!H$28:I$28,'1. Baseline Demand Projection'!Q$28:R$28))","v":{"$error":"#DIV/0!"}},{"$f":"J52/AVERAGE(IF(baseline_selection=1,'1. Baseline Demand Projection'!I$28:J$28,'1. Baseline Demand Projection'!R$28:S$28))","v":{"$error":"#DIV/0!"}},null,0,0,0,0,0,0,0,0,0,0,0,0,0,0,0,0,0,0,0,0,0,0,0,0,0,0,0,0,0,0,0,0,0,0,0,0,0,0,0,0,0,0,0,0,0,0,0,0,0,0,0,null,{"$f":"MeasureSavingsArray(AO52:CM52,S52,T52,U52,W52,X52,D52)","v":{"$error":"#VALUE!"}},{"$error":"#VALUE!"},{"$error":"#VALUE!"},{"$error":"#VALUE!"},{"$error":"#VALUE!"},{"$error":"#VALUE!"},{"$error":"#VALUE!"},{"$error":"#VALUE!"},{"$error":"#VALUE!"},{"$error":"#VALUE!"},{"$error":"#VALUE!"},{"$error":"#VALUE!"},{"$error":"#VALUE!"},{"$error":"#VALUE!"},{"$error":"#VALUE!"},{"$error":"#VALUE!"},{"$error":"#VALUE!"},{"$error":"#VALUE!"},{"$error":"#VALUE!"},{"$error":"#VALUE!"},{"$error":"#VALUE!"},{"$error":"#VALUE!"},{"$error":"#VALUE!"},{"$error":"#VALUE!"},{"$error":"#VALUE!"},{"$error":"#VALUE!"},{"$error":"#VALUE!"},{"$error":"#VALUE!"},{"$error":"#VALUE!"},{"$error":"#VALUE!"},{"$error":"#VALUE!"},{"$error":"#VALUE!"},{"$error":"#VALUE!"},{"$error":"#VALUE!"},{"$error":"#VALUE!"},{"$error":"#VALUE!"},{"$error":"#VALUE!"},{"$error":"#VALUE!"},{"$error":"#VALUE!"},{"$error":"#VALUE!"},{"$error":"#VALUE!"},{"$error":"#VALUE!"},{"$error":"#VALUE!"},{"$error":"#VALUE!"},{"$error":"#VALUE!"},{"$error":"#VALUE!"},{"$error":"#VALUE!"},{"$error":"#VALUE!"},{"$error":"#VALUE!"},{"$error":"#VALUE!"},{"$error":"#VALUE!"},{"$error":"#VALUE!"},null,{"$error":"#N/A"},{"$error":"#N/A"},{"$error":"#N/A"},{"$error":"#N/A"},{"$error":"#N/A"},{"$error":"#N/A"},{"$error":"#N/A"},{"$error":"#N/A"},{"$error":"#N/A"},{"$error":"#N/A"},{"$error":"#N/A"},{"$error":"#N/A"},{"$error":"#N/A"},{"$error":"#N/A"},{"$error":"#N/A"},{"$error":"#N/A"},{"$error":"#N/A"},{"$error":"#N/A"},{"$error":"#N/A"},{"$error":"#N/A"},{"$error":"#N/A"},{"$error":"#N/A"},{"$error":"#N/A"},{"$error":"#N/A"},{"$error":"#N/A"},{"$error":"#N/A"},{"$error":"#N/A"},{"$error":"#N/A"},{"$error":"#N/A"},{"$error":"#N/A"},{"$error":"#N/A"},{"$error":"#N/A"},{"$error":"#N/A"},{"$error":"#N/A"},{"$error":"#N/A"},{"$error":"#N/A"},{"$error":"#N/A"},{"$error":"#N/A"},{"$error":"#N/A"},{"$error":"#N/A"},{"$error":"#N/A"},{"$error":"#N/A"},{"$error":"#N/A"},{"$error":"#N/A"},{"$error":"#N/A"},{"$error":"#N/A"},{"$error":"#N/A"},{"$error":"#N/A"},{"$error":"#N/A"},{"$error":"#N/A"},{"$error":"#N/A"},null,{"$error":"#N/A"},{"$error":"#N/A"},{"$error":"#N/A"},{"$error":"#N/A"},{"$error":"#N/A"},{"$error":"#N/A"},{"$error":"#N/A"},{"$error":"#N/A"},{"$error":"#N/A"},{"$error":"#N/A"},{"$error":"#N/A"},{"$error":"#N/A"},{"$error":"#N/A"},{"$error":"#N/A"},{"$error":"#N/A"},{"$error":"#N/A"},{"$error":"#N/A"},{"$error":"#N/A"},{"$error":"#N/A"},{"$error":"#N/A"},{"$error":"#N/A"},{"$error":"#N/A"},{"$error":"#N/A"},{"$error":"#N/A"},{"$error":"#N/A"},{"$error":"#N/A"},{"$error":"#N/A"},{"$error":"#N/A"},{"$error":"#N/A"},{"$error":"#N/A"},{"$error":"#N/A"},{"$error":"#N/A"},{"$error":"#N/A"},{"$error":"#N/A"},{"$error":"#N/A"},{"$error":"#N/A"},{"$error":"#N/A"},{"$error":"#N/A"},{"$error":"#N/A"},{"$error":"#N/A"},{"$error":"#N/A"},{"$error":"#N/A"},{"$error":"#N/A"},{"$error":"#N/A"},{"$error":"#N/A"},{"$error":"#N/A"},{"$error":"#N/A"},{"$error":"#N/A"},{"$error":"#N/A"},{"$error":"#N/A"},{"$error":"#N/A"},null,{"$f":"DebtServiceArray(AO52:CM52,P52,discount_rate,Q52,D52)","v":{"$error":"#VALUE!"}},{"$error":"#VALUE!"},{"$error":"#VALUE!"},{"$error":"#VALUE!"},{"$error":"#VALUE!"},{"$error":"#VALUE!"},{"$error":"#VALUE!"},{"$error":"#VALUE!"},{"$error":"#VALUE!"},{"$error":"#VALUE!"},{"$error":"#VALUE!"},{"$error":"#VALUE!"},{"$error":"#VALUE!"},{"$error":"#VALUE!"},{"$error":"#VALUE!"},{"$error":"#VALUE!"},{"$error":"#VALUE!"},{"$error":"#VALUE!"},{"$error":"#VALUE!"},{"$error":"#VALUE!"},{"$error":"#VALUE!"},{"$error":"#VALUE!"},{"$error":"#VALUE!"},{"$error":"#VALUE!"},{"$error":"#VALUE!"},{"$error":"#VALUE!"},{"$error":"#VALUE!"},{"$error":"#VALUE!"},{"$error":"#VALUE!"},{"$error":"#VALUE!"},{"$error":"#VALUE!"},{"$error":"#VALUE!"},{"$error":"#VALUE!"},{"$error":"#VALUE!"},{"$error":"#VALUE!"},{"$error":"#VALUE!"},{"$error":"#VALUE!"},{"$error":"#VALUE!"},{"$error":"#VALUE!"},{"$error":"#VALUE!"},{"$error":"#VALUE!"},{"$error":"#VALUE!"},{"$error":"#VALUE!"},{"$error":"#VALUE!"},{"$error":"#VALUE!"},{"$error":"#VALUE!"},{"$error":"#VALUE!"},{"$error":"#VALUE!"},{"$error":"#VALUE!"},{"$error":"#VALUE!"},{"$error":"#VALUE!"},null,{"$error":"#N/A"},{"$error":"#N/A"},{"$error":"#N/A"},{"$error":"#N/A"},{"$error":"#N/A"},{"$error":"#N/A"},{"$error":"#N/A"},{"$error":"#N/A"},{"$error":"#N/A"},{"$error":"#N/A"},{"$error":"#N/A"},{"$error":"#N/A"},{"$error":"#N/A"},{"$error":"#N/A"},{"$error":"#N/A"},{"$error":"#N/A"},{"$error":"#N/A"},{"$error":"#N/A"},{"$error":"#N/A"},{"$error":"#N/A"},{"$error":"#N/A"},{"$error":"#N/A"},{"$error":"#N/A"},{"$error":"#N/A"},{"$error":"#N/A"},{"$error":"#N/A"},{"$error":"#N/A"},{"$error":"#N/A"},{"$error":"#N/A"},{"$error":"#N/A"},{"$error":"#N/A"},{"$error":"#N/A"},{"$error":"#N/A"},{"$error":"#N/A"},{"$error":"#N/A"},{"$error":"#N/A"},{"$error":"#N/A"},{"$error":"#N/A"},{"$error":"#N/A"},{"$error":"#N/A"},{"$error":"#N/A"},{"$error":"#N/A"},{"$error":"#N/A"},{"$error":"#N/A"},{"$error":"#N/A"},{"$error":"#N/A"},{"$error":"#N/A"},{"$error":"#N/A"},{"$error":"#N/A"},{"$error":"#N/A"},{"$error":"#N/A"},null,{"$error":"#N/A"},{"$error":"#N/A"}]
[null,"PRE-ICI-07",{"$f":"INDEX(tbl_predefined_measures[MEASURE],MATCH($B53&regionid,tbl_predefined_measures[ID&REGION],0))","v":{"$error":"#N/A"}},"N",null,null,null,null,null,null,null,{"$f":"INDEX(tbl_predefined_measures[ACCOUNTING_UNIT],MATCH($B53&regionid,tbl_predefined_measures[ID&REGION],0))","v":{"$error":"#N/A"}},{"$f":"INDEX(tbl_predefined_measures[DELIVERY],MATCH($B53&regionid,tbl_predefined_measures[ID&REGION],0))","v":{"$error":"#N/A"}},null,{"$f":"INDEX(tbl_predefined_measures[COST_OM],MATCH($B53&regionid,tbl_predefined_measures[ID&REGION],0))","v":{"$error":"#N/A"}},{"$f":"INDEX(tbl_predefined_measures[COST_CAPITAL],MATCH($B53&regionid,tbl_predefined_measures[ID&REGION],0))","v":{"$error":"#N/A"}},null,null,{"$f":"INDEX(tbl_predefined_measures[SAVE_GPD],MATCH($B53&regionid,tbl_predefined_measures[ID&REGION],0))","v":{"$error":"#N/A"}},{"$f":"INDEX(tbl_predefined_measures[FREERIDE_PCT],MATCH($B53&regionid,tbl_predefined_measures[ID&REGION],0))","v":{"$error":"#N/A"}},{"$f":"INDEX(tbl_predefined_measures[DECAY_PCT],MATCH($B53&regionid,tbl_predefined_measures[ID&REGION],0))","v":{"$error":"#N/A"}},{"$f":"INDEX(tbl_predefined_measures[PLUMBCODE_YN],MATCH($B53&regionid,tbl_predefined_measures[ID&REGION],0))","v":{"$error":"#N/A"}},{"$f":"INDEX(tbl_predefined_measures[NRR_PCT],MATCH($B53&regionid,tbl_predefined_measures[ID&REGION],0))","v":{"$error":"#N/A"}},{"$f":"IF(V53=\"N\",INDEX(tbl_predefined_measures[LIFE_YRS],MATCH($B53&regionid,tbl_predefined_measures[ID&REGION],0)),99)","v":{"$error":"#N/A"}},null,{"$error":"#N/A"},{"$error":"#N/A"},null,{"$error":"#N/A"},{"$error":"#N/A"},{"$error":"#N/A"},{"$error":"#N/A"},{"$error":"#N/A"},null,{"$f":"F53/AVERAGE(IF(baseline_selection=1,'1. Baseline Demand Projection'!E$28:F$28,'1. Baseline Demand Projection'!N$28:O$28))","v":{"$error":"#DIV/0!"}},{"$f":"G53/AVERAGE(IF(baseline_selection=1,'1. Baseline Demand Projection'!F$28:G$28,'1. Baseline Demand Projection'!O$28:P$28))","v":{"$error":"#DIV/0!"}},{"$f":"H53/AVERAGE(IF(baseline_selection=1,'1. Baseline Demand Projection'!G$28:H$28,'1. Baseline Demand Projection'!P$28:Q$28))","v":{"$error":"#DIV/0!"}},{"$f":"I53/AVERAGE(IF(baseline_selection=1,'1. Baseline Demand Projection'!H$28:I$28,'1. Baseline Demand Projection'!Q$28:R$28))","v":{"$error":"#DIV/0!"}},{"$f":"J53/AVERAGE(IF(baseline_selection=1,'1. Baseline Demand Projection'!I$28:J$28,'1. Baseline Demand Projection'!R$28:S$28))","v":{"$error":"#DIV/0!"}},null,0,0,0,0,0,0,0,0,0,0,0,0,0,0,0,0,0,0,0,0,0,0,0,0,0,0,0,0,0,0,0,0,0,0,0,0,0,0,0,0,0,0,0,0,0,0,0,0,0,0,0,null,{"$f":"MeasureSavingsArray(AO53:CM53,S53,T53,U53,W53,X53,D53)","v":{"$error":"#VALUE!"}},{"$error":"#VALUE!"},{"$error":"#VALUE!"},{"$error":"#VALUE!"},{"$error":"#VALUE!"},{"$error":"#VALUE!"},{"$error":"#VALUE!"},{"$error":"#VALUE!"},{"$error":"#VALUE!"},{"$error":"#VALUE!"},{"$error":"#VALUE!"},{"$error":"#VALUE!"},{"$error":"#VALUE!"},{"$error":"#VALUE!"},{"$error":"#VALUE!"},{"$error":"#VALUE!"},{"$error":"#VALUE!"},{"$error":"#VALUE!"},{"$error":"#VALUE!"},{"$error":"#VALUE!"},{"$error":"#VALUE!"},{"$error":"#VALUE!"},{"$error":"#VALUE!"},{"$error":"#VALUE!"},{"$error":"#VALUE!"},{"$error":"#VALUE!"},{"$error":"#VALUE!"},{"$error":"#VALUE!"},{"$error":"#VALUE!"},{"$error":"#VALUE!"},{"$error":"#VALUE!"},{"$error":"#VALUE!"},{"$error":"#VALUE!"},{"$error":"#VALUE!"},{"$error":"#VALUE!"},{"$error":"#VALUE!"},{"$error":"#VALUE!"},{"$error":"#VALUE!"},{"$error":"#VALUE!"},{"$error":"#VALUE!"},{"$error":"#VALUE!"},{"$error":"#VALUE!"},{"$error":"#VALUE!"},{"$error":"#VALUE!"},{"$error":"#VALUE!"},{"$error":"#VALUE!"},{"$error":"#VALUE!"},{"$error":"#VALUE!"},{"$error":"#VALUE!"},{"$error":"#VALUE!"},{"$error":"#VALUE!"},{"$error":"#VALUE!"},null,{"$error":"#N/A"},{"$error":"#N/A"},{"$error":"#N/A"},{"$error":"#N/A"},{"$error":"#N/A"},{"$error":"#N/A"},{"$error":"#N/A"},{"$error":"#N/A"},{"$error":"#N/A"},{"$error":"#N/A"},{"$error":"#N/A"},{"$error":"#N/A"},{"$error":"#N/A"},{"$error":"#N/A"},{"$error":"#N/A"},{"$error":"#N/A"},{"$error":"#N/A"},{"$error":"#N/A"},{"$error":"#N/A"},{"$error":"#N/A"},{"$error":"#N/A"},{"$error":"#N/A"},{"$error":"#N/A"},{"$error":"#N/A"},{"$error":"#N/A"},{"$error":"#N/A"},{"$error":"#N/A"},{"$error":"#N/A"},{"$error":"#N/A"},{"$error":"#N/A"},{"$error":"#N/A"},{"$error":"#N/A"},{"$error":"#N/A"},{"$error":"#N/A"},{"$error":"#N/A"},{"$error":"#N/A"},{"$error":"#N/A"},{"$error":"#N/A"},{"$error":"#N/A"},{"$error":"#N/A"},{"$error":"#N/A"},{"$error":"#N/A"},{"$error":"#N/A"},{"$error":"#N/A"},{"$error":"#N/A"},{"$error":"#N/A"},{"$error":"#N/A"},{"$error":"#N/A"},{"$error":"#N/A"},{"$error":"#N/A"},{"$error":"#N/A"},null,{"$error":"#N/A"},{"$error":"#N/A"},{"$error":"#N/A"},{"$error":"#N/A"},{"$error":"#N/A"},{"$error":"#N/A"},{"$error":"#N/A"},{"$error":"#N/A"},{"$error":"#N/A"},{"$error":"#N/A"},{"$error":"#N/A"},{"$error":"#N/A"},{"$error":"#N/A"},{"$error":"#N/A"},{"$error":"#N/A"},{"$error":"#N/A"},{"$error":"#N/A"},{"$error":"#N/A"},{"$error":"#N/A"},{"$error":"#N/A"},{"$error":"#N/A"},{"$error":"#N/A"},{"$error":"#N/A"},{"$error":"#N/A"},{"$error":"#N/A"},{"$error":"#N/A"},{"$error":"#N/A"},{"$error":"#N/A"},{"$error":"#N/A"},{"$error":"#N/A"},{"$error":"#N/A"},{"$error":"#N/A"},{"$error":"#N/A"},{"$error":"#N/A"},{"$error":"#N/A"},{"$error":"#N/A"},{"$error":"#N/A"},{"$error":"#N/A"},{"$error":"#N/A"},{"$error":"#N/A"},{"$error":"#N/A"},{"$error":"#N/A"},{"$error":"#N/A"},{"$error":"#N/A"},{"$error":"#N/A"},{"$error":"#N/A"},{"$error":"#N/A"},{"$error":"#N/A"},{"$error":"#N/A"},{"$error":"#N/A"},{"$error":"#N/A"},null,{"$f":"DebtServiceArray(AO53:CM53,P53,discount_rate,Q53,D53)","v":{"$error":"#VALUE!"}},{"$error":"#VALUE!"},{"$error":"#VALUE!"},{"$error":"#VALUE!"},{"$error":"#VALUE!"},{"$error":"#VALUE!"},{"$error":"#VALUE!"},{"$error":"#VALUE!"},{"$error":"#VALUE!"},{"$error":"#VALUE!"},{"$error":"#VALUE!"},{"$error":"#VALUE!"},{"$error":"#VALUE!"},{"$error":"#VALUE!"},{"$error":"#VALUE!"},{"$error":"#VALUE!"},{"$error":"#VALUE!"},{"$error":"#VALUE!"},{"$error":"#VALUE!"},{"$error":"#VALUE!"},{"$error":"#VALUE!"},{"$error":"#VALUE!"},{"$error":"#VALUE!"},{"$error":"#VALUE!"},{"$error":"#VALUE!"},{"$error":"#VALUE!"},{"$error":"#VALUE!"},{"$error":"#VALUE!"},{"$error":"#VALUE!"},{"$error":"#VALUE!"},{"$error":"#VALUE!"},{"$error":"#VALUE!"},{"$error":"#VALUE!"},{"$error":"#VALUE!"},{"$error":"#VALUE!"},{"$error":"#VALUE!"},{"$error":"#VALUE!"},{"$error":"#VALUE!"},{"$error":"#VALUE!"},{"$error":"#VALUE!"},{"$error":"#VALUE!"},{"$error":"#VALUE!"},{"$error":"#VALUE!"},{"$error":"#VALUE!"},{"$error":"#VALUE!"},{"$error":"#VALUE!"},{"$error":"#VALUE!"},{"$error":"#VALUE!"},{"$error":"#VALUE!"},{"$error":"#VALUE!"},{"$error":"#VALUE!"},null,{"$error":"#N/A"},{"$error":"#N/A"},{"$error":"#N/A"},{"$error":"#N/A"},{"$error":"#N/A"},{"$error":"#N/A"},{"$error":"#N/A"},{"$error":"#N/A"},{"$error":"#N/A"},{"$error":"#N/A"},{"$error":"#N/A"},{"$error":"#N/A"},{"$error":"#N/A"},{"$error":"#N/A"},{"$error":"#N/A"},{"$error":"#N/A"},{"$error":"#N/A"},{"$error":"#N/A"},{"$error":"#N/A"},{"$error":"#N/A"},{"$error":"#N/A"},{"$error":"#N/A"},{"$error":"#N/A"},{"$error":"#N/A"},{"$error":"#N/A"},{"$error":"#N/A"},{"$error":"#N/A"},{"$error":"#N/A"},{"$error":"#N/A"},{"$error":"#N/A"},{"$error":"#N/A"},{"$error":"#N/A"},{"$error":"#N/A"},{"$error":"#N/A"},{"$error":"#N/A"},{"$error":"#N/A"},{"$error":"#N/A"},{"$error":"#N/A"},{"$error":"#N/A"},{"$error":"#N/A"},{"$error":"#N/A"},{"$error":"#N/A"},{"$error":"#N/A"},{"$error":"#N/A"},{"$error":"#N/A"},{"$error":"#N/A"},{"$error":"#N/A"},{"$error":"#N/A"},{"$error":"#N/A"},{"$error":"#N/A"},{"$error":"#N/A"},null,{"$error":"#N/A"},{"$error":"#N/A"}]
[null,"PRE-ICI-08",{"$f":"INDEX(tbl_predefined_measures[MEASURE],MATCH($B54&regionid,tbl_predefined_measures[ID&REGION],0))","v":{"$error":"#N/A"}},"N",null,null,null,null,null,null,null,{"$f":"INDEX(tbl_predefined_measures[ACCOUNTING_UNIT],MATCH($B54&regionid,tbl_predefined_measures[ID&REGION],0))","v":{"$error":"#N/A"}},{"$f":"INDEX(tbl_predefined_measures[DELIVERY],MATCH($B54&regionid,tbl_predefined_measures[ID&REGION],0))","v":{"$error":"#N/A"}},null,{"$f":"INDEX(tbl_predefined_measures[COST_OM],MATCH($B54&regionid,tbl_predefined_measures[ID&REGION],0))","v":{"$error":"#N/A"}},{"$f":"INDEX(tbl_predefined_measures[COST_CAPITAL],MATCH($B54&regionid,tbl_predefined_measures[ID&REGION],0))","v":{"$error":"#N/A"}},null,null,{"$f":"INDEX(tbl_predefined_measures[SAVE_GPD],MATCH($B54&regionid,tbl_predefined_measures[ID&REGION],0))","v":{"$error":"#N/A"}},{"$f":"INDEX(tbl_predefined_measures[FREERIDE_PCT],MATCH($B54&regionid,tbl_predefined_measures[ID&REGION],0))","v":{"$error":"#N/A"}},{"$f":"INDEX(tbl_predefined_measures[DECAY_PCT],MATCH($B54&regionid,tbl_predefined_measures[ID&REGION],0))","v":{"$error":"#N/A"}},{"$f":"INDEX(tbl_predefined_measures[PLUMBCODE_YN],MATCH($B54&regionid,tbl_predefined_measures[ID&REGION],0))","v":{"$error":"#N/A"}},{"$f":"INDEX(tbl_predefined_measures[NRR_PCT],MATCH($B54&regionid,tbl_predefined_measures[ID&REGION],0))","v":{"$error":"#N/A"}},{"$f":"IF(V54=\"N\",INDEX(tbl_predefined_measures[LIFE_YRS],MATCH($B54&regionid,tbl_predefined_measures[ID&REGION],0)),99)","v":{"$error":"#N/A"}},null,{"$error":"#N/A"},{"$error":"#N/A"},null,{"$error":"#N/A"},{"$error":"#N/A"},{"$error":"#N/A"},{"$error":"#N/A"},{"$error":"#N/A"},null,{"$f":"F54/AVERAGE(IF(baseline_selection=1,'1. Baseline Demand Projection'!E$28:F$28,'1. Baseline Demand Projection'!N$28:O$28))","v":{"$error":"#DIV/0!"}},{"$f":"G54/AVERAGE(IF(baseline_selection=1,'1. Baseline Demand Projection'!F$28:G$28,'1. Baseline Demand Projection'!O$28:P$28))","v":{"$error":"#DIV/0!"}},{"$f":"H54/AVERAGE(IF(baseline_selection=1,'1. Baseline Demand Projection'!G$28:H$28,'1. Baseline Demand Projection'!P$28:Q$28))","v":{"$error":"#DIV/0!"}},{"$f":"I54/AVERAGE(IF(baseline_selection=1,'1. Baseline Demand Projection'!H$28:I$28,'1. Baseline Demand Projection'!Q$28:R$28))","v":{"$error":"#DIV/0!"}},{"$f":"J54/AVERAGE(IF(baseline_selection=1,'1. Baseline Demand Projection'!I$28:J$28,'1. Baseline Demand Projection'!R$28:S$28))","v":{"$error":"#DIV/0!"}},null,0,0,0,0,0,0,0,0,0,0,0,0,0,0,0,0,0,0,0,0,0,0,0,0,0,0,0,0,0,0,0,0,0,0,0,0,0,0,0,0,0,0,0,0,0,0,0,0,0,0,0,null,{"$f":"MeasureSavingsArray(AO54:CM54,S54,T54,U54,W54,X54,D54)","v":{"$error":"#VALUE!"}},{"$error":"#VALUE!"},{"$error":"#VALUE!"},{"$error":"#VALUE!"},{"$error":"#VALUE!"},{"$error":"#VALUE!"},{"$error":"#VALUE!"},{"$error":"#VALUE!"},{"$error":"#VALUE!"},{"$error":"#VALUE!"},{"$error":"#VALUE!"},{"$error":"#VALUE!"},{"$error":"#VALUE!"},{"$error":"#VALUE!"},{"$error":"#VALUE!"},{"$error":"#VALUE!"},{"$error":"#VALUE!"},{"$error":"#VALUE!"},{"$error":"#VALUE!"},{"$error":"#VALUE!"},{"$error":"#VALUE!"},{"$error":"#VALUE!"},{"$error":"#VALUE!"},{"$error":"#VALUE!"},{"$error":"#VALUE!"},{"$error":"#VALUE!"},{"$error":"#VALUE!"},{"$error":"#VALUE!"},{"$error":"#VALUE!"},{"$error":"#VALUE!"},{"$error":"#VALUE!"},{"$error":"#VALUE!"},{"$error":"#VALUE!"},{"$error":"#VALUE!"},{"$error":"#VALUE!"},{"$error":"#VALUE!"},{"$error":"#VALUE!"},{"$error":"#VALUE!"},{"$error":"#VALUE!"},{"$error":"#VALUE!"},{"$error":"#VALUE!"},{"$error":"#VALUE!"},{"$error":"#VALUE!"},{"$error":"#VALUE!"},{"$error":"#VALUE!"},{"$error":"#VALUE!"},{"$error":"#VALUE!"},{"$error":"#VALUE!"},{"$error":"#VALUE!"},{"$error":"#VALUE!"},{"$error":"#VALUE!"},{"$error":"#VALUE!"},null,{"$error":"#N/A"},{"$error":"#N/A"},{"$error":"#N/A"},{"$error":"#N/A"},{"$error":"#N/A"},{"$error":"#N/A"},{"$error":"#N/A"},{"$error":"#N/A"},{"$error":"#N/A"},{"$error":"#N/A"},{"$error":"#N/A"},{"$error":"#N/A"},{"$error":"#N/A"},{"$error":"#N/A"},{"$error":"#N/A"},{"$error":"#N/A"},{"$error":"#N/A"},{"$error":"#N/A"},{"$error":"#N/A"},{"$error":"#N/A"},{"$error":"#N/A"},{"$error":"#N/A"},{"$error":"#N/A"},{"$error":"#N/A"},{"$error":"#N/A"},{"$error":"#N/A"},{"$error":"#N/A"},{"$error":"#N/A"},{"$error":"#N/A"},{"$error":"#N/A"},{"$error":"#N/A"},{"$error":"#N/A"},{"$error":"#N/A"},{"$error":"#N/A"},{"$error":"#N/A"},{"$error":"#N/A"},{"$error":"#N/A"},{"$error":"#N/A"},{"$error":"#N/A"},{"$error":"#N/A"},{"$error":"#N/A"},{"$error":"#N/A"},{"$error":"#N/A"},{"$error":"#N/A"},{"$error":"#N/A"},{"$error":"#N/A"},{"$error":"#N/A"},{"$error":"#N/A"},{"$error":"#N/A"},{"$error":"#N/A"},{"$error":"#N/A"},null,{"$error":"#N/A"},{"$error":"#N/A"},{"$error":"#N/A"},{"$error":"#N/A"},{"$error":"#N/A"},{"$error":"#N/A"},{"$error":"#N/A"},{"$error":"#N/A"},{"$error":"#N/A"},{"$error":"#N/A"},{"$error":"#N/A"},{"$error":"#N/A"},{"$error":"#N/A"},{"$error":"#N/A"},{"$error":"#N/A"},{"$error":"#N/A"},{"$error":"#N/A"},{"$error":"#N/A"},{"$error":"#N/A"},{"$error":"#N/A"},{"$error":"#N/A"},{"$error":"#N/A"},{"$error":"#N/A"},{"$error":"#N/A"},{"$error":"#N/A"},{"$error":"#N/A"},{"$error":"#N/A"},{"$error":"#N/A"},{"$error":"#N/A"},{"$error":"#N/A"},{"$error":"#N/A"},{"$error":"#N/A"},{"$error":"#N/A"},{"$error":"#N/A"},{"$error":"#N/A"},{"$error":"#N/A"},{"$error":"#N/A"},{"$error":"#N/A"},{"$error":"#N/A"},{"$error":"#N/A"},{"$error":"#N/A"},{"$error":"#N/A"},{"$error":"#N/A"},{"$error":"#N/A"},{"$error":"#N/A"},{"$error":"#N/A"},{"$error":"#N/A"},{"$error":"#N/A"},{"$error":"#N/A"},{"$error":"#N/A"},{"$error":"#N/A"},null,{"$f":"DebtServiceArray(AO54:CM54,P54,discount_rate,Q54,D54)","v":{"$error":"#VALUE!"}},{"$error":"#VALUE!"},{"$error":"#VALUE!"},{"$error":"#VALUE!"},{"$error":"#VALUE!"},{"$error":"#VALUE!"},{"$error":"#VALUE!"},{"$error":"#VALUE!"},{"$error":"#VALUE!"},{"$error":"#VALUE!"},{"$error":"#VALUE!"},{"$error":"#VALUE!"},{"$error":"#VALUE!"},{"$error":"#VALUE!"},{"$error":"#VALUE!"},{"$error":"#VALUE!"},{"$error":"#VALUE!"},{"$error":"#VALUE!"},{"$error":"#VALUE!"},{"$error":"#VALUE!"},{"$error":"#VALUE!"},{"$error":"#VALUE!"},{"$error":"#VALUE!"},{"$error":"#VALUE!"},{"$error":"#VALUE!"},{"$error":"#VALUE!"},{"$error":"#VALUE!"},{"$error":"#VALUE!"},{"$error":"#VALUE!"},{"$error":"#VALUE!"},{"$error":"#VALUE!"},{"$error":"#VALUE!"},{"$error":"#VALUE!"},{"$error":"#VALUE!"},{"$error":"#VALUE!"},{"$error":"#VALUE!"},{"$error":"#VALUE!"},{"$error":"#VALUE!"},{"$error":"#VALUE!"},{"$error":"#VALUE!"},{"$error":"#VALUE!"},{"$error":"#VALUE!"},{"$error":"#VALUE!"},{"$error":"#VALUE!"},{"$error":"#VALUE!"},{"$error":"#VALUE!"},{"$error":"#VALUE!"},{"$error":"#VALUE!"},{"$error":"#VALUE!"},{"$error":"#VALUE!"},{"$error":"#VALUE!"},null,{"$error":"#N/A"},{"$error":"#N/A"},{"$error":"#N/A"},{"$error":"#N/A"},{"$error":"#N/A"},{"$error":"#N/A"},{"$error":"#N/A"},{"$error":"#N/A"},{"$error":"#N/A"},{"$error":"#N/A"},{"$error":"#N/A"},{"$error":"#N/A"},{"$error":"#N/A"},{"$error":"#N/A"},{"$error":"#N/A"},{"$error":"#N/A"},{"$error":"#N/A"},{"$error":"#N/A"},{"$error":"#N/A"},{"$error":"#N/A"},{"$error":"#N/A"},{"$error":"#N/A"},{"$error":"#N/A"},{"$error":"#N/A"},{"$error":"#N/A"},{"$error":"#N/A"},{"$error":"#N/A"},{"$error":"#N/A"},{"$error":"#N/A"},{"$error":"#N/A"},{"$error":"#N/A"},{"$error":"#N/A"},{"$error":"#N/A"},{"$error":"#N/A"},{"$error":"#N/A"},{"$error":"#N/A"},{"$error":"#N/A"},{"$error":"#N/A"},{"$error":"#N/A"},{"$error":"#N/A"},{"$error":"#N/A"},{"$error":"#N/A"},{"$error":"#N/A"},{"$error":"#N/A"},{"$error":"#N/A"},{"$error":"#N/A"},{"$error":"#N/A"},{"$error":"#N/A"},{"$error":"#N/A"},{"$error":"#N/A"},{"$error":"#N/A"},null,{"$error":"#N/A"},{"$error":"#N/A"}]
[null,"PRE-ICI-09",{"$f":"INDEX(tbl_predefined_measures[MEASURE],MATCH($B55&regionid,tbl_predefined_measures[ID&REGION],0))","v":{"$error":"#N/A"}},"N",null,null,null,null,null,null,null,{"$f":"INDEX(tbl_predefined_measures[ACCOUNTING_UNIT],MATCH($B55&regionid,tbl_predefined_measures[ID&REGION],0))","v":{"$error":"#N/A"}},{"$f":"INDEX(tbl_predefined_measures[DELIVERY],MATCH($B55&regionid,tbl_predefined_measures[ID&REGION],0))","v":{"$error":"#N/A"}},null,{"$f":"INDEX(tbl_predefined_measures[COST_OM],MATCH($B55&regionid,tbl_predefined_measures[ID&REGION],0))","v":{"$error":"#N/A"}},{"$f":"INDEX(tbl_predefined_measures[COST_CAPITAL],MATCH($B55&regionid,tbl_predefined_measures[ID&REGION],0))","v":{"$error":"#N/A"}},null,null,{"$f":"INDEX(tbl_predefined_measures[SAVE_GPD],MATCH($B55&regionid,tbl_predefined_measures[ID&REGION],0))","v":{"$error":"#N/A"}},{"$f":"INDEX(tbl_predefined_measures[FREERIDE_PCT],MATCH($B55&regionid,tbl_predefined_measures[ID&REGION],0))","v":{"$error":"#N/A"}},{"$f":"INDEX(tbl_predefined_measures[DECAY_PCT],MATCH($B55&regionid,tbl_predefined_measures[ID&REGION],0))","v":{"$error":"#N/A"}},{"$f":"INDEX(tbl_predefined_measures[PLUMBCODE_YN],MATCH($B55&regionid,tbl_predefined_measures[ID&REGION],0))","v":{"$error":"#N/A"}},{"$f":"INDEX(tbl_predefined_measures[NRR_PCT],MATCH($B55&regionid,tbl_predefined_measures[ID&REGION],0))","v":{"$error":"#N/A"}},{"$f":"IF(V55=\"N\",INDEX(tbl_predefined_measures[LIFE_YRS],MATCH($B55&regionid,tbl_predefined_measures[ID&REGION],0)),99)","v":{"$error":"#N/A"}},null,{"$error":"#N/A"},{"$error":"#N/A"},null,{"$error":"#N/A"},{"$error":"#N/A"},{"$error":"#N/A"},{"$error":"#N/A"},{"$error":"#N/A"},null,{"$f":"F55/AVERAGE(IF(baseline_selection=1,'1. Baseline Demand Projection'!E$28:F$28,'1. Baseline Demand Projection'!N$28:O$28))","v":{"$error":"#DIV/0!"}},{"$f":"G55/AVERAGE(IF(baseline_selection=1,'1. Baseline Demand Projection'!F$28:G$28,'1. Baseline Demand Projection'!O$28:P$28))","v":{"$error":"#DIV/0!"}},{"$f":"H55/AVERAGE(IF(baseline_selection=1,'1. Baseline Demand Projection'!G$28:H$28,'1. Baseline Demand Projection'!P$28:Q$28))","v":{"$error":"#DIV/0!"}},{"$f":"I55/AVERAGE(IF(baseline_selection=1,'1. Baseline Demand Projection'!H$28:I$28,'1. Baseline Demand Projection'!Q$28:R$28))","v":{"$error":"#DIV/0!"}},{"$f":"J55/AVERAGE(IF(baseline_selection=1,'1. Baseline Demand Projection'!I$28:J$28,'1. Baseline Demand Projection'!R$28:S$28))","v":{"$error":"#DIV/0!"}},null,0,0,0,0,0,0,0,0,0,0,0,0,0,0,0,0,0,0,0,0,0,0,0,0,0,0,0,0,0,0,0,0,0,0,0,0,0,0,0,0,0,0,0,0,0,0,0,0,0,0,0,null,{"$f":"MeasureSavingsArray(AO55:CM55,S55,T55,U55,W55,X55,D55)","v":{"$error":"#VALUE!"}},{"$error":"#VALUE!"},{"$error":"#VALUE!"},{"$error":"#VALUE!"},{"$error":"#VALUE!"},{"$error":"#VALUE!"},{"$error":"#VALUE!"},{"$error":"#VALUE!"},{"$error":"#VALUE!"},{"$error":"#VALUE!"},{"$error":"#VALUE!"},{"$error":"#VALUE!"},{"$error":"#VALUE!"},{"$error":"#VALUE!"},{"$error":"#VALUE!"},{"$error":"#VALUE!"},{"$error":"#VALUE!"},{"$error":"#VALUE!"},{"$error":"#VALUE!"},{"$error":"#VALUE!"},{"$error":"#VALUE!"},{"$error":"#VALUE!"},{"$error":"#VALUE!"},{"$error":"#VALUE!"},{"$error":"#VALUE!"},{"$error":"#VALUE!"},{"$error":"#VALUE!"},{"$error":"#VALUE!"},{"$error":"#VALUE!"},{"$error":"#VALUE!"},{"$error":"#VALUE!"},{"$error":"#VALUE!"},{"$error":"#VALUE!"},{"$error":"#VALUE!"},{"$error":"#VALUE!"},{"$error":"#VALUE!"},{"$error":"#VALUE!"},{"$error":"#VALUE!"},{"$error":"#VALUE!"},{"$error":"#VALUE!"},{"$error":"#VALUE!"},{"$error":"#VALUE!"},{"$error":"#VALUE!"},{"$error":"#VALUE!"},{"$error":"#VALUE!"},{"$error":"#VALUE!"},{"$error":"#VALUE!"},{"$error":"#VALUE!"},{"$error":"#VALUE!"},{"$error":"#VALUE!"},{"$error":"#VALUE!"},{"$error":"#VALUE!"},null,{"$error":"#N/A"},{"$error":"#N/A"},{"$error":"#N/A"},{"$error":"#N/A"},{"$error":"#N/A"},{"$error":"#N/A"},{"$error":"#N/A"},{"$error":"#N/A"},{"$error":"#N/A"},{"$error":"#N/A"},{"$error":"#N/A"},{"$error":"#N/A"},{"$error":"#N/A"},{"$error":"#N/A"},{"$error":"#N/A"},{"$error":"#N/A"},{"$error":"#N/A"},{"$error":"#N/A"},{"$error":"#N/A"},{"$error":"#N/A"},{"$error":"#N/A"},{"$error":"#N/A"},{"$error":"#N/A"},{"$error":"#N/A"},{"$error":"#N/A"},{"$error":"#N/A"},{"$error":"#N/A"},{"$error":"#N/A"},{"$error":"#N/A"},{"$error":"#N/A"},{"$error":"#N/A"},{"$error":"#N/A"},{"$error":"#N/A"},{"$error":"#N/A"},{"$error":"#N/A"},{"$error":"#N/A"},{"$error":"#N/A"},{"$error":"#N/A"},{"$error":"#N/A"},{"$error":"#N/A"},{"$error":"#N/A"},{"$error":"#N/A"},{"$error":"#N/A"},{"$error":"#N/A"},{"$error":"#N/A"},{"$error":"#N/A"},{"$error":"#N/A"},{"$error":"#N/A"},{"$error":"#N/A"},{"$error":"#N/A"},{"$error":"#N/A"},null,{"$error":"#N/A"},{"$error":"#N/A"},{"$error":"#N/A"},{"$error":"#N/A"},{"$error":"#N/A"},{"$error":"#N/A"},{"$error":"#N/A"},{"$error":"#N/A"},{"$error":"#N/A"},{"$error":"#N/A"},{"$error":"#N/A"},{"$error":"#N/A"},{"$error":"#N/A"},{"$error":"#N/A"},{"$error":"#N/A"},{"$error":"#N/A"},{"$error":"#N/A"},{"$error":"#N/A"},{"$error":"#N/A"},{"$error":"#N/A"},{"$error":"#N/A"},{"$error":"#N/A"},{"$error":"#N/A"},{"$error":"#N/A"},{"$error":"#N/A"},{"$error":"#N/A"},{"$error":"#N/A"},{"$error":"#N/A"},{"$error":"#N/A"},{"$error":"#N/A"},{"$error":"#N/A"},{"$error":"#N/A"},{"$error":"#N/A"},{"$error":"#N/A"},{"$error":"#N/A"},{"$error":"#N/A"},{"$error":"#N/A"},{"$error":"#N/A"},{"$error":"#N/A"},{"$error":"#N/A"},{"$error":"#N/A"},{"$error":"#N/A"},{"$error":"#N/A"},{"$error":"#N/A"},{"$error":"#N/A"},{"$error":"#N/A"},{"$error":"#N/A"},{"$error":"#N/A"},{"$error":"#N/A"},{"$error":"#N/A"},{"$error":"#N/A"},null,{"$f":"DebtServiceArray(AO55:CM55,P55,discount_rate,Q55,D55)","v":{"$error":"#VALUE!"}},{"$error":"#VALUE!"},{"$error":"#VALUE!"},{"$error":"#VALUE!"},{"$error":"#VALUE!"},{"$error":"#VALUE!"},{"$error":"#VALUE!"},{"$error":"#VALUE!"},{"$error":"#VALUE!"},{"$error":"#VALUE!"},{"$error":"#VALUE!"},{"$error":"#VALUE!"},{"$error":"#VALUE!"},{"$error":"#VALUE!"},{"$error":"#VALUE!"},{"$error":"#VALUE!"},{"$error":"#VALUE!"},{"$error":"#VALUE!"},{"$error":"#VALUE!"},{"$error":"#VALUE!"},{"$error":"#VALUE!"},{"$error":"#VALUE!"},{"$error":"#VALUE!"},{"$error":"#VALUE!"},{"$error":"#VALUE!"},{"$error":"#VALUE!"},{"$error":"#VALUE!"},{"$error":"#VALUE!"},{"$error":"#VALUE!"},{"$error":"#VALUE!"},{"$error":"#VALUE!"},{"$error":"#VALUE!"},{"$error":"#VALUE!"},{"$error":"#VALUE!"},{"$error":"#VALUE!"},{"$error":"#VALUE!"},{"$error":"#VALUE!"},{"$error":"#VALUE!"},{"$error":"#VALUE!"},{"$error":"#VALUE!"},{"$error":"#VALUE!"},{"$error":"#VALUE!"},{"$error":"#VALUE!"},{"$error":"#VALUE!"},{"$error":"#VALUE!"},{"$error":"#VALUE!"},{"$error":"#VALUE!"},{"$error":"#VALUE!"},{"$error":"#VALUE!"},{"$error":"#VALUE!"},{"$error":"#VALUE!"},null,{"$error":"#N/A"},{"$error":"#N/A"},{"$error":"#N/A"},{"$error":"#N/A"},{"$error":"#N/A"},{"$error":"#N/A"},{"$error":"#N/A"},{"$error":"#N/A"},{"$error":"#N/A"},{"$error":"#N/A"},{"$error":"#N/A"},{"$error":"#N/A"},{"$error":"#N/A"},{"$error":"#N/A"},{"$error":"#N/A"},{"$error":"#N/A"},{"$error":"#N/A"},{"$error":"#N/A"},{"$error":"#N/A"},{"$error":"#N/A"},{"$error":"#N/A"},{"$error":"#N/A"},{"$error":"#N/A"},{"$error":"#N/A"},{"$error":"#N/A"},{"$error":"#N/A"},{"$error":"#N/A"},{"$error":"#N/A"},{"$error":"#N/A"},{"$error":"#N/A"},{"$error":"#N/A"},{"$error":"#N/A"},{"$error":"#N/A"},{"$error":"#N/A"},{"$error":"#N/A"},{"$error":"#N/A"},{"$error":"#N/A"},{"$error":"#N/A"},{"$error":"#N/A"},{"$error":"#N/A"},{"$error":"#N/A"},{"$error":"#N/A"},{"$error":"#N/A"},{"$error":"#N/A"},{"$error":"#N/A"},{"$error":"#N/A"},{"$error":"#N/A"},{"$error":"#N/A"},{"$error":"#N/A"},{"$error":"#N/A"},{"$error":"#N/A"},null,{"$error":"#N/A"},{"$error":"#N/A"}]
[null,"PRE-ICI-10",{"$f":"INDEX(tbl_predefined_measures[MEASURE],MATCH($B56&regionid,tbl_predefined_measures[ID&REGION],0))","v":{"$error":"#N/A"}},"N",null,null,null,null,null,null,null,{"$f":"INDEX(tbl_predefined_measures[ACCOUNTING_UNIT],MATCH($B56&regionid,tbl_predefined_measures[ID&REGION],0))","v":{"$error":"#N/A"}},{"$f":"INDEX(tbl_predefined_measures[DELIVERY],MATCH($B56&regionid,tbl_predefined_measures[ID&REGION],0))","v":{"$error":"#N/A"}},null,{"$f":"INDEX(tbl_predefined_measures[COST_OM],MATCH($B56&regionid,tbl_predefined_measures[ID&REGION],0))","v":{"$error":"#N/A"}},{"$f":"INDEX(tbl_predefined_measures[COST_CAPITAL],MATCH($B56&regionid,tbl_predefined_measures[ID&REGION],0))","v":{"$error":"#N/A"}},null,null,{"$f":"INDEX(tbl_predefined_measures[SAVE_GPD],MATCH($B56&regionid,tbl_predefined_measures[ID&REGION],0))","v":{"$error":"#N/A"}},{"$f":"INDEX(tbl_predefined_measures[FREERIDE_PCT],MATCH($B56&regionid,tbl_predefined_measures[ID&REGION],0))","v":{"$error":"#N/A"}},{"$f":"INDEX(tbl_predefined_measures[DECAY_PCT],MATCH($B56&regionid,tbl_predefined_measures[ID&REGION],0))","v":{"$error":"#N/A"}},{"$f":"INDEX(tbl_predefined_measures[PLUMBCODE_YN],MATCH($B56&regionid,tbl_predefined_measures[ID&REGION],0))","v":{"$error":"#N/A"}},{"$f":"INDEX(tbl_predefined_measures[NRR_PCT],MATCH($B56&regionid,tbl_predefined_measures[ID&REGION],0))","v":{"$error":"#N/A"}},{"$f":"IF(V56=\"N\",INDEX(tbl_predefined_measures[LIFE_YRS],MATCH($B56&regionid,tbl_predefined_measures[ID&REGION],0)),99)","v":{"$error":"#N/A"}},null,{"$error":"#N/A"},{"$error":"#N/A"},null,{"$error":"#N/A"},{"$error":"#N/A"},{"$error":"#N/A"},{"$error":"#N/A"},{"$error":"#N/A"},null,{"$f":"F56/AVERAGE(IF(baseline_selection=1,'1. Baseline Demand Projection'!E$28:F$28,'1. Baseline Demand Projection'!N$28:O$28))","v":{"$error":"#DIV/0!"}},{"$f":"G56/AVERAGE(IF(baseline_selection=1,'1. Baseline Demand Projection'!F$28:G$28,'1. Baseline Demand Projection'!O$28:P$28))","v":{"$error":"#DIV/0!"}},{"$f":"H56/AVERAGE(IF(baseline_selection=1,'1. Baseline Demand Projection'!G$28:H$28,'1. Baseline Demand Projection'!P$28:Q$28))","v":{"$error":"#DIV/0!"}},{"$f":"I56/AVERAGE(IF(baseline_selection=1,'1. Baseline Demand Projection'!H$28:I$28,'1. Baseline Demand Projection'!Q$28:R$28))","v":{"$error":"#DIV/0!"}},{"$f":"J56/AVERAGE(IF(baseline_selection=1,'1. Baseline Demand Projection'!I$28:J$28,'1. Baseline Demand Projection'!R$28:S$28))","v":{"$error":"#DIV/0!"}},null,0,0,0,0,0,0,0,0,0,0,0,0,0,0,0,0,0,0,0,0,0,0,0,0,0,0,0,0,0,0,0,0,0,0,0,0,0,0,0,0,0,0,0,0,0,0,0,0,0,0,0,null,{"$f":"MeasureSavingsArray(AO56:CM56,S56,T56,U56,W56,X56,D56)","v":{"$error":"#VALUE!"}},{"$error":"#VALUE!"},{"$error":"#VALUE!"},{"$error":"#VALUE!"},{"$error":"#VALUE!"},{"$error":"#VALUE!"},{"$error":"#VALUE!"},{"$error":"#VALUE!"},{"$error":"#VALUE!"},{"$error":"#VALUE!"},{"$error":"#VALUE!"},{"$error":"#VALUE!"},{"$error":"#VALUE!"},{"$error":"#VALUE!"},{"$error":"#VALUE!"},{"$error":"#VALUE!"},{"$error":"#VALUE!"},{"$error":"#VALUE!"},{"$error":"#VALUE!"},{"$error":"#VALUE!"},{"$error":"#VALUE!"},{"$error":"#VALUE!"},{"$error":"#VALUE!"},{"$error":"#VALUE!"},{"$error":"#VALUE!"},{"$error":"#VALUE!"},{"$error":"#VALUE!"},{"$error":"#VALUE!"},{"$error":"#VALUE!"},{"$error":"#VALUE!"},{"$error":"#VALUE!"},{"$error":"#VALUE!"},{"$error":"#VALUE!"},{"$error":"#VALUE!"},{"$error":"#VALUE!"},{"$error":"#VALUE!"},{"$error":"#VALUE!"},{"$error":"#VALUE!"},{"$error":"#VALUE!"},{"$error":"#VALUE!"},{"$error":"#VALUE!"},{"$error":"#VALUE!"},{"$error":"#VALUE!"},{"$error":"#VALUE!"},{"$error":"#VALUE!"},{"$error":"#VALUE!"},{"$error":"#VALUE!"},{"$error":"#VALUE!"},{"$error":"#VALUE!"},{"$error":"#VALUE!"},{"$error":"#VALUE!"},{"$error":"#VALUE!"},null,{"$error":"#N/A"},{"$error":"#N/A"},{"$error":"#N/A"},{"$error":"#N/A"},{"$error":"#N/A"},{"$error":"#N/A"},{"$error":"#N/A"},{"$error":"#N/A"},{"$error":"#N/A"},{"$error":"#N/A"},{"$error":"#N/A"},{"$error":"#N/A"},{"$error":"#N/A"},{"$error":"#N/A"},{"$error":"#N/A"},{"$error":"#N/A"},{"$error":"#N/A"},{"$error":"#N/A"},{"$error":"#N/A"},{"$error":"#N/A"},{"$error":"#N/A"},{"$error":"#N/A"},{"$error":"#N/A"},{"$error":"#N/A"},{"$error":"#N/A"},{"$error":"#N/A"},{"$error":"#N/A"},{"$error":"#N/A"},{"$error":"#N/A"},{"$error":"#N/A"},{"$error":"#N/A"},{"$error":"#N/A"},{"$error":"#N/A"},{"$error":"#N/A"},{"$error":"#N/A"},{"$error":"#N/A"},{"$error":"#N/A"},{"$error":"#N/A"},{"$error":"#N/A"},{"$error":"#N/A"},{"$error":"#N/A"},{"$error":"#N/A"},{"$error":"#N/A"},{"$error":"#N/A"},{"$error":"#N/A"},{"$error":"#N/A"},{"$error":"#N/A"},{"$error":"#N/A"},{"$error":"#N/A"},{"$error":"#N/A"},{"$error":"#N/A"},null,{"$error":"#N/A"},{"$error":"#N/A"},{"$error":"#N/A"},{"$error":"#N/A"},{"$error":"#N/A"},{"$error":"#N/A"},{"$error":"#N/A"},{"$error":"#N/A"},{"$error":"#N/A"},{"$error":"#N/A"},{"$error":"#N/A"},{"$error":"#N/A"},{"$error":"#N/A"},{"$error":"#N/A"},{"$error":"#N/A"},{"$error":"#N/A"},{"$error":"#N/A"},{"$error":"#N/A"},{"$error":"#N/A"},{"$error":"#N/A"},{"$error":"#N/A"},{"$error":"#N/A"},{"$error":"#N/A"},{"$error":"#N/A"},{"$error":"#N/A"},{"$error":"#N/A"},{"$error":"#N/A"},{"$error":"#N/A"},{"$error":"#N/A"},{"$error":"#N/A"},{"$error":"#N/A"},{"$error":"#N/A"},{"$error":"#N/A"},{"$error":"#N/A"},{"$error":"#N/A"},{"$error":"#N/A"},{"$error":"#N/A"},{"$error":"#N/A"},{"$error":"#N/A"},{"$error":"#N/A"},{"$error":"#N/A"},{"$error":"#N/A"},{"$error":"#N/A"},{"$error":"#N/A"},{"$error":"#N/A"},{"$error":"#N/A"},{"$error":"#N/A"},{"$error":"#N/A"},{"$error":"#N/A"},{"$error":"#N/A"},{"$error":"#N/A"},null,{"$f":"DebtServiceArray(AO56:CM56,P56,discount_rate,Q56,D56)","v":{"$error":"#VALUE!"}},{"$error":"#VALUE!"},{"$error":"#VALUE!"},{"$error":"#VALUE!"},{"$error":"#VALUE!"},{"$error":"#VALUE!"},{"$error":"#VALUE!"},{"$error":"#VALUE!"},{"$error":"#VALUE!"},{"$error":"#VALUE!"},{"$error":"#VALUE!"},{"$error":"#VALUE!"},{"$error":"#VALUE!"},{"$error":"#VALUE!"},{"$error":"#VALUE!"},{"$error":"#VALUE!"},{"$error":"#VALUE!"},{"$error":"#VALUE!"},{"$error":"#VALUE!"},{"$error":"#VALUE!"},{"$error":"#VALUE!"},{"$error":"#VALUE!"},{"$error":"#VALUE!"},{"$error":"#VALUE!"},{"$error":"#VALUE!"},{"$error":"#VALUE!"},{"$error":"#VALUE!"},{"$error":"#VALUE!"},{"$error":"#VALUE!"},{"$error":"#VALUE!"},{"$error":"#VALUE!"},{"$error":"#VALUE!"},{"$error":"#VALUE!"},{"$error":"#VALUE!"},{"$error":"#VALUE!"},{"$error":"#VALUE!"},{"$error":"#VALUE!"},{"$error":"#VALUE!"},{"$error":"#VALUE!"},{"$error":"#VALUE!"},{"$error":"#VALUE!"},{"$error":"#VALUE!"},{"$error":"#VALUE!"},{"$error":"#VALUE!"},{"$error":"#VALUE!"},{"$error":"#VALUE!"},{"$error":"#VALUE!"},{"$error":"#VALUE!"},{"$error":"#VALUE!"},{"$error":"#VALUE!"},{"$error":"#VALUE!"},null,{"$error":"#N/A"},{"$error":"#N/A"},{"$error":"#N/A"},{"$error":"#N/A"},{"$error":"#N/A"},{"$error":"#N/A"},{"$error":"#N/A"},{"$error":"#N/A"},{"$error":"#N/A"},{"$error":"#N/A"},{"$error":"#N/A"},{"$error":"#N/A"},{"$error":"#N/A"},{"$error":"#N/A"},{"$error":"#N/A"},{"$error":"#N/A"},{"$error":"#N/A"},{"$error":"#N/A"},{"$error":"#N/A"},{"$error":"#N/A"},{"$error":"#N/A"},{"$error":"#N/A"},{"$error":"#N/A"},{"$error":"#N/A"},{"$error":"#N/A"},{"$error":"#N/A"},{"$error":"#N/A"},{"$error":"#N/A"},{"$error":"#N/A"},{"$error":"#N/A"},{"$error":"#N/A"},{"$error":"#N/A"},{"$error":"#N/A"},{"$error":"#N/A"},{"$error":"#N/A"},{"$error":"#N/A"},{"$error":"#N/A"},{"$error":"#N/A"},{"$error":"#N/A"},{"$error":"#N/A"},{"$error":"#N/A"},{"$error":"#N/A"},{"$error":"#N/A"},{"$error":"#N/A"},{"$error":"#N/A"},{"$error":"#N/A"},{"$error":"#N/A"},{"$error":"#N/A"},{"$error":"#N/A"},{"$error":"#N/A"},{"$error":"#N/A"},null,{"$error":"#N/A"},{"$error":"#N/A"}]
[null,"PRE-ICI-11",{"$f":"INDEX(tbl_predefined_measures[MEASURE],MATCH($B57&regionid,tbl_predefined_measures[ID&REGION],0))","v":{"$error":"#N/A"}},"N",null,null,null,null,null,null,null,{"$f":"INDEX(tbl_predefined_measures[ACCOUNTING_UNIT],MATCH($B57&regionid,tbl_predefined_measures[ID&REGION],0))","v":{"$error":"#N/A"}},{"$f":"INDEX(tbl_predefined_measures[DELIVERY],MATCH($B57&regionid,tbl_predefined_measures[ID&REGION],0))","v":{"$error":"#N/A"}},null,{"$f":"INDEX(tbl_predefined_measures[COST_OM],MATCH($B57&regionid,tbl_predefined_measures[ID&REGION],0))","v":{"$error":"#N/A"}},{"$f":"INDEX(tbl_predefined_measures[COST_CAPITAL],MATCH($B57&regionid,tbl_predefined_measures[ID&REGION],0))","v":{"$error":"#N/A"}},null,null,{"$f":"INDEX(tbl_predefined_measures[SAVE_GPD],MATCH($B57&regionid,tbl_predefined_measures[ID&REGION],0))","v":{"$error":"#N/A"}},{"$f":"INDEX(tbl_predefined_measures[FREERIDE_PCT],MATCH($B57&regionid,tbl_predefined_measures[ID&REGION],0))","v":{"$error":"#N/A"}},{"$f":"INDEX(tbl_predefined_measures[DECAY_PCT],MATCH($B57&regionid,tbl_predefined_measures[ID&REGION],0))","v":{"$error":"#N/A"}},{"$f":"INDEX(tbl_predefined_measures[PLUMBCODE_YN],MATCH($B57&regionid,tbl_predefined_measures[ID&REGION],0))","v":{"$error":"#N/A"}},{"$f":"INDEX(tbl_predefined_measures[NRR_PCT],MATCH($B57&regionid,tbl_predefined_measures[ID&REGION],0))","v":{"$error":"#N/A"}},{"$f":"IF(V57=\"N\",INDEX(tbl_predefined_measures[LIFE_YRS],MATCH($B57&regionid,tbl_predefined_measures[ID&REGION],0)),99)","v":{"$error":"#N/A"}},null,{"$f":"SUM(O57:P57)","v":{"$error":"#N/A"}},{"$f":"IF(S57>0,(SUM(O57:P57)/(MP57*(1-T57)))*(MQ57-1)/(MQ57^X57-1),0)","v":{"$error":"#N/A"}},null,{"$f":"AVERAGE(KP57:KZ57)","v":{"$error":"#N/A"}},{"$f":"AVERAGE(LA57:LJ57)","v":{"$error":"#N/A"}},{"$f":"AVERAGE(LK57:LT57)","v":{"$error":"#N/A"}},{"$f":"AVERAGE(LU57:MD57)","v":{"$error":"#N/A"}},{"$f":"AVERAGE(ME57:MN57)","v":{"$error":"#N/A"}},null,{"$f":"F57/AVERAGE(IF(baseline_selection=1,'1. Baseline Demand Projection'!E$28:F$28,'1. Baseline Demand Projection'!N$28:O$28))","v":{"$error":"#DIV/0!"}},{"$f":"G57/AVERAGE(IF(baseline_selection=1,'1. Baseline Demand Projection'!F$28:G$28,'1. Baseline Demand Projection'!O$28:P$28))","v":{"$error":"#DIV/0!"}},{"$f":"H57/AVERAGE(IF(baseline_selection=1,'1. Baseline Demand Projection'!G$28:H$28,'1. Baseline Demand Projection'!P$28:Q$28))","v":{"$error":"#DIV/0!"}},{"$f":"I57/AVERAGE(IF(baseline_selection=1,'1. Baseline Demand Projection'!H$28:I$28,'1. Baseline Demand Projection'!Q$28:R$28))","v":{"$error":"#DIV/0!"}},{"$f":"J57/AVERAGE(IF(baseline_selection=1,'1. Baseline Demand Projection'!I$28:J$28,'1. Baseline Demand Projection'!R$28:S$28))","v":{"$error":"#DIV/0!"}},null,0,0,0,0,0,0,0,0,0,0,0,0,0,0,0,0,0,0,0,0,0,0,0,0,0,0,0,0,0,0,0,0,0,0,0,0,0,0,0,0,0,0,0,0,0,0,0,0,0,0,0,null,{"$f":"MeasureSavingsArray(AO57:CM57,S57,T57,U57,W57,X57,D57)","v":{"$error":"#VALUE!"}},{"$error":"#VALUE!"},{"$error":"#VALUE!"},{"$error":"#VALUE!"},{"$error":"#VALUE!"},{"$error":"#VALUE!"},{"$error":"#VALUE!"},{"$error":"#VALUE!"},{"$error":"#VALUE!"},{"$error":"#VALUE!"},{"$error":"#VALUE!"},{"$error":"#VALUE!"},{"$error":"#VALUE!"},{"$error":"#VALUE!"},{"$error":"#VALUE!"},{"$error":"#VALUE!"},{"$error":"#VALUE!"},{"$error":"#VALUE!"},{"$error":"#VALUE!"},{"$error":"#VALUE!"},{"$error":"#VALUE!"},{"$error":"#VALUE!"},{"$error":"#VALUE!"},{"$error":"#VALUE!"},{"$error":"#VALUE!"},{"$error":"#VALUE!"},{"$error":"#VALUE!"},{"$error":"#VALUE!"},{"$error":"#VALUE!"},{"$error":"#VALUE!"},{"$error":"#VALUE!"},{"$error":"#VALUE!"},{"$error":"#VALUE!"},{"$error":"#VALUE!"},{"$error":"#VALUE!"},{"$error":"#VALUE!"},{"$error":"#VALUE!"},{"$error":"#VALUE!"},{"$error":"#VALUE!"},{"$error":"#VALUE!"},{"$error":"#VALUE!"},{"$error":"#VALUE!"},{"$error":"#VALUE!"},{"$error":"#VALUE!"},{"$error":"#VALUE!"},{"$error":"#VALUE!"},{"$error":"#VALUE!"},{"$error":"#VALUE!"},{"$error":"#VALUE!"},{"$error":"#VALUE!"},{"$error":"#VALUE!"},{"$f":"CO57+NPV(discount_rate,CP57:EM57)","v":{"$error":"#VALUE!"}},null,{"$f":"$O57*AO57","v":{"$error":"#N/A"}},{"$f":"$O57*AP57","v":{"$error":"#N/A"}},{"$f":"$O57*AQ57","v":{"$error":"#N/A"}},{"$f":"$O57*AR57","v":{"$error":"#N/A"}},{"$f":"$O57*AS57","v":{"$error":"#N/A"}},{"$f":"$O57*AT57","v":{"$error":"#N/A"}},{"$f":"$O57*AU57","v":{"$error":"#N/A"}},{"$f":"$O57*AV57","v":{"$error":"#N/A"}},{"$f":"$O57*AW57","v":{"$error":"#N/A"}},{"$f":"$O57*AX57","v":{"$error":"#N/A"}},{"$f":"$O57*AY57","v":{"$error":"#N/A"}},{"$f":"$O57*AZ57","v":{"$error":"#N/A"}},{"$f":"$O57*BA57","v":{"$error":"#N/A"}},{"$f":"$O57*BB57","v":{"$error":"#N/A"}},{"$f":"$O57*BC57","v":{"$error":"#N/A"}},{"$f":"$O57*BD57","v":{"$error":"#N/A"}},{"$f":"$O57*BE57","v":{"$error":"#N/A"}},{"$f":"$O57*BF57","v":{"$error":"#N/A"}},{"$f":"$O57*BG57","v":{"$error":"#N/A"}},{"$f":"$O57*BH57","v":{"$error":"#N/A"}},{"$f":"$O57*BI57","v":{"$error":"#N/A"}},{"$f":"$O57*BJ57","v":{"$error":"#N/A"}},{"$f":"$O57*BK57","v":{"$error":"#N/A"}},{"$f":"$O57*BL57","v":{"$error":"#N/A"}},{"$f":"$O57*BM57","v":{"$error":"#N/A"}},{"$f":"$O57*BN57","v":{"$error":"#N/A"}},{"$f":"$O57*BO57","v":{"$error":"#N/A"}},{"$f":"$O57*BP57","v":{"$error":"#N/A"}},{"$f":"$O57*BQ57","v":{"$error":"#N/A"}},{"$f":"$O57*BR57","v":{"$error":"#N/A"}},{"$f":"$O57*BS57","v":{"$error":"#N/A"}},{"$f":"$O57*BT57","v":{"$error":"#N/A"}},{"$f":"$O57*BU57","v":{"$error":"#N/A"}},{"$f":"$O57*BV57","v":{"$error":"#N/A"}},{"$f":"$O57*BW57","v":{"$error":"#N/A"}},{"$f":"$O57*BX57","v":{"$error":"#N/A"}},{"$f":"$O57*BY57","v":{"$error":"#N/A"}},{"$f":"$O57*BZ57","v":{"$error":"#N/A"}},{"$f":"$O57*CA57","v":{"$error":"#N/A"}},{"$f":"$O57*CB57","v":{"$error":"#N/A"}},{"$f":"$O57*CC57","v":{"$error":"#N/A"}},{"$f":"$O57*CD57","v":{"$error":"#N/A"}},{"$f":"$O57*CE57","v":{"$error":"#N/A"}},{"$f":"$O57*CF57","v":{"$error":"#N/A"}},{"$f":"$O57*CG57","v":{"$error":"#N/A"}},{"$f":"$O57*CH57","v":{"$error":"#N/A"}},{"$f":"$O57*CI57","v":{"$error":"#N/A"}},{"$f":"$O57*CJ57","v":{"$error":"#N/A"}},{"$f":"$O57*CK57","v":{"$error":"#N/A"}},{"$f":"$O57*CL57","v":{"$error":"#N/A"}},{"$f":"$O57*CM57","v":{"$error":"#N/A"}},null,{"$f":"$P57*IF($Q57=\"N\",1,0)*AO57","v":{"$error":"#N/A"}},{"$f":"$P57*IF($Q57=\"N\",1,0)*AP57","v":{"$error":"#N/A"}},{"$f":"$P57*IF($Q57=\"N\",1,0)*AQ57","v":{"$error":"#N/A"}},{"$f":"$P57*IF($Q57=\"N\",1,0)*AR57","v":{"$error":"#N/A"}},{"$f":"$P57*IF($Q57=\"N\",1,0)*AS57","v":{"$error":"#N/A"}},{"$f":"$P57*IF($Q57=\"N\",1,0)*AT57","v":{"$error":"#N/A"}},{"$f":"$P57*IF($Q57=\"N\",1,0)*AU57","v":{"$error":"#N/A"}},{"$f":"$P57*IF($Q57=\"N\",1,0)*AV57","v":{"$error":"#N/A"}},{"$f":"$P57*IF($Q57=\"N\",1,0)*AW57","v":{"$error":"#N/A"}},{"$f":"$P57*IF($Q57=\"N\",1,0)*AX57","v":{"$error":"#N/A"}},{"$f":"$P57*IF($Q57=\"N\",1,0)*AY57","v":{"$error":"#N/A"}},{"$f":"$P57*IF($Q57=\"N\",1,0)*AZ57","v":{"$error":"#N/A"}},{"$f":"$P57*IF($Q57=\"N\",1,0)*BA57","v":{"$error":"#N/A"}},{"$f":"$P57*IF($Q57=\"N\",1,0)*BB57","v":{"$error":"#N/A"}},{"$f":"$P57*IF($Q57=\"N\",1,0)*BC57","v":{"$error":"#N/A"}},{"$f":"$P57*IF($Q57=\"N\",1,0)*BD57","v":{"$error":"#N/A"}},{"$f":"$P57*IF($Q57=\"N\",1,0)*BE57","v":{"$error":"#N/A"}},{"$f":"$P57*IF($Q57=\"N\",1,0)*BF57","v":{"$error":"#N/A"}},{"$f":"$P57*IF($Q57=\"N\",1,0)*BG57","v":{"$error":"#N/A"}},{"$f":"$P57*IF($Q57=\"N\",1,0)*BH57","v":{"$error":"#N/A"}},{"$f":"$P57*IF($Q57=\"N\",1,0)*BI57","v":{"$error":"#N/A"}},{"$f":"$P57*IF($Q57=\"N\",1,0)*BJ57","v":{"$error":"#N/A"}},{"$f":"$P57*IF($Q57=\"N\",1,0)*BK57","v":{"$error":"#N/A"}},{"$f":"$P57*IF($Q57=\"N\",1,0)*BL57","v":{"$error":"#N/A"}},{"$f":"$P57*IF($Q57=\"N\",1,0)*BM57","v":{"$error":"#N/A"}},{"$f":"$P57*IF($Q57=\"N\",1,0)*BN57","v":{"$error":"#N/A"}},{"$f":"$P57*IF($Q57=\"N\",1,0)*BO57","v":{"$error":"#N/A"}},{"$f":"$P57*IF($Q57=\"N\",1,0)*BP57","v":{"$error":"#N/A"}},{"$f":"$P57*IF($Q57=\"N\",1,0)*BQ57","v":{"$error":"#N/A"}},{"$f":"$P57*IF($Q57=\"N\",1,0)*BR57","v":{"$error":"#N/A"}},{"$f":"$P57*IF($Q57=\"N\",1,0)*BS57","v":{"$error":"#N/A"}},{"$f":"$P57*IF($Q57=\"N\",1,0)*BT57","v":{"$error":"#N/A"}},{"$f":"$P57*IF($Q57=\"N\",1,0)*BU57","v":{"$error":"#N/A"}},{"$f":"$P57*IF($Q57=\"N\",1,0)*BV57","v":{"$error":"#N/A"}},{"$f":"$P57*IF($Q57=\"N\",1,0)*BW57","v":{"$error":"#N/A"}},{"$f":"$P57*IF($Q57=\"N\",1,0)*BX57","v":{"$error":"#N/A"}},{"$f":"$P57*IF($Q57=\"N\",1,0)*BY57","v":{"$error":"#N/A"}},{"$f":"$P57*IF($Q57=\"N\",1,0)*BZ57","v":{"$error":"#N/A"}},{"$f":"$P57*IF($Q57=\"N\",1,0)*CA57","v":{"$error":"#N/A"}},{"$f":"$P57*IF($Q57=\"N\",1,0)*CB57","v":{"$error":"#N/A"}},{"$f":"$P57*IF($Q57=\"N\",1,0)*CC57","v":{"$error":"#N/A"}},{"$f":"$P57*IF($Q57=\"N\",1,0)*CD57","v":{"$error":"#N/A"}},{"$f":"$P57*IF($Q57=\"N\",1,0)*CE57","v":{"$error":"#N/A"}},{"$f":"$P57*IF($Q57=\"N\",1,0)*CF57","v":{"$error":"#N/A"}},{"$f":"$P57*IF($Q57=\"N\",1,0)*CG57","v":{"$error":"#N/A"}},{"$f":"$P57*IF($Q57=\"N\",1,0)*CH57","v":{"$error":"#N/A"}},{"$f":"$P57*IF($Q57=\"N\",1,0)*CI57","v":{"$error":"#N/A"}},{"$f":"$P57*IF($Q57=\"N\",1,0)*CJ57","v":{"$error":"#N/A"}},{"$f":"$P57*IF($Q57=\"N\",1,0)*CK57","v":{"$error":"#N/A"}},{"$f":"$P57*IF($Q57=\"N\",1,0)*CL57","v":{"$error":"#N/A"}},{"$f":"$P57*IF($Q57=\"N\",1,0)*CM57","v":{"$error":"#N/A"}},null,{"$f":"DebtServiceArray(AO57:CM57,P57,discount_rate,Q57,D57)","v":{"$error":"#VALUE!"}},{"$error":"#VALUE!"},{"$error":"#VALUE!"},{"$error":"#VALUE!"},{"$error":"#VALUE!"},{"$error":"#VALUE!"},{"$error":"#VALUE!"},{"$error":"#VALUE!"},{"$error":"#VALUE!"},{"$error":"#VALUE!"},{"$error":"#VALUE!"},{"$error":"#VALUE!"},{"$error":"#VALUE!"},{"$error":"#VALUE!"},{"$error":"#VALUE!"},{"$error":"#VALUE!"},{"$error":"#VALUE!"},{"$error":"#VALUE!"},{"$error":"#VALUE!"},{"$error":"#VALUE!"},{"$error":"#VALUE!"},{"$error":"#VALUE!"},{"$error":"#VALUE!"},{"$error":"#VALUE!"},{"$error":"#VALUE!"},{"$error":"#VALUE!"},{"$error":"#VALUE!"},{"$error":"#VALUE!"},{"$error":"#VALUE!"},{"$error":"#VALUE!"},{"$error":"#VALUE!"},{"$error":"#VALUE!"},{"$error":"#VALUE!"},{"$error":"#VALUE!"},{"$error":"#VALUE!"},{"$error":"#VALUE!"},{"$error":"#VALUE!"},{"$error":"#VALUE!"},{"$error":"#VALUE!"},{"$error":"#VALUE!"},{"$error":"#VALUE!"},{"$error":"#VALUE!"},{"$error":"#VALUE!"},{"$error":"#VALUE!"},{"$error":"#VALUE!"},{"$error":"#VALUE!"},{"$error":"#VALUE!"},{"$error":"#VALUE!"},{"$error":"#VALUE!"},{"$error":"#VALUE!"},{"$error":"#VALUE!"},null,{"$f":"SUM(EP57,GP57,IP57)","v":{"$error":"#N/A"}},{"$f":"SUM(EQ57,GQ57,IQ57)","v":{"$error":"#N/A"}},{"$f":"SUM(ER57,GR57,IR57)","v":{"$error":"#N/A"}},{"$f":"SUM(ES57,GS57,IS57)","v":{"$error":"#N/A"}},{"$f":"SUM(ET57,GT57,IT57)","v":{"$error":"#N/A"}},{"$f":"SUM(EU57,GU57,IU57)","v":{"$error":"#N/A"}},{"$f":"SUM(EV57,GV57,IV57)","v":{"$error":"#N/A"}},{"$f":"SUM(EW57,GW57,IW57)","v":{"$error":"#N/A"}},{"$f":"SUM(EX57,GX57,IX57)","v":{"$error":"#N/A"}},{"$f":"SUM(EY57,GY57,IY57)","v":{"$error":"#N/A"}},{"$f":"SUM(EZ57,GZ57,IZ57)","v":{"$error":"#N/A"}},{"$f":"SUM(FA57,HA57,JA57)","v":{"$error":"#N/A"}},{"$f":"SUM(FB57,HB57,JB57)","v":{"$error":"#N/A"}},{"$f":"SUM(FC57,HC57,JC57)","v":{"$error":"#N/A"}},{"$f":"SUM(FD57,HD57,JD57)","v":{"$error":"#N/A"}},{"$f":"SUM(FE57,HE57,JE57)","v":{"$error":"#N/A"}},{"$f":"SUM(FF57,HF57,JF57)","v":{"$error":"#N/A"}},{"$f":"SUM(FG57,HG57,JG57)","v":{"$error":"#N/A"}},{"$f":"SUM(FH57,HH57,JH57)","v":{"$error":"#N/A"}},{"$f":"SUM(FI57,HI57,JI57)","v":{"$error":"#N/A"}},{"$f":"SUM(FJ57,HJ57,JJ57)","v":{"$error":"#N/A"}},{"$f":"SUM(FK57,HK57,JK57)","v":{"$error":"#N/A"}},{"$f":"SUM(FL57,HL57,JL57)","v":{"$error":"#N/A"}},{"$f":"SUM(FM57,HM57,JM57)","v":{"$error":"#N/A"}},{"$f":"SUM(FN57,HN57,JN57)","v":{"$error":"#N/A"}},{"$f":"SUM(FO57,HO57,JO57)","v":{"$error":"#N/A"}},{"$f":"SUM(FP57,HP57,JP57)","v":{"$error":"#N/A"}},{"$f":"SUM(FQ57,HQ57,JQ57)","v":{"$error":"#N/A"}},{"$f":"SUM(FR57,HR57,JR57)","v":{"$error":"#N/A"}},{"$f":"SUM(FS57,HS57,JS57)","v":{"$error":"#N/A"}},{"$f":"SUM(FT57,HT57,JT57)","v":{"$error":"#N/A"}},{"$f":"SUM(FU57,HU57,JU57)","v":{"$error":"#N/A"}},{"$f":"SUM(FV57,HV57,JV57)","v":{"$error":"#N/A"}},{"$f":"SUM(FW57,HW57,JW57)","v":{"$error":"#N/A"}},{"$f":"SUM(FX57,HX57,JX57)","v":{"$error":"#N/A"}},{"$f":"SUM(FY57,HY57,JY57)","v":{"$error":"#N/A"}},{"$f":"SUM(FZ57,HZ57,JZ57)","v":{"$error":"#N/A"}},{"$f":"SUM(GA57,IA57,KA57)","v":{"$error":"#N/A"}},{"$f":"SUM(GB57,IB57,KB57)","v":{"$error":"#N/A"}},{"$f":"SUM(GC57,IC57,KC57)","v":{"$error":"#N/A"}},{"$f":"SUM(GD57,ID57,KD57)","v":{"$error":"#N/A"}},{"$f":"SUM(GE57,IE57,KE57)","v":{"$error":"#N/A"}},{"$f":"SUM(GF57,IF57,KF57)","v":{"$error":"#N/A"}},{"$f":"SUM(GG57,IG57,KG57)","v":{"$error":"#N/A"}},{"$f":"SUM(GH57,IH57,KH57)","v":{"$error":"#N/A"}},{"$f":"SUM(GI57,II57,KI57)","v":{"$error":"#N/A"}},{"$f":"SUM(GJ57,IJ57,KJ57)","v":{"$error":"#N/A"}},{"$f":"SUM(GK57,IK57,KK57)","v":{"$error":"#N/A"}},{"$f":"SUM(GL57,IL57,KL57)","v":{"$error":"#N/A"}},{"$f":"SUM(GM57,IM57,KM57)","v":{"$error":"#N/A"}},{"$f":"SUM(GN57,IN57,KN57)","v":{"$error":"#N/A"}},null,{"$f":"S57*365/325851","v":{"$error":"#N/A"}},{"$f":"(1-U57)*(1-W57)/(1+discount_rate)","v":{"$error":"#N/A"}}]
[null,"PRE-ICI-12",{"$f":"INDEX(tbl_predefined_measures[MEASURE],MATCH($B58&regionid,tbl_predefined_measures[ID&REGION],0))","v":{"$error":"#N/A"}},"N",null,null,null,null,null,null,null,{"$f":"INDEX(tbl_predefined_measures[ACCOUNTING_UNIT],MATCH($B58&regionid,tbl_predefined_measures[ID&REGION],0))","v":{"$error":"#N/A"}},{"$f":"INDEX(tbl_predefined_measures[DELIVERY],MATCH($B58&regionid,tbl_predefined_measures[ID&REGION],0))","v":{"$error":"#N/A"}},null,{"$f":"INDEX(tbl_predefined_measures[COST_OM],MATCH($B58&regionid,tbl_predefined_measures[ID&REGION],0))","v":{"$error":"#N/A"}},{"$f":"INDEX(tbl_predefined_measures[COST_CAPITAL],MATCH($B58&regionid,tbl_predefined_measures[ID&REGION],0))","v":{"$error":"#N/A"}},null,null,{"$f":"INDEX(tbl_predefined_measures[SAVE_GPD],MATCH($B58&regionid,tbl_predefined_measures[ID&REGION],0))","v":{"$error":"#N/A"}},{"$f":"INDEX(tbl_predefined_measures[FREERIDE_PCT],MATCH($B58&regionid,tbl_predefined_measures[ID&REGION],0))","v":{"$error":"#N/A"}},{"$f":"INDEX(tbl_predefined_measures[DECAY_PCT],MATCH($B58&regionid,tbl_predefined_measures[ID&REGION],0))","v":{"$error":"#N/A"}},{"$f":"INDEX(tbl_predefined_measures[PLUMBCODE_YN],MATCH($B58&regionid,tbl_predefined_measures[ID&REGION],0))","v":{"$error":"#N/A"}},{"$f":"INDEX(tbl_predefined_measures[NRR_PCT],MATCH($B58&regionid,tbl_predefined_measures[ID&REGION],0))","v":{"$error":"#N/A"}},{"$f":"IF(V58=\"N\",INDEX(tbl_predefined_measures[LIFE_YRS],MATCH($B58&regionid,tbl_predefined_measures[ID&REGION],0)),99)","v":{"$error":"#N/A"}},null,{"$f":"SUM(O58:P58)","v":{"$error":"#N/A"}},{"$f":"IF(S58>0,(SUM(O58:P58)/(MP58*(1-T58)))*(MQ58-1)/(MQ58^X58-1),0)","v":{"$error":"#N/A"}},null,{"$f":"AVERAGE(KP58:KZ58)","v":{"$error":"#N/A"}},{"$f":"AVERAGE(LA58:LJ58)","v":{"$error":"#N/A"}},{"$f":"AVERAGE(LK58:LT58)","v":{"$error":"#N/A"}},{"$f":"AVERAGE(LU58:MD58)","v":{"$error":"#N/A"}},{"$f":"AVERAGE(ME58:MN58)","v":{"$error":"#N/A"}},null,{"$f":"F58/AVERAGE(IF(baseline_selection=1,'1. Baseline Demand Projection'!E$28:F$28,'1. Baseline Demand Projection'!N$28:O$28))","v":{"$error":"#DIV/0!"}},{"$f":"G58/AVERAGE(IF(baseline_selection=1,'1. Baseline Demand Projection'!F$28:G$28,'1. Baseline Demand Projection'!O$28:P$28))","v":{"$error":"#DIV/0!"}},{"$f":"H58/AVERAGE(IF(baseline_selection=1,'1. Baseline Demand Projection'!G$28:H$28,'1. Baseline Demand Projection'!P$28:Q$28))","v":{"$error":"#DIV/0!"}},{"$f":"I58/AVERAGE(IF(baseline_selection=1,'1. Baseline Demand Projection'!H$28:I$28,'1. Baseline Demand Projection'!Q$28:R$28))","v":{"$error":"#DIV/0!"}},{"$f":"J58/AVERAGE(IF(baseline_selection=1,'1. Baseline Demand Projection'!I$28:J$28,'1. Baseline Demand Projection'!R$28:S$28))","v":{"$error":"#DIV/0!"}},null,0,0,0,0,0,0,0,0,0,0,0,0,0,0,0,0,0,0,0,0,0,0,0,0,0,0,0,0,0,0,0,0,0,0,0,0,0,0,0,0,0,0,0,0,0,0,0,0,0,0,0,null,{"$f":"MeasureSavingsArray(AO58:CM58,S58,T58,U58,W58,X58,D58)","v":{"$error":"#VALUE!"}},{"$error":"#VALUE!"},{"$error":"#VALUE!"},{"$error":"#VALUE!"},{"$error":"#VALUE!"},{"$error":"#VALUE!"},{"$error":"#VALUE!"},{"$error":"#VALUE!"},{"$error":"#VALUE!"},{"$error":"#VALUE!"},{"$error":"#VALUE!"},{"$error":"#VALUE!"},{"$error":"#VALUE!"},{"$error":"#VALUE!"},{"$error":"#VALUE!"},{"$error":"#VALUE!"},{"$error":"#VALUE!"},{"$error":"#VALUE!"},{"$error":"#VALUE!"},{"$error":"#VALUE!"},{"$error":"#VALUE!"},{"$error":"#VALUE!"},{"$error":"#VALUE!"},{"$error":"#VALUE!"},{"$error":"#VALUE!"},{"$error":"#VALUE!"},{"$error":"#VALUE!"},{"$error":"#VALUE!"},{"$error":"#VALUE!"},{"$error":"#VALUE!"},{"$error":"#VALUE!"},{"$error":"#VALUE!"},{"$error":"#VALUE!"},{"$error":"#VALUE!"},{"$error":"#VALUE!"},{"$error":"#VALUE!"},{"$error":"#VALUE!"},{"$error":"#VALUE!"},{"$error":"#VALUE!"},{"$error":"#VALUE!"},{"$error":"#VALUE!"},{"$error":"#VALUE!"},{"$error":"#VALUE!"},{"$error":"#VALUE!"},{"$error":"#VALUE!"},{"$error":"#VALUE!"},{"$error":"#VALUE!"},{"$error":"#VALUE!"},{"$error":"#VALUE!"},{"$error":"#VALUE!"},{"$error":"#VALUE!"},{"$f":"CO58+NPV(discount_rate,CP58:EM58)","v":{"$error":"#VALUE!"}},null,{"$f":"$O58*AO58","v":{"$error":"#N/A"}},{"$f":"$O58*AP58","v":{"$error":"#N/A"}},{"$f":"$O58*AQ58","v":{"$error":"#N/A"}},{"$f":"$O58*AR58","v":{"$error":"#N/A"}},{"$f":"$O58*AS58","v":{"$error":"#N/A"}},{"$f":"$O58*AT58","v":{"$error":"#N/A"}},{"$f":"$O58*AU58","v":{"$error":"#N/A"}},{"$f":"$O58*AV58","v":{"$error":"#N/A"}},{"$f":"$O58*AW58","v":{"$error":"#N/A"}},{"$f":"$O58*AX58","v":{"$error":"#N/A"}},{"$f":"$O58*AY58","v":{"$error":"#N/A"}},{"$f":"$O58*AZ58","v":{"$error":"#N/A"}},{"$f":"$O58*BA58","v":{"$error":"#N/A"}},{"$f":"$O58*BB58","v":{"$error":"#N/A"}},{"$f":"$O58*BC58","v":{"$error":"#N/A"}},{"$f":"$O58*BD58","v":{"$error":"#N/A"}},{"$f":"$O58*BE58","v":{"$error":"#N/A"}},{"$f":"$O58*BF58","v":{"$error":"#N/A"}},{"$f":"$O58*BG58","v":{"$error":"#N/A"}},{"$f":"$O58*BH58","v":{"$error":"#N/A"}},{"$f":"$O58*BI58","v":{"$error":"#N/A"}},{"$f":"$O58*BJ58","v":{"$error":"#N/A"}},{"$f":"$O58*BK58","v":{"$error":"#N/A"}},{"$f":"$O58*BL58","v":{"$error":"#N/A"}},{"$f":"$O58*BM58","v":{"$error":"#N/A"}},{"$f":"$O58*BN58","v":{"$error":"#N/A"}},{"$f":"$O58*BO58","v":{"$error":"#N/A"}},{"$f":"$O58*BP58","v":{"$error":"#N/A"}},{"$f":"$O58*BQ58","v":{"$error":"#N/A"}},{"$f":"$O58*BR58","v":{"$error":"#N/A"}},{"$f":"$O58*BS58","v":{"$error":"#N/A"}},{"$f":"$O58*BT58","v":{"$error":"#N/A"}},{"$f":"$O58*BU58","v":{"$error":"#N/A"}},{"$f":"$O58*BV58","v":{"$error":"#N/A"}},{"$f":"$O58*BW58","v":{"$error":"#N/A"}},{"$f":"$O58*BX58","v":{"$error":"#N/A"}},{"$f":"$O58*BY58","v":{"$error":"#N/A"}},{"$f":"$O58*BZ58","v":{"$error":"#N/A"}},{"$f":"$O58*CA58","v":{"$error":"#N/A"}},{"$f":"$O58*CB58","v":{"$error":"#N/A"}},{"$f":"$O58*CC58","v":{"$error":"#N/A"}},{"$f":"$O58*CD58","v":{"$error":"#N/A"}},{"$f":"$O58*CE58","v":{"$error":"#N/A"}},{"$f":"$O58*CF58","v":{"$error":"#N/A"}},{"$f":"$O58*CG58","v":{"$error":"#N/A"}},{"$f":"$O58*CH58","v":{"$error":"#N/A"}},{"$f":"$O58*CI58","v":{"$error":"#N/A"}},{"$f":"$O58*CJ58","v":{"$error":"#N/A"}},{"$f":"$O58*CK58","v":{"$error":"#N/A"}},{"$f":"$O58*CL58","v":{"$error":"#N/A"}},{"$f":"$O58*CM58","v":{"$error":"#N/A"}},null,{"$f":"$P58*IF($Q58=\"N\",1,0)*AO58","v":{"$error":"#N/A"}},{"$f":"$P58*IF($Q58=\"N\",1,0)*AP58","v":{"$error":"#N/A"}},{"$f":"$P58*IF($Q58=\"N\",1,0)*AQ58","v":{"$error":"#N/A"}},{"$f":"$P58*IF($Q58=\"N\",1,0)*AR58","v":{"$error":"#N/A"}},{"$f":"$P58*IF($Q58=\"N\",1,0)*AS58","v":{"$error":"#N/A"}},{"$f":"$P58*IF($Q58=\"N\",1,0)*AT58","v":{"$error":"#N/A"}},{"$f":"$P58*IF($Q58=\"N\",1,0)*AU58","v":{"$error":"#N/A"}},{"$f":"$P58*IF($Q58=\"N\",1,0)*AV58","v":{"$error":"#N/A"}},{"$f":"$P58*IF($Q58=\"N\",1,0)*AW58","v":{"$error":"#N/A"}},{"$f":"$P58*IF($Q58=\"N\",1,0)*AX58","v":{"$error":"#N/A"}},{"$f":"$P58*IF($Q58=\"N\",1,0)*AY58","v":{"$error":"#N/A"}},{"$f":"$P58*IF($Q58=\"N\",1,0)*AZ58","v":{"$error":"#N/A"}},{"$f":"$P58*IF($Q58=\"N\",1,0)*BA58","v":{"$error":"#N/A"}},{"$f":"$P58*IF($Q58=\"N\",1,0)*BB58","v":{"$error":"#N/A"}},{"$f":"$P58*IF($Q58=\"N\",1,0)*BC58","v":{"$error":"#N/A"}},{"$f":"$P58*IF($Q58=\"N\",1,0)*BD58","v":{"$error":"#N/A"}},{"$f":"$P58*IF($Q58=\"N\",1,0)*BE58","v":{"$error":"#N/A"}},{"$f":"$P58*IF($Q58=\"N\",1,0)*BF58","v":{"$error":"#N/A"}},{"$f":"$P58*IF($Q58=\"N\",1,0)*BG58","v":{"$error":"#N/A"}},{"$f":"$P58*IF($Q58=\"N\",1,0)*BH58","v":{"$error":"#N/A"}},{"$f":"$P58*IF($Q58=\"N\",1,0)*BI58","v":{"$error":"#N/A"}},{"$f":"$P58*IF($Q58=\"N\",1,0)*BJ58","v":{"$error":"#N/A"}},{"$f":"$P58*IF($Q58=\"N\",1,0)*BK58","v":{"$error":"#N/A"}},{"$f":"$P58*IF($Q58=\"N\",1,0)*BL58","v":{"$error":"#N/A"}},{"$f":"$P58*IF($Q58=\"N\",1,0)*BM58","v":{"$error":"#N/A"}},{"$f":"$P58*IF($Q58=\"N\",1,0)*BN58","v":{"$error":"#N/A"}},{"$f":"$P58*IF($Q58=\"N\",1,0)*BO58","v":{"$error":"#N/A"}},{"$f":"$P58*IF($Q58=\"N\",1,0)*BP58","v":{"$error":"#N/A"}},{"$f":"$P58*IF($Q58=\"N\",1,0)*BQ58","v":{"$error":"#N/A"}},{"$f":"$P58*IF($Q58=\"N\",1,0)*BR58","v":{"$error":"#N/A"}},{"$f":"$P58*IF($Q58=\"N\",1,0)*BS58","v":{"$error":"#N/A"}},{"$f":"$P58*IF($Q58=\"N\",1,0)*BT58","v":{"$error":"#N/A"}},{"$f":"$P58*IF($Q58=\"N\",1,0)*BU58","v":{"$error":"#N/A"}},{"$f":"$P58*IF($Q58=\"N\",1,0)*BV58","v":{"$error":"#N/A"}},{"$f":"$P58*IF($Q58=\"N\",1,0)*BW58","v":{"$error":"#N/A"}},{"$f":"$P58*IF($Q58=\"N\",1,0)*BX58","v":{"$error":"#N/A"}},{"$f":"$P58*IF($Q58=\"N\",1,0)*BY58","v":{"$error":"#N/A"}},{"$f":"$P58*IF($Q58=\"N\",1,0)*BZ58","v":{"$error":"#N/A"}},{"$f":"$P58*IF($Q58=\"N\",1,0)*CA58","v":{"$error":"#N/A"}},{"$f":"$P58*IF($Q58=\"N\",1,0)*CB58","v":{"$error":"#N/A"}},{"$f":"$P58*IF($Q58=\"N\",1,0)*CC58","v":{"$error":"#N/A"}},{"$f":"$P58*IF($Q58=\"N\",1,0)*CD58","v":{"$error":"#N/A"}},{"$f":"$P58*IF($Q58=\"N\",1,0)*CE58","v":{"$error":"#N/A"}},{"$f":"$P58*IF($Q58=\"N\",1,0)*CF58","v":{"$error":"#N/A"}},{"$f":"$P58*IF($Q58=\"N\",1,0)*CG58","v":{"$error":"#N/A"}},{"$f":"$P58*IF($Q58=\"N\",1,0)*CH58","v":{"$error":"#N/A"}},{"$f":"$P58*IF($Q58=\"N\",1,0)*CI58","v":{"$error":"#N/A"}},{"$f":"$P58*IF($Q58=\"N\",1,0)*CJ58","v":{"$error":"#N/A"}},{"$f":"$P58*IF($Q58=\"N\",1,0)*CK58","v":{"$error":"#N/A"}},{"$f":"$P58*IF($Q58=\"N\",1,0)*CL58","v":{"$error":"#N/A"}},{"$f":"$P58*IF($Q58=\"N\",1,0)*CM58","v":{"$error":"#N/A"}},null,{"$f":"DebtServiceArray(AO58:CM58,P58,discount_rate,Q58,D58)","v":{"$error":"#VALUE!"}},{"$error":"#VALUE!"},{"$error":"#VALUE!"},{"$error":"#VALUE!"},{"$error":"#VALUE!"},{"$error":"#VALUE!"},{"$error":"#VALUE!"},{"$error":"#VALUE!"},{"$error":"#VALUE!"},{"$error":"#VALUE!"},{"$error":"#VALUE!"},{"$error":"#VALUE!"},{"$error":"#VALUE!"},{"$error":"#VALUE!"},{"$error":"#VALUE!"},{"$error":"#VALUE!"},{"$error":"#VALUE!"},{"$error":"#VALUE!"},{"$error":"#VALUE!"},{"$error":"#VALUE!"},{"$error":"#VALUE!"},{"$error":"#VALUE!"},{"$error":"#VALUE!"},{"$error":"#VALUE!"},{"$error":"#VALUE!"},{"$error":"#VALUE!"},{"$error":"#VALUE!"},{"$error":"#VALUE!"},{"$error":"#VALUE!"},{"$error":"#VALUE!"},{"$error":"#VALUE!"},{"$error":"#VALUE!"},{"$error":"#VALUE!"},{"$error":"#VALUE!"},{"$error":"#VALUE!"},{"$error":"#VALUE!"},{"$error":"#VALUE!"},{"$error":"#VALUE!"},{"$error":"#VALUE!"},{"$error":"#VALUE!"},{"$error":"#VALUE!"},{"$error":"#VALUE!"},{"$error":"#VALUE!"},{"$error":"#VALUE!"},{"$error":"#VALUE!"},{"$error":"#VALUE!"},{"$error":"#VALUE!"},{"$error":"#VALUE!"},{"$error":"#VALUE!"},{"$error":"#VALUE!"},{"$error":"#VALUE!"},null,{"$f":"SUM(EP58,GP58,IP58)","v":{"$error":"#N/A"}},{"$f":"SUM(EQ58,GQ58,IQ58)","v":{"$error":"#N/A"}},{"$f":"SUM(ER58,GR58,IR58)","v":{"$error":"#N/A"}},{"$f":"SUM(ES58,GS58,IS58)","v":{"$error":"#N/A"}},{"$f":"SUM(ET58,GT58,IT58)","v":{"$error":"#N/A"}},{"$f":"SUM(EU58,GU58,IU58)","v":{"$error":"#N/A"}},{"$f":"SUM(EV58,GV58,IV58)","v":{"$error":"#N/A"}},{"$f":"SUM(EW58,GW58,IW58)","v":{"$error":"#N/A"}},{"$f":"SUM(EX58,GX58,IX58)","v":{"$error":"#N/A"}},{"$f":"SUM(EY58,GY58,IY58)","v":{"$error":"#N/A"}},{"$f":"SUM(EZ58,GZ58,IZ58)","v":{"$error":"#N/A"}},{"$f":"SUM(FA58,HA58,JA58)","v":{"$error":"#N/A"}},{"$f":"SUM(FB58,HB58,JB58)","v":{"$error":"#N/A"}},{"$f":"SUM(FC58,HC58,JC58)","v":{"$error":"#N/A"}},{"$f":"SUM(FD58,HD58,JD58)","v":{"$error":"#N/A"}},{"$f":"SUM(FE58,HE58,JE58)","v":{"$error":"#N/A"}},{"$f":"SUM(FF58,HF58,JF58)","v":{"$error":"#N/A"}},{"$f":"SUM(FG58,HG58,JG58)","v":{"$error":"#N/A"}},{"$f":"SUM(FH58,HH58,JH58)","v":{"$error":"#N/A"}},{"$f":"SUM(FI58,HI58,JI58)","v":{"$error":"#N/A"}},{"$f":"SUM(FJ58,HJ58,JJ58)","v":{"$error":"#N/A"}},{"$f":"SUM(FK58,HK58,JK58)","v":{"$error":"#N/A"}},{"$f":"SUM(FL58,HL58,JL58)","v":{"$error":"#N/A"}},{"$f":"SUM(FM58,HM58,JM58)","v":{"$error":"#N/A"}},{"$f":"SUM(FN58,HN58,JN58)","v":{"$error":"#N/A"}},{"$f":"SUM(FO58,HO58,JO58)","v":{"$error":"#N/A"}},{"$f":"SUM(FP58,HP58,JP58)","v":{"$error":"#N/A"}},{"$f":"SUM(FQ58,HQ58,JQ58)","v":{"$error":"#N/A"}},{"$f":"SUM(FR58,HR58,JR58)","v":{"$error":"#N/A"}},{"$f":"SUM(FS58,HS58,JS58)","v":{"$error":"#N/A"}},{"$f":"SUM(FT58,HT58,JT58)","v":{"$error":"#N/A"}},{"$f":"SUM(FU58,HU58,JU58)","v":{"$error":"#N/A"}},{"$f":"SUM(FV58,HV58,JV58)","v":{"$error":"#N/A"}},{"$f":"SUM(FW58,HW58,JW58)","v":{"$error":"#N/A"}},{"$f":"SUM(FX58,HX58,JX58)","v":{"$error":"#N/A"}},{"$f":"SUM(FY58,HY58,JY58)","v":{"$error":"#N/A"}},{"$f":"SUM(FZ58,HZ58,JZ58)","v":{"$error":"#N/A"}},{"$f":"SUM(GA58,IA58,KA58)","v":{"$error":"#N/A"}},{"$f":"SUM(GB58,IB58,KB58)","v":{"$error":"#N/A"}},{"$f":"SUM(GC58,IC58,KC58)","v":{"$error":"#N/A"}},{"$f":"SUM(GD58,ID58,KD58)","v":{"$error":"#N/A"}},{"$f":"SUM(GE58,IE58,KE58)","v":{"$error":"#N/A"}},{"$f":"SUM(GF58,IF58,KF58)","v":{"$error":"#N/A"}},{"$f":"SUM(GG58,IG58,KG58)","v":{"$error":"#N/A"}},{"$f":"SUM(GH58,IH58,KH58)","v":{"$error":"#N/A"}},{"$f":"SUM(GI58,II58,KI58)","v":{"$error":"#N/A"}},{"$f":"SUM(GJ58,IJ58,KJ58)","v":{"$error":"#N/A"}},{"$f":"SUM(GK58,IK58,KK58)","v":{"$error":"#N/A"}},{"$f":"SUM(GL58,IL58,KL58)","v":{"$error":"#N/A"}},{"$f":"SUM(GM58,IM58,KM58)","v":{"$error":"#N/A"}},{"$f":"SUM(GN58,IN58,KN58)","v":{"$error":"#N/A"}},null,{"$f":"S58*365/325851","v":{"$error":"#N/A"}},{"$f":"(1-U58)*(1-W58)/(1+discount_rate)","v":{"$error":"#N/A"}}]
[null,null,null,null,null,null,null,null,null,null,null,null,null,null,null,null,null,null,null,null,null,null,null,null,null,null,null,null,null,null,null,null,null,null,null,null,null,null,null,null,null,null,null,null,null,null,null,null,null,null,null,null,null,null,null,null,null,null,null,null,null,null,null,null,null,null,null,null,null,null,null,null,null,null,null,null,null,null,null,null,null,null,null,null,null,null,null,null,null,null,null,null,{"$f":"SUM(CO47:CO58)","v":{"$error":"#VALUE!"}},{"$f":"SUM(CP47:CP58)","v":{"$error":"#VALUE!"}},{"$error":"#VALUE!"},{"$error":"#VALUE!"},{"$error":"#VALUE!"},{"$error":"#VALUE!"},{"$error":"#VALUE!"},{"$error":"#VALUE!"},{"$error":"#VALUE!"},{"$error":"#VALUE!"},{"$error":"#VALUE!"},{"$error":"#VALUE!"},{"$error":"#VALUE!"},{"$error":"#VALUE!"},{"$error":"#VALUE!"},{"$error":"#VALUE!"},{"$error":"#VALUE!"},{"$error":"#VALUE!"},{"$error":"#VALUE!"},{"$error":"#VALUE!"},{"$error":"#VALUE!"},{"$error":"#VALUE!"},{"$error":"#VALUE!"},{"$error":"#VALUE!"},{"$error":"#VALUE!"},{"$error":"#VALUE!"},{"$error":"#VALUE!"},{"$error":"#VALUE!"},{"$error":"#VALUE!"},{"$error":"#VALUE!"},{"$error":"#VALUE!"},{"$error":"#VALUE!"},{"$error":"#VALUE!"},{"$error":"#VALUE!"},{"$error":"#VALUE!"},{"$error":"#VALUE!"},{"$error":"#VALUE!"},{"$error":"#VALUE!"},{"$error":"#VALUE!"},{"$error":"#VALUE!"},{"$error":"#VALUE!"},{"$error":"#VALUE!"},{"$error":"#VALUE!"},{"$error":"#VALUE!"},{"$error":"#VALUE!"},{"$error":"#VALUE!"},{"$error":"#VALUE!"},{"$error":"#VALUE!"},{"$error":"#VALUE!"},{"$error":"#VALUE!"},{"$error":"#VALUE!"},{"$error":"#VALUE!"},null,{"$f":"SUM(EP47:EP58)","v":{"$error":"#N/A"}},{"$f":"SUM(EQ47:EQ58)","v":{"$error":"#N/A"}},{"$error":"#N/A"},{"$error":"#N/A"},{"$error":"#N/A"},{"$error":"#N/A"},{"$error":"#N/A"},{"$error":"#N/A"},{"$error":"#N/A"},{"$error":"#N/A"},{"$error":"#N/A"},{"$error":"#N/A"},{"$error":"#N/A"},{"$error":"#N/A"},{"$error":"#N/A"},{"$error":"#N/A"},{"$error":"#N/A"},{"$error":"#N/A"},{"$error":"#N/A"},{"$error":"#N/A"},{"$error":"#N/A"},{"$error":"#N/A"},{"$error":"#N/A"},{"$error":"#N/A"},{"$error":"#N/A"},{"$error":"#N/A"},{"$error":"#N/A"},{"$error":"#N/A"},{"$error":"#N/A"},{"$error":"#N/A"},{"$error":"#N/A"},{"$error":"#N/A"},{"$error":"#N/A"},{"$error":"#N/A"},{"$error":"#N/A"},{"$error":"#N/A"},{"$error":"#N/A"},{"$error":"#N/A"},{"$error":"#N/A"},{"$error":"#N/A"},{"$error":"#N/A"},{"$error":"#N/A"},{"$error":"#N/A"},{"$error":"#N/A"},{"$error":"#N/A"},{"$error":"#N/A"},{"$error":"#N/A"},{"$error":"#N/A"},{"$error":"#N/A"},{"$error":"#N/A"},{"$error":"#N/A"},null,{"$f":"SUM(GP47:GP58)","v":{"$error":"#N/A"}},{"$f":"SUM(GQ47:GQ58)","v":{"$error":"#N/A"}},{"$error":"#N/A"},{"$error":"#N/A"},{"$error":"#N/A"},{"$error":"#N/A"},{"$error":"#N/A"},{"$error":"#N/A"},{"$error":"#N/A"},{"$error":"#N/A"},{"$error":"#N/A"},{"$error":"#N/A"},{"$error":"#N/A"},{"$error":"#N/A"},{"$error":"#N/A"},{"$error":"#N/A"},{"$error":"#N/A"},{"$error":"#N/A"},{"$error":"#N/A"},{"$error":"#N/A"},{"$error":"#N/A"},{"$error":"#N/A"},{"$error":"#N/A"},{"$error":"#N/A"},{"$error":"#N/A"},{"$error":"#N/A"},{"$error":"#N/A"},{"$error":"#N/A"},{"$error":"#N/A"},{"$error":"#N/A"},{"$error":"#N/A"},{"$error":"#N/A"},{"$error":"#N/A"},{"$error":"#N/A"},{"$error":"#N/A"},{"$error":"#N/A"},{"$error":"#N/A"},{"$error":"#N/A"},{"$error":"#N/A"},{"$error":"#N/A"},{"$error":"#N/A"},{"$error":"#N/A"},{"$error":"#N/A"},{"$error":"#N/A"},{"$error":"#N/A"},{"$error":"#N/A"},{"$error":"#N/A"},{"$error":"#N/A"},{"$error":"#N/A"},{"$error":"#N/A"},{"$error":"#N/A"},null,{"$f":"SUM(IP47:IP58)","v":{"$error":"#VALUE!"}},{"$f":"SUM(IQ47:IQ58)","v":{"$error":"#VALUE!"}},{"$error":"#VALUE!"},{"$error":"#VALUE!"},{"$error":"#VALUE!"},{"$error":"#VALUE!"},{"$error":"#VALUE!"},{"$error":"#VALUE!"},{"$error":"#VALUE!"},{"$error":"#VALUE!"},{"$error":"#VALUE!"},{"$error":"#VALUE!"},{"$error":"#VALUE!"},{"$error":"#VALUE!"},{"$error":"#VALUE!"},{"$error":"#VALUE!"},{"$error":"#VALUE!"},{"$error":"#VALUE!"},{"$error":"#VALUE!"},{"$error":"#VALUE!"},{"$error":"#VALUE!"},{"$error":"#VALUE!"},{"$error":"#VALUE!"},{"$error":"#VALUE!"},{"$error":"#VALUE!"},{"$error":"#VALUE!"},{"$error":"#VALUE!"},{"$error":"#VALUE!"},{"$error":"#VALUE!"},{"$error":"#VALUE!"},{"$error":"#VALUE!"},{"$error":"#VALUE!"},{"$error":"#VALUE!"},{"$error":"#VALUE!"},{"$error":"#VALUE!"},{"$error":"#VALUE!"},{"$error":"#VALUE!"},{"$error":"#VALUE!"},{"$error":"#VALUE!"},{"$error":"#VALUE!"},{"$error":"#VALUE!"},{"$error":"#VALUE!"},{"$error":"#VALUE!"},{"$error":"#VALUE!"},{"$error":"#VALUE!"},{"$error":"#VALUE!"},{"$error":"#VALUE!"},{"$error":"#VALUE!"},{"$error":"#VALUE!"},{"$error":"#VALUE!"},{"$error":"#VALUE!"},null,{"$f":"SUM(KP47:KP58)","v":{"$error":"#N/A"}},{"$f":"SUM(KQ47:KQ58)","v":{"$error":"#N/A"}},{"$error":"#N/A"},{"$error":"#N/A"},{"$error":"#N/A"},{"$error":"#N/A"},{"$error":"#N/A"},{"$error":"#N/A"},{"$error":"#N/A"},{"$error":"#N/A"},{"$error":"#N/A"},{"$error":"#N/A"},{"$error":"#N/A"},{"$error":"#N/A"},{"$error":"#N/A"},{"$error":"#N/A"},{"$error":"#N/A"},{"$error":"#N/A"},{"$error":"#N/A"},{"$error":"#N/A"},{"$error":"#N/A"},{"$error":"#N/A"},{"$error":"#N/A"},{"$error":"#N/A"},{"$error":"#N/A"},{"$error":"#N/A"},{"$error":"#N/A"},{"$error":"#N/A"},{"$error":"#N/A"},{"$error":"#N/A"},{"$error":"#N/A"},{"$error":"#N/A"},{"$error":"#N/A"},{"$error":"#N/A"},{"$error":"#N/A"},{"$error":"#N/A"},{"$error":"#N/A"},{"$error":"#N/A"},{"$error":"#N/A"},{"$error":"#N/A"},{"$error":"#N/A"},{"$error":"#N/A"},{"$error":"#N/A"},{"$error":"#N/A"},{"$error":"#N/A"},{"$error":"#N/A"},{"$error":"#N/A"},{"$error":"#N/A"},{"$error":"#N/A"},{"$error":"#N/A"},{"$error":"#N/A"}]
[]
[null,"User-Defined Conservation Measures"]
[]
[null,"Single-Family Measures"]
[null,"USR-SF-01",null,"N",null,null,null,null,null,null,null,null,null,null,null,null,null,null,null,null,null,null,null,null,null,{"$f":"SUM(O64:P64)","v":0},{"$f":"IF(S64>0,(SUM(O64:P64)/(MP64*(1-T64)))*(MQ64-1)/(MQ64^X64-1),0)","v":0},null,{"$f":"AVERAGE(KP64:KZ64)","v":0},{"$f":"AVERAGE(LA64:LJ64)","v":0},{"$f":"AVERAGE(LK64:LT64)","v":0},{"$f":"AVERAGE(LU64:MD64)","v":0},{"$f":"AVERAGE(ME64:MN64)","v":0},null,{"$f":"SFMeasurePercent($L64,F64,sftoiletsperhhld,sfshwrsperhhld,sfwasherperhhld,AVERAGE(IF(baseline_selection=1,'1. Baseline Demand Projection'!E$26:F$26,'1. Baseline Demand Projection'!N$26:O$26)))","v":""},{"$f":"SFMeasurePercent($L64,G64,sftoiletsperhhld,sfshwrsperhhld,sfwasherperhhld,AVERAGE(IF(baseline_selection=1,'1. Baseline Demand Projection'!F$26:G$26,'1. Baseline Demand Projection'!O$26:P$26)))","v":""},{"$f":"SFMeasurePercent($L64,H64,sftoiletsperhhld,sfshwrsperhhld,sfwasherperhhld,AVERAGE(IF(baseline_selection=1,'1. Baseline Demand Projection'!G$26:H$26,'1. Baseline Demand Projection'!P$26:Q$26)))","v":""},{"$f":"SFMeasurePercent($L64,I64,sftoiletsperhhld,sfshwrsperhhld,sfwasherperhhld,AVERAGE(IF(baseline_selection=1,'1. Baseline Demand Projection'!H$26:I$26,'1. Baseline Demand Projection'!Q$26:R$26)))","v":""},{"$f":"SFMeasurePercent($L64,J64,sftoiletsperhhld,sfshwrsperhhld,sfwasherperhhld,AVERAGE(IF(baseline_selection=1,'1. Baseline Demand Projection'!I$26:J$26,'1. Baseline Demand Projection'!R$26:S$26)))","v":""},null,{"$f":"$F64*IF($D64=\"Y\",1,0)","v":0},{"$f":"CHOOSE(ROUNDUP((AP$18-2020)/10,0),$F64,$G64,$H64,$I64,$J64)*IF($D64=\"Y\",1,0)","v":0},0,0,0,0,0,0,0,0,0,{"$f":"CHOOSE(ROUNDUP((AZ$18-2020)/10,0),$F64,$G64,$H64,$I64,$J64)*IF($D64=\"Y\",1,0)","v":0},0,0,0,0,0,0,0,0,0,{"$f":"CHOOSE(ROUNDUP((BJ$18-2020)/10,0),$F64,$G64,$H64,$I64,$J64)*IF($D64=\"Y\",1,0)","v":0},0,0,0,0,0,0,0,0,0,{"$f":"CHOOSE(ROUNDUP((BT$18-2020)/10,0),$F64,$G64,$H64,$I64,$J64)*IF($D64=\"Y\",1,0)","v":0},0,0,0,0,0,0,0,0,0,{"$f":"CHOOSE(ROUNDUP((CD$18-2020)/10,0),$F64,$G64,$H64,$I64,$J64)*IF($D64=\"Y\",1,0)","v":0},0,0,0,0,0,0,0,0,0,null,{"$f":"MeasureSavingsArray(AO64:CM64,S64,T64,U64,W64,X64,D64)","v":0},0,0,0,0,0,0,0,0,0,0,0,0,0,0,0,0,0,0,0,0,0,0,0,0,0,0,0,0,0,0,0,0,0,0,0,0,0,0,0,0,0,0,0,0,0,0,0,0,0,0,{"$f":"CO64+NPV(discount_rate,CP64:EM64)","v":0},null,{"$f":"$O64*AO64","v":0},{"$f":"$O64*AP64","v":0},{"$f":"$O64*AQ64","v":0},{"$f":"$O64*AR64","v":0},{"$f":"$O64*AS64","v":0},{"$f":"$O64*AT64","v":0},{"$f":"$O64*AU64","v":0},{"$f":"$O64*AV64","v":0},{"$f":"$O64*AW64","v":0},{"$f":"$O64*AX64","v":0},{"$f":"$O64*AY64","v":0},{"$f":"$O64*AZ64","v":0},{"$f":"$O64*BA64","v":0},{"$f":"$O64*BB64","v":0},{"$f":"$O64*BC64","v":0},{"$f":"$O64*BD64","v":0},{"$f":"$O64*BE64","v":0},{"$f":"$O64*BF64","v":0},{"$f":"$O64*BG64","v":0},{"$f":"$O64*BH64","v":0},{"$f":"$O64*BI64","v":0},{"$f":"$O64*BJ64","v":0},{"$f":"$O64*BK64","v":0},{"$f":"$O64*BL64","v":0},{"$f":"$O64*BM64","v":0},{"$f":"$O64*BN64","v":0},{"$f":"$O64*BO64","v":0},{"$f":"$O64*BP64","v":0},{"$f":"$O64*BQ64","v":0},{"$f":"$O64*BR64","v":0},{"$f":"$O64*BS64","v":0},{"$f":"$O64*BT64","v":0},{"$f":"$O64*BU64","v":0},{"$f":"$O64*BV64","v":0},{"$f":"$O64*BW64","v":0},{"$f":"$O64*BX64","v":0},{"$f":"$O64*BY64","v":0},{"$f":"$O64*BZ64","v":0},{"$f":"$O64*CA64","v":0},{"$f":"$O64*CB64","v":0},{"$f":"$O64*CC64","v":0},{"$f":"$O64*CD64","v":0},{"$f":"$O64*CE64","v":0},{"$f":"$O64*CF64","v":0},{"$f":"$O64*CG64","v":0},{"$f":"$O64*CH64","v":0},{"$f":"$O64*CI64","v":0},{"$f":"$O64*CJ64","v":0},{"$f":"$O64*CK64","v":0},{"$f":"$O64*CL64","v":0},{"$f":"$O64*CM64","v":0},null,{"$f":"$P64*IF($Q64=\"N\",1,0)*AO64","v":0},{"$f":"$P64*IF($Q64=\"N\",1,0)*AP64","v":0},{"$f":"$P64*IF($Q64=\"N\",1,0)*AQ64","v":0},{"$f":"$P64*IF($Q64=\"N\",1,0)*AR64","v":0},{"$f":"$P64*IF($Q64=\"N\",1,0)*AS64","v":0},{"$f":"$P64*IF($Q64=\"N\",1,0)*AT64","v":0},{"$f":"$P64*IF($Q64=\"N\",1,0)*AU64","v":0},{"$f":"$P64*IF($Q64=\"N\",1,0)*AV64","v":0},{"$f":"$P64*IF($Q64=\"N\",1,0)*AW64","v":0},{"$f":"$P64*IF($Q64=\"N\",1,0)*AX64","v":0},{"$f":"$P64*IF($Q64=\"N\",1,0)*AY64","v":0},{"$f":"$P64*IF($Q64=\"N\",1,0)*AZ64","v":0},{"$f":"$P64*IF($Q64=\"N\",1,0)*BA64","v":0},{"$f":"$P64*IF($Q64=\"N\",1,0)*BB64","v":0},{"$f":"$P64*IF($Q64=\"N\",1,0)*BC64","v":0},{"$f":"$P64*IF($Q64=\"N\",1,0)*BD64","v":0},{"$f":"$P64*IF($Q64=\"N\",1,0)*BE64","v":0},{"$f":"$P64*IF($Q64=\"N\",1,0)*BF64","v":0},{"$f":"$P64*IF($Q64=\"N\",1,0)*BG64","v":0},{"$f":"$P64*IF($Q64=\"N\",1,0)*BH64","v":0},{"$f":"$P64*IF($Q64=\"N\",1,0)*BI64","v":0},{"$f":"$P64*IF($Q64=\"N\",1,0)*BJ64","v":0},{"$f":"$P64*IF($Q64=\"N\",1,0)*BK64","v":0},{"$f":"$P64*IF($Q64=\"N\",1,0)*BL64","v":0},{"$f":"$P64*IF($Q64=\"N\",1,0)*BM64","v":0},{"$f":"$P64*IF($Q64=\"N\",1,0)*BN64","v":0},{"$f":"$P64*IF($Q64=\"N\",1,0)*BO64","v":0},{"$f":"$P64*IF($Q64=\"N\",1,0)*BP64","v":0},{"$f":"$P64*IF($Q64=\"N\",1,0)*BQ64","v":0},{"$f":"$P64*IF($Q64=\"N\",1,0)*BR64","v":0},{"$f":"$P64*IF($Q64=\"N\",1,0)*BS64","v":0},{"$f":"$P64*IF($Q64=\"N\",1,0)*BT64","v":0},{"$f":"$P64*IF($Q64=\"N\",1,0)*BU64","v":0},{"$f":"$P64*IF($Q64=\"N\",1,0)*BV64","v":0},{"$f":"$P64*IF($Q64=\"N\",1,0)*BW64","v":0},{"$f":"$P64*IF($Q64=\"N\",1,0)*BX64","v":0},{"$f":"$P64*IF($Q64=\"N\",1,0)*BY64","v":0},{"$f":"$P64*IF($Q64=\"N\",1,0)*BZ64","v":0},{"$f":"$P64*IF($Q64=\"N\",1,0)*CA64","v":0},{"$f":"$P64*IF($Q64=\"N\",1,0)*CB64","v":0},{"$f":"$P64*IF($Q64=\"N\",1,0)*CC64","v":0},{"$f":"$P64*IF($Q64=\"N\",1,0)*CD64","v":0},{"$f":"$P64*IF($Q64=\"N\",1,0)*CE64","v":0},{"$f":"$P64*IF($Q64=\"N\",1,0)*CF64","v":0},{"$f":"$P64*IF($Q64=\"N\",1,0)*CG64","v":0},{"$f":"$P64*IF($Q64=\"N\",1,0)*CH64","v":0},{"$f":"$P64*IF($Q64=\"N\",1,0)*CI64","v":0},{"$f":"$P64*IF($Q64=\"N\",1,0)*CJ64","v":0},{"$f":"$P64*IF($Q64=\"N\",1,0)*CK64","v":0},{"$f":"$P64*IF($Q64=\"N\",1,0)*CL64","v":0},{"$f":"$P64*IF($Q64=\"N\",1,0)*CM64","v":0},null,{"$f":"DebtServiceArray(AO64:CM64,P64,discount_rate,Q64,D64)","v":0},0,0,0,0,0,0,0,0,0,0,0,0,0,0,0,0,0,0,0,0,0,0,0,0,0,0,0,0,0,0,0,0,0,0,0,0,0,0,0,0,0,0,0,0,0,0,0,0,0,0,null,{"$f":"SUM(EP64,GP64,IP64)","v":0},{"$f":"SUM(EQ64,GQ64,IQ64)","v":0},{"$f":"SUM(ER64,GR64,IR64)","v":0},{"$f":"SUM(ES64,GS64,IS64)","v":0},{"$f":"SUM(ET64,GT64,IT64)","v":0},{"$f":"SUM(EU64,GU64,IU64)","v":0},{"$f":"SUM(EV64,GV64,IV64)","v":0},{"$f":"SUM(EW64,GW64,IW64)","v":0},{"$f":"SUM(EX64,GX64,IX64)","v":0},{"$f":"SUM(EY64,GY64,IY64)","v":0},{"$f":"SUM(EZ64,GZ64,IZ64)","v":0},{"$f":"SUM(FA64,HA64,JA64)","v":0},{"$f":"SUM(FB64,HB64,JB64)","v":0},{"$f":"SUM(FC64,HC64,JC64)","v":0},{"$f":"SUM(FD64,HD64,JD64)","v":0},{"$f":"SUM(FE64,HE64,JE64)","v":0},{"$f":"SUM(FF64,HF64,JF64)","v":0},{"$f":"SUM(FG64,HG64,JG64)","v":0},{"$f":"SUM(FH64,HH64,JH64)","v":0},{"$f":"SUM(FI64,HI64,JI64)","v":0},{"$f":"SUM(FJ64,HJ64,JJ64)","v":0},{"$f":"SUM(FK64,HK64,JK64)","v":0},{"$f":"SUM(FL64,HL64,JL64)","v":0},{"$f":"SUM(FM64,HM64,JM64)","v":0},{"$f":"SUM(FN64,HN64,JN64)","v":0},{"$f":"SUM(FO64,HO64,JO64)","v":0},{"$f":"SUM(FP64,HP64,JP64)","v":0},{"$f":"SUM(FQ64,HQ64,JQ64)","v":0},{"$f":"SUM(FR64,HR64,JR64)","v":0},{"$f":"SUM(FS64,HS64,JS64)","v":0},{"$f":"SUM(FT64,HT64,JT64)","v":0},{"$f":"SUM(FU64,HU64,JU64)","v":0},{"$f":"SUM(FV64,HV64,JV64)","v":0},{"$f":"SUM(FW64,HW64,JW64)","v":0},{"$f":"SUM(FX64,HX64,JX64)","v":0},{"$f":"SUM(FY64,HY64,JY64)","v":0},{"$f":"SUM(FZ64,HZ64,JZ64)","v":0},{"$f":"SUM(GA64,IA64,KA64)","v":0},{"$f":"SUM(GB64,IB64,KB64)","v":0},{"$f":"SUM(GC64,IC64,KC64)","v":0},{"$f":"SUM(GD64,ID64,KD64)","v":0},{"$f":"SUM(GE64,IE64,KE64)","v":0},{"$f":"SUM(GF64,IF64,KF64)","v":0},{"$f":"SUM(GG64,IG64,KG64)","v":0},{"$f":"SUM(GH64,IH64,KH64)","v":0},{"$f":"SUM(GI64,II64,KI64)","v":0},{"$f":"SUM(GJ64,IJ64,KJ64)","v":0},{"$f":"SUM(GK64,IK64,KK64)","v":0},{"$f":"SUM(GL64,IL64,KL64)","v":0},{"$f":"SUM(GM64,IM64,KM64)","v":0},{"$f":"SUM(GN64,IN64,KN64)","v":0},null,{"$f":"S64*365/325851","v":0},{"$f":"(1-U64)*(1-W64)/(1+discount_rate)","v":0.96618357487922713}]
[null,"USR-SF-02",null,"N",null,null,null,null,null,null,null,null,null,null,null,null,null,null,null,null,null,null,null,null,null,0,0,null,0,0,0,0,0,null,{"$f":"SFMeasurePercent($L65,F65,sftoiletsperhhld,sfshwrsperhhld,sfwasherperhhld,AVERAGE(IF(baseline_selection=1,'1. Baseline Demand Projection'!E$26:F$26,'1. Baseline Demand Projection'!N$26:O$26)))","v":""},{"$f":"SFMeasurePercent($L65,G65,sftoiletsperhhld,sfshwrsperhhld,sfwasherperhhld,AVERAGE(IF(baseline_selection=1,'1. Baseline Demand Projection'!F$26:G$26,'1. Baseline Demand Projection'!O$26:P$26)))","v":""},{"$f":"SFMeasurePercent($L65,H65,sftoiletsperhhld,sfshwrsperhhld,sfwasherperhhld,AVERAGE(IF(baseline_selection=1,'1. Baseline Demand Projection'!G$26:H$26,'1. Baseline Demand Projection'!P$26:Q$26)))","v":""},{"$f":"SFMeasurePercent($L65,I65,sftoiletsperhhld,sfshwrsperhhld,sfwasherperhhld,AVERAGE(IF(baseline_selection=1,'1. Baseline Demand Projection'!H$26:I$26,'1. Baseline Demand Projection'!Q$26:R$26)))","v":""},{"$f":"SFMeasurePercent($L65,J65,sftoiletsperhhld,sfshwrsperhhld,sfwasherperhhld,AVERAGE(IF(baseline_selection=1,'1. Baseline Demand Projection'!I$26:J$26,'1. Baseline Demand Projection'!R$26:S$26)))","v":""},null,0,0,0,0,0,0,0,0,0,0,0,0,0,0,0,0,0,0,0,0,0,0,0,0,0,0,0,0,0,0,0,0,0,0,0,0,0,0,0,0,0,0,0,0,0,0,0,0,0,0,0,null,{"$f":"MeasureSavingsArray(AO65:CM65,S65,T65,U65,W65,X65,D65)","v":0},0,0,0,0,0,0,0,0,0,0,0,0,0,0,0,0,0,0,0,0,0,0,0,0,0,0,0,0,0,0,0,0,0,0,0,0,0,0,0,0,0,0,0,0,0,0,0,0,0,0,0,null,0,0,0,0,0,0,0,0,0,0,0,0,0,0,0,0,0,0,0,0,0,0,0,0,0,0,0,0,0,0,0,0,0,0,0,0,0,0,0,0,0,0,0,0,0,0,0,0,0,0,0,null,0,0,0,0,0,0,0,0,0,0,0,0,0,0,0,0,0,0,0,0,0,0,0,0,0,0,0,0,0,0,0,0,0,0,0,0,0,0,0,0,0,0,0,0,0,0,0,0,0,0,0,null,{"$f":"DebtServiceArray(AO65:CM65,P65,discount_rate,Q65,D65)","v":0},0,0,0,0,0,0,0,0,0,0,0,0,0,0,0,0,0,0,0,0,0,0,0,0,0,0,0,0,0,0,0,0,0,0,0,0,0,0,0,0,0,0,0,0,0,0,0,0,0,0,null,0,0,0,0,0,0,0,0,0,0,0,0,0,0,0,0,0,0,0,0,0,0,0,0,0,0,0,0,0,0,0,0,0,0,0,0,0,0,0,0,0,0,0,0,0,0,0,0,0,0,0,null,0,0.96618357487922713]
[null,"USR-SF-03",null,"N",null,null,null,null,null,null,null,null,null,null,null,null,null,null,null,null,null,null,null,null,null,0,0,null,0,0,0,0,0,null,{"$f":"SFMeasurePercent($L66,F66,sftoiletsperhhld,sfshwrsperhhld,sfwasherperhhld,AVERAGE(IF(baseline_selection=1,'1. Baseline Demand Projection'!E$26:F$26,'1. Baseline Demand Projection'!N$26:O$26)))","v":""},{"$f":"SFMeasurePercent($L66,G66,sftoiletsperhhld,sfshwrsperhhld,sfwasherperhhld,AVERAGE(IF(baseline_selection=1,'1. Baseline Demand Projection'!F$26:G$26,'1. Baseline Demand Projection'!O$26:P$26)))","v":""},{"$f":"SFMeasurePercent($L66,H66,sftoiletsperhhld,sfshwrsperhhld,sfwasherperhhld,AVERAGE(IF(baseline_selection=1,'1. Baseline Demand Projection'!G$26:H$26,'1. Baseline Demand Projection'!P$26:Q$26)))","v":""},{"$f":"SFMeasurePercent($L66,I66,sftoiletsperhhld,sfshwrsperhhld,sfwasherperhhld,AVERAGE(IF(baseline_selection=1,'1. Baseline Demand Projection'!H$26:I$26,'1. Baseline Demand Projection'!Q$26:R$26)))","v":""},{"$f":"SFMeasurePercent($L66,J66,sftoiletsperhhld,sfshwrsperhhld,sfwasherperhhld,AVERAGE(IF(baseline_selection=1,'1. Baseline Demand Projection'!I$26:J$26,'1. Baseline Demand Projection'!R$26:S$26)))","v":""},null,0,0,0,0,0,0,0,0,0,0,0,0,0,0,0,0,0,0,0,0,0,0,0,0,0,0,0,0,0,0,0,0,0,0,0,0,0,0,0,0,0,0,0,0,0,0,0,0,0,0,0,null,{"$f":"MeasureSavingsArray(AO66:CM66,S66,T66,U66,W66,X66,D66)","v":0},0,0,0,0,0,0,0,0,0,0,0,0,0,0,0,0,0,0,0,0,0,0,0,0,0,0,0,0,0,0,0,0,0,0,0,0,0,0,0,0,0,0,0,0,0,0,0,0,0,0,0,null,0,0,0,0,0,0,0,0,0,0,0,0,0,0,0,0,0,0,0,0,0,0,0,0,0,0,0,0,0,0,0,0,0,0,0,0,0,0,0,0,0,0,0,0,0,0,0,0,0,0,0,null,0,0,0,0,0,0,0,0,0,0,0,0,0,0,0,0,0,0,0,0,0,0,0,0,0,0,0,0,0,0,0,0,0,0,0,0,0,0,0,0,0,0,0,0,0,0,0,0,0,0,0,null,{"$f":"DebtServiceArray(AO66:CM66,P66,discount_rate,Q66,D66)","v":0},0,0,0,0,0,0,0,0,0,0,0,0,0,0,0,0,0,0,0,0,0,0,0,0,0,0,0,0,0,0,0,0,0,0,0,0,0,0,0,0,0,0,0,0,0,0,0,0,0,0,null,0,0,0,0,0,0,0,0,0,0,0,0,0,0,0,0,0,0,0,0,0,0,0,0,0,0,0,0,0,0,0,0,0,0,0,0,0,0,0,0,0,0,0,0,0,0,0,0,0,0,0,null,0,0.96618357487922713]
[null,"USR-SF-04",null,"N",null,null,null,null,null,null,null,null,null,null,null,null,null,null,null,null,null,null,null,null,null,0,0,null,0,0,0,0,0,null,{"$f":"SFMeasurePercent($L67,F67,sftoiletsperhhld,sfshwrsperhhld,sfwasherperhhld,AVERAGE(IF(baseline_selection=1,'1. Baseline Demand Projection'!E$26:F$26,'1. Baseline Demand Projection'!N$26:O$26)))","v":""},{"$f":"SFMeasurePercent($L67,G67,sftoiletsperhhld,sfshwrsperhhld,sfwasherperhhld,AVERAGE(IF(baseline_selection=1,'1. Baseline Demand Projection'!F$26:G$26,'1. Baseline Demand Projection'!O$26:P$26)))","v":""},{"$f":"SFMeasurePercent($L67,H67,sftoiletsperhhld,sfshwrsperhhld,sfwasherperhhld,AVERAGE(IF(baseline_selection=1,'1. Baseline Demand Projection'!G$26:H$26,'1. Baseline Demand Projection'!P$26:Q$26)))","v":""},{"$f":"SFMeasurePercent($L67,I67,sftoiletsperhhld,sfshwrsperhhld,sfwasherperhhld,AVERAGE(IF(baseline_selection=1,'1. Baseline Demand Projection'!H$26:I$26,'1. Baseline Demand Projection'!Q$26:R$26)))","v":""},{"$f":"SFMeasurePercent($L67,J67,sftoiletsperhhld,sfshwrsperhhld,sfwasherperhhld,AVERAGE(IF(baseline_selection=1,'1. Baseline Demand Projection'!I$26:J$26,'1. Baseline Demand Projection'!R$26:S$26)))","v":""},null,0,0,0,0,0,0,0,0,0,0,0,0,0,0,0,0,0,0,0,0,0,0,0,0,0,0,0,0,0,0,0,0,0,0,0,0,0,0,0,0,0,0,0,0,0,0,0,0,0,0,0,null,{"$f":"MeasureSavingsArray(AO67:CM67,S67,T67,U67,W67,X67,D67)","v":0},0,0,0,0,0,0,0,0,0,0,0,0,0,0,0,0,0,0,0,0,0,0,0,0,0,0,0,0,0,0,0,0,0,0,0,0,0,0,0,0,0,0,0,0,0,0,0,0,0,0,0,null,0,0,0,0,0,0,0,0,0,0,0,0,0,0,0,0,0,0,0,0,0,0,0,0,0,0,0,0,0,0,0,0,0,0,0,0,0,0,0,0,0,0,0,0,0,0,0,0,0,0,0,null,0,0,0,0,0,0,0,0,0,0,0,0,0,0,0,0,0,0,0,0,0,0,0,0,0,0,0,0,0,0,0,0,0,0,0,0,0,0,0,0,0,0,0,0,0,0,0,0,0,0,0,null,{"$f":"DebtServiceArray(AO67:CM67,P67,discount_rate,Q67,D67)","v":0},0,0,0,0,0,0,0,0,0,0,0,0,0,0,0,0,0,0,0,0,0,0,0,0,0,0,0,0,0,0,0,0,0,0,0,0,0,0,0,0,0,0,0,0,0,0,0,0,0,0,null,0,0,0,0,0,0,0,0,0,0,0,0,0,0,0,0,0,0,0,0,0,0,0,0,0,0,0,0,0,0,0,0,0,0,0,0,0,0,0,0,0,0,0,0,0,0,0,0,0,0,0,null,0,0.96618357487922713]
[null,"USR-SF-05",null,"N",null,null,null,null,null,null,null,null,null,null,null,null,null,null,null,null,null,null,null,null,null,0,0,null,0,0,0,0,0,null,{"$f":"SFMeasurePercent($L68,F68,sftoiletsperhhld,sfshwrsperhhld,sfwasherperhhld,AVERAGE(IF(baseline_selection=1,'1. Baseline Demand Projection'!E$26:F$26,'1. Baseline Demand Projection'!N$26:O$26)))","v":""},{"$f":"SFMeasurePercent($L68,G68,sftoiletsperhhld,sfshwrsperhhld,sfwasherperhhld,AVERAGE(IF(baseline_selection=1,'1. Baseline Demand Projection'!F$26:G$26,'1. Baseline Demand Projection'!O$26:P$26)))","v":""},{"$f":"SFMeasurePercent($L68,H68,sftoiletsperhhld,sfshwrsperhhld,sfwasherperhhld,AVERAGE(IF(baseline_selection=1,'1. Baseline Demand Projection'!G$26:H$26,'1. Baseline Demand Projection'!P$26:Q$26)))","v":""},{"$f":"SFMeasurePercent($L68,I68,sftoiletsperhhld,sfshwrsperhhld,sfwasherperhhld,AVERAGE(IF(baseline_selection=1,'1. Baseline Demand Projection'!H$26:I$26,'1. Baseline Demand Projection'!Q$26:R$26)))","v":""},{"$f":"SFMeasurePercent($L68,J68,sftoiletsperhhld,sfshwrsperhhld,sfwasherperhhld,AVERAGE(IF(baseline_selection=1,'1. Baseline Demand Projection'!I$26:J$26,'1. Baseline Demand Projection'!R$26:S$26)))","v":""},null,0,0,0,0,0,0,0,0,0,0,0,0,0,0,0,0,0,0,0,0,0,0,0,0,0,0,0,0,0,0,0,0,0,0,0,0,0,0,0,0,0,0,0,0,0,0,0,0,0,0,0,null,{"$f":"MeasureSavingsArray(AO68:CM68,S68,T68,U68,W68,X68,D68)","v":0},0,0,0,0,0,0,0,0,0,0,0,0,0,0,0,0,0,0,0,0,0,0,0,0,0,0,0,0,0,0,0,0,0,0,0,0,0,0,0,0,0,0,0,0,0,0,0,0,0,0,0,null,0,0,0,0,0,0,0,0,0,0,0,0,0,0,0,0,0,0,0,0,0,0,0,0,0,0,0,0,0,0,0,0,0,0,0,0,0,0,0,0,0,0,0,0,0,0,0,0,0,0,0,null,0,0,0,0,0,0,0,0,0,0,0,0,0,0,0,0,0,0,0,0,0,0,0,0,0,0,0,0,0,0,0,0,0,0,0,0,0,0,0,0,0,0,0,0,0,0,0,0,0,0,0,null,{"$f":"DebtServiceArray(AO68:CM68,P68,discount_rate,Q68,D68)","v":0},0,0,0,0,0,0,0,0,0,0,0,0,0,0,0,0,0,0,0,0,0,0,0,0,0,0,0,0,0,0,0,0,0,0,0,0,0,0,0,0,0,0,0,0,0,0,0,0,0,0,null,0,0,0,0,0,0,0,0,0,0,0,0,0,0,0,0,0,0,0,0,0,0,0,0,0,0,0,0,0,0,0,0,0,0,0,0,0,0,0,0,0,0,0,0,0,0,0,0,0,0,0,null,0,0.96618357487922713]
[null,"USR-SF-06",null,"N",null,null,null,null,null,null,null,null,null,null,null,null,null,null,null,null,null,null,null,null,null,0,0,null,0,0,0,0,0,null,{"$f":"SFMeasurePercent($L69,F69,sftoiletsperhhld,sfshwrsperhhld,sfwasherperhhld,AVERAGE(IF(baseline_selection=1,'1. Baseline Demand Projection'!E$26:F$26,'1. Baseline Demand Projection'!N$26:O$26)))","v":""},{"$f":"SFMeasurePercent($L69,G69,sftoiletsperhhld,sfshwrsperhhld,sfwasherperhhld,AVERAGE(IF(baseline_selection=1,'1. Baseline Demand Projection'!F$26:G$26,'1. Baseline Demand Projection'!O$26:P$26)))","v":""},{"$f":"SFMeasurePercent($L69,H69,sftoiletsperhhld,sfshwrsperhhld,sfwasherperhhld,AVERAGE(IF(baseline_selection=1,'1. Baseline Demand Projection'!G$26:H$26,'1. Baseline Demand Projection'!P$26:Q$26)))","v":""},{"$f":"SFMeasurePercent($L69,I69,sftoiletsperhhld,sfshwrsperhhld,sfwasherperhhld,AVERAGE(IF(baseline_selection=1,'1. Baseline Demand Projection'!H$26:I$26,'1. Baseline Demand Projection'!Q$26:R$26)))","v":""},{"$f":"SFMeasurePercent($L69,J69,sftoiletsperhhld,sfshwrsperhhld,sfwasherperhhld,AVERAGE(IF(baseline_selection=1,'1. Baseline Demand Projection'!I$26:J$26,'1. Baseline Demand Projection'!R$26:S$26)))","v":""},null,0,0,0,0,0,0,0,0,0,0,0,0,0,0,0,0,0,0,0,0,0,0,0,0,0,0,0,0,0,0,0,0,0,0,0,0,0,0,0,0,0,0,0,0,0,0,0,0,0,0,0,null,{"$f":"MeasureSavingsArray(AO69:CM69,S69,T69,U69,W69,X69,D69)","v":0},0,0,0,0,0,0,0,0,0,0,0,0,0,0,0,0,0,0,0,0,0,0,0,0,0,0,0,0,0,0,0,0,0,0,0,0,0,0,0,0,0,0,0,0,0,0,0,0,0,0,0,null,0,0,0,0,0,0,0,0,0,0,0,0,0,0,0,0,0,0,0,0,0,0,0,0,0,0,0,0,0,0,0,0,0,0,0,0,0,0,0,0,0,0,0,0,0,0,0,0,0,0,0,null,0,0,0,0,0,0,0,0,0,0,0,0,0,0,0,0,0,0,0,0,0,0,0,0,0,0,0,0,0,0,0,0,0,0,0,0,0,0,0,0,0,0,0,0,0,0,0,0,0,0,0,null,{"$f":"DebtServiceArray(AO69:CM69,P69,discount_rate,Q69,D69)","v":0},0,0,0,0,0,0,0,0,0,0,0,0,0,0,0,0,0,0,0,0,0,0,0,0,0,0,0,0,0,0,0,0,0,0,0,0,0,0,0,0,0,0,0,0,0,0,0,0,0,0,null,0,0,0,0,0,0,0,0,0,0,0,0,0,0,0,0,0,0,0,0,0,0,0,0,0,0,0,0,0,0,0,0,0,0,0,0,0,0,0,0,0,0,0,0,0,0,0,0,0,0,0,null,0,0.96618357487922713]
[null,"USR-SF-07",null,"N",null,null,null,null,null,null,null,null,null,null,null,null,null,null,null,null,null,null,null,null,null,0,0,null,0,0,0,0,0,null,{"$f":"SFMeasurePercent($L70,F70,sftoiletsperhhld,sfshwrsperhhld,sfwasherperhhld,AVERAGE(IF(baseline_selection=1,'1. Baseline Demand Projection'!E$26:F$26,'1. Baseline Demand Projection'!N$26:O$26)))","v":""},{"$f":"SFMeasurePercent($L70,G70,sftoiletsperhhld,sfshwrsperhhld,sfwasherperhhld,AVERAGE(IF(baseline_selection=1,'1. Baseline Demand Projection'!F$26:G$26,'1. Baseline Demand Projection'!O$26:P$26)))","v":""},{"$f":"SFMeasurePercent($L70,H70,sftoiletsperhhld,sfshwrsperhhld,sfwasherperhhld,AVERAGE(IF(baseline_selection=1,'1. Baseline Demand Projection'!G$26:H$26,'1. Baseline Demand Projection'!P$26:Q$26)))","v":""},{"$f":"SFMeasurePercent($L70,I70,sftoiletsperhhld,sfshwrsperhhld,sfwasherperhhld,AVERAGE(IF(baseline_selection=1,'1. Baseline Demand Projection'!H$26:I$26,'1. Baseline Demand Projection'!Q$26:R$26)))","v":""},{"$f":"SFMeasurePercent($L70,J70,sftoiletsperhhld,sfshwrsperhhld,sfwasherperhhld,AVERAGE(IF(baseline_selection=1,'1. Baseline Demand Projection'!I$26:J$26,'1. Baseline Demand Projection'!R$26:S$26)))","v":""},null,0,0,0,0,0,0,0,0,0,0,0,0,0,0,0,0,0,0,0,0,0,0,0,0,0,0,0,0,0,0,0,0,0,0,0,0,0,0,0,0,0,0,0,0,0,0,0,0,0,0,0,null,{"$f":"MeasureSavingsArray(AO70:CM70,S70,T70,U70,W70,X70,D70)","v":0},0,0,0,0,0,0,0,0,0,0,0,0,0,0,0,0,0,0,0,0,0,0,0,0,0,0,0,0,0,0,0,0,0,0,0,0,0,0,0,0,0,0,0,0,0,0,0,0,0,0,0,null,0,0,0,0,0,0,0,0,0,0,0,0,0,0,0,0,0,0,0,0,0,0,0,0,0,0,0,0,0,0,0,0,0,0,0,0,0,0,0,0,0,0,0,0,0,0,0,0,0,0,0,null,0,0,0,0,0,0,0,0,0,0,0,0,0,0,0,0,0,0,0,0,0,0,0,0,0,0,0,0,0,0,0,0,0,0,0,0,0,0,0,0,0,0,0,0,0,0,0,0,0,0,0,null,{"$f":"DebtServiceArray(AO70:CM70,P70,discount_rate,Q70,D70)","v":0},0,0,0,0,0,0,0,0,0,0,0,0,0,0,0,0,0,0,0,0,0,0,0,0,0,0,0,0,0,0,0,0,0,0,0,0,0,0,0,0,0,0,0,0,0,0,0,0,0,0,null,0,0,0,0,0,0,0,0,0,0,0,0,0,0,0,0,0,0,0,0,0,0,0,0,0,0,0,0,0,0,0,0,0,0,0,0,0,0,0,0,0,0,0,0,0,0,0,0,0,0,0,null,0,0.96618357487922713]
[null,"USR-SF-08",null,"N",null,null,null,null,null,null,null,null,null,null,null,null,null,null,null,null,null,null,null,null,null,0,0,null,0,0,0,0,0,null,{"$f":"SFMeasurePercent($L71,F71,sftoiletsperhhld,sfshwrsperhhld,sfwasherperhhld,AVERAGE(IF(baseline_selection=1,'1. Baseline Demand Projection'!E$26:F$26,'1. Baseline Demand Projection'!N$26:O$26)))","v":""},{"$f":"SFMeasurePercent($L71,G71,sftoiletsperhhld,sfshwrsperhhld,sfwasherperhhld,AVERAGE(IF(baseline_selection=1,'1. Baseline Demand Projection'!F$26:G$26,'1. Baseline Demand Projection'!O$26:P$26)))","v":""},{"$f":"SFMeasurePercent($L71,H71,sftoiletsperhhld,sfshwrsperhhld,sfwasherperhhld,AVERAGE(IF(baseline_selection=1,'1. Baseline Demand Projection'!G$26:H$26,'1. Baseline Demand Projection'!P$26:Q$26)))","v":""},{"$f":"SFMeasurePercent($L71,I71,sftoiletsperhhld,sfshwrsperhhld,sfwasherperhhld,AVERAGE(IF(baseline_selection=1,'1. Baseline Demand Projection'!H$26:I$26,'1. Baseline Demand Projection'!Q$26:R$26)))","v":""},{"$f":"SFMeasurePercent($L71,J71,sftoiletsperhhld,sfshwrsperhhld,sfwasherperhhld,AVERAGE(IF(baseline_selection=1,'1. Baseline Demand Projection'!I$26:J$26,'1. Baseline Demand Projection'!R$26:S$26)))","v":""},null,0,0,0,0,0,0,0,0,0,0,0,0,0,0,0,0,0,0,0,0,0,0,0,0,0,0,0,0,0,0,0,0,0,0,0,0,0,0,0,0,0,0,0,0,0,0,0,0,0,0,0,null,{"$f":"MeasureSavingsArray(AO71:CM71,S71,T71,U71,W71,X71,D71)","v":0},0,0,0,0,0,0,0,0,0,0,0,0,0,0,0,0,0,0,0,0,0,0,0,0,0,0,0,0,0,0,0,0,0,0,0,0,0,0,0,0,0,0,0,0,0,0,0,0,0,0,0,null,0,0,0,0,0,0,0,0,0,0,0,0,0,0,0,0,0,0,0,0,0,0,0,0,0,0,0,0,0,0,0,0,0,0,0,0,0,0,0,0,0,0,0,0,0,0,0,0,0,0,0,null,0,0,0,0,0,0,0,0,0,0,0,0,0,0,0,0,0,0,0,0,0,0,0,0,0,0,0,0,0,0,0,0,0,0,0,0,0,0,0,0,0,0,0,0,0,0,0,0,0,0,0,null,{"$f":"DebtServiceArray(AO71:CM71,P71,discount_rate,Q71,D71)","v":0},0,0,0,0,0,0,0,0,0,0,0,0,0,0,0,0,0,0,0,0,0,0,0,0,0,0,0,0,0,0,0,0,0,0,0,0,0,0,0,0,0,0,0,0,0,0,0,0,0,0,null,0,0,0,0,0,0,0,0,0,0,0,0,0,0,0,0,0,0,0,0,0,0,0,0,0,0,0,0,0,0,0,0,0,0,0,0,0,0,0,0,0,0,0,0,0,0,0,0,0,0,0,null,0,0.96618357487922713]
[null,"USR-SF-09",null,"N",null,null,null,null,null,null,null,null,null,null,null,null,null,null,null,null,null,null,null,null,null,0,0,null,0,0,0,0,0,null,{"$f":"SFMeasurePercent($L72,F72,sftoiletsperhhld,sfshwrsperhhld,sfwasherperhhld,AVERAGE(IF(baseline_selection=1,'1. Baseline Demand Projection'!E$26:F$26,'1. Baseline Demand Projection'!N$26:O$26)))","v":""},{"$f":"SFMeasurePercent($L72,G72,sftoiletsperhhld,sfshwrsperhhld,sfwasherperhhld,AVERAGE(IF(baseline_selection=1,'1. Baseline Demand Projection'!F$26:G$26,'1. Baseline Demand Projection'!O$26:P$26)))","v":""},{"$f":"SFMeasurePercent($L72,H72,sftoiletsperhhld,sfshwrsperhhld,sfwasherperhhld,AVERAGE(IF(baseline_selection=1,'1. Baseline Demand Projection'!G$26:H$26,'1. Baseline Demand Projection'!P$26:Q$26)))","v":""},{"$f":"SFMeasurePercent($L72,I72,sftoiletsperhhld,sfshwrsperhhld,sfwasherperhhld,AVERAGE(IF(baseline_selection=1,'1. Baseline Demand Projection'!H$26:I$26,'1. Baseline Demand Projection'!Q$26:R$26)))","v":""},{"$f":"SFMeasurePercent($L72,J72,sftoiletsperhhld,sfshwrsperhhld,sfwasherperhhld,AVERAGE(IF(baseline_selection=1,'1. Baseline Demand Projection'!I$26:J$26,'1. Baseline Demand Projection'!R$26:S$26)))","v":""},null,0,0,0,0,0,0,0,0,0,0,0,0,0,0,0,0,0,0,0,0,0,0,0,0,0,0,0,0,0,0,0,0,0,0,0,0,0,0,0,0,0,0,0,0,0,0,0,0,0,0,0,null,{"$f":"MeasureSavingsArray(AO72:CM72,S72,T72,U72,W72,X72,D72)","v":0},0,0,0,0,0,0,0,0,0,0,0,0,0,0,0,0,0,0,0,0,0,0,0,0,0,0,0,0,0,0,0,0,0,0,0,0,0,0,0,0,0,0,0,0,0,0,0,0,0,0,0,null,0,0,0,0,0,0,0,0,0,0,0,0,0,0,0,0,0,0,0,0,0,0,0,0,0,0,0,0,0,0,0,0,0,0,0,0,0,0,0,0,0,0,0,0,0,0,0,0,0,0,0,null,0,0,0,0,0,0,0,0,0,0,0,0,0,0,0,0,0,0,0,0,0,0,0,0,0,0,0,0,0,0,0,0,0,0,0,0,0,0,0,0,0,0,0,0,0,0,0,0,0,0,0,null,{"$f":"DebtServiceArray(AO72:CM72,P72,discount_rate,Q72,D72)","v":0},0,0,0,0,0,0,0,0,0,0,0,0,0,0,0,0,0,0,0,0,0,0,0,0,0,0,0,0,0,0,0,0,0,0,0,0,0,0,0,0,0,0,0,0,0,0,0,0,0,0,null,0,0,0,0,0,0,0,0,0,0,0,0,0,0,0,0,0,0,0,0,0,0,0,0,0,0,0,0,0,0,0,0,0,0,0,0,0,0,0,0,0,0,0,0,0,0,0,0,0,0,0,null,0,0.96618357487922713]
[null,"USR-SF-10",null,"N",null,null,null,null,null,null,null,null,null,null,null,null,null,null,null,null,null,null,null,null,null,0,0,null,0,0,0,0,0,null,{"$f":"SFMeasurePercent($L73,F73,sftoiletsperhhld,sfshwrsperhhld,sfwasherperhhld,AVERAGE(IF(baseline_selection=1,'1. Baseline Demand Projection'!E$26:F$26,'1. Baseline Demand Projection'!N$26:O$26)))","v":""},{"$f":"SFMeasurePercent($L73,G73,sftoiletsperhhld,sfshwrsperhhld,sfwasherperhhld,AVERAGE(IF(baseline_selection=1,'1. Baseline Demand Projection'!F$26:G$26,'1. Baseline Demand Projection'!O$26:P$26)))","v":""},{"$f":"SFMeasurePercent($L73,H73,sftoiletsperhhld,sfshwrsperhhld,sfwasherperhhld,AVERAGE(IF(baseline_selection=1,'1. Baseline Demand Projection'!G$26:H$26,'1. Baseline Demand Projection'!P$26:Q$26)))","v":""},{"$f":"SFMeasurePercent($L73,I73,sftoiletsperhhld,sfshwrsperhhld,sfwasherperhhld,AVERAGE(IF(baseline_selection=1,'1. Baseline Demand Projection'!H$26:I$26,'1. Baseline Demand Projection'!Q$26:R$26)))","v":""},{"$f":"SFMeasurePercent($L73,J73,sftoiletsperhhld,sfshwrsperhhld,sfwasherperhhld,AVERAGE(IF(baseline_selection=1,'1. Baseline Demand Projection'!I$26:J$26,'1. Baseline Demand Projection'!R$26:S$26)))","v":""},null,0,0,0,0,0,0,0,0,0,0,0,0,0,0,0,0,0,0,0,0,0,0,0,0,0,0,0,0,0,0,0,0,0,0,0,0,0,0,0,0,0,0,0,0,0,0,0,0,0,0,0,null,{"$f":"MeasureSavingsArray(AO73:CM73,S73,T73,U73,W73,X73,D73)","v":0},0,0,0,0,0,0,0,0,0,0,0,0,0,0,0,0,0,0,0,0,0,0,0,0,0,0,0,0,0,0,0,0,0,0,0,0,0,0,0,0,0,0,0,0,0,0,0,0,0,0,0,null,0,0,0,0,0,0,0,0,0,0,0,0,0,0,0,0,0,0,0,0,0,0,0,0,0,0,0,0,0,0,0,0,0,0,0,0,0,0,0,0,0,0,0,0,0,0,0,0,0,0,0,null,0,0,0,0,0,0,0,0,0,0,0,0,0,0,0,0,0,0,0,0,0,0,0,0,0,0,0,0,0,0,0,0,0,0,0,0,0,0,0,0,0,0,0,0,0,0,0,0,0,0,0,null,{"$f":"DebtServiceArray(AO73:CM73,P73,discount_rate,Q73,D73)","v":0},0,0,0,0,0,0,0,0,0,0,0,0,0,0,0,0,0,0,0,0,0,0,0,0,0,0,0,0,0,0,0,0,0,0,0,0,0,0,0,0,0,0,0,0,0,0,0,0,0,0,null,0,0,0,0,0,0,0,0,0,0,0,0,0,0,0,0,0,0,0,0,0,0,0,0,0,0,0,0,0,0,0,0,0,0,0,0,0,0,0,0,0,0,0,0,0,0,0,0,0,0,0,null,0,0.96618357487922713]
[null,"USR-SF-11",null,"N",null,null,null,null,null,null,null,null,null,null,null,null,null,null,null,null,null,null,null,null,null,0,0,null,0,0,0,0,0,null,{"$f":"SFMeasurePercent($L74,F74,sftoiletsperhhld,sfshwrsperhhld,sfwasherperhhld,AVERAGE(IF(baseline_selection=1,'1. Baseline Demand Projection'!E$26:F$26,'1. Baseline Demand Projection'!N$26:O$26)))","v":""},{"$f":"SFMeasurePercent($L74,G74,sftoiletsperhhld,sfshwrsperhhld,sfwasherperhhld,AVERAGE(IF(baseline_selection=1,'1. Baseline Demand Projection'!F$26:G$26,'1. Baseline Demand Projection'!O$26:P$26)))","v":""},{"$f":"SFMeasurePercent($L74,H74,sftoiletsperhhld,sfshwrsperhhld,sfwasherperhhld,AVERAGE(IF(baseline_selection=1,'1. Baseline Demand Projection'!G$26:H$26,'1. Baseline Demand Projection'!P$26:Q$26)))","v":""},{"$f":"SFMeasurePercent($L74,I74,sftoiletsperhhld,sfshwrsperhhld,sfwasherperhhld,AVERAGE(IF(baseline_selection=1,'1. Baseline Demand Projection'!H$26:I$26,'1. Baseline Demand Projection'!Q$26:R$26)))","v":""},{"$f":"SFMeasurePercent($L74,J74,sftoiletsperhhld,sfshwrsperhhld,sfwasherperhhld,AVERAGE(IF(baseline_selection=1,'1. Baseline Demand Projection'!I$26:J$26,'1. Baseline Demand Projection'!R$26:S$26)))","v":""},null,0,{"$f":"CHOOSE(ROUNDUP((AP$18-2020)/10,0),$F74,$G74,$H74,$I74,$J74)*IF($D74=\"Y\",1,0)","v":0},0,0,0,0,0,0,0,0,0,{"$f":"CHOOSE(ROUNDUP((AZ$18-2020)/10,0),$F74,$G74,$H74,$I74,$J74)*IF($D74=\"Y\",1,0)","v":0},0,0,0,0,0,0,0,0,0,{"$f":"CHOOSE(ROUNDUP((BJ$18-2020)/10,0),$F74,$G74,$H74,$I74,$J74)*IF($D74=\"Y\",1,0)","v":0},0,0,0,0,0,0,0,0,0,{"$f":"CHOOSE(ROUNDUP((BT$18-2020)/10,0),$F74,$G74,$H74,$I74,$J74)*IF($D74=\"Y\",1,0)","v":0},0,0,0,0,0,0,0,0,0,{"$f":"CHOOSE(ROUNDUP((CD$18-2020)/10,0),$F74,$G74,$H74,$I74,$J74)*IF($D74=\"Y\",1,0)","v":0},0,0,0,0,0,0,0,0,0,null,{"$f":"MeasureSavingsArray(AO74:CM74,S74,T74,U74,W74,X74,D74)","v":0},0,0,0,0,0,0,0,0,0,0,0,0,0,0,0,0,0,0,0,0,0,0,0,0,0,0,0,0,0,0,0,0,0,0,0,0,0,0,0,0,0,0,0,0,0,0,0,0,0,0,0,null,0,0,0,0,0,0,0,0,0,0,0,0,0,0,0,0,0,0,0,0,0,0,0,0,0,0,0,0,0,0,0,0,0,0,0,0,0,0,0,0,0,0,0,0,0,0,0,0,0,0,0,null,0,0,0,0,0,0,0,0,0,0,0,0,0,0,0,0,0,0,0,0,0,0,0,0,0,0,0,0,0,0,0,0,0,0,0,0,0,0,0,0,0,0,0,0,0,0,0,0,0,0,0,null,{"$f":"DebtServiceArray(AO74:CM74,P74,discount_rate,Q74,D74)","v":0},0,0,0,0,0,0,0,0,0,0,0,0,0,0,0,0,0,0,0,0,0,0,0,0,0,0,0,0,0,0,0,0,0,0,0,0,0,0,0,0,0,0,0,0,0,0,0,0,0,0,null,0,0,0,0,0,0,0,0,0,0,0,0,0,0,0,0,0,0,0,0,0,0,0,0,0,0,0,0,0,0,0,0,0,0,0,0,0,0,0,0,0,0,0,0,0,0,0,0,0,0,0,null,0,0.96618357487922713]
[null,"USR-SF-12",null,"N",null,null,null,null,null,null,null,null,null,null,null,null,null,null,null,null,null,null,null,null,null,0,0,null,0,0,0,0,0,null,{"$f":"SFMeasurePercent($L75,F75,sftoiletsperhhld,sfshwrsperhhld,sfwasherperhhld,AVERAGE(IF(baseline_selection=1,'1. Baseline Demand Projection'!E$26:F$26,'1. Baseline Demand Projection'!N$26:O$26)))","v":""},{"$f":"SFMeasurePercent($L75,G75,sftoiletsperhhld,sfshwrsperhhld,sfwasherperhhld,AVERAGE(IF(baseline_selection=1,'1. Baseline Demand Projection'!F$26:G$26,'1. Baseline Demand Projection'!O$26:P$26)))","v":""},{"$f":"SFMeasurePercent($L75,H75,sftoiletsperhhld,sfshwrsperhhld,sfwasherperhhld,AVERAGE(IF(baseline_selection=1,'1. Baseline Demand Projection'!G$26:H$26,'1. Baseline Demand Projection'!P$26:Q$26)))","v":""},{"$f":"SFMeasurePercent($L75,I75,sftoiletsperhhld,sfshwrsperhhld,sfwasherperhhld,AVERAGE(IF(baseline_selection=1,'1. Baseline Demand Projection'!H$26:I$26,'1. Baseline Demand Projection'!Q$26:R$26)))","v":""},{"$f":"SFMeasurePercent($L75,J75,sftoiletsperhhld,sfshwrsperhhld,sfwasherperhhld,AVERAGE(IF(baseline_selection=1,'1. Baseline Demand Projection'!I$26:J$26,'1. Baseline Demand Projection'!R$26:S$26)))","v":""},null,0,0,0,0,0,0,0,0,0,0,0,0,0,0,0,0,0,0,0,0,0,0,0,0,0,0,0,0,0,0,0,0,0,0,0,0,0,0,0,0,0,0,0,0,0,0,0,0,0,0,0,null,{"$f":"MeasureSavingsArray(AO75:CM75,S75,T75,U75,W75,X75,D75)","v":0},0,0,0,0,0,0,0,0,0,0,0,0,0,0,0,0,0,0,0,0,0,0,0,0,0,0,0,0,0,0,0,0,0,0,0,0,0,0,0,0,0,0,0,0,0,0,0,0,0,0,0,null,0,0,0,0,0,0,0,0,0,0,0,0,0,0,0,0,0,0,0,0,0,0,0,0,0,0,0,0,0,0,0,0,0,0,0,0,0,0,0,0,0,0,0,0,0,0,0,0,0,0,0,null,0,0,0,0,0,0,0,0,0,0,0,0,0,0,0,0,0,0,0,0,0,0,0,0,0,0,0,0,0,0,0,0,0,0,0,0,0,0,0,0,0,0,0,0,0,0,0,0,0,0,0,null,{"$f":"DebtServiceArray(AO75:CM75,P75,discount_rate,Q75,D75)","v":0},0,0,0,0,0,0,0,0,0,0,0,0,0,0,0,0,0,0,0,0,0,0,0,0,0,0,0,0,0,0,0,0,0,0,0,0,0,0,0,0,0,0,0,0,0,0,0,0,0,0,null,0,0,0,0,0,0,0,0,0,0,0,0,0,0,0,0,0,0,0,0,0,0,0,0,0,0,0,0,0,0,0,0,0,0,0,0,0,0,0,0,0,0,0,0,0,0,0,0,0,0,0,null,0,0.96618357487922713]
[null,"USR-SF-13",null,"N",null,null,null,null,null,null,null,null,null,null,null,null,null,null,null,null,null,null,null,null,null,0,0,null,0,0,0,0,0,null,{"$f":"SFMeasurePercent($L76,F76,sftoiletsperhhld,sfshwrsperhhld,sfwasherperhhld,AVERAGE(IF(baseline_selection=1,'1. Baseline Demand Projection'!E$26:F$26,'1. Baseline Demand Projection'!N$26:O$26)))","v":""},{"$f":"SFMeasurePercent($L76,G76,sftoiletsperhhld,sfshwrsperhhld,sfwasherperhhld,AVERAGE(IF(baseline_selection=1,'1. Baseline Demand Projection'!F$26:G$26,'1. Baseline Demand Projection'!O$26:P$26)))","v":""},{"$f":"SFMeasurePercent($L76,H76,sftoiletsperhhld,sfshwrsperhhld,sfwasherperhhld,AVERAGE(IF(baseline_selection=1,'1. Baseline Demand Projection'!G$26:H$26,'1. Baseline Demand Projection'!P$26:Q$26)))","v":""},{"$f":"SFMeasurePercent($L76,I76,sftoiletsperhhld,sfshwrsperhhld,sfwasherperhhld,AVERAGE(IF(baseline_selection=1,'1. Baseline Demand Projection'!H$26:I$26,'1. Baseline Demand Projection'!Q$26:R$26)))","v":""},{"$f":"SFMeasurePercent($L76,J76,sftoiletsperhhld,sfshwrsperhhld,sfwasherperhhld,AVERAGE(IF(baseline_selection=1,'1. Baseline Demand Projection'!I$26:J$26,'1. Baseline Demand Projection'!R$26:S$26)))","v":""},null,0,0,0,0,0,0,0,0,0,0,0,0,0,0,0,0,0,0,0,0,0,0,0,0,0,0,0,0,0,0,0,0,0,0,0,0,0,0,0,0,0,0,0,0,0,0,0,0,0,0,0,null,{"$f":"MeasureSavingsArray(AO76:CM76,S76,T76,U76,W76,X76,D76)","v":0},0,0,0,0,0,0,0,0,0,0,0,0,0,0,0,0,0,0,0,0,0,0,0,0,0,0,0,0,0,0,0,0,0,0,0,0,0,0,0,0,0,0,0,0,0,0,0,0,0,0,0,null,0,0,0,0,0,0,0,0,0,0,0,0,0,0,0,0,0,0,0,0,0,0,0,0,0,0,0,0,0,0,0,0,0,0,0,0,0,0,0,0,0,0,0,0,0,0,0,0,0,0,0,null,0,0,0,0,0,0,0,0,0,0,0,0,0,0,0,0,0,0,0,0,0,0,0,0,0,0,0,0,0,0,0,0,0,0,0,0,0,0,0,0,0,0,0,0,0,0,0,0,0,0,0,null,{"$f":"DebtServiceArray(AO76:CM76,P76,discount_rate,Q76,D76)","v":0},0,0,0,0,0,0,0,0,0,0,0,0,0,0,0,0,0,0,0,0,0,0,0,0,0,0,0,0,0,0,0,0,0,0,0,0,0,0,0,0,0,0,0,0,0,0,0,0,0,0,null,0,0,0,0,0,0,0,0,0,0,0,0,0,0,0,0,0,0,0,0,0,0,0,0,0,0,0,0,0,0,0,0,0,0,0,0,0,0,0,0,0,0,0,0,0,0,0,0,0,0,0,null,0,0.96618357487922713]
[null,"USR-SF-14",null,"N",null,null,null,null,null,null,null,null,null,null,null,null,null,null,null,null,null,null,null,null,null,0,0,null,0,0,0,0,0,null,{"$f":"SFMeasurePercent($L77,F77,sftoiletsperhhld,sfshwrsperhhld,sfwasherperhhld,AVERAGE(IF(baseline_selection=1,'1. Baseline Demand Projection'!E$26:F$26,'1. Baseline Demand Projection'!N$26:O$26)))","v":""},{"$f":"SFMeasurePercent($L77,G77,sftoiletsperhhld,sfshwrsperhhld,sfwasherperhhld,AVERAGE(IF(baseline_selection=1,'1. Baseline Demand Projection'!F$26:G$26,'1. Baseline Demand Projection'!O$26:P$26)))","v":""},{"$f":"SFMeasurePercent($L77,H77,sftoiletsperhhld,sfshwrsperhhld,sfwasherperhhld,AVERAGE(IF(baseline_selection=1,'1. Baseline Demand Projection'!G$26:H$26,'1. Baseline Demand Projection'!P$26:Q$26)))","v":""},{"$f":"SFMeasurePercent($L77,I77,sftoiletsperhhld,sfshwrsperhhld,sfwasherperhhld,AVERAGE(IF(baseline_selection=1,'1. Baseline Demand Projection'!H$26:I$26,'1. Baseline Demand Projection'!Q$26:R$26)))","v":""},{"$f":"SFMeasurePercent($L77,J77,sftoiletsperhhld,sfshwrsperhhld,sfwasherperhhld,AVERAGE(IF(baseline_selection=1,'1. Baseline Demand Projection'!I$26:J$26,'1. Baseline Demand Projection'!R$26:S$26)))","v":""},null,0,0,0,0,0,0,0,0,0,0,0,0,0,0,0,0,0,0,0,0,0,0,0,0,0,0,0,0,0,0,0,0,0,0,0,0,0,0,0,0,0,0,0,0,0,0,0,0,0,0,0,null,{"$f":"MeasureSavingsArray(AO77:CM77,S77,T77,U77,W77,X77,D77)","v":0},0,0,0,0,0,0,0,0,0,0,0,0,0,0,0,0,0,0,0,0,0,0,0,0,0,0,0,0,0,0,0,0,0,0,0,0,0,0,0,0,0,0,0,0,0,0,0,0,0,0,0,null,0,0,0,0,0,0,0,0,0,0,0,0,0,0,0,0,0,0,0,0,0,0,0,0,0,0,0,0,0,0,0,0,0,0,0,0,0,0,0,0,0,0,0,0,0,0,0,0,0,0,0,null,0,0,0,0,0,0,0,0,0,0,0,0,0,0,0,0,0,0,0,0,0,0,0,0,0,0,0,0,0,0,0,0,0,0,0,0,0,0,0,0,0,0,0,0,0,0,0,0,0,0,0,null,{"$f":"DebtServiceArray(AO77:CM77,P77,discount_rate,Q77,D77)","v":0},0,0,0,0,0,0,0,0,0,0,0,0,0,0,0,0,0,0,0,0,0,0,0,0,0,0,0,0,0,0,0,0,0,0,0,0,0,0,0,0,0,0,0,0,0,0,0,0,0,0,null,0,0,0,0,0,0,0,0,0,0,0,0,0,0,0,0,0,0,0,0,0,0,0,0,0,0,0,0,0,0,0,0,0,0,0,0,0,0,0,0,0,0,0,0,0,0,0,0,0,0,0,null,0,0.96618357487922713]
[null,"USR-SF-15",null,"N",null,null,null,null,null,null,null,null,null,null,null,null,null,null,null,null,null,null,null,null,null,0,0,null,0,0,0,0,0,null,{"$f":"SFMeasurePercent($L78,F78,sftoiletsperhhld,sfshwrsperhhld,sfwasherperhhld,AVERAGE(IF(baseline_selection=1,'1. Baseline Demand Projection'!E$26:F$26,'1. Baseline Demand Projection'!N$26:O$26)))","v":""},{"$f":"SFMeasurePercent($L78,G78,sftoiletsperhhld,sfshwrsperhhld,sfwasherperhhld,AVERAGE(IF(baseline_selection=1,'1. Baseline Demand Projection'!F$26:G$26,'1. Baseline Demand Projection'!O$26:P$26)))","v":""},{"$f":"SFMeasurePercent($L78,H78,sftoiletsperhhld,sfshwrsperhhld,sfwasherperhhld,AVERAGE(IF(baseline_selection=1,'1. Baseline Demand Projection'!G$26:H$26,'1. Baseline Demand Projection'!P$26:Q$26)))","v":""},{"$f":"SFMeasurePercent($L78,I78,sftoiletsperhhld,sfshwrsperhhld,sfwasherperhhld,AVERAGE(IF(baseline_selection=1,'1. Baseline Demand Projection'!H$26:I$26,'1. Baseline Demand Projection'!Q$26:R$26)))","v":""},{"$f":"SFMeasurePercent($L78,J78,sftoiletsperhhld,sfshwrsperhhld,sfwasherperhhld,AVERAGE(IF(baseline_selection=1,'1. Baseline Demand Projection'!I$26:J$26,'1. Baseline Demand Projection'!R$26:S$26)))","v":""},null,0,0,0,0,0,0,0,0,0,0,0,0,0,0,0,0,0,0,0,0,0,0,0,0,0,0,0,0,0,0,0,0,0,0,0,0,0,0,0,0,0,0,0,0,0,0,0,0,0,0,0,null,{"$f":"MeasureSavingsArray(AO78:CM78,S78,T78,U78,W78,X78,D78)","v":0},0,0,0,0,0,0,0,0,0,0,0,0,0,0,0,0,0,0,0,0,0,0,0,0,0,0,0,0,0,0,0,0,0,0,0,0,0,0,0,0,0,0,0,0,0,0,0,0,0,0,0,null,0,0,0,0,0,0,0,0,0,0,0,0,0,0,0,0,0,0,0,0,0,0,0,0,0,0,0,0,0,0,0,0,0,0,0,0,0,0,0,0,0,0,0,0,0,0,0,0,0,0,0,null,0,0,0,0,0,0,0,0,0,0,0,0,0,0,0,0,0,0,0,0,0,0,0,0,0,0,0,0,0,0,0,0,0,0,0,0,0,0,0,0,0,0,0,0,0,0,0,0,0,0,0,null,{"$f":"DebtServiceArray(AO78:CM78,P78,discount_rate,Q78,D78)","v":0},0,0,0,0,0,0,0,0,0,0,0,0,0,0,0,0,0,0,0,0,0,0,0,0,0,0,0,0,0,0,0,0,0,0,0,0,0,0,0,0,0,0,0,0,0,0,0,0,0,0,null,0,0,0,0,0,0,0,0,0,0,0,0,0,0,0,0,0,0,0,0,0,0,0,0,0,0,0,0,0,0,0,0,0,0,0,0,0,0,0,0,0,0,0,0,0,0,0,0,0,0,0,null,0,0.96618357487922713]
[null,"USR-SF-16",null,"N",null,null,null,null,null,null,null,null,null,null,null,null,null,null,null,null,null,null,null,null,null,0,0,null,0,0,0,0,0,null,{"$f":"SFMeasurePercent($L79,F79,sftoiletsperhhld,sfshwrsperhhld,sfwasherperhhld,AVERAGE(IF(baseline_selection=1,'1. Baseline Demand Projection'!E$26:F$26,'1. Baseline Demand Projection'!N$26:O$26)))","v":""},{"$f":"SFMeasurePercent($L79,G79,sftoiletsperhhld,sfshwrsperhhld,sfwasherperhhld,AVERAGE(IF(baseline_selection=1,'1. Baseline Demand Projection'!F$26:G$26,'1. Baseline Demand Projection'!O$26:P$26)))","v":""},{"$f":"SFMeasurePercent($L79,H79,sftoiletsperhhld,sfshwrsperhhld,sfwasherperhhld,AVERAGE(IF(baseline_selection=1,'1. Baseline Demand Projection'!G$26:H$26,'1. Baseline Demand Projection'!P$26:Q$26)))","v":""},{"$f":"SFMeasurePercent($L79,I79,sftoiletsperhhld,sfshwrsperhhld,sfwasherperhhld,AVERAGE(IF(baseline_selection=1,'1. Baseline Demand Projection'!H$26:I$26,'1. Baseline Demand Projection'!Q$26:R$26)))","v":""},{"$f":"SFMeasurePercent($L79,J79,sftoiletsperhhld,sfshwrsperhhld,sfwasherperhhld,AVERAGE(IF(baseline_selection=1,'1. Baseline Demand Projection'!I$26:J$26,'1. Baseline Demand Projection'!R$26:S$26)))","v":""},null,0,0,0,0,0,0,0,0,0,0,0,0,0,0,0,0,0,0,0,0,0,0,0,0,0,0,0,0,0,0,0,0,0,0,0,0,0,0,0,0,0,0,0,0,0,0,0,0,0,0,0,null,{"$f":"MeasureSavingsArray(AO79:CM79,S79,T79,U79,W79,X79,D79)","v":0},0,0,0,0,0,0,0,0,0,0,0,0,0,0,0,0,0,0,0,0,0,0,0,0,0,0,0,0,0,0,0,0,0,0,0,0,0,0,0,0,0,0,0,0,0,0,0,0,0,0,0,null,0,0,0,0,0,0,0,0,0,0,0,0,0,0,0,0,0,0,0,0,0,0,0,0,0,0,0,0,0,0,0,0,0,0,0,0,0,0,0,0,0,0,0,0,0,0,0,0,0,0,0,null,0,0,0,0,0,0,0,0,0,0,0,0,0,0,0,0,0,0,0,0,0,0,0,0,0,0,0,0,0,0,0,0,0,0,0,0,0,0,0,0,0,0,0,0,0,0,0,0,0,0,0,null,{"$f":"DebtServiceArray(AO79:CM79,P79,discount_rate,Q79,D79)","v":0},0,0,0,0,0,0,0,0,0,0,0,0,0,0,0,0,0,0,0,0,0,0,0,0,0,0,0,0,0,0,0,0,0,0,0,0,0,0,0,0,0,0,0,0,0,0,0,0,0,0,null,0,0,0,0,0,0,0,0,0,0,0,0,0,0,0,0,0,0,0,0,0,0,0,0,0,0,0,0,0,0,0,0,0,0,0,0,0,0,0,0,0,0,0,0,0,0,0,0,0,0,0,null,0,0.96618357487922713]
[null,"USR-SF-17",null,"N",null,null,null,null,null,null,null,null,null,null,null,null,null,null,null,null,null,null,null,null,null,0,0,null,0,0,0,0,0,null,{"$f":"SFMeasurePercent($L80,F80,sftoiletsperhhld,sfshwrsperhhld,sfwasherperhhld,AVERAGE(IF(baseline_selection=1,'1. Baseline Demand Projection'!E$26:F$26,'1. Baseline Demand Projection'!N$26:O$26)))","v":""},{"$f":"SFMeasurePercent($L80,G80,sftoiletsperhhld,sfshwrsperhhld,sfwasherperhhld,AVERAGE(IF(baseline_selection=1,'1. Baseline Demand Projection'!F$26:G$26,'1. Baseline Demand Projection'!O$26:P$26)))","v":""},{"$f":"SFMeasurePercent($L80,H80,sftoiletsperhhld,sfshwrsperhhld,sfwasherperhhld,AVERAGE(IF(baseline_selection=1,'1. Baseline Demand Projection'!G$26:H$26,'1. Baseline Demand Projection'!P$26:Q$26)))","v":""},{"$f":"SFMeasurePercent($L80,I80,sftoiletsperhhld,sfshwrsperhhld,sfwasherperhhld,AVERAGE(IF(baseline_selection=1,'1. Baseline Demand Projection'!H$26:I$26,'1. Baseline Demand Projection'!Q$26:R$26)))","v":""},{"$f":"SFMeasurePercent($L80,J80,sftoiletsperhhld,sfshwrsperhhld,sfwasherperhhld,AVERAGE(IF(baseline_selection=1,'1. Baseline Demand Projection'!I$26:J$26,'1. Baseline Demand Projection'!R$26:S$26)))","v":""},null,0,0,0,0,0,0,0,0,0,0,0,0,0,0,0,0,0,0,0,0,0,0,0,0,0,0,0,0,0,0,0,0,0,0,0,0,0,0,0,0,0,0,0,0,0,0,0,0,0,0,0,null,{"$f":"MeasureSavingsArray(AO80:CM80,S80,T80,U80,W80,X80,D80)","v":0},0,0,0,0,0,0,0,0,0,0,0,0,0,0,0,0,0,0,0,0,0,0,0,0,0,0,0,0,0,0,0,0,0,0,0,0,0,0,0,0,0,0,0,0,0,0,0,0,0,0,0,null,0,0,0,0,0,0,0,0,0,0,0,0,0,0,0,0,0,0,0,0,0,0,0,0,0,0,0,0,0,0,0,0,0,0,0,0,0,0,0,0,0,0,0,0,0,0,0,0,0,0,0,null,0,0,0,0,0,0,0,0,0,0,0,0,0,0,0,0,0,0,0,0,0,0,0,0,0,0,0,0,0,0,0,0,0,0,0,0,0,0,0,0,0,0,0,0,0,0,0,0,0,0,0,null,{"$f":"DebtServiceArray(AO80:CM80,P80,discount_rate,Q80,D80)","v":0},0,0,0,0,0,0,0,0,0,0,0,0,0,0,0,0,0,0,0,0,0,0,0,0,0,0,0,0,0,0,0,0,0,0,0,0,0,0,0,0,0,0,0,0,0,0,0,0,0,0,null,0,0,0,0,0,0,0,0,0,0,0,0,0,0,0,0,0,0,0,0,0,0,0,0,0,0,0,0,0,0,0,0,0,0,0,0,0,0,0,0,0,0,0,0,0,0,0,0,0,0,0,null,0,0.96618357487922713]
[null,"USR-SF-18",null,"N",null,null,null,null,null,null,null,null,null,null,null,null,null,null,null,null,null,null,null,null,null,0,0,null,0,0,0,0,0,null,{"$f":"SFMeasurePercent($L81,F81,sftoiletsperhhld,sfshwrsperhhld,sfwasherperhhld,AVERAGE(IF(baseline_selection=1,'1. Baseline Demand Projection'!E$26:F$26,'1. Baseline Demand Projection'!N$26:O$26)))","v":""},{"$f":"SFMeasurePercent($L81,G81,sftoiletsperhhld,sfshwrsperhhld,sfwasherperhhld,AVERAGE(IF(baseline_selection=1,'1. Baseline Demand Projection'!F$26:G$26,'1. Baseline Demand Projection'!O$26:P$26)))","v":""},{"$f":"SFMeasurePercent($L81,H81,sftoiletsperhhld,sfshwrsperhhld,sfwasherperhhld,AVERAGE(IF(baseline_selection=1,'1. Baseline Demand Projection'!G$26:H$26,'1. Baseline Demand Projection'!P$26:Q$26)))","v":""},{"$f":"SFMeasurePercent($L81,I81,sftoiletsperhhld,sfshwrsperhhld,sfwasherperhhld,AVERAGE(IF(baseline_selection=1,'1. Baseline Demand Projection'!H$26:I$26,'1. Baseline Demand Projection'!Q$26:R$26)))","v":""},{"$f":"SFMeasurePercent($L81,J81,sftoiletsperhhld,sfshwrsperhhld,sfwasherperhhld,AVERAGE(IF(baseline_selection=1,'1. Baseline Demand Projection'!I$26:J$26,'1. Baseline Demand Projection'!R$26:S$26)))","v":""},null,0,0,0,0,0,0,0,0,0,0,0,0,0,0,0,0,0,0,0,0,0,0,0,0,0,0,0,0,0,0,0,0,0,0,0,0,0,0,0,0,0,0,0,0,0,0,0,0,0,0,0,null,{"$f":"MeasureSavingsArray(AO81:CM81,S81,T81,U81,W81,X81,D81)","v":0},0,0,0,0,0,0,0,0,0,0,0,0,0,0,0,0,0,0,0,0,0,0,0,0,0,0,0,0,0,0,0,0,0,0,0,0,0,0,0,0,0,0,0,0,0,0,0,0,0,0,0,null,0,0,0,0,0,0,0,0,0,0,0,0,0,0,0,0,0,0,0,0,0,0,0,0,0,0,0,0,0,0,0,0,0,0,0,0,0,0,0,0,0,0,0,0,0,0,0,0,0,0,0,null,0,0,0,0,0,0,0,0,0,0,0,0,0,0,0,0,0,0,0,0,0,0,0,0,0,0,0,0,0,0,0,0,0,0,0,0,0,0,0,0,0,0,0,0,0,0,0,0,0,0,0,null,{"$f":"DebtServiceArray(AO81:CM81,P81,discount_rate,Q81,D81)","v":0},0,0,0,0,0,0,0,0,0,0,0,0,0,0,0,0,0,0,0,0,0,0,0,0,0,0,0,0,0,0,0,0,0,0,0,0,0,0,0,0,0,0,0,0,0,0,0,0,0,0,null,0,0,0,0,0,0,0,0,0,0,0,0,0,0,0,0,0,0,0,0,0,0,0,0,0,0,0,0,0,0,0,0,0,0,0,0,0,0,0,0,0,0,0,0,0,0,0,0,0,0,0,null,0,0.96618357487922713]
[null,"USR-SF-19",null,"N",null,null,null,null,null,null,null,null,null,null,null,null,null,null,null,null,null,null,null,null,null,0,0,null,0,0,0,0,0,null,{"$f":"SFMeasurePercent($L82,F82,sftoiletsperhhld,sfshwrsperhhld,sfwasherperhhld,AVERAGE(IF(baseline_selection=1,'1. Baseline Demand Projection'!E$26:F$26,'1. Baseline Demand Projection'!N$26:O$26)))","v":""},{"$f":"SFMeasurePercent($L82,G82,sftoiletsperhhld,sfshwrsperhhld,sfwasherperhhld,AVERAGE(IF(baseline_selection=1,'1. Baseline Demand Projection'!F$26:G$26,'1. Baseline Demand Projection'!O$26:P$26)))","v":""},{"$f":"SFMeasurePercent($L82,H82,sftoiletsperhhld,sfshwrsperhhld,sfwasherperhhld,AVERAGE(IF(baseline_selection=1,'1. Baseline Demand Projection'!G$26:H$26,'1. Baseline Demand Projection'!P$26:Q$26)))","v":""},{"$f":"SFMeasurePercent($L82,I82,sftoiletsperhhld,sfshwrsperhhld,sfwasherperhhld,AVERAGE(IF(baseline_selection=1,'1. Baseline Demand Projection'!H$26:I$26,'1. Baseline Demand Projection'!Q$26:R$26)))","v":""},{"$f":"SFMeasurePercent($L82,J82,sftoiletsperhhld,sfshwrsperhhld,sfwasherperhhld,AVERAGE(IF(baseline_selection=1,'1. Baseline Demand Projection'!I$26:J$26,'1. Baseline Demand Projection'!R$26:S$26)))","v":""},null,0,0,0,0,0,0,0,0,0,0,0,0,0,0,0,0,0,0,0,0,0,0,0,0,0,0,0,0,0,0,0,0,0,0,0,0,0,0,0,0,0,0,0,0,0,0,0,0,0,0,0,null,{"$f":"MeasureSavingsArray(AO82:CM82,S82,T82,U82,W82,X82,D82)","v":0},0,0,0,0,0,0,0,0,0,0,0,0,0,0,0,0,0,0,0,0,0,0,0,0,0,0,0,0,0,0,0,0,0,0,0,0,0,0,0,0,0,0,0,0,0,0,0,0,0,0,0,null,0,0,0,0,0,0,0,0,0,0,0,0,0,0,0,0,0,0,0,0,0,0,0,0,0,0,0,0,0,0,0,0,0,0,0,0,0,0,0,0,0,0,0,0,0,0,0,0,0,0,0,null,0,0,0,0,0,0,0,0,0,0,0,0,0,0,0,0,0,0,0,0,0,0,0,0,0,0,0,0,0,0,0,0,0,0,0,0,0,0,0,0,0,0,0,0,0,0,0,0,0,0,0,null,{"$f":"DebtServiceArray(AO82:CM82,P82,discount_rate,Q82,D82)","v":0},0,0,0,0,0,0,0,0,0,0,0,0,0,0,0,0,0,0,0,0,0,0,0,0,0,0,0,0,0,0,0,0,0,0,0,0,0,0,0,0,0,0,0,0,0,0,0,0,0,0,null,0,0,0,0,0,0,0,0,0,0,0,0,0,0,0,0,0,0,0,0,0,0,0,0,0,0,0,0,0,0,0,0,0,0,0,0,0,0,0,0,0,0,0,0,0,0,0,0,0,0,0,null,0,0.96618357487922713]
[null,"USR-SF-20",null,"N",null,null,null,null,null,null,null,null,null,null,null,null,null,null,null,null,null,null,null,null,null,0,0,null,0,0,0,0,0,null,{"$f":"SFMeasurePercent($L83,F83,sftoiletsperhhld,sfshwrsperhhld,sfwasherperhhld,AVERAGE(IF(baseline_selection=1,'1. Baseline Demand Projection'!E$26:F$26,'1. Baseline Demand Projection'!N$26:O$26)))","v":""},{"$f":"SFMeasurePercent($L83,G83,sftoiletsperhhld,sfshwrsperhhld,sfwasherperhhld,AVERAGE(IF(baseline_selection=1,'1. Baseline Demand Projection'!F$26:G$26,'1. Baseline Demand Projection'!O$26:P$26)))","v":""},{"$f":"SFMeasurePercent($L83,H83,sftoiletsperhhld,sfshwrsperhhld,sfwasherperhhld,AVERAGE(IF(baseline_selection=1,'1. Baseline Demand Projection'!G$26:H$26,'1. Baseline Demand Projection'!P$26:Q$26)))","v":""},{"$f":"SFMeasurePercent($L83,I83,sftoiletsperhhld,sfshwrsperhhld,sfwasherperhhld,AVERAGE(IF(baseline_selection=1,'1. Baseline Demand Projection'!H$26:I$26,'1. Baseline Demand Projection'!Q$26:R$26)))","v":""},{"$f":"SFMeasurePercent($L83,J83,sftoiletsperhhld,sfshwrsperhhld,sfwasherperhhld,AVERAGE(IF(baseline_selection=1,'1. Baseline Demand Projection'!I$26:J$26,'1. Baseline Demand Projection'!R$26:S$26)))","v":""},null,0,0,0,0,0,0,0,0,0,0,0,0,0,0,0,0,0,0,0,0,0,0,0,0,0,0,0,0,0,0,0,0,0,0,0,0,0,0,0,0,0,0,0,0,0,0,0,0,0,0,0,null,{"$f":"MeasureSavingsArray(AO83:CM83,S83,T83,U83,W83,X83,D83)","v":0},0,0,0,0,0,0,0,0,0,0,0,0,0,0,0,0,0,0,0,0,0,0,0,0,0,0,0,0,0,0,0,0,0,0,0,0,0,0,0,0,0,0,0,0,0,0,0,0,0,0,0,null,0,0,0,0,0,0,0,0,0,0,0,0,0,0,0,0,0,0,0,0,0,0,0,0,0,0,0,0,0,0,0,0,0,0,0,0,0,0,0,0,0,0,0,0,0,0,0,0,0,0,0,null,0,0,0,0,0,0,0,0,0,0,0,0,0,0,0,0,0,0,0,0,0,0,0,0,0,0,0,0,0,0,0,0,0,0,0,0,0,0,0,0,0,0,0,0,0,0,0,0,0,0,0,null,{"$f":"DebtServiceArray(AO83:CM83,P83,discount_rate,Q83,D83)","v":0},0,0,0,0,0,0,0,0,0,0,0,0,0,0,0,0,0,0,0,0,0,0,0,0,0,0,0,0,0,0,0,0,0,0,0,0,0,0,0,0,0,0,0,0,0,0,0,0,0,0,null,0,0,0,0,0,0,0,0,0,0,0,0,0,0,0,0,0,0,0,0,0,0,0,0,0,0,0,0,0,0,0,0,0,0,0,0,0,0,0,0,0,0,0,0,0,0,0,0,0,0,0,null,0,0.96618357487922713]
[null,null,null,null,null,null,null,null,null,null,null,null,null,null,null,null,null,null,null,null,null,null,null,null,null,null,null,null,null,null,null,null,null,null,null,null,null,null,null,null,null,null,null,null,null,null,null,null,null,null,null,null,null,null,null,null,null,null,null,null,null,null,null,null,null,null,null,null,null,null,null,null,null,null,null,null,null,null,null,null,null,null,null,null,null,null,null,null,null,null,null,null,{"$f":"SUM(CO64:CO83)","v":0},0,0,0,0,0,0,0,0,0,0,0,0,0,0,0,0,0,0,0,0,0,0,0,0,0,0,0,0,0,0,0,{"$f":"SUM(DU64:DU83)","v":0},0,0,0,0,0,0,0,0,0,0,0,0,0,0,0,0,0,0,0,null,{"$f":"SUM(EP64:EP83)","v":0},{"$f":"SUM(EQ64:EQ83)","v":0},0,0,0,0,0,0,0,0,0,0,0,0,0,0,0,0,0,0,0,0,0,0,0,0,0,0,0,0,0,0,0,0,0,0,0,0,0,0,0,0,0,0,0,0,0,0,0,0,0,null,{"$f":"SUM(GP64:GP83)","v":0},{"$f":"SUM(GQ64:GQ83)","v":0},0,0,0,0,0,0,0,0,0,0,0,0,0,0,0,0,0,0,0,0,0,0,0,0,0,0,0,0,0,0,0,0,0,0,0,0,0,0,0,0,0,0,0,0,0,0,0,0,0,null,{"$f":"SUM(IP64:IP83)","v":0},0,0,0,0,0,0,0,0,0,0,0,0,0,0,0,0,0,0,0,0,0,0,0,0,0,0,0,0,0,0,0,{"$f":"SUM(JV64:JV83)","v":0},0,0,0,0,0,0,0,0,0,0,0,0,0,0,0,0,0,0,null,{"$f":"SUM(KP64:KP83)","v":0},{"$f":"SUM(KQ64:KQ83)","v":0},0,0,0,0,0,0,0,0,0,0,0,0,0,0,0,0,0,0,0,0,0,0,0,0,0,0,0,0,0,0,0,0,0,0,0,0,0,0,0,0,0,0,0,0,0,0,0,0,0]
[null,"Multi-Family Measures"]
[null,"USR-MF-01",null,"N",null,null,null,null,null,null,null,null,null,null,null,null,null,null,null,null,null,null,null,null,null,{"$f":"SUM(O86:P86)","v":0},{"$f":"IF(S86>0,(SUM(O86:P86)/(MP86*(1-T86)))*(MQ86-1)/(MQ86^X86-1),0)","v":0},null,{"$f":"AVERAGE(KP86:KZ86)","v":0},{"$f":"AVERAGE(LA86:LJ86)","v":0},{"$f":"AVERAGE(LK86:LT86)","v":0},{"$f":"AVERAGE(LU86:MD86)","v":0},{"$f":"AVERAGE(ME86:MN86)","v":0},null,{"$f":"MFMeasurePercent($L86,F86,mftoiletsperhhld,mfshwrsperhhld,mfhhldpercomplex,mfhhldperwasher,AVERAGE(IF(baseline_selection=1,'1. Baseline Demand Projection'!E$27:F$27,'1. Baseline Demand Projection'!N$27:O$27)))","v":""},{"$f":"MFMeasurePercent($L86,G86,mftoiletsperhhld,mfshwrsperhhld,mfhhldpercomplex,mfhhldperwasher,AVERAGE(IF(baseline_selection=1,'1. Baseline Demand Projection'!F$27:G$27,'1. Baseline Demand Projection'!O$27:P$27)))","v":""},{"$f":"MFMeasurePercent($L86,H86,mftoiletsperhhld,mfshwrsperhhld,mfhhldpercomplex,mfhhldperwasher,AVERAGE(IF(baseline_selection=1,'1. Baseline Demand Projection'!G$27:H$27,'1. Baseline Demand Projection'!P$27:Q$27)))","v":""},{"$f":"MFMeasurePercent($L86,I86,mftoiletsperhhld,mfshwrsperhhld,mfhhldpercomplex,mfhhldperwasher,AVERAGE(IF(baseline_selection=1,'1. Baseline Demand Projection'!H$27:I$27,'1. Baseline Demand Projection'!Q$27:R$27)))","v":""},{"$f":"MFMeasurePercent($L86,J86,mftoiletsperhhld,mfshwrsperhhld,mfhhldpercomplex,mfhhldperwasher,AVERAGE(IF(baseline_selection=1,'1. Baseline Demand Projection'!I$27:J$27,'1. Baseline Demand Projection'!R$27:S$27)))","v":""},null,{"$f":"$F86*IF($D86=\"Y\",1,0)","v":0},{"$f":"CHOOSE(ROUNDUP((AP$18-2020)/10,0),$F86,$G86,$H86,$I86,$J86)*IF($D86=\"Y\",1,0)","v":0},0,0,0,0,0,0,0,0,0,{"$f":"CHOOSE(ROUNDUP((AZ$18-2020)/10,0),$F86,$G86,$H86,$I86,$J86)*IF($D86=\"Y\",1,0)","v":0},0,0,0,0,0,0,0,0,0,{"$f":"CHOOSE(ROUNDUP((BJ$18-2020)/10,0),$F86,$G86,$H86,$I86,$J86)*IF($D86=\"Y\",1,0)","v":0},0,0,0,0,0,0,0,0,0,{"$f":"CHOOSE(ROUNDUP((BT$18-2020)/10,0),$F86,$G86,$H86,$I86,$J86)*IF($D86=\"Y\",1,0)","v":0},0,0,0,0,0,0,0,0,0,{"$f":"CHOOSE(ROUNDUP((CD$18-2020)/10,0),$F86,$G86,$H86,$I86,$J86)*IF($D86=\"Y\",1,0)","v":0},0,0,0,0,0,0,0,0,0,null,{"$f":"MeasureSavingsArray(AO86:CM86,S86,T86,U86,W86,X86,D86)","v":0},0,0,0,0,0,0,0,0,0,0,0,0,0,0,0,0,0,0,0,0,0,0,0,0,0,0,0,0,0,0,0,0,0,0,0,0,0,0,0,0,0,0,0,0,0,0,0,0,0,0,{"$f":"CO86+NPV(discount_rate,CP86:EM86)","v":0},null,{"$f":"$O86*AO86","v":0},{"$f":"$O86*AP86","v":0},{"$f":"$O86*AQ86","v":0},{"$f":"$O86*AR86","v":0},{"$f":"$O86*AS86","v":0},{"$f":"$O86*AT86","v":0},{"$f":"$O86*AU86","v":0},{"$f":"$O86*AV86","v":0},{"$f":"$O86*AW86","v":0},{"$f":"$O86*AX86","v":0},{"$f":"$O86*AY86","v":0},{"$f":"$O86*AZ86","v":0},{"$f":"$O86*BA86","v":0},{"$f":"$O86*BB86","v":0},{"$f":"$O86*BC86","v":0},{"$f":"$O86*BD86","v":0},{"$f":"$O86*BE86","v":0},{"$f":"$O86*BF86","v":0},{"$f":"$O86*BG86","v":0},{"$f":"$O86*BH86","v":0},{"$f":"$O86*BI86","v":0},{"$f":"$O86*BJ86","v":0},{"$f":"$O86*BK86","v":0},{"$f":"$O86*BL86","v":0},{"$f":"$O86*BM86","v":0},{"$f":"$O86*BN86","v":0},{"$f":"$O86*BO86","v":0},{"$f":"$O86*BP86","v":0},{"$f":"$O86*BQ86","v":0},{"$f":"$O86*BR86","v":0},{"$f":"$O86*BS86","v":0},{"$f":"$O86*BT86","v":0},{"$f":"$O86*BU86","v":0},{"$f":"$O86*BV86","v":0},{"$f":"$O86*BW86","v":0},{"$f":"$O86*BX86","v":0},{"$f":"$O86*BY86","v":0},{"$f":"$O86*BZ86","v":0},{"$f":"$O86*CA86","v":0},{"$f":"$O86*CB86","v":0},{"$f":"$O86*CC86","v":0},{"$f":"$O86*CD86","v":0},{"$f":"$O86*CE86","v":0},{"$f":"$O86*CF86","v":0},{"$f":"$O86*CG86","v":0},{"$f":"$O86*CH86","v":0},{"$f":"$O86*CI86","v":0},{"$f":"$O86*CJ86","v":0},{"$f":"$O86*CK86","v":0},{"$f":"$O86*CL86","v":0},{"$f":"$O86*CM86","v":0},null,{"$f":"$P86*IF($Q86=\"N\",1,0)*AO86","v":0},{"$f":"$P86*IF($Q86=\"N\",1,0)*AP86","v":0},{"$f":"$P86*IF($Q86=\"N\",1,0)*AQ86","v":0},{"$f":"$P86*IF($Q86=\"N\",1,0)*AR86","v":0},{"$f":"$P86*IF($Q86=\"N\",1,0)*AS86","v":0},{"$f":"$P86*IF($Q86=\"N\",1,0)*AT86","v":0},{"$f":"$P86*IF($Q86=\"N\",1,0)*AU86","v":0},{"$f":"$P86*IF($Q86=\"N\",1,0)*AV86","v":0},{"$f":"$P86*IF($Q86=\"N\",1,0)*AW86","v":0},{"$f":"$P86*IF($Q86=\"N\",1,0)*AX86","v":0},{"$f":"$P86*IF($Q86=\"N\",1,0)*AY86","v":0},{"$f":"$P86*IF($Q86=\"N\",1,0)*AZ86","v":0},{"$f":"$P86*IF($Q86=\"N\",1,0)*BA86","v":0},{"$f":"$P86*IF($Q86=\"N\",1,0)*BB86","v":0},{"$f":"$P86*IF($Q86=\"N\",1,0)*BC86","v":0},{"$f":"$P86*IF($Q86=\"N\",1,0)*BD86","v":0},{"$f":"$P86*IF($Q86=\"N\",1,0)*BE86","v":0},{"$f":"$P86*IF($Q86=\"N\",1,0)*BF86","v":0},{"$f":"$P86*IF($Q86=\"N\",1,0)*BG86","v":0},{"$f":"$P86*IF($Q86=\"N\",1,0)*BH86","v":0},{"$f":"$P86*IF($Q86=\"N\",1,0)*BI86","v":0},{"$f":"$P86*IF($Q86=\"N\",1,0)*BJ86","v":0},{"$f":"$P86*IF($Q86=\"N\",1,0)*BK86","v":0},{"$f":"$P86*IF($Q86=\"N\",1,0)*BL86","v":0},{"$f":"$P86*IF($Q86=\"N\",1,0)*BM86","v":0},{"$f":"$P86*IF($Q86=\"N\",1,0)*BN86","v":0},{"$f":"$P86*IF($Q86=\"N\",1,0)*BO86","v":0},{"$f":"$P86*IF($Q86=\"N\",1,0)*BP86","v":0},{"$f":"$P86*IF($Q86=\"N\",1,0)*BQ86","v":0},{"$f":"$P86*IF($Q86=\"N\",1,0)*BR86","v":0},{"$f":"$P86*IF($Q86=\"N\",1,0)*BS86","v":0},{"$f":"$P86*IF($Q86=\"N\",1,0)*BT86","v":0},{"$f":"$P86*IF($Q86=\"N\",1,0)*BU86","v":0},{"$f":"$P86*IF($Q86=\"N\",1,0)*BV86","v":0},{"$f":"$P86*IF($Q86=\"N\",1,0)*BW86","v":0},{"$f":"$P86*IF($Q86=\"N\",1,0)*BX86","v":0},{"$f":"$P86*IF($Q86=\"N\",1,0)*BY86","v":0},{"$f":"$P86*IF($Q86=\"N\",1,0)*BZ86","v":0},{"$f":"$P86*IF($Q86=\"N\",1,0)*CA86","v":0},{"$f":"$P86*IF($Q86=\"N\",1,0)*CB86","v":0},{"$f":"$P86*IF($Q86=\"N\",1,0)*CC86","v":0},{"$f":"$P86*IF($Q86=\"N\",1,0)*CD86","v":0},{"$f":"$P86*IF($Q86=\"N\",1,0)*CE86","v":0},{"$f":"$P86*IF($Q86=\"N\",1,0)*CF86","v":0},{"$f":"$P86*IF($Q86=\"N\",1,0)*CG86","v":0},{"$f":"$P86*IF($Q86=\"N\",1,0)*CH86","v":0},{"$f":"$P86*IF($Q86=\"N\",1,0)*CI86","v":0},{"$f":"$P86*IF($Q86=\"N\",1,0)*CJ86","v":0},{"$f":"$P86*IF($Q86=\"N\",1,0)*CK86","v":0},{"$f":"$P86*IF($Q86=\"N\",1,0)*CL86","v":0},{"$f":"$P86*IF($Q86=\"N\",1,0)*CM86","v":0},null,{"$f":"DebtServiceArray(AO86:CM86,P86,discount_rate,Q86,D86)","v":0},0,0,0,0,0,0,0,0,0,0,0,0,0,0,0,0,0,0,0,0,0,0,0,0,0,0,0,0,0,0,0,0,0,0,0,0,0,0,0,0,0,0,0,0,0,0,0,0,0,0,null,{"$f":"SUM(EP86,GP86,IP86)","v":0},{"$f":"SUM(EQ86,GQ86,IQ86)","v":0},{"$f":"SUM(ER86,GR86,IR86)","v":0},{"$f":"SUM(ES86,GS86,IS86)","v":0},{"$f":"SUM(ET86,GT86,IT86)","v":0},{"$f":"SUM(EU86,GU86,IU86)","v":0},{"$f":"SUM(EV86,GV86,IV86)","v":0},{"$f":"SUM(EW86,GW86,IW86)","v":0},{"$f":"SUM(EX86,GX86,IX86)","v":0},{"$f":"SUM(EY86,GY86,IY86)","v":0},{"$f":"SUM(EZ86,GZ86,IZ86)","v":0},{"$f":"SUM(FA86,HA86,JA86)","v":0},{"$f":"SUM(FB86,HB86,JB86)","v":0},{"$f":"SUM(FC86,HC86,JC86)","v":0},{"$f":"SUM(FD86,HD86,JD86)","v":0},{"$f":"SUM(FE86,HE86,JE86)","v":0},{"$f":"SUM(FF86,HF86,JF86)","v":0},{"$f":"SUM(FG86,HG86,JG86)","v":0},{"$f":"SUM(FH86,HH86,JH86)","v":0},{"$f":"SUM(FI86,HI86,JI86)","v":0},{"$f":"SUM(FJ86,HJ86,JJ86)","v":0},{"$f":"SUM(FK86,HK86,JK86)","v":0},{"$f":"SUM(FL86,HL86,JL86)","v":0},{"$f":"SUM(FM86,HM86,JM86)","v":0},{"$f":"SUM(FN86,HN86,JN86)","v":0},{"$f":"SUM(FO86,HO86,JO86)","v":0},{"$f":"SUM(FP86,HP86,JP86)","v":0},{"$f":"SUM(FQ86,HQ86,JQ86)","v":0},{"$f":"SUM(FR86,HR86,JR86)","v":0},{"$f":"SUM(FS86,HS86,JS86)","v":0},{"$f":"SUM(FT86,HT86,JT86)","v":0},{"$f":"SUM(FU86,HU86,JU86)","v":0},{"$f":"SUM(FV86,HV86,JV86)","v":0},{"$f":"SUM(FW86,HW86,JW86)","v":0},{"$f":"SUM(FX86,HX86,JX86)","v":0},{"$f":"SUM(FY86,HY86,JY86)","v":0},{"$f":"SUM(FZ86,HZ86,JZ86)","v":0},{"$f":"SUM(GA86,IA86,KA86)","v":0},{"$f":"SUM(GB86,IB86,KB86)","v":0},{"$f":"SUM(GC86,IC86,KC86)","v":0},{"$f":"SUM(GD86,ID86,KD86)","v":0},{"$f":"SUM(GE86,IE86,KE86)","v":0},{"$f":"SUM(GF86,IF86,KF86)","v":0},{"$f":"SUM(GG86,IG86,KG86)","v":0},{"$f":"SUM(GH86,IH86,KH86)","v":0},{"$f":"SUM(GI86,II86,KI86)","v":0},{"$f":"SUM(GJ86,IJ86,KJ86)","v":0},{"$f":"SUM(GK86,IK86,KK86)","v":0},{"$f":"SUM(GL86,IL86,KL86)","v":0},{"$f":"SUM(GM86,IM86,KM86)","v":0},{"$f":"SUM(GN86,IN86,KN86)","v":0},null,{"$f":"S86*365/325851","v":0},{"$f":"(1-U86)*(1-W86)/(1+discount_rate)","v":0.96618357487922713}]
[null,"USR-MF-02",null,"N",null,null,null,null,null,null,null,null,null,null,null,null,null,null,null,null,null,null,null,null,null,0,0,null,0,0,0,0,0,null,{"$f":"MFMeasurePercent($L87,F87,mftoiletsperhhld,mfshwrsperhhld,mfhhldpercomplex,mfhhldperwasher,AVERAGE(IF(baseline_selection=1,'1. Baseline Demand Projection'!E$27:F$27,'1. Baseline Demand Projection'!N$27:O$27)))","v":""},{"$f":"MFMeasurePercent($L87,G87,mftoiletsperhhld,mfshwrsperhhld,mfhhldpercomplex,mfhhldperwasher,AVERAGE(IF(baseline_selection=1,'1. Baseline Demand Projection'!F$27:G$27,'1. Baseline Demand Projection'!O$27:P$27)))","v":""},{"$f":"MFMeasurePercent($L87,H87,mftoiletsperhhld,mfshwrsperhhld,mfhhldpercomplex,mfhhldperwasher,AVERAGE(IF(baseline_selection=1,'1. Baseline Demand Projection'!G$27:H$27,'1. Baseline Demand Projection'!P$27:Q$27)))","v":""},{"$f":"MFMeasurePercent($L87,I87,mftoiletsperhhld,mfshwrsperhhld,mfhhldpercomplex,mfhhldperwasher,AVERAGE(IF(baseline_selection=1,'1. Baseline Demand Projection'!H$27:I$27,'1. Baseline Demand Projection'!Q$27:R$27)))","v":""},{"$f":"MFMeasurePercent($L87,J87,mftoiletsperhhld,mfshwrsperhhld,mfhhldpercomplex,mfhhldperwasher,AVERAGE(IF(baseline_selection=1,'1. Baseline Demand Projection'!I$27:J$27,'1. Baseline Demand Projection'!R$27:S$27)))","v":""},null,0,0,0,0,0,0,0,0,0,0,0,0,0,0,0,0,0,0,0,0,0,0,0,0,0,0,0,0,0,0,0,0,0,0,0,0,0,0,0,0,0,0,0,0,0,0,0,0,0,0,0,null,{"$f":"MeasureSavingsArray(AO87:CM87,S87,T87,U87,W87,X87,D87)","v":0},0,0,0,0,0,0,0,0,0,0,0,0,0,0,0,0,0,0,0,0,0,0,0,0,0,0,0,0,0,0,0,0,0,0,0,0,0,0,0,0,0,0,0,0,0,0,0,0,0,0,0,null,0,0,0,0,0,0,0,0,0,0,0,0,0,0,0,0,0,0,0,0,0,0,0,0,0,0,0,0,0,0,0,0,0,0,0,0,0,0,0,0,0,0,0,0,0,0,0,0,0,0,0,null,0,0,0,0,0,0,0,0,0,0,0,0,0,0,0,0,0,0,0,0,0,0,0,0,0,0,0,0,0,0,0,0,0,0,0,0,0,0,0,0,0,0,0,0,0,0,0,0,0,0,0,null,{"$f":"DebtServiceArray(AO87:CM87,P87,discount_rate,Q87,D87)","v":0},0,0,0,0,0,0,0,0,0,0,0,0,0,0,0,0,0,0,0,0,0,0,0,0,0,0,0,0,0,0,0,0,0,0,0,0,0,0,0,0,0,0,0,0,0,0,0,0,0,0,null,0,0,0,0,0,0,0,0,0,0,0,0,0,0,0,0,0,0,0,0,0,0,0,0,0,0,0,0,0,0,0,0,0,0,0,0,0,0,0,0,0,0,0,0,0,0,0,0,0,0,0,null,0,0.96618357487922713]
[null,"USR-MF-03",null,"N",null,null,null,null,null,null,null,null,null,null,null,null,null,null,null,null,null,null,null,null,null,0,0,null,0,0,0,0,0,null,{"$f":"MFMeasurePercent($L88,F88,mftoiletsperhhld,mfshwrsperhhld,mfhhldpercomplex,mfhhldperwasher,AVERAGE(IF(baseline_selection=1,'1. Baseline Demand Projection'!E$27:F$27,'1. Baseline Demand Projection'!N$27:O$27)))","v":""},{"$f":"MFMeasurePercent($L88,G88,mftoiletsperhhld,mfshwrsperhhld,mfhhldpercomplex,mfhhldperwasher,AVERAGE(IF(baseline_selection=1,'1. Baseline Demand Projection'!F$27:G$27,'1. Baseline Demand Projection'!O$27:P$27)))","v":""},{"$f":"MFMeasurePercent($L88,H88,mftoiletsperhhld,mfshwrsperhhld,mfhhldpercomplex,mfhhldperwasher,AVERAGE(IF(baseline_selection=1,'1. Baseline Demand Projection'!G$27:H$27,'1. Baseline Demand Projection'!P$27:Q$27)))","v":""},{"$f":"MFMeasurePercent($L88,I88,mftoiletsperhhld,mfshwrsperhhld,mfhhldpercomplex,mfhhldperwasher,AVERAGE(IF(baseline_selection=1,'1. Baseline Demand Projection'!H$27:I$27,'1. Baseline Demand Projection'!Q$27:R$27)))","v":""},{"$f":"MFMeasurePercent($L88,J88,mftoiletsperhhld,mfshwrsperhhld,mfhhldpercomplex,mfhhldperwasher,AVERAGE(IF(baseline_selection=1,'1. Baseline Demand Projection'!I$27:J$27,'1. Baseline Demand Projection'!R$27:S$27)))","v":""},null,0,0,0,0,0,0,0,0,0,0,0,0,0,0,0,0,0,0,0,0,0,0,0,0,0,0,0,0,0,0,0,0,0,0,0,0,0,0,0,0,0,0,0,0,0,0,0,0,0,0,0,null,{"$f":"MeasureSavingsArray(AO88:CM88,S88,T88,U88,W88,X88,D88)","v":0},0,0,0,0,0,0,0,0,0,0,0,0,0,0,0,0,0,0,0,0,0,0,0,0,0,0,0,0,0,0,0,0,0,0,0,0,0,0,0,0,0,0,0,0,0,0,0,0,0,0,0,null,0,0,0,0,0,0,0,0,0,0,0,0,0,0,0,0,0,0,0,0,0,0,0,0,0,0,0,0,0,0,0,0,0,0,0,0,0,0,0,0,0,0,0,0,0,0,0,0,0,0,0,null,0,0,0,0,0,0,0,0,0,0,0,0,0,0,0,0,0,0,0,0,0,0,0,0,0,0,0,0,0,0,0,0,0,0,0,0,0,0,0,0,0,0,0,0,0,0,0,0,0,0,0,null,{"$f":"DebtServiceArray(AO88:CM88,P88,discount_rate,Q88,D88)","v":0},0,0,0,0,0,0,0,0,0,0,0,0,0,0,0,0,0,0,0,0,0,0,0,0,0,0,0,0,0,0,0,0,0,0,0,0,0,0,0,0,0,0,0,0,0,0,0,0,0,0,null,0,0,0,0,0,0,0,0,0,0,0,0,0,0,0,0,0,0,0,0,0,0,0,0,0,0,0,0,0,0,0,0,0,0,0,0,0,0,0,0,0,0,0,0,0,0,0,0,0,0,0,null,0,0.96618357487922713]
[null,"USR-MF-04",null,"N",null,null,null,null,null,null,null,null,null,null,null,null,null,null,null,null,null,null,null,null,null,0,0,null,0,0,0,0,0,null,{"$f":"MFMeasurePercent($L89,F89,mftoiletsperhhld,mfshwrsperhhld,mfhhldpercomplex,mfhhldperwasher,AVERAGE(IF(baseline_selection=1,'1. Baseline Demand Projection'!E$27:F$27,'1. Baseline Demand Projection'!N$27:O$27)))","v":""},{"$f":"MFMeasurePercent($L89,G89,mftoiletsperhhld,mfshwrsperhhld,mfhhldpercomplex,mfhhldperwasher,AVERAGE(IF(baseline_selection=1,'1. Baseline Demand Projection'!F$27:G$27,'1. Baseline Demand Projection'!O$27:P$27)))","v":""},{"$f":"MFMeasurePercent($L89,H89,mftoiletsperhhld,mfshwrsperhhld,mfhhldpercomplex,mfhhldperwasher,AVERAGE(IF(baseline_selection=1,'1. Baseline Demand Projection'!G$27:H$27,'1. Baseline Demand Projection'!P$27:Q$27)))","v":""},{"$f":"MFMeasurePercent($L89,I89,mftoiletsperhhld,mfshwrsperhhld,mfhhldpercomplex,mfhhldperwasher,AVERAGE(IF(baseline_selection=1,'1. Baseline Demand Projection'!H$27:I$27,'1. Baseline Demand Projection'!Q$27:R$27)))","v":""},{"$f":"MFMeasurePercent($L89,J89,mftoiletsperhhld,mfshwrsperhhld,mfhhldpercomplex,mfhhldperwasher,AVERAGE(IF(baseline_selection=1,'1. Baseline Demand Projection'!I$27:J$27,'1. Baseline Demand Projection'!R$27:S$27)))","v":""},null,0,0,0,0,0,0,0,0,0,0,0,0,0,0,0,0,0,0,0,0,0,0,0,0,0,0,0,0,0,0,0,0,0,0,0,0,0,0,0,0,0,0,0,0,0,0,0,0,0,0,0,null,{"$f":"MeasureSavingsArray(AO89:CM89,S89,T89,U89,W89,X89,D89)","v":0},0,0,0,0,0,0,0,0,0,0,0,0,0,0,0,0,0,0,0,0,0,0,0,0,0,0,0,0,0,0,0,0,0,0,0,0,0,0,0,0,0,0,0,0,0,0,0,0,0,0,0,null,0,0,0,0,0,0,0,0,0,0,0,0,0,0,0,0,0,0,0,0,0,0,0,0,0,0,0,0,0,0,0,0,0,0,0,0,0,0,0,0,0,0,0,0,0,0,0,0,0,0,0,null,0,0,0,0,0,0,0,0,0,0,0,0,0,0,0,0,0,0,0,0,0,0,0,0,0,0,0,0,0,0,0,0,0,0,0,0,0,0,0,0,0,0,0,0,0,0,0,0,0,0,0,null,{"$f":"DebtServiceArray(AO89:CM89,P89,discount_rate,Q89,D89)","v":0},0,0,0,0,0,0,0,0,0,0,0,0,0,0,0,0,0,0,0,0,0,0,0,0,0,0,0,0,0,0,0,0,0,0,0,0,0,0,0,0,0,0,0,0,0,0,0,0,0,0,null,0,0,0,0,0,0,0,0,0,0,0,0,0,0,0,0,0,0,0,0,0,0,0,0,0,0,0,0,0,0,0,0,0,0,0,0,0,0,0,0,0,0,0,0,0,0,0,0,0,0,0,null,0,0.96618357487922713]
[null,"USR-MF-05",null,"N",null,null,null,null,null,null,null,null,null,null,null,null,null,null,null,null,null,null,null,null,null,0,0,null,0,0,0,0,0,null,{"$f":"MFMeasurePercent($L90,F90,mftoiletsperhhld,mfshwrsperhhld,mfhhldpercomplex,mfhhldperwasher,AVERAGE(IF(baseline_selection=1,'1. Baseline Demand Projection'!E$27:F$27,'1. Baseline Demand Projection'!N$27:O$27)))","v":""},{"$f":"MFMeasurePercent($L90,G90,mftoiletsperhhld,mfshwrsperhhld,mfhhldpercomplex,mfhhldperwasher,AVERAGE(IF(baseline_selection=1,'1. Baseline Demand Projection'!F$27:G$27,'1. Baseline Demand Projection'!O$27:P$27)))","v":""},{"$f":"MFMeasurePercent($L90,H90,mftoiletsperhhld,mfshwrsperhhld,mfhhldpercomplex,mfhhldperwasher,AVERAGE(IF(baseline_selection=1,'1. Baseline Demand Projection'!G$27:H$27,'1. Baseline Demand Projection'!P$27:Q$27)))","v":""},{"$f":"MFMeasurePercent($L90,I90,mftoiletsperhhld,mfshwrsperhhld,mfhhldpercomplex,mfhhldperwasher,AVERAGE(IF(baseline_selection=1,'1. Baseline Demand Projection'!H$27:I$27,'1. Baseline Demand Projection'!Q$27:R$27)))","v":""},{"$f":"MFMeasurePercent($L90,J90,mftoiletsperhhld,mfshwrsperhhld,mfhhldpercomplex,mfhhldperwasher,AVERAGE(IF(baseline_selection=1,'1. Baseline Demand Projection'!I$27:J$27,'1. Baseline Demand Projection'!R$27:S$27)))","v":""},null,0,0,0,0,0,0,0,0,0,0,0,0,0,0,0,0,0,0,0,0,0,0,0,0,0,0,0,0,0,0,0,0,0,0,0,0,0,0,0,0,0,0,0,0,0,0,0,0,0,0,0,null,{"$f":"MeasureSavingsArray(AO90:CM90,S90,T90,U90,W90,X90,D90)","v":0},0,0,0,0,0,0,0,0,0,0,0,0,0,0,0,0,0,0,0,0,0,0,0,0,0,0,0,0,0,0,0,0,0,0,0,0,0,0,0,0,0,0,0,0,0,0,0,0,0,0,0,null,0,0,0,0,0,0,0,0,0,0,0,0,0,0,0,0,0,0,0,0,0,0,0,0,0,0,0,0,0,0,0,0,0,0,0,0,0,0,0,0,0,0,0,0,0,0,0,0,0,0,0,null,0,0,0,0,0,0,0,0,0,0,0,0,0,0,0,0,0,0,0,0,0,0,0,0,0,0,0,0,0,0,0,0,0,0,0,0,0,0,0,0,0,0,0,0,0,0,0,0,0,0,0,null,{"$f":"DebtServiceArray(AO90:CM90,P90,discount_rate,Q90,D90)","v":0},0,0,0,0,0,0,0,0,0,0,0,0,0,0,0,0,0,0,0,0,0,0,0,0,0,0,0,0,0,0,0,0,0,0,0,0,0,0,0,0,0,0,0,0,0,0,0,0,0,0,null,0,0,0,0,0,0,0,0,0,0,0,0,0,0,0,0,0,0,0,0,0,0,0,0,0,0,0,0,0,0,0,0,0,0,0,0,0,0,0,0,0,0,0,0,0,0,0,0,0,0,0,null,0,0.96618357487922713]
[null,"USR-MF-06",null,"N",null,null,null,null,null,null,null,null,null,null,null,null,null,null,null,null,null,null,null,null,null,0,0,null,0,0,0,0,0,null,{"$f":"MFMeasurePercent($L91,F91,mftoiletsperhhld,mfshwrsperhhld,mfhhldpercomplex,mfhhldperwasher,AVERAGE(IF(baseline_selection=1,'1. Baseline Demand Projection'!E$27:F$27,'1. Baseline Demand Projection'!N$27:O$27)))","v":""},{"$f":"MFMeasurePercent($L91,G91,mftoiletsperhhld,mfshwrsperhhld,mfhhldpercomplex,mfhhldperwasher,AVERAGE(IF(baseline_selection=1,'1. Baseline Demand Projection'!F$27:G$27,'1. Baseline Demand Projection'!O$27:P$27)))","v":""},{"$f":"MFMeasurePercent($L91,H91,mftoiletsperhhld,mfshwrsperhhld,mfhhldpercomplex,mfhhldperwasher,AVERAGE(IF(baseline_selection=1,'1. Baseline Demand Projection'!G$27:H$27,'1. Baseline Demand Projection'!P$27:Q$27)))","v":""},{"$f":"MFMeasurePercent($L91,I91,mftoiletsperhhld,mfshwrsperhhld,mfhhldpercomplex,mfhhldperwasher,AVERAGE(IF(baseline_selection=1,'1. Baseline Demand Projection'!H$27:I$27,'1. Baseline Demand Projection'!Q$27:R$27)))","v":""},{"$f":"MFMeasurePercent($L91,J91,mftoiletsperhhld,mfshwrsperhhld,mfhhldpercomplex,mfhhldperwasher,AVERAGE(IF(baseline_selection=1,'1. Baseline Demand Projection'!I$27:J$27,'1. Baseline Demand Projection'!R$27:S$27)))","v":""},null,0,0,0,0,0,0,0,0,0,0,0,0,0,0,0,0,0,0,0,0,0,0,0,0,0,0,0,0,0,0,0,0,0,0,0,0,0,0,0,0,0,0,0,0,0,0,0,0,0,0,0,null,{"$f":"MeasureSavingsArray(AO91:CM91,S91,T91,U91,W91,X91,D91)","v":0},0,0,0,0,0,0,0,0,0,0,0,0,0,0,0,0,0,0,0,0,0,0,0,0,0,0,0,0,0,0,0,0,0,0,0,0,0,0,0,0,0,0,0,0,0,0,0,0,0,0,0,null,0,0,0,0,0,0,0,0,0,0,0,0,0,0,0,0,0,0,0,0,0,0,0,0,0,0,0,0,0,0,0,0,0,0,0,0,0,0,0,0,0,0,0,0,0,0,0,0,0,0,0,null,0,0,0,0,0,0,0,0,0,0,0,0,0,0,0,0,0,0,0,0,0,0,0,0,0,0,0,0,0,0,0,0,0,0,0,0,0,0,0,0,0,0,0,0,0,0,0,0,0,0,0,null,{"$f":"DebtServiceArray(AO91:CM91,P91,discount_rate,Q91,D91)","v":0},0,0,0,0,0,0,0,0,0,0,0,0,0,0,0,0,0,0,0,0,0,0,0,0,0,0,0,0,0,0,0,0,0,0,0,0,0,0,0,0,0,0,0,0,0,0,0,0,0,0,null,0,0,0,0,0,0,0,0,0,0,0,0,0,0,0,0,0,0,0,0,0,0,0,0,0,0,0,0,0,0,0,0,0,0,0,0,0,0,0,0,0,0,0,0,0,0,0,0,0,0,0,null,0,0.96618357487922713]
[null,"USR-MF-07",null,"N",null,null,null,null,null,null,null,null,null,null,null,null,null,null,null,null,null,null,null,null,null,0,0,null,0,0,0,0,0,null,{"$f":"MFMeasurePercent($L92,F92,mftoiletsperhhld,mfshwrsperhhld,mfhhldpercomplex,mfhhldperwasher,AVERAGE(IF(baseline_selection=1,'1. Baseline Demand Projection'!E$27:F$27,'1. Baseline Demand Projection'!N$27:O$27)))","v":""},{"$f":"MFMeasurePercent($L92,G92,mftoiletsperhhld,mfshwrsperhhld,mfhhldpercomplex,mfhhldperwasher,AVERAGE(IF(baseline_selection=1,'1. Baseline Demand Projection'!F$27:G$27,'1. Baseline Demand Projection'!O$27:P$27)))","v":""},{"$f":"MFMeasurePercent($L92,H92,mftoiletsperhhld,mfshwrsperhhld,mfhhldpercomplex,mfhhldperwasher,AVERAGE(IF(baseline_selection=1,'1. Baseline Demand Projection'!G$27:H$27,'1. Baseline Demand Projection'!P$27:Q$27)))","v":""},{"$f":"MFMeasurePercent($L92,I92,mftoiletsperhhld,mfshwrsperhhld,mfhhldpercomplex,mfhhldperwasher,AVERAGE(IF(baseline_selection=1,'1. Baseline Demand Projection'!H$27:I$27,'1. Baseline Demand Projection'!Q$27:R$27)))","v":""},{"$f":"MFMeasurePercent($L92,J92,mftoiletsperhhld,mfshwrsperhhld,mfhhldpercomplex,mfhhldperwasher,AVERAGE(IF(baseline_selection=1,'1. Baseline Demand Projection'!I$27:J$27,'1. Baseline Demand Projection'!R$27:S$27)))","v":""},null,0,0,0,0,0,0,0,0,0,0,0,0,0,0,0,0,0,0,0,0,0,0,0,0,0,0,0,0,0,0,0,0,0,0,0,0,0,0,0,0,0,0,0,0,0,0,0,0,0,0,0,null,{"$f":"MeasureSavingsArray(AO92:CM92,S92,T92,U92,W92,X92,D92)","v":0},0,0,0,0,0,0,0,0,0,0,0,0,0,0,0,0,0,0,0,0,0,0,0,0,0,0,0,0,0,0,0,0,0,0,0,0,0,0,0,0,0,0,0,0,0,0,0,0,0,0,0,null,0,0,0,0,0,0,0,0,0,0,0,0,0,0,0,0,0,0,0,0,0,0,0,0,0,0,0,0,0,0,0,0,0,0,0,0,0,0,0,0,0,0,0,0,0,0,0,0,0,0,0,null,0,0,0,0,0,0,0,0,0,0,0,0,0,0,0,0,0,0,0,0,0,0,0,0,0,0,0,0,0,0,0,0,0,0,0,0,0,0,0,0,0,0,0,0,0,0,0,0,0,0,0,null,{"$f":"DebtServiceArray(AO92:CM92,P92,discount_rate,Q92,D92)","v":0},0,0,0,0,0,0,0,0,0,0,0,0,0,0,0,0,0,0,0,0,0,0,0,0,0,0,0,0,0,0,0,0,0,0,0,0,0,0,0,0,0,0,0,0,0,0,0,0,0,0,null,0,0,0,0,0,0,0,0,0,0,0,0,0,0,0,0,0,0,0,0,0,0,0,0,0,0,0,0,0,0,0,0,0,0,0,0,0,0,0,0,0,0,0,0,0,0,0,0,0,0,0,null,0,0.96618357487922713]
[null,"USR-MF-08",null,"N",null,null,null,null,null,null,null,null,null,null,null,null,null,null,null,null,null,null,null,null,null,0,0,null,0,0,0,0,0,null,{"$f":"MFMeasurePercent($L93,F93,mftoiletsperhhld,mfshwrsperhhld,mfhhldpercomplex,mfhhldperwasher,AVERAGE(IF(baseline_selection=1,'1. Baseline Demand Projection'!E$27:F$27,'1. Baseline Demand Projection'!N$27:O$27)))","v":""},{"$f":"MFMeasurePercent($L93,G93,mftoiletsperhhld,mfshwrsperhhld,mfhhldpercomplex,mfhhldperwasher,AVERAGE(IF(baseline_selection=1,'1. Baseline Demand Projection'!F$27:G$27,'1. Baseline Demand Projection'!O$27:P$27)))","v":""},{"$f":"MFMeasurePercent($L93,H93,mftoiletsperhhld,mfshwrsperhhld,mfhhldpercomplex,mfhhldperwasher,AVERAGE(IF(baseline_selection=1,'1. Baseline Demand Projection'!G$27:H$27,'1. Baseline Demand Projection'!P$27:Q$27)))","v":""},{"$f":"MFMeasurePercent($L93,I93,mftoiletsperhhld,mfshwrsperhhld,mfhhldpercomplex,mfhhldperwasher,AVERAGE(IF(baseline_selection=1,'1. Baseline Demand Projection'!H$27:I$27,'1. Baseline Demand Projection'!Q$27:R$27)))","v":""},{"$f":"MFMeasurePercent($L93,J93,mftoiletsperhhld,mfshwrsperhhld,mfhhldpercomplex,mfhhldperwasher,AVERAGE(IF(baseline_selection=1,'1. Baseline Demand Projection'!I$27:J$27,'1. Baseline Demand Projection'!R$27:S$27)))","v":""},null,0,0,0,0,0,0,0,0,0,0,0,0,0,0,0,0,0,0,0,0,0,0,0,0,0,0,0,0,0,0,0,0,0,0,0,0,0,0,0,0,0,0,0,0,0,0,0,0,0,0,0,null,{"$f":"MeasureSavingsArray(AO93:CM93,S93,T93,U93,W93,X93,D93)","v":0},0,0,0,0,0,0,0,0,0,0,0,0,0,0,0,0,0,0,0,0,0,0,0,0,0,0,0,0,0,0,0,0,0,0,0,0,0,0,0,0,0,0,0,0,0,0,0,0,0,0,0,null,0,0,0,0,0,0,0,0,0,0,0,0,0,0,0,0,0,0,0,0,0,0,0,0,0,0,0,0,0,0,0,0,0,0,0,0,0,0,0,0,0,0,0,0,0,0,0,0,0,0,0,null,0,0,0,0,0,0,0,0,0,0,0,0,0,0,0,0,0,0,0,0,0,0,0,0,0,0,0,0,0,0,0,0,0,0,0,0,0,0,0,0,0,0,0,0,0,0,0,0,0,0,0,null,{"$f":"DebtServiceArray(AO93:CM93,P93,discount_rate,Q93,D93)","v":0},0,0,0,0,0,0,0,0,0,0,0,0,0,0,0,0,0,0,0,0,0,0,0,0,0,0,0,0,0,0,0,0,0,0,0,0,0,0,0,0,0,0,0,0,0,0,0,0,0,0,null,0,0,0,0,0,0,0,0,0,0,0,0,0,0,0,0,0,0,0,0,0,0,0,0,0,0,0,0,0,0,0,0,0,0,0,0,0,0,0,0,0,0,0,0,0,0,0,0,0,0,0,null,0,0.96618357487922713]
[null,"USR-MF-09",null,"N",null,null,null,null,null,null,null,null,null,null,null,null,null,null,null,null,null,null,null,null,null,0,0,null,0,0,0,0,0,null,{"$f":"MFMeasurePercent($L94,F94,mftoiletsperhhld,mfshwrsperhhld,mfhhldpercomplex,mfhhldperwasher,AVERAGE(IF(baseline_selection=1,'1. Baseline Demand Projection'!E$27:F$27,'1. Baseline Demand Projection'!N$27:O$27)))","v":""},{"$f":"MFMeasurePercent($L94,G94,mftoiletsperhhld,mfshwrsperhhld,mfhhldpercomplex,mfhhldperwasher,AVERAGE(IF(baseline_selection=1,'1. Baseline Demand Projection'!F$27:G$27,'1. Baseline Demand Projection'!O$27:P$27)))","v":""},{"$f":"MFMeasurePercent($L94,H94,mftoiletsperhhld,mfshwrsperhhld,mfhhldpercomplex,mfhhldperwasher,AVERAGE(IF(baseline_selection=1,'1. Baseline Demand Projection'!G$27:H$27,'1. Baseline Demand Projection'!P$27:Q$27)))","v":""},{"$f":"MFMeasurePercent($L94,I94,mftoiletsperhhld,mfshwrsperhhld,mfhhldpercomplex,mfhhldperwasher,AVERAGE(IF(baseline_selection=1,'1. Baseline Demand Projection'!H$27:I$27,'1. Baseline Demand Projection'!Q$27:R$27)))","v":""},{"$f":"MFMeasurePercent($L94,J94,mftoiletsperhhld,mfshwrsperhhld,mfhhldpercomplex,mfhhldperwasher,AVERAGE(IF(baseline_selection=1,'1. Baseline Demand Projection'!I$27:J$27,'1. Baseline Demand Projection'!R$27:S$27)))","v":""},null,0,0,0,0,0,0,0,0,0,0,0,0,0,0,0,0,0,0,0,0,0,0,0,0,0,0,0,0,0,0,0,0,0,0,0,0,0,0,0,0,0,0,0,0,0,0,0,0,0,0,0,null,{"$f":"MeasureSavingsArray(AO94:CM94,S94,T94,U94,W94,X94,D94)","v":0},0,0,0,0,0,0,0,0,0,0,0,0,0,0,0,0,0,0,0,0,0,0,0,0,0,0,0,0,0,0,0,0,0,0,0,0,0,0,0,0,0,0,0,0,0,0,0,0,0,0,0,null,0,0,0,0,0,0,0,0,0,0,0,0,0,0,0,0,0,0,0,0,0,0,0,0,0,0,0,0,0,0,0,0,0,0,0,0,0,0,0,0,0,0,0,0,0,0,0,0,0,0,0,null,0,0,0,0,0,0,0,0,0,0,0,0,0,0,0,0,0,0,0,0,0,0,0,0,0,0,0,0,0,0,0,0,0,0,0,0,0,0,0,0,0,0,0,0,0,0,0,0,0,0,0,null,{"$f":"DebtServiceArray(AO94:CM94,P94,discount_rate,Q94,D94)","v":0},0,0,0,0,0,0,0,0,0,0,0,0,0,0,0,0,0,0,0,0,0,0,0,0,0,0,0,0,0,0,0,0,0,0,0,0,0,0,0,0,0,0,0,0,0,0,0,0,0,0,null,0,0,0,0,0,0,0,0,0,0,0,0,0,0,0,0,0,0,0,0,0,0,0,0,0,0,0,0,0,0,0,0,0,0,0,0,0,0,0,0,0,0,0,0,0,0,0,0,0,0,0,null,0,0.96618357487922713]
[null,"USR-MF-10",null,"N",null,null,null,null,null,null,null,null,null,null,null,null,null,null,null,null,null,null,null,null,null,0,0,null,0,0,0,0,0,null,{"$f":"MFMeasurePercent($L95,F95,mftoiletsperhhld,mfshwrsperhhld,mfhhldpercomplex,mfhhldperwasher,AVERAGE(IF(baseline_selection=1,'1. Baseline Demand Projection'!E$27:F$27,'1. Baseline Demand Projection'!N$27:O$27)))","v":""},{"$f":"MFMeasurePercent($L95,G95,mftoiletsperhhld,mfshwrsperhhld,mfhhldpercomplex,mfhhldperwasher,AVERAGE(IF(baseline_selection=1,'1. Baseline Demand Projection'!F$27:G$27,'1. Baseline Demand Projection'!O$27:P$27)))","v":""},{"$f":"MFMeasurePercent($L95,H95,mftoiletsperhhld,mfshwrsperhhld,mfhhldpercomplex,mfhhldperwasher,AVERAGE(IF(baseline_selection=1,'1. Baseline Demand Projection'!G$27:H$27,'1. Baseline Demand Projection'!P$27:Q$27)))","v":""},{"$f":"MFMeasurePercent($L95,I95,mftoiletsperhhld,mfshwrsperhhld,mfhhldpercomplex,mfhhldperwasher,AVERAGE(IF(baseline_selection=1,'1. Baseline Demand Projection'!H$27:I$27,'1. Baseline Demand Projection'!Q$27:R$27)))","v":""},{"$f":"MFMeasurePercent($L95,J95,mftoiletsperhhld,mfshwrsperhhld,mfhhldpercomplex,mfhhldperwasher,AVERAGE(IF(baseline_selection=1,'1. Baseline Demand Projection'!I$27:J$27,'1. Baseline Demand Projection'!R$27:S$27)))","v":""},null,0,0,0,0,0,0,0,0,0,0,0,0,0,0,0,0,0,0,0,0,0,0,0,0,0,0,0,0,0,0,0,0,0,0,0,0,0,0,0,0,0,0,0,0,0,0,0,0,0,0,0,null,{"$f":"MeasureSavingsArray(AO95:CM95,S95,T95,U95,W95,X95,D95)","v":0},0,0,0,0,0,0,0,0,0,0,0,0,0,0,0,0,0,0,0,0,0,0,0,0,0,0,0,0,0,0,0,0,0,0,0,0,0,0,0,0,0,0,0,0,0,0,0,0,0,0,0,null,0,0,0,0,0,0,0,0,0,0,0,0,0,0,0,0,0,0,0,0,0,0,0,0,0,0,0,0,0,0,0,0,0,0,0,0,0,0,0,0,0,0,0,0,0,0,0,0,0,0,0,null,0,0,0,0,0,0,0,0,0,0,0,0,0,0,0,0,0,0,0,0,0,0,0,0,0,0,0,0,0,0,0,0,0,0,0,0,0,0,0,0,0,0,0,0,0,0,0,0,0,0,0,null,{"$f":"DebtServiceArray(AO95:CM95,P95,discount_rate,Q95,D95)","v":0},0,0,0,0,0,0,0,0,0,0,0,0,0,0,0,0,0,0,0,0,0,0,0,0,0,0,0,0,0,0,0,0,0,0,0,0,0,0,0,0,0,0,0,0,0,0,0,0,0,0,null,0,0,0,0,0,0,0,0,0,0,0,0,0,0,0,0,0,0,0,0,0,0,0,0,0,0,0,0,0,0,0,0,0,0,0,0,0,0,0,0,0,0,0,0,0,0,0,0,0,0,0,null,0,0.96618357487922713]
[null,"USR-MF-11",null,"N",null,null,null,null,null,null,null,null,null,null,null,null,null,null,null,null,null,null,null,null,null,0,0,null,0,0,0,0,0,null,{"$f":"MFMeasurePercent($L96,F96,mftoiletsperhhld,mfshwrsperhhld,mfhhldpercomplex,mfhhldperwasher,AVERAGE(IF(baseline_selection=1,'1. Baseline Demand Projection'!E$27:F$27,'1. Baseline Demand Projection'!N$27:O$27)))","v":""},{"$f":"MFMeasurePercent($L96,G96,mftoiletsperhhld,mfshwrsperhhld,mfhhldpercomplex,mfhhldperwasher,AVERAGE(IF(baseline_selection=1,'1. Baseline Demand Projection'!F$27:G$27,'1. Baseline Demand Projection'!O$27:P$27)))","v":""},{"$f":"MFMeasurePercent($L96,H96,mftoiletsperhhld,mfshwrsperhhld,mfhhldpercomplex,mfhhldperwasher,AVERAGE(IF(baseline_selection=1,'1. Baseline Demand Projection'!G$27:H$27,'1. Baseline Demand Projection'!P$27:Q$27)))","v":""},{"$f":"MFMeasurePercent($L96,I96,mftoiletsperhhld,mfshwrsperhhld,mfhhldpercomplex,mfhhldperwasher,AVERAGE(IF(baseline_selection=1,'1. Baseline Demand Projection'!H$27:I$27,'1. Baseline Demand Projection'!Q$27:R$27)))","v":""},{"$f":"MFMeasurePercent($L96,J96,mftoiletsperhhld,mfshwrsperhhld,mfhhldpercomplex,mfhhldperwasher,AVERAGE(IF(baseline_selection=1,'1. Baseline Demand Projection'!I$27:J$27,'1. Baseline Demand Projection'!R$27:S$27)))","v":""},null,0,{"$f":"CHOOSE(ROUNDUP((AP$18-2020)/10,0),$F96,$G96,$H96,$I96,$J96)*IF($D96=\"Y\",1,0)","v":0},0,0,0,0,0,0,0,0,0,{"$f":"CHOOSE(ROUNDUP((AZ$18-2020)/10,0),$F96,$G96,$H96,$I96,$J96)*IF($D96=\"Y\",1,0)","v":0},0,0,0,0,0,0,0,0,0,{"$f":"CHOOSE(ROUNDUP((BJ$18-2020)/10,0),$F96,$G96,$H96,$I96,$J96)*IF($D96=\"Y\",1,0)","v":0},0,0,0,0,0,0,0,0,0,{"$f":"CHOOSE(ROUNDUP((BT$18-2020)/10,0),$F96,$G96,$H96,$I96,$J96)*IF($D96=\"Y\",1,0)","v":0},0,0,0,0,0,0,0,0,0,{"$f":"CHOOSE(ROUNDUP((CD$18-2020)/10,0),$F96,$G96,$H96,$I96,$J96)*IF($D96=\"Y\",1,0)","v":0},0,0,0,0,0,0,0,0,0,null,{"$f":"MeasureSavingsArray(AO96:CM96,S96,T96,U96,W96,X96,D96)","v":0},0,0,0,0,0,0,0,0,0,0,0,0,0,0,0,0,0,0,0,0,0,0,0,0,0,0,0,0,0,0,0,0,0,0,0,0,0,0,0,0,0,0,0,0,0,0,0,0,0,0,0,null,0,0,0,0,0,0,0,0,0,0,0,0,0,0,0,0,0,0,0,0,0,0,0,0,0,0,0,0,0,0,0,0,0,0,0,0,0,0,0,0,0,0,0,0,0,0,0,0,0,0,0,null,0,0,0,0,0,0,0,0,0,0,0,0,0,0,0,0,0,0,0,0,0,0,0,0,0,0,0,0,0,0,0,0,0,0,0,0,0,0,0,0,0,0,0,0,0,0,0,0,0,0,0,null,{"$f":"DebtServiceArray(AO96:CM96,P96,discount_rate,Q96,D96)","v":0},0,0,0,0,0,0,0,0,0,0,0,0,0,0,0,0,0,0,0,0,0,0,0,0,0,0,0,0,0,0,0,0,0,0,0,0,0,0,0,0,0,0,0,0,0,0,0,0,0,0,null,0,0,0,0,0,0,0,0,0,0,0,0,0,0,0,0,0,0,0,0,0,0,0,0,0,0,0,0,0,0,0,0,0,0,0,0,0,0,0,0,0,0,0,0,0,0,0,0,0,0,0,null,0,0.96618357487922713]
[null,"USR-MF-12",null,"N",null,null,null,null,null,null,null,null,null,null,null,null,null,null,null,null,null,null,null,null,null,0,0,null,0,0,0,0,0,null,{"$f":"MFMeasurePercent($L97,F97,mftoiletsperhhld,mfshwrsperhhld,mfhhldpercomplex,mfhhldperwasher,AVERAGE(IF(baseline_selection=1,'1. Baseline Demand Projection'!E$27:F$27,'1. Baseline Demand Projection'!N$27:O$27)))","v":""},{"$f":"MFMeasurePercent($L97,G97,mftoiletsperhhld,mfshwrsperhhld,mfhhldpercomplex,mfhhldperwasher,AVERAGE(IF(baseline_selection=1,'1. Baseline Demand Projection'!F$27:G$27,'1. Baseline Demand Projection'!O$27:P$27)))","v":""},{"$f":"MFMeasurePercent($L97,H97,mftoiletsperhhld,mfshwrsperhhld,mfhhldpercomplex,mfhhldperwasher,AVERAGE(IF(baseline_selection=1,'1. Baseline Demand Projection'!G$27:H$27,'1. Baseline Demand Projection'!P$27:Q$27)))","v":""},{"$f":"MFMeasurePercent($L97,I97,mftoiletsperhhld,mfshwrsperhhld,mfhhldpercomplex,mfhhldperwasher,AVERAGE(IF(baseline_selection=1,'1. Baseline Demand Projection'!H$27:I$27,'1. Baseline Demand Projection'!Q$27:R$27)))","v":""},{"$f":"MFMeasurePercent($L97,J97,mftoiletsperhhld,mfshwrsperhhld,mfhhldpercomplex,mfhhldperwasher,AVERAGE(IF(baseline_selection=1,'1. Baseline Demand Projection'!I$27:J$27,'1. Baseline Demand Projection'!R$27:S$27)))","v":""},null,0,0,0,0,0,0,0,0,0,0,0,0,0,0,0,0,0,0,0,0,0,0,0,0,0,0,0,0,0,0,0,0,0,0,0,0,0,0,0,0,0,0,0,0,0,0,0,0,0,0,0,null,{"$f":"MeasureSavingsArray(AO97:CM97,S97,T97,U97,W97,X97,D97)","v":0},0,0,0,0,0,0,0,0,0,0,0,0,0,0,0,0,0,0,0,0,0,0,0,0,0,0,0,0,0,0,0,0,0,0,0,0,0,0,0,0,0,0,0,0,0,0,0,0,0,0,0,null,0,0,0,0,0,0,0,0,0,0,0,0,0,0,0,0,0,0,0,0,0,0,0,0,0,0,0,0,0,0,0,0,0,0,0,0,0,0,0,0,0,0,0,0,0,0,0,0,0,0,0,null,0,0,0,0,0,0,0,0,0,0,0,0,0,0,0,0,0,0,0,0,0,0,0,0,0,0,0,0,0,0,0,0,0,0,0,0,0,0,0,0,0,0,0,0,0,0,0,0,0,0,0,null,{"$f":"DebtServiceArray(AO97:CM97,P97,discount_rate,Q97,D97)","v":0},0,0,0,0,0,0,0,0,0,0,0,0,0,0,0,0,0,0,0,0,0,0,0,0,0,0,0,0,0,0,0,0,0,0,0,0,0,0,0,0,0,0,0,0,0,0,0,0,0,0,null,0,0,0,0,0,0,0,0,0,0,0,0,0,0,0,0,0,0,0,0,0,0,0,0,0,0,0,0,0,0,0,0,0,0,0,0,0,0,0,0,0,0,0,0,0,0,0,0,0,0,0,null,0,0.96618357487922713]
[null,"USR-MF-13",null,"N",null,null,null,null,null,null,null,null,null,null,null,null,null,null,null,null,null,null,null,null,null,0,0,null,0,0,0,0,0,null,{"$f":"MFMeasurePercent($L98,F98,mftoiletsperhhld,mfshwrsperhhld,mfhhldpercomplex,mfhhldperwasher,AVERAGE(IF(baseline_selection=1,'1. Baseline Demand Projection'!E$27:F$27,'1. Baseline Demand Projection'!N$27:O$27)))","v":""},{"$f":"MFMeasurePercent($L98,G98,mftoiletsperhhld,mfshwrsperhhld,mfhhldpercomplex,mfhhldperwasher,AVERAGE(IF(baseline_selection=1,'1. Baseline Demand Projection'!F$27:G$27,'1. Baseline Demand Projection'!O$27:P$27)))","v":""},{"$f":"MFMeasurePercent($L98,H98,mftoiletsperhhld,mfshwrsperhhld,mfhhldpercomplex,mfhhldperwasher,AVERAGE(IF(baseline_selection=1,'1. Baseline Demand Projection'!G$27:H$27,'1. Baseline Demand Projection'!P$27:Q$27)))","v":""},{"$f":"MFMeasurePercent($L98,I98,mftoiletsperhhld,mfshwrsperhhld,mfhhldpercomplex,mfhhldperwasher,AVERAGE(IF(baseline_selection=1,'1. Baseline Demand Projection'!H$27:I$27,'1. Baseline Demand Projection'!Q$27:R$27)))","v":""},{"$f":"MFMeasurePercent($L98,J98,mftoiletsperhhld,mfshwrsperhhld,mfhhldpercomplex,mfhhldperwasher,AVERAGE(IF(baseline_selection=1,'1. Baseline Demand Projection'!I$27:J$27,'1. Baseline Demand Projection'!R$27:S$27)))","v":""},null,0,0,0,0,0,0,0,0,0,0,0,0,0,0,0,0,0,0,0,0,0,0,0,0,0,0,0,0,0,0,0,0,0,0,0,0,0,0,0,0,0,0,0,0,0,0,0,0,0,0,0,null,{"$f":"MeasureSavingsArray(AO98:CM98,S98,T98,U98,W98,X98,D98)","v":0},0,0,0,0,0,0,0,0,0,0,0,0,0,0,0,0,0,0,0,0,0,0,0,0,0,0,0,0,0,0,0,0,0,0,0,0,0,0,0,0,0,0,0,0,0,0,0,0,0,0,0,null,0,0,0,0,0,0,0,0,0,0,0,0,0,0,0,0,0,0,0,0,0,0,0,0,0,0,0,0,0,0,0,0,0,0,0,0,0,0,0,0,0,0,0,0,0,0,0,0,0,0,0,null,0,0,0,0,0,0,0,0,0,0,0,0,0,0,0,0,0,0,0,0,0,0,0,0,0,0,0,0,0,0,0,0,0,0,0,0,0,0,0,0,0,0,0,0,0,0,0,0,0,0,0,null,{"$f":"DebtServiceArray(AO98:CM98,P98,discount_rate,Q98,D98)","v":0},0,0,0,0,0,0,0,0,0,0,0,0,0,0,0,0,0,0,0,0,0,0,0,0,0,0,0,0,0,0,0,0,0,0,0,0,0,0,0,0,0,0,0,0,0,0,0,0,0,0,null,0,0,0,0,0,0,0,0,0,0,0,0,0,0,0,0,0,0,0,0,0,0,0,0,0,0,0,0,0,0,0,0,0,0,0,0,0,0,0,0,0,0,0,0,0,0,0,0,0,0,0,null,0,0.96618357487922713]
[null,"USR-MF-14",null,"N",null,null,null,null,null,null,null,null,null,null,null,null,null,null,null,null,null,null,null,null,null,0,0,null,0,0,0,0,0,null,{"$f":"MFMeasurePercent($L99,F99,mftoiletsperhhld,mfshwrsperhhld,mfhhldpercomplex,mfhhldperwasher,AVERAGE(IF(baseline_selection=1,'1. Baseline Demand Projection'!E$27:F$27,'1. Baseline Demand Projection'!N$27:O$27)))","v":""},{"$f":"MFMeasurePercent($L99,G99,mftoiletsperhhld,mfshwrsperhhld,mfhhldpercomplex,mfhhldperwasher,AVERAGE(IF(baseline_selection=1,'1. Baseline Demand Projection'!F$27:G$27,'1. Baseline Demand Projection'!O$27:P$27)))","v":""},{"$f":"MFMeasurePercent($L99,H99,mftoiletsperhhld,mfshwrsperhhld,mfhhldpercomplex,mfhhldperwasher,AVERAGE(IF(baseline_selection=1,'1. Baseline Demand Projection'!G$27:H$27,'1. Baseline Demand Projection'!P$27:Q$27)))","v":""},{"$f":"MFMeasurePercent($L99,I99,mftoiletsperhhld,mfshwrsperhhld,mfhhldpercomplex,mfhhldperwasher,AVERAGE(IF(baseline_selection=1,'1. Baseline Demand Projection'!H$27:I$27,'1. Baseline Demand Projection'!Q$27:R$27)))","v":""},{"$f":"MFMeasurePercent($L99,J99,mftoiletsperhhld,mfshwrsperhhld,mfhhldpercomplex,mfhhldperwasher,AVERAGE(IF(baseline_selection=1,'1. Baseline Demand Projection'!I$27:J$27,'1. Baseline Demand Projection'!R$27:S$27)))","v":""},null,0,0,0,0,0,0,0,0,0,0,0,0,0,0,0,0,0,0,0,0,0,0,0,0,0,0,0,0,0,0,0,0,0,0,0,0,0,0,0,0,0,0,0,0,0,0,0,0,0,0,0,null,{"$f":"MeasureSavingsArray(AO99:CM99,S99,T99,U99,W99,X99,D99)","v":0},0,0,0,0,0,0,0,0,0,0,0,0,0,0,0,0,0,0,0,0,0,0,0,0,0,0,0,0,0,0,0,0,0,0,0,0,0,0,0,0,0,0,0,0,0,0,0,0,0,0,0,null,0,0,0,0,0,0,0,0,0,0,0,0,0,0,0,0,0,0,0,0,0,0,0,0,0,0,0,0,0,0,0,0,0,0,0,0,0,0,0,0,0,0,0,0,0,0,0,0,0,0,0,null,0,0,0,0,0,0,0,0,0,0,0,0,0,0,0,0,0,0,0,0,0,0,0,0,0,0,0,0,0,0,0,0,0,0,0,0,0,0,0,0,0,0,0,0,0,0,0,0,0,0,0,null,{"$f":"DebtServiceArray(AO99:CM99,P99,discount_rate,Q99,D99)","v":0},0,0,0,0,0,0,0,0,0,0,0,0,0,0,0,0,0,0,0,0,0,0,0,0,0,0,0,0,0,0,0,0,0,0,0,0,0,0,0,0,0,0,0,0,0,0,0,0,0,0,null,0,0,0,0,0,0,0,0,0,0,0,0,0,0,0,0,0,0,0,0,0,0,0,0,0,0,0,0,0,0,0,0,0,0,0,0,0,0,0,0,0,0,0,0,0,0,0,0,0,0,0,null,0,0.96618357487922713]
[null,"USR-MF-15",null,"N",null,null,null,null,null,null,null,null,null,null,null,null,null,null,null,null,null,null,null,null,null,0,0,null,0,0,0,0,0,null,{"$f":"MFMeasurePercent($L100,F100,mftoiletsperhhld,mfshwrsperhhld,mfhhldpercomplex,mfhhldperwasher,AVERAGE(IF(baseline_selection=1,'1. Baseline Demand Projection'!E$27:F$27,'1. Baseline Demand Projection'!N$27:O$27)))","v":""},{"$f":"MFMeasurePercent($L100,G100,mftoiletsperhhld,mfshwrsperhhld,mfhhldpercomplex,mfhhldperwasher,AVERAGE(IF(baseline_selection=1,'1. Baseline Demand Projection'!F$27:G$27,'1. Baseline Demand Projection'!O$27:P$27)))","v":""},{"$f":"MFMeasurePercent($L100,H100,mftoiletsperhhld,mfshwrsperhhld,mfhhldpercomplex,mfhhldperwasher,AVERAGE(IF(baseline_selection=1,'1. Baseline Demand Projection'!G$27:H$27,'1. Baseline Demand Projection'!P$27:Q$27)))","v":""},{"$f":"MFMeasurePercent($L100,I100,mftoiletsperhhld,mfshwrsperhhld,mfhhldpercomplex,mfhhldperwasher,AVERAGE(IF(baseline_selection=1,'1. Baseline Demand Projection'!H$27:I$27,'1. Baseline Demand Projection'!Q$27:R$27)))","v":""},{"$f":"MFMeasurePercent($L100,J100,mftoiletsperhhld,mfshwrsperhhld,mfhhldpercomplex,mfhhldperwasher,AVERAGE(IF(baseline_selection=1,'1. Baseline Demand Projection'!I$27:J$27,'1. Baseline Demand Projection'!R$27:S$27)))","v":""},null,0,0,0,0,0,0,0,0,0,0,0,0,0,0,0,0,0,0,0,0,0,0,0,0,0,0,0,0,0,0,0,0,0,0,0,0,0,0,0,0,0,0,0,0,0,0,0,0,0,0,0,null,{"$f":"MeasureSavingsArray(AO100:CM100,S100,T100,U100,W100,X100,D100)","v":0},0,0,0,0,0,0,0,0,0,0,0,0,0,0,0,0,0,0,0,0,0,0,0,0,0,0,0,0,0,0,0,0,0,0,0,0,0,0,0,0,0,0,0,0,0,0,0,0,0,0,0,null,0,0,0,0,0,0,0,0,0,0,0,0,0,0,0,0,0,0,0,0,0,0,0,0,0,0,0,0,0,0,0,0,0,0,0,0,0,0,0,0,0,0,0,0,0,0,0,0,0,0,0,null,0,0,0,0,0,0,0,0,0,0,0,0,0,0,0,0,0,0,0,0,0,0,0,0,0,0,0,0,0,0,0,0,0,0,0,0,0,0,0,0,0,0,0,0,0,0,0,0,0,0,0,null,{"$f":"DebtServiceArray(AO100:CM100,P100,discount_rate,Q100,D100)","v":0},0,0,0,0,0,0,0,0,0,0,0,0,0,0,0,0,0,0,0,0,0,0,0,0,0,0,0,0,0,0,0,0,0,0,0,0,0,0,0,0,0,0,0,0,0,0,0,0,0,0,null,0,0,0,0,0,0,0,0,0,0,0,0,0,0,0,0,0,0,0,0,0,0,0,0,0,0,0,0,0,0,0,0,0,0,0,0,0,0,0,0,0,0,0,0,0,0,0,0,0,0,0,null,0,0.96618357487922713]
[null,"USR-MF-16",null,"N",null,null,null,null,null,null,null,null,null,null,null,null,null,null,null,null,null,null,null,null,null,0,0,null,0,0,0,0,0,null,{"$f":"MFMeasurePercent($L101,F101,mftoiletsperhhld,mfshwrsperhhld,mfhhldpercomplex,mfhhldperwasher,AVERAGE(IF(baseline_selection=1,'1. Baseline Demand Projection'!E$27:F$27,'1. Baseline Demand Projection'!N$27:O$27)))","v":""},{"$f":"MFMeasurePercent($L101,G101,mftoiletsperhhld,mfshwrsperhhld,mfhhldpercomplex,mfhhldperwasher,AVERAGE(IF(baseline_selection=1,'1. Baseline Demand Projection'!F$27:G$27,'1. Baseline Demand Projection'!O$27:P$27)))","v":""},{"$f":"MFMeasurePercent($L101,H101,mftoiletsperhhld,mfshwrsperhhld,mfhhldpercomplex,mfhhldperwasher,AVERAGE(IF(baseline_selection=1,'1. Baseline Demand Projection'!G$27:H$27,'1. Baseline Demand Projection'!P$27:Q$27)))","v":""},{"$f":"MFMeasurePercent($L101,I101,mftoiletsperhhld,mfshwrsperhhld,mfhhldpercomplex,mfhhldperwasher,AVERAGE(IF(baseline_selection=1,'1. Baseline Demand Projection'!H$27:I$27,'1. Baseline Demand Projection'!Q$27:R$27)))","v":""},{"$f":"MFMeasurePercent($L101,J101,mftoiletsperhhld,mfshwrsperhhld,mfhhldpercomplex,mfhhldperwasher,AVERAGE(IF(baseline_selection=1,'1. Baseline Demand Projection'!I$27:J$27,'1. Baseline Demand Projection'!R$27:S$27)))","v":""},null,0,0,0,0,0,0,0,0,0,0,0,0,0,0,0,0,0,0,0,0,0,0,0,0,0,0,0,0,0,0,0,0,0,0,0,0,0,0,0,0,0,0,0,0,0,0,0,0,0,0,0,null,{"$f":"MeasureSavingsArray(AO101:CM101,S101,T101,U101,W101,X101,D101)","v":0},0,0,0,0,0,0,0,0,0,0,0,0,0,0,0,0,0,0,0,0,0,0,0,0,0,0,0,0,0,0,0,0,0,0,0,0,0,0,0,0,0,0,0,0,0,0,0,0,0,0,0,null,0,0,0,0,0,0,0,0,0,0,0,0,0,0,0,0,0,0,0,0,0,0,0,0,0,0,0,0,0,0,0,0,0,0,0,0,0,0,0,0,0,0,0,0,0,0,0,0,0,0,0,null,0,0,0,0,0,0,0,0,0,0,0,0,0,0,0,0,0,0,0,0,0,0,0,0,0,0,0,0,0,0,0,0,0,0,0,0,0,0,0,0,0,0,0,0,0,0,0,0,0,0,0,null,{"$f":"DebtServiceArray(AO101:CM101,P101,discount_rate,Q101,D101)","v":0},0,0,0,0,0,0,0,0,0,0,0,0,0,0,0,0,0,0,0,0,0,0,0,0,0,0,0,0,0,0,0,0,0,0,0,0,0,0,0,0,0,0,0,0,0,0,0,0,0,0,null,0,0,0,0,0,0,0,0,0,0,0,0,0,0,0,0,0,0,0,0,0,0,0,0,0,0,0,0,0,0,0,0,0,0,0,0,0,0,0,0,0,0,0,0,0,0,0,0,0,0,0,null,0,0.96618357487922713]
[null,"USR-MF-17",null,"N",null,null,null,null,null,null,null,null,null,null,null,null,null,null,null,null,null,null,null,null,null,0,0,null,0,0,0,0,0,null,{"$f":"MFMeasurePercent($L102,F102,mftoiletsperhhld,mfshwrsperhhld,mfhhldpercomplex,mfhhldperwasher,AVERAGE(IF(baseline_selection=1,'1. Baseline Demand Projection'!E$27:F$27,'1. Baseline Demand Projection'!N$27:O$27)))","v":""},{"$f":"MFMeasurePercent($L102,G102,mftoiletsperhhld,mfshwrsperhhld,mfhhldpercomplex,mfhhldperwasher,AVERAGE(IF(baseline_selection=1,'1. Baseline Demand Projection'!F$27:G$27,'1. Baseline Demand Projection'!O$27:P$27)))","v":""},{"$f":"MFMeasurePercent($L102,H102,mftoiletsperhhld,mfshwrsperhhld,mfhhldpercomplex,mfhhldperwasher,AVERAGE(IF(baseline_selection=1,'1. Baseline Demand Projection'!G$27:H$27,'1. Baseline Demand Projection'!P$27:Q$27)))","v":""},{"$f":"MFMeasurePercent($L102,I102,mftoiletsperhhld,mfshwrsperhhld,mfhhldpercomplex,mfhhldperwasher,AVERAGE(IF(baseline_selection=1,'1. Baseline Demand Projection'!H$27:I$27,'1. Baseline Demand Projection'!Q$27:R$27)))","v":""},{"$f":"MFMeasurePercent($L102,J102,mftoiletsperhhld,mfshwrsperhhld,mfhhldpercomplex,mfhhldperwasher,AVERAGE(IF(baseline_selection=1,'1. Baseline Demand Projection'!I$27:J$27,'1. Baseline Demand Projection'!R$27:S$27)))","v":""},null,0,0,0,0,0,0,0,0,0,0,0,0,0,0,0,0,0,0,0,0,0,0,0,0,0,0,0,0,0,0,0,0,0,0,0,0,0,0,0,0,0,0,0,0,0,0,0,0,0,0,0,null,{"$f":"MeasureSavingsArray(AO102:CM102,S102,T102,U102,W102,X102,D102)","v":0},0,0,0,0,0,0,0,0,0,0,0,0,0,0,0,0,0,0,0,0,0,0,0,0,0,0,0,0,0,0,0,0,0,0,0,0,0,0,0,0,0,0,0,0,0,0,0,0,0,0,0,null,0,0,0,0,0,0,0,0,0,0,0,0,0,0,0,0,0,0,0,0,0,0,0,0,0,0,0,0,0,0,0,0,0,0,0,0,0,0,0,0,0,0,0,0,0,0,0,0,0,0,0,null,0,0,0,0,0,0,0,0,0,0,0,0,0,0,0,0,0,0,0,0,0,0,0,0,0,0,0,0,0,0,0,0,0,0,0,0,0,0,0,0,0,0,0,0,0,0,0,0,0,0,0,null,{"$f":"DebtServiceArray(AO102:CM102,P102,discount_rate,Q102,D102)","v":0},0,0,0,0,0,0,0,0,0,0,0,0,0,0,0,0,0,0,0,0,0,0,0,0,0,0,0,0,0,0,0,0,0,0,0,0,0,0,0,0,0,0,0,0,0,0,0,0,0,0,null,0,0,0,0,0,0,0,0,0,0,0,0,0,0,0,0,0,0,0,0,0,0,0,0,0,0,0,0,0,0,0,0,0,0,0,0,0,0,0,0,0,0,0,0,0,0,0,0,0,0,0,null,0,0.96618357487922713]
[null,"USR-MF-18",null,"N",null,null,null,null,null,null,null,null,null,null,null,null,null,null,null,null,null,null,null,null,null,0,0,null,0,0,0,0,0,null,{"$f":"MFMeasurePercent($L103,F103,mftoiletsperhhld,mfshwrsperhhld,mfhhldpercomplex,mfhhldperwasher,AVERAGE(IF(baseline_selection=1,'1. Baseline Demand Projection'!E$27:F$27,'1. Baseline Demand Projection'!N$27:O$27)))","v":""},{"$f":"MFMeasurePercent($L103,G103,mftoiletsperhhld,mfshwrsperhhld,mfhhldpercomplex,mfhhldperwasher,AVERAGE(IF(baseline_selection=1,'1. Baseline Demand Projection'!F$27:G$27,'1. Baseline Demand Projection'!O$27:P$27)))","v":""},{"$f":"MFMeasurePercent($L103,H103,mftoiletsperhhld,mfshwrsperhhld,mfhhldpercomplex,mfhhldperwasher,AVERAGE(IF(baseline_selection=1,'1. Baseline Demand Projection'!G$27:H$27,'1. Baseline Demand Projection'!P$27:Q$27)))","v":""},{"$f":"MFMeasurePercent($L103,I103,mftoiletsperhhld,mfshwrsperhhld,mfhhldpercomplex,mfhhldperwasher,AVERAGE(IF(baseline_selection=1,'1. Baseline Demand Projection'!H$27:I$27,'1. Baseline Demand Projection'!Q$27:R$27)))","v":""},{"$f":"MFMeasurePercent($L103,J103,mftoiletsperhhld,mfshwrsperhhld,mfhhldpercomplex,mfhhldperwasher,AVERAGE(IF(baseline_selection=1,'1. Baseline Demand Projection'!I$27:J$27,'1. Baseline Demand Projection'!R$27:S$27)))","v":""},null,0,0,0,0,0,0,0,0,0,0,0,0,0,0,0,0,0,0,0,0,0,0,0,0,0,0,0,0,0,0,0,0,0,0,0,0,0,0,0,0,0,0,0,0,0,0,0,0,0,0,0,null,{"$f":"MeasureSavingsArray(AO103:CM103,S103,T103,U103,W103,X103,D103)","v":0},0,0,0,0,0,0,0,0,0,0,0,0,0,0,0,0,0,0,0,0,0,0,0,0,0,0,0,0,0,0,0,0,0,0,0,0,0,0,0,0,0,0,0,0,0,0,0,0,0,0,0,null,0,0,0,0,0,0,0,0,0,0,0,0,0,0,0,0,0,0,0,0,0,0,0,0,0,0,0,0,0,0,0,0,0,0,0,0,0,0,0,0,0,0,0,0,0,0,0,0,0,0,0,null,0,0,0,0,0,0,0,0,0,0,0,0,0,0,0,0,0,0,0,0,0,0,0,0,0,0,0,0,0,0,0,0,0,0,0,0,0,0,0,0,0,0,0,0,0,0,0,0,0,0,0,null,{"$f":"DebtServiceArray(AO103:CM103,P103,discount_rate,Q103,D103)","v":0},0,0,0,0,0,0,0,0,0,0,0,0,0,0,0,0,0,0,0,0,0,0,0,0,0,0,0,0,0,0,0,0,0,0,0,0,0,0,0,0,0,0,0,0,0,0,0,0,0,0,null,0,0,0,0,0,0,0,0,0,0,0,0,0,0,0,0,0,0,0,0,0,0,0,0,0,0,0,0,0,0,0,0,0,0,0,0,0,0,0,0,0,0,0,0,0,0,0,0,0,0,0,null,0,0.96618357487922713]
[null,"USR-MF-19",null,"N",null,null,null,null,null,null,null,null,null,null,null,null,null,null,null,null,null,null,null,null,null,0,0,null,0,0,0,0,0,null,{"$f":"MFMeasurePercent($L104,F104,mftoiletsperhhld,mfshwrsperhhld,mfhhldpercomplex,mfhhldperwasher,AVERAGE(IF(baseline_selection=1,'1. Baseline Demand Projection'!E$27:F$27,'1. Baseline Demand Projection'!N$27:O$27)))","v":""},{"$f":"MFMeasurePercent($L104,G104,mftoiletsperhhld,mfshwrsperhhld,mfhhldpercomplex,mfhhldperwasher,AVERAGE(IF(baseline_selection=1,'1. Baseline Demand Projection'!F$27:G$27,'1. Baseline Demand Projection'!O$27:P$27)))","v":""},{"$f":"MFMeasurePercent($L104,H104,mftoiletsperhhld,mfshwrsperhhld,mfhhldpercomplex,mfhhldperwasher,AVERAGE(IF(baseline_selection=1,'1. Baseline Demand Projection'!G$27:H$27,'1. Baseline Demand Projection'!P$27:Q$27)))","v":""},{"$f":"MFMeasurePercent($L104,I104,mftoiletsperhhld,mfshwrsperhhld,mfhhldpercomplex,mfhhldperwasher,AVERAGE(IF(baseline_selection=1,'1. Baseline Demand Projection'!H$27:I$27,'1. Baseline Demand Projection'!Q$27:R$27)))","v":""},{"$f":"MFMeasurePercent($L104,J104,mftoiletsperhhld,mfshwrsperhhld,mfhhldpercomplex,mfhhldperwasher,AVERAGE(IF(baseline_selection=1,'1. Baseline Demand Projection'!I$27:J$27,'1. Baseline Demand Projection'!R$27:S$27)))","v":""},null,0,0,0,0,0,0,0,0,0,0,0,0,0,0,0,0,0,0,0,0,0,0,0,0,0,0,0,0,0,0,0,0,0,0,0,0,0,0,0,0,0,0,0,0,0,0,0,0,0,0,0,null,{"$f":"MeasureSavingsArray(AO104:CM104,S104,T104,U104,W104,X104,D104)","v":0},0,0,0,0,0,0,0,0,0,0,0,0,0,0,0,0,0,0,0,0,0,0,0,0,0,0,0,0,0,0,0,0,0,0,0,0,0,0,0,0,0,0,0,0,0,0,0,0,0,0,0,null,0,0,0,0,0,0,0,0,0,0,0,0,0,0,0,0,0,0,0,0,0,0,0,0,0,0,0,0,0,0,0,0,0,0,0,0,0,0,0,0,0,0,0,0,0,0,0,0,0,0,0,null,0,0,0,0,0,0,0,0,0,0,0,0,0,0,0,0,0,0,0,0,0,0,0,0,0,0,0,0,0,0,0,0,0,0,0,0,0,0,0,0,0,0,0,0,0,0,0,0,0,0,0,null,{"$f":"DebtServiceArray(AO104:CM104,P104,discount_rate,Q104,D104)","v":0},0,0,0,0,0,0,0,0,0,0,0,0,0,0,0,0,0,0,0,0,0,0,0,0,0,0,0,0,0,0,0,0,0,0,0,0,0,0,0,0,0,0,0,0,0,0,0,0,0,0,null,0,0,0,0,0,0,0,0,0,0,0,0,0,0,0,0,0,0,0,0,0,0,0,0,0,0,0,0,0,0,0,0,0,0,0,0,0,0,0,0,0,0,0,0,0,0,0,0,0,0,0,null,0,0.96618357487922713]
[null,"USR-MF-20",null,"N",null,null,null,null,null,null,null,null,null,null,null,null,null,null,null,null,null,null,null,null,null,0,0,null,0,0,0,0,0,null,{"$f":"MFMeasurePercent($L105,F105,mftoiletsperhhld,mfshwrsperhhld,mfhhldpercomplex,mfhhldperwasher,AVERAGE(IF(baseline_selection=1,'1. Baseline Demand Projection'!E$27:F$27,'1. Baseline Demand Projection'!N$27:O$27)))","v":""},{"$f":"MFMeasurePercent($L105,G105,mftoiletsperhhld,mfshwrsperhhld,mfhhldpercomplex,mfhhldperwasher,AVERAGE(IF(baseline_selection=1,'1. Baseline Demand Projection'!F$27:G$27,'1. Baseline Demand Projection'!O$27:P$27)))","v":""},{"$f":"MFMeasurePercent($L105,H105,mftoiletsperhhld,mfshwrsperhhld,mfhhldpercomplex,mfhhldperwasher,AVERAGE(IF(baseline_selection=1,'1. Baseline Demand Projection'!G$27:H$27,'1. Baseline Demand Projection'!P$27:Q$27)))","v":""},{"$f":"MFMeasurePercent($L105,I105,mftoiletsperhhld,mfshwrsperhhld,mfhhldpercomplex,mfhhldperwasher,AVERAGE(IF(baseline_selection=1,'1. Baseline Demand Projection'!H$27:I$27,'1. Baseline Demand Projection'!Q$27:R$27)))","v":""},{"$f":"MFMeasurePercent($L105,J105,mftoiletsperhhld,mfshwrsperhhld,mfhhldpercomplex,mfhhldperwasher,AVERAGE(IF(baseline_selection=1,'1. Baseline Demand Projection'!I$27:J$27,'1. Baseline Demand Projection'!R$27:S$27)))","v":""},null,0,0,0,0,0,0,0,0,0,0,0,0,0,0,0,0,0,0,0,0,0,0,0,0,0,0,0,0,0,0,0,0,0,0,0,0,0,0,0,0,0,0,0,0,0,0,0,0,0,0,0,null,{"$f":"MeasureSavingsArray(AO105:CM105,S105,T105,U105,W105,X105,D105)","v":0},0,0,0,0,0,0,0,0,0,0,0,0,0,0,0,0,0,0,0,0,0,0,0,0,0,0,0,0,0,0,0,0,0,0,0,0,0,0,0,0,0,0,0,0,0,0,0,0,0,0,0,null,0,0,0,0,0,0,0,0,0,0,0,0,0,0,0,0,0,0,0,0,0,0,0,0,0,0,0,0,0,0,0,0,0,0,0,0,0,0,0,0,0,0,0,0,0,0,0,0,0,0,0,null,0,0,0,0,0,0,0,0,0,0,0,0,0,0,0,0,0,0,0,0,0,0,0,0,0,0,0,0,0,0,0,0,0,0,0,0,0,0,0,0,0,0,0,0,0,0,0,0,0,0,0,null,{"$f":"DebtServiceArray(AO105:CM105,P105,discount_rate,Q105,D105)","v":0},0,0,0,0,0,0,0,0,0,0,0,0,0,0,0,0,0,0,0,0,0,0,0,0,0,0,0,0,0,0,0,0,0,0,0,0,0,0,0,0,0,0,0,0,0,0,0,0,0,0,null,0,0,0,0,0,0,0,0,0,0,0,0,0,0,0,0,0,0,0,0,0,0,0,0,0,0,0,0,0,0,0,0,0,0,0,0,0,0,0,0,0,0,0,0,0,0,0,0,0,0,0,null,0,0.96618357487922713]
[null,null,null,null,null,null,null,null,null,null,null,null,null,null,null,null,null,null,null,null,null,null,null,null,null,null,null,null,null,null,null,null,null,null,null,null,null,null,null,null,null,null,null,null,null,null,null,null,null,null,null,null,null,null,null,null,null,null,null,null,null,null,null,null,null,null,null,null,null,null,null,null,null,null,null,null,null,null,null,null,null,null,null,null,null,null,null,null,null,null,null,null,{"$f":"SUM(CO86:CO105)","v":0},0,0,0,0,0,0,0,0,0,0,0,0,0,0,0,0,0,0,0,0,0,0,0,0,0,0,0,0,0,0,0,{"$f":"SUM(DU86:DU105)","v":0},0,0,0,0,0,0,0,0,0,0,0,0,0,0,0,0,0,0,0,null,{"$f":"SUM(EP86:EP105)","v":0},{"$f":"SUM(EQ86:EQ105)","v":0},{"$f":"SUM(ER86:ER105)","v":0},{"$f":"SUM(ES86:ES105)","v":0},{"$f":"SUM(ET86:ET105)","v":0},{"$f":"SUM(EU86:EU105)","v":0},{"$f":"SUM(EV86:EV105)","v":0},{"$f":"SUM(EW86:EW105)","v":0},{"$f":"SUM(EX86:EX105)","v":0},{"$f":"SUM(EY86:EY105)","v":0},{"$f":"SUM(EZ86:EZ105)","v":0},{"$f":"SUM(FA86:FA105)","v":0},{"$f":"SUM(FB86:FB105)","v":0},{"$f":"SUM(FC86:FC105)","v":0},{"$f":"SUM(FD86:FD105)","v":0},{"$f":"SUM(FE86:FE105)","v":0},{"$f":"SUM(FF86:FF105)","v":0},{"$f":"SUM(FG86:FG105)","v":0},{"$f":"SUM(FH86:FH105)","v":0},{"$f":"SUM(FI86:FI105)","v":0},{"$f":"SUM(FJ86:FJ105)","v":0},{"$f":"SUM(FK86:FK105)","v":0},{"$f":"SUM(FL86:FL105)","v":0},{"$f":"SUM(FM86:FM105)","v":0},{"$f":"SUM(FN86:FN105)","v":0},{"$f":"SUM(FO86:FO105)","v":0},{"$f":"SUM(FP86:FP105)","v":0},{"$f":"SUM(FQ86:FQ105)","v":0},{"$f":"SUM(FR86:FR105)","v":0},{"$f":"SUM(FS86:FS105)","v":0},{"$f":"SUM(FT86:FT105)","v":0},{"$f":"SUM(FU86:FU105)","v":0},{"$f":"SUM(FV86:FV105)","v":0},{"$f":"SUM(FW86:FW105)","v":0},{"$f":"SUM(FX86:FX105)","v":0},{"$f":"SUM(FY86:FY105)","v":0},{"$f":"SUM(FZ86:FZ105)","v":0},{"$f":"SUM(GA86:GA105)","v":0},{"$f":"SUM(GB86:GB105)","v":0},{"$f":"SUM(GC86:GC105)","v":0},{"$f":"SUM(GD86:GD105)","v":0},{"$f":"SUM(GE86:GE105)","v":0},{"$f":"SUM(GF86:GF105)","v":0},{"$f":"SUM(GG86:GG105)","v":0},{"$f":"SUM(GH86:GH105)","v":0},{"$f":"SUM(GI86:GI105)","v":0},{"$f":"SUM(GJ86:GJ105)","v":0},{"$f":"SUM(GK86:GK105)","v":0},{"$f":"SUM(GL86:GL105)","v":0},{"$f":"SUM(GM86:GM105)","v":0},{"$f":"SUM(GN86:GN105)","v":0},null,{"$f":"SUM(GP86:GP105)","v":0},{"$f":"SUM(GQ86:GQ105)","v":0},{"$f":"SUM(GR86:GR105)","v":0},{"$f":"SUM(GS86:GS105)","v":0},{"$f":"SUM(GT86:GT105)","v":0},{"$f":"SUM(GU86:GU105)","v":0},{"$f":"SUM(GV86:GV105)","v":0},{"$f":"SUM(GW86:GW105)","v":0},{"$f":"SUM(GX86:GX105)","v":0},{"$f":"SUM(GY86:GY105)","v":0},{"$f":"SUM(GZ86:GZ105)","v":0},{"$f":"SUM(HA86:HA105)","v":0},{"$f":"SUM(HB86:HB105)","v":0},{"$f":"SUM(HC86:HC105)","v":0},{"$f":"SUM(HD86:HD105)","v":0},{"$f":"SUM(HE86:HE105)","v":0},{"$f":"SUM(HF86:HF105)","v":0},{"$f":"SUM(HG86:HG105)","v":0},{"$f":"SUM(HH86:HH105)","v":0},{"$f":"SUM(HI86:HI105)","v":0},{"$f":"SUM(HJ86:HJ105)","v":0},{"$f":"SUM(HK86:HK105)","v":0},{"$f":"SUM(HL86:HL105)","v":0},{"$f":"SUM(HM86:HM105)","v":0},{"$f":"SUM(HN86:HN105)","v":0},{"$f":"SUM(HO86:HO105)","v":0},{"$f":"SUM(HP86:HP105)","v":0},{"$f":"SUM(HQ86:HQ105)","v":0},{"$f":"SUM(HR86:HR105)","v":0},{"$f":"SUM(HS86:HS105)","v":0},{"$f":"SUM(HT86:HT105)","v":0},{"$f":"SUM(HU86:HU105)","v":0},{"$f":"SUM(HV86:HV105)","v":0},{"$f":"SUM(HW86:HW105)","v":0},{"$f":"SUM(HX86:HX105)","v":0},{"$f":"SUM(HY86:HY105)","v":0},{"$f":"SUM(HZ86:HZ105)","v":0},{"$f":"SUM(IA86:IA105)","v":0},{"$f":"SUM(IB86:IB105)","v":0},{"$f":"SUM(IC86:IC105)","v":0},{"$f":"SUM(ID86:ID105)","v":0},{"$f":"SUM(IE86:IE105)","v":0},{"$f":"SUM(IF86:IF105)","v":0},{"$f":"SUM(IG86:IG105)","v":0},{"$f":"SUM(IH86:IH105)","v":0},{"$f":"SUM(II86:II105)","v":0},{"$f":"SUM(IJ86:IJ105)","v":0},{"$f":"SUM(IK86:IK105)","v":0},{"$f":"SUM(IL86:IL105)","v":0},{"$f":"SUM(IM86:IM105)","v":0},{"$f":"SUM(IN86:IN105)","v":0},null,{"$f":"SUM(IP86:IP105)","v":0},0,0,0,0,0,0,0,0,0,0,0,0,0,0,0,0,0,0,0,0,0,0,0,0,0,0,0,0,0,0,0,{"$f":"SUM(JV86:JV105)","v":0},0,0,0,0,0,0,0,0,0,0,0,0,0,0,0,0,0,0,null,{"$f":"SUM(KP86:KP105)","v":0},{"$f":"SUM(KQ86:KQ105)","v":0},0,0,0,0,0,0,0,0,0,0,0,0,0,0,0,0,0,0,0,0,0,0,0,0,0,0,0,0,0,0,0,0,0,0,0,0,0,0,0,0,0,0,0,0,0,0,0,0,0]
[null,"Industrial, Commercial, Institutional Measures"]
[null,"USR-ICI-01",null,"N",null,null,null,null,null,null,null,null,null,null,null,null,null,null,null,null,null,null,null,null,null,{"$f":"SUM(O108:P108)","v":0},{"$f":"IF(S108>0,(SUM(O108:P108)/(MP108*(1-T108)))*(MQ108-1)/(MQ108^X108-1),0)","v":0},null,{"$f":"AVERAGE(KP108:KZ108)","v":0},{"$f":"AVERAGE(LA108:LJ108)","v":0},{"$f":"AVERAGE(LK108:LT108)","v":0},{"$f":"AVERAGE(LU108:MD108)","v":0},{"$f":"AVERAGE(ME108:MN108)","v":0},null,{"$f":"ICIMeasurePercent($L108,F108,poppericitoilet,iciurinalpertoilet,AVERAGE(IF(baseline_selection=1,'1. Baseline Demand Projection'!E$28:F$28,'1. Baseline Demand Projection'!N$28:O$28)),AVERAGE(IF(baseline_selection=1,'1. Baseline Demand Projection'!E$23:F$23,'1. Baseline Demand Projection'!N$23:O$23)))","v":""},{"$f":"ICIMeasurePercent($L108,G108,poppericitoilet,iciurinalpertoilet,AVERAGE(IF(baseline_selection=1,'1. Baseline Demand Projection'!F$28:G$28,'1. Baseline Demand Projection'!O$28:P$28)),AVERAGE(IF(baseline_selection=1,'1. Baseline Demand Projection'!F$23:G$23,'1. Baseline Demand Projection'!O$23:P$23)))","v":""},{"$f":"ICIMeasurePercent($L108,H108,poppericitoilet,iciurinalpertoilet,AVERAGE(IF(baseline_selection=1,'1. Baseline Demand Projection'!G$28:H$28,'1. Baseline Demand Projection'!P$28:Q$28)),AVERAGE(IF(baseline_selection=1,'1. Baseline Demand Projection'!G$23:H$23,'1. Baseline Demand Projection'!P$23:Q$23)))","v":""},{"$f":"ICIMeasurePercent($L108,I108,poppericitoilet,iciurinalpertoilet,AVERAGE(IF(baseline_selection=1,'1. Baseline Demand Projection'!H$28:I$28,'1. Baseline Demand Projection'!Q$28:R$28)),AVERAGE(IF(baseline_selection=1,'1. Baseline Demand Projection'!H$23:I$23,'1. Baseline Demand Projection'!Q$23:R$23)))","v":""},{"$f":"ICIMeasurePercent($L108,J108,poppericitoilet,iciurinalpertoilet,AVERAGE(IF(baseline_selection=1,'1. Baseline Demand Projection'!I$28:J$28,'1. Baseline Demand Projection'!R$28:S$28)),AVERAGE(IF(baseline_selection=1,'1. Baseline Demand Projection'!I$23:J$23,'1. Baseline Demand Projection'!R$23:S$23)))","v":""},null,{"$f":"$F108*IF($D108=\"Y\",1,0)","v":0},{"$f":"CHOOSE(ROUNDUP((AP$18-2020)/10,0),$F108,$G108,$H108,$I108,$J108)*IF($D108=\"Y\",1,0)","v":0},0,0,0,0,0,0,0,0,0,{"$f":"CHOOSE(ROUNDUP((AZ$18-2020)/10,0),$F108,$G108,$H108,$I108,$J108)*IF($D108=\"Y\",1,0)","v":0},0,0,0,0,0,0,0,0,0,{"$f":"CHOOSE(ROUNDUP((BJ$18-2020)/10,0),$F108,$G108,$H108,$I108,$J108)*IF($D108=\"Y\",1,0)","v":0},0,0,0,0,0,0,0,0,0,{"$f":"CHOOSE(ROUNDUP((BT$18-2020)/10,0),$F108,$G108,$H108,$I108,$J108)*IF($D108=\"Y\",1,0)","v":0},0,0,0,0,0,0,0,0,0,{"$f":"CHOOSE(ROUNDUP((CD$18-2020)/10,0),$F108,$G108,$H108,$I108,$J108)*IF($D108=\"Y\",1,0)","v":0},0,0,0,0,0,0,0,0,0,null,{"$f":"MeasureSavingsArray(AO108:CM108,S108,T108,U108,W108,X108,D108)","v":0},0,0,0,0,0,0,0,0,0,0,0,0,0,0,0,0,0,0,0,0,0,0,0,0,0,0,0,0,0,0,0,0,0,0,0,0,0,0,0,0,0,0,0,0,0,0,0,0,0,0,{"$f":"CO108+NPV(discount_rate,CP108:EM108)","v":0},null,{"$f":"$O108*AO108","v":0},{"$f":"$O108*AP108","v":0},{"$f":"$O108*AQ108","v":0},{"$f":"$O108*AR108","v":0},{"$f":"$O108*AS108","v":0},{"$f":"$O108*AT108","v":0},{"$f":"$O108*AU108","v":0},{"$f":"$O108*AV108","v":0},{"$f":"$O108*AW108","v":0},{"$f":"$O108*AX108","v":0},{"$f":"$O108*AY108","v":0},{"$f":"$O108*AZ108","v":0},{"$f":"$O108*BA108","v":0},{"$f":"$O108*BB108","v":0},{"$f":"$O108*BC108","v":0},{"$f":"$O108*BD108","v":0},{"$f":"$O108*BE108","v":0},{"$f":"$O108*BF108","v":0},{"$f":"$O108*BG108","v":0},{"$f":"$O108*BH108","v":0},{"$f":"$O108*BI108","v":0},{"$f":"$O108*BJ108","v":0},{"$f":"$O108*BK108","v":0},{"$f":"$O108*BL108","v":0},{"$f":"$O108*BM108","v":0},{"$f":"$O108*BN108","v":0},{"$f":"$O108*BO108","v":0},{"$f":"$O108*BP108","v":0},{"$f":"$O108*BQ108","v":0},{"$f":"$O108*BR108","v":0},{"$f":"$O108*BS108","v":0},{"$f":"$O108*BT108","v":0},{"$f":"$O108*BU108","v":0},{"$f":"$O108*BV108","v":0},{"$f":"$O108*BW108","v":0},{"$f":"$O108*BX108","v":0},{"$f":"$O108*BY108","v":0},{"$f":"$O108*BZ108","v":0},{"$f":"$O108*CA108","v":0},{"$f":"$O108*CB108","v":0},{"$f":"$O108*CC108","v":0},{"$f":"$O108*CD108","v":0},{"$f":"$O108*CE108","v":0},{"$f":"$O108*CF108","v":0},{"$f":"$O108*CG108","v":0},{"$f":"$O108*CH108","v":0},{"$f":"$O108*CI108","v":0},{"$f":"$O108*CJ108","v":0},{"$f":"$O108*CK108","v":0},{"$f":"$O108*CL108","v":0},{"$f":"$O108*CM108","v":0},null,{"$f":"$P108*IF($Q108=\"N\",1,0)*AO108","v":0},{"$f":"$P108*IF($Q108=\"N\",1,0)*AP108","v":0},{"$f":"$P108*IF($Q108=\"N\",1,0)*AQ108","v":0},{"$f":"$P108*IF($Q108=\"N\",1,0)*AR108","v":0},{"$f":"$P108*IF($Q108=\"N\",1,0)*AS108","v":0},{"$f":"$P108*IF($Q108=\"N\",1,0)*AT108","v":0},{"$f":"$P108*IF($Q108=\"N\",1,0)*AU108","v":0},{"$f":"$P108*IF($Q108=\"N\",1,0)*AV108","v":0},{"$f":"$P108*IF($Q108=\"N\",1,0)*AW108","v":0},{"$f":"$P108*IF($Q108=\"N\",1,0)*AX108","v":0},{"$f":"$P108*IF($Q108=\"N\",1,0)*AY108","v":0},{"$f":"$P108*IF($Q108=\"N\",1,0)*AZ108","v":0},{"$f":"$P108*IF($Q108=\"N\",1,0)*BA108","v":0},{"$f":"$P108*IF($Q108=\"N\",1,0)*BB108","v":0},{"$f":"$P108*IF($Q108=\"N\",1,0)*BC108","v":0},{"$f":"$P108*IF($Q108=\"N\",1,0)*BD108","v":0},{"$f":"$P108*IF($Q108=\"N\",1,0)*BE108","v":0},{"$f":"$P108*IF($Q108=\"N\",1,0)*BF108","v":0},{"$f":"$P108*IF($Q108=\"N\",1,0)*BG108","v":0},{"$f":"$P108*IF($Q108=\"N\",1,0)*BH108","v":0},{"$f":"$P108*IF($Q108=\"N\",1,0)*BI108","v":0},{"$f":"$P108*IF($Q108=\"N\",1,0)*BJ108","v":0},{"$f":"$P108*IF($Q108=\"N\",1,0)*BK108","v":0},{"$f":"$P108*IF($Q108=\"N\",1,0)*BL108","v":0},{"$f":"$P108*IF($Q108=\"N\",1,0)*BM108","v":0},{"$f":"$P108*IF($Q108=\"N\",1,0)*BN108","v":0},{"$f":"$P108*IF($Q108=\"N\",1,0)*BO108","v":0},{"$f":"$P108*IF($Q108=\"N\",1,0)*BP108","v":0},{"$f":"$P108*IF($Q108=\"N\",1,0)*BQ108","v":0},{"$f":"$P108*IF($Q108=\"N\",1,0)*BR108","v":0},{"$f":"$P108*IF($Q108=\"N\",1,0)*BS108","v":0},{"$f":"$P108*IF($Q108=\"N\",1,0)*BT108","v":0},{"$f":"$P108*IF($Q108=\"N\",1,0)*BU108","v":0},{"$f":"$P108*IF($Q108=\"N\",1,0)*BV108","v":0},{"$f":"$P108*IF($Q108=\"N\",1,0)*BW108","v":0},{"$f":"$P108*IF($Q108=\"N\",1,0)*BX108","v":0},{"$f":"$P108*IF($Q108=\"N\",1,0)*BY108","v":0},{"$f":"$P108*IF($Q108=\"N\",1,0)*BZ108","v":0},{"$f":"$P108*IF($Q108=\"N\",1,0)*CA108","v":0},{"$f":"$P108*IF($Q108=\"N\",1,0)*CB108","v":0},{"$f":"$P108*IF($Q108=\"N\",1,0)*CC108","v":0},{"$f":"$P108*IF($Q108=\"N\",1,0)*CD108","v":0},{"$f":"$P108*IF($Q108=\"N\",1,0)*CE108","v":0},{"$f":"$P108*IF($Q108=\"N\",1,0)*CF108","v":0},{"$f":"$P108*IF($Q108=\"N\",1,0)*CG108","v":0},{"$f":"$P108*IF($Q108=\"N\",1,0)*CH108","v":0},{"$f":"$P108*IF($Q108=\"N\",1,0)*CI108","v":0},{"$f":"$P108*IF($Q108=\"N\",1,0)*CJ108","v":0},{"$f":"$P108*IF($Q108=\"N\",1,0)*CK108","v":0},{"$f":"$P108*IF($Q108=\"N\",1,0)*CL108","v":0},{"$f":"$P108*IF($Q108=\"N\",1,0)*CM108","v":0},null,{"$f":"DebtServiceArray(AO108:CM108,P108,discount_rate,Q108,D108)","v":0},0,0,0,0,0,0,0,0,0,0,0,0,0,0,0,0,0,0,0,0,0,0,0,0,0,0,0,0,0,0,0,0,0,0,0,0,0,0,0,0,0,0,0,0,0,0,0,0,0,0,null,{"$f":"SUM(EP108,GP108,IP108)","v":0},{"$f":"SUM(EQ108,GQ108,IQ108)","v":0},{"$f":"SUM(ER108,GR108,IR108)","v":0},{"$f":"SUM(ES108,GS108,IS108)","v":0},{"$f":"SUM(ET108,GT108,IT108)","v":0},{"$f":"SUM(EU108,GU108,IU108)","v":0},{"$f":"SUM(EV108,GV108,IV108)","v":0},{"$f":"SUM(EW108,GW108,IW108)","v":0},{"$f":"SUM(EX108,GX108,IX108)","v":0},{"$f":"SUM(EY108,GY108,IY108)","v":0},{"$f":"SUM(EZ108,GZ108,IZ108)","v":0},{"$f":"SUM(FA108,HA108,JA108)","v":0},{"$f":"SUM(FB108,HB108,JB108)","v":0},{"$f":"SUM(FC108,HC108,JC108)","v":0},{"$f":"SUM(FD108,HD108,JD108)","v":0},{"$f":"SUM(FE108,HE108,JE108)","v":0},{"$f":"SUM(FF108,HF108,JF108)","v":0},{"$f":"SUM(FG108,HG108,JG108)","v":0},{"$f":"SUM(FH108,HH108,JH108)","v":0},{"$f":"SUM(FI108,HI108,JI108)","v":0},{"$f":"SUM(FJ108,HJ108,JJ108)","v":0},{"$f":"SUM(FK108,HK108,JK108)","v":0},{"$f":"SUM(FL108,HL108,JL108)","v":0},{"$f":"SUM(FM108,HM108,JM108)","v":0},{"$f":"SUM(FN108,HN108,JN108)","v":0},{"$f":"SUM(FO108,HO108,JO108)","v":0},{"$f":"SUM(FP108,HP108,JP108)","v":0},{"$f":"SUM(FQ108,HQ108,JQ108)","v":0},{"$f":"SUM(FR108,HR108,JR108)","v":0},{"$f":"SUM(FS108,HS108,JS108)","v":0},{"$f":"SUM(FT108,HT108,JT108)","v":0},{"$f":"SUM(FU108,HU108,JU108)","v":0},{"$f":"SUM(FV108,HV108,JV108)","v":0},{"$f":"SUM(FW108,HW108,JW108)","v":0},{"$f":"SUM(FX108,HX108,JX108)","v":0},{"$f":"SUM(FY108,HY108,JY108)","v":0},{"$f":"SUM(FZ108,HZ108,JZ108)","v":0},{"$f":"SUM(GA108,IA108,KA108)","v":0},{"$f":"SUM(GB108,IB108,KB108)","v":0},{"$f":"SUM(GC108,IC108,KC108)","v":0},{"$f":"SUM(GD108,ID108,KD108)","v":0},{"$f":"SUM(GE108,IE108,KE108)","v":0},{"$f":"SUM(GF108,IF108,KF108)","v":0},{"$f":"SUM(GG108,IG108,KG108)","v":0},{"$f":"SUM(GH108,IH108,KH108)","v":0},{"$f":"SUM(GI108,II108,KI108)","v":0},{"$f":"SUM(GJ108,IJ108,KJ108)","v":0},{"$f":"SUM(GK108,IK108,KK108)","v":0},{"$f":"SUM(GL108,IL108,KL108)","v":0},{"$f":"SUM(GM108,IM108,KM108)","v":0},{"$f":"SUM(GN108,IN108,KN108)","v":0},null,{"$f":"S108*365/325851","v":0},{"$f":"(1-U108)*(1-W108)/(1+discount_rate)","v":0.96618357487922713}]
[null,"USR-ICI-02",null,"N",null,null,null,null,null,null,null,null,null,null,null,null,null,null,null,null,null,null,null,null,null,0,0,null,0,0,0,0,0,null,{"$f":"ICIMeasurePercent($L109,F109,poppericitoilet,iciurinalpertoilet,AVERAGE(IF(baseline_selection=1,'1. Baseline Demand Projection'!E$28:F$28,'1. Baseline Demand Projection'!N$28:O$28)),AVERAGE(IF(baseline_selection=1,'1. Baseline Demand Projection'!E$23:F$23,'1. Baseline Demand Projection'!N$23:O$23)))","v":""},{"$f":"ICIMeasurePercent($L109,G109,poppericitoilet,iciurinalpertoilet,AVERAGE(IF(baseline_selection=1,'1. Baseline Demand Projection'!F$28:G$28,'1. Baseline Demand Projection'!O$28:P$28)),AVERAGE(IF(baseline_selection=1,'1. Baseline Demand Projection'!F$23:G$23,'1. Baseline Demand Projection'!O$23:P$23)))","v":""},{"$f":"ICIMeasurePercent($L109,H109,poppericitoilet,iciurinalpertoilet,AVERAGE(IF(baseline_selection=1,'1. Baseline Demand Projection'!G$28:H$28,'1. Baseline Demand Projection'!P$28:Q$28)),AVERAGE(IF(baseline_selection=1,'1. Baseline Demand Projection'!G$23:H$23,'1. Baseline Demand Projection'!P$23:Q$23)))","v":""},{"$f":"ICIMeasurePercent($L109,I109,poppericitoilet,iciurinalpertoilet,AVERAGE(IF(baseline_selection=1,'1. Baseline Demand Projection'!H$28:I$28,'1. Baseline Demand Projection'!Q$28:R$28)),AVERAGE(IF(baseline_selection=1,'1. Baseline Demand Projection'!H$23:I$23,'1. Baseline Demand Projection'!Q$23:R$23)))","v":""},{"$f":"ICIMeasurePercent($L109,J109,poppericitoilet,iciurinalpertoilet,AVERAGE(IF(baseline_selection=1,'1. Baseline Demand Projection'!I$28:J$28,'1. Baseline Demand Projection'!R$28:S$28)),AVERAGE(IF(baseline_selection=1,'1. Baseline Demand Projection'!I$23:J$23,'1. Baseline Demand Projection'!R$23:S$23)))","v":""},null,0,0,0,0,0,0,0,0,0,0,0,0,0,0,0,0,0,0,0,0,0,0,0,0,0,0,0,0,0,0,0,0,0,0,0,0,0,0,0,0,0,0,0,0,0,0,0,0,0,0,0,null,{"$f":"MeasureSavingsArray(AO109:CM109,S109,T109,U109,W109,X109,D109)","v":0},0,0,0,0,0,0,0,0,0,0,0,0,0,0,0,0,0,0,0,0,0,0,0,0,0,0,0,0,0,0,0,0,0,0,0,0,0,0,0,0,0,0,0,0,0,0,0,0,0,0,0,null,0,0,0,0,0,0,0,0,0,0,0,0,0,0,0,0,0,0,0,0,0,0,0,0,0,0,0,0,0,0,0,0,0,0,0,0,0,0,0,0,0,0,0,0,0,0,0,0,0,0,0,null,0,0,0,0,0,0,0,0,0,0,0,0,0,0,0,0,0,0,0,0,0,0,0,0,0,0,0,0,0,0,0,0,0,0,0,0,0,0,0,0,0,0,0,0,0,0,0,0,0,0,0,null,{"$f":"DebtServiceArray(AO109:CM109,P109,discount_rate,Q109,D109)","v":0},0,0,0,0,0,0,0,0,0,0,0,0,0,0,0,0,0,0,0,0,0,0,0,0,0,0,0,0,0,0,0,0,0,0,0,0,0,0,0,0,0,0,0,0,0,0,0,0,0,0,null,0,0,0,0,0,0,0,0,0,0,0,0,0,0,0,0,0,0,0,0,0,0,0,0,0,0,0,0,0,0,0,0,0,0,0,0,0,0,0,0,0,0,0,0,0,0,0,0,0,0,0,null,0,0.96618357487922713]
[null,"USR-ICI-03",null,"N",null,null,null,null,null,null,null,null,null,null,null,null,null,null,null,null,null,null,null,null,null,0,0,null,0,0,0,0,0,null,{"$f":"ICIMeasurePercent($L110,F110,poppericitoilet,iciurinalpertoilet,AVERAGE(IF(baseline_selection=1,'1. Baseline Demand Projection'!E$28:F$28,'1. Baseline Demand Projection'!N$28:O$28)),AVERAGE(IF(baseline_selection=1,'1. Baseline Demand Projection'!E$23:F$23,'1. Baseline Demand Projection'!N$23:O$23)))","v":""},{"$f":"ICIMeasurePercent($L110,G110,poppericitoilet,iciurinalpertoilet,AVERAGE(IF(baseline_selection=1,'1. Baseline Demand Projection'!F$28:G$28,'1. Baseline Demand Projection'!O$28:P$28)),AVERAGE(IF(baseline_selection=1,'1. Baseline Demand Projection'!F$23:G$23,'1. Baseline Demand Projection'!O$23:P$23)))","v":""},{"$f":"ICIMeasurePercent($L110,H110,poppericitoilet,iciurinalpertoilet,AVERAGE(IF(baseline_selection=1,'1. Baseline Demand Projection'!G$28:H$28,'1. Baseline Demand Projection'!P$28:Q$28)),AVERAGE(IF(baseline_selection=1,'1. Baseline Demand Projection'!G$23:H$23,'1. Baseline Demand Projection'!P$23:Q$23)))","v":""},{"$f":"ICIMeasurePercent($L110,I110,poppericitoilet,iciurinalpertoilet,AVERAGE(IF(baseline_selection=1,'1. Baseline Demand Projection'!H$28:I$28,'1. Baseline Demand Projection'!Q$28:R$28)),AVERAGE(IF(baseline_selection=1,'1. Baseline Demand Projection'!H$23:I$23,'1. Baseline Demand Projection'!Q$23:R$23)))","v":""},{"$f":"ICIMeasurePercent($L110,J110,poppericitoilet,iciurinalpertoilet,AVERAGE(IF(baseline_selection=1,'1. Baseline Demand Projection'!I$28:J$28,'1. Baseline Demand Projection'!R$28:S$28)),AVERAGE(IF(baseline_selection=1,'1. Baseline Demand Projection'!I$23:J$23,'1. Baseline Demand Projection'!R$23:S$23)))","v":""},null,0,0,0,0,0,0,0,0,0,0,0,0,0,0,0,0,0,0,0,0,0,0,0,0,0,0,0,0,0,0,0,0,0,0,0,0,0,0,0,0,0,0,0,0,0,0,0,0,0,0,0,null,{"$f":"MeasureSavingsArray(AO110:CM110,S110,T110,U110,W110,X110,D110)","v":0},0,0,0,0,0,0,0,0,0,0,0,0,0,0,0,0,0,0,0,0,0,0,0,0,0,0,0,0,0,0,0,0,0,0,0,0,0,0,0,0,0,0,0,0,0,0,0,0,0,0,0,null,0,0,0,0,0,0,0,0,0,0,0,0,0,0,0,0,0,0,0,0,0,0,0,0,0,0,0,0,0,0,0,0,0,0,0,0,0,0,0,0,0,0,0,0,0,0,0,0,0,0,0,null,0,0,0,0,0,0,0,0,0,0,0,0,0,0,0,0,0,0,0,0,0,0,0,0,0,0,0,0,0,0,0,0,0,0,0,0,0,0,0,0,0,0,0,0,0,0,0,0,0,0,0,null,{"$f":"DebtServiceArray(AO110:CM110,P110,discount_rate,Q110,D110)","v":0},0,0,0,0,0,0,0,0,0,0,0,0,0,0,0,0,0,0,0,0,0,0,0,0,0,0,0,0,0,0,0,0,0,0,0,0,0,0,0,0,0,0,0,0,0,0,0,0,0,0,null,0,0,0,0,0,0,0,0,0,0,0,0,0,0,0,0,0,0,0,0,0,0,0,0,0,0,0,0,0,0,0,0,0,0,0,0,0,0,0,0,0,0,0,0,0,0,0,0,0,0,0,null,0,0.96618357487922713]
[null,"USR-ICI-04",null,"N",null,null,null,null,null,null,null,null,null,null,null,null,null,null,null,null,null,null,null,null,null,0,0,null,0,0,0,0,0,null,{"$f":"ICIMeasurePercent($L111,F111,poppericitoilet,iciurinalpertoilet,AVERAGE(IF(baseline_selection=1,'1. Baseline Demand Projection'!E$28:F$28,'1. Baseline Demand Projection'!N$28:O$28)),AVERAGE(IF(baseline_selection=1,'1. Baseline Demand Projection'!E$23:F$23,'1. Baseline Demand Projection'!N$23:O$23)))","v":""},{"$f":"ICIMeasurePercent($L111,G111,poppericitoilet,iciurinalpertoilet,AVERAGE(IF(baseline_selection=1,'1. Baseline Demand Projection'!F$28:G$28,'1. Baseline Demand Projection'!O$28:P$28)),AVERAGE(IF(baseline_selection=1,'1. Baseline Demand Projection'!F$23:G$23,'1. Baseline Demand Projection'!O$23:P$23)))","v":""},{"$f":"ICIMeasurePercent($L111,H111,poppericitoilet,iciurinalpertoilet,AVERAGE(IF(baseline_selection=1,'1. Baseline Demand Projection'!G$28:H$28,'1. Baseline Demand Projection'!P$28:Q$28)),AVERAGE(IF(baseline_selection=1,'1. Baseline Demand Projection'!G$23:H$23,'1. Baseline Demand Projection'!P$23:Q$23)))","v":""},{"$f":"ICIMeasurePercent($L111,I111,poppericitoilet,iciurinalpertoilet,AVERAGE(IF(baseline_selection=1,'1. Baseline Demand Projection'!H$28:I$28,'1. Baseline Demand Projection'!Q$28:R$28)),AVERAGE(IF(baseline_selection=1,'1. Baseline Demand Projection'!H$23:I$23,'1. Baseline Demand Projection'!Q$23:R$23)))","v":""},{"$f":"ICIMeasurePercent($L111,J111,poppericitoilet,iciurinalpertoilet,AVERAGE(IF(baseline_selection=1,'1. Baseline Demand Projection'!I$28:J$28,'1. Baseline Demand Projection'!R$28:S$28)),AVERAGE(IF(baseline_selection=1,'1. Baseline Demand Projection'!I$23:J$23,'1. Baseline Demand Projection'!R$23:S$23)))","v":""},null,0,0,0,0,0,0,0,0,0,0,0,0,0,0,0,0,0,0,0,0,0,0,0,0,0,0,0,0,0,0,0,0,0,0,0,0,0,0,0,0,0,0,0,0,0,0,0,0,0,0,0,null,{"$f":"MeasureSavingsArray(AO111:CM111,S111,T111,U111,W111,X111,D111)","v":0},0,0,0,0,0,0,0,0,0,0,0,0,0,0,0,0,0,0,0,0,0,0,0,0,0,0,0,0,0,0,0,0,0,0,0,0,0,0,0,0,0,0,0,0,0,0,0,0,0,0,0,null,0,0,0,0,0,0,0,0,0,0,0,0,0,0,0,0,0,0,0,0,0,0,0,0,0,0,0,0,0,0,0,0,0,0,0,0,0,0,0,0,0,0,0,0,0,0,0,0,0,0,0,null,0,0,0,0,0,0,0,0,0,0,0,0,0,0,0,0,0,0,0,0,0,0,0,0,0,0,0,0,0,0,0,0,0,0,0,0,0,0,0,0,0,0,0,0,0,0,0,0,0,0,0,null,{"$f":"DebtServiceArray(AO111:CM111,P111,discount_rate,Q111,D111)","v":0},0,0,0,0,0,0,0,0,0,0,0,0,0,0,0,0,0,0,0,0,0,0,0,0,0,0,0,0,0,0,0,0,0,0,0,0,0,0,0,0,0,0,0,0,0,0,0,0,0,0,null,0,0,0,0,0,0,0,0,0,0,0,0,0,0,0,0,0,0,0,0,0,0,0,0,0,0,0,0,0,0,0,0,0,0,0,0,0,0,0,0,0,0,0,0,0,0,0,0,0,0,0,null,0,0.96618357487922713]
[null,"USR-ICI-05",null,"N",null,null,null,null,null,null,null,null,null,null,null,null,null,null,null,null,null,null,null,null,null,0,0,null,0,0,0,0,0,null,{"$f":"ICIMeasurePercent($L112,F112,poppericitoilet,iciurinalpertoilet,AVERAGE(IF(baseline_selection=1,'1. Baseline Demand Projection'!E$28:F$28,'1. Baseline Demand Projection'!N$28:O$28)),AVERAGE(IF(baseline_selection=1,'1. Baseline Demand Projection'!E$23:F$23,'1. Baseline Demand Projection'!N$23:O$23)))","v":""},{"$f":"ICIMeasurePercent($L112,G112,poppericitoilet,iciurinalpertoilet,AVERAGE(IF(baseline_selection=1,'1. Baseline Demand Projection'!F$28:G$28,'1. Baseline Demand Projection'!O$28:P$28)),AVERAGE(IF(baseline_selection=1,'1. Baseline Demand Projection'!F$23:G$23,'1. Baseline Demand Projection'!O$23:P$23)))","v":""},{"$f":"ICIMeasurePercent($L112,H112,poppericitoilet,iciurinalpertoilet,AVERAGE(IF(baseline_selection=1,'1. Baseline Demand Projection'!G$28:H$28,'1. Baseline Demand Projection'!P$28:Q$28)),AVERAGE(IF(baseline_selection=1,'1. Baseline Demand Projection'!G$23:H$23,'1. Baseline Demand Projection'!P$23:Q$23)))","v":""},{"$f":"ICIMeasurePercent($L112,I112,poppericitoilet,iciurinalpertoilet,AVERAGE(IF(baseline_selection=1,'1. Baseline Demand Projection'!H$28:I$28,'1. Baseline Demand Projection'!Q$28:R$28)),AVERAGE(IF(baseline_selection=1,'1. Baseline Demand Projection'!H$23:I$23,'1. Baseline Demand Projection'!Q$23:R$23)))","v":""},{"$f":"ICIMeasurePercent($L112,J112,poppericitoilet,iciurinalpertoilet,AVERAGE(IF(baseline_selection=1,'1. Baseline Demand Projection'!I$28:J$28,'1. Baseline Demand Projection'!R$28:S$28)),AVERAGE(IF(baseline_selection=1,'1. Baseline Demand Projection'!I$23:J$23,'1. Baseline Demand Projection'!R$23:S$23)))","v":""},null,0,0,0,0,0,0,0,0,0,0,0,0,0,0,0,0,0,0,0,0,0,0,0,0,0,0,0,0,0,0,0,0,0,0,0,0,0,0,0,0,0,0,0,0,0,0,0,0,0,0,0,null,{"$f":"MeasureSavingsArray(AO112:CM112,S112,T112,U112,W112,X112,D112)","v":0},0,0,0,0,0,0,0,0,0,0,0,0,0,0,0,0,0,0,0,0,0,0,0,0,0,0,0,0,0,0,0,0,0,0,0,0,0,0,0,0,0,0,0,0,0,0,0,0,0,0,0,null,0,0,0,0,0,0,0,0,0,0,0,0,0,0,0,0,0,0,0,0,0,0,0,0,0,0,0,0,0,0,0,0,0,0,0,0,0,0,0,0,0,0,0,0,0,0,0,0,0,0,0,null,0,0,0,0,0,0,0,0,0,0,0,0,0,0,0,0,0,0,0,0,0,0,0,0,0,0,0,0,0,0,0,0,0,0,0,0,0,0,0,0,0,0,0,0,0,0,0,0,0,0,0,null,{"$f":"DebtServiceArray(AO112:CM112,P112,discount_rate,Q112,D112)","v":0},0,0,0,0,0,0,0,0,0,0,0,0,0,0,0,0,0,0,0,0,0,0,0,0,0,0,0,0,0,0,0,0,0,0,0,0,0,0,0,0,0,0,0,0,0,0,0,0,0,0,null,0,0,0,0,0,0,0,0,0,0,0,0,0,0,0,0,0,0,0,0,0,0,0,0,0,0,0,0,0,0,0,0,0,0,0,0,0,0,0,0,0,0,0,0,0,0,0,0,0,0,0,null,0,0.96618357487922713]
[null,"USR-ICI-06",null,"N",null,null,null,null,null,null,null,null,null,null,null,null,null,null,null,null,null,null,null,null,null,0,0,null,0,0,0,0,0,null,{"$f":"ICIMeasurePercent($L113,F113,poppericitoilet,iciurinalpertoilet,AVERAGE(IF(baseline_selection=1,'1. Baseline Demand Projection'!E$28:F$28,'1. Baseline Demand Projection'!N$28:O$28)),AVERAGE(IF(baseline_selection=1,'1. Baseline Demand Projection'!E$23:F$23,'1. Baseline Demand Projection'!N$23:O$23)))","v":""},{"$f":"ICIMeasurePercent($L113,G113,poppericitoilet,iciurinalpertoilet,AVERAGE(IF(baseline_selection=1,'1. Baseline Demand Projection'!F$28:G$28,'1. Baseline Demand Projection'!O$28:P$28)),AVERAGE(IF(baseline_selection=1,'1. Baseline Demand Projection'!F$23:G$23,'1. Baseline Demand Projection'!O$23:P$23)))","v":""},{"$f":"ICIMeasurePercent($L113,H113,poppericitoilet,iciurinalpertoilet,AVERAGE(IF(baseline_selection=1,'1. Baseline Demand Projection'!G$28:H$28,'1. Baseline Demand Projection'!P$28:Q$28)),AVERAGE(IF(baseline_selection=1,'1. Baseline Demand Projection'!G$23:H$23,'1. Baseline Demand Projection'!P$23:Q$23)))","v":""},{"$f":"ICIMeasurePercent($L113,I113,poppericitoilet,iciurinalpertoilet,AVERAGE(IF(baseline_selection=1,'1. Baseline Demand Projection'!H$28:I$28,'1. Baseline Demand Projection'!Q$28:R$28)),AVERAGE(IF(baseline_selection=1,'1. Baseline Demand Projection'!H$23:I$23,'1. Baseline Demand Projection'!Q$23:R$23)))","v":""},{"$f":"ICIMeasurePercent($L113,J113,poppericitoilet,iciurinalpertoilet,AVERAGE(IF(baseline_selection=1,'1. Baseline Demand Projection'!I$28:J$28,'1. Baseline Demand Projection'!R$28:S$28)),AVERAGE(IF(baseline_selection=1,'1. Baseline Demand Projection'!I$23:J$23,'1. Baseline Demand Projection'!R$23:S$23)))","v":""},null,0,0,0,0,0,0,0,0,0,0,0,0,0,0,0,0,0,0,0,0,0,0,0,0,0,0,0,0,0,0,0,0,0,0,0,0,0,0,0,0,0,0,0,0,0,0,0,0,0,0,0,null,{"$f":"MeasureSavingsArray(AO113:CM113,S113,T113,U113,W113,X113,D113)","v":0},0,0,0,0,0,0,0,0,0,0,0,0,0,0,0,0,0,0,0,0,0,0,0,0,0,0,0,0,0,0,0,0,0,0,0,0,0,0,0,0,0,0,0,0,0,0,0,0,0,0,0,null,0,0,0,0,0,0,0,0,0,0,0,0,0,0,0,0,0,0,0,0,0,0,0,0,0,0,0,0,0,0,0,0,0,0,0,0,0,0,0,0,0,0,0,0,0,0,0,0,0,0,0,null,0,0,0,0,0,0,0,0,0,0,0,0,0,0,0,0,0,0,0,0,0,0,0,0,0,0,0,0,0,0,0,0,0,0,0,0,0,0,0,0,0,0,0,0,0,0,0,0,0,0,0,null,{"$f":"DebtServiceArray(AO113:CM113,P113,discount_rate,Q113,D113)","v":0},0,0,0,0,0,0,0,0,0,0,0,0,0,0,0,0,0,0,0,0,0,0,0,0,0,0,0,0,0,0,0,0,0,0,0,0,0,0,0,0,0,0,0,0,0,0,0,0,0,0,null,0,0,0,0,0,0,0,0,0,0,0,0,0,0,0,0,0,0,0,0,0,0,0,0,0,0,0,0,0,0,0,0,0,0,0,0,0,0,0,0,0,0,0,0,0,0,0,0,0,0,0,null,0,0.96618357487922713]
[null,"USR-ICI-07",null,"N",null,null,null,null,null,null,null,null,null,null,null,null,null,null,null,null,null,null,null,null,null,0,0,null,0,0,0,0,0,null,{"$f":"ICIMeasurePercent($L114,F114,poppericitoilet,iciurinalpertoilet,AVERAGE(IF(baseline_selection=1,'1. Baseline Demand Projection'!E$28:F$28,'1. Baseline Demand Projection'!N$28:O$28)),AVERAGE(IF(baseline_selection=1,'1. Baseline Demand Projection'!E$23:F$23,'1. Baseline Demand Projection'!N$23:O$23)))","v":""},{"$f":"ICIMeasurePercent($L114,G114,poppericitoilet,iciurinalpertoilet,AVERAGE(IF(baseline_selection=1,'1. Baseline Demand Projection'!F$28:G$28,'1. Baseline Demand Projection'!O$28:P$28)),AVERAGE(IF(baseline_selection=1,'1. Baseline Demand Projection'!F$23:G$23,'1. Baseline Demand Projection'!O$23:P$23)))","v":""},{"$f":"ICIMeasurePercent($L114,H114,poppericitoilet,iciurinalpertoilet,AVERAGE(IF(baseline_selection=1,'1. Baseline Demand Projection'!G$28:H$28,'1. Baseline Demand Projection'!P$28:Q$28)),AVERAGE(IF(baseline_selection=1,'1. Baseline Demand Projection'!G$23:H$23,'1. Baseline Demand Projection'!P$23:Q$23)))","v":""},{"$f":"ICIMeasurePercent($L114,I114,poppericitoilet,iciurinalpertoilet,AVERAGE(IF(baseline_selection=1,'1. Baseline Demand Projection'!H$28:I$28,'1. Baseline Demand Projection'!Q$28:R$28)),AVERAGE(IF(baseline_selection=1,'1. Baseline Demand Projection'!H$23:I$23,'1. Baseline Demand Projection'!Q$23:R$23)))","v":""},{"$f":"ICIMeasurePercent($L114,J114,poppericitoilet,iciurinalpertoilet,AVERAGE(IF(baseline_selection=1,'1. Baseline Demand Projection'!I$28:J$28,'1. Baseline Demand Projection'!R$28:S$28)),AVERAGE(IF(baseline_selection=1,'1. Baseline Demand Projection'!I$23:J$23,'1. Baseline Demand Projection'!R$23:S$23)))","v":""},null,0,0,0,0,0,0,0,0,0,0,0,0,0,0,0,0,0,0,0,0,0,0,0,0,0,0,0,0,0,0,0,0,0,0,0,0,0,0,0,0,0,0,0,0,0,0,0,0,0,0,0,null,{"$f":"MeasureSavingsArray(AO114:CM114,S114,T114,U114,W114,X114,D114)","v":0},0,0,0,0,0,0,0,0,0,0,0,0,0,0,0,0,0,0,0,0,0,0,0,0,0,0,0,0,0,0,0,0,0,0,0,0,0,0,0,0,0,0,0,0,0,0,0,0,0,0,0,null,0,0,0,0,0,0,0,0,0,0,0,0,0,0,0,0,0,0,0,0,0,0,0,0,0,0,0,0,0,0,0,0,0,0,0,0,0,0,0,0,0,0,0,0,0,0,0,0,0,0,0,null,0,0,0,0,0,0,0,0,0,0,0,0,0,0,0,0,0,0,0,0,0,0,0,0,0,0,0,0,0,0,0,0,0,0,0,0,0,0,0,0,0,0,0,0,0,0,0,0,0,0,0,null,{"$f":"DebtServiceArray(AO114:CM114,P114,discount_rate,Q114,D114)","v":0},0,0,0,0,0,0,0,0,0,0,0,0,0,0,0,0,0,0,0,0,0,0,0,0,0,0,0,0,0,0,0,0,0,0,0,0,0,0,0,0,0,0,0,0,0,0,0,0,0,0,null,0,0,0,0,0,0,0,0,0,0,0,0,0,0,0,0,0,0,0,0,0,0,0,0,0,0,0,0,0,0,0,0,0,0,0,0,0,0,0,0,0,0,0,0,0,0,0,0,0,0,0,null,0,0.96618357487922713]
[null,"USR-ICI-08",null,"N",null,null,null,null,null,null,null,null,null,null,null,null,null,null,null,null,null,null,null,null,null,0,0,null,0,0,0,0,0,null,{"$f":"ICIMeasurePercent($L115,F115,poppericitoilet,iciurinalpertoilet,AVERAGE(IF(baseline_selection=1,'1. Baseline Demand Projection'!E$28:F$28,'1. Baseline Demand Projection'!N$28:O$28)),AVERAGE(IF(baseline_selection=1,'1. Baseline Demand Projection'!E$23:F$23,'1. Baseline Demand Projection'!N$23:O$23)))","v":""},{"$f":"ICIMeasurePercent($L115,G115,poppericitoilet,iciurinalpertoilet,AVERAGE(IF(baseline_selection=1,'1. Baseline Demand Projection'!F$28:G$28,'1. Baseline Demand Projection'!O$28:P$28)),AVERAGE(IF(baseline_selection=1,'1. Baseline Demand Projection'!F$23:G$23,'1. Baseline Demand Projection'!O$23:P$23)))","v":""},{"$f":"ICIMeasurePercent($L115,H115,poppericitoilet,iciurinalpertoilet,AVERAGE(IF(baseline_selection=1,'1. Baseline Demand Projection'!G$28:H$28,'1. Baseline Demand Projection'!P$28:Q$28)),AVERAGE(IF(baseline_selection=1,'1. Baseline Demand Projection'!G$23:H$23,'1. Baseline Demand Projection'!P$23:Q$23)))","v":""},{"$f":"ICIMeasurePercent($L115,I115,poppericitoilet,iciurinalpertoilet,AVERAGE(IF(baseline_selection=1,'1. Baseline Demand Projection'!H$28:I$28,'1. Baseline Demand Projection'!Q$28:R$28)),AVERAGE(IF(baseline_selection=1,'1. Baseline Demand Projection'!H$23:I$23,'1. Baseline Demand Projection'!Q$23:R$23)))","v":""},{"$f":"ICIMeasurePercent($L115,J115,poppericitoilet,iciurinalpertoilet,AVERAGE(IF(baseline_selection=1,'1. Baseline Demand Projection'!I$28:J$28,'1. Baseline Demand Projection'!R$28:S$28)),AVERAGE(IF(baseline_selection=1,'1. Baseline Demand Projection'!I$23:J$23,'1. Baseline Demand Projection'!R$23:S$23)))","v":""},null,0,0,0,0,0,0,0,0,0,0,0,0,0,0,0,0,0,0,0,0,0,0,0,0,0,0,0,0,0,0,0,0,0,0,0,0,0,0,0,0,0,0,0,0,0,0,0,0,0,0,0,null,{"$f":"MeasureSavingsArray(AO115:CM115,S115,T115,U115,W115,X115,D115)","v":0},0,0,0,0,0,0,0,0,0,0,0,0,0,0,0,0,0,0,0,0,0,0,0,0,0,0,0,0,0,0,0,0,0,0,0,0,0,0,0,0,0,0,0,0,0,0,0,0,0,0,0,null,0,0,0,0,0,0,0,0,0,0,0,0,0,0,0,0,0,0,0,0,0,0,0,0,0,0,0,0,0,0,0,0,0,0,0,0,0,0,0,0,0,0,0,0,0,0,0,0,0,0,0,null,0,0,0,0,0,0,0,0,0,0,0,0,0,0,0,0,0,0,0,0,0,0,0,0,0,0,0,0,0,0,0,0,0,0,0,0,0,0,0,0,0,0,0,0,0,0,0,0,0,0,0,null,{"$f":"DebtServiceArray(AO115:CM115,P115,discount_rate,Q115,D115)","v":0},0,0,0,0,0,0,0,0,0,0,0,0,0,0,0,0,0,0,0,0,0,0,0,0,0,0,0,0,0,0,0,0,0,0,0,0,0,0,0,0,0,0,0,0,0,0,0,0,0,0,null,0,0,0,0,0,0,0,0,0,0,0,0,0,0,0,0,0,0,0,0,0,0,0,0,0,0,0,0,0,0,0,0,0,0,0,0,0,0,0,0,0,0,0,0,0,0,0,0,0,0,0,null,0,0.96618357487922713]
[null,"USR-ICI-09",null,"N",null,null,null,null,null,null,null,null,null,null,null,null,null,null,null,null,null,null,null,null,null,0,0,null,0,0,0,0,0,null,{"$f":"ICIMeasurePercent($L116,F116,poppericitoilet,iciurinalpertoilet,AVERAGE(IF(baseline_selection=1,'1. Baseline Demand Projection'!E$28:F$28,'1. Baseline Demand Projection'!N$28:O$28)),AVERAGE(IF(baseline_selection=1,'1. Baseline Demand Projection'!E$23:F$23,'1. Baseline Demand Projection'!N$23:O$23)))","v":""},{"$f":"ICIMeasurePercent($L116,G116,poppericitoilet,iciurinalpertoilet,AVERAGE(IF(baseline_selection=1,'1. Baseline Demand Projection'!F$28:G$28,'1. Baseline Demand Projection'!O$28:P$28)),AVERAGE(IF(baseline_selection=1,'1. Baseline Demand Projection'!F$23:G$23,'1. Baseline Demand Projection'!O$23:P$23)))","v":""},{"$f":"ICIMeasurePercent($L116,H116,poppericitoilet,iciurinalpertoilet,AVERAGE(IF(baseline_selection=1,'1. Baseline Demand Projection'!G$28:H$28,'1. Baseline Demand Projection'!P$28:Q$28)),AVERAGE(IF(baseline_selection=1,'1. Baseline Demand Projection'!G$23:H$23,'1. Baseline Demand Projection'!P$23:Q$23)))","v":""},{"$f":"ICIMeasurePercent($L116,I116,poppericitoilet,iciurinalpertoilet,AVERAGE(IF(baseline_selection=1,'1. Baseline Demand Projection'!H$28:I$28,'1. Baseline Demand Projection'!Q$28:R$28)),AVERAGE(IF(baseline_selection=1,'1. Baseline Demand Projection'!H$23:I$23,'1. Baseline Demand Projection'!Q$23:R$23)))","v":""},{"$f":"ICIMeasurePercent($L116,J116,poppericitoilet,iciurinalpertoilet,AVERAGE(IF(baseline_selection=1,'1. Baseline Demand Projection'!I$28:J$28,'1. Baseline Demand Projection'!R$28:S$28)),AVERAGE(IF(baseline_selection=1,'1. Baseline Demand Projection'!I$23:J$23,'1. Baseline Demand Projection'!R$23:S$23)))","v":""},null,0,0,0,0,0,0,0,0,0,0,0,0,0,0,0,0,0,0,0,0,0,0,0,0,0,0,0,0,0,0,0,0,0,0,0,0,0,0,0,0,0,0,0,0,0,0,0,0,0,0,0,null,{"$f":"MeasureSavingsArray(AO116:CM116,S116,T116,U116,W116,X116,D116)","v":0},0,0,0,0,0,0,0,0,0,0,0,0,0,0,0,0,0,0,0,0,0,0,0,0,0,0,0,0,0,0,0,0,0,0,0,0,0,0,0,0,0,0,0,0,0,0,0,0,0,0,0,null,0,0,0,0,0,0,0,0,0,0,0,0,0,0,0,0,0,0,0,0,0,0,0,0,0,0,0,0,0,0,0,0,0,0,0,0,0,0,0,0,0,0,0,0,0,0,0,0,0,0,0,null,0,0,0,0,0,0,0,0,0,0,0,0,0,0,0,0,0,0,0,0,0,0,0,0,0,0,0,0,0,0,0,0,0,0,0,0,0,0,0,0,0,0,0,0,0,0,0,0,0,0,0,null,{"$f":"DebtServiceArray(AO116:CM116,P116,discount_rate,Q116,D116)","v":0},0,0,0,0,0,0,0,0,0,0,0,0,0,0,0,0,0,0,0,0,0,0,0,0,0,0,0,0,0,0,0,0,0,0,0,0,0,0,0,0,0,0,0,0,0,0,0,0,0,0,null,0,0,0,0,0,0,0,0,0,0,0,0,0,0,0,0,0,0,0,0,0,0,0,0,0,0,0,0,0,0,0,0,0,0,0,0,0,0,0,0,0,0,0,0,0,0,0,0,0,0,0,null,0,0.96618357487922713]
[null,"USR-ICI-10",null,"N",null,null,null,null,null,null,null,null,null,null,null,null,null,null,null,null,null,null,null,null,null,0,0,null,0,0,0,0,0,null,{"$f":"ICIMeasurePercent($L117,F117,poppericitoilet,iciurinalpertoilet,AVERAGE(IF(baseline_selection=1,'1. Baseline Demand Projection'!E$28:F$28,'1. Baseline Demand Projection'!N$28:O$28)),AVERAGE(IF(baseline_selection=1,'1. Baseline Demand Projection'!E$23:F$23,'1. Baseline Demand Projection'!N$23:O$23)))","v":""},{"$f":"ICIMeasurePercent($L117,G117,poppericitoilet,iciurinalpertoilet,AVERAGE(IF(baseline_selection=1,'1. Baseline Demand Projection'!F$28:G$28,'1. Baseline Demand Projection'!O$28:P$28)),AVERAGE(IF(baseline_selection=1,'1. Baseline Demand Projection'!F$23:G$23,'1. Baseline Demand Projection'!O$23:P$23)))","v":""},{"$f":"ICIMeasurePercent($L117,H117,poppericitoilet,iciurinalpertoilet,AVERAGE(IF(baseline_selection=1,'1. Baseline Demand Projection'!G$28:H$28,'1. Baseline Demand Projection'!P$28:Q$28)),AVERAGE(IF(baseline_selection=1,'1. Baseline Demand Projection'!G$23:H$23,'1. Baseline Demand Projection'!P$23:Q$23)))","v":""},{"$f":"ICIMeasurePercent($L117,I117,poppericitoilet,iciurinalpertoilet,AVERAGE(IF(baseline_selection=1,'1. Baseline Demand Projection'!H$28:I$28,'1. Baseline Demand Projection'!Q$28:R$28)),AVERAGE(IF(baseline_selection=1,'1. Baseline Demand Projection'!H$23:I$23,'1. Baseline Demand Projection'!Q$23:R$23)))","v":""},{"$f":"ICIMeasurePercent($L117,J117,poppericitoilet,iciurinalpertoilet,AVERAGE(IF(baseline_selection=1,'1. Baseline Demand Projection'!I$28:J$28,'1. Baseline Demand Projection'!R$28:S$28)),AVERAGE(IF(baseline_selection=1,'1. Baseline Demand Projection'!I$23:J$23,'1. Baseline Demand Projection'!R$23:S$23)))","v":""},null,0,0,0,0,0,0,0,0,0,0,0,0,0,0,0,0,0,0,0,0,0,0,0,0,0,0,0,0,0,0,0,0,0,0,0,0,0,0,0,0,0,0,0,0,0,0,0,0,0,0,0,null,{"$f":"MeasureSavingsArray(AO117:CM117,S117,T117,U117,W117,X117,D117)","v":0},0,0,0,0,0,0,0,0,0,0,0,0,0,0,0,0,0,0,0,0,0,0,0,0,0,0,0,0,0,0,0,0,0,0,0,0,0,0,0,0,0,0,0,0,0,0,0,0,0,0,0,null,0,0,0,0,0,0,0,0,0,0,0,0,0,0,0,0,0,0,0,0,0,0,0,0,0,0,0,0,0,0,0,0,0,0,0,0,0,0,0,0,0,0,0,0,0,0,0,0,0,0,0,null,0,0,0,0,0,0,0,0,0,0,0,0,0,0,0,0,0,0,0,0,0,0,0,0,0,0,0,0,0,0,0,0,0,0,0,0,0,0,0,0,0,0,0,0,0,0,0,0,0,0,0,null,{"$f":"DebtServiceArray(AO117:CM117,P117,discount_rate,Q117,D117)","v":0},0,0,0,0,0,0,0,0,0,0,0,0,0,0,0,0,0,0,0,0,0,0,0,0,0,0,0,0,0,0,0,0,0,0,0,0,0,0,0,0,0,0,0,0,0,0,0,0,0,0,null,0,0,0,0,0,0,0,0,0,0,0,0,0,0,0,0,0,0,0,0,0,0,0,0,0,0,0,0,0,0,0,0,0,0,0,0,0,0,0,0,0,0,0,0,0,0,0,0,0,0,0,null,0,0.96618357487922713]
[null,"USR-ICI-11",null,"N",null,null,null,null,null,null,null,null,null,null,null,null,null,null,null,null,null,null,null,null,null,0,0,null,0,0,0,0,0,null,{"$f":"ICIMeasurePercent($L118,F118,poppericitoilet,iciurinalpertoilet,AVERAGE(IF(baseline_selection=1,'1. Baseline Demand Projection'!E$28:F$28,'1. Baseline Demand Projection'!N$28:O$28)),AVERAGE(IF(baseline_selection=1,'1. Baseline Demand Projection'!E$23:F$23,'1. Baseline Demand Projection'!N$23:O$23)))","v":""},{"$f":"ICIMeasurePercent($L118,G118,poppericitoilet,iciurinalpertoilet,AVERAGE(IF(baseline_selection=1,'1. Baseline Demand Projection'!F$28:G$28,'1. Baseline Demand Projection'!O$28:P$28)),AVERAGE(IF(baseline_selection=1,'1. Baseline Demand Projection'!F$23:G$23,'1. Baseline Demand Projection'!O$23:P$23)))","v":""},{"$f":"ICIMeasurePercent($L118,H118,poppericitoilet,iciurinalpertoilet,AVERAGE(IF(baseline_selection=1,'1. Baseline Demand Projection'!G$28:H$28,'1. Baseline Demand Projection'!P$28:Q$28)),AVERAGE(IF(baseline_selection=1,'1. Baseline Demand Projection'!G$23:H$23,'1. Baseline Demand Projection'!P$23:Q$23)))","v":""},{"$f":"ICIMeasurePercent($L118,I118,poppericitoilet,iciurinalpertoilet,AVERAGE(IF(baseline_selection=1,'1. Baseline Demand Projection'!H$28:I$28,'1. Baseline Demand Projection'!Q$28:R$28)),AVERAGE(IF(baseline_selection=1,'1. Baseline Demand Projection'!H$23:I$23,'1. Baseline Demand Projection'!Q$23:R$23)))","v":""},{"$f":"ICIMeasurePercent($L118,J118,poppericitoilet,iciurinalpertoilet,AVERAGE(IF(baseline_selection=1,'1. Baseline Demand Projection'!I$28:J$28,'1. Baseline Demand Projection'!R$28:S$28)),AVERAGE(IF(baseline_selection=1,'1. Baseline Demand Projection'!I$23:J$23,'1. Baseline Demand Projection'!R$23:S$23)))","v":""},null,0,{"$f":"CHOOSE(ROUNDUP((AP$18-2020)/10,0),$F118,$G118,$H118,$I118,$J118)*IF($D118=\"Y\",1,0)","v":0},0,0,0,0,0,0,0,0,0,{"$f":"CHOOSE(ROUNDUP((AZ$18-2020)/10,0),$F118,$G118,$H118,$I118,$J118)*IF($D118=\"Y\",1,0)","v":0},0,0,0,0,0,0,0,0,0,{"$f":"CHOOSE(ROUNDUP((BJ$18-2020)/10,0),$F118,$G118,$H118,$I118,$J118)*IF($D118=\"Y\",1,0)","v":0},0,0,0,0,0,0,0,0,0,{"$f":"CHOOSE(ROUNDUP((BT$18-2020)/10,0),$F118,$G118,$H118,$I118,$J118)*IF($D118=\"Y\",1,0)","v":0},0,0,0,0,0,0,0,0,0,{"$f":"CHOOSE(ROUNDUP((CD$18-2020)/10,0),$F118,$G118,$H118,$I118,$J118)*IF($D118=\"Y\",1,0)","v":0},0,0,0,0,0,0,0,0,0,null,{"$f":"MeasureSavingsArray(AO118:CM118,S118,T118,U118,W118,X118,D118)","v":0},0,0,0,0,0,0,0,0,0,0,0,0,0,0,0,0,0,0,0,0,0,0,0,0,0,0,0,0,0,0,0,0,0,0,0,0,0,0,0,0,0,0,0,0,0,0,0,0,0,0,0,null,0,0,0,0,0,0,0,0,0,0,0,0,0,0,0,0,0,0,0,0,0,0,0,0,0,0,0,0,0,0,0,0,0,0,0,0,0,0,0,0,0,0,0,0,0,0,0,0,0,0,0,null,0,0,0,0,0,0,0,0,0,0,0,0,0,0,0,0,0,0,0,0,0,0,0,0,0,0,0,0,0,0,0,0,0,0,0,0,0,0,0,0,0,0,0,0,0,0,0,0,0,0,0,null,{"$f":"DebtServiceArray(AO118:CM118,P118,discount_rate,Q118,D118)","v":0},0,0,0,0,0,0,0,0,0,0,0,0,0,0,0,0,0,0,0,0,0,0,0,0,0,0,0,0,0,0,0,0,0,0,0,0,0,0,0,0,0,0,0,0,0,0,0,0,0,0,null,0,0,0,0,0,0,0,0,0,0,0,0,0,0,0,0,0,0,0,0,0,0,0,0,0,0,0,0,0,0,0,0,0,0,0,0,0,0,0,0,0,0,0,0,0,0,0,0,0,0,0,null,0,0.96618357487922713]
[null,"USR-ICI-12",null,"N",null,null,null,null,null,null,null,null,null,null,null,null,null,null,null,null,null,null,null,null,null,0,0,null,0,0,0,0,0,null,{"$f":"ICIMeasurePercent($L119,F119,poppericitoilet,iciurinalpertoilet,AVERAGE(IF(baseline_selection=1,'1. Baseline Demand Projection'!E$28:F$28,'1. Baseline Demand Projection'!N$28:O$28)),AVERAGE(IF(baseline_selection=1,'1. Baseline Demand Projection'!E$23:F$23,'1. Baseline Demand Projection'!N$23:O$23)))","v":""},{"$f":"ICIMeasurePercent($L119,G119,poppericitoilet,iciurinalpertoilet,AVERAGE(IF(baseline_selection=1,'1. Baseline Demand Projection'!F$28:G$28,'1. Baseline Demand Projection'!O$28:P$28)),AVERAGE(IF(baseline_selection=1,'1. Baseline Demand Projection'!F$23:G$23,'1. Baseline Demand Projection'!O$23:P$23)))","v":""},{"$f":"ICIMeasurePercent($L119,H119,poppericitoilet,iciurinalpertoilet,AVERAGE(IF(baseline_selection=1,'1. Baseline Demand Projection'!G$28:H$28,'1. Baseline Demand Projection'!P$28:Q$28)),AVERAGE(IF(baseline_selection=1,'1. Baseline Demand Projection'!G$23:H$23,'1. Baseline Demand Projection'!P$23:Q$23)))","v":""},{"$f":"ICIMeasurePercent($L119,I119,poppericitoilet,iciurinalpertoilet,AVERAGE(IF(baseline_selection=1,'1. Baseline Demand Projection'!H$28:I$28,'1. Baseline Demand Projection'!Q$28:R$28)),AVERAGE(IF(baseline_selection=1,'1. Baseline Demand Projection'!H$23:I$23,'1. Baseline Demand Projection'!Q$23:R$23)))","v":""},{"$f":"ICIMeasurePercent($L119,J119,poppericitoilet,iciurinalpertoilet,AVERAGE(IF(baseline_selection=1,'1. Baseline Demand Projection'!I$28:J$28,'1. Baseline Demand Projection'!R$28:S$28)),AVERAGE(IF(baseline_selection=1,'1. Baseline Demand Projection'!I$23:J$23,'1. Baseline Demand Projection'!R$23:S$23)))","v":""},null,0,0,0,0,0,0,0,0,0,0,0,0,0,0,0,0,0,0,0,0,0,0,0,0,0,0,0,0,0,0,0,0,0,0,0,0,0,0,0,0,0,0,0,0,0,0,0,0,0,0,0,null,{"$f":"MeasureSavingsArray(AO119:CM119,S119,T119,U119,W119,X119,D119)","v":0},0,0,0,0,0,0,0,0,0,0,0,0,0,0,0,0,0,0,0,0,0,0,0,0,0,0,0,0,0,0,0,0,0,0,0,0,0,0,0,0,0,0,0,0,0,0,0,0,0,0,0,null,0,0,0,0,0,0,0,0,0,0,0,0,0,0,0,0,0,0,0,0,0,0,0,0,0,0,0,0,0,0,0,0,0,0,0,0,0,0,0,0,0,0,0,0,0,0,0,0,0,0,0,null,0,0,0,0,0,0,0,0,0,0,0,0,0,0,0,0,0,0,0,0,0,0,0,0,0,0,0,0,0,0,0,0,0,0,0,0,0,0,0,0,0,0,0,0,0,0,0,0,0,0,0,null,{"$f":"DebtServiceArray(AO119:CM119,P119,discount_rate,Q119,D119)","v":0},0,0,0,0,0,0,0,0,0,0,0,0,0,0,0,0,0,0,0,0,0,0,0,0,0,0,0,0,0,0,0,0,0,0,0,0,0,0,0,0,0,0,0,0,0,0,0,0,0,0,null,0,0,0,0,0,0,0,0,0,0,0,0,0,0,0,0,0,0,0,0,0,0,0,0,0,0,0,0,0,0,0,0,0,0,0,0,0,0,0,0,0,0,0,0,0,0,0,0,0,0,0,null,0,0.96618357487922713]
[null,"USR-ICI-13",null,"N",null,null,null,null,null,null,null,null,null,null,null,null,null,null,null,null,null,null,null,null,null,0,0,null,0,0,0,0,0,null,{"$f":"ICIMeasurePercent($L120,F120,poppericitoilet,iciurinalpertoilet,AVERAGE(IF(baseline_selection=1,'1. Baseline Demand Projection'!E$28:F$28,'1. Baseline Demand Projection'!N$28:O$28)),AVERAGE(IF(baseline_selection=1,'1. Baseline Demand Projection'!E$23:F$23,'1. Baseline Demand Projection'!N$23:O$23)))","v":""},{"$f":"ICIMeasurePercent($L120,G120,poppericitoilet,iciurinalpertoilet,AVERAGE(IF(baseline_selection=1,'1. Baseline Demand Projection'!F$28:G$28,'1. Baseline Demand Projection'!O$28:P$28)),AVERAGE(IF(baseline_selection=1,'1. Baseline Demand Projection'!F$23:G$23,'1. Baseline Demand Projection'!O$23:P$23)))","v":""},{"$f":"ICIMeasurePercent($L120,H120,poppericitoilet,iciurinalpertoilet,AVERAGE(IF(baseline_selection=1,'1. Baseline Demand Projection'!G$28:H$28,'1. Baseline Demand Projection'!P$28:Q$28)),AVERAGE(IF(baseline_selection=1,'1. Baseline Demand Projection'!G$23:H$23,'1. Baseline Demand Projection'!P$23:Q$23)))","v":""},{"$f":"ICIMeasurePercent($L120,I120,poppericitoilet,iciurinalpertoilet,AVERAGE(IF(baseline_selection=1,'1. Baseline Demand Projection'!H$28:I$28,'1. Baseline Demand Projection'!Q$28:R$28)),AVERAGE(IF(baseline_selection=1,'1. Baseline Demand Projection'!H$23:I$23,'1. Baseline Demand Projection'!Q$23:R$23)))","v":""},{"$f":"ICIMeasurePercent($L120,J120,poppericitoilet,iciurinalpertoilet,AVERAGE(IF(baseline_selection=1,'1. Baseline Demand Projection'!I$28:J$28,'1. Baseline Demand Projection'!R$28:S$28)),AVERAGE(IF(baseline_selection=1,'1. Baseline Demand Projection'!I$23:J$23,'1. Baseline Demand Projection'!R$23:S$23)))","v":""},null,0,0,0,0,0,0,0,0,0,0,0,0,0,0,0,0,0,0,0,0,0,0,0,0,0,0,0,0,0,0,0,0,0,0,0,0,0,0,0,0,0,0,0,0,0,0,0,0,0,0,0,null,{"$f":"MeasureSavingsArray(AO120:CM120,S120,T120,U120,W120,X120,D120)","v":0},0,0,0,0,0,0,0,0,0,0,0,0,0,0,0,0,0,0,0,0,0,0,0,0,0,0,0,0,0,0,0,0,0,0,0,0,0,0,0,0,0,0,0,0,0,0,0,0,0,0,0,null,0,0,0,0,0,0,0,0,0,0,0,0,0,0,0,0,0,0,0,0,0,0,0,0,0,0,0,0,0,0,0,0,0,0,0,0,0,0,0,0,0,0,0,0,0,0,0,0,0,0,0,null,0,0,0,0,0,0,0,0,0,0,0,0,0,0,0,0,0,0,0,0,0,0,0,0,0,0,0,0,0,0,0,0,0,0,0,0,0,0,0,0,0,0,0,0,0,0,0,0,0,0,0,null,{"$f":"DebtServiceArray(AO120:CM120,P120,discount_rate,Q120,D120)","v":0},0,0,0,0,0,0,0,0,0,0,0,0,0,0,0,0,0,0,0,0,0,0,0,0,0,0,0,0,0,0,0,0,0,0,0,0,0,0,0,0,0,0,0,0,0,0,0,0,0,0,null,0,0,0,0,0,0,0,0,0,0,0,0,0,0,0,0,0,0,0,0,0,0,0,0,0,0,0,0,0,0,0,0,0,0,0,0,0,0,0,0,0,0,0,0,0,0,0,0,0,0,0,null,0,0.96618357487922713]
[null,"USR-ICI-14",null,"N",null,null,null,null,null,null,null,null,null,null,null,null,null,null,null,null,null,null,null,null,null,0,0,null,0,0,0,0,0,null,{"$f":"ICIMeasurePercent($L121,F121,poppericitoilet,iciurinalpertoilet,AVERAGE(IF(baseline_selection=1,'1. Baseline Demand Projection'!E$28:F$28,'1. Baseline Demand Projection'!N$28:O$28)),AVERAGE(IF(baseline_selection=1,'1. Baseline Demand Projection'!E$23:F$23,'1. Baseline Demand Projection'!N$23:O$23)))","v":""},{"$f":"ICIMeasurePercent($L121,G121,poppericitoilet,iciurinalpertoilet,AVERAGE(IF(baseline_selection=1,'1. Baseline Demand Projection'!F$28:G$28,'1. Baseline Demand Projection'!O$28:P$28)),AVERAGE(IF(baseline_selection=1,'1. Baseline Demand Projection'!F$23:G$23,'1. Baseline Demand Projection'!O$23:P$23)))","v":""},{"$f":"ICIMeasurePercent($L121,H121,poppericitoilet,iciurinalpertoilet,AVERAGE(IF(baseline_selection=1,'1. Baseline Demand Projection'!G$28:H$28,'1. Baseline Demand Projection'!P$28:Q$28)),AVERAGE(IF(baseline_selection=1,'1. Baseline Demand Projection'!G$23:H$23,'1. Baseline Demand Projection'!P$23:Q$23)))","v":""},{"$f":"ICIMeasurePercent($L121,I121,poppericitoilet,iciurinalpertoilet,AVERAGE(IF(baseline_selection=1,'1. Baseline Demand Projection'!H$28:I$28,'1. Baseline Demand Projection'!Q$28:R$28)),AVERAGE(IF(baseline_selection=1,'1. Baseline Demand Projection'!H$23:I$23,'1. Baseline Demand Projection'!Q$23:R$23)))","v":""},{"$f":"ICIMeasurePercent($L121,J121,poppericitoilet,iciurinalpertoilet,AVERAGE(IF(baseline_selection=1,'1. Baseline Demand Projection'!I$28:J$28,'1. Baseline Demand Projection'!R$28:S$28)),AVERAGE(IF(baseline_selection=1,'1. Baseline Demand Projection'!I$23:J$23,'1. Baseline Demand Projection'!R$23:S$23)))","v":""},null,0,0,0,0,0,0,0,0,0,0,0,0,0,0,0,0,0,0,0,0,0,0,0,0,0,0,0,0,0,0,0,0,0,0,0,0,0,0,0,0,0,0,0,0,0,0,0,0,0,0,0,null,{"$f":"MeasureSavingsArray(AO121:CM121,S121,T121,U121,W121,X121,D121)","v":0},0,0,0,0,0,0,0,0,0,0,0,0,0,0,0,0,0,0,0,0,0,0,0,0,0,0,0,0,0,0,0,0,0,0,0,0,0,0,0,0,0,0,0,0,0,0,0,0,0,0,0,null,0,0,0,0,0,0,0,0,0,0,0,0,0,0,0,0,0,0,0,0,0,0,0,0,0,0,0,0,0,0,0,0,0,0,0,0,0,0,0,0,0,0,0,0,0,0,0,0,0,0,0,null,0,0,0,0,0,0,0,0,0,0,0,0,0,0,0,0,0,0,0,0,0,0,0,0,0,0,0,0,0,0,0,0,0,0,0,0,0,0,0,0,0,0,0,0,0,0,0,0,0,0,0,null,{"$f":"DebtServiceArray(AO121:CM121,P121,discount_rate,Q121,D121)","v":0},0,0,0,0,0,0,0,0,0,0,0,0,0,0,0,0,0,0,0,0,0,0,0,0,0,0,0,0,0,0,0,0,0,0,0,0,0,0,0,0,0,0,0,0,0,0,0,0,0,0,null,0,0,0,0,0,0,0,0,0,0,0,0,0,0,0,0,0,0,0,0,0,0,0,0,0,0,0,0,0,0,0,0,0,0,0,0,0,0,0,0,0,0,0,0,0,0,0,0,0,0,0,null,0,0.96618357487922713]
[null,"USR-ICI-15",null,"N",null,null,null,null,null,null,null,null,null,null,null,null,null,null,null,null,null,null,null,null,null,0,0,null,0,0,0,0,0,null,{"$f":"ICIMeasurePercent($L122,F122,poppericitoilet,iciurinalpertoilet,AVERAGE(IF(baseline_selection=1,'1. Baseline Demand Projection'!E$28:F$28,'1. Baseline Demand Projection'!N$28:O$28)),AVERAGE(IF(baseline_selection=1,'1. Baseline Demand Projection'!E$23:F$23,'1. Baseline Demand Projection'!N$23:O$23)))","v":""},{"$f":"ICIMeasurePercent($L122,G122,poppericitoilet,iciurinalpertoilet,AVERAGE(IF(baseline_selection=1,'1. Baseline Demand Projection'!F$28:G$28,'1. Baseline Demand Projection'!O$28:P$28)),AVERAGE(IF(baseline_selection=1,'1. Baseline Demand Projection'!F$23:G$23,'1. Baseline Demand Projection'!O$23:P$23)))","v":""},{"$f":"ICIMeasurePercent($L122,H122,poppericitoilet,iciurinalpertoilet,AVERAGE(IF(baseline_selection=1,'1. Baseline Demand Projection'!G$28:H$28,'1. Baseline Demand Projection'!P$28:Q$28)),AVERAGE(IF(baseline_selection=1,'1. Baseline Demand Projection'!G$23:H$23,'1. Baseline Demand Projection'!P$23:Q$23)))","v":""},{"$f":"ICIMeasurePercent($L122,I122,poppericitoilet,iciurinalpertoilet,AVERAGE(IF(baseline_selection=1,'1. Baseline Demand Projection'!H$28:I$28,'1. Baseline Demand Projection'!Q$28:R$28)),AVERAGE(IF(baseline_selection=1,'1. Baseline Demand Projection'!H$23:I$23,'1. Baseline Demand Projection'!Q$23:R$23)))","v":""},{"$f":"ICIMeasurePercent($L122,J122,poppericitoilet,iciurinalpertoilet,AVERAGE(IF(baseline_selection=1,'1. Baseline Demand Projection'!I$28:J$28,'1. Baseline Demand Projection'!R$28:S$28)),AVERAGE(IF(baseline_selection=1,'1. Baseline Demand Projection'!I$23:J$23,'1. Baseline Demand Projection'!R$23:S$23)))","v":""},null,0,0,0,0,0,0,0,0,0,0,0,0,0,0,0,0,0,0,0,0,0,0,0,0,0,0,0,0,0,0,0,0,0,0,0,0,0,0,0,0,0,0,0,0,0,0,0,0,0,0,0,null,{"$f":"MeasureSavingsArray(AO122:CM122,S122,T122,U122,W122,X122,D122)","v":0},0,0,0,0,0,0,0,0,0,0,0,0,0,0,0,0,0,0,0,0,0,0,0,0,0,0,0,0,0,0,0,0,0,0,0,0,0,0,0,0,0,0,0,0,0,0,0,0,0,0,0,null,0,0,0,0,0,0,0,0,0,0,0,0,0,0,0,0,0,0,0,0,0,0,0,0,0,0,0,0,0,0,0,0,0,0,0,0,0,0,0,0,0,0,0,0,0,0,0,0,0,0,0,null,0,0,0,0,0,0,0,0,0,0,0,0,0,0,0,0,0,0,0,0,0,0,0,0,0,0,0,0,0,0,0,0,0,0,0,0,0,0,0,0,0,0,0,0,0,0,0,0,0,0,0,null,{"$f":"DebtServiceArray(AO122:CM122,P122,discount_rate,Q122,D122)","v":0},0,0,0,0,0,0,0,0,0,0,0,0,0,0,0,0,0,0,0,0,0,0,0,0,0,0,0,0,0,0,0,0,0,0,0,0,0,0,0,0,0,0,0,0,0,0,0,0,0,0,null,0,0,0,0,0,0,0,0,0,0,0,0,0,0,0,0,0,0,0,0,0,0,0,0,0,0,0,0,0,0,0,0,0,0,0,0,0,0,0,0,0,0,0,0,0,0,0,0,0,0,0,null,0,0.96618357487922713]
[null,"USR-ICI-16",null,"N",null,null,null,null,null,null,null,null,null,null,null,null,null,null,null,null,null,null,null,null,null,0,0,null,0,0,0,0,0,null,{"$f":"ICIMeasurePercent($L123,F123,poppericitoilet,iciurinalpertoilet,AVERAGE(IF(baseline_selection=1,'1. Baseline Demand Projection'!E$28:F$28,'1. Baseline Demand Projection'!N$28:O$28)),AVERAGE(IF(baseline_selection=1,'1. Baseline Demand Projection'!E$23:F$23,'1. Baseline Demand Projection'!N$23:O$23)))","v":""},{"$f":"ICIMeasurePercent($L123,G123,poppericitoilet,iciurinalpertoilet,AVERAGE(IF(baseline_selection=1,'1. Baseline Demand Projection'!F$28:G$28,'1. Baseline Demand Projection'!O$28:P$28)),AVERAGE(IF(baseline_selection=1,'1. Baseline Demand Projection'!F$23:G$23,'1. Baseline Demand Projection'!O$23:P$23)))","v":""},{"$f":"ICIMeasurePercent($L123,H123,poppericitoilet,iciurinalpertoilet,AVERAGE(IF(baseline_selection=1,'1. Baseline Demand Projection'!G$28:H$28,'1. Baseline Demand Projection'!P$28:Q$28)),AVERAGE(IF(baseline_selection=1,'1. Baseline Demand Projection'!G$23:H$23,'1. Baseline Demand Projection'!P$23:Q$23)))","v":""},{"$f":"ICIMeasurePercent($L123,I123,poppericitoilet,iciurinalpertoilet,AVERAGE(IF(baseline_selection=1,'1. Baseline Demand Projection'!H$28:I$28,'1. Baseline Demand Projection'!Q$28:R$28)),AVERAGE(IF(baseline_selection=1,'1. Baseline Demand Projection'!H$23:I$23,'1. Baseline Demand Projection'!Q$23:R$23)))","v":""},{"$f":"ICIMeasurePercent($L123,J123,poppericitoilet,iciurinalpertoilet,AVERAGE(IF(baseline_selection=1,'1. Baseline Demand Projection'!I$28:J$28,'1. Baseline Demand Projection'!R$28:S$28)),AVERAGE(IF(baseline_selection=1,'1. Baseline Demand Projection'!I$23:J$23,'1. Baseline Demand Projection'!R$23:S$23)))","v":""},null,0,0,0,0,0,0,0,0,0,0,0,0,0,0,0,0,0,0,0,0,0,0,0,0,0,0,0,0,0,0,0,0,0,0,0,0,0,0,0,0,0,0,0,0,0,0,0,0,0,0,0,null,{"$f":"MeasureSavingsArray(AO123:CM123,S123,T123,U123,W123,X123,D123)","v":0},0,0,0,0,0,0,0,0,0,0,0,0,0,0,0,0,0,0,0,0,0,0,0,0,0,0,0,0,0,0,0,0,0,0,0,0,0,0,0,0,0,0,0,0,0,0,0,0,0,0,0,null,0,0,0,0,0,0,0,0,0,0,0,0,0,0,0,0,0,0,0,0,0,0,0,0,0,0,0,0,0,0,0,0,0,0,0,0,0,0,0,0,0,0,0,0,0,0,0,0,0,0,0,null,0,0,0,0,0,0,0,0,0,0,0,0,0,0,0,0,0,0,0,0,0,0,0,0,0,0,0,0,0,0,0,0,0,0,0,0,0,0,0,0,0,0,0,0,0,0,0,0,0,0,0,null,{"$f":"DebtServiceArray(AO123:CM123,P123,discount_rate,Q123,D123)","v":0},0,0,0,0,0,0,0,0,0,0,0,0,0,0,0,0,0,0,0,0,0,0,0,0,0,0,0,0,0,0,0,0,0,0,0,0,0,0,0,0,0,0,0,0,0,0,0,0,0,0,null,0,0,0,0,0,0,0,0,0,0,0,0,0,0,0,0,0,0,0,0,0,0,0,0,0,0,0,0,0,0,0,0,0,0,0,0,0,0,0,0,0,0,0,0,0,0,0,0,0,0,0,null,0,0.96618357487922713]
[null,"USR-ICI-17",null,"N",null,null,null,null,null,null,null,null,null,null,null,null,null,null,null,null,null,null,null,null,null,0,0,null,0,0,0,0,0,null,{"$f":"ICIMeasurePercent($L124,F124,poppericitoilet,iciurinalpertoilet,AVERAGE(IF(baseline_selection=1,'1. Baseline Demand Projection'!E$28:F$28,'1. Baseline Demand Projection'!N$28:O$28)),AVERAGE(IF(baseline_selection=1,'1. Baseline Demand Projection'!E$23:F$23,'1. Baseline Demand Projection'!N$23:O$23)))","v":""},{"$f":"ICIMeasurePercent($L124,G124,poppericitoilet,iciurinalpertoilet,AVERAGE(IF(baseline_selection=1,'1. Baseline Demand Projection'!F$28:G$28,'1. Baseline Demand Projection'!O$28:P$28)),AVERAGE(IF(baseline_selection=1,'1. Baseline Demand Projection'!F$23:G$23,'1. Baseline Demand Projection'!O$23:P$23)))","v":""},{"$f":"ICIMeasurePercent($L124,H124,poppericitoilet,iciurinalpertoilet,AVERAGE(IF(baseline_selection=1,'1. Baseline Demand Projection'!G$28:H$28,'1. Baseline Demand Projection'!P$28:Q$28)),AVERAGE(IF(baseline_selection=1,'1. Baseline Demand Projection'!G$23:H$23,'1. Baseline Demand Projection'!P$23:Q$23)))","v":""},{"$f":"ICIMeasurePercent($L124,I124,poppericitoilet,iciurinalpertoilet,AVERAGE(IF(baseline_selection=1,'1. Baseline Demand Projection'!H$28:I$28,'1. Baseline Demand Projection'!Q$28:R$28)),AVERAGE(IF(baseline_selection=1,'1. Baseline Demand Projection'!H$23:I$23,'1. Baseline Demand Projection'!Q$23:R$23)))","v":""},{"$f":"ICIMeasurePercent($L124,J124,poppericitoilet,iciurinalpertoilet,AVERAGE(IF(baseline_selection=1,'1. Baseline Demand Projection'!I$28:J$28,'1. Baseline Demand Projection'!R$28:S$28)),AVERAGE(IF(baseline_selection=1,'1. Baseline Demand Projection'!I$23:J$23,'1. Baseline Demand Projection'!R$23:S$23)))","v":""},null,0,0,0,0,0,0,0,0,0,0,0,0,0,0,0,0,0,0,0,0,0,0,0,0,0,0,0,0,0,0,0,0,0,0,0,0,0,0,0,0,0,0,0,0,0,0,0,0,0,0,0,null,{"$f":"MeasureSavingsArray(AO124:CM124,S124,T124,U124,W124,X124,D124)","v":0},0,0,0,0,0,0,0,0,0,0,0,0,0,0,0,0,0,0,0,0,0,0,0,0,0,0,0,0,0,0,0,0,0,0,0,0,0,0,0,0,0,0,0,0,0,0,0,0,0,0,0,null,0,0,0,0,0,0,0,0,0,0,0,0,0,0,0,0,0,0,0,0,0,0,0,0,0,0,0,0,0,0,0,0,0,0,0,0,0,0,0,0,0,0,0,0,0,0,0,0,0,0,0,null,0,0,0,0,0,0,0,0,0,0,0,0,0,0,0,0,0,0,0,0,0,0,0,0,0,0,0,0,0,0,0,0,0,0,0,0,0,0,0,0,0,0,0,0,0,0,0,0,0,0,0,null,{"$f":"DebtServiceArray(AO124:CM124,P124,discount_rate,Q124,D124)","v":0},0,0,0,0,0,0,0,0,0,0,0,0,0,0,0,0,0,0,0,0,0,0,0,0,0,0,0,0,0,0,0,0,0,0,0,0,0,0,0,0,0,0,0,0,0,0,0,0,0,0,null,0,0,0,0,0,0,0,0,0,0,0,0,0,0,0,0,0,0,0,0,0,0,0,0,0,0,0,0,0,0,0,0,0,0,0,0,0,0,0,0,0,0,0,0,0,0,0,0,0,0,0,null,0,0.96618357487922713]
[null,"USR-ICI-18",null,"N",null,null,null,null,null,null,null,null,null,null,null,null,null,null,null,null,null,null,null,null,null,0,0,null,0,0,0,0,0,null,{"$f":"ICIMeasurePercent($L125,F125,poppericitoilet,iciurinalpertoilet,AVERAGE(IF(baseline_selection=1,'1. Baseline Demand Projection'!E$28:F$28,'1. Baseline Demand Projection'!N$28:O$28)),AVERAGE(IF(baseline_selection=1,'1. Baseline Demand Projection'!E$23:F$23,'1. Baseline Demand Projection'!N$23:O$23)))","v":""},{"$f":"ICIMeasurePercent($L125,G125,poppericitoilet,iciurinalpertoilet,AVERAGE(IF(baseline_selection=1,'1. Baseline Demand Projection'!F$28:G$28,'1. Baseline Demand Projection'!O$28:P$28)),AVERAGE(IF(baseline_selection=1,'1. Baseline Demand Projection'!F$23:G$23,'1. Baseline Demand Projection'!O$23:P$23)))","v":""},{"$f":"ICIMeasurePercent($L125,H125,poppericitoilet,iciurinalpertoilet,AVERAGE(IF(baseline_selection=1,'1. Baseline Demand Projection'!G$28:H$28,'1. Baseline Demand Projection'!P$28:Q$28)),AVERAGE(IF(baseline_selection=1,'1. Baseline Demand Projection'!G$23:H$23,'1. Baseline Demand Projection'!P$23:Q$23)))","v":""},{"$f":"ICIMeasurePercent($L125,I125,poppericitoilet,iciurinalpertoilet,AVERAGE(IF(baseline_selection=1,'1. Baseline Demand Projection'!H$28:I$28,'1. Baseline Demand Projection'!Q$28:R$28)),AVERAGE(IF(baseline_selection=1,'1. Baseline Demand Projection'!H$23:I$23,'1. Baseline Demand Projection'!Q$23:R$23)))","v":""},{"$f":"ICIMeasurePercent($L125,J125,poppericitoilet,iciurinalpertoilet,AVERAGE(IF(baseline_selection=1,'1. Baseline Demand Projection'!I$28:J$28,'1. Baseline Demand Projection'!R$28:S$28)),AVERAGE(IF(baseline_selection=1,'1. Baseline Demand Projection'!I$23:J$23,'1. Baseline Demand Projection'!R$23:S$23)))","v":""},null,0,0,0,0,0,0,0,0,0,0,0,0,0,0,0,0,0,0,0,0,0,0,0,0,0,0,0,0,0,0,0,0,0,0,0,0,0,0,0,0,0,0,0,0,0,0,0,0,0,0,0,null,{"$f":"MeasureSavingsArray(AO125:CM125,S125,T125,U125,W125,X125,D125)","v":0},0,0,0,0,0,0,0,0,0,0,0,0,0,0,0,0,0,0,0,0,0,0,0,0,0,0,0,0,0,0,0,0,0,0,0,0,0,0,0,0,0,0,0,0,0,0,0,0,0,0,0,null,0,0,0,0,0,0,0,0,0,0,0,0,0,0,0,0,0,0,0,0,0,0,0,0,0,0,0,0,0,0,0,0,0,0,0,0,0,0,0,0,0,0,0,0,0,0,0,0,0,0,0,null,0,0,0,0,0,0,0,0,0,0,0,0,0,0,0,0,0,0,0,0,0,0,0,0,0,0,0,0,0,0,0,0,0,0,0,0,0,0,0,0,0,0,0,0,0,0,0,0,0,0,0,null,{"$f":"DebtServiceArray(AO125:CM125,P125,discount_rate,Q125,D125)","v":0},0,0,0,0,0,0,0,0,0,0,0,0,0,0,0,0,0,0,0,0,0,0,0,0,0,0,0,0,0,0,0,0,0,0,0,0,0,0,0,0,0,0,0,0,0,0,0,0,0,0,null,0,0,0,0,0,0,0,0,0,0,0,0,0,0,0,0,0,0,0,0,0,0,0,0,0,0,0,0,0,0,0,0,0,0,0,0,0,0,0,0,0,0,0,0,0,0,0,0,0,0,0,null,0,0.96618357487922713]
[null,"USR-ICI-19",null,"N",null,null,null,null,null,null,null,null,null,null,null,null,null,null,null,null,null,null,null,null,null,0,0,null,0,0,0,0,0,null,{"$f":"ICIMeasurePercent($L126,F126,poppericitoilet,iciurinalpertoilet,AVERAGE(IF(baseline_selection=1,'1. Baseline Demand Projection'!E$28:F$28,'1. Baseline Demand Projection'!N$28:O$28)),AVERAGE(IF(baseline_selection=1,'1. Baseline Demand Projection'!E$23:F$23,'1. Baseline Demand Projection'!N$23:O$23)))","v":""},{"$f":"ICIMeasurePercent($L126,G126,poppericitoilet,iciurinalpertoilet,AVERAGE(IF(baseline_selection=1,'1. Baseline Demand Projection'!F$28:G$28,'1. Baseline Demand Projection'!O$28:P$28)),AVERAGE(IF(baseline_selection=1,'1. Baseline Demand Projection'!F$23:G$23,'1. Baseline Demand Projection'!O$23:P$23)))","v":""},{"$f":"ICIMeasurePercent($L126,H126,poppericitoilet,iciurinalpertoilet,AVERAGE(IF(baseline_selection=1,'1. Baseline Demand Projection'!G$28:H$28,'1. Baseline Demand Projection'!P$28:Q$28)),AVERAGE(IF(baseline_selection=1,'1. Baseline Demand Projection'!G$23:H$23,'1. Baseline Demand Projection'!P$23:Q$23)))","v":""},{"$f":"ICIMeasurePercent($L126,I126,poppericitoilet,iciurinalpertoilet,AVERAGE(IF(baseline_selection=1,'1. Baseline Demand Projection'!H$28:I$28,'1. Baseline Demand Projection'!Q$28:R$28)),AVERAGE(IF(baseline_selection=1,'1. Baseline Demand Projection'!H$23:I$23,'1. Baseline Demand Projection'!Q$23:R$23)))","v":""},{"$f":"ICIMeasurePercent($L126,J126,poppericitoilet,iciurinalpertoilet,AVERAGE(IF(baseline_selection=1,'1. Baseline Demand Projection'!I$28:J$28,'1. Baseline Demand Projection'!R$28:S$28)),AVERAGE(IF(baseline_selection=1,'1. Baseline Demand Projection'!I$23:J$23,'1. Baseline Demand Projection'!R$23:S$23)))","v":""},null,0,0,0,0,0,0,0,0,0,0,0,0,0,0,0,0,0,0,0,0,0,0,0,0,0,0,0,0,0,0,0,0,0,0,0,0,0,0,0,0,0,0,0,0,0,0,0,0,0,0,0,null,{"$f":"MeasureSavingsArray(AO126:CM126,S126,T126,U126,W126,X126,D126)","v":0},0,0,0,0,0,0,0,0,0,0,0,0,0,0,0,0,0,0,0,0,0,0,0,0,0,0,0,0,0,0,0,0,0,0,0,0,0,0,0,0,0,0,0,0,0,0,0,0,0,0,0,null,0,0,0,0,0,0,0,0,0,0,0,0,0,0,0,0,0,0,0,0,0,0,0,0,0,0,0,0,0,0,0,0,0,0,0,0,0,0,0,0,0,0,0,0,0,0,0,0,0,0,0,null,0,0,0,0,0,0,0,0,0,0,0,0,0,0,0,0,0,0,0,0,0,0,0,0,0,0,0,0,0,0,0,0,0,0,0,0,0,0,0,0,0,0,0,0,0,0,0,0,0,0,0,null,{"$f":"DebtServiceArray(AO126:CM126,P126,discount_rate,Q126,D126)","v":0},0,0,0,0,0,0,0,0,0,0,0,0,0,0,0,0,0,0,0,0,0,0,0,0,0,0,0,0,0,0,0,0,0,0,0,0,0,0,0,0,0,0,0,0,0,0,0,0,0,0,null,0,0,0,0,0,0,0,0,0,0,0,0,0,0,0,0,0,0,0,0,0,0,0,0,0,0,0,0,0,0,0,0,0,0,0,0,0,0,0,0,0,0,0,0,0,0,0,0,0,0,0,null,0,0.96618357487922713]
[null,"USR-ICI-20",null,"N",null,null,null,null,null,null,null,null,null,null,null,null,null,null,null,null,null,null,null,null,null,0,0,null,0,0,0,0,0,null,{"$f":"ICIMeasurePercent($L127,F127,poppericitoilet,iciurinalpertoilet,AVERAGE(IF(baseline_selection=1,'1. Baseline Demand Projection'!E$28:F$28,'1. Baseline Demand Projection'!N$28:O$28)),AVERAGE(IF(baseline_selection=1,'1. Baseline Demand Projection'!E$23:F$23,'1. Baseline Demand Projection'!N$23:O$23)))","v":""},{"$f":"ICIMeasurePercent($L127,G127,poppericitoilet,iciurinalpertoilet,AVERAGE(IF(baseline_selection=1,'1. Baseline Demand Projection'!F$28:G$28,'1. Baseline Demand Projection'!O$28:P$28)),AVERAGE(IF(baseline_selection=1,'1. Baseline Demand Projection'!F$23:G$23,'1. Baseline Demand Projection'!O$23:P$23)))","v":""},{"$f":"ICIMeasurePercent($L127,H127,poppericitoilet,iciurinalpertoilet,AVERAGE(IF(baseline_selection=1,'1. Baseline Demand Projection'!G$28:H$28,'1. Baseline Demand Projection'!P$28:Q$28)),AVERAGE(IF(baseline_selection=1,'1. Baseline Demand Projection'!G$23:H$23,'1. Baseline Demand Projection'!P$23:Q$23)))","v":""},{"$f":"ICIMeasurePercent($L127,I127,poppericitoilet,iciurinalpertoilet,AVERAGE(IF(baseline_selection=1,'1. Baseline Demand Projection'!H$28:I$28,'1. Baseline Demand Projection'!Q$28:R$28)),AVERAGE(IF(baseline_selection=1,'1. Baseline Demand Projection'!H$23:I$23,'1. Baseline Demand Projection'!Q$23:R$23)))","v":""},{"$f":"ICIMeasurePercent($L127,J127,poppericitoilet,iciurinalpertoilet,AVERAGE(IF(baseline_selection=1,'1. Baseline Demand Projection'!I$28:J$28,'1. Baseline Demand Projection'!R$28:S$28)),AVERAGE(IF(baseline_selection=1,'1. Baseline Demand Projection'!I$23:J$23,'1. Baseline Demand Projection'!R$23:S$23)))","v":""},null,0,0,0,0,0,0,0,0,0,0,0,0,0,0,0,0,0,0,0,0,0,0,0,0,0,0,0,0,0,0,0,0,0,0,0,0,0,0,0,0,0,0,0,0,0,0,0,0,0,0,0,null,{"$f":"MeasureSavingsArray(AO127:CM127,S127,T127,U127,W127,X127,D127)","v":0},0,0,0,0,0,0,0,0,0,0,0,0,0,0,0,0,0,0,0,0,0,0,0,0,0,0,0,0,0,0,0,0,0,0,0,0,0,0,0,0,0,0,0,0,0,0,0,0,0,0,0,null,0,0,0,0,0,0,0,0,0,0,0,0,0,0,0,0,0,0,0,0,0,0,0,0,0,0,0,0,0,0,0,0,0,0,0,0,0,0,0,0,0,0,0,0,0,0,0,0,0,0,0,null,0,0,0,0,0,0,0,0,0,0,0,0,0,0,0,0,0,0,0,0,0,0,0,0,0,0,0,0,0,0,0,0,0,0,0,0,0,0,0,0,0,0,0,0,0,0,0,0,0,0,0,null,{"$f":"DebtServiceArray(AO127:CM127,P127,discount_rate,Q127,D127)","v":0},0,0,0,0,0,0,0,0,0,0,0,0,0,0,0,0,0,0,0,0,0,0,0,0,0,0,0,0,0,0,0,0,0,0,0,0,0,0,0,0,0,0,0,0,0,0,0,0,0,0,null,0,0,0,0,0,0,0,0,0,0,0,0,0,0,0,0,0,0,0,0,0,0,0,0,0,0,0,0,0,0,0,0,0,0,0,0,0,0,0,0,0,0,0,0,0,0,0,0,0,0,0,null,0,0.96618357487922713]
[null,null,null,null,null,null,null,null,null,null,null,null,null,null,null,null,null,null,null,null,null,null,null,null,null,null,null,null,null,null,null,null,null,null,null,null,null,null,null,null,null,null,null,null,null,null,null,null,null,null,null,null,null,null,null,null,null,null,null,null,null,null,null,null,null,null,null,null,null,null,null,null,null,null,null,null,null,null,null,null,null,null,null,null,null,null,null,null,null,null,null,null,{"$f":"SUM(CO108:CO127)","v":0},0,0,0,0,0,0,0,0,0,0,0,0,0,0,0,0,0,0,0,0,0,0,0,0,0,0,0,0,0,0,0,{"$f":"SUM(DU108:DU127)","v":0},0,0,0,0,0,0,0,0,0,0,0,0,0,0,0,0,0,0,0,null,{"$f":"SUM(EP108:EP127)","v":0},{"$f":"SUM(EQ108:EQ127)","v":0},{"$f":"SUM(ER108:ER127)","v":0},{"$f":"SUM(ES108:ES127)","v":0},{"$f":"SUM(ET108:ET127)","v":0},{"$f":"SUM(EU108:EU127)","v":0},{"$f":"SUM(EV108:EV127)","v":0},{"$f":"SUM(EW108:EW127)","v":0},{"$f":"SUM(EX108:EX127)","v":0},{"$f":"SUM(EY108:EY127)","v":0},{"$f":"SUM(EZ108:EZ127)","v":0},{"$f":"SUM(FA108:FA127)","v":0},{"$f":"SUM(FB108:FB127)","v":0},{"$f":"SUM(FC108:FC127)","v":0},{"$f":"SUM(FD108:FD127)","v":0},{"$f":"SUM(FE108:FE127)","v":0},{"$f":"SUM(FF108:FF127)","v":0},{"$f":"SUM(FG108:FG127)","v":0},{"$f":"SUM(FH108:FH127)","v":0},{"$f":"SUM(FI108:FI127)","v":0},{"$f":"SUM(FJ108:FJ127)","v":0},{"$f":"SUM(FK108:FK127)","v":0},{"$f":"SUM(FL108:FL127)","v":0},{"$f":"SUM(FM108:FM127)","v":0},{"$f":"SUM(FN108:FN127)","v":0},{"$f":"SUM(FO108:FO127)","v":0},{"$f":"SUM(FP108:FP127)","v":0},{"$f":"SUM(FQ108:FQ127)","v":0},{"$f":"SUM(FR108:FR127)","v":0},{"$f":"SUM(FS108:FS127)","v":0},{"$f":"SUM(FT108:FT127)","v":0},{"$f":"SUM(FU108:FU127)","v":0},{"$f":"SUM(FV108:FV127)","v":0},{"$f":"SUM(FW108:FW127)","v":0},{"$f":"SUM(FX108:FX127)","v":0},{"$f":"SUM(FY108:FY127)","v":0},{"$f":"SUM(FZ108:FZ127)","v":0},{"$f":"SUM(GA108:GA127)","v":0},{"$f":"SUM(GB108:GB127)","v":0},{"$f":"SUM(GC108:GC127)","v":0},{"$f":"SUM(GD108:GD127)","v":0},{"$f":"SUM(GE108:GE127)","v":0},{"$f":"SUM(GF108:GF127)","v":0},{"$f":"SUM(GG108:GG127)","v":0},{"$f":"SUM(GH108:GH127)","v":0},{"$f":"SUM(GI108:GI127)","v":0},{"$f":"SUM(GJ108:GJ127)","v":0},{"$f":"SUM(GK108:GK127)","v":0},{"$f":"SUM(GL108:GL127)","v":0},{"$f":"SUM(GM108:GM127)","v":0},{"$f":"SUM(GN108:GN127)","v":0},null,{"$f":"SUM(GP108:GP127)","v":0},{"$f":"SUM(GQ108:GQ127)","v":0},{"$f":"SUM(GR108:GR127)","v":0},{"$f":"SUM(GS108:GS127)","v":0},{"$f":"SUM(GT108:GT127)","v":0},{"$f":"SUM(GU108:GU127)","v":0},{"$f":"SUM(GV108:GV127)","v":0},{"$f":"SUM(GW108:GW127)","v":0},{"$f":"SUM(GX108:GX127)","v":0},{"$f":"SUM(GY108:GY127)","v":0},{"$f":"SUM(GZ108:GZ127)","v":0},{"$f":"SUM(HA108:HA127)","v":0},{"$f":"SUM(HB108:HB127)","v":0},{"$f":"SUM(HC108:HC127)","v":0},{"$f":"SUM(HD108:HD127)","v":0},{"$f":"SUM(HE108:HE127)","v":0},{"$f":"SUM(HF108:HF127)","v":0},{"$f":"SUM(HG108:HG127)","v":0},{"$f":"SUM(HH108:HH127)","v":0},{"$f":"SUM(HI108:HI127)","v":0},{"$f":"SUM(HJ108:HJ127)","v":0},{"$f":"SUM(HK108:HK127)","v":0},{"$f":"SUM(HL108:HL127)","v":0},{"$f":"SUM(HM108:HM127)","v":0},{"$f":"SUM(HN108:HN127)","v":0},{"$f":"SUM(HO108:HO127)","v":0},{"$f":"SUM(HP108:HP127)","v":0},{"$f":"SUM(HQ108:HQ127)","v":0},{"$f":"SUM(HR108:HR127)","v":0},{"$f":"SUM(HS108:HS127)","v":0},{"$f":"SUM(HT108:HT127)","v":0},{"$f":"SUM(HU108:HU127)","v":0},{"$f":"SUM(HV108:HV127)","v":0},{"$f":"SUM(HW108:HW127)","v":0},{"$f":"SUM(HX108:HX127)","v":0},{"$f":"SUM(HY108:HY127)","v":0},{"$f":"SUM(HZ108:HZ127)","v":0},{"$f":"SUM(IA108:IA127)","v":0},{"$f":"SUM(IB108:IB127)","v":0},{"$f":"SUM(IC108:IC127)","v":0},{"$f":"SUM(ID108:ID127)","v":0},{"$f":"SUM(IE108:IE127)","v":0},{"$f":"SUM(IF108:IF127)","v":0},{"$f":"SUM(IG108:IG127)","v":0},{"$f":"SUM(IH108:IH127)","v":0},{"$f":"SUM(II108:II127)","v":0},{"$f":"SUM(IJ108:IJ127)","v":0},{"$f":"SUM(IK108:IK127)","v":0},{"$f":"SUM(IL108:IL127)","v":0},{"$f":"SUM(IM108:IM127)","v":0},{"$f":"SUM(IN108:IN127)","v":0},null,{"$f":"SUM(IP108:IP127)","v":0},0,0,0,0,0,0,0,0,0,0,0,0,0,0,0,0,0,0,0,0,0,0,0,0,0,0,0,0,0,0,0,{"$f":"SUM(JV108:JV127)","v":0},0,0,0,0,0,0,0,0,0,0,0,0,0,0,0,0,0,0,null,{"$f":"SUM(KP108:KP127)","v":0},{"$f":"SUM(KQ108:KQ127)","v":0},0,0,0,0,0,0,0,0,0,0,0,0,0,0,0,0,0,0,0,0,0,0,0,0,0,0,0,0,0,0,0,0,0,0,0,0,0,0,0,0,0,0,0,0,0,0,0,0,0]
[null,"Utility & General Measures",null,null,null,null,null,null,null,null,null,"Affected\nWater Use"]
[null,"USR-UTL-01",null,"N",null,null,null,null,null,null,null,null,null,null,null,null,null,null,null,null,null,null,null,null,null,{"$f":"SUM(O130:P130)","v":0},{"$f":"IF(S130>0,(SUM(O130:P130)/(MP130*(1-T130)))*(MQ130-1)/(MQ130^X130-1),0)","v":0},null,{"$f":"AVERAGE(KP130:KZ130)","v":0},{"$f":"AVERAGE(LA130:LJ130)","v":0},{"$f":"AVERAGE(LK130:LT130)","v":0},{"$f":"AVERAGE(LU130:MD130)","v":0},{"$f":"AVERAGE(ME130:MN130)","v":0},null,"NA","NA","NA","NA","NA",null,{"$f":"$F130*IF($D130=\"Y\",1,0)","v":0},{"$f":"CHOOSE(ROUNDUP((AP$18-2020)/10,0),$F130,$G130,$H130,$I130,$J130)*IF($D130=\"Y\",1,0)","v":0},0,0,0,0,0,0,0,0,0,{"$f":"CHOOSE(ROUNDUP((AZ$18-2020)/10,0),$F130,$G130,$H130,$I130,$J130)*IF($D130=\"Y\",1,0)","v":0},0,0,0,0,0,0,0,0,0,{"$f":"CHOOSE(ROUNDUP((BJ$18-2020)/10,0),$F130,$G130,$H130,$I130,$J130)*IF($D130=\"Y\",1,0)","v":0},0,0,0,0,0,0,0,0,0,{"$f":"CHOOSE(ROUNDUP((BT$18-2020)/10,0),$F130,$G130,$H130,$I130,$J130)*IF($D130=\"Y\",1,0)","v":0},0,0,0,0,0,0,0,0,0,{"$f":"CHOOSE(ROUNDUP((CD$18-2020)/10,0),$F130,$G130,$H130,$I130,$J130)*IF($D130=\"Y\",1,0)","v":0},0,0,0,0,0,0,0,0,0,null,{"$f":"MeasureSavingsArray(AO130:CM130,S130,T130,U130,W130,X130,D130)","v":0},0,0,0,0,0,0,0,0,0,0,0,0,0,0,0,0,0,0,0,0,0,0,0,0,0,0,0,0,0,0,0,0,0,0,0,0,0,0,0,0,0,0,0,0,0,0,0,0,0,0,{"$f":"CO130+NPV(discount_rate,CP130:EM130)","v":0},null,{"$f":"$O130*AO130","v":0},{"$f":"$O130*AP130","v":0},{"$f":"$O130*AQ130","v":0},{"$f":"$O130*AR130","v":0},{"$f":"$O130*AS130","v":0},{"$f":"$O130*AT130","v":0},{"$f":"$O130*AU130","v":0},{"$f":"$O130*AV130","v":0},{"$f":"$O130*AW130","v":0},{"$f":"$O130*AX130","v":0},{"$f":"$O130*AY130","v":0},{"$f":"$O130*AZ130","v":0},{"$f":"$O130*BA130","v":0},{"$f":"$O130*BB130","v":0},{"$f":"$O130*BC130","v":0},{"$f":"$O130*BD130","v":0},{"$f":"$O130*BE130","v":0},{"$f":"$O130*BF130","v":0},{"$f":"$O130*BG130","v":0},{"$f":"$O130*BH130","v":0},{"$f":"$O130*BI130","v":0},{"$f":"$O130*BJ130","v":0},{"$f":"$O130*BK130","v":0},{"$f":"$O130*BL130","v":0},{"$f":"$O130*BM130","v":0},{"$f":"$O130*BN130","v":0},{"$f":"$O130*BO130","v":0},{"$f":"$O130*BP130","v":0},{"$f":"$O130*BQ130","v":0},{"$f":"$O130*BR130","v":0},{"$f":"$O130*BS130","v":0},{"$f":"$O130*BT130","v":0},{"$f":"$O130*BU130","v":0},{"$f":"$O130*BV130","v":0},{"$f":"$O130*BW130","v":0},{"$f":"$O130*BX130","v":0},{"$f":"$O130*BY130","v":0},{"$f":"$O130*BZ130","v":0},{"$f":"$O130*CA130","v":0},{"$f":"$O130*CB130","v":0},{"$f":"$O130*CC130","v":0},{"$f":"$O130*CD130","v":0},{"$f":"$O130*CE130","v":0},{"$f":"$O130*CF130","v":0},{"$f":"$O130*CG130","v":0},{"$f":"$O130*CH130","v":0},{"$f":"$O130*CI130","v":0},{"$f":"$O130*CJ130","v":0},{"$f":"$O130*CK130","v":0},{"$f":"$O130*CL130","v":0},{"$f":"$O130*CM130","v":0},null,{"$f":"$P130*IF($Q130=\"N\",1,0)*AO130","v":0},{"$f":"$P130*IF($Q130=\"N\",1,0)*AP130","v":0},{"$f":"$P130*IF($Q130=\"N\",1,0)*AQ130","v":0},{"$f":"$P130*IF($Q130=\"N\",1,0)*AR130","v":0},{"$f":"$P130*IF($Q130=\"N\",1,0)*AS130","v":0},{"$f":"$P130*IF($Q130=\"N\",1,0)*AT130","v":0},{"$f":"$P130*IF($Q130=\"N\",1,0)*AU130","v":0},{"$f":"$P130*IF($Q130=\"N\",1,0)*AV130","v":0},{"$f":"$P130*IF($Q130=\"N\",1,0)*AW130","v":0},{"$f":"$P130*IF($Q130=\"N\",1,0)*AX130","v":0},{"$f":"$P130*IF($Q130=\"N\",1,0)*AY130","v":0},{"$f":"$P130*IF($Q130=\"N\",1,0)*AZ130","v":0},{"$f":"$P130*IF($Q130=\"N\",1,0)*BA130","v":0},{"$f":"$P130*IF($Q130=\"N\",1,0)*BB130","v":0},{"$f":"$P130*IF($Q130=\"N\",1,0)*BC130","v":0},{"$f":"$P130*IF($Q130=\"N\",1,0)*BD130","v":0},{"$f":"$P130*IF($Q130=\"N\",1,0)*BE130","v":0},{"$f":"$P130*IF($Q130=\"N\",1,0)*BF130","v":0},{"$f":"$P130*IF($Q130=\"N\",1,0)*BG130","v":0},{"$f":"$P130*IF($Q130=\"N\",1,0)*BH130","v":0},{"$f":"$P130*IF($Q130=\"N\",1,0)*BI130","v":0},{"$f":"$P130*IF($Q130=\"N\",1,0)*BJ130","v":0},{"$f":"$P130*IF($Q130=\"N\",1,0)*BK130","v":0},{"$f":"$P130*IF($Q130=\"N\",1,0)*BL130","v":0},{"$f":"$P130*IF($Q130=\"N\",1,0)*BM130","v":0},{"$f":"$P130*IF($Q130=\"N\",1,0)*BN130","v":0},{"$f":"$P130*IF($Q130=\"N\",1,0)*BO130","v":0},{"$f":"$P130*IF($Q130=\"N\",1,0)*BP130","v":0},{"$f":"$P130*IF($Q130=\"N\",1,0)*BQ130","v":0},{"$f":"$P130*IF($Q130=\"N\",1,0)*BR130","v":0},{"$f":"$P130*IF($Q130=\"N\",1,0)*BS130","v":0},{"$f":"$P130*IF($Q130=\"N\",1,0)*BT130","v":0},{"$f":"$P130*IF($Q130=\"N\",1,0)*BU130","v":0},{"$f":"$P130*IF($Q130=\"N\",1,0)*BV130","v":0},{"$f":"$P130*IF($Q130=\"N\",1,0)*BW130","v":0},{"$f":"$P130*IF($Q130=\"N\",1,0)*BX130","v":0},{"$f":"$P130*IF($Q130=\"N\",1,0)*BY130","v":0},{"$f":"$P130*IF($Q130=\"N\",1,0)*BZ130","v":0},{"$f":"$P130*IF($Q130=\"N\",1,0)*CA130","v":0},{"$f":"$P130*IF($Q130=\"N\",1,0)*CB130","v":0},{"$f":"$P130*IF($Q130=\"N\",1,0)*CC130","v":0},{"$f":"$P130*IF($Q130=\"N\",1,0)*CD130","v":0},{"$f":"$P130*IF($Q130=\"N\",1,0)*CE130","v":0},{"$f":"$P130*IF($Q130=\"N\",1,0)*CF130","v":0},{"$f":"$P130*IF($Q130=\"N\",1,0)*CG130","v":0},{"$f":"$P130*IF($Q130=\"N\",1,0)*CH130","v":0},{"$f":"$P130*IF($Q130=\"N\",1,0)*CI130","v":0},{"$f":"$P130*IF($Q130=\"N\",1,0)*CJ130","v":0},{"$f":"$P130*IF($Q130=\"N\",1,0)*CK130","v":0},{"$f":"$P130*IF($Q130=\"N\",1,0)*CL130","v":0},{"$f":"$P130*IF($Q130=\"N\",1,0)*CM130","v":0},null,{"$f":"DebtServiceArray(AO130:CM130,P130,discount_rate,Q130,D130)","v":0},0,0,0,0,0,0,0,0,0,0,0,0,0,0,0,0,0,0,0,0,0,0,0,0,0,0,0,0,0,0,0,0,0,0,0,0,0,0,0,0,0,0,0,0,0,0,0,0,0,0,null,{"$f":"SUM(EP130,GP130,IP130)","v":0},{"$f":"SUM(EQ130,GQ130,IQ130)","v":0},{"$f":"SUM(ER130,GR130,IR130)","v":0},{"$f":"SUM(ES130,GS130,IS130)","v":0},{"$f":"SUM(ET130,GT130,IT130)","v":0},{"$f":"SUM(EU130,GU130,IU130)","v":0},{"$f":"SUM(EV130,GV130,IV130)","v":0},{"$f":"SUM(EW130,GW130,IW130)","v":0},{"$f":"SUM(EX130,GX130,IX130)","v":0},{"$f":"SUM(EY130,GY130,IY130)","v":0},{"$f":"SUM(EZ130,GZ130,IZ130)","v":0},{"$f":"SUM(FA130,HA130,JA130)","v":0},{"$f":"SUM(FB130,HB130,JB130)","v":0},{"$f":"SUM(FC130,HC130,JC130)","v":0},{"$f":"SUM(FD130,HD130,JD130)","v":0},{"$f":"SUM(FE130,HE130,JE130)","v":0},{"$f":"SUM(FF130,HF130,JF130)","v":0},{"$f":"SUM(FG130,HG130,JG130)","v":0},{"$f":"SUM(FH130,HH130,JH130)","v":0},{"$f":"SUM(FI130,HI130,JI130)","v":0},{"$f":"SUM(FJ130,HJ130,JJ130)","v":0},{"$f":"SUM(FK130,HK130,JK130)","v":0},{"$f":"SUM(FL130,HL130,JL130)","v":0},{"$f":"SUM(FM130,HM130,JM130)","v":0},{"$f":"SUM(FN130,HN130,JN130)","v":0},{"$f":"SUM(FO130,HO130,JO130)","v":0},{"$f":"SUM(FP130,HP130,JP130)","v":0},{"$f":"SUM(FQ130,HQ130,JQ130)","v":0},{"$f":"SUM(FR130,HR130,JR130)","v":0},{"$f":"SUM(FS130,HS130,JS130)","v":0},{"$f":"SUM(FT130,HT130,JT130)","v":0},{"$f":"SUM(FU130,HU130,JU130)","v":0},{"$f":"SUM(FV130,HV130,JV130)","v":0},{"$f":"SUM(FW130,HW130,JW130)","v":0},{"$f":"SUM(FX130,HX130,JX130)","v":0},{"$f":"SUM(FY130,HY130,JY130)","v":0},{"$f":"SUM(FZ130,HZ130,JZ130)","v":0},{"$f":"SUM(GA130,IA130,KA130)","v":0},{"$f":"SUM(GB130,IB130,KB130)","v":0},{"$f":"SUM(GC130,IC130,KC130)","v":0},{"$f":"SUM(GD130,ID130,KD130)","v":0},{"$f":"SUM(GE130,IE130,KE130)","v":0},{"$f":"SUM(GF130,IF130,KF130)","v":0},{"$f":"SUM(GG130,IG130,KG130)","v":0},{"$f":"SUM(GH130,IH130,KH130)","v":0},{"$f":"SUM(GI130,II130,KI130)","v":0},{"$f":"SUM(GJ130,IJ130,KJ130)","v":0},{"$f":"SUM(GK130,IK130,KK130)","v":0},{"$f":"SUM(GL130,IL130,KL130)","v":0},{"$f":"SUM(GM130,IM130,KM130)","v":0},{"$f":"SUM(GN130,IN130,KN130)","v":0},null,{"$f":"S130*365/325851","v":0},{"$f":"(1-U130)*(1-W130)/(1+discount_rate)","v":0.96618357487922713}]
[null,"USR-UTL-02",null,"N",null,null,null,null,null,null,null,null,null,null,null,null,null,null,null,null,null,null,null,null,null,0,0,null,0,0,0,0,0,null,"NA","NA","NA","NA","NA",null,0,0,0,0,0,0,0,0,0,0,0,0,0,0,0,0,0,0,0,0,0,0,0,0,0,0,0,0,0,0,0,0,0,0,0,0,0,0,0,0,0,0,0,0,0,0,0,0,0,0,0,null,{"$f":"MeasureSavingsArray(AO131:CM131,S131,T131,U131,W131,X131,D131)","v":0},0,0,0,0,0,0,0,0,0,0,0,0,0,0,0,0,0,0,0,0,0,0,0,0,0,0,0,0,0,0,0,0,0,0,0,0,0,0,0,0,0,0,0,0,0,0,0,0,0,0,0,null,0,0,0,0,0,0,0,0,0,0,0,0,0,0,0,0,0,0,0,0,0,0,0,0,0,0,0,0,0,0,0,0,0,0,0,0,0,0,0,0,0,0,0,0,0,0,0,0,0,0,0,null,0,0,0,0,0,0,0,0,0,0,0,0,0,0,0,0,0,0,0,0,0,0,0,0,0,0,0,0,0,0,0,0,0,0,0,0,0,0,0,0,0,0,0,0,0,0,0,0,0,0,0,null,{"$f":"DebtServiceArray(AO131:CM131,P131,discount_rate,Q131,D131)","v":0},0,0,0,0,0,0,0,0,0,0,0,0,0,0,0,0,0,0,0,0,0,0,0,0,0,0,0,0,0,0,0,0,0,0,0,0,0,0,0,0,0,0,0,0,0,0,0,0,0,0,null,0,0,0,0,0,0,0,0,0,0,0,0,0,0,0,0,0,0,0,0,0,0,0,0,0,0,0,0,0,0,0,0,0,0,0,0,0,0,0,0,0,0,0,0,0,0,0,0,0,0,0,null,0,0.96618357487922713]
[null,"USR-UTL-03",null,"N",null,null,null,null,null,null,null,null,null,null,null,null,null,null,null,null,null,null,null,null,null,0,0,null,0,0,0,0,0,null,"NA","NA","NA","NA","NA",null,0,0,0,0,0,0,0,0,0,0,0,0,0,0,0,0,0,0,0,0,0,0,0,0,0,0,0,0,0,0,0,0,0,0,0,0,0,0,0,0,0,0,0,0,0,0,0,0,0,0,0,null,{"$f":"MeasureSavingsArray(AO132:CM132,S132,T132,U132,W132,X132,D132)","v":0},0,0,0,0,0,0,0,0,0,0,0,0,0,0,0,0,0,0,0,0,0,0,0,0,0,0,0,0,0,0,0,0,0,0,0,0,0,0,0,0,0,0,0,0,0,0,0,0,0,0,0,null,0,0,0,0,0,0,0,0,0,0,0,0,0,0,0,0,0,0,0,0,0,0,0,0,0,0,0,0,0,0,0,0,0,0,0,0,0,0,0,0,0,0,0,0,0,0,0,0,0,0,0,null,0,0,0,0,0,0,0,0,0,0,0,0,0,0,0,0,0,0,0,0,0,0,0,0,0,0,0,0,0,0,0,0,0,0,0,0,0,0,0,0,0,0,0,0,0,0,0,0,0,0,0,null,{"$f":"DebtServiceArray(AO132:CM132,P132,discount_rate,Q132,D132)","v":0},0,0,0,0,0,0,0,0,0,0,0,0,0,0,0,0,0,0,0,0,0,0,0,0,0,0,0,0,0,0,0,0,0,0,0,0,0,0,0,0,0,0,0,0,0,0,0,0,0,0,null,0,0,0,0,0,0,0,0,0,0,0,0,0,0,0,0,0,0,0,0,0,0,0,0,0,0,0,0,0,0,0,0,0,0,0,0,0,0,0,0,0,0,0,0,0,0,0,0,0,0,0,null,0,0.96618357487922713]
[null,"USR-UTL-04",null,"N",null,null,null,null,null,null,null,null,null,null,null,null,null,null,null,null,null,null,null,null,null,0,0,null,0,0,0,0,0,null,"NA","NA","NA","NA","NA",null,0,0,0,0,0,0,0,0,0,0,0,0,0,0,0,0,0,0,0,0,0,0,0,0,0,0,0,0,0,0,0,0,0,0,0,0,0,0,0,0,0,0,0,0,0,0,0,0,0,0,0,null,{"$f":"MeasureSavingsArray(AO133:CM133,S133,T133,U133,W133,X133,D133)","v":0},0,0,0,0,0,0,0,0,0,0,0,0,0,0,0,0,0,0,0,0,0,0,0,0,0,0,0,0,0,0,0,0,0,0,0,0,0,0,0,0,0,0,0,0,0,0,0,0,0,0,0,null,0,0,0,0,0,0,0,0,0,0,0,0,0,0,0,0,0,0,0,0,0,0,0,0,0,0,0,0,0,0,0,0,0,0,0,0,0,0,0,0,0,0,0,0,0,0,0,0,0,0,0,null,0,0,0,0,0,0,0,0,0,0,0,0,0,0,0,0,0,0,0,0,0,0,0,0,0,0,0,0,0,0,0,0,0,0,0,0,0,0,0,0,0,0,0,0,0,0,0,0,0,0,0,null,{"$f":"DebtServiceArray(AO133:CM133,P133,discount_rate,Q133,D133)","v":0},0,0,0,0,0,0,0,0,0,0,0,0,0,0,0,0,0,0,0,0,0,0,0,0,0,0,0,0,0,0,0,0,0,0,0,0,0,0,0,0,0,0,0,0,0,0,0,0,0,0,null,0,0,0,0,0,0,0,0,0,0,0,0,0,0,0,0,0,0,0,0,0,0,0,0,0,0,0,0,0,0,0,0,0,0,0,0,0,0,0,0,0,0,0,0,0,0,0,0,0,0,0,null,0,0.96618357487922713]
[null,"USR-UTL-05",null,"N",null,null,null,null,null,null,null,null,null,null,null,null,null,null,null,null,null,null,null,null,null,0,0,null,0,0,0,0,0,null,"NA","NA","NA","NA","NA",null,0,0,0,0,0,0,0,0,0,0,0,0,0,0,0,0,0,0,0,0,0,0,0,0,0,0,0,0,0,0,0,0,0,0,0,0,0,0,0,0,0,0,0,0,0,0,0,0,0,0,0,null,{"$f":"MeasureSavingsArray(AO134:CM134,S134,T134,U134,W134,X134,D134)","v":0},0,0,0,0,0,0,0,0,0,0,0,0,0,0,0,0,0,0,0,0,0,0,0,0,0,0,0,0,0,0,0,0,0,0,0,0,0,0,0,0,0,0,0,0,0,0,0,0,0,0,0,null,0,0,0,0,0,0,0,0,0,0,0,0,0,0,0,0,0,0,0,0,0,0,0,0,0,0,0,0,0,0,0,0,0,0,0,0,0,0,0,0,0,0,0,0,0,0,0,0,0,0,0,null,0,0,0,0,0,0,0,0,0,0,0,0,0,0,0,0,0,0,0,0,0,0,0,0,0,0,0,0,0,0,0,0,0,0,0,0,0,0,0,0,0,0,0,0,0,0,0,0,0,0,0,null,{"$f":"DebtServiceArray(AO134:CM134,P134,discount_rate,Q134,D134)","v":0},0,0,0,0,0,0,0,0,0,0,0,0,0,0,0,0,0,0,0,0,0,0,0,0,0,0,0,0,0,0,0,0,0,0,0,0,0,0,0,0,0,0,0,0,0,0,0,0,0,0,null,0,0,0,0,0,0,0,0,0,0,0,0,0,0,0,0,0,0,0,0,0,0,0,0,0,0,0,0,0,0,0,0,0,0,0,0,0,0,0,0,0,0,0,0,0,0,0,0,0,0,0,null,0,0.96618357487922713]
[null,"USR-UTL-06",null,"N",null,null,null,null,null,null,null,null,null,null,null,null,null,null,null,null,null,null,null,null,null,0,0,null,0,0,0,0,0,null,"NA","NA","NA","NA","NA",null,0,0,0,0,0,0,0,0,0,0,0,0,0,0,0,0,0,0,0,0,0,0,0,0,0,0,0,0,0,0,0,0,0,0,0,0,0,0,0,0,0,0,0,0,0,0,0,0,0,0,0,null,{"$f":"MeasureSavingsArray(AO135:CM135,S135,T135,U135,W135,X135,D135)","v":0},0,0,0,0,0,0,0,0,0,0,0,0,0,0,0,0,0,0,0,0,0,0,0,0,0,0,0,0,0,0,0,0,0,0,0,0,0,0,0,0,0,0,0,0,0,0,0,0,0,0,0,null,0,0,0,0,0,0,0,0,0,0,0,0,0,0,0,0,0,0,0,0,0,0,0,0,0,0,0,0,0,0,0,0,0,0,0,0,0,0,0,0,0,0,0,0,0,0,0,0,0,0,0,null,0,0,0,0,0,0,0,0,0,0,0,0,0,0,0,0,0,0,0,0,0,0,0,0,0,0,0,0,0,0,0,0,0,0,0,0,0,0,0,0,0,0,0,0,0,0,0,0,0,0,0,null,{"$f":"DebtServiceArray(AO135:CM135,P135,discount_rate,Q135,D135)","v":0},0,0,0,0,0,0,0,0,0,0,0,0,0,0,0,0,0,0,0,0,0,0,0,0,0,0,0,0,0,0,0,0,0,0,0,0,0,0,0,0,0,0,0,0,0,0,0,0,0,0,null,0,0,0,0,0,0,0,0,0,0,0,0,0,0,0,0,0,0,0,0,0,0,0,0,0,0,0,0,0,0,0,0,0,0,0,0,0,0,0,0,0,0,0,0,0,0,0,0,0,0,0,null,0,0.96618357487922713]
[null,"USR-UTL-07",null,"N",null,null,null,null,null,null,null,null,null,null,null,null,null,null,null,null,null,null,null,null,null,0,0,null,0,0,0,0,0,null,"NA","NA","NA","NA","NA",null,0,0,0,0,0,0,0,0,0,0,0,0,0,0,0,0,0,0,0,0,0,0,0,0,0,0,0,0,0,0,0,0,0,0,0,0,0,0,0,0,0,0,0,0,0,0,0,0,0,0,0,null,{"$f":"MeasureSavingsArray(AO136:CM136,S136,T136,U136,W136,X136,D136)","v":0},0,0,0,0,0,0,0,0,0,0,0,0,0,0,0,0,0,0,0,0,0,0,0,0,0,0,0,0,0,0,0,0,0,0,0,0,0,0,0,0,0,0,0,0,0,0,0,0,0,0,0,null,0,0,0,0,0,0,0,0,0,0,0,0,0,0,0,0,0,0,0,0,0,0,0,0,0,0,0,0,0,0,0,0,0,0,0,0,0,0,0,0,0,0,0,0,0,0,0,0,0,0,0,null,0,0,0,0,0,0,0,0,0,0,0,0,0,0,0,0,0,0,0,0,0,0,0,0,0,0,0,0,0,0,0,0,0,0,0,0,0,0,0,0,0,0,0,0,0,0,0,0,0,0,0,null,{"$f":"DebtServiceArray(AO136:CM136,P136,discount_rate,Q136,D136)","v":0},0,0,0,0,0,0,0,0,0,0,0,0,0,0,0,0,0,0,0,0,0,0,0,0,0,0,0,0,0,0,0,0,0,0,0,0,0,0,0,0,0,0,0,0,0,0,0,0,0,0,null,0,0,0,0,0,0,0,0,0,0,0,0,0,0,0,0,0,0,0,0,0,0,0,0,0,0,0,0,0,0,0,0,0,0,0,0,0,0,0,0,0,0,0,0,0,0,0,0,0,0,0,null,0,0.96618357487922713]
[null,"USR-UTL-08",null,"N",null,null,null,null,null,null,null,null,null,null,null,null,null,null,null,null,null,null,null,null,null,0,0,null,0,0,0,0,0,null,"NA","NA","NA","NA","NA",null,0,0,0,0,0,0,0,0,0,0,0,0,0,0,0,0,0,0,0,0,0,0,0,0,0,0,0,0,0,0,0,0,0,0,0,0,0,0,0,0,0,0,0,0,0,0,0,0,0,0,0,null,{"$f":"MeasureSavingsArray(AO137:CM137,S137,T137,U137,W137,X137,D137)","v":0},0,0,0,0,0,0,0,0,0,0,0,0,0,0,0,0,0,0,0,0,0,0,0,0,0,0,0,0,0,0,0,0,0,0,0,0,0,0,0,0,0,0,0,0,0,0,0,0,0,0,0,null,0,0,0,0,0,0,0,0,0,0,0,0,0,0,0,0,0,0,0,0,0,0,0,0,0,0,0,0,0,0,0,0,0,0,0,0,0,0,0,0,0,0,0,0,0,0,0,0,0,0,0,null,0,0,0,0,0,0,0,0,0,0,0,0,0,0,0,0,0,0,0,0,0,0,0,0,0,0,0,0,0,0,0,0,0,0,0,0,0,0,0,0,0,0,0,0,0,0,0,0,0,0,0,null,{"$f":"DebtServiceArray(AO137:CM137,P137,discount_rate,Q137,D137)","v":0},0,0,0,0,0,0,0,0,0,0,0,0,0,0,0,0,0,0,0,0,0,0,0,0,0,0,0,0,0,0,0,0,0,0,0,0,0,0,0,0,0,0,0,0,0,0,0,0,0,0,null,0,0,0,0,0,0,0,0,0,0,0,0,0,0,0,0,0,0,0,0,0,0,0,0,0,0,0,0,0,0,0,0,0,0,0,0,0,0,0,0,0,0,0,0,0,0,0,0,0,0,0,null,0,0.96618357487922713]
[null,"USR-UTL-09",null,"N",null,null,null,null,null,null,null,null,null,null,null,null,null,null,null,null,null,null,null,null,null,0,0,null,0,0,0,0,0,null,"NA","NA","NA","NA","NA",null,0,0,0,0,0,0,0,0,0,0,0,0,0,0,0,0,0,0,0,0,0,0,0,0,0,0,0,0,0,0,0,0,0,0,0,0,0,0,0,0,0,0,0,0,0,0,0,0,0,0,0,null,{"$f":"MeasureSavingsArray(AO138:CM138,S138,T138,U138,W138,X138,D138)","v":0},0,0,0,0,0,0,0,0,0,0,0,0,0,0,0,0,0,0,0,0,0,0,0,0,0,0,0,0,0,0,0,0,0,0,0,0,0,0,0,0,0,0,0,0,0,0,0,0,0,0,0,null,0,0,0,0,0,0,0,0,0,0,0,0,0,0,0,0,0,0,0,0,0,0,0,0,0,0,0,0,0,0,0,0,0,0,0,0,0,0,0,0,0,0,0,0,0,0,0,0,0,0,0,null,0,0,0,0,0,0,0,0,0,0,0,0,0,0,0,0,0,0,0,0,0,0,0,0,0,0,0,0,0,0,0,0,0,0,0,0,0,0,0,0,0,0,0,0,0,0,0,0,0,0,0,null,{"$f":"DebtServiceArray(AO138:CM138,P138,discount_rate,Q138,D138)","v":0},0,0,0,0,0,0,0,0,0,0,0,0,0,0,0,0,0,0,0,0,0,0,0,0,0,0,0,0,0,0,0,0,0,0,0,0,0,0,0,0,0,0,0,0,0,0,0,0,0,0,null,0,0,0,0,0,0,0,0,0,0,0,0,0,0,0,0,0,0,0,0,0,0,0,0,0,0,0,0,0,0,0,0,0,0,0,0,0,0,0,0,0,0,0,0,0,0,0,0,0,0,0,null,0,0.96618357487922713]
[null,"USR-UTL-10",null,"N",null,null,null,null,null,null,null,null,null,null,null,null,null,null,null,null,null,null,null,null,null,0,0,null,0,0,0,0,0,null,"NA","NA","NA","NA","NA",null,0,0,0,0,0,0,0,0,0,0,0,0,0,0,0,0,0,0,0,0,0,0,0,0,0,0,0,0,0,0,0,0,0,0,0,0,0,0,0,0,0,0,0,0,0,0,0,0,0,0,0,null,{"$f":"MeasureSavingsArray(AO139:CM139,S139,T139,U139,W139,X139,D139)","v":0},0,0,0,0,0,0,0,0,0,0,0,0,0,0,0,0,0,0,0,0,0,0,0,0,0,0,0,0,0,0,0,0,0,0,0,0,0,0,0,0,0,0,0,0,0,0,0,0,0,0,0,null,0,0,0,0,0,0,0,0,0,0,0,0,0,0,0,0,0,0,0,0,0,0,0,0,0,0,0,0,0,0,0,0,0,0,0,0,0,0,0,0,0,0,0,0,0,0,0,0,0,0,0,null,0,0,0,0,0,0,0,0,0,0,0,0,0,0,0,0,0,0,0,0,0,0,0,0,0,0,0,0,0,0,0,0,0,0,0,0,0,0,0,0,0,0,0,0,0,0,0,0,0,0,0,null,{"$f":"DebtServiceArray(AO139:CM139,P139,discount_rate,Q139,D139)","v":0},0,0,0,0,0,0,0,0,0,0,0,0,0,0,0,0,0,0,0,0,0,0,0,0,0,0,0,0,0,0,0,0,0,0,0,0,0,0,0,0,0,0,0,0,0,0,0,0,0,0,null,0,0,0,0,0,0,0,0,0,0,0,0,0,0,0,0,0,0,0,0,0,0,0,0,0,0,0,0,0,0,0,0,0,0,0,0,0,0,0,0,0,0,0,0,0,0,0,0,0,0,0,null,0,0.96618357487922713]
[null,"USR-UTL-11",null,"N",null,null,null,null,null,null,null,null,null,null,null,null,null,null,null,null,null,null,null,null,null,0,0,null,0,0,0,0,0,null,"NA","NA","NA","NA","NA",null,0,{"$f":"CHOOSE(ROUNDUP((AP$18-2020)/10,0),$F140,$G140,$H140,$I140,$J140)*IF($D140=\"Y\",1,0)","v":0},0,0,0,0,0,0,0,0,0,{"$f":"CHOOSE(ROUNDUP((AZ$18-2020)/10,0),$F140,$G140,$H140,$I140,$J140)*IF($D140=\"Y\",1,0)","v":0},0,0,0,0,0,0,0,0,0,{"$f":"CHOOSE(ROUNDUP((BJ$18-2020)/10,0),$F140,$G140,$H140,$I140,$J140)*IF($D140=\"Y\",1,0)","v":0},0,0,0,0,0,0,0,0,0,{"$f":"CHOOSE(ROUNDUP((BT$18-2020)/10,0),$F140,$G140,$H140,$I140,$J140)*IF($D140=\"Y\",1,0)","v":0},0,0,0,0,0,0,0,0,0,{"$f":"CHOOSE(ROUNDUP((CD$18-2020)/10,0),$F140,$G140,$H140,$I140,$J140)*IF($D140=\"Y\",1,0)","v":0},0,0,0,0,0,0,0,0,0,null,{"$f":"MeasureSavingsArray(AO140:CM140,S140,T140,U140,W140,X140,D140)","v":0},0,0,0,0,0,0,0,0,0,0,0,0,0,0,0,0,0,0,0,0,0,0,0,0,0,0,0,0,0,0,0,0,0,0,0,0,0,0,0,0,0,0,0,0,0,0,0,0,0,0,0,null,0,0,0,0,0,0,0,0,0,0,0,0,0,0,0,0,0,0,0,0,0,0,0,0,0,0,0,0,0,0,0,0,0,0,0,0,0,0,0,0,0,0,0,0,0,0,0,0,0,0,0,null,0,0,0,0,0,0,0,0,0,0,0,0,0,0,0,0,0,0,0,0,0,0,0,0,0,0,0,0,0,0,0,0,0,0,0,0,0,0,0,0,0,0,0,0,0,0,0,0,0,0,0,null,{"$f":"DebtServiceArray(AO140:CM140,P140,discount_rate,Q140,D140)","v":0},0,0,0,0,0,0,0,0,0,0,0,0,0,0,0,0,0,0,0,0,0,0,0,0,0,0,0,0,0,0,0,0,0,0,0,0,0,0,0,0,0,0,0,0,0,0,0,0,0,0,null,0,0,0,0,0,0,0,0,0,0,0,0,0,0,0,0,0,0,0,0,0,0,0,0,0,0,0,0,0,0,0,0,0,0,0,0,0,0,0,0,0,0,0,0,0,0,0,0,0,0,0,null,0,0.96618357487922713]
[null,"USR-UTL-12",null,"N",null,null,null,null,null,null,null,null,null,null,null,null,null,null,null,null,null,null,null,null,null,0,0,null,0,0,0,0,0,null,"NA","NA","NA","NA","NA",null,0,0,0,0,0,0,0,0,0,0,0,0,0,0,0,0,0,0,0,0,0,0,0,0,0,0,0,0,0,0,0,0,0,0,0,0,0,0,0,0,0,0,0,0,0,0,0,0,0,0,0,null,{"$f":"MeasureSavingsArray(AO141:CM141,S141,T141,U141,W141,X141,D141)","v":0},0,0,0,0,0,0,0,0,0,0,0,0,0,0,0,0,0,0,0,0,0,0,0,0,0,0,0,0,0,0,0,0,0,0,0,0,0,0,0,0,0,0,0,0,0,0,0,0,0,0,0,null,0,0,0,0,0,0,0,0,0,0,0,0,0,0,0,0,0,0,0,0,0,0,0,0,0,0,0,0,0,0,0,0,0,0,0,0,0,0,0,0,0,0,0,0,0,0,0,0,0,0,0,null,0,0,0,0,0,0,0,0,0,0,0,0,0,0,0,0,0,0,0,0,0,0,0,0,0,0,0,0,0,0,0,0,0,0,0,0,0,0,0,0,0,0,0,0,0,0,0,0,0,0,0,null,{"$f":"DebtServiceArray(AO141:CM141,P141,discount_rate,Q141,D141)","v":0},0,0,0,0,0,0,0,0,0,0,0,0,0,0,0,0,0,0,0,0,0,0,0,0,0,0,0,0,0,0,0,0,0,0,0,0,0,0,0,0,0,0,0,0,0,0,0,0,0,0,null,0,0,0,0,0,0,0,0,0,0,0,0,0,0,0,0,0,0,0,0,0,0,0,0,0,0,0,0,0,0,0,0,0,0,0,0,0,0,0,0,0,0,0,0,0,0,0,0,0,0,0,null,0,0.96618357487922713]
[null,"USR-UTL-13",null,"N",null,null,null,null,null,null,null,null,null,null,null,null,null,null,null,null,null,null,null,null,null,0,0,null,0,0,0,0,0,null,"NA","NA","NA","NA","NA",null,0,0,0,0,0,0,0,0,0,0,0,0,0,0,0,0,0,0,0,0,0,0,0,0,0,0,0,0,0,0,0,0,0,0,0,0,0,0,0,0,0,0,0,0,0,0,0,0,0,0,0,null,{"$f":"MeasureSavingsArray(AO142:CM142,S142,T142,U142,W142,X142,D142)","v":0},0,0,0,0,0,0,0,0,0,0,0,0,0,0,0,0,0,0,0,0,0,0,0,0,0,0,0,0,0,0,0,0,0,0,0,0,0,0,0,0,0,0,0,0,0,0,0,0,0,0,0,null,0,0,0,0,0,0,0,0,0,0,0,0,0,0,0,0,0,0,0,0,0,0,0,0,0,0,0,0,0,0,0,0,0,0,0,0,0,0,0,0,0,0,0,0,0,0,0,0,0,0,0,null,0,0,0,0,0,0,0,0,0,0,0,0,0,0,0,0,0,0,0,0,0,0,0,0,0,0,0,0,0,0,0,0,0,0,0,0,0,0,0,0,0,0,0,0,0,0,0,0,0,0,0,null,{"$f":"DebtServiceArray(AO142:CM142,P142,discount_rate,Q142,D142)","v":0},0,0,0,0,0,0,0,0,0,0,0,0,0,0,0,0,0,0,0,0,0,0,0,0,0,0,0,0,0,0,0,0,0,0,0,0,0,0,0,0,0,0,0,0,0,0,0,0,0,0,null,0,0,0,0,0,0,0,0,0,0,0,0,0,0,0,0,0,0,0,0,0,0,0,0,0,0,0,0,0,0,0,0,0,0,0,0,0,0,0,0,0,0,0,0,0,0,0,0,0,0,0,null,0,0.96618357487922713]
[null,"USR-UTL-14",null,"N",null,null,null,null,null,null,null,null,null,null,null,null,null,null,null,null,null,null,null,null,null,0,0,null,0,0,0,0,0,null,"NA","NA","NA","NA","NA",null,0,0,0,0,0,0,0,0,0,0,0,0,0,0,0,0,0,0,0,0,0,0,0,0,0,0,0,0,0,0,0,0,0,0,0,0,0,0,0,0,0,0,0,0,0,0,0,0,0,0,0,null,{"$f":"MeasureSavingsArray(AO143:CM143,S143,T143,U143,W143,X143,D143)","v":0},0,0,0,0,0,0,0,0,0,0,0,0,0,0,0,0,0,0,0,0,0,0,0,0,0,0,0,0,0,0,0,0,0,0,0,0,0,0,0,0,0,0,0,0,0,0,0,0,0,0,0,null,0,0,0,0,0,0,0,0,0,0,0,0,0,0,0,0,0,0,0,0,0,0,0,0,0,0,0,0,0,0,0,0,0,0,0,0,0,0,0,0,0,0,0,0,0,0,0,0,0,0,0,null,0,0,0,0,0,0,0,0,0,0,0,0,0,0,0,0,0,0,0,0,0,0,0,0,0,0,0,0,0,0,0,0,0,0,0,0,0,0,0,0,0,0,0,0,0,0,0,0,0,0,0,null,{"$f":"DebtServiceArray(AO143:CM143,P143,discount_rate,Q143,D143)","v":0},0,0,0,0,0,0,0,0,0,0,0,0,0,0,0,0,0,0,0,0,0,0,0,0,0,0,0,0,0,0,0,0,0,0,0,0,0,0,0,0,0,0,0,0,0,0,0,0,0,0,null,0,0,0,0,0,0,0,0,0,0,0,0,0,0,0,0,0,0,0,0,0,0,0,0,0,0,0,0,0,0,0,0,0,0,0,0,0,0,0,0,0,0,0,0,0,0,0,0,0,0,0,null,0,0.96618357487922713]
[null,"USR-UTL-15",null,"N",null,null,null,null,null,null,null,null,null,null,null,null,null,null,null,null,null,null,null,null,null,0,0,null,0,0,0,0,0,null,"NA","NA","NA","NA","NA",null,0,0,0,0,0,0,0,0,0,0,0,0,0,0,0,0,0,0,0,0,0,0,0,0,0,0,0,0,0,0,0,0,0,0,0,0,0,0,0,0,0,0,0,0,0,0,0,0,0,0,0,null,{"$f":"MeasureSavingsArray(AO144:CM144,S144,T144,U144,W144,X144,D144)","v":0},0,0,0,0,0,0,0,0,0,0,0,0,0,0,0,0,0,0,0,0,0,0,0,0,0,0,0,0,0,0,0,0,0,0,0,0,0,0,0,0,0,0,0,0,0,0,0,0,0,0,0,null,0,0,0,0,0,0,0,0,0,0,0,0,0,0,0,0,0,0,0,0,0,0,0,0,0,0,0,0,0,0,0,0,0,0,0,0,0,0,0,0,0,0,0,0,0,0,0,0,0,0,0,null,0,0,0,0,0,0,0,0,0,0,0,0,0,0,0,0,0,0,0,0,0,0,0,0,0,0,0,0,0,0,0,0,0,0,0,0,0,0,0,0,0,0,0,0,0,0,0,0,0,0,0,null,{"$f":"DebtServiceArray(AO144:CM144,P144,discount_rate,Q144,D144)","v":0},0,0,0,0,0,0,0,0,0,0,0,0,0,0,0,0,0,0,0,0,0,0,0,0,0,0,0,0,0,0,0,0,0,0,0,0,0,0,0,0,0,0,0,0,0,0,0,0,0,0,null,0,0,0,0,0,0,0,0,0,0,0,0,0,0,0,0,0,0,0,0,0,0,0,0,0,0,0,0,0,0,0,0,0,0,0,0,0,0,0,0,0,0,0,0,0,0,0,0,0,0,0,null,0,0.96618357487922713]
[null,"USR-UTL-16",null,"N",null,null,null,null,null,null,null,null,null,null,null,null,null,null,null,null,null,null,null,null,null,0,0,null,0,0,0,0,0,null,"NA","NA","NA","NA","NA",null,0,0,0,0,0,0,0,0,0,0,0,0,0,0,0,0,0,0,0,0,0,0,0,0,0,0,0,0,0,0,0,0,0,0,0,0,0,0,0,0,0,0,0,0,0,0,0,0,0,0,0,null,{"$f":"MeasureSavingsArray(AO145:CM145,S145,T145,U145,W145,X145,D145)","v":0},0,0,0,0,0,0,0,0,0,0,0,0,0,0,0,0,0,0,0,0,0,0,0,0,0,0,0,0,0,0,0,0,0,0,0,0,0,0,0,0,0,0,0,0,0,0,0,0,0,0,0,null,0,0,0,0,0,0,0,0,0,0,0,0,0,0,0,0,0,0,0,0,0,0,0,0,0,0,0,0,0,0,0,0,0,0,0,0,0,0,0,0,0,0,0,0,0,0,0,0,0,0,0,null,0,0,0,0,0,0,0,0,0,0,0,0,0,0,0,0,0,0,0,0,0,0,0,0,0,0,0,0,0,0,0,0,0,0,0,0,0,0,0,0,0,0,0,0,0,0,0,0,0,0,0,null,{"$f":"DebtServiceArray(AO145:CM145,P145,discount_rate,Q145,D145)","v":0},0,0,0,0,0,0,0,0,0,0,0,0,0,0,0,0,0,0,0,0,0,0,0,0,0,0,0,0,0,0,0,0,0,0,0,0,0,0,0,0,0,0,0,0,0,0,0,0,0,0,null,0,0,0,0,0,0,0,0,0,0,0,0,0,0,0,0,0,0,0,0,0,0,0,0,0,0,0,0,0,0,0,0,0,0,0,0,0,0,0,0,0,0,0,0,0,0,0,0,0,0,0,null,0,0.96618357487922713]
[null,"USR-UTL-17",null,"N",null,null,null,null,null,null,null,null,null,null,null,null,null,null,null,null,null,null,null,null,null,0,0,null,0,0,0,0,0,null,"NA","NA","NA","NA","NA",null,0,0,0,0,0,0,0,0,0,0,0,0,0,0,0,0,0,0,0,0,0,0,0,0,0,0,0,0,0,0,0,0,0,0,0,0,0,0,0,0,0,0,0,0,0,0,0,0,0,0,0,null,{"$f":"MeasureSavingsArray(AO146:CM146,S146,T146,U146,W146,X146,D146)","v":0},0,0,0,0,0,0,0,0,0,0,0,0,0,0,0,0,0,0,0,0,0,0,0,0,0,0,0,0,0,0,0,0,0,0,0,0,0,0,0,0,0,0,0,0,0,0,0,0,0,0,0,null,0,0,0,0,0,0,0,0,0,0,0,0,0,0,0,0,0,0,0,0,0,0,0,0,0,0,0,0,0,0,0,0,0,0,0,0,0,0,0,0,0,0,0,0,0,0,0,0,0,0,0,null,0,0,0,0,0,0,0,0,0,0,0,0,0,0,0,0,0,0,0,0,0,0,0,0,0,0,0,0,0,0,0,0,0,0,0,0,0,0,0,0,0,0,0,0,0,0,0,0,0,0,0,null,{"$f":"DebtServiceArray(AO146:CM146,P146,discount_rate,Q146,D146)","v":0},0,0,0,0,0,0,0,0,0,0,0,0,0,0,0,0,0,0,0,0,0,0,0,0,0,0,0,0,0,0,0,0,0,0,0,0,0,0,0,0,0,0,0,0,0,0,0,0,0,0,null,0,0,0,0,0,0,0,0,0,0,0,0,0,0,0,0,0,0,0,0,0,0,0,0,0,0,0,0,0,0,0,0,0,0,0,0,0,0,0,0,0,0,0,0,0,0,0,0,0,0,0,null,0,0.96618357487922713]
[null,"USR-UTL-18",null,"N",null,null,null,null,null,null,null,null,null,null,null,null,null,null,null,null,null,null,null,null,null,0,0,null,0,0,0,0,0,null,"NA","NA","NA","NA","NA",null,0,0,0,0,0,0,0,0,0,0,0,0,0,0,0,0,0,0,0,0,0,0,0,0,0,0,0,0,0,0,0,0,0,0,0,0,0,0,0,0,0,0,0,0,0,0,0,0,0,0,0,null,{"$f":"MeasureSavingsArray(AO147:CM147,S147,T147,U147,W147,X147,D147)","v":0},0,0,0,0,0,0,0,0,0,0,0,0,0,0,0,0,0,0,0,0,0,0,0,0,0,0,0,0,0,0,0,0,0,0,0,0,0,0,0,0,0,0,0,0,0,0,0,0,0,0,0,null,0,0,0,0,0,0,0,0,0,0,0,0,0,0,0,0,0,0,0,0,0,0,0,0,0,0,0,0,0,0,0,0,0,0,0,0,0,0,0,0,0,0,0,0,0,0,0,0,0,0,0,null,0,0,0,0,0,0,0,0,0,0,0,0,0,0,0,0,0,0,0,0,0,0,0,0,0,0,0,0,0,0,0,0,0,0,0,0,0,0,0,0,0,0,0,0,0,0,0,0,0,0,0,null,{"$f":"DebtServiceArray(AO147:CM147,P147,discount_rate,Q147,D147)","v":0},0,0,0,0,0,0,0,0,0,0,0,0,0,0,0,0,0,0,0,0,0,0,0,0,0,0,0,0,0,0,0,0,0,0,0,0,0,0,0,0,0,0,0,0,0,0,0,0,0,0,null,0,0,0,0,0,0,0,0,0,0,0,0,0,0,0,0,0,0,0,0,0,0,0,0,0,0,0,0,0,0,0,0,0,0,0,0,0,0,0,0,0,0,0,0,0,0,0,0,0,0,0,null,0,0.96618357487922713]
[null,"USR-UTL-19",null,"N",null,null,null,null,null,null,null,null,null,null,null,null,null,null,null,null,null,null,null,null,null,0,0,null,0,0,0,0,0,null,"NA","NA","NA","NA","NA",null,0,0,0,0,0,0,0,0,0,0,0,0,0,0,0,0,0,0,0,0,0,0,0,0,0,0,0,0,0,0,0,0,0,0,0,0,0,0,0,0,0,0,0,0,0,0,0,0,0,0,0,null,{"$f":"MeasureSavingsArray(AO148:CM148,S148,T148,U148,W148,X148,D148)","v":0},0,0,0,0,0,0,0,0,0,0,0,0,0,0,0,0,0,0,0,0,0,0,0,0,0,0,0,0,0,0,0,0,0,0,0,0,0,0,0,0,0,0,0,0,0,0,0,0,0,0,0,null,0,0,0,0,0,0,0,0,0,0,0,0,0,0,0,0,0,0,0,0,0,0,0,0,0,0,0,0,0,0,0,0,0,0,0,0,0,0,0,0,0,0,0,0,0,0,0,0,0,0,0,null,0,0,0,0,0,0,0,0,0,0,0,0,0,0,0,0,0,0,0,0,0,0,0,0,0,0,0,0,0,0,0,0,0,0,0,0,0,0,0,0,0,0,0,0,0,0,0,0,0,0,0,null,{"$f":"DebtServiceArray(AO148:CM148,P148,discount_rate,Q148,D148)","v":0},0,0,0,0,0,0,0,0,0,0,0,0,0,0,0,0,0,0,0,0,0,0,0,0,0,0,0,0,0,0,0,0,0,0,0,0,0,0,0,0,0,0,0,0,0,0,0,0,0,0,null,0,0,0,0,0,0,0,0,0,0,0,0,0,0,0,0,0,0,0,0,0,0,0,0,0,0,0,0,0,0,0,0,0,0,0,0,0,0,0,0,0,0,0,0,0,0,0,0,0,0,0,null,0,0.96618357487922713]
[null,"USR-UTL-20",null,"N",null,null,null,null,null,null,null,null,null,null,null,null,null,null,null,null,null,null,null,null,null,0,0,null,0,0,0,0,0,null,"NA","NA","NA","NA","NA",null,0,0,0,0,0,0,0,0,0,0,0,0,0,0,0,0,0,0,0,0,0,0,0,0,0,0,0,0,0,0,0,0,0,0,0,0,0,0,0,0,0,0,0,0,0,0,0,0,0,0,0,null,{"$f":"MeasureSavingsArray(AO149:CM149,S149,T149,U149,W149,X149,D149)","v":0},0,0,0,0,0,0,0,0,0,0,0,0,0,0,0,0,0,0,0,0,0,0,0,0,0,0,0,0,0,0,0,0,0,0,0,0,0,0,0,0,0,0,0,0,0,0,0,0,0,0,0,null,0,0,0,0,0,0,0,0,0,0,0,0,0,0,0,0,0,0,0,0,0,0,0,0,0,0,0,0,0,0,0,0,0,0,0,0,0,0,0,0,0,0,0,0,0,0,0,0,0,0,0,null,0,0,0,0,0,0,0,0,0,0,0,0,0,0,0,0,0,0,0,0,0,0,0,0,0,0,0,0,0,0,0,0,0,0,0,0,0,0,0,0,0,0,0,0,0,0,0,0,0,0,0,null,{"$f":"DebtServiceArray(AO149:CM149,P149,discount_rate,Q149,D149)","v":0},0,0,0,0,0,0,0,0,0,0,0,0,0,0,0,0,0,0,0,0,0,0,0,0,0,0,0,0,0,0,0,0,0,0,0,0,0,0,0,0,0,0,0,0,0,0,0,0,0,0,null,0,0,0,0,0,0,0,0,0,0,0,0,0,0,0,0,0,0,0,0,0,0,0,0,0,0,0,0,0,0,0,0,0,0,0,0,0,0,0,0,0,0,0,0,0,0,0,0,0,0,0,null,0,0.96618357487922713]
[null,null,null,null,null,null,null,null,null,null,null,null,null,null,null,null,null,null,null,null,null,null,null,null,null,null,null,null,null,null,null,null,null,null,null,null,null,null,null,null,null,null,null,null,null,null,null,null,null,null,null,null,null,null,null,null,null,null,null,null,null,null,null,null,null,null,null,null,null,null,null,null,null,null,null,null,null,null,null,null,null,null,null,null,null,null,null,null,null,null,null,null,{"$f":"SUM(CO130:CO149)","v":0},{"$f":"SUM(CP130:CP149)","v":0},0,0,0,0,0,0,0,0,0,0,0,0,0,0,0,0,0,0,0,0,0,0,0,0,0,0,0,0,0,0,0,0,0,0,0,0,0,0,0,0,0,0,0,0,0,0,0,0,0,0,null,{"$f":"SUM(EP130:EP149)","v":0},{"$f":"SUM(EQ130:EQ149)","v":0},0,0,0,0,0,0,0,0,0,0,0,0,0,0,0,0,0,0,0,0,0,0,0,0,0,0,0,0,0,0,0,0,0,0,0,0,0,0,0,0,0,0,0,0,0,0,0,0,0,null,{"$f":"SUM(GP130:GP149)","v":0},{"$f":"SUM(GQ130:GQ149)","v":0},0,0,0,0,0,0,0,0,0,0,0,0,0,0,0,0,0,0,0,0,0,0,0,0,0,0,0,0,0,0,0,0,0,0,0,0,0,0,0,0,0,0,0,0,0,0,0,0,0,null,{"$f":"SUM(IP130:IP149)","v":0},{"$f":"SUM(IQ130:IQ149)","v":0},0,0,0,0,0,0,0,0,0,0,0,0,0,0,0,0,0,0,0,0,0,0,0,0,0,0,0,0,0,0,0,0,0,0,0,0,0,0,0,0,0,0,0,0,0,0,0,0,0,null,{"$f":"SUM(KP130:KP149)","v":0},{"$f":"SUM(KQ130:KQ149)","v":0},0,0,0,0,0,0,0,0,0,0,0,0,0,0,0,0,0,0,0,0,0,0,0,0,0,0,0,0,0,0,0,0,0,0,0,0,0,0,0,0,0,0,0,0,0,0,0,0,0]
["Model calculations below this line.  Do not delete or modify."]
[]
[null,null,null,null,null,null,null,null,null,null,null,null,null,null,null,null,null,null,null,null,null,null,null,null,null,null,"Average",null,null,null,null,null,null,null,null,null,null,null,null,null,null,null,null,null,null,null,null,null,null,null,null,null,null,null,null,null,null,null,null,null,null,null,null,null,null,null,null,null,null,null,null,null,null,null,null,null,null,null,null,null,null,null,null,null,null,null,null,null,null,null,"Allocation of Utility & General Measures Water Savings"]
[null,null,null,null,null,null,null,null,null,null,null,null,null,null,null,null,null,null,null,null,null,null,null,null,null,null,"Unit Cost"]
[null,null,null,null,null,null,null,null,null,null,null,null,null,null,null,null,null,null,null,null,null,null,null,null,null,null,"$/AF",null,null,null,null,null,null,null,null,null,null,null,null,null,null,null,null,null,null,null,null,null,null,null,null,null,null,null,null,null,null,null,null,null,null,null,null,null,null,null,null,null,null,null,null,null,null,null,null,null,null,null,null,null,null,null,null,null,null,null,null,null,null,null,null,"Single Family",{"$f":"SUMIFS(CO$130:CO$149,$L$130:$L$149,\"All\")*CO164","v":{"$error":"#DIV/0!"}},{"$error":"#DIV/0!"},{"$error":"#DIV/0!"},{"$error":"#DIV/0!"},{"$error":"#DIV/0!"},{"$error":"#DIV/0!"},{"$error":"#DIV/0!"},{"$error":"#DIV/0!"},{"$error":"#DIV/0!"},{"$error":"#DIV/0!"},{"$error":"#DIV/0!"},{"$error":"#DIV/0!"},{"$error":"#DIV/0!"},{"$error":"#DIV/0!"},{"$error":"#DIV/0!"},{"$error":"#DIV/0!"},{"$error":"#DIV/0!"},{"$error":"#DIV/0!"},{"$error":"#DIV/0!"},{"$error":"#DIV/0!"},{"$error":"#DIV/0!"},{"$error":"#DIV/0!"},{"$error":"#DIV/0!"},{"$error":"#DIV/0!"},{"$error":"#DIV/0!"},{"$error":"#DIV/0!"},{"$error":"#DIV/0!"},{"$error":"#DIV/0!"},{"$error":"#DIV/0!"},{"$error":"#DIV/0!"},{"$error":"#DIV/0!"},{"$error":"#DIV/0!"},{"$f":"SUMIFS(DU$130:DU$149,$L$130:$L$149,\"All\")*DU164","v":{"$error":"#DIV/0!"}},{"$error":"#DIV/0!"},{"$error":"#DIV/0!"},{"$error":"#DIV/0!"},{"$error":"#DIV/0!"},{"$error":"#DIV/0!"},{"$error":"#DIV/0!"},{"$error":"#DIV/0!"},{"$error":"#DIV/0!"},{"$error":"#DIV/0!"},{"$error":"#DIV/0!"},{"$error":"#DIV/0!"},{"$error":"#DIV/0!"},{"$error":"#DIV/0!"},{"$error":"#DIV/0!"},{"$error":"#DIV/0!"},{"$error":"#DIV/0!"},{"$error":"#DIV/0!"},{"$error":"#DIV/0!"}]
[null,null,null,null,null,null,null,null,null,null,null,null,null,null,null,null,null,null,null,null,null,null,null,null,null,"Single-Family",{"$f":"IF(SUM(EN34,EN84)>0,SUM(AA23:AA33*EN23:EN33,AA64:AA83*EN64:EN83)/SUM(EN34,EN84),\"NA\")","v":{"$error":"#VALUE!"}},null,null,null,null,null,null,null,null,null,null,null,null,null,null,null,null,null,null,null,null,null,null,null,null,null,null,null,null,null,null,null,null,null,null,null,null,null,null,null,null,null,null,null,null,null,null,null,null,null,null,null,null,null,null,null,null,null,null,null,null,null,null,null,null,"Multi Family",{"$f":"SUMIFS(CO$130:CO$149,$L$130:$L$149,\"All\")*CO165","v":{"$error":"#DIV/0!"}},{"$error":"#DIV/0!"},{"$error":"#DIV/0!"},{"$error":"#DIV/0!"},{"$error":"#DIV/0!"},{"$error":"#DIV/0!"},{"$error":"#DIV/0!"},{"$error":"#DIV/0!"},{"$error":"#DIV/0!"},{"$error":"#DIV/0!"},{"$error":"#DIV/0!"},{"$error":"#DIV/0!"},{"$error":"#DIV/0!"},{"$error":"#DIV/0!"},{"$error":"#DIV/0!"},{"$error":"#DIV/0!"},{"$error":"#DIV/0!"},{"$error":"#DIV/0!"},{"$error":"#DIV/0!"},{"$error":"#DIV/0!"},{"$error":"#DIV/0!"},{"$error":"#DIV/0!"},{"$error":"#DIV/0!"},{"$error":"#DIV/0!"},{"$error":"#DIV/0!"},{"$error":"#DIV/0!"},{"$error":"#DIV/0!"},{"$error":"#DIV/0!"},{"$error":"#DIV/0!"},{"$error":"#DIV/0!"},{"$error":"#DIV/0!"},{"$error":"#DIV/0!"},{"$f":"SUMIFS(DU$130:DU$149,$L$130:$L$149,\"All\")*DU165","v":{"$error":"#DIV/0!"}},{"$error":"#DIV/0!"},{"$error":"#DIV/0!"},{"$error":"#DIV/0!"},{"$error":"#DIV/0!"},{"$error":"#DIV/0!"},{"$error":"#DIV/0!"},{"$error":"#DIV/0!"},{"$error":"#DIV/0!"},{"$error":"#DIV/0!"},{"$error":"#DIV/0!"},{"$error":"#DIV/0!"},{"$error":"#DIV/0!"},{"$error":"#DIV/0!"},{"$error":"#DIV/0!"},{"$error":"#DIV/0!"},{"$error":"#DIV/0!"},{"$error":"#DIV/0!"},{"$error":"#DIV/0!"}]
[null,null,null,null,null,null,null,null,null,null,null,null,null,null,null,null,null,null,null,null,null,null,null,null,null,"Multi-Family",{"$f":"IF(SUM(EN45,EN106)>0,SUM(AA36:AA44*EN36:EN44,AA86:AA105*EN86:EN105)/SUM(EN45,EN106),\"NA\")","v":{"$error":"#VALUE!"}},null,null,null,null,null,null,null,null,null,null,null,null,null,null,null,null,null,null,null,null,null,null,null,null,null,null,null,null,null,null,null,null,null,null,null,null,null,null,null,null,null,null,null,null,null,null,null,null,null,null,null,null,null,null,null,null,null,null,null,null,null,null,null,null,"ICI",{"$f":"SUMIFS(CO$130:CO$149,$L$130:$L$149,\"All\")*CO166","v":{"$error":"#DIV/0!"}},{"$error":"#DIV/0!"},{"$error":"#DIV/0!"},{"$error":"#DIV/0!"},{"$error":"#DIV/0!"},{"$error":"#DIV/0!"},{"$error":"#DIV/0!"},{"$error":"#DIV/0!"},{"$error":"#DIV/0!"},{"$error":"#DIV/0!"},{"$error":"#DIV/0!"},{"$error":"#DIV/0!"},{"$error":"#DIV/0!"},{"$error":"#DIV/0!"},{"$error":"#DIV/0!"},{"$error":"#DIV/0!"},{"$error":"#DIV/0!"},{"$error":"#DIV/0!"},{"$error":"#DIV/0!"},{"$error":"#DIV/0!"},{"$error":"#DIV/0!"},{"$error":"#DIV/0!"},{"$error":"#DIV/0!"},{"$error":"#DIV/0!"},{"$error":"#DIV/0!"},{"$error":"#DIV/0!"},{"$error":"#DIV/0!"},{"$error":"#DIV/0!"},{"$error":"#DIV/0!"},{"$error":"#DIV/0!"},{"$error":"#DIV/0!"},{"$error":"#DIV/0!"},{"$f":"SUMIFS(DU$130:DU$149,$L$130:$L$149,\"All\")*DU166","v":{"$error":"#DIV/0!"}},{"$error":"#DIV/0!"},{"$error":"#DIV/0!"},{"$error":"#DIV/0!"},{"$error":"#DIV/0!"},{"$error":"#DIV/0!"},{"$error":"#DIV/0!"},{"$error":"#DIV/0!"},{"$error":"#DIV/0!"},{"$error":"#DIV/0!"},{"$error":"#DIV/0!"},{"$error":"#DIV/0!"},{"$error":"#DIV/0!"},{"$error":"#DIV/0!"},{"$error":"#DIV/0!"},{"$error":"#DIV/0!"},{"$error":"#DIV/0!"},{"$error":"#DIV/0!"},{"$error":"#DIV/0!"}]
[null,null,null,null,null,null,null,null,null,null,null,null,null,null,null,null,null,null,null,null,null,null,null,null,null,"ICI",{"$f":"IF(SUM(EN59,EN128)>0,SUM(AA47:AA58*EN47:EN58,AA108:AA127*EN108:EN127)/SUM(EN59,EN128),\"NA\")","v":{"$error":"#VALUE!"}},null,null,null,null,null,null,null,null,null,null,null,null,null,null,null,null,null,null,null,null,null,null,null,null,null,null,null,null,null,null,null,null,null,null,null,null,null,null,null,null,null,null,null,null,null,null,null,null,null,null,null,null,null,null,null,null,null,null,null,null,null,null,null,null,"Other",{"$f":"SUMIFS(CO$130:CO$149,$L$130:$L$149,\"All\")*CO167+SUMIFS(CO$130:CO$149,$L$130:$L$149,\"Other\")","v":{"$error":"#DIV/0!"}},{"$error":"#DIV/0!"},{"$error":"#DIV/0!"},{"$error":"#DIV/0!"},{"$error":"#DIV/0!"},{"$error":"#DIV/0!"},{"$error":"#DIV/0!"},{"$error":"#DIV/0!"},{"$error":"#DIV/0!"},{"$error":"#DIV/0!"},{"$error":"#DIV/0!"},{"$error":"#DIV/0!"},{"$error":"#DIV/0!"},{"$error":"#DIV/0!"},{"$error":"#DIV/0!"},{"$error":"#DIV/0!"},{"$error":"#DIV/0!"},{"$error":"#DIV/0!"},{"$error":"#DIV/0!"},{"$error":"#DIV/0!"},{"$error":"#DIV/0!"},{"$error":"#DIV/0!"},{"$error":"#DIV/0!"},{"$error":"#DIV/0!"},{"$error":"#DIV/0!"},{"$error":"#DIV/0!"},{"$error":"#DIV/0!"},{"$error":"#DIV/0!"},{"$error":"#DIV/0!"},{"$error":"#DIV/0!"},{"$error":"#DIV/0!"},{"$error":"#DIV/0!"},{"$f":"SUMIFS(DU$130:DU$149,$L$130:$L$149,\"All\")*DU167+SUMIFS(DU$130:DU$149,$L$130:$L$149,\"Other\")","v":{"$error":"#DIV/0!"}},{"$error":"#DIV/0!"},{"$error":"#DIV/0!"},{"$error":"#DIV/0!"},{"$error":"#DIV/0!"},{"$error":"#DIV/0!"},{"$error":"#DIV/0!"},{"$error":"#DIV/0!"},{"$error":"#DIV/0!"},{"$error":"#DIV/0!"},{"$error":"#DIV/0!"},{"$error":"#DIV/0!"},{"$error":"#DIV/0!"},{"$error":"#DIV/0!"},{"$error":"#DIV/0!"},{"$error":"#DIV/0!"},{"$error":"#DIV/0!"},{"$error":"#DIV/0!"},{"$error":"#DIV/0!"}]
[null,null,null,null,null,null,null,null,null,null,null,null,null,null,null,null,null,null,null,null,null,null,null,null,null,"Utl & Other",{"$f":"IF(EN150>0,SUMPRODUCT(AA130:AA149,EN130:EN149)/EN150,\"NA\")","v":"NA"},null,null,null,null,null,null,null,null,null,null,null,null,null,null,null,null,null,null,null,null,null,null,null,null,null,null,null,null,null,null,null,null,null,null,null,null,null,null,null,null,null,null,null,null,null,null,null,null,null,null,null,null,null,null,null,null,null,null,null,null,null,null,null,null,"Water Loss",{"$f":"SUMIFS(CO$130:CO$149,$L$130:$L$149,\"All\")*CO168+SUMIFS(CO$130:CO$149,$L$130:$L$149,\"Water Loss\")","v":{"$error":"#DIV/0!"}},{"$error":"#DIV/0!"},{"$error":"#DIV/0!"},{"$error":"#DIV/0!"},{"$error":"#DIV/0!"},{"$error":"#DIV/0!"},{"$error":"#DIV/0!"},{"$error":"#DIV/0!"},{"$error":"#DIV/0!"},{"$error":"#DIV/0!"},{"$error":"#DIV/0!"},{"$error":"#DIV/0!"},{"$error":"#DIV/0!"},{"$error":"#DIV/0!"},{"$error":"#DIV/0!"},{"$error":"#DIV/0!"},{"$error":"#DIV/0!"},{"$error":"#DIV/0!"},{"$error":"#DIV/0!"},{"$error":"#DIV/0!"},{"$error":"#DIV/0!"},{"$error":"#DIV/0!"},{"$error":"#DIV/0!"},{"$error":"#DIV/0!"},{"$error":"#DIV/0!"},{"$error":"#DIV/0!"},{"$error":"#DIV/0!"},{"$error":"#DIV/0!"},{"$error":"#DIV/0!"},{"$error":"#DIV/0!"},{"$error":"#DIV/0!"},{"$error":"#DIV/0!"},{"$f":"SUMIFS(DU$130:DU$149,$L$130:$L$149,\"All\")*DU168+SUMIFS(DU$130:DU$149,$L$130:$L$149,\"Water Loss\")","v":{"$error":"#DIV/0!"}},{"$error":"#DIV/0!"},{"$error":"#DIV/0!"},{"$error":"#DIV/0!"},{"$error":"#DIV/0!"},{"$error":"#DIV/0!"},{"$error":"#DIV/0!"},{"$error":"#DIV/0!"},{"$error":"#DIV/0!"},{"$error":"#DIV/0!"},{"$error":"#DIV/0!"},{"$error":"#DIV/0!"},{"$error":"#DIV/0!"},{"$error":"#DIV/0!"},{"$error":"#DIV/0!"},{"$error":"#DIV/0!"},{"$error":"#DIV/0!"},{"$error":"#DIV/0!"},{"$error":"#DIV/0!"}]
[null,null,null,null,null,null,null,null,null,null,null,null,null,null,null,null,null,null,null,null,null,null,null,null,null,"All Measures",{"$f":"IF(SUM(EN34,EN45,EN59,EN84,EN106,EN128,EN150)>0,SUM(AA23:AA33*EN23:EN33,AA36:AA44*EN36:EN44,AA47:AA58*EN47:EN58,AA64:AA83*EN64:EN83,AA86:AA105*EN86:EN105,AA108:AA127*EN108:EN127,AA130:AA149*EN130:EN149)/SUM(EN34,EN45,EN59,EN84,EN106,EN128,EN150),\"NA\")","v":{"$error":"#VALUE!"}},null,null,null,null,null,null,null,null,null,null,null,null,null,null,null,null,null,null,null,null,null,null,null,null,null,null,null,null,null,null,null,null,null,null,null,null,null,null,null,null,null,null,null,null,null,null,null,null,null,null,null,null,null,null,null,null,null,null,null,null,null,null,null,null,"Total",{"$f":"SUM(CO155:CO159)","v":{"$error":"#DIV/0!"}},{"$f":"SUM(CP155:CP159)","v":{"$error":"#DIV/0!"}},{"$error":"#DIV/0!"},{"$error":"#DIV/0!"},{"$error":"#DIV/0!"},{"$error":"#DIV/0!"},{"$error":"#DIV/0!"},{"$error":"#DIV/0!"},{"$error":"#DIV/0!"},{"$error":"#DIV/0!"},{"$error":"#DIV/0!"},{"$error":"#DIV/0!"},{"$error":"#DIV/0!"},{"$error":"#DIV/0!"},{"$error":"#DIV/0!"},{"$error":"#DIV/0!"},{"$error":"#DIV/0!"},{"$error":"#DIV/0!"},{"$error":"#DIV/0!"},{"$error":"#DIV/0!"},{"$error":"#DIV/0!"},{"$error":"#DIV/0!"},{"$error":"#DIV/0!"},{"$error":"#DIV/0!"},{"$error":"#DIV/0!"},{"$error":"#DIV/0!"},{"$error":"#DIV/0!"},{"$error":"#DIV/0!"},{"$error":"#DIV/0!"},{"$error":"#DIV/0!"},{"$error":"#DIV/0!"},{"$error":"#DIV/0!"},{"$error":"#DIV/0!"},{"$error":"#DIV/0!"},{"$error":"#DIV/0!"},{"$error":"#DIV/0!"},{"$error":"#DIV/0!"},{"$error":"#DIV/0!"},{"$error":"#DIV/0!"},{"$error":"#DIV/0!"},{"$error":"#DIV/0!"},{"$error":"#DIV/0!"},{"$error":"#DIV/0!"},{"$error":"#DIV/0!"},{"$error":"#DIV/0!"},{"$error":"#DIV/0!"},{"$error":"#DIV/0!"},{"$error":"#DIV/0!"},{"$error":"#DIV/0!"},{"$error":"#DIV/0!"},{"$error":"#DIV/0!"}]
[]
[null,null,null,null,null,null,null,null,null,null,null,null,null,null,null,null,null,null,null,null,null,null,null,null,null,null,null,null,null,null,null,null,null,null,null,null,null,null,null,null,null,null,null,null,null,null,null,null,null,null,null,null,null,null,null,null,null,null,null,null,null,null,null,null,null,null,null,null,null,null,null,null,null,null,null,null,null,null,null,null,null,null,null,null,null,null,null,null,null,null,"Share of Baseline Demand"]
[]
[null,null,null,null,null,null,null,null,null,null,null,null,null,null,null,null,null,null,null,null,null,null,null,null,null,null,null,null,null,null,null,null,null,null,null,null,null,null,null,null,null,null,null,null,null,null,null,null,null,null,null,null,null,null,null,null,null,null,null,null,null,null,null,null,null,null,null,null,null,null,null,null,null,null,null,null,null,null,null,null,null,null,null,null,null,null,null,null,null,null,null,"Single Family",{"$f":"'4. Plan Demand Projection'!C25/'4. Plan Demand Projection'!C$31","v":{"$error":"#DIV/0!"}},{"$f":"'4. Plan Demand Projection'!D25/'4. Plan Demand Projection'!D$31","v":{"$error":"#DIV/0!"}},{"$f":"'4. Plan Demand Projection'!E25/'4. Plan Demand Projection'!E$31","v":{"$error":"#DIV/0!"}},{"$f":"'4. Plan Demand Projection'!F25/'4. Plan Demand Projection'!F$31","v":{"$error":"#DIV/0!"}},{"$f":"'4. Plan Demand Projection'!G25/'4. Plan Demand Projection'!G$31","v":{"$error":"#DIV/0!"}},{"$f":"'4. Plan Demand Projection'!H25/'4. Plan Demand Projection'!H$31","v":{"$error":"#DIV/0!"}},{"$f":"'4. Plan Demand Projection'!I25/'4. Plan Demand Projection'!I$31","v":{"$error":"#DIV/0!"}},{"$f":"'4. Plan Demand Projection'!J25/'4. Plan Demand Projection'!J$31","v":{"$error":"#DIV/0!"}},{"$f":"'4. Plan Demand Projection'!K25/'4. Plan Demand Projection'!K$31","v":{"$error":"#DIV/0!"}},{"$f":"'4. Plan Demand Projection'!L25/'4. Plan Demand Projection'!L$31","v":{"$error":"#DIV/0!"}},{"$f":"'4. Plan Demand Projection'!M25/'4. Plan Demand Projection'!M$31","v":{"$error":"#DIV/0!"}},{"$f":"'4. Plan Demand Projection'!N25/'4. Plan Demand Projection'!N$31","v":{"$error":"#DIV/0!"}},{"$f":"'4. Plan Demand Projection'!O25/'4. Plan Demand Projection'!O$31","v":{"$error":"#DIV/0!"}},{"$f":"'4. Plan Demand Projection'!P25/'4. Plan Demand Projection'!P$31","v":{"$error":"#DIV/0!"}},{"$f":"'4. Plan Demand Projection'!Q25/'4. Plan Demand Projection'!Q$31","v":{"$error":"#DIV/0!"}},{"$f":"'4. Plan Demand Projection'!R25/'4. Plan Demand Projection'!R$31","v":{"$error":"#DIV/0!"}},{"$f":"'4. Plan Demand Projection'!S25/'4. Plan Demand Projection'!S$31","v":{"$error":"#DIV/0!"}},{"$f":"'4. Plan Demand Projection'!T25/'4. Plan Demand Projection'!T$31","v":{"$error":"#DIV/0!"}},{"$f":"'4. Plan Demand Projection'!U25/'4. Plan Demand Projection'!U$31","v":{"$error":"#DIV/0!"}},{"$f":"'4. Plan Demand Projection'!V25/'4. Plan Demand Projection'!V$31","v":{"$error":"#DIV/0!"}},{"$f":"'4. Plan Demand Projection'!W25/'4. Plan Demand Projection'!W$31","v":{"$error":"#DIV/0!"}},{"$f":"'4. Plan Demand Projection'!X25/'4. Plan Demand Projection'!X$31","v":{"$error":"#DIV/0!"}},{"$f":"'4. Plan Demand Projection'!Y25/'4. Plan Demand Projection'!Y$31","v":{"$error":"#DIV/0!"}},{"$f":"'4. Plan Demand Projection'!Z25/'4. Plan Demand Projection'!Z$31","v":{"$error":"#DIV/0!"}},{"$f":"'4. Plan Demand Projection'!AA25/'4. Plan Demand Projection'!AA$31","v":{"$error":"#DIV/0!"}},{"$f":"'4. Plan Demand Projection'!AB25/'4. Plan Demand Projection'!AB$31","v":{"$error":"#DIV/0!"}},{"$f":"'4. Plan Demand Projection'!AC25/'4. Plan Demand Projection'!AC$31","v":{"$error":"#DIV/0!"}},{"$f":"'4. Plan Demand Projection'!AD25/'4. Plan Demand Projection'!AD$31","v":{"$error":"#DIV/0!"}},{"$f":"'4. Plan Demand Projection'!AE25/'4. Plan Demand Projection'!AE$31","v":{"$error":"#DIV/0!"}},{"$f":"'4. Plan Demand Projection'!AF25/'4. Plan Demand Projection'!AF$31","v":{"$error":"#DIV/0!"}},{"$f":"'4. Plan Demand Projection'!AG25/'4. Plan Demand Projection'!AG$31","v":{"$error":"#DIV/0!"}},{"$f":"'4. Plan Demand Projection'!AH25/'4. Plan Demand Projection'!AH$31","v":{"$error":"#DIV/0!"}},{"$f":"'4. Plan Demand Projection'!AI25/'4. Plan Demand Projection'!AI$31","v":{"$error":"#DIV/0!"}},{"$f":"'4. Plan Demand Projection'!AJ25/'4. Plan Demand Projection'!AJ$31","v":{"$error":"#DIV/0!"}},{"$f":"'4. Plan Demand Projection'!AK25/'4. Plan Demand Projection'!AK$31","v":{"$error":"#DIV/0!"}},{"$f":"'4. Plan Demand Projection'!AL25/'4. Plan Demand Projection'!AL$31","v":{"$error":"#DIV/0!"}},{"$f":"'4. Plan Demand Projection'!AM25/'4. Plan Demand Projection'!AM$31","v":{"$error":"#DIV/0!"}},{"$f":"'4. Plan Demand Projection'!AN25/'4. Plan Demand Projection'!AN$31","v":{"$error":"#DIV/0!"}},{"$f":"'4. Plan Demand Projection'!AO25/'4. Plan Demand Projection'!AO$31","v":{"$error":"#DIV/0!"}},{"$f":"'4. Plan Demand Projection'!AP25/'4. Plan Demand Projection'!AP$31","v":{"$error":"#DIV/0!"}},{"$f":"'4. Plan Demand Projection'!AQ25/'4. Plan Demand Projection'!AQ$31","v":{"$error":"#DIV/0!"}},{"$f":"'4. Plan Demand Projection'!AR25/'4. Plan Demand Projection'!AR$31","v":{"$error":"#DIV/0!"}},{"$f":"'4. Plan Demand Projection'!AS25/'4. Plan Demand Projection'!AS$31","v":{"$error":"#DIV/0!"}},{"$f":"'4. Plan Demand Projection'!AT25/'4. Plan Demand Projection'!AT$31","v":{"$error":"#DIV/0!"}},{"$f":"'4. Plan Demand Projection'!AU25/'4. Plan Demand Projection'!AU$31","v":{"$error":"#DIV/0!"}},{"$f":"'4. Plan Demand Projection'!AV25/'4. Plan Demand Projection'!AV$31","v":{"$error":"#DIV/0!"}},{"$f":"'4. Plan Demand Projection'!AW25/'4. Plan Demand Projection'!AW$31","v":{"$error":"#DIV/0!"}},{"$f":"'4. Plan Demand Projection'!AX25/'4. Plan Demand Projection'!AX$31","v":{"$error":"#DIV/0!"}},{"$f":"'4. Plan Demand Projection'!AY25/'4. Plan Demand Projection'!AY$31","v":{"$error":"#DIV/0!"}},{"$f":"'4. Plan Demand Projection'!AZ25/'4. Plan Demand Projection'!AZ$31","v":{"$error":"#DIV/0!"}},{"$f":"'4. Plan Demand Projection'!BA25/'4. Plan Demand Projection'!BA$31","v":{"$error":"#DIV/0!"}}]
[null,null,null,null,null,null,null,null,null,null,null,null,null,null,null,null,null,null,null,null,null,null,null,null,null,null,null,null,null,null,null,null,null,null,null,null,null,null,null,null,null,null,null,null,null,null,null,null,null,null,null,null,null,null,null,null,null,null,null,null,null,null,null,null,null,null,null,null,null,null,null,null,null,null,null,null,null,null,null,null,null,null,null,null,null,null,null,null,null,null,null,"Multi Family",{"$f":"'4. Plan Demand Projection'!C26/'4. Plan Demand Projection'!C$31","v":{"$error":"#DIV/0!"}},{"$f":"'4. Plan Demand Projection'!D26/'4. Plan Demand Projection'!D$31","v":{"$error":"#DIV/0!"}},{"$f":"'4. Plan Demand Projection'!E26/'4. Plan Demand Projection'!E$31","v":{"$error":"#DIV/0!"}},{"$f":"'4. Plan Demand Projection'!F26/'4. Plan Demand Projection'!F$31","v":{"$error":"#DIV/0!"}},{"$f":"'4. Plan Demand Projection'!G26/'4. Plan Demand Projection'!G$31","v":{"$error":"#DIV/0!"}},{"$f":"'4. Plan Demand Projection'!H26/'4. Plan Demand Projection'!H$31","v":{"$error":"#DIV/0!"}},{"$f":"'4. Plan Demand Projection'!I26/'4. Plan Demand Projection'!I$31","v":{"$error":"#DIV/0!"}},{"$f":"'4. Plan Demand Projection'!J26/'4. Plan Demand Projection'!J$31","v":{"$error":"#DIV/0!"}},{"$f":"'4. Plan Demand Projection'!K26/'4. Plan Demand Projection'!K$31","v":{"$error":"#DIV/0!"}},{"$f":"'4. Plan Demand Projection'!L26/'4. Plan Demand Projection'!L$31","v":{"$error":"#DIV/0!"}},{"$f":"'4. Plan Demand Projection'!M26/'4. Plan Demand Projection'!M$31","v":{"$error":"#DIV/0!"}},{"$f":"'4. Plan Demand Projection'!N26/'4. Plan Demand Projection'!N$31","v":{"$error":"#DIV/0!"}},{"$f":"'4. Plan Demand Projection'!O26/'4. Plan Demand Projection'!O$31","v":{"$error":"#DIV/0!"}},{"$f":"'4. Plan Demand Projection'!P26/'4. Plan Demand Projection'!P$31","v":{"$error":"#DIV/0!"}},{"$f":"'4. Plan Demand Projection'!Q26/'4. Plan Demand Projection'!Q$31","v":{"$error":"#DIV/0!"}},{"$f":"'4. Plan Demand Projection'!R26/'4. Plan Demand Projection'!R$31","v":{"$error":"#DIV/0!"}},{"$f":"'4. Plan Demand Projection'!S26/'4. Plan Demand Projection'!S$31","v":{"$error":"#DIV/0!"}},{"$f":"'4. Plan Demand Projection'!T26/'4. Plan Demand Projection'!T$31","v":{"$error":"#DIV/0!"}},{"$f":"'4. Plan Demand Projection'!U26/'4. Plan Demand Projection'!U$31","v":{"$error":"#DIV/0!"}},{"$f":"'4. Plan Demand Projection'!V26/'4. Plan Demand Projection'!V$31","v":{"$error":"#DIV/0!"}},{"$f":"'4. Plan Demand Projection'!W26/'4. Plan Demand Projection'!W$31","v":{"$error":"#DIV/0!"}},{"$f":"'4. Plan Demand Projection'!X26/'4. Plan Demand Projection'!X$31","v":{"$error":"#DIV/0!"}},{"$f":"'4. Plan Demand Projection'!Y26/'4. Plan Demand Projection'!Y$31","v":{"$error":"#DIV/0!"}},{"$f":"'4. Plan Demand Projection'!Z26/'4. Plan Demand Projection'!Z$31","v":{"$error":"#DIV/0!"}},{"$f":"'4. Plan Demand Projection'!AA26/'4. Plan Demand Projection'!AA$31","v":{"$error":"#DIV/0!"}},{"$f":"'4. Plan Demand Projection'!AB26/'4. Plan Demand Projection'!AB$31","v":{"$error":"#DIV/0!"}},{"$f":"'4. Plan Demand Projection'!AC26/'4. Plan Demand Projection'!AC$31","v":{"$error":"#DIV/0!"}},{"$f":"'4. Plan Demand Projection'!AD26/'4. Plan Demand Projection'!AD$31","v":{"$error":"#DIV/0!"}},{"$f":"'4. Plan Demand Projection'!AE26/'4. Plan Demand Projection'!AE$31","v":{"$error":"#DIV/0!"}},{"$f":"'4. Plan Demand Projection'!AF26/'4. Plan Demand Projection'!AF$31","v":{"$error":"#DIV/0!"}},{"$f":"'4. Plan Demand Projection'!AG26/'4. Plan Demand Projection'!AG$31","v":{"$error":"#DIV/0!"}},{"$f":"'4. Plan Demand Projection'!AH26/'4. Plan Demand Projection'!AH$31","v":{"$error":"#DIV/0!"}},{"$f":"'4. Plan Demand Projection'!AI26/'4. Plan Demand Projection'!AI$31","v":{"$error":"#DIV/0!"}},{"$f":"'4. Plan Demand Projection'!AJ26/'4. Plan Demand Projection'!AJ$31","v":{"$error":"#DIV/0!"}},{"$f":"'4. Plan Demand Projection'!AK26/'4. Plan Demand Projection'!AK$31","v":{"$error":"#DIV/0!"}},{"$f":"'4. Plan Demand Projection'!AL26/'4. Plan Demand Projection'!AL$31","v":{"$error":"#DIV/0!"}},{"$f":"'4. Plan Demand Projection'!AM26/'4. Plan Demand Projection'!AM$31","v":{"$error":"#DIV/0!"}},{"$f":"'4. Plan Demand Projection'!AN26/'4. Plan Demand Projection'!AN$31","v":{"$error":"#DIV/0!"}},{"$f":"'4. Plan Demand Projection'!AO26/'4. Plan Demand Projection'!AO$31","v":{"$error":"#DIV/0!"}},{"$f":"'4. Plan Demand Projection'!AP26/'4. Plan Demand Projection'!AP$31","v":{"$error":"#DIV/0!"}},{"$f":"'4. Plan Demand Projection'!AQ26/'4. Plan Demand Projection'!AQ$31","v":{"$error":"#DIV/0!"}},{"$f":"'4. Plan Demand Projection'!AR26/'4. Plan Demand Projection'!AR$31","v":{"$error":"#DIV/0!"}},{"$f":"'4. Plan Demand Projection'!AS26/'4. Plan Demand Projection'!AS$31","v":{"$error":"#DIV/0!"}},{"$f":"'4. Plan Demand Projection'!AT26/'4. Plan Demand Projection'!AT$31","v":{"$error":"#DIV/0!"}},{"$f":"'4. Plan Demand Projection'!AU26/'4. Plan Demand Projection'!AU$31","v":{"$error":"#DIV/0!"}},{"$f":"'4. Plan Demand Projection'!AV26/'4. Plan Demand Projection'!AV$31","v":{"$error":"#DIV/0!"}},{"$f":"'4. Plan Demand Projection'!AW26/'4. Plan Demand Projection'!AW$31","v":{"$error":"#DIV/0!"}},{"$f":"'4. Plan Demand Projection'!AX26/'4. Plan Demand Projection'!AX$31","v":{"$error":"#DIV/0!"}},{"$f":"'4. Plan Demand Projection'!AY26/'4. Plan Demand Projection'!AY$31","v":{"$error":"#DIV/0!"}},{"$f":"'4. Plan Demand Projection'!AZ26/'4. Plan Demand Projection'!AZ$31","v":{"$error":"#DIV/0!"}},{"$f":"'4. Plan Demand Projection'!BA26/'4. Plan Demand Projection'!BA$31","v":{"$error":"#DIV/0!"}}]
[null,null,null,null,null,null,null,null,null,null,null,null,null,null,null,null,null,null,null,null,null,null,null,null,null,null,null,null,null,null,null,null,null,null,null,null,null,null,null,null,null,null,null,null,null,null,null,null,null,null,null,null,null,null,null,null,null,null,null,null,null,null,null,null,null,null,null,null,null,null,null,null,null,null,null,null,null,null,null,null,null,null,null,null,null,null,null,null,null,null,null,"ICI",{"$f":"'4. Plan Demand Projection'!C27/'4. Plan Demand Projection'!C$31","v":{"$error":"#DIV/0!"}},{"$f":"'4. Plan Demand Projection'!D27/'4. Plan Demand Projection'!D$31","v":{"$error":"#DIV/0!"}},{"$f":"'4. Plan Demand Projection'!E27/'4. Plan Demand Projection'!E$31","v":{"$error":"#DIV/0!"}},{"$f":"'4. Plan Demand Projection'!F27/'4. Plan Demand Projection'!F$31","v":{"$error":"#DIV/0!"}},{"$f":"'4. Plan Demand Projection'!G27/'4. Plan Demand Projection'!G$31","v":{"$error":"#DIV/0!"}},{"$f":"'4. Plan Demand Projection'!H27/'4. Plan Demand Projection'!H$31","v":{"$error":"#DIV/0!"}},{"$f":"'4. Plan Demand Projection'!I27/'4. Plan Demand Projection'!I$31","v":{"$error":"#DIV/0!"}},{"$f":"'4. Plan Demand Projection'!J27/'4. Plan Demand Projection'!J$31","v":{"$error":"#DIV/0!"}},{"$f":"'4. Plan Demand Projection'!K27/'4. Plan Demand Projection'!K$31","v":{"$error":"#DIV/0!"}},{"$f":"'4. Plan Demand Projection'!L27/'4. Plan Demand Projection'!L$31","v":{"$error":"#DIV/0!"}},{"$f":"'4. Plan Demand Projection'!M27/'4. Plan Demand Projection'!M$31","v":{"$error":"#DIV/0!"}},{"$f":"'4. Plan Demand Projection'!N27/'4. Plan Demand Projection'!N$31","v":{"$error":"#DIV/0!"}},{"$f":"'4. Plan Demand Projection'!O27/'4. Plan Demand Projection'!O$31","v":{"$error":"#DIV/0!"}},{"$f":"'4. Plan Demand Projection'!P27/'4. Plan Demand Projection'!P$31","v":{"$error":"#DIV/0!"}},{"$f":"'4. Plan Demand Projection'!Q27/'4. Plan Demand Projection'!Q$31","v":{"$error":"#DIV/0!"}},{"$f":"'4. Plan Demand Projection'!R27/'4. Plan Demand Projection'!R$31","v":{"$error":"#DIV/0!"}},{"$f":"'4. Plan Demand Projection'!S27/'4. Plan Demand Projection'!S$31","v":{"$error":"#DIV/0!"}},{"$f":"'4. Plan Demand Projection'!T27/'4. Plan Demand Projection'!T$31","v":{"$error":"#DIV/0!"}},{"$f":"'4. Plan Demand Projection'!U27/'4. Plan Demand Projection'!U$31","v":{"$error":"#DIV/0!"}},{"$f":"'4. Plan Demand Projection'!V27/'4. Plan Demand Projection'!V$31","v":{"$error":"#DIV/0!"}},{"$f":"'4. Plan Demand Projection'!W27/'4. Plan Demand Projection'!W$31","v":{"$error":"#DIV/0!"}},{"$f":"'4. Plan Demand Projection'!X27/'4. Plan Demand Projection'!X$31","v":{"$error":"#DIV/0!"}},{"$f":"'4. Plan Demand Projection'!Y27/'4. Plan Demand Projection'!Y$31","v":{"$error":"#DIV/0!"}},{"$f":"'4. Plan Demand Projection'!Z27/'4. Plan Demand Projection'!Z$31","v":{"$error":"#DIV/0!"}},{"$f":"'4. Plan Demand Projection'!AA27/'4. Plan Demand Projection'!AA$31","v":{"$error":"#DIV/0!"}},{"$f":"'4. Plan Demand Projection'!AB27/'4. Plan Demand Projection'!AB$31","v":{"$error":"#DIV/0!"}},{"$f":"'4. Plan Demand Projection'!AC27/'4. Plan Demand Projection'!AC$31","v":{"$error":"#DIV/0!"}},{"$f":"'4. Plan Demand Projection'!AD27/'4. Plan Demand Projection'!AD$31","v":{"$error":"#DIV/0!"}},{"$f":"'4. Plan Demand Projection'!AE27/'4. Plan Demand Projection'!AE$31","v":{"$error":"#DIV/0!"}},{"$f":"'4. Plan Demand Projection'!AF27/'4. Plan Demand Projection'!AF$31","v":{"$error":"#DIV/0!"}},{"$f":"'4. Plan Demand Projection'!AG27/'4. Plan Demand Projection'!AG$31","v":{"$error":"#DIV/0!"}},{"$f":"'4. Plan Demand Projection'!AH27/'4. Plan Demand Projection'!AH$31","v":{"$error":"#DIV/0!"}},{"$f":"'4. Plan Demand Projection'!AI27/'4. Plan Demand Projection'!AI$31","v":{"$error":"#DIV/0!"}},{"$f":"'4. Plan Demand Projection'!AJ27/'4. Plan Demand Projection'!AJ$31","v":{"$error":"#DIV/0!"}},{"$f":"'4. Plan Demand Projection'!AK27/'4. Plan Demand Projection'!AK$31","v":{"$error":"#DIV/0!"}},{"$f":"'4. Plan Demand Projection'!AL27/'4. Plan Demand Projection'!AL$31","v":{"$error":"#DIV/0!"}},{"$f":"'4. Plan Demand Projection'!AM27/'4. Plan Demand Projection'!AM$31","v":{"$error":"#DIV/0!"}},{"$f":"'4. Plan Demand Projection'!AN27/'4. Plan Demand Projection'!AN$31","v":{"$error":"#DIV/0!"}},{"$f":"'4. Plan Demand Projection'!AO27/'4. Plan Demand Projection'!AO$31","v":{"$error":"#DIV/0!"}},{"$f":"'4. Plan Demand Projection'!AP27/'4. Plan Demand Projection'!AP$31","v":{"$error":"#DIV/0!"}},{"$f":"'4. Plan Demand Projection'!AQ27/'4. Plan Demand Projection'!AQ$31","v":{"$error":"#DIV/0!"}},{"$f":"'4. Plan Demand Projection'!AR27/'4. Plan Demand Projection'!AR$31","v":{"$error":"#DIV/0!"}},{"$f":"'4. Plan Demand Projection'!AS27/'4. Plan Demand Projection'!AS$31","v":{"$error":"#DIV/0!"}},{"$f":"'4. Plan Demand Projection'!AT27/'4. Plan Demand Projection'!AT$31","v":{"$error":"#DIV/0!"}},{"$f":"'4. Plan Demand Projection'!AU27/'4. Plan Demand Projection'!AU$31","v":{"$error":"#DIV/0!"}},{"$f":"'4. Plan Demand Projection'!AV27/'4. Plan Demand Projection'!AV$31","v":{"$error":"#DIV/0!"}},{"$f":"'4. Plan Demand Projection'!AW27/'4. Plan Demand Projection'!AW$31","v":{"$error":"#DIV/0!"}},{"$f":"'4. Plan Demand Projection'!AX27/'4. Plan Demand Projection'!AX$31","v":{"$error":"#DIV/0!"}},{"$f":"'4. Plan Demand Projection'!AY27/'4. Plan Demand Projection'!AY$31","v":{"$error":"#DIV/0!"}},{"$f":"'4. Plan Demand Projection'!AZ27/'4. Plan Demand Projection'!AZ$31","v":{"$error":"#DIV/0!"}},{"$f":"'4. Plan Demand Projection'!BA27/'4. Plan Demand Projection'!BA$31","v":{"$error":"#DIV/0!"}}]
[null,null,null,null,null,null,null,null,null,null,null,null,null,null,null,null,null,null,null,null,null,null,null,null,null,null,null,null,null,null,null,null,null,null,null,null,null,null,null,null,null,null,null,null,null,null,null,null,null,null,null,null,null,null,null,null,null,null,null,null,null,null,null,null,null,null,null,null,null,null,null,null,null,null,null,null,null,null,null,null,null,null,null,null,null,null,null,null,null,null,null,"Other",{"$f":"'4. Plan Demand Projection'!C29/'4. Plan Demand Projection'!C$31","v":{"$error":"#DIV/0!"}},{"$f":"'4. Plan Demand Projection'!D29/'4. Plan Demand Projection'!D$31","v":{"$error":"#DIV/0!"}},{"$f":"'4. Plan Demand Projection'!E29/'4. Plan Demand Projection'!E$31","v":{"$error":"#DIV/0!"}},{"$f":"'4. Plan Demand Projection'!F29/'4. Plan Demand Projection'!F$31","v":{"$error":"#DIV/0!"}},{"$f":"'4. Plan Demand Projection'!G29/'4. Plan Demand Projection'!G$31","v":{"$error":"#DIV/0!"}},{"$f":"'4. Plan Demand Projection'!H29/'4. Plan Demand Projection'!H$31","v":{"$error":"#DIV/0!"}},{"$f":"'4. Plan Demand Projection'!I29/'4. Plan Demand Projection'!I$31","v":{"$error":"#DIV/0!"}},{"$f":"'4. Plan Demand Projection'!J29/'4. Plan Demand Projection'!J$31","v":{"$error":"#DIV/0!"}},{"$f":"'4. Plan Demand Projection'!K29/'4. Plan Demand Projection'!K$31","v":{"$error":"#DIV/0!"}},{"$f":"'4. Plan Demand Projection'!L29/'4. Plan Demand Projection'!L$31","v":{"$error":"#DIV/0!"}},{"$f":"'4. Plan Demand Projection'!M29/'4. Plan Demand Projection'!M$31","v":{"$error":"#DIV/0!"}},{"$f":"'4. Plan Demand Projection'!N29/'4. Plan Demand Projection'!N$31","v":{"$error":"#DIV/0!"}},{"$f":"'4. Plan Demand Projection'!O29/'4. Plan Demand Projection'!O$31","v":{"$error":"#DIV/0!"}},{"$f":"'4. Plan Demand Projection'!P29/'4. Plan Demand Projection'!P$31","v":{"$error":"#DIV/0!"}},{"$f":"'4. Plan Demand Projection'!Q29/'4. Plan Demand Projection'!Q$31","v":{"$error":"#DIV/0!"}},{"$f":"'4. Plan Demand Projection'!R29/'4. Plan Demand Projection'!R$31","v":{"$error":"#DIV/0!"}},{"$f":"'4. Plan Demand Projection'!S29/'4. Plan Demand Projection'!S$31","v":{"$error":"#DIV/0!"}},{"$f":"'4. Plan Demand Projection'!T29/'4. Plan Demand Projection'!T$31","v":{"$error":"#DIV/0!"}},{"$f":"'4. Plan Demand Projection'!U29/'4. Plan Demand Projection'!U$31","v":{"$error":"#DIV/0!"}},{"$f":"'4. Plan Demand Projection'!V29/'4. Plan Demand Projection'!V$31","v":{"$error":"#DIV/0!"}},{"$f":"'4. Plan Demand Projection'!W29/'4. Plan Demand Projection'!W$31","v":{"$error":"#DIV/0!"}},{"$f":"'4. Plan Demand Projection'!X29/'4. Plan Demand Projection'!X$31","v":{"$error":"#DIV/0!"}},{"$f":"'4. Plan Demand Projection'!Y29/'4. Plan Demand Projection'!Y$31","v":{"$error":"#DIV/0!"}},{"$f":"'4. Plan Demand Projection'!Z29/'4. Plan Demand Projection'!Z$31","v":{"$error":"#DIV/0!"}},{"$f":"'4. Plan Demand Projection'!AA29/'4. Plan Demand Projection'!AA$31","v":{"$error":"#DIV/0!"}},{"$f":"'4. Plan Demand Projection'!AB29/'4. Plan Demand Projection'!AB$31","v":{"$error":"#DIV/0!"}},{"$f":"'4. Plan Demand Projection'!AC29/'4. Plan Demand Projection'!AC$31","v":{"$error":"#DIV/0!"}},{"$f":"'4. Plan Demand Projection'!AD29/'4. Plan Demand Projection'!AD$31","v":{"$error":"#DIV/0!"}},{"$f":"'4. Plan Demand Projection'!AE29/'4. Plan Demand Projection'!AE$31","v":{"$error":"#DIV/0!"}},{"$f":"'4. Plan Demand Projection'!AF29/'4. Plan Demand Projection'!AF$31","v":{"$error":"#DIV/0!"}},{"$f":"'4. Plan Demand Projection'!AG29/'4. Plan Demand Projection'!AG$31","v":{"$error":"#DIV/0!"}},{"$f":"'4. Plan Demand Projection'!AH29/'4. Plan Demand Projection'!AH$31","v":{"$error":"#DIV/0!"}},{"$f":"'4. Plan Demand Projection'!AI29/'4. Plan Demand Projection'!AI$31","v":{"$error":"#DIV/0!"}},{"$f":"'4. Plan Demand Projection'!AJ29/'4. Plan Demand Projection'!AJ$31","v":{"$error":"#DIV/0!"}},{"$f":"'4. Plan Demand Projection'!AK29/'4. Plan Demand Projection'!AK$31","v":{"$error":"#DIV/0!"}},{"$f":"'4. Plan Demand Projection'!AL29/'4. Plan Demand Projection'!AL$31","v":{"$error":"#DIV/0!"}},{"$f":"'4. Plan Demand Projection'!AM29/'4. Plan Demand Projection'!AM$31","v":{"$error":"#DIV/0!"}},{"$f":"'4. Plan Demand Projection'!AN29/'4. Plan Demand Projection'!AN$31","v":{"$error":"#DIV/0!"}},{"$f":"'4. Plan Demand Projection'!AO29/'4. Plan Demand Projection'!AO$31","v":{"$error":"#DIV/0!"}},{"$f":"'4. Plan Demand Projection'!AP29/'4. Plan Demand Projection'!AP$31","v":{"$error":"#DIV/0!"}},{"$f":"'4. Plan Demand Projection'!AQ29/'4. Plan Demand Projection'!AQ$31","v":{"$error":"#DIV/0!"}},{"$f":"'4. Plan Demand Projection'!AR29/'4. Plan Demand Projection'!AR$31","v":{"$error":"#DIV/0!"}},{"$f":"'4. Plan Demand Projection'!AS29/'4. Plan Demand Projection'!AS$31","v":{"$error":"#DIV/0!"}},{"$f":"'4. Plan Demand Projection'!AT29/'4. Plan Demand Projection'!AT$31","v":{"$error":"#DIV/0!"}},{"$f":"'4. Plan Demand Projection'!AU29/'4. Plan Demand Projection'!AU$31","v":{"$error":"#DIV/0!"}},{"$f":"'4. Plan Demand Projection'!AV29/'4. Plan Demand Projection'!AV$31","v":{"$error":"#DIV/0!"}},{"$f":"'4. Plan Demand Projection'!AW29/'4. Plan Demand Projection'!AW$31","v":{"$error":"#DIV/0!"}},{"$f":"'4. Plan Demand Projection'!AX29/'4. Plan Demand Projection'!AX$31","v":{"$error":"#DIV/0!"}},{"$f":"'4. Plan Demand Projection'!AY29/'4. Plan Demand Projection'!AY$31","v":{"$error":"#DIV/0!"}},{"$f":"'4. Plan Demand Projection'!AZ29/'4. Plan Demand Projection'!AZ$31","v":{"$error":"#DIV/0!"}},{"$f":"'4. Plan Demand Projection'!BA29/'4. Plan Demand Projection'!BA$31","v":{"$error":"#DIV/0!"}}]
[null,null,null,null,null,null,null,null,null,null,null,null,null,null,null,null,null,null,null,null,null,null,null,null,null,null,null,null,null,null,null,null,null,null,null,null,null,null,null,null,null,null,null,null,null,null,null,null,null,null,null,null,null,null,null,null,null,null,null,null,null,null,null,null,null,null,null,null,null,null,null,null,null,null,null,null,null,null,null,null,null,null,null,null,null,null,null,null,null,null,null,"Water Loss",{"$f":"'4. Plan Demand Projection'!C30/'4. Plan Demand Projection'!C$31","v":{"$error":"#DIV/0!"}},{"$f":"'4. Plan Demand Projection'!D30/'4. Plan Demand Projection'!D$31","v":{"$error":"#DIV/0!"}},{"$f":"'4. Plan Demand Projection'!E30/'4. Plan Demand Projection'!E$31","v":{"$error":"#DIV/0!"}},{"$f":"'4. Plan Demand Projection'!F30/'4. Plan Demand Projection'!F$31","v":{"$error":"#DIV/0!"}},{"$f":"'4. Plan Demand Projection'!G30/'4. Plan Demand Projection'!G$31","v":{"$error":"#DIV/0!"}},{"$f":"'4. Plan Demand Projection'!H30/'4. Plan Demand Projection'!H$31","v":{"$error":"#DIV/0!"}},{"$f":"'4. Plan Demand Projection'!I30/'4. Plan Demand Projection'!I$31","v":{"$error":"#DIV/0!"}},{"$f":"'4. Plan Demand Projection'!J30/'4. Plan Demand Projection'!J$31","v":{"$error":"#DIV/0!"}},{"$f":"'4. Plan Demand Projection'!K30/'4. Plan Demand Projection'!K$31","v":{"$error":"#DIV/0!"}},{"$f":"'4. Plan Demand Projection'!L30/'4. Plan Demand Projection'!L$31","v":{"$error":"#DIV/0!"}},{"$f":"'4. Plan Demand Projection'!M30/'4. Plan Demand Projection'!M$31","v":{"$error":"#DIV/0!"}},{"$f":"'4. Plan Demand Projection'!N30/'4. Plan Demand Projection'!N$31","v":{"$error":"#DIV/0!"}},{"$f":"'4. Plan Demand Projection'!O30/'4. Plan Demand Projection'!O$31","v":{"$error":"#DIV/0!"}},{"$f":"'4. Plan Demand Projection'!P30/'4. Plan Demand Projection'!P$31","v":{"$error":"#DIV/0!"}},{"$f":"'4. Plan Demand Projection'!Q30/'4. Plan Demand Projection'!Q$31","v":{"$error":"#DIV/0!"}},{"$f":"'4. Plan Demand Projection'!R30/'4. Plan Demand Projection'!R$31","v":{"$error":"#DIV/0!"}},{"$f":"'4. Plan Demand Projection'!S30/'4. Plan Demand Projection'!S$31","v":{"$error":"#DIV/0!"}},{"$f":"'4. Plan Demand Projection'!T30/'4. Plan Demand Projection'!T$31","v":{"$error":"#DIV/0!"}},{"$f":"'4. Plan Demand Projection'!U30/'4. Plan Demand Projection'!U$31","v":{"$error":"#DIV/0!"}},{"$f":"'4. Plan Demand Projection'!V30/'4. Plan Demand Projection'!V$31","v":{"$error":"#DIV/0!"}},{"$f":"'4. Plan Demand Projection'!W30/'4. Plan Demand Projection'!W$31","v":{"$error":"#DIV/0!"}},{"$f":"'4. Plan Demand Projection'!X30/'4. Plan Demand Projection'!X$31","v":{"$error":"#DIV/0!"}},{"$f":"'4. Plan Demand Projection'!Y30/'4. Plan Demand Projection'!Y$31","v":{"$error":"#DIV/0!"}},{"$f":"'4. Plan Demand Projection'!Z30/'4. Plan Demand Projection'!Z$31","v":{"$error":"#DIV/0!"}},{"$f":"'4. Plan Demand Projection'!AA30/'4. Plan Demand Projection'!AA$31","v":{"$error":"#DIV/0!"}},{"$f":"'4. Plan Demand Projection'!AB30/'4. Plan Demand Projection'!AB$31","v":{"$error":"#DIV/0!"}},{"$f":"'4. Plan Demand Projection'!AC30/'4. Plan Demand Projection'!AC$31","v":{"$error":"#DIV/0!"}},{"$f":"'4. Plan Demand Projection'!AD30/'4. Plan Demand Projection'!AD$31","v":{"$error":"#DIV/0!"}},{"$f":"'4. Plan Demand Projection'!AE30/'4. Plan Demand Projection'!AE$31","v":{"$error":"#DIV/0!"}},{"$f":"'4. Plan Demand Projection'!AF30/'4. Plan Demand Projection'!AF$31","v":{"$error":"#DIV/0!"}},{"$f":"'4. Plan Demand Projection'!AG30/'4. Plan Demand Projection'!AG$31","v":{"$error":"#DIV/0!"}},{"$f":"'4. Plan Demand Projection'!AH30/'4. Plan Demand Projection'!AH$31","v":{"$error":"#DIV/0!"}},{"$f":"'4. Plan Demand Projection'!AI30/'4. Plan Demand Projection'!AI$31","v":{"$error":"#DIV/0!"}},{"$f":"'4. Plan Demand Projection'!AJ30/'4. Plan Demand Projection'!AJ$31","v":{"$error":"#DIV/0!"}},{"$f":"'4. Plan Demand Projection'!AK30/'4. Plan Demand Projection'!AK$31","v":{"$error":"#DIV/0!"}},{"$f":"'4. Plan Demand Projection'!AL30/'4. Plan Demand Projection'!AL$31","v":{"$error":"#DIV/0!"}},{"$f":"'4. Plan Demand Projection'!AM30/'4. Plan Demand Projection'!AM$31","v":{"$error":"#DIV/0!"}},{"$f":"'4. Plan Demand Projection'!AN30/'4. Plan Demand Projection'!AN$31","v":{"$error":"#DIV/0!"}},{"$f":"'4. Plan Demand Projection'!AO30/'4. Plan Demand Projection'!AO$31","v":{"$error":"#DIV/0!"}},{"$f":"'4. Plan Demand Projection'!AP30/'4. Plan Demand Projection'!AP$31","v":{"$error":"#DIV/0!"}},{"$f":"'4. Plan Demand Projection'!AQ30/'4. Plan Demand Projection'!AQ$31","v":{"$error":"#DIV/0!"}},{"$f":"'4. Plan Demand Projection'!AR30/'4. Plan Demand Projection'!AR$31","v":{"$error":"#DIV/0!"}},{"$f":"'4. Plan Demand Projection'!AS30/'4. Plan Demand Projection'!AS$31","v":{"$error":"#DIV/0!"}},{"$f":"'4. Plan Demand Projection'!AT30/'4. Plan Demand Projection'!AT$31","v":{"$error":"#DIV/0!"}},{"$f":"'4. Plan Demand Projection'!AU30/'4. Plan Demand Projection'!AU$31","v":{"$error":"#DIV/0!"}},{"$f":"'4. Plan Demand Projection'!AV30/'4. Plan Demand Projection'!AV$31","v":{"$error":"#DIV/0!"}},{"$f":"'4. Plan Demand Projection'!AW30/'4. Plan Demand Projection'!AW$31","v":{"$error":"#DIV/0!"}},{"$f":"'4. Plan Demand Projection'!AX30/'4. Plan Demand Projection'!AX$31","v":{"$error":"#DIV/0!"}},{"$f":"'4. Plan Demand Projection'!AY30/'4. Plan Demand Projection'!AY$31","v":{"$error":"#DIV/0!"}},{"$f":"'4. Plan Demand Projection'!AZ30/'4. Plan Demand Projection'!AZ$31","v":{"$error":"#DIV/0!"}},{"$f":"'4. Plan Demand Projection'!BA30/'4. Plan Demand Projection'!BA$31","v":{"$error":"#DIV/0!"}}]
[null,null,null,null,null,null,null,null,null,null,null,null,null,null,null,null,null,null,null,null,null,null,null,null,null,null,null,null,null,null,null,null,null,null,null,null,null,null,null,null,null,null,null,null,null,null,null,null,null,null,null,null,null,null,null,null,null,null,null,null,null,null,null,null,null,null,null,null,null,null,null,null,null,null,null,null,null,null,null,null,null,null,null,null,null,null,null,null,null,null,null,"Total",{"$f":"SUM(CO164:CO168)","v":{"$error":"#DIV/0!"}},{"$f":"SUM(CP164:CP168)","v":{"$error":"#DIV/0!"}},{"$error":"#DIV/0!"},{"$error":"#DIV/0!"},{"$error":"#DIV/0!"},{"$error":"#DIV/0!"},{"$error":"#DIV/0!"},{"$error":"#DIV/0!"},{"$error":"#DIV/0!"},{"$error":"#DIV/0!"},{"$error":"#DIV/0!"},{"$error":"#DIV/0!"},{"$error":"#DIV/0!"},{"$error":"#DIV/0!"},{"$error":"#DIV/0!"},{"$error":"#DIV/0!"},{"$error":"#DIV/0!"},{"$error":"#DIV/0!"},{"$error":"#DIV/0!"},{"$error":"#DIV/0!"},{"$error":"#DIV/0!"},{"$error":"#DIV/0!"},{"$error":"#DIV/0!"},{"$error":"#DIV/0!"},{"$error":"#DIV/0!"},{"$error":"#DIV/0!"},{"$error":"#DIV/0!"},{"$error":"#DIV/0!"},{"$error":"#DIV/0!"},{"$error":"#DIV/0!"},{"$error":"#DIV/0!"},{"$error":"#DIV/0!"},{"$error":"#DIV/0!"},{"$error":"#DIV/0!"},{"$error":"#DIV/0!"},{"$error":"#DIV/0!"},{"$error":"#DIV/0!"},{"$error":"#DIV/0!"},{"$error":"#DIV/0!"},{"$error":"#DIV/0!"},{"$error":"#DIV/0!"},{"$error":"#DIV/0!"},{"$error":"#DIV/0!"},{"$error":"#DIV/0!"},{"$error":"#DIV/0!"},{"$error":"#DIV/0!"},{"$error":"#DIV/0!"},{"$error":"#DIV/0!"},{"$error":"#DIV/0!"},{"$error":"#DIV/0!"},{"$error":"#DIV/0!"}]

{"sheet":"3. Conservation Plan","index":3,"n_rows":142,"n_cols":318,"rows_kept":142,"cut":false,"hidden":false,"merged":[]}
[null,"Conservation Plan"]
[]
[]
[]
[]
[]
[]
[]
[]
[]
[]
[]
[null,{"$f":"'2. Conservation Measures'!B15","v":"Utility:"},{"$f":"'2. Conservation Measures'!C15","v":0}]
[null,{"$f":"'2. Conservation Measures'!B16","v":"Scenario:"},{"$f":"'2. Conservation Measures'!C16","v":"Empty"},{"$f":"'2. Conservation Measures'!D16","v":"Include"},null,"Savings",null,{"$f":"'2. Conservation Measures'!AO16","v":"Annual Measure Implementation"},null,null,null,null,null,null,null,null,null,null,null,null,null,null,null,null,null,null,null,null,null,null,null,null,null,null,null,null,null,null,null,null,null,null,null,null,null,null,null,null,null,null,null,null,null,null,null,null,null,null,null,{"$f":"'2. Conservation Measures'!CO16","v":"Active Water Savings by Planning Year (kGal)"},null,null,null,null,null,null,null,null,null,null,null,null,null,null,null,null,null,null,null,null,null,null,null,null,null,null,null,null,null,null,null,null,null,null,null,null,null,null,null,null,null,null,null,null,null,null,null,null,null,null,null,{"$f":"'2. Conservation Measures'!KP16","v":"Total Cost by Planning Year (2018 $)"},null,null,null,null,null,null,null,null,null,null,null,null,null,null,null,null,null,null,null,null,null,null,null,null,null,null,null,null,null,null,null,null,null,null,null,null,null,null,null,null,null,null,null,null,null,null,null,null,null,null,null,{"$f":"'2. Conservation Measures'!EP16","v":"O&M Cost by Planning Year (2018 $)"},null,null,null,null,null,null,null,null,null,null,null,null,null,null,null,null,null,null,null,null,null,null,null,null,null,null,null,null,null,null,null,null,null,null,null,null,null,null,null,null,null,null,null,null,null,null,null,null,null,null,null,{"$f":"'2. Conservation Measures'!GP16","v":"Capital Cost by Planning Year (2018 $)"},null,null,null,null,null,null,null,null,null,null,null,null,null,null,null,null,null,null,null,null,null,null,null,null,null,null,null,null,null,null,null,null,null,null,null,null,null,null,null,null,null,null,null,null,null,null,null,null,null,null,null,{"$f":"'2. Conservation Measures'!IP16","v":"Debt Service by Planning Year (2018 $)"}]
[null,null,null,{"$f":"'2. Conservation Measures'!D17","v":"in Plan?"},null,"Unit Cost"]
[null,{"$f":"'2. Conservation Measures'!B18","v":"ID"},{"$f":"'2. Conservation Measures'!C18","v":"Name"},{"$f":"'2. Conservation Measures'!D18","v":"Y/N"},null,"$/AF",null,2020,2021,2022,2023,2024,2025,2026,2027,2028,2029,2030,2031,2032,2033,2034,2035,2036,2037,2038,2039,2040,2041,2042,2043,2044,2045,2046,2047,2048,2049,2050,2051,2052,2053,2054,2055,2056,2057,2058,2059,2060,2061,2062,2063,2064,2065,2066,2067,2068,2069,2070,null,2020,2021,2022,2023,2024,2025,2026,2027,2028,2029,2030,2031,2032,2033,2034,2035,2036,2037,2038,2039,2040,2041,2042,2043,2044,2045,2046,2047,2048,2049,2050,2051,2052,2053,2054,2055,2056,2057,2058,2059,2060,2061,2062,2063,2064,2065,2066,2067,2068,2069,2070,null,2020,2021,2022,2023,2024,2025,2026,2027,2028,2029,2030,2031,2032,2033,2034,2035,2036,2037,2038,2039,2040,2041,2042,2043,2044,2045,2046,2047,2048,2049,2050,2051,2052,2053,2054,2055,2056,2057,2058,2059,2060,2061,2062,2063,2064,2065,2066,2067,2068,2069,2070,null,2020,2021,2022,2023,2024,2025,2026,2027,2028,2029,2030,2031,2032,2033,2034,2035,2036,2037,2038,2039,2040,2041,2042,2043,2044,2045,2046,2047,2048,2049,2050,2051,2052,2053,2054,2055,2056,2057,2058,2059,2060,2061,2062,2063,2064,2065,2066,2067,2068,2069,2070,null,2020,2021,2022,2023,2024,2025,2026,2027,2028,2029,2030,2031,2032,2033,2034,2035,2036,2037,2038,2039,2040,2041,2042,2043,2044,2045,2046,2047,2048,2049,2050,2051,2052,2053,2054,2055,2056,2057,2058,2059,2060,2061,2062,2063,2064,2065,2066,2067,2068,2069,2070,null,2020,2021,2022,2023,2024,2025,2026,2027,2028,2029,2030,2031,2032,2033,2034,2035,2036,2037,2038,2039,2040,2041,2042,2043,2044,2045,2046,2047,2048,2049,2050,2051,2052,2053,2054,2055,2056,2057,2058,2059,2060,2061,2062,2063,2064,2065,2066,2067,2068,2069,2070]
[]
[null,{"$f":"'2. Conservation Measures'!B22","v":"Single-Family Measures"}]
[null,{"$f":"'2. Conservation Measures'!B23","v":"PRE-SF-01"},{"$f":"'2. Conservation Measures'!C23","v":{"$error":"#N/A"}},{"$f":"'2. Conservation Measures'!D23","v":"N"},null,{"$f":"'2. Conservation Measures'!AA23","v":{"$error":"#N/A"}},null,{"$f":"'2. Conservation Measures'!AO23","v":0},{"$f":"'2. Conservation Measures'!AP23","v":0},{"$f":"'2. Conservation Measures'!AQ23","v":0},{"$f":"'2. Conservation Measures'!AR23","v":0},{"$f":"'2. Conservation Measures'!AS23","v":0},{"$f":"'2. Conservation Measures'!AT23","v":0},{"$f":"'2. Conservation Measures'!AU23","v":0},{"$f":"'2. Conservation Measures'!AV23","v":0},{"$f":"'2. Conservation Measures'!AW23","v":0},{"$f":"'2. Conservation Measures'!AX23","v":0},{"$f":"'2. Conservation Measures'!AY23","v":0},{"$f":"'2. Conservation Measures'!AZ23","v":0},{"$f":"'2. Conservation Measures'!BA23","v":0},{"$f":"'2. Conservation Measures'!BB23","v":0},{"$f":"'2. Conservation Measures'!BC23","v":0},{"$f":"'2. Conservation Measures'!BD23","v":0},{"$f":"'2. Conservation Measures'!BE23","v":0},{"$f":"'2. Conservation Measures'!BF23","v":0},{"$f":"'2. Conservation Measures'!BG23","v":0},{"$f":"'2. Conservation Measures'!BH23","v":0},{"$f":"'2. Conservation Measures'!BI23","v":0},{"$f":"'2. Conservation Measures'!BJ23","v":0},{"$f":"'2. Conservation Measures'!BK23","v":0},{"$f":"'2. Conservation Measures'!BL23","v":0},{"$f":"'2. Conservation Measures'!BM23","v":0},{"$f":"'2. Conservation Measures'!BN23","v":0},{"$f":"'2. Conservation Measures'!BO23","v":0},{"$f":"'2. Conservation Measures'!BP23","v":0},{"$f":"'2. Conservation Measures'!BQ23","v":0},{"$f":"'2. Conservation Measures'!BR23","v":0},{"$f":"'2. Conservation Measures'!BS23","v":0},{"$f":"'2. Conservation Measures'!BT23","v":0},{"$f":"'2. Conservation Measures'!BU23","v":0},{"$f":"'2. Conservation Measures'!BV23","v":0},{"$f":"'2. Conservation Measures'!BW23","v":0},{"$f":"'2. Conservation Measures'!BX23","v":0},{"$f":"'2. Conservation Measures'!BY23","v":0},{"$f":"'2. Conservation Measures'!BZ23","v":0},{"$f":"'2. Conservation Measures'!CA23","v":0},{"$f":"'2. Conservation Measures'!CB23","v":0},{"$f":"'2. Conservation Measures'!CC23","v":0},{"$f":"'2. Conservation Measures'!CD23","v":0},{"$f":"'2. Conservation Measures'!CE23","v":0},{"$f":"'2. Conservation Measures'!CF23","v":0},{"$f":"'2. Conservation Measures'!CG23","v":0},{"$f":"'2. Conservation Measures'!CH23","v":0},{"$f":"'2. Conservation Measures'!CI23","v":0},{"$f":"'2. Conservation Measures'!CJ23","v":0},{"$f":"'2. Conservation Measures'!CK23","v":0},{"$f":"'2. Conservation Measures'!CL23","v":0},{"$f":"'2. Conservation Measures'!CM23","v":0},null,{"$f":"'2. Conservation Measures'!CO23","v":{"$error":"#VALUE!"}},{"$f":"'2. Conservation Measures'!CP23","v":{"$error":"#VALUE!"}},{"$f":"'2. Conservation Measures'!CQ23","v":{"$error":"#VALUE!"}},{"$f":"'2. Conservation Measures'!CR23","v":{"$error":"#VALUE!"}},{"$f":"'2. Conservation Measures'!CS23","v":{"$error":"#VALUE!"}},{"$f":"'2. Conservation Measures'!CT23","v":{"$error":"#VALUE!"}},{"$f":"'2. Conservation Measures'!CU23","v":{"$error":"#VALUE!"}},{"$f":"'2. Conservation Measures'!CV23","v":{"$error":"#VALUE!"}},{"$f":"'2. Conservation Measures'!CW23","v":{"$error":"#VALUE!"}},{"$f":"'2. Conservation Measures'!CX23","v":{"$error":"#VALUE!"}},{"$f":"'2. Conservation Measures'!CY23","v":{"$error":"#VALUE!"}},{"$f":"'2. Conservation Measures'!CZ23","v":{"$error":"#VALUE!"}},{"$f":"'2. Conservation Measures'!DA23","v":{"$error":"#VALUE!"}},{"$f":"'2. Conservation Measures'!DB23","v":{"$error":"#VALUE!"}},{"$f":"'2. Conservation Measures'!DC23","v":{"$error":"#VALUE!"}},{"$f":"'2. Conservation Measures'!DD23","v":{"$error":"#VALUE!"}},{"$f":"'2. Conservation Measures'!DE23","v":{"$error":"#VALUE!"}},{"$f":"'2. Conservation Measures'!DF23","v":{"$error":"#VALUE!"}},{"$f":"'2. Conservation Measures'!DG23","v":{"$error":"#VALUE!"}},{"$f":"'2. Conservation Measures'!DH23","v":{"$error":"#VALUE!"}},{"$f":"'2. Conservation Measures'!DI23","v":{"$error":"#VALUE!"}},{"$f":"'2. Conservation Measures'!DJ23","v":{"$error":"#VALUE!"}},{"$f":"'2. Conservation Measures'!DK23","v":{"$error":"#VALUE!"}},{"$f":"'2. Conservation Measures'!DL23","v":{"$error":"#VALUE!"}},{"$f":"'2. Conservation Measures'!DM23","v":{"$error":"#VALUE!"}},{"$f":"'2. Conservation Measures'!DN23","v":{"$error":"#VALUE!"}},{"$f":"'2. Conservation Measures'!DO23","v":{"$error":"#VALUE!"}},{"$f":"'2. Conservation Measures'!DP23","v":{"$error":"#VALUE!"}},{"$f":"'2. Conservation Measures'!DQ23","v":{"$error":"#VALUE!"}},{"$f":"'2. Conservation Measures'!DR23","v":{"$error":"#VALUE!"}},{"$f":"'2. Conservation Measures'!DS23","v":{"$error":"#VALUE!"}},{"$f":"'2. Conservation Measures'!DT23","v":{"$error":"#VALUE!"}},{"$f":"'2. Conservation Measures'!DU23","v":{"$error":"#VALUE!"}},{"$f":"'2. Conservation Measures'!DV23","v":{"$error":"#VALUE!"}},{"$f":"'2. Conservation Measures'!DW23","v":{"$error":"#VALUE!"}},{"$f":"'2. Conservation Measures'!DX23","v":{"$error":"#VALUE!"}},{"$f":"'2. Conservation Measures'!DY23","v":{"$error":"#VALUE!"}},{"$f":"'2. Conservation Measures'!DZ23","v":{"$error":"#VALUE!"}},{"$f":"'2. Conservation Measures'!EA23","v":{"$error":"#VALUE!"}},{"$f":"'2. Conservation Measures'!EB23","v":{"$error":"#VALUE!"}},{"$f":"'2. Conservation Measures'!EC23","v":{"$error":"#VALUE!"}},{"$f":"'2. Conservation Measures'!ED23","v":{"$error":"#VALUE!"}},{"$f":"'2. Conservation Measures'!EE23","v":{"$error":"#VALUE!"}},{"$f":"'2. Conservation Measures'!EF23","v":{"$error":"#VALUE!"}},{"$f":"'2. Conservation Measures'!EG23","v":{"$error":"#VALUE!"}},{"$f":"'2. Conservation Measures'!EH23","v":{"$error":"#VALUE!"}},{"$f":"'2. Conservation Measures'!EI23","v":{"$error":"#VALUE!"}},{"$f":"'2. Conservation Measures'!EJ23","v":{"$error":"#VALUE!"}},{"$f":"'2. Conservation Measures'!EK23","v":{"$error":"#VALUE!"}},{"$f":"'2. Conservation Measures'!EL23","v":{"$error":"#VALUE!"}},{"$f":"'2. Conservation Measures'!EM23","v":{"$error":"#VALUE!"}},null,{"$f":"'2. Conservation Measures'!KP23","v":{"$error":"#N/A"}},{"$f":"'2. Conservation Measures'!KQ23","v":{"$error":"#N/A"}},{"$f":"'2. Conservation Measures'!KR23","v":{"$error":"#N/A"}},{"$f":"'2. Conservation Measures'!KS23","v":{"$error":"#N/A"}},{"$f":"'2. Conservation Measures'!KT23","v":{"$error":"#N/A"}},{"$f":"'2. Conservation Measures'!KU23","v":{"$error":"#N/A"}},{"$f":"'2. Conservation Measures'!KV23","v":{"$error":"#N/A"}},{"$f":"'2. Conservation Measures'!KW23","v":{"$error":"#N/A"}},{"$f":"'2. Conservation Measures'!KX23","v":{"$error":"#N/A"}},{"$f":"'2. Conservation Measures'!KY23","v":{"$error":"#N/A"}},{"$f":"'2. Conservation Measures'!KZ23","v":{"$error":"#N/A"}},{"$f":"'2. Conservation Measures'!LA23","v":{"$error":"#N/A"}},{"$f":"'2. Conservation Measures'!LB23","v":{"$error":"#N/A"}},{"$f":"'2. Conservation Measures'!LC23","v":{"$error":"#N/A"}},{"$f":"'2. Conservation Measures'!LD23","v":{"$error":"#N/A"}},{"$f":"'2. Conservation Measures'!LE23","v":{"$error":"#N/A"}},{"$f":"'2. Conservation Measures'!LF23","v":{"$error":"#N/A"}},{"$f":"'2. Conservation Measures'!LG23","v":{"$error":"#N/A"}},{"$f":"'2. Conservation Measures'!LH23","v":{"$error":"#N/A"}},{"$f":"'2. Conservation Measures'!LI23","v":{"$error":"#N/A"}},{"$f":"'2. Conservation Measures'!LJ23","v":{"$error":"#N/A"}},{"$f":"'2. Conservation Measures'!LK23","v":{"$error":"#N/A"}},{"$f":"'2. Conservation Measures'!LL23","v":{"$error":"#N/A"}},{"$f":"'2. Conservation Measures'!LM23","v":{"$error":"#N/A"}},{"$f":"'2. Conservation Measures'!LN23","v":{"$error":"#N/A"}},{"$f":"'2. Conservation Measures'!LO23","v":{"$error":"#N/A"}},{"$f":"'2. Conservation Measures'!LP23","v":{"$error":"#N/A"}},{"$f":"'2. Conservation Measures'!LQ23","v":{"$error":"#N/A"}},{"$f":"'2. Conservation Measures'!LR23","v":{"$error":"#N/A"}},{"$f":"'2. Conservation Measures'!LS23","v":{"$error":"#N/A"}},{"$f":"'2. Conservation Measures'!LT23","v":{"$error":"#N/A"}},{"$f":"'2. Conservation Measures'!LU23","v":{"$error":"#N/A"}},{"$f":"'2. Conservation Measures'!LV23","v":{"$error":"#N/A"}},{"$f":"'2. Conservation Measures'!LW23","v":{"$error":"#N/A"}},{"$f":"'2. Conservation Measures'!LX23","v":{"$error":"#N/A"}},{"$f":"'2. Conservation Measures'!LY23","v":{"$error":"#N/A"}},{"$f":"'2. Conservation Measures'!LZ23","v":{"$error":"#N/A"}},{"$f":"'2. Conservation Measures'!MA23","v":{"$error":"#N/A"}},{"$f":"'2. Conservation Measures'!MB23","v":{"$error":"#N/A"}},{"$f":"'2. Conservation Measures'!MC23","v":{"$error":"#N/A"}},{"$f":"'2. Conservation Measures'!MD23","v":{"$error":"#N/A"}},{"$f":"'2. Conservation Measures'!ME23","v":{"$error":"#N/A"}},{"$f":"'2. Conservation Measures'!MF23","v":{"$error":"#N/A"}},{"$f":"'2. Conservation Measures'!MG23","v":{"$error":"#N/A"}},{"$f":"'2. Conservation Measures'!MH23","v":{"$error":"#N/A"}},{"$f":"'2. Conservation Measures'!MI23","v":{"$error":"#N/A"}},{"$f":"'2. Conservation Measures'!MJ23","v":{"$error":"#N/A"}},{"$f":"'2. Conservation Measures'!MK23","v":{"$error":"#N/A"}},{"$f":"'2. Conservation Measures'!ML23","v":{"$error":"#N/A"}},{"$f":"'2. Conservation Measures'!MM23","v":{"$error":"#N/A"}},{"$f":"'2. Conservation Measures'!MN23","v":{"$error":"#N/A"}},null,{"$f":"'2. Conservation Measures'!EP23","v":{"$error":"#N/A"}},{"$f":"'2. Conservation Measures'!EQ23","v":{"$error":"#N/A"}},{"$f":"'2. Conservation Measures'!ER23","v":{"$error":"#N/A"}},{"$f":"'2. Conservation Measures'!ES23","v":{"$error":"#N/A"}},{"$f":"'2. Conservation Measures'!ET23","v":{"$error":"#N/A"}},{"$f":"'2. Conservation Measures'!EU23","v":{"$error":"#N/A"}},{"$f":"'2. Conservation Measures'!EV23","v":{"$error":"#N/A"}},{"$f":"'2. Conservation Measures'!EW23","v":{"$error":"#N/A"}},{"$f":"'2. Conservation Measures'!EX23","v":{"$error":"#N/A"}},{"$f":"'2. Conservation Measures'!EY23","v":{"$error":"#N/A"}},{"$f":"'2. Conservation Measures'!EZ23","v":{"$error":"#N/A"}},{"$f":"'2. Conservation Measures'!FA23","v":{"$error":"#N/A"}},{"$f":"'2. Conservation Measures'!FB23","v":{"$error":"#N/A"}},{"$f":"'2. Conservation Measures'!FC23","v":{"$error":"#N/A"}},{"$f":"'2. Conservation Measures'!FD23","v":{"$error":"#N/A"}},{"$f":"'2. Conservation Measures'!FE23","v":{"$error":"#N/A"}},{"$f":"'2. Conservation Measures'!FF23","v":{"$error":"#N/A"}},{"$f":"'2. Conservation Measures'!FG23","v":{"$error":"#N/A"}},{"$f":"'2. Conservation Measures'!FH23","v":{"$error":"#N/A"}},{"$f":"'2. Conservation Measures'!FI23","v":{"$error":"#N/A"}},{"$f":"'2. Conservation Measures'!FJ23","v":{"$error":"#N/A"}},{"$f":"'2. Conservation Measures'!FK23","v":{"$error":"#N/A"}},{"$f":"'2. Conservation Measures'!FL23","v":{"$error":"#N/A"}},{"$f":"'2. Conservation Measures'!FM23","v":{"$error":"#N/A"}},{"$f":"'2. Conservation Measures'!FN23","v":{"$error":"#N/A"}},{"$f":"'2. Conservation Measures'!FO23","v":{"$error":"#N/A"}},{"$f":"'2. Conservation Measures'!FP23","v":{"$error":"#N/A"}},{"$f":"'2. Conservation Measures'!FQ23","v":{"$error":"#N/A"}},{"$f":"'2. Conservation Measures'!FR23","v":{"$error":"#N/A"}},{"$f":"'2. Conservation Measures'!FS23","v":{"$error":"#N/A"}},{"$f":"'2. Conservation Measures'!FT23","v":{"$error":"#N/A"}},{"$f":"'2. Conservation Measures'!FU23","v":{"$error":"#N/A"}},{"$f":"'2. Conservation Measures'!FV23","v":{"$error":"#N/A"}},{"$f":"'2. Conservation Measures'!FW23","v":{"$error":"#N/A"}},{"$f":"'2. Conservation Measures'!FX23","v":{"$error":"#N/A"}},{"$f":"'2. Conservation Measures'!FY23","v":{"$error":"#N/A"}},{"$f":"'2. Conservation Measures'!FZ23","v":{"$error":"#N/A"}},{"$f":"'2. Conservation Measures'!GA23","v":{"$error":"#N/A"}},{"$f":"'2. Conservation Measures'!GB23","v":{"$error":"#N/A"}},{"$f":"'2. Conservation Measures'!GC23","v":{"$error":"#N/A"}},{"$f":"'2. Conservation Measures'!GD23","v":{"$error":"#N/A"}},{"$f":"'2. Conservation Measures'!GE23","v":{"$error":"#N/A"}},{"$f":"'2. Conservation Measures'!GF23","v":{"$error":"#N/A"}},{"$f":"'2. Conservation Measures'!GG23","v":{"$error":"#N/A"}},{"$f":"'2. Conservation Measures'!GH23","v":{"$error":"#N/A"}},{"$f":"'2. Conservation Measures'!GI23","v":{"$error":"#N/A"}},{"$f":"'2. Conservation Measures'!GJ23","v":{"$error":"#N/A"}},{"$f":"'2. Conservation Measures'!GK23","v":{"$error":"#N/A"}},{"$f":"'2. Conservation Measures'!GL23","v":{"$error":"#N/A"}},{"$f":"'2. Conservation Measures'!GM23","v":{"$error":"#N/A"}},{"$f":"'2. Conservation Measures'!GN23","v":{"$error":"#N/A"}},null,{"$f":"'2. Conservation Measures'!GP23","v":{"$error":"#N/A"}},{"$f":"'2. Conservation Measures'!GQ23","v":{"$error":"#N/A"}},{"$f":"'2. Conservation Measures'!GR23","v":{"$error":"#N/A"}},{"$f":"'2. Conservation Measures'!GS23","v":{"$error":"#N/A"}},{"$f":"'2. Conservation Measures'!GT23","v":{"$error":"#N/A"}},{"$f":"'2. Conservation Measures'!GU23","v":{"$error":"#N/A"}},{"$f":"'2. Conservation Measures'!GV23","v":{"$error":"#N/A"}},{"$f":"'2. Conservation Measures'!GW23","v":{"$error":"#N/A"}},{"$f":"'2. Conservation Measures'!GX23","v":{"$error":"#N/A"}},{"$f":"'2. Conservation Measures'!GY23","v":{"$error":"#N/A"}},{"$f":"'2. Conservation Measures'!GZ23","v":{"$error":"#N/A"}},{"$f":"'2. Conservation Measures'!HA23","v":{"$error":"#N/A"}},{"$f":"'2. Conservation Measures'!HB23","v":{"$error":"#N/A"}},{"$f":"'2. Conservation Measures'!HC23","v":{"$error":"#N/A"}},{"$f":"'2. Conservation Measures'!HD23","v":{"$error":"#N/A"}},{"$f":"'2. Conservation Measures'!HE23","v":{"$error":"#N/A"}},{"$f":"'2. Conservation Measures'!HF23","v":{"$error":"#N/A"}},{"$f":"'2. Conservation Measures'!HG23","v":{"$error":"#N/A"}},{"$f":"'2. Conservation Measures'!HH23","v":{"$error":"#N/A"}},{"$f":"'2. Conservation Measures'!HI23","v":{"$error":"#N/A"}},{"$f":"'2. Conservation Measures'!HJ23","v":{"$error":"#N/A"}},{"$f":"'2. Conservation Measures'!HK23","v":{"$error":"#N/A"}},{"$f":"'2. Conservation Measures'!HL23","v":{"$error":"#N/A"}},{"$f":"'2. Conservation Measures'!HM23","v":{"$error":"#N/A"}},{"$f":"'2. Conservation Measures'!HN23","v":{"$error":"#N/A"}},{"$f":"'2. Conservation Measures'!HO23","v":{"$error":"#N/A"}},{"$f":"'2. Conservation Measures'!HP23","v":{"$error":"#N/A"}},{"$f":"'2. Conservation Measures'!HQ23","v":{"$error":"#N/A"}},{"$f":"'2. Conservation Measures'!HR23","v":{"$error":"#N/A"}},{"$f":"'2. Conservation Measures'!HS23","v":{"$error":"#N/A"}},{"$f":"'2. Conservation Measures'!HT23","v":{"$error":"#N/A"}},{"$f":"'2. Conservation Measures'!HU23","v":{"$error":"#N/A"}},{"$f":"'2. Conservation Measures'!HV23","v":{"$error":"#N/A"}},{"$f":"'2. Conservation Measures'!HW23","v":{"$error":"#N/A"}},{"$f":"'2. Conservation Measures'!HX23","v":{"$error":"#N/A"}},{"$f":"'2. Conservation Measures'!HY23","v":{"$error":"#N/A"}},{"$f":"'2. Conservation Measures'!HZ23","v":{"$error":"#N/A"}},{"$f":"'2. Conservation Measures'!IA23","v":{"$error":"#N/A"}},{"$f":"'2. Conservation Measures'!IB23","v":{"$error":"#N/A"}},{"$f":"'2. Conservation Measures'!IC23","v":{"$error":"#N/A"}},{"$f":"'2. Conservation Measures'!ID23","v":{"$error":"#N/A"}},{"$f":"'2. Conservation Measures'!IE23","v":{"$error":"#N/A"}},{"$f":"'2. Conservation Measures'!IF23","v":{"$error":"#N/A"}},{"$f":"'2. Conservation Measures'!IG23","v":{"$error":"#N/A"}},{"$f":"'2. Conservation Measures'!IH23","v":{"$error":"#N/A"}},{"$f":"'2. Conservation Measures'!II23","v":{"$error":"#N/A"}},{"$f":"'2. Conservation Measures'!IJ23","v":{"$error":"#N/A"}},{"$f":"'2. Conservation Measures'!IK23","v":{"$error":"#N/A"}},{"$f":"'2. Conservation Measures'!IL23","v":{"$error":"#N/A"}},{"$f":"'2. Conservation Measures'!IM23","v":{"$error":"#N/A"}},{"$f":"'2. Conservation Measures'!IN23","v":{"$error":"#N/A"}},null,{"$f":"'2. Conservation Measures'!IP23","v":{"$error":"#VALUE!"}},{"$f":"'2. Conservation Measures'!IQ23","v":{"$error":"#VALUE!"}},{"$f":"'2. Conservation Measures'!IR23","v":{"$error":"#VALUE!"}},{"$f":"'2. Conservation Measures'!IS23","v":{"$error":"#VALUE!"}},{"$f":"'2. Conservation Measures'!IT23","v":{"$error":"#VALUE!"}},{"$f":"'2. Conservation Measures'!IU23","v":{"$error":"#VALUE!"}},{"$f":"'2. Conservation Measures'!IV23","v":{"$error":"#VALUE!"}},{"$f":"'2. Conservation Measures'!IW23","v":{"$error":"#VALUE!"}},{"$f":"'2. Conservation Measures'!IX23","v":{"$error":"#VALUE!"}},{"$f":"'2. Conservation Measures'!IY23","v":{"$error":"#VALUE!"}},{"$f":"'2. Conservation Measures'!IZ23","v":{"$error":"#VALUE!"}},{"$f":"'2. Conservation Measures'!JA23","v":{"$error":"#VALUE!"}},{"$f":"'2. Conservation Measures'!JB23","v":{"$error":"#VALUE!"}},{"$f":"'2. Conservation Measures'!JC23","v":{"$error":"#VALUE!"}},{"$f":"'2. Conservation Measures'!JD23","v":{"$error":"#VALUE!"}},{"$f":"'2. Conservation Measures'!JE23","v":{"$error":"#VALUE!"}},{"$f":"'2. Conservation Measures'!JF23","v":{"$error":"#VALUE!"}},{"$f":"'2. Conservation Measures'!JG23","v":{"$error":"#VALUE!"}},{"$f":"'2. Conservation Measures'!JH23","v":{"$error":"#VALUE!"}},{"$f":"'2. Conservation Measures'!JI23","v":{"$error":"#VALUE!"}},{"$f":"'2. Conservation Measures'!JJ23","v":{"$error":"#VALUE!"}},{"$f":"'2. Conservation Measures'!JK23","v":{"$error":"#VALUE!"}},{"$f":"'2. Conservation Measures'!JL23","v":{"$error":"#VALUE!"}},{"$f":"'2. Conservation Measures'!JM23","v":{"$error":"#VALUE!"}},{"$f":"'2. Conservation Measures'!JN23","v":{"$error":"#VALUE!"}},{"$f":"'2. Conservation Measures'!JO23","v":{"$error":"#VALUE!"}},{"$f":"'2. Conservation Measures'!JP23","v":{"$error":"#VALUE!"}},{"$f":"'2. Conservation Measures'!JQ23","v":{"$error":"#VALUE!"}},{"$f":"'2. Conservation Measures'!JR23","v":{"$error":"#VALUE!"}},{"$f":"'2. Conservation Measures'!JS23","v":{"$error":"#VALUE!"}},{"$f":"'2. Conservation Measures'!JT23","v":{"$error":"#VALUE!"}},{"$f":"'2. Conservation Measures'!JU23","v":{"$error":"#VALUE!"}},{"$f":"'2. Conservation Measures'!JV23","v":{"$error":"#VALUE!"}},{"$f":"'2. Conservation Measures'!JW23","v":{"$error":"#VALUE!"}},{"$f":"'2. Conservation Measures'!JX23","v":{"$error":"#VALUE!"}},{"$f":"'2. Conservation Measures'!JY23","v":{"$error":"#VALUE!"}},{"$f":"'2. Conservation Measures'!JZ23","v":{"$error":"#VALUE!"}},{"$f":"'2. Conservation Measures'!KA23","v":{"$error":"#VALUE!"}},{"$f":"'2. Conservation Measures'!KB23","v":{"$error":"#VALUE!"}},{"$f":"'2. Conservation Measures'!KC23","v":{"$error":"#VALUE!"}},{"$f":"'2. Conservation Measures'!KD23","v":{"$error":"#VALUE!"}},{"$f":"'2. Conservation Measures'!KE23","v":{"$error":"#VALUE!"}},{"$f":"'2. Conservation Measures'!KF23","v":{"$error":"#VALUE!"}},{"$f":"'2. Conservation Measures'!KG23","v":{"$error":"#VALUE!"}},{"$f":"'2. Conservation Measures'!KH23","v":{"$error":"#VALUE!"}},{"$f":"'2. Conservation Measures'!KI23","v":{"$error":"#VALUE!"}},{"$f":"'2. Conservation Measures'!KJ23","v":{"$error":"#VALUE!"}},{"$f":"'2. Conservation Measures'!KK23","v":{"$error":"#VALUE!"}},{"$f":"'2. Conservation Measures'!KL23","v":{"$error":"#VALUE!"}},{"$f":"'2. Conservation Measures'!KM23","v":{"$error":"#VALUE!"}},{"$f":"'2. Conservation Measures'!KN23","v":{"$error":"#VALUE!"}}]
[null,{"$f":"'2. Conservation Measures'!B24","v":"PRE-SF-02"},{"$f":"'2. Conservation Measures'!C24","v":{"$error":"#N/A"}},{"$f":"'2. Conservation Measures'!D24","v":"N"},null,{"$f":"'2. Conservation Measures'!AA24","v":{"$error":"#N/A"}},null,{"$f":"'2. Conservation Measures'!AO24","v":0},{"$f":"'2. Conservation Measures'!AP24","v":0},{"$f":"'2. Conservation Measures'!AQ24","v":0},{"$f":"'2. Conservation Measures'!AR24","v":0},{"$f":"'2. Conservation Measures'!AS24","v":0},{"$f":"'2. Conservation Measures'!AT24","v":0},{"$f":"'2. Conservation Measures'!AU24","v":0},{"$f":"'2. Conservation Measures'!AV24","v":0},{"$f":"'2. Conservation Measures'!AW24","v":0},{"$f":"'2. Conservation Measures'!AX24","v":0},{"$f":"'2. Conservation Measures'!AY24","v":0},{"$f":"'2. Conservation Measures'!AZ24","v":0},{"$f":"'2. Conservation Measures'!BA24","v":0},{"$f":"'2. Conservation Measures'!BB24","v":0},{"$f":"'2. Conservation Measures'!BC24","v":0},{"$f":"'2. Conservation Measures'!BD24","v":0},{"$f":"'2. Conservation Measures'!BE24","v":0},{"$f":"'2. Conservation Measures'!BF24","v":0},{"$f":"'2. Conservation Measures'!BG24","v":0},{"$f":"'2. Conservation Measures'!BH24","v":0},{"$f":"'2. Conservation Measures'!BI24","v":0},{"$f":"'2. Conservation Measures'!BJ24","v":0},{"$f":"'2. Conservation Measures'!BK24","v":0},{"$f":"'2. Conservation Measures'!BL24","v":0},{"$f":"'2. Conservation Measures'!BM24","v":0},{"$f":"'2. Conservation Measures'!BN24","v":0},{"$f":"'2. Conservation Measures'!BO24","v":0},{"$f":"'2. Conservation Measures'!BP24","v":0},{"$f":"'2. Conservation Measures'!BQ24","v":0},{"$f":"'2. Conservation Measures'!BR24","v":0},{"$f":"'2. Conservation Measures'!BS24","v":0},{"$f":"'2. Conservation Measures'!BT24","v":0},{"$f":"'2. Conservation Measures'!BU24","v":0},{"$f":"'2. Conservation Measures'!BV24","v":0},{"$f":"'2. Conservation Measures'!BW24","v":0},{"$f":"'2. Conservation Measures'!BX24","v":0},{"$f":"'2. Conservation Measures'!BY24","v":0},{"$f":"'2. Conservation Measures'!BZ24","v":0},{"$f":"'2. Conservation Measures'!CA24","v":0},{"$f":"'2. Conservation Measures'!CB24","v":0},{"$f":"'2. Conservation Measures'!CC24","v":0},{"$f":"'2. Conservation Measures'!CD24","v":0},{"$f":"'2. Conservation Measures'!CE24","v":0},{"$f":"'2. Conservation Measures'!CF24","v":0},{"$f":"'2. Conservation Measures'!CG24","v":0},{"$f":"'2. Conservation Measures'!CH24","v":0},{"$f":"'2. Conservation Measures'!CI24","v":0},{"$f":"'2. Conservation Measures'!CJ24","v":0},{"$f":"'2. Conservation Measures'!CK24","v":0},{"$f":"'2. Conservation Measures'!CL24","v":0},{"$f":"'2. Conservation Measures'!CM24","v":0},null,{"$f":"'2. Conservation Measures'!CO24","v":{"$error":"#VALUE!"}},{"$f":"'2. Conservation Measures'!CP24","v":{"$error":"#VALUE!"}},{"$f":"'2. Conservation Measures'!CQ24","v":{"$error":"#VALUE!"}},{"$f":"'2. Conservation Measures'!CR24","v":{"$error":"#VALUE!"}},{"$f":"'2. Conservation Measures'!CS24","v":{"$error":"#VALUE!"}},{"$f":"'2. Conservation Measures'!CT24","v":{"$error":"#VALUE!"}},{"$f":"'2. Conservation Measures'!CU24","v":{"$error":"#VALUE!"}},{"$f":"'2. Conservation Measures'!CV24","v":{"$error":"#VALUE!"}},{"$f":"'2. Conservation Measures'!CW24","v":{"$error":"#VALUE!"}},{"$f":"'2. Conservation Measures'!CX24","v":{"$error":"#VALUE!"}},{"$f":"'2. Conservation Measures'!CY24","v":{"$error":"#VALUE!"}},{"$f":"'2. Conservation Measures'!CZ24","v":{"$error":"#VALUE!"}},{"$f":"'2. Conservation Measures'!DA24","v":{"$error":"#VALUE!"}},{"$f":"'2. Conservation Measures'!DB24","v":{"$error":"#VALUE!"}},{"$f":"'2. Conservation Measures'!DC24","v":{"$error":"#VALUE!"}},{"$f":"'2. Conservation Measures'!DD24","v":{"$error":"#VALUE!"}},{"$f":"'2. Conservation Measures'!DE24","v":{"$error":"#VALUE!"}},{"$f":"'2. Conservation Measures'!DF24","v":{"$error":"#VALUE!"}},{"$f":"'2. Conservation Measures'!DG24","v":{"$error":"#VALUE!"}},{"$f":"'2. Conservation Measures'!DH24","v":{"$error":"#VALUE!"}},{"$f":"'2. Conservation Measures'!DI24","v":{"$error":"#VALUE!"}},{"$f":"'2. Conservation Measures'!DJ24","v":{"$error":"#VALUE!"}},{"$f":"'2. Conservation Measures'!DK24","v":{"$error":"#VALUE!"}},{"$f":"'2. Conservation Measures'!DL24","v":{"$error":"#VALUE!"}},{"$f":"'2. Conservation Measures'!DM24","v":{"$error":"#VALUE!"}},{"$f":"'2. Conservation Measures'!DN24","v":{"$error":"#VALUE!"}},{"$f":"'2. Conservation Measures'!DO24","v":{"$error":"#VALUE!"}},{"$f":"'2. Conservation Measures'!DP24","v":{"$error":"#VALUE!"}},{"$f":"'2. Conservation Measures'!DQ24","v":{"$error":"#VALUE!"}},{"$f":"'2. Conservation Measures'!DR24","v":{"$error":"#VALUE!"}},{"$f":"'2. Conservation Measures'!DS24","v":{"$error":"#VALUE!"}},{"$f":"'2. Conservation Measures'!DT24","v":{"$error":"#VALUE!"}},{"$f":"'2. Conservation Measures'!DU24","v":{"$error":"#VALUE!"}},{"$f":"'2. Conservation Measures'!DV24","v":{"$error":"#VALUE!"}},{"$f":"'2. Conservation Measures'!DW24","v":{"$error":"#VALUE!"}},{"$f":"'2. Conservation Measures'!DX24","v":{"$error":"#VALUE!"}},{"$f":"'2. Conservation Measures'!DY24","v":{"$error":"#VALUE!"}},{"$f":"'2. Conservation Measures'!DZ24","v":{"$error":"#VALUE!"}},{"$f":"'2. Conservation Measures'!EA24","v":{"$error":"#VALUE!"}},{"$f":"'2. Conservation Measures'!EB24","v":{"$error":"#VALUE!"}},{"$f":"'2. Conservation Measures'!EC24","v":{"$error":"#VALUE!"}},{"$f":"'2. Conservation Measures'!ED24","v":{"$error":"#VALUE!"}},{"$f":"'2. Conservation Measures'!EE24","v":{"$error":"#VALUE!"}},{"$f":"'2. Conservation Measures'!EF24","v":{"$error":"#VALUE!"}},{"$f":"'2. Conservation Measures'!EG24","v":{"$error":"#VALUE!"}},{"$f":"'2. Conservation Measures'!EH24","v":{"$error":"#VALUE!"}},{"$f":"'2. Conservation Measures'!EI24","v":{"$error":"#VALUE!"}},{"$f":"'2. Conservation Measures'!EJ24","v":{"$error":"#VALUE!"}},{"$f":"'2. Conservation Measures'!EK24","v":{"$error":"#VALUE!"}},{"$f":"'2. Conservation Measures'!EL24","v":{"$error":"#VALUE!"}},{"$f":"'2. Conservation Measures'!EM24","v":{"$error":"#VALUE!"}},null,{"$f":"'2. Conservation Measures'!KP24","v":{"$error":"#N/A"}},{"$f":"'2. Conservation Measures'!KQ24","v":{"$error":"#N/A"}},{"$f":"'2. Conservation Measures'!KR24","v":{"$error":"#N/A"}},{"$f":"'2. Conservation Measures'!KS24","v":{"$error":"#N/A"}},{"$f":"'2. Conservation Measures'!KT24","v":{"$error":"#N/A"}},{"$f":"'2. Conservation Measures'!KU24","v":{"$error":"#N/A"}},{"$f":"'2. Conservation Measures'!KV24","v":{"$error":"#N/A"}},{"$f":"'2. Conservation Measures'!KW24","v":{"$error":"#N/A"}},{"$f":"'2. Conservation Measures'!KX24","v":{"$error":"#N/A"}},{"$f":"'2. Conservation Measures'!KY24","v":{"$error":"#N/A"}},{"$f":"'2. Conservation Measures'!KZ24","v":{"$error":"#N/A"}},{"$f":"'2. Conservation Measures'!LA24","v":{"$error":"#N/A"}},{"$f":"'2. Conservation Measures'!LB24","v":{"$error":"#N/A"}},{"$f":"'2. Conservation Measures'!LC24","v":{"$error":"#N/A"}},{"$f":"'2. Conservation Measures'!LD24","v":{"$error":"#N/A"}},{"$f":"'2. Conservation Measures'!LE24","v":{"$error":"#N/A"}},{"$f":"'2. Conservation Measures'!LF24","v":{"$error":"#N/A"}},{"$f":"'2. Conservation Measures'!LG24","v":{"$error":"#N/A"}},{"$f":"'2. Conservation Measures'!LH24","v":{"$error":"#N/A"}},{"$f":"'2. Conservation Measures'!LI24","v":{"$error":"#N/A"}},{"$f":"'2. Conservation Measures'!LJ24","v":{"$error":"#N/A"}},{"$f":"'2. Conservation Measures'!LK24","v":{"$error":"#N/A"}},{"$f":"'2. Conservation Measures'!LL24","v":{"$error":"#N/A"}},{"$f":"'2. Conservation Measures'!LM24","v":{"$error":"#N/A"}},{"$f":"'2. Conservation Measures'!LN24","v":{"$error":"#N/A"}},{"$f":"'2. Conservation Measures'!LO24","v":{"$error":"#N/A"}},{"$f":"'2. Conservation Measures'!LP24","v":{"$error":"#N/A"}},{"$f":"'2. Conservation Measures'!LQ24","v":{"$error":"#N/A"}},{"$f":"'2. Conservation Measures'!LR24","v":{"$error":"#N/A"}},{"$f":"'2. Conservation Measures'!LS24","v":{"$error":"#N/A"}},{"$f":"'2. Conservation Measures'!LT24","v":{"$error":"#N/A"}},{"$f":"'2. Conservation Measures'!LU24","v":{"$error":"#N/A"}},{"$f":"'2. Conservation Measures'!LV24","v":{"$error":"#N/A"}},{"$f":"'2. Conservation Measures'!LW24","v":{"$error":"#N/A"}},{"$f":"'2. Conservation Measures'!LX24","v":{"$error":"#N/A"}},{"$f":"'2. Conservation Measures'!LY24","v":{"$error":"#N/A"}},{"$f":"'2. Conservation Measures'!LZ24","v":{"$error":"#N/A"}},{"$f":"'2. Conservation Measures'!MA24","v":{"$error":"#N/A"}},{"$f":"'2. Conservation Measures'!MB24","v":{"$error":"#N/A"}},{"$f":"'2. Conservation Measures'!MC24","v":{"$error":"#N/A"}},{"$f":"'2. Conservation Measures'!MD24","v":{"$error":"#N/A"}},{"$f":"'2. Conservation Measures'!ME24","v":{"$error":"#N/A"}},{"$f":"'2. Conservation Measures'!MF24","v":{"$error":"#N/A"}},{"$f":"'2. Conservation Measures'!MG24","v":{"$error":"#N/A"}},{"$f":"'2. Conservation Measures'!MH24","v":{"$error":"#N/A"}},{"$f":"'2. Conservation Measures'!MI24","v":{"$error":"#N/A"}},{"$f":"'2. Conservation Measures'!MJ24","v":{"$error":"#N/A"}},{"$f":"'2. Conservation Measures'!MK24","v":{"$error":"#N/A"}},{"$f":"'2. Conservation Measures'!ML24","v":{"$error":"#N/A"}},{"$f":"'2. Conservation Measures'!MM24","v":{"$error":"#N/A"}},{"$f":"'2. Conservation Measures'!MN24","v":{"$error":"#N/A"}},null,{"$f":"'2. Conservation Measures'!EP24","v":{"$error":"#N/A"}},{"$f":"'2. Conservation Measures'!EQ24","v":{"$error":"#N/A"}},{"$f":"'2. Conservation Measures'!ER24","v":{"$error":"#N/A"}},{"$f":"'2. Conservation Measures'!ES24","v":{"$error":"#N/A"}},{"$f":"'2. Conservation Measures'!ET24","v":{"$error":"#N/A"}},{"$f":"'2. Conservation Measures'!EU24","v":{"$error":"#N/A"}},{"$f":"'2. Conservation Measures'!EV24","v":{"$error":"#N/A"}},{"$f":"'2. Conservation Measures'!EW24","v":{"$error":"#N/A"}},{"$f":"'2. Conservation Measures'!EX24","v":{"$error":"#N/A"}},{"$f":"'2. Conservation Measures'!EY24","v":{"$error":"#N/A"}},{"$f":"'2. Conservation Measures'!EZ24","v":{"$error":"#N/A"}},{"$f":"'2. Conservation Measures'!FA24","v":{"$error":"#N/A"}},{"$f":"'2. Conservation Measures'!FB24","v":{"$error":"#N/A"}},{"$f":"'2. Conservation Measures'!FC24","v":{"$error":"#N/A"}},{"$f":"'2. Conservation Measures'!FD24","v":{"$error":"#N/A"}},{"$f":"'2. Conservation Measures'!FE24","v":{"$error":"#N/A"}},{"$f":"'2. Conservation Measures'!FF24","v":{"$error":"#N/A"}},{"$f":"'2. Conservation Measures'!FG24","v":{"$error":"#N/A"}},{"$f":"'2. Conservation Measures'!FH24","v":{"$error":"#N/A"}},{"$f":"'2. Conservation Measures'!FI24","v":{"$error":"#N/A"}},{"$f":"'2. Conservation Measures'!FJ24","v":{"$error":"#N/A"}},{"$f":"'2. Conservation Measures'!FK24","v":{"$error":"#N/A"}},{"$f":"'2. Conservation Measures'!FL24","v":{"$error":"#N/A"}},{"$f":"'2. Conservation Measures'!FM24","v":{"$error":"#N/A"}},{"$f":"'2. Conservation Measures'!FN24","v":{"$error":"#N/A"}},{"$f":"'2. Conservation Measures'!FO24","v":{"$error":"#N/A"}},{"$f":"'2. Conservation Measures'!FP24","v":{"$error":"#N/A"}},{"$f":"'2. Conservation Measures'!FQ24","v":{"$error":"#N/A"}},{"$f":"'2. Conservation Measures'!FR24","v":{"$error":"#N/A"}},{"$f":"'2. Conservation Measures'!FS24","v":{"$error":"#N/A"}},{"$f":"'2. Conservation Measures'!FT24","v":{"$error":"#N/A"}},{"$f":"'2. Conservation Measures'!FU24","v":{"$error":"#N/A"}},{"$f":"'2. Conservation Measures'!FV24","v":{"$error":"#N/A"}},{"$f":"'2. Conservation Measures'!FW24","v":{"$error":"#N/A"}},{"$f":"'2. Conservation Measures'!FX24","v":{"$error":"#N/A"}},{"$f":"'2. Conservation Measures'!FY24","v":{"$error":"#N/A"}},{"$f":"'2. Conservation Measures'!FZ24","v":{"$error":"#N/A"}},{"$f":"'2. Conservation Measures'!GA24","v":{"$error":"#N/A"}},{"$f":"'2. Conservation Measures'!GB24","v":{"$error":"#N/A"}},{"$f":"'2. Conservation Measures'!GC24","v":{"$error":"#N/A"}},{"$f":"'2. Conservation Measures'!GD24","v":{"$error":"#N/A"}},{"$f":"'2. Conservation Measures'!GE24","v":{"$error":"#N/A"}},{"$f":"'2. Conservation Measures'!GF24","v":{"$error":"#N/A"}},{"$f":"'2. Conservation Measures'!GG24","v":{"$error":"#N/A"}},{"$f":"'2. Conservation Measures'!GH24","v":{"$error":"#N/A"}},{"$f":"'2. Conservation Measures'!GI24","v":{"$error":"#N/A"}},{"$f":"'2. Conservation Measures'!GJ24","v":{"$error":"#N/A"}},{"$f":"'2. Conservation Measures'!GK24","v":{"$error":"#N/A"}},{"$f":"'2. Conservation Measures'!GL24","v":{"$error":"#N/A"}},{"$f":"'2. Conservation Measures'!GM24","v":{"$error":"#N/A"}},{"$f":"'2. Conservation Measures'!GN24","v":{"$error":"#N/A"}},null,{"$f":"'2. Conservation Measures'!GP24","v":{"$error":"#N/A"}},{"$f":"'2. Conservation Measures'!GQ24","v":{"$error":"#N/A"}},{"$f":"'2. Conservation Measures'!GR24","v":{"$error":"#N/A"}},{"$f":"'2. Conservation Measures'!GS24","v":{"$error":"#N/A"}},{"$f":"'2. Conservation Measures'!GT24","v":{"$error":"#N/A"}},{"$f":"'2. Conservation Measures'!GU24","v":{"$error":"#N/A"}},{"$f":"'2. Conservation Measures'!GV24","v":{"$error":"#N/A"}},{"$f":"'2. Conservation Measures'!GW24","v":{"$error":"#N/A"}},{"$f":"'2. Conservation Measures'!GX24","v":{"$error":"#N/A"}},{"$f":"'2. Conservation Measures'!GY24","v":{"$error":"#N/A"}},{"$f":"'2. Conservation Measures'!GZ24","v":{"$error":"#N/A"}},{"$f":"'2. Conservation Measures'!HA24","v":{"$error":"#N/A"}},{"$f":"'2. Conservation Measures'!HB24","v":{"$error":"#N/A"}},{"$f":"'2. Conservation Measures'!HC24","v":{"$error":"#N/A"}},{"$f":"'2. Conservation Measures'!HD24","v":{"$error":"#N/A"}},{"$f":"'2. Conservation Measures'!HE24","v":{"$error":"#N/A"}},{"$f":"'2. Conservation Measures'!HF24","v":{"$error":"#N/A"}},{"$f":"'2. Conservation Measures'!HG24","v":{"$error":"#N/A"}},{"$f":"'2. Conservation Measures'!HH24","v":{"$error":"#N/A"}},{"$f":"'2. Conservation Measures'!HI24","v":{"$error":"#N/A"}},{"$f":"'2. Conservation Measures'!HJ24","v":{"$error":"#N/A"}},{"$f":"'2. Conservation Measures'!HK24","v":{"$error":"#N/A"}},{"$f":"'2. Conservation Measures'!HL24","v":{"$error":"#N/A"}},{"$f":"'2. Conservation Measures'!HM24","v":{"$error":"#N/A"}},{"$f":"'2. Conservation Measures'!HN24","v":{"$error":"#N/A"}},{"$f":"'2. Conservation Measures'!HO24","v":{"$error":"#N/A"}},{"$f":"'2. Conservation Measures'!HP24","v":{"$error":"#N/A"}},{"$f":"'2. Conservation Measures'!HQ24","v":{"$error":"#N/A"}},{"$f":"'2. Conservation Measures'!HR24","v":{"$error":"#N/A"}},{"$f":"'2. Conservation Measures'!HS24","v":{"$error":"#N/A"}},{"$f":"'2. Conservation Measures'!HT24","v":{"$error":"#N/A"}},{"$f":"'2. Conservation Measures'!HU24","v":{"$error":"#N/A"}},{"$f":"'2. Conservation Measures'!HV24","v":{"$error":"#N/A"}},{"$f":"'2. Conservation Measures'!HW24","v":{"$error":"#N/A"}},{"$f":"'2. Conservation Measures'!HX24","v":{"$error":"#N/A"}},{"$f":"'2. Conservation Measures'!HY24","v":{"$error":"#N/A"}},{"$f":"'2. Conservation Measures'!HZ24","v":{"$error":"#N/A"}},{"$f":"'2. Conservation Measures'!IA24","v":{"$error":"#N/A"}},{"$f":"'2. Conservation Measures'!IB24","v":{"$error":"#N/A"}},{"$f":"'2. Conservation Measures'!IC24","v":{"$error":"#N/A"}},{"$f":"'2. Conservation Measures'!ID24","v":{"$error":"#N/A"}},{"$f":"'2. Conservation Measures'!IE24","v":{"$error":"#N/A"}},{"$f":"'2. Conservation Measures'!IF24","v":{"$error":"#N/A"}},{"$f":"'2. Conservation Measures'!IG24","v":{"$error":"#N/A"}},{"$f":"'2. Conservation Measures'!IH24","v":{"$error":"#N/A"}},{"$f":"'2. Conservation Measures'!II24","v":{"$error":"#N/A"}},{"$f":"'2. Conservation Measures'!IJ24","v":{"$error":"#N/A"}},{"$f":"'2. Conservation Measures'!IK24","v":{"$error":"#N/A"}},{"$f":"'2. Conservation Measures'!IL24","v":{"$error":"#N/A"}},{"$f":"'2. Conservation Measures'!IM24","v":{"$error":"#N/A"}},{"$f":"'2. Conservation Measures'!IN24","v":{"$error":"#N/A"}},null,{"$f":"'2. Conservation Measures'!IP24","v":{"$error":"#VALUE!"}},{"$f":"'2. Conservation Measures'!IQ24","v":{"$error":"#VALUE!"}},{"$f":"'2. Conservation Measures'!IR24","v":{"$error":"#VALUE!"}},{"$f":"'2. Conservation Measures'!IS24","v":{"$error":"#VALUE!"}},{"$f":"'2. Conservation Measures'!IT24","v":{"$error":"#VALUE!"}},{"$f":"'2. Conservation Measures'!IU24","v":{"$error":"#VALUE!"}},{"$f":"'2. Conservation Measures'!IV24","v":{"$error":"#VALUE!"}},{"$f":"'2. Conservation Measures'!IW24","v":{"$error":"#VALUE!"}},{"$f":"'2. Conservation Measures'!IX24","v":{"$error":"#VALUE!"}},{"$f":"'2. Conservation Measures'!IY24","v":{"$error":"#VALUE!"}},{"$f":"'2. Conservation Measures'!IZ24","v":{"$error":"#VALUE!"}},{"$f":"'2. Conservation Measures'!JA24","v":{"$error":"#VALUE!"}},{"$f":"'2. Conservation Measures'!JB24","v":{"$error":"#VALUE!"}},{"$f":"'2. Conservation Measures'!JC24","v":{"$error":"#VALUE!"}},{"$f":"'2. Conservation Measures'!JD24","v":{"$error":"#VALUE!"}},{"$f":"'2. Conservation Measures'!JE24","v":{"$error":"#VALUE!"}},{"$f":"'2. Conservation Measures'!JF24","v":{"$error":"#VALUE!"}},{"$f":"'2. Conservation Measures'!JG24","v":{"$error":"#VALUE!"}},{"$f":"'2. Conservation Measures'!JH24","v":{"$error":"#VALUE!"}},{"$f":"'2. Conservation Measures'!JI24","v":{"$error":"#VALUE!"}},{"$f":"'2. Conservation Measures'!JJ24","v":{"$error":"#VALUE!"}},{"$f":"'2. Conservation Measures'!JK24","v":{"$error":"#VALUE!"}},{"$f":"'2. Conservation Measures'!JL24","v":{"$error":"#VALUE!"}},{"$f":"'2. Conservation Measures'!JM24","v":{"$error":"#VALUE!"}},{"$f":"'2. Conservation Measures'!JN24","v":{"$error":"#VALUE!"}},{"$f":"'2. Conservation Measures'!JO24","v":{"$error":"#VALUE!"}},{"$f":"'2. Conservation Measures'!JP24","v":{"$error":"#VALUE!"}},{"$f":"'2. Conservation Measures'!JQ24","v":{"$error":"#VALUE!"}},{"$f":"'2. Conservation Measures'!JR24","v":{"$error":"#VALUE!"}},{"$f":"'2. Conservation Measures'!JS24","v":{"$error":"#VALUE!"}},{"$f":"'2. Conservation Measures'!JT24","v":{"$error":"#VALUE!"}},{"$f":"'2. Conservation Measures'!JU24","v":{"$error":"#VALUE!"}},{"$f":"'2. Conservation Measures'!JV24","v":{"$error":"#VALUE!"}},{"$f":"'2. Conservation Measures'!JW24","v":{"$error":"#VALUE!"}},{"$f":"'2. Conservation Measures'!JX24","v":{"$error":"#VALUE!"}},{"$f":"'2. Conservation Measures'!JY24","v":{"$error":"#VALUE!"}},{"$f":"'2. Conservation Measures'!JZ24","v":{"$error":"#VALUE!"}},{"$f":"'2. Conservation Measures'!KA24","v":{"$error":"#VALUE!"}},{"$f":"'2. Conservation Measures'!KB24","v":{"$error":"#VALUE!"}},{"$f":"'2. Conservation Measures'!KC24","v":{"$error":"#VALUE!"}},{"$f":"'2. Conservation Measures'!KD24","v":{"$error":"#VALUE!"}},{"$f":"'2. Conservation Measures'!KE24","v":{"$error":"#VALUE!"}},{"$f":"'2. Conservation Measures'!KF24","v":{"$error":"#VALUE!"}},{"$f":"'2. Conservation Measures'!KG24","v":{"$error":"#VALUE!"}},{"$f":"'2. Conservation Measures'!KH24","v":{"$error":"#VALUE!"}},{"$f":"'2. Conservation Measures'!KI24","v":{"$error":"#VALUE!"}},{"$f":"'2. Conservation Measures'!KJ24","v":{"$error":"#VALUE!"}},{"$f":"'2. Conservation Measures'!KK24","v":{"$error":"#VALUE!"}},{"$f":"'2. Conservation Measures'!KL24","v":{"$error":"#VALUE!"}},{"$f":"'2. Conservation Measures'!KM24","v":{"$error":"#VALUE!"}},{"$f":"'2. Conservation Measures'!KN24","v":{"$error":"#VALUE!"}}]
[null,{"$f":"'2. Conservation Measures'!B25","v":"PRE-SF-03"},{"$f":"'2. Conservation Measures'!C25","v":{"$error":"#N/A"}},{"$f":"'2. Conservation Measures'!D25","v":"N"},null,{"$f":"'2. Conservation Measures'!AA25","v":{"$error":"#N/A"}},null,{"$f":"'2. Conservation Measures'!AO25","v":0},{"$f":"'2. Conservation Measures'!AP25","v":0},{"$f":"'2. Conservation Measures'!AQ25","v":0},{"$f":"'2. Conservation Measures'!AR25","v":0},{"$f":"'2. Conservation Measures'!AS25","v":0},{"$f":"'2. Conservation Measures'!AT25","v":0},{"$f":"'2. Conservation Measures'!AU25","v":0},{"$f":"'2. Conservation Measures'!AV25","v":0},{"$f":"'2. Conservation Measures'!AW25","v":0},{"$f":"'2. Conservation Measures'!AX25","v":0},{"$f":"'2. Conservation Measures'!AY25","v":0},{"$f":"'2. Conservation Measures'!AZ25","v":0},{"$f":"'2. Conservation Measures'!BA25","v":0},{"$f":"'2. Conservation Measures'!BB25","v":0},{"$f":"'2. Conservation Measures'!BC25","v":0},{"$f":"'2. Conservation Measures'!BD25","v":0},{"$f":"'2. Conservation Measures'!BE25","v":0},{"$f":"'2. Conservation Measures'!BF25","v":0},{"$f":"'2. Conservation Measures'!BG25","v":0},{"$f":"'2. Conservation Measures'!BH25","v":0},{"$f":"'2. Conservation Measures'!BI25","v":0},{"$f":"'2. Conservation Measures'!BJ25","v":0},{"$f":"'2. Conservation Measures'!BK25","v":0},{"$f":"'2. Conservation Measures'!BL25","v":0},{"$f":"'2. Conservation Measures'!BM25","v":0},{"$f":"'2. Conservation Measures'!BN25","v":0},{"$f":"'2. Conservation Measures'!BO25","v":0},{"$f":"'2. Conservation Measures'!BP25","v":0},{"$f":"'2. Conservation Measures'!BQ25","v":0},{"$f":"'2. Conservation Measures'!BR25","v":0},{"$f":"'2. Conservation Measures'!BS25","v":0},{"$f":"'2. Conservation Measures'!BT25","v":0},{"$f":"'2. Conservation Measures'!BU25","v":0},{"$f":"'2. Conservation Measures'!BV25","v":0},{"$f":"'2. Conservation Measures'!BW25","v":0},{"$f":"'2. Conservation Measures'!BX25","v":0},{"$f":"'2. Conservation Measures'!BY25","v":0},{"$f":"'2. Conservation Measures'!BZ25","v":0},{"$f":"'2. Conservation Measures'!CA25","v":0},{"$f":"'2. Conservation Measures'!CB25","v":0},{"$f":"'2. Conservation Measures'!CC25","v":0},{"$f":"'2. Conservation Measures'!CD25","v":0},{"$f":"'2. Conservation Measures'!CE25","v":0},{"$f":"'2. Conservation Measures'!CF25","v":0},{"$f":"'2. Conservation Measures'!CG25","v":0},{"$f":"'2. Conservation Measures'!CH25","v":0},{"$f":"'2. Conservation Measures'!CI25","v":0},{"$f":"'2. Conservation Measures'!CJ25","v":0},{"$f":"'2. Conservation Measures'!CK25","v":0},{"$f":"'2. Conservation Measures'!CL25","v":0},{"$f":"'2. Conservation Measures'!CM25","v":0},null,{"$f":"'2. Conservation Measures'!CO25","v":{"$error":"#VALUE!"}},{"$f":"'2. Conservation Measures'!CP25","v":{"$error":"#VALUE!"}},{"$f":"'2. Conservation Measures'!CQ25","v":{"$error":"#VALUE!"}},{"$f":"'2. Conservation Measures'!CR25","v":{"$error":"#VALUE!"}},{"$f":"'2. Conservation Measures'!CS25","v":{"$error":"#VALUE!"}},{"$f":"'2. Conservation Measures'!CT25","v":{"$error":"#VALUE!"}},{"$f":"'2. Conservation Measures'!CU25","v":{"$error":"#VALUE!"}},{"$f":"'2. Conservation Measures'!CV25","v":{"$error":"#VALUE!"}},{"$f":"'2. Conservation Measures'!CW25","v":{"$error":"#VALUE!"}},{"$f":"'2. Conservation Measures'!CX25","v":{"$error":"#VALUE!"}},{"$f":"'2. Conservation Measures'!CY25","v":{"$error":"#VALUE!"}},{"$f":"'2. Conservation Measures'!CZ25","v":{"$error":"#VALUE!"}},{"$f":"'2. Conservation Measures'!DA25","v":{"$error":"#VALUE!"}},{"$f":"'2. Conservation Measures'!DB25","v":{"$error":"#VALUE!"}},{"$f":"'2. Conservation Measures'!DC25","v":{"$error":"#VALUE!"}},{"$f":"'2. Conservation Measures'!DD25","v":{"$error":"#VALUE!"}},{"$f":"'2. Conservation Measures'!DE25","v":{"$error":"#VALUE!"}},{"$f":"'2. Conservation Measures'!DF25","v":{"$error":"#VALUE!"}},{"$f":"'2. Conservation Measures'!DG25","v":{"$error":"#VALUE!"}},{"$f":"'2. Conservation Measures'!DH25","v":{"$error":"#VALUE!"}},{"$f":"'2. Conservation Measures'!DI25","v":{"$error":"#VALUE!"}},{"$f":"'2. Conservation Measures'!DJ25","v":{"$error":"#VALUE!"}},{"$f":"'2. Conservation Measures'!DK25","v":{"$error":"#VALUE!"}},{"$f":"'2. Conservation Measures'!DL25","v":{"$error":"#VALUE!"}},{"$f":"'2. Conservation Measures'!DM25","v":{"$error":"#VALUE!"}},{"$f":"'2. Conservation Measures'!DN25","v":{"$error":"#VALUE!"}},{"$f":"'2. Conservation Measures'!DO25","v":{"$error":"#VALUE!"}},{"$f":"'2. Conservation Measures'!DP25","v":{"$error":"#VALUE!"}},{"$f":"'2. Conservation Measures'!DQ25","v":{"$error":"#VALUE!"}},{"$f":"'2. Conservation Measures'!DR25","v":{"$error":"#VALUE!"}},{"$f":"'2. Conservation Measures'!DS25","v":{"$error":"#VALUE!"}},{"$f":"'2. Conservation Measures'!DT25","v":{"$error":"#VALUE!"}},{"$f":"'2. Conservation Measures'!DU25","v":{"$error":"#VALUE!"}},{"$f":"'2. Conservation Measures'!DV25","v":{"$error":"#VALUE!"}},{"$f":"'2. Conservation Measures'!DW25","v":{"$error":"#VALUE!"}},{"$f":"'2. Conservation Measures'!DX25","v":{"$error":"#VALUE!"}},{"$f":"'2. Conservation Measures'!DY25","v":{"$error":"#VALUE!"}},{"$f":"'2. Conservation Measures'!DZ25","v":{"$error":"#VALUE!"}},{"$f":"'2. Conservation Measures'!EA25","v":{"$error":"#VALUE!"}},{"$f":"'2. Conservation Measures'!EB25","v":{"$error":"#VALUE!"}},{"$f":"'2. Conservation Measures'!EC25","v":{"$error":"#VALUE!"}},{"$f":"'2. Conservation Measures'!ED25","v":{"$error":"#VALUE!"}},{"$f":"'2. Conservation Measures'!EE25","v":{"$error":"#VALUE!"}},{"$f":"'2. Conservation Measures'!EF25","v":{"$error":"#VALUE!"}},{"$f":"'2. Conservation Measures'!EG25","v":{"$error":"#VALUE!"}},{"$f":"'2. Conservation Measures'!EH25","v":{"$error":"#VALUE!"}},{"$f":"'2. Conservation Measures'!EI25","v":{"$error":"#VALUE!"}},{"$f":"'2. Conservation Measures'!EJ25","v":{"$error":"#VALUE!"}},{"$f":"'2. Conservation Measures'!EK25","v":{"$error":"#VALUE!"}},{"$f":"'2. Conservation Measures'!EL25","v":{"$error":"#VALUE!"}},{"$f":"'2. Conservation Measures'!EM25","v":{"$error":"#VALUE!"}},null,{"$f":"'2. Conservation Measures'!KP25","v":{"$error":"#N/A"}},{"$f":"'2. Conservation Measures'!KQ25","v":{"$error":"#N/A"}},{"$f":"'2. Conservation Measures'!KR25","v":{"$error":"#N/A"}},{"$f":"'2. Conservation Measures'!KS25","v":{"$error":"#N/A"}},{"$f":"'2. Conservation Measures'!KT25","v":{"$error":"#N/A"}},{"$f":"'2. Conservation Measures'!KU25","v":{"$error":"#N/A"}},{"$f":"'2. Conservation Measures'!KV25","v":{"$error":"#N/A"}},{"$f":"'2. Conservation Measures'!KW25","v":{"$error":"#N/A"}},{"$f":"'2. Conservation Measures'!KX25","v":{"$error":"#N/A"}},{"$f":"'2. Conservation Measures'!KY25","v":{"$error":"#N/A"}},{"$f":"'2. Conservation Measures'!KZ25","v":{"$error":"#N/A"}},{"$f":"'2. Conservation Measures'!LA25","v":{"$error":"#N/A"}},{"$f":"'2. Conservation Measures'!LB25","v":{"$error":"#N/A"}},{"$f":"'2. Conservation Measures'!LC25","v":{"$error":"#N/A"}},{"$f":"'2. Conservation Measures'!LD25","v":{"$error":"#N/A"}},{"$f":"'2. Conservation Measures'!LE25","v":{"$error":"#N/A"}},{"$f":"'2. Conservation Measures'!LF25","v":{"$error":"#N/A"}},{"$f":"'2. Conservation Measures'!LG25","v":{"$error":"#N/A"}},{"$f":"'2. Conservation Measures'!LH25","v":{"$error":"#N/A"}},{"$f":"'2. Conservation Measures'!LI25","v":{"$error":"#N/A"}},{"$f":"'2. Conservation Measures'!LJ25","v":{"$error":"#N/A"}},{"$f":"'2. Conservation Measures'!LK25","v":{"$error":"#N/A"}},{"$f":"'2. Conservation Measures'!LL25","v":{"$error":"#N/A"}},{"$f":"'2. Conservation Measures'!LM25","v":{"$error":"#N/A"}},{"$f":"'2. Conservation Measures'!LN25","v":{"$error":"#N/A"}},{"$f":"'2. Conservation Measures'!LO25","v":{"$error":"#N/A"}},{"$f":"'2. Conservation Measures'!LP25","v":{"$error":"#N/A"}},{"$f":"'2. Conservation Measures'!LQ25","v":{"$error":"#N/A"}},{"$f":"'2. Conservation Measures'!LR25","v":{"$error":"#N/A"}},{"$f":"'2. Conservation Measures'!LS25","v":{"$error":"#N/A"}},{"$f":"'2. Conservation Measures'!LT25","v":{"$error":"#N/A"}},{"$f":"'2. Conservation Measures'!LU25","v":{"$error":"#N/A"}},{"$f":"'2. Conservation Measures'!LV25","v":{"$error":"#N/A"}},{"$f":"'2. Conservation Measures'!LW25","v":{"$error":"#N/A"}},{"$f":"'2. Conservation Measures'!LX25","v":{"$error":"#N/A"}},{"$f":"'2. Conservation Measures'!LY25","v":{"$error":"#N/A"}},{"$f":"'2. Conservation Measures'!LZ25","v":{"$error":"#N/A"}},{"$f":"'2. Conservation Measures'!MA25","v":{"$error":"#N/A"}},{"$f":"'2. Conservation Measures'!MB25","v":{"$error":"#N/A"}},{"$f":"'2. Conservation Measures'!MC25","v":{"$error":"#N/A"}},{"$f":"'2. Conservation Measures'!MD25","v":{"$error":"#N/A"}},{"$f":"'2. Conservation Measures'!ME25","v":{"$error":"#N/A"}},{"$f":"'2. Conservation Measures'!MF25","v":{"$error":"#N/A"}},{"$f":"'2. Conservation Measures'!MG25","v":{"$error":"#N/A"}},{"$f":"'2. Conservation Measures'!MH25","v":{"$error":"#N/A"}},{"$f":"'2. Conservation Measures'!MI25","v":{"$error":"#N/A"}},{"$f":"'2. Conservation Measures'!MJ25","v":{"$error":"#N/A"}},{"$f":"'2. Conservation Measures'!MK25","v":{"$error":"#N/A"}},{"$f":"'2. Conservation Measures'!ML25","v":{"$error":"#N/A"}},{"$f":"'2. Conservation Measures'!MM25","v":{"$error":"#N/A"}},{"$f":"'2. Conservation Measures'!MN25","v":{"$error":"#N/A"}},null,{"$f":"'2. Conservation Measures'!EP25","v":{"$error":"#N/A"}},{"$f":"'2. Conservation Measures'!EQ25","v":{"$error":"#N/A"}},{"$f":"'2. Conservation Measures'!ER25","v":{"$error":"#N/A"}},{"$f":"'2. Conservation Measures'!ES25","v":{"$error":"#N/A"}},{"$f":"'2. Conservation Measures'!ET25","v":{"$error":"#N/A"}},{"$f":"'2. Conservation Measures'!EU25","v":{"$error":"#N/A"}},{"$f":"'2. Conservation Measures'!EV25","v":{"$error":"#N/A"}},{"$f":"'2. Conservation Measures'!EW25","v":{"$error":"#N/A"}},{"$f":"'2. Conservation Measures'!EX25","v":{"$error":"#N/A"}},{"$f":"'2. Conservation Measures'!EY25","v":{"$error":"#N/A"}},{"$f":"'2. Conservation Measures'!EZ25","v":{"$error":"#N/A"}},{"$f":"'2. Conservation Measures'!FA25","v":{"$error":"#N/A"}},{"$f":"'2. Conservation Measures'!FB25","v":{"$error":"#N/A"}},{"$f":"'2. Conservation Measures'!FC25","v":{"$error":"#N/A"}},{"$f":"'2. Conservation Measures'!FD25","v":{"$error":"#N/A"}},{"$f":"'2. Conservation Measures'!FE25","v":{"$error":"#N/A"}},{"$f":"'2. Conservation Measures'!FF25","v":{"$error":"#N/A"}},{"$f":"'2. Conservation Measures'!FG25","v":{"$error":"#N/A"}},{"$f":"'2. Conservation Measures'!FH25","v":{"$error":"#N/A"}},{"$f":"'2. Conservation Measures'!FI25","v":{"$error":"#N/A"}},{"$f":"'2. Conservation Measures'!FJ25","v":{"$error":"#N/A"}},{"$f":"'2. Conservation Measures'!FK25","v":{"$error":"#N/A"}},{"$f":"'2. Conservation Measures'!FL25","v":{"$error":"#N/A"}},{"$f":"'2. Conservation Measures'!FM25","v":{"$error":"#N/A"}},{"$f":"'2. Conservation Measures'!FN25","v":{"$error":"#N/A"}},{"$f":"'2. Conservation Measures'!FO25","v":{"$error":"#N/A"}},{"$f":"'2. Conservation Measures'!FP25","v":{"$error":"#N/A"}},{"$f":"'2. Conservation Measures'!FQ25","v":{"$error":"#N/A"}},{"$f":"'2. Conservation Measures'!FR25","v":{"$error":"#N/A"}},{"$f":"'2. Conservation Measures'!FS25","v":{"$error":"#N/A"}},{"$f":"'2. Conservation Measures'!FT25","v":{"$error":"#N/A"}},{"$f":"'2. Conservation Measures'!FU25","v":{"$error":"#N/A"}},{"$f":"'2. Conservation Measures'!FV25","v":{"$error":"#N/A"}},{"$f":"'2. Conservation Measures'!FW25","v":{"$error":"#N/A"}},{"$f":"'2. Conservation Measures'!FX25","v":{"$error":"#N/A"}},{"$f":"'2. Conservation Measures'!FY25","v":{"$error":"#N/A"}},{"$f":"'2. Conservation Measures'!FZ25","v":{"$error":"#N/A"}},{"$f":"'2. Conservation Measures'!GA25","v":{"$error":"#N/A"}},{"$f":"'2. Conservation Measures'!GB25","v":{"$error":"#N/A"}},{"$f":"'2. Conservation Measures'!GC25","v":{"$error":"#N/A"}},{"$f":"'2. Conservation Measures'!GD25","v":{"$error":"#N/A"}},{"$f":"'2. Conservation Measures'!GE25","v":{"$error":"#N/A"}},{"$f":"'2. Conservation Measures'!GF25","v":{"$error":"#N/A"}},{"$f":"'2. Conservation Measures'!GG25","v":{"$error":"#N/A"}},{"$f":"'2. Conservation Measures'!GH25","v":{"$error":"#N/A"}},{"$f":"'2. Conservation Measures'!GI25","v":{"$error":"#N/A"}},{"$f":"'2. Conservation Measures'!GJ25","v":{"$error":"#N/A"}},{"$f":"'2. Conservation Measures'!GK25","v":{"$error":"#N/A"}},{"$f":"'2. Conservation Measures'!GL25","v":{"$error":"#N/A"}},{"$f":"'2. Conservation Measures'!GM25","v":{"$error":"#N/A"}},{"$f":"'2. Conservation Measures'!GN25","v":{"$error":"#N/A"}},null,{"$f":"'2. Conservation Measures'!GP25","v":{"$error":"#N/A"}},{"$f":"'2. Conservation Measures'!GQ25","v":{"$error":"#N/A"}},{"$f":"'2. Conservation Measures'!GR25","v":{"$error":"#N/A"}},{"$f":"'2. Conservation Measures'!GS25","v":{"$error":"#N/A"}},{"$f":"'2. Conservation Measures'!GT25","v":{"$error":"#N/A"}},{"$f":"'2. Conservation Measures'!GU25","v":{"$error":"#N/A"}},{"$f":"'2. Conservation Measures'!GV25","v":{"$error":"#N/A"}},{"$f":"'2. Conservation Measures'!GW25","v":{"$error":"#N/A"}},{"$f":"'2. Conservation Measures'!GX25","v":{"$error":"#N/A"}},{"$f":"'2. Conservation Measures'!GY25","v":{"$error":"#N/A"}},{"$f":"'2. Conservation Measures'!GZ25","v":{"$error":"#N/A"}},{"$f":"'2. Conservation Measures'!HA25","v":{"$error":"#N/A"}},{"$f":"'2. Conservation Measures'!HB25","v":{"$error":"#N/A"}},{"$f":"'2. Conservation Measures'!HC25","v":{"$error":"#N/A"}},{"$f":"'2. Conservation Measures'!HD25","v":{"$error":"#N/A"}},{"$f":"'2. Conservation Measures'!HE25","v":{"$error":"#N/A"}},{"$f":"'2. Conservation Measures'!HF25","v":{"$error":"#N/A"}},{"$f":"'2. Conservation Measures'!HG25","v":{"$error":"#N/A"}},{"$f":"'2. Conservation Measures'!HH25","v":{"$error":"#N/A"}},{"$f":"'2. Conservation Measures'!HI25","v":{"$error":"#N/A"}},{"$f":"'2. Conservation Measures'!HJ25","v":{"$error":"#N/A"}},{"$f":"'2. Conservation Measures'!HK25","v":{"$error":"#N/A"}},{"$f":"'2. Conservation Measures'!HL25","v":{"$error":"#N/A"}},{"$f":"'2. Conservation Measures'!HM25","v":{"$error":"#N/A"}},{"$f":"'2. Conservation Measures'!HN25","v":{"$error":"#N/A"}},{"$f":"'2. Conservation Measures'!HO25","v":{"$error":"#N/A"}},{"$f":"'2. Conservation Measures'!HP25","v":{"$error":"#N/A"}},{"$f":"'2. Conservation Measures'!HQ25","v":{"$error":"#N/A"}},{"$f":"'2. Conservation Measures'!HR25","v":{"$error":"#N/A"}},{"$f":"'2. Conservation Measures'!HS25","v":{"$error":"#N/A"}},{"$f":"'2. Conservation Measures'!HT25","v":{"$error":"#N/A"}},{"$f":"'2. Conservation Measures'!HU25","v":{"$error":"#N/A"}},{"$f":"'2. Conservation Measures'!HV25","v":{"$error":"#N/A"}},{"$f":"'2. Conservation Measures'!HW25","v":{"$error":"#N/A"}},{"$f":"'2. Conservation Measures'!HX25","v":{"$error":"#N/A"}},{"$f":"'2. Conservation Measures'!HY25","v":{"$error":"#N/A"}},{"$f":"'2. Conservation Measures'!HZ25","v":{"$error":"#N/A"}},{"$f":"'2. Conservation Measures'!IA25","v":{"$error":"#N/A"}},{"$f":"'2. Conservation Measures'!IB25","v":{"$error":"#N/A"}},{"$f":"'2. Conservation Measures'!IC25","v":{"$error":"#N/A"}},{"$f":"'2. Conservation Measures'!ID25","v":{"$error":"#N/A"}},{"$f":"'2. Conservation Measures'!IE25","v":{"$error":"#N/A"}},{"$f":"'2. Conservation Measures'!IF25","v":{"$error":"#N/A"}},{"$f":"'2. Conservation Measures'!IG25","v":{"$error":"#N/A"}},{"$f":"'2. Conservation Measures'!IH25","v":{"$error":"#N/A"}},{"$f":"'2. Conservation Measures'!II25","v":{"$error":"#N/A"}},{"$f":"'2. Conservation Measures'!IJ25","v":{"$error":"#N/A"}},{"$f":"'2. Conservation Measures'!IK25","v":{"$error":"#N/A"}},{"$f":"'2. Conservation Measures'!IL25","v":{"$error":"#N/A"}},{"$f":"'2. Conservation Measures'!IM25","v":{"$error":"#N/A"}},{"$f":"'2. Conservation Measures'!IN25","v":{"$error":"#N/A"}},null,{"$f":"'2. Conservation Measures'!IP25","v":{"$error":"#VALUE!"}},{"$f":"'2. Conservation Measures'!IQ25","v":{"$error":"#VALUE!"}},{"$f":"'2. Conservation Measures'!IR25","v":{"$error":"#VALUE!"}},{"$f":"'2. Conservation Measures'!IS25","v":{"$error":"#VALUE!"}},{"$f":"'2. Conservation Measures'!IT25","v":{"$error":"#VALUE!"}},{"$f":"'2. Conservation Measures'!IU25","v":{"$error":"#VALUE!"}},{"$f":"'2. Conservation Measures'!IV25","v":{"$error":"#VALUE!"}},{"$f":"'2. Conservation Measures'!IW25","v":{"$error":"#VALUE!"}},{"$f":"'2. Conservation Measures'!IX25","v":{"$error":"#VALUE!"}},{"$f":"'2. Conservation Measures'!IY25","v":{"$error":"#VALUE!"}},{"$f":"'2. Conservation Measures'!IZ25","v":{"$error":"#VALUE!"}},{"$f":"'2. Conservation Measures'!JA25","v":{"$error":"#VALUE!"}},{"$f":"'2. Conservation Measures'!JB25","v":{"$error":"#VALUE!"}},{"$f":"'2. Conservation Measures'!JC25","v":{"$error":"#VALUE!"}},{"$f":"'2. Conservation Measures'!JD25","v":{"$error":"#VALUE!"}},{"$f":"'2. Conservation Measures'!JE25","v":{"$error":"#VALUE!"}},{"$f":"'2. Conservation Measures'!JF25","v":{"$error":"#VALUE!"}},{"$f":"'2. Conservation Measures'!JG25","v":{"$error":"#VALUE!"}},{"$f":"'2. Conservation Measures'!JH25","v":{"$error":"#VALUE!"}},{"$f":"'2. Conservation Measures'!JI25","v":{"$error":"#VALUE!"}},{"$f":"'2. Conservation Measures'!JJ25","v":{"$error":"#VALUE!"}},{"$f":"'2. Conservation Measures'!JK25","v":{"$error":"#VALUE!"}},{"$f":"'2. Conservation Measures'!JL25","v":{"$error":"#VALUE!"}},{"$f":"'2. Conservation Measures'!JM25","v":{"$error":"#VALUE!"}},{"$f":"'2. Conservation Measures'!JN25","v":{"$error":"#VALUE!"}},{"$f":"'2. Conservation Measures'!JO25","v":{"$error":"#VALUE!"}},{"$f":"'2. Conservation Measures'!JP25","v":{"$error":"#VALUE!"}},{"$f":"'2. Conservation Measures'!JQ25","v":{"$error":"#VALUE!"}},{"$f":"'2. Conservation Measures'!JR25","v":{"$error":"#VALUE!"}},{"$f":"'2. Conservation Measures'!JS25","v":{"$error":"#VALUE!"}},{"$f":"'2. Conservation Measures'!JT25","v":{"$error":"#VALUE!"}},{"$f":"'2. Conservation Measures'!JU25","v":{"$error":"#VALUE!"}},{"$f":"'2. Conservation Measures'!JV25","v":{"$error":"#VALUE!"}},{"$f":"'2. Conservation Measures'!JW25","v":{"$error":"#VALUE!"}},{"$f":"'2. Conservation Measures'!JX25","v":{"$error":"#VALUE!"}},{"$f":"'2. Conservation Measures'!JY25","v":{"$error":"#VALUE!"}},{"$f":"'2. Conservation Measures'!JZ25","v":{"$error":"#VALUE!"}},{"$f":"'2. Conservation Measures'!KA25","v":{"$error":"#VALUE!"}},{"$f":"'2. Conservation Measures'!KB25","v":{"$error":"#VALUE!"}},{"$f":"'2. Conservation Measures'!KC25","v":{"$error":"#VALUE!"}},{"$f":"'2. Conservation Measures'!KD25","v":{"$error":"#VALUE!"}},{"$f":"'2. Conservation Measures'!KE25","v":{"$error":"#VALUE!"}},{"$f":"'2. Conservation Measures'!KF25","v":{"$error":"#VALUE!"}},{"$f":"'2. Conservation Measures'!KG25","v":{"$error":"#VALUE!"}},{"$f":"'2. Conservation Measures'!KH25","v":{"$error":"#VALUE!"}},{"$f":"'2. Conservation Measures'!KI25","v":{"$error":"#VALUE!"}},{"$f":"'2. Conservation Measures'!KJ25","v":{"$error":"#VALUE!"}},{"$f":"'2. Conservation Measures'!KK25","v":{"$error":"#VALUE!"}},{"$f":"'2. Conservation Measures'!KL25","v":{"$error":"#VALUE!"}},{"$f":"'2. Conservation Measures'!KM25","v":{"$error":"#VALUE!"}},{"$f":"'2. Conservation Measures'!KN25","v":{"$error":"#VALUE!"}}]
[null,{"$f":"'2. Conservation Measures'!B26","v":"PRE-SF-04"},{"$f":"'2. Conservation Measures'!C26","v":{"$error":"#N/A"}},{"$f":"'2. Conservation Measures'!D26","v":"N"},null,{"$f":"'2. Conservation Measures'!AA26","v":{"$error":"#N/A"}},null,{"$f":"'2. Conservation Measures'!AO26","v":0},{"$f":"'2. Conservation Measures'!AP26","v":0},{"$f":"'2. Conservation Measures'!AQ26","v":0},{"$f":"'2. Conservation Measures'!AR26","v":0},{"$f":"'2. Conservation Measures'!AS26","v":0},{"$f":"'2. Conservation Measures'!AT26","v":0},{"$f":"'2. Conservation Measures'!AU26","v":0},{"$f":"'2. Conservation Measures'!AV26","v":0},{"$f":"'2. Conservation Measures'!AW26","v":0},{"$f":"'2. Conservation Measures'!AX26","v":0},{"$f":"'2. Conservation Measures'!AY26","v":0},{"$f":"'2. Conservation Measures'!AZ26","v":0},{"$f":"'2. Conservation Measures'!BA26","v":0},{"$f":"'2. Conservation Measures'!BB26","v":0},{"$f":"'2. Conservation Measures'!BC26","v":0},{"$f":"'2. Conservation Measures'!BD26","v":0},{"$f":"'2. Conservation Measures'!BE26","v":0},{"$f":"'2. Conservation Measures'!BF26","v":0},{"$f":"'2. Conservation Measures'!BG26","v":0},{"$f":"'2. Conservation Measures'!BH26","v":0},{"$f":"'2. Conservation Measures'!BI26","v":0},{"$f":"'2. Conservation Measures'!BJ26","v":0},{"$f":"'2. Conservation Measures'!BK26","v":0},{"$f":"'2. Conservation Measures'!BL26","v":0},{"$f":"'2. Conservation Measures'!BM26","v":0},{"$f":"'2. Conservation Measures'!BN26","v":0},{"$f":"'2. Conservation Measures'!BO26","v":0},{"$f":"'2. Conservation Measures'!BP26","v":0},{"$f":"'2. Conservation Measures'!BQ26","v":0},{"$f":"'2. Conservation Measures'!BR26","v":0},{"$f":"'2. Conservation Measures'!BS26","v":0},{"$f":"'2. Conservation Measures'!BT26","v":0},{"$f":"'2. Conservation Measures'!BU26","v":0},{"$f":"'2. Conservation Measures'!BV26","v":0},{"$f":"'2. Conservation Measures'!BW26","v":0},{"$f":"'2. Conservation Measures'!BX26","v":0},{"$f":"'2. Conservation Measures'!BY26","v":0},{"$f":"'2. Conservation Measures'!BZ26","v":0},{"$f":"'2. Conservation Measures'!CA26","v":0},{"$f":"'2. Conservation Measures'!CB26","v":0},{"$f":"'2. Conservation Measures'!CC26","v":0},{"$f":"'2. Conservation Measures'!CD26","v":0},{"$f":"'2. Conservation Measures'!CE26","v":0},{"$f":"'2. Conservation Measures'!CF26","v":0},{"$f":"'2. Conservation Measures'!CG26","v":0},{"$f":"'2. Conservation Measures'!CH26","v":0},{"$f":"'2. Conservation Measures'!CI26","v":0},{"$f":"'2. Conservation Measures'!CJ26","v":0},{"$f":"'2. Conservation Measures'!CK26","v":0},{"$f":"'2. Conservation Measures'!CL26","v":0},{"$f":"'2. Conservation Measures'!CM26","v":0},null,{"$f":"'2. Conservation Measures'!CO26","v":{"$error":"#VALUE!"}},{"$f":"'2. Conservation Measures'!CP26","v":{"$error":"#VALUE!"}},{"$f":"'2. Conservation Measures'!CQ26","v":{"$error":"#VALUE!"}},{"$f":"'2. Conservation Measures'!CR26","v":{"$error":"#VALUE!"}},{"$f":"'2. Conservation Measures'!CS26","v":{"$error":"#VALUE!"}},{"$f":"'2. Conservation Measures'!CT26","v":{"$error":"#VALUE!"}},{"$f":"'2. Conservation Measures'!CU26","v":{"$error":"#VALUE!"}},{"$f":"'2. Conservation Measures'!CV26","v":{"$error":"#VALUE!"}},{"$f":"'2. Conservation Measures'!CW26","v":{"$error":"#VALUE!"}},{"$f":"'2. Conservation Measures'!CX26","v":{"$error":"#VALUE!"}},{"$f":"'2. Conservation Measures'!CY26","v":{"$error":"#VALUE!"}},{"$f":"'2. Conservation Measures'!CZ26","v":{"$error":"#VALUE!"}},{"$f":"'2. Conservation Measures'!DA26","v":{"$error":"#VALUE!"}},{"$f":"'2. Conservation Measures'!DB26","v":{"$error":"#VALUE!"}},{"$f":"'2. Conservation Measures'!DC26","v":{"$error":"#VALUE!"}},{"$f":"'2. Conservation Measures'!DD26","v":{"$error":"#VALUE!"}},{"$f":"'2. Conservation Measures'!DE26","v":{"$error":"#VALUE!"}},{"$f":"'2. Conservation Measures'!DF26","v":{"$error":"#VALUE!"}},{"$f":"'2. Conservation Measures'!DG26","v":{"$error":"#VALUE!"}},{"$f":"'2. Conservation Measures'!DH26","v":{"$error":"#VALUE!"}},{"$f":"'2. Conservation Measures'!DI26","v":{"$error":"#VALUE!"}},{"$f":"'2. Conservation Measures'!DJ26","v":{"$error":"#VALUE!"}},{"$f":"'2. Conservation Measures'!DK26","v":{"$error":"#VALUE!"}},{"$f":"'2. Conservation Measures'!DL26","v":{"$error":"#VALUE!"}},{"$f":"'2. Conservation Measures'!DM26","v":{"$error":"#VALUE!"}},{"$f":"'2. Conservation Measures'!DN26","v":{"$error":"#VALUE!"}},{"$f":"'2. Conservation Measures'!DO26","v":{"$error":"#VALUE!"}},{"$f":"'2. Conservation Measures'!DP26","v":{"$error":"#VALUE!"}},{"$f":"'2. Conservation Measures'!DQ26","v":{"$error":"#VALUE!"}},{"$f":"'2. Conservation Measures'!DR26","v":{"$error":"#VALUE!"}},{"$f":"'2. Conservation Measures'!DS26","v":{"$error":"#VALUE!"}},{"$f":"'2. Conservation Measures'!DT26","v":{"$error":"#VALUE!"}},{"$f":"'2. Conservation Measures'!DU26","v":{"$error":"#VALUE!"}},{"$f":"'2. Conservation Measures'!DV26","v":{"$error":"#VALUE!"}},{"$f":"'2. Conservation Measures'!DW26","v":{"$error":"#VALUE!"}},{"$f":"'2. Conservation Measures'!DX26","v":{"$error":"#VALUE!"}},{"$f":"'2. Conservation Measures'!DY26","v":{"$error":"#VALUE!"}},{"$f":"'2. Conservation Measures'!DZ26","v":{"$error":"#VALUE!"}},{"$f":"'2. Conservation Measures'!EA26","v":{"$error":"#VALUE!"}},{"$f":"'2. Conservation Measures'!EB26","v":{"$error":"#VALUE!"}},{"$f":"'2. Conservation Measures'!EC26","v":{"$error":"#VALUE!"}},{"$f":"'2. Conservation Measures'!ED26","v":{"$error":"#VALUE!"}},{"$f":"'2. Conservation Measures'!EE26","v":{"$error":"#VALUE!"}},{"$f":"'2. Conservation Measures'!EF26","v":{"$error":"#VALUE!"}},{"$f":"'2. Conservation Measures'!EG26","v":{"$error":"#VALUE!"}},{"$f":"'2. Conservation Measures'!EH26","v":{"$error":"#VALUE!"}},{"$f":"'2. Conservation Measures'!EI26","v":{"$error":"#VALUE!"}},{"$f":"'2. Conservation Measures'!EJ26","v":{"$error":"#VALUE!"}},{"$f":"'2. Conservation Measures'!EK26","v":{"$error":"#VALUE!"}},{"$f":"'2. Conservation Measures'!EL26","v":{"$error":"#VALUE!"}},{"$f":"'2. Conservation Measures'!EM26","v":{"$error":"#VALUE!"}},null,{"$f":"'2. Conservation Measures'!KP26","v":{"$error":"#N/A"}},{"$f":"'2. Conservation Measures'!KQ26","v":{"$error":"#N/A"}},{"$f":"'2. Conservation Measures'!KR26","v":{"$error":"#N/A"}},{"$f":"'2. Conservation Measures'!KS26","v":{"$error":"#N/A"}},{"$f":"'2. Conservation Measures'!KT26","v":{"$error":"#N/A"}},{"$f":"'2. Conservation Measures'!KU26","v":{"$error":"#N/A"}},{"$f":"'2. Conservation Measures'!KV26","v":{"$error":"#N/A"}},{"$f":"'2. Conservation Measures'!KW26","v":{"$error":"#N/A"}},{"$f":"'2. Conservation Measures'!KX26","v":{"$error":"#N/A"}},{"$f":"'2. Conservation Measures'!KY26","v":{"$error":"#N/A"}},{"$f":"'2. Conservation Measures'!KZ26","v":{"$error":"#N/A"}},{"$f":"'2. Conservation Measures'!LA26","v":{"$error":"#N/A"}},{"$f":"'2. Conservation Measures'!LB26","v":{"$error":"#N/A"}},{"$f":"'2. Conservation Measures'!LC26","v":{"$error":"#N/A"}},{"$f":"'2. Conservation Measures'!LD26","v":{"$error":"#N/A"}},{"$f":"'2. Conservation Measures'!LE26","v":{"$error":"#N/A"}},{"$f":"'2. Conservation Measures'!LF26","v":{"$error":"#N/A"}},{"$f":"'2. Conservation Measures'!LG26","v":{"$error":"#N/A"}},{"$f":"'2. Conservation Measures'!LH26","v":{"$error":"#N/A"}},{"$f":"'2. Conservation Measures'!LI26","v":{"$error":"#N/A"}},{"$f":"'2. Conservation Measures'!LJ26","v":{"$error":"#N/A"}},{"$f":"'2. Conservation Measures'!LK26","v":{"$error":"#N/A"}},{"$f":"'2. Conservation Measures'!LL26","v":{"$error":"#N/A"}},{"$f":"'2. Conservation Measures'!LM26","v":{"$error":"#N/A"}},{"$f":"'2. Conservation Measures'!LN26","v":{"$error":"#N/A"}},{"$f":"'2. Conservation Measures'!LO26","v":{"$error":"#N/A"}},{"$f":"'2. Conservation Measures'!LP26","v":{"$error":"#N/A"}},{"$f":"'2. Conservation Measures'!LQ26","v":{"$error":"#N/A"}},{"$f":"'2. Conservation Measures'!LR26","v":{"$error":"#N/A"}},{"$f":"'2. Conservation Measures'!LS26","v":{"$error":"#N/A"}},{"$f":"'2. Conservation Measures'!LT26","v":{"$error":"#N/A"}},{"$f":"'2. Conservation Measures'!LU26","v":{"$error":"#N/A"}},{"$f":"'2. Conservation Measures'!LV26","v":{"$error":"#N/A"}},{"$f":"'2. Conservation Measures'!LW26","v":{"$error":"#N/A"}},{"$f":"'2. Conservation Measures'!LX26","v":{"$error":"#N/A"}},{"$f":"'2. Conservation Measures'!LY26","v":{"$error":"#N/A"}},{"$f":"'2. Conservation Measures'!LZ26","v":{"$error":"#N/A"}},{"$f":"'2. Conservation Measures'!MA26","v":{"$error":"#N/A"}},{"$f":"'2. Conservation Measures'!MB26","v":{"$error":"#N/A"}},{"$f":"'2. Conservation Measures'!MC26","v":{"$error":"#N/A"}},{"$f":"'2. Conservation Measures'!MD26","v":{"$error":"#N/A"}},{"$f":"'2. Conservation Measures'!ME26","v":{"$error":"#N/A"}},{"$f":"'2. Conservation Measures'!MF26","v":{"$error":"#N/A"}},{"$f":"'2. Conservation Measures'!MG26","v":{"$error":"#N/A"}},{"$f":"'2. Conservation Measures'!MH26","v":{"$error":"#N/A"}},{"$f":"'2. Conservation Measures'!MI26","v":{"$error":"#N/A"}},{"$f":"'2. Conservation Measures'!MJ26","v":{"$error":"#N/A"}},{"$f":"'2. Conservation Measures'!MK26","v":{"$error":"#N/A"}},{"$f":"'2. Conservation Measures'!ML26","v":{"$error":"#N/A"}},{"$f":"'2. Conservation Measures'!MM26","v":{"$error":"#N/A"}},{"$f":"'2. Conservation Measures'!MN26","v":{"$error":"#N/A"}},null,{"$f":"'2. Conservation Measures'!EP26","v":{"$error":"#N/A"}},{"$f":"'2. Conservation Measures'!EQ26","v":{"$error":"#N/A"}},{"$f":"'2. Conservation Measures'!ER26","v":{"$error":"#N/A"}},{"$f":"'2. Conservation Measures'!ES26","v":{"$error":"#N/A"}},{"$f":"'2. Conservation Measures'!ET26","v":{"$error":"#N/A"}},{"$f":"'2. Conservation Measures'!EU26","v":{"$error":"#N/A"}},{"$f":"'2. Conservation Measures'!EV26","v":{"$error":"#N/A"}},{"$f":"'2. Conservation Measures'!EW26","v":{"$error":"#N/A"}},{"$f":"'2. Conservation Measures'!EX26","v":{"$error":"#N/A"}},{"$f":"'2. Conservation Measures'!EY26","v":{"$error":"#N/A"}},{"$f":"'2. Conservation Measures'!EZ26","v":{"$error":"#N/A"}},{"$f":"'2. Conservation Measures'!FA26","v":{"$error":"#N/A"}},{"$f":"'2. Conservation Measures'!FB26","v":{"$error":"#N/A"}},{"$f":"'2. Conservation Measures'!FC26","v":{"$error":"#N/A"}},{"$f":"'2. Conservation Measures'!FD26","v":{"$error":"#N/A"}},{"$f":"'2. Conservation Measures'!FE26","v":{"$error":"#N/A"}},{"$f":"'2. Conservation Measures'!FF26","v":{"$error":"#N/A"}},{"$f":"'2. Conservation Measures'!FG26","v":{"$error":"#N/A"}},{"$f":"'2. Conservation Measures'!FH26","v":{"$error":"#N/A"}},{"$f":"'2. Conservation Measures'!FI26","v":{"$error":"#N/A"}},{"$f":"'2. Conservation Measures'!FJ26","v":{"$error":"#N/A"}},{"$f":"'2. Conservation Measures'!FK26","v":{"$error":"#N/A"}},{"$f":"'2. Conservation Measures'!FL26","v":{"$error":"#N/A"}},{"$f":"'2. Conservation Measures'!FM26","v":{"$error":"#N/A"}},{"$f":"'2. Conservation Measures'!FN26","v":{"$error":"#N/A"}},{"$f":"'2. Conservation Measures'!FO26","v":{"$error":"#N/A"}},{"$f":"'2. Conservation Measures'!FP26","v":{"$error":"#N/A"}},{"$f":"'2. Conservation Measures'!FQ26","v":{"$error":"#N/A"}},{"$f":"'2. Conservation Measures'!FR26","v":{"$error":"#N/A"}},{"$f":"'2. Conservation Measures'!FS26","v":{"$error":"#N/A"}},{"$f":"'2. Conservation Measures'!FT26","v":{"$error":"#N/A"}},{"$f":"'2. Conservation Measures'!FU26","v":{"$error":"#N/A"}},{"$f":"'2. Conservation Measures'!FV26","v":{"$error":"#N/A"}},{"$f":"'2. Conservation Measures'!FW26","v":{"$error":"#N/A"}},{"$f":"'2. Conservation Measures'!FX26","v":{"$error":"#N/A"}},{"$f":"'2. Conservation Measures'!FY26","v":{"$error":"#N/A"}},{"$f":"'2. Conservation Measures'!FZ26","v":{"$error":"#N/A"}},{"$f":"'2. Conservation Measures'!GA26","v":{"$error":"#N/A"}},{"$f":"'2. Conservation Measures'!GB26","v":{"$error":"#N/A"}},{"$f":"'2. Conservation Measures'!GC26","v":{"$error":"#N/A"}},{"$f":"'2. Conservation Measures'!GD26","v":{"$error":"#N/A"}},{"$f":"'2. Conservation Measures'!GE26","v":{"$error":"#N/A"}},{"$f":"'2. Conservation Measures'!GF26","v":{"$error":"#N/A"}},{"$f":"'2. Conservation Measures'!GG26","v":{"$error":"#N/A"}},{"$f":"'2. Conservation Measures'!GH26","v":{"$error":"#N/A"}},{"$f":"'2. Conservation Measures'!GI26","v":{"$error":"#N/A"}},{"$f":"'2. Conservation Measures'!GJ26","v":{"$error":"#N/A"}},{"$f":"'2. Conservation Measures'!GK26","v":{"$error":"#N/A"}},{"$f":"'2. Conservation Measures'!GL26","v":{"$error":"#N/A"}},{"$f":"'2. Conservation Measures'!GM26","v":{"$error":"#N/A"}},{"$f":"'2. Conservation Measures'!GN26","v":{"$error":"#N/A"}},null,{"$f":"'2. Conservation Measures'!GP26","v":{"$error":"#N/A"}},{"$f":"'2. Conservation Measures'!GQ26","v":{"$error":"#N/A"}},{"$f":"'2. Conservation Measures'!GR26","v":{"$error":"#N/A"}},{"$f":"'2. Conservation Measures'!GS26","v":{"$error":"#N/A"}},{"$f":"'2. Conservation Measures'!GT26","v":{"$error":"#N/A"}},{"$f":"'2. Conservation Measures'!GU26","v":{"$error":"#N/A"}},{"$f":"'2. Conservation Measures'!GV26","v":{"$error":"#N/A"}},{"$f":"'2. Conservation Measures'!GW26","v":{"$error":"#N/A"}},{"$f":"'2. Conservation Measures'!GX26","v":{"$error":"#N/A"}},{"$f":"'2. Conservation Measures'!GY26","v":{"$error":"#N/A"}},{"$f":"'2. Conservation Measures'!GZ26","v":{"$error":"#N/A"}},{"$f":"'2. Conservation Measures'!HA26","v":{"$error":"#N/A"}},{"$f":"'2. Conservation Measures'!HB26","v":{"$error":"#N/A"}},{"$f":"'2. Conservation Measures'!HC26","v":{"$error":"#N/A"}},{"$f":"'2. Conservation Measures'!HD26","v":{"$error":"#N/A"}},{"$f":"'2. Conservation Measures'!HE26","v":{"$error":"#N/A"}},{"$f":"'2. Conservation Measures'!HF26","v":{"$error":"#N/A"}},{"$f":"'2. Conservation Measures'!HG26","v":{"$error":"#N/A"}},{"$f":"'2. Conservation Measures'!HH26","v":{"$error":"#N/A"}},{"$f":"'2. Conservation Measures'!HI26","v":{"$error":"#N/A"}},{"$f":"'2. Conservation Measures'!HJ26","v":{"$error":"#N/A"}},{"$f":"'2. Conservation Measures'!HK26","v":{"$error":"#N/A"}},{"$f":"'2. Conservation Measures'!HL26","v":{"$error":"#N/A"}},{"$f":"'2. Conservation Measures'!HM26","v":{"$error":"#N/A"}},{"$f":"'2. Conservation Measures'!HN26","v":{"$error":"#N/A"}},{"$f":"'2. Conservation Measures'!HO26","v":{"$error":"#N/A"}},{"$f":"'2. Conservation Measures'!HP26","v":{"$error":"#N/A"}},{"$f":"'2. Conservation Measures'!HQ26","v":{"$error":"#N/A"}},{"$f":"'2. Conservation Measures'!HR26","v":{"$error":"#N/A"}},{"$f":"'2. Conservation Measures'!HS26","v":{"$error":"#N/A"}},{"$f":"'2. Conservation Measures'!HT26","v":{"$error":"#N/A"}},{"$f":"'2. Conservation Measures'!HU26","v":{"$error":"#N/A"}},{"$f":"'2. Conservation Measures'!HV26","v":{"$error":"#N/A"}},{"$f":"'2. Conservation Measures'!HW26","v":{"$error":"#N/A"}},{"$f":"'2. Conservation Measures'!HX26","v":{"$error":"#N/A"}},{"$f":"'2. Conservation Measures'!HY26","v":{"$error":"#N/A"}},{"$f":"'2. Conservation Measures'!HZ26","v":{"$error":"#N/A"}},{"$f":"'2. Conservation Measures'!IA26","v":{"$error":"#N/A"}},{"$f":"'2. Conservation Measures'!IB26","v":{"$error":"#N/A"}},{"$f":"'2. Conservation Measures'!IC26","v":{"$error":"#N/A"}},{"$f":"'2. Conservation Measures'!ID26","v":{"$error":"#N/A"}},{"$f":"'2. Conservation Measures'!IE26","v":{"$error":"#N/A"}},{"$f":"'2. Conservation Measures'!IF26","v":{"$error":"#N/A"}},{"$f":"'2. Conservation Measures'!IG26","v":{"$error":"#N/A"}},{"$f":"'2. Conservation Measures'!IH26","v":{"$error":"#N/A"}},{"$f":"'2. Conservation Measures'!II26","v":{"$error":"#N/A"}},{"$f":"'2. Conservation Measures'!IJ26","v":{"$error":"#N/A"}},{"$f":"'2. Conservation Measures'!IK26","v":{"$error":"#N/A"}},{"$f":"'2. Conservation Measures'!IL26","v":{"$error":"#N/A"}},{"$f":"'2. Conservation Measures'!IM26","v":{"$error":"#N/A"}},{"$f":"'2. Conservation Measures'!IN26","v":{"$error":"#N/A"}},null,{"$f":"'2. Conservation Measures'!IP26","v":{"$error":"#VALUE!"}},{"$f":"'2. Conservation Measures'!IQ26","v":{"$error":"#VALUE!"}},{"$f":"'2. Conservation Measures'!IR26","v":{"$error":"#VALUE!"}},{"$f":"'2. Conservation Measures'!IS26","v":{"$error":"#VALUE!"}},{"$f":"'2. Conservation Measures'!IT26","v":{"$error":"#VALUE!"}},{"$f":"'2. Conservation Measures'!IU26","v":{"$error":"#VALUE!"}},{"$f":"'2. Conservation Measures'!IV26","v":{"$error":"#VALUE!"}},{"$f":"'2. Conservation Measures'!IW26","v":{"$error":"#VALUE!"}},{"$f":"'2. Conservation Measures'!IX26","v":{"$error":"#VALUE!"}},{"$f":"'2. Conservation Measures'!IY26","v":{"$error":"#VALUE!"}},{"$f":"'2. Conservation Measures'!IZ26","v":{"$error":"#VALUE!"}},{"$f":"'2. Conservation Measures'!JA26","v":{"$error":"#VALUE!"}},{"$f":"'2. Conservation Measures'!JB26","v":{"$error":"#VALUE!"}},{"$f":"'2. Conservation Measures'!JC26","v":{"$error":"#VALUE!"}},{"$f":"'2. Conservation Measures'!JD26","v":{"$error":"#VALUE!"}},{"$f":"'2. Conservation Measures'!JE26","v":{"$error":"#VALUE!"}},{"$f":"'2. Conservation Measures'!JF26","v":{"$error":"#VALUE!"}},{"$f":"'2. Conservation Measures'!JG26","v":{"$error":"#VALUE!"}},{"$f":"'2. Conservation Measures'!JH26","v":{"$error":"#VALUE!"}},{"$f":"'2. Conservation Measures'!JI26","v":{"$error":"#VALUE!"}},{"$f":"'2. Conservation Measures'!JJ26","v":{"$error":"#VALUE!"}},{"$f":"'2. Conservation Measures'!JK26","v":{"$error":"#VALUE!"}},{"$f":"'2. Conservation Measures'!JL26","v":{"$error":"#VALUE!"}},{"$f":"'2. Conservation Measures'!JM26","v":{"$error":"#VALUE!"}},{"$f":"'2. Conservation Measures'!JN26","v":{"$error":"#VALUE!"}},{"$f":"'2. Conservation Measures'!JO26","v":{"$error":"#VALUE!"}},{"$f":"'2. Conservation Measures'!JP26","v":{"$error":"#VALUE!"}},{"$f":"'2. Conservation Measures'!JQ26","v":{"$error":"#VALUE!"}},{"$f":"'2. Conservation Measures'!JR26","v":{"$error":"#VALUE!"}},{"$f":"'2. Conservation Measures'!JS26","v":{"$error":"#VALUE!"}},{"$f":"'2. Conservation Measures'!JT26","v":{"$error":"#VALUE!"}},{"$f":"'2. Conservation Measures'!JU26","v":{"$error":"#VALUE!"}},{"$f":"'2. Conservation Measures'!JV26","v":{"$error":"#VALUE!"}},{"$f":"'2. Conservation Measures'!JW26","v":{"$error":"#VALUE!"}},{"$f":"'2. Conservation Measures'!JX26","v":{"$error":"#VALUE!"}},{"$f":"'2. Conservation Measures'!JY26","v":{"$error":"#VALUE!"}},{"$f":"'2. Conservation Measures'!JZ26","v":{"$error":"#VALUE!"}},{"$f":"'2. Conservation Measures'!KA26","v":{"$error":"#VALUE!"}},{"$f":"'2. Conservation Measures'!KB26","v":{"$error":"#VALUE!"}},{"$f":"'2. Conservation Measures'!KC26","v":{"$error":"#VALUE!"}},{"$f":"'2. Conservation Measures'!KD26","v":{"$error":"#VALUE!"}},{"$f":"'2. Conservation Measures'!KE26","v":{"$error":"#VALUE!"}},{"$f":"'2. Conservation Measures'!KF26","v":{"$error":"#VALUE!"}},{"$f":"'2. Conservation Measures'!KG26","v":{"$error":"#VALUE!"}},{"$f":"'2. Conservation Measures'!KH26","v":{"$error":"#VALUE!"}},{"$f":"'2. Conservation Measures'!KI26","v":{"$error":"#VALUE!"}},{"$f":"'2. Conservation Measures'!KJ26","v":{"$error":"#VALUE!"}},{"$f":"'2. Conservation Measures'!KK26","v":{"$error":"#VALUE!"}},{"$f":"'2. Conservation Measures'!KL26","v":{"$error":"#VALUE!"}},{"$f":"'2. Conservation Measures'!KM26","v":{"$error":"#VALUE!"}},{"$f":"'2. Conservation Measures'!KN26","v":{"$error":"#VALUE!"}}]
[null,{"$f":"'2. Conservation Measures'!B27","v":"PRE-SF-05"},{"$f":"'2. Conservation Measures'!C27","v":{"$error":"#N/A"}},{"$f":"'2. Conservation Measures'!D27","v":"N"},null,{"$f":"'2. Conservation Measures'!AA27","v":{"$error":"#N/A"}},null,{"$f":"'2. Conservation Measures'!AO27","v":0},{"$f":"'2. Conservation Measures'!AP27","v":0},{"$f":"'2. Conservation Measures'!AQ27","v":0},{"$f":"'2. Conservation Measures'!AR27","v":0},{"$f":"'2. Conservation Measures'!AS27","v":0},{"$f":"'2. Conservation Measures'!AT27","v":0},{"$f":"'2. Conservation Measures'!AU27","v":0},{"$f":"'2. Conservation Measures'!AV27","v":0},{"$f":"'2. Conservation Measures'!AW27","v":0},{"$f":"'2. Conservation Measures'!AX27","v":0},{"$f":"'2. Conservation Measures'!AY27","v":0},{"$f":"'2. Conservation Measures'!AZ27","v":0},{"$f":"'2. Conservation Measures'!BA27","v":0},{"$f":"'2. Conservation Measures'!BB27","v":0},{"$f":"'2. Conservation Measures'!BC27","v":0},{"$f":"'2. Conservation Measures'!BD27","v":0},{"$f":"'2. Conservation Measures'!BE27","v":0},{"$f":"'2. Conservation Measures'!BF27","v":0},{"$f":"'2. Conservation Measures'!BG27","v":0},{"$f":"'2. Conservation Measures'!BH27","v":0},{"$f":"'2. Conservation Measures'!BI27","v":0},{"$f":"'2. Conservation Measures'!BJ27","v":0},{"$f":"'2. Conservation Measures'!BK27","v":0},{"$f":"'2. Conservation Measures'!BL27","v":0},{"$f":"'2. Conservation Measures'!BM27","v":0},{"$f":"'2. Conservation Measures'!BN27","v":0},{"$f":"'2. Conservation Measures'!BO27","v":0},{"$f":"'2. Conservation Measures'!BP27","v":0},{"$f":"'2. Conservation Measures'!BQ27","v":0},{"$f":"'2. Conservation Measures'!BR27","v":0},{"$f":"'2. Conservation Measures'!BS27","v":0},{"$f":"'2. Conservation Measures'!BT27","v":0},{"$f":"'2. Conservation Measures'!BU27","v":0},{"$f":"'2. Conservation Measures'!BV27","v":0},{"$f":"'2. Conservation Measures'!BW27","v":0},{"$f":"'2. Conservation Measures'!BX27","v":0},{"$f":"'2. Conservation Measures'!BY27","v":0},{"$f":"'2. Conservation Measures'!BZ27","v":0},{"$f":"'2. Conservation Measures'!CA27","v":0},{"$f":"'2. Conservation Measures'!CB27","v":0},{"$f":"'2. Conservation Measures'!CC27","v":0},{"$f":"'2. Conservation Measures'!CD27","v":0},{"$f":"'2. Conservation Measures'!CE27","v":0},{"$f":"'2. Conservation Measures'!CF27","v":0},{"$f":"'2. Conservation Measures'!CG27","v":0},{"$f":"'2. Conservation Measures'!CH27","v":0},{"$f":"'2. Conservation Measures'!CI27","v":0},{"$f":"'2. Conservation Measures'!CJ27","v":0},{"$f":"'2. Conservation Measures'!CK27","v":0},{"$f":"'2. Conservation Measures'!CL27","v":0},{"$f":"'2. Conservation Measures'!CM27","v":0},null,{"$f":"'2. Conservation Measures'!CO27","v":{"$error":"#VALUE!"}},{"$f":"'2. Conservation Measures'!CP27","v":{"$error":"#VALUE!"}},{"$f":"'2. Conservation Measures'!CQ27","v":{"$error":"#VALUE!"}},{"$f":"'2. Conservation Measures'!CR27","v":{"$error":"#VALUE!"}},{"$f":"'2. Conservation Measures'!CS27","v":{"$error":"#VALUE!"}},{"$f":"'2. Conservation Measures'!CT27","v":{"$error":"#VALUE!"}},{"$f":"'2. Conservation Measures'!CU27","v":{"$error":"#VALUE!"}},{"$f":"'2. Conservation Measures'!CV27","v":{"$error":"#VALUE!"}},{"$f":"'2. Conservation Measures'!CW27","v":{"$error":"#VALUE!"}},{"$f":"'2. Conservation Measures'!CX27","v":{"$error":"#VALUE!"}},{"$f":"'2. Conservation Measures'!CY27","v":{"$error":"#VALUE!"}},{"$f":"'2. Conservation Measures'!CZ27","v":{"$error":"#VALUE!"}},{"$f":"'2. Conservation Measures'!DA27","v":{"$error":"#VALUE!"}},{"$f":"'2. Conservation Measures'!DB27","v":{"$error":"#VALUE!"}},{"$f":"'2. Conservation Measures'!DC27","v":{"$error":"#VALUE!"}},{"$f":"'2. Conservation Measures'!DD27","v":{"$error":"#VALUE!"}},{"$f":"'2. Conservation Measures'!DE27","v":{"$error":"#VALUE!"}},{"$f":"'2. Conservation Measures'!DF27","v":{"$error":"#VALUE!"}},{"$f":"'2. Conservation Measures'!DG27","v":{"$error":"#VALUE!"}},{"$f":"'2. Conservation Measures'!DH27","v":{"$error":"#VALUE!"}},{"$f":"'2. Conservation Measures'!DI27","v":{"$error":"#VALUE!"}},{"$f":"'2. Conservation Measures'!DJ27","v":{"$error":"#VALUE!"}},{"$f":"'2. Conservation Measures'!DK27","v":{"$error":"#VALUE!"}},{"$f":"'2. Conservation Measures'!DL27","v":{"$error":"#VALUE!"}},{"$f":"'2. Conservation Measures'!DM27","v":{"$error":"#VALUE!"}},{"$f":"'2. Conservation Measures'!DN27","v":{"$error":"#VALUE!"}},{"$f":"'2. Conservation Measures'!DO27","v":{"$error":"#VALUE!"}},{"$f":"'2. Conservation Measures'!DP27","v":{"$error":"#VALUE!"}},{"$f":"'2. Conservation Measures'!DQ27","v":{"$error":"#VALUE!"}},{"$f":"'2. Conservation Measures'!DR27","v":{"$error":"#VALUE!"}},{"$f":"'2. Conservation Measures'!DS27","v":{"$error":"#VALUE!"}},{"$f":"'2. Conservation Measures'!DT27","v":{"$error":"#VALUE!"}},{"$f":"'2. Conservation Measures'!DU27","v":{"$error":"#VALUE!"}},{"$f":"'2. Conservation Measures'!DV27","v":{"$error":"#VALUE!"}},{"$f":"'2. Conservation Measures'!DW27","v":{"$error":"#VALUE!"}},{"$f":"'2. Conservation Measures'!DX27","v":{"$error":"#VALUE!"}},{"$f":"'2. Conservation Measures'!DY27","v":{"$error":"#VALUE!"}},{"$f":"'2. Conservation Measures'!DZ27","v":{"$error":"#VALUE!"}},{"$f":"'2. Conservation Measures'!EA27","v":{"$error":"#VALUE!"}},{"$f":"'2. Conservation Measures'!EB27","v":{"$error":"#VALUE!"}},{"$f":"'2. Conservation Measures'!EC27","v":{"$error":"#VALUE!"}},{"$f":"'2. Conservation Measures'!ED27","v":{"$error":"#VALUE!"}},{"$f":"'2. Conservation Measures'!EE27","v":{"$error":"#VALUE!"}},{"$f":"'2. Conservation Measures'!EF27","v":{"$error":"#VALUE!"}},{"$f":"'2. Conservation Measures'!EG27","v":{"$error":"#VALUE!"}},{"$f":"'2. Conservation Measures'!EH27","v":{"$error":"#VALUE!"}},{"$f":"'2. Conservation Measures'!EI27","v":{"$error":"#VALUE!"}},{"$f":"'2. Conservation Measures'!EJ27","v":{"$error":"#VALUE!"}},{"$f":"'2. Conservation Measures'!EK27","v":{"$error":"#VALUE!"}},{"$f":"'2. Conservation Measures'!EL27","v":{"$error":"#VALUE!"}},{"$f":"'2. Conservation Measures'!EM27","v":{"$error":"#VALUE!"}},null,{"$f":"'2. Conservation Measures'!KP27","v":{"$error":"#N/A"}},{"$f":"'2. Conservation Measures'!KQ27","v":{"$error":"#N/A"}},{"$f":"'2. Conservation Measures'!KR27","v":{"$error":"#N/A"}},{"$f":"'2. Conservation Measures'!KS27","v":{"$error":"#N/A"}},{"$f":"'2. Conservation Measures'!KT27","v":{"$error":"#N/A"}},{"$f":"'2. Conservation Measures'!KU27","v":{"$error":"#N/A"}},{"$f":"'2. Conservation Measures'!KV27","v":{"$error":"#N/A"}},{"$f":"'2. Conservation Measures'!KW27","v":{"$error":"#N/A"}},{"$f":"'2. Conservation Measures'!KX27","v":{"$error":"#N/A"}},{"$f":"'2. Conservation Measures'!KY27","v":{"$error":"#N/A"}},{"$f":"'2. Conservation Measures'!KZ27","v":{"$error":"#N/A"}},{"$f":"'2. Conservation Measures'!LA27","v":{"$error":"#N/A"}},{"$f":"'2. Conservation Measures'!LB27","v":{"$error":"#N/A"}},{"$f":"'2. Conservation Measures'!LC27","v":{"$error":"#N/A"}},{"$f":"'2. Conservation Measures'!LD27","v":{"$error":"#N/A"}},{"$f":"'2. Conservation Measures'!LE27","v":{"$error":"#N/A"}},{"$f":"'2. Conservation Measures'!LF27","v":{"$error":"#N/A"}},{"$f":"'2. Conservation Measures'!LG27","v":{"$error":"#N/A"}},{"$f":"'2. Conservation Measures'!LH27","v":{"$error":"#N/A"}},{"$f":"'2. Conservation Measures'!LI27","v":{"$error":"#N/A"}},{"$f":"'2. Conservation Measures'!LJ27","v":{"$error":"#N/A"}},{"$f":"'2. Conservation Measures'!LK27","v":{"$error":"#N/A"}},{"$f":"'2. Conservation Measures'!LL27","v":{"$error":"#N/A"}},{"$f":"'2. Conservation Measures'!LM27","v":{"$error":"#N/A"}},{"$f":"'2. Conservation Measures'!LN27","v":{"$error":"#N/A"}},{"$f":"'2. Conservation Measures'!LO27","v":{"$error":"#N/A"}},{"$f":"'2. Conservation Measures'!LP27","v":{"$error":"#N/A"}},{"$f":"'2. Conservation Measures'!LQ27","v":{"$error":"#N/A"}},{"$f":"'2. Conservation Measures'!LR27","v":{"$error":"#N/A"}},{"$f":"'2. Conservation Measures'!LS27","v":{"$error":"#N/A"}},{"$f":"'2. Conservation Measures'!LT27","v":{"$error":"#N/A"}},{"$f":"'2. Conservation Measures'!LU27","v":{"$error":"#N/A"}},{"$f":"'2. Conservation Measures'!LV27","v":{"$error":"#N/A"}},{"$f":"'2. Conservation Measures'!LW27","v":{"$error":"#N/A"}},{"$f":"'2. Conservation Measures'!LX27","v":{"$error":"#N/A"}},{"$f":"'2. Conservation Measures'!LY27","v":{"$error":"#N/A"}},{"$f":"'2. Conservation Measures'!LZ27","v":{"$error":"#N/A"}},{"$f":"'2. Conservation Measures'!MA27","v":{"$error":"#N/A"}},{"$f":"'2. Conservation Measures'!MB27","v":{"$error":"#N/A"}},{"$f":"'2. Conservation Measures'!MC27","v":{"$error":"#N/A"}},{"$f":"'2. Conservation Measures'!MD27","v":{"$error":"#N/A"}},{"$f":"'2. Conservation Measures'!ME27","v":{"$error":"#N/A"}},{"$f":"'2. Conservation Measures'!MF27","v":{"$error":"#N/A"}},{"$f":"'2. Conservation Measures'!MG27","v":{"$error":"#N/A"}},{"$f":"'2. Conservation Measures'!MH27","v":{"$error":"#N/A"}},{"$f":"'2. Conservation Measures'!MI27","v":{"$error":"#N/A"}},{"$f":"'2. Conservation Measures'!MJ27","v":{"$error":"#N/A"}},{"$f":"'2. Conservation Measures'!MK27","v":{"$error":"#N/A"}},{"$f":"'2. Conservation Measures'!ML27","v":{"$error":"#N/A"}},{"$f":"'2. Conservation Measures'!MM27","v":{"$error":"#N/A"}},{"$f":"'2. Conservation Measures'!MN27","v":{"$error":"#N/A"}},null,{"$f":"'2. Conservation Measures'!EP27","v":{"$error":"#N/A"}},{"$f":"'2. Conservation Measures'!EQ27","v":{"$error":"#N/A"}},{"$f":"'2. Conservation Measures'!ER27","v":{"$error":"#N/A"}},{"$f":"'2. Conservation Measures'!ES27","v":{"$error":"#N/A"}},{"$f":"'2. Conservation Measures'!ET27","v":{"$error":"#N/A"}},{"$f":"'2. Conservation Measures'!EU27","v":{"$error":"#N/A"}},{"$f":"'2. Conservation Measures'!EV27","v":{"$error":"#N/A"}},{"$f":"'2. Conservation Measures'!EW27","v":{"$error":"#N/A"}},{"$f":"'2. Conservation Measures'!EX27","v":{"$error":"#N/A"}},{"$f":"'2. Conservation Measures'!EY27","v":{"$error":"#N/A"}},{"$f":"'2. Conservation Measures'!EZ27","v":{"$error":"#N/A"}},{"$f":"'2. Conservation Measures'!FA27","v":{"$error":"#N/A"}},{"$f":"'2. Conservation Measures'!FB27","v":{"$error":"#N/A"}},{"$f":"'2. Conservation Measures'!FC27","v":{"$error":"#N/A"}},{"$f":"'2. Conservation Measures'!FD27","v":{"$error":"#N/A"}},{"$f":"'2. Conservation Measures'!FE27","v":{"$error":"#N/A"}},{"$f":"'2. Conservation Measures'!FF27","v":{"$error":"#N/A"}},{"$f":"'2. Conservation Measures'!FG27","v":{"$error":"#N/A"}},{"$f":"'2. Conservation Measures'!FH27","v":{"$error":"#N/A"}},{"$f":"'2. Conservation Measures'!FI27","v":{"$error":"#N/A"}},{"$f":"'2. Conservation Measures'!FJ27","v":{"$error":"#N/A"}},{"$f":"'2. Conservation Measures'!FK27","v":{"$error":"#N/A"}},{"$f":"'2. Conservation Measures'!FL27","v":{"$error":"#N/A"}},{"$f":"'2. Conservation Measures'!FM27","v":{"$error":"#N/A"}},{"$f":"'2. Conservation Measures'!FN27","v":{"$error":"#N/A"}},{"$f":"'2. Conservation Measures'!FO27","v":{"$error":"#N/A"}},{"$f":"'2. Conservation Measures'!FP27","v":{"$error":"#N/A"}},{"$f":"'2. Conservation Measures'!FQ27","v":{"$error":"#N/A"}},{"$f":"'2. Conservation Measures'!FR27","v":{"$error":"#N/A"}},{"$f":"'2. Conservation Measures'!FS27","v":{"$error":"#N/A"}},{"$f":"'2. Conservation Measures'!FT27","v":{"$error":"#N/A"}},{"$f":"'2. Conservation Measures'!FU27","v":{"$error":"#N/A"}},{"$f":"'2. Conservation Measures'!FV27","v":{"$error":"#N/A"}},{"$f":"'2. Conservation Measures'!FW27","v":{"$error":"#N/A"}},{"$f":"'2. Conservation Measures'!FX27","v":{"$error":"#N/A"}},{"$f":"'2. Conservation Measures'!FY27","v":{"$error":"#N/A"}},{"$f":"'2. Conservation Measures'!FZ27","v":{"$error":"#N/A"}},{"$f":"'2. Conservation Measures'!GA27","v":{"$error":"#N/A"}},{"$f":"'2. Conservation Measures'!GB27","v":{"$error":"#N/A"}},{"$f":"'2. Conservation Measures'!GC27","v":{"$error":"#N/A"}},{"$f":"'2. Conservation Measures'!GD27","v":{"$error":"#N/A"}},{"$f":"'2. Conservation Measures'!GE27","v":{"$error":"#N/A"}},{"$f":"'2. Conservation Measures'!GF27","v":{"$error":"#N/A"}},{"$f":"'2. Conservation Measures'!GG27","v":{"$error":"#N/A"}},{"$f":"'2. Conservation Measures'!GH27","v":{"$error":"#N/A"}},{"$f":"'2. Conservation Measures'!GI27","v":{"$error":"#N/A"}},{"$f":"'2. Conservation Measures'!GJ27","v":{"$error":"#N/A"}},{"$f":"'2. Conservation Measures'!GK27","v":{"$error":"#N/A"}},{"$f":"'2. Conservation Measures'!GL27","v":{"$error":"#N/A"}},{"$f":"'2. Conservation Measures'!GM27","v":{"$error":"#N/A"}},{"$f":"'2. Conservation Measures'!GN27","v":{"$error":"#N/A"}},null,{"$f":"'2. Conservation Measures'!GP27","v":{"$error":"#N/A"}},{"$f":"'2. Conservation Measures'!GQ27","v":{"$error":"#N/A"}},{"$f":"'2. Conservation Measures'!GR27","v":{"$error":"#N/A"}},{"$f":"'2. Conservation Measures'!GS27","v":{"$error":"#N/A"}},{"$f":"'2. Conservation Measures'!GT27","v":{"$error":"#N/A"}},{"$f":"'2. Conservation Measures'!GU27","v":{"$error":"#N/A"}},{"$f":"'2. Conservation Measures'!GV27","v":{"$error":"#N/A"}},{"$f":"'2. Conservation Measures'!GW27","v":{"$error":"#N/A"}},{"$f":"'2. Conservation Measures'!GX27","v":{"$error":"#N/A"}},{"$f":"'2. Conservation Measures'!GY27","v":{"$error":"#N/A"}},{"$f":"'2. Conservation Measures'!GZ27","v":{"$error":"#N/A"}},{"$f":"'2. Conservation Measures'!HA27","v":{"$error":"#N/A"}},{"$f":"'2. Conservation Measures'!HB27","v":{"$error":"#N/A"}},{"$f":"'2. Conservation Measures'!HC27","v":{"$error":"#N/A"}},{"$f":"'2. Conservation Measures'!HD27","v":{"$error":"#N/A"}},{"$f":"'2. Conservation Measures'!HE27","v":{"$error":"#N/A"}},{"$f":"'2. Conservation Measures'!HF27","v":{"$error":"#N/A"}},{"$f":"'2. Conservation Measures'!HG27","v":{"$error":"#N/A"}},{"$f":"'2. Conservation Measures'!HH27","v":{"$error":"#N/A"}},{"$f":"'2. Conservation Measures'!HI27","v":{"$error":"#N/A"}},{"$f":"'2. Conservation Measures'!HJ27","v":{"$error":"#N/A"}},{"$f":"'2. Conservation Measures'!HK27","v":{"$error":"#N/A"}},{"$f":"'2. Conservation Measures'!HL27","v":{"$error":"#N/A"}},{"$f":"'2. Conservation Measures'!HM27","v":{"$error":"#N/A"}},{"$f":"'2. Conservation Measures'!HN27","v":{"$error":"#N/A"}},{"$f":"'2. Conservation Measures'!HO27","v":{"$error":"#N/A"}},{"$f":"'2. Conservation Measures'!HP27","v":{"$error":"#N/A"}},{"$f":"'2. Conservation Measures'!HQ27","v":{"$error":"#N/A"}},{"$f":"'2. Conservation Measures'!HR27","v":{"$error":"#N/A"}},{"$f":"'2. Conservation Measures'!HS27","v":{"$error":"#N/A"}},{"$f":"'2. Conservation Measures'!HT27","v":{"$error":"#N/A"}},{"$f":"'2. Conservation Measures'!HU27","v":{"$error":"#N/A"}},{"$f":"'2. Conservation Measures'!HV27","v":{"$error":"#N/A"}},{"$f":"'2. Conservation Measures'!HW27","v":{"$error":"#N/A"}},{"$f":"'2. Conservation Measures'!HX27","v":{"$error":"#N/A"}},{"$f":"'2. Conservation Measures'!HY27","v":{"$error":"#N/A"}},{"$f":"'2. Conservation Measures'!HZ27","v":{"$error":"#N/A"}},{"$f":"'2. Conservation Measures'!IA27","v":{"$error":"#N/A"}},{"$f":"'2. Conservation Measures'!IB27","v":{"$error":"#N/A"}},{"$f":"'2. Conservation Measures'!IC27","v":{"$error":"#N/A"}},{"$f":"'2. Conservation Measures'!ID27","v":{"$error":"#N/A"}},{"$f":"'2. Conservation Measures'!IE27","v":{"$error":"#N/A"}},{"$f":"'2. Conservation Measures'!IF27","v":{"$error":"#N/A"}},{"$f":"'2. Conservation Measures'!IG27","v":{"$error":"#N/A"}},{"$f":"'2. Conservation Measures'!IH27","v":{"$error":"#N/A"}},{"$f":"'2. Conservation Measures'!II27","v":{"$error":"#N/A"}},{"$f":"'2. Conservation Measures'!IJ27","v":{"$error":"#N/A"}},{"$f":"'2. Conservation Measures'!IK27","v":{"$error":"#N/A"}},{"$f":"'2. Conservation Measures'!IL27","v":{"$error":"#N/A"}},{"$f":"'2. Conservation Measures'!IM27","v":{"$error":"#N/A"}},{"$f":"'2. Conservation Measures'!IN27","v":{"$error":"#N/A"}},null,{"$f":"'2. Conservation Measures'!IP27","v":{"$error":"#VALUE!"}},{"$f":"'2. Conservation Measures'!IQ27","v":{"$error":"#VALUE!"}},{"$f":"'2. Conservation Measures'!IR27","v":{"$error":"#VALUE!"}},{"$f":"'2. Conservation Measures'!IS27","v":{"$error":"#VALUE!"}},{"$f":"'2. Conservation Measures'!IT27","v":{"$error":"#VALUE!"}},{"$f":"'2. Conservation Measures'!IU27","v":{"$error":"#VALUE!"}},{"$f":"'2. Conservation Measures'!IV27","v":{"$error":"#VALUE!"}},{"$f":"'2. Conservation Measures'!IW27","v":{"$error":"#VALUE!"}},{"$f":"'2. Conservation Measures'!IX27","v":{"$error":"#VALUE!"}},{"$f":"'2. Conservation Measures'!IY27","v":{"$error":"#VALUE!"}},{"$f":"'2. Conservation Measures'!IZ27","v":{"$error":"#VALUE!"}},{"$f":"'2. Conservation Measures'!JA27","v":{"$error":"#VALUE!"}},{"$f":"'2. Conservation Measures'!JB27","v":{"$error":"#VALUE!"}},{"$f":"'2. Conservation Measures'!JC27","v":{"$error":"#VALUE!"}},{"$f":"'2. Conservation Measures'!JD27","v":{"$error":"#VALUE!"}},{"$f":"'2. Conservation Measures'!JE27","v":{"$error":"#VALUE!"}},{"$f":"'2. Conservation Measures'!JF27","v":{"$error":"#VALUE!"}},{"$f":"'2. Conservation Measures'!JG27","v":{"$error":"#VALUE!"}},{"$f":"'2. Conservation Measures'!JH27","v":{"$error":"#VALUE!"}},{"$f":"'2. Conservation Measures'!JI27","v":{"$error":"#VALUE!"}},{"$f":"'2. Conservation Measures'!JJ27","v":{"$error":"#VALUE!"}},{"$f":"'2. Conservation Measures'!JK27","v":{"$error":"#VALUE!"}},{"$f":"'2. Conservation Measures'!JL27","v":{"$error":"#VALUE!"}},{"$f":"'2. Conservation Measures'!JM27","v":{"$error":"#VALUE!"}},{"$f":"'2. Conservation Measures'!JN27","v":{"$error":"#VALUE!"}},{"$f":"'2. Conservation Measures'!JO27","v":{"$error":"#VALUE!"}},{"$f":"'2. Conservation Measures'!JP27","v":{"$error":"#VALUE!"}},{"$f":"'2. Conservation Measures'!JQ27","v":{"$error":"#VALUE!"}},{"$f":"'2. Conservation Measures'!JR27","v":{"$error":"#VALUE!"}},{"$f":"'2. Conservation Measures'!JS27","v":{"$error":"#VALUE!"}},{"$f":"'2. Conservation Measures'!JT27","v":{"$error":"#VALUE!"}},{"$f":"'2. Conservation Measures'!JU27","v":{"$error":"#VALUE!"}},{"$f":"'2. Conservation Measures'!JV27","v":{"$error":"#VALUE!"}},{"$f":"'2. Conservation Measures'!JW27","v":{"$error":"#VALUE!"}},{"$f":"'2. Conservation Measures'!JX27","v":{"$error":"#VALUE!"}},{"$f":"'2. Conservation Measures'!JY27","v":{"$error":"#VALUE!"}},{"$f":"'2. Conservation Measures'!JZ27","v":{"$error":"#VALUE!"}},{"$f":"'2. Conservation Measures'!KA27","v":{"$error":"#VALUE!"}},{"$f":"'2. Conservation Measures'!KB27","v":{"$error":"#VALUE!"}},{"$f":"'2. Conservation Measures'!KC27","v":{"$error":"#VALUE!"}},{"$f":"'2. Conservation Measures'!KD27","v":{"$error":"#VALUE!"}},{"$f":"'2. Conservation Measures'!KE27","v":{"$error":"#VALUE!"}},{"$f":"'2. Conservation Measures'!KF27","v":{"$error":"#VALUE!"}},{"$f":"'2. Conservation Measures'!KG27","v":{"$error":"#VALUE!"}},{"$f":"'2. Conservation Measures'!KH27","v":{"$error":"#VALUE!"}},{"$f":"'2. Conservation Measures'!KI27","v":{"$error":"#VALUE!"}},{"$f":"'2. Conservation Measures'!KJ27","v":{"$error":"#VALUE!"}},{"$f":"'2. Conservation Measures'!KK27","v":{"$error":"#VALUE!"}},{"$f":"'2. Conservation Measures'!KL27","v":{"$error":"#VALUE!"}},{"$f":"'2. Conservation Measures'!KM27","v":{"$error":"#VALUE!"}},{"$f":"'2. Conservation Measures'!KN27","v":{"$error":"#VALUE!"}}]
[null,{"$f":"'2. Conservation Measures'!B28","v":"PRE-SF-06"},{"$f":"'2. Conservation Measures'!C28","v":{"$error":"#N/A"}},{"$f":"'2. Conservation Measures'!D28","v":"N"},null,{"$f":"'2. Conservation Measures'!AA28","v":{"$error":"#N/A"}},null,{"$f":"'2. Conservation Measures'!AO28","v":0},{"$f":"'2. Conservation Measures'!AP28","v":0},{"$f":"'2. Conservation Measures'!AQ28","v":0},{"$f":"'2. Conservation Measures'!AR28","v":0},{"$f":"'2. Conservation Measures'!AS28","v":0},{"$f":"'2. Conservation Measures'!AT28","v":0},{"$f":"'2. Conservation Measures'!AU28","v":0},{"$f":"'2. Conservation Measures'!AV28","v":0},{"$f":"'2. Conservation Measures'!AW28","v":0},{"$f":"'2. Conservation Measures'!AX28","v":0},{"$f":"'2. Conservation Measures'!AY28","v":0},{"$f":"'2. Conservation Measures'!AZ28","v":0},{"$f":"'2. Conservation Measures'!BA28","v":0},{"$f":"'2. Conservation Measures'!BB28","v":0},{"$f":"'2. Conservation Measures'!BC28","v":0},{"$f":"'2. Conservation Measures'!BD28","v":0},{"$f":"'2. Conservation Measures'!BE28","v":0},{"$f":"'2. Conservation Measures'!BF28","v":0},{"$f":"'2. Conservation Measures'!BG28","v":0},{"$f":"'2. Conservation Measures'!BH28","v":0},{"$f":"'2. Conservation Measures'!BI28","v":0},{"$f":"'2. Conservation Measures'!BJ28","v":0},{"$f":"'2. Conservation Measures'!BK28","v":0},{"$f":"'2. Conservation Measures'!BL28","v":0},{"$f":"'2. Conservation Measures'!BM28","v":0},{"$f":"'2. Conservation Measures'!BN28","v":0},{"$f":"'2. Conservation Measures'!BO28","v":0},{"$f":"'2. Conservation Measures'!BP28","v":0},{"$f":"'2. Conservation Measures'!BQ28","v":0},{"$f":"'2. Conservation Measures'!BR28","v":0},{"$f":"'2. Conservation Measures'!BS28","v":0},{"$f":"'2. Conservation Measures'!BT28","v":0},{"$f":"'2. Conservation Measures'!BU28","v":0},{"$f":"'2. Conservation Measures'!BV28","v":0},{"$f":"'2. Conservation Measures'!BW28","v":0},{"$f":"'2. Conservation Measures'!BX28","v":0},{"$f":"'2. Conservation Measures'!BY28","v":0},{"$f":"'2. Conservation Measures'!BZ28","v":0},{"$f":"'2. Conservation Measures'!CA28","v":0},{"$f":"'2. Conservation Measures'!CB28","v":0},{"$f":"'2. Conservation Measures'!CC28","v":0},{"$f":"'2. Conservation Measures'!CD28","v":0},{"$f":"'2. Conservation Measures'!CE28","v":0},{"$f":"'2. Conservation Measures'!CF28","v":0},{"$f":"'2. Conservation Measures'!CG28","v":0},{"$f":"'2. Conservation Measures'!CH28","v":0},{"$f":"'2. Conservation Measures'!CI28","v":0},{"$f":"'2. Conservation Measures'!CJ28","v":0},{"$f":"'2. Conservation Measures'!CK28","v":0},{"$f":"'2. Conservation Measures'!CL28","v":0},{"$f":"'2. Conservation Measures'!CM28","v":0},null,{"$f":"'2. Conservation Measures'!CO28","v":{"$error":"#VALUE!"}},{"$f":"'2. Conservation Measures'!CP28","v":{"$error":"#VALUE!"}},{"$f":"'2. Conservation Measures'!CQ28","v":{"$error":"#VALUE!"}},{"$f":"'2. Conservation Measures'!CR28","v":{"$error":"#VALUE!"}},{"$f":"'2. Conservation Measures'!CS28","v":{"$error":"#VALUE!"}},{"$f":"'2. Conservation Measures'!CT28","v":{"$error":"#VALUE!"}},{"$f":"'2. Conservation Measures'!CU28","v":{"$error":"#VALUE!"}},{"$f":"'2. Conservation Measures'!CV28","v":{"$error":"#VALUE!"}},{"$f":"'2. Conservation Measures'!CW28","v":{"$error":"#VALUE!"}},{"$f":"'2. Conservation Measures'!CX28","v":{"$error":"#VALUE!"}},{"$f":"'2. Conservation Measures'!CY28","v":{"$error":"#VALUE!"}},{"$f":"'2. Conservation Measures'!CZ28","v":{"$error":"#VALUE!"}},{"$f":"'2. Conservation Measures'!DA28","v":{"$error":"#VALUE!"}},{"$f":"'2. Conservation Measures'!DB28","v":{"$error":"#VALUE!"}},{"$f":"'2. Conservation Measures'!DC28","v":{"$error":"#VALUE!"}},{"$f":"'2. Conservation Measures'!DD28","v":{"$error":"#VALUE!"}},{"$f":"'2. Conservation Measures'!DE28","v":{"$error":"#VALUE!"}},{"$f":"'2. Conservation Measures'!DF28","v":{"$error":"#VALUE!"}},{"$f":"'2. Conservation Measures'!DG28","v":{"$error":"#VALUE!"}},{"$f":"'2. Conservation Measures'!DH28","v":{"$error":"#VALUE!"}},{"$f":"'2. Conservation Measures'!DI28","v":{"$error":"#VALUE!"}},{"$f":"'2. Conservation Measures'!DJ28","v":{"$error":"#VALUE!"}},{"$f":"'2. Conservation Measures'!DK28","v":{"$error":"#VALUE!"}},{"$f":"'2. Conservation Measures'!DL28","v":{"$error":"#VALUE!"}},{"$f":"'2. Conservation Measures'!DM28","v":{"$error":"#VALUE!"}},{"$f":"'2. Conservation Measures'!DN28","v":{"$error":"#VALUE!"}},{"$f":"'2. Conservation Measures'!DO28","v":{"$error":"#VALUE!"}},{"$f":"'2. Conservation Measures'!DP28","v":{"$error":"#VALUE!"}},{"$f":"'2. Conservation Measures'!DQ28","v":{"$error":"#VALUE!"}},{"$f":"'2. Conservation Measures'!DR28","v":{"$error":"#VALUE!"}},{"$f":"'2. Conservation Measures'!DS28","v":{"$error":"#VALUE!"}},{"$f":"'2. Conservation Measures'!DT28","v":{"$error":"#VALUE!"}},{"$f":"'2. Conservation Measures'!DU28","v":{"$error":"#VALUE!"}},{"$f":"'2. Conservation Measures'!DV28","v":{"$error":"#VALUE!"}},{"$f":"'2. Conservation Measures'!DW28","v":{"$error":"#VALUE!"}},{"$f":"'2. Conservation Measures'!DX28","v":{"$error":"#VALUE!"}},{"$f":"'2. Conservation Measures'!DY28","v":{"$error":"#VALUE!"}},{"$f":"'2. Conservation Measures'!DZ28","v":{"$error":"#VALUE!"}},{"$f":"'2. Conservation Measures'!EA28","v":{"$error":"#VALUE!"}},{"$f":"'2. Conservation Measures'!EB28","v":{"$error":"#VALUE!"}},{"$f":"'2. Conservation Measures'!EC28","v":{"$error":"#VALUE!"}},{"$f":"'2. Conservation Measures'!ED28","v":{"$error":"#VALUE!"}},{"$f":"'2. Conservation Measures'!EE28","v":{"$error":"#VALUE!"}},{"$f":"'2. Conservation Measures'!EF28","v":{"$error":"#VALUE!"}},{"$f":"'2. Conservation Measures'!EG28","v":{"$error":"#VALUE!"}},{"$f":"'2. Conservation Measures'!EH28","v":{"$error":"#VALUE!"}},{"$f":"'2. Conservation Measures'!EI28","v":{"$error":"#VALUE!"}},{"$f":"'2. Conservation Measures'!EJ28","v":{"$error":"#VALUE!"}},{"$f":"'2. Conservation Measures'!EK28","v":{"$error":"#VALUE!"}},{"$f":"'2. Conservation Measures'!EL28","v":{"$error":"#VALUE!"}},{"$f":"'2. Conservation Measures'!EM28","v":{"$error":"#VALUE!"}},null,{"$f":"'2. Conservation Measures'!KP28","v":{"$error":"#N/A"}},{"$f":"'2. Conservation Measures'!KQ28","v":{"$error":"#N/A"}},{"$f":"'2. Conservation Measures'!KR28","v":{"$error":"#N/A"}},{"$f":"'2. Conservation Measures'!KS28","v":{"$error":"#N/A"}},{"$f":"'2. Conservation Measures'!KT28","v":{"$error":"#N/A"}},{"$f":"'2. Conservation Measures'!KU28","v":{"$error":"#N/A"}},{"$f":"'2. Conservation Measures'!KV28","v":{"$error":"#N/A"}},{"$f":"'2. Conservation Measures'!KW28","v":{"$error":"#N/A"}},{"$f":"'2. Conservation Measures'!KX28","v":{"$error":"#N/A"}},{"$f":"'2. Conservation Measures'!KY28","v":{"$error":"#N/A"}},{"$f":"'2. Conservation Measures'!KZ28","v":{"$error":"#N/A"}},{"$f":"'2. Conservation Measures'!LA28","v":{"$error":"#N/A"}},{"$f":"'2. Conservation Measures'!LB28","v":{"$error":"#N/A"}},{"$f":"'2. Conservation Measures'!LC28","v":{"$error":"#N/A"}},{"$f":"'2. Conservation Measures'!LD28","v":{"$error":"#N/A"}},{"$f":"'2. Conservation Measures'!LE28","v":{"$error":"#N/A"}},{"$f":"'2. Conservation Measures'!LF28","v":{"$error":"#N/A"}},{"$f":"'2. Conservation Measures'!LG28","v":{"$error":"#N/A"}},{"$f":"'2. Conservation Measures'!LH28","v":{"$error":"#N/A"}},{"$f":"'2. Conservation Measures'!LI28","v":{"$error":"#N/A"}},{"$f":"'2. Conservation Measures'!LJ28","v":{"$error":"#N/A"}},{"$f":"'2. Conservation Measures'!LK28","v":{"$error":"#N/A"}},{"$f":"'2. Conservation Measures'!LL28","v":{"$error":"#N/A"}},{"$f":"'2. Conservation Measures'!LM28","v":{"$error":"#N/A"}},{"$f":"'2. Conservation Measures'!LN28","v":{"$error":"#N/A"}},{"$f":"'2. Conservation Measures'!LO28","v":{"$error":"#N/A"}},{"$f":"'2. Conservation Measures'!LP28","v":{"$error":"#N/A"}},{"$f":"'2. Conservation Measures'!LQ28","v":{"$error":"#N/A"}},{"$f":"'2. Conservation Measures'!LR28","v":{"$error":"#N/A"}},{"$f":"'2. Conservation Measures'!LS28","v":{"$error":"#N/A"}},{"$f":"'2. Conservation Measures'!LT28","v":{"$error":"#N/A"}},{"$f":"'2. Conservation Measures'!LU28","v":{"$error":"#N/A"}},{"$f":"'2. Conservation Measures'!LV28","v":{"$error":"#N/A"}},{"$f":"'2. Conservation Measures'!LW28","v":{"$error":"#N/A"}},{"$f":"'2. Conservation Measures'!LX28","v":{"$error":"#N/A"}},{"$f":"'2. Conservation Measures'!LY28","v":{"$error":"#N/A"}},{"$f":"'2. Conservation Measures'!LZ28","v":{"$error":"#N/A"}},{"$f":"'2. Conservation Measures'!MA28","v":{"$error":"#N/A"}},{"$f":"'2. Conservation Measures'!MB28","v":{"$error":"#N/A"}},{"$f":"'2. Conservation Measures'!MC28","v":{"$error":"#N/A"}},{"$f":"'2. Conservation Measures'!MD28","v":{"$error":"#N/A"}},{"$f":"'2. Conservation Measures'!ME28","v":{"$error":"#N/A"}},{"$f":"'2. Conservation Measures'!MF28","v":{"$error":"#N/A"}},{"$f":"'2. Conservation Measures'!MG28","v":{"$error":"#N/A"}},{"$f":"'2. Conservation Measures'!MH28","v":{"$error":"#N/A"}},{"$f":"'2. Conservation Measures'!MI28","v":{"$error":"#N/A"}},{"$f":"'2. Conservation Measures'!MJ28","v":{"$error":"#N/A"}},{"$f":"'2. Conservation Measures'!MK28","v":{"$error":"#N/A"}},{"$f":"'2. Conservation Measures'!ML28","v":{"$error":"#N/A"}},{"$f":"'2. Conservation Measures'!MM28","v":{"$error":"#N/A"}},{"$f":"'2. Conservation Measures'!MN28","v":{"$error":"#N/A"}},null,{"$f":"'2. Conservation Measures'!EP28","v":{"$error":"#N/A"}},{"$f":"'2. Conservation Measures'!EQ28","v":{"$error":"#N/A"}},{"$f":"'2. Conservation Measures'!ER28","v":{"$error":"#N/A"}},{"$f":"'2. Conservation Measures'!ES28","v":{"$error":"#N/A"}},{"$f":"'2. Conservation Measures'!ET28","v":{"$error":"#N/A"}},{"$f":"'2. Conservation Measures'!EU28","v":{"$error":"#N/A"}},{"$f":"'2. Conservation Measures'!EV28","v":{"$error":"#N/A"}},{"$f":"'2. Conservation Measures'!EW28","v":{"$error":"#N/A"}},{"$f":"'2. Conservation Measures'!EX28","v":{"$error":"#N/A"}},{"$f":"'2. Conservation Measures'!EY28","v":{"$error":"#N/A"}},{"$f":"'2. Conservation Measures'!EZ28","v":{"$error":"#N/A"}},{"$f":"'2. Conservation Measures'!FA28","v":{"$error":"#N/A"}},{"$f":"'2. Conservation Measures'!FB28","v":{"$error":"#N/A"}},{"$f":"'2. Conservation Measures'!FC28","v":{"$error":"#N/A"}},{"$f":"'2. Conservation Measures'!FD28","v":{"$error":"#N/A"}},{"$f":"'2. Conservation Measures'!FE28","v":{"$error":"#N/A"}},{"$f":"'2. Conservation Measures'!FF28","v":{"$error":"#N/A"}},{"$f":"'2. Conservation Measures'!FG28","v":{"$error":"#N/A"}},{"$f":"'2. Conservation Measures'!FH28","v":{"$error":"#N/A"}},{"$f":"'2. Conservation Measures'!FI28","v":{"$error":"#N/A"}},{"$f":"'2. Conservation Measures'!FJ28","v":{"$error":"#N/A"}},{"$f":"'2. Conservation Measures'!FK28","v":{"$error":"#N/A"}},{"$f":"'2. Conservation Measures'!FL28","v":{"$error":"#N/A"}},{"$f":"'2. Conservation Measures'!FM28","v":{"$error":"#N/A"}},{"$f":"'2. Conservation Measures'!FN28","v":{"$error":"#N/A"}},{"$f":"'2. Conservation Measures'!FO28","v":{"$error":"#N/A"}},{"$f":"'2. Conservation Measures'!FP28","v":{"$error":"#N/A"}},{"$f":"'2. Conservation Measures'!FQ28","v":{"$error":"#N/A"}},{"$f":"'2. Conservation Measures'!FR28","v":{"$error":"#N/A"}},{"$f":"'2. Conservation Measures'!FS28","v":{"$error":"#N/A"}},{"$f":"'2. Conservation Measures'!FT28","v":{"$error":"#N/A"}},{"$f":"'2. Conservation Measures'!FU28","v":{"$error":"#N/A"}},{"$f":"'2. Conservation Measures'!FV28","v":{"$error":"#N/A"}},{"$f":"'2. Conservation Measures'!FW28","v":{"$error":"#N/A"}},{"$f":"'2. Conservation Measures'!FX28","v":{"$error":"#N/A"}},{"$f":"'2. Conservation Measures'!FY28","v":{"$error":"#N/A"}},{"$f":"'2. Conservation Measures'!FZ28","v":{"$error":"#N/A"}},{"$f":"'2. Conservation Measures'!GA28","v":{"$error":"#N/A"}},{"$f":"'2. Conservation Measures'!GB28","v":{"$error":"#N/A"}},{"$f":"'2. Conservation Measures'!GC28","v":{"$error":"#N/A"}},{"$f":"'2. Conservation Measures'!GD28","v":{"$error":"#N/A"}},{"$f":"'2. Conservation Measures'!GE28","v":{"$error":"#N/A"}},{"$f":"'2. Conservation Measures'!GF28","v":{"$error":"#N/A"}},{"$f":"'2. Conservation Measures'!GG28","v":{"$error":"#N/A"}},{"$f":"'2. Conservation Measures'!GH28","v":{"$error":"#N/A"}},{"$f":"'2. Conservation Measures'!GI28","v":{"$error":"#N/A"}},{"$f":"'2. Conservation Measures'!GJ28","v":{"$error":"#N/A"}},{"$f":"'2. Conservation Measures'!GK28","v":{"$error":"#N/A"}},{"$f":"'2. Conservation Measures'!GL28","v":{"$error":"#N/A"}},{"$f":"'2. Conservation Measures'!GM28","v":{"$error":"#N/A"}},{"$f":"'2. Conservation Measures'!GN28","v":{"$error":"#N/A"}},null,{"$f":"'2. Conservation Measures'!GP28","v":{"$error":"#N/A"}},{"$f":"'2. Conservation Measures'!GQ28","v":{"$error":"#N/A"}},{"$f":"'2. Conservation Measures'!GR28","v":{"$error":"#N/A"}},{"$f":"'2. Conservation Measures'!GS28","v":{"$error":"#N/A"}},{"$f":"'2. Conservation Measures'!GT28","v":{"$error":"#N/A"}},{"$f":"'2. Conservation Measures'!GU28","v":{"$error":"#N/A"}},{"$f":"'2. Conservation Measures'!GV28","v":{"$error":"#N/A"}},{"$f":"'2. Conservation Measures'!GW28","v":{"$error":"#N/A"}},{"$f":"'2. Conservation Measures'!GX28","v":{"$error":"#N/A"}},{"$f":"'2. Conservation Measures'!GY28","v":{"$error":"#N/A"}},{"$f":"'2. Conservation Measures'!GZ28","v":{"$error":"#N/A"}},{"$f":"'2. Conservation Measures'!HA28","v":{"$error":"#N/A"}},{"$f":"'2. Conservation Measures'!HB28","v":{"$error":"#N/A"}},{"$f":"'2. Conservation Measures'!HC28","v":{"$error":"#N/A"}},{"$f":"'2. Conservation Measures'!HD28","v":{"$error":"#N/A"}},{"$f":"'2. Conservation Measures'!HE28","v":{"$error":"#N/A"}},{"$f":"'2. Conservation Measures'!HF28","v":{"$error":"#N/A"}},{"$f":"'2. Conservation Measures'!HG28","v":{"$error":"#N/A"}},{"$f":"'2. Conservation Measures'!HH28","v":{"$error":"#N/A"}},{"$f":"'2. Conservation Measures'!HI28","v":{"$error":"#N/A"}},{"$f":"'2. Conservation Measures'!HJ28","v":{"$error":"#N/A"}},{"$f":"'2. Conservation Measures'!HK28","v":{"$error":"#N/A"}},{"$f":"'2. Conservation Measures'!HL28","v":{"$error":"#N/A"}},{"$f":"'2. Conservation Measures'!HM28","v":{"$error":"#N/A"}},{"$f":"'2. Conservation Measures'!HN28","v":{"$error":"#N/A"}},{"$f":"'2. Conservation Measures'!HO28","v":{"$error":"#N/A"}},{"$f":"'2. Conservation Measures'!HP28","v":{"$error":"#N/A"}},{"$f":"'2. Conservation Measures'!HQ28","v":{"$error":"#N/A"}},{"$f":"'2. Conservation Measures'!HR28","v":{"$error":"#N/A"}},{"$f":"'2. Conservation Measures'!HS28","v":{"$error":"#N/A"}},{"$f":"'2. Conservation Measures'!HT28","v":{"$error":"#N/A"}},{"$f":"'2. Conservation Measures'!HU28","v":{"$error":"#N/A"}},{"$f":"'2. Conservation Measures'!HV28","v":{"$error":"#N/A"}},{"$f":"'2. Conservation Measures'!HW28","v":{"$error":"#N/A"}},{"$f":"'2. Conservation Measures'!HX28","v":{"$error":"#N/A"}},{"$f":"'2. Conservation Measures'!HY28","v":{"$error":"#N/A"}},{"$f":"'2. Conservation Measures'!HZ28","v":{"$error":"#N/A"}},{"$f":"'2. Conservation Measures'!IA28","v":{"$error":"#N/A"}},{"$f":"'2. Conservation Measures'!IB28","v":{"$error":"#N/A"}},{"$f":"'2. Conservation Measures'!IC28","v":{"$error":"#N/A"}},{"$f":"'2. Conservation Measures'!ID28","v":{"$error":"#N/A"}},{"$f":"'2. Conservation Measures'!IE28","v":{"$error":"#N/A"}},{"$f":"'2. Conservation Measures'!IF28","v":{"$error":"#N/A"}},{"$f":"'2. Conservation Measures'!IG28","v":{"$error":"#N/A"}},{"$f":"'2. Conservation Measures'!IH28","v":{"$error":"#N/A"}},{"$f":"'2. Conservation Measures'!II28","v":{"$error":"#N/A"}},{"$f":"'2. Conservation Measures'!IJ28","v":{"$error":"#N/A"}},{"$f":"'2. Conservation Measures'!IK28","v":{"$error":"#N/A"}},{"$f":"'2. Conservation Measures'!IL28","v":{"$error":"#N/A"}},{"$f":"'2. Conservation Measures'!IM28","v":{"$error":"#N/A"}},{"$f":"'2. Conservation Measures'!IN28","v":{"$error":"#N/A"}},null,{"$f":"'2. Conservation Measures'!IP28","v":{"$error":"#VALUE!"}},{"$f":"'2. Conservation Measures'!IQ28","v":{"$error":"#VALUE!"}},{"$f":"'2. Conservation Measures'!IR28","v":{"$error":"#VALUE!"}},{"$f":"'2. Conservation Measures'!IS28","v":{"$error":"#VALUE!"}},{"$f":"'2. Conservation Measures'!IT28","v":{"$error":"#VALUE!"}},{"$f":"'2. Conservation Measures'!IU28","v":{"$error":"#VALUE!"}},{"$f":"'2. Conservation Measures'!IV28","v":{"$error":"#VALUE!"}},{"$f":"'2. Conservation Measures'!IW28","v":{"$error":"#VALUE!"}},{"$f":"'2. Conservation Measures'!IX28","v":{"$error":"#VALUE!"}},{"$f":"'2. Conservation Measures'!IY28","v":{"$error":"#VALUE!"}},{"$f":"'2. Conservation Measures'!IZ28","v":{"$error":"#VALUE!"}},{"$f":"'2. Conservation Measures'!JA28","v":{"$error":"#VALUE!"}},{"$f":"'2. Conservation Measures'!JB28","v":{"$error":"#VALUE!"}},{"$f":"'2. Conservation Measures'!JC28","v":{"$error":"#VALUE!"}},{"$f":"'2. Conservation Measures'!JD28","v":{"$error":"#VALUE!"}},{"$f":"'2. Conservation Measures'!JE28","v":{"$error":"#VALUE!"}},{"$f":"'2. Conservation Measures'!JF28","v":{"$error":"#VALUE!"}},{"$f":"'2. Conservation Measures'!JG28","v":{"$error":"#VALUE!"}},{"$f":"'2. Conservation Measures'!JH28","v":{"$error":"#VALUE!"}},{"$f":"'2. Conservation Measures'!JI28","v":{"$error":"#VALUE!"}},{"$f":"'2. Conservation Measures'!JJ28","v":{"$error":"#VALUE!"}},{"$f":"'2. Conservation Measures'!JK28","v":{"$error":"#VALUE!"}},{"$f":"'2. Conservation Measures'!JL28","v":{"$error":"#VALUE!"}},{"$f":"'2. Conservation Measures'!JM28","v":{"$error":"#VALUE!"}},{"$f":"'2. Conservation Measures'!JN28","v":{"$error":"#VALUE!"}},{"$f":"'2. Conservation Measures'!JO28","v":{"$error":"#VALUE!"}},{"$f":"'2. Conservation Measures'!JP28","v":{"$error":"#VALUE!"}},{"$f":"'2. Conservation Measures'!JQ28","v":{"$error":"#VALUE!"}},{"$f":"'2. Conservation Measures'!JR28","v":{"$error":"#VALUE!"}},{"$f":"'2. Conservation Measures'!JS28","v":{"$error":"#VALUE!"}},{"$f":"'2. Conservation Measures'!JT28","v":{"$error":"#VALUE!"}},{"$f":"'2. Conservation Measures'!JU28","v":{"$error":"#VALUE!"}},{"$f":"'2. Conservation Measures'!JV28","v":{"$error":"#VALUE!"}},{"$f":"'2. Conservation Measures'!JW28","v":{"$error":"#VALUE!"}},{"$f":"'2. Conservation Measures'!JX28","v":{"$error":"#VALUE!"}},{"$f":"'2. Conservation Measures'!JY28","v":{"$error":"#VALUE!"}},{"$f":"'2. Conservation Measures'!JZ28","v":{"$error":"#VALUE!"}},{"$f":"'2. Conservation Measures'!KA28","v":{"$error":"#VALUE!"}},{"$f":"'2. Conservation Measures'!KB28","v":{"$error":"#VALUE!"}},{"$f":"'2. Conservation Measures'!KC28","v":{"$error":"#VALUE!"}},{"$f":"'2. Conservation Measures'!KD28","v":{"$error":"#VALUE!"}},{"$f":"'2. Conservation Measures'!KE28","v":{"$error":"#VALUE!"}},{"$f":"'2. Conservation Measures'!KF28","v":{"$error":"#VALUE!"}},{"$f":"'2. Conservation Measures'!KG28","v":{"$error":"#VALUE!"}},{"$f":"'2. Conservation Measures'!KH28","v":{"$error":"#VALUE!"}},{"$f":"'2. Conservation Measures'!KI28","v":{"$error":"#VALUE!"}},{"$f":"'2. Conservation Measures'!KJ28","v":{"$error":"#VALUE!"}},{"$f":"'2. Conservation Measures'!KK28","v":{"$error":"#VALUE!"}},{"$f":"'2. Conservation Measures'!KL28","v":{"$error":"#VALUE!"}},{"$f":"'2. Conservation Measures'!KM28","v":{"$error":"#VALUE!"}},{"$f":"'2. Conservation Measures'!KN28","v":{"$error":"#VALUE!"}}]
[null,{"$f":"'2. Conservation Measures'!B29","v":"PRE-SF-07"},{"$f":"'2. Conservation Measures'!C29","v":{"$error":"#N/A"}},{"$f":"'2. Conservation Measures'!D29","v":"N"},null,{"$f":"'2. Conservation Measures'!AA29","v":{"$error":"#N/A"}},null,{"$f":"'2. Conservation Measures'!AO29","v":0},{"$f":"'2. Conservation Measures'!AP29","v":0},{"$f":"'2. Conservation Measures'!AQ29","v":0},{"$f":"'2. Conservation Measures'!AR29","v":0},{"$f":"'2. Conservation Measures'!AS29","v":0},{"$f":"'2. Conservation Measures'!AT29","v":0},{"$f":"'2. Conservation Measures'!AU29","v":0},{"$f":"'2. Conservation Measures'!AV29","v":0},{"$f":"'2. Conservation Measures'!AW29","v":0},{"$f":"'2. Conservation Measures'!AX29","v":0},{"$f":"'2. Conservation Measures'!AY29","v":0},{"$f":"'2. Conservation Measures'!AZ29","v":0},{"$f":"'2. Conservation Measures'!BA29","v":0},{"$f":"'2. Conservation Measures'!BB29","v":0},{"$f":"'2. Conservation Measures'!BC29","v":0},{"$f":"'2. Conservation Measures'!BD29","v":0},{"$f":"'2. Conservation Measures'!BE29","v":0},{"$f":"'2. Conservation Measures'!BF29","v":0},{"$f":"'2. Conservation Measures'!BG29","v":0},{"$f":"'2. Conservation Measures'!BH29","v":0},{"$f":"'2. Conservation Measures'!BI29","v":0},{"$f":"'2. Conservation Measures'!BJ29","v":0},{"$f":"'2. Conservation Measures'!BK29","v":0},{"$f":"'2. Conservation Measures'!BL29","v":0},{"$f":"'2. Conservation Measures'!BM29","v":0},{"$f":"'2. Conservation Measures'!BN29","v":0},{"$f":"'2. Conservation Measures'!BO29","v":0},{"$f":"'2. Conservation Measures'!BP29","v":0},{"$f":"'2. Conservation Measures'!BQ29","v":0},{"$f":"'2. Conservation Measures'!BR29","v":0},{"$f":"'2. Conservation Measures'!BS29","v":0},{"$f":"'2. Conservation Measures'!BT29","v":0},{"$f":"'2. Conservation Measures'!BU29","v":0},{"$f":"'2. Conservation Measures'!BV29","v":0},{"$f":"'2. Conservation Measures'!BW29","v":0},{"$f":"'2. Conservation Measures'!BX29","v":0},{"$f":"'2. Conservation Measures'!BY29","v":0},{"$f":"'2. Conservation Measures'!BZ29","v":0},{"$f":"'2. Conservation Measures'!CA29","v":0},{"$f":"'2. Conservation Measures'!CB29","v":0},{"$f":"'2. Conservation Measures'!CC29","v":0},{"$f":"'2. Conservation Measures'!CD29","v":0},{"$f":"'2. Conservation Measures'!CE29","v":0},{"$f":"'2. Conservation Measures'!CF29","v":0},{"$f":"'2. Conservation Measures'!CG29","v":0},{"$f":"'2. Conservation Measures'!CH29","v":0},{"$f":"'2. Conservation Measures'!CI29","v":0},{"$f":"'2. Conservation Measures'!CJ29","v":0},{"$f":"'2. Conservation Measures'!CK29","v":0},{"$f":"'2. Conservation Measures'!CL29","v":0},{"$f":"'2. Conservation Measures'!CM29","v":0},null,{"$f":"'2. Conservation Measures'!CO29","v":{"$error":"#VALUE!"}},{"$f":"'2. Conservation Measures'!CP29","v":{"$error":"#VALUE!"}},{"$f":"'2. Conservation Measures'!CQ29","v":{"$error":"#VALUE!"}},{"$f":"'2. Conservation Measures'!CR29","v":{"$error":"#VALUE!"}},{"$f":"'2. Conservation Measures'!CS29","v":{"$error":"#VALUE!"}},{"$f":"'2. Conservation Measures'!CT29","v":{"$error":"#VALUE!"}},{"$f":"'2. Conservation Measures'!CU29","v":{"$error":"#VALUE!"}},{"$f":"'2. Conservation Measures'!CV29","v":{"$error":"#VALUE!"}},{"$f":"'2. Conservation Measures'!CW29","v":{"$error":"#VALUE!"}},{"$f":"'2. Conservation Measures'!CX29","v":{"$error":"#VALUE!"}},{"$f":"'2. Conservation Measures'!CY29","v":{"$error":"#VALUE!"}},{"$f":"'2. Conservation Measures'!CZ29","v":{"$error":"#VALUE!"}},{"$f":"'2. Conservation Measures'!DA29","v":{"$error":"#VALUE!"}},{"$f":"'2. Conservation Measures'!DB29","v":{"$error":"#VALUE!"}},{"$f":"'2. Conservation Measures'!DC29","v":{"$error":"#VALUE!"}},{"$f":"'2. Conservation Measures'!DD29","v":{"$error":"#VALUE!"}},{"$f":"'2. Conservation Measures'!DE29","v":{"$error":"#VALUE!"}},{"$f":"'2. Conservation Measures'!DF29","v":{"$error":"#VALUE!"}},{"$f":"'2. Conservation Measures'!DG29","v":{"$error":"#VALUE!"}},{"$f":"'2. Conservation Measures'!DH29","v":{"$error":"#VALUE!"}},{"$f":"'2. Conservation Measures'!DI29","v":{"$error":"#VALUE!"}},{"$f":"'2. Conservation Measures'!DJ29","v":{"$error":"#VALUE!"}},{"$f":"'2. Conservation Measures'!DK29","v":{"$error":"#VALUE!"}},{"$f":"'2. Conservation Measures'!DL29","v":{"$error":"#VALUE!"}},{"$f":"'2. Conservation Measures'!DM29","v":{"$error":"#VALUE!"}},{"$f":"'2. Conservation Measures'!DN29","v":{"$error":"#VALUE!"}},{"$f":"'2. Conservation Measures'!DO29","v":{"$error":"#VALUE!"}},{"$f":"'2. Conservation Measures'!DP29","v":{"$error":"#VALUE!"}},{"$f":"'2. Conservation Measures'!DQ29","v":{"$error":"#VALUE!"}},{"$f":"'2. Conservation Measures'!DR29","v":{"$error":"#VALUE!"}},{"$f":"'2. Conservation Measures'!DS29","v":{"$error":"#VALUE!"}},{"$f":"'2. Conservation Measures'!DT29","v":{"$error":"#VALUE!"}},{"$f":"'2. Conservation Measures'!DU29","v":{"$error":"#VALUE!"}},{"$f":"'2. Conservation Measures'!DV29","v":{"$error":"#VALUE!"}},{"$f":"'2. Conservation Measures'!DW29","v":{"$error":"#VALUE!"}},{"$f":"'2. Conservation Measures'!DX29","v":{"$error":"#VALUE!"}},{"$f":"'2. Conservation Measures'!DY29","v":{"$error":"#VALUE!"}},{"$f":"'2. Conservation Measures'!DZ29","v":{"$error":"#VALUE!"}},{"$f":"'2. Conservation Measures'!EA29","v":{"$error":"#VALUE!"}},{"$f":"'2. Conservation Measures'!EB29","v":{"$error":"#VALUE!"}},{"$f":"'2. Conservation Measures'!EC29","v":{"$error":"#VALUE!"}},{"$f":"'2. Conservation Measures'!ED29","v":{"$error":"#VALUE!"}},{"$f":"'2. Conservation Measures'!EE29","v":{"$error":"#VALUE!"}},{"$f":"'2. Conservation Measures'!EF29","v":{"$error":"#VALUE!"}},{"$f":"'2. Conservation Measures'!EG29","v":{"$error":"#VALUE!"}},{"$f":"'2. Conservation Measures'!EH29","v":{"$error":"#VALUE!"}},{"$f":"'2. Conservation Measures'!EI29","v":{"$error":"#VALUE!"}},{"$f":"'2. Conservation Measures'!EJ29","v":{"$error":"#VALUE!"}},{"$f":"'2. Conservation Measures'!EK29","v":{"$error":"#VALUE!"}},{"$f":"'2. Conservation Measures'!EL29","v":{"$error":"#VALUE!"}},{"$f":"'2. Conservation Measures'!EM29","v":{"$error":"#VALUE!"}},null,{"$f":"'2. Conservation Measures'!KP29","v":{"$error":"#N/A"}},{"$f":"'2. Conservation Measures'!KQ29","v":{"$error":"#N/A"}},{"$f":"'2. Conservation Measures'!KR29","v":{"$error":"#N/A"}},{"$f":"'2. Conservation Measures'!KS29","v":{"$error":"#N/A"}},{"$f":"'2. Conservation Measures'!KT29","v":{"$error":"#N/A"}},{"$f":"'2. Conservation Measures'!KU29","v":{"$error":"#N/A"}},{"$f":"'2. Conservation Measures'!KV29","v":{"$error":"#N/A"}},{"$f":"'2. Conservation Measures'!KW29","v":{"$error":"#N/A"}},{"$f":"'2. Conservation Measures'!KX29","v":{"$error":"#N/A"}},{"$f":"'2. Conservation Measures'!KY29","v":{"$error":"#N/A"}},{"$f":"'2. Conservation Measures'!KZ29","v":{"$error":"#N/A"}},{"$f":"'2. Conservation Measures'!LA29","v":{"$error":"#N/A"}},{"$f":"'2. Conservation Measures'!LB29","v":{"$error":"#N/A"}},{"$f":"'2. Conservation Measures'!LC29","v":{"$error":"#N/A"}},{"$f":"'2. Conservation Measures'!LD29","v":{"$error":"#N/A"}},{"$f":"'2. Conservation Measures'!LE29","v":{"$error":"#N/A"}},{"$f":"'2. Conservation Measures'!LF29","v":{"$error":"#N/A"}},{"$f":"'2. Conservation Measures'!LG29","v":{"$error":"#N/A"}},{"$f":"'2. Conservation Measures'!LH29","v":{"$error":"#N/A"}},{"$f":"'2. Conservation Measures'!LI29","v":{"$error":"#N/A"}},{"$f":"'2. Conservation Measures'!LJ29","v":{"$error":"#N/A"}},{"$f":"'2. Conservation Measures'!LK29","v":{"$error":"#N/A"}},{"$f":"'2. Conservation Measures'!LL29","v":{"$error":"#N/A"}},{"$f":"'2. Conservation Measures'!LM29","v":{"$error":"#N/A"}},{"$f":"'2. Conservation Measures'!LN29","v":{"$error":"#N/A"}},{"$f":"'2. Conservation Measures'!LO29","v":{"$error":"#N/A"}},{"$f":"'2. Conservation Measures'!LP29","v":{"$error":"#N/A"}},{"$f":"'2. Conservation Measures'!LQ29","v":{"$error":"#N/A"}},{"$f":"'2. Conservation Measures'!LR29","v":{"$error":"#N/A"}},{"$f":"'2. Conservation Measures'!LS29","v":{"$error":"#N/A"}},{"$f":"'2. Conservation Measures'!LT29","v":{"$error":"#N/A"}},{"$f":"'2. Conservation Measures'!LU29","v":{"$error":"#N/A"}},{"$f":"'2. Conservation Measures'!LV29","v":{"$error":"#N/A"}},{"$f":"'2. Conservation Measures'!LW29","v":{"$error":"#N/A"}},{"$f":"'2. Conservation Measures'!LX29","v":{"$error":"#N/A"}},{"$f":"'2. Conservation Measures'!LY29","v":{"$error":"#N/A"}},{"$f":"'2. Conservation Measures'!LZ29","v":{"$error":"#N/A"}},{"$f":"'2. Conservation Measures'!MA29","v":{"$error":"#N/A"}},{"$f":"'2. Conservation Measures'!MB29","v":{"$error":"#N/A"}},{"$f":"'2. Conservation Measures'!MC29","v":{"$error":"#N/A"}},{"$f":"'2. Conservation Measures'!MD29","v":{"$error":"#N/A"}},{"$f":"'2. Conservation Measures'!ME29","v":{"$error":"#N/A"}},{"$f":"'2. Conservation Measures'!MF29","v":{"$error":"#N/A"}},{"$f":"'2. Conservation Measures'!MG29","v":{"$error":"#N/A"}},{"$f":"'2. Conservation Measures'!MH29","v":{"$error":"#N/A"}},{"$f":"'2. Conservation Measures'!MI29","v":{"$error":"#N/A"}},{"$f":"'2. Conservation Measures'!MJ29","v":{"$error":"#N/A"}},{"$f":"'2. Conservation Measures'!MK29","v":{"$error":"#N/A"}},{"$f":"'2. Conservation Measures'!ML29","v":{"$error":"#N/A"}},{"$f":"'2. Conservation Measures'!MM29","v":{"$error":"#N/A"}},{"$f":"'2. Conservation Measures'!MN29","v":{"$error":"#N/A"}},null,{"$f":"'2. Conservation Measures'!EP29","v":{"$error":"#N/A"}},{"$f":"'2. Conservation Measures'!EQ29","v":{"$error":"#N/A"}},{"$f":"'2. Conservation Measures'!ER29","v":{"$error":"#N/A"}},{"$f":"'2. Conservation Measures'!ES29","v":{"$error":"#N/A"}},{"$f":"'2. Conservation Measures'!ET29","v":{"$error":"#N/A"}},{"$f":"'2. Conservation Measures'!EU29","v":{"$error":"#N/A"}},{"$f":"'2. Conservation Measures'!EV29","v":{"$error":"#N/A"}},{"$f":"'2. Conservation Measures'!EW29","v":{"$error":"#N/A"}},{"$f":"'2. Conservation Measures'!EX29","v":{"$error":"#N/A"}},{"$f":"'2. Conservation Measures'!EY29","v":{"$error":"#N/A"}},{"$f":"'2. Conservation Measures'!EZ29","v":{"$error":"#N/A"}},{"$f":"'2. Conservation Measures'!FA29","v":{"$error":"#N/A"}},{"$f":"'2. Conservation Measures'!FB29","v":{"$error":"#N/A"}},{"$f":"'2. Conservation Measures'!FC29","v":{"$error":"#N/A"}},{"$f":"'2. Conservation Measures'!FD29","v":{"$error":"#N/A"}},{"$f":"'2. Conservation Measures'!FE29","v":{"$error":"#N/A"}},{"$f":"'2. Conservation Measures'!FF29","v":{"$error":"#N/A"}},{"$f":"'2. Conservation Measures'!FG29","v":{"$error":"#N/A"}},{"$f":"'2. Conservation Measures'!FH29","v":{"$error":"#N/A"}},{"$f":"'2. Conservation Measures'!FI29","v":{"$error":"#N/A"}},{"$f":"'2. Conservation Measures'!FJ29","v":{"$error":"#N/A"}},{"$f":"'2. Conservation Measures'!FK29","v":{"$error":"#N/A"}},{"$f":"'2. Conservation Measures'!FL29","v":{"$error":"#N/A"}},{"$f":"'2. Conservation Measures'!FM29","v":{"$error":"#N/A"}},{"$f":"'2. Conservation Measures'!FN29","v":{"$error":"#N/A"}},{"$f":"'2. Conservation Measures'!FO29","v":{"$error":"#N/A"}},{"$f":"'2. Conservation Measures'!FP29","v":{"$error":"#N/A"}},{"$f":"'2. Conservation Measures'!FQ29","v":{"$error":"#N/A"}},{"$f":"'2. Conservation Measures'!FR29","v":{"$error":"#N/A"}},{"$f":"'2. Conservation Measures'!FS29","v":{"$error":"#N/A"}},{"$f":"'2. Conservation Measures'!FT29","v":{"$error":"#N/A"}},{"$f":"'2. Conservation Measures'!FU29","v":{"$error":"#N/A"}},{"$f":"'2. Conservation Measures'!FV29","v":{"$error":"#N/A"}},{"$f":"'2. Conservation Measures'!FW29","v":{"$error":"#N/A"}},{"$f":"'2. Conservation Measures'!FX29","v":{"$error":"#N/A"}},{"$f":"'2. Conservation Measures'!FY29","v":{"$error":"#N/A"}},{"$f":"'2. Conservation Measures'!FZ29","v":{"$error":"#N/A"}},{"$f":"'2. Conservation Measures'!GA29","v":{"$error":"#N/A"}},{"$f":"'2. Conservation Measures'!GB29","v":{"$error":"#N/A"}},{"$f":"'2. Conservation Measures'!GC29","v":{"$error":"#N/A"}},{"$f":"'2. Conservation Measures'!GD29","v":{"$error":"#N/A"}},{"$f":"'2. Conservation Measures'!GE29","v":{"$error":"#N/A"}},{"$f":"'2. Conservation Measures'!GF29","v":{"$error":"#N/A"}},{"$f":"'2. Conservation Measures'!GG29","v":{"$error":"#N/A"}},{"$f":"'2. Conservation Measures'!GH29","v":{"$error":"#N/A"}},{"$f":"'2. Conservation Measures'!GI29","v":{"$error":"#N/A"}},{"$f":"'2. Conservation Measures'!GJ29","v":{"$error":"#N/A"}},{"$f":"'2. Conservation Measures'!GK29","v":{"$error":"#N/A"}},{"$f":"'2. Conservation Measures'!GL29","v":{"$error":"#N/A"}},{"$f":"'2. Conservation Measures'!GM29","v":{"$error":"#N/A"}},{"$f":"'2. Conservation Measures'!GN29","v":{"$error":"#N/A"}},null,{"$f":"'2. Conservation Measures'!GP29","v":{"$error":"#N/A"}},{"$f":"'2. Conservation Measures'!GQ29","v":{"$error":"#N/A"}},{"$f":"'2. Conservation Measures'!GR29","v":{"$error":"#N/A"}},{"$f":"'2. Conservation Measures'!GS29","v":{"$error":"#N/A"}},{"$f":"'2. Conservation Measures'!GT29","v":{"$error":"#N/A"}},{"$f":"'2. Conservation Measures'!GU29","v":{"$error":"#N/A"}},{"$f":"'2. Conservation Measures'!GV29","v":{"$error":"#N/A"}},{"$f":"'2. Conservation Measures'!GW29","v":{"$error":"#N/A"}},{"$f":"'2. Conservation Measures'!GX29","v":{"$error":"#N/A"}},{"$f":"'2. Conservation Measures'!GY29","v":{"$error":"#N/A"}},{"$f":"'2. Conservation Measures'!GZ29","v":{"$error":"#N/A"}},{"$f":"'2. Conservation Measures'!HA29","v":{"$error":"#N/A"}},{"$f":"'2. Conservation Measures'!HB29","v":{"$error":"#N/A"}},{"$f":"'2. Conservation Measures'!HC29","v":{"$error":"#N/A"}},{"$f":"'2. Conservation Measures'!HD29","v":{"$error":"#N/A"}},{"$f":"'2. Conservation Measures'!HE29","v":{"$error":"#N/A"}},{"$f":"'2. Conservation Measures'!HF29","v":{"$error":"#N/A"}},{"$f":"'2. Conservation Measures'!HG29","v":{"$error":"#N/A"}},{"$f":"'2. Conservation Measures'!HH29","v":{"$error":"#N/A"}},{"$f":"'2. Conservation Measures'!HI29","v":{"$error":"#N/A"}},{"$f":"'2. Conservation Measures'!HJ29","v":{"$error":"#N/A"}},{"$f":"'2. Conservation Measures'!HK29","v":{"$error":"#N/A"}},{"$f":"'2. Conservation Measures'!HL29","v":{"$error":"#N/A"}},{"$f":"'2. Conservation Measures'!HM29","v":{"$error":"#N/A"}},{"$f":"'2. Conservation Measures'!HN29","v":{"$error":"#N/A"}},{"$f":"'2. Conservation Measures'!HO29","v":{"$error":"#N/A"}},{"$f":"'2. Conservation Measures'!HP29","v":{"$error":"#N/A"}},{"$f":"'2. Conservation Measures'!HQ29","v":{"$error":"#N/A"}},{"$f":"'2. Conservation Measures'!HR29","v":{"$error":"#N/A"}},{"$f":"'2. Conservation Measures'!HS29","v":{"$error":"#N/A"}},{"$f":"'2. Conservation Measures'!HT29","v":{"$error":"#N/A"}},{"$f":"'2. Conservation Measures'!HU29","v":{"$error":"#N/A"}},{"$f":"'2. Conservation Measures'!HV29","v":{"$error":"#N/A"}},{"$f":"'2. Conservation Measures'!HW29","v":{"$error":"#N/A"}},{"$f":"'2. Conservation Measures'!HX29","v":{"$error":"#N/A"}},{"$f":"'2. Conservation Measures'!HY29","v":{"$error":"#N/A"}},{"$f":"'2. Conservation Measures'!HZ29","v":{"$error":"#N/A"}},{"$f":"'2. Conservation Measures'!IA29","v":{"$error":"#N/A"}},{"$f":"'2. Conservation Measures'!IB29","v":{"$error":"#N/A"}},{"$f":"'2. Conservation Measures'!IC29","v":{"$error":"#N/A"}},{"$f":"'2. Conservation Measures'!ID29","v":{"$error":"#N/A"}},{"$f":"'2. Conservation Measures'!IE29","v":{"$error":"#N/A"}},{"$f":"'2. Conservation Measures'!IF29","v":{"$error":"#N/A"}},{"$f":"'2. Conservation Measures'!IG29","v":{"$error":"#N/A"}},{"$f":"'2. Conservation Measures'!IH29","v":{"$error":"#N/A"}},{"$f":"'2. Conservation Measures'!II29","v":{"$error":"#N/A"}},{"$f":"'2. Conservation Measures'!IJ29","v":{"$error":"#N/A"}},{"$f":"'2. Conservation Measures'!IK29","v":{"$error":"#N/A"}},{"$f":"'2. Conservation Measures'!IL29","v":{"$error":"#N/A"}},{"$f":"'2. Conservation Measures'!IM29","v":{"$error":"#N/A"}},{"$f":"'2. Conservation Measures'!IN29","v":{"$error":"#N/A"}},null,{"$f":"'2. Conservation Measures'!IP29","v":{"$error":"#VALUE!"}},{"$f":"'2. Conservation Measures'!IQ29","v":{"$error":"#VALUE!"}},{"$f":"'2. Conservation Measures'!IR29","v":{"$error":"#VALUE!"}},{"$f":"'2. Conservation Measures'!IS29","v":{"$error":"#VALUE!"}},{"$f":"'2. Conservation Measures'!IT29","v":{"$error":"#VALUE!"}},{"$f":"'2. Conservation Measures'!IU29","v":{"$error":"#VALUE!"}},{"$f":"'2. Conservation Measures'!IV29","v":{"$error":"#VALUE!"}},{"$f":"'2. Conservation Measures'!IW29","v":{"$error":"#VALUE!"}},{"$f":"'2. Conservation Measures'!IX29","v":{"$error":"#VALUE!"}},{"$f":"'2. Conservation Measures'!IY29","v":{"$error":"#VALUE!"}},{"$f":"'2. Conservation Measures'!IZ29","v":{"$error":"#VALUE!"}},{"$f":"'2. Conservation Measures'!JA29","v":{"$error":"#VALUE!"}},{"$f":"'2. Conservation Measures'!JB29","v":{"$error":"#VALUE!"}},{"$f":"'2. Conservation Measures'!JC29","v":{"$error":"#VALUE!"}},{"$f":"'2. Conservation Measures'!JD29","v":{"$error":"#VALUE!"}},{"$f":"'2. Conservation Measures'!JE29","v":{"$error":"#VALUE!"}},{"$f":"'2. Conservation Measures'!JF29","v":{"$error":"#VALUE!"}},{"$f":"'2. Conservation Measures'!JG29","v":{"$error":"#VALUE!"}},{"$f":"'2. Conservation Measures'!JH29","v":{"$error":"#VALUE!"}},{"$f":"'2. Conservation Measures'!JI29","v":{"$error":"#VALUE!"}},{"$f":"'2. Conservation Measures'!JJ29","v":{"$error":"#VALUE!"}},{"$f":"'2. Conservation Measures'!JK29","v":{"$error":"#VALUE!"}},{"$f":"'2. Conservation Measures'!JL29","v":{"$error":"#VALUE!"}},{"$f":"'2. Conservation Measures'!JM29","v":{"$error":"#VALUE!"}},{"$f":"'2. Conservation Measures'!JN29","v":{"$error":"#VALUE!"}},{"$f":"'2. Conservation Measures'!JO29","v":{"$error":"#VALUE!"}},{"$f":"'2. Conservation Measures'!JP29","v":{"$error":"#VALUE!"}},{"$f":"'2. Conservation Measures'!JQ29","v":{"$error":"#VALUE!"}},{"$f":"'2. Conservation Measures'!JR29","v":{"$error":"#VALUE!"}},{"$f":"'2. Conservation Measures'!JS29","v":{"$error":"#VALUE!"}},{"$f":"'2. Conservation Measures'!JT29","v":{"$error":"#VALUE!"}},{"$f":"'2. Conservation Measures'!JU29","v":{"$error":"#VALUE!"}},{"$f":"'2. Conservation Measures'!JV29","v":{"$error":"#VALUE!"}},{"$f":"'2. Conservation Measures'!JW29","v":{"$error":"#VALUE!"}},{"$f":"'2. Conservation Measures'!JX29","v":{"$error":"#VALUE!"}},{"$f":"'2. Conservation Measures'!JY29","v":{"$error":"#VALUE!"}},{"$f":"'2. Conservation Measures'!JZ29","v":{"$error":"#VALUE!"}},{"$f":"'2. Conservation Measures'!KA29","v":{"$error":"#VALUE!"}},{"$f":"'2. Conservation Measures'!KB29","v":{"$error":"#VALUE!"}},{"$f":"'2. Conservation Measures'!KC29","v":{"$error":"#VALUE!"}},{"$f":"'2. Conservation Measures'!KD29","v":{"$error":"#VALUE!"}},{"$f":"'2. Conservation Measures'!KE29","v":{"$error":"#VALUE!"}},{"$f":"'2. Conservation Measures'!KF29","v":{"$error":"#VALUE!"}},{"$f":"'2. Conservation Measures'!KG29","v":{"$error":"#VALUE!"}},{"$f":"'2. Conservation Measures'!KH29","v":{"$error":"#VALUE!"}},{"$f":"'2. Conservation Measures'!KI29","v":{"$error":"#VALUE!"}},{"$f":"'2. Conservation Measures'!KJ29","v":{"$error":"#VALUE!"}},{"$f":"'2. Conservation Measures'!KK29","v":{"$error":"#VALUE!"}},{"$f":"'2. Conservation Measures'!KL29","v":{"$error":"#VALUE!"}},{"$f":"'2. Conservation Measures'!KM29","v":{"$error":"#VALUE!"}},{"$f":"'2. Conservation Measures'!KN29","v":{"$error":"#VALUE!"}}]
[null,{"$f":"'2. Conservation Measures'!B30","v":"PRE-SF-08"},{"$f":"'2. Conservation Measures'!C30","v":{"$error":"#N/A"}},{"$f":"'2. Conservation Measures'!D30","v":"N"},null,{"$f":"'2. Conservation Measures'!AA30","v":{"$error":"#N/A"}},null,{"$f":"'2. Conservation Measures'!AO30","v":0},{"$f":"'2. Conservation Measures'!AP30","v":0},{"$f":"'2. Conservation Measures'!AQ30","v":0},{"$f":"'2. Conservation Measures'!AR30","v":0},{"$f":"'2. Conservation Measures'!AS30","v":0},{"$f":"'2. Conservation Measures'!AT30","v":0},{"$f":"'2. Conservation Measures'!AU30","v":0},{"$f":"'2. Conservation Measures'!AV30","v":0},{"$f":"'2. Conservation Measures'!AW30","v":0},{"$f":"'2. Conservation Measures'!AX30","v":0},{"$f":"'2. Conservation Measures'!AY30","v":0},{"$f":"'2. Conservation Measures'!AZ30","v":0},{"$f":"'2. Conservation Measures'!BA30","v":0},{"$f":"'2. Conservation Measures'!BB30","v":0},{"$f":"'2. Conservation Measures'!BC30","v":0},{"$f":"'2. Conservation Measures'!BD30","v":0},{"$f":"'2. Conservation Measures'!BE30","v":0},{"$f":"'2. Conservation Measures'!BF30","v":0},{"$f":"'2. Conservation Measures'!BG30","v":0},{"$f":"'2. Conservation Measures'!BH30","v":0},{"$f":"'2. Conservation Measures'!BI30","v":0},{"$f":"'2. Conservation Measures'!BJ30","v":0},{"$f":"'2. Conservation Measures'!BK30","v":0},{"$f":"'2. Conservation Measures'!BL30","v":0},{"$f":"'2. Conservation Measures'!BM30","v":0},{"$f":"'2. Conservation Measures'!BN30","v":0},{"$f":"'2. Conservation Measures'!BO30","v":0},{"$f":"'2. Conservation Measures'!BP30","v":0},{"$f":"'2. Conservation Measures'!BQ30","v":0},{"$f":"'2. Conservation Measures'!BR30","v":0},{"$f":"'2. Conservation Measures'!BS30","v":0},{"$f":"'2. Conservation Measures'!BT30","v":0},{"$f":"'2. Conservation Measures'!BU30","v":0},{"$f":"'2. Conservation Measures'!BV30","v":0},{"$f":"'2. Conservation Measures'!BW30","v":0},{"$f":"'2. Conservation Measures'!BX30","v":0},{"$f":"'2. Conservation Measures'!BY30","v":0},{"$f":"'2. Conservation Measures'!BZ30","v":0},{"$f":"'2. Conservation Measures'!CA30","v":0},{"$f":"'2. Conservation Measures'!CB30","v":0},{"$f":"'2. Conservation Measures'!CC30","v":0},{"$f":"'2. Conservation Measures'!CD30","v":0},{"$f":"'2. Conservation Measures'!CE30","v":0},{"$f":"'2. Conservation Measures'!CF30","v":0},{"$f":"'2. Conservation Measures'!CG30","v":0},{"$f":"'2. Conservation Measures'!CH30","v":0},{"$f":"'2. Conservation Measures'!CI30","v":0},{"$f":"'2. Conservation Measures'!CJ30","v":0},{"$f":"'2. Conservation Measures'!CK30","v":0},{"$f":"'2. Conservation Measures'!CL30","v":0},{"$f":"'2. Conservation Measures'!CM30","v":0},null,{"$f":"'2. Conservation Measures'!CO30","v":{"$error":"#VALUE!"}},{"$f":"'2. Conservation Measures'!CP30","v":{"$error":"#VALUE!"}},{"$f":"'2. Conservation Measures'!CQ30","v":{"$error":"#VALUE!"}},{"$f":"'2. Conservation Measures'!CR30","v":{"$error":"#VALUE!"}},{"$f":"'2. Conservation Measures'!CS30","v":{"$error":"#VALUE!"}},{"$f":"'2. Conservation Measures'!CT30","v":{"$error":"#VALUE!"}},{"$f":"'2. Conservation Measures'!CU30","v":{"$error":"#VALUE!"}},{"$f":"'2. Conservation Measures'!CV30","v":{"$error":"#VALUE!"}},{"$f":"'2. Conservation Measures'!CW30","v":{"$error":"#VALUE!"}},{"$f":"'2. Conservation Measures'!CX30","v":{"$error":"#VALUE!"}},{"$f":"'2. Conservation Measures'!CY30","v":{"$error":"#VALUE!"}},{"$f":"'2. Conservation Measures'!CZ30","v":{"$error":"#VALUE!"}},{"$f":"'2. Conservation Measures'!DA30","v":{"$error":"#VALUE!"}},{"$f":"'2. Conservation Measures'!DB30","v":{"$error":"#VALUE!"}},{"$f":"'2. Conservation Measures'!DC30","v":{"$error":"#VALUE!"}},{"$f":"'2. Conservation Measures'!DD30","v":{"$error":"#VALUE!"}},{"$f":"'2. Conservation Measures'!DE30","v":{"$error":"#VALUE!"}},{"$f":"'2. Conservation Measures'!DF30","v":{"$error":"#VALUE!"}},{"$f":"'2. Conservation Measures'!DG30","v":{"$error":"#VALUE!"}},{"$f":"'2. Conservation Measures'!DH30","v":{"$error":"#VALUE!"}},{"$f":"'2. Conservation Measures'!DI30","v":{"$error":"#VALUE!"}},{"$f":"'2. Conservation Measures'!DJ30","v":{"$error":"#VALUE!"}},{"$f":"'2. Conservation Measures'!DK30","v":{"$error":"#VALUE!"}},{"$f":"'2. Conservation Measures'!DL30","v":{"$error":"#VALUE!"}},{"$f":"'2. Conservation Measures'!DM30","v":{"$error":"#VALUE!"}},{"$f":"'2. Conservation Measures'!DN30","v":{"$error":"#VALUE!"}},{"$f":"'2. Conservation Measures'!DO30","v":{"$error":"#VALUE!"}},{"$f":"'2. Conservation Measures'!DP30","v":{"$error":"#VALUE!"}},{"$f":"'2. Conservation Measures'!DQ30","v":{"$error":"#VALUE!"}},{"$f":"'2. Conservation Measures'!DR30","v":{"$error":"#VALUE!"}},{"$f":"'2. Conservation Measures'!DS30","v":{"$error":"#VALUE!"}},{"$f":"'2. Conservation Measures'!DT30","v":{"$error":"#VALUE!"}},{"$f":"'2. Conservation Measures'!DU30","v":{"$error":"#VALUE!"}},{"$f":"'2. Conservation Measures'!DV30","v":{"$error":"#VALUE!"}},{"$f":"'2. Conservation Measures'!DW30","v":{"$error":"#VALUE!"}},{"$f":"'2. Conservation Measures'!DX30","v":{"$error":"#VALUE!"}},{"$f":"'2. Conservation Measures'!DY30","v":{"$error":"#VALUE!"}},{"$f":"'2. Conservation Measures'!DZ30","v":{"$error":"#VALUE!"}},{"$f":"'2. Conservation Measures'!EA30","v":{"$error":"#VALUE!"}},{"$f":"'2. Conservation Measures'!EB30","v":{"$error":"#VALUE!"}},{"$f":"'2. Conservation Measures'!EC30","v":{"$error":"#VALUE!"}},{"$f":"'2. Conservation Measures'!ED30","v":{"$error":"#VALUE!"}},{"$f":"'2. Conservation Measures'!EE30","v":{"$error":"#VALUE!"}},{"$f":"'2. Conservation Measures'!EF30","v":{"$error":"#VALUE!"}},{"$f":"'2. Conservation Measures'!EG30","v":{"$error":"#VALUE!"}},{"$f":"'2. Conservation Measures'!EH30","v":{"$error":"#VALUE!"}},{"$f":"'2. Conservation Measures'!EI30","v":{"$error":"#VALUE!"}},{"$f":"'2. Conservation Measures'!EJ30","v":{"$error":"#VALUE!"}},{"$f":"'2. Conservation Measures'!EK30","v":{"$error":"#VALUE!"}},{"$f":"'2. Conservation Measures'!EL30","v":{"$error":"#VALUE!"}},{"$f":"'2. Conservation Measures'!EM30","v":{"$error":"#VALUE!"}},null,{"$f":"'2. Conservation Measures'!KP30","v":{"$error":"#N/A"}},{"$f":"'2. Conservation Measures'!KQ30","v":{"$error":"#N/A"}},{"$f":"'2. Conservation Measures'!KR30","v":{"$error":"#N/A"}},{"$f":"'2. Conservation Measures'!KS30","v":{"$error":"#N/A"}},{"$f":"'2. Conservation Measures'!KT30","v":{"$error":"#N/A"}},{"$f":"'2. Conservation Measures'!KU30","v":{"$error":"#N/A"}},{"$f":"'2. Conservation Measures'!KV30","v":{"$error":"#N/A"}},{"$f":"'2. Conservation Measures'!KW30","v":{"$error":"#N/A"}},{"$f":"'2. Conservation Measures'!KX30","v":{"$error":"#N/A"}},{"$f":"'2. Conservation Measures'!KY30","v":{"$error":"#N/A"}},{"$f":"'2. Conservation Measures'!KZ30","v":{"$error":"#N/A"}},{"$f":"'2. Conservation Measures'!LA30","v":{"$error":"#N/A"}},{"$f":"'2. Conservation Measures'!LB30","v":{"$error":"#N/A"}},{"$f":"'2. Conservation Measures'!LC30","v":{"$error":"#N/A"}},{"$f":"'2. Conservation Measures'!LD30","v":{"$error":"#N/A"}},{"$f":"'2. Conservation Measures'!LE30","v":{"$error":"#N/A"}},{"$f":"'2. Conservation Measures'!LF30","v":{"$error":"#N/A"}},{"$f":"'2. Conservation Measures'!LG30","v":{"$error":"#N/A"}},{"$f":"'2. Conservation Measures'!LH30","v":{"$error":"#N/A"}},{"$f":"'2. Conservation Measures'!LI30","v":{"$error":"#N/A"}},{"$f":"'2. Conservation Measures'!LJ30","v":{"$error":"#N/A"}},{"$f":"'2. Conservation Measures'!LK30","v":{"$error":"#N/A"}},{"$f":"'2. Conservation Measures'!LL30","v":{"$error":"#N/A"}},{"$f":"'2. Conservation Measures'!LM30","v":{"$error":"#N/A"}},{"$f":"'2. Conservation Measures'!LN30","v":{"$error":"#N/A"}},{"$f":"'2. Conservation Measures'!LO30","v":{"$error":"#N/A"}},{"$f":"'2. Conservation Measures'!LP30","v":{"$error":"#N/A"}},{"$f":"'2. Conservation Measures'!LQ30","v":{"$error":"#N/A"}},{"$f":"'2. Conservation Measures'!LR30","v":{"$error":"#N/A"}},{"$f":"'2. Conservation Measures'!LS30","v":{"$error":"#N/A"}},{"$f":"'2. Conservation Measures'!LT30","v":{"$error":"#N/A"}},{"$f":"'2. Conservation Measures'!LU30","v":{"$error":"#N/A"}},{"$f":"'2. Conservation Measures'!LV30","v":{"$error":"#N/A"}},{"$f":"'2. Conservation Measures'!LW30","v":{"$error":"#N/A"}},{"$f":"'2. Conservation Measures'!LX30","v":{"$error":"#N/A"}},{"$f":"'2. Conservation Measures'!LY30","v":{"$error":"#N/A"}},{"$f":"'2. Conservation Measures'!LZ30","v":{"$error":"#N/A"}},{"$f":"'2. Conservation Measures'!MA30","v":{"$error":"#N/A"}},{"$f":"'2. Conservation Measures'!MB30","v":{"$error":"#N/A"}},{"$f":"'2. Conservation Measures'!MC30","v":{"$error":"#N/A"}},{"$f":"'2. Conservation Measures'!MD30","v":{"$error":"#N/A"}},{"$f":"'2. Conservation Measures'!ME30","v":{"$error":"#N/A"}},{"$f":"'2. Conservation Measures'!MF30","v":{"$error":"#N/A"}},{"$f":"'2. Conservation Measures'!MG30","v":{"$error":"#N/A"}},{"$f":"'2. Conservation Measures'!MH30","v":{"$error":"#N/A"}},{"$f":"'2. Conservation Measures'!MI30","v":{"$error":"#N/A"}},{"$f":"'2. Conservation Measures'!MJ30","v":{"$error":"#N/A"}},{"$f":"'2. Conservation Measures'!MK30","v":{"$error":"#N/A"}},{"$f":"'2. Conservation Measures'!ML30","v":{"$error":"#N/A"}},{"$f":"'2. Conservation Measures'!MM30","v":{"$error":"#N/A"}},{"$f":"'2. Conservation Measures'!MN30","v":{"$error":"#N/A"}},null,{"$f":"'2. Conservation Measures'!EP30","v":{"$error":"#N/A"}},{"$f":"'2. Conservation Measures'!EQ30","v":{"$error":"#N/A"}},{"$f":"'2. Conservation Measures'!ER30","v":{"$error":"#N/A"}},{"$f":"'2. Conservation Measures'!ES30","v":{"$error":"#N/A"}},{"$f":"'2. Conservation Measures'!ET30","v":{"$error":"#N/A"}},{"$f":"'2. Conservation Measures'!EU30","v":{"$error":"#N/A"}},{"$f":"'2. Conservation Measures'!EV30","v":{"$error":"#N/A"}},{"$f":"'2. Conservation Measures'!EW30","v":{"$error":"#N/A"}},{"$f":"'2. Conservation Measures'!EX30","v":{"$error":"#N/A"}},{"$f":"'2. Conservation Measures'!EY30","v":{"$error":"#N/A"}},{"$f":"'2. Conservation Measures'!EZ30","v":{"$error":"#N/A"}},{"$f":"'2. Conservation Measures'!FA30","v":{"$error":"#N/A"}},{"$f":"'2. Conservation Measures'!FB30","v":{"$error":"#N/A"}},{"$f":"'2. Conservation Measures'!FC30","v":{"$error":"#N/A"}},{"$f":"'2. Conservation Measures'!FD30","v":{"$error":"#N/A"}},{"$f":"'2. Conservation Measures'!FE30","v":{"$error":"#N/A"}},{"$f":"'2. Conservation Measures'!FF30","v":{"$error":"#N/A"}},{"$f":"'2. Conservation Measures'!FG30","v":{"$error":"#N/A"}},{"$f":"'2. Conservation Measures'!FH30","v":{"$error":"#N/A"}},{"$f":"'2. Conservation Measures'!FI30","v":{"$error":"#N/A"}},{"$f":"'2. Conservation Measures'!FJ30","v":{"$error":"#N/A"}},{"$f":"'2. Conservation Measures'!FK30","v":{"$error":"#N/A"}},{"$f":"'2. Conservation Measures'!FL30","v":{"$error":"#N/A"}},{"$f":"'2. Conservation Measures'!FM30","v":{"$error":"#N/A"}},{"$f":"'2. Conservation Measures'!FN30","v":{"$error":"#N/A"}},{"$f":"'2. Conservation Measures'!FO30","v":{"$error":"#N/A"}},{"$f":"'2. Conservation Measures'!FP30","v":{"$error":"#N/A"}},{"$f":"'2. Conservation Measures'!FQ30","v":{"$error":"#N/A"}},{"$f":"'2. Conservation Measures'!FR30","v":{"$error":"#N/A"}},{"$f":"'2. Conservation Measures'!FS30","v":{"$error":"#N/A"}},{"$f":"'2. Conservation Measures'!FT30","v":{"$error":"#N/A"}},{"$f":"'2. Conservation Measures'!FU30","v":{"$error":"#N/A"}},{"$f":"'2. Conservation Measures'!FV30","v":{"$error":"#N/A"}},{"$f":"'2. Conservation Measures'!FW30","v":{"$error":"#N/A"}},{"$f":"'2. Conservation Measures'!FX30","v":{"$error":"#N/A"}},{"$f":"'2. Conservation Measures'!FY30","v":{"$error":"#N/A"}},{"$f":"'2. Conservation Measures'!FZ30","v":{"$error":"#N/A"}},{"$f":"'2. Conservation Measures'!GA30","v":{"$error":"#N/A"}},{"$f":"'2. Conservation Measures'!GB30","v":{"$error":"#N/A"}},{"$f":"'2. Conservation Measures'!GC30","v":{"$error":"#N/A"}},{"$f":"'2. Conservation Measures'!GD30","v":{"$error":"#N/A"}},{"$f":"'2. Conservation Measures'!GE30","v":{"$error":"#N/A"}},{"$f":"'2. Conservation Measures'!GF30","v":{"$error":"#N/A"}},{"$f":"'2. Conservation Measures'!GG30","v":{"$error":"#N/A"}},{"$f":"'2. Conservation Measures'!GH30","v":{"$error":"#N/A"}},{"$f":"'2. Conservation Measures'!GI30","v":{"$error":"#N/A"}},{"$f":"'2. Conservation Measures'!GJ30","v":{"$error":"#N/A"}},{"$f":"'2. Conservation Measures'!GK30","v":{"$error":"#N/A"}},{"$f":"'2. Conservation Measures'!GL30","v":{"$error":"#N/A"}},{"$f":"'2. Conservation Measures'!GM30","v":{"$error":"#N/A"}},{"$f":"'2. Conservation Measures'!GN30","v":{"$error":"#N/A"}},null,{"$f":"'2. Conservation Measures'!GP30","v":{"$error":"#N/A"}},{"$f":"'2. Conservation Measures'!GQ30","v":{"$error":"#N/A"}},{"$f":"'2. Conservation Measures'!GR30","v":{"$error":"#N/A"}},{"$f":"'2. Conservation Measures'!GS30","v":{"$error":"#N/A"}},{"$f":"'2. Conservation Measures'!GT30","v":{"$error":"#N/A"}},{"$f":"'2. Conservation Measures'!GU30","v":{"$error":"#N/A"}},{"$f":"'2. Conservation Measures'!GV30","v":{"$error":"#N/A"}},{"$f":"'2. Conservation Measures'!GW30","v":{"$error":"#N/A"}},{"$f":"'2. Conservation Measures'!GX30","v":{"$error":"#N/A"}},{"$f":"'2. Conservation Measures'!GY30","v":{"$error":"#N/A"}},{"$f":"'2. Conservation Measures'!GZ30","v":{"$error":"#N/A"}},{"$f":"'2. Conservation Measures'!HA30","v":{"$error":"#N/A"}},{"$f":"'2. Conservation Measures'!HB30","v":{"$error":"#N/A"}},{"$f":"'2. Conservation Measures'!HC30","v":{"$error":"#N/A"}},{"$f":"'2. Conservation Measures'!HD30","v":{"$error":"#N/A"}},{"$f":"'2. Conservation Measures'!HE30","v":{"$error":"#N/A"}},{"$f":"'2. Conservation Measures'!HF30","v":{"$error":"#N/A"}},{"$f":"'2. Conservation Measures'!HG30","v":{"$error":"#N/A"}},{"$f":"'2. Conservation Measures'!HH30","v":{"$error":"#N/A"}},{"$f":"'2. Conservation Measures'!HI30","v":{"$error":"#N/A"}},{"$f":"'2. Conservation Measures'!HJ30","v":{"$error":"#N/A"}},{"$f":"'2. Conservation Measures'!HK30","v":{"$error":"#N/A"}},{"$f":"'2. Conservation Measures'!HL30","v":{"$error":"#N/A"}},{"$f":"'2. Conservation Measures'!HM30","v":{"$error":"#N/A"}},{"$f":"'2. Conservation Measures'!HN30","v":{"$error":"#N/A"}},{"$f":"'2. Conservation Measures'!HO30","v":{"$error":"#N/A"}},{"$f":"'2. Conservation Measures'!HP30","v":{"$error":"#N/A"}},{"$f":"'2. Conservation Measures'!HQ30","v":{"$error":"#N/A"}},{"$f":"'2. Conservation Measures'!HR30","v":{"$error":"#N/A"}},{"$f":"'2. Conservation Measures'!HS30","v":{"$error":"#N/A"}},{"$f":"'2. Conservation Measures'!HT30","v":{"$error":"#N/A"}},{"$f":"'2. Conservation Measures'!HU30","v":{"$error":"#N/A"}},{"$f":"'2. Conservation Measures'!HV30","v":{"$error":"#N/A"}},{"$f":"'2. Conservation Measures'!HW30","v":{"$error":"#N/A"}},{"$f":"'2. Conservation Measures'!HX30","v":{"$error":"#N/A"}},{"$f":"'2. Conservation Measures'!HY30","v":{"$error":"#N/A"}},{"$f":"'2. Conservation Measures'!HZ30","v":{"$error":"#N/A"}},{"$f":"'2. Conservation Measures'!IA30","v":{"$error":"#N/A"}},{"$f":"'2. Conservation Measures'!IB30","v":{"$error":"#N/A"}},{"$f":"'2. Conservation Measures'!IC30","v":{"$error":"#N/A"}},{"$f":"'2. Conservation Measures'!ID30","v":{"$error":"#N/A"}},{"$f":"'2. Conservation Measures'!IE30","v":{"$error":"#N/A"}},{"$f":"'2. Conservation Measures'!IF30","v":{"$error":"#N/A"}},{"$f":"'2. Conservation Measures'!IG30","v":{"$error":"#N/A"}},{"$f":"'2. Conservation Measures'!IH30","v":{"$error":"#N/A"}},{"$f":"'2. Conservation Measures'!II30","v":{"$error":"#N/A"}},{"$f":"'2. Conservation Measures'!IJ30","v":{"$error":"#N/A"}},{"$f":"'2. Conservation Measures'!IK30","v":{"$error":"#N/A"}},{"$f":"'2. Conservation Measures'!IL30","v":{"$error":"#N/A"}},{"$f":"'2. Conservation Measures'!IM30","v":{"$error":"#N/A"}},{"$f":"'2. Conservation Measures'!IN30","v":{"$error":"#N/A"}},null,{"$f":"'2. Conservation Measures'!IP30","v":{"$error":"#VALUE!"}},{"$f":"'2. Conservation Measures'!IQ30","v":{"$error":"#VALUE!"}},{"$f":"'2. Conservation Measures'!IR30","v":{"$error":"#VALUE!"}},{"$f":"'2. Conservation Measures'!IS30","v":{"$error":"#VALUE!"}},{"$f":"'2. Conservation Measures'!IT30","v":{"$error":"#VALUE!"}},{"$f":"'2. Conservation Measures'!IU30","v":{"$error":"#VALUE!"}},{"$f":"'2. Conservation Measures'!IV30","v":{"$error":"#VALUE!"}},{"$f":"'2. Conservation Measures'!IW30","v":{"$error":"#VALUE!"}},{"$f":"'2. Conservation Measures'!IX30","v":{"$error":"#VALUE!"}},{"$f":"'2. Conservation Measures'!IY30","v":{"$error":"#VALUE!"}},{"$f":"'2. Conservation Measures'!IZ30","v":{"$error":"#VALUE!"}},{"$f":"'2. Conservation Measures'!JA30","v":{"$error":"#VALUE!"}},{"$f":"'2. Conservation Measures'!JB30","v":{"$error":"#VALUE!"}},{"$f":"'2. Conservation Measures'!JC30","v":{"$error":"#VALUE!"}},{"$f":"'2. Conservation Measures'!JD30","v":{"$error":"#VALUE!"}},{"$f":"'2. Conservation Measures'!JE30","v":{"$error":"#VALUE!"}},{"$f":"'2. Conservation Measures'!JF30","v":{"$error":"#VALUE!"}},{"$f":"'2. Conservation Measures'!JG30","v":{"$error":"#VALUE!"}},{"$f":"'2. Conservation Measures'!JH30","v":{"$error":"#VALUE!"}},{"$f":"'2. Conservation Measures'!JI30","v":{"$error":"#VALUE!"}},{"$f":"'2. Conservation Measures'!JJ30","v":{"$error":"#VALUE!"}},{"$f":"'2. Conservation Measures'!JK30","v":{"$error":"#VALUE!"}},{"$f":"'2. Conservation Measures'!JL30","v":{"$error":"#VALUE!"}},{"$f":"'2. Conservation Measures'!JM30","v":{"$error":"#VALUE!"}},{"$f":"'2. Conservation Measures'!JN30","v":{"$error":"#VALUE!"}},{"$f":"'2. Conservation Measures'!JO30","v":{"$error":"#VALUE!"}},{"$f":"'2. Conservation Measures'!JP30","v":{"$error":"#VALUE!"}},{"$f":"'2. Conservation Measures'!JQ30","v":{"$error":"#VALUE!"}},{"$f":"'2. Conservation Measures'!JR30","v":{"$error":"#VALUE!"}},{"$f":"'2. Conservation Measures'!JS30","v":{"$error":"#VALUE!"}},{"$f":"'2. Conservation Measures'!JT30","v":{"$error":"#VALUE!"}},{"$f":"'2. Conservation Measures'!JU30","v":{"$error":"#VALUE!"}},{"$f":"'2. Conservation Measures'!JV30","v":{"$error":"#VALUE!"}},{"$f":"'2. Conservation Measures'!JW30","v":{"$error":"#VALUE!"}},{"$f":"'2. Conservation Measures'!JX30","v":{"$error":"#VALUE!"}},{"$f":"'2. Conservation Measures'!JY30","v":{"$error":"#VALUE!"}},{"$f":"'2. Conservation Measures'!JZ30","v":{"$error":"#VALUE!"}},{"$f":"'2. Conservation Measures'!KA30","v":{"$error":"#VALUE!"}},{"$f":"'2. Conservation Measures'!KB30","v":{"$error":"#VALUE!"}},{"$f":"'2. Conservation Measures'!KC30","v":{"$error":"#VALUE!"}},{"$f":"'2. Conservation Measures'!KD30","v":{"$error":"#VALUE!"}},{"$f":"'2. Conservation Measures'!KE30","v":{"$error":"#VALUE!"}},{"$f":"'2. Conservation Measures'!KF30","v":{"$error":"#VALUE!"}},{"$f":"'2. Conservation Measures'!KG30","v":{"$error":"#VALUE!"}},{"$f":"'2. Conservation Measures'!KH30","v":{"$error":"#VALUE!"}},{"$f":"'2. Conservation Measures'!KI30","v":{"$error":"#VALUE!"}},{"$f":"'2. Conservation Measures'!KJ30","v":{"$error":"#VALUE!"}},{"$f":"'2. Conservation Measures'!KK30","v":{"$error":"#VALUE!"}},{"$f":"'2. Conservation Measures'!KL30","v":{"$error":"#VALUE!"}},{"$f":"'2. Conservation Measures'!KM30","v":{"$error":"#VALUE!"}},{"$f":"'2. Conservation Measures'!KN30","v":{"$error":"#VALUE!"}}]
[null,{"$f":"'2. Conservation Measures'!B31","v":"PRE-SF-09"},{"$f":"'2. Conservation Measures'!C31","v":{"$error":"#N/A"}},{"$f":"'2. Conservation Measures'!D31","v":"N"},null,{"$f":"'2. Conservation Measures'!AA31","v":{"$error":"#N/A"}},null,{"$f":"'2. Conservation Measures'!AO31","v":0},{"$f":"'2. Conservation Measures'!AP31","v":0},{"$f":"'2. Conservation Measures'!AQ31","v":0},{"$f":"'2. Conservation Measures'!AR31","v":0},{"$f":"'2. Conservation Measures'!AS31","v":0},{"$f":"'2. Conservation Measures'!AT31","v":0},{"$f":"'2. Conservation Measures'!AU31","v":0},{"$f":"'2. Conservation Measures'!AV31","v":0},{"$f":"'2. Conservation Measures'!AW31","v":0},{"$f":"'2. Conservation Measures'!AX31","v":0},{"$f":"'2. Conservation Measures'!AY31","v":0},{"$f":"'2. Conservation Measures'!AZ31","v":0},{"$f":"'2. Conservation Measures'!BA31","v":0},{"$f":"'2. Conservation Measures'!BB31","v":0},{"$f":"'2. Conservation Measures'!BC31","v":0},{"$f":"'2. Conservation Measures'!BD31","v":0},{"$f":"'2. Conservation Measures'!BE31","v":0},{"$f":"'2. Conservation Measures'!BF31","v":0},{"$f":"'2. Conservation Measures'!BG31","v":0},{"$f":"'2. Conservation Measures'!BH31","v":0},{"$f":"'2. Conservation Measures'!BI31","v":0},{"$f":"'2. Conservation Measures'!BJ31","v":0},{"$f":"'2. Conservation Measures'!BK31","v":0},{"$f":"'2. Conservation Measures'!BL31","v":0},{"$f":"'2. Conservation Measures'!BM31","v":0},{"$f":"'2. Conservation Measures'!BN31","v":0},{"$f":"'2. Conservation Measures'!BO31","v":0},{"$f":"'2. Conservation Measures'!BP31","v":0},{"$f":"'2. Conservation Measures'!BQ31","v":0},{"$f":"'2. Conservation Measures'!BR31","v":0},{"$f":"'2. Conservation Measures'!BS31","v":0},{"$f":"'2. Conservation Measures'!BT31","v":0},{"$f":"'2. Conservation Measures'!BU31","v":0},{"$f":"'2. Conservation Measures'!BV31","v":0},{"$f":"'2. Conservation Measures'!BW31","v":0},{"$f":"'2. Conservation Measures'!BX31","v":0},{"$f":"'2. Conservation Measures'!BY31","v":0},{"$f":"'2. Conservation Measures'!BZ31","v":0},{"$f":"'2. Conservation Measures'!CA31","v":0},{"$f":"'2. Conservation Measures'!CB31","v":0},{"$f":"'2. Conservation Measures'!CC31","v":0},{"$f":"'2. Conservation Measures'!CD31","v":0},{"$f":"'2. Conservation Measures'!CE31","v":0},{"$f":"'2. Conservation Measures'!CF31","v":0},{"$f":"'2. Conservation Measures'!CG31","v":0},{"$f":"'2. Conservation Measures'!CH31","v":0},{"$f":"'2. Conservation Measures'!CI31","v":0},{"$f":"'2. Conservation Measures'!CJ31","v":0},{"$f":"'2. Conservation Measures'!CK31","v":0},{"$f":"'2. Conservation Measures'!CL31","v":0},{"$f":"'2. Conservation Measures'!CM31","v":0},null,{"$f":"'2. Conservation Measures'!CO31","v":{"$error":"#VALUE!"}},{"$f":"'2. Conservation Measures'!CP31","v":{"$error":"#VALUE!"}},{"$f":"'2. Conservation Measures'!CQ31","v":{"$error":"#VALUE!"}},{"$f":"'2. Conservation Measures'!CR31","v":{"$error":"#VALUE!"}},{"$f":"'2. Conservation Measures'!CS31","v":{"$error":"#VALUE!"}},{"$f":"'2. Conservation Measures'!CT31","v":{"$error":"#VALUE!"}},{"$f":"'2. Conservation Measures'!CU31","v":{"$error":"#VALUE!"}},{"$f":"'2. Conservation Measures'!CV31","v":{"$error":"#VALUE!"}},{"$f":"'2. Conservation Measures'!CW31","v":{"$error":"#VALUE!"}},{"$f":"'2. Conservation Measures'!CX31","v":{"$error":"#VALUE!"}},{"$f":"'2. Conservation Measures'!CY31","v":{"$error":"#VALUE!"}},{"$f":"'2. Conservation Measures'!CZ31","v":{"$error":"#VALUE!"}},{"$f":"'2. Conservation Measures'!DA31","v":{"$error":"#VALUE!"}},{"$f":"'2. Conservation Measures'!DB31","v":{"$error":"#VALUE!"}},{"$f":"'2. Conservation Measures'!DC31","v":{"$error":"#VALUE!"}},{"$f":"'2. Conservation Measures'!DD31","v":{"$error":"#VALUE!"}},{"$f":"'2. Conservation Measures'!DE31","v":{"$error":"#VALUE!"}},{"$f":"'2. Conservation Measures'!DF31","v":{"$error":"#VALUE!"}},{"$f":"'2. Conservation Measures'!DG31","v":{"$error":"#VALUE!"}},{"$f":"'2. Conservation Measures'!DH31","v":{"$error":"#VALUE!"}},{"$f":"'2. Conservation Measures'!DI31","v":{"$error":"#VALUE!"}},{"$f":"'2. Conservation Measures'!DJ31","v":{"$error":"#VALUE!"}},{"$f":"'2. Conservation Measures'!DK31","v":{"$error":"#VALUE!"}},{"$f":"'2. Conservation Measures'!DL31","v":{"$error":"#VALUE!"}},{"$f":"'2. Conservation Measures'!DM31","v":{"$error":"#VALUE!"}},{"$f":"'2. Conservation Measures'!DN31","v":{"$error":"#VALUE!"}},{"$f":"'2. Conservation Measures'!DO31","v":{"$error":"#VALUE!"}},{"$f":"'2. Conservation Measures'!DP31","v":{"$error":"#VALUE!"}},{"$f":"'2. Conservation Measures'!DQ31","v":{"$error":"#VALUE!"}},{"$f":"'2. Conservation Measures'!DR31","v":{"$error":"#VALUE!"}},{"$f":"'2. Conservation Measures'!DS31","v":{"$error":"#VALUE!"}},{"$f":"'2. Conservation Measures'!DT31","v":{"$error":"#VALUE!"}},{"$f":"'2. Conservation Measures'!DU31","v":{"$error":"#VALUE!"}},{"$f":"'2. Conservation Measures'!DV31","v":{"$error":"#VALUE!"}},{"$f":"'2. Conservation Measures'!DW31","v":{"$error":"#VALUE!"}},{"$f":"'2. Conservation Measures'!DX31","v":{"$error":"#VALUE!"}},{"$f":"'2. Conservation Measures'!DY31","v":{"$error":"#VALUE!"}},{"$f":"'2. Conservation Measures'!DZ31","v":{"$error":"#VALUE!"}},{"$f":"'2. Conservation Measures'!EA31","v":{"$error":"#VALUE!"}},{"$f":"'2. Conservation Measures'!EB31","v":{"$error":"#VALUE!"}},{"$f":"'2. Conservation Measures'!EC31","v":{"$error":"#VALUE!"}},{"$f":"'2. Conservation Measures'!ED31","v":{"$error":"#VALUE!"}},{"$f":"'2. Conservation Measures'!EE31","v":{"$error":"#VALUE!"}},{"$f":"'2. Conservation Measures'!EF31","v":{"$error":"#VALUE!"}},{"$f":"'2. Conservation Measures'!EG31","v":{"$error":"#VALUE!"}},{"$f":"'2. Conservation Measures'!EH31","v":{"$error":"#VALUE!"}},{"$f":"'2. Conservation Measures'!EI31","v":{"$error":"#VALUE!"}},{"$f":"'2. Conservation Measures'!EJ31","v":{"$error":"#VALUE!"}},{"$f":"'2. Conservation Measures'!EK31","v":{"$error":"#VALUE!"}},{"$f":"'2. Conservation Measures'!EL31","v":{"$error":"#VALUE!"}},{"$f":"'2. Conservation Measures'!EM31","v":{"$error":"#VALUE!"}},null,{"$f":"'2. Conservation Measures'!KP31","v":{"$error":"#N/A"}},{"$f":"'2. Conservation Measures'!KQ31","v":{"$error":"#N/A"}},{"$f":"'2. Conservation Measures'!KR31","v":{"$error":"#N/A"}},{"$f":"'2. Conservation Measures'!KS31","v":{"$error":"#N/A"}},{"$f":"'2. Conservation Measures'!KT31","v":{"$error":"#N/A"}},{"$f":"'2. Conservation Measures'!KU31","v":{"$error":"#N/A"}},{"$f":"'2. Conservation Measures'!KV31","v":{"$error":"#N/A"}},{"$f":"'2. Conservation Measures'!KW31","v":{"$error":"#N/A"}},{"$f":"'2. Conservation Measures'!KX31","v":{"$error":"#N/A"}},{"$f":"'2. Conservation Measures'!KY31","v":{"$error":"#N/A"}},{"$f":"'2. Conservation Measures'!KZ31","v":{"$error":"#N/A"}},{"$f":"'2. Conservation Measures'!LA31","v":{"$error":"#N/A"}},{"$f":"'2. Conservation Measures'!LB31","v":{"$error":"#N/A"}},{"$f":"'2. Conservation Measures'!LC31","v":{"$error":"#N/A"}},{"$f":"'2. Conservation Measures'!LD31","v":{"$error":"#N/A"}},{"$f":"'2. Conservation Measures'!LE31","v":{"$error":"#N/A"}},{"$f":"'2. Conservation Measures'!LF31","v":{"$error":"#N/A"}},{"$f":"'2. Conservation Measures'!LG31","v":{"$error":"#N/A"}},{"$f":"'2. Conservation Measures'!LH31","v":{"$error":"#N/A"}},{"$f":"'2. Conservation Measures'!LI31","v":{"$error":"#N/A"}},{"$f":"'2. Conservation Measures'!LJ31","v":{"$error":"#N/A"}},{"$f":"'2. Conservation Measures'!LK31","v":{"$error":"#N/A"}},{"$f":"'2. Conservation Measures'!LL31","v":{"$error":"#N/A"}},{"$f":"'2. Conservation Measures'!LM31","v":{"$error":"#N/A"}},{"$f":"'2. Conservation Measures'!LN31","v":{"$error":"#N/A"}},{"$f":"'2. Conservation Measures'!LO31","v":{"$error":"#N/A"}},{"$f":"'2. Conservation Measures'!LP31","v":{"$error":"#N/A"}},{"$f":"'2. Conservation Measures'!LQ31","v":{"$error":"#N/A"}},{"$f":"'2. Conservation Measures'!LR31","v":{"$error":"#N/A"}},{"$f":"'2. Conservation Measures'!LS31","v":{"$error":"#N/A"}},{"$f":"'2. Conservation Measures'!LT31","v":{"$error":"#N/A"}},{"$f":"'2. Conservation Measures'!LU31","v":{"$error":"#N/A"}},{"$f":"'2. Conservation Measures'!LV31","v":{"$error":"#N/A"}},{"$f":"'2. Conservation Measures'!LW31","v":{"$error":"#N/A"}},{"$f":"'2. Conservation Measures'!LX31","v":{"$error":"#N/A"}},{"$f":"'2. Conservation Measures'!LY31","v":{"$error":"#N/A"}},{"$f":"'2. Conservation Measures'!LZ31","v":{"$error":"#N/A"}},{"$f":"'2. Conservation Measures'!MA31","v":{"$error":"#N/A"}},{"$f":"'2. Conservation Measures'!MB31","v":{"$error":"#N/A"}},{"$f":"'2. Conservation Measures'!MC31","v":{"$error":"#N/A"}},{"$f":"'2. Conservation Measures'!MD31","v":{"$error":"#N/A"}},{"$f":"'2. Conservation Measures'!ME31","v":{"$error":"#N/A"}},{"$f":"'2. Conservation Measures'!MF31","v":{"$error":"#N/A"}},{"$f":"'2. Conservation Measures'!MG31","v":{"$error":"#N/A"}},{"$f":"'2. Conservation Measures'!MH31","v":{"$error":"#N/A"}},{"$f":"'2. Conservation Measures'!MI31","v":{"$error":"#N/A"}},{"$f":"'2. Conservation Measures'!MJ31","v":{"$error":"#N/A"}},{"$f":"'2. Conservation Measures'!MK31","v":{"$error":"#N/A"}},{"$f":"'2. Conservation Measures'!ML31","v":{"$error":"#N/A"}},{"$f":"'2. Conservation Measures'!MM31","v":{"$error":"#N/A"}},{"$f":"'2. Conservation Measures'!MN31","v":{"$error":"#N/A"}},null,{"$f":"'2. Conservation Measures'!EP31","v":{"$error":"#N/A"}},{"$f":"'2. Conservation Measures'!EQ31","v":{"$error":"#N/A"}},{"$f":"'2. Conservation Measures'!ER31","v":{"$error":"#N/A"}},{"$f":"'2. Conservation Measures'!ES31","v":{"$error":"#N/A"}},{"$f":"'2. Conservation Measures'!ET31","v":{"$error":"#N/A"}},{"$f":"'2. Conservation Measures'!EU31","v":{"$error":"#N/A"}},{"$f":"'2. Conservation Measures'!EV31","v":{"$error":"#N/A"}},{"$f":"'2. Conservation Measures'!EW31","v":{"$error":"#N/A"}},{"$f":"'2. Conservation Measures'!EX31","v":{"$error":"#N/A"}},{"$f":"'2. Conservation Measures'!EY31","v":{"$error":"#N/A"}},{"$f":"'2. Conservation Measures'!EZ31","v":{"$error":"#N/A"}},{"$f":"'2. Conservation Measures'!FA31","v":{"$error":"#N/A"}},{"$f":"'2. Conservation Measures'!FB31","v":{"$error":"#N/A"}},{"$f":"'2. Conservation Measures'!FC31","v":{"$error":"#N/A"}},{"$f":"'2. Conservation Measures'!FD31","v":{"$error":"#N/A"}},{"$f":"'2. Conservation Measures'!FE31","v":{"$error":"#N/A"}},{"$f":"'2. Conservation Measures'!FF31","v":{"$error":"#N/A"}},{"$f":"'2. Conservation Measures'!FG31","v":{"$error":"#N/A"}},{"$f":"'2. Conservation Measures'!FH31","v":{"$error":"#N/A"}},{"$f":"'2. Conservation Measures'!FI31","v":{"$error":"#N/A"}},{"$f":"'2. Conservation Measures'!FJ31","v":{"$error":"#N/A"}},{"$f":"'2. Conservation Measures'!FK31","v":{"$error":"#N/A"}},{"$f":"'2. Conservation Measures'!FL31","v":{"$error":"#N/A"}},{"$f":"'2. Conservation Measures'!FM31","v":{"$error":"#N/A"}},{"$f":"'2. Conservation Measures'!FN31","v":{"$error":"#N/A"}},{"$f":"'2. Conservation Measures'!FO31","v":{"$error":"#N/A"}},{"$f":"'2. Conservation Measures'!FP31","v":{"$error":"#N/A"}},{"$f":"'2. Conservation Measures'!FQ31","v":{"$error":"#N/A"}},{"$f":"'2. Conservation Measures'!FR31","v":{"$error":"#N/A"}},{"$f":"'2. Conservation Measures'!FS31","v":{"$error":"#N/A"}},{"$f":"'2. Conservation Measures'!FT31","v":{"$error":"#N/A"}},{"$f":"'2. Conservation Measures'!FU31","v":{"$error":"#N/A"}},{"$f":"'2. Conservation Measures'!FV31","v":{"$error":"#N/A"}},{"$f":"'2. Conservation Measures'!FW31","v":{"$error":"#N/A"}},{"$f":"'2. Conservation Measures'!FX31","v":{"$error":"#N/A"}},{"$f":"'2. Conservation Measures'!FY31","v":{"$error":"#N/A"}},{"$f":"'2. Conservation Measures'!FZ31","v":{"$error":"#N/A"}},{"$f":"'2. Conservation Measures'!GA31","v":{"$error":"#N/A"}},{"$f":"'2. Conservation Measures'!GB31","v":{"$error":"#N/A"}},{"$f":"'2. Conservation Measures'!GC31","v":{"$error":"#N/A"}},{"$f":"'2. Conservation Measures'!GD31","v":{"$error":"#N/A"}},{"$f":"'2. Conservation Measures'!GE31","v":{"$error":"#N/A"}},{"$f":"'2. Conservation Measures'!GF31","v":{"$error":"#N/A"}},{"$f":"'2. Conservation Measures'!GG31","v":{"$error":"#N/A"}},{"$f":"'2. Conservation Measures'!GH31","v":{"$error":"#N/A"}},{"$f":"'2. Conservation Measures'!GI31","v":{"$error":"#N/A"}},{"$f":"'2. Conservation Measures'!GJ31","v":{"$error":"#N/A"}},{"$f":"'2. Conservation Measures'!GK31","v":{"$error":"#N/A"}},{"$f":"'2. Conservation Measures'!GL31","v":{"$error":"#N/A"}},{"$f":"'2. Conservation Measures'!GM31","v":{"$error":"#N/A"}},{"$f":"'2. Conservation Measures'!GN31","v":{"$error":"#N/A"}},null,{"$f":"'2. Conservation Measures'!GP31","v":{"$error":"#N/A"}},{"$f":"'2. Conservation Measures'!GQ31","v":{"$error":"#N/A"}},{"$f":"'2. Conservation Measures'!GR31","v":{"$error":"#N/A"}},{"$f":"'2. Conservation Measures'!GS31","v":{"$error":"#N/A"}},{"$f":"'2. Conservation Measures'!GT31","v":{"$error":"#N/A"}},{"$f":"'2. Conservation Measures'!GU31","v":{"$error":"#N/A"}},{"$f":"'2. Conservation Measures'!GV31","v":{"$error":"#N/A"}},{"$f":"'2. Conservation Measures'!GW31","v":{"$error":"#N/A"}},{"$f":"'2. Conservation Measures'!GX31","v":{"$error":"#N/A"}},{"$f":"'2. Conservation Measures'!GY31","v":{"$error":"#N/A"}},{"$f":"'2. Conservation Measures'!GZ31","v":{"$error":"#N/A"}},{"$f":"'2. Conservation Measures'!HA31","v":{"$error":"#N/A"}},{"$f":"'2. Conservation Measures'!HB31","v":{"$error":"#N/A"}},{"$f":"'2. Conservation Measures'!HC31","v":{"$error":"#N/A"}},{"$f":"'2. Conservation Measures'!HD31","v":{"$error":"#N/A"}},{"$f":"'2. Conservation Measures'!HE31","v":{"$error":"#N/A"}},{"$f":"'2. Conservation Measures'!HF31","v":{"$error":"#N/A"}},{"$f":"'2. Conservation Measures'!HG31","v":{"$error":"#N/A"}},{"$f":"'2. Conservation Measures'!HH31","v":{"$error":"#N/A"}},{"$f":"'2. Conservation Measures'!HI31","v":{"$error":"#N/A"}},{"$f":"'2. Conservation Measures'!HJ31","v":{"$error":"#N/A"}},{"$f":"'2. Conservation Measures'!HK31","v":{"$error":"#N/A"}},{"$f":"'2. Conservation Measures'!HL31","v":{"$error":"#N/A"}},{"$f":"'2. Conservation Measures'!HM31","v":{"$error":"#N/A"}},{"$f":"'2. Conservation Measures'!HN31","v":{"$error":"#N/A"}},{"$f":"'2. Conservation Measures'!HO31","v":{"$error":"#N/A"}},{"$f":"'2. Conservation Measures'!HP31","v":{"$error":"#N/A"}},{"$f":"'2. Conservation Measures'!HQ31","v":{"$error":"#N/A"}},{"$f":"'2. Conservation Measures'!HR31","v":{"$error":"#N/A"}},{"$f":"'2. Conservation Measures'!HS31","v":{"$error":"#N/A"}},{"$f":"'2. Conservation Measures'!HT31","v":{"$error":"#N/A"}},{"$f":"'2. Conservation Measures'!HU31","v":{"$error":"#N/A"}},{"$f":"'2. Conservation Measures'!HV31","v":{"$error":"#N/A"}},{"$f":"'2. Conservation Measures'!HW31","v":{"$error":"#N/A"}},{"$f":"'2. Conservation Measures'!HX31","v":{"$error":"#N/A"}},{"$f":"'2. Conservation Measures'!HY31","v":{"$error":"#N/A"}},{"$f":"'2. Conservation Measures'!HZ31","v":{"$error":"#N/A"}},{"$f":"'2. Conservation Measures'!IA31","v":{"$error":"#N/A"}},{"$f":"'2. Conservation Measures'!IB31","v":{"$error":"#N/A"}},{"$f":"'2. Conservation Measures'!IC31","v":{"$error":"#N/A"}},{"$f":"'2. Conservation Measures'!ID31","v":{"$error":"#N/A"}},{"$f":"'2. Conservation Measures'!IE31","v":{"$error":"#N/A"}},{"$f":"'2. Conservation Measures'!IF31","v":{"$error":"#N/A"}},{"$f":"'2. Conservation Measures'!IG31","v":{"$error":"#N/A"}},{"$f":"'2. Conservation Measures'!IH31","v":{"$error":"#N/A"}},{"$f":"'2. Conservation Measures'!II31","v":{"$error":"#N/A"}},{"$f":"'2. Conservation Measures'!IJ31","v":{"$error":"#N/A"}},{"$f":"'2. Conservation Measures'!IK31","v":{"$error":"#N/A"}},{"$f":"'2. Conservation Measures'!IL31","v":{"$error":"#N/A"}},{"$f":"'2. Conservation Measures'!IM31","v":{"$error":"#N/A"}},{"$f":"'2. Conservation Measures'!IN31","v":{"$error":"#N/A"}},null,{"$f":"'2. Conservation Measures'!IP31","v":{"$error":"#VALUE!"}},{"$f":"'2. Conservation Measures'!IQ31","v":{"$error":"#VALUE!"}},{"$f":"'2. Conservation Measures'!IR31","v":{"$error":"#VALUE!"}},{"$f":"'2. Conservation Measures'!IS31","v":{"$error":"#VALUE!"}},{"$f":"'2. Conservation Measures'!IT31","v":{"$error":"#VALUE!"}},{"$f":"'2. Conservation Measures'!IU31","v":{"$error":"#VALUE!"}},{"$f":"'2. Conservation Measures'!IV31","v":{"$error":"#VALUE!"}},{"$f":"'2. Conservation Measures'!IW31","v":{"$error":"#VALUE!"}},{"$f":"'2. Conservation Measures'!IX31","v":{"$error":"#VALUE!"}},{"$f":"'2. Conservation Measures'!IY31","v":{"$error":"#VALUE!"}},{"$f":"'2. Conservation Measures'!IZ31","v":{"$error":"#VALUE!"}},{"$f":"'2. Conservation Measures'!JA31","v":{"$error":"#VALUE!"}},{"$f":"'2. Conservation Measures'!JB31","v":{"$error":"#VALUE!"}},{"$f":"'2. Conservation Measures'!JC31","v":{"$error":"#VALUE!"}},{"$f":"'2. Conservation Measures'!JD31","v":{"$error":"#VALUE!"}},{"$f":"'2. Conservation Measures'!JE31","v":{"$error":"#VALUE!"}},{"$f":"'2. Conservation Measures'!JF31","v":{"$error":"#VALUE!"}},{"$f":"'2. Conservation Measures'!JG31","v":{"$error":"#VALUE!"}},{"$f":"'2. Conservation Measures'!JH31","v":{"$error":"#VALUE!"}},{"$f":"'2. Conservation Measures'!JI31","v":{"$error":"#VALUE!"}},{"$f":"'2. Conservation Measures'!JJ31","v":{"$error":"#VALUE!"}},{"$f":"'2. Conservation Measures'!JK31","v":{"$error":"#VALUE!"}},{"$f":"'2. Conservation Measures'!JL31","v":{"$error":"#VALUE!"}},{"$f":"'2. Conservation Measures'!JM31","v":{"$error":"#VALUE!"}},{"$f":"'2. Conservation Measures'!JN31","v":{"$error":"#VALUE!"}},{"$f":"'2. Conservation Measures'!JO31","v":{"$error":"#VALUE!"}},{"$f":"'2. Conservation Measures'!JP31","v":{"$error":"#VALUE!"}},{"$f":"'2. Conservation Measures'!JQ31","v":{"$error":"#VALUE!"}},{"$f":"'2. Conservation Measures'!JR31","v":{"$error":"#VALUE!"}},{"$f":"'2. Conservation Measures'!JS31","v":{"$error":"#VALUE!"}},{"$f":"'2. Conservation Measures'!JT31","v":{"$error":"#VALUE!"}},{"$f":"'2. Conservation Measures'!JU31","v":{"$error":"#VALUE!"}},{"$f":"'2. Conservation Measures'!JV31","v":{"$error":"#VALUE!"}},{"$f":"'2. Conservation Measures'!JW31","v":{"$error":"#VALUE!"}},{"$f":"'2. Conservation Measures'!JX31","v":{"$error":"#VALUE!"}},{"$f":"'2. Conservation Measures'!JY31","v":{"$error":"#VALUE!"}},{"$f":"'2. Conservation Measures'!JZ31","v":{"$error":"#VALUE!"}},{"$f":"'2. Conservation Measures'!KA31","v":{"$error":"#VALUE!"}},{"$f":"'2. Conservation Measures'!KB31","v":{"$error":"#VALUE!"}},{"$f":"'2. Conservation Measures'!KC31","v":{"$error":"#VALUE!"}},{"$f":"'2. Conservation Measures'!KD31","v":{"$error":"#VALUE!"}},{"$f":"'2. Conservation Measures'!KE31","v":{"$error":"#VALUE!"}},{"$f":"'2. Conservation Measures'!KF31","v":{"$error":"#VALUE!"}},{"$f":"'2. Conservation Measures'!KG31","v":{"$error":"#VALUE!"}},{"$f":"'2. Conservation Measures'!KH31","v":{"$error":"#VALUE!"}},{"$f":"'2. Conservation Measures'!KI31","v":{"$error":"#VALUE!"}},{"$f":"'2. Conservation Measures'!KJ31","v":{"$error":"#VALUE!"}},{"$f":"'2. Conservation Measures'!KK31","v":{"$error":"#VALUE!"}},{"$f":"'2. Conservation Measures'!KL31","v":{"$error":"#VALUE!"}},{"$f":"'2. Conservation Measures'!KM31","v":{"$error":"#VALUE!"}},{"$f":"'2. Conservation Measures'!KN31","v":{"$error":"#VALUE!"}}]
[null,{"$f":"'2. Conservation Measures'!B32","v":"PRE-SF-10"},{"$f":"'2. Conservation Measures'!C32","v":{"$error":"#N/A"}},{"$f":"'2. Conservation Measures'!D32","v":"N"},null,{"$f":"'2. Conservation Measures'!AA32","v":{"$error":"#N/A"}},null,{"$f":"'2. Conservation Measures'!AO32","v":0},{"$f":"'2. Conservation Measures'!AP32","v":0},{"$f":"'2. Conservation Measures'!AQ32","v":0},{"$f":"'2. Conservation Measures'!AR32","v":0},{"$f":"'2. Conservation Measures'!AS32","v":0},{"$f":"'2. Conservation Measures'!AT32","v":0},{"$f":"'2. Conservation Measures'!AU32","v":0},{"$f":"'2. Conservation Measures'!AV32","v":0},{"$f":"'2. Conservation Measures'!AW32","v":0},{"$f":"'2. Conservation Measures'!AX32","v":0},{"$f":"'2. Conservation Measures'!AY32","v":0},{"$f":"'2. Conservation Measures'!AZ32","v":0},{"$f":"'2. Conservation Measures'!BA32","v":0},{"$f":"'2. Conservation Measures'!BB32","v":0},{"$f":"'2. Conservation Measures'!BC32","v":0},{"$f":"'2. Conservation Measures'!BD32","v":0},{"$f":"'2. Conservation Measures'!BE32","v":0},{"$f":"'2. Conservation Measures'!BF32","v":0},{"$f":"'2. Conservation Measures'!BG32","v":0},{"$f":"'2. Conservation Measures'!BH32","v":0},{"$f":"'2. Conservation Measures'!BI32","v":0},{"$f":"'2. Conservation Measures'!BJ32","v":0},{"$f":"'2. Conservation Measures'!BK32","v":0},{"$f":"'2. Conservation Measures'!BL32","v":0},{"$f":"'2. Conservation Measures'!BM32","v":0},{"$f":"'2. Conservation Measures'!BN32","v":0},{"$f":"'2. Conservation Measures'!BO32","v":0},{"$f":"'2. Conservation Measures'!BP32","v":0},{"$f":"'2. Conservation Measures'!BQ32","v":0},{"$f":"'2. Conservation Measures'!BR32","v":0},{"$f":"'2. Conservation Measures'!BS32","v":0},{"$f":"'2. Conservation Measures'!BT32","v":0},{"$f":"'2. Conservation Measures'!BU32","v":0},{"$f":"'2. Conservation Measures'!BV32","v":0},{"$f":"'2. Conservation Measures'!BW32","v":0},{"$f":"'2. Conservation Measures'!BX32","v":0},{"$f":"'2. Conservation Measures'!BY32","v":0},{"$f":"'2. Conservation Measures'!BZ32","v":0},{"$f":"'2. Conservation Measures'!CA32","v":0},{"$f":"'2. Conservation Measures'!CB32","v":0},{"$f":"'2. Conservation Measures'!CC32","v":0},{"$f":"'2. Conservation Measures'!CD32","v":0},{"$f":"'2. Conservation Measures'!CE32","v":0},{"$f":"'2. Conservation Measures'!CF32","v":0},{"$f":"'2. Conservation Measures'!CG32","v":0},{"$f":"'2. Conservation Measures'!CH32","v":0},{"$f":"'2. Conservation Measures'!CI32","v":0},{"$f":"'2. Conservation Measures'!CJ32","v":0},{"$f":"'2. Conservation Measures'!CK32","v":0},{"$f":"'2. Conservation Measures'!CL32","v":0},{"$f":"'2. Conservation Measures'!CM32","v":0},null,{"$f":"'2. Conservation Measures'!CO32","v":{"$error":"#VALUE!"}},{"$f":"'2. Conservation Measures'!CP32","v":{"$error":"#VALUE!"}},{"$f":"'2. Conservation Measures'!CQ32","v":{"$error":"#VALUE!"}},{"$f":"'2. Conservation Measures'!CR32","v":{"$error":"#VALUE!"}},{"$f":"'2. Conservation Measures'!CS32","v":{"$error":"#VALUE!"}},{"$f":"'2. Conservation Measures'!CT32","v":{"$error":"#VALUE!"}},{"$f":"'2. Conservation Measures'!CU32","v":{"$error":"#VALUE!"}},{"$f":"'2. Conservation Measures'!CV32","v":{"$error":"#VALUE!"}},{"$f":"'2. Conservation Measures'!CW32","v":{"$error":"#VALUE!"}},{"$f":"'2. Conservation Measures'!CX32","v":{"$error":"#VALUE!"}},{"$f":"'2. Conservation Measures'!CY32","v":{"$error":"#VALUE!"}},{"$f":"'2. Conservation Measures'!CZ32","v":{"$error":"#VALUE!"}},{"$f":"'2. Conservation Measures'!DA32","v":{"$error":"#VALUE!"}},{"$f":"'2. Conservation Measures'!DB32","v":{"$error":"#VALUE!"}},{"$f":"'2. Conservation Measures'!DC32","v":{"$error":"#VALUE!"}},{"$f":"'2. Conservation Measures'!DD32","v":{"$error":"#VALUE!"}},{"$f":"'2. Conservation Measures'!DE32","v":{"$error":"#VALUE!"}},{"$f":"'2. Conservation Measures'!DF32","v":{"$error":"#VALUE!"}},{"$f":"'2. Conservation Measures'!DG32","v":{"$error":"#VALUE!"}},{"$f":"'2. Conservation Measures'!DH32","v":{"$error":"#VALUE!"}},{"$f":"'2. Conservation Measures'!DI32","v":{"$error":"#VALUE!"}},{"$f":"'2. Conservation Measures'!DJ32","v":{"$error":"#VALUE!"}},{"$f":"'2. Conservation Measures'!DK32","v":{"$error":"#VALUE!"}},{"$f":"'2. Conservation Measures'!DL32","v":{"$error":"#VALUE!"}},{"$f":"'2. Conservation Measures'!DM32","v":{"$error":"#VALUE!"}},{"$f":"'2. Conservation Measures'!DN32","v":{"$error":"#VALUE!"}},{"$f":"'2. Conservation Measures'!DO32","v":{"$error":"#VALUE!"}},{"$f":"'2. Conservation Measures'!DP32","v":{"$error":"#VALUE!"}},{"$f":"'2. Conservation Measures'!DQ32","v":{"$error":"#VALUE!"}},{"$f":"'2. Conservation Measures'!DR32","v":{"$error":"#VALUE!"}},{"$f":"'2. Conservation Measures'!DS32","v":{"$error":"#VALUE!"}},{"$f":"'2. Conservation Measures'!DT32","v":{"$error":"#VALUE!"}},{"$f":"'2. Conservation Measures'!DU32","v":{"$error":"#VALUE!"}},{"$f":"'2. Conservation Measures'!DV32","v":{"$error":"#VALUE!"}},{"$f":"'2. Conservation Measures'!DW32","v":{"$error":"#VALUE!"}},{"$f":"'2. Conservation Measures'!DX32","v":{"$error":"#VALUE!"}},{"$f":"'2. Conservation Measures'!DY32","v":{"$error":"#VALUE!"}},{"$f":"'2. Conservation Measures'!DZ32","v":{"$error":"#VALUE!"}},{"$f":"'2. Conservation Measures'!EA32","v":{"$error":"#VALUE!"}},{"$f":"'2. Conservation Measures'!EB32","v":{"$error":"#VALUE!"}},{"$f":"'2. Conservation Measures'!EC32","v":{"$error":"#VALUE!"}},{"$f":"'2. Conservation Measures'!ED32","v":{"$error":"#VALUE!"}},{"$f":"'2. Conservation Measures'!EE32","v":{"$error":"#VALUE!"}},{"$f":"'2. Conservation Measures'!EF32","v":{"$error":"#VALUE!"}},{"$f":"'2. Conservation Measures'!EG32","v":{"$error":"#VALUE!"}},{"$f":"'2. Conservation Measures'!EH32","v":{"$error":"#VALUE!"}},{"$f":"'2. Conservation Measures'!EI32","v":{"$error":"#VALUE!"}},{"$f":"'2. Conservation Measures'!EJ32","v":{"$error":"#VALUE!"}},{"$f":"'2. Conservation Measures'!EK32","v":{"$error":"#VALUE!"}},{"$f":"'2. Conservation Measures'!EL32","v":{"$error":"#VALUE!"}},{"$f":"'2. Conservation Measures'!EM32","v":{"$error":"#VALUE!"}},null,{"$f":"'2. Conservation Measures'!KP32","v":{"$error":"#N/A"}},{"$f":"'2. Conservation Measures'!KQ32","v":{"$error":"#N/A"}},{"$f":"'2. Conservation Measures'!KR32","v":{"$error":"#N/A"}},{"$f":"'2. Conservation Measures'!KS32","v":{"$error":"#N/A"}},{"$f":"'2. Conservation Measures'!KT32","v":{"$error":"#N/A"}},{"$f":"'2. Conservation Measures'!KU32","v":{"$error":"#N/A"}},{"$f":"'2. Conservation Measures'!KV32","v":{"$error":"#N/A"}},{"$f":"'2. Conservation Measures'!KW32","v":{"$error":"#N/A"}},{"$f":"'2. Conservation Measures'!KX32","v":{"$error":"#N/A"}},{"$f":"'2. Conservation Measures'!KY32","v":{"$error":"#N/A"}},{"$f":"'2. Conservation Measures'!KZ32","v":{"$error":"#N/A"}},{"$f":"'2. Conservation Measures'!LA32","v":{"$error":"#N/A"}},{"$f":"'2. Conservation Measures'!LB32","v":{"$error":"#N/A"}},{"$f":"'2. Conservation Measures'!LC32","v":{"$error":"#N/A"}},{"$f":"'2. Conservation Measures'!LD32","v":{"$error":"#N/A"}},{"$f":"'2. Conservation Measures'!LE32","v":{"$error":"#N/A"}},{"$f":"'2. Conservation Measures'!LF32","v":{"$error":"#N/A"}},{"$f":"'2. Conservation Measures'!LG32","v":{"$error":"#N/A"}},{"$f":"'2. Conservation Measures'!LH32","v":{"$error":"#N/A"}},{"$f":"'2. Conservation Measures'!LI32","v":{"$error":"#N/A"}},{"$f":"'2. Conservation Measures'!LJ32","v":{"$error":"#N/A"}},{"$f":"'2. Conservation Measures'!LK32","v":{"$error":"#N/A"}},{"$f":"'2. Conservation Measures'!LL32","v":{"$error":"#N/A"}},{"$f":"'2. Conservation Measures'!LM32","v":{"$error":"#N/A"}},{"$f":"'2. Conservation Measures'!LN32","v":{"$error":"#N/A"}},{"$f":"'2. Conservation Measures'!LO32","v":{"$error":"#N/A"}},{"$f":"'2. Conservation Measures'!LP32","v":{"$error":"#N/A"}},{"$f":"'2. Conservation Measures'!LQ32","v":{"$error":"#N/A"}},{"$f":"'2. Conservation Measures'!LR32","v":{"$error":"#N/A"}},{"$f":"'2. Conservation Measures'!LS32","v":{"$error":"#N/A"}},{"$f":"'2. Conservation Measures'!LT32","v":{"$error":"#N/A"}},{"$f":"'2. Conservation Measures'!LU32","v":{"$error":"#N/A"}},{"$f":"'2. Conservation Measures'!LV32","v":{"$error":"#N/A"}},{"$f":"'2. Conservation Measures'!LW32","v":{"$error":"#N/A"}},{"$f":"'2. Conservation Measures'!LX32","v":{"$error":"#N/A"}},{"$f":"'2. Conservation Measures'!LY32","v":{"$error":"#N/A"}},{"$f":"'2. Conservation Measures'!LZ32","v":{"$error":"#N/A"}},{"$f":"'2. Conservation Measures'!MA32","v":{"$error":"#N/A"}},{"$f":"'2. Conservation Measures'!MB32","v":{"$error":"#N/A"}},{"$f":"'2. Conservation Measures'!MC32","v":{"$error":"#N/A"}},{"$f":"'2. Conservation Measures'!MD32","v":{"$error":"#N/A"}},{"$f":"'2. Conservation Measures'!ME32","v":{"$error":"#N/A"}},{"$f":"'2. Conservation Measures'!MF32","v":{"$error":"#N/A"}},{"$f":"'2. Conservation Measures'!MG32","v":{"$error":"#N/A"}},{"$f":"'2. Conservation Measures'!MH32","v":{"$error":"#N/A"}},{"$f":"'2. Conservation Measures'!MI32","v":{"$error":"#N/A"}},{"$f":"'2. Conservation Measures'!MJ32","v":{"$error":"#N/A"}},{"$f":"'2. Conservation Measures'!MK32","v":{"$error":"#N/A"}},{"$f":"'2. Conservation Measures'!ML32","v":{"$error":"#N/A"}},{"$f":"'2. Conservation Measures'!MM32","v":{"$error":"#N/A"}},{"$f":"'2. Conservation Measures'!MN32","v":{"$error":"#N/A"}},null,{"$f":"'2. Conservation Measures'!EP32","v":{"$error":"#N/A"}},{"$f":"'2. Conservation Measures'!EQ32","v":{"$error":"#N/A"}},{"$f":"'2. Conservation Measures'!ER32","v":{"$error":"#N/A"}},{"$f":"'2. Conservation Measures'!ES32","v":{"$error":"#N/A"}},{"$f":"'2. Conservation Measures'!ET32","v":{"$error":"#N/A"}},{"$f":"'2. Conservation Measures'!EU32","v":{"$error":"#N/A"}},{"$f":"'2. Conservation Measures'!EV32","v":{"$error":"#N/A"}},{"$f":"'2. Conservation Measures'!EW32","v":{"$error":"#N/A"}},{"$f":"'2. Conservation Measures'!EX32","v":{"$error":"#N/A"}},{"$f":"'2. Conservation Measures'!EY32","v":{"$error":"#N/A"}},{"$f":"'2. Conservation Measures'!EZ32","v":{"$error":"#N/A"}},{"$f":"'2. Conservation Measures'!FA32","v":{"$error":"#N/A"}},{"$f":"'2. Conservation Measures'!FB32","v":{"$error":"#N/A"}},{"$f":"'2. Conservation Measures'!FC32","v":{"$error":"#N/A"}},{"$f":"'2. Conservation Measures'!FD32","v":{"$error":"#N/A"}},{"$f":"'2. Conservation Measures'!FE32","v":{"$error":"#N/A"}},{"$f":"'2. Conservation Measures'!FF32","v":{"$error":"#N/A"}},{"$f":"'2. Conservation Measures'!FG32","v":{"$error":"#N/A"}},{"$f":"'2. Conservation Measures'!FH32","v":{"$error":"#N/A"}},{"$f":"'2. Conservation Measures'!FI32","v":{"$error":"#N/A"}},{"$f":"'2. Conservation Measures'!FJ32","v":{"$error":"#N/A"}},{"$f":"'2. Conservation Measures'!FK32","v":{"$error":"#N/A"}},{"$f":"'2. Conservation Measures'!FL32","v":{"$error":"#N/A"}},{"$f":"'2. Conservation Measures'!FM32","v":{"$error":"#N/A"}},{"$f":"'2. Conservation Measures'!FN32","v":{"$error":"#N/A"}},{"$f":"'2. Conservation Measures'!FO32","v":{"$error":"#N/A"}},{"$f":"'2. Conservation Measures'!FP32","v":{"$error":"#N/A"}},{"$f":"'2. Conservation Measures'!FQ32","v":{"$error":"#N/A"}},{"$f":"'2. Conservation Measures'!FR32","v":{"$error":"#N/A"}},{"$f":"'2. Conservation Measures'!FS32","v":{"$error":"#N/A"}},{"$f":"'2. Conservation Measures'!FT32","v":{"$error":"#N/A"}},{"$f":"'2. Conservation Measures'!FU32","v":{"$error":"#N/A"}},{"$f":"'2. Conservation Measures'!FV32","v":{"$error":"#N/A"}},{"$f":"'2. Conservation Measures'!FW32","v":{"$error":"#N/A"}},{"$f":"'2. Conservation Measures'!FX32","v":{"$error":"#N/A"}},{"$f":"'2. Conservation Measures'!FY32","v":{"$error":"#N/A"}},{"$f":"'2. Conservation Measures'!FZ32","v":{"$error":"#N/A"}},{"$f":"'2. Conservation Measures'!GA32","v":{"$error":"#N/A"}},{"$f":"'2. Conservation Measures'!GB32","v":{"$error":"#N/A"}},{"$f":"'2. Conservation Measures'!GC32","v":{"$error":"#N/A"}},{"$f":"'2. Conservation Measures'!GD32","v":{"$error":"#N/A"}},{"$f":"'2. Conservation Measures'!GE32","v":{"$error":"#N/A"}},{"$f":"'2. Conservation Measures'!GF32","v":{"$error":"#N/A"}},{"$f":"'2. Conservation Measures'!GG32","v":{"$error":"#N/A"}},{"$f":"'2. Conservation Measures'!GH32","v":{"$error":"#N/A"}},{"$f":"'2. Conservation Measures'!GI32","v":{"$error":"#N/A"}},{"$f":"'2. Conservation Measures'!GJ32","v":{"$error":"#N/A"}},{"$f":"'2. Conservation Measures'!GK32","v":{"$error":"#N/A"}},{"$f":"'2. Conservation Measures'!GL32","v":{"$error":"#N/A"}},{"$f":"'2. Conservation Measures'!GM32","v":{"$error":"#N/A"}},{"$f":"'2. Conservation Measures'!GN32","v":{"$error":"#N/A"}},null,{"$f":"'2. Conservation Measures'!GP32","v":{"$error":"#N/A"}},{"$f":"'2. Conservation Measures'!GQ32","v":{"$error":"#N/A"}},{"$f":"'2. Conservation Measures'!GR32","v":{"$error":"#N/A"}},{"$f":"'2. Conservation Measures'!GS32","v":{"$error":"#N/A"}},{"$f":"'2. Conservation Measures'!GT32","v":{"$error":"#N/A"}},{"$f":"'2. Conservation Measures'!GU32","v":{"$error":"#N/A"}},{"$f":"'2. Conservation Measures'!GV32","v":{"$error":"#N/A"}},{"$f":"'2. Conservation Measures'!GW32","v":{"$error":"#N/A"}},{"$f":"'2. Conservation Measures'!GX32","v":{"$error":"#N/A"}},{"$f":"'2. Conservation Measures'!GY32","v":{"$error":"#N/A"}},{"$f":"'2. Conservation Measures'!GZ32","v":{"$error":"#N/A"}},{"$f":"'2. Conservation Measures'!HA32","v":{"$error":"#N/A"}},{"$f":"'2. Conservation Measures'!HB32","v":{"$error":"#N/A"}},{"$f":"'2. Conservation Measures'!HC32","v":{"$error":"#N/A"}},{"$f":"'2. Conservation Measures'!HD32","v":{"$error":"#N/A"}},{"$f":"'2. Conservation Measures'!HE32","v":{"$error":"#N/A"}},{"$f":"'2. Conservation Measures'!HF32","v":{"$error":"#N/A"}},{"$f":"'2. Conservation Measures'!HG32","v":{"$error":"#N/A"}},{"$f":"'2. Conservation Measures'!HH32","v":{"$error":"#N/A"}},{"$f":"'2. Conservation Measures'!HI32","v":{"$error":"#N/A"}},{"$f":"'2. Conservation Measures'!HJ32","v":{"$error":"#N/A"}},{"$f":"'2. Conservation Measures'!HK32","v":{"$error":"#N/A"}},{"$f":"'2. Conservation Measures'!HL32","v":{"$error":"#N/A"}},{"$f":"'2. Conservation Measures'!HM32","v":{"$error":"#N/A"}},{"$f":"'2. Conservation Measures'!HN32","v":{"$error":"#N/A"}},{"$f":"'2. Conservation Measures'!HO32","v":{"$error":"#N/A"}},{"$f":"'2. Conservation Measures'!HP32","v":{"$error":"#N/A"}},{"$f":"'2. Conservation Measures'!HQ32","v":{"$error":"#N/A"}},{"$f":"'2. Conservation Measures'!HR32","v":{"$error":"#N/A"}},{"$f":"'2. Conservation Measures'!HS32","v":{"$error":"#N/A"}},{"$f":"'2. Conservation Measures'!HT32","v":{"$error":"#N/A"}},{"$f":"'2. Conservation Measures'!HU32","v":{"$error":"#N/A"}},{"$f":"'2. Conservation Measures'!HV32","v":{"$error":"#N/A"}},{"$f":"'2. Conservation Measures'!HW32","v":{"$error":"#N/A"}},{"$f":"'2. Conservation Measures'!HX32","v":{"$error":"#N/A"}},{"$f":"'2. Conservation Measures'!HY32","v":{"$error":"#N/A"}},{"$f":"'2. Conservation Measures'!HZ32","v":{"$error":"#N/A"}},{"$f":"'2. Conservation Measures'!IA32","v":{"$error":"#N/A"}},{"$f":"'2. Conservation Measures'!IB32","v":{"$error":"#N/A"}},{"$f":"'2. Conservation Measures'!IC32","v":{"$error":"#N/A"}},{"$f":"'2. Conservation Measures'!ID32","v":{"$error":"#N/A"}},{"$f":"'2. Conservation Measures'!IE32","v":{"$error":"#N/A"}},{"$f":"'2. Conservation Measures'!IF32","v":{"$error":"#N/A"}},{"$f":"'2. Conservation Measures'!IG32","v":{"$error":"#N/A"}},{"$f":"'2. Conservation Measures'!IH32","v":{"$error":"#N/A"}},{"$f":"'2. Conservation Measures'!II32","v":{"$error":"#N/A"}},{"$f":"'2. Conservation Measures'!IJ32","v":{"$error":"#N/A"}},{"$f":"'2. Conservation Measures'!IK32","v":{"$error":"#N/A"}},{"$f":"'2. Conservation Measures'!IL32","v":{"$error":"#N/A"}},{"$f":"'2. Conservation Measures'!IM32","v":{"$error":"#N/A"}},{"$f":"'2. Conservation Measures'!IN32","v":{"$error":"#N/A"}},null,{"$f":"'2. Conservation Measures'!IP32","v":{"$error":"#VALUE!"}},{"$f":"'2. Conservation Measures'!IQ32","v":{"$error":"#VALUE!"}},{"$f":"'2. Conservation Measures'!IR32","v":{"$error":"#VALUE!"}},{"$f":"'2. Conservation Measures'!IS32","v":{"$error":"#VALUE!"}},{"$f":"'2. Conservation Measures'!IT32","v":{"$error":"#VALUE!"}},{"$f":"'2. Conservation Measures'!IU32","v":{"$error":"#VALUE!"}},{"$f":"'2. Conservation Measures'!IV32","v":{"$error":"#VALUE!"}},{"$f":"'2. Conservation Measures'!IW32","v":{"$error":"#VALUE!"}},{"$f":"'2. Conservation Measures'!IX32","v":{"$error":"#VALUE!"}},{"$f":"'2. Conservation Measures'!IY32","v":{"$error":"#VALUE!"}},{"$f":"'2. Conservation Measures'!IZ32","v":{"$error":"#VALUE!"}},{"$f":"'2. Conservation Measures'!JA32","v":{"$error":"#VALUE!"}},{"$f":"'2. Conservation Measures'!JB32","v":{"$error":"#VALUE!"}},{"$f":"'2. Conservation Measures'!JC32","v":{"$error":"#VALUE!"}},{"$f":"'2. Conservation Measures'!JD32","v":{"$error":"#VALUE!"}},{"$f":"'2. Conservation Measures'!JE32","v":{"$error":"#VALUE!"}},{"$f":"'2. Conservation Measures'!JF32","v":{"$error":"#VALUE!"}},{"$f":"'2. Conservation Measures'!JG32","v":{"$error":"#VALUE!"}},{"$f":"'2. Conservation Measures'!JH32","v":{"$error":"#VALUE!"}},{"$f":"'2. Conservation Measures'!JI32","v":{"$error":"#VALUE!"}},{"$f":"'2. Conservation Measures'!JJ32","v":{"$error":"#VALUE!"}},{"$f":"'2. Conservation Measures'!JK32","v":{"$error":"#VALUE!"}},{"$f":"'2. Conservation Measures'!JL32","v":{"$error":"#VALUE!"}},{"$f":"'2. Conservation Measures'!JM32","v":{"$error":"#VALUE!"}},{"$f":"'2. Conservation Measures'!JN32","v":{"$error":"#VALUE!"}},{"$f":"'2. Conservation Measures'!JO32","v":{"$error":"#VALUE!"}},{"$f":"'2. Conservation Measures'!JP32","v":{"$error":"#VALUE!"}},{"$f":"'2. Conservation Measures'!JQ32","v":{"$error":"#VALUE!"}},{"$f":"'2. Conservation Measures'!JR32","v":{"$error":"#VALUE!"}},{"$f":"'2. Conservation Measures'!JS32","v":{"$error":"#VALUE!"}},{"$f":"'2. Conservation Measures'!JT32","v":{"$error":"#VALUE!"}},{"$f":"'2. Conservation Measures'!JU32","v":{"$error":"#VALUE!"}},{"$f":"'2. Conservation Measures'!JV32","v":{"$error":"#VALUE!"}},{"$f":"'2. Conservation Measures'!JW32","v":{"$error":"#VALUE!"}},{"$f":"'2. Conservation Measures'!JX32","v":{"$error":"#VALUE!"}},{"$f":"'2. Conservation Measures'!JY32","v":{"$error":"#VALUE!"}},{"$f":"'2. Conservation Measures'!JZ32","v":{"$error":"#VALUE!"}},{"$f":"'2. Conservation Measures'!KA32","v":{"$error":"#VALUE!"}},{"$f":"'2. Conservation Measures'!KB32","v":{"$error":"#VALUE!"}},{"$f":"'2. Conservation Measures'!KC32","v":{"$error":"#VALUE!"}},{"$f":"'2. Conservation Measures'!KD32","v":{"$error":"#VALUE!"}},{"$f":"'2. Conservation Measures'!KE32","v":{"$error":"#VALUE!"}},{"$f":"'2. Conservation Measures'!KF32","v":{"$error":"#VALUE!"}},{"$f":"'2. Conservation Measures'!KG32","v":{"$error":"#VALUE!"}},{"$f":"'2. Conservation Measures'!KH32","v":{"$error":"#VALUE!"}},{"$f":"'2. Conservation Measures'!KI32","v":{"$error":"#VALUE!"}},{"$f":"'2. Conservation Measures'!KJ32","v":{"$error":"#VALUE!"}},{"$f":"'2. Conservation Measures'!KK32","v":{"$error":"#VALUE!"}},{"$f":"'2. Conservation Measures'!KL32","v":{"$error":"#VALUE!"}},{"$f":"'2. Conservation Measures'!KM32","v":{"$error":"#VALUE!"}},{"$f":"'2. Conservation Measures'!KN32","v":{"$error":"#VALUE!"}}]
[null,{"$f":"'2. Conservation Measures'!B33","v":"PRE-SF-11"},{"$f":"'2. Conservation Measures'!C33","v":{"$error":"#N/A"}},{"$f":"'2. Conservation Measures'!D33","v":"N"},null,{"$f":"'2. Conservation Measures'!AA33","v":{"$error":"#N/A"}},null,{"$f":"'2. Conservation Measures'!AO33","v":0},{"$f":"'2. Conservation Measures'!AP33","v":0},{"$f":"'2. Conservation Measures'!AQ33","v":0},{"$f":"'2. Conservation Measures'!AR33","v":0},{"$f":"'2. Conservation Measures'!AS33","v":0},{"$f":"'2. Conservation Measures'!AT33","v":0},{"$f":"'2. Conservation Measures'!AU33","v":0},{"$f":"'2. Conservation Measures'!AV33","v":0},{"$f":"'2. Conservation Measures'!AW33","v":0},{"$f":"'2. Conservation Measures'!AX33","v":0},{"$f":"'2. Conservation Measures'!AY33","v":0},{"$f":"'2. Conservation Measures'!AZ33","v":0},{"$f":"'2. Conservation Measures'!BA33","v":0},{"$f":"'2. Conservation Measures'!BB33","v":0},{"$f":"'2. Conservation Measures'!BC33","v":0},{"$f":"'2. Conservation Measures'!BD33","v":0},{"$f":"'2. Conservation Measures'!BE33","v":0},{"$f":"'2. Conservation Measures'!BF33","v":0},{"$f":"'2. Conservation Measures'!BG33","v":0},{"$f":"'2. Conservation Measures'!BH33","v":0},{"$f":"'2. Conservation Measures'!BI33","v":0},{"$f":"'2. Conservation Measures'!BJ33","v":0},{"$f":"'2. Conservation Measures'!BK33","v":0},{"$f":"'2. Conservation Measures'!BL33","v":0},{"$f":"'2. Conservation Measures'!BM33","v":0},{"$f":"'2. Conservation Measures'!BN33","v":0},{"$f":"'2. Conservation Measures'!BO33","v":0},{"$f":"'2. Conservation Measures'!BP33","v":0},{"$f":"'2. Conservation Measures'!BQ33","v":0},{"$f":"'2. Conservation Measures'!BR33","v":0},{"$f":"'2. Conservation Measures'!BS33","v":0},{"$f":"'2. Conservation Measures'!BT33","v":0},{"$f":"'2. Conservation Measures'!BU33","v":0},{"$f":"'2. Conservation Measures'!BV33","v":0},{"$f":"'2. Conservation Measures'!BW33","v":0},{"$f":"'2. Conservation Measures'!BX33","v":0},{"$f":"'2. Conservation Measures'!BY33","v":0},{"$f":"'2. Conservation Measures'!BZ33","v":0},{"$f":"'2. Conservation Measures'!CA33","v":0},{"$f":"'2. Conservation Measures'!CB33","v":0},{"$f":"'2. Conservation Measures'!CC33","v":0},{"$f":"'2. Conservation Measures'!CD33","v":0},{"$f":"'2. Conservation Measures'!CE33","v":0},{"$f":"'2. Conservation Measures'!CF33","v":0},{"$f":"'2. Conservation Measures'!CG33","v":0},{"$f":"'2. Conservation Measures'!CH33","v":0},{"$f":"'2. Conservation Measures'!CI33","v":0},{"$f":"'2. Conservation Measures'!CJ33","v":0},{"$f":"'2. Conservation Measures'!CK33","v":0},{"$f":"'2. Conservation Measures'!CL33","v":0},{"$f":"'2. Conservation Measures'!CM33","v":0},null,{"$f":"'2. Conservation Measures'!CO33","v":{"$error":"#VALUE!"}},{"$f":"'2. Conservation Measures'!CP33","v":{"$error":"#VALUE!"}},{"$f":"'2. Conservation Measures'!CQ33","v":{"$error":"#VALUE!"}},{"$f":"'2. Conservation Measures'!CR33","v":{"$error":"#VALUE!"}},{"$f":"'2. Conservation Measures'!CS33","v":{"$error":"#VALUE!"}},{"$f":"'2. Conservation Measures'!CT33","v":{"$error":"#VALUE!"}},{"$f":"'2. Conservation Measures'!CU33","v":{"$error":"#VALUE!"}},{"$f":"'2. Conservation Measures'!CV33","v":{"$error":"#VALUE!"}},{"$f":"'2. Conservation Measures'!CW33","v":{"$error":"#VALUE!"}},{"$f":"'2. Conservation Measures'!CX33","v":{"$error":"#VALUE!"}},{"$f":"'2. Conservation Measures'!CY33","v":{"$error":"#VALUE!"}},{"$f":"'2. Conservation Measures'!CZ33","v":{"$error":"#VALUE!"}},{"$f":"'2. Conservation Measures'!DA33","v":{"$error":"#VALUE!"}},{"$f":"'2. Conservation Measures'!DB33","v":{"$error":"#VALUE!"}},{"$f":"'2. Conservation Measures'!DC33","v":{"$error":"#VALUE!"}},{"$f":"'2. Conservation Measures'!DD33","v":{"$error":"#VALUE!"}},{"$f":"'2. Conservation Measures'!DE33","v":{"$error":"#VALUE!"}},{"$f":"'2. Conservation Measures'!DF33","v":{"$error":"#VALUE!"}},{"$f":"'2. Conservation Measures'!DG33","v":{"$error":"#VALUE!"}},{"$f":"'2. Conservation Measures'!DH33","v":{"$error":"#VALUE!"}},{"$f":"'2. Conservation Measures'!DI33","v":{"$error":"#VALUE!"}},{"$f":"'2. Conservation Measures'!DJ33","v":{"$error":"#VALUE!"}},{"$f":"'2. Conservation Measures'!DK33","v":{"$error":"#VALUE!"}},{"$f":"'2. Conservation Measures'!DL33","v":{"$error":"#VALUE!"}},{"$f":"'2. Conservation Measures'!DM33","v":{"$error":"#VALUE!"}},{"$f":"'2. Conservation Measures'!DN33","v":{"$error":"#VALUE!"}},{"$f":"'2. Conservation Measures'!DO33","v":{"$error":"#VALUE!"}},{"$f":"'2. Conservation Measures'!DP33","v":{"$error":"#VALUE!"}},{"$f":"'2. Conservation Measures'!DQ33","v":{"$error":"#VALUE!"}},{"$f":"'2. Conservation Measures'!DR33","v":{"$error":"#VALUE!"}},{"$f":"'2. Conservation Measures'!DS33","v":{"$error":"#VALUE!"}},{"$f":"'2. Conservation Measures'!DT33","v":{"$error":"#VALUE!"}},{"$f":"'2. Conservation Measures'!DU33","v":{"$error":"#VALUE!"}},{"$f":"'2. Conservation Measures'!DV33","v":{"$error":"#VALUE!"}},{"$f":"'2. Conservation Measures'!DW33","v":{"$error":"#VALUE!"}},{"$f":"'2. Conservation Measures'!DX33","v":{"$error":"#VALUE!"}},{"$f":"'2. Conservation Measures'!DY33","v":{"$error":"#VALUE!"}},{"$f":"'2. Conservation Measures'!DZ33","v":{"$error":"#VALUE!"}},{"$f":"'2. Conservation Measures'!EA33","v":{"$error":"#VALUE!"}},{"$f":"'2. Conservation Measures'!EB33","v":{"$error":"#VALUE!"}},{"$f":"'2. Conservation Measures'!EC33","v":{"$error":"#VALUE!"}},{"$f":"'2. Conservation Measures'!ED33","v":{"$error":"#VALUE!"}},{"$f":"'2. Conservation Measures'!EE33","v":{"$error":"#VALUE!"}},{"$f":"'2. Conservation Measures'!EF33","v":{"$error":"#VALUE!"}},{"$f":"'2. Conservation Measures'!EG33","v":{"$error":"#VALUE!"}},{"$f":"'2. Conservation Measures'!EH33","v":{"$error":"#VALUE!"}},{"$f":"'2. Conservation Measures'!EI33","v":{"$error":"#VALUE!"}},{"$f":"'2. Conservation Measures'!EJ33","v":{"$error":"#VALUE!"}},{"$f":"'2. Conservation Measures'!EK33","v":{"$error":"#VALUE!"}},{"$f":"'2. Conservation Measures'!EL33","v":{"$error":"#VALUE!"}},{"$f":"'2. Conservation Measures'!EM33","v":{"$error":"#VALUE!"}},null,{"$f":"'2. Conservation Measures'!KP33","v":{"$error":"#N/A"}},{"$f":"'2. Conservation Measures'!KQ33","v":{"$error":"#N/A"}},{"$f":"'2. Conservation Measures'!KR33","v":{"$error":"#N/A"}},{"$f":"'2. Conservation Measures'!KS33","v":{"$error":"#N/A"}},{"$f":"'2. Conservation Measures'!KT33","v":{"$error":"#N/A"}},{"$f":"'2. Conservation Measures'!KU33","v":{"$error":"#N/A"}},{"$f":"'2. Conservation Measures'!KV33","v":{"$error":"#N/A"}},{"$f":"'2. Conservation Measures'!KW33","v":{"$error":"#N/A"}},{"$f":"'2. Conservation Measures'!KX33","v":{"$error":"#N/A"}},{"$f":"'2. Conservation Measures'!KY33","v":{"$error":"#N/A"}},{"$f":"'2. Conservation Measures'!KZ33","v":{"$error":"#N/A"}},{"$f":"'2. Conservation Measures'!LA33","v":{"$error":"#N/A"}},{"$f":"'2. Conservation Measures'!LB33","v":{"$error":"#N/A"}},{"$f":"'2. Conservation Measures'!LC33","v":{"$error":"#N/A"}},{"$f":"'2. Conservation Measures'!LD33","v":{"$error":"#N/A"}},{"$f":"'2. Conservation Measures'!LE33","v":{"$error":"#N/A"}},{"$f":"'2. Conservation Measures'!LF33","v":{"$error":"#N/A"}},{"$f":"'2. Conservation Measures'!LG33","v":{"$error":"#N/A"}},{"$f":"'2. Conservation Measures'!LH33","v":{"$error":"#N/A"}},{"$f":"'2. Conservation Measures'!LI33","v":{"$error":"#N/A"}},{"$f":"'2. Conservation Measures'!LJ33","v":{"$error":"#N/A"}},{"$f":"'2. Conservation Measures'!LK33","v":{"$error":"#N/A"}},{"$f":"'2. Conservation Measures'!LL33","v":{"$error":"#N/A"}},{"$f":"'2. Conservation Measures'!LM33","v":{"$error":"#N/A"}},{"$f":"'2. Conservation Measures'!LN33","v":{"$error":"#N/A"}},{"$f":"'2. Conservation Measures'!LO33","v":{"$error":"#N/A"}},{"$f":"'2. Conservation Measures'!LP33","v":{"$error":"#N/A"}},{"$f":"'2. Conservation Measures'!LQ33","v":{"$error":"#N/A"}},{"$f":"'2. Conservation Measures'!LR33","v":{"$error":"#N/A"}},{"$f":"'2. Conservation Measures'!LS33","v":{"$error":"#N/A"}},{"$f":"'2. Conservation Measures'!LT33","v":{"$error":"#N/A"}},{"$f":"'2. Conservation Measures'!LU33","v":{"$error":"#N/A"}},{"$f":"'2. Conservation Measures'!LV33","v":{"$error":"#N/A"}},{"$f":"'2. Conservation Measures'!LW33","v":{"$error":"#N/A"}},{"$f":"'2. Conservation Measures'!LX33","v":{"$error":"#N/A"}},{"$f":"'2. Conservation Measures'!LY33","v":{"$error":"#N/A"}},{"$f":"'2. Conservation Measures'!LZ33","v":{"$error":"#N/A"}},{"$f":"'2. Conservation Measures'!MA33","v":{"$error":"#N/A"}},{"$f":"'2. Conservation Measures'!MB33","v":{"$error":"#N/A"}},{"$f":"'2. Conservation Measures'!MC33","v":{"$error":"#N/A"}},{"$f":"'2. Conservation Measures'!MD33","v":{"$error":"#N/A"}},{"$f":"'2. Conservation Measures'!ME33","v":{"$error":"#N/A"}},{"$f":"'2. Conservation Measures'!MF33","v":{"$error":"#N/A"}},{"$f":"'2. Conservation Measures'!MG33","v":{"$error":"#N/A"}},{"$f":"'2. Conservation Measures'!MH33","v":{"$error":"#N/A"}},{"$f":"'2. Conservation Measures'!MI33","v":{"$error":"#N/A"}},{"$f":"'2. Conservation Measures'!MJ33","v":{"$error":"#N/A"}},{"$f":"'2. Conservation Measures'!MK33","v":{"$error":"#N/A"}},{"$f":"'2. Conservation Measures'!ML33","v":{"$error":"#N/A"}},{"$f":"'2. Conservation Measures'!MM33","v":{"$error":"#N/A"}},{"$f":"'2. Conservation Measures'!MN33","v":{"$error":"#N/A"}},null,{"$f":"'2. Conservation Measures'!EP33","v":{"$error":"#N/A"}},{"$f":"'2. Conservation Measures'!EQ33","v":{"$error":"#N/A"}},{"$f":"'2. Conservation Measures'!ER33","v":{"$error":"#N/A"}},{"$f":"'2. Conservation Measures'!ES33","v":{"$error":"#N/A"}},{"$f":"'2. Conservation Measures'!ET33","v":{"$error":"#N/A"}},{"$f":"'2. Conservation Measures'!EU33","v":{"$error":"#N/A"}},{"$f":"'2. Conservation Measures'!EV33","v":{"$error":"#N/A"}},{"$f":"'2. Conservation Measures'!EW33","v":{"$error":"#N/A"}},{"$f":"'2. Conservation Measures'!EX33","v":{"$error":"#N/A"}},{"$f":"'2. Conservation Measures'!EY33","v":{"$error":"#N/A"}},{"$f":"'2. Conservation Measures'!EZ33","v":{"$error":"#N/A"}},{"$f":"'2. Conservation Measures'!FA33","v":{"$error":"#N/A"}},{"$f":"'2. Conservation Measures'!FB33","v":{"$error":"#N/A"}},{"$f":"'2. Conservation Measures'!FC33","v":{"$error":"#N/A"}},{"$f":"'2. Conservation Measures'!FD33","v":{"$error":"#N/A"}},{"$f":"'2. Conservation Measures'!FE33","v":{"$error":"#N/A"}},{"$f":"'2. Conservation Measures'!FF33","v":{"$error":"#N/A"}},{"$f":"'2. Conservation Measures'!FG33","v":{"$error":"#N/A"}},{"$f":"'2. Conservation Measures'!FH33","v":{"$error":"#N/A"}},{"$f":"'2. Conservation Measures'!FI33","v":{"$error":"#N/A"}},{"$f":"'2. Conservation Measures'!FJ33","v":{"$error":"#N/A"}},{"$f":"'2. Conservation Measures'!FK33","v":{"$error":"#N/A"}},{"$f":"'2. Conservation Measures'!FL33","v":{"$error":"#N/A"}},{"$f":"'2. Conservation Measures'!FM33","v":{"$error":"#N/A"}},{"$f":"'2. Conservation Measures'!FN33","v":{"$error":"#N/A"}},{"$f":"'2. Conservation Measures'!FO33","v":{"$error":"#N/A"}},{"$f":"'2. Conservation Measures'!FP33","v":{"$error":"#N/A"}},{"$f":"'2. Conservation Measures'!FQ33","v":{"$error":"#N/A"}},{"$f":"'2. Conservation Measures'!FR33","v":{"$error":"#N/A"}},{"$f":"'2. Conservation Measures'!FS33","v":{"$error":"#N/A"}},{"$f":"'2. Conservation Measures'!FT33","v":{"$error":"#N/A"}},{"$f":"'2. Conservation Measures'!FU33","v":{"$error":"#N/A"}},{"$f":"'2. Conservation Measures'!FV33","v":{"$error":"#N/A"}},{"$f":"'2. Conservation Measures'!FW33","v":{"$error":"#N/A"}},{"$f":"'2. Conservation Measures'!FX33","v":{"$error":"#N/A"}},{"$f":"'2. Conservation Measures'!FY33","v":{"$error":"#N/A"}},{"$f":"'2. Conservation Measures'!FZ33","v":{"$error":"#N/A"}},{"$f":"'2. Conservation Measures'!GA33","v":{"$error":"#N/A"}},{"$f":"'2. Conservation Measures'!GB33","v":{"$error":"#N/A"}},{"$f":"'2. Conservation Measures'!GC33","v":{"$error":"#N/A"}},{"$f":"'2. Conservation Measures'!GD33","v":{"$error":"#N/A"}},{"$f":"'2. Conservation Measures'!GE33","v":{"$error":"#N/A"}},{"$f":"'2. Conservation Measures'!GF33","v":{"$error":"#N/A"}},{"$f":"'2. Conservation Measures'!GG33","v":{"$error":"#N/A"}},{"$f":"'2. Conservation Measures'!GH33","v":{"$error":"#N/A"}},{"$f":"'2. Conservation Measures'!GI33","v":{"$error":"#N/A"}},{"$f":"'2. Conservation Measures'!GJ33","v":{"$error":"#N/A"}},{"$f":"'2. Conservation Measures'!GK33","v":{"$error":"#N/A"}},{"$f":"'2. Conservation Measures'!GL33","v":{"$error":"#N/A"}},{"$f":"'2. Conservation Measures'!GM33","v":{"$error":"#N/A"}},{"$f":"'2. Conservation Measures'!GN33","v":{"$error":"#N/A"}},null,{"$f":"'2. Conservation Measures'!GP33","v":{"$error":"#N/A"}},{"$f":"'2. Conservation Measures'!GQ33","v":{"$error":"#N/A"}},{"$f":"'2. Conservation Measures'!GR33","v":{"$error":"#N/A"}},{"$f":"'2. Conservation Measures'!GS33","v":{"$error":"#N/A"}},{"$f":"'2. Conservation Measures'!GT33","v":{"$error":"#N/A"}},{"$f":"'2. Conservation Measures'!GU33","v":{"$error":"#N/A"}},{"$f":"'2. Conservation Measures'!GV33","v":{"$error":"#N/A"}},{"$f":"'2. Conservation Measures'!GW33","v":{"$error":"#N/A"}},{"$f":"'2. Conservation Measures'!GX33","v":{"$error":"#N/A"}},{"$f":"'2. Conservation Measures'!GY33","v":{"$error":"#N/A"}},{"$f":"'2. Conservation Measures'!GZ33","v":{"$error":"#N/A"}},{"$f":"'2. Conservation Measures'!HA33","v":{"$error":"#N/A"}},{"$f":"'2. Conservation Measures'!HB33","v":{"$error":"#N/A"}},{"$f":"'2. Conservation Measures'!HC33","v":{"$error":"#N/A"}},{"$f":"'2. Conservation Measures'!HD33","v":{"$error":"#N/A"}},{"$f":"'2. Conservation Measures'!HE33","v":{"$error":"#N/A"}},{"$f":"'2. Conservation Measures'!HF33","v":{"$error":"#N/A"}},{"$f":"'2. Conservation Measures'!HG33","v":{"$error":"#N/A"}},{"$f":"'2. Conservation Measures'!HH33","v":{"$error":"#N/A"}},{"$f":"'2. Conservation Measures'!HI33","v":{"$error":"#N/A"}},{"$f":"'2. Conservation Measures'!HJ33","v":{"$error":"#N/A"}},{"$f":"'2. Conservation Measures'!HK33","v":{"$error":"#N/A"}},{"$f":"'2. Conservation Measures'!HL33","v":{"$error":"#N/A"}},{"$f":"'2. Conservation Measures'!HM33","v":{"$error":"#N/A"}},{"$f":"'2. Conservation Measures'!HN33","v":{"$error":"#N/A"}},{"$f":"'2. Conservation Measures'!HO33","v":{"$error":"#N/A"}},{"$f":"'2. Conservation Measures'!HP33","v":{"$error":"#N/A"}},{"$f":"'2. Conservation Measures'!HQ33","v":{"$error":"#N/A"}},{"$f":"'2. Conservation Measures'!HR33","v":{"$error":"#N/A"}},{"$f":"'2. Conservation Measures'!HS33","v":{"$error":"#N/A"}},{"$f":"'2. Conservation Measures'!HT33","v":{"$error":"#N/A"}},{"$f":"'2. Conservation Measures'!HU33","v":{"$error":"#N/A"}},{"$f":"'2. Conservation Measures'!HV33","v":{"$error":"#N/A"}},{"$f":"'2. Conservation Measures'!HW33","v":{"$error":"#N/A"}},{"$f":"'2. Conservation Measures'!HX33","v":{"$error":"#N/A"}},{"$f":"'2. Conservation Measures'!HY33","v":{"$error":"#N/A"}},{"$f":"'2. Conservation Measures'!HZ33","v":{"$error":"#N/A"}},{"$f":"'2. Conservation Measures'!IA33","v":{"$error":"#N/A"}},{"$f":"'2. Conservation Measures'!IB33","v":{"$error":"#N/A"}},{"$f":"'2. Conservation Measures'!IC33","v":{"$error":"#N/A"}},{"$f":"'2. Conservation Measures'!ID33","v":{"$error":"#N/A"}},{"$f":"'2. Conservation Measures'!IE33","v":{"$error":"#N/A"}},{"$f":"'2. Conservation Measures'!IF33","v":{"$error":"#N/A"}},{"$f":"'2. Conservation Measures'!IG33","v":{"$error":"#N/A"}},{"$f":"'2. Conservation Measures'!IH33","v":{"$error":"#N/A"}},{"$f":"'2. Conservation Measures'!II33","v":{"$error":"#N/A"}},{"$f":"'2. Conservation Measures'!IJ33","v":{"$error":"#N/A"}},{"$f":"'2. Conservation Measures'!IK33","v":{"$error":"#N/A"}},{"$f":"'2. Conservation Measures'!IL33","v":{"$error":"#N/A"}},{"$f":"'2. Conservation Measures'!IM33","v":{"$error":"#N/A"}},{"$f":"'2. Conservation Measures'!IN33","v":{"$error":"#N/A"}},null,{"$f":"'2. Conservation Measures'!IP33","v":{"$error":"#VALUE!"}},{"$f":"'2. Conservation Measures'!IQ33","v":{"$error":"#VALUE!"}},{"$f":"'2. Conservation Measures'!IR33","v":{"$error":"#VALUE!"}},{"$f":"'2. Conservation Measures'!IS33","v":{"$error":"#VALUE!"}},{"$f":"'2. Conservation Measures'!IT33","v":{"$error":"#VALUE!"}},{"$f":"'2. Conservation Measures'!IU33","v":{"$error":"#VALUE!"}},{"$f":"'2. Conservation Measures'!IV33","v":{"$error":"#VALUE!"}},{"$f":"'2. Conservation Measures'!IW33","v":{"$error":"#VALUE!"}},{"$f":"'2. Conservation Measures'!IX33","v":{"$error":"#VALUE!"}},{"$f":"'2. Conservation Measures'!IY33","v":{"$error":"#VALUE!"}},{"$f":"'2. Conservation Measures'!IZ33","v":{"$error":"#VALUE!"}},{"$f":"'2. Conservation Measures'!JA33","v":{"$error":"#VALUE!"}},{"$f":"'2. Conservation Measures'!JB33","v":{"$error":"#VALUE!"}},{"$f":"'2. Conservation Measures'!JC33","v":{"$error":"#VALUE!"}},{"$f":"'2. Conservation Measures'!JD33","v":{"$error":"#VALUE!"}},{"$f":"'2. Conservation Measures'!JE33","v":{"$error":"#VALUE!"}},{"$f":"'2. Conservation Measures'!JF33","v":{"$error":"#VALUE!"}},{"$f":"'2. Conservation Measures'!JG33","v":{"$error":"#VALUE!"}},{"$f":"'2. Conservation Measures'!JH33","v":{"$error":"#VALUE!"}},{"$f":"'2. Conservation Measures'!JI33","v":{"$error":"#VALUE!"}},{"$f":"'2. Conservation Measures'!JJ33","v":{"$error":"#VALUE!"}},{"$f":"'2. Conservation Measures'!JK33","v":{"$error":"#VALUE!"}},{"$f":"'2. Conservation Measures'!JL33","v":{"$error":"#VALUE!"}},{"$f":"'2. Conservation Measures'!JM33","v":{"$error":"#VALUE!"}},{"$f":"'2. Conservation Measures'!JN33","v":{"$error":"#VALUE!"}},{"$f":"'2. Conservation Measures'!JO33","v":{"$error":"#VALUE!"}},{"$f":"'2. Conservation Measures'!JP33","v":{"$error":"#VALUE!"}},{"$f":"'2. Conservation Measures'!JQ33","v":{"$error":"#VALUE!"}},{"$f":"'2. Conservation Measures'!JR33","v":{"$error":"#VALUE!"}},{"$f":"'2. Conservation Measures'!JS33","v":{"$error":"#VALUE!"}},{"$f":"'2. Conservation Measures'!JT33","v":{"$error":"#VALUE!"}},{"$f":"'2. Conservation Measures'!JU33","v":{"$error":"#VALUE!"}},{"$f":"'2. Conservation Measures'!JV33","v":{"$error":"#VALUE!"}},{"$f":"'2. Conservation Measures'!JW33","v":{"$error":"#VALUE!"}},{"$f":"'2. Conservation Measures'!JX33","v":{"$error":"#VALUE!"}},{"$f":"'2. Conservation Measures'!JY33","v":{"$error":"#VALUE!"}},{"$f":"'2. Conservation Measures'!JZ33","v":{"$error":"#VALUE!"}},{"$f":"'2. Conservation Measures'!KA33","v":{"$error":"#VALUE!"}},{"$f":"'2. Conservation Measures'!KB33","v":{"$error":"#VALUE!"}},{"$f":"'2. Conservation Measures'!KC33","v":{"$error":"#VALUE!"}},{"$f":"'2. Conservation Measures'!KD33","v":{"$error":"#VALUE!"}},{"$f":"'2. Conservation Measures'!KE33","v":{"$error":"#VALUE!"}},{"$f":"'2. Conservation Measures'!KF33","v":{"$error":"#VALUE!"}},{"$f":"'2. Conservation Measures'!KG33","v":{"$error":"#VALUE!"}},{"$f":"'2. Conservation Measures'!KH33","v":{"$error":"#VALUE!"}},{"$f":"'2. Conservation Measures'!KI33","v":{"$error":"#VALUE!"}},{"$f":"'2. Conservation Measures'!KJ33","v":{"$error":"#VALUE!"}},{"$f":"'2. Conservation Measures'!KK33","v":{"$error":"#VALUE!"}},{"$f":"'2. Conservation Measures'!KL33","v":{"$error":"#VALUE!"}},{"$f":"'2. Conservation Measures'!KM33","v":{"$error":"#VALUE!"}},{"$f":"'2. Conservation Measures'!KN33","v":{"$error":"#VALUE!"}}]
[null,{"$f":"'2. Conservation Measures'!B64","v":"USR-SF-01"},{"$f":"'2. Conservation Measures'!C64","v":0},{"$f":"'2. Conservation Measures'!D64","v":"N"},null,{"$f":"'2. Conservation Measures'!AA64","v":0},null,{"$f":"'2. Conservation Measures'!AO64","v":0},{"$f":"'2. Conservation Measures'!AP64","v":0},{"$f":"'2. Conservation Measures'!AQ64","v":0},{"$f":"'2. Conservation Measures'!AR64","v":0},{"$f":"'2. Conservation Measures'!AS64","v":0},{"$f":"'2. Conservation Measures'!AT64","v":0},{"$f":"'2. Conservation Measures'!AU64","v":0},{"$f":"'2. Conservation Measures'!AV64","v":0},{"$f":"'2. Conservation Measures'!AW64","v":0},{"$f":"'2. Conservation Measures'!AX64","v":0},{"$f":"'2. Conservation Measures'!AY64","v":0},{"$f":"'2. Conservation Measures'!AZ64","v":0},{"$f":"'2. Conservation Measures'!BA64","v":0},{"$f":"'2. Conservation Measures'!BB64","v":0},{"$f":"'2. Conservation Measures'!BC64","v":0},{"$f":"'2. Conservation Measures'!BD64","v":0},{"$f":"'2. Conservation Measures'!BE64","v":0},{"$f":"'2. Conservation Measures'!BF64","v":0},{"$f":"'2. Conservation Measures'!BG64","v":0},{"$f":"'2. Conservation Measures'!BH64","v":0},{"$f":"'2. Conservation Measures'!BI64","v":0},{"$f":"'2. Conservation Measures'!BJ64","v":0},{"$f":"'2. Conservation Measures'!BK64","v":0},{"$f":"'2. Conservation Measures'!BL64","v":0},{"$f":"'2. Conservation Measures'!BM64","v":0},{"$f":"'2. Conservation Measures'!BN64","v":0},{"$f":"'2. Conservation Measures'!BO64","v":0},{"$f":"'2. Conservation Measures'!BP64","v":0},{"$f":"'2. Conservation Measures'!BQ64","v":0},{"$f":"'2. Conservation Measures'!BR64","v":0},{"$f":"'2. Conservation Measures'!BS64","v":0},{"$f":"'2. Conservation Measures'!BT64","v":0},{"$f":"'2. Conservation Measures'!BU64","v":0},{"$f":"'2. Conservation Measures'!BV64","v":0},{"$f":"'2. Conservation Measures'!BW64","v":0},{"$f":"'2. Conservation Measures'!BX64","v":0},{"$f":"'2. Conservation Measures'!BY64","v":0},{"$f":"'2. Conservation Measures'!BZ64","v":0},{"$f":"'2. Conservation Measures'!CA64","v":0},{"$f":"'2. Conservation Measures'!CB64","v":0},{"$f":"'2. Conservation Measures'!CC64","v":0},{"$f":"'2. Conservation Measures'!CD64","v":0},{"$f":"'2. Conservation Measures'!CE64","v":0},{"$f":"'2. Conservation Measures'!CF64","v":0},{"$f":"'2. Conservation Measures'!CG64","v":0},{"$f":"'2. Conservation Measures'!CH64","v":0},{"$f":"'2. Conservation Measures'!CI64","v":0},{"$f":"'2. Conservation Measures'!CJ64","v":0},{"$f":"'2. Conservation Measures'!CK64","v":0},{"$f":"'2. Conservation Measures'!CL64","v":0},{"$f":"'2. Conservation Measures'!CM64","v":0},null,{"$f":"'2. Conservation Measures'!CO64","v":0},{"$f":"'2. Conservation Measures'!CP64","v":0},{"$f":"'2. Conservation Measures'!CQ64","v":0},{"$f":"'2. Conservation Measures'!CR64","v":0},{"$f":"'2. Conservation Measures'!CS64","v":0},{"$f":"'2. Conservation Measures'!CT64","v":0},{"$f":"'2. Conservation Measures'!CU64","v":0},{"$f":"'2. Conservation Measures'!CV64","v":0},{"$f":"'2. Conservation Measures'!CW64","v":0},{"$f":"'2. Conservation Measures'!CX64","v":0},{"$f":"'2. Conservation Measures'!CY64","v":0},{"$f":"'2. Conservation Measures'!CZ64","v":0},{"$f":"'2. Conservation Measures'!DA64","v":0},{"$f":"'2. Conservation Measures'!DB64","v":0},{"$f":"'2. Conservation Measures'!DC64","v":0},{"$f":"'2. Conservation Measures'!DD64","v":0},{"$f":"'2. Conservation Measures'!DE64","v":0},{"$f":"'2. Conservation Measures'!DF64","v":0},{"$f":"'2. Conservation Measures'!DG64","v":0},{"$f":"'2. Conservation Measures'!DH64","v":0},{"$f":"'2. Conservation Measures'!DI64","v":0},{"$f":"'2. Conservation Measures'!DJ64","v":0},{"$f":"'2. Conservation Measures'!DK64","v":0},{"$f":"'2. Conservation Measures'!DL64","v":0},{"$f":"'2. Conservation Measures'!DM64","v":0},{"$f":"'2. Conservation Measures'!DN64","v":0},{"$f":"'2. Conservation Measures'!DO64","v":0},{"$f":"'2. Conservation Measures'!DP64","v":0},{"$f":"'2. Conservation Measures'!DQ64","v":0},{"$f":"'2. Conservation Measures'!DR64","v":0},{"$f":"'2. Conservation Measures'!DS64","v":0},{"$f":"'2. Conservation Measures'!DT64","v":0},{"$f":"'2. Conservation Measures'!DU64","v":0},{"$f":"'2. Conservation Measures'!DV64","v":0},{"$f":"'2. Conservation Measures'!DW64","v":0},{"$f":"'2. Conservation Measures'!DX64","v":0},{"$f":"'2. Conservation Measures'!DY64","v":0},{"$f":"'2. Conservation Measures'!DZ64","v":0},{"$f":"'2. Conservation Measures'!EA64","v":0},{"$f":"'2. Conservation Measures'!EB64","v":0},{"$f":"'2. Conservation Measures'!EC64","v":0},{"$f":"'2. Conservation Measures'!ED64","v":0},{"$f":"'2. Conservation Measures'!EE64","v":0},{"$f":"'2. Conservation Measures'!EF64","v":0},{"$f":"'2. Conservation Measures'!EG64","v":0},{"$f":"'2. Conservation Measures'!EH64","v":0},{"$f":"'2. Conservation Measures'!EI64","v":0},{"$f":"'2. Conservation Measures'!EJ64","v":0},{"$f":"'2. Conservation Measures'!EK64","v":0},{"$f":"'2. Conservation Measures'!EL64","v":0},{"$f":"'2. Conservation Measures'!EM64","v":0},null,{"$f":"'2. Conservation Measures'!KP64","v":0},{"$f":"'2. Conservation Measures'!KQ64","v":0},{"$f":"'2. Conservation Measures'!KR64","v":0},{"$f":"'2. Conservation Measures'!KS64","v":0},{"$f":"'2. Conservation Measures'!KT64","v":0},{"$f":"'2. Conservation Measures'!KU64","v":0},{"$f":"'2. Conservation Measures'!KV64","v":0},{"$f":"'2. Conservation Measures'!KW64","v":0},{"$f":"'2. Conservation Measures'!KX64","v":0},{"$f":"'2. Conservation Measures'!KY64","v":0},{"$f":"'2. Conservation Measures'!KZ64","v":0},{"$f":"'2. Conservation Measures'!LA64","v":0},{"$f":"'2. Conservation Measures'!LB64","v":0},{"$f":"'2. Conservation Measures'!LC64","v":0},{"$f":"'2. Conservation Measures'!LD64","v":0},{"$f":"'2. Conservation Measures'!LE64","v":0},{"$f":"'2. Conservation Measures'!LF64","v":0},{"$f":"'2. Conservation Measures'!LG64","v":0},{"$f":"'2. Conservation Measures'!LH64","v":0},{"$f":"'2. Conservation Measures'!LI64","v":0},{"$f":"'2. Conservation Measures'!LJ64","v":0},{"$f":"'2. Conservation Measures'!LK64","v":0},{"$f":"'2. Conservation Measures'!LL64","v":0},{"$f":"'2. Conservation Measures'!LM64","v":0},{"$f":"'2. Conservation Measures'!LN64","v":0},{"$f":"'2. Conservation Measures'!LO64","v":0},{"$f":"'2. Conservation Measures'!LP64","v":0},{"$f":"'2. Conservation Measures'!LQ64","v":0},{"$f":"'2. Conservation Measures'!LR64","v":0},{"$f":"'2. Conservation Measures'!LS64","v":0},{"$f":"'2. Conservation Measures'!LT64","v":0},{"$f":"'2. Conservation Measures'!LU64","v":0},{"$f":"'2. Conservation Measures'!LV64","v":0},{"$f":"'2. Conservation Measures'!LW64","v":0},{"$f":"'2. Conservation Measures'!LX64","v":0},{"$f":"'2. Conservation Measures'!LY64","v":0},{"$f":"'2. Conservation Measures'!LZ64","v":0},{"$f":"'2. Conservation Measures'!MA64","v":0},{"$f":"'2. Conservation Measures'!MB64","v":0},{"$f":"'2. Conservation Measures'!MC64","v":0},{"$f":"'2. Conservation Measures'!MD64","v":0},{"$f":"'2. Conservation Measures'!ME64","v":0},{"$f":"'2. Conservation Measures'!MF64","v":0},{"$f":"'2. Conservation Measures'!MG64","v":0},{"$f":"'2. Conservation Measures'!MH64","v":0},{"$f":"'2. Conservation Measures'!MI64","v":0},{"$f":"'2. Conservation Measures'!MJ64","v":0},{"$f":"'2. Conservation Measures'!MK64","v":0},{"$f":"'2. Conservation Measures'!ML64","v":0},{"$f":"'2. Conservation Measures'!MM64","v":0},{"$f":"'2. Conservation Measures'!MN64","v":0},null,{"$f":"'2. Conservation Measures'!EP64","v":0},{"$f":"'2. Conservation Measures'!EQ64","v":0},{"$f":"'2. Conservation Measures'!ER64","v":0},{"$f":"'2. Conservation Measures'!ES64","v":0},{"$f":"'2. Conservation Measures'!ET64","v":0},{"$f":"'2. Conservation Measures'!EU64","v":0},{"$f":"'2. Conservation Measures'!EV64","v":0},{"$f":"'2. Conservation Measures'!EW64","v":0},{"$f":"'2. Conservation Measures'!EX64","v":0},{"$f":"'2. Conservation Measures'!EY64","v":0},{"$f":"'2. Conservation Measures'!EZ64","v":0},{"$f":"'2. Conservation Measures'!FA64","v":0},{"$f":"'2. Conservation Measures'!FB64","v":0},{"$f":"'2. Conservation Measures'!FC64","v":0},{"$f":"'2. Conservation Measures'!FD64","v":0},{"$f":"'2. Conservation Measures'!FE64","v":0},{"$f":"'2. Conservation Measures'!FF64","v":0},{"$f":"'2. Conservation Measures'!FG64","v":0},{"$f":"'2. Conservation Measures'!FH64","v":0},{"$f":"'2. Conservation Measures'!FI64","v":0},{"$f":"'2. Conservation Measures'!FJ64","v":0},{"$f":"'2. Conservation Measures'!FK64","v":0},{"$f":"'2. Conservation Measures'!FL64","v":0},{"$f":"'2. Conservation Measures'!FM64","v":0},{"$f":"'2. Conservation Measures'!FN64","v":0},{"$f":"'2. Conservation Measures'!FO64","v":0},{"$f":"'2. Conservation Measures'!FP64","v":0},{"$f":"'2. Conservation Measures'!FQ64","v":0},{"$f":"'2. Conservation Measures'!FR64","v":0},{"$f":"'2. Conservation Measures'!FS64","v":0},{"$f":"'2. Conservation Measures'!FT64","v":0},{"$f":"'2. Conservation Measures'!FU64","v":0},{"$f":"'2. Conservation Measures'!FV64","v":0},{"$f":"'2. Conservation Measures'!FW64","v":0},{"$f":"'2. Conservation Measures'!FX64","v":0},{"$f":"'2. Conservation Measures'!FY64","v":0},{"$f":"'2. Conservation Measures'!FZ64","v":0},{"$f":"'2. Conservation Measures'!GA64","v":0},{"$f":"'2. Conservation Measures'!GB64","v":0},{"$f":"'2. Conservation Measures'!GC64","v":0},{"$f":"'2. Conservation Measures'!GD64","v":0},{"$f":"'2. Conservation Measures'!GE64","v":0},{"$f":"'2. Conservation Measures'!GF64","v":0},{"$f":"'2. Conservation Measures'!GG64","v":0},{"$f":"'2. Conservation Measures'!GH64","v":0},{"$f":"'2. Conservation Measures'!GI64","v":0},{"$f":"'2. Conservation Measures'!GJ64","v":0},{"$f":"'2. Conservation Measures'!GK64","v":0},{"$f":"'2. Conservation Measures'!GL64","v":0},{"$f":"'2. Conservation Measures'!GM64","v":0},{"$f":"'2. Conservation Measures'!GN64","v":0},null,{"$f":"'2. Conservation Measures'!GP64","v":0},{"$f":"'2. Conservation Measures'!GQ64","v":0},{"$f":"'2. Conservation Measures'!GR64","v":0},{"$f":"'2. Conservation Measures'!GS64","v":0},{"$f":"'2. Conservation Measures'!GT64","v":0},{"$f":"'2. Conservation Measures'!GU64","v":0},{"$f":"'2. Conservation Measures'!GV64","v":0},{"$f":"'2. Conservation Measures'!GW64","v":0},{"$f":"'2. Conservation Measures'!GX64","v":0},{"$f":"'2. Conservation Measures'!GY64","v":0},{"$f":"'2. Conservation Measures'!GZ64","v":0},{"$f":"'2. Conservation Measures'!HA64","v":0},{"$f":"'2. Conservation Measures'!HB64","v":0},{"$f":"'2. Conservation Measures'!HC64","v":0},{"$f":"'2. Conservation Measures'!HD64","v":0},{"$f":"'2. Conservation Measures'!HE64","v":0},{"$f":"'2. Conservation Measures'!HF64","v":0},{"$f":"'2. Conservation Measures'!HG64","v":0},{"$f":"'2. Conservation Measures'!HH64","v":0},{"$f":"'2. Conservation Measures'!HI64","v":0},{"$f":"'2. Conservation Measures'!HJ64","v":0},{"$f":"'2. Conservation Measures'!HK64","v":0},{"$f":"'2. Conservation Measures'!HL64","v":0},{"$f":"'2. Conservation Measures'!HM64","v":0},{"$f":"'2. Conservation Measures'!HN64","v":0},{"$f":"'2. Conservation Measures'!HO64","v":0},{"$f":"'2. Conservation Measures'!HP64","v":0},{"$f":"'2. Conservation Measures'!HQ64","v":0},{"$f":"'2. Conservation Measures'!HR64","v":0},{"$f":"'2. Conservation Measures'!HS64","v":0},{"$f":"'2. Conservation Measures'!HT64","v":0},{"$f":"'2. Conservation Measures'!HU64","v":0},{"$f":"'2. Conservation Measures'!HV64","v":0},{"$f":"'2. Conservation Measures'!HW64","v":0},{"$f":"'2. Conservation Measures'!HX64","v":0},{"$f":"'2. Conservation Measures'!HY64","v":0},{"$f":"'2. Conservation Measures'!HZ64","v":0},{"$f":"'2. Conservation Measures'!IA64","v":0},{"$f":"'2. Conservation Measures'!IB64","v":0},{"$f":"'2. Conservation Measures'!IC64","v":0},{"$f":"'2. Conservation Measures'!ID64","v":0},{"$f":"'2. Conservation Measures'!IE64","v":0},{"$f":"'2. Conservation Measures'!IF64","v":0},{"$f":"'2. Conservation Measures'!IG64","v":0},{"$f":"'2. Conservation Measures'!IH64","v":0},{"$f":"'2. Conservation Measures'!II64","v":0},{"$f":"'2. Conservation Measures'!IJ64","v":0},{"$f":"'2. Conservation Measures'!IK64","v":0},{"$f":"'2. Conservation Measures'!IL64","v":0},{"$f":"'2. Conservation Measures'!IM64","v":0},{"$f":"'2. Conservation Measures'!IN64","v":0},null,{"$f":"'2. Conservation Measures'!IP64","v":0},{"$f":"'2. Conservation Measures'!IQ64","v":0},{"$f":"'2. Conservation Measures'!IR64","v":0},{"$f":"'2. Conservation Measures'!IS64","v":0},{"$f":"'2. Conservation Measures'!IT64","v":0},{"$f":"'2. Conservation Measures'!IU64","v":0},{"$f":"'2. Conservation Measures'!IV64","v":0},{"$f":"'2. Conservation Measures'!IW64","v":0},{"$f":"'2. Conservation Measures'!IX64","v":0},{"$f":"'2. Conservation Measures'!IY64","v":0},{"$f":"'2. Conservation Measures'!IZ64","v":0},{"$f":"'2. Conservation Measures'!JA64","v":0},{"$f":"'2. Conservation Measures'!JB64","v":0},{"$f":"'2. Conservation Measures'!JC64","v":0},{"$f":"'2. Conservation Measures'!JD64","v":0},{"$f":"'2. Conservation Measures'!JE64","v":0},{"$f":"'2. Conservation Measures'!JF64","v":0},{"$f":"'2. Conservation Measures'!JG64","v":0},{"$f":"'2. Conservation Measures'!JH64","v":0},{"$f":"'2. Conservation Measures'!JI64","v":0},{"$f":"'2. Conservation Measures'!JJ64","v":0},{"$f":"'2. Conservation Measures'!JK64","v":0},{"$f":"'2. Conservation Measures'!JL64","v":0},{"$f":"'2. Conservation Measures'!JM64","v":0},{"$f":"'2. Conservation Measures'!JN64","v":0},{"$f":"'2. Conservation Measures'!JO64","v":0},{"$f":"'2. Conservation Measures'!JP64","v":0},{"$f":"'2. Conservation Measures'!JQ64","v":0},{"$f":"'2. Conservation Measures'!JR64","v":0},{"$f":"'2. Conservation Measures'!JS64","v":0},{"$f":"'2. Conservation Measures'!JT64","v":0},{"$f":"'2. Conservation Measures'!JU64","v":0},{"$f":"'2. Conservation Measures'!JV64","v":0},{"$f":"'2. Conservation Measures'!JW64","v":0},{"$f":"'2. Conservation Measures'!JX64","v":0},{"$f":"'2. Conservation Measures'!JY64","v":0},{"$f":"'2. Conservation Measures'!JZ64","v":0},{"$f":"'2. Conservation Measures'!KA64","v":0},{"$f":"'2. Conservation Measures'!KB64","v":0},{"$f":"'2. Conservation Measures'!KC64","v":0},{"$f":"'2. Conservation Measures'!KD64","v":0},{"$f":"'2. Conservation Measures'!KE64","v":0},{"$f":"'2. Conservation Measures'!KF64","v":0},{"$f":"'2. Conservation Measures'!KG64","v":0},{"$f":"'2. Conservation Measures'!KH64","v":0},{"$f":"'2. Conservation Measures'!KI64","v":0},{"$f":"'2. Conservation Measures'!KJ64","v":0},{"$f":"'2. Conservation Measures'!KK64","v":0},{"$f":"'2. Conservation Measures'!KL64","v":0},{"$f":"'2. Conservation Measures'!KM64","v":0},{"$f":"'2. Conservation Measures'!KN64","v":0}]
[null,{"$f":"'2. Conservation Measures'!B65","v":"USR-SF-02"},{"$f":"'2. Conservation Measures'!C65","v":0},{"$f":"'2. Conservation Measures'!D65","v":"N"},null,{"$f":"'2. Conservation Measures'!AA65","v":0},null,{"$f":"'2. Conservation Measures'!AO65","v":0},{"$f":"'2. Conservation Measures'!AP65","v":0},{"$f":"'2. Conservation Measures'!AQ65","v":0},{"$f":"'2. Conservation Measures'!AR65","v":0},{"$f":"'2. Conservation Measures'!AS65","v":0},{"$f":"'2. Conservation Measures'!AT65","v":0},{"$f":"'2. Conservation Measures'!AU65","v":0},{"$f":"'2. Conservation Measures'!AV65","v":0},{"$f":"'2. Conservation Measures'!AW65","v":0},{"$f":"'2. Conservation Measures'!AX65","v":0},{"$f":"'2. Conservation Measures'!AY65","v":0},{"$f":"'2. Conservation Measures'!AZ65","v":0},{"$f":"'2. Conservation Measures'!BA65","v":0},{"$f":"'2. Conservation Measures'!BB65","v":0},{"$f":"'2. Conservation Measures'!BC65","v":0},{"$f":"'2. Conservation Measures'!BD65","v":0},{"$f":"'2. Conservation Measures'!BE65","v":0},{"$f":"'2. Conservation Measures'!BF65","v":0},{"$f":"'2. Conservation Measures'!BG65","v":0},{"$f":"'2. Conservation Measures'!BH65","v":0},{"$f":"'2. Conservation Measures'!BI65","v":0},{"$f":"'2. Conservation Measures'!BJ65","v":0},{"$f":"'2. Conservation Measures'!BK65","v":0},{"$f":"'2. Conservation Measures'!BL65","v":0},{"$f":"'2. Conservation Measures'!BM65","v":0},{"$f":"'2. Conservation Measures'!BN65","v":0},{"$f":"'2. Conservation Measures'!BO65","v":0},{"$f":"'2. Conservation Measures'!BP65","v":0},{"$f":"'2. Conservation Measures'!BQ65","v":0},{"$f":"'2. Conservation Measures'!BR65","v":0},{"$f":"'2. Conservation Measures'!BS65","v":0},{"$f":"'2. Conservation Measures'!BT65","v":0},{"$f":"'2. Conservation Measures'!BU65","v":0},{"$f":"'2. Conservation Measures'!BV65","v":0},{"$f":"'2. Conservation Measures'!BW65","v":0},{"$f":"'2. Conservation Measures'!BX65","v":0},{"$f":"'2. Conservation Measures'!BY65","v":0},{"$f":"'2. Conservation Measures'!BZ65","v":0},{"$f":"'2. Conservation Measures'!CA65","v":0},{"$f":"'2. Conservation Measures'!CB65","v":0},{"$f":"'2. Conservation Measures'!CC65","v":0},{"$f":"'2. Conservation Measures'!CD65","v":0},{"$f":"'2. Conservation Measures'!CE65","v":0},{"$f":"'2. Conservation Measures'!CF65","v":0},{"$f":"'2. Conservation Measures'!CG65","v":0},{"$f":"'2. Conservation Measures'!CH65","v":0},{"$f":"'2. Conservation Measures'!CI65","v":0},{"$f":"'2. Conservation Measures'!CJ65","v":0},{"$f":"'2. Conservation Measures'!CK65","v":0},{"$f":"'2. Conservation Measures'!CL65","v":0},{"$f":"'2. Conservation Measures'!CM65","v":0},null,{"$f":"'2. Conservation Measures'!CO65","v":0},{"$f":"'2. Conservation Measures'!CP65","v":0},{"$f":"'2. Conservation Measures'!CQ65","v":0},{"$f":"'2. Conservation Measures'!CR65","v":0},{"$f":"'2. Conservation Measures'!CS65","v":0},{"$f":"'2. Conservation Measures'!CT65","v":0},{"$f":"'2. Conservation Measures'!CU65","v":0},{"$f":"'2. Conservation Measures'!CV65","v":0},{"$f":"'2. Conservation Measures'!CW65","v":0},{"$f":"'2. Conservation Measures'!CX65","v":0},{"$f":"'2. Conservation Measures'!CY65","v":0},{"$f":"'2. Conservation Measures'!CZ65","v":0},{"$f":"'2. Conservation Measures'!DA65","v":0},{"$f":"'2. Conservation Measures'!DB65","v":0},{"$f":"'2. Conservation Measures'!DC65","v":0},{"$f":"'2. Conservation Measures'!DD65","v":0},{"$f":"'2. Conservation Measures'!DE65","v":0},{"$f":"'2. Conservation Measures'!DF65","v":0},{"$f":"'2. Conservation Measures'!DG65","v":0},{"$f":"'2. Conservation Measures'!DH65","v":0},{"$f":"'2. Conservation Measures'!DI65","v":0},{"$f":"'2. Conservation Measures'!DJ65","v":0},{"$f":"'2. Conservation Measures'!DK65","v":0},{"$f":"'2. Conservation Measures'!DL65","v":0},{"$f":"'2. Conservation Measures'!DM65","v":0},{"$f":"'2. Conservation Measures'!DN65","v":0},{"$f":"'2. Conservation Measures'!DO65","v":0},{"$f":"'2. Conservation Measures'!DP65","v":0},{"$f":"'2. Conservation Measures'!DQ65","v":0},{"$f":"'2. Conservation Measures'!DR65","v":0},{"$f":"'2. Conservation Measures'!DS65","v":0},{"$f":"'2. Conservation Measures'!DT65","v":0},{"$f":"'2. Conservation Measures'!DU65","v":0},{"$f":"'2. Conservation Measures'!DV65","v":0},{"$f":"'2. Conservation Measures'!DW65","v":0},{"$f":"'2. Conservation Measures'!DX65","v":0},{"$f":"'2. Conservation Measures'!DY65","v":0},{"$f":"'2. Conservation Measures'!DZ65","v":0},{"$f":"'2. Conservation Measures'!EA65","v":0},{"$f":"'2. Conservation Measures'!EB65","v":0},{"$f":"'2. Conservation Measures'!EC65","v":0},{"$f":"'2. Conservation Measures'!ED65","v":0},{"$f":"'2. Conservation Measures'!EE65","v":0},{"$f":"'2. Conservation Measures'!EF65","v":0},{"$f":"'2. Conservation Measures'!EG65","v":0},{"$f":"'2. Conservation Measures'!EH65","v":0},{"$f":"'2. Conservation Measures'!EI65","v":0},{"$f":"'2. Conservation Measures'!EJ65","v":0},{"$f":"'2. Conservation Measures'!EK65","v":0},{"$f":"'2. Conservation Measures'!EL65","v":0},{"$f":"'2. Conservation Measures'!EM65","v":0},null,{"$f":"'2. Conservation Measures'!KP65","v":0},{"$f":"'2. Conservation Measures'!KQ65","v":0},{"$f":"'2. Conservation Measures'!KR65","v":0},{"$f":"'2. Conservation Measures'!KS65","v":0},{"$f":"'2. Conservation Measures'!KT65","v":0},{"$f":"'2. Conservation Measures'!KU65","v":0},{"$f":"'2. Conservation Measures'!KV65","v":0},{"$f":"'2. Conservation Measures'!KW65","v":0},{"$f":"'2. Conservation Measures'!KX65","v":0},{"$f":"'2. Conservation Measures'!KY65","v":0},{"$f":"'2. Conservation Measures'!KZ65","v":0},{"$f":"'2. Conservation Measures'!LA65","v":0},{"$f":"'2. Conservation Measures'!LB65","v":0},{"$f":"'2. Conservation Measures'!LC65","v":0},{"$f":"'2. Conservation Measures'!LD65","v":0},{"$f":"'2. Conservation Measures'!LE65","v":0},{"$f":"'2. Conservation Measures'!LF65","v":0},{"$f":"'2. Conservation Measures'!LG65","v":0},{"$f":"'2. Conservation Measures'!LH65","v":0},{"$f":"'2. Conservation Measures'!LI65","v":0},{"$f":"'2. Conservation Measures'!LJ65","v":0},{"$f":"'2. Conservation Measures'!LK65","v":0},{"$f":"'2. Conservation Measures'!LL65","v":0},{"$f":"'2. Conservation Measures'!LM65","v":0},{"$f":"'2. Conservation Measures'!LN65","v":0},{"$f":"'2. Conservation Measures'!LO65","v":0},{"$f":"'2. Conservation Measures'!LP65","v":0},{"$f":"'2. Conservation Measures'!LQ65","v":0},{"$f":"'2. Conservation Measures'!LR65","v":0},{"$f":"'2. Conservation Measures'!LS65","v":0},{"$f":"'2. Conservation Measures'!LT65","v":0},{"$f":"'2. Conservation Measures'!LU65","v":0},{"$f":"'2. Conservation Measures'!LV65","v":0},{"$f":"'2. Conservation Measures'!LW65","v":0},{"$f":"'2. Conservation Measures'!LX65","v":0},{"$f":"'2. Conservation Measures'!LY65","v":0},{"$f":"'2. Conservation Measures'!LZ65","v":0},{"$f":"'2. Conservation Measures'!MA65","v":0},{"$f":"'2. Conservation Measures'!MB65","v":0},{"$f":"'2. Conservation Measures'!MC65","v":0},{"$f":"'2. Conservation Measures'!MD65","v":0},{"$f":"'2. Conservation Measures'!ME65","v":0},{"$f":"'2. Conservation Measures'!MF65","v":0},{"$f":"'2. Conservation Measures'!MG65","v":0},{"$f":"'2. Conservation Measures'!MH65","v":0},{"$f":"'2. Conservation Measures'!MI65","v":0},{"$f":"'2. Conservation Measures'!MJ65","v":0},{"$f":"'2. Conservation Measures'!MK65","v":0},{"$f":"'2. Conservation Measures'!ML65","v":0},{"$f":"'2. Conservation Measures'!MM65","v":0},{"$f":"'2. Conservation Measures'!MN65","v":0},null,{"$f":"'2. Conservation Measures'!EP65","v":0},{"$f":"'2. Conservation Measures'!EQ65","v":0},{"$f":"'2. Conservation Measures'!ER65","v":0},{"$f":"'2. Conservation Measures'!ES65","v":0},{"$f":"'2. Conservation Measures'!ET65","v":0},{"$f":"'2. Conservation Measures'!EU65","v":0},{"$f":"'2. Conservation Measures'!EV65","v":0},{"$f":"'2. Conservation Measures'!EW65","v":0},{"$f":"'2. Conservation Measures'!EX65","v":0},{"$f":"'2. Conservation Measures'!EY65","v":0},{"$f":"'2. Conservation Measures'!EZ65","v":0},{"$f":"'2. Conservation Measures'!FA65","v":0},{"$f":"'2. Conservation Measures'!FB65","v":0},{"$f":"'2. Conservation Measures'!FC65","v":0},{"$f":"'2. Conservation Measures'!FD65","v":0},{"$f":"'2. Conservation Measures'!FE65","v":0},{"$f":"'2. Conservation Measures'!FF65","v":0},{"$f":"'2. Conservation Measures'!FG65","v":0},{"$f":"'2. Conservation Measures'!FH65","v":0},{"$f":"'2. Conservation Measures'!FI65","v":0},{"$f":"'2. Conservation Measures'!FJ65","v":0},{"$f":"'2. Conservation Measures'!FK65","v":0},{"$f":"'2. Conservation Measures'!FL65","v":0},{"$f":"'2. Conservation Measures'!FM65","v":0},{"$f":"'2. Conservation Measures'!FN65","v":0},{"$f":"'2. Conservation Measures'!FO65","v":0},{"$f":"'2. Conservation Measures'!FP65","v":0},{"$f":"'2. Conservation Measures'!FQ65","v":0},{"$f":"'2. Conservation Measures'!FR65","v":0},{"$f":"'2. Conservation Measures'!FS65","v":0},{"$f":"'2. Conservation Measures'!FT65","v":0},{"$f":"'2. Conservation Measures'!FU65","v":0},{"$f":"'2. Conservation Measures'!FV65","v":0},{"$f":"'2. Conservation Measures'!FW65","v":0},{"$f":"'2. Conservation Measures'!FX65","v":0},{"$f":"'2. Conservation Measures'!FY65","v":0},{"$f":"'2. Conservation Measures'!FZ65","v":0},{"$f":"'2. Conservation Measures'!GA65","v":0},{"$f":"'2. Conservation Measures'!GB65","v":0},{"$f":"'2. Conservation Measures'!GC65","v":0},{"$f":"'2. Conservation Measures'!GD65","v":0},{"$f":"'2. Conservation Measures'!GE65","v":0},{"$f":"'2. Conservation Measures'!GF65","v":0},{"$f":"'2. Conservation Measures'!GG65","v":0},{"$f":"'2. Conservation Measures'!GH65","v":0},{"$f":"'2. Conservation Measures'!GI65","v":0},{"$f":"'2. Conservation Measures'!GJ65","v":0},{"$f":"'2. Conservation Measures'!GK65","v":0},{"$f":"'2. Conservation Measures'!GL65","v":0},{"$f":"'2. Conservation Measures'!GM65","v":0},{"$f":"'2. Conservation Measures'!GN65","v":0},null,{"$f":"'2. Conservation Measures'!GP65","v":0},{"$f":"'2. Conservation Measures'!GQ65","v":0},{"$f":"'2. Conservation Measures'!GR65","v":0},{"$f":"'2. Conservation Measures'!GS65","v":0},{"$f":"'2. Conservation Measures'!GT65","v":0},{"$f":"'2. Conservation Measures'!GU65","v":0},{"$f":"'2. Conservation Measures'!GV65","v":0},{"$f":"'2. Conservation Measures'!GW65","v":0},{"$f":"'2. Conservation Measures'!GX65","v":0},{"$f":"'2. Conservation Measures'!GY65","v":0},{"$f":"'2. Conservation Measures'!GZ65","v":0},{"$f":"'2. Conservation Measures'!HA65","v":0},{"$f":"'2. Conservation Measures'!HB65","v":0},{"$f":"'2. Conservation Measures'!HC65","v":0},{"$f":"'2. Conservation Measures'!HD65","v":0},{"$f":"'2. Conservation Measures'!HE65","v":0},{"$f":"'2. Conservation Measures'!HF65","v":0},{"$f":"'2. Conservation Measures'!HG65","v":0},{"$f":"'2. Conservation Measures'!HH65","v":0},{"$f":"'2. Conservation Measures'!HI65","v":0},{"$f":"'2. Conservation Measures'!HJ65","v":0},{"$f":"'2. Conservation Measures'!HK65","v":0},{"$f":"'2. Conservation Measures'!HL65","v":0},{"$f":"'2. Conservation Measures'!HM65","v":0},{"$f":"'2. Conservation Measures'!HN65","v":0},{"$f":"'2. Conservation Measures'!HO65","v":0},{"$f":"'2. Conservation Measures'!HP65","v":0},{"$f":"'2. Conservation Measures'!HQ65","v":0},{"$f":"'2. Conservation Measures'!HR65","v":0},{"$f":"'2. Conservation Measures'!HS65","v":0},{"$f":"'2. Conservation Measures'!HT65","v":0},{"$f":"'2. Conservation Measures'!HU65","v":0},{"$f":"'2. Conservation Measures'!HV65","v":0},{"$f":"'2. Conservation Measures'!HW65","v":0},{"$f":"'2. Conservation Measures'!HX65","v":0},{"$f":"'2. Conservation Measures'!HY65","v":0},{"$f":"'2. Conservation Measures'!HZ65","v":0},{"$f":"'2. Conservation Measures'!IA65","v":0},{"$f":"'2. Conservation Measures'!IB65","v":0},{"$f":"'2. Conservation Measures'!IC65","v":0},{"$f":"'2. Conservation Measures'!ID65","v":0},{"$f":"'2. Conservation Measures'!IE65","v":0},{"$f":"'2. Conservation Measures'!IF65","v":0},{"$f":"'2. Conservation Measures'!IG65","v":0},{"$f":"'2. Conservation Measures'!IH65","v":0},{"$f":"'2. Conservation Measures'!II65","v":0},{"$f":"'2. Conservation Measures'!IJ65","v":0},{"$f":"'2. Conservation Measures'!IK65","v":0},{"$f":"'2. Conservation Measures'!IL65","v":0},{"$f":"'2. Conservation Measures'!IM65","v":0},{"$f":"'2. Conservation Measures'!IN65","v":0},null,{"$f":"'2. Conservation Measures'!IP65","v":0},{"$f":"'2. Conservation Measures'!IQ65","v":0},{"$f":"'2. Conservation Measures'!IR65","v":0},{"$f":"'2. Conservation Measures'!IS65","v":0},{"$f":"'2. Conservation Measures'!IT65","v":0},{"$f":"'2. Conservation Measures'!IU65","v":0},{"$f":"'2. Conservation Measures'!IV65","v":0},{"$f":"'2. Conservation Measures'!IW65","v":0},{"$f":"'2. Conservation Measures'!IX65","v":0},{"$f":"'2. Conservation Measures'!IY65","v":0},{"$f":"'2. Conservation Measures'!IZ65","v":0},{"$f":"'2. Conservation Measures'!JA65","v":0},{"$f":"'2. Conservation Measures'!JB65","v":0},{"$f":"'2. Conservation Measures'!JC65","v":0},{"$f":"'2. Conservation Measures'!JD65","v":0},{"$f":"'2. Conservation Measures'!JE65","v":0},{"$f":"'2. Conservation Measures'!JF65","v":0},{"$f":"'2. Conservation Measures'!JG65","v":0},{"$f":"'2. Conservation Measures'!JH65","v":0},{"$f":"'2. Conservation Measures'!JI65","v":0},{"$f":"'2. Conservation Measures'!JJ65","v":0},{"$f":"'2. Conservation Measures'!JK65","v":0},{"$f":"'2. Conservation Measures'!JL65","v":0},{"$f":"'2. Conservation Measures'!JM65","v":0},{"$f":"'2. Conservation Measures'!JN65","v":0},{"$f":"'2. Conservation Measures'!JO65","v":0},{"$f":"'2. Conservation Measures'!JP65","v":0},{"$f":"'2. Conservation Measures'!JQ65","v":0},{"$f":"'2. Conservation Measures'!JR65","v":0},{"$f":"'2. Conservation Measures'!JS65","v":0},{"$f":"'2. Conservation Measures'!JT65","v":0},{"$f":"'2. Conservation Measures'!JU65","v":0},{"$f":"'2. Conservation Measures'!JV65","v":0},{"$f":"'2. Conservation Measures'!JW65","v":0},{"$f":"'2. Conservation Measures'!JX65","v":0},{"$f":"'2. Conservation Measures'!JY65","v":0},{"$f":"'2. Conservation Measures'!JZ65","v":0},{"$f":"'2. Conservation Measures'!KA65","v":0},{"$f":"'2. Conservation Measures'!KB65","v":0},{"$f":"'2. Conservation Measures'!KC65","v":0},{"$f":"'2. Conservation Measures'!KD65","v":0},{"$f":"'2. Conservation Measures'!KE65","v":0},{"$f":"'2. Conservation Measures'!KF65","v":0},{"$f":"'2. Conservation Measures'!KG65","v":0},{"$f":"'2. Conservation Measures'!KH65","v":0},{"$f":"'2. Conservation Measures'!KI65","v":0},{"$f":"'2. Conservation Measures'!KJ65","v":0},{"$f":"'2. Conservation Measures'!KK65","v":0},{"$f":"'2. Conservation Measures'!KL65","v":0},{"$f":"'2. Conservation Measures'!KM65","v":0},{"$f":"'2. Conservation Measures'!KN65","v":0}]
[null,{"$f":"'2. Conservation Measures'!B66","v":"USR-SF-03"},{"$f":"'2. Conservation Measures'!C66","v":0},{"$f":"'2. Conservation Measures'!D66","v":"N"},null,{"$f":"'2. Conservation Measures'!AA66","v":0},null,{"$f":"'2. Conservation Measures'!AO66","v":0},{"$f":"'2. Conservation Measures'!AP66","v":0},{"$f":"'2. Conservation Measures'!AQ66","v":0},{"$f":"'2. Conservation Measures'!AR66","v":0},{"$f":"'2. Conservation Measures'!AS66","v":0},{"$f":"'2. Conservation Measures'!AT66","v":0},{"$f":"'2. Conservation Measures'!AU66","v":0},{"$f":"'2. Conservation Measures'!AV66","v":0},{"$f":"'2. Conservation Measures'!AW66","v":0},{"$f":"'2. Conservation Measures'!AX66","v":0},{"$f":"'2. Conservation Measures'!AY66","v":0},{"$f":"'2. Conservation Measures'!AZ66","v":0},{"$f":"'2. Conservation Measures'!BA66","v":0},{"$f":"'2. Conservation Measures'!BB66","v":0},{"$f":"'2. Conservation Measures'!BC66","v":0},{"$f":"'2. Conservation Measures'!BD66","v":0},{"$f":"'2. Conservation Measures'!BE66","v":0},{"$f":"'2. Conservation Measures'!BF66","v":0},{"$f":"'2. Conservation Measures'!BG66","v":0},{"$f":"'2. Conservation Measures'!BH66","v":0},{"$f":"'2. Conservation Measures'!BI66","v":0},{"$f":"'2. Conservation Measures'!BJ66","v":0},{"$f":"'2. Conservation Measures'!BK66","v":0},{"$f":"'2. Conservation Measures'!BL66","v":0},{"$f":"'2. Conservation Measures'!BM66","v":0},{"$f":"'2. Conservation Measures'!BN66","v":0},{"$f":"'2. Conservation Measures'!BO66","v":0},{"$f":"'2. Conservation Measures'!BP66","v":0},{"$f":"'2. Conservation Measures'!BQ66","v":0},{"$f":"'2. Conservation Measures'!BR66","v":0},{"$f":"'2. Conservation Measures'!BS66","v":0},{"$f":"'2. Conservation Measures'!BT66","v":0},{"$f":"'2. Conservation Measures'!BU66","v":0},{"$f":"'2. Conservation Measures'!BV66","v":0},{"$f":"'2. Conservation Measures'!BW66","v":0},{"$f":"'2. Conservation Measures'!BX66","v":0},{"$f":"'2. Conservation Measures'!BY66","v":0},{"$f":"'2. Conservation Measures'!BZ66","v":0},{"$f":"'2. Conservation Measures'!CA66","v":0},{"$f":"'2. Conservation Measures'!CB66","v":0},{"$f":"'2. Conservation Measures'!CC66","v":0},{"$f":"'2. Conservation Measures'!CD66","v":0},{"$f":"'2. Conservation Measures'!CE66","v":0},{"$f":"'2. Conservation Measures'!CF66","v":0},{"$f":"'2. Conservation Measures'!CG66","v":0},{"$f":"'2. Conservation Measures'!CH66","v":0},{"$f":"'2. Conservation Measures'!CI66","v":0},{"$f":"'2. Conservation Measures'!CJ66","v":0},{"$f":"'2. Conservation Measures'!CK66","v":0},{"$f":"'2. Conservation Measures'!CL66","v":0},{"$f":"'2. Conservation Measures'!CM66","v":0},null,{"$f":"'2. Conservation Measures'!CO66","v":0},{"$f":"'2. Conservation Measures'!CP66","v":0},{"$f":"'2. Conservation Measures'!CQ66","v":0},{"$f":"'2. Conservation Measures'!CR66","v":0},{"$f":"'2. Conservation Measures'!CS66","v":0},{"$f":"'2. Conservation Measures'!CT66","v":0},{"$f":"'2. Conservation Measures'!CU66","v":0},{"$f":"'2. Conservation Measures'!CV66","v":0},{"$f":"'2. Conservation Measures'!CW66","v":0},{"$f":"'2. Conservation Measures'!CX66","v":0},{"$f":"'2. Conservation Measures'!CY66","v":0},{"$f":"'2. Conservation Measures'!CZ66","v":0},{"$f":"'2. Conservation Measures'!DA66","v":0},{"$f":"'2. Conservation Measures'!DB66","v":0},{"$f":"'2. Conservation Measures'!DC66","v":0},{"$f":"'2. Conservation Measures'!DD66","v":0},{"$f":"'2. Conservation Measures'!DE66","v":0},{"$f":"'2. Conservation Measures'!DF66","v":0},{"$f":"'2. Conservation Measures'!DG66","v":0},{"$f":"'2. Conservation Measures'!DH66","v":0},{"$f":"'2. Conservation Measures'!DI66","v":0},{"$f":"'2. Conservation Measures'!DJ66","v":0},{"$f":"'2. Conservation Measures'!DK66","v":0},{"$f":"'2. Conservation Measures'!DL66","v":0},{"$f":"'2. Conservation Measures'!DM66","v":0},{"$f":"'2. Conservation Measures'!DN66","v":0},{"$f":"'2. Conservation Measures'!DO66","v":0},{"$f":"'2. Conservation Measures'!DP66","v":0},{"$f":"'2. Conservation Measures'!DQ66","v":0},{"$f":"'2. Conservation Measures'!DR66","v":0},{"$f":"'2. Conservation Measures'!DS66","v":0},{"$f":"'2. Conservation Measures'!DT66","v":0},{"$f":"'2. Conservation Measures'!DU66","v":0},{"$f":"'2. Conservation Measures'!DV66","v":0},{"$f":"'2. Conservation Measures'!DW66","v":0},{"$f":"'2. Conservation Measures'!DX66","v":0},{"$f":"'2. Conservation Measures'!DY66","v":0},{"$f":"'2. Conservation Measures'!DZ66","v":0},{"$f":"'2. Conservation Measures'!EA66","v":0},{"$f":"'2. Conservation Measures'!EB66","v":0},{"$f":"'2. Conservation Measures'!EC66","v":0},{"$f":"'2. Conservation Measures'!ED66","v":0},{"$f":"'2. Conservation Measures'!EE66","v":0},{"$f":"'2. Conservation Measures'!EF66","v":0},{"$f":"'2. Conservation Measures'!EG66","v":0},{"$f":"'2. Conservation Measures'!EH66","v":0},{"$f":"'2. Conservation Measures'!EI66","v":0},{"$f":"'2. Conservation Measures'!EJ66","v":0},{"$f":"'2. Conservation Measures'!EK66","v":0},{"$f":"'2. Conservation Measures'!EL66","v":0},{"$f":"'2. Conservation Measures'!EM66","v":0},null,{"$f":"'2. Conservation Measures'!KP66","v":0},{"$f":"'2. Conservation Measures'!KQ66","v":0},{"$f":"'2. Conservation Measures'!KR66","v":0},{"$f":"'2. Conservation Measures'!KS66","v":0},{"$f":"'2. Conservation Measures'!KT66","v":0},{"$f":"'2. Conservation Measures'!KU66","v":0},{"$f":"'2. Conservation Measures'!KV66","v":0},{"$f":"'2. Conservation Measures'!KW66","v":0},{"$f":"'2. Conservation Measures'!KX66","v":0},{"$f":"'2. Conservation Measures'!KY66","v":0},{"$f":"'2. Conservation Measures'!KZ66","v":0},{"$f":"'2. Conservation Measures'!LA66","v":0},{"$f":"'2. Conservation Measures'!LB66","v":0},{"$f":"'2. Conservation Measures'!LC66","v":0},{"$f":"'2. Conservation Measures'!LD66","v":0},{"$f":"'2. Conservation Measures'!LE66","v":0},{"$f":"'2. Conservation Measures'!LF66","v":0},{"$f":"'2. Conservation Measures'!LG66","v":0},{"$f":"'2. Conservation Measures'!LH66","v":0},{"$f":"'2. Conservation Measures'!LI66","v":0},{"$f":"'2. Conservation Measures'!LJ66","v":0},{"$f":"'2. Conservation Measures'!LK66","v":0},{"$f":"'2. Conservation Measures'!LL66","v":0},{"$f":"'2. Conservation Measures'!LM66","v":0},{"$f":"'2. Conservation Measures'!LN66","v":0},{"$f":"'2. Conservation Measures'!LO66","v":0},{"$f":"'2. Conservation Measures'!LP66","v":0},{"$f":"'2. Conservation Measures'!LQ66","v":0},{"$f":"'2. Conservation Measures'!LR66","v":0},{"$f":"'2. Conservation Measures'!LS66","v":0},{"$f":"'2. Conservation Measures'!LT66","v":0},{"$f":"'2. Conservation Measures'!LU66","v":0},{"$f":"'2. Conservation Measures'!LV66","v":0},{"$f":"'2. Conservation Measures'!LW66","v":0},{"$f":"'2. Conservation Measures'!LX66","v":0},{"$f":"'2. Conservation Measures'!LY66","v":0},{"$f":"'2. Conservation Measures'!LZ66","v":0},{"$f":"'2. Conservation Measures'!MA66","v":0},{"$f":"'2. Conservation Measures'!MB66","v":0},{"$f":"'2. Conservation Measures'!MC66","v":0},{"$f":"'2. Conservation Measures'!MD66","v":0},{"$f":"'2. Conservation Measures'!ME66","v":0},{"$f":"'2. Conservation Measures'!MF66","v":0},{"$f":"'2. Conservation Measures'!MG66","v":0},{"$f":"'2. Conservation Measures'!MH66","v":0},{"$f":"'2. Conservation Measures'!MI66","v":0},{"$f":"'2. Conservation Measures'!MJ66","v":0},{"$f":"'2. Conservation Measures'!MK66","v":0},{"$f":"'2. Conservation Measures'!ML66","v":0},{"$f":"'2. Conservation Measures'!MM66","v":0},{"$f":"'2. Conservation Measures'!MN66","v":0},null,{"$f":"'2. Conservation Measures'!EP66","v":0},{"$f":"'2. Conservation Measures'!EQ66","v":0},{"$f":"'2. Conservation Measures'!ER66","v":0},{"$f":"'2. Conservation Measures'!ES66","v":0},{"$f":"'2. Conservation Measures'!ET66","v":0},{"$f":"'2. Conservation Measures'!EU66","v":0},{"$f":"'2. Conservation Measures'!EV66","v":0},{"$f":"'2. Conservation Measures'!EW66","v":0},{"$f":"'2. Conservation Measures'!EX66","v":0},{"$f":"'2. Conservation Measures'!EY66","v":0},{"$f":"'2. Conservation Measures'!EZ66","v":0},{"$f":"'2. Conservation Measures'!FA66","v":0},{"$f":"'2. Conservation Measures'!FB66","v":0},{"$f":"'2. Conservation Measures'!FC66","v":0},{"$f":"'2. Conservation Measures'!FD66","v":0},{"$f":"'2. Conservation Measures'!FE66","v":0},{"$f":"'2. Conservation Measures'!FF66","v":0},{"$f":"'2. Conservation Measures'!FG66","v":0},{"$f":"'2. Conservation Measures'!FH66","v":0},{"$f":"'2. Conservation Measures'!FI66","v":0},{"$f":"'2. Conservation Measures'!FJ66","v":0},{"$f":"'2. Conservation Measures'!FK66","v":0},{"$f":"'2. Conservation Measures'!FL66","v":0},{"$f":"'2. Conservation Measures'!FM66","v":0},{"$f":"'2. Conservation Measures'!FN66","v":0},{"$f":"'2. Conservation Measures'!FO66","v":0},{"$f":"'2. Conservation Measures'!FP66","v":0},{"$f":"'2. Conservation Measures'!FQ66","v":0},{"$f":"'2. Conservation Measures'!FR66","v":0},{"$f":"'2. Conservation Measures'!FS66","v":0},{"$f":"'2. Conservation Measures'!FT66","v":0},{"$f":"'2. Conservation Measures'!FU66","v":0},{"$f":"'2. Conservation Measures'!FV66","v":0},{"$f":"'2. Conservation Measures'!FW66","v":0},{"$f":"'2. Conservation Measures'!FX66","v":0},{"$f":"'2. Conservation Measures'!FY66","v":0},{"$f":"'2. Conservation Measures'!FZ66","v":0},{"$f":"'2. Conservation Measures'!GA66","v":0},{"$f":"'2. Conservation Measures'!GB66","v":0},{"$f":"'2. Conservation Measures'!GC66","v":0},{"$f":"'2. Conservation Measures'!GD66","v":0},{"$f":"'2. Conservation Measures'!GE66","v":0},{"$f":"'2. Conservation Measures'!GF66","v":0},{"$f":"'2. Conservation Measures'!GG66","v":0},{"$f":"'2. Conservation Measures'!GH66","v":0},{"$f":"'2. Conservation Measures'!GI66","v":0},{"$f":"'2. Conservation Measures'!GJ66","v":0},{"$f":"'2. Conservation Measures'!GK66","v":0},{"$f":"'2. Conservation Measures'!GL66","v":0},{"$f":"'2. Conservation Measures'!GM66","v":0},{"$f":"'2. Conservation Measures'!GN66","v":0},null,{"$f":"'2. Conservation Measures'!GP66","v":0},{"$f":"'2. Conservation Measures'!GQ66","v":0},{"$f":"'2. Conservation Measures'!GR66","v":0},{"$f":"'2. Conservation Measures'!GS66","v":0},{"$f":"'2. Conservation Measures'!GT66","v":0},{"$f":"'2. Conservation Measures'!GU66","v":0},{"$f":"'2. Conservation Measures'!GV66","v":0},{"$f":"'2. Conservation Measures'!GW66","v":0},{"$f":"'2. Conservation Measures'!GX66","v":0},{"$f":"'2. Conservation Measures'!GY66","v":0},{"$f":"'2. Conservation Measures'!GZ66","v":0},{"$f":"'2. Conservation Measures'!HA66","v":0},{"$f":"'2. Conservation Measures'!HB66","v":0},{"$f":"'2. Conservation Measures'!HC66","v":0},{"$f":"'2. Conservation Measures'!HD66","v":0},{"$f":"'2. Conservation Measures'!HE66","v":0},{"$f":"'2. Conservation Measures'!HF66","v":0},{"$f":"'2. Conservation Measures'!HG66","v":0},{"$f":"'2. Conservation Measures'!HH66","v":0},{"$f":"'2. Conservation Measures'!HI66","v":0},{"$f":"'2. Conservation Measures'!HJ66","v":0},{"$f":"'2. Conservation Measures'!HK66","v":0},{"$f":"'2. Conservation Measures'!HL66","v":0},{"$f":"'2. Conservation Measures'!HM66","v":0},{"$f":"'2. Conservation Measures'!HN66","v":0},{"$f":"'2. Conservation Measures'!HO66","v":0},{"$f":"'2. Conservation Measures'!HP66","v":0},{"$f":"'2. Conservation Measures'!HQ66","v":0},{"$f":"'2. Conservation Measures'!HR66","v":0},{"$f":"'2. Conservation Measures'!HS66","v":0},{"$f":"'2. Conservation Measures'!HT66","v":0},{"$f":"'2. Conservation Measures'!HU66","v":0},{"$f":"'2. Conservation Measures'!HV66","v":0},{"$f":"'2. Conservation Measures'!HW66","v":0},{"$f":"'2. Conservation Measures'!HX66","v":0},{"$f":"'2. Conservation Measures'!HY66","v":0},{"$f":"'2. Conservation Measures'!HZ66","v":0},{"$f":"'2. Conservation Measures'!IA66","v":0},{"$f":"'2. Conservation Measures'!IB66","v":0},{"$f":"'2. Conservation Measures'!IC66","v":0},{"$f":"'2. Conservation Measures'!ID66","v":0},{"$f":"'2. Conservation Measures'!IE66","v":0},{"$f":"'2. Conservation Measures'!IF66","v":0},{"$f":"'2. Conservation Measures'!IG66","v":0},{"$f":"'2. Conservation Measures'!IH66","v":0},{"$f":"'2. Conservation Measures'!II66","v":0},{"$f":"'2. Conservation Measures'!IJ66","v":0},{"$f":"'2. Conservation Measures'!IK66","v":0},{"$f":"'2. Conservation Measures'!IL66","v":0},{"$f":"'2. Conservation Measures'!IM66","v":0},{"$f":"'2. Conservation Measures'!IN66","v":0},null,{"$f":"'2. Conservation Measures'!IP66","v":0},{"$f":"'2. Conservation Measures'!IQ66","v":0},{"$f":"'2. Conservation Measures'!IR66","v":0},{"$f":"'2. Conservation Measures'!IS66","v":0},{"$f":"'2. Conservation Measures'!IT66","v":0},{"$f":"'2. Conservation Measures'!IU66","v":0},{"$f":"'2. Conservation Measures'!IV66","v":0},{"$f":"'2. Conservation Measures'!IW66","v":0},{"$f":"'2. Conservation Measures'!IX66","v":0},{"$f":"'2. Conservation Measures'!IY66","v":0},{"$f":"'2. Conservation Measures'!IZ66","v":0},{"$f":"'2. Conservation Measures'!JA66","v":0},{"$f":"'2. Conservation Measures'!JB66","v":0},{"$f":"'2. Conservation Measures'!JC66","v":0},{"$f":"'2. Conservation Measures'!JD66","v":0},{"$f":"'2. Conservation Measures'!JE66","v":0},{"$f":"'2. Conservation Measures'!JF66","v":0},{"$f":"'2. Conservation Measures'!JG66","v":0},{"$f":"'2. Conservation Measures'!JH66","v":0},{"$f":"'2. Conservation Measures'!JI66","v":0},{"$f":"'2. Conservation Measures'!JJ66","v":0},{"$f":"'2. Conservation Measures'!JK66","v":0},{"$f":"'2. Conservation Measures'!JL66","v":0},{"$f":"'2. Conservation Measures'!JM66","v":0},{"$f":"'2. Conservation Measures'!JN66","v":0},{"$f":"'2. Conservation Measures'!JO66","v":0},{"$f":"'2. Conservation Measures'!JP66","v":0},{"$f":"'2. Conservation Measures'!JQ66","v":0},{"$f":"'2. Conservation Measures'!JR66","v":0},{"$f":"'2. Conservation Measures'!JS66","v":0},{"$f":"'2. Conservation Measures'!JT66","v":0},{"$f":"'2. Conservation Measures'!JU66","v":0},{"$f":"'2. Conservation Measures'!JV66","v":0},{"$f":"'2. Conservation Measures'!JW66","v":0},{"$f":"'2. Conservation Measures'!JX66","v":0},{"$f":"'2. Conservation Measures'!JY66","v":0},{"$f":"'2. Conservation Measures'!JZ66","v":0},{"$f":"'2. Conservation Measures'!KA66","v":0},{"$f":"'2. Conservation Measures'!KB66","v":0},{"$f":"'2. Conservation Measures'!KC66","v":0},{"$f":"'2. Conservation Measures'!KD66","v":0},{"$f":"'2. Conservation Measures'!KE66","v":0},{"$f":"'2. Conservation Measures'!KF66","v":0},{"$f":"'2. Conservation Measures'!KG66","v":0},{"$f":"'2. Conservation Measures'!KH66","v":0},{"$f":"'2. Conservation Measures'!KI66","v":0},{"$f":"'2. Conservation Measures'!KJ66","v":0},{"$f":"'2. Conservation Measures'!KK66","v":0},{"$f":"'2. Conservation Measures'!KL66","v":0},{"$f":"'2. Conservation Measures'!KM66","v":0},{"$f":"'2. Conservation Measures'!KN66","v":0}]
[null,{"$f":"'2. Conservation Measures'!B67","v":"USR-SF-04"},{"$f":"'2. Conservation Measures'!C67","v":0},{"$f":"'2. Conservation Measures'!D67","v":"N"},null,{"$f":"'2. Conservation Measures'!AA67","v":0},null,{"$f":"'2. Conservation Measures'!AO67","v":0},{"$f":"'2. Conservation Measures'!AP67","v":0},{"$f":"'2. Conservation Measures'!AQ67","v":0},{"$f":"'2. Conservation Measures'!AR67","v":0},{"$f":"'2. Conservation Measures'!AS67","v":0},{"$f":"'2. Conservation Measures'!AT67","v":0},{"$f":"'2. Conservation Measures'!AU67","v":0},{"$f":"'2. Conservation Measures'!AV67","v":0},{"$f":"'2. Conservation Measures'!AW67","v":0},{"$f":"'2. Conservation Measures'!AX67","v":0},{"$f":"'2. Conservation Measures'!AY67","v":0},{"$f":"'2. Conservation Measures'!AZ67","v":0},{"$f":"'2. Conservation Measures'!BA67","v":0},{"$f":"'2. Conservation Measures'!BB67","v":0},{"$f":"'2. Conservation Measures'!BC67","v":0},{"$f":"'2. Conservation Measures'!BD67","v":0},{"$f":"'2. Conservation Measures'!BE67","v":0},{"$f":"'2. Conservation Measures'!BF67","v":0},{"$f":"'2. Conservation Measures'!BG67","v":0},{"$f":"'2. Conservation Measures'!BH67","v":0},{"$f":"'2. Conservation Measures'!BI67","v":0},{"$f":"'2. Conservation Measures'!BJ67","v":0},{"$f":"'2. Conservation Measures'!BK67","v":0},{"$f":"'2. Conservation Measures'!BL67","v":0},{"$f":"'2. Conservation Measures'!BM67","v":0},{"$f":"'2. Conservation Measures'!BN67","v":0},{"$f":"'2. Conservation Measures'!BO67","v":0},{"$f":"'2. Conservation Measures'!BP67","v":0},{"$f":"'2. Conservation Measures'!BQ67","v":0},{"$f":"'2. Conservation Measures'!BR67","v":0},{"$f":"'2. Conservation Measures'!BS67","v":0},{"$f":"'2. Conservation Measures'!BT67","v":0},{"$f":"'2. Conservation Measures'!BU67","v":0},{"$f":"'2. Conservation Measures'!BV67","v":0},{"$f":"'2. Conservation Measures'!BW67","v":0},{"$f":"'2. Conservation Measures'!BX67","v":0},{"$f":"'2. Conservation Measures'!BY67","v":0},{"$f":"'2. Conservation Measures'!BZ67","v":0},{"$f":"'2. Conservation Measures'!CA67","v":0},{"$f":"'2. Conservation Measures'!CB67","v":0},{"$f":"'2. Conservation Measures'!CC67","v":0},{"$f":"'2. Conservation Measures'!CD67","v":0},{"$f":"'2. Conservation Measures'!CE67","v":0},{"$f":"'2. Conservation Measures'!CF67","v":0},{"$f":"'2. Conservation Measures'!CG67","v":0},{"$f":"'2. Conservation Measures'!CH67","v":0},{"$f":"'2. Conservation Measures'!CI67","v":0},{"$f":"'2. Conservation Measures'!CJ67","v":0},{"$f":"'2. Conservation Measures'!CK67","v":0},{"$f":"'2. Conservation Measures'!CL67","v":0},{"$f":"'2. Conservation Measures'!CM67","v":0},null,{"$f":"'2. Conservation Measures'!CO67","v":0},{"$f":"'2. Conservation Measures'!CP67","v":0},{"$f":"'2. Conservation Measures'!CQ67","v":0},{"$f":"'2. Conservation Measures'!CR67","v":0},{"$f":"'2. Conservation Measures'!CS67","v":0},{"$f":"'2. Conservation Measures'!CT67","v":0},{"$f":"'2. Conservation Measures'!CU67","v":0},{"$f":"'2. Conservation Measures'!CV67","v":0},{"$f":"'2. Conservation Measures'!CW67","v":0},{"$f":"'2. Conservation Measures'!CX67","v":0},{"$f":"'2. Conservation Measures'!CY67","v":0},{"$f":"'2. Conservation Measures'!CZ67","v":0},{"$f":"'2. Conservation Measures'!DA67","v":0},{"$f":"'2. Conservation Measures'!DB67","v":0},{"$f":"'2. Conservation Measures'!DC67","v":0},{"$f":"'2. Conservation Measures'!DD67","v":0},{"$f":"'2. Conservation Measures'!DE67","v":0},{"$f":"'2. Conservation Measures'!DF67","v":0},{"$f":"'2. Conservation Measures'!DG67","v":0},{"$f":"'2. Conservation Measures'!DH67","v":0},{"$f":"'2. Conservation Measures'!DI67","v":0},{"$f":"'2. Conservation Measures'!DJ67","v":0},{"$f":"'2. Conservation Measures'!DK67","v":0},{"$f":"'2. Conservation Measures'!DL67","v":0},{"$f":"'2. Conservation Measures'!DM67","v":0},{"$f":"'2. Conservation Measures'!DN67","v":0},{"$f":"'2. Conservation Measures'!DO67","v":0},{"$f":"'2. Conservation Measures'!DP67","v":0},{"$f":"'2. Conservation Measures'!DQ67","v":0},{"$f":"'2. Conservation Measures'!DR67","v":0},{"$f":"'2. Conservation Measures'!DS67","v":0},{"$f":"'2. Conservation Measures'!DT67","v":0},{"$f":"'2. Conservation Measures'!DU67","v":0},{"$f":"'2. Conservation Measures'!DV67","v":0},{"$f":"'2. Conservation Measures'!DW67","v":0},{"$f":"'2. Conservation Measures'!DX67","v":0},{"$f":"'2. Conservation Measures'!DY67","v":0},{"$f":"'2. Conservation Measures'!DZ67","v":0},{"$f":"'2. Conservation Measures'!EA67","v":0},{"$f":"'2. Conservation Measures'!EB67","v":0},{"$f":"'2. Conservation Measures'!EC67","v":0},{"$f":"'2. Conservation Measures'!ED67","v":0},{"$f":"'2. Conservation Measures'!EE67","v":0},{"$f":"'2. Conservation Measures'!EF67","v":0},{"$f":"'2. Conservation Measures'!EG67","v":0},{"$f":"'2. Conservation Measures'!EH67","v":0},{"$f":"'2. Conservation Measures'!EI67","v":0},{"$f":"'2. Conservation Measures'!EJ67","v":0},{"$f":"'2. Conservation Measures'!EK67","v":0},{"$f":"'2. Conservation Measures'!EL67","v":0},{"$f":"'2. Conservation Measures'!EM67","v":0},null,{"$f":"'2. Conservation Measures'!KP67","v":0},{"$f":"'2. Conservation Measures'!KQ67","v":0},{"$f":"'2. Conservation Measures'!KR67","v":0},{"$f":"'2. Conservation Measures'!KS67","v":0},{"$f":"'2. Conservation Measures'!KT67","v":0},{"$f":"'2. Conservation Measures'!KU67","v":0},{"$f":"'2. Conservation Measures'!KV67","v":0},{"$f":"'2. Conservation Measures'!KW67","v":0},{"$f":"'2. Conservation Measures'!KX67","v":0},{"$f":"'2. Conservation Measures'!KY67","v":0},{"$f":"'2. Conservation Measures'!KZ67","v":0},{"$f":"'2. Conservation Measures'!LA67","v":0},{"$f":"'2. Conservation Measures'!LB67","v":0},{"$f":"'2. Conservation Measures'!LC67","v":0},{"$f":"'2. Conservation Measures'!LD67","v":0},{"$f":"'2. Conservation Measures'!LE67","v":0},{"$f":"'2. Conservation Measures'!LF67","v":0},{"$f":"'2. Conservation Measures'!LG67","v":0},{"$f":"'2. Conservation Measures'!LH67","v":0},{"$f":"'2. Conservation Measures'!LI67","v":0},{"$f":"'2. Conservation Measures'!LJ67","v":0},{"$f":"'2. Conservation Measures'!LK67","v":0},{"$f":"'2. Conservation Measures'!LL67","v":0},{"$f":"'2. Conservation Measures'!LM67","v":0},{"$f":"'2. Conservation Measures'!LN67","v":0},{"$f":"'2. Conservation Measures'!LO67","v":0},{"$f":"'2. Conservation Measures'!LP67","v":0},{"$f":"'2. Conservation Measures'!LQ67","v":0},{"$f":"'2. Conservation Measures'!LR67","v":0},{"$f":"'2. Conservation Measures'!LS67","v":0},{"$f":"'2. Conservation Measures'!LT67","v":0},{"$f":"'2. Conservation Measures'!LU67","v":0},{"$f":"'2. Conservation Measures'!LV67","v":0},{"$f":"'2. Conservation Measures'!LW67","v":0},{"$f":"'2. Conservation Measures'!LX67","v":0},{"$f":"'2. Conservation Measures'!LY67","v":0},{"$f":"'2. Conservation Measures'!LZ67","v":0},{"$f":"'2. Conservation Measures'!MA67","v":0},{"$f":"'2. Conservation Measures'!MB67","v":0},{"$f":"'2. Conservation Measures'!MC67","v":0},{"$f":"'2. Conservation Measures'!MD67","v":0},{"$f":"'2. Conservation Measures'!ME67","v":0},{"$f":"'2. Conservation Measures'!MF67","v":0},{"$f":"'2. Conservation Measures'!MG67","v":0},{"$f":"'2. Conservation Measures'!MH67","v":0},{"$f":"'2. Conservation Measures'!MI67","v":0},{"$f":"'2. Conservation Measures'!MJ67","v":0},{"$f":"'2. Conservation Measures'!MK67","v":0},{"$f":"'2. Conservation Measures'!ML67","v":0},{"$f":"'2. Conservation Measures'!MM67","v":0},{"$f":"'2. Conservation Measures'!MN67","v":0},null,{"$f":"'2. Conservation Measures'!EP67","v":0},{"$f":"'2. Conservation Measures'!EQ67","v":0},{"$f":"'2. Conservation Measures'!ER67","v":0},{"$f":"'2. Conservation Measures'!ES67","v":0},{"$f":"'2. Conservation Measures'!ET67","v":0},{"$f":"'2. Conservation Measures'!EU67","v":0},{"$f":"'2. Conservation Measures'!EV67","v":0},{"$f":"'2. Conservation Measures'!EW67","v":0},{"$f":"'2. Conservation Measures'!EX67","v":0},{"$f":"'2. Conservation Measures'!EY67","v":0},{"$f":"'2. Conservation Measures'!EZ67","v":0},{"$f":"'2. Conservation Measures'!FA67","v":0},{"$f":"'2. Conservation Measures'!FB67","v":0},{"$f":"'2. Conservation Measures'!FC67","v":0},{"$f":"'2. Conservation Measures'!FD67","v":0},{"$f":"'2. Conservation Measures'!FE67","v":0},{"$f":"'2. Conservation Measures'!FF67","v":0},{"$f":"'2. Conservation Measures'!FG67","v":0},{"$f":"'2. Conservation Measures'!FH67","v":0},{"$f":"'2. Conservation Measures'!FI67","v":0},{"$f":"'2. Conservation Measures'!FJ67","v":0},{"$f":"'2. Conservation Measures'!FK67","v":0},{"$f":"'2. Conservation Measures'!FL67","v":0},{"$f":"'2. Conservation Measures'!FM67","v":0},{"$f":"'2. Conservation Measures'!FN67","v":0},{"$f":"'2. Conservation Measures'!FO67","v":0},{"$f":"'2. Conservation Measures'!FP67","v":0},{"$f":"'2. Conservation Measures'!FQ67","v":0},{"$f":"'2. Conservation Measures'!FR67","v":0},{"$f":"'2. Conservation Measures'!FS67","v":0},{"$f":"'2. Conservation Measures'!FT67","v":0},{"$f":"'2. Conservation Measures'!FU67","v":0},{"$f":"'2. Conservation Measures'!FV67","v":0},{"$f":"'2. Conservation Measures'!FW67","v":0},{"$f":"'2. Conservation Measures'!FX67","v":0},{"$f":"'2. Conservation Measures'!FY67","v":0},{"$f":"'2. Conservation Measures'!FZ67","v":0},{"$f":"'2. Conservation Measures'!GA67","v":0},{"$f":"'2. Conservation Measures'!GB67","v":0},{"$f":"'2. Conservation Measures'!GC67","v":0},{"$f":"'2. Conservation Measures'!GD67","v":0},{"$f":"'2. Conservation Measures'!GE67","v":0},{"$f":"'2. Conservation Measures'!GF67","v":0},{"$f":"'2. Conservation Measures'!GG67","v":0},{"$f":"'2. Conservation Measures'!GH67","v":0},{"$f":"'2. Conservation Measures'!GI67","v":0},{"$f":"'2. Conservation Measures'!GJ67","v":0},{"$f":"'2. Conservation Measures'!GK67","v":0},{"$f":"'2. Conservation Measures'!GL67","v":0},{"$f":"'2. Conservation Measures'!GM67","v":0},{"$f":"'2. Conservation Measures'!GN67","v":0},null,{"$f":"'2. Conservation Measures'!GP67","v":0},{"$f":"'2. Conservation Measures'!GQ67","v":0},{"$f":"'2. Conservation Measures'!GR67","v":0},{"$f":"'2. Conservation Measures'!GS67","v":0},{"$f":"'2. Conservation Measures'!GT67","v":0},{"$f":"'2. Conservation Measures'!GU67","v":0},{"$f":"'2. Conservation Measures'!GV67","v":0},{"$f":"'2. Conservation Measures'!GW67","v":0},{"$f":"'2. Conservation Measures'!GX67","v":0},{"$f":"'2. Conservation Measures'!GY67","v":0},{"$f":"'2. Conservation Measures'!GZ67","v":0},{"$f":"'2. Conservation Measures'!HA67","v":0},{"$f":"'2. Conservation Measures'!HB67","v":0},{"$f":"'2. Conservation Measures'!HC67","v":0},{"$f":"'2. Conservation Measures'!HD67","v":0},{"$f":"'2. Conservation Measures'!HE67","v":0},{"$f":"'2. Conservation Measures'!HF67","v":0},{"$f":"'2. Conservation Measures'!HG67","v":0},{"$f":"'2. Conservation Measures'!HH67","v":0},{"$f":"'2. Conservation Measures'!HI67","v":0},{"$f":"'2. Conservation Measures'!HJ67","v":0},{"$f":"'2. Conservation Measures'!HK67","v":0},{"$f":"'2. Conservation Measures'!HL67","v":0},{"$f":"'2. Conservation Measures'!HM67","v":0},{"$f":"'2. Conservation Measures'!HN67","v":0},{"$f":"'2. Conservation Measures'!HO67","v":0},{"$f":"'2. Conservation Measures'!HP67","v":0},{"$f":"'2. Conservation Measures'!HQ67","v":0},{"$f":"'2. Conservation Measures'!HR67","v":0},{"$f":"'2. Conservation Measures'!HS67","v":0},{"$f":"'2. Conservation Measures'!HT67","v":0},{"$f":"'2. Conservation Measures'!HU67","v":0},{"$f":"'2. Conservation Measures'!HV67","v":0},{"$f":"'2. Conservation Measures'!HW67","v":0},{"$f":"'2. Conservation Measures'!HX67","v":0},{"$f":"'2. Conservation Measures'!HY67","v":0},{"$f":"'2. Conservation Measures'!HZ67","v":0},{"$f":"'2. Conservation Measures'!IA67","v":0},{"$f":"'2. Conservation Measures'!IB67","v":0},{"$f":"'2. Conservation Measures'!IC67","v":0},{"$f":"'2. Conservation Measures'!ID67","v":0},{"$f":"'2. Conservation Measures'!IE67","v":0},{"$f":"'2. Conservation Measures'!IF67","v":0},{"$f":"'2. Conservation Measures'!IG67","v":0},{"$f":"'2. Conservation Measures'!IH67","v":0},{"$f":"'2. Conservation Measures'!II67","v":0},{"$f":"'2. Conservation Measures'!IJ67","v":0},{"$f":"'2. Conservation Measures'!IK67","v":0},{"$f":"'2. Conservation Measures'!IL67","v":0},{"$f":"'2. Conservation Measures'!IM67","v":0},{"$f":"'2. Conservation Measures'!IN67","v":0},null,{"$f":"'2. Conservation Measures'!IP67","v":0},{"$f":"'2. Conservation Measures'!IQ67","v":0},{"$f":"'2. Conservation Measures'!IR67","v":0},{"$f":"'2. Conservation Measures'!IS67","v":0},{"$f":"'2. Conservation Measures'!IT67","v":0},{"$f":"'2. Conservation Measures'!IU67","v":0},{"$f":"'2. Conservation Measures'!IV67","v":0},{"$f":"'2. Conservation Measures'!IW67","v":0},{"$f":"'2. Conservation Measures'!IX67","v":0},{"$f":"'2. Conservation Measures'!IY67","v":0},{"$f":"'2. Conservation Measures'!IZ67","v":0},{"$f":"'2. Conservation Measures'!JA67","v":0},{"$f":"'2. Conservation Measures'!JB67","v":0},{"$f":"'2. Conservation Measures'!JC67","v":0},{"$f":"'2. Conservation Measures'!JD67","v":0},{"$f":"'2. Conservation Measures'!JE67","v":0},{"$f":"'2. Conservation Measures'!JF67","v":0},{"$f":"'2. Conservation Measures'!JG67","v":0},{"$f":"'2. Conservation Measures'!JH67","v":0},{"$f":"'2. Conservation Measures'!JI67","v":0},{"$f":"'2. Conservation Measures'!JJ67","v":0},{"$f":"'2. Conservation Measures'!JK67","v":0},{"$f":"'2. Conservation Measures'!JL67","v":0},{"$f":"'2. Conservation Measures'!JM67","v":0},{"$f":"'2. Conservation Measures'!JN67","v":0},{"$f":"'2. Conservation Measures'!JO67","v":0},{"$f":"'2. Conservation Measures'!JP67","v":0},{"$f":"'2. Conservation Measures'!JQ67","v":0},{"$f":"'2. Conservation Measures'!JR67","v":0},{"$f":"'2. Conservation Measures'!JS67","v":0},{"$f":"'2. Conservation Measures'!JT67","v":0},{"$f":"'2. Conservation Measures'!JU67","v":0},{"$f":"'2. Conservation Measures'!JV67","v":0},{"$f":"'2. Conservation Measures'!JW67","v":0},{"$f":"'2. Conservation Measures'!JX67","v":0},{"$f":"'2. Conservation Measures'!JY67","v":0},{"$f":"'2. Conservation Measures'!JZ67","v":0},{"$f":"'2. Conservation Measures'!KA67","v":0},{"$f":"'2. Conservation Measures'!KB67","v":0},{"$f":"'2. Conservation Measures'!KC67","v":0},{"$f":"'2. Conservation Measures'!KD67","v":0},{"$f":"'2. Conservation Measures'!KE67","v":0},{"$f":"'2. Conservation Measures'!KF67","v":0},{"$f":"'2. Conservation Measures'!KG67","v":0},{"$f":"'2. Conservation Measures'!KH67","v":0},{"$f":"'2. Conservation Measures'!KI67","v":0},{"$f":"'2. Conservation Measures'!KJ67","v":0},{"$f":"'2. Conservation Measures'!KK67","v":0},{"$f":"'2. Conservation Measures'!KL67","v":0},{"$f":"'2. Conservation Measures'!KM67","v":0},{"$f":"'2. Conservation Measures'!KN67","v":0}]
[null,{"$f":"'2. Conservation Measures'!B68","v":"USR-SF-05"},{"$f":"'2. Conservation Measures'!C68","v":0},{"$f":"'2. Conservation Measures'!D68","v":"N"},null,{"$f":"'2. Conservation Measures'!AA68","v":0},null,{"$f":"'2. Conservation Measures'!AO68","v":0},{"$f":"'2. Conservation Measures'!AP68","v":0},{"$f":"'2. Conservation Measures'!AQ68","v":0},{"$f":"'2. Conservation Measures'!AR68","v":0},{"$f":"'2. Conservation Measures'!AS68","v":0},{"$f":"'2. Conservation Measures'!AT68","v":0},{"$f":"'2. Conservation Measures'!AU68","v":0},{"$f":"'2. Conservation Measures'!AV68","v":0},{"$f":"'2. Conservation Measures'!AW68","v":0},{"$f":"'2. Conservation Measures'!AX68","v":0},{"$f":"'2. Conservation Measures'!AY68","v":0},{"$f":"'2. Conservation Measures'!AZ68","v":0},{"$f":"'2. Conservation Measures'!BA68","v":0},{"$f":"'2. Conservation Measures'!BB68","v":0},{"$f":"'2. Conservation Measures'!BC68","v":0},{"$f":"'2. Conservation Measures'!BD68","v":0},{"$f":"'2. Conservation Measures'!BE68","v":0},{"$f":"'2. Conservation Measures'!BF68","v":0},{"$f":"'2. Conservation Measures'!BG68","v":0},{"$f":"'2. Conservation Measures'!BH68","v":0},{"$f":"'2. Conservation Measures'!BI68","v":0},{"$f":"'2. Conservation Measures'!BJ68","v":0},{"$f":"'2. Conservation Measures'!BK68","v":0},{"$f":"'2. Conservation Measures'!BL68","v":0},{"$f":"'2. Conservation Measures'!BM68","v":0},{"$f":"'2. Conservation Measures'!BN68","v":0},{"$f":"'2. Conservation Measures'!BO68","v":0},{"$f":"'2. Conservation Measures'!BP68","v":0},{"$f":"'2. Conservation Measures'!BQ68","v":0},{"$f":"'2. Conservation Measures'!BR68","v":0},{"$f":"'2. Conservation Measures'!BS68","v":0},{"$f":"'2. Conservation Measures'!BT68","v":0},{"$f":"'2. Conservation Measures'!BU68","v":0},{"$f":"'2. Conservation Measures'!BV68","v":0},{"$f":"'2. Conservation Measures'!BW68","v":0},{"$f":"'2. Conservation Measures'!BX68","v":0},{"$f":"'2. Conservation Measures'!BY68","v":0},{"$f":"'2. Conservation Measures'!BZ68","v":0},{"$f":"'2. Conservation Measures'!CA68","v":0},{"$f":"'2. Conservation Measures'!CB68","v":0},{"$f":"'2. Conservation Measures'!CC68","v":0},{"$f":"'2. Conservation Measures'!CD68","v":0},{"$f":"'2. Conservation Measures'!CE68","v":0},{"$f":"'2. Conservation Measures'!CF68","v":0},{"$f":"'2. Conservation Measures'!CG68","v":0},{"$f":"'2. Conservation Measures'!CH68","v":0},{"$f":"'2. Conservation Measures'!CI68","v":0},{"$f":"'2. Conservation Measures'!CJ68","v":0},{"$f":"'2. Conservation Measures'!CK68","v":0},{"$f":"'2. Conservation Measures'!CL68","v":0},{"$f":"'2. Conservation Measures'!CM68","v":0},null,{"$f":"'2. Conservation Measures'!CO68","v":0},{"$f":"'2. Conservation Measures'!CP68","v":0},{"$f":"'2. Conservation Measures'!CQ68","v":0},{"$f":"'2. Conservation Measures'!CR68","v":0},{"$f":"'2. Conservation Measures'!CS68","v":0},{"$f":"'2. Conservation Measures'!CT68","v":0},{"$f":"'2. Conservation Measures'!CU68","v":0},{"$f":"'2. Conservation Measures'!CV68","v":0},{"$f":"'2. Conservation Measures'!CW68","v":0},{"$f":"'2. Conservation Measures'!CX68","v":0},{"$f":"'2. Conservation Measures'!CY68","v":0},{"$f":"'2. Conservation Measures'!CZ68","v":0},{"$f":"'2. Conservation Measures'!DA68","v":0},{"$f":"'2. Conservation Measures'!DB68","v":0},{"$f":"'2. Conservation Measures'!DC68","v":0},{"$f":"'2. Conservation Measures'!DD68","v":0},{"$f":"'2. Conservation Measures'!DE68","v":0},{"$f":"'2. Conservation Measures'!DF68","v":0},{"$f":"'2. Conservation Measures'!DG68","v":0},{"$f":"'2. Conservation Measures'!DH68","v":0},{"$f":"'2. Conservation Measures'!DI68","v":0},{"$f":"'2. Conservation Measures'!DJ68","v":0},{"$f":"'2. Conservation Measures'!DK68","v":0},{"$f":"'2. Conservation Measures'!DL68","v":0},{"$f":"'2. Conservation Measures'!DM68","v":0},{"$f":"'2. Conservation Measures'!DN68","v":0},{"$f":"'2. Conservation Measures'!DO68","v":0},{"$f":"'2. Conservation Measures'!DP68","v":0},{"$f":"'2. Conservation Measures'!DQ68","v":0},{"$f":"'2. Conservation Measures'!DR68","v":0},{"$f":"'2. Conservation Measures'!DS68","v":0},{"$f":"'2. Conservation Measures'!DT68","v":0},{"$f":"'2. Conservation Measures'!DU68","v":0},{"$f":"'2. Conservation Measures'!DV68","v":0},{"$f":"'2. Conservation Measures'!DW68","v":0},{"$f":"'2. Conservation Measures'!DX68","v":0},{"$f":"'2. Conservation Measures'!DY68","v":0},{"$f":"'2. Conservation Measures'!DZ68","v":0},{"$f":"'2. Conservation Measures'!EA68","v":0},{"$f":"'2. Conservation Measures'!EB68","v":0},{"$f":"'2. Conservation Measures'!EC68","v":0},{"$f":"'2. Conservation Measures'!ED68","v":0},{"$f":"'2. Conservation Measures'!EE68","v":0},{"$f":"'2. Conservation Measures'!EF68","v":0},{"$f":"'2. Conservation Measures'!EG68","v":0},{"$f":"'2. Conservation Measures'!EH68","v":0},{"$f":"'2. Conservation Measures'!EI68","v":0},{"$f":"'2. Conservation Measures'!EJ68","v":0},{"$f":"'2. Conservation Measures'!EK68","v":0},{"$f":"'2. Conservation Measures'!EL68","v":0},{"$f":"'2. Conservation Measures'!EM68","v":0},null,{"$f":"'2. Conservation Measures'!KP68","v":0},{"$f":"'2. Conservation Measures'!KQ68","v":0},{"$f":"'2. Conservation Measures'!KR68","v":0},{"$f":"'2. Conservation Measures'!KS68","v":0},{"$f":"'2. Conservation Measures'!KT68","v":0},{"$f":"'2. Conservation Measures'!KU68","v":0},{"$f":"'2. Conservation Measures'!KV68","v":0},{"$f":"'2. Conservation Measures'!KW68","v":0},{"$f":"'2. Conservation Measures'!KX68","v":0},{"$f":"'2. Conservation Measures'!KY68","v":0},{"$f":"'2. Conservation Measures'!KZ68","v":0},{"$f":"'2. Conservation Measures'!LA68","v":0},{"$f":"'2. Conservation Measures'!LB68","v":0},{"$f":"'2. Conservation Measures'!LC68","v":0},{"$f":"'2. Conservation Measures'!LD68","v":0},{"$f":"'2. Conservation Measures'!LE68","v":0},{"$f":"'2. Conservation Measures'!LF68","v":0},{"$f":"'2. Conservation Measures'!LG68","v":0},{"$f":"'2. Conservation Measures'!LH68","v":0},{"$f":"'2. Conservation Measures'!LI68","v":0},{"$f":"'2. Conservation Measures'!LJ68","v":0},{"$f":"'2. Conservation Measures'!LK68","v":0},{"$f":"'2. Conservation Measures'!LL68","v":0},{"$f":"'2. Conservation Measures'!LM68","v":0},{"$f":"'2. Conservation Measures'!LN68","v":0},{"$f":"'2. Conservation Measures'!LO68","v":0},{"$f":"'2. Conservation Measures'!LP68","v":0},{"$f":"'2. Conservation Measures'!LQ68","v":0},{"$f":"'2. Conservation Measures'!LR68","v":0},{"$f":"'2. Conservation Measures'!LS68","v":0},{"$f":"'2. Conservation Measures'!LT68","v":0},{"$f":"'2. Conservation Measures'!LU68","v":0},{"$f":"'2. Conservation Measures'!LV68","v":0},{"$f":"'2. Conservation Measures'!LW68","v":0},{"$f":"'2. Conservation Measures'!LX68","v":0},{"$f":"'2. Conservation Measures'!LY68","v":0},{"$f":"'2. Conservation Measures'!LZ68","v":0},{"$f":"'2. Conservation Measures'!MA68","v":0},{"$f":"'2. Conservation Measures'!MB68","v":0},{"$f":"'2. Conservation Measures'!MC68","v":0},{"$f":"'2. Conservation Measures'!MD68","v":0},{"$f":"'2. Conservation Measures'!ME68","v":0},{"$f":"'2. Conservation Measures'!MF68","v":0},{"$f":"'2. Conservation Measures'!MG68","v":0},{"$f":"'2. Conservation Measures'!MH68","v":0},{"$f":"'2. Conservation Measures'!MI68","v":0},{"$f":"'2. Conservation Measures'!MJ68","v":0},{"$f":"'2. Conservation Measures'!MK68","v":0},{"$f":"'2. Conservation Measures'!ML68","v":0},{"$f":"'2. Conservation Measures'!MM68","v":0},{"$f":"'2. Conservation Measures'!MN68","v":0},null,{"$f":"'2. Conservation Measures'!EP68","v":0},{"$f":"'2. Conservation Measures'!EQ68","v":0},{"$f":"'2. Conservation Measures'!ER68","v":0},{"$f":"'2. Conservation Measures'!ES68","v":0},{"$f":"'2. Conservation Measures'!ET68","v":0},{"$f":"'2. Conservation Measures'!EU68","v":0},{"$f":"'2. Conservation Measures'!EV68","v":0},{"$f":"'2. Conservation Measures'!EW68","v":0},{"$f":"'2. Conservation Measures'!EX68","v":0},{"$f":"'2. Conservation Measures'!EY68","v":0},{"$f":"'2. Conservation Measures'!EZ68","v":0},{"$f":"'2. Conservation Measures'!FA68","v":0},{"$f":"'2. Conservation Measures'!FB68","v":0},{"$f":"'2. Conservation Measures'!FC68","v":0},{"$f":"'2. Conservation Measures'!FD68","v":0},{"$f":"'2. Conservation Measures'!FE68","v":0},{"$f":"'2. Conservation Measures'!FF68","v":0},{"$f":"'2. Conservation Measures'!FG68","v":0},{"$f":"'2. Conservation Measures'!FH68","v":0},{"$f":"'2. Conservation Measures'!FI68","v":0},{"$f":"'2. Conservation Measures'!FJ68","v":0},{"$f":"'2. Conservation Measures'!FK68","v":0},{"$f":"'2. Conservation Measures'!FL68","v":0},{"$f":"'2. Conservation Measures'!FM68","v":0},{"$f":"'2. Conservation Measures'!FN68","v":0},{"$f":"'2. Conservation Measures'!FO68","v":0},{"$f":"'2. Conservation Measures'!FP68","v":0},{"$f":"'2. Conservation Measures'!FQ68","v":0},{"$f":"'2. Conservation Measures'!FR68","v":0},{"$f":"'2. Conservation Measures'!FS68","v":0},{"$f":"'2. Conservation Measures'!FT68","v":0},{"$f":"'2. Conservation Measures'!FU68","v":0},{"$f":"'2. Conservation Measures'!FV68","v":0},{"$f":"'2. Conservation Measures'!FW68","v":0},{"$f":"'2. Conservation Measures'!FX68","v":0},{"$f":"'2. Conservation Measures'!FY68","v":0},{"$f":"'2. Conservation Measures'!FZ68","v":0},{"$f":"'2. Conservation Measures'!GA68","v":0},{"$f":"'2. Conservation Measures'!GB68","v":0},{"$f":"'2. Conservation Measures'!GC68","v":0},{"$f":"'2. Conservation Measures'!GD68","v":0},{"$f":"'2. Conservation Measures'!GE68","v":0},{"$f":"'2. Conservation Measures'!GF68","v":0},{"$f":"'2. Conservation Measures'!GG68","v":0},{"$f":"'2. Conservation Measures'!GH68","v":0},{"$f":"'2. Conservation Measures'!GI68","v":0},{"$f":"'2. Conservation Measures'!GJ68","v":0},{"$f":"'2. Conservation Measures'!GK68","v":0},{"$f":"'2. Conservation Measures'!GL68","v":0},{"$f":"'2. Conservation Measures'!GM68","v":0},{"$f":"'2. Conservation Measures'!GN68","v":0},null,{"$f":"'2. Conservation Measures'!GP68","v":0},{"$f":"'2. Conservation Measures'!GQ68","v":0},{"$f":"'2. Conservation Measures'!GR68","v":0},{"$f":"'2. Conservation Measures'!GS68","v":0},{"$f":"'2. Conservation Measures'!GT68","v":0},{"$f":"'2. Conservation Measures'!GU68","v":0},{"$f":"'2. Conservation Measures'!GV68","v":0},{"$f":"'2. Conservation Measures'!GW68","v":0},{"$f":"'2. Conservation Measures'!GX68","v":0},{"$f":"'2. Conservation Measures'!GY68","v":0},{"$f":"'2. Conservation Measures'!GZ68","v":0},{"$f":"'2. Conservation Measures'!HA68","v":0},{"$f":"'2. Conservation Measures'!HB68","v":0},{"$f":"'2. Conservation Measures'!HC68","v":0},{"$f":"'2. Conservation Measures'!HD68","v":0},{"$f":"'2. Conservation Measures'!HE68","v":0},{"$f":"'2. Conservation Measures'!HF68","v":0},{"$f":"'2. Conservation Measures'!HG68","v":0},{"$f":"'2. Conservation Measures'!HH68","v":0},{"$f":"'2. Conservation Measures'!HI68","v":0},{"$f":"'2. Conservation Measures'!HJ68","v":0},{"$f":"'2. Conservation Measures'!HK68","v":0},{"$f":"'2. Conservation Measures'!HL68","v":0},{"$f":"'2. Conservation Measures'!HM68","v":0},{"$f":"'2. Conservation Measures'!HN68","v":0},{"$f":"'2. Conservation Measures'!HO68","v":0},{"$f":"'2. Conservation Measures'!HP68","v":0},{"$f":"'2. Conservation Measures'!HQ68","v":0},{"$f":"'2. Conservation Measures'!HR68","v":0},{"$f":"'2. Conservation Measures'!HS68","v":0},{"$f":"'2. Conservation Measures'!HT68","v":0},{"$f":"'2. Conservation Measures'!HU68","v":0},{"$f":"'2. Conservation Measures'!HV68","v":0},{"$f":"'2. Conservation Measures'!HW68","v":0},{"$f":"'2. Conservation Measures'!HX68","v":0},{"$f":"'2. Conservation Measures'!HY68","v":0},{"$f":"'2. Conservation Measures'!HZ68","v":0},{"$f":"'2. Conservation Measures'!IA68","v":0},{"$f":"'2. Conservation Measures'!IB68","v":0},{"$f":"'2. Conservation Measures'!IC68","v":0},{"$f":"'2. Conservation Measures'!ID68","v":0},{"$f":"'2. Conservation Measures'!IE68","v":0},{"$f":"'2. Conservation Measures'!IF68","v":0},{"$f":"'2. Conservation Measures'!IG68","v":0},{"$f":"'2. Conservation Measures'!IH68","v":0},{"$f":"'2. Conservation Measures'!II68","v":0},{"$f":"'2. Conservation Measures'!IJ68","v":0},{"$f":"'2. Conservation Measures'!IK68","v":0},{"$f":"'2. Conservation Measures'!IL68","v":0},{"$f":"'2. Conservation Measures'!IM68","v":0},{"$f":"'2. Conservation Measures'!IN68","v":0},null,{"$f":"'2. Conservation Measures'!IP68","v":0},{"$f":"'2. Conservation Measures'!IQ68","v":0},{"$f":"'2. Conservation Measures'!IR68","v":0},{"$f":"'2. Conservation Measures'!IS68","v":0},{"$f":"'2. Conservation Measures'!IT68","v":0},{"$f":"'2. Conservation Measures'!IU68","v":0},{"$f":"'2. Conservation Measures'!IV68","v":0},{"$f":"'2. Conservation Measures'!IW68","v":0},{"$f":"'2. Conservation Measures'!IX68","v":0},{"$f":"'2. Conservation Measures'!IY68","v":0},{"$f":"'2. Conservation Measures'!IZ68","v":0},{"$f":"'2. Conservation Measures'!JA68","v":0},{"$f":"'2. Conservation Measures'!JB68","v":0},{"$f":"'2. Conservation Measures'!JC68","v":0},{"$f":"'2. Conservation Measures'!JD68","v":0},{"$f":"'2. Conservation Measures'!JE68","v":0},{"$f":"'2. Conservation Measures'!JF68","v":0},{"$f":"'2. Conservation Measures'!JG68","v":0},{"$f":"'2. Conservation Measures'!JH68","v":0},{"$f":"'2. Conservation Measures'!JI68","v":0},{"$f":"'2. Conservation Measures'!JJ68","v":0},{"$f":"'2. Conservation Measures'!JK68","v":0},{"$f":"'2. Conservation Measures'!JL68","v":0},{"$f":"'2. Conservation Measures'!JM68","v":0},{"$f":"'2. Conservation Measures'!JN68","v":0},{"$f":"'2. Conservation Measures'!JO68","v":0},{"$f":"'2. Conservation Measures'!JP68","v":0},{"$f":"'2. Conservation Measures'!JQ68","v":0},{"$f":"'2. Conservation Measures'!JR68","v":0},{"$f":"'2. Conservation Measures'!JS68","v":0},{"$f":"'2. Conservation Measures'!JT68","v":0},{"$f":"'2. Conservation Measures'!JU68","v":0},{"$f":"'2. Conservation Measures'!JV68","v":0},{"$f":"'2. Conservation Measures'!JW68","v":0},{"$f":"'2. Conservation Measures'!JX68","v":0},{"$f":"'2. Conservation Measures'!JY68","v":0},{"$f":"'2. Conservation Measures'!JZ68","v":0},{"$f":"'2. Conservation Measures'!KA68","v":0},{"$f":"'2. Conservation Measures'!KB68","v":0},{"$f":"'2. Conservation Measures'!KC68","v":0},{"$f":"'2. Conservation Measures'!KD68","v":0},{"$f":"'2. Conservation Measures'!KE68","v":0},{"$f":"'2. Conservation Measures'!KF68","v":0},{"$f":"'2. Conservation Measures'!KG68","v":0},{"$f":"'2. Conservation Measures'!KH68","v":0},{"$f":"'2. Conservation Measures'!KI68","v":0},{"$f":"'2. Conservation Measures'!KJ68","v":0},{"$f":"'2. Conservation Measures'!KK68","v":0},{"$f":"'2. Conservation Measures'!KL68","v":0},{"$f":"'2. Conservation Measures'!KM68","v":0},{"$f":"'2. Conservation Measures'!KN68","v":0}]
[null,{"$f":"'2. Conservation Measures'!B69","v":"USR-SF-06"},{"$f":"'2. Conservation Measures'!C69","v":0},{"$f":"'2. Conservation Measures'!D69","v":"N"},null,{"$f":"'2. Conservation Measures'!AA69","v":0},null,{"$f":"'2. Conservation Measures'!AO69","v":0},{"$f":"'2. Conservation Measures'!AP69","v":0},{"$f":"'2. Conservation Measures'!AQ69","v":0},{"$f":"'2. Conservation Measures'!AR69","v":0},{"$f":"'2. Conservation Measures'!AS69","v":0},{"$f":"'2. Conservation Measures'!AT69","v":0},{"$f":"'2. Conservation Measures'!AU69","v":0},{"$f":"'2. Conservation Measures'!AV69","v":0},{"$f":"'2. Conservation Measures'!AW69","v":0},{"$f":"'2. Conservation Measures'!AX69","v":0},{"$f":"'2. Conservation Measures'!AY69","v":0},{"$f":"'2. Conservation Measures'!AZ69","v":0},{"$f":"'2. Conservation Measures'!BA69","v":0},{"$f":"'2. Conservation Measures'!BB69","v":0},{"$f":"'2. Conservation Measures'!BC69","v":0},{"$f":"'2. Conservation Measures'!BD69","v":0},{"$f":"'2. Conservation Measures'!BE69","v":0},{"$f":"'2. Conservation Measures'!BF69","v":0},{"$f":"'2. Conservation Measures'!BG69","v":0},{"$f":"'2. Conservation Measures'!BH69","v":0},{"$f":"'2. Conservation Measures'!BI69","v":0},{"$f":"'2. Conservation Measures'!BJ69","v":0},{"$f":"'2. Conservation Measures'!BK69","v":0},{"$f":"'2. Conservation Measures'!BL69","v":0},{"$f":"'2. Conservation Measures'!BM69","v":0},{"$f":"'2. Conservation Measures'!BN69","v":0},{"$f":"'2. Conservation Measures'!BO69","v":0},{"$f":"'2. Conservation Measures'!BP69","v":0},{"$f":"'2. Conservation Measures'!BQ69","v":0},{"$f":"'2. Conservation Measures'!BR69","v":0},{"$f":"'2. Conservation Measures'!BS69","v":0},{"$f":"'2. Conservation Measures'!BT69","v":0},{"$f":"'2. Conservation Measures'!BU69","v":0},{"$f":"'2. Conservation Measures'!BV69","v":0},{"$f":"'2. Conservation Measures'!BW69","v":0},{"$f":"'2. Conservation Measures'!BX69","v":0},{"$f":"'2. Conservation Measures'!BY69","v":0},{"$f":"'2. Conservation Measures'!BZ69","v":0},{"$f":"'2. Conservation Measures'!CA69","v":0},{"$f":"'2. Conservation Measures'!CB69","v":0},{"$f":"'2. Conservation Measures'!CC69","v":0},{"$f":"'2. Conservation Measures'!CD69","v":0},{"$f":"'2. Conservation Measures'!CE69","v":0},{"$f":"'2. Conservation Measures'!CF69","v":0},{"$f":"'2. Conservation Measures'!CG69","v":0},{"$f":"'2. Conservation Measures'!CH69","v":0},{"$f":"'2. Conservation Measures'!CI69","v":0},{"$f":"'2. Conservation Measures'!CJ69","v":0},{"$f":"'2. Conservation Measures'!CK69","v":0},{"$f":"'2. Conservation Measures'!CL69","v":0},{"$f":"'2. Conservation Measures'!CM69","v":0},null,{"$f":"'2. Conservation Measures'!CO69","v":0},{"$f":"'2. Conservation Measures'!CP69","v":0},{"$f":"'2. Conservation Measures'!CQ69","v":0},{"$f":"'2. Conservation Measures'!CR69","v":0},{"$f":"'2. Conservation Measures'!CS69","v":0},{"$f":"'2. Conservation Measures'!CT69","v":0},{"$f":"'2. Conservation Measures'!CU69","v":0},{"$f":"'2. Conservation Measures'!CV69","v":0},{"$f":"'2. Conservation Measures'!CW69","v":0},{"$f":"'2. Conservation Measures'!CX69","v":0},{"$f":"'2. Conservation Measures'!CY69","v":0},{"$f":"'2. Conservation Measures'!CZ69","v":0},{"$f":"'2. Conservation Measures'!DA69","v":0},{"$f":"'2. Conservation Measures'!DB69","v":0},{"$f":"'2. Conservation Measures'!DC69","v":0},{"$f":"'2. Conservation Measures'!DD69","v":0},{"$f":"'2. Conservation Measures'!DE69","v":0},{"$f":"'2. Conservation Measures'!DF69","v":0},{"$f":"'2. Conservation Measures'!DG69","v":0},{"$f":"'2. Conservation Measures'!DH69","v":0},{"$f":"'2. Conservation Measures'!DI69","v":0},{"$f":"'2. Conservation Measures'!DJ69","v":0},{"$f":"'2. Conservation Measures'!DK69","v":0},{"$f":"'2. Conservation Measures'!DL69","v":0},{"$f":"'2. Conservation Measures'!DM69","v":0},{"$f":"'2. Conservation Measures'!DN69","v":0},{"$f":"'2. Conservation Measures'!DO69","v":0},{"$f":"'2. Conservation Measures'!DP69","v":0},{"$f":"'2. Conservation Measures'!DQ69","v":0},{"$f":"'2. Conservation Measures'!DR69","v":0},{"$f":"'2. Conservation Measures'!DS69","v":0},{"$f":"'2. Conservation Measures'!DT69","v":0},{"$f":"'2. Conservation Measures'!DU69","v":0},{"$f":"'2. Conservation Measures'!DV69","v":0},{"$f":"'2. Conservation Measures'!DW69","v":0},{"$f":"'2. Conservation Measures'!DX69","v":0},{"$f":"'2. Conservation Measures'!DY69","v":0},{"$f":"'2. Conservation Measures'!DZ69","v":0},{"$f":"'2. Conservation Measures'!EA69","v":0},{"$f":"'2. Conservation Measures'!EB69","v":0},{"$f":"'2. Conservation Measures'!EC69","v":0},{"$f":"'2. Conservation Measures'!ED69","v":0},{"$f":"'2. Conservation Measures'!EE69","v":0},{"$f":"'2. Conservation Measures'!EF69","v":0},{"$f":"'2. Conservation Measures'!EG69","v":0},{"$f":"'2. Conservation Measures'!EH69","v":0},{"$f":"'2. Conservation Measures'!EI69","v":0},{"$f":"'2. Conservation Measures'!EJ69","v":0},{"$f":"'2. Conservation Measures'!EK69","v":0},{"$f":"'2. Conservation Measures'!EL69","v":0},{"$f":"'2. Conservation Measures'!EM69","v":0},null,{"$f":"'2. Conservation Measures'!KP69","v":0},{"$f":"'2. Conservation Measures'!KQ69","v":0},{"$f":"'2. Conservation Measures'!KR69","v":0},{"$f":"'2. Conservation Measures'!KS69","v":0},{"$f":"'2. Conservation Measures'!KT69","v":0},{"$f":"'2. Conservation Measures'!KU69","v":0},{"$f":"'2. Conservation Measures'!KV69","v":0},{"$f":"'2. Conservation Measures'!KW69","v":0},{"$f":"'2. Conservation Measures'!KX69","v":0},{"$f":"'2. Conservation Measures'!KY69","v":0},{"$f":"'2. Conservation Measures'!KZ69","v":0},{"$f":"'2. Conservation Measures'!LA69","v":0},{"$f":"'2. Conservation Measures'!LB69","v":0},{"$f":"'2. Conservation Measures'!LC69","v":0},{"$f":"'2. Conservation Measures'!LD69","v":0},{"$f":"'2. Conservation Measures'!LE69","v":0},{"$f":"'2. Conservation Measures'!LF69","v":0},{"$f":"'2. Conservation Measures'!LG69","v":0},{"$f":"'2. Conservation Measures'!LH69","v":0},{"$f":"'2. Conservation Measures'!LI69","v":0},{"$f":"'2. Conservation Measures'!LJ69","v":0},{"$f":"'2. Conservation Measures'!LK69","v":0},{"$f":"'2. Conservation Measures'!LL69","v":0},{"$f":"'2. Conservation Measures'!LM69","v":0},{"$f":"'2. Conservation Measures'!LN69","v":0},{"$f":"'2. Conservation Measures'!LO69","v":0},{"$f":"'2. Conservation Measures'!LP69","v":0},{"$f":"'2. Conservation Measures'!LQ69","v":0},{"$f":"'2. Conservation Measures'!LR69","v":0},{"$f":"'2. Conservation Measures'!LS69","v":0},{"$f":"'2. Conservation Measures'!LT69","v":0},{"$f":"'2. Conservation Measures'!LU69","v":0},{"$f":"'2. Conservation Measures'!LV69","v":0},{"$f":"'2. Conservation Measures'!LW69","v":0},{"$f":"'2. Conservation Measures'!LX69","v":0},{"$f":"'2. Conservation Measures'!LY69","v":0},{"$f":"'2. Conservation Measures'!LZ69","v":0},{"$f":"'2. Conservation Measures'!MA69","v":0},{"$f":"'2. Conservation Measures'!MB69","v":0},{"$f":"'2. Conservation Measures'!MC69","v":0},{"$f":"'2. Conservation Measures'!MD69","v":0},{"$f":"'2. Conservation Measures'!ME69","v":0},{"$f":"'2. Conservation Measures'!MF69","v":0},{"$f":"'2. Conservation Measures'!MG69","v":0},{"$f":"'2. Conservation Measures'!MH69","v":0},{"$f":"'2. Conservation Measures'!MI69","v":0},{"$f":"'2. Conservation Measures'!MJ69","v":0},{"$f":"'2. Conservation Measures'!MK69","v":0},{"$f":"'2. Conservation Measures'!ML69","v":0},{"$f":"'2. Conservation Measures'!MM69","v":0},{"$f":"'2. Conservation Measures'!MN69","v":0},null,{"$f":"'2. Conservation Measures'!EP69","v":0},{"$f":"'2. Conservation Measures'!EQ69","v":0},{"$f":"'2. Conservation Measures'!ER69","v":0},{"$f":"'2. Conservation Measures'!ES69","v":0},{"$f":"'2. Conservation Measures'!ET69","v":0},{"$f":"'2. Conservation Measures'!EU69","v":0},{"$f":"'2. Conservation Measures'!EV69","v":0},{"$f":"'2. Conservation Measures'!EW69","v":0},{"$f":"'2. Conservation Measures'!EX69","v":0},{"$f":"'2. Conservation Measures'!EY69","v":0},{"$f":"'2. Conservation Measures'!EZ69","v":0},{"$f":"'2. Conservation Measures'!FA69","v":0},{"$f":"'2. Conservation Measures'!FB69","v":0},{"$f":"'2. Conservation Measures'!FC69","v":0},{"$f":"'2. Conservation Measures'!FD69","v":0},{"$f":"'2. Conservation Measures'!FE69","v":0},{"$f":"'2. Conservation Measures'!FF69","v":0},{"$f":"'2. Conservation Measures'!FG69","v":0},{"$f":"'2. Conservation Measures'!FH69","v":0},{"$f":"'2. Conservation Measures'!FI69","v":0},{"$f":"'2. Conservation Measures'!FJ69","v":0},{"$f":"'2. Conservation Measures'!FK69","v":0},{"$f":"'2. Conservation Measures'!FL69","v":0},{"$f":"'2. Conservation Measures'!FM69","v":0},{"$f":"'2. Conservation Measures'!FN69","v":0},{"$f":"'2. Conservation Measures'!FO69","v":0},{"$f":"'2. Conservation Measures'!FP69","v":0},{"$f":"'2. Conservation Measures'!FQ69","v":0},{"$f":"'2. Conservation Measures'!FR69","v":0},{"$f":"'2. Conservation Measures'!FS69","v":0},{"$f":"'2. Conservation Measures'!FT69","v":0},{"$f":"'2. Conservation Measures'!FU69","v":0},{"$f":"'2. Conservation Measures'!FV69","v":0},{"$f":"'2. Conservation Measures'!FW69","v":0},{"$f":"'2. Conservation Measures'!FX69","v":0},{"$f":"'2. Conservation Measures'!FY69","v":0},{"$f":"'2. Conservation Measures'!FZ69","v":0},{"$f":"'2. Conservation Measures'!GA69","v":0},{"$f":"'2. Conservation Measures'!GB69","v":0},{"$f":"'2. Conservation Measures'!GC69","v":0},{"$f":"'2. Conservation Measures'!GD69","v":0},{"$f":"'2. Conservation Measures'!GE69","v":0},{"$f":"'2. Conservation Measures'!GF69","v":0},{"$f":"'2. Conservation Measures'!GG69","v":0},{"$f":"'2. Conservation Measures'!GH69","v":0},{"$f":"'2. Conservation Measures'!GI69","v":0},{"$f":"'2. Conservation Measures'!GJ69","v":0},{"$f":"'2. Conservation Measures'!GK69","v":0},{"$f":"'2. Conservation Measures'!GL69","v":0},{"$f":"'2. Conservation Measures'!GM69","v":0},{"$f":"'2. Conservation Measures'!GN69","v":0},null,{"$f":"'2. Conservation Measures'!GP69","v":0},{"$f":"'2. Conservation Measures'!GQ69","v":0},{"$f":"'2. Conservation Measures'!GR69","v":0},{"$f":"'2. Conservation Measures'!GS69","v":0},{"$f":"'2. Conservation Measures'!GT69","v":0},{"$f":"'2. Conservation Measures'!GU69","v":0},{"$f":"'2. Conservation Measures'!GV69","v":0},{"$f":"'2. Conservation Measures'!GW69","v":0},{"$f":"'2. Conservation Measures'!GX69","v":0},{"$f":"'2. Conservation Measures'!GY69","v":0},{"$f":"'2. Conservation Measures'!GZ69","v":0},{"$f":"'2. Conservation Measures'!HA69","v":0},{"$f":"'2. Conservation Measures'!HB69","v":0},{"$f":"'2. Conservation Measures'!HC69","v":0},{"$f":"'2. Conservation Measures'!HD69","v":0},{"$f":"'2. Conservation Measures'!HE69","v":0},{"$f":"'2. Conservation Measures'!HF69","v":0},{"$f":"'2. Conservation Measures'!HG69","v":0},{"$f":"'2. Conservation Measures'!HH69","v":0},{"$f":"'2. Conservation Measures'!HI69","v":0},{"$f":"'2. Conservation Measures'!HJ69","v":0},{"$f":"'2. Conservation Measures'!HK69","v":0},{"$f":"'2. Conservation Measures'!HL69","v":0},{"$f":"'2. Conservation Measures'!HM69","v":0},{"$f":"'2. Conservation Measures'!HN69","v":0},{"$f":"'2. Conservation Measures'!HO69","v":0},{"$f":"'2. Conservation Measures'!HP69","v":0},{"$f":"'2. Conservation Measures'!HQ69","v":0},{"$f":"'2. Conservation Measures'!HR69","v":0},{"$f":"'2. Conservation Measures'!HS69","v":0},{"$f":"'2. Conservation Measures'!HT69","v":0},{"$f":"'2. Conservation Measures'!HU69","v":0},{"$f":"'2. Conservation Measures'!HV69","v":0},{"$f":"'2. Conservation Measures'!HW69","v":0},{"$f":"'2. Conservation Measures'!HX69","v":0},{"$f":"'2. Conservation Measures'!HY69","v":0},{"$f":"'2. Conservation Measures'!HZ69","v":0},{"$f":"'2. Conservation Measures'!IA69","v":0},{"$f":"'2. Conservation Measures'!IB69","v":0},{"$f":"'2. Conservation Measures'!IC69","v":0},{"$f":"'2. Conservation Measures'!ID69","v":0},{"$f":"'2. Conservation Measures'!IE69","v":0},{"$f":"'2. Conservation Measures'!IF69","v":0},{"$f":"'2. Conservation Measures'!IG69","v":0},{"$f":"'2. Conservation Measures'!IH69","v":0},{"$f":"'2. Conservation Measures'!II69","v":0},{"$f":"'2. Conservation Measures'!IJ69","v":0},{"$f":"'2. Conservation Measures'!IK69","v":0},{"$f":"'2. Conservation Measures'!IL69","v":0},{"$f":"'2. Conservation Measures'!IM69","v":0},{"$f":"'2. Conservation Measures'!IN69","v":0},null,{"$f":"'2. Conservation Measures'!IP69","v":0},{"$f":"'2. Conservation Measures'!IQ69","v":0},{"$f":"'2. Conservation Measures'!IR69","v":0},{"$f":"'2. Conservation Measures'!IS69","v":0},{"$f":"'2. Conservation Measures'!IT69","v":0},{"$f":"'2. Conservation Measures'!IU69","v":0},{"$f":"'2. Conservation Measures'!IV69","v":0},{"$f":"'2. Conservation Measures'!IW69","v":0},{"$f":"'2. Conservation Measures'!IX69","v":0},{"$f":"'2. Conservation Measures'!IY69","v":0},{"$f":"'2. Conservation Measures'!IZ69","v":0},{"$f":"'2. Conservation Measures'!JA69","v":0},{"$f":"'2. Conservation Measures'!JB69","v":0},{"$f":"'2. Conservation Measures'!JC69","v":0},{"$f":"'2. Conservation Measures'!JD69","v":0},{"$f":"'2. Conservation Measures'!JE69","v":0},{"$f":"'2. Conservation Measures'!JF69","v":0},{"$f":"'2. Conservation Measures'!JG69","v":0},{"$f":"'2. Conservation Measures'!JH69","v":0},{"$f":"'2. Conservation Measures'!JI69","v":0},{"$f":"'2. Conservation Measures'!JJ69","v":0},{"$f":"'2. Conservation Measures'!JK69","v":0},{"$f":"'2. Conservation Measures'!JL69","v":0},{"$f":"'2. Conservation Measures'!JM69","v":0},{"$f":"'2. Conservation Measures'!JN69","v":0},{"$f":"'2. Conservation Measures'!JO69","v":0},{"$f":"'2. Conservation Measures'!JP69","v":0},{"$f":"'2. Conservation Measures'!JQ69","v":0},{"$f":"'2. Conservation Measures'!JR69","v":0},{"$f":"'2. Conservation Measures'!JS69","v":0},{"$f":"'2. Conservation Measures'!JT69","v":0},{"$f":"'2. Conservation Measures'!JU69","v":0},{"$f":"'2. Conservation Measures'!JV69","v":0},{"$f":"'2. Conservation Measures'!JW69","v":0},{"$f":"'2. Conservation Measures'!JX69","v":0},{"$f":"'2. Conservation Measures'!JY69","v":0},{"$f":"'2. Conservation Measures'!JZ69","v":0},{"$f":"'2. Conservation Measures'!KA69","v":0},{"$f":"'2. Conservation Measures'!KB69","v":0},{"$f":"'2. Conservation Measures'!KC69","v":0},{"$f":"'2. Conservation Measures'!KD69","v":0},{"$f":"'2. Conservation Measures'!KE69","v":0},{"$f":"'2. Conservation Measures'!KF69","v":0},{"$f":"'2. Conservation Measures'!KG69","v":0},{"$f":"'2. Conservation Measures'!KH69","v":0},{"$f":"'2. Conservation Measures'!KI69","v":0},{"$f":"'2. Conservation Measures'!KJ69","v":0},{"$f":"'2. Conservation Measures'!KK69","v":0},{"$f":"'2. Conservation Measures'!KL69","v":0},{"$f":"'2. Conservation Measures'!KM69","v":0},{"$f":"'2. Conservation Measures'!KN69","v":0}]
[null,{"$f":"'2. Conservation Measures'!B70","v":"USR-SF-07"},{"$f":"'2. Conservation Measures'!C70","v":0},{"$f":"'2. Conservation Measures'!D70","v":"N"},null,{"$f":"'2. Conservation Measures'!AA70","v":0},null,{"$f":"'2. Conservation Measures'!AO70","v":0},{"$f":"'2. Conservation Measures'!AP70","v":0},{"$f":"'2. Conservation Measures'!AQ70","v":0},{"$f":"'2. Conservation Measures'!AR70","v":0},{"$f":"'2. Conservation Measures'!AS70","v":0},{"$f":"'2. Conservation Measures'!AT70","v":0},{"$f":"'2. Conservation Measures'!AU70","v":0},{"$f":"'2. Conservation Measures'!AV70","v":0},{"$f":"'2. Conservation Measures'!AW70","v":0},{"$f":"'2. Conservation Measures'!AX70","v":0},{"$f":"'2. Conservation Measures'!AY70","v":0},{"$f":"'2. Conservation Measures'!AZ70","v":0},{"$f":"'2. Conservation Measures'!BA70","v":0},{"$f":"'2. Conservation Measures'!BB70","v":0},{"$f":"'2. Conservation Measures'!BC70","v":0},{"$f":"'2. Conservation Measures'!BD70","v":0},{"$f":"'2. Conservation Measures'!BE70","v":0},{"$f":"'2. Conservation Measures'!BF70","v":0},{"$f":"'2. Conservation Measures'!BG70","v":0},{"$f":"'2. Conservation Measures'!BH70","v":0},{"$f":"'2. Conservation Measures'!BI70","v":0},{"$f":"'2. Conservation Measures'!BJ70","v":0},{"$f":"'2. Conservation Measures'!BK70","v":0},{"$f":"'2. Conservation Measures'!BL70","v":0},{"$f":"'2. Conservation Measures'!BM70","v":0},{"$f":"'2. Conservation Measures'!BN70","v":0},{"$f":"'2. Conservation Measures'!BO70","v":0},{"$f":"'2. Conservation Measures'!BP70","v":0},{"$f":"'2. Conservation Measures'!BQ70","v":0},{"$f":"'2. Conservation Measures'!BR70","v":0},{"$f":"'2. Conservation Measures'!BS70","v":0},{"$f":"'2. Conservation Measures'!BT70","v":0},{"$f":"'2. Conservation Measures'!BU70","v":0},{"$f":"'2. Conservation Measures'!BV70","v":0},{"$f":"'2. Conservation Measures'!BW70","v":0},{"$f":"'2. Conservation Measures'!BX70","v":0},{"$f":"'2. Conservation Measures'!BY70","v":0},{"$f":"'2. Conservation Measures'!BZ70","v":0},{"$f":"'2. Conservation Measures'!CA70","v":0},{"$f":"'2. Conservation Measures'!CB70","v":0},{"$f":"'2. Conservation Measures'!CC70","v":0},{"$f":"'2. Conservation Measures'!CD70","v":0},{"$f":"'2. Conservation Measures'!CE70","v":0},{"$f":"'2. Conservation Measures'!CF70","v":0},{"$f":"'2. Conservation Measures'!CG70","v":0},{"$f":"'2. Conservation Measures'!CH70","v":0},{"$f":"'2. Conservation Measures'!CI70","v":0},{"$f":"'2. Conservation Measures'!CJ70","v":0},{"$f":"'2. Conservation Measures'!CK70","v":0},{"$f":"'2. Conservation Measures'!CL70","v":0},{"$f":"'2. Conservation Measures'!CM70","v":0},null,{"$f":"'2. Conservation Measures'!CO70","v":0},{"$f":"'2. Conservation Measures'!CP70","v":0},{"$f":"'2. Conservation Measures'!CQ70","v":0},{"$f":"'2. Conservation Measures'!CR70","v":0},{"$f":"'2. Conservation Measures'!CS70","v":0},{"$f":"'2. Conservation Measures'!CT70","v":0},{"$f":"'2. Conservation Measures'!CU70","v":0},{"$f":"'2. Conservation Measures'!CV70","v":0},{"$f":"'2. Conservation Measures'!CW70","v":0},{"$f":"'2. Conservation Measures'!CX70","v":0},{"$f":"'2. Conservation Measures'!CY70","v":0},{"$f":"'2. Conservation Measures'!CZ70","v":0},{"$f":"'2. Conservation Measures'!DA70","v":0},{"$f":"'2. Conservation Measures'!DB70","v":0},{"$f":"'2. Conservation Measures'!DC70","v":0},{"$f":"'2. Conservation Measures'!DD70","v":0},{"$f":"'2. Conservation Measures'!DE70","v":0},{"$f":"'2. Conservation Measures'!DF70","v":0},{"$f":"'2. Conservation Measures'!DG70","v":0},{"$f":"'2. Conservation Measures'!DH70","v":0},{"$f":"'2. Conservation Measures'!DI70","v":0},{"$f":"'2. Conservation Measures'!DJ70","v":0},{"$f":"'2. Conservation Measures'!DK70","v":0},{"$f":"'2. Conservation Measures'!DL70","v":0},{"$f":"'2. Conservation Measures'!DM70","v":0},{"$f":"'2. Conservation Measures'!DN70","v":0},{"$f":"'2. Conservation Measures'!DO70","v":0},{"$f":"'2. Conservation Measures'!DP70","v":0},{"$f":"'2. Conservation Measures'!DQ70","v":0},{"$f":"'2. Conservation Measures'!DR70","v":0},{"$f":"'2. Conservation Measures'!DS70","v":0},{"$f":"'2. Conservation Measures'!DT70","v":0},{"$f":"'2. Conservation Measures'!DU70","v":0},{"$f":"'2. Conservation Measures'!DV70","v":0},{"$f":"'2. Conservation Measures'!DW70","v":0},{"$f":"'2. Conservation Measures'!DX70","v":0},{"$f":"'2. Conservation Measures'!DY70","v":0},{"$f":"'2. Conservation Measures'!DZ70","v":0},{"$f":"'2. Conservation Measures'!EA70","v":0},{"$f":"'2. Conservation Measures'!EB70","v":0},{"$f":"'2. Conservation Measures'!EC70","v":0},{"$f":"'2. Conservation Measures'!ED70","v":0},{"$f":"'2. Conservation Measures'!EE70","v":0},{"$f":"'2. Conservation Measures'!EF70","v":0},{"$f":"'2. Conservation Measures'!EG70","v":0},{"$f":"'2. Conservation Measures'!EH70","v":0},{"$f":"'2. Conservation Measures'!EI70","v":0},{"$f":"'2. Conservation Measures'!EJ70","v":0},{"$f":"'2. Conservation Measures'!EK70","v":0},{"$f":"'2. Conservation Measures'!EL70","v":0},{"$f":"'2. Conservation Measures'!EM70","v":0},null,{"$f":"'2. Conservation Measures'!KP70","v":0},{"$f":"'2. Conservation Measures'!KQ70","v":0},{"$f":"'2. Conservation Measures'!KR70","v":0},{"$f":"'2. Conservation Measures'!KS70","v":0},{"$f":"'2. Conservation Measures'!KT70","v":0},{"$f":"'2. Conservation Measures'!KU70","v":0},{"$f":"'2. Conservation Measures'!KV70","v":0},{"$f":"'2. Conservation Measures'!KW70","v":0},{"$f":"'2. Conservation Measures'!KX70","v":0},{"$f":"'2. Conservation Measures'!KY70","v":0},{"$f":"'2. Conservation Measures'!KZ70","v":0},{"$f":"'2. Conservation Measures'!LA70","v":0},{"$f":"'2. Conservation Measures'!LB70","v":0},{"$f":"'2. Conservation Measures'!LC70","v":0},{"$f":"'2. Conservation Measures'!LD70","v":0},{"$f":"'2. Conservation Measures'!LE70","v":0},{"$f":"'2. Conservation Measures'!LF70","v":0},{"$f":"'2. Conservation Measures'!LG70","v":0},{"$f":"'2. Conservation Measures'!LH70","v":0},{"$f":"'2. Conservation Measures'!LI70","v":0},{"$f":"'2. Conservation Measures'!LJ70","v":0},{"$f":"'2. Conservation Measures'!LK70","v":0},{"$f":"'2. Conservation Measures'!LL70","v":0},{"$f":"'2. Conservation Measures'!LM70","v":0},{"$f":"'2. Conservation Measures'!LN70","v":0},{"$f":"'2. Conservation Measures'!LO70","v":0},{"$f":"'2. Conservation Measures'!LP70","v":0},{"$f":"'2. Conservation Measures'!LQ70","v":0},{"$f":"'2. Conservation Measures'!LR70","v":0},{"$f":"'2. Conservation Measures'!LS70","v":0},{"$f":"'2. Conservation Measures'!LT70","v":0},{"$f":"'2. Conservation Measures'!LU70","v":0},{"$f":"'2. Conservation Measures'!LV70","v":0},{"$f":"'2. Conservation Measures'!LW70","v":0},{"$f":"'2. Conservation Measures'!LX70","v":0},{"$f":"'2. Conservation Measures'!LY70","v":0},{"$f":"'2. Conservation Measures'!LZ70","v":0},{"$f":"'2. Conservation Measures'!MA70","v":0},{"$f":"'2. Conservation Measures'!MB70","v":0},{"$f":"'2. Conservation Measures'!MC70","v":0},{"$f":"'2. Conservation Measures'!MD70","v":0},{"$f":"'2. Conservation Measures'!ME70","v":0},{"$f":"'2. Conservation Measures'!MF70","v":0},{"$f":"'2. Conservation Measures'!MG70","v":0},{"$f":"'2. Conservation Measures'!MH70","v":0},{"$f":"'2. Conservation Measures'!MI70","v":0},{"$f":"'2. Conservation Measures'!MJ70","v":0},{"$f":"'2. Conservation Measures'!MK70","v":0},{"$f":"'2. Conservation Measures'!ML70","v":0},{"$f":"'2. Conservation Measures'!MM70","v":0},{"$f":"'2. Conservation Measures'!MN70","v":0},null,{"$f":"'2. Conservation Measures'!EP70","v":0},{"$f":"'2. Conservation Measures'!EQ70","v":0},{"$f":"'2. Conservation Measures'!ER70","v":0},{"$f":"'2. Conservation Measures'!ES70","v":0},{"$f":"'2. Conservation Measures'!ET70","v":0},{"$f":"'2. Conservation Measures'!EU70","v":0},{"$f":"'2. Conservation Measures'!EV70","v":0},{"$f":"'2. Conservation Measures'!EW70","v":0},{"$f":"'2. Conservation Measures'!EX70","v":0},{"$f":"'2. Conservation Measures'!EY70","v":0},{"$f":"'2. Conservation Measures'!EZ70","v":0},{"$f":"'2. Conservation Measures'!FA70","v":0},{"$f":"'2. Conservation Measures'!FB70","v":0},{"$f":"'2. Conservation Measures'!FC70","v":0},{"$f":"'2. Conservation Measures'!FD70","v":0},{"$f":"'2. Conservation Measures'!FE70","v":0},{"$f":"'2. Conservation Measures'!FF70","v":0},{"$f":"'2. Conservation Measures'!FG70","v":0},{"$f":"'2. Conservation Measures'!FH70","v":0},{"$f":"'2. Conservation Measures'!FI70","v":0},{"$f":"'2. Conservation Measures'!FJ70","v":0},{"$f":"'2. Conservation Measures'!FK70","v":0},{"$f":"'2. Conservation Measures'!FL70","v":0},{"$f":"'2. Conservation Measures'!FM70","v":0},{"$f":"'2. Conservation Measures'!FN70","v":0},{"$f":"'2. Conservation Measures'!FO70","v":0},{"$f":"'2. Conservation Measures'!FP70","v":0},{"$f":"'2. Conservation Measures'!FQ70","v":0},{"$f":"'2. Conservation Measures'!FR70","v":0},{"$f":"'2. Conservation Measures'!FS70","v":0},{"$f":"'2. Conservation Measures'!FT70","v":0},{"$f":"'2. Conservation Measures'!FU70","v":0},{"$f":"'2. Conservation Measures'!FV70","v":0},{"$f":"'2. Conservation Measures'!FW70","v":0},{"$f":"'2. Conservation Measures'!FX70","v":0},{"$f":"'2. Conservation Measures'!FY70","v":0},{"$f":"'2. Conservation Measures'!FZ70","v":0},{"$f":"'2. Conservation Measures'!GA70","v":0},{"$f":"'2. Conservation Measures'!GB70","v":0},{"$f":"'2. Conservation Measures'!GC70","v":0},{"$f":"'2. Conservation Measures'!GD70","v":0},{"$f":"'2. Conservation Measures'!GE70","v":0},{"$f":"'2. Conservation Measures'!GF70","v":0},{"$f":"'2. Conservation Measures'!GG70","v":0},{"$f":"'2. Conservation Measures'!GH70","v":0},{"$f":"'2. Conservation Measures'!GI70","v":0},{"$f":"'2. Conservation Measures'!GJ70","v":0},{"$f":"'2. Conservation Measures'!GK70","v":0},{"$f":"'2. Conservation Measures'!GL70","v":0},{"$f":"'2. Conservation Measures'!GM70","v":0},{"$f":"'2. Conservation Measures'!GN70","v":0},null,{"$f":"'2. Conservation Measures'!GP70","v":0},{"$f":"'2. Conservation Measures'!GQ70","v":0},{"$f":"'2. Conservation Measures'!GR70","v":0},{"$f":"'2. Conservation Measures'!GS70","v":0},{"$f":"'2. Conservation Measures'!GT70","v":0},{"$f":"'2. Conservation Measures'!GU70","v":0},{"$f":"'2. Conservation Measures'!GV70","v":0},{"$f":"'2. Conservation Measures'!GW70","v":0},{"$f":"'2. Conservation Measures'!GX70","v":0},{"$f":"'2. Conservation Measures'!GY70","v":0},{"$f":"'2. Conservation Measures'!GZ70","v":0},{"$f":"'2. Conservation Measures'!HA70","v":0},{"$f":"'2. Conservation Measures'!HB70","v":0},{"$f":"'2. Conservation Measures'!HC70","v":0},{"$f":"'2. Conservation Measures'!HD70","v":0},{"$f":"'2. Conservation Measures'!HE70","v":0},{"$f":"'2. Conservation Measures'!HF70","v":0},{"$f":"'2. Conservation Measures'!HG70","v":0},{"$f":"'2. Conservation Measures'!HH70","v":0},{"$f":"'2. Conservation Measures'!HI70","v":0},{"$f":"'2. Conservation Measures'!HJ70","v":0},{"$f":"'2. Conservation Measures'!HK70","v":0},{"$f":"'2. Conservation Measures'!HL70","v":0},{"$f":"'2. Conservation Measures'!HM70","v":0},{"$f":"'2. Conservation Measures'!HN70","v":0},{"$f":"'2. Conservation Measures'!HO70","v":0},{"$f":"'2. Conservation Measures'!HP70","v":0},{"$f":"'2. Conservation Measures'!HQ70","v":0},{"$f":"'2. Conservation Measures'!HR70","v":0},{"$f":"'2. Conservation Measures'!HS70","v":0},{"$f":"'2. Conservation Measures'!HT70","v":0},{"$f":"'2. Conservation Measures'!HU70","v":0},{"$f":"'2. Conservation Measures'!HV70","v":0},{"$f":"'2. Conservation Measures'!HW70","v":0},{"$f":"'2. Conservation Measures'!HX70","v":0},{"$f":"'2. Conservation Measures'!HY70","v":0},{"$f":"'2. Conservation Measures'!HZ70","v":0},{"$f":"'2. Conservation Measures'!IA70","v":0},{"$f":"'2. Conservation Measures'!IB70","v":0},{"$f":"'2. Conservation Measures'!IC70","v":0},{"$f":"'2. Conservation Measures'!ID70","v":0},{"$f":"'2. Conservation Measures'!IE70","v":0},{"$f":"'2. Conservation Measures'!IF70","v":0},{"$f":"'2. Conservation Measures'!IG70","v":0},{"$f":"'2. Conservation Measures'!IH70","v":0},{"$f":"'2. Conservation Measures'!II70","v":0},{"$f":"'2. Conservation Measures'!IJ70","v":0},{"$f":"'2. Conservation Measures'!IK70","v":0},{"$f":"'2. Conservation Measures'!IL70","v":0},{"$f":"'2. Conservation Measures'!IM70","v":0},{"$f":"'2. Conservation Measures'!IN70","v":0},null,{"$f":"'2. Conservation Measures'!IP70","v":0},{"$f":"'2. Conservation Measures'!IQ70","v":0},{"$f":"'2. Conservation Measures'!IR70","v":0},{"$f":"'2. Conservation Measures'!IS70","v":0},{"$f":"'2. Conservation Measures'!IT70","v":0},{"$f":"'2. Conservation Measures'!IU70","v":0},{"$f":"'2. Conservation Measures'!IV70","v":0},{"$f":"'2. Conservation Measures'!IW70","v":0},{"$f":"'2. Conservation Measures'!IX70","v":0},{"$f":"'2. Conservation Measures'!IY70","v":0},{"$f":"'2. Conservation Measures'!IZ70","v":0},{"$f":"'2. Conservation Measures'!JA70","v":0},{"$f":"'2. Conservation Measures'!JB70","v":0},{"$f":"'2. Conservation Measures'!JC70","v":0},{"$f":"'2. Conservation Measures'!JD70","v":0},{"$f":"'2. Conservation Measures'!JE70","v":0},{"$f":"'2. Conservation Measures'!JF70","v":0},{"$f":"'2. Conservation Measures'!JG70","v":0},{"$f":"'2. Conservation Measures'!JH70","v":0},{"$f":"'2. Conservation Measures'!JI70","v":0},{"$f":"'2. Conservation Measures'!JJ70","v":0},{"$f":"'2. Conservation Measures'!JK70","v":0},{"$f":"'2. Conservation Measures'!JL70","v":0},{"$f":"'2. Conservation Measures'!JM70","v":0},{"$f":"'2. Conservation Measures'!JN70","v":0},{"$f":"'2. Conservation Measures'!JO70","v":0},{"$f":"'2. Conservation Measures'!JP70","v":0},{"$f":"'2. Conservation Measures'!JQ70","v":0},{"$f":"'2. Conservation Measures'!JR70","v":0},{"$f":"'2. Conservation Measures'!JS70","v":0},{"$f":"'2. Conservation Measures'!JT70","v":0},{"$f":"'2. Conservation Measures'!JU70","v":0},{"$f":"'2. Conservation Measures'!JV70","v":0},{"$f":"'2. Conservation Measures'!JW70","v":0},{"$f":"'2. Conservation Measures'!JX70","v":0},{"$f":"'2. Conservation Measures'!JY70","v":0},{"$f":"'2. Conservation Measures'!JZ70","v":0},{"$f":"'2. Conservation Measures'!KA70","v":0},{"$f":"'2. Conservation Measures'!KB70","v":0},{"$f":"'2. Conservation Measures'!KC70","v":0},{"$f":"'2. Conservation Measures'!KD70","v":0},{"$f":"'2. Conservation Measures'!KE70","v":0},{"$f":"'2. Conservation Measures'!KF70","v":0},{"$f":"'2. Conservation Measures'!KG70","v":0},{"$f":"'2. Conservation Measures'!KH70","v":0},{"$f":"'2. Conservation Measures'!KI70","v":0},{"$f":"'2. Conservation Measures'!KJ70","v":0},{"$f":"'2. Conservation Measures'!KK70","v":0},{"$f":"'2. Conservation Measures'!KL70","v":0},{"$f":"'2. Conservation Measures'!KM70","v":0},{"$f":"'2. Conservation Measures'!KN70","v":0}]
[null,{"$f":"'2. Conservation Measures'!B71","v":"USR-SF-08"},{"$f":"'2. Conservation Measures'!C71","v":0},{"$f":"'2. Conservation Measures'!D71","v":"N"},null,{"$f":"'2. Conservation Measures'!AA71","v":0},null,{"$f":"'2. Conservation Measures'!AO71","v":0},{"$f":"'2. Conservation Measures'!AP71","v":0},{"$f":"'2. Conservation Measures'!AQ71","v":0},{"$f":"'2. Conservation Measures'!AR71","v":0},{"$f":"'2. Conservation Measures'!AS71","v":0},{"$f":"'2. Conservation Measures'!AT71","v":0},{"$f":"'2. Conservation Measures'!AU71","v":0},{"$f":"'2. Conservation Measures'!AV71","v":0},{"$f":"'2. Conservation Measures'!AW71","v":0},{"$f":"'2. Conservation Measures'!AX71","v":0},{"$f":"'2. Conservation Measures'!AY71","v":0},{"$f":"'2. Conservation Measures'!AZ71","v":0},{"$f":"'2. Conservation Measures'!BA71","v":0},{"$f":"'2. Conservation Measures'!BB71","v":0},{"$f":"'2. Conservation Measures'!BC71","v":0},{"$f":"'2. Conservation Measures'!BD71","v":0},{"$f":"'2. Conservation Measures'!BE71","v":0},{"$f":"'2. Conservation Measures'!BF71","v":0},{"$f":"'2. Conservation Measures'!BG71","v":0},{"$f":"'2. Conservation Measures'!BH71","v":0},{"$f":"'2. Conservation Measures'!BI71","v":0},{"$f":"'2. Conservation Measures'!BJ71","v":0},{"$f":"'2. Conservation Measures'!BK71","v":0},{"$f":"'2. Conservation Measures'!BL71","v":0},{"$f":"'2. Conservation Measures'!BM71","v":0},{"$f":"'2. Conservation Measures'!BN71","v":0},{"$f":"'2. Conservation Measures'!BO71","v":0},{"$f":"'2. Conservation Measures'!BP71","v":0},{"$f":"'2. Conservation Measures'!BQ71","v":0},{"$f":"'2. Conservation Measures'!BR71","v":0},{"$f":"'2. Conservation Measures'!BS71","v":0},{"$f":"'2. Conservation Measures'!BT71","v":0},{"$f":"'2. Conservation Measures'!BU71","v":0},{"$f":"'2. Conservation Measures'!BV71","v":0},{"$f":"'2. Conservation Measures'!BW71","v":0},{"$f":"'2. Conservation Measures'!BX71","v":0},{"$f":"'2. Conservation Measures'!BY71","v":0},{"$f":"'2. Conservation Measures'!BZ71","v":0},{"$f":"'2. Conservation Measures'!CA71","v":0},{"$f":"'2. Conservation Measures'!CB71","v":0},{"$f":"'2. Conservation Measures'!CC71","v":0},{"$f":"'2. Conservation Measures'!CD71","v":0},{"$f":"'2. Conservation Measures'!CE71","v":0},{"$f":"'2. Conservation Measures'!CF71","v":0},{"$f":"'2. Conservation Measures'!CG71","v":0},{"$f":"'2. Conservation Measures'!CH71","v":0},{"$f":"'2. Conservation Measures'!CI71","v":0},{"$f":"'2. Conservation Measures'!CJ71","v":0},{"$f":"'2. Conservation Measures'!CK71","v":0},{"$f":"'2. Conservation Measures'!CL71","v":0},{"$f":"'2. Conservation Measures'!CM71","v":0},null,{"$f":"'2. Conservation Measures'!CO71","v":0},{"$f":"'2. Conservation Measures'!CP71","v":0},{"$f":"'2. Conservation Measures'!CQ71","v":0},{"$f":"'2. Conservation Measures'!CR71","v":0},{"$f":"'2. Conservation Measures'!CS71","v":0},{"$f":"'2. Conservation Measures'!CT71","v":0},{"$f":"'2. Conservation Measures'!CU71","v":0},{"$f":"'2. Conservation Measures'!CV71","v":0},{"$f":"'2. Conservation Measures'!CW71","v":0},{"$f":"'2. Conservation Measures'!CX71","v":0},{"$f":"'2. Conservation Measures'!CY71","v":0},{"$f":"'2. Conservation Measures'!CZ71","v":0},{"$f":"'2. Conservation Measures'!DA71","v":0},{"$f":"'2. Conservation Measures'!DB71","v":0},{"$f":"'2. Conservation Measures'!DC71","v":0},{"$f":"'2. Conservation Measures'!DD71","v":0},{"$f":"'2. Conservation Measures'!DE71","v":0},{"$f":"'2. Conservation Measures'!DF71","v":0},{"$f":"'2. Conservation Measures'!DG71","v":0},{"$f":"'2. Conservation Measures'!DH71","v":0},{"$f":"'2. Conservation Measures'!DI71","v":0},{"$f":"'2. Conservation Measures'!DJ71","v":0},{"$f":"'2. Conservation Measures'!DK71","v":0},{"$f":"'2. Conservation Measures'!DL71","v":0},{"$f":"'2. Conservation Measures'!DM71","v":0},{"$f":"'2. Conservation Measures'!DN71","v":0},{"$f":"'2. Conservation Measures'!DO71","v":0},{"$f":"'2. Conservation Measures'!DP71","v":0},{"$f":"'2. Conservation Measures'!DQ71","v":0},{"$f":"'2. Conservation Measures'!DR71","v":0},{"$f":"'2. Conservation Measures'!DS71","v":0},{"$f":"'2. Conservation Measures'!DT71","v":0},{"$f":"'2. Conservation Measures'!DU71","v":0},{"$f":"'2. Conservation Measures'!DV71","v":0},{"$f":"'2. Conservation Measures'!DW71","v":0},{"$f":"'2. Conservation Measures'!DX71","v":0},{"$f":"'2. Conservation Measures'!DY71","v":0},{"$f":"'2. Conservation Measures'!DZ71","v":0},{"$f":"'2. Conservation Measures'!EA71","v":0},{"$f":"'2. Conservation Measures'!EB71","v":0},{"$f":"'2. Conservation Measures'!EC71","v":0},{"$f":"'2. Conservation Measures'!ED71","v":0},{"$f":"'2. Conservation Measures'!EE71","v":0},{"$f":"'2. Conservation Measures'!EF71","v":0},{"$f":"'2. Conservation Measures'!EG71","v":0},{"$f":"'2. Conservation Measures'!EH71","v":0},{"$f":"'2. Conservation Measures'!EI71","v":0},{"$f":"'2. Conservation Measures'!EJ71","v":0},{"$f":"'2. Conservation Measures'!EK71","v":0},{"$f":"'2. Conservation Measures'!EL71","v":0},{"$f":"'2. Conservation Measures'!EM71","v":0},null,{"$f":"'2. Conservation Measures'!KP71","v":0},{"$f":"'2. Conservation Measures'!KQ71","v":0},{"$f":"'2. Conservation Measures'!KR71","v":0},{"$f":"'2. Conservation Measures'!KS71","v":0},{"$f":"'2. Conservation Measures'!KT71","v":0},{"$f":"'2. Conservation Measures'!KU71","v":0},{"$f":"'2. Conservation Measures'!KV71","v":0},{"$f":"'2. Conservation Measures'!KW71","v":0},{"$f":"'2. Conservation Measures'!KX71","v":0},{"$f":"'2. Conservation Measures'!KY71","v":0},{"$f":"'2. Conservation Measures'!KZ71","v":0},{"$f":"'2. Conservation Measures'!LA71","v":0},{"$f":"'2. Conservation Measures'!LB71","v":0},{"$f":"'2. Conservation Measures'!LC71","v":0},{"$f":"'2. Conservation Measures'!LD71","v":0},{"$f":"'2. Conservation Measures'!LE71","v":0},{"$f":"'2. Conservation Measures'!LF71","v":0},{"$f":"'2. Conservation Measures'!LG71","v":0},{"$f":"'2. Conservation Measures'!LH71","v":0},{"$f":"'2. Conservation Measures'!LI71","v":0},{"$f":"'2. Conservation Measures'!LJ71","v":0},{"$f":"'2. Conservation Measures'!LK71","v":0},{"$f":"'2. Conservation Measures'!LL71","v":0},{"$f":"'2. Conservation Measures'!LM71","v":0},{"$f":"'2. Conservation Measures'!LN71","v":0},{"$f":"'2. Conservation Measures'!LO71","v":0},{"$f":"'2. Conservation Measures'!LP71","v":0},{"$f":"'2. Conservation Measures'!LQ71","v":0},{"$f":"'2. Conservation Measures'!LR71","v":0},{"$f":"'2. Conservation Measures'!LS71","v":0},{"$f":"'2. Conservation Measures'!LT71","v":0},{"$f":"'2. Conservation Measures'!LU71","v":0},{"$f":"'2. Conservation Measures'!LV71","v":0},{"$f":"'2. Conservation Measures'!LW71","v":0},{"$f":"'2. Conservation Measures'!LX71","v":0},{"$f":"'2. Conservation Measures'!LY71","v":0},{"$f":"'2. Conservation Measures'!LZ71","v":0},{"$f":"'2. Conservation Measures'!MA71","v":0},{"$f":"'2. Conservation Measures'!MB71","v":0},{"$f":"'2. Conservation Measures'!MC71","v":0},{"$f":"'2. Conservation Measures'!MD71","v":0},{"$f":"'2. Conservation Measures'!ME71","v":0},{"$f":"'2. Conservation Measures'!MF71","v":0},{"$f":"'2. Conservation Measures'!MG71","v":0},{"$f":"'2. Conservation Measures'!MH71","v":0},{"$f":"'2. Conservation Measures'!MI71","v":0},{"$f":"'2. Conservation Measures'!MJ71","v":0},{"$f":"'2. Conservation Measures'!MK71","v":0},{"$f":"'2. Conservation Measures'!ML71","v":0},{"$f":"'2. Conservation Measures'!MM71","v":0},{"$f":"'2. Conservation Measures'!MN71","v":0},null,{"$f":"'2. Conservation Measures'!EP71","v":0},{"$f":"'2. Conservation Measures'!EQ71","v":0},{"$f":"'2. Conservation Measures'!ER71","v":0},{"$f":"'2. Conservation Measures'!ES71","v":0},{"$f":"'2. Conservation Measures'!ET71","v":0},{"$f":"'2. Conservation Measures'!EU71","v":0},{"$f":"'2. Conservation Measures'!EV71","v":0},{"$f":"'2. Conservation Measures'!EW71","v":0},{"$f":"'2. Conservation Measures'!EX71","v":0},{"$f":"'2. Conservation Measures'!EY71","v":0},{"$f":"'2. Conservation Measures'!EZ71","v":0},{"$f":"'2. Conservation Measures'!FA71","v":0},{"$f":"'2. Conservation Measures'!FB71","v":0},{"$f":"'2. Conservation Measures'!FC71","v":0},{"$f":"'2. Conservation Measures'!FD71","v":0},{"$f":"'2. Conservation Measures'!FE71","v":0},{"$f":"'2. Conservation Measures'!FF71","v":0},{"$f":"'2. Conservation Measures'!FG71","v":0},{"$f":"'2. Conservation Measures'!FH71","v":0},{"$f":"'2. Conservation Measures'!FI71","v":0},{"$f":"'2. Conservation Measures'!FJ71","v":0},{"$f":"'2. Conservation Measures'!FK71","v":0},{"$f":"'2. Conservation Measures'!FL71","v":0},{"$f":"'2. Conservation Measures'!FM71","v":0},{"$f":"'2. Conservation Measures'!FN71","v":0},{"$f":"'2. Conservation Measures'!FO71","v":0},{"$f":"'2. Conservation Measures'!FP71","v":0},{"$f":"'2. Conservation Measures'!FQ71","v":0},{"$f":"'2. Conservation Measures'!FR71","v":0},{"$f":"'2. Conservation Measures'!FS71","v":0},{"$f":"'2. Conservation Measures'!FT71","v":0},{"$f":"'2. Conservation Measures'!FU71","v":0},{"$f":"'2. Conservation Measures'!FV71","v":0},{"$f":"'2. Conservation Measures'!FW71","v":0},{"$f":"'2. Conservation Measures'!FX71","v":0},{"$f":"'2. Conservation Measures'!FY71","v":0},{"$f":"'2. Conservation Measures'!FZ71","v":0},{"$f":"'2. Conservation Measures'!GA71","v":0},{"$f":"'2. Conservation Measures'!GB71","v":0},{"$f":"'2. Conservation Measures'!GC71","v":0},{"$f":"'2. Conservation Measures'!GD71","v":0},{"$f":"'2. Conservation Measures'!GE71","v":0},{"$f":"'2. Conservation Measures'!GF71","v":0},{"$f":"'2. Conservation Measures'!GG71","v":0},{"$f":"'2. Conservation Measures'!GH71","v":0},{"$f":"'2. Conservation Measures'!GI71","v":0},{"$f":"'2. Conservation Measures'!GJ71","v":0},{"$f":"'2. Conservation Measures'!GK71","v":0},{"$f":"'2. Conservation Measures'!GL71","v":0},{"$f":"'2. Conservation Measures'!GM71","v":0},{"$f":"'2. Conservation Measures'!GN71","v":0},null,{"$f":"'2. Conservation Measures'!GP71","v":0},{"$f":"'2. Conservation Measures'!GQ71","v":0},{"$f":"'2. Conservation Measures'!GR71","v":0},{"$f":"'2. Conservation Measures'!GS71","v":0},{"$f":"'2. Conservation Measures'!GT71","v":0},{"$f":"'2. Conservation Measures'!GU71","v":0},{"$f":"'2. Conservation Measures'!GV71","v":0},{"$f":"'2. Conservation Measures'!GW71","v":0},{"$f":"'2. Conservation Measures'!GX71","v":0},{"$f":"'2. Conservation Measures'!GY71","v":0},{"$f":"'2. Conservation Measures'!GZ71","v":0},{"$f":"'2. Conservation Measures'!HA71","v":0},{"$f":"'2. Conservation Measures'!HB71","v":0},{"$f":"'2. Conservation Measures'!HC71","v":0},{"$f":"'2. Conservation Measures'!HD71","v":0},{"$f":"'2. Conservation Measures'!HE71","v":0},{"$f":"'2. Conservation Measures'!HF71","v":0},{"$f":"'2. Conservation Measures'!HG71","v":0},{"$f":"'2. Conservation Measures'!HH71","v":0},{"$f":"'2. Conservation Measures'!HI71","v":0},{"$f":"'2. Conservation Measures'!HJ71","v":0},{"$f":"'2. Conservation Measures'!HK71","v":0},{"$f":"'2. Conservation Measures'!HL71","v":0},{"$f":"'2. Conservation Measures'!HM71","v":0},{"$f":"'2. Conservation Measures'!HN71","v":0},{"$f":"'2. Conservation Measures'!HO71","v":0},{"$f":"'2. Conservation Measures'!HP71","v":0},{"$f":"'2. Conservation Measures'!HQ71","v":0},{"$f":"'2. Conservation Measures'!HR71","v":0},{"$f":"'2. Conservation Measures'!HS71","v":0},{"$f":"'2. Conservation Measures'!HT71","v":0},{"$f":"'2. Conservation Measures'!HU71","v":0},{"$f":"'2. Conservation Measures'!HV71","v":0},{"$f":"'2. Conservation Measures'!HW71","v":0},{"$f":"'2. Conservation Measures'!HX71","v":0},{"$f":"'2. Conservation Measures'!HY71","v":0},{"$f":"'2. Conservation Measures'!HZ71","v":0},{"$f":"'2. Conservation Measures'!IA71","v":0},{"$f":"'2. Conservation Measures'!IB71","v":0},{"$f":"'2. Conservation Measures'!IC71","v":0},{"$f":"'2. Conservation Measures'!ID71","v":0},{"$f":"'2. Conservation Measures'!IE71","v":0},{"$f":"'2. Conservation Measures'!IF71","v":0},{"$f":"'2. Conservation Measures'!IG71","v":0},{"$f":"'2. Conservation Measures'!IH71","v":0},{"$f":"'2. Conservation Measures'!II71","v":0},{"$f":"'2. Conservation Measures'!IJ71","v":0},{"$f":"'2. Conservation Measures'!IK71","v":0},{"$f":"'2. Conservation Measures'!IL71","v":0},{"$f":"'2. Conservation Measures'!IM71","v":0},{"$f":"'2. Conservation Measures'!IN71","v":0},null,{"$f":"'2. Conservation Measures'!IP71","v":0},{"$f":"'2. Conservation Measures'!IQ71","v":0},{"$f":"'2. Conservation Measures'!IR71","v":0},{"$f":"'2. Conservation Measures'!IS71","v":0},{"$f":"'2. Conservation Measures'!IT71","v":0},{"$f":"'2. Conservation Measures'!IU71","v":0},{"$f":"'2. Conservation Measures'!IV71","v":0},{"$f":"'2. Conservation Measures'!IW71","v":0},{"$f":"'2. Conservation Measures'!IX71","v":0},{"$f":"'2. Conservation Measures'!IY71","v":0},{"$f":"'2. Conservation Measures'!IZ71","v":0},{"$f":"'2. Conservation Measures'!JA71","v":0},{"$f":"'2. Conservation Measures'!JB71","v":0},{"$f":"'2. Conservation Measures'!JC71","v":0},{"$f":"'2. Conservation Measures'!JD71","v":0},{"$f":"'2. Conservation Measures'!JE71","v":0},{"$f":"'2. Conservation Measures'!JF71","v":0},{"$f":"'2. Conservation Measures'!JG71","v":0},{"$f":"'2. Conservation Measures'!JH71","v":0},{"$f":"'2. Conservation Measures'!JI71","v":0},{"$f":"'2. Conservation Measures'!JJ71","v":0},{"$f":"'2. Conservation Measures'!JK71","v":0},{"$f":"'2. Conservation Measures'!JL71","v":0},{"$f":"'2. Conservation Measures'!JM71","v":0},{"$f":"'2. Conservation Measures'!JN71","v":0},{"$f":"'2. Conservation Measures'!JO71","v":0},{"$f":"'2. Conservation Measures'!JP71","v":0},{"$f":"'2. Conservation Measures'!JQ71","v":0},{"$f":"'2. Conservation Measures'!JR71","v":0},{"$f":"'2. Conservation Measures'!JS71","v":0},{"$f":"'2. Conservation Measures'!JT71","v":0},{"$f":"'2. Conservation Measures'!JU71","v":0},{"$f":"'2. Conservation Measures'!JV71","v":0},{"$f":"'2. Conservation Measures'!JW71","v":0},{"$f":"'2. Conservation Measures'!JX71","v":0},{"$f":"'2. Conservation Measures'!JY71","v":0},{"$f":"'2. Conservation Measures'!JZ71","v":0},{"$f":"'2. Conservation Measures'!KA71","v":0},{"$f":"'2. Conservation Measures'!KB71","v":0},{"$f":"'2. Conservation Measures'!KC71","v":0},{"$f":"'2. Conservation Measures'!KD71","v":0},{"$f":"'2. Conservation Measures'!KE71","v":0},{"$f":"'2. Conservation Measures'!KF71","v":0},{"$f":"'2. Conservation Measures'!KG71","v":0},{"$f":"'2. Conservation Measures'!KH71","v":0},{"$f":"'2. Conservation Measures'!KI71","v":0},{"$f":"'2. Conservation Measures'!KJ71","v":0},{"$f":"'2. Conservation Measures'!KK71","v":0},{"$f":"'2. Conservation Measures'!KL71","v":0},{"$f":"'2. Conservation Measures'!KM71","v":0},{"$f":"'2. Conservation Measures'!KN71","v":0}]
[null,{"$f":"'2. Conservation Measures'!B72","v":"USR-SF-09"},{"$f":"'2. Conservation Measures'!C72","v":0},{"$f":"'2. Conservation Measures'!D72","v":"N"},null,{"$f":"'2. Conservation Measures'!AA72","v":0},null,{"$f":"'2. Conservation Measures'!AO72","v":0},{"$f":"'2. Conservation Measures'!AP72","v":0},{"$f":"'2. Conservation Measures'!AQ72","v":0},{"$f":"'2. Conservation Measures'!AR72","v":0},{"$f":"'2. Conservation Measures'!AS72","v":0},{"$f":"'2. Conservation Measures'!AT72","v":0},{"$f":"'2. Conservation Measures'!AU72","v":0},{"$f":"'2. Conservation Measures'!AV72","v":0},{"$f":"'2. Conservation Measures'!AW72","v":0},{"$f":"'2. Conservation Measures'!AX72","v":0},{"$f":"'2. Conservation Measures'!AY72","v":0},{"$f":"'2. Conservation Measures'!AZ72","v":0},{"$f":"'2. Conservation Measures'!BA72","v":0},{"$f":"'2. Conservation Measures'!BB72","v":0},{"$f":"'2. Conservation Measures'!BC72","v":0},{"$f":"'2. Conservation Measures'!BD72","v":0},{"$f":"'2. Conservation Measures'!BE72","v":0},{"$f":"'2. Conservation Measures'!BF72","v":0},{"$f":"'2. Conservation Measures'!BG72","v":0},{"$f":"'2. Conservation Measures'!BH72","v":0},{"$f":"'2. Conservation Measures'!BI72","v":0},{"$f":"'2. Conservation Measures'!BJ72","v":0},{"$f":"'2. Conservation Measures'!BK72","v":0},{"$f":"'2. Conservation Measures'!BL72","v":0},{"$f":"'2. Conservation Measures'!BM72","v":0},{"$f":"'2. Conservation Measures'!BN72","v":0},{"$f":"'2. Conservation Measures'!BO72","v":0},{"$f":"'2. Conservation Measures'!BP72","v":0},{"$f":"'2. Conservation Measures'!BQ72","v":0},{"$f":"'2. Conservation Measures'!BR72","v":0},{"$f":"'2. Conservation Measures'!BS72","v":0},{"$f":"'2. Conservation Measures'!BT72","v":0},{"$f":"'2. Conservation Measures'!BU72","v":0},{"$f":"'2. Conservation Measures'!BV72","v":0},{"$f":"'2. Conservation Measures'!BW72","v":0},{"$f":"'2. Conservation Measures'!BX72","v":0},{"$f":"'2. Conservation Measures'!BY72","v":0},{"$f":"'2. Conservation Measures'!BZ72","v":0},{"$f":"'2. Conservation Measures'!CA72","v":0},{"$f":"'2. Conservation Measures'!CB72","v":0},{"$f":"'2. Conservation Measures'!CC72","v":0},{"$f":"'2. Conservation Measures'!CD72","v":0},{"$f":"'2. Conservation Measures'!CE72","v":0},{"$f":"'2. Conservation Measures'!CF72","v":0},{"$f":"'2. Conservation Measures'!CG72","v":0},{"$f":"'2. Conservation Measures'!CH72","v":0},{"$f":"'2. Conservation Measures'!CI72","v":0},{"$f":"'2. Conservation Measures'!CJ72","v":0},{"$f":"'2. Conservation Measures'!CK72","v":0},{"$f":"'2. Conservation Measures'!CL72","v":0},{"$f":"'2. Conservation Measures'!CM72","v":0},null,{"$f":"'2. Conservation Measures'!CO72","v":0},{"$f":"'2. Conservation Measures'!CP72","v":0},{"$f":"'2. Conservation Measures'!CQ72","v":0},{"$f":"'2. Conservation Measures'!CR72","v":0},{"$f":"'2. Conservation Measures'!CS72","v":0},{"$f":"'2. Conservation Measures'!CT72","v":0},{"$f":"'2. Conservation Measures'!CU72","v":0},{"$f":"'2. Conservation Measures'!CV72","v":0},{"$f":"'2. Conservation Measures'!CW72","v":0},{"$f":"'2. Conservation Measures'!CX72","v":0},{"$f":"'2. Conservation Measures'!CY72","v":0},{"$f":"'2. Conservation Measures'!CZ72","v":0},{"$f":"'2. Conservation Measures'!DA72","v":0},{"$f":"'2. Conservation Measures'!DB72","v":0},{"$f":"'2. Conservation Measures'!DC72","v":0},{"$f":"'2. Conservation Measures'!DD72","v":0},{"$f":"'2. Conservation Measures'!DE72","v":0},{"$f":"'2. Conservation Measures'!DF72","v":0},{"$f":"'2. Conservation Measures'!DG72","v":0},{"$f":"'2. Conservation Measures'!DH72","v":0},{"$f":"'2. Conservation Measures'!DI72","v":0},{"$f":"'2. Conservation Measures'!DJ72","v":0},{"$f":"'2. Conservation Measures'!DK72","v":0},{"$f":"'2. Conservation Measures'!DL72","v":0},{"$f":"'2. Conservation Measures'!DM72","v":0},{"$f":"'2. Conservation Measures'!DN72","v":0},{"$f":"'2. Conservation Measures'!DO72","v":0},{"$f":"'2. Conservation Measures'!DP72","v":0},{"$f":"'2. Conservation Measures'!DQ72","v":0},{"$f":"'2. Conservation Measures'!DR72","v":0},{"$f":"'2. Conservation Measures'!DS72","v":0},{"$f":"'2. Conservation Measures'!DT72","v":0},{"$f":"'2. Conservation Measures'!DU72","v":0},{"$f":"'2. Conservation Measures'!DV72","v":0},{"$f":"'2. Conservation Measures'!DW72","v":0},{"$f":"'2. Conservation Measures'!DX72","v":0},{"$f":"'2. Conservation Measures'!DY72","v":0},{"$f":"'2. Conservation Measures'!DZ72","v":0},{"$f":"'2. Conservation Measures'!EA72","v":0},{"$f":"'2. Conservation Measures'!EB72","v":0},{"$f":"'2. Conservation Measures'!EC72","v":0},{"$f":"'2. Conservation Measures'!ED72","v":0},{"$f":"'2. Conservation Measures'!EE72","v":0},{"$f":"'2. Conservation Measures'!EF72","v":0},{"$f":"'2. Conservation Measures'!EG72","v":0},{"$f":"'2. Conservation Measures'!EH72","v":0},{"$f":"'2. Conservation Measures'!EI72","v":0},{"$f":"'2. Conservation Measures'!EJ72","v":0},{"$f":"'2. Conservation Measures'!EK72","v":0},{"$f":"'2. Conservation Measures'!EL72","v":0},{"$f":"'2. Conservation Measures'!EM72","v":0},null,{"$f":"'2. Conservation Measures'!KP72","v":0},{"$f":"'2. Conservation Measures'!KQ72","v":0},{"$f":"'2. Conservation Measures'!KR72","v":0},{"$f":"'2. Conservation Measures'!KS72","v":0},{"$f":"'2. Conservation Measures'!KT72","v":0},{"$f":"'2. Conservation Measures'!KU72","v":0},{"$f":"'2. Conservation Measures'!KV72","v":0},{"$f":"'2. Conservation Measures'!KW72","v":0},{"$f":"'2. Conservation Measures'!KX72","v":0},{"$f":"'2. Conservation Measures'!KY72","v":0},{"$f":"'2. Conservation Measures'!KZ72","v":0},{"$f":"'2. Conservation Measures'!LA72","v":0},{"$f":"'2. Conservation Measures'!LB72","v":0},{"$f":"'2. Conservation Measures'!LC72","v":0},{"$f":"'2. Conservation Measures'!LD72","v":0},{"$f":"'2. Conservation Measures'!LE72","v":0},{"$f":"'2. Conservation Measures'!LF72","v":0},{"$f":"'2. Conservation Measures'!LG72","v":0},{"$f":"'2. Conservation Measures'!LH72","v":0},{"$f":"'2. Conservation Measures'!LI72","v":0},{"$f":"'2. Conservation Measures'!LJ72","v":0},{"$f":"'2. Conservation Measures'!LK72","v":0},{"$f":"'2. Conservation Measures'!LL72","v":0},{"$f":"'2. Conservation Measures'!LM72","v":0},{"$f":"'2. Conservation Measures'!LN72","v":0},{"$f":"'2. Conservation Measures'!LO72","v":0},{"$f":"'2. Conservation Measures'!LP72","v":0},{"$f":"'2. Conservation Measures'!LQ72","v":0},{"$f":"'2. Conservation Measures'!LR72","v":0},{"$f":"'2. Conservation Measures'!LS72","v":0},{"$f":"'2. Conservation Measures'!LT72","v":0},{"$f":"'2. Conservation Measures'!LU72","v":0},{"$f":"'2. Conservation Measures'!LV72","v":0},{"$f":"'2. Conservation Measures'!LW72","v":0},{"$f":"'2. Conservation Measures'!LX72","v":0},{"$f":"'2. Conservation Measures'!LY72","v":0},{"$f":"'2. Conservation Measures'!LZ72","v":0},{"$f":"'2. Conservation Measures'!MA72","v":0},{"$f":"'2. Conservation Measures'!MB72","v":0},{"$f":"'2. Conservation Measures'!MC72","v":0},{"$f":"'2. Conservation Measures'!MD72","v":0},{"$f":"'2. Conservation Measures'!ME72","v":0},{"$f":"'2. Conservation Measures'!MF72","v":0},{"$f":"'2. Conservation Measures'!MG72","v":0},{"$f":"'2. Conservation Measures'!MH72","v":0},{"$f":"'2. Conservation Measures'!MI72","v":0},{"$f":"'2. Conservation Measures'!MJ72","v":0},{"$f":"'2. Conservation Measures'!MK72","v":0},{"$f":"'2. Conservation Measures'!ML72","v":0},{"$f":"'2. Conservation Measures'!MM72","v":0},{"$f":"'2. Conservation Measures'!MN72","v":0},null,{"$f":"'2. Conservation Measures'!EP72","v":0},{"$f":"'2. Conservation Measures'!EQ72","v":0},{"$f":"'2. Conservation Measures'!ER72","v":0},{"$f":"'2. Conservation Measures'!ES72","v":0},{"$f":"'2. Conservation Measures'!ET72","v":0},{"$f":"'2. Conservation Measures'!EU72","v":0},{"$f":"'2. Conservation Measures'!EV72","v":0},{"$f":"'2. Conservation Measures'!EW72","v":0},{"$f":"'2. Conservation Measures'!EX72","v":0},{"$f":"'2. Conservation Measures'!EY72","v":0},{"$f":"'2. Conservation Measures'!EZ72","v":0},{"$f":"'2. Conservation Measures'!FA72","v":0},{"$f":"'2. Conservation Measures'!FB72","v":0},{"$f":"'2. Conservation Measures'!FC72","v":0},{"$f":"'2. Conservation Measures'!FD72","v":0},{"$f":"'2. Conservation Measures'!FE72","v":0},{"$f":"'2. Conservation Measures'!FF72","v":0},{"$f":"'2. Conservation Measures'!FG72","v":0},{"$f":"'2. Conservation Measures'!FH72","v":0},{"$f":"'2. Conservation Measures'!FI72","v":0},{"$f":"'2. Conservation Measures'!FJ72","v":0},{"$f":"'2. Conservation Measures'!FK72","v":0},{"$f":"'2. Conservation Measures'!FL72","v":0},{"$f":"'2. Conservation Measures'!FM72","v":0},{"$f":"'2. Conservation Measures'!FN72","v":0},{"$f":"'2. Conservation Measures'!FO72","v":0},{"$f":"'2. Conservation Measures'!FP72","v":0},{"$f":"'2. Conservation Measures'!FQ72","v":0},{"$f":"'2. Conservation Measures'!FR72","v":0},{"$f":"'2. Conservation Measures'!FS72","v":0},{"$f":"'2. Conservation Measures'!FT72","v":0},{"$f":"'2. Conservation Measures'!FU72","v":0},{"$f":"'2. Conservation Measures'!FV72","v":0},{"$f":"'2. Conservation Measures'!FW72","v":0},{"$f":"'2. Conservation Measures'!FX72","v":0},{"$f":"'2. Conservation Measures'!FY72","v":0},{"$f":"'2. Conservation Measures'!FZ72","v":0},{"$f":"'2. Conservation Measures'!GA72","v":0},{"$f":"'2. Conservation Measures'!GB72","v":0},{"$f":"'2. Conservation Measures'!GC72","v":0},{"$f":"'2. Conservation Measures'!GD72","v":0},{"$f":"'2. Conservation Measures'!GE72","v":0},{"$f":"'2. Conservation Measures'!GF72","v":0},{"$f":"'2. Conservation Measures'!GG72","v":0},{"$f":"'2. Conservation Measures'!GH72","v":0},{"$f":"'2. Conservation Measures'!GI72","v":0},{"$f":"'2. Conservation Measures'!GJ72","v":0},{"$f":"'2. Conservation Measures'!GK72","v":0},{"$f":"'2. Conservation Measures'!GL72","v":0},{"$f":"'2. Conservation Measures'!GM72","v":0},{"$f":"'2. Conservation Measures'!GN72","v":0},null,{"$f":"'2. Conservation Measures'!GP72","v":0},{"$f":"'2. Conservation Measures'!GQ72","v":0},{"$f":"'2. Conservation Measures'!GR72","v":0},{"$f":"'2. Conservation Measures'!GS72","v":0},{"$f":"'2. Conservation Measures'!GT72","v":0},{"$f":"'2. Conservation Measures'!GU72","v":0},{"$f":"'2. Conservation Measures'!GV72","v":0},{"$f":"'2. Conservation Measures'!GW72","v":0},{"$f":"'2. Conservation Measures'!GX72","v":0},{"$f":"'2. Conservation Measures'!GY72","v":0},{"$f":"'2. Conservation Measures'!GZ72","v":0},{"$f":"'2. Conservation Measures'!HA72","v":0},{"$f":"'2. Conservation Measures'!HB72","v":0},{"$f":"'2. Conservation Measures'!HC72","v":0},{"$f":"'2. Conservation Measures'!HD72","v":0},{"$f":"'2. Conservation Measures'!HE72","v":0},{"$f":"'2. Conservation Measures'!HF72","v":0},{"$f":"'2. Conservation Measures'!HG72","v":0},{"$f":"'2. Conservation Measures'!HH72","v":0},{"$f":"'2. Conservation Measures'!HI72","v":0},{"$f":"'2. Conservation Measures'!HJ72","v":0},{"$f":"'2. Conservation Measures'!HK72","v":0},{"$f":"'2. Conservation Measures'!HL72","v":0},{"$f":"'2. Conservation Measures'!HM72","v":0},{"$f":"'2. Conservation Measures'!HN72","v":0},{"$f":"'2. Conservation Measures'!HO72","v":0},{"$f":"'2. Conservation Measures'!HP72","v":0},{"$f":"'2. Conservation Measures'!HQ72","v":0},{"$f":"'2. Conservation Measures'!HR72","v":0},{"$f":"'2. Conservation Measures'!HS72","v":0},{"$f":"'2. Conservation Measures'!HT72","v":0},{"$f":"'2. Conservation Measures'!HU72","v":0},{"$f":"'2. Conservation Measures'!HV72","v":0},{"$f":"'2. Conservation Measures'!HW72","v":0},{"$f":"'2. Conservation Measures'!HX72","v":0},{"$f":"'2. Conservation Measures'!HY72","v":0},{"$f":"'2. Conservation Measures'!HZ72","v":0},{"$f":"'2. Conservation Measures'!IA72","v":0},{"$f":"'2. Conservation Measures'!IB72","v":0},{"$f":"'2. Conservation Measures'!IC72","v":0},{"$f":"'2. Conservation Measures'!ID72","v":0},{"$f":"'2. Conservation Measures'!IE72","v":0},{"$f":"'2. Conservation Measures'!IF72","v":0},{"$f":"'2. Conservation Measures'!IG72","v":0},{"$f":"'2. Conservation Measures'!IH72","v":0},{"$f":"'2. Conservation Measures'!II72","v":0},{"$f":"'2. Conservation Measures'!IJ72","v":0},{"$f":"'2. Conservation Measures'!IK72","v":0},{"$f":"'2. Conservation Measures'!IL72","v":0},{"$f":"'2. Conservation Measures'!IM72","v":0},{"$f":"'2. Conservation Measures'!IN72","v":0},null,{"$f":"'2. Conservation Measures'!IP72","v":0},{"$f":"'2. Conservation Measures'!IQ72","v":0},{"$f":"'2. Conservation Measures'!IR72","v":0},{"$f":"'2. Conservation Measures'!IS72","v":0},{"$f":"'2. Conservation Measures'!IT72","v":0},{"$f":"'2. Conservation Measures'!IU72","v":0},{"$f":"'2. Conservation Measures'!IV72","v":0},{"$f":"'2. Conservation Measures'!IW72","v":0},{"$f":"'2. Conservation Measures'!IX72","v":0},{"$f":"'2. Conservation Measures'!IY72","v":0},{"$f":"'2. Conservation Measures'!IZ72","v":0},{"$f":"'2. Conservation Measures'!JA72","v":0},{"$f":"'2. Conservation Measures'!JB72","v":0},{"$f":"'2. Conservation Measures'!JC72","v":0},{"$f":"'2. Conservation Measures'!JD72","v":0},{"$f":"'2. Conservation Measures'!JE72","v":0},{"$f":"'2. Conservation Measures'!JF72","v":0},{"$f":"'2. Conservation Measures'!JG72","v":0},{"$f":"'2. Conservation Measures'!JH72","v":0},{"$f":"'2. Conservation Measures'!JI72","v":0},{"$f":"'2. Conservation Measures'!JJ72","v":0},{"$f":"'2. Conservation Measures'!JK72","v":0},{"$f":"'2. Conservation Measures'!JL72","v":0},{"$f":"'2. Conservation Measures'!JM72","v":0},{"$f":"'2. Conservation Measures'!JN72","v":0},{"$f":"'2. Conservation Measures'!JO72","v":0},{"$f":"'2. Conservation Measures'!JP72","v":0},{"$f":"'2. Conservation Measures'!JQ72","v":0},{"$f":"'2. Conservation Measures'!JR72","v":0},{"$f":"'2. Conservation Measures'!JS72","v":0},{"$f":"'2. Conservation Measures'!JT72","v":0},{"$f":"'2. Conservation Measures'!JU72","v":0},{"$f":"'2. Conservation Measures'!JV72","v":0},{"$f":"'2. Conservation Measures'!JW72","v":0},{"$f":"'2. Conservation Measures'!JX72","v":0},{"$f":"'2. Conservation Measures'!JY72","v":0},{"$f":"'2. Conservation Measures'!JZ72","v":0},{"$f":"'2. Conservation Measures'!KA72","v":0},{"$f":"'2. Conservation Measures'!KB72","v":0},{"$f":"'2. Conservation Measures'!KC72","v":0},{"$f":"'2. Conservation Measures'!KD72","v":0},{"$f":"'2. Conservation Measures'!KE72","v":0},{"$f":"'2. Conservation Measures'!KF72","v":0},{"$f":"'2. Conservation Measures'!KG72","v":0},{"$f":"'2. Conservation Measures'!KH72","v":0},{"$f":"'2. Conservation Measures'!KI72","v":0},{"$f":"'2. Conservation Measures'!KJ72","v":0},{"$f":"'2. Conservation Measures'!KK72","v":0},{"$f":"'2. Conservation Measures'!KL72","v":0},{"$f":"'2. Conservation Measures'!KM72","v":0},{"$f":"'2. Conservation Measures'!KN72","v":0}]
[null,{"$f":"'2. Conservation Measures'!B73","v":"USR-SF-10"},{"$f":"'2. Conservation Measures'!C73","v":0},{"$f":"'2. Conservation Measures'!D73","v":"N"},null,{"$f":"'2. Conservation Measures'!AA73","v":0},null,{"$f":"'2. Conservation Measures'!AO73","v":0},{"$f":"'2. Conservation Measures'!AP73","v":0},{"$f":"'2. Conservation Measures'!AQ73","v":0},{"$f":"'2. Conservation Measures'!AR73","v":0},{"$f":"'2. Conservation Measures'!AS73","v":0},{"$f":"'2. Conservation Measures'!AT73","v":0},{"$f":"'2. Conservation Measures'!AU73","v":0},{"$f":"'2. Conservation Measures'!AV73","v":0},{"$f":"'2. Conservation Measures'!AW73","v":0},{"$f":"'2. Conservation Measures'!AX73","v":0},{"$f":"'2. Conservation Measures'!AY73","v":0},{"$f":"'2. Conservation Measures'!AZ73","v":0},{"$f":"'2. Conservation Measures'!BA73","v":0},{"$f":"'2. Conservation Measures'!BB73","v":0},{"$f":"'2. Conservation Measures'!BC73","v":0},{"$f":"'2. Conservation Measures'!BD73","v":0},{"$f":"'2. Conservation Measures'!BE73","v":0},{"$f":"'2. Conservation Measures'!BF73","v":0},{"$f":"'2. Conservation Measures'!BG73","v":0},{"$f":"'2. Conservation Measures'!BH73","v":0},{"$f":"'2. Conservation Measures'!BI73","v":0},{"$f":"'2. Conservation Measures'!BJ73","v":0},{"$f":"'2. Conservation Measures'!BK73","v":0},{"$f":"'2. Conservation Measures'!BL73","v":0},{"$f":"'2. Conservation Measures'!BM73","v":0},{"$f":"'2. Conservation Measures'!BN73","v":0},{"$f":"'2. Conservation Measures'!BO73","v":0},{"$f":"'2. Conservation Measures'!BP73","v":0},{"$f":"'2. Conservation Measures'!BQ73","v":0},{"$f":"'2. Conservation Measures'!BR73","v":0},{"$f":"'2. Conservation Measures'!BS73","v":0},{"$f":"'2. Conservation Measures'!BT73","v":0},{"$f":"'2. Conservation Measures'!BU73","v":0},{"$f":"'2. Conservation Measures'!BV73","v":0},{"$f":"'2. Conservation Measures'!BW73","v":0},{"$f":"'2. Conservation Measures'!BX73","v":0},{"$f":"'2. Conservation Measures'!BY73","v":0},{"$f":"'2. Conservation Measures'!BZ73","v":0},{"$f":"'2. Conservation Measures'!CA73","v":0},{"$f":"'2. Conservation Measures'!CB73","v":0},{"$f":"'2. Conservation Measures'!CC73","v":0},{"$f":"'2. Conservation Measures'!CD73","v":0},{"$f":"'2. Conservation Measures'!CE73","v":0},{"$f":"'2. Conservation Measures'!CF73","v":0},{"$f":"'2. Conservation Measures'!CG73","v":0},{"$f":"'2. Conservation Measures'!CH73","v":0},{"$f":"'2. Conservation Measures'!CI73","v":0},{"$f":"'2. Conservation Measures'!CJ73","v":0},{"$f":"'2. Conservation Measures'!CK73","v":0},{"$f":"'2. Conservation Measures'!CL73","v":0},{"$f":"'2. Conservation Measures'!CM73","v":0},null,{"$f":"'2. Conservation Measures'!CO73","v":0},{"$f":"'2. Conservation Measures'!CP73","v":0},{"$f":"'2. Conservation Measures'!CQ73","v":0},{"$f":"'2. Conservation Measures'!CR73","v":0},{"$f":"'2. Conservation Measures'!CS73","v":0},{"$f":"'2. Conservation Measures'!CT73","v":0},{"$f":"'2. Conservation Measures'!CU73","v":0},{"$f":"'2. Conservation Measures'!CV73","v":0},{"$f":"'2. Conservation Measures'!CW73","v":0},{"$f":"'2. Conservation Measures'!CX73","v":0},{"$f":"'2. Conservation Measures'!CY73","v":0},{"$f":"'2. Conservation Measures'!CZ73","v":0},{"$f":"'2. Conservation Measures'!DA73","v":0},{"$f":"'2. Conservation Measures'!DB73","v":0},{"$f":"'2. Conservation Measures'!DC73","v":0},{"$f":"'2. Conservation Measures'!DD73","v":0},{"$f":"'2. Conservation Measures'!DE73","v":0},{"$f":"'2. Conservation Measures'!DF73","v":0},{"$f":"'2. Conservation Measures'!DG73","v":0},{"$f":"'2. Conservation Measures'!DH73","v":0},{"$f":"'2. Conservation Measures'!DI73","v":0},{"$f":"'2. Conservation Measures'!DJ73","v":0},{"$f":"'2. Conservation Measures'!DK73","v":0},{"$f":"'2. Conservation Measures'!DL73","v":0},{"$f":"'2. Conservation Measures'!DM73","v":0},{"$f":"'2. Conservation Measures'!DN73","v":0},{"$f":"'2. Conservation Measures'!DO73","v":0},{"$f":"'2. Conservation Measures'!DP73","v":0},{"$f":"'2. Conservation Measures'!DQ73","v":0},{"$f":"'2. Conservation Measures'!DR73","v":0},{"$f":"'2. Conservation Measures'!DS73","v":0},{"$f":"'2. Conservation Measures'!DT73","v":0},{"$f":"'2. Conservation Measures'!DU73","v":0},{"$f":"'2. Conservation Measures'!DV73","v":0},{"$f":"'2. Conservation Measures'!DW73","v":0},{"$f":"'2. Conservation Measures'!DX73","v":0},{"$f":"'2. Conservation Measures'!DY73","v":0},{"$f":"'2. Conservation Measures'!DZ73","v":0},{"$f":"'2. Conservation Measures'!EA73","v":0},{"$f":"'2. Conservation Measures'!EB73","v":0},{"$f":"'2. Conservation Measures'!EC73","v":0},{"$f":"'2. Conservation Measures'!ED73","v":0},{"$f":"'2. Conservation Measures'!EE73","v":0},{"$f":"'2. Conservation Measures'!EF73","v":0},{"$f":"'2. Conservation Measures'!EG73","v":0},{"$f":"'2. Conservation Measures'!EH73","v":0},{"$f":"'2. Conservation Measures'!EI73","v":0},{"$f":"'2. Conservation Measures'!EJ73","v":0},{"$f":"'2. Conservation Measures'!EK73","v":0},{"$f":"'2. Conservation Measures'!EL73","v":0},{"$f":"'2. Conservation Measures'!EM73","v":0},null,{"$f":"'2. Conservation Measures'!KP73","v":0},{"$f":"'2. Conservation Measures'!KQ73","v":0},{"$f":"'2. Conservation Measures'!KR73","v":0},{"$f":"'2. Conservation Measures'!KS73","v":0},{"$f":"'2. Conservation Measures'!KT73","v":0},{"$f":"'2. Conservation Measures'!KU73","v":0},{"$f":"'2. Conservation Measures'!KV73","v":0},{"$f":"'2. Conservation Measures'!KW73","v":0},{"$f":"'2. Conservation Measures'!KX73","v":0},{"$f":"'2. Conservation Measures'!KY73","v":0},{"$f":"'2. Conservation Measures'!KZ73","v":0},{"$f":"'2. Conservation Measures'!LA73","v":0},{"$f":"'2. Conservation Measures'!LB73","v":0},{"$f":"'2. Conservation Measures'!LC73","v":0},{"$f":"'2. Conservation Measures'!LD73","v":0},{"$f":"'2. Conservation Measures'!LE73","v":0},{"$f":"'2. Conservation Measures'!LF73","v":0},{"$f":"'2. Conservation Measures'!LG73","v":0},{"$f":"'2. Conservation Measures'!LH73","v":0},{"$f":"'2. Conservation Measures'!LI73","v":0},{"$f":"'2. Conservation Measures'!LJ73","v":0},{"$f":"'2. Conservation Measures'!LK73","v":0},{"$f":"'2. Conservation Measures'!LL73","v":0},{"$f":"'2. Conservation Measures'!LM73","v":0},{"$f":"'2. Conservation Measures'!LN73","v":0},{"$f":"'2. Conservation Measures'!LO73","v":0},{"$f":"'2. Conservation Measures'!LP73","v":0},{"$f":"'2. Conservation Measures'!LQ73","v":0},{"$f":"'2. Conservation Measures'!LR73","v":0},{"$f":"'2. Conservation Measures'!LS73","v":0},{"$f":"'2. Conservation Measures'!LT73","v":0},{"$f":"'2. Conservation Measures'!LU73","v":0},{"$f":"'2. Conservation Measures'!LV73","v":0},{"$f":"'2. Conservation Measures'!LW73","v":0},{"$f":"'2. Conservation Measures'!LX73","v":0},{"$f":"'2. Conservation Measures'!LY73","v":0},{"$f":"'2. Conservation Measures'!LZ73","v":0},{"$f":"'2. Conservation Measures'!MA73","v":0},{"$f":"'2. Conservation Measures'!MB73","v":0},{"$f":"'2. Conservation Measures'!MC73","v":0},{"$f":"'2. Conservation Measures'!MD73","v":0},{"$f":"'2. Conservation Measures'!ME73","v":0},{"$f":"'2. Conservation Measures'!MF73","v":0},{"$f":"'2. Conservation Measures'!MG73","v":0},{"$f":"'2. Conservation Measures'!MH73","v":0},{"$f":"'2. Conservation Measures'!MI73","v":0},{"$f":"'2. Conservation Measures'!MJ73","v":0},{"$f":"'2. Conservation Measures'!MK73","v":0},{"$f":"'2. Conservation Measures'!ML73","v":0},{"$f":"'2. Conservation Measures'!MM73","v":0},{"$f":"'2. Conservation Measures'!MN73","v":0},null,{"$f":"'2. Conservation Measures'!EP73","v":0},{"$f":"'2. Conservation Measures'!EQ73","v":0},{"$f":"'2. Conservation Measures'!ER73","v":0},{"$f":"'2. Conservation Measures'!ES73","v":0},{"$f":"'2. Conservation Measures'!ET73","v":0},{"$f":"'2. Conservation Measures'!EU73","v":0},{"$f":"'2. Conservation Measures'!EV73","v":0},{"$f":"'2. Conservation Measures'!EW73","v":0},{"$f":"'2. Conservation Measures'!EX73","v":0},{"$f":"'2. Conservation Measures'!EY73","v":0},{"$f":"'2. Conservation Measures'!EZ73","v":0},{"$f":"'2. Conservation Measures'!FA73","v":0},{"$f":"'2. Conservation Measures'!FB73","v":0},{"$f":"'2. Conservation Measures'!FC73","v":0},{"$f":"'2. Conservation Measures'!FD73","v":0},{"$f":"'2. Conservation Measures'!FE73","v":0},{"$f":"'2. Conservation Measures'!FF73","v":0},{"$f":"'2. Conservation Measures'!FG73","v":0},{"$f":"'2. Conservation Measures'!FH73","v":0},{"$f":"'2. Conservation Measures'!FI73","v":0},{"$f":"'2. Conservation Measures'!FJ73","v":0},{"$f":"'2. Conservation Measures'!FK73","v":0},{"$f":"'2. Conservation Measures'!FL73","v":0},{"$f":"'2. Conservation Measures'!FM73","v":0},{"$f":"'2. Conservation Measures'!FN73","v":0},{"$f":"'2. Conservation Measures'!FO73","v":0},{"$f":"'2. Conservation Measures'!FP73","v":0},{"$f":"'2. Conservation Measures'!FQ73","v":0},{"$f":"'2. Conservation Measures'!FR73","v":0},{"$f":"'2. Conservation Measures'!FS73","v":0},{"$f":"'2. Conservation Measures'!FT73","v":0},{"$f":"'2. Conservation Measures'!FU73","v":0},{"$f":"'2. Conservation Measures'!FV73","v":0},{"$f":"'2. Conservation Measures'!FW73","v":0},{"$f":"'2. Conservation Measures'!FX73","v":0},{"$f":"'2. Conservation Measures'!FY73","v":0},{"$f":"'2. Conservation Measures'!FZ73","v":0},{"$f":"'2. Conservation Measures'!GA73","v":0},{"$f":"'2. Conservation Measures'!GB73","v":0},{"$f":"'2. Conservation Measures'!GC73","v":0},{"$f":"'2. Conservation Measures'!GD73","v":0},{"$f":"'2. Conservation Measures'!GE73","v":0},{"$f":"'2. Conservation Measures'!GF73","v":0},{"$f":"'2. Conservation Measures'!GG73","v":0},{"$f":"'2. Conservation Measures'!GH73","v":0},{"$f":"'2. Conservation Measures'!GI73","v":0},{"$f":"'2. Conservation Measures'!GJ73","v":0},{"$f":"'2. Conservation Measures'!GK73","v":0},{"$f":"'2. Conservation Measures'!GL73","v":0},{"$f":"'2. Conservation Measures'!GM73","v":0},{"$f":"'2. Conservation Measures'!GN73","v":0},null,{"$f":"'2. Conservation Measures'!GP73","v":0},{"$f":"'2. Conservation Measures'!GQ73","v":0},{"$f":"'2. Conservation Measures'!GR73","v":0},{"$f":"'2. Conservation Measures'!GS73","v":0},{"$f":"'2. Conservation Measures'!GT73","v":0},{"$f":"'2. Conservation Measures'!GU73","v":0},{"$f":"'2. Conservation Measures'!GV73","v":0},{"$f":"'2. Conservation Measures'!GW73","v":0},{"$f":"'2. Conservation Measures'!GX73","v":0},{"$f":"'2. Conservation Measures'!GY73","v":0},{"$f":"'2. Conservation Measures'!GZ73","v":0},{"$f":"'2. Conservation Measures'!HA73","v":0},{"$f":"'2. Conservation Measures'!HB73","v":0},{"$f":"'2. Conservation Measures'!HC73","v":0},{"$f":"'2. Conservation Measures'!HD73","v":0},{"$f":"'2. Conservation Measures'!HE73","v":0},{"$f":"'2. Conservation Measures'!HF73","v":0},{"$f":"'2. Conservation Measures'!HG73","v":0},{"$f":"'2. Conservation Measures'!HH73","v":0},{"$f":"'2. Conservation Measures'!HI73","v":0},{"$f":"'2. Conservation Measures'!HJ73","v":0},{"$f":"'2. Conservation Measures'!HK73","v":0},{"$f":"'2. Conservation Measures'!HL73","v":0},{"$f":"'2. Conservation Measures'!HM73","v":0},{"$f":"'2. Conservation Measures'!HN73","v":0},{"$f":"'2. Conservation Measures'!HO73","v":0},{"$f":"'2. Conservation Measures'!HP73","v":0},{"$f":"'2. Conservation Measures'!HQ73","v":0},{"$f":"'2. Conservation Measures'!HR73","v":0},{"$f":"'2. Conservation Measures'!HS73","v":0},{"$f":"'2. Conservation Measures'!HT73","v":0},{"$f":"'2. Conservation Measures'!HU73","v":0},{"$f":"'2. Conservation Measures'!HV73","v":0},{"$f":"'2. Conservation Measures'!HW73","v":0},{"$f":"'2. Conservation Measures'!HX73","v":0},{"$f":"'2. Conservation Measures'!HY73","v":0},{"$f":"'2. Conservation Measures'!HZ73","v":0},{"$f":"'2. Conservation Measures'!IA73","v":0},{"$f":"'2. Conservation Measures'!IB73","v":0},{"$f":"'2. Conservation Measures'!IC73","v":0},{"$f":"'2. Conservation Measures'!ID73","v":0},{"$f":"'2. Conservation Measures'!IE73","v":0},{"$f":"'2. Conservation Measures'!IF73","v":0},{"$f":"'2. Conservation Measures'!IG73","v":0},{"$f":"'2. Conservation Measures'!IH73","v":0},{"$f":"'2. Conservation Measures'!II73","v":0},{"$f":"'2. Conservation Measures'!IJ73","v":0},{"$f":"'2. Conservation Measures'!IK73","v":0},{"$f":"'2. Conservation Measures'!IL73","v":0},{"$f":"'2. Conservation Measures'!IM73","v":0},{"$f":"'2. Conservation Measures'!IN73","v":0},null,{"$f":"'2. Conservation Measures'!IP73","v":0},{"$f":"'2. Conservation Measures'!IQ73","v":0},{"$f":"'2. Conservation Measures'!IR73","v":0},{"$f":"'2. Conservation Measures'!IS73","v":0},{"$f":"'2. Conservation Measures'!IT73","v":0},{"$f":"'2. Conservation Measures'!IU73","v":0},{"$f":"'2. Conservation Measures'!IV73","v":0},{"$f":"'2. Conservation Measures'!IW73","v":0},{"$f":"'2. Conservation Measures'!IX73","v":0},{"$f":"'2. Conservation Measures'!IY73","v":0},{"$f":"'2. Conservation Measures'!IZ73","v":0},{"$f":"'2. Conservation Measures'!JA73","v":0},{"$f":"'2. Conservation Measures'!JB73","v":0},{"$f":"'2. Conservation Measures'!JC73","v":0},{"$f":"'2. Conservation Measures'!JD73","v":0},{"$f":"'2. Conservation Measures'!JE73","v":0},{"$f":"'2. Conservation Measures'!JF73","v":0},{"$f":"'2. Conservation Measures'!JG73","v":0},{"$f":"'2. Conservation Measures'!JH73","v":0},{"$f":"'2. Conservation Measures'!JI73","v":0},{"$f":"'2. Conservation Measures'!JJ73","v":0},{"$f":"'2. Conservation Measures'!JK73","v":0},{"$f":"'2. Conservation Measures'!JL73","v":0},{"$f":"'2. Conservation Measures'!JM73","v":0},{"$f":"'2. Conservation Measures'!JN73","v":0},{"$f":"'2. Conservation Measures'!JO73","v":0},{"$f":"'2. Conservation Measures'!JP73","v":0},{"$f":"'2. Conservation Measures'!JQ73","v":0},{"$f":"'2. Conservation Measures'!JR73","v":0},{"$f":"'2. Conservation Measures'!JS73","v":0},{"$f":"'2. Conservation Measures'!JT73","v":0},{"$f":"'2. Conservation Measures'!JU73","v":0},{"$f":"'2. Conservation Measures'!JV73","v":0},{"$f":"'2. Conservation Measures'!JW73","v":0},{"$f":"'2. Conservation Measures'!JX73","v":0},{"$f":"'2. Conservation Measures'!JY73","v":0},{"$f":"'2. Conservation Measures'!JZ73","v":0},{"$f":"'2. Conservation Measures'!KA73","v":0},{"$f":"'2. Conservation Measures'!KB73","v":0},{"$f":"'2. Conservation Measures'!KC73","v":0},{"$f":"'2. Conservation Measures'!KD73","v":0},{"$f":"'2. Conservation Measures'!KE73","v":0},{"$f":"'2. Conservation Measures'!KF73","v":0},{"$f":"'2. Conservation Measures'!KG73","v":0},{"$f":"'2. Conservation Measures'!KH73","v":0},{"$f":"'2. Conservation Measures'!KI73","v":0},{"$f":"'2. Conservation Measures'!KJ73","v":0},{"$f":"'2. Conservation Measures'!KK73","v":0},{"$f":"'2. Conservation Measures'!KL73","v":0},{"$f":"'2. Conservation Measures'!KM73","v":0},{"$f":"'2. Conservation Measures'!KN73","v":0}]
[null,{"$f":"'2. Conservation Measures'!B74","v":"USR-SF-11"},{"$f":"'2. Conservation Measures'!C74","v":0},{"$f":"'2. Conservation Measures'!D74","v":"N"},null,{"$f":"'2. Conservation Measures'!AA74","v":0},null,{"$f":"'2. Conservation Measures'!AO74","v":0},{"$f":"'2. Conservation Measures'!AP74","v":0},{"$f":"'2. Conservation Measures'!AQ74","v":0},{"$f":"'2. Conservation Measures'!AR74","v":0},{"$f":"'2. Conservation Measures'!AS74","v":0},{"$f":"'2. Conservation Measures'!AT74","v":0},{"$f":"'2. Conservation Measures'!AU74","v":0},{"$f":"'2. Conservation Measures'!AV74","v":0},{"$f":"'2. Conservation Measures'!AW74","v":0},{"$f":"'2. Conservation Measures'!AX74","v":0},{"$f":"'2. Conservation Measures'!AY74","v":0},{"$f":"'2. Conservation Measures'!AZ74","v":0},{"$f":"'2. Conservation Measures'!BA74","v":0},{"$f":"'2. Conservation Measures'!BB74","v":0},{"$f":"'2. Conservation Measures'!BC74","v":0},{"$f":"'2. Conservation Measures'!BD74","v":0},{"$f":"'2. Conservation Measures'!BE74","v":0},{"$f":"'2. Conservation Measures'!BF74","v":0},{"$f":"'2. Conservation Measures'!BG74","v":0},{"$f":"'2. Conservation Measures'!BH74","v":0},{"$f":"'2. Conservation Measures'!BI74","v":0},{"$f":"'2. Conservation Measures'!BJ74","v":0},{"$f":"'2. Conservation Measures'!BK74","v":0},{"$f":"'2. Conservation Measures'!BL74","v":0},{"$f":"'2. Conservation Measures'!BM74","v":0},{"$f":"'2. Conservation Measures'!BN74","v":0},{"$f":"'2. Conservation Measures'!BO74","v":0},{"$f":"'2. Conservation Measures'!BP74","v":0},{"$f":"'2. Conservation Measures'!BQ74","v":0},{"$f":"'2. Conservation Measures'!BR74","v":0},{"$f":"'2. Conservation Measures'!BS74","v":0},{"$f":"'2. Conservation Measures'!BT74","v":0},{"$f":"'2. Conservation Measures'!BU74","v":0},{"$f":"'2. Conservation Measures'!BV74","v":0},{"$f":"'2. Conservation Measures'!BW74","v":0},{"$f":"'2. Conservation Measures'!BX74","v":0},{"$f":"'2. Conservation Measures'!BY74","v":0},{"$f":"'2. Conservation Measures'!BZ74","v":0},{"$f":"'2. Conservation Measures'!CA74","v":0},{"$f":"'2. Conservation Measures'!CB74","v":0},{"$f":"'2. Conservation Measures'!CC74","v":0},{"$f":"'2. Conservation Measures'!CD74","v":0},{"$f":"'2. Conservation Measures'!CE74","v":0},{"$f":"'2. Conservation Measures'!CF74","v":0},{"$f":"'2. Conservation Measures'!CG74","v":0},{"$f":"'2. Conservation Measures'!CH74","v":0},{"$f":"'2. Conservation Measures'!CI74","v":0},{"$f":"'2. Conservation Measures'!CJ74","v":0},{"$f":"'2. Conservation Measures'!CK74","v":0},{"$f":"'2. Conservation Measures'!CL74","v":0},{"$f":"'2. Conservation Measures'!CM74","v":0},null,{"$f":"'2. Conservation Measures'!CO74","v":0},{"$f":"'2. Conservation Measures'!CP74","v":0},{"$f":"'2. Conservation Measures'!CQ74","v":0},{"$f":"'2. Conservation Measures'!CR74","v":0},{"$f":"'2. Conservation Measures'!CS74","v":0},{"$f":"'2. Conservation Measures'!CT74","v":0},{"$f":"'2. Conservation Measures'!CU74","v":0},{"$f":"'2. Conservation Measures'!CV74","v":0},{"$f":"'2. Conservation Measures'!CW74","v":0},{"$f":"'2. Conservation Measures'!CX74","v":0},{"$f":"'2. Conservation Measures'!CY74","v":0},{"$f":"'2. Conservation Measures'!CZ74","v":0},{"$f":"'2. Conservation Measures'!DA74","v":0},{"$f":"'2. Conservation Measures'!DB74","v":0},{"$f":"'2. Conservation Measures'!DC74","v":0},{"$f":"'2. Conservation Measures'!DD74","v":0},{"$f":"'2. Conservation Measures'!DE74","v":0},{"$f":"'2. Conservation Measures'!DF74","v":0},{"$f":"'2. Conservation Measures'!DG74","v":0},{"$f":"'2. Conservation Measures'!DH74","v":0},{"$f":"'2. Conservation Measures'!DI74","v":0},{"$f":"'2. Conservation Measures'!DJ74","v":0},{"$f":"'2. Conservation Measures'!DK74","v":0},{"$f":"'2. Conservation Measures'!DL74","v":0},{"$f":"'2. Conservation Measures'!DM74","v":0},{"$f":"'2. Conservation Measures'!DN74","v":0},{"$f":"'2. Conservation Measures'!DO74","v":0},{"$f":"'2. Conservation Measures'!DP74","v":0},{"$f":"'2. Conservation Measures'!DQ74","v":0},{"$f":"'2. Conservation Measures'!DR74","v":0},{"$f":"'2. Conservation Measures'!DS74","v":0},{"$f":"'2. Conservation Measures'!DT74","v":0},{"$f":"'2. Conservation Measures'!DU74","v":0},{"$f":"'2. Conservation Measures'!DV74","v":0},{"$f":"'2. Conservation Measures'!DW74","v":0},{"$f":"'2. Conservation Measures'!DX74","v":0},{"$f":"'2. Conservation Measures'!DY74","v":0},{"$f":"'2. Conservation Measures'!DZ74","v":0},{"$f":"'2. Conservation Measures'!EA74","v":0},{"$f":"'2. Conservation Measures'!EB74","v":0},{"$f":"'2. Conservation Measures'!EC74","v":0},{"$f":"'2. Conservation Measures'!ED74","v":0},{"$f":"'2. Conservation Measures'!EE74","v":0},{"$f":"'2. Conservation Measures'!EF74","v":0},{"$f":"'2. Conservation Measures'!EG74","v":0},{"$f":"'2. Conservation Measures'!EH74","v":0},{"$f":"'2. Conservation Measures'!EI74","v":0},{"$f":"'2. Conservation Measures'!EJ74","v":0},{"$f":"'2. Conservation Measures'!EK74","v":0},{"$f":"'2. Conservation Measures'!EL74","v":0},{"$f":"'2. Conservation Measures'!EM74","v":0},null,{"$f":"'2. Conservation Measures'!KP74","v":0},{"$f":"'2. Conservation Measures'!KQ74","v":0},{"$f":"'2. Conservation Measures'!KR74","v":0},{"$f":"'2. Conservation Measures'!KS74","v":0},{"$f":"'2. Conservation Measures'!KT74","v":0},{"$f":"'2. Conservation Measures'!KU74","v":0},{"$f":"'2. Conservation Measures'!KV74","v":0},{"$f":"'2. Conservation Measures'!KW74","v":0},{"$f":"'2. Conservation Measures'!KX74","v":0},{"$f":"'2. Conservation Measures'!KY74","v":0},{"$f":"'2. Conservation Measures'!KZ74","v":0},{"$f":"'2. Conservation Measures'!LA74","v":0},{"$f":"'2. Conservation Measures'!LB74","v":0},{"$f":"'2. Conservation Measures'!LC74","v":0},{"$f":"'2. Conservation Measures'!LD74","v":0},{"$f":"'2. Conservation Measures'!LE74","v":0},{"$f":"'2. Conservation Measures'!LF74","v":0},{"$f":"'2. Conservation Measures'!LG74","v":0},{"$f":"'2. Conservation Measures'!LH74","v":0},{"$f":"'2. Conservation Measures'!LI74","v":0},{"$f":"'2. Conservation Measures'!LJ74","v":0},{"$f":"'2. Conservation Measures'!LK74","v":0},{"$f":"'2. Conservation Measures'!LL74","v":0},{"$f":"'2. Conservation Measures'!LM74","v":0},{"$f":"'2. Conservation Measures'!LN74","v":0},{"$f":"'2. Conservation Measures'!LO74","v":0},{"$f":"'2. Conservation Measures'!LP74","v":0},{"$f":"'2. Conservation Measures'!LQ74","v":0},{"$f":"'2. Conservation Measures'!LR74","v":0},{"$f":"'2. Conservation Measures'!LS74","v":0},{"$f":"'2. Conservation Measures'!LT74","v":0},{"$f":"'2. Conservation Measures'!LU74","v":0},{"$f":"'2. Conservation Measures'!LV74","v":0},{"$f":"'2. Conservation Measures'!LW74","v":0},{"$f":"'2. Conservation Measures'!LX74","v":0},{"$f":"'2. Conservation Measures'!LY74","v":0},{"$f":"'2. Conservation Measures'!LZ74","v":0},{"$f":"'2. Conservation Measures'!MA74","v":0},{"$f":"'2. Conservation Measures'!MB74","v":0},{"$f":"'2. Conservation Measures'!MC74","v":0},{"$f":"'2. Conservation Measures'!MD74","v":0},{"$f":"'2. Conservation Measures'!ME74","v":0},{"$f":"'2. Conservation Measures'!MF74","v":0},{"$f":"'2. Conservation Measures'!MG74","v":0},{"$f":"'2. Conservation Measures'!MH74","v":0},{"$f":"'2. Conservation Measures'!MI74","v":0},{"$f":"'2. Conservation Measures'!MJ74","v":0},{"$f":"'2. Conservation Measures'!MK74","v":0},{"$f":"'2. Conservation Measures'!ML74","v":0},{"$f":"'2. Conservation Measures'!MM74","v":0},{"$f":"'2. Conservation Measures'!MN74","v":0},null,{"$f":"'2. Conservation Measures'!EP74","v":0},{"$f":"'2. Conservation Measures'!EQ74","v":0},{"$f":"'2. Conservation Measures'!ER74","v":0},{"$f":"'2. Conservation Measures'!ES74","v":0},{"$f":"'2. Conservation Measures'!ET74","v":0},{"$f":"'2. Conservation Measures'!EU74","v":0},{"$f":"'2. Conservation Measures'!EV74","v":0},{"$f":"'2. Conservation Measures'!EW74","v":0},{"$f":"'2. Conservation Measures'!EX74","v":0},{"$f":"'2. Conservation Measures'!EY74","v":0},{"$f":"'2. Conservation Measures'!EZ74","v":0},{"$f":"'2. Conservation Measures'!FA74","v":0},{"$f":"'2. Conservation Measures'!FB74","v":0},{"$f":"'2. Conservation Measures'!FC74","v":0},{"$f":"'2. Conservation Measures'!FD74","v":0},{"$f":"'2. Conservation Measures'!FE74","v":0},{"$f":"'2. Conservation Measures'!FF74","v":0},{"$f":"'2. Conservation Measures'!FG74","v":0},{"$f":"'2. Conservation Measures'!FH74","v":0},{"$f":"'2. Conservation Measures'!FI74","v":0},{"$f":"'2. Conservation Measures'!FJ74","v":0},{"$f":"'2. Conservation Measures'!FK74","v":0},{"$f":"'2. Conservation Measures'!FL74","v":0},{"$f":"'2. Conservation Measures'!FM74","v":0},{"$f":"'2. Conservation Measures'!FN74","v":0},{"$f":"'2. Conservation Measures'!FO74","v":0},{"$f":"'2. Conservation Measures'!FP74","v":0},{"$f":"'2. Conservation Measures'!FQ74","v":0},{"$f":"'2. Conservation Measures'!FR74","v":0},{"$f":"'2. Conservation Measures'!FS74","v":0},{"$f":"'2. Conservation Measures'!FT74","v":0},{"$f":"'2. Conservation Measures'!FU74","v":0},{"$f":"'2. Conservation Measures'!FV74","v":0},{"$f":"'2. Conservation Measures'!FW74","v":0},{"$f":"'2. Conservation Measures'!FX74","v":0},{"$f":"'2. Conservation Measures'!FY74","v":0},{"$f":"'2. Conservation Measures'!FZ74","v":0},{"$f":"'2. Conservation Measures'!GA74","v":0},{"$f":"'2. Conservation Measures'!GB74","v":0},{"$f":"'2. Conservation Measures'!GC74","v":0},{"$f":"'2. Conservation Measures'!GD74","v":0},{"$f":"'2. Conservation Measures'!GE74","v":0},{"$f":"'2. Conservation Measures'!GF74","v":0},{"$f":"'2. Conservation Measures'!GG74","v":0},{"$f":"'2. Conservation Measures'!GH74","v":0},{"$f":"'2. Conservation Measures'!GI74","v":0},{"$f":"'2. Conservation Measures'!GJ74","v":0},{"$f":"'2. Conservation Measures'!GK74","v":0},{"$f":"'2. Conservation Measures'!GL74","v":0},{"$f":"'2. Conservation Measures'!GM74","v":0},{"$f":"'2. Conservation Measures'!GN74","v":0},null,{"$f":"'2. Conservation Measures'!GP74","v":0},{"$f":"'2. Conservation Measures'!GQ74","v":0},{"$f":"'2. Conservation Measures'!GR74","v":0},{"$f":"'2. Conservation Measures'!GS74","v":0},{"$f":"'2. Conservation Measures'!GT74","v":0},{"$f":"'2. Conservation Measures'!GU74","v":0},{"$f":"'2. Conservation Measures'!GV74","v":0},{"$f":"'2. Conservation Measures'!GW74","v":0},{"$f":"'2. Conservation Measures'!GX74","v":0},{"$f":"'2. Conservation Measures'!GY74","v":0},{"$f":"'2. Conservation Measures'!GZ74","v":0},{"$f":"'2. Conservation Measures'!HA74","v":0},{"$f":"'2. Conservation Measures'!HB74","v":0},{"$f":"'2. Conservation Measures'!HC74","v":0},{"$f":"'2. Conservation Measures'!HD74","v":0},{"$f":"'2. Conservation Measures'!HE74","v":0},{"$f":"'2. Conservation Measures'!HF74","v":0},{"$f":"'2. Conservation Measures'!HG74","v":0},{"$f":"'2. Conservation Measures'!HH74","v":0},{"$f":"'2. Conservation Measures'!HI74","v":0},{"$f":"'2. Conservation Measures'!HJ74","v":0},{"$f":"'2. Conservation Measures'!HK74","v":0},{"$f":"'2. Conservation Measures'!HL74","v":0},{"$f":"'2. Conservation Measures'!HM74","v":0},{"$f":"'2. Conservation Measures'!HN74","v":0},{"$f":"'2. Conservation Measures'!HO74","v":0},{"$f":"'2. Conservation Measures'!HP74","v":0},{"$f":"'2. Conservation Measures'!HQ74","v":0},{"$f":"'2. Conservation Measures'!HR74","v":0},{"$f":"'2. Conservation Measures'!HS74","v":0},{"$f":"'2. Conservation Measures'!HT74","v":0},{"$f":"'2. Conservation Measures'!HU74","v":0},{"$f":"'2. Conservation Measures'!HV74","v":0},{"$f":"'2. Conservation Measures'!HW74","v":0},{"$f":"'2. Conservation Measures'!HX74","v":0},{"$f":"'2. Conservation Measures'!HY74","v":0},{"$f":"'2. Conservation Measures'!HZ74","v":0},{"$f":"'2. Conservation Measures'!IA74","v":0},{"$f":"'2. Conservation Measures'!IB74","v":0},{"$f":"'2. Conservation Measures'!IC74","v":0},{"$f":"'2. Conservation Measures'!ID74","v":0},{"$f":"'2. Conservation Measures'!IE74","v":0},{"$f":"'2. Conservation Measures'!IF74","v":0},{"$f":"'2. Conservation Measures'!IG74","v":0},{"$f":"'2. Conservation Measures'!IH74","v":0},{"$f":"'2. Conservation Measures'!II74","v":0},{"$f":"'2. Conservation Measures'!IJ74","v":0},{"$f":"'2. Conservation Measures'!IK74","v":0},{"$f":"'2. Conservation Measures'!IL74","v":0},{"$f":"'2. Conservation Measures'!IM74","v":0},{"$f":"'2. Conservation Measures'!IN74","v":0},null,{"$f":"'2. Conservation Measures'!IP74","v":0},{"$f":"'2. Conservation Measures'!IQ74","v":0},{"$f":"'2. Conservation Measures'!IR74","v":0},{"$f":"'2. Conservation Measures'!IS74","v":0},{"$f":"'2. Conservation Measures'!IT74","v":0},{"$f":"'2. Conservation Measures'!IU74","v":0},{"$f":"'2. Conservation Measures'!IV74","v":0},{"$f":"'2. Conservation Measures'!IW74","v":0},{"$f":"'2. Conservation Measures'!IX74","v":0},{"$f":"'2. Conservation Measures'!IY74","v":0},{"$f":"'2. Conservation Measures'!IZ74","v":0},{"$f":"'2. Conservation Measures'!JA74","v":0},{"$f":"'2. Conservation Measures'!JB74","v":0},{"$f":"'2. Conservation Measures'!JC74","v":0},{"$f":"'2. Conservation Measures'!JD74","v":0},{"$f":"'2. Conservation Measures'!JE74","v":0},{"$f":"'2. Conservation Measures'!JF74","v":0},{"$f":"'2. Conservation Measures'!JG74","v":0},{"$f":"'2. Conservation Measures'!JH74","v":0},{"$f":"'2. Conservation Measures'!JI74","v":0},{"$f":"'2. Conservation Measures'!JJ74","v":0},{"$f":"'2. Conservation Measures'!JK74","v":0},{"$f":"'2. Conservation Measures'!JL74","v":0},{"$f":"'2. Conservation Measures'!JM74","v":0},{"$f":"'2. Conservation Measures'!JN74","v":0},{"$f":"'2. Conservation Measures'!JO74","v":0},{"$f":"'2. Conservation Measures'!JP74","v":0},{"$f":"'2. Conservation Measures'!JQ74","v":0},{"$f":"'2. Conservation Measures'!JR74","v":0},{"$f":"'2. Conservation Measures'!JS74","v":0},{"$f":"'2. Conservation Measures'!JT74","v":0},{"$f":"'2. Conservation Measures'!JU74","v":0},{"$f":"'2. Conservation Measures'!JV74","v":0},{"$f":"'2. Conservation Measures'!JW74","v":0},{"$f":"'2. Conservation Measures'!JX74","v":0},{"$f":"'2. Conservation Measures'!JY74","v":0},{"$f":"'2. Conservation Measures'!JZ74","v":0},{"$f":"'2. Conservation Measures'!KA74","v":0},{"$f":"'2. Conservation Measures'!KB74","v":0},{"$f":"'2. Conservation Measures'!KC74","v":0},{"$f":"'2. Conservation Measures'!KD74","v":0},{"$f":"'2. Conservation Measures'!KE74","v":0},{"$f":"'2. Conservation Measures'!KF74","v":0},{"$f":"'2. Conservation Measures'!KG74","v":0},{"$f":"'2. Conservation Measures'!KH74","v":0},{"$f":"'2. Conservation Measures'!KI74","v":0},{"$f":"'2. Conservation Measures'!KJ74","v":0},{"$f":"'2. Conservation Measures'!KK74","v":0},{"$f":"'2. Conservation Measures'!KL74","v":0},{"$f":"'2. Conservation Measures'!KM74","v":0},{"$f":"'2. Conservation Measures'!KN74","v":0}]
[null,{"$f":"'2. Conservation Measures'!B75","v":"USR-SF-12"},{"$f":"'2. Conservation Measures'!C75","v":0},{"$f":"'2. Conservation Measures'!D75","v":"N"},null,{"$f":"'2. Conservation Measures'!AA75","v":0},null,{"$f":"'2. Conservation Measures'!AO75","v":0},{"$f":"'2. Conservation Measures'!AP75","v":0},{"$f":"'2. Conservation Measures'!AQ75","v":0},{"$f":"'2. Conservation Measures'!AR75","v":0},{"$f":"'2. Conservation Measures'!AS75","v":0},{"$f":"'2. Conservation Measures'!AT75","v":0},{"$f":"'2. Conservation Measures'!AU75","v":0},{"$f":"'2. Conservation Measures'!AV75","v":0},{"$f":"'2. Conservation Measures'!AW75","v":0},{"$f":"'2. Conservation Measures'!AX75","v":0},{"$f":"'2. Conservation Measures'!AY75","v":0},{"$f":"'2. Conservation Measures'!AZ75","v":0},{"$f":"'2. Conservation Measures'!BA75","v":0},{"$f":"'2. Conservation Measures'!BB75","v":0},{"$f":"'2. Conservation Measures'!BC75","v":0},{"$f":"'2. Conservation Measures'!BD75","v":0},{"$f":"'2. Conservation Measures'!BE75","v":0},{"$f":"'2. Conservation Measures'!BF75","v":0},{"$f":"'2. Conservation Measures'!BG75","v":0},{"$f":"'2. Conservation Measures'!BH75","v":0},{"$f":"'2. Conservation Measures'!BI75","v":0},{"$f":"'2. Conservation Measures'!BJ75","v":0},{"$f":"'2. Conservation Measures'!BK75","v":0},{"$f":"'2. Conservation Measures'!BL75","v":0},{"$f":"'2. Conservation Measures'!BM75","v":0},{"$f":"'2. Conservation Measures'!BN75","v":0},{"$f":"'2. Conservation Measures'!BO75","v":0},{"$f":"'2. Conservation Measures'!BP75","v":0},{"$f":"'2. Conservation Measures'!BQ75","v":0},{"$f":"'2. Conservation Measures'!BR75","v":0},{"$f":"'2. Conservation Measures'!BS75","v":0},{"$f":"'2. Conservation Measures'!BT75","v":0},{"$f":"'2. Conservation Measures'!BU75","v":0},{"$f":"'2. Conservation Measures'!BV75","v":0},{"$f":"'2. Conservation Measures'!BW75","v":0},{"$f":"'2. Conservation Measures'!BX75","v":0},{"$f":"'2. Conservation Measures'!BY75","v":0},{"$f":"'2. Conservation Measures'!BZ75","v":0},{"$f":"'2. Conservation Measures'!CA75","v":0},{"$f":"'2. Conservation Measures'!CB75","v":0},{"$f":"'2. Conservation Measures'!CC75","v":0},{"$f":"'2. Conservation Measures'!CD75","v":0},{"$f":"'2. Conservation Measures'!CE75","v":0},{"$f":"'2. Conservation Measures'!CF75","v":0},{"$f":"'2. Conservation Measures'!CG75","v":0},{"$f":"'2. Conservation Measures'!CH75","v":0},{"$f":"'2. Conservation Measures'!CI75","v":0},{"$f":"'2. Conservation Measures'!CJ75","v":0},{"$f":"'2. Conservation Measures'!CK75","v":0},{"$f":"'2. Conservation Measures'!CL75","v":0},{"$f":"'2. Conservation Measures'!CM75","v":0},null,{"$f":"'2. Conservation Measures'!CO75","v":0},{"$f":"'2. Conservation Measures'!CP75","v":0},{"$f":"'2. Conservation Measures'!CQ75","v":0},{"$f":"'2. Conservation Measures'!CR75","v":0},{"$f":"'2. Conservation Measures'!CS75","v":0},{"$f":"'2. Conservation Measures'!CT75","v":0},{"$f":"'2. Conservation Measures'!CU75","v":0},{"$f":"'2. Conservation Measures'!CV75","v":0},{"$f":"'2. Conservation Measures'!CW75","v":0},{"$f":"'2. Conservation Measures'!CX75","v":0},{"$f":"'2. Conservation Measures'!CY75","v":0},{"$f":"'2. Conservation Measures'!CZ75","v":0},{"$f":"'2. Conservation Measures'!DA75","v":0},{"$f":"'2. Conservation Measures'!DB75","v":0},{"$f":"'2. Conservation Measures'!DC75","v":0},{"$f":"'2. Conservation Measures'!DD75","v":0},{"$f":"'2. Conservation Measures'!DE75","v":0},{"$f":"'2. Conservation Measures'!DF75","v":0},{"$f":"'2. Conservation Measures'!DG75","v":0},{"$f":"'2. Conservation Measures'!DH75","v":0},{"$f":"'2. Conservation Measures'!DI75","v":0},{"$f":"'2. Conservation Measures'!DJ75","v":0},{"$f":"'2. Conservation Measures'!DK75","v":0},{"$f":"'2. Conservation Measures'!DL75","v":0},{"$f":"'2. Conservation Measures'!DM75","v":0},{"$f":"'2. Conservation Measures'!DN75","v":0},{"$f":"'2. Conservation Measures'!DO75","v":0},{"$f":"'2. Conservation Measures'!DP75","v":0},{"$f":"'2. Conservation Measures'!DQ75","v":0},{"$f":"'2. Conservation Measures'!DR75","v":0},{"$f":"'2. Conservation Measures'!DS75","v":0},{"$f":"'2. Conservation Measures'!DT75","v":0},{"$f":"'2. Conservation Measures'!DU75","v":0},{"$f":"'2. Conservation Measures'!DV75","v":0},{"$f":"'2. Conservation Measures'!DW75","v":0},{"$f":"'2. Conservation Measures'!DX75","v":0},{"$f":"'2. Conservation Measures'!DY75","v":0},{"$f":"'2. Conservation Measures'!DZ75","v":0},{"$f":"'2. Conservation Measures'!EA75","v":0},{"$f":"'2. Conservation Measures'!EB75","v":0},{"$f":"'2. Conservation Measures'!EC75","v":0},{"$f":"'2. Conservation Measures'!ED75","v":0},{"$f":"'2. Conservation Measures'!EE75","v":0},{"$f":"'2. Conservation Measures'!EF75","v":0},{"$f":"'2. Conservation Measures'!EG75","v":0},{"$f":"'2. Conservation Measures'!EH75","v":0},{"$f":"'2. Conservation Measures'!EI75","v":0},{"$f":"'2. Conservation Measures'!EJ75","v":0},{"$f":"'2. Conservation Measures'!EK75","v":0},{"$f":"'2. Conservation Measures'!EL75","v":0},{"$f":"'2. Conservation Measures'!EM75","v":0},null,{"$f":"'2. Conservation Measures'!KP75","v":0},{"$f":"'2. Conservation Measures'!KQ75","v":0},{"$f":"'2. Conservation Measures'!KR75","v":0},{"$f":"'2. Conservation Measures'!KS75","v":0},{"$f":"'2. Conservation Measures'!KT75","v":0},{"$f":"'2. Conservation Measures'!KU75","v":0},{"$f":"'2. Conservation Measures'!KV75","v":0},{"$f":"'2. Conservation Measures'!KW75","v":0},{"$f":"'2. Conservation Measures'!KX75","v":0},{"$f":"'2. Conservation Measures'!KY75","v":0},{"$f":"'2. Conservation Measures'!KZ75","v":0},{"$f":"'2. Conservation Measures'!LA75","v":0},{"$f":"'2. Conservation Measures'!LB75","v":0},{"$f":"'2. Conservation Measures'!LC75","v":0},{"$f":"'2. Conservation Measures'!LD75","v":0},{"$f":"'2. Conservation Measures'!LE75","v":0},{"$f":"'2. Conservation Measures'!LF75","v":0},{"$f":"'2. Conservation Measures'!LG75","v":0},{"$f":"'2. Conservation Measures'!LH75","v":0},{"$f":"'2. Conservation Measures'!LI75","v":0},{"$f":"'2. Conservation Measures'!LJ75","v":0},{"$f":"'2. Conservation Measures'!LK75","v":0},{"$f":"'2. Conservation Measures'!LL75","v":0},{"$f":"'2. Conservation Measures'!LM75","v":0},{"$f":"'2. Conservation Measures'!LN75","v":0},{"$f":"'2. Conservation Measures'!LO75","v":0},{"$f":"'2. Conservation Measures'!LP75","v":0},{"$f":"'2. Conservation Measures'!LQ75","v":0},{"$f":"'2. Conservation Measures'!LR75","v":0},{"$f":"'2. Conservation Measures'!LS75","v":0},{"$f":"'2. Conservation Measures'!LT75","v":0},{"$f":"'2. Conservation Measures'!LU75","v":0},{"$f":"'2. Conservation Measures'!LV75","v":0},{"$f":"'2. Conservation Measures'!LW75","v":0},{"$f":"'2. Conservation Measures'!LX75","v":0},{"$f":"'2. Conservation Measures'!LY75","v":0},{"$f":"'2. Conservation Measures'!LZ75","v":0},{"$f":"'2. Conservation Measures'!MA75","v":0},{"$f":"'2. Conservation Measures'!MB75","v":0},{"$f":"'2. Conservation Measures'!MC75","v":0},{"$f":"'2. Conservation Measures'!MD75","v":0},{"$f":"'2. Conservation Measures'!ME75","v":0},{"$f":"'2. Conservation Measures'!MF75","v":0},{"$f":"'2. Conservation Measures'!MG75","v":0},{"$f":"'2. Conservation Measures'!MH75","v":0},{"$f":"'2. Conservation Measures'!MI75","v":0},{"$f":"'2. Conservation Measures'!MJ75","v":0},{"$f":"'2. Conservation Measures'!MK75","v":0},{"$f":"'2. Conservation Measures'!ML75","v":0},{"$f":"'2. Conservation Measures'!MM75","v":0},{"$f":"'2. Conservation Measures'!MN75","v":0},null,{"$f":"'2. Conservation Measures'!EP75","v":0},{"$f":"'2. Conservation Measures'!EQ75","v":0},{"$f":"'2. Conservation Measures'!ER75","v":0},{"$f":"'2. Conservation Measures'!ES75","v":0},{"$f":"'2. Conservation Measures'!ET75","v":0},{"$f":"'2. Conservation Measures'!EU75","v":0},{"$f":"'2. Conservation Measures'!EV75","v":0},{"$f":"'2. Conservation Measures'!EW75","v":0},{"$f":"'2. Conservation Measures'!EX75","v":0},{"$f":"'2. Conservation Measures'!EY75","v":0},{"$f":"'2. Conservation Measures'!EZ75","v":0},{"$f":"'2. Conservation Measures'!FA75","v":0},{"$f":"'2. Conservation Measures'!FB75","v":0},{"$f":"'2. Conservation Measures'!FC75","v":0},{"$f":"'2. Conservation Measures'!FD75","v":0},{"$f":"'2. Conservation Measures'!FE75","v":0},{"$f":"'2. Conservation Measures'!FF75","v":0},{"$f":"'2. Conservation Measures'!FG75","v":0},{"$f":"'2. Conservation Measures'!FH75","v":0},{"$f":"'2. Conservation Measures'!FI75","v":0},{"$f":"'2. Conservation Measures'!FJ75","v":0},{"$f":"'2. Conservation Measures'!FK75","v":0},{"$f":"'2. Conservation Measures'!FL75","v":0},{"$f":"'2. Conservation Measures'!FM75","v":0},{"$f":"'2. Conservation Measures'!FN75","v":0},{"$f":"'2. Conservation Measures'!FO75","v":0},{"$f":"'2. Conservation Measures'!FP75","v":0},{"$f":"'2. Conservation Measures'!FQ75","v":0},{"$f":"'2. Conservation Measures'!FR75","v":0},{"$f":"'2. Conservation Measures'!FS75","v":0},{"$f":"'2. Conservation Measures'!FT75","v":0},{"$f":"'2. Conservation Measures'!FU75","v":0},{"$f":"'2. Conservation Measures'!FV75","v":0},{"$f":"'2. Conservation Measures'!FW75","v":0},{"$f":"'2. Conservation Measures'!FX75","v":0},{"$f":"'2. Conservation Measures'!FY75","v":0},{"$f":"'2. Conservation Measures'!FZ75","v":0},{"$f":"'2. Conservation Measures'!GA75","v":0},{"$f":"'2. Conservation Measures'!GB75","v":0},{"$f":"'2. Conservation Measures'!GC75","v":0},{"$f":"'2. Conservation Measures'!GD75","v":0},{"$f":"'2. Conservation Measures'!GE75","v":0},{"$f":"'2. Conservation Measures'!GF75","v":0},{"$f":"'2. Conservation Measures'!GG75","v":0},{"$f":"'2. Conservation Measures'!GH75","v":0},{"$f":"'2. Conservation Measures'!GI75","v":0},{"$f":"'2. Conservation Measures'!GJ75","v":0},{"$f":"'2. Conservation Measures'!GK75","v":0},{"$f":"'2. Conservation Measures'!GL75","v":0},{"$f":"'2. Conservation Measures'!GM75","v":0},{"$f":"'2. Conservation Measures'!GN75","v":0},null,{"$f":"'2. Conservation Measures'!GP75","v":0},{"$f":"'2. Conservation Measures'!GQ75","v":0},{"$f":"'2. Conservation Measures'!GR75","v":0},{"$f":"'2. Conservation Measures'!GS75","v":0},{"$f":"'2. Conservation Measures'!GT75","v":0},{"$f":"'2. Conservation Measures'!GU75","v":0},{"$f":"'2. Conservation Measures'!GV75","v":0},{"$f":"'2. Conservation Measures'!GW75","v":0},{"$f":"'2. Conservation Measures'!GX75","v":0},{"$f":"'2. Conservation Measures'!GY75","v":0},{"$f":"'2. Conservation Measures'!GZ75","v":0},{"$f":"'2. Conservation Measures'!HA75","v":0},{"$f":"'2. Conservation Measures'!HB75","v":0},{"$f":"'2. Conservation Measures'!HC75","v":0},{"$f":"'2. Conservation Measures'!HD75","v":0},{"$f":"'2. Conservation Measures'!HE75","v":0},{"$f":"'2. Conservation Measures'!HF75","v":0},{"$f":"'2. Conservation Measures'!HG75","v":0},{"$f":"'2. Conservation Measures'!HH75","v":0},{"$f":"'2. Conservation Measures'!HI75","v":0},{"$f":"'2. Conservation Measures'!HJ75","v":0},{"$f":"'2. Conservation Measures'!HK75","v":0},{"$f":"'2. Conservation Measures'!HL75","v":0},{"$f":"'2. Conservation Measures'!HM75","v":0},{"$f":"'2. Conservation Measures'!HN75","v":0},{"$f":"'2. Conservation Measures'!HO75","v":0},{"$f":"'2. Conservation Measures'!HP75","v":0},{"$f":"'2. Conservation Measures'!HQ75","v":0},{"$f":"'2. Conservation Measures'!HR75","v":0},{"$f":"'2. Conservation Measures'!HS75","v":0},{"$f":"'2. Conservation Measures'!HT75","v":0},{"$f":"'2. Conservation Measures'!HU75","v":0},{"$f":"'2. Conservation Measures'!HV75","v":0},{"$f":"'2. Conservation Measures'!HW75","v":0},{"$f":"'2. Conservation Measures'!HX75","v":0},{"$f":"'2. Conservation Measures'!HY75","v":0},{"$f":"'2. Conservation Measures'!HZ75","v":0},{"$f":"'2. Conservation Measures'!IA75","v":0},{"$f":"'2. Conservation Measures'!IB75","v":0},{"$f":"'2. Conservation Measures'!IC75","v":0},{"$f":"'2. Conservation Measures'!ID75","v":0},{"$f":"'2. Conservation Measures'!IE75","v":0},{"$f":"'2. Conservation Measures'!IF75","v":0},{"$f":"'2. Conservation Measures'!IG75","v":0},{"$f":"'2. Conservation Measures'!IH75","v":0},{"$f":"'2. Conservation Measures'!II75","v":0},{"$f":"'2. Conservation Measures'!IJ75","v":0},{"$f":"'2. Conservation Measures'!IK75","v":0},{"$f":"'2. Conservation Measures'!IL75","v":0},{"$f":"'2. Conservation Measures'!IM75","v":0},{"$f":"'2. Conservation Measures'!IN75","v":0},null,{"$f":"'2. Conservation Measures'!IP75","v":0},{"$f":"'2. Conservation Measures'!IQ75","v":0},{"$f":"'2. Conservation Measures'!IR75","v":0},{"$f":"'2. Conservation Measures'!IS75","v":0},{"$f":"'2. Conservation Measures'!IT75","v":0},{"$f":"'2. Conservation Measures'!IU75","v":0},{"$f":"'2. Conservation Measures'!IV75","v":0},{"$f":"'2. Conservation Measures'!IW75","v":0},{"$f":"'2. Conservation Measures'!IX75","v":0},{"$f":"'2. Conservation Measures'!IY75","v":0},{"$f":"'2. Conservation Measures'!IZ75","v":0},{"$f":"'2. Conservation Measures'!JA75","v":0},{"$f":"'2. Conservation Measures'!JB75","v":0},{"$f":"'2. Conservation Measures'!JC75","v":0},{"$f":"'2. Conservation Measures'!JD75","v":0},{"$f":"'2. Conservation Measures'!JE75","v":0},{"$f":"'2. Conservation Measures'!JF75","v":0},{"$f":"'2. Conservation Measures'!JG75","v":0},{"$f":"'2. Conservation Measures'!JH75","v":0},{"$f":"'2. Conservation Measures'!JI75","v":0},{"$f":"'2. Conservation Measures'!JJ75","v":0},{"$f":"'2. Conservation Measures'!JK75","v":0},{"$f":"'2. Conservation Measures'!JL75","v":0},{"$f":"'2. Conservation Measures'!JM75","v":0},{"$f":"'2. Conservation Measures'!JN75","v":0},{"$f":"'2. Conservation Measures'!JO75","v":0},{"$f":"'2. Conservation Measures'!JP75","v":0},{"$f":"'2. Conservation Measures'!JQ75","v":0},{"$f":"'2. Conservation Measures'!JR75","v":0},{"$f":"'2. Conservation Measures'!JS75","v":0},{"$f":"'2. Conservation Measures'!JT75","v":0},{"$f":"'2. Conservation Measures'!JU75","v":0},{"$f":"'2. Conservation Measures'!JV75","v":0},{"$f":"'2. Conservation Measures'!JW75","v":0},{"$f":"'2. Conservation Measures'!JX75","v":0},{"$f":"'2. Conservation Measures'!JY75","v":0},{"$f":"'2. Conservation Measures'!JZ75","v":0},{"$f":"'2. Conservation Measures'!KA75","v":0},{"$f":"'2. Conservation Measures'!KB75","v":0},{"$f":"'2. Conservation Measures'!KC75","v":0},{"$f":"'2. Conservation Measures'!KD75","v":0},{"$f":"'2. Conservation Measures'!KE75","v":0},{"$f":"'2. Conservation Measures'!KF75","v":0},{"$f":"'2. Conservation Measures'!KG75","v":0},{"$f":"'2. Conservation Measures'!KH75","v":0},{"$f":"'2. Conservation Measures'!KI75","v":0},{"$f":"'2. Conservation Measures'!KJ75","v":0},{"$f":"'2. Conservation Measures'!KK75","v":0},{"$f":"'2. Conservation Measures'!KL75","v":0},{"$f":"'2. Conservation Measures'!KM75","v":0},{"$f":"'2. Conservation Measures'!KN75","v":0}]
[null,{"$f":"'2. Conservation Measures'!B76","v":"USR-SF-13"},{"$f":"'2. Conservation Measures'!C76","v":0},{"$f":"'2. Conservation Measures'!D76","v":"N"},null,{"$f":"'2. Conservation Measures'!AA76","v":0},null,{"$f":"'2. Conservation Measures'!AO76","v":0},{"$f":"'2. Conservation Measures'!AP76","v":0},{"$f":"'2. Conservation Measures'!AQ76","v":0},{"$f":"'2. Conservation Measures'!AR76","v":0},{"$f":"'2. Conservation Measures'!AS76","v":0},{"$f":"'2. Conservation Measures'!AT76","v":0},{"$f":"'2. Conservation Measures'!AU76","v":0},{"$f":"'2. Conservation Measures'!AV76","v":0},{"$f":"'2. Conservation Measures'!AW76","v":0},{"$f":"'2. Conservation Measures'!AX76","v":0},{"$f":"'2. Conservation Measures'!AY76","v":0},{"$f":"'2. Conservation Measures'!AZ76","v":0},{"$f":"'2. Conservation Measures'!BA76","v":0},{"$f":"'2. Conservation Measures'!BB76","v":0},{"$f":"'2. Conservation Measures'!BC76","v":0},{"$f":"'2. Conservation Measures'!BD76","v":0},{"$f":"'2. Conservation Measures'!BE76","v":0},{"$f":"'2. Conservation Measures'!BF76","v":0},{"$f":"'2. Conservation Measures'!BG76","v":0},{"$f":"'2. Conservation Measures'!BH76","v":0},{"$f":"'2. Conservation Measures'!BI76","v":0},{"$f":"'2. Conservation Measures'!BJ76","v":0},{"$f":"'2. Conservation Measures'!BK76","v":0},{"$f":"'2. Conservation Measures'!BL76","v":0},{"$f":"'2. Conservation Measures'!BM76","v":0},{"$f":"'2. Conservation Measures'!BN76","v":0},{"$f":"'2. Conservation Measures'!BO76","v":0},{"$f":"'2. Conservation Measures'!BP76","v":0},{"$f":"'2. Conservation Measures'!BQ76","v":0},{"$f":"'2. Conservation Measures'!BR76","v":0},{"$f":"'2. Conservation Measures'!BS76","v":0},{"$f":"'2. Conservation Measures'!BT76","v":0},{"$f":"'2. Conservation Measures'!BU76","v":0},{"$f":"'2. Conservation Measures'!BV76","v":0},{"$f":"'2. Conservation Measures'!BW76","v":0},{"$f":"'2. Conservation Measures'!BX76","v":0},{"$f":"'2. Conservation Measures'!BY76","v":0},{"$f":"'2. Conservation Measures'!BZ76","v":0},{"$f":"'2. Conservation Measures'!CA76","v":0},{"$f":"'2. Conservation Measures'!CB76","v":0},{"$f":"'2. Conservation Measures'!CC76","v":0},{"$f":"'2. Conservation Measures'!CD76","v":0},{"$f":"'2. Conservation Measures'!CE76","v":0},{"$f":"'2. Conservation Measures'!CF76","v":0},{"$f":"'2. Conservation Measures'!CG76","v":0},{"$f":"'2. Conservation Measures'!CH76","v":0},{"$f":"'2. Conservation Measures'!CI76","v":0},{"$f":"'2. Conservation Measures'!CJ76","v":0},{"$f":"'2. Conservation Measures'!CK76","v":0},{"$f":"'2. Conservation Measures'!CL76","v":0},{"$f":"'2. Conservation Measures'!CM76","v":0},null,{"$f":"'2. Conservation Measures'!CO76","v":0},{"$f":"'2. Conservation Measures'!CP76","v":0},{"$f":"'2. Conservation Measures'!CQ76","v":0},{"$f":"'2. Conservation Measures'!CR76","v":0},{"$f":"'2. Conservation Measures'!CS76","v":0},{"$f":"'2. Conservation Measures'!CT76","v":0},{"$f":"'2. Conservation Measures'!CU76","v":0},{"$f":"'2. Conservation Measures'!CV76","v":0},{"$f":"'2. Conservation Measures'!CW76","v":0},{"$f":"'2. Conservation Measures'!CX76","v":0},{"$f":"'2. Conservation Measures'!CY76","v":0},{"$f":"'2. Conservation Measures'!CZ76","v":0},{"$f":"'2. Conservation Measures'!DA76","v":0},{"$f":"'2. Conservation Measures'!DB76","v":0},{"$f":"'2. Conservation Measures'!DC76","v":0},{"$f":"'2. Conservation Measures'!DD76","v":0},{"$f":"'2. Conservation Measures'!DE76","v":0},{"$f":"'2. Conservation Measures'!DF76","v":0},{"$f":"'2. Conservation Measures'!DG76","v":0},{"$f":"'2. Conservation Measures'!DH76","v":0},{"$f":"'2. Conservation Measures'!DI76","v":0},{"$f":"'2. Conservation Measures'!DJ76","v":0},{"$f":"'2. Conservation Measures'!DK76","v":0},{"$f":"'2. Conservation Measures'!DL76","v":0},{"$f":"'2. Conservation Measures'!DM76","v":0},{"$f":"'2. Conservation Measures'!DN76","v":0},{"$f":"'2. Conservation Measures'!DO76","v":0},{"$f":"'2. Conservation Measures'!DP76","v":0},{"$f":"'2. Conservation Measures'!DQ76","v":0},{"$f":"'2. Conservation Measures'!DR76","v":0},{"$f":"'2. Conservation Measures'!DS76","v":0},{"$f":"'2. Conservation Measures'!DT76","v":0},{"$f":"'2. Conservation Measures'!DU76","v":0},{"$f":"'2. Conservation Measures'!DV76","v":0},{"$f":"'2. Conservation Measures'!DW76","v":0},{"$f":"'2. Conservation Measures'!DX76","v":0},{"$f":"'2. Conservation Measures'!DY76","v":0},{"$f":"'2. Conservation Measures'!DZ76","v":0},{"$f":"'2. Conservation Measures'!EA76","v":0},{"$f":"'2. Conservation Measures'!EB76","v":0},{"$f":"'2. Conservation Measures'!EC76","v":0},{"$f":"'2. Conservation Measures'!ED76","v":0},{"$f":"'2. Conservation Measures'!EE76","v":0},{"$f":"'2. Conservation Measures'!EF76","v":0},{"$f":"'2. Conservation Measures'!EG76","v":0},{"$f":"'2. Conservation Measures'!EH76","v":0},{"$f":"'2. Conservation Measures'!EI76","v":0},{"$f":"'2. Conservation Measures'!EJ76","v":0},{"$f":"'2. Conservation Measures'!EK76","v":0},{"$f":"'2. Conservation Measures'!EL76","v":0},{"$f":"'2. Conservation Measures'!EM76","v":0},null,{"$f":"'2. Conservation Measures'!KP76","v":0},{"$f":"'2. Conservation Measures'!KQ76","v":0},{"$f":"'2. Conservation Measures'!KR76","v":0},{"$f":"'2. Conservation Measures'!KS76","v":0},{"$f":"'2. Conservation Measures'!KT76","v":0},{"$f":"'2. Conservation Measures'!KU76","v":0},{"$f":"'2. Conservation Measures'!KV76","v":0},{"$f":"'2. Conservation Measures'!KW76","v":0},{"$f":"'2. Conservation Measures'!KX76","v":0},{"$f":"'2. Conservation Measures'!KY76","v":0},{"$f":"'2. Conservation Measures'!KZ76","v":0},{"$f":"'2. Conservation Measures'!LA76","v":0},{"$f":"'2. Conservation Measures'!LB76","v":0},{"$f":"'2. Conservation Measures'!LC76","v":0},{"$f":"'2. Conservation Measures'!LD76","v":0},{"$f":"'2. Conservation Measures'!LE76","v":0},{"$f":"'2. Conservation Measures'!LF76","v":0},{"$f":"'2. Conservation Measures'!LG76","v":0},{"$f":"'2. Conservation Measures'!LH76","v":0},{"$f":"'2. Conservation Measures'!LI76","v":0},{"$f":"'2. Conservation Measures'!LJ76","v":0},{"$f":"'2. Conservation Measures'!LK76","v":0},{"$f":"'2. Conservation Measures'!LL76","v":0},{"$f":"'2. Conservation Measures'!LM76","v":0},{"$f":"'2. Conservation Measures'!LN76","v":0},{"$f":"'2. Conservation Measures'!LO76","v":0},{"$f":"'2. Conservation Measures'!LP76","v":0},{"$f":"'2. Conservation Measures'!LQ76","v":0},{"$f":"'2. Conservation Measures'!LR76","v":0},{"$f":"'2. Conservation Measures'!LS76","v":0},{"$f":"'2. Conservation Measures'!LT76","v":0},{"$f":"'2. Conservation Measures'!LU76","v":0},{"$f":"'2. Conservation Measures'!LV76","v":0},{"$f":"'2. Conservation Measures'!LW76","v":0},{"$f":"'2. Conservation Measures'!LX76","v":0},{"$f":"'2. Conservation Measures'!LY76","v":0},{"$f":"'2. Conservation Measures'!LZ76","v":0},{"$f":"'2. Conservation Measures'!MA76","v":0},{"$f":"'2. Conservation Measures'!MB76","v":0},{"$f":"'2. Conservation Measures'!MC76","v":0},{"$f":"'2. Conservation Measures'!MD76","v":0},{"$f":"'2. Conservation Measures'!ME76","v":0},{"$f":"'2. Conservation Measures'!MF76","v":0},{"$f":"'2. Conservation Measures'!MG76","v":0},{"$f":"'2. Conservation Measures'!MH76","v":0},{"$f":"'2. Conservation Measures'!MI76","v":0},{"$f":"'2. Conservation Measures'!MJ76","v":0},{"$f":"'2. Conservation Measures'!MK76","v":0},{"$f":"'2. Conservation Measures'!ML76","v":0},{"$f":"'2. Conservation Measures'!MM76","v":0},{"$f":"'2. Conservation Measures'!MN76","v":0},null,{"$f":"'2. Conservation Measures'!EP76","v":0},{"$f":"'2. Conservation Measures'!EQ76","v":0},{"$f":"'2. Conservation Measures'!ER76","v":0},{"$f":"'2. Conservation Measures'!ES76","v":0},{"$f":"'2. Conservation Measures'!ET76","v":0},{"$f":"'2. Conservation Measures'!EU76","v":0},{"$f":"'2. Conservation Measures'!EV76","v":0},{"$f":"'2. Conservation Measures'!EW76","v":0},{"$f":"'2. Conservation Measures'!EX76","v":0},{"$f":"'2. Conservation Measures'!EY76","v":0},{"$f":"'2. Conservation Measures'!EZ76","v":0},{"$f":"'2. Conservation Measures'!FA76","v":0},{"$f":"'2. Conservation Measures'!FB76","v":0},{"$f":"'2. Conservation Measures'!FC76","v":0},{"$f":"'2. Conservation Measures'!FD76","v":0},{"$f":"'2. Conservation Measures'!FE76","v":0},{"$f":"'2. Conservation Measures'!FF76","v":0},{"$f":"'2. Conservation Measures'!FG76","v":0},{"$f":"'2. Conservation Measures'!FH76","v":0},{"$f":"'2. Conservation Measures'!FI76","v":0},{"$f":"'2. Conservation Measures'!FJ76","v":0},{"$f":"'2. Conservation Measures'!FK76","v":0},{"$f":"'2. Conservation Measures'!FL76","v":0},{"$f":"'2. Conservation Measures'!FM76","v":0},{"$f":"'2. Conservation Measures'!FN76","v":0},{"$f":"'2. Conservation Measures'!FO76","v":0},{"$f":"'2. Conservation Measures'!FP76","v":0},{"$f":"'2. Conservation Measures'!FQ76","v":0},{"$f":"'2. Conservation Measures'!FR76","v":0},{"$f":"'2. Conservation Measures'!FS76","v":0},{"$f":"'2. Conservation Measures'!FT76","v":0},{"$f":"'2. Conservation Measures'!FU76","v":0},{"$f":"'2. Conservation Measures'!FV76","v":0},{"$f":"'2. Conservation Measures'!FW76","v":0},{"$f":"'2. Conservation Measures'!FX76","v":0},{"$f":"'2. Conservation Measures'!FY76","v":0},{"$f":"'2. Conservation Measures'!FZ76","v":0},{"$f":"'2. Conservation Measures'!GA76","v":0},{"$f":"'2. Conservation Measures'!GB76","v":0},{"$f":"'2. Conservation Measures'!GC76","v":0},{"$f":"'2. Conservation Measures'!GD76","v":0},{"$f":"'2. Conservation Measures'!GE76","v":0},{"$f":"'2. Conservation Measures'!GF76","v":0},{"$f":"'2. Conservation Measures'!GG76","v":0},{"$f":"'2. Conservation Measures'!GH76","v":0},{"$f":"'2. Conservation Measures'!GI76","v":0},{"$f":"'2. Conservation Measures'!GJ76","v":0},{"$f":"'2. Conservation Measures'!GK76","v":0},{"$f":"'2. Conservation Measures'!GL76","v":0},{"$f":"'2. Conservation Measures'!GM76","v":0},{"$f":"'2. Conservation Measures'!GN76","v":0},null,{"$f":"'2. Conservation Measures'!GP76","v":0},{"$f":"'2. Conservation Measures'!GQ76","v":0},{"$f":"'2. Conservation Measures'!GR76","v":0},{"$f":"'2. Conservation Measures'!GS76","v":0},{"$f":"'2. Conservation Measures'!GT76","v":0},{"$f":"'2. Conservation Measures'!GU76","v":0},{"$f":"'2. Conservation Measures'!GV76","v":0},{"$f":"'2. Conservation Measures'!GW76","v":0},{"$f":"'2. Conservation Measures'!GX76","v":0},{"$f":"'2. Conservation Measures'!GY76","v":0},{"$f":"'2. Conservation Measures'!GZ76","v":0},{"$f":"'2. Conservation Measures'!HA76","v":0},{"$f":"'2. Conservation Measures'!HB76","v":0},{"$f":"'2. Conservation Measures'!HC76","v":0},{"$f":"'2. Conservation Measures'!HD76","v":0},{"$f":"'2. Conservation Measures'!HE76","v":0},{"$f":"'2. Conservation Measures'!HF76","v":0},{"$f":"'2. Conservation Measures'!HG76","v":0},{"$f":"'2. Conservation Measures'!HH76","v":0},{"$f":"'2. Conservation Measures'!HI76","v":0},{"$f":"'2. Conservation Measures'!HJ76","v":0},{"$f":"'2. Conservation Measures'!HK76","v":0},{"$f":"'2. Conservation Measures'!HL76","v":0},{"$f":"'2. Conservation Measures'!HM76","v":0},{"$f":"'2. Conservation Measures'!HN76","v":0},{"$f":"'2. Conservation Measures'!HO76","v":0},{"$f":"'2. Conservation Measures'!HP76","v":0},{"$f":"'2. Conservation Measures'!HQ76","v":0},{"$f":"'2. Conservation Measures'!HR76","v":0},{"$f":"'2. Conservation Measures'!HS76","v":0},{"$f":"'2. Conservation Measures'!HT76","v":0},{"$f":"'2. Conservation Measures'!HU76","v":0},{"$f":"'2. Conservation Measures'!HV76","v":0},{"$f":"'2. Conservation Measures'!HW76","v":0},{"$f":"'2. Conservation Measures'!HX76","v":0},{"$f":"'2. Conservation Measures'!HY76","v":0},{"$f":"'2. Conservation Measures'!HZ76","v":0},{"$f":"'2. Conservation Measures'!IA76","v":0},{"$f":"'2. Conservation Measures'!IB76","v":0},{"$f":"'2. Conservation Measures'!IC76","v":0},{"$f":"'2. Conservation Measures'!ID76","v":0},{"$f":"'2. Conservation Measures'!IE76","v":0},{"$f":"'2. Conservation Measures'!IF76","v":0},{"$f":"'2. Conservation Measures'!IG76","v":0},{"$f":"'2. Conservation Measures'!IH76","v":0},{"$f":"'2. Conservation Measures'!II76","v":0},{"$f":"'2. Conservation Measures'!IJ76","v":0},{"$f":"'2. Conservation Measures'!IK76","v":0},{"$f":"'2. Conservation Measures'!IL76","v":0},{"$f":"'2. Conservation Measures'!IM76","v":0},{"$f":"'2. Conservation Measures'!IN76","v":0},null,{"$f":"'2. Conservation Measures'!IP76","v":0},{"$f":"'2. Conservation Measures'!IQ76","v":0},{"$f":"'2. Conservation Measures'!IR76","v":0},{"$f":"'2. Conservation Measures'!IS76","v":0},{"$f":"'2. Conservation Measures'!IT76","v":0},{"$f":"'2. Conservation Measures'!IU76","v":0},{"$f":"'2. Conservation Measures'!IV76","v":0},{"$f":"'2. Conservation Measures'!IW76","v":0},{"$f":"'2. Conservation Measures'!IX76","v":0},{"$f":"'2. Conservation Measures'!IY76","v":0},{"$f":"'2. Conservation Measures'!IZ76","v":0},{"$f":"'2. Conservation Measures'!JA76","v":0},{"$f":"'2. Conservation Measures'!JB76","v":0},{"$f":"'2. Conservation Measures'!JC76","v":0},{"$f":"'2. Conservation Measures'!JD76","v":0},{"$f":"'2. Conservation Measures'!JE76","v":0},{"$f":"'2. Conservation Measures'!JF76","v":0},{"$f":"'2. Conservation Measures'!JG76","v":0},{"$f":"'2. Conservation Measures'!JH76","v":0},{"$f":"'2. Conservation Measures'!JI76","v":0},{"$f":"'2. Conservation Measures'!JJ76","v":0},{"$f":"'2. Conservation Measures'!JK76","v":0},{"$f":"'2. Conservation Measures'!JL76","v":0},{"$f":"'2. Conservation Measures'!JM76","v":0},{"$f":"'2. Conservation Measures'!JN76","v":0},{"$f":"'2. Conservation Measures'!JO76","v":0},{"$f":"'2. Conservation Measures'!JP76","v":0},{"$f":"'2. Conservation Measures'!JQ76","v":0},{"$f":"'2. Conservation Measures'!JR76","v":0},{"$f":"'2. Conservation Measures'!JS76","v":0},{"$f":"'2. Conservation Measures'!JT76","v":0},{"$f":"'2. Conservation Measures'!JU76","v":0},{"$f":"'2. Conservation Measures'!JV76","v":0},{"$f":"'2. Conservation Measures'!JW76","v":0},{"$f":"'2. Conservation Measures'!JX76","v":0},{"$f":"'2. Conservation Measures'!JY76","v":0},{"$f":"'2. Conservation Measures'!JZ76","v":0},{"$f":"'2. Conservation Measures'!KA76","v":0},{"$f":"'2. Conservation Measures'!KB76","v":0},{"$f":"'2. Conservation Measures'!KC76","v":0},{"$f":"'2. Conservation Measures'!KD76","v":0},{"$f":"'2. Conservation Measures'!KE76","v":0},{"$f":"'2. Conservation Measures'!KF76","v":0},{"$f":"'2. Conservation Measures'!KG76","v":0},{"$f":"'2. Conservation Measures'!KH76","v":0},{"$f":"'2. Conservation Measures'!KI76","v":0},{"$f":"'2. Conservation Measures'!KJ76","v":0},{"$f":"'2. Conservation Measures'!KK76","v":0},{"$f":"'2. Conservation Measures'!KL76","v":0},{"$f":"'2. Conservation Measures'!KM76","v":0},{"$f":"'2. Conservation Measures'!KN76","v":0}]
[null,{"$f":"'2. Conservation Measures'!B77","v":"USR-SF-14"},{"$f":"'2. Conservation Measures'!C77","v":0},{"$f":"'2. Conservation Measures'!D77","v":"N"},null,{"$f":"'2. Conservation Measures'!AA77","v":0},null,{"$f":"'2. Conservation Measures'!AO77","v":0},{"$f":"'2. Conservation Measures'!AP77","v":0},{"$f":"'2. Conservation Measures'!AQ77","v":0},{"$f":"'2. Conservation Measures'!AR77","v":0},{"$f":"'2. Conservation Measures'!AS77","v":0},{"$f":"'2. Conservation Measures'!AT77","v":0},{"$f":"'2. Conservation Measures'!AU77","v":0},{"$f":"'2. Conservation Measures'!AV77","v":0},{"$f":"'2. Conservation Measures'!AW77","v":0},{"$f":"'2. Conservation Measures'!AX77","v":0},{"$f":"'2. Conservation Measures'!AY77","v":0},{"$f":"'2. Conservation Measures'!AZ77","v":0},{"$f":"'2. Conservation Measures'!BA77","v":0},{"$f":"'2. Conservation Measures'!BB77","v":0},{"$f":"'2. Conservation Measures'!BC77","v":0},{"$f":"'2. Conservation Measures'!BD77","v":0},{"$f":"'2. Conservation Measures'!BE77","v":0},{"$f":"'2. Conservation Measures'!BF77","v":0},{"$f":"'2. Conservation Measures'!BG77","v":0},{"$f":"'2. Conservation Measures'!BH77","v":0},{"$f":"'2. Conservation Measures'!BI77","v":0},{"$f":"'2. Conservation Measures'!BJ77","v":0},{"$f":"'2. Conservation Measures'!BK77","v":0},{"$f":"'2. Conservation Measures'!BL77","v":0},{"$f":"'2. Conservation Measures'!BM77","v":0},{"$f":"'2. Conservation Measures'!BN77","v":0},{"$f":"'2. Conservation Measures'!BO77","v":0},{"$f":"'2. Conservation Measures'!BP77","v":0},{"$f":"'2. Conservation Measures'!BQ77","v":0},{"$f":"'2. Conservation Measures'!BR77","v":0},{"$f":"'2. Conservation Measures'!BS77","v":0},{"$f":"'2. Conservation Measures'!BT77","v":0},{"$f":"'2. Conservation Measures'!BU77","v":0},{"$f":"'2. Conservation Measures'!BV77","v":0},{"$f":"'2. Conservation Measures'!BW77","v":0},{"$f":"'2. Conservation Measures'!BX77","v":0},{"$f":"'2. Conservation Measures'!BY77","v":0},{"$f":"'2. Conservation Measures'!BZ77","v":0},{"$f":"'2. Conservation Measures'!CA77","v":0},{"$f":"'2. Conservation Measures'!CB77","v":0},{"$f":"'2. Conservation Measures'!CC77","v":0},{"$f":"'2. Conservation Measures'!CD77","v":0},{"$f":"'2. Conservation Measures'!CE77","v":0},{"$f":"'2. Conservation Measures'!CF77","v":0},{"$f":"'2. Conservation Measures'!CG77","v":0},{"$f":"'2. Conservation Measures'!CH77","v":0},{"$f":"'2. Conservation Measures'!CI77","v":0},{"$f":"'2. Conservation Measures'!CJ77","v":0},{"$f":"'2. Conservation Measures'!CK77","v":0},{"$f":"'2. Conservation Measures'!CL77","v":0},{"$f":"'2. Conservation Measures'!CM77","v":0},null,{"$f":"'2. Conservation Measures'!CO77","v":0},{"$f":"'2. Conservation Measures'!CP77","v":0},{"$f":"'2. Conservation Measures'!CQ77","v":0},{"$f":"'2. Conservation Measures'!CR77","v":0},{"$f":"'2. Conservation Measures'!CS77","v":0},{"$f":"'2. Conservation Measures'!CT77","v":0},{"$f":"'2. Conservation Measures'!CU77","v":0},{"$f":"'2. Conservation Measures'!CV77","v":0},{"$f":"'2. Conservation Measures'!CW77","v":0},{"$f":"'2. Conservation Measures'!CX77","v":0},{"$f":"'2. Conservation Measures'!CY77","v":0},{"$f":"'2. Conservation Measures'!CZ77","v":0},{"$f":"'2. Conservation Measures'!DA77","v":0},{"$f":"'2. Conservation Measures'!DB77","v":0},{"$f":"'2. Conservation Measures'!DC77","v":0},{"$f":"'2. Conservation Measures'!DD77","v":0},{"$f":"'2. Conservation Measures'!DE77","v":0},{"$f":"'2. Conservation Measures'!DF77","v":0},{"$f":"'2. Conservation Measures'!DG77","v":0},{"$f":"'2. Conservation Measures'!DH77","v":0},{"$f":"'2. Conservation Measures'!DI77","v":0},{"$f":"'2. Conservation Measures'!DJ77","v":0},{"$f":"'2. Conservation Measures'!DK77","v":0},{"$f":"'2. Conservation Measures'!DL77","v":0},{"$f":"'2. Conservation Measures'!DM77","v":0},{"$f":"'2. Conservation Measures'!DN77","v":0},{"$f":"'2. Conservation Measures'!DO77","v":0},{"$f":"'2. Conservation Measures'!DP77","v":0},{"$f":"'2. Conservation Measures'!DQ77","v":0},{"$f":"'2. Conservation Measures'!DR77","v":0},{"$f":"'2. Conservation Measures'!DS77","v":0},{"$f":"'2. Conservation Measures'!DT77","v":0},{"$f":"'2. Conservation Measures'!DU77","v":0},{"$f":"'2. Conservation Measures'!DV77","v":0},{"$f":"'2. Conservation Measures'!DW77","v":0},{"$f":"'2. Conservation Measures'!DX77","v":0},{"$f":"'2. Conservation Measures'!DY77","v":0},{"$f":"'2. Conservation Measures'!DZ77","v":0},{"$f":"'2. Conservation Measures'!EA77","v":0},{"$f":"'2. Conservation Measures'!EB77","v":0},{"$f":"'2. Conservation Measures'!EC77","v":0},{"$f":"'2. Conservation Measures'!ED77","v":0},{"$f":"'2. Conservation Measures'!EE77","v":0},{"$f":"'2. Conservation Measures'!EF77","v":0},{"$f":"'2. Conservation Measures'!EG77","v":0},{"$f":"'2. Conservation Measures'!EH77","v":0},{"$f":"'2. Conservation Measures'!EI77","v":0},{"$f":"'2. Conservation Measures'!EJ77","v":0},{"$f":"'2. Conservation Measures'!EK77","v":0},{"$f":"'2. Conservation Measures'!EL77","v":0},{"$f":"'2. Conservation Measures'!EM77","v":0},null,{"$f":"'2. Conservation Measures'!KP77","v":0},{"$f":"'2. Conservation Measures'!KQ77","v":0},{"$f":"'2. Conservation Measures'!KR77","v":0},{"$f":"'2. Conservation Measures'!KS77","v":0},{"$f":"'2. Conservation Measures'!KT77","v":0},{"$f":"'2. Conservation Measures'!KU77","v":0},{"$f":"'2. Conservation Measures'!KV77","v":0},{"$f":"'2. Conservation Measures'!KW77","v":0},{"$f":"'2. Conservation Measures'!KX77","v":0},{"$f":"'2. Conservation Measures'!KY77","v":0},{"$f":"'2. Conservation Measures'!KZ77","v":0},{"$f":"'2. Conservation Measures'!LA77","v":0},{"$f":"'2. Conservation Measures'!LB77","v":0},{"$f":"'2. Conservation Measures'!LC77","v":0},{"$f":"'2. Conservation Measures'!LD77","v":0},{"$f":"'2. Conservation Measures'!LE77","v":0},{"$f":"'2. Conservation Measures'!LF77","v":0},{"$f":"'2. Conservation Measures'!LG77","v":0},{"$f":"'2. Conservation Measures'!LH77","v":0},{"$f":"'2. Conservation Measures'!LI77","v":0},{"$f":"'2. Conservation Measures'!LJ77","v":0},{"$f":"'2. Conservation Measures'!LK77","v":0},{"$f":"'2. Conservation Measures'!LL77","v":0},{"$f":"'2. Conservation Measures'!LM77","v":0},{"$f":"'2. Conservation Measures'!LN77","v":0},{"$f":"'2. Conservation Measures'!LO77","v":0},{"$f":"'2. Conservation Measures'!LP77","v":0},{"$f":"'2. Conservation Measures'!LQ77","v":0},{"$f":"'2. Conservation Measures'!LR77","v":0},{"$f":"'2. Conservation Measures'!LS77","v":0},{"$f":"'2. Conservation Measures'!LT77","v":0},{"$f":"'2. Conservation Measures'!LU77","v":0},{"$f":"'2. Conservation Measures'!LV77","v":0},{"$f":"'2. Conservation Measures'!LW77","v":0},{"$f":"'2. Conservation Measures'!LX77","v":0},{"$f":"'2. Conservation Measures'!LY77","v":0},{"$f":"'2. Conservation Measures'!LZ77","v":0},{"$f":"'2. Conservation Measures'!MA77","v":0},{"$f":"'2. Conservation Measures'!MB77","v":0},{"$f":"'2. Conservation Measures'!MC77","v":0},{"$f":"'2. Conservation Measures'!MD77","v":0},{"$f":"'2. Conservation Measures'!ME77","v":0},{"$f":"'2. Conservation Measures'!MF77","v":0},{"$f":"'2. Conservation Measures'!MG77","v":0},{"$f":"'2. Conservation Measures'!MH77","v":0},{"$f":"'2. Conservation Measures'!MI77","v":0},{"$f":"'2. Conservation Measures'!MJ77","v":0},{"$f":"'2. Conservation Measures'!MK77","v":0},{"$f":"'2. Conservation Measures'!ML77","v":0},{"$f":"'2. Conservation Measures'!MM77","v":0},{"$f":"'2. Conservation Measures'!MN77","v":0},null,{"$f":"'2. Conservation Measures'!EP77","v":0},{"$f":"'2. Conservation Measures'!EQ77","v":0},{"$f":"'2. Conservation Measures'!ER77","v":0},{"$f":"'2. Conservation Measures'!ES77","v":0},{"$f":"'2. Conservation Measures'!ET77","v":0},{"$f":"'2. Conservation Measures'!EU77","v":0},{"$f":"'2. Conservation Measures'!EV77","v":0},{"$f":"'2. Conservation Measures'!EW77","v":0},{"$f":"'2. Conservation Measures'!EX77","v":0},{"$f":"'2. Conservation Measures'!EY77","v":0},{"$f":"'2. Conservation Measures'!EZ77","v":0},{"$f":"'2. Conservation Measures'!FA77","v":0},{"$f":"'2. Conservation Measures'!FB77","v":0},{"$f":"'2. Conservation Measures'!FC77","v":0},{"$f":"'2. Conservation Measures'!FD77","v":0},{"$f":"'2. Conservation Measures'!FE77","v":0},{"$f":"'2. Conservation Measures'!FF77","v":0},{"$f":"'2. Conservation Measures'!FG77","v":0},{"$f":"'2. Conservation Measures'!FH77","v":0},{"$f":"'2. Conservation Measures'!FI77","v":0},{"$f":"'2. Conservation Measures'!FJ77","v":0},{"$f":"'2. Conservation Measures'!FK77","v":0},{"$f":"'2. Conservation Measures'!FL77","v":0},{"$f":"'2. Conservation Measures'!FM77","v":0},{"$f":"'2. Conservation Measures'!FN77","v":0},{"$f":"'2. Conservation Measures'!FO77","v":0},{"$f":"'2. Conservation Measures'!FP77","v":0},{"$f":"'2. Conservation Measures'!FQ77","v":0},{"$f":"'2. Conservation Measures'!FR77","v":0},{"$f":"'2. Conservation Measures'!FS77","v":0},{"$f":"'2. Conservation Measures'!FT77","v":0},{"$f":"'2. Conservation Measures'!FU77","v":0},{"$f":"'2. Conservation Measures'!FV77","v":0},{"$f":"'2. Conservation Measures'!FW77","v":0},{"$f":"'2. Conservation Measures'!FX77","v":0},{"$f":"'2. Conservation Measures'!FY77","v":0},{"$f":"'2. Conservation Measures'!FZ77","v":0},{"$f":"'2. Conservation Measures'!GA77","v":0},{"$f":"'2. Conservation Measures'!GB77","v":0},{"$f":"'2. Conservation Measures'!GC77","v":0},{"$f":"'2. Conservation Measures'!GD77","v":0},{"$f":"'2. Conservation Measures'!GE77","v":0},{"$f":"'2. Conservation Measures'!GF77","v":0},{"$f":"'2. Conservation Measures'!GG77","v":0},{"$f":"'2. Conservation Measures'!GH77","v":0},{"$f":"'2. Conservation Measures'!GI77","v":0},{"$f":"'2. Conservation Measures'!GJ77","v":0},{"$f":"'2. Conservation Measures'!GK77","v":0},{"$f":"'2. Conservation Measures'!GL77","v":0},{"$f":"'2. Conservation Measures'!GM77","v":0},{"$f":"'2. Conservation Measures'!GN77","v":0},null,{"$f":"'2. Conservation Measures'!GP77","v":0},{"$f":"'2. Conservation Measures'!GQ77","v":0},{"$f":"'2. Conservation Measures'!GR77","v":0},{"$f":"'2. Conservation Measures'!GS77","v":0},{"$f":"'2. Conservation Measures'!GT77","v":0},{"$f":"'2. Conservation Measures'!GU77","v":0},{"$f":"'2. Conservation Measures'!GV77","v":0},{"$f":"'2. Conservation Measures'!GW77","v":0},{"$f":"'2. Conservation Measures'!GX77","v":0},{"$f":"'2. Conservation Measures'!GY77","v":0},{"$f":"'2. Conservation Measures'!GZ77","v":0},{"$f":"'2. Conservation Measures'!HA77","v":0},{"$f":"'2. Conservation Measures'!HB77","v":0},{"$f":"'2. Conservation Measures'!HC77","v":0},{"$f":"'2. Conservation Measures'!HD77","v":0},{"$f":"'2. Conservation Measures'!HE77","v":0},{"$f":"'2. Conservation Measures'!HF77","v":0},{"$f":"'2. Conservation Measures'!HG77","v":0},{"$f":"'2. Conservation Measures'!HH77","v":0},{"$f":"'2. Conservation Measures'!HI77","v":0},{"$f":"'2. Conservation Measures'!HJ77","v":0},{"$f":"'2. Conservation Measures'!HK77","v":0},{"$f":"'2. Conservation Measures'!HL77","v":0},{"$f":"'2. Conservation Measures'!HM77","v":0},{"$f":"'2. Conservation Measures'!HN77","v":0},{"$f":"'2. Conservation Measures'!HO77","v":0},{"$f":"'2. Conservation Measures'!HP77","v":0},{"$f":"'2. Conservation Measures'!HQ77","v":0},{"$f":"'2. Conservation Measures'!HR77","v":0},{"$f":"'2. Conservation Measures'!HS77","v":0},{"$f":"'2. Conservation Measures'!HT77","v":0},{"$f":"'2. Conservation Measures'!HU77","v":0},{"$f":"'2. Conservation Measures'!HV77","v":0},{"$f":"'2. Conservation Measures'!HW77","v":0},{"$f":"'2. Conservation Measures'!HX77","v":0},{"$f":"'2. Conservation Measures'!HY77","v":0},{"$f":"'2. Conservation Measures'!HZ77","v":0},{"$f":"'2. Conservation Measures'!IA77","v":0},{"$f":"'2. Conservation Measures'!IB77","v":0},{"$f":"'2. Conservation Measures'!IC77","v":0},{"$f":"'2. Conservation Measures'!ID77","v":0},{"$f":"'2. Conservation Measures'!IE77","v":0},{"$f":"'2. Conservation Measures'!IF77","v":0},{"$f":"'2. Conservation Measures'!IG77","v":0},{"$f":"'2. Conservation Measures'!IH77","v":0},{"$f":"'2. Conservation Measures'!II77","v":0},{"$f":"'2. Conservation Measures'!IJ77","v":0},{"$f":"'2. Conservation Measures'!IK77","v":0},{"$f":"'2. Conservation Measures'!IL77","v":0},{"$f":"'2. Conservation Measures'!IM77","v":0},{"$f":"'2. Conservation Measures'!IN77","v":0},null,{"$f":"'2. Conservation Measures'!IP77","v":0},{"$f":"'2. Conservation Measures'!IQ77","v":0},{"$f":"'2. Conservation Measures'!IR77","v":0},{"$f":"'2. Conservation Measures'!IS77","v":0},{"$f":"'2. Conservation Measures'!IT77","v":0},{"$f":"'2. Conservation Measures'!IU77","v":0},{"$f":"'2. Conservation Measures'!IV77","v":0},{"$f":"'2. Conservation Measures'!IW77","v":0},{"$f":"'2. Conservation Measures'!IX77","v":0},{"$f":"'2. Conservation Measures'!IY77","v":0},{"$f":"'2. Conservation Measures'!IZ77","v":0},{"$f":"'2. Conservation Measures'!JA77","v":0},{"$f":"'2. Conservation Measures'!JB77","v":0},{"$f":"'2. Conservation Measures'!JC77","v":0},{"$f":"'2. Conservation Measures'!JD77","v":0},{"$f":"'2. Conservation Measures'!JE77","v":0},{"$f":"'2. Conservation Measures'!JF77","v":0},{"$f":"'2. Conservation Measures'!JG77","v":0},{"$f":"'2. Conservation Measures'!JH77","v":0},{"$f":"'2. Conservation Measures'!JI77","v":0},{"$f":"'2. Conservation Measures'!JJ77","v":0},{"$f":"'2. Conservation Measures'!JK77","v":0},{"$f":"'2. Conservation Measures'!JL77","v":0},{"$f":"'2. Conservation Measures'!JM77","v":0},{"$f":"'2. Conservation Measures'!JN77","v":0},{"$f":"'2. Conservation Measures'!JO77","v":0},{"$f":"'2. Conservation Measures'!JP77","v":0},{"$f":"'2. Conservation Measures'!JQ77","v":0},{"$f":"'2. Conservation Measures'!JR77","v":0},{"$f":"'2. Conservation Measures'!JS77","v":0},{"$f":"'2. Conservation Measures'!JT77","v":0},{"$f":"'2. Conservation Measures'!JU77","v":0},{"$f":"'2. Conservation Measures'!JV77","v":0},{"$f":"'2. Conservation Measures'!JW77","v":0},{"$f":"'2. Conservation Measures'!JX77","v":0},{"$f":"'2. Conservation Measures'!JY77","v":0},{"$f":"'2. Conservation Measures'!JZ77","v":0},{"$f":"'2. Conservation Measures'!KA77","v":0},{"$f":"'2. Conservation Measures'!KB77","v":0},{"$f":"'2. Conservation Measures'!KC77","v":0},{"$f":"'2. Conservation Measures'!KD77","v":0},{"$f":"'2. Conservation Measures'!KE77","v":0},{"$f":"'2. Conservation Measures'!KF77","v":0},{"$f":"'2. Conservation Measures'!KG77","v":0},{"$f":"'2. Conservation Measures'!KH77","v":0},{"$f":"'2. Conservation Measures'!KI77","v":0},{"$f":"'2. Conservation Measures'!KJ77","v":0},{"$f":"'2. Conservation Measures'!KK77","v":0},{"$f":"'2. Conservation Measures'!KL77","v":0},{"$f":"'2. Conservation Measures'!KM77","v":0},{"$f":"'2. Conservation Measures'!KN77","v":0}]
[null,{"$f":"'2. Conservation Measures'!B78","v":"USR-SF-15"},{"$f":"'2. Conservation Measures'!C78","v":0},{"$f":"'2. Conservation Measures'!D78","v":"N"},null,{"$f":"'2. Conservation Measures'!AA78","v":0},null,{"$f":"'2. Conservation Measures'!AO78","v":0},{"$f":"'2. Conservation Measures'!AP78","v":0},{"$f":"'2. Conservation Measures'!AQ78","v":0},{"$f":"'2. Conservation Measures'!AR78","v":0},{"$f":"'2. Conservation Measures'!AS78","v":0},{"$f":"'2. Conservation Measures'!AT78","v":0},{"$f":"'2. Conservation Measures'!AU78","v":0},{"$f":"'2. Conservation Measures'!AV78","v":0},{"$f":"'2. Conservation Measures'!AW78","v":0},{"$f":"'2. Conservation Measures'!AX78","v":0},{"$f":"'2. Conservation Measures'!AY78","v":0},{"$f":"'2. Conservation Measures'!AZ78","v":0},{"$f":"'2. Conservation Measures'!BA78","v":0},{"$f":"'2. Conservation Measures'!BB78","v":0},{"$f":"'2. Conservation Measures'!BC78","v":0},{"$f":"'2. Conservation Measures'!BD78","v":0},{"$f":"'2. Conservation Measures'!BE78","v":0},{"$f":"'2. Conservation Measures'!BF78","v":0},{"$f":"'2. Conservation Measures'!BG78","v":0},{"$f":"'2. Conservation Measures'!BH78","v":0},{"$f":"'2. Conservation Measures'!BI78","v":0},{"$f":"'2. Conservation Measures'!BJ78","v":0},{"$f":"'2. Conservation Measures'!BK78","v":0},{"$f":"'2. Conservation Measures'!BL78","v":0},{"$f":"'2. Conservation Measures'!BM78","v":0},{"$f":"'2. Conservation Measures'!BN78","v":0},{"$f":"'2. Conservation Measures'!BO78","v":0},{"$f":"'2. Conservation Measures'!BP78","v":0},{"$f":"'2. Conservation Measures'!BQ78","v":0},{"$f":"'2. Conservation Measures'!BR78","v":0},{"$f":"'2. Conservation Measures'!BS78","v":0},{"$f":"'2. Conservation Measures'!BT78","v":0},{"$f":"'2. Conservation Measures'!BU78","v":0},{"$f":"'2. Conservation Measures'!BV78","v":0},{"$f":"'2. Conservation Measures'!BW78","v":0},{"$f":"'2. Conservation Measures'!BX78","v":0},{"$f":"'2. Conservation Measures'!BY78","v":0},{"$f":"'2. Conservation Measures'!BZ78","v":0},{"$f":"'2. Conservation Measures'!CA78","v":0},{"$f":"'2. Conservation Measures'!CB78","v":0},{"$f":"'2. Conservation Measures'!CC78","v":0},{"$f":"'2. Conservation Measures'!CD78","v":0},{"$f":"'2. Conservation Measures'!CE78","v":0},{"$f":"'2. Conservation Measures'!CF78","v":0},{"$f":"'2. Conservation Measures'!CG78","v":0},{"$f":"'2. Conservation Measures'!CH78","v":0},{"$f":"'2. Conservation Measures'!CI78","v":0},{"$f":"'2. Conservation Measures'!CJ78","v":0},{"$f":"'2. Conservation Measures'!CK78","v":0},{"$f":"'2. Conservation Measures'!CL78","v":0},{"$f":"'2. Conservation Measures'!CM78","v":0},null,{"$f":"'2. Conservation Measures'!CO78","v":0},{"$f":"'2. Conservation Measures'!CP78","v":0},{"$f":"'2. Conservation Measures'!CQ78","v":0},{"$f":"'2. Conservation Measures'!CR78","v":0},{"$f":"'2. Conservation Measures'!CS78","v":0},{"$f":"'2. Conservation Measures'!CT78","v":0},{"$f":"'2. Conservation Measures'!CU78","v":0},{"$f":"'2. Conservation Measures'!CV78","v":0},{"$f":"'2. Conservation Measures'!CW78","v":0},{"$f":"'2. Conservation Measures'!CX78","v":0},{"$f":"'2. Conservation Measures'!CY78","v":0},{"$f":"'2. Conservation Measures'!CZ78","v":0},{"$f":"'2. Conservation Measures'!DA78","v":0},{"$f":"'2. Conservation Measures'!DB78","v":0},{"$f":"'2. Conservation Measures'!DC78","v":0},{"$f":"'2. Conservation Measures'!DD78","v":0},{"$f":"'2. Conservation Measures'!DE78","v":0},{"$f":"'2. Conservation Measures'!DF78","v":0},{"$f":"'2. Conservation Measures'!DG78","v":0},{"$f":"'2. Conservation Measures'!DH78","v":0},{"$f":"'2. Conservation Measures'!DI78","v":0},{"$f":"'2. Conservation Measures'!DJ78","v":0},{"$f":"'2. Conservation Measures'!DK78","v":0},{"$f":"'2. Conservation Measures'!DL78","v":0},{"$f":"'2. Conservation Measures'!DM78","v":0},{"$f":"'2. Conservation Measures'!DN78","v":0},{"$f":"'2. Conservation Measures'!DO78","v":0},{"$f":"'2. Conservation Measures'!DP78","v":0},{"$f":"'2. Conservation Measures'!DQ78","v":0},{"$f":"'2. Conservation Measures'!DR78","v":0},{"$f":"'2. Conservation Measures'!DS78","v":0},{"$f":"'2. Conservation Measures'!DT78","v":0},{"$f":"'2. Conservation Measures'!DU78","v":0},{"$f":"'2. Conservation Measures'!DV78","v":0},{"$f":"'2. Conservation Measures'!DW78","v":0},{"$f":"'2. Conservation Measures'!DX78","v":0},{"$f":"'2. Conservation Measures'!DY78","v":0},{"$f":"'2. Conservation Measures'!DZ78","v":0},{"$f":"'2. Conservation Measures'!EA78","v":0},{"$f":"'2. Conservation Measures'!EB78","v":0},{"$f":"'2. Conservation Measures'!EC78","v":0},{"$f":"'2. Conservation Measures'!ED78","v":0},{"$f":"'2. Conservation Measures'!EE78","v":0},{"$f":"'2. Conservation Measures'!EF78","v":0},{"$f":"'2. Conservation Measures'!EG78","v":0},{"$f":"'2. Conservation Measures'!EH78","v":0},{"$f":"'2. Conservation Measures'!EI78","v":0},{"$f":"'2. Conservation Measures'!EJ78","v":0},{"$f":"'2. Conservation Measures'!EK78","v":0},{"$f":"'2. Conservation Measures'!EL78","v":0},{"$f":"'2. Conservation Measures'!EM78","v":0},null,{"$f":"'2. Conservation Measures'!KP78","v":0},{"$f":"'2. Conservation Measures'!KQ78","v":0},{"$f":"'2. Conservation Measures'!KR78","v":0},{"$f":"'2. Conservation Measures'!KS78","v":0},{"$f":"'2. Conservation Measures'!KT78","v":0},{"$f":"'2. Conservation Measures'!KU78","v":0},{"$f":"'2. Conservation Measures'!KV78","v":0},{"$f":"'2. Conservation Measures'!KW78","v":0},{"$f":"'2. Conservation Measures'!KX78","v":0},{"$f":"'2. Conservation Measures'!KY78","v":0},{"$f":"'2. Conservation Measures'!KZ78","v":0},{"$f":"'2. Conservation Measures'!LA78","v":0},{"$f":"'2. Conservation Measures'!LB78","v":0},{"$f":"'2. Conservation Measures'!LC78","v":0},{"$f":"'2. Conservation Measures'!LD78","v":0},{"$f":"'2. Conservation Measures'!LE78","v":0},{"$f":"'2. Conservation Measures'!LF78","v":0},{"$f":"'2. Conservation Measures'!LG78","v":0},{"$f":"'2. Conservation Measures'!LH78","v":0},{"$f":"'2. Conservation Measures'!LI78","v":0},{"$f":"'2. Conservation Measures'!LJ78","v":0},{"$f":"'2. Conservation Measures'!LK78","v":0},{"$f":"'2. Conservation Measures'!LL78","v":0},{"$f":"'2. Conservation Measures'!LM78","v":0},{"$f":"'2. Conservation Measures'!LN78","v":0},{"$f":"'2. Conservation Measures'!LO78","v":0},{"$f":"'2. Conservation Measures'!LP78","v":0},{"$f":"'2. Conservation Measures'!LQ78","v":0},{"$f":"'2. Conservation Measures'!LR78","v":0},{"$f":"'2. Conservation Measures'!LS78","v":0},{"$f":"'2. Conservation Measures'!LT78","v":0},{"$f":"'2. Conservation Measures'!LU78","v":0},{"$f":"'2. Conservation Measures'!LV78","v":0},{"$f":"'2. Conservation Measures'!LW78","v":0},{"$f":"'2. Conservation Measures'!LX78","v":0},{"$f":"'2. Conservation Measures'!LY78","v":0},{"$f":"'2. Conservation Measures'!LZ78","v":0},{"$f":"'2. Conservation Measures'!MA78","v":0},{"$f":"'2. Conservation Measures'!MB78","v":0},{"$f":"'2. Conservation Measures'!MC78","v":0},{"$f":"'2. Conservation Measures'!MD78","v":0},{"$f":"'2. Conservation Measures'!ME78","v":0},{"$f":"'2. Conservation Measures'!MF78","v":0},{"$f":"'2. Conservation Measures'!MG78","v":0},{"$f":"'2. Conservation Measures'!MH78","v":0},{"$f":"'2. Conservation Measures'!MI78","v":0},{"$f":"'2. Conservation Measures'!MJ78","v":0},{"$f":"'2. Conservation Measures'!MK78","v":0},{"$f":"'2. Conservation Measures'!ML78","v":0},{"$f":"'2. Conservation Measures'!MM78","v":0},{"$f":"'2. Conservation Measures'!MN78","v":0},null,{"$f":"'2. Conservation Measures'!EP78","v":0},{"$f":"'2. Conservation Measures'!EQ78","v":0},{"$f":"'2. Conservation Measures'!ER78","v":0},{"$f":"'2. Conservation Measures'!ES78","v":0},{"$f":"'2. Conservation Measures'!ET78","v":0},{"$f":"'2. Conservation Measures'!EU78","v":0},{"$f":"'2. Conservation Measures'!EV78","v":0},{"$f":"'2. Conservation Measures'!EW78","v":0},{"$f":"'2. Conservation Measures'!EX78","v":0},{"$f":"'2. Conservation Measures'!EY78","v":0},{"$f":"'2. Conservation Measures'!EZ78","v":0},{"$f":"'2. Conservation Measures'!FA78","v":0},{"$f":"'2. Conservation Measures'!FB78","v":0},{"$f":"'2. Conservation Measures'!FC78","v":0},{"$f":"'2. Conservation Measures'!FD78","v":0},{"$f":"'2. Conservation Measures'!FE78","v":0},{"$f":"'2. Conservation Measures'!FF78","v":0},{"$f":"'2. Conservation Measures'!FG78","v":0},{"$f":"'2. Conservation Measures'!FH78","v":0},{"$f":"'2. Conservation Measures'!FI78","v":0},{"$f":"'2. Conservation Measures'!FJ78","v":0},{"$f":"'2. Conservation Measures'!FK78","v":0},{"$f":"'2. Conservation Measures'!FL78","v":0},{"$f":"'2. Conservation Measures'!FM78","v":0},{"$f":"'2. Conservation Measures'!FN78","v":0},{"$f":"'2. Conservation Measures'!FO78","v":0},{"$f":"'2. Conservation Measures'!FP78","v":0},{"$f":"'2. Conservation Measures'!FQ78","v":0},{"$f":"'2. Conservation Measures'!FR78","v":0},{"$f":"'2. Conservation Measures'!FS78","v":0},{"$f":"'2. Conservation Measures'!FT78","v":0},{"$f":"'2. Conservation Measures'!FU78","v":0},{"$f":"'2. Conservation Measures'!FV78","v":0},{"$f":"'2. Conservation Measures'!FW78","v":0},{"$f":"'2. Conservation Measures'!FX78","v":0},{"$f":"'2. Conservation Measures'!FY78","v":0},{"$f":"'2. Conservation Measures'!FZ78","v":0},{"$f":"'2. Conservation Measures'!GA78","v":0},{"$f":"'2. Conservation Measures'!GB78","v":0},{"$f":"'2. Conservation Measures'!GC78","v":0},{"$f":"'2. Conservation Measures'!GD78","v":0},{"$f":"'2. Conservation Measures'!GE78","v":0},{"$f":"'2. Conservation Measures'!GF78","v":0},{"$f":"'2. Conservation Measures'!GG78","v":0},{"$f":"'2. Conservation Measures'!GH78","v":0},{"$f":"'2. Conservation Measures'!GI78","v":0},{"$f":"'2. Conservation Measures'!GJ78","v":0},{"$f":"'2. Conservation Measures'!GK78","v":0},{"$f":"'2. Conservation Measures'!GL78","v":0},{"$f":"'2. Conservation Measures'!GM78","v":0},{"$f":"'2. Conservation Measures'!GN78","v":0},null,{"$f":"'2. Conservation Measures'!GP78","v":0},{"$f":"'2. Conservation Measures'!GQ78","v":0},{"$f":"'2. Conservation Measures'!GR78","v":0},{"$f":"'2. Conservation Measures'!GS78","v":0},{"$f":"'2. Conservation Measures'!GT78","v":0},{"$f":"'2. Conservation Measures'!GU78","v":0},{"$f":"'2. Conservation Measures'!GV78","v":0},{"$f":"'2. Conservation Measures'!GW78","v":0},{"$f":"'2. Conservation Measures'!GX78","v":0},{"$f":"'2. Conservation Measures'!GY78","v":0},{"$f":"'2. Conservation Measures'!GZ78","v":0},{"$f":"'2. Conservation Measures'!HA78","v":0},{"$f":"'2. Conservation Measures'!HB78","v":0},{"$f":"'2. Conservation Measures'!HC78","v":0},{"$f":"'2. Conservation Measures'!HD78","v":0},{"$f":"'2. Conservation Measures'!HE78","v":0},{"$f":"'2. Conservation Measures'!HF78","v":0},{"$f":"'2. Conservation Measures'!HG78","v":0},{"$f":"'2. Conservation Measures'!HH78","v":0},{"$f":"'2. Conservation Measures'!HI78","v":0},{"$f":"'2. Conservation Measures'!HJ78","v":0},{"$f":"'2. Conservation Measures'!HK78","v":0},{"$f":"'2. Conservation Measures'!HL78","v":0},{"$f":"'2. Conservation Measures'!HM78","v":0},{"$f":"'2. Conservation Measures'!HN78","v":0},{"$f":"'2. Conservation Measures'!HO78","v":0},{"$f":"'2. Conservation Measures'!HP78","v":0},{"$f":"'2. Conservation Measures'!HQ78","v":0},{"$f":"'2. Conservation Measures'!HR78","v":0},{"$f":"'2. Conservation Measures'!HS78","v":0},{"$f":"'2. Conservation Measures'!HT78","v":0},{"$f":"'2. Conservation Measures'!HU78","v":0},{"$f":"'2. Conservation Measures'!HV78","v":0},{"$f":"'2. Conservation Measures'!HW78","v":0},{"$f":"'2. Conservation Measures'!HX78","v":0},{"$f":"'2. Conservation Measures'!HY78","v":0},{"$f":"'2. Conservation Measures'!HZ78","v":0},{"$f":"'2. Conservation Measures'!IA78","v":0},{"$f":"'2. Conservation Measures'!IB78","v":0},{"$f":"'2. Conservation Measures'!IC78","v":0},{"$f":"'2. Conservation Measures'!ID78","v":0},{"$f":"'2. Conservation Measures'!IE78","v":0},{"$f":"'2. Conservation Measures'!IF78","v":0},{"$f":"'2. Conservation Measures'!IG78","v":0},{"$f":"'2. Conservation Measures'!IH78","v":0},{"$f":"'2. Conservation Measures'!II78","v":0},{"$f":"'2. Conservation Measures'!IJ78","v":0},{"$f":"'2. Conservation Measures'!IK78","v":0},{"$f":"'2. Conservation Measures'!IL78","v":0},{"$f":"'2. Conservation Measures'!IM78","v":0},{"$f":"'2. Conservation Measures'!IN78","v":0},null,{"$f":"'2. Conservation Measures'!IP78","v":0},{"$f":"'2. Conservation Measures'!IQ78","v":0},{"$f":"'2. Conservation Measures'!IR78","v":0},{"$f":"'2. Conservation Measures'!IS78","v":0},{"$f":"'2. Conservation Measures'!IT78","v":0},{"$f":"'2. Conservation Measures'!IU78","v":0},{"$f":"'2. Conservation Measures'!IV78","v":0},{"$f":"'2. Conservation Measures'!IW78","v":0},{"$f":"'2. Conservation Measures'!IX78","v":0},{"$f":"'2. Conservation Measures'!IY78","v":0},{"$f":"'2. Conservation Measures'!IZ78","v":0},{"$f":"'2. Conservation Measures'!JA78","v":0},{"$f":"'2. Conservation Measures'!JB78","v":0},{"$f":"'2. Conservation Measures'!JC78","v":0},{"$f":"'2. Conservation Measures'!JD78","v":0},{"$f":"'2. Conservation Measures'!JE78","v":0},{"$f":"'2. Conservation Measures'!JF78","v":0},{"$f":"'2. Conservation Measures'!JG78","v":0},{"$f":"'2. Conservation Measures'!JH78","v":0},{"$f":"'2. Conservation Measures'!JI78","v":0},{"$f":"'2. Conservation Measures'!JJ78","v":0},{"$f":"'2. Conservation Measures'!JK78","v":0},{"$f":"'2. Conservation Measures'!JL78","v":0},{"$f":"'2. Conservation Measures'!JM78","v":0},{"$f":"'2. Conservation Measures'!JN78","v":0},{"$f":"'2. Conservation Measures'!JO78","v":0},{"$f":"'2. Conservation Measures'!JP78","v":0},{"$f":"'2. Conservation Measures'!JQ78","v":0},{"$f":"'2. Conservation Measures'!JR78","v":0},{"$f":"'2. Conservation Measures'!JS78","v":0},{"$f":"'2. Conservation Measures'!JT78","v":0},{"$f":"'2. Conservation Measures'!JU78","v":0},{"$f":"'2. Conservation Measures'!JV78","v":0},{"$f":"'2. Conservation Measures'!JW78","v":0},{"$f":"'2. Conservation Measures'!JX78","v":0},{"$f":"'2. Conservation Measures'!JY78","v":0},{"$f":"'2. Conservation Measures'!JZ78","v":0},{"$f":"'2. Conservation Measures'!KA78","v":0},{"$f":"'2. Conservation Measures'!KB78","v":0},{"$f":"'2. Conservation Measures'!KC78","v":0},{"$f":"'2. Conservation Measures'!KD78","v":0},{"$f":"'2. Conservation Measures'!KE78","v":0},{"$f":"'2. Conservation Measures'!KF78","v":0},{"$f":"'2. Conservation Measures'!KG78","v":0},{"$f":"'2. Conservation Measures'!KH78","v":0},{"$f":"'2. Conservation Measures'!KI78","v":0},{"$f":"'2. Conservation Measures'!KJ78","v":0},{"$f":"'2. Conservation Measures'!KK78","v":0},{"$f":"'2. Conservation Measures'!KL78","v":0},{"$f":"'2. Conservation Measures'!KM78","v":0},{"$f":"'2. Conservation Measures'!KN78","v":0}]
[null,{"$f":"'2. Conservation Measures'!B79","v":"USR-SF-16"},{"$f":"'2. Conservation Measures'!C79","v":0},{"$f":"'2. Conservation Measures'!D79","v":"N"},null,{"$f":"'2. Conservation Measures'!AA79","v":0},null,{"$f":"'2. Conservation Measures'!AO79","v":0},{"$f":"'2. Conservation Measures'!AP79","v":0},{"$f":"'2. Conservation Measures'!AQ79","v":0},{"$f":"'2. Conservation Measures'!AR79","v":0},{"$f":"'2. Conservation Measures'!AS79","v":0},{"$f":"'2. Conservation Measures'!AT79","v":0},{"$f":"'2. Conservation Measures'!AU79","v":0},{"$f":"'2. Conservation Measures'!AV79","v":0},{"$f":"'2. Conservation Measures'!AW79","v":0},{"$f":"'2. Conservation Measures'!AX79","v":0},{"$f":"'2. Conservation Measures'!AY79","v":0},{"$f":"'2. Conservation Measures'!AZ79","v":0},{"$f":"'2. Conservation Measures'!BA79","v":0},{"$f":"'2. Conservation Measures'!BB79","v":0},{"$f":"'2. Conservation Measures'!BC79","v":0},{"$f":"'2. Conservation Measures'!BD79","v":0},{"$f":"'2. Conservation Measures'!BE79","v":0},{"$f":"'2. Conservation Measures'!BF79","v":0},{"$f":"'2. Conservation Measures'!BG79","v":0},{"$f":"'2. Conservation Measures'!BH79","v":0},{"$f":"'2. Conservation Measures'!BI79","v":0},{"$f":"'2. Conservation Measures'!BJ79","v":0},{"$f":"'2. Conservation Measures'!BK79","v":0},{"$f":"'2. Conservation Measures'!BL79","v":0},{"$f":"'2. Conservation Measures'!BM79","v":0},{"$f":"'2. Conservation Measures'!BN79","v":0},{"$f":"'2. Conservation Measures'!BO79","v":0},{"$f":"'2. Conservation Measures'!BP79","v":0},{"$f":"'2. Conservation Measures'!BQ79","v":0},{"$f":"'2. Conservation Measures'!BR79","v":0},{"$f":"'2. Conservation Measures'!BS79","v":0},{"$f":"'2. Conservation Measures'!BT79","v":0},{"$f":"'2. Conservation Measures'!BU79","v":0},{"$f":"'2. Conservation Measures'!BV79","v":0},{"$f":"'2. Conservation Measures'!BW79","v":0},{"$f":"'2. Conservation Measures'!BX79","v":0},{"$f":"'2. Conservation Measures'!BY79","v":0},{"$f":"'2. Conservation Measures'!BZ79","v":0},{"$f":"'2. Conservation Measures'!CA79","v":0},{"$f":"'2. Conservation Measures'!CB79","v":0},{"$f":"'2. Conservation Measures'!CC79","v":0},{"$f":"'2. Conservation Measures'!CD79","v":0},{"$f":"'2. Conservation Measures'!CE79","v":0},{"$f":"'2. Conservation Measures'!CF79","v":0},{"$f":"'2. Conservation Measures'!CG79","v":0},{"$f":"'2. Conservation Measures'!CH79","v":0},{"$f":"'2. Conservation Measures'!CI79","v":0},{"$f":"'2. Conservation Measures'!CJ79","v":0},{"$f":"'2. Conservation Measures'!CK79","v":0},{"$f":"'2. Conservation Measures'!CL79","v":0},{"$f":"'2. Conservation Measures'!CM79","v":0},null,{"$f":"'2. Conservation Measures'!CO79","v":0},{"$f":"'2. Conservation Measures'!CP79","v":0},{"$f":"'2. Conservation Measures'!CQ79","v":0},{"$f":"'2. Conservation Measures'!CR79","v":0},{"$f":"'2. Conservation Measures'!CS79","v":0},{"$f":"'2. Conservation Measures'!CT79","v":0},{"$f":"'2. Conservation Measures'!CU79","v":0},{"$f":"'2. Conservation Measures'!CV79","v":0},{"$f":"'2. Conservation Measures'!CW79","v":0},{"$f":"'2. Conservation Measures'!CX79","v":0},{"$f":"'2. Conservation Measures'!CY79","v":0},{"$f":"'2. Conservation Measures'!CZ79","v":0},{"$f":"'2. Conservation Measures'!DA79","v":0},{"$f":"'2. Conservation Measures'!DB79","v":0},{"$f":"'2. Conservation Measures'!DC79","v":0},{"$f":"'2. Conservation Measures'!DD79","v":0},{"$f":"'2. Conservation Measures'!DE79","v":0},{"$f":"'2. Conservation Measures'!DF79","v":0},{"$f":"'2. Conservation Measures'!DG79","v":0},{"$f":"'2. Conservation Measures'!DH79","v":0},{"$f":"'2. Conservation Measures'!DI79","v":0},{"$f":"'2. Conservation Measures'!DJ79","v":0},{"$f":"'2. Conservation Measures'!DK79","v":0},{"$f":"'2. Conservation Measures'!DL79","v":0},{"$f":"'2. Conservation Measures'!DM79","v":0},{"$f":"'2. Conservation Measures'!DN79","v":0},{"$f":"'2. Conservation Measures'!DO79","v":0},{"$f":"'2. Conservation Measures'!DP79","v":0},{"$f":"'2. Conservation Measures'!DQ79","v":0},{"$f":"'2. Conservation Measures'!DR79","v":0},{"$f":"'2. Conservation Measures'!DS79","v":0},{"$f":"'2. Conservation Measures'!DT79","v":0},{"$f":"'2. Conservation Measures'!DU79","v":0},{"$f":"'2. Conservation Measures'!DV79","v":0},{"$f":"'2. Conservation Measures'!DW79","v":0},{"$f":"'2. Conservation Measures'!DX79","v":0},{"$f":"'2. Conservation Measures'!DY79","v":0},{"$f":"'2. Conservation Measures'!DZ79","v":0},{"$f":"'2. Conservation Measures'!EA79","v":0},{"$f":"'2. Conservation Measures'!EB79","v":0},{"$f":"'2. Conservation Measures'!EC79","v":0},{"$f":"'2. Conservation Measures'!ED79","v":0},{"$f":"'2. Conservation Measures'!EE79","v":0},{"$f":"'2. Conservation Measures'!EF79","v":0},{"$f":"'2. Conservation Measures'!EG79","v":0},{"$f":"'2. Conservation Measures'!EH79","v":0},{"$f":"'2. Conservation Measures'!EI79","v":0},{"$f":"'2. Conservation Measures'!EJ79","v":0},{"$f":"'2. Conservation Measures'!EK79","v":0},{"$f":"'2. Conservation Measures'!EL79","v":0},{"$f":"'2. Conservation Measures'!EM79","v":0},null,{"$f":"'2. Conservation Measures'!KP79","v":0},{"$f":"'2. Conservation Measures'!KQ79","v":0},{"$f":"'2. Conservation Measures'!KR79","v":0},{"$f":"'2. Conservation Measures'!KS79","v":0},{"$f":"'2. Conservation Measures'!KT79","v":0},{"$f":"'2. Conservation Measures'!KU79","v":0},{"$f":"'2. Conservation Measures'!KV79","v":0},{"$f":"'2. Conservation Measures'!KW79","v":0},{"$f":"'2. Conservation Measures'!KX79","v":0},{"$f":"'2. Conservation Measures'!KY79","v":0},{"$f":"'2. Conservation Measures'!KZ79","v":0},{"$f":"'2. Conservation Measures'!LA79","v":0},{"$f":"'2. Conservation Measures'!LB79","v":0},{"$f":"'2. Conservation Measures'!LC79","v":0},{"$f":"'2. Conservation Measures'!LD79","v":0},{"$f":"'2. Conservation Measures'!LE79","v":0},{"$f":"'2. Conservation Measures'!LF79","v":0},{"$f":"'2. Conservation Measures'!LG79","v":0},{"$f":"'2. Conservation Measures'!LH79","v":0},{"$f":"'2. Conservation Measures'!LI79","v":0},{"$f":"'2. Conservation Measures'!LJ79","v":0},{"$f":"'2. Conservation Measures'!LK79","v":0},{"$f":"'2. Conservation Measures'!LL79","v":0},{"$f":"'2. Conservation Measures'!LM79","v":0},{"$f":"'2. Conservation Measures'!LN79","v":0},{"$f":"'2. Conservation Measures'!LO79","v":0},{"$f":"'2. Conservation Measures'!LP79","v":0},{"$f":"'2. Conservation Measures'!LQ79","v":0},{"$f":"'2. Conservation Measures'!LR79","v":0},{"$f":"'2. Conservation Measures'!LS79","v":0},{"$f":"'2. Conservation Measures'!LT79","v":0},{"$f":"'2. Conservation Measures'!LU79","v":0},{"$f":"'2. Conservation Measures'!LV79","v":0},{"$f":"'2. Conservation Measures'!LW79","v":0},{"$f":"'2. Conservation Measures'!LX79","v":0},{"$f":"'2. Conservation Measures'!LY79","v":0},{"$f":"'2. Conservation Measures'!LZ79","v":0},{"$f":"'2. Conservation Measures'!MA79","v":0},{"$f":"'2. Conservation Measures'!MB79","v":0},{"$f":"'2. Conservation Measures'!MC79","v":0},{"$f":"'2. Conservation Measures'!MD79","v":0},{"$f":"'2. Conservation Measures'!ME79","v":0},{"$f":"'2. Conservation Measures'!MF79","v":0},{"$f":"'2. Conservation Measures'!MG79","v":0},{"$f":"'2. Conservation Measures'!MH79","v":0},{"$f":"'2. Conservation Measures'!MI79","v":0},{"$f":"'2. Conservation Measures'!MJ79","v":0},{"$f":"'2. Conservation Measures'!MK79","v":0},{"$f":"'2. Conservation Measures'!ML79","v":0},{"$f":"'2. Conservation Measures'!MM79","v":0},{"$f":"'2. Conservation Measures'!MN79","v":0},null,{"$f":"'2. Conservation Measures'!EP79","v":0},{"$f":"'2. Conservation Measures'!EQ79","v":0},{"$f":"'2. Conservation Measures'!ER79","v":0},{"$f":"'2. Conservation Measures'!ES79","v":0},{"$f":"'2. Conservation Measures'!ET79","v":0},{"$f":"'2. Conservation Measures'!EU79","v":0},{"$f":"'2. Conservation Measures'!EV79","v":0},{"$f":"'2. Conservation Measures'!EW79","v":0},{"$f":"'2. Conservation Measures'!EX79","v":0},{"$f":"'2. Conservation Measures'!EY79","v":0},{"$f":"'2. Conservation Measures'!EZ79","v":0},{"$f":"'2. Conservation Measures'!FA79","v":0},{"$f":"'2. Conservation Measures'!FB79","v":0},{"$f":"'2. Conservation Measures'!FC79","v":0},{"$f":"'2. Conservation Measures'!FD79","v":0},{"$f":"'2. Conservation Measures'!FE79","v":0},{"$f":"'2. Conservation Measures'!FF79","v":0},{"$f":"'2. Conservation Measures'!FG79","v":0},{"$f":"'2. Conservation Measures'!FH79","v":0},{"$f":"'2. Conservation Measures'!FI79","v":0},{"$f":"'2. Conservation Measures'!FJ79","v":0},{"$f":"'2. Conservation Measures'!FK79","v":0},{"$f":"'2. Conservation Measures'!FL79","v":0},{"$f":"'2. Conservation Measures'!FM79","v":0},{"$f":"'2. Conservation Measures'!FN79","v":0},{"$f":"'2. Conservation Measures'!FO79","v":0},{"$f":"'2. Conservation Measures'!FP79","v":0},{"$f":"'2. Conservation Measures'!FQ79","v":0},{"$f":"'2. Conservation Measures'!FR79","v":0},{"$f":"'2. Conservation Measures'!FS79","v":0},{"$f":"'2. Conservation Measures'!FT79","v":0},{"$f":"'2. Conservation Measures'!FU79","v":0},{"$f":"'2. Conservation Measures'!FV79","v":0},{"$f":"'2. Conservation Measures'!FW79","v":0},{"$f":"'2. Conservation Measures'!FX79","v":0},{"$f":"'2. Conservation Measures'!FY79","v":0},{"$f":"'2. Conservation Measures'!FZ79","v":0},{"$f":"'2. Conservation Measures'!GA79","v":0},{"$f":"'2. Conservation Measures'!GB79","v":0},{"$f":"'2. Conservation Measures'!GC79","v":0},{"$f":"'2. Conservation Measures'!GD79","v":0},{"$f":"'2. Conservation Measures'!GE79","v":0},{"$f":"'2. Conservation Measures'!GF79","v":0},{"$f":"'2. Conservation Measures'!GG79","v":0},{"$f":"'2. Conservation Measures'!GH79","v":0},{"$f":"'2. Conservation Measures'!GI79","v":0},{"$f":"'2. Conservation Measures'!GJ79","v":0},{"$f":"'2. Conservation Measures'!GK79","v":0},{"$f":"'2. Conservation Measures'!GL79","v":0},{"$f":"'2. Conservation Measures'!GM79","v":0},{"$f":"'2. Conservation Measures'!GN79","v":0},null,{"$f":"'2. Conservation Measures'!GP79","v":0},{"$f":"'2. Conservation Measures'!GQ79","v":0},{"$f":"'2. Conservation Measures'!GR79","v":0},{"$f":"'2. Conservation Measures'!GS79","v":0},{"$f":"'2. Conservation Measures'!GT79","v":0},{"$f":"'2. Conservation Measures'!GU79","v":0},{"$f":"'2. Conservation Measures'!GV79","v":0},{"$f":"'2. Conservation Measures'!GW79","v":0},{"$f":"'2. Conservation Measures'!GX79","v":0},{"$f":"'2. Conservation Measures'!GY79","v":0},{"$f":"'2. Conservation Measures'!GZ79","v":0},{"$f":"'2. Conservation Measures'!HA79","v":0},{"$f":"'2. Conservation Measures'!HB79","v":0},{"$f":"'2. Conservation Measures'!HC79","v":0},{"$f":"'2. Conservation Measures'!HD79","v":0},{"$f":"'2. Conservation Measures'!HE79","v":0},{"$f":"'2. Conservation Measures'!HF79","v":0},{"$f":"'2. Conservation Measures'!HG79","v":0},{"$f":"'2. Conservation Measures'!HH79","v":0},{"$f":"'2. Conservation Measures'!HI79","v":0},{"$f":"'2. Conservation Measures'!HJ79","v":0},{"$f":"'2. Conservation Measures'!HK79","v":0},{"$f":"'2. Conservation Measures'!HL79","v":0},{"$f":"'2. Conservation Measures'!HM79","v":0},{"$f":"'2. Conservation Measures'!HN79","v":0},{"$f":"'2. Conservation Measures'!HO79","v":0},{"$f":"'2. Conservation Measures'!HP79","v":0},{"$f":"'2. Conservation Measures'!HQ79","v":0},{"$f":"'2. Conservation Measures'!HR79","v":0},{"$f":"'2. Conservation Measures'!HS79","v":0},{"$f":"'2. Conservation Measures'!HT79","v":0},{"$f":"'2. Conservation Measures'!HU79","v":0},{"$f":"'2. Conservation Measures'!HV79","v":0},{"$f":"'2. Conservation Measures'!HW79","v":0},{"$f":"'2. Conservation Measures'!HX79","v":0},{"$f":"'2. Conservation Measures'!HY79","v":0},{"$f":"'2. Conservation Measures'!HZ79","v":0},{"$f":"'2. Conservation Measures'!IA79","v":0},{"$f":"'2. Conservation Measures'!IB79","v":0},{"$f":"'2. Conservation Measures'!IC79","v":0},{"$f":"'2. Conservation Measures'!ID79","v":0},{"$f":"'2. Conservation Measures'!IE79","v":0},{"$f":"'2. Conservation Measures'!IF79","v":0},{"$f":"'2. Conservation Measures'!IG79","v":0},{"$f":"'2. Conservation Measures'!IH79","v":0},{"$f":"'2. Conservation Measures'!II79","v":0},{"$f":"'2. Conservation Measures'!IJ79","v":0},{"$f":"'2. Conservation Measures'!IK79","v":0},{"$f":"'2. Conservation Measures'!IL79","v":0},{"$f":"'2. Conservation Measures'!IM79","v":0},{"$f":"'2. Conservation Measures'!IN79","v":0},null,{"$f":"'2. Conservation Measures'!IP79","v":0},{"$f":"'2. Conservation Measures'!IQ79","v":0},{"$f":"'2. Conservation Measures'!IR79","v":0},{"$f":"'2. Conservation Measures'!IS79","v":0},{"$f":"'2. Conservation Measures'!IT79","v":0},{"$f":"'2. Conservation Measures'!IU79","v":0},{"$f":"'2. Conservation Measures'!IV79","v":0},{"$f":"'2. Conservation Measures'!IW79","v":0},{"$f":"'2. Conservation Measures'!IX79","v":0},{"$f":"'2. Conservation Measures'!IY79","v":0},{"$f":"'2. Conservation Measures'!IZ79","v":0},{"$f":"'2. Conservation Measures'!JA79","v":0},{"$f":"'2. Conservation Measures'!JB79","v":0},{"$f":"'2. Conservation Measures'!JC79","v":0},{"$f":"'2. Conservation Measures'!JD79","v":0},{"$f":"'2. Conservation Measures'!JE79","v":0},{"$f":"'2. Conservation Measures'!JF79","v":0},{"$f":"'2. Conservation Measures'!JG79","v":0},{"$f":"'2. Conservation Measures'!JH79","v":0},{"$f":"'2. Conservation Measures'!JI79","v":0},{"$f":"'2. Conservation Measures'!JJ79","v":0},{"$f":"'2. Conservation Measures'!JK79","v":0},{"$f":"'2. Conservation Measures'!JL79","v":0},{"$f":"'2. Conservation Measures'!JM79","v":0},{"$f":"'2. Conservation Measures'!JN79","v":0},{"$f":"'2. Conservation Measures'!JO79","v":0},{"$f":"'2. Conservation Measures'!JP79","v":0},{"$f":"'2. Conservation Measures'!JQ79","v":0},{"$f":"'2. Conservation Measures'!JR79","v":0},{"$f":"'2. Conservation Measures'!JS79","v":0},{"$f":"'2. Conservation Measures'!JT79","v":0},{"$f":"'2. Conservation Measures'!JU79","v":0},{"$f":"'2. Conservation Measures'!JV79","v":0},{"$f":"'2. Conservation Measures'!JW79","v":0},{"$f":"'2. Conservation Measures'!JX79","v":0},{"$f":"'2. Conservation Measures'!JY79","v":0},{"$f":"'2. Conservation Measures'!JZ79","v":0},{"$f":"'2. Conservation Measures'!KA79","v":0},{"$f":"'2. Conservation Measures'!KB79","v":0},{"$f":"'2. Conservation Measures'!KC79","v":0},{"$f":"'2. Conservation Measures'!KD79","v":0},{"$f":"'2. Conservation Measures'!KE79","v":0},{"$f":"'2. Conservation Measures'!KF79","v":0},{"$f":"'2. Conservation Measures'!KG79","v":0},{"$f":"'2. Conservation Measures'!KH79","v":0},{"$f":"'2. Conservation Measures'!KI79","v":0},{"$f":"'2. Conservation Measures'!KJ79","v":0},{"$f":"'2. Conservation Measures'!KK79","v":0},{"$f":"'2. Conservation Measures'!KL79","v":0},{"$f":"'2. Conservation Measures'!KM79","v":0},{"$f":"'2. Conservation Measures'!KN79","v":0}]
[null,{"$f":"'2. Conservation Measures'!B80","v":"USR-SF-17"},{"$f":"'2. Conservation Measures'!C80","v":0},{"$f":"'2. Conservation Measures'!D80","v":"N"},null,{"$f":"'2. Conservation Measures'!AA80","v":0},null,{"$f":"'2. Conservation Measures'!AO80","v":0},{"$f":"'2. Conservation Measures'!AP80","v":0},{"$f":"'2. Conservation Measures'!AQ80","v":0},{"$f":"'2. Conservation Measures'!AR80","v":0},{"$f":"'2. Conservation Measures'!AS80","v":0},{"$f":"'2. Conservation Measures'!AT80","v":0},{"$f":"'2. Conservation Measures'!AU80","v":0},{"$f":"'2. Conservation Measures'!AV80","v":0},{"$f":"'2. Conservation Measures'!AW80","v":0},{"$f":"'2. Conservation Measures'!AX80","v":0},{"$f":"'2. Conservation Measures'!AY80","v":0},{"$f":"'2. Conservation Measures'!AZ80","v":0},{"$f":"'2. Conservation Measures'!BA80","v":0},{"$f":"'2. Conservation Measures'!BB80","v":0},{"$f":"'2. Conservation Measures'!BC80","v":0},{"$f":"'2. Conservation Measures'!BD80","v":0},{"$f":"'2. Conservation Measures'!BE80","v":0},{"$f":"'2. Conservation Measures'!BF80","v":0},{"$f":"'2. Conservation Measures'!BG80","v":0},{"$f":"'2. Conservation Measures'!BH80","v":0},{"$f":"'2. Conservation Measures'!BI80","v":0},{"$f":"'2. Conservation Measures'!BJ80","v":0},{"$f":"'2. Conservation Measures'!BK80","v":0},{"$f":"'2. Conservation Measures'!BL80","v":0},{"$f":"'2. Conservation Measures'!BM80","v":0},{"$f":"'2. Conservation Measures'!BN80","v":0},{"$f":"'2. Conservation Measures'!BO80","v":0},{"$f":"'2. Conservation Measures'!BP80","v":0},{"$f":"'2. Conservation Measures'!BQ80","v":0},{"$f":"'2. Conservation Measures'!BR80","v":0},{"$f":"'2. Conservation Measures'!BS80","v":0},{"$f":"'2. Conservation Measures'!BT80","v":0},{"$f":"'2. Conservation Measures'!BU80","v":0},{"$f":"'2. Conservation Measures'!BV80","v":0},{"$f":"'2. Conservation Measures'!BW80","v":0},{"$f":"'2. Conservation Measures'!BX80","v":0},{"$f":"'2. Conservation Measures'!BY80","v":0},{"$f":"'2. Conservation Measures'!BZ80","v":0},{"$f":"'2. Conservation Measures'!CA80","v":0},{"$f":"'2. Conservation Measures'!CB80","v":0},{"$f":"'2. Conservation Measures'!CC80","v":0},{"$f":"'2. Conservation Measures'!CD80","v":0},{"$f":"'2. Conservation Measures'!CE80","v":0},{"$f":"'2. Conservation Measures'!CF80","v":0},{"$f":"'2. Conservation Measures'!CG80","v":0},{"$f":"'2. Conservation Measures'!CH80","v":0},{"$f":"'2. Conservation Measures'!CI80","v":0},{"$f":"'2. Conservation Measures'!CJ80","v":0},{"$f":"'2. Conservation Measures'!CK80","v":0},{"$f":"'2. Conservation Measures'!CL80","v":0},{"$f":"'2. Conservation Measures'!CM80","v":0},null,{"$f":"'2. Conservation Measures'!CO80","v":0},{"$f":"'2. Conservation Measures'!CP80","v":0},{"$f":"'2. Conservation Measures'!CQ80","v":0},{"$f":"'2. Conservation Measures'!CR80","v":0},{"$f":"'2. Conservation Measures'!CS80","v":0},{"$f":"'2. Conservation Measures'!CT80","v":0},{"$f":"'2. Conservation Measures'!CU80","v":0},{"$f":"'2. Conservation Measures'!CV80","v":0},{"$f":"'2. Conservation Measures'!CW80","v":0},{"$f":"'2. Conservation Measures'!CX80","v":0},{"$f":"'2. Conservation Measures'!CY80","v":0},{"$f":"'2. Conservation Measures'!CZ80","v":0},{"$f":"'2. Conservation Measures'!DA80","v":0},{"$f":"'2. Conservation Measures'!DB80","v":0},{"$f":"'2. Conservation Measures'!DC80","v":0},{"$f":"'2. Conservation Measures'!DD80","v":0},{"$f":"'2. Conservation Measures'!DE80","v":0},{"$f":"'2. Conservation Measures'!DF80","v":0},{"$f":"'2. Conservation Measures'!DG80","v":0},{"$f":"'2. Conservation Measures'!DH80","v":0},{"$f":"'2. Conservation Measures'!DI80","v":0},{"$f":"'2. Conservation Measures'!DJ80","v":0},{"$f":"'2. Conservation Measures'!DK80","v":0},{"$f":"'2. Conservation Measures'!DL80","v":0},{"$f":"'2. Conservation Measures'!DM80","v":0},{"$f":"'2. Conservation Measures'!DN80","v":0},{"$f":"'2. Conservation Measures'!DO80","v":0},{"$f":"'2. Conservation Measures'!DP80","v":0},{"$f":"'2. Conservation Measures'!DQ80","v":0},{"$f":"'2. Conservation Measures'!DR80","v":0},{"$f":"'2. Conservation Measures'!DS80","v":0},{"$f":"'2. Conservation Measures'!DT80","v":0},{"$f":"'2. Conservation Measures'!DU80","v":0},{"$f":"'2. Conservation Measures'!DV80","v":0},{"$f":"'2. Conservation Measures'!DW80","v":0},{"$f":"'2. Conservation Measures'!DX80","v":0},{"$f":"'2. Conservation Measures'!DY80","v":0},{"$f":"'2. Conservation Measures'!DZ80","v":0},{"$f":"'2. Conservation Measures'!EA80","v":0},{"$f":"'2. Conservation Measures'!EB80","v":0},{"$f":"'2. Conservation Measures'!EC80","v":0},{"$f":"'2. Conservation Measures'!ED80","v":0},{"$f":"'2. Conservation Measures'!EE80","v":0},{"$f":"'2. Conservation Measures'!EF80","v":0},{"$f":"'2. Conservation Measures'!EG80","v":0},{"$f":"'2. Conservation Measures'!EH80","v":0},{"$f":"'2. Conservation Measures'!EI80","v":0},{"$f":"'2. Conservation Measures'!EJ80","v":0},{"$f":"'2. Conservation Measures'!EK80","v":0},{"$f":"'2. Conservation Measures'!EL80","v":0},{"$f":"'2. Conservation Measures'!EM80","v":0},null,{"$f":"'2. Conservation Measures'!KP80","v":0},{"$f":"'2. Conservation Measures'!KQ80","v":0},{"$f":"'2. Conservation Measures'!KR80","v":0},{"$f":"'2. Conservation Measures'!KS80","v":0},{"$f":"'2. Conservation Measures'!KT80","v":0},{"$f":"'2. Conservation Measures'!KU80","v":0},{"$f":"'2. Conservation Measures'!KV80","v":0},{"$f":"'2. Conservation Measures'!KW80","v":0},{"$f":"'2. Conservation Measures'!KX80","v":0},{"$f":"'2. Conservation Measures'!KY80","v":0},{"$f":"'2. Conservation Measures'!KZ80","v":0},{"$f":"'2. Conservation Measures'!LA80","v":0},{"$f":"'2. Conservation Measures'!LB80","v":0},{"$f":"'2. Conservation Measures'!LC80","v":0},{"$f":"'2. Conservation Measures'!LD80","v":0},{"$f":"'2. Conservation Measures'!LE80","v":0},{"$f":"'2. Conservation Measures'!LF80","v":0},{"$f":"'2. Conservation Measures'!LG80","v":0},{"$f":"'2. Conservation Measures'!LH80","v":0},{"$f":"'2. Conservation Measures'!LI80","v":0},{"$f":"'2. Conservation Measures'!LJ80","v":0},{"$f":"'2. Conservation Measures'!LK80","v":0},{"$f":"'2. Conservation Measures'!LL80","v":0},{"$f":"'2. Conservation Measures'!LM80","v":0},{"$f":"'2. Conservation Measures'!LN80","v":0},{"$f":"'2. Conservation Measures'!LO80","v":0},{"$f":"'2. Conservation Measures'!LP80","v":0},{"$f":"'2. Conservation Measures'!LQ80","v":0},{"$f":"'2. Conservation Measures'!LR80","v":0},{"$f":"'2. Conservation Measures'!LS80","v":0},{"$f":"'2. Conservation Measures'!LT80","v":0},{"$f":"'2. Conservation Measures'!LU80","v":0},{"$f":"'2. Conservation Measures'!LV80","v":0},{"$f":"'2. Conservation Measures'!LW80","v":0},{"$f":"'2. Conservation Measures'!LX80","v":0},{"$f":"'2. Conservation Measures'!LY80","v":0},{"$f":"'2. Conservation Measures'!LZ80","v":0},{"$f":"'2. Conservation Measures'!MA80","v":0},{"$f":"'2. Conservation Measures'!MB80","v":0},{"$f":"'2. Conservation Measures'!MC80","v":0},{"$f":"'2. Conservation Measures'!MD80","v":0},{"$f":"'2. Conservation Measures'!ME80","v":0},{"$f":"'2. Conservation Measures'!MF80","v":0},{"$f":"'2. Conservation Measures'!MG80","v":0},{"$f":"'2. Conservation Measures'!MH80","v":0},{"$f":"'2. Conservation Measures'!MI80","v":0},{"$f":"'2. Conservation Measures'!MJ80","v":0},{"$f":"'2. Conservation Measures'!MK80","v":0},{"$f":"'2. Conservation Measures'!ML80","v":0},{"$f":"'2. Conservation Measures'!MM80","v":0},{"$f":"'2. Conservation Measures'!MN80","v":0},null,{"$f":"'2. Conservation Measures'!EP80","v":0},{"$f":"'2. Conservation Measures'!EQ80","v":0},{"$f":"'2. Conservation Measures'!ER80","v":0},{"$f":"'2. Conservation Measures'!ES80","v":0},{"$f":"'2. Conservation Measures'!ET80","v":0},{"$f":"'2. Conservation Measures'!EU80","v":0},{"$f":"'2. Conservation Measures'!EV80","v":0},{"$f":"'2. Conservation Measures'!EW80","v":0},{"$f":"'2. Conservation Measures'!EX80","v":0},{"$f":"'2. Conservation Measures'!EY80","v":0},{"$f":"'2. Conservation Measures'!EZ80","v":0},{"$f":"'2. Conservation Measures'!FA80","v":0},{"$f":"'2. Conservation Measures'!FB80","v":0},{"$f":"'2. Conservation Measures'!FC80","v":0},{"$f":"'2. Conservation Measures'!FD80","v":0},{"$f":"'2. Conservation Measures'!FE80","v":0},{"$f":"'2. Conservation Measures'!FF80","v":0},{"$f":"'2. Conservation Measures'!FG80","v":0},{"$f":"'2. Conservation Measures'!FH80","v":0},{"$f":"'2. Conservation Measures'!FI80","v":0},{"$f":"'2. Conservation Measures'!FJ80","v":0},{"$f":"'2. Conservation Measures'!FK80","v":0},{"$f":"'2. Conservation Measures'!FL80","v":0},{"$f":"'2. Conservation Measures'!FM80","v":0},{"$f":"'2. Conservation Measures'!FN80","v":0},{"$f":"'2. Conservation Measures'!FO80","v":0},{"$f":"'2. Conservation Measures'!FP80","v":0},{"$f":"'2. Conservation Measures'!FQ80","v":0},{"$f":"'2. Conservation Measures'!FR80","v":0},{"$f":"'2. Conservation Measures'!FS80","v":0},{"$f":"'2. Conservation Measures'!FT80","v":0},{"$f":"'2. Conservation Measures'!FU80","v":0},{"$f":"'2. Conservation Measures'!FV80","v":0},{"$f":"'2. Conservation Measures'!FW80","v":0},{"$f":"'2. Conservation Measures'!FX80","v":0},{"$f":"'2. Conservation Measures'!FY80","v":0},{"$f":"'2. Conservation Measures'!FZ80","v":0},{"$f":"'2. Conservation Measures'!GA80","v":0},{"$f":"'2. Conservation Measures'!GB80","v":0},{"$f":"'2. Conservation Measures'!GC80","v":0},{"$f":"'2. Conservation Measures'!GD80","v":0},{"$f":"'2. Conservation Measures'!GE80","v":0},{"$f":"'2. Conservation Measures'!GF80","v":0},{"$f":"'2. Conservation Measures'!GG80","v":0},{"$f":"'2. Conservation Measures'!GH80","v":0},{"$f":"'2. Conservation Measures'!GI80","v":0},{"$f":"'2. Conservation Measures'!GJ80","v":0},{"$f":"'2. Conservation Measures'!GK80","v":0},{"$f":"'2. Conservation Measures'!GL80","v":0},{"$f":"'2. Conservation Measures'!GM80","v":0},{"$f":"'2. Conservation Measures'!GN80","v":0},null,{"$f":"'2. Conservation Measures'!GP80","v":0},{"$f":"'2. Conservation Measures'!GQ80","v":0},{"$f":"'2. Conservation Measures'!GR80","v":0},{"$f":"'2. Conservation Measures'!GS80","v":0},{"$f":"'2. Conservation Measures'!GT80","v":0},{"$f":"'2. Conservation Measures'!GU80","v":0},{"$f":"'2. Conservation Measures'!GV80","v":0},{"$f":"'2. Conservation Measures'!GW80","v":0},{"$f":"'2. Conservation Measures'!GX80","v":0},{"$f":"'2. Conservation Measures'!GY80","v":0},{"$f":"'2. Conservation Measures'!GZ80","v":0},{"$f":"'2. Conservation Measures'!HA80","v":0},{"$f":"'2. Conservation Measures'!HB80","v":0},{"$f":"'2. Conservation Measures'!HC80","v":0},{"$f":"'2. Conservation Measures'!HD80","v":0},{"$f":"'2. Conservation Measures'!HE80","v":0},{"$f":"'2. Conservation Measures'!HF80","v":0},{"$f":"'2. Conservation Measures'!HG80","v":0},{"$f":"'2. Conservation Measures'!HH80","v":0},{"$f":"'2. Conservation Measures'!HI80","v":0},{"$f":"'2. Conservation Measures'!HJ80","v":0},{"$f":"'2. Conservation Measures'!HK80","v":0},{"$f":"'2. Conservation Measures'!HL80","v":0},{"$f":"'2. Conservation Measures'!HM80","v":0},{"$f":"'2. Conservation Measures'!HN80","v":0},{"$f":"'2. Conservation Measures'!HO80","v":0},{"$f":"'2. Conservation Measures'!HP80","v":0},{"$f":"'2. Conservation Measures'!HQ80","v":0},{"$f":"'2. Conservation Measures'!HR80","v":0},{"$f":"'2. Conservation Measures'!HS80","v":0},{"$f":"'2. Conservation Measures'!HT80","v":0},{"$f":"'2. Conservation Measures'!HU80","v":0},{"$f":"'2. Conservation Measures'!HV80","v":0},{"$f":"'2. Conservation Measures'!HW80","v":0},{"$f":"'2. Conservation Measures'!HX80","v":0},{"$f":"'2. Conservation Measures'!HY80","v":0},{"$f":"'2. Conservation Measures'!HZ80","v":0},{"$f":"'2. Conservation Measures'!IA80","v":0},{"$f":"'2. Conservation Measures'!IB80","v":0},{"$f":"'2. Conservation Measures'!IC80","v":0},{"$f":"'2. Conservation Measures'!ID80","v":0},{"$f":"'2. Conservation Measures'!IE80","v":0},{"$f":"'2. Conservation Measures'!IF80","v":0},{"$f":"'2. Conservation Measures'!IG80","v":0},{"$f":"'2. Conservation Measures'!IH80","v":0},{"$f":"'2. Conservation Measures'!II80","v":0},{"$f":"'2. Conservation Measures'!IJ80","v":0},{"$f":"'2. Conservation Measures'!IK80","v":0},{"$f":"'2. Conservation Measures'!IL80","v":0},{"$f":"'2. Conservation Measures'!IM80","v":0},{"$f":"'2. Conservation Measures'!IN80","v":0},null,{"$f":"'2. Conservation Measures'!IP80","v":0},{"$f":"'2. Conservation Measures'!IQ80","v":0},{"$f":"'2. Conservation Measures'!IR80","v":0},{"$f":"'2. Conservation Measures'!IS80","v":0},{"$f":"'2. Conservation Measures'!IT80","v":0},{"$f":"'2. Conservation Measures'!IU80","v":0},{"$f":"'2. Conservation Measures'!IV80","v":0},{"$f":"'2. Conservation Measures'!IW80","v":0},{"$f":"'2. Conservation Measures'!IX80","v":0},{"$f":"'2. Conservation Measures'!IY80","v":0},{"$f":"'2. Conservation Measures'!IZ80","v":0},{"$f":"'2. Conservation Measures'!JA80","v":0},{"$f":"'2. Conservation Measures'!JB80","v":0},{"$f":"'2. Conservation Measures'!JC80","v":0},{"$f":"'2. Conservation Measures'!JD80","v":0},{"$f":"'2. Conservation Measures'!JE80","v":0},{"$f":"'2. Conservation Measures'!JF80","v":0},{"$f":"'2. Conservation Measures'!JG80","v":0},{"$f":"'2. Conservation Measures'!JH80","v":0},{"$f":"'2. Conservation Measures'!JI80","v":0},{"$f":"'2. Conservation Measures'!JJ80","v":0},{"$f":"'2. Conservation Measures'!JK80","v":0},{"$f":"'2. Conservation Measures'!JL80","v":0},{"$f":"'2. Conservation Measures'!JM80","v":0},{"$f":"'2. Conservation Measures'!JN80","v":0},{"$f":"'2. Conservation Measures'!JO80","v":0},{"$f":"'2. Conservation Measures'!JP80","v":0},{"$f":"'2. Conservation Measures'!JQ80","v":0},{"$f":"'2. Conservation Measures'!JR80","v":0},{"$f":"'2. Conservation Measures'!JS80","v":0},{"$f":"'2. Conservation Measures'!JT80","v":0},{"$f":"'2. Conservation Measures'!JU80","v":0},{"$f":"'2. Conservation Measures'!JV80","v":0},{"$f":"'2. Conservation Measures'!JW80","v":0},{"$f":"'2. Conservation Measures'!JX80","v":0},{"$f":"'2. Conservation Measures'!JY80","v":0},{"$f":"'2. Conservation Measures'!JZ80","v":0},{"$f":"'2. Conservation Measures'!KA80","v":0},{"$f":"'2. Conservation Measures'!KB80","v":0},{"$f":"'2. Conservation Measures'!KC80","v":0},{"$f":"'2. Conservation Measures'!KD80","v":0},{"$f":"'2. Conservation Measures'!KE80","v":0},{"$f":"'2. Conservation Measures'!KF80","v":0},{"$f":"'2. Conservation Measures'!KG80","v":0},{"$f":"'2. Conservation Measures'!KH80","v":0},{"$f":"'2. Conservation Measures'!KI80","v":0},{"$f":"'2. Conservation Measures'!KJ80","v":0},{"$f":"'2. Conservation Measures'!KK80","v":0},{"$f":"'2. Conservation Measures'!KL80","v":0},{"$f":"'2. Conservation Measures'!KM80","v":0},{"$f":"'2. Conservation Measures'!KN80","v":0}]
[null,{"$f":"'2. Conservation Measures'!B81","v":"USR-SF-18"},{"$f":"'2. Conservation Measures'!C81","v":0},{"$f":"'2. Conservation Measures'!D81","v":"N"},null,{"$f":"'2. Conservation Measures'!AA81","v":0},null,{"$f":"'2. Conservation Measures'!AO81","v":0},{"$f":"'2. Conservation Measures'!AP81","v":0},{"$f":"'2. Conservation Measures'!AQ81","v":0},{"$f":"'2. Conservation Measures'!AR81","v":0},{"$f":"'2. Conservation Measures'!AS81","v":0},{"$f":"'2. Conservation Measures'!AT81","v":0},{"$f":"'2. Conservation Measures'!AU81","v":0},{"$f":"'2. Conservation Measures'!AV81","v":0},{"$f":"'2. Conservation Measures'!AW81","v":0},{"$f":"'2. Conservation Measures'!AX81","v":0},{"$f":"'2. Conservation Measures'!AY81","v":0},{"$f":"'2. Conservation Measures'!AZ81","v":0},{"$f":"'2. Conservation Measures'!BA81","v":0},{"$f":"'2. Conservation Measures'!BB81","v":0},{"$f":"'2. Conservation Measures'!BC81","v":0},{"$f":"'2. Conservation Measures'!BD81","v":0},{"$f":"'2. Conservation Measures'!BE81","v":0},{"$f":"'2. Conservation Measures'!BF81","v":0},{"$f":"'2. Conservation Measures'!BG81","v":0},{"$f":"'2. Conservation Measures'!BH81","v":0},{"$f":"'2. Conservation Measures'!BI81","v":0},{"$f":"'2. Conservation Measures'!BJ81","v":0},{"$f":"'2. Conservation Measures'!BK81","v":0},{"$f":"'2. Conservation Measures'!BL81","v":0},{"$f":"'2. Conservation Measures'!BM81","v":0},{"$f":"'2. Conservation Measures'!BN81","v":0},{"$f":"'2. Conservation Measures'!BO81","v":0},{"$f":"'2. Conservation Measures'!BP81","v":0},{"$f":"'2. Conservation Measures'!BQ81","v":0},{"$f":"'2. Conservation Measures'!BR81","v":0},{"$f":"'2. Conservation Measures'!BS81","v":0},{"$f":"'2. Conservation Measures'!BT81","v":0},{"$f":"'2. Conservation Measures'!BU81","v":0},{"$f":"'2. Conservation Measures'!BV81","v":0},{"$f":"'2. Conservation Measures'!BW81","v":0},{"$f":"'2. Conservation Measures'!BX81","v":0},{"$f":"'2. Conservation Measures'!BY81","v":0},{"$f":"'2. Conservation Measures'!BZ81","v":0},{"$f":"'2. Conservation Measures'!CA81","v":0},{"$f":"'2. Conservation Measures'!CB81","v":0},{"$f":"'2. Conservation Measures'!CC81","v":0},{"$f":"'2. Conservation Measures'!CD81","v":0},{"$f":"'2. Conservation Measures'!CE81","v":0},{"$f":"'2. Conservation Measures'!CF81","v":0},{"$f":"'2. Conservation Measures'!CG81","v":0},{"$f":"'2. Conservation Measures'!CH81","v":0},{"$f":"'2. Conservation Measures'!CI81","v":0},{"$f":"'2. Conservation Measures'!CJ81","v":0},{"$f":"'2. Conservation Measures'!CK81","v":0},{"$f":"'2. Conservation Measures'!CL81","v":0},{"$f":"'2. Conservation Measures'!CM81","v":0},null,{"$f":"'2. Conservation Measures'!CO81","v":0},{"$f":"'2. Conservation Measures'!CP81","v":0},{"$f":"'2. Conservation Measures'!CQ81","v":0},{"$f":"'2. Conservation Measures'!CR81","v":0},{"$f":"'2. Conservation Measures'!CS81","v":0},{"$f":"'2. Conservation Measures'!CT81","v":0},{"$f":"'2. Conservation Measures'!CU81","v":0},{"$f":"'2. Conservation Measures'!CV81","v":0},{"$f":"'2. Conservation Measures'!CW81","v":0},{"$f":"'2. Conservation Measures'!CX81","v":0},{"$f":"'2. Conservation Measures'!CY81","v":0},{"$f":"'2. Conservation Measures'!CZ81","v":0},{"$f":"'2. Conservation Measures'!DA81","v":0},{"$f":"'2. Conservation Measures'!DB81","v":0},{"$f":"'2. Conservation Measures'!DC81","v":0},{"$f":"'2. Conservation Measures'!DD81","v":0},{"$f":"'2. Conservation Measures'!DE81","v":0},{"$f":"'2. Conservation Measures'!DF81","v":0},{"$f":"'2. Conservation Measures'!DG81","v":0},{"$f":"'2. Conservation Measures'!DH81","v":0},{"$f":"'2. Conservation Measures'!DI81","v":0},{"$f":"'2. Conservation Measures'!DJ81","v":0},{"$f":"'2. Conservation Measures'!DK81","v":0},{"$f":"'2. Conservation Measures'!DL81","v":0},{"$f":"'2. Conservation Measures'!DM81","v":0},{"$f":"'2. Conservation Measures'!DN81","v":0},{"$f":"'2. Conservation Measures'!DO81","v":0},{"$f":"'2. Conservation Measures'!DP81","v":0},{"$f":"'2. Conservation Measures'!DQ81","v":0},{"$f":"'2. Conservation Measures'!DR81","v":0},{"$f":"'2. Conservation Measures'!DS81","v":0},{"$f":"'2. Conservation Measures'!DT81","v":0},{"$f":"'2. Conservation Measures'!DU81","v":0},{"$f":"'2. Conservation Measures'!DV81","v":0},{"$f":"'2. Conservation Measures'!DW81","v":0},{"$f":"'2. Conservation Measures'!DX81","v":0},{"$f":"'2. Conservation Measures'!DY81","v":0},{"$f":"'2. Conservation Measures'!DZ81","v":0},{"$f":"'2. Conservation Measures'!EA81","v":0},{"$f":"'2. Conservation Measures'!EB81","v":0},{"$f":"'2. Conservation Measures'!EC81","v":0},{"$f":"'2. Conservation Measures'!ED81","v":0},{"$f":"'2. Conservation Measures'!EE81","v":0},{"$f":"'2. Conservation Measures'!EF81","v":0},{"$f":"'2. Conservation Measures'!EG81","v":0},{"$f":"'2. Conservation Measures'!EH81","v":0},{"$f":"'2. Conservation Measures'!EI81","v":0},{"$f":"'2. Conservation Measures'!EJ81","v":0},{"$f":"'2. Conservation Measures'!EK81","v":0},{"$f":"'2. Conservation Measures'!EL81","v":0},{"$f":"'2. Conservation Measures'!EM81","v":0},null,{"$f":"'2. Conservation Measures'!KP81","v":0},{"$f":"'2. Conservation Measures'!KQ81","v":0},{"$f":"'2. Conservation Measures'!KR81","v":0},{"$f":"'2. Conservation Measures'!KS81","v":0},{"$f":"'2. Conservation Measures'!KT81","v":0},{"$f":"'2. Conservation Measures'!KU81","v":0},{"$f":"'2. Conservation Measures'!KV81","v":0},{"$f":"'2. Conservation Measures'!KW81","v":0},{"$f":"'2. Conservation Measures'!KX81","v":0},{"$f":"'2. Conservation Measures'!KY81","v":0},{"$f":"'2. Conservation Measures'!KZ81","v":0},{"$f":"'2. Conservation Measures'!LA81","v":0},{"$f":"'2. Conservation Measures'!LB81","v":0},{"$f":"'2. Conservation Measures'!LC81","v":0},{"$f":"'2. Conservation Measures'!LD81","v":0},{"$f":"'2. Conservation Measures'!LE81","v":0},{"$f":"'2. Conservation Measures'!LF81","v":0},{"$f":"'2. Conservation Measures'!LG81","v":0},{"$f":"'2. Conservation Measures'!LH81","v":0},{"$f":"'2. Conservation Measures'!LI81","v":0},{"$f":"'2. Conservation Measures'!LJ81","v":0},{"$f":"'2. Conservation Measures'!LK81","v":0},{"$f":"'2. Conservation Measures'!LL81","v":0},{"$f":"'2. Conservation Measures'!LM81","v":0},{"$f":"'2. Conservation Measures'!LN81","v":0},{"$f":"'2. Conservation Measures'!LO81","v":0},{"$f":"'2. Conservation Measures'!LP81","v":0},{"$f":"'2. Conservation Measures'!LQ81","v":0},{"$f":"'2. Conservation Measures'!LR81","v":0},{"$f":"'2. Conservation Measures'!LS81","v":0},{"$f":"'2. Conservation Measures'!LT81","v":0},{"$f":"'2. Conservation Measures'!LU81","v":0},{"$f":"'2. Conservation Measures'!LV81","v":0},{"$f":"'2. Conservation Measures'!LW81","v":0},{"$f":"'2. Conservation Measures'!LX81","v":0},{"$f":"'2. Conservation Measures'!LY81","v":0},{"$f":"'2. Conservation Measures'!LZ81","v":0},{"$f":"'2. Conservation Measures'!MA81","v":0},{"$f":"'2. Conservation Measures'!MB81","v":0},{"$f":"'2. Conservation Measures'!MC81","v":0},{"$f":"'2. Conservation Measures'!MD81","v":0},{"$f":"'2. Conservation Measures'!ME81","v":0},{"$f":"'2. Conservation Measures'!MF81","v":0},{"$f":"'2. Conservation Measures'!MG81","v":0},{"$f":"'2. Conservation Measures'!MH81","v":0},{"$f":"'2. Conservation Measures'!MI81","v":0},{"$f":"'2. Conservation Measures'!MJ81","v":0},{"$f":"'2. Conservation Measures'!MK81","v":0},{"$f":"'2. Conservation Measures'!ML81","v":0},{"$f":"'2. Conservation Measures'!MM81","v":0},{"$f":"'2. Conservation Measures'!MN81","v":0},null,{"$f":"'2. Conservation Measures'!EP81","v":0},{"$f":"'2. Conservation Measures'!EQ81","v":0},{"$f":"'2. Conservation Measures'!ER81","v":0},{"$f":"'2. Conservation Measures'!ES81","v":0},{"$f":"'2. Conservation Measures'!ET81","v":0},{"$f":"'2. Conservation Measures'!EU81","v":0},{"$f":"'2. Conservation Measures'!EV81","v":0},{"$f":"'2. Conservation Measures'!EW81","v":0},{"$f":"'2. Conservation Measures'!EX81","v":0},{"$f":"'2. Conservation Measures'!EY81","v":0},{"$f":"'2. Conservation Measures'!EZ81","v":0},{"$f":"'2. Conservation Measures'!FA81","v":0},{"$f":"'2. Conservation Measures'!FB81","v":0},{"$f":"'2. Conservation Measures'!FC81","v":0},{"$f":"'2. Conservation Measures'!FD81","v":0},{"$f":"'2. Conservation Measures'!FE81","v":0},{"$f":"'2. Conservation Measures'!FF81","v":0},{"$f":"'2. Conservation Measures'!FG81","v":0},{"$f":"'2. Conservation Measures'!FH81","v":0},{"$f":"'2. Conservation Measures'!FI81","v":0},{"$f":"'2. Conservation Measures'!FJ81","v":0},{"$f":"'2. Conservation Measures'!FK81","v":0},{"$f":"'2. Conservation Measures'!FL81","v":0},{"$f":"'2. Conservation Measures'!FM81","v":0},{"$f":"'2. Conservation Measures'!FN81","v":0},{"$f":"'2. Conservation Measures'!FO81","v":0},{"$f":"'2. Conservation Measures'!FP81","v":0},{"$f":"'2. Conservation Measures'!FQ81","v":0},{"$f":"'2. Conservation Measures'!FR81","v":0},{"$f":"'2. Conservation Measures'!FS81","v":0},{"$f":"'2. Conservation Measures'!FT81","v":0},{"$f":"'2. Conservation Measures'!FU81","v":0},{"$f":"'2. Conservation Measures'!FV81","v":0},{"$f":"'2. Conservation Measures'!FW81","v":0},{"$f":"'2. Conservation Measures'!FX81","v":0},{"$f":"'2. Conservation Measures'!FY81","v":0},{"$f":"'2. Conservation Measures'!FZ81","v":0},{"$f":"'2. Conservation Measures'!GA81","v":0},{"$f":"'2. Conservation Measures'!GB81","v":0},{"$f":"'2. Conservation Measures'!GC81","v":0},{"$f":"'2. Conservation Measures'!GD81","v":0},{"$f":"'2. Conservation Measures'!GE81","v":0},{"$f":"'2. Conservation Measures'!GF81","v":0},{"$f":"'2. Conservation Measures'!GG81","v":0},{"$f":"'2. Conservation Measures'!GH81","v":0},{"$f":"'2. Conservation Measures'!GI81","v":0},{"$f":"'2. Conservation Measures'!GJ81","v":0},{"$f":"'2. Conservation Measures'!GK81","v":0},{"$f":"'2. Conservation Measures'!GL81","v":0},{"$f":"'2. Conservation Measures'!GM81","v":0},{"$f":"'2. Conservation Measures'!GN81","v":0},null,{"$f":"'2. Conservation Measures'!GP81","v":0},{"$f":"'2. Conservation Measures'!GQ81","v":0},{"$f":"'2. Conservation Measures'!GR81","v":0},{"$f":"'2. Conservation Measures'!GS81","v":0},{"$f":"'2. Conservation Measures'!GT81","v":0},{"$f":"'2. Conservation Measures'!GU81","v":0},{"$f":"'2. Conservation Measures'!GV81","v":0},{"$f":"'2. Conservation Measures'!GW81","v":0},{"$f":"'2. Conservation Measures'!GX81","v":0},{"$f":"'2. Conservation Measures'!GY81","v":0},{"$f":"'2. Conservation Measures'!GZ81","v":0},{"$f":"'2. Conservation Measures'!HA81","v":0},{"$f":"'2. Conservation Measures'!HB81","v":0},{"$f":"'2. Conservation Measures'!HC81","v":0},{"$f":"'2. Conservation Measures'!HD81","v":0},{"$f":"'2. Conservation Measures'!HE81","v":0},{"$f":"'2. Conservation Measures'!HF81","v":0},{"$f":"'2. Conservation Measures'!HG81","v":0},{"$f":"'2. Conservation Measures'!HH81","v":0},{"$f":"'2. Conservation Measures'!HI81","v":0},{"$f":"'2. Conservation Measures'!HJ81","v":0},{"$f":"'2. Conservation Measures'!HK81","v":0},{"$f":"'2. Conservation Measures'!HL81","v":0},{"$f":"'2. Conservation Measures'!HM81","v":0},{"$f":"'2. Conservation Measures'!HN81","v":0},{"$f":"'2. Conservation Measures'!HO81","v":0},{"$f":"'2. Conservation Measures'!HP81","v":0},{"$f":"'2. Conservation Measures'!HQ81","v":0},{"$f":"'2. Conservation Measures'!HR81","v":0},{"$f":"'2. Conservation Measures'!HS81","v":0},{"$f":"'2. Conservation Measures'!HT81","v":0},{"$f":"'2. Conservation Measures'!HU81","v":0},{"$f":"'2. Conservation Measures'!HV81","v":0},{"$f":"'2. Conservation Measures'!HW81","v":0},{"$f":"'2. Conservation Measures'!HX81","v":0},{"$f":"'2. Conservation Measures'!HY81","v":0},{"$f":"'2. Conservation Measures'!HZ81","v":0},{"$f":"'2. Conservation Measures'!IA81","v":0},{"$f":"'2. Conservation Measures'!IB81","v":0},{"$f":"'2. Conservation Measures'!IC81","v":0},{"$f":"'2. Conservation Measures'!ID81","v":0},{"$f":"'2. Conservation Measures'!IE81","v":0},{"$f":"'2. Conservation Measures'!IF81","v":0},{"$f":"'2. Conservation Measures'!IG81","v":0},{"$f":"'2. Conservation Measures'!IH81","v":0},{"$f":"'2. Conservation Measures'!II81","v":0},{"$f":"'2. Conservation Measures'!IJ81","v":0},{"$f":"'2. Conservation Measures'!IK81","v":0},{"$f":"'2. Conservation Measures'!IL81","v":0},{"$f":"'2. Conservation Measures'!IM81","v":0},{"$f":"'2. Conservation Measures'!IN81","v":0},null,{"$f":"'2. Conservation Measures'!IP81","v":0},{"$f":"'2. Conservation Measures'!IQ81","v":0},{"$f":"'2. Conservation Measures'!IR81","v":0},{"$f":"'2. Conservation Measures'!IS81","v":0},{"$f":"'2. Conservation Measures'!IT81","v":0},{"$f":"'2. Conservation Measures'!IU81","v":0},{"$f":"'2. Conservation Measures'!IV81","v":0},{"$f":"'2. Conservation Measures'!IW81","v":0},{"$f":"'2. Conservation Measures'!IX81","v":0},{"$f":"'2. Conservation Measures'!IY81","v":0},{"$f":"'2. Conservation Measures'!IZ81","v":0},{"$f":"'2. Conservation Measures'!JA81","v":0},{"$f":"'2. Conservation Measures'!JB81","v":0},{"$f":"'2. Conservation Measures'!JC81","v":0},{"$f":"'2. Conservation Measures'!JD81","v":0},{"$f":"'2. Conservation Measures'!JE81","v":0},{"$f":"'2. Conservation Measures'!JF81","v":0},{"$f":"'2. Conservation Measures'!JG81","v":0},{"$f":"'2. Conservation Measures'!JH81","v":0},{"$f":"'2. Conservation Measures'!JI81","v":0},{"$f":"'2. Conservation Measures'!JJ81","v":0},{"$f":"'2. Conservation Measures'!JK81","v":0},{"$f":"'2. Conservation Measures'!JL81","v":0},{"$f":"'2. Conservation Measures'!JM81","v":0},{"$f":"'2. Conservation Measures'!JN81","v":0},{"$f":"'2. Conservation Measures'!JO81","v":0},{"$f":"'2. Conservation Measures'!JP81","v":0},{"$f":"'2. Conservation Measures'!JQ81","v":0},{"$f":"'2. Conservation Measures'!JR81","v":0},{"$f":"'2. Conservation Measures'!JS81","v":0},{"$f":"'2. Conservation Measures'!JT81","v":0},{"$f":"'2. Conservation Measures'!JU81","v":0},{"$f":"'2. Conservation Measures'!JV81","v":0},{"$f":"'2. Conservation Measures'!JW81","v":0},{"$f":"'2. Conservation Measures'!JX81","v":0},{"$f":"'2. Conservation Measures'!JY81","v":0},{"$f":"'2. Conservation Measures'!JZ81","v":0},{"$f":"'2. Conservation Measures'!KA81","v":0},{"$f":"'2. Conservation Measures'!KB81","v":0},{"$f":"'2. Conservation Measures'!KC81","v":0},{"$f":"'2. Conservation Measures'!KD81","v":0},{"$f":"'2. Conservation Measures'!KE81","v":0},{"$f":"'2. Conservation Measures'!KF81","v":0},{"$f":"'2. Conservation Measures'!KG81","v":0},{"$f":"'2. Conservation Measures'!KH81","v":0},{"$f":"'2. Conservation Measures'!KI81","v":0},{"$f":"'2. Conservation Measures'!KJ81","v":0},{"$f":"'2. Conservation Measures'!KK81","v":0},{"$f":"'2. Conservation Measures'!KL81","v":0},{"$f":"'2. Conservation Measures'!KM81","v":0},{"$f":"'2. Conservation Measures'!KN81","v":0}]
[null,{"$f":"'2. Conservation Measures'!B82","v":"USR-SF-19"},{"$f":"'2. Conservation Measures'!C82","v":0},{"$f":"'2. Conservation Measures'!D82","v":"N"},null,{"$f":"'2. Conservation Measures'!AA82","v":0},null,{"$f":"'2. Conservation Measures'!AO82","v":0},{"$f":"'2. Conservation Measures'!AP82","v":0},{"$f":"'2. Conservation Measures'!AQ82","v":0},{"$f":"'2. Conservation Measures'!AR82","v":0},{"$f":"'2. Conservation Measures'!AS82","v":0},{"$f":"'2. Conservation Measures'!AT82","v":0},{"$f":"'2. Conservation Measures'!AU82","v":0},{"$f":"'2. Conservation Measures'!AV82","v":0},{"$f":"'2. Conservation Measures'!AW82","v":0},{"$f":"'2. Conservation Measures'!AX82","v":0},{"$f":"'2. Conservation Measures'!AY82","v":0},{"$f":"'2. Conservation Measures'!AZ82","v":0},{"$f":"'2. Conservation Measures'!BA82","v":0},{"$f":"'2. Conservation Measures'!BB82","v":0},{"$f":"'2. Conservation Measures'!BC82","v":0},{"$f":"'2. Conservation Measures'!BD82","v":0},{"$f":"'2. Conservation Measures'!BE82","v":0},{"$f":"'2. Conservation Measures'!BF82","v":0},{"$f":"'2. Conservation Measures'!BG82","v":0},{"$f":"'2. Conservation Measures'!BH82","v":0},{"$f":"'2. Conservation Measures'!BI82","v":0},{"$f":"'2. Conservation Measures'!BJ82","v":0},{"$f":"'2. Conservation Measures'!BK82","v":0},{"$f":"'2. Conservation Measures'!BL82","v":0},{"$f":"'2. Conservation Measures'!BM82","v":0},{"$f":"'2. Conservation Measures'!BN82","v":0},{"$f":"'2. Conservation Measures'!BO82","v":0},{"$f":"'2. Conservation Measures'!BP82","v":0},{"$f":"'2. Conservation Measures'!BQ82","v":0},{"$f":"'2. Conservation Measures'!BR82","v":0},{"$f":"'2. Conservation Measures'!BS82","v":0},{"$f":"'2. Conservation Measures'!BT82","v":0},{"$f":"'2. Conservation Measures'!BU82","v":0},{"$f":"'2. Conservation Measures'!BV82","v":0},{"$f":"'2. Conservation Measures'!BW82","v":0},{"$f":"'2. Conservation Measures'!BX82","v":0},{"$f":"'2. Conservation Measures'!BY82","v":0},{"$f":"'2. Conservation Measures'!BZ82","v":0},{"$f":"'2. Conservation Measures'!CA82","v":0},{"$f":"'2. Conservation Measures'!CB82","v":0},{"$f":"'2. Conservation Measures'!CC82","v":0},{"$f":"'2. Conservation Measures'!CD82","v":0},{"$f":"'2. Conservation Measures'!CE82","v":0},{"$f":"'2. Conservation Measures'!CF82","v":0},{"$f":"'2. Conservation Measures'!CG82","v":0},{"$f":"'2. Conservation Measures'!CH82","v":0},{"$f":"'2. Conservation Measures'!CI82","v":0},{"$f":"'2. Conservation Measures'!CJ82","v":0},{"$f":"'2. Conservation Measures'!CK82","v":0},{"$f":"'2. Conservation Measures'!CL82","v":0},{"$f":"'2. Conservation Measures'!CM82","v":0},null,{"$f":"'2. Conservation Measures'!CO82","v":0},{"$f":"'2. Conservation Measures'!CP82","v":0},{"$f":"'2. Conservation Measures'!CQ82","v":0},{"$f":"'2. Conservation Measures'!CR82","v":0},{"$f":"'2. Conservation Measures'!CS82","v":0},{"$f":"'2. Conservation Measures'!CT82","v":0},{"$f":"'2. Conservation Measures'!CU82","v":0},{"$f":"'2. Conservation Measures'!CV82","v":0},{"$f":"'2. Conservation Measures'!CW82","v":0},{"$f":"'2. Conservation Measures'!CX82","v":0},{"$f":"'2. Conservation Measures'!CY82","v":0},{"$f":"'2. Conservation Measures'!CZ82","v":0},{"$f":"'2. Conservation Measures'!DA82","v":0},{"$f":"'2. Conservation Measures'!DB82","v":0},{"$f":"'2. Conservation Measures'!DC82","v":0},{"$f":"'2. Conservation Measures'!DD82","v":0},{"$f":"'2. Conservation Measures'!DE82","v":0},{"$f":"'2. Conservation Measures'!DF82","v":0},{"$f":"'2. Conservation Measures'!DG82","v":0},{"$f":"'2. Conservation Measures'!DH82","v":0},{"$f":"'2. Conservation Measures'!DI82","v":0},{"$f":"'2. Conservation Measures'!DJ82","v":0},{"$f":"'2. Conservation Measures'!DK82","v":0},{"$f":"'2. Conservation Measures'!DL82","v":0},{"$f":"'2. Conservation Measures'!DM82","v":0},{"$f":"'2. Conservation Measures'!DN82","v":0},{"$f":"'2. Conservation Measures'!DO82","v":0},{"$f":"'2. Conservation Measures'!DP82","v":0},{"$f":"'2. Conservation Measures'!DQ82","v":0},{"$f":"'2. Conservation Measures'!DR82","v":0},{"$f":"'2. Conservation Measures'!DS82","v":0},{"$f":"'2. Conservation Measures'!DT82","v":0},{"$f":"'2. Conservation Measures'!DU82","v":0},{"$f":"'2. Conservation Measures'!DV82","v":0},{"$f":"'2. Conservation Measures'!DW82","v":0},{"$f":"'2. Conservation Measures'!DX82","v":0},{"$f":"'2. Conservation Measures'!DY82","v":0},{"$f":"'2. Conservation Measures'!DZ82","v":0},{"$f":"'2. Conservation Measures'!EA82","v":0},{"$f":"'2. Conservation Measures'!EB82","v":0},{"$f":"'2. Conservation Measures'!EC82","v":0},{"$f":"'2. Conservation Measures'!ED82","v":0},{"$f":"'2. Conservation Measures'!EE82","v":0},{"$f":"'2. Conservation Measures'!EF82","v":0},{"$f":"'2. Conservation Measures'!EG82","v":0},{"$f":"'2. Conservation Measures'!EH82","v":0},{"$f":"'2. Conservation Measures'!EI82","v":0},{"$f":"'2. Conservation Measures'!EJ82","v":0},{"$f":"'2. Conservation Measures'!EK82","v":0},{"$f":"'2. Conservation Measures'!EL82","v":0},{"$f":"'2. Conservation Measures'!EM82","v":0},null,{"$f":"'2. Conservation Measures'!KP82","v":0},{"$f":"'2. Conservation Measures'!KQ82","v":0},{"$f":"'2. Conservation Measures'!KR82","v":0},{"$f":"'2. Conservation Measures'!KS82","v":0},{"$f":"'2. Conservation Measures'!KT82","v":0},{"$f":"'2. Conservation Measures'!KU82","v":0},{"$f":"'2. Conservation Measures'!KV82","v":0},{"$f":"'2. Conservation Measures'!KW82","v":0},{"$f":"'2. Conservation Measures'!KX82","v":0},{"$f":"'2. Conservation Measures'!KY82","v":0},{"$f":"'2. Conservation Measures'!KZ82","v":0},{"$f":"'2. Conservation Measures'!LA82","v":0},{"$f":"'2. Conservation Measures'!LB82","v":0},{"$f":"'2. Conservation Measures'!LC82","v":0},{"$f":"'2. Conservation Measures'!LD82","v":0},{"$f":"'2. Conservation Measures'!LE82","v":0},{"$f":"'2. Conservation Measures'!LF82","v":0},{"$f":"'2. Conservation Measures'!LG82","v":0},{"$f":"'2. Conservation Measures'!LH82","v":0},{"$f":"'2. Conservation Measures'!LI82","v":0},{"$f":"'2. Conservation Measures'!LJ82","v":0},{"$f":"'2. Conservation Measures'!LK82","v":0},{"$f":"'2. Conservation Measures'!LL82","v":0},{"$f":"'2. Conservation Measures'!LM82","v":0},{"$f":"'2. Conservation Measures'!LN82","v":0},{"$f":"'2. Conservation Measures'!LO82","v":0},{"$f":"'2. Conservation Measures'!LP82","v":0},{"$f":"'2. Conservation Measures'!LQ82","v":0},{"$f":"'2. Conservation Measures'!LR82","v":0},{"$f":"'2. Conservation Measures'!LS82","v":0},{"$f":"'2. Conservation Measures'!LT82","v":0},{"$f":"'2. Conservation Measures'!LU82","v":0},{"$f":"'2. Conservation Measures'!LV82","v":0},{"$f":"'2. Conservation Measures'!LW82","v":0},{"$f":"'2. Conservation Measures'!LX82","v":0},{"$f":"'2. Conservation Measures'!LY82","v":0},{"$f":"'2. Conservation Measures'!LZ82","v":0},{"$f":"'2. Conservation Measures'!MA82","v":0},{"$f":"'2. Conservation Measures'!MB82","v":0},{"$f":"'2. Conservation Measures'!MC82","v":0},{"$f":"'2. Conservation Measures'!MD82","v":0},{"$f":"'2. Conservation Measures'!ME82","v":0},{"$f":"'2. Conservation Measures'!MF82","v":0},{"$f":"'2. Conservation Measures'!MG82","v":0},{"$f":"'2. Conservation Measures'!MH82","v":0},{"$f":"'2. Conservation Measures'!MI82","v":0},{"$f":"'2. Conservation Measures'!MJ82","v":0},{"$f":"'2. Conservation Measures'!MK82","v":0},{"$f":"'2. Conservation Measures'!ML82","v":0},{"$f":"'2. Conservation Measures'!MM82","v":0},{"$f":"'2. Conservation Measures'!MN82","v":0},null,{"$f":"'2. Conservation Measures'!EP82","v":0},{"$f":"'2. Conservation Measures'!EQ82","v":0},{"$f":"'2. Conservation Measures'!ER82","v":0},{"$f":"'2. Conservation Measures'!ES82","v":0},{"$f":"'2. Conservation Measures'!ET82","v":0},{"$f":"'2. Conservation Measures'!EU82","v":0},{"$f":"'2. Conservation Measures'!EV82","v":0},{"$f":"'2. Conservation Measures'!EW82","v":0},{"$f":"'2. Conservation Measures'!EX82","v":0},{"$f":"'2. Conservation Measures'!EY82","v":0},{"$f":"'2. Conservation Measures'!EZ82","v":0},{"$f":"'2. Conservation Measures'!FA82","v":0},{"$f":"'2. Conservation Measures'!FB82","v":0},{"$f":"'2. Conservation Measures'!FC82","v":0},{"$f":"'2. Conservation Measures'!FD82","v":0},{"$f":"'2. Conservation Measures'!FE82","v":0},{"$f":"'2. Conservation Measures'!FF82","v":0},{"$f":"'2. Conservation Measures'!FG82","v":0},{"$f":"'2. Conservation Measures'!FH82","v":0},{"$f":"'2. Conservation Measures'!FI82","v":0},{"$f":"'2. Conservation Measures'!FJ82","v":0},{"$f":"'2. Conservation Measures'!FK82","v":0},{"$f":"'2. Conservation Measures'!FL82","v":0},{"$f":"'2. Conservation Measures'!FM82","v":0},{"$f":"'2. Conservation Measures'!FN82","v":0},{"$f":"'2. Conservation Measures'!FO82","v":0},{"$f":"'2. Conservation Measures'!FP82","v":0},{"$f":"'2. Conservation Measures'!FQ82","v":0},{"$f":"'2. Conservation Measures'!FR82","v":0},{"$f":"'2. Conservation Measures'!FS82","v":0},{"$f":"'2. Conservation Measures'!FT82","v":0},{"$f":"'2. Conservation Measures'!FU82","v":0},{"$f":"'2. Conservation Measures'!FV82","v":0},{"$f":"'2. Conservation Measures'!FW82","v":0},{"$f":"'2. Conservation Measures'!FX82","v":0},{"$f":"'2. Conservation Measures'!FY82","v":0},{"$f":"'2. Conservation Measures'!FZ82","v":0},{"$f":"'2. Conservation Measures'!GA82","v":0},{"$f":"'2. Conservation Measures'!GB82","v":0},{"$f":"'2. Conservation Measures'!GC82","v":0},{"$f":"'2. Conservation Measures'!GD82","v":0},{"$f":"'2. Conservation Measures'!GE82","v":0},{"$f":"'2. Conservation Measures'!GF82","v":0},{"$f":"'2. Conservation Measures'!GG82","v":0},{"$f":"'2. Conservation Measures'!GH82","v":0},{"$f":"'2. Conservation Measures'!GI82","v":0},{"$f":"'2. Conservation Measures'!GJ82","v":0},{"$f":"'2. Conservation Measures'!GK82","v":0},{"$f":"'2. Conservation Measures'!GL82","v":0},{"$f":"'2. Conservation Measures'!GM82","v":0},{"$f":"'2. Conservation Measures'!GN82","v":0},null,{"$f":"'2. Conservation Measures'!GP82","v":0},{"$f":"'2. Conservation Measures'!GQ82","v":0},{"$f":"'2. Conservation Measures'!GR82","v":0},{"$f":"'2. Conservation Measures'!GS82","v":0},{"$f":"'2. Conservation Measures'!GT82","v":0},{"$f":"'2. Conservation Measures'!GU82","v":0},{"$f":"'2. Conservation Measures'!GV82","v":0},{"$f":"'2. Conservation Measures'!GW82","v":0},{"$f":"'2. Conservation Measures'!GX82","v":0},{"$f":"'2. Conservation Measures'!GY82","v":0},{"$f":"'2. Conservation Measures'!GZ82","v":0},{"$f":"'2. Conservation Measures'!HA82","v":0},{"$f":"'2. Conservation Measures'!HB82","v":0},{"$f":"'2. Conservation Measures'!HC82","v":0},{"$f":"'2. Conservation Measures'!HD82","v":0},{"$f":"'2. Conservation Measures'!HE82","v":0},{"$f":"'2. Conservation Measures'!HF82","v":0},{"$f":"'2. Conservation Measures'!HG82","v":0},{"$f":"'2. Conservation Measures'!HH82","v":0},{"$f":"'2. Conservation Measures'!HI82","v":0},{"$f":"'2. Conservation Measures'!HJ82","v":0},{"$f":"'2. Conservation Measures'!HK82","v":0},{"$f":"'2. Conservation Measures'!HL82","v":0},{"$f":"'2. Conservation Measures'!HM82","v":0},{"$f":"'2. Conservation Measures'!HN82","v":0},{"$f":"'2. Conservation Measures'!HO82","v":0},{"$f":"'2. Conservation Measures'!HP82","v":0},{"$f":"'2. Conservation Measures'!HQ82","v":0},{"$f":"'2. Conservation Measures'!HR82","v":0},{"$f":"'2. Conservation Measures'!HS82","v":0},{"$f":"'2. Conservation Measures'!HT82","v":0},{"$f":"'2. Conservation Measures'!HU82","v":0},{"$f":"'2. Conservation Measures'!HV82","v":0},{"$f":"'2. Conservation Measures'!HW82","v":0},{"$f":"'2. Conservation Measures'!HX82","v":0},{"$f":"'2. Conservation Measures'!HY82","v":0},{"$f":"'2. Conservation Measures'!HZ82","v":0},{"$f":"'2. Conservation Measures'!IA82","v":0},{"$f":"'2. Conservation Measures'!IB82","v":0},{"$f":"'2. Conservation Measures'!IC82","v":0},{"$f":"'2. Conservation Measures'!ID82","v":0},{"$f":"'2. Conservation Measures'!IE82","v":0},{"$f":"'2. Conservation Measures'!IF82","v":0},{"$f":"'2. Conservation Measures'!IG82","v":0},{"$f":"'2. Conservation Measures'!IH82","v":0},{"$f":"'2. Conservation Measures'!II82","v":0},{"$f":"'2. Conservation Measures'!IJ82","v":0},{"$f":"'2. Conservation Measures'!IK82","v":0},{"$f":"'2. Conservation Measures'!IL82","v":0},{"$f":"'2. Conservation Measures'!IM82","v":0},{"$f":"'2. Conservation Measures'!IN82","v":0},null,{"$f":"'2. Conservation Measures'!IP82","v":0},{"$f":"'2. Conservation Measures'!IQ82","v":0},{"$f":"'2. Conservation Measures'!IR82","v":0},{"$f":"'2. Conservation Measures'!IS82","v":0},{"$f":"'2. Conservation Measures'!IT82","v":0},{"$f":"'2. Conservation Measures'!IU82","v":0},{"$f":"'2. Conservation Measures'!IV82","v":0},{"$f":"'2. Conservation Measures'!IW82","v":0},{"$f":"'2. Conservation Measures'!IX82","v":0},{"$f":"'2. Conservation Measures'!IY82","v":0},{"$f":"'2. Conservation Measures'!IZ82","v":0},{"$f":"'2. Conservation Measures'!JA82","v":0},{"$f":"'2. Conservation Measures'!JB82","v":0},{"$f":"'2. Conservation Measures'!JC82","v":0},{"$f":"'2. Conservation Measures'!JD82","v":0},{"$f":"'2. Conservation Measures'!JE82","v":0},{"$f":"'2. Conservation Measures'!JF82","v":0},{"$f":"'2. Conservation Measures'!JG82","v":0},{"$f":"'2. Conservation Measures'!JH82","v":0},{"$f":"'2. Conservation Measures'!JI82","v":0},{"$f":"'2. Conservation Measures'!JJ82","v":0},{"$f":"'2. Conservation Measures'!JK82","v":0},{"$f":"'2. Conservation Measures'!JL82","v":0},{"$f":"'2. Conservation Measures'!JM82","v":0},{"$f":"'2. Conservation Measures'!JN82","v":0},{"$f":"'2. Conservation Measures'!JO82","v":0},{"$f":"'2. Conservation Measures'!JP82","v":0},{"$f":"'2. Conservation Measures'!JQ82","v":0},{"$f":"'2. Conservation Measures'!JR82","v":0},{"$f":"'2. Conservation Measures'!JS82","v":0},{"$f":"'2. Conservation Measures'!JT82","v":0},{"$f":"'2. Conservation Measures'!JU82","v":0},{"$f":"'2. Conservation Measures'!JV82","v":0},{"$f":"'2. Conservation Measures'!JW82","v":0},{"$f":"'2. Conservation Measures'!JX82","v":0},{"$f":"'2. Conservation Measures'!JY82","v":0},{"$f":"'2. Conservation Measures'!JZ82","v":0},{"$f":"'2. Conservation Measures'!KA82","v":0},{"$f":"'2. Conservation Measures'!KB82","v":0},{"$f":"'2. Conservation Measures'!KC82","v":0},{"$f":"'2. Conservation Measures'!KD82","v":0},{"$f":"'2. Conservation Measures'!KE82","v":0},{"$f":"'2. Conservation Measures'!KF82","v":0},{"$f":"'2. Conservation Measures'!KG82","v":0},{"$f":"'2. Conservation Measures'!KH82","v":0},{"$f":"'2. Conservation Measures'!KI82","v":0},{"$f":"'2. Conservation Measures'!KJ82","v":0},{"$f":"'2. Conservation Measures'!KK82","v":0},{"$f":"'2. Conservation Measures'!KL82","v":0},{"$f":"'2. Conservation Measures'!KM82","v":0},{"$f":"'2. Conservation Measures'!KN82","v":0}]
[null,{"$f":"'2. Conservation Measures'!B83","v":"USR-SF-20"},{"$f":"'2. Conservation Measures'!C83","v":0},{"$f":"'2. Conservation Measures'!D83","v":"N"},null,{"$f":"'2. Conservation Measures'!AA83","v":0},null,{"$f":"'2. Conservation Measures'!AO83","v":0},{"$f":"'2. Conservation Measures'!AP83","v":0},{"$f":"'2. Conservation Measures'!AQ83","v":0},{"$f":"'2. Conservation Measures'!AR83","v":0},{"$f":"'2. Conservation Measures'!AS83","v":0},{"$f":"'2. Conservation Measures'!AT83","v":0},{"$f":"'2. Conservation Measures'!AU83","v":0},{"$f":"'2. Conservation Measures'!AV83","v":0},{"$f":"'2. Conservation Measures'!AW83","v":0},{"$f":"'2. Conservation Measures'!AX83","v":0},{"$f":"'2. Conservation Measures'!AY83","v":0},{"$f":"'2. Conservation Measures'!AZ83","v":0},{"$f":"'2. Conservation Measures'!BA83","v":0},{"$f":"'2. Conservation Measures'!BB83","v":0},{"$f":"'2. Conservation Measures'!BC83","v":0},{"$f":"'2. Conservation Measures'!BD83","v":0},{"$f":"'2. Conservation Measures'!BE83","v":0},{"$f":"'2. Conservation Measures'!BF83","v":0},{"$f":"'2. Conservation Measures'!BG83","v":0},{"$f":"'2. Conservation Measures'!BH83","v":0},{"$f":"'2. Conservation Measures'!BI83","v":0},{"$f":"'2. Conservation Measures'!BJ83","v":0},{"$f":"'2. Conservation Measures'!BK83","v":0},{"$f":"'2. Conservation Measures'!BL83","v":0},{"$f":"'2. Conservation Measures'!BM83","v":0},{"$f":"'2. Conservation Measures'!BN83","v":0},{"$f":"'2. Conservation Measures'!BO83","v":0},{"$f":"'2. Conservation Measures'!BP83","v":0},{"$f":"'2. Conservation Measures'!BQ83","v":0},{"$f":"'2. Conservation Measures'!BR83","v":0},{"$f":"'2. Conservation Measures'!BS83","v":0},{"$f":"'2. Conservation Measures'!BT83","v":0},{"$f":"'2. Conservation Measures'!BU83","v":0},{"$f":"'2. Conservation Measures'!BV83","v":0},{"$f":"'2. Conservation Measures'!BW83","v":0},{"$f":"'2. Conservation Measures'!BX83","v":0},{"$f":"'2. Conservation Measures'!BY83","v":0},{"$f":"'2. Conservation Measures'!BZ83","v":0},{"$f":"'2. Conservation Measures'!CA83","v":0},{"$f":"'2. Conservation Measures'!CB83","v":0},{"$f":"'2. Conservation Measures'!CC83","v":0},{"$f":"'2. Conservation Measures'!CD83","v":0},{"$f":"'2. Conservation Measures'!CE83","v":0},{"$f":"'2. Conservation Measures'!CF83","v":0},{"$f":"'2. Conservation Measures'!CG83","v":0},{"$f":"'2. Conservation Measures'!CH83","v":0},{"$f":"'2. Conservation Measures'!CI83","v":0},{"$f":"'2. Conservation Measures'!CJ83","v":0},{"$f":"'2. Conservation Measures'!CK83","v":0},{"$f":"'2. Conservation Measures'!CL83","v":0},{"$f":"'2. Conservation Measures'!CM83","v":0},null,{"$f":"'2. Conservation Measures'!CO83","v":0},{"$f":"'2. Conservation Measures'!CP83","v":0},{"$f":"'2. Conservation Measures'!CQ83","v":0},{"$f":"'2. Conservation Measures'!CR83","v":0},{"$f":"'2. Conservation Measures'!CS83","v":0},{"$f":"'2. Conservation Measures'!CT83","v":0},{"$f":"'2. Conservation Measures'!CU83","v":0},{"$f":"'2. Conservation Measures'!CV83","v":0},{"$f":"'2. Conservation Measures'!CW83","v":0},{"$f":"'2. Conservation Measures'!CX83","v":0},{"$f":"'2. Conservation Measures'!CY83","v":0},{"$f":"'2. Conservation Measures'!CZ83","v":0},{"$f":"'2. Conservation Measures'!DA83","v":0},{"$f":"'2. Conservation Measures'!DB83","v":0},{"$f":"'2. Conservation Measures'!DC83","v":0},{"$f":"'2. Conservation Measures'!DD83","v":0},{"$f":"'2. Conservation Measures'!DE83","v":0},{"$f":"'2. Conservation Measures'!DF83","v":0},{"$f":"'2. Conservation Measures'!DG83","v":0},{"$f":"'2. Conservation Measures'!DH83","v":0},{"$f":"'2. Conservation Measures'!DI83","v":0},{"$f":"'2. Conservation Measures'!DJ83","v":0},{"$f":"'2. Conservation Measures'!DK83","v":0},{"$f":"'2. Conservation Measures'!DL83","v":0},{"$f":"'2. Conservation Measures'!DM83","v":0},{"$f":"'2. Conservation Measures'!DN83","v":0},{"$f":"'2. Conservation Measures'!DO83","v":0},{"$f":"'2. Conservation Measures'!DP83","v":0},{"$f":"'2. Conservation Measures'!DQ83","v":0},{"$f":"'2. Conservation Measures'!DR83","v":0},{"$f":"'2. Conservation Measures'!DS83","v":0},{"$f":"'2. Conservation Measures'!DT83","v":0},{"$f":"'2. Conservation Measures'!DU83","v":0},{"$f":"'2. Conservation Measures'!DV83","v":0},{"$f":"'2. Conservation Measures'!DW83","v":0},{"$f":"'2. Conservation Measures'!DX83","v":0},{"$f":"'2. Conservation Measures'!DY83","v":0},{"$f":"'2. Conservation Measures'!DZ83","v":0},{"$f":"'2. Conservation Measures'!EA83","v":0},{"$f":"'2. Conservation Measures'!EB83","v":0},{"$f":"'2. Conservation Measures'!EC83","v":0},{"$f":"'2. Conservation Measures'!ED83","v":0},{"$f":"'2. Conservation Measures'!EE83","v":0},{"$f":"'2. Conservation Measures'!EF83","v":0},{"$f":"'2. Conservation Measures'!EG83","v":0},{"$f":"'2. Conservation Measures'!EH83","v":0},{"$f":"'2. Conservation Measures'!EI83","v":0},{"$f":"'2. Conservation Measures'!EJ83","v":0},{"$f":"'2. Conservation Measures'!EK83","v":0},{"$f":"'2. Conservation Measures'!EL83","v":0},{"$f":"'2. Conservation Measures'!EM83","v":0},null,{"$f":"'2. Conservation Measures'!KP83","v":0},{"$f":"'2. Conservation Measures'!KQ83","v":0},{"$f":"'2. Conservation Measures'!KR83","v":0},{"$f":"'2. Conservation Measures'!KS83","v":0},{"$f":"'2. Conservation Measures'!KT83","v":0},{"$f":"'2. Conservation Measures'!KU83","v":0},{"$f":"'2. Conservation Measures'!KV83","v":0},{"$f":"'2. Conservation Measures'!KW83","v":0},{"$f":"'2. Conservation Measures'!KX83","v":0},{"$f":"'2. Conservation Measures'!KY83","v":0},{"$f":"'2. Conservation Measures'!KZ83","v":0},{"$f":"'2. Conservation Measures'!LA83","v":0},{"$f":"'2. Conservation Measures'!LB83","v":0},{"$f":"'2. Conservation Measures'!LC83","v":0},{"$f":"'2. Conservation Measures'!LD83","v":0},{"$f":"'2. Conservation Measures'!LE83","v":0},{"$f":"'2. Conservation Measures'!LF83","v":0},{"$f":"'2. Conservation Measures'!LG83","v":0},{"$f":"'2. Conservation Measures'!LH83","v":0},{"$f":"'2. Conservation Measures'!LI83","v":0},{"$f":"'2. Conservation Measures'!LJ83","v":0},{"$f":"'2. Conservation Measures'!LK83","v":0},{"$f":"'2. Conservation Measures'!LL83","v":0},{"$f":"'2. Conservation Measures'!LM83","v":0},{"$f":"'2. Conservation Measures'!LN83","v":0},{"$f":"'2. Conservation Measures'!LO83","v":0},{"$f":"'2. Conservation Measures'!LP83","v":0},{"$f":"'2. Conservation Measures'!LQ83","v":0},{"$f":"'2. Conservation Measures'!LR83","v":0},{"$f":"'2. Conservation Measures'!LS83","v":0},{"$f":"'2. Conservation Measures'!LT83","v":0},{"$f":"'2. Conservation Measures'!LU83","v":0},{"$f":"'2. Conservation Measures'!LV83","v":0},{"$f":"'2. Conservation Measures'!LW83","v":0},{"$f":"'2. Conservation Measures'!LX83","v":0},{"$f":"'2. Conservation Measures'!LY83","v":0},{"$f":"'2. Conservation Measures'!LZ83","v":0},{"$f":"'2. Conservation Measures'!MA83","v":0},{"$f":"'2. Conservation Measures'!MB83","v":0},{"$f":"'2. Conservation Measures'!MC83","v":0},{"$f":"'2. Conservation Measures'!MD83","v":0},{"$f":"'2. Conservation Measures'!ME83","v":0},{"$f":"'2. Conservation Measures'!MF83","v":0},{"$f":"'2. Conservation Measures'!MG83","v":0},{"$f":"'2. Conservation Measures'!MH83","v":0},{"$f":"'2. Conservation Measures'!MI83","v":0},{"$f":"'2. Conservation Measures'!MJ83","v":0},{"$f":"'2. Conservation Measures'!MK83","v":0},{"$f":"'2. Conservation Measures'!ML83","v":0},{"$f":"'2. Conservation Measures'!MM83","v":0},{"$f":"'2. Conservation Measures'!MN83","v":0},null,{"$f":"'2. Conservation Measures'!EP83","v":0},{"$f":"'2. Conservation Measures'!EQ83","v":0},{"$f":"'2. Conservation Measures'!ER83","v":0},{"$f":"'2. Conservation Measures'!ES83","v":0},{"$f":"'2. Conservation Measures'!ET83","v":0},{"$f":"'2. Conservation Measures'!EU83","v":0},{"$f":"'2. Conservation Measures'!EV83","v":0},{"$f":"'2. Conservation Measures'!EW83","v":0},{"$f":"'2. Conservation Measures'!EX83","v":0},{"$f":"'2. Conservation Measures'!EY83","v":0},{"$f":"'2. Conservation Measures'!EZ83","v":0},{"$f":"'2. Conservation Measures'!FA83","v":0},{"$f":"'2. Conservation Measures'!FB83","v":0},{"$f":"'2. Conservation Measures'!FC83","v":0},{"$f":"'2. Conservation Measures'!FD83","v":0},{"$f":"'2. Conservation Measures'!FE83","v":0},{"$f":"'2. Conservation Measures'!FF83","v":0},{"$f":"'2. Conservation Measures'!FG83","v":0},{"$f":"'2. Conservation Measures'!FH83","v":0},{"$f":"'2. Conservation Measures'!FI83","v":0},{"$f":"'2. Conservation Measures'!FJ83","v":0},{"$f":"'2. Conservation Measures'!FK83","v":0},{"$f":"'2. Conservation Measures'!FL83","v":0},{"$f":"'2. Conservation Measures'!FM83","v":0},{"$f":"'2. Conservation Measures'!FN83","v":0},{"$f":"'2. Conservation Measures'!FO83","v":0},{"$f":"'2. Conservation Measures'!FP83","v":0},{"$f":"'2. Conservation Measures'!FQ83","v":0},{"$f":"'2. Conservation Measures'!FR83","v":0},{"$f":"'2. Conservation Measures'!FS83","v":0},{"$f":"'2. Conservation Measures'!FT83","v":0},{"$f":"'2. Conservation Measures'!FU83","v":0},{"$f":"'2. Conservation Measures'!FV83","v":0},{"$f":"'2. Conservation Measures'!FW83","v":0},{"$f":"'2. Conservation Measures'!FX83","v":0},{"$f":"'2. Conservation Measures'!FY83","v":0},{"$f":"'2. Conservation Measures'!FZ83","v":0},{"$f":"'2. Conservation Measures'!GA83","v":0},{"$f":"'2. Conservation Measures'!GB83","v":0},{"$f":"'2. Conservation Measures'!GC83","v":0},{"$f":"'2. Conservation Measures'!GD83","v":0},{"$f":"'2. Conservation Measures'!GE83","v":0},{"$f":"'2. Conservation Measures'!GF83","v":0},{"$f":"'2. Conservation Measures'!GG83","v":0},{"$f":"'2. Conservation Measures'!GH83","v":0},{"$f":"'2. Conservation Measures'!GI83","v":0},{"$f":"'2. Conservation Measures'!GJ83","v":0},{"$f":"'2. Conservation Measures'!GK83","v":0},{"$f":"'2. Conservation Measures'!GL83","v":0},{"$f":"'2. Conservation Measures'!GM83","v":0},{"$f":"'2. Conservation Measures'!GN83","v":0},null,{"$f":"'2. Conservation Measures'!GP83","v":0},{"$f":"'2. Conservation Measures'!GQ83","v":0},{"$f":"'2. Conservation Measures'!GR83","v":0},{"$f":"'2. Conservation Measures'!GS83","v":0},{"$f":"'2. Conservation Measures'!GT83","v":0},{"$f":"'2. Conservation Measures'!GU83","v":0},{"$f":"'2. Conservation Measures'!GV83","v":0},{"$f":"'2. Conservation Measures'!GW83","v":0},{"$f":"'2. Conservation Measures'!GX83","v":0},{"$f":"'2. Conservation Measures'!GY83","v":0},{"$f":"'2. Conservation Measures'!GZ83","v":0},{"$f":"'2. Conservation Measures'!HA83","v":0},{"$f":"'2. Conservation Measures'!HB83","v":0},{"$f":"'2. Conservation Measures'!HC83","v":0},{"$f":"'2. Conservation Measures'!HD83","v":0},{"$f":"'2. Conservation Measures'!HE83","v":0},{"$f":"'2. Conservation Measures'!HF83","v":0},{"$f":"'2. Conservation Measures'!HG83","v":0},{"$f":"'2. Conservation Measures'!HH83","v":0},{"$f":"'2. Conservation Measures'!HI83","v":0},{"$f":"'2. Conservation Measures'!HJ83","v":0},{"$f":"'2. Conservation Measures'!HK83","v":0},{"$f":"'2. Conservation Measures'!HL83","v":0},{"$f":"'2. Conservation Measures'!HM83","v":0},{"$f":"'2. Conservation Measures'!HN83","v":0},{"$f":"'2. Conservation Measures'!HO83","v":0},{"$f":"'2. Conservation Measures'!HP83","v":0},{"$f":"'2. Conservation Measures'!HQ83","v":0},{"$f":"'2. Conservation Measures'!HR83","v":0},{"$f":"'2. Conservation Measures'!HS83","v":0},{"$f":"'2. Conservation Measures'!HT83","v":0},{"$f":"'2. Conservation Measures'!HU83","v":0},{"$f":"'2. Conservation Measures'!HV83","v":0},{"$f":"'2. Conservation Measures'!HW83","v":0},{"$f":"'2. Conservation Measures'!HX83","v":0},{"$f":"'2. Conservation Measures'!HY83","v":0},{"$f":"'2. Conservation Measures'!HZ83","v":0},{"$f":"'2. Conservation Measures'!IA83","v":0},{"$f":"'2. Conservation Measures'!IB83","v":0},{"$f":"'2. Conservation Measures'!IC83","v":0},{"$f":"'2. Conservation Measures'!ID83","v":0},{"$f":"'2. Conservation Measures'!IE83","v":0},{"$f":"'2. Conservation Measures'!IF83","v":0},{"$f":"'2. Conservation Measures'!IG83","v":0},{"$f":"'2. Conservation Measures'!IH83","v":0},{"$f":"'2. Conservation Measures'!II83","v":0},{"$f":"'2. Conservation Measures'!IJ83","v":0},{"$f":"'2. Conservation Measures'!IK83","v":0},{"$f":"'2. Conservation Measures'!IL83","v":0},{"$f":"'2. Conservation Measures'!IM83","v":0},{"$f":"'2. Conservation Measures'!IN83","v":0},null,{"$f":"'2. Conservation Measures'!IP83","v":0},{"$f":"'2. Conservation Measures'!IQ83","v":0},{"$f":"'2. Conservation Measures'!IR83","v":0},{"$f":"'2. Conservation Measures'!IS83","v":0},{"$f":"'2. Conservation Measures'!IT83","v":0},{"$f":"'2. Conservation Measures'!IU83","v":0},{"$f":"'2. Conservation Measures'!IV83","v":0},{"$f":"'2. Conservation Measures'!IW83","v":0},{"$f":"'2. Conservation Measures'!IX83","v":0},{"$f":"'2. Conservation Measures'!IY83","v":0},{"$f":"'2. Conservation Measures'!IZ83","v":0},{"$f":"'2. Conservation Measures'!JA83","v":0},{"$f":"'2. Conservation Measures'!JB83","v":0},{"$f":"'2. Conservation Measures'!JC83","v":0},{"$f":"'2. Conservation Measures'!JD83","v":0},{"$f":"'2. Conservation Measures'!JE83","v":0},{"$f":"'2. Conservation Measures'!JF83","v":0},{"$f":"'2. Conservation Measures'!JG83","v":0},{"$f":"'2. Conservation Measures'!JH83","v":0},{"$f":"'2. Conservation Measures'!JI83","v":0},{"$f":"'2. Conservation Measures'!JJ83","v":0},{"$f":"'2. Conservation Measures'!JK83","v":0},{"$f":"'2. Conservation Measures'!JL83","v":0},{"$f":"'2. Conservation Measures'!JM83","v":0},{"$f":"'2. Conservation Measures'!JN83","v":0},{"$f":"'2. Conservation Measures'!JO83","v":0},{"$f":"'2. Conservation Measures'!JP83","v":0},{"$f":"'2. Conservation Measures'!JQ83","v":0},{"$f":"'2. Conservation Measures'!JR83","v":0},{"$f":"'2. Conservation Measures'!JS83","v":0},{"$f":"'2. Conservation Measures'!JT83","v":0},{"$f":"'2. Conservation Measures'!JU83","v":0},{"$f":"'2. Conservation Measures'!JV83","v":0},{"$f":"'2. Conservation Measures'!JW83","v":0},{"$f":"'2. Conservation Measures'!JX83","v":0},{"$f":"'2. Conservation Measures'!JY83","v":0},{"$f":"'2. Conservation Measures'!JZ83","v":0},{"$f":"'2. Conservation Measures'!KA83","v":0},{"$f":"'2. Conservation Measures'!KB83","v":0},{"$f":"'2. Conservation Measures'!KC83","v":0},{"$f":"'2. Conservation Measures'!KD83","v":0},{"$f":"'2. Conservation Measures'!KE83","v":0},{"$f":"'2. Conservation Measures'!KF83","v":0},{"$f":"'2. Conservation Measures'!KG83","v":0},{"$f":"'2. Conservation Measures'!KH83","v":0},{"$f":"'2. Conservation Measures'!KI83","v":0},{"$f":"'2. Conservation Measures'!KJ83","v":0},{"$f":"'2. Conservation Measures'!KK83","v":0},{"$f":"'2. Conservation Measures'!KL83","v":0},{"$f":"'2. Conservation Measures'!KM83","v":0},{"$f":"'2. Conservation Measures'!KN83","v":0}]
[null,"Subtotal",null,null,null,{"$f":"'2. Conservation Measures'!AA156","v":{"$error":"#VALUE!"}},null,null,null,null,null,null,null,null,null,null,null,null,null,null,null,null,null,null,null,null,null,null,null,null,null,null,null,null,null,null,null,null,null,null,null,null,null,null,null,null,null,null,null,null,null,null,null,null,null,null,null,null,null,{"$f":"SUM(BH19:BH49)","v":{"$error":"#VALUE!"}},{"$f":"SUM(BI19:BI49)","v":{"$error":"#VALUE!"}},{"$f":"SUM(BJ19:BJ49)","v":{"$error":"#VALUE!"}},{"$f":"SUM(BK19:BK49)","v":{"$error":"#VALUE!"}},{"$f":"SUM(BL19:BL49)","v":{"$error":"#VALUE!"}},{"$f":"SUM(BM19:BM49)","v":{"$error":"#VALUE!"}},{"$f":"SUM(BN19:BN49)","v":{"$error":"#VALUE!"}},{"$f":"SUM(BO19:BO49)","v":{"$error":"#VALUE!"}},{"$f":"SUM(BP19:BP49)","v":{"$error":"#VALUE!"}},{"$f":"SUM(BQ19:BQ49)","v":{"$error":"#VALUE!"}},{"$f":"SUM(BR19:BR49)","v":{"$error":"#VALUE!"}},{"$f":"SUM(BS19:BS49)","v":{"$error":"#VALUE!"}},{"$f":"SUM(BT19:BT49)","v":{"$error":"#VALUE!"}},{"$f":"SUM(BU19:BU49)","v":{"$error":"#VALUE!"}},{"$f":"SUM(BV19:BV49)","v":{"$error":"#VALUE!"}},{"$f":"SUM(BW19:BW49)","v":{"$error":"#VALUE!"}},{"$f":"SUM(BX19:BX49)","v":{"$error":"#VALUE!"}},{"$f":"SUM(BY19:BY49)","v":{"$error":"#VALUE!"}},{"$f":"SUM(BZ19:BZ49)","v":{"$error":"#VALUE!"}},{"$f":"SUM(CA19:CA49)","v":{"$error":"#VALUE!"}},{"$f":"SUM(CB19:CB49)","v":{"$error":"#VALUE!"}},{"$f":"SUM(CC19:CC49)","v":{"$error":"#VALUE!"}},{"$f":"SUM(CD19:CD49)","v":{"$error":"#VALUE!"}},{"$f":"SUM(CE19:CE49)","v":{"$error":"#VALUE!"}},{"$f":"SUM(CF19:CF49)","v":{"$error":"#VALUE!"}},{"$f":"SUM(CG19:CG49)","v":{"$error":"#VALUE!"}},{"$f":"SUM(CH19:CH49)","v":{"$error":"#VALUE!"}},{"$f":"SUM(CI19:CI49)","v":{"$error":"#VALUE!"}},{"$f":"SUM(CJ19:CJ49)","v":{"$error":"#VALUE!"}},{"$f":"SUM(CK19:CK49)","v":{"$error":"#VALUE!"}},{"$f":"SUM(CL19:CL49)","v":{"$error":"#VALUE!"}},{"$f":"SUM(CM19:CM49)","v":{"$error":"#VALUE!"}},{"$f":"SUM(CN19:CN49)","v":{"$error":"#VALUE!"}},{"$f":"SUM(CO19:CO49)","v":{"$error":"#VALUE!"}},{"$f":"SUM(CP19:CP49)","v":{"$error":"#VALUE!"}},{"$f":"SUM(CQ19:CQ49)","v":{"$error":"#VALUE!"}},{"$f":"SUM(CR19:CR49)","v":{"$error":"#VALUE!"}},{"$f":"SUM(CS19:CS49)","v":{"$error":"#VALUE!"}},{"$f":"SUM(CT19:CT49)","v":{"$error":"#VALUE!"}},{"$f":"SUM(CU19:CU49)","v":{"$error":"#VALUE!"}},{"$f":"SUM(CV19:CV49)","v":{"$error":"#VALUE!"}},{"$error":"#VALUE!"},{"$error":"#VALUE!"},{"$error":"#VALUE!"},{"$error":"#VALUE!"},{"$error":"#VALUE!"},{"$error":"#VALUE!"},{"$error":"#VALUE!"},{"$error":"#VALUE!"},{"$error":"#VALUE!"},{"$error":"#VALUE!"},null,{"$f":"SUM(DH19:DH49)","v":{"$error":"#N/A"}},{"$f":"SUM(DI19:DI49)","v":{"$error":"#N/A"}},{"$error":"#N/A"},{"$error":"#N/A"},{"$error":"#N/A"},{"$error":"#N/A"},{"$error":"#N/A"},{"$error":"#N/A"},{"$error":"#N/A"},{"$error":"#N/A"},{"$error":"#N/A"},{"$error":"#N/A"},{"$error":"#N/A"},{"$error":"#N/A"},{"$error":"#N/A"},{"$error":"#N/A"},{"$error":"#N/A"},{"$error":"#N/A"},{"$error":"#N/A"},{"$error":"#N/A"},{"$error":"#N/A"},{"$error":"#N/A"},{"$error":"#N/A"},{"$error":"#N/A"},{"$error":"#N/A"},{"$error":"#N/A"},{"$error":"#N/A"},{"$error":"#N/A"},{"$error":"#N/A"},{"$error":"#N/A"},{"$error":"#N/A"},{"$error":"#N/A"},{"$error":"#N/A"},{"$error":"#N/A"},{"$error":"#N/A"},{"$error":"#N/A"},{"$error":"#N/A"},{"$error":"#N/A"},{"$error":"#N/A"},{"$error":"#N/A"},{"$error":"#N/A"},{"$error":"#N/A"},{"$error":"#N/A"},{"$error":"#N/A"},{"$error":"#N/A"},{"$error":"#N/A"},{"$error":"#N/A"},{"$error":"#N/A"},{"$error":"#N/A"},{"$error":"#N/A"},{"$error":"#N/A"},null,{"$f":"SUM(FH19:FH49)","v":{"$error":"#N/A"}},{"$f":"SUM(FI19:FI49)","v":{"$error":"#N/A"}},{"$error":"#N/A"},{"$error":"#N/A"},{"$error":"#N/A"},{"$error":"#N/A"},{"$error":"#N/A"},{"$error":"#N/A"},{"$error":"#N/A"},{"$error":"#N/A"},{"$error":"#N/A"},{"$error":"#N/A"},{"$error":"#N/A"},{"$error":"#N/A"},{"$error":"#N/A"},{"$error":"#N/A"},{"$error":"#N/A"},{"$error":"#N/A"},{"$error":"#N/A"},{"$error":"#N/A"},{"$error":"#N/A"},{"$error":"#N/A"},{"$error":"#N/A"},{"$error":"#N/A"},{"$error":"#N/A"},{"$error":"#N/A"},{"$error":"#N/A"},{"$error":"#N/A"},{"$error":"#N/A"},{"$error":"#N/A"},{"$error":"#N/A"},{"$error":"#N/A"},{"$error":"#N/A"},{"$error":"#N/A"},{"$error":"#N/A"},{"$error":"#N/A"},{"$error":"#N/A"},{"$error":"#N/A"},{"$error":"#N/A"},{"$error":"#N/A"},{"$error":"#N/A"},{"$error":"#N/A"},{"$error":"#N/A"},{"$error":"#N/A"},{"$error":"#N/A"},{"$error":"#N/A"},{"$error":"#N/A"},{"$error":"#N/A"},{"$error":"#N/A"},{"$error":"#N/A"},{"$error":"#N/A"},null,{"$f":"SUM(HH19:HH49)","v":{"$error":"#N/A"}},{"$f":"SUM(HI19:HI49)","v":{"$error":"#N/A"}},{"$error":"#N/A"},{"$error":"#N/A"},{"$error":"#N/A"},{"$error":"#N/A"},{"$error":"#N/A"},{"$error":"#N/A"},{"$error":"#N/A"},{"$error":"#N/A"},{"$error":"#N/A"},{"$error":"#N/A"},{"$error":"#N/A"},{"$error":"#N/A"},{"$error":"#N/A"},{"$error":"#N/A"},{"$error":"#N/A"},{"$error":"#N/A"},{"$error":"#N/A"},{"$error":"#N/A"},{"$error":"#N/A"},{"$error":"#N/A"},{"$error":"#N/A"},{"$error":"#N/A"},{"$error":"#N/A"},{"$error":"#N/A"},{"$error":"#N/A"},{"$error":"#N/A"},{"$error":"#N/A"},{"$error":"#N/A"},{"$error":"#N/A"},{"$error":"#N/A"},{"$error":"#N/A"},{"$error":"#N/A"},{"$error":"#N/A"},{"$error":"#N/A"},{"$error":"#N/A"},{"$error":"#N/A"},{"$error":"#N/A"},{"$error":"#N/A"},{"$error":"#N/A"},{"$error":"#N/A"},{"$error":"#N/A"},{"$error":"#N/A"},{"$error":"#N/A"},{"$error":"#N/A"},{"$error":"#N/A"},{"$error":"#N/A"},{"$error":"#N/A"},{"$error":"#N/A"},{"$error":"#N/A"},null,{"$f":"SUM(JH19:JH49)","v":{"$error":"#VALUE!"}},{"$f":"SUM(JI19:JI49)","v":{"$error":"#VALUE!"}},{"$error":"#VALUE!"},{"$error":"#VALUE!"},{"$error":"#VALUE!"},{"$error":"#VALUE!"},{"$error":"#VALUE!"},{"$error":"#VALUE!"},{"$error":"#VALUE!"},{"$error":"#VALUE!"},{"$error":"#VALUE!"},{"$error":"#VALUE!"},{"$error":"#VALUE!"},{"$error":"#VALUE!"},{"$error":"#VALUE!"},{"$error":"#VALUE!"},{"$error":"#VALUE!"},{"$error":"#VALUE!"},{"$error":"#VALUE!"},{"$error":"#VALUE!"},{"$error":"#VALUE!"},{"$error":"#VALUE!"},{"$error":"#VALUE!"},{"$error":"#VALUE!"},{"$error":"#VALUE!"},{"$error":"#VALUE!"},{"$error":"#VALUE!"},{"$error":"#VALUE!"},{"$error":"#VALUE!"},{"$error":"#VALUE!"},{"$error":"#VALUE!"},{"$error":"#VALUE!"},{"$error":"#VALUE!"},{"$error":"#VALUE!"},{"$error":"#VALUE!"},{"$error":"#VALUE!"},{"$error":"#VALUE!"},{"$error":"#VALUE!"},{"$error":"#VALUE!"},{"$error":"#VALUE!"},{"$error":"#VALUE!"},{"$error":"#VALUE!"},{"$error":"#VALUE!"},{"$error":"#VALUE!"},{"$error":"#VALUE!"},{"$error":"#VALUE!"},{"$error":"#VALUE!"},{"$error":"#VALUE!"},{"$error":"#VALUE!"},{"$error":"#VALUE!"},{"$error":"#VALUE!"}]
[]
[null,{"$f":"'2. Conservation Measures'!B35","v":"Multi-Family Measures"}]
[null,{"$f":"'2. Conservation Measures'!B36","v":"PRE-MF-01"},{"$f":"'2. Conservation Measures'!C36","v":{"$error":"#N/A"}},{"$f":"'2. Conservation Measures'!D36","v":"N"},null,{"$f":"'2. Conservation Measures'!AA36","v":{"$error":"#N/A"}},null,{"$f":"'2. Conservation Measures'!AO36","v":0},{"$f":"'2. Conservation Measures'!AP36","v":0},{"$f":"'2. Conservation Measures'!AQ36","v":0},{"$f":"'2. Conservation Measures'!AR36","v":0},{"$f":"'2. Conservation Measures'!AS36","v":0},{"$f":"'2. Conservation Measures'!AT36","v":0},{"$f":"'2. Conservation Measures'!AU36","v":0},{"$f":"'2. Conservation Measures'!AV36","v":0},{"$f":"'2. Conservation Measures'!AW36","v":0},{"$f":"'2. Conservation Measures'!AX36","v":0},{"$f":"'2. Conservation Measures'!AY36","v":0},{"$f":"'2. Conservation Measures'!AZ36","v":0},{"$f":"'2. Conservation Measures'!BA36","v":0},{"$f":"'2. Conservation Measures'!BB36","v":0},{"$f":"'2. Conservation Measures'!BC36","v":0},{"$f":"'2. Conservation Measures'!BD36","v":0},{"$f":"'2. Conservation Measures'!BE36","v":0},{"$f":"'2. Conservation Measures'!BF36","v":0},{"$f":"'2. Conservation Measures'!BG36","v":0},{"$f":"'2. Conservation Measures'!BH36","v":0},{"$f":"'2. Conservation Measures'!BI36","v":0},{"$f":"'2. Conservation Measures'!BJ36","v":0},{"$f":"'2. Conservation Measures'!BK36","v":0},{"$f":"'2. Conservation Measures'!BL36","v":0},{"$f":"'2. Conservation Measures'!BM36","v":0},{"$f":"'2. Conservation Measures'!BN36","v":0},{"$f":"'2. Conservation Measures'!BO36","v":0},{"$f":"'2. Conservation Measures'!BP36","v":0},{"$f":"'2. Conservation Measures'!BQ36","v":0},{"$f":"'2. Conservation Measures'!BR36","v":0},{"$f":"'2. Conservation Measures'!BS36","v":0},{"$f":"'2. Conservation Measures'!BT36","v":0},{"$f":"'2. Conservation Measures'!BU36","v":0},{"$f":"'2. Conservation Measures'!BV36","v":0},{"$f":"'2. Conservation Measures'!BW36","v":0},{"$f":"'2. Conservation Measures'!BX36","v":0},{"$f":"'2. Conservation Measures'!BY36","v":0},{"$f":"'2. Conservation Measures'!BZ36","v":0},{"$f":"'2. Conservation Measures'!CA36","v":0},{"$f":"'2. Conservation Measures'!CB36","v":0},{"$f":"'2. Conservation Measures'!CC36","v":0},{"$f":"'2. Conservation Measures'!CD36","v":0},{"$f":"'2. Conservation Measures'!CE36","v":0},{"$f":"'2. Conservation Measures'!CF36","v":0},{"$f":"'2. Conservation Measures'!CG36","v":0},{"$f":"'2. Conservation Measures'!CH36","v":0},{"$f":"'2. Conservation Measures'!CI36","v":0},{"$f":"'2. Conservation Measures'!CJ36","v":0},{"$f":"'2. Conservation Measures'!CK36","v":0},{"$f":"'2. Conservation Measures'!CL36","v":0},{"$f":"'2. Conservation Measures'!CM36","v":0},null,{"$f":"'2. Conservation Measures'!CO36","v":{"$error":"#VALUE!"}},{"$f":"'2. Conservation Measures'!CP36","v":{"$error":"#VALUE!"}},{"$f":"'2. Conservation Measures'!CQ36","v":{"$error":"#VALUE!"}},{"$f":"'2. Conservation Measures'!CR36","v":{"$error":"#VALUE!"}},{"$f":"'2. Conservation Measures'!CS36","v":{"$error":"#VALUE!"}},{"$f":"'2. Conservation Measures'!CT36","v":{"$error":"#VALUE!"}},{"$f":"'2. Conservation Measures'!CU36","v":{"$error":"#VALUE!"}},{"$f":"'2. Conservation Measures'!CV36","v":{"$error":"#VALUE!"}},{"$f":"'2. Conservation Measures'!CW36","v":{"$error":"#VALUE!"}},{"$f":"'2. Conservation Measures'!CX36","v":{"$error":"#VALUE!"}},{"$f":"'2. Conservation Measures'!CY36","v":{"$error":"#VALUE!"}},{"$f":"'2. Conservation Measures'!CZ36","v":{"$error":"#VALUE!"}},{"$f":"'2. Conservation Measures'!DA36","v":{"$error":"#VALUE!"}},{"$f":"'2. Conservation Measures'!DB36","v":{"$error":"#VALUE!"}},{"$f":"'2. Conservation Measures'!DC36","v":{"$error":"#VALUE!"}},{"$f":"'2. Conservation Measures'!DD36","v":{"$error":"#VALUE!"}},{"$f":"'2. Conservation Measures'!DE36","v":{"$error":"#VALUE!"}},{"$f":"'2. Conservation Measures'!DF36","v":{"$error":"#VALUE!"}},{"$f":"'2. Conservation Measures'!DG36","v":{"$error":"#VALUE!"}},{"$f":"'2. Conservation Measures'!DH36","v":{"$error":"#VALUE!"}},{"$f":"'2. Conservation Measures'!DI36","v":{"$error":"#VALUE!"}},{"$f":"'2. Conservation Measures'!DJ36","v":{"$error":"#VALUE!"}},{"$f":"'2. Conservation Measures'!DK36","v":{"$error":"#VALUE!"}},{"$f":"'2. Conservation Measures'!DL36","v":{"$error":"#VALUE!"}},{"$f":"'2. Conservation Measures'!DM36","v":{"$error":"#VALUE!"}},{"$f":"'2. Conservation Measures'!DN36","v":{"$error":"#VALUE!"}},{"$f":"'2. Conservation Measures'!DO36","v":{"$error":"#VALUE!"}},{"$f":"'2. Conservation Measures'!DP36","v":{"$error":"#VALUE!"}},{"$f":"'2. Conservation Measures'!DQ36","v":{"$error":"#VALUE!"}},{"$f":"'2. Conservation Measures'!DR36","v":{"$error":"#VALUE!"}},{"$f":"'2. Conservation Measures'!DS36","v":{"$error":"#VALUE!"}},{"$f":"'2. Conservation Measures'!DT36","v":{"$error":"#VALUE!"}},{"$f":"'2. Conservation Measures'!DU36","v":{"$error":"#VALUE!"}},{"$f":"'2. Conservation Measures'!DV36","v":{"$error":"#VALUE!"}},{"$f":"'2. Conservation Measures'!DW36","v":{"$error":"#VALUE!"}},{"$f":"'2. Conservation Measures'!DX36","v":{"$error":"#VALUE!"}},{"$f":"'2. Conservation Measures'!DY36","v":{"$error":"#VALUE!"}},{"$f":"'2. Conservation Measures'!DZ36","v":{"$error":"#VALUE!"}},{"$f":"'2. Conservation Measures'!EA36","v":{"$error":"#VALUE!"}},{"$f":"'2. Conservation Measures'!EB36","v":{"$error":"#VALUE!"}},{"$f":"'2. Conservation Measures'!EC36","v":{"$error":"#VALUE!"}},{"$f":"'2. Conservation Measures'!ED36","v":{"$error":"#VALUE!"}},{"$f":"'2. Conservation Measures'!EE36","v":{"$error":"#VALUE!"}},{"$f":"'2. Conservation Measures'!EF36","v":{"$error":"#VALUE!"}},{"$f":"'2. Conservation Measures'!EG36","v":{"$error":"#VALUE!"}},{"$f":"'2. Conservation Measures'!EH36","v":{"$error":"#VALUE!"}},{"$f":"'2. Conservation Measures'!EI36","v":{"$error":"#VALUE!"}},{"$f":"'2. Conservation Measures'!EJ36","v":{"$error":"#VALUE!"}},{"$f":"'2. Conservation Measures'!EK36","v":{"$error":"#VALUE!"}},{"$f":"'2. Conservation Measures'!EL36","v":{"$error":"#VALUE!"}},{"$f":"'2. Conservation Measures'!EM36","v":{"$error":"#VALUE!"}},null,{"$f":"'2. Conservation Measures'!KP36","v":{"$error":"#N/A"}},{"$f":"'2. Conservation Measures'!KQ36","v":{"$error":"#N/A"}},{"$f":"'2. Conservation Measures'!KR36","v":{"$error":"#N/A"}},{"$f":"'2. Conservation Measures'!KS36","v":{"$error":"#N/A"}},{"$f":"'2. Conservation Measures'!KT36","v":{"$error":"#N/A"}},{"$f":"'2. Conservation Measures'!KU36","v":{"$error":"#N/A"}},{"$f":"'2. Conservation Measures'!KV36","v":{"$error":"#N/A"}},{"$f":"'2. Conservation Measures'!KW36","v":{"$error":"#N/A"}},{"$f":"'2. Conservation Measures'!KX36","v":{"$error":"#N/A"}},{"$f":"'2. Conservation Measures'!KY36","v":{"$error":"#N/A"}},{"$f":"'2. Conservation Measures'!KZ36","v":{"$error":"#N/A"}},{"$f":"'2. Conservation Measures'!LA36","v":{"$error":"#N/A"}},{"$f":"'2. Conservation Measures'!LB36","v":{"$error":"#N/A"}},{"$f":"'2. Conservation Measures'!LC36","v":{"$error":"#N/A"}},{"$f":"'2. Conservation Measures'!LD36","v":{"$error":"#N/A"}},{"$f":"'2. Conservation Measures'!LE36","v":{"$error":"#N/A"}},{"$f":"'2. Conservation Measures'!LF36","v":{"$error":"#N/A"}},{"$f":"'2. Conservation Measures'!LG36","v":{"$error":"#N/A"}},{"$f":"'2. Conservation Measures'!LH36","v":{"$error":"#N/A"}},{"$f":"'2. Conservation Measures'!LI36","v":{"$error":"#N/A"}},{"$f":"'2. Conservation Measures'!LJ36","v":{"$error":"#N/A"}},{"$f":"'2. Conservation Measures'!LK36","v":{"$error":"#N/A"}},{"$f":"'2. Conservation Measures'!LL36","v":{"$error":"#N/A"}},{"$f":"'2. Conservation Measures'!LM36","v":{"$error":"#N/A"}},{"$f":"'2. Conservation Measures'!LN36","v":{"$error":"#N/A"}},{"$f":"'2. Conservation Measures'!LO36","v":{"$error":"#N/A"}},{"$f":"'2. Conservation Measures'!LP36","v":{"$error":"#N/A"}},{"$f":"'2. Conservation Measures'!LQ36","v":{"$error":"#N/A"}},{"$f":"'2. Conservation Measures'!LR36","v":{"$error":"#N/A"}},{"$f":"'2. Conservation Measures'!LS36","v":{"$error":"#N/A"}},{"$f":"'2. Conservation Measures'!LT36","v":{"$error":"#N/A"}},{"$f":"'2. Conservation Measures'!LU36","v":{"$error":"#N/A"}},{"$f":"'2. Conservation Measures'!LV36","v":{"$error":"#N/A"}},{"$f":"'2. Conservation Measures'!LW36","v":{"$error":"#N/A"}},{"$f":"'2. Conservation Measures'!LX36","v":{"$error":"#N/A"}},{"$f":"'2. Conservation Measures'!LY36","v":{"$error":"#N/A"}},{"$f":"'2. Conservation Measures'!LZ36","v":{"$error":"#N/A"}},{"$f":"'2. Conservation Measures'!MA36","v":{"$error":"#N/A"}},{"$f":"'2. Conservation Measures'!MB36","v":{"$error":"#N/A"}},{"$f":"'2. Conservation Measures'!MC36","v":{"$error":"#N/A"}},{"$f":"'2. Conservation Measures'!MD36","v":{"$error":"#N/A"}},{"$f":"'2. Conservation Measures'!ME36","v":{"$error":"#N/A"}},{"$f":"'2. Conservation Measures'!MF36","v":{"$error":"#N/A"}},{"$f":"'2. Conservation Measures'!MG36","v":{"$error":"#N/A"}},{"$f":"'2. Conservation Measures'!MH36","v":{"$error":"#N/A"}},{"$f":"'2. Conservation Measures'!MI36","v":{"$error":"#N/A"}},{"$f":"'2. Conservation Measures'!MJ36","v":{"$error":"#N/A"}},{"$f":"'2. Conservation Measures'!MK36","v":{"$error":"#N/A"}},{"$f":"'2. Conservation Measures'!ML36","v":{"$error":"#N/A"}},{"$f":"'2. Conservation Measures'!MM36","v":{"$error":"#N/A"}},{"$f":"'2. Conservation Measures'!MN36","v":{"$error":"#N/A"}},null,{"$f":"'2. Conservation Measures'!EP36","v":{"$error":"#N/A"}},{"$f":"'2. Conservation Measures'!EQ36","v":{"$error":"#N/A"}},{"$f":"'2. Conservation Measures'!ER36","v":{"$error":"#N/A"}},{"$f":"'2. Conservation Measures'!ES36","v":{"$error":"#N/A"}},{"$f":"'2. Conservation Measures'!ET36","v":{"$error":"#N/A"}},{"$f":"'2. Conservation Measures'!EU36","v":{"$error":"#N/A"}},{"$f":"'2. Conservation Measures'!EV36","v":{"$error":"#N/A"}},{"$f":"'2. Conservation Measures'!EW36","v":{"$error":"#N/A"}},{"$f":"'2. Conservation Measures'!EX36","v":{"$error":"#N/A"}},{"$f":"'2. Conservation Measures'!EY36","v":{"$error":"#N/A"}},{"$f":"'2. Conservation Measures'!EZ36","v":{"$error":"#N/A"}},{"$f":"'2. Conservation Measures'!FA36","v":{"$error":"#N/A"}},{"$f":"'2. Conservation Measures'!FB36","v":{"$error":"#N/A"}},{"$f":"'2. Conservation Measures'!FC36","v":{"$error":"#N/A"}},{"$f":"'2. Conservation Measures'!FD36","v":{"$error":"#N/A"}},{"$f":"'2. Conservation Measures'!FE36","v":{"$error":"#N/A"}},{"$f":"'2. Conservation Measures'!FF36","v":{"$error":"#N/A"}},{"$f":"'2. Conservation Measures'!FG36","v":{"$error":"#N/A"}},{"$f":"'2. Conservation Measures'!FH36","v":{"$error":"#N/A"}},{"$f":"'2. Conservation Measures'!FI36","v":{"$error":"#N/A"}},{"$f":"'2. Conservation Measures'!FJ36","v":{"$error":"#N/A"}},{"$f":"'2. Conservation Measures'!FK36","v":{"$error":"#N/A"}},{"$f":"'2. Conservation Measures'!FL36","v":{"$error":"#N/A"}},{"$f":"'2. Conservation Measures'!FM36","v":{"$error":"#N/A"}},{"$f":"'2. Conservation Measures'!FN36","v":{"$error":"#N/A"}},{"$f":"'2. Conservation Measures'!FO36","v":{"$error":"#N/A"}},{"$f":"'2. Conservation Measures'!FP36","v":{"$error":"#N/A"}},{"$f":"'2. Conservation Measures'!FQ36","v":{"$error":"#N/A"}},{"$f":"'2. Conservation Measures'!FR36","v":{"$error":"#N/A"}},{"$f":"'2. Conservation Measures'!FS36","v":{"$error":"#N/A"}},{"$f":"'2. Conservation Measures'!FT36","v":{"$error":"#N/A"}},{"$f":"'2. Conservation Measures'!FU36","v":{"$error":"#N/A"}},{"$f":"'2. Conservation Measures'!FV36","v":{"$error":"#N/A"}},{"$f":"'2. Conservation Measures'!FW36","v":{"$error":"#N/A"}},{"$f":"'2. Conservation Measures'!FX36","v":{"$error":"#N/A"}},{"$f":"'2. Conservation Measures'!FY36","v":{"$error":"#N/A"}},{"$f":"'2. Conservation Measures'!FZ36","v":{"$error":"#N/A"}},{"$f":"'2. Conservation Measures'!GA36","v":{"$error":"#N/A"}},{"$f":"'2. Conservation Measures'!GB36","v":{"$error":"#N/A"}},{"$f":"'2. Conservation Measures'!GC36","v":{"$error":"#N/A"}},{"$f":"'2. Conservation Measures'!GD36","v":{"$error":"#N/A"}},{"$f":"'2. Conservation Measures'!GE36","v":{"$error":"#N/A"}},{"$f":"'2. Conservation Measures'!GF36","v":{"$error":"#N/A"}},{"$f":"'2. Conservation Measures'!GG36","v":{"$error":"#N/A"}},{"$f":"'2. Conservation Measures'!GH36","v":{"$error":"#N/A"}},{"$f":"'2. Conservation Measures'!GI36","v":{"$error":"#N/A"}},{"$f":"'2. Conservation Measures'!GJ36","v":{"$error":"#N/A"}},{"$f":"'2. Conservation Measures'!GK36","v":{"$error":"#N/A"}},{"$f":"'2. Conservation Measures'!GL36","v":{"$error":"#N/A"}},{"$f":"'2. Conservation Measures'!GM36","v":{"$error":"#N/A"}},{"$f":"'2. Conservation Measures'!GN36","v":{"$error":"#N/A"}},null,{"$f":"'2. Conservation Measures'!GP36","v":{"$error":"#N/A"}},{"$f":"'2. Conservation Measures'!GQ36","v":{"$error":"#N/A"}},{"$f":"'2. Conservation Measures'!GR36","v":{"$error":"#N/A"}},{"$f":"'2. Conservation Measures'!GS36","v":{"$error":"#N/A"}},{"$f":"'2. Conservation Measures'!GT36","v":{"$error":"#N/A"}},{"$f":"'2. Conservation Measures'!GU36","v":{"$error":"#N/A"}},{"$f":"'2. Conservation Measures'!GV36","v":{"$error":"#N/A"}},{"$f":"'2. Conservation Measures'!GW36","v":{"$error":"#N/A"}},{"$f":"'2. Conservation Measures'!GX36","v":{"$error":"#N/A"}},{"$f":"'2. Conservation Measures'!GY36","v":{"$error":"#N/A"}},{"$f":"'2. Conservation Measures'!GZ36","v":{"$error":"#N/A"}},{"$f":"'2. Conservation Measures'!HA36","v":{"$error":"#N/A"}},{"$f":"'2. Conservation Measures'!HB36","v":{"$error":"#N/A"}},{"$f":"'2. Conservation Measures'!HC36","v":{"$error":"#N/A"}},{"$f":"'2. Conservation Measures'!HD36","v":{"$error":"#N/A"}},{"$f":"'2. Conservation Measures'!HE36","v":{"$error":"#N/A"}},{"$f":"'2. Conservation Measures'!HF36","v":{"$error":"#N/A"}},{"$f":"'2. Conservation Measures'!HG36","v":{"$error":"#N/A"}},{"$f":"'2. Conservation Measures'!HH36","v":{"$error":"#N/A"}},{"$f":"'2. Conservation Measures'!HI36","v":{"$error":"#N/A"}},{"$f":"'2. Conservation Measures'!HJ36","v":{"$error":"#N/A"}},{"$f":"'2. Conservation Measures'!HK36","v":{"$error":"#N/A"}},{"$f":"'2. Conservation Measures'!HL36","v":{"$error":"#N/A"}},{"$f":"'2. Conservation Measures'!HM36","v":{"$error":"#N/A"}},{"$f":"'2. Conservation Measures'!HN36","v":{"$error":"#N/A"}},{"$f":"'2. Conservation Measures'!HO36","v":{"$error":"#N/A"}},{"$f":"'2. Conservation Measures'!HP36","v":{"$error":"#N/A"}},{"$f":"'2. Conservation Measures'!HQ36","v":{"$error":"#N/A"}},{"$f":"'2. Conservation Measures'!HR36","v":{"$error":"#N/A"}},{"$f":"'2. Conservation Measures'!HS36","v":{"$error":"#N/A"}},{"$f":"'2. Conservation Measures'!HT36","v":{"$error":"#N/A"}},{"$f":"'2. Conservation Measures'!HU36","v":{"$error":"#N/A"}},{"$f":"'2. Conservation Measures'!HV36","v":{"$error":"#N/A"}},{"$f":"'2. Conservation Measures'!HW36","v":{"$error":"#N/A"}},{"$f":"'2. Conservation Measures'!HX36","v":{"$error":"#N/A"}},{"$f":"'2. Conservation Measures'!HY36","v":{"$error":"#N/A"}},{"$f":"'2. Conservation Measures'!HZ36","v":{"$error":"#N/A"}},{"$f":"'2. Conservation Measures'!IA36","v":{"$error":"#N/A"}},{"$f":"'2. Conservation Measures'!IB36","v":{"$error":"#N/A"}},{"$f":"'2. Conservation Measures'!IC36","v":{"$error":"#N/A"}},{"$f":"'2. Conservation Measures'!ID36","v":{"$error":"#N/A"}},{"$f":"'2. Conservation Measures'!IE36","v":{"$error":"#N/A"}},{"$f":"'2. Conservation Measures'!IF36","v":{"$error":"#N/A"}},{"$f":"'2. Conservation Measures'!IG36","v":{"$error":"#N/A"}},{"$f":"'2. Conservation Measures'!IH36","v":{"$error":"#N/A"}},{"$f":"'2. Conservation Measures'!II36","v":{"$error":"#N/A"}},{"$f":"'2. Conservation Measures'!IJ36","v":{"$error":"#N/A"}},{"$f":"'2. Conservation Measures'!IK36","v":{"$error":"#N/A"}},{"$f":"'2. Conservation Measures'!IL36","v":{"$error":"#N/A"}},{"$f":"'2. Conservation Measures'!IM36","v":{"$error":"#N/A"}},{"$f":"'2. Conservation Measures'!IN36","v":{"$error":"#N/A"}},null,{"$f":"'2. Conservation Measures'!IP36","v":{"$error":"#VALUE!"}},{"$f":"'2. Conservation Measures'!IQ36","v":{"$error":"#VALUE!"}},{"$f":"'2. Conservation Measures'!IR36","v":{"$error":"#VALUE!"}},{"$f":"'2. Conservation Measures'!IS36","v":{"$error":"#VALUE!"}},{"$f":"'2. Conservation Measures'!IT36","v":{"$error":"#VALUE!"}},{"$f":"'2. Conservation Measures'!IU36","v":{"$error":"#VALUE!"}},{"$f":"'2. Conservation Measures'!IV36","v":{"$error":"#VALUE!"}},{"$f":"'2. Conservation Measures'!IW36","v":{"$error":"#VALUE!"}},{"$f":"'2. Conservation Measures'!IX36","v":{"$error":"#VALUE!"}},{"$f":"'2. Conservation Measures'!IY36","v":{"$error":"#VALUE!"}},{"$f":"'2. Conservation Measures'!IZ36","v":{"$error":"#VALUE!"}},{"$f":"'2. Conservation Measures'!JA36","v":{"$error":"#VALUE!"}},{"$f":"'2. Conservation Measures'!JB36","v":{"$error":"#VALUE!"}},{"$f":"'2. Conservation Measures'!JC36","v":{"$error":"#VALUE!"}},{"$f":"'2. Conservation Measures'!JD36","v":{"$error":"#VALUE!"}},{"$f":"'2. Conservation Measures'!JE36","v":{"$error":"#VALUE!"}},{"$f":"'2. Conservation Measures'!JF36","v":{"$error":"#VALUE!"}},{"$f":"'2. Conservation Measures'!JG36","v":{"$error":"#VALUE!"}},{"$f":"'2. Conservation Measures'!JH36","v":{"$error":"#VALUE!"}},{"$f":"'2. Conservation Measures'!JI36","v":{"$error":"#VALUE!"}},{"$f":"'2. Conservation Measures'!JJ36","v":{"$error":"#VALUE!"}},{"$f":"'2. Conservation Measures'!JK36","v":{"$error":"#VALUE!"}},{"$f":"'2. Conservation Measures'!JL36","v":{"$error":"#VALUE!"}},{"$f":"'2. Conservation Measures'!JM36","v":{"$error":"#VALUE!"}},{"$f":"'2. Conservation Measures'!JN36","v":{"$error":"#VALUE!"}},{"$f":"'2. Conservation Measures'!JO36","v":{"$error":"#VALUE!"}},{"$f":"'2. Conservation Measures'!JP36","v":{"$error":"#VALUE!"}},{"$f":"'2. Conservation Measures'!JQ36","v":{"$error":"#VALUE!"}},{"$f":"'2. Conservation Measures'!JR36","v":{"$error":"#VALUE!"}},{"$f":"'2. Conservation Measures'!JS36","v":{"$error":"#VALUE!"}},{"$f":"'2. Conservation Measures'!JT36","v":{"$error":"#VALUE!"}},{"$f":"'2. Conservation Measures'!JU36","v":{"$error":"#VALUE!"}},{"$f":"'2. Conservation Measures'!JV36","v":{"$error":"#VALUE!"}},{"$f":"'2. Conservation Measures'!JW36","v":{"$error":"#VALUE!"}},{"$f":"'2. Conservation Measures'!JX36","v":{"$error":"#VALUE!"}},{"$f":"'2. Conservation Measures'!JY36","v":{"$error":"#VALUE!"}},{"$f":"'2. Conservation Measures'!JZ36","v":{"$error":"#VALUE!"}},{"$f":"'2. Conservation Measures'!KA36","v":{"$error":"#VALUE!"}},{"$f":"'2. Conservation Measures'!KB36","v":{"$error":"#VALUE!"}},{"$f":"'2. Conservation Measures'!KC36","v":{"$error":"#VALUE!"}},{"$f":"'2. Conservation Measures'!KD36","v":{"$error":"#VALUE!"}},{"$f":"'2. Conservation Measures'!KE36","v":{"$error":"#VALUE!"}},{"$f":"'2. Conservation Measures'!KF36","v":{"$error":"#VALUE!"}},{"$f":"'2. Conservation Measures'!KG36","v":{"$error":"#VALUE!"}},{"$f":"'2. Conservation Measures'!KH36","v":{"$error":"#VALUE!"}},{"$f":"'2. Conservation Measures'!KI36","v":{"$error":"#VALUE!"}},{"$f":"'2. Conservation Measures'!KJ36","v":{"$error":"#VALUE!"}},{"$f":"'2. Conservation Measures'!KK36","v":{"$error":"#VALUE!"}},{"$f":"'2. Conservation Measures'!KL36","v":{"$error":"#VALUE!"}},{"$f":"'2. Conservation Measures'!KM36","v":{"$error":"#VALUE!"}},{"$f":"'2. Conservation Measures'!KN36","v":{"$error":"#VALUE!"}}]
[null,{"$f":"'2. Conservation Measures'!B37","v":"PRE-MF-02"},{"$f":"'2. Conservation Measures'!C37","v":{"$error":"#N/A"}},{"$f":"'2. Conservation Measures'!D37","v":"N"},null,{"$f":"'2. Conservation Measures'!AA37","v":{"$error":"#N/A"}},null,{"$f":"'2. Conservation Measures'!AO37","v":0},{"$f":"'2. Conservation Measures'!AP37","v":0},{"$f":"'2. Conservation Measures'!AQ37","v":0},{"$f":"'2. Conservation Measures'!AR37","v":0},{"$f":"'2. Conservation Measures'!AS37","v":0},{"$f":"'2. Conservation Measures'!AT37","v":0},{"$f":"'2. Conservation Measures'!AU37","v":0},{"$f":"'2. Conservation Measures'!AV37","v":0},{"$f":"'2. Conservation Measures'!AW37","v":0},{"$f":"'2. Conservation Measures'!AX37","v":0},{"$f":"'2. Conservation Measures'!AY37","v":0},{"$f":"'2. Conservation Measures'!AZ37","v":0},{"$f":"'2. Conservation Measures'!BA37","v":0},{"$f":"'2. Conservation Measures'!BB37","v":0},{"$f":"'2. Conservation Measures'!BC37","v":0},{"$f":"'2. Conservation Measures'!BD37","v":0},{"$f":"'2. Conservation Measures'!BE37","v":0},{"$f":"'2. Conservation Measures'!BF37","v":0},{"$f":"'2. Conservation Measures'!BG37","v":0},{"$f":"'2. Conservation Measures'!BH37","v":0},{"$f":"'2. Conservation Measures'!BI37","v":0},{"$f":"'2. Conservation Measures'!BJ37","v":0},{"$f":"'2. Conservation Measures'!BK37","v":0},{"$f":"'2. Conservation Measures'!BL37","v":0},{"$f":"'2. Conservation Measures'!BM37","v":0},{"$f":"'2. Conservation Measures'!BN37","v":0},{"$f":"'2. Conservation Measures'!BO37","v":0},{"$f":"'2. Conservation Measures'!BP37","v":0},{"$f":"'2. Conservation Measures'!BQ37","v":0},{"$f":"'2. Conservation Measures'!BR37","v":0},{"$f":"'2. Conservation Measures'!BS37","v":0},{"$f":"'2. Conservation Measures'!BT37","v":0},{"$f":"'2. Conservation Measures'!BU37","v":0},{"$f":"'2. Conservation Measures'!BV37","v":0},{"$f":"'2. Conservation Measures'!BW37","v":0},{"$f":"'2. Conservation Measures'!BX37","v":0},{"$f":"'2. Conservation Measures'!BY37","v":0},{"$f":"'2. Conservation Measures'!BZ37","v":0},{"$f":"'2. Conservation Measures'!CA37","v":0},{"$f":"'2. Conservation Measures'!CB37","v":0},{"$f":"'2. Conservation Measures'!CC37","v":0},{"$f":"'2. Conservation Measures'!CD37","v":0},{"$f":"'2. Conservation Measures'!CE37","v":0},{"$f":"'2. Conservation Measures'!CF37","v":0},{"$f":"'2. Conservation Measures'!CG37","v":0},{"$f":"'2. Conservation Measures'!CH37","v":0},{"$f":"'2. Conservation Measures'!CI37","v":0},{"$f":"'2. Conservation Measures'!CJ37","v":0},{"$f":"'2. Conservation Measures'!CK37","v":0},{"$f":"'2. Conservation Measures'!CL37","v":0},{"$f":"'2. Conservation Measures'!CM37","v":0},null,{"$f":"'2. Conservation Measures'!CO37","v":{"$error":"#VALUE!"}},{"$f":"'2. Conservation Measures'!CP37","v":{"$error":"#VALUE!"}},{"$f":"'2. Conservation Measures'!CQ37","v":{"$error":"#VALUE!"}},{"$f":"'2. Conservation Measures'!CR37","v":{"$error":"#VALUE!"}},{"$f":"'2. Conservation Measures'!CS37","v":{"$error":"#VALUE!"}},{"$f":"'2. Conservation Measures'!CT37","v":{"$error":"#VALUE!"}},{"$f":"'2. Conservation Measures'!CU37","v":{"$error":"#VALUE!"}},{"$f":"'2. Conservation Measures'!CV37","v":{"$error":"#VALUE!"}},{"$f":"'2. Conservation Measures'!CW37","v":{"$error":"#VALUE!"}},{"$f":"'2. Conservation Measures'!CX37","v":{"$error":"#VALUE!"}},{"$f":"'2. Conservation Measures'!CY37","v":{"$error":"#VALUE!"}},{"$f":"'2. Conservation Measures'!CZ37","v":{"$error":"#VALUE!"}},{"$f":"'2. Conservation Measures'!DA37","v":{"$error":"#VALUE!"}},{"$f":"'2. Conservation Measures'!DB37","v":{"$error":"#VALUE!"}},{"$f":"'2. Conservation Measures'!DC37","v":{"$error":"#VALUE!"}},{"$f":"'2. Conservation Measures'!DD37","v":{"$error":"#VALUE!"}},{"$f":"'2. Conservation Measures'!DE37","v":{"$error":"#VALUE!"}},{"$f":"'2. Conservation Measures'!DF37","v":{"$error":"#VALUE!"}},{"$f":"'2. Conservation Measures'!DG37","v":{"$error":"#VALUE!"}},{"$f":"'2. Conservation Measures'!DH37","v":{"$error":"#VALUE!"}},{"$f":"'2. Conservation Measures'!DI37","v":{"$error":"#VALUE!"}},{"$f":"'2. Conservation Measures'!DJ37","v":{"$error":"#VALUE!"}},{"$f":"'2. Conservation Measures'!DK37","v":{"$error":"#VALUE!"}},{"$f":"'2. Conservation Measures'!DL37","v":{"$error":"#VALUE!"}},{"$f":"'2. Conservation Measures'!DM37","v":{"$error":"#VALUE!"}},{"$f":"'2. Conservation Measures'!DN37","v":{"$error":"#VALUE!"}},{"$f":"'2. Conservation Measures'!DO37","v":{"$error":"#VALUE!"}},{"$f":"'2. Conservation Measures'!DP37","v":{"$error":"#VALUE!"}},{"$f":"'2. Conservation Measures'!DQ37","v":{"$error":"#VALUE!"}},{"$f":"'2. Conservation Measures'!DR37","v":{"$error":"#VALUE!"}},{"$f":"'2. Conservation Measures'!DS37","v":{"$error":"#VALUE!"}},{"$f":"'2. Conservation Measures'!DT37","v":{"$error":"#VALUE!"}},{"$f":"'2. Conservation Measures'!DU37","v":{"$error":"#VALUE!"}},{"$f":"'2. Conservation Measures'!DV37","v":{"$error":"#VALUE!"}},{"$f":"'2. Conservation Measures'!DW37","v":{"$error":"#VALUE!"}},{"$f":"'2. Conservation Measures'!DX37","v":{"$error":"#VALUE!"}},{"$f":"'2. Conservation Measures'!DY37","v":{"$error":"#VALUE!"}},{"$f":"'2. Conservation Measures'!DZ37","v":{"$error":"#VALUE!"}},{"$f":"'2. Conservation Measures'!EA37","v":{"$error":"#VALUE!"}},{"$f":"'2. Conservation Measures'!EB37","v":{"$error":"#VALUE!"}},{"$f":"'2. Conservation Measures'!EC37","v":{"$error":"#VALUE!"}},{"$f":"'2. Conservation Measures'!ED37","v":{"$error":"#VALUE!"}},{"$f":"'2. Conservation Measures'!EE37","v":{"$error":"#VALUE!"}},{"$f":"'2. Conservation Measures'!EF37","v":{"$error":"#VALUE!"}},{"$f":"'2. Conservation Measures'!EG37","v":{"$error":"#VALUE!"}},{"$f":"'2. Conservation Measures'!EH37","v":{"$error":"#VALUE!"}},{"$f":"'2. Conservation Measures'!EI37","v":{"$error":"#VALUE!"}},{"$f":"'2. Conservation Measures'!EJ37","v":{"$error":"#VALUE!"}},{"$f":"'2. Conservation Measures'!EK37","v":{"$error":"#VALUE!"}},{"$f":"'2. Conservation Measures'!EL37","v":{"$error":"#VALUE!"}},{"$f":"'2. Conservation Measures'!EM37","v":{"$error":"#VALUE!"}},null,{"$f":"'2. Conservation Measures'!KP37","v":{"$error":"#N/A"}},{"$f":"'2. Conservation Measures'!KQ37","v":{"$error":"#N/A"}},{"$f":"'2. Conservation Measures'!KR37","v":{"$error":"#N/A"}},{"$f":"'2. Conservation Measures'!KS37","v":{"$error":"#N/A"}},{"$f":"'2. Conservation Measures'!KT37","v":{"$error":"#N/A"}},{"$f":"'2. Conservation Measures'!KU37","v":{"$error":"#N/A"}},{"$f":"'2. Conservation Measures'!KV37","v":{"$error":"#N/A"}},{"$f":"'2. Conservation Measures'!KW37","v":{"$error":"#N/A"}},{"$f":"'2. Conservation Measures'!KX37","v":{"$error":"#N/A"}},{"$f":"'2. Conservation Measures'!KY37","v":{"$error":"#N/A"}},{"$f":"'2. Conservation Measures'!KZ37","v":{"$error":"#N/A"}},{"$f":"'2. Conservation Measures'!LA37","v":{"$error":"#N/A"}},{"$f":"'2. Conservation Measures'!LB37","v":{"$error":"#N/A"}},{"$f":"'2. Conservation Measures'!LC37","v":{"$error":"#N/A"}},{"$f":"'2. Conservation Measures'!LD37","v":{"$error":"#N/A"}},{"$f":"'2. Conservation Measures'!LE37","v":{"$error":"#N/A"}},{"$f":"'2. Conservation Measures'!LF37","v":{"$error":"#N/A"}},{"$f":"'2. Conservation Measures'!LG37","v":{"$error":"#N/A"}},{"$f":"'2. Conservation Measures'!LH37","v":{"$error":"#N/A"}},{"$f":"'2. Conservation Measures'!LI37","v":{"$error":"#N/A"}},{"$f":"'2. Conservation Measures'!LJ37","v":{"$error":"#N/A"}},{"$f":"'2. Conservation Measures'!LK37","v":{"$error":"#N/A"}},{"$f":"'2. Conservation Measures'!LL37","v":{"$error":"#N/A"}},{"$f":"'2. Conservation Measures'!LM37","v":{"$error":"#N/A"}},{"$f":"'2. Conservation Measures'!LN37","v":{"$error":"#N/A"}},{"$f":"'2. Conservation Measures'!LO37","v":{"$error":"#N/A"}},{"$f":"'2. Conservation Measures'!LP37","v":{"$error":"#N/A"}},{"$f":"'2. Conservation Measures'!LQ37","v":{"$error":"#N/A"}},{"$f":"'2. Conservation Measures'!LR37","v":{"$error":"#N/A"}},{"$f":"'2. Conservation Measures'!LS37","v":{"$error":"#N/A"}},{"$f":"'2. Conservation Measures'!LT37","v":{"$error":"#N/A"}},{"$f":"'2. Conservation Measures'!LU37","v":{"$error":"#N/A"}},{"$f":"'2. Conservation Measures'!LV37","v":{"$error":"#N/A"}},{"$f":"'2. Conservation Measures'!LW37","v":{"$error":"#N/A"}},{"$f":"'2. Conservation Measures'!LX37","v":{"$error":"#N/A"}},{"$f":"'2. Conservation Measures'!LY37","v":{"$error":"#N/A"}},{"$f":"'2. Conservation Measures'!LZ37","v":{"$error":"#N/A"}},{"$f":"'2. Conservation Measures'!MA37","v":{"$error":"#N/A"}},{"$f":"'2. Conservation Measures'!MB37","v":{"$error":"#N/A"}},{"$f":"'2. Conservation Measures'!MC37","v":{"$error":"#N/A"}},{"$f":"'2. Conservation Measures'!MD37","v":{"$error":"#N/A"}},{"$f":"'2. Conservation Measures'!ME37","v":{"$error":"#N/A"}},{"$f":"'2. Conservation Measures'!MF37","v":{"$error":"#N/A"}},{"$f":"'2. Conservation Measures'!MG37","v":{"$error":"#N/A"}},{"$f":"'2. Conservation Measures'!MH37","v":{"$error":"#N/A"}},{"$f":"'2. Conservation Measures'!MI37","v":{"$error":"#N/A"}},{"$f":"'2. Conservation Measures'!MJ37","v":{"$error":"#N/A"}},{"$f":"'2. Conservation Measures'!MK37","v":{"$error":"#N/A"}},{"$f":"'2. Conservation Measures'!ML37","v":{"$error":"#N/A"}},{"$f":"'2. Conservation Measures'!MM37","v":{"$error":"#N/A"}},{"$f":"'2. Conservation Measures'!MN37","v":{"$error":"#N/A"}},null,{"$f":"'2. Conservation Measures'!EP37","v":{"$error":"#N/A"}},{"$f":"'2. Conservation Measures'!EQ37","v":{"$error":"#N/A"}},{"$f":"'2. Conservation Measures'!ER37","v":{"$error":"#N/A"}},{"$f":"'2. Conservation Measures'!ES37","v":{"$error":"#N/A"}},{"$f":"'2. Conservation Measures'!ET37","v":{"$error":"#N/A"}},{"$f":"'2. Conservation Measures'!EU37","v":{"$error":"#N/A"}},{"$f":"'2. Conservation Measures'!EV37","v":{"$error":"#N/A"}},{"$f":"'2. Conservation Measures'!EW37","v":{"$error":"#N/A"}},{"$f":"'2. Conservation Measures'!EX37","v":{"$error":"#N/A"}},{"$f":"'2. Conservation Measures'!EY37","v":{"$error":"#N/A"}},{"$f":"'2. Conservation Measures'!EZ37","v":{"$error":"#N/A"}},{"$f":"'2. Conservation Measures'!FA37","v":{"$error":"#N/A"}},{"$f":"'2. Conservation Measures'!FB37","v":{"$error":"#N/A"}},{"$f":"'2. Conservation Measures'!FC37","v":{"$error":"#N/A"}},{"$f":"'2. Conservation Measures'!FD37","v":{"$error":"#N/A"}},{"$f":"'2. Conservation Measures'!FE37","v":{"$error":"#N/A"}},{"$f":"'2. Conservation Measures'!FF37","v":{"$error":"#N/A"}},{"$f":"'2. Conservation Measures'!FG37","v":{"$error":"#N/A"}},{"$f":"'2. Conservation Measures'!FH37","v":{"$error":"#N/A"}},{"$f":"'2. Conservation Measures'!FI37","v":{"$error":"#N/A"}},{"$f":"'2. Conservation Measures'!FJ37","v":{"$error":"#N/A"}},{"$f":"'2. Conservation Measures'!FK37","v":{"$error":"#N/A"}},{"$f":"'2. Conservation Measures'!FL37","v":{"$error":"#N/A"}},{"$f":"'2. Conservation Measures'!FM37","v":{"$error":"#N/A"}},{"$f":"'2. Conservation Measures'!FN37","v":{"$error":"#N/A"}},{"$f":"'2. Conservation Measures'!FO37","v":{"$error":"#N/A"}},{"$f":"'2. Conservation Measures'!FP37","v":{"$error":"#N/A"}},{"$f":"'2. Conservation Measures'!FQ37","v":{"$error":"#N/A"}},{"$f":"'2. Conservation Measures'!FR37","v":{"$error":"#N/A"}},{"$f":"'2. Conservation Measures'!FS37","v":{"$error":"#N/A"}},{"$f":"'2. Conservation Measures'!FT37","v":{"$error":"#N/A"}},{"$f":"'2. Conservation Measures'!FU37","v":{"$error":"#N/A"}},{"$f":"'2. Conservation Measures'!FV37","v":{"$error":"#N/A"}},{"$f":"'2. Conservation Measures'!FW37","v":{"$error":"#N/A"}},{"$f":"'2. Conservation Measures'!FX37","v":{"$error":"#N/A"}},{"$f":"'2. Conservation Measures'!FY37","v":{"$error":"#N/A"}},{"$f":"'2. Conservation Measures'!FZ37","v":{"$error":"#N/A"}},{"$f":"'2. Conservation Measures'!GA37","v":{"$error":"#N/A"}},{"$f":"'2. Conservation Measures'!GB37","v":{"$error":"#N/A"}},{"$f":"'2. Conservation Measures'!GC37","v":{"$error":"#N/A"}},{"$f":"'2. Conservation Measures'!GD37","v":{"$error":"#N/A"}},{"$f":"'2. Conservation Measures'!GE37","v":{"$error":"#N/A"}},{"$f":"'2. Conservation Measures'!GF37","v":{"$error":"#N/A"}},{"$f":"'2. Conservation Measures'!GG37","v":{"$error":"#N/A"}},{"$f":"'2. Conservation Measures'!GH37","v":{"$error":"#N/A"}},{"$f":"'2. Conservation Measures'!GI37","v":{"$error":"#N/A"}},{"$f":"'2. Conservation Measures'!GJ37","v":{"$error":"#N/A"}},{"$f":"'2. Conservation Measures'!GK37","v":{"$error":"#N/A"}},{"$f":"'2. Conservation Measures'!GL37","v":{"$error":"#N/A"}},{"$f":"'2. Conservation Measures'!GM37","v":{"$error":"#N/A"}},{"$f":"'2. Conservation Measures'!GN37","v":{"$error":"#N/A"}},null,{"$f":"'2. Conservation Measures'!GP37","v":{"$error":"#N/A"}},{"$f":"'2. Conservation Measures'!GQ37","v":{"$error":"#N/A"}},{"$f":"'2. Conservation Measures'!GR37","v":{"$error":"#N/A"}},{"$f":"'2. Conservation Measures'!GS37","v":{"$error":"#N/A"}},{"$f":"'2. Conservation Measures'!GT37","v":{"$error":"#N/A"}},{"$f":"'2. Conservation Measures'!GU37","v":{"$error":"#N/A"}},{"$f":"'2. Conservation Measures'!GV37","v":{"$error":"#N/A"}},{"$f":"'2. Conservation Measures'!GW37","v":{"$error":"#N/A"}},{"$f":"'2. Conservation Measures'!GX37","v":{"$error":"#N/A"}},{"$f":"'2. Conservation Measures'!GY37","v":{"$error":"#N/A"}},{"$f":"'2. Conservation Measures'!GZ37","v":{"$error":"#N/A"}},{"$f":"'2. Conservation Measures'!HA37","v":{"$error":"#N/A"}},{"$f":"'2. Conservation Measures'!HB37","v":{"$error":"#N/A"}},{"$f":"'2. Conservation Measures'!HC37","v":{"$error":"#N/A"}},{"$f":"'2. Conservation Measures'!HD37","v":{"$error":"#N/A"}},{"$f":"'2. Conservation Measures'!HE37","v":{"$error":"#N/A"}},{"$f":"'2. Conservation Measures'!HF37","v":{"$error":"#N/A"}},{"$f":"'2. Conservation Measures'!HG37","v":{"$error":"#N/A"}},{"$f":"'2. Conservation Measures'!HH37","v":{"$error":"#N/A"}},{"$f":"'2. Conservation Measures'!HI37","v":{"$error":"#N/A"}},{"$f":"'2. Conservation Measures'!HJ37","v":{"$error":"#N/A"}},{"$f":"'2. Conservation Measures'!HK37","v":{"$error":"#N/A"}},{"$f":"'2. Conservation Measures'!HL37","v":{"$error":"#N/A"}},{"$f":"'2. Conservation Measures'!HM37","v":{"$error":"#N/A"}},{"$f":"'2. Conservation Measures'!HN37","v":{"$error":"#N/A"}},{"$f":"'2. Conservation Measures'!HO37","v":{"$error":"#N/A"}},{"$f":"'2. Conservation Measures'!HP37","v":{"$error":"#N/A"}},{"$f":"'2. Conservation Measures'!HQ37","v":{"$error":"#N/A"}},{"$f":"'2. Conservation Measures'!HR37","v":{"$error":"#N/A"}},{"$f":"'2. Conservation Measures'!HS37","v":{"$error":"#N/A"}},{"$f":"'2. Conservation Measures'!HT37","v":{"$error":"#N/A"}},{"$f":"'2. Conservation Measures'!HU37","v":{"$error":"#N/A"}},{"$f":"'2. Conservation Measures'!HV37","v":{"$error":"#N/A"}},{"$f":"'2. Conservation Measures'!HW37","v":{"$error":"#N/A"}},{"$f":"'2. Conservation Measures'!HX37","v":{"$error":"#N/A"}},{"$f":"'2. Conservation Measures'!HY37","v":{"$error":"#N/A"}},{"$f":"'2. Conservation Measures'!HZ37","v":{"$error":"#N/A"}},{"$f":"'2. Conservation Measures'!IA37","v":{"$error":"#N/A"}},{"$f":"'2. Conservation Measures'!IB37","v":{"$error":"#N/A"}},{"$f":"'2. Conservation Measures'!IC37","v":{"$error":"#N/A"}},{"$f":"'2. Conservation Measures'!ID37","v":{"$error":"#N/A"}},{"$f":"'2. Conservation Measures'!IE37","v":{"$error":"#N/A"}},{"$f":"'2. Conservation Measures'!IF37","v":{"$error":"#N/A"}},{"$f":"'2. Conservation Measures'!IG37","v":{"$error":"#N/A"}},{"$f":"'2. Conservation Measures'!IH37","v":{"$error":"#N/A"}},{"$f":"'2. Conservation Measures'!II37","v":{"$error":"#N/A"}},{"$f":"'2. Conservation Measures'!IJ37","v":{"$error":"#N/A"}},{"$f":"'2. Conservation Measures'!IK37","v":{"$error":"#N/A"}},{"$f":"'2. Conservation Measures'!IL37","v":{"$error":"#N/A"}},{"$f":"'2. Conservation Measures'!IM37","v":{"$error":"#N/A"}},{"$f":"'2. Conservation Measures'!IN37","v":{"$error":"#N/A"}},null,{"$f":"'2. Conservation Measures'!IP37","v":{"$error":"#VALUE!"}},{"$f":"'2. Conservation Measures'!IQ37","v":{"$error":"#VALUE!"}},{"$f":"'2. Conservation Measures'!IR37","v":{"$error":"#VALUE!"}},{"$f":"'2. Conservation Measures'!IS37","v":{"$error":"#VALUE!"}},{"$f":"'2. Conservation Measures'!IT37","v":{"$error":"#VALUE!"}},{"$f":"'2. Conservation Measures'!IU37","v":{"$error":"#VALUE!"}},{"$f":"'2. Conservation Measures'!IV37","v":{"$error":"#VALUE!"}},{"$f":"'2. Conservation Measures'!IW37","v":{"$error":"#VALUE!"}},{"$f":"'2. Conservation Measures'!IX37","v":{"$error":"#VALUE!"}},{"$f":"'2. Conservation Measures'!IY37","v":{"$error":"#VALUE!"}},{"$f":"'2. Conservation Measures'!IZ37","v":{"$error":"#VALUE!"}},{"$f":"'2. Conservation Measures'!JA37","v":{"$error":"#VALUE!"}},{"$f":"'2. Conservation Measures'!JB37","v":{"$error":"#VALUE!"}},{"$f":"'2. Conservation Measures'!JC37","v":{"$error":"#VALUE!"}},{"$f":"'2. Conservation Measures'!JD37","v":{"$error":"#VALUE!"}},{"$f":"'2. Conservation Measures'!JE37","v":{"$error":"#VALUE!"}},{"$f":"'2. Conservation Measures'!JF37","v":{"$error":"#VALUE!"}},{"$f":"'2. Conservation Measures'!JG37","v":{"$error":"#VALUE!"}},{"$f":"'2. Conservation Measures'!JH37","v":{"$error":"#VALUE!"}},{"$f":"'2. Conservation Measures'!JI37","v":{"$error":"#VALUE!"}},{"$f":"'2. Conservation Measures'!JJ37","v":{"$error":"#VALUE!"}},{"$f":"'2. Conservation Measures'!JK37","v":{"$error":"#VALUE!"}},{"$f":"'2. Conservation Measures'!JL37","v":{"$error":"#VALUE!"}},{"$f":"'2. Conservation Measures'!JM37","v":{"$error":"#VALUE!"}},{"$f":"'2. Conservation Measures'!JN37","v":{"$error":"#VALUE!"}},{"$f":"'2. Conservation Measures'!JO37","v":{"$error":"#VALUE!"}},{"$f":"'2. Conservation Measures'!JP37","v":{"$error":"#VALUE!"}},{"$f":"'2. Conservation Measures'!JQ37","v":{"$error":"#VALUE!"}},{"$f":"'2. Conservation Measures'!JR37","v":{"$error":"#VALUE!"}},{"$f":"'2. Conservation Measures'!JS37","v":{"$error":"#VALUE!"}},{"$f":"'2. Conservation Measures'!JT37","v":{"$error":"#VALUE!"}},{"$f":"'2. Conservation Measures'!JU37","v":{"$error":"#VALUE!"}},{"$f":"'2. Conservation Measures'!JV37","v":{"$error":"#VALUE!"}},{"$f":"'2. Conservation Measures'!JW37","v":{"$error":"#VALUE!"}},{"$f":"'2. Conservation Measures'!JX37","v":{"$error":"#VALUE!"}},{"$f":"'2. Conservation Measures'!JY37","v":{"$error":"#VALUE!"}},{"$f":"'2. Conservation Measures'!JZ37","v":{"$error":"#VALUE!"}},{"$f":"'2. Conservation Measures'!KA37","v":{"$error":"#VALUE!"}},{"$f":"'2. Conservation Measures'!KB37","v":{"$error":"#VALUE!"}},{"$f":"'2. Conservation Measures'!KC37","v":{"$error":"#VALUE!"}},{"$f":"'2. Conservation Measures'!KD37","v":{"$error":"#VALUE!"}},{"$f":"'2. Conservation Measures'!KE37","v":{"$error":"#VALUE!"}},{"$f":"'2. Conservation Measures'!KF37","v":{"$error":"#VALUE!"}},{"$f":"'2. Conservation Measures'!KG37","v":{"$error":"#VALUE!"}},{"$f":"'2. Conservation Measures'!KH37","v":{"$error":"#VALUE!"}},{"$f":"'2. Conservation Measures'!KI37","v":{"$error":"#VALUE!"}},{"$f":"'2. Conservation Measures'!KJ37","v":{"$error":"#VALUE!"}},{"$f":"'2. Conservation Measures'!KK37","v":{"$error":"#VALUE!"}},{"$f":"'2. Conservation Measures'!KL37","v":{"$error":"#VALUE!"}},{"$f":"'2. Conservation Measures'!KM37","v":{"$error":"#VALUE!"}},{"$f":"'2. Conservation Measures'!KN37","v":{"$error":"#VALUE!"}}]
[null,{"$f":"'2. Conservation Measures'!B38","v":"PRE-MF-03"},{"$f":"'2. Conservation Measures'!C38","v":{"$error":"#N/A"}},{"$f":"'2. Conservation Measures'!D38","v":"N"},null,{"$f":"'2. Conservation Measures'!AA38","v":{"$error":"#N/A"}},null,{"$f":"'2. Conservation Measures'!AO38","v":0},{"$f":"'2. Conservation Measures'!AP38","v":0},{"$f":"'2. Conservation Measures'!AQ38","v":0},{"$f":"'2. Conservation Measures'!AR38","v":0},{"$f":"'2. Conservation Measures'!AS38","v":0},{"$f":"'2. Conservation Measures'!AT38","v":0},{"$f":"'2. Conservation Measures'!AU38","v":0},{"$f":"'2. Conservation Measures'!AV38","v":0},{"$f":"'2. Conservation Measures'!AW38","v":0},{"$f":"'2. Conservation Measures'!AX38","v":0},{"$f":"'2. Conservation Measures'!AY38","v":0},{"$f":"'2. Conservation Measures'!AZ38","v":0},{"$f":"'2. Conservation Measures'!BA38","v":0},{"$f":"'2. Conservation Measures'!BB38","v":0},{"$f":"'2. Conservation Measures'!BC38","v":0},{"$f":"'2. Conservation Measures'!BD38","v":0},{"$f":"'2. Conservation Measures'!BE38","v":0},{"$f":"'2. Conservation Measures'!BF38","v":0},{"$f":"'2. Conservation Measures'!BG38","v":0},{"$f":"'2. Conservation Measures'!BH38","v":0},{"$f":"'2. Conservation Measures'!BI38","v":0},{"$f":"'2. Conservation Measures'!BJ38","v":0},{"$f":"'2. Conservation Measures'!BK38","v":0},{"$f":"'2. Conservation Measures'!BL38","v":0},{"$f":"'2. Conservation Measures'!BM38","v":0},{"$f":"'2. Conservation Measures'!BN38","v":0},{"$f":"'2. Conservation Measures'!BO38","v":0},{"$f":"'2. Conservation Measures'!BP38","v":0},{"$f":"'2. Conservation Measures'!BQ38","v":0},{"$f":"'2. Conservation Measures'!BR38","v":0},{"$f":"'2. Conservation Measures'!BS38","v":0},{"$f":"'2. Conservation Measures'!BT38","v":0},{"$f":"'2. Conservation Measures'!BU38","v":0},{"$f":"'2. Conservation Measures'!BV38","v":0},{"$f":"'2. Conservation Measures'!BW38","v":0},{"$f":"'2. Conservation Measures'!BX38","v":0},{"$f":"'2. Conservation Measures'!BY38","v":0},{"$f":"'2. Conservation Measures'!BZ38","v":0},{"$f":"'2. Conservation Measures'!CA38","v":0},{"$f":"'2. Conservation Measures'!CB38","v":0},{"$f":"'2. Conservation Measures'!CC38","v":0},{"$f":"'2. Conservation Measures'!CD38","v":0},{"$f":"'2. Conservation Measures'!CE38","v":0},{"$f":"'2. Conservation Measures'!CF38","v":0},{"$f":"'2. Conservation Measures'!CG38","v":0},{"$f":"'2. Conservation Measures'!CH38","v":0},{"$f":"'2. Conservation Measures'!CI38","v":0},{"$f":"'2. Conservation Measures'!CJ38","v":0},{"$f":"'2. Conservation Measures'!CK38","v":0},{"$f":"'2. Conservation Measures'!CL38","v":0},{"$f":"'2. Conservation Measures'!CM38","v":0},null,{"$f":"'2. Conservation Measures'!CO38","v":{"$error":"#VALUE!"}},{"$f":"'2. Conservation Measures'!CP38","v":{"$error":"#VALUE!"}},{"$f":"'2. Conservation Measures'!CQ38","v":{"$error":"#VALUE!"}},{"$f":"'2. Conservation Measures'!CR38","v":{"$error":"#VALUE!"}},{"$f":"'2. Conservation Measures'!CS38","v":{"$error":"#VALUE!"}},{"$f":"'2. Conservation Measures'!CT38","v":{"$error":"#VALUE!"}},{"$f":"'2. Conservation Measures'!CU38","v":{"$error":"#VALUE!"}},{"$f":"'2. Conservation Measures'!CV38","v":{"$error":"#VALUE!"}},{"$f":"'2. Conservation Measures'!CW38","v":{"$error":"#VALUE!"}},{"$f":"'2. Conservation Measures'!CX38","v":{"$error":"#VALUE!"}},{"$f":"'2. Conservation Measures'!CY38","v":{"$error":"#VALUE!"}},{"$f":"'2. Conservation Measures'!CZ38","v":{"$error":"#VALUE!"}},{"$f":"'2. Conservation Measures'!DA38","v":{"$error":"#VALUE!"}},{"$f":"'2. Conservation Measures'!DB38","v":{"$error":"#VALUE!"}},{"$f":"'2. Conservation Measures'!DC38","v":{"$error":"#VALUE!"}},{"$f":"'2. Conservation Measures'!DD38","v":{"$error":"#VALUE!"}},{"$f":"'2. Conservation Measures'!DE38","v":{"$error":"#VALUE!"}},{"$f":"'2. Conservation Measures'!DF38","v":{"$error":"#VALUE!"}},{"$f":"'2. Conservation Measures'!DG38","v":{"$error":"#VALUE!"}},{"$f":"'2. Conservation Measures'!DH38","v":{"$error":"#VALUE!"}},{"$f":"'2. Conservation Measures'!DI38","v":{"$error":"#VALUE!"}},{"$f":"'2. Conservation Measures'!DJ38","v":{"$error":"#VALUE!"}},{"$f":"'2. Conservation Measures'!DK38","v":{"$error":"#VALUE!"}},{"$f":"'2. Conservation Measures'!DL38","v":{"$error":"#VALUE!"}},{"$f":"'2. Conservation Measures'!DM38","v":{"$error":"#VALUE!"}},{"$f":"'2. Conservation Measures'!DN38","v":{"$error":"#VALUE!"}},{"$f":"'2. Conservation Measures'!DO38","v":{"$error":"#VALUE!"}},{"$f":"'2. Conservation Measures'!DP38","v":{"$error":"#VALUE!"}},{"$f":"'2. Conservation Measures'!DQ38","v":{"$error":"#VALUE!"}},{"$f":"'2. Conservation Measures'!DR38","v":{"$error":"#VALUE!"}},{"$f":"'2. Conservation Measures'!DS38","v":{"$error":"#VALUE!"}},{"$f":"'2. Conservation Measures'!DT38","v":{"$error":"#VALUE!"}},{"$f":"'2. Conservation Measures'!DU38","v":{"$error":"#VALUE!"}},{"$f":"'2. Conservation Measures'!DV38","v":{"$error":"#VALUE!"}},{"$f":"'2. Conservation Measures'!DW38","v":{"$error":"#VALUE!"}},{"$f":"'2. Conservation Measures'!DX38","v":{"$error":"#VALUE!"}},{"$f":"'2. Conservation Measures'!DY38","v":{"$error":"#VALUE!"}},{"$f":"'2. Conservation Measures'!DZ38","v":{"$error":"#VALUE!"}},{"$f":"'2. Conservation Measures'!EA38","v":{"$error":"#VALUE!"}},{"$f":"'2. Conservation Measures'!EB38","v":{"$error":"#VALUE!"}},{"$f":"'2. Conservation Measures'!EC38","v":{"$error":"#VALUE!"}},{"$f":"'2. Conservation Measures'!ED38","v":{"$error":"#VALUE!"}},{"$f":"'2. Conservation Measures'!EE38","v":{"$error":"#VALUE!"}},{"$f":"'2. Conservation Measures'!EF38","v":{"$error":"#VALUE!"}},{"$f":"'2. Conservation Measures'!EG38","v":{"$error":"#VALUE!"}},{"$f":"'2. Conservation Measures'!EH38","v":{"$error":"#VALUE!"}},{"$f":"'2. Conservation Measures'!EI38","v":{"$error":"#VALUE!"}},{"$f":"'2. Conservation Measures'!EJ38","v":{"$error":"#VALUE!"}},{"$f":"'2. Conservation Measures'!EK38","v":{"$error":"#VALUE!"}},{"$f":"'2. Conservation Measures'!EL38","v":{"$error":"#VALUE!"}},{"$f":"'2. Conservation Measures'!EM38","v":{"$error":"#VALUE!"}},null,{"$f":"'2. Conservation Measures'!KP38","v":{"$error":"#N/A"}},{"$f":"'2. Conservation Measures'!KQ38","v":{"$error":"#N/A"}},{"$f":"'2. Conservation Measures'!KR38","v":{"$error":"#N/A"}},{"$f":"'2. Conservation Measures'!KS38","v":{"$error":"#N/A"}},{"$f":"'2. Conservation Measures'!KT38","v":{"$error":"#N/A"}},{"$f":"'2. Conservation Measures'!KU38","v":{"$error":"#N/A"}},{"$f":"'2. Conservation Measures'!KV38","v":{"$error":"#N/A"}},{"$f":"'2. Conservation Measures'!KW38","v":{"$error":"#N/A"}},{"$f":"'2. Conservation Measures'!KX38","v":{"$error":"#N/A"}},{"$f":"'2. Conservation Measures'!KY38","v":{"$error":"#N/A"}},{"$f":"'2. Conservation Measures'!KZ38","v":{"$error":"#N/A"}},{"$f":"'2. Conservation Measures'!LA38","v":{"$error":"#N/A"}},{"$f":"'2. Conservation Measures'!LB38","v":{"$error":"#N/A"}},{"$f":"'2. Conservation Measures'!LC38","v":{"$error":"#N/A"}},{"$f":"'2. Conservation Measures'!LD38","v":{"$error":"#N/A"}},{"$f":"'2. Conservation Measures'!LE38","v":{"$error":"#N/A"}},{"$f":"'2. Conservation Measures'!LF38","v":{"$error":"#N/A"}},{"$f":"'2. Conservation Measures'!LG38","v":{"$error":"#N/A"}},{"$f":"'2. Conservation Measures'!LH38","v":{"$error":"#N/A"}},{"$f":"'2. Conservation Measures'!LI38","v":{"$error":"#N/A"}},{"$f":"'2. Conservation Measures'!LJ38","v":{"$error":"#N/A"}},{"$f":"'2. Conservation Measures'!LK38","v":{"$error":"#N/A"}},{"$f":"'2. Conservation Measures'!LL38","v":{"$error":"#N/A"}},{"$f":"'2. Conservation Measures'!LM38","v":{"$error":"#N/A"}},{"$f":"'2. Conservation Measures'!LN38","v":{"$error":"#N/A"}},{"$f":"'2. Conservation Measures'!LO38","v":{"$error":"#N/A"}},{"$f":"'2. Conservation Measures'!LP38","v":{"$error":"#N/A"}},{"$f":"'2. Conservation Measures'!LQ38","v":{"$error":"#N/A"}},{"$f":"'2. Conservation Measures'!LR38","v":{"$error":"#N/A"}},{"$f":"'2. Conservation Measures'!LS38","v":{"$error":"#N/A"}},{"$f":"'2. Conservation Measures'!LT38","v":{"$error":"#N/A"}},{"$f":"'2. Conservation Measures'!LU38","v":{"$error":"#N/A"}},{"$f":"'2. Conservation Measures'!LV38","v":{"$error":"#N/A"}},{"$f":"'2. Conservation Measures'!LW38","v":{"$error":"#N/A"}},{"$f":"'2. Conservation Measures'!LX38","v":{"$error":"#N/A"}},{"$f":"'2. Conservation Measures'!LY38","v":{"$error":"#N/A"}},{"$f":"'2. Conservation Measures'!LZ38","v":{"$error":"#N/A"}},{"$f":"'2. Conservation Measures'!MA38","v":{"$error":"#N/A"}},{"$f":"'2. Conservation Measures'!MB38","v":{"$error":"#N/A"}},{"$f":"'2. Conservation Measures'!MC38","v":{"$error":"#N/A"}},{"$f":"'2. Conservation Measures'!MD38","v":{"$error":"#N/A"}},{"$f":"'2. Conservation Measures'!ME38","v":{"$error":"#N/A"}},{"$f":"'2. Conservation Measures'!MF38","v":{"$error":"#N/A"}},{"$f":"'2. Conservation Measures'!MG38","v":{"$error":"#N/A"}},{"$f":"'2. Conservation Measures'!MH38","v":{"$error":"#N/A"}},{"$f":"'2. Conservation Measures'!MI38","v":{"$error":"#N/A"}},{"$f":"'2. Conservation Measures'!MJ38","v":{"$error":"#N/A"}},{"$f":"'2. Conservation Measures'!MK38","v":{"$error":"#N/A"}},{"$f":"'2. Conservation Measures'!ML38","v":{"$error":"#N/A"}},{"$f":"'2. Conservation Measures'!MM38","v":{"$error":"#N/A"}},{"$f":"'2. Conservation Measures'!MN38","v":{"$error":"#N/A"}},null,{"$f":"'2. Conservation Measures'!EP38","v":{"$error":"#N/A"}},{"$f":"'2. Conservation Measures'!EQ38","v":{"$error":"#N/A"}},{"$f":"'2. Conservation Measures'!ER38","v":{"$error":"#N/A"}},{"$f":"'2. Conservation Measures'!ES38","v":{"$error":"#N/A"}},{"$f":"'2. Conservation Measures'!ET38","v":{"$error":"#N/A"}},{"$f":"'2. Conservation Measures'!EU38","v":{"$error":"#N/A"}},{"$f":"'2. Conservation Measures'!EV38","v":{"$error":"#N/A"}},{"$f":"'2. Conservation Measures'!EW38","v":{"$error":"#N/A"}},{"$f":"'2. Conservation Measures'!EX38","v":{"$error":"#N/A"}},{"$f":"'2. Conservation Measures'!EY38","v":{"$error":"#N/A"}},{"$f":"'2. Conservation Measures'!EZ38","v":{"$error":"#N/A"}},{"$f":"'2. Conservation Measures'!FA38","v":{"$error":"#N/A"}},{"$f":"'2. Conservation Measures'!FB38","v":{"$error":"#N/A"}},{"$f":"'2. Conservation Measures'!FC38","v":{"$error":"#N/A"}},{"$f":"'2. Conservation Measures'!FD38","v":{"$error":"#N/A"}},{"$f":"'2. Conservation Measures'!FE38","v":{"$error":"#N/A"}},{"$f":"'2. Conservation Measures'!FF38","v":{"$error":"#N/A"}},{"$f":"'2. Conservation Measures'!FG38","v":{"$error":"#N/A"}},{"$f":"'2. Conservation Measures'!FH38","v":{"$error":"#N/A"}},{"$f":"'2. Conservation Measures'!FI38","v":{"$error":"#N/A"}},{"$f":"'2. Conservation Measures'!FJ38","v":{"$error":"#N/A"}},{"$f":"'2. Conservation Measures'!FK38","v":{"$error":"#N/A"}},{"$f":"'2. Conservation Measures'!FL38","v":{"$error":"#N/A"}},{"$f":"'2. Conservation Measures'!FM38","v":{"$error":"#N/A"}},{"$f":"'2. Conservation Measures'!FN38","v":{"$error":"#N/A"}},{"$f":"'2. Conservation Measures'!FO38","v":{"$error":"#N/A"}},{"$f":"'2. Conservation Measures'!FP38","v":{"$error":"#N/A"}},{"$f":"'2. Conservation Measures'!FQ38","v":{"$error":"#N/A"}},{"$f":"'2. Conservation Measures'!FR38","v":{"$error":"#N/A"}},{"$f":"'2. Conservation Measures'!FS38","v":{"$error":"#N/A"}},{"$f":"'2. Conservation Measures'!FT38","v":{"$error":"#N/A"}},{"$f":"'2. Conservation Measures'!FU38","v":{"$error":"#N/A"}},{"$f":"'2. Conservation Measures'!FV38","v":{"$error":"#N/A"}},{"$f":"'2. Conservation Measures'!FW38","v":{"$error":"#N/A"}},{"$f":"'2. Conservation Measures'!FX38","v":{"$error":"#N/A"}},{"$f":"'2. Conservation Measures'!FY38","v":{"$error":"#N/A"}},{"$f":"'2. Conservation Measures'!FZ38","v":{"$error":"#N/A"}},{"$f":"'2. Conservation Measures'!GA38","v":{"$error":"#N/A"}},{"$f":"'2. Conservation Measures'!GB38","v":{"$error":"#N/A"}},{"$f":"'2. Conservation Measures'!GC38","v":{"$error":"#N/A"}},{"$f":"'2. Conservation Measures'!GD38","v":{"$error":"#N/A"}},{"$f":"'2. Conservation Measures'!GE38","v":{"$error":"#N/A"}},{"$f":"'2. Conservation Measures'!GF38","v":{"$error":"#N/A"}},{"$f":"'2. Conservation Measures'!GG38","v":{"$error":"#N/A"}},{"$f":"'2. Conservation Measures'!GH38","v":{"$error":"#N/A"}},{"$f":"'2. Conservation Measures'!GI38","v":{"$error":"#N/A"}},{"$f":"'2. Conservation Measures'!GJ38","v":{"$error":"#N/A"}},{"$f":"'2. Conservation Measures'!GK38","v":{"$error":"#N/A"}},{"$f":"'2. Conservation Measures'!GL38","v":{"$error":"#N/A"}},{"$f":"'2. Conservation Measures'!GM38","v":{"$error":"#N/A"}},{"$f":"'2. Conservation Measures'!GN38","v":{"$error":"#N/A"}},null,{"$f":"'2. Conservation Measures'!GP38","v":{"$error":"#N/A"}},{"$f":"'2. Conservation Measures'!GQ38","v":{"$error":"#N/A"}},{"$f":"'2. Conservation Measures'!GR38","v":{"$error":"#N/A"}},{"$f":"'2. Conservation Measures'!GS38","v":{"$error":"#N/A"}},{"$f":"'2. Conservation Measures'!GT38","v":{"$error":"#N/A"}},{"$f":"'2. Conservation Measures'!GU38","v":{"$error":"#N/A"}},{"$f":"'2. Conservation Measures'!GV38","v":{"$error":"#N/A"}},{"$f":"'2. Conservation Measures'!GW38","v":{"$error":"#N/A"}},{"$f":"'2. Conservation Measures'!GX38","v":{"$error":"#N/A"}},{"$f":"'2. Conservation Measures'!GY38","v":{"$error":"#N/A"}},{"$f":"'2. Conservation Measures'!GZ38","v":{"$error":"#N/A"}},{"$f":"'2. Conservation Measures'!HA38","v":{"$error":"#N/A"}},{"$f":"'2. Conservation Measures'!HB38","v":{"$error":"#N/A"}},{"$f":"'2. Conservation Measures'!HC38","v":{"$error":"#N/A"}},{"$f":"'2. Conservation Measures'!HD38","v":{"$error":"#N/A"}},{"$f":"'2. Conservation Measures'!HE38","v":{"$error":"#N/A"}},{"$f":"'2. Conservation Measures'!HF38","v":{"$error":"#N/A"}},{"$f":"'2. Conservation Measures'!HG38","v":{"$error":"#N/A"}},{"$f":"'2. Conservation Measures'!HH38","v":{"$error":"#N/A"}},{"$f":"'2. Conservation Measures'!HI38","v":{"$error":"#N/A"}},{"$f":"'2. Conservation Measures'!HJ38","v":{"$error":"#N/A"}},{"$f":"'2. Conservation Measures'!HK38","v":{"$error":"#N/A"}},{"$f":"'2. Conservation Measures'!HL38","v":{"$error":"#N/A"}},{"$f":"'2. Conservation Measures'!HM38","v":{"$error":"#N/A"}},{"$f":"'2. Conservation Measures'!HN38","v":{"$error":"#N/A"}},{"$f":"'2. Conservation Measures'!HO38","v":{"$error":"#N/A"}},{"$f":"'2. Conservation Measures'!HP38","v":{"$error":"#N/A"}},{"$f":"'2. Conservation Measures'!HQ38","v":{"$error":"#N/A"}},{"$f":"'2. Conservation Measures'!HR38","v":{"$error":"#N/A"}},{"$f":"'2. Conservation Measures'!HS38","v":{"$error":"#N/A"}},{"$f":"'2. Conservation Measures'!HT38","v":{"$error":"#N/A"}},{"$f":"'2. Conservation Measures'!HU38","v":{"$error":"#N/A"}},{"$f":"'2. Conservation Measures'!HV38","v":{"$error":"#N/A"}},{"$f":"'2. Conservation Measures'!HW38","v":{"$error":"#N/A"}},{"$f":"'2. Conservation Measures'!HX38","v":{"$error":"#N/A"}},{"$f":"'2. Conservation Measures'!HY38","v":{"$error":"#N/A"}},{"$f":"'2. Conservation Measures'!HZ38","v":{"$error":"#N/A"}},{"$f":"'2. Conservation Measures'!IA38","v":{"$error":"#N/A"}},{"$f":"'2. Conservation Measures'!IB38","v":{"$error":"#N/A"}},{"$f":"'2. Conservation Measures'!IC38","v":{"$error":"#N/A"}},{"$f":"'2. Conservation Measures'!ID38","v":{"$error":"#N/A"}},{"$f":"'2. Conservation Measures'!IE38","v":{"$error":"#N/A"}},{"$f":"'2. Conservation Measures'!IF38","v":{"$error":"#N/A"}},{"$f":"'2. Conservation Measures'!IG38","v":{"$error":"#N/A"}},{"$f":"'2. Conservation Measures'!IH38","v":{"$error":"#N/A"}},{"$f":"'2. Conservation Measures'!II38","v":{"$error":"#N/A"}},{"$f":"'2. Conservation Measures'!IJ38","v":{"$error":"#N/A"}},{"$f":"'2. Conservation Measures'!IK38","v":{"$error":"#N/A"}},{"$f":"'2. Conservation Measures'!IL38","v":{"$error":"#N/A"}},{"$f":"'2. Conservation Measures'!IM38","v":{"$error":"#N/A"}},{"$f":"'2. Conservation Measures'!IN38","v":{"$error":"#N/A"}},null,{"$f":"'2. Conservation Measures'!IP38","v":{"$error":"#VALUE!"}},{"$f":"'2. Conservation Measures'!IQ38","v":{"$error":"#VALUE!"}},{"$f":"'2. Conservation Measures'!IR38","v":{"$error":"#VALUE!"}},{"$f":"'2. Conservation Measures'!IS38","v":{"$error":"#VALUE!"}},{"$f":"'2. Conservation Measures'!IT38","v":{"$error":"#VALUE!"}},{"$f":"'2. Conservation Measures'!IU38","v":{"$error":"#VALUE!"}},{"$f":"'2. Conservation Measures'!IV38","v":{"$error":"#VALUE!"}},{"$f":"'2. Conservation Measures'!IW38","v":{"$error":"#VALUE!"}},{"$f":"'2. Conservation Measures'!IX38","v":{"$error":"#VALUE!"}},{"$f":"'2. Conservation Measures'!IY38","v":{"$error":"#VALUE!"}},{"$f":"'2. Conservation Measures'!IZ38","v":{"$error":"#VALUE!"}},{"$f":"'2. Conservation Measures'!JA38","v":{"$error":"#VALUE!"}},{"$f":"'2. Conservation Measures'!JB38","v":{"$error":"#VALUE!"}},{"$f":"'2. Conservation Measures'!JC38","v":{"$error":"#VALUE!"}},{"$f":"'2. Conservation Measures'!JD38","v":{"$error":"#VALUE!"}},{"$f":"'2. Conservation Measures'!JE38","v":{"$error":"#VALUE!"}},{"$f":"'2. Conservation Measures'!JF38","v":{"$error":"#VALUE!"}},{"$f":"'2. Conservation Measures'!JG38","v":{"$error":"#VALUE!"}},{"$f":"'2. Conservation Measures'!JH38","v":{"$error":"#VALUE!"}},{"$f":"'2. Conservation Measures'!JI38","v":{"$error":"#VALUE!"}},{"$f":"'2. Conservation Measures'!JJ38","v":{"$error":"#VALUE!"}},{"$f":"'2. Conservation Measures'!JK38","v":{"$error":"#VALUE!"}},{"$f":"'2. Conservation Measures'!JL38","v":{"$error":"#VALUE!"}},{"$f":"'2. Conservation Measures'!JM38","v":{"$error":"#VALUE!"}},{"$f":"'2. Conservation Measures'!JN38","v":{"$error":"#VALUE!"}},{"$f":"'2. Conservation Measures'!JO38","v":{"$error":"#VALUE!"}},{"$f":"'2. Conservation Measures'!JP38","v":{"$error":"#VALUE!"}},{"$f":"'2. Conservation Measures'!JQ38","v":{"$error":"#VALUE!"}},{"$f":"'2. Conservation Measures'!JR38","v":{"$error":"#VALUE!"}},{"$f":"'2. Conservation Measures'!JS38","v":{"$error":"#VALUE!"}},{"$f":"'2. Conservation Measures'!JT38","v":{"$error":"#VALUE!"}},{"$f":"'2. Conservation Measures'!JU38","v":{"$error":"#VALUE!"}},{"$f":"'2. Conservation Measures'!JV38","v":{"$error":"#VALUE!"}},{"$f":"'2. Conservation Measures'!JW38","v":{"$error":"#VALUE!"}},{"$f":"'2. Conservation Measures'!JX38","v":{"$error":"#VALUE!"}},{"$f":"'2. Conservation Measures'!JY38","v":{"$error":"#VALUE!"}},{"$f":"'2. Conservation Measures'!JZ38","v":{"$error":"#VALUE!"}},{"$f":"'2. Conservation Measures'!KA38","v":{"$error":"#VALUE!"}},{"$f":"'2. Conservation Measures'!KB38","v":{"$error":"#VALUE!"}},{"$f":"'2. Conservation Measures'!KC38","v":{"$error":"#VALUE!"}},{"$f":"'2. Conservation Measures'!KD38","v":{"$error":"#VALUE!"}},{"$f":"'2. Conservation Measures'!KE38","v":{"$error":"#VALUE!"}},{"$f":"'2. Conservation Measures'!KF38","v":{"$error":"#VALUE!"}},{"$f":"'2. Conservation Measures'!KG38","v":{"$error":"#VALUE!"}},{"$f":"'2. Conservation Measures'!KH38","v":{"$error":"#VALUE!"}},{"$f":"'2. Conservation Measures'!KI38","v":{"$error":"#VALUE!"}},{"$f":"'2. Conservation Measures'!KJ38","v":{"$error":"#VALUE!"}},{"$f":"'2. Conservation Measures'!KK38","v":{"$error":"#VALUE!"}},{"$f":"'2. Conservation Measures'!KL38","v":{"$error":"#VALUE!"}},{"$f":"'2. Conservation Measures'!KM38","v":{"$error":"#VALUE!"}},{"$f":"'2. Conservation Measures'!KN38","v":{"$error":"#VALUE!"}}]
[null,{"$f":"'2. Conservation Measures'!B39","v":"PRE-MF-04"},{"$f":"'2. Conservation Measures'!C39","v":{"$error":"#N/A"}},{"$f":"'2. Conservation Measures'!D39","v":"N"},null,{"$f":"'2. Conservation Measures'!AA39","v":{"$error":"#N/A"}},null,{"$f":"'2. Conservation Measures'!AO39","v":0},{"$f":"'2. Conservation Measures'!AP39","v":0},{"$f":"'2. Conservation Measures'!AQ39","v":0},{"$f":"'2. Conservation Measures'!AR39","v":0},{"$f":"'2. Conservation Measures'!AS39","v":0},{"$f":"'2. Conservation Measures'!AT39","v":0},{"$f":"'2. Conservation Measures'!AU39","v":0},{"$f":"'2. Conservation Measures'!AV39","v":0},{"$f":"'2. Conservation Measures'!AW39","v":0},{"$f":"'2. Conservation Measures'!AX39","v":0},{"$f":"'2. Conservation Measures'!AY39","v":0},{"$f":"'2. Conservation Measures'!AZ39","v":0},{"$f":"'2. Conservation Measures'!BA39","v":0},{"$f":"'2. Conservation Measures'!BB39","v":0},{"$f":"'2. Conservation Measures'!BC39","v":0},{"$f":"'2. Conservation Measures'!BD39","v":0},{"$f":"'2. Conservation Measures'!BE39","v":0},{"$f":"'2. Conservation Measures'!BF39","v":0},{"$f":"'2. Conservation Measures'!BG39","v":0},{"$f":"'2. Conservation Measures'!BH39","v":0},{"$f":"'2. Conservation Measures'!BI39","v":0},{"$f":"'2. Conservation Measures'!BJ39","v":0},{"$f":"'2. Conservation Measures'!BK39","v":0},{"$f":"'2. Conservation Measures'!BL39","v":0},{"$f":"'2. Conservation Measures'!BM39","v":0},{"$f":"'2. Conservation Measures'!BN39","v":0},{"$f":"'2. Conservation Measures'!BO39","v":0},{"$f":"'2. Conservation Measures'!BP39","v":0},{"$f":"'2. Conservation Measures'!BQ39","v":0},{"$f":"'2. Conservation Measures'!BR39","v":0},{"$f":"'2. Conservation Measures'!BS39","v":0},{"$f":"'2. Conservation Measures'!BT39","v":0},{"$f":"'2. Conservation Measures'!BU39","v":0},{"$f":"'2. Conservation Measures'!BV39","v":0},{"$f":"'2. Conservation Measures'!BW39","v":0},{"$f":"'2. Conservation Measures'!BX39","v":0},{"$f":"'2. Conservation Measures'!BY39","v":0},{"$f":"'2. Conservation Measures'!BZ39","v":0},{"$f":"'2. Conservation Measures'!CA39","v":0},{"$f":"'2. Conservation Measures'!CB39","v":0},{"$f":"'2. Conservation Measures'!CC39","v":0},{"$f":"'2. Conservation Measures'!CD39","v":0},{"$f":"'2. Conservation Measures'!CE39","v":0},{"$f":"'2. Conservation Measures'!CF39","v":0},{"$f":"'2. Conservation Measures'!CG39","v":0},{"$f":"'2. Conservation Measures'!CH39","v":0},{"$f":"'2. Conservation Measures'!CI39","v":0},{"$f":"'2. Conservation Measures'!CJ39","v":0},{"$f":"'2. Conservation Measures'!CK39","v":0},{"$f":"'2. Conservation Measures'!CL39","v":0},{"$f":"'2. Conservation Measures'!CM39","v":0},null,{"$f":"'2. Conservation Measures'!CO39","v":{"$error":"#VALUE!"}},{"$f":"'2. Conservation Measures'!CP39","v":{"$error":"#VALUE!"}},{"$f":"'2. Conservation Measures'!CQ39","v":{"$error":"#VALUE!"}},{"$f":"'2. Conservation Measures'!CR39","v":{"$error":"#VALUE!"}},{"$f":"'2. Conservation Measures'!CS39","v":{"$error":"#VALUE!"}},{"$f":"'2. Conservation Measures'!CT39","v":{"$error":"#VALUE!"}},{"$f":"'2. Conservation Measures'!CU39","v":{"$error":"#VALUE!"}},{"$f":"'2. Conservation Measures'!CV39","v":{"$error":"#VALUE!"}},{"$f":"'2. Conservation Measures'!CW39","v":{"$error":"#VALUE!"}},{"$f":"'2. Conservation Measures'!CX39","v":{"$error":"#VALUE!"}},{"$f":"'2. Conservation Measures'!CY39","v":{"$error":"#VALUE!"}},{"$f":"'2. Conservation Measures'!CZ39","v":{"$error":"#VALUE!"}},{"$f":"'2. Conservation Measures'!DA39","v":{"$error":"#VALUE!"}},{"$f":"'2. Conservation Measures'!DB39","v":{"$error":"#VALUE!"}},{"$f":"'2. Conservation Measures'!DC39","v":{"$error":"#VALUE!"}},{"$f":"'2. Conservation Measures'!DD39","v":{"$error":"#VALUE!"}},{"$f":"'2. Conservation Measures'!DE39","v":{"$error":"#VALUE!"}},{"$f":"'2. Conservation Measures'!DF39","v":{"$error":"#VALUE!"}},{"$f":"'2. Conservation Measures'!DG39","v":{"$error":"#VALUE!"}},{"$f":"'2. Conservation Measures'!DH39","v":{"$error":"#VALUE!"}},{"$f":"'2. Conservation Measures'!DI39","v":{"$error":"#VALUE!"}},{"$f":"'2. Conservation Measures'!DJ39","v":{"$error":"#VALUE!"}},{"$f":"'2. Conservation Measures'!DK39","v":{"$error":"#VALUE!"}},{"$f":"'2. Conservation Measures'!DL39","v":{"$error":"#VALUE!"}},{"$f":"'2. Conservation Measures'!DM39","v":{"$error":"#VALUE!"}},{"$f":"'2. Conservation Measures'!DN39","v":{"$error":"#VALUE!"}},{"$f":"'2. Conservation Measures'!DO39","v":{"$error":"#VALUE!"}},{"$f":"'2. Conservation Measures'!DP39","v":{"$error":"#VALUE!"}},{"$f":"'2. Conservation Measures'!DQ39","v":{"$error":"#VALUE!"}},{"$f":"'2. Conservation Measures'!DR39","v":{"$error":"#VALUE!"}},{"$f":"'2. Conservation Measures'!DS39","v":{"$error":"#VALUE!"}},{"$f":"'2. Conservation Measures'!DT39","v":{"$error":"#VALUE!"}},{"$f":"'2. Conservation Measures'!DU39","v":{"$error":"#VALUE!"}},{"$f":"'2. Conservation Measures'!DV39","v":{"$error":"#VALUE!"}},{"$f":"'2. Conservation Measures'!DW39","v":{"$error":"#VALUE!"}},{"$f":"'2. Conservation Measures'!DX39","v":{"$error":"#VALUE!"}},{"$f":"'2. Conservation Measures'!DY39","v":{"$error":"#VALUE!"}},{"$f":"'2. Conservation Measures'!DZ39","v":{"$error":"#VALUE!"}},{"$f":"'2. Conservation Measures'!EA39","v":{"$error":"#VALUE!"}},{"$f":"'2. Conservation Measures'!EB39","v":{"$error":"#VALUE!"}},{"$f":"'2. Conservation Measures'!EC39","v":{"$error":"#VALUE!"}},{"$f":"'2. Conservation Measures'!ED39","v":{"$error":"#VALUE!"}},{"$f":"'2. Conservation Measures'!EE39","v":{"$error":"#VALUE!"}},{"$f":"'2. Conservation Measures'!EF39","v":{"$error":"#VALUE!"}},{"$f":"'2. Conservation Measures'!EG39","v":{"$error":"#VALUE!"}},{"$f":"'2. Conservation Measures'!EH39","v":{"$error":"#VALUE!"}},{"$f":"'2. Conservation Measures'!EI39","v":{"$error":"#VALUE!"}},{"$f":"'2. Conservation Measures'!EJ39","v":{"$error":"#VALUE!"}},{"$f":"'2. Conservation Measures'!EK39","v":{"$error":"#VALUE!"}},{"$f":"'2. Conservation Measures'!EL39","v":{"$error":"#VALUE!"}},{"$f":"'2. Conservation Measures'!EM39","v":{"$error":"#VALUE!"}},null,{"$f":"'2. Conservation Measures'!KP39","v":{"$error":"#N/A"}},{"$f":"'2. Conservation Measures'!KQ39","v":{"$error":"#N/A"}},{"$f":"'2. Conservation Measures'!KR39","v":{"$error":"#N/A"}},{"$f":"'2. Conservation Measures'!KS39","v":{"$error":"#N/A"}},{"$f":"'2. Conservation Measures'!KT39","v":{"$error":"#N/A"}},{"$f":"'2. Conservation Measures'!KU39","v":{"$error":"#N/A"}},{"$f":"'2. Conservation Measures'!KV39","v":{"$error":"#N/A"}},{"$f":"'2. Conservation Measures'!KW39","v":{"$error":"#N/A"}},{"$f":"'2. Conservation Measures'!KX39","v":{"$error":"#N/A"}},{"$f":"'2. Conservation Measures'!KY39","v":{"$error":"#N/A"}},{"$f":"'2. Conservation Measures'!KZ39","v":{"$error":"#N/A"}},{"$f":"'2. Conservation Measures'!LA39","v":{"$error":"#N/A"}},{"$f":"'2. Conservation Measures'!LB39","v":{"$error":"#N/A"}},{"$f":"'2. Conservation Measures'!LC39","v":{"$error":"#N/A"}},{"$f":"'2. Conservation Measures'!LD39","v":{"$error":"#N/A"}},{"$f":"'2. Conservation Measures'!LE39","v":{"$error":"#N/A"}},{"$f":"'2. Conservation Measures'!LF39","v":{"$error":"#N/A"}},{"$f":"'2. Conservation Measures'!LG39","v":{"$error":"#N/A"}},{"$f":"'2. Conservation Measures'!LH39","v":{"$error":"#N/A"}},{"$f":"'2. Conservation Measures'!LI39","v":{"$error":"#N/A"}},{"$f":"'2. Conservation Measures'!LJ39","v":{"$error":"#N/A"}},{"$f":"'2. Conservation Measures'!LK39","v":{"$error":"#N/A"}},{"$f":"'2. Conservation Measures'!LL39","v":{"$error":"#N/A"}},{"$f":"'2. Conservation Measures'!LM39","v":{"$error":"#N/A"}},{"$f":"'2. Conservation Measures'!LN39","v":{"$error":"#N/A"}},{"$f":"'2. Conservation Measures'!LO39","v":{"$error":"#N/A"}},{"$f":"'2. Conservation Measures'!LP39","v":{"$error":"#N/A"}},{"$f":"'2. Conservation Measures'!LQ39","v":{"$error":"#N/A"}},{"$f":"'2. Conservation Measures'!LR39","v":{"$error":"#N/A"}},{"$f":"'2. Conservation Measures'!LS39","v":{"$error":"#N/A"}},{"$f":"'2. Conservation Measures'!LT39","v":{"$error":"#N/A"}},{"$f":"'2. Conservation Measures'!LU39","v":{"$error":"#N/A"}},{"$f":"'2. Conservation Measures'!LV39","v":{"$error":"#N/A"}},{"$f":"'2. Conservation Measures'!LW39","v":{"$error":"#N/A"}},{"$f":"'2. Conservation Measures'!LX39","v":{"$error":"#N/A"}},{"$f":"'2. Conservation Measures'!LY39","v":{"$error":"#N/A"}},{"$f":"'2. Conservation Measures'!LZ39","v":{"$error":"#N/A"}},{"$f":"'2. Conservation Measures'!MA39","v":{"$error":"#N/A"}},{"$f":"'2. Conservation Measures'!MB39","v":{"$error":"#N/A"}},{"$f":"'2. Conservation Measures'!MC39","v":{"$error":"#N/A"}},{"$f":"'2. Conservation Measures'!MD39","v":{"$error":"#N/A"}},{"$f":"'2. Conservation Measures'!ME39","v":{"$error":"#N/A"}},{"$f":"'2. Conservation Measures'!MF39","v":{"$error":"#N/A"}},{"$f":"'2. Conservation Measures'!MG39","v":{"$error":"#N/A"}},{"$f":"'2. Conservation Measures'!MH39","v":{"$error":"#N/A"}},{"$f":"'2. Conservation Measures'!MI39","v":{"$error":"#N/A"}},{"$f":"'2. Conservation Measures'!MJ39","v":{"$error":"#N/A"}},{"$f":"'2. Conservation Measures'!MK39","v":{"$error":"#N/A"}},{"$f":"'2. Conservation Measures'!ML39","v":{"$error":"#N/A"}},{"$f":"'2. Conservation Measures'!MM39","v":{"$error":"#N/A"}},{"$f":"'2. Conservation Measures'!MN39","v":{"$error":"#N/A"}},null,{"$f":"'2. Conservation Measures'!EP39","v":{"$error":"#N/A"}},{"$f":"'2. Conservation Measures'!EQ39","v":{"$error":"#N/A"}},{"$f":"'2. Conservation Measures'!ER39","v":{"$error":"#N/A"}},{"$f":"'2. Conservation Measures'!ES39","v":{"$error":"#N/A"}},{"$f":"'2. Conservation Measures'!ET39","v":{"$error":"#N/A"}},{"$f":"'2. Conservation Measures'!EU39","v":{"$error":"#N/A"}},{"$f":"'2. Conservation Measures'!EV39","v":{"$error":"#N/A"}},{"$f":"'2. Conservation Measures'!EW39","v":{"$error":"#N/A"}},{"$f":"'2. Conservation Measures'!EX39","v":{"$error":"#N/A"}},{"$f":"'2. Conservation Measures'!EY39","v":{"$error":"#N/A"}},{"$f":"'2. Conservation Measures'!EZ39","v":{"$error":"#N/A"}},{"$f":"'2. Conservation Measures'!FA39","v":{"$error":"#N/A"}},{"$f":"'2. Conservation Measures'!FB39","v":{"$error":"#N/A"}},{"$f":"'2. Conservation Measures'!FC39","v":{"$error":"#N/A"}},{"$f":"'2. Conservation Measures'!FD39","v":{"$error":"#N/A"}},{"$f":"'2. Conservation Measures'!FE39","v":{"$error":"#N/A"}},{"$f":"'2. Conservation Measures'!FF39","v":{"$error":"#N/A"}},{"$f":"'2. Conservation Measures'!FG39","v":{"$error":"#N/A"}},{"$f":"'2. Conservation Measures'!FH39","v":{"$error":"#N/A"}},{"$f":"'2. Conservation Measures'!FI39","v":{"$error":"#N/A"}},{"$f":"'2. Conservation Measures'!FJ39","v":{"$error":"#N/A"}},{"$f":"'2. Conservation Measures'!FK39","v":{"$error":"#N/A"}},{"$f":"'2. Conservation Measures'!FL39","v":{"$error":"#N/A"}},{"$f":"'2. Conservation Measures'!FM39","v":{"$error":"#N/A"}},{"$f":"'2. Conservation Measures'!FN39","v":{"$error":"#N/A"}},{"$f":"'2. Conservation Measures'!FO39","v":{"$error":"#N/A"}},{"$f":"'2. Conservation Measures'!FP39","v":{"$error":"#N/A"}},{"$f":"'2. Conservation Measures'!FQ39","v":{"$error":"#N/A"}},{"$f":"'2. Conservation Measures'!FR39","v":{"$error":"#N/A"}},{"$f":"'2. Conservation Measures'!FS39","v":{"$error":"#N/A"}},{"$f":"'2. Conservation Measures'!FT39","v":{"$error":"#N/A"}},{"$f":"'2. Conservation Measures'!FU39","v":{"$error":"#N/A"}},{"$f":"'2. Conservation Measures'!FV39","v":{"$error":"#N/A"}},{"$f":"'2. Conservation Measures'!FW39","v":{"$error":"#N/A"}},{"$f":"'2. Conservation Measures'!FX39","v":{"$error":"#N/A"}},{"$f":"'2. Conservation Measures'!FY39","v":{"$error":"#N/A"}},{"$f":"'2. Conservation Measures'!FZ39","v":{"$error":"#N/A"}},{"$f":"'2. Conservation Measures'!GA39","v":{"$error":"#N/A"}},{"$f":"'2. Conservation Measures'!GB39","v":{"$error":"#N/A"}},{"$f":"'2. Conservation Measures'!GC39","v":{"$error":"#N/A"}},{"$f":"'2. Conservation Measures'!GD39","v":{"$error":"#N/A"}},{"$f":"'2. Conservation Measures'!GE39","v":{"$error":"#N/A"}},{"$f":"'2. Conservation Measures'!GF39","v":{"$error":"#N/A"}},{"$f":"'2. Conservation Measures'!GG39","v":{"$error":"#N/A"}},{"$f":"'2. Conservation Measures'!GH39","v":{"$error":"#N/A"}},{"$f":"'2. Conservation Measures'!GI39","v":{"$error":"#N/A"}},{"$f":"'2. Conservation Measures'!GJ39","v":{"$error":"#N/A"}},{"$f":"'2. Conservation Measures'!GK39","v":{"$error":"#N/A"}},{"$f":"'2. Conservation Measures'!GL39","v":{"$error":"#N/A"}},{"$f":"'2. Conservation Measures'!GM39","v":{"$error":"#N/A"}},{"$f":"'2. Conservation Measures'!GN39","v":{"$error":"#N/A"}},null,{"$f":"'2. Conservation Measures'!GP39","v":{"$error":"#N/A"}},{"$f":"'2. Conservation Measures'!GQ39","v":{"$error":"#N/A"}},{"$f":"'2. Conservation Measures'!GR39","v":{"$error":"#N/A"}},{"$f":"'2. Conservation Measures'!GS39","v":{"$error":"#N/A"}},{"$f":"'2. Conservation Measures'!GT39","v":{"$error":"#N/A"}},{"$f":"'2. Conservation Measures'!GU39","v":{"$error":"#N/A"}},{"$f":"'2. Conservation Measures'!GV39","v":{"$error":"#N/A"}},{"$f":"'2. Conservation Measures'!GW39","v":{"$error":"#N/A"}},{"$f":"'2. Conservation Measures'!GX39","v":{"$error":"#N/A"}},{"$f":"'2. Conservation Measures'!GY39","v":{"$error":"#N/A"}},{"$f":"'2. Conservation Measures'!GZ39","v":{"$error":"#N/A"}},{"$f":"'2. Conservation Measures'!HA39","v":{"$error":"#N/A"}},{"$f":"'2. Conservation Measures'!HB39","v":{"$error":"#N/A"}},{"$f":"'2. Conservation Measures'!HC39","v":{"$error":"#N/A"}},{"$f":"'2. Conservation Measures'!HD39","v":{"$error":"#N/A"}},{"$f":"'2. Conservation Measures'!HE39","v":{"$error":"#N/A"}},{"$f":"'2. Conservation Measures'!HF39","v":{"$error":"#N/A"}},{"$f":"'2. Conservation Measures'!HG39","v":{"$error":"#N/A"}},{"$f":"'2. Conservation Measures'!HH39","v":{"$error":"#N/A"}},{"$f":"'2. Conservation Measures'!HI39","v":{"$error":"#N/A"}},{"$f":"'2. Conservation Measures'!HJ39","v":{"$error":"#N/A"}},{"$f":"'2. Conservation Measures'!HK39","v":{"$error":"#N/A"}},{"$f":"'2. Conservation Measures'!HL39","v":{"$error":"#N/A"}},{"$f":"'2. Conservation Measures'!HM39","v":{"$error":"#N/A"}},{"$f":"'2. Conservation Measures'!HN39","v":{"$error":"#N/A"}},{"$f":"'2. Conservation Measures'!HO39","v":{"$error":"#N/A"}},{"$f":"'2. Conservation Measures'!HP39","v":{"$error":"#N/A"}},{"$f":"'2. Conservation Measures'!HQ39","v":{"$error":"#N/A"}},{"$f":"'2. Conservation Measures'!HR39","v":{"$error":"#N/A"}},{"$f":"'2. Conservation Measures'!HS39","v":{"$error":"#N/A"}},{"$f":"'2. Conservation Measures'!HT39","v":{"$error":"#N/A"}},{"$f":"'2. Conservation Measures'!HU39","v":{"$error":"#N/A"}},{"$f":"'2. Conservation Measures'!HV39","v":{"$error":"#N/A"}},{"$f":"'2. Conservation Measures'!HW39","v":{"$error":"#N/A"}},{"$f":"'2. Conservation Measures'!HX39","v":{"$error":"#N/A"}},{"$f":"'2. Conservation Measures'!HY39","v":{"$error":"#N/A"}},{"$f":"'2. Conservation Measures'!HZ39","v":{"$error":"#N/A"}},{"$f":"'2. Conservation Measures'!IA39","v":{"$error":"#N/A"}},{"$f":"'2. Conservation Measures'!IB39","v":{"$error":"#N/A"}},{"$f":"'2. Conservation Measures'!IC39","v":{"$error":"#N/A"}},{"$f":"'2. Conservation Measures'!ID39","v":{"$error":"#N/A"}},{"$f":"'2. Conservation Measures'!IE39","v":{"$error":"#N/A"}},{"$f":"'2. Conservation Measures'!IF39","v":{"$error":"#N/A"}},{"$f":"'2. Conservation Measures'!IG39","v":{"$error":"#N/A"}},{"$f":"'2. Conservation Measures'!IH39","v":{"$error":"#N/A"}},{"$f":"'2. Conservation Measures'!II39","v":{"$error":"#N/A"}},{"$f":"'2. Conservation Measures'!IJ39","v":{"$error":"#N/A"}},{"$f":"'2. Conservation Measures'!IK39","v":{"$error":"#N/A"}},{"$f":"'2. Conservation Measures'!IL39","v":{"$error":"#N/A"}},{"$f":"'2. Conservation Measures'!IM39","v":{"$error":"#N/A"}},{"$f":"'2. Conservation Measures'!IN39","v":{"$error":"#N/A"}},null,{"$f":"'2. Conservation Measures'!IP39","v":{"$error":"#VALUE!"}},{"$f":"'2. Conservation Measures'!IQ39","v":{"$error":"#VALUE!"}},{"$f":"'2. Conservation Measures'!IR39","v":{"$error":"#VALUE!"}},{"$f":"'2. Conservation Measures'!IS39","v":{"$error":"#VALUE!"}},{"$f":"'2. Conservation Measures'!IT39","v":{"$error":"#VALUE!"}},{"$f":"'2. Conservation Measures'!IU39","v":{"$error":"#VALUE!"}},{"$f":"'2. Conservation Measures'!IV39","v":{"$error":"#VALUE!"}},{"$f":"'2. Conservation Measures'!IW39","v":{"$error":"#VALUE!"}},{"$f":"'2. Conservation Measures'!IX39","v":{"$error":"#VALUE!"}},{"$f":"'2. Conservation Measures'!IY39","v":{"$error":"#VALUE!"}},{"$f":"'2. Conservation Measures'!IZ39","v":{"$error":"#VALUE!"}},{"$f":"'2. Conservation Measures'!JA39","v":{"$error":"#VALUE!"}},{"$f":"'2. Conservation Measures'!JB39","v":{"$error":"#VALUE!"}},{"$f":"'2. Conservation Measures'!JC39","v":{"$error":"#VALUE!"}},{"$f":"'2. Conservation Measures'!JD39","v":{"$error":"#VALUE!"}},{"$f":"'2. Conservation Measures'!JE39","v":{"$error":"#VALUE!"}},{"$f":"'2. Conservation Measures'!JF39","v":{"$error":"#VALUE!"}},{"$f":"'2. Conservation Measures'!JG39","v":{"$error":"#VALUE!"}},{"$f":"'2. Conservation Measures'!JH39","v":{"$error":"#VALUE!"}},{"$f":"'2. Conservation Measures'!JI39","v":{"$error":"#VALUE!"}},{"$f":"'2. Conservation Measures'!JJ39","v":{"$error":"#VALUE!"}},{"$f":"'2. Conservation Measures'!JK39","v":{"$error":"#VALUE!"}},{"$f":"'2. Conservation Measures'!JL39","v":{"$error":"#VALUE!"}},{"$f":"'2. Conservation Measures'!JM39","v":{"$error":"#VALUE!"}},{"$f":"'2. Conservation Measures'!JN39","v":{"$error":"#VALUE!"}},{"$f":"'2. Conservation Measures'!JO39","v":{"$error":"#VALUE!"}},{"$f":"'2. Conservation Measures'!JP39","v":{"$error":"#VALUE!"}},{"$f":"'2. Conservation Measures'!JQ39","v":{"$error":"#VALUE!"}},{"$f":"'2. Conservation Measures'!JR39","v":{"$error":"#VALUE!"}},{"$f":"'2. Conservation Measures'!JS39","v":{"$error":"#VALUE!"}},{"$f":"'2. Conservation Measures'!JT39","v":{"$error":"#VALUE!"}},{"$f":"'2. Conservation Measures'!JU39","v":{"$error":"#VALUE!"}},{"$f":"'2. Conservation Measures'!JV39","v":{"$error":"#VALUE!"}},{"$f":"'2. Conservation Measures'!JW39","v":{"$error":"#VALUE!"}},{"$f":"'2. Conservation Measures'!JX39","v":{"$error":"#VALUE!"}},{"$f":"'2. Conservation Measures'!JY39","v":{"$error":"#VALUE!"}},{"$f":"'2. Conservation Measures'!JZ39","v":{"$error":"#VALUE!"}},{"$f":"'2. Conservation Measures'!KA39","v":{"$error":"#VALUE!"}},{"$f":"'2. Conservation Measures'!KB39","v":{"$error":"#VALUE!"}},{"$f":"'2. Conservation Measures'!KC39","v":{"$error":"#VALUE!"}},{"$f":"'2. Conservation Measures'!KD39","v":{"$error":"#VALUE!"}},{"$f":"'2. Conservation Measures'!KE39","v":{"$error":"#VALUE!"}},{"$f":"'2. Conservation Measures'!KF39","v":{"$error":"#VALUE!"}},{"$f":"'2. Conservation Measures'!KG39","v":{"$error":"#VALUE!"}},{"$f":"'2. Conservation Measures'!KH39","v":{"$error":"#VALUE!"}},{"$f":"'2. Conservation Measures'!KI39","v":{"$error":"#VALUE!"}},{"$f":"'2. Conservation Measures'!KJ39","v":{"$error":"#VALUE!"}},{"$f":"'2. Conservation Measures'!KK39","v":{"$error":"#VALUE!"}},{"$f":"'2. Conservation Measures'!KL39","v":{"$error":"#VALUE!"}},{"$f":"'2. Conservation Measures'!KM39","v":{"$error":"#VALUE!"}},{"$f":"'2. Conservation Measures'!KN39","v":{"$error":"#VALUE!"}}]
[null,{"$f":"'2. Conservation Measures'!B40","v":"PRE-MF-05"},{"$f":"'2. Conservation Measures'!C40","v":{"$error":"#N/A"}},{"$f":"'2. Conservation Measures'!D40","v":"N"},null,{"$f":"'2. Conservation Measures'!AA40","v":{"$error":"#N/A"}},null,{"$f":"'2. Conservation Measures'!AO40","v":0},{"$f":"'2. Conservation Measures'!AP40","v":0},{"$f":"'2. Conservation Measures'!AQ40","v":0},{"$f":"'2. Conservation Measures'!AR40","v":0},{"$f":"'2. Conservation Measures'!AS40","v":0},{"$f":"'2. Conservation Measures'!AT40","v":0},{"$f":"'2. Conservation Measures'!AU40","v":0},{"$f":"'2. Conservation Measures'!AV40","v":0},{"$f":"'2. Conservation Measures'!AW40","v":0},{"$f":"'2. Conservation Measures'!AX40","v":0},{"$f":"'2. Conservation Measures'!AY40","v":0},{"$f":"'2. Conservation Measures'!AZ40","v":0},{"$f":"'2. Conservation Measures'!BA40","v":0},{"$f":"'2. Conservation Measures'!BB40","v":0},{"$f":"'2. Conservation Measures'!BC40","v":0},{"$f":"'2. Conservation Measures'!BD40","v":0},{"$f":"'2. Conservation Measures'!BE40","v":0},{"$f":"'2. Conservation Measures'!BF40","v":0},{"$f":"'2. Conservation Measures'!BG40","v":0},{"$f":"'2. Conservation Measures'!BH40","v":0},{"$f":"'2. Conservation Measures'!BI40","v":0},{"$f":"'2. Conservation Measures'!BJ40","v":0},{"$f":"'2. Conservation Measures'!BK40","v":0},{"$f":"'2. Conservation Measures'!BL40","v":0},{"$f":"'2. Conservation Measures'!BM40","v":0},{"$f":"'2. Conservation Measures'!BN40","v":0},{"$f":"'2. Conservation Measures'!BO40","v":0},{"$f":"'2. Conservation Measures'!BP40","v":0},{"$f":"'2. Conservation Measures'!BQ40","v":0},{"$f":"'2. Conservation Measures'!BR40","v":0},{"$f":"'2. Conservation Measures'!BS40","v":0},{"$f":"'2. Conservation Measures'!BT40","v":0},{"$f":"'2. Conservation Measures'!BU40","v":0},{"$f":"'2. Conservation Measures'!BV40","v":0},{"$f":"'2. Conservation Measures'!BW40","v":0},{"$f":"'2. Conservation Measures'!BX40","v":0},{"$f":"'2. Conservation Measures'!BY40","v":0},{"$f":"'2. Conservation Measures'!BZ40","v":0},{"$f":"'2. Conservation Measures'!CA40","v":0},{"$f":"'2. Conservation Measures'!CB40","v":0},{"$f":"'2. Conservation Measures'!CC40","v":0},{"$f":"'2. Conservation Measures'!CD40","v":0},{"$f":"'2. Conservation Measures'!CE40","v":0},{"$f":"'2. Conservation Measures'!CF40","v":0},{"$f":"'2. Conservation Measures'!CG40","v":0},{"$f":"'2. Conservation Measures'!CH40","v":0},{"$f":"'2. Conservation Measures'!CI40","v":0},{"$f":"'2. Conservation Measures'!CJ40","v":0},{"$f":"'2. Conservation Measures'!CK40","v":0},{"$f":"'2. Conservation Measures'!CL40","v":0},{"$f":"'2. Conservation Measures'!CM40","v":0},null,{"$f":"'2. Conservation Measures'!CO40","v":{"$error":"#VALUE!"}},{"$f":"'2. Conservation Measures'!CP40","v":{"$error":"#VALUE!"}},{"$f":"'2. Conservation Measures'!CQ40","v":{"$error":"#VALUE!"}},{"$f":"'2. Conservation Measures'!CR40","v":{"$error":"#VALUE!"}},{"$f":"'2. Conservation Measures'!CS40","v":{"$error":"#VALUE!"}},{"$f":"'2. Conservation Measures'!CT40","v":{"$error":"#VALUE!"}},{"$f":"'2. Conservation Measures'!CU40","v":{"$error":"#VALUE!"}},{"$f":"'2. Conservation Measures'!CV40","v":{"$error":"#VALUE!"}},{"$f":"'2. Conservation Measures'!CW40","v":{"$error":"#VALUE!"}},{"$f":"'2. Conservation Measures'!CX40","v":{"$error":"#VALUE!"}},{"$f":"'2. Conservation Measures'!CY40","v":{"$error":"#VALUE!"}},{"$f":"'2. Conservation Measures'!CZ40","v":{"$error":"#VALUE!"}},{"$f":"'2. Conservation Measures'!DA40","v":{"$error":"#VALUE!"}},{"$f":"'2. Conservation Measures'!DB40","v":{"$error":"#VALUE!"}},{"$f":"'2. Conservation Measures'!DC40","v":{"$error":"#VALUE!"}},{"$f":"'2. Conservation Measures'!DD40","v":{"$error":"#VALUE!"}},{"$f":"'2. Conservation Measures'!DE40","v":{"$error":"#VALUE!"}},{"$f":"'2. Conservation Measures'!DF40","v":{"$error":"#VALUE!"}},{"$f":"'2. Conservation Measures'!DG40","v":{"$error":"#VALUE!"}},{"$f":"'2. Conservation Measures'!DH40","v":{"$error":"#VALUE!"}},{"$f":"'2. Conservation Measures'!DI40","v":{"$error":"#VALUE!"}},{"$f":"'2. Conservation Measures'!DJ40","v":{"$error":"#VALUE!"}},{"$f":"'2. Conservation Measures'!DK40","v":{"$error":"#VALUE!"}},{"$f":"'2. Conservation Measures'!DL40","v":{"$error":"#VALUE!"}},{"$f":"'2. Conservation Measures'!DM40","v":{"$error":"#VALUE!"}},{"$f":"'2. Conservation Measures'!DN40","v":{"$error":"#VALUE!"}},{"$f":"'2. Conservation Measures'!DO40","v":{"$error":"#VALUE!"}},{"$f":"'2. Conservation Measures'!DP40","v":{"$error":"#VALUE!"}},{"$f":"'2. Conservation Measures'!DQ40","v":{"$error":"#VALUE!"}},{"$f":"'2. Conservation Measures'!DR40","v":{"$error":"#VALUE!"}},{"$f":"'2. Conservation Measures'!DS40","v":{"$error":"#VALUE!"}},{"$f":"'2. Conservation Measures'!DT40","v":{"$error":"#VALUE!"}},{"$f":"'2. Conservation Measures'!DU40","v":{"$error":"#VALUE!"}},{"$f":"'2. Conservation Measures'!DV40","v":{"$error":"#VALUE!"}},{"$f":"'2. Conservation Measures'!DW40","v":{"$error":"#VALUE!"}},{"$f":"'2. Conservation Measures'!DX40","v":{"$error":"#VALUE!"}},{"$f":"'2. Conservation Measures'!DY40","v":{"$error":"#VALUE!"}},{"$f":"'2. Conservation Measures'!DZ40","v":{"$error":"#VALUE!"}},{"$f":"'2. Conservation Measures'!EA40","v":{"$error":"#VALUE!"}},{"$f":"'2. Conservation Measures'!EB40","v":{"$error":"#VALUE!"}},{"$f":"'2. Conservation Measures'!EC40","v":{"$error":"#VALUE!"}},{"$f":"'2. Conservation Measures'!ED40","v":{"$error":"#VALUE!"}},{"$f":"'2. Conservation Measures'!EE40","v":{"$error":"#VALUE!"}},{"$f":"'2. Conservation Measures'!EF40","v":{"$error":"#VALUE!"}},{"$f":"'2. Conservation Measures'!EG40","v":{"$error":"#VALUE!"}},{"$f":"'2. Conservation Measures'!EH40","v":{"$error":"#VALUE!"}},{"$f":"'2. Conservation Measures'!EI40","v":{"$error":"#VALUE!"}},{"$f":"'2. Conservation Measures'!EJ40","v":{"$error":"#VALUE!"}},{"$f":"'2. Conservation Measures'!EK40","v":{"$error":"#VALUE!"}},{"$f":"'2. Conservation Measures'!EL40","v":{"$error":"#VALUE!"}},{"$f":"'2. Conservation Measures'!EM40","v":{"$error":"#VALUE!"}},null,{"$f":"'2. Conservation Measures'!KP40","v":{"$error":"#N/A"}},{"$f":"'2. Conservation Measures'!KQ40","v":{"$error":"#N/A"}},{"$f":"'2. Conservation Measures'!KR40","v":{"$error":"#N/A"}},{"$f":"'2. Conservation Measures'!KS40","v":{"$error":"#N/A"}},{"$f":"'2. Conservation Measures'!KT40","v":{"$error":"#N/A"}},{"$f":"'2. Conservation Measures'!KU40","v":{"$error":"#N/A"}},{"$f":"'2. Conservation Measures'!KV40","v":{"$error":"#N/A"}},{"$f":"'2. Conservation Measures'!KW40","v":{"$error":"#N/A"}},{"$f":"'2. Conservation Measures'!KX40","v":{"$error":"#N/A"}},{"$f":"'2. Conservation Measures'!KY40","v":{"$error":"#N/A"}},{"$f":"'2. Conservation Measures'!KZ40","v":{"$error":"#N/A"}},{"$f":"'2. Conservation Measures'!LA40","v":{"$error":"#N/A"}},{"$f":"'2. Conservation Measures'!LB40","v":{"$error":"#N/A"}},{"$f":"'2. Conservation Measures'!LC40","v":{"$error":"#N/A"}},{"$f":"'2. Conservation Measures'!LD40","v":{"$error":"#N/A"}},{"$f":"'2. Conservation Measures'!LE40","v":{"$error":"#N/A"}},{"$f":"'2. Conservation Measures'!LF40","v":{"$error":"#N/A"}},{"$f":"'2. Conservation Measures'!LG40","v":{"$error":"#N/A"}},{"$f":"'2. Conservation Measures'!LH40","v":{"$error":"#N/A"}},{"$f":"'2. Conservation Measures'!LI40","v":{"$error":"#N/A"}},{"$f":"'2. Conservation Measures'!LJ40","v":{"$error":"#N/A"}},{"$f":"'2. Conservation Measures'!LK40","v":{"$error":"#N/A"}},{"$f":"'2. Conservation Measures'!LL40","v":{"$error":"#N/A"}},{"$f":"'2. Conservation Measures'!LM40","v":{"$error":"#N/A"}},{"$f":"'2. Conservation Measures'!LN40","v":{"$error":"#N/A"}},{"$f":"'2. Conservation Measures'!LO40","v":{"$error":"#N/A"}},{"$f":"'2. Conservation Measures'!LP40","v":{"$error":"#N/A"}},{"$f":"'2. Conservation Measures'!LQ40","v":{"$error":"#N/A"}},{"$f":"'2. Conservation Measures'!LR40","v":{"$error":"#N/A"}},{"$f":"'2. Conservation Measures'!LS40","v":{"$error":"#N/A"}},{"$f":"'2. Conservation Measures'!LT40","v":{"$error":"#N/A"}},{"$f":"'2. Conservation Measures'!LU40","v":{"$error":"#N/A"}},{"$f":"'2. Conservation Measures'!LV40","v":{"$error":"#N/A"}},{"$f":"'2. Conservation Measures'!LW40","v":{"$error":"#N/A"}},{"$f":"'2. Conservation Measures'!LX40","v":{"$error":"#N/A"}},{"$f":"'2. Conservation Measures'!LY40","v":{"$error":"#N/A"}},{"$f":"'2. Conservation Measures'!LZ40","v":{"$error":"#N/A"}},{"$f":"'2. Conservation Measures'!MA40","v":{"$error":"#N/A"}},{"$f":"'2. Conservation Measures'!MB40","v":{"$error":"#N/A"}},{"$f":"'2. Conservation Measures'!MC40","v":{"$error":"#N/A"}},{"$f":"'2. Conservation Measures'!MD40","v":{"$error":"#N/A"}},{"$f":"'2. Conservation Measures'!ME40","v":{"$error":"#N/A"}},{"$f":"'2. Conservation Measures'!MF40","v":{"$error":"#N/A"}},{"$f":"'2. Conservation Measures'!MG40","v":{"$error":"#N/A"}},{"$f":"'2. Conservation Measures'!MH40","v":{"$error":"#N/A"}},{"$f":"'2. Conservation Measures'!MI40","v":{"$error":"#N/A"}},{"$f":"'2. Conservation Measures'!MJ40","v":{"$error":"#N/A"}},{"$f":"'2. Conservation Measures'!MK40","v":{"$error":"#N/A"}},{"$f":"'2. Conservation Measures'!ML40","v":{"$error":"#N/A"}},{"$f":"'2. Conservation Measures'!MM40","v":{"$error":"#N/A"}},{"$f":"'2. Conservation Measures'!MN40","v":{"$error":"#N/A"}},null,{"$f":"'2. Conservation Measures'!EP40","v":{"$error":"#N/A"}},{"$f":"'2. Conservation Measures'!EQ40","v":{"$error":"#N/A"}},{"$f":"'2. Conservation Measures'!ER40","v":{"$error":"#N/A"}},{"$f":"'2. Conservation Measures'!ES40","v":{"$error":"#N/A"}},{"$f":"'2. Conservation Measures'!ET40","v":{"$error":"#N/A"}},{"$f":"'2. Conservation Measures'!EU40","v":{"$error":"#N/A"}},{"$f":"'2. Conservation Measures'!EV40","v":{"$error":"#N/A"}},{"$f":"'2. Conservation Measures'!EW40","v":{"$error":"#N/A"}},{"$f":"'2. Conservation Measures'!EX40","v":{"$error":"#N/A"}},{"$f":"'2. Conservation Measures'!EY40","v":{"$error":"#N/A"}},{"$f":"'2. Conservation Measures'!EZ40","v":{"$error":"#N/A"}},{"$f":"'2. Conservation Measures'!FA40","v":{"$error":"#N/A"}},{"$f":"'2. Conservation Measures'!FB40","v":{"$error":"#N/A"}},{"$f":"'2. Conservation Measures'!FC40","v":{"$error":"#N/A"}},{"$f":"'2. Conservation Measures'!FD40","v":{"$error":"#N/A"}},{"$f":"'2. Conservation Measures'!FE40","v":{"$error":"#N/A"}},{"$f":"'2. Conservation Measures'!FF40","v":{"$error":"#N/A"}},{"$f":"'2. Conservation Measures'!FG40","v":{"$error":"#N/A"}},{"$f":"'2. Conservation Measures'!FH40","v":{"$error":"#N/A"}},{"$f":"'2. Conservation Measures'!FI40","v":{"$error":"#N/A"}},{"$f":"'2. Conservation Measures'!FJ40","v":{"$error":"#N/A"}},{"$f":"'2. Conservation Measures'!FK40","v":{"$error":"#N/A"}},{"$f":"'2. Conservation Measures'!FL40","v":{"$error":"#N/A"}},{"$f":"'2. Conservation Measures'!FM40","v":{"$error":"#N/A"}},{"$f":"'2. Conservation Measures'!FN40","v":{"$error":"#N/A"}},{"$f":"'2. Conservation Measures'!FO40","v":{"$error":"#N/A"}},{"$f":"'2. Conservation Measures'!FP40","v":{"$error":"#N/A"}},{"$f":"'2. Conservation Measures'!FQ40","v":{"$error":"#N/A"}},{"$f":"'2. Conservation Measures'!FR40","v":{"$error":"#N/A"}},{"$f":"'2. Conservation Measures'!FS40","v":{"$error":"#N/A"}},{"$f":"'2. Conservation Measures'!FT40","v":{"$error":"#N/A"}},{"$f":"'2. Conservation Measures'!FU40","v":{"$error":"#N/A"}},{"$f":"'2. Conservation Measures'!FV40","v":{"$error":"#N/A"}},{"$f":"'2. Conservation Measures'!FW40","v":{"$error":"#N/A"}},{"$f":"'2. Conservation Measures'!FX40","v":{"$error":"#N/A"}},{"$f":"'2. Conservation Measures'!FY40","v":{"$error":"#N/A"}},{"$f":"'2. Conservation Measures'!FZ40","v":{"$error":"#N/A"}},{"$f":"'2. Conservation Measures'!GA40","v":{"$error":"#N/A"}},{"$f":"'2. Conservation Measures'!GB40","v":{"$error":"#N/A"}},{"$f":"'2. Conservation Measures'!GC40","v":{"$error":"#N/A"}},{"$f":"'2. Conservation Measures'!GD40","v":{"$error":"#N/A"}},{"$f":"'2. Conservation Measures'!GE40","v":{"$error":"#N/A"}},{"$f":"'2. Conservation Measures'!GF40","v":{"$error":"#N/A"}},{"$f":"'2. Conservation Measures'!GG40","v":{"$error":"#N/A"}},{"$f":"'2. Conservation Measures'!GH40","v":{"$error":"#N/A"}},{"$f":"'2. Conservation Measures'!GI40","v":{"$error":"#N/A"}},{"$f":"'2. Conservation Measures'!GJ40","v":{"$error":"#N/A"}},{"$f":"'2. Conservation Measures'!GK40","v":{"$error":"#N/A"}},{"$f":"'2. Conservation Measures'!GL40","v":{"$error":"#N/A"}},{"$f":"'2. Conservation Measures'!GM40","v":{"$error":"#N/A"}},{"$f":"'2. Conservation Measures'!GN40","v":{"$error":"#N/A"}},null,{"$f":"'2. Conservation Measures'!GP40","v":{"$error":"#N/A"}},{"$f":"'2. Conservation Measures'!GQ40","v":{"$error":"#N/A"}},{"$f":"'2. Conservation Measures'!GR40","v":{"$error":"#N/A"}},{"$f":"'2. Conservation Measures'!GS40","v":{"$error":"#N/A"}},{"$f":"'2. Conservation Measures'!GT40","v":{"$error":"#N/A"}},{"$f":"'2. Conservation Measures'!GU40","v":{"$error":"#N/A"}},{"$f":"'2. Conservation Measures'!GV40","v":{"$error":"#N/A"}},{"$f":"'2. Conservation Measures'!GW40","v":{"$error":"#N/A"}},{"$f":"'2. Conservation Measures'!GX40","v":{"$error":"#N/A"}},{"$f":"'2. Conservation Measures'!GY40","v":{"$error":"#N/A"}},{"$f":"'2. Conservation Measures'!GZ40","v":{"$error":"#N/A"}},{"$f":"'2. Conservation Measures'!HA40","v":{"$error":"#N/A"}},{"$f":"'2. Conservation Measures'!HB40","v":{"$error":"#N/A"}},{"$f":"'2. Conservation Measures'!HC40","v":{"$error":"#N/A"}},{"$f":"'2. Conservation Measures'!HD40","v":{"$error":"#N/A"}},{"$f":"'2. Conservation Measures'!HE40","v":{"$error":"#N/A"}},{"$f":"'2. Conservation Measures'!HF40","v":{"$error":"#N/A"}},{"$f":"'2. Conservation Measures'!HG40","v":{"$error":"#N/A"}},{"$f":"'2. Conservation Measures'!HH40","v":{"$error":"#N/A"}},{"$f":"'2. Conservation Measures'!HI40","v":{"$error":"#N/A"}},{"$f":"'2. Conservation Measures'!HJ40","v":{"$error":"#N/A"}},{"$f":"'2. Conservation Measures'!HK40","v":{"$error":"#N/A"}},{"$f":"'2. Conservation Measures'!HL40","v":{"$error":"#N/A"}},{"$f":"'2. Conservation Measures'!HM40","v":{"$error":"#N/A"}},{"$f":"'2. Conservation Measures'!HN40","v":{"$error":"#N/A"}},{"$f":"'2. Conservation Measures'!HO40","v":{"$error":"#N/A"}},{"$f":"'2. Conservation Measures'!HP40","v":{"$error":"#N/A"}},{"$f":"'2. Conservation Measures'!HQ40","v":{"$error":"#N/A"}},{"$f":"'2. Conservation Measures'!HR40","v":{"$error":"#N/A"}},{"$f":"'2. Conservation Measures'!HS40","v":{"$error":"#N/A"}},{"$f":"'2. Conservation Measures'!HT40","v":{"$error":"#N/A"}},{"$f":"'2. Conservation Measures'!HU40","v":{"$error":"#N/A"}},{"$f":"'2. Conservation Measures'!HV40","v":{"$error":"#N/A"}},{"$f":"'2. Conservation Measures'!HW40","v":{"$error":"#N/A"}},{"$f":"'2. Conservation Measures'!HX40","v":{"$error":"#N/A"}},{"$f":"'2. Conservation Measures'!HY40","v":{"$error":"#N/A"}},{"$f":"'2. Conservation Measures'!HZ40","v":{"$error":"#N/A"}},{"$f":"'2. Conservation Measures'!IA40","v":{"$error":"#N/A"}},{"$f":"'2. Conservation Measures'!IB40","v":{"$error":"#N/A"}},{"$f":"'2. Conservation Measures'!IC40","v":{"$error":"#N/A"}},{"$f":"'2. Conservation Measures'!ID40","v":{"$error":"#N/A"}},{"$f":"'2. Conservation Measures'!IE40","v":{"$error":"#N/A"}},{"$f":"'2. Conservation Measures'!IF40","v":{"$error":"#N/A"}},{"$f":"'2. Conservation Measures'!IG40","v":{"$error":"#N/A"}},{"$f":"'2. Conservation Measures'!IH40","v":{"$error":"#N/A"}},{"$f":"'2. Conservation Measures'!II40","v":{"$error":"#N/A"}},{"$f":"'2. Conservation Measures'!IJ40","v":{"$error":"#N/A"}},{"$f":"'2. Conservation Measures'!IK40","v":{"$error":"#N/A"}},{"$f":"'2. Conservation Measures'!IL40","v":{"$error":"#N/A"}},{"$f":"'2. Conservation Measures'!IM40","v":{"$error":"#N/A"}},{"$f":"'2. Conservation Measures'!IN40","v":{"$error":"#N/A"}},null,{"$f":"'2. Conservation Measures'!IP40","v":{"$error":"#VALUE!"}},{"$f":"'2. Conservation Measures'!IQ40","v":{"$error":"#VALUE!"}},{"$f":"'2. Conservation Measures'!IR40","v":{"$error":"#VALUE!"}},{"$f":"'2. Conservation Measures'!IS40","v":{"$error":"#VALUE!"}},{"$f":"'2. Conservation Measures'!IT40","v":{"$error":"#VALUE!"}},{"$f":"'2. Conservation Measures'!IU40","v":{"$error":"#VALUE!"}},{"$f":"'2. Conservation Measures'!IV40","v":{"$error":"#VALUE!"}},{"$f":"'2. Conservation Measures'!IW40","v":{"$error":"#VALUE!"}},{"$f":"'2. Conservation Measures'!IX40","v":{"$error":"#VALUE!"}},{"$f":"'2. Conservation Measures'!IY40","v":{"$error":"#VALUE!"}},{"$f":"'2. Conservation Measures'!IZ40","v":{"$error":"#VALUE!"}},{"$f":"'2. Conservation Measures'!JA40","v":{"$error":"#VALUE!"}},{"$f":"'2. Conservation Measures'!JB40","v":{"$error":"#VALUE!"}},{"$f":"'2. Conservation Measures'!JC40","v":{"$error":"#VALUE!"}},{"$f":"'2. Conservation Measures'!JD40","v":{"$error":"#VALUE!"}},{"$f":"'2. Conservation Measures'!JE40","v":{"$error":"#VALUE!"}},{"$f":"'2. Conservation Measures'!JF40","v":{"$error":"#VALUE!"}},{"$f":"'2. Conservation Measures'!JG40","v":{"$error":"#VALUE!"}},{"$f":"'2. Conservation Measures'!JH40","v":{"$error":"#VALUE!"}},{"$f":"'2. Conservation Measures'!JI40","v":{"$error":"#VALUE!"}},{"$f":"'2. Conservation Measures'!JJ40","v":{"$error":"#VALUE!"}},{"$f":"'2. Conservation Measures'!JK40","v":{"$error":"#VALUE!"}},{"$f":"'2. Conservation Measures'!JL40","v":{"$error":"#VALUE!"}},{"$f":"'2. Conservation Measures'!JM40","v":{"$error":"#VALUE!"}},{"$f":"'2. Conservation Measures'!JN40","v":{"$error":"#VALUE!"}},{"$f":"'2. Conservation Measures'!JO40","v":{"$error":"#VALUE!"}},{"$f":"'2. Conservation Measures'!JP40","v":{"$error":"#VALUE!"}},{"$f":"'2. Conservation Measures'!JQ40","v":{"$error":"#VALUE!"}},{"$f":"'2. Conservation Measures'!JR40","v":{"$error":"#VALUE!"}},{"$f":"'2. Conservation Measures'!JS40","v":{"$error":"#VALUE!"}},{"$f":"'2. Conservation Measures'!JT40","v":{"$error":"#VALUE!"}},{"$f":"'2. Conservation Measures'!JU40","v":{"$error":"#VALUE!"}},{"$f":"'2. Conservation Measures'!JV40","v":{"$error":"#VALUE!"}},{"$f":"'2. Conservation Measures'!JW40","v":{"$error":"#VALUE!"}},{"$f":"'2. Conservation Measures'!JX40","v":{"$error":"#VALUE!"}},{"$f":"'2. Conservation Measures'!JY40","v":{"$error":"#VALUE!"}},{"$f":"'2. Conservation Measures'!JZ40","v":{"$error":"#VALUE!"}},{"$f":"'2. Conservation Measures'!KA40","v":{"$error":"#VALUE!"}},{"$f":"'2. Conservation Measures'!KB40","v":{"$error":"#VALUE!"}},{"$f":"'2. Conservation Measures'!KC40","v":{"$error":"#VALUE!"}},{"$f":"'2. Conservation Measures'!KD40","v":{"$error":"#VALUE!"}},{"$f":"'2. Conservation Measures'!KE40","v":{"$error":"#VALUE!"}},{"$f":"'2. Conservation Measures'!KF40","v":{"$error":"#VALUE!"}},{"$f":"'2. Conservation Measures'!KG40","v":{"$error":"#VALUE!"}},{"$f":"'2. Conservation Measures'!KH40","v":{"$error":"#VALUE!"}},{"$f":"'2. Conservation Measures'!KI40","v":{"$error":"#VALUE!"}},{"$f":"'2. Conservation Measures'!KJ40","v":{"$error":"#VALUE!"}},{"$f":"'2. Conservation Measures'!KK40","v":{"$error":"#VALUE!"}},{"$f":"'2. Conservation Measures'!KL40","v":{"$error":"#VALUE!"}},{"$f":"'2. Conservation Measures'!KM40","v":{"$error":"#VALUE!"}},{"$f":"'2. Conservation Measures'!KN40","v":{"$error":"#VALUE!"}}]
[null,{"$f":"'2. Conservation Measures'!B41","v":"PRE-MF-06"},{"$f":"'2. Conservation Measures'!C41","v":{"$error":"#N/A"}},{"$f":"'2. Conservation Measures'!D41","v":"N"},null,{"$f":"'2. Conservation Measures'!AA41","v":{"$error":"#N/A"}},null,{"$f":"'2. Conservation Measures'!AO41","v":0},{"$f":"'2. Conservation Measures'!AP41","v":0},{"$f":"'2. Conservation Measures'!AQ41","v":0},{"$f":"'2. Conservation Measures'!AR41","v":0},{"$f":"'2. Conservation Measures'!AS41","v":0},{"$f":"'2. Conservation Measures'!AT41","v":0},{"$f":"'2. Conservation Measures'!AU41","v":0},{"$f":"'2. Conservation Measures'!AV41","v":0},{"$f":"'2. Conservation Measures'!AW41","v":0},{"$f":"'2. Conservation Measures'!AX41","v":0},{"$f":"'2. Conservation Measures'!AY41","v":0},{"$f":"'2. Conservation Measures'!AZ41","v":0},{"$f":"'2. Conservation Measures'!BA41","v":0},{"$f":"'2. Conservation Measures'!BB41","v":0},{"$f":"'2. Conservation Measures'!BC41","v":0},{"$f":"'2. Conservation Measures'!BD41","v":0},{"$f":"'2. Conservation Measures'!BE41","v":0},{"$f":"'2. Conservation Measures'!BF41","v":0},{"$f":"'2. Conservation Measures'!BG41","v":0},{"$f":"'2. Conservation Measures'!BH41","v":0},{"$f":"'2. Conservation Measures'!BI41","v":0},{"$f":"'2. Conservation Measures'!BJ41","v":0},{"$f":"'2. Conservation Measures'!BK41","v":0},{"$f":"'2. Conservation Measures'!BL41","v":0},{"$f":"'2. Conservation Measures'!BM41","v":0},{"$f":"'2. Conservation Measures'!BN41","v":0},{"$f":"'2. Conservation Measures'!BO41","v":0},{"$f":"'2. Conservation Measures'!BP41","v":0},{"$f":"'2. Conservation Measures'!BQ41","v":0},{"$f":"'2. Conservation Measures'!BR41","v":0},{"$f":"'2. Conservation Measures'!BS41","v":0},{"$f":"'2. Conservation Measures'!BT41","v":0},{"$f":"'2. Conservation Measures'!BU41","v":0},{"$f":"'2. Conservation Measures'!BV41","v":0},{"$f":"'2. Conservation Measures'!BW41","v":0},{"$f":"'2. Conservation Measures'!BX41","v":0},{"$f":"'2. Conservation Measures'!BY41","v":0},{"$f":"'2. Conservation Measures'!BZ41","v":0},{"$f":"'2. Conservation Measures'!CA41","v":0},{"$f":"'2. Conservation Measures'!CB41","v":0},{"$f":"'2. Conservation Measures'!CC41","v":0},{"$f":"'2. Conservation Measures'!CD41","v":0},{"$f":"'2. Conservation Measures'!CE41","v":0},{"$f":"'2. Conservation Measures'!CF41","v":0},{"$f":"'2. Conservation Measures'!CG41","v":0},{"$f":"'2. Conservation Measures'!CH41","v":0},{"$f":"'2. Conservation Measures'!CI41","v":0},{"$f":"'2. Conservation Measures'!CJ41","v":0},{"$f":"'2. Conservation Measures'!CK41","v":0},{"$f":"'2. Conservation Measures'!CL41","v":0},{"$f":"'2. Conservation Measures'!CM41","v":0},null,{"$f":"'2. Conservation Measures'!CO41","v":{"$error":"#VALUE!"}},{"$f":"'2. Conservation Measures'!CP41","v":{"$error":"#VALUE!"}},{"$f":"'2. Conservation Measures'!CQ41","v":{"$error":"#VALUE!"}},{"$f":"'2. Conservation Measures'!CR41","v":{"$error":"#VALUE!"}},{"$f":"'2. Conservation Measures'!CS41","v":{"$error":"#VALUE!"}},{"$f":"'2. Conservation Measures'!CT41","v":{"$error":"#VALUE!"}},{"$f":"'2. Conservation Measures'!CU41","v":{"$error":"#VALUE!"}},{"$f":"'2. Conservation Measures'!CV41","v":{"$error":"#VALUE!"}},{"$f":"'2. Conservation Measures'!CW41","v":{"$error":"#VALUE!"}},{"$f":"'2. Conservation Measures'!CX41","v":{"$error":"#VALUE!"}},{"$f":"'2. Conservation Measures'!CY41","v":{"$error":"#VALUE!"}},{"$f":"'2. Conservation Measures'!CZ41","v":{"$error":"#VALUE!"}},{"$f":"'2. Conservation Measures'!DA41","v":{"$error":"#VALUE!"}},{"$f":"'2. Conservation Measures'!DB41","v":{"$error":"#VALUE!"}},{"$f":"'2. Conservation Measures'!DC41","v":{"$error":"#VALUE!"}},{"$f":"'2. Conservation Measures'!DD41","v":{"$error":"#VALUE!"}},{"$f":"'2. Conservation Measures'!DE41","v":{"$error":"#VALUE!"}},{"$f":"'2. Conservation Measures'!DF41","v":{"$error":"#VALUE!"}},{"$f":"'2. Conservation Measures'!DG41","v":{"$error":"#VALUE!"}},{"$f":"'2. Conservation Measures'!DH41","v":{"$error":"#VALUE!"}},{"$f":"'2. Conservation Measures'!DI41","v":{"$error":"#VALUE!"}},{"$f":"'2. Conservation Measures'!DJ41","v":{"$error":"#VALUE!"}},{"$f":"'2. Conservation Measures'!DK41","v":{"$error":"#VALUE!"}},{"$f":"'2. Conservation Measures'!DL41","v":{"$error":"#VALUE!"}},{"$f":"'2. Conservation Measures'!DM41","v":{"$error":"#VALUE!"}},{"$f":"'2. Conservation Measures'!DN41","v":{"$error":"#VALUE!"}},{"$f":"'2. Conservation Measures'!DO41","v":{"$error":"#VALUE!"}},{"$f":"'2. Conservation Measures'!DP41","v":{"$error":"#VALUE!"}},{"$f":"'2. Conservation Measures'!DQ41","v":{"$error":"#VALUE!"}},{"$f":"'2. Conservation Measures'!DR41","v":{"$error":"#VALUE!"}},{"$f":"'2. Conservation Measures'!DS41","v":{"$error":"#VALUE!"}},{"$f":"'2. Conservation Measures'!DT41","v":{"$error":"#VALUE!"}},{"$f":"'2. Conservation Measures'!DU41","v":{"$error":"#VALUE!"}},{"$f":"'2. Conservation Measures'!DV41","v":{"$error":"#VALUE!"}},{"$f":"'2. Conservation Measures'!DW41","v":{"$error":"#VALUE!"}},{"$f":"'2. Conservation Measures'!DX41","v":{"$error":"#VALUE!"}},{"$f":"'2. Conservation Measures'!DY41","v":{"$error":"#VALUE!"}},{"$f":"'2. Conservation Measures'!DZ41","v":{"$error":"#VALUE!"}},{"$f":"'2. Conservation Measures'!EA41","v":{"$error":"#VALUE!"}},{"$f":"'2. Conservation Measures'!EB41","v":{"$error":"#VALUE!"}},{"$f":"'2. Conservation Measures'!EC41","v":{"$error":"#VALUE!"}},{"$f":"'2. Conservation Measures'!ED41","v":{"$error":"#VALUE!"}},{"$f":"'2. Conservation Measures'!EE41","v":{"$error":"#VALUE!"}},{"$f":"'2. Conservation Measures'!EF41","v":{"$error":"#VALUE!"}},{"$f":"'2. Conservation Measures'!EG41","v":{"$error":"#VALUE!"}},{"$f":"'2. Conservation Measures'!EH41","v":{"$error":"#VALUE!"}},{"$f":"'2. Conservation Measures'!EI41","v":{"$error":"#VALUE!"}},{"$f":"'2. Conservation Measures'!EJ41","v":{"$error":"#VALUE!"}},{"$f":"'2. Conservation Measures'!EK41","v":{"$error":"#VALUE!"}},{"$f":"'2. Conservation Measures'!EL41","v":{"$error":"#VALUE!"}},{"$f":"'2. Conservation Measures'!EM41","v":{"$error":"#VALUE!"}},null,{"$f":"'2. Conservation Measures'!KP41","v":{"$error":"#N/A"}},{"$f":"'2. Conservation Measures'!KQ41","v":{"$error":"#N/A"}},{"$f":"'2. Conservation Measures'!KR41","v":{"$error":"#N/A"}},{"$f":"'2. Conservation Measures'!KS41","v":{"$error":"#N/A"}},{"$f":"'2. Conservation Measures'!KT41","v":{"$error":"#N/A"}},{"$f":"'2. Conservation Measures'!KU41","v":{"$error":"#N/A"}},{"$f":"'2. Conservation Measures'!KV41","v":{"$error":"#N/A"}},{"$f":"'2. Conservation Measures'!KW41","v":{"$error":"#N/A"}},{"$f":"'2. Conservation Measures'!KX41","v":{"$error":"#N/A"}},{"$f":"'2. Conservation Measures'!KY41","v":{"$error":"#N/A"}},{"$f":"'2. Conservation Measures'!KZ41","v":{"$error":"#N/A"}},{"$f":"'2. Conservation Measures'!LA41","v":{"$error":"#N/A"}},{"$f":"'2. Conservation Measures'!LB41","v":{"$error":"#N/A"}},{"$f":"'2. Conservation Measures'!LC41","v":{"$error":"#N/A"}},{"$f":"'2. Conservation Measures'!LD41","v":{"$error":"#N/A"}},{"$f":"'2. Conservation Measures'!LE41","v":{"$error":"#N/A"}},{"$f":"'2. Conservation Measures'!LF41","v":{"$error":"#N/A"}},{"$f":"'2. Conservation Measures'!LG41","v":{"$error":"#N/A"}},{"$f":"'2. Conservation Measures'!LH41","v":{"$error":"#N/A"}},{"$f":"'2. Conservation Measures'!LI41","v":{"$error":"#N/A"}},{"$f":"'2. Conservation Measures'!LJ41","v":{"$error":"#N/A"}},{"$f":"'2. Conservation Measures'!LK41","v":{"$error":"#N/A"}},{"$f":"'2. Conservation Measures'!LL41","v":{"$error":"#N/A"}},{"$f":"'2. Conservation Measures'!LM41","v":{"$error":"#N/A"}},{"$f":"'2. Conservation Measures'!LN41","v":{"$error":"#N/A"}},{"$f":"'2. Conservation Measures'!LO41","v":{"$error":"#N/A"}},{"$f":"'2. Conservation Measures'!LP41","v":{"$error":"#N/A"}},{"$f":"'2. Conservation Measures'!LQ41","v":{"$error":"#N/A"}},{"$f":"'2. Conservation Measures'!LR41","v":{"$error":"#N/A"}},{"$f":"'2. Conservation Measures'!LS41","v":{"$error":"#N/A"}},{"$f":"'2. Conservation Measures'!LT41","v":{"$error":"#N/A"}},{"$f":"'2. Conservation Measures'!LU41","v":{"$error":"#N/A"}},{"$f":"'2. Conservation Measures'!LV41","v":{"$error":"#N/A"}},{"$f":"'2. Conservation Measures'!LW41","v":{"$error":"#N/A"}},{"$f":"'2. Conservation Measures'!LX41","v":{"$error":"#N/A"}},{"$f":"'2. Conservation Measures'!LY41","v":{"$error":"#N/A"}},{"$f":"'2. Conservation Measures'!LZ41","v":{"$error":"#N/A"}},{"$f":"'2. Conservation Measures'!MA41","v":{"$error":"#N/A"}},{"$f":"'2. Conservation Measures'!MB41","v":{"$error":"#N/A"}},{"$f":"'2. Conservation Measures'!MC41","v":{"$error":"#N/A"}},{"$f":"'2. Conservation Measures'!MD41","v":{"$error":"#N/A"}},{"$f":"'2. Conservation Measures'!ME41","v":{"$error":"#N/A"}},{"$f":"'2. Conservation Measures'!MF41","v":{"$error":"#N/A"}},{"$f":"'2. Conservation Measures'!MG41","v":{"$error":"#N/A"}},{"$f":"'2. Conservation Measures'!MH41","v":{"$error":"#N/A"}},{"$f":"'2. Conservation Measures'!MI41","v":{"$error":"#N/A"}},{"$f":"'2. Conservation Measures'!MJ41","v":{"$error":"#N/A"}},{"$f":"'2. Conservation Measures'!MK41","v":{"$error":"#N/A"}},{"$f":"'2. Conservation Measures'!ML41","v":{"$error":"#N/A"}},{"$f":"'2. Conservation Measures'!MM41","v":{"$error":"#N/A"}},{"$f":"'2. Conservation Measures'!MN41","v":{"$error":"#N/A"}},null,{"$f":"'2. Conservation Measures'!EP41","v":{"$error":"#N/A"}},{"$f":"'2. Conservation Measures'!EQ41","v":{"$error":"#N/A"}},{"$f":"'2. Conservation Measures'!ER41","v":{"$error":"#N/A"}},{"$f":"'2. Conservation Measures'!ES41","v":{"$error":"#N/A"}},{"$f":"'2. Conservation Measures'!ET41","v":{"$error":"#N/A"}},{"$f":"'2. Conservation Measures'!EU41","v":{"$error":"#N/A"}},{"$f":"'2. Conservation Measures'!EV41","v":{"$error":"#N/A"}},{"$f":"'2. Conservation Measures'!EW41","v":{"$error":"#N/A"}},{"$f":"'2. Conservation Measures'!EX41","v":{"$error":"#N/A"}},{"$f":"'2. Conservation Measures'!EY41","v":{"$error":"#N/A"}},{"$f":"'2. Conservation Measures'!EZ41","v":{"$error":"#N/A"}},{"$f":"'2. Conservation Measures'!FA41","v":{"$error":"#N/A"}},{"$f":"'2. Conservation Measures'!FB41","v":{"$error":"#N/A"}},{"$f":"'2. Conservation Measures'!FC41","v":{"$error":"#N/A"}},{"$f":"'2. Conservation Measures'!FD41","v":{"$error":"#N/A"}},{"$f":"'2. Conservation Measures'!FE41","v":{"$error":"#N/A"}},{"$f":"'2. Conservation Measures'!FF41","v":{"$error":"#N/A"}},{"$f":"'2. Conservation Measures'!FG41","v":{"$error":"#N/A"}},{"$f":"'2. Conservation Measures'!FH41","v":{"$error":"#N/A"}},{"$f":"'2. Conservation Measures'!FI41","v":{"$error":"#N/A"}},{"$f":"'2. Conservation Measures'!FJ41","v":{"$error":"#N/A"}},{"$f":"'2. Conservation Measures'!FK41","v":{"$error":"#N/A"}},{"$f":"'2. Conservation Measures'!FL41","v":{"$error":"#N/A"}},{"$f":"'2. Conservation Measures'!FM41","v":{"$error":"#N/A"}},{"$f":"'2. Conservation Measures'!FN41","v":{"$error":"#N/A"}},{"$f":"'2. Conservation Measures'!FO41","v":{"$error":"#N/A"}},{"$f":"'2. Conservation Measures'!FP41","v":{"$error":"#N/A"}},{"$f":"'2. Conservation Measures'!FQ41","v":{"$error":"#N/A"}},{"$f":"'2. Conservation Measures'!FR41","v":{"$error":"#N/A"}},{"$f":"'2. Conservation Measures'!FS41","v":{"$error":"#N/A"}},{"$f":"'2. Conservation Measures'!FT41","v":{"$error":"#N/A"}},{"$f":"'2. Conservation Measures'!FU41","v":{"$error":"#N/A"}},{"$f":"'2. Conservation Measures'!FV41","v":{"$error":"#N/A"}},{"$f":"'2. Conservation Measures'!FW41","v":{"$error":"#N/A"}},{"$f":"'2. Conservation Measures'!FX41","v":{"$error":"#N/A"}},{"$f":"'2. Conservation Measures'!FY41","v":{"$error":"#N/A"}},{"$f":"'2. Conservation Measures'!FZ41","v":{"$error":"#N/A"}},{"$f":"'2. Conservation Measures'!GA41","v":{"$error":"#N/A"}},{"$f":"'2. Conservation Measures'!GB41","v":{"$error":"#N/A"}},{"$f":"'2. Conservation Measures'!GC41","v":{"$error":"#N/A"}},{"$f":"'2. Conservation Measures'!GD41","v":{"$error":"#N/A"}},{"$f":"'2. Conservation Measures'!GE41","v":{"$error":"#N/A"}},{"$f":"'2. Conservation Measures'!GF41","v":{"$error":"#N/A"}},{"$f":"'2. Conservation Measures'!GG41","v":{"$error":"#N/A"}},{"$f":"'2. Conservation Measures'!GH41","v":{"$error":"#N/A"}},{"$f":"'2. Conservation Measures'!GI41","v":{"$error":"#N/A"}},{"$f":"'2. Conservation Measures'!GJ41","v":{"$error":"#N/A"}},{"$f":"'2. Conservation Measures'!GK41","v":{"$error":"#N/A"}},{"$f":"'2. Conservation Measures'!GL41","v":{"$error":"#N/A"}},{"$f":"'2. Conservation Measures'!GM41","v":{"$error":"#N/A"}},{"$f":"'2. Conservation Measures'!GN41","v":{"$error":"#N/A"}},null,{"$f":"'2. Conservation Measures'!GP41","v":{"$error":"#N/A"}},{"$f":"'2. Conservation Measures'!GQ41","v":{"$error":"#N/A"}},{"$f":"'2. Conservation Measures'!GR41","v":{"$error":"#N/A"}},{"$f":"'2. Conservation Measures'!GS41","v":{"$error":"#N/A"}},{"$f":"'2. Conservation Measures'!GT41","v":{"$error":"#N/A"}},{"$f":"'2. Conservation Measures'!GU41","v":{"$error":"#N/A"}},{"$f":"'2. Conservation Measures'!GV41","v":{"$error":"#N/A"}},{"$f":"'2. Conservation Measures'!GW41","v":{"$error":"#N/A"}},{"$f":"'2. Conservation Measures'!GX41","v":{"$error":"#N/A"}},{"$f":"'2. Conservation Measures'!GY41","v":{"$error":"#N/A"}},{"$f":"'2. Conservation Measures'!GZ41","v":{"$error":"#N/A"}},{"$f":"'2. Conservation Measures'!HA41","v":{"$error":"#N/A"}},{"$f":"'2. Conservation Measures'!HB41","v":{"$error":"#N/A"}},{"$f":"'2. Conservation Measures'!HC41","v":{"$error":"#N/A"}},{"$f":"'2. Conservation Measures'!HD41","v":{"$error":"#N/A"}},{"$f":"'2. Conservation Measures'!HE41","v":{"$error":"#N/A"}},{"$f":"'2. Conservation Measures'!HF41","v":{"$error":"#N/A"}},{"$f":"'2. Conservation Measures'!HG41","v":{"$error":"#N/A"}},{"$f":"'2. Conservation Measures'!HH41","v":{"$error":"#N/A"}},{"$f":"'2. Conservation Measures'!HI41","v":{"$error":"#N/A"}},{"$f":"'2. Conservation Measures'!HJ41","v":{"$error":"#N/A"}},{"$f":"'2. Conservation Measures'!HK41","v":{"$error":"#N/A"}},{"$f":"'2. Conservation Measures'!HL41","v":{"$error":"#N/A"}},{"$f":"'2. Conservation Measures'!HM41","v":{"$error":"#N/A"}},{"$f":"'2. Conservation Measures'!HN41","v":{"$error":"#N/A"}},{"$f":"'2. Conservation Measures'!HO41","v":{"$error":"#N/A"}},{"$f":"'2. Conservation Measures'!HP41","v":{"$error":"#N/A"}},{"$f":"'2. Conservation Measures'!HQ41","v":{"$error":"#N/A"}},{"$f":"'2. Conservation Measures'!HR41","v":{"$error":"#N/A"}},{"$f":"'2. Conservation Measures'!HS41","v":{"$error":"#N/A"}},{"$f":"'2. Conservation Measures'!HT41","v":{"$error":"#N/A"}},{"$f":"'2. Conservation Measures'!HU41","v":{"$error":"#N/A"}},{"$f":"'2. Conservation Measures'!HV41","v":{"$error":"#N/A"}},{"$f":"'2. Conservation Measures'!HW41","v":{"$error":"#N/A"}},{"$f":"'2. Conservation Measures'!HX41","v":{"$error":"#N/A"}},{"$f":"'2. Conservation Measures'!HY41","v":{"$error":"#N/A"}},{"$f":"'2. Conservation Measures'!HZ41","v":{"$error":"#N/A"}},{"$f":"'2. Conservation Measures'!IA41","v":{"$error":"#N/A"}},{"$f":"'2. Conservation Measures'!IB41","v":{"$error":"#N/A"}},{"$f":"'2. Conservation Measures'!IC41","v":{"$error":"#N/A"}},{"$f":"'2. Conservation Measures'!ID41","v":{"$error":"#N/A"}},{"$f":"'2. Conservation Measures'!IE41","v":{"$error":"#N/A"}},{"$f":"'2. Conservation Measures'!IF41","v":{"$error":"#N/A"}},{"$f":"'2. Conservation Measures'!IG41","v":{"$error":"#N/A"}},{"$f":"'2. Conservation Measures'!IH41","v":{"$error":"#N/A"}},{"$f":"'2. Conservation Measures'!II41","v":{"$error":"#N/A"}},{"$f":"'2. Conservation Measures'!IJ41","v":{"$error":"#N/A"}},{"$f":"'2. Conservation Measures'!IK41","v":{"$error":"#N/A"}},{"$f":"'2. Conservation Measures'!IL41","v":{"$error":"#N/A"}},{"$f":"'2. Conservation Measures'!IM41","v":{"$error":"#N/A"}},{"$f":"'2. Conservation Measures'!IN41","v":{"$error":"#N/A"}},null,{"$f":"'2. Conservation Measures'!IP41","v":{"$error":"#VALUE!"}},{"$f":"'2. Conservation Measures'!IQ41","v":{"$error":"#VALUE!"}},{"$f":"'2. Conservation Measures'!IR41","v":{"$error":"#VALUE!"}},{"$f":"'2. Conservation Measures'!IS41","v":{"$error":"#VALUE!"}},{"$f":"'2. Conservation Measures'!IT41","v":{"$error":"#VALUE!"}},{"$f":"'2. Conservation Measures'!IU41","v":{"$error":"#VALUE!"}},{"$f":"'2. Conservation Measures'!IV41","v":{"$error":"#VALUE!"}},{"$f":"'2. Conservation Measures'!IW41","v":{"$error":"#VALUE!"}},{"$f":"'2. Conservation Measures'!IX41","v":{"$error":"#VALUE!"}},{"$f":"'2. Conservation Measures'!IY41","v":{"$error":"#VALUE!"}},{"$f":"'2. Conservation Measures'!IZ41","v":{"$error":"#VALUE!"}},{"$f":"'2. Conservation Measures'!JA41","v":{"$error":"#VALUE!"}},{"$f":"'2. Conservation Measures'!JB41","v":{"$error":"#VALUE!"}},{"$f":"'2. Conservation Measures'!JC41","v":{"$error":"#VALUE!"}},{"$f":"'2. Conservation Measures'!JD41","v":{"$error":"#VALUE!"}},{"$f":"'2. Conservation Measures'!JE41","v":{"$error":"#VALUE!"}},{"$f":"'2. Conservation Measures'!JF41","v":{"$error":"#VALUE!"}},{"$f":"'2. Conservation Measures'!JG41","v":{"$error":"#VALUE!"}},{"$f":"'2. Conservation Measures'!JH41","v":{"$error":"#VALUE!"}},{"$f":"'2. Conservation Measures'!JI41","v":{"$error":"#VALUE!"}},{"$f":"'2. Conservation Measures'!JJ41","v":{"$error":"#VALUE!"}},{"$f":"'2. Conservation Measures'!JK41","v":{"$error":"#VALUE!"}},{"$f":"'2. Conservation Measures'!JL41","v":{"$error":"#VALUE!"}},{"$f":"'2. Conservation Measures'!JM41","v":{"$error":"#VALUE!"}},{"$f":"'2. Conservation Measures'!JN41","v":{"$error":"#VALUE!"}},{"$f":"'2. Conservation Measures'!JO41","v":{"$error":"#VALUE!"}},{"$f":"'2. Conservation Measures'!JP41","v":{"$error":"#VALUE!"}},{"$f":"'2. Conservation Measures'!JQ41","v":{"$error":"#VALUE!"}},{"$f":"'2. Conservation Measures'!JR41","v":{"$error":"#VALUE!"}},{"$f":"'2. Conservation Measures'!JS41","v":{"$error":"#VALUE!"}},{"$f":"'2. Conservation Measures'!JT41","v":{"$error":"#VALUE!"}},{"$f":"'2. Conservation Measures'!JU41","v":{"$error":"#VALUE!"}},{"$f":"'2. Conservation Measures'!JV41","v":{"$error":"#VALUE!"}},{"$f":"'2. Conservation Measures'!JW41","v":{"$error":"#VALUE!"}},{"$f":"'2. Conservation Measures'!JX41","v":{"$error":"#VALUE!"}},{"$f":"'2. Conservation Measures'!JY41","v":{"$error":"#VALUE!"}},{"$f":"'2. Conservation Measures'!JZ41","v":{"$error":"#VALUE!"}},{"$f":"'2. Conservation Measures'!KA41","v":{"$error":"#VALUE!"}},{"$f":"'2. Conservation Measures'!KB41","v":{"$error":"#VALUE!"}},{"$f":"'2. Conservation Measures'!KC41","v":{"$error":"#VALUE!"}},{"$f":"'2. Conservation Measures'!KD41","v":{"$error":"#VALUE!"}},{"$f":"'2. Conservation Measures'!KE41","v":{"$error":"#VALUE!"}},{"$f":"'2. Conservation Measures'!KF41","v":{"$error":"#VALUE!"}},{"$f":"'2. Conservation Measures'!KG41","v":{"$error":"#VALUE!"}},{"$f":"'2. Conservation Measures'!KH41","v":{"$error":"#VALUE!"}},{"$f":"'2. Conservation Measures'!KI41","v":{"$error":"#VALUE!"}},{"$f":"'2. Conservation Measures'!KJ41","v":{"$error":"#VALUE!"}},{"$f":"'2. Conservation Measures'!KK41","v":{"$error":"#VALUE!"}},{"$f":"'2. Conservation Measures'!KL41","v":{"$error":"#VALUE!"}},{"$f":"'2. Conservation Measures'!KM41","v":{"$error":"#VALUE!"}},{"$f":"'2. Conservation Measures'!KN41","v":{"$error":"#VALUE!"}}]
[null,{"$f":"'2. Conservation Measures'!B42","v":"PRE-MF-07"},{"$f":"'2. Conservation Measures'!C42","v":{"$error":"#N/A"}},{"$f":"'2. Conservation Measures'!D42","v":"N"},null,{"$f":"'2. Conservation Measures'!AA42","v":{"$error":"#N/A"}},null,{"$f":"'2. Conservation Measures'!AO42","v":0},{"$f":"'2. Conservation Measures'!AP42","v":0},{"$f":"'2. Conservation Measures'!AQ42","v":0},{"$f":"'2. Conservation Measures'!AR42","v":0},{"$f":"'2. Conservation Measures'!AS42","v":0},{"$f":"'2. Conservation Measures'!AT42","v":0},{"$f":"'2. Conservation Measures'!AU42","v":0},{"$f":"'2. Conservation Measures'!AV42","v":0},{"$f":"'2. Conservation Measures'!AW42","v":0},{"$f":"'2. Conservation Measures'!AX42","v":0},{"$f":"'2. Conservation Measures'!AY42","v":0},{"$f":"'2. Conservation Measures'!AZ42","v":0},{"$f":"'2. Conservation Measures'!BA42","v":0},{"$f":"'2. Conservation Measures'!BB42","v":0},{"$f":"'2. Conservation Measures'!BC42","v":0},{"$f":"'2. Conservation Measures'!BD42","v":0},{"$f":"'2. Conservation Measures'!BE42","v":0},{"$f":"'2. Conservation Measures'!BF42","v":0},{"$f":"'2. Conservation Measures'!BG42","v":0},{"$f":"'2. Conservation Measures'!BH42","v":0},{"$f":"'2. Conservation Measures'!BI42","v":0},{"$f":"'2. Conservation Measures'!BJ42","v":0},{"$f":"'2. Conservation Measures'!BK42","v":0},{"$f":"'2. Conservation Measures'!BL42","v":0},{"$f":"'2. Conservation Measures'!BM42","v":0},{"$f":"'2. Conservation Measures'!BN42","v":0},{"$f":"'2. Conservation Measures'!BO42","v":0},{"$f":"'2. Conservation Measures'!BP42","v":0},{"$f":"'2. Conservation Measures'!BQ42","v":0},{"$f":"'2. Conservation Measures'!BR42","v":0},{"$f":"'2. Conservation Measures'!BS42","v":0},{"$f":"'2. Conservation Measures'!BT42","v":0},{"$f":"'2. Conservation Measures'!BU42","v":0},{"$f":"'2. Conservation Measures'!BV42","v":0},{"$f":"'2. Conservation Measures'!BW42","v":0},{"$f":"'2. Conservation Measures'!BX42","v":0},{"$f":"'2. Conservation Measures'!BY42","v":0},{"$f":"'2. Conservation Measures'!BZ42","v":0},{"$f":"'2. Conservation Measures'!CA42","v":0},{"$f":"'2. Conservation Measures'!CB42","v":0},{"$f":"'2. Conservation Measures'!CC42","v":0},{"$f":"'2. Conservation Measures'!CD42","v":0},{"$f":"'2. Conservation Measures'!CE42","v":0},{"$f":"'2. Conservation Measures'!CF42","v":0},{"$f":"'2. Conservation Measures'!CG42","v":0},{"$f":"'2. Conservation Measures'!CH42","v":0},{"$f":"'2. Conservation Measures'!CI42","v":0},{"$f":"'2. Conservation Measures'!CJ42","v":0},{"$f":"'2. Conservation Measures'!CK42","v":0},{"$f":"'2. Conservation Measures'!CL42","v":0},{"$f":"'2. Conservation Measures'!CM42","v":0},null,{"$f":"'2. Conservation Measures'!CO42","v":{"$error":"#VALUE!"}},{"$f":"'2. Conservation Measures'!CP42","v":{"$error":"#VALUE!"}},{"$f":"'2. Conservation Measures'!CQ42","v":{"$error":"#VALUE!"}},{"$f":"'2. Conservation Measures'!CR42","v":{"$error":"#VALUE!"}},{"$f":"'2. Conservation Measures'!CS42","v":{"$error":"#VALUE!"}},{"$f":"'2. Conservation Measures'!CT42","v":{"$error":"#VALUE!"}},{"$f":"'2. Conservation Measures'!CU42","v":{"$error":"#VALUE!"}},{"$f":"'2. Conservation Measures'!CV42","v":{"$error":"#VALUE!"}},{"$f":"'2. Conservation Measures'!CW42","v":{"$error":"#VALUE!"}},{"$f":"'2. Conservation Measures'!CX42","v":{"$error":"#VALUE!"}},{"$f":"'2. Conservation Measures'!CY42","v":{"$error":"#VALUE!"}},{"$f":"'2. Conservation Measures'!CZ42","v":{"$error":"#VALUE!"}},{"$f":"'2. Conservation Measures'!DA42","v":{"$error":"#VALUE!"}},{"$f":"'2. Conservation Measures'!DB42","v":{"$error":"#VALUE!"}},{"$f":"'2. Conservation Measures'!DC42","v":{"$error":"#VALUE!"}},{"$f":"'2. Conservation Measures'!DD42","v":{"$error":"#VALUE!"}},{"$f":"'2. Conservation Measures'!DE42","v":{"$error":"#VALUE!"}},{"$f":"'2. Conservation Measures'!DF42","v":{"$error":"#VALUE!"}},{"$f":"'2. Conservation Measures'!DG42","v":{"$error":"#VALUE!"}},{"$f":"'2. Conservation Measures'!DH42","v":{"$error":"#VALUE!"}},{"$f":"'2. Conservation Measures'!DI42","v":{"$error":"#VALUE!"}},{"$f":"'2. Conservation Measures'!DJ42","v":{"$error":"#VALUE!"}},{"$f":"'2. Conservation Measures'!DK42","v":{"$error":"#VALUE!"}},{"$f":"'2. Conservation Measures'!DL42","v":{"$error":"#VALUE!"}},{"$f":"'2. Conservation Measures'!DM42","v":{"$error":"#VALUE!"}},{"$f":"'2. Conservation Measures'!DN42","v":{"$error":"#VALUE!"}},{"$f":"'2. Conservation Measures'!DO42","v":{"$error":"#VALUE!"}},{"$f":"'2. Conservation Measures'!DP42","v":{"$error":"#VALUE!"}},{"$f":"'2. Conservation Measures'!DQ42","v":{"$error":"#VALUE!"}},{"$f":"'2. Conservation Measures'!DR42","v":{"$error":"#VALUE!"}},{"$f":"'2. Conservation Measures'!DS42","v":{"$error":"#VALUE!"}},{"$f":"'2. Conservation Measures'!DT42","v":{"$error":"#VALUE!"}},{"$f":"'2. Conservation Measures'!DU42","v":{"$error":"#VALUE!"}},{"$f":"'2. Conservation Measures'!DV42","v":{"$error":"#VALUE!"}},{"$f":"'2. Conservation Measures'!DW42","v":{"$error":"#VALUE!"}},{"$f":"'2. Conservation Measures'!DX42","v":{"$error":"#VALUE!"}},{"$f":"'2. Conservation Measures'!DY42","v":{"$error":"#VALUE!"}},{"$f":"'2. Conservation Measures'!DZ42","v":{"$error":"#VALUE!"}},{"$f":"'2. Conservation Measures'!EA42","v":{"$error":"#VALUE!"}},{"$f":"'2. Conservation Measures'!EB42","v":{"$error":"#VALUE!"}},{"$f":"'2. Conservation Measures'!EC42","v":{"$error":"#VALUE!"}},{"$f":"'2. Conservation Measures'!ED42","v":{"$error":"#VALUE!"}},{"$f":"'2. Conservation Measures'!EE42","v":{"$error":"#VALUE!"}},{"$f":"'2. Conservation Measures'!EF42","v":{"$error":"#VALUE!"}},{"$f":"'2. Conservation Measures'!EG42","v":{"$error":"#VALUE!"}},{"$f":"'2. Conservation Measures'!EH42","v":{"$error":"#VALUE!"}},{"$f":"'2. Conservation Measures'!EI42","v":{"$error":"#VALUE!"}},{"$f":"'2. Conservation Measures'!EJ42","v":{"$error":"#VALUE!"}},{"$f":"'2. Conservation Measures'!EK42","v":{"$error":"#VALUE!"}},{"$f":"'2. Conservation Measures'!EL42","v":{"$error":"#VALUE!"}},{"$f":"'2. Conservation Measures'!EM42","v":{"$error":"#VALUE!"}},null,{"$f":"'2. Conservation Measures'!KP42","v":{"$error":"#N/A"}},{"$f":"'2. Conservation Measures'!KQ42","v":{"$error":"#N/A"}},{"$f":"'2. Conservation Measures'!KR42","v":{"$error":"#N/A"}},{"$f":"'2. Conservation Measures'!KS42","v":{"$error":"#N/A"}},{"$f":"'2. Conservation Measures'!KT42","v":{"$error":"#N/A"}},{"$f":"'2. Conservation Measures'!KU42","v":{"$error":"#N/A"}},{"$f":"'2. Conservation Measures'!KV42","v":{"$error":"#N/A"}},{"$f":"'2. Conservation Measures'!KW42","v":{"$error":"#N/A"}},{"$f":"'2. Conservation Measures'!KX42","v":{"$error":"#N/A"}},{"$f":"'2. Conservation Measures'!KY42","v":{"$error":"#N/A"}},{"$f":"'2. Conservation Measures'!KZ42","v":{"$error":"#N/A"}},{"$f":"'2. Conservation Measures'!LA42","v":{"$error":"#N/A"}},{"$f":"'2. Conservation Measures'!LB42","v":{"$error":"#N/A"}},{"$f":"'2. Conservation Measures'!LC42","v":{"$error":"#N/A"}},{"$f":"'2. Conservation Measures'!LD42","v":{"$error":"#N/A"}},{"$f":"'2. Conservation Measures'!LE42","v":{"$error":"#N/A"}},{"$f":"'2. Conservation Measures'!LF42","v":{"$error":"#N/A"}},{"$f":"'2. Conservation Measures'!LG42","v":{"$error":"#N/A"}},{"$f":"'2. Conservation Measures'!LH42","v":{"$error":"#N/A"}},{"$f":"'2. Conservation Measures'!LI42","v":{"$error":"#N/A"}},{"$f":"'2. Conservation Measures'!LJ42","v":{"$error":"#N/A"}},{"$f":"'2. Conservation Measures'!LK42","v":{"$error":"#N/A"}},{"$f":"'2. Conservation Measures'!LL42","v":{"$error":"#N/A"}},{"$f":"'2. Conservation Measures'!LM42","v":{"$error":"#N/A"}},{"$f":"'2. Conservation Measures'!LN42","v":{"$error":"#N/A"}},{"$f":"'2. Conservation Measures'!LO42","v":{"$error":"#N/A"}},{"$f":"'2. Conservation Measures'!LP42","v":{"$error":"#N/A"}},{"$f":"'2. Conservation Measures'!LQ42","v":{"$error":"#N/A"}},{"$f":"'2. Conservation Measures'!LR42","v":{"$error":"#N/A"}},{"$f":"'2. Conservation Measures'!LS42","v":{"$error":"#N/A"}},{"$f":"'2. Conservation Measures'!LT42","v":{"$error":"#N/A"}},{"$f":"'2. Conservation Measures'!LU42","v":{"$error":"#N/A"}},{"$f":"'2. Conservation Measures'!LV42","v":{"$error":"#N/A"}},{"$f":"'2. Conservation Measures'!LW42","v":{"$error":"#N/A"}},{"$f":"'2. Conservation Measures'!LX42","v":{"$error":"#N/A"}},{"$f":"'2. Conservation Measures'!LY42","v":{"$error":"#N/A"}},{"$f":"'2. Conservation Measures'!LZ42","v":{"$error":"#N/A"}},{"$f":"'2. Conservation Measures'!MA42","v":{"$error":"#N/A"}},{"$f":"'2. Conservation Measures'!MB42","v":{"$error":"#N/A"}},{"$f":"'2. Conservation Measures'!MC42","v":{"$error":"#N/A"}},{"$f":"'2. Conservation Measures'!MD42","v":{"$error":"#N/A"}},{"$f":"'2. Conservation Measures'!ME42","v":{"$error":"#N/A"}},{"$f":"'2. Conservation Measures'!MF42","v":{"$error":"#N/A"}},{"$f":"'2. Conservation Measures'!MG42","v":{"$error":"#N/A"}},{"$f":"'2. Conservation Measures'!MH42","v":{"$error":"#N/A"}},{"$f":"'2. Conservation Measures'!MI42","v":{"$error":"#N/A"}},{"$f":"'2. Conservation Measures'!MJ42","v":{"$error":"#N/A"}},{"$f":"'2. Conservation Measures'!MK42","v":{"$error":"#N/A"}},{"$f":"'2. Conservation Measures'!ML42","v":{"$error":"#N/A"}},{"$f":"'2. Conservation Measures'!MM42","v":{"$error":"#N/A"}},{"$f":"'2. Conservation Measures'!MN42","v":{"$error":"#N/A"}},null,{"$f":"'2. Conservation Measures'!EP42","v":{"$error":"#N/A"}},{"$f":"'2. Conservation Measures'!EQ42","v":{"$error":"#N/A"}},{"$f":"'2. Conservation Measures'!ER42","v":{"$error":"#N/A"}},{"$f":"'2. Conservation Measures'!ES42","v":{"$error":"#N/A"}},{"$f":"'2. Conservation Measures'!ET42","v":{"$error":"#N/A"}},{"$f":"'2. Conservation Measures'!EU42","v":{"$error":"#N/A"}},{"$f":"'2. Conservation Measures'!EV42","v":{"$error":"#N/A"}},{"$f":"'2. Conservation Measures'!EW42","v":{"$error":"#N/A"}},{"$f":"'2. Conservation Measures'!EX42","v":{"$error":"#N/A"}},{"$f":"'2. Conservation Measures'!EY42","v":{"$error":"#N/A"}},{"$f":"'2. Conservation Measures'!EZ42","v":{"$error":"#N/A"}},{"$f":"'2. Conservation Measures'!FA42","v":{"$error":"#N/A"}},{"$f":"'2. Conservation Measures'!FB42","v":{"$error":"#N/A"}},{"$f":"'2. Conservation Measures'!FC42","v":{"$error":"#N/A"}},{"$f":"'2. Conservation Measures'!FD42","v":{"$error":"#N/A"}},{"$f":"'2. Conservation Measures'!FE42","v":{"$error":"#N/A"}},{"$f":"'2. Conservation Measures'!FF42","v":{"$error":"#N/A"}},{"$f":"'2. Conservation Measures'!FG42","v":{"$error":"#N/A"}},{"$f":"'2. Conservation Measures'!FH42","v":{"$error":"#N/A"}},{"$f":"'2. Conservation Measures'!FI42","v":{"$error":"#N/A"}},{"$f":"'2. Conservation Measures'!FJ42","v":{"$error":"#N/A"}},{"$f":"'2. Conservation Measures'!FK42","v":{"$error":"#N/A"}},{"$f":"'2. Conservation Measures'!FL42","v":{"$error":"#N/A"}},{"$f":"'2. Conservation Measures'!FM42","v":{"$error":"#N/A"}},{"$f":"'2. Conservation Measures'!FN42","v":{"$error":"#N/A"}},{"$f":"'2. Conservation Measures'!FO42","v":{"$error":"#N/A"}},{"$f":"'2. Conservation Measures'!FP42","v":{"$error":"#N/A"}},{"$f":"'2. Conservation Measures'!FQ42","v":{"$error":"#N/A"}},{"$f":"'2. Conservation Measures'!FR42","v":{"$error":"#N/A"}},{"$f":"'2. Conservation Measures'!FS42","v":{"$error":"#N/A"}},{"$f":"'2. Conservation Measures'!FT42","v":{"$error":"#N/A"}},{"$f":"'2. Conservation Measures'!FU42","v":{"$error":"#N/A"}},{"$f":"'2. Conservation Measures'!FV42","v":{"$error":"#N/A"}},{"$f":"'2. Conservation Measures'!FW42","v":{"$error":"#N/A"}},{"$f":"'2. Conservation Measures'!FX42","v":{"$error":"#N/A"}},{"$f":"'2. Conservation Measures'!FY42","v":{"$error":"#N/A"}},{"$f":"'2. Conservation Measures'!FZ42","v":{"$error":"#N/A"}},{"$f":"'2. Conservation Measures'!GA42","v":{"$error":"#N/A"}},{"$f":"'2. Conservation Measures'!GB42","v":{"$error":"#N/A"}},{"$f":"'2. Conservation Measures'!GC42","v":{"$error":"#N/A"}},{"$f":"'2. Conservation Measures'!GD42","v":{"$error":"#N/A"}},{"$f":"'2. Conservation Measures'!GE42","v":{"$error":"#N/A"}},{"$f":"'2. Conservation Measures'!GF42","v":{"$error":"#N/A"}},{"$f":"'2. Conservation Measures'!GG42","v":{"$error":"#N/A"}},{"$f":"'2. Conservation Measures'!GH42","v":{"$error":"#N/A"}},{"$f":"'2. Conservation Measures'!GI42","v":{"$error":"#N/A"}},{"$f":"'2. Conservation Measures'!GJ42","v":{"$error":"#N/A"}},{"$f":"'2. Conservation Measures'!GK42","v":{"$error":"#N/A"}},{"$f":"'2. Conservation Measures'!GL42","v":{"$error":"#N/A"}},{"$f":"'2. Conservation Measures'!GM42","v":{"$error":"#N/A"}},{"$f":"'2. Conservation Measures'!GN42","v":{"$error":"#N/A"}},null,{"$f":"'2. Conservation Measures'!GP42","v":{"$error":"#N/A"}},{"$f":"'2. Conservation Measures'!GQ42","v":{"$error":"#N/A"}},{"$f":"'2. Conservation Measures'!GR42","v":{"$error":"#N/A"}},{"$f":"'2. Conservation Measures'!GS42","v":{"$error":"#N/A"}},{"$f":"'2. Conservation Measures'!GT42","v":{"$error":"#N/A"}},{"$f":"'2. Conservation Measures'!GU42","v":{"$error":"#N/A"}},{"$f":"'2. Conservation Measures'!GV42","v":{"$error":"#N/A"}},{"$f":"'2. Conservation Measures'!GW42","v":{"$error":"#N/A"}},{"$f":"'2. Conservation Measures'!GX42","v":{"$error":"#N/A"}},{"$f":"'2. Conservation Measures'!GY42","v":{"$error":"#N/A"}},{"$f":"'2. Conservation Measures'!GZ42","v":{"$error":"#N/A"}},{"$f":"'2. Conservation Measures'!HA42","v":{"$error":"#N/A"}},{"$f":"'2. Conservation Measures'!HB42","v":{"$error":"#N/A"}},{"$f":"'2. Conservation Measures'!HC42","v":{"$error":"#N/A"}},{"$f":"'2. Conservation Measures'!HD42","v":{"$error":"#N/A"}},{"$f":"'2. Conservation Measures'!HE42","v":{"$error":"#N/A"}},{"$f":"'2. Conservation Measures'!HF42","v":{"$error":"#N/A"}},{"$f":"'2. Conservation Measures'!HG42","v":{"$error":"#N/A"}},{"$f":"'2. Conservation Measures'!HH42","v":{"$error":"#N/A"}},{"$f":"'2. Conservation Measures'!HI42","v":{"$error":"#N/A"}},{"$f":"'2. Conservation Measures'!HJ42","v":{"$error":"#N/A"}},{"$f":"'2. Conservation Measures'!HK42","v":{"$error":"#N/A"}},{"$f":"'2. Conservation Measures'!HL42","v":{"$error":"#N/A"}},{"$f":"'2. Conservation Measures'!HM42","v":{"$error":"#N/A"}},{"$f":"'2. Conservation Measures'!HN42","v":{"$error":"#N/A"}},{"$f":"'2. Conservation Measures'!HO42","v":{"$error":"#N/A"}},{"$f":"'2. Conservation Measures'!HP42","v":{"$error":"#N/A"}},{"$f":"'2. Conservation Measures'!HQ42","v":{"$error":"#N/A"}},{"$f":"'2. Conservation Measures'!HR42","v":{"$error":"#N/A"}},{"$f":"'2. Conservation Measures'!HS42","v":{"$error":"#N/A"}},{"$f":"'2. Conservation Measures'!HT42","v":{"$error":"#N/A"}},{"$f":"'2. Conservation Measures'!HU42","v":{"$error":"#N/A"}},{"$f":"'2. Conservation Measures'!HV42","v":{"$error":"#N/A"}},{"$f":"'2. Conservation Measures'!HW42","v":{"$error":"#N/A"}},{"$f":"'2. Conservation Measures'!HX42","v":{"$error":"#N/A"}},{"$f":"'2. Conservation Measures'!HY42","v":{"$error":"#N/A"}},{"$f":"'2. Conservation Measures'!HZ42","v":{"$error":"#N/A"}},{"$f":"'2. Conservation Measures'!IA42","v":{"$error":"#N/A"}},{"$f":"'2. Conservation Measures'!IB42","v":{"$error":"#N/A"}},{"$f":"'2. Conservation Measures'!IC42","v":{"$error":"#N/A"}},{"$f":"'2. Conservation Measures'!ID42","v":{"$error":"#N/A"}},{"$f":"'2. Conservation Measures'!IE42","v":{"$error":"#N/A"}},{"$f":"'2. Conservation Measures'!IF42","v":{"$error":"#N/A"}},{"$f":"'2. Conservation Measures'!IG42","v":{"$error":"#N/A"}},{"$f":"'2. Conservation Measures'!IH42","v":{"$error":"#N/A"}},{"$f":"'2. Conservation Measures'!II42","v":{"$error":"#N/A"}},{"$f":"'2. Conservation Measures'!IJ42","v":{"$error":"#N/A"}},{"$f":"'2. Conservation Measures'!IK42","v":{"$error":"#N/A"}},{"$f":"'2. Conservation Measures'!IL42","v":{"$error":"#N/A"}},{"$f":"'2. Conservation Measures'!IM42","v":{"$error":"#N/A"}},{"$f":"'2. Conservation Measures'!IN42","v":{"$error":"#N/A"}},null,{"$f":"'2. Conservation Measures'!IP42","v":{"$error":"#VALUE!"}},{"$f":"'2. Conservation Measures'!IQ42","v":{"$error":"#VALUE!"}},{"$f":"'2. Conservation Measures'!IR42","v":{"$error":"#VALUE!"}},{"$f":"'2. Conservation Measures'!IS42","v":{"$error":"#VALUE!"}},{"$f":"'2. Conservation Measures'!IT42","v":{"$error":"#VALUE!"}},{"$f":"'2. Conservation Measures'!IU42","v":{"$error":"#VALUE!"}},{"$f":"'2. Conservation Measures'!IV42","v":{"$error":"#VALUE!"}},{"$f":"'2. Conservation Measures'!IW42","v":{"$error":"#VALUE!"}},{"$f":"'2. Conservation Measures'!IX42","v":{"$error":"#VALUE!"}},{"$f":"'2. Conservation Measures'!IY42","v":{"$error":"#VALUE!"}},{"$f":"'2. Conservation Measures'!IZ42","v":{"$error":"#VALUE!"}},{"$f":"'2. Conservation Measures'!JA42","v":{"$error":"#VALUE!"}},{"$f":"'2. Conservation Measures'!JB42","v":{"$error":"#VALUE!"}},{"$f":"'2. Conservation Measures'!JC42","v":{"$error":"#VALUE!"}},{"$f":"'2. Conservation Measures'!JD42","v":{"$error":"#VALUE!"}},{"$f":"'2. Conservation Measures'!JE42","v":{"$error":"#VALUE!"}},{"$f":"'2. Conservation Measures'!JF42","v":{"$error":"#VALUE!"}},{"$f":"'2. Conservation Measures'!JG42","v":{"$error":"#VALUE!"}},{"$f":"'2. Conservation Measures'!JH42","v":{"$error":"#VALUE!"}},{"$f":"'2. Conservation Measures'!JI42","v":{"$error":"#VALUE!"}},{"$f":"'2. Conservation Measures'!JJ42","v":{"$error":"#VALUE!"}},{"$f":"'2. Conservation Measures'!JK42","v":{"$error":"#VALUE!"}},{"$f":"'2. Conservation Measures'!JL42","v":{"$error":"#VALUE!"}},{"$f":"'2. Conservation Measures'!JM42","v":{"$error":"#VALUE!"}},{"$f":"'2. Conservation Measures'!JN42","v":{"$error":"#VALUE!"}},{"$f":"'2. Conservation Measures'!JO42","v":{"$error":"#VALUE!"}},{"$f":"'2. Conservation Measures'!JP42","v":{"$error":"#VALUE!"}},{"$f":"'2. Conservation Measures'!JQ42","v":{"$error":"#VALUE!"}},{"$f":"'2. Conservation Measures'!JR42","v":{"$error":"#VALUE!"}},{"$f":"'2. Conservation Measures'!JS42","v":{"$error":"#VALUE!"}},{"$f":"'2. Conservation Measures'!JT42","v":{"$error":"#VALUE!"}},{"$f":"'2. Conservation Measures'!JU42","v":{"$error":"#VALUE!"}},{"$f":"'2. Conservation Measures'!JV42","v":{"$error":"#VALUE!"}},{"$f":"'2. Conservation Measures'!JW42","v":{"$error":"#VALUE!"}},{"$f":"'2. Conservation Measures'!JX42","v":{"$error":"#VALUE!"}},{"$f":"'2. Conservation Measures'!JY42","v":{"$error":"#VALUE!"}},{"$f":"'2. Conservation Measures'!JZ42","v":{"$error":"#VALUE!"}},{"$f":"'2. Conservation Measures'!KA42","v":{"$error":"#VALUE!"}},{"$f":"'2. Conservation Measures'!KB42","v":{"$error":"#VALUE!"}},{"$f":"'2. Conservation Measures'!KC42","v":{"$error":"#VALUE!"}},{"$f":"'2. Conservation Measures'!KD42","v":{"$error":"#VALUE!"}},{"$f":"'2. Conservation Measures'!KE42","v":{"$error":"#VALUE!"}},{"$f":"'2. Conservation Measures'!KF42","v":{"$error":"#VALUE!"}},{"$f":"'2. Conservation Measures'!KG42","v":{"$error":"#VALUE!"}},{"$f":"'2. Conservation Measures'!KH42","v":{"$error":"#VALUE!"}},{"$f":"'2. Conservation Measures'!KI42","v":{"$error":"#VALUE!"}},{"$f":"'2. Conservation Measures'!KJ42","v":{"$error":"#VALUE!"}},{"$f":"'2. Conservation Measures'!KK42","v":{"$error":"#VALUE!"}},{"$f":"'2. Conservation Measures'!KL42","v":{"$error":"#VALUE!"}},{"$f":"'2. Conservation Measures'!KM42","v":{"$error":"#VALUE!"}},{"$f":"'2. Conservation Measures'!KN42","v":{"$error":"#VALUE!"}}]
[null,{"$f":"'2. Conservation Measures'!B43","v":"PRE-MF-08"},{"$f":"'2. Conservation Measures'!C43","v":{"$error":"#N/A"}},{"$f":"'2. Conservation Measures'!D43","v":"N"},null,{"$f":"'2. Conservation Measures'!AA43","v":{"$error":"#N/A"}},null,{"$f":"'2. Conservation Measures'!AO43","v":0},{"$f":"'2. Conservation Measures'!AP43","v":0},{"$f":"'2. Conservation Measures'!AQ43","v":0},{"$f":"'2. Conservation Measures'!AR43","v":0},{"$f":"'2. Conservation Measures'!AS43","v":0},{"$f":"'2. Conservation Measures'!AT43","v":0},{"$f":"'2. Conservation Measures'!AU43","v":0},{"$f":"'2. Conservation Measures'!AV43","v":0},{"$f":"'2. Conservation Measures'!AW43","v":0},{"$f":"'2. Conservation Measures'!AX43","v":0},{"$f":"'2. Conservation Measures'!AY43","v":0},{"$f":"'2. Conservation Measures'!AZ43","v":0},{"$f":"'2. Conservation Measures'!BA43","v":0},{"$f":"'2. Conservation Measures'!BB43","v":0},{"$f":"'2. Conservation Measures'!BC43","v":0},{"$f":"'2. Conservation Measures'!BD43","v":0},{"$f":"'2. Conservation Measures'!BE43","v":0},{"$f":"'2. Conservation Measures'!BF43","v":0},{"$f":"'2. Conservation Measures'!BG43","v":0},{"$f":"'2. Conservation Measures'!BH43","v":0},{"$f":"'2. Conservation Measures'!BI43","v":0},{"$f":"'2. Conservation Measures'!BJ43","v":0},{"$f":"'2. Conservation Measures'!BK43","v":0},{"$f":"'2. Conservation Measures'!BL43","v":0},{"$f":"'2. Conservation Measures'!BM43","v":0},{"$f":"'2. Conservation Measures'!BN43","v":0},{"$f":"'2. Conservation Measures'!BO43","v":0},{"$f":"'2. Conservation Measures'!BP43","v":0},{"$f":"'2. Conservation Measures'!BQ43","v":0},{"$f":"'2. Conservation Measures'!BR43","v":0},{"$f":"'2. Conservation Measures'!BS43","v":0},{"$f":"'2. Conservation Measures'!BT43","v":0},{"$f":"'2. Conservation Measures'!BU43","v":0},{"$f":"'2. Conservation Measures'!BV43","v":0},{"$f":"'2. Conservation Measures'!BW43","v":0},{"$f":"'2. Conservation Measures'!BX43","v":0},{"$f":"'2. Conservation Measures'!BY43","v":0},{"$f":"'2. Conservation Measures'!BZ43","v":0},{"$f":"'2. Conservation Measures'!CA43","v":0},{"$f":"'2. Conservation Measures'!CB43","v":0},{"$f":"'2. Conservation Measures'!CC43","v":0},{"$f":"'2. Conservation Measures'!CD43","v":0},{"$f":"'2. Conservation Measures'!CE43","v":0},{"$f":"'2. Conservation Measures'!CF43","v":0},{"$f":"'2. Conservation Measures'!CG43","v":0},{"$f":"'2. Conservation Measures'!CH43","v":0},{"$f":"'2. Conservation Measures'!CI43","v":0},{"$f":"'2. Conservation Measures'!CJ43","v":0},{"$f":"'2. Conservation Measures'!CK43","v":0},{"$f":"'2. Conservation Measures'!CL43","v":0},{"$f":"'2. Conservation Measures'!CM43","v":0},null,{"$f":"'2. Conservation Measures'!CO43","v":{"$error":"#VALUE!"}},{"$f":"'2. Conservation Measures'!CP43","v":{"$error":"#VALUE!"}},{"$f":"'2. Conservation Measures'!CQ43","v":{"$error":"#VALUE!"}},{"$f":"'2. Conservation Measures'!CR43","v":{"$error":"#VALUE!"}},{"$f":"'2. Conservation Measures'!CS43","v":{"$error":"#VALUE!"}},{"$f":"'2. Conservation Measures'!CT43","v":{"$error":"#VALUE!"}},{"$f":"'2. Conservation Measures'!CU43","v":{"$error":"#VALUE!"}},{"$f":"'2. Conservation Measures'!CV43","v":{"$error":"#VALUE!"}},{"$f":"'2. Conservation Measures'!CW43","v":{"$error":"#VALUE!"}},{"$f":"'2. Conservation Measures'!CX43","v":{"$error":"#VALUE!"}},{"$f":"'2. Conservation Measures'!CY43","v":{"$error":"#VALUE!"}},{"$f":"'2. Conservation Measures'!CZ43","v":{"$error":"#VALUE!"}},{"$f":"'2. Conservation Measures'!DA43","v":{"$error":"#VALUE!"}},{"$f":"'2. Conservation Measures'!DB43","v":{"$error":"#VALUE!"}},{"$f":"'2. Conservation Measures'!DC43","v":{"$error":"#VALUE!"}},{"$f":"'2. Conservation Measures'!DD43","v":{"$error":"#VALUE!"}},{"$f":"'2. Conservation Measures'!DE43","v":{"$error":"#VALUE!"}},{"$f":"'2. Conservation Measures'!DF43","v":{"$error":"#VALUE!"}},{"$f":"'2. Conservation Measures'!DG43","v":{"$error":"#VALUE!"}},{"$f":"'2. Conservation Measures'!DH43","v":{"$error":"#VALUE!"}},{"$f":"'2. Conservation Measures'!DI43","v":{"$error":"#VALUE!"}},{"$f":"'2. Conservation Measures'!DJ43","v":{"$error":"#VALUE!"}},{"$f":"'2. Conservation Measures'!DK43","v":{"$error":"#VALUE!"}},{"$f":"'2. Conservation Measures'!DL43","v":{"$error":"#VALUE!"}},{"$f":"'2. Conservation Measures'!DM43","v":{"$error":"#VALUE!"}},{"$f":"'2. Conservation Measures'!DN43","v":{"$error":"#VALUE!"}},{"$f":"'2. Conservation Measures'!DO43","v":{"$error":"#VALUE!"}},{"$f":"'2. Conservation Measures'!DP43","v":{"$error":"#VALUE!"}},{"$f":"'2. Conservation Measures'!DQ43","v":{"$error":"#VALUE!"}},{"$f":"'2. Conservation Measures'!DR43","v":{"$error":"#VALUE!"}},{"$f":"'2. Conservation Measures'!DS43","v":{"$error":"#VALUE!"}},{"$f":"'2. Conservation Measures'!DT43","v":{"$error":"#VALUE!"}},{"$f":"'2. Conservation Measures'!DU43","v":{"$error":"#VALUE!"}},{"$f":"'2. Conservation Measures'!DV43","v":{"$error":"#VALUE!"}},{"$f":"'2. Conservation Measures'!DW43","v":{"$error":"#VALUE!"}},{"$f":"'2. Conservation Measures'!DX43","v":{"$error":"#VALUE!"}},{"$f":"'2. Conservation Measures'!DY43","v":{"$error":"#VALUE!"}},{"$f":"'2. Conservation Measures'!DZ43","v":{"$error":"#VALUE!"}},{"$f":"'2. Conservation Measures'!EA43","v":{"$error":"#VALUE!"}},{"$f":"'2. Conservation Measures'!EB43","v":{"$error":"#VALUE!"}},{"$f":"'2. Conservation Measures'!EC43","v":{"$error":"#VALUE!"}},{"$f":"'2. Conservation Measures'!ED43","v":{"$error":"#VALUE!"}},{"$f":"'2. Conservation Measures'!EE43","v":{"$error":"#VALUE!"}},{"$f":"'2. Conservation Measures'!EF43","v":{"$error":"#VALUE!"}},{"$f":"'2. Conservation Measures'!EG43","v":{"$error":"#VALUE!"}},{"$f":"'2. Conservation Measures'!EH43","v":{"$error":"#VALUE!"}},{"$f":"'2. Conservation Measures'!EI43","v":{"$error":"#VALUE!"}},{"$f":"'2. Conservation Measures'!EJ43","v":{"$error":"#VALUE!"}},{"$f":"'2. Conservation Measures'!EK43","v":{"$error":"#VALUE!"}},{"$f":"'2. Conservation Measures'!EL43","v":{"$error":"#VALUE!"}},{"$f":"'2. Conservation Measures'!EM43","v":{"$error":"#VALUE!"}},null,{"$f":"'2. Conservation Measures'!KP43","v":{"$error":"#N/A"}},{"$f":"'2. Conservation Measures'!KQ43","v":{"$error":"#N/A"}},{"$f":"'2. Conservation Measures'!KR43","v":{"$error":"#N/A"}},{"$f":"'2. Conservation Measures'!KS43","v":{"$error":"#N/A"}},{"$f":"'2. Conservation Measures'!KT43","v":{"$error":"#N/A"}},{"$f":"'2. Conservation Measures'!KU43","v":{"$error":"#N/A"}},{"$f":"'2. Conservation Measures'!KV43","v":{"$error":"#N/A"}},{"$f":"'2. Conservation Measures'!KW43","v":{"$error":"#N/A"}},{"$f":"'2. Conservation Measures'!KX43","v":{"$error":"#N/A"}},{"$f":"'2. Conservation Measures'!KY43","v":{"$error":"#N/A"}},{"$f":"'2. Conservation Measures'!KZ43","v":{"$error":"#N/A"}},{"$f":"'2. Conservation Measures'!LA43","v":{"$error":"#N/A"}},{"$f":"'2. Conservation Measures'!LB43","v":{"$error":"#N/A"}},{"$f":"'2. Conservation Measures'!LC43","v":{"$error":"#N/A"}},{"$f":"'2. Conservation Measures'!LD43","v":{"$error":"#N/A"}},{"$f":"'2. Conservation Measures'!LE43","v":{"$error":"#N/A"}},{"$f":"'2. Conservation Measures'!LF43","v":{"$error":"#N/A"}},{"$f":"'2. Conservation Measures'!LG43","v":{"$error":"#N/A"}},{"$f":"'2. Conservation Measures'!LH43","v":{"$error":"#N/A"}},{"$f":"'2. Conservation Measures'!LI43","v":{"$error":"#N/A"}},{"$f":"'2. Conservation Measures'!LJ43","v":{"$error":"#N/A"}},{"$f":"'2. Conservation Measures'!LK43","v":{"$error":"#N/A"}},{"$f":"'2. Conservation Measures'!LL43","v":{"$error":"#N/A"}},{"$f":"'2. Conservation Measures'!LM43","v":{"$error":"#N/A"}},{"$f":"'2. Conservation Measures'!LN43","v":{"$error":"#N/A"}},{"$f":"'2. Conservation Measures'!LO43","v":{"$error":"#N/A"}},{"$f":"'2. Conservation Measures'!LP43","v":{"$error":"#N/A"}},{"$f":"'2. Conservation Measures'!LQ43","v":{"$error":"#N/A"}},{"$f":"'2. Conservation Measures'!LR43","v":{"$error":"#N/A"}},{"$f":"'2. Conservation Measures'!LS43","v":{"$error":"#N/A"}},{"$f":"'2. Conservation Measures'!LT43","v":{"$error":"#N/A"}},{"$f":"'2. Conservation Measures'!LU43","v":{"$error":"#N/A"}},{"$f":"'2. Conservation Measures'!LV43","v":{"$error":"#N/A"}},{"$f":"'2. Conservation Measures'!LW43","v":{"$error":"#N/A"}},{"$f":"'2. Conservation Measures'!LX43","v":{"$error":"#N/A"}},{"$f":"'2. Conservation Measures'!LY43","v":{"$error":"#N/A"}},{"$f":"'2. Conservation Measures'!LZ43","v":{"$error":"#N/A"}},{"$f":"'2. Conservation Measures'!MA43","v":{"$error":"#N/A"}},{"$f":"'2. Conservation Measures'!MB43","v":{"$error":"#N/A"}},{"$f":"'2. Conservation Measures'!MC43","v":{"$error":"#N/A"}},{"$f":"'2. Conservation Measures'!MD43","v":{"$error":"#N/A"}},{"$f":"'2. Conservation Measures'!ME43","v":{"$error":"#N/A"}},{"$f":"'2. Conservation Measures'!MF43","v":{"$error":"#N/A"}},{"$f":"'2. Conservation Measures'!MG43","v":{"$error":"#N/A"}},{"$f":"'2. Conservation Measures'!MH43","v":{"$error":"#N/A"}},{"$f":"'2. Conservation Measures'!MI43","v":{"$error":"#N/A"}},{"$f":"'2. Conservation Measures'!MJ43","v":{"$error":"#N/A"}},{"$f":"'2. Conservation Measures'!MK43","v":{"$error":"#N/A"}},{"$f":"'2. Conservation Measures'!ML43","v":{"$error":"#N/A"}},{"$f":"'2. Conservation Measures'!MM43","v":{"$error":"#N/A"}},{"$f":"'2. Conservation Measures'!MN43","v":{"$error":"#N/A"}},null,{"$f":"'2. Conservation Measures'!EP43","v":{"$error":"#N/A"}},{"$f":"'2. Conservation Measures'!EQ43","v":{"$error":"#N/A"}},{"$f":"'2. Conservation Measures'!ER43","v":{"$error":"#N/A"}},{"$f":"'2. Conservation Measures'!ES43","v":{"$error":"#N/A"}},{"$f":"'2. Conservation Measures'!ET43","v":{"$error":"#N/A"}},{"$f":"'2. Conservation Measures'!EU43","v":{"$error":"#N/A"}},{"$f":"'2. Conservation Measures'!EV43","v":{"$error":"#N/A"}},{"$f":"'2. Conservation Measures'!EW43","v":{"$error":"#N/A"}},{"$f":"'2. Conservation Measures'!EX43","v":{"$error":"#N/A"}},{"$f":"'2. Conservation Measures'!EY43","v":{"$error":"#N/A"}},{"$f":"'2. Conservation Measures'!EZ43","v":{"$error":"#N/A"}},{"$f":"'2. Conservation Measures'!FA43","v":{"$error":"#N/A"}},{"$f":"'2. Conservation Measures'!FB43","v":{"$error":"#N/A"}},{"$f":"'2. Conservation Measures'!FC43","v":{"$error":"#N/A"}},{"$f":"'2. Conservation Measures'!FD43","v":{"$error":"#N/A"}},{"$f":"'2. Conservation Measures'!FE43","v":{"$error":"#N/A"}},{"$f":"'2. Conservation Measures'!FF43","v":{"$error":"#N/A"}},{"$f":"'2. Conservation Measures'!FG43","v":{"$error":"#N/A"}},{"$f":"'2. Conservation Measures'!FH43","v":{"$error":"#N/A"}},{"$f":"'2. Conservation Measures'!FI43","v":{"$error":"#N/A"}},{"$f":"'2. Conservation Measures'!FJ43","v":{"$error":"#N/A"}},{"$f":"'2. Conservation Measures'!FK43","v":{"$error":"#N/A"}},{"$f":"'2. Conservation Measures'!FL43","v":{"$error":"#N/A"}},{"$f":"'2. Conservation Measures'!FM43","v":{"$error":"#N/A"}},{"$f":"'2. Conservation Measures'!FN43","v":{"$error":"#N/A"}},{"$f":"'2. Conservation Measures'!FO43","v":{"$error":"#N/A"}},{"$f":"'2. Conservation Measures'!FP43","v":{"$error":"#N/A"}},{"$f":"'2. Conservation Measures'!FQ43","v":{"$error":"#N/A"}},{"$f":"'2. Conservation Measures'!FR43","v":{"$error":"#N/A"}},{"$f":"'2. Conservation Measures'!FS43","v":{"$error":"#N/A"}},{"$f":"'2. Conservation Measures'!FT43","v":{"$error":"#N/A"}},{"$f":"'2. Conservation Measures'!FU43","v":{"$error":"#N/A"}},{"$f":"'2. Conservation Measures'!FV43","v":{"$error":"#N/A"}},{"$f":"'2. Conservation Measures'!FW43","v":{"$error":"#N/A"}},{"$f":"'2. Conservation Measures'!FX43","v":{"$error":"#N/A"}},{"$f":"'2. Conservation Measures'!FY43","v":{"$error":"#N/A"}},{"$f":"'2. Conservation Measures'!FZ43","v":{"$error":"#N/A"}},{"$f":"'2. Conservation Measures'!GA43","v":{"$error":"#N/A"}},{"$f":"'2. Conservation Measures'!GB43","v":{"$error":"#N/A"}},{"$f":"'2. Conservation Measures'!GC43","v":{"$error":"#N/A"}},{"$f":"'2. Conservation Measures'!GD43","v":{"$error":"#N/A"}},{"$f":"'2. Conservation Measures'!GE43","v":{"$error":"#N/A"}},{"$f":"'2. Conservation Measures'!GF43","v":{"$error":"#N/A"}},{"$f":"'2. Conservation Measures'!GG43","v":{"$error":"#N/A"}},{"$f":"'2. Conservation Measures'!GH43","v":{"$error":"#N/A"}},{"$f":"'2. Conservation Measures'!GI43","v":{"$error":"#N/A"}},{"$f":"'2. Conservation Measures'!GJ43","v":{"$error":"#N/A"}},{"$f":"'2. Conservation Measures'!GK43","v":{"$error":"#N/A"}},{"$f":"'2. Conservation Measures'!GL43","v":{"$error":"#N/A"}},{"$f":"'2. Conservation Measures'!GM43","v":{"$error":"#N/A"}},{"$f":"'2. Conservation Measures'!GN43","v":{"$error":"#N/A"}},null,{"$f":"'2. Conservation Measures'!GP43","v":{"$error":"#N/A"}},{"$f":"'2. Conservation Measures'!GQ43","v":{"$error":"#N/A"}},{"$f":"'2. Conservation Measures'!GR43","v":{"$error":"#N/A"}},{"$f":"'2. Conservation Measures'!GS43","v":{"$error":"#N/A"}},{"$f":"'2. Conservation Measures'!GT43","v":{"$error":"#N/A"}},{"$f":"'2. Conservation Measures'!GU43","v":{"$error":"#N/A"}},{"$f":"'2. Conservation Measures'!GV43","v":{"$error":"#N/A"}},{"$f":"'2. Conservation Measures'!GW43","v":{"$error":"#N/A"}},{"$f":"'2. Conservation Measures'!GX43","v":{"$error":"#N/A"}},{"$f":"'2. Conservation Measures'!GY43","v":{"$error":"#N/A"}},{"$f":"'2. Conservation Measures'!GZ43","v":{"$error":"#N/A"}},{"$f":"'2. Conservation Measures'!HA43","v":{"$error":"#N/A"}},{"$f":"'2. Conservation Measures'!HB43","v":{"$error":"#N/A"}},{"$f":"'2. Conservation Measures'!HC43","v":{"$error":"#N/A"}},{"$f":"'2. Conservation Measures'!HD43","v":{"$error":"#N/A"}},{"$f":"'2. Conservation Measures'!HE43","v":{"$error":"#N/A"}},{"$f":"'2. Conservation Measures'!HF43","v":{"$error":"#N/A"}},{"$f":"'2. Conservation Measures'!HG43","v":{"$error":"#N/A"}},{"$f":"'2. Conservation Measures'!HH43","v":{"$error":"#N/A"}},{"$f":"'2. Conservation Measures'!HI43","v":{"$error":"#N/A"}},{"$f":"'2. Conservation Measures'!HJ43","v":{"$error":"#N/A"}},{"$f":"'2. Conservation Measures'!HK43","v":{"$error":"#N/A"}},{"$f":"'2. Conservation Measures'!HL43","v":{"$error":"#N/A"}},{"$f":"'2. Conservation Measures'!HM43","v":{"$error":"#N/A"}},{"$f":"'2. Conservation Measures'!HN43","v":{"$error":"#N/A"}},{"$f":"'2. Conservation Measures'!HO43","v":{"$error":"#N/A"}},{"$f":"'2. Conservation Measures'!HP43","v":{"$error":"#N/A"}},{"$f":"'2. Conservation Measures'!HQ43","v":{"$error":"#N/A"}},{"$f":"'2. Conservation Measures'!HR43","v":{"$error":"#N/A"}},{"$f":"'2. Conservation Measures'!HS43","v":{"$error":"#N/A"}},{"$f":"'2. Conservation Measures'!HT43","v":{"$error":"#N/A"}},{"$f":"'2. Conservation Measures'!HU43","v":{"$error":"#N/A"}},{"$f":"'2. Conservation Measures'!HV43","v":{"$error":"#N/A"}},{"$f":"'2. Conservation Measures'!HW43","v":{"$error":"#N/A"}},{"$f":"'2. Conservation Measures'!HX43","v":{"$error":"#N/A"}},{"$f":"'2. Conservation Measures'!HY43","v":{"$error":"#N/A"}},{"$f":"'2. Conservation Measures'!HZ43","v":{"$error":"#N/A"}},{"$f":"'2. Conservation Measures'!IA43","v":{"$error":"#N/A"}},{"$f":"'2. Conservation Measures'!IB43","v":{"$error":"#N/A"}},{"$f":"'2. Conservation Measures'!IC43","v":{"$error":"#N/A"}},{"$f":"'2. Conservation Measures'!ID43","v":{"$error":"#N/A"}},{"$f":"'2. Conservation Measures'!IE43","v":{"$error":"#N/A"}},{"$f":"'2. Conservation Measures'!IF43","v":{"$error":"#N/A"}},{"$f":"'2. Conservation Measures'!IG43","v":{"$error":"#N/A"}},{"$f":"'2. Conservation Measures'!IH43","v":{"$error":"#N/A"}},{"$f":"'2. Conservation Measures'!II43","v":{"$error":"#N/A"}},{"$f":"'2. Conservation Measures'!IJ43","v":{"$error":"#N/A"}},{"$f":"'2. Conservation Measures'!IK43","v":{"$error":"#N/A"}},{"$f":"'2. Conservation Measures'!IL43","v":{"$error":"#N/A"}},{"$f":"'2. Conservation Measures'!IM43","v":{"$error":"#N/A"}},{"$f":"'2. Conservation Measures'!IN43","v":{"$error":"#N/A"}},null,{"$f":"'2. Conservation Measures'!IP43","v":{"$error":"#VALUE!"}},{"$f":"'2. Conservation Measures'!IQ43","v":{"$error":"#VALUE!"}},{"$f":"'2. Conservation Measures'!IR43","v":{"$error":"#VALUE!"}},{"$f":"'2. Conservation Measures'!IS43","v":{"$error":"#VALUE!"}},{"$f":"'2. Conservation Measures'!IT43","v":{"$error":"#VALUE!"}},{"$f":"'2. Conservation Measures'!IU43","v":{"$error":"#VALUE!"}},{"$f":"'2. Conservation Measures'!IV43","v":{"$error":"#VALUE!"}},{"$f":"'2. Conservation Measures'!IW43","v":{"$error":"#VALUE!"}},{"$f":"'2. Conservation Measures'!IX43","v":{"$error":"#VALUE!"}},{"$f":"'2. Conservation Measures'!IY43","v":{"$error":"#VALUE!"}},{"$f":"'2. Conservation Measures'!IZ43","v":{"$error":"#VALUE!"}},{"$f":"'2. Conservation Measures'!JA43","v":{"$error":"#VALUE!"}},{"$f":"'2. Conservation Measures'!JB43","v":{"$error":"#VALUE!"}},{"$f":"'2. Conservation Measures'!JC43","v":{"$error":"#VALUE!"}},{"$f":"'2. Conservation Measures'!JD43","v":{"$error":"#VALUE!"}},{"$f":"'2. Conservation Measures'!JE43","v":{"$error":"#VALUE!"}},{"$f":"'2. Conservation Measures'!JF43","v":{"$error":"#VALUE!"}},{"$f":"'2. Conservation Measures'!JG43","v":{"$error":"#VALUE!"}},{"$f":"'2. Conservation Measures'!JH43","v":{"$error":"#VALUE!"}},{"$f":"'2. Conservation Measures'!JI43","v":{"$error":"#VALUE!"}},{"$f":"'2. Conservation Measures'!JJ43","v":{"$error":"#VALUE!"}},{"$f":"'2. Conservation Measures'!JK43","v":{"$error":"#VALUE!"}},{"$f":"'2. Conservation Measures'!JL43","v":{"$error":"#VALUE!"}},{"$f":"'2. Conservation Measures'!JM43","v":{"$error":"#VALUE!"}},{"$f":"'2. Conservation Measures'!JN43","v":{"$error":"#VALUE!"}},{"$f":"'2. Conservation Measures'!JO43","v":{"$error":"#VALUE!"}},{"$f":"'2. Conservation Measures'!JP43","v":{"$error":"#VALUE!"}},{"$f":"'2. Conservation Measures'!JQ43","v":{"$error":"#VALUE!"}},{"$f":"'2. Conservation Measures'!JR43","v":{"$error":"#VALUE!"}},{"$f":"'2. Conservation Measures'!JS43","v":{"$error":"#VALUE!"}},{"$f":"'2. Conservation Measures'!JT43","v":{"$error":"#VALUE!"}},{"$f":"'2. Conservation Measures'!JU43","v":{"$error":"#VALUE!"}},{"$f":"'2. Conservation Measures'!JV43","v":{"$error":"#VALUE!"}},{"$f":"'2. Conservation Measures'!JW43","v":{"$error":"#VALUE!"}},{"$f":"'2. Conservation Measures'!JX43","v":{"$error":"#VALUE!"}},{"$f":"'2. Conservation Measures'!JY43","v":{"$error":"#VALUE!"}},{"$f":"'2. Conservation Measures'!JZ43","v":{"$error":"#VALUE!"}},{"$f":"'2. Conservation Measures'!KA43","v":{"$error":"#VALUE!"}},{"$f":"'2. Conservation Measures'!KB43","v":{"$error":"#VALUE!"}},{"$f":"'2. Conservation Measures'!KC43","v":{"$error":"#VALUE!"}},{"$f":"'2. Conservation Measures'!KD43","v":{"$error":"#VALUE!"}},{"$f":"'2. Conservation Measures'!KE43","v":{"$error":"#VALUE!"}},{"$f":"'2. Conservation Measures'!KF43","v":{"$error":"#VALUE!"}},{"$f":"'2. Conservation Measures'!KG43","v":{"$error":"#VALUE!"}},{"$f":"'2. Conservation Measures'!KH43","v":{"$error":"#VALUE!"}},{"$f":"'2. Conservation Measures'!KI43","v":{"$error":"#VALUE!"}},{"$f":"'2. Conservation Measures'!KJ43","v":{"$error":"#VALUE!"}},{"$f":"'2. Conservation Measures'!KK43","v":{"$error":"#VALUE!"}},{"$f":"'2. Conservation Measures'!KL43","v":{"$error":"#VALUE!"}},{"$f":"'2. Conservation Measures'!KM43","v":{"$error":"#VALUE!"}},{"$f":"'2. Conservation Measures'!KN43","v":{"$error":"#VALUE!"}}]
[null,{"$f":"'2. Conservation Measures'!B44","v":"PRE-MF-09"},{"$f":"'2. Conservation Measures'!C44","v":{"$error":"#N/A"}},{"$f":"'2. Conservation Measures'!D44","v":"N"},null,{"$f":"'2. Conservation Measures'!AA44","v":{"$error":"#N/A"}},null,{"$f":"'2. Conservation Measures'!AO44","v":0},{"$f":"'2. Conservation Measures'!AP44","v":0},{"$f":"'2. Conservation Measures'!AQ44","v":0},{"$f":"'2. Conservation Measures'!AR44","v":0},{"$f":"'2. Conservation Measures'!AS44","v":0},{"$f":"'2. Conservation Measures'!AT44","v":0},{"$f":"'2. Conservation Measures'!AU44","v":0},{"$f":"'2. Conservation Measures'!AV44","v":0},{"$f":"'2. Conservation Measures'!AW44","v":0},{"$f":"'2. Conservation Measures'!AX44","v":0},{"$f":"'2. Conservation Measures'!AY44","v":0},{"$f":"'2. Conservation Measures'!AZ44","v":0},{"$f":"'2. Conservation Measures'!BA44","v":0},{"$f":"'2. Conservation Measures'!BB44","v":0},{"$f":"'2. Conservation Measures'!BC44","v":0},{"$f":"'2. Conservation Measures'!BD44","v":0},{"$f":"'2. Conservation Measures'!BE44","v":0},{"$f":"'2. Conservation Measures'!BF44","v":0},{"$f":"'2. Conservation Measures'!BG44","v":0},{"$f":"'2. Conservation Measures'!BH44","v":0},{"$f":"'2. Conservation Measures'!BI44","v":0},{"$f":"'2. Conservation Measures'!BJ44","v":0},{"$f":"'2. Conservation Measures'!BK44","v":0},{"$f":"'2. Conservation Measures'!BL44","v":0},{"$f":"'2. Conservation Measures'!BM44","v":0},{"$f":"'2. Conservation Measures'!BN44","v":0},{"$f":"'2. Conservation Measures'!BO44","v":0},{"$f":"'2. Conservation Measures'!BP44","v":0},{"$f":"'2. Conservation Measures'!BQ44","v":0},{"$f":"'2. Conservation Measures'!BR44","v":0},{"$f":"'2. Conservation Measures'!BS44","v":0},{"$f":"'2. Conservation Measures'!BT44","v":0},{"$f":"'2. Conservation Measures'!BU44","v":0},{"$f":"'2. Conservation Measures'!BV44","v":0},{"$f":"'2. Conservation Measures'!BW44","v":0},{"$f":"'2. Conservation Measures'!BX44","v":0},{"$f":"'2. Conservation Measures'!BY44","v":0},{"$f":"'2. Conservation Measures'!BZ44","v":0},{"$f":"'2. Conservation Measures'!CA44","v":0},{"$f":"'2. Conservation Measures'!CB44","v":0},{"$f":"'2. Conservation Measures'!CC44","v":0},{"$f":"'2. Conservation Measures'!CD44","v":0},{"$f":"'2. Conservation Measures'!CE44","v":0},{"$f":"'2. Conservation Measures'!CF44","v":0},{"$f":"'2. Conservation Measures'!CG44","v":0},{"$f":"'2. Conservation Measures'!CH44","v":0},{"$f":"'2. Conservation Measures'!CI44","v":0},{"$f":"'2. Conservation Measures'!CJ44","v":0},{"$f":"'2. Conservation Measures'!CK44","v":0},{"$f":"'2. Conservation Measures'!CL44","v":0},{"$f":"'2. Conservation Measures'!CM44","v":0},null,{"$f":"'2. Conservation Measures'!CO44","v":{"$error":"#VALUE!"}},{"$f":"'2. Conservation Measures'!CP44","v":{"$error":"#VALUE!"}},{"$f":"'2. Conservation Measures'!CQ44","v":{"$error":"#VALUE!"}},{"$f":"'2. Conservation Measures'!CR44","v":{"$error":"#VALUE!"}},{"$f":"'2. Conservation Measures'!CS44","v":{"$error":"#VALUE!"}},{"$f":"'2. Conservation Measures'!CT44","v":{"$error":"#VALUE!"}},{"$f":"'2. Conservation Measures'!CU44","v":{"$error":"#VALUE!"}},{"$f":"'2. Conservation Measures'!CV44","v":{"$error":"#VALUE!"}},{"$f":"'2. Conservation Measures'!CW44","v":{"$error":"#VALUE!"}},{"$f":"'2. Conservation Measures'!CX44","v":{"$error":"#VALUE!"}},{"$f":"'2. Conservation Measures'!CY44","v":{"$error":"#VALUE!"}},{"$f":"'2. Conservation Measures'!CZ44","v":{"$error":"#VALUE!"}},{"$f":"'2. Conservation Measures'!DA44","v":{"$error":"#VALUE!"}},{"$f":"'2. Conservation Measures'!DB44","v":{"$error":"#VALUE!"}},{"$f":"'2. Conservation Measures'!DC44","v":{"$error":"#VALUE!"}},{"$f":"'2. Conservation Measures'!DD44","v":{"$error":"#VALUE!"}},{"$f":"'2. Conservation Measures'!DE44","v":{"$error":"#VALUE!"}},{"$f":"'2. Conservation Measures'!DF44","v":{"$error":"#VALUE!"}},{"$f":"'2. Conservation Measures'!DG44","v":{"$error":"#VALUE!"}},{"$f":"'2. Conservation Measures'!DH44","v":{"$error":"#VALUE!"}},{"$f":"'2. Conservation Measures'!DI44","v":{"$error":"#VALUE!"}},{"$f":"'2. Conservation Measures'!DJ44","v":{"$error":"#VALUE!"}},{"$f":"'2. Conservation Measures'!DK44","v":{"$error":"#VALUE!"}},{"$f":"'2. Conservation Measures'!DL44","v":{"$error":"#VALUE!"}},{"$f":"'2. Conservation Measures'!DM44","v":{"$error":"#VALUE!"}},{"$f":"'2. Conservation Measures'!DN44","v":{"$error":"#VALUE!"}},{"$f":"'2. Conservation Measures'!DO44","v":{"$error":"#VALUE!"}},{"$f":"'2. Conservation Measures'!DP44","v":{"$error":"#VALUE!"}},{"$f":"'2. Conservation Measures'!DQ44","v":{"$error":"#VALUE!"}},{"$f":"'2. Conservation Measures'!DR44","v":{"$error":"#VALUE!"}},{"$f":"'2. Conservation Measures'!DS44","v":{"$error":"#VALUE!"}},{"$f":"'2. Conservation Measures'!DT44","v":{"$error":"#VALUE!"}},{"$f":"'2. Conservation Measures'!DU44","v":{"$error":"#VALUE!"}},{"$f":"'2. Conservation Measures'!DV44","v":{"$error":"#VALUE!"}},{"$f":"'2. Conservation Measures'!DW44","v":{"$error":"#VALUE!"}},{"$f":"'2. Conservation Measures'!DX44","v":{"$error":"#VALUE!"}},{"$f":"'2. Conservation Measures'!DY44","v":{"$error":"#VALUE!"}},{"$f":"'2. Conservation Measures'!DZ44","v":{"$error":"#VALUE!"}},{"$f":"'2. Conservation Measures'!EA44","v":{"$error":"#VALUE!"}},{"$f":"'2. Conservation Measures'!EB44","v":{"$error":"#VALUE!"}},{"$f":"'2. Conservation Measures'!EC44","v":{"$error":"#VALUE!"}},{"$f":"'2. Conservation Measures'!ED44","v":{"$error":"#VALUE!"}},{"$f":"'2. Conservation Measures'!EE44","v":{"$error":"#VALUE!"}},{"$f":"'2. Conservation Measures'!EF44","v":{"$error":"#VALUE!"}},{"$f":"'2. Conservation Measures'!EG44","v":{"$error":"#VALUE!"}},{"$f":"'2. Conservation Measures'!EH44","v":{"$error":"#VALUE!"}},{"$f":"'2. Conservation Measures'!EI44","v":{"$error":"#VALUE!"}},{"$f":"'2. Conservation Measures'!EJ44","v":{"$error":"#VALUE!"}},{"$f":"'2. Conservation Measures'!EK44","v":{"$error":"#VALUE!"}},{"$f":"'2. Conservation Measures'!EL44","v":{"$error":"#VALUE!"}},{"$f":"'2. Conservation Measures'!EM44","v":{"$error":"#VALUE!"}},null,{"$f":"'2. Conservation Measures'!KP44","v":{"$error":"#N/A"}},{"$f":"'2. Conservation Measures'!KQ44","v":{"$error":"#N/A"}},{"$f":"'2. Conservation Measures'!KR44","v":{"$error":"#N/A"}},{"$f":"'2. Conservation Measures'!KS44","v":{"$error":"#N/A"}},{"$f":"'2. Conservation Measures'!KT44","v":{"$error":"#N/A"}},{"$f":"'2. Conservation Measures'!KU44","v":{"$error":"#N/A"}},{"$f":"'2. Conservation Measures'!KV44","v":{"$error":"#N/A"}},{"$f":"'2. Conservation Measures'!KW44","v":{"$error":"#N/A"}},{"$f":"'2. Conservation Measures'!KX44","v":{"$error":"#N/A"}},{"$f":"'2. Conservation Measures'!KY44","v":{"$error":"#N/A"}},{"$f":"'2. Conservation Measures'!KZ44","v":{"$error":"#N/A"}},{"$f":"'2. Conservation Measures'!LA44","v":{"$error":"#N/A"}},{"$f":"'2. Conservation Measures'!LB44","v":{"$error":"#N/A"}},{"$f":"'2. Conservation Measures'!LC44","v":{"$error":"#N/A"}},{"$f":"'2. Conservation Measures'!LD44","v":{"$error":"#N/A"}},{"$f":"'2. Conservation Measures'!LE44","v":{"$error":"#N/A"}},{"$f":"'2. Conservation Measures'!LF44","v":{"$error":"#N/A"}},{"$f":"'2. Conservation Measures'!LG44","v":{"$error":"#N/A"}},{"$f":"'2. Conservation Measures'!LH44","v":{"$error":"#N/A"}},{"$f":"'2. Conservation Measures'!LI44","v":{"$error":"#N/A"}},{"$f":"'2. Conservation Measures'!LJ44","v":{"$error":"#N/A"}},{"$f":"'2. Conservation Measures'!LK44","v":{"$error":"#N/A"}},{"$f":"'2. Conservation Measures'!LL44","v":{"$error":"#N/A"}},{"$f":"'2. Conservation Measures'!LM44","v":{"$error":"#N/A"}},{"$f":"'2. Conservation Measures'!LN44","v":{"$error":"#N/A"}},{"$f":"'2. Conservation Measures'!LO44","v":{"$error":"#N/A"}},{"$f":"'2. Conservation Measures'!LP44","v":{"$error":"#N/A"}},{"$f":"'2. Conservation Measures'!LQ44","v":{"$error":"#N/A"}},{"$f":"'2. Conservation Measures'!LR44","v":{"$error":"#N/A"}},{"$f":"'2. Conservation Measures'!LS44","v":{"$error":"#N/A"}},{"$f":"'2. Conservation Measures'!LT44","v":{"$error":"#N/A"}},{"$f":"'2. Conservation Measures'!LU44","v":{"$error":"#N/A"}},{"$f":"'2. Conservation Measures'!LV44","v":{"$error":"#N/A"}},{"$f":"'2. Conservation Measures'!LW44","v":{"$error":"#N/A"}},{"$f":"'2. Conservation Measures'!LX44","v":{"$error":"#N/A"}},{"$f":"'2. Conservation Measures'!LY44","v":{"$error":"#N/A"}},{"$f":"'2. Conservation Measures'!LZ44","v":{"$error":"#N/A"}},{"$f":"'2. Conservation Measures'!MA44","v":{"$error":"#N/A"}},{"$f":"'2. Conservation Measures'!MB44","v":{"$error":"#N/A"}},{"$f":"'2. Conservation Measures'!MC44","v":{"$error":"#N/A"}},{"$f":"'2. Conservation Measures'!MD44","v":{"$error":"#N/A"}},{"$f":"'2. Conservation Measures'!ME44","v":{"$error":"#N/A"}},{"$f":"'2. Conservation Measures'!MF44","v":{"$error":"#N/A"}},{"$f":"'2. Conservation Measures'!MG44","v":{"$error":"#N/A"}},{"$f":"'2. Conservation Measures'!MH44","v":{"$error":"#N/A"}},{"$f":"'2. Conservation Measures'!MI44","v":{"$error":"#N/A"}},{"$f":"'2. Conservation Measures'!MJ44","v":{"$error":"#N/A"}},{"$f":"'2. Conservation Measures'!MK44","v":{"$error":"#N/A"}},{"$f":"'2. Conservation Measures'!ML44","v":{"$error":"#N/A"}},{"$f":"'2. Conservation Measures'!MM44","v":{"$error":"#N/A"}},{"$f":"'2. Conservation Measures'!MN44","v":{"$error":"#N/A"}},null,{"$f":"'2. Conservation Measures'!EP44","v":{"$error":"#N/A"}},{"$f":"'2. Conservation Measures'!EQ44","v":{"$error":"#N/A"}},{"$f":"'2. Conservation Measures'!ER44","v":{"$error":"#N/A"}},{"$f":"'2. Conservation Measures'!ES44","v":{"$error":"#N/A"}},{"$f":"'2. Conservation Measures'!ET44","v":{"$error":"#N/A"}},{"$f":"'2. Conservation Measures'!EU44","v":{"$error":"#N/A"}},{"$f":"'2. Conservation Measures'!EV44","v":{"$error":"#N/A"}},{"$f":"'2. Conservation Measures'!EW44","v":{"$error":"#N/A"}},{"$f":"'2. Conservation Measures'!EX44","v":{"$error":"#N/A"}},{"$f":"'2. Conservation Measures'!EY44","v":{"$error":"#N/A"}},{"$f":"'2. Conservation Measures'!EZ44","v":{"$error":"#N/A"}},{"$f":"'2. Conservation Measures'!FA44","v":{"$error":"#N/A"}},{"$f":"'2. Conservation Measures'!FB44","v":{"$error":"#N/A"}},{"$f":"'2. Conservation Measures'!FC44","v":{"$error":"#N/A"}},{"$f":"'2. Conservation Measures'!FD44","v":{"$error":"#N/A"}},{"$f":"'2. Conservation Measures'!FE44","v":{"$error":"#N/A"}},{"$f":"'2. Conservation Measures'!FF44","v":{"$error":"#N/A"}},{"$f":"'2. Conservation Measures'!FG44","v":{"$error":"#N/A"}},{"$f":"'2. Conservation Measures'!FH44","v":{"$error":"#N/A"}},{"$f":"'2. Conservation Measures'!FI44","v":{"$error":"#N/A"}},{"$f":"'2. Conservation Measures'!FJ44","v":{"$error":"#N/A"}},{"$f":"'2. Conservation Measures'!FK44","v":{"$error":"#N/A"}},{"$f":"'2. Conservation Measures'!FL44","v":{"$error":"#N/A"}},{"$f":"'2. Conservation Measures'!FM44","v":{"$error":"#N/A"}},{"$f":"'2. Conservation Measures'!FN44","v":{"$error":"#N/A"}},{"$f":"'2. Conservation Measures'!FO44","v":{"$error":"#N/A"}},{"$f":"'2. Conservation Measures'!FP44","v":{"$error":"#N/A"}},{"$f":"'2. Conservation Measures'!FQ44","v":{"$error":"#N/A"}},{"$f":"'2. Conservation Measures'!FR44","v":{"$error":"#N/A"}},{"$f":"'2. Conservation Measures'!FS44","v":{"$error":"#N/A"}},{"$f":"'2. Conservation Measures'!FT44","v":{"$error":"#N/A"}},{"$f":"'2. Conservation Measures'!FU44","v":{"$error":"#N/A"}},{"$f":"'2. Conservation Measures'!FV44","v":{"$error":"#N/A"}},{"$f":"'2. Conservation Measures'!FW44","v":{"$error":"#N/A"}},{"$f":"'2. Conservation Measures'!FX44","v":{"$error":"#N/A"}},{"$f":"'2. Conservation Measures'!FY44","v":{"$error":"#N/A"}},{"$f":"'2. Conservation Measures'!FZ44","v":{"$error":"#N/A"}},{"$f":"'2. Conservation Measures'!GA44","v":{"$error":"#N/A"}},{"$f":"'2. Conservation Measures'!GB44","v":{"$error":"#N/A"}},{"$f":"'2. Conservation Measures'!GC44","v":{"$error":"#N/A"}},{"$f":"'2. Conservation Measures'!GD44","v":{"$error":"#N/A"}},{"$f":"'2. Conservation Measures'!GE44","v":{"$error":"#N/A"}},{"$f":"'2. Conservation Measures'!GF44","v":{"$error":"#N/A"}},{"$f":"'2. Conservation Measures'!GG44","v":{"$error":"#N/A"}},{"$f":"'2. Conservation Measures'!GH44","v":{"$error":"#N/A"}},{"$f":"'2. Conservation Measures'!GI44","v":{"$error":"#N/A"}},{"$f":"'2. Conservation Measures'!GJ44","v":{"$error":"#N/A"}},{"$f":"'2. Conservation Measures'!GK44","v":{"$error":"#N/A"}},{"$f":"'2. Conservation Measures'!GL44","v":{"$error":"#N/A"}},{"$f":"'2. Conservation Measures'!GM44","v":{"$error":"#N/A"}},{"$f":"'2. Conservation Measures'!GN44","v":{"$error":"#N/A"}},null,{"$f":"'2. Conservation Measures'!GP44","v":{"$error":"#N/A"}},{"$f":"'2. Conservation Measures'!GQ44","v":{"$error":"#N/A"}},{"$f":"'2. Conservation Measures'!GR44","v":{"$error":"#N/A"}},{"$f":"'2. Conservation Measures'!GS44","v":{"$error":"#N/A"}},{"$f":"'2. Conservation Measures'!GT44","v":{"$error":"#N/A"}},{"$f":"'2. Conservation Measures'!GU44","v":{"$error":"#N/A"}},{"$f":"'2. Conservation Measures'!GV44","v":{"$error":"#N/A"}},{"$f":"'2. Conservation Measures'!GW44","v":{"$error":"#N/A"}},{"$f":"'2. Conservation Measures'!GX44","v":{"$error":"#N/A"}},{"$f":"'2. Conservation Measures'!GY44","v":{"$error":"#N/A"}},{"$f":"'2. Conservation Measures'!GZ44","v":{"$error":"#N/A"}},{"$f":"'2. Conservation Measures'!HA44","v":{"$error":"#N/A"}},{"$f":"'2. Conservation Measures'!HB44","v":{"$error":"#N/A"}},{"$f":"'2. Conservation Measures'!HC44","v":{"$error":"#N/A"}},{"$f":"'2. Conservation Measures'!HD44","v":{"$error":"#N/A"}},{"$f":"'2. Conservation Measures'!HE44","v":{"$error":"#N/A"}},{"$f":"'2. Conservation Measures'!HF44","v":{"$error":"#N/A"}},{"$f":"'2. Conservation Measures'!HG44","v":{"$error":"#N/A"}},{"$f":"'2. Conservation Measures'!HH44","v":{"$error":"#N/A"}},{"$f":"'2. Conservation Measures'!HI44","v":{"$error":"#N/A"}},{"$f":"'2. Conservation Measures'!HJ44","v":{"$error":"#N/A"}},{"$f":"'2. Conservation Measures'!HK44","v":{"$error":"#N/A"}},{"$f":"'2. Conservation Measures'!HL44","v":{"$error":"#N/A"}},{"$f":"'2. Conservation Measures'!HM44","v":{"$error":"#N/A"}},{"$f":"'2. Conservation Measures'!HN44","v":{"$error":"#N/A"}},{"$f":"'2. Conservation Measures'!HO44","v":{"$error":"#N/A"}},{"$f":"'2. Conservation Measures'!HP44","v":{"$error":"#N/A"}},{"$f":"'2. Conservation Measures'!HQ44","v":{"$error":"#N/A"}},{"$f":"'2. Conservation Measures'!HR44","v":{"$error":"#N/A"}},{"$f":"'2. Conservation Measures'!HS44","v":{"$error":"#N/A"}},{"$f":"'2. Conservation Measures'!HT44","v":{"$error":"#N/A"}},{"$f":"'2. Conservation Measures'!HU44","v":{"$error":"#N/A"}},{"$f":"'2. Conservation Measures'!HV44","v":{"$error":"#N/A"}},{"$f":"'2. Conservation Measures'!HW44","v":{"$error":"#N/A"}},{"$f":"'2. Conservation Measures'!HX44","v":{"$error":"#N/A"}},{"$f":"'2. Conservation Measures'!HY44","v":{"$error":"#N/A"}},{"$f":"'2. Conservation Measures'!HZ44","v":{"$error":"#N/A"}},{"$f":"'2. Conservation Measures'!IA44","v":{"$error":"#N/A"}},{"$f":"'2. Conservation Measures'!IB44","v":{"$error":"#N/A"}},{"$f":"'2. Conservation Measures'!IC44","v":{"$error":"#N/A"}},{"$f":"'2. Conservation Measures'!ID44","v":{"$error":"#N/A"}},{"$f":"'2. Conservation Measures'!IE44","v":{"$error":"#N/A"}},{"$f":"'2. Conservation Measures'!IF44","v":{"$error":"#N/A"}},{"$f":"'2. Conservation Measures'!IG44","v":{"$error":"#N/A"}},{"$f":"'2. Conservation Measures'!IH44","v":{"$error":"#N/A"}},{"$f":"'2. Conservation Measures'!II44","v":{"$error":"#N/A"}},{"$f":"'2. Conservation Measures'!IJ44","v":{"$error":"#N/A"}},{"$f":"'2. Conservation Measures'!IK44","v":{"$error":"#N/A"}},{"$f":"'2. Conservation Measures'!IL44","v":{"$error":"#N/A"}},{"$f":"'2. Conservation Measures'!IM44","v":{"$error":"#N/A"}},{"$f":"'2. Conservation Measures'!IN44","v":{"$error":"#N/A"}},null,{"$f":"'2. Conservation Measures'!IP44","v":{"$error":"#VALUE!"}},{"$f":"'2. Conservation Measures'!IQ44","v":{"$error":"#VALUE!"}},{"$f":"'2. Conservation Measures'!IR44","v":{"$error":"#VALUE!"}},{"$f":"'2. Conservation Measures'!IS44","v":{"$error":"#VALUE!"}},{"$f":"'2. Conservation Measures'!IT44","v":{"$error":"#VALUE!"}},{"$f":"'2. Conservation Measures'!IU44","v":{"$error":"#VALUE!"}},{"$f":"'2. Conservation Measures'!IV44","v":{"$error":"#VALUE!"}},{"$f":"'2. Conservation Measures'!IW44","v":{"$error":"#VALUE!"}},{"$f":"'2. Conservation Measures'!IX44","v":{"$error":"#VALUE!"}},{"$f":"'2. Conservation Measures'!IY44","v":{"$error":"#VALUE!"}},{"$f":"'2. Conservation Measures'!IZ44","v":{"$error":"#VALUE!"}},{"$f":"'2. Conservation Measures'!JA44","v":{"$error":"#VALUE!"}},{"$f":"'2. Conservation Measures'!JB44","v":{"$error":"#VALUE!"}},{"$f":"'2. Conservation Measures'!JC44","v":{"$error":"#VALUE!"}},{"$f":"'2. Conservation Measures'!JD44","v":{"$error":"#VALUE!"}},{"$f":"'2. Conservation Measures'!JE44","v":{"$error":"#VALUE!"}},{"$f":"'2. Conservation Measures'!JF44","v":{"$error":"#VALUE!"}},{"$f":"'2. Conservation Measures'!JG44","v":{"$error":"#VALUE!"}},{"$f":"'2. Conservation Measures'!JH44","v":{"$error":"#VALUE!"}},{"$f":"'2. Conservation Measures'!JI44","v":{"$error":"#VALUE!"}},{"$f":"'2. Conservation Measures'!JJ44","v":{"$error":"#VALUE!"}},{"$f":"'2. Conservation Measures'!JK44","v":{"$error":"#VALUE!"}},{"$f":"'2. Conservation Measures'!JL44","v":{"$error":"#VALUE!"}},{"$f":"'2. Conservation Measures'!JM44","v":{"$error":"#VALUE!"}},{"$f":"'2. Conservation Measures'!JN44","v":{"$error":"#VALUE!"}},{"$f":"'2. Conservation Measures'!JO44","v":{"$error":"#VALUE!"}},{"$f":"'2. Conservation Measures'!JP44","v":{"$error":"#VALUE!"}},{"$f":"'2. Conservation Measures'!JQ44","v":{"$error":"#VALUE!"}},{"$f":"'2. Conservation Measures'!JR44","v":{"$error":"#VALUE!"}},{"$f":"'2. Conservation Measures'!JS44","v":{"$error":"#VALUE!"}},{"$f":"'2. Conservation Measures'!JT44","v":{"$error":"#VALUE!"}},{"$f":"'2. Conservation Measures'!JU44","v":{"$error":"#VALUE!"}},{"$f":"'2. Conservation Measures'!JV44","v":{"$error":"#VALUE!"}},{"$f":"'2. Conservation Measures'!JW44","v":{"$error":"#VALUE!"}},{"$f":"'2. Conservation Measures'!JX44","v":{"$error":"#VALUE!"}},{"$f":"'2. Conservation Measures'!JY44","v":{"$error":"#VALUE!"}},{"$f":"'2. Conservation Measures'!JZ44","v":{"$error":"#VALUE!"}},{"$f":"'2. Conservation Measures'!KA44","v":{"$error":"#VALUE!"}},{"$f":"'2. Conservation Measures'!KB44","v":{"$error":"#VALUE!"}},{"$f":"'2. Conservation Measures'!KC44","v":{"$error":"#VALUE!"}},{"$f":"'2. Conservation Measures'!KD44","v":{"$error":"#VALUE!"}},{"$f":"'2. Conservation Measures'!KE44","v":{"$error":"#VALUE!"}},{"$f":"'2. Conservation Measures'!KF44","v":{"$error":"#VALUE!"}},{"$f":"'2. Conservation Measures'!KG44","v":{"$error":"#VALUE!"}},{"$f":"'2. Conservation Measures'!KH44","v":{"$error":"#VALUE!"}},{"$f":"'2. Conservation Measures'!KI44","v":{"$error":"#VALUE!"}},{"$f":"'2. Conservation Measures'!KJ44","v":{"$error":"#VALUE!"}},{"$f":"'2. Conservation Measures'!KK44","v":{"$error":"#VALUE!"}},{"$f":"'2. Conservation Measures'!KL44","v":{"$error":"#VALUE!"}},{"$f":"'2. Conservation Measures'!KM44","v":{"$error":"#VALUE!"}},{"$f":"'2. Conservation Measures'!KN44","v":{"$error":"#VALUE!"}}]
[null,{"$f":"'2. Conservation Measures'!B86","v":"USR-MF-01"},{"$f":"'2. Conservation Measures'!C86","v":0},{"$f":"'2. Conservation Measures'!D86","v":"N"},null,{"$f":"'2. Conservation Measures'!AA86","v":0},null,{"$f":"'2. Conservation Measures'!AO86","v":0},{"$f":"'2. Conservation Measures'!AP86","v":0},{"$f":"'2. Conservation Measures'!AQ86","v":0},{"$f":"'2. Conservation Measures'!AR86","v":0},{"$f":"'2. Conservation Measures'!AS86","v":0},{"$f":"'2. Conservation Measures'!AT86","v":0},{"$f":"'2. Conservation Measures'!AU86","v":0},{"$f":"'2. Conservation Measures'!AV86","v":0},{"$f":"'2. Conservation Measures'!AW86","v":0},{"$f":"'2. Conservation Measures'!AX86","v":0},{"$f":"'2. Conservation Measures'!AY86","v":0},{"$f":"'2. Conservation Measures'!AZ86","v":0},{"$f":"'2. Conservation Measures'!BA86","v":0},{"$f":"'2. Conservation Measures'!BB86","v":0},{"$f":"'2. Conservation Measures'!BC86","v":0},{"$f":"'2. Conservation Measures'!BD86","v":0},{"$f":"'2. Conservation Measures'!BE86","v":0},{"$f":"'2. Conservation Measures'!BF86","v":0},{"$f":"'2. Conservation Measures'!BG86","v":0},{"$f":"'2. Conservation Measures'!BH86","v":0},{"$f":"'2. Conservation Measures'!BI86","v":0},{"$f":"'2. Conservation Measures'!BJ86","v":0},{"$f":"'2. Conservation Measures'!BK86","v":0},{"$f":"'2. Conservation Measures'!BL86","v":0},{"$f":"'2. Conservation Measures'!BM86","v":0},{"$f":"'2. Conservation Measures'!BN86","v":0},{"$f":"'2. Conservation Measures'!BO86","v":0},{"$f":"'2. Conservation Measures'!BP86","v":0},{"$f":"'2. Conservation Measures'!BQ86","v":0},{"$f":"'2. Conservation Measures'!BR86","v":0},{"$f":"'2. Conservation Measures'!BS86","v":0},{"$f":"'2. Conservation Measures'!BT86","v":0},{"$f":"'2. Conservation Measures'!BU86","v":0},{"$f":"'2. Conservation Measures'!BV86","v":0},{"$f":"'2. Conservation Measures'!BW86","v":0},{"$f":"'2. Conservation Measures'!BX86","v":0},{"$f":"'2. Conservation Measures'!BY86","v":0},{"$f":"'2. Conservation Measures'!BZ86","v":0},{"$f":"'2. Conservation Measures'!CA86","v":0},{"$f":"'2. Conservation Measures'!CB86","v":0},{"$f":"'2. Conservation Measures'!CC86","v":0},{"$f":"'2. Conservation Measures'!CD86","v":0},{"$f":"'2. Conservation Measures'!CE86","v":0},{"$f":"'2. Conservation Measures'!CF86","v":0},{"$f":"'2. Conservation Measures'!CG86","v":0},{"$f":"'2. Conservation Measures'!CH86","v":0},{"$f":"'2. Conservation Measures'!CI86","v":0},{"$f":"'2. Conservation Measures'!CJ86","v":0},{"$f":"'2. Conservation Measures'!CK86","v":0},{"$f":"'2. Conservation Measures'!CL86","v":0},{"$f":"'2. Conservation Measures'!CM86","v":0},null,{"$f":"'2. Conservation Measures'!CO86","v":0},{"$f":"'2. Conservation Measures'!CP86","v":0},{"$f":"'2. Conservation Measures'!CQ86","v":0},{"$f":"'2. Conservation Measures'!CR86","v":0},{"$f":"'2. Conservation Measures'!CS86","v":0},{"$f":"'2. Conservation Measures'!CT86","v":0},{"$f":"'2. Conservation Measures'!CU86","v":0},{"$f":"'2. Conservation Measures'!CV86","v":0},{"$f":"'2. Conservation Measures'!CW86","v":0},{"$f":"'2. Conservation Measures'!CX86","v":0},{"$f":"'2. Conservation Measures'!CY86","v":0},{"$f":"'2. Conservation Measures'!CZ86","v":0},{"$f":"'2. Conservation Measures'!DA86","v":0},{"$f":"'2. Conservation Measures'!DB86","v":0},{"$f":"'2. Conservation Measures'!DC86","v":0},{"$f":"'2. Conservation Measures'!DD86","v":0},{"$f":"'2. Conservation Measures'!DE86","v":0},{"$f":"'2. Conservation Measures'!DF86","v":0},{"$f":"'2. Conservation Measures'!DG86","v":0},{"$f":"'2. Conservation Measures'!DH86","v":0},{"$f":"'2. Conservation Measures'!DI86","v":0},{"$f":"'2. Conservation Measures'!DJ86","v":0},{"$f":"'2. Conservation Measures'!DK86","v":0},{"$f":"'2. Conservation Measures'!DL86","v":0},{"$f":"'2. Conservation Measures'!DM86","v":0},{"$f":"'2. Conservation Measures'!DN86","v":0},{"$f":"'2. Conservation Measures'!DO86","v":0},{"$f":"'2. Conservation Measures'!DP86","v":0},{"$f":"'2. Conservation Measures'!DQ86","v":0},{"$f":"'2. Conservation Measures'!DR86","v":0},{"$f":"'2. Conservation Measures'!DS86","v":0},{"$f":"'2. Conservation Measures'!DT86","v":0},{"$f":"'2. Conservation Measures'!DU86","v":0},{"$f":"'2. Conservation Measures'!DV86","v":0},{"$f":"'2. Conservation Measures'!DW86","v":0},{"$f":"'2. Conservation Measures'!DX86","v":0},{"$f":"'2. Conservation Measures'!DY86","v":0},{"$f":"'2. Conservation Measures'!DZ86","v":0},{"$f":"'2. Conservation Measures'!EA86","v":0},{"$f":"'2. Conservation Measures'!EB86","v":0},{"$f":"'2. Conservation Measures'!EC86","v":0},{"$f":"'2. Conservation Measures'!ED86","v":0},{"$f":"'2. Conservation Measures'!EE86","v":0},{"$f":"'2. Conservation Measures'!EF86","v":0},{"$f":"'2. Conservation Measures'!EG86","v":0},{"$f":"'2. Conservation Measures'!EH86","v":0},{"$f":"'2. Conservation Measures'!EI86","v":0},{"$f":"'2. Conservation Measures'!EJ86","v":0},{"$f":"'2. Conservation Measures'!EK86","v":0},{"$f":"'2. Conservation Measures'!EL86","v":0},{"$f":"'2. Conservation Measures'!EM86","v":0},null,{"$f":"'2. Conservation Measures'!KP86","v":0},{"$f":"'2. Conservation Measures'!KQ86","v":0},{"$f":"'2. Conservation Measures'!KR86","v":0},{"$f":"'2. Conservation Measures'!KS86","v":0},{"$f":"'2. Conservation Measures'!KT86","v":0},{"$f":"'2. Conservation Measures'!KU86","v":0},{"$f":"'2. Conservation Measures'!KV86","v":0},{"$f":"'2. Conservation Measures'!KW86","v":0},{"$f":"'2. Conservation Measures'!KX86","v":0},{"$f":"'2. Conservation Measures'!KY86","v":0},{"$f":"'2. Conservation Measures'!KZ86","v":0},{"$f":"'2. Conservation Measures'!LA86","v":0},{"$f":"'2. Conservation Measures'!LB86","v":0},{"$f":"'2. Conservation Measures'!LC86","v":0},{"$f":"'2. Conservation Measures'!LD86","v":0},{"$f":"'2. Conservation Measures'!LE86","v":0},{"$f":"'2. Conservation Measures'!LF86","v":0},{"$f":"'2. Conservation Measures'!LG86","v":0},{"$f":"'2. Conservation Measures'!LH86","v":0},{"$f":"'2. Conservation Measures'!LI86","v":0},{"$f":"'2. Conservation Measures'!LJ86","v":0},{"$f":"'2. Conservation Measures'!LK86","v":0},{"$f":"'2. Conservation Measures'!LL86","v":0},{"$f":"'2. Conservation Measures'!LM86","v":0},{"$f":"'2. Conservation Measures'!LN86","v":0},{"$f":"'2. Conservation Measures'!LO86","v":0},{"$f":"'2. Conservation Measures'!LP86","v":0},{"$f":"'2. Conservation Measures'!LQ86","v":0},{"$f":"'2. Conservation Measures'!LR86","v":0},{"$f":"'2. Conservation Measures'!LS86","v":0},{"$f":"'2. Conservation Measures'!LT86","v":0},{"$f":"'2. Conservation Measures'!LU86","v":0},{"$f":"'2. Conservation Measures'!LV86","v":0},{"$f":"'2. Conservation Measures'!LW86","v":0},{"$f":"'2. Conservation Measures'!LX86","v":0},{"$f":"'2. Conservation Measures'!LY86","v":0},{"$f":"'2. Conservation Measures'!LZ86","v":0},{"$f":"'2. Conservation Measures'!MA86","v":0},{"$f":"'2. Conservation Measures'!MB86","v":0},{"$f":"'2. Conservation Measures'!MC86","v":0},{"$f":"'2. Conservation Measures'!MD86","v":0},{"$f":"'2. Conservation Measures'!ME86","v":0},{"$f":"'2. Conservation Measures'!MF86","v":0},{"$f":"'2. Conservation Measures'!MG86","v":0},{"$f":"'2. Conservation Measures'!MH86","v":0},{"$f":"'2. Conservation Measures'!MI86","v":0},{"$f":"'2. Conservation Measures'!MJ86","v":0},{"$f":"'2. Conservation Measures'!MK86","v":0},{"$f":"'2. Conservation Measures'!ML86","v":0},{"$f":"'2. Conservation Measures'!MM86","v":0},{"$f":"'2. Conservation Measures'!MN86","v":0},null,{"$f":"'2. Conservation Measures'!EP86","v":0},{"$f":"'2. Conservation Measures'!EQ86","v":0},{"$f":"'2. Conservation Measures'!ER86","v":0},{"$f":"'2. Conservation Measures'!ES86","v":0},{"$f":"'2. Conservation Measures'!ET86","v":0},{"$f":"'2. Conservation Measures'!EU86","v":0},{"$f":"'2. Conservation Measures'!EV86","v":0},{"$f":"'2. Conservation Measures'!EW86","v":0},{"$f":"'2. Conservation Measures'!EX86","v":0},{"$f":"'2. Conservation Measures'!EY86","v":0},{"$f":"'2. Conservation Measures'!EZ86","v":0},{"$f":"'2. Conservation Measures'!FA86","v":0},{"$f":"'2. Conservation Measures'!FB86","v":0},{"$f":"'2. Conservation Measures'!FC86","v":0},{"$f":"'2. Conservation Measures'!FD86","v":0},{"$f":"'2. Conservation Measures'!FE86","v":0},{"$f":"'2. Conservation Measures'!FF86","v":0},{"$f":"'2. Conservation Measures'!FG86","v":0},{"$f":"'2. Conservation Measures'!FH86","v":0},{"$f":"'2. Conservation Measures'!FI86","v":0},{"$f":"'2. Conservation Measures'!FJ86","v":0},{"$f":"'2. Conservation Measures'!FK86","v":0},{"$f":"'2. Conservation Measures'!FL86","v":0},{"$f":"'2. Conservation Measures'!FM86","v":0},{"$f":"'2. Conservation Measures'!FN86","v":0},{"$f":"'2. Conservation Measures'!FO86","v":0},{"$f":"'2. Conservation Measures'!FP86","v":0},{"$f":"'2. Conservation Measures'!FQ86","v":0},{"$f":"'2. Conservation Measures'!FR86","v":0},{"$f":"'2. Conservation Measures'!FS86","v":0},{"$f":"'2. Conservation Measures'!FT86","v":0},{"$f":"'2. Conservation Measures'!FU86","v":0},{"$f":"'2. Conservation Measures'!FV86","v":0},{"$f":"'2. Conservation Measures'!FW86","v":0},{"$f":"'2. Conservation Measures'!FX86","v":0},{"$f":"'2. Conservation Measures'!FY86","v":0},{"$f":"'2. Conservation Measures'!FZ86","v":0},{"$f":"'2. Conservation Measures'!GA86","v":0},{"$f":"'2. Conservation Measures'!GB86","v":0},{"$f":"'2. Conservation Measures'!GC86","v":0},{"$f":"'2. Conservation Measures'!GD86","v":0},{"$f":"'2. Conservation Measures'!GE86","v":0},{"$f":"'2. Conservation Measures'!GF86","v":0},{"$f":"'2. Conservation Measures'!GG86","v":0},{"$f":"'2. Conservation Measures'!GH86","v":0},{"$f":"'2. Conservation Measures'!GI86","v":0},{"$f":"'2. Conservation Measures'!GJ86","v":0},{"$f":"'2. Conservation Measures'!GK86","v":0},{"$f":"'2. Conservation Measures'!GL86","v":0},{"$f":"'2. Conservation Measures'!GM86","v":0},{"$f":"'2. Conservation Measures'!GN86","v":0},null,{"$f":"'2. Conservation Measures'!GP86","v":0},{"$f":"'2. Conservation Measures'!GQ86","v":0},{"$f":"'2. Conservation Measures'!GR86","v":0},{"$f":"'2. Conservation Measures'!GS86","v":0},{"$f":"'2. Conservation Measures'!GT86","v":0},{"$f":"'2. Conservation Measures'!GU86","v":0},{"$f":"'2. Conservation Measures'!GV86","v":0},{"$f":"'2. Conservation Measures'!GW86","v":0},{"$f":"'2. Conservation Measures'!GX86","v":0},{"$f":"'2. Conservation Measures'!GY86","v":0},{"$f":"'2. Conservation Measures'!GZ86","v":0},{"$f":"'2. Conservation Measures'!HA86","v":0},{"$f":"'2. Conservation Measures'!HB86","v":0},{"$f":"'2. Conservation Measures'!HC86","v":0},{"$f":"'2. Conservation Measures'!HD86","v":0},{"$f":"'2. Conservation Measures'!HE86","v":0},{"$f":"'2. Conservation Measures'!HF86","v":0},{"$f":"'2. Conservation Measures'!HG86","v":0},{"$f":"'2. Conservation Measures'!HH86","v":0},{"$f":"'2. Conservation Measures'!HI86","v":0},{"$f":"'2. Conservation Measures'!HJ86","v":0},{"$f":"'2. Conservation Measures'!HK86","v":0},{"$f":"'2. Conservation Measures'!HL86","v":0},{"$f":"'2. Conservation Measures'!HM86","v":0},{"$f":"'2. Conservation Measures'!HN86","v":0},{"$f":"'2. Conservation Measures'!HO86","v":0},{"$f":"'2. Conservation Measures'!HP86","v":0},{"$f":"'2. Conservation Measures'!HQ86","v":0},{"$f":"'2. Conservation Measures'!HR86","v":0},{"$f":"'2. Conservation Measures'!HS86","v":0},{"$f":"'2. Conservation Measures'!HT86","v":0},{"$f":"'2. Conservation Measures'!HU86","v":0},{"$f":"'2. Conservation Measures'!HV86","v":0},{"$f":"'2. Conservation Measures'!HW86","v":0},{"$f":"'2. Conservation Measures'!HX86","v":0},{"$f":"'2. Conservation Measures'!HY86","v":0},{"$f":"'2. Conservation Measures'!HZ86","v":0},{"$f":"'2. Conservation Measures'!IA86","v":0},{"$f":"'2. Conservation Measures'!IB86","v":0},{"$f":"'2. Conservation Measures'!IC86","v":0},{"$f":"'2. Conservation Measures'!ID86","v":0},{"$f":"'2. Conservation Measures'!IE86","v":0},{"$f":"'2. Conservation Measures'!IF86","v":0},{"$f":"'2. Conservation Measures'!IG86","v":0},{"$f":"'2. Conservation Measures'!IH86","v":0},{"$f":"'2. Conservation Measures'!II86","v":0},{"$f":"'2. Conservation Measures'!IJ86","v":0},{"$f":"'2. Conservation Measures'!IK86","v":0},{"$f":"'2. Conservation Measures'!IL86","v":0},{"$f":"'2. Conservation Measures'!IM86","v":0},{"$f":"'2. Conservation Measures'!IN86","v":0},null,{"$f":"'2. Conservation Measures'!IP86","v":0},{"$f":"'2. Conservation Measures'!IQ86","v":0},{"$f":"'2. Conservation Measures'!IR86","v":0},{"$f":"'2. Conservation Measures'!IS86","v":0},{"$f":"'2. Conservation Measures'!IT86","v":0},{"$f":"'2. Conservation Measures'!IU86","v":0},{"$f":"'2. Conservation Measures'!IV86","v":0},{"$f":"'2. Conservation Measures'!IW86","v":0},{"$f":"'2. Conservation Measures'!IX86","v":0},{"$f":"'2. Conservation Measures'!IY86","v":0},{"$f":"'2. Conservation Measures'!IZ86","v":0},{"$f":"'2. Conservation Measures'!JA86","v":0},{"$f":"'2. Conservation Measures'!JB86","v":0},{"$f":"'2. Conservation Measures'!JC86","v":0},{"$f":"'2. Conservation Measures'!JD86","v":0},{"$f":"'2. Conservation Measures'!JE86","v":0},{"$f":"'2. Conservation Measures'!JF86","v":0},{"$f":"'2. Conservation Measures'!JG86","v":0},{"$f":"'2. Conservation Measures'!JH86","v":0},{"$f":"'2. Conservation Measures'!JI86","v":0},{"$f":"'2. Conservation Measures'!JJ86","v":0},{"$f":"'2. Conservation Measures'!JK86","v":0},{"$f":"'2. Conservation Measures'!JL86","v":0},{"$f":"'2. Conservation Measures'!JM86","v":0},{"$f":"'2. Conservation Measures'!JN86","v":0},{"$f":"'2. Conservation Measures'!JO86","v":0},{"$f":"'2. Conservation Measures'!JP86","v":0},{"$f":"'2. Conservation Measures'!JQ86","v":0},{"$f":"'2. Conservation Measures'!JR86","v":0},{"$f":"'2. Conservation Measures'!JS86","v":0},{"$f":"'2. Conservation Measures'!JT86","v":0},{"$f":"'2. Conservation Measures'!JU86","v":0},{"$f":"'2. Conservation Measures'!JV86","v":0},{"$f":"'2. Conservation Measures'!JW86","v":0},{"$f":"'2. Conservation Measures'!JX86","v":0},{"$f":"'2. Conservation Measures'!JY86","v":0},{"$f":"'2. Conservation Measures'!JZ86","v":0},{"$f":"'2. Conservation Measures'!KA86","v":0},{"$f":"'2. Conservation Measures'!KB86","v":0},{"$f":"'2. Conservation Measures'!KC86","v":0},{"$f":"'2. Conservation Measures'!KD86","v":0},{"$f":"'2. Conservation Measures'!KE86","v":0},{"$f":"'2. Conservation Measures'!KF86","v":0},{"$f":"'2. Conservation Measures'!KG86","v":0},{"$f":"'2. Conservation Measures'!KH86","v":0},{"$f":"'2. Conservation Measures'!KI86","v":0},{"$f":"'2. Conservation Measures'!KJ86","v":0},{"$f":"'2. Conservation Measures'!KK86","v":0},{"$f":"'2. Conservation Measures'!KL86","v":0},{"$f":"'2. Conservation Measures'!KM86","v":0},{"$f":"'2. Conservation Measures'!KN86","v":0}]
[null,{"$f":"'2. Conservation Measures'!B87","v":"USR-MF-02"},{"$f":"'2. Conservation Measures'!C87","v":0},{"$f":"'2. Conservation Measures'!D87","v":"N"},null,{"$f":"'2. Conservation Measures'!AA87","v":0},null,{"$f":"'2. Conservation Measures'!AO87","v":0},{"$f":"'2. Conservation Measures'!AP87","v":0},{"$f":"'2. Conservation Measures'!AQ87","v":0},{"$f":"'2. Conservation Measures'!AR87","v":0},{"$f":"'2. Conservation Measures'!AS87","v":0},{"$f":"'2. Conservation Measures'!AT87","v":0},{"$f":"'2. Conservation Measures'!AU87","v":0},{"$f":"'2. Conservation Measures'!AV87","v":0},{"$f":"'2. Conservation Measures'!AW87","v":0},{"$f":"'2. Conservation Measures'!AX87","v":0},{"$f":"'2. Conservation Measures'!AY87","v":0},{"$f":"'2. Conservation Measures'!AZ87","v":0},{"$f":"'2. Conservation Measures'!BA87","v":0},{"$f":"'2. Conservation Measures'!BB87","v":0},{"$f":"'2. Conservation Measures'!BC87","v":0},{"$f":"'2. Conservation Measures'!BD87","v":0},{"$f":"'2. Conservation Measures'!BE87","v":0},{"$f":"'2. Conservation Measures'!BF87","v":0},{"$f":"'2. Conservation Measures'!BG87","v":0},{"$f":"'2. Conservation Measures'!BH87","v":0},{"$f":"'2. Conservation Measures'!BI87","v":0},{"$f":"'2. Conservation Measures'!BJ87","v":0},{"$f":"'2. Conservation Measures'!BK87","v":0},{"$f":"'2. Conservation Measures'!BL87","v":0},{"$f":"'2. Conservation Measures'!BM87","v":0},{"$f":"'2. Conservation Measures'!BN87","v":0},{"$f":"'2. Conservation Measures'!BO87","v":0},{"$f":"'2. Conservation Measures'!BP87","v":0},{"$f":"'2. Conservation Measures'!BQ87","v":0},{"$f":"'2. Conservation Measures'!BR87","v":0},{"$f":"'2. Conservation Measures'!BS87","v":0},{"$f":"'2. Conservation Measures'!BT87","v":0},{"$f":"'2. Conservation Measures'!BU87","v":0},{"$f":"'2. Conservation Measures'!BV87","v":0},{"$f":"'2. Conservation Measures'!BW87","v":0},{"$f":"'2. Conservation Measures'!BX87","v":0},{"$f":"'2. Conservation Measures'!BY87","v":0},{"$f":"'2. Conservation Measures'!BZ87","v":0},{"$f":"'2. Conservation Measures'!CA87","v":0},{"$f":"'2. Conservation Measures'!CB87","v":0},{"$f":"'2. Conservation Measures'!CC87","v":0},{"$f":"'2. Conservation Measures'!CD87","v":0},{"$f":"'2. Conservation Measures'!CE87","v":0},{"$f":"'2. Conservation Measures'!CF87","v":0},{"$f":"'2. Conservation Measures'!CG87","v":0},{"$f":"'2. Conservation Measures'!CH87","v":0},{"$f":"'2. Conservation Measures'!CI87","v":0},{"$f":"'2. Conservation Measures'!CJ87","v":0},{"$f":"'2. Conservation Measures'!CK87","v":0},{"$f":"'2. Conservation Measures'!CL87","v":0},{"$f":"'2. Conservation Measures'!CM87","v":0},null,{"$f":"'2. Conservation Measures'!CO87","v":0},{"$f":"'2. Conservation Measures'!CP87","v":0},{"$f":"'2. Conservation Measures'!CQ87","v":0},{"$f":"'2. Conservation Measures'!CR87","v":0},{"$f":"'2. Conservation Measures'!CS87","v":0},{"$f":"'2. Conservation Measures'!CT87","v":0},{"$f":"'2. Conservation Measures'!CU87","v":0},{"$f":"'2. Conservation Measures'!CV87","v":0},{"$f":"'2. Conservation Measures'!CW87","v":0},{"$f":"'2. Conservation Measures'!CX87","v":0},{"$f":"'2. Conservation Measures'!CY87","v":0},{"$f":"'2. Conservation Measures'!CZ87","v":0},{"$f":"'2. Conservation Measures'!DA87","v":0},{"$f":"'2. Conservation Measures'!DB87","v":0},{"$f":"'2. Conservation Measures'!DC87","v":0},{"$f":"'2. Conservation Measures'!DD87","v":0},{"$f":"'2. Conservation Measures'!DE87","v":0},{"$f":"'2. Conservation Measures'!DF87","v":0},{"$f":"'2. Conservation Measures'!DG87","v":0},{"$f":"'2. Conservation Measures'!DH87","v":0},{"$f":"'2. Conservation Measures'!DI87","v":0},{"$f":"'2. Conservation Measures'!DJ87","v":0},{"$f":"'2. Conservation Measures'!DK87","v":0},{"$f":"'2. Conservation Measures'!DL87","v":0},{"$f":"'2. Conservation Measures'!DM87","v":0},{"$f":"'2. Conservation Measures'!DN87","v":0},{"$f":"'2. Conservation Measures'!DO87","v":0},{"$f":"'2. Conservation Measures'!DP87","v":0},{"$f":"'2. Conservation Measures'!DQ87","v":0},{"$f":"'2. Conservation Measures'!DR87","v":0},{"$f":"'2. Conservation Measures'!DS87","v":0},{"$f":"'2. Conservation Measures'!DT87","v":0},{"$f":"'2. Conservation Measures'!DU87","v":0},{"$f":"'2. Conservation Measures'!DV87","v":0},{"$f":"'2. Conservation Measures'!DW87","v":0},{"$f":"'2. Conservation Measures'!DX87","v":0},{"$f":"'2. Conservation Measures'!DY87","v":0},{"$f":"'2. Conservation Measures'!DZ87","v":0},{"$f":"'2. Conservation Measures'!EA87","v":0},{"$f":"'2. Conservation Measures'!EB87","v":0},{"$f":"'2. Conservation Measures'!EC87","v":0},{"$f":"'2. Conservation Measures'!ED87","v":0},{"$f":"'2. Conservation Measures'!EE87","v":0},{"$f":"'2. Conservation Measures'!EF87","v":0},{"$f":"'2. Conservation Measures'!EG87","v":0},{"$f":"'2. Conservation Measures'!EH87","v":0},{"$f":"'2. Conservation Measures'!EI87","v":0},{"$f":"'2. Conservation Measures'!EJ87","v":0},{"$f":"'2. Conservation Measures'!EK87","v":0},{"$f":"'2. Conservation Measures'!EL87","v":0},{"$f":"'2. Conservation Measures'!EM87","v":0},null,{"$f":"'2. Conservation Measures'!KP87","v":0},{"$f":"'2. Conservation Measures'!KQ87","v":0},{"$f":"'2. Conservation Measures'!KR87","v":0},{"$f":"'2. Conservation Measures'!KS87","v":0},{"$f":"'2. Conservation Measures'!KT87","v":0},{"$f":"'2. Conservation Measures'!KU87","v":0},{"$f":"'2. Conservation Measures'!KV87","v":0},{"$f":"'2. Conservation Measures'!KW87","v":0},{"$f":"'2. Conservation Measures'!KX87","v":0},{"$f":"'2. Conservation Measures'!KY87","v":0},{"$f":"'2. Conservation Measures'!KZ87","v":0},{"$f":"'2. Conservation Measures'!LA87","v":0},{"$f":"'2. Conservation Measures'!LB87","v":0},{"$f":"'2. Conservation Measures'!LC87","v":0},{"$f":"'2. Conservation Measures'!LD87","v":0},{"$f":"'2. Conservation Measures'!LE87","v":0},{"$f":"'2. Conservation Measures'!LF87","v":0},{"$f":"'2. Conservation Measures'!LG87","v":0},{"$f":"'2. Conservation Measures'!LH87","v":0},{"$f":"'2. Conservation Measures'!LI87","v":0},{"$f":"'2. Conservation Measures'!LJ87","v":0},{"$f":"'2. Conservation Measures'!LK87","v":0},{"$f":"'2. Conservation Measures'!LL87","v":0},{"$f":"'2. Conservation Measures'!LM87","v":0},{"$f":"'2. Conservation Measures'!LN87","v":0},{"$f":"'2. Conservation Measures'!LO87","v":0},{"$f":"'2. Conservation Measures'!LP87","v":0},{"$f":"'2. Conservation Measures'!LQ87","v":0},{"$f":"'2. Conservation Measures'!LR87","v":0},{"$f":"'2. Conservation Measures'!LS87","v":0},{"$f":"'2. Conservation Measures'!LT87","v":0},{"$f":"'2. Conservation Measures'!LU87","v":0},{"$f":"'2. Conservation Measures'!LV87","v":0},{"$f":"'2. Conservation Measures'!LW87","v":0},{"$f":"'2. Conservation Measures'!LX87","v":0},{"$f":"'2. Conservation Measures'!LY87","v":0},{"$f":"'2. Conservation Measures'!LZ87","v":0},{"$f":"'2. Conservation Measures'!MA87","v":0},{"$f":"'2. Conservation Measures'!MB87","v":0},{"$f":"'2. Conservation Measures'!MC87","v":0},{"$f":"'2. Conservation Measures'!MD87","v":0},{"$f":"'2. Conservation Measures'!ME87","v":0},{"$f":"'2. Conservation Measures'!MF87","v":0},{"$f":"'2. Conservation Measures'!MG87","v":0},{"$f":"'2. Conservation Measures'!MH87","v":0},{"$f":"'2. Conservation Measures'!MI87","v":0},{"$f":"'2. Conservation Measures'!MJ87","v":0},{"$f":"'2. Conservation Measures'!MK87","v":0},{"$f":"'2. Conservation Measures'!ML87","v":0},{"$f":"'2. Conservation Measures'!MM87","v":0},{"$f":"'2. Conservation Measures'!MN87","v":0},null,{"$f":"'2. Conservation Measures'!EP87","v":0},{"$f":"'2. Conservation Measures'!EQ87","v":0},{"$f":"'2. Conservation Measures'!ER87","v":0},{"$f":"'2. Conservation Measures'!ES87","v":0},{"$f":"'2. Conservation Measures'!ET87","v":0},{"$f":"'2. Conservation Measures'!EU87","v":0},{"$f":"'2. Conservation Measures'!EV87","v":0},{"$f":"'2. Conservation Measures'!EW87","v":0},{"$f":"'2. Conservation Measures'!EX87","v":0},{"$f":"'2. Conservation Measures'!EY87","v":0},{"$f":"'2. Conservation Measures'!EZ87","v":0},{"$f":"'2. Conservation Measures'!FA87","v":0},{"$f":"'2. Conservation Measures'!FB87","v":0},{"$f":"'2. Conservation Measures'!FC87","v":0},{"$f":"'2. Conservation Measures'!FD87","v":0},{"$f":"'2. Conservation Measures'!FE87","v":0},{"$f":"'2. Conservation Measures'!FF87","v":0},{"$f":"'2. Conservation Measures'!FG87","v":0},{"$f":"'2. Conservation Measures'!FH87","v":0},{"$f":"'2. Conservation Measures'!FI87","v":0},{"$f":"'2. Conservation Measures'!FJ87","v":0},{"$f":"'2. Conservation Measures'!FK87","v":0},{"$f":"'2. Conservation Measures'!FL87","v":0},{"$f":"'2. Conservation Measures'!FM87","v":0},{"$f":"'2. Conservation Measures'!FN87","v":0},{"$f":"'2. Conservation Measures'!FO87","v":0},{"$f":"'2. Conservation Measures'!FP87","v":0},{"$f":"'2. Conservation Measures'!FQ87","v":0},{"$f":"'2. Conservation Measures'!FR87","v":0},{"$f":"'2. Conservation Measures'!FS87","v":0},{"$f":"'2. Conservation Measures'!FT87","v":0},{"$f":"'2. Conservation Measures'!FU87","v":0},{"$f":"'2. Conservation Measures'!FV87","v":0},{"$f":"'2. Conservation Measures'!FW87","v":0},{"$f":"'2. Conservation Measures'!FX87","v":0},{"$f":"'2. Conservation Measures'!FY87","v":0},{"$f":"'2. Conservation Measures'!FZ87","v":0},{"$f":"'2. Conservation Measures'!GA87","v":0},{"$f":"'2. Conservation Measures'!GB87","v":0},{"$f":"'2. Conservation Measures'!GC87","v":0},{"$f":"'2. Conservation Measures'!GD87","v":0},{"$f":"'2. Conservation Measures'!GE87","v":0},{"$f":"'2. Conservation Measures'!GF87","v":0},{"$f":"'2. Conservation Measures'!GG87","v":0},{"$f":"'2. Conservation Measures'!GH87","v":0},{"$f":"'2. Conservation Measures'!GI87","v":0},{"$f":"'2. Conservation Measures'!GJ87","v":0},{"$f":"'2. Conservation Measures'!GK87","v":0},{"$f":"'2. Conservation Measures'!GL87","v":0},{"$f":"'2. Conservation Measures'!GM87","v":0},{"$f":"'2. Conservation Measures'!GN87","v":0},null,{"$f":"'2. Conservation Measures'!GP87","v":0},{"$f":"'2. Conservation Measures'!GQ87","v":0},{"$f":"'2. Conservation Measures'!GR87","v":0},{"$f":"'2. Conservation Measures'!GS87","v":0},{"$f":"'2. Conservation Measures'!GT87","v":0},{"$f":"'2. Conservation Measures'!GU87","v":0},{"$f":"'2. Conservation Measures'!GV87","v":0},{"$f":"'2. Conservation Measures'!GW87","v":0},{"$f":"'2. Conservation Measures'!GX87","v":0},{"$f":"'2. Conservation Measures'!GY87","v":0},{"$f":"'2. Conservation Measures'!GZ87","v":0},{"$f":"'2. Conservation Measures'!HA87","v":0},{"$f":"'2. Conservation Measures'!HB87","v":0},{"$f":"'2. Conservation Measures'!HC87","v":0},{"$f":"'2. Conservation Measures'!HD87","v":0},{"$f":"'2. Conservation Measures'!HE87","v":0},{"$f":"'2. Conservation Measures'!HF87","v":0},{"$f":"'2. Conservation Measures'!HG87","v":0},{"$f":"'2. Conservation Measures'!HH87","v":0},{"$f":"'2. Conservation Measures'!HI87","v":0},{"$f":"'2. Conservation Measures'!HJ87","v":0},{"$f":"'2. Conservation Measures'!HK87","v":0},{"$f":"'2. Conservation Measures'!HL87","v":0},{"$f":"'2. Conservation Measures'!HM87","v":0},{"$f":"'2. Conservation Measures'!HN87","v":0},{"$f":"'2. Conservation Measures'!HO87","v":0},{"$f":"'2. Conservation Measures'!HP87","v":0},{"$f":"'2. Conservation Measures'!HQ87","v":0},{"$f":"'2. Conservation Measures'!HR87","v":0},{"$f":"'2. Conservation Measures'!HS87","v":0},{"$f":"'2. Conservation Measures'!HT87","v":0},{"$f":"'2. Conservation Measures'!HU87","v":0},{"$f":"'2. Conservation Measures'!HV87","v":0},{"$f":"'2. Conservation Measures'!HW87","v":0},{"$f":"'2. Conservation Measures'!HX87","v":0},{"$f":"'2. Conservation Measures'!HY87","v":0},{"$f":"'2. Conservation Measures'!HZ87","v":0},{"$f":"'2. Conservation Measures'!IA87","v":0},{"$f":"'2. Conservation Measures'!IB87","v":0},{"$f":"'2. Conservation Measures'!IC87","v":0},{"$f":"'2. Conservation Measures'!ID87","v":0},{"$f":"'2. Conservation Measures'!IE87","v":0},{"$f":"'2. Conservation Measures'!IF87","v":0},{"$f":"'2. Conservation Measures'!IG87","v":0},{"$f":"'2. Conservation Measures'!IH87","v":0},{"$f":"'2. Conservation Measures'!II87","v":0},{"$f":"'2. Conservation Measures'!IJ87","v":0},{"$f":"'2. Conservation Measures'!IK87","v":0},{"$f":"'2. Conservation Measures'!IL87","v":0},{"$f":"'2. Conservation Measures'!IM87","v":0},{"$f":"'2. Conservation Measures'!IN87","v":0},null,{"$f":"'2. Conservation Measures'!IP87","v":0},{"$f":"'2. Conservation Measures'!IQ87","v":0},{"$f":"'2. Conservation Measures'!IR87","v":0},{"$f":"'2. Conservation Measures'!IS87","v":0},{"$f":"'2. Conservation Measures'!IT87","v":0},{"$f":"'2. Conservation Measures'!IU87","v":0},{"$f":"'2. Conservation Measures'!IV87","v":0},{"$f":"'2. Conservation Measures'!IW87","v":0},{"$f":"'2. Conservation Measures'!IX87","v":0},{"$f":"'2. Conservation Measures'!IY87","v":0},{"$f":"'2. Conservation Measures'!IZ87","v":0},{"$f":"'2. Conservation Measures'!JA87","v":0},{"$f":"'2. Conservation Measures'!JB87","v":0},{"$f":"'2. Conservation Measures'!JC87","v":0},{"$f":"'2. Conservation Measures'!JD87","v":0},{"$f":"'2. Conservation Measures'!JE87","v":0},{"$f":"'2. Conservation Measures'!JF87","v":0},{"$f":"'2. Conservation Measures'!JG87","v":0},{"$f":"'2. Conservation Measures'!JH87","v":0},{"$f":"'2. Conservation Measures'!JI87","v":0},{"$f":"'2. Conservation Measures'!JJ87","v":0},{"$f":"'2. Conservation Measures'!JK87","v":0},{"$f":"'2. Conservation Measures'!JL87","v":0},{"$f":"'2. Conservation Measures'!JM87","v":0},{"$f":"'2. Conservation Measures'!JN87","v":0},{"$f":"'2. Conservation Measures'!JO87","v":0},{"$f":"'2. Conservation Measures'!JP87","v":0},{"$f":"'2. Conservation Measures'!JQ87","v":0},{"$f":"'2. Conservation Measures'!JR87","v":0},{"$f":"'2. Conservation Measures'!JS87","v":0},{"$f":"'2. Conservation Measures'!JT87","v":0},{"$f":"'2. Conservation Measures'!JU87","v":0},{"$f":"'2. Conservation Measures'!JV87","v":0},{"$f":"'2. Conservation Measures'!JW87","v":0},{"$f":"'2. Conservation Measures'!JX87","v":0},{"$f":"'2. Conservation Measures'!JY87","v":0},{"$f":"'2. Conservation Measures'!JZ87","v":0},{"$f":"'2. Conservation Measures'!KA87","v":0},{"$f":"'2. Conservation Measures'!KB87","v":0},{"$f":"'2. Conservation Measures'!KC87","v":0},{"$f":"'2. Conservation Measures'!KD87","v":0},{"$f":"'2. Conservation Measures'!KE87","v":0},{"$f":"'2. Conservation Measures'!KF87","v":0},{"$f":"'2. Conservation Measures'!KG87","v":0},{"$f":"'2. Conservation Measures'!KH87","v":0},{"$f":"'2. Conservation Measures'!KI87","v":0},{"$f":"'2. Conservation Measures'!KJ87","v":0},{"$f":"'2. Conservation Measures'!KK87","v":0},{"$f":"'2. Conservation Measures'!KL87","v":0},{"$f":"'2. Conservation Measures'!KM87","v":0},{"$f":"'2. Conservation Measures'!KN87","v":0}]
[null,{"$f":"'2. Conservation Measures'!B88","v":"USR-MF-03"},{"$f":"'2. Conservation Measures'!C88","v":0},{"$f":"'2. Conservation Measures'!D88","v":"N"},null,{"$f":"'2. Conservation Measures'!AA88","v":0},null,{"$f":"'2. Conservation Measures'!AO88","v":0},{"$f":"'2. Conservation Measures'!AP88","v":0},{"$f":"'2. Conservation Measures'!AQ88","v":0},{"$f":"'2. Conservation Measures'!AR88","v":0},{"$f":"'2. Conservation Measures'!AS88","v":0},{"$f":"'2. Conservation Measures'!AT88","v":0},{"$f":"'2. Conservation Measures'!AU88","v":0},{"$f":"'2. Conservation Measures'!AV88","v":0},{"$f":"'2. Conservation Measures'!AW88","v":0},{"$f":"'2. Conservation Measures'!AX88","v":0},{"$f":"'2. Conservation Measures'!AY88","v":0},{"$f":"'2. Conservation Measures'!AZ88","v":0},{"$f":"'2. Conservation Measures'!BA88","v":0},{"$f":"'2. Conservation Measures'!BB88","v":0},{"$f":"'2. Conservation Measures'!BC88","v":0},{"$f":"'2. Conservation Measures'!BD88","v":0},{"$f":"'2. Conservation Measures'!BE88","v":0},{"$f":"'2. Conservation Measures'!BF88","v":0},{"$f":"'2. Conservation Measures'!BG88","v":0},{"$f":"'2. Conservation Measures'!BH88","v":0},{"$f":"'2. Conservation Measures'!BI88","v":0},{"$f":"'2. Conservation Measures'!BJ88","v":0},{"$f":"'2. Conservation Measures'!BK88","v":0},{"$f":"'2. Conservation Measures'!BL88","v":0},{"$f":"'2. Conservation Measures'!BM88","v":0},{"$f":"'2. Conservation Measures'!BN88","v":0},{"$f":"'2. Conservation Measures'!BO88","v":0},{"$f":"'2. Conservation Measures'!BP88","v":0},{"$f":"'2. Conservation Measures'!BQ88","v":0},{"$f":"'2. Conservation Measures'!BR88","v":0},{"$f":"'2. Conservation Measures'!BS88","v":0},{"$f":"'2. Conservation Measures'!BT88","v":0},{"$f":"'2. Conservation Measures'!BU88","v":0},{"$f":"'2. Conservation Measures'!BV88","v":0},{"$f":"'2. Conservation Measures'!BW88","v":0},{"$f":"'2. Conservation Measures'!BX88","v":0},{"$f":"'2. Conservation Measures'!BY88","v":0},{"$f":"'2. Conservation Measures'!BZ88","v":0},{"$f":"'2. Conservation Measures'!CA88","v":0},{"$f":"'2. Conservation Measures'!CB88","v":0},{"$f":"'2. Conservation Measures'!CC88","v":0},{"$f":"'2. Conservation Measures'!CD88","v":0},{"$f":"'2. Conservation Measures'!CE88","v":0},{"$f":"'2. Conservation Measures'!CF88","v":0},{"$f":"'2. Conservation Measures'!CG88","v":0},{"$f":"'2. Conservation Measures'!CH88","v":0},{"$f":"'2. Conservation Measures'!CI88","v":0},{"$f":"'2. Conservation Measures'!CJ88","v":0},{"$f":"'2. Conservation Measures'!CK88","v":0},{"$f":"'2. Conservation Measures'!CL88","v":0},{"$f":"'2. Conservation Measures'!CM88","v":0},null,{"$f":"'2. Conservation Measures'!CO88","v":0},{"$f":"'2. Conservation Measures'!CP88","v":0},{"$f":"'2. Conservation Measures'!CQ88","v":0},{"$f":"'2. Conservation Measures'!CR88","v":0},{"$f":"'2. Conservation Measures'!CS88","v":0},{"$f":"'2. Conservation Measures'!CT88","v":0},{"$f":"'2. Conservation Measures'!CU88","v":0},{"$f":"'2. Conservation Measures'!CV88","v":0},{"$f":"'2. Conservation Measures'!CW88","v":0},{"$f":"'2. Conservation Measures'!CX88","v":0},{"$f":"'2. Conservation Measures'!CY88","v":0},{"$f":"'2. Conservation Measures'!CZ88","v":0},{"$f":"'2. Conservation Measures'!DA88","v":0},{"$f":"'2. Conservation Measures'!DB88","v":0},{"$f":"'2. Conservation Measures'!DC88","v":0},{"$f":"'2. Conservation Measures'!DD88","v":0},{"$f":"'2. Conservation Measures'!DE88","v":0},{"$f":"'2. Conservation Measures'!DF88","v":0},{"$f":"'2. Conservation Measures'!DG88","v":0},{"$f":"'2. Conservation Measures'!DH88","v":0},{"$f":"'2. Conservation Measures'!DI88","v":0},{"$f":"'2. Conservation Measures'!DJ88","v":0},{"$f":"'2. Conservation Measures'!DK88","v":0},{"$f":"'2. Conservation Measures'!DL88","v":0},{"$f":"'2. Conservation Measures'!DM88","v":0},{"$f":"'2. Conservation Measures'!DN88","v":0},{"$f":"'2. Conservation Measures'!DO88","v":0},{"$f":"'2. Conservation Measures'!DP88","v":0},{"$f":"'2. Conservation Measures'!DQ88","v":0},{"$f":"'2. Conservation Measures'!DR88","v":0},{"$f":"'2. Conservation Measures'!DS88","v":0},{"$f":"'2. Conservation Measures'!DT88","v":0},{"$f":"'2. Conservation Measures'!DU88","v":0},{"$f":"'2. Conservation Measures'!DV88","v":0},{"$f":"'2. Conservation Measures'!DW88","v":0},{"$f":"'2. Conservation Measures'!DX88","v":0},{"$f":"'2. Conservation Measures'!DY88","v":0},{"$f":"'2. Conservation Measures'!DZ88","v":0},{"$f":"'2. Conservation Measures'!EA88","v":0},{"$f":"'2. Conservation Measures'!EB88","v":0},{"$f":"'2. Conservation Measures'!EC88","v":0},{"$f":"'2. Conservation Measures'!ED88","v":0},{"$f":"'2. Conservation Measures'!EE88","v":0},{"$f":"'2. Conservation Measures'!EF88","v":0},{"$f":"'2. Conservation Measures'!EG88","v":0},{"$f":"'2. Conservation Measures'!EH88","v":0},{"$f":"'2. Conservation Measures'!EI88","v":0},{"$f":"'2. Conservation Measures'!EJ88","v":0},{"$f":"'2. Conservation Measures'!EK88","v":0},{"$f":"'2. Conservation Measures'!EL88","v":0},{"$f":"'2. Conservation Measures'!EM88","v":0},null,{"$f":"'2. Conservation Measures'!KP88","v":0},{"$f":"'2. Conservation Measures'!KQ88","v":0},{"$f":"'2. Conservation Measures'!KR88","v":0},{"$f":"'2. Conservation Measures'!KS88","v":0},{"$f":"'2. Conservation Measures'!KT88","v":0},{"$f":"'2. Conservation Measures'!KU88","v":0},{"$f":"'2. Conservation Measures'!KV88","v":0},{"$f":"'2. Conservation Measures'!KW88","v":0},{"$f":"'2. Conservation Measures'!KX88","v":0},{"$f":"'2. Conservation Measures'!KY88","v":0},{"$f":"'2. Conservation Measures'!KZ88","v":0},{"$f":"'2. Conservation Measures'!LA88","v":0},{"$f":"'2. Conservation Measures'!LB88","v":0},{"$f":"'2. Conservation Measures'!LC88","v":0},{"$f":"'2. Conservation Measures'!LD88","v":0},{"$f":"'2. Conservation Measures'!LE88","v":0},{"$f":"'2. Conservation Measures'!LF88","v":0},{"$f":"'2. Conservation Measures'!LG88","v":0},{"$f":"'2. Conservation Measures'!LH88","v":0},{"$f":"'2. Conservation Measures'!LI88","v":0},{"$f":"'2. Conservation Measures'!LJ88","v":0},{"$f":"'2. Conservation Measures'!LK88","v":0},{"$f":"'2. Conservation Measures'!LL88","v":0},{"$f":"'2. Conservation Measures'!LM88","v":0},{"$f":"'2. Conservation Measures'!LN88","v":0},{"$f":"'2. Conservation Measures'!LO88","v":0},{"$f":"'2. Conservation Measures'!LP88","v":0},{"$f":"'2. Conservation Measures'!LQ88","v":0},{"$f":"'2. Conservation Measures'!LR88","v":0},{"$f":"'2. Conservation Measures'!LS88","v":0},{"$f":"'2. Conservation Measures'!LT88","v":0},{"$f":"'2. Conservation Measures'!LU88","v":0},{"$f":"'2. Conservation Measures'!LV88","v":0},{"$f":"'2. Conservation Measures'!LW88","v":0},{"$f":"'2. Conservation Measures'!LX88","v":0},{"$f":"'2. Conservation Measures'!LY88","v":0},{"$f":"'2. Conservation Measures'!LZ88","v":0},{"$f":"'2. Conservation Measures'!MA88","v":0},{"$f":"'2. Conservation Measures'!MB88","v":0},{"$f":"'2. Conservation Measures'!MC88","v":0},{"$f":"'2. Conservation Measures'!MD88","v":0},{"$f":"'2. Conservation Measures'!ME88","v":0},{"$f":"'2. Conservation Measures'!MF88","v":0},{"$f":"'2. Conservation Measures'!MG88","v":0},{"$f":"'2. Conservation Measures'!MH88","v":0},{"$f":"'2. Conservation Measures'!MI88","v":0},{"$f":"'2. Conservation Measures'!MJ88","v":0},{"$f":"'2. Conservation Measures'!MK88","v":0},{"$f":"'2. Conservation Measures'!ML88","v":0},{"$f":"'2. Conservation Measures'!MM88","v":0},{"$f":"'2. Conservation Measures'!MN88","v":0},null,{"$f":"'2. Conservation Measures'!EP88","v":0},{"$f":"'2. Conservation Measures'!EQ88","v":0},{"$f":"'2. Conservation Measures'!ER88","v":0},{"$f":"'2. Conservation Measures'!ES88","v":0},{"$f":"'2. Conservation Measures'!ET88","v":0},{"$f":"'2. Conservation Measures'!EU88","v":0},{"$f":"'2. Conservation Measures'!EV88","v":0},{"$f":"'2. Conservation Measures'!EW88","v":0},{"$f":"'2. Conservation Measures'!EX88","v":0},{"$f":"'2. Conservation Measures'!EY88","v":0},{"$f":"'2. Conservation Measures'!EZ88","v":0},{"$f":"'2. Conservation Measures'!FA88","v":0},{"$f":"'2. Conservation Measures'!FB88","v":0},{"$f":"'2. Conservation Measures'!FC88","v":0},{"$f":"'2. Conservation Measures'!FD88","v":0},{"$f":"'2. Conservation Measures'!FE88","v":0},{"$f":"'2. Conservation Measures'!FF88","v":0},{"$f":"'2. Conservation Measures'!FG88","v":0},{"$f":"'2. Conservation Measures'!FH88","v":0},{"$f":"'2. Conservation Measures'!FI88","v":0},{"$f":"'2. Conservation Measures'!FJ88","v":0},{"$f":"'2. Conservation Measures'!FK88","v":0},{"$f":"'2. Conservation Measures'!FL88","v":0},{"$f":"'2. Conservation Measures'!FM88","v":0},{"$f":"'2. Conservation Measures'!FN88","v":0},{"$f":"'2. Conservation Measures'!FO88","v":0},{"$f":"'2. Conservation Measures'!FP88","v":0},{"$f":"'2. Conservation Measures'!FQ88","v":0},{"$f":"'2. Conservation Measures'!FR88","v":0},{"$f":"'2. Conservation Measures'!FS88","v":0},{"$f":"'2. Conservation Measures'!FT88","v":0},{"$f":"'2. Conservation Measures'!FU88","v":0},{"$f":"'2. Conservation Measures'!FV88","v":0},{"$f":"'2. Conservation Measures'!FW88","v":0},{"$f":"'2. Conservation Measures'!FX88","v":0},{"$f":"'2. Conservation Measures'!FY88","v":0},{"$f":"'2. Conservation Measures'!FZ88","v":0},{"$f":"'2. Conservation Measures'!GA88","v":0},{"$f":"'2. Conservation Measures'!GB88","v":0},{"$f":"'2. Conservation Measures'!GC88","v":0},{"$f":"'2. Conservation Measures'!GD88","v":0},{"$f":"'2. Conservation Measures'!GE88","v":0},{"$f":"'2. Conservation Measures'!GF88","v":0},{"$f":"'2. Conservation Measures'!GG88","v":0},{"$f":"'2. Conservation Measures'!GH88","v":0},{"$f":"'2. Conservation Measures'!GI88","v":0},{"$f":"'2. Conservation Measures'!GJ88","v":0},{"$f":"'2. Conservation Measures'!GK88","v":0},{"$f":"'2. Conservation Measures'!GL88","v":0},{"$f":"'2. Conservation Measures'!GM88","v":0},{"$f":"'2. Conservation Measures'!GN88","v":0},null,{"$f":"'2. Conservation Measures'!GP88","v":0},{"$f":"'2. Conservation Measures'!GQ88","v":0},{"$f":"'2. Conservation Measures'!GR88","v":0},{"$f":"'2. Conservation Measures'!GS88","v":0},{"$f":"'2. Conservation Measures'!GT88","v":0},{"$f":"'2. Conservation Measures'!GU88","v":0},{"$f":"'2. Conservation Measures'!GV88","v":0},{"$f":"'2. Conservation Measures'!GW88","v":0},{"$f":"'2. Conservation Measures'!GX88","v":0},{"$f":"'2. Conservation Measures'!GY88","v":0},{"$f":"'2. Conservation Measures'!GZ88","v":0},{"$f":"'2. Conservation Measures'!HA88","v":0},{"$f":"'2. Conservation Measures'!HB88","v":0},{"$f":"'2. Conservation Measures'!HC88","v":0},{"$f":"'2. Conservation Measures'!HD88","v":0},{"$f":"'2. Conservation Measures'!HE88","v":0},{"$f":"'2. Conservation Measures'!HF88","v":0},{"$f":"'2. Conservation Measures'!HG88","v":0},{"$f":"'2. Conservation Measures'!HH88","v":0},{"$f":"'2. Conservation Measures'!HI88","v":0},{"$f":"'2. Conservation Measures'!HJ88","v":0},{"$f":"'2. Conservation Measures'!HK88","v":0},{"$f":"'2. Conservation Measures'!HL88","v":0},{"$f":"'2. Conservation Measures'!HM88","v":0},{"$f":"'2. Conservation Measures'!HN88","v":0},{"$f":"'2. Conservation Measures'!HO88","v":0},{"$f":"'2. Conservation Measures'!HP88","v":0},{"$f":"'2. Conservation Measures'!HQ88","v":0},{"$f":"'2. Conservation Measures'!HR88","v":0},{"$f":"'2. Conservation Measures'!HS88","v":0},{"$f":"'2. Conservation Measures'!HT88","v":0},{"$f":"'2. Conservation Measures'!HU88","v":0},{"$f":"'2. Conservation Measures'!HV88","v":0},{"$f":"'2. Conservation Measures'!HW88","v":0},{"$f":"'2. Conservation Measures'!HX88","v":0},{"$f":"'2. Conservation Measures'!HY88","v":0},{"$f":"'2. Conservation Measures'!HZ88","v":0},{"$f":"'2. Conservation Measures'!IA88","v":0},{"$f":"'2. Conservation Measures'!IB88","v":0},{"$f":"'2. Conservation Measures'!IC88","v":0},{"$f":"'2. Conservation Measures'!ID88","v":0},{"$f":"'2. Conservation Measures'!IE88","v":0},{"$f":"'2. Conservation Measures'!IF88","v":0},{"$f":"'2. Conservation Measures'!IG88","v":0},{"$f":"'2. Conservation Measures'!IH88","v":0},{"$f":"'2. Conservation Measures'!II88","v":0},{"$f":"'2. Conservation Measures'!IJ88","v":0},{"$f":"'2. Conservation Measures'!IK88","v":0},{"$f":"'2. Conservation Measures'!IL88","v":0},{"$f":"'2. Conservation Measures'!IM88","v":0},{"$f":"'2. Conservation Measures'!IN88","v":0},null,{"$f":"'2. Conservation Measures'!IP88","v":0},{"$f":"'2. Conservation Measures'!IQ88","v":0},{"$f":"'2. Conservation Measures'!IR88","v":0},{"$f":"'2. Conservation Measures'!IS88","v":0},{"$f":"'2. Conservation Measures'!IT88","v":0},{"$f":"'2. Conservation Measures'!IU88","v":0},{"$f":"'2. Conservation Measures'!IV88","v":0},{"$f":"'2. Conservation Measures'!IW88","v":0},{"$f":"'2. Conservation Measures'!IX88","v":0},{"$f":"'2. Conservation Measures'!IY88","v":0},{"$f":"'2. Conservation Measures'!IZ88","v":0},{"$f":"'2. Conservation Measures'!JA88","v":0},{"$f":"'2. Conservation Measures'!JB88","v":0},{"$f":"'2. Conservation Measures'!JC88","v":0},{"$f":"'2. Conservation Measures'!JD88","v":0},{"$f":"'2. Conservation Measures'!JE88","v":0},{"$f":"'2. Conservation Measures'!JF88","v":0},{"$f":"'2. Conservation Measures'!JG88","v":0},{"$f":"'2. Conservation Measures'!JH88","v":0},{"$f":"'2. Conservation Measures'!JI88","v":0},{"$f":"'2. Conservation Measures'!JJ88","v":0},{"$f":"'2. Conservation Measures'!JK88","v":0},{"$f":"'2. Conservation Measures'!JL88","v":0},{"$f":"'2. Conservation Measures'!JM88","v":0},{"$f":"'2. Conservation Measures'!JN88","v":0},{"$f":"'2. Conservation Measures'!JO88","v":0},{"$f":"'2. Conservation Measures'!JP88","v":0},{"$f":"'2. Conservation Measures'!JQ88","v":0},{"$f":"'2. Conservation Measures'!JR88","v":0},{"$f":"'2. Conservation Measures'!JS88","v":0},{"$f":"'2. Conservation Measures'!JT88","v":0},{"$f":"'2. Conservation Measures'!JU88","v":0},{"$f":"'2. Conservation Measures'!JV88","v":0},{"$f":"'2. Conservation Measures'!JW88","v":0},{"$f":"'2. Conservation Measures'!JX88","v":0},{"$f":"'2. Conservation Measures'!JY88","v":0},{"$f":"'2. Conservation Measures'!JZ88","v":0},{"$f":"'2. Conservation Measures'!KA88","v":0},{"$f":"'2. Conservation Measures'!KB88","v":0},{"$f":"'2. Conservation Measures'!KC88","v":0},{"$f":"'2. Conservation Measures'!KD88","v":0},{"$f":"'2. Conservation Measures'!KE88","v":0},{"$f":"'2. Conservation Measures'!KF88","v":0},{"$f":"'2. Conservation Measures'!KG88","v":0},{"$f":"'2. Conservation Measures'!KH88","v":0},{"$f":"'2. Conservation Measures'!KI88","v":0},{"$f":"'2. Conservation Measures'!KJ88","v":0},{"$f":"'2. Conservation Measures'!KK88","v":0},{"$f":"'2. Conservation Measures'!KL88","v":0},{"$f":"'2. Conservation Measures'!KM88","v":0},{"$f":"'2. Conservation Measures'!KN88","v":0}]
[null,{"$f":"'2. Conservation Measures'!B89","v":"USR-MF-04"},{"$f":"'2. Conservation Measures'!C89","v":0},{"$f":"'2. Conservation Measures'!D89","v":"N"},null,{"$f":"'2. Conservation Measures'!AA89","v":0},null,{"$f":"'2. Conservation Measures'!AO89","v":0},{"$f":"'2. Conservation Measures'!AP89","v":0},{"$f":"'2. Conservation Measures'!AQ89","v":0},{"$f":"'2. Conservation Measures'!AR89","v":0},{"$f":"'2. Conservation Measures'!AS89","v":0},{"$f":"'2. Conservation Measures'!AT89","v":0},{"$f":"'2. Conservation Measures'!AU89","v":0},{"$f":"'2. Conservation Measures'!AV89","v":0},{"$f":"'2. Conservation Measures'!AW89","v":0},{"$f":"'2. Conservation Measures'!AX89","v":0},{"$f":"'2. Conservation Measures'!AY89","v":0},{"$f":"'2. Conservation Measures'!AZ89","v":0},{"$f":"'2. Conservation Measures'!BA89","v":0},{"$f":"'2. Conservation Measures'!BB89","v":0},{"$f":"'2. Conservation Measures'!BC89","v":0},{"$f":"'2. Conservation Measures'!BD89","v":0},{"$f":"'2. Conservation Measures'!BE89","v":0},{"$f":"'2. Conservation Measures'!BF89","v":0},{"$f":"'2. Conservation Measures'!BG89","v":0},{"$f":"'2. Conservation Measures'!BH89","v":0},{"$f":"'2. Conservation Measures'!BI89","v":0},{"$f":"'2. Conservation Measures'!BJ89","v":0},{"$f":"'2. Conservation Measures'!BK89","v":0},{"$f":"'2. Conservation Measures'!BL89","v":0},{"$f":"'2. Conservation Measures'!BM89","v":0},{"$f":"'2. Conservation Measures'!BN89","v":0},{"$f":"'2. Conservation Measures'!BO89","v":0},{"$f":"'2. Conservation Measures'!BP89","v":0},{"$f":"'2. Conservation Measures'!BQ89","v":0},{"$f":"'2. Conservation Measures'!BR89","v":0},{"$f":"'2. Conservation Measures'!BS89","v":0},{"$f":"'2. Conservation Measures'!BT89","v":0},{"$f":"'2. Conservation Measures'!BU89","v":0},{"$f":"'2. Conservation Measures'!BV89","v":0},{"$f":"'2. Conservation Measures'!BW89","v":0},{"$f":"'2. Conservation Measures'!BX89","v":0},{"$f":"'2. Conservation Measures'!BY89","v":0},{"$f":"'2. Conservation Measures'!BZ89","v":0},{"$f":"'2. Conservation Measures'!CA89","v":0},{"$f":"'2. Conservation Measures'!CB89","v":0},{"$f":"'2. Conservation Measures'!CC89","v":0},{"$f":"'2. Conservation Measures'!CD89","v":0},{"$f":"'2. Conservation Measures'!CE89","v":0},{"$f":"'2. Conservation Measures'!CF89","v":0},{"$f":"'2. Conservation Measures'!CG89","v":0},{"$f":"'2. Conservation Measures'!CH89","v":0},{"$f":"'2. Conservation Measures'!CI89","v":0},{"$f":"'2. Conservation Measures'!CJ89","v":0},{"$f":"'2. Conservation Measures'!CK89","v":0},{"$f":"'2. Conservation Measures'!CL89","v":0},{"$f":"'2. Conservation Measures'!CM89","v":0},null,{"$f":"'2. Conservation Measures'!CO89","v":0},{"$f":"'2. Conservation Measures'!CP89","v":0},{"$f":"'2. Conservation Measures'!CQ89","v":0},{"$f":"'2. Conservation Measures'!CR89","v":0},{"$f":"'2. Conservation Measures'!CS89","v":0},{"$f":"'2. Conservation Measures'!CT89","v":0},{"$f":"'2. Conservation Measures'!CU89","v":0},{"$f":"'2. Conservation Measures'!CV89","v":0},{"$f":"'2. Conservation Measures'!CW89","v":0},{"$f":"'2. Conservation Measures'!CX89","v":0},{"$f":"'2. Conservation Measures'!CY89","v":0},{"$f":"'2. Conservation Measures'!CZ89","v":0},{"$f":"'2. Conservation Measures'!DA89","v":0},{"$f":"'2. Conservation Measures'!DB89","v":0},{"$f":"'2. Conservation Measures'!DC89","v":0},{"$f":"'2. Conservation Measures'!DD89","v":0},{"$f":"'2. Conservation Measures'!DE89","v":0},{"$f":"'2. Conservation Measures'!DF89","v":0},{"$f":"'2. Conservation Measures'!DG89","v":0},{"$f":"'2. Conservation Measures'!DH89","v":0},{"$f":"'2. Conservation Measures'!DI89","v":0},{"$f":"'2. Conservation Measures'!DJ89","v":0},{"$f":"'2. Conservation Measures'!DK89","v":0},{"$f":"'2. Conservation Measures'!DL89","v":0},{"$f":"'2. Conservation Measures'!DM89","v":0},{"$f":"'2. Conservation Measures'!DN89","v":0},{"$f":"'2. Conservation Measures'!DO89","v":0},{"$f":"'2. Conservation Measures'!DP89","v":0},{"$f":"'2. Conservation Measures'!DQ89","v":0},{"$f":"'2. Conservation Measures'!DR89","v":0},{"$f":"'2. Conservation Measures'!DS89","v":0},{"$f":"'2. Conservation Measures'!DT89","v":0},{"$f":"'2. Conservation Measures'!DU89","v":0},{"$f":"'2. Conservation Measures'!DV89","v":0},{"$f":"'2. Conservation Measures'!DW89","v":0},{"$f":"'2. Conservation Measures'!DX89","v":0},{"$f":"'2. Conservation Measures'!DY89","v":0},{"$f":"'2. Conservation Measures'!DZ89","v":0},{"$f":"'2. Conservation Measures'!EA89","v":0},{"$f":"'2. Conservation Measures'!EB89","v":0},{"$f":"'2. Conservation Measures'!EC89","v":0},{"$f":"'2. Conservation Measures'!ED89","v":0},{"$f":"'2. Conservation Measures'!EE89","v":0},{"$f":"'2. Conservation Measures'!EF89","v":0},{"$f":"'2. Conservation Measures'!EG89","v":0},{"$f":"'2. Conservation Measures'!EH89","v":0},{"$f":"'2. Conservation Measures'!EI89","v":0},{"$f":"'2. Conservation Measures'!EJ89","v":0},{"$f":"'2. Conservation Measures'!EK89","v":0},{"$f":"'2. Conservation Measures'!EL89","v":0},{"$f":"'2. Conservation Measures'!EM89","v":0},null,{"$f":"'2. Conservation Measures'!KP89","v":0},{"$f":"'2. Conservation Measures'!KQ89","v":0},{"$f":"'2. Conservation Measures'!KR89","v":0},{"$f":"'2. Conservation Measures'!KS89","v":0},{"$f":"'2. Conservation Measures'!KT89","v":0},{"$f":"'2. Conservation Measures'!KU89","v":0},{"$f":"'2. Conservation Measures'!KV89","v":0},{"$f":"'2. Conservation Measures'!KW89","v":0},{"$f":"'2. Conservation Measures'!KX89","v":0},{"$f":"'2. Conservation Measures'!KY89","v":0},{"$f":"'2. Conservation Measures'!KZ89","v":0},{"$f":"'2. Conservation Measures'!LA89","v":0},{"$f":"'2. Conservation Measures'!LB89","v":0},{"$f":"'2. Conservation Measures'!LC89","v":0},{"$f":"'2. Conservation Measures'!LD89","v":0},{"$f":"'2. Conservation Measures'!LE89","v":0},{"$f":"'2. Conservation Measures'!LF89","v":0},{"$f":"'2. Conservation Measures'!LG89","v":0},{"$f":"'2. Conservation Measures'!LH89","v":0},{"$f":"'2. Conservation Measures'!LI89","v":0},{"$f":"'2. Conservation Measures'!LJ89","v":0},{"$f":"'2. Conservation Measures'!LK89","v":0},{"$f":"'2. Conservation Measures'!LL89","v":0},{"$f":"'2. Conservation Measures'!LM89","v":0},{"$f":"'2. Conservation Measures'!LN89","v":0},{"$f":"'2. Conservation Measures'!LO89","v":0},{"$f":"'2. Conservation Measures'!LP89","v":0},{"$f":"'2. Conservation Measures'!LQ89","v":0},{"$f":"'2. Conservation Measures'!LR89","v":0},{"$f":"'2. Conservation Measures'!LS89","v":0},{"$f":"'2. Conservation Measures'!LT89","v":0},{"$f":"'2. Conservation Measures'!LU89","v":0},{"$f":"'2. Conservation Measures'!LV89","v":0},{"$f":"'2. Conservation Measures'!LW89","v":0},{"$f":"'2. Conservation Measures'!LX89","v":0},{"$f":"'2. Conservation Measures'!LY89","v":0},{"$f":"'2. Conservation Measures'!LZ89","v":0},{"$f":"'2. Conservation Measures'!MA89","v":0},{"$f":"'2. Conservation Measures'!MB89","v":0},{"$f":"'2. Conservation Measures'!MC89","v":0},{"$f":"'2. Conservation Measures'!MD89","v":0},{"$f":"'2. Conservation Measures'!ME89","v":0},{"$f":"'2. Conservation Measures'!MF89","v":0},{"$f":"'2. Conservation Measures'!MG89","v":0},{"$f":"'2. Conservation Measures'!MH89","v":0},{"$f":"'2. Conservation Measures'!MI89","v":0},{"$f":"'2. Conservation Measures'!MJ89","v":0},{"$f":"'2. Conservation Measures'!MK89","v":0},{"$f":"'2. Conservation Measures'!ML89","v":0},{"$f":"'2. Conservation Measures'!MM89","v":0},{"$f":"'2. Conservation Measures'!MN89","v":0},null,{"$f":"'2. Conservation Measures'!EP89","v":0},{"$f":"'2. Conservation Measures'!EQ89","v":0},{"$f":"'2. Conservation Measures'!ER89","v":0},{"$f":"'2. Conservation Measures'!ES89","v":0},{"$f":"'2. Conservation Measures'!ET89","v":0},{"$f":"'2. Conservation Measures'!EU89","v":0},{"$f":"'2. Conservation Measures'!EV89","v":0},{"$f":"'2. Conservation Measures'!EW89","v":0},{"$f":"'2. Conservation Measures'!EX89","v":0},{"$f":"'2. Conservation Measures'!EY89","v":0},{"$f":"'2. Conservation Measures'!EZ89","v":0},{"$f":"'2. Conservation Measures'!FA89","v":0},{"$f":"'2. Conservation Measures'!FB89","v":0},{"$f":"'2. Conservation Measures'!FC89","v":0},{"$f":"'2. Conservation Measures'!FD89","v":0},{"$f":"'2. Conservation Measures'!FE89","v":0},{"$f":"'2. Conservation Measures'!FF89","v":0},{"$f":"'2. Conservation Measures'!FG89","v":0},{"$f":"'2. Conservation Measures'!FH89","v":0},{"$f":"'2. Conservation Measures'!FI89","v":0},{"$f":"'2. Conservation Measures'!FJ89","v":0},{"$f":"'2. Conservation Measures'!FK89","v":0},{"$f":"'2. Conservation Measures'!FL89","v":0},{"$f":"'2. Conservation Measures'!FM89","v":0},{"$f":"'2. Conservation Measures'!FN89","v":0},{"$f":"'2. Conservation Measures'!FO89","v":0},{"$f":"'2. Conservation Measures'!FP89","v":0},{"$f":"'2. Conservation Measures'!FQ89","v":0},{"$f":"'2. Conservation Measures'!FR89","v":0},{"$f":"'2. Conservation Measures'!FS89","v":0},{"$f":"'2. Conservation Measures'!FT89","v":0},{"$f":"'2. Conservation Measures'!FU89","v":0},{"$f":"'2. Conservation Measures'!FV89","v":0},{"$f":"'2. Conservation Measures'!FW89","v":0},{"$f":"'2. Conservation Measures'!FX89","v":0},{"$f":"'2. Conservation Measures'!FY89","v":0},{"$f":"'2. Conservation Measures'!FZ89","v":0},{"$f":"'2. Conservation Measures'!GA89","v":0},{"$f":"'2. Conservation Measures'!GB89","v":0},{"$f":"'2. Conservation Measures'!GC89","v":0},{"$f":"'2. Conservation Measures'!GD89","v":0},{"$f":"'2. Conservation Measures'!GE89","v":0},{"$f":"'2. Conservation Measures'!GF89","v":0},{"$f":"'2. Conservation Measures'!GG89","v":0},{"$f":"'2. Conservation Measures'!GH89","v":0},{"$f":"'2. Conservation Measures'!GI89","v":0},{"$f":"'2. Conservation Measures'!GJ89","v":0},{"$f":"'2. Conservation Measures'!GK89","v":0},{"$f":"'2. Conservation Measures'!GL89","v":0},{"$f":"'2. Conservation Measures'!GM89","v":0},{"$f":"'2. Conservation Measures'!GN89","v":0},null,{"$f":"'2. Conservation Measures'!GP89","v":0},{"$f":"'2. Conservation Measures'!GQ89","v":0},{"$f":"'2. Conservation Measures'!GR89","v":0},{"$f":"'2. Conservation Measures'!GS89","v":0},{"$f":"'2. Conservation Measures'!GT89","v":0},{"$f":"'2. Conservation Measures'!GU89","v":0},{"$f":"'2. Conservation Measures'!GV89","v":0},{"$f":"'2. Conservation Measures'!GW89","v":0},{"$f":"'2. Conservation Measures'!GX89","v":0},{"$f":"'2. Conservation Measures'!GY89","v":0},{"$f":"'2. Conservation Measures'!GZ89","v":0},{"$f":"'2. Conservation Measures'!HA89","v":0},{"$f":"'2. Conservation Measures'!HB89","v":0},{"$f":"'2. Conservation Measures'!HC89","v":0},{"$f":"'2. Conservation Measures'!HD89","v":0},{"$f":"'2. Conservation Measures'!HE89","v":0},{"$f":"'2. Conservation Measures'!HF89","v":0},{"$f":"'2. Conservation Measures'!HG89","v":0},{"$f":"'2. Conservation Measures'!HH89","v":0},{"$f":"'2. Conservation Measures'!HI89","v":0},{"$f":"'2. Conservation Measures'!HJ89","v":0},{"$f":"'2. Conservation Measures'!HK89","v":0},{"$f":"'2. Conservation Measures'!HL89","v":0},{"$f":"'2. Conservation Measures'!HM89","v":0},{"$f":"'2. Conservation Measures'!HN89","v":0},{"$f":"'2. Conservation Measures'!HO89","v":0},{"$f":"'2. Conservation Measures'!HP89","v":0},{"$f":"'2. Conservation Measures'!HQ89","v":0},{"$f":"'2. Conservation Measures'!HR89","v":0},{"$f":"'2. Conservation Measures'!HS89","v":0},{"$f":"'2. Conservation Measures'!HT89","v":0},{"$f":"'2. Conservation Measures'!HU89","v":0},{"$f":"'2. Conservation Measures'!HV89","v":0},{"$f":"'2. Conservation Measures'!HW89","v":0},{"$f":"'2. Conservation Measures'!HX89","v":0},{"$f":"'2. Conservation Measures'!HY89","v":0},{"$f":"'2. Conservation Measures'!HZ89","v":0},{"$f":"'2. Conservation Measures'!IA89","v":0},{"$f":"'2. Conservation Measures'!IB89","v":0},{"$f":"'2. Conservation Measures'!IC89","v":0},{"$f":"'2. Conservation Measures'!ID89","v":0},{"$f":"'2. Conservation Measures'!IE89","v":0},{"$f":"'2. Conservation Measures'!IF89","v":0},{"$f":"'2. Conservation Measures'!IG89","v":0},{"$f":"'2. Conservation Measures'!IH89","v":0},{"$f":"'2. Conservation Measures'!II89","v":0},{"$f":"'2. Conservation Measures'!IJ89","v":0},{"$f":"'2. Conservation Measures'!IK89","v":0},{"$f":"'2. Conservation Measures'!IL89","v":0},{"$f":"'2. Conservation Measures'!IM89","v":0},{"$f":"'2. Conservation Measures'!IN89","v":0},null,{"$f":"'2. Conservation Measures'!IP89","v":0},{"$f":"'2. Conservation Measures'!IQ89","v":0},{"$f":"'2. Conservation Measures'!IR89","v":0},{"$f":"'2. Conservation Measures'!IS89","v":0},{"$f":"'2. Conservation Measures'!IT89","v":0},{"$f":"'2. Conservation Measures'!IU89","v":0},{"$f":"'2. Conservation Measures'!IV89","v":0},{"$f":"'2. Conservation Measures'!IW89","v":0},{"$f":"'2. Conservation Measures'!IX89","v":0},{"$f":"'2. Conservation Measures'!IY89","v":0},{"$f":"'2. Conservation Measures'!IZ89","v":0},{"$f":"'2. Conservation Measures'!JA89","v":0},{"$f":"'2. Conservation Measures'!JB89","v":0},{"$f":"'2. Conservation Measures'!JC89","v":0},{"$f":"'2. Conservation Measures'!JD89","v":0},{"$f":"'2. Conservation Measures'!JE89","v":0},{"$f":"'2. Conservation Measures'!JF89","v":0},{"$f":"'2. Conservation Measures'!JG89","v":0},{"$f":"'2. Conservation Measures'!JH89","v":0},{"$f":"'2. Conservation Measures'!JI89","v":0},{"$f":"'2. Conservation Measures'!JJ89","v":0},{"$f":"'2. Conservation Measures'!JK89","v":0},{"$f":"'2. Conservation Measures'!JL89","v":0},{"$f":"'2. Conservation Measures'!JM89","v":0},{"$f":"'2. Conservation Measures'!JN89","v":0},{"$f":"'2. Conservation Measures'!JO89","v":0},{"$f":"'2. Conservation Measures'!JP89","v":0},{"$f":"'2. Conservation Measures'!JQ89","v":0},{"$f":"'2. Conservation Measures'!JR89","v":0},{"$f":"'2. Conservation Measures'!JS89","v":0},{"$f":"'2. Conservation Measures'!JT89","v":0},{"$f":"'2. Conservation Measures'!JU89","v":0},{"$f":"'2. Conservation Measures'!JV89","v":0},{"$f":"'2. Conservation Measures'!JW89","v":0},{"$f":"'2. Conservation Measures'!JX89","v":0},{"$f":"'2. Conservation Measures'!JY89","v":0},{"$f":"'2. Conservation Measures'!JZ89","v":0},{"$f":"'2. Conservation Measures'!KA89","v":0},{"$f":"'2. Conservation Measures'!KB89","v":0},{"$f":"'2. Conservation Measures'!KC89","v":0},{"$f":"'2. Conservation Measures'!KD89","v":0},{"$f":"'2. Conservation Measures'!KE89","v":0},{"$f":"'2. Conservation Measures'!KF89","v":0},{"$f":"'2. Conservation Measures'!KG89","v":0},{"$f":"'2. Conservation Measures'!KH89","v":0},{"$f":"'2. Conservation Measures'!KI89","v":0},{"$f":"'2. Conservation Measures'!KJ89","v":0},{"$f":"'2. Conservation Measures'!KK89","v":0},{"$f":"'2. Conservation Measures'!KL89","v":0},{"$f":"'2. Conservation Measures'!KM89","v":0},{"$f":"'2. Conservation Measures'!KN89","v":0}]
[null,{"$f":"'2. Conservation Measures'!B90","v":"USR-MF-05"},{"$f":"'2. Conservation Measures'!C90","v":0},{"$f":"'2. Conservation Measures'!D90","v":"N"},null,{"$f":"'2. Conservation Measures'!AA90","v":0},null,{"$f":"'2. Conservation Measures'!AO90","v":0},{"$f":"'2. Conservation Measures'!AP90","v":0},{"$f":"'2. Conservation Measures'!AQ90","v":0},{"$f":"'2. Conservation Measures'!AR90","v":0},{"$f":"'2. Conservation Measures'!AS90","v":0},{"$f":"'2. Conservation Measures'!AT90","v":0},{"$f":"'2. Conservation Measures'!AU90","v":0},{"$f":"'2. Conservation Measures'!AV90","v":0},{"$f":"'2. Conservation Measures'!AW90","v":0},{"$f":"'2. Conservation Measures'!AX90","v":0},{"$f":"'2. Conservation Measures'!AY90","v":0},{"$f":"'2. Conservation Measures'!AZ90","v":0},{"$f":"'2. Conservation Measures'!BA90","v":0},{"$f":"'2. Conservation Measures'!BB90","v":0},{"$f":"'2. Conservation Measures'!BC90","v":0},{"$f":"'2. Conservation Measures'!BD90","v":0},{"$f":"'2. Conservation Measures'!BE90","v":0},{"$f":"'2. Conservation Measures'!BF90","v":0},{"$f":"'2. Conservation Measures'!BG90","v":0},{"$f":"'2. Conservation Measures'!BH90","v":0},{"$f":"'2. Conservation Measures'!BI90","v":0},{"$f":"'2. Conservation Measures'!BJ90","v":0},{"$f":"'2. Conservation Measures'!BK90","v":0},{"$f":"'2. Conservation Measures'!BL90","v":0},{"$f":"'2. Conservation Measures'!BM90","v":0},{"$f":"'2. Conservation Measures'!BN90","v":0},{"$f":"'2. Conservation Measures'!BO90","v":0},{"$f":"'2. Conservation Measures'!BP90","v":0},{"$f":"'2. Conservation Measures'!BQ90","v":0},{"$f":"'2. Conservation Measures'!BR90","v":0},{"$f":"'2. Conservation Measures'!BS90","v":0},{"$f":"'2. Conservation Measures'!BT90","v":0},{"$f":"'2. Conservation Measures'!BU90","v":0},{"$f":"'2. Conservation Measures'!BV90","v":0},{"$f":"'2. Conservation Measures'!BW90","v":0},{"$f":"'2. Conservation Measures'!BX90","v":0},{"$f":"'2. Conservation Measures'!BY90","v":0},{"$f":"'2. Conservation Measures'!BZ90","v":0},{"$f":"'2. Conservation Measures'!CA90","v":0},{"$f":"'2. Conservation Measures'!CB90","v":0},{"$f":"'2. Conservation Measures'!CC90","v":0},{"$f":"'2. Conservation Measures'!CD90","v":0},{"$f":"'2. Conservation Measures'!CE90","v":0},{"$f":"'2. Conservation Measures'!CF90","v":0},{"$f":"'2. Conservation Measures'!CG90","v":0},{"$f":"'2. Conservation Measures'!CH90","v":0},{"$f":"'2. Conservation Measures'!CI90","v":0},{"$f":"'2. Conservation Measures'!CJ90","v":0},{"$f":"'2. Conservation Measures'!CK90","v":0},{"$f":"'2. Conservation Measures'!CL90","v":0},{"$f":"'2. Conservation Measures'!CM90","v":0},null,{"$f":"'2. Conservation Measures'!CO90","v":0},{"$f":"'2. Conservation Measures'!CP90","v":0},{"$f":"'2. Conservation Measures'!CQ90","v":0},{"$f":"'2. Conservation Measures'!CR90","v":0},{"$f":"'2. Conservation Measures'!CS90","v":0},{"$f":"'2. Conservation Measures'!CT90","v":0},{"$f":"'2. Conservation Measures'!CU90","v":0},{"$f":"'2. Conservation Measures'!CV90","v":0},{"$f":"'2. Conservation Measures'!CW90","v":0},{"$f":"'2. Conservation Measures'!CX90","v":0},{"$f":"'2. Conservation Measures'!CY90","v":0},{"$f":"'2. Conservation Measures'!CZ90","v":0},{"$f":"'2. Conservation Measures'!DA90","v":0},{"$f":"'2. Conservation Measures'!DB90","v":0},{"$f":"'2. Conservation Measures'!DC90","v":0},{"$f":"'2. Conservation Measures'!DD90","v":0},{"$f":"'2. Conservation Measures'!DE90","v":0},{"$f":"'2. Conservation Measures'!DF90","v":0},{"$f":"'2. Conservation Measures'!DG90","v":0},{"$f":"'2. Conservation Measures'!DH90","v":0},{"$f":"'2. Conservation Measures'!DI90","v":0},{"$f":"'2. Conservation Measures'!DJ90","v":0},{"$f":"'2. Conservation Measures'!DK90","v":0},{"$f":"'2. Conservation Measures'!DL90","v":0},{"$f":"'2. Conservation Measures'!DM90","v":0},{"$f":"'2. Conservation Measures'!DN90","v":0},{"$f":"'2. Conservation Measures'!DO90","v":0},{"$f":"'2. Conservation Measures'!DP90","v":0},{"$f":"'2. Conservation Measures'!DQ90","v":0},{"$f":"'2. Conservation Measures'!DR90","v":0},{"$f":"'2. Conservation Measures'!DS90","v":0},{"$f":"'2. Conservation Measures'!DT90","v":0},{"$f":"'2. Conservation Measures'!DU90","v":0},{"$f":"'2. Conservation Measures'!DV90","v":0},{"$f":"'2. Conservation Measures'!DW90","v":0},{"$f":"'2. Conservation Measures'!DX90","v":0},{"$f":"'2. Conservation Measures'!DY90","v":0},{"$f":"'2. Conservation Measures'!DZ90","v":0},{"$f":"'2. Conservation Measures'!EA90","v":0},{"$f":"'2. Conservation Measures'!EB90","v":0},{"$f":"'2. Conservation Measures'!EC90","v":0},{"$f":"'2. Conservation Measures'!ED90","v":0},{"$f":"'2. Conservation Measures'!EE90","v":0},{"$f":"'2. Conservation Measures'!EF90","v":0},{"$f":"'2. Conservation Measures'!EG90","v":0},{"$f":"'2. Conservation Measures'!EH90","v":0},{"$f":"'2. Conservation Measures'!EI90","v":0},{"$f":"'2. Conservation Measures'!EJ90","v":0},{"$f":"'2. Conservation Measures'!EK90","v":0},{"$f":"'2. Conservation Measures'!EL90","v":0},{"$f":"'2. Conservation Measures'!EM90","v":0},null,{"$f":"'2. Conservation Measures'!KP90","v":0},{"$f":"'2. Conservation Measures'!KQ90","v":0},{"$f":"'2. Conservation Measures'!KR90","v":0},{"$f":"'2. Conservation Measures'!KS90","v":0},{"$f":"'2. Conservation Measures'!KT90","v":0},{"$f":"'2. Conservation Measures'!KU90","v":0},{"$f":"'2. Conservation Measures'!KV90","v":0},{"$f":"'2. Conservation Measures'!KW90","v":0},{"$f":"'2. Conservation Measures'!KX90","v":0},{"$f":"'2. Conservation Measures'!KY90","v":0},{"$f":"'2. Conservation Measures'!KZ90","v":0},{"$f":"'2. Conservation Measures'!LA90","v":0},{"$f":"'2. Conservation Measures'!LB90","v":0},{"$f":"'2. Conservation Measures'!LC90","v":0},{"$f":"'2. Conservation Measures'!LD90","v":0},{"$f":"'2. Conservation Measures'!LE90","v":0},{"$f":"'2. Conservation Measures'!LF90","v":0},{"$f":"'2. Conservation Measures'!LG90","v":0},{"$f":"'2. Conservation Measures'!LH90","v":0},{"$f":"'2. Conservation Measures'!LI90","v":0},{"$f":"'2. Conservation Measures'!LJ90","v":0},{"$f":"'2. Conservation Measures'!LK90","v":0},{"$f":"'2. Conservation Measures'!LL90","v":0},{"$f":"'2. Conservation Measures'!LM90","v":0},{"$f":"'2. Conservation Measures'!LN90","v":0},{"$f":"'2. Conservation Measures'!LO90","v":0},{"$f":"'2. Conservation Measures'!LP90","v":0},{"$f":"'2. Conservation Measures'!LQ90","v":0},{"$f":"'2. Conservation Measures'!LR90","v":0},{"$f":"'2. Conservation Measures'!LS90","v":0},{"$f":"'2. Conservation Measures'!LT90","v":0},{"$f":"'2. Conservation Measures'!LU90","v":0},{"$f":"'2. Conservation Measures'!LV90","v":0},{"$f":"'2. Conservation Measures'!LW90","v":0},{"$f":"'2. Conservation Measures'!LX90","v":0},{"$f":"'2. Conservation Measures'!LY90","v":0},{"$f":"'2. Conservation Measures'!LZ90","v":0},{"$f":"'2. Conservation Measures'!MA90","v":0},{"$f":"'2. Conservation Measures'!MB90","v":0},{"$f":"'2. Conservation Measures'!MC90","v":0},{"$f":"'2. Conservation Measures'!MD90","v":0},{"$f":"'2. Conservation Measures'!ME90","v":0},{"$f":"'2. Conservation Measures'!MF90","v":0},{"$f":"'2. Conservation Measures'!MG90","v":0},{"$f":"'2. Conservation Measures'!MH90","v":0},{"$f":"'2. Conservation Measures'!MI90","v":0},{"$f":"'2. Conservation Measures'!MJ90","v":0},{"$f":"'2. Conservation Measures'!MK90","v":0},{"$f":"'2. Conservation Measures'!ML90","v":0},{"$f":"'2. Conservation Measures'!MM90","v":0},{"$f":"'2. Conservation Measures'!MN90","v":0},null,{"$f":"'2. Conservation Measures'!EP90","v":0},{"$f":"'2. Conservation Measures'!EQ90","v":0},{"$f":"'2. Conservation Measures'!ER90","v":0},{"$f":"'2. Conservation Measures'!ES90","v":0},{"$f":"'2. Conservation Measures'!ET90","v":0},{"$f":"'2. Conservation Measures'!EU90","v":0},{"$f":"'2. Conservation Measures'!EV90","v":0},{"$f":"'2. Conservation Measures'!EW90","v":0},{"$f":"'2. Conservation Measures'!EX90","v":0},{"$f":"'2. Conservation Measures'!EY90","v":0},{"$f":"'2. Conservation Measures'!EZ90","v":0},{"$f":"'2. Conservation Measures'!FA90","v":0},{"$f":"'2. Conservation Measures'!FB90","v":0},{"$f":"'2. Conservation Measures'!FC90","v":0},{"$f":"'2. Conservation Measures'!FD90","v":0},{"$f":"'2. Conservation Measures'!FE90","v":0},{"$f":"'2. Conservation Measures'!FF90","v":0},{"$f":"'2. Conservation Measures'!FG90","v":0},{"$f":"'2. Conservation Measures'!FH90","v":0},{"$f":"'2. Conservation Measures'!FI90","v":0},{"$f":"'2. Conservation Measures'!FJ90","v":0},{"$f":"'2. Conservation Measures'!FK90","v":0},{"$f":"'2. Conservation Measures'!FL90","v":0},{"$f":"'2. Conservation Measures'!FM90","v":0},{"$f":"'2. Conservation Measures'!FN90","v":0},{"$f":"'2. Conservation Measures'!FO90","v":0},{"$f":"'2. Conservation Measures'!FP90","v":0},{"$f":"'2. Conservation Measures'!FQ90","v":0},{"$f":"'2. Conservation Measures'!FR90","v":0},{"$f":"'2. Conservation Measures'!FS90","v":0},{"$f":"'2. Conservation Measures'!FT90","v":0},{"$f":"'2. Conservation Measures'!FU90","v":0},{"$f":"'2. Conservation Measures'!FV90","v":0},{"$f":"'2. Conservation Measures'!FW90","v":0},{"$f":"'2. Conservation Measures'!FX90","v":0},{"$f":"'2. Conservation Measures'!FY90","v":0},{"$f":"'2. Conservation Measures'!FZ90","v":0},{"$f":"'2. Conservation Measures'!GA90","v":0},{"$f":"'2. Conservation Measures'!GB90","v":0},{"$f":"'2. Conservation Measures'!GC90","v":0},{"$f":"'2. Conservation Measures'!GD90","v":0},{"$f":"'2. Conservation Measures'!GE90","v":0},{"$f":"'2. Conservation Measures'!GF90","v":0},{"$f":"'2. Conservation Measures'!GG90","v":0},{"$f":"'2. Conservation Measures'!GH90","v":0},{"$f":"'2. Conservation Measures'!GI90","v":0},{"$f":"'2. Conservation Measures'!GJ90","v":0},{"$f":"'2. Conservation Measures'!GK90","v":0},{"$f":"'2. Conservation Measures'!GL90","v":0},{"$f":"'2. Conservation Measures'!GM90","v":0},{"$f":"'2. Conservation Measures'!GN90","v":0},null,{"$f":"'2. Conservation Measures'!GP90","v":0},{"$f":"'2. Conservation Measures'!GQ90","v":0},{"$f":"'2. Conservation Measures'!GR90","v":0},{"$f":"'2. Conservation Measures'!GS90","v":0},{"$f":"'2. Conservation Measures'!GT90","v":0},{"$f":"'2. Conservation Measures'!GU90","v":0},{"$f":"'2. Conservation Measures'!GV90","v":0},{"$f":"'2. Conservation Measures'!GW90","v":0},{"$f":"'2. Conservation Measures'!GX90","v":0},{"$f":"'2. Conservation Measures'!GY90","v":0},{"$f":"'2. Conservation Measures'!GZ90","v":0},{"$f":"'2. Conservation Measures'!HA90","v":0},{"$f":"'2. Conservation Measures'!HB90","v":0},{"$f":"'2. Conservation Measures'!HC90","v":0},{"$f":"'2. Conservation Measures'!HD90","v":0},{"$f":"'2. Conservation Measures'!HE90","v":0},{"$f":"'2. Conservation Measures'!HF90","v":0},{"$f":"'2. Conservation Measures'!HG90","v":0},{"$f":"'2. Conservation Measures'!HH90","v":0},{"$f":"'2. Conservation Measures'!HI90","v":0},{"$f":"'2. Conservation Measures'!HJ90","v":0},{"$f":"'2. Conservation Measures'!HK90","v":0},{"$f":"'2. Conservation Measures'!HL90","v":0},{"$f":"'2. Conservation Measures'!HM90","v":0},{"$f":"'2. Conservation Measures'!HN90","v":0},{"$f":"'2. Conservation Measures'!HO90","v":0},{"$f":"'2. Conservation Measures'!HP90","v":0},{"$f":"'2. Conservation Measures'!HQ90","v":0},{"$f":"'2. Conservation Measures'!HR90","v":0},{"$f":"'2. Conservation Measures'!HS90","v":0},{"$f":"'2. Conservation Measures'!HT90","v":0},{"$f":"'2. Conservation Measures'!HU90","v":0},{"$f":"'2. Conservation Measures'!HV90","v":0},{"$f":"'2. Conservation Measures'!HW90","v":0},{"$f":"'2. Conservation Measures'!HX90","v":0},{"$f":"'2. Conservation Measures'!HY90","v":0},{"$f":"'2. Conservation Measures'!HZ90","v":0},{"$f":"'2. Conservation Measures'!IA90","v":0},{"$f":"'2. Conservation Measures'!IB90","v":0},{"$f":"'2. Conservation Measures'!IC90","v":0},{"$f":"'2. Conservation Measures'!ID90","v":0},{"$f":"'2. Conservation Measures'!IE90","v":0},{"$f":"'2. Conservation Measures'!IF90","v":0},{"$f":"'2. Conservation Measures'!IG90","v":0},{"$f":"'2. Conservation Measures'!IH90","v":0},{"$f":"'2. Conservation Measures'!II90","v":0},{"$f":"'2. Conservation Measures'!IJ90","v":0},{"$f":"'2. Conservation Measures'!IK90","v":0},{"$f":"'2. Conservation Measures'!IL90","v":0},{"$f":"'2. Conservation Measures'!IM90","v":0},{"$f":"'2. Conservation Measures'!IN90","v":0},null,{"$f":"'2. Conservation Measures'!IP90","v":0},{"$f":"'2. Conservation Measures'!IQ90","v":0},{"$f":"'2. Conservation Measures'!IR90","v":0},{"$f":"'2. Conservation Measures'!IS90","v":0},{"$f":"'2. Conservation Measures'!IT90","v":0},{"$f":"'2. Conservation Measures'!IU90","v":0},{"$f":"'2. Conservation Measures'!IV90","v":0},{"$f":"'2. Conservation Measures'!IW90","v":0},{"$f":"'2. Conservation Measures'!IX90","v":0},{"$f":"'2. Conservation Measures'!IY90","v":0},{"$f":"'2. Conservation Measures'!IZ90","v":0},{"$f":"'2. Conservation Measures'!JA90","v":0},{"$f":"'2. Conservation Measures'!JB90","v":0},{"$f":"'2. Conservation Measures'!JC90","v":0},{"$f":"'2. Conservation Measures'!JD90","v":0},{"$f":"'2. Conservation Measures'!JE90","v":0},{"$f":"'2. Conservation Measures'!JF90","v":0},{"$f":"'2. Conservation Measures'!JG90","v":0},{"$f":"'2. Conservation Measures'!JH90","v":0},{"$f":"'2. Conservation Measures'!JI90","v":0},{"$f":"'2. Conservation Measures'!JJ90","v":0},{"$f":"'2. Conservation Measures'!JK90","v":0},{"$f":"'2. Conservation Measures'!JL90","v":0},{"$f":"'2. Conservation Measures'!JM90","v":0},{"$f":"'2. Conservation Measures'!JN90","v":0},{"$f":"'2. Conservation Measures'!JO90","v":0},{"$f":"'2. Conservation Measures'!JP90","v":0},{"$f":"'2. Conservation Measures'!JQ90","v":0},{"$f":"'2. Conservation Measures'!JR90","v":0},{"$f":"'2. Conservation Measures'!JS90","v":0},{"$f":"'2. Conservation Measures'!JT90","v":0},{"$f":"'2. Conservation Measures'!JU90","v":0},{"$f":"'2. Conservation Measures'!JV90","v":0},{"$f":"'2. Conservation Measures'!JW90","v":0},{"$f":"'2. Conservation Measures'!JX90","v":0},{"$f":"'2. Conservation Measures'!JY90","v":0},{"$f":"'2. Conservation Measures'!JZ90","v":0},{"$f":"'2. Conservation Measures'!KA90","v":0},{"$f":"'2. Conservation Measures'!KB90","v":0},{"$f":"'2. Conservation Measures'!KC90","v":0},{"$f":"'2. Conservation Measures'!KD90","v":0},{"$f":"'2. Conservation Measures'!KE90","v":0},{"$f":"'2. Conservation Measures'!KF90","v":0},{"$f":"'2. Conservation Measures'!KG90","v":0},{"$f":"'2. Conservation Measures'!KH90","v":0},{"$f":"'2. Conservation Measures'!KI90","v":0},{"$f":"'2. Conservation Measures'!KJ90","v":0},{"$f":"'2. Conservation Measures'!KK90","v":0},{"$f":"'2. Conservation Measures'!KL90","v":0},{"$f":"'2. Conservation Measures'!KM90","v":0},{"$f":"'2. Conservation Measures'!KN90","v":0}]
[null,{"$f":"'2. Conservation Measures'!B91","v":"USR-MF-06"},{"$f":"'2. Conservation Measures'!C91","v":0},{"$f":"'2. Conservation Measures'!D91","v":"N"},null,{"$f":"'2. Conservation Measures'!AA91","v":0},null,{"$f":"'2. Conservation Measures'!AO91","v":0},{"$f":"'2. Conservation Measures'!AP91","v":0},{"$f":"'2. Conservation Measures'!AQ91","v":0},{"$f":"'2. Conservation Measures'!AR91","v":0},{"$f":"'2. Conservation Measures'!AS91","v":0},{"$f":"'2. Conservation Measures'!AT91","v":0},{"$f":"'2. Conservation Measures'!AU91","v":0},{"$f":"'2. Conservation Measures'!AV91","v":0},{"$f":"'2. Conservation Measures'!AW91","v":0},{"$f":"'2. Conservation Measures'!AX91","v":0},{"$f":"'2. Conservation Measures'!AY91","v":0},{"$f":"'2. Conservation Measures'!AZ91","v":0},{"$f":"'2. Conservation Measures'!BA91","v":0},{"$f":"'2. Conservation Measures'!BB91","v":0},{"$f":"'2. Conservation Measures'!BC91","v":0},{"$f":"'2. Conservation Measures'!BD91","v":0},{"$f":"'2. Conservation Measures'!BE91","v":0},{"$f":"'2. Conservation Measures'!BF91","v":0},{"$f":"'2. Conservation Measures'!BG91","v":0},{"$f":"'2. Conservation Measures'!BH91","v":0},{"$f":"'2. Conservation Measures'!BI91","v":0},{"$f":"'2. Conservation Measures'!BJ91","v":0},{"$f":"'2. Conservation Measures'!BK91","v":0},{"$f":"'2. Conservation Measures'!BL91","v":0},{"$f":"'2. Conservation Measures'!BM91","v":0},{"$f":"'2. Conservation Measures'!BN91","v":0},{"$f":"'2. Conservation Measures'!BO91","v":0},{"$f":"'2. Conservation Measures'!BP91","v":0},{"$f":"'2. Conservation Measures'!BQ91","v":0},{"$f":"'2. Conservation Measures'!BR91","v":0},{"$f":"'2. Conservation Measures'!BS91","v":0},{"$f":"'2. Conservation Measures'!BT91","v":0},{"$f":"'2. Conservation Measures'!BU91","v":0},{"$f":"'2. Conservation Measures'!BV91","v":0},{"$f":"'2. Conservation Measures'!BW91","v":0},{"$f":"'2. Conservation Measures'!BX91","v":0},{"$f":"'2. Conservation Measures'!BY91","v":0},{"$f":"'2. Conservation Measures'!BZ91","v":0},{"$f":"'2. Conservation Measures'!CA91","v":0},{"$f":"'2. Conservation Measures'!CB91","v":0},{"$f":"'2. Conservation Measures'!CC91","v":0},{"$f":"'2. Conservation Measures'!CD91","v":0},{"$f":"'2. Conservation Measures'!CE91","v":0},{"$f":"'2. Conservation Measures'!CF91","v":0},{"$f":"'2. Conservation Measures'!CG91","v":0},{"$f":"'2. Conservation Measures'!CH91","v":0},{"$f":"'2. Conservation Measures'!CI91","v":0},{"$f":"'2. Conservation Measures'!CJ91","v":0},{"$f":"'2. Conservation Measures'!CK91","v":0},{"$f":"'2. Conservation Measures'!CL91","v":0},{"$f":"'2. Conservation Measures'!CM91","v":0},null,{"$f":"'2. Conservation Measures'!CO91","v":0},{"$f":"'2. Conservation Measures'!CP91","v":0},{"$f":"'2. Conservation Measures'!CQ91","v":0},{"$f":"'2. Conservation Measures'!CR91","v":0},{"$f":"'2. Conservation Measures'!CS91","v":0},{"$f":"'2. Conservation Measures'!CT91","v":0},{"$f":"'2. Conservation Measures'!CU91","v":0},{"$f":"'2. Conservation Measures'!CV91","v":0},{"$f":"'2. Conservation Measures'!CW91","v":0},{"$f":"'2. Conservation Measures'!CX91","v":0},{"$f":"'2. Conservation Measures'!CY91","v":0},{"$f":"'2. Conservation Measures'!CZ91","v":0},{"$f":"'2. Conservation Measures'!DA91","v":0},{"$f":"'2. Conservation Measures'!DB91","v":0},{"$f":"'2. Conservation Measures'!DC91","v":0},{"$f":"'2. Conservation Measures'!DD91","v":0},{"$f":"'2. Conservation Measures'!DE91","v":0},{"$f":"'2. Conservation Measures'!DF91","v":0},{"$f":"'2. Conservation Measures'!DG91","v":0},{"$f":"'2. Conservation Measures'!DH91","v":0},{"$f":"'2. Conservation Measures'!DI91","v":0},{"$f":"'2. Conservation Measures'!DJ91","v":0},{"$f":"'2. Conservation Measures'!DK91","v":0},{"$f":"'2. Conservation Measures'!DL91","v":0},{"$f":"'2. Conservation Measures'!DM91","v":0},{"$f":"'2. Conservation Measures'!DN91","v":0},{"$f":"'2. Conservation Measures'!DO91","v":0},{"$f":"'2. Conservation Measures'!DP91","v":0},{"$f":"'2. Conservation Measures'!DQ91","v":0},{"$f":"'2. Conservation Measures'!DR91","v":0},{"$f":"'2. Conservation Measures'!DS91","v":0},{"$f":"'2. Conservation Measures'!DT91","v":0},{"$f":"'2. Conservation Measures'!DU91","v":0},{"$f":"'2. Conservation Measures'!DV91","v":0},{"$f":"'2. Conservation Measures'!DW91","v":0},{"$f":"'2. Conservation Measures'!DX91","v":0},{"$f":"'2. Conservation Measures'!DY91","v":0},{"$f":"'2. Conservation Measures'!DZ91","v":0},{"$f":"'2. Conservation Measures'!EA91","v":0},{"$f":"'2. Conservation Measures'!EB91","v":0},{"$f":"'2. Conservation Measures'!EC91","v":0},{"$f":"'2. Conservation Measures'!ED91","v":0},{"$f":"'2. Conservation Measures'!EE91","v":0},{"$f":"'2. Conservation Measures'!EF91","v":0},{"$f":"'2. Conservation Measures'!EG91","v":0},{"$f":"'2. Conservation Measures'!EH91","v":0},{"$f":"'2. Conservation Measures'!EI91","v":0},{"$f":"'2. Conservation Measures'!EJ91","v":0},{"$f":"'2. Conservation Measures'!EK91","v":0},{"$f":"'2. Conservation Measures'!EL91","v":0},{"$f":"'2. Conservation Measures'!EM91","v":0},null,{"$f":"'2. Conservation Measures'!KP91","v":0},{"$f":"'2. Conservation Measures'!KQ91","v":0},{"$f":"'2. Conservation Measures'!KR91","v":0},{"$f":"'2. Conservation Measures'!KS91","v":0},{"$f":"'2. Conservation Measures'!KT91","v":0},{"$f":"'2. Conservation Measures'!KU91","v":0},{"$f":"'2. Conservation Measures'!KV91","v":0},{"$f":"'2. Conservation Measures'!KW91","v":0},{"$f":"'2. Conservation Measures'!KX91","v":0},{"$f":"'2. Conservation Measures'!KY91","v":0},{"$f":"'2. Conservation Measures'!KZ91","v":0},{"$f":"'2. Conservation Measures'!LA91","v":0},{"$f":"'2. Conservation Measures'!LB91","v":0},{"$f":"'2. Conservation Measures'!LC91","v":0},{"$f":"'2. Conservation Measures'!LD91","v":0},{"$f":"'2. Conservation Measures'!LE91","v":0},{"$f":"'2. Conservation Measures'!LF91","v":0},{"$f":"'2. Conservation Measures'!LG91","v":0},{"$f":"'2. Conservation Measures'!LH91","v":0},{"$f":"'2. Conservation Measures'!LI91","v":0},{"$f":"'2. Conservation Measures'!LJ91","v":0},{"$f":"'2. Conservation Measures'!LK91","v":0},{"$f":"'2. Conservation Measures'!LL91","v":0},{"$f":"'2. Conservation Measures'!LM91","v":0},{"$f":"'2. Conservation Measures'!LN91","v":0},{"$f":"'2. Conservation Measures'!LO91","v":0},{"$f":"'2. Conservation Measures'!LP91","v":0},{"$f":"'2. Conservation Measures'!LQ91","v":0},{"$f":"'2. Conservation Measures'!LR91","v":0},{"$f":"'2. Conservation Measures'!LS91","v":0},{"$f":"'2. Conservation Measures'!LT91","v":0},{"$f":"'2. Conservation Measures'!LU91","v":0},{"$f":"'2. Conservation Measures'!LV91","v":0},{"$f":"'2. Conservation Measures'!LW91","v":0},{"$f":"'2. Conservation Measures'!LX91","v":0},{"$f":"'2. Conservation Measures'!LY91","v":0},{"$f":"'2. Conservation Measures'!LZ91","v":0},{"$f":"'2. Conservation Measures'!MA91","v":0},{"$f":"'2. Conservation Measures'!MB91","v":0},{"$f":"'2. Conservation Measures'!MC91","v":0},{"$f":"'2. Conservation Measures'!MD91","v":0},{"$f":"'2. Conservation Measures'!ME91","v":0},{"$f":"'2. Conservation Measures'!MF91","v":0},{"$f":"'2. Conservation Measures'!MG91","v":0},{"$f":"'2. Conservation Measures'!MH91","v":0},{"$f":"'2. Conservation Measures'!MI91","v":0},{"$f":"'2. Conservation Measures'!MJ91","v":0},{"$f":"'2. Conservation Measures'!MK91","v":0},{"$f":"'2. Conservation Measures'!ML91","v":0},{"$f":"'2. Conservation Measures'!MM91","v":0},{"$f":"'2. Conservation Measures'!MN91","v":0},null,{"$f":"'2. Conservation Measures'!EP91","v":0},{"$f":"'2. Conservation Measures'!EQ91","v":0},{"$f":"'2. Conservation Measures'!ER91","v":0},{"$f":"'2. Conservation Measures'!ES91","v":0},{"$f":"'2. Conservation Measures'!ET91","v":0},{"$f":"'2. Conservation Measures'!EU91","v":0},{"$f":"'2. Conservation Measures'!EV91","v":0},{"$f":"'2. Conservation Measures'!EW91","v":0},{"$f":"'2. Conservation Measures'!EX91","v":0},{"$f":"'2. Conservation Measures'!EY91","v":0},{"$f":"'2. Conservation Measures'!EZ91","v":0},{"$f":"'2. Conservation Measures'!FA91","v":0},{"$f":"'2. Conservation Measures'!FB91","v":0},{"$f":"'2. Conservation Measures'!FC91","v":0},{"$f":"'2. Conservation Measures'!FD91","v":0},{"$f":"'2. Conservation Measures'!FE91","v":0},{"$f":"'2. Conservation Measures'!FF91","v":0},{"$f":"'2. Conservation Measures'!FG91","v":0},{"$f":"'2. Conservation Measures'!FH91","v":0},{"$f":"'2. Conservation Measures'!FI91","v":0},{"$f":"'2. Conservation Measures'!FJ91","v":0},{"$f":"'2. Conservation Measures'!FK91","v":0},{"$f":"'2. Conservation Measures'!FL91","v":0},{"$f":"'2. Conservation Measures'!FM91","v":0},{"$f":"'2. Conservation Measures'!FN91","v":0},{"$f":"'2. Conservation Measures'!FO91","v":0},{"$f":"'2. Conservation Measures'!FP91","v":0},{"$f":"'2. Conservation Measures'!FQ91","v":0},{"$f":"'2. Conservation Measures'!FR91","v":0},{"$f":"'2. Conservation Measures'!FS91","v":0},{"$f":"'2. Conservation Measures'!FT91","v":0},{"$f":"'2. Conservation Measures'!FU91","v":0},{"$f":"'2. Conservation Measures'!FV91","v":0},{"$f":"'2. Conservation Measures'!FW91","v":0},{"$f":"'2. Conservation Measures'!FX91","v":0},{"$f":"'2. Conservation Measures'!FY91","v":0},{"$f":"'2. Conservation Measures'!FZ91","v":0},{"$f":"'2. Conservation Measures'!GA91","v":0},{"$f":"'2. Conservation Measures'!GB91","v":0},{"$f":"'2. Conservation Measures'!GC91","v":0},{"$f":"'2. Conservation Measures'!GD91","v":0},{"$f":"'2. Conservation Measures'!GE91","v":0},{"$f":"'2. Conservation Measures'!GF91","v":0},{"$f":"'2. Conservation Measures'!GG91","v":0},{"$f":"'2. Conservation Measures'!GH91","v":0},{"$f":"'2. Conservation Measures'!GI91","v":0},{"$f":"'2. Conservation Measures'!GJ91","v":0},{"$f":"'2. Conservation Measures'!GK91","v":0},{"$f":"'2. Conservation Measures'!GL91","v":0},{"$f":"'2. Conservation Measures'!GM91","v":0},{"$f":"'2. Conservation Measures'!GN91","v":0},null,{"$f":"'2. Conservation Measures'!GP91","v":0},{"$f":"'2. Conservation Measures'!GQ91","v":0},{"$f":"'2. Conservation Measures'!GR91","v":0},{"$f":"'2. Conservation Measures'!GS91","v":0},{"$f":"'2. Conservation Measures'!GT91","v":0},{"$f":"'2. Conservation Measures'!GU91","v":0},{"$f":"'2. Conservation Measures'!GV91","v":0},{"$f":"'2. Conservation Measures'!GW91","v":0},{"$f":"'2. Conservation Measures'!GX91","v":0},{"$f":"'2. Conservation Measures'!GY91","v":0},{"$f":"'2. Conservation Measures'!GZ91","v":0},{"$f":"'2. Conservation Measures'!HA91","v":0},{"$f":"'2. Conservation Measures'!HB91","v":0},{"$f":"'2. Conservation Measures'!HC91","v":0},{"$f":"'2. Conservation Measures'!HD91","v":0},{"$f":"'2. Conservation Measures'!HE91","v":0},{"$f":"'2. Conservation Measures'!HF91","v":0},{"$f":"'2. Conservation Measures'!HG91","v":0},{"$f":"'2. Conservation Measures'!HH91","v":0},{"$f":"'2. Conservation Measures'!HI91","v":0},{"$f":"'2. Conservation Measures'!HJ91","v":0},{"$f":"'2. Conservation Measures'!HK91","v":0},{"$f":"'2. Conservation Measures'!HL91","v":0},{"$f":"'2. Conservation Measures'!HM91","v":0},{"$f":"'2. Conservation Measures'!HN91","v":0},{"$f":"'2. Conservation Measures'!HO91","v":0},{"$f":"'2. Conservation Measures'!HP91","v":0},{"$f":"'2. Conservation Measures'!HQ91","v":0},{"$f":"'2. Conservation Measures'!HR91","v":0},{"$f":"'2. Conservation Measures'!HS91","v":0},{"$f":"'2. Conservation Measures'!HT91","v":0},{"$f":"'2. Conservation Measures'!HU91","v":0},{"$f":"'2. Conservation Measures'!HV91","v":0},{"$f":"'2. Conservation Measures'!HW91","v":0},{"$f":"'2. Conservation Measures'!HX91","v":0},{"$f":"'2. Conservation Measures'!HY91","v":0},{"$f":"'2. Conservation Measures'!HZ91","v":0},{"$f":"'2. Conservation Measures'!IA91","v":0},{"$f":"'2. Conservation Measures'!IB91","v":0},{"$f":"'2. Conservation Measures'!IC91","v":0},{"$f":"'2. Conservation Measures'!ID91","v":0},{"$f":"'2. Conservation Measures'!IE91","v":0},{"$f":"'2. Conservation Measures'!IF91","v":0},{"$f":"'2. Conservation Measures'!IG91","v":0},{"$f":"'2. Conservation Measures'!IH91","v":0},{"$f":"'2. Conservation Measures'!II91","v":0},{"$f":"'2. Conservation Measures'!IJ91","v":0},{"$f":"'2. Conservation Measures'!IK91","v":0},{"$f":"'2. Conservation Measures'!IL91","v":0},{"$f":"'2. Conservation Measures'!IM91","v":0},{"$f":"'2. Conservation Measures'!IN91","v":0},null,{"$f":"'2. Conservation Measures'!IP91","v":0},{"$f":"'2. Conservation Measures'!IQ91","v":0},{"$f":"'2. Conservation Measures'!IR91","v":0},{"$f":"'2. Conservation Measures'!IS91","v":0},{"$f":"'2. Conservation Measures'!IT91","v":0},{"$f":"'2. Conservation Measures'!IU91","v":0},{"$f":"'2. Conservation Measures'!IV91","v":0},{"$f":"'2. Conservation Measures'!IW91","v":0},{"$f":"'2. Conservation Measures'!IX91","v":0},{"$f":"'2. Conservation Measures'!IY91","v":0},{"$f":"'2. Conservation Measures'!IZ91","v":0},{"$f":"'2. Conservation Measures'!JA91","v":0},{"$f":"'2. Conservation Measures'!JB91","v":0},{"$f":"'2. Conservation Measures'!JC91","v":0},{"$f":"'2. Conservation Measures'!JD91","v":0},{"$f":"'2. Conservation Measures'!JE91","v":0},{"$f":"'2. Conservation Measures'!JF91","v":0},{"$f":"'2. Conservation Measures'!JG91","v":0},{"$f":"'2. Conservation Measures'!JH91","v":0},{"$f":"'2. Conservation Measures'!JI91","v":0},{"$f":"'2. Conservation Measures'!JJ91","v":0},{"$f":"'2. Conservation Measures'!JK91","v":0},{"$f":"'2. Conservation Measures'!JL91","v":0},{"$f":"'2. Conservation Measures'!JM91","v":0},{"$f":"'2. Conservation Measures'!JN91","v":0},{"$f":"'2. Conservation Measures'!JO91","v":0},{"$f":"'2. Conservation Measures'!JP91","v":0},{"$f":"'2. Conservation Measures'!JQ91","v":0},{"$f":"'2. Conservation Measures'!JR91","v":0},{"$f":"'2. Conservation Measures'!JS91","v":0},{"$f":"'2. Conservation Measures'!JT91","v":0},{"$f":"'2. Conservation Measures'!JU91","v":0},{"$f":"'2. Conservation Measures'!JV91","v":0},{"$f":"'2. Conservation Measures'!JW91","v":0},{"$f":"'2. Conservation Measures'!JX91","v":0},{"$f":"'2. Conservation Measures'!JY91","v":0},{"$f":"'2. Conservation Measures'!JZ91","v":0},{"$f":"'2. Conservation Measures'!KA91","v":0},{"$f":"'2. Conservation Measures'!KB91","v":0},{"$f":"'2. Conservation Measures'!KC91","v":0},{"$f":"'2. Conservation Measures'!KD91","v":0},{"$f":"'2. Conservation Measures'!KE91","v":0},{"$f":"'2. Conservation Measures'!KF91","v":0},{"$f":"'2. Conservation Measures'!KG91","v":0},{"$f":"'2. Conservation Measures'!KH91","v":0},{"$f":"'2. Conservation Measures'!KI91","v":0},{"$f":"'2. Conservation Measures'!KJ91","v":0},{"$f":"'2. Conservation Measures'!KK91","v":0},{"$f":"'2. Conservation Measures'!KL91","v":0},{"$f":"'2. Conservation Measures'!KM91","v":0},{"$f":"'2. Conservation Measures'!KN91","v":0}]
[null,{"$f":"'2. Conservation Measures'!B92","v":"USR-MF-07"},{"$f":"'2. Conservation Measures'!C92","v":0},{"$f":"'2. Conservation Measures'!D92","v":"N"},null,{"$f":"'2. Conservation Measures'!AA92","v":0},null,{"$f":"'2. Conservation Measures'!AO92","v":0},{"$f":"'2. Conservation Measures'!AP92","v":0},{"$f":"'2. Conservation Measures'!AQ92","v":0},{"$f":"'2. Conservation Measures'!AR92","v":0},{"$f":"'2. Conservation Measures'!AS92","v":0},{"$f":"'2. Conservation Measures'!AT92","v":0},{"$f":"'2. Conservation Measures'!AU92","v":0},{"$f":"'2. Conservation Measures'!AV92","v":0},{"$f":"'2. Conservation Measures'!AW92","v":0},{"$f":"'2. Conservation Measures'!AX92","v":0},{"$f":"'2. Conservation Measures'!AY92","v":0},{"$f":"'2. Conservation Measures'!AZ92","v":0},{"$f":"'2. Conservation Measures'!BA92","v":0},{"$f":"'2. Conservation Measures'!BB92","v":0},{"$f":"'2. Conservation Measures'!BC92","v":0},{"$f":"'2. Conservation Measures'!BD92","v":0},{"$f":"'2. Conservation Measures'!BE92","v":0},{"$f":"'2. Conservation Measures'!BF92","v":0},{"$f":"'2. Conservation Measures'!BG92","v":0},{"$f":"'2. Conservation Measures'!BH92","v":0},{"$f":"'2. Conservation Measures'!BI92","v":0},{"$f":"'2. Conservation Measures'!BJ92","v":0},{"$f":"'2. Conservation Measures'!BK92","v":0},{"$f":"'2. Conservation Measures'!BL92","v":0},{"$f":"'2. Conservation Measures'!BM92","v":0},{"$f":"'2. Conservation Measures'!BN92","v":0},{"$f":"'2. Conservation Measures'!BO92","v":0},{"$f":"'2. Conservation Measures'!BP92","v":0},{"$f":"'2. Conservation Measures'!BQ92","v":0},{"$f":"'2. Conservation Measures'!BR92","v":0},{"$f":"'2. Conservation Measures'!BS92","v":0},{"$f":"'2. Conservation Measures'!BT92","v":0},{"$f":"'2. Conservation Measures'!BU92","v":0},{"$f":"'2. Conservation Measures'!BV92","v":0},{"$f":"'2. Conservation Measures'!BW92","v":0},{"$f":"'2. Conservation Measures'!BX92","v":0},{"$f":"'2. Conservation Measures'!BY92","v":0},{"$f":"'2. Conservation Measures'!BZ92","v":0},{"$f":"'2. Conservation Measures'!CA92","v":0},{"$f":"'2. Conservation Measures'!CB92","v":0},{"$f":"'2. Conservation Measures'!CC92","v":0},{"$f":"'2. Conservation Measures'!CD92","v":0},{"$f":"'2. Conservation Measures'!CE92","v":0},{"$f":"'2. Conservation Measures'!CF92","v":0},{"$f":"'2. Conservation Measures'!CG92","v":0},{"$f":"'2. Conservation Measures'!CH92","v":0},{"$f":"'2. Conservation Measures'!CI92","v":0},{"$f":"'2. Conservation Measures'!CJ92","v":0},{"$f":"'2. Conservation Measures'!CK92","v":0},{"$f":"'2. Conservation Measures'!CL92","v":0},{"$f":"'2. Conservation Measures'!CM92","v":0},null,{"$f":"'2. Conservation Measures'!CO92","v":0},{"$f":"'2. Conservation Measures'!CP92","v":0},{"$f":"'2. Conservation Measures'!CQ92","v":0},{"$f":"'2. Conservation Measures'!CR92","v":0},{"$f":"'2. Conservation Measures'!CS92","v":0},{"$f":"'2. Conservation Measures'!CT92","v":0},{"$f":"'2. Conservation Measures'!CU92","v":0},{"$f":"'2. Conservation Measures'!CV92","v":0},{"$f":"'2. Conservation Measures'!CW92","v":0},{"$f":"'2. Conservation Measures'!CX92","v":0},{"$f":"'2. Conservation Measures'!CY92","v":0},{"$f":"'2. Conservation Measures'!CZ92","v":0},{"$f":"'2. Conservation Measures'!DA92","v":0},{"$f":"'2. Conservation Measures'!DB92","v":0},{"$f":"'2. Conservation Measures'!DC92","v":0},{"$f":"'2. Conservation Measures'!DD92","v":0},{"$f":"'2. Conservation Measures'!DE92","v":0},{"$f":"'2. Conservation Measures'!DF92","v":0},{"$f":"'2. Conservation Measures'!DG92","v":0},{"$f":"'2. Conservation Measures'!DH92","v":0},{"$f":"'2. Conservation Measures'!DI92","v":0},{"$f":"'2. Conservation Measures'!DJ92","v":0},{"$f":"'2. Conservation Measures'!DK92","v":0},{"$f":"'2. Conservation Measures'!DL92","v":0},{"$f":"'2. Conservation Measures'!DM92","v":0},{"$f":"'2. Conservation Measures'!DN92","v":0},{"$f":"'2. Conservation Measures'!DO92","v":0},{"$f":"'2. Conservation Measures'!DP92","v":0},{"$f":"'2. Conservation Measures'!DQ92","v":0},{"$f":"'2. Conservation Measures'!DR92","v":0},{"$f":"'2. Conservation Measures'!DS92","v":0},{"$f":"'2. Conservation Measures'!DT92","v":0},{"$f":"'2. Conservation Measures'!DU92","v":0},{"$f":"'2. Conservation Measures'!DV92","v":0},{"$f":"'2. Conservation Measures'!DW92","v":0},{"$f":"'2. Conservation Measures'!DX92","v":0},{"$f":"'2. Conservation Measures'!DY92","v":0},{"$f":"'2. Conservation Measures'!DZ92","v":0},{"$f":"'2. Conservation Measures'!EA92","v":0},{"$f":"'2. Conservation Measures'!EB92","v":0},{"$f":"'2. Conservation Measures'!EC92","v":0},{"$f":"'2. Conservation Measures'!ED92","v":0},{"$f":"'2. Conservation Measures'!EE92","v":0},{"$f":"'2. Conservation Measures'!EF92","v":0},{"$f":"'2. Conservation Measures'!EG92","v":0},{"$f":"'2. Conservation Measures'!EH92","v":0},{"$f":"'2. Conservation Measures'!EI92","v":0},{"$f":"'2. Conservation Measures'!EJ92","v":0},{"$f":"'2. Conservation Measures'!EK92","v":0},{"$f":"'2. Conservation Measures'!EL92","v":0},{"$f":"'2. Conservation Measures'!EM92","v":0},null,{"$f":"'2. Conservation Measures'!KP92","v":0},{"$f":"'2. Conservation Measures'!KQ92","v":0},{"$f":"'2. Conservation Measures'!KR92","v":0},{"$f":"'2. Conservation Measures'!KS92","v":0},{"$f":"'2. Conservation Measures'!KT92","v":0},{"$f":"'2. Conservation Measures'!KU92","v":0},{"$f":"'2. Conservation Measures'!KV92","v":0},{"$f":"'2. Conservation Measures'!KW92","v":0},{"$f":"'2. Conservation Measures'!KX92","v":0},{"$f":"'2. Conservation Measures'!KY92","v":0},{"$f":"'2. Conservation Measures'!KZ92","v":0},{"$f":"'2. Conservation Measures'!LA92","v":0},{"$f":"'2. Conservation Measures'!LB92","v":0},{"$f":"'2. Conservation Measures'!LC92","v":0},{"$f":"'2. Conservation Measures'!LD92","v":0},{"$f":"'2. Conservation Measures'!LE92","v":0},{"$f":"'2. Conservation Measures'!LF92","v":0},{"$f":"'2. Conservation Measures'!LG92","v":0},{"$f":"'2. Conservation Measures'!LH92","v":0},{"$f":"'2. Conservation Measures'!LI92","v":0},{"$f":"'2. Conservation Measures'!LJ92","v":0},{"$f":"'2. Conservation Measures'!LK92","v":0},{"$f":"'2. Conservation Measures'!LL92","v":0},{"$f":"'2. Conservation Measures'!LM92","v":0},{"$f":"'2. Conservation Measures'!LN92","v":0},{"$f":"'2. Conservation Measures'!LO92","v":0},{"$f":"'2. Conservation Measures'!LP92","v":0},{"$f":"'2. Conservation Measures'!LQ92","v":0},{"$f":"'2. Conservation Measures'!LR92","v":0},{"$f":"'2. Conservation Measures'!LS92","v":0},{"$f":"'2. Conservation Measures'!LT92","v":0},{"$f":"'2. Conservation Measures'!LU92","v":0},{"$f":"'2. Conservation Measures'!LV92","v":0},{"$f":"'2. Conservation Measures'!LW92","v":0},{"$f":"'2. Conservation Measures'!LX92","v":0},{"$f":"'2. Conservation Measures'!LY92","v":0},{"$f":"'2. Conservation Measures'!LZ92","v":0},{"$f":"'2. Conservation Measures'!MA92","v":0},{"$f":"'2. Conservation Measures'!MB92","v":0},{"$f":"'2. Conservation Measures'!MC92","v":0},{"$f":"'2. Conservation Measures'!MD92","v":0},{"$f":"'2. Conservation Measures'!ME92","v":0},{"$f":"'2. Conservation Measures'!MF92","v":0},{"$f":"'2. Conservation Measures'!MG92","v":0},{"$f":"'2. Conservation Measures'!MH92","v":0},{"$f":"'2. Conservation Measures'!MI92","v":0},{"$f":"'2. Conservation Measures'!MJ92","v":0},{"$f":"'2. Conservation Measures'!MK92","v":0},{"$f":"'2. Conservation Measures'!ML92","v":0},{"$f":"'2. Conservation Measures'!MM92","v":0},{"$f":"'2. Conservation Measures'!MN92","v":0},null,{"$f":"'2. Conservation Measures'!EP92","v":0},{"$f":"'2. Conservation Measures'!EQ92","v":0},{"$f":"'2. Conservation Measures'!ER92","v":0},{"$f":"'2. Conservation Measures'!ES92","v":0},{"$f":"'2. Conservation Measures'!ET92","v":0},{"$f":"'2. Conservation Measures'!EU92","v":0},{"$f":"'2. Conservation Measures'!EV92","v":0},{"$f":"'2. Conservation Measures'!EW92","v":0},{"$f":"'2. Conservation Measures'!EX92","v":0},{"$f":"'2. Conservation Measures'!EY92","v":0},{"$f":"'2. Conservation Measures'!EZ92","v":0},{"$f":"'2. Conservation Measures'!FA92","v":0},{"$f":"'2. Conservation Measures'!FB92","v":0},{"$f":"'2. Conservation Measures'!FC92","v":0},{"$f":"'2. Conservation Measures'!FD92","v":0},{"$f":"'2. Conservation Measures'!FE92","v":0},{"$f":"'2. Conservation Measures'!FF92","v":0},{"$f":"'2. Conservation Measures'!FG92","v":0},{"$f":"'2. Conservation Measures'!FH92","v":0},{"$f":"'2. Conservation Measures'!FI92","v":0},{"$f":"'2. Conservation Measures'!FJ92","v":0},{"$f":"'2. Conservation Measures'!FK92","v":0},{"$f":"'2. Conservation Measures'!FL92","v":0},{"$f":"'2. Conservation Measures'!FM92","v":0},{"$f":"'2. Conservation Measures'!FN92","v":0},{"$f":"'2. Conservation Measures'!FO92","v":0},{"$f":"'2. Conservation Measures'!FP92","v":0},{"$f":"'2. Conservation Measures'!FQ92","v":0},{"$f":"'2. Conservation Measures'!FR92","v":0},{"$f":"'2. Conservation Measures'!FS92","v":0},{"$f":"'2. Conservation Measures'!FT92","v":0},{"$f":"'2. Conservation Measures'!FU92","v":0},{"$f":"'2. Conservation Measures'!FV92","v":0},{"$f":"'2. Conservation Measures'!FW92","v":0},{"$f":"'2. Conservation Measures'!FX92","v":0},{"$f":"'2. Conservation Measures'!FY92","v":0},{"$f":"'2. Conservation Measures'!FZ92","v":0},{"$f":"'2. Conservation Measures'!GA92","v":0},{"$f":"'2. Conservation Measures'!GB92","v":0},{"$f":"'2. Conservation Measures'!GC92","v":0},{"$f":"'2. Conservation Measures'!GD92","v":0},{"$f":"'2. Conservation Measures'!GE92","v":0},{"$f":"'2. Conservation Measures'!GF92","v":0},{"$f":"'2. Conservation Measures'!GG92","v":0},{"$f":"'2. Conservation Measures'!GH92","v":0},{"$f":"'2. Conservation Measures'!GI92","v":0},{"$f":"'2. Conservation Measures'!GJ92","v":0},{"$f":"'2. Conservation Measures'!GK92","v":0},{"$f":"'2. Conservation Measures'!GL92","v":0},{"$f":"'2. Conservation Measures'!GM92","v":0},{"$f":"'2. Conservation Measures'!GN92","v":0},null,{"$f":"'2. Conservation Measures'!GP92","v":0},{"$f":"'2. Conservation Measures'!GQ92","v":0},{"$f":"'2. Conservation Measures'!GR92","v":0},{"$f":"'2. Conservation Measures'!GS92","v":0},{"$f":"'2. Conservation Measures'!GT92","v":0},{"$f":"'2. Conservation Measures'!GU92","v":0},{"$f":"'2. Conservation Measures'!GV92","v":0},{"$f":"'2. Conservation Measures'!GW92","v":0},{"$f":"'2. Conservation Measures'!GX92","v":0},{"$f":"'2. Conservation Measures'!GY92","v":0},{"$f":"'2. Conservation Measures'!GZ92","v":0},{"$f":"'2. Conservation Measures'!HA92","v":0},{"$f":"'2. Conservation Measures'!HB92","v":0},{"$f":"'2. Conservation Measures'!HC92","v":0},{"$f":"'2. Conservation Measures'!HD92","v":0},{"$f":"'2. Conservation Measures'!HE92","v":0},{"$f":"'2. Conservation Measures'!HF92","v":0},{"$f":"'2. Conservation Measures'!HG92","v":0},{"$f":"'2. Conservation Measures'!HH92","v":0},{"$f":"'2. Conservation Measures'!HI92","v":0},{"$f":"'2. Conservation Measures'!HJ92","v":0},{"$f":"'2. Conservation Measures'!HK92","v":0},{"$f":"'2. Conservation Measures'!HL92","v":0},{"$f":"'2. Conservation Measures'!HM92","v":0},{"$f":"'2. Conservation Measures'!HN92","v":0},{"$f":"'2. Conservation Measures'!HO92","v":0},{"$f":"'2. Conservation Measures'!HP92","v":0},{"$f":"'2. Conservation Measures'!HQ92","v":0},{"$f":"'2. Conservation Measures'!HR92","v":0},{"$f":"'2. Conservation Measures'!HS92","v":0},{"$f":"'2. Conservation Measures'!HT92","v":0},{"$f":"'2. Conservation Measures'!HU92","v":0},{"$f":"'2. Conservation Measures'!HV92","v":0},{"$f":"'2. Conservation Measures'!HW92","v":0},{"$f":"'2. Conservation Measures'!HX92","v":0},{"$f":"'2. Conservation Measures'!HY92","v":0},{"$f":"'2. Conservation Measures'!HZ92","v":0},{"$f":"'2. Conservation Measures'!IA92","v":0},{"$f":"'2. Conservation Measures'!IB92","v":0},{"$f":"'2. Conservation Measures'!IC92","v":0},{"$f":"'2. Conservation Measures'!ID92","v":0},{"$f":"'2. Conservation Measures'!IE92","v":0},{"$f":"'2. Conservation Measures'!IF92","v":0},{"$f":"'2. Conservation Measures'!IG92","v":0},{"$f":"'2. Conservation Measures'!IH92","v":0},{"$f":"'2. Conservation Measures'!II92","v":0},{"$f":"'2. Conservation Measures'!IJ92","v":0},{"$f":"'2. Conservation Measures'!IK92","v":0},{"$f":"'2. Conservation Measures'!IL92","v":0},{"$f":"'2. Conservation Measures'!IM92","v":0},{"$f":"'2. Conservation Measures'!IN92","v":0},null,{"$f":"'2. Conservation Measures'!IP92","v":0},{"$f":"'2. Conservation Measures'!IQ92","v":0},{"$f":"'2. Conservation Measures'!IR92","v":0},{"$f":"'2. Conservation Measures'!IS92","v":0},{"$f":"'2. Conservation Measures'!IT92","v":0},{"$f":"'2. Conservation Measures'!IU92","v":0},{"$f":"'2. Conservation Measures'!IV92","v":0},{"$f":"'2. Conservation Measures'!IW92","v":0},{"$f":"'2. Conservation Measures'!IX92","v":0},{"$f":"'2. Conservation Measures'!IY92","v":0},{"$f":"'2. Conservation Measures'!IZ92","v":0},{"$f":"'2. Conservation Measures'!JA92","v":0},{"$f":"'2. Conservation Measures'!JB92","v":0},{"$f":"'2. Conservation Measures'!JC92","v":0},{"$f":"'2. Conservation Measures'!JD92","v":0},{"$f":"'2. Conservation Measures'!JE92","v":0},{"$f":"'2. Conservation Measures'!JF92","v":0},{"$f":"'2. Conservation Measures'!JG92","v":0},{"$f":"'2. Conservation Measures'!JH92","v":0},{"$f":"'2. Conservation Measures'!JI92","v":0},{"$f":"'2. Conservation Measures'!JJ92","v":0},{"$f":"'2. Conservation Measures'!JK92","v":0},{"$f":"'2. Conservation Measures'!JL92","v":0},{"$f":"'2. Conservation Measures'!JM92","v":0},{"$f":"'2. Conservation Measures'!JN92","v":0},{"$f":"'2. Conservation Measures'!JO92","v":0},{"$f":"'2. Conservation Measures'!JP92","v":0},{"$f":"'2. Conservation Measures'!JQ92","v":0},{"$f":"'2. Conservation Measures'!JR92","v":0},{"$f":"'2. Conservation Measures'!JS92","v":0},{"$f":"'2. Conservation Measures'!JT92","v":0},{"$f":"'2. Conservation Measures'!JU92","v":0},{"$f":"'2. Conservation Measures'!JV92","v":0},{"$f":"'2. Conservation Measures'!JW92","v":0},{"$f":"'2. Conservation Measures'!JX92","v":0},{"$f":"'2. Conservation Measures'!JY92","v":0},{"$f":"'2. Conservation Measures'!JZ92","v":0},{"$f":"'2. Conservation Measures'!KA92","v":0},{"$f":"'2. Conservation Measures'!KB92","v":0},{"$f":"'2. Conservation Measures'!KC92","v":0},{"$f":"'2. Conservation Measures'!KD92","v":0},{"$f":"'2. Conservation Measures'!KE92","v":0},{"$f":"'2. Conservation Measures'!KF92","v":0},{"$f":"'2. Conservation Measures'!KG92","v":0},{"$f":"'2. Conservation Measures'!KH92","v":0},{"$f":"'2. Conservation Measures'!KI92","v":0},{"$f":"'2. Conservation Measures'!KJ92","v":0},{"$f":"'2. Conservation Measures'!KK92","v":0},{"$f":"'2. Conservation Measures'!KL92","v":0},{"$f":"'2. Conservation Measures'!KM92","v":0},{"$f":"'2. Conservation Measures'!KN92","v":0}]
[null,{"$f":"'2. Conservation Measures'!B93","v":"USR-MF-08"},{"$f":"'2. Conservation Measures'!C93","v":0},{"$f":"'2. Conservation Measures'!D93","v":"N"},null,{"$f":"'2. Conservation Measures'!AA93","v":0},null,{"$f":"'2. Conservation Measures'!AO93","v":0},{"$f":"'2. Conservation Measures'!AP93","v":0},{"$f":"'2. Conservation Measures'!AQ93","v":0},{"$f":"'2. Conservation Measures'!AR93","v":0},{"$f":"'2. Conservation Measures'!AS93","v":0},{"$f":"'2. Conservation Measures'!AT93","v":0},{"$f":"'2. Conservation Measures'!AU93","v":0},{"$f":"'2. Conservation Measures'!AV93","v":0},{"$f":"'2. Conservation Measures'!AW93","v":0},{"$f":"'2. Conservation Measures'!AX93","v":0},{"$f":"'2. Conservation Measures'!AY93","v":0},{"$f":"'2. Conservation Measures'!AZ93","v":0},{"$f":"'2. Conservation Measures'!BA93","v":0},{"$f":"'2. Conservation Measures'!BB93","v":0},{"$f":"'2. Conservation Measures'!BC93","v":0},{"$f":"'2. Conservation Measures'!BD93","v":0},{"$f":"'2. Conservation Measures'!BE93","v":0},{"$f":"'2. Conservation Measures'!BF93","v":0},{"$f":"'2. Conservation Measures'!BG93","v":0},{"$f":"'2. Conservation Measures'!BH93","v":0},{"$f":"'2. Conservation Measures'!BI93","v":0},{"$f":"'2. Conservation Measures'!BJ93","v":0},{"$f":"'2. Conservation Measures'!BK93","v":0},{"$f":"'2. Conservation Measures'!BL93","v":0},{"$f":"'2. Conservation Measures'!BM93","v":0},{"$f":"'2. Conservation Measures'!BN93","v":0},{"$f":"'2. Conservation Measures'!BO93","v":0},{"$f":"'2. Conservation Measures'!BP93","v":0},{"$f":"'2. Conservation Measures'!BQ93","v":0},{"$f":"'2. Conservation Measures'!BR93","v":0},{"$f":"'2. Conservation Measures'!BS93","v":0},{"$f":"'2. Conservation Measures'!BT93","v":0},{"$f":"'2. Conservation Measures'!BU93","v":0},{"$f":"'2. Conservation Measures'!BV93","v":0},{"$f":"'2. Conservation Measures'!BW93","v":0},{"$f":"'2. Conservation Measures'!BX93","v":0},{"$f":"'2. Conservation Measures'!BY93","v":0},{"$f":"'2. Conservation Measures'!BZ93","v":0},{"$f":"'2. Conservation Measures'!CA93","v":0},{"$f":"'2. Conservation Measures'!CB93","v":0},{"$f":"'2. Conservation Measures'!CC93","v":0},{"$f":"'2. Conservation Measures'!CD93","v":0},{"$f":"'2. Conservation Measures'!CE93","v":0},{"$f":"'2. Conservation Measures'!CF93","v":0},{"$f":"'2. Conservation Measures'!CG93","v":0},{"$f":"'2. Conservation Measures'!CH93","v":0},{"$f":"'2. Conservation Measures'!CI93","v":0},{"$f":"'2. Conservation Measures'!CJ93","v":0},{"$f":"'2. Conservation Measures'!CK93","v":0},{"$f":"'2. Conservation Measures'!CL93","v":0},{"$f":"'2. Conservation Measures'!CM93","v":0},null,{"$f":"'2. Conservation Measures'!CO93","v":0},{"$f":"'2. Conservation Measures'!CP93","v":0},{"$f":"'2. Conservation Measures'!CQ93","v":0},{"$f":"'2. Conservation Measures'!CR93","v":0},{"$f":"'2. Conservation Measures'!CS93","v":0},{"$f":"'2. Conservation Measures'!CT93","v":0},{"$f":"'2. Conservation Measures'!CU93","v":0},{"$f":"'2. Conservation Measures'!CV93","v":0},{"$f":"'2. Conservation Measures'!CW93","v":0},{"$f":"'2. Conservation Measures'!CX93","v":0},{"$f":"'2. Conservation Measures'!CY93","v":0},{"$f":"'2. Conservation Measures'!CZ93","v":0},{"$f":"'2. Conservation Measures'!DA93","v":0},{"$f":"'2. Conservation Measures'!DB93","v":0},{"$f":"'2. Conservation Measures'!DC93","v":0},{"$f":"'2. Conservation Measures'!DD93","v":0},{"$f":"'2. Conservation Measures'!DE93","v":0},{"$f":"'2. Conservation Measures'!DF93","v":0},{"$f":"'2. Conservation Measures'!DG93","v":0},{"$f":"'2. Conservation Measures'!DH93","v":0},{"$f":"'2. Conservation Measures'!DI93","v":0},{"$f":"'2. Conservation Measures'!DJ93","v":0},{"$f":"'2. Conservation Measures'!DK93","v":0},{"$f":"'2. Conservation Measures'!DL93","v":0},{"$f":"'2. Conservation Measures'!DM93","v":0},{"$f":"'2. Conservation Measures'!DN93","v":0},{"$f":"'2. Conservation Measures'!DO93","v":0},{"$f":"'2. Conservation Measures'!DP93","v":0},{"$f":"'2. Conservation Measures'!DQ93","v":0},{"$f":"'2. Conservation Measures'!DR93","v":0},{"$f":"'2. Conservation Measures'!DS93","v":0},{"$f":"'2. Conservation Measures'!DT93","v":0},{"$f":"'2. Conservation Measures'!DU93","v":0},{"$f":"'2. Conservation Measures'!DV93","v":0},{"$f":"'2. Conservation Measures'!DW93","v":0},{"$f":"'2. Conservation Measures'!DX93","v":0},{"$f":"'2. Conservation Measures'!DY93","v":0},{"$f":"'2. Conservation Measures'!DZ93","v":0},{"$f":"'2. Conservation Measures'!EA93","v":0},{"$f":"'2. Conservation Measures'!EB93","v":0},{"$f":"'2. Conservation Measures'!EC93","v":0},{"$f":"'2. Conservation Measures'!ED93","v":0},{"$f":"'2. Conservation Measures'!EE93","v":0},{"$f":"'2. Conservation Measures'!EF93","v":0},{"$f":"'2. Conservation Measures'!EG93","v":0},{"$f":"'2. Conservation Measures'!EH93","v":0},{"$f":"'2. Conservation Measures'!EI93","v":0},{"$f":"'2. Conservation Measures'!EJ93","v":0},{"$f":"'2. Conservation Measures'!EK93","v":0},{"$f":"'2. Conservation Measures'!EL93","v":0},{"$f":"'2. Conservation Measures'!EM93","v":0},null,{"$f":"'2. Conservation Measures'!KP93","v":0},{"$f":"'2. Conservation Measures'!KQ93","v":0},{"$f":"'2. Conservation Measures'!KR93","v":0},{"$f":"'2. Conservation Measures'!KS93","v":0},{"$f":"'2. Conservation Measures'!KT93","v":0},{"$f":"'2. Conservation Measures'!KU93","v":0},{"$f":"'2. Conservation Measures'!KV93","v":0},{"$f":"'2. Conservation Measures'!KW93","v":0},{"$f":"'2. Conservation Measures'!KX93","v":0},{"$f":"'2. Conservation Measures'!KY93","v":0},{"$f":"'2. Conservation Measures'!KZ93","v":0},{"$f":"'2. Conservation Measures'!LA93","v":0},{"$f":"'2. Conservation Measures'!LB93","v":0},{"$f":"'2. Conservation Measures'!LC93","v":0},{"$f":"'2. Conservation Measures'!LD93","v":0},{"$f":"'2. Conservation Measures'!LE93","v":0},{"$f":"'2. Conservation Measures'!LF93","v":0},{"$f":"'2. Conservation Measures'!LG93","v":0},{"$f":"'2. Conservation Measures'!LH93","v":0},{"$f":"'2. Conservation Measures'!LI93","v":0},{"$f":"'2. Conservation Measures'!LJ93","v":0},{"$f":"'2. Conservation Measures'!LK93","v":0},{"$f":"'2. Conservation Measures'!LL93","v":0},{"$f":"'2. Conservation Measures'!LM93","v":0},{"$f":"'2. Conservation Measures'!LN93","v":0},{"$f":"'2. Conservation Measures'!LO93","v":0},{"$f":"'2. Conservation Measures'!LP93","v":0},{"$f":"'2. Conservation Measures'!LQ93","v":0},{"$f":"'2. Conservation Measures'!LR93","v":0},{"$f":"'2. Conservation Measures'!LS93","v":0},{"$f":"'2. Conservation Measures'!LT93","v":0},{"$f":"'2. Conservation Measures'!LU93","v":0},{"$f":"'2. Conservation Measures'!LV93","v":0},{"$f":"'2. Conservation Measures'!LW93","v":0},{"$f":"'2. Conservation Measures'!LX93","v":0},{"$f":"'2. Conservation Measures'!LY93","v":0},{"$f":"'2. Conservation Measures'!LZ93","v":0},{"$f":"'2. Conservation Measures'!MA93","v":0},{"$f":"'2. Conservation Measures'!MB93","v":0},{"$f":"'2. Conservation Measures'!MC93","v":0},{"$f":"'2. Conservation Measures'!MD93","v":0},{"$f":"'2. Conservation Measures'!ME93","v":0},{"$f":"'2. Conservation Measures'!MF93","v":0},{"$f":"'2. Conservation Measures'!MG93","v":0},{"$f":"'2. Conservation Measures'!MH93","v":0},{"$f":"'2. Conservation Measures'!MI93","v":0},{"$f":"'2. Conservation Measures'!MJ93","v":0},{"$f":"'2. Conservation Measures'!MK93","v":0},{"$f":"'2. Conservation Measures'!ML93","v":0},{"$f":"'2. Conservation Measures'!MM93","v":0},{"$f":"'2. Conservation Measures'!MN93","v":0},null,{"$f":"'2. Conservation Measures'!EP93","v":0},{"$f":"'2. Conservation Measures'!EQ93","v":0},{"$f":"'2. Conservation Measures'!ER93","v":0},{"$f":"'2. Conservation Measures'!ES93","v":0},{"$f":"'2. Conservation Measures'!ET93","v":0},{"$f":"'2. Conservation Measures'!EU93","v":0},{"$f":"'2. Conservation Measures'!EV93","v":0},{"$f":"'2. Conservation Measures'!EW93","v":0},{"$f":"'2. Conservation Measures'!EX93","v":0},{"$f":"'2. Conservation Measures'!EY93","v":0},{"$f":"'2. Conservation Measures'!EZ93","v":0},{"$f":"'2. Conservation Measures'!FA93","v":0},{"$f":"'2. Conservation Measures'!FB93","v":0},{"$f":"'2. Conservation Measures'!FC93","v":0},{"$f":"'2. Conservation Measures'!FD93","v":0},{"$f":"'2. Conservation Measures'!FE93","v":0},{"$f":"'2. Conservation Measures'!FF93","v":0},{"$f":"'2. Conservation Measures'!FG93","v":0},{"$f":"'2. Conservation Measures'!FH93","v":0},{"$f":"'2. Conservation Measures'!FI93","v":0},{"$f":"'2. Conservation Measures'!FJ93","v":0},{"$f":"'2. Conservation Measures'!FK93","v":0},{"$f":"'2. Conservation Measures'!FL93","v":0},{"$f":"'2. Conservation Measures'!FM93","v":0},{"$f":"'2. Conservation Measures'!FN93","v":0},{"$f":"'2. Conservation Measures'!FO93","v":0},{"$f":"'2. Conservation Measures'!FP93","v":0},{"$f":"'2. Conservation Measures'!FQ93","v":0},{"$f":"'2. Conservation Measures'!FR93","v":0},{"$f":"'2. Conservation Measures'!FS93","v":0},{"$f":"'2. Conservation Measures'!FT93","v":0},{"$f":"'2. Conservation Measures'!FU93","v":0},{"$f":"'2. Conservation Measures'!FV93","v":0},{"$f":"'2. Conservation Measures'!FW93","v":0},{"$f":"'2. Conservation Measures'!FX93","v":0},{"$f":"'2. Conservation Measures'!FY93","v":0},{"$f":"'2. Conservation Measures'!FZ93","v":0},{"$f":"'2. Conservation Measures'!GA93","v":0},{"$f":"'2. Conservation Measures'!GB93","v":0},{"$f":"'2. Conservation Measures'!GC93","v":0},{"$f":"'2. Conservation Measures'!GD93","v":0},{"$f":"'2. Conservation Measures'!GE93","v":0},{"$f":"'2. Conservation Measures'!GF93","v":0},{"$f":"'2. Conservation Measures'!GG93","v":0},{"$f":"'2. Conservation Measures'!GH93","v":0},{"$f":"'2. Conservation Measures'!GI93","v":0},{"$f":"'2. Conservation Measures'!GJ93","v":0},{"$f":"'2. Conservation Measures'!GK93","v":0},{"$f":"'2. Conservation Measures'!GL93","v":0},{"$f":"'2. Conservation Measures'!GM93","v":0},{"$f":"'2. Conservation Measures'!GN93","v":0},null,{"$f":"'2. Conservation Measures'!GP93","v":0},{"$f":"'2. Conservation Measures'!GQ93","v":0},{"$f":"'2. Conservation Measures'!GR93","v":0},{"$f":"'2. Conservation Measures'!GS93","v":0},{"$f":"'2. Conservation Measures'!GT93","v":0},{"$f":"'2. Conservation Measures'!GU93","v":0},{"$f":"'2. Conservation Measures'!GV93","v":0},{"$f":"'2. Conservation Measures'!GW93","v":0},{"$f":"'2. Conservation Measures'!GX93","v":0},{"$f":"'2. Conservation Measures'!GY93","v":0},{"$f":"'2. Conservation Measures'!GZ93","v":0},{"$f":"'2. Conservation Measures'!HA93","v":0},{"$f":"'2. Conservation Measures'!HB93","v":0},{"$f":"'2. Conservation Measures'!HC93","v":0},{"$f":"'2. Conservation Measures'!HD93","v":0},{"$f":"'2. Conservation Measures'!HE93","v":0},{"$f":"'2. Conservation Measures'!HF93","v":0},{"$f":"'2. Conservation Measures'!HG93","v":0},{"$f":"'2. Conservation Measures'!HH93","v":0},{"$f":"'2. Conservation Measures'!HI93","v":0},{"$f":"'2. Conservation Measures'!HJ93","v":0},{"$f":"'2. Conservation Measures'!HK93","v":0},{"$f":"'2. Conservation Measures'!HL93","v":0},{"$f":"'2. Conservation Measures'!HM93","v":0},{"$f":"'2. Conservation Measures'!HN93","v":0},{"$f":"'2. Conservation Measures'!HO93","v":0},{"$f":"'2. Conservation Measures'!HP93","v":0},{"$f":"'2. Conservation Measures'!HQ93","v":0},{"$f":"'2. Conservation Measures'!HR93","v":0},{"$f":"'2. Conservation Measures'!HS93","v":0},{"$f":"'2. Conservation Measures'!HT93","v":0},{"$f":"'2. Conservation Measures'!HU93","v":0},{"$f":"'2. Conservation Measures'!HV93","v":0},{"$f":"'2. Conservation Measures'!HW93","v":0},{"$f":"'2. Conservation Measures'!HX93","v":0},{"$f":"'2. Conservation Measures'!HY93","v":0},{"$f":"'2. Conservation Measures'!HZ93","v":0},{"$f":"'2. Conservation Measures'!IA93","v":0},{"$f":"'2. Conservation Measures'!IB93","v":0},{"$f":"'2. Conservation Measures'!IC93","v":0},{"$f":"'2. Conservation Measures'!ID93","v":0},{"$f":"'2. Conservation Measures'!IE93","v":0},{"$f":"'2. Conservation Measures'!IF93","v":0},{"$f":"'2. Conservation Measures'!IG93","v":0},{"$f":"'2. Conservation Measures'!IH93","v":0},{"$f":"'2. Conservation Measures'!II93","v":0},{"$f":"'2. Conservation Measures'!IJ93","v":0},{"$f":"'2. Conservation Measures'!IK93","v":0},{"$f":"'2. Conservation Measures'!IL93","v":0},{"$f":"'2. Conservation Measures'!IM93","v":0},{"$f":"'2. Conservation Measures'!IN93","v":0},null,{"$f":"'2. Conservation Measures'!IP93","v":0},{"$f":"'2. Conservation Measures'!IQ93","v":0},{"$f":"'2. Conservation Measures'!IR93","v":0},{"$f":"'2. Conservation Measures'!IS93","v":0},{"$f":"'2. Conservation Measures'!IT93","v":0},{"$f":"'2. Conservation Measures'!IU93","v":0},{"$f":"'2. Conservation Measures'!IV93","v":0},{"$f":"'2. Conservation Measures'!IW93","v":0},{"$f":"'2. Conservation Measures'!IX93","v":0},{"$f":"'2. Conservation Measures'!IY93","v":0},{"$f":"'2. Conservation Measures'!IZ93","v":0},{"$f":"'2. Conservation Measures'!JA93","v":0},{"$f":"'2. Conservation Measures'!JB93","v":0},{"$f":"'2. Conservation Measures'!JC93","v":0},{"$f":"'2. Conservation Measures'!JD93","v":0},{"$f":"'2. Conservation Measures'!JE93","v":0},{"$f":"'2. Conservation Measures'!JF93","v":0},{"$f":"'2. Conservation Measures'!JG93","v":0},{"$f":"'2. Conservation Measures'!JH93","v":0},{"$f":"'2. Conservation Measures'!JI93","v":0},{"$f":"'2. Conservation Measures'!JJ93","v":0},{"$f":"'2. Conservation Measures'!JK93","v":0},{"$f":"'2. Conservation Measures'!JL93","v":0},{"$f":"'2. Conservation Measures'!JM93","v":0},{"$f":"'2. Conservation Measures'!JN93","v":0},{"$f":"'2. Conservation Measures'!JO93","v":0},{"$f":"'2. Conservation Measures'!JP93","v":0},{"$f":"'2. Conservation Measures'!JQ93","v":0},{"$f":"'2. Conservation Measures'!JR93","v":0},{"$f":"'2. Conservation Measures'!JS93","v":0},{"$f":"'2. Conservation Measures'!JT93","v":0},{"$f":"'2. Conservation Measures'!JU93","v":0},{"$f":"'2. Conservation Measures'!JV93","v":0},{"$f":"'2. Conservation Measures'!JW93","v":0},{"$f":"'2. Conservation Measures'!JX93","v":0},{"$f":"'2. Conservation Measures'!JY93","v":0},{"$f":"'2. Conservation Measures'!JZ93","v":0},{"$f":"'2. Conservation Measures'!KA93","v":0},{"$f":"'2. Conservation Measures'!KB93","v":0},{"$f":"'2. Conservation Measures'!KC93","v":0},{"$f":"'2. Conservation Measures'!KD93","v":0},{"$f":"'2. Conservation Measures'!KE93","v":0},{"$f":"'2. Conservation Measures'!KF93","v":0},{"$f":"'2. Conservation Measures'!KG93","v":0},{"$f":"'2. Conservation Measures'!KH93","v":0},{"$f":"'2. Conservation Measures'!KI93","v":0},{"$f":"'2. Conservation Measures'!KJ93","v":0},{"$f":"'2. Conservation Measures'!KK93","v":0},{"$f":"'2. Conservation Measures'!KL93","v":0},{"$f":"'2. Conservation Measures'!KM93","v":0},{"$f":"'2. Conservation Measures'!KN93","v":0}]
[null,{"$f":"'2. Conservation Measures'!B94","v":"USR-MF-09"},{"$f":"'2. Conservation Measures'!C94","v":0},{"$f":"'2. Conservation Measures'!D94","v":"N"},null,{"$f":"'2. Conservation Measures'!AA94","v":0},null,{"$f":"'2. Conservation Measures'!AO94","v":0},{"$f":"'2. Conservation Measures'!AP94","v":0},{"$f":"'2. Conservation Measures'!AQ94","v":0},{"$f":"'2. Conservation Measures'!AR94","v":0},{"$f":"'2. Conservation Measures'!AS94","v":0},{"$f":"'2. Conservation Measures'!AT94","v":0},{"$f":"'2. Conservation Measures'!AU94","v":0},{"$f":"'2. Conservation Measures'!AV94","v":0},{"$f":"'2. Conservation Measures'!AW94","v":0},{"$f":"'2. Conservation Measures'!AX94","v":0},{"$f":"'2. Conservation Measures'!AY94","v":0},{"$f":"'2. Conservation Measures'!AZ94","v":0},{"$f":"'2. Conservation Measures'!BA94","v":0},{"$f":"'2. Conservation Measures'!BB94","v":0},{"$f":"'2. Conservation Measures'!BC94","v":0},{"$f":"'2. Conservation Measures'!BD94","v":0},{"$f":"'2. Conservation Measures'!BE94","v":0},{"$f":"'2. Conservation Measures'!BF94","v":0},{"$f":"'2. Conservation Measures'!BG94","v":0},{"$f":"'2. Conservation Measures'!BH94","v":0},{"$f":"'2. Conservation Measures'!BI94","v":0},{"$f":"'2. Conservation Measures'!BJ94","v":0},{"$f":"'2. Conservation Measures'!BK94","v":0},{"$f":"'2. Conservation Measures'!BL94","v":0},{"$f":"'2. Conservation Measures'!BM94","v":0},{"$f":"'2. Conservation Measures'!BN94","v":0},{"$f":"'2. Conservation Measures'!BO94","v":0},{"$f":"'2. Conservation Measures'!BP94","v":0},{"$f":"'2. Conservation Measures'!BQ94","v":0},{"$f":"'2. Conservation Measures'!BR94","v":0},{"$f":"'2. Conservation Measures'!BS94","v":0},{"$f":"'2. Conservation Measures'!BT94","v":0},{"$f":"'2. Conservation Measures'!BU94","v":0},{"$f":"'2. Conservation Measures'!BV94","v":0},{"$f":"'2. Conservation Measures'!BW94","v":0},{"$f":"'2. Conservation Measures'!BX94","v":0},{"$f":"'2. Conservation Measures'!BY94","v":0},{"$f":"'2. Conservation Measures'!BZ94","v":0},{"$f":"'2. Conservation Measures'!CA94","v":0},{"$f":"'2. Conservation Measures'!CB94","v":0},{"$f":"'2. Conservation Measures'!CC94","v":0},{"$f":"'2. Conservation Measures'!CD94","v":0},{"$f":"'2. Conservation Measures'!CE94","v":0},{"$f":"'2. Conservation Measures'!CF94","v":0},{"$f":"'2. Conservation Measures'!CG94","v":0},{"$f":"'2. Conservation Measures'!CH94","v":0},{"$f":"'2. Conservation Measures'!CI94","v":0},{"$f":"'2. Conservation Measures'!CJ94","v":0},{"$f":"'2. Conservation Measures'!CK94","v":0},{"$f":"'2. Conservation Measures'!CL94","v":0},{"$f":"'2. Conservation Measures'!CM94","v":0},null,{"$f":"'2. Conservation Measures'!CO94","v":0},{"$f":"'2. Conservation Measures'!CP94","v":0},{"$f":"'2. Conservation Measures'!CQ94","v":0},{"$f":"'2. Conservation Measures'!CR94","v":0},{"$f":"'2. Conservation Measures'!CS94","v":0},{"$f":"'2. Conservation Measures'!CT94","v":0},{"$f":"'2. Conservation Measures'!CU94","v":0},{"$f":"'2. Conservation Measures'!CV94","v":0},{"$f":"'2. Conservation Measures'!CW94","v":0},{"$f":"'2. Conservation Measures'!CX94","v":0},{"$f":"'2. Conservation Measures'!CY94","v":0},{"$f":"'2. Conservation Measures'!CZ94","v":0},{"$f":"'2. Conservation Measures'!DA94","v":0},{"$f":"'2. Conservation Measures'!DB94","v":0},{"$f":"'2. Conservation Measures'!DC94","v":0},{"$f":"'2. Conservation Measures'!DD94","v":0},{"$f":"'2. Conservation Measures'!DE94","v":0},{"$f":"'2. Conservation Measures'!DF94","v":0},{"$f":"'2. Conservation Measures'!DG94","v":0},{"$f":"'2. Conservation Measures'!DH94","v":0},{"$f":"'2. Conservation Measures'!DI94","v":0},{"$f":"'2. Conservation Measures'!DJ94","v":0},{"$f":"'2. Conservation Measures'!DK94","v":0},{"$f":"'2. Conservation Measures'!DL94","v":0},{"$f":"'2. Conservation Measures'!DM94","v":0},{"$f":"'2. Conservation Measures'!DN94","v":0},{"$f":"'2. Conservation Measures'!DO94","v":0},{"$f":"'2. Conservation Measures'!DP94","v":0},{"$f":"'2. Conservation Measures'!DQ94","v":0},{"$f":"'2. Conservation Measures'!DR94","v":0},{"$f":"'2. Conservation Measures'!DS94","v":0},{"$f":"'2. Conservation Measures'!DT94","v":0},{"$f":"'2. Conservation Measures'!DU94","v":0},{"$f":"'2. Conservation Measures'!DV94","v":0},{"$f":"'2. Conservation Measures'!DW94","v":0},{"$f":"'2. Conservation Measures'!DX94","v":0},{"$f":"'2. Conservation Measures'!DY94","v":0},{"$f":"'2. Conservation Measures'!DZ94","v":0},{"$f":"'2. Conservation Measures'!EA94","v":0},{"$f":"'2. Conservation Measures'!EB94","v":0},{"$f":"'2. Conservation Measures'!EC94","v":0},{"$f":"'2. Conservation Measures'!ED94","v":0},{"$f":"'2. Conservation Measures'!EE94","v":0},{"$f":"'2. Conservation Measures'!EF94","v":0},{"$f":"'2. Conservation Measures'!EG94","v":0},{"$f":"'2. Conservation Measures'!EH94","v":0},{"$f":"'2. Conservation Measures'!EI94","v":0},{"$f":"'2. Conservation Measures'!EJ94","v":0},{"$f":"'2. Conservation Measures'!EK94","v":0},{"$f":"'2. Conservation Measures'!EL94","v":0},{"$f":"'2. Conservation Measures'!EM94","v":0},null,{"$f":"'2. Conservation Measures'!KP94","v":0},{"$f":"'2. Conservation Measures'!KQ94","v":0},{"$f":"'2. Conservation Measures'!KR94","v":0},{"$f":"'2. Conservation Measures'!KS94","v":0},{"$f":"'2. Conservation Measures'!KT94","v":0},{"$f":"'2. Conservation Measures'!KU94","v":0},{"$f":"'2. Conservation Measures'!KV94","v":0},{"$f":"'2. Conservation Measures'!KW94","v":0},{"$f":"'2. Conservation Measures'!KX94","v":0},{"$f":"'2. Conservation Measures'!KY94","v":0},{"$f":"'2. Conservation Measures'!KZ94","v":0},{"$f":"'2. Conservation Measures'!LA94","v":0},{"$f":"'2. Conservation Measures'!LB94","v":0},{"$f":"'2. Conservation Measures'!LC94","v":0},{"$f":"'2. Conservation Measures'!LD94","v":0},{"$f":"'2. Conservation Measures'!LE94","v":0},{"$f":"'2. Conservation Measures'!LF94","v":0},{"$f":"'2. Conservation Measures'!LG94","v":0},{"$f":"'2. Conservation Measures'!LH94","v":0},{"$f":"'2. Conservation Measures'!LI94","v":0},{"$f":"'2. Conservation Measures'!LJ94","v":0},{"$f":"'2. Conservation Measures'!LK94","v":0},{"$f":"'2. Conservation Measures'!LL94","v":0},{"$f":"'2. Conservation Measures'!LM94","v":0},{"$f":"'2. Conservation Measures'!LN94","v":0},{"$f":"'2. Conservation Measures'!LO94","v":0},{"$f":"'2. Conservation Measures'!LP94","v":0},{"$f":"'2. Conservation Measures'!LQ94","v":0},{"$f":"'2. Conservation Measures'!LR94","v":0},{"$f":"'2. Conservation Measures'!LS94","v":0},{"$f":"'2. Conservation Measures'!LT94","v":0},{"$f":"'2. Conservation Measures'!LU94","v":0},{"$f":"'2. Conservation Measures'!LV94","v":0},{"$f":"'2. Conservation Measures'!LW94","v":0},{"$f":"'2. Conservation Measures'!LX94","v":0},{"$f":"'2. Conservation Measures'!LY94","v":0},{"$f":"'2. Conservation Measures'!LZ94","v":0},{"$f":"'2. Conservation Measures'!MA94","v":0},{"$f":"'2. Conservation Measures'!MB94","v":0},{"$f":"'2. Conservation Measures'!MC94","v":0},{"$f":"'2. Conservation Measures'!MD94","v":0},{"$f":"'2. Conservation Measures'!ME94","v":0},{"$f":"'2. Conservation Measures'!MF94","v":0},{"$f":"'2. Conservation Measures'!MG94","v":0},{"$f":"'2. Conservation Measures'!MH94","v":0},{"$f":"'2. Conservation Measures'!MI94","v":0},{"$f":"'2. Conservation Measures'!MJ94","v":0},{"$f":"'2. Conservation Measures'!MK94","v":0},{"$f":"'2. Conservation Measures'!ML94","v":0},{"$f":"'2. Conservation Measures'!MM94","v":0},{"$f":"'2. Conservation Measures'!MN94","v":0},null,{"$f":"'2. Conservation Measures'!EP94","v":0},{"$f":"'2. Conservation Measures'!EQ94","v":0},{"$f":"'2. Conservation Measures'!ER94","v":0},{"$f":"'2. Conservation Measures'!ES94","v":0},{"$f":"'2. Conservation Measures'!ET94","v":0},{"$f":"'2. Conservation Measures'!EU94","v":0},{"$f":"'2. Conservation Measures'!EV94","v":0},{"$f":"'2. Conservation Measures'!EW94","v":0},{"$f":"'2. Conservation Measures'!EX94","v":0},{"$f":"'2. Conservation Measures'!EY94","v":0},{"$f":"'2. Conservation Measures'!EZ94","v":0},{"$f":"'2. Conservation Measures'!FA94","v":0},{"$f":"'2. Conservation Measures'!FB94","v":0},{"$f":"'2. Conservation Measures'!FC94","v":0},{"$f":"'2. Conservation Measures'!FD94","v":0},{"$f":"'2. Conservation Measures'!FE94","v":0},{"$f":"'2. Conservation Measures'!FF94","v":0},{"$f":"'2. Conservation Measures'!FG94","v":0},{"$f":"'2. Conservation Measures'!FH94","v":0},{"$f":"'2. Conservation Measures'!FI94","v":0},{"$f":"'2. Conservation Measures'!FJ94","v":0},{"$f":"'2. Conservation Measures'!FK94","v":0},{"$f":"'2. Conservation Measures'!FL94","v":0},{"$f":"'2. Conservation Measures'!FM94","v":0},{"$f":"'2. Conservation Measures'!FN94","v":0},{"$f":"'2. Conservation Measures'!FO94","v":0},{"$f":"'2. Conservation Measures'!FP94","v":0},{"$f":"'2. Conservation Measures'!FQ94","v":0},{"$f":"'2. Conservation Measures'!FR94","v":0},{"$f":"'2. Conservation Measures'!FS94","v":0},{"$f":"'2. Conservation Measures'!FT94","v":0},{"$f":"'2. Conservation Measures'!FU94","v":0},{"$f":"'2. Conservation Measures'!FV94","v":0},{"$f":"'2. Conservation Measures'!FW94","v":0},{"$f":"'2. Conservation Measures'!FX94","v":0},{"$f":"'2. Conservation Measures'!FY94","v":0},{"$f":"'2. Conservation Measures'!FZ94","v":0},{"$f":"'2. Conservation Measures'!GA94","v":0},{"$f":"'2. Conservation Measures'!GB94","v":0},{"$f":"'2. Conservation Measures'!GC94","v":0},{"$f":"'2. Conservation Measures'!GD94","v":0},{"$f":"'2. Conservation Measures'!GE94","v":0},{"$f":"'2. Conservation Measures'!GF94","v":0},{"$f":"'2. Conservation Measures'!GG94","v":0},{"$f":"'2. Conservation Measures'!GH94","v":0},{"$f":"'2. Conservation Measures'!GI94","v":0},{"$f":"'2. Conservation Measures'!GJ94","v":0},{"$f":"'2. Conservation Measures'!GK94","v":0},{"$f":"'2. Conservation Measures'!GL94","v":0},{"$f":"'2. Conservation Measures'!GM94","v":0},{"$f":"'2. Conservation Measures'!GN94","v":0},null,{"$f":"'2. Conservation Measures'!GP94","v":0},{"$f":"'2. Conservation Measures'!GQ94","v":0},{"$f":"'2. Conservation Measures'!GR94","v":0},{"$f":"'2. Conservation Measures'!GS94","v":0},{"$f":"'2. Conservation Measures'!GT94","v":0},{"$f":"'2. Conservation Measures'!GU94","v":0},{"$f":"'2. Conservation Measures'!GV94","v":0},{"$f":"'2. Conservation Measures'!GW94","v":0},{"$f":"'2. Conservation Measures'!GX94","v":0},{"$f":"'2. Conservation Measures'!GY94","v":0},{"$f":"'2. Conservation Measures'!GZ94","v":0},{"$f":"'2. Conservation Measures'!HA94","v":0},{"$f":"'2. Conservation Measures'!HB94","v":0},{"$f":"'2. Conservation Measures'!HC94","v":0},{"$f":"'2. Conservation Measures'!HD94","v":0},{"$f":"'2. Conservation Measures'!HE94","v":0},{"$f":"'2. Conservation Measures'!HF94","v":0},{"$f":"'2. Conservation Measures'!HG94","v":0},{"$f":"'2. Conservation Measures'!HH94","v":0},{"$f":"'2. Conservation Measures'!HI94","v":0},{"$f":"'2. Conservation Measures'!HJ94","v":0},{"$f":"'2. Conservation Measures'!HK94","v":0},{"$f":"'2. Conservation Measures'!HL94","v":0},{"$f":"'2. Conservation Measures'!HM94","v":0},{"$f":"'2. Conservation Measures'!HN94","v":0},{"$f":"'2. Conservation Measures'!HO94","v":0},{"$f":"'2. Conservation Measures'!HP94","v":0},{"$f":"'2. Conservation Measures'!HQ94","v":0},{"$f":"'2. Conservation Measures'!HR94","v":0},{"$f":"'2. Conservation Measures'!HS94","v":0},{"$f":"'2. Conservation Measures'!HT94","v":0},{"$f":"'2. Conservation Measures'!HU94","v":0},{"$f":"'2. Conservation Measures'!HV94","v":0},{"$f":"'2. Conservation Measures'!HW94","v":0},{"$f":"'2. Conservation Measures'!HX94","v":0},{"$f":"'2. Conservation Measures'!HY94","v":0},{"$f":"'2. Conservation Measures'!HZ94","v":0},{"$f":"'2. Conservation Measures'!IA94","v":0},{"$f":"'2. Conservation Measures'!IB94","v":0},{"$f":"'2. Conservation Measures'!IC94","v":0},{"$f":"'2. Conservation Measures'!ID94","v":0},{"$f":"'2. Conservation Measures'!IE94","v":0},{"$f":"'2. Conservation Measures'!IF94","v":0},{"$f":"'2. Conservation Measures'!IG94","v":0},{"$f":"'2. Conservation Measures'!IH94","v":0},{"$f":"'2. Conservation Measures'!II94","v":0},{"$f":"'2. Conservation Measures'!IJ94","v":0},{"$f":"'2. Conservation Measures'!IK94","v":0},{"$f":"'2. Conservation Measures'!IL94","v":0},{"$f":"'2. Conservation Measures'!IM94","v":0},{"$f":"'2. Conservation Measures'!IN94","v":0},null,{"$f":"'2. Conservation Measures'!IP94","v":0},{"$f":"'2. Conservation Measures'!IQ94","v":0},{"$f":"'2. Conservation Measures'!IR94","v":0},{"$f":"'2. Conservation Measures'!IS94","v":0},{"$f":"'2. Conservation Measures'!IT94","v":0},{"$f":"'2. Conservation Measures'!IU94","v":0},{"$f":"'2. Conservation Measures'!IV94","v":0},{"$f":"'2. Conservation Measures'!IW94","v":0},{"$f":"'2. Conservation Measures'!IX94","v":0},{"$f":"'2. Conservation Measures'!IY94","v":0},{"$f":"'2. Conservation Measures'!IZ94","v":0},{"$f":"'2. Conservation Measures'!JA94","v":0},{"$f":"'2. Conservation Measures'!JB94","v":0},{"$f":"'2. Conservation Measures'!JC94","v":0},{"$f":"'2. Conservation Measures'!JD94","v":0},{"$f":"'2. Conservation Measures'!JE94","v":0},{"$f":"'2. Conservation Measures'!JF94","v":0},{"$f":"'2. Conservation Measures'!JG94","v":0},{"$f":"'2. Conservation Measures'!JH94","v":0},{"$f":"'2. Conservation Measures'!JI94","v":0},{"$f":"'2. Conservation Measures'!JJ94","v":0},{"$f":"'2. Conservation Measures'!JK94","v":0},{"$f":"'2. Conservation Measures'!JL94","v":0},{"$f":"'2. Conservation Measures'!JM94","v":0},{"$f":"'2. Conservation Measures'!JN94","v":0},{"$f":"'2. Conservation Measures'!JO94","v":0},{"$f":"'2. Conservation Measures'!JP94","v":0},{"$f":"'2. Conservation Measures'!JQ94","v":0},{"$f":"'2. Conservation Measures'!JR94","v":0},{"$f":"'2. Conservation Measures'!JS94","v":0},{"$f":"'2. Conservation Measures'!JT94","v":0},{"$f":"'2. Conservation Measures'!JU94","v":0},{"$f":"'2. Conservation Measures'!JV94","v":0},{"$f":"'2. Conservation Measures'!JW94","v":0},{"$f":"'2. Conservation Measures'!JX94","v":0},{"$f":"'2. Conservation Measures'!JY94","v":0},{"$f":"'2. Conservation Measures'!JZ94","v":0},{"$f":"'2. Conservation Measures'!KA94","v":0},{"$f":"'2. Conservation Measures'!KB94","v":0},{"$f":"'2. Conservation Measures'!KC94","v":0},{"$f":"'2. Conservation Measures'!KD94","v":0},{"$f":"'2. Conservation Measures'!KE94","v":0},{"$f":"'2. Conservation Measures'!KF94","v":0},{"$f":"'2. Conservation Measures'!KG94","v":0},{"$f":"'2. Conservation Measures'!KH94","v":0},{"$f":"'2. Conservation Measures'!KI94","v":0},{"$f":"'2. Conservation Measures'!KJ94","v":0},{"$f":"'2. Conservation Measures'!KK94","v":0},{"$f":"'2. Conservation Measures'!KL94","v":0},{"$f":"'2. Conservation Measures'!KM94","v":0},{"$f":"'2. Conservation Measures'!KN94","v":0}]
[null,{"$f":"'2. Conservation Measures'!B95","v":"USR-MF-10"},{"$f":"'2. Conservation Measures'!C95","v":0},{"$f":"'2. Conservation Measures'!D95","v":"N"},null,{"$f":"'2. Conservation Measures'!AA95","v":0},null,{"$f":"'2. Conservation Measures'!AO95","v":0},{"$f":"'2. Conservation Measures'!AP95","v":0},{"$f":"'2. Conservation Measures'!AQ95","v":0},{"$f":"'2. Conservation Measures'!AR95","v":0},{"$f":"'2. Conservation Measures'!AS95","v":0},{"$f":"'2. Conservation Measures'!AT95","v":0},{"$f":"'2. Conservation Measures'!AU95","v":0},{"$f":"'2. Conservation Measures'!AV95","v":0},{"$f":"'2. Conservation Measures'!AW95","v":0},{"$f":"'2. Conservation Measures'!AX95","v":0},{"$f":"'2. Conservation Measures'!AY95","v":0},{"$f":"'2. Conservation Measures'!AZ95","v":0},{"$f":"'2. Conservation Measures'!BA95","v":0},{"$f":"'2. Conservation Measures'!BB95","v":0},{"$f":"'2. Conservation Measures'!BC95","v":0},{"$f":"'2. Conservation Measures'!BD95","v":0},{"$f":"'2. Conservation Measures'!BE95","v":0},{"$f":"'2. Conservation Measures'!BF95","v":0},{"$f":"'2. Conservation Measures'!BG95","v":0},{"$f":"'2. Conservation Measures'!BH95","v":0},{"$f":"'2. Conservation Measures'!BI95","v":0},{"$f":"'2. Conservation Measures'!BJ95","v":0},{"$f":"'2. Conservation Measures'!BK95","v":0},{"$f":"'2. Conservation Measures'!BL95","v":0},{"$f":"'2. Conservation Measures'!BM95","v":0},{"$f":"'2. Conservation Measures'!BN95","v":0},{"$f":"'2. Conservation Measures'!BO95","v":0},{"$f":"'2. Conservation Measures'!BP95","v":0},{"$f":"'2. Conservation Measures'!BQ95","v":0},{"$f":"'2. Conservation Measures'!BR95","v":0},{"$f":"'2. Conservation Measures'!BS95","v":0},{"$f":"'2. Conservation Measures'!BT95","v":0},{"$f":"'2. Conservation Measures'!BU95","v":0},{"$f":"'2. Conservation Measures'!BV95","v":0},{"$f":"'2. Conservation Measures'!BW95","v":0},{"$f":"'2. Conservation Measures'!BX95","v":0},{"$f":"'2. Conservation Measures'!BY95","v":0},{"$f":"'2. Conservation Measures'!BZ95","v":0},{"$f":"'2. Conservation Measures'!CA95","v":0},{"$f":"'2. Conservation Measures'!CB95","v":0},{"$f":"'2. Conservation Measures'!CC95","v":0},{"$f":"'2. Conservation Measures'!CD95","v":0},{"$f":"'2. Conservation Measures'!CE95","v":0},{"$f":"'2. Conservation Measures'!CF95","v":0},{"$f":"'2. Conservation Measures'!CG95","v":0},{"$f":"'2. Conservation Measures'!CH95","v":0},{"$f":"'2. Conservation Measures'!CI95","v":0},{"$f":"'2. Conservation Measures'!CJ95","v":0},{"$f":"'2. Conservation Measures'!CK95","v":0},{"$f":"'2. Conservation Measures'!CL95","v":0},{"$f":"'2. Conservation Measures'!CM95","v":0},null,{"$f":"'2. Conservation Measures'!CO95","v":0},{"$f":"'2. Conservation Measures'!CP95","v":0},{"$f":"'2. Conservation Measures'!CQ95","v":0},{"$f":"'2. Conservation Measures'!CR95","v":0},{"$f":"'2. Conservation Measures'!CS95","v":0},{"$f":"'2. Conservation Measures'!CT95","v":0},{"$f":"'2. Conservation Measures'!CU95","v":0},{"$f":"'2. Conservation Measures'!CV95","v":0},{"$f":"'2. Conservation Measures'!CW95","v":0},{"$f":"'2. Conservation Measures'!CX95","v":0},{"$f":"'2. Conservation Measures'!CY95","v":0},{"$f":"'2. Conservation Measures'!CZ95","v":0},{"$f":"'2. Conservation Measures'!DA95","v":0},{"$f":"'2. Conservation Measures'!DB95","v":0},{"$f":"'2. Conservation Measures'!DC95","v":0},{"$f":"'2. Conservation Measures'!DD95","v":0},{"$f":"'2. Conservation Measures'!DE95","v":0},{"$f":"'2. Conservation Measures'!DF95","v":0},{"$f":"'2. Conservation Measures'!DG95","v":0},{"$f":"'2. Conservation Measures'!DH95","v":0},{"$f":"'2. Conservation Measures'!DI95","v":0},{"$f":"'2. Conservation Measures'!DJ95","v":0},{"$f":"'2. Conservation Measures'!DK95","v":0},{"$f":"'2. Conservation Measures'!DL95","v":0},{"$f":"'2. Conservation Measures'!DM95","v":0},{"$f":"'2. Conservation Measures'!DN95","v":0},{"$f":"'2. Conservation Measures'!DO95","v":0},{"$f":"'2. Conservation Measures'!DP95","v":0},{"$f":"'2. Conservation Measures'!DQ95","v":0},{"$f":"'2. Conservation Measures'!DR95","v":0},{"$f":"'2. Conservation Measures'!DS95","v":0},{"$f":"'2. Conservation Measures'!DT95","v":0},{"$f":"'2. Conservation Measures'!DU95","v":0},{"$f":"'2. Conservation Measures'!DV95","v":0},{"$f":"'2. Conservation Measures'!DW95","v":0},{"$f":"'2. Conservation Measures'!DX95","v":0},{"$f":"'2. Conservation Measures'!DY95","v":0},{"$f":"'2. Conservation Measures'!DZ95","v":0},{"$f":"'2. Conservation Measures'!EA95","v":0},{"$f":"'2. Conservation Measures'!EB95","v":0},{"$f":"'2. Conservation Measures'!EC95","v":0},{"$f":"'2. Conservation Measures'!ED95","v":0},{"$f":"'2. Conservation Measures'!EE95","v":0},{"$f":"'2. Conservation Measures'!EF95","v":0},{"$f":"'2. Conservation Measures'!EG95","v":0},{"$f":"'2. Conservation Measures'!EH95","v":0},{"$f":"'2. Conservation Measures'!EI95","v":0},{"$f":"'2. Conservation Measures'!EJ95","v":0},{"$f":"'2. Conservation Measures'!EK95","v":0},{"$f":"'2. Conservation Measures'!EL95","v":0},{"$f":"'2. Conservation Measures'!EM95","v":0},null,{"$f":"'2. Conservation Measures'!KP95","v":0},{"$f":"'2. Conservation Measures'!KQ95","v":0},{"$f":"'2. Conservation Measures'!KR95","v":0},{"$f":"'2. Conservation Measures'!KS95","v":0},{"$f":"'2. Conservation Measures'!KT95","v":0},{"$f":"'2. Conservation Measures'!KU95","v":0},{"$f":"'2. Conservation Measures'!KV95","v":0},{"$f":"'2. Conservation Measures'!KW95","v":0},{"$f":"'2. Conservation Measures'!KX95","v":0},{"$f":"'2. Conservation Measures'!KY95","v":0},{"$f":"'2. Conservation Measures'!KZ95","v":0},{"$f":"'2. Conservation Measures'!LA95","v":0},{"$f":"'2. Conservation Measures'!LB95","v":0},{"$f":"'2. Conservation Measures'!LC95","v":0},{"$f":"'2. Conservation Measures'!LD95","v":0},{"$f":"'2. Conservation Measures'!LE95","v":0},{"$f":"'2. Conservation Measures'!LF95","v":0},{"$f":"'2. Conservation Measures'!LG95","v":0},{"$f":"'2. Conservation Measures'!LH95","v":0},{"$f":"'2. Conservation Measures'!LI95","v":0},{"$f":"'2. Conservation Measures'!LJ95","v":0},{"$f":"'2. Conservation Measures'!LK95","v":0},{"$f":"'2. Conservation Measures'!LL95","v":0},{"$f":"'2. Conservation Measures'!LM95","v":0},{"$f":"'2. Conservation Measures'!LN95","v":0},{"$f":"'2. Conservation Measures'!LO95","v":0},{"$f":"'2. Conservation Measures'!LP95","v":0},{"$f":"'2. Conservation Measures'!LQ95","v":0},{"$f":"'2. Conservation Measures'!LR95","v":0},{"$f":"'2. Conservation Measures'!LS95","v":0},{"$f":"'2. Conservation Measures'!LT95","v":0},{"$f":"'2. Conservation Measures'!LU95","v":0},{"$f":"'2. Conservation Measures'!LV95","v":0},{"$f":"'2. Conservation Measures'!LW95","v":0},{"$f":"'2. Conservation Measures'!LX95","v":0},{"$f":"'2. Conservation Measures'!LY95","v":0},{"$f":"'2. Conservation Measures'!LZ95","v":0},{"$f":"'2. Conservation Measures'!MA95","v":0},{"$f":"'2. Conservation Measures'!MB95","v":0},{"$f":"'2. Conservation Measures'!MC95","v":0},{"$f":"'2. Conservation Measures'!MD95","v":0},{"$f":"'2. Conservation Measures'!ME95","v":0},{"$f":"'2. Conservation Measures'!MF95","v":0},{"$f":"'2. Conservation Measures'!MG95","v":0},{"$f":"'2. Conservation Measures'!MH95","v":0},{"$f":"'2. Conservation Measures'!MI95","v":0},{"$f":"'2. Conservation Measures'!MJ95","v":0},{"$f":"'2. Conservation Measures'!MK95","v":0},{"$f":"'2. Conservation Measures'!ML95","v":0},{"$f":"'2. Conservation Measures'!MM95","v":0},{"$f":"'2. Conservation Measures'!MN95","v":0},null,{"$f":"'2. Conservation Measures'!EP95","v":0},{"$f":"'2. Conservation Measures'!EQ95","v":0},{"$f":"'2. Conservation Measures'!ER95","v":0},{"$f":"'2. Conservation Measures'!ES95","v":0},{"$f":"'2. Conservation Measures'!ET95","v":0},{"$f":"'2. Conservation Measures'!EU95","v":0},{"$f":"'2. Conservation Measures'!EV95","v":0},{"$f":"'2. Conservation Measures'!EW95","v":0},{"$f":"'2. Conservation Measures'!EX95","v":0},{"$f":"'2. Conservation Measures'!EY95","v":0},{"$f":"'2. Conservation Measures'!EZ95","v":0},{"$f":"'2. Conservation Measures'!FA95","v":0},{"$f":"'2. Conservation Measures'!FB95","v":0},{"$f":"'2. Conservation Measures'!FC95","v":0},{"$f":"'2. Conservation Measures'!FD95","v":0},{"$f":"'2. Conservation Measures'!FE95","v":0},{"$f":"'2. Conservation Measures'!FF95","v":0},{"$f":"'2. Conservation Measures'!FG95","v":0},{"$f":"'2. Conservation Measures'!FH95","v":0},{"$f":"'2. Conservation Measures'!FI95","v":0},{"$f":"'2. Conservation Measures'!FJ95","v":0},{"$f":"'2. Conservation Measures'!FK95","v":0},{"$f":"'2. Conservation Measures'!FL95","v":0},{"$f":"'2. Conservation Measures'!FM95","v":0},{"$f":"'2. Conservation Measures'!FN95","v":0},{"$f":"'2. Conservation Measures'!FO95","v":0},{"$f":"'2. Conservation Measures'!FP95","v":0},{"$f":"'2. Conservation Measures'!FQ95","v":0},{"$f":"'2. Conservation Measures'!FR95","v":0},{"$f":"'2. Conservation Measures'!FS95","v":0},{"$f":"'2. Conservation Measures'!FT95","v":0},{"$f":"'2. Conservation Measures'!FU95","v":0},{"$f":"'2. Conservation Measures'!FV95","v":0},{"$f":"'2. Conservation Measures'!FW95","v":0},{"$f":"'2. Conservation Measures'!FX95","v":0},{"$f":"'2. Conservation Measures'!FY95","v":0},{"$f":"'2. Conservation Measures'!FZ95","v":0},{"$f":"'2. Conservation Measures'!GA95","v":0},{"$f":"'2. Conservation Measures'!GB95","v":0},{"$f":"'2. Conservation Measures'!GC95","v":0},{"$f":"'2. Conservation Measures'!GD95","v":0},{"$f":"'2. Conservation Measures'!GE95","v":0},{"$f":"'2. Conservation Measures'!GF95","v":0},{"$f":"'2. Conservation Measures'!GG95","v":0},{"$f":"'2. Conservation Measures'!GH95","v":0},{"$f":"'2. Conservation Measures'!GI95","v":0},{"$f":"'2. Conservation Measures'!GJ95","v":0},{"$f":"'2. Conservation Measures'!GK95","v":0},{"$f":"'2. Conservation Measures'!GL95","v":0},{"$f":"'2. Conservation Measures'!GM95","v":0},{"$f":"'2. Conservation Measures'!GN95","v":0},null,{"$f":"'2. Conservation Measures'!GP95","v":0},{"$f":"'2. Conservation Measures'!GQ95","v":0},{"$f":"'2. Conservation Measures'!GR95","v":0},{"$f":"'2. Conservation Measures'!GS95","v":0},{"$f":"'2. Conservation Measures'!GT95","v":0},{"$f":"'2. Conservation Measures'!GU95","v":0},{"$f":"'2. Conservation Measures'!GV95","v":0},{"$f":"'2. Conservation Measures'!GW95","v":0},{"$f":"'2. Conservation Measures'!GX95","v":0},{"$f":"'2. Conservation Measures'!GY95","v":0},{"$f":"'2. Conservation Measures'!GZ95","v":0},{"$f":"'2. Conservation Measures'!HA95","v":0},{"$f":"'2. Conservation Measures'!HB95","v":0},{"$f":"'2. Conservation Measures'!HC95","v":0},{"$f":"'2. Conservation Measures'!HD95","v":0},{"$f":"'2. Conservation Measures'!HE95","v":0},{"$f":"'2. Conservation Measures'!HF95","v":0},{"$f":"'2. Conservation Measures'!HG95","v":0},{"$f":"'2. Conservation Measures'!HH95","v":0},{"$f":"'2. Conservation Measures'!HI95","v":0},{"$f":"'2. Conservation Measures'!HJ95","v":0},{"$f":"'2. Conservation Measures'!HK95","v":0},{"$f":"'2. Conservation Measures'!HL95","v":0},{"$f":"'2. Conservation Measures'!HM95","v":0},{"$f":"'2. Conservation Measures'!HN95","v":0},{"$f":"'2. Conservation Measures'!HO95","v":0},{"$f":"'2. Conservation Measures'!HP95","v":0},{"$f":"'2. Conservation Measures'!HQ95","v":0},{"$f":"'2. Conservation Measures'!HR95","v":0},{"$f":"'2. Conservation Measures'!HS95","v":0},{"$f":"'2. Conservation Measures'!HT95","v":0},{"$f":"'2. Conservation Measures'!HU95","v":0},{"$f":"'2. Conservation Measures'!HV95","v":0},{"$f":"'2. Conservation Measures'!HW95","v":0},{"$f":"'2. Conservation Measures'!HX95","v":0},{"$f":"'2. Conservation Measures'!HY95","v":0},{"$f":"'2. Conservation Measures'!HZ95","v":0},{"$f":"'2. Conservation Measures'!IA95","v":0},{"$f":"'2. Conservation Measures'!IB95","v":0},{"$f":"'2. Conservation Measures'!IC95","v":0},{"$f":"'2. Conservation Measures'!ID95","v":0},{"$f":"'2. Conservation Measures'!IE95","v":0},{"$f":"'2. Conservation Measures'!IF95","v":0},{"$f":"'2. Conservation Measures'!IG95","v":0},{"$f":"'2. Conservation Measures'!IH95","v":0},{"$f":"'2. Conservation Measures'!II95","v":0},{"$f":"'2. Conservation Measures'!IJ95","v":0},{"$f":"'2. Conservation Measures'!IK95","v":0},{"$f":"'2. Conservation Measures'!IL95","v":0},{"$f":"'2. Conservation Measures'!IM95","v":0},{"$f":"'2. Conservation Measures'!IN95","v":0},null,{"$f":"'2. Conservation Measures'!IP95","v":0},{"$f":"'2. Conservation Measures'!IQ95","v":0},{"$f":"'2. Conservation Measures'!IR95","v":0},{"$f":"'2. Conservation Measures'!IS95","v":0},{"$f":"'2. Conservation Measures'!IT95","v":0},{"$f":"'2. Conservation Measures'!IU95","v":0},{"$f":"'2. Conservation Measures'!IV95","v":0},{"$f":"'2. Conservation Measures'!IW95","v":0},{"$f":"'2. Conservation Measures'!IX95","v":0},{"$f":"'2. Conservation Measures'!IY95","v":0},{"$f":"'2. Conservation Measures'!IZ95","v":0},{"$f":"'2. Conservation Measures'!JA95","v":0},{"$f":"'2. Conservation Measures'!JB95","v":0},{"$f":"'2. Conservation Measures'!JC95","v":0},{"$f":"'2. Conservation Measures'!JD95","v":0},{"$f":"'2. Conservation Measures'!JE95","v":0},{"$f":"'2. Conservation Measures'!JF95","v":0},{"$f":"'2. Conservation Measures'!JG95","v":0},{"$f":"'2. Conservation Measures'!JH95","v":0},{"$f":"'2. Conservation Measures'!JI95","v":0},{"$f":"'2. Conservation Measures'!JJ95","v":0},{"$f":"'2. Conservation Measures'!JK95","v":0},{"$f":"'2. Conservation Measures'!JL95","v":0},{"$f":"'2. Conservation Measures'!JM95","v":0},{"$f":"'2. Conservation Measures'!JN95","v":0},{"$f":"'2. Conservation Measures'!JO95","v":0},{"$f":"'2. Conservation Measures'!JP95","v":0},{"$f":"'2. Conservation Measures'!JQ95","v":0},{"$f":"'2. Conservation Measures'!JR95","v":0},{"$f":"'2. Conservation Measures'!JS95","v":0},{"$f":"'2. Conservation Measures'!JT95","v":0},{"$f":"'2. Conservation Measures'!JU95","v":0},{"$f":"'2. Conservation Measures'!JV95","v":0},{"$f":"'2. Conservation Measures'!JW95","v":0},{"$f":"'2. Conservation Measures'!JX95","v":0},{"$f":"'2. Conservation Measures'!JY95","v":0},{"$f":"'2. Conservation Measures'!JZ95","v":0},{"$f":"'2. Conservation Measures'!KA95","v":0},{"$f":"'2. Conservation Measures'!KB95","v":0},{"$f":"'2. Conservation Measures'!KC95","v":0},{"$f":"'2. Conservation Measures'!KD95","v":0},{"$f":"'2. Conservation Measures'!KE95","v":0},{"$f":"'2. Conservation Measures'!KF95","v":0},{"$f":"'2. Conservation Measures'!KG95","v":0},{"$f":"'2. Conservation Measures'!KH95","v":0},{"$f":"'2. Conservation Measures'!KI95","v":0},{"$f":"'2. Conservation Measures'!KJ95","v":0},{"$f":"'2. Conservation Measures'!KK95","v":0},{"$f":"'2. Conservation Measures'!KL95","v":0},{"$f":"'2. Conservation Measures'!KM95","v":0},{"$f":"'2. Conservation Measures'!KN95","v":0}]
[null,{"$f":"'2. Conservation Measures'!B96","v":"USR-MF-11"},{"$f":"'2. Conservation Measures'!C96","v":0},{"$f":"'2. Conservation Measures'!D96","v":"N"},null,{"$f":"'2. Conservation Measures'!AA96","v":0},null,{"$f":"'2. Conservation Measures'!AO96","v":0},{"$f":"'2. Conservation Measures'!AP96","v":0},{"$f":"'2. Conservation Measures'!AQ96","v":0},{"$f":"'2. Conservation Measures'!AR96","v":0},{"$f":"'2. Conservation Measures'!AS96","v":0},{"$f":"'2. Conservation Measures'!AT96","v":0},{"$f":"'2. Conservation Measures'!AU96","v":0},{"$f":"'2. Conservation Measures'!AV96","v":0},{"$f":"'2. Conservation Measures'!AW96","v":0},{"$f":"'2. Conservation Measures'!AX96","v":0},{"$f":"'2. Conservation Measures'!AY96","v":0},{"$f":"'2. Conservation Measures'!AZ96","v":0},{"$f":"'2. Conservation Measures'!BA96","v":0},{"$f":"'2. Conservation Measures'!BB96","v":0},{"$f":"'2. Conservation Measures'!BC96","v":0},{"$f":"'2. Conservation Measures'!BD96","v":0},{"$f":"'2. Conservation Measures'!BE96","v":0},{"$f":"'2. Conservation Measures'!BF96","v":0},{"$f":"'2. Conservation Measures'!BG96","v":0},{"$f":"'2. Conservation Measures'!BH96","v":0},{"$f":"'2. Conservation Measures'!BI96","v":0},{"$f":"'2. Conservation Measures'!BJ96","v":0},{"$f":"'2. Conservation Measures'!BK96","v":0},{"$f":"'2. Conservation Measures'!BL96","v":0},{"$f":"'2. Conservation Measures'!BM96","v":0},{"$f":"'2. Conservation Measures'!BN96","v":0},{"$f":"'2. Conservation Measures'!BO96","v":0},{"$f":"'2. Conservation Measures'!BP96","v":0},{"$f":"'2. Conservation Measures'!BQ96","v":0},{"$f":"'2. Conservation Measures'!BR96","v":0},{"$f":"'2. Conservation Measures'!BS96","v":0},{"$f":"'2. Conservation Measures'!BT96","v":0},{"$f":"'2. Conservation Measures'!BU96","v":0},{"$f":"'2. Conservation Measures'!BV96","v":0},{"$f":"'2. Conservation Measures'!BW96","v":0},{"$f":"'2. Conservation Measures'!BX96","v":0},{"$f":"'2. Conservation Measures'!BY96","v":0},{"$f":"'2. Conservation Measures'!BZ96","v":0},{"$f":"'2. Conservation Measures'!CA96","v":0},{"$f":"'2. Conservation Measures'!CB96","v":0},{"$f":"'2. Conservation Measures'!CC96","v":0},{"$f":"'2. Conservation Measures'!CD96","v":0},{"$f":"'2. Conservation Measures'!CE96","v":0},{"$f":"'2. Conservation Measures'!CF96","v":0},{"$f":"'2. Conservation Measures'!CG96","v":0},{"$f":"'2. Conservation Measures'!CH96","v":0},{"$f":"'2. Conservation Measures'!CI96","v":0},{"$f":"'2. Conservation Measures'!CJ96","v":0},{"$f":"'2. Conservation Measures'!CK96","v":0},{"$f":"'2. Conservation Measures'!CL96","v":0},{"$f":"'2. Conservation Measures'!CM96","v":0},null,{"$f":"'2. Conservation Measures'!CO96","v":0},{"$f":"'2. Conservation Measures'!CP96","v":0},{"$f":"'2. Conservation Measures'!CQ96","v":0},{"$f":"'2. Conservation Measures'!CR96","v":0},{"$f":"'2. Conservation Measures'!CS96","v":0},{"$f":"'2. Conservation Measures'!CT96","v":0},{"$f":"'2. Conservation Measures'!CU96","v":0},{"$f":"'2. Conservation Measures'!CV96","v":0},{"$f":"'2. Conservation Measures'!CW96","v":0},{"$f":"'2. Conservation Measures'!CX96","v":0},{"$f":"'2. Conservation Measures'!CY96","v":0},{"$f":"'2. Conservation Measures'!CZ96","v":0},{"$f":"'2. Conservation Measures'!DA96","v":0},{"$f":"'2. Conservation Measures'!DB96","v":0},{"$f":"'2. Conservation Measures'!DC96","v":0},{"$f":"'2. Conservation Measures'!DD96","v":0},{"$f":"'2. Conservation Measures'!DE96","v":0},{"$f":"'2. Conservation Measures'!DF96","v":0},{"$f":"'2. Conservation Measures'!DG96","v":0},{"$f":"'2. Conservation Measures'!DH96","v":0},{"$f":"'2. Conservation Measures'!DI96","v":0},{"$f":"'2. Conservation Measures'!DJ96","v":0},{"$f":"'2. Conservation Measures'!DK96","v":0},{"$f":"'2. Conservation Measures'!DL96","v":0},{"$f":"'2. Conservation Measures'!DM96","v":0},{"$f":"'2. Conservation Measures'!DN96","v":0},{"$f":"'2. Conservation Measures'!DO96","v":0},{"$f":"'2. Conservation Measures'!DP96","v":0},{"$f":"'2. Conservation Measures'!DQ96","v":0},{"$f":"'2. Conservation Measures'!DR96","v":0},{"$f":"'2. Conservation Measures'!DS96","v":0},{"$f":"'2. Conservation Measures'!DT96","v":0},{"$f":"'2. Conservation Measures'!DU96","v":0},{"$f":"'2. Conservation Measures'!DV96","v":0},{"$f":"'2. Conservation Measures'!DW96","v":0},{"$f":"'2. Conservation Measures'!DX96","v":0},{"$f":"'2. Conservation Measures'!DY96","v":0},{"$f":"'2. Conservation Measures'!DZ96","v":0},{"$f":"'2. Conservation Measures'!EA96","v":0},{"$f":"'2. Conservation Measures'!EB96","v":0},{"$f":"'2. Conservation Measures'!EC96","v":0},{"$f":"'2. Conservation Measures'!ED96","v":0},{"$f":"'2. Conservation Measures'!EE96","v":0},{"$f":"'2. Conservation Measures'!EF96","v":0},{"$f":"'2. Conservation Measures'!EG96","v":0},{"$f":"'2. Conservation Measures'!EH96","v":0},{"$f":"'2. Conservation Measures'!EI96","v":0},{"$f":"'2. Conservation Measures'!EJ96","v":0},{"$f":"'2. Conservation Measures'!EK96","v":0},{"$f":"'2. Conservation Measures'!EL96","v":0},{"$f":"'2. Conservation Measures'!EM96","v":0},null,{"$f":"'2. Conservation Measures'!KP96","v":0},{"$f":"'2. Conservation Measures'!KQ96","v":0},{"$f":"'2. Conservation Measures'!KR96","v":0},{"$f":"'2. Conservation Measures'!KS96","v":0},{"$f":"'2. Conservation Measures'!KT96","v":0},{"$f":"'2. Conservation Measures'!KU96","v":0},{"$f":"'2. Conservation Measures'!KV96","v":0},{"$f":"'2. Conservation Measures'!KW96","v":0},{"$f":"'2. Conservation Measures'!KX96","v":0},{"$f":"'2. Conservation Measures'!KY96","v":0},{"$f":"'2. Conservation Measures'!KZ96","v":0},{"$f":"'2. Conservation Measures'!LA96","v":0},{"$f":"'2. Conservation Measures'!LB96","v":0},{"$f":"'2. Conservation Measures'!LC96","v":0},{"$f":"'2. Conservation Measures'!LD96","v":0},{"$f":"'2. Conservation Measures'!LE96","v":0},{"$f":"'2. Conservation Measures'!LF96","v":0},{"$f":"'2. Conservation Measures'!LG96","v":0},{"$f":"'2. Conservation Measures'!LH96","v":0},{"$f":"'2. Conservation Measures'!LI96","v":0},{"$f":"'2. Conservation Measures'!LJ96","v":0},{"$f":"'2. Conservation Measures'!LK96","v":0},{"$f":"'2. Conservation Measures'!LL96","v":0},{"$f":"'2. Conservation Measures'!LM96","v":0},{"$f":"'2. Conservation Measures'!LN96","v":0},{"$f":"'2. Conservation Measures'!LO96","v":0},{"$f":"'2. Conservation Measures'!LP96","v":0},{"$f":"'2. Conservation Measures'!LQ96","v":0},{"$f":"'2. Conservation Measures'!LR96","v":0},{"$f":"'2. Conservation Measures'!LS96","v":0},{"$f":"'2. Conservation Measures'!LT96","v":0},{"$f":"'2. Conservation Measures'!LU96","v":0},{"$f":"'2. Conservation Measures'!LV96","v":0},{"$f":"'2. Conservation Measures'!LW96","v":0},{"$f":"'2. Conservation Measures'!LX96","v":0},{"$f":"'2. Conservation Measures'!LY96","v":0},{"$f":"'2. Conservation Measures'!LZ96","v":0},{"$f":"'2. Conservation Measures'!MA96","v":0},{"$f":"'2. Conservation Measures'!MB96","v":0},{"$f":"'2. Conservation Measures'!MC96","v":0},{"$f":"'2. Conservation Measures'!MD96","v":0},{"$f":"'2. Conservation Measures'!ME96","v":0},{"$f":"'2. Conservation Measures'!MF96","v":0},{"$f":"'2. Conservation Measures'!MG96","v":0},{"$f":"'2. Conservation Measures'!MH96","v":0},{"$f":"'2. Conservation Measures'!MI96","v":0},{"$f":"'2. Conservation Measures'!MJ96","v":0},{"$f":"'2. Conservation Measures'!MK96","v":0},{"$f":"'2. Conservation Measures'!ML96","v":0},{"$f":"'2. Conservation Measures'!MM96","v":0},{"$f":"'2. Conservation Measures'!MN96","v":0},null,{"$f":"'2. Conservation Measures'!EP96","v":0},{"$f":"'2. Conservation Measures'!EQ96","v":0},{"$f":"'2. Conservation Measures'!ER96","v":0},{"$f":"'2. Conservation Measures'!ES96","v":0},{"$f":"'2. Conservation Measures'!ET96","v":0},{"$f":"'2. Conservation Measures'!EU96","v":0},{"$f":"'2. Conservation Measures'!EV96","v":0},{"$f":"'2. Conservation Measures'!EW96","v":0},{"$f":"'2. Conservation Measures'!EX96","v":0},{"$f":"'2. Conservation Measures'!EY96","v":0},{"$f":"'2. Conservation Measures'!EZ96","v":0},{"$f":"'2. Conservation Measures'!FA96","v":0},{"$f":"'2. Conservation Measures'!FB96","v":0},{"$f":"'2. Conservation Measures'!FC96","v":0},{"$f":"'2. Conservation Measures'!FD96","v":0},{"$f":"'2. Conservation Measures'!FE96","v":0},{"$f":"'2. Conservation Measures'!FF96","v":0},{"$f":"'2. Conservation Measures'!FG96","v":0},{"$f":"'2. Conservation Measures'!FH96","v":0},{"$f":"'2. Conservation Measures'!FI96","v":0},{"$f":"'2. Conservation Measures'!FJ96","v":0},{"$f":"'2. Conservation Measures'!FK96","v":0},{"$f":"'2. Conservation Measures'!FL96","v":0},{"$f":"'2. Conservation Measures'!FM96","v":0},{"$f":"'2. Conservation Measures'!FN96","v":0},{"$f":"'2. Conservation Measures'!FO96","v":0},{"$f":"'2. Conservation Measures'!FP96","v":0},{"$f":"'2. Conservation Measures'!FQ96","v":0},{"$f":"'2. Conservation Measures'!FR96","v":0},{"$f":"'2. Conservation Measures'!FS96","v":0},{"$f":"'2. Conservation Measures'!FT96","v":0},{"$f":"'2. Conservation Measures'!FU96","v":0},{"$f":"'2. Conservation Measures'!FV96","v":0},{"$f":"'2. Conservation Measures'!FW96","v":0},{"$f":"'2. Conservation Measures'!FX96","v":0},{"$f":"'2. Conservation Measures'!FY96","v":0},{"$f":"'2. Conservation Measures'!FZ96","v":0},{"$f":"'2. Conservation Measures'!GA96","v":0},{"$f":"'2. Conservation Measures'!GB96","v":0},{"$f":"'2. Conservation Measures'!GC96","v":0},{"$f":"'2. Conservation Measures'!GD96","v":0},{"$f":"'2. Conservation Measures'!GE96","v":0},{"$f":"'2. Conservation Measures'!GF96","v":0},{"$f":"'2. Conservation Measures'!GG96","v":0},{"$f":"'2. Conservation Measures'!GH96","v":0},{"$f":"'2. Conservation Measures'!GI96","v":0},{"$f":"'2. Conservation Measures'!GJ96","v":0},{"$f":"'2. Conservation Measures'!GK96","v":0},{"$f":"'2. Conservation Measures'!GL96","v":0},{"$f":"'2. Conservation Measures'!GM96","v":0},{"$f":"'2. Conservation Measures'!GN96","v":0},null,{"$f":"'2. Conservation Measures'!GP96","v":0},{"$f":"'2. Conservation Measures'!GQ96","v":0},{"$f":"'2. Conservation Measures'!GR96","v":0},{"$f":"'2. Conservation Measures'!GS96","v":0},{"$f":"'2. Conservation Measures'!GT96","v":0},{"$f":"'2. Conservation Measures'!GU96","v":0},{"$f":"'2. Conservation Measures'!GV96","v":0},{"$f":"'2. Conservation Measures'!GW96","v":0},{"$f":"'2. Conservation Measures'!GX96","v":0},{"$f":"'2. Conservation Measures'!GY96","v":0},{"$f":"'2. Conservation Measures'!GZ96","v":0},{"$f":"'2. Conservation Measures'!HA96","v":0},{"$f":"'2. Conservation Measures'!HB96","v":0},{"$f":"'2. Conservation Measures'!HC96","v":0},{"$f":"'2. Conservation Measures'!HD96","v":0},{"$f":"'2. Conservation Measures'!HE96","v":0},{"$f":"'2. Conservation Measures'!HF96","v":0},{"$f":"'2. Conservation Measures'!HG96","v":0},{"$f":"'2. Conservation Measures'!HH96","v":0},{"$f":"'2. Conservation Measures'!HI96","v":0},{"$f":"'2. Conservation Measures'!HJ96","v":0},{"$f":"'2. Conservation Measures'!HK96","v":0},{"$f":"'2. Conservation Measures'!HL96","v":0},{"$f":"'2. Conservation Measures'!HM96","v":0},{"$f":"'2. Conservation Measures'!HN96","v":0},{"$f":"'2. Conservation Measures'!HO96","v":0},{"$f":"'2. Conservation Measures'!HP96","v":0},{"$f":"'2. Conservation Measures'!HQ96","v":0},{"$f":"'2. Conservation Measures'!HR96","v":0},{"$f":"'2. Conservation Measures'!HS96","v":0},{"$f":"'2. Conservation Measures'!HT96","v":0},{"$f":"'2. Conservation Measures'!HU96","v":0},{"$f":"'2. Conservation Measures'!HV96","v":0},{"$f":"'2. Conservation Measures'!HW96","v":0},{"$f":"'2. Conservation Measures'!HX96","v":0},{"$f":"'2. Conservation Measures'!HY96","v":0},{"$f":"'2. Conservation Measures'!HZ96","v":0},{"$f":"'2. Conservation Measures'!IA96","v":0},{"$f":"'2. Conservation Measures'!IB96","v":0},{"$f":"'2. Conservation Measures'!IC96","v":0},{"$f":"'2. Conservation Measures'!ID96","v":0},{"$f":"'2. Conservation Measures'!IE96","v":0},{"$f":"'2. Conservation Measures'!IF96","v":0},{"$f":"'2. Conservation Measures'!IG96","v":0},{"$f":"'2. Conservation Measures'!IH96","v":0},{"$f":"'2. Conservation Measures'!II96","v":0},{"$f":"'2. Conservation Measures'!IJ96","v":0},{"$f":"'2. Conservation Measures'!IK96","v":0},{"$f":"'2. Conservation Measures'!IL96","v":0},{"$f":"'2. Conservation Measures'!IM96","v":0},{"$f":"'2. Conservation Measures'!IN96","v":0},null,{"$f":"'2. Conservation Measures'!IP96","v":0},{"$f":"'2. Conservation Measures'!IQ96","v":0},{"$f":"'2. Conservation Measures'!IR96","v":0},{"$f":"'2. Conservation Measures'!IS96","v":0},{"$f":"'2. Conservation Measures'!IT96","v":0},{"$f":"'2. Conservation Measures'!IU96","v":0},{"$f":"'2. Conservation Measures'!IV96","v":0},{"$f":"'2. Conservation Measures'!IW96","v":0},{"$f":"'2. Conservation Measures'!IX96","v":0},{"$f":"'2. Conservation Measures'!IY96","v":0},{"$f":"'2. Conservation Measures'!IZ96","v":0},{"$f":"'2. Conservation Measures'!JA96","v":0},{"$f":"'2. Conservation Measures'!JB96","v":0},{"$f":"'2. Conservation Measures'!JC96","v":0},{"$f":"'2. Conservation Measures'!JD96","v":0},{"$f":"'2. Conservation Measures'!JE96","v":0},{"$f":"'2. Conservation Measures'!JF96","v":0},{"$f":"'2. Conservation Measures'!JG96","v":0},{"$f":"'2. Conservation Measures'!JH96","v":0},{"$f":"'2. Conservation Measures'!JI96","v":0},{"$f":"'2. Conservation Measures'!JJ96","v":0},{"$f":"'2. Conservation Measures'!JK96","v":0},{"$f":"'2. Conservation Measures'!JL96","v":0},{"$f":"'2. Conservation Measures'!JM96","v":0},{"$f":"'2. Conservation Measures'!JN96","v":0},{"$f":"'2. Conservation Measures'!JO96","v":0},{"$f":"'2. Conservation Measures'!JP96","v":0},{"$f":"'2. Conservation Measures'!JQ96","v":0},{"$f":"'2. Conservation Measures'!JR96","v":0},{"$f":"'2. Conservation Measures'!JS96","v":0},{"$f":"'2. Conservation Measures'!JT96","v":0},{"$f":"'2. Conservation Measures'!JU96","v":0},{"$f":"'2. Conservation Measures'!JV96","v":0},{"$f":"'2. Conservation Measures'!JW96","v":0},{"$f":"'2. Conservation Measures'!JX96","v":0},{"$f":"'2. Conservation Measures'!JY96","v":0},{"$f":"'2. Conservation Measures'!JZ96","v":0},{"$f":"'2. Conservation Measures'!KA96","v":0},{"$f":"'2. Conservation Measures'!KB96","v":0},{"$f":"'2. Conservation Measures'!KC96","v":0},{"$f":"'2. Conservation Measures'!KD96","v":0},{"$f":"'2. Conservation Measures'!KE96","v":0},{"$f":"'2. Conservation Measures'!KF96","v":0},{"$f":"'2. Conservation Measures'!KG96","v":0},{"$f":"'2. Conservation Measures'!KH96","v":0},{"$f":"'2. Conservation Measures'!KI96","v":0},{"$f":"'2. Conservation Measures'!KJ96","v":0},{"$f":"'2. Conservation Measures'!KK96","v":0},{"$f":"'2. Conservation Measures'!KL96","v":0},{"$f":"'2. Conservation Measures'!KM96","v":0},{"$f":"'2. Conservation Measures'!KN96","v":0}]
[null,{"$f":"'2. Conservation Measures'!B97","v":"USR-MF-12"},{"$f":"'2. Conservation Measures'!C97","v":0},{"$f":"'2. Conservation Measures'!D97","v":"N"},null,{"$f":"'2. Conservation Measures'!AA97","v":0},null,{"$f":"'2. Conservation Measures'!AO97","v":0},{"$f":"'2. Conservation Measures'!AP97","v":0},{"$f":"'2. Conservation Measures'!AQ97","v":0},{"$f":"'2. Conservation Measures'!AR97","v":0},{"$f":"'2. Conservation Measures'!AS97","v":0},{"$f":"'2. Conservation Measures'!AT97","v":0},{"$f":"'2. Conservation Measures'!AU97","v":0},{"$f":"'2. Conservation Measures'!AV97","v":0},{"$f":"'2. Conservation Measures'!AW97","v":0},{"$f":"'2. Conservation Measures'!AX97","v":0},{"$f":"'2. Conservation Measures'!AY97","v":0},{"$f":"'2. Conservation Measures'!AZ97","v":0},{"$f":"'2. Conservation Measures'!BA97","v":0},{"$f":"'2. Conservation Measures'!BB97","v":0},{"$f":"'2. Conservation Measures'!BC97","v":0},{"$f":"'2. Conservation Measures'!BD97","v":0},{"$f":"'2. Conservation Measures'!BE97","v":0},{"$f":"'2. Conservation Measures'!BF97","v":0},{"$f":"'2. Conservation Measures'!BG97","v":0},{"$f":"'2. Conservation Measures'!BH97","v":0},{"$f":"'2. Conservation Measures'!BI97","v":0},{"$f":"'2. Conservation Measures'!BJ97","v":0},{"$f":"'2. Conservation Measures'!BK97","v":0},{"$f":"'2. Conservation Measures'!BL97","v":0},{"$f":"'2. Conservation Measures'!BM97","v":0},{"$f":"'2. Conservation Measures'!BN97","v":0},{"$f":"'2. Conservation Measures'!BO97","v":0},{"$f":"'2. Conservation Measures'!BP97","v":0},{"$f":"'2. Conservation Measures'!BQ97","v":0},{"$f":"'2. Conservation Measures'!BR97","v":0},{"$f":"'2. Conservation Measures'!BS97","v":0},{"$f":"'2. Conservation Measures'!BT97","v":0},{"$f":"'2. Conservation Measures'!BU97","v":0},{"$f":"'2. Conservation Measures'!BV97","v":0},{"$f":"'2. Conservation Measures'!BW97","v":0},{"$f":"'2. Conservation Measures'!BX97","v":0},{"$f":"'2. Conservation Measures'!BY97","v":0},{"$f":"'2. Conservation Measures'!BZ97","v":0},{"$f":"'2. Conservation Measures'!CA97","v":0},{"$f":"'2. Conservation Measures'!CB97","v":0},{"$f":"'2. Conservation Measures'!CC97","v":0},{"$f":"'2. Conservation Measures'!CD97","v":0},{"$f":"'2. Conservation Measures'!CE97","v":0},{"$f":"'2. Conservation Measures'!CF97","v":0},{"$f":"'2. Conservation Measures'!CG97","v":0},{"$f":"'2. Conservation Measures'!CH97","v":0},{"$f":"'2. Conservation Measures'!CI97","v":0},{"$f":"'2. Conservation Measures'!CJ97","v":0},{"$f":"'2. Conservation Measures'!CK97","v":0},{"$f":"'2. Conservation Measures'!CL97","v":0},{"$f":"'2. Conservation Measures'!CM97","v":0},null,{"$f":"'2. Conservation Measures'!CO97","v":0},{"$f":"'2. Conservation Measures'!CP97","v":0},{"$f":"'2. Conservation Measures'!CQ97","v":0},{"$f":"'2. Conservation Measures'!CR97","v":0},{"$f":"'2. Conservation Measures'!CS97","v":0},{"$f":"'2. Conservation Measures'!CT97","v":0},{"$f":"'2. Conservation Measures'!CU97","v":0},{"$f":"'2. Conservation Measures'!CV97","v":0},{"$f":"'2. Conservation Measures'!CW97","v":0},{"$f":"'2. Conservation Measures'!CX97","v":0},{"$f":"'2. Conservation Measures'!CY97","v":0},{"$f":"'2. Conservation Measures'!CZ97","v":0},{"$f":"'2. Conservation Measures'!DA97","v":0},{"$f":"'2. Conservation Measures'!DB97","v":0},{"$f":"'2. Conservation Measures'!DC97","v":0},{"$f":"'2. Conservation Measures'!DD97","v":0},{"$f":"'2. Conservation Measures'!DE97","v":0},{"$f":"'2. Conservation Measures'!DF97","v":0},{"$f":"'2. Conservation Measures'!DG97","v":0},{"$f":"'2. Conservation Measures'!DH97","v":0},{"$f":"'2. Conservation Measures'!DI97","v":0},{"$f":"'2. Conservation Measures'!DJ97","v":0},{"$f":"'2. Conservation Measures'!DK97","v":0},{"$f":"'2. Conservation Measures'!DL97","v":0},{"$f":"'2. Conservation Measures'!DM97","v":0},{"$f":"'2. Conservation Measures'!DN97","v":0},{"$f":"'2. Conservation Measures'!DO97","v":0},{"$f":"'2. Conservation Measures'!DP97","v":0},{"$f":"'2. Conservation Measures'!DQ97","v":0},{"$f":"'2. Conservation Measures'!DR97","v":0},{"$f":"'2. Conservation Measures'!DS97","v":0},{"$f":"'2. Conservation Measures'!DT97","v":0},{"$f":"'2. Conservation Measures'!DU97","v":0},{"$f":"'2. Conservation Measures'!DV97","v":0},{"$f":"'2. Conservation Measures'!DW97","v":0},{"$f":"'2. Conservation Measures'!DX97","v":0},{"$f":"'2. Conservation Measures'!DY97","v":0},{"$f":"'2. Conservation Measures'!DZ97","v":0},{"$f":"'2. Conservation Measures'!EA97","v":0},{"$f":"'2. Conservation Measures'!EB97","v":0},{"$f":"'2. Conservation Measures'!EC97","v":0},{"$f":"'2. Conservation Measures'!ED97","v":0},{"$f":"'2. Conservation Measures'!EE97","v":0},{"$f":"'2. Conservation Measures'!EF97","v":0},{"$f":"'2. Conservation Measures'!EG97","v":0},{"$f":"'2. Conservation Measures'!EH97","v":0},{"$f":"'2. Conservation Measures'!EI97","v":0},{"$f":"'2. Conservation Measures'!EJ97","v":0},{"$f":"'2. Conservation Measures'!EK97","v":0},{"$f":"'2. Conservation Measures'!EL97","v":0},{"$f":"'2. Conservation Measures'!EM97","v":0},null,{"$f":"'2. Conservation Measures'!KP97","v":0},{"$f":"'2. Conservation Measures'!KQ97","v":0},{"$f":"'2. Conservation Measures'!KR97","v":0},{"$f":"'2. Conservation Measures'!KS97","v":0},{"$f":"'2. Conservation Measures'!KT97","v":0},{"$f":"'2. Conservation Measures'!KU97","v":0},{"$f":"'2. Conservation Measures'!KV97","v":0},{"$f":"'2. Conservation Measures'!KW97","v":0},{"$f":"'2. Conservation Measures'!KX97","v":0},{"$f":"'2. Conservation Measures'!KY97","v":0},{"$f":"'2. Conservation Measures'!KZ97","v":0},{"$f":"'2. Conservation Measures'!LA97","v":0},{"$f":"'2. Conservation Measures'!LB97","v":0},{"$f":"'2. Conservation Measures'!LC97","v":0},{"$f":"'2. Conservation Measures'!LD97","v":0},{"$f":"'2. Conservation Measures'!LE97","v":0},{"$f":"'2. Conservation Measures'!LF97","v":0},{"$f":"'2. Conservation Measures'!LG97","v":0},{"$f":"'2. Conservation Measures'!LH97","v":0},{"$f":"'2. Conservation Measures'!LI97","v":0},{"$f":"'2. Conservation Measures'!LJ97","v":0},{"$f":"'2. Conservation Measures'!LK97","v":0},{"$f":"'2. Conservation Measures'!LL97","v":0},{"$f":"'2. Conservation Measures'!LM97","v":0},{"$f":"'2. Conservation Measures'!LN97","v":0},{"$f":"'2. Conservation Measures'!LO97","v":0},{"$f":"'2. Conservation Measures'!LP97","v":0},{"$f":"'2. Conservation Measures'!LQ97","v":0},{"$f":"'2. Conservation Measures'!LR97","v":0},{"$f":"'2. Conservation Measures'!LS97","v":0},{"$f":"'2. Conservation Measures'!LT97","v":0},{"$f":"'2. Conservation Measures'!LU97","v":0},{"$f":"'2. Conservation Measures'!LV97","v":0},{"$f":"'2. Conservation Measures'!LW97","v":0},{"$f":"'2. Conservation Measures'!LX97","v":0},{"$f":"'2. Conservation Measures'!LY97","v":0},{"$f":"'2. Conservation Measures'!LZ97","v":0},{"$f":"'2. Conservation Measures'!MA97","v":0},{"$f":"'2. Conservation Measures'!MB97","v":0},{"$f":"'2. Conservation Measures'!MC97","v":0},{"$f":"'2. Conservation Measures'!MD97","v":0},{"$f":"'2. Conservation Measures'!ME97","v":0},{"$f":"'2. Conservation Measures'!MF97","v":0},{"$f":"'2. Conservation Measures'!MG97","v":0},{"$f":"'2. Conservation Measures'!MH97","v":0},{"$f":"'2. Conservation Measures'!MI97","v":0},{"$f":"'2. Conservation Measures'!MJ97","v":0},{"$f":"'2. Conservation Measures'!MK97","v":0},{"$f":"'2. Conservation Measures'!ML97","v":0},{"$f":"'2. Conservation Measures'!MM97","v":0},{"$f":"'2. Conservation Measures'!MN97","v":0},null,{"$f":"'2. Conservation Measures'!EP97","v":0},{"$f":"'2. Conservation Measures'!EQ97","v":0},{"$f":"'2. Conservation Measures'!ER97","v":0},{"$f":"'2. Conservation Measures'!ES97","v":0},{"$f":"'2. Conservation Measures'!ET97","v":0},{"$f":"'2. Conservation Measures'!EU97","v":0},{"$f":"'2. Conservation Measures'!EV97","v":0},{"$f":"'2. Conservation Measures'!EW97","v":0},{"$f":"'2. Conservation Measures'!EX97","v":0},{"$f":"'2. Conservation Measures'!EY97","v":0},{"$f":"'2. Conservation Measures'!EZ97","v":0},{"$f":"'2. Conservation Measures'!FA97","v":0},{"$f":"'2. Conservation Measures'!FB97","v":0},{"$f":"'2. Conservation Measures'!FC97","v":0},{"$f":"'2. Conservation Measures'!FD97","v":0},{"$f":"'2. Conservation Measures'!FE97","v":0},{"$f":"'2. Conservation Measures'!FF97","v":0},{"$f":"'2. Conservation Measures'!FG97","v":0},{"$f":"'2. Conservation Measures'!FH97","v":0},{"$f":"'2. Conservation Measures'!FI97","v":0},{"$f":"'2. Conservation Measures'!FJ97","v":0},{"$f":"'2. Conservation Measures'!FK97","v":0},{"$f":"'2. Conservation Measures'!FL97","v":0},{"$f":"'2. Conservation Measures'!FM97","v":0},{"$f":"'2. Conservation Measures'!FN97","v":0},{"$f":"'2. Conservation Measures'!FO97","v":0},{"$f":"'2. Conservation Measures'!FP97","v":0},{"$f":"'2. Conservation Measures'!FQ97","v":0},{"$f":"'2. Conservation Measures'!FR97","v":0},{"$f":"'2. Conservation Measures'!FS97","v":0},{"$f":"'2. Conservation Measures'!FT97","v":0},{"$f":"'2. Conservation Measures'!FU97","v":0},{"$f":"'2. Conservation Measures'!FV97","v":0},{"$f":"'2. Conservation Measures'!FW97","v":0},{"$f":"'2. Conservation Measures'!FX97","v":0},{"$f":"'2. Conservation Measures'!FY97","v":0},{"$f":"'2. Conservation Measures'!FZ97","v":0},{"$f":"'2. Conservation Measures'!GA97","v":0},{"$f":"'2. Conservation Measures'!GB97","v":0},{"$f":"'2. Conservation Measures'!GC97","v":0},{"$f":"'2. Conservation Measures'!GD97","v":0},{"$f":"'2. Conservation Measures'!GE97","v":0},{"$f":"'2. Conservation Measures'!GF97","v":0},{"$f":"'2. Conservation Measures'!GG97","v":0},{"$f":"'2. Conservation Measures'!GH97","v":0},{"$f":"'2. Conservation Measures'!GI97","v":0},{"$f":"'2. Conservation Measures'!GJ97","v":0},{"$f":"'2. Conservation Measures'!GK97","v":0},{"$f":"'2. Conservation Measures'!GL97","v":0},{"$f":"'2. Conservation Measures'!GM97","v":0},{"$f":"'2. Conservation Measures'!GN97","v":0},null,{"$f":"'2. Conservation Measures'!GP97","v":0},{"$f":"'2. Conservation Measures'!GQ97","v":0},{"$f":"'2. Conservation Measures'!GR97","v":0},{"$f":"'2. Conservation Measures'!GS97","v":0},{"$f":"'2. Conservation Measures'!GT97","v":0},{"$f":"'2. Conservation Measures'!GU97","v":0},{"$f":"'2. Conservation Measures'!GV97","v":0},{"$f":"'2. Conservation Measures'!GW97","v":0},{"$f":"'2. Conservation Measures'!GX97","v":0},{"$f":"'2. Conservation Measures'!GY97","v":0},{"$f":"'2. Conservation Measures'!GZ97","v":0},{"$f":"'2. Conservation Measures'!HA97","v":0},{"$f":"'2. Conservation Measures'!HB97","v":0},{"$f":"'2. Conservation Measures'!HC97","v":0},{"$f":"'2. Conservation Measures'!HD97","v":0},{"$f":"'2. Conservation Measures'!HE97","v":0},{"$f":"'2. Conservation Measures'!HF97","v":0},{"$f":"'2. Conservation Measures'!HG97","v":0},{"$f":"'2. Conservation Measures'!HH97","v":0},{"$f":"'2. Conservation Measures'!HI97","v":0},{"$f":"'2. Conservation Measures'!HJ97","v":0},{"$f":"'2. Conservation Measures'!HK97","v":0},{"$f":"'2. Conservation Measures'!HL97","v":0},{"$f":"'2. Conservation Measures'!HM97","v":0},{"$f":"'2. Conservation Measures'!HN97","v":0},{"$f":"'2. Conservation Measures'!HO97","v":0},{"$f":"'2. Conservation Measures'!HP97","v":0},{"$f":"'2. Conservation Measures'!HQ97","v":0},{"$f":"'2. Conservation Measures'!HR97","v":0},{"$f":"'2. Conservation Measures'!HS97","v":0},{"$f":"'2. Conservation Measures'!HT97","v":0},{"$f":"'2. Conservation Measures'!HU97","v":0},{"$f":"'2. Conservation Measures'!HV97","v":0},{"$f":"'2. Conservation Measures'!HW97","v":0},{"$f":"'2. Conservation Measures'!HX97","v":0},{"$f":"'2. Conservation Measures'!HY97","v":0},{"$f":"'2. Conservation Measures'!HZ97","v":0},{"$f":"'2. Conservation Measures'!IA97","v":0},{"$f":"'2. Conservation Measures'!IB97","v":0},{"$f":"'2. Conservation Measures'!IC97","v":0},{"$f":"'2. Conservation Measures'!ID97","v":0},{"$f":"'2. Conservation Measures'!IE97","v":0},{"$f":"'2. Conservation Measures'!IF97","v":0},{"$f":"'2. Conservation Measures'!IG97","v":0},{"$f":"'2. Conservation Measures'!IH97","v":0},{"$f":"'2. Conservation Measures'!II97","v":0},{"$f":"'2. Conservation Measures'!IJ97","v":0},{"$f":"'2. Conservation Measures'!IK97","v":0},{"$f":"'2. Conservation Measures'!IL97","v":0},{"$f":"'2. Conservation Measures'!IM97","v":0},{"$f":"'2. Conservation Measures'!IN97","v":0},null,{"$f":"'2. Conservation Measures'!IP97","v":0},{"$f":"'2. Conservation Measures'!IQ97","v":0},{"$f":"'2. Conservation Measures'!IR97","v":0},{"$f":"'2. Conservation Measures'!IS97","v":0},{"$f":"'2. Conservation Measures'!IT97","v":0},{"$f":"'2. Conservation Measures'!IU97","v":0},{"$f":"'2. Conservation Measures'!IV97","v":0},{"$f":"'2. Conservation Measures'!IW97","v":0},{"$f":"'2. Conservation Measures'!IX97","v":0},{"$f":"'2. Conservation Measures'!IY97","v":0},{"$f":"'2. Conservation Measures'!IZ97","v":0},{"$f":"'2. Conservation Measures'!JA97","v":0},{"$f":"'2. Conservation Measures'!JB97","v":0},{"$f":"'2. Conservation Measures'!JC97","v":0},{"$f":"'2. Conservation Measures'!JD97","v":0},{"$f":"'2. Conservation Measures'!JE97","v":0},{"$f":"'2. Conservation Measures'!JF97","v":0},{"$f":"'2. Conservation Measures'!JG97","v":0},{"$f":"'2. Conservation Measures'!JH97","v":0},{"$f":"'2. Conservation Measures'!JI97","v":0},{"$f":"'2. Conservation Measures'!JJ97","v":0},{"$f":"'2. Conservation Measures'!JK97","v":0},{"$f":"'2. Conservation Measures'!JL97","v":0},{"$f":"'2. Conservation Measures'!JM97","v":0},{"$f":"'2. Conservation Measures'!JN97","v":0},{"$f":"'2. Conservation Measures'!JO97","v":0},{"$f":"'2. Conservation Measures'!JP97","v":0},{"$f":"'2. Conservation Measures'!JQ97","v":0},{"$f":"'2. Conservation Measures'!JR97","v":0},{"$f":"'2. Conservation Measures'!JS97","v":0},{"$f":"'2. Conservation Measures'!JT97","v":0},{"$f":"'2. Conservation Measures'!JU97","v":0},{"$f":"'2. Conservation Measures'!JV97","v":0},{"$f":"'2. Conservation Measures'!JW97","v":0},{"$f":"'2. Conservation Measures'!JX97","v":0},{"$f":"'2. Conservation Measures'!JY97","v":0},{"$f":"'2. Conservation Measures'!JZ97","v":0},{"$f":"'2. Conservation Measures'!KA97","v":0},{"$f":"'2. Conservation Measures'!KB97","v":0},{"$f":"'2. Conservation Measures'!KC97","v":0},{"$f":"'2. Conservation Measures'!KD97","v":0},{"$f":"'2. Conservation Measures'!KE97","v":0},{"$f":"'2. Conservation Measures'!KF97","v":0},{"$f":"'2. Conservation Measures'!KG97","v":0},{"$f":"'2. Conservation Measures'!KH97","v":0},{"$f":"'2. Conservation Measures'!KI97","v":0},{"$f":"'2. Conservation Measures'!KJ97","v":0},{"$f":"'2. Conservation Measures'!KK97","v":0},{"$f":"'2. Conservation Measures'!KL97","v":0},{"$f":"'2. Conservation Measures'!KM97","v":0},{"$f":"'2. Conservation Measures'!KN97","v":0}]
[null,{"$f":"'2. Conservation Measures'!B98","v":"USR-MF-13"},{"$f":"'2. Conservation Measures'!C98","v":0},{"$f":"'2. Conservation Measures'!D98","v":"N"},null,{"$f":"'2. Conservation Measures'!AA98","v":0},null,{"$f":"'2. Conservation Measures'!AO98","v":0},{"$f":"'2. Conservation Measures'!AP98","v":0},{"$f":"'2. Conservation Measures'!AQ98","v":0},{"$f":"'2. Conservation Measures'!AR98","v":0},{"$f":"'2. Conservation Measures'!AS98","v":0},{"$f":"'2. Conservation Measures'!AT98","v":0},{"$f":"'2. Conservation Measures'!AU98","v":0},{"$f":"'2. Conservation Measures'!AV98","v":0},{"$f":"'2. Conservation Measures'!AW98","v":0},{"$f":"'2. Conservation Measures'!AX98","v":0},{"$f":"'2. Conservation Measures'!AY98","v":0},{"$f":"'2. Conservation Measures'!AZ98","v":0},{"$f":"'2. Conservation Measures'!BA98","v":0},{"$f":"'2. Conservation Measures'!BB98","v":0},{"$f":"'2. Conservation Measures'!BC98","v":0},{"$f":"'2. Conservation Measures'!BD98","v":0},{"$f":"'2. Conservation Measures'!BE98","v":0},{"$f":"'2. Conservation Measures'!BF98","v":0},{"$f":"'2. Conservation Measures'!BG98","v":0},{"$f":"'2. Conservation Measures'!BH98","v":0},{"$f":"'2. Conservation Measures'!BI98","v":0},{"$f":"'2. Conservation Measures'!BJ98","v":0},{"$f":"'2. Conservation Measures'!BK98","v":0},{"$f":"'2. Conservation Measures'!BL98","v":0},{"$f":"'2. Conservation Measures'!BM98","v":0},{"$f":"'2. Conservation Measures'!BN98","v":0},{"$f":"'2. Conservation Measures'!BO98","v":0},{"$f":"'2. Conservation Measures'!BP98","v":0},{"$f":"'2. Conservation Measures'!BQ98","v":0},{"$f":"'2. Conservation Measures'!BR98","v":0},{"$f":"'2. Conservation Measures'!BS98","v":0},{"$f":"'2. Conservation Measures'!BT98","v":0},{"$f":"'2. Conservation Measures'!BU98","v":0},{"$f":"'2. Conservation Measures'!BV98","v":0},{"$f":"'2. Conservation Measures'!BW98","v":0},{"$f":"'2. Conservation Measures'!BX98","v":0},{"$f":"'2. Conservation Measures'!BY98","v":0},{"$f":"'2. Conservation Measures'!BZ98","v":0},{"$f":"'2. Conservation Measures'!CA98","v":0},{"$f":"'2. Conservation Measures'!CB98","v":0},{"$f":"'2. Conservation Measures'!CC98","v":0},{"$f":"'2. Conservation Measures'!CD98","v":0},{"$f":"'2. Conservation Measures'!CE98","v":0},{"$f":"'2. Conservation Measures'!CF98","v":0},{"$f":"'2. Conservation Measures'!CG98","v":0},{"$f":"'2. Conservation Measures'!CH98","v":0},{"$f":"'2. Conservation Measures'!CI98","v":0},{"$f":"'2. Conservation Measures'!CJ98","v":0},{"$f":"'2. Conservation Measures'!CK98","v":0},{"$f":"'2. Conservation Measures'!CL98","v":0},{"$f":"'2. Conservation Measures'!CM98","v":0},null,{"$f":"'2. Conservation Measures'!CO98","v":0},{"$f":"'2. Conservation Measures'!CP98","v":0},{"$f":"'2. Conservation Measures'!CQ98","v":0},{"$f":"'2. Conservation Measures'!CR98","v":0},{"$f":"'2. Conservation Measures'!CS98","v":0},{"$f":"'2. Conservation Measures'!CT98","v":0},{"$f":"'2. Conservation Measures'!CU98","v":0},{"$f":"'2. Conservation Measures'!CV98","v":0},{"$f":"'2. Conservation Measures'!CW98","v":0},{"$f":"'2. Conservation Measures'!CX98","v":0},{"$f":"'2. Conservation Measures'!CY98","v":0},{"$f":"'2. Conservation Measures'!CZ98","v":0},{"$f":"'2. Conservation Measures'!DA98","v":0},{"$f":"'2. Conservation Measures'!DB98","v":0},{"$f":"'2. Conservation Measures'!DC98","v":0},{"$f":"'2. Conservation Measures'!DD98","v":0},{"$f":"'2. Conservation Measures'!DE98","v":0},{"$f":"'2. Conservation Measures'!DF98","v":0},{"$f":"'2. Conservation Measures'!DG98","v":0},{"$f":"'2. Conservation Measures'!DH98","v":0},{"$f":"'2. Conservation Measures'!DI98","v":0},{"$f":"'2. Conservation Measures'!DJ98","v":0},{"$f":"'2. Conservation Measures'!DK98","v":0},{"$f":"'2. Conservation Measures'!DL98","v":0},{"$f":"'2. Conservation Measures'!DM98","v":0},{"$f":"'2. Conservation Measures'!DN98","v":0},{"$f":"'2. Conservation Measures'!DO98","v":0},{"$f":"'2. Conservation Measures'!DP98","v":0},{"$f":"'2. Conservation Measures'!DQ98","v":0},{"$f":"'2. Conservation Measures'!DR98","v":0},{"$f":"'2. Conservation Measures'!DS98","v":0},{"$f":"'2. Conservation Measures'!DT98","v":0},{"$f":"'2. Conservation Measures'!DU98","v":0},{"$f":"'2. Conservation Measures'!DV98","v":0},{"$f":"'2. Conservation Measures'!DW98","v":0},{"$f":"'2. Conservation Measures'!DX98","v":0},{"$f":"'2. Conservation Measures'!DY98","v":0},{"$f":"'2. Conservation Measures'!DZ98","v":0},{"$f":"'2. Conservation Measures'!EA98","v":0},{"$f":"'2. Conservation Measures'!EB98","v":0},{"$f":"'2. Conservation Measures'!EC98","v":0},{"$f":"'2. Conservation Measures'!ED98","v":0},{"$f":"'2. Conservation Measures'!EE98","v":0},{"$f":"'2. Conservation Measures'!EF98","v":0},{"$f":"'2. Conservation Measures'!EG98","v":0},{"$f":"'2. Conservation Measures'!EH98","v":0},{"$f":"'2. Conservation Measures'!EI98","v":0},{"$f":"'2. Conservation Measures'!EJ98","v":0},{"$f":"'2. Conservation Measures'!EK98","v":0},{"$f":"'2. Conservation Measures'!EL98","v":0},{"$f":"'2. Conservation Measures'!EM98","v":0},null,{"$f":"'2. Conservation Measures'!KP98","v":0},{"$f":"'2. Conservation Measures'!KQ98","v":0},{"$f":"'2. Conservation Measures'!KR98","v":0},{"$f":"'2. Conservation Measures'!KS98","v":0},{"$f":"'2. Conservation Measures'!KT98","v":0},{"$f":"'2. Conservation Measures'!KU98","v":0},{"$f":"'2. Conservation Measures'!KV98","v":0},{"$f":"'2. Conservation Measures'!KW98","v":0},{"$f":"'2. Conservation Measures'!KX98","v":0},{"$f":"'2. Conservation Measures'!KY98","v":0},{"$f":"'2. Conservation Measures'!KZ98","v":0},{"$f":"'2. Conservation Measures'!LA98","v":0},{"$f":"'2. Conservation Measures'!LB98","v":0},{"$f":"'2. Conservation Measures'!LC98","v":0},{"$f":"'2. Conservation Measures'!LD98","v":0},{"$f":"'2. Conservation Measures'!LE98","v":0},{"$f":"'2. Conservation Measures'!LF98","v":0},{"$f":"'2. Conservation Measures'!LG98","v":0},{"$f":"'2. Conservation Measures'!LH98","v":0},{"$f":"'2. Conservation Measures'!LI98","v":0},{"$f":"'2. Conservation Measures'!LJ98","v":0},{"$f":"'2. Conservation Measures'!LK98","v":0},{"$f":"'2. Conservation Measures'!LL98","v":0},{"$f":"'2. Conservation Measures'!LM98","v":0},{"$f":"'2. Conservation Measures'!LN98","v":0},{"$f":"'2. Conservation Measures'!LO98","v":0},{"$f":"'2. Conservation Measures'!LP98","v":0},{"$f":"'2. Conservation Measures'!LQ98","v":0},{"$f":"'2. Conservation Measures'!LR98","v":0},{"$f":"'2. Conservation Measures'!LS98","v":0},{"$f":"'2. Conservation Measures'!LT98","v":0},{"$f":"'2. Conservation Measures'!LU98","v":0},{"$f":"'2. Conservation Measures'!LV98","v":0},{"$f":"'2. Conservation Measures'!LW98","v":0},{"$f":"'2. Conservation Measures'!LX98","v":0},{"$f":"'2. Conservation Measures'!LY98","v":0},{"$f":"'2. Conservation Measures'!LZ98","v":0},{"$f":"'2. Conservation Measures'!MA98","v":0},{"$f":"'2. Conservation Measures'!MB98","v":0},{"$f":"'2. Conservation Measures'!MC98","v":0},{"$f":"'2. Conservation Measures'!MD98","v":0},{"$f":"'2. Conservation Measures'!ME98","v":0},{"$f":"'2. Conservation Measures'!MF98","v":0},{"$f":"'2. Conservation Measures'!MG98","v":0},{"$f":"'2. Conservation Measures'!MH98","v":0},{"$f":"'2. Conservation Measures'!MI98","v":0},{"$f":"'2. Conservation Measures'!MJ98","v":0},{"$f":"'2. Conservation Measures'!MK98","v":0},{"$f":"'2. Conservation Measures'!ML98","v":0},{"$f":"'2. Conservation Measures'!MM98","v":0},{"$f":"'2. Conservation Measures'!MN98","v":0},null,{"$f":"'2. Conservation Measures'!EP98","v":0},{"$f":"'2. Conservation Measures'!EQ98","v":0},{"$f":"'2. Conservation Measures'!ER98","v":0},{"$f":"'2. Conservation Measures'!ES98","v":0},{"$f":"'2. Conservation Measures'!ET98","v":0},{"$f":"'2. Conservation Measures'!EU98","v":0},{"$f":"'2. Conservation Measures'!EV98","v":0},{"$f":"'2. Conservation Measures'!EW98","v":0},{"$f":"'2. Conservation Measures'!EX98","v":0},{"$f":"'2. Conservation Measures'!EY98","v":0},{"$f":"'2. Conservation Measures'!EZ98","v":0},{"$f":"'2. Conservation Measures'!FA98","v":0},{"$f":"'2. Conservation Measures'!FB98","v":0},{"$f":"'2. Conservation Measures'!FC98","v":0},{"$f":"'2. Conservation Measures'!FD98","v":0},{"$f":"'2. Conservation Measures'!FE98","v":0},{"$f":"'2. Conservation Measures'!FF98","v":0},{"$f":"'2. Conservation Measures'!FG98","v":0},{"$f":"'2. Conservation Measures'!FH98","v":0},{"$f":"'2. Conservation Measures'!FI98","v":0},{"$f":"'2. Conservation Measures'!FJ98","v":0},{"$f":"'2. Conservation Measures'!FK98","v":0},{"$f":"'2. Conservation Measures'!FL98","v":0},{"$f":"'2. Conservation Measures'!FM98","v":0},{"$f":"'2. Conservation Measures'!FN98","v":0},{"$f":"'2. Conservation Measures'!FO98","v":0},{"$f":"'2. Conservation Measures'!FP98","v":0},{"$f":"'2. Conservation Measures'!FQ98","v":0},{"$f":"'2. Conservation Measures'!FR98","v":0},{"$f":"'2. Conservation Measures'!FS98","v":0},{"$f":"'2. Conservation Measures'!FT98","v":0},{"$f":"'2. Conservation Measures'!FU98","v":0},{"$f":"'2. Conservation Measures'!FV98","v":0},{"$f":"'2. Conservation Measures'!FW98","v":0},{"$f":"'2. Conservation Measures'!FX98","v":0},{"$f":"'2. Conservation Measures'!FY98","v":0},{"$f":"'2. Conservation Measures'!FZ98","v":0},{"$f":"'2. Conservation Measures'!GA98","v":0},{"$f":"'2. Conservation Measures'!GB98","v":0},{"$f":"'2. Conservation Measures'!GC98","v":0},{"$f":"'2. Conservation Measures'!GD98","v":0},{"$f":"'2. Conservation Measures'!GE98","v":0},{"$f":"'2. Conservation Measures'!GF98","v":0},{"$f":"'2. Conservation Measures'!GG98","v":0},{"$f":"'2. Conservation Measures'!GH98","v":0},{"$f":"'2. Conservation Measures'!GI98","v":0},{"$f":"'2. Conservation Measures'!GJ98","v":0},{"$f":"'2. Conservation Measures'!GK98","v":0},{"$f":"'2. Conservation Measures'!GL98","v":0},{"$f":"'2. Conservation Measures'!GM98","v":0},{"$f":"'2. Conservation Measures'!GN98","v":0},null,{"$f":"'2. Conservation Measures'!GP98","v":0},{"$f":"'2. Conservation Measures'!GQ98","v":0},{"$f":"'2. Conservation Measures'!GR98","v":0},{"$f":"'2. Conservation Measures'!GS98","v":0},{"$f":"'2. Conservation Measures'!GT98","v":0},{"$f":"'2. Conservation Measures'!GU98","v":0},{"$f":"'2. Conservation Measures'!GV98","v":0},{"$f":"'2. Conservation Measures'!GW98","v":0},{"$f":"'2. Conservation Measures'!GX98","v":0},{"$f":"'2. Conservation Measures'!GY98","v":0},{"$f":"'2. Conservation Measures'!GZ98","v":0},{"$f":"'2. Conservation Measures'!HA98","v":0},{"$f":"'2. Conservation Measures'!HB98","v":0},{"$f":"'2. Conservation Measures'!HC98","v":0},{"$f":"'2. Conservation Measures'!HD98","v":0},{"$f":"'2. Conservation Measures'!HE98","v":0},{"$f":"'2. Conservation Measures'!HF98","v":0},{"$f":"'2. Conservation Measures'!HG98","v":0},{"$f":"'2. Conservation Measures'!HH98","v":0},{"$f":"'2. Conservation Measures'!HI98","v":0},{"$f":"'2. Conservation Measures'!HJ98","v":0},{"$f":"'2. Conservation Measures'!HK98","v":0},{"$f":"'2. Conservation Measures'!HL98","v":0},{"$f":"'2. Conservation Measures'!HM98","v":0},{"$f":"'2. Conservation Measures'!HN98","v":0},{"$f":"'2. Conservation Measures'!HO98","v":0},{"$f":"'2. Conservation Measures'!HP98","v":0},{"$f":"'2. Conservation Measures'!HQ98","v":0},{"$f":"'2. Conservation Measures'!HR98","v":0},{"$f":"'2. Conservation Measures'!HS98","v":0},{"$f":"'2. Conservation Measures'!HT98","v":0},{"$f":"'2. Conservation Measures'!HU98","v":0},{"$f":"'2. Conservation Measures'!HV98","v":0},{"$f":"'2. Conservation Measures'!HW98","v":0},{"$f":"'2. Conservation Measures'!HX98","v":0},{"$f":"'2. Conservation Measures'!HY98","v":0},{"$f":"'2. Conservation Measures'!HZ98","v":0},{"$f":"'2. Conservation Measures'!IA98","v":0},{"$f":"'2. Conservation Measures'!IB98","v":0},{"$f":"'2. Conservation Measures'!IC98","v":0},{"$f":"'2. Conservation Measures'!ID98","v":0},{"$f":"'2. Conservation Measures'!IE98","v":0},{"$f":"'2. Conservation Measures'!IF98","v":0},{"$f":"'2. Conservation Measures'!IG98","v":0},{"$f":"'2. Conservation Measures'!IH98","v":0},{"$f":"'2. Conservation Measures'!II98","v":0},{"$f":"'2. Conservation Measures'!IJ98","v":0},{"$f":"'2. Conservation Measures'!IK98","v":0},{"$f":"'2. Conservation Measures'!IL98","v":0},{"$f":"'2. Conservation Measures'!IM98","v":0},{"$f":"'2. Conservation Measures'!IN98","v":0},null,{"$f":"'2. Conservation Measures'!IP98","v":0},{"$f":"'2. Conservation Measures'!IQ98","v":0},{"$f":"'2. Conservation Measures'!IR98","v":0},{"$f":"'2. Conservation Measures'!IS98","v":0},{"$f":"'2. Conservation Measures'!IT98","v":0},{"$f":"'2. Conservation Measures'!IU98","v":0},{"$f":"'2. Conservation Measures'!IV98","v":0},{"$f":"'2. Conservation Measures'!IW98","v":0},{"$f":"'2. Conservation Measures'!IX98","v":0},{"$f":"'2. Conservation Measures'!IY98","v":0},{"$f":"'2. Conservation Measures'!IZ98","v":0},{"$f":"'2. Conservation Measures'!JA98","v":0},{"$f":"'2. Conservation Measures'!JB98","v":0},{"$f":"'2. Conservation Measures'!JC98","v":0},{"$f":"'2. Conservation Measures'!JD98","v":0},{"$f":"'2. Conservation Measures'!JE98","v":0},{"$f":"'2. Conservation Measures'!JF98","v":0},{"$f":"'2. Conservation Measures'!JG98","v":0},{"$f":"'2. Conservation Measures'!JH98","v":0},{"$f":"'2. Conservation Measures'!JI98","v":0},{"$f":"'2. Conservation Measures'!JJ98","v":0},{"$f":"'2. Conservation Measures'!JK98","v":0},{"$f":"'2. Conservation Measures'!JL98","v":0},{"$f":"'2. Conservation Measures'!JM98","v":0},{"$f":"'2. Conservation Measures'!JN98","v":0},{"$f":"'2. Conservation Measures'!JO98","v":0},{"$f":"'2. Conservation Measures'!JP98","v":0},{"$f":"'2. Conservation Measures'!JQ98","v":0},{"$f":"'2. Conservation Measures'!JR98","v":0},{"$f":"'2. Conservation Measures'!JS98","v":0},{"$f":"'2. Conservation Measures'!JT98","v":0},{"$f":"'2. Conservation Measures'!JU98","v":0},{"$f":"'2. Conservation Measures'!JV98","v":0},{"$f":"'2. Conservation Measures'!JW98","v":0},{"$f":"'2. Conservation Measures'!JX98","v":0},{"$f":"'2. Conservation Measures'!JY98","v":0},{"$f":"'2. Conservation Measures'!JZ98","v":0},{"$f":"'2. Conservation Measures'!KA98","v":0},{"$f":"'2. Conservation Measures'!KB98","v":0},{"$f":"'2. Conservation Measures'!KC98","v":0},{"$f":"'2. Conservation Measures'!KD98","v":0},{"$f":"'2. Conservation Measures'!KE98","v":0},{"$f":"'2. Conservation Measures'!KF98","v":0},{"$f":"'2. Conservation Measures'!KG98","v":0},{"$f":"'2. Conservation Measures'!KH98","v":0},{"$f":"'2. Conservation Measures'!KI98","v":0},{"$f":"'2. Conservation Measures'!KJ98","v":0},{"$f":"'2. Conservation Measures'!KK98","v":0},{"$f":"'2. Conservation Measures'!KL98","v":0},{"$f":"'2. Conservation Measures'!KM98","v":0},{"$f":"'2. Conservation Measures'!KN98","v":0}]
[null,{"$f":"'2. Conservation Measures'!B99","v":"USR-MF-14"},{"$f":"'2. Conservation Measures'!C99","v":0},{"$f":"'2. Conservation Measures'!D99","v":"N"},null,{"$f":"'2. Conservation Measures'!AA99","v":0},null,{"$f":"'2. Conservation Measures'!AO99","v":0},{"$f":"'2. Conservation Measures'!AP99","v":0},{"$f":"'2. Conservation Measures'!AQ99","v":0},{"$f":"'2. Conservation Measures'!AR99","v":0},{"$f":"'2. Conservation Measures'!AS99","v":0},{"$f":"'2. Conservation Measures'!AT99","v":0},{"$f":"'2. Conservation Measures'!AU99","v":0},{"$f":"'2. Conservation Measures'!AV99","v":0},{"$f":"'2. Conservation Measures'!AW99","v":0},{"$f":"'2. Conservation Measures'!AX99","v":0},{"$f":"'2. Conservation Measures'!AY99","v":0},{"$f":"'2. Conservation Measures'!AZ99","v":0},{"$f":"'2. Conservation Measures'!BA99","v":0},{"$f":"'2. Conservation Measures'!BB99","v":0},{"$f":"'2. Conservation Measures'!BC99","v":0},{"$f":"'2. Conservation Measures'!BD99","v":0},{"$f":"'2. Conservation Measures'!BE99","v":0},{"$f":"'2. Conservation Measures'!BF99","v":0},{"$f":"'2. Conservation Measures'!BG99","v":0},{"$f":"'2. Conservation Measures'!BH99","v":0},{"$f":"'2. Conservation Measures'!BI99","v":0},{"$f":"'2. Conservation Measures'!BJ99","v":0},{"$f":"'2. Conservation Measures'!BK99","v":0},{"$f":"'2. Conservation Measures'!BL99","v":0},{"$f":"'2. Conservation Measures'!BM99","v":0},{"$f":"'2. Conservation Measures'!BN99","v":0},{"$f":"'2. Conservation Measures'!BO99","v":0},{"$f":"'2. Conservation Measures'!BP99","v":0},{"$f":"'2. Conservation Measures'!BQ99","v":0},{"$f":"'2. Conservation Measures'!BR99","v":0},{"$f":"'2. Conservation Measures'!BS99","v":0},{"$f":"'2. Conservation Measures'!BT99","v":0},{"$f":"'2. Conservation Measures'!BU99","v":0},{"$f":"'2. Conservation Measures'!BV99","v":0},{"$f":"'2. Conservation Measures'!BW99","v":0},{"$f":"'2. Conservation Measures'!BX99","v":0},{"$f":"'2. Conservation Measures'!BY99","v":0},{"$f":"'2. Conservation Measures'!BZ99","v":0},{"$f":"'2. Conservation Measures'!CA99","v":0},{"$f":"'2. Conservation Measures'!CB99","v":0},{"$f":"'2. Conservation Measures'!CC99","v":0},{"$f":"'2. Conservation Measures'!CD99","v":0},{"$f":"'2. Conservation Measures'!CE99","v":0},{"$f":"'2. Conservation Measures'!CF99","v":0},{"$f":"'2. Conservation Measures'!CG99","v":0},{"$f":"'2. Conservation Measures'!CH99","v":0},{"$f":"'2. Conservation Measures'!CI99","v":0},{"$f":"'2. Conservation Measures'!CJ99","v":0},{"$f":"'2. Conservation Measures'!CK99","v":0},{"$f":"'2. Conservation Measures'!CL99","v":0},{"$f":"'2. Conservation Measures'!CM99","v":0},null,{"$f":"'2. Conservation Measures'!CO99","v":0},{"$f":"'2. Conservation Measures'!CP99","v":0},{"$f":"'2. Conservation Measures'!CQ99","v":0},{"$f":"'2. Conservation Measures'!CR99","v":0},{"$f":"'2. Conservation Measures'!CS99","v":0},{"$f":"'2. Conservation Measures'!CT99","v":0},{"$f":"'2. Conservation Measures'!CU99","v":0},{"$f":"'2. Conservation Measures'!CV99","v":0},{"$f":"'2. Conservation Measures'!CW99","v":0},{"$f":"'2. Conservation Measures'!CX99","v":0},{"$f":"'2. Conservation Measures'!CY99","v":0},{"$f":"'2. Conservation Measures'!CZ99","v":0},{"$f":"'2. Conservation Measures'!DA99","v":0},{"$f":"'2. Conservation Measures'!DB99","v":0},{"$f":"'2. Conservation Measures'!DC99","v":0},{"$f":"'2. Conservation Measures'!DD99","v":0},{"$f":"'2. Conservation Measures'!DE99","v":0},{"$f":"'2. Conservation Measures'!DF99","v":0},{"$f":"'2. Conservation Measures'!DG99","v":0},{"$f":"'2. Conservation Measures'!DH99","v":0},{"$f":"'2. Conservation Measures'!DI99","v":0},{"$f":"'2. Conservation Measures'!DJ99","v":0},{"$f":"'2. Conservation Measures'!DK99","v":0},{"$f":"'2. Conservation Measures'!DL99","v":0},{"$f":"'2. Conservation Measures'!DM99","v":0},{"$f":"'2. Conservation Measures'!DN99","v":0},{"$f":"'2. Conservation Measures'!DO99","v":0},{"$f":"'2. Conservation Measures'!DP99","v":0},{"$f":"'2. Conservation Measures'!DQ99","v":0},{"$f":"'2. Conservation Measures'!DR99","v":0},{"$f":"'2. Conservation Measures'!DS99","v":0},{"$f":"'2. Conservation Measures'!DT99","v":0},{"$f":"'2. Conservation Measures'!DU99","v":0},{"$f":"'2. Conservation Measures'!DV99","v":0},{"$f":"'2. Conservation Measures'!DW99","v":0},{"$f":"'2. Conservation Measures'!DX99","v":0},{"$f":"'2. Conservation Measures'!DY99","v":0},{"$f":"'2. Conservation Measures'!DZ99","v":0},{"$f":"'2. Conservation Measures'!EA99","v":0},{"$f":"'2. Conservation Measures'!EB99","v":0},{"$f":"'2. Conservation Measures'!EC99","v":0},{"$f":"'2. Conservation Measures'!ED99","v":0},{"$f":"'2. Conservation Measures'!EE99","v":0},{"$f":"'2. Conservation Measures'!EF99","v":0},{"$f":"'2. Conservation Measures'!EG99","v":0},{"$f":"'2. Conservation Measures'!EH99","v":0},{"$f":"'2. Conservation Measures'!EI99","v":0},{"$f":"'2. Conservation Measures'!EJ99","v":0},{"$f":"'2. Conservation Measures'!EK99","v":0},{"$f":"'2. Conservation Measures'!EL99","v":0},{"$f":"'2. Conservation Measures'!EM99","v":0},null,{"$f":"'2. Conservation Measures'!KP99","v":0},{"$f":"'2. Conservation Measures'!KQ99","v":0},{"$f":"'2. Conservation Measures'!KR99","v":0},{"$f":"'2. Conservation Measures'!KS99","v":0},{"$f":"'2. Conservation Measures'!KT99","v":0},{"$f":"'2. Conservation Measures'!KU99","v":0},{"$f":"'2. Conservation Measures'!KV99","v":0},{"$f":"'2. Conservation Measures'!KW99","v":0},{"$f":"'2. Conservation Measures'!KX99","v":0},{"$f":"'2. Conservation Measures'!KY99","v":0},{"$f":"'2. Conservation Measures'!KZ99","v":0},{"$f":"'2. Conservation Measures'!LA99","v":0},{"$f":"'2. Conservation Measures'!LB99","v":0},{"$f":"'2. Conservation Measures'!LC99","v":0},{"$f":"'2. Conservation Measures'!LD99","v":0},{"$f":"'2. Conservation Measures'!LE99","v":0},{"$f":"'2. Conservation Measures'!LF99","v":0},{"$f":"'2. Conservation Measures'!LG99","v":0},{"$f":"'2. Conservation Measures'!LH99","v":0},{"$f":"'2. Conservation Measures'!LI99","v":0},{"$f":"'2. Conservation Measures'!LJ99","v":0},{"$f":"'2. Conservation Measures'!LK99","v":0},{"$f":"'2. Conservation Measures'!LL99","v":0},{"$f":"'2. Conservation Measures'!LM99","v":0},{"$f":"'2. Conservation Measures'!LN99","v":0},{"$f":"'2. Conservation Measures'!LO99","v":0},{"$f":"'2. Conservation Measures'!LP99","v":0},{"$f":"'2. Conservation Measures'!LQ99","v":0},{"$f":"'2. Conservation Measures'!LR99","v":0},{"$f":"'2. Conservation Measures'!LS99","v":0},{"$f":"'2. Conservation Measures'!LT99","v":0},{"$f":"'2. Conservation Measures'!LU99","v":0},{"$f":"'2. Conservation Measures'!LV99","v":0},{"$f":"'2. Conservation Measures'!LW99","v":0},{"$f":"'2. Conservation Measures'!LX99","v":0},{"$f":"'2. Conservation Measures'!LY99","v":0},{"$f":"'2. Conservation Measures'!LZ99","v":0},{"$f":"'2. Conservation Measures'!MA99","v":0},{"$f":"'2. Conservation Measures'!MB99","v":0},{"$f":"'2. Conservation Measures'!MC99","v":0},{"$f":"'2. Conservation Measures'!MD99","v":0},{"$f":"'2. Conservation Measures'!ME99","v":0},{"$f":"'2. Conservation Measures'!MF99","v":0},{"$f":"'2. Conservation Measures'!MG99","v":0},{"$f":"'2. Conservation Measures'!MH99","v":0},{"$f":"'2. Conservation Measures'!MI99","v":0},{"$f":"'2. Conservation Measures'!MJ99","v":0},{"$f":"'2. Conservation Measures'!MK99","v":0},{"$f":"'2. Conservation Measures'!ML99","v":0},{"$f":"'2. Conservation Measures'!MM99","v":0},{"$f":"'2. Conservation Measures'!MN99","v":0},null,{"$f":"'2. Conservation Measures'!EP99","v":0},{"$f":"'2. Conservation Measures'!EQ99","v":0},{"$f":"'2. Conservation Measures'!ER99","v":0},{"$f":"'2. Conservation Measures'!ES99","v":0},{"$f":"'2. Conservation Measures'!ET99","v":0},{"$f":"'2. Conservation Measures'!EU99","v":0},{"$f":"'2. Conservation Measures'!EV99","v":0},{"$f":"'2. Conservation Measures'!EW99","v":0},{"$f":"'2. Conservation Measures'!EX99","v":0},{"$f":"'2. Conservation Measures'!EY99","v":0},{"$f":"'2. Conservation Measures'!EZ99","v":0},{"$f":"'2. Conservation Measures'!FA99","v":0},{"$f":"'2. Conservation Measures'!FB99","v":0},{"$f":"'2. Conservation Measures'!FC99","v":0},{"$f":"'2. Conservation Measures'!FD99","v":0},{"$f":"'2. Conservation Measures'!FE99","v":0},{"$f":"'2. Conservation Measures'!FF99","v":0},{"$f":"'2. Conservation Measures'!FG99","v":0},{"$f":"'2. Conservation Measures'!FH99","v":0},{"$f":"'2. Conservation Measures'!FI99","v":0},{"$f":"'2. Conservation Measures'!FJ99","v":0},{"$f":"'2. Conservation Measures'!FK99","v":0},{"$f":"'2. Conservation Measures'!FL99","v":0},{"$f":"'2. Conservation Measures'!FM99","v":0},{"$f":"'2. Conservation Measures'!FN99","v":0},{"$f":"'2. Conservation Measures'!FO99","v":0},{"$f":"'2. Conservation Measures'!FP99","v":0},{"$f":"'2. Conservation Measures'!FQ99","v":0},{"$f":"'2. Conservation Measures'!FR99","v":0},{"$f":"'2. Conservation Measures'!FS99","v":0},{"$f":"'2. Conservation Measures'!FT99","v":0},{"$f":"'2. Conservation Measures'!FU99","v":0},{"$f":"'2. Conservation Measures'!FV99","v":0},{"$f":"'2. Conservation Measures'!FW99","v":0},{"$f":"'2. Conservation Measures'!FX99","v":0},{"$f":"'2. Conservation Measures'!FY99","v":0},{"$f":"'2. Conservation Measures'!FZ99","v":0},{"$f":"'2. Conservation Measures'!GA99","v":0},{"$f":"'2. Conservation Measures'!GB99","v":0},{"$f":"'2. Conservation Measures'!GC99","v":0},{"$f":"'2. Conservation Measures'!GD99","v":0},{"$f":"'2. Conservation Measures'!GE99","v":0},{"$f":"'2. Conservation Measures'!GF99","v":0},{"$f":"'2. Conservation Measures'!GG99","v":0},{"$f":"'2. Conservation Measures'!GH99","v":0},{"$f":"'2. Conservation Measures'!GI99","v":0},{"$f":"'2. Conservation Measures'!GJ99","v":0},{"$f":"'2. Conservation Measures'!GK99","v":0},{"$f":"'2. Conservation Measures'!GL99","v":0},{"$f":"'2. Conservation Measures'!GM99","v":0},{"$f":"'2. Conservation Measures'!GN99","v":0},null,{"$f":"'2. Conservation Measures'!GP99","v":0},{"$f":"'2. Conservation Measures'!GQ99","v":0},{"$f":"'2. Conservation Measures'!GR99","v":0},{"$f":"'2. Conservation Measures'!GS99","v":0},{"$f":"'2. Conservation Measures'!GT99","v":0},{"$f":"'2. Conservation Measures'!GU99","v":0},{"$f":"'2. Conservation Measures'!GV99","v":0},{"$f":"'2. Conservation Measures'!GW99","v":0},{"$f":"'2. Conservation Measures'!GX99","v":0},{"$f":"'2. Conservation Measures'!GY99","v":0},{"$f":"'2. Conservation Measures'!GZ99","v":0},{"$f":"'2. Conservation Measures'!HA99","v":0},{"$f":"'2. Conservation Measures'!HB99","v":0},{"$f":"'2. Conservation Measures'!HC99","v":0},{"$f":"'2. Conservation Measures'!HD99","v":0},{"$f":"'2. Conservation Measures'!HE99","v":0},{"$f":"'2. Conservation Measures'!HF99","v":0},{"$f":"'2. Conservation Measures'!HG99","v":0},{"$f":"'2. Conservation Measures'!HH99","v":0},{"$f":"'2. Conservation Measures'!HI99","v":0},{"$f":"'2. Conservation Measures'!HJ99","v":0},{"$f":"'2. Conservation Measures'!HK99","v":0},{"$f":"'2. Conservation Measures'!HL99","v":0},{"$f":"'2. Conservation Measures'!HM99","v":0},{"$f":"'2. Conservation Measures'!HN99","v":0},{"$f":"'2. Conservation Measures'!HO99","v":0},{"$f":"'2. Conservation Measures'!HP99","v":0},{"$f":"'2. Conservation Measures'!HQ99","v":0},{"$f":"'2. Conservation Measures'!HR99","v":0},{"$f":"'2. Conservation Measures'!HS99","v":0},{"$f":"'2. Conservation Measures'!HT99","v":0},{"$f":"'2. Conservation Measures'!HU99","v":0},{"$f":"'2. Conservation Measures'!HV99","v":0},{"$f":"'2. Conservation Measures'!HW99","v":0},{"$f":"'2. Conservation Measures'!HX99","v":0},{"$f":"'2. Conservation Measures'!HY99","v":0},{"$f":"'2. Conservation Measures'!HZ99","v":0},{"$f":"'2. Conservation Measures'!IA99","v":0},{"$f":"'2. Conservation Measures'!IB99","v":0},{"$f":"'2. Conservation Measures'!IC99","v":0},{"$f":"'2. Conservation Measures'!ID99","v":0},{"$f":"'2. Conservation Measures'!IE99","v":0},{"$f":"'2. Conservation Measures'!IF99","v":0},{"$f":"'2. Conservation Measures'!IG99","v":0},{"$f":"'2. Conservation Measures'!IH99","v":0},{"$f":"'2. Conservation Measures'!II99","v":0},{"$f":"'2. Conservation Measures'!IJ99","v":0},{"$f":"'2. Conservation Measures'!IK99","v":0},{"$f":"'2. Conservation Measures'!IL99","v":0},{"$f":"'2. Conservation Measures'!IM99","v":0},{"$f":"'2. Conservation Measures'!IN99","v":0},null,{"$f":"'2. Conservation Measures'!IP99","v":0},{"$f":"'2. Conservation Measures'!IQ99","v":0},{"$f":"'2. Conservation Measures'!IR99","v":0},{"$f":"'2. Conservation Measures'!IS99","v":0},{"$f":"'2. Conservation Measures'!IT99","v":0},{"$f":"'2. Conservation Measures'!IU99","v":0},{"$f":"'2. Conservation Measures'!IV99","v":0},{"$f":"'2. Conservation Measures'!IW99","v":0},{"$f":"'2. Conservation Measures'!IX99","v":0},{"$f":"'2. Conservation Measures'!IY99","v":0},{"$f":"'2. Conservation Measures'!IZ99","v":0},{"$f":"'2. Conservation Measures'!JA99","v":0},{"$f":"'2. Conservation Measures'!JB99","v":0},{"$f":"'2. Conservation Measures'!JC99","v":0},{"$f":"'2. Conservation Measures'!JD99","v":0},{"$f":"'2. Conservation Measures'!JE99","v":0},{"$f":"'2. Conservation Measures'!JF99","v":0},{"$f":"'2. Conservation Measures'!JG99","v":0},{"$f":"'2. Conservation Measures'!JH99","v":0},{"$f":"'2. Conservation Measures'!JI99","v":0},{"$f":"'2. Conservation Measures'!JJ99","v":0},{"$f":"'2. Conservation Measures'!JK99","v":0},{"$f":"'2. Conservation Measures'!JL99","v":0},{"$f":"'2. Conservation Measures'!JM99","v":0},{"$f":"'2. Conservation Measures'!JN99","v":0},{"$f":"'2. Conservation Measures'!JO99","v":0},{"$f":"'2. Conservation Measures'!JP99","v":0},{"$f":"'2. Conservation Measures'!JQ99","v":0},{"$f":"'2. Conservation Measures'!JR99","v":0},{"$f":"'2. Conservation Measures'!JS99","v":0},{"$f":"'2. Conservation Measures'!JT99","v":0},{"$f":"'2. Conservation Measures'!JU99","v":0},{"$f":"'2. Conservation Measures'!JV99","v":0},{"$f":"'2. Conservation Measures'!JW99","v":0},{"$f":"'2. Conservation Measures'!JX99","v":0},{"$f":"'2. Conservation Measures'!JY99","v":0},{"$f":"'2. Conservation Measures'!JZ99","v":0},{"$f":"'2. Conservation Measures'!KA99","v":0},{"$f":"'2. Conservation Measures'!KB99","v":0},{"$f":"'2. Conservation Measures'!KC99","v":0},{"$f":"'2. Conservation Measures'!KD99","v":0},{"$f":"'2. Conservation Measures'!KE99","v":0},{"$f":"'2. Conservation Measures'!KF99","v":0},{"$f":"'2. Conservation Measures'!KG99","v":0},{"$f":"'2. Conservation Measures'!KH99","v":0},{"$f":"'2. Conservation Measures'!KI99","v":0},{"$f":"'2. Conservation Measures'!KJ99","v":0},{"$f":"'2. Conservation Measures'!KK99","v":0},{"$f":"'2. Conservation Measures'!KL99","v":0},{"$f":"'2. Conservation Measures'!KM99","v":0},{"$f":"'2. Conservation Measures'!KN99","v":0}]
[null,{"$f":"'2. Conservation Measures'!B100","v":"USR-MF-15"},{"$f":"'2. Conservation Measures'!C100","v":0},{"$f":"'2. Conservation Measures'!D100","v":"N"},null,{"$f":"'2. Conservation Measures'!AA100","v":0},null,{"$f":"'2. Conservation Measures'!AO100","v":0},{"$f":"'2. Conservation Measures'!AP100","v":0},{"$f":"'2. Conservation Measures'!AQ100","v":0},{"$f":"'2. Conservation Measures'!AR100","v":0},{"$f":"'2. Conservation Measures'!AS100","v":0},{"$f":"'2. Conservation Measures'!AT100","v":0},{"$f":"'2. Conservation Measures'!AU100","v":0},{"$f":"'2. Conservation Measures'!AV100","v":0},{"$f":"'2. Conservation Measures'!AW100","v":0},{"$f":"'2. Conservation Measures'!AX100","v":0},{"$f":"'2. Conservation Measures'!AY100","v":0},{"$f":"'2. Conservation Measures'!AZ100","v":0},{"$f":"'2. Conservation Measures'!BA100","v":0},{"$f":"'2. Conservation Measures'!BB100","v":0},{"$f":"'2. Conservation Measures'!BC100","v":0},{"$f":"'2. Conservation Measures'!BD100","v":0},{"$f":"'2. Conservation Measures'!BE100","v":0},{"$f":"'2. Conservation Measures'!BF100","v":0},{"$f":"'2. Conservation Measures'!BG100","v":0},{"$f":"'2. Conservation Measures'!BH100","v":0},{"$f":"'2. Conservation Measures'!BI100","v":0},{"$f":"'2. Conservation Measures'!BJ100","v":0},{"$f":"'2. Conservation Measures'!BK100","v":0},{"$f":"'2. Conservation Measures'!BL100","v":0},{"$f":"'2. Conservation Measures'!BM100","v":0},{"$f":"'2. Conservation Measures'!BN100","v":0},{"$f":"'2. Conservation Measures'!BO100","v":0},{"$f":"'2. Conservation Measures'!BP100","v":0},{"$f":"'2. Conservation Measures'!BQ100","v":0},{"$f":"'2. Conservation Measures'!BR100","v":0},{"$f":"'2. Conservation Measures'!BS100","v":0},{"$f":"'2. Conservation Measures'!BT100","v":0},{"$f":"'2. Conservation Measures'!BU100","v":0},{"$f":"'2. Conservation Measures'!BV100","v":0},{"$f":"'2. Conservation Measures'!BW100","v":0},{"$f":"'2. Conservation Measures'!BX100","v":0},{"$f":"'2. Conservation Measures'!BY100","v":0},{"$f":"'2. Conservation Measures'!BZ100","v":0},{"$f":"'2. Conservation Measures'!CA100","v":0},{"$f":"'2. Conservation Measures'!CB100","v":0},{"$f":"'2. Conservation Measures'!CC100","v":0},{"$f":"'2. Conservation Measures'!CD100","v":0},{"$f":"'2. Conservation Measures'!CE100","v":0},{"$f":"'2. Conservation Measures'!CF100","v":0},{"$f":"'2. Conservation Measures'!CG100","v":0},{"$f":"'2. Conservation Measures'!CH100","v":0},{"$f":"'2. Conservation Measures'!CI100","v":0},{"$f":"'2. Conservation Measures'!CJ100","v":0},{"$f":"'2. Conservation Measures'!CK100","v":0},{"$f":"'2. Conservation Measures'!CL100","v":0},{"$f":"'2. Conservation Measures'!CM100","v":0},null,{"$f":"'2. Conservation Measures'!CO100","v":0},{"$f":"'2. Conservation Measures'!CP100","v":0},{"$f":"'2. Conservation Measures'!CQ100","v":0},{"$f":"'2. Conservation Measures'!CR100","v":0},{"$f":"'2. Conservation Measures'!CS100","v":0},{"$f":"'2. Conservation Measures'!CT100","v":0},{"$f":"'2. Conservation Measures'!CU100","v":0},{"$f":"'2. Conservation Measures'!CV100","v":0},{"$f":"'2. Conservation Measures'!CW100","v":0},{"$f":"'2. Conservation Measures'!CX100","v":0},{"$f":"'2. Conservation Measures'!CY100","v":0},{"$f":"'2. Conservation Measures'!CZ100","v":0},{"$f":"'2. Conservation Measures'!DA100","v":0},{"$f":"'2. Conservation Measures'!DB100","v":0},{"$f":"'2. Conservation Measures'!DC100","v":0},{"$f":"'2. Conservation Measures'!DD100","v":0},{"$f":"'2. Conservation Measures'!DE100","v":0},{"$f":"'2. Conservation Measures'!DF100","v":0},{"$f":"'2. Conservation Measures'!DG100","v":0},{"$f":"'2. Conservation Measures'!DH100","v":0},{"$f":"'2. Conservation Measures'!DI100","v":0},{"$f":"'2. Conservation Measures'!DJ100","v":0},{"$f":"'2. Conservation Measures'!DK100","v":0},{"$f":"'2. Conservation Measures'!DL100","v":0},{"$f":"'2. Conservation Measures'!DM100","v":0},{"$f":"'2. Conservation Measures'!DN100","v":0},{"$f":"'2. Conservation Measures'!DO100","v":0},{"$f":"'2. Conservation Measures'!DP100","v":0},{"$f":"'2. Conservation Measures'!DQ100","v":0},{"$f":"'2. Conservation Measures'!DR100","v":0},{"$f":"'2. Conservation Measures'!DS100","v":0},{"$f":"'2. Conservation Measures'!DT100","v":0},{"$f":"'2. Conservation Measures'!DU100","v":0},{"$f":"'2. Conservation Measures'!DV100","v":0},{"$f":"'2. Conservation Measures'!DW100","v":0},{"$f":"'2. Conservation Measures'!DX100","v":0},{"$f":"'2. Conservation Measures'!DY100","v":0},{"$f":"'2. Conservation Measures'!DZ100","v":0},{"$f":"'2. Conservation Measures'!EA100","v":0},{"$f":"'2. Conservation Measures'!EB100","v":0},{"$f":"'2. Conservation Measures'!EC100","v":0},{"$f":"'2. Conservation Measures'!ED100","v":0},{"$f":"'2. Conservation Measures'!EE100","v":0},{"$f":"'2. Conservation Measures'!EF100","v":0},{"$f":"'2. Conservation Measures'!EG100","v":0},{"$f":"'2. Conservation Measures'!EH100","v":0},{"$f":"'2. Conservation Measures'!EI100","v":0},{"$f":"'2. Conservation Measures'!EJ100","v":0},{"$f":"'2. Conservation Measures'!EK100","v":0},{"$f":"'2. Conservation Measures'!EL100","v":0},{"$f":"'2. Conservation Measures'!EM100","v":0},null,{"$f":"'2. Conservation Measures'!KP100","v":0},{"$f":"'2. Conservation Measures'!KQ100","v":0},{"$f":"'2. Conservation Measures'!KR100","v":0},{"$f":"'2. Conservation Measures'!KS100","v":0},{"$f":"'2. Conservation Measures'!KT100","v":0},{"$f":"'2. Conservation Measures'!KU100","v":0},{"$f":"'2. Conservation Measures'!KV100","v":0},{"$f":"'2. Conservation Measures'!KW100","v":0},{"$f":"'2. Conservation Measures'!KX100","v":0},{"$f":"'2. Conservation Measures'!KY100","v":0},{"$f":"'2. Conservation Measures'!KZ100","v":0},{"$f":"'2. Conservation Measures'!LA100","v":0},{"$f":"'2. Conservation Measures'!LB100","v":0},{"$f":"'2. Conservation Measures'!LC100","v":0},{"$f":"'2. Conservation Measures'!LD100","v":0},{"$f":"'2. Conservation Measures'!LE100","v":0},{"$f":"'2. Conservation Measures'!LF100","v":0},{"$f":"'2. Conservation Measures'!LG100","v":0},{"$f":"'2. Conservation Measures'!LH100","v":0},{"$f":"'2. Conservation Measures'!LI100","v":0},{"$f":"'2. Conservation Measures'!LJ100","v":0},{"$f":"'2. Conservation Measures'!LK100","v":0},{"$f":"'2. Conservation Measures'!LL100","v":0},{"$f":"'2. Conservation Measures'!LM100","v":0},{"$f":"'2. Conservation Measures'!LN100","v":0},{"$f":"'2. Conservation Measures'!LO100","v":0},{"$f":"'2. Conservation Measures'!LP100","v":0},{"$f":"'2. Conservation Measures'!LQ100","v":0},{"$f":"'2. Conservation Measures'!LR100","v":0},{"$f":"'2. Conservation Measures'!LS100","v":0},{"$f":"'2. Conservation Measures'!LT100","v":0},{"$f":"'2. Conservation Measures'!LU100","v":0},{"$f":"'2. Conservation Measures'!LV100","v":0},{"$f":"'2. Conservation Measures'!LW100","v":0},{"$f":"'2. Conservation Measures'!LX100","v":0},{"$f":"'2. Conservation Measures'!LY100","v":0},{"$f":"'2. Conservation Measures'!LZ100","v":0},{"$f":"'2. Conservation Measures'!MA100","v":0},{"$f":"'2. Conservation Measures'!MB100","v":0},{"$f":"'2. Conservation Measures'!MC100","v":0},{"$f":"'2. Conservation Measures'!MD100","v":0},{"$f":"'2. Conservation Measures'!ME100","v":0},{"$f":"'2. Conservation Measures'!MF100","v":0},{"$f":"'2. Conservation Measures'!MG100","v":0},{"$f":"'2. Conservation Measures'!MH100","v":0},{"$f":"'2. Conservation Measures'!MI100","v":0},{"$f":"'2. Conservation Measures'!MJ100","v":0},{"$f":"'2. Conservation Measures'!MK100","v":0},{"$f":"'2. Conservation Measures'!ML100","v":0},{"$f":"'2. Conservation Measures'!MM100","v":0},{"$f":"'2. Conservation Measures'!MN100","v":0},null,{"$f":"'2. Conservation Measures'!EP100","v":0},{"$f":"'2. Conservation Measures'!EQ100","v":0},{"$f":"'2. Conservation Measures'!ER100","v":0},{"$f":"'2. Conservation Measures'!ES100","v":0},{"$f":"'2. Conservation Measures'!ET100","v":0},{"$f":"'2. Conservation Measures'!EU100","v":0},{"$f":"'2. Conservation Measures'!EV100","v":0},{"$f":"'2. Conservation Measures'!EW100","v":0},{"$f":"'2. Conservation Measures'!EX100","v":0},{"$f":"'2. Conservation Measures'!EY100","v":0},{"$f":"'2. Conservation Measures'!EZ100","v":0},{"$f":"'2. Conservation Measures'!FA100","v":0},{"$f":"'2. Conservation Measures'!FB100","v":0},{"$f":"'2. Conservation Measures'!FC100","v":0},{"$f":"'2. Conservation Measures'!FD100","v":0},{"$f":"'2. Conservation Measures'!FE100","v":0},{"$f":"'2. Conservation Measures'!FF100","v":0},{"$f":"'2. Conservation Measures'!FG100","v":0},{"$f":"'2. Conservation Measures'!FH100","v":0},{"$f":"'2. Conservation Measures'!FI100","v":0},{"$f":"'2. Conservation Measures'!FJ100","v":0},{"$f":"'2. Conservation Measures'!FK100","v":0},{"$f":"'2. Conservation Measures'!FL100","v":0},{"$f":"'2. Conservation Measures'!FM100","v":0},{"$f":"'2. Conservation Measures'!FN100","v":0},{"$f":"'2. Conservation Measures'!FO100","v":0},{"$f":"'2. Conservation Measures'!FP100","v":0},{"$f":"'2. Conservation Measures'!FQ100","v":0},{"$f":"'2. Conservation Measures'!FR100","v":0},{"$f":"'2. Conservation Measures'!FS100","v":0},{"$f":"'2. Conservation Measures'!FT100","v":0},{"$f":"'2. Conservation Measures'!FU100","v":0},{"$f":"'2. Conservation Measures'!FV100","v":0},{"$f":"'2. Conservation Measures'!FW100","v":0},{"$f":"'2. Conservation Measures'!FX100","v":0},{"$f":"'2. Conservation Measures'!FY100","v":0},{"$f":"'2. Conservation Measures'!FZ100","v":0},{"$f":"'2. Conservation Measures'!GA100","v":0},{"$f":"'2. Conservation Measures'!GB100","v":0},{"$f":"'2. Conservation Measures'!GC100","v":0},{"$f":"'2. Conservation Measures'!GD100","v":0},{"$f":"'2. Conservation Measures'!GE100","v":0},{"$f":"'2. Conservation Measures'!GF100","v":0},{"$f":"'2. Conservation Measures'!GG100","v":0},{"$f":"'2. Conservation Measures'!GH100","v":0},{"$f":"'2. Conservation Measures'!GI100","v":0},{"$f":"'2. Conservation Measures'!GJ100","v":0},{"$f":"'2. Conservation Measures'!GK100","v":0},{"$f":"'2. Conservation Measures'!GL100","v":0},{"$f":"'2. Conservation Measures'!GM100","v":0},{"$f":"'2. Conservation Measures'!GN100","v":0},null,{"$f":"'2. Conservation Measures'!GP100","v":0},{"$f":"'2. Conservation Measures'!GQ100","v":0},{"$f":"'2. Conservation Measures'!GR100","v":0},{"$f":"'2. Conservation Measures'!GS100","v":0},{"$f":"'2. Conservation Measures'!GT100","v":0},{"$f":"'2. Conservation Measures'!GU100","v":0},{"$f":"'2. Conservation Measures'!GV100","v":0},{"$f":"'2. Conservation Measures'!GW100","v":0},{"$f":"'2. Conservation Measures'!GX100","v":0},{"$f":"'2. Conservation Measures'!GY100","v":0},{"$f":"'2. Conservation Measures'!GZ100","v":0},{"$f":"'2. Conservation Measures'!HA100","v":0},{"$f":"'2. Conservation Measures'!HB100","v":0},{"$f":"'2. Conservation Measures'!HC100","v":0},{"$f":"'2. Conservation Measures'!HD100","v":0},{"$f":"'2. Conservation Measures'!HE100","v":0},{"$f":"'2. Conservation Measures'!HF100","v":0},{"$f":"'2. Conservation Measures'!HG100","v":0},{"$f":"'2. Conservation Measures'!HH100","v":0},{"$f":"'2. Conservation Measures'!HI100","v":0},{"$f":"'2. Conservation Measures'!HJ100","v":0},{"$f":"'2. Conservation Measures'!HK100","v":0},{"$f":"'2. Conservation Measures'!HL100","v":0},{"$f":"'2. Conservation Measures'!HM100","v":0},{"$f":"'2. Conservation Measures'!HN100","v":0},{"$f":"'2. Conservation Measures'!HO100","v":0},{"$f":"'2. Conservation Measures'!HP100","v":0},{"$f":"'2. Conservation Measures'!HQ100","v":0},{"$f":"'2. Conservation Measures'!HR100","v":0},{"$f":"'2. Conservation Measures'!HS100","v":0},{"$f":"'2. Conservation Measures'!HT100","v":0},{"$f":"'2. Conservation Measures'!HU100","v":0},{"$f":"'2. Conservation Measures'!HV100","v":0},{"$f":"'2. Conservation Measures'!HW100","v":0},{"$f":"'2. Conservation Measures'!HX100","v":0},{"$f":"'2. Conservation Measures'!HY100","v":0},{"$f":"'2. Conservation Measures'!HZ100","v":0},{"$f":"'2. Conservation Measures'!IA100","v":0},{"$f":"'2. Conservation Measures'!IB100","v":0},{"$f":"'2. Conservation Measures'!IC100","v":0},{"$f":"'2. Conservation Measures'!ID100","v":0},{"$f":"'2. Conservation Measures'!IE100","v":0},{"$f":"'2. Conservation Measures'!IF100","v":0},{"$f":"'2. Conservation Measures'!IG100","v":0},{"$f":"'2. Conservation Measures'!IH100","v":0},{"$f":"'2. Conservation Measures'!II100","v":0},{"$f":"'2. Conservation Measures'!IJ100","v":0},{"$f":"'2. Conservation Measures'!IK100","v":0},{"$f":"'2. Conservation Measures'!IL100","v":0},{"$f":"'2. Conservation Measures'!IM100","v":0},{"$f":"'2. Conservation Measures'!IN100","v":0},null,{"$f":"'2. Conservation Measures'!IP100","v":0},{"$f":"'2. Conservation Measures'!IQ100","v":0},{"$f":"'2. Conservation Measures'!IR100","v":0},{"$f":"'2. Conservation Measures'!IS100","v":0},{"$f":"'2. Conservation Measures'!IT100","v":0},{"$f":"'2. Conservation Measures'!IU100","v":0},{"$f":"'2. Conservation Measures'!IV100","v":0},{"$f":"'2. Conservation Measures'!IW100","v":0},{"$f":"'2. Conservation Measures'!IX100","v":0},{"$f":"'2. Conservation Measures'!IY100","v":0},{"$f":"'2. Conservation Measures'!IZ100","v":0},{"$f":"'2. Conservation Measures'!JA100","v":0},{"$f":"'2. Conservation Measures'!JB100","v":0},{"$f":"'2. Conservation Measures'!JC100","v":0},{"$f":"'2. Conservation Measures'!JD100","v":0},{"$f":"'2. Conservation Measures'!JE100","v":0},{"$f":"'2. Conservation Measures'!JF100","v":0},{"$f":"'2. Conservation Measures'!JG100","v":0},{"$f":"'2. Conservation Measures'!JH100","v":0},{"$f":"'2. Conservation Measures'!JI100","v":0},{"$f":"'2. Conservation Measures'!JJ100","v":0},{"$f":"'2. Conservation Measures'!JK100","v":0},{"$f":"'2. Conservation Measures'!JL100","v":0},{"$f":"'2. Conservation Measures'!JM100","v":0},{"$f":"'2. Conservation Measures'!JN100","v":0},{"$f":"'2. Conservation Measures'!JO100","v":0},{"$f":"'2. Conservation Measures'!JP100","v":0},{"$f":"'2. Conservation Measures'!JQ100","v":0},{"$f":"'2. Conservation Measures'!JR100","v":0},{"$f":"'2. Conservation Measures'!JS100","v":0},{"$f":"'2. Conservation Measures'!JT100","v":0},{"$f":"'2. Conservation Measures'!JU100","v":0},{"$f":"'2. Conservation Measures'!JV100","v":0},{"$f":"'2. Conservation Measures'!JW100","v":0},{"$f":"'2. Conservation Measures'!JX100","v":0},{"$f":"'2. Conservation Measures'!JY100","v":0},{"$f":"'2. Conservation Measures'!JZ100","v":0},{"$f":"'2. Conservation Measures'!KA100","v":0},{"$f":"'2. Conservation Measures'!KB100","v":0},{"$f":"'2. Conservation Measures'!KC100","v":0},{"$f":"'2. Conservation Measures'!KD100","v":0},{"$f":"'2. Conservation Measures'!KE100","v":0},{"$f":"'2. Conservation Measures'!KF100","v":0},{"$f":"'2. Conservation Measures'!KG100","v":0},{"$f":"'2. Conservation Measures'!KH100","v":0},{"$f":"'2. Conservation Measures'!KI100","v":0},{"$f":"'2. Conservation Measures'!KJ100","v":0},{"$f":"'2. Conservation Measures'!KK100","v":0},{"$f":"'2. Conservation Measures'!KL100","v":0},{"$f":"'2. Conservation Measures'!KM100","v":0},{"$f":"'2. Conservation Measures'!KN100","v":0}]
[null,{"$f":"'2. Conservation Measures'!B101","v":"USR-MF-16"},{"$f":"'2. Conservation Measures'!C101","v":0},{"$f":"'2. Conservation Measures'!D101","v":"N"},null,{"$f":"'2. Conservation Measures'!AA101","v":0},null,{"$f":"'2. Conservation Measures'!AO101","v":0},{"$f":"'2. Conservation Measures'!AP101","v":0},{"$f":"'2. Conservation Measures'!AQ101","v":0},{"$f":"'2. Conservation Measures'!AR101","v":0},{"$f":"'2. Conservation Measures'!AS101","v":0},{"$f":"'2. Conservation Measures'!AT101","v":0},{"$f":"'2. Conservation Measures'!AU101","v":0},{"$f":"'2. Conservation Measures'!AV101","v":0},{"$f":"'2. Conservation Measures'!AW101","v":0},{"$f":"'2. Conservation Measures'!AX101","v":0},{"$f":"'2. Conservation Measures'!AY101","v":0},{"$f":"'2. Conservation Measures'!AZ101","v":0},{"$f":"'2. Conservation Measures'!BA101","v":0},{"$f":"'2. Conservation Measures'!BB101","v":0},{"$f":"'2. Conservation Measures'!BC101","v":0},{"$f":"'2. Conservation Measures'!BD101","v":0},{"$f":"'2. Conservation Measures'!BE101","v":0},{"$f":"'2. Conservation Measures'!BF101","v":0},{"$f":"'2. Conservation Measures'!BG101","v":0},{"$f":"'2. Conservation Measures'!BH101","v":0},{"$f":"'2. Conservation Measures'!BI101","v":0},{"$f":"'2. Conservation Measures'!BJ101","v":0},{"$f":"'2. Conservation Measures'!BK101","v":0},{"$f":"'2. Conservation Measures'!BL101","v":0},{"$f":"'2. Conservation Measures'!BM101","v":0},{"$f":"'2. Conservation Measures'!BN101","v":0},{"$f":"'2. Conservation Measures'!BO101","v":0},{"$f":"'2. Conservation Measures'!BP101","v":0},{"$f":"'2. Conservation Measures'!BQ101","v":0},{"$f":"'2. Conservation Measures'!BR101","v":0},{"$f":"'2. Conservation Measures'!BS101","v":0},{"$f":"'2. Conservation Measures'!BT101","v":0},{"$f":"'2. Conservation Measures'!BU101","v":0},{"$f":"'2. Conservation Measures'!BV101","v":0},{"$f":"'2. Conservation Measures'!BW101","v":0},{"$f":"'2. Conservation Measures'!BX101","v":0},{"$f":"'2. Conservation Measures'!BY101","v":0},{"$f":"'2. Conservation Measures'!BZ101","v":0},{"$f":"'2. Conservation Measures'!CA101","v":0},{"$f":"'2. Conservation Measures'!CB101","v":0},{"$f":"'2. Conservation Measures'!CC101","v":0},{"$f":"'2. Conservation Measures'!CD101","v":0},{"$f":"'2. Conservation Measures'!CE101","v":0},{"$f":"'2. Conservation Measures'!CF101","v":0},{"$f":"'2. Conservation Measures'!CG101","v":0},{"$f":"'2. Conservation Measures'!CH101","v":0},{"$f":"'2. Conservation Measures'!CI101","v":0},{"$f":"'2. Conservation Measures'!CJ101","v":0},{"$f":"'2. Conservation Measures'!CK101","v":0},{"$f":"'2. Conservation Measures'!CL101","v":0},{"$f":"'2. Conservation Measures'!CM101","v":0},null,{"$f":"'2. Conservation Measures'!CO101","v":0},{"$f":"'2. Conservation Measures'!CP101","v":0},{"$f":"'2. Conservation Measures'!CQ101","v":0},{"$f":"'2. Conservation Measures'!CR101","v":0},{"$f":"'2. Conservation Measures'!CS101","v":0},{"$f":"'2. Conservation Measures'!CT101","v":0},{"$f":"'2. Conservation Measures'!CU101","v":0},{"$f":"'2. Conservation Measures'!CV101","v":0},{"$f":"'2. Conservation Measures'!CW101","v":0},{"$f":"'2. Conservation Measures'!CX101","v":0},{"$f":"'2. Conservation Measures'!CY101","v":0},{"$f":"'2. Conservation Measures'!CZ101","v":0},{"$f":"'2. Conservation Measures'!DA101","v":0},{"$f":"'2. Conservation Measures'!DB101","v":0},{"$f":"'2. Conservation Measures'!DC101","v":0},{"$f":"'2. Conservation Measures'!DD101","v":0},{"$f":"'2. Conservation Measures'!DE101","v":0},{"$f":"'2. Conservation Measures'!DF101","v":0},{"$f":"'2. Conservation Measures'!DG101","v":0},{"$f":"'2. Conservation Measures'!DH101","v":0},{"$f":"'2. Conservation Measures'!DI101","v":0},{"$f":"'2. Conservation Measures'!DJ101","v":0},{"$f":"'2. Conservation Measures'!DK101","v":0},{"$f":"'2. Conservation Measures'!DL101","v":0},{"$f":"'2. Conservation Measures'!DM101","v":0},{"$f":"'2. Conservation Measures'!DN101","v":0},{"$f":"'2. Conservation Measures'!DO101","v":0},{"$f":"'2. Conservation Measures'!DP101","v":0},{"$f":"'2. Conservation Measures'!DQ101","v":0},{"$f":"'2. Conservation Measures'!DR101","v":0},{"$f":"'2. Conservation Measures'!DS101","v":0},{"$f":"'2. Conservation Measures'!DT101","v":0},{"$f":"'2. Conservation Measures'!DU101","v":0},{"$f":"'2. Conservation Measures'!DV101","v":0},{"$f":"'2. Conservation Measures'!DW101","v":0},{"$f":"'2. Conservation Measures'!DX101","v":0},{"$f":"'2. Conservation Measures'!DY101","v":0},{"$f":"'2. Conservation Measures'!DZ101","v":0},{"$f":"'2. Conservation Measures'!EA101","v":0},{"$f":"'2. Conservation Measures'!EB101","v":0},{"$f":"'2. Conservation Measures'!EC101","v":0},{"$f":"'2. Conservation Measures'!ED101","v":0},{"$f":"'2. Conservation Measures'!EE101","v":0},{"$f":"'2. Conservation Measures'!EF101","v":0},{"$f":"'2. Conservation Measures'!EG101","v":0},{"$f":"'2. Conservation Measures'!EH101","v":0},{"$f":"'2. Conservation Measures'!EI101","v":0},{"$f":"'2. Conservation Measures'!EJ101","v":0},{"$f":"'2. Conservation Measures'!EK101","v":0},{"$f":"'2. Conservation Measures'!EL101","v":0},{"$f":"'2. Conservation Measures'!EM101","v":0},null,{"$f":"'2. Conservation Measures'!KP101","v":0},{"$f":"'2. Conservation Measures'!KQ101","v":0},{"$f":"'2. Conservation Measures'!KR101","v":0},{"$f":"'2. Conservation Measures'!KS101","v":0},{"$f":"'2. Conservation Measures'!KT101","v":0},{"$f":"'2. Conservation Measures'!KU101","v":0},{"$f":"'2. Conservation Measures'!KV101","v":0},{"$f":"'2. Conservation Measures'!KW101","v":0},{"$f":"'2. Conservation Measures'!KX101","v":0},{"$f":"'2. Conservation Measures'!KY101","v":0},{"$f":"'2. Conservation Measures'!KZ101","v":0},{"$f":"'2. Conservation Measures'!LA101","v":0},{"$f":"'2. Conservation Measures'!LB101","v":0},{"$f":"'2. Conservation Measures'!LC101","v":0},{"$f":"'2. Conservation Measures'!LD101","v":0},{"$f":"'2. Conservation Measures'!LE101","v":0},{"$f":"'2. Conservation Measures'!LF101","v":0},{"$f":"'2. Conservation Measures'!LG101","v":0},{"$f":"'2. Conservation Measures'!LH101","v":0},{"$f":"'2. Conservation Measures'!LI101","v":0},{"$f":"'2. Conservation Measures'!LJ101","v":0},{"$f":"'2. Conservation Measures'!LK101","v":0},{"$f":"'2. Conservation Measures'!LL101","v":0},{"$f":"'2. Conservation Measures'!LM101","v":0},{"$f":"'2. Conservation Measures'!LN101","v":0},{"$f":"'2. Conservation Measures'!LO101","v":0},{"$f":"'2. Conservation Measures'!LP101","v":0},{"$f":"'2. Conservation Measures'!LQ101","v":0},{"$f":"'2. Conservation Measures'!LR101","v":0},{"$f":"'2. Conservation Measures'!LS101","v":0},{"$f":"'2. Conservation Measures'!LT101","v":0},{"$f":"'2. Conservation Measures'!LU101","v":0},{"$f":"'2. Conservation Measures'!LV101","v":0},{"$f":"'2. Conservation Measures'!LW101","v":0},{"$f":"'2. Conservation Measures'!LX101","v":0},{"$f":"'2. Conservation Measures'!LY101","v":0},{"$f":"'2. Conservation Measures'!LZ101","v":0},{"$f":"'2. Conservation Measures'!MA101","v":0},{"$f":"'2. Conservation Measures'!MB101","v":0},{"$f":"'2. Conservation Measures'!MC101","v":0},{"$f":"'2. Conservation Measures'!MD101","v":0},{"$f":"'2. Conservation Measures'!ME101","v":0},{"$f":"'2. Conservation Measures'!MF101","v":0},{"$f":"'2. Conservation Measures'!MG101","v":0},{"$f":"'2. Conservation Measures'!MH101","v":0},{"$f":"'2. Conservation Measures'!MI101","v":0},{"$f":"'2. Conservation Measures'!MJ101","v":0},{"$f":"'2. Conservation Measures'!MK101","v":0},{"$f":"'2. Conservation Measures'!ML101","v":0},{"$f":"'2. Conservation Measures'!MM101","v":0},{"$f":"'2. Conservation Measures'!MN101","v":0},null,{"$f":"'2. Conservation Measures'!EP101","v":0},{"$f":"'2. Conservation Measures'!EQ101","v":0},{"$f":"'2. Conservation Measures'!ER101","v":0},{"$f":"'2. Conservation Measures'!ES101","v":0},{"$f":"'2. Conservation Measures'!ET101","v":0},{"$f":"'2. Conservation Measures'!EU101","v":0},{"$f":"'2. Conservation Measures'!EV101","v":0},{"$f":"'2. Conservation Measures'!EW101","v":0},{"$f":"'2. Conservation Measures'!EX101","v":0},{"$f":"'2. Conservation Measures'!EY101","v":0},{"$f":"'2. Conservation Measures'!EZ101","v":0},{"$f":"'2. Conservation Measures'!FA101","v":0},{"$f":"'2. Conservation Measures'!FB101","v":0},{"$f":"'2. Conservation Measures'!FC101","v":0},{"$f":"'2. Conservation Measures'!FD101","v":0},{"$f":"'2. Conservation Measures'!FE101","v":0},{"$f":"'2. Conservation Measures'!FF101","v":0},{"$f":"'2. Conservation Measures'!FG101","v":0},{"$f":"'2. Conservation Measures'!FH101","v":0},{"$f":"'2. Conservation Measures'!FI101","v":0},{"$f":"'2. Conservation Measures'!FJ101","v":0},{"$f":"'2. Conservation Measures'!FK101","v":0},{"$f":"'2. Conservation Measures'!FL101","v":0},{"$f":"'2. Conservation Measures'!FM101","v":0},{"$f":"'2. Conservation Measures'!FN101","v":0},{"$f":"'2. Conservation Measures'!FO101","v":0},{"$f":"'2. Conservation Measures'!FP101","v":0},{"$f":"'2. Conservation Measures'!FQ101","v":0},{"$f":"'2. Conservation Measures'!FR101","v":0},{"$f":"'2. Conservation Measures'!FS101","v":0},{"$f":"'2. Conservation Measures'!FT101","v":0},{"$f":"'2. Conservation Measures'!FU101","v":0},{"$f":"'2. Conservation Measures'!FV101","v":0},{"$f":"'2. Conservation Measures'!FW101","v":0},{"$f":"'2. Conservation Measures'!FX101","v":0},{"$f":"'2. Conservation Measures'!FY101","v":0},{"$f":"'2. Conservation Measures'!FZ101","v":0},{"$f":"'2. Conservation Measures'!GA101","v":0},{"$f":"'2. Conservation Measures'!GB101","v":0},{"$f":"'2. Conservation Measures'!GC101","v":0},{"$f":"'2. Conservation Measures'!GD101","v":0},{"$f":"'2. Conservation Measures'!GE101","v":0},{"$f":"'2. Conservation Measures'!GF101","v":0},{"$f":"'2. Conservation Measures'!GG101","v":0},{"$f":"'2. Conservation Measures'!GH101","v":0},{"$f":"'2. Conservation Measures'!GI101","v":0},{"$f":"'2. Conservation Measures'!GJ101","v":0},{"$f":"'2. Conservation Measures'!GK101","v":0},{"$f":"'2. Conservation Measures'!GL101","v":0},{"$f":"'2. Conservation Measures'!GM101","v":0},{"$f":"'2. Conservation Measures'!GN101","v":0},null,{"$f":"'2. Conservation Measures'!GP101","v":0},{"$f":"'2. Conservation Measures'!GQ101","v":0},{"$f":"'2. Conservation Measures'!GR101","v":0},{"$f":"'2. Conservation Measures'!GS101","v":0},{"$f":"'2. Conservation Measures'!GT101","v":0},{"$f":"'2. Conservation Measures'!GU101","v":0},{"$f":"'2. Conservation Measures'!GV101","v":0},{"$f":"'2. Conservation Measures'!GW101","v":0},{"$f":"'2. Conservation Measures'!GX101","v":0},{"$f":"'2. Conservation Measures'!GY101","v":0},{"$f":"'2. Conservation Measures'!GZ101","v":0},{"$f":"'2. Conservation Measures'!HA101","v":0},{"$f":"'2. Conservation Measures'!HB101","v":0},{"$f":"'2. Conservation Measures'!HC101","v":0},{"$f":"'2. Conservation Measures'!HD101","v":0},{"$f":"'2. Conservation Measures'!HE101","v":0},{"$f":"'2. Conservation Measures'!HF101","v":0},{"$f":"'2. Conservation Measures'!HG101","v":0},{"$f":"'2. Conservation Measures'!HH101","v":0},{"$f":"'2. Conservation Measures'!HI101","v":0},{"$f":"'2. Conservation Measures'!HJ101","v":0},{"$f":"'2. Conservation Measures'!HK101","v":0},{"$f":"'2. Conservation Measures'!HL101","v":0},{"$f":"'2. Conservation Measures'!HM101","v":0},{"$f":"'2. Conservation Measures'!HN101","v":0},{"$f":"'2. Conservation Measures'!HO101","v":0},{"$f":"'2. Conservation Measures'!HP101","v":0},{"$f":"'2. Conservation Measures'!HQ101","v":0},{"$f":"'2. Conservation Measures'!HR101","v":0},{"$f":"'2. Conservation Measures'!HS101","v":0},{"$f":"'2. Conservation Measures'!HT101","v":0},{"$f":"'2. Conservation Measures'!HU101","v":0},{"$f":"'2. Conservation Measures'!HV101","v":0},{"$f":"'2. Conservation Measures'!HW101","v":0},{"$f":"'2. Conservation Measures'!HX101","v":0},{"$f":"'2. Conservation Measures'!HY101","v":0},{"$f":"'2. Conservation Measures'!HZ101","v":0},{"$f":"'2. Conservation Measures'!IA101","v":0},{"$f":"'2. Conservation Measures'!IB101","v":0},{"$f":"'2. Conservation Measures'!IC101","v":0},{"$f":"'2. Conservation Measures'!ID101","v":0},{"$f":"'2. Conservation Measures'!IE101","v":0},{"$f":"'2. Conservation Measures'!IF101","v":0},{"$f":"'2. Conservation Measures'!IG101","v":0},{"$f":"'2. Conservation Measures'!IH101","v":0},{"$f":"'2. Conservation Measures'!II101","v":0},{"$f":"'2. Conservation Measures'!IJ101","v":0},{"$f":"'2. Conservation Measures'!IK101","v":0},{"$f":"'2. Conservation Measures'!IL101","v":0},{"$f":"'2. Conservation Measures'!IM101","v":0},{"$f":"'2. Conservation Measures'!IN101","v":0},null,{"$f":"'2. Conservation Measures'!IP101","v":0},{"$f":"'2. Conservation Measures'!IQ101","v":0},{"$f":"'2. Conservation Measures'!IR101","v":0},{"$f":"'2. Conservation Measures'!IS101","v":0},{"$f":"'2. Conservation Measures'!IT101","v":0},{"$f":"'2. Conservation Measures'!IU101","v":0},{"$f":"'2. Conservation Measures'!IV101","v":0},{"$f":"'2. Conservation Measures'!IW101","v":0},{"$f":"'2. Conservation Measures'!IX101","v":0},{"$f":"'2. Conservation Measures'!IY101","v":0},{"$f":"'2. Conservation Measures'!IZ101","v":0},{"$f":"'2. Conservation Measures'!JA101","v":0},{"$f":"'2. Conservation Measures'!JB101","v":0},{"$f":"'2. Conservation Measures'!JC101","v":0},{"$f":"'2. Conservation Measures'!JD101","v":0},{"$f":"'2. Conservation Measures'!JE101","v":0},{"$f":"'2. Conservation Measures'!JF101","v":0},{"$f":"'2. Conservation Measures'!JG101","v":0},{"$f":"'2. Conservation Measures'!JH101","v":0},{"$f":"'2. Conservation Measures'!JI101","v":0},{"$f":"'2. Conservation Measures'!JJ101","v":0},{"$f":"'2. Conservation Measures'!JK101","v":0},{"$f":"'2. Conservation Measures'!JL101","v":0},{"$f":"'2. Conservation Measures'!JM101","v":0},{"$f":"'2. Conservation Measures'!JN101","v":0},{"$f":"'2. Conservation Measures'!JO101","v":0},{"$f":"'2. Conservation Measures'!JP101","v":0},{"$f":"'2. Conservation Measures'!JQ101","v":0},{"$f":"'2. Conservation Measures'!JR101","v":0},{"$f":"'2. Conservation Measures'!JS101","v":0},{"$f":"'2. Conservation Measures'!JT101","v":0},{"$f":"'2. Conservation Measures'!JU101","v":0},{"$f":"'2. Conservation Measures'!JV101","v":0},{"$f":"'2. Conservation Measures'!JW101","v":0},{"$f":"'2. Conservation Measures'!JX101","v":0},{"$f":"'2. Conservation Measures'!JY101","v":0},{"$f":"'2. Conservation Measures'!JZ101","v":0},{"$f":"'2. Conservation Measures'!KA101","v":0},{"$f":"'2. Conservation Measures'!KB101","v":0},{"$f":"'2. Conservation Measures'!KC101","v":0},{"$f":"'2. Conservation Measures'!KD101","v":0},{"$f":"'2. Conservation Measures'!KE101","v":0},{"$f":"'2. Conservation Measures'!KF101","v":0},{"$f":"'2. Conservation Measures'!KG101","v":0},{"$f":"'2. Conservation Measures'!KH101","v":0},{"$f":"'2. Conservation Measures'!KI101","v":0},{"$f":"'2. Conservation Measures'!KJ101","v":0},{"$f":"'2. Conservation Measures'!KK101","v":0},{"$f":"'2. Conservation Measures'!KL101","v":0},{"$f":"'2. Conservation Measures'!KM101","v":0},{"$f":"'2. Conservation Measures'!KN101","v":0}]
[null,{"$f":"'2. Conservation Measures'!B102","v":"USR-MF-17"},{"$f":"'2. Conservation Measures'!C102","v":0},{"$f":"'2. Conservation Measures'!D102","v":"N"},null,{"$f":"'2. Conservation Measures'!AA102","v":0},null,{"$f":"'2. Conservation Measures'!AO102","v":0},{"$f":"'2. Conservation Measures'!AP102","v":0},{"$f":"'2. Conservation Measures'!AQ102","v":0},{"$f":"'2. Conservation Measures'!AR102","v":0},{"$f":"'2. Conservation Measures'!AS102","v":0},{"$f":"'2. Conservation Measures'!AT102","v":0},{"$f":"'2. Conservation Measures'!AU102","v":0},{"$f":"'2. Conservation Measures'!AV102","v":0},{"$f":"'2. Conservation Measures'!AW102","v":0},{"$f":"'2. Conservation Measures'!AX102","v":0},{"$f":"'2. Conservation Measures'!AY102","v":0},{"$f":"'2. Conservation Measures'!AZ102","v":0},{"$f":"'2. Conservation Measures'!BA102","v":0},{"$f":"'2. Conservation Measures'!BB102","v":0},{"$f":"'2. Conservation Measures'!BC102","v":0},{"$f":"'2. Conservation Measures'!BD102","v":0},{"$f":"'2. Conservation Measures'!BE102","v":0},{"$f":"'2. Conservation Measures'!BF102","v":0},{"$f":"'2. Conservation Measures'!BG102","v":0},{"$f":"'2. Conservation Measures'!BH102","v":0},{"$f":"'2. Conservation Measures'!BI102","v":0},{"$f":"'2. Conservation Measures'!BJ102","v":0},{"$f":"'2. Conservation Measures'!BK102","v":0},{"$f":"'2. Conservation Measures'!BL102","v":0},{"$f":"'2. Conservation Measures'!BM102","v":0},{"$f":"'2. Conservation Measures'!BN102","v":0},{"$f":"'2. Conservation Measures'!BO102","v":0},{"$f":"'2. Conservation Measures'!BP102","v":0},{"$f":"'2. Conservation Measures'!BQ102","v":0},{"$f":"'2. Conservation Measures'!BR102","v":0},{"$f":"'2. Conservation Measures'!BS102","v":0},{"$f":"'2. Conservation Measures'!BT102","v":0},{"$f":"'2. Conservation Measures'!BU102","v":0},{"$f":"'2. Conservation Measures'!BV102","v":0},{"$f":"'2. Conservation Measures'!BW102","v":0},{"$f":"'2. Conservation Measures'!BX102","v":0},{"$f":"'2. Conservation Measures'!BY102","v":0},{"$f":"'2. Conservation Measures'!BZ102","v":0},{"$f":"'2. Conservation Measures'!CA102","v":0},{"$f":"'2. Conservation Measures'!CB102","v":0},{"$f":"'2. Conservation Measures'!CC102","v":0},{"$f":"'2. Conservation Measures'!CD102","v":0},{"$f":"'2. Conservation Measures'!CE102","v":0},{"$f":"'2. Conservation Measures'!CF102","v":0},{"$f":"'2. Conservation Measures'!CG102","v":0},{"$f":"'2. Conservation Measures'!CH102","v":0},{"$f":"'2. Conservation Measures'!CI102","v":0},{"$f":"'2. Conservation Measures'!CJ102","v":0},{"$f":"'2. Conservation Measures'!CK102","v":0},{"$f":"'2. Conservation Measures'!CL102","v":0},{"$f":"'2. Conservation Measures'!CM102","v":0},null,{"$f":"'2. Conservation Measures'!CO102","v":0},{"$f":"'2. Conservation Measures'!CP102","v":0},{"$f":"'2. Conservation Measures'!CQ102","v":0},{"$f":"'2. Conservation Measures'!CR102","v":0},{"$f":"'2. Conservation Measures'!CS102","v":0},{"$f":"'2. Conservation Measures'!CT102","v":0},{"$f":"'2. Conservation Measures'!CU102","v":0},{"$f":"'2. Conservation Measures'!CV102","v":0},{"$f":"'2. Conservation Measures'!CW102","v":0},{"$f":"'2. Conservation Measures'!CX102","v":0},{"$f":"'2. Conservation Measures'!CY102","v":0},{"$f":"'2. Conservation Measures'!CZ102","v":0},{"$f":"'2. Conservation Measures'!DA102","v":0},{"$f":"'2. Conservation Measures'!DB102","v":0},{"$f":"'2. Conservation Measures'!DC102","v":0},{"$f":"'2. Conservation Measures'!DD102","v":0},{"$f":"'2. Conservation Measures'!DE102","v":0},{"$f":"'2. Conservation Measures'!DF102","v":0},{"$f":"'2. Conservation Measures'!DG102","v":0},{"$f":"'2. Conservation Measures'!DH102","v":0},{"$f":"'2. Conservation Measures'!DI102","v":0},{"$f":"'2. Conservation Measures'!DJ102","v":0},{"$f":"'2. Conservation Measures'!DK102","v":0},{"$f":"'2. Conservation Measures'!DL102","v":0},{"$f":"'2. Conservation Measures'!DM102","v":0},{"$f":"'2. Conservation Measures'!DN102","v":0},{"$f":"'2. Conservation Measures'!DO102","v":0},{"$f":"'2. Conservation Measures'!DP102","v":0},{"$f":"'2. Conservation Measures'!DQ102","v":0},{"$f":"'2. Conservation Measures'!DR102","v":0},{"$f":"'2. Conservation Measures'!DS102","v":0},{"$f":"'2. Conservation Measures'!DT102","v":0},{"$f":"'2. Conservation Measures'!DU102","v":0},{"$f":"'2. Conservation Measures'!DV102","v":0},{"$f":"'2. Conservation Measures'!DW102","v":0},{"$f":"'2. Conservation Measures'!DX102","v":0},{"$f":"'2. Conservation Measures'!DY102","v":0},{"$f":"'2. Conservation Measures'!DZ102","v":0},{"$f":"'2. Conservation Measures'!EA102","v":0},{"$f":"'2. Conservation Measures'!EB102","v":0},{"$f":"'2. Conservation Measures'!EC102","v":0},{"$f":"'2. Conservation Measures'!ED102","v":0},{"$f":"'2. Conservation Measures'!EE102","v":0},{"$f":"'2. Conservation Measures'!EF102","v":0},{"$f":"'2. Conservation Measures'!EG102","v":0},{"$f":"'2. Conservation Measures'!EH102","v":0},{"$f":"'2. Conservation Measures'!EI102","v":0},{"$f":"'2. Conservation Measures'!EJ102","v":0},{"$f":"'2. Conservation Measures'!EK102","v":0},{"$f":"'2. Conservation Measures'!EL102","v":0},{"$f":"'2. Conservation Measures'!EM102","v":0},null,{"$f":"'2. Conservation Measures'!KP102","v":0},{"$f":"'2. Conservation Measures'!KQ102","v":0},{"$f":"'2. Conservation Measures'!KR102","v":0},{"$f":"'2. Conservation Measures'!KS102","v":0},{"$f":"'2. Conservation Measures'!KT102","v":0},{"$f":"'2. Conservation Measures'!KU102","v":0},{"$f":"'2. Conservation Measures'!KV102","v":0},{"$f":"'2. Conservation Measures'!KW102","v":0},{"$f":"'2. Conservation Measures'!KX102","v":0},{"$f":"'2. Conservation Measures'!KY102","v":0},{"$f":"'2. Conservation Measures'!KZ102","v":0},{"$f":"'2. Conservation Measures'!LA102","v":0},{"$f":"'2. Conservation Measures'!LB102","v":0},{"$f":"'2. Conservation Measures'!LC102","v":0},{"$f":"'2. Conservation Measures'!LD102","v":0},{"$f":"'2. Conservation Measures'!LE102","v":0},{"$f":"'2. Conservation Measures'!LF102","v":0},{"$f":"'2. Conservation Measures'!LG102","v":0},{"$f":"'2. Conservation Measures'!LH102","v":0},{"$f":"'2. Conservation Measures'!LI102","v":0},{"$f":"'2. Conservation Measures'!LJ102","v":0},{"$f":"'2. Conservation Measures'!LK102","v":0},{"$f":"'2. Conservation Measures'!LL102","v":0},{"$f":"'2. Conservation Measures'!LM102","v":0},{"$f":"'2. Conservation Measures'!LN102","v":0},{"$f":"'2. Conservation Measures'!LO102","v":0},{"$f":"'2. Conservation Measures'!LP102","v":0},{"$f":"'2. Conservation Measures'!LQ102","v":0},{"$f":"'2. Conservation Measures'!LR102","v":0},{"$f":"'2. Conservation Measures'!LS102","v":0},{"$f":"'2. Conservation Measures'!LT102","v":0},{"$f":"'2. Conservation Measures'!LU102","v":0},{"$f":"'2. Conservation Measures'!LV102","v":0},{"$f":"'2. Conservation Measures'!LW102","v":0},{"$f":"'2. Conservation Measures'!LX102","v":0},{"$f":"'2. Conservation Measures'!LY102","v":0},{"$f":"'2. Conservation Measures'!LZ102","v":0},{"$f":"'2. Conservation Measures'!MA102","v":0},{"$f":"'2. Conservation Measures'!MB102","v":0},{"$f":"'2. Conservation Measures'!MC102","v":0},{"$f":"'2. Conservation Measures'!MD102","v":0},{"$f":"'2. Conservation Measures'!ME102","v":0},{"$f":"'2. Conservation Measures'!MF102","v":0},{"$f":"'2. Conservation Measures'!MG102","v":0},{"$f":"'2. Conservation Measures'!MH102","v":0},{"$f":"'2. Conservation Measures'!MI102","v":0},{"$f":"'2. Conservation Measures'!MJ102","v":0},{"$f":"'2. Conservation Measures'!MK102","v":0},{"$f":"'2. Conservation Measures'!ML102","v":0},{"$f":"'2. Conservation Measures'!MM102","v":0},{"$f":"'2. Conservation Measures'!MN102","v":0},null,{"$f":"'2. Conservation Measures'!EP102","v":0},{"$f":"'2. Conservation Measures'!EQ102","v":0},{"$f":"'2. Conservation Measures'!ER102","v":0},{"$f":"'2. Conservation Measures'!ES102","v":0},{"$f":"'2. Conservation Measures'!ET102","v":0},{"$f":"'2. Conservation Measures'!EU102","v":0},{"$f":"'2. Conservation Measures'!EV102","v":0},{"$f":"'2. Conservation Measures'!EW102","v":0},{"$f":"'2. Conservation Measures'!EX102","v":0},{"$f":"'2. Conservation Measures'!EY102","v":0},{"$f":"'2. Conservation Measures'!EZ102","v":0},{"$f":"'2. Conservation Measures'!FA102","v":0},{"$f":"'2. Conservation Measures'!FB102","v":0},{"$f":"'2. Conservation Measures'!FC102","v":0},{"$f":"'2. Conservation Measures'!FD102","v":0},{"$f":"'2. Conservation Measures'!FE102","v":0},{"$f":"'2. Conservation Measures'!FF102","v":0},{"$f":"'2. Conservation Measures'!FG102","v":0},{"$f":"'2. Conservation Measures'!FH102","v":0},{"$f":"'2. Conservation Measures'!FI102","v":0},{"$f":"'2. Conservation Measures'!FJ102","v":0},{"$f":"'2. Conservation Measures'!FK102","v":0},{"$f":"'2. Conservation Measures'!FL102","v":0},{"$f":"'2. Conservation Measures'!FM102","v":0},{"$f":"'2. Conservation Measures'!FN102","v":0},{"$f":"'2. Conservation Measures'!FO102","v":0},{"$f":"'2. Conservation Measures'!FP102","v":0},{"$f":"'2. Conservation Measures'!FQ102","v":0},{"$f":"'2. Conservation Measures'!FR102","v":0},{"$f":"'2. Conservation Measures'!FS102","v":0},{"$f":"'2. Conservation Measures'!FT102","v":0},{"$f":"'2. Conservation Measures'!FU102","v":0},{"$f":"'2. Conservation Measures'!FV102","v":0},{"$f":"'2. Conservation Measures'!FW102","v":0},{"$f":"'2. Conservation Measures'!FX102","v":0},{"$f":"'2. Conservation Measures'!FY102","v":0},{"$f":"'2. Conservation Measures'!FZ102","v":0},{"$f":"'2. Conservation Measures'!GA102","v":0},{"$f":"'2. Conservation Measures'!GB102","v":0},{"$f":"'2. Conservation Measures'!GC102","v":0},{"$f":"'2. Conservation Measures'!GD102","v":0},{"$f":"'2. Conservation Measures'!GE102","v":0},{"$f":"'2. Conservation Measures'!GF102","v":0},{"$f":"'2. Conservation Measures'!GG102","v":0},{"$f":"'2. Conservation Measures'!GH102","v":0},{"$f":"'2. Conservation Measures'!GI102","v":0},{"$f":"'2. Conservation Measures'!GJ102","v":0},{"$f":"'2. Conservation Measures'!GK102","v":0},{"$f":"'2. Conservation Measures'!GL102","v":0},{"$f":"'2. Conservation Measures'!GM102","v":0},{"$f":"'2. Conservation Measures'!GN102","v":0},null,{"$f":"'2. Conservation Measures'!GP102","v":0},{"$f":"'2. Conservation Measures'!GQ102","v":0},{"$f":"'2. Conservation Measures'!GR102","v":0},{"$f":"'2. Conservation Measures'!GS102","v":0},{"$f":"'2. Conservation Measures'!GT102","v":0},{"$f":"'2. Conservation Measures'!GU102","v":0},{"$f":"'2. Conservation Measures'!GV102","v":0},{"$f":"'2. Conservation Measures'!GW102","v":0},{"$f":"'2. Conservation Measures'!GX102","v":0},{"$f":"'2. Conservation Measures'!GY102","v":0},{"$f":"'2. Conservation Measures'!GZ102","v":0},{"$f":"'2. Conservation Measures'!HA102","v":0},{"$f":"'2. Conservation Measures'!HB102","v":0},{"$f":"'2. Conservation Measures'!HC102","v":0},{"$f":"'2. Conservation Measures'!HD102","v":0},{"$f":"'2. Conservation Measures'!HE102","v":0},{"$f":"'2. Conservation Measures'!HF102","v":0},{"$f":"'2. Conservation Measures'!HG102","v":0},{"$f":"'2. Conservation Measures'!HH102","v":0},{"$f":"'2. Conservation Measures'!HI102","v":0},{"$f":"'2. Conservation Measures'!HJ102","v":0},{"$f":"'2. Conservation Measures'!HK102","v":0},{"$f":"'2. Conservation Measures'!HL102","v":0},{"$f":"'2. Conservation Measures'!HM102","v":0},{"$f":"'2. Conservation Measures'!HN102","v":0},{"$f":"'2. Conservation Measures'!HO102","v":0},{"$f":"'2. Conservation Measures'!HP102","v":0},{"$f":"'2. Conservation Measures'!HQ102","v":0},{"$f":"'2. Conservation Measures'!HR102","v":0},{"$f":"'2. Conservation Measures'!HS102","v":0},{"$f":"'2. Conservation Measures'!HT102","v":0},{"$f":"'2. Conservation Measures'!HU102","v":0},{"$f":"'2. Conservation Measures'!HV102","v":0},{"$f":"'2. Conservation Measures'!HW102","v":0},{"$f":"'2. Conservation Measures'!HX102","v":0},{"$f":"'2. Conservation Measures'!HY102","v":0},{"$f":"'2. Conservation Measures'!HZ102","v":0},{"$f":"'2. Conservation Measures'!IA102","v":0},{"$f":"'2. Conservation Measures'!IB102","v":0},{"$f":"'2. Conservation Measures'!IC102","v":0},{"$f":"'2. Conservation Measures'!ID102","v":0},{"$f":"'2. Conservation Measures'!IE102","v":0},{"$f":"'2. Conservation Measures'!IF102","v":0},{"$f":"'2. Conservation Measures'!IG102","v":0},{"$f":"'2. Conservation Measures'!IH102","v":0},{"$f":"'2. Conservation Measures'!II102","v":0},{"$f":"'2. Conservation Measures'!IJ102","v":0},{"$f":"'2. Conservation Measures'!IK102","v":0},{"$f":"'2. Conservation Measures'!IL102","v":0},{"$f":"'2. Conservation Measures'!IM102","v":0},{"$f":"'2. Conservation Measures'!IN102","v":0},null,{"$f":"'2. Conservation Measures'!IP102","v":0},{"$f":"'2. Conservation Measures'!IQ102","v":0},{"$f":"'2. Conservation Measures'!IR102","v":0},{"$f":"'2. Conservation Measures'!IS102","v":0},{"$f":"'2. Conservation Measures'!IT102","v":0},{"$f":"'2. Conservation Measures'!IU102","v":0},{"$f":"'2. Conservation Measures'!IV102","v":0},{"$f":"'2. Conservation Measures'!IW102","v":0},{"$f":"'2. Conservation Measures'!IX102","v":0},{"$f":"'2. Conservation Measures'!IY102","v":0},{"$f":"'2. Conservation Measures'!IZ102","v":0},{"$f":"'2. Conservation Measures'!JA102","v":0},{"$f":"'2. Conservation Measures'!JB102","v":0},{"$f":"'2. Conservation Measures'!JC102","v":0},{"$f":"'2. Conservation Measures'!JD102","v":0},{"$f":"'2. Conservation Measures'!JE102","v":0},{"$f":"'2. Conservation Measures'!JF102","v":0},{"$f":"'2. Conservation Measures'!JG102","v":0},{"$f":"'2. Conservation Measures'!JH102","v":0},{"$f":"'2. Conservation Measures'!JI102","v":0},{"$f":"'2. Conservation Measures'!JJ102","v":0},{"$f":"'2. Conservation Measures'!JK102","v":0},{"$f":"'2. Conservation Measures'!JL102","v":0},{"$f":"'2. Conservation Measures'!JM102","v":0},{"$f":"'2. Conservation Measures'!JN102","v":0},{"$f":"'2. Conservation Measures'!JO102","v":0},{"$f":"'2. Conservation Measures'!JP102","v":0},{"$f":"'2. Conservation Measures'!JQ102","v":0},{"$f":"'2. Conservation Measures'!JR102","v":0},{"$f":"'2. Conservation Measures'!JS102","v":0},{"$f":"'2. Conservation Measures'!JT102","v":0},{"$f":"'2. Conservation Measures'!JU102","v":0},{"$f":"'2. Conservation Measures'!JV102","v":0},{"$f":"'2. Conservation Measures'!JW102","v":0},{"$f":"'2. Conservation Measures'!JX102","v":0},{"$f":"'2. Conservation Measures'!JY102","v":0},{"$f":"'2. Conservation Measures'!JZ102","v":0},{"$f":"'2. Conservation Measures'!KA102","v":0},{"$f":"'2. Conservation Measures'!KB102","v":0},{"$f":"'2. Conservation Measures'!KC102","v":0},{"$f":"'2. Conservation Measures'!KD102","v":0},{"$f":"'2. Conservation Measures'!KE102","v":0},{"$f":"'2. Conservation Measures'!KF102","v":0},{"$f":"'2. Conservation Measures'!KG102","v":0},{"$f":"'2. Conservation Measures'!KH102","v":0},{"$f":"'2. Conservation Measures'!KI102","v":0},{"$f":"'2. Conservation Measures'!KJ102","v":0},{"$f":"'2. Conservation Measures'!KK102","v":0},{"$f":"'2. Conservation Measures'!KL102","v":0},{"$f":"'2. Conservation Measures'!KM102","v":0},{"$f":"'2. Conservation Measures'!KN102","v":0}]
[null,{"$f":"'2. Conservation Measures'!B103","v":"USR-MF-18"},{"$f":"'2. Conservation Measures'!C103","v":0},{"$f":"'2. Conservation Measures'!D103","v":"N"},null,{"$f":"'2. Conservation Measures'!AA103","v":0},null,{"$f":"'2. Conservation Measures'!AO103","v":0},{"$f":"'2. Conservation Measures'!AP103","v":0},{"$f":"'2. Conservation Measures'!AQ103","v":0},{"$f":"'2. Conservation Measures'!AR103","v":0},{"$f":"'2. Conservation Measures'!AS103","v":0},{"$f":"'2. Conservation Measures'!AT103","v":0},{"$f":"'2. Conservation Measures'!AU103","v":0},{"$f":"'2. Conservation Measures'!AV103","v":0},{"$f":"'2. Conservation Measures'!AW103","v":0},{"$f":"'2. Conservation Measures'!AX103","v":0},{"$f":"'2. Conservation Measures'!AY103","v":0},{"$f":"'2. Conservation Measures'!AZ103","v":0},{"$f":"'2. Conservation Measures'!BA103","v":0},{"$f":"'2. Conservation Measures'!BB103","v":0},{"$f":"'2. Conservation Measures'!BC103","v":0},{"$f":"'2. Conservation Measures'!BD103","v":0},{"$f":"'2. Conservation Measures'!BE103","v":0},{"$f":"'2. Conservation Measures'!BF103","v":0},{"$f":"'2. Conservation Measures'!BG103","v":0},{"$f":"'2. Conservation Measures'!BH103","v":0},{"$f":"'2. Conservation Measures'!BI103","v":0},{"$f":"'2. Conservation Measures'!BJ103","v":0},{"$f":"'2. Conservation Measures'!BK103","v":0},{"$f":"'2. Conservation Measures'!BL103","v":0},{"$f":"'2. Conservation Measures'!BM103","v":0},{"$f":"'2. Conservation Measures'!BN103","v":0},{"$f":"'2. Conservation Measures'!BO103","v":0},{"$f":"'2. Conservation Measures'!BP103","v":0},{"$f":"'2. Conservation Measures'!BQ103","v":0},{"$f":"'2. Conservation Measures'!BR103","v":0},{"$f":"'2. Conservation Measures'!BS103","v":0},{"$f":"'2. Conservation Measures'!BT103","v":0},{"$f":"'2. Conservation Measures'!BU103","v":0},{"$f":"'2. Conservation Measures'!BV103","v":0},{"$f":"'2. Conservation Measures'!BW103","v":0},{"$f":"'2. Conservation Measures'!BX103","v":0},{"$f":"'2. Conservation Measures'!BY103","v":0},{"$f":"'2. Conservation Measures'!BZ103","v":0},{"$f":"'2. Conservation Measures'!CA103","v":0},{"$f":"'2. Conservation Measures'!CB103","v":0},{"$f":"'2. Conservation Measures'!CC103","v":0},{"$f":"'2. Conservation Measures'!CD103","v":0},{"$f":"'2. Conservation Measures'!CE103","v":0},{"$f":"'2. Conservation Measures'!CF103","v":0},{"$f":"'2. Conservation Measures'!CG103","v":0},{"$f":"'2. Conservation Measures'!CH103","v":0},{"$f":"'2. Conservation Measures'!CI103","v":0},{"$f":"'2. Conservation Measures'!CJ103","v":0},{"$f":"'2. Conservation Measures'!CK103","v":0},{"$f":"'2. Conservation Measures'!CL103","v":0},{"$f":"'2. Conservation Measures'!CM103","v":0},null,{"$f":"'2. Conservation Measures'!CO103","v":0},{"$f":"'2. Conservation Measures'!CP103","v":0},{"$f":"'2. Conservation Measures'!CQ103","v":0},{"$f":"'2. Conservation Measures'!CR103","v":0},{"$f":"'2. Conservation Measures'!CS103","v":0},{"$f":"'2. Conservation Measures'!CT103","v":0},{"$f":"'2. Conservation Measures'!CU103","v":0},{"$f":"'2. Conservation Measures'!CV103","v":0},{"$f":"'2. Conservation Measures'!CW103","v":0},{"$f":"'2. Conservation Measures'!CX103","v":0},{"$f":"'2. Conservation Measures'!CY103","v":0},{"$f":"'2. Conservation Measures'!CZ103","v":0},{"$f":"'2. Conservation Measures'!DA103","v":0},{"$f":"'2. Conservation Measures'!DB103","v":0},{"$f":"'2. Conservation Measures'!DC103","v":0},{"$f":"'2. Conservation Measures'!DD103","v":0},{"$f":"'2. Conservation Measures'!DE103","v":0},{"$f":"'2. Conservation Measures'!DF103","v":0},{"$f":"'2. Conservation Measures'!DG103","v":0},{"$f":"'2. Conservation Measures'!DH103","v":0},{"$f":"'2. Conservation Measures'!DI103","v":0},{"$f":"'2. Conservation Measures'!DJ103","v":0},{"$f":"'2. Conservation Measures'!DK103","v":0},{"$f":"'2. Conservation Measures'!DL103","v":0},{"$f":"'2. Conservation Measures'!DM103","v":0},{"$f":"'2. Conservation Measures'!DN103","v":0},{"$f":"'2. Conservation Measures'!DO103","v":0},{"$f":"'2. Conservation Measures'!DP103","v":0},{"$f":"'2. Conservation Measures'!DQ103","v":0},{"$f":"'2. Conservation Measures'!DR103","v":0},{"$f":"'2. Conservation Measures'!DS103","v":0},{"$f":"'2. Conservation Measures'!DT103","v":0},{"$f":"'2. Conservation Measures'!DU103","v":0},{"$f":"'2. Conservation Measures'!DV103","v":0},{"$f":"'2. Conservation Measures'!DW103","v":0},{"$f":"'2. Conservation Measures'!DX103","v":0},{"$f":"'2. Conservation Measures'!DY103","v":0},{"$f":"'2. Conservation Measures'!DZ103","v":0},{"$f":"'2. Conservation Measures'!EA103","v":0},{"$f":"'2. Conservation Measures'!EB103","v":0},{"$f":"'2. Conservation Measures'!EC103","v":0},{"$f":"'2. Conservation Measures'!ED103","v":0},{"$f":"'2. Conservation Measures'!EE103","v":0},{"$f":"'2. Conservation Measures'!EF103","v":0},{"$f":"'2. Conservation Measures'!EG103","v":0},{"$f":"'2. Conservation Measures'!EH103","v":0},{"$f":"'2. Conservation Measures'!EI103","v":0},{"$f":"'2. Conservation Measures'!EJ103","v":0},{"$f":"'2. Conservation Measures'!EK103","v":0},{"$f":"'2. Conservation Measures'!EL103","v":0},{"$f":"'2. Conservation Measures'!EM103","v":0},null,{"$f":"'2. Conservation Measures'!KP103","v":0},{"$f":"'2. Conservation Measures'!KQ103","v":0},{"$f":"'2. Conservation Measures'!KR103","v":0},{"$f":"'2. Conservation Measures'!KS103","v":0},{"$f":"'2. Conservation Measures'!KT103","v":0},{"$f":"'2. Conservation Measures'!KU103","v":0},{"$f":"'2. Conservation Measures'!KV103","v":0},{"$f":"'2. Conservation Measures'!KW103","v":0},{"$f":"'2. Conservation Measures'!KX103","v":0},{"$f":"'2. Conservation Measures'!KY103","v":0},{"$f":"'2. Conservation Measures'!KZ103","v":0},{"$f":"'2. Conservation Measures'!LA103","v":0},{"$f":"'2. Conservation Measures'!LB103","v":0},{"$f":"'2. Conservation Measures'!LC103","v":0},{"$f":"'2. Conservation Measures'!LD103","v":0},{"$f":"'2. Conservation Measures'!LE103","v":0},{"$f":"'2. Conservation Measures'!LF103","v":0},{"$f":"'2. Conservation Measures'!LG103","v":0},{"$f":"'2. Conservation Measures'!LH103","v":0},{"$f":"'2. Conservation Measures'!LI103","v":0},{"$f":"'2. Conservation Measures'!LJ103","v":0},{"$f":"'2. Conservation Measures'!LK103","v":0},{"$f":"'2. Conservation Measures'!LL103","v":0},{"$f":"'2. Conservation Measures'!LM103","v":0},{"$f":"'2. Conservation Measures'!LN103","v":0},{"$f":"'2. Conservation Measures'!LO103","v":0},{"$f":"'2. Conservation Measures'!LP103","v":0},{"$f":"'2. Conservation Measures'!LQ103","v":0},{"$f":"'2. Conservation Measures'!LR103","v":0},{"$f":"'2. Conservation Measures'!LS103","v":0},{"$f":"'2. Conservation Measures'!LT103","v":0},{"$f":"'2. Conservation Measures'!LU103","v":0},{"$f":"'2. Conservation Measures'!LV103","v":0},{"$f":"'2. Conservation Measures'!LW103","v":0},{"$f":"'2. Conservation Measures'!LX103","v":0},{"$f":"'2. Conservation Measures'!LY103","v":0},{"$f":"'2. Conservation Measures'!LZ103","v":0},{"$f":"'2. Conservation Measures'!MA103","v":0},{"$f":"'2. Conservation Measures'!MB103","v":0},{"$f":"'2. Conservation Measures'!MC103","v":0},{"$f":"'2. Conservation Measures'!MD103","v":0},{"$f":"'2. Conservation Measures'!ME103","v":0},{"$f":"'2. Conservation Measures'!MF103","v":0},{"$f":"'2. Conservation Measures'!MG103","v":0},{"$f":"'2. Conservation Measures'!MH103","v":0},{"$f":"'2. Conservation Measures'!MI103","v":0},{"$f":"'2. Conservation Measures'!MJ103","v":0},{"$f":"'2. Conservation Measures'!MK103","v":0},{"$f":"'2. Conservation Measures'!ML103","v":0},{"$f":"'2. Conservation Measures'!MM103","v":0},{"$f":"'2. Conservation Measures'!MN103","v":0},null,{"$f":"'2. Conservation Measures'!EP103","v":0},{"$f":"'2. Conservation Measures'!EQ103","v":0},{"$f":"'2. Conservation Measures'!ER103","v":0},{"$f":"'2. Conservation Measures'!ES103","v":0},{"$f":"'2. Conservation Measures'!ET103","v":0},{"$f":"'2. Conservation Measures'!EU103","v":0},{"$f":"'2. Conservation Measures'!EV103","v":0},{"$f":"'2. Conservation Measures'!EW103","v":0},{"$f":"'2. Conservation Measures'!EX103","v":0},{"$f":"'2. Conservation Measures'!EY103","v":0},{"$f":"'2. Conservation Measures'!EZ103","v":0},{"$f":"'2. Conservation Measures'!FA103","v":0},{"$f":"'2. Conservation Measures'!FB103","v":0},{"$f":"'2. Conservation Measures'!FC103","v":0},{"$f":"'2. Conservation Measures'!FD103","v":0},{"$f":"'2. Conservation Measures'!FE103","v":0},{"$f":"'2. Conservation Measures'!FF103","v":0},{"$f":"'2. Conservation Measures'!FG103","v":0},{"$f":"'2. Conservation Measures'!FH103","v":0},{"$f":"'2. Conservation Measures'!FI103","v":0},{"$f":"'2. Conservation Measures'!FJ103","v":0},{"$f":"'2. Conservation Measures'!FK103","v":0},{"$f":"'2. Conservation Measures'!FL103","v":0},{"$f":"'2. Conservation Measures'!FM103","v":0},{"$f":"'2. Conservation Measures'!FN103","v":0},{"$f":"'2. Conservation Measures'!FO103","v":0},{"$f":"'2. Conservation Measures'!FP103","v":0},{"$f":"'2. Conservation Measures'!FQ103","v":0},{"$f":"'2. Conservation Measures'!FR103","v":0},{"$f":"'2. Conservation Measures'!FS103","v":0},{"$f":"'2. Conservation Measures'!FT103","v":0},{"$f":"'2. Conservation Measures'!FU103","v":0},{"$f":"'2. Conservation Measures'!FV103","v":0},{"$f":"'2. Conservation Measures'!FW103","v":0},{"$f":"'2. Conservation Measures'!FX103","v":0},{"$f":"'2. Conservation Measures'!FY103","v":0},{"$f":"'2. Conservation Measures'!FZ103","v":0},{"$f":"'2. Conservation Measures'!GA103","v":0},{"$f":"'2. Conservation Measures'!GB103","v":0},{"$f":"'2. Conservation Measures'!GC103","v":0},{"$f":"'2. Conservation Measures'!GD103","v":0},{"$f":"'2. Conservation Measures'!GE103","v":0},{"$f":"'2. Conservation Measures'!GF103","v":0},{"$f":"'2. Conservation Measures'!GG103","v":0},{"$f":"'2. Conservation Measures'!GH103","v":0},{"$f":"'2. Conservation Measures'!GI103","v":0},{"$f":"'2. Conservation Measures'!GJ103","v":0},{"$f":"'2. Conservation Measures'!GK103","v":0},{"$f":"'2. Conservation Measures'!GL103","v":0},{"$f":"'2. Conservation Measures'!GM103","v":0},{"$f":"'2. Conservation Measures'!GN103","v":0},null,{"$f":"'2. Conservation Measures'!GP103","v":0},{"$f":"'2. Conservation Measures'!GQ103","v":0},{"$f":"'2. Conservation Measures'!GR103","v":0},{"$f":"'2. Conservation Measures'!GS103","v":0},{"$f":"'2. Conservation Measures'!GT103","v":0},{"$f":"'2. Conservation Measures'!GU103","v":0},{"$f":"'2. Conservation Measures'!GV103","v":0},{"$f":"'2. Conservation Measures'!GW103","v":0},{"$f":"'2. Conservation Measures'!GX103","v":0},{"$f":"'2. Conservation Measures'!GY103","v":0},{"$f":"'2. Conservation Measures'!GZ103","v":0},{"$f":"'2. Conservation Measures'!HA103","v":0},{"$f":"'2. Conservation Measures'!HB103","v":0},{"$f":"'2. Conservation Measures'!HC103","v":0},{"$f":"'2. Conservation Measures'!HD103","v":0},{"$f":"'2. Conservation Measures'!HE103","v":0},{"$f":"'2. Conservation Measures'!HF103","v":0},{"$f":"'2. Conservation Measures'!HG103","v":0},{"$f":"'2. Conservation Measures'!HH103","v":0},{"$f":"'2. Conservation Measures'!HI103","v":0},{"$f":"'2. Conservation Measures'!HJ103","v":0},{"$f":"'2. Conservation Measures'!HK103","v":0},{"$f":"'2. Conservation Measures'!HL103","v":0},{"$f":"'2. Conservation Measures'!HM103","v":0},{"$f":"'2. Conservation Measures'!HN103","v":0},{"$f":"'2. Conservation Measures'!HO103","v":0},{"$f":"'2. Conservation Measures'!HP103","v":0},{"$f":"'2. Conservation Measures'!HQ103","v":0},{"$f":"'2. Conservation Measures'!HR103","v":0},{"$f":"'2. Conservation Measures'!HS103","v":0},{"$f":"'2. Conservation Measures'!HT103","v":0},{"$f":"'2. Conservation Measures'!HU103","v":0},{"$f":"'2. Conservation Measures'!HV103","v":0},{"$f":"'2. Conservation Measures'!HW103","v":0},{"$f":"'2. Conservation Measures'!HX103","v":0},{"$f":"'2. Conservation Measures'!HY103","v":0},{"$f":"'2. Conservation Measures'!HZ103","v":0},{"$f":"'2. Conservation Measures'!IA103","v":0},{"$f":"'2. Conservation Measures'!IB103","v":0},{"$f":"'2. Conservation Measures'!IC103","v":0},{"$f":"'2. Conservation Measures'!ID103","v":0},{"$f":"'2. Conservation Measures'!IE103","v":0},{"$f":"'2. Conservation Measures'!IF103","v":0},{"$f":"'2. Conservation Measures'!IG103","v":0},{"$f":"'2. Conservation Measures'!IH103","v":0},{"$f":"'2. Conservation Measures'!II103","v":0},{"$f":"'2. Conservation Measures'!IJ103","v":0},{"$f":"'2. Conservation Measures'!IK103","v":0},{"$f":"'2. Conservation Measures'!IL103","v":0},{"$f":"'2. Conservation Measures'!IM103","v":0},{"$f":"'2. Conservation Measures'!IN103","v":0},null,{"$f":"'2. Conservation Measures'!IP103","v":0},{"$f":"'2. Conservation Measures'!IQ103","v":0},{"$f":"'2. Conservation Measures'!IR103","v":0},{"$f":"'2. Conservation Measures'!IS103","v":0},{"$f":"'2. Conservation Measures'!IT103","v":0},{"$f":"'2. Conservation Measures'!IU103","v":0},{"$f":"'2. Conservation Measures'!IV103","v":0},{"$f":"'2. Conservation Measures'!IW103","v":0},{"$f":"'2. Conservation Measures'!IX103","v":0},{"$f":"'2. Conservation Measures'!IY103","v":0},{"$f":"'2. Conservation Measures'!IZ103","v":0},{"$f":"'2. Conservation Measures'!JA103","v":0},{"$f":"'2. Conservation Measures'!JB103","v":0},{"$f":"'2. Conservation Measures'!JC103","v":0},{"$f":"'2. Conservation Measures'!JD103","v":0},{"$f":"'2. Conservation Measures'!JE103","v":0},{"$f":"'2. Conservation Measures'!JF103","v":0},{"$f":"'2. Conservation Measures'!JG103","v":0},{"$f":"'2. Conservation Measures'!JH103","v":0},{"$f":"'2. Conservation Measures'!JI103","v":0},{"$f":"'2. Conservation Measures'!JJ103","v":0},{"$f":"'2. Conservation Measures'!JK103","v":0},{"$f":"'2. Conservation Measures'!JL103","v":0},{"$f":"'2. Conservation Measures'!JM103","v":0},{"$f":"'2. Conservation Measures'!JN103","v":0},{"$f":"'2. Conservation Measures'!JO103","v":0},{"$f":"'2. Conservation Measures'!JP103","v":0},{"$f":"'2. Conservation Measures'!JQ103","v":0},{"$f":"'2. Conservation Measures'!JR103","v":0},{"$f":"'2. Conservation Measures'!JS103","v":0},{"$f":"'2. Conservation Measures'!JT103","v":0},{"$f":"'2. Conservation Measures'!JU103","v":0},{"$f":"'2. Conservation Measures'!JV103","v":0},{"$f":"'2. Conservation Measures'!JW103","v":0},{"$f":"'2. Conservation Measures'!JX103","v":0},{"$f":"'2. Conservation Measures'!JY103","v":0},{"$f":"'2. Conservation Measures'!JZ103","v":0},{"$f":"'2. Conservation Measures'!KA103","v":0},{"$f":"'2. Conservation Measures'!KB103","v":0},{"$f":"'2. Conservation Measures'!KC103","v":0},{"$f":"'2. Conservation Measures'!KD103","v":0},{"$f":"'2. Conservation Measures'!KE103","v":0},{"$f":"'2. Conservation Measures'!KF103","v":0},{"$f":"'2. Conservation Measures'!KG103","v":0},{"$f":"'2. Conservation Measures'!KH103","v":0},{"$f":"'2. Conservation Measures'!KI103","v":0},{"$f":"'2. Conservation Measures'!KJ103","v":0},{"$f":"'2. Conservation Measures'!KK103","v":0},{"$f":"'2. Conservation Measures'!KL103","v":0},{"$f":"'2. Conservation Measures'!KM103","v":0},{"$f":"'2. Conservation Measures'!KN103","v":0}]
[null,{"$f":"'2. Conservation Measures'!B104","v":"USR-MF-19"},{"$f":"'2. Conservation Measures'!C104","v":0},{"$f":"'2. Conservation Measures'!D104","v":"N"},null,{"$f":"'2. Conservation Measures'!AA104","v":0},null,{"$f":"'2. Conservation Measures'!AO104","v":0},{"$f":"'2. Conservation Measures'!AP104","v":0},{"$f":"'2. Conservation Measures'!AQ104","v":0},{"$f":"'2. Conservation Measures'!AR104","v":0},{"$f":"'2. Conservation Measures'!AS104","v":0},{"$f":"'2. Conservation Measures'!AT104","v":0},{"$f":"'2. Conservation Measures'!AU104","v":0},{"$f":"'2. Conservation Measures'!AV104","v":0},{"$f":"'2. Conservation Measures'!AW104","v":0},{"$f":"'2. Conservation Measures'!AX104","v":0},{"$f":"'2. Conservation Measures'!AY104","v":0},{"$f":"'2. Conservation Measures'!AZ104","v":0},{"$f":"'2. Conservation Measures'!BA104","v":0},{"$f":"'2. Conservation Measures'!BB104","v":0},{"$f":"'2. Conservation Measures'!BC104","v":0},{"$f":"'2. Conservation Measures'!BD104","v":0},{"$f":"'2. Conservation Measures'!BE104","v":0},{"$f":"'2. Conservation Measures'!BF104","v":0},{"$f":"'2. Conservation Measures'!BG104","v":0},{"$f":"'2. Conservation Measures'!BH104","v":0},{"$f":"'2. Conservation Measures'!BI104","v":0},{"$f":"'2. Conservation Measures'!BJ104","v":0},{"$f":"'2. Conservation Measures'!BK104","v":0},{"$f":"'2. Conservation Measures'!BL104","v":0},{"$f":"'2. Conservation Measures'!BM104","v":0},{"$f":"'2. Conservation Measures'!BN104","v":0},{"$f":"'2. Conservation Measures'!BO104","v":0},{"$f":"'2. Conservation Measures'!BP104","v":0},{"$f":"'2. Conservation Measures'!BQ104","v":0},{"$f":"'2. Conservation Measures'!BR104","v":0},{"$f":"'2. Conservation Measures'!BS104","v":0},{"$f":"'2. Conservation Measures'!BT104","v":0},{"$f":"'2. Conservation Measures'!BU104","v":0},{"$f":"'2. Conservation Measures'!BV104","v":0},{"$f":"'2. Conservation Measures'!BW104","v":0},{"$f":"'2. Conservation Measures'!BX104","v":0},{"$f":"'2. Conservation Measures'!BY104","v":0},{"$f":"'2. Conservation Measures'!BZ104","v":0},{"$f":"'2. Conservation Measures'!CA104","v":0},{"$f":"'2. Conservation Measures'!CB104","v":0},{"$f":"'2. Conservation Measures'!CC104","v":0},{"$f":"'2. Conservation Measures'!CD104","v":0},{"$f":"'2. Conservation Measures'!CE104","v":0},{"$f":"'2. Conservation Measures'!CF104","v":0},{"$f":"'2. Conservation Measures'!CG104","v":0},{"$f":"'2. Conservation Measures'!CH104","v":0},{"$f":"'2. Conservation Measures'!CI104","v":0},{"$f":"'2. Conservation Measures'!CJ104","v":0},{"$f":"'2. Conservation Measures'!CK104","v":0},{"$f":"'2. Conservation Measures'!CL104","v":0},{"$f":"'2. Conservation Measures'!CM104","v":0},null,{"$f":"'2. Conservation Measures'!CO104","v":0},{"$f":"'2. Conservation Measures'!CP104","v":0},{"$f":"'2. Conservation Measures'!CQ104","v":0},{"$f":"'2. Conservation Measures'!CR104","v":0},{"$f":"'2. Conservation Measures'!CS104","v":0},{"$f":"'2. Conservation Measures'!CT104","v":0},{"$f":"'2. Conservation Measures'!CU104","v":0},{"$f":"'2. Conservation Measures'!CV104","v":0},{"$f":"'2. Conservation Measures'!CW104","v":0},{"$f":"'2. Conservation Measures'!CX104","v":0},{"$f":"'2. Conservation Measures'!CY104","v":0},{"$f":"'2. Conservation Measures'!CZ104","v":0},{"$f":"'2. Conservation Measures'!DA104","v":0},{"$f":"'2. Conservation Measures'!DB104","v":0},{"$f":"'2. Conservation Measures'!DC104","v":0},{"$f":"'2. Conservation Measures'!DD104","v":0},{"$f":"'2. Conservation Measures'!DE104","v":0},{"$f":"'2. Conservation Measures'!DF104","v":0},{"$f":"'2. Conservation Measures'!DG104","v":0},{"$f":"'2. Conservation Measures'!DH104","v":0},{"$f":"'2. Conservation Measures'!DI104","v":0},{"$f":"'2. Conservation Measures'!DJ104","v":0},{"$f":"'2. Conservation Measures'!DK104","v":0},{"$f":"'2. Conservation Measures'!DL104","v":0},{"$f":"'2. Conservation Measures'!DM104","v":0},{"$f":"'2. Conservation Measures'!DN104","v":0},{"$f":"'2. Conservation Measures'!DO104","v":0},{"$f":"'2. Conservation Measures'!DP104","v":0},{"$f":"'2. Conservation Measures'!DQ104","v":0},{"$f":"'2. Conservation Measures'!DR104","v":0},{"$f":"'2. Conservation Measures'!DS104","v":0},{"$f":"'2. Conservation Measures'!DT104","v":0},{"$f":"'2. Conservation Measures'!DU104","v":0},{"$f":"'2. Conservation Measures'!DV104","v":0},{"$f":"'2. Conservation Measures'!DW104","v":0},{"$f":"'2. Conservation Measures'!DX104","v":0},{"$f":"'2. Conservation Measures'!DY104","v":0},{"$f":"'2. Conservation Measures'!DZ104","v":0},{"$f":"'2. Conservation Measures'!EA104","v":0},{"$f":"'2. Conservation Measures'!EB104","v":0},{"$f":"'2. Conservation Measures'!EC104","v":0},{"$f":"'2. Conservation Measures'!ED104","v":0},{"$f":"'2. Conservation Measures'!EE104","v":0},{"$f":"'2. Conservation Measures'!EF104","v":0},{"$f":"'2. Conservation Measures'!EG104","v":0},{"$f":"'2. Conservation Measures'!EH104","v":0},{"$f":"'2. Conservation Measures'!EI104","v":0},{"$f":"'2. Conservation Measures'!EJ104","v":0},{"$f":"'2. Conservation Measures'!EK104","v":0},{"$f":"'2. Conservation Measures'!EL104","v":0},{"$f":"'2. Conservation Measures'!EM104","v":0},null,{"$f":"'2. Conservation Measures'!KP104","v":0},{"$f":"'2. Conservation Measures'!KQ104","v":0},{"$f":"'2. Conservation Measures'!KR104","v":0},{"$f":"'2. Conservation Measures'!KS104","v":0},{"$f":"'2. Conservation Measures'!KT104","v":0},{"$f":"'2. Conservation Measures'!KU104","v":0},{"$f":"'2. Conservation Measures'!KV104","v":0},{"$f":"'2. Conservation Measures'!KW104","v":0},{"$f":"'2. Conservation Measures'!KX104","v":0},{"$f":"'2. Conservation Measures'!KY104","v":0},{"$f":"'2. Conservation Measures'!KZ104","v":0},{"$f":"'2. Conservation Measures'!LA104","v":0},{"$f":"'2. Conservation Measures'!LB104","v":0},{"$f":"'2. Conservation Measures'!LC104","v":0},{"$f":"'2. Conservation Measures'!LD104","v":0},{"$f":"'2. Conservation Measures'!LE104","v":0},{"$f":"'2. Conservation Measures'!LF104","v":0},{"$f":"'2. Conservation Measures'!LG104","v":0},{"$f":"'2. Conservation Measures'!LH104","v":0},{"$f":"'2. Conservation Measures'!LI104","v":0},{"$f":"'2. Conservation Measures'!LJ104","v":0},{"$f":"'2. Conservation Measures'!LK104","v":0},{"$f":"'2. Conservation Measures'!LL104","v":0},{"$f":"'2. Conservation Measures'!LM104","v":0},{"$f":"'2. Conservation Measures'!LN104","v":0},{"$f":"'2. Conservation Measures'!LO104","v":0},{"$f":"'2. Conservation Measures'!LP104","v":0},{"$f":"'2. Conservation Measures'!LQ104","v":0},{"$f":"'2. Conservation Measures'!LR104","v":0},{"$f":"'2. Conservation Measures'!LS104","v":0},{"$f":"'2. Conservation Measures'!LT104","v":0},{"$f":"'2. Conservation Measures'!LU104","v":0},{"$f":"'2. Conservation Measures'!LV104","v":0},{"$f":"'2. Conservation Measures'!LW104","v":0},{"$f":"'2. Conservation Measures'!LX104","v":0},{"$f":"'2. Conservation Measures'!LY104","v":0},{"$f":"'2. Conservation Measures'!LZ104","v":0},{"$f":"'2. Conservation Measures'!MA104","v":0},{"$f":"'2. Conservation Measures'!MB104","v":0},{"$f":"'2. Conservation Measures'!MC104","v":0},{"$f":"'2. Conservation Measures'!MD104","v":0},{"$f":"'2. Conservation Measures'!ME104","v":0},{"$f":"'2. Conservation Measures'!MF104","v":0},{"$f":"'2. Conservation Measures'!MG104","v":0},{"$f":"'2. Conservation Measures'!MH104","v":0},{"$f":"'2. Conservation Measures'!MI104","v":0},{"$f":"'2. Conservation Measures'!MJ104","v":0},{"$f":"'2. Conservation Measures'!MK104","v":0},{"$f":"'2. Conservation Measures'!ML104","v":0},{"$f":"'2. Conservation Measures'!MM104","v":0},{"$f":"'2. Conservation Measures'!MN104","v":0},null,{"$f":"'2. Conservation Measures'!EP104","v":0},{"$f":"'2. Conservation Measures'!EQ104","v":0},{"$f":"'2. Conservation Measures'!ER104","v":0},{"$f":"'2. Conservation Measures'!ES104","v":0},{"$f":"'2. Conservation Measures'!ET104","v":0},{"$f":"'2. Conservation Measures'!EU104","v":0},{"$f":"'2. Conservation Measures'!EV104","v":0},{"$f":"'2. Conservation Measures'!EW104","v":0},{"$f":"'2. Conservation Measures'!EX104","v":0},{"$f":"'2. Conservation Measures'!EY104","v":0},{"$f":"'2. Conservation Measures'!EZ104","v":0},{"$f":"'2. Conservation Measures'!FA104","v":0},{"$f":"'2. Conservation Measures'!FB104","v":0},{"$f":"'2. Conservation Measures'!FC104","v":0},{"$f":"'2. Conservation Measures'!FD104","v":0},{"$f":"'2. Conservation Measures'!FE104","v":0},{"$f":"'2. Conservation Measures'!FF104","v":0},{"$f":"'2. Conservation Measures'!FG104","v":0},{"$f":"'2. Conservation Measures'!FH104","v":0},{"$f":"'2. Conservation Measures'!FI104","v":0},{"$f":"'2. Conservation Measures'!FJ104","v":0},{"$f":"'2. Conservation Measures'!FK104","v":0},{"$f":"'2. Conservation Measures'!FL104","v":0},{"$f":"'2. Conservation Measures'!FM104","v":0},{"$f":"'2. Conservation Measures'!FN104","v":0},{"$f":"'2. Conservation Measures'!FO104","v":0},{"$f":"'2. Conservation Measures'!FP104","v":0},{"$f":"'2. Conservation Measures'!FQ104","v":0},{"$f":"'2. Conservation Measures'!FR104","v":0},{"$f":"'2. Conservation Measures'!FS104","v":0},{"$f":"'2. Conservation Measures'!FT104","v":0},{"$f":"'2. Conservation Measures'!FU104","v":0},{"$f":"'2. Conservation Measures'!FV104","v":0},{"$f":"'2. Conservation Measures'!FW104","v":0},{"$f":"'2. Conservation Measures'!FX104","v":0},{"$f":"'2. Conservation Measures'!FY104","v":0},{"$f":"'2. Conservation Measures'!FZ104","v":0},{"$f":"'2. Conservation Measures'!GA104","v":0},{"$f":"'2. Conservation Measures'!GB104","v":0},{"$f":"'2. Conservation Measures'!GC104","v":0},{"$f":"'2. Conservation Measures'!GD104","v":0},{"$f":"'2. Conservation Measures'!GE104","v":0},{"$f":"'2. Conservation Measures'!GF104","v":0},{"$f":"'2. Conservation Measures'!GG104","v":0},{"$f":"'2. Conservation Measures'!GH104","v":0},{"$f":"'2. Conservation Measures'!GI104","v":0},{"$f":"'2. Conservation Measures'!GJ104","v":0},{"$f":"'2. Conservation Measures'!GK104","v":0},{"$f":"'2. Conservation Measures'!GL104","v":0},{"$f":"'2. Conservation Measures'!GM104","v":0},{"$f":"'2. Conservation Measures'!GN104","v":0},null,{"$f":"'2. Conservation Measures'!GP104","v":0},{"$f":"'2. Conservation Measures'!GQ104","v":0},{"$f":"'2. Conservation Measures'!GR104","v":0},{"$f":"'2. Conservation Measures'!GS104","v":0},{"$f":"'2. Conservation Measures'!GT104","v":0},{"$f":"'2. Conservation Measures'!GU104","v":0},{"$f":"'2. Conservation Measures'!GV104","v":0},{"$f":"'2. Conservation Measures'!GW104","v":0},{"$f":"'2. Conservation Measures'!GX104","v":0},{"$f":"'2. Conservation Measures'!GY104","v":0},{"$f":"'2. Conservation Measures'!GZ104","v":0},{"$f":"'2. Conservation Measures'!HA104","v":0},{"$f":"'2. Conservation Measures'!HB104","v":0},{"$f":"'2. Conservation Measures'!HC104","v":0},{"$f":"'2. Conservation Measures'!HD104","v":0},{"$f":"'2. Conservation Measures'!HE104","v":0},{"$f":"'2. Conservation Measures'!HF104","v":0},{"$f":"'2. Conservation Measures'!HG104","v":0},{"$f":"'2. Conservation Measures'!HH104","v":0},{"$f":"'2. Conservation Measures'!HI104","v":0},{"$f":"'2. Conservation Measures'!HJ104","v":0},{"$f":"'2. Conservation Measures'!HK104","v":0},{"$f":"'2. Conservation Measures'!HL104","v":0},{"$f":"'2. Conservation Measures'!HM104","v":0},{"$f":"'2. Conservation Measures'!HN104","v":0},{"$f":"'2. Conservation Measures'!HO104","v":0},{"$f":"'2. Conservation Measures'!HP104","v":0},{"$f":"'2. Conservation Measures'!HQ104","v":0},{"$f":"'2. Conservation Measures'!HR104","v":0},{"$f":"'2. Conservation Measures'!HS104","v":0},{"$f":"'2. Conservation Measures'!HT104","v":0},{"$f":"'2. Conservation Measures'!HU104","v":0},{"$f":"'2. Conservation Measures'!HV104","v":0},{"$f":"'2. Conservation Measures'!HW104","v":0},{"$f":"'2. Conservation Measures'!HX104","v":0},{"$f":"'2. Conservation Measures'!HY104","v":0},{"$f":"'2. Conservation Measures'!HZ104","v":0},{"$f":"'2. Conservation Measures'!IA104","v":0},{"$f":"'2. Conservation Measures'!IB104","v":0},{"$f":"'2. Conservation Measures'!IC104","v":0},{"$f":"'2. Conservation Measures'!ID104","v":0},{"$f":"'2. Conservation Measures'!IE104","v":0},{"$f":"'2. Conservation Measures'!IF104","v":0},{"$f":"'2. Conservation Measures'!IG104","v":0},{"$f":"'2. Conservation Measures'!IH104","v":0},{"$f":"'2. Conservation Measures'!II104","v":0},{"$f":"'2. Conservation Measures'!IJ104","v":0},{"$f":"'2. Conservation Measures'!IK104","v":0},{"$f":"'2. Conservation Measures'!IL104","v":0},{"$f":"'2. Conservation Measures'!IM104","v":0},{"$f":"'2. Conservation Measures'!IN104","v":0},null,{"$f":"'2. Conservation Measures'!IP104","v":0},{"$f":"'2. Conservation Measures'!IQ104","v":0},{"$f":"'2. Conservation Measures'!IR104","v":0},{"$f":"'2. Conservation Measures'!IS104","v":0},{"$f":"'2. Conservation Measures'!IT104","v":0},{"$f":"'2. Conservation Measures'!IU104","v":0},{"$f":"'2. Conservation Measures'!IV104","v":0},{"$f":"'2. Conservation Measures'!IW104","v":0},{"$f":"'2. Conservation Measures'!IX104","v":0},{"$f":"'2. Conservation Measures'!IY104","v":0},{"$f":"'2. Conservation Measures'!IZ104","v":0},{"$f":"'2. Conservation Measures'!JA104","v":0},{"$f":"'2. Conservation Measures'!JB104","v":0},{"$f":"'2. Conservation Measures'!JC104","v":0},{"$f":"'2. Conservation Measures'!JD104","v":0},{"$f":"'2. Conservation Measures'!JE104","v":0},{"$f":"'2. Conservation Measures'!JF104","v":0},{"$f":"'2. Conservation Measures'!JG104","v":0},{"$f":"'2. Conservation Measures'!JH104","v":0},{"$f":"'2. Conservation Measures'!JI104","v":0},{"$f":"'2. Conservation Measures'!JJ104","v":0},{"$f":"'2. Conservation Measures'!JK104","v":0},{"$f":"'2. Conservation Measures'!JL104","v":0},{"$f":"'2. Conservation Measures'!JM104","v":0},{"$f":"'2. Conservation Measures'!JN104","v":0},{"$f":"'2. Conservation Measures'!JO104","v":0},{"$f":"'2. Conservation Measures'!JP104","v":0},{"$f":"'2. Conservation Measures'!JQ104","v":0},{"$f":"'2. Conservation Measures'!JR104","v":0},{"$f":"'2. Conservation Measures'!JS104","v":0},{"$f":"'2. Conservation Measures'!JT104","v":0},{"$f":"'2. Conservation Measures'!JU104","v":0},{"$f":"'2. Conservation Measures'!JV104","v":0},{"$f":"'2. Conservation Measures'!JW104","v":0},{"$f":"'2. Conservation Measures'!JX104","v":0},{"$f":"'2. Conservation Measures'!JY104","v":0},{"$f":"'2. Conservation Measures'!JZ104","v":0},{"$f":"'2. Conservation Measures'!KA104","v":0},{"$f":"'2. Conservation Measures'!KB104","v":0},{"$f":"'2. Conservation Measures'!KC104","v":0},{"$f":"'2. Conservation Measures'!KD104","v":0},{"$f":"'2. Conservation Measures'!KE104","v":0},{"$f":"'2. Conservation Measures'!KF104","v":0},{"$f":"'2. Conservation Measures'!KG104","v":0},{"$f":"'2. Conservation Measures'!KH104","v":0},{"$f":"'2. Conservation Measures'!KI104","v":0},{"$f":"'2. Conservation Measures'!KJ104","v":0},{"$f":"'2. Conservation Measures'!KK104","v":0},{"$f":"'2. Conservation Measures'!KL104","v":0},{"$f":"'2. Conservation Measures'!KM104","v":0},{"$f":"'2. Conservation Measures'!KN104","v":0}]
[null,{"$f":"'2. Conservation Measures'!B105","v":"USR-MF-20"},{"$f":"'2. Conservation Measures'!C105","v":0},{"$f":"'2. Conservation Measures'!D105","v":"N"},null,{"$f":"'2. Conservation Measures'!AA105","v":0},null,{"$f":"'2. Conservation Measures'!AO105","v":0},{"$f":"'2. Conservation Measures'!AP105","v":0},{"$f":"'2. Conservation Measures'!AQ105","v":0},{"$f":"'2. Conservation Measures'!AR105","v":0},{"$f":"'2. Conservation Measures'!AS105","v":0},{"$f":"'2. Conservation Measures'!AT105","v":0},{"$f":"'2. Conservation Measures'!AU105","v":0},{"$f":"'2. Conservation Measures'!AV105","v":0},{"$f":"'2. Conservation Measures'!AW105","v":0},{"$f":"'2. Conservation Measures'!AX105","v":0},{"$f":"'2. Conservation Measures'!AY105","v":0},{"$f":"'2. Conservation Measures'!AZ105","v":0},{"$f":"'2. Conservation Measures'!BA105","v":0},{"$f":"'2. Conservation Measures'!BB105","v":0},{"$f":"'2. Conservation Measures'!BC105","v":0},{"$f":"'2. Conservation Measures'!BD105","v":0},{"$f":"'2. Conservation Measures'!BE105","v":0},{"$f":"'2. Conservation Measures'!BF105","v":0},{"$f":"'2. Conservation Measures'!BG105","v":0},{"$f":"'2. Conservation Measures'!BH105","v":0},{"$f":"'2. Conservation Measures'!BI105","v":0},{"$f":"'2. Conservation Measures'!BJ105","v":0},{"$f":"'2. Conservation Measures'!BK105","v":0},{"$f":"'2. Conservation Measures'!BL105","v":0},{"$f":"'2. Conservation Measures'!BM105","v":0},{"$f":"'2. Conservation Measures'!BN105","v":0},{"$f":"'2. Conservation Measures'!BO105","v":0},{"$f":"'2. Conservation Measures'!BP105","v":0},{"$f":"'2. Conservation Measures'!BQ105","v":0},{"$f":"'2. Conservation Measures'!BR105","v":0},{"$f":"'2. Conservation Measures'!BS105","v":0},{"$f":"'2. Conservation Measures'!BT105","v":0},{"$f":"'2. Conservation Measures'!BU105","v":0},{"$f":"'2. Conservation Measures'!BV105","v":0},{"$f":"'2. Conservation Measures'!BW105","v":0},{"$f":"'2. Conservation Measures'!BX105","v":0},{"$f":"'2. Conservation Measures'!BY105","v":0},{"$f":"'2. Conservation Measures'!BZ105","v":0},{"$f":"'2. Conservation Measures'!CA105","v":0},{"$f":"'2. Conservation Measures'!CB105","v":0},{"$f":"'2. Conservation Measures'!CC105","v":0},{"$f":"'2. Conservation Measures'!CD105","v":0},{"$f":"'2. Conservation Measures'!CE105","v":0},{"$f":"'2. Conservation Measures'!CF105","v":0},{"$f":"'2. Conservation Measures'!CG105","v":0},{"$f":"'2. Conservation Measures'!CH105","v":0},{"$f":"'2. Conservation Measures'!CI105","v":0},{"$f":"'2. Conservation Measures'!CJ105","v":0},{"$f":"'2. Conservation Measures'!CK105","v":0},{"$f":"'2. Conservation Measures'!CL105","v":0},{"$f":"'2. Conservation Measures'!CM105","v":0},null,{"$f":"'2. Conservation Measures'!CO105","v":0},{"$f":"'2. Conservation Measures'!CP105","v":0},{"$f":"'2. Conservation Measures'!CQ105","v":0},{"$f":"'2. Conservation Measures'!CR105","v":0},{"$f":"'2. Conservation Measures'!CS105","v":0},{"$f":"'2. Conservation Measures'!CT105","v":0},{"$f":"'2. Conservation Measures'!CU105","v":0},{"$f":"'2. Conservation Measures'!CV105","v":0},{"$f":"'2. Conservation Measures'!CW105","v":0},{"$f":"'2. Conservation Measures'!CX105","v":0},{"$f":"'2. Conservation Measures'!CY105","v":0},{"$f":"'2. Conservation Measures'!CZ105","v":0},{"$f":"'2. Conservation Measures'!DA105","v":0},{"$f":"'2. Conservation Measures'!DB105","v":0},{"$f":"'2. Conservation Measures'!DC105","v":0},{"$f":"'2. Conservation Measures'!DD105","v":0},{"$f":"'2. Conservation Measures'!DE105","v":0},{"$f":"'2. Conservation Measures'!DF105","v":0},{"$f":"'2. Conservation Measures'!DG105","v":0},{"$f":"'2. Conservation Measures'!DH105","v":0},{"$f":"'2. Conservation Measures'!DI105","v":0},{"$f":"'2. Conservation Measures'!DJ105","v":0},{"$f":"'2. Conservation Measures'!DK105","v":0},{"$f":"'2. Conservation Measures'!DL105","v":0},{"$f":"'2. Conservation Measures'!DM105","v":0},{"$f":"'2. Conservation Measures'!DN105","v":0},{"$f":"'2. Conservation Measures'!DO105","v":0},{"$f":"'2. Conservation Measures'!DP105","v":0},{"$f":"'2. Conservation Measures'!DQ105","v":0},{"$f":"'2. Conservation Measures'!DR105","v":0},{"$f":"'2. Conservation Measures'!DS105","v":0},{"$f":"'2. Conservation Measures'!DT105","v":0},{"$f":"'2. Conservation Measures'!DU105","v":0},{"$f":"'2. Conservation Measures'!DV105","v":0},{"$f":"'2. Conservation Measures'!DW105","v":0},{"$f":"'2. Conservation Measures'!DX105","v":0},{"$f":"'2. Conservation Measures'!DY105","v":0},{"$f":"'2. Conservation Measures'!DZ105","v":0},{"$f":"'2. Conservation Measures'!EA105","v":0},{"$f":"'2. Conservation Measures'!EB105","v":0},{"$f":"'2. Conservation Measures'!EC105","v":0},{"$f":"'2. Conservation Measures'!ED105","v":0},{"$f":"'2. Conservation Measures'!EE105","v":0},{"$f":"'2. Conservation Measures'!EF105","v":0},{"$f":"'2. Conservation Measures'!EG105","v":0},{"$f":"'2. Conservation Measures'!EH105","v":0},{"$f":"'2. Conservation Measures'!EI105","v":0},{"$f":"'2. Conservation Measures'!EJ105","v":0},{"$f":"'2. Conservation Measures'!EK105","v":0},{"$f":"'2. Conservation Measures'!EL105","v":0},{"$f":"'2. Conservation Measures'!EM105","v":0},null,{"$f":"'2. Conservation Measures'!KP105","v":0},{"$f":"'2. Conservation Measures'!KQ105","v":0},{"$f":"'2. Conservation Measures'!KR105","v":0},{"$f":"'2. Conservation Measures'!KS105","v":0},{"$f":"'2. Conservation Measures'!KT105","v":0},{"$f":"'2. Conservation Measures'!KU105","v":0},{"$f":"'2. Conservation Measures'!KV105","v":0},{"$f":"'2. Conservation Measures'!KW105","v":0},{"$f":"'2. Conservation Measures'!KX105","v":0},{"$f":"'2. Conservation Measures'!KY105","v":0},{"$f":"'2. Conservation Measures'!KZ105","v":0},{"$f":"'2. Conservation Measures'!LA105","v":0},{"$f":"'2. Conservation Measures'!LB105","v":0},{"$f":"'2. Conservation Measures'!LC105","v":0},{"$f":"'2. Conservation Measures'!LD105","v":0},{"$f":"'2. Conservation Measures'!LE105","v":0},{"$f":"'2. Conservation Measures'!LF105","v":0},{"$f":"'2. Conservation Measures'!LG105","v":0},{"$f":"'2. Conservation Measures'!LH105","v":0},{"$f":"'2. Conservation Measures'!LI105","v":0},{"$f":"'2. Conservation Measures'!LJ105","v":0},{"$f":"'2. Conservation Measures'!LK105","v":0},{"$f":"'2. Conservation Measures'!LL105","v":0},{"$f":"'2. Conservation Measures'!LM105","v":0},{"$f":"'2. Conservation Measures'!LN105","v":0},{"$f":"'2. Conservation Measures'!LO105","v":0},{"$f":"'2. Conservation Measures'!LP105","v":0},{"$f":"'2. Conservation Measures'!LQ105","v":0},{"$f":"'2. Conservation Measures'!LR105","v":0},{"$f":"'2. Conservation Measures'!LS105","v":0},{"$f":"'2. Conservation Measures'!LT105","v":0},{"$f":"'2. Conservation Measures'!LU105","v":0},{"$f":"'2. Conservation Measures'!LV105","v":0},{"$f":"'2. Conservation Measures'!LW105","v":0},{"$f":"'2. Conservation Measures'!LX105","v":0},{"$f":"'2. Conservation Measures'!LY105","v":0},{"$f":"'2. Conservation Measures'!LZ105","v":0},{"$f":"'2. Conservation Measures'!MA105","v":0},{"$f":"'2. Conservation Measures'!MB105","v":0},{"$f":"'2. Conservation Measures'!MC105","v":0},{"$f":"'2. Conservation Measures'!MD105","v":0},{"$f":"'2. Conservation Measures'!ME105","v":0},{"$f":"'2. Conservation Measures'!MF105","v":0},{"$f":"'2. Conservation Measures'!MG105","v":0},{"$f":"'2. Conservation Measures'!MH105","v":0},{"$f":"'2. Conservation Measures'!MI105","v":0},{"$f":"'2. Conservation Measures'!MJ105","v":0},{"$f":"'2. Conservation Measures'!MK105","v":0},{"$f":"'2. Conservation Measures'!ML105","v":0},{"$f":"'2. Conservation Measures'!MM105","v":0},{"$f":"'2. Conservation Measures'!MN105","v":0},null,{"$f":"'2. Conservation Measures'!EP105","v":0},{"$f":"'2. Conservation Measures'!EQ105","v":0},{"$f":"'2. Conservation Measures'!ER105","v":0},{"$f":"'2. Conservation Measures'!ES105","v":0},{"$f":"'2. Conservation Measures'!ET105","v":0},{"$f":"'2. Conservation Measures'!EU105","v":0},{"$f":"'2. Conservation Measures'!EV105","v":0},{"$f":"'2. Conservation Measures'!EW105","v":0},{"$f":"'2. Conservation Measures'!EX105","v":0},{"$f":"'2. Conservation Measures'!EY105","v":0},{"$f":"'2. Conservation Measures'!EZ105","v":0},{"$f":"'2. Conservation Measures'!FA105","v":0},{"$f":"'2. Conservation Measures'!FB105","v":0},{"$f":"'2. Conservation Measures'!FC105","v":0},{"$f":"'2. Conservation Measures'!FD105","v":0},{"$f":"'2. Conservation Measures'!FE105","v":0},{"$f":"'2. Conservation Measures'!FF105","v":0},{"$f":"'2. Conservation Measures'!FG105","v":0},{"$f":"'2. Conservation Measures'!FH105","v":0},{"$f":"'2. Conservation Measures'!FI105","v":0},{"$f":"'2. Conservation Measures'!FJ105","v":0},{"$f":"'2. Conservation Measures'!FK105","v":0},{"$f":"'2. Conservation Measures'!FL105","v":0},{"$f":"'2. Conservation Measures'!FM105","v":0},{"$f":"'2. Conservation Measures'!FN105","v":0},{"$f":"'2. Conservation Measures'!FO105","v":0},{"$f":"'2. Conservation Measures'!FP105","v":0},{"$f":"'2. Conservation Measures'!FQ105","v":0},{"$f":"'2. Conservation Measures'!FR105","v":0},{"$f":"'2. Conservation Measures'!FS105","v":0},{"$f":"'2. Conservation Measures'!FT105","v":0},{"$f":"'2. Conservation Measures'!FU105","v":0},{"$f":"'2. Conservation Measures'!FV105","v":0},{"$f":"'2. Conservation Measures'!FW105","v":0},{"$f":"'2. Conservation Measures'!FX105","v":0},{"$f":"'2. Conservation Measures'!FY105","v":0},{"$f":"'2. Conservation Measures'!FZ105","v":0},{"$f":"'2. Conservation Measures'!GA105","v":0},{"$f":"'2. Conservation Measures'!GB105","v":0},{"$f":"'2. Conservation Measures'!GC105","v":0},{"$f":"'2. Conservation Measures'!GD105","v":0},{"$f":"'2. Conservation Measures'!GE105","v":0},{"$f":"'2. Conservation Measures'!GF105","v":0},{"$f":"'2. Conservation Measures'!GG105","v":0},{"$f":"'2. Conservation Measures'!GH105","v":0},{"$f":"'2. Conservation Measures'!GI105","v":0},{"$f":"'2. Conservation Measures'!GJ105","v":0},{"$f":"'2. Conservation Measures'!GK105","v":0},{"$f":"'2. Conservation Measures'!GL105","v":0},{"$f":"'2. Conservation Measures'!GM105","v":0},{"$f":"'2. Conservation Measures'!GN105","v":0},null,{"$f":"'2. Conservation Measures'!GP105","v":0},{"$f":"'2. Conservation Measures'!GQ105","v":0},{"$f":"'2. Conservation Measures'!GR105","v":0},{"$f":"'2. Conservation Measures'!GS105","v":0},{"$f":"'2. Conservation Measures'!GT105","v":0},{"$f":"'2. Conservation Measures'!GU105","v":0},{"$f":"'2. Conservation Measures'!GV105","v":0},{"$f":"'2. Conservation Measures'!GW105","v":0},{"$f":"'2. Conservation Measures'!GX105","v":0},{"$f":"'2. Conservation Measures'!GY105","v":0},{"$f":"'2. Conservation Measures'!GZ105","v":0},{"$f":"'2. Conservation Measures'!HA105","v":0},{"$f":"'2. Conservation Measures'!HB105","v":0},{"$f":"'2. Conservation Measures'!HC105","v":0},{"$f":"'2. Conservation Measures'!HD105","v":0},{"$f":"'2. Conservation Measures'!HE105","v":0},{"$f":"'2. Conservation Measures'!HF105","v":0},{"$f":"'2. Conservation Measures'!HG105","v":0},{"$f":"'2. Conservation Measures'!HH105","v":0},{"$f":"'2. Conservation Measures'!HI105","v":0},{"$f":"'2. Conservation Measures'!HJ105","v":0},{"$f":"'2. Conservation Measures'!HK105","v":0},{"$f":"'2. Conservation Measures'!HL105","v":0},{"$f":"'2. Conservation Measures'!HM105","v":0},{"$f":"'2. Conservation Measures'!HN105","v":0},{"$f":"'2. Conservation Measures'!HO105","v":0},{"$f":"'2. Conservation Measures'!HP105","v":0},{"$f":"'2. Conservation Measures'!HQ105","v":0},{"$f":"'2. Conservation Measures'!HR105","v":0},{"$f":"'2. Conservation Measures'!HS105","v":0},{"$f":"'2. Conservation Measures'!HT105","v":0},{"$f":"'2. Conservation Measures'!HU105","v":0},{"$f":"'2. Conservation Measures'!HV105","v":0},{"$f":"'2. Conservation Measures'!HW105","v":0},{"$f":"'2. Conservation Measures'!HX105","v":0},{"$f":"'2. Conservation Measures'!HY105","v":0},{"$f":"'2. Conservation Measures'!HZ105","v":0},{"$f":"'2. Conservation Measures'!IA105","v":0},{"$f":"'2. Conservation Measures'!IB105","v":0},{"$f":"'2. Conservation Measures'!IC105","v":0},{"$f":"'2. Conservation Measures'!ID105","v":0},{"$f":"'2. Conservation Measures'!IE105","v":0},{"$f":"'2. Conservation Measures'!IF105","v":0},{"$f":"'2. Conservation Measures'!IG105","v":0},{"$f":"'2. Conservation Measures'!IH105","v":0},{"$f":"'2. Conservation Measures'!II105","v":0},{"$f":"'2. Conservation Measures'!IJ105","v":0},{"$f":"'2. Conservation Measures'!IK105","v":0},{"$f":"'2. Conservation Measures'!IL105","v":0},{"$f":"'2. Conservation Measures'!IM105","v":0},{"$f":"'2. Conservation Measures'!IN105","v":0},null,{"$f":"'2. Conservation Measures'!IP105","v":0},{"$f":"'2. Conservation Measures'!IQ105","v":0},{"$f":"'2. Conservation Measures'!IR105","v":0},{"$f":"'2. Conservation Measures'!IS105","v":0},{"$f":"'2. Conservation Measures'!IT105","v":0},{"$f":"'2. Conservation Measures'!IU105","v":0},{"$f":"'2. Conservation Measures'!IV105","v":0},{"$f":"'2. Conservation Measures'!IW105","v":0},{"$f":"'2. Conservation Measures'!IX105","v":0},{"$f":"'2. Conservation Measures'!IY105","v":0},{"$f":"'2. Conservation Measures'!IZ105","v":0},{"$f":"'2. Conservation Measures'!JA105","v":0},{"$f":"'2. Conservation Measures'!JB105","v":0},{"$f":"'2. Conservation Measures'!JC105","v":0},{"$f":"'2. Conservation Measures'!JD105","v":0},{"$f":"'2. Conservation Measures'!JE105","v":0},{"$f":"'2. Conservation Measures'!JF105","v":0},{"$f":"'2. Conservation Measures'!JG105","v":0},{"$f":"'2. Conservation Measures'!JH105","v":0},{"$f":"'2. Conservation Measures'!JI105","v":0},{"$f":"'2. Conservation Measures'!JJ105","v":0},{"$f":"'2. Conservation Measures'!JK105","v":0},{"$f":"'2. Conservation Measures'!JL105","v":0},{"$f":"'2. Conservation Measures'!JM105","v":0},{"$f":"'2. Conservation Measures'!JN105","v":0},{"$f":"'2. Conservation Measures'!JO105","v":0},{"$f":"'2. Conservation Measures'!JP105","v":0},{"$f":"'2. Conservation Measures'!JQ105","v":0},{"$f":"'2. Conservation Measures'!JR105","v":0},{"$f":"'2. Conservation Measures'!JS105","v":0},{"$f":"'2. Conservation Measures'!JT105","v":0},{"$f":"'2. Conservation Measures'!JU105","v":0},{"$f":"'2. Conservation Measures'!JV105","v":0},{"$f":"'2. Conservation Measures'!JW105","v":0},{"$f":"'2. Conservation Measures'!JX105","v":0},{"$f":"'2. Conservation Measures'!JY105","v":0},{"$f":"'2. Conservation Measures'!JZ105","v":0},{"$f":"'2. Conservation Measures'!KA105","v":0},{"$f":"'2. Conservation Measures'!KB105","v":0},{"$f":"'2. Conservation Measures'!KC105","v":0},{"$f":"'2. Conservation Measures'!KD105","v":0},{"$f":"'2. Conservation Measures'!KE105","v":0},{"$f":"'2. Conservation Measures'!KF105","v":0},{"$f":"'2. Conservation Measures'!KG105","v":0},{"$f":"'2. Conservation Measures'!KH105","v":0},{"$f":"'2. Conservation Measures'!KI105","v":0},{"$f":"'2. Conservation Measures'!KJ105","v":0},{"$f":"'2. Conservation Measures'!KK105","v":0},{"$f":"'2. Conservation Measures'!KL105","v":0},{"$f":"'2. Conservation Measures'!KM105","v":0},{"$f":"'2. Conservation Measures'!KN105","v":0}]
[null,"Subtotal",null,null,null,{"$f":"'2. Conservation Measures'!AA157","v":{"$error":"#VALUE!"}},null,null,null,null,null,null,null,null,null,null,null,null,null,null,null,null,null,null,null,null,null,null,null,null,null,null,null,null,null,null,null,null,null,null,null,null,null,null,null,null,null,null,null,null,null,null,null,null,null,null,null,null,null,{"$f":"SUM(BH53:BH81)","v":{"$error":"#VALUE!"}},{"$f":"SUM(BI53:BI81)","v":{"$error":"#VALUE!"}},{"$f":"SUM(BJ53:BJ81)","v":{"$error":"#VALUE!"}},{"$f":"SUM(BK53:BK81)","v":{"$error":"#VALUE!"}},{"$f":"SUM(BL53:BL81)","v":{"$error":"#VALUE!"}},{"$f":"SUM(BM53:BM81)","v":{"$error":"#VALUE!"}},{"$f":"SUM(BN53:BN81)","v":{"$error":"#VALUE!"}},{"$f":"SUM(BO53:BO81)","v":{"$error":"#VALUE!"}},{"$f":"SUM(BP53:BP81)","v":{"$error":"#VALUE!"}},{"$f":"SUM(BQ53:BQ81)","v":{"$error":"#VALUE!"}},{"$f":"SUM(BR53:BR81)","v":{"$error":"#VALUE!"}},{"$f":"SUM(BS53:BS81)","v":{"$error":"#VALUE!"}},{"$f":"SUM(BT53:BT81)","v":{"$error":"#VALUE!"}},{"$f":"SUM(BU53:BU81)","v":{"$error":"#VALUE!"}},{"$f":"SUM(BV53:BV81)","v":{"$error":"#VALUE!"}},{"$f":"SUM(BW53:BW81)","v":{"$error":"#VALUE!"}},{"$f":"SUM(BX53:BX81)","v":{"$error":"#VALUE!"}},{"$f":"SUM(BY53:BY81)","v":{"$error":"#VALUE!"}},{"$f":"SUM(BZ53:BZ81)","v":{"$error":"#VALUE!"}},{"$f":"SUM(CA53:CA81)","v":{"$error":"#VALUE!"}},{"$f":"SUM(CB53:CB81)","v":{"$error":"#VALUE!"}},{"$f":"SUM(CC53:CC81)","v":{"$error":"#VALUE!"}},{"$f":"SUM(CD53:CD81)","v":{"$error":"#VALUE!"}},{"$f":"SUM(CE53:CE81)","v":{"$error":"#VALUE!"}},{"$f":"SUM(CF53:CF81)","v":{"$error":"#VALUE!"}},{"$f":"SUM(CG53:CG81)","v":{"$error":"#VALUE!"}},{"$f":"SUM(CH53:CH81)","v":{"$error":"#VALUE!"}},{"$f":"SUM(CI53:CI81)","v":{"$error":"#VALUE!"}},{"$f":"SUM(CJ53:CJ81)","v":{"$error":"#VALUE!"}},{"$f":"SUM(CK53:CK81)","v":{"$error":"#VALUE!"}},{"$f":"SUM(CL53:CL81)","v":{"$error":"#VALUE!"}},{"$f":"SUM(CM53:CM81)","v":{"$error":"#VALUE!"}},{"$f":"SUM(CN53:CN81)","v":{"$error":"#VALUE!"}},{"$f":"SUM(CO53:CO81)","v":{"$error":"#VALUE!"}},{"$f":"SUM(CP53:CP81)","v":{"$error":"#VALUE!"}},{"$f":"SUM(CQ53:CQ81)","v":{"$error":"#VALUE!"}},{"$f":"SUM(CR53:CR81)","v":{"$error":"#VALUE!"}},{"$f":"SUM(CS53:CS81)","v":{"$error":"#VALUE!"}},{"$f":"SUM(CT53:CT81)","v":{"$error":"#VALUE!"}},{"$f":"SUM(CU53:CU81)","v":{"$error":"#VALUE!"}},{"$f":"SUM(CV53:CV81)","v":{"$error":"#VALUE!"}},{"$f":"SUM(CW53:CW81)","v":{"$error":"#VALUE!"}},{"$f":"SUM(CX53:CX81)","v":{"$error":"#VALUE!"}},{"$f":"SUM(CY53:CY81)","v":{"$error":"#VALUE!"}},{"$f":"SUM(CZ53:CZ81)","v":{"$error":"#VALUE!"}},{"$f":"SUM(DA53:DA81)","v":{"$error":"#VALUE!"}},{"$f":"SUM(DB53:DB81)","v":{"$error":"#VALUE!"}},{"$f":"SUM(DC53:DC81)","v":{"$error":"#VALUE!"}},{"$f":"SUM(DD53:DD81)","v":{"$error":"#VALUE!"}},{"$f":"SUM(DE53:DE81)","v":{"$error":"#VALUE!"}},{"$f":"SUM(DF53:DF81)","v":{"$error":"#VALUE!"}},null,{"$f":"SUM(DH53:DH81)","v":{"$error":"#N/A"}},{"$f":"SUM(DI53:DI81)","v":{"$error":"#N/A"}},{"$error":"#N/A"},{"$error":"#N/A"},{"$error":"#N/A"},{"$error":"#N/A"},{"$error":"#N/A"},{"$error":"#N/A"},{"$error":"#N/A"},{"$error":"#N/A"},{"$error":"#N/A"},{"$error":"#N/A"},{"$error":"#N/A"},{"$error":"#N/A"},{"$error":"#N/A"},{"$error":"#N/A"},{"$error":"#N/A"},{"$error":"#N/A"},{"$error":"#N/A"},{"$error":"#N/A"},{"$error":"#N/A"},{"$error":"#N/A"},{"$error":"#N/A"},{"$error":"#N/A"},{"$error":"#N/A"},{"$error":"#N/A"},{"$error":"#N/A"},{"$error":"#N/A"},{"$error":"#N/A"},{"$error":"#N/A"},{"$error":"#N/A"},{"$error":"#N/A"},{"$error":"#N/A"},{"$error":"#N/A"},{"$error":"#N/A"},{"$error":"#N/A"},{"$error":"#N/A"},{"$error":"#N/A"},{"$error":"#N/A"},{"$error":"#N/A"},{"$error":"#N/A"},{"$error":"#N/A"},{"$error":"#N/A"},{"$error":"#N/A"},{"$error":"#N/A"},{"$error":"#N/A"},{"$error":"#N/A"},{"$error":"#N/A"},{"$error":"#N/A"},{"$error":"#N/A"},{"$error":"#N/A"},null,{"$f":"SUM(FH53:FH81)","v":{"$error":"#N/A"}},{"$f":"SUM(FI53:FI81)","v":{"$error":"#N/A"}},{"$f":"SUM(FJ53:FJ81)","v":{"$error":"#N/A"}},{"$f":"SUM(FK53:FK81)","v":{"$error":"#N/A"}},{"$f":"SUM(FL53:FL81)","v":{"$error":"#N/A"}},{"$f":"SUM(FM53:FM81)","v":{"$error":"#N/A"}},{"$f":"SUM(FN53:FN81)","v":{"$error":"#N/A"}},{"$f":"SUM(FO53:FO81)","v":{"$error":"#N/A"}},{"$f":"SUM(FP53:FP81)","v":{"$error":"#N/A"}},{"$f":"SUM(FQ53:FQ81)","v":{"$error":"#N/A"}},{"$f":"SUM(FR53:FR81)","v":{"$error":"#N/A"}},{"$f":"SUM(FS53:FS81)","v":{"$error":"#N/A"}},{"$f":"SUM(FT53:FT81)","v":{"$error":"#N/A"}},{"$f":"SUM(FU53:FU81)","v":{"$error":"#N/A"}},{"$f":"SUM(FV53:FV81)","v":{"$error":"#N/A"}},{"$f":"SUM(FW53:FW81)","v":{"$error":"#N/A"}},{"$f":"SUM(FX53:FX81)","v":{"$error":"#N/A"}},{"$f":"SUM(FY53:FY81)","v":{"$error":"#N/A"}},{"$f":"SUM(FZ53:FZ81)","v":{"$error":"#N/A"}},{"$f":"SUM(GA53:GA81)","v":{"$error":"#N/A"}},{"$f":"SUM(GB53:GB81)","v":{"$error":"#N/A"}},{"$f":"SUM(GC53:GC81)","v":{"$error":"#N/A"}},{"$f":"SUM(GD53:GD81)","v":{"$error":"#N/A"}},{"$f":"SUM(GE53:GE81)","v":{"$error":"#N/A"}},{"$f":"SUM(GF53:GF81)","v":{"$error":"#N/A"}},{"$f":"SUM(GG53:GG81)","v":{"$error":"#N/A"}},{"$f":"SUM(GH53:GH81)","v":{"$error":"#N/A"}},{"$f":"SUM(GI53:GI81)","v":{"$error":"#N/A"}},{"$f":"SUM(GJ53:GJ81)","v":{"$error":"#N/A"}},{"$f":"SUM(GK53:GK81)","v":{"$error":"#N/A"}},{"$f":"SUM(GL53:GL81)","v":{"$error":"#N/A"}},{"$f":"SUM(GM53:GM81)","v":{"$error":"#N/A"}},{"$f":"SUM(GN53:GN81)","v":{"$error":"#N/A"}},{"$f":"SUM(GO53:GO81)","v":{"$error":"#N/A"}},{"$f":"SUM(GP53:GP81)","v":{"$error":"#N/A"}},{"$f":"SUM(GQ53:GQ81)","v":{"$error":"#N/A"}},{"$f":"SUM(GR53:GR81)","v":{"$error":"#N/A"}},{"$f":"SUM(GS53:GS81)","v":{"$error":"#N/A"}},{"$f":"SUM(GT53:GT81)","v":{"$error":"#N/A"}},{"$f":"SUM(GU53:GU81)","v":{"$error":"#N/A"}},{"$f":"SUM(GV53:GV81)","v":{"$error":"#N/A"}},{"$f":"SUM(GW53:GW81)","v":{"$error":"#N/A"}},{"$f":"SUM(GX53:GX81)","v":{"$error":"#N/A"}},{"$f":"SUM(GY53:GY81)","v":{"$error":"#N/A"}},{"$f":"SUM(GZ53:GZ81)","v":{"$error":"#N/A"}},{"$f":"SUM(HA53:HA81)","v":{"$error":"#N/A"}},{"$f":"SUM(HB53:HB81)","v":{"$error":"#N/A"}},{"$f":"SUM(HC53:HC81)","v":{"$error":"#N/A"}},{"$f":"SUM(HD53:HD81)","v":{"$error":"#N/A"}},{"$f":"SUM(HE53:HE81)","v":{"$error":"#N/A"}},{"$f":"SUM(HF53:HF81)","v":{"$error":"#N/A"}},null,{"$f":"SUM(HH53:HH81)","v":{"$error":"#N/A"}},{"$f":"SUM(HI53:HI81)","v":{"$error":"#N/A"}},{"$f":"SUM(HJ53:HJ81)","v":{"$error":"#N/A"}},{"$f":"SUM(HK53:HK81)","v":{"$error":"#N/A"}},{"$f":"SUM(HL53:HL81)","v":{"$error":"#N/A"}},{"$f":"SUM(HM53:HM81)","v":{"$error":"#N/A"}},{"$f":"SUM(HN53:HN81)","v":{"$error":"#N/A"}},{"$f":"SUM(HO53:HO81)","v":{"$error":"#N/A"}},{"$f":"SUM(HP53:HP81)","v":{"$error":"#N/A"}},{"$f":"SUM(HQ53:HQ81)","v":{"$error":"#N/A"}},{"$f":"SUM(HR53:HR81)","v":{"$error":"#N/A"}},{"$f":"SUM(HS53:HS81)","v":{"$error":"#N/A"}},{"$f":"SUM(HT53:HT81)","v":{"$error":"#N/A"}},{"$f":"SUM(HU53:HU81)","v":{"$error":"#N/A"}},{"$f":"SUM(HV53:HV81)","v":{"$error":"#N/A"}},{"$f":"SUM(HW53:HW81)","v":{"$error":"#N/A"}},{"$f":"SUM(HX53:HX81)","v":{"$error":"#N/A"}},{"$f":"SUM(HY53:HY81)","v":{"$error":"#N/A"}},{"$f":"SUM(HZ53:HZ81)","v":{"$error":"#N/A"}},{"$f":"SUM(IA53:IA81)","v":{"$error":"#N/A"}},{"$f":"SUM(IB53:IB81)","v":{"$error":"#N/A"}},{"$f":"SUM(IC53:IC81)","v":{"$error":"#N/A"}},{"$f":"SUM(ID53:ID81)","v":{"$error":"#N/A"}},{"$f":"SUM(IE53:IE81)","v":{"$error":"#N/A"}},{"$f":"SUM(IF53:IF81)","v":{"$error":"#N/A"}},{"$f":"SUM(IG53:IG81)","v":{"$error":"#N/A"}},{"$f":"SUM(IH53:IH81)","v":{"$error":"#N/A"}},{"$f":"SUM(II53:II81)","v":{"$error":"#N/A"}},{"$f":"SUM(IJ53:IJ81)","v":{"$error":"#N/A"}},{"$f":"SUM(IK53:IK81)","v":{"$error":"#N/A"}},{"$f":"SUM(IL53:IL81)","v":{"$error":"#N/A"}},{"$f":"SUM(IM53:IM81)","v":{"$error":"#N/A"}},{"$f":"SUM(IN53:IN81)","v":{"$error":"#N/A"}},{"$f":"SUM(IO53:IO81)","v":{"$error":"#N/A"}},{"$f":"SUM(IP53:IP81)","v":{"$error":"#N/A"}},{"$f":"SUM(IQ53:IQ81)","v":{"$error":"#N/A"}},{"$f":"SUM(IR53:IR81)","v":{"$error":"#N/A"}},{"$f":"SUM(IS53:IS81)","v":{"$error":"#N/A"}},{"$f":"SUM(IT53:IT81)","v":{"$error":"#N/A"}},{"$f":"SUM(IU53:IU81)","v":{"$error":"#N/A"}},{"$f":"SUM(IV53:IV81)","v":{"$error":"#N/A"}},{"$f":"SUM(IW53:IW81)","v":{"$error":"#N/A"}},{"$f":"SUM(IX53:IX81)","v":{"$error":"#N/A"}},{"$f":"SUM(IY53:IY81)","v":{"$error":"#N/A"}},{"$f":"SUM(IZ53:IZ81)","v":{"$error":"#N/A"}},{"$f":"SUM(JA53:JA81)","v":{"$error":"#N/A"}},{"$f":"SUM(JB53:JB81)","v":{"$error":"#N/A"}},{"$f":"SUM(JC53:JC81)","v":{"$error":"#N/A"}},{"$f":"SUM(JD53:JD81)","v":{"$error":"#N/A"}},{"$f":"SUM(JE53:JE81)","v":{"$error":"#N/A"}},{"$f":"SUM(JF53:JF81)","v":{"$error":"#N/A"}},null,{"$f":"SUM(JH53:JH81)","v":{"$error":"#VALUE!"}},{"$f":"SUM(JI53:JI81)","v":{"$error":"#VALUE!"}},{"$f":"SUM(JJ53:JJ81)","v":{"$error":"#VALUE!"}},{"$f":"SUM(JK53:JK81)","v":{"$error":"#VALUE!"}},{"$f":"SUM(JL53:JL81)","v":{"$error":"#VALUE!"}},{"$f":"SUM(JM53:JM81)","v":{"$error":"#VALUE!"}},{"$f":"SUM(JN53:JN81)","v":{"$error":"#VALUE!"}},{"$f":"SUM(JO53:JO81)","v":{"$error":"#VALUE!"}},{"$f":"SUM(JP53:JP81)","v":{"$error":"#VALUE!"}},{"$f":"SUM(JQ53:JQ81)","v":{"$error":"#VALUE!"}},{"$f":"SUM(JR53:JR81)","v":{"$error":"#VALUE!"}},{"$f":"SUM(JS53:JS81)","v":{"$error":"#VALUE!"}},{"$f":"SUM(JT53:JT81)","v":{"$error":"#VALUE!"}},{"$f":"SUM(JU53:JU81)","v":{"$error":"#VALUE!"}},{"$f":"SUM(JV53:JV81)","v":{"$error":"#VALUE!"}},{"$f":"SUM(JW53:JW81)","v":{"$error":"#VALUE!"}},{"$f":"SUM(JX53:JX81)","v":{"$error":"#VALUE!"}},{"$f":"SUM(JY53:JY81)","v":{"$error":"#VALUE!"}},{"$f":"SUM(JZ53:JZ81)","v":{"$error":"#VALUE!"}},{"$f":"SUM(KA53:KA81)","v":{"$error":"#VALUE!"}},{"$f":"SUM(KB53:KB81)","v":{"$error":"#VALUE!"}},{"$f":"SUM(KC53:KC81)","v":{"$error":"#VALUE!"}},{"$f":"SUM(KD53:KD81)","v":{"$error":"#VALUE!"}},{"$f":"SUM(KE53:KE81)","v":{"$error":"#VALUE!"}},{"$f":"SUM(KF53:KF81)","v":{"$error":"#VALUE!"}},{"$f":"SUM(KG53:KG81)","v":{"$error":"#VALUE!"}},{"$f":"SUM(KH53:KH81)","v":{"$error":"#VALUE!"}},{"$f":"SUM(KI53:KI81)","v":{"$error":"#VALUE!"}},{"$f":"SUM(KJ53:KJ81)","v":{"$error":"#VALUE!"}},{"$f":"SUM(KK53:KK81)","v":{"$error":"#VALUE!"}},{"$f":"SUM(KL53:KL81)","v":{"$error":"#VALUE!"}},{"$f":"SUM(KM53:KM81)","v":{"$error":"#VALUE!"}},{"$f":"SUM(KN53:KN81)","v":{"$error":"#VALUE!"}},{"$f":"SUM(KO53:KO81)","v":{"$error":"#VALUE!"}},{"$f":"SUM(KP53:KP81)","v":{"$error":"#VALUE!"}},{"$f":"SUM(KQ53:KQ81)","v":{"$error":"#VALUE!"}},{"$f":"SUM(KR53:KR81)","v":{"$error":"#VALUE!"}},{"$f":"SUM(KS53:KS81)","v":{"$error":"#VALUE!"}},{"$f":"SUM(KT53:KT81)","v":{"$error":"#VALUE!"}},{"$f":"SUM(KU53:KU81)","v":{"$error":"#VALUE!"}},{"$f":"SUM(KV53:KV81)","v":{"$error":"#VALUE!"}},{"$f":"SUM(KW53:KW81)","v":{"$error":"#VALUE!"}},{"$f":"SUM(KX53:KX81)","v":{"$error":"#VALUE!"}},{"$f":"SUM(KY53:KY81)","v":{"$error":"#VALUE!"}},{"$f":"SUM(KZ53:KZ81)","v":{"$error":"#VALUE!"}},{"$f":"SUM(LA53:LA81)","v":{"$error":"#VALUE!"}},{"$f":"SUM(LB53:LB81)","v":{"$error":"#VALUE!"}},{"$f":"SUM(LC53:LC81)","v":{"$error":"#VALUE!"}},{"$f":"SUM(LD53:LD81)","v":{"$error":"#VALUE!"}},{"$f":"SUM(LE53:LE81)","v":{"$error":"#VALUE!"}},{"$f":"SUM(LF53:LF81)","v":{"$error":"#VALUE!"}}]
[]
[null,{"$f":"'2. Conservation Measures'!B46","v":"Industrial, Commercial, Institutional Measures"}]
[null,{"$f":"'2. Conservation Measures'!B47","v":"PRE-ICI-01"},{"$f":"'2. Conservation Measures'!C47","v":{"$error":"#N/A"}},{"$f":"'2. Conservation Measures'!D47","v":"N"},null,{"$f":"'2. Conservation Measures'!AA47","v":{"$error":"#N/A"}},null,{"$f":"'2. Conservation Measures'!AO47","v":0},{"$f":"'2. Conservation Measures'!AP47","v":0},{"$f":"'2. Conservation Measures'!AQ47","v":0},{"$f":"'2. Conservation Measures'!AR47","v":0},{"$f":"'2. Conservation Measures'!AS47","v":0},{"$f":"'2. Conservation Measures'!AT47","v":0},{"$f":"'2. Conservation Measures'!AU47","v":0},{"$f":"'2. Conservation Measures'!AV47","v":0},{"$f":"'2. Conservation Measures'!AW47","v":0},{"$f":"'2. Conservation Measures'!AX47","v":0},{"$f":"'2. Conservation Measures'!AY47","v":0},{"$f":"'2. Conservation Measures'!AZ47","v":0},{"$f":"'2. Conservation Measures'!BA47","v":0},{"$f":"'2. Conservation Measures'!BB47","v":0},{"$f":"'2. Conservation Measures'!BC47","v":0},{"$f":"'2. Conservation Measures'!BD47","v":0},{"$f":"'2. Conservation Measures'!BE47","v":0},{"$f":"'2. Conservation Measures'!BF47","v":0},{"$f":"'2. Conservation Measures'!BG47","v":0},{"$f":"'2. Conservation Measures'!BH47","v":0},{"$f":"'2. Conservation Measures'!BI47","v":0},{"$f":"'2. Conservation Measures'!BJ47","v":0},{"$f":"'2. Conservation Measures'!BK47","v":0},{"$f":"'2. Conservation Measures'!BL47","v":0},{"$f":"'2. Conservation Measures'!BM47","v":0},{"$f":"'2. Conservation Measures'!BN47","v":0},{"$f":"'2. Conservation Measures'!BO47","v":0},{"$f":"'2. Conservation Measures'!BP47","v":0},{"$f":"'2. Conservation Measures'!BQ47","v":0},{"$f":"'2. Conservation Measures'!BR47","v":0},{"$f":"'2. Conservation Measures'!BS47","v":0},{"$f":"'2. Conservation Measures'!BT47","v":0},{"$f":"'2. Conservation Measures'!BU47","v":0},{"$f":"'2. Conservation Measures'!BV47","v":0},{"$f":"'2. Conservation Measures'!BW47","v":0},{"$f":"'2. Conservation Measures'!BX47","v":0},{"$f":"'2. Conservation Measures'!BY47","v":0},{"$f":"'2. Conservation Measures'!BZ47","v":0},{"$f":"'2. Conservation Measures'!CA47","v":0},{"$f":"'2. Conservation Measures'!CB47","v":0},{"$f":"'2. Conservation Measures'!CC47","v":0},{"$f":"'2. Conservation Measures'!CD47","v":0},{"$f":"'2. Conservation Measures'!CE47","v":0},{"$f":"'2. Conservation Measures'!CF47","v":0},{"$f":"'2. Conservation Measures'!CG47","v":0},{"$f":"'2. Conservation Measures'!CH47","v":0},{"$f":"'2. Conservation Measures'!CI47","v":0},{"$f":"'2. Conservation Measures'!CJ47","v":0},{"$f":"'2. Conservation Measures'!CK47","v":0},{"$f":"'2. Conservation Measures'!CL47","v":0},{"$f":"'2. Conservation Measures'!CM47","v":0},null,{"$f":"'2. Conservation Measures'!CO47","v":{"$error":"#VALUE!"}},{"$f":"'2. Conservation Measures'!CP47","v":{"$error":"#VALUE!"}},{"$f":"'2. Conservation Measures'!CQ47","v":{"$error":"#VALUE!"}},{"$f":"'2. Conservation Measures'!CR47","v":{"$error":"#VALUE!"}},{"$f":"'2. Conservation Measures'!CS47","v":{"$error":"#VALUE!"}},{"$f":"'2. Conservation Measures'!CT47","v":{"$error":"#VALUE!"}},{"$f":"'2. Conservation Measures'!CU47","v":{"$error":"#VALUE!"}},{"$f":"'2. Conservation Measures'!CV47","v":{"$error":"#VALUE!"}},{"$f":"'2. Conservation Measures'!CW47","v":{"$error":"#VALUE!"}},{"$f":"'2. Conservation Measures'!CX47","v":{"$error":"#VALUE!"}},{"$f":"'2. Conservation Measures'!CY47","v":{"$error":"#VALUE!"}},{"$f":"'2. Conservation Measures'!CZ47","v":{"$error":"#VALUE!"}},{"$f":"'2. Conservation Measures'!DA47","v":{"$error":"#VALUE!"}},{"$f":"'2. Conservation Measures'!DB47","v":{"$error":"#VALUE!"}},{"$f":"'2. Conservation Measures'!DC47","v":{"$error":"#VALUE!"}},{"$f":"'2. Conservation Measures'!DD47","v":{"$error":"#VALUE!"}},{"$f":"'2. Conservation Measures'!DE47","v":{"$error":"#VALUE!"}},{"$f":"'2. Conservation Measures'!DF47","v":{"$error":"#VALUE!"}},{"$f":"'2. Conservation Measures'!DG47","v":{"$error":"#VALUE!"}},{"$f":"'2. Conservation Measures'!DH47","v":{"$error":"#VALUE!"}},{"$f":"'2. Conservation Measures'!DI47","v":{"$error":"#VALUE!"}},{"$f":"'2. Conservation Measures'!DJ47","v":{"$error":"#VALUE!"}},{"$f":"'2. Conservation Measures'!DK47","v":{"$error":"#VALUE!"}},{"$f":"'2. Conservation Measures'!DL47","v":{"$error":"#VALUE!"}},{"$f":"'2. Conservation Measures'!DM47","v":{"$error":"#VALUE!"}},{"$f":"'2. Conservation Measures'!DN47","v":{"$error":"#VALUE!"}},{"$f":"'2. Conservation Measures'!DO47","v":{"$error":"#VALUE!"}},{"$f":"'2. Conservation Measures'!DP47","v":{"$error":"#VALUE!"}},{"$f":"'2. Conservation Measures'!DQ47","v":{"$error":"#VALUE!"}},{"$f":"'2. Conservation Measures'!DR47","v":{"$error":"#VALUE!"}},{"$f":"'2. Conservation Measures'!DS47","v":{"$error":"#VALUE!"}},{"$f":"'2. Conservation Measures'!DT47","v":{"$error":"#VALUE!"}},{"$f":"'2. Conservation Measures'!DU47","v":{"$error":"#VALUE!"}},{"$f":"'2. Conservation Measures'!DV47","v":{"$error":"#VALUE!"}},{"$f":"'2. Conservation Measures'!DW47","v":{"$error":"#VALUE!"}},{"$f":"'2. Conservation Measures'!DX47","v":{"$error":"#VALUE!"}},{"$f":"'2. Conservation Measures'!DY47","v":{"$error":"#VALUE!"}},{"$f":"'2. Conservation Measures'!DZ47","v":{"$error":"#VALUE!"}},{"$f":"'2. Conservation Measures'!EA47","v":{"$error":"#VALUE!"}},{"$f":"'2. Conservation Measures'!EB47","v":{"$error":"#VALUE!"}},{"$f":"'2. Conservation Measures'!EC47","v":{"$error":"#VALUE!"}},{"$f":"'2. Conservation Measures'!ED47","v":{"$error":"#VALUE!"}},{"$f":"'2. Conservation Measures'!EE47","v":{"$error":"#VALUE!"}},{"$f":"'2. Conservation Measures'!EF47","v":{"$error":"#VALUE!"}},{"$f":"'2. Conservation Measures'!EG47","v":{"$error":"#VALUE!"}},{"$f":"'2. Conservation Measures'!EH47","v":{"$error":"#VALUE!"}},{"$f":"'2. Conservation Measures'!EI47","v":{"$error":"#VALUE!"}},{"$f":"'2. Conservation Measures'!EJ47","v":{"$error":"#VALUE!"}},{"$f":"'2. Conservation Measures'!EK47","v":{"$error":"#VALUE!"}},{"$f":"'2. Conservation Measures'!EL47","v":{"$error":"#VALUE!"}},{"$f":"'2. Conservation Measures'!EM47","v":{"$error":"#VALUE!"}},null,{"$f":"'2. Conservation Measures'!KP47","v":{"$error":"#N/A"}},{"$f":"'2. Conservation Measures'!KQ47","v":{"$error":"#N/A"}},{"$f":"'2. Conservation Measures'!KR47","v":{"$error":"#N/A"}},{"$f":"'2. Conservation Measures'!KS47","v":{"$error":"#N/A"}},{"$f":"'2. Conservation Measures'!KT47","v":{"$error":"#N/A"}},{"$f":"'2. Conservation Measures'!KU47","v":{"$error":"#N/A"}},{"$f":"'2. Conservation Measures'!KV47","v":{"$error":"#N/A"}},{"$f":"'2. Conservation Measures'!KW47","v":{"$error":"#N/A"}},{"$f":"'2. Conservation Measures'!KX47","v":{"$error":"#N/A"}},{"$f":"'2. Conservation Measures'!KY47","v":{"$error":"#N/A"}},{"$f":"'2. Conservation Measures'!KZ47","v":{"$error":"#N/A"}},{"$f":"'2. Conservation Measures'!LA47","v":{"$error":"#N/A"}},{"$f":"'2. Conservation Measures'!LB47","v":{"$error":"#N/A"}},{"$f":"'2. Conservation Measures'!LC47","v":{"$error":"#N/A"}},{"$f":"'2. Conservation Measures'!LD47","v":{"$error":"#N/A"}},{"$f":"'2. Conservation Measures'!LE47","v":{"$error":"#N/A"}},{"$f":"'2. Conservation Measures'!LF47","v":{"$error":"#N/A"}},{"$f":"'2. Conservation Measures'!LG47","v":{"$error":"#N/A"}},{"$f":"'2. Conservation Measures'!LH47","v":{"$error":"#N/A"}},{"$f":"'2. Conservation Measures'!LI47","v":{"$error":"#N/A"}},{"$f":"'2. Conservation Measures'!LJ47","v":{"$error":"#N/A"}},{"$f":"'2. Conservation Measures'!LK47","v":{"$error":"#N/A"}},{"$f":"'2. Conservation Measures'!LL47","v":{"$error":"#N/A"}},{"$f":"'2. Conservation Measures'!LM47","v":{"$error":"#N/A"}},{"$f":"'2. Conservation Measures'!LN47","v":{"$error":"#N/A"}},{"$f":"'2. Conservation Measures'!LO47","v":{"$error":"#N/A"}},{"$f":"'2. Conservation Measures'!LP47","v":{"$error":"#N/A"}},{"$f":"'2. Conservation Measures'!LQ47","v":{"$error":"#N/A"}},{"$f":"'2. Conservation Measures'!LR47","v":{"$error":"#N/A"}},{"$f":"'2. Conservation Measures'!LS47","v":{"$error":"#N/A"}},{"$f":"'2. Conservation Measures'!LT47","v":{"$error":"#N/A"}},{"$f":"'2. Conservation Measures'!LU47","v":{"$error":"#N/A"}},{"$f":"'2. Conservation Measures'!LV47","v":{"$error":"#N/A"}},{"$f":"'2. Conservation Measures'!LW47","v":{"$error":"#N/A"}},{"$f":"'2. Conservation Measures'!LX47","v":{"$error":"#N/A"}},{"$f":"'2. Conservation Measures'!LY47","v":{"$error":"#N/A"}},{"$f":"'2. Conservation Measures'!LZ47","v":{"$error":"#N/A"}},{"$f":"'2. Conservation Measures'!MA47","v":{"$error":"#N/A"}},{"$f":"'2. Conservation Measures'!MB47","v":{"$error":"#N/A"}},{"$f":"'2. Conservation Measures'!MC47","v":{"$error":"#N/A"}},{"$f":"'2. Conservation Measures'!MD47","v":{"$error":"#N/A"}},{"$f":"'2. Conservation Measures'!ME47","v":{"$error":"#N/A"}},{"$f":"'2. Conservation Measures'!MF47","v":{"$error":"#N/A"}},{"$f":"'2. Conservation Measures'!MG47","v":{"$error":"#N/A"}},{"$f":"'2. Conservation Measures'!MH47","v":{"$error":"#N/A"}},{"$f":"'2. Conservation Measures'!MI47","v":{"$error":"#N/A"}},{"$f":"'2. Conservation Measures'!MJ47","v":{"$error":"#N/A"}},{"$f":"'2. Conservation Measures'!MK47","v":{"$error":"#N/A"}},{"$f":"'2. Conservation Measures'!ML47","v":{"$error":"#N/A"}},{"$f":"'2. Conservation Measures'!MM47","v":{"$error":"#N/A"}},{"$f":"'2. Conservation Measures'!MN47","v":{"$error":"#N/A"}},null,{"$f":"'2. Conservation Measures'!EP47","v":{"$error":"#N/A"}},{"$f":"'2. Conservation Measures'!EQ47","v":{"$error":"#N/A"}},{"$f":"'2. Conservation Measures'!ER47","v":{"$error":"#N/A"}},{"$f":"'2. Conservation Measures'!ES47","v":{"$error":"#N/A"}},{"$f":"'2. Conservation Measures'!ET47","v":{"$error":"#N/A"}},{"$f":"'2. Conservation Measures'!EU47","v":{"$error":"#N/A"}},{"$f":"'2. Conservation Measures'!EV47","v":{"$error":"#N/A"}},{"$f":"'2. Conservation Measures'!EW47","v":{"$error":"#N/A"}},{"$f":"'2. Conservation Measures'!EX47","v":{"$error":"#N/A"}},{"$f":"'2. Conservation Measures'!EY47","v":{"$error":"#N/A"}},{"$f":"'2. Conservation Measures'!EZ47","v":{"$error":"#N/A"}},{"$f":"'2. Conservation Measures'!FA47","v":{"$error":"#N/A"}},{"$f":"'2. Conservation Measures'!FB47","v":{"$error":"#N/A"}},{"$f":"'2. Conservation Measures'!FC47","v":{"$error":"#N/A"}},{"$f":"'2. Conservation Measures'!FD47","v":{"$error":"#N/A"}},{"$f":"'2. Conservation Measures'!FE47","v":{"$error":"#N/A"}},{"$f":"'2. Conservation Measures'!FF47","v":{"$error":"#N/A"}},{"$f":"'2. Conservation Measures'!FG47","v":{"$error":"#N/A"}},{"$f":"'2. Conservation Measures'!FH47","v":{"$error":"#N/A"}},{"$f":"'2. Conservation Measures'!FI47","v":{"$error":"#N/A"}},{"$f":"'2. Conservation Measures'!FJ47","v":{"$error":"#N/A"}},{"$f":"'2. Conservation Measures'!FK47","v":{"$error":"#N/A"}},{"$f":"'2. Conservation Measures'!FL47","v":{"$error":"#N/A"}},{"$f":"'2. Conservation Measures'!FM47","v":{"$error":"#N/A"}},{"$f":"'2. Conservation Measures'!FN47","v":{"$error":"#N/A"}},{"$f":"'2. Conservation Measures'!FO47","v":{"$error":"#N/A"}},{"$f":"'2. Conservation Measures'!FP47","v":{"$error":"#N/A"}},{"$f":"'2. Conservation Measures'!FQ47","v":{"$error":"#N/A"}},{"$f":"'2. Conservation Measures'!FR47","v":{"$error":"#N/A"}},{"$f":"'2. Conservation Measures'!FS47","v":{"$error":"#N/A"}},{"$f":"'2. Conservation Measures'!FT47","v":{"$error":"#N/A"}},{"$f":"'2. Conservation Measures'!FU47","v":{"$error":"#N/A"}},{"$f":"'2. Conservation Measures'!FV47","v":{"$error":"#N/A"}},{"$f":"'2. Conservation Measures'!FW47","v":{"$error":"#N/A"}},{"$f":"'2. Conservation Measures'!FX47","v":{"$error":"#N/A"}},{"$f":"'2. Conservation Measures'!FY47","v":{"$error":"#N/A"}},{"$f":"'2. Conservation Measures'!FZ47","v":{"$error":"#N/A"}},{"$f":"'2. Conservation Measures'!GA47","v":{"$error":"#N/A"}},{"$f":"'2. Conservation Measures'!GB47","v":{"$error":"#N/A"}},{"$f":"'2. Conservation Measures'!GC47","v":{"$error":"#N/A"}},{"$f":"'2. Conservation Measures'!GD47","v":{"$error":"#N/A"}},{"$f":"'2. Conservation Measures'!GE47","v":{"$error":"#N/A"}},{"$f":"'2. Conservation Measures'!GF47","v":{"$error":"#N/A"}},{"$f":"'2. Conservation Measures'!GG47","v":{"$error":"#N/A"}},{"$f":"'2. Conservation Measures'!GH47","v":{"$error":"#N/A"}},{"$f":"'2. Conservation Measures'!GI47","v":{"$error":"#N/A"}},{"$f":"'2. Conservation Measures'!GJ47","v":{"$error":"#N/A"}},{"$f":"'2. Conservation Measures'!GK47","v":{"$error":"#N/A"}},{"$f":"'2. Conservation Measures'!GL47","v":{"$error":"#N/A"}},{"$f":"'2. Conservation Measures'!GM47","v":{"$error":"#N/A"}},{"$f":"'2. Conservation Measures'!GN47","v":{"$error":"#N/A"}},null,{"$f":"'2. Conservation Measures'!GP47","v":{"$error":"#N/A"}},{"$f":"'2. Conservation Measures'!GQ47","v":{"$error":"#N/A"}},{"$f":"'2. Conservation Measures'!GR47","v":{"$error":"#N/A"}},{"$f":"'2. Conservation Measures'!GS47","v":{"$error":"#N/A"}},{"$f":"'2. Conservation Measures'!GT47","v":{"$error":"#N/A"}},{"$f":"'2. Conservation Measures'!GU47","v":{"$error":"#N/A"}},{"$f":"'2. Conservation Measures'!GV47","v":{"$error":"#N/A"}},{"$f":"'2. Conservation Measures'!GW47","v":{"$error":"#N/A"}},{"$f":"'2. Conservation Measures'!GX47","v":{"$error":"#N/A"}},{"$f":"'2. Conservation Measures'!GY47","v":{"$error":"#N/A"}},{"$f":"'2. Conservation Measures'!GZ47","v":{"$error":"#N/A"}},{"$f":"'2. Conservation Measures'!HA47","v":{"$error":"#N/A"}},{"$f":"'2. Conservation Measures'!HB47","v":{"$error":"#N/A"}},{"$f":"'2. Conservation Measures'!HC47","v":{"$error":"#N/A"}},{"$f":"'2. Conservation Measures'!HD47","v":{"$error":"#N/A"}},{"$f":"'2. Conservation Measures'!HE47","v":{"$error":"#N/A"}},{"$f":"'2. Conservation Measures'!HF47","v":{"$error":"#N/A"}},{"$f":"'2. Conservation Measures'!HG47","v":{"$error":"#N/A"}},{"$f":"'2. Conservation Measures'!HH47","v":{"$error":"#N/A"}},{"$f":"'2. Conservation Measures'!HI47","v":{"$error":"#N/A"}},{"$f":"'2. Conservation Measures'!HJ47","v":{"$error":"#N/A"}},{"$f":"'2. Conservation Measures'!HK47","v":{"$error":"#N/A"}},{"$f":"'2. Conservation Measures'!HL47","v":{"$error":"#N/A"}},{"$f":"'2. Conservation Measures'!HM47","v":{"$error":"#N/A"}},{"$f":"'2. Conservation Measures'!HN47","v":{"$error":"#N/A"}},{"$f":"'2. Conservation Measures'!HO47","v":{"$error":"#N/A"}},{"$f":"'2. Conservation Measures'!HP47","v":{"$error":"#N/A"}},{"$f":"'2. Conservation Measures'!HQ47","v":{"$error":"#N/A"}},{"$f":"'2. Conservation Measures'!HR47","v":{"$error":"#N/A"}},{"$f":"'2. Conservation Measures'!HS47","v":{"$error":"#N/A"}},{"$f":"'2. Conservation Measures'!HT47","v":{"$error":"#N/A"}},{"$f":"'2. Conservation Measures'!HU47","v":{"$error":"#N/A"}},{"$f":"'2. Conservation Measures'!HV47","v":{"$error":"#N/A"}},{"$f":"'2. Conservation Measures'!HW47","v":{"$error":"#N/A"}},{"$f":"'2. Conservation Measures'!HX47","v":{"$error":"#N/A"}},{"$f":"'2. Conservation Measures'!HY47","v":{"$error":"#N/A"}},{"$f":"'2. Conservation Measures'!HZ47","v":{"$error":"#N/A"}},{"$f":"'2. Conservation Measures'!IA47","v":{"$error":"#N/A"}},{"$f":"'2. Conservation Measures'!IB47","v":{"$error":"#N/A"}},{"$f":"'2. Conservation Measures'!IC47","v":{"$error":"#N/A"}},{"$f":"'2. Conservation Measures'!ID47","v":{"$error":"#N/A"}},{"$f":"'2. Conservation Measures'!IE47","v":{"$error":"#N/A"}},{"$f":"'2. Conservation Measures'!IF47","v":{"$error":"#N/A"}},{"$f":"'2. Conservation Measures'!IG47","v":{"$error":"#N/A"}},{"$f":"'2. Conservation Measures'!IH47","v":{"$error":"#N/A"}},{"$f":"'2. Conservation Measures'!II47","v":{"$error":"#N/A"}},{"$f":"'2. Conservation Measures'!IJ47","v":{"$error":"#N/A"}},{"$f":"'2. Conservation Measures'!IK47","v":{"$error":"#N/A"}},{"$f":"'2. Conservation Measures'!IL47","v":{"$error":"#N/A"}},{"$f":"'2. Conservation Measures'!IM47","v":{"$error":"#N/A"}},{"$f":"'2. Conservation Measures'!IN47","v":{"$error":"#N/A"}},null,{"$f":"'2. Conservation Measures'!IP47","v":{"$error":"#VALUE!"}},{"$f":"'2. Conservation Measures'!IQ47","v":{"$error":"#VALUE!"}},{"$f":"'2. Conservation Measures'!IR47","v":{"$error":"#VALUE!"}},{"$f":"'2. Conservation Measures'!IS47","v":{"$error":"#VALUE!"}},{"$f":"'2. Conservation Measures'!IT47","v":{"$error":"#VALUE!"}},{"$f":"'2. Conservation Measures'!IU47","v":{"$error":"#VALUE!"}},{"$f":"'2. Conservation Measures'!IV47","v":{"$error":"#VALUE!"}},{"$f":"'2. Conservation Measures'!IW47","v":{"$error":"#VALUE!"}},{"$f":"'2. Conservation Measures'!IX47","v":{"$error":"#VALUE!"}},{"$f":"'2. Conservation Measures'!IY47","v":{"$error":"#VALUE!"}},{"$f":"'2. Conservation Measures'!IZ47","v":{"$error":"#VALUE!"}},{"$f":"'2. Conservation Measures'!JA47","v":{"$error":"#VALUE!"}},{"$f":"'2. Conservation Measures'!JB47","v":{"$error":"#VALUE!"}},{"$f":"'2. Conservation Measures'!JC47","v":{"$error":"#VALUE!"}},{"$f":"'2. Conservation Measures'!JD47","v":{"$error":"#VALUE!"}},{"$f":"'2. Conservation Measures'!JE47","v":{"$error":"#VALUE!"}},{"$f":"'2. Conservation Measures'!JF47","v":{"$error":"#VALUE!"}},{"$f":"'2. Conservation Measures'!JG47","v":{"$error":"#VALUE!"}},{"$f":"'2. Conservation Measures'!JH47","v":{"$error":"#VALUE!"}},{"$f":"'2. Conservation Measures'!JI47","v":{"$error":"#VALUE!"}},{"$f":"'2. Conservation Measures'!JJ47","v":{"$error":"#VALUE!"}},{"$f":"'2. Conservation Measures'!JK47","v":{"$error":"#VALUE!"}},{"$f":"'2. Conservation Measures'!JL47","v":{"$error":"#VALUE!"}},{"$f":"'2. Conservation Measures'!JM47","v":{"$error":"#VALUE!"}},{"$f":"'2. Conservation Measures'!JN47","v":{"$error":"#VALUE!"}},{"$f":"'2. Conservation Measures'!JO47","v":{"$error":"#VALUE!"}},{"$f":"'2. Conservation Measures'!JP47","v":{"$error":"#VALUE!"}},{"$f":"'2. Conservation Measures'!JQ47","v":{"$error":"#VALUE!"}},{"$f":"'2. Conservation Measures'!JR47","v":{"$error":"#VALUE!"}},{"$f":"'2. Conservation Measures'!JS47","v":{"$error":"#VALUE!"}},{"$f":"'2. Conservation Measures'!JT47","v":{"$error":"#VALUE!"}},{"$f":"'2. Conservation Measures'!JU47","v":{"$error":"#VALUE!"}},{"$f":"'2. Conservation Measures'!JV47","v":{"$error":"#VALUE!"}},{"$f":"'2. Conservation Measures'!JW47","v":{"$error":"#VALUE!"}},{"$f":"'2. Conservation Measures'!JX47","v":{"$error":"#VALUE!"}},{"$f":"'2. Conservation Measures'!JY47","v":{"$error":"#VALUE!"}},{"$f":"'2. Conservation Measures'!JZ47","v":{"$error":"#VALUE!"}},{"$f":"'2. Conservation Measures'!KA47","v":{"$error":"#VALUE!"}},{"$f":"'2. Conservation Measures'!KB47","v":{"$error":"#VALUE!"}},{"$f":"'2. Conservation Measures'!KC47","v":{"$error":"#VALUE!"}},{"$f":"'2. Conservation Measures'!KD47","v":{"$error":"#VALUE!"}},{"$f":"'2. Conservation Measures'!KE47","v":{"$error":"#VALUE!"}},{"$f":"'2. Conservation Measures'!KF47","v":{"$error":"#VALUE!"}},{"$f":"'2. Conservation Measures'!KG47","v":{"$error":"#VALUE!"}},{"$f":"'2. Conservation Measures'!KH47","v":{"$error":"#VALUE!"}},{"$f":"'2. Conservation Measures'!KI47","v":{"$error":"#VALUE!"}},{"$f":"'2. Conservation Measures'!KJ47","v":{"$error":"#VALUE!"}},{"$f":"'2. Conservation Measures'!KK47","v":{"$error":"#VALUE!"}},{"$f":"'2. Conservation Measures'!KL47","v":{"$error":"#VALUE!"}},{"$f":"'2. Conservation Measures'!KM47","v":{"$error":"#VALUE!"}},{"$f":"'2. Conservation Measures'!KN47","v":{"$error":"#VALUE!"}}]
[null,{"$f":"'2. Conservation Measures'!B48","v":"PRE-ICI-02"},{"$f":"'2. Conservation Measures'!C48","v":{"$error":"#N/A"}},{"$f":"'2. Conservation Measures'!D48","v":"N"},null,{"$f":"'2. Conservation Measures'!AA48","v":{"$error":"#N/A"}},null,{"$f":"'2. Conservation Measures'!AO48","v":0},{"$f":"'2. Conservation Measures'!AP48","v":0},{"$f":"'2. Conservation Measures'!AQ48","v":0},{"$f":"'2. Conservation Measures'!AR48","v":0},{"$f":"'2. Conservation Measures'!AS48","v":0},{"$f":"'2. Conservation Measures'!AT48","v":0},{"$f":"'2. Conservation Measures'!AU48","v":0},{"$f":"'2. Conservation Measures'!AV48","v":0},{"$f":"'2. Conservation Measures'!AW48","v":0},{"$f":"'2. Conservation Measures'!AX48","v":0},{"$f":"'2. Conservation Measures'!AY48","v":0},{"$f":"'2. Conservation Measures'!AZ48","v":0},{"$f":"'2. Conservation Measures'!BA48","v":0},{"$f":"'2. Conservation Measures'!BB48","v":0},{"$f":"'2. Conservation Measures'!BC48","v":0},{"$f":"'2. Conservation Measures'!BD48","v":0},{"$f":"'2. Conservation Measures'!BE48","v":0},{"$f":"'2. Conservation Measures'!BF48","v":0},{"$f":"'2. Conservation Measures'!BG48","v":0},{"$f":"'2. Conservation Measures'!BH48","v":0},{"$f":"'2. Conservation Measures'!BI48","v":0},{"$f":"'2. Conservation Measures'!BJ48","v":0},{"$f":"'2. Conservation Measures'!BK48","v":0},{"$f":"'2. Conservation Measures'!BL48","v":0},{"$f":"'2. Conservation Measures'!BM48","v":0},{"$f":"'2. Conservation Measures'!BN48","v":0},{"$f":"'2. Conservation Measures'!BO48","v":0},{"$f":"'2. Conservation Measures'!BP48","v":0},{"$f":"'2. Conservation Measures'!BQ48","v":0},{"$f":"'2. Conservation Measures'!BR48","v":0},{"$f":"'2. Conservation Measures'!BS48","v":0},{"$f":"'2. Conservation Measures'!BT48","v":0},{"$f":"'2. Conservation Measures'!BU48","v":0},{"$f":"'2. Conservation Measures'!BV48","v":0},{"$f":"'2. Conservation Measures'!BW48","v":0},{"$f":"'2. Conservation Measures'!BX48","v":0},{"$f":"'2. Conservation Measures'!BY48","v":0},{"$f":"'2. Conservation Measures'!BZ48","v":0},{"$f":"'2. Conservation Measures'!CA48","v":0},{"$f":"'2. Conservation Measures'!CB48","v":0},{"$f":"'2. Conservation Measures'!CC48","v":0},{"$f":"'2. Conservation Measures'!CD48","v":0},{"$f":"'2. Conservation Measures'!CE48","v":0},{"$f":"'2. Conservation Measures'!CF48","v":0},{"$f":"'2. Conservation Measures'!CG48","v":0},{"$f":"'2. Conservation Measures'!CH48","v":0},{"$f":"'2. Conservation Measures'!CI48","v":0},{"$f":"'2. Conservation Measures'!CJ48","v":0},{"$f":"'2. Conservation Measures'!CK48","v":0},{"$f":"'2. Conservation Measures'!CL48","v":0},{"$f":"'2. Conservation Measures'!CM48","v":0},null,{"$f":"'2. Conservation Measures'!CO48","v":{"$error":"#VALUE!"}},{"$f":"'2. Conservation Measures'!CP48","v":{"$error":"#VALUE!"}},{"$f":"'2. Conservation Measures'!CQ48","v":{"$error":"#VALUE!"}},{"$f":"'2. Conservation Measures'!CR48","v":{"$error":"#VALUE!"}},{"$f":"'2. Conservation Measures'!CS48","v":{"$error":"#VALUE!"}},{"$f":"'2. Conservation Measures'!CT48","v":{"$error":"#VALUE!"}},{"$f":"'2. Conservation Measures'!CU48","v":{"$error":"#VALUE!"}},{"$f":"'2. Conservation Measures'!CV48","v":{"$error":"#VALUE!"}},{"$f":"'2. Conservation Measures'!CW48","v":{"$error":"#VALUE!"}},{"$f":"'2. Conservation Measures'!CX48","v":{"$error":"#VALUE!"}},{"$f":"'2. Conservation Measures'!CY48","v":{"$error":"#VALUE!"}},{"$f":"'2. Conservation Measures'!CZ48","v":{"$error":"#VALUE!"}},{"$f":"'2. Conservation Measures'!DA48","v":{"$error":"#VALUE!"}},{"$f":"'2. Conservation Measures'!DB48","v":{"$error":"#VALUE!"}},{"$f":"'2. Conservation Measures'!DC48","v":{"$error":"#VALUE!"}},{"$f":"'2. Conservation Measures'!DD48","v":{"$error":"#VALUE!"}},{"$f":"'2. Conservation Measures'!DE48","v":{"$error":"#VALUE!"}},{"$f":"'2. Conservation Measures'!DF48","v":{"$error":"#VALUE!"}},{"$f":"'2. Conservation Measures'!DG48","v":{"$error":"#VALUE!"}},{"$f":"'2. Conservation Measures'!DH48","v":{"$error":"#VALUE!"}},{"$f":"'2. Conservation Measures'!DI48","v":{"$error":"#VALUE!"}},{"$f":"'2. Conservation Measures'!DJ48","v":{"$error":"#VALUE!"}},{"$f":"'2. Conservation Measures'!DK48","v":{"$error":"#VALUE!"}},{"$f":"'2. Conservation Measures'!DL48","v":{"$error":"#VALUE!"}},{"$f":"'2. Conservation Measures'!DM48","v":{"$error":"#VALUE!"}},{"$f":"'2. Conservation Measures'!DN48","v":{"$error":"#VALUE!"}},{"$f":"'2. Conservation Measures'!DO48","v":{"$error":"#VALUE!"}},{"$f":"'2. Conservation Measures'!DP48","v":{"$error":"#VALUE!"}},{"$f":"'2. Conservation Measures'!DQ48","v":{"$error":"#VALUE!"}},{"$f":"'2. Conservation Measures'!DR48","v":{"$error":"#VALUE!"}},{"$f":"'2. Conservation Measures'!DS48","v":{"$error":"#VALUE!"}},{"$f":"'2. Conservation Measures'!DT48","v":{"$error":"#VALUE!"}},{"$f":"'2. Conservation Measures'!DU48","v":{"$error":"#VALUE!"}},{"$f":"'2. Conservation Measures'!DV48","v":{"$error":"#VALUE!"}},{"$f":"'2. Conservation Measures'!DW48","v":{"$error":"#VALUE!"}},{"$f":"'2. Conservation Measures'!DX48","v":{"$error":"#VALUE!"}},{"$f":"'2. Conservation Measures'!DY48","v":{"$error":"#VALUE!"}},{"$f":"'2. Conservation Measures'!DZ48","v":{"$error":"#VALUE!"}},{"$f":"'2. Conservation Measures'!EA48","v":{"$error":"#VALUE!"}},{"$f":"'2. Conservation Measures'!EB48","v":{"$error":"#VALUE!"}},{"$f":"'2. Conservation Measures'!EC48","v":{"$error":"#VALUE!"}},{"$f":"'2. Conservation Measures'!ED48","v":{"$error":"#VALUE!"}},{"$f":"'2. Conservation Measures'!EE48","v":{"$error":"#VALUE!"}},{"$f":"'2. Conservation Measures'!EF48","v":{"$error":"#VALUE!"}},{"$f":"'2. Conservation Measures'!EG48","v":{"$error":"#VALUE!"}},{"$f":"'2. Conservation Measures'!EH48","v":{"$error":"#VALUE!"}},{"$f":"'2. Conservation Measures'!EI48","v":{"$error":"#VALUE!"}},{"$f":"'2. Conservation Measures'!EJ48","v":{"$error":"#VALUE!"}},{"$f":"'2. Conservation Measures'!EK48","v":{"$error":"#VALUE!"}},{"$f":"'2. Conservation Measures'!EL48","v":{"$error":"#VALUE!"}},{"$f":"'2. Conservation Measures'!EM48","v":{"$error":"#VALUE!"}},null,{"$f":"'2. Conservation Measures'!KP48","v":{"$error":"#N/A"}},{"$f":"'2. Conservation Measures'!KQ48","v":{"$error":"#N/A"}},{"$f":"'2. Conservation Measures'!KR48","v":{"$error":"#N/A"}},{"$f":"'2. Conservation Measures'!KS48","v":{"$error":"#N/A"}},{"$f":"'2. Conservation Measures'!KT48","v":{"$error":"#N/A"}},{"$f":"'2. Conservation Measures'!KU48","v":{"$error":"#N/A"}},{"$f":"'2. Conservation Measures'!KV48","v":{"$error":"#N/A"}},{"$f":"'2. Conservation Measures'!KW48","v":{"$error":"#N/A"}},{"$f":"'2. Conservation Measures'!KX48","v":{"$error":"#N/A"}},{"$f":"'2. Conservation Measures'!KY48","v":{"$error":"#N/A"}},{"$f":"'2. Conservation Measures'!KZ48","v":{"$error":"#N/A"}},{"$f":"'2. Conservation Measures'!LA48","v":{"$error":"#N/A"}},{"$f":"'2. Conservation Measures'!LB48","v":{"$error":"#N/A"}},{"$f":"'2. Conservation Measures'!LC48","v":{"$error":"#N/A"}},{"$f":"'2. Conservation Measures'!LD48","v":{"$error":"#N/A"}},{"$f":"'2. Conservation Measures'!LE48","v":{"$error":"#N/A"}},{"$f":"'2. Conservation Measures'!LF48","v":{"$error":"#N/A"}},{"$f":"'2. Conservation Measures'!LG48","v":{"$error":"#N/A"}},{"$f":"'2. Conservation Measures'!LH48","v":{"$error":"#N/A"}},{"$f":"'2. Conservation Measures'!LI48","v":{"$error":"#N/A"}},{"$f":"'2. Conservation Measures'!LJ48","v":{"$error":"#N/A"}},{"$f":"'2. Conservation Measures'!LK48","v":{"$error":"#N/A"}},{"$f":"'2. Conservation Measures'!LL48","v":{"$error":"#N/A"}},{"$f":"'2. Conservation Measures'!LM48","v":{"$error":"#N/A"}},{"$f":"'2. Conservation Measures'!LN48","v":{"$error":"#N/A"}},{"$f":"'2. Conservation Measures'!LO48","v":{"$error":"#N/A"}},{"$f":"'2. Conservation Measures'!LP48","v":{"$error":"#N/A"}},{"$f":"'2. Conservation Measures'!LQ48","v":{"$error":"#N/A"}},{"$f":"'2. Conservation Measures'!LR48","v":{"$error":"#N/A"}},{"$f":"'2. Conservation Measures'!LS48","v":{"$error":"#N/A"}},{"$f":"'2. Conservation Measures'!LT48","v":{"$error":"#N/A"}},{"$f":"'2. Conservation Measures'!LU48","v":{"$error":"#N/A"}},{"$f":"'2. Conservation Measures'!LV48","v":{"$error":"#N/A"}},{"$f":"'2. Conservation Measures'!LW48","v":{"$error":"#N/A"}},{"$f":"'2. Conservation Measures'!LX48","v":{"$error":"#N/A"}},{"$f":"'2. Conservation Measures'!LY48","v":{"$error":"#N/A"}},{"$f":"'2. Conservation Measures'!LZ48","v":{"$error":"#N/A"}},{"$f":"'2. Conservation Measures'!MA48","v":{"$error":"#N/A"}},{"$f":"'2. Conservation Measures'!MB48","v":{"$error":"#N/A"}},{"$f":"'2. Conservation Measures'!MC48","v":{"$error":"#N/A"}},{"$f":"'2. Conservation Measures'!MD48","v":{"$error":"#N/A"}},{"$f":"'2. Conservation Measures'!ME48","v":{"$error":"#N/A"}},{"$f":"'2. Conservation Measures'!MF48","v":{"$error":"#N/A"}},{"$f":"'2. Conservation Measures'!MG48","v":{"$error":"#N/A"}},{"$f":"'2. Conservation Measures'!MH48","v":{"$error":"#N/A"}},{"$f":"'2. Conservation Measures'!MI48","v":{"$error":"#N/A"}},{"$f":"'2. Conservation Measures'!MJ48","v":{"$error":"#N/A"}},{"$f":"'2. Conservation Measures'!MK48","v":{"$error":"#N/A"}},{"$f":"'2. Conservation Measures'!ML48","v":{"$error":"#N/A"}},{"$f":"'2. Conservation Measures'!MM48","v":{"$error":"#N/A"}},{"$f":"'2. Conservation Measures'!MN48","v":{"$error":"#N/A"}},null,{"$f":"'2. Conservation Measures'!EP48","v":{"$error":"#N/A"}},{"$f":"'2. Conservation Measures'!EQ48","v":{"$error":"#N/A"}},{"$f":"'2. Conservation Measures'!ER48","v":{"$error":"#N/A"}},{"$f":"'2. Conservation Measures'!ES48","v":{"$error":"#N/A"}},{"$f":"'2. Conservation Measures'!ET48","v":{"$error":"#N/A"}},{"$f":"'2. Conservation Measures'!EU48","v":{"$error":"#N/A"}},{"$f":"'2. Conservation Measures'!EV48","v":{"$error":"#N/A"}},{"$f":"'2. Conservation Measures'!EW48","v":{"$error":"#N/A"}},{"$f":"'2. Conservation Measures'!EX48","v":{"$error":"#N/A"}},{"$f":"'2. Conservation Measures'!EY48","v":{"$error":"#N/A"}},{"$f":"'2. Conservation Measures'!EZ48","v":{"$error":"#N/A"}},{"$f":"'2. Conservation Measures'!FA48","v":{"$error":"#N/A"}},{"$f":"'2. Conservation Measures'!FB48","v":{"$error":"#N/A"}},{"$f":"'2. Conservation Measures'!FC48","v":{"$error":"#N/A"}},{"$f":"'2. Conservation Measures'!FD48","v":{"$error":"#N/A"}},{"$f":"'2. Conservation Measures'!FE48","v":{"$error":"#N/A"}},{"$f":"'2. Conservation Measures'!FF48","v":{"$error":"#N/A"}},{"$f":"'2. Conservation Measures'!FG48","v":{"$error":"#N/A"}},{"$f":"'2. Conservation Measures'!FH48","v":{"$error":"#N/A"}},{"$f":"'2. Conservation Measures'!FI48","v":{"$error":"#N/A"}},{"$f":"'2. Conservation Measures'!FJ48","v":{"$error":"#N/A"}},{"$f":"'2. Conservation Measures'!FK48","v":{"$error":"#N/A"}},{"$f":"'2. Conservation Measures'!FL48","v":{"$error":"#N/A"}},{"$f":"'2. Conservation Measures'!FM48","v":{"$error":"#N/A"}},{"$f":"'2. Conservation Measures'!FN48","v":{"$error":"#N/A"}},{"$f":"'2. Conservation Measures'!FO48","v":{"$error":"#N/A"}},{"$f":"'2. Conservation Measures'!FP48","v":{"$error":"#N/A"}},{"$f":"'2. Conservation Measures'!FQ48","v":{"$error":"#N/A"}},{"$f":"'2. Conservation Measures'!FR48","v":{"$error":"#N/A"}},{"$f":"'2. Conservation Measures'!FS48","v":{"$error":"#N/A"}},{"$f":"'2. Conservation Measures'!FT48","v":{"$error":"#N/A"}},{"$f":"'2. Conservation Measures'!FU48","v":{"$error":"#N/A"}},{"$f":"'2. Conservation Measures'!FV48","v":{"$error":"#N/A"}},{"$f":"'2. Conservation Measures'!FW48","v":{"$error":"#N/A"}},{"$f":"'2. Conservation Measures'!FX48","v":{"$error":"#N/A"}},{"$f":"'2. Conservation Measures'!FY48","v":{"$error":"#N/A"}},{"$f":"'2. Conservation Measures'!FZ48","v":{"$error":"#N/A"}},{"$f":"'2. Conservation Measures'!GA48","v":{"$error":"#N/A"}},{"$f":"'2. Conservation Measures'!GB48","v":{"$error":"#N/A"}},{"$f":"'2. Conservation Measures'!GC48","v":{"$error":"#N/A"}},{"$f":"'2. Conservation Measures'!GD48","v":{"$error":"#N/A"}},{"$f":"'2. Conservation Measures'!GE48","v":{"$error":"#N/A"}},{"$f":"'2. Conservation Measures'!GF48","v":{"$error":"#N/A"}},{"$f":"'2. Conservation Measures'!GG48","v":{"$error":"#N/A"}},{"$f":"'2. Conservation Measures'!GH48","v":{"$error":"#N/A"}},{"$f":"'2. Conservation Measures'!GI48","v":{"$error":"#N/A"}},{"$f":"'2. Conservation Measures'!GJ48","v":{"$error":"#N/A"}},{"$f":"'2. Conservation Measures'!GK48","v":{"$error":"#N/A"}},{"$f":"'2. Conservation Measures'!GL48","v":{"$error":"#N/A"}},{"$f":"'2. Conservation Measures'!GM48","v":{"$error":"#N/A"}},{"$f":"'2. Conservation Measures'!GN48","v":{"$error":"#N/A"}},null,{"$f":"'2. Conservation Measures'!GP48","v":{"$error":"#N/A"}},{"$f":"'2. Conservation Measures'!GQ48","v":{"$error":"#N/A"}},{"$f":"'2. Conservation Measures'!GR48","v":{"$error":"#N/A"}},{"$f":"'2. Conservation Measures'!GS48","v":{"$error":"#N/A"}},{"$f":"'2. Conservation Measures'!GT48","v":{"$error":"#N/A"}},{"$f":"'2. Conservation Measures'!GU48","v":{"$error":"#N/A"}},{"$f":"'2. Conservation Measures'!GV48","v":{"$error":"#N/A"}},{"$f":"'2. Conservation Measures'!GW48","v":{"$error":"#N/A"}},{"$f":"'2. Conservation Measures'!GX48","v":{"$error":"#N/A"}},{"$f":"'2. Conservation Measures'!GY48","v":{"$error":"#N/A"}},{"$f":"'2. Conservation Measures'!GZ48","v":{"$error":"#N/A"}},{"$f":"'2. Conservation Measures'!HA48","v":{"$error":"#N/A"}},{"$f":"'2. Conservation Measures'!HB48","v":{"$error":"#N/A"}},{"$f":"'2. Conservation Measures'!HC48","v":{"$error":"#N/A"}},{"$f":"'2. Conservation Measures'!HD48","v":{"$error":"#N/A"}},{"$f":"'2. Conservation Measures'!HE48","v":{"$error":"#N/A"}},{"$f":"'2. Conservation Measures'!HF48","v":{"$error":"#N/A"}},{"$f":"'2. Conservation Measures'!HG48","v":{"$error":"#N/A"}},{"$f":"'2. Conservation Measures'!HH48","v":{"$error":"#N/A"}},{"$f":"'2. Conservation Measures'!HI48","v":{"$error":"#N/A"}},{"$f":"'2. Conservation Measures'!HJ48","v":{"$error":"#N/A"}},{"$f":"'2. Conservation Measures'!HK48","v":{"$error":"#N/A"}},{"$f":"'2. Conservation Measures'!HL48","v":{"$error":"#N/A"}},{"$f":"'2. Conservation Measures'!HM48","v":{"$error":"#N/A"}},{"$f":"'2. Conservation Measures'!HN48","v":{"$error":"#N/A"}},{"$f":"'2. Conservation Measures'!HO48","v":{"$error":"#N/A"}},{"$f":"'2. Conservation Measures'!HP48","v":{"$error":"#N/A"}},{"$f":"'2. Conservation Measures'!HQ48","v":{"$error":"#N/A"}},{"$f":"'2. Conservation Measures'!HR48","v":{"$error":"#N/A"}},{"$f":"'2. Conservation Measures'!HS48","v":{"$error":"#N/A"}},{"$f":"'2. Conservation Measures'!HT48","v":{"$error":"#N/A"}},{"$f":"'2. Conservation Measures'!HU48","v":{"$error":"#N/A"}},{"$f":"'2. Conservation Measures'!HV48","v":{"$error":"#N/A"}},{"$f":"'2. Conservation Measures'!HW48","v":{"$error":"#N/A"}},{"$f":"'2. Conservation Measures'!HX48","v":{"$error":"#N/A"}},{"$f":"'2. Conservation Measures'!HY48","v":{"$error":"#N/A"}},{"$f":"'2. Conservation Measures'!HZ48","v":{"$error":"#N/A"}},{"$f":"'2. Conservation Measures'!IA48","v":{"$error":"#N/A"}},{"$f":"'2. Conservation Measures'!IB48","v":{"$error":"#N/A"}},{"$f":"'2. Conservation Measures'!IC48","v":{"$error":"#N/A"}},{"$f":"'2. Conservation Measures'!ID48","v":{"$error":"#N/A"}},{"$f":"'2. Conservation Measures'!IE48","v":{"$error":"#N/A"}},{"$f":"'2. Conservation Measures'!IF48","v":{"$error":"#N/A"}},{"$f":"'2. Conservation Measures'!IG48","v":{"$error":"#N/A"}},{"$f":"'2. Conservation Measures'!IH48","v":{"$error":"#N/A"}},{"$f":"'2. Conservation Measures'!II48","v":{"$error":"#N/A"}},{"$f":"'2. Conservation Measures'!IJ48","v":{"$error":"#N/A"}},{"$f":"'2. Conservation Measures'!IK48","v":{"$error":"#N/A"}},{"$f":"'2. Conservation Measures'!IL48","v":{"$error":"#N/A"}},{"$f":"'2. Conservation Measures'!IM48","v":{"$error":"#N/A"}},{"$f":"'2. Conservation Measures'!IN48","v":{"$error":"#N/A"}},null,{"$f":"'2. Conservation Measures'!IP48","v":{"$error":"#VALUE!"}},{"$f":"'2. Conservation Measures'!IQ48","v":{"$error":"#VALUE!"}},{"$f":"'2. Conservation Measures'!IR48","v":{"$error":"#VALUE!"}},{"$f":"'2. Conservation Measures'!IS48","v":{"$error":"#VALUE!"}},{"$f":"'2. Conservation Measures'!IT48","v":{"$error":"#VALUE!"}},{"$f":"'2. Conservation Measures'!IU48","v":{"$error":"#VALUE!"}},{"$f":"'2. Conservation Measures'!IV48","v":{"$error":"#VALUE!"}},{"$f":"'2. Conservation Measures'!IW48","v":{"$error":"#VALUE!"}},{"$f":"'2. Conservation Measures'!IX48","v":{"$error":"#VALUE!"}},{"$f":"'2. Conservation Measures'!IY48","v":{"$error":"#VALUE!"}},{"$f":"'2. Conservation Measures'!IZ48","v":{"$error":"#VALUE!"}},{"$f":"'2. Conservation Measures'!JA48","v":{"$error":"#VALUE!"}},{"$f":"'2. Conservation Measures'!JB48","v":{"$error":"#VALUE!"}},{"$f":"'2. Conservation Measures'!JC48","v":{"$error":"#VALUE!"}},{"$f":"'2. Conservation Measures'!JD48","v":{"$error":"#VALUE!"}},{"$f":"'2. Conservation Measures'!JE48","v":{"$error":"#VALUE!"}},{"$f":"'2. Conservation Measures'!JF48","v":{"$error":"#VALUE!"}},{"$f":"'2. Conservation Measures'!JG48","v":{"$error":"#VALUE!"}},{"$f":"'2. Conservation Measures'!JH48","v":{"$error":"#VALUE!"}},{"$f":"'2. Conservation Measures'!JI48","v":{"$error":"#VALUE!"}},{"$f":"'2. Conservation Measures'!JJ48","v":{"$error":"#VALUE!"}},{"$f":"'2. Conservation Measures'!JK48","v":{"$error":"#VALUE!"}},{"$f":"'2. Conservation Measures'!JL48","v":{"$error":"#VALUE!"}},{"$f":"'2. Conservation Measures'!JM48","v":{"$error":"#VALUE!"}},{"$f":"'2. Conservation Measures'!JN48","v":{"$error":"#VALUE!"}},{"$f":"'2. Conservation Measures'!JO48","v":{"$error":"#VALUE!"}},{"$f":"'2. Conservation Measures'!JP48","v":{"$error":"#VALUE!"}},{"$f":"'2. Conservation Measures'!JQ48","v":{"$error":"#VALUE!"}},{"$f":"'2. Conservation Measures'!JR48","v":{"$error":"#VALUE!"}},{"$f":"'2. Conservation Measures'!JS48","v":{"$error":"#VALUE!"}},{"$f":"'2. Conservation Measures'!JT48","v":{"$error":"#VALUE!"}},{"$f":"'2. Conservation Measures'!JU48","v":{"$error":"#VALUE!"}},{"$f":"'2. Conservation Measures'!JV48","v":{"$error":"#VALUE!"}},{"$f":"'2. Conservation Measures'!JW48","v":{"$error":"#VALUE!"}},{"$f":"'2. Conservation Measures'!JX48","v":{"$error":"#VALUE!"}},{"$f":"'2. Conservation Measures'!JY48","v":{"$error":"#VALUE!"}},{"$f":"'2. Conservation Measures'!JZ48","v":{"$error":"#VALUE!"}},{"$f":"'2. Conservation Measures'!KA48","v":{"$error":"#VALUE!"}},{"$f":"'2. Conservation Measures'!KB48","v":{"$error":"#VALUE!"}},{"$f":"'2. Conservation Measures'!KC48","v":{"$error":"#VALUE!"}},{"$f":"'2. Conservation Measures'!KD48","v":{"$error":"#VALUE!"}},{"$f":"'2. Conservation Measures'!KE48","v":{"$error":"#VALUE!"}},{"$f":"'2. Conservation Measures'!KF48","v":{"$error":"#VALUE!"}},{"$f":"'2. Conservation Measures'!KG48","v":{"$error":"#VALUE!"}},{"$f":"'2. Conservation Measures'!KH48","v":{"$error":"#VALUE!"}},{"$f":"'2. Conservation Measures'!KI48","v":{"$error":"#VALUE!"}},{"$f":"'2. Conservation Measures'!KJ48","v":{"$error":"#VALUE!"}},{"$f":"'2. Conservation Measures'!KK48","v":{"$error":"#VALUE!"}},{"$f":"'2. Conservation Measures'!KL48","v":{"$error":"#VALUE!"}},{"$f":"'2. Conservation Measures'!KM48","v":{"$error":"#VALUE!"}},{"$f":"'2. Conservation Measures'!KN48","v":{"$error":"#VALUE!"}}]
[null,{"$f":"'2. Conservation Measures'!B49","v":"PRE-ICI-03"},{"$f":"'2. Conservation Measures'!C49","v":{"$error":"#N/A"}},{"$f":"'2. Conservation Measures'!D49","v":"N"},null,{"$f":"'2. Conservation Measures'!AA49","v":{"$error":"#N/A"}},null,{"$f":"'2. Conservation Measures'!AO49","v":0},{"$f":"'2. Conservation Measures'!AP49","v":0},{"$f":"'2. Conservation Measures'!AQ49","v":0},{"$f":"'2. Conservation Measures'!AR49","v":0},{"$f":"'2. Conservation Measures'!AS49","v":0},{"$f":"'2. Conservation Measures'!AT49","v":0},{"$f":"'2. Conservation Measures'!AU49","v":0},{"$f":"'2. Conservation Measures'!AV49","v":0},{"$f":"'2. Conservation Measures'!AW49","v":0},{"$f":"'2. Conservation Measures'!AX49","v":0},{"$f":"'2. Conservation Measures'!AY49","v":0},{"$f":"'2. Conservation Measures'!AZ49","v":0},{"$f":"'2. Conservation Measures'!BA49","v":0},{"$f":"'2. Conservation Measures'!BB49","v":0},{"$f":"'2. Conservation Measures'!BC49","v":0},{"$f":"'2. Conservation Measures'!BD49","v":0},{"$f":"'2. Conservation Measures'!BE49","v":0},{"$f":"'2. Conservation Measures'!BF49","v":0},{"$f":"'2. Conservation Measures'!BG49","v":0},{"$f":"'2. Conservation Measures'!BH49","v":0},{"$f":"'2. Conservation Measures'!BI49","v":0},{"$f":"'2. Conservation Measures'!BJ49","v":0},{"$f":"'2. Conservation Measures'!BK49","v":0},{"$f":"'2. Conservation Measures'!BL49","v":0},{"$f":"'2. Conservation Measures'!BM49","v":0},{"$f":"'2. Conservation Measures'!BN49","v":0},{"$f":"'2. Conservation Measures'!BO49","v":0},{"$f":"'2. Conservation Measures'!BP49","v":0},{"$f":"'2. Conservation Measures'!BQ49","v":0},{"$f":"'2. Conservation Measures'!BR49","v":0},{"$f":"'2. Conservation Measures'!BS49","v":0},{"$f":"'2. Conservation Measures'!BT49","v":0},{"$f":"'2. Conservation Measures'!BU49","v":0},{"$f":"'2. Conservation Measures'!BV49","v":0},{"$f":"'2. Conservation Measures'!BW49","v":0},{"$f":"'2. Conservation Measures'!BX49","v":0},{"$f":"'2. Conservation Measures'!BY49","v":0},{"$f":"'2. Conservation Measures'!BZ49","v":0},{"$f":"'2. Conservation Measures'!CA49","v":0},{"$f":"'2. Conservation Measures'!CB49","v":0},{"$f":"'2. Conservation Measures'!CC49","v":0},{"$f":"'2. Conservation Measures'!CD49","v":0},{"$f":"'2. Conservation Measures'!CE49","v":0},{"$f":"'2. Conservation Measures'!CF49","v":0},{"$f":"'2. Conservation Measures'!CG49","v":0},{"$f":"'2. Conservation Measures'!CH49","v":0},{"$f":"'2. Conservation Measures'!CI49","v":0},{"$f":"'2. Conservation Measures'!CJ49","v":0},{"$f":"'2. Conservation Measures'!CK49","v":0},{"$f":"'2. Conservation Measures'!CL49","v":0},{"$f":"'2. Conservation Measures'!CM49","v":0},null,{"$f":"'2. Conservation Measures'!CO49","v":{"$error":"#VALUE!"}},{"$f":"'2. Conservation Measures'!CP49","v":{"$error":"#VALUE!"}},{"$f":"'2. Conservation Measures'!CQ49","v":{"$error":"#VALUE!"}},{"$f":"'2. Conservation Measures'!CR49","v":{"$error":"#VALUE!"}},{"$f":"'2. Conservation Measures'!CS49","v":{"$error":"#VALUE!"}},{"$f":"'2. Conservation Measures'!CT49","v":{"$error":"#VALUE!"}},{"$f":"'2. Conservation Measures'!CU49","v":{"$error":"#VALUE!"}},{"$f":"'2. Conservation Measures'!CV49","v":{"$error":"#VALUE!"}},{"$f":"'2. Conservation Measures'!CW49","v":{"$error":"#VALUE!"}},{"$f":"'2. Conservation Measures'!CX49","v":{"$error":"#VALUE!"}},{"$f":"'2. Conservation Measures'!CY49","v":{"$error":"#VALUE!"}},{"$f":"'2. Conservation Measures'!CZ49","v":{"$error":"#VALUE!"}},{"$f":"'2. Conservation Measures'!DA49","v":{"$error":"#VALUE!"}},{"$f":"'2. Conservation Measures'!DB49","v":{"$error":"#VALUE!"}},{"$f":"'2. Conservation Measures'!DC49","v":{"$error":"#VALUE!"}},{"$f":"'2. Conservation Measures'!DD49","v":{"$error":"#VALUE!"}},{"$f":"'2. Conservation Measures'!DE49","v":{"$error":"#VALUE!"}},{"$f":"'2. Conservation Measures'!DF49","v":{"$error":"#VALUE!"}},{"$f":"'2. Conservation Measures'!DG49","v":{"$error":"#VALUE!"}},{"$f":"'2. Conservation Measures'!DH49","v":{"$error":"#VALUE!"}},{"$f":"'2. Conservation Measures'!DI49","v":{"$error":"#VALUE!"}},{"$f":"'2. Conservation Measures'!DJ49","v":{"$error":"#VALUE!"}},{"$f":"'2. Conservation Measures'!DK49","v":{"$error":"#VALUE!"}},{"$f":"'2. Conservation Measures'!DL49","v":{"$error":"#VALUE!"}},{"$f":"'2. Conservation Measures'!DM49","v":{"$error":"#VALUE!"}},{"$f":"'2. Conservation Measures'!DN49","v":{"$error":"#VALUE!"}},{"$f":"'2. Conservation Measures'!DO49","v":{"$error":"#VALUE!"}},{"$f":"'2. Conservation Measures'!DP49","v":{"$error":"#VALUE!"}},{"$f":"'2. Conservation Measures'!DQ49","v":{"$error":"#VALUE!"}},{"$f":"'2. Conservation Measures'!DR49","v":{"$error":"#VALUE!"}},{"$f":"'2. Conservation Measures'!DS49","v":{"$error":"#VALUE!"}},{"$f":"'2. Conservation Measures'!DT49","v":{"$error":"#VALUE!"}},{"$f":"'2. Conservation Measures'!DU49","v":{"$error":"#VALUE!"}},{"$f":"'2. Conservation Measures'!DV49","v":{"$error":"#VALUE!"}},{"$f":"'2. Conservation Measures'!DW49","v":{"$error":"#VALUE!"}},{"$f":"'2. Conservation Measures'!DX49","v":{"$error":"#VALUE!"}},{"$f":"'2. Conservation Measures'!DY49","v":{"$error":"#VALUE!"}},{"$f":"'2. Conservation Measures'!DZ49","v":{"$error":"#VALUE!"}},{"$f":"'2. Conservation Measures'!EA49","v":{"$error":"#VALUE!"}},{"$f":"'2. Conservation Measures'!EB49","v":{"$error":"#VALUE!"}},{"$f":"'2. Conservation Measures'!EC49","v":{"$error":"#VALUE!"}},{"$f":"'2. Conservation Measures'!ED49","v":{"$error":"#VALUE!"}},{"$f":"'2. Conservation Measures'!EE49","v":{"$error":"#VALUE!"}},{"$f":"'2. Conservation Measures'!EF49","v":{"$error":"#VALUE!"}},{"$f":"'2. Conservation Measures'!EG49","v":{"$error":"#VALUE!"}},{"$f":"'2. Conservation Measures'!EH49","v":{"$error":"#VALUE!"}},{"$f":"'2. Conservation Measures'!EI49","v":{"$error":"#VALUE!"}},{"$f":"'2. Conservation Measures'!EJ49","v":{"$error":"#VALUE!"}},{"$f":"'2. Conservation Measures'!EK49","v":{"$error":"#VALUE!"}},{"$f":"'2. Conservation Measures'!EL49","v":{"$error":"#VALUE!"}},{"$f":"'2. Conservation Measures'!EM49","v":{"$error":"#VALUE!"}},null,{"$f":"'2. Conservation Measures'!KP49","v":{"$error":"#N/A"}},{"$f":"'2. Conservation Measures'!KQ49","v":{"$error":"#N/A"}},{"$f":"'2. Conservation Measures'!KR49","v":{"$error":"#N/A"}},{"$f":"'2. Conservation Measures'!KS49","v":{"$error":"#N/A"}},{"$f":"'2. Conservation Measures'!KT49","v":{"$error":"#N/A"}},{"$f":"'2. Conservation Measures'!KU49","v":{"$error":"#N/A"}},{"$f":"'2. Conservation Measures'!KV49","v":{"$error":"#N/A"}},{"$f":"'2. Conservation Measures'!KW49","v":{"$error":"#N/A"}},{"$f":"'2. Conservation Measures'!KX49","v":{"$error":"#N/A"}},{"$f":"'2. Conservation Measures'!KY49","v":{"$error":"#N/A"}},{"$f":"'2. Conservation Measures'!KZ49","v":{"$error":"#N/A"}},{"$f":"'2. Conservation Measures'!LA49","v":{"$error":"#N/A"}},{"$f":"'2. Conservation Measures'!LB49","v":{"$error":"#N/A"}},{"$f":"'2. Conservation Measures'!LC49","v":{"$error":"#N/A"}},{"$f":"'2. Conservation Measures'!LD49","v":{"$error":"#N/A"}},{"$f":"'2. Conservation Measures'!LE49","v":{"$error":"#N/A"}},{"$f":"'2. Conservation Measures'!LF49","v":{"$error":"#N/A"}},{"$f":"'2. Conservation Measures'!LG49","v":{"$error":"#N/A"}},{"$f":"'2. Conservation Measures'!LH49","v":{"$error":"#N/A"}},{"$f":"'2. Conservation Measures'!LI49","v":{"$error":"#N/A"}},{"$f":"'2. Conservation Measures'!LJ49","v":{"$error":"#N/A"}},{"$f":"'2. Conservation Measures'!LK49","v":{"$error":"#N/A"}},{"$f":"'2. Conservation Measures'!LL49","v":{"$error":"#N/A"}},{"$f":"'2. Conservation Measures'!LM49","v":{"$error":"#N/A"}},{"$f":"'2. Conservation Measures'!LN49","v":{"$error":"#N/A"}},{"$f":"'2. Conservation Measures'!LO49","v":{"$error":"#N/A"}},{"$f":"'2. Conservation Measures'!LP49","v":{"$error":"#N/A"}},{"$f":"'2. Conservation Measures'!LQ49","v":{"$error":"#N/A"}},{"$f":"'2. Conservation Measures'!LR49","v":{"$error":"#N/A"}},{"$f":"'2. Conservation Measures'!LS49","v":{"$error":"#N/A"}},{"$f":"'2. Conservation Measures'!LT49","v":{"$error":"#N/A"}},{"$f":"'2. Conservation Measures'!LU49","v":{"$error":"#N/A"}},{"$f":"'2. Conservation Measures'!LV49","v":{"$error":"#N/A"}},{"$f":"'2. Conservation Measures'!LW49","v":{"$error":"#N/A"}},{"$f":"'2. Conservation Measures'!LX49","v":{"$error":"#N/A"}},{"$f":"'2. Conservation Measures'!LY49","v":{"$error":"#N/A"}},{"$f":"'2. Conservation Measures'!LZ49","v":{"$error":"#N/A"}},{"$f":"'2. Conservation Measures'!MA49","v":{"$error":"#N/A"}},{"$f":"'2. Conservation Measures'!MB49","v":{"$error":"#N/A"}},{"$f":"'2. Conservation Measures'!MC49","v":{"$error":"#N/A"}},{"$f":"'2. Conservation Measures'!MD49","v":{"$error":"#N/A"}},{"$f":"'2. Conservation Measures'!ME49","v":{"$error":"#N/A"}},{"$f":"'2. Conservation Measures'!MF49","v":{"$error":"#N/A"}},{"$f":"'2. Conservation Measures'!MG49","v":{"$error":"#N/A"}},{"$f":"'2. Conservation Measures'!MH49","v":{"$error":"#N/A"}},{"$f":"'2. Conservation Measures'!MI49","v":{"$error":"#N/A"}},{"$f":"'2. Conservation Measures'!MJ49","v":{"$error":"#N/A"}},{"$f":"'2. Conservation Measures'!MK49","v":{"$error":"#N/A"}},{"$f":"'2. Conservation Measures'!ML49","v":{"$error":"#N/A"}},{"$f":"'2. Conservation Measures'!MM49","v":{"$error":"#N/A"}},{"$f":"'2. Conservation Measures'!MN49","v":{"$error":"#N/A"}},null,{"$f":"'2. Conservation Measures'!EP49","v":{"$error":"#N/A"}},{"$f":"'2. Conservation Measures'!EQ49","v":{"$error":"#N/A"}},{"$f":"'2. Conservation Measures'!ER49","v":{"$error":"#N/A"}},{"$f":"'2. Conservation Measures'!ES49","v":{"$error":"#N/A"}},{"$f":"'2. Conservation Measures'!ET49","v":{"$error":"#N/A"}},{"$f":"'2. Conservation Measures'!EU49","v":{"$error":"#N/A"}},{"$f":"'2. Conservation Measures'!EV49","v":{"$error":"#N/A"}},{"$f":"'2. Conservation Measures'!EW49","v":{"$error":"#N/A"}},{"$f":"'2. Conservation Measures'!EX49","v":{"$error":"#N/A"}},{"$f":"'2. Conservation Measures'!EY49","v":{"$error":"#N/A"}},{"$f":"'2. Conservation Measures'!EZ49","v":{"$error":"#N/A"}},{"$f":"'2. Conservation Measures'!FA49","v":{"$error":"#N/A"}},{"$f":"'2. Conservation Measures'!FB49","v":{"$error":"#N/A"}},{"$f":"'2. Conservation Measures'!FC49","v":{"$error":"#N/A"}},{"$f":"'2. Conservation Measures'!FD49","v":{"$error":"#N/A"}},{"$f":"'2. Conservation Measures'!FE49","v":{"$error":"#N/A"}},{"$f":"'2. Conservation Measures'!FF49","v":{"$error":"#N/A"}},{"$f":"'2. Conservation Measures'!FG49","v":{"$error":"#N/A"}},{"$f":"'2. Conservation Measures'!FH49","v":{"$error":"#N/A"}},{"$f":"'2. Conservation Measures'!FI49","v":{"$error":"#N/A"}},{"$f":"'2. Conservation Measures'!FJ49","v":{"$error":"#N/A"}},{"$f":"'2. Conservation Measures'!FK49","v":{"$error":"#N/A"}},{"$f":"'2. Conservation Measures'!FL49","v":{"$error":"#N/A"}},{"$f":"'2. Conservation Measures'!FM49","v":{"$error":"#N/A"}},{"$f":"'2. Conservation Measures'!FN49","v":{"$error":"#N/A"}},{"$f":"'2. Conservation Measures'!FO49","v":{"$error":"#N/A"}},{"$f":"'2. Conservation Measures'!FP49","v":{"$error":"#N/A"}},{"$f":"'2. Conservation Measures'!FQ49","v":{"$error":"#N/A"}},{"$f":"'2. Conservation Measures'!FR49","v":{"$error":"#N/A"}},{"$f":"'2. Conservation Measures'!FS49","v":{"$error":"#N/A"}},{"$f":"'2. Conservation Measures'!FT49","v":{"$error":"#N/A"}},{"$f":"'2. Conservation Measures'!FU49","v":{"$error":"#N/A"}},{"$f":"'2. Conservation Measures'!FV49","v":{"$error":"#N/A"}},{"$f":"'2. Conservation Measures'!FW49","v":{"$error":"#N/A"}},{"$f":"'2. Conservation Measures'!FX49","v":{"$error":"#N/A"}},{"$f":"'2. Conservation Measures'!FY49","v":{"$error":"#N/A"}},{"$f":"'2. Conservation Measures'!FZ49","v":{"$error":"#N/A"}},{"$f":"'2. Conservation Measures'!GA49","v":{"$error":"#N/A"}},{"$f":"'2. Conservation Measures'!GB49","v":{"$error":"#N/A"}},{"$f":"'2. Conservation Measures'!GC49","v":{"$error":"#N/A"}},{"$f":"'2. Conservation Measures'!GD49","v":{"$error":"#N/A"}},{"$f":"'2. Conservation Measures'!GE49","v":{"$error":"#N/A"}},{"$f":"'2. Conservation Measures'!GF49","v":{"$error":"#N/A"}},{"$f":"'2. Conservation Measures'!GG49","v":{"$error":"#N/A"}},{"$f":"'2. Conservation Measures'!GH49","v":{"$error":"#N/A"}},{"$f":"'2. Conservation Measures'!GI49","v":{"$error":"#N/A"}},{"$f":"'2. Conservation Measures'!GJ49","v":{"$error":"#N/A"}},{"$f":"'2. Conservation Measures'!GK49","v":{"$error":"#N/A"}},{"$f":"'2. Conservation Measures'!GL49","v":{"$error":"#N/A"}},{"$f":"'2. Conservation Measures'!GM49","v":{"$error":"#N/A"}},{"$f":"'2. Conservation Measures'!GN49","v":{"$error":"#N/A"}},null,{"$f":"'2. Conservation Measures'!GP49","v":{"$error":"#N/A"}},{"$f":"'2. Conservation Measures'!GQ49","v":{"$error":"#N/A"}},{"$f":"'2. Conservation Measures'!GR49","v":{"$error":"#N/A"}},{"$f":"'2. Conservation Measures'!GS49","v":{"$error":"#N/A"}},{"$f":"'2. Conservation Measures'!GT49","v":{"$error":"#N/A"}},{"$f":"'2. Conservation Measures'!GU49","v":{"$error":"#N/A"}},{"$f":"'2. Conservation Measures'!GV49","v":{"$error":"#N/A"}},{"$f":"'2. Conservation Measures'!GW49","v":{"$error":"#N/A"}},{"$f":"'2. Conservation Measures'!GX49","v":{"$error":"#N/A"}},{"$f":"'2. Conservation Measures'!GY49","v":{"$error":"#N/A"}},{"$f":"'2. Conservation Measures'!GZ49","v":{"$error":"#N/A"}},{"$f":"'2. Conservation Measures'!HA49","v":{"$error":"#N/A"}},{"$f":"'2. Conservation Measures'!HB49","v":{"$error":"#N/A"}},{"$f":"'2. Conservation Measures'!HC49","v":{"$error":"#N/A"}},{"$f":"'2. Conservation Measures'!HD49","v":{"$error":"#N/A"}},{"$f":"'2. Conservation Measures'!HE49","v":{"$error":"#N/A"}},{"$f":"'2. Conservation Measures'!HF49","v":{"$error":"#N/A"}},{"$f":"'2. Conservation Measures'!HG49","v":{"$error":"#N/A"}},{"$f":"'2. Conservation Measures'!HH49","v":{"$error":"#N/A"}},{"$f":"'2. Conservation Measures'!HI49","v":{"$error":"#N/A"}},{"$f":"'2. Conservation Measures'!HJ49","v":{"$error":"#N/A"}},{"$f":"'2. Conservation Measures'!HK49","v":{"$error":"#N/A"}},{"$f":"'2. Conservation Measures'!HL49","v":{"$error":"#N/A"}},{"$f":"'2. Conservation Measures'!HM49","v":{"$error":"#N/A"}},{"$f":"'2. Conservation Measures'!HN49","v":{"$error":"#N/A"}},{"$f":"'2. Conservation Measures'!HO49","v":{"$error":"#N/A"}},{"$f":"'2. Conservation Measures'!HP49","v":{"$error":"#N/A"}},{"$f":"'2. Conservation Measures'!HQ49","v":{"$error":"#N/A"}},{"$f":"'2. Conservation Measures'!HR49","v":{"$error":"#N/A"}},{"$f":"'2. Conservation Measures'!HS49","v":{"$error":"#N/A"}},{"$f":"'2. Conservation Measures'!HT49","v":{"$error":"#N/A"}},{"$f":"'2. Conservation Measures'!HU49","v":{"$error":"#N/A"}},{"$f":"'2. Conservation Measures'!HV49","v":{"$error":"#N/A"}},{"$f":"'2. Conservation Measures'!HW49","v":{"$error":"#N/A"}},{"$f":"'2. Conservation Measures'!HX49","v":{"$error":"#N/A"}},{"$f":"'2. Conservation Measures'!HY49","v":{"$error":"#N/A"}},{"$f":"'2. Conservation Measures'!HZ49","v":{"$error":"#N/A"}},{"$f":"'2. Conservation Measures'!IA49","v":{"$error":"#N/A"}},{"$f":"'2. Conservation Measures'!IB49","v":{"$error":"#N/A"}},{"$f":"'2. Conservation Measures'!IC49","v":{"$error":"#N/A"}},{"$f":"'2. Conservation Measures'!ID49","v":{"$error":"#N/A"}},{"$f":"'2. Conservation Measures'!IE49","v":{"$error":"#N/A"}},{"$f":"'2. Conservation Measures'!IF49","v":{"$error":"#N/A"}},{"$f":"'2. Conservation Measures'!IG49","v":{"$error":"#N/A"}},{"$f":"'2. Conservation Measures'!IH49","v":{"$error":"#N/A"}},{"$f":"'2. Conservation Measures'!II49","v":{"$error":"#N/A"}},{"$f":"'2. Conservation Measures'!IJ49","v":{"$error":"#N/A"}},{"$f":"'2. Conservation Measures'!IK49","v":{"$error":"#N/A"}},{"$f":"'2. Conservation Measures'!IL49","v":{"$error":"#N/A"}},{"$f":"'2. Conservation Measures'!IM49","v":{"$error":"#N/A"}},{"$f":"'2. Conservation Measures'!IN49","v":{"$error":"#N/A"}},null,{"$f":"'2. Conservation Measures'!IP49","v":{"$error":"#VALUE!"}},{"$f":"'2. Conservation Measures'!IQ49","v":{"$error":"#VALUE!"}},{"$f":"'2. Conservation Measures'!IR49","v":{"$error":"#VALUE!"}},{"$f":"'2. Conservation Measures'!IS49","v":{"$error":"#VALUE!"}},{"$f":"'2. Conservation Measures'!IT49","v":{"$error":"#VALUE!"}},{"$f":"'2. Conservation Measures'!IU49","v":{"$error":"#VALUE!"}},{"$f":"'2. Conservation Measures'!IV49","v":{"$error":"#VALUE!"}},{"$f":"'2. Conservation Measures'!IW49","v":{"$error":"#VALUE!"}},{"$f":"'2. Conservation Measures'!IX49","v":{"$error":"#VALUE!"}},{"$f":"'2. Conservation Measures'!IY49","v":{"$error":"#VALUE!"}},{"$f":"'2. Conservation Measures'!IZ49","v":{"$error":"#VALUE!"}},{"$f":"'2. Conservation Measures'!JA49","v":{"$error":"#VALUE!"}},{"$f":"'2. Conservation Measures'!JB49","v":{"$error":"#VALUE!"}},{"$f":"'2. Conservation Measures'!JC49","v":{"$error":"#VALUE!"}},{"$f":"'2. Conservation Measures'!JD49","v":{"$error":"#VALUE!"}},{"$f":"'2. Conservation Measures'!JE49","v":{"$error":"#VALUE!"}},{"$f":"'2. Conservation Measures'!JF49","v":{"$error":"#VALUE!"}},{"$f":"'2. Conservation Measures'!JG49","v":{"$error":"#VALUE!"}},{"$f":"'2. Conservation Measures'!JH49","v":{"$error":"#VALUE!"}},{"$f":"'2. Conservation Measures'!JI49","v":{"$error":"#VALUE!"}},{"$f":"'2. Conservation Measures'!JJ49","v":{"$error":"#VALUE!"}},{"$f":"'2. Conservation Measures'!JK49","v":{"$error":"#VALUE!"}},{"$f":"'2. Conservation Measures'!JL49","v":{"$error":"#VALUE!"}},{"$f":"'2. Conservation Measures'!JM49","v":{"$error":"#VALUE!"}},{"$f":"'2. Conservation Measures'!JN49","v":{"$error":"#VALUE!"}},{"$f":"'2. Conservation Measures'!JO49","v":{"$error":"#VALUE!"}},{"$f":"'2. Conservation Measures'!JP49","v":{"$error":"#VALUE!"}},{"$f":"'2. Conservation Measures'!JQ49","v":{"$error":"#VALUE!"}},{"$f":"'2. Conservation Measures'!JR49","v":{"$error":"#VALUE!"}},{"$f":"'2. Conservation Measures'!JS49","v":{"$error":"#VALUE!"}},{"$f":"'2. Conservation Measures'!JT49","v":{"$error":"#VALUE!"}},{"$f":"'2. Conservation Measures'!JU49","v":{"$error":"#VALUE!"}},{"$f":"'2. Conservation Measures'!JV49","v":{"$error":"#VALUE!"}},{"$f":"'2. Conservation Measures'!JW49","v":{"$error":"#VALUE!"}},{"$f":"'2. Conservation Measures'!JX49","v":{"$error":"#VALUE!"}},{"$f":"'2. Conservation Measures'!JY49","v":{"$error":"#VALUE!"}},{"$f":"'2. Conservation Measures'!JZ49","v":{"$error":"#VALUE!"}},{"$f":"'2. Conservation Measures'!KA49","v":{"$error":"#VALUE!"}},{"$f":"'2. Conservation Measures'!KB49","v":{"$error":"#VALUE!"}},{"$f":"'2. Conservation Measures'!KC49","v":{"$error":"#VALUE!"}},{"$f":"'2. Conservation Measures'!KD49","v":{"$error":"#VALUE!"}},{"$f":"'2. Conservation Measures'!KE49","v":{"$error":"#VALUE!"}},{"$f":"'2. Conservation Measures'!KF49","v":{"$error":"#VALUE!"}},{"$f":"'2. Conservation Measures'!KG49","v":{"$error":"#VALUE!"}},{"$f":"'2. Conservation Measures'!KH49","v":{"$error":"#VALUE!"}},{"$f":"'2. Conservation Measures'!KI49","v":{"$error":"#VALUE!"}},{"$f":"'2. Conservation Measures'!KJ49","v":{"$error":"#VALUE!"}},{"$f":"'2. Conservation Measures'!KK49","v":{"$error":"#VALUE!"}},{"$f":"'2. Conservation Measures'!KL49","v":{"$error":"#VALUE!"}},{"$f":"'2. Conservation Measures'!KM49","v":{"$error":"#VALUE!"}},{"$f":"'2. Conservation Measures'!KN49","v":{"$error":"#VALUE!"}}]
[null,{"$f":"'2. Conservation Measures'!B50","v":"PRE-ICI-04"},{"$f":"'2. Conservation Measures'!C50","v":{"$error":"#N/A"}},{"$f":"'2. Conservation Measures'!D50","v":"N"},null,{"$f":"'2. Conservation Measures'!AA50","v":{"$error":"#N/A"}},null,{"$f":"'2. Conservation Measures'!AO50","v":0},{"$f":"'2. Conservation Measures'!AP50","v":0},{"$f":"'2. Conservation Measures'!AQ50","v":0},{"$f":"'2. Conservation Measures'!AR50","v":0},{"$f":"'2. Conservation Measures'!AS50","v":0},{"$f":"'2. Conservation Measures'!AT50","v":0},{"$f":"'2. Conservation Measures'!AU50","v":0},{"$f":"'2. Conservation Measures'!AV50","v":0},{"$f":"'2. Conservation Measures'!AW50","v":0},{"$f":"'2. Conservation Measures'!AX50","v":0},{"$f":"'2. Conservation Measures'!AY50","v":0},{"$f":"'2. Conservation Measures'!AZ50","v":0},{"$f":"'2. Conservation Measures'!BA50","v":0},{"$f":"'2. Conservation Measures'!BB50","v":0},{"$f":"'2. Conservation Measures'!BC50","v":0},{"$f":"'2. Conservation Measures'!BD50","v":0},{"$f":"'2. Conservation Measures'!BE50","v":0},{"$f":"'2. Conservation Measures'!BF50","v":0},{"$f":"'2. Conservation Measures'!BG50","v":0},{"$f":"'2. Conservation Measures'!BH50","v":0},{"$f":"'2. Conservation Measures'!BI50","v":0},{"$f":"'2. Conservation Measures'!BJ50","v":0},{"$f":"'2. Conservation Measures'!BK50","v":0},{"$f":"'2. Conservation Measures'!BL50","v":0},{"$f":"'2. Conservation Measures'!BM50","v":0},{"$f":"'2. Conservation Measures'!BN50","v":0},{"$f":"'2. Conservation Measures'!BO50","v":0},{"$f":"'2. Conservation Measures'!BP50","v":0},{"$f":"'2. Conservation Measures'!BQ50","v":0},{"$f":"'2. Conservation Measures'!BR50","v":0},{"$f":"'2. Conservation Measures'!BS50","v":0},{"$f":"'2. Conservation Measures'!BT50","v":0},{"$f":"'2. Conservation Measures'!BU50","v":0},{"$f":"'2. Conservation Measures'!BV50","v":0},{"$f":"'2. Conservation Measures'!BW50","v":0},{"$f":"'2. Conservation Measures'!BX50","v":0},{"$f":"'2. Conservation Measures'!BY50","v":0},{"$f":"'2. Conservation Measures'!BZ50","v":0},{"$f":"'2. Conservation Measures'!CA50","v":0},{"$f":"'2. Conservation Measures'!CB50","v":0},{"$f":"'2. Conservation Measures'!CC50","v":0},{"$f":"'2. Conservation Measures'!CD50","v":0},{"$f":"'2. Conservation Measures'!CE50","v":0},{"$f":"'2. Conservation Measures'!CF50","v":0},{"$f":"'2. Conservation Measures'!CG50","v":0},{"$f":"'2. Conservation Measures'!CH50","v":0},{"$f":"'2. Conservation Measures'!CI50","v":0},{"$f":"'2. Conservation Measures'!CJ50","v":0},{"$f":"'2. Conservation Measures'!CK50","v":0},{"$f":"'2. Conservation Measures'!CL50","v":0},{"$f":"'2. Conservation Measures'!CM50","v":0},null,{"$f":"'2. Conservation Measures'!CO50","v":{"$error":"#VALUE!"}},{"$f":"'2. Conservation Measures'!CP50","v":{"$error":"#VALUE!"}},{"$f":"'2. Conservation Measures'!CQ50","v":{"$error":"#VALUE!"}},{"$f":"'2. Conservation Measures'!CR50","v":{"$error":"#VALUE!"}},{"$f":"'2. Conservation Measures'!CS50","v":{"$error":"#VALUE!"}},{"$f":"'2. Conservation Measures'!CT50","v":{"$error":"#VALUE!"}},{"$f":"'2. Conservation Measures'!CU50","v":{"$error":"#VALUE!"}},{"$f":"'2. Conservation Measures'!CV50","v":{"$error":"#VALUE!"}},{"$f":"'2. Conservation Measures'!CW50","v":{"$error":"#VALUE!"}},{"$f":"'2. Conservation Measures'!CX50","v":{"$error":"#VALUE!"}},{"$f":"'2. Conservation Measures'!CY50","v":{"$error":"#VALUE!"}},{"$f":"'2. Conservation Measures'!CZ50","v":{"$error":"#VALUE!"}},{"$f":"'2. Conservation Measures'!DA50","v":{"$error":"#VALUE!"}},{"$f":"'2. Conservation Measures'!DB50","v":{"$error":"#VALUE!"}},{"$f":"'2. Conservation Measures'!DC50","v":{"$error":"#VALUE!"}},{"$f":"'2. Conservation Measures'!DD50","v":{"$error":"#VALUE!"}},{"$f":"'2. Conservation Measures'!DE50","v":{"$error":"#VALUE!"}},{"$f":"'2. Conservation Measures'!DF50","v":{"$error":"#VALUE!"}},{"$f":"'2. Conservation Measures'!DG50","v":{"$error":"#VALUE!"}},{"$f":"'2. Conservation Measures'!DH50","v":{"$error":"#VALUE!"}},{"$f":"'2. Conservation Measures'!DI50","v":{"$error":"#VALUE!"}},{"$f":"'2. Conservation Measures'!DJ50","v":{"$error":"#VALUE!"}},{"$f":"'2. Conservation Measures'!DK50","v":{"$error":"#VALUE!"}},{"$f":"'2. Conservation Measures'!DL50","v":{"$error":"#VALUE!"}},{"$f":"'2. Conservation Measures'!DM50","v":{"$error":"#VALUE!"}},{"$f":"'2. Conservation Measures'!DN50","v":{"$error":"#VALUE!"}},{"$f":"'2. Conservation Measures'!DO50","v":{"$error":"#VALUE!"}},{"$f":"'2. Conservation Measures'!DP50","v":{"$error":"#VALUE!"}},{"$f":"'2. Conservation Measures'!DQ50","v":{"$error":"#VALUE!"}},{"$f":"'2. Conservation Measures'!DR50","v":{"$error":"#VALUE!"}},{"$f":"'2. Conservation Measures'!DS50","v":{"$error":"#VALUE!"}},{"$f":"'2. Conservation Measures'!DT50","v":{"$error":"#VALUE!"}},{"$f":"'2. Conservation Measures'!DU50","v":{"$error":"#VALUE!"}},{"$f":"'2. Conservation Measures'!DV50","v":{"$error":"#VALUE!"}},{"$f":"'2. Conservation Measures'!DW50","v":{"$error":"#VALUE!"}},{"$f":"'2. Conservation Measures'!DX50","v":{"$error":"#VALUE!"}},{"$f":"'2. Conservation Measures'!DY50","v":{"$error":"#VALUE!"}},{"$f":"'2. Conservation Measures'!DZ50","v":{"$error":"#VALUE!"}},{"$f":"'2. Conservation Measures'!EA50","v":{"$error":"#VALUE!"}},{"$f":"'2. Conservation Measures'!EB50","v":{"$error":"#VALUE!"}},{"$f":"'2. Conservation Measures'!EC50","v":{"$error":"#VALUE!"}},{"$f":"'2. Conservation Measures'!ED50","v":{"$error":"#VALUE!"}},{"$f":"'2. Conservation Measures'!EE50","v":{"$error":"#VALUE!"}},{"$f":"'2. Conservation Measures'!EF50","v":{"$error":"#VALUE!"}},{"$f":"'2. Conservation Measures'!EG50","v":{"$error":"#VALUE!"}},{"$f":"'2. Conservation Measures'!EH50","v":{"$error":"#VALUE!"}},{"$f":"'2. Conservation Measures'!EI50","v":{"$error":"#VALUE!"}},{"$f":"'2. Conservation Measures'!EJ50","v":{"$error":"#VALUE!"}},{"$f":"'2. Conservation Measures'!EK50","v":{"$error":"#VALUE!"}},{"$f":"'2. Conservation Measures'!EL50","v":{"$error":"#VALUE!"}},{"$f":"'2. Conservation Measures'!EM50","v":{"$error":"#VALUE!"}},null,{"$f":"'2. Conservation Measures'!KP50","v":{"$error":"#N/A"}},{"$f":"'2. Conservation Measures'!KQ50","v":{"$error":"#N/A"}},{"$f":"'2. Conservation Measures'!KR50","v":{"$error":"#N/A"}},{"$f":"'2. Conservation Measures'!KS50","v":{"$error":"#N/A"}},{"$f":"'2. Conservation Measures'!KT50","v":{"$error":"#N/A"}},{"$f":"'2. Conservation Measures'!KU50","v":{"$error":"#N/A"}},{"$f":"'2. Conservation Measures'!KV50","v":{"$error":"#N/A"}},{"$f":"'2. Conservation Measures'!KW50","v":{"$error":"#N/A"}},{"$f":"'2. Conservation Measures'!KX50","v":{"$error":"#N/A"}},{"$f":"'2. Conservation Measures'!KY50","v":{"$error":"#N/A"}},{"$f":"'2. Conservation Measures'!KZ50","v":{"$error":"#N/A"}},{"$f":"'2. Conservation Measures'!LA50","v":{"$error":"#N/A"}},{"$f":"'2. Conservation Measures'!LB50","v":{"$error":"#N/A"}},{"$f":"'2. Conservation Measures'!LC50","v":{"$error":"#N/A"}},{"$f":"'2. Conservation Measures'!LD50","v":{"$error":"#N/A"}},{"$f":"'2. Conservation Measures'!LE50","v":{"$error":"#N/A"}},{"$f":"'2. Conservation Measures'!LF50","v":{"$error":"#N/A"}},{"$f":"'2. Conservation Measures'!LG50","v":{"$error":"#N/A"}},{"$f":"'2. Conservation Measures'!LH50","v":{"$error":"#N/A"}},{"$f":"'2. Conservation Measures'!LI50","v":{"$error":"#N/A"}},{"$f":"'2. Conservation Measures'!LJ50","v":{"$error":"#N/A"}},{"$f":"'2. Conservation Measures'!LK50","v":{"$error":"#N/A"}},{"$f":"'2. Conservation Measures'!LL50","v":{"$error":"#N/A"}},{"$f":"'2. Conservation Measures'!LM50","v":{"$error":"#N/A"}},{"$f":"'2. Conservation Measures'!LN50","v":{"$error":"#N/A"}},{"$f":"'2. Conservation Measures'!LO50","v":{"$error":"#N/A"}},{"$f":"'2. Conservation Measures'!LP50","v":{"$error":"#N/A"}},{"$f":"'2. Conservation Measures'!LQ50","v":{"$error":"#N/A"}},{"$f":"'2. Conservation Measures'!LR50","v":{"$error":"#N/A"}},{"$f":"'2. Conservation Measures'!LS50","v":{"$error":"#N/A"}},{"$f":"'2. Conservation Measures'!LT50","v":{"$error":"#N/A"}},{"$f":"'2. Conservation Measures'!LU50","v":{"$error":"#N/A"}},{"$f":"'2. Conservation Measures'!LV50","v":{"$error":"#N/A"}},{"$f":"'2. Conservation Measures'!LW50","v":{"$error":"#N/A"}},{"$f":"'2. Conservation Measures'!LX50","v":{"$error":"#N/A"}},{"$f":"'2. Conservation Measures'!LY50","v":{"$error":"#N/A"}},{"$f":"'2. Conservation Measures'!LZ50","v":{"$error":"#N/A"}},{"$f":"'2. Conservation Measures'!MA50","v":{"$error":"#N/A"}},{"$f":"'2. Conservation Measures'!MB50","v":{"$error":"#N/A"}},{"$f":"'2. Conservation Measures'!MC50","v":{"$error":"#N/A"}},{"$f":"'2. Conservation Measures'!MD50","v":{"$error":"#N/A"}},{"$f":"'2. Conservation Measures'!ME50","v":{"$error":"#N/A"}},{"$f":"'2. Conservation Measures'!MF50","v":{"$error":"#N/A"}},{"$f":"'2. Conservation Measures'!MG50","v":{"$error":"#N/A"}},{"$f":"'2. Conservation Measures'!MH50","v":{"$error":"#N/A"}},{"$f":"'2. Conservation Measures'!MI50","v":{"$error":"#N/A"}},{"$f":"'2. Conservation Measures'!MJ50","v":{"$error":"#N/A"}},{"$f":"'2. Conservation Measures'!MK50","v":{"$error":"#N/A"}},{"$f":"'2. Conservation Measures'!ML50","v":{"$error":"#N/A"}},{"$f":"'2. Conservation Measures'!MM50","v":{"$error":"#N/A"}},{"$f":"'2. Conservation Measures'!MN50","v":{"$error":"#N/A"}},null,{"$f":"'2. Conservation Measures'!EP50","v":{"$error":"#N/A"}},{"$f":"'2. Conservation Measures'!EQ50","v":{"$error":"#N/A"}},{"$f":"'2. Conservation Measures'!ER50","v":{"$error":"#N/A"}},{"$f":"'2. Conservation Measures'!ES50","v":{"$error":"#N/A"}},{"$f":"'2. Conservation Measures'!ET50","v":{"$error":"#N/A"}},{"$f":"'2. Conservation Measures'!EU50","v":{"$error":"#N/A"}},{"$f":"'2. Conservation Measures'!EV50","v":{"$error":"#N/A"}},{"$f":"'2. Conservation Measures'!EW50","v":{"$error":"#N/A"}},{"$f":"'2. Conservation Measures'!EX50","v":{"$error":"#N/A"}},{"$f":"'2. Conservation Measures'!EY50","v":{"$error":"#N/A"}},{"$f":"'2. Conservation Measures'!EZ50","v":{"$error":"#N/A"}},{"$f":"'2. Conservation Measures'!FA50","v":{"$error":"#N/A"}},{"$f":"'2. Conservation Measures'!FB50","v":{"$error":"#N/A"}},{"$f":"'2. Conservation Measures'!FC50","v":{"$error":"#N/A"}},{"$f":"'2. Conservation Measures'!FD50","v":{"$error":"#N/A"}},{"$f":"'2. Conservation Measures'!FE50","v":{"$error":"#N/A"}},{"$f":"'2. Conservation Measures'!FF50","v":{"$error":"#N/A"}},{"$f":"'2. Conservation Measures'!FG50","v":{"$error":"#N/A"}},{"$f":"'2. Conservation Measures'!FH50","v":{"$error":"#N/A"}},{"$f":"'2. Conservation Measures'!FI50","v":{"$error":"#N/A"}},{"$f":"'2. Conservation Measures'!FJ50","v":{"$error":"#N/A"}},{"$f":"'2. Conservation Measures'!FK50","v":{"$error":"#N/A"}},{"$f":"'2. Conservation Measures'!FL50","v":{"$error":"#N/A"}},{"$f":"'2. Conservation Measures'!FM50","v":{"$error":"#N/A"}},{"$f":"'2. Conservation Measures'!FN50","v":{"$error":"#N/A"}},{"$f":"'2. Conservation Measures'!FO50","v":{"$error":"#N/A"}},{"$f":"'2. Conservation Measures'!FP50","v":{"$error":"#N/A"}},{"$f":"'2. Conservation Measures'!FQ50","v":{"$error":"#N/A"}},{"$f":"'2. Conservation Measures'!FR50","v":{"$error":"#N/A"}},{"$f":"'2. Conservation Measures'!FS50","v":{"$error":"#N/A"}},{"$f":"'2. Conservation Measures'!FT50","v":{"$error":"#N/A"}},{"$f":"'2. Conservation Measures'!FU50","v":{"$error":"#N/A"}},{"$f":"'2. Conservation Measures'!FV50","v":{"$error":"#N/A"}},{"$f":"'2. Conservation Measures'!FW50","v":{"$error":"#N/A"}},{"$f":"'2. Conservation Measures'!FX50","v":{"$error":"#N/A"}},{"$f":"'2. Conservation Measures'!FY50","v":{"$error":"#N/A"}},{"$f":"'2. Conservation Measures'!FZ50","v":{"$error":"#N/A"}},{"$f":"'2. Conservation Measures'!GA50","v":{"$error":"#N/A"}},{"$f":"'2. Conservation Measures'!GB50","v":{"$error":"#N/A"}},{"$f":"'2. Conservation Measures'!GC50","v":{"$error":"#N/A"}},{"$f":"'2. Conservation Measures'!GD50","v":{"$error":"#N/A"}},{"$f":"'2. Conservation Measures'!GE50","v":{"$error":"#N/A"}},{"$f":"'2. Conservation Measures'!GF50","v":{"$error":"#N/A"}},{"$f":"'2. Conservation Measures'!GG50","v":{"$error":"#N/A"}},{"$f":"'2. Conservation Measures'!GH50","v":{"$error":"#N/A"}},{"$f":"'2. Conservation Measures'!GI50","v":{"$error":"#N/A"}},{"$f":"'2. Conservation Measures'!GJ50","v":{"$error":"#N/A"}},{"$f":"'2. Conservation Measures'!GK50","v":{"$error":"#N/A"}},{"$f":"'2. Conservation Measures'!GL50","v":{"$error":"#N/A"}},{"$f":"'2. Conservation Measures'!GM50","v":{"$error":"#N/A"}},{"$f":"'2. Conservation Measures'!GN50","v":{"$error":"#N/A"}},null,{"$f":"'2. Conservation Measures'!GP50","v":{"$error":"#N/A"}},{"$f":"'2. Conservation Measures'!GQ50","v":{"$error":"#N/A"}},{"$f":"'2. Conservation Measures'!GR50","v":{"$error":"#N/A"}},{"$f":"'2. Conservation Measures'!GS50","v":{"$error":"#N/A"}},{"$f":"'2. Conservation Measures'!GT50","v":{"$error":"#N/A"}},{"$f":"'2. Conservation Measures'!GU50","v":{"$error":"#N/A"}},{"$f":"'2. Conservation Measures'!GV50","v":{"$error":"#N/A"}},{"$f":"'2. Conservation Measures'!GW50","v":{"$error":"#N/A"}},{"$f":"'2. Conservation Measures'!GX50","v":{"$error":"#N/A"}},{"$f":"'2. Conservation Measures'!GY50","v":{"$error":"#N/A"}},{"$f":"'2. Conservation Measures'!GZ50","v":{"$error":"#N/A"}},{"$f":"'2. Conservation Measures'!HA50","v":{"$error":"#N/A"}},{"$f":"'2. Conservation Measures'!HB50","v":{"$error":"#N/A"}},{"$f":"'2. Conservation Measures'!HC50","v":{"$error":"#N/A"}},{"$f":"'2. Conservation Measures'!HD50","v":{"$error":"#N/A"}},{"$f":"'2. Conservation Measures'!HE50","v":{"$error":"#N/A"}},{"$f":"'2. Conservation Measures'!HF50","v":{"$error":"#N/A"}},{"$f":"'2. Conservation Measures'!HG50","v":{"$error":"#N/A"}},{"$f":"'2. Conservation Measures'!HH50","v":{"$error":"#N/A"}},{"$f":"'2. Conservation Measures'!HI50","v":{"$error":"#N/A"}},{"$f":"'2. Conservation Measures'!HJ50","v":{"$error":"#N/A"}},{"$f":"'2. Conservation Measures'!HK50","v":{"$error":"#N/A"}},{"$f":"'2. Conservation Measures'!HL50","v":{"$error":"#N/A"}},{"$f":"'2. Conservation Measures'!HM50","v":{"$error":"#N/A"}},{"$f":"'2. Conservation Measures'!HN50","v":{"$error":"#N/A"}},{"$f":"'2. Conservation Measures'!HO50","v":{"$error":"#N/A"}},{"$f":"'2. Conservation Measures'!HP50","v":{"$error":"#N/A"}},{"$f":"'2. Conservation Measures'!HQ50","v":{"$error":"#N/A"}},{"$f":"'2. Conservation Measures'!HR50","v":{"$error":"#N/A"}},{"$f":"'2. Conservation Measures'!HS50","v":{"$error":"#N/A"}},{"$f":"'2. Conservation Measures'!HT50","v":{"$error":"#N/A"}},{"$f":"'2. Conservation Measures'!HU50","v":{"$error":"#N/A"}},{"$f":"'2. Conservation Measures'!HV50","v":{"$error":"#N/A"}},{"$f":"'2. Conservation Measures'!HW50","v":{"$error":"#N/A"}},{"$f":"'2. Conservation Measures'!HX50","v":{"$error":"#N/A"}},{"$f":"'2. Conservation Measures'!HY50","v":{"$error":"#N/A"}},{"$f":"'2. Conservation Measures'!HZ50","v":{"$error":"#N/A"}},{"$f":"'2. Conservation Measures'!IA50","v":{"$error":"#N/A"}},{"$f":"'2. Conservation Measures'!IB50","v":{"$error":"#N/A"}},{"$f":"'2. Conservation Measures'!IC50","v":{"$error":"#N/A"}},{"$f":"'2. Conservation Measures'!ID50","v":{"$error":"#N/A"}},{"$f":"'2. Conservation Measures'!IE50","v":{"$error":"#N/A"}},{"$f":"'2. Conservation Measures'!IF50","v":{"$error":"#N/A"}},{"$f":"'2. Conservation Measures'!IG50","v":{"$error":"#N/A"}},{"$f":"'2. Conservation Measures'!IH50","v":{"$error":"#N/A"}},{"$f":"'2. Conservation Measures'!II50","v":{"$error":"#N/A"}},{"$f":"'2. Conservation Measures'!IJ50","v":{"$error":"#N/A"}},{"$f":"'2. Conservation Measures'!IK50","v":{"$error":"#N/A"}},{"$f":"'2. Conservation Measures'!IL50","v":{"$error":"#N/A"}},{"$f":"'2. Conservation Measures'!IM50","v":{"$error":"#N/A"}},{"$f":"'2. Conservation Measures'!IN50","v":{"$error":"#N/A"}},null,{"$f":"'2. Conservation Measures'!IP50","v":{"$error":"#VALUE!"}},{"$f":"'2. Conservation Measures'!IQ50","v":{"$error":"#VALUE!"}},{"$f":"'2. Conservation Measures'!IR50","v":{"$error":"#VALUE!"}},{"$f":"'2. Conservation Measures'!IS50","v":{"$error":"#VALUE!"}},{"$f":"'2. Conservation Measures'!IT50","v":{"$error":"#VALUE!"}},{"$f":"'2. Conservation Measures'!IU50","v":{"$error":"#VALUE!"}},{"$f":"'2. Conservation Measures'!IV50","v":{"$error":"#VALUE!"}},{"$f":"'2. Conservation Measures'!IW50","v":{"$error":"#VALUE!"}},{"$f":"'2. Conservation Measures'!IX50","v":{"$error":"#VALUE!"}},{"$f":"'2. Conservation Measures'!IY50","v":{"$error":"#VALUE!"}},{"$f":"'2. Conservation Measures'!IZ50","v":{"$error":"#VALUE!"}},{"$f":"'2. Conservation Measures'!JA50","v":{"$error":"#VALUE!"}},{"$f":"'2. Conservation Measures'!JB50","v":{"$error":"#VALUE!"}},{"$f":"'2. Conservation Measures'!JC50","v":{"$error":"#VALUE!"}},{"$f":"'2. Conservation Measures'!JD50","v":{"$error":"#VALUE!"}},{"$f":"'2. Conservation Measures'!JE50","v":{"$error":"#VALUE!"}},{"$f":"'2. Conservation Measures'!JF50","v":{"$error":"#VALUE!"}},{"$f":"'2. Conservation Measures'!JG50","v":{"$error":"#VALUE!"}},{"$f":"'2. Conservation Measures'!JH50","v":{"$error":"#VALUE!"}},{"$f":"'2. Conservation Measures'!JI50","v":{"$error":"#VALUE!"}},{"$f":"'2. Conservation Measures'!JJ50","v":{"$error":"#VALUE!"}},{"$f":"'2. Conservation Measures'!JK50","v":{"$error":"#VALUE!"}},{"$f":"'2. Conservation Measures'!JL50","v":{"$error":"#VALUE!"}},{"$f":"'2. Conservation Measures'!JM50","v":{"$error":"#VALUE!"}},{"$f":"'2. Conservation Measures'!JN50","v":{"$error":"#VALUE!"}},{"$f":"'2. Conservation Measures'!JO50","v":{"$error":"#VALUE!"}},{"$f":"'2. Conservation Measures'!JP50","v":{"$error":"#VALUE!"}},{"$f":"'2. Conservation Measures'!JQ50","v":{"$error":"#VALUE!"}},{"$f":"'2. Conservation Measures'!JR50","v":{"$error":"#VALUE!"}},{"$f":"'2. Conservation Measures'!JS50","v":{"$error":"#VALUE!"}},{"$f":"'2. Conservation Measures'!JT50","v":{"$error":"#VALUE!"}},{"$f":"'2. Conservation Measures'!JU50","v":{"$error":"#VALUE!"}},{"$f":"'2. Conservation Measures'!JV50","v":{"$error":"#VALUE!"}},{"$f":"'2. Conservation Measures'!JW50","v":{"$error":"#VALUE!"}},{"$f":"'2. Conservation Measures'!JX50","v":{"$error":"#VALUE!"}},{"$f":"'2. Conservation Measures'!JY50","v":{"$error":"#VALUE!"}},{"$f":"'2. Conservation Measures'!JZ50","v":{"$error":"#VALUE!"}},{"$f":"'2. Conservation Measures'!KA50","v":{"$error":"#VALUE!"}},{"$f":"'2. Conservation Measures'!KB50","v":{"$error":"#VALUE!"}},{"$f":"'2. Conservation Measures'!KC50","v":{"$error":"#VALUE!"}},{"$f":"'2. Conservation Measures'!KD50","v":{"$error":"#VALUE!"}},{"$f":"'2. Conservation Measures'!KE50","v":{"$error":"#VALUE!"}},{"$f":"'2. Conservation Measures'!KF50","v":{"$error":"#VALUE!"}},{"$f":"'2. Conservation Measures'!KG50","v":{"$error":"#VALUE!"}},{"$f":"'2. Conservation Measures'!KH50","v":{"$error":"#VALUE!"}},{"$f":"'2. Conservation Measures'!KI50","v":{"$error":"#VALUE!"}},{"$f":"'2. Conservation Measures'!KJ50","v":{"$error":"#VALUE!"}},{"$f":"'2. Conservation Measures'!KK50","v":{"$error":"#VALUE!"}},{"$f":"'2. Conservation Measures'!KL50","v":{"$error":"#VALUE!"}},{"$f":"'2. Conservation Measures'!KM50","v":{"$error":"#VALUE!"}},{"$f":"'2. Conservation Measures'!KN50","v":{"$error":"#VALUE!"}}]
[null,{"$f":"'2. Conservation Measures'!B51","v":"PRE-ICI-05"},{"$f":"'2. Conservation Measures'!C51","v":{"$error":"#N/A"}},{"$f":"'2. Conservation Measures'!D51","v":"N"},null,{"$f":"'2. Conservation Measures'!AA51","v":{"$error":"#N/A"}},null,{"$f":"'2. Conservation Measures'!AO51","v":0},{"$f":"'2. Conservation Measures'!AP51","v":0},{"$f":"'2. Conservation Measures'!AQ51","v":0},{"$f":"'2. Conservation Measures'!AR51","v":0},{"$f":"'2. Conservation Measures'!AS51","v":0},{"$f":"'2. Conservation Measures'!AT51","v":0},{"$f":"'2. Conservation Measures'!AU51","v":0},{"$f":"'2. Conservation Measures'!AV51","v":0},{"$f":"'2. Conservation Measures'!AW51","v":0},{"$f":"'2. Conservation Measures'!AX51","v":0},{"$f":"'2. Conservation Measures'!AY51","v":0},{"$f":"'2. Conservation Measures'!AZ51","v":0},{"$f":"'2. Conservation Measures'!BA51","v":0},{"$f":"'2. Conservation Measures'!BB51","v":0},{"$f":"'2. Conservation Measures'!BC51","v":0},{"$f":"'2. Conservation Measures'!BD51","v":0},{"$f":"'2. Conservation Measures'!BE51","v":0},{"$f":"'2. Conservation Measures'!BF51","v":0},{"$f":"'2. Conservation Measures'!BG51","v":0},{"$f":"'2. Conservation Measures'!BH51","v":0},{"$f":"'2. Conservation Measures'!BI51","v":0},{"$f":"'2. Conservation Measures'!BJ51","v":0},{"$f":"'2. Conservation Measures'!BK51","v":0},{"$f":"'2. Conservation Measures'!BL51","v":0},{"$f":"'2. Conservation Measures'!BM51","v":0},{"$f":"'2. Conservation Measures'!BN51","v":0},{"$f":"'2. Conservation Measures'!BO51","v":0},{"$f":"'2. Conservation Measures'!BP51","v":0},{"$f":"'2. Conservation Measures'!BQ51","v":0},{"$f":"'2. Conservation Measures'!BR51","v":0},{"$f":"'2. Conservation Measures'!BS51","v":0},{"$f":"'2. Conservation Measures'!BT51","v":0},{"$f":"'2. Conservation Measures'!BU51","v":0},{"$f":"'2. Conservation Measures'!BV51","v":0},{"$f":"'2. Conservation Measures'!BW51","v":0},{"$f":"'2. Conservation Measures'!BX51","v":0},{"$f":"'2. Conservation Measures'!BY51","v":0},{"$f":"'2. Conservation Measures'!BZ51","v":0},{"$f":"'2. Conservation Measures'!CA51","v":0},{"$f":"'2. Conservation Measures'!CB51","v":0},{"$f":"'2. Conservation Measures'!CC51","v":0},{"$f":"'2. Conservation Measures'!CD51","v":0},{"$f":"'2. Conservation Measures'!CE51","v":0},{"$f":"'2. Conservation Measures'!CF51","v":0},{"$f":"'2. Conservation Measures'!CG51","v":0},{"$f":"'2. Conservation Measures'!CH51","v":0},{"$f":"'2. Conservation Measures'!CI51","v":0},{"$f":"'2. Conservation Measures'!CJ51","v":0},{"$f":"'2. Conservation Measures'!CK51","v":0},{"$f":"'2. Conservation Measures'!CL51","v":0},{"$f":"'2. Conservation Measures'!CM51","v":0},null,{"$f":"'2. Conservation Measures'!CO51","v":{"$error":"#VALUE!"}},{"$f":"'2. Conservation Measures'!CP51","v":{"$error":"#VALUE!"}},{"$f":"'2. Conservation Measures'!CQ51","v":{"$error":"#VALUE!"}},{"$f":"'2. Conservation Measures'!CR51","v":{"$error":"#VALUE!"}},{"$f":"'2. Conservation Measures'!CS51","v":{"$error":"#VALUE!"}},{"$f":"'2. Conservation Measures'!CT51","v":{"$error":"#VALUE!"}},{"$f":"'2. Conservation Measures'!CU51","v":{"$error":"#VALUE!"}},{"$f":"'2. Conservation Measures'!CV51","v":{"$error":"#VALUE!"}},{"$f":"'2. Conservation Measures'!CW51","v":{"$error":"#VALUE!"}},{"$f":"'2. Conservation Measures'!CX51","v":{"$error":"#VALUE!"}},{"$f":"'2. Conservation Measures'!CY51","v":{"$error":"#VALUE!"}},{"$f":"'2. Conservation Measures'!CZ51","v":{"$error":"#VALUE!"}},{"$f":"'2. Conservation Measures'!DA51","v":{"$error":"#VALUE!"}},{"$f":"'2. Conservation Measures'!DB51","v":{"$error":"#VALUE!"}},{"$f":"'2. Conservation Measures'!DC51","v":{"$error":"#VALUE!"}},{"$f":"'2. Conservation Measures'!DD51","v":{"$error":"#VALUE!"}},{"$f":"'2. Conservation Measures'!DE51","v":{"$error":"#VALUE!"}},{"$f":"'2. Conservation Measures'!DF51","v":{"$error":"#VALUE!"}},{"$f":"'2. Conservation Measures'!DG51","v":{"$error":"#VALUE!"}},{"$f":"'2. Conservation Measures'!DH51","v":{"$error":"#VALUE!"}},{"$f":"'2. Conservation Measures'!DI51","v":{"$error":"#VALUE!"}},{"$f":"'2. Conservation Measures'!DJ51","v":{"$error":"#VALUE!"}},{"$f":"'2. Conservation Measures'!DK51","v":{"$error":"#VALUE!"}},{"$f":"'2. Conservation Measures'!DL51","v":{"$error":"#VALUE!"}},{"$f":"'2. Conservation Measures'!DM51","v":{"$error":"#VALUE!"}},{"$f":"'2. Conservation Measures'!DN51","v":{"$error":"#VALUE!"}},{"$f":"'2. Conservation Measures'!DO51","v":{"$error":"#VALUE!"}},{"$f":"'2. Conservation Measures'!DP51","v":{"$error":"#VALUE!"}},{"$f":"'2. Conservation Measures'!DQ51","v":{"$error":"#VALUE!"}},{"$f":"'2. Conservation Measures'!DR51","v":{"$error":"#VALUE!"}},{"$f":"'2. Conservation Measures'!DS51","v":{"$error":"#VALUE!"}},{"$f":"'2. Conservation Measures'!DT51","v":{"$error":"#VALUE!"}},{"$f":"'2. Conservation Measures'!DU51","v":{"$error":"#VALUE!"}},{"$f":"'2. Conservation Measures'!DV51","v":{"$error":"#VALUE!"}},{"$f":"'2. Conservation Measures'!DW51","v":{"$error":"#VALUE!"}},{"$f":"'2. Conservation Measures'!DX51","v":{"$error":"#VALUE!"}},{"$f":"'2. Conservation Measures'!DY51","v":{"$error":"#VALUE!"}},{"$f":"'2. Conservation Measures'!DZ51","v":{"$error":"#VALUE!"}},{"$f":"'2. Conservation Measures'!EA51","v":{"$error":"#VALUE!"}},{"$f":"'2. Conservation Measures'!EB51","v":{"$error":"#VALUE!"}},{"$f":"'2. Conservation Measures'!EC51","v":{"$error":"#VALUE!"}},{"$f":"'2. Conservation Measures'!ED51","v":{"$error":"#VALUE!"}},{"$f":"'2. Conservation Measures'!EE51","v":{"$error":"#VALUE!"}},{"$f":"'2. Conservation Measures'!EF51","v":{"$error":"#VALUE!"}},{"$f":"'2. Conservation Measures'!EG51","v":{"$error":"#VALUE!"}},{"$f":"'2. Conservation Measures'!EH51","v":{"$error":"#VALUE!"}},{"$f":"'2. Conservation Measures'!EI51","v":{"$error":"#VALUE!"}},{"$f":"'2. Conservation Measures'!EJ51","v":{"$error":"#VALUE!"}},{"$f":"'2. Conservation Measures'!EK51","v":{"$error":"#VALUE!"}},{"$f":"'2. Conservation Measures'!EL51","v":{"$error":"#VALUE!"}},{"$f":"'2. Conservation Measures'!EM51","v":{"$error":"#VALUE!"}},null,{"$f":"'2. Conservation Measures'!KP51","v":{"$error":"#N/A"}},{"$f":"'2. Conservation Measures'!KQ51","v":{"$error":"#N/A"}},{"$f":"'2. Conservation Measures'!KR51","v":{"$error":"#N/A"}},{"$f":"'2. Conservation Measures'!KS51","v":{"$error":"#N/A"}},{"$f":"'2. Conservation Measures'!KT51","v":{"$error":"#N/A"}},{"$f":"'2. Conservation Measures'!KU51","v":{"$error":"#N/A"}},{"$f":"'2. Conservation Measures'!KV51","v":{"$error":"#N/A"}},{"$f":"'2. Conservation Measures'!KW51","v":{"$error":"#N/A"}},{"$f":"'2. Conservation Measures'!KX51","v":{"$error":"#N/A"}},{"$f":"'2. Conservation Measures'!KY51","v":{"$error":"#N/A"}},{"$f":"'2. Conservation Measures'!KZ51","v":{"$error":"#N/A"}},{"$f":"'2. Conservation Measures'!LA51","v":{"$error":"#N/A"}},{"$f":"'2. Conservation Measures'!LB51","v":{"$error":"#N/A"}},{"$f":"'2. Conservation Measures'!LC51","v":{"$error":"#N/A"}},{"$f":"'2. Conservation Measures'!LD51","v":{"$error":"#N/A"}},{"$f":"'2. Conservation Measures'!LE51","v":{"$error":"#N/A"}},{"$f":"'2. Conservation Measures'!LF51","v":{"$error":"#N/A"}},{"$f":"'2. Conservation Measures'!LG51","v":{"$error":"#N/A"}},{"$f":"'2. Conservation Measures'!LH51","v":{"$error":"#N/A"}},{"$f":"'2. Conservation Measures'!LI51","v":{"$error":"#N/A"}},{"$f":"'2. Conservation Measures'!LJ51","v":{"$error":"#N/A"}},{"$f":"'2. Conservation Measures'!LK51","v":{"$error":"#N/A"}},{"$f":"'2. Conservation Measures'!LL51","v":{"$error":"#N/A"}},{"$f":"'2. Conservation Measures'!LM51","v":{"$error":"#N/A"}},{"$f":"'2. Conservation Measures'!LN51","v":{"$error":"#N/A"}},{"$f":"'2. Conservation Measures'!LO51","v":{"$error":"#N/A"}},{"$f":"'2. Conservation Measures'!LP51","v":{"$error":"#N/A"}},{"$f":"'2. Conservation Measures'!LQ51","v":{"$error":"#N/A"}},{"$f":"'2. Conservation Measures'!LR51","v":{"$error":"#N/A"}},{"$f":"'2. Conservation Measures'!LS51","v":{"$error":"#N/A"}},{"$f":"'2. Conservation Measures'!LT51","v":{"$error":"#N/A"}},{"$f":"'2. Conservation Measures'!LU51","v":{"$error":"#N/A"}},{"$f":"'2. Conservation Measures'!LV51","v":{"$error":"#N/A"}},{"$f":"'2. Conservation Measures'!LW51","v":{"$error":"#N/A"}},{"$f":"'2. Conservation Measures'!LX51","v":{"$error":"#N/A"}},{"$f":"'2. Conservation Measures'!LY51","v":{"$error":"#N/A"}},{"$f":"'2. Conservation Measures'!LZ51","v":{"$error":"#N/A"}},{"$f":"'2. Conservation Measures'!MA51","v":{"$error":"#N/A"}},{"$f":"'2. Conservation Measures'!MB51","v":{"$error":"#N/A"}},{"$f":"'2. Conservation Measures'!MC51","v":{"$error":"#N/A"}},{"$f":"'2. Conservation Measures'!MD51","v":{"$error":"#N/A"}},{"$f":"'2. Conservation Measures'!ME51","v":{"$error":"#N/A"}},{"$f":"'2. Conservation Measures'!MF51","v":{"$error":"#N/A"}},{"$f":"'2. Conservation Measures'!MG51","v":{"$error":"#N/A"}},{"$f":"'2. Conservation Measures'!MH51","v":{"$error":"#N/A"}},{"$f":"'2. Conservation Measures'!MI51","v":{"$error":"#N/A"}},{"$f":"'2. Conservation Measures'!MJ51","v":{"$error":"#N/A"}},{"$f":"'2. Conservation Measures'!MK51","v":{"$error":"#N/A"}},{"$f":"'2. Conservation Measures'!ML51","v":{"$error":"#N/A"}},{"$f":"'2. Conservation Measures'!MM51","v":{"$error":"#N/A"}},{"$f":"'2. Conservation Measures'!MN51","v":{"$error":"#N/A"}},null,{"$f":"'2. Conservation Measures'!EP51","v":{"$error":"#N/A"}},{"$f":"'2. Conservation Measures'!EQ51","v":{"$error":"#N/A"}},{"$f":"'2. Conservation Measures'!ER51","v":{"$error":"#N/A"}},{"$f":"'2. Conservation Measures'!ES51","v":{"$error":"#N/A"}},{"$f":"'2. Conservation Measures'!ET51","v":{"$error":"#N/A"}},{"$f":"'2. Conservation Measures'!EU51","v":{"$error":"#N/A"}},{"$f":"'2. Conservation Measures'!EV51","v":{"$error":"#N/A"}},{"$f":"'2. Conservation Measures'!EW51","v":{"$error":"#N/A"}},{"$f":"'2. Conservation Measures'!EX51","v":{"$error":"#N/A"}},{"$f":"'2. Conservation Measures'!EY51","v":{"$error":"#N/A"}},{"$f":"'2. Conservation Measures'!EZ51","v":{"$error":"#N/A"}},{"$f":"'2. Conservation Measures'!FA51","v":{"$error":"#N/A"}},{"$f":"'2. Conservation Measures'!FB51","v":{"$error":"#N/A"}},{"$f":"'2. Conservation Measures'!FC51","v":{"$error":"#N/A"}},{"$f":"'2. Conservation Measures'!FD51","v":{"$error":"#N/A"}},{"$f":"'2. Conservation Measures'!FE51","v":{"$error":"#N/A"}},{"$f":"'2. Conservation Measures'!FF51","v":{"$error":"#N/A"}},{"$f":"'2. Conservation Measures'!FG51","v":{"$error":"#N/A"}},{"$f":"'2. Conservation Measures'!FH51","v":{"$error":"#N/A"}},{"$f":"'2. Conservation Measures'!FI51","v":{"$error":"#N/A"}},{"$f":"'2. Conservation Measures'!FJ51","v":{"$error":"#N/A"}},{"$f":"'2. Conservation Measures'!FK51","v":{"$error":"#N/A"}},{"$f":"'2. Conservation Measures'!FL51","v":{"$error":"#N/A"}},{"$f":"'2. Conservation Measures'!FM51","v":{"$error":"#N/A"}},{"$f":"'2. Conservation Measures'!FN51","v":{"$error":"#N/A"}},{"$f":"'2. Conservation Measures'!FO51","v":{"$error":"#N/A"}},{"$f":"'2. Conservation Measures'!FP51","v":{"$error":"#N/A"}},{"$f":"'2. Conservation Measures'!FQ51","v":{"$error":"#N/A"}},{"$f":"'2. Conservation Measures'!FR51","v":{"$error":"#N/A"}},{"$f":"'2. Conservation Measures'!FS51","v":{"$error":"#N/A"}},{"$f":"'2. Conservation Measures'!FT51","v":{"$error":"#N/A"}},{"$f":"'2. Conservation Measures'!FU51","v":{"$error":"#N/A"}},{"$f":"'2. Conservation Measures'!FV51","v":{"$error":"#N/A"}},{"$f":"'2. Conservation Measures'!FW51","v":{"$error":"#N/A"}},{"$f":"'2. Conservation Measures'!FX51","v":{"$error":"#N/A"}},{"$f":"'2. Conservation Measures'!FY51","v":{"$error":"#N/A"}},{"$f":"'2. Conservation Measures'!FZ51","v":{"$error":"#N/A"}},{"$f":"'2. Conservation Measures'!GA51","v":{"$error":"#N/A"}},{"$f":"'2. Conservation Measures'!GB51","v":{"$error":"#N/A"}},{"$f":"'2. Conservation Measures'!GC51","v":{"$error":"#N/A"}},{"$f":"'2. Conservation Measures'!GD51","v":{"$error":"#N/A"}},{"$f":"'2. Conservation Measures'!GE51","v":{"$error":"#N/A"}},{"$f":"'2. Conservation Measures'!GF51","v":{"$error":"#N/A"}},{"$f":"'2. Conservation Measures'!GG51","v":{"$error":"#N/A"}},{"$f":"'2. Conservation Measures'!GH51","v":{"$error":"#N/A"}},{"$f":"'2. Conservation Measures'!GI51","v":{"$error":"#N/A"}},{"$f":"'2. Conservation Measures'!GJ51","v":{"$error":"#N/A"}},{"$f":"'2. Conservation Measures'!GK51","v":{"$error":"#N/A"}},{"$f":"'2. Conservation Measures'!GL51","v":{"$error":"#N/A"}},{"$f":"'2. Conservation Measures'!GM51","v":{"$error":"#N/A"}},{"$f":"'2. Conservation Measures'!GN51","v":{"$error":"#N/A"}},null,{"$f":"'2. Conservation Measures'!GP51","v":{"$error":"#N/A"}},{"$f":"'2. Conservation Measures'!GQ51","v":{"$error":"#N/A"}},{"$f":"'2. Conservation Measures'!GR51","v":{"$error":"#N/A"}},{"$f":"'2. Conservation Measures'!GS51","v":{"$error":"#N/A"}},{"$f":"'2. Conservation Measures'!GT51","v":{"$error":"#N/A"}},{"$f":"'2. Conservation Measures'!GU51","v":{"$error":"#N/A"}},{"$f":"'2. Conservation Measures'!GV51","v":{"$error":"#N/A"}},{"$f":"'2. Conservation Measures'!GW51","v":{"$error":"#N/A"}},{"$f":"'2. Conservation Measures'!GX51","v":{"$error":"#N/A"}},{"$f":"'2. Conservation Measures'!GY51","v":{"$error":"#N/A"}},{"$f":"'2. Conservation Measures'!GZ51","v":{"$error":"#N/A"}},{"$f":"'2. Conservation Measures'!HA51","v":{"$error":"#N/A"}},{"$f":"'2. Conservation Measures'!HB51","v":{"$error":"#N/A"}},{"$f":"'2. Conservation Measures'!HC51","v":{"$error":"#N/A"}},{"$f":"'2. Conservation Measures'!HD51","v":{"$error":"#N/A"}},{"$f":"'2. Conservation Measures'!HE51","v":{"$error":"#N/A"}},{"$f":"'2. Conservation Measures'!HF51","v":{"$error":"#N/A"}},{"$f":"'2. Conservation Measures'!HG51","v":{"$error":"#N/A"}},{"$f":"'2. Conservation Measures'!HH51","v":{"$error":"#N/A"}},{"$f":"'2. Conservation Measures'!HI51","v":{"$error":"#N/A"}},{"$f":"'2. Conservation Measures'!HJ51","v":{"$error":"#N/A"}},{"$f":"'2. Conservation Measures'!HK51","v":{"$error":"#N/A"}},{"$f":"'2. Conservation Measures'!HL51","v":{"$error":"#N/A"}},{"$f":"'2. Conservation Measures'!HM51","v":{"$error":"#N/A"}},{"$f":"'2. Conservation Measures'!HN51","v":{"$error":"#N/A"}},{"$f":"'2. Conservation Measures'!HO51","v":{"$error":"#N/A"}},{"$f":"'2. Conservation Measures'!HP51","v":{"$error":"#N/A"}},{"$f":"'2. Conservation Measures'!HQ51","v":{"$error":"#N/A"}},{"$f":"'2. Conservation Measures'!HR51","v":{"$error":"#N/A"}},{"$f":"'2. Conservation Measures'!HS51","v":{"$error":"#N/A"}},{"$f":"'2. Conservation Measures'!HT51","v":{"$error":"#N/A"}},{"$f":"'2. Conservation Measures'!HU51","v":{"$error":"#N/A"}},{"$f":"'2. Conservation Measures'!HV51","v":{"$error":"#N/A"}},{"$f":"'2. Conservation Measures'!HW51","v":{"$error":"#N/A"}},{"$f":"'2. Conservation Measures'!HX51","v":{"$error":"#N/A"}},{"$f":"'2. Conservation Measures'!HY51","v":{"$error":"#N/A"}},{"$f":"'2. Conservation Measures'!HZ51","v":{"$error":"#N/A"}},{"$f":"'2. Conservation Measures'!IA51","v":{"$error":"#N/A"}},{"$f":"'2. Conservation Measures'!IB51","v":{"$error":"#N/A"}},{"$f":"'2. Conservation Measures'!IC51","v":{"$error":"#N/A"}},{"$f":"'2. Conservation Measures'!ID51","v":{"$error":"#N/A"}},{"$f":"'2. Conservation Measures'!IE51","v":{"$error":"#N/A"}},{"$f":"'2. Conservation Measures'!IF51","v":{"$error":"#N/A"}},{"$f":"'2. Conservation Measures'!IG51","v":{"$error":"#N/A"}},{"$f":"'2. Conservation Measures'!IH51","v":{"$error":"#N/A"}},{"$f":"'2. Conservation Measures'!II51","v":{"$error":"#N/A"}},{"$f":"'2. Conservation Measures'!IJ51","v":{"$error":"#N/A"}},{"$f":"'2. Conservation Measures'!IK51","v":{"$error":"#N/A"}},{"$f":"'2. Conservation Measures'!IL51","v":{"$error":"#N/A"}},{"$f":"'2. Conservation Measures'!IM51","v":{"$error":"#N/A"}},{"$f":"'2. Conservation Measures'!IN51","v":{"$error":"#N/A"}},null,{"$f":"'2. Conservation Measures'!IP51","v":{"$error":"#VALUE!"}},{"$f":"'2. Conservation Measures'!IQ51","v":{"$error":"#VALUE!"}},{"$f":"'2. Conservation Measures'!IR51","v":{"$error":"#VALUE!"}},{"$f":"'2. Conservation Measures'!IS51","v":{"$error":"#VALUE!"}},{"$f":"'2. Conservation Measures'!IT51","v":{"$error":"#VALUE!"}},{"$f":"'2. Conservation Measures'!IU51","v":{"$error":"#VALUE!"}},{"$f":"'2. Conservation Measures'!IV51","v":{"$error":"#VALUE!"}},{"$f":"'2. Conservation Measures'!IW51","v":{"$error":"#VALUE!"}},{"$f":"'2. Conservation Measures'!IX51","v":{"$error":"#VALUE!"}},{"$f":"'2. Conservation Measures'!IY51","v":{"$error":"#VALUE!"}},{"$f":"'2. Conservation Measures'!IZ51","v":{"$error":"#VALUE!"}},{"$f":"'2. Conservation Measures'!JA51","v":{"$error":"#VALUE!"}},{"$f":"'2. Conservation Measures'!JB51","v":{"$error":"#VALUE!"}},{"$f":"'2. Conservation Measures'!JC51","v":{"$error":"#VALUE!"}},{"$f":"'2. Conservation Measures'!JD51","v":{"$error":"#VALUE!"}},{"$f":"'2. Conservation Measures'!JE51","v":{"$error":"#VALUE!"}},{"$f":"'2. Conservation Measures'!JF51","v":{"$error":"#VALUE!"}},{"$f":"'2. Conservation Measures'!JG51","v":{"$error":"#VALUE!"}},{"$f":"'2. Conservation Measures'!JH51","v":{"$error":"#VALUE!"}},{"$f":"'2. Conservation Measures'!JI51","v":{"$error":"#VALUE!"}},{"$f":"'2. Conservation Measures'!JJ51","v":{"$error":"#VALUE!"}},{"$f":"'2. Conservation Measures'!JK51","v":{"$error":"#VALUE!"}},{"$f":"'2. Conservation Measures'!JL51","v":{"$error":"#VALUE!"}},{"$f":"'2. Conservation Measures'!JM51","v":{"$error":"#VALUE!"}},{"$f":"'2. Conservation Measures'!JN51","v":{"$error":"#VALUE!"}},{"$f":"'2. Conservation Measures'!JO51","v":{"$error":"#VALUE!"}},{"$f":"'2. Conservation Measures'!JP51","v":{"$error":"#VALUE!"}},{"$f":"'2. Conservation Measures'!JQ51","v":{"$error":"#VALUE!"}},{"$f":"'2. Conservation Measures'!JR51","v":{"$error":"#VALUE!"}},{"$f":"'2. Conservation Measures'!JS51","v":{"$error":"#VALUE!"}},{"$f":"'2. Conservation Measures'!JT51","v":{"$error":"#VALUE!"}},{"$f":"'2. Conservation Measures'!JU51","v":{"$error":"#VALUE!"}},{"$f":"'2. Conservation Measures'!JV51","v":{"$error":"#VALUE!"}},{"$f":"'2. Conservation Measures'!JW51","v":{"$error":"#VALUE!"}},{"$f":"'2. Conservation Measures'!JX51","v":{"$error":"#VALUE!"}},{"$f":"'2. Conservation Measures'!JY51","v":{"$error":"#VALUE!"}},{"$f":"'2. Conservation Measures'!JZ51","v":{"$error":"#VALUE!"}},{"$f":"'2. Conservation Measures'!KA51","v":{"$error":"#VALUE!"}},{"$f":"'2. Conservation Measures'!KB51","v":{"$error":"#VALUE!"}},{"$f":"'2. Conservation Measures'!KC51","v":{"$error":"#VALUE!"}},{"$f":"'2. Conservation Measures'!KD51","v":{"$error":"#VALUE!"}},{"$f":"'2. Conservation Measures'!KE51","v":{"$error":"#VALUE!"}},{"$f":"'2. Conservation Measures'!KF51","v":{"$error":"#VALUE!"}},{"$f":"'2. Conservation Measures'!KG51","v":{"$error":"#VALUE!"}},{"$f":"'2. Conservation Measures'!KH51","v":{"$error":"#VALUE!"}},{"$f":"'2. Conservation Measures'!KI51","v":{"$error":"#VALUE!"}},{"$f":"'2. Conservation Measures'!KJ51","v":{"$error":"#VALUE!"}},{"$f":"'2. Conservation Measures'!KK51","v":{"$error":"#VALUE!"}},{"$f":"'2. Conservation Measures'!KL51","v":{"$error":"#VALUE!"}},{"$f":"'2. Conservation Measures'!KM51","v":{"$error":"#VALUE!"}},{"$f":"'2. Conservation Measures'!KN51","v":{"$error":"#VALUE!"}}]
[null,{"$f":"'2. Conservation Measures'!B52","v":"PRE-ICI-06"},{"$f":"'2. Conservation Measures'!C52","v":{"$error":"#N/A"}},{"$f":"'2. Conservation Measures'!D52","v":"N"},null,{"$f":"'2. Conservation Measures'!AA52","v":{"$error":"#N/A"}},null,{"$f":"'2. Conservation Measures'!AO52","v":0},{"$f":"'2. Conservation Measures'!AP52","v":0},{"$f":"'2. Conservation Measures'!AQ52","v":0},{"$f":"'2. Conservation Measures'!AR52","v":0},{"$f":"'2. Conservation Measures'!AS52","v":0},{"$f":"'2. Conservation Measures'!AT52","v":0},{"$f":"'2. Conservation Measures'!AU52","v":0},{"$f":"'2. Conservation Measures'!AV52","v":0},{"$f":"'2. Conservation Measures'!AW52","v":0},{"$f":"'2. Conservation Measures'!AX52","v":0},{"$f":"'2. Conservation Measures'!AY52","v":0},{"$f":"'2. Conservation Measures'!AZ52","v":0},{"$f":"'2. Conservation Measures'!BA52","v":0},{"$f":"'2. Conservation Measures'!BB52","v":0},{"$f":"'2. Conservation Measures'!BC52","v":0},{"$f":"'2. Conservation Measures'!BD52","v":0},{"$f":"'2. Conservation Measures'!BE52","v":0},{"$f":"'2. Conservation Measures'!BF52","v":0},{"$f":"'2. Conservation Measures'!BG52","v":0},{"$f":"'2. Conservation Measures'!BH52","v":0},{"$f":"'2. Conservation Measures'!BI52","v":0},{"$f":"'2. Conservation Measures'!BJ52","v":0},{"$f":"'2. Conservation Measures'!BK52","v":0},{"$f":"'2. Conservation Measures'!BL52","v":0},{"$f":"'2. Conservation Measures'!BM52","v":0},{"$f":"'2. Conservation Measures'!BN52","v":0},{"$f":"'2. Conservation Measures'!BO52","v":0},{"$f":"'2. Conservation Measures'!BP52","v":0},{"$f":"'2. Conservation Measures'!BQ52","v":0},{"$f":"'2. Conservation Measures'!BR52","v":0},{"$f":"'2. Conservation Measures'!BS52","v":0},{"$f":"'2. Conservation Measures'!BT52","v":0},{"$f":"'2. Conservation Measures'!BU52","v":0},{"$f":"'2. Conservation Measures'!BV52","v":0},{"$f":"'2. Conservation Measures'!BW52","v":0},{"$f":"'2. Conservation Measures'!BX52","v":0},{"$f":"'2. Conservation Measures'!BY52","v":0},{"$f":"'2. Conservation Measures'!BZ52","v":0},{"$f":"'2. Conservation Measures'!CA52","v":0},{"$f":"'2. Conservation Measures'!CB52","v":0},{"$f":"'2. Conservation Measures'!CC52","v":0},{"$f":"'2. Conservation Measures'!CD52","v":0},{"$f":"'2. Conservation Measures'!CE52","v":0},{"$f":"'2. Conservation Measures'!CF52","v":0},{"$f":"'2. Conservation Measures'!CG52","v":0},{"$f":"'2. Conservation Measures'!CH52","v":0},{"$f":"'2. Conservation Measures'!CI52","v":0},{"$f":"'2. Conservation Measures'!CJ52","v":0},{"$f":"'2. Conservation Measures'!CK52","v":0},{"$f":"'2. Conservation Measures'!CL52","v":0},{"$f":"'2. Conservation Measures'!CM52","v":0},null,{"$f":"'2. Conservation Measures'!CO52","v":{"$error":"#VALUE!"}},{"$f":"'2. Conservation Measures'!CP52","v":{"$error":"#VALUE!"}},{"$f":"'2. Conservation Measures'!CQ52","v":{"$error":"#VALUE!"}},{"$f":"'2. Conservation Measures'!CR52","v":{"$error":"#VALUE!"}},{"$f":"'2. Conservation Measures'!CS52","v":{"$error":"#VALUE!"}},{"$f":"'2. Conservation Measures'!CT52","v":{"$error":"#VALUE!"}},{"$f":"'2. Conservation Measures'!CU52","v":{"$error":"#VALUE!"}},{"$f":"'2. Conservation Measures'!CV52","v":{"$error":"#VALUE!"}},{"$f":"'2. Conservation Measures'!CW52","v":{"$error":"#VALUE!"}},{"$f":"'2. Conservation Measures'!CX52","v":{"$error":"#VALUE!"}},{"$f":"'2. Conservation Measures'!CY52","v":{"$error":"#VALUE!"}},{"$f":"'2. Conservation Measures'!CZ52","v":{"$error":"#VALUE!"}},{"$f":"'2. Conservation Measures'!DA52","v":{"$error":"#VALUE!"}},{"$f":"'2. Conservation Measures'!DB52","v":{"$error":"#VALUE!"}},{"$f":"'2. Conservation Measures'!DC52","v":{"$error":"#VALUE!"}},{"$f":"'2. Conservation Measures'!DD52","v":{"$error":"#VALUE!"}},{"$f":"'2. Conservation Measures'!DE52","v":{"$error":"#VALUE!"}},{"$f":"'2. Conservation Measures'!DF52","v":{"$error":"#VALUE!"}},{"$f":"'2. Conservation Measures'!DG52","v":{"$error":"#VALUE!"}},{"$f":"'2. Conservation Measures'!DH52","v":{"$error":"#VALUE!"}},{"$f":"'2. Conservation Measures'!DI52","v":{"$error":"#VALUE!"}},{"$f":"'2. Conservation Measures'!DJ52","v":{"$error":"#VALUE!"}},{"$f":"'2. Conservation Measures'!DK52","v":{"$error":"#VALUE!"}},{"$f":"'2. Conservation Measures'!DL52","v":{"$error":"#VALUE!"}},{"$f":"'2. Conservation Measures'!DM52","v":{"$error":"#VALUE!"}},{"$f":"'2. Conservation Measures'!DN52","v":{"$error":"#VALUE!"}},{"$f":"'2. Conservation Measures'!DO52","v":{"$error":"#VALUE!"}},{"$f":"'2. Conservation Measures'!DP52","v":{"$error":"#VALUE!"}},{"$f":"'2. Conservation Measures'!DQ52","v":{"$error":"#VALUE!"}},{"$f":"'2. Conservation Measures'!DR52","v":{"$error":"#VALUE!"}},{"$f":"'2. Conservation Measures'!DS52","v":{"$error":"#VALUE!"}},{"$f":"'2. Conservation Measures'!DT52","v":{"$error":"#VALUE!"}},{"$f":"'2. Conservation Measures'!DU52","v":{"$error":"#VALUE!"}},{"$f":"'2. Conservation Measures'!DV52","v":{"$error":"#VALUE!"}},{"$f":"'2. Conservation Measures'!DW52","v":{"$error":"#VALUE!"}},{"$f":"'2. Conservation Measures'!DX52","v":{"$error":"#VALUE!"}},{"$f":"'2. Conservation Measures'!DY52","v":{"$error":"#VALUE!"}},{"$f":"'2. Conservation Measures'!DZ52","v":{"$error":"#VALUE!"}},{"$f":"'2. Conservation Measures'!EA52","v":{"$error":"#VALUE!"}},{"$f":"'2. Conservation Measures'!EB52","v":{"$error":"#VALUE!"}},{"$f":"'2. Conservation Measures'!EC52","v":{"$error":"#VALUE!"}},{"$f":"'2. Conservation Measures'!ED52","v":{"$error":"#VALUE!"}},{"$f":"'2. Conservation Measures'!EE52","v":{"$error":"#VALUE!"}},{"$f":"'2. Conservation Measures'!EF52","v":{"$error":"#VALUE!"}},{"$f":"'2. Conservation Measures'!EG52","v":{"$error":"#VALUE!"}},{"$f":"'2. Conservation Measures'!EH52","v":{"$error":"#VALUE!"}},{"$f":"'2. Conservation Measures'!EI52","v":{"$error":"#VALUE!"}},{"$f":"'2. Conservation Measures'!EJ52","v":{"$error":"#VALUE!"}},{"$f":"'2. Conservation Measures'!EK52","v":{"$error":"#VALUE!"}},{"$f":"'2. Conservation Measures'!EL52","v":{"$error":"#VALUE!"}},{"$f":"'2. Conservation Measures'!EM52","v":{"$error":"#VALUE!"}},null,{"$f":"'2. Conservation Measures'!KP52","v":{"$error":"#N/A"}},{"$f":"'2. Conservation Measures'!KQ52","v":{"$error":"#N/A"}},{"$f":"'2. Conservation Measures'!KR52","v":{"$error":"#N/A"}},{"$f":"'2. Conservation Measures'!KS52","v":{"$error":"#N/A"}},{"$f":"'2. Conservation Measures'!KT52","v":{"$error":"#N/A"}},{"$f":"'2. Conservation Measures'!KU52","v":{"$error":"#N/A"}},{"$f":"'2. Conservation Measures'!KV52","v":{"$error":"#N/A"}},{"$f":"'2. Conservation Measures'!KW52","v":{"$error":"#N/A"}},{"$f":"'2. Conservation Measures'!KX52","v":{"$error":"#N/A"}},{"$f":"'2. Conservation Measures'!KY52","v":{"$error":"#N/A"}},{"$f":"'2. Conservation Measures'!KZ52","v":{"$error":"#N/A"}},{"$f":"'2. Conservation Measures'!LA52","v":{"$error":"#N/A"}},{"$f":"'2. Conservation Measures'!LB52","v":{"$error":"#N/A"}},{"$f":"'2. Conservation Measures'!LC52","v":{"$error":"#N/A"}},{"$f":"'2. Conservation Measures'!LD52","v":{"$error":"#N/A"}},{"$f":"'2. Conservation Measures'!LE52","v":{"$error":"#N/A"}},{"$f":"'2. Conservation Measures'!LF52","v":{"$error":"#N/A"}},{"$f":"'2. Conservation Measures'!LG52","v":{"$error":"#N/A"}},{"$f":"'2. Conservation Measures'!LH52","v":{"$error":"#N/A"}},{"$f":"'2. Conservation Measures'!LI52","v":{"$error":"#N/A"}},{"$f":"'2. Conservation Measures'!LJ52","v":{"$error":"#N/A"}},{"$f":"'2. Conservation Measures'!LK52","v":{"$error":"#N/A"}},{"$f":"'2. Conservation Measures'!LL52","v":{"$error":"#N/A"}},{"$f":"'2. Conservation Measures'!LM52","v":{"$error":"#N/A"}},{"$f":"'2. Conservation Measures'!LN52","v":{"$error":"#N/A"}},{"$f":"'2. Conservation Measures'!LO52","v":{"$error":"#N/A"}},{"$f":"'2. Conservation Measures'!LP52","v":{"$error":"#N/A"}},{"$f":"'2. Conservation Measures'!LQ52","v":{"$error":"#N/A"}},{"$f":"'2. Conservation Measures'!LR52","v":{"$error":"#N/A"}},{"$f":"'2. Conservation Measures'!LS52","v":{"$error":"#N/A"}},{"$f":"'2. Conservation Measures'!LT52","v":{"$error":"#N/A"}},{"$f":"'2. Conservation Measures'!LU52","v":{"$error":"#N/A"}},{"$f":"'2. Conservation Measures'!LV52","v":{"$error":"#N/A"}},{"$f":"'2. Conservation Measures'!LW52","v":{"$error":"#N/A"}},{"$f":"'2. Conservation Measures'!LX52","v":{"$error":"#N/A"}},{"$f":"'2. Conservation Measures'!LY52","v":{"$error":"#N/A"}},{"$f":"'2. Conservation Measures'!LZ52","v":{"$error":"#N/A"}},{"$f":"'2. Conservation Measures'!MA52","v":{"$error":"#N/A"}},{"$f":"'2. Conservation Measures'!MB52","v":{"$error":"#N/A"}},{"$f":"'2. Conservation Measures'!MC52","v":{"$error":"#N/A"}},{"$f":"'2. Conservation Measures'!MD52","v":{"$error":"#N/A"}},{"$f":"'2. Conservation Measures'!ME52","v":{"$error":"#N/A"}},{"$f":"'2. Conservation Measures'!MF52","v":{"$error":"#N/A"}},{"$f":"'2. Conservation Measures'!MG52","v":{"$error":"#N/A"}},{"$f":"'2. Conservation Measures'!MH52","v":{"$error":"#N/A"}},{"$f":"'2. Conservation Measures'!MI52","v":{"$error":"#N/A"}},{"$f":"'2. Conservation Measures'!MJ52","v":{"$error":"#N/A"}},{"$f":"'2. Conservation Measures'!MK52","v":{"$error":"#N/A"}},{"$f":"'2. Conservation Measures'!ML52","v":{"$error":"#N/A"}},{"$f":"'2. Conservation Measures'!MM52","v":{"$error":"#N/A"}},{"$f":"'2. Conservation Measures'!MN52","v":{"$error":"#N/A"}},null,{"$f":"'2. Conservation Measures'!EP52","v":{"$error":"#N/A"}},{"$f":"'2. Conservation Measures'!EQ52","v":{"$error":"#N/A"}},{"$f":"'2. Conservation Measures'!ER52","v":{"$error":"#N/A"}},{"$f":"'2. Conservation Measures'!ES52","v":{"$error":"#N/A"}},{"$f":"'2. Conservation Measures'!ET52","v":{"$error":"#N/A"}},{"$f":"'2. Conservation Measures'!EU52","v":{"$error":"#N/A"}},{"$f":"'2. Conservation Measures'!EV52","v":{"$error":"#N/A"}},{"$f":"'2. Conservation Measures'!EW52","v":{"$error":"#N/A"}},{"$f":"'2. Conservation Measures'!EX52","v":{"$error":"#N/A"}},{"$f":"'2. Conservation Measures'!EY52","v":{"$error":"#N/A"}},{"$f":"'2. Conservation Measures'!EZ52","v":{"$error":"#N/A"}},{"$f":"'2. Conservation Measures'!FA52","v":{"$error":"#N/A"}},{"$f":"'2. Conservation Measures'!FB52","v":{"$error":"#N/A"}},{"$f":"'2. Conservation Measures'!FC52","v":{"$error":"#N/A"}},{"$f":"'2. Conservation Measures'!FD52","v":{"$error":"#N/A"}},{"$f":"'2. Conservation Measures'!FE52","v":{"$error":"#N/A"}},{"$f":"'2. Conservation Measures'!FF52","v":{"$error":"#N/A"}},{"$f":"'2. Conservation Measures'!FG52","v":{"$error":"#N/A"}},{"$f":"'2. Conservation Measures'!FH52","v":{"$error":"#N/A"}},{"$f":"'2. Conservation Measures'!FI52","v":{"$error":"#N/A"}},{"$f":"'2. Conservation Measures'!FJ52","v":{"$error":"#N/A"}},{"$f":"'2. Conservation Measures'!FK52","v":{"$error":"#N/A"}},{"$f":"'2. Conservation Measures'!FL52","v":{"$error":"#N/A"}},{"$f":"'2. Conservation Measures'!FM52","v":{"$error":"#N/A"}},{"$f":"'2. Conservation Measures'!FN52","v":{"$error":"#N/A"}},{"$f":"'2. Conservation Measures'!FO52","v":{"$error":"#N/A"}},{"$f":"'2. Conservation Measures'!FP52","v":{"$error":"#N/A"}},{"$f":"'2. Conservation Measures'!FQ52","v":{"$error":"#N/A"}},{"$f":"'2. Conservation Measures'!FR52","v":{"$error":"#N/A"}},{"$f":"'2. Conservation Measures'!FS52","v":{"$error":"#N/A"}},{"$f":"'2. Conservation Measures'!FT52","v":{"$error":"#N/A"}},{"$f":"'2. Conservation Measures'!FU52","v":{"$error":"#N/A"}},{"$f":"'2. Conservation Measures'!FV52","v":{"$error":"#N/A"}},{"$f":"'2. Conservation Measures'!FW52","v":{"$error":"#N/A"}},{"$f":"'2. Conservation Measures'!FX52","v":{"$error":"#N/A"}},{"$f":"'2. Conservation Measures'!FY52","v":{"$error":"#N/A"}},{"$f":"'2. Conservation Measures'!FZ52","v":{"$error":"#N/A"}},{"$f":"'2. Conservation Measures'!GA52","v":{"$error":"#N/A"}},{"$f":"'2. Conservation Measures'!GB52","v":{"$error":"#N/A"}},{"$f":"'2. Conservation Measures'!GC52","v":{"$error":"#N/A"}},{"$f":"'2. Conservation Measures'!GD52","v":{"$error":"#N/A"}},{"$f":"'2. Conservation Measures'!GE52","v":{"$error":"#N/A"}},{"$f":"'2. Conservation Measures'!GF52","v":{"$error":"#N/A"}},{"$f":"'2. Conservation Measures'!GG52","v":{"$error":"#N/A"}},{"$f":"'2. Conservation Measures'!GH52","v":{"$error":"#N/A"}},{"$f":"'2. Conservation Measures'!GI52","v":{"$error":"#N/A"}},{"$f":"'2. Conservation Measures'!GJ52","v":{"$error":"#N/A"}},{"$f":"'2. Conservation Measures'!GK52","v":{"$error":"#N/A"}},{"$f":"'2. Conservation Measures'!GL52","v":{"$error":"#N/A"}},{"$f":"'2. Conservation Measures'!GM52","v":{"$error":"#N/A"}},{"$f":"'2. Conservation Measures'!GN52","v":{"$error":"#N/A"}},null,{"$f":"'2. Conservation Measures'!GP52","v":{"$error":"#N/A"}},{"$f":"'2. Conservation Measures'!GQ52","v":{"$error":"#N/A"}},{"$f":"'2. Conservation Measures'!GR52","v":{"$error":"#N/A"}},{"$f":"'2. Conservation Measures'!GS52","v":{"$error":"#N/A"}},{"$f":"'2. Conservation Measures'!GT52","v":{"$error":"#N/A"}},{"$f":"'2. Conservation Measures'!GU52","v":{"$error":"#N/A"}},{"$f":"'2. Conservation Measures'!GV52","v":{"$error":"#N/A"}},{"$f":"'2. Conservation Measures'!GW52","v":{"$error":"#N/A"}},{"$f":"'2. Conservation Measures'!GX52","v":{"$error":"#N/A"}},{"$f":"'2. Conservation Measures'!GY52","v":{"$error":"#N/A"}},{"$f":"'2. Conservation Measures'!GZ52","v":{"$error":"#N/A"}},{"$f":"'2. Conservation Measures'!HA52","v":{"$error":"#N/A"}},{"$f":"'2. Conservation Measures'!HB52","v":{"$error":"#N/A"}},{"$f":"'2. Conservation Measures'!HC52","v":{"$error":"#N/A"}},{"$f":"'2. Conservation Measures'!HD52","v":{"$error":"#N/A"}},{"$f":"'2. Conservation Measures'!HE52","v":{"$error":"#N/A"}},{"$f":"'2. Conservation Measures'!HF52","v":{"$error":"#N/A"}},{"$f":"'2. Conservation Measures'!HG52","v":{"$error":"#N/A"}},{"$f":"'2. Conservation Measures'!HH52","v":{"$error":"#N/A"}},{"$f":"'2. Conservation Measures'!HI52","v":{"$error":"#N/A"}},{"$f":"'2. Conservation Measures'!HJ52","v":{"$error":"#N/A"}},{"$f":"'2. Conservation Measures'!HK52","v":{"$error":"#N/A"}},{"$f":"'2. Conservation Measures'!HL52","v":{"$error":"#N/A"}},{"$f":"'2. Conservation Measures'!HM52","v":{"$error":"#N/A"}},{"$f":"'2. Conservation Measures'!HN52","v":{"$error":"#N/A"}},{"$f":"'2. Conservation Measures'!HO52","v":{"$error":"#N/A"}},{"$f":"'2. Conservation Measures'!HP52","v":{"$error":"#N/A"}},{"$f":"'2. Conservation Measures'!HQ52","v":{"$error":"#N/A"}},{"$f":"'2. Conservation Measures'!HR52","v":{"$error":"#N/A"}},{"$f":"'2. Conservation Measures'!HS52","v":{"$error":"#N/A"}},{"$f":"'2. Conservation Measures'!HT52","v":{"$error":"#N/A"}},{"$f":"'2. Conservation Measures'!HU52","v":{"$error":"#N/A"}},{"$f":"'2. Conservation Measures'!HV52","v":{"$error":"#N/A"}},{"$f":"'2. Conservation Measures'!HW52","v":{"$error":"#N/A"}},{"$f":"'2. Conservation Measures'!HX52","v":{"$error":"#N/A"}},{"$f":"'2. Conservation Measures'!HY52","v":{"$error":"#N/A"}},{"$f":"'2. Conservation Measures'!HZ52","v":{"$error":"#N/A"}},{"$f":"'2. Conservation Measures'!IA52","v":{"$error":"#N/A"}},{"$f":"'2. Conservation Measures'!IB52","v":{"$error":"#N/A"}},{"$f":"'2. Conservation Measures'!IC52","v":{"$error":"#N/A"}},{"$f":"'2. Conservation Measures'!ID52","v":{"$error":"#N/A"}},{"$f":"'2. Conservation Measures'!IE52","v":{"$error":"#N/A"}},{"$f":"'2. Conservation Measures'!IF52","v":{"$error":"#N/A"}},{"$f":"'2. Conservation Measures'!IG52","v":{"$error":"#N/A"}},{"$f":"'2. Conservation Measures'!IH52","v":{"$error":"#N/A"}},{"$f":"'2. Conservation Measures'!II52","v":{"$error":"#N/A"}},{"$f":"'2. Conservation Measures'!IJ52","v":{"$error":"#N/A"}},{"$f":"'2. Conservation Measures'!IK52","v":{"$error":"#N/A"}},{"$f":"'2. Conservation Measures'!IL52","v":{"$error":"#N/A"}},{"$f":"'2. Conservation Measures'!IM52","v":{"$error":"#N/A"}},{"$f":"'2. Conservation Measures'!IN52","v":{"$error":"#N/A"}},null,{"$f":"'2. Conservation Measures'!IP52","v":{"$error":"#VALUE!"}},{"$f":"'2. Conservation Measures'!IQ52","v":{"$error":"#VALUE!"}},{"$f":"'2. Conservation Measures'!IR52","v":{"$error":"#VALUE!"}},{"$f":"'2. Conservation Measures'!IS52","v":{"$error":"#VALUE!"}},{"$f":"'2. Conservation Measures'!IT52","v":{"$error":"#VALUE!"}},{"$f":"'2. Conservation Measures'!IU52","v":{"$error":"#VALUE!"}},{"$f":"'2. Conservation Measures'!IV52","v":{"$error":"#VALUE!"}},{"$f":"'2. Conservation Measures'!IW52","v":{"$error":"#VALUE!"}},{"$f":"'2. Conservation Measures'!IX52","v":{"$error":"#VALUE!"}},{"$f":"'2. Conservation Measures'!IY52","v":{"$error":"#VALUE!"}},{"$f":"'2. Conservation Measures'!IZ52","v":{"$error":"#VALUE!"}},{"$f":"'2. Conservation Measures'!JA52","v":{"$error":"#VALUE!"}},{"$f":"'2. Conservation Measures'!JB52","v":{"$error":"#VALUE!"}},{"$f":"'2. Conservation Measures'!JC52","v":{"$error":"#VALUE!"}},{"$f":"'2. Conservation Measures'!JD52","v":{"$error":"#VALUE!"}},{"$f":"'2. Conservation Measures'!JE52","v":{"$error":"#VALUE!"}},{"$f":"'2. Conservation Measures'!JF52","v":{"$error":"#VALUE!"}},{"$f":"'2. Conservation Measures'!JG52","v":{"$error":"#VALUE!"}},{"$f":"'2. Conservation Measures'!JH52","v":{"$error":"#VALUE!"}},{"$f":"'2. Conservation Measures'!JI52","v":{"$error":"#VALUE!"}},{"$f":"'2. Conservation Measures'!JJ52","v":{"$error":"#VALUE!"}},{"$f":"'2. Conservation Measures'!JK52","v":{"$error":"#VALUE!"}},{"$f":"'2. Conservation Measures'!JL52","v":{"$error":"#VALUE!"}},{"$f":"'2. Conservation Measures'!JM52","v":{"$error":"#VALUE!"}},{"$f":"'2. Conservation Measures'!JN52","v":{"$error":"#VALUE!"}},{"$f":"'2. Conservation Measures'!JO52","v":{"$error":"#VALUE!"}},{"$f":"'2. Conservation Measures'!JP52","v":{"$error":"#VALUE!"}},{"$f":"'2. Conservation Measures'!JQ52","v":{"$error":"#VALUE!"}},{"$f":"'2. Conservation Measures'!JR52","v":{"$error":"#VALUE!"}},{"$f":"'2. Conservation Measures'!JS52","v":{"$error":"#VALUE!"}},{"$f":"'2. Conservation Measures'!JT52","v":{"$error":"#VALUE!"}},{"$f":"'2. Conservation Measures'!JU52","v":{"$error":"#VALUE!"}},{"$f":"'2. Conservation Measures'!JV52","v":{"$error":"#VALUE!"}},{"$f":"'2. Conservation Measures'!JW52","v":{"$error":"#VALUE!"}},{"$f":"'2. Conservation Measures'!JX52","v":{"$error":"#VALUE!"}},{"$f":"'2. Conservation Measures'!JY52","v":{"$error":"#VALUE!"}},{"$f":"'2. Conservation Measures'!JZ52","v":{"$error":"#VALUE!"}},{"$f":"'2. Conservation Measures'!KA52","v":{"$error":"#VALUE!"}},{"$f":"'2. Conservation Measures'!KB52","v":{"$error":"#VALUE!"}},{"$f":"'2. Conservation Measures'!KC52","v":{"$error":"#VALUE!"}},{"$f":"'2. Conservation Measures'!KD52","v":{"$error":"#VALUE!"}},{"$f":"'2. Conservation Measures'!KE52","v":{"$error":"#VALUE!"}},{"$f":"'2. Conservation Measures'!KF52","v":{"$error":"#VALUE!"}},{"$f":"'2. Conservation Measures'!KG52","v":{"$error":"#VALUE!"}},{"$f":"'2. Conservation Measures'!KH52","v":{"$error":"#VALUE!"}},{"$f":"'2. Conservation Measures'!KI52","v":{"$error":"#VALUE!"}},{"$f":"'2. Conservation Measures'!KJ52","v":{"$error":"#VALUE!"}},{"$f":"'2. Conservation Measures'!KK52","v":{"$error":"#VALUE!"}},{"$f":"'2. Conservation Measures'!KL52","v":{"$error":"#VALUE!"}},{"$f":"'2. Conservation Measures'!KM52","v":{"$error":"#VALUE!"}},{"$f":"'2. Conservation Measures'!KN52","v":{"$error":"#VALUE!"}}]
[null,{"$f":"'2. Conservation Measures'!B53","v":"PRE-ICI-07"},{"$f":"'2. Conservation Measures'!C53","v":{"$error":"#N/A"}},{"$f":"'2. Conservation Measures'!D53","v":"N"},null,{"$f":"'2. Conservation Measures'!AA53","v":{"$error":"#N/A"}},null,{"$f":"'2. Conservation Measures'!AO53","v":0},{"$f":"'2. Conservation Measures'!AP53","v":0},{"$f":"'2. Conservation Measures'!AQ53","v":0},{"$f":"'2. Conservation Measures'!AR53","v":0},{"$f":"'2. Conservation Measures'!AS53","v":0},{"$f":"'2. Conservation Measures'!AT53","v":0},{"$f":"'2. Conservation Measures'!AU53","v":0},{"$f":"'2. Conservation Measures'!AV53","v":0},{"$f":"'2. Conservation Measures'!AW53","v":0},{"$f":"'2. Conservation Measures'!AX53","v":0},{"$f":"'2. Conservation Measures'!AY53","v":0},{"$f":"'2. Conservation Measures'!AZ53","v":0},{"$f":"'2. Conservation Measures'!BA53","v":0},{"$f":"'2. Conservation Measures'!BB53","v":0},{"$f":"'2. Conservation Measures'!BC53","v":0},{"$f":"'2. Conservation Measures'!BD53","v":0},{"$f":"'2. Conservation Measures'!BE53","v":0},{"$f":"'2. Conservation Measures'!BF53","v":0},{"$f":"'2. Conservation Measures'!BG53","v":0},{"$f":"'2. Conservation Measures'!BH53","v":0},{"$f":"'2. Conservation Measures'!BI53","v":0},{"$f":"'2. Conservation Measures'!BJ53","v":0},{"$f":"'2. Conservation Measures'!BK53","v":0},{"$f":"'2. Conservation Measures'!BL53","v":0},{"$f":"'2. Conservation Measures'!BM53","v":0},{"$f":"'2. Conservation Measures'!BN53","v":0},{"$f":"'2. Conservation Measures'!BO53","v":0},{"$f":"'2. Conservation Measures'!BP53","v":0},{"$f":"'2. Conservation Measures'!BQ53","v":0},{"$f":"'2. Conservation Measures'!BR53","v":0},{"$f":"'2. Conservation Measures'!BS53","v":0},{"$f":"'2. Conservation Measures'!BT53","v":0},{"$f":"'2. Conservation Measures'!BU53","v":0},{"$f":"'2. Conservation Measures'!BV53","v":0},{"$f":"'2. Conservation Measures'!BW53","v":0},{"$f":"'2. Conservation Measures'!BX53","v":0},{"$f":"'2. Conservation Measures'!BY53","v":0},{"$f":"'2. Conservation Measures'!BZ53","v":0},{"$f":"'2. Conservation Measures'!CA53","v":0},{"$f":"'2. Conservation Measures'!CB53","v":0},{"$f":"'2. Conservation Measures'!CC53","v":0},{"$f":"'2. Conservation Measures'!CD53","v":0},{"$f":"'2. Conservation Measures'!CE53","v":0},{"$f":"'2. Conservation Measures'!CF53","v":0},{"$f":"'2. Conservation Measures'!CG53","v":0},{"$f":"'2. Conservation Measures'!CH53","v":0},{"$f":"'2. Conservation Measures'!CI53","v":0},{"$f":"'2. Conservation Measures'!CJ53","v":0},{"$f":"'2. Conservation Measures'!CK53","v":0},{"$f":"'2. Conservation Measures'!CL53","v":0},{"$f":"'2. Conservation Measures'!CM53","v":0},null,{"$f":"'2. Conservation Measures'!CO53","v":{"$error":"#VALUE!"}},{"$f":"'2. Conservation Measures'!CP53","v":{"$error":"#VALUE!"}},{"$f":"'2. Conservation Measures'!CQ53","v":{"$error":"#VALUE!"}},{"$f":"'2. Conservation Measures'!CR53","v":{"$error":"#VALUE!"}},{"$f":"'2. Conservation Measures'!CS53","v":{"$error":"#VALUE!"}},{"$f":"'2. Conservation Measures'!CT53","v":{"$error":"#VALUE!"}},{"$f":"'2. Conservation Measures'!CU53","v":{"$error":"#VALUE!"}},{"$f":"'2. Conservation Measures'!CV53","v":{"$error":"#VALUE!"}},{"$f":"'2. Conservation Measures'!CW53","v":{"$error":"#VALUE!"}},{"$f":"'2. Conservation Measures'!CX53","v":{"$error":"#VALUE!"}},{"$f":"'2. Conservation Measures'!CY53","v":{"$error":"#VALUE!"}},{"$f":"'2. Conservation Measures'!CZ53","v":{"$error":"#VALUE!"}},{"$f":"'2. Conservation Measures'!DA53","v":{"$error":"#VALUE!"}},{"$f":"'2. Conservation Measures'!DB53","v":{"$error":"#VALUE!"}},{"$f":"'2. Conservation Measures'!DC53","v":{"$error":"#VALUE!"}},{"$f":"'2. Conservation Measures'!DD53","v":{"$error":"#VALUE!"}},{"$f":"'2. Conservation Measures'!DE53","v":{"$error":"#VALUE!"}},{"$f":"'2. Conservation Measures'!DF53","v":{"$error":"#VALUE!"}},{"$f":"'2. Conservation Measures'!DG53","v":{"$error":"#VALUE!"}},{"$f":"'2. Conservation Measures'!DH53","v":{"$error":"#VALUE!"}},{"$f":"'2. Conservation Measures'!DI53","v":{"$error":"#VALUE!"}},{"$f":"'2. Conservation Measures'!DJ53","v":{"$error":"#VALUE!"}},{"$f":"'2. Conservation Measures'!DK53","v":{"$error":"#VALUE!"}},{"$f":"'2. Conservation Measures'!DL53","v":{"$error":"#VALUE!"}},{"$f":"'2. Conservation Measures'!DM53","v":{"$error":"#VALUE!"}},{"$f":"'2. Conservation Measures'!DN53","v":{"$error":"#VALUE!"}},{"$f":"'2. Conservation Measures'!DO53","v":{"$error":"#VALUE!"}},{"$f":"'2. Conservation Measures'!DP53","v":{"$error":"#VALUE!"}},{"$f":"'2. Conservation Measures'!DQ53","v":{"$error":"#VALUE!"}},{"$f":"'2. Conservation Measures'!DR53","v":{"$error":"#VALUE!"}},{"$f":"'2. Conservation Measures'!DS53","v":{"$error":"#VALUE!"}},{"$f":"'2. Conservation Measures'!DT53","v":{"$error":"#VALUE!"}},{"$f":"'2. Conservation Measures'!DU53","v":{"$error":"#VALUE!"}},{"$f":"'2. Conservation Measures'!DV53","v":{"$error":"#VALUE!"}},{"$f":"'2. Conservation Measures'!DW53","v":{"$error":"#VALUE!"}},{"$f":"'2. Conservation Measures'!DX53","v":{"$error":"#VALUE!"}},{"$f":"'2. Conservation Measures'!DY53","v":{"$error":"#VALUE!"}},{"$f":"'2. Conservation Measures'!DZ53","v":{"$error":"#VALUE!"}},{"$f":"'2. Conservation Measures'!EA53","v":{"$error":"#VALUE!"}},{"$f":"'2. Conservation Measures'!EB53","v":{"$error":"#VALUE!"}},{"$f":"'2. Conservation Measures'!EC53","v":{"$error":"#VALUE!"}},{"$f":"'2. Conservation Measures'!ED53","v":{"$error":"#VALUE!"}},{"$f":"'2. Conservation Measures'!EE53","v":{"$error":"#VALUE!"}},{"$f":"'2. Conservation Measures'!EF53","v":{"$error":"#VALUE!"}},{"$f":"'2. Conservation Measures'!EG53","v":{"$error":"#VALUE!"}},{"$f":"'2. Conservation Measures'!EH53","v":{"$error":"#VALUE!"}},{"$f":"'2. Conservation Measures'!EI53","v":{"$error":"#VALUE!"}},{"$f":"'2. Conservation Measures'!EJ53","v":{"$error":"#VALUE!"}},{"$f":"'2. Conservation Measures'!EK53","v":{"$error":"#VALUE!"}},{"$f":"'2. Conservation Measures'!EL53","v":{"$error":"#VALUE!"}},{"$f":"'2. Conservation Measures'!EM53","v":{"$error":"#VALUE!"}},null,{"$f":"'2. Conservation Measures'!KP53","v":{"$error":"#N/A"}},{"$f":"'2. Conservation Measures'!KQ53","v":{"$error":"#N/A"}},{"$f":"'2. Conservation Measures'!KR53","v":{"$error":"#N/A"}},{"$f":"'2. Conservation Measures'!KS53","v":{"$error":"#N/A"}},{"$f":"'2. Conservation Measures'!KT53","v":{"$error":"#N/A"}},{"$f":"'2. Conservation Measures'!KU53","v":{"$error":"#N/A"}},{"$f":"'2. Conservation Measures'!KV53","v":{"$error":"#N/A"}},{"$f":"'2. Conservation Measures'!KW53","v":{"$error":"#N/A"}},{"$f":"'2. Conservation Measures'!KX53","v":{"$error":"#N/A"}},{"$f":"'2. Conservation Measures'!KY53","v":{"$error":"#N/A"}},{"$f":"'2. Conservation Measures'!KZ53","v":{"$error":"#N/A"}},{"$f":"'2. Conservation Measures'!LA53","v":{"$error":"#N/A"}},{"$f":"'2. Conservation Measures'!LB53","v":{"$error":"#N/A"}},{"$f":"'2. Conservation Measures'!LC53","v":{"$error":"#N/A"}},{"$f":"'2. Conservation Measures'!LD53","v":{"$error":"#N/A"}},{"$f":"'2. Conservation Measures'!LE53","v":{"$error":"#N/A"}},{"$f":"'2. Conservation Measures'!LF53","v":{"$error":"#N/A"}},{"$f":"'2. Conservation Measures'!LG53","v":{"$error":"#N/A"}},{"$f":"'2. Conservation Measures'!LH53","v":{"$error":"#N/A"}},{"$f":"'2. Conservation Measures'!LI53","v":{"$error":"#N/A"}},{"$f":"'2. Conservation Measures'!LJ53","v":{"$error":"#N/A"}},{"$f":"'2. Conservation Measures'!LK53","v":{"$error":"#N/A"}},{"$f":"'2. Conservation Measures'!LL53","v":{"$error":"#N/A"}},{"$f":"'2. Conservation Measures'!LM53","v":{"$error":"#N/A"}},{"$f":"'2. Conservation Measures'!LN53","v":{"$error":"#N/A"}},{"$f":"'2. Conservation Measures'!LO53","v":{"$error":"#N/A"}},{"$f":"'2. Conservation Measures'!LP53","v":{"$error":"#N/A"}},{"$f":"'2. Conservation Measures'!LQ53","v":{"$error":"#N/A"}},{"$f":"'2. Conservation Measures'!LR53","v":{"$error":"#N/A"}},{"$f":"'2. Conservation Measures'!LS53","v":{"$error":"#N/A"}},{"$f":"'2. Conservation Measures'!LT53","v":{"$error":"#N/A"}},{"$f":"'2. Conservation Measures'!LU53","v":{"$error":"#N/A"}},{"$f":"'2. Conservation Measures'!LV53","v":{"$error":"#N/A"}},{"$f":"'2. Conservation Measures'!LW53","v":{"$error":"#N/A"}},{"$f":"'2. Conservation Measures'!LX53","v":{"$error":"#N/A"}},{"$f":"'2. Conservation Measures'!LY53","v":{"$error":"#N/A"}},{"$f":"'2. Conservation Measures'!LZ53","v":{"$error":"#N/A"}},{"$f":"'2. Conservation Measures'!MA53","v":{"$error":"#N/A"}},{"$f":"'2. Conservation Measures'!MB53","v":{"$error":"#N/A"}},{"$f":"'2. Conservation Measures'!MC53","v":{"$error":"#N/A"}},{"$f":"'2. Conservation Measures'!MD53","v":{"$error":"#N/A"}},{"$f":"'2. Conservation Measures'!ME53","v":{"$error":"#N/A"}},{"$f":"'2. Conservation Measures'!MF53","v":{"$error":"#N/A"}},{"$f":"'2. Conservation Measures'!MG53","v":{"$error":"#N/A"}},{"$f":"'2. Conservation Measures'!MH53","v":{"$error":"#N/A"}},{"$f":"'2. Conservation Measures'!MI53","v":{"$error":"#N/A"}},{"$f":"'2. Conservation Measures'!MJ53","v":{"$error":"#N/A"}},{"$f":"'2. Conservation Measures'!MK53","v":{"$error":"#N/A"}},{"$f":"'2. Conservation Measures'!ML53","v":{"$error":"#N/A"}},{"$f":"'2. Conservation Measures'!MM53","v":{"$error":"#N/A"}},{"$f":"'2. Conservation Measures'!MN53","v":{"$error":"#N/A"}},null,{"$f":"'2. Conservation Measures'!EP53","v":{"$error":"#N/A"}},{"$f":"'2. Conservation Measures'!EQ53","v":{"$error":"#N/A"}},{"$f":"'2. Conservation Measures'!ER53","v":{"$error":"#N/A"}},{"$f":"'2. Conservation Measures'!ES53","v":{"$error":"#N/A"}},{"$f":"'2. Conservation Measures'!ET53","v":{"$error":"#N/A"}},{"$f":"'2. Conservation Measures'!EU53","v":{"$error":"#N/A"}},{"$f":"'2. Conservation Measures'!EV53","v":{"$error":"#N/A"}},{"$f":"'2. Conservation Measures'!EW53","v":{"$error":"#N/A"}},{"$f":"'2. Conservation Measures'!EX53","v":{"$error":"#N/A"}},{"$f":"'2. Conservation Measures'!EY53","v":{"$error":"#N/A"}},{"$f":"'2. Conservation Measures'!EZ53","v":{"$error":"#N/A"}},{"$f":"'2. Conservation Measures'!FA53","v":{"$error":"#N/A"}},{"$f":"'2. Conservation Measures'!FB53","v":{"$error":"#N/A"}},{"$f":"'2. Conservation Measures'!FC53","v":{"$error":"#N/A"}},{"$f":"'2. Conservation Measures'!FD53","v":{"$error":"#N/A"}},{"$f":"'2. Conservation Measures'!FE53","v":{"$error":"#N/A"}},{"$f":"'2. Conservation Measures'!FF53","v":{"$error":"#N/A"}},{"$f":"'2. Conservation Measures'!FG53","v":{"$error":"#N/A"}},{"$f":"'2. Conservation Measures'!FH53","v":{"$error":"#N/A"}},{"$f":"'2. Conservation Measures'!FI53","v":{"$error":"#N/A"}},{"$f":"'2. Conservation Measures'!FJ53","v":{"$error":"#N/A"}},{"$f":"'2. Conservation Measures'!FK53","v":{"$error":"#N/A"}},{"$f":"'2. Conservation Measures'!FL53","v":{"$error":"#N/A"}},{"$f":"'2. Conservation Measures'!FM53","v":{"$error":"#N/A"}},{"$f":"'2. Conservation Measures'!FN53","v":{"$error":"#N/A"}},{"$f":"'2. Conservation Measures'!FO53","v":{"$error":"#N/A"}},{"$f":"'2. Conservation Measures'!FP53","v":{"$error":"#N/A"}},{"$f":"'2. Conservation Measures'!FQ53","v":{"$error":"#N/A"}},{"$f":"'2. Conservation Measures'!FR53","v":{"$error":"#N/A"}},{"$f":"'2. Conservation Measures'!FS53","v":{"$error":"#N/A"}},{"$f":"'2. Conservation Measures'!FT53","v":{"$error":"#N/A"}},{"$f":"'2. Conservation Measures'!FU53","v":{"$error":"#N/A"}},{"$f":"'2. Conservation Measures'!FV53","v":{"$error":"#N/A"}},{"$f":"'2. Conservation Measures'!FW53","v":{"$error":"#N/A"}},{"$f":"'2. Conservation Measures'!FX53","v":{"$error":"#N/A"}},{"$f":"'2. Conservation Measures'!FY53","v":{"$error":"#N/A"}},{"$f":"'2. Conservation Measures'!FZ53","v":{"$error":"#N/A"}},{"$f":"'2. Conservation Measures'!GA53","v":{"$error":"#N/A"}},{"$f":"'2. Conservation Measures'!GB53","v":{"$error":"#N/A"}},{"$f":"'2. Conservation Measures'!GC53","v":{"$error":"#N/A"}},{"$f":"'2. Conservation Measures'!GD53","v":{"$error":"#N/A"}},{"$f":"'2. Conservation Measures'!GE53","v":{"$error":"#N/A"}},{"$f":"'2. Conservation Measures'!GF53","v":{"$error":"#N/A"}},{"$f":"'2. Conservation Measures'!GG53","v":{"$error":"#N/A"}},{"$f":"'2. Conservation Measures'!GH53","v":{"$error":"#N/A"}},{"$f":"'2. Conservation Measures'!GI53","v":{"$error":"#N/A"}},{"$f":"'2. Conservation Measures'!GJ53","v":{"$error":"#N/A"}},{"$f":"'2. Conservation Measures'!GK53","v":{"$error":"#N/A"}},{"$f":"'2. Conservation Measures'!GL53","v":{"$error":"#N/A"}},{"$f":"'2. Conservation Measures'!GM53","v":{"$error":"#N/A"}},{"$f":"'2. Conservation Measures'!GN53","v":{"$error":"#N/A"}},null,{"$f":"'2. Conservation Measures'!GP53","v":{"$error":"#N/A"}},{"$f":"'2. Conservation Measures'!GQ53","v":{"$error":"#N/A"}},{"$f":"'2. Conservation Measures'!GR53","v":{"$error":"#N/A"}},{"$f":"'2. Conservation Measures'!GS53","v":{"$error":"#N/A"}},{"$f":"'2. Conservation Measures'!GT53","v":{"$error":"#N/A"}},{"$f":"'2. Conservation Measures'!GU53","v":{"$error":"#N/A"}},{"$f":"'2. Conservation Measures'!GV53","v":{"$error":"#N/A"}},{"$f":"'2. Conservation Measures'!GW53","v":{"$error":"#N/A"}},{"$f":"'2. Conservation Measures'!GX53","v":{"$error":"#N/A"}},{"$f":"'2. Conservation Measures'!GY53","v":{"$error":"#N/A"}},{"$f":"'2. Conservation Measures'!GZ53","v":{"$error":"#N/A"}},{"$f":"'2. Conservation Measures'!HA53","v":{"$error":"#N/A"}},{"$f":"'2. Conservation Measures'!HB53","v":{"$error":"#N/A"}},{"$f":"'2. Conservation Measures'!HC53","v":{"$error":"#N/A"}},{"$f":"'2. Conservation Measures'!HD53","v":{"$error":"#N/A"}},{"$f":"'2. Conservation Measures'!HE53","v":{"$error":"#N/A"}},{"$f":"'2. Conservation Measures'!HF53","v":{"$error":"#N/A"}},{"$f":"'2. Conservation Measures'!HG53","v":{"$error":"#N/A"}},{"$f":"'2. Conservation Measures'!HH53","v":{"$error":"#N/A"}},{"$f":"'2. Conservation Measures'!HI53","v":{"$error":"#N/A"}},{"$f":"'2. Conservation Measures'!HJ53","v":{"$error":"#N/A"}},{"$f":"'2. Conservation Measures'!HK53","v":{"$error":"#N/A"}},{"$f":"'2. Conservation Measures'!HL53","v":{"$error":"#N/A"}},{"$f":"'2. Conservation Measures'!HM53","v":{"$error":"#N/A"}},{"$f":"'2. Conservation Measures'!HN53","v":{"$error":"#N/A"}},{"$f":"'2. Conservation Measures'!HO53","v":{"$error":"#N/A"}},{"$f":"'2. Conservation Measures'!HP53","v":{"$error":"#N/A"}},{"$f":"'2. Conservation Measures'!HQ53","v":{"$error":"#N/A"}},{"$f":"'2. Conservation Measures'!HR53","v":{"$error":"#N/A"}},{"$f":"'2. Conservation Measures'!HS53","v":{"$error":"#N/A"}},{"$f":"'2. Conservation Measures'!HT53","v":{"$error":"#N/A"}},{"$f":"'2. Conservation Measures'!HU53","v":{"$error":"#N/A"}},{"$f":"'2. Conservation Measures'!HV53","v":{"$error":"#N/A"}},{"$f":"'2. Conservation Measures'!HW53","v":{"$error":"#N/A"}},{"$f":"'2. Conservation Measures'!HX53","v":{"$error":"#N/A"}},{"$f":"'2. Conservation Measures'!HY53","v":{"$error":"#N/A"}},{"$f":"'2. Conservation Measures'!HZ53","v":{"$error":"#N/A"}},{"$f":"'2. Conservation Measures'!IA53","v":{"$error":"#N/A"}},{"$f":"'2. Conservation Measures'!IB53","v":{"$error":"#N/A"}},{"$f":"'2. Conservation Measures'!IC53","v":{"$error":"#N/A"}},{"$f":"'2. Conservation Measures'!ID53","v":{"$error":"#N/A"}},{"$f":"'2. Conservation Measures'!IE53","v":{"$error":"#N/A"}},{"$f":"'2. Conservation Measures'!IF53","v":{"$error":"#N/A"}},{"$f":"'2. Conservation Measures'!IG53","v":{"$error":"#N/A"}},{"$f":"'2. Conservation Measures'!IH53","v":{"$error":"#N/A"}},{"$f":"'2. Conservation Measures'!II53","v":{"$error":"#N/A"}},{"$f":"'2. Conservation Measures'!IJ53","v":{"$error":"#N/A"}},{"$f":"'2. Conservation Measures'!IK53","v":{"$error":"#N/A"}},{"$f":"'2. Conservation Measures'!IL53","v":{"$error":"#N/A"}},{"$f":"'2. Conservation Measures'!IM53","v":{"$error":"#N/A"}},{"$f":"'2. Conservation Measures'!IN53","v":{"$error":"#N/A"}},null,{"$f":"'2. Conservation Measures'!IP53","v":{"$error":"#VALUE!"}},{"$f":"'2. Conservation Measures'!IQ53","v":{"$error":"#VALUE!"}},{"$f":"'2. Conservation Measures'!IR53","v":{"$error":"#VALUE!"}},{"$f":"'2. Conservation Measures'!IS53","v":{"$error":"#VALUE!"}},{"$f":"'2. Conservation Measures'!IT53","v":{"$error":"#VALUE!"}},{"$f":"'2. Conservation Measures'!IU53","v":{"$error":"#VALUE!"}},{"$f":"'2. Conservation Measures'!IV53","v":{"$error":"#VALUE!"}},{"$f":"'2. Conservation Measures'!IW53","v":{"$error":"#VALUE!"}},{"$f":"'2. Conservation Measures'!IX53","v":{"$error":"#VALUE!"}},{"$f":"'2. Conservation Measures'!IY53","v":{"$error":"#VALUE!"}},{"$f":"'2. Conservation Measures'!IZ53","v":{"$error":"#VALUE!"}},{"$f":"'2. Conservation Measures'!JA53","v":{"$error":"#VALUE!"}},{"$f":"'2. Conservation Measures'!JB53","v":{"$error":"#VALUE!"}},{"$f":"'2. Conservation Measures'!JC53","v":{"$error":"#VALUE!"}},{"$f":"'2. Conservation Measures'!JD53","v":{"$error":"#VALUE!"}},{"$f":"'2. Conservation Measures'!JE53","v":{"$error":"#VALUE!"}},{"$f":"'2. Conservation Measures'!JF53","v":{"$error":"#VALUE!"}},{"$f":"'2. Conservation Measures'!JG53","v":{"$error":"#VALUE!"}},{"$f":"'2. Conservation Measures'!JH53","v":{"$error":"#VALUE!"}},{"$f":"'2. Conservation Measures'!JI53","v":{"$error":"#VALUE!"}},{"$f":"'2. Conservation Measures'!JJ53","v":{"$error":"#VALUE!"}},{"$f":"'2. Conservation Measures'!JK53","v":{"$error":"#VALUE!"}},{"$f":"'2. Conservation Measures'!JL53","v":{"$error":"#VALUE!"}},{"$f":"'2. Conservation Measures'!JM53","v":{"$error":"#VALUE!"}},{"$f":"'2. Conservation Measures'!JN53","v":{"$error":"#VALUE!"}},{"$f":"'2. Conservation Measures'!JO53","v":{"$error":"#VALUE!"}},{"$f":"'2. Conservation Measures'!JP53","v":{"$error":"#VALUE!"}},{"$f":"'2. Conservation Measures'!JQ53","v":{"$error":"#VALUE!"}},{"$f":"'2. Conservation Measures'!JR53","v":{"$error":"#VALUE!"}},{"$f":"'2. Conservation Measures'!JS53","v":{"$error":"#VALUE!"}},{"$f":"'2. Conservation Measures'!JT53","v":{"$error":"#VALUE!"}},{"$f":"'2. Conservation Measures'!JU53","v":{"$error":"#VALUE!"}},{"$f":"'2. Conservation Measures'!JV53","v":{"$error":"#VALUE!"}},{"$f":"'2. Conservation Measures'!JW53","v":{"$error":"#VALUE!"}},{"$f":"'2. Conservation Measures'!JX53","v":{"$error":"#VALUE!"}},{"$f":"'2. Conservation Measures'!JY53","v":{"$error":"#VALUE!"}},{"$f":"'2. Conservation Measures'!JZ53","v":{"$error":"#VALUE!"}},{"$f":"'2. Conservation Measures'!KA53","v":{"$error":"#VALUE!"}},{"$f":"'2. Conservation Measures'!KB53","v":{"$error":"#VALUE!"}},{"$f":"'2. Conservation Measures'!KC53","v":{"$error":"#VALUE!"}},{"$f":"'2. Conservation Measures'!KD53","v":{"$error":"#VALUE!"}},{"$f":"'2. Conservation Measures'!KE53","v":{"$error":"#VALUE!"}},{"$f":"'2. Conservation Measures'!KF53","v":{"$error":"#VALUE!"}},{"$f":"'2. Conservation Measures'!KG53","v":{"$error":"#VALUE!"}},{"$f":"'2. Conservation Measures'!KH53","v":{"$error":"#VALUE!"}},{"$f":"'2. Conservation Measures'!KI53","v":{"$error":"#VALUE!"}},{"$f":"'2. Conservation Measures'!KJ53","v":{"$error":"#VALUE!"}},{"$f":"'2. Conservation Measures'!KK53","v":{"$error":"#VALUE!"}},{"$f":"'2. Conservation Measures'!KL53","v":{"$error":"#VALUE!"}},{"$f":"'2. Conservation Measures'!KM53","v":{"$error":"#VALUE!"}},{"$f":"'2. Conservation Measures'!KN53","v":{"$error":"#VALUE!"}}]
[null,{"$f":"'2. Conservation Measures'!B54","v":"PRE-ICI-08"},{"$f":"'2. Conservation Measures'!C54","v":{"$error":"#N/A"}},{"$f":"'2. Conservation Measures'!D54","v":"N"},null,{"$f":"'2. Conservation Measures'!AA54","v":{"$error":"#N/A"}},null,{"$f":"'2. Conservation Measures'!AO54","v":0},{"$f":"'2. Conservation Measures'!AP54","v":0},{"$f":"'2. Conservation Measures'!AQ54","v":0},{"$f":"'2. Conservation Measures'!AR54","v":0},{"$f":"'2. Conservation Measures'!AS54","v":0},{"$f":"'2. Conservation Measures'!AT54","v":0},{"$f":"'2. Conservation Measures'!AU54","v":0},{"$f":"'2. Conservation Measures'!AV54","v":0},{"$f":"'2. Conservation Measures'!AW54","v":0},{"$f":"'2. Conservation Measures'!AX54","v":0},{"$f":"'2. Conservation Measures'!AY54","v":0},{"$f":"'2. Conservation Measures'!AZ54","v":0},{"$f":"'2. Conservation Measures'!BA54","v":0},{"$f":"'2. Conservation Measures'!BB54","v":0},{"$f":"'2. Conservation Measures'!BC54","v":0},{"$f":"'2. Conservation Measures'!BD54","v":0},{"$f":"'2. Conservation Measures'!BE54","v":0},{"$f":"'2. Conservation Measures'!BF54","v":0},{"$f":"'2. Conservation Measures'!BG54","v":0},{"$f":"'2. Conservation Measures'!BH54","v":0},{"$f":"'2. Conservation Measures'!BI54","v":0},{"$f":"'2. Conservation Measures'!BJ54","v":0},{"$f":"'2. Conservation Measures'!BK54","v":0},{"$f":"'2. Conservation Measures'!BL54","v":0},{"$f":"'2. Conservation Measures'!BM54","v":0},{"$f":"'2. Conservation Measures'!BN54","v":0},{"$f":"'2. Conservation Measures'!BO54","v":0},{"$f":"'2. Conservation Measures'!BP54","v":0},{"$f":"'2. Conservation Measures'!BQ54","v":0},{"$f":"'2. Conservation Measures'!BR54","v":0},{"$f":"'2. Conservation Measures'!BS54","v":0},{"$f":"'2. Conservation Measures'!BT54","v":0},{"$f":"'2. Conservation Measures'!BU54","v":0},{"$f":"'2. Conservation Measures'!BV54","v":0},{"$f":"'2. Conservation Measures'!BW54","v":0},{"$f":"'2. Conservation Measures'!BX54","v":0},{"$f":"'2. Conservation Measures'!BY54","v":0},{"$f":"'2. Conservation Measures'!BZ54","v":0},{"$f":"'2. Conservation Measures'!CA54","v":0},{"$f":"'2. Conservation Measures'!CB54","v":0},{"$f":"'2. Conservation Measures'!CC54","v":0},{"$f":"'2. Conservation Measures'!CD54","v":0},{"$f":"'2. Conservation Measures'!CE54","v":0},{"$f":"'2. Conservation Measures'!CF54","v":0},{"$f":"'2. Conservation Measures'!CG54","v":0},{"$f":"'2. Conservation Measures'!CH54","v":0},{"$f":"'2. Conservation Measures'!CI54","v":0},{"$f":"'2. Conservation Measures'!CJ54","v":0},{"$f":"'2. Conservation Measures'!CK54","v":0},{"$f":"'2. Conservation Measures'!CL54","v":0},{"$f":"'2. Conservation Measures'!CM54","v":0},null,{"$f":"'2. Conservation Measures'!CO54","v":{"$error":"#VALUE!"}},{"$f":"'2. Conservation Measures'!CP54","v":{"$error":"#VALUE!"}},{"$f":"'2. Conservation Measures'!CQ54","v":{"$error":"#VALUE!"}},{"$f":"'2. Conservation Measures'!CR54","v":{"$error":"#VALUE!"}},{"$f":"'2. Conservation Measures'!CS54","v":{"$error":"#VALUE!"}},{"$f":"'2. Conservation Measures'!CT54","v":{"$error":"#VALUE!"}},{"$f":"'2. Conservation Measures'!CU54","v":{"$error":"#VALUE!"}},{"$f":"'2. Conservation Measures'!CV54","v":{"$error":"#VALUE!"}},{"$f":"'2. Conservation Measures'!CW54","v":{"$error":"#VALUE!"}},{"$f":"'2. Conservation Measures'!CX54","v":{"$error":"#VALUE!"}},{"$f":"'2. Conservation Measures'!CY54","v":{"$error":"#VALUE!"}},{"$f":"'2. Conservation Measures'!CZ54","v":{"$error":"#VALUE!"}},{"$f":"'2. Conservation Measures'!DA54","v":{"$error":"#VALUE!"}},{"$f":"'2. Conservation Measures'!DB54","v":{"$error":"#VALUE!"}},{"$f":"'2. Conservation Measures'!DC54","v":{"$error":"#VALUE!"}},{"$f":"'2. Conservation Measures'!DD54","v":{"$error":"#VALUE!"}},{"$f":"'2. Conservation Measures'!DE54","v":{"$error":"#VALUE!"}},{"$f":"'2. Conservation Measures'!DF54","v":{"$error":"#VALUE!"}},{"$f":"'2. Conservation Measures'!DG54","v":{"$error":"#VALUE!"}},{"$f":"'2. Conservation Measures'!DH54","v":{"$error":"#VALUE!"}},{"$f":"'2. Conservation Measures'!DI54","v":{"$error":"#VALUE!"}},{"$f":"'2. Conservation Measures'!DJ54","v":{"$error":"#VALUE!"}},{"$f":"'2. Conservation Measures'!DK54","v":{"$error":"#VALUE!"}},{"$f":"'2. Conservation Measures'!DL54","v":{"$error":"#VALUE!"}},{"$f":"'2. Conservation Measures'!DM54","v":{"$error":"#VALUE!"}},{"$f":"'2. Conservation Measures'!DN54","v":{"$error":"#VALUE!"}},{"$f":"'2. Conservation Measures'!DO54","v":{"$error":"#VALUE!"}},{"$f":"'2. Conservation Measures'!DP54","v":{"$error":"#VALUE!"}},{"$f":"'2. Conservation Measures'!DQ54","v":{"$error":"#VALUE!"}},{"$f":"'2. Conservation Measures'!DR54","v":{"$error":"#VALUE!"}},{"$f":"'2. Conservation Measures'!DS54","v":{"$error":"#VALUE!"}},{"$f":"'2. Conservation Measures'!DT54","v":{"$error":"#VALUE!"}},{"$f":"'2. Conservation Measures'!DU54","v":{"$error":"#VALUE!"}},{"$f":"'2. Conservation Measures'!DV54","v":{"$error":"#VALUE!"}},{"$f":"'2. Conservation Measures'!DW54","v":{"$error":"#VALUE!"}},{"$f":"'2. Conservation Measures'!DX54","v":{"$error":"#VALUE!"}},{"$f":"'2. Conservation Measures'!DY54","v":{"$error":"#VALUE!"}},{"$f":"'2. Conservation Measures'!DZ54","v":{"$error":"#VALUE!"}},{"$f":"'2. Conservation Measures'!EA54","v":{"$error":"#VALUE!"}},{"$f":"'2. Conservation Measures'!EB54","v":{"$error":"#VALUE!"}},{"$f":"'2. Conservation Measures'!EC54","v":{"$error":"#VALUE!"}},{"$f":"'2. Conservation Measures'!ED54","v":{"$error":"#VALUE!"}},{"$f":"'2. Conservation Measures'!EE54","v":{"$error":"#VALUE!"}},{"$f":"'2. Conservation Measures'!EF54","v":{"$error":"#VALUE!"}},{"$f":"'2. Conservation Measures'!EG54","v":{"$error":"#VALUE!"}},{"$f":"'2. Conservation Measures'!EH54","v":{"$error":"#VALUE!"}},{"$f":"'2. Conservation Measures'!EI54","v":{"$error":"#VALUE!"}},{"$f":"'2. Conservation Measures'!EJ54","v":{"$error":"#VALUE!"}},{"$f":"'2. Conservation Measures'!EK54","v":{"$error":"#VALUE!"}},{"$f":"'2. Conservation Measures'!EL54","v":{"$error":"#VALUE!"}},{"$f":"'2. Conservation Measures'!EM54","v":{"$error":"#VALUE!"}},null,{"$f":"'2. Conservation Measures'!KP54","v":{"$error":"#N/A"}},{"$f":"'2. Conservation Measures'!KQ54","v":{"$error":"#N/A"}},{"$f":"'2. Conservation Measures'!KR54","v":{"$error":"#N/A"}},{"$f":"'2. Conservation Measures'!KS54","v":{"$error":"#N/A"}},{"$f":"'2. Conservation Measures'!KT54","v":{"$error":"#N/A"}},{"$f":"'2. Conservation Measures'!KU54","v":{"$error":"#N/A"}},{"$f":"'2. Conservation Measures'!KV54","v":{"$error":"#N/A"}},{"$f":"'2. Conservation Measures'!KW54","v":{"$error":"#N/A"}},{"$f":"'2. Conservation Measures'!KX54","v":{"$error":"#N/A"}},{"$f":"'2. Conservation Measures'!KY54","v":{"$error":"#N/A"}},{"$f":"'2. Conservation Measures'!KZ54","v":{"$error":"#N/A"}},{"$f":"'2. Conservation Measures'!LA54","v":{"$error":"#N/A"}},{"$f":"'2. Conservation Measures'!LB54","v":{"$error":"#N/A"}},{"$f":"'2. Conservation Measures'!LC54","v":{"$error":"#N/A"}},{"$f":"'2. Conservation Measures'!LD54","v":{"$error":"#N/A"}},{"$f":"'2. Conservation Measures'!LE54","v":{"$error":"#N/A"}},{"$f":"'2. Conservation Measures'!LF54","v":{"$error":"#N/A"}},{"$f":"'2. Conservation Measures'!LG54","v":{"$error":"#N/A"}},{"$f":"'2. Conservation Measures'!LH54","v":{"$error":"#N/A"}},{"$f":"'2. Conservation Measures'!LI54","v":{"$error":"#N/A"}},{"$f":"'2. Conservation Measures'!LJ54","v":{"$error":"#N/A"}},{"$f":"'2. Conservation Measures'!LK54","v":{"$error":"#N/A"}},{"$f":"'2. Conservation Measures'!LL54","v":{"$error":"#N/A"}},{"$f":"'2. Conservation Measures'!LM54","v":{"$error":"#N/A"}},{"$f":"'2. Conservation Measures'!LN54","v":{"$error":"#N/A"}},{"$f":"'2. Conservation Measures'!LO54","v":{"$error":"#N/A"}},{"$f":"'2. Conservation Measures'!LP54","v":{"$error":"#N/A"}},{"$f":"'2. Conservation Measures'!LQ54","v":{"$error":"#N/A"}},{"$f":"'2. Conservation Measures'!LR54","v":{"$error":"#N/A"}},{"$f":"'2. Conservation Measures'!LS54","v":{"$error":"#N/A"}},{"$f":"'2. Conservation Measures'!LT54","v":{"$error":"#N/A"}},{"$f":"'2. Conservation Measures'!LU54","v":{"$error":"#N/A"}},{"$f":"'2. Conservation Measures'!LV54","v":{"$error":"#N/A"}},{"$f":"'2. Conservation Measures'!LW54","v":{"$error":"#N/A"}},{"$f":"'2. Conservation Measures'!LX54","v":{"$error":"#N/A"}},{"$f":"'2. Conservation Measures'!LY54","v":{"$error":"#N/A"}},{"$f":"'2. Conservation Measures'!LZ54","v":{"$error":"#N/A"}},{"$f":"'2. Conservation Measures'!MA54","v":{"$error":"#N/A"}},{"$f":"'2. Conservation Measures'!MB54","v":{"$error":"#N/A"}},{"$f":"'2. Conservation Measures'!MC54","v":{"$error":"#N/A"}},{"$f":"'2. Conservation Measures'!MD54","v":{"$error":"#N/A"}},{"$f":"'2. Conservation Measures'!ME54","v":{"$error":"#N/A"}},{"$f":"'2. Conservation Measures'!MF54","v":{"$error":"#N/A"}},{"$f":"'2. Conservation Measures'!MG54","v":{"$error":"#N/A"}},{"$f":"'2. Conservation Measures'!MH54","v":{"$error":"#N/A"}},{"$f":"'2. Conservation Measures'!MI54","v":{"$error":"#N/A"}},{"$f":"'2. Conservation Measures'!MJ54","v":{"$error":"#N/A"}},{"$f":"'2. Conservation Measures'!MK54","v":{"$error":"#N/A"}},{"$f":"'2. Conservation Measures'!ML54","v":{"$error":"#N/A"}},{"$f":"'2. Conservation Measures'!MM54","v":{"$error":"#N/A"}},{"$f":"'2. Conservation Measures'!MN54","v":{"$error":"#N/A"}},null,{"$f":"'2. Conservation Measures'!EP54","v":{"$error":"#N/A"}},{"$f":"'2. Conservation Measures'!EQ54","v":{"$error":"#N/A"}},{"$f":"'2. Conservation Measures'!ER54","v":{"$error":"#N/A"}},{"$f":"'2. Conservation Measures'!ES54","v":{"$error":"#N/A"}},{"$f":"'2. Conservation Measures'!ET54","v":{"$error":"#N/A"}},{"$f":"'2. Conservation Measures'!EU54","v":{"$error":"#N/A"}},{"$f":"'2. Conservation Measures'!EV54","v":{"$error":"#N/A"}},{"$f":"'2. Conservation Measures'!EW54","v":{"$error":"#N/A"}},{"$f":"'2. Conservation Measures'!EX54","v":{"$error":"#N/A"}},{"$f":"'2. Conservation Measures'!EY54","v":{"$error":"#N/A"}},{"$f":"'2. Conservation Measures'!EZ54","v":{"$error":"#N/A"}},{"$f":"'2. Conservation Measures'!FA54","v":{"$error":"#N/A"}},{"$f":"'2. Conservation Measures'!FB54","v":{"$error":"#N/A"}},{"$f":"'2. Conservation Measures'!FC54","v":{"$error":"#N/A"}},{"$f":"'2. Conservation Measures'!FD54","v":{"$error":"#N/A"}},{"$f":"'2. Conservation Measures'!FE54","v":{"$error":"#N/A"}},{"$f":"'2. Conservation Measures'!FF54","v":{"$error":"#N/A"}},{"$f":"'2. Conservation Measures'!FG54","v":{"$error":"#N/A"}},{"$f":"'2. Conservation Measures'!FH54","v":{"$error":"#N/A"}},{"$f":"'2. Conservation Measures'!FI54","v":{"$error":"#N/A"}},{"$f":"'2. Conservation Measures'!FJ54","v":{"$error":"#N/A"}},{"$f":"'2. Conservation Measures'!FK54","v":{"$error":"#N/A"}},{"$f":"'2. Conservation Measures'!FL54","v":{"$error":"#N/A"}},{"$f":"'2. Conservation Measures'!FM54","v":{"$error":"#N/A"}},{"$f":"'2. Conservation Measures'!FN54","v":{"$error":"#N/A"}},{"$f":"'2. Conservation Measures'!FO54","v":{"$error":"#N/A"}},{"$f":"'2. Conservation Measures'!FP54","v":{"$error":"#N/A"}},{"$f":"'2. Conservation Measures'!FQ54","v":{"$error":"#N/A"}},{"$f":"'2. Conservation Measures'!FR54","v":{"$error":"#N/A"}},{"$f":"'2. Conservation Measures'!FS54","v":{"$error":"#N/A"}},{"$f":"'2. Conservation Measures'!FT54","v":{"$error":"#N/A"}},{"$f":"'2. Conservation Measures'!FU54","v":{"$error":"#N/A"}},{"$f":"'2. Conservation Measures'!FV54","v":{"$error":"#N/A"}},{"$f":"'2. Conservation Measures'!FW54","v":{"$error":"#N/A"}},{"$f":"'2. Conservation Measures'!FX54","v":{"$error":"#N/A"}},{"$f":"'2. Conservation Measures'!FY54","v":{"$error":"#N/A"}},{"$f":"'2. Conservation Measures'!FZ54","v":{"$error":"#N/A"}},{"$f":"'2. Conservation Measures'!GA54","v":{"$error":"#N/A"}},{"$f":"'2. Conservation Measures'!GB54","v":{"$error":"#N/A"}},{"$f":"'2. Conservation Measures'!GC54","v":{"$error":"#N/A"}},{"$f":"'2. Conservation Measures'!GD54","v":{"$error":"#N/A"}},{"$f":"'2. Conservation Measures'!GE54","v":{"$error":"#N/A"}},{"$f":"'2. Conservation Measures'!GF54","v":{"$error":"#N/A"}},{"$f":"'2. Conservation Measures'!GG54","v":{"$error":"#N/A"}},{"$f":"'2. Conservation Measures'!GH54","v":{"$error":"#N/A"}},{"$f":"'2. Conservation Measures'!GI54","v":{"$error":"#N/A"}},{"$f":"'2. Conservation Measures'!GJ54","v":{"$error":"#N/A"}},{"$f":"'2. Conservation Measures'!GK54","v":{"$error":"#N/A"}},{"$f":"'2. Conservation Measures'!GL54","v":{"$error":"#N/A"}},{"$f":"'2. Conservation Measures'!GM54","v":{"$error":"#N/A"}},{"$f":"'2. Conservation Measures'!GN54","v":{"$error":"#N/A"}},null,{"$f":"'2. Conservation Measures'!GP54","v":{"$error":"#N/A"}},{"$f":"'2. Conservation Measures'!GQ54","v":{"$error":"#N/A"}},{"$f":"'2. Conservation Measures'!GR54","v":{"$error":"#N/A"}},{"$f":"'2. Conservation Measures'!GS54","v":{"$error":"#N/A"}},{"$f":"'2. Conservation Measures'!GT54","v":{"$error":"#N/A"}},{"$f":"'2. Conservation Measures'!GU54","v":{"$error":"#N/A"}},{"$f":"'2. Conservation Measures'!GV54","v":{"$error":"#N/A"}},{"$f":"'2. Conservation Measures'!GW54","v":{"$error":"#N/A"}},{"$f":"'2. Conservation Measures'!GX54","v":{"$error":"#N/A"}},{"$f":"'2. Conservation Measures'!GY54","v":{"$error":"#N/A"}},{"$f":"'2. Conservation Measures'!GZ54","v":{"$error":"#N/A"}},{"$f":"'2. Conservation Measures'!HA54","v":{"$error":"#N/A"}},{"$f":"'2. Conservation Measures'!HB54","v":{"$error":"#N/A"}},{"$f":"'2. Conservation Measures'!HC54","v":{"$error":"#N/A"}},{"$f":"'2. Conservation Measures'!HD54","v":{"$error":"#N/A"}},{"$f":"'2. Conservation Measures'!HE54","v":{"$error":"#N/A"}},{"$f":"'2. Conservation Measures'!HF54","v":{"$error":"#N/A"}},{"$f":"'2. Conservation Measures'!HG54","v":{"$error":"#N/A"}},{"$f":"'2. Conservation Measures'!HH54","v":{"$error":"#N/A"}},{"$f":"'2. Conservation Measures'!HI54","v":{"$error":"#N/A"}},{"$f":"'2. Conservation Measures'!HJ54","v":{"$error":"#N/A"}},{"$f":"'2. Conservation Measures'!HK54","v":{"$error":"#N/A"}},{"$f":"'2. Conservation Measures'!HL54","v":{"$error":"#N/A"}},{"$f":"'2. Conservation Measures'!HM54","v":{"$error":"#N/A"}},{"$f":"'2. Conservation Measures'!HN54","v":{"$error":"#N/A"}},{"$f":"'2. Conservation Measures'!HO54","v":{"$error":"#N/A"}},{"$f":"'2. Conservation Measures'!HP54","v":{"$error":"#N/A"}},{"$f":"'2. Conservation Measures'!HQ54","v":{"$error":"#N/A"}},{"$f":"'2. Conservation Measures'!HR54","v":{"$error":"#N/A"}},{"$f":"'2. Conservation Measures'!HS54","v":{"$error":"#N/A"}},{"$f":"'2. Conservation Measures'!HT54","v":{"$error":"#N/A"}},{"$f":"'2. Conservation Measures'!HU54","v":{"$error":"#N/A"}},{"$f":"'2. Conservation Measures'!HV54","v":{"$error":"#N/A"}},{"$f":"'2. Conservation Measures'!HW54","v":{"$error":"#N/A"}},{"$f":"'2. Conservation Measures'!HX54","v":{"$error":"#N/A"}},{"$f":"'2. Conservation Measures'!HY54","v":{"$error":"#N/A"}},{"$f":"'2. Conservation Measures'!HZ54","v":{"$error":"#N/A"}},{"$f":"'2. Conservation Measures'!IA54","v":{"$error":"#N/A"}},{"$f":"'2. Conservation Measures'!IB54","v":{"$error":"#N/A"}},{"$f":"'2. Conservation Measures'!IC54","v":{"$error":"#N/A"}},{"$f":"'2. Conservation Measures'!ID54","v":{"$error":"#N/A"}},{"$f":"'2. Conservation Measures'!IE54","v":{"$error":"#N/A"}},{"$f":"'2. Conservation Measures'!IF54","v":{"$error":"#N/A"}},{"$f":"'2. Conservation Measures'!IG54","v":{"$error":"#N/A"}},{"$f":"'2. Conservation Measures'!IH54","v":{"$error":"#N/A"}},{"$f":"'2. Conservation Measures'!II54","v":{"$error":"#N/A"}},{"$f":"'2. Conservation Measures'!IJ54","v":{"$error":"#N/A"}},{"$f":"'2. Conservation Measures'!IK54","v":{"$error":"#N/A"}},{"$f":"'2. Conservation Measures'!IL54","v":{"$error":"#N/A"}},{"$f":"'2. Conservation Measures'!IM54","v":{"$error":"#N/A"}},{"$f":"'2. Conservation Measures'!IN54","v":{"$error":"#N/A"}},null,{"$f":"'2. Conservation Measures'!IP54","v":{"$error":"#VALUE!"}},{"$f":"'2. Conservation Measures'!IQ54","v":{"$error":"#VALUE!"}},{"$f":"'2. Conservation Measures'!IR54","v":{"$error":"#VALUE!"}},{"$f":"'2. Conservation Measures'!IS54","v":{"$error":"#VALUE!"}},{"$f":"'2. Conservation Measures'!IT54","v":{"$error":"#VALUE!"}},{"$f":"'2. Conservation Measures'!IU54","v":{"$error":"#VALUE!"}},{"$f":"'2. Conservation Measures'!IV54","v":{"$error":"#VALUE!"}},{"$f":"'2. Conservation Measures'!IW54","v":{"$error":"#VALUE!"}},{"$f":"'2. Conservation Measures'!IX54","v":{"$error":"#VALUE!"}},{"$f":"'2. Conservation Measures'!IY54","v":{"$error":"#VALUE!"}},{"$f":"'2. Conservation Measures'!IZ54","v":{"$error":"#VALUE!"}},{"$f":"'2. Conservation Measures'!JA54","v":{"$error":"#VALUE!"}},{"$f":"'2. Conservation Measures'!JB54","v":{"$error":"#VALUE!"}},{"$f":"'2. Conservation Measures'!JC54","v":{"$error":"#VALUE!"}},{"$f":"'2. Conservation Measures'!JD54","v":{"$error":"#VALUE!"}},{"$f":"'2. Conservation Measures'!JE54","v":{"$error":"#VALUE!"}},{"$f":"'2. Conservation Measures'!JF54","v":{"$error":"#VALUE!"}},{"$f":"'2. Conservation Measures'!JG54","v":{"$error":"#VALUE!"}},{"$f":"'2. Conservation Measures'!JH54","v":{"$error":"#VALUE!"}},{"$f":"'2. Conservation Measures'!JI54","v":{"$error":"#VALUE!"}},{"$f":"'2. Conservation Measures'!JJ54","v":{"$error":"#VALUE!"}},{"$f":"'2. Conservation Measures'!JK54","v":{"$error":"#VALUE!"}},{"$f":"'2. Conservation Measures'!JL54","v":{"$error":"#VALUE!"}},{"$f":"'2. Conservation Measures'!JM54","v":{"$error":"#VALUE!"}},{"$f":"'2. Conservation Measures'!JN54","v":{"$error":"#VALUE!"}},{"$f":"'2. Conservation Measures'!JO54","v":{"$error":"#VALUE!"}},{"$f":"'2. Conservation Measures'!JP54","v":{"$error":"#VALUE!"}},{"$f":"'2. Conservation Measures'!JQ54","v":{"$error":"#VALUE!"}},{"$f":"'2. Conservation Measures'!JR54","v":{"$error":"#VALUE!"}},{"$f":"'2. Conservation Measures'!JS54","v":{"$error":"#VALUE!"}},{"$f":"'2. Conservation Measures'!JT54","v":{"$error":"#VALUE!"}},{"$f":"'2. Conservation Measures'!JU54","v":{"$error":"#VALUE!"}},{"$f":"'2. Conservation Measures'!JV54","v":{"$error":"#VALUE!"}},{"$f":"'2. Conservation Measures'!JW54","v":{"$error":"#VALUE!"}},{"$f":"'2. Conservation Measures'!JX54","v":{"$error":"#VALUE!"}},{"$f":"'2. Conservation Measures'!JY54","v":{"$error":"#VALUE!"}},{"$f":"'2. Conservation Measures'!JZ54","v":{"$error":"#VALUE!"}},{"$f":"'2. Conservation Measures'!KA54","v":{"$error":"#VALUE!"}},{"$f":"'2. Conservation Measures'!KB54","v":{"$error":"#VALUE!"}},{"$f":"'2. Conservation Measures'!KC54","v":{"$error":"#VALUE!"}},{"$f":"'2. Conservation Measures'!KD54","v":{"$error":"#VALUE!"}},{"$f":"'2. Conservation Measures'!KE54","v":{"$error":"#VALUE!"}},{"$f":"'2. Conservation Measures'!KF54","v":{"$error":"#VALUE!"}},{"$f":"'2. Conservation Measures'!KG54","v":{"$error":"#VALUE!"}},{"$f":"'2. Conservation Measures'!KH54","v":{"$error":"#VALUE!"}},{"$f":"'2. Conservation Measures'!KI54","v":{"$error":"#VALUE!"}},{"$f":"'2. Conservation Measures'!KJ54","v":{"$error":"#VALUE!"}},{"$f":"'2. Conservation Measures'!KK54","v":{"$error":"#VALUE!"}},{"$f":"'2. Conservation Measures'!KL54","v":{"$error":"#VALUE!"}},{"$f":"'2. Conservation Measures'!KM54","v":{"$error":"#VALUE!"}},{"$f":"'2. Conservation Measures'!KN54","v":{"$error":"#VALUE!"}}]
[null,{"$f":"'2. Conservation Measures'!B55","v":"PRE-ICI-09"},{"$f":"'2. Conservation Measures'!C55","v":{"$error":"#N/A"}},{"$f":"'2. Conservation Measures'!D55","v":"N"},null,{"$f":"'2. Conservation Measures'!AA55","v":{"$error":"#N/A"}},null,{"$f":"'2. Conservation Measures'!AO55","v":0},{"$f":"'2. Conservation Measures'!AP55","v":0},{"$f":"'2. Conservation Measures'!AQ55","v":0},{"$f":"'2. Conservation Measures'!AR55","v":0},{"$f":"'2. Conservation Measures'!AS55","v":0},{"$f":"'2. Conservation Measures'!AT55","v":0},{"$f":"'2. Conservation Measures'!AU55","v":0},{"$f":"'2. Conservation Measures'!AV55","v":0},{"$f":"'2. Conservation Measures'!AW55","v":0},{"$f":"'2. Conservation Measures'!AX55","v":0},{"$f":"'2. Conservation Measures'!AY55","v":0},{"$f":"'2. Conservation Measures'!AZ55","v":0},{"$f":"'2. Conservation Measures'!BA55","v":0},{"$f":"'2. Conservation Measures'!BB55","v":0},{"$f":"'2. Conservation Measures'!BC55","v":0},{"$f":"'2. Conservation Measures'!BD55","v":0},{"$f":"'2. Conservation Measures'!BE55","v":0},{"$f":"'2. Conservation Measures'!BF55","v":0},{"$f":"'2. Conservation Measures'!BG55","v":0},{"$f":"'2. Conservation Measures'!BH55","v":0},{"$f":"'2. Conservation Measures'!BI55","v":0},{"$f":"'2. Conservation Measures'!BJ55","v":0},{"$f":"'2. Conservation Measures'!BK55","v":0},{"$f":"'2. Conservation Measures'!BL55","v":0},{"$f":"'2. Conservation Measures'!BM55","v":0},{"$f":"'2. Conservation Measures'!BN55","v":0},{"$f":"'2. Conservation Measures'!BO55","v":0},{"$f":"'2. Conservation Measures'!BP55","v":0},{"$f":"'2. Conservation Measures'!BQ55","v":0},{"$f":"'2. Conservation Measures'!BR55","v":0},{"$f":"'2. Conservation Measures'!BS55","v":0},{"$f":"'2. Conservation Measures'!BT55","v":0},{"$f":"'2. Conservation Measures'!BU55","v":0},{"$f":"'2. Conservation Measures'!BV55","v":0},{"$f":"'2. Conservation Measures'!BW55","v":0},{"$f":"'2. Conservation Measures'!BX55","v":0},{"$f":"'2. Conservation Measures'!BY55","v":0},{"$f":"'2. Conservation Measures'!BZ55","v":0},{"$f":"'2. Conservation Measures'!CA55","v":0},{"$f":"'2. Conservation Measures'!CB55","v":0},{"$f":"'2. Conservation Measures'!CC55","v":0},{"$f":"'2. Conservation Measures'!CD55","v":0},{"$f":"'2. Conservation Measures'!CE55","v":0},{"$f":"'2. Conservation Measures'!CF55","v":0},{"$f":"'2. Conservation Measures'!CG55","v":0},{"$f":"'2. Conservation Measures'!CH55","v":0},{"$f":"'2. Conservation Measures'!CI55","v":0},{"$f":"'2. Conservation Measures'!CJ55","v":0},{"$f":"'2. Conservation Measures'!CK55","v":0},{"$f":"'2. Conservation Measures'!CL55","v":0},{"$f":"'2. Conservation Measures'!CM55","v":0},null,{"$f":"'2. Conservation Measures'!CO55","v":{"$error":"#VALUE!"}},{"$f":"'2. Conservation Measures'!CP55","v":{"$error":"#VALUE!"}},{"$f":"'2. Conservation Measures'!CQ55","v":{"$error":"#VALUE!"}},{"$f":"'2. Conservation Measures'!CR55","v":{"$error":"#VALUE!"}},{"$f":"'2. Conservation Measures'!CS55","v":{"$error":"#VALUE!"}},{"$f":"'2. Conservation Measures'!CT55","v":{"$error":"#VALUE!"}},{"$f":"'2. Conservation Measures'!CU55","v":{"$error":"#VALUE!"}},{"$f":"'2. Conservation Measures'!CV55","v":{"$error":"#VALUE!"}},{"$f":"'2. Conservation Measures'!CW55","v":{"$error":"#VALUE!"}},{"$f":"'2. Conservation Measures'!CX55","v":{"$error":"#VALUE!"}},{"$f":"'2. Conservation Measures'!CY55","v":{"$error":"#VALUE!"}},{"$f":"'2. Conservation Measures'!CZ55","v":{"$error":"#VALUE!"}},{"$f":"'2. Conservation Measures'!DA55","v":{"$error":"#VALUE!"}},{"$f":"'2. Conservation Measures'!DB55","v":{"$error":"#VALUE!"}},{"$f":"'2. Conservation Measures'!DC55","v":{"$error":"#VALUE!"}},{"$f":"'2. Conservation Measures'!DD55","v":{"$error":"#VALUE!"}},{"$f":"'2. Conservation Measures'!DE55","v":{"$error":"#VALUE!"}},{"$f":"'2. Conservation Measures'!DF55","v":{"$error":"#VALUE!"}},{"$f":"'2. Conservation Measures'!DG55","v":{"$error":"#VALUE!"}},{"$f":"'2. Conservation Measures'!DH55","v":{"$error":"#VALUE!"}},{"$f":"'2. Conservation Measures'!DI55","v":{"$error":"#VALUE!"}},{"$f":"'2. Conservation Measures'!DJ55","v":{"$error":"#VALUE!"}},{"$f":"'2. Conservation Measures'!DK55","v":{"$error":"#VALUE!"}},{"$f":"'2. Conservation Measures'!DL55","v":{"$error":"#VALUE!"}},{"$f":"'2. Conservation Measures'!DM55","v":{"$error":"#VALUE!"}},{"$f":"'2. Conservation Measures'!DN55","v":{"$error":"#VALUE!"}},{"$f":"'2. Conservation Measures'!DO55","v":{"$error":"#VALUE!"}},{"$f":"'2. Conservation Measures'!DP55","v":{"$error":"#VALUE!"}},{"$f":"'2. Conservation Measures'!DQ55","v":{"$error":"#VALUE!"}},{"$f":"'2. Conservation Measures'!DR55","v":{"$error":"#VALUE!"}},{"$f":"'2. Conservation Measures'!DS55","v":{"$error":"#VALUE!"}},{"$f":"'2. Conservation Measures'!DT55","v":{"$error":"#VALUE!"}},{"$f":"'2. Conservation Measures'!DU55","v":{"$error":"#VALUE!"}},{"$f":"'2. Conservation Measures'!DV55","v":{"$error":"#VALUE!"}},{"$f":"'2. Conservation Measures'!DW55","v":{"$error":"#VALUE!"}},{"$f":"'2. Conservation Measures'!DX55","v":{"$error":"#VALUE!"}},{"$f":"'2. Conservation Measures'!DY55","v":{"$error":"#VALUE!"}},{"$f":"'2. Conservation Measures'!DZ55","v":{"$error":"#VALUE!"}},{"$f":"'2. Conservation Measures'!EA55","v":{"$error":"#VALUE!"}},{"$f":"'2. Conservation Measures'!EB55","v":{"$error":"#VALUE!"}},{"$f":"'2. Conservation Measures'!EC55","v":{"$error":"#VALUE!"}},{"$f":"'2. Conservation Measures'!ED55","v":{"$error":"#VALUE!"}},{"$f":"'2. Conservation Measures'!EE55","v":{"$error":"#VALUE!"}},{"$f":"'2. Conservation Measures'!EF55","v":{"$error":"#VALUE!"}},{"$f":"'2. Conservation Measures'!EG55","v":{"$error":"#VALUE!"}},{"$f":"'2. Conservation Measures'!EH55","v":{"$error":"#VALUE!"}},{"$f":"'2. Conservation Measures'!EI55","v":{"$error":"#VALUE!"}},{"$f":"'2. Conservation Measures'!EJ55","v":{"$error":"#VALUE!"}},{"$f":"'2. Conservation Measures'!EK55","v":{"$error":"#VALUE!"}},{"$f":"'2. Conservation Measures'!EL55","v":{"$error":"#VALUE!"}},{"$f":"'2. Conservation Measures'!EM55","v":{"$error":"#VALUE!"}},null,{"$f":"'2. Conservation Measures'!KP55","v":{"$error":"#N/A"}},{"$f":"'2. Conservation Measures'!KQ55","v":{"$error":"#N/A"}},{"$f":"'2. Conservation Measures'!KR55","v":{"$error":"#N/A"}},{"$f":"'2. Conservation Measures'!KS55","v":{"$error":"#N/A"}},{"$f":"'2. Conservation Measures'!KT55","v":{"$error":"#N/A"}},{"$f":"'2. Conservation Measures'!KU55","v":{"$error":"#N/A"}},{"$f":"'2. Conservation Measures'!KV55","v":{"$error":"#N/A"}},{"$f":"'2. Conservation Measures'!KW55","v":{"$error":"#N/A"}},{"$f":"'2. Conservation Measures'!KX55","v":{"$error":"#N/A"}},{"$f":"'2. Conservation Measures'!KY55","v":{"$error":"#N/A"}},{"$f":"'2. Conservation Measures'!KZ55","v":{"$error":"#N/A"}},{"$f":"'2. Conservation Measures'!LA55","v":{"$error":"#N/A"}},{"$f":"'2. Conservation Measures'!LB55","v":{"$error":"#N/A"}},{"$f":"'2. Conservation Measures'!LC55","v":{"$error":"#N/A"}},{"$f":"'2. Conservation Measures'!LD55","v":{"$error":"#N/A"}},{"$f":"'2. Conservation Measures'!LE55","v":{"$error":"#N/A"}},{"$f":"'2. Conservation Measures'!LF55","v":{"$error":"#N/A"}},{"$f":"'2. Conservation Measures'!LG55","v":{"$error":"#N/A"}},{"$f":"'2. Conservation Measures'!LH55","v":{"$error":"#N/A"}},{"$f":"'2. Conservation Measures'!LI55","v":{"$error":"#N/A"}},{"$f":"'2. Conservation Measures'!LJ55","v":{"$error":"#N/A"}},{"$f":"'2. Conservation Measures'!LK55","v":{"$error":"#N/A"}},{"$f":"'2. Conservation Measures'!LL55","v":{"$error":"#N/A"}},{"$f":"'2. Conservation Measures'!LM55","v":{"$error":"#N/A"}},{"$f":"'2. Conservation Measures'!LN55","v":{"$error":"#N/A"}},{"$f":"'2. Conservation Measures'!LO55","v":{"$error":"#N/A"}},{"$f":"'2. Conservation Measures'!LP55","v":{"$error":"#N/A"}},{"$f":"'2. Conservation Measures'!LQ55","v":{"$error":"#N/A"}},{"$f":"'2. Conservation Measures'!LR55","v":{"$error":"#N/A"}},{"$f":"'2. Conservation Measures'!LS55","v":{"$error":"#N/A"}},{"$f":"'2. Conservation Measures'!LT55","v":{"$error":"#N/A"}},{"$f":"'2. Conservation Measures'!LU55","v":{"$error":"#N/A"}},{"$f":"'2. Conservation Measures'!LV55","v":{"$error":"#N/A"}},{"$f":"'2. Conservation Measures'!LW55","v":{"$error":"#N/A"}},{"$f":"'2. Conservation Measures'!LX55","v":{"$error":"#N/A"}},{"$f":"'2. Conservation Measures'!LY55","v":{"$error":"#N/A"}},{"$f":"'2. Conservation Measures'!LZ55","v":{"$error":"#N/A"}},{"$f":"'2. Conservation Measures'!MA55","v":{"$error":"#N/A"}},{"$f":"'2. Conservation Measures'!MB55","v":{"$error":"#N/A"}},{"$f":"'2. Conservation Measures'!MC55","v":{"$error":"#N/A"}},{"$f":"'2. Conservation Measures'!MD55","v":{"$error":"#N/A"}},{"$f":"'2. Conservation Measures'!ME55","v":{"$error":"#N/A"}},{"$f":"'2. Conservation Measures'!MF55","v":{"$error":"#N/A"}},{"$f":"'2. Conservation Measures'!MG55","v":{"$error":"#N/A"}},{"$f":"'2. Conservation Measures'!MH55","v":{"$error":"#N/A"}},{"$f":"'2. Conservation Measures'!MI55","v":{"$error":"#N/A"}},{"$f":"'2. Conservation Measures'!MJ55","v":{"$error":"#N/A"}},{"$f":"'2. Conservation Measures'!MK55","v":{"$error":"#N/A"}},{"$f":"'2. Conservation Measures'!ML55","v":{"$error":"#N/A"}},{"$f":"'2. Conservation Measures'!MM55","v":{"$error":"#N/A"}},{"$f":"'2. Conservation Measures'!MN55","v":{"$error":"#N/A"}},null,{"$f":"'2. Conservation Measures'!EP55","v":{"$error":"#N/A"}},{"$f":"'2. Conservation Measures'!EQ55","v":{"$error":"#N/A"}},{"$f":"'2. Conservation Measures'!ER55","v":{"$error":"#N/A"}},{"$f":"'2. Conservation Measures'!ES55","v":{"$error":"#N/A"}},{"$f":"'2. Conservation Measures'!ET55","v":{"$error":"#N/A"}},{"$f":"'2. Conservation Measures'!EU55","v":{"$error":"#N/A"}},{"$f":"'2. Conservation Measures'!EV55","v":{"$error":"#N/A"}},{"$f":"'2. Conservation Measures'!EW55","v":{"$error":"#N/A"}},{"$f":"'2. Conservation Measures'!EX55","v":{"$error":"#N/A"}},{"$f":"'2. Conservation Measures'!EY55","v":{"$error":"#N/A"}},{"$f":"'2. Conservation Measures'!EZ55","v":{"$error":"#N/A"}},{"$f":"'2. Conservation Measures'!FA55","v":{"$error":"#N/A"}},{"$f":"'2. Conservation Measures'!FB55","v":{"$error":"#N/A"}},{"$f":"'2. Conservation Measures'!FC55","v":{"$error":"#N/A"}},{"$f":"'2. Conservation Measures'!FD55","v":{"$error":"#N/A"}},{"$f":"'2. Conservation Measures'!FE55","v":{"$error":"#N/A"}},{"$f":"'2. Conservation Measures'!FF55","v":{"$error":"#N/A"}},{"$f":"'2. Conservation Measures'!FG55","v":{"$error":"#N/A"}},{"$f":"'2. Conservation Measures'!FH55","v":{"$error":"#N/A"}},{"$f":"'2. Conservation Measures'!FI55","v":{"$error":"#N/A"}},{"$f":"'2. Conservation Measures'!FJ55","v":{"$error":"#N/A"}},{"$f":"'2. Conservation Measures'!FK55","v":{"$error":"#N/A"}},{"$f":"'2. Conservation Measures'!FL55","v":{"$error":"#N/A"}},{"$f":"'2. Conservation Measures'!FM55","v":{"$error":"#N/A"}},{"$f":"'2. Conservation Measures'!FN55","v":{"$error":"#N/A"}},{"$f":"'2. Conservation Measures'!FO55","v":{"$error":"#N/A"}},{"$f":"'2. Conservation Measures'!FP55","v":{"$error":"#N/A"}},{"$f":"'2. Conservation Measures'!FQ55","v":{"$error":"#N/A"}},{"$f":"'2. Conservation Measures'!FR55","v":{"$error":"#N/A"}},{"$f":"'2. Conservation Measures'!FS55","v":{"$error":"#N/A"}},{"$f":"'2. Conservation Measures'!FT55","v":{"$error":"#N/A"}},{"$f":"'2. Conservation Measures'!FU55","v":{"$error":"#N/A"}},{"$f":"'2. Conservation Measures'!FV55","v":{"$error":"#N/A"}},{"$f":"'2. Conservation Measures'!FW55","v":{"$error":"#N/A"}},{"$f":"'2. Conservation Measures'!FX55","v":{"$error":"#N/A"}},{"$f":"'2. Conservation Measures'!FY55","v":{"$error":"#N/A"}},{"$f":"'2. Conservation Measures'!FZ55","v":{"$error":"#N/A"}},{"$f":"'2. Conservation Measures'!GA55","v":{"$error":"#N/A"}},{"$f":"'2. Conservation Measures'!GB55","v":{"$error":"#N/A"}},{"$f":"'2. Conservation Measures'!GC55","v":{"$error":"#N/A"}},{"$f":"'2. Conservation Measures'!GD55","v":{"$error":"#N/A"}},{"$f":"'2. Conservation Measures'!GE55","v":{"$error":"#N/A"}},{"$f":"'2. Conservation Measures'!GF55","v":{"$error":"#N/A"}},{"$f":"'2. Conservation Measures'!GG55","v":{"$error":"#N/A"}},{"$f":"'2. Conservation Measures'!GH55","v":{"$error":"#N/A"}},{"$f":"'2. Conservation Measures'!GI55","v":{"$error":"#N/A"}},{"$f":"'2. Conservation Measures'!GJ55","v":{"$error":"#N/A"}},{"$f":"'2. Conservation Measures'!GK55","v":{"$error":"#N/A"}},{"$f":"'2. Conservation Measures'!GL55","v":{"$error":"#N/A"}},{"$f":"'2. Conservation Measures'!GM55","v":{"$error":"#N/A"}},{"$f":"'2. Conservation Measures'!GN55","v":{"$error":"#N/A"}},null,{"$f":"'2. Conservation Measures'!GP55","v":{"$error":"#N/A"}},{"$f":"'2. Conservation Measures'!GQ55","v":{"$error":"#N/A"}},{"$f":"'2. Conservation Measures'!GR55","v":{"$error":"#N/A"}},{"$f":"'2. Conservation Measures'!GS55","v":{"$error":"#N/A"}},{"$f":"'2. Conservation Measures'!GT55","v":{"$error":"#N/A"}},{"$f":"'2. Conservation Measures'!GU55","v":{"$error":"#N/A"}},{"$f":"'2. Conservation Measures'!GV55","v":{"$error":"#N/A"}},{"$f":"'2. Conservation Measures'!GW55","v":{"$error":"#N/A"}},{"$f":"'2. Conservation Measures'!GX55","v":{"$error":"#N/A"}},{"$f":"'2. Conservation Measures'!GY55","v":{"$error":"#N/A"}},{"$f":"'2. Conservation Measures'!GZ55","v":{"$error":"#N/A"}},{"$f":"'2. Conservation Measures'!HA55","v":{"$error":"#N/A"}},{"$f":"'2. Conservation Measures'!HB55","v":{"$error":"#N/A"}},{"$f":"'2. Conservation Measures'!HC55","v":{"$error":"#N/A"}},{"$f":"'2. Conservation Measures'!HD55","v":{"$error":"#N/A"}},{"$f":"'2. Conservation Measures'!HE55","v":{"$error":"#N/A"}},{"$f":"'2. Conservation Measures'!HF55","v":{"$error":"#N/A"}},{"$f":"'2. Conservation Measures'!HG55","v":{"$error":"#N/A"}},{"$f":"'2. Conservation Measures'!HH55","v":{"$error":"#N/A"}},{"$f":"'2. Conservation Measures'!HI55","v":{"$error":"#N/A"}},{"$f":"'2. Conservation Measures'!HJ55","v":{"$error":"#N/A"}},{"$f":"'2. Conservation Measures'!HK55","v":{"$error":"#N/A"}},{"$f":"'2. Conservation Measures'!HL55","v":{"$error":"#N/A"}},{"$f":"'2. Conservation Measures'!HM55","v":{"$error":"#N/A"}},{"$f":"'2. Conservation Measures'!HN55","v":{"$error":"#N/A"}},{"$f":"'2. Conservation Measures'!HO55","v":{"$error":"#N/A"}},{"$f":"'2. Conservation Measures'!HP55","v":{"$error":"#N/A"}},{"$f":"'2. Conservation Measures'!HQ55","v":{"$error":"#N/A"}},{"$f":"'2. Conservation Measures'!HR55","v":{"$error":"#N/A"}},{"$f":"'2. Conservation Measures'!HS55","v":{"$error":"#N/A"}},{"$f":"'2. Conservation Measures'!HT55","v":{"$error":"#N/A"}},{"$f":"'2. Conservation Measures'!HU55","v":{"$error":"#N/A"}},{"$f":"'2. Conservation Measures'!HV55","v":{"$error":"#N/A"}},{"$f":"'2. Conservation Measures'!HW55","v":{"$error":"#N/A"}},{"$f":"'2. Conservation Measures'!HX55","v":{"$error":"#N/A"}},{"$f":"'2. Conservation Measures'!HY55","v":{"$error":"#N/A"}},{"$f":"'2. Conservation Measures'!HZ55","v":{"$error":"#N/A"}},{"$f":"'2. Conservation Measures'!IA55","v":{"$error":"#N/A"}},{"$f":"'2. Conservation Measures'!IB55","v":{"$error":"#N/A"}},{"$f":"'2. Conservation Measures'!IC55","v":{"$error":"#N/A"}},{"$f":"'2. Conservation Measures'!ID55","v":{"$error":"#N/A"}},{"$f":"'2. Conservation Measures'!IE55","v":{"$error":"#N/A"}},{"$f":"'2. Conservation Measures'!IF55","v":{"$error":"#N/A"}},{"$f":"'2. Conservation Measures'!IG55","v":{"$error":"#N/A"}},{"$f":"'2. Conservation Measures'!IH55","v":{"$error":"#N/A"}},{"$f":"'2. Conservation Measures'!II55","v":{"$error":"#N/A"}},{"$f":"'2. Conservation Measures'!IJ55","v":{"$error":"#N/A"}},{"$f":"'2. Conservation Measures'!IK55","v":{"$error":"#N/A"}},{"$f":"'2. Conservation Measures'!IL55","v":{"$error":"#N/A"}},{"$f":"'2. Conservation Measures'!IM55","v":{"$error":"#N/A"}},{"$f":"'2. Conservation Measures'!IN55","v":{"$error":"#N/A"}},null,{"$f":"'2. Conservation Measures'!IP55","v":{"$error":"#VALUE!"}},{"$f":"'2. Conservation Measures'!IQ55","v":{"$error":"#VALUE!"}},{"$f":"'2. Conservation Measures'!IR55","v":{"$error":"#VALUE!"}},{"$f":"'2. Conservation Measures'!IS55","v":{"$error":"#VALUE!"}},{"$f":"'2. Conservation Measures'!IT55","v":{"$error":"#VALUE!"}},{"$f":"'2. Conservation Measures'!IU55","v":{"$error":"#VALUE!"}},{"$f":"'2. Conservation Measures'!IV55","v":{"$error":"#VALUE!"}},{"$f":"'2. Conservation Measures'!IW55","v":{"$error":"#VALUE!"}},{"$f":"'2. Conservation Measures'!IX55","v":{"$error":"#VALUE!"}},{"$f":"'2. Conservation Measures'!IY55","v":{"$error":"#VALUE!"}},{"$f":"'2. Conservation Measures'!IZ55","v":{"$error":"#VALUE!"}},{"$f":"'2. Conservation Measures'!JA55","v":{"$error":"#VALUE!"}},{"$f":"'2. Conservation Measures'!JB55","v":{"$error":"#VALUE!"}},{"$f":"'2. Conservation Measures'!JC55","v":{"$error":"#VALUE!"}},{"$f":"'2. Conservation Measures'!JD55","v":{"$error":"#VALUE!"}},{"$f":"'2. Conservation Measures'!JE55","v":{"$error":"#VALUE!"}},{"$f":"'2. Conservation Measures'!JF55","v":{"$error":"#VALUE!"}},{"$f":"'2. Conservation Measures'!JG55","v":{"$error":"#VALUE!"}},{"$f":"'2. Conservation Measures'!JH55","v":{"$error":"#VALUE!"}},{"$f":"'2. Conservation Measures'!JI55","v":{"$error":"#VALUE!"}},{"$f":"'2. Conservation Measures'!JJ55","v":{"$error":"#VALUE!"}},{"$f":"'2. Conservation Measures'!JK55","v":{"$error":"#VALUE!"}},{"$f":"'2. Conservation Measures'!JL55","v":{"$error":"#VALUE!"}},{"$f":"'2. Conservation Measures'!JM55","v":{"$error":"#VALUE!"}},{"$f":"'2. Conservation Measures'!JN55","v":{"$error":"#VALUE!"}},{"$f":"'2. Conservation Measures'!JO55","v":{"$error":"#VALUE!"}},{"$f":"'2. Conservation Measures'!JP55","v":{"$error":"#VALUE!"}},{"$f":"'2. Conservation Measures'!JQ55","v":{"$error":"#VALUE!"}},{"$f":"'2. Conservation Measures'!JR55","v":{"$error":"#VALUE!"}},{"$f":"'2. Conservation Measures'!JS55","v":{"$error":"#VALUE!"}},{"$f":"'2. Conservation Measures'!JT55","v":{"$error":"#VALUE!"}},{"$f":"'2. Conservation Measures'!JU55","v":{"$error":"#VALUE!"}},{"$f":"'2. Conservation Measures'!JV55","v":{"$error":"#VALUE!"}},{"$f":"'2. Conservation Measures'!JW55","v":{"$error":"#VALUE!"}},{"$f":"'2. Conservation Measures'!JX55","v":{"$error":"#VALUE!"}},{"$f":"'2. Conservation Measures'!JY55","v":{"$error":"#VALUE!"}},{"$f":"'2. Conservation Measures'!JZ55","v":{"$error":"#VALUE!"}},{"$f":"'2. Conservation Measures'!KA55","v":{"$error":"#VALUE!"}},{"$f":"'2. Conservation Measures'!KB55","v":{"$error":"#VALUE!"}},{"$f":"'2. Conservation Measures'!KC55","v":{"$error":"#VALUE!"}},{"$f":"'2. Conservation Measures'!KD55","v":{"$error":"#VALUE!"}},{"$f":"'2. Conservation Measures'!KE55","v":{"$error":"#VALUE!"}},{"$f":"'2. Conservation Measures'!KF55","v":{"$error":"#VALUE!"}},{"$f":"'2. Conservation Measures'!KG55","v":{"$error":"#VALUE!"}},{"$f":"'2. Conservation Measures'!KH55","v":{"$error":"#VALUE!"}},{"$f":"'2. Conservation Measures'!KI55","v":{"$error":"#VALUE!"}},{"$f":"'2. Conservation Measures'!KJ55","v":{"$error":"#VALUE!"}},{"$f":"'2. Conservation Measures'!KK55","v":{"$error":"#VALUE!"}},{"$f":"'2. Conservation Measures'!KL55","v":{"$error":"#VALUE!"}},{"$f":"'2. Conservation Measures'!KM55","v":{"$error":"#VALUE!"}},{"$f":"'2. Conservation Measures'!KN55","v":{"$error":"#VALUE!"}}]
[null,{"$f":"'2. Conservation Measures'!B56","v":"PRE-ICI-10"},{"$f":"'2. Conservation Measures'!C56","v":{"$error":"#N/A"}},{"$f":"'2. Conservation Measures'!D56","v":"N"},null,{"$f":"'2. Conservation Measures'!AA56","v":{"$error":"#N/A"}},null,{"$f":"'2. Conservation Measures'!AO56","v":0},{"$f":"'2. Conservation Measures'!AP56","v":0},{"$f":"'2. Conservation Measures'!AQ56","v":0},{"$f":"'2. Conservation Measures'!AR56","v":0},{"$f":"'2. Conservation Measures'!AS56","v":0},{"$f":"'2. Conservation Measures'!AT56","v":0},{"$f":"'2. Conservation Measures'!AU56","v":0},{"$f":"'2. Conservation Measures'!AV56","v":0},{"$f":"'2. Conservation Measures'!AW56","v":0},{"$f":"'2. Conservation Measures'!AX56","v":0},{"$f":"'2. Conservation Measures'!AY56","v":0},{"$f":"'2. Conservation Measures'!AZ56","v":0},{"$f":"'2. Conservation Measures'!BA56","v":0},{"$f":"'2. Conservation Measures'!BB56","v":0},{"$f":"'2. Conservation Measures'!BC56","v":0},{"$f":"'2. Conservation Measures'!BD56","v":0},{"$f":"'2. Conservation Measures'!BE56","v":0},{"$f":"'2. Conservation Measures'!BF56","v":0},{"$f":"'2. Conservation Measures'!BG56","v":0},{"$f":"'2. Conservation Measures'!BH56","v":0},{"$f":"'2. Conservation Measures'!BI56","v":0},{"$f":"'2. Conservation Measures'!BJ56","v":0},{"$f":"'2. Conservation Measures'!BK56","v":0},{"$f":"'2. Conservation Measures'!BL56","v":0},{"$f":"'2. Conservation Measures'!BM56","v":0},{"$f":"'2. Conservation Measures'!BN56","v":0},{"$f":"'2. Conservation Measures'!BO56","v":0},{"$f":"'2. Conservation Measures'!BP56","v":0},{"$f":"'2. Conservation Measures'!BQ56","v":0},{"$f":"'2. Conservation Measures'!BR56","v":0},{"$f":"'2. Conservation Measures'!BS56","v":0},{"$f":"'2. Conservation Measures'!BT56","v":0},{"$f":"'2. Conservation Measures'!BU56","v":0},{"$f":"'2. Conservation Measures'!BV56","v":0},{"$f":"'2. Conservation Measures'!BW56","v":0},{"$f":"'2. Conservation Measures'!BX56","v":0},{"$f":"'2. Conservation Measures'!BY56","v":0},{"$f":"'2. Conservation Measures'!BZ56","v":0},{"$f":"'2. Conservation Measures'!CA56","v":0},{"$f":"'2. Conservation Measures'!CB56","v":0},{"$f":"'2. Conservation Measures'!CC56","v":0},{"$f":"'2. Conservation Measures'!CD56","v":0},{"$f":"'2. Conservation Measures'!CE56","v":0},{"$f":"'2. Conservation Measures'!CF56","v":0},{"$f":"'2. Conservation Measures'!CG56","v":0},{"$f":"'2. Conservation Measures'!CH56","v":0},{"$f":"'2. Conservation Measures'!CI56","v":0},{"$f":"'2. Conservation Measures'!CJ56","v":0},{"$f":"'2. Conservation Measures'!CK56","v":0},{"$f":"'2. Conservation Measures'!CL56","v":0},{"$f":"'2. Conservation Measures'!CM56","v":0},null,{"$f":"'2. Conservation Measures'!CO56","v":{"$error":"#VALUE!"}},{"$f":"'2. Conservation Measures'!CP56","v":{"$error":"#VALUE!"}},{"$f":"'2. Conservation Measures'!CQ56","v":{"$error":"#VALUE!"}},{"$f":"'2. Conservation Measures'!CR56","v":{"$error":"#VALUE!"}},{"$f":"'2. Conservation Measures'!CS56","v":{"$error":"#VALUE!"}},{"$f":"'2. Conservation Measures'!CT56","v":{"$error":"#VALUE!"}},{"$f":"'2. Conservation Measures'!CU56","v":{"$error":"#VALUE!"}},{"$f":"'2. Conservation Measures'!CV56","v":{"$error":"#VALUE!"}},{"$f":"'2. Conservation Measures'!CW56","v":{"$error":"#VALUE!"}},{"$f":"'2. Conservation Measures'!CX56","v":{"$error":"#VALUE!"}},{"$f":"'2. Conservation Measures'!CY56","v":{"$error":"#VALUE!"}},{"$f":"'2. Conservation Measures'!CZ56","v":{"$error":"#VALUE!"}},{"$f":"'2. Conservation Measures'!DA56","v":{"$error":"#VALUE!"}},{"$f":"'2. Conservation Measures'!DB56","v":{"$error":"#VALUE!"}},{"$f":"'2. Conservation Measures'!DC56","v":{"$error":"#VALUE!"}},{"$f":"'2. Conservation Measures'!DD56","v":{"$error":"#VALUE!"}},{"$f":"'2. Conservation Measures'!DE56","v":{"$error":"#VALUE!"}},{"$f":"'2. Conservation Measures'!DF56","v":{"$error":"#VALUE!"}},{"$f":"'2. Conservation Measures'!DG56","v":{"$error":"#VALUE!"}},{"$f":"'2. Conservation Measures'!DH56","v":{"$error":"#VALUE!"}},{"$f":"'2. Conservation Measures'!DI56","v":{"$error":"#VALUE!"}},{"$f":"'2. Conservation Measures'!DJ56","v":{"$error":"#VALUE!"}},{"$f":"'2. Conservation Measures'!DK56","v":{"$error":"#VALUE!"}},{"$f":"'2. Conservation Measures'!DL56","v":{"$error":"#VALUE!"}},{"$f":"'2. Conservation Measures'!DM56","v":{"$error":"#VALUE!"}},{"$f":"'2. Conservation Measures'!DN56","v":{"$error":"#VALUE!"}},{"$f":"'2. Conservation Measures'!DO56","v":{"$error":"#VALUE!"}},{"$f":"'2. Conservation Measures'!DP56","v":{"$error":"#VALUE!"}},{"$f":"'2. Conservation Measures'!DQ56","v":{"$error":"#VALUE!"}},{"$f":"'2. Conservation Measures'!DR56","v":{"$error":"#VALUE!"}},{"$f":"'2. Conservation Measures'!DS56","v":{"$error":"#VALUE!"}},{"$f":"'2. Conservation Measures'!DT56","v":{"$error":"#VALUE!"}},{"$f":"'2. Conservation Measures'!DU56","v":{"$error":"#VALUE!"}},{"$f":"'2. Conservation Measures'!DV56","v":{"$error":"#VALUE!"}},{"$f":"'2. Conservation Measures'!DW56","v":{"$error":"#VALUE!"}},{"$f":"'2. Conservation Measures'!DX56","v":{"$error":"#VALUE!"}},{"$f":"'2. Conservation Measures'!DY56","v":{"$error":"#VALUE!"}},{"$f":"'2. Conservation Measures'!DZ56","v":{"$error":"#VALUE!"}},{"$f":"'2. Conservation Measures'!EA56","v":{"$error":"#VALUE!"}},{"$f":"'2. Conservation Measures'!EB56","v":{"$error":"#VALUE!"}},{"$f":"'2. Conservation Measures'!EC56","v":{"$error":"#VALUE!"}},{"$f":"'2. Conservation Measures'!ED56","v":{"$error":"#VALUE!"}},{"$f":"'2. Conservation Measures'!EE56","v":{"$error":"#VALUE!"}},{"$f":"'2. Conservation Measures'!EF56","v":{"$error":"#VALUE!"}},{"$f":"'2. Conservation Measures'!EG56","v":{"$error":"#VALUE!"}},{"$f":"'2. Conservation Measures'!EH56","v":{"$error":"#VALUE!"}},{"$f":"'2. Conservation Measures'!EI56","v":{"$error":"#VALUE!"}},{"$f":"'2. Conservation Measures'!EJ56","v":{"$error":"#VALUE!"}},{"$f":"'2. Conservation Measures'!EK56","v":{"$error":"#VALUE!"}},{"$f":"'2. Conservation Measures'!EL56","v":{"$error":"#VALUE!"}},{"$f":"'2. Conservation Measures'!EM56","v":{"$error":"#VALUE!"}},null,{"$f":"'2. Conservation Measures'!KP56","v":{"$error":"#N/A"}},{"$f":"'2. Conservation Measures'!KQ56","v":{"$error":"#N/A"}},{"$f":"'2. Conservation Measures'!KR56","v":{"$error":"#N/A"}},{"$f":"'2. Conservation Measures'!KS56","v":{"$error":"#N/A"}},{"$f":"'2. Conservation Measures'!KT56","v":{"$error":"#N/A"}},{"$f":"'2. Conservation Measures'!KU56","v":{"$error":"#N/A"}},{"$f":"'2. Conservation Measures'!KV56","v":{"$error":"#N/A"}},{"$f":"'2. Conservation Measures'!KW56","v":{"$error":"#N/A"}},{"$f":"'2. Conservation Measures'!KX56","v":{"$error":"#N/A"}},{"$f":"'2. Conservation Measures'!KY56","v":{"$error":"#N/A"}},{"$f":"'2. Conservation Measures'!KZ56","v":{"$error":"#N/A"}},{"$f":"'2. Conservation Measures'!LA56","v":{"$error":"#N/A"}},{"$f":"'2. Conservation Measures'!LB56","v":{"$error":"#N/A"}},{"$f":"'2. Conservation Measures'!LC56","v":{"$error":"#N/A"}},{"$f":"'2. Conservation Measures'!LD56","v":{"$error":"#N/A"}},{"$f":"'2. Conservation Measures'!LE56","v":{"$error":"#N/A"}},{"$f":"'2. Conservation Measures'!LF56","v":{"$error":"#N/A"}},{"$f":"'2. Conservation Measures'!LG56","v":{"$error":"#N/A"}},{"$f":"'2. Conservation Measures'!LH56","v":{"$error":"#N/A"}},{"$f":"'2. Conservation Measures'!LI56","v":{"$error":"#N/A"}},{"$f":"'2. Conservation Measures'!LJ56","v":{"$error":"#N/A"}},{"$f":"'2. Conservation Measures'!LK56","v":{"$error":"#N/A"}},{"$f":"'2. Conservation Measures'!LL56","v":{"$error":"#N/A"}},{"$f":"'2. Conservation Measures'!LM56","v":{"$error":"#N/A"}},{"$f":"'2. Conservation Measures'!LN56","v":{"$error":"#N/A"}},{"$f":"'2. Conservation Measures'!LO56","v":{"$error":"#N/A"}},{"$f":"'2. Conservation Measures'!LP56","v":{"$error":"#N/A"}},{"$f":"'2. Conservation Measures'!LQ56","v":{"$error":"#N/A"}},{"$f":"'2. Conservation Measures'!LR56","v":{"$error":"#N/A"}},{"$f":"'2. Conservation Measures'!LS56","v":{"$error":"#N/A"}},{"$f":"'2. Conservation Measures'!LT56","v":{"$error":"#N/A"}},{"$f":"'2. Conservation Measures'!LU56","v":{"$error":"#N/A"}},{"$f":"'2. Conservation Measures'!LV56","v":{"$error":"#N/A"}},{"$f":"'2. Conservation Measures'!LW56","v":{"$error":"#N/A"}},{"$f":"'2. Conservation Measures'!LX56","v":{"$error":"#N/A"}},{"$f":"'2. Conservation Measures'!LY56","v":{"$error":"#N/A"}},{"$f":"'2. Conservation Measures'!LZ56","v":{"$error":"#N/A"}},{"$f":"'2. Conservation Measures'!MA56","v":{"$error":"#N/A"}},{"$f":"'2. Conservation Measures'!MB56","v":{"$error":"#N/A"}},{"$f":"'2. Conservation Measures'!MC56","v":{"$error":"#N/A"}},{"$f":"'2. Conservation Measures'!MD56","v":{"$error":"#N/A"}},{"$f":"'2. Conservation Measures'!ME56","v":{"$error":"#N/A"}},{"$f":"'2. Conservation Measures'!MF56","v":{"$error":"#N/A"}},{"$f":"'2. Conservation Measures'!MG56","v":{"$error":"#N/A"}},{"$f":"'2. Conservation Measures'!MH56","v":{"$error":"#N/A"}},{"$f":"'2. Conservation Measures'!MI56","v":{"$error":"#N/A"}},{"$f":"'2. Conservation Measures'!MJ56","v":{"$error":"#N/A"}},{"$f":"'2. Conservation Measures'!MK56","v":{"$error":"#N/A"}},{"$f":"'2. Conservation Measures'!ML56","v":{"$error":"#N/A"}},{"$f":"'2. Conservation Measures'!MM56","v":{"$error":"#N/A"}},{"$f":"'2. Conservation Measures'!MN56","v":{"$error":"#N/A"}},null,{"$f":"'2. Conservation Measures'!EP56","v":{"$error":"#N/A"}},{"$f":"'2. Conservation Measures'!EQ56","v":{"$error":"#N/A"}},{"$f":"'2. Conservation Measures'!ER56","v":{"$error":"#N/A"}},{"$f":"'2. Conservation Measures'!ES56","v":{"$error":"#N/A"}},{"$f":"'2. Conservation Measures'!ET56","v":{"$error":"#N/A"}},{"$f":"'2. Conservation Measures'!EU56","v":{"$error":"#N/A"}},{"$f":"'2. Conservation Measures'!EV56","v":{"$error":"#N/A"}},{"$f":"'2. Conservation Measures'!EW56","v":{"$error":"#N/A"}},{"$f":"'2. Conservation Measures'!EX56","v":{"$error":"#N/A"}},{"$f":"'2. Conservation Measures'!EY56","v":{"$error":"#N/A"}},{"$f":"'2. Conservation Measures'!EZ56","v":{"$error":"#N/A"}},{"$f":"'2. Conservation Measures'!FA56","v":{"$error":"#N/A"}},{"$f":"'2. Conservation Measures'!FB56","v":{"$error":"#N/A"}},{"$f":"'2. Conservation Measures'!FC56","v":{"$error":"#N/A"}},{"$f":"'2. Conservation Measures'!FD56","v":{"$error":"#N/A"}},{"$f":"'2. Conservation Measures'!FE56","v":{"$error":"#N/A"}},{"$f":"'2. Conservation Measures'!FF56","v":{"$error":"#N/A"}},{"$f":"'2. Conservation Measures'!FG56","v":{"$error":"#N/A"}},{"$f":"'2. Conservation Measures'!FH56","v":{"$error":"#N/A"}},{"$f":"'2. Conservation Measures'!FI56","v":{"$error":"#N/A"}},{"$f":"'2. Conservation Measures'!FJ56","v":{"$error":"#N/A"}},{"$f":"'2. Conservation Measures'!FK56","v":{"$error":"#N/A"}},{"$f":"'2. Conservation Measures'!FL56","v":{"$error":"#N/A"}},{"$f":"'2. Conservation Measures'!FM56","v":{"$error":"#N/A"}},{"$f":"'2. Conservation Measures'!FN56","v":{"$error":"#N/A"}},{"$f":"'2. Conservation Measures'!FO56","v":{"$error":"#N/A"}},{"$f":"'2. Conservation Measures'!FP56","v":{"$error":"#N/A"}},{"$f":"'2. Conservation Measures'!FQ56","v":{"$error":"#N/A"}},{"$f":"'2. Conservation Measures'!FR56","v":{"$error":"#N/A"}},{"$f":"'2. Conservation Measures'!FS56","v":{"$error":"#N/A"}},{"$f":"'2. Conservation Measures'!FT56","v":{"$error":"#N/A"}},{"$f":"'2. Conservation Measures'!FU56","v":{"$error":"#N/A"}},{"$f":"'2. Conservation Measures'!FV56","v":{"$error":"#N/A"}},{"$f":"'2. Conservation Measures'!FW56","v":{"$error":"#N/A"}},{"$f":"'2. Conservation Measures'!FX56","v":{"$error":"#N/A"}},{"$f":"'2. Conservation Measures'!FY56","v":{"$error":"#N/A"}},{"$f":"'2. Conservation Measures'!FZ56","v":{"$error":"#N/A"}},{"$f":"'2. Conservation Measures'!GA56","v":{"$error":"#N/A"}},{"$f":"'2. Conservation Measures'!GB56","v":{"$error":"#N/A"}},{"$f":"'2. Conservation Measures'!GC56","v":{"$error":"#N/A"}},{"$f":"'2. Conservation Measures'!GD56","v":{"$error":"#N/A"}},{"$f":"'2. Conservation Measures'!GE56","v":{"$error":"#N/A"}},{"$f":"'2. Conservation Measures'!GF56","v":{"$error":"#N/A"}},{"$f":"'2. Conservation Measures'!GG56","v":{"$error":"#N/A"}},{"$f":"'2. Conservation Measures'!GH56","v":{"$error":"#N/A"}},{"$f":"'2. Conservation Measures'!GI56","v":{"$error":"#N/A"}},{"$f":"'2. Conservation Measures'!GJ56","v":{"$error":"#N/A"}},{"$f":"'2. Conservation Measures'!GK56","v":{"$error":"#N/A"}},{"$f":"'2. Conservation Measures'!GL56","v":{"$error":"#N/A"}},{"$f":"'2. Conservation Measures'!GM56","v":{"$error":"#N/A"}},{"$f":"'2. Conservation Measures'!GN56","v":{"$error":"#N/A"}},null,{"$f":"'2. Conservation Measures'!GP56","v":{"$error":"#N/A"}},{"$f":"'2. Conservation Measures'!GQ56","v":{"$error":"#N/A"}},{"$f":"'2. Conservation Measures'!GR56","v":{"$error":"#N/A"}},{"$f":"'2. Conservation Measures'!GS56","v":{"$error":"#N/A"}},{"$f":"'2. Conservation Measures'!GT56","v":{"$error":"#N/A"}},{"$f":"'2. Conservation Measures'!GU56","v":{"$error":"#N/A"}},{"$f":"'2. Conservation Measures'!GV56","v":{"$error":"#N/A"}},{"$f":"'2. Conservation Measures'!GW56","v":{"$error":"#N/A"}},{"$f":"'2. Conservation Measures'!GX56","v":{"$error":"#N/A"}},{"$f":"'2. Conservation Measures'!GY56","v":{"$error":"#N/A"}},{"$f":"'2. Conservation Measures'!GZ56","v":{"$error":"#N/A"}},{"$f":"'2. Conservation Measures'!HA56","v":{"$error":"#N/A"}},{"$f":"'2. Conservation Measures'!HB56","v":{"$error":"#N/A"}},{"$f":"'2. Conservation Measures'!HC56","v":{"$error":"#N/A"}},{"$f":"'2. Conservation Measures'!HD56","v":{"$error":"#N/A"}},{"$f":"'2. Conservation Measures'!HE56","v":{"$error":"#N/A"}},{"$f":"'2. Conservation Measures'!HF56","v":{"$error":"#N/A"}},{"$f":"'2. Conservation Measures'!HG56","v":{"$error":"#N/A"}},{"$f":"'2. Conservation Measures'!HH56","v":{"$error":"#N/A"}},{"$f":"'2. Conservation Measures'!HI56","v":{"$error":"#N/A"}},{"$f":"'2. Conservation Measures'!HJ56","v":{"$error":"#N/A"}},{"$f":"'2. Conservation Measures'!HK56","v":{"$error":"#N/A"}},{"$f":"'2. Conservation Measures'!HL56","v":{"$error":"#N/A"}},{"$f":"'2. Conservation Measures'!HM56","v":{"$error":"#N/A"}},{"$f":"'2. Conservation Measures'!HN56","v":{"$error":"#N/A"}},{"$f":"'2. Conservation Measures'!HO56","v":{"$error":"#N/A"}},{"$f":"'2. Conservation Measures'!HP56","v":{"$error":"#N/A"}},{"$f":"'2. Conservation Measures'!HQ56","v":{"$error":"#N/A"}},{"$f":"'2. Conservation Measures'!HR56","v":{"$error":"#N/A"}},{"$f":"'2. Conservation Measures'!HS56","v":{"$error":"#N/A"}},{"$f":"'2. Conservation Measures'!HT56","v":{"$error":"#N/A"}},{"$f":"'2. Conservation Measures'!HU56","v":{"$error":"#N/A"}},{"$f":"'2. Conservation Measures'!HV56","v":{"$error":"#N/A"}},{"$f":"'2. Conservation Measures'!HW56","v":{"$error":"#N/A"}},{"$f":"'2. Conservation Measures'!HX56","v":{"$error":"#N/A"}},{"$f":"'2. Conservation Measures'!HY56","v":{"$error":"#N/A"}},{"$f":"'2. Conservation Measures'!HZ56","v":{"$error":"#N/A"}},{"$f":"'2. Conservation Measures'!IA56","v":{"$error":"#N/A"}},{"$f":"'2. Conservation Measures'!IB56","v":{"$error":"#N/A"}},{"$f":"'2. Conservation Measures'!IC56","v":{"$error":"#N/A"}},{"$f":"'2. Conservation Measures'!ID56","v":{"$error":"#N/A"}},{"$f":"'2. Conservation Measures'!IE56","v":{"$error":"#N/A"}},{"$f":"'2. Conservation Measures'!IF56","v":{"$error":"#N/A"}},{"$f":"'2. Conservation Measures'!IG56","v":{"$error":"#N/A"}},{"$f":"'2. Conservation Measures'!IH56","v":{"$error":"#N/A"}},{"$f":"'2. Conservation Measures'!II56","v":{"$error":"#N/A"}},{"$f":"'2. Conservation Measures'!IJ56","v":{"$error":"#N/A"}},{"$f":"'2. Conservation Measures'!IK56","v":{"$error":"#N/A"}},{"$f":"'2. Conservation Measures'!IL56","v":{"$error":"#N/A"}},{"$f":"'2. Conservation Measures'!IM56","v":{"$error":"#N/A"}},{"$f":"'2. Conservation Measures'!IN56","v":{"$error":"#N/A"}},null,{"$f":"'2. Conservation Measures'!IP56","v":{"$error":"#VALUE!"}},{"$f":"'2. Conservation Measures'!IQ56","v":{"$error":"#VALUE!"}},{"$f":"'2. Conservation Measures'!IR56","v":{"$error":"#VALUE!"}},{"$f":"'2. Conservation Measures'!IS56","v":{"$error":"#VALUE!"}},{"$f":"'2. Conservation Measures'!IT56","v":{"$error":"#VALUE!"}},{"$f":"'2. Conservation Measures'!IU56","v":{"$error":"#VALUE!"}},{"$f":"'2. Conservation Measures'!IV56","v":{"$error":"#VALUE!"}},{"$f":"'2. Conservation Measures'!IW56","v":{"$error":"#VALUE!"}},{"$f":"'2. Conservation Measures'!IX56","v":{"$error":"#VALUE!"}},{"$f":"'2. Conservation Measures'!IY56","v":{"$error":"#VALUE!"}},{"$f":"'2. Conservation Measures'!IZ56","v":{"$error":"#VALUE!"}},{"$f":"'2. Conservation Measures'!JA56","v":{"$error":"#VALUE!"}},{"$f":"'2. Conservation Measures'!JB56","v":{"$error":"#VALUE!"}},{"$f":"'2. Conservation Measures'!JC56","v":{"$error":"#VALUE!"}},{"$f":"'2. Conservation Measures'!JD56","v":{"$error":"#VALUE!"}},{"$f":"'2. Conservation Measures'!JE56","v":{"$error":"#VALUE!"}},{"$f":"'2. Conservation Measures'!JF56","v":{"$error":"#VALUE!"}},{"$f":"'2. Conservation Measures'!JG56","v":{"$error":"#VALUE!"}},{"$f":"'2. Conservation Measures'!JH56","v":{"$error":"#VALUE!"}},{"$f":"'2. Conservation Measures'!JI56","v":{"$error":"#VALUE!"}},{"$f":"'2. Conservation Measures'!JJ56","v":{"$error":"#VALUE!"}},{"$f":"'2. Conservation Measures'!JK56","v":{"$error":"#VALUE!"}},{"$f":"'2. Conservation Measures'!JL56","v":{"$error":"#VALUE!"}},{"$f":"'2. Conservation Measures'!JM56","v":{"$error":"#VALUE!"}},{"$f":"'2. Conservation Measures'!JN56","v":{"$error":"#VALUE!"}},{"$f":"'2. Conservation Measures'!JO56","v":{"$error":"#VALUE!"}},{"$f":"'2. Conservation Measures'!JP56","v":{"$error":"#VALUE!"}},{"$f":"'2. Conservation Measures'!JQ56","v":{"$error":"#VALUE!"}},{"$f":"'2. Conservation Measures'!JR56","v":{"$error":"#VALUE!"}},{"$f":"'2. Conservation Measures'!JS56","v":{"$error":"#VALUE!"}},{"$f":"'2. Conservation Measures'!JT56","v":{"$error":"#VALUE!"}},{"$f":"'2. Conservation Measures'!JU56","v":{"$error":"#VALUE!"}},{"$f":"'2. Conservation Measures'!JV56","v":{"$error":"#VALUE!"}},{"$f":"'2. Conservation Measures'!JW56","v":{"$error":"#VALUE!"}},{"$f":"'2. Conservation Measures'!JX56","v":{"$error":"#VALUE!"}},{"$f":"'2. Conservation Measures'!JY56","v":{"$error":"#VALUE!"}},{"$f":"'2. Conservation Measures'!JZ56","v":{"$error":"#VALUE!"}},{"$f":"'2. Conservation Measures'!KA56","v":{"$error":"#VALUE!"}},{"$f":"'2. Conservation Measures'!KB56","v":{"$error":"#VALUE!"}},{"$f":"'2. Conservation Measures'!KC56","v":{"$error":"#VALUE!"}},{"$f":"'2. Conservation Measures'!KD56","v":{"$error":"#VALUE!"}},{"$f":"'2. Conservation Measures'!KE56","v":{"$error":"#VALUE!"}},{"$f":"'2. Conservation Measures'!KF56","v":{"$error":"#VALUE!"}},{"$f":"'2. Conservation Measures'!KG56","v":{"$error":"#VALUE!"}},{"$f":"'2. Conservation Measures'!KH56","v":{"$error":"#VALUE!"}},{"$f":"'2. Conservation Measures'!KI56","v":{"$error":"#VALUE!"}},{"$f":"'2. Conservation Measures'!KJ56","v":{"$error":"#VALUE!"}},{"$f":"'2. Conservation Measures'!KK56","v":{"$error":"#VALUE!"}},{"$f":"'2. Conservation Measures'!KL56","v":{"$error":"#VALUE!"}},{"$f":"'2. Conservation Measures'!KM56","v":{"$error":"#VALUE!"}},{"$f":"'2. Conservation Measures'!KN56","v":{"$error":"#VALUE!"}}]
[null,"PRE-ICI-11",{"$f":"'2. Conservation Measures'!C57","v":{"$error":"#N/A"}},{"$f":"'2. Conservation Measures'!D57","v":"N"},null,{"$f":"'2. Conservation Measures'!AA57","v":{"$error":"#N/A"}},null,{"$f":"'2. Conservation Measures'!AO57","v":0},{"$f":"'2. Conservation Measures'!AP57","v":0},{"$f":"'2. Conservation Measures'!AQ57","v":0},{"$f":"'2. Conservation Measures'!AR57","v":0},{"$f":"'2. Conservation Measures'!AS57","v":0},{"$f":"'2. Conservation Measures'!AT57","v":0},{"$f":"'2. Conservation Measures'!AU57","v":0},{"$f":"'2. Conservation Measures'!AV57","v":0},{"$f":"'2. Conservation Measures'!AW57","v":0},{"$f":"'2. Conservation Measures'!AX57","v":0},{"$f":"'2. Conservation Measures'!AY57","v":0},{"$f":"'2. Conservation Measures'!AZ57","v":0},{"$f":"'2. Conservation Measures'!BA57","v":0},{"$f":"'2. Conservation Measures'!BB57","v":0},{"$f":"'2. Conservation Measures'!BC57","v":0},{"$f":"'2. Conservation Measures'!BD57","v":0},{"$f":"'2. Conservation Measures'!BE57","v":0},{"$f":"'2. Conservation Measures'!BF57","v":0},{"$f":"'2. Conservation Measures'!BG57","v":0},{"$f":"'2. Conservation Measures'!BH57","v":0},{"$f":"'2. Conservation Measures'!BI57","v":0},{"$f":"'2. Conservation Measures'!BJ57","v":0},{"$f":"'2. Conservation Measures'!BK57","v":0},{"$f":"'2. Conservation Measures'!BL57","v":0},{"$f":"'2. Conservation Measures'!BM57","v":0},{"$f":"'2. Conservation Measures'!BN57","v":0},{"$f":"'2. Conservation Measures'!BO57","v":0},{"$f":"'2. Conservation Measures'!BP57","v":0},{"$f":"'2. Conservation Measures'!BQ57","v":0},{"$f":"'2. Conservation Measures'!BR57","v":0},{"$f":"'2. Conservation Measures'!BS57","v":0},{"$f":"'2. Conservation Measures'!BT57","v":0},{"$f":"'2. Conservation Measures'!BU57","v":0},{"$f":"'2. Conservation Measures'!BV57","v":0},{"$f":"'2. Conservation Measures'!BW57","v":0},{"$f":"'2. Conservation Measures'!BX57","v":0},{"$f":"'2. Conservation Measures'!BY57","v":0},{"$f":"'2. Conservation Measures'!BZ57","v":0},{"$f":"'2. Conservation Measures'!CA57","v":0},{"$f":"'2. Conservation Measures'!CB57","v":0},{"$f":"'2. Conservation Measures'!CC57","v":0},{"$f":"'2. Conservation Measures'!CD57","v":0},{"$f":"'2. Conservation Measures'!CE57","v":0},{"$f":"'2. Conservation Measures'!CF57","v":0},{"$f":"'2. Conservation Measures'!CG57","v":0},{"$f":"'2. Conservation Measures'!CH57","v":0},{"$f":"'2. Conservation Measures'!CI57","v":0},{"$f":"'2. Conservation Measures'!CJ57","v":0},{"$f":"'2. Conservation Measures'!CK57","v":0},{"$f":"'2. Conservation Measures'!CL57","v":0},{"$f":"'2. Conservation Measures'!CM57","v":0},null,{"$f":"'2. Conservation Measures'!CO57","v":{"$error":"#VALUE!"}},{"$f":"'2. Conservation Measures'!CP57","v":{"$error":"#VALUE!"}},{"$f":"'2. Conservation Measures'!CQ57","v":{"$error":"#VALUE!"}},{"$f":"'2. Conservation Measures'!CR57","v":{"$error":"#VALUE!"}},{"$f":"'2. Conservation Measures'!CS57","v":{"$error":"#VALUE!"}},{"$f":"'2. Conservation Measures'!CT57","v":{"$error":"#VALUE!"}},{"$f":"'2. Conservation Measures'!CU57","v":{"$error":"#VALUE!"}},{"$f":"'2. Conservation Measures'!CV57","v":{"$error":"#VALUE!"}},{"$f":"'2. Conservation Measures'!CW57","v":{"$error":"#VALUE!"}},{"$f":"'2. Conservation Measures'!CX57","v":{"$error":"#VALUE!"}},{"$f":"'2. Conservation Measures'!CY57","v":{"$error":"#VALUE!"}},{"$f":"'2. Conservation Measures'!CZ57","v":{"$error":"#VALUE!"}},{"$f":"'2. Conservation Measures'!DA57","v":{"$error":"#VALUE!"}},{"$f":"'2. Conservation Measures'!DB57","v":{"$error":"#VALUE!"}},{"$f":"'2. Conservation Measures'!DC57","v":{"$error":"#VALUE!"}},{"$f":"'2. Conservation Measures'!DD57","v":{"$error":"#VALUE!"}},{"$f":"'2. Conservation Measures'!DE57","v":{"$error":"#VALUE!"}},{"$f":"'2. Conservation Measures'!DF57","v":{"$error":"#VALUE!"}},{"$f":"'2. Conservation Measures'!DG57","v":{"$error":"#VALUE!"}},{"$f":"'2. Conservation Measures'!DH57","v":{"$error":"#VALUE!"}},{"$f":"'2. Conservation Measures'!DI57","v":{"$error":"#VALUE!"}},{"$f":"'2. Conservation Measures'!DJ57","v":{"$error":"#VALUE!"}},{"$f":"'2. Conservation Measures'!DK57","v":{"$error":"#VALUE!"}},{"$f":"'2. Conservation Measures'!DL57","v":{"$error":"#VALUE!"}},{"$f":"'2. Conservation Measures'!DM57","v":{"$error":"#VALUE!"}},{"$f":"'2. Conservation Measures'!DN57","v":{"$error":"#VALUE!"}},{"$f":"'2. Conservation Measures'!DO57","v":{"$error":"#VALUE!"}},{"$f":"'2. Conservation Measures'!DP57","v":{"$error":"#VALUE!"}},{"$f":"'2. Conservation Measures'!DQ57","v":{"$error":"#VALUE!"}},{"$f":"'2. Conservation Measures'!DR57","v":{"$error":"#VALUE!"}},{"$f":"'2. Conservation Measures'!DS57","v":{"$error":"#VALUE!"}},{"$f":"'2. Conservation Measures'!DT57","v":{"$error":"#VALUE!"}},{"$f":"'2. Conservation Measures'!DU57","v":{"$error":"#VALUE!"}},{"$f":"'2. Conservation Measures'!DV57","v":{"$error":"#VALUE!"}},{"$f":"'2. Conservation Measures'!DW57","v":{"$error":"#VALUE!"}},{"$f":"'2. Conservation Measures'!DX57","v":{"$error":"#VALUE!"}},{"$f":"'2. Conservation Measures'!DY57","v":{"$error":"#VALUE!"}},{"$f":"'2. Conservation Measures'!DZ57","v":{"$error":"#VALUE!"}},{"$f":"'2. Conservation Measures'!EA57","v":{"$error":"#VALUE!"}},{"$f":"'2. Conservation Measures'!EB57","v":{"$error":"#VALUE!"}},{"$f":"'2. Conservation Measures'!EC57","v":{"$error":"#VALUE!"}},{"$f":"'2. Conservation Measures'!ED57","v":{"$error":"#VALUE!"}},{"$f":"'2. Conservation Measures'!EE57","v":{"$error":"#VALUE!"}},{"$f":"'2. Conservation Measures'!EF57","v":{"$error":"#VALUE!"}},{"$f":"'2. Conservation Measures'!EG57","v":{"$error":"#VALUE!"}},{"$f":"'2. Conservation Measures'!EH57","v":{"$error":"#VALUE!"}},{"$f":"'2. Conservation Measures'!EI57","v":{"$error":"#VALUE!"}},{"$f":"'2. Conservation Measures'!EJ57","v":{"$error":"#VALUE!"}},{"$f":"'2. Conservation Measures'!EK57","v":{"$error":"#VALUE!"}},{"$f":"'2. Conservation Measures'!EL57","v":{"$error":"#VALUE!"}},{"$f":"'2. Conservation Measures'!EM57","v":{"$error":"#VALUE!"}},null,{"$f":"'2. Conservation Measures'!KP57","v":{"$error":"#N/A"}},{"$f":"'2. Conservation Measures'!KQ57","v":{"$error":"#N/A"}},{"$f":"'2. Conservation Measures'!KR57","v":{"$error":"#N/A"}},{"$f":"'2. Conservation Measures'!KS57","v":{"$error":"#N/A"}},{"$f":"'2. Conservation Measures'!KT57","v":{"$error":"#N/A"}},{"$f":"'2. Conservation Measures'!KU57","v":{"$error":"#N/A"}},{"$f":"'2. Conservation Measures'!KV57","v":{"$error":"#N/A"}},{"$f":"'2. Conservation Measures'!KW57","v":{"$error":"#N/A"}},{"$f":"'2. Conservation Measures'!KX57","v":{"$error":"#N/A"}},{"$f":"'2. Conservation Measures'!KY57","v":{"$error":"#N/A"}},{"$f":"'2. Conservation Measures'!KZ57","v":{"$error":"#N/A"}},{"$f":"'2. Conservation Measures'!LA57","v":{"$error":"#N/A"}},{"$f":"'2. Conservation Measures'!LB57","v":{"$error":"#N/A"}},{"$f":"'2. Conservation Measures'!LC57","v":{"$error":"#N/A"}},{"$f":"'2. Conservation Measures'!LD57","v":{"$error":"#N/A"}},{"$f":"'2. Conservation Measures'!LE57","v":{"$error":"#N/A"}},{"$f":"'2. Conservation Measures'!LF57","v":{"$error":"#N/A"}},{"$f":"'2. Conservation Measures'!LG57","v":{"$error":"#N/A"}},{"$f":"'2. Conservation Measures'!LH57","v":{"$error":"#N/A"}},{"$f":"'2. Conservation Measures'!LI57","v":{"$error":"#N/A"}},{"$f":"'2. Conservation Measures'!LJ57","v":{"$error":"#N/A"}},{"$f":"'2. Conservation Measures'!LK57","v":{"$error":"#N/A"}},{"$f":"'2. Conservation Measures'!LL57","v":{"$error":"#N/A"}},{"$f":"'2. Conservation Measures'!LM57","v":{"$error":"#N/A"}},{"$f":"'2. Conservation Measures'!LN57","v":{"$error":"#N/A"}},{"$f":"'2. Conservation Measures'!LO57","v":{"$error":"#N/A"}},{"$f":"'2. Conservation Measures'!LP57","v":{"$error":"#N/A"}},{"$f":"'2. Conservation Measures'!LQ57","v":{"$error":"#N/A"}},{"$f":"'2. Conservation Measures'!LR57","v":{"$error":"#N/A"}},{"$f":"'2. Conservation Measures'!LS57","v":{"$error":"#N/A"}},{"$f":"'2. Conservation Measures'!LT57","v":{"$error":"#N/A"}},{"$f":"'2. Conservation Measures'!LU57","v":{"$error":"#N/A"}},{"$f":"'2. Conservation Measures'!LV57","v":{"$error":"#N/A"}},{"$f":"'2. Conservation Measures'!LW57","v":{"$error":"#N/A"}},{"$f":"'2. Conservation Measures'!LX57","v":{"$error":"#N/A"}},{"$f":"'2. Conservation Measures'!LY57","v":{"$error":"#N/A"}},{"$f":"'2. Conservation Measures'!LZ57","v":{"$error":"#N/A"}},{"$f":"'2. Conservation Measures'!MA57","v":{"$error":"#N/A"}},{"$f":"'2. Conservation Measures'!MB57","v":{"$error":"#N/A"}},{"$f":"'2. Conservation Measures'!MC57","v":{"$error":"#N/A"}},{"$f":"'2. Conservation Measures'!MD57","v":{"$error":"#N/A"}},{"$f":"'2. Conservation Measures'!ME57","v":{"$error":"#N/A"}},{"$f":"'2. Conservation Measures'!MF57","v":{"$error":"#N/A"}},{"$f":"'2. Conservation Measures'!MG57","v":{"$error":"#N/A"}},{"$f":"'2. Conservation Measures'!MH57","v":{"$error":"#N/A"}},{"$f":"'2. Conservation Measures'!MI57","v":{"$error":"#N/A"}},{"$f":"'2. Conservation Measures'!MJ57","v":{"$error":"#N/A"}},{"$f":"'2. Conservation Measures'!MK57","v":{"$error":"#N/A"}},{"$f":"'2. Conservation Measures'!ML57","v":{"$error":"#N/A"}},{"$f":"'2. Conservation Measures'!MM57","v":{"$error":"#N/A"}},{"$f":"'2. Conservation Measures'!MN57","v":{"$error":"#N/A"}},null,{"$f":"'2. Conservation Measures'!EP57","v":{"$error":"#N/A"}},{"$f":"'2. Conservation Measures'!EQ57","v":{"$error":"#N/A"}},{"$f":"'2. Conservation Measures'!ER57","v":{"$error":"#N/A"}},{"$f":"'2. Conservation Measures'!ES57","v":{"$error":"#N/A"}},{"$f":"'2. Conservation Measures'!ET57","v":{"$error":"#N/A"}},{"$f":"'2. Conservation Measures'!EU57","v":{"$error":"#N/A"}},{"$f":"'2. Conservation Measures'!EV57","v":{"$error":"#N/A"}},{"$f":"'2. Conservation Measures'!EW57","v":{"$error":"#N/A"}},{"$f":"'2. Conservation Measures'!EX57","v":{"$error":"#N/A"}},{"$f":"'2. Conservation Measures'!EY57","v":{"$error":"#N/A"}},{"$f":"'2. Conservation Measures'!EZ57","v":{"$error":"#N/A"}},{"$f":"'2. Conservation Measures'!FA57","v":{"$error":"#N/A"}},{"$f":"'2. Conservation Measures'!FB57","v":{"$error":"#N/A"}},{"$f":"'2. Conservation Measures'!FC57","v":{"$error":"#N/A"}},{"$f":"'2. Conservation Measures'!FD57","v":{"$error":"#N/A"}},{"$f":"'2. Conservation Measures'!FE57","v":{"$error":"#N/A"}},{"$f":"'2. Conservation Measures'!FF57","v":{"$error":"#N/A"}},{"$f":"'2. Conservation Measures'!FG57","v":{"$error":"#N/A"}},{"$f":"'2. Conservation Measures'!FH57","v":{"$error":"#N/A"}},{"$f":"'2. Conservation Measures'!FI57","v":{"$error":"#N/A"}},{"$f":"'2. Conservation Measures'!FJ57","v":{"$error":"#N/A"}},{"$f":"'2. Conservation Measures'!FK57","v":{"$error":"#N/A"}},{"$f":"'2. Conservation Measures'!FL57","v":{"$error":"#N/A"}},{"$f":"'2. Conservation Measures'!FM57","v":{"$error":"#N/A"}},{"$f":"'2. Conservation Measures'!FN57","v":{"$error":"#N/A"}},{"$f":"'2. Conservation Measures'!FO57","v":{"$error":"#N/A"}},{"$f":"'2. Conservation Measures'!FP57","v":{"$error":"#N/A"}},{"$f":"'2. Conservation Measures'!FQ57","v":{"$error":"#N/A"}},{"$f":"'2. Conservation Measures'!FR57","v":{"$error":"#N/A"}},{"$f":"'2. Conservation Measures'!FS57","v":{"$error":"#N/A"}},{"$f":"'2. Conservation Measures'!FT57","v":{"$error":"#N/A"}},{"$f":"'2. Conservation Measures'!FU57","v":{"$error":"#N/A"}},{"$f":"'2. Conservation Measures'!FV57","v":{"$error":"#N/A"}},{"$f":"'2. Conservation Measures'!FW57","v":{"$error":"#N/A"}},{"$f":"'2. Conservation Measures'!FX57","v":{"$error":"#N/A"}},{"$f":"'2. Conservation Measures'!FY57","v":{"$error":"#N/A"}},{"$f":"'2. Conservation Measures'!FZ57","v":{"$error":"#N/A"}},{"$f":"'2. Conservation Measures'!GA57","v":{"$error":"#N/A"}},{"$f":"'2. Conservation Measures'!GB57","v":{"$error":"#N/A"}},{"$f":"'2. Conservation Measures'!GC57","v":{"$error":"#N/A"}},{"$f":"'2. Conservation Measures'!GD57","v":{"$error":"#N/A"}},{"$f":"'2. Conservation Measures'!GE57","v":{"$error":"#N/A"}},{"$f":"'2. Conservation Measures'!GF57","v":{"$error":"#N/A"}},{"$f":"'2. Conservation Measures'!GG57","v":{"$error":"#N/A"}},{"$f":"'2. Conservation Measures'!GH57","v":{"$error":"#N/A"}},{"$f":"'2. Conservation Measures'!GI57","v":{"$error":"#N/A"}},{"$f":"'2. Conservation Measures'!GJ57","v":{"$error":"#N/A"}},{"$f":"'2. Conservation Measures'!GK57","v":{"$error":"#N/A"}},{"$f":"'2. Conservation Measures'!GL57","v":{"$error":"#N/A"}},{"$f":"'2. Conservation Measures'!GM57","v":{"$error":"#N/A"}},{"$f":"'2. Conservation Measures'!GN57","v":{"$error":"#N/A"}},null,{"$f":"'2. Conservation Measures'!GP57","v":{"$error":"#N/A"}},{"$f":"'2. Conservation Measures'!GQ57","v":{"$error":"#N/A"}},{"$f":"'2. Conservation Measures'!GR57","v":{"$error":"#N/A"}},{"$f":"'2. Conservation Measures'!GS57","v":{"$error":"#N/A"}},{"$f":"'2. Conservation Measures'!GT57","v":{"$error":"#N/A"}},{"$f":"'2. Conservation Measures'!GU57","v":{"$error":"#N/A"}},{"$f":"'2. Conservation Measures'!GV57","v":{"$error":"#N/A"}},{"$f":"'2. Conservation Measures'!GW57","v":{"$error":"#N/A"}},{"$f":"'2. Conservation Measures'!GX57","v":{"$error":"#N/A"}},{"$f":"'2. Conservation Measures'!GY57","v":{"$error":"#N/A"}},{"$f":"'2. Conservation Measures'!GZ57","v":{"$error":"#N/A"}},{"$f":"'2. Conservation Measures'!HA57","v":{"$error":"#N/A"}},{"$f":"'2. Conservation Measures'!HB57","v":{"$error":"#N/A"}},{"$f":"'2. Conservation Measures'!HC57","v":{"$error":"#N/A"}},{"$f":"'2. Conservation Measures'!HD57","v":{"$error":"#N/A"}},{"$f":"'2. Conservation Measures'!HE57","v":{"$error":"#N/A"}},{"$f":"'2. Conservation Measures'!HF57","v":{"$error":"#N/A"}},{"$f":"'2. Conservation Measures'!HG57","v":{"$error":"#N/A"}},{"$f":"'2. Conservation Measures'!HH57","v":{"$error":"#N/A"}},{"$f":"'2. Conservation Measures'!HI57","v":{"$error":"#N/A"}},{"$f":"'2. Conservation Measures'!HJ57","v":{"$error":"#N/A"}},{"$f":"'2. Conservation Measures'!HK57","v":{"$error":"#N/A"}},{"$f":"'2. Conservation Measures'!HL57","v":{"$error":"#N/A"}},{"$f":"'2. Conservation Measures'!HM57","v":{"$error":"#N/A"}},{"$f":"'2. Conservation Measures'!HN57","v":{"$error":"#N/A"}},{"$f":"'2. Conservation Measures'!HO57","v":{"$error":"#N/A"}},{"$f":"'2. Conservation Measures'!HP57","v":{"$error":"#N/A"}},{"$f":"'2. Conservation Measures'!HQ57","v":{"$error":"#N/A"}},{"$f":"'2. Conservation Measures'!HR57","v":{"$error":"#N/A"}},{"$f":"'2. Conservation Measures'!HS57","v":{"$error":"#N/A"}},{"$f":"'2. Conservation Measures'!HT57","v":{"$error":"#N/A"}},{"$f":"'2. Conservation Measures'!HU57","v":{"$error":"#N/A"}},{"$f":"'2. Conservation Measures'!HV57","v":{"$error":"#N/A"}},{"$f":"'2. Conservation Measures'!HW57","v":{"$error":"#N/A"}},{"$f":"'2. Conservation Measures'!HX57","v":{"$error":"#N/A"}},{"$f":"'2. Conservation Measures'!HY57","v":{"$error":"#N/A"}},{"$f":"'2. Conservation Measures'!HZ57","v":{"$error":"#N/A"}},{"$f":"'2. Conservation Measures'!IA57","v":{"$error":"#N/A"}},{"$f":"'2. Conservation Measures'!IB57","v":{"$error":"#N/A"}},{"$f":"'2. Conservation Measures'!IC57","v":{"$error":"#N/A"}},{"$f":"'2. Conservation Measures'!ID57","v":{"$error":"#N/A"}},{"$f":"'2. Conservation Measures'!IE57","v":{"$error":"#N/A"}},{"$f":"'2. Conservation Measures'!IF57","v":{"$error":"#N/A"}},{"$f":"'2. Conservation Measures'!IG57","v":{"$error":"#N/A"}},{"$f":"'2. Conservation Measures'!IH57","v":{"$error":"#N/A"}},{"$f":"'2. Conservation Measures'!II57","v":{"$error":"#N/A"}},{"$f":"'2. Conservation Measures'!IJ57","v":{"$error":"#N/A"}},{"$f":"'2. Conservation Measures'!IK57","v":{"$error":"#N/A"}},{"$f":"'2. Conservation Measures'!IL57","v":{"$error":"#N/A"}},{"$f":"'2. Conservation Measures'!IM57","v":{"$error":"#N/A"}},{"$f":"'2. Conservation Measures'!IN57","v":{"$error":"#N/A"}},null,{"$f":"'2. Conservation Measures'!IP57","v":{"$error":"#VALUE!"}},{"$f":"'2. Conservation Measures'!IQ57","v":{"$error":"#VALUE!"}},{"$f":"'2. Conservation Measures'!IR57","v":{"$error":"#VALUE!"}},{"$f":"'2. Conservation Measures'!IS57","v":{"$error":"#VALUE!"}},{"$f":"'2. Conservation Measures'!IT57","v":{"$error":"#VALUE!"}},{"$f":"'2. Conservation Measures'!IU57","v":{"$error":"#VALUE!"}},{"$f":"'2. Conservation Measures'!IV57","v":{"$error":"#VALUE!"}},{"$f":"'2. Conservation Measures'!IW57","v":{"$error":"#VALUE!"}},{"$f":"'2. Conservation Measures'!IX57","v":{"$error":"#VALUE!"}},{"$f":"'2. Conservation Measures'!IY57","v":{"$error":"#VALUE!"}},{"$f":"'2. Conservation Measures'!IZ57","v":{"$error":"#VALUE!"}},{"$f":"'2. Conservation Measures'!JA57","v":{"$error":"#VALUE!"}},{"$f":"'2. Conservation Measures'!JB57","v":{"$error":"#VALUE!"}},{"$f":"'2. Conservation Measures'!JC57","v":{"$error":"#VALUE!"}},{"$f":"'2. Conservation Measures'!JD57","v":{"$error":"#VALUE!"}},{"$f":"'2. Conservation Measures'!JE57","v":{"$error":"#VALUE!"}},{"$f":"'2. Conservation Measures'!JF57","v":{"$error":"#VALUE!"}},{"$f":"'2. Conservation Measures'!JG57","v":{"$error":"#VALUE!"}},{"$f":"'2. Conservation Measures'!JH57","v":{"$error":"#VALUE!"}},{"$f":"'2. Conservation Measures'!JI57","v":{"$error":"#VALUE!"}},{"$f":"'2. Conservation Measures'!JJ57","v":{"$error":"#VALUE!"}},{"$f":"'2. Conservation Measures'!JK57","v":{"$error":"#VALUE!"}},{"$f":"'2. Conservation Measures'!JL57","v":{"$error":"#VALUE!"}},{"$f":"'2. Conservation Measures'!JM57","v":{"$error":"#VALUE!"}},{"$f":"'2. Conservation Measures'!JN57","v":{"$error":"#VALUE!"}},{"$f":"'2. Conservation Measures'!JO57","v":{"$error":"#VALUE!"}},{"$f":"'2. Conservation Measures'!JP57","v":{"$error":"#VALUE!"}},{"$f":"'2. Conservation Measures'!JQ57","v":{"$error":"#VALUE!"}},{"$f":"'2. Conservation Measures'!JR57","v":{"$error":"#VALUE!"}},{"$f":"'2. Conservation Measures'!JS57","v":{"$error":"#VALUE!"}},{"$f":"'2. Conservation Measures'!JT57","v":{"$error":"#VALUE!"}},{"$f":"'2. Conservation Measures'!JU57","v":{"$error":"#VALUE!"}},{"$f":"'2. Conservation Measures'!JV57","v":{"$error":"#VALUE!"}},{"$f":"'2. Conservation Measures'!JW57","v":{"$error":"#VALUE!"}},{"$f":"'2. Conservation Measures'!JX57","v":{"$error":"#VALUE!"}},{"$f":"'2. Conservation Measures'!JY57","v":{"$error":"#VALUE!"}},{"$f":"'2. Conservation Measures'!JZ57","v":{"$error":"#VALUE!"}},{"$f":"'2. Conservation Measures'!KA57","v":{"$error":"#VALUE!"}},{"$f":"'2. Conservation Measures'!KB57","v":{"$error":"#VALUE!"}},{"$f":"'2. Conservation Measures'!KC57","v":{"$error":"#VALUE!"}},{"$f":"'2. Conservation Measures'!KD57","v":{"$error":"#VALUE!"}},{"$f":"'2. Conservation Measures'!KE57","v":{"$error":"#VALUE!"}},{"$f":"'2. Conservation Measures'!KF57","v":{"$error":"#VALUE!"}},{"$f":"'2. Conservation Measures'!KG57","v":{"$error":"#VALUE!"}},{"$f":"'2. Conservation Measures'!KH57","v":{"$error":"#VALUE!"}},{"$f":"'2. Conservation Measures'!KI57","v":{"$error":"#VALUE!"}},{"$f":"'2. Conservation Measures'!KJ57","v":{"$error":"#VALUE!"}},{"$f":"'2. Conservation Measures'!KK57","v":{"$error":"#VALUE!"}},{"$f":"'2. Conservation Measures'!KL57","v":{"$error":"#VALUE!"}},{"$f":"'2. Conservation Measures'!KM57","v":{"$error":"#VALUE!"}},{"$f":"'2. Conservation Measures'!KN57","v":{"$error":"#VALUE!"}}]
[null,"PRE-ICI-12",{"$f":"'2. Conservation Measures'!C58","v":{"$error":"#N/A"}},{"$f":"'2. Conservation Measures'!D58","v":"N"},null,{"$f":"'2. Conservation Measures'!AA58","v":{"$error":"#N/A"}},null,{"$f":"'2. Conservation Measures'!AO58","v":0},{"$f":"'2. Conservation Measures'!AP58","v":0},{"$f":"'2. Conservation Measures'!AQ58","v":0},{"$f":"'2. Conservation Measures'!AR58","v":0},{"$f":"'2. Conservation Measures'!AS58","v":0},{"$f":"'2. Conservation Measures'!AT58","v":0},{"$f":"'2. Conservation Measures'!AU58","v":0},{"$f":"'2. Conservation Measures'!AV58","v":0},{"$f":"'2. Conservation Measures'!AW58","v":0},{"$f":"'2. Conservation Measures'!AX58","v":0},{"$f":"'2. Conservation Measures'!AY58","v":0},{"$f":"'2. Conservation Measures'!AZ58","v":0},{"$f":"'2. Conservation Measures'!BA58","v":0},{"$f":"'2. Conservation Measures'!BB58","v":0},{"$f":"'2. Conservation Measures'!BC58","v":0},{"$f":"'2. Conservation Measures'!BD58","v":0},{"$f":"'2. Conservation Measures'!BE58","v":0},{"$f":"'2. Conservation Measures'!BF58","v":0},{"$f":"'2. Conservation Measures'!BG58","v":0},{"$f":"'2. Conservation Measures'!BH58","v":0},{"$f":"'2. Conservation Measures'!BI58","v":0},{"$f":"'2. Conservation Measures'!BJ58","v":0},{"$f":"'2. Conservation Measures'!BK58","v":0},{"$f":"'2. Conservation Measures'!BL58","v":0},{"$f":"'2. Conservation Measures'!BM58","v":0},{"$f":"'2. Conservation Measures'!BN58","v":0},{"$f":"'2. Conservation Measures'!BO58","v":0},{"$f":"'2. Conservation Measures'!BP58","v":0},{"$f":"'2. Conservation Measures'!BQ58","v":0},{"$f":"'2. Conservation Measures'!BR58","v":0},{"$f":"'2. Conservation Measures'!BS58","v":0},{"$f":"'2. Conservation Measures'!BT58","v":0},{"$f":"'2. Conservation Measures'!BU58","v":0},{"$f":"'2. Conservation Measures'!BV58","v":0},{"$f":"'2. Conservation Measures'!BW58","v":0},{"$f":"'2. Conservation Measures'!BX58","v":0},{"$f":"'2. Conservation Measures'!BY58","v":0},{"$f":"'2. Conservation Measures'!BZ58","v":0},{"$f":"'2. Conservation Measures'!CA58","v":0},{"$f":"'2. Conservation Measures'!CB58","v":0},{"$f":"'2. Conservation Measures'!CC58","v":0},{"$f":"'2. Conservation Measures'!CD58","v":0},{"$f":"'2. Conservation Measures'!CE58","v":0},{"$f":"'2. Conservation Measures'!CF58","v":0},{"$f":"'2. Conservation Measures'!CG58","v":0},{"$f":"'2. Conservation Measures'!CH58","v":0},{"$f":"'2. Conservation Measures'!CI58","v":0},{"$f":"'2. Conservation Measures'!CJ58","v":0},{"$f":"'2. Conservation Measures'!CK58","v":0},{"$f":"'2. Conservation Measures'!CL58","v":0},{"$f":"'2. Conservation Measures'!CM58","v":0},null,{"$f":"'2. Conservation Measures'!CO58","v":{"$error":"#VALUE!"}},{"$f":"'2. Conservation Measures'!CP58","v":{"$error":"#VALUE!"}},{"$f":"'2. Conservation Measures'!CQ58","v":{"$error":"#VALUE!"}},{"$f":"'2. Conservation Measures'!CR58","v":{"$error":"#VALUE!"}},{"$f":"'2. Conservation Measures'!CS58","v":{"$error":"#VALUE!"}},{"$f":"'2. Conservation Measures'!CT58","v":{"$error":"#VALUE!"}},{"$f":"'2. Conservation Measures'!CU58","v":{"$error":"#VALUE!"}},{"$f":"'2. Conservation Measures'!CV58","v":{"$error":"#VALUE!"}},{"$f":"'2. Conservation Measures'!CW58","v":{"$error":"#VALUE!"}},{"$f":"'2. Conservation Measures'!CX58","v":{"$error":"#VALUE!"}},{"$f":"'2. Conservation Measures'!CY58","v":{"$error":"#VALUE!"}},{"$f":"'2. Conservation Measures'!CZ58","v":{"$error":"#VALUE!"}},{"$f":"'2. Conservation Measures'!DA58","v":{"$error":"#VALUE!"}},{"$f":"'2. Conservation Measures'!DB58","v":{"$error":"#VALUE!"}},{"$f":"'2. Conservation Measures'!DC58","v":{"$error":"#VALUE!"}},{"$f":"'2. Conservation Measures'!DD58","v":{"$error":"#VALUE!"}},{"$f":"'2. Conservation Measures'!DE58","v":{"$error":"#VALUE!"}},{"$f":"'2. Conservation Measures'!DF58","v":{"$error":"#VALUE!"}},{"$f":"'2. Conservation Measures'!DG58","v":{"$error":"#VALUE!"}},{"$f":"'2. Conservation Measures'!DH58","v":{"$error":"#VALUE!"}},{"$f":"'2. Conservation Measures'!DI58","v":{"$error":"#VALUE!"}},{"$f":"'2. Conservation Measures'!DJ58","v":{"$error":"#VALUE!"}},{"$f":"'2. Conservation Measures'!DK58","v":{"$error":"#VALUE!"}},{"$f":"'2. Conservation Measures'!DL58","v":{"$error":"#VALUE!"}},{"$f":"'2. Conservation Measures'!DM58","v":{"$error":"#VALUE!"}},{"$f":"'2. Conservation Measures'!DN58","v":{"$error":"#VALUE!"}},{"$f":"'2. Conservation Measures'!DO58","v":{"$error":"#VALUE!"}},{"$f":"'2. Conservation Measures'!DP58","v":{"$error":"#VALUE!"}},{"$f":"'2. Conservation Measures'!DQ58","v":{"$error":"#VALUE!"}},{"$f":"'2. Conservation Measures'!DR58","v":{"$error":"#VALUE!"}},{"$f":"'2. Conservation Measures'!DS58","v":{"$error":"#VALUE!"}},{"$f":"'2. Conservation Measures'!DT58","v":{"$error":"#VALUE!"}},{"$f":"'2. Conservation Measures'!DU58","v":{"$error":"#VALUE!"}},{"$f":"'2. Conservation Measures'!DV58","v":{"$error":"#VALUE!"}},{"$f":"'2. Conservation Measures'!DW58","v":{"$error":"#VALUE!"}},{"$f":"'2. Conservation Measures'!DX58","v":{"$error":"#VALUE!"}},{"$f":"'2. Conservation Measures'!DY58","v":{"$error":"#VALUE!"}},{"$f":"'2. Conservation Measures'!DZ58","v":{"$error":"#VALUE!"}},{"$f":"'2. Conservation Measures'!EA58","v":{"$error":"#VALUE!"}},{"$f":"'2. Conservation Measures'!EB58","v":{"$error":"#VALUE!"}},{"$f":"'2. Conservation Measures'!EC58","v":{"$error":"#VALUE!"}},{"$f":"'2. Conservation Measures'!ED58","v":{"$error":"#VALUE!"}},{"$f":"'2. Conservation Measures'!EE58","v":{"$error":"#VALUE!"}},{"$f":"'2. Conservation Measures'!EF58","v":{"$error":"#VALUE!"}},{"$f":"'2. Conservation Measures'!EG58","v":{"$error":"#VALUE!"}},{"$f":"'2. Conservation Measures'!EH58","v":{"$error":"#VALUE!"}},{"$f":"'2. Conservation Measures'!EI58","v":{"$error":"#VALUE!"}},{"$f":"'2. Conservation Measures'!EJ58","v":{"$error":"#VALUE!"}},{"$f":"'2. Conservation Measures'!EK58","v":{"$error":"#VALUE!"}},{"$f":"'2. Conservation Measures'!EL58","v":{"$error":"#VALUE!"}},{"$f":"'2. Conservation Measures'!EM58","v":{"$error":"#VALUE!"}},null,{"$f":"'2. Conservation Measures'!KP58","v":{"$error":"#N/A"}},{"$f":"'2. Conservation Measures'!KQ58","v":{"$error":"#N/A"}},{"$f":"'2. Conservation Measures'!KR58","v":{"$error":"#N/A"}},{"$f":"'2. Conservation Measures'!KS58","v":{"$error":"#N/A"}},{"$f":"'2. Conservation Measures'!KT58","v":{"$error":"#N/A"}},{"$f":"'2. Conservation Measures'!KU58","v":{"$error":"#N/A"}},{"$f":"'2. Conservation Measures'!KV58","v":{"$error":"#N/A"}},{"$f":"'2. Conservation Measures'!KW58","v":{"$error":"#N/A"}},{"$f":"'2. Conservation Measures'!KX58","v":{"$error":"#N/A"}},{"$f":"'2. Conservation Measures'!KY58","v":{"$error":"#N/A"}},{"$f":"'2. Conservation Measures'!KZ58","v":{"$error":"#N/A"}},{"$f":"'2. Conservation Measures'!LA58","v":{"$error":"#N/A"}},{"$f":"'2. Conservation Measures'!LB58","v":{"$error":"#N/A"}},{"$f":"'2. Conservation Measures'!LC58","v":{"$error":"#N/A"}},{"$f":"'2. Conservation Measures'!LD58","v":{"$error":"#N/A"}},{"$f":"'2. Conservation Measures'!LE58","v":{"$error":"#N/A"}},{"$f":"'2. Conservation Measures'!LF58","v":{"$error":"#N/A"}},{"$f":"'2. Conservation Measures'!LG58","v":{"$error":"#N/A"}},{"$f":"'2. Conservation Measures'!LH58","v":{"$error":"#N/A"}},{"$f":"'2. Conservation Measures'!LI58","v":{"$error":"#N/A"}},{"$f":"'2. Conservation Measures'!LJ58","v":{"$error":"#N/A"}},{"$f":"'2. Conservation Measures'!LK58","v":{"$error":"#N/A"}},{"$f":"'2. Conservation Measures'!LL58","v":{"$error":"#N/A"}},{"$f":"'2. Conservation Measures'!LM58","v":{"$error":"#N/A"}},{"$f":"'2. Conservation Measures'!LN58","v":{"$error":"#N/A"}},{"$f":"'2. Conservation Measures'!LO58","v":{"$error":"#N/A"}},{"$f":"'2. Conservation Measures'!LP58","v":{"$error":"#N/A"}},{"$f":"'2. Conservation Measures'!LQ58","v":{"$error":"#N/A"}},{"$f":"'2. Conservation Measures'!LR58","v":{"$error":"#N/A"}},{"$f":"'2. Conservation Measures'!LS58","v":{"$error":"#N/A"}},{"$f":"'2. Conservation Measures'!LT58","v":{"$error":"#N/A"}},{"$f":"'2. Conservation Measures'!LU58","v":{"$error":"#N/A"}},{"$f":"'2. Conservation Measures'!LV58","v":{"$error":"#N/A"}},{"$f":"'2. Conservation Measures'!LW58","v":{"$error":"#N/A"}},{"$f":"'2. Conservation Measures'!LX58","v":{"$error":"#N/A"}},{"$f":"'2. Conservation Measures'!LY58","v":{"$error":"#N/A"}},{"$f":"'2. Conservation Measures'!LZ58","v":{"$error":"#N/A"}},{"$f":"'2. Conservation Measures'!MA58","v":{"$error":"#N/A"}},{"$f":"'2. Conservation Measures'!MB58","v":{"$error":"#N/A"}},{"$f":"'2. Conservation Measures'!MC58","v":{"$error":"#N/A"}},{"$f":"'2. Conservation Measures'!MD58","v":{"$error":"#N/A"}},{"$f":"'2. Conservation Measures'!ME58","v":{"$error":"#N/A"}},{"$f":"'2. Conservation Measures'!MF58","v":{"$error":"#N/A"}},{"$f":"'2. Conservation Measures'!MG58","v":{"$error":"#N/A"}},{"$f":"'2. Conservation Measures'!MH58","v":{"$error":"#N/A"}},{"$f":"'2. Conservation Measures'!MI58","v":{"$error":"#N/A"}},{"$f":"'2. Conservation Measures'!MJ58","v":{"$error":"#N/A"}},{"$f":"'2. Conservation Measures'!MK58","v":{"$error":"#N/A"}},{"$f":"'2. Conservation Measures'!ML58","v":{"$error":"#N/A"}},{"$f":"'2. Conservation Measures'!MM58","v":{"$error":"#N/A"}},{"$f":"'2. Conservation Measures'!MN58","v":{"$error":"#N/A"}},null,{"$f":"'2. Conservation Measures'!EP58","v":{"$error":"#N/A"}},{"$f":"'2. Conservation Measures'!EQ58","v":{"$error":"#N/A"}},{"$f":"'2. Conservation Measures'!ER58","v":{"$error":"#N/A"}},{"$f":"'2. Conservation Measures'!ES58","v":{"$error":"#N/A"}},{"$f":"'2. Conservation Measures'!ET58","v":{"$error":"#N/A"}},{"$f":"'2. Conservation Measures'!EU58","v":{"$error":"#N/A"}},{"$f":"'2. Conservation Measures'!EV58","v":{"$error":"#N/A"}},{"$f":"'2. Conservation Measures'!EW58","v":{"$error":"#N/A"}},{"$f":"'2. Conservation Measures'!EX58","v":{"$error":"#N/A"}},{"$f":"'2. Conservation Measures'!EY58","v":{"$error":"#N/A"}},{"$f":"'2. Conservation Measures'!EZ58","v":{"$error":"#N/A"}},{"$f":"'2. Conservation Measures'!FA58","v":{"$error":"#N/A"}},{"$f":"'2. Conservation Measures'!FB58","v":{"$error":"#N/A"}},{"$f":"'2. Conservation Measures'!FC58","v":{"$error":"#N/A"}},{"$f":"'2. Conservation Measures'!FD58","v":{"$error":"#N/A"}},{"$f":"'2. Conservation Measures'!FE58","v":{"$error":"#N/A"}},{"$f":"'2. Conservation Measures'!FF58","v":{"$error":"#N/A"}},{"$f":"'2. Conservation Measures'!FG58","v":{"$error":"#N/A"}},{"$f":"'2. Conservation Measures'!FH58","v":{"$error":"#N/A"}},{"$f":"'2. Conservation Measures'!FI58","v":{"$error":"#N/A"}},{"$f":"'2. Conservation Measures'!FJ58","v":{"$error":"#N/A"}},{"$f":"'2. Conservation Measures'!FK58","v":{"$error":"#N/A"}},{"$f":"'2. Conservation Measures'!FL58","v":{"$error":"#N/A"}},{"$f":"'2. Conservation Measures'!FM58","v":{"$error":"#N/A"}},{"$f":"'2. Conservation Measures'!FN58","v":{"$error":"#N/A"}},{"$f":"'2. Conservation Measures'!FO58","v":{"$error":"#N/A"}},{"$f":"'2. Conservation Measures'!FP58","v":{"$error":"#N/A"}},{"$f":"'2. Conservation Measures'!FQ58","v":{"$error":"#N/A"}},{"$f":"'2. Conservation Measures'!FR58","v":{"$error":"#N/A"}},{"$f":"'2. Conservation Measures'!FS58","v":{"$error":"#N/A"}},{"$f":"'2. Conservation Measures'!FT58","v":{"$error":"#N/A"}},{"$f":"'2. Conservation Measures'!FU58","v":{"$error":"#N/A"}},{"$f":"'2. Conservation Measures'!FV58","v":{"$error":"#N/A"}},{"$f":"'2. Conservation Measures'!FW58","v":{"$error":"#N/A"}},{"$f":"'2. Conservation Measures'!FX58","v":{"$error":"#N/A"}},{"$f":"'2. Conservation Measures'!FY58","v":{"$error":"#N/A"}},{"$f":"'2. Conservation Measures'!FZ58","v":{"$error":"#N/A"}},{"$f":"'2. Conservation Measures'!GA58","v":{"$error":"#N/A"}},{"$f":"'2. Conservation Measures'!GB58","v":{"$error":"#N/A"}},{"$f":"'2. Conservation Measures'!GC58","v":{"$error":"#N/A"}},{"$f":"'2. Conservation Measures'!GD58","v":{"$error":"#N/A"}},{"$f":"'2. Conservation Measures'!GE58","v":{"$error":"#N/A"}},{"$f":"'2. Conservation Measures'!GF58","v":{"$error":"#N/A"}},{"$f":"'2. Conservation Measures'!GG58","v":{"$error":"#N/A"}},{"$f":"'2. Conservation Measures'!GH58","v":{"$error":"#N/A"}},{"$f":"'2. Conservation Measures'!GI58","v":{"$error":"#N/A"}},{"$f":"'2. Conservation Measures'!GJ58","v":{"$error":"#N/A"}},{"$f":"'2. Conservation Measures'!GK58","v":{"$error":"#N/A"}},{"$f":"'2. Conservation Measures'!GL58","v":{"$error":"#N/A"}},{"$f":"'2. Conservation Measures'!GM58","v":{"$error":"#N/A"}},{"$f":"'2. Conservation Measures'!GN58","v":{"$error":"#N/A"}},null,{"$f":"'2. Conservation Measures'!GP58","v":{"$error":"#N/A"}},{"$f":"'2. Conservation Measures'!GQ58","v":{"$error":"#N/A"}},{"$f":"'2. Conservation Measures'!GR58","v":{"$error":"#N/A"}},{"$f":"'2. Conservation Measures'!GS58","v":{"$error":"#N/A"}},{"$f":"'2. Conservation Measures'!GT58","v":{"$error":"#N/A"}},{"$f":"'2. Conservation Measures'!GU58","v":{"$error":"#N/A"}},{"$f":"'2. Conservation Measures'!GV58","v":{"$error":"#N/A"}},{"$f":"'2. Conservation Measures'!GW58","v":{"$error":"#N/A"}},{"$f":"'2. Conservation Measures'!GX58","v":{"$error":"#N/A"}},{"$f":"'2. Conservation Measures'!GY58","v":{"$error":"#N/A"}},{"$f":"'2. Conservation Measures'!GZ58","v":{"$error":"#N/A"}},{"$f":"'2. Conservation Measures'!HA58","v":{"$error":"#N/A"}},{"$f":"'2. Conservation Measures'!HB58","v":{"$error":"#N/A"}},{"$f":"'2. Conservation Measures'!HC58","v":{"$error":"#N/A"}},{"$f":"'2. Conservation Measures'!HD58","v":{"$error":"#N/A"}},{"$f":"'2. Conservation Measures'!HE58","v":{"$error":"#N/A"}},{"$f":"'2. Conservation Measures'!HF58","v":{"$error":"#N/A"}},{"$f":"'2. Conservation Measures'!HG58","v":{"$error":"#N/A"}},{"$f":"'2. Conservation Measures'!HH58","v":{"$error":"#N/A"}},{"$f":"'2. Conservation Measures'!HI58","v":{"$error":"#N/A"}},{"$f":"'2. Conservation Measures'!HJ58","v":{"$error":"#N/A"}},{"$f":"'2. Conservation Measures'!HK58","v":{"$error":"#N/A"}},{"$f":"'2. Conservation Measures'!HL58","v":{"$error":"#N/A"}},{"$f":"'2. Conservation Measures'!HM58","v":{"$error":"#N/A"}},{"$f":"'2. Conservation Measures'!HN58","v":{"$error":"#N/A"}},{"$f":"'2. Conservation Measures'!HO58","v":{"$error":"#N/A"}},{"$f":"'2. Conservation Measures'!HP58","v":{"$error":"#N/A"}},{"$f":"'2. Conservation Measures'!HQ58","v":{"$error":"#N/A"}},{"$f":"'2. Conservation Measures'!HR58","v":{"$error":"#N/A"}},{"$f":"'2. Conservation Measures'!HS58","v":{"$error":"#N/A"}},{"$f":"'2. Conservation Measures'!HT58","v":{"$error":"#N/A"}},{"$f":"'2. Conservation Measures'!HU58","v":{"$error":"#N/A"}},{"$f":"'2. Conservation Measures'!HV58","v":{"$error":"#N/A"}},{"$f":"'2. Conservation Measures'!HW58","v":{"$error":"#N/A"}},{"$f":"'2. Conservation Measures'!HX58","v":{"$error":"#N/A"}},{"$f":"'2. Conservation Measures'!HY58","v":{"$error":"#N/A"}},{"$f":"'2. Conservation Measures'!HZ58","v":{"$error":"#N/A"}},{"$f":"'2. Conservation Measures'!IA58","v":{"$error":"#N/A"}},{"$f":"'2. Conservation Measures'!IB58","v":{"$error":"#N/A"}},{"$f":"'2. Conservation Measures'!IC58","v":{"$error":"#N/A"}},{"$f":"'2. Conservation Measures'!ID58","v":{"$error":"#N/A"}},{"$f":"'2. Conservation Measures'!IE58","v":{"$error":"#N/A"}},{"$f":"'2. Conservation Measures'!IF58","v":{"$error":"#N/A"}},{"$f":"'2. Conservation Measures'!IG58","v":{"$error":"#N/A"}},{"$f":"'2. Conservation Measures'!IH58","v":{"$error":"#N/A"}},{"$f":"'2. Conservation Measures'!II58","v":{"$error":"#N/A"}},{"$f":"'2. Conservation Measures'!IJ58","v":{"$error":"#N/A"}},{"$f":"'2. Conservation Measures'!IK58","v":{"$error":"#N/A"}},{"$f":"'2. Conservation Measures'!IL58","v":{"$error":"#N/A"}},{"$f":"'2. Conservation Measures'!IM58","v":{"$error":"#N/A"}},{"$f":"'2. Conservation Measures'!IN58","v":{"$error":"#N/A"}},null,{"$f":"'2. Conservation Measures'!IP58","v":{"$error":"#VALUE!"}},{"$f":"'2. Conservation Measures'!IQ58","v":{"$error":"#VALUE!"}},{"$f":"'2. Conservation Measures'!IR58","v":{"$error":"#VALUE!"}},{"$f":"'2. Conservation Measures'!IS58","v":{"$error":"#VALUE!"}},{"$f":"'2. Conservation Measures'!IT58","v":{"$error":"#VALUE!"}},{"$f":"'2. Conservation Measures'!IU58","v":{"$error":"#VALUE!"}},{"$f":"'2. Conservation Measures'!IV58","v":{"$error":"#VALUE!"}},{"$f":"'2. Conservation Measures'!IW58","v":{"$error":"#VALUE!"}},{"$f":"'2. Conservation Measures'!IX58","v":{"$error":"#VALUE!"}},{"$f":"'2. Conservation Measures'!IY58","v":{"$error":"#VALUE!"}},{"$f":"'2. Conservation Measures'!IZ58","v":{"$error":"#VALUE!"}},{"$f":"'2. Conservation Measures'!JA58","v":{"$error":"#VALUE!"}},{"$f":"'2. Conservation Measures'!JB58","v":{"$error":"#VALUE!"}},{"$f":"'2. Conservation Measures'!JC58","v":{"$error":"#VALUE!"}},{"$f":"'2. Conservation Measures'!JD58","v":{"$error":"#VALUE!"}},{"$f":"'2. Conservation Measures'!JE58","v":{"$error":"#VALUE!"}},{"$f":"'2. Conservation Measures'!JF58","v":{"$error":"#VALUE!"}},{"$f":"'2. Conservation Measures'!JG58","v":{"$error":"#VALUE!"}},{"$f":"'2. Conservation Measures'!JH58","v":{"$error":"#VALUE!"}},{"$f":"'2. Conservation Measures'!JI58","v":{"$error":"#VALUE!"}},{"$f":"'2. Conservation Measures'!JJ58","v":{"$error":"#VALUE!"}},{"$f":"'2. Conservation Measures'!JK58","v":{"$error":"#VALUE!"}},{"$f":"'2. Conservation Measures'!JL58","v":{"$error":"#VALUE!"}},{"$f":"'2. Conservation Measures'!JM58","v":{"$error":"#VALUE!"}},{"$f":"'2. Conservation Measures'!JN58","v":{"$error":"#VALUE!"}},{"$f":"'2. Conservation Measures'!JO58","v":{"$error":"#VALUE!"}},{"$f":"'2. Conservation Measures'!JP58","v":{"$error":"#VALUE!"}},{"$f":"'2. Conservation Measures'!JQ58","v":{"$error":"#VALUE!"}},{"$f":"'2. Conservation Measures'!JR58","v":{"$error":"#VALUE!"}},{"$f":"'2. Conservation Measures'!JS58","v":{"$error":"#VALUE!"}},{"$f":"'2. Conservation Measures'!JT58","v":{"$error":"#VALUE!"}},{"$f":"'2. Conservation Measures'!JU58","v":{"$error":"#VALUE!"}},{"$f":"'2. Conservation Measures'!JV58","v":{"$error":"#VALUE!"}},{"$f":"'2. Conservation Measures'!JW58","v":{"$error":"#VALUE!"}},{"$f":"'2. Conservation Measures'!JX58","v":{"$error":"#VALUE!"}},{"$f":"'2. Conservation Measures'!JY58","v":{"$error":"#VALUE!"}},{"$f":"'2. Conservation Measures'!JZ58","v":{"$error":"#VALUE!"}},{"$f":"'2. Conservation Measures'!KA58","v":{"$error":"#VALUE!"}},{"$f":"'2. Conservation Measures'!KB58","v":{"$error":"#VALUE!"}},{"$f":"'2. Conservation Measures'!KC58","v":{"$error":"#VALUE!"}},{"$f":"'2. Conservation Measures'!KD58","v":{"$error":"#VALUE!"}},{"$f":"'2. Conservation Measures'!KE58","v":{"$error":"#VALUE!"}},{"$f":"'2. Conservation Measures'!KF58","v":{"$error":"#VALUE!"}},{"$f":"'2. Conservation Measures'!KG58","v":{"$error":"#VALUE!"}},{"$f":"'2. Conservation Measures'!KH58","v":{"$error":"#VALUE!"}},{"$f":"'2. Conservation Measures'!KI58","v":{"$error":"#VALUE!"}},{"$f":"'2. Conservation Measures'!KJ58","v":{"$error":"#VALUE!"}},{"$f":"'2. Conservation Measures'!KK58","v":{"$error":"#VALUE!"}},{"$f":"'2. Conservation Measures'!KL58","v":{"$error":"#VALUE!"}},{"$f":"'2. Conservation Measures'!KM58","v":{"$error":"#VALUE!"}},{"$f":"'2. Conservation Measures'!KN58","v":{"$error":"#VALUE!"}}]
[null,{"$f":"'2. Conservation Measures'!B108","v":"USR-ICI-01"},{"$f":"'2. Conservation Measures'!C108","v":0},{"$f":"'2. Conservation Measures'!D108","v":"N"},null,{"$f":"'2. Conservation Measures'!AA108","v":0},null,{"$f":"'2. Conservation Measures'!AO108","v":0},{"$f":"'2. Conservation Measures'!AP108","v":0},{"$f":"'2. Conservation Measures'!AQ108","v":0},{"$f":"'2. Conservation Measures'!AR108","v":0},{"$f":"'2. Conservation Measures'!AS108","v":0},{"$f":"'2. Conservation Measures'!AT108","v":0},{"$f":"'2. Conservation Measures'!AU108","v":0},{"$f":"'2. Conservation Measures'!AV108","v":0},{"$f":"'2. Conservation Measures'!AW108","v":0},{"$f":"'2. Conservation Measures'!AX108","v":0},{"$f":"'2. Conservation Measures'!AY108","v":0},{"$f":"'2. Conservation Measures'!AZ108","v":0},{"$f":"'2. Conservation Measures'!BA108","v":0},{"$f":"'2. Conservation Measures'!BB108","v":0},{"$f":"'2. Conservation Measures'!BC108","v":0},{"$f":"'2. Conservation Measures'!BD108","v":0},{"$f":"'2. Conservation Measures'!BE108","v":0},{"$f":"'2. Conservation Measures'!BF108","v":0},{"$f":"'2. Conservation Measures'!BG108","v":0},{"$f":"'2. Conservation Measures'!BH108","v":0},{"$f":"'2. Conservation Measures'!BI108","v":0},{"$f":"'2. Conservation Measures'!BJ108","v":0},{"$f":"'2. Conservation Measures'!BK108","v":0},{"$f":"'2. Conservation Measures'!BL108","v":0},{"$f":"'2. Conservation Measures'!BM108","v":0},{"$f":"'2. Conservation Measures'!BN108","v":0},{"$f":"'2. Conservation Measures'!BO108","v":0},{"$f":"'2. Conservation Measures'!BP108","v":0},{"$f":"'2. Conservation Measures'!BQ108","v":0},{"$f":"'2. Conservation Measures'!BR108","v":0},{"$f":"'2. Conservation Measures'!BS108","v":0},{"$f":"'2. Conservation Measures'!BT108","v":0},{"$f":"'2. Conservation Measures'!BU108","v":0},{"$f":"'2. Conservation Measures'!BV108","v":0},{"$f":"'2. Conservation Measures'!BW108","v":0},{"$f":"'2. Conservation Measures'!BX108","v":0},{"$f":"'2. Conservation Measures'!BY108","v":0},{"$f":"'2. Conservation Measures'!BZ108","v":0},{"$f":"'2. Conservation Measures'!CA108","v":0},{"$f":"'2. Conservation Measures'!CB108","v":0},{"$f":"'2. Conservation Measures'!CC108","v":0},{"$f":"'2. Conservation Measures'!CD108","v":0},{"$f":"'2. Conservation Measures'!CE108","v":0},{"$f":"'2. Conservation Measures'!CF108","v":0},{"$f":"'2. Conservation Measures'!CG108","v":0},{"$f":"'2. Conservation Measures'!CH108","v":0},{"$f":"'2. Conservation Measures'!CI108","v":0},{"$f":"'2. Conservation Measures'!CJ108","v":0},{"$f":"'2. Conservation Measures'!CK108","v":0},{"$f":"'2. Conservation Measures'!CL108","v":0},{"$f":"'2. Conservation Measures'!CM108","v":0},null,{"$f":"'2. Conservation Measures'!CO108","v":0},{"$f":"'2. Conservation Measures'!CP108","v":0},{"$f":"'2. Conservation Measures'!CQ108","v":0},{"$f":"'2. Conservation Measures'!CR108","v":0},{"$f":"'2. Conservation Measures'!CS108","v":0},{"$f":"'2. Conservation Measures'!CT108","v":0},{"$f":"'2. Conservation Measures'!CU108","v":0},{"$f":"'2. Conservation Measures'!CV108","v":0},{"$f":"'2. Conservation Measures'!CW108","v":0},{"$f":"'2. Conservation Measures'!CX108","v":0},{"$f":"'2. Conservation Measures'!CY108","v":0},{"$f":"'2. Conservation Measures'!CZ108","v":0},{"$f":"'2. Conservation Measures'!DA108","v":0},{"$f":"'2. Conservation Measures'!DB108","v":0},{"$f":"'2. Conservation Measures'!DC108","v":0},{"$f":"'2. Conservation Measures'!DD108","v":0},{"$f":"'2. Conservation Measures'!DE108","v":0},{"$f":"'2. Conservation Measures'!DF108","v":0},{"$f":"'2. Conservation Measures'!DG108","v":0},{"$f":"'2. Conservation Measures'!DH108","v":0},{"$f":"'2. Conservation Measures'!DI108","v":0},{"$f":"'2. Conservation Measures'!DJ108","v":0},{"$f":"'2. Conservation Measures'!DK108","v":0},{"$f":"'2. Conservation Measures'!DL108","v":0},{"$f":"'2. Conservation Measures'!DM108","v":0},{"$f":"'2. Conservation Measures'!DN108","v":0},{"$f":"'2. Conservation Measures'!DO108","v":0},{"$f":"'2. Conservation Measures'!DP108","v":0},{"$f":"'2. Conservation Measures'!DQ108","v":0},{"$f":"'2. Conservation Measures'!DR108","v":0},{"$f":"'2. Conservation Measures'!DS108","v":0},{"$f":"'2. Conservation Measures'!DT108","v":0},{"$f":"'2. Conservation Measures'!DU108","v":0},{"$f":"'2. Conservation Measures'!DV108","v":0},{"$f":"'2. Conservation Measures'!DW108","v":0},{"$f":"'2. Conservation Measures'!DX108","v":0},{"$f":"'2. Conservation Measures'!DY108","v":0},{"$f":"'2. Conservation Measures'!DZ108","v":0},{"$f":"'2. Conservation Measures'!EA108","v":0},{"$f":"'2. Conservation Measures'!EB108","v":0},{"$f":"'2. Conservation Measures'!EC108","v":0},{"$f":"'2. Conservation Measures'!ED108","v":0},{"$f":"'2. Conservation Measures'!EE108","v":0},{"$f":"'2. Conservation Measures'!EF108","v":0},{"$f":"'2. Conservation Measures'!EG108","v":0},{"$f":"'2. Conservation Measures'!EH108","v":0},{"$f":"'2. Conservation Measures'!EI108","v":0},{"$f":"'2. Conservation Measures'!EJ108","v":0},{"$f":"'2. Conservation Measures'!EK108","v":0},{"$f":"'2. Conservation Measures'!EL108","v":0},{"$f":"'2. Conservation Measures'!EM108","v":0},null,{"$f":"'2. Conservation Measures'!KP108","v":0},{"$f":"'2. Conservation Measures'!KQ108","v":0},{"$f":"'2. Conservation Measures'!KR108","v":0},{"$f":"'2. Conservation Measures'!KS108","v":0},{"$f":"'2. Conservation Measures'!KT108","v":0},{"$f":"'2. Conservation Measures'!KU108","v":0},{"$f":"'2. Conservation Measures'!KV108","v":0},{"$f":"'2. Conservation Measures'!KW108","v":0},{"$f":"'2. Conservation Measures'!KX108","v":0},{"$f":"'2. Conservation Measures'!KY108","v":0},{"$f":"'2. Conservation Measures'!KZ108","v":0},{"$f":"'2. Conservation Measures'!LA108","v":0},{"$f":"'2. Conservation Measures'!LB108","v":0},{"$f":"'2. Conservation Measures'!LC108","v":0},{"$f":"'2. Conservation Measures'!LD108","v":0},{"$f":"'2. Conservation Measures'!LE108","v":0},{"$f":"'2. Conservation Measures'!LF108","v":0},{"$f":"'2. Conservation Measures'!LG108","v":0},{"$f":"'2. Conservation Measures'!LH108","v":0},{"$f":"'2. Conservation Measures'!LI108","v":0},{"$f":"'2. Conservation Measures'!LJ108","v":0},{"$f":"'2. Conservation Measures'!LK108","v":0},{"$f":"'2. Conservation Measures'!LL108","v":0},{"$f":"'2. Conservation Measures'!LM108","v":0},{"$f":"'2. Conservation Measures'!LN108","v":0},{"$f":"'2. Conservation Measures'!LO108","v":0},{"$f":"'2. Conservation Measures'!LP108","v":0},{"$f":"'2. Conservation Measures'!LQ108","v":0},{"$f":"'2. Conservation Measures'!LR108","v":0},{"$f":"'2. Conservation Measures'!LS108","v":0},{"$f":"'2. Conservation Measures'!LT108","v":0},{"$f":"'2. Conservation Measures'!LU108","v":0},{"$f":"'2. Conservation Measures'!LV108","v":0},{"$f":"'2. Conservation Measures'!LW108","v":0},{"$f":"'2. Conservation Measures'!LX108","v":0},{"$f":"'2. Conservation Measures'!LY108","v":0},{"$f":"'2. Conservation Measures'!LZ108","v":0},{"$f":"'2. Conservation Measures'!MA108","v":0},{"$f":"'2. Conservation Measures'!MB108","v":0},{"$f":"'2. Conservation Measures'!MC108","v":0},{"$f":"'2. Conservation Measures'!MD108","v":0},{"$f":"'2. Conservation Measures'!ME108","v":0},{"$f":"'2. Conservation Measures'!MF108","v":0},{"$f":"'2. Conservation Measures'!MG108","v":0},{"$f":"'2. Conservation Measures'!MH108","v":0},{"$f":"'2. Conservation Measures'!MI108","v":0},{"$f":"'2. Conservation Measures'!MJ108","v":0},{"$f":"'2. Conservation Measures'!MK108","v":0},{"$f":"'2. Conservation Measures'!ML108","v":0},{"$f":"'2. Conservation Measures'!MM108","v":0},{"$f":"'2. Conservation Measures'!MN108","v":0},null,{"$f":"'2. Conservation Measures'!EP108","v":0},{"$f":"'2. Conservation Measures'!EQ108","v":0},{"$f":"'2. Conservation Measures'!ER108","v":0},{"$f":"'2. Conservation Measures'!ES108","v":0},{"$f":"'2. Conservation Measures'!ET108","v":0},{"$f":"'2. Conservation Measures'!EU108","v":0},{"$f":"'2. Conservation Measures'!EV108","v":0},{"$f":"'2. Conservation Measures'!EW108","v":0},{"$f":"'2. Conservation Measures'!EX108","v":0},{"$f":"'2. Conservation Measures'!EY108","v":0},{"$f":"'2. Conservation Measures'!EZ108","v":0},{"$f":"'2. Conservation Measures'!FA108","v":0},{"$f":"'2. Conservation Measures'!FB108","v":0},{"$f":"'2. Conservation Measures'!FC108","v":0},{"$f":"'2. Conservation Measures'!FD108","v":0},{"$f":"'2. Conservation Measures'!FE108","v":0},{"$f":"'2. Conservation Measures'!FF108","v":0},{"$f":"'2. Conservation Measures'!FG108","v":0},{"$f":"'2. Conservation Measures'!FH108","v":0},{"$f":"'2. Conservation Measures'!FI108","v":0},{"$f":"'2. Conservation Measures'!FJ108","v":0},{"$f":"'2. Conservation Measures'!FK108","v":0},{"$f":"'2. Conservation Measures'!FL108","v":0},{"$f":"'2. Conservation Measures'!FM108","v":0},{"$f":"'2. Conservation Measures'!FN108","v":0},{"$f":"'2. Conservation Measures'!FO108","v":0},{"$f":"'2. Conservation Measures'!FP108","v":0},{"$f":"'2. Conservation Measures'!FQ108","v":0},{"$f":"'2. Conservation Measures'!FR108","v":0},{"$f":"'2. Conservation Measures'!FS108","v":0},{"$f":"'2. Conservation Measures'!FT108","v":0},{"$f":"'2. Conservation Measures'!FU108","v":0},{"$f":"'2. Conservation Measures'!FV108","v":0},{"$f":"'2. Conservation Measures'!FW108","v":0},{"$f":"'2. Conservation Measures'!FX108","v":0},{"$f":"'2. Conservation Measures'!FY108","v":0},{"$f":"'2. Conservation Measures'!FZ108","v":0},{"$f":"'2. Conservation Measures'!GA108","v":0},{"$f":"'2. Conservation Measures'!GB108","v":0},{"$f":"'2. Conservation Measures'!GC108","v":0},{"$f":"'2. Conservation Measures'!GD108","v":0},{"$f":"'2. Conservation Measures'!GE108","v":0},{"$f":"'2. Conservation Measures'!GF108","v":0},{"$f":"'2. Conservation Measures'!GG108","v":0},{"$f":"'2. Conservation Measures'!GH108","v":0},{"$f":"'2. Conservation Measures'!GI108","v":0},{"$f":"'2. Conservation Measures'!GJ108","v":0},{"$f":"'2. Conservation Measures'!GK108","v":0},{"$f":"'2. Conservation Measures'!GL108","v":0},{"$f":"'2. Conservation Measures'!GM108","v":0},{"$f":"'2. Conservation Measures'!GN108","v":0},null,{"$f":"'2. Conservation Measures'!GP108","v":0},{"$f":"'2. Conservation Measures'!GQ108","v":0},{"$f":"'2. Conservation Measures'!GR108","v":0},{"$f":"'2. Conservation Measures'!GS108","v":0},{"$f":"'2. Conservation Measures'!GT108","v":0},{"$f":"'2. Conservation Measures'!GU108","v":0},{"$f":"'2. Conservation Measures'!GV108","v":0},{"$f":"'2. Conservation Measures'!GW108","v":0},{"$f":"'2. Conservation Measures'!GX108","v":0},{"$f":"'2. Conservation Measures'!GY108","v":0},{"$f":"'2. Conservation Measures'!GZ108","v":0},{"$f":"'2. Conservation Measures'!HA108","v":0},{"$f":"'2. Conservation Measures'!HB108","v":0},{"$f":"'2. Conservation Measures'!HC108","v":0},{"$f":"'2. Conservation Measures'!HD108","v":0},{"$f":"'2. Conservation Measures'!HE108","v":0},{"$f":"'2. Conservation Measures'!HF108","v":0},{"$f":"'2. Conservation Measures'!HG108","v":0},{"$f":"'2. Conservation Measures'!HH108","v":0},{"$f":"'2. Conservation Measures'!HI108","v":0},{"$f":"'2. Conservation Measures'!HJ108","v":0},{"$f":"'2. Conservation Measures'!HK108","v":0},{"$f":"'2. Conservation Measures'!HL108","v":0},{"$f":"'2. Conservation Measures'!HM108","v":0},{"$f":"'2. Conservation Measures'!HN108","v":0},{"$f":"'2. Conservation Measures'!HO108","v":0},{"$f":"'2. Conservation Measures'!HP108","v":0},{"$f":"'2. Conservation Measures'!HQ108","v":0},{"$f":"'2. Conservation Measures'!HR108","v":0},{"$f":"'2. Conservation Measures'!HS108","v":0},{"$f":"'2. Conservation Measures'!HT108","v":0},{"$f":"'2. Conservation Measures'!HU108","v":0},{"$f":"'2. Conservation Measures'!HV108","v":0},{"$f":"'2. Conservation Measures'!HW108","v":0},{"$f":"'2. Conservation Measures'!HX108","v":0},{"$f":"'2. Conservation Measures'!HY108","v":0},{"$f":"'2. Conservation Measures'!HZ108","v":0},{"$f":"'2. Conservation Measures'!IA108","v":0},{"$f":"'2. Conservation Measures'!IB108","v":0},{"$f":"'2. Conservation Measures'!IC108","v":0},{"$f":"'2. Conservation Measures'!ID108","v":0},{"$f":"'2. Conservation Measures'!IE108","v":0},{"$f":"'2. Conservation Measures'!IF108","v":0},{"$f":"'2. Conservation Measures'!IG108","v":0},{"$f":"'2. Conservation Measures'!IH108","v":0},{"$f":"'2. Conservation Measures'!II108","v":0},{"$f":"'2. Conservation Measures'!IJ108","v":0},{"$f":"'2. Conservation Measures'!IK108","v":0},{"$f":"'2. Conservation Measures'!IL108","v":0},{"$f":"'2. Conservation Measures'!IM108","v":0},{"$f":"'2. Conservation Measures'!IN108","v":0},null,{"$f":"'2. Conservation Measures'!IP108","v":0},{"$f":"'2. Conservation Measures'!IQ108","v":0},{"$f":"'2. Conservation Measures'!IR108","v":0},{"$f":"'2. Conservation Measures'!IS108","v":0},{"$f":"'2. Conservation Measures'!IT108","v":0},{"$f":"'2. Conservation Measures'!IU108","v":0},{"$f":"'2. Conservation Measures'!IV108","v":0},{"$f":"'2. Conservation Measures'!IW108","v":0},{"$f":"'2. Conservation Measures'!IX108","v":0},{"$f":"'2. Conservation Measures'!IY108","v":0},{"$f":"'2. Conservation Measures'!IZ108","v":0},{"$f":"'2. Conservation Measures'!JA108","v":0},{"$f":"'2. Conservation Measures'!JB108","v":0},{"$f":"'2. Conservation Measures'!JC108","v":0},{"$f":"'2. Conservation Measures'!JD108","v":0},{"$f":"'2. Conservation Measures'!JE108","v":0},{"$f":"'2. Conservation Measures'!JF108","v":0},{"$f":"'2. Conservation Measures'!JG108","v":0},{"$f":"'2. Conservation Measures'!JH108","v":0},{"$f":"'2. Conservation Measures'!JI108","v":0},{"$f":"'2. Conservation Measures'!JJ108","v":0},{"$f":"'2. Conservation Measures'!JK108","v":0},{"$f":"'2. Conservation Measures'!JL108","v":0},{"$f":"'2. Conservation Measures'!JM108","v":0},{"$f":"'2. Conservation Measures'!JN108","v":0},{"$f":"'2. Conservation Measures'!JO108","v":0},{"$f":"'2. Conservation Measures'!JP108","v":0},{"$f":"'2. Conservation Measures'!JQ108","v":0},{"$f":"'2. Conservation Measures'!JR108","v":0},{"$f":"'2. Conservation Measures'!JS108","v":0},{"$f":"'2. Conservation Measures'!JT108","v":0},{"$f":"'2. Conservation Measures'!JU108","v":0},{"$f":"'2. Conservation Measures'!JV108","v":0},{"$f":"'2. Conservation Measures'!JW108","v":0},{"$f":"'2. Conservation Measures'!JX108","v":0},{"$f":"'2. Conservation Measures'!JY108","v":0},{"$f":"'2. Conservation Measures'!JZ108","v":0},{"$f":"'2. Conservation Measures'!KA108","v":0},{"$f":"'2. Conservation Measures'!KB108","v":0},{"$f":"'2. Conservation Measures'!KC108","v":0},{"$f":"'2. Conservation Measures'!KD108","v":0},{"$f":"'2. Conservation Measures'!KE108","v":0},{"$f":"'2. Conservation Measures'!KF108","v":0},{"$f":"'2. Conservation Measures'!KG108","v":0},{"$f":"'2. Conservation Measures'!KH108","v":0},{"$f":"'2. Conservation Measures'!KI108","v":0},{"$f":"'2. Conservation Measures'!KJ108","v":0},{"$f":"'2. Conservation Measures'!KK108","v":0},{"$f":"'2. Conservation Measures'!KL108","v":0},{"$f":"'2. Conservation Measures'!KM108","v":0},{"$f":"'2. Conservation Measures'!KN108","v":0}]
[null,{"$f":"'2. Conservation Measures'!B109","v":"USR-ICI-02"},{"$f":"'2. Conservation Measures'!C109","v":0},{"$f":"'2. Conservation Measures'!D109","v":"N"},null,{"$f":"'2. Conservation Measures'!AA109","v":0},null,{"$f":"'2. Conservation Measures'!AO109","v":0},{"$f":"'2. Conservation Measures'!AP109","v":0},{"$f":"'2. Conservation Measures'!AQ109","v":0},{"$f":"'2. Conservation Measures'!AR109","v":0},{"$f":"'2. Conservation Measures'!AS109","v":0},{"$f":"'2. Conservation Measures'!AT109","v":0},{"$f":"'2. Conservation Measures'!AU109","v":0},{"$f":"'2. Conservation Measures'!AV109","v":0},{"$f":"'2. Conservation Measures'!AW109","v":0},{"$f":"'2. Conservation Measures'!AX109","v":0},{"$f":"'2. Conservation Measures'!AY109","v":0},{"$f":"'2. Conservation Measures'!AZ109","v":0},{"$f":"'2. Conservation Measures'!BA109","v":0},{"$f":"'2. Conservation Measures'!BB109","v":0},{"$f":"'2. Conservation Measures'!BC109","v":0},{"$f":"'2. Conservation Measures'!BD109","v":0},{"$f":"'2. Conservation Measures'!BE109","v":0},{"$f":"'2. Conservation Measures'!BF109","v":0},{"$f":"'2. Conservation Measures'!BG109","v":0},{"$f":"'2. Conservation Measures'!BH109","v":0},{"$f":"'2. Conservation Measures'!BI109","v":0},{"$f":"'2. Conservation Measures'!BJ109","v":0},{"$f":"'2. Conservation Measures'!BK109","v":0},{"$f":"'2. Conservation Measures'!BL109","v":0},{"$f":"'2. Conservation Measures'!BM109","v":0},{"$f":"'2. Conservation Measures'!BN109","v":0},{"$f":"'2. Conservation Measures'!BO109","v":0},{"$f":"'2. Conservation Measures'!BP109","v":0},{"$f":"'2. Conservation Measures'!BQ109","v":0},{"$f":"'2. Conservation Measures'!BR109","v":0},{"$f":"'2. Conservation Measures'!BS109","v":0},{"$f":"'2. Conservation Measures'!BT109","v":0},{"$f":"'2. Conservation Measures'!BU109","v":0},{"$f":"'2. Conservation Measures'!BV109","v":0},{"$f":"'2. Conservation Measures'!BW109","v":0},{"$f":"'2. Conservation Measures'!BX109","v":0},{"$f":"'2. Conservation Measures'!BY109","v":0},{"$f":"'2. Conservation Measures'!BZ109","v":0},{"$f":"'2. Conservation Measures'!CA109","v":0},{"$f":"'2. Conservation Measures'!CB109","v":0},{"$f":"'2. Conservation Measures'!CC109","v":0},{"$f":"'2. Conservation Measures'!CD109","v":0},{"$f":"'2. Conservation Measures'!CE109","v":0},{"$f":"'2. Conservation Measures'!CF109","v":0},{"$f":"'2. Conservation Measures'!CG109","v":0},{"$f":"'2. Conservation Measures'!CH109","v":0},{"$f":"'2. Conservation Measures'!CI109","v":0},{"$f":"'2. Conservation Measures'!CJ109","v":0},{"$f":"'2. Conservation Measures'!CK109","v":0},{"$f":"'2. Conservation Measures'!CL109","v":0},{"$f":"'2. Conservation Measures'!CM109","v":0},null,{"$f":"'2. Conservation Measures'!CO109","v":0},{"$f":"'2. Conservation Measures'!CP109","v":0},{"$f":"'2. Conservation Measures'!CQ109","v":0},{"$f":"'2. Conservation Measures'!CR109","v":0},{"$f":"'2. Conservation Measures'!CS109","v":0},{"$f":"'2. Conservation Measures'!CT109","v":0},{"$f":"'2. Conservation Measures'!CU109","v":0},{"$f":"'2. Conservation Measures'!CV109","v":0},{"$f":"'2. Conservation Measures'!CW109","v":0},{"$f":"'2. Conservation Measures'!CX109","v":0},{"$f":"'2. Conservation Measures'!CY109","v":0},{"$f":"'2. Conservation Measures'!CZ109","v":0},{"$f":"'2. Conservation Measures'!DA109","v":0},{"$f":"'2. Conservation Measures'!DB109","v":0},{"$f":"'2. Conservation Measures'!DC109","v":0},{"$f":"'2. Conservation Measures'!DD109","v":0},{"$f":"'2. Conservation Measures'!DE109","v":0},{"$f":"'2. Conservation Measures'!DF109","v":0},{"$f":"'2. Conservation Measures'!DG109","v":0},{"$f":"'2. Conservation Measures'!DH109","v":0},{"$f":"'2. Conservation Measures'!DI109","v":0},{"$f":"'2. Conservation Measures'!DJ109","v":0},{"$f":"'2. Conservation Measures'!DK109","v":0},{"$f":"'2. Conservation Measures'!DL109","v":0},{"$f":"'2. Conservation Measures'!DM109","v":0},{"$f":"'2. Conservation Measures'!DN109","v":0},{"$f":"'2. Conservation Measures'!DO109","v":0},{"$f":"'2. Conservation Measures'!DP109","v":0},{"$f":"'2. Conservation Measures'!DQ109","v":0},{"$f":"'2. Conservation Measures'!DR109","v":0},{"$f":"'2. Conservation Measures'!DS109","v":0},{"$f":"'2. Conservation Measures'!DT109","v":0},{"$f":"'2. Conservation Measures'!DU109","v":0},{"$f":"'2. Conservation Measures'!DV109","v":0},{"$f":"'2. Conservation Measures'!DW109","v":0},{"$f":"'2. Conservation Measures'!DX109","v":0},{"$f":"'2. Conservation Measures'!DY109","v":0},{"$f":"'2. Conservation Measures'!DZ109","v":0},{"$f":"'2. Conservation Measures'!EA109","v":0},{"$f":"'2. Conservation Measures'!EB109","v":0},{"$f":"'2. Conservation Measures'!EC109","v":0},{"$f":"'2. Conservation Measures'!ED109","v":0},{"$f":"'2. Conservation Measures'!EE109","v":0},{"$f":"'2. Conservation Measures'!EF109","v":0},{"$f":"'2. Conservation Measures'!EG109","v":0},{"$f":"'2. Conservation Measures'!EH109","v":0},{"$f":"'2. Conservation Measures'!EI109","v":0},{"$f":"'2. Conservation Measures'!EJ109","v":0},{"$f":"'2. Conservation Measures'!EK109","v":0},{"$f":"'2. Conservation Measures'!EL109","v":0},{"$f":"'2. Conservation Measures'!EM109","v":0},null,{"$f":"'2. Conservation Measures'!KP109","v":0},{"$f":"'2. Conservation Measures'!KQ109","v":0},{"$f":"'2. Conservation Measures'!KR109","v":0},{"$f":"'2. Conservation Measures'!KS109","v":0},{"$f":"'2. Conservation Measures'!KT109","v":0},{"$f":"'2. Conservation Measures'!KU109","v":0},{"$f":"'2. Conservation Measures'!KV109","v":0},{"$f":"'2. Conservation Measures'!KW109","v":0},{"$f":"'2. Conservation Measures'!KX109","v":0},{"$f":"'2. Conservation Measures'!KY109","v":0},{"$f":"'2. Conservation Measures'!KZ109","v":0},{"$f":"'2. Conservation Measures'!LA109","v":0},{"$f":"'2. Conservation Measures'!LB109","v":0},{"$f":"'2. Conservation Measures'!LC109","v":0},{"$f":"'2. Conservation Measures'!LD109","v":0},{"$f":"'2. Conservation Measures'!LE109","v":0},{"$f":"'2. Conservation Measures'!LF109","v":0},{"$f":"'2. Conservation Measures'!LG109","v":0},{"$f":"'2. Conservation Measures'!LH109","v":0},{"$f":"'2. Conservation Measures'!LI109","v":0},{"$f":"'2. Conservation Measures'!LJ109","v":0},{"$f":"'2. Conservation Measures'!LK109","v":0},{"$f":"'2. Conservation Measures'!LL109","v":0},{"$f":"'2. Conservation Measures'!LM109","v":0},{"$f":"'2. Conservation Measures'!LN109","v":0},{"$f":"'2. Conservation Measures'!LO109","v":0},{"$f":"'2. Conservation Measures'!LP109","v":0},{"$f":"'2. Conservation Measures'!LQ109","v":0},{"$f":"'2. Conservation Measures'!LR109","v":0},{"$f":"'2. Conservation Measures'!LS109","v":0},{"$f":"'2. Conservation Measures'!LT109","v":0},{"$f":"'2. Conservation Measures'!LU109","v":0},{"$f":"'2. Conservation Measures'!LV109","v":0},{"$f":"'2. Conservation Measures'!LW109","v":0},{"$f":"'2. Conservation Measures'!LX109","v":0},{"$f":"'2. Conservation Measures'!LY109","v":0},{"$f":"'2. Conservation Measures'!LZ109","v":0},{"$f":"'2. Conservation Measures'!MA109","v":0},{"$f":"'2. Conservation Measures'!MB109","v":0},{"$f":"'2. Conservation Measures'!MC109","v":0},{"$f":"'2. Conservation Measures'!MD109","v":0},{"$f":"'2. Conservation Measures'!ME109","v":0},{"$f":"'2. Conservation Measures'!MF109","v":0},{"$f":"'2. Conservation Measures'!MG109","v":0},{"$f":"'2. Conservation Measures'!MH109","v":0},{"$f":"'2. Conservation Measures'!MI109","v":0},{"$f":"'2. Conservation Measures'!MJ109","v":0},{"$f":"'2. Conservation Measures'!MK109","v":0},{"$f":"'2. Conservation Measures'!ML109","v":0},{"$f":"'2. Conservation Measures'!MM109","v":0},{"$f":"'2. Conservation Measures'!MN109","v":0},null,{"$f":"'2. Conservation Measures'!EP109","v":0},{"$f":"'2. Conservation Measures'!EQ109","v":0},{"$f":"'2. Conservation Measures'!ER109","v":0},{"$f":"'2. Conservation Measures'!ES109","v":0},{"$f":"'2. Conservation Measures'!ET109","v":0},{"$f":"'2. Conservation Measures'!EU109","v":0},{"$f":"'2. Conservation Measures'!EV109","v":0},{"$f":"'2. Conservation Measures'!EW109","v":0},{"$f":"'2. Conservation Measures'!EX109","v":0},{"$f":"'2. Conservation Measures'!EY109","v":0},{"$f":"'2. Conservation Measures'!EZ109","v":0},{"$f":"'2. Conservation Measures'!FA109","v":0},{"$f":"'2. Conservation Measures'!FB109","v":0},{"$f":"'2. Conservation Measures'!FC109","v":0},{"$f":"'2. Conservation Measures'!FD109","v":0},{"$f":"'2. Conservation Measures'!FE109","v":0},{"$f":"'2. Conservation Measures'!FF109","v":0},{"$f":"'2. Conservation Measures'!FG109","v":0},{"$f":"'2. Conservation Measures'!FH109","v":0},{"$f":"'2. Conservation Measures'!FI109","v":0},{"$f":"'2. Conservation Measures'!FJ109","v":0},{"$f":"'2. Conservation Measures'!FK109","v":0},{"$f":"'2. Conservation Measures'!FL109","v":0},{"$f":"'2. Conservation Measures'!FM109","v":0},{"$f":"'2. Conservation Measures'!FN109","v":0},{"$f":"'2. Conservation Measures'!FO109","v":0},{"$f":"'2. Conservation Measures'!FP109","v":0},{"$f":"'2. Conservation Measures'!FQ109","v":0},{"$f":"'2. Conservation Measures'!FR109","v":0},{"$f":"'2. Conservation Measures'!FS109","v":0},{"$f":"'2. Conservation Measures'!FT109","v":0},{"$f":"'2. Conservation Measures'!FU109","v":0},{"$f":"'2. Conservation Measures'!FV109","v":0},{"$f":"'2. Conservation Measures'!FW109","v":0},{"$f":"'2. Conservation Measures'!FX109","v":0},{"$f":"'2. Conservation Measures'!FY109","v":0},{"$f":"'2. Conservation Measures'!FZ109","v":0},{"$f":"'2. Conservation Measures'!GA109","v":0},{"$f":"'2. Conservation Measures'!GB109","v":0},{"$f":"'2. Conservation Measures'!GC109","v":0},{"$f":"'2. Conservation Measures'!GD109","v":0},{"$f":"'2. Conservation Measures'!GE109","v":0},{"$f":"'2. Conservation Measures'!GF109","v":0},{"$f":"'2. Conservation Measures'!GG109","v":0},{"$f":"'2. Conservation Measures'!GH109","v":0},{"$f":"'2. Conservation Measures'!GI109","v":0},{"$f":"'2. Conservation Measures'!GJ109","v":0},{"$f":"'2. Conservation Measures'!GK109","v":0},{"$f":"'2. Conservation Measures'!GL109","v":0},{"$f":"'2. Conservation Measures'!GM109","v":0},{"$f":"'2. Conservation Measures'!GN109","v":0},null,{"$f":"'2. Conservation Measures'!GP109","v":0},{"$f":"'2. Conservation Measures'!GQ109","v":0},{"$f":"'2. Conservation Measures'!GR109","v":0},{"$f":"'2. Conservation Measures'!GS109","v":0},{"$f":"'2. Conservation Measures'!GT109","v":0},{"$f":"'2. Conservation Measures'!GU109","v":0},{"$f":"'2. Conservation Measures'!GV109","v":0},{"$f":"'2. Conservation Measures'!GW109","v":0},{"$f":"'2. Conservation Measures'!GX109","v":0},{"$f":"'2. Conservation Measures'!GY109","v":0},{"$f":"'2. Conservation Measures'!GZ109","v":0},{"$f":"'2. Conservation Measures'!HA109","v":0},{"$f":"'2. Conservation Measures'!HB109","v":0},{"$f":"'2. Conservation Measures'!HC109","v":0},{"$f":"'2. Conservation Measures'!HD109","v":0},{"$f":"'2. Conservation Measures'!HE109","v":0},{"$f":"'2. Conservation Measures'!HF109","v":0},{"$f":"'2. Conservation Measures'!HG109","v":0},{"$f":"'2. Conservation Measures'!HH109","v":0},{"$f":"'2. Conservation Measures'!HI109","v":0},{"$f":"'2. Conservation Measures'!HJ109","v":0},{"$f":"'2. Conservation Measures'!HK109","v":0},{"$f":"'2. Conservation Measures'!HL109","v":0},{"$f":"'2. Conservation Measures'!HM109","v":0},{"$f":"'2. Conservation Measures'!HN109","v":0},{"$f":"'2. Conservation Measures'!HO109","v":0},{"$f":"'2. Conservation Measures'!HP109","v":0},{"$f":"'2. Conservation Measures'!HQ109","v":0},{"$f":"'2. Conservation Measures'!HR109","v":0},{"$f":"'2. Conservation Measures'!HS109","v":0},{"$f":"'2. Conservation Measures'!HT109","v":0},{"$f":"'2. Conservation Measures'!HU109","v":0},{"$f":"'2. Conservation Measures'!HV109","v":0},{"$f":"'2. Conservation Measures'!HW109","v":0},{"$f":"'2. Conservation Measures'!HX109","v":0},{"$f":"'2. Conservation Measures'!HY109","v":0},{"$f":"'2. Conservation Measures'!HZ109","v":0},{"$f":"'2. Conservation Measures'!IA109","v":0},{"$f":"'2. Conservation Measures'!IB109","v":0},{"$f":"'2. Conservation Measures'!IC109","v":0},{"$f":"'2. Conservation Measures'!ID109","v":0},{"$f":"'2. Conservation Measures'!IE109","v":0},{"$f":"'2. Conservation Measures'!IF109","v":0},{"$f":"'2. Conservation Measures'!IG109","v":0},{"$f":"'2. Conservation Measures'!IH109","v":0},{"$f":"'2. Conservation Measures'!II109","v":0},{"$f":"'2. Conservation Measures'!IJ109","v":0},{"$f":"'2. Conservation Measures'!IK109","v":0},{"$f":"'2. Conservation Measures'!IL109","v":0},{"$f":"'2. Conservation Measures'!IM109","v":0},{"$f":"'2. Conservation Measures'!IN109","v":0},null,{"$f":"'2. Conservation Measures'!IP109","v":0},{"$f":"'2. Conservation Measures'!IQ109","v":0},{"$f":"'2. Conservation Measures'!IR109","v":0},{"$f":"'2. Conservation Measures'!IS109","v":0},{"$f":"'2. Conservation Measures'!IT109","v":0},{"$f":"'2. Conservation Measures'!IU109","v":0},{"$f":"'2. Conservation Measures'!IV109","v":0},{"$f":"'2. Conservation Measures'!IW109","v":0},{"$f":"'2. Conservation Measures'!IX109","v":0},{"$f":"'2. Conservation Measures'!IY109","v":0},{"$f":"'2. Conservation Measures'!IZ109","v":0},{"$f":"'2. Conservation Measures'!JA109","v":0},{"$f":"'2. Conservation Measures'!JB109","v":0},{"$f":"'2. Conservation Measures'!JC109","v":0},{"$f":"'2. Conservation Measures'!JD109","v":0},{"$f":"'2. Conservation Measures'!JE109","v":0},{"$f":"'2. Conservation Measures'!JF109","v":0},{"$f":"'2. Conservation Measures'!JG109","v":0},{"$f":"'2. Conservation Measures'!JH109","v":0},{"$f":"'2. Conservation Measures'!JI109","v":0},{"$f":"'2. Conservation Measures'!JJ109","v":0},{"$f":"'2. Conservation Measures'!JK109","v":0},{"$f":"'2. Conservation Measures'!JL109","v":0},{"$f":"'2. Conservation Measures'!JM109","v":0},{"$f":"'2. Conservation Measures'!JN109","v":0},{"$f":"'2. Conservation Measures'!JO109","v":0},{"$f":"'2. Conservation Measures'!JP109","v":0},{"$f":"'2. Conservation Measures'!JQ109","v":0},{"$f":"'2. Conservation Measures'!JR109","v":0},{"$f":"'2. Conservation Measures'!JS109","v":0},{"$f":"'2. Conservation Measures'!JT109","v":0},{"$f":"'2. Conservation Measures'!JU109","v":0},{"$f":"'2. Conservation Measures'!JV109","v":0},{"$f":"'2. Conservation Measures'!JW109","v":0},{"$f":"'2. Conservation Measures'!JX109","v":0},{"$f":"'2. Conservation Measures'!JY109","v":0},{"$f":"'2. Conservation Measures'!JZ109","v":0},{"$f":"'2. Conservation Measures'!KA109","v":0},{"$f":"'2. Conservation Measures'!KB109","v":0},{"$f":"'2. Conservation Measures'!KC109","v":0},{"$f":"'2. Conservation Measures'!KD109","v":0},{"$f":"'2. Conservation Measures'!KE109","v":0},{"$f":"'2. Conservation Measures'!KF109","v":0},{"$f":"'2. Conservation Measures'!KG109","v":0},{"$f":"'2. Conservation Measures'!KH109","v":0},{"$f":"'2. Conservation Measures'!KI109","v":0},{"$f":"'2. Conservation Measures'!KJ109","v":0},{"$f":"'2. Conservation Measures'!KK109","v":0},{"$f":"'2. Conservation Measures'!KL109","v":0},{"$f":"'2. Conservation Measures'!KM109","v":0},{"$f":"'2. Conservation Measures'!KN109","v":0}]
[null,{"$f":"'2. Conservation Measures'!B110","v":"USR-ICI-03"},{"$f":"'2. Conservation Measures'!C110","v":0},{"$f":"'2. Conservation Measures'!D110","v":"N"},null,{"$f":"'2. Conservation Measures'!AA110","v":0},null,{"$f":"'2. Conservation Measures'!AO110","v":0},{"$f":"'2. Conservation Measures'!AP110","v":0},{"$f":"'2. Conservation Measures'!AQ110","v":0},{"$f":"'2. Conservation Measures'!AR110","v":0},{"$f":"'2. Conservation Measures'!AS110","v":0},{"$f":"'2. Conservation Measures'!AT110","v":0},{"$f":"'2. Conservation Measures'!AU110","v":0},{"$f":"'2. Conservation Measures'!AV110","v":0},{"$f":"'2. Conservation Measures'!AW110","v":0},{"$f":"'2. Conservation Measures'!AX110","v":0},{"$f":"'2. Conservation Measures'!AY110","v":0},{"$f":"'2. Conservation Measures'!AZ110","v":0},{"$f":"'2. Conservation Measures'!BA110","v":0},{"$f":"'2. Conservation Measures'!BB110","v":0},{"$f":"'2. Conservation Measures'!BC110","v":0},{"$f":"'2. Conservation Measures'!BD110","v":0},{"$f":"'2. Conservation Measures'!BE110","v":0},{"$f":"'2. Conservation Measures'!BF110","v":0},{"$f":"'2. Conservation Measures'!BG110","v":0},{"$f":"'2. Conservation Measures'!BH110","v":0},{"$f":"'2. Conservation Measures'!BI110","v":0},{"$f":"'2. Conservation Measures'!BJ110","v":0},{"$f":"'2. Conservation Measures'!BK110","v":0},{"$f":"'2. Conservation Measures'!BL110","v":0},{"$f":"'2. Conservation Measures'!BM110","v":0},{"$f":"'2. Conservation Measures'!BN110","v":0},{"$f":"'2. Conservation Measures'!BO110","v":0},{"$f":"'2. Conservation Measures'!BP110","v":0},{"$f":"'2. Conservation Measures'!BQ110","v":0},{"$f":"'2. Conservation Measures'!BR110","v":0},{"$f":"'2. Conservation Measures'!BS110","v":0},{"$f":"'2. Conservation Measures'!BT110","v":0},{"$f":"'2. Conservation Measures'!BU110","v":0},{"$f":"'2. Conservation Measures'!BV110","v":0},{"$f":"'2. Conservation Measures'!BW110","v":0},{"$f":"'2. Conservation Measures'!BX110","v":0},{"$f":"'2. Conservation Measures'!BY110","v":0},{"$f":"'2. Conservation Measures'!BZ110","v":0},{"$f":"'2. Conservation Measures'!CA110","v":0},{"$f":"'2. Conservation Measures'!CB110","v":0},{"$f":"'2. Conservation Measures'!CC110","v":0},{"$f":"'2. Conservation Measures'!CD110","v":0},{"$f":"'2. Conservation Measures'!CE110","v":0},{"$f":"'2. Conservation Measures'!CF110","v":0},{"$f":"'2. Conservation Measures'!CG110","v":0},{"$f":"'2. Conservation Measures'!CH110","v":0},{"$f":"'2. Conservation Measures'!CI110","v":0},{"$f":"'2. Conservation Measures'!CJ110","v":0},{"$f":"'2. Conservation Measures'!CK110","v":0},{"$f":"'2. Conservation Measures'!CL110","v":0},{"$f":"'2. Conservation Measures'!CM110","v":0},null,{"$f":"'2. Conservation Measures'!CO110","v":0},{"$f":"'2. Conservation Measures'!CP110","v":0},{"$f":"'2. Conservation Measures'!CQ110","v":0},{"$f":"'2. Conservation Measures'!CR110","v":0},{"$f":"'2. Conservation Measures'!CS110","v":0},{"$f":"'2. Conservation Measures'!CT110","v":0},{"$f":"'2. Conservation Measures'!CU110","v":0},{"$f":"'2. Conservation Measures'!CV110","v":0},{"$f":"'2. Conservation Measures'!CW110","v":0},{"$f":"'2. Conservation Measures'!CX110","v":0},{"$f":"'2. Conservation Measures'!CY110","v":0},{"$f":"'2. Conservation Measures'!CZ110","v":0},{"$f":"'2. Conservation Measures'!DA110","v":0},{"$f":"'2. Conservation Measures'!DB110","v":0},{"$f":"'2. Conservation Measures'!DC110","v":0},{"$f":"'2. Conservation Measures'!DD110","v":0},{"$f":"'2. Conservation Measures'!DE110","v":0},{"$f":"'2. Conservation Measures'!DF110","v":0},{"$f":"'2. Conservation Measures'!DG110","v":0},{"$f":"'2. Conservation Measures'!DH110","v":0},{"$f":"'2. Conservation Measures'!DI110","v":0},{"$f":"'2. Conservation Measures'!DJ110","v":0},{"$f":"'2. Conservation Measures'!DK110","v":0},{"$f":"'2. Conservation Measures'!DL110","v":0},{"$f":"'2. Conservation Measures'!DM110","v":0},{"$f":"'2. Conservation Measures'!DN110","v":0},{"$f":"'2. Conservation Measures'!DO110","v":0},{"$f":"'2. Conservation Measures'!DP110","v":0},{"$f":"'2. Conservation Measures'!DQ110","v":0},{"$f":"'2. Conservation Measures'!DR110","v":0},{"$f":"'2. Conservation Measures'!DS110","v":0},{"$f":"'2. Conservation Measures'!DT110","v":0},{"$f":"'2. Conservation Measures'!DU110","v":0},{"$f":"'2. Conservation Measures'!DV110","v":0},{"$f":"'2. Conservation Measures'!DW110","v":0},{"$f":"'2. Conservation Measures'!DX110","v":0},{"$f":"'2. Conservation Measures'!DY110","v":0},{"$f":"'2. Conservation Measures'!DZ110","v":0},{"$f":"'2. Conservation Measures'!EA110","v":0},{"$f":"'2. Conservation Measures'!EB110","v":0},{"$f":"'2. Conservation Measures'!EC110","v":0},{"$f":"'2. Conservation Measures'!ED110","v":0},{"$f":"'2. Conservation Measures'!EE110","v":0},{"$f":"'2. Conservation Measures'!EF110","v":0},{"$f":"'2. Conservation Measures'!EG110","v":0},{"$f":"'2. Conservation Measures'!EH110","v":0},{"$f":"'2. Conservation Measures'!EI110","v":0},{"$f":"'2. Conservation Measures'!EJ110","v":0},{"$f":"'2. Conservation Measures'!EK110","v":0},{"$f":"'2. Conservation Measures'!EL110","v":0},{"$f":"'2. Conservation Measures'!EM110","v":0},null,{"$f":"'2. Conservation Measures'!KP110","v":0},{"$f":"'2. Conservation Measures'!KQ110","v":0},{"$f":"'2. Conservation Measures'!KR110","v":0},{"$f":"'2. Conservation Measures'!KS110","v":0},{"$f":"'2. Conservation Measures'!KT110","v":0},{"$f":"'2. Conservation Measures'!KU110","v":0},{"$f":"'2. Conservation Measures'!KV110","v":0},{"$f":"'2. Conservation Measures'!KW110","v":0},{"$f":"'2. Conservation Measures'!KX110","v":0},{"$f":"'2. Conservation Measures'!KY110","v":0},{"$f":"'2. Conservation Measures'!KZ110","v":0},{"$f":"'2. Conservation Measures'!LA110","v":0},{"$f":"'2. Conservation Measures'!LB110","v":0},{"$f":"'2. Conservation Measures'!LC110","v":0},{"$f":"'2. Conservation Measures'!LD110","v":0},{"$f":"'2. Conservation Measures'!LE110","v":0},{"$f":"'2. Conservation Measures'!LF110","v":0},{"$f":"'2. Conservation Measures'!LG110","v":0},{"$f":"'2. Conservation Measures'!LH110","v":0},{"$f":"'2. Conservation Measures'!LI110","v":0},{"$f":"'2. Conservation Measures'!LJ110","v":0},{"$f":"'2. Conservation Measures'!LK110","v":0},{"$f":"'2. Conservation Measures'!LL110","v":0},{"$f":"'2. Conservation Measures'!LM110","v":0},{"$f":"'2. Conservation Measures'!LN110","v":0},{"$f":"'2. Conservation Measures'!LO110","v":0},{"$f":"'2. Conservation Measures'!LP110","v":0},{"$f":"'2. Conservation Measures'!LQ110","v":0},{"$f":"'2. Conservation Measures'!LR110","v":0},{"$f":"'2. Conservation Measures'!LS110","v":0},{"$f":"'2. Conservation Measures'!LT110","v":0},{"$f":"'2. Conservation Measures'!LU110","v":0},{"$f":"'2. Conservation Measures'!LV110","v":0},{"$f":"'2. Conservation Measures'!LW110","v":0},{"$f":"'2. Conservation Measures'!LX110","v":0},{"$f":"'2. Conservation Measures'!LY110","v":0},{"$f":"'2. Conservation Measures'!LZ110","v":0},{"$f":"'2. Conservation Measures'!MA110","v":0},{"$f":"'2. Conservation Measures'!MB110","v":0},{"$f":"'2. Conservation Measures'!MC110","v":0},{"$f":"'2. Conservation Measures'!MD110","v":0},{"$f":"'2. Conservation Measures'!ME110","v":0},{"$f":"'2. Conservation Measures'!MF110","v":0},{"$f":"'2. Conservation Measures'!MG110","v":0},{"$f":"'2. Conservation Measures'!MH110","v":0},{"$f":"'2. Conservation Measures'!MI110","v":0},{"$f":"'2. Conservation Measures'!MJ110","v":0},{"$f":"'2. Conservation Measures'!MK110","v":0},{"$f":"'2. Conservation Measures'!ML110","v":0},{"$f":"'2. Conservation Measures'!MM110","v":0},{"$f":"'2. Conservation Measures'!MN110","v":0},null,{"$f":"'2. Conservation Measures'!EP110","v":0},{"$f":"'2. Conservation Measures'!EQ110","v":0},{"$f":"'2. Conservation Measures'!ER110","v":0},{"$f":"'2. Conservation Measures'!ES110","v":0},{"$f":"'2. Conservation Measures'!ET110","v":0},{"$f":"'2. Conservation Measures'!EU110","v":0},{"$f":"'2. Conservation Measures'!EV110","v":0},{"$f":"'2. Conservation Measures'!EW110","v":0},{"$f":"'2. Conservation Measures'!EX110","v":0},{"$f":"'2. Conservation Measures'!EY110","v":0},{"$f":"'2. Conservation Measures'!EZ110","v":0},{"$f":"'2. Conservation Measures'!FA110","v":0},{"$f":"'2. Conservation Measures'!FB110","v":0},{"$f":"'2. Conservation Measures'!FC110","v":0},{"$f":"'2. Conservation Measures'!FD110","v":0},{"$f":"'2. Conservation Measures'!FE110","v":0},{"$f":"'2. Conservation Measures'!FF110","v":0},{"$f":"'2. Conservation Measures'!FG110","v":0},{"$f":"'2. Conservation Measures'!FH110","v":0},{"$f":"'2. Conservation Measures'!FI110","v":0},{"$f":"'2. Conservation Measures'!FJ110","v":0},{"$f":"'2. Conservation Measures'!FK110","v":0},{"$f":"'2. Conservation Measures'!FL110","v":0},{"$f":"'2. Conservation Measures'!FM110","v":0},{"$f":"'2. Conservation Measures'!FN110","v":0},{"$f":"'2. Conservation Measures'!FO110","v":0},{"$f":"'2. Conservation Measures'!FP110","v":0},{"$f":"'2. Conservation Measures'!FQ110","v":0},{"$f":"'2. Conservation Measures'!FR110","v":0},{"$f":"'2. Conservation Measures'!FS110","v":0},{"$f":"'2. Conservation Measures'!FT110","v":0},{"$f":"'2. Conservation Measures'!FU110","v":0},{"$f":"'2. Conservation Measures'!FV110","v":0},{"$f":"'2. Conservation Measures'!FW110","v":0},{"$f":"'2. Conservation Measures'!FX110","v":0},{"$f":"'2. Conservation Measures'!FY110","v":0},{"$f":"'2. Conservation Measures'!FZ110","v":0},{"$f":"'2. Conservation Measures'!GA110","v":0},{"$f":"'2. Conservation Measures'!GB110","v":0},{"$f":"'2. Conservation Measures'!GC110","v":0},{"$f":"'2. Conservation Measures'!GD110","v":0},{"$f":"'2. Conservation Measures'!GE110","v":0},{"$f":"'2. Conservation Measures'!GF110","v":0},{"$f":"'2. Conservation Measures'!GG110","v":0},{"$f":"'2. Conservation Measures'!GH110","v":0},{"$f":"'2. Conservation Measures'!GI110","v":0},{"$f":"'2. Conservation Measures'!GJ110","v":0},{"$f":"'2. Conservation Measures'!GK110","v":0},{"$f":"'2. Conservation Measures'!GL110","v":0},{"$f":"'2. Conservation Measures'!GM110","v":0},{"$f":"'2. Conservation Measures'!GN110","v":0},null,{"$f":"'2. Conservation Measures'!GP110","v":0},{"$f":"'2. Conservation Measures'!GQ110","v":0},{"$f":"'2. Conservation Measures'!GR110","v":0},{"$f":"'2. Conservation Measures'!GS110","v":0},{"$f":"'2. Conservation Measures'!GT110","v":0},{"$f":"'2. Conservation Measures'!GU110","v":0},{"$f":"'2. Conservation Measures'!GV110","v":0},{"$f":"'2. Conservation Measures'!GW110","v":0},{"$f":"'2. Conservation Measures'!GX110","v":0},{"$f":"'2. Conservation Measures'!GY110","v":0},{"$f":"'2. Conservation Measures'!GZ110","v":0},{"$f":"'2. Conservation Measures'!HA110","v":0},{"$f":"'2. Conservation Measures'!HB110","v":0},{"$f":"'2. Conservation Measures'!HC110","v":0},{"$f":"'2. Conservation Measures'!HD110","v":0},{"$f":"'2. Conservation Measures'!HE110","v":0},{"$f":"'2. Conservation Measures'!HF110","v":0},{"$f":"'2. Conservation Measures'!HG110","v":0},{"$f":"'2. Conservation Measures'!HH110","v":0},{"$f":"'2. Conservation Measures'!HI110","v":0},{"$f":"'2. Conservation Measures'!HJ110","v":0},{"$f":"'2. Conservation Measures'!HK110","v":0},{"$f":"'2. Conservation Measures'!HL110","v":0},{"$f":"'2. Conservation Measures'!HM110","v":0},{"$f":"'2. Conservation Measures'!HN110","v":0},{"$f":"'2. Conservation Measures'!HO110","v":0},{"$f":"'2. Conservation Measures'!HP110","v":0},{"$f":"'2. Conservation Measures'!HQ110","v":0},{"$f":"'2. Conservation Measures'!HR110","v":0},{"$f":"'2. Conservation Measures'!HS110","v":0},{"$f":"'2. Conservation Measures'!HT110","v":0},{"$f":"'2. Conservation Measures'!HU110","v":0},{"$f":"'2. Conservation Measures'!HV110","v":0},{"$f":"'2. Conservation Measures'!HW110","v":0},{"$f":"'2. Conservation Measures'!HX110","v":0},{"$f":"'2. Conservation Measures'!HY110","v":0},{"$f":"'2. Conservation Measures'!HZ110","v":0},{"$f":"'2. Conservation Measures'!IA110","v":0},{"$f":"'2. Conservation Measures'!IB110","v":0},{"$f":"'2. Conservation Measures'!IC110","v":0},{"$f":"'2. Conservation Measures'!ID110","v":0},{"$f":"'2. Conservation Measures'!IE110","v":0},{"$f":"'2. Conservation Measures'!IF110","v":0},{"$f":"'2. Conservation Measures'!IG110","v":0},{"$f":"'2. Conservation Measures'!IH110","v":0},{"$f":"'2. Conservation Measures'!II110","v":0},{"$f":"'2. Conservation Measures'!IJ110","v":0},{"$f":"'2. Conservation Measures'!IK110","v":0},{"$f":"'2. Conservation Measures'!IL110","v":0},{"$f":"'2. Conservation Measures'!IM110","v":0},{"$f":"'2. Conservation Measures'!IN110","v":0},null,{"$f":"'2. Conservation Measures'!IP110","v":0},{"$f":"'2. Conservation Measures'!IQ110","v":0},{"$f":"'2. Conservation Measures'!IR110","v":0},{"$f":"'2. Conservation Measures'!IS110","v":0},{"$f":"'2. Conservation Measures'!IT110","v":0},{"$f":"'2. Conservation Measures'!IU110","v":0},{"$f":"'2. Conservation Measures'!IV110","v":0},{"$f":"'2. Conservation Measures'!IW110","v":0},{"$f":"'2. Conservation Measures'!IX110","v":0},{"$f":"'2. Conservation Measures'!IY110","v":0},{"$f":"'2. Conservation Measures'!IZ110","v":0},{"$f":"'2. Conservation Measures'!JA110","v":0},{"$f":"'2. Conservation Measures'!JB110","v":0},{"$f":"'2. Conservation Measures'!JC110","v":0},{"$f":"'2. Conservation Measures'!JD110","v":0},{"$f":"'2. Conservation Measures'!JE110","v":0},{"$f":"'2. Conservation Measures'!JF110","v":0},{"$f":"'2. Conservation Measures'!JG110","v":0},{"$f":"'2. Conservation Measures'!JH110","v":0},{"$f":"'2. Conservation Measures'!JI110","v":0},{"$f":"'2. Conservation Measures'!JJ110","v":0},{"$f":"'2. Conservation Measures'!JK110","v":0},{"$f":"'2. Conservation Measures'!JL110","v":0},{"$f":"'2. Conservation Measures'!JM110","v":0},{"$f":"'2. Conservation Measures'!JN110","v":0},{"$f":"'2. Conservation Measures'!JO110","v":0},{"$f":"'2. Conservation Measures'!JP110","v":0},{"$f":"'2. Conservation Measures'!JQ110","v":0},{"$f":"'2. Conservation Measures'!JR110","v":0},{"$f":"'2. Conservation Measures'!JS110","v":0},{"$f":"'2. Conservation Measures'!JT110","v":0},{"$f":"'2. Conservation Measures'!JU110","v":0},{"$f":"'2. Conservation Measures'!JV110","v":0},{"$f":"'2. Conservation Measures'!JW110","v":0},{"$f":"'2. Conservation Measures'!JX110","v":0},{"$f":"'2. Conservation Measures'!JY110","v":0},{"$f":"'2. Conservation Measures'!JZ110","v":0},{"$f":"'2. Conservation Measures'!KA110","v":0},{"$f":"'2. Conservation Measures'!KB110","v":0},{"$f":"'2. Conservation Measures'!KC110","v":0},{"$f":"'2. Conservation Measures'!KD110","v":0},{"$f":"'2. Conservation Measures'!KE110","v":0},{"$f":"'2. Conservation Measures'!KF110","v":0},{"$f":"'2. Conservation Measures'!KG110","v":0},{"$f":"'2. Conservation Measures'!KH110","v":0},{"$f":"'2. Conservation Measures'!KI110","v":0},{"$f":"'2. Conservation Measures'!KJ110","v":0},{"$f":"'2. Conservation Measures'!KK110","v":0},{"$f":"'2. Conservation Measures'!KL110","v":0},{"$f":"'2. Conservation Measures'!KM110","v":0},{"$f":"'2. Conservation Measures'!KN110","v":0}]
[null,{"$f":"'2. Conservation Measures'!B111","v":"USR-ICI-04"},{"$f":"'2. Conservation Measures'!C111","v":0},{"$f":"'2. Conservation Measures'!D111","v":"N"},null,{"$f":"'2. Conservation Measures'!AA111","v":0},null,{"$f":"'2. Conservation Measures'!AO111","v":0},{"$f":"'2. Conservation Measures'!AP111","v":0},{"$f":"'2. Conservation Measures'!AQ111","v":0},{"$f":"'2. Conservation Measures'!AR111","v":0},{"$f":"'2. Conservation Measures'!AS111","v":0},{"$f":"'2. Conservation Measures'!AT111","v":0},{"$f":"'2. Conservation Measures'!AU111","v":0},{"$f":"'2. Conservation Measures'!AV111","v":0},{"$f":"'2. Conservation Measures'!AW111","v":0},{"$f":"'2. Conservation Measures'!AX111","v":0},{"$f":"'2. Conservation Measures'!AY111","v":0},{"$f":"'2. Conservation Measures'!AZ111","v":0},{"$f":"'2. Conservation Measures'!BA111","v":0},{"$f":"'2. Conservation Measures'!BB111","v":0},{"$f":"'2. Conservation Measures'!BC111","v":0},{"$f":"'2. Conservation Measures'!BD111","v":0},{"$f":"'2. Conservation Measures'!BE111","v":0},{"$f":"'2. Conservation Measures'!BF111","v":0},{"$f":"'2. Conservation Measures'!BG111","v":0},{"$f":"'2. Conservation Measures'!BH111","v":0},{"$f":"'2. Conservation Measures'!BI111","v":0},{"$f":"'2. Conservation Measures'!BJ111","v":0},{"$f":"'2. Conservation Measures'!BK111","v":0},{"$f":"'2. Conservation Measures'!BL111","v":0},{"$f":"'2. Conservation Measures'!BM111","v":0},{"$f":"'2. Conservation Measures'!BN111","v":0},{"$f":"'2. Conservation Measures'!BO111","v":0},{"$f":"'2. Conservation Measures'!BP111","v":0},{"$f":"'2. Conservation Measures'!BQ111","v":0},{"$f":"'2. Conservation Measures'!BR111","v":0},{"$f":"'2. Conservation Measures'!BS111","v":0},{"$f":"'2. Conservation Measures'!BT111","v":0},{"$f":"'2. Conservation Measures'!BU111","v":0},{"$f":"'2. Conservation Measures'!BV111","v":0},{"$f":"'2. Conservation Measures'!BW111","v":0},{"$f":"'2. Conservation Measures'!BX111","v":0},{"$f":"'2. Conservation Measures'!BY111","v":0},{"$f":"'2. Conservation Measures'!BZ111","v":0},{"$f":"'2. Conservation Measures'!CA111","v":0},{"$f":"'2. Conservation Measures'!CB111","v":0},{"$f":"'2. Conservation Measures'!CC111","v":0},{"$f":"'2. Conservation Measures'!CD111","v":0},{"$f":"'2. Conservation Measures'!CE111","v":0},{"$f":"'2. Conservation Measures'!CF111","v":0},{"$f":"'2. Conservation Measures'!CG111","v":0},{"$f":"'2. Conservation Measures'!CH111","v":0},{"$f":"'2. Conservation Measures'!CI111","v":0},{"$f":"'2. Conservation Measures'!CJ111","v":0},{"$f":"'2. Conservation Measures'!CK111","v":0},{"$f":"'2. Conservation Measures'!CL111","v":0},{"$f":"'2. Conservation Measures'!CM111","v":0},null,{"$f":"'2. Conservation Measures'!CO111","v":0},{"$f":"'2. Conservation Measures'!CP111","v":0},{"$f":"'2. Conservation Measures'!CQ111","v":0},{"$f":"'2. Conservation Measures'!CR111","v":0},{"$f":"'2. Conservation Measures'!CS111","v":0},{"$f":"'2. Conservation Measures'!CT111","v":0},{"$f":"'2. Conservation Measures'!CU111","v":0},{"$f":"'2. Conservation Measures'!CV111","v":0},{"$f":"'2. Conservation Measures'!CW111","v":0},{"$f":"'2. Conservation Measures'!CX111","v":0},{"$f":"'2. Conservation Measures'!CY111","v":0},{"$f":"'2. Conservation Measures'!CZ111","v":0},{"$f":"'2. Conservation Measures'!DA111","v":0},{"$f":"'2. Conservation Measures'!DB111","v":0},{"$f":"'2. Conservation Measures'!DC111","v":0},{"$f":"'2. Conservation Measures'!DD111","v":0},{"$f":"'2. Conservation Measures'!DE111","v":0},{"$f":"'2. Conservation Measures'!DF111","v":0},{"$f":"'2. Conservation Measures'!DG111","v":0},{"$f":"'2. Conservation Measures'!DH111","v":0},{"$f":"'2. Conservation Measures'!DI111","v":0},{"$f":"'2. Conservation Measures'!DJ111","v":0},{"$f":"'2. Conservation Measures'!DK111","v":0},{"$f":"'2. Conservation Measures'!DL111","v":0},{"$f":"'2. Conservation Measures'!DM111","v":0},{"$f":"'2. Conservation Measures'!DN111","v":0},{"$f":"'2. Conservation Measures'!DO111","v":0},{"$f":"'2. Conservation Measures'!DP111","v":0},{"$f":"'2. Conservation Measures'!DQ111","v":0},{"$f":"'2. Conservation Measures'!DR111","v":0},{"$f":"'2. Conservation Measures'!DS111","v":0},{"$f":"'2. Conservation Measures'!DT111","v":0},{"$f":"'2. Conservation Measures'!DU111","v":0},{"$f":"'2. Conservation Measures'!DV111","v":0},{"$f":"'2. Conservation Measures'!DW111","v":0},{"$f":"'2. Conservation Measures'!DX111","v":0},{"$f":"'2. Conservation Measures'!DY111","v":0},{"$f":"'2. Conservation Measures'!DZ111","v":0},{"$f":"'2. Conservation Measures'!EA111","v":0},{"$f":"'2. Conservation Measures'!EB111","v":0},{"$f":"'2. Conservation Measures'!EC111","v":0},{"$f":"'2. Conservation Measures'!ED111","v":0},{"$f":"'2. Conservation Measures'!EE111","v":0},{"$f":"'2. Conservation Measures'!EF111","v":0},{"$f":"'2. Conservation Measures'!EG111","v":0},{"$f":"'2. Conservation Measures'!EH111","v":0},{"$f":"'2. Conservation Measures'!EI111","v":0},{"$f":"'2. Conservation Measures'!EJ111","v":0},{"$f":"'2. Conservation Measures'!EK111","v":0},{"$f":"'2. Conservation Measures'!EL111","v":0},{"$f":"'2. Conservation Measures'!EM111","v":0},null,{"$f":"'2. Conservation Measures'!KP111","v":0},{"$f":"'2. Conservation Measures'!KQ111","v":0},{"$f":"'2. Conservation Measures'!KR111","v":0},{"$f":"'2. Conservation Measures'!KS111","v":0},{"$f":"'2. Conservation Measures'!KT111","v":0},{"$f":"'2. Conservation Measures'!KU111","v":0},{"$f":"'2. Conservation Measures'!KV111","v":0},{"$f":"'2. Conservation Measures'!KW111","v":0},{"$f":"'2. Conservation Measures'!KX111","v":0},{"$f":"'2. Conservation Measures'!KY111","v":0},{"$f":"'2. Conservation Measures'!KZ111","v":0},{"$f":"'2. Conservation Measures'!LA111","v":0},{"$f":"'2. Conservation Measures'!LB111","v":0},{"$f":"'2. Conservation Measures'!LC111","v":0},{"$f":"'2. Conservation Measures'!LD111","v":0},{"$f":"'2. Conservation Measures'!LE111","v":0},{"$f":"'2. Conservation Measures'!LF111","v":0},{"$f":"'2. Conservation Measures'!LG111","v":0},{"$f":"'2. Conservation Measures'!LH111","v":0},{"$f":"'2. Conservation Measures'!LI111","v":0},{"$f":"'2. Conservation Measures'!LJ111","v":0},{"$f":"'2. Conservation Measures'!LK111","v":0},{"$f":"'2. Conservation Measures'!LL111","v":0},{"$f":"'2. Conservation Measures'!LM111","v":0},{"$f":"'2. Conservation Measures'!LN111","v":0},{"$f":"'2. Conservation Measures'!LO111","v":0},{"$f":"'2. Conservation Measures'!LP111","v":0},{"$f":"'2. Conservation Measures'!LQ111","v":0},{"$f":"'2. Conservation Measures'!LR111","v":0},{"$f":"'2. Conservation Measures'!LS111","v":0},{"$f":"'2. Conservation Measures'!LT111","v":0},{"$f":"'2. Conservation Measures'!LU111","v":0},{"$f":"'2. Conservation Measures'!LV111","v":0},{"$f":"'2. Conservation Measures'!LW111","v":0},{"$f":"'2. Conservation Measures'!LX111","v":0},{"$f":"'2. Conservation Measures'!LY111","v":0},{"$f":"'2. Conservation Measures'!LZ111","v":0},{"$f":"'2. Conservation Measures'!MA111","v":0},{"$f":"'2. Conservation Measures'!MB111","v":0},{"$f":"'2. Conservation Measures'!MC111","v":0},{"$f":"'2. Conservation Measures'!MD111","v":0},{"$f":"'2. Conservation Measures'!ME111","v":0},{"$f":"'2. Conservation Measures'!MF111","v":0},{"$f":"'2. Conservation Measures'!MG111","v":0},{"$f":"'2. Conservation Measures'!MH111","v":0},{"$f":"'2. Conservation Measures'!MI111","v":0},{"$f":"'2. Conservation Measures'!MJ111","v":0},{"$f":"'2. Conservation Measures'!MK111","v":0},{"$f":"'2. Conservation Measures'!ML111","v":0},{"$f":"'2. Conservation Measures'!MM111","v":0},{"$f":"'2. Conservation Measures'!MN111","v":0},null,{"$f":"'2. Conservation Measures'!EP111","v":0},{"$f":"'2. Conservation Measures'!EQ111","v":0},{"$f":"'2. Conservation Measures'!ER111","v":0},{"$f":"'2. Conservation Measures'!ES111","v":0},{"$f":"'2. Conservation Measures'!ET111","v":0},{"$f":"'2. Conservation Measures'!EU111","v":0},{"$f":"'2. Conservation Measures'!EV111","v":0},{"$f":"'2. Conservation Measures'!EW111","v":0},{"$f":"'2. Conservation Measures'!EX111","v":0},{"$f":"'2. Conservation Measures'!EY111","v":0},{"$f":"'2. Conservation Measures'!EZ111","v":0},{"$f":"'2. Conservation Measures'!FA111","v":0},{"$f":"'2. Conservation Measures'!FB111","v":0},{"$f":"'2. Conservation Measures'!FC111","v":0},{"$f":"'2. Conservation Measures'!FD111","v":0},{"$f":"'2. Conservation Measures'!FE111","v":0},{"$f":"'2. Conservation Measures'!FF111","v":0},{"$f":"'2. Conservation Measures'!FG111","v":0},{"$f":"'2. Conservation Measures'!FH111","v":0},{"$f":"'2. Conservation Measures'!FI111","v":0},{"$f":"'2. Conservation Measures'!FJ111","v":0},{"$f":"'2. Conservation Measures'!FK111","v":0},{"$f":"'2. Conservation Measures'!FL111","v":0},{"$f":"'2. Conservation Measures'!FM111","v":0},{"$f":"'2. Conservation Measures'!FN111","v":0},{"$f":"'2. Conservation Measures'!FO111","v":0},{"$f":"'2. Conservation Measures'!FP111","v":0},{"$f":"'2. Conservation Measures'!FQ111","v":0},{"$f":"'2. Conservation Measures'!FR111","v":0},{"$f":"'2. Conservation Measures'!FS111","v":0},{"$f":"'2. Conservation Measures'!FT111","v":0},{"$f":"'2. Conservation Measures'!FU111","v":0},{"$f":"'2. Conservation Measures'!FV111","v":0},{"$f":"'2. Conservation Measures'!FW111","v":0},{"$f":"'2. Conservation Measures'!FX111","v":0},{"$f":"'2. Conservation Measures'!FY111","v":0},{"$f":"'2. Conservation Measures'!FZ111","v":0},{"$f":"'2. Conservation Measures'!GA111","v":0},{"$f":"'2. Conservation Measures'!GB111","v":0},{"$f":"'2. Conservation Measures'!GC111","v":0},{"$f":"'2. Conservation Measures'!GD111","v":0},{"$f":"'2. Conservation Measures'!GE111","v":0},{"$f":"'2. Conservation Measures'!GF111","v":0},{"$f":"'2. Conservation Measures'!GG111","v":0},{"$f":"'2. Conservation Measures'!GH111","v":0},{"$f":"'2. Conservation Measures'!GI111","v":0},{"$f":"'2. Conservation Measures'!GJ111","v":0},{"$f":"'2. Conservation Measures'!GK111","v":0},{"$f":"'2. Conservation Measures'!GL111","v":0},{"$f":"'2. Conservation Measures'!GM111","v":0},{"$f":"'2. Conservation Measures'!GN111","v":0},null,{"$f":"'2. Conservation Measures'!GP111","v":0},{"$f":"'2. Conservation Measures'!GQ111","v":0},{"$f":"'2. Conservation Measures'!GR111","v":0},{"$f":"'2. Conservation Measures'!GS111","v":0},{"$f":"'2. Conservation Measures'!GT111","v":0},{"$f":"'2. Conservation Measures'!GU111","v":0},{"$f":"'2. Conservation Measures'!GV111","v":0},{"$f":"'2. Conservation Measures'!GW111","v":0},{"$f":"'2. Conservation Measures'!GX111","v":0},{"$f":"'2. Conservation Measures'!GY111","v":0},{"$f":"'2. Conservation Measures'!GZ111","v":0},{"$f":"'2. Conservation Measures'!HA111","v":0},{"$f":"'2. Conservation Measures'!HB111","v":0},{"$f":"'2. Conservation Measures'!HC111","v":0},{"$f":"'2. Conservation Measures'!HD111","v":0},{"$f":"'2. Conservation Measures'!HE111","v":0},{"$f":"'2. Conservation Measures'!HF111","v":0},{"$f":"'2. Conservation Measures'!HG111","v":0},{"$f":"'2. Conservation Measures'!HH111","v":0},{"$f":"'2. Conservation Measures'!HI111","v":0},{"$f":"'2. Conservation Measures'!HJ111","v":0},{"$f":"'2. Conservation Measures'!HK111","v":0},{"$f":"'2. Conservation Measures'!HL111","v":0},{"$f":"'2. Conservation Measures'!HM111","v":0},{"$f":"'2. Conservation Measures'!HN111","v":0},{"$f":"'2. Conservation Measures'!HO111","v":0},{"$f":"'2. Conservation Measures'!HP111","v":0},{"$f":"'2. Conservation Measures'!HQ111","v":0},{"$f":"'2. Conservation Measures'!HR111","v":0},{"$f":"'2. Conservation Measures'!HS111","v":0},{"$f":"'2. Conservation Measures'!HT111","v":0},{"$f":"'2. Conservation Measures'!HU111","v":0},{"$f":"'2. Conservation Measures'!HV111","v":0},{"$f":"'2. Conservation Measures'!HW111","v":0},{"$f":"'2. Conservation Measures'!HX111","v":0},{"$f":"'2. Conservation Measures'!HY111","v":0},{"$f":"'2. Conservation Measures'!HZ111","v":0},{"$f":"'2. Conservation Measures'!IA111","v":0},{"$f":"'2. Conservation Measures'!IB111","v":0},{"$f":"'2. Conservation Measures'!IC111","v":0},{"$f":"'2. Conservation Measures'!ID111","v":0},{"$f":"'2. Conservation Measures'!IE111","v":0},{"$f":"'2. Conservation Measures'!IF111","v":0},{"$f":"'2. Conservation Measures'!IG111","v":0},{"$f":"'2. Conservation Measures'!IH111","v":0},{"$f":"'2. Conservation Measures'!II111","v":0},{"$f":"'2. Conservation Measures'!IJ111","v":0},{"$f":"'2. Conservation Measures'!IK111","v":0},{"$f":"'2. Conservation Measures'!IL111","v":0},{"$f":"'2. Conservation Measures'!IM111","v":0},{"$f":"'2. Conservation Measures'!IN111","v":0},null,{"$f":"'2. Conservation Measures'!IP111","v":0},{"$f":"'2. Conservation Measures'!IQ111","v":0},{"$f":"'2. Conservation Measures'!IR111","v":0},{"$f":"'2. Conservation Measures'!IS111","v":0},{"$f":"'2. Conservation Measures'!IT111","v":0},{"$f":"'2. Conservation Measures'!IU111","v":0},{"$f":"'2. Conservation Measures'!IV111","v":0},{"$f":"'2. Conservation Measures'!IW111","v":0},{"$f":"'2. Conservation Measures'!IX111","v":0},{"$f":"'2. Conservation Measures'!IY111","v":0},{"$f":"'2. Conservation Measures'!IZ111","v":0},{"$f":"'2. Conservation Measures'!JA111","v":0},{"$f":"'2. Conservation Measures'!JB111","v":0},{"$f":"'2. Conservation Measures'!JC111","v":0},{"$f":"'2. Conservation Measures'!JD111","v":0},{"$f":"'2. Conservation Measures'!JE111","v":0},{"$f":"'2. Conservation Measures'!JF111","v":0},{"$f":"'2. Conservation Measures'!JG111","v":0},{"$f":"'2. Conservation Measures'!JH111","v":0},{"$f":"'2. Conservation Measures'!JI111","v":0},{"$f":"'2. Conservation Measures'!JJ111","v":0},{"$f":"'2. Conservation Measures'!JK111","v":0},{"$f":"'2. Conservation Measures'!JL111","v":0},{"$f":"'2. Conservation Measures'!JM111","v":0},{"$f":"'2. Conservation Measures'!JN111","v":0},{"$f":"'2. Conservation Measures'!JO111","v":0},{"$f":"'2. Conservation Measures'!JP111","v":0},{"$f":"'2. Conservation Measures'!JQ111","v":0},{"$f":"'2. Conservation Measures'!JR111","v":0},{"$f":"'2. Conservation Measures'!JS111","v":0},{"$f":"'2. Conservation Measures'!JT111","v":0},{"$f":"'2. Conservation Measures'!JU111","v":0},{"$f":"'2. Conservation Measures'!JV111","v":0},{"$f":"'2. Conservation Measures'!JW111","v":0},{"$f":"'2. Conservation Measures'!JX111","v":0},{"$f":"'2. Conservation Measures'!JY111","v":0},{"$f":"'2. Conservation Measures'!JZ111","v":0},{"$f":"'2. Conservation Measures'!KA111","v":0},{"$f":"'2. Conservation Measures'!KB111","v":0},{"$f":"'2. Conservation Measures'!KC111","v":0},{"$f":"'2. Conservation Measures'!KD111","v":0},{"$f":"'2. Conservation Measures'!KE111","v":0},{"$f":"'2. Conservation Measures'!KF111","v":0},{"$f":"'2. Conservation Measures'!KG111","v":0},{"$f":"'2. Conservation Measures'!KH111","v":0},{"$f":"'2. Conservation Measures'!KI111","v":0},{"$f":"'2. Conservation Measures'!KJ111","v":0},{"$f":"'2. Conservation Measures'!KK111","v":0},{"$f":"'2. Conservation Measures'!KL111","v":0},{"$f":"'2. Conservation Measures'!KM111","v":0},{"$f":"'2. Conservation Measures'!KN111","v":0}]
[null,{"$f":"'2. Conservation Measures'!B112","v":"USR-ICI-05"},{"$f":"'2. Conservation Measures'!C112","v":0},{"$f":"'2. Conservation Measures'!D112","v":"N"},null,{"$f":"'2. Conservation Measures'!AA112","v":0},null,{"$f":"'2. Conservation Measures'!AO112","v":0},{"$f":"'2. Conservation Measures'!AP112","v":0},{"$f":"'2. Conservation Measures'!AQ112","v":0},{"$f":"'2. Conservation Measures'!AR112","v":0},{"$f":"'2. Conservation Measures'!AS112","v":0},{"$f":"'2. Conservation Measures'!AT112","v":0},{"$f":"'2. Conservation Measures'!AU112","v":0},{"$f":"'2. Conservation Measures'!AV112","v":0},{"$f":"'2. Conservation Measures'!AW112","v":0},{"$f":"'2. Conservation Measures'!AX112","v":0},{"$f":"'2. Conservation Measures'!AY112","v":0},{"$f":"'2. Conservation Measures'!AZ112","v":0},{"$f":"'2. Conservation Measures'!BA112","v":0},{"$f":"'2. Conservation Measures'!BB112","v":0},{"$f":"'2. Conservation Measures'!BC112","v":0},{"$f":"'2. Conservation Measures'!BD112","v":0},{"$f":"'2. Conservation Measures'!BE112","v":0},{"$f":"'2. Conservation Measures'!BF112","v":0},{"$f":"'2. Conservation Measures'!BG112","v":0},{"$f":"'2. Conservation Measures'!BH112","v":0},{"$f":"'2. Conservation Measures'!BI112","v":0},{"$f":"'2. Conservation Measures'!BJ112","v":0},{"$f":"'2. Conservation Measures'!BK112","v":0},{"$f":"'2. Conservation Measures'!BL112","v":0},{"$f":"'2. Conservation Measures'!BM112","v":0},{"$f":"'2. Conservation Measures'!BN112","v":0},{"$f":"'2. Conservation Measures'!BO112","v":0},{"$f":"'2. Conservation Measures'!BP112","v":0},{"$f":"'2. Conservation Measures'!BQ112","v":0},{"$f":"'2. Conservation Measures'!BR112","v":0},{"$f":"'2. Conservation Measures'!BS112","v":0},{"$f":"'2. Conservation Measures'!BT112","v":0},{"$f":"'2. Conservation Measures'!BU112","v":0},{"$f":"'2. Conservation Measures'!BV112","v":0},{"$f":"'2. Conservation Measures'!BW112","v":0},{"$f":"'2. Conservation Measures'!BX112","v":0},{"$f":"'2. Conservation Measures'!BY112","v":0},{"$f":"'2. Conservation Measures'!BZ112","v":0},{"$f":"'2. Conservation Measures'!CA112","v":0},{"$f":"'2. Conservation Measures'!CB112","v":0},{"$f":"'2. Conservation Measures'!CC112","v":0},{"$f":"'2. Conservation Measures'!CD112","v":0},{"$f":"'2. Conservation Measures'!CE112","v":0},{"$f":"'2. Conservation Measures'!CF112","v":0},{"$f":"'2. Conservation Measures'!CG112","v":0},{"$f":"'2. Conservation Measures'!CH112","v":0},{"$f":"'2. Conservation Measures'!CI112","v":0},{"$f":"'2. Conservation Measures'!CJ112","v":0},{"$f":"'2. Conservation Measures'!CK112","v":0},{"$f":"'2. Conservation Measures'!CL112","v":0},{"$f":"'2. Conservation Measures'!CM112","v":0},null,{"$f":"'2. Conservation Measures'!CO112","v":0},{"$f":"'2. Conservation Measures'!CP112","v":0},{"$f":"'2. Conservation Measures'!CQ112","v":0},{"$f":"'2. Conservation Measures'!CR112","v":0},{"$f":"'2. Conservation Measures'!CS112","v":0},{"$f":"'2. Conservation Measures'!CT112","v":0},{"$f":"'2. Conservation Measures'!CU112","v":0},{"$f":"'2. Conservation Measures'!CV112","v":0},{"$f":"'2. Conservation Measures'!CW112","v":0},{"$f":"'2. Conservation Measures'!CX112","v":0},{"$f":"'2. Conservation Measures'!CY112","v":0},{"$f":"'2. Conservation Measures'!CZ112","v":0},{"$f":"'2. Conservation Measures'!DA112","v":0},{"$f":"'2. Conservation Measures'!DB112","v":0},{"$f":"'2. Conservation Measures'!DC112","v":0},{"$f":"'2. Conservation Measures'!DD112","v":0},{"$f":"'2. Conservation Measures'!DE112","v":0},{"$f":"'2. Conservation Measures'!DF112","v":0},{"$f":"'2. Conservation Measures'!DG112","v":0},{"$f":"'2. Conservation Measures'!DH112","v":0},{"$f":"'2. Conservation Measures'!DI112","v":0},{"$f":"'2. Conservation Measures'!DJ112","v":0},{"$f":"'2. Conservation Measures'!DK112","v":0},{"$f":"'2. Conservation Measures'!DL112","v":0},{"$f":"'2. Conservation Measures'!DM112","v":0},{"$f":"'2. Conservation Measures'!DN112","v":0},{"$f":"'2. Conservation Measures'!DO112","v":0},{"$f":"'2. Conservation Measures'!DP112","v":0},{"$f":"'2. Conservation Measures'!DQ112","v":0},{"$f":"'2. Conservation Measures'!DR112","v":0},{"$f":"'2. Conservation Measures'!DS112","v":0},{"$f":"'2. Conservation Measures'!DT112","v":0},{"$f":"'2. Conservation Measures'!DU112","v":0},{"$f":"'2. Conservation Measures'!DV112","v":0},{"$f":"'2. Conservation Measures'!DW112","v":0},{"$f":"'2. Conservation Measures'!DX112","v":0},{"$f":"'2. Conservation Measures'!DY112","v":0},{"$f":"'2. Conservation Measures'!DZ112","v":0},{"$f":"'2. Conservation Measures'!EA112","v":0},{"$f":"'2. Conservation Measures'!EB112","v":0},{"$f":"'2. Conservation Measures'!EC112","v":0},{"$f":"'2. Conservation Measures'!ED112","v":0},{"$f":"'2. Conservation Measures'!EE112","v":0},{"$f":"'2. Conservation Measures'!EF112","v":0},{"$f":"'2. Conservation Measures'!EG112","v":0},{"$f":"'2. Conservation Measures'!EH112","v":0},{"$f":"'2. Conservation Measures'!EI112","v":0},{"$f":"'2. Conservation Measures'!EJ112","v":0},{"$f":"'2. Conservation Measures'!EK112","v":0},{"$f":"'2. Conservation Measures'!EL112","v":0},{"$f":"'2. Conservation Measures'!EM112","v":0},null,{"$f":"'2. Conservation Measures'!KP112","v":0},{"$f":"'2. Conservation Measures'!KQ112","v":0},{"$f":"'2. Conservation Measures'!KR112","v":0},{"$f":"'2. Conservation Measures'!KS112","v":0},{"$f":"'2. Conservation Measures'!KT112","v":0},{"$f":"'2. Conservation Measures'!KU112","v":0},{"$f":"'2. Conservation Measures'!KV112","v":0},{"$f":"'2. Conservation Measures'!KW112","v":0},{"$f":"'2. Conservation Measures'!KX112","v":0},{"$f":"'2. Conservation Measures'!KY112","v":0},{"$f":"'2. Conservation Measures'!KZ112","v":0},{"$f":"'2. Conservation Measures'!LA112","v":0},{"$f":"'2. Conservation Measures'!LB112","v":0},{"$f":"'2. Conservation Measures'!LC112","v":0},{"$f":"'2. Conservation Measures'!LD112","v":0},{"$f":"'2. Conservation Measures'!LE112","v":0},{"$f":"'2. Conservation Measures'!LF112","v":0},{"$f":"'2. Conservation Measures'!LG112","v":0},{"$f":"'2. Conservation Measures'!LH112","v":0},{"$f":"'2. Conservation Measures'!LI112","v":0},{"$f":"'2. Conservation Measures'!LJ112","v":0},{"$f":"'2. Conservation Measures'!LK112","v":0},{"$f":"'2. Conservation Measures'!LL112","v":0},{"$f":"'2. Conservation Measures'!LM112","v":0},{"$f":"'2. Conservation Measures'!LN112","v":0},{"$f":"'2. Conservation Measures'!LO112","v":0},{"$f":"'2. Conservation Measures'!LP112","v":0},{"$f":"'2. Conservation Measures'!LQ112","v":0},{"$f":"'2. Conservation Measures'!LR112","v":0},{"$f":"'2. Conservation Measures'!LS112","v":0},{"$f":"'2. Conservation Measures'!LT112","v":0},{"$f":"'2. Conservation Measures'!LU112","v":0},{"$f":"'2. Conservation Measures'!LV112","v":0},{"$f":"'2. Conservation Measures'!LW112","v":0},{"$f":"'2. Conservation Measures'!LX112","v":0},{"$f":"'2. Conservation Measures'!LY112","v":0},{"$f":"'2. Conservation Measures'!LZ112","v":0},{"$f":"'2. Conservation Measures'!MA112","v":0},{"$f":"'2. Conservation Measures'!MB112","v":0},{"$f":"'2. Conservation Measures'!MC112","v":0},{"$f":"'2. Conservation Measures'!MD112","v":0},{"$f":"'2. Conservation Measures'!ME112","v":0},{"$f":"'2. Conservation Measures'!MF112","v":0},{"$f":"'2. Conservation Measures'!MG112","v":0},{"$f":"'2. Conservation Measures'!MH112","v":0},{"$f":"'2. Conservation Measures'!MI112","v":0},{"$f":"'2. Conservation Measures'!MJ112","v":0},{"$f":"'2. Conservation Measures'!MK112","v":0},{"$f":"'2. Conservation Measures'!ML112","v":0},{"$f":"'2. Conservation Measures'!MM112","v":0},{"$f":"'2. Conservation Measures'!MN112","v":0},null,{"$f":"'2. Conservation Measures'!EP112","v":0},{"$f":"'2. Conservation Measures'!EQ112","v":0},{"$f":"'2. Conservation Measures'!ER112","v":0},{"$f":"'2. Conservation Measures'!ES112","v":0},{"$f":"'2. Conservation Measures'!ET112","v":0},{"$f":"'2. Conservation Measures'!EU112","v":0},{"$f":"'2. Conservation Measures'!EV112","v":0},{"$f":"'2. Conservation Measures'!EW112","v":0},{"$f":"'2. Conservation Measures'!EX112","v":0},{"$f":"'2. Conservation Measures'!EY112","v":0},{"$f":"'2. Conservation Measures'!EZ112","v":0},{"$f":"'2. Conservation Measures'!FA112","v":0},{"$f":"'2. Conservation Measures'!FB112","v":0},{"$f":"'2. Conservation Measures'!FC112","v":0},{"$f":"'2. Conservation Measures'!FD112","v":0},{"$f":"'2. Conservation Measures'!FE112","v":0},{"$f":"'2. Conservation Measures'!FF112","v":0},{"$f":"'2. Conservation Measures'!FG112","v":0},{"$f":"'2. Conservation Measures'!FH112","v":0},{"$f":"'2. Conservation Measures'!FI112","v":0},{"$f":"'2. Conservation Measures'!FJ112","v":0},{"$f":"'2. Conservation Measures'!FK112","v":0},{"$f":"'2. Conservation Measures'!FL112","v":0},{"$f":"'2. Conservation Measures'!FM112","v":0},{"$f":"'2. Conservation Measures'!FN112","v":0},{"$f":"'2. Conservation Measures'!FO112","v":0},{"$f":"'2. Conservation Measures'!FP112","v":0},{"$f":"'2. Conservation Measures'!FQ112","v":0},{"$f":"'2. Conservation Measures'!FR112","v":0},{"$f":"'2. Conservation Measures'!FS112","v":0},{"$f":"'2. Conservation Measures'!FT112","v":0},{"$f":"'2. Conservation Measures'!FU112","v":0},{"$f":"'2. Conservation Measures'!FV112","v":0},{"$f":"'2. Conservation Measures'!FW112","v":0},{"$f":"'2. Conservation Measures'!FX112","v":0},{"$f":"'2. Conservation Measures'!FY112","v":0},{"$f":"'2. Conservation Measures'!FZ112","v":0},{"$f":"'2. Conservation Measures'!GA112","v":0},{"$f":"'2. Conservation Measures'!GB112","v":0},{"$f":"'2. Conservation Measures'!GC112","v":0},{"$f":"'2. Conservation Measures'!GD112","v":0},{"$f":"'2. Conservation Measures'!GE112","v":0},{"$f":"'2. Conservation Measures'!GF112","v":0},{"$f":"'2. Conservation Measures'!GG112","v":0},{"$f":"'2. Conservation Measures'!GH112","v":0},{"$f":"'2. Conservation Measures'!GI112","v":0},{"$f":"'2. Conservation Measures'!GJ112","v":0},{"$f":"'2. Conservation Measures'!GK112","v":0},{"$f":"'2. Conservation Measures'!GL112","v":0},{"$f":"'2. Conservation Measures'!GM112","v":0},{"$f":"'2. Conservation Measures'!GN112","v":0},null,{"$f":"'2. Conservation Measures'!GP112","v":0},{"$f":"'2. Conservation Measures'!GQ112","v":0},{"$f":"'2. Conservation Measures'!GR112","v":0},{"$f":"'2. Conservation Measures'!GS112","v":0},{"$f":"'2. Conservation Measures'!GT112","v":0},{"$f":"'2. Conservation Measures'!GU112","v":0},{"$f":"'2. Conservation Measures'!GV112","v":0},{"$f":"'2. Conservation Measures'!GW112","v":0},{"$f":"'2. Conservation Measures'!GX112","v":0},{"$f":"'2. Conservation Measures'!GY112","v":0},{"$f":"'2. Conservation Measures'!GZ112","v":0},{"$f":"'2. Conservation Measures'!HA112","v":0},{"$f":"'2. Conservation Measures'!HB112","v":0},{"$f":"'2. Conservation Measures'!HC112","v":0},{"$f":"'2. Conservation Measures'!HD112","v":0},{"$f":"'2. Conservation Measures'!HE112","v":0},{"$f":"'2. Conservation Measures'!HF112","v":0},{"$f":"'2. Conservation Measures'!HG112","v":0},{"$f":"'2. Conservation Measures'!HH112","v":0},{"$f":"'2. Conservation Measures'!HI112","v":0},{"$f":"'2. Conservation Measures'!HJ112","v":0},{"$f":"'2. Conservation Measures'!HK112","v":0},{"$f":"'2. Conservation Measures'!HL112","v":0},{"$f":"'2. Conservation Measures'!HM112","v":0},{"$f":"'2. Conservation Measures'!HN112","v":0},{"$f":"'2. Conservation Measures'!HO112","v":0},{"$f":"'2. Conservation Measures'!HP112","v":0},{"$f":"'2. Conservation Measures'!HQ112","v":0},{"$f":"'2. Conservation Measures'!HR112","v":0},{"$f":"'2. Conservation Measures'!HS112","v":0},{"$f":"'2. Conservation Measures'!HT112","v":0},{"$f":"'2. Conservation Measures'!HU112","v":0},{"$f":"'2. Conservation Measures'!HV112","v":0},{"$f":"'2. Conservation Measures'!HW112","v":0},{"$f":"'2. Conservation Measures'!HX112","v":0},{"$f":"'2. Conservation Measures'!HY112","v":0},{"$f":"'2. Conservation Measures'!HZ112","v":0},{"$f":"'2. Conservation Measures'!IA112","v":0},{"$f":"'2. Conservation Measures'!IB112","v":0},{"$f":"'2. Conservation Measures'!IC112","v":0},{"$f":"'2. Conservation Measures'!ID112","v":0},{"$f":"'2. Conservation Measures'!IE112","v":0},{"$f":"'2. Conservation Measures'!IF112","v":0},{"$f":"'2. Conservation Measures'!IG112","v":0},{"$f":"'2. Conservation Measures'!IH112","v":0},{"$f":"'2. Conservation Measures'!II112","v":0},{"$f":"'2. Conservation Measures'!IJ112","v":0},{"$f":"'2. Conservation Measures'!IK112","v":0},{"$f":"'2. Conservation Measures'!IL112","v":0},{"$f":"'2. Conservation Measures'!IM112","v":0},{"$f":"'2. Conservation Measures'!IN112","v":0},null,{"$f":"'2. Conservation Measures'!IP112","v":0},{"$f":"'2. Conservation Measures'!IQ112","v":0},{"$f":"'2. Conservation Measures'!IR112","v":0},{"$f":"'2. Conservation Measures'!IS112","v":0},{"$f":"'2. Conservation Measures'!IT112","v":0},{"$f":"'2. Conservation Measures'!IU112","v":0},{"$f":"'2. Conservation Measures'!IV112","v":0},{"$f":"'2. Conservation Measures'!IW112","v":0},{"$f":"'2. Conservation Measures'!IX112","v":0},{"$f":"'2. Conservation Measures'!IY112","v":0},{"$f":"'2. Conservation Measures'!IZ112","v":0},{"$f":"'2. Conservation Measures'!JA112","v":0},{"$f":"'2. Conservation Measures'!JB112","v":0},{"$f":"'2. Conservation Measures'!JC112","v":0},{"$f":"'2. Conservation Measures'!JD112","v":0},{"$f":"'2. Conservation Measures'!JE112","v":0},{"$f":"'2. Conservation Measures'!JF112","v":0},{"$f":"'2. Conservation Measures'!JG112","v":0},{"$f":"'2. Conservation Measures'!JH112","v":0},{"$f":"'2. Conservation Measures'!JI112","v":0},{"$f":"'2. Conservation Measures'!JJ112","v":0},{"$f":"'2. Conservation Measures'!JK112","v":0},{"$f":"'2. Conservation Measures'!JL112","v":0},{"$f":"'2. Conservation Measures'!JM112","v":0},{"$f":"'2. Conservation Measures'!JN112","v":0},{"$f":"'2. Conservation Measures'!JO112","v":0},{"$f":"'2. Conservation Measures'!JP112","v":0},{"$f":"'2. Conservation Measures'!JQ112","v":0},{"$f":"'2. Conservation Measures'!JR112","v":0},{"$f":"'2. Conservation Measures'!JS112","v":0},{"$f":"'2. Conservation Measures'!JT112","v":0},{"$f":"'2. Conservation Measures'!JU112","v":0},{"$f":"'2. Conservation Measures'!JV112","v":0},{"$f":"'2. Conservation Measures'!JW112","v":0},{"$f":"'2. Conservation Measures'!JX112","v":0},{"$f":"'2. Conservation Measures'!JY112","v":0},{"$f":"'2. Conservation Measures'!JZ112","v":0},{"$f":"'2. Conservation Measures'!KA112","v":0},{"$f":"'2. Conservation Measures'!KB112","v":0},{"$f":"'2. Conservation Measures'!KC112","v":0},{"$f":"'2. Conservation Measures'!KD112","v":0},{"$f":"'2. Conservation Measures'!KE112","v":0},{"$f":"'2. Conservation Measures'!KF112","v":0},{"$f":"'2. Conservation Measures'!KG112","v":0},{"$f":"'2. Conservation Measures'!KH112","v":0},{"$f":"'2. Conservation Measures'!KI112","v":0},{"$f":"'2. Conservation Measures'!KJ112","v":0},{"$f":"'2. Conservation Measures'!KK112","v":0},{"$f":"'2. Conservation Measures'!KL112","v":0},{"$f":"'2. Conservation Measures'!KM112","v":0},{"$f":"'2. Conservation Measures'!KN112","v":0}]
[null,{"$f":"'2. Conservation Measures'!B113","v":"USR-ICI-06"},{"$f":"'2. Conservation Measures'!C113","v":0},{"$f":"'2. Conservation Measures'!D113","v":"N"},null,{"$f":"'2. Conservation Measures'!AA113","v":0},null,{"$f":"'2. Conservation Measures'!AO113","v":0},{"$f":"'2. Conservation Measures'!AP113","v":0},{"$f":"'2. Conservation Measures'!AQ113","v":0},{"$f":"'2. Conservation Measures'!AR113","v":0},{"$f":"'2. Conservation Measures'!AS113","v":0},{"$f":"'2. Conservation Measures'!AT113","v":0},{"$f":"'2. Conservation Measures'!AU113","v":0},{"$f":"'2. Conservation Measures'!AV113","v":0},{"$f":"'2. Conservation Measures'!AW113","v":0},{"$f":"'2. Conservation Measures'!AX113","v":0},{"$f":"'2. Conservation Measures'!AY113","v":0},{"$f":"'2. Conservation Measures'!AZ113","v":0},{"$f":"'2. Conservation Measures'!BA113","v":0},{"$f":"'2. Conservation Measures'!BB113","v":0},{"$f":"'2. Conservation Measures'!BC113","v":0},{"$f":"'2. Conservation Measures'!BD113","v":0},{"$f":"'2. Conservation Measures'!BE113","v":0},{"$f":"'2. Conservation Measures'!BF113","v":0},{"$f":"'2. Conservation Measures'!BG113","v":0},{"$f":"'2. Conservation Measures'!BH113","v":0},{"$f":"'2. Conservation Measures'!BI113","v":0},{"$f":"'2. Conservation Measures'!BJ113","v":0},{"$f":"'2. Conservation Measures'!BK113","v":0},{"$f":"'2. Conservation Measures'!BL113","v":0},{"$f":"'2. Conservation Measures'!BM113","v":0},{"$f":"'2. Conservation Measures'!BN113","v":0},{"$f":"'2. Conservation Measures'!BO113","v":0},{"$f":"'2. Conservation Measures'!BP113","v":0},{"$f":"'2. Conservation Measures'!BQ113","v":0},{"$f":"'2. Conservation Measures'!BR113","v":0},{"$f":"'2. Conservation Measures'!BS113","v":0},{"$f":"'2. Conservation Measures'!BT113","v":0},{"$f":"'2. Conservation Measures'!BU113","v":0},{"$f":"'2. Conservation Measures'!BV113","v":0},{"$f":"'2. Conservation Measures'!BW113","v":0},{"$f":"'2. Conservation Measures'!BX113","v":0},{"$f":"'2. Conservation Measures'!BY113","v":0},{"$f":"'2. Conservation Measures'!BZ113","v":0},{"$f":"'2. Conservation Measures'!CA113","v":0},{"$f":"'2. Conservation Measures'!CB113","v":0},{"$f":"'2. Conservation Measures'!CC113","v":0},{"$f":"'2. Conservation Measures'!CD113","v":0},{"$f":"'2. Conservation Measures'!CE113","v":0},{"$f":"'2. Conservation Measures'!CF113","v":0},{"$f":"'2. Conservation Measures'!CG113","v":0},{"$f":"'2. Conservation Measures'!CH113","v":0},{"$f":"'2. Conservation Measures'!CI113","v":0},{"$f":"'2. Conservation Measures'!CJ113","v":0},{"$f":"'2. Conservation Measures'!CK113","v":0},{"$f":"'2. Conservation Measures'!CL113","v":0},{"$f":"'2. Conservation Measures'!CM113","v":0},null,{"$f":"'2. Conservation Measures'!CO113","v":0},{"$f":"'2. Conservation Measures'!CP113","v":0},{"$f":"'2. Conservation Measures'!CQ113","v":0},{"$f":"'2. Conservation Measures'!CR113","v":0},{"$f":"'2. Conservation Measures'!CS113","v":0},{"$f":"'2. Conservation Measures'!CT113","v":0},{"$f":"'2. Conservation Measures'!CU113","v":0},{"$f":"'2. Conservation Measures'!CV113","v":0},{"$f":"'2. Conservation Measures'!CW113","v":0},{"$f":"'2. Conservation Measures'!CX113","v":0},{"$f":"'2. Conservation Measures'!CY113","v":0},{"$f":"'2. Conservation Measures'!CZ113","v":0},{"$f":"'2. Conservation Measures'!DA113","v":0},{"$f":"'2. Conservation Measures'!DB113","v":0},{"$f":"'2. Conservation Measures'!DC113","v":0},{"$f":"'2. Conservation Measures'!DD113","v":0},{"$f":"'2. Conservation Measures'!DE113","v":0},{"$f":"'2. Conservation Measures'!DF113","v":0},{"$f":"'2. Conservation Measures'!DG113","v":0},{"$f":"'2. Conservation Measures'!DH113","v":0},{"$f":"'2. Conservation Measures'!DI113","v":0},{"$f":"'2. Conservation Measures'!DJ113","v":0},{"$f":"'2. Conservation Measures'!DK113","v":0},{"$f":"'2. Conservation Measures'!DL113","v":0},{"$f":"'2. Conservation Measures'!DM113","v":0},{"$f":"'2. Conservation Measures'!DN113","v":0},{"$f":"'2. Conservation Measures'!DO113","v":0},{"$f":"'2. Conservation Measures'!DP113","v":0},{"$f":"'2. Conservation Measures'!DQ113","v":0},{"$f":"'2. Conservation Measures'!DR113","v":0},{"$f":"'2. Conservation Measures'!DS113","v":0},{"$f":"'2. Conservation Measures'!DT113","v":0},{"$f":"'2. Conservation Measures'!DU113","v":0},{"$f":"'2. Conservation Measures'!DV113","v":0},{"$f":"'2. Conservation Measures'!DW113","v":0},{"$f":"'2. Conservation Measures'!DX113","v":0},{"$f":"'2. Conservation Measures'!DY113","v":0},{"$f":"'2. Conservation Measures'!DZ113","v":0},{"$f":"'2. Conservation Measures'!EA113","v":0},{"$f":"'2. Conservation Measures'!EB113","v":0},{"$f":"'2. Conservation Measures'!EC113","v":0},{"$f":"'2. Conservation Measures'!ED113","v":0},{"$f":"'2. Conservation Measures'!EE113","v":0},{"$f":"'2. Conservation Measures'!EF113","v":0},{"$f":"'2. Conservation Measures'!EG113","v":0},{"$f":"'2. Conservation Measures'!EH113","v":0},{"$f":"'2. Conservation Measures'!EI113","v":0},{"$f":"'2. Conservation Measures'!EJ113","v":0},{"$f":"'2. Conservation Measures'!EK113","v":0},{"$f":"'2. Conservation Measures'!EL113","v":0},{"$f":"'2. Conservation Measures'!EM113","v":0},null,{"$f":"'2. Conservation Measures'!KP113","v":0},{"$f":"'2. Conservation Measures'!KQ113","v":0},{"$f":"'2. Conservation Measures'!KR113","v":0},{"$f":"'2. Conservation Measures'!KS113","v":0},{"$f":"'2. Conservation Measures'!KT113","v":0},{"$f":"'2. Conservation Measures'!KU113","v":0},{"$f":"'2. Conservation Measures'!KV113","v":0},{"$f":"'2. Conservation Measures'!KW113","v":0},{"$f":"'2. Conservation Measures'!KX113","v":0},{"$f":"'2. Conservation Measures'!KY113","v":0},{"$f":"'2. Conservation Measures'!KZ113","v":0},{"$f":"'2. Conservation Measures'!LA113","v":0},{"$f":"'2. Conservation Measures'!LB113","v":0},{"$f":"'2. Conservation Measures'!LC113","v":0},{"$f":"'2. Conservation Measures'!LD113","v":0},{"$f":"'2. Conservation Measures'!LE113","v":0},{"$f":"'2. Conservation Measures'!LF113","v":0},{"$f":"'2. Conservation Measures'!LG113","v":0},{"$f":"'2. Conservation Measures'!LH113","v":0},{"$f":"'2. Conservation Measures'!LI113","v":0},{"$f":"'2. Conservation Measures'!LJ113","v":0},{"$f":"'2. Conservation Measures'!LK113","v":0},{"$f":"'2. Conservation Measures'!LL113","v":0},{"$f":"'2. Conservation Measures'!LM113","v":0},{"$f":"'2. Conservation Measures'!LN113","v":0},{"$f":"'2. Conservation Measures'!LO113","v":0},{"$f":"'2. Conservation Measures'!LP113","v":0},{"$f":"'2. Conservation Measures'!LQ113","v":0},{"$f":"'2. Conservation Measures'!LR113","v":0},{"$f":"'2. Conservation Measures'!LS113","v":0},{"$f":"'2. Conservation Measures'!LT113","v":0},{"$f":"'2. Conservation Measures'!LU113","v":0},{"$f":"'2. Conservation Measures'!LV113","v":0},{"$f":"'2. Conservation Measures'!LW113","v":0},{"$f":"'2. Conservation Measures'!LX113","v":0},{"$f":"'2. Conservation Measures'!LY113","v":0},{"$f":"'2. Conservation Measures'!LZ113","v":0},{"$f":"'2. Conservation Measures'!MA113","v":0},{"$f":"'2. Conservation Measures'!MB113","v":0},{"$f":"'2. Conservation Measures'!MC113","v":0},{"$f":"'2. Conservation Measures'!MD113","v":0},{"$f":"'2. Conservation Measures'!ME113","v":0},{"$f":"'2. Conservation Measures'!MF113","v":0},{"$f":"'2. Conservation Measures'!MG113","v":0},{"$f":"'2. Conservation Measures'!MH113","v":0},{"$f":"'2. Conservation Measures'!MI113","v":0},{"$f":"'2. Conservation Measures'!MJ113","v":0},{"$f":"'2. Conservation Measures'!MK113","v":0},{"$f":"'2. Conservation Measures'!ML113","v":0},{"$f":"'2. Conservation Measures'!MM113","v":0},{"$f":"'2. Conservation Measures'!MN113","v":0},null,{"$f":"'2. Conservation Measures'!EP113","v":0},{"$f":"'2. Conservation Measures'!EQ113","v":0},{"$f":"'2. Conservation Measures'!ER113","v":0},{"$f":"'2. Conservation Measures'!ES113","v":0},{"$f":"'2. Conservation Measures'!ET113","v":0},{"$f":"'2. Conservation Measures'!EU113","v":0},{"$f":"'2. Conservation Measures'!EV113","v":0},{"$f":"'2. Conservation Measures'!EW113","v":0},{"$f":"'2. Conservation Measures'!EX113","v":0},{"$f":"'2. Conservation Measures'!EY113","v":0},{"$f":"'2. Conservation Measures'!EZ113","v":0},{"$f":"'2. Conservation Measures'!FA113","v":0},{"$f":"'2. Conservation Measures'!FB113","v":0},{"$f":"'2. Conservation Measures'!FC113","v":0},{"$f":"'2. Conservation Measures'!FD113","v":0},{"$f":"'2. Conservation Measures'!FE113","v":0},{"$f":"'2. Conservation Measures'!FF113","v":0},{"$f":"'2. Conservation Measures'!FG113","v":0},{"$f":"'2. Conservation Measures'!FH113","v":0},{"$f":"'2. Conservation Measures'!FI113","v":0},{"$f":"'2. Conservation Measures'!FJ113","v":0},{"$f":"'2. Conservation Measures'!FK113","v":0},{"$f":"'2. Conservation Measures'!FL113","v":0},{"$f":"'2. Conservation Measures'!FM113","v":0},{"$f":"'2. Conservation Measures'!FN113","v":0},{"$f":"'2. Conservation Measures'!FO113","v":0},{"$f":"'2. Conservation Measures'!FP113","v":0},{"$f":"'2. Conservation Measures'!FQ113","v":0},{"$f":"'2. Conservation Measures'!FR113","v":0},{"$f":"'2. Conservation Measures'!FS113","v":0},{"$f":"'2. Conservation Measures'!FT113","v":0},{"$f":"'2. Conservation Measures'!FU113","v":0},{"$f":"'2. Conservation Measures'!FV113","v":0},{"$f":"'2. Conservation Measures'!FW113","v":0},{"$f":"'2. Conservation Measures'!FX113","v":0},{"$f":"'2. Conservation Measures'!FY113","v":0},{"$f":"'2. Conservation Measures'!FZ113","v":0},{"$f":"'2. Conservation Measures'!GA113","v":0},{"$f":"'2. Conservation Measures'!GB113","v":0},{"$f":"'2. Conservation Measures'!GC113","v":0},{"$f":"'2. Conservation Measures'!GD113","v":0},{"$f":"'2. Conservation Measures'!GE113","v":0},{"$f":"'2. Conservation Measures'!GF113","v":0},{"$f":"'2. Conservation Measures'!GG113","v":0},{"$f":"'2. Conservation Measures'!GH113","v":0},{"$f":"'2. Conservation Measures'!GI113","v":0},{"$f":"'2. Conservation Measures'!GJ113","v":0},{"$f":"'2. Conservation Measures'!GK113","v":0},{"$f":"'2. Conservation Measures'!GL113","v":0},{"$f":"'2. Conservation Measures'!GM113","v":0},{"$f":"'2. Conservation Measures'!GN113","v":0},null,{"$f":"'2. Conservation Measures'!GP113","v":0},{"$f":"'2. Conservation Measures'!GQ113","v":0},{"$f":"'2. Conservation Measures'!GR113","v":0},{"$f":"'2. Conservation Measures'!GS113","v":0},{"$f":"'2. Conservation Measures'!GT113","v":0},{"$f":"'2. Conservation Measures'!GU113","v":0},{"$f":"'2. Conservation Measures'!GV113","v":0},{"$f":"'2. Conservation Measures'!GW113","v":0},{"$f":"'2. Conservation Measures'!GX113","v":0},{"$f":"'2. Conservation Measures'!GY113","v":0},{"$f":"'2. Conservation Measures'!GZ113","v":0},{"$f":"'2. Conservation Measures'!HA113","v":0},{"$f":"'2. Conservation Measures'!HB113","v":0},{"$f":"'2. Conservation Measures'!HC113","v":0},{"$f":"'2. Conservation Measures'!HD113","v":0},{"$f":"'2. Conservation Measures'!HE113","v":0},{"$f":"'2. Conservation Measures'!HF113","v":0},{"$f":"'2. Conservation Measures'!HG113","v":0},{"$f":"'2. Conservation Measures'!HH113","v":0},{"$f":"'2. Conservation Measures'!HI113","v":0},{"$f":"'2. Conservation Measures'!HJ113","v":0},{"$f":"'2. Conservation Measures'!HK113","v":0},{"$f":"'2. Conservation Measures'!HL113","v":0},{"$f":"'2. Conservation Measures'!HM113","v":0},{"$f":"'2. Conservation Measures'!HN113","v":0},{"$f":"'2. Conservation Measures'!HO113","v":0},{"$f":"'2. Conservation Measures'!HP113","v":0},{"$f":"'2. Conservation Measures'!HQ113","v":0},{"$f":"'2. Conservation Measures'!HR113","v":0},{"$f":"'2. Conservation Measures'!HS113","v":0},{"$f":"'2. Conservation Measures'!HT113","v":0},{"$f":"'2. Conservation Measures'!HU113","v":0},{"$f":"'2. Conservation Measures'!HV113","v":0},{"$f":"'2. Conservation Measures'!HW113","v":0},{"$f":"'2. Conservation Measures'!HX113","v":0},{"$f":"'2. Conservation Measures'!HY113","v":0},{"$f":"'2. Conservation Measures'!HZ113","v":0},{"$f":"'2. Conservation Measures'!IA113","v":0},{"$f":"'2. Conservation Measures'!IB113","v":0},{"$f":"'2. Conservation Measures'!IC113","v":0},{"$f":"'2. Conservation Measures'!ID113","v":0},{"$f":"'2. Conservation Measures'!IE113","v":0},{"$f":"'2. Conservation Measures'!IF113","v":0},{"$f":"'2. Conservation Measures'!IG113","v":0},{"$f":"'2. Conservation Measures'!IH113","v":0},{"$f":"'2. Conservation Measures'!II113","v":0},{"$f":"'2. Conservation Measures'!IJ113","v":0},{"$f":"'2. Conservation Measures'!IK113","v":0},{"$f":"'2. Conservation Measures'!IL113","v":0},{"$f":"'2. Conservation Measures'!IM113","v":0},{"$f":"'2. Conservation Measures'!IN113","v":0},null,{"$f":"'2. Conservation Measures'!IP113","v":0},{"$f":"'2. Conservation Measures'!IQ113","v":0},{"$f":"'2. Conservation Measures'!IR113","v":0},{"$f":"'2. Conservation Measures'!IS113","v":0},{"$f":"'2. Conservation Measures'!IT113","v":0},{"$f":"'2. Conservation Measures'!IU113","v":0},{"$f":"'2. Conservation Measures'!IV113","v":0},{"$f":"'2. Conservation Measures'!IW113","v":0},{"$f":"'2. Conservation Measures'!IX113","v":0},{"$f":"'2. Conservation Measures'!IY113","v":0},{"$f":"'2. Conservation Measures'!IZ113","v":0},{"$f":"'2. Conservation Measures'!JA113","v":0},{"$f":"'2. Conservation Measures'!JB113","v":0},{"$f":"'2. Conservation Measures'!JC113","v":0},{"$f":"'2. Conservation Measures'!JD113","v":0},{"$f":"'2. Conservation Measures'!JE113","v":0},{"$f":"'2. Conservation Measures'!JF113","v":0},{"$f":"'2. Conservation Measures'!JG113","v":0},{"$f":"'2. Conservation Measures'!JH113","v":0},{"$f":"'2. Conservation Measures'!JI113","v":0},{"$f":"'2. Conservation Measures'!JJ113","v":0},{"$f":"'2. Conservation Measures'!JK113","v":0},{"$f":"'2. Conservation Measures'!JL113","v":0},{"$f":"'2. Conservation Measures'!JM113","v":0},{"$f":"'2. Conservation Measures'!JN113","v":0},{"$f":"'2. Conservation Measures'!JO113","v":0},{"$f":"'2. Conservation Measures'!JP113","v":0},{"$f":"'2. Conservation Measures'!JQ113","v":0},{"$f":"'2. Conservation Measures'!JR113","v":0},{"$f":"'2. Conservation Measures'!JS113","v":0},{"$f":"'2. Conservation Measures'!JT113","v":0},{"$f":"'2. Conservation Measures'!JU113","v":0},{"$f":"'2. Conservation Measures'!JV113","v":0},{"$f":"'2. Conservation Measures'!JW113","v":0},{"$f":"'2. Conservation Measures'!JX113","v":0},{"$f":"'2. Conservation Measures'!JY113","v":0},{"$f":"'2. Conservation Measures'!JZ113","v":0},{"$f":"'2. Conservation Measures'!KA113","v":0},{"$f":"'2. Conservation Measures'!KB113","v":0},{"$f":"'2. Conservation Measures'!KC113","v":0},{"$f":"'2. Conservation Measures'!KD113","v":0},{"$f":"'2. Conservation Measures'!KE113","v":0},{"$f":"'2. Conservation Measures'!KF113","v":0},{"$f":"'2. Conservation Measures'!KG113","v":0},{"$f":"'2. Conservation Measures'!KH113","v":0},{"$f":"'2. Conservation Measures'!KI113","v":0},{"$f":"'2. Conservation Measures'!KJ113","v":0},{"$f":"'2. Conservation Measures'!KK113","v":0},{"$f":"'2. Conservation Measures'!KL113","v":0},{"$f":"'2. Conservation Measures'!KM113","v":0},{"$f":"'2. Conservation Measures'!KN113","v":0}]
[null,{"$f":"'2. Conservation Measures'!B114","v":"USR-ICI-07"},{"$f":"'2. Conservation Measures'!C114","v":0},{"$f":"'2. Conservation Measures'!D114","v":"N"},null,{"$f":"'2. Conservation Measures'!AA114","v":0},null,{"$f":"'2. Conservation Measures'!AO114","v":0},{"$f":"'2. Conservation Measures'!AP114","v":0},{"$f":"'2. Conservation Measures'!AQ114","v":0},{"$f":"'2. Conservation Measures'!AR114","v":0},{"$f":"'2. Conservation Measures'!AS114","v":0},{"$f":"'2. Conservation Measures'!AT114","v":0},{"$f":"'2. Conservation Measures'!AU114","v":0},{"$f":"'2. Conservation Measures'!AV114","v":0},{"$f":"'2. Conservation Measures'!AW114","v":0},{"$f":"'2. Conservation Measures'!AX114","v":0},{"$f":"'2. Conservation Measures'!AY114","v":0},{"$f":"'2. Conservation Measures'!AZ114","v":0},{"$f":"'2. Conservation Measures'!BA114","v":0},{"$f":"'2. Conservation Measures'!BB114","v":0},{"$f":"'2. Conservation Measures'!BC114","v":0},{"$f":"'2. Conservation Measures'!BD114","v":0},{"$f":"'2. Conservation Measures'!BE114","v":0},{"$f":"'2. Conservation Measures'!BF114","v":0},{"$f":"'2. Conservation Measures'!BG114","v":0},{"$f":"'2. Conservation Measures'!BH114","v":0},{"$f":"'2. Conservation Measures'!BI114","v":0},{"$f":"'2. Conservation Measures'!BJ114","v":0},{"$f":"'2. Conservation Measures'!BK114","v":0},{"$f":"'2. Conservation Measures'!BL114","v":0},{"$f":"'2. Conservation Measures'!BM114","v":0},{"$f":"'2. Conservation Measures'!BN114","v":0},{"$f":"'2. Conservation Measures'!BO114","v":0},{"$f":"'2. Conservation Measures'!BP114","v":0},{"$f":"'2. Conservation Measures'!BQ114","v":0},{"$f":"'2. Conservation Measures'!BR114","v":0},{"$f":"'2. Conservation Measures'!BS114","v":0},{"$f":"'2. Conservation Measures'!BT114","v":0},{"$f":"'2. Conservation Measures'!BU114","v":0},{"$f":"'2. Conservation Measures'!BV114","v":0},{"$f":"'2. Conservation Measures'!BW114","v":0},{"$f":"'2. Conservation Measures'!BX114","v":0},{"$f":"'2. Conservation Measures'!BY114","v":0},{"$f":"'2. Conservation Measures'!BZ114","v":0},{"$f":"'2. Conservation Measures'!CA114","v":0},{"$f":"'2. Conservation Measures'!CB114","v":0},{"$f":"'2. Conservation Measures'!CC114","v":0},{"$f":"'2. Conservation Measures'!CD114","v":0},{"$f":"'2. Conservation Measures'!CE114","v":0},{"$f":"'2. Conservation Measures'!CF114","v":0},{"$f":"'2. Conservation Measures'!CG114","v":0},{"$f":"'2. Conservation Measures'!CH114","v":0},{"$f":"'2. Conservation Measures'!CI114","v":0},{"$f":"'2. Conservation Measures'!CJ114","v":0},{"$f":"'2. Conservation Measures'!CK114","v":0},{"$f":"'2. Conservation Measures'!CL114","v":0},{"$f":"'2. Conservation Measures'!CM114","v":0},null,{"$f":"'2. Conservation Measures'!CO114","v":0},{"$f":"'2. Conservation Measures'!CP114","v":0},{"$f":"'2. Conservation Measures'!CQ114","v":0},{"$f":"'2. Conservation Measures'!CR114","v":0},{"$f":"'2. Conservation Measures'!CS114","v":0},{"$f":"'2. Conservation Measures'!CT114","v":0},{"$f":"'2. Conservation Measures'!CU114","v":0},{"$f":"'2. Conservation Measures'!CV114","v":0},{"$f":"'2. Conservation Measures'!CW114","v":0},{"$f":"'2. Conservation Measures'!CX114","v":0},{"$f":"'2. Conservation Measures'!CY114","v":0},{"$f":"'2. Conservation Measures'!CZ114","v":0},{"$f":"'2. Conservation Measures'!DA114","v":0},{"$f":"'2. Conservation Measures'!DB114","v":0},{"$f":"'2. Conservation Measures'!DC114","v":0},{"$f":"'2. Conservation Measures'!DD114","v":0},{"$f":"'2. Conservation Measures'!DE114","v":0},{"$f":"'2. Conservation Measures'!DF114","v":0},{"$f":"'2. Conservation Measures'!DG114","v":0},{"$f":"'2. Conservation Measures'!DH114","v":0},{"$f":"'2. Conservation Measures'!DI114","v":0},{"$f":"'2. Conservation Measures'!DJ114","v":0},{"$f":"'2. Conservation Measures'!DK114","v":0},{"$f":"'2. Conservation Measures'!DL114","v":0},{"$f":"'2. Conservation Measures'!DM114","v":0},{"$f":"'2. Conservation Measures'!DN114","v":0},{"$f":"'2. Conservation Measures'!DO114","v":0},{"$f":"'2. Conservation Measures'!DP114","v":0},{"$f":"'2. Conservation Measures'!DQ114","v":0},{"$f":"'2. Conservation Measures'!DR114","v":0},{"$f":"'2. Conservation Measures'!DS114","v":0},{"$f":"'2. Conservation Measures'!DT114","v":0},{"$f":"'2. Conservation Measures'!DU114","v":0},{"$f":"'2. Conservation Measures'!DV114","v":0},{"$f":"'2. Conservation Measures'!DW114","v":0},{"$f":"'2. Conservation Measures'!DX114","v":0},{"$f":"'2. Conservation Measures'!DY114","v":0},{"$f":"'2. Conservation Measures'!DZ114","v":0},{"$f":"'2. Conservation Measures'!EA114","v":0},{"$f":"'2. Conservation Measures'!EB114","v":0},{"$f":"'2. Conservation Measures'!EC114","v":0},{"$f":"'2. Conservation Measures'!ED114","v":0},{"$f":"'2. Conservation Measures'!EE114","v":0},{"$f":"'2. Conservation Measures'!EF114","v":0},{"$f":"'2. Conservation Measures'!EG114","v":0},{"$f":"'2. Conservation Measures'!EH114","v":0},{"$f":"'2. Conservation Measures'!EI114","v":0},{"$f":"'2. Conservation Measures'!EJ114","v":0},{"$f":"'2. Conservation Measures'!EK114","v":0},{"$f":"'2. Conservation Measures'!EL114","v":0},{"$f":"'2. Conservation Measures'!EM114","v":0},null,{"$f":"'2. Conservation Measures'!KP114","v":0},{"$f":"'2. Conservation Measures'!KQ114","v":0},{"$f":"'2. Conservation Measures'!KR114","v":0},{"$f":"'2. Conservation Measures'!KS114","v":0},{"$f":"'2. Conservation Measures'!KT114","v":0},{"$f":"'2. Conservation Measures'!KU114","v":0},{"$f":"'2. Conservation Measures'!KV114","v":0},{"$f":"'2. Conservation Measures'!KW114","v":0},{"$f":"'2. Conservation Measures'!KX114","v":0},{"$f":"'2. Conservation Measures'!KY114","v":0},{"$f":"'2. Conservation Measures'!KZ114","v":0},{"$f":"'2. Conservation Measures'!LA114","v":0},{"$f":"'2. Conservation Measures'!LB114","v":0},{"$f":"'2. Conservation Measures'!LC114","v":0},{"$f":"'2. Conservation Measures'!LD114","v":0},{"$f":"'2. Conservation Measures'!LE114","v":0},{"$f":"'2. Conservation Measures'!LF114","v":0},{"$f":"'2. Conservation Measures'!LG114","v":0},{"$f":"'2. Conservation Measures'!LH114","v":0},{"$f":"'2. Conservation Measures'!LI114","v":0},{"$f":"'2. Conservation Measures'!LJ114","v":0},{"$f":"'2. Conservation Measures'!LK114","v":0},{"$f":"'2. Conservation Measures'!LL114","v":0},{"$f":"'2. Conservation Measures'!LM114","v":0},{"$f":"'2. Conservation Measures'!LN114","v":0},{"$f":"'2. Conservation Measures'!LO114","v":0},{"$f":"'2. Conservation Measures'!LP114","v":0},{"$f":"'2. Conservation Measures'!LQ114","v":0},{"$f":"'2. Conservation Measures'!LR114","v":0},{"$f":"'2. Conservation Measures'!LS114","v":0},{"$f":"'2. Conservation Measures'!LT114","v":0},{"$f":"'2. Conservation Measures'!LU114","v":0},{"$f":"'2. Conservation Measures'!LV114","v":0},{"$f":"'2. Conservation Measures'!LW114","v":0},{"$f":"'2. Conservation Measures'!LX114","v":0},{"$f":"'2. Conservation Measures'!LY114","v":0},{"$f":"'2. Conservation Measures'!LZ114","v":0},{"$f":"'2. Conservation Measures'!MA114","v":0},{"$f":"'2. Conservation Measures'!MB114","v":0},{"$f":"'2. Conservation Measures'!MC114","v":0},{"$f":"'2. Conservation Measures'!MD114","v":0},{"$f":"'2. Conservation Measures'!ME114","v":0},{"$f":"'2. Conservation Measures'!MF114","v":0},{"$f":"'2. Conservation Measures'!MG114","v":0},{"$f":"'2. Conservation Measures'!MH114","v":0},{"$f":"'2. Conservation Measures'!MI114","v":0},{"$f":"'2. Conservation Measures'!MJ114","v":0},{"$f":"'2. Conservation Measures'!MK114","v":0},{"$f":"'2. Conservation Measures'!ML114","v":0},{"$f":"'2. Conservation Measures'!MM114","v":0},{"$f":"'2. Conservation Measures'!MN114","v":0},null,{"$f":"'2. Conservation Measures'!EP114","v":0},{"$f":"'2. Conservation Measures'!EQ114","v":0},{"$f":"'2. Conservation Measures'!ER114","v":0},{"$f":"'2. Conservation Measures'!ES114","v":0},{"$f":"'2. Conservation Measures'!ET114","v":0},{"$f":"'2. Conservation Measures'!EU114","v":0},{"$f":"'2. Conservation Measures'!EV114","v":0},{"$f":"'2. Conservation Measures'!EW114","v":0},{"$f":"'2. Conservation Measures'!EX114","v":0},{"$f":"'2. Conservation Measures'!EY114","v":0},{"$f":"'2. Conservation Measures'!EZ114","v":0},{"$f":"'2. Conservation Measures'!FA114","v":0},{"$f":"'2. Conservation Measures'!FB114","v":0},{"$f":"'2. Conservation Measures'!FC114","v":0},{"$f":"'2. Conservation Measures'!FD114","v":0},{"$f":"'2. Conservation Measures'!FE114","v":0},{"$f":"'2. Conservation Measures'!FF114","v":0},{"$f":"'2. Conservation Measures'!FG114","v":0},{"$f":"'2. Conservation Measures'!FH114","v":0},{"$f":"'2. Conservation Measures'!FI114","v":0},{"$f":"'2. Conservation Measures'!FJ114","v":0},{"$f":"'2. Conservation Measures'!FK114","v":0},{"$f":"'2. Conservation Measures'!FL114","v":0},{"$f":"'2. Conservation Measures'!FM114","v":0},{"$f":"'2. Conservation Measures'!FN114","v":0},{"$f":"'2. Conservation Measures'!FO114","v":0},{"$f":"'2. Conservation Measures'!FP114","v":0},{"$f":"'2. Conservation Measures'!FQ114","v":0},{"$f":"'2. Conservation Measures'!FR114","v":0},{"$f":"'2. Conservation Measures'!FS114","v":0},{"$f":"'2. Conservation Measures'!FT114","v":0},{"$f":"'2. Conservation Measures'!FU114","v":0},{"$f":"'2. Conservation Measures'!FV114","v":0},{"$f":"'2. Conservation Measures'!FW114","v":0},{"$f":"'2. Conservation Measures'!FX114","v":0},{"$f":"'2. Conservation Measures'!FY114","v":0},{"$f":"'2. Conservation Measures'!FZ114","v":0},{"$f":"'2. Conservation Measures'!GA114","v":0},{"$f":"'2. Conservation Measures'!GB114","v":0},{"$f":"'2. Conservation Measures'!GC114","v":0},{"$f":"'2. Conservation Measures'!GD114","v":0},{"$f":"'2. Conservation Measures'!GE114","v":0},{"$f":"'2. Conservation Measures'!GF114","v":0},{"$f":"'2. Conservation Measures'!GG114","v":0},{"$f":"'2. Conservation Measures'!GH114","v":0},{"$f":"'2. Conservation Measures'!GI114","v":0},{"$f":"'2. Conservation Measures'!GJ114","v":0},{"$f":"'2. Conservation Measures'!GK114","v":0},{"$f":"'2. Conservation Measures'!GL114","v":0},{"$f":"'2. Conservation Measures'!GM114","v":0},{"$f":"'2. Conservation Measures'!GN114","v":0},null,{"$f":"'2. Conservation Measures'!GP114","v":0},{"$f":"'2. Conservation Measures'!GQ114","v":0},{"$f":"'2. Conservation Measures'!GR114","v":0},{"$f":"'2. Conservation Measures'!GS114","v":0},{"$f":"'2. Conservation Measures'!GT114","v":0},{"$f":"'2. Conservation Measures'!GU114","v":0},{"$f":"'2. Conservation Measures'!GV114","v":0},{"$f":"'2. Conservation Measures'!GW114","v":0},{"$f":"'2. Conservation Measures'!GX114","v":0},{"$f":"'2. Conservation Measures'!GY114","v":0},{"$f":"'2. Conservation Measures'!GZ114","v":0},{"$f":"'2. Conservation Measures'!HA114","v":0},{"$f":"'2. Conservation Measures'!HB114","v":0},{"$f":"'2. Conservation Measures'!HC114","v":0},{"$f":"'2. Conservation Measures'!HD114","v":0},{"$f":"'2. Conservation Measures'!HE114","v":0},{"$f":"'2. Conservation Measures'!HF114","v":0},{"$f":"'2. Conservation Measures'!HG114","v":0},{"$f":"'2. Conservation Measures'!HH114","v":0},{"$f":"'2. Conservation Measures'!HI114","v":0},{"$f":"'2. Conservation Measures'!HJ114","v":0},{"$f":"'2. Conservation Measures'!HK114","v":0},{"$f":"'2. Conservation Measures'!HL114","v":0},{"$f":"'2. Conservation Measures'!HM114","v":0},{"$f":"'2. Conservation Measures'!HN114","v":0},{"$f":"'2. Conservation Measures'!HO114","v":0},{"$f":"'2. Conservation Measures'!HP114","v":0},{"$f":"'2. Conservation Measures'!HQ114","v":0},{"$f":"'2. Conservation Measures'!HR114","v":0},{"$f":"'2. Conservation Measures'!HS114","v":0},{"$f":"'2. Conservation Measures'!HT114","v":0},{"$f":"'2. Conservation Measures'!HU114","v":0},{"$f":"'2. Conservation Measures'!HV114","v":0},{"$f":"'2. Conservation Measures'!HW114","v":0},{"$f":"'2. Conservation Measures'!HX114","v":0},{"$f":"'2. Conservation Measures'!HY114","v":0},{"$f":"'2. Conservation Measures'!HZ114","v":0},{"$f":"'2. Conservation Measures'!IA114","v":0},{"$f":"'2. Conservation Measures'!IB114","v":0},{"$f":"'2. Conservation Measures'!IC114","v":0},{"$f":"'2. Conservation Measures'!ID114","v":0},{"$f":"'2. Conservation Measures'!IE114","v":0},{"$f":"'2. Conservation Measures'!IF114","v":0},{"$f":"'2. Conservation Measures'!IG114","v":0},{"$f":"'2. Conservation Measures'!IH114","v":0},{"$f":"'2. Conservation Measures'!II114","v":0},{"$f":"'2. Conservation Measures'!IJ114","v":0},{"$f":"'2. Conservation Measures'!IK114","v":0},{"$f":"'2. Conservation Measures'!IL114","v":0},{"$f":"'2. Conservation Measures'!IM114","v":0},{"$f":"'2. Conservation Measures'!IN114","v":0},null,{"$f":"'2. Conservation Measures'!IP114","v":0},{"$f":"'2. Conservation Measures'!IQ114","v":0},{"$f":"'2. Conservation Measures'!IR114","v":0},{"$f":"'2. Conservation Measures'!IS114","v":0},{"$f":"'2. Conservation Measures'!IT114","v":0},{"$f":"'2. Conservation Measures'!IU114","v":0},{"$f":"'2. Conservation Measures'!IV114","v":0},{"$f":"'2. Conservation Measures'!IW114","v":0},{"$f":"'2. Conservation Measures'!IX114","v":0},{"$f":"'2. Conservation Measures'!IY114","v":0},{"$f":"'2. Conservation Measures'!IZ114","v":0},{"$f":"'2. Conservation Measures'!JA114","v":0},{"$f":"'2. Conservation Measures'!JB114","v":0},{"$f":"'2. Conservation Measures'!JC114","v":0},{"$f":"'2. Conservation Measures'!JD114","v":0},{"$f":"'2. Conservation Measures'!JE114","v":0},{"$f":"'2. Conservation Measures'!JF114","v":0},{"$f":"'2. Conservation Measures'!JG114","v":0},{"$f":"'2. Conservation Measures'!JH114","v":0},{"$f":"'2. Conservation Measures'!JI114","v":0},{"$f":"'2. Conservation Measures'!JJ114","v":0},{"$f":"'2. Conservation Measures'!JK114","v":0},{"$f":"'2. Conservation Measures'!JL114","v":0},{"$f":"'2. Conservation Measures'!JM114","v":0},{"$f":"'2. Conservation Measures'!JN114","v":0},{"$f":"'2. Conservation Measures'!JO114","v":0},{"$f":"'2. Conservation Measures'!JP114","v":0},{"$f":"'2. Conservation Measures'!JQ114","v":0},{"$f":"'2. Conservation Measures'!JR114","v":0},{"$f":"'2. Conservation Measures'!JS114","v":0},{"$f":"'2. Conservation Measures'!JT114","v":0},{"$f":"'2. Conservation Measures'!JU114","v":0},{"$f":"'2. Conservation Measures'!JV114","v":0},{"$f":"'2. Conservation Measures'!JW114","v":0},{"$f":"'2. Conservation Measures'!JX114","v":0},{"$f":"'2. Conservation Measures'!JY114","v":0},{"$f":"'2. Conservation Measures'!JZ114","v":0},{"$f":"'2. Conservation Measures'!KA114","v":0},{"$f":"'2. Conservation Measures'!KB114","v":0},{"$f":"'2. Conservation Measures'!KC114","v":0},{"$f":"'2. Conservation Measures'!KD114","v":0},{"$f":"'2. Conservation Measures'!KE114","v":0},{"$f":"'2. Conservation Measures'!KF114","v":0},{"$f":"'2. Conservation Measures'!KG114","v":0},{"$f":"'2. Conservation Measures'!KH114","v":0},{"$f":"'2. Conservation Measures'!KI114","v":0},{"$f":"'2. Conservation Measures'!KJ114","v":0},{"$f":"'2. Conservation Measures'!KK114","v":0},{"$f":"'2. Conservation Measures'!KL114","v":0},{"$f":"'2. Conservation Measures'!KM114","v":0},{"$f":"'2. Conservation Measures'!KN114","v":0}]
[null,{"$f":"'2. Conservation Measures'!B115","v":"USR-ICI-08"},{"$f":"'2. Conservation Measures'!C115","v":0},{"$f":"'2. Conservation Measures'!D115","v":"N"},null,{"$f":"'2. Conservation Measures'!AA115","v":0},null,{"$f":"'2. Conservation Measures'!AO115","v":0},{"$f":"'2. Conservation Measures'!AP115","v":0},{"$f":"'2. Conservation Measures'!AQ115","v":0},{"$f":"'2. Conservation Measures'!AR115","v":0},{"$f":"'2. Conservation Measures'!AS115","v":0},{"$f":"'2. Conservation Measures'!AT115","v":0},{"$f":"'2. Conservation Measures'!AU115","v":0},{"$f":"'2. Conservation Measures'!AV115","v":0},{"$f":"'2. Conservation Measures'!AW115","v":0},{"$f":"'2. Conservation Measures'!AX115","v":0},{"$f":"'2. Conservation Measures'!AY115","v":0},{"$f":"'2. Conservation Measures'!AZ115","v":0},{"$f":"'2. Conservation Measures'!BA115","v":0},{"$f":"'2. Conservation Measures'!BB115","v":0},{"$f":"'2. Conservation Measures'!BC115","v":0},{"$f":"'2. Conservation Measures'!BD115","v":0},{"$f":"'2. Conservation Measures'!BE115","v":0},{"$f":"'2. Conservation Measures'!BF115","v":0},{"$f":"'2. Conservation Measures'!BG115","v":0},{"$f":"'2. Conservation Measures'!BH115","v":0},{"$f":"'2. Conservation Measures'!BI115","v":0},{"$f":"'2. Conservation Measures'!BJ115","v":0},{"$f":"'2. Conservation Measures'!BK115","v":0},{"$f":"'2. Conservation Measures'!BL115","v":0},{"$f":"'2. Conservation Measures'!BM115","v":0},{"$f":"'2. Conservation Measures'!BN115","v":0},{"$f":"'2. Conservation Measures'!BO115","v":0},{"$f":"'2. Conservation Measures'!BP115","v":0},{"$f":"'2. Conservation Measures'!BQ115","v":0},{"$f":"'2. Conservation Measures'!BR115","v":0},{"$f":"'2. Conservation Measures'!BS115","v":0},{"$f":"'2. Conservation Measures'!BT115","v":0},{"$f":"'2. Conservation Measures'!BU115","v":0},{"$f":"'2. Conservation Measures'!BV115","v":0},{"$f":"'2. Conservation Measures'!BW115","v":0},{"$f":"'2. Conservation Measures'!BX115","v":0},{"$f":"'2. Conservation Measures'!BY115","v":0},{"$f":"'2. Conservation Measures'!BZ115","v":0},{"$f":"'2. Conservation Measures'!CA115","v":0},{"$f":"'2. Conservation Measures'!CB115","v":0},{"$f":"'2. Conservation Measures'!CC115","v":0},{"$f":"'2. Conservation Measures'!CD115","v":0},{"$f":"'2. Conservation Measures'!CE115","v":0},{"$f":"'2. Conservation Measures'!CF115","v":0},{"$f":"'2. Conservation Measures'!CG115","v":0},{"$f":"'2. Conservation Measures'!CH115","v":0},{"$f":"'2. Conservation Measures'!CI115","v":0},{"$f":"'2. Conservation Measures'!CJ115","v":0},{"$f":"'2. Conservation Measures'!CK115","v":0},{"$f":"'2. Conservation Measures'!CL115","v":0},{"$f":"'2. Conservation Measures'!CM115","v":0},null,{"$f":"'2. Conservation Measures'!CO115","v":0},{"$f":"'2. Conservation Measures'!CP115","v":0},{"$f":"'2. Conservation Measures'!CQ115","v":0},{"$f":"'2. Conservation Measures'!CR115","v":0},{"$f":"'2. Conservation Measures'!CS115","v":0},{"$f":"'2. Conservation Measures'!CT115","v":0},{"$f":"'2. Conservation Measures'!CU115","v":0},{"$f":"'2. Conservation Measures'!CV115","v":0},{"$f":"'2. Conservation Measures'!CW115","v":0},{"$f":"'2. Conservation Measures'!CX115","v":0},{"$f":"'2. Conservation Measures'!CY115","v":0},{"$f":"'2. Conservation Measures'!CZ115","v":0},{"$f":"'2. Conservation Measures'!DA115","v":0},{"$f":"'2. Conservation Measures'!DB115","v":0},{"$f":"'2. Conservation Measures'!DC115","v":0},{"$f":"'2. Conservation Measures'!DD115","v":0},{"$f":"'2. Conservation Measures'!DE115","v":0},{"$f":"'2. Conservation Measures'!DF115","v":0},{"$f":"'2. Conservation Measures'!DG115","v":0},{"$f":"'2. Conservation Measures'!DH115","v":0},{"$f":"'2. Conservation Measures'!DI115","v":0},{"$f":"'2. Conservation Measures'!DJ115","v":0},{"$f":"'2. Conservation Measures'!DK115","v":0},{"$f":"'2. Conservation Measures'!DL115","v":0},{"$f":"'2. Conservation Measures'!DM115","v":0},{"$f":"'2. Conservation Measures'!DN115","v":0},{"$f":"'2. Conservation Measures'!DO115","v":0},{"$f":"'2. Conservation Measures'!DP115","v":0},{"$f":"'2. Conservation Measures'!DQ115","v":0},{"$f":"'2. Conservation Measures'!DR115","v":0},{"$f":"'2. Conservation Measures'!DS115","v":0},{"$f":"'2. Conservation Measures'!DT115","v":0},{"$f":"'2. Conservation Measures'!DU115","v":0},{"$f":"'2. Conservation Measures'!DV115","v":0},{"$f":"'2. Conservation Measures'!DW115","v":0},{"$f":"'2. Conservation Measures'!DX115","v":0},{"$f":"'2. Conservation Measures'!DY115","v":0},{"$f":"'2. Conservation Measures'!DZ115","v":0},{"$f":"'2. Conservation Measures'!EA115","v":0},{"$f":"'2. Conservation Measures'!EB115","v":0},{"$f":"'2. Conservation Measures'!EC115","v":0},{"$f":"'2. Conservation Measures'!ED115","v":0},{"$f":"'2. Conservation Measures'!EE115","v":0},{"$f":"'2. Conservation Measures'!EF115","v":0},{"$f":"'2. Conservation Measures'!EG115","v":0},{"$f":"'2. Conservation Measures'!EH115","v":0},{"$f":"'2. Conservation Measures'!EI115","v":0},{"$f":"'2. Conservation Measures'!EJ115","v":0},{"$f":"'2. Conservation Measures'!EK115","v":0},{"$f":"'2. Conservation Measures'!EL115","v":0},{"$f":"'2. Conservation Measures'!EM115","v":0},null,{"$f":"'2. Conservation Measures'!KP115","v":0},{"$f":"'2. Conservation Measures'!KQ115","v":0},{"$f":"'2. Conservation Measures'!KR115","v":0},{"$f":"'2. Conservation Measures'!KS115","v":0},{"$f":"'2. Conservation Measures'!KT115","v":0},{"$f":"'2. Conservation Measures'!KU115","v":0},{"$f":"'2. Conservation Measures'!KV115","v":0},{"$f":"'2. Conservation Measures'!KW115","v":0},{"$f":"'2. Conservation Measures'!KX115","v":0},{"$f":"'2. Conservation Measures'!KY115","v":0},{"$f":"'2. Conservation Measures'!KZ115","v":0},{"$f":"'2. Conservation Measures'!LA115","v":0},{"$f":"'2. Conservation Measures'!LB115","v":0},{"$f":"'2. Conservation Measures'!LC115","v":0},{"$f":"'2. Conservation Measures'!LD115","v":0},{"$f":"'2. Conservation Measures'!LE115","v":0},{"$f":"'2. Conservation Measures'!LF115","v":0},{"$f":"'2. Conservation Measures'!LG115","v":0},{"$f":"'2. Conservation Measures'!LH115","v":0},{"$f":"'2. Conservation Measures'!LI115","v":0},{"$f":"'2. Conservation Measures'!LJ115","v":0},{"$f":"'2. Conservation Measures'!LK115","v":0},{"$f":"'2. Conservation Measures'!LL115","v":0},{"$f":"'2. Conservation Measures'!LM115","v":0},{"$f":"'2. Conservation Measures'!LN115","v":0},{"$f":"'2. Conservation Measures'!LO115","v":0},{"$f":"'2. Conservation Measures'!LP115","v":0},{"$f":"'2. Conservation Measures'!LQ115","v":0},{"$f":"'2. Conservation Measures'!LR115","v":0},{"$f":"'2. Conservation Measures'!LS115","v":0},{"$f":"'2. Conservation Measures'!LT115","v":0},{"$f":"'2. Conservation Measures'!LU115","v":0},{"$f":"'2. Conservation Measures'!LV115","v":0},{"$f":"'2. Conservation Measures'!LW115","v":0},{"$f":"'2. Conservation Measures'!LX115","v":0},{"$f":"'2. Conservation Measures'!LY115","v":0},{"$f":"'2. Conservation Measures'!LZ115","v":0},{"$f":"'2. Conservation Measures'!MA115","v":0},{"$f":"'2. Conservation Measures'!MB115","v":0},{"$f":"'2. Conservation Measures'!MC115","v":0},{"$f":"'2. Conservation Measures'!MD115","v":0},{"$f":"'2. Conservation Measures'!ME115","v":0},{"$f":"'2. Conservation Measures'!MF115","v":0},{"$f":"'2. Conservation Measures'!MG115","v":0},{"$f":"'2. Conservation Measures'!MH115","v":0},{"$f":"'2. Conservation Measures'!MI115","v":0},{"$f":"'2. Conservation Measures'!MJ115","v":0},{"$f":"'2. Conservation Measures'!MK115","v":0},{"$f":"'2. Conservation Measures'!ML115","v":0},{"$f":"'2. Conservation Measures'!MM115","v":0},{"$f":"'2. Conservation Measures'!MN115","v":0},null,{"$f":"'2. Conservation Measures'!EP115","v":0},{"$f":"'2. Conservation Measures'!EQ115","v":0},{"$f":"'2. Conservation Measures'!ER115","v":0},{"$f":"'2. Conservation Measures'!ES115","v":0},{"$f":"'2. Conservation Measures'!ET115","v":0},{"$f":"'2. Conservation Measures'!EU115","v":0},{"$f":"'2. Conservation Measures'!EV115","v":0},{"$f":"'2. Conservation Measures'!EW115","v":0},{"$f":"'2. Conservation Measures'!EX115","v":0},{"$f":"'2. Conservation Measures'!EY115","v":0},{"$f":"'2. Conservation Measures'!EZ115","v":0},{"$f":"'2. Conservation Measures'!FA115","v":0},{"$f":"'2. Conservation Measures'!FB115","v":0},{"$f":"'2. Conservation Measures'!FC115","v":0},{"$f":"'2. Conservation Measures'!FD115","v":0},{"$f":"'2. Conservation Measures'!FE115","v":0},{"$f":"'2. Conservation Measures'!FF115","v":0},{"$f":"'2. Conservation Measures'!FG115","v":0},{"$f":"'2. Conservation Measures'!FH115","v":0},{"$f":"'2. Conservation Measures'!FI115","v":0},{"$f":"'2. Conservation Measures'!FJ115","v":0},{"$f":"'2. Conservation Measures'!FK115","v":0},{"$f":"'2. Conservation Measures'!FL115","v":0},{"$f":"'2. Conservation Measures'!FM115","v":0},{"$f":"'2. Conservation Measures'!FN115","v":0},{"$f":"'2. Conservation Measures'!FO115","v":0},{"$f":"'2. Conservation Measures'!FP115","v":0},{"$f":"'2. Conservation Measures'!FQ115","v":0},{"$f":"'2. Conservation Measures'!FR115","v":0},{"$f":"'2. Conservation Measures'!FS115","v":0},{"$f":"'2. Conservation Measures'!FT115","v":0},{"$f":"'2. Conservation Measures'!FU115","v":0},{"$f":"'2. Conservation Measures'!FV115","v":0},{"$f":"'2. Conservation Measures'!FW115","v":0},{"$f":"'2. Conservation Measures'!FX115","v":0},{"$f":"'2. Conservation Measures'!FY115","v":0},{"$f":"'2. Conservation Measures'!FZ115","v":0},{"$f":"'2. Conservation Measures'!GA115","v":0},{"$f":"'2. Conservation Measures'!GB115","v":0},{"$f":"'2. Conservation Measures'!GC115","v":0},{"$f":"'2. Conservation Measures'!GD115","v":0},{"$f":"'2. Conservation Measures'!GE115","v":0},{"$f":"'2. Conservation Measures'!GF115","v":0},{"$f":"'2. Conservation Measures'!GG115","v":0},{"$f":"'2. Conservation Measures'!GH115","v":0},{"$f":"'2. Conservation Measures'!GI115","v":0},{"$f":"'2. Conservation Measures'!GJ115","v":0},{"$f":"'2. Conservation Measures'!GK115","v":0},{"$f":"'2. Conservation Measures'!GL115","v":0},{"$f":"'2. Conservation Measures'!GM115","v":0},{"$f":"'2. Conservation Measures'!GN115","v":0},null,{"$f":"'2. Conservation Measures'!GP115","v":0},{"$f":"'2. Conservation Measures'!GQ115","v":0},{"$f":"'2. Conservation Measures'!GR115","v":0},{"$f":"'2. Conservation Measures'!GS115","v":0},{"$f":"'2. Conservation Measures'!GT115","v":0},{"$f":"'2. Conservation Measures'!GU115","v":0},{"$f":"'2. Conservation Measures'!GV115","v":0},{"$f":"'2. Conservation Measures'!GW115","v":0},{"$f":"'2. Conservation Measures'!GX115","v":0},{"$f":"'2. Conservation Measures'!GY115","v":0},{"$f":"'2. Conservation Measures'!GZ115","v":0},{"$f":"'2. Conservation Measures'!HA115","v":0},{"$f":"'2. Conservation Measures'!HB115","v":0},{"$f":"'2. Conservation Measures'!HC115","v":0},{"$f":"'2. Conservation Measures'!HD115","v":0},{"$f":"'2. Conservation Measures'!HE115","v":0},{"$f":"'2. Conservation Measures'!HF115","v":0},{"$f":"'2. Conservation Measures'!HG115","v":0},{"$f":"'2. Conservation Measures'!HH115","v":0},{"$f":"'2. Conservation Measures'!HI115","v":0},{"$f":"'2. Conservation Measures'!HJ115","v":0},{"$f":"'2. Conservation Measures'!HK115","v":0},{"$f":"'2. Conservation Measures'!HL115","v":0},{"$f":"'2. Conservation Measures'!HM115","v":0},{"$f":"'2. Conservation Measures'!HN115","v":0},{"$f":"'2. Conservation Measures'!HO115","v":0},{"$f":"'2. Conservation Measures'!HP115","v":0},{"$f":"'2. Conservation Measures'!HQ115","v":0},{"$f":"'2. Conservation Measures'!HR115","v":0},{"$f":"'2. Conservation Measures'!HS115","v":0},{"$f":"'2. Conservation Measures'!HT115","v":0},{"$f":"'2. Conservation Measures'!HU115","v":0},{"$f":"'2. Conservation Measures'!HV115","v":0},{"$f":"'2. Conservation Measures'!HW115","v":0},{"$f":"'2. Conservation Measures'!HX115","v":0},{"$f":"'2. Conservation Measures'!HY115","v":0},{"$f":"'2. Conservation Measures'!HZ115","v":0},{"$f":"'2. Conservation Measures'!IA115","v":0},{"$f":"'2. Conservation Measures'!IB115","v":0},{"$f":"'2. Conservation Measures'!IC115","v":0},{"$f":"'2. Conservation Measures'!ID115","v":0},{"$f":"'2. Conservation Measures'!IE115","v":0},{"$f":"'2. Conservation Measures'!IF115","v":0},{"$f":"'2. Conservation Measures'!IG115","v":0},{"$f":"'2. Conservation Measures'!IH115","v":0},{"$f":"'2. Conservation Measures'!II115","v":0},{"$f":"'2. Conservation Measures'!IJ115","v":0},{"$f":"'2. Conservation Measures'!IK115","v":0},{"$f":"'2. Conservation Measures'!IL115","v":0},{"$f":"'2. Conservation Measures'!IM115","v":0},{"$f":"'2. Conservation Measures'!IN115","v":0},null,{"$f":"'2. Conservation Measures'!IP115","v":0},{"$f":"'2. Conservation Measures'!IQ115","v":0},{"$f":"'2. Conservation Measures'!IR115","v":0},{"$f":"'2. Conservation Measures'!IS115","v":0},{"$f":"'2. Conservation Measures'!IT115","v":0},{"$f":"'2. Conservation Measures'!IU115","v":0},{"$f":"'2. Conservation Measures'!IV115","v":0},{"$f":"'2. Conservation Measures'!IW115","v":0},{"$f":"'2. Conservation Measures'!IX115","v":0},{"$f":"'2. Conservation Measures'!IY115","v":0},{"$f":"'2. Conservation Measures'!IZ115","v":0},{"$f":"'2. Conservation Measures'!JA115","v":0},{"$f":"'2. Conservation Measures'!JB115","v":0},{"$f":"'2. Conservation Measures'!JC115","v":0},{"$f":"'2. Conservation Measures'!JD115","v":0},{"$f":"'2. Conservation Measures'!JE115","v":0},{"$f":"'2. Conservation Measures'!JF115","v":0},{"$f":"'2. Conservation Measures'!JG115","v":0},{"$f":"'2. Conservation Measures'!JH115","v":0},{"$f":"'2. Conservation Measures'!JI115","v":0},{"$f":"'2. Conservation Measures'!JJ115","v":0},{"$f":"'2. Conservation Measures'!JK115","v":0},{"$f":"'2. Conservation Measures'!JL115","v":0},{"$f":"'2. Conservation Measures'!JM115","v":0},{"$f":"'2. Conservation Measures'!JN115","v":0},{"$f":"'2. Conservation Measures'!JO115","v":0},{"$f":"'2. Conservation Measures'!JP115","v":0},{"$f":"'2. Conservation Measures'!JQ115","v":0},{"$f":"'2. Conservation Measures'!JR115","v":0},{"$f":"'2. Conservation Measures'!JS115","v":0},{"$f":"'2. Conservation Measures'!JT115","v":0},{"$f":"'2. Conservation Measures'!JU115","v":0},{"$f":"'2. Conservation Measures'!JV115","v":0},{"$f":"'2. Conservation Measures'!JW115","v":0},{"$f":"'2. Conservation Measures'!JX115","v":0},{"$f":"'2. Conservation Measures'!JY115","v":0},{"$f":"'2. Conservation Measures'!JZ115","v":0},{"$f":"'2. Conservation Measures'!KA115","v":0},{"$f":"'2. Conservation Measures'!KB115","v":0},{"$f":"'2. Conservation Measures'!KC115","v":0},{"$f":"'2. Conservation Measures'!KD115","v":0},{"$f":"'2. Conservation Measures'!KE115","v":0},{"$f":"'2. Conservation Measures'!KF115","v":0},{"$f":"'2. Conservation Measures'!KG115","v":0},{"$f":"'2. Conservation Measures'!KH115","v":0},{"$f":"'2. Conservation Measures'!KI115","v":0},{"$f":"'2. Conservation Measures'!KJ115","v":0},{"$f":"'2. Conservation Measures'!KK115","v":0},{"$f":"'2. Conservation Measures'!KL115","v":0},{"$f":"'2. Conservation Measures'!KM115","v":0},{"$f":"'2. Conservation Measures'!KN115","v":0}]
[null,{"$f":"'2. Conservation Measures'!B116","v":"USR-ICI-09"},{"$f":"'2. Conservation Measures'!C116","v":0},{"$f":"'2. Conservation Measures'!D116","v":"N"},null,{"$f":"'2. Conservation Measures'!AA116","v":0},null,{"$f":"'2. Conservation Measures'!AO116","v":0},{"$f":"'2. Conservation Measures'!AP116","v":0},{"$f":"'2. Conservation Measures'!AQ116","v":0},{"$f":"'2. Conservation Measures'!AR116","v":0},{"$f":"'2. Conservation Measures'!AS116","v":0},{"$f":"'2. Conservation Measures'!AT116","v":0},{"$f":"'2. Conservation Measures'!AU116","v":0},{"$f":"'2. Conservation Measures'!AV116","v":0},{"$f":"'2. Conservation Measures'!AW116","v":0},{"$f":"'2. Conservation Measures'!AX116","v":0},{"$f":"'2. Conservation Measures'!AY116","v":0},{"$f":"'2. Conservation Measures'!AZ116","v":0},{"$f":"'2. Conservation Measures'!BA116","v":0},{"$f":"'2. Conservation Measures'!BB116","v":0},{"$f":"'2. Conservation Measures'!BC116","v":0},{"$f":"'2. Conservation Measures'!BD116","v":0},{"$f":"'2. Conservation Measures'!BE116","v":0},{"$f":"'2. Conservation Measures'!BF116","v":0},{"$f":"'2. Conservation Measures'!BG116","v":0},{"$f":"'2. Conservation Measures'!BH116","v":0},{"$f":"'2. Conservation Measures'!BI116","v":0},{"$f":"'2. Conservation Measures'!BJ116","v":0},{"$f":"'2. Conservation Measures'!BK116","v":0},{"$f":"'2. Conservation Measures'!BL116","v":0},{"$f":"'2. Conservation Measures'!BM116","v":0},{"$f":"'2. Conservation Measures'!BN116","v":0},{"$f":"'2. Conservation Measures'!BO116","v":0},{"$f":"'2. Conservation Measures'!BP116","v":0},{"$f":"'2. Conservation Measures'!BQ116","v":0},{"$f":"'2. Conservation Measures'!BR116","v":0},{"$f":"'2. Conservation Measures'!BS116","v":0},{"$f":"'2. Conservation Measures'!BT116","v":0},{"$f":"'2. Conservation Measures'!BU116","v":0},{"$f":"'2. Conservation Measures'!BV116","v":0},{"$f":"'2. Conservation Measures'!BW116","v":0},{"$f":"'2. Conservation Measures'!BX116","v":0},{"$f":"'2. Conservation Measures'!BY116","v":0},{"$f":"'2. Conservation Measures'!BZ116","v":0},{"$f":"'2. Conservation Measures'!CA116","v":0},{"$f":"'2. Conservation Measures'!CB116","v":0},{"$f":"'2. Conservation Measures'!CC116","v":0},{"$f":"'2. Conservation Measures'!CD116","v":0},{"$f":"'2. Conservation Measures'!CE116","v":0},{"$f":"'2. Conservation Measures'!CF116","v":0},{"$f":"'2. Conservation Measures'!CG116","v":0},{"$f":"'2. Conservation Measures'!CH116","v":0},{"$f":"'2. Conservation Measures'!CI116","v":0},{"$f":"'2. Conservation Measures'!CJ116","v":0},{"$f":"'2. Conservation Measures'!CK116","v":0},{"$f":"'2. Conservation Measures'!CL116","v":0},{"$f":"'2. Conservation Measures'!CM116","v":0},null,{"$f":"'2. Conservation Measures'!CO116","v":0},{"$f":"'2. Conservation Measures'!CP116","v":0},{"$f":"'2. Conservation Measures'!CQ116","v":0},{"$f":"'2. Conservation Measures'!CR116","v":0},{"$f":"'2. Conservation Measures'!CS116","v":0},{"$f":"'2. Conservation Measures'!CT116","v":0},{"$f":"'2. Conservation Measures'!CU116","v":0},{"$f":"'2. Conservation Measures'!CV116","v":0},{"$f":"'2. Conservation Measures'!CW116","v":0},{"$f":"'2. Conservation Measures'!CX116","v":0},{"$f":"'2. Conservation Measures'!CY116","v":0},{"$f":"'2. Conservation Measures'!CZ116","v":0},{"$f":"'2. Conservation Measures'!DA116","v":0},{"$f":"'2. Conservation Measures'!DB116","v":0},{"$f":"'2. Conservation Measures'!DC116","v":0},{"$f":"'2. Conservation Measures'!DD116","v":0},{"$f":"'2. Conservation Measures'!DE116","v":0},{"$f":"'2. Conservation Measures'!DF116","v":0},{"$f":"'2. Conservation Measures'!DG116","v":0},{"$f":"'2. Conservation Measures'!DH116","v":0},{"$f":"'2. Conservation Measures'!DI116","v":0},{"$f":"'2. Conservation Measures'!DJ116","v":0},{"$f":"'2. Conservation Measures'!DK116","v":0},{"$f":"'2. Conservation Measures'!DL116","v":0},{"$f":"'2. Conservation Measures'!DM116","v":0},{"$f":"'2. Conservation Measures'!DN116","v":0},{"$f":"'2. Conservation Measures'!DO116","v":0},{"$f":"'2. Conservation Measures'!DP116","v":0},{"$f":"'2. Conservation Measures'!DQ116","v":0},{"$f":"'2. Conservation Measures'!DR116","v":0},{"$f":"'2. Conservation Measures'!DS116","v":0},{"$f":"'2. Conservation Measures'!DT116","v":0},{"$f":"'2. Conservation Measures'!DU116","v":0},{"$f":"'2. Conservation Measures'!DV116","v":0},{"$f":"'2. Conservation Measures'!DW116","v":0},{"$f":"'2. Conservation Measures'!DX116","v":0},{"$f":"'2. Conservation Measures'!DY116","v":0},{"$f":"'2. Conservation Measures'!DZ116","v":0},{"$f":"'2. Conservation Measures'!EA116","v":0},{"$f":"'2. Conservation Measures'!EB116","v":0},{"$f":"'2. Conservation Measures'!EC116","v":0},{"$f":"'2. Conservation Measures'!ED116","v":0},{"$f":"'2. Conservation Measures'!EE116","v":0},{"$f":"'2. Conservation Measures'!EF116","v":0},{"$f":"'2. Conservation Measures'!EG116","v":0},{"$f":"'2. Conservation Measures'!EH116","v":0},{"$f":"'2. Conservation Measures'!EI116","v":0},{"$f":"'2. Conservation Measures'!EJ116","v":0},{"$f":"'2. Conservation Measures'!EK116","v":0},{"$f":"'2. Conservation Measures'!EL116","v":0},{"$f":"'2. Conservation Measures'!EM116","v":0},null,{"$f":"'2. Conservation Measures'!KP116","v":0},{"$f":"'2. Conservation Measures'!KQ116","v":0},{"$f":"'2. Conservation Measures'!KR116","v":0},{"$f":"'2. Conservation Measures'!KS116","v":0},{"$f":"'2. Conservation Measures'!KT116","v":0},{"$f":"'2. Conservation Measures'!KU116","v":0},{"$f":"'2. Conservation Measures'!KV116","v":0},{"$f":"'2. Conservation Measures'!KW116","v":0},{"$f":"'2. Conservation Measures'!KX116","v":0},{"$f":"'2. Conservation Measures'!KY116","v":0},{"$f":"'2. Conservation Measures'!KZ116","v":0},{"$f":"'2. Conservation Measures'!LA116","v":0},{"$f":"'2. Conservation Measures'!LB116","v":0},{"$f":"'2. Conservation Measures'!LC116","v":0},{"$f":"'2. Conservation Measures'!LD116","v":0},{"$f":"'2. Conservation Measures'!LE116","v":0},{"$f":"'2. Conservation Measures'!LF116","v":0},{"$f":"'2. Conservation Measures'!LG116","v":0},{"$f":"'2. Conservation Measures'!LH116","v":0},{"$f":"'2. Conservation Measures'!LI116","v":0},{"$f":"'2. Conservation Measures'!LJ116","v":0},{"$f":"'2. Conservation Measures'!LK116","v":0},{"$f":"'2. Conservation Measures'!LL116","v":0},{"$f":"'2. Conservation Measures'!LM116","v":0},{"$f":"'2. Conservation Measures'!LN116","v":0},{"$f":"'2. Conservation Measures'!LO116","v":0},{"$f":"'2. Conservation Measures'!LP116","v":0},{"$f":"'2. Conservation Measures'!LQ116","v":0},{"$f":"'2. Conservation Measures'!LR116","v":0},{"$f":"'2. Conservation Measures'!LS116","v":0},{"$f":"'2. Conservation Measures'!LT116","v":0},{"$f":"'2. Conservation Measures'!LU116","v":0},{"$f":"'2. Conservation Measures'!LV116","v":0},{"$f":"'2. Conservation Measures'!LW116","v":0},{"$f":"'2. Conservation Measures'!LX116","v":0},{"$f":"'2. Conservation Measures'!LY116","v":0},{"$f":"'2. Conservation Measures'!LZ116","v":0},{"$f":"'2. Conservation Measures'!MA116","v":0},{"$f":"'2. Conservation Measures'!MB116","v":0},{"$f":"'2. Conservation Measures'!MC116","v":0},{"$f":"'2. Conservation Measures'!MD116","v":0},{"$f":"'2. Conservation Measures'!ME116","v":0},{"$f":"'2. Conservation Measures'!MF116","v":0},{"$f":"'2. Conservation Measures'!MG116","v":0},{"$f":"'2. Conservation Measures'!MH116","v":0},{"$f":"'2. Conservation Measures'!MI116","v":0},{"$f":"'2. Conservation Measures'!MJ116","v":0},{"$f":"'2. Conservation Measures'!MK116","v":0},{"$f":"'2. Conservation Measures'!ML116","v":0},{"$f":"'2. Conservation Measures'!MM116","v":0},{"$f":"'2. Conservation Measures'!MN116","v":0},null,{"$f":"'2. Conservation Measures'!EP116","v":0},{"$f":"'2. Conservation Measures'!EQ116","v":0},{"$f":"'2. Conservation Measures'!ER116","v":0},{"$f":"'2. Conservation Measures'!ES116","v":0},{"$f":"'2. Conservation Measures'!ET116","v":0},{"$f":"'2. Conservation Measures'!EU116","v":0},{"$f":"'2. Conservation Measures'!EV116","v":0},{"$f":"'2. Conservation Measures'!EW116","v":0},{"$f":"'2. Conservation Measures'!EX116","v":0},{"$f":"'2. Conservation Measures'!EY116","v":0},{"$f":"'2. Conservation Measures'!EZ116","v":0},{"$f":"'2. Conservation Measures'!FA116","v":0},{"$f":"'2. Conservation Measures'!FB116","v":0},{"$f":"'2. Conservation Measures'!FC116","v":0},{"$f":"'2. Conservation Measures'!FD116","v":0},{"$f":"'2. Conservation Measures'!FE116","v":0},{"$f":"'2. Conservation Measures'!FF116","v":0},{"$f":"'2. Conservation Measures'!FG116","v":0},{"$f":"'2. Conservation Measures'!FH116","v":0},{"$f":"'2. Conservation Measures'!FI116","v":0},{"$f":"'2. Conservation Measures'!FJ116","v":0},{"$f":"'2. Conservation Measures'!FK116","v":0},{"$f":"'2. Conservation Measures'!FL116","v":0},{"$f":"'2. Conservation Measures'!FM116","v":0},{"$f":"'2. Conservation Measures'!FN116","v":0},{"$f":"'2. Conservation Measures'!FO116","v":0},{"$f":"'2. Conservation Measures'!FP116","v":0},{"$f":"'2. Conservation Measures'!FQ116","v":0},{"$f":"'2. Conservation Measures'!FR116","v":0},{"$f":"'2. Conservation Measures'!FS116","v":0},{"$f":"'2. Conservation Measures'!FT116","v":0},{"$f":"'2. Conservation Measures'!FU116","v":0},{"$f":"'2. Conservation Measures'!FV116","v":0},{"$f":"'2. Conservation Measures'!FW116","v":0},{"$f":"'2. Conservation Measures'!FX116","v":0},{"$f":"'2. Conservation Measures'!FY116","v":0},{"$f":"'2. Conservation Measures'!FZ116","v":0},{"$f":"'2. Conservation Measures'!GA116","v":0},{"$f":"'2. Conservation Measures'!GB116","v":0},{"$f":"'2. Conservation Measures'!GC116","v":0},{"$f":"'2. Conservation Measures'!GD116","v":0},{"$f":"'2. Conservation Measures'!GE116","v":0},{"$f":"'2. Conservation Measures'!GF116","v":0},{"$f":"'2. Conservation Measures'!GG116","v":0},{"$f":"'2. Conservation Measures'!GH116","v":0},{"$f":"'2. Conservation Measures'!GI116","v":0},{"$f":"'2. Conservation Measures'!GJ116","v":0},{"$f":"'2. Conservation Measures'!GK116","v":0},{"$f":"'2. Conservation Measures'!GL116","v":0},{"$f":"'2. Conservation Measures'!GM116","v":0},{"$f":"'2. Conservation Measures'!GN116","v":0},null,{"$f":"'2. Conservation Measures'!GP116","v":0},{"$f":"'2. Conservation Measures'!GQ116","v":0},{"$f":"'2. Conservation Measures'!GR116","v":0},{"$f":"'2. Conservation Measures'!GS116","v":0},{"$f":"'2. Conservation Measures'!GT116","v":0},{"$f":"'2. Conservation Measures'!GU116","v":0},{"$f":"'2. Conservation Measures'!GV116","v":0},{"$f":"'2. Conservation Measures'!GW116","v":0},{"$f":"'2. Conservation Measures'!GX116","v":0},{"$f":"'2. Conservation Measures'!GY116","v":0},{"$f":"'2. Conservation Measures'!GZ116","v":0},{"$f":"'2. Conservation Measures'!HA116","v":0},{"$f":"'2. Conservation Measures'!HB116","v":0},{"$f":"'2. Conservation Measures'!HC116","v":0},{"$f":"'2. Conservation Measures'!HD116","v":0},{"$f":"'2. Conservation Measures'!HE116","v":0},{"$f":"'2. Conservation Measures'!HF116","v":0},{"$f":"'2. Conservation Measures'!HG116","v":0},{"$f":"'2. Conservation Measures'!HH116","v":0},{"$f":"'2. Conservation Measures'!HI116","v":0},{"$f":"'2. Conservation Measures'!HJ116","v":0},{"$f":"'2. Conservation Measures'!HK116","v":0},{"$f":"'2. Conservation Measures'!HL116","v":0},{"$f":"'2. Conservation Measures'!HM116","v":0},{"$f":"'2. Conservation Measures'!HN116","v":0},{"$f":"'2. Conservation Measures'!HO116","v":0},{"$f":"'2. Conservation Measures'!HP116","v":0},{"$f":"'2. Conservation Measures'!HQ116","v":0},{"$f":"'2. Conservation Measures'!HR116","v":0},{"$f":"'2. Conservation Measures'!HS116","v":0},{"$f":"'2. Conservation Measures'!HT116","v":0},{"$f":"'2. Conservation Measures'!HU116","v":0},{"$f":"'2. Conservation Measures'!HV116","v":0},{"$f":"'2. Conservation Measures'!HW116","v":0},{"$f":"'2. Conservation Measures'!HX116","v":0},{"$f":"'2. Conservation Measures'!HY116","v":0},{"$f":"'2. Conservation Measures'!HZ116","v":0},{"$f":"'2. Conservation Measures'!IA116","v":0},{"$f":"'2. Conservation Measures'!IB116","v":0},{"$f":"'2. Conservation Measures'!IC116","v":0},{"$f":"'2. Conservation Measures'!ID116","v":0},{"$f":"'2. Conservation Measures'!IE116","v":0},{"$f":"'2. Conservation Measures'!IF116","v":0},{"$f":"'2. Conservation Measures'!IG116","v":0},{"$f":"'2. Conservation Measures'!IH116","v":0},{"$f":"'2. Conservation Measures'!II116","v":0},{"$f":"'2. Conservation Measures'!IJ116","v":0},{"$f":"'2. Conservation Measures'!IK116","v":0},{"$f":"'2. Conservation Measures'!IL116","v":0},{"$f":"'2. Conservation Measures'!IM116","v":0},{"$f":"'2. Conservation Measures'!IN116","v":0},null,{"$f":"'2. Conservation Measures'!IP116","v":0},{"$f":"'2. Conservation Measures'!IQ116","v":0},{"$f":"'2. Conservation Measures'!IR116","v":0},{"$f":"'2. Conservation Measures'!IS116","v":0},{"$f":"'2. Conservation Measures'!IT116","v":0},{"$f":"'2. Conservation Measures'!IU116","v":0},{"$f":"'2. Conservation Measures'!IV116","v":0},{"$f":"'2. Conservation Measures'!IW116","v":0},{"$f":"'2. Conservation Measures'!IX116","v":0},{"$f":"'2. Conservation Measures'!IY116","v":0},{"$f":"'2. Conservation Measures'!IZ116","v":0},{"$f":"'2. Conservation Measures'!JA116","v":0},{"$f":"'2. Conservation Measures'!JB116","v":0},{"$f":"'2. Conservation Measures'!JC116","v":0},{"$f":"'2. Conservation Measures'!JD116","v":0},{"$f":"'2. Conservation Measures'!JE116","v":0},{"$f":"'2. Conservation Measures'!JF116","v":0},{"$f":"'2. Conservation Measures'!JG116","v":0},{"$f":"'2. Conservation Measures'!JH116","v":0},{"$f":"'2. Conservation Measures'!JI116","v":0},{"$f":"'2. Conservation Measures'!JJ116","v":0},{"$f":"'2. Conservation Measures'!JK116","v":0},{"$f":"'2. Conservation Measures'!JL116","v":0},{"$f":"'2. Conservation Measures'!JM116","v":0},{"$f":"'2. Conservation Measures'!JN116","v":0},{"$f":"'2. Conservation Measures'!JO116","v":0},{"$f":"'2. Conservation Measures'!JP116","v":0},{"$f":"'2. Conservation Measures'!JQ116","v":0},{"$f":"'2. Conservation Measures'!JR116","v":0},{"$f":"'2. Conservation Measures'!JS116","v":0},{"$f":"'2. Conservation Measures'!JT116","v":0},{"$f":"'2. Conservation Measures'!JU116","v":0},{"$f":"'2. Conservation Measures'!JV116","v":0},{"$f":"'2. Conservation Measures'!JW116","v":0},{"$f":"'2. Conservation Measures'!JX116","v":0},{"$f":"'2. Conservation Measures'!JY116","v":0},{"$f":"'2. Conservation Measures'!JZ116","v":0},{"$f":"'2. Conservation Measures'!KA116","v":0},{"$f":"'2. Conservation Measures'!KB116","v":0},{"$f":"'2. Conservation Measures'!KC116","v":0},{"$f":"'2. Conservation Measures'!KD116","v":0},{"$f":"'2. Conservation Measures'!KE116","v":0},{"$f":"'2. Conservation Measures'!KF116","v":0},{"$f":"'2. Conservation Measures'!KG116","v":0},{"$f":"'2. Conservation Measures'!KH116","v":0},{"$f":"'2. Conservation Measures'!KI116","v":0},{"$f":"'2. Conservation Measures'!KJ116","v":0},{"$f":"'2. Conservation Measures'!KK116","v":0},{"$f":"'2. Conservation Measures'!KL116","v":0},{"$f":"'2. Conservation Measures'!KM116","v":0},{"$f":"'2. Conservation Measures'!KN116","v":0}]
[null,{"$f":"'2. Conservation Measures'!B117","v":"USR-ICI-10"},{"$f":"'2. Conservation Measures'!C117","v":0},{"$f":"'2. Conservation Measures'!D117","v":"N"},null,{"$f":"'2. Conservation Measures'!AA117","v":0},null,{"$f":"'2. Conservation Measures'!AO117","v":0},{"$f":"'2. Conservation Measures'!AP117","v":0},{"$f":"'2. Conservation Measures'!AQ117","v":0},{"$f":"'2. Conservation Measures'!AR117","v":0},{"$f":"'2. Conservation Measures'!AS117","v":0},{"$f":"'2. Conservation Measures'!AT117","v":0},{"$f":"'2. Conservation Measures'!AU117","v":0},{"$f":"'2. Conservation Measures'!AV117","v":0},{"$f":"'2. Conservation Measures'!AW117","v":0},{"$f":"'2. Conservation Measures'!AX117","v":0},{"$f":"'2. Conservation Measures'!AY117","v":0},{"$f":"'2. Conservation Measures'!AZ117","v":0},{"$f":"'2. Conservation Measures'!BA117","v":0},{"$f":"'2. Conservation Measures'!BB117","v":0},{"$f":"'2. Conservation Measures'!BC117","v":0},{"$f":"'2. Conservation Measures'!BD117","v":0},{"$f":"'2. Conservation Measures'!BE117","v":0},{"$f":"'2. Conservation Measures'!BF117","v":0},{"$f":"'2. Conservation Measures'!BG117","v":0},{"$f":"'2. Conservation Measures'!BH117","v":0},{"$f":"'2. Conservation Measures'!BI117","v":0},{"$f":"'2. Conservation Measures'!BJ117","v":0},{"$f":"'2. Conservation Measures'!BK117","v":0},{"$f":"'2. Conservation Measures'!BL117","v":0},{"$f":"'2. Conservation Measures'!BM117","v":0},{"$f":"'2. Conservation Measures'!BN117","v":0},{"$f":"'2. Conservation Measures'!BO117","v":0},{"$f":"'2. Conservation Measures'!BP117","v":0},{"$f":"'2. Conservation Measures'!BQ117","v":0},{"$f":"'2. Conservation Measures'!BR117","v":0},{"$f":"'2. Conservation Measures'!BS117","v":0},{"$f":"'2. Conservation Measures'!BT117","v":0},{"$f":"'2. Conservation Measures'!BU117","v":0},{"$f":"'2. Conservation Measures'!BV117","v":0},{"$f":"'2. Conservation Measures'!BW117","v":0},{"$f":"'2. Conservation Measures'!BX117","v":0},{"$f":"'2. Conservation Measures'!BY117","v":0},{"$f":"'2. Conservation Measures'!BZ117","v":0},{"$f":"'2. Conservation Measures'!CA117","v":0},{"$f":"'2. Conservation Measures'!CB117","v":0},{"$f":"'2. Conservation Measures'!CC117","v":0},{"$f":"'2. Conservation Measures'!CD117","v":0},{"$f":"'2. Conservation Measures'!CE117","v":0},{"$f":"'2. Conservation Measures'!CF117","v":0},{"$f":"'2. Conservation Measures'!CG117","v":0},{"$f":"'2. Conservation Measures'!CH117","v":0},{"$f":"'2. Conservation Measures'!CI117","v":0},{"$f":"'2. Conservation Measures'!CJ117","v":0},{"$f":"'2. Conservation Measures'!CK117","v":0},{"$f":"'2. Conservation Measures'!CL117","v":0},{"$f":"'2. Conservation Measures'!CM117","v":0},null,{"$f":"'2. Conservation Measures'!CO117","v":0},{"$f":"'2. Conservation Measures'!CP117","v":0},{"$f":"'2. Conservation Measures'!CQ117","v":0},{"$f":"'2. Conservation Measures'!CR117","v":0},{"$f":"'2. Conservation Measures'!CS117","v":0},{"$f":"'2. Conservation Measures'!CT117","v":0},{"$f":"'2. Conservation Measures'!CU117","v":0},{"$f":"'2. Conservation Measures'!CV117","v":0},{"$f":"'2. Conservation Measures'!CW117","v":0},{"$f":"'2. Conservation Measures'!CX117","v":0},{"$f":"'2. Conservation Measures'!CY117","v":0},{"$f":"'2. Conservation Measures'!CZ117","v":0},{"$f":"'2. Conservation Measures'!DA117","v":0},{"$f":"'2. Conservation Measures'!DB117","v":0},{"$f":"'2. Conservation Measures'!DC117","v":0},{"$f":"'2. Conservation Measures'!DD117","v":0},{"$f":"'2. Conservation Measures'!DE117","v":0},{"$f":"'2. Conservation Measures'!DF117","v":0},{"$f":"'2. Conservation Measures'!DG117","v":0},{"$f":"'2. Conservation Measures'!DH117","v":0},{"$f":"'2. Conservation Measures'!DI117","v":0},{"$f":"'2. Conservation Measures'!DJ117","v":0},{"$f":"'2. Conservation Measures'!DK117","v":0},{"$f":"'2. Conservation Measures'!DL117","v":0},{"$f":"'2. Conservation Measures'!DM117","v":0},{"$f":"'2. Conservation Measures'!DN117","v":0},{"$f":"'2. Conservation Measures'!DO117","v":0},{"$f":"'2. Conservation Measures'!DP117","v":0},{"$f":"'2. Conservation Measures'!DQ117","v":0},{"$f":"'2. Conservation Measures'!DR117","v":0},{"$f":"'2. Conservation Measures'!DS117","v":0},{"$f":"'2. Conservation Measures'!DT117","v":0},{"$f":"'2. Conservation Measures'!DU117","v":0},{"$f":"'2. Conservation Measures'!DV117","v":0},{"$f":"'2. Conservation Measures'!DW117","v":0},{"$f":"'2. Conservation Measures'!DX117","v":0},{"$f":"'2. Conservation Measures'!DY117","v":0},{"$f":"'2. Conservation Measures'!DZ117","v":0},{"$f":"'2. Conservation Measures'!EA117","v":0},{"$f":"'2. Conservation Measures'!EB117","v":0},{"$f":"'2. Conservation Measures'!EC117","v":0},{"$f":"'2. Conservation Measures'!ED117","v":0},{"$f":"'2. Conservation Measures'!EE117","v":0},{"$f":"'2. Conservation Measures'!EF117","v":0},{"$f":"'2. Conservation Measures'!EG117","v":0},{"$f":"'2. Conservation Measures'!EH117","v":0},{"$f":"'2. Conservation Measures'!EI117","v":0},{"$f":"'2. Conservation Measures'!EJ117","v":0},{"$f":"'2. Conservation Measures'!EK117","v":0},{"$f":"'2. Conservation Measures'!EL117","v":0},{"$f":"'2. Conservation Measures'!EM117","v":0},null,{"$f":"'2. Conservation Measures'!KP117","v":0},{"$f":"'2. Conservation Measures'!KQ117","v":0},{"$f":"'2. Conservation Measures'!KR117","v":0},{"$f":"'2. Conservation Measures'!KS117","v":0},{"$f":"'2. Conservation Measures'!KT117","v":0},{"$f":"'2. Conservation Measures'!KU117","v":0},{"$f":"'2. Conservation Measures'!KV117","v":0},{"$f":"'2. Conservation Measures'!KW117","v":0},{"$f":"'2. Conservation Measures'!KX117","v":0},{"$f":"'2. Conservation Measures'!KY117","v":0},{"$f":"'2. Conservation Measures'!KZ117","v":0},{"$f":"'2. Conservation Measures'!LA117","v":0},{"$f":"'2. Conservation Measures'!LB117","v":0},{"$f":"'2. Conservation Measures'!LC117","v":0},{"$f":"'2. Conservation Measures'!LD117","v":0},{"$f":"'2. Conservation Measures'!LE117","v":0},{"$f":"'2. Conservation Measures'!LF117","v":0},{"$f":"'2. Conservation Measures'!LG117","v":0},{"$f":"'2. Conservation Measures'!LH117","v":0},{"$f":"'2. Conservation Measures'!LI117","v":0},{"$f":"'2. Conservation Measures'!LJ117","v":0},{"$f":"'2. Conservation Measures'!LK117","v":0},{"$f":"'2. Conservation Measures'!LL117","v":0},{"$f":"'2. Conservation Measures'!LM117","v":0},{"$f":"'2. Conservation Measures'!LN117","v":0},{"$f":"'2. Conservation Measures'!LO117","v":0},{"$f":"'2. Conservation Measures'!LP117","v":0},{"$f":"'2. Conservation Measures'!LQ117","v":0},{"$f":"'2. Conservation Measures'!LR117","v":0},{"$f":"'2. Conservation Measures'!LS117","v":0},{"$f":"'2. Conservation Measures'!LT117","v":0},{"$f":"'2. Conservation Measures'!LU117","v":0},{"$f":"'2. Conservation Measures'!LV117","v":0},{"$f":"'2. Conservation Measures'!LW117","v":0},{"$f":"'2. Conservation Measures'!LX117","v":0},{"$f":"'2. Conservation Measures'!LY117","v":0},{"$f":"'2. Conservation Measures'!LZ117","v":0},{"$f":"'2. Conservation Measures'!MA117","v":0},{"$f":"'2. Conservation Measures'!MB117","v":0},{"$f":"'2. Conservation Measures'!MC117","v":0},{"$f":"'2. Conservation Measures'!MD117","v":0},{"$f":"'2. Conservation Measures'!ME117","v":0},{"$f":"'2. Conservation Measures'!MF117","v":0},{"$f":"'2. Conservation Measures'!MG117","v":0},{"$f":"'2. Conservation Measures'!MH117","v":0},{"$f":"'2. Conservation Measures'!MI117","v":0},{"$f":"'2. Conservation Measures'!MJ117","v":0},{"$f":"'2. Conservation Measures'!MK117","v":0},{"$f":"'2. Conservation Measures'!ML117","v":0},{"$f":"'2. Conservation Measures'!MM117","v":0},{"$f":"'2. Conservation Measures'!MN117","v":0},null,{"$f":"'2. Conservation Measures'!EP117","v":0},{"$f":"'2. Conservation Measures'!EQ117","v":0},{"$f":"'2. Conservation Measures'!ER117","v":0},{"$f":"'2. Conservation Measures'!ES117","v":0},{"$f":"'2. Conservation Measures'!ET117","v":0},{"$f":"'2. Conservation Measures'!EU117","v":0},{"$f":"'2. Conservation Measures'!EV117","v":0},{"$f":"'2. Conservation Measures'!EW117","v":0},{"$f":"'2. Conservation Measures'!EX117","v":0},{"$f":"'2. Conservation Measures'!EY117","v":0},{"$f":"'2. Conservation Measures'!EZ117","v":0},{"$f":"'2. Conservation Measures'!FA117","v":0},{"$f":"'2. Conservation Measures'!FB117","v":0},{"$f":"'2. Conservation Measures'!FC117","v":0},{"$f":"'2. Conservation Measures'!FD117","v":0},{"$f":"'2. Conservation Measures'!FE117","v":0},{"$f":"'2. Conservation Measures'!FF117","v":0},{"$f":"'2. Conservation Measures'!FG117","v":0},{"$f":"'2. Conservation Measures'!FH117","v":0},{"$f":"'2. Conservation Measures'!FI117","v":0},{"$f":"'2. Conservation Measures'!FJ117","v":0},{"$f":"'2. Conservation Measures'!FK117","v":0},{"$f":"'2. Conservation Measures'!FL117","v":0},{"$f":"'2. Conservation Measures'!FM117","v":0},{"$f":"'2. Conservation Measures'!FN117","v":0},{"$f":"'2. Conservation Measures'!FO117","v":0},{"$f":"'2. Conservation Measures'!FP117","v":0},{"$f":"'2. Conservation Measures'!FQ117","v":0},{"$f":"'2. Conservation Measures'!FR117","v":0},{"$f":"'2. Conservation Measures'!FS117","v":0},{"$f":"'2. Conservation Measures'!FT117","v":0},{"$f":"'2. Conservation Measures'!FU117","v":0},{"$f":"'2. Conservation Measures'!FV117","v":0},{"$f":"'2. Conservation Measures'!FW117","v":0},{"$f":"'2. Conservation Measures'!FX117","v":0},{"$f":"'2. Conservation Measures'!FY117","v":0},{"$f":"'2. Conservation Measures'!FZ117","v":0},{"$f":"'2. Conservation Measures'!GA117","v":0},{"$f":"'2. Conservation Measures'!GB117","v":0},{"$f":"'2. Conservation Measures'!GC117","v":0},{"$f":"'2. Conservation Measures'!GD117","v":0},{"$f":"'2. Conservation Measures'!GE117","v":0},{"$f":"'2. Conservation Measures'!GF117","v":0},{"$f":"'2. Conservation Measures'!GG117","v":0},{"$f":"'2. Conservation Measures'!GH117","v":0},{"$f":"'2. Conservation Measures'!GI117","v":0},{"$f":"'2. Conservation Measures'!GJ117","v":0},{"$f":"'2. Conservation Measures'!GK117","v":0},{"$f":"'2. Conservation Measures'!GL117","v":0},{"$f":"'2. Conservation Measures'!GM117","v":0},{"$f":"'2. Conservation Measures'!GN117","v":0},null,{"$f":"'2. Conservation Measures'!GP117","v":0},{"$f":"'2. Conservation Measures'!GQ117","v":0},{"$f":"'2. Conservation Measures'!GR117","v":0},{"$f":"'2. Conservation Measures'!GS117","v":0},{"$f":"'2. Conservation Measures'!GT117","v":0},{"$f":"'2. Conservation Measures'!GU117","v":0},{"$f":"'2. Conservation Measures'!GV117","v":0},{"$f":"'2. Conservation Measures'!GW117","v":0},{"$f":"'2. Conservation Measures'!GX117","v":0},{"$f":"'2. Conservation Measures'!GY117","v":0},{"$f":"'2. Conservation Measures'!GZ117","v":0},{"$f":"'2. Conservation Measures'!HA117","v":0},{"$f":"'2. Conservation Measures'!HB117","v":0},{"$f":"'2. Conservation Measures'!HC117","v":0},{"$f":"'2. Conservation Measures'!HD117","v":0},{"$f":"'2. Conservation Measures'!HE117","v":0},{"$f":"'2. Conservation Measures'!HF117","v":0},{"$f":"'2. Conservation Measures'!HG117","v":0},{"$f":"'2. Conservation Measures'!HH117","v":0},{"$f":"'2. Conservation Measures'!HI117","v":0},{"$f":"'2. Conservation Measures'!HJ117","v":0},{"$f":"'2. Conservation Measures'!HK117","v":0},{"$f":"'2. Conservation Measures'!HL117","v":0},{"$f":"'2. Conservation Measures'!HM117","v":0},{"$f":"'2. Conservation Measures'!HN117","v":0},{"$f":"'2. Conservation Measures'!HO117","v":0},{"$f":"'2. Conservation Measures'!HP117","v":0},{"$f":"'2. Conservation Measures'!HQ117","v":0},{"$f":"'2. Conservation Measures'!HR117","v":0},{"$f":"'2. Conservation Measures'!HS117","v":0},{"$f":"'2. Conservation Measures'!HT117","v":0},{"$f":"'2. Conservation Measures'!HU117","v":0},{"$f":"'2. Conservation Measures'!HV117","v":0},{"$f":"'2. Conservation Measures'!HW117","v":0},{"$f":"'2. Conservation Measures'!HX117","v":0},{"$f":"'2. Conservation Measures'!HY117","v":0},{"$f":"'2. Conservation Measures'!HZ117","v":0},{"$f":"'2. Conservation Measures'!IA117","v":0},{"$f":"'2. Conservation Measures'!IB117","v":0},{"$f":"'2. Conservation Measures'!IC117","v":0},{"$f":"'2. Conservation Measures'!ID117","v":0},{"$f":"'2. Conservation Measures'!IE117","v":0},{"$f":"'2. Conservation Measures'!IF117","v":0},{"$f":"'2. Conservation Measures'!IG117","v":0},{"$f":"'2. Conservation Measures'!IH117","v":0},{"$f":"'2. Conservation Measures'!II117","v":0},{"$f":"'2. Conservation Measures'!IJ117","v":0},{"$f":"'2. Conservation Measures'!IK117","v":0},{"$f":"'2. Conservation Measures'!IL117","v":0},{"$f":"'2. Conservation Measures'!IM117","v":0},{"$f":"'2. Conservation Measures'!IN117","v":0},null,{"$f":"'2. Conservation Measures'!IP117","v":0},{"$f":"'2. Conservation Measures'!IQ117","v":0},{"$f":"'2. Conservation Measures'!IR117","v":0},{"$f":"'2. Conservation Measures'!IS117","v":0},{"$f":"'2. Conservation Measures'!IT117","v":0},{"$f":"'2. Conservation Measures'!IU117","v":0},{"$f":"'2. Conservation Measures'!IV117","v":0},{"$f":"'2. Conservation Measures'!IW117","v":0},{"$f":"'2. Conservation Measures'!IX117","v":0},{"$f":"'2. Conservation Measures'!IY117","v":0},{"$f":"'2. Conservation Measures'!IZ117","v":0},{"$f":"'2. Conservation Measures'!JA117","v":0},{"$f":"'2. Conservation Measures'!JB117","v":0},{"$f":"'2. Conservation Measures'!JC117","v":0},{"$f":"'2. Conservation Measures'!JD117","v":0},{"$f":"'2. Conservation Measures'!JE117","v":0},{"$f":"'2. Conservation Measures'!JF117","v":0},{"$f":"'2. Conservation Measures'!JG117","v":0},{"$f":"'2. Conservation Measures'!JH117","v":0},{"$f":"'2. Conservation Measures'!JI117","v":0},{"$f":"'2. Conservation Measures'!JJ117","v":0},{"$f":"'2. Conservation Measures'!JK117","v":0},{"$f":"'2. Conservation Measures'!JL117","v":0},{"$f":"'2. Conservation Measures'!JM117","v":0},{"$f":"'2. Conservation Measures'!JN117","v":0},{"$f":"'2. Conservation Measures'!JO117","v":0},{"$f":"'2. Conservation Measures'!JP117","v":0},{"$f":"'2. Conservation Measures'!JQ117","v":0},{"$f":"'2. Conservation Measures'!JR117","v":0},{"$f":"'2. Conservation Measures'!JS117","v":0},{"$f":"'2. Conservation Measures'!JT117","v":0},{"$f":"'2. Conservation Measures'!JU117","v":0},{"$f":"'2. Conservation Measures'!JV117","v":0},{"$f":"'2. Conservation Measures'!JW117","v":0},{"$f":"'2. Conservation Measures'!JX117","v":0},{"$f":"'2. Conservation Measures'!JY117","v":0},{"$f":"'2. Conservation Measures'!JZ117","v":0},{"$f":"'2. Conservation Measures'!KA117","v":0},{"$f":"'2. Conservation Measures'!KB117","v":0},{"$f":"'2. Conservation Measures'!KC117","v":0},{"$f":"'2. Conservation Measures'!KD117","v":0},{"$f":"'2. Conservation Measures'!KE117","v":0},{"$f":"'2. Conservation Measures'!KF117","v":0},{"$f":"'2. Conservation Measures'!KG117","v":0},{"$f":"'2. Conservation Measures'!KH117","v":0},{"$f":"'2. Conservation Measures'!KI117","v":0},{"$f":"'2. Conservation Measures'!KJ117","v":0},{"$f":"'2. Conservation Measures'!KK117","v":0},{"$f":"'2. Conservation Measures'!KL117","v":0},{"$f":"'2. Conservation Measures'!KM117","v":0},{"$f":"'2. Conservation Measures'!KN117","v":0}]
[null,{"$f":"'2. Conservation Measures'!B118","v":"USR-ICI-11"},{"$f":"'2. Conservation Measures'!C118","v":0},{"$f":"'2. Conservation Measures'!D118","v":"N"},null,{"$f":"'2. Conservation Measures'!AA118","v":0},null,{"$f":"'2. Conservation Measures'!AO118","v":0},{"$f":"'2. Conservation Measures'!AP118","v":0},{"$f":"'2. Conservation Measures'!AQ118","v":0},{"$f":"'2. Conservation Measures'!AR118","v":0},{"$f":"'2. Conservation Measures'!AS118","v":0},{"$f":"'2. Conservation Measures'!AT118","v":0},{"$f":"'2. Conservation Measures'!AU118","v":0},{"$f":"'2. Conservation Measures'!AV118","v":0},{"$f":"'2. Conservation Measures'!AW118","v":0},{"$f":"'2. Conservation Measures'!AX118","v":0},{"$f":"'2. Conservation Measures'!AY118","v":0},{"$f":"'2. Conservation Measures'!AZ118","v":0},{"$f":"'2. Conservation Measures'!BA118","v":0},{"$f":"'2. Conservation Measures'!BB118","v":0},{"$f":"'2. Conservation Measures'!BC118","v":0},{"$f":"'2. Conservation Measures'!BD118","v":0},{"$f":"'2. Conservation Measures'!BE118","v":0},{"$f":"'2. Conservation Measures'!BF118","v":0},{"$f":"'2. Conservation Measures'!BG118","v":0},{"$f":"'2. Conservation Measures'!BH118","v":0},{"$f":"'2. Conservation Measures'!BI118","v":0},{"$f":"'2. Conservation Measures'!BJ118","v":0},{"$f":"'2. Conservation Measures'!BK118","v":0},{"$f":"'2. Conservation Measures'!BL118","v":0},{"$f":"'2. Conservation Measures'!BM118","v":0},{"$f":"'2. Conservation Measures'!BN118","v":0},{"$f":"'2. Conservation Measures'!BO118","v":0},{"$f":"'2. Conservation Measures'!BP118","v":0},{"$f":"'2. Conservation Measures'!BQ118","v":0},{"$f":"'2. Conservation Measures'!BR118","v":0},{"$f":"'2. Conservation Measures'!BS118","v":0},{"$f":"'2. Conservation Measures'!BT118","v":0},{"$f":"'2. Conservation Measures'!BU118","v":0},{"$f":"'2. Conservation Measures'!BV118","v":0},{"$f":"'2. Conservation Measures'!BW118","v":0},{"$f":"'2. Conservation Measures'!BX118","v":0},{"$f":"'2. Conservation Measures'!BY118","v":0},{"$f":"'2. Conservation Measures'!BZ118","v":0},{"$f":"'2. Conservation Measures'!CA118","v":0},{"$f":"'2. Conservation Measures'!CB118","v":0},{"$f":"'2. Conservation Measures'!CC118","v":0},{"$f":"'2. Conservation Measures'!CD118","v":0},{"$f":"'2. Conservation Measures'!CE118","v":0},{"$f":"'2. Conservation Measures'!CF118","v":0},{"$f":"'2. Conservation Measures'!CG118","v":0},{"$f":"'2. Conservation Measures'!CH118","v":0},{"$f":"'2. Conservation Measures'!CI118","v":0},{"$f":"'2. Conservation Measures'!CJ118","v":0},{"$f":"'2. Conservation Measures'!CK118","v":0},{"$f":"'2. Conservation Measures'!CL118","v":0},{"$f":"'2. Conservation Measures'!CM118","v":0},null,{"$f":"'2. Conservation Measures'!CO118","v":0},{"$f":"'2. Conservation Measures'!CP118","v":0},{"$f":"'2. Conservation Measures'!CQ118","v":0},{"$f":"'2. Conservation Measures'!CR118","v":0},{"$f":"'2. Conservation Measures'!CS118","v":0},{"$f":"'2. Conservation Measures'!CT118","v":0},{"$f":"'2. Conservation Measures'!CU118","v":0},{"$f":"'2. Conservation Measures'!CV118","v":0},{"$f":"'2. Conservation Measures'!CW118","v":0},{"$f":"'2. Conservation Measures'!CX118","v":0},{"$f":"'2. Conservation Measures'!CY118","v":0},{"$f":"'2. Conservation Measures'!CZ118","v":0},{"$f":"'2. Conservation Measures'!DA118","v":0},{"$f":"'2. Conservation Measures'!DB118","v":0},{"$f":"'2. Conservation Measures'!DC118","v":0},{"$f":"'2. Conservation Measures'!DD118","v":0},{"$f":"'2. Conservation Measures'!DE118","v":0},{"$f":"'2. Conservation Measures'!DF118","v":0},{"$f":"'2. Conservation Measures'!DG118","v":0},{"$f":"'2. Conservation Measures'!DH118","v":0},{"$f":"'2. Conservation Measures'!DI118","v":0},{"$f":"'2. Conservation Measures'!DJ118","v":0},{"$f":"'2. Conservation Measures'!DK118","v":0},{"$f":"'2. Conservation Measures'!DL118","v":0},{"$f":"'2. Conservation Measures'!DM118","v":0},{"$f":"'2. Conservation Measures'!DN118","v":0},{"$f":"'2. Conservation Measures'!DO118","v":0},{"$f":"'2. Conservation Measures'!DP118","v":0},{"$f":"'2. Conservation Measures'!DQ118","v":0},{"$f":"'2. Conservation Measures'!DR118","v":0},{"$f":"'2. Conservation Measures'!DS118","v":0},{"$f":"'2. Conservation Measures'!DT118","v":0},{"$f":"'2. Conservation Measures'!DU118","v":0},{"$f":"'2. Conservation Measures'!DV118","v":0},{"$f":"'2. Conservation Measures'!DW118","v":0},{"$f":"'2. Conservation Measures'!DX118","v":0},{"$f":"'2. Conservation Measures'!DY118","v":0},{"$f":"'2. Conservation Measures'!DZ118","v":0},{"$f":"'2. Conservation Measures'!EA118","v":0},{"$f":"'2. Conservation Measures'!EB118","v":0},{"$f":"'2. Conservation Measures'!EC118","v":0},{"$f":"'2. Conservation Measures'!ED118","v":0},{"$f":"'2. Conservation Measures'!EE118","v":0},{"$f":"'2. Conservation Measures'!EF118","v":0},{"$f":"'2. Conservation Measures'!EG118","v":0},{"$f":"'2. Conservation Measures'!EH118","v":0},{"$f":"'2. Conservation Measures'!EI118","v":0},{"$f":"'2. Conservation Measures'!EJ118","v":0},{"$f":"'2. Conservation Measures'!EK118","v":0},{"$f":"'2. Conservation Measures'!EL118","v":0},{"$f":"'2. Conservation Measures'!EM118","v":0},null,{"$f":"'2. Conservation Measures'!KP118","v":0},{"$f":"'2. Conservation Measures'!KQ118","v":0},{"$f":"'2. Conservation Measures'!KR118","v":0},{"$f":"'2. Conservation Measures'!KS118","v":0},{"$f":"'2. Conservation Measures'!KT118","v":0},{"$f":"'2. Conservation Measures'!KU118","v":0},{"$f":"'2. Conservation Measures'!KV118","v":0},{"$f":"'2. Conservation Measures'!KW118","v":0},{"$f":"'2. Conservation Measures'!KX118","v":0},{"$f":"'2. Conservation Measures'!KY118","v":0},{"$f":"'2. Conservation Measures'!KZ118","v":0},{"$f":"'2. Conservation Measures'!LA118","v":0},{"$f":"'2. Conservation Measures'!LB118","v":0},{"$f":"'2. Conservation Measures'!LC118","v":0},{"$f":"'2. Conservation Measures'!LD118","v":0},{"$f":"'2. Conservation Measures'!LE118","v":0},{"$f":"'2. Conservation Measures'!LF118","v":0},{"$f":"'2. Conservation Measures'!LG118","v":0},{"$f":"'2. Conservation Measures'!LH118","v":0},{"$f":"'2. Conservation Measures'!LI118","v":0},{"$f":"'2. Conservation Measures'!LJ118","v":0},{"$f":"'2. Conservation Measures'!LK118","v":0},{"$f":"'2. Conservation Measures'!LL118","v":0},{"$f":"'2. Conservation Measures'!LM118","v":0},{"$f":"'2. Conservation Measures'!LN118","v":0},{"$f":"'2. Conservation Measures'!LO118","v":0},{"$f":"'2. Conservation Measures'!LP118","v":0},{"$f":"'2. Conservation Measures'!LQ118","v":0},{"$f":"'2. Conservation Measures'!LR118","v":0},{"$f":"'2. Conservation Measures'!LS118","v":0},{"$f":"'2. Conservation Measures'!LT118","v":0},{"$f":"'2. Conservation Measures'!LU118","v":0},{"$f":"'2. Conservation Measures'!LV118","v":0},{"$f":"'2. Conservation Measures'!LW118","v":0},{"$f":"'2. Conservation Measures'!LX118","v":0},{"$f":"'2. Conservation Measures'!LY118","v":0},{"$f":"'2. Conservation Measures'!LZ118","v":0},{"$f":"'2. Conservation Measures'!MA118","v":0},{"$f":"'2. Conservation Measures'!MB118","v":0},{"$f":"'2. Conservation Measures'!MC118","v":0},{"$f":"'2. Conservation Measures'!MD118","v":0},{"$f":"'2. Conservation Measures'!ME118","v":0},{"$f":"'2. Conservation Measures'!MF118","v":0},{"$f":"'2. Conservation Measures'!MG118","v":0},{"$f":"'2. Conservation Measures'!MH118","v":0},{"$f":"'2. Conservation Measures'!MI118","v":0},{"$f":"'2. Conservation Measures'!MJ118","v":0},{"$f":"'2. Conservation Measures'!MK118","v":0},{"$f":"'2. Conservation Measures'!ML118","v":0},{"$f":"'2. Conservation Measures'!MM118","v":0},{"$f":"'2. Conservation Measures'!MN118","v":0},null,{"$f":"'2. Conservation Measures'!EP118","v":0},{"$f":"'2. Conservation Measures'!EQ118","v":0},{"$f":"'2. Conservation Measures'!ER118","v":0},{"$f":"'2. Conservation Measures'!ES118","v":0},{"$f":"'2. Conservation Measures'!ET118","v":0},{"$f":"'2. Conservation Measures'!EU118","v":0},{"$f":"'2. Conservation Measures'!EV118","v":0},{"$f":"'2. Conservation Measures'!EW118","v":0},{"$f":"'2. Conservation Measures'!EX118","v":0},{"$f":"'2. Conservation Measures'!EY118","v":0},{"$f":"'2. Conservation Measures'!EZ118","v":0},{"$f":"'2. Conservation Measures'!FA118","v":0},{"$f":"'2. Conservation Measures'!FB118","v":0},{"$f":"'2. Conservation Measures'!FC118","v":0},{"$f":"'2. Conservation Measures'!FD118","v":0},{"$f":"'2. Conservation Measures'!FE118","v":0},{"$f":"'2. Conservation Measures'!FF118","v":0},{"$f":"'2. Conservation Measures'!FG118","v":0},{"$f":"'2. Conservation Measures'!FH118","v":0},{"$f":"'2. Conservation Measures'!FI118","v":0},{"$f":"'2. Conservation Measures'!FJ118","v":0},{"$f":"'2. Conservation Measures'!FK118","v":0},{"$f":"'2. Conservation Measures'!FL118","v":0},{"$f":"'2. Conservation Measures'!FM118","v":0},{"$f":"'2. Conservation Measures'!FN118","v":0},{"$f":"'2. Conservation Measures'!FO118","v":0},{"$f":"'2. Conservation Measures'!FP118","v":0},{"$f":"'2. Conservation Measures'!FQ118","v":0},{"$f":"'2. Conservation Measures'!FR118","v":0},{"$f":"'2. Conservation Measures'!FS118","v":0},{"$f":"'2. Conservation Measures'!FT118","v":0},{"$f":"'2. Conservation Measures'!FU118","v":0},{"$f":"'2. Conservation Measures'!FV118","v":0},{"$f":"'2. Conservation Measures'!FW118","v":0},{"$f":"'2. Conservation Measures'!FX118","v":0},{"$f":"'2. Conservation Measures'!FY118","v":0},{"$f":"'2. Conservation Measures'!FZ118","v":0},{"$f":"'2. Conservation Measures'!GA118","v":0},{"$f":"'2. Conservation Measures'!GB118","v":0},{"$f":"'2. Conservation Measures'!GC118","v":0},{"$f":"'2. Conservation Measures'!GD118","v":0},{"$f":"'2. Conservation Measures'!GE118","v":0},{"$f":"'2. Conservation Measures'!GF118","v":0},{"$f":"'2. Conservation Measures'!GG118","v":0},{"$f":"'2. Conservation Measures'!GH118","v":0},{"$f":"'2. Conservation Measures'!GI118","v":0},{"$f":"'2. Conservation Measures'!GJ118","v":0},{"$f":"'2. Conservation Measures'!GK118","v":0},{"$f":"'2. Conservation Measures'!GL118","v":0},{"$f":"'2. Conservation Measures'!GM118","v":0},{"$f":"'2. Conservation Measures'!GN118","v":0},null,{"$f":"'2. Conservation Measures'!GP118","v":0},{"$f":"'2. Conservation Measures'!GQ118","v":0},{"$f":"'2. Conservation Measures'!GR118","v":0},{"$f":"'2. Conservation Measures'!GS118","v":0},{"$f":"'2. Conservation Measures'!GT118","v":0},{"$f":"'2. Conservation Measures'!GU118","v":0},{"$f":"'2. Conservation Measures'!GV118","v":0},{"$f":"'2. Conservation Measures'!GW118","v":0},{"$f":"'2. Conservation Measures'!GX118","v":0},{"$f":"'2. Conservation Measures'!GY118","v":0},{"$f":"'2. Conservation Measures'!GZ118","v":0},{"$f":"'2. Conservation Measures'!HA118","v":0},{"$f":"'2. Conservation Measures'!HB118","v":0},{"$f":"'2. Conservation Measures'!HC118","v":0},{"$f":"'2. Conservation Measures'!HD118","v":0},{"$f":"'2. Conservation Measures'!HE118","v":0},{"$f":"'2. Conservation Measures'!HF118","v":0},{"$f":"'2. Conservation Measures'!HG118","v":0},{"$f":"'2. Conservation Measures'!HH118","v":0},{"$f":"'2. Conservation Measures'!HI118","v":0},{"$f":"'2. Conservation Measures'!HJ118","v":0},{"$f":"'2. Conservation Measures'!HK118","v":0},{"$f":"'2. Conservation Measures'!HL118","v":0},{"$f":"'2. Conservation Measures'!HM118","v":0},{"$f":"'2. Conservation Measures'!HN118","v":0},{"$f":"'2. Conservation Measures'!HO118","v":0},{"$f":"'2. Conservation Measures'!HP118","v":0},{"$f":"'2. Conservation Measures'!HQ118","v":0},{"$f":"'2. Conservation Measures'!HR118","v":0},{"$f":"'2. Conservation Measures'!HS118","v":0},{"$f":"'2. Conservation Measures'!HT118","v":0},{"$f":"'2. Conservation Measures'!HU118","v":0},{"$f":"'2. Conservation Measures'!HV118","v":0},{"$f":"'2. Conservation Measures'!HW118","v":0},{"$f":"'2. Conservation Measures'!HX118","v":0},{"$f":"'2. Conservation Measures'!HY118","v":0},{"$f":"'2. Conservation Measures'!HZ118","v":0},{"$f":"'2. Conservation Measures'!IA118","v":0},{"$f":"'2. Conservation Measures'!IB118","v":0},{"$f":"'2. Conservation Measures'!IC118","v":0},{"$f":"'2. Conservation Measures'!ID118","v":0},{"$f":"'2. Conservation Measures'!IE118","v":0},{"$f":"'2. Conservation Measures'!IF118","v":0},{"$f":"'2. Conservation Measures'!IG118","v":0},{"$f":"'2. Conservation Measures'!IH118","v":0},{"$f":"'2. Conservation Measures'!II118","v":0},{"$f":"'2. Conservation Measures'!IJ118","v":0},{"$f":"'2. Conservation Measures'!IK118","v":0},{"$f":"'2. Conservation Measures'!IL118","v":0},{"$f":"'2. Conservation Measures'!IM118","v":0},{"$f":"'2. Conservation Measures'!IN118","v":0},null,{"$f":"'2. Conservation Measures'!IP118","v":0},{"$f":"'2. Conservation Measures'!IQ118","v":0},{"$f":"'2. Conservation Measures'!IR118","v":0},{"$f":"'2. Conservation Measures'!IS118","v":0},{"$f":"'2. Conservation Measures'!IT118","v":0},{"$f":"'2. Conservation Measures'!IU118","v":0},{"$f":"'2. Conservation Measures'!IV118","v":0},{"$f":"'2. Conservation Measures'!IW118","v":0},{"$f":"'2. Conservation Measures'!IX118","v":0},{"$f":"'2. Conservation Measures'!IY118","v":0},{"$f":"'2. Conservation Measures'!IZ118","v":0},{"$f":"'2. Conservation Measures'!JA118","v":0},{"$f":"'2. Conservation Measures'!JB118","v":0},{"$f":"'2. Conservation Measures'!JC118","v":0},{"$f":"'2. Conservation Measures'!JD118","v":0},{"$f":"'2. Conservation Measures'!JE118","v":0},{"$f":"'2. Conservation Measures'!JF118","v":0},{"$f":"'2. Conservation Measures'!JG118","v":0},{"$f":"'2. Conservation Measures'!JH118","v":0},{"$f":"'2. Conservation Measures'!JI118","v":0},{"$f":"'2. Conservation Measures'!JJ118","v":0},{"$f":"'2. Conservation Measures'!JK118","v":0},{"$f":"'2. Conservation Measures'!JL118","v":0},{"$f":"'2. Conservation Measures'!JM118","v":0},{"$f":"'2. Conservation Measures'!JN118","v":0},{"$f":"'2. Conservation Measures'!JO118","v":0},{"$f":"'2. Conservation Measures'!JP118","v":0},{"$f":"'2. Conservation Measures'!JQ118","v":0},{"$f":"'2. Conservation Measures'!JR118","v":0},{"$f":"'2. Conservation Measures'!JS118","v":0},{"$f":"'2. Conservation Measures'!JT118","v":0},{"$f":"'2. Conservation Measures'!JU118","v":0},{"$f":"'2. Conservation Measures'!JV118","v":0},{"$f":"'2. Conservation Measures'!JW118","v":0},{"$f":"'2. Conservation Measures'!JX118","v":0},{"$f":"'2. Conservation Measures'!JY118","v":0},{"$f":"'2. Conservation Measures'!JZ118","v":0},{"$f":"'2. Conservation Measures'!KA118","v":0},{"$f":"'2. Conservation Measures'!KB118","v":0},{"$f":"'2. Conservation Measures'!KC118","v":0},{"$f":"'2. Conservation Measures'!KD118","v":0},{"$f":"'2. Conservation Measures'!KE118","v":0},{"$f":"'2. Conservation Measures'!KF118","v":0},{"$f":"'2. Conservation Measures'!KG118","v":0},{"$f":"'2. Conservation Measures'!KH118","v":0},{"$f":"'2. Conservation Measures'!KI118","v":0},{"$f":"'2. Conservation Measures'!KJ118","v":0},{"$f":"'2. Conservation Measures'!KK118","v":0},{"$f":"'2. Conservation Measures'!KL118","v":0},{"$f":"'2. Conservation Measures'!KM118","v":0},{"$f":"'2. Conservation Measures'!KN118","v":0}]
[null,{"$f":"'2. Conservation Measures'!B119","v":"USR-ICI-12"},{"$f":"'2. Conservation Measures'!C119","v":0},{"$f":"'2. Conservation Measures'!D119","v":"N"},null,{"$f":"'2. Conservation Measures'!AA119","v":0},null,{"$f":"'2. Conservation Measures'!AO119","v":0},{"$f":"'2. Conservation Measures'!AP119","v":0},{"$f":"'2. Conservation Measures'!AQ119","v":0},{"$f":"'2. Conservation Measures'!AR119","v":0},{"$f":"'2. Conservation Measures'!AS119","v":0},{"$f":"'2. Conservation Measures'!AT119","v":0},{"$f":"'2. Conservation Measures'!AU119","v":0},{"$f":"'2. Conservation Measures'!AV119","v":0},{"$f":"'2. Conservation Measures'!AW119","v":0},{"$f":"'2. Conservation Measures'!AX119","v":0},{"$f":"'2. Conservation Measures'!AY119","v":0},{"$f":"'2. Conservation Measures'!AZ119","v":0},{"$f":"'2. Conservation Measures'!BA119","v":0},{"$f":"'2. Conservation Measures'!BB119","v":0},{"$f":"'2. Conservation Measures'!BC119","v":0},{"$f":"'2. Conservation Measures'!BD119","v":0},{"$f":"'2. Conservation Measures'!BE119","v":0},{"$f":"'2. Conservation Measures'!BF119","v":0},{"$f":"'2. Conservation Measures'!BG119","v":0},{"$f":"'2. Conservation Measures'!BH119","v":0},{"$f":"'2. Conservation Measures'!BI119","v":0},{"$f":"'2. Conservation Measures'!BJ119","v":0},{"$f":"'2. Conservation Measures'!BK119","v":0},{"$f":"'2. Conservation Measures'!BL119","v":0},{"$f":"'2. Conservation Measures'!BM119","v":0},{"$f":"'2. Conservation Measures'!BN119","v":0},{"$f":"'2. Conservation Measures'!BO119","v":0},{"$f":"'2. Conservation Measures'!BP119","v":0},{"$f":"'2. Conservation Measures'!BQ119","v":0},{"$f":"'2. Conservation Measures'!BR119","v":0},{"$f":"'2. Conservation Measures'!BS119","v":0},{"$f":"'2. Conservation Measures'!BT119","v":0},{"$f":"'2. Conservation Measures'!BU119","v":0},{"$f":"'2. Conservation Measures'!BV119","v":0},{"$f":"'2. Conservation Measures'!BW119","v":0},{"$f":"'2. Conservation Measures'!BX119","v":0},{"$f":"'2. Conservation Measures'!BY119","v":0},{"$f":"'2. Conservation Measures'!BZ119","v":0},{"$f":"'2. Conservation Measures'!CA119","v":0},{"$f":"'2. Conservation Measures'!CB119","v":0},{"$f":"'2. Conservation Measures'!CC119","v":0},{"$f":"'2. Conservation Measures'!CD119","v":0},{"$f":"'2. Conservation Measures'!CE119","v":0},{"$f":"'2. Conservation Measures'!CF119","v":0},{"$f":"'2. Conservation Measures'!CG119","v":0},{"$f":"'2. Conservation Measures'!CH119","v":0},{"$f":"'2. Conservation Measures'!CI119","v":0},{"$f":"'2. Conservation Measures'!CJ119","v":0},{"$f":"'2. Conservation Measures'!CK119","v":0},{"$f":"'2. Conservation Measures'!CL119","v":0},{"$f":"'2. Conservation Measures'!CM119","v":0},null,{"$f":"'2. Conservation Measures'!CO119","v":0},{"$f":"'2. Conservation Measures'!CP119","v":0},{"$f":"'2. Conservation Measures'!CQ119","v":0},{"$f":"'2. Conservation Measures'!CR119","v":0},{"$f":"'2. Conservation Measures'!CS119","v":0},{"$f":"'2. Conservation Measures'!CT119","v":0},{"$f":"'2. Conservation Measures'!CU119","v":0},{"$f":"'2. Conservation Measures'!CV119","v":0},{"$f":"'2. Conservation Measures'!CW119","v":0},{"$f":"'2. Conservation Measures'!CX119","v":0},{"$f":"'2. Conservation Measures'!CY119","v":0},{"$f":"'2. Conservation Measures'!CZ119","v":0},{"$f":"'2. Conservation Measures'!DA119","v":0},{"$f":"'2. Conservation Measures'!DB119","v":0},{"$f":"'2. Conservation Measures'!DC119","v":0},{"$f":"'2. Conservation Measures'!DD119","v":0},{"$f":"'2. Conservation Measures'!DE119","v":0},{"$f":"'2. Conservation Measures'!DF119","v":0},{"$f":"'2. Conservation Measures'!DG119","v":0},{"$f":"'2. Conservation Measures'!DH119","v":0},{"$f":"'2. Conservation Measures'!DI119","v":0},{"$f":"'2. Conservation Measures'!DJ119","v":0},{"$f":"'2. Conservation Measures'!DK119","v":0},{"$f":"'2. Conservation Measures'!DL119","v":0},{"$f":"'2. Conservation Measures'!DM119","v":0},{"$f":"'2. Conservation Measures'!DN119","v":0},{"$f":"'2. Conservation Measures'!DO119","v":0},{"$f":"'2. Conservation Measures'!DP119","v":0},{"$f":"'2. Conservation Measures'!DQ119","v":0},{"$f":"'2. Conservation Measures'!DR119","v":0},{"$f":"'2. Conservation Measures'!DS119","v":0},{"$f":"'2. Conservation Measures'!DT119","v":0},{"$f":"'2. Conservation Measures'!DU119","v":0},{"$f":"'2. Conservation Measures'!DV119","v":0},{"$f":"'2. Conservation Measures'!DW119","v":0},{"$f":"'2. Conservation Measures'!DX119","v":0},{"$f":"'2. Conservation Measures'!DY119","v":0},{"$f":"'2. Conservation Measures'!DZ119","v":0},{"$f":"'2. Conservation Measures'!EA119","v":0},{"$f":"'2. Conservation Measures'!EB119","v":0},{"$f":"'2. Conservation Measures'!EC119","v":0},{"$f":"'2. Conservation Measures'!ED119","v":0},{"$f":"'2. Conservation Measures'!EE119","v":0},{"$f":"'2. Conservation Measures'!EF119","v":0},{"$f":"'2. Conservation Measures'!EG119","v":0},{"$f":"'2. Conservation Measures'!EH119","v":0},{"$f":"'2. Conservation Measures'!EI119","v":0},{"$f":"'2. Conservation Measures'!EJ119","v":0},{"$f":"'2. Conservation Measures'!EK119","v":0},{"$f":"'2. Conservation Measures'!EL119","v":0},{"$f":"'2. Conservation Measures'!EM119","v":0},null,{"$f":"'2. Conservation Measures'!KP119","v":0},{"$f":"'2. Conservation Measures'!KQ119","v":0},{"$f":"'2. Conservation Measures'!KR119","v":0},{"$f":"'2. Conservation Measures'!KS119","v":0},{"$f":"'2. Conservation Measures'!KT119","v":0},{"$f":"'2. Conservation Measures'!KU119","v":0},{"$f":"'2. Conservation Measures'!KV119","v":0},{"$f":"'2. Conservation Measures'!KW119","v":0},{"$f":"'2. Conservation Measures'!KX119","v":0},{"$f":"'2. Conservation Measures'!KY119","v":0},{"$f":"'2. Conservation Measures'!KZ119","v":0},{"$f":"'2. Conservation Measures'!LA119","v":0},{"$f":"'2. Conservation Measures'!LB119","v":0},{"$f":"'2. Conservation Measures'!LC119","v":0},{"$f":"'2. Conservation Measures'!LD119","v":0},{"$f":"'2. Conservation Measures'!LE119","v":0},{"$f":"'2. Conservation Measures'!LF119","v":0},{"$f":"'2. Conservation Measures'!LG119","v":0},{"$f":"'2. Conservation Measures'!LH119","v":0},{"$f":"'2. Conservation Measures'!LI119","v":0},{"$f":"'2. Conservation Measures'!LJ119","v":0},{"$f":"'2. Conservation Measures'!LK119","v":0},{"$f":"'2. Conservation Measures'!LL119","v":0},{"$f":"'2. Conservation Measures'!LM119","v":0},{"$f":"'2. Conservation Measures'!LN119","v":0},{"$f":"'2. Conservation Measures'!LO119","v":0},{"$f":"'2. Conservation Measures'!LP119","v":0},{"$f":"'2. Conservation Measures'!LQ119","v":0},{"$f":"'2. Conservation Measures'!LR119","v":0},{"$f":"'2. Conservation Measures'!LS119","v":0},{"$f":"'2. Conservation Measures'!LT119","v":0},{"$f":"'2. Conservation Measures'!LU119","v":0},{"$f":"'2. Conservation Measures'!LV119","v":0},{"$f":"'2. Conservation Measures'!LW119","v":0},{"$f":"'2. Conservation Measures'!LX119","v":0},{"$f":"'2. Conservation Measures'!LY119","v":0},{"$f":"'2. Conservation Measures'!LZ119","v":0},{"$f":"'2. Conservation Measures'!MA119","v":0},{"$f":"'2. Conservation Measures'!MB119","v":0},{"$f":"'2. Conservation Measures'!MC119","v":0},{"$f":"'2. Conservation Measures'!MD119","v":0},{"$f":"'2. Conservation Measures'!ME119","v":0},{"$f":"'2. Conservation Measures'!MF119","v":0},{"$f":"'2. Conservation Measures'!MG119","v":0},{"$f":"'2. Conservation Measures'!MH119","v":0},{"$f":"'2. Conservation Measures'!MI119","v":0},{"$f":"'2. Conservation Measures'!MJ119","v":0},{"$f":"'2. Conservation Measures'!MK119","v":0},{"$f":"'2. Conservation Measures'!ML119","v":0},{"$f":"'2. Conservation Measures'!MM119","v":0},{"$f":"'2. Conservation Measures'!MN119","v":0},null,{"$f":"'2. Conservation Measures'!EP119","v":0},{"$f":"'2. Conservation Measures'!EQ119","v":0},{"$f":"'2. Conservation Measures'!ER119","v":0},{"$f":"'2. Conservation Measures'!ES119","v":0},{"$f":"'2. Conservation Measures'!ET119","v":0},{"$f":"'2. Conservation Measures'!EU119","v":0},{"$f":"'2. Conservation Measures'!EV119","v":0},{"$f":"'2. Conservation Measures'!EW119","v":0},{"$f":"'2. Conservation Measures'!EX119","v":0},{"$f":"'2. Conservation Measures'!EY119","v":0},{"$f":"'2. Conservation Measures'!EZ119","v":0},{"$f":"'2. Conservation Measures'!FA119","v":0},{"$f":"'2. Conservation Measures'!FB119","v":0},{"$f":"'2. Conservation Measures'!FC119","v":0},{"$f":"'2. Conservation Measures'!FD119","v":0},{"$f":"'2. Conservation Measures'!FE119","v":0},{"$f":"'2. Conservation Measures'!FF119","v":0},{"$f":"'2. Conservation Measures'!FG119","v":0},{"$f":"'2. Conservation Measures'!FH119","v":0},{"$f":"'2. Conservation Measures'!FI119","v":0},{"$f":"'2. Conservation Measures'!FJ119","v":0},{"$f":"'2. Conservation Measures'!FK119","v":0},{"$f":"'2. Conservation Measures'!FL119","v":0},{"$f":"'2. Conservation Measures'!FM119","v":0},{"$f":"'2. Conservation Measures'!FN119","v":0},{"$f":"'2. Conservation Measures'!FO119","v":0},{"$f":"'2. Conservation Measures'!FP119","v":0},{"$f":"'2. Conservation Measures'!FQ119","v":0},{"$f":"'2. Conservation Measures'!FR119","v":0},{"$f":"'2. Conservation Measures'!FS119","v":0},{"$f":"'2. Conservation Measures'!FT119","v":0},{"$f":"'2. Conservation Measures'!FU119","v":0},{"$f":"'2. Conservation Measures'!FV119","v":0},{"$f":"'2. Conservation Measures'!FW119","v":0},{"$f":"'2. Conservation Measures'!FX119","v":0},{"$f":"'2. Conservation Measures'!FY119","v":0},{"$f":"'2. Conservation Measures'!FZ119","v":0},{"$f":"'2. Conservation Measures'!GA119","v":0},{"$f":"'2. Conservation Measures'!GB119","v":0},{"$f":"'2. Conservation Measures'!GC119","v":0},{"$f":"'2. Conservation Measures'!GD119","v":0},{"$f":"'2. Conservation Measures'!GE119","v":0},{"$f":"'2. Conservation Measures'!GF119","v":0},{"$f":"'2. Conservation Measures'!GG119","v":0},{"$f":"'2. Conservation Measures'!GH119","v":0},{"$f":"'2. Conservation Measures'!GI119","v":0},{"$f":"'2. Conservation Measures'!GJ119","v":0},{"$f":"'2. Conservation Measures'!GK119","v":0},{"$f":"'2. Conservation Measures'!GL119","v":0},{"$f":"'2. Conservation Measures'!GM119","v":0},{"$f":"'2. Conservation Measures'!GN119","v":0},null,{"$f":"'2. Conservation Measures'!GP119","v":0},{"$f":"'2. Conservation Measures'!GQ119","v":0},{"$f":"'2. Conservation Measures'!GR119","v":0},{"$f":"'2. Conservation Measures'!GS119","v":0},{"$f":"'2. Conservation Measures'!GT119","v":0},{"$f":"'2. Conservation Measures'!GU119","v":0},{"$f":"'2. Conservation Measures'!GV119","v":0},{"$f":"'2. Conservation Measures'!GW119","v":0},{"$f":"'2. Conservation Measures'!GX119","v":0},{"$f":"'2. Conservation Measures'!GY119","v":0},{"$f":"'2. Conservation Measures'!GZ119","v":0},{"$f":"'2. Conservation Measures'!HA119","v":0},{"$f":"'2. Conservation Measures'!HB119","v":0},{"$f":"'2. Conservation Measures'!HC119","v":0},{"$f":"'2. Conservation Measures'!HD119","v":0},{"$f":"'2. Conservation Measures'!HE119","v":0},{"$f":"'2. Conservation Measures'!HF119","v":0},{"$f":"'2. Conservation Measures'!HG119","v":0},{"$f":"'2. Conservation Measures'!HH119","v":0},{"$f":"'2. Conservation Measures'!HI119","v":0},{"$f":"'2. Conservation Measures'!HJ119","v":0},{"$f":"'2. Conservation Measures'!HK119","v":0},{"$f":"'2. Conservation Measures'!HL119","v":0},{"$f":"'2. Conservation Measures'!HM119","v":0},{"$f":"'2. Conservation Measures'!HN119","v":0},{"$f":"'2. Conservation Measures'!HO119","v":0},{"$f":"'2. Conservation Measures'!HP119","v":0},{"$f":"'2. Conservation Measures'!HQ119","v":0},{"$f":"'2. Conservation Measures'!HR119","v":0},{"$f":"'2. Conservation Measures'!HS119","v":0},{"$f":"'2. Conservation Measures'!HT119","v":0},{"$f":"'2. Conservation Measures'!HU119","v":0},{"$f":"'2. Conservation Measures'!HV119","v":0},{"$f":"'2. Conservation Measures'!HW119","v":0},{"$f":"'2. Conservation Measures'!HX119","v":0},{"$f":"'2. Conservation Measures'!HY119","v":0},{"$f":"'2. Conservation Measures'!HZ119","v":0},{"$f":"'2. Conservation Measures'!IA119","v":0},{"$f":"'2. Conservation Measures'!IB119","v":0},{"$f":"'2. Conservation Measures'!IC119","v":0},{"$f":"'2. Conservation Measures'!ID119","v":0},{"$f":"'2. Conservation Measures'!IE119","v":0},{"$f":"'2. Conservation Measures'!IF119","v":0},{"$f":"'2. Conservation Measures'!IG119","v":0},{"$f":"'2. Conservation Measures'!IH119","v":0},{"$f":"'2. Conservation Measures'!II119","v":0},{"$f":"'2. Conservation Measures'!IJ119","v":0},{"$f":"'2. Conservation Measures'!IK119","v":0},{"$f":"'2. Conservation Measures'!IL119","v":0},{"$f":"'2. Conservation Measures'!IM119","v":0},{"$f":"'2. Conservation Measures'!IN119","v":0},null,{"$f":"'2. Conservation Measures'!IP119","v":0},{"$f":"'2. Conservation Measures'!IQ119","v":0},{"$f":"'2. Conservation Measures'!IR119","v":0},{"$f":"'2. Conservation Measures'!IS119","v":0},{"$f":"'2. Conservation Measures'!IT119","v":0},{"$f":"'2. Conservation Measures'!IU119","v":0},{"$f":"'2. Conservation Measures'!IV119","v":0},{"$f":"'2. Conservation Measures'!IW119","v":0},{"$f":"'2. Conservation Measures'!IX119","v":0},{"$f":"'2. Conservation Measures'!IY119","v":0},{"$f":"'2. Conservation Measures'!IZ119","v":0},{"$f":"'2. Conservation Measures'!JA119","v":0},{"$f":"'2. Conservation Measures'!JB119","v":0},{"$f":"'2. Conservation Measures'!JC119","v":0},{"$f":"'2. Conservation Measures'!JD119","v":0},{"$f":"'2. Conservation Measures'!JE119","v":0},{"$f":"'2. Conservation Measures'!JF119","v":0},{"$f":"'2. Conservation Measures'!JG119","v":0},{"$f":"'2. Conservation Measures'!JH119","v":0},{"$f":"'2. Conservation Measures'!JI119","v":0},{"$f":"'2. Conservation Measures'!JJ119","v":0},{"$f":"'2. Conservation Measures'!JK119","v":0},{"$f":"'2. Conservation Measures'!JL119","v":0},{"$f":"'2. Conservation Measures'!JM119","v":0},{"$f":"'2. Conservation Measures'!JN119","v":0},{"$f":"'2. Conservation Measures'!JO119","v":0},{"$f":"'2. Conservation Measures'!JP119","v":0},{"$f":"'2. Conservation Measures'!JQ119","v":0},{"$f":"'2. Conservation Measures'!JR119","v":0},{"$f":"'2. Conservation Measures'!JS119","v":0},{"$f":"'2. Conservation Measures'!JT119","v":0},{"$f":"'2. Conservation Measures'!JU119","v":0},{"$f":"'2. Conservation Measures'!JV119","v":0},{"$f":"'2. Conservation Measures'!JW119","v":0},{"$f":"'2. Conservation Measures'!JX119","v":0},{"$f":"'2. Conservation Measures'!JY119","v":0},{"$f":"'2. Conservation Measures'!JZ119","v":0},{"$f":"'2. Conservation Measures'!KA119","v":0},{"$f":"'2. Conservation Measures'!KB119","v":0},{"$f":"'2. Conservation Measures'!KC119","v":0},{"$f":"'2. Conservation Measures'!KD119","v":0},{"$f":"'2. Conservation Measures'!KE119","v":0},{"$f":"'2. Conservation Measures'!KF119","v":0},{"$f":"'2. Conservation Measures'!KG119","v":0},{"$f":"'2. Conservation Measures'!KH119","v":0},{"$f":"'2. Conservation Measures'!KI119","v":0},{"$f":"'2. Conservation Measures'!KJ119","v":0},{"$f":"'2. Conservation Measures'!KK119","v":0},{"$f":"'2. Conservation Measures'!KL119","v":0},{"$f":"'2. Conservation Measures'!KM119","v":0},{"$f":"'2. Conservation Measures'!KN119","v":0}]
[null,{"$f":"'2. Conservation Measures'!B120","v":"USR-ICI-13"},{"$f":"'2. Conservation Measures'!C120","v":0},{"$f":"'2. Conservation Measures'!D120","v":"N"},null,{"$f":"'2. Conservation Measures'!AA120","v":0},null,{"$f":"'2. Conservation Measures'!AO120","v":0},{"$f":"'2. Conservation Measures'!AP120","v":0},{"$f":"'2. Conservation Measures'!AQ120","v":0},{"$f":"'2. Conservation Measures'!AR120","v":0},{"$f":"'2. Conservation Measures'!AS120","v":0},{"$f":"'2. Conservation Measures'!AT120","v":0},{"$f":"'2. Conservation Measures'!AU120","v":0},{"$f":"'2. Conservation Measures'!AV120","v":0},{"$f":"'2. Conservation Measures'!AW120","v":0},{"$f":"'2. Conservation Measures'!AX120","v":0},{"$f":"'2. Conservation Measures'!AY120","v":0},{"$f":"'2. Conservation Measures'!AZ120","v":0},{"$f":"'2. Conservation Measures'!BA120","v":0},{"$f":"'2. Conservation Measures'!BB120","v":0},{"$f":"'2. Conservation Measures'!BC120","v":0},{"$f":"'2. Conservation Measures'!BD120","v":0},{"$f":"'2. Conservation Measures'!BE120","v":0},{"$f":"'2. Conservation Measures'!BF120","v":0},{"$f":"'2. Conservation Measures'!BG120","v":0},{"$f":"'2. Conservation Measures'!BH120","v":0},{"$f":"'2. Conservation Measures'!BI120","v":0},{"$f":"'2. Conservation Measures'!BJ120","v":0},{"$f":"'2. Conservation Measures'!BK120","v":0},{"$f":"'2. Conservation Measures'!BL120","v":0},{"$f":"'2. Conservation Measures'!BM120","v":0},{"$f":"'2. Conservation Measures'!BN120","v":0},{"$f":"'2. Conservation Measures'!BO120","v":0},{"$f":"'2. Conservation Measures'!BP120","v":0},{"$f":"'2. Conservation Measures'!BQ120","v":0},{"$f":"'2. Conservation Measures'!BR120","v":0},{"$f":"'2. Conservation Measures'!BS120","v":0},{"$f":"'2. Conservation Measures'!BT120","v":0},{"$f":"'2. Conservation Measures'!BU120","v":0},{"$f":"'2. Conservation Measures'!BV120","v":0},{"$f":"'2. Conservation Measures'!BW120","v":0},{"$f":"'2. Conservation Measures'!BX120","v":0},{"$f":"'2. Conservation Measures'!BY120","v":0},{"$f":"'2. Conservation Measures'!BZ120","v":0},{"$f":"'2. Conservation Measures'!CA120","v":0},{"$f":"'2. Conservation Measures'!CB120","v":0},{"$f":"'2. Conservation Measures'!CC120","v":0},{"$f":"'2. Conservation Measures'!CD120","v":0},{"$f":"'2. Conservation Measures'!CE120","v":0},{"$f":"'2. Conservation Measures'!CF120","v":0},{"$f":"'2. Conservation Measures'!CG120","v":0},{"$f":"'2. Conservation Measures'!CH120","v":0},{"$f":"'2. Conservation Measures'!CI120","v":0},{"$f":"'2. Conservation Measures'!CJ120","v":0},{"$f":"'2. Conservation Measures'!CK120","v":0},{"$f":"'2. Conservation Measures'!CL120","v":0},{"$f":"'2. Conservation Measures'!CM120","v":0},null,{"$f":"'2. Conservation Measures'!CO120","v":0},{"$f":"'2. Conservation Measures'!CP120","v":0},{"$f":"'2. Conservation Measures'!CQ120","v":0},{"$f":"'2. Conservation Measures'!CR120","v":0},{"$f":"'2. Conservation Measures'!CS120","v":0},{"$f":"'2. Conservation Measures'!CT120","v":0},{"$f":"'2. Conservation Measures'!CU120","v":0},{"$f":"'2. Conservation Measures'!CV120","v":0},{"$f":"'2. Conservation Measures'!CW120","v":0},{"$f":"'2. Conservation Measures'!CX120","v":0},{"$f":"'2. Conservation Measures'!CY120","v":0},{"$f":"'2. Conservation Measures'!CZ120","v":0},{"$f":"'2. Conservation Measures'!DA120","v":0},{"$f":"'2. Conservation Measures'!DB120","v":0},{"$f":"'2. Conservation Measures'!DC120","v":0},{"$f":"'2. Conservation Measures'!DD120","v":0},{"$f":"'2. Conservation Measures'!DE120","v":0},{"$f":"'2. Conservation Measures'!DF120","v":0},{"$f":"'2. Conservation Measures'!DG120","v":0},{"$f":"'2. Conservation Measures'!DH120","v":0},{"$f":"'2. Conservation Measures'!DI120","v":0},{"$f":"'2. Conservation Measures'!DJ120","v":0},{"$f":"'2. Conservation Measures'!DK120","v":0},{"$f":"'2. Conservation Measures'!DL120","v":0},{"$f":"'2. Conservation Measures'!DM120","v":0},{"$f":"'2. Conservation Measures'!DN120","v":0},{"$f":"'2. Conservation Measures'!DO120","v":0},{"$f":"'2. Conservation Measures'!DP120","v":0},{"$f":"'2. Conservation Measures'!DQ120","v":0},{"$f":"'2. Conservation Measures'!DR120","v":0},{"$f":"'2. Conservation Measures'!DS120","v":0},{"$f":"'2. Conservation Measures'!DT120","v":0},{"$f":"'2. Conservation Measures'!DU120","v":0},{"$f":"'2. Conservation Measures'!DV120","v":0},{"$f":"'2. Conservation Measures'!DW120","v":0},{"$f":"'2. Conservation Measures'!DX120","v":0},{"$f":"'2. Conservation Measures'!DY120","v":0},{"$f":"'2. Conservation Measures'!DZ120","v":0},{"$f":"'2. Conservation Measures'!EA120","v":0},{"$f":"'2. Conservation Measures'!EB120","v":0},{"$f":"'2. Conservation Measures'!EC120","v":0},{"$f":"'2. Conservation Measures'!ED120","v":0},{"$f":"'2. Conservation Measures'!EE120","v":0},{"$f":"'2. Conservation Measures'!EF120","v":0},{"$f":"'2. Conservation Measures'!EG120","v":0},{"$f":"'2. Conservation Measures'!EH120","v":0},{"$f":"'2. Conservation Measures'!EI120","v":0},{"$f":"'2. Conservation Measures'!EJ120","v":0},{"$f":"'2. Conservation Measures'!EK120","v":0},{"$f":"'2. Conservation Measures'!EL120","v":0},{"$f":"'2. Conservation Measures'!EM120","v":0},null,{"$f":"'2. Conservation Measures'!KP120","v":0},{"$f":"'2. Conservation Measures'!KQ120","v":0},{"$f":"'2. Conservation Measures'!KR120","v":0},{"$f":"'2. Conservation Measures'!KS120","v":0},{"$f":"'2. Conservation Measures'!KT120","v":0},{"$f":"'2. Conservation Measures'!KU120","v":0},{"$f":"'2. Conservation Measures'!KV120","v":0},{"$f":"'2. Conservation Measures'!KW120","v":0},{"$f":"'2. Conservation Measures'!KX120","v":0},{"$f":"'2. Conservation Measures'!KY120","v":0},{"$f":"'2. Conservation Measures'!KZ120","v":0},{"$f":"'2. Conservation Measures'!LA120","v":0},{"$f":"'2. Conservation Measures'!LB120","v":0},{"$f":"'2. Conservation Measures'!LC120","v":0},{"$f":"'2. Conservation Measures'!LD120","v":0},{"$f":"'2. Conservation Measures'!LE120","v":0},{"$f":"'2. Conservation Measures'!LF120","v":0},{"$f":"'2. Conservation Measures'!LG120","v":0},{"$f":"'2. Conservation Measures'!LH120","v":0},{"$f":"'2. Conservation Measures'!LI120","v":0},{"$f":"'2. Conservation Measures'!LJ120","v":0},{"$f":"'2. Conservation Measures'!LK120","v":0},{"$f":"'2. Conservation Measures'!LL120","v":0},{"$f":"'2. Conservation Measures'!LM120","v":0},{"$f":"'2. Conservation Measures'!LN120","v":0},{"$f":"'2. Conservation Measures'!LO120","v":0},{"$f":"'2. Conservation Measures'!LP120","v":0},{"$f":"'2. Conservation Measures'!LQ120","v":0},{"$f":"'2. Conservation Measures'!LR120","v":0},{"$f":"'2. Conservation Measures'!LS120","v":0},{"$f":"'2. Conservation Measures'!LT120","v":0},{"$f":"'2. Conservation Measures'!LU120","v":0},{"$f":"'2. Conservation Measures'!LV120","v":0},{"$f":"'2. Conservation Measures'!LW120","v":0},{"$f":"'2. Conservation Measures'!LX120","v":0},{"$f":"'2. Conservation Measures'!LY120","v":0},{"$f":"'2. Conservation Measures'!LZ120","v":0},{"$f":"'2. Conservation Measures'!MA120","v":0},{"$f":"'2. Conservation Measures'!MB120","v":0},{"$f":"'2. Conservation Measures'!MC120","v":0},{"$f":"'2. Conservation Measures'!MD120","v":0},{"$f":"'2. Conservation Measures'!ME120","v":0},{"$f":"'2. Conservation Measures'!MF120","v":0},{"$f":"'2. Conservation Measures'!MG120","v":0},{"$f":"'2. Conservation Measures'!MH120","v":0},{"$f":"'2. Conservation Measures'!MI120","v":0},{"$f":"'2. Conservation Measures'!MJ120","v":0},{"$f":"'2. Conservation Measures'!MK120","v":0},{"$f":"'2. Conservation Measures'!ML120","v":0},{"$f":"'2. Conservation Measures'!MM120","v":0},{"$f":"'2. Conservation Measures'!MN120","v":0},null,{"$f":"'2. Conservation Measures'!EP120","v":0},{"$f":"'2. Conservation Measures'!EQ120","v":0},{"$f":"'2. Conservation Measures'!ER120","v":0},{"$f":"'2. Conservation Measures'!ES120","v":0},{"$f":"'2. Conservation Measures'!ET120","v":0},{"$f":"'2. Conservation Measures'!EU120","v":0},{"$f":"'2. Conservation Measures'!EV120","v":0},{"$f":"'2. Conservation Measures'!EW120","v":0},{"$f":"'2. Conservation Measures'!EX120","v":0},{"$f":"'2. Conservation Measures'!EY120","v":0},{"$f":"'2. Conservation Measures'!EZ120","v":0},{"$f":"'2. Conservation Measures'!FA120","v":0},{"$f":"'2. Conservation Measures'!FB120","v":0},{"$f":"'2. Conservation Measures'!FC120","v":0},{"$f":"'2. Conservation Measures'!FD120","v":0},{"$f":"'2. Conservation Measures'!FE120","v":0},{"$f":"'2. Conservation Measures'!FF120","v":0},{"$f":"'2. Conservation Measures'!FG120","v":0},{"$f":"'2. Conservation Measures'!FH120","v":0},{"$f":"'2. Conservation Measures'!FI120","v":0},{"$f":"'2. Conservation Measures'!FJ120","v":0},{"$f":"'2. Conservation Measures'!FK120","v":0},{"$f":"'2. Conservation Measures'!FL120","v":0},{"$f":"'2. Conservation Measures'!FM120","v":0},{"$f":"'2. Conservation Measures'!FN120","v":0},{"$f":"'2. Conservation Measures'!FO120","v":0},{"$f":"'2. Conservation Measures'!FP120","v":0},{"$f":"'2. Conservation Measures'!FQ120","v":0},{"$f":"'2. Conservation Measures'!FR120","v":0},{"$f":"'2. Conservation Measures'!FS120","v":0},{"$f":"'2. Conservation Measures'!FT120","v":0},{"$f":"'2. Conservation Measures'!FU120","v":0},{"$f":"'2. Conservation Measures'!FV120","v":0},{"$f":"'2. Conservation Measures'!FW120","v":0},{"$f":"'2. Conservation Measures'!FX120","v":0},{"$f":"'2. Conservation Measures'!FY120","v":0},{"$f":"'2. Conservation Measures'!FZ120","v":0},{"$f":"'2. Conservation Measures'!GA120","v":0},{"$f":"'2. Conservation Measures'!GB120","v":0},{"$f":"'2. Conservation Measures'!GC120","v":0},{"$f":"'2. Conservation Measures'!GD120","v":0},{"$f":"'2. Conservation Measures'!GE120","v":0},{"$f":"'2. Conservation Measures'!GF120","v":0},{"$f":"'2. Conservation Measures'!GG120","v":0},{"$f":"'2. Conservation Measures'!GH120","v":0},{"$f":"'2. Conservation Measures'!GI120","v":0},{"$f":"'2. Conservation Measures'!GJ120","v":0},{"$f":"'2. Conservation Measures'!GK120","v":0},{"$f":"'2. Conservation Measures'!GL120","v":0},{"$f":"'2. Conservation Measures'!GM120","v":0},{"$f":"'2. Conservation Measures'!GN120","v":0},null,{"$f":"'2. Conservation Measures'!GP120","v":0},{"$f":"'2. Conservation Measures'!GQ120","v":0},{"$f":"'2. Conservation Measures'!GR120","v":0},{"$f":"'2. Conservation Measures'!GS120","v":0},{"$f":"'2. Conservation Measures'!GT120","v":0},{"$f":"'2. Conservation Measures'!GU120","v":0},{"$f":"'2. Conservation Measures'!GV120","v":0},{"$f":"'2. Conservation Measures'!GW120","v":0},{"$f":"'2. Conservation Measures'!GX120","v":0},{"$f":"'2. Conservation Measures'!GY120","v":0},{"$f":"'2. Conservation Measures'!GZ120","v":0},{"$f":"'2. Conservation Measures'!HA120","v":0},{"$f":"'2. Conservation Measures'!HB120","v":0},{"$f":"'2. Conservation Measures'!HC120","v":0},{"$f":"'2. Conservation Measures'!HD120","v":0},{"$f":"'2. Conservation Measures'!HE120","v":0},{"$f":"'2. Conservation Measures'!HF120","v":0},{"$f":"'2. Conservation Measures'!HG120","v":0},{"$f":"'2. Conservation Measures'!HH120","v":0},{"$f":"'2. Conservation Measures'!HI120","v":0},{"$f":"'2. Conservation Measures'!HJ120","v":0},{"$f":"'2. Conservation Measures'!HK120","v":0},{"$f":"'2. Conservation Measures'!HL120","v":0},{"$f":"'2. Conservation Measures'!HM120","v":0},{"$f":"'2. Conservation Measures'!HN120","v":0},{"$f":"'2. Conservation Measures'!HO120","v":0},{"$f":"'2. Conservation Measures'!HP120","v":0},{"$f":"'2. Conservation Measures'!HQ120","v":0},{"$f":"'2. Conservation Measures'!HR120","v":0},{"$f":"'2. Conservation Measures'!HS120","v":0},{"$f":"'2. Conservation Measures'!HT120","v":0},{"$f":"'2. Conservation Measures'!HU120","v":0},{"$f":"'2. Conservation Measures'!HV120","v":0},{"$f":"'2. Conservation Measures'!HW120","v":0},{"$f":"'2. Conservation Measures'!HX120","v":0},{"$f":"'2. Conservation Measures'!HY120","v":0},{"$f":"'2. Conservation Measures'!HZ120","v":0},{"$f":"'2. Conservation Measures'!IA120","v":0},{"$f":"'2. Conservation Measures'!IB120","v":0},{"$f":"'2. Conservation Measures'!IC120","v":0},{"$f":"'2. Conservation Measures'!ID120","v":0},{"$f":"'2. Conservation Measures'!IE120","v":0},{"$f":"'2. Conservation Measures'!IF120","v":0},{"$f":"'2. Conservation Measures'!IG120","v":0},{"$f":"'2. Conservation Measures'!IH120","v":0},{"$f":"'2. Conservation Measures'!II120","v":0},{"$f":"'2. Conservation Measures'!IJ120","v":0},{"$f":"'2. Conservation Measures'!IK120","v":0},{"$f":"'2. Conservation Measures'!IL120","v":0},{"$f":"'2. Conservation Measures'!IM120","v":0},{"$f":"'2. Conservation Measures'!IN120","v":0},null,{"$f":"'2. Conservation Measures'!IP120","v":0},{"$f":"'2. Conservation Measures'!IQ120","v":0},{"$f":"'2. Conservation Measures'!IR120","v":0},{"$f":"'2. Conservation Measures'!IS120","v":0},{"$f":"'2. Conservation Measures'!IT120","v":0},{"$f":"'2. Conservation Measures'!IU120","v":0},{"$f":"'2. Conservation Measures'!IV120","v":0},{"$f":"'2. Conservation Measures'!IW120","v":0},{"$f":"'2. Conservation Measures'!IX120","v":0},{"$f":"'2. Conservation Measures'!IY120","v":0},{"$f":"'2. Conservation Measures'!IZ120","v":0},{"$f":"'2. Conservation Measures'!JA120","v":0},{"$f":"'2. Conservation Measures'!JB120","v":0},{"$f":"'2. Conservation Measures'!JC120","v":0},{"$f":"'2. Conservation Measures'!JD120","v":0},{"$f":"'2. Conservation Measures'!JE120","v":0},{"$f":"'2. Conservation Measures'!JF120","v":0},{"$f":"'2. Conservation Measures'!JG120","v":0},{"$f":"'2. Conservation Measures'!JH120","v":0},{"$f":"'2. Conservation Measures'!JI120","v":0},{"$f":"'2. Conservation Measures'!JJ120","v":0},{"$f":"'2. Conservation Measures'!JK120","v":0},{"$f":"'2. Conservation Measures'!JL120","v":0},{"$f":"'2. Conservation Measures'!JM120","v":0},{"$f":"'2. Conservation Measures'!JN120","v":0},{"$f":"'2. Conservation Measures'!JO120","v":0},{"$f":"'2. Conservation Measures'!JP120","v":0},{"$f":"'2. Conservation Measures'!JQ120","v":0},{"$f":"'2. Conservation Measures'!JR120","v":0},{"$f":"'2. Conservation Measures'!JS120","v":0},{"$f":"'2. Conservation Measures'!JT120","v":0},{"$f":"'2. Conservation Measures'!JU120","v":0},{"$f":"'2. Conservation Measures'!JV120","v":0},{"$f":"'2. Conservation Measures'!JW120","v":0},{"$f":"'2. Conservation Measures'!JX120","v":0},{"$f":"'2. Conservation Measures'!JY120","v":0},{"$f":"'2. Conservation Measures'!JZ120","v":0},{"$f":"'2. Conservation Measures'!KA120","v":0},{"$f":"'2. Conservation Measures'!KB120","v":0},{"$f":"'2. Conservation Measures'!KC120","v":0},{"$f":"'2. Conservation Measures'!KD120","v":0},{"$f":"'2. Conservation Measures'!KE120","v":0},{"$f":"'2. Conservation Measures'!KF120","v":0},{"$f":"'2. Conservation Measures'!KG120","v":0},{"$f":"'2. Conservation Measures'!KH120","v":0},{"$f":"'2. Conservation Measures'!KI120","v":0},{"$f":"'2. Conservation Measures'!KJ120","v":0},{"$f":"'2. Conservation Measures'!KK120","v":0},{"$f":"'2. Conservation Measures'!KL120","v":0},{"$f":"'2. Conservation Measures'!KM120","v":0},{"$f":"'2. Conservation Measures'!KN120","v":0}]
[null,{"$f":"'2. Conservation Measures'!B121","v":"USR-ICI-14"},{"$f":"'2. Conservation Measures'!C121","v":0},{"$f":"'2. Conservation Measures'!D121","v":"N"},null,{"$f":"'2. Conservation Measures'!AA121","v":0},null,{"$f":"'2. Conservation Measures'!AO121","v":0},{"$f":"'2. Conservation Measures'!AP121","v":0},{"$f":"'2. Conservation Measures'!AQ121","v":0},{"$f":"'2. Conservation Measures'!AR121","v":0},{"$f":"'2. Conservation Measures'!AS121","v":0},{"$f":"'2. Conservation Measures'!AT121","v":0},{"$f":"'2. Conservation Measures'!AU121","v":0},{"$f":"'2. Conservation Measures'!AV121","v":0},{"$f":"'2. Conservation Measures'!AW121","v":0},{"$f":"'2. Conservation Measures'!AX121","v":0},{"$f":"'2. Conservation Measures'!AY121","v":0},{"$f":"'2. Conservation Measures'!AZ121","v":0},{"$f":"'2. Conservation Measures'!BA121","v":0},{"$f":"'2. Conservation Measures'!BB121","v":0},{"$f":"'2. Conservation Measures'!BC121","v":0},{"$f":"'2. Conservation Measures'!BD121","v":0},{"$f":"'2. Conservation Measures'!BE121","v":0},{"$f":"'2. Conservation Measures'!BF121","v":0},{"$f":"'2. Conservation Measures'!BG121","v":0},{"$f":"'2. Conservation Measures'!BH121","v":0},{"$f":"'2. Conservation Measures'!BI121","v":0},{"$f":"'2. Conservation Measures'!BJ121","v":0},{"$f":"'2. Conservation Measures'!BK121","v":0},{"$f":"'2. Conservation Measures'!BL121","v":0},{"$f":"'2. Conservation Measures'!BM121","v":0},{"$f":"'2. Conservation Measures'!BN121","v":0},{"$f":"'2. Conservation Measures'!BO121","v":0},{"$f":"'2. Conservation Measures'!BP121","v":0},{"$f":"'2. Conservation Measures'!BQ121","v":0},{"$f":"'2. Conservation Measures'!BR121","v":0},{"$f":"'2. Conservation Measures'!BS121","v":0},{"$f":"'2. Conservation Measures'!BT121","v":0},{"$f":"'2. Conservation Measures'!BU121","v":0},{"$f":"'2. Conservation Measures'!BV121","v":0},{"$f":"'2. Conservation Measures'!BW121","v":0},{"$f":"'2. Conservation Measures'!BX121","v":0},{"$f":"'2. Conservation Measures'!BY121","v":0},{"$f":"'2. Conservation Measures'!BZ121","v":0},{"$f":"'2. Conservation Measures'!CA121","v":0},{"$f":"'2. Conservation Measures'!CB121","v":0},{"$f":"'2. Conservation Measures'!CC121","v":0},{"$f":"'2. Conservation Measures'!CD121","v":0},{"$f":"'2. Conservation Measures'!CE121","v":0},{"$f":"'2. Conservation Measures'!CF121","v":0},{"$f":"'2. Conservation Measures'!CG121","v":0},{"$f":"'2. Conservation Measures'!CH121","v":0},{"$f":"'2. Conservation Measures'!CI121","v":0},{"$f":"'2. Conservation Measures'!CJ121","v":0},{"$f":"'2. Conservation Measures'!CK121","v":0},{"$f":"'2. Conservation Measures'!CL121","v":0},{"$f":"'2. Conservation Measures'!CM121","v":0},null,{"$f":"'2. Conservation Measures'!CO121","v":0},{"$f":"'2. Conservation Measures'!CP121","v":0},{"$f":"'2. Conservation Measures'!CQ121","v":0},{"$f":"'2. Conservation Measures'!CR121","v":0},{"$f":"'2. Conservation Measures'!CS121","v":0},{"$f":"'2. Conservation Measures'!CT121","v":0},{"$f":"'2. Conservation Measures'!CU121","v":0},{"$f":"'2. Conservation Measures'!CV121","v":0},{"$f":"'2. Conservation Measures'!CW121","v":0},{"$f":"'2. Conservation Measures'!CX121","v":0},{"$f":"'2. Conservation Measures'!CY121","v":0},{"$f":"'2. Conservation Measures'!CZ121","v":0},{"$f":"'2. Conservation Measures'!DA121","v":0},{"$f":"'2. Conservation Measures'!DB121","v":0},{"$f":"'2. Conservation Measures'!DC121","v":0},{"$f":"'2. Conservation Measures'!DD121","v":0},{"$f":"'2. Conservation Measures'!DE121","v":0},{"$f":"'2. Conservation Measures'!DF121","v":0},{"$f":"'2. Conservation Measures'!DG121","v":0},{"$f":"'2. Conservation Measures'!DH121","v":0},{"$f":"'2. Conservation Measures'!DI121","v":0},{"$f":"'2. Conservation Measures'!DJ121","v":0},{"$f":"'2. Conservation Measures'!DK121","v":0},{"$f":"'2. Conservation Measures'!DL121","v":0},{"$f":"'2. Conservation Measures'!DM121","v":0},{"$f":"'2. Conservation Measures'!DN121","v":0},{"$f":"'2. Conservation Measures'!DO121","v":0},{"$f":"'2. Conservation Measures'!DP121","v":0},{"$f":"'2. Conservation Measures'!DQ121","v":0},{"$f":"'2. Conservation Measures'!DR121","v":0},{"$f":"'2. Conservation Measures'!DS121","v":0},{"$f":"'2. Conservation Measures'!DT121","v":0},{"$f":"'2. Conservation Measures'!DU121","v":0},{"$f":"'2. Conservation Measures'!DV121","v":0},{"$f":"'2. Conservation Measures'!DW121","v":0},{"$f":"'2. Conservation Measures'!DX121","v":0},{"$f":"'2. Conservation Measures'!DY121","v":0},{"$f":"'2. Conservation Measures'!DZ121","v":0},{"$f":"'2. Conservation Measures'!EA121","v":0},{"$f":"'2. Conservation Measures'!EB121","v":0},{"$f":"'2. Conservation Measures'!EC121","v":0},{"$f":"'2. Conservation Measures'!ED121","v":0},{"$f":"'2. Conservation Measures'!EE121","v":0},{"$f":"'2. Conservation Measures'!EF121","v":0},{"$f":"'2. Conservation Measures'!EG121","v":0},{"$f":"'2. Conservation Measures'!EH121","v":0},{"$f":"'2. Conservation Measures'!EI121","v":0},{"$f":"'2. Conservation Measures'!EJ121","v":0},{"$f":"'2. Conservation Measures'!EK121","v":0},{"$f":"'2. Conservation Measures'!EL121","v":0},{"$f":"'2. Conservation Measures'!EM121","v":0},null,{"$f":"'2. Conservation Measures'!KP121","v":0},{"$f":"'2. Conservation Measures'!KQ121","v":0},{"$f":"'2. Conservation Measures'!KR121","v":0},{"$f":"'2. Conservation Measures'!KS121","v":0},{"$f":"'2. Conservation Measures'!KT121","v":0},{"$f":"'2. Conservation Measures'!KU121","v":0},{"$f":"'2. Conservation Measures'!KV121","v":0},{"$f":"'2. Conservation Measures'!KW121","v":0},{"$f":"'2. Conservation Measures'!KX121","v":0},{"$f":"'2. Conservation Measures'!KY121","v":0},{"$f":"'2. Conservation Measures'!KZ121","v":0},{"$f":"'2. Conservation Measures'!LA121","v":0},{"$f":"'2. Conservation Measures'!LB121","v":0},{"$f":"'2. Conservation Measures'!LC121","v":0},{"$f":"'2. Conservation Measures'!LD121","v":0},{"$f":"'2. Conservation Measures'!LE121","v":0},{"$f":"'2. Conservation Measures'!LF121","v":0},{"$f":"'2. Conservation Measures'!LG121","v":0},{"$f":"'2. Conservation Measures'!LH121","v":0},{"$f":"'2. Conservation Measures'!LI121","v":0},{"$f":"'2. Conservation Measures'!LJ121","v":0},{"$f":"'2. Conservation Measures'!LK121","v":0},{"$f":"'2. Conservation Measures'!LL121","v":0},{"$f":"'2. Conservation Measures'!LM121","v":0},{"$f":"'2. Conservation Measures'!LN121","v":0},{"$f":"'2. Conservation Measures'!LO121","v":0},{"$f":"'2. Conservation Measures'!LP121","v":0},{"$f":"'2. Conservation Measures'!LQ121","v":0},{"$f":"'2. Conservation Measures'!LR121","v":0},{"$f":"'2. Conservation Measures'!LS121","v":0},{"$f":"'2. Conservation Measures'!LT121","v":0},{"$f":"'2. Conservation Measures'!LU121","v":0},{"$f":"'2. Conservation Measures'!LV121","v":0},{"$f":"'2. Conservation Measures'!LW121","v":0},{"$f":"'2. Conservation Measures'!LX121","v":0},{"$f":"'2. Conservation Measures'!LY121","v":0},{"$f":"'2. Conservation Measures'!LZ121","v":0},{"$f":"'2. Conservation Measures'!MA121","v":0},{"$f":"'2. Conservation Measures'!MB121","v":0},{"$f":"'2. Conservation Measures'!MC121","v":0},{"$f":"'2. Conservation Measures'!MD121","v":0},{"$f":"'2. Conservation Measures'!ME121","v":0},{"$f":"'2. Conservation Measures'!MF121","v":0},{"$f":"'2. Conservation Measures'!MG121","v":0},{"$f":"'2. Conservation Measures'!MH121","v":0},{"$f":"'2. Conservation Measures'!MI121","v":0},{"$f":"'2. Conservation Measures'!MJ121","v":0},{"$f":"'2. Conservation Measures'!MK121","v":0},{"$f":"'2. Conservation Measures'!ML121","v":0},{"$f":"'2. Conservation Measures'!MM121","v":0},{"$f":"'2. Conservation Measures'!MN121","v":0},null,{"$f":"'2. Conservation Measures'!EP121","v":0},{"$f":"'2. Conservation Measures'!EQ121","v":0},{"$f":"'2. Conservation Measures'!ER121","v":0},{"$f":"'2. Conservation Measures'!ES121","v":0},{"$f":"'2. Conservation Measures'!ET121","v":0},{"$f":"'2. Conservation Measures'!EU121","v":0},{"$f":"'2. Conservation Measures'!EV121","v":0},{"$f":"'2. Conservation Measures'!EW121","v":0},{"$f":"'2. Conservation Measures'!EX121","v":0},{"$f":"'2. Conservation Measures'!EY121","v":0},{"$f":"'2. Conservation Measures'!EZ121","v":0},{"$f":"'2. Conservation Measures'!FA121","v":0},{"$f":"'2. Conservation Measures'!FB121","v":0},{"$f":"'2. Conservation Measures'!FC121","v":0},{"$f":"'2. Conservation Measures'!FD121","v":0},{"$f":"'2. Conservation Measures'!FE121","v":0},{"$f":"'2. Conservation Measures'!FF121","v":0},{"$f":"'2. Conservation Measures'!FG121","v":0},{"$f":"'2. Conservation Measures'!FH121","v":0},{"$f":"'2. Conservation Measures'!FI121","v":0},{"$f":"'2. Conservation Measures'!FJ121","v":0},{"$f":"'2. Conservation Measures'!FK121","v":0},{"$f":"'2. Conservation Measures'!FL121","v":0},{"$f":"'2. Conservation Measures'!FM121","v":0},{"$f":"'2. Conservation Measures'!FN121","v":0},{"$f":"'2. Conservation Measures'!FO121","v":0},{"$f":"'2. Conservation Measures'!FP121","v":0},{"$f":"'2. Conservation Measures'!FQ121","v":0},{"$f":"'2. Conservation Measures'!FR121","v":0},{"$f":"'2. Conservation Measures'!FS121","v":0},{"$f":"'2. Conservation Measures'!FT121","v":0},{"$f":"'2. Conservation Measures'!FU121","v":0},{"$f":"'2. Conservation Measures'!FV121","v":0},{"$f":"'2. Conservation Measures'!FW121","v":0},{"$f":"'2. Conservation Measures'!FX121","v":0},{"$f":"'2. Conservation Measures'!FY121","v":0},{"$f":"'2. Conservation Measures'!FZ121","v":0},{"$f":"'2. Conservation Measures'!GA121","v":0},{"$f":"'2. Conservation Measures'!GB121","v":0},{"$f":"'2. Conservation Measures'!GC121","v":0},{"$f":"'2. Conservation Measures'!GD121","v":0},{"$f":"'2. Conservation Measures'!GE121","v":0},{"$f":"'2. Conservation Measures'!GF121","v":0},{"$f":"'2. Conservation Measures'!GG121","v":0},{"$f":"'2. Conservation Measures'!GH121","v":0},{"$f":"'2. Conservation Measures'!GI121","v":0},{"$f":"'2. Conservation Measures'!GJ121","v":0},{"$f":"'2. Conservation Measures'!GK121","v":0},{"$f":"'2. Conservation Measures'!GL121","v":0},{"$f":"'2. Conservation Measures'!GM121","v":0},{"$f":"'2. Conservation Measures'!GN121","v":0},null,{"$f":"'2. Conservation Measures'!GP121","v":0},{"$f":"'2. Conservation Measures'!GQ121","v":0},{"$f":"'2. Conservation Measures'!GR121","v":0},{"$f":"'2. Conservation Measures'!GS121","v":0},{"$f":"'2. Conservation Measures'!GT121","v":0},{"$f":"'2. Conservation Measures'!GU121","v":0},{"$f":"'2. Conservation Measures'!GV121","v":0},{"$f":"'2. Conservation Measures'!GW121","v":0},{"$f":"'2. Conservation Measures'!GX121","v":0},{"$f":"'2. Conservation Measures'!GY121","v":0},{"$f":"'2. Conservation Measures'!GZ121","v":0},{"$f":"'2. Conservation Measures'!HA121","v":0},{"$f":"'2. Conservation Measures'!HB121","v":0},{"$f":"'2. Conservation Measures'!HC121","v":0},{"$f":"'2. Conservation Measures'!HD121","v":0},{"$f":"'2. Conservation Measures'!HE121","v":0},{"$f":"'2. Conservation Measures'!HF121","v":0},{"$f":"'2. Conservation Measures'!HG121","v":0},{"$f":"'2. Conservation Measures'!HH121","v":0},{"$f":"'2. Conservation Measures'!HI121","v":0},{"$f":"'2. Conservation Measures'!HJ121","v":0},{"$f":"'2. Conservation Measures'!HK121","v":0},{"$f":"'2. Conservation Measures'!HL121","v":0},{"$f":"'2. Conservation Measures'!HM121","v":0},{"$f":"'2. Conservation Measures'!HN121","v":0},{"$f":"'2. Conservation Measures'!HO121","v":0},{"$f":"'2. Conservation Measures'!HP121","v":0},{"$f":"'2. Conservation Measures'!HQ121","v":0},{"$f":"'2. Conservation Measures'!HR121","v":0},{"$f":"'2. Conservation Measures'!HS121","v":0},{"$f":"'2. Conservation Measures'!HT121","v":0},{"$f":"'2. Conservation Measures'!HU121","v":0},{"$f":"'2. Conservation Measures'!HV121","v":0},{"$f":"'2. Conservation Measures'!HW121","v":0},{"$f":"'2. Conservation Measures'!HX121","v":0},{"$f":"'2. Conservation Measures'!HY121","v":0},{"$f":"'2. Conservation Measures'!HZ121","v":0},{"$f":"'2. Conservation Measures'!IA121","v":0},{"$f":"'2. Conservation Measures'!IB121","v":0},{"$f":"'2. Conservation Measures'!IC121","v":0},{"$f":"'2. Conservation Measures'!ID121","v":0},{"$f":"'2. Conservation Measures'!IE121","v":0},{"$f":"'2. Conservation Measures'!IF121","v":0},{"$f":"'2. Conservation Measures'!IG121","v":0},{"$f":"'2. Conservation Measures'!IH121","v":0},{"$f":"'2. Conservation Measures'!II121","v":0},{"$f":"'2. Conservation Measures'!IJ121","v":0},{"$f":"'2. Conservation Measures'!IK121","v":0},{"$f":"'2. Conservation Measures'!IL121","v":0},{"$f":"'2. Conservation Measures'!IM121","v":0},{"$f":"'2. Conservation Measures'!IN121","v":0},null,{"$f":"'2. Conservation Measures'!IP121","v":0},{"$f":"'2. Conservation Measures'!IQ121","v":0},{"$f":"'2. Conservation Measures'!IR121","v":0},{"$f":"'2. Conservation Measures'!IS121","v":0},{"$f":"'2. Conservation Measures'!IT121","v":0},{"$f":"'2. Conservation Measures'!IU121","v":0},{"$f":"'2. Conservation Measures'!IV121","v":0},{"$f":"'2. Conservation Measures'!IW121","v":0},{"$f":"'2. Conservation Measures'!IX121","v":0},{"$f":"'2. Conservation Measures'!IY121","v":0},{"$f":"'2. Conservation Measures'!IZ121","v":0},{"$f":"'2. Conservation Measures'!JA121","v":0},{"$f":"'2. Conservation Measures'!JB121","v":0},{"$f":"'2. Conservation Measures'!JC121","v":0},{"$f":"'2. Conservation Measures'!JD121","v":0},{"$f":"'2. Conservation Measures'!JE121","v":0},{"$f":"'2. Conservation Measures'!JF121","v":0},{"$f":"'2. Conservation Measures'!JG121","v":0},{"$f":"'2. Conservation Measures'!JH121","v":0},{"$f":"'2. Conservation Measures'!JI121","v":0},{"$f":"'2. Conservation Measures'!JJ121","v":0},{"$f":"'2. Conservation Measures'!JK121","v":0},{"$f":"'2. Conservation Measures'!JL121","v":0},{"$f":"'2. Conservation Measures'!JM121","v":0},{"$f":"'2. Conservation Measures'!JN121","v":0},{"$f":"'2. Conservation Measures'!JO121","v":0},{"$f":"'2. Conservation Measures'!JP121","v":0},{"$f":"'2. Conservation Measures'!JQ121","v":0},{"$f":"'2. Conservation Measures'!JR121","v":0},{"$f":"'2. Conservation Measures'!JS121","v":0},{"$f":"'2. Conservation Measures'!JT121","v":0},{"$f":"'2. Conservation Measures'!JU121","v":0},{"$f":"'2. Conservation Measures'!JV121","v":0},{"$f":"'2. Conservation Measures'!JW121","v":0},{"$f":"'2. Conservation Measures'!JX121","v":0},{"$f":"'2. Conservation Measures'!JY121","v":0},{"$f":"'2. Conservation Measures'!JZ121","v":0},{"$f":"'2. Conservation Measures'!KA121","v":0},{"$f":"'2. Conservation Measures'!KB121","v":0},{"$f":"'2. Conservation Measures'!KC121","v":0},{"$f":"'2. Conservation Measures'!KD121","v":0},{"$f":"'2. Conservation Measures'!KE121","v":0},{"$f":"'2. Conservation Measures'!KF121","v":0},{"$f":"'2. Conservation Measures'!KG121","v":0},{"$f":"'2. Conservation Measures'!KH121","v":0},{"$f":"'2. Conservation Measures'!KI121","v":0},{"$f":"'2. Conservation Measures'!KJ121","v":0},{"$f":"'2. Conservation Measures'!KK121","v":0},{"$f":"'2. Conservation Measures'!KL121","v":0},{"$f":"'2. Conservation Measures'!KM121","v":0},{"$f":"'2. Conservation Measures'!KN121","v":0}]
[null,{"$f":"'2. Conservation Measures'!B122","v":"USR-ICI-15"},{"$f":"'2. Conservation Measures'!C122","v":0},{"$f":"'2. Conservation Measures'!D122","v":"N"},null,{"$f":"'2. Conservation Measures'!AA122","v":0},null,{"$f":"'2. Conservation Measures'!AO122","v":0},{"$f":"'2. Conservation Measures'!AP122","v":0},{"$f":"'2. Conservation Measures'!AQ122","v":0},{"$f":"'2. Conservation Measures'!AR122","v":0},{"$f":"'2. Conservation Measures'!AS122","v":0},{"$f":"'2. Conservation Measures'!AT122","v":0},{"$f":"'2. Conservation Measures'!AU122","v":0},{"$f":"'2. Conservation Measures'!AV122","v":0},{"$f":"'2. Conservation Measures'!AW122","v":0},{"$f":"'2. Conservation Measures'!AX122","v":0},{"$f":"'2. Conservation Measures'!AY122","v":0},{"$f":"'2. Conservation Measures'!AZ122","v":0},{"$f":"'2. Conservation Measures'!BA122","v":0},{"$f":"'2. Conservation Measures'!BB122","v":0},{"$f":"'2. Conservation Measures'!BC122","v":0},{"$f":"'2. Conservation Measures'!BD122","v":0},{"$f":"'2. Conservation Measures'!BE122","v":0},{"$f":"'2. Conservation Measures'!BF122","v":0},{"$f":"'2. Conservation Measures'!BG122","v":0},{"$f":"'2. Conservation Measures'!BH122","v":0},{"$f":"'2. Conservation Measures'!BI122","v":0},{"$f":"'2. Conservation Measures'!BJ122","v":0},{"$f":"'2. Conservation Measures'!BK122","v":0},{"$f":"'2. Conservation Measures'!BL122","v":0},{"$f":"'2. Conservation Measures'!BM122","v":0},{"$f":"'2. Conservation Measures'!BN122","v":0},{"$f":"'2. Conservation Measures'!BO122","v":0},{"$f":"'2. Conservation Measures'!BP122","v":0},{"$f":"'2. Conservation Measures'!BQ122","v":0},{"$f":"'2. Conservation Measures'!BR122","v":0},{"$f":"'2. Conservation Measures'!BS122","v":0},{"$f":"'2. Conservation Measures'!BT122","v":0},{"$f":"'2. Conservation Measures'!BU122","v":0},{"$f":"'2. Conservation Measures'!BV122","v":0},{"$f":"'2. Conservation Measures'!BW122","v":0},{"$f":"'2. Conservation Measures'!BX122","v":0},{"$f":"'2. Conservation Measures'!BY122","v":0},{"$f":"'2. Conservation Measures'!BZ122","v":0},{"$f":"'2. Conservation Measures'!CA122","v":0},{"$f":"'2. Conservation Measures'!CB122","v":0},{"$f":"'2. Conservation Measures'!CC122","v":0},{"$f":"'2. Conservation Measures'!CD122","v":0},{"$f":"'2. Conservation Measures'!CE122","v":0},{"$f":"'2. Conservation Measures'!CF122","v":0},{"$f":"'2. Conservation Measures'!CG122","v":0},{"$f":"'2. Conservation Measures'!CH122","v":0},{"$f":"'2. Conservation Measures'!CI122","v":0},{"$f":"'2. Conservation Measures'!CJ122","v":0},{"$f":"'2. Conservation Measures'!CK122","v":0},{"$f":"'2. Conservation Measures'!CL122","v":0},{"$f":"'2. Conservation Measures'!CM122","v":0},null,{"$f":"'2. Conservation Measures'!CO122","v":0},{"$f":"'2. Conservation Measures'!CP122","v":0},{"$f":"'2. Conservation Measures'!CQ122","v":0},{"$f":"'2. Conservation Measures'!CR122","v":0},{"$f":"'2. Conservation Measures'!CS122","v":0},{"$f":"'2. Conservation Measures'!CT122","v":0},{"$f":"'2. Conservation Measures'!CU122","v":0},{"$f":"'2. Conservation Measures'!CV122","v":0},{"$f":"'2. Conservation Measures'!CW122","v":0},{"$f":"'2. Conservation Measures'!CX122","v":0},{"$f":"'2. Conservation Measures'!CY122","v":0},{"$f":"'2. Conservation Measures'!CZ122","v":0},{"$f":"'2. Conservation Measures'!DA122","v":0},{"$f":"'2. Conservation Measures'!DB122","v":0},{"$f":"'2. Conservation Measures'!DC122","v":0},{"$f":"'2. Conservation Measures'!DD122","v":0},{"$f":"'2. Conservation Measures'!DE122","v":0},{"$f":"'2. Conservation Measures'!DF122","v":0},{"$f":"'2. Conservation Measures'!DG122","v":0},{"$f":"'2. Conservation Measures'!DH122","v":0},{"$f":"'2. Conservation Measures'!DI122","v":0},{"$f":"'2. Conservation Measures'!DJ122","v":0},{"$f":"'2. Conservation Measures'!DK122","v":0},{"$f":"'2. Conservation Measures'!DL122","v":0},{"$f":"'2. Conservation Measures'!DM122","v":0},{"$f":"'2. Conservation Measures'!DN122","v":0},{"$f":"'2. Conservation Measures'!DO122","v":0},{"$f":"'2. Conservation Measures'!DP122","v":0},{"$f":"'2. Conservation Measures'!DQ122","v":0},{"$f":"'2. Conservation Measures'!DR122","v":0},{"$f":"'2. Conservation Measures'!DS122","v":0},{"$f":"'2. Conservation Measures'!DT122","v":0},{"$f":"'2. Conservation Measures'!DU122","v":0},{"$f":"'2. Conservation Measures'!DV122","v":0},{"$f":"'2. Conservation Measures'!DW122","v":0},{"$f":"'2. Conservation Measures'!DX122","v":0},{"$f":"'2. Conservation Measures'!DY122","v":0},{"$f":"'2. Conservation Measures'!DZ122","v":0},{"$f":"'2. Conservation Measures'!EA122","v":0},{"$f":"'2. Conservation Measures'!EB122","v":0},{"$f":"'2. Conservation Measures'!EC122","v":0},{"$f":"'2. Conservation Measures'!ED122","v":0},{"$f":"'2. Conservation Measures'!EE122","v":0},{"$f":"'2. Conservation Measures'!EF122","v":0},{"$f":"'2. Conservation Measures'!EG122","v":0},{"$f":"'2. Conservation Measures'!EH122","v":0},{"$f":"'2. Conservation Measures'!EI122","v":0},{"$f":"'2. Conservation Measures'!EJ122","v":0},{"$f":"'2. Conservation Measures'!EK122","v":0},{"$f":"'2. Conservation Measures'!EL122","v":0},{"$f":"'2. Conservation Measures'!EM122","v":0},null,{"$f":"'2. Conservation Measures'!KP122","v":0},{"$f":"'2. Conservation Measures'!KQ122","v":0},{"$f":"'2. Conservation Measures'!KR122","v":0},{"$f":"'2. Conservation Measures'!KS122","v":0},{"$f":"'2. Conservation Measures'!KT122","v":0},{"$f":"'2. Conservation Measures'!KU122","v":0},{"$f":"'2. Conservation Measures'!KV122","v":0},{"$f":"'2. Conservation Measures'!KW122","v":0},{"$f":"'2. Conservation Measures'!KX122","v":0},{"$f":"'2. Conservation Measures'!KY122","v":0},{"$f":"'2. Conservation Measures'!KZ122","v":0},{"$f":"'2. Conservation Measures'!LA122","v":0},{"$f":"'2. Conservation Measures'!LB122","v":0},{"$f":"'2. Conservation Measures'!LC122","v":0},{"$f":"'2. Conservation Measures'!LD122","v":0},{"$f":"'2. Conservation Measures'!LE122","v":0},{"$f":"'2. Conservation Measures'!LF122","v":0},{"$f":"'2. Conservation Measures'!LG122","v":0},{"$f":"'2. Conservation Measures'!LH122","v":0},{"$f":"'2. Conservation Measures'!LI122","v":0},{"$f":"'2. Conservation Measures'!LJ122","v":0},{"$f":"'2. Conservation Measures'!LK122","v":0},{"$f":"'2. Conservation Measures'!LL122","v":0},{"$f":"'2. Conservation Measures'!LM122","v":0},{"$f":"'2. Conservation Measures'!LN122","v":0},{"$f":"'2. Conservation Measures'!LO122","v":0},{"$f":"'2. Conservation Measures'!LP122","v":0},{"$f":"'2. Conservation Measures'!LQ122","v":0},{"$f":"'2. Conservation Measures'!LR122","v":0},{"$f":"'2. Conservation Measures'!LS122","v":0},{"$f":"'2. Conservation Measures'!LT122","v":0},{"$f":"'2. Conservation Measures'!LU122","v":0},{"$f":"'2. Conservation Measures'!LV122","v":0},{"$f":"'2. Conservation Measures'!LW122","v":0},{"$f":"'2. Conservation Measures'!LX122","v":0},{"$f":"'2. Conservation Measures'!LY122","v":0},{"$f":"'2. Conservation Measures'!LZ122","v":0},{"$f":"'2. Conservation Measures'!MA122","v":0},{"$f":"'2. Conservation Measures'!MB122","v":0},{"$f":"'2. Conservation Measures'!MC122","v":0},{"$f":"'2. Conservation Measures'!MD122","v":0},{"$f":"'2. Conservation Measures'!ME122","v":0},{"$f":"'2. Conservation Measures'!MF122","v":0},{"$f":"'2. Conservation Measures'!MG122","v":0},{"$f":"'2. Conservation Measures'!MH122","v":0},{"$f":"'2. Conservation Measures'!MI122","v":0},{"$f":"'2. Conservation Measures'!MJ122","v":0},{"$f":"'2. Conservation Measures'!MK122","v":0},{"$f":"'2. Conservation Measures'!ML122","v":0},{"$f":"'2. Conservation Measures'!MM122","v":0},{"$f":"'2. Conservation Measures'!MN122","v":0},null,{"$f":"'2. Conservation Measures'!EP122","v":0},{"$f":"'2. Conservation Measures'!EQ122","v":0},{"$f":"'2. Conservation Measures'!ER122","v":0},{"$f":"'2. Conservation Measures'!ES122","v":0},{"$f":"'2. Conservation Measures'!ET122","v":0},{"$f":"'2. Conservation Measures'!EU122","v":0},{"$f":"'2. Conservation Measures'!EV122","v":0},{"$f":"'2. Conservation Measures'!EW122","v":0},{"$f":"'2. Conservation Measures'!EX122","v":0},{"$f":"'2. Conservation Measures'!EY122","v":0},{"$f":"'2. Conservation Measures'!EZ122","v":0},{"$f":"'2. Conservation Measures'!FA122","v":0},{"$f":"'2. Conservation Measures'!FB122","v":0},{"$f":"'2. Conservation Measures'!FC122","v":0},{"$f":"'2. Conservation Measures'!FD122","v":0},{"$f":"'2. Conservation Measures'!FE122","v":0},{"$f":"'2. Conservation Measures'!FF122","v":0},{"$f":"'2. Conservation Measures'!FG122","v":0},{"$f":"'2. Conservation Measures'!FH122","v":0},{"$f":"'2. Conservation Measures'!FI122","v":0},{"$f":"'2. Conservation Measures'!FJ122","v":0},{"$f":"'2. Conservation Measures'!FK122","v":0},{"$f":"'2. Conservation Measures'!FL122","v":0},{"$f":"'2. Conservation Measures'!FM122","v":0},{"$f":"'2. Conservation Measures'!FN122","v":0},{"$f":"'2. Conservation Measures'!FO122","v":0},{"$f":"'2. Conservation Measures'!FP122","v":0},{"$f":"'2. Conservation Measures'!FQ122","v":0},{"$f":"'2. Conservation Measures'!FR122","v":0},{"$f":"'2. Conservation Measures'!FS122","v":0},{"$f":"'2. Conservation Measures'!FT122","v":0},{"$f":"'2. Conservation Measures'!FU122","v":0},{"$f":"'2. Conservation Measures'!FV122","v":0},{"$f":"'2. Conservation Measures'!FW122","v":0},{"$f":"'2. Conservation Measures'!FX122","v":0},{"$f":"'2. Conservation Measures'!FY122","v":0},{"$f":"'2. Conservation Measures'!FZ122","v":0},{"$f":"'2. Conservation Measures'!GA122","v":0},{"$f":"'2. Conservation Measures'!GB122","v":0},{"$f":"'2. Conservation Measures'!GC122","v":0},{"$f":"'2. Conservation Measures'!GD122","v":0},{"$f":"'2. Conservation Measures'!GE122","v":0},{"$f":"'2. Conservation Measures'!GF122","v":0},{"$f":"'2. Conservation Measures'!GG122","v":0},{"$f":"'2. Conservation Measures'!GH122","v":0},{"$f":"'2. Conservation Measures'!GI122","v":0},{"$f":"'2. Conservation Measures'!GJ122","v":0},{"$f":"'2. Conservation Measures'!GK122","v":0},{"$f":"'2. Conservation Measures'!GL122","v":0},{"$f":"'2. Conservation Measures'!GM122","v":0},{"$f":"'2. Conservation Measures'!GN122","v":0},null,{"$f":"'2. Conservation Measures'!GP122","v":0},{"$f":"'2. Conservation Measures'!GQ122","v":0},{"$f":"'2. Conservation Measures'!GR122","v":0},{"$f":"'2. Conservation Measures'!GS122","v":0},{"$f":"'2. Conservation Measures'!GT122","v":0},{"$f":"'2. Conservation Measures'!GU122","v":0},{"$f":"'2. Conservation Measures'!GV122","v":0},{"$f":"'2. Conservation Measures'!GW122","v":0},{"$f":"'2. Conservation Measures'!GX122","v":0},{"$f":"'2. Conservation Measures'!GY122","v":0},{"$f":"'2. Conservation Measures'!GZ122","v":0},{"$f":"'2. Conservation Measures'!HA122","v":0},{"$f":"'2. Conservation Measures'!HB122","v":0},{"$f":"'2. Conservation Measures'!HC122","v":0},{"$f":"'2. Conservation Measures'!HD122","v":0},{"$f":"'2. Conservation Measures'!HE122","v":0},{"$f":"'2. Conservation Measures'!HF122","v":0},{"$f":"'2. Conservation Measures'!HG122","v":0},{"$f":"'2. Conservation Measures'!HH122","v":0},{"$f":"'2. Conservation Measures'!HI122","v":0},{"$f":"'2. Conservation Measures'!HJ122","v":0},{"$f":"'2. Conservation Measures'!HK122","v":0},{"$f":"'2. Conservation Measures'!HL122","v":0},{"$f":"'2. Conservation Measures'!HM122","v":0},{"$f":"'2. Conservation Measures'!HN122","v":0},{"$f":"'2. Conservation Measures'!HO122","v":0},{"$f":"'2. Conservation Measures'!HP122","v":0},{"$f":"'2. Conservation Measures'!HQ122","v":0},{"$f":"'2. Conservation Measures'!HR122","v":0},{"$f":"'2. Conservation Measures'!HS122","v":0},{"$f":"'2. Conservation Measures'!HT122","v":0},{"$f":"'2. Conservation Measures'!HU122","v":0},{"$f":"'2. Conservation Measures'!HV122","v":0},{"$f":"'2. Conservation Measures'!HW122","v":0},{"$f":"'2. Conservation Measures'!HX122","v":0},{"$f":"'2. Conservation Measures'!HY122","v":0},{"$f":"'2. Conservation Measures'!HZ122","v":0},{"$f":"'2. Conservation Measures'!IA122","v":0},{"$f":"'2. Conservation Measures'!IB122","v":0},{"$f":"'2. Conservation Measures'!IC122","v":0},{"$f":"'2. Conservation Measures'!ID122","v":0},{"$f":"'2. Conservation Measures'!IE122","v":0},{"$f":"'2. Conservation Measures'!IF122","v":0},{"$f":"'2. Conservation Measures'!IG122","v":0},{"$f":"'2. Conservation Measures'!IH122","v":0},{"$f":"'2. Conservation Measures'!II122","v":0},{"$f":"'2. Conservation Measures'!IJ122","v":0},{"$f":"'2. Conservation Measures'!IK122","v":0},{"$f":"'2. Conservation Measures'!IL122","v":0},{"$f":"'2. Conservation Measures'!IM122","v":0},{"$f":"'2. Conservation Measures'!IN122","v":0},null,{"$f":"'2. Conservation Measures'!IP122","v":0},{"$f":"'2. Conservation Measures'!IQ122","v":0},{"$f":"'2. Conservation Measures'!IR122","v":0},{"$f":"'2. Conservation Measures'!IS122","v":0},{"$f":"'2. Conservation Measures'!IT122","v":0},{"$f":"'2. Conservation Measures'!IU122","v":0},{"$f":"'2. Conservation Measures'!IV122","v":0},{"$f":"'2. Conservation Measures'!IW122","v":0},{"$f":"'2. Conservation Measures'!IX122","v":0},{"$f":"'2. Conservation Measures'!IY122","v":0},{"$f":"'2. Conservation Measures'!IZ122","v":0},{"$f":"'2. Conservation Measures'!JA122","v":0},{"$f":"'2. Conservation Measures'!JB122","v":0},{"$f":"'2. Conservation Measures'!JC122","v":0},{"$f":"'2. Conservation Measures'!JD122","v":0},{"$f":"'2. Conservation Measures'!JE122","v":0},{"$f":"'2. Conservation Measures'!JF122","v":0},{"$f":"'2. Conservation Measures'!JG122","v":0},{"$f":"'2. Conservation Measures'!JH122","v":0},{"$f":"'2. Conservation Measures'!JI122","v":0},{"$f":"'2. Conservation Measures'!JJ122","v":0},{"$f":"'2. Conservation Measures'!JK122","v":0},{"$f":"'2. Conservation Measures'!JL122","v":0},{"$f":"'2. Conservation Measures'!JM122","v":0},{"$f":"'2. Conservation Measures'!JN122","v":0},{"$f":"'2. Conservation Measures'!JO122","v":0},{"$f":"'2. Conservation Measures'!JP122","v":0},{"$f":"'2. Conservation Measures'!JQ122","v":0},{"$f":"'2. Conservation Measures'!JR122","v":0},{"$f":"'2. Conservation Measures'!JS122","v":0},{"$f":"'2. Conservation Measures'!JT122","v":0},{"$f":"'2. Conservation Measures'!JU122","v":0},{"$f":"'2. Conservation Measures'!JV122","v":0},{"$f":"'2. Conservation Measures'!JW122","v":0},{"$f":"'2. Conservation Measures'!JX122","v":0},{"$f":"'2. Conservation Measures'!JY122","v":0},{"$f":"'2. Conservation Measures'!JZ122","v":0},{"$f":"'2. Conservation Measures'!KA122","v":0},{"$f":"'2. Conservation Measures'!KB122","v":0},{"$f":"'2. Conservation Measures'!KC122","v":0},{"$f":"'2. Conservation Measures'!KD122","v":0},{"$f":"'2. Conservation Measures'!KE122","v":0},{"$f":"'2. Conservation Measures'!KF122","v":0},{"$f":"'2. Conservation Measures'!KG122","v":0},{"$f":"'2. Conservation Measures'!KH122","v":0},{"$f":"'2. Conservation Measures'!KI122","v":0},{"$f":"'2. Conservation Measures'!KJ122","v":0},{"$f":"'2. Conservation Measures'!KK122","v":0},{"$f":"'2. Conservation Measures'!KL122","v":0},{"$f":"'2. Conservation Measures'!KM122","v":0},{"$f":"'2. Conservation Measures'!KN122","v":0}]
[null,{"$f":"'2. Conservation Measures'!B123","v":"USR-ICI-16"},{"$f":"'2. Conservation Measures'!C123","v":0},{"$f":"'2. Conservation Measures'!D123","v":"N"},null,{"$f":"'2. Conservation Measures'!AA123","v":0},null,{"$f":"'2. Conservation Measures'!AO123","v":0},{"$f":"'2. Conservation Measures'!AP123","v":0},{"$f":"'2. Conservation Measures'!AQ123","v":0},{"$f":"'2. Conservation Measures'!AR123","v":0},{"$f":"'2. Conservation Measures'!AS123","v":0},{"$f":"'2. Conservation Measures'!AT123","v":0},{"$f":"'2. Conservation Measures'!AU123","v":0},{"$f":"'2. Conservation Measures'!AV123","v":0},{"$f":"'2. Conservation Measures'!AW123","v":0},{"$f":"'2. Conservation Measures'!AX123","v":0},{"$f":"'2. Conservation Measures'!AY123","v":0},{"$f":"'2. Conservation Measures'!AZ123","v":0},{"$f":"'2. Conservation Measures'!BA123","v":0},{"$f":"'2. Conservation Measures'!BB123","v":0},{"$f":"'2. Conservation Measures'!BC123","v":0},{"$f":"'2. Conservation Measures'!BD123","v":0},{"$f":"'2. Conservation Measures'!BE123","v":0},{"$f":"'2. Conservation Measures'!BF123","v":0},{"$f":"'2. Conservation Measures'!BG123","v":0},{"$f":"'2. Conservation Measures'!BH123","v":0},{"$f":"'2. Conservation Measures'!BI123","v":0},{"$f":"'2. Conservation Measures'!BJ123","v":0},{"$f":"'2. Conservation Measures'!BK123","v":0},{"$f":"'2. Conservation Measures'!BL123","v":0},{"$f":"'2. Conservation Measures'!BM123","v":0},{"$f":"'2. Conservation Measures'!BN123","v":0},{"$f":"'2. Conservation Measures'!BO123","v":0},{"$f":"'2. Conservation Measures'!BP123","v":0},{"$f":"'2. Conservation Measures'!BQ123","v":0},{"$f":"'2. Conservation Measures'!BR123","v":0},{"$f":"'2. Conservation Measures'!BS123","v":0},{"$f":"'2. Conservation Measures'!BT123","v":0},{"$f":"'2. Conservation Measures'!BU123","v":0},{"$f":"'2. Conservation Measures'!BV123","v":0},{"$f":"'2. Conservation Measures'!BW123","v":0},{"$f":"'2. Conservation Measures'!BX123","v":0},{"$f":"'2. Conservation Measures'!BY123","v":0},{"$f":"'2. Conservation Measures'!BZ123","v":0},{"$f":"'2. Conservation Measures'!CA123","v":0},{"$f":"'2. Conservation Measures'!CB123","v":0},{"$f":"'2. Conservation Measures'!CC123","v":0},{"$f":"'2. Conservation Measures'!CD123","v":0},{"$f":"'2. Conservation Measures'!CE123","v":0},{"$f":"'2. Conservation Measures'!CF123","v":0},{"$f":"'2. Conservation Measures'!CG123","v":0},{"$f":"'2. Conservation Measures'!CH123","v":0},{"$f":"'2. Conservation Measures'!CI123","v":0},{"$f":"'2. Conservation Measures'!CJ123","v":0},{"$f":"'2. Conservation Measures'!CK123","v":0},{"$f":"'2. Conservation Measures'!CL123","v":0},{"$f":"'2. Conservation Measures'!CM123","v":0},null,{"$f":"'2. Conservation Measures'!CO123","v":0},{"$f":"'2. Conservation Measures'!CP123","v":0},{"$f":"'2. Conservation Measures'!CQ123","v":0},{"$f":"'2. Conservation Measures'!CR123","v":0},{"$f":"'2. Conservation Measures'!CS123","v":0},{"$f":"'2. Conservation Measures'!CT123","v":0},{"$f":"'2. Conservation Measures'!CU123","v":0},{"$f":"'2. Conservation Measures'!CV123","v":0},{"$f":"'2. Conservation Measures'!CW123","v":0},{"$f":"'2. Conservation Measures'!CX123","v":0},{"$f":"'2. Conservation Measures'!CY123","v":0},{"$f":"'2. Conservation Measures'!CZ123","v":0},{"$f":"'2. Conservation Measures'!DA123","v":0},{"$f":"'2. Conservation Measures'!DB123","v":0},{"$f":"'2. Conservation Measures'!DC123","v":0},{"$f":"'2. Conservation Measures'!DD123","v":0},{"$f":"'2. Conservation Measures'!DE123","v":0},{"$f":"'2. Conservation Measures'!DF123","v":0},{"$f":"'2. Conservation Measures'!DG123","v":0},{"$f":"'2. Conservation Measures'!DH123","v":0},{"$f":"'2. Conservation Measures'!DI123","v":0},{"$f":"'2. Conservation Measures'!DJ123","v":0},{"$f":"'2. Conservation Measures'!DK123","v":0},{"$f":"'2. Conservation Measures'!DL123","v":0},{"$f":"'2. Conservation Measures'!DM123","v":0},{"$f":"'2. Conservation Measures'!DN123","v":0},{"$f":"'2. Conservation Measures'!DO123","v":0},{"$f":"'2. Conservation Measures'!DP123","v":0},{"$f":"'2. Conservation Measures'!DQ123","v":0},{"$f":"'2. Conservation Measures'!DR123","v":0},{"$f":"'2. Conservation Measures'!DS123","v":0},{"$f":"'2. Conservation Measures'!DT123","v":0},{"$f":"'2. Conservation Measures'!DU123","v":0},{"$f":"'2. Conservation Measures'!DV123","v":0},{"$f":"'2. Conservation Measures'!DW123","v":0},{"$f":"'2. Conservation Measures'!DX123","v":0},{"$f":"'2. Conservation Measures'!DY123","v":0},{"$f":"'2. Conservation Measures'!DZ123","v":0},{"$f":"'2. Conservation Measures'!EA123","v":0},{"$f":"'2. Conservation Measures'!EB123","v":0},{"$f":"'2. Conservation Measures'!EC123","v":0},{"$f":"'2. Conservation Measures'!ED123","v":0},{"$f":"'2. Conservation Measures'!EE123","v":0},{"$f":"'2. Conservation Measures'!EF123","v":0},{"$f":"'2. Conservation Measures'!EG123","v":0},{"$f":"'2. Conservation Measures'!EH123","v":0},{"$f":"'2. Conservation Measures'!EI123","v":0},{"$f":"'2. Conservation Measures'!EJ123","v":0},{"$f":"'2. Conservation Measures'!EK123","v":0},{"$f":"'2. Conservation Measures'!EL123","v":0},{"$f":"'2. Conservation Measures'!EM123","v":0},null,{"$f":"'2. Conservation Measures'!KP123","v":0},{"$f":"'2. Conservation Measures'!KQ123","v":0},{"$f":"'2. Conservation Measures'!KR123","v":0},{"$f":"'2. Conservation Measures'!KS123","v":0},{"$f":"'2. Conservation Measures'!KT123","v":0},{"$f":"'2. Conservation Measures'!KU123","v":0},{"$f":"'2. Conservation Measures'!KV123","v":0},{"$f":"'2. Conservation Measures'!KW123","v":0},{"$f":"'2. Conservation Measures'!KX123","v":0},{"$f":"'2. Conservation Measures'!KY123","v":0},{"$f":"'2. Conservation Measures'!KZ123","v":0},{"$f":"'2. Conservation Measures'!LA123","v":0},{"$f":"'2. Conservation Measures'!LB123","v":0},{"$f":"'2. Conservation Measures'!LC123","v":0},{"$f":"'2. Conservation Measures'!LD123","v":0},{"$f":"'2. Conservation Measures'!LE123","v":0},{"$f":"'2. Conservation Measures'!LF123","v":0},{"$f":"'2. Conservation Measures'!LG123","v":0},{"$f":"'2. Conservation Measures'!LH123","v":0},{"$f":"'2. Conservation Measures'!LI123","v":0},{"$f":"'2. Conservation Measures'!LJ123","v":0},{"$f":"'2. Conservation Measures'!LK123","v":0},{"$f":"'2. Conservation Measures'!LL123","v":0},{"$f":"'2. Conservation Measures'!LM123","v":0},{"$f":"'2. Conservation Measures'!LN123","v":0},{"$f":"'2. Conservation Measures'!LO123","v":0},{"$f":"'2. Conservation Measures'!LP123","v":0},{"$f":"'2. Conservation Measures'!LQ123","v":0},{"$f":"'2. Conservation Measures'!LR123","v":0},{"$f":"'2. Conservation Measures'!LS123","v":0},{"$f":"'2. Conservation Measures'!LT123","v":0},{"$f":"'2. Conservation Measures'!LU123","v":0},{"$f":"'2. Conservation Measures'!LV123","v":0},{"$f":"'2. Conservation Measures'!LW123","v":0},{"$f":"'2. Conservation Measures'!LX123","v":0},{"$f":"'2. Conservation Measures'!LY123","v":0},{"$f":"'2. Conservation Measures'!LZ123","v":0},{"$f":"'2. Conservation Measures'!MA123","v":0},{"$f":"'2. Conservation Measures'!MB123","v":0},{"$f":"'2. Conservation Measures'!MC123","v":0},{"$f":"'2. Conservation Measures'!MD123","v":0},{"$f":"'2. Conservation Measures'!ME123","v":0},{"$f":"'2. Conservation Measures'!MF123","v":0},{"$f":"'2. Conservation Measures'!MG123","v":0},{"$f":"'2. Conservation Measures'!MH123","v":0},{"$f":"'2. Conservation Measures'!MI123","v":0},{"$f":"'2. Conservation Measures'!MJ123","v":0},{"$f":"'2. Conservation Measures'!MK123","v":0},{"$f":"'2. Conservation Measures'!ML123","v":0},{"$f":"'2. Conservation Measures'!MM123","v":0},{"$f":"'2. Conservation Measures'!MN123","v":0},null,{"$f":"'2. Conservation Measures'!EP123","v":0},{"$f":"'2. Conservation Measures'!EQ123","v":0},{"$f":"'2. Conservation Measures'!ER123","v":0},{"$f":"'2. Conservation Measures'!ES123","v":0},{"$f":"'2. Conservation Measures'!ET123","v":0},{"$f":"'2. Conservation Measures'!EU123","v":0},{"$f":"'2. Conservation Measures'!EV123","v":0},{"$f":"'2. Conservation Measures'!EW123","v":0},{"$f":"'2. Conservation Measures'!EX123","v":0},{"$f":"'2. Conservation Measures'!EY123","v":0},{"$f":"'2. Conservation Measures'!EZ123","v":0},{"$f":"'2. Conservation Measures'!FA123","v":0},{"$f":"'2. Conservation Measures'!FB123","v":0},{"$f":"'2. Conservation Measures'!FC123","v":0},{"$f":"'2. Conservation Measures'!FD123","v":0},{"$f":"'2. Conservation Measures'!FE123","v":0},{"$f":"'2. Conservation Measures'!FF123","v":0},{"$f":"'2. Conservation Measures'!FG123","v":0},{"$f":"'2. Conservation Measures'!FH123","v":0},{"$f":"'2. Conservation Measures'!FI123","v":0},{"$f":"'2. Conservation Measures'!FJ123","v":0},{"$f":"'2. Conservation Measures'!FK123","v":0},{"$f":"'2. Conservation Measures'!FL123","v":0},{"$f":"'2. Conservation Measures'!FM123","v":0},{"$f":"'2. Conservation Measures'!FN123","v":0},{"$f":"'2. Conservation Measures'!FO123","v":0},{"$f":"'2. Conservation Measures'!FP123","v":0},{"$f":"'2. Conservation Measures'!FQ123","v":0},{"$f":"'2. Conservation Measures'!FR123","v":0},{"$f":"'2. Conservation Measures'!FS123","v":0},{"$f":"'2. Conservation Measures'!FT123","v":0},{"$f":"'2. Conservation Measures'!FU123","v":0},{"$f":"'2. Conservation Measures'!FV123","v":0},{"$f":"'2. Conservation Measures'!FW123","v":0},{"$f":"'2. Conservation Measures'!FX123","v":0},{"$f":"'2. Conservation Measures'!FY123","v":0},{"$f":"'2. Conservation Measures'!FZ123","v":0},{"$f":"'2. Conservation Measures'!GA123","v":0},{"$f":"'2. Conservation Measures'!GB123","v":0},{"$f":"'2. Conservation Measures'!GC123","v":0},{"$f":"'2. Conservation Measures'!GD123","v":0},{"$f":"'2. Conservation Measures'!GE123","v":0},{"$f":"'2. Conservation Measures'!GF123","v":0},{"$f":"'2. Conservation Measures'!GG123","v":0},{"$f":"'2. Conservation Measures'!GH123","v":0},{"$f":"'2. Conservation Measures'!GI123","v":0},{"$f":"'2. Conservation Measures'!GJ123","v":0},{"$f":"'2. Conservation Measures'!GK123","v":0},{"$f":"'2. Conservation Measures'!GL123","v":0},{"$f":"'2. Conservation Measures'!GM123","v":0},{"$f":"'2. Conservation Measures'!GN123","v":0},null,{"$f":"'2. Conservation Measures'!GP123","v":0},{"$f":"'2. Conservation Measures'!GQ123","v":0},{"$f":"'2. Conservation Measures'!GR123","v":0},{"$f":"'2. Conservation Measures'!GS123","v":0},{"$f":"'2. Conservation Measures'!GT123","v":0},{"$f":"'2. Conservation Measures'!GU123","v":0},{"$f":"'2. Conservation Measures'!GV123","v":0},{"$f":"'2. Conservation Measures'!GW123","v":0},{"$f":"'2. Conservation Measures'!GX123","v":0},{"$f":"'2. Conservation Measures'!GY123","v":0},{"$f":"'2. Conservation Measures'!GZ123","v":0},{"$f":"'2. Conservation Measures'!HA123","v":0},{"$f":"'2. Conservation Measures'!HB123","v":0},{"$f":"'2. Conservation Measures'!HC123","v":0},{"$f":"'2. Conservation Measures'!HD123","v":0},{"$f":"'2. Conservation Measures'!HE123","v":0},{"$f":"'2. Conservation Measures'!HF123","v":0},{"$f":"'2. Conservation Measures'!HG123","v":0},{"$f":"'2. Conservation Measures'!HH123","v":0},{"$f":"'2. Conservation Measures'!HI123","v":0},{"$f":"'2. Conservation Measures'!HJ123","v":0},{"$f":"'2. Conservation Measures'!HK123","v":0},{"$f":"'2. Conservation Measures'!HL123","v":0},{"$f":"'2. Conservation Measures'!HM123","v":0},{"$f":"'2. Conservation Measures'!HN123","v":0},{"$f":"'2. Conservation Measures'!HO123","v":0},{"$f":"'2. Conservation Measures'!HP123","v":0},{"$f":"'2. Conservation Measures'!HQ123","v":0},{"$f":"'2. Conservation Measures'!HR123","v":0},{"$f":"'2. Conservation Measures'!HS123","v":0},{"$f":"'2. Conservation Measures'!HT123","v":0},{"$f":"'2. Conservation Measures'!HU123","v":0},{"$f":"'2. Conservation Measures'!HV123","v":0},{"$f":"'2. Conservation Measures'!HW123","v":0},{"$f":"'2. Conservation Measures'!HX123","v":0},{"$f":"'2. Conservation Measures'!HY123","v":0},{"$f":"'2. Conservation Measures'!HZ123","v":0},{"$f":"'2. Conservation Measures'!IA123","v":0},{"$f":"'2. Conservation Measures'!IB123","v":0},{"$f":"'2. Conservation Measures'!IC123","v":0},{"$f":"'2. Conservation Measures'!ID123","v":0},{"$f":"'2. Conservation Measures'!IE123","v":0},{"$f":"'2. Conservation Measures'!IF123","v":0},{"$f":"'2. Conservation Measures'!IG123","v":0},{"$f":"'2. Conservation Measures'!IH123","v":0},{"$f":"'2. Conservation Measures'!II123","v":0},{"$f":"'2. Conservation Measures'!IJ123","v":0},{"$f":"'2. Conservation Measures'!IK123","v":0},{"$f":"'2. Conservation Measures'!IL123","v":0},{"$f":"'2. Conservation Measures'!IM123","v":0},{"$f":"'2. Conservation Measures'!IN123","v":0},null,{"$f":"'2. Conservation Measures'!IP123","v":0},{"$f":"'2. Conservation Measures'!IQ123","v":0},{"$f":"'2. Conservation Measures'!IR123","v":0},{"$f":"'2. Conservation Measures'!IS123","v":0},{"$f":"'2. Conservation Measures'!IT123","v":0},{"$f":"'2. Conservation Measures'!IU123","v":0},{"$f":"'2. Conservation Measures'!IV123","v":0},{"$f":"'2. Conservation Measures'!IW123","v":0},{"$f":"'2. Conservation Measures'!IX123","v":0},{"$f":"'2. Conservation Measures'!IY123","v":0},{"$f":"'2. Conservation Measures'!IZ123","v":0},{"$f":"'2. Conservation Measures'!JA123","v":0},{"$f":"'2. Conservation Measures'!JB123","v":0},{"$f":"'2. Conservation Measures'!JC123","v":0},{"$f":"'2. Conservation Measures'!JD123","v":0},{"$f":"'2. Conservation Measures'!JE123","v":0},{"$f":"'2. Conservation Measures'!JF123","v":0},{"$f":"'2. Conservation Measures'!JG123","v":0},{"$f":"'2. Conservation Measures'!JH123","v":0},{"$f":"'2. Conservation Measures'!JI123","v":0},{"$f":"'2. Conservation Measures'!JJ123","v":0},{"$f":"'2. Conservation Measures'!JK123","v":0},{"$f":"'2. Conservation Measures'!JL123","v":0},{"$f":"'2. Conservation Measures'!JM123","v":0},{"$f":"'2. Conservation Measures'!JN123","v":0},{"$f":"'2. Conservation Measures'!JO123","v":0},{"$f":"'2. Conservation Measures'!JP123","v":0},{"$f":"'2. Conservation Measures'!JQ123","v":0},{"$f":"'2. Conservation Measures'!JR123","v":0},{"$f":"'2. Conservation Measures'!JS123","v":0},{"$f":"'2. Conservation Measures'!JT123","v":0},{"$f":"'2. Conservation Measures'!JU123","v":0},{"$f":"'2. Conservation Measures'!JV123","v":0},{"$f":"'2. Conservation Measures'!JW123","v":0},{"$f":"'2. Conservation Measures'!JX123","v":0},{"$f":"'2. Conservation Measures'!JY123","v":0},{"$f":"'2. Conservation Measures'!JZ123","v":0},{"$f":"'2. Conservation Measures'!KA123","v":0},{"$f":"'2. Conservation Measures'!KB123","v":0},{"$f":"'2. Conservation Measures'!KC123","v":0},{"$f":"'2. Conservation Measures'!KD123","v":0},{"$f":"'2. Conservation Measures'!KE123","v":0},{"$f":"'2. Conservation Measures'!KF123","v":0},{"$f":"'2. Conservation Measures'!KG123","v":0},{"$f":"'2. Conservation Measures'!KH123","v":0},{"$f":"'2. Conservation Measures'!KI123","v":0},{"$f":"'2. Conservation Measures'!KJ123","v":0},{"$f":"'2. Conservation Measures'!KK123","v":0},{"$f":"'2. Conservation Measures'!KL123","v":0},{"$f":"'2. Conservation Measures'!KM123","v":0},{"$f":"'2. Conservation Measures'!KN123","v":0}]
[null,{"$f":"'2. Conservation Measures'!B124","v":"USR-ICI-17"},{"$f":"'2. Conservation Measures'!C124","v":0},{"$f":"'2. Conservation Measures'!D124","v":"N"},null,{"$f":"'2. Conservation Measures'!AA124","v":0},null,{"$f":"'2. Conservation Measures'!AO124","v":0},{"$f":"'2. Conservation Measures'!AP124","v":0},{"$f":"'2. Conservation Measures'!AQ124","v":0},{"$f":"'2. Conservation Measures'!AR124","v":0},{"$f":"'2. Conservation Measures'!AS124","v":0},{"$f":"'2. Conservation Measures'!AT124","v":0},{"$f":"'2. Conservation Measures'!AU124","v":0},{"$f":"'2. Conservation Measures'!AV124","v":0},{"$f":"'2. Conservation Measures'!AW124","v":0},{"$f":"'2. Conservation Measures'!AX124","v":0},{"$f":"'2. Conservation Measures'!AY124","v":0},{"$f":"'2. Conservation Measures'!AZ124","v":0},{"$f":"'2. Conservation Measures'!BA124","v":0},{"$f":"'2. Conservation Measures'!BB124","v":0},{"$f":"'2. Conservation Measures'!BC124","v":0},{"$f":"'2. Conservation Measures'!BD124","v":0},{"$f":"'2. Conservation Measures'!BE124","v":0},{"$f":"'2. Conservation Measures'!BF124","v":0},{"$f":"'2. Conservation Measures'!BG124","v":0},{"$f":"'2. Conservation Measures'!BH124","v":0},{"$f":"'2. Conservation Measures'!BI124","v":0},{"$f":"'2. Conservation Measures'!BJ124","v":0},{"$f":"'2. Conservation Measures'!BK124","v":0},{"$f":"'2. Conservation Measures'!BL124","v":0},{"$f":"'2. Conservation Measures'!BM124","v":0},{"$f":"'2. Conservation Measures'!BN124","v":0},{"$f":"'2. Conservation Measures'!BO124","v":0},{"$f":"'2. Conservation Measures'!BP124","v":0},{"$f":"'2. Conservation Measures'!BQ124","v":0},{"$f":"'2. Conservation Measures'!BR124","v":0},{"$f":"'2. Conservation Measures'!BS124","v":0},{"$f":"'2. Conservation Measures'!BT124","v":0},{"$f":"'2. Conservation Measures'!BU124","v":0},{"$f":"'2. Conservation Measures'!BV124","v":0},{"$f":"'2. Conservation Measures'!BW124","v":0},{"$f":"'2. Conservation Measures'!BX124","v":0},{"$f":"'2. Conservation Measures'!BY124","v":0},{"$f":"'2. Conservation Measures'!BZ124","v":0},{"$f":"'2. Conservation Measures'!CA124","v":0},{"$f":"'2. Conservation Measures'!CB124","v":0},{"$f":"'2. Conservation Measures'!CC124","v":0},{"$f":"'2. Conservation Measures'!CD124","v":0},{"$f":"'2. Conservation Measures'!CE124","v":0},{"$f":"'2. Conservation Measures'!CF124","v":0},{"$f":"'2. Conservation Measures'!CG124","v":0},{"$f":"'2. Conservation Measures'!CH124","v":0},{"$f":"'2. Conservation Measures'!CI124","v":0},{"$f":"'2. Conservation Measures'!CJ124","v":0},{"$f":"'2. Conservation Measures'!CK124","v":0},{"$f":"'2. Conservation Measures'!CL124","v":0},{"$f":"'2. Conservation Measures'!CM124","v":0},null,{"$f":"'2. Conservation Measures'!CO124","v":0},{"$f":"'2. Conservation Measures'!CP124","v":0},{"$f":"'2. Conservation Measures'!CQ124","v":0},{"$f":"'2. Conservation Measures'!CR124","v":0},{"$f":"'2. Conservation Measures'!CS124","v":0},{"$f":"'2. Conservation Measures'!CT124","v":0},{"$f":"'2. Conservation Measures'!CU124","v":0},{"$f":"'2. Conservation Measures'!CV124","v":0},{"$f":"'2. Conservation Measures'!CW124","v":0},{"$f":"'2. Conservation Measures'!CX124","v":0},{"$f":"'2. Conservation Measures'!CY124","v":0},{"$f":"'2. Conservation Measures'!CZ124","v":0},{"$f":"'2. Conservation Measures'!DA124","v":0},{"$f":"'2. Conservation Measures'!DB124","v":0},{"$f":"'2. Conservation Measures'!DC124","v":0},{"$f":"'2. Conservation Measures'!DD124","v":0},{"$f":"'2. Conservation Measures'!DE124","v":0},{"$f":"'2. Conservation Measures'!DF124","v":0},{"$f":"'2. Conservation Measures'!DG124","v":0},{"$f":"'2. Conservation Measures'!DH124","v":0},{"$f":"'2. Conservation Measures'!DI124","v":0},{"$f":"'2. Conservation Measures'!DJ124","v":0},{"$f":"'2. Conservation Measures'!DK124","v":0},{"$f":"'2. Conservation Measures'!DL124","v":0},{"$f":"'2. Conservation Measures'!DM124","v":0},{"$f":"'2. Conservation Measures'!DN124","v":0},{"$f":"'2. Conservation Measures'!DO124","v":0},{"$f":"'2. Conservation Measures'!DP124","v":0},{"$f":"'2. Conservation Measures'!DQ124","v":0},{"$f":"'2. Conservation Measures'!DR124","v":0},{"$f":"'2. Conservation Measures'!DS124","v":0},{"$f":"'2. Conservation Measures'!DT124","v":0},{"$f":"'2. Conservation Measures'!DU124","v":0},{"$f":"'2. Conservation Measures'!DV124","v":0},{"$f":"'2. Conservation Measures'!DW124","v":0},{"$f":"'2. Conservation Measures'!DX124","v":0},{"$f":"'2. Conservation Measures'!DY124","v":0},{"$f":"'2. Conservation Measures'!DZ124","v":0},{"$f":"'2. Conservation Measures'!EA124","v":0},{"$f":"'2. Conservation Measures'!EB124","v":0},{"$f":"'2. Conservation Measures'!EC124","v":0},{"$f":"'2. Conservation Measures'!ED124","v":0},{"$f":"'2. Conservation Measures'!EE124","v":0},{"$f":"'2. Conservation Measures'!EF124","v":0},{"$f":"'2. Conservation Measures'!EG124","v":0},{"$f":"'2. Conservation Measures'!EH124","v":0},{"$f":"'2. Conservation Measures'!EI124","v":0},{"$f":"'2. Conservation Measures'!EJ124","v":0},{"$f":"'2. Conservation Measures'!EK124","v":0},{"$f":"'2. Conservation Measures'!EL124","v":0},{"$f":"'2. Conservation Measures'!EM124","v":0},null,{"$f":"'2. Conservation Measures'!KP124","v":0},{"$f":"'2. Conservation Measures'!KQ124","v":0},{"$f":"'2. Conservation Measures'!KR124","v":0},{"$f":"'2. Conservation Measures'!KS124","v":0},{"$f":"'2. Conservation Measures'!KT124","v":0},{"$f":"'2. Conservation Measures'!KU124","v":0},{"$f":"'2. Conservation Measures'!KV124","v":0},{"$f":"'2. Conservation Measures'!KW124","v":0},{"$f":"'2. Conservation Measures'!KX124","v":0},{"$f":"'2. Conservation Measures'!KY124","v":0},{"$f":"'2. Conservation Measures'!KZ124","v":0},{"$f":"'2. Conservation Measures'!LA124","v":0},{"$f":"'2. Conservation Measures'!LB124","v":0},{"$f":"'2. Conservation Measures'!LC124","v":0},{"$f":"'2. Conservation Measures'!LD124","v":0},{"$f":"'2. Conservation Measures'!LE124","v":0},{"$f":"'2. Conservation Measures'!LF124","v":0},{"$f":"'2. Conservation Measures'!LG124","v":0},{"$f":"'2. Conservation Measures'!LH124","v":0},{"$f":"'2. Conservation Measures'!LI124","v":0},{"$f":"'2. Conservation Measures'!LJ124","v":0},{"$f":"'2. Conservation Measures'!LK124","v":0},{"$f":"'2. Conservation Measures'!LL124","v":0},{"$f":"'2. Conservation Measures'!LM124","v":0},{"$f":"'2. Conservation Measures'!LN124","v":0},{"$f":"'2. Conservation Measures'!LO124","v":0},{"$f":"'2. Conservation Measures'!LP124","v":0},{"$f":"'2. Conservation Measures'!LQ124","v":0},{"$f":"'2. Conservation Measures'!LR124","v":0},{"$f":"'2. Conservation Measures'!LS124","v":0},{"$f":"'2. Conservation Measures'!LT124","v":0},{"$f":"'2. Conservation Measures'!LU124","v":0},{"$f":"'2. Conservation Measures'!LV124","v":0},{"$f":"'2. Conservation Measures'!LW124","v":0},{"$f":"'2. Conservation Measures'!LX124","v":0},{"$f":"'2. Conservation Measures'!LY124","v":0},{"$f":"'2. Conservation Measures'!LZ124","v":0},{"$f":"'2. Conservation Measures'!MA124","v":0},{"$f":"'2. Conservation Measures'!MB124","v":0},{"$f":"'2. Conservation Measures'!MC124","v":0},{"$f":"'2. Conservation Measures'!MD124","v":0},{"$f":"'2. Conservation Measures'!ME124","v":0},{"$f":"'2. Conservation Measures'!MF124","v":0},{"$f":"'2. Conservation Measures'!MG124","v":0},{"$f":"'2. Conservation Measures'!MH124","v":0},{"$f":"'2. Conservation Measures'!MI124","v":0},{"$f":"'2. Conservation Measures'!MJ124","v":0},{"$f":"'2. Conservation Measures'!MK124","v":0},{"$f":"'2. Conservation Measures'!ML124","v":0},{"$f":"'2. Conservation Measures'!MM124","v":0},{"$f":"'2. Conservation Measures'!MN124","v":0},null,{"$f":"'2. Conservation Measures'!EP124","v":0},{"$f":"'2. Conservation Measures'!EQ124","v":0},{"$f":"'2. Conservation Measures'!ER124","v":0},{"$f":"'2. Conservation Measures'!ES124","v":0},{"$f":"'2. Conservation Measures'!ET124","v":0},{"$f":"'2. Conservation Measures'!EU124","v":0},{"$f":"'2. Conservation Measures'!EV124","v":0},{"$f":"'2. Conservation Measures'!EW124","v":0},{"$f":"'2. Conservation Measures'!EX124","v":0},{"$f":"'2. Conservation Measures'!EY124","v":0},{"$f":"'2. Conservation Measures'!EZ124","v":0},{"$f":"'2. Conservation Measures'!FA124","v":0},{"$f":"'2. Conservation Measures'!FB124","v":0},{"$f":"'2. Conservation Measures'!FC124","v":0},{"$f":"'2. Conservation Measures'!FD124","v":0},{"$f":"'2. Conservation Measures'!FE124","v":0},{"$f":"'2. Conservation Measures'!FF124","v":0},{"$f":"'2. Conservation Measures'!FG124","v":0},{"$f":"'2. Conservation Measures'!FH124","v":0},{"$f":"'2. Conservation Measures'!FI124","v":0},{"$f":"'2. Conservation Measures'!FJ124","v":0},{"$f":"'2. Conservation Measures'!FK124","v":0},{"$f":"'2. Conservation Measures'!FL124","v":0},{"$f":"'2. Conservation Measures'!FM124","v":0},{"$f":"'2. Conservation Measures'!FN124","v":0},{"$f":"'2. Conservation Measures'!FO124","v":0},{"$f":"'2. Conservation Measures'!FP124","v":0},{"$f":"'2. Conservation Measures'!FQ124","v":0},{"$f":"'2. Conservation Measures'!FR124","v":0},{"$f":"'2. Conservation Measures'!FS124","v":0},{"$f":"'2. Conservation Measures'!FT124","v":0},{"$f":"'2. Conservation Measures'!FU124","v":0},{"$f":"'2. Conservation Measures'!FV124","v":0},{"$f":"'2. Conservation Measures'!FW124","v":0},{"$f":"'2. Conservation Measures'!FX124","v":0},{"$f":"'2. Conservation Measures'!FY124","v":0},{"$f":"'2. Conservation Measures'!FZ124","v":0},{"$f":"'2. Conservation Measures'!GA124","v":0},{"$f":"'2. Conservation Measures'!GB124","v":0},{"$f":"'2. Conservation Measures'!GC124","v":0},{"$f":"'2. Conservation Measures'!GD124","v":0},{"$f":"'2. Conservation Measures'!GE124","v":0},{"$f":"'2. Conservation Measures'!GF124","v":0},{"$f":"'2. Conservation Measures'!GG124","v":0},{"$f":"'2. Conservation Measures'!GH124","v":0},{"$f":"'2. Conservation Measures'!GI124","v":0},{"$f":"'2. Conservation Measures'!GJ124","v":0},{"$f":"'2. Conservation Measures'!GK124","v":0},{"$f":"'2. Conservation Measures'!GL124","v":0},{"$f":"'2. Conservation Measures'!GM124","v":0},{"$f":"'2. Conservation Measures'!GN124","v":0},null,{"$f":"'2. Conservation Measures'!GP124","v":0},{"$f":"'2. Conservation Measures'!GQ124","v":0},{"$f":"'2. Conservation Measures'!GR124","v":0},{"$f":"'2. Conservation Measures'!GS124","v":0},{"$f":"'2. Conservation Measures'!GT124","v":0},{"$f":"'2. Conservation Measures'!GU124","v":0},{"$f":"'2. Conservation Measures'!GV124","v":0},{"$f":"'2. Conservation Measures'!GW124","v":0},{"$f":"'2. Conservation Measures'!GX124","v":0},{"$f":"'2. Conservation Measures'!GY124","v":0},{"$f":"'2. Conservation Measures'!GZ124","v":0},{"$f":"'2. Conservation Measures'!HA124","v":0},{"$f":"'2. Conservation Measures'!HB124","v":0},{"$f":"'2. Conservation Measures'!HC124","v":0},{"$f":"'2. Conservation Measures'!HD124","v":0},{"$f":"'2. Conservation Measures'!HE124","v":0},{"$f":"'2. Conservation Measures'!HF124","v":0},{"$f":"'2. Conservation Measures'!HG124","v":0},{"$f":"'2. Conservation Measures'!HH124","v":0},{"$f":"'2. Conservation Measures'!HI124","v":0},{"$f":"'2. Conservation Measures'!HJ124","v":0},{"$f":"'2. Conservation Measures'!HK124","v":0},{"$f":"'2. Conservation Measures'!HL124","v":0},{"$f":"'2. Conservation Measures'!HM124","v":0},{"$f":"'2. Conservation Measures'!HN124","v":0},{"$f":"'2. Conservation Measures'!HO124","v":0},{"$f":"'2. Conservation Measures'!HP124","v":0},{"$f":"'2. Conservation Measures'!HQ124","v":0},{"$f":"'2. Conservation Measures'!HR124","v":0},{"$f":"'2. Conservation Measures'!HS124","v":0},{"$f":"'2. Conservation Measures'!HT124","v":0},{"$f":"'2. Conservation Measures'!HU124","v":0},{"$f":"'2. Conservation Measures'!HV124","v":0},{"$f":"'2. Conservation Measures'!HW124","v":0},{"$f":"'2. Conservation Measures'!HX124","v":0},{"$f":"'2. Conservation Measures'!HY124","v":0},{"$f":"'2. Conservation Measures'!HZ124","v":0},{"$f":"'2. Conservation Measures'!IA124","v":0},{"$f":"'2. Conservation Measures'!IB124","v":0},{"$f":"'2. Conservation Measures'!IC124","v":0},{"$f":"'2. Conservation Measures'!ID124","v":0},{"$f":"'2. Conservation Measures'!IE124","v":0},{"$f":"'2. Conservation Measures'!IF124","v":0},{"$f":"'2. Conservation Measures'!IG124","v":0},{"$f":"'2. Conservation Measures'!IH124","v":0},{"$f":"'2. Conservation Measures'!II124","v":0},{"$f":"'2. Conservation Measures'!IJ124","v":0},{"$f":"'2. Conservation Measures'!IK124","v":0},{"$f":"'2. Conservation Measures'!IL124","v":0},{"$f":"'2. Conservation Measures'!IM124","v":0},{"$f":"'2. Conservation Measures'!IN124","v":0},null,{"$f":"'2. Conservation Measures'!IP124","v":0},{"$f":"'2. Conservation Measures'!IQ124","v":0},{"$f":"'2. Conservation Measures'!IR124","v":0},{"$f":"'2. Conservation Measures'!IS124","v":0},{"$f":"'2. Conservation Measures'!IT124","v":0},{"$f":"'2. Conservation Measures'!IU124","v":0},{"$f":"'2. Conservation Measures'!IV124","v":0},{"$f":"'2. Conservation Measures'!IW124","v":0},{"$f":"'2. Conservation Measures'!IX124","v":0},{"$f":"'2. Conservation Measures'!IY124","v":0},{"$f":"'2. Conservation Measures'!IZ124","v":0},{"$f":"'2. Conservation Measures'!JA124","v":0},{"$f":"'2. Conservation Measures'!JB124","v":0},{"$f":"'2. Conservation Measures'!JC124","v":0},{"$f":"'2. Conservation Measures'!JD124","v":0},{"$f":"'2. Conservation Measures'!JE124","v":0},{"$f":"'2. Conservation Measures'!JF124","v":0},{"$f":"'2. Conservation Measures'!JG124","v":0},{"$f":"'2. Conservation Measures'!JH124","v":0},{"$f":"'2. Conservation Measures'!JI124","v":0},{"$f":"'2. Conservation Measures'!JJ124","v":0},{"$f":"'2. Conservation Measures'!JK124","v":0},{"$f":"'2. Conservation Measures'!JL124","v":0},{"$f":"'2. Conservation Measures'!JM124","v":0},{"$f":"'2. Conservation Measures'!JN124","v":0},{"$f":"'2. Conservation Measures'!JO124","v":0},{"$f":"'2. Conservation Measures'!JP124","v":0},{"$f":"'2. Conservation Measures'!JQ124","v":0},{"$f":"'2. Conservation Measures'!JR124","v":0},{"$f":"'2. Conservation Measures'!JS124","v":0},{"$f":"'2. Conservation Measures'!JT124","v":0},{"$f":"'2. Conservation Measures'!JU124","v":0},{"$f":"'2. Conservation Measures'!JV124","v":0},{"$f":"'2. Conservation Measures'!JW124","v":0},{"$f":"'2. Conservation Measures'!JX124","v":0},{"$f":"'2. Conservation Measures'!JY124","v":0},{"$f":"'2. Conservation Measures'!JZ124","v":0},{"$f":"'2. Conservation Measures'!KA124","v":0},{"$f":"'2. Conservation Measures'!KB124","v":0},{"$f":"'2. Conservation Measures'!KC124","v":0},{"$f":"'2. Conservation Measures'!KD124","v":0},{"$f":"'2. Conservation Measures'!KE124","v":0},{"$f":"'2. Conservation Measures'!KF124","v":0},{"$f":"'2. Conservation Measures'!KG124","v":0},{"$f":"'2. Conservation Measures'!KH124","v":0},{"$f":"'2. Conservation Measures'!KI124","v":0},{"$f":"'2. Conservation Measures'!KJ124","v":0},{"$f":"'2. Conservation Measures'!KK124","v":0},{"$f":"'2. Conservation Measures'!KL124","v":0},{"$f":"'2. Conservation Measures'!KM124","v":0},{"$f":"'2. Conservation Measures'!KN124","v":0}]
[null,{"$f":"'2. Conservation Measures'!B125","v":"USR-ICI-18"},{"$f":"'2. Conservation Measures'!C125","v":0},{"$f":"'2. Conservation Measures'!D125","v":"N"},null,{"$f":"'2. Conservation Measures'!AA125","v":0},null,{"$f":"'2. Conservation Measures'!AO125","v":0},{"$f":"'2. Conservation Measures'!AP125","v":0},{"$f":"'2. Conservation Measures'!AQ125","v":0},{"$f":"'2. Conservation Measures'!AR125","v":0},{"$f":"'2. Conservation Measures'!AS125","v":0},{"$f":"'2. Conservation Measures'!AT125","v":0},{"$f":"'2. Conservation Measures'!AU125","v":0},{"$f":"'2. Conservation Measures'!AV125","v":0},{"$f":"'2. Conservation Measures'!AW125","v":0},{"$f":"'2. Conservation Measures'!AX125","v":0},{"$f":"'2. Conservation Measures'!AY125","v":0},{"$f":"'2. Conservation Measures'!AZ125","v":0},{"$f":"'2. Conservation Measures'!BA125","v":0},{"$f":"'2. Conservation Measures'!BB125","v":0},{"$f":"'2. Conservation Measures'!BC125","v":0},{"$f":"'2. Conservation Measures'!BD125","v":0},{"$f":"'2. Conservation Measures'!BE125","v":0},{"$f":"'2. Conservation Measures'!BF125","v":0},{"$f":"'2. Conservation Measures'!BG125","v":0},{"$f":"'2. Conservation Measures'!BH125","v":0},{"$f":"'2. Conservation Measures'!BI125","v":0},{"$f":"'2. Conservation Measures'!BJ125","v":0},{"$f":"'2. Conservation Measures'!BK125","v":0},{"$f":"'2. Conservation Measures'!BL125","v":0},{"$f":"'2. Conservation Measures'!BM125","v":0},{"$f":"'2. Conservation Measures'!BN125","v":0},{"$f":"'2. Conservation Measures'!BO125","v":0},{"$f":"'2. Conservation Measures'!BP125","v":0},{"$f":"'2. Conservation Measures'!BQ125","v":0},{"$f":"'2. Conservation Measures'!BR125","v":0},{"$f":"'2. Conservation Measures'!BS125","v":0},{"$f":"'2. Conservation Measures'!BT125","v":0},{"$f":"'2. Conservation Measures'!BU125","v":0},{"$f":"'2. Conservation Measures'!BV125","v":0},{"$f":"'2. Conservation Measures'!BW125","v":0},{"$f":"'2. Conservation Measures'!BX125","v":0},{"$f":"'2. Conservation Measures'!BY125","v":0},{"$f":"'2. Conservation Measures'!BZ125","v":0},{"$f":"'2. Conservation Measures'!CA125","v":0},{"$f":"'2. Conservation Measures'!CB125","v":0},{"$f":"'2. Conservation Measures'!CC125","v":0},{"$f":"'2. Conservation Measures'!CD125","v":0},{"$f":"'2. Conservation Measures'!CE125","v":0},{"$f":"'2. Conservation Measures'!CF125","v":0},{"$f":"'2. Conservation Measures'!CG125","v":0},{"$f":"'2. Conservation Measures'!CH125","v":0},{"$f":"'2. Conservation Measures'!CI125","v":0},{"$f":"'2. Conservation Measures'!CJ125","v":0},{"$f":"'2. Conservation Measures'!CK125","v":0},{"$f":"'2. Conservation Measures'!CL125","v":0},{"$f":"'2. Conservation Measures'!CM125","v":0},null,{"$f":"'2. Conservation Measures'!CO125","v":0},{"$f":"'2. Conservation Measures'!CP125","v":0},{"$f":"'2. Conservation Measures'!CQ125","v":0},{"$f":"'2. Conservation Measures'!CR125","v":0},{"$f":"'2. Conservation Measures'!CS125","v":0},{"$f":"'2. Conservation Measures'!CT125","v":0},{"$f":"'2. Conservation Measures'!CU125","v":0},{"$f":"'2. Conservation Measures'!CV125","v":0},{"$f":"'2. Conservation Measures'!CW125","v":0},{"$f":"'2. Conservation Measures'!CX125","v":0},{"$f":"'2. Conservation Measures'!CY125","v":0},{"$f":"'2. Conservation Measures'!CZ125","v":0},{"$f":"'2. Conservation Measures'!DA125","v":0},{"$f":"'2. Conservation Measures'!DB125","v":0},{"$f":"'2. Conservation Measures'!DC125","v":0},{"$f":"'2. Conservation Measures'!DD125","v":0},{"$f":"'2. Conservation Measures'!DE125","v":0},{"$f":"'2. Conservation Measures'!DF125","v":0},{"$f":"'2. Conservation Measures'!DG125","v":0},{"$f":"'2. Conservation Measures'!DH125","v":0},{"$f":"'2. Conservation Measures'!DI125","v":0},{"$f":"'2. Conservation Measures'!DJ125","v":0},{"$f":"'2. Conservation Measures'!DK125","v":0},{"$f":"'2. Conservation Measures'!DL125","v":0},{"$f":"'2. Conservation Measures'!DM125","v":0},{"$f":"'2. Conservation Measures'!DN125","v":0},{"$f":"'2. Conservation Measures'!DO125","v":0},{"$f":"'2. Conservation Measures'!DP125","v":0},{"$f":"'2. Conservation Measures'!DQ125","v":0},{"$f":"'2. Conservation Measures'!DR125","v":0},{"$f":"'2. Conservation Measures'!DS125","v":0},{"$f":"'2. Conservation Measures'!DT125","v":0},{"$f":"'2. Conservation Measures'!DU125","v":0},{"$f":"'2. Conservation Measures'!DV125","v":0},{"$f":"'2. Conservation Measures'!DW125","v":0},{"$f":"'2. Conservation Measures'!DX125","v":0},{"$f":"'2. Conservation Measures'!DY125","v":0},{"$f":"'2. Conservation Measures'!DZ125","v":0},{"$f":"'2. Conservation Measures'!EA125","v":0},{"$f":"'2. Conservation Measures'!EB125","v":0},{"$f":"'2. Conservation Measures'!EC125","v":0},{"$f":"'2. Conservation Measures'!ED125","v":0},{"$f":"'2. Conservation Measures'!EE125","v":0},{"$f":"'2. Conservation Measures'!EF125","v":0},{"$f":"'2. Conservation Measures'!EG125","v":0},{"$f":"'2. Conservation Measures'!EH125","v":0},{"$f":"'2. Conservation Measures'!EI125","v":0},{"$f":"'2. Conservation Measures'!EJ125","v":0},{"$f":"'2. Conservation Measures'!EK125","v":0},{"$f":"'2. Conservation Measures'!EL125","v":0},{"$f":"'2. Conservation Measures'!EM125","v":0},null,{"$f":"'2. Conservation Measures'!KP125","v":0},{"$f":"'2. Conservation Measures'!KQ125","v":0},{"$f":"'2. Conservation Measures'!KR125","v":0},{"$f":"'2. Conservation Measures'!KS125","v":0},{"$f":"'2. Conservation Measures'!KT125","v":0},{"$f":"'2. Conservation Measures'!KU125","v":0},{"$f":"'2. Conservation Measures'!KV125","v":0},{"$f":"'2. Conservation Measures'!KW125","v":0},{"$f":"'2. Conservation Measures'!KX125","v":0},{"$f":"'2. Conservation Measures'!KY125","v":0},{"$f":"'2. Conservation Measures'!KZ125","v":0},{"$f":"'2. Conservation Measures'!LA125","v":0},{"$f":"'2. Conservation Measures'!LB125","v":0},{"$f":"'2. Conservation Measures'!LC125","v":0},{"$f":"'2. Conservation Measures'!LD125","v":0},{"$f":"'2. Conservation Measures'!LE125","v":0},{"$f":"'2. Conservation Measures'!LF125","v":0},{"$f":"'2. Conservation Measures'!LG125","v":0},{"$f":"'2. Conservation Measures'!LH125","v":0},{"$f":"'2. Conservation Measures'!LI125","v":0},{"$f":"'2. Conservation Measures'!LJ125","v":0},{"$f":"'2. Conservation Measures'!LK125","v":0},{"$f":"'2. Conservation Measures'!LL125","v":0},{"$f":"'2. Conservation Measures'!LM125","v":0},{"$f":"'2. Conservation Measures'!LN125","v":0},{"$f":"'2. Conservation Measures'!LO125","v":0},{"$f":"'2. Conservation Measures'!LP125","v":0},{"$f":"'2. Conservation Measures'!LQ125","v":0},{"$f":"'2. Conservation Measures'!LR125","v":0},{"$f":"'2. Conservation Measures'!LS125","v":0},{"$f":"'2. Conservation Measures'!LT125","v":0},{"$f":"'2. Conservation Measures'!LU125","v":0},{"$f":"'2. Conservation Measures'!LV125","v":0},{"$f":"'2. Conservation Measures'!LW125","v":0},{"$f":"'2. Conservation Measures'!LX125","v":0},{"$f":"'2. Conservation Measures'!LY125","v":0},{"$f":"'2. Conservation Measures'!LZ125","v":0},{"$f":"'2. Conservation Measures'!MA125","v":0},{"$f":"'2. Conservation Measures'!MB125","v":0},{"$f":"'2. Conservation Measures'!MC125","v":0},{"$f":"'2. Conservation Measures'!MD125","v":0},{"$f":"'2. Conservation Measures'!ME125","v":0},{"$f":"'2. Conservation Measures'!MF125","v":0},{"$f":"'2. Conservation Measures'!MG125","v":0},{"$f":"'2. Conservation Measures'!MH125","v":0},{"$f":"'2. Conservation Measures'!MI125","v":0},{"$f":"'2. Conservation Measures'!MJ125","v":0},{"$f":"'2. Conservation Measures'!MK125","v":0},{"$f":"'2. Conservation Measures'!ML125","v":0},{"$f":"'2. Conservation Measures'!MM125","v":0},{"$f":"'2. Conservation Measures'!MN125","v":0},null,{"$f":"'2. Conservation Measures'!EP125","v":0},{"$f":"'2. Conservation Measures'!EQ125","v":0},{"$f":"'2. Conservation Measures'!ER125","v":0},{"$f":"'2. Conservation Measures'!ES125","v":0},{"$f":"'2. Conservation Measures'!ET125","v":0},{"$f":"'2. Conservation Measures'!EU125","v":0},{"$f":"'2. Conservation Measures'!EV125","v":0},{"$f":"'2. Conservation Measures'!EW125","v":0},{"$f":"'2. Conservation Measures'!EX125","v":0},{"$f":"'2. Conservation Measures'!EY125","v":0},{"$f":"'2. Conservation Measures'!EZ125","v":0},{"$f":"'2. Conservation Measures'!FA125","v":0},{"$f":"'2. Conservation Measures'!FB125","v":0},{"$f":"'2. Conservation Measures'!FC125","v":0},{"$f":"'2. Conservation Measures'!FD125","v":0},{"$f":"'2. Conservation Measures'!FE125","v":0},{"$f":"'2. Conservation Measures'!FF125","v":0},{"$f":"'2. Conservation Measures'!FG125","v":0},{"$f":"'2. Conservation Measures'!FH125","v":0},{"$f":"'2. Conservation Measures'!FI125","v":0},{"$f":"'2. Conservation Measures'!FJ125","v":0},{"$f":"'2. Conservation Measures'!FK125","v":0},{"$f":"'2. Conservation Measures'!FL125","v":0},{"$f":"'2. Conservation Measures'!FM125","v":0},{"$f":"'2. Conservation Measures'!FN125","v":0},{"$f":"'2. Conservation Measures'!FO125","v":0},{"$f":"'2. Conservation Measures'!FP125","v":0},{"$f":"'2. Conservation Measures'!FQ125","v":0},{"$f":"'2. Conservation Measures'!FR125","v":0},{"$f":"'2. Conservation Measures'!FS125","v":0},{"$f":"'2. Conservation Measures'!FT125","v":0},{"$f":"'2. Conservation Measures'!FU125","v":0},{"$f":"'2. Conservation Measures'!FV125","v":0},{"$f":"'2. Conservation Measures'!FW125","v":0},{"$f":"'2. Conservation Measures'!FX125","v":0},{"$f":"'2. Conservation Measures'!FY125","v":0},{"$f":"'2. Conservation Measures'!FZ125","v":0},{"$f":"'2. Conservation Measures'!GA125","v":0},{"$f":"'2. Conservation Measures'!GB125","v":0},{"$f":"'2. Conservation Measures'!GC125","v":0},{"$f":"'2. Conservation Measures'!GD125","v":0},{"$f":"'2. Conservation Measures'!GE125","v":0},{"$f":"'2. Conservation Measures'!GF125","v":0},{"$f":"'2. Conservation Measures'!GG125","v":0},{"$f":"'2. Conservation Measures'!GH125","v":0},{"$f":"'2. Conservation Measures'!GI125","v":0},{"$f":"'2. Conservation Measures'!GJ125","v":0},{"$f":"'2. Conservation Measures'!GK125","v":0},{"$f":"'2. Conservation Measures'!GL125","v":0},{"$f":"'2. Conservation Measures'!GM125","v":0},{"$f":"'2. Conservation Measures'!GN125","v":0},null,{"$f":"'2. Conservation Measures'!GP125","v":0},{"$f":"'2. Conservation Measures'!GQ125","v":0},{"$f":"'2. Conservation Measures'!GR125","v":0},{"$f":"'2. Conservation Measures'!GS125","v":0},{"$f":"'2. Conservation Measures'!GT125","v":0},{"$f":"'2. Conservation Measures'!GU125","v":0},{"$f":"'2. Conservation Measures'!GV125","v":0},{"$f":"'2. Conservation Measures'!GW125","v":0},{"$f":"'2. Conservation Measures'!GX125","v":0},{"$f":"'2. Conservation Measures'!GY125","v":0},{"$f":"'2. Conservation Measures'!GZ125","v":0},{"$f":"'2. Conservation Measures'!HA125","v":0},{"$f":"'2. Conservation Measures'!HB125","v":0},{"$f":"'2. Conservation Measures'!HC125","v":0},{"$f":"'2. Conservation Measures'!HD125","v":0},{"$f":"'2. Conservation Measures'!HE125","v":0},{"$f":"'2. Conservation Measures'!HF125","v":0},{"$f":"'2. Conservation Measures'!HG125","v":0},{"$f":"'2. Conservation Measures'!HH125","v":0},{"$f":"'2. Conservation Measures'!HI125","v":0},{"$f":"'2. Conservation Measures'!HJ125","v":0},{"$f":"'2. Conservation Measures'!HK125","v":0},{"$f":"'2. Conservation Measures'!HL125","v":0},{"$f":"'2. Conservation Measures'!HM125","v":0},{"$f":"'2. Conservation Measures'!HN125","v":0},{"$f":"'2. Conservation Measures'!HO125","v":0},{"$f":"'2. Conservation Measures'!HP125","v":0},{"$f":"'2. Conservation Measures'!HQ125","v":0},{"$f":"'2. Conservation Measures'!HR125","v":0},{"$f":"'2. Conservation Measures'!HS125","v":0},{"$f":"'2. Conservation Measures'!HT125","v":0},{"$f":"'2. Conservation Measures'!HU125","v":0},{"$f":"'2. Conservation Measures'!HV125","v":0},{"$f":"'2. Conservation Measures'!HW125","v":0},{"$f":"'2. Conservation Measures'!HX125","v":0},{"$f":"'2. Conservation Measures'!HY125","v":0},{"$f":"'2. Conservation Measures'!HZ125","v":0},{"$f":"'2. Conservation Measures'!IA125","v":0},{"$f":"'2. Conservation Measures'!IB125","v":0},{"$f":"'2. Conservation Measures'!IC125","v":0},{"$f":"'2. Conservation Measures'!ID125","v":0},{"$f":"'2. Conservation Measures'!IE125","v":0},{"$f":"'2. Conservation Measures'!IF125","v":0},{"$f":"'2. Conservation Measures'!IG125","v":0},{"$f":"'2. Conservation Measures'!IH125","v":0},{"$f":"'2. Conservation Measures'!II125","v":0},{"$f":"'2. Conservation Measures'!IJ125","v":0},{"$f":"'2. Conservation Measures'!IK125","v":0},{"$f":"'2. Conservation Measures'!IL125","v":0},{"$f":"'2. Conservation Measures'!IM125","v":0},{"$f":"'2. Conservation Measures'!IN125","v":0},null,{"$f":"'2. Conservation Measures'!IP125","v":0},{"$f":"'2. Conservation Measures'!IQ125","v":0},{"$f":"'2. Conservation Measures'!IR125","v":0},{"$f":"'2. Conservation Measures'!IS125","v":0},{"$f":"'2. Conservation Measures'!IT125","v":0},{"$f":"'2. Conservation Measures'!IU125","v":0},{"$f":"'2. Conservation Measures'!IV125","v":0},{"$f":"'2. Conservation Measures'!IW125","v":0},{"$f":"'2. Conservation Measures'!IX125","v":0},{"$f":"'2. Conservation Measures'!IY125","v":0},{"$f":"'2. Conservation Measures'!IZ125","v":0},{"$f":"'2. Conservation Measures'!JA125","v":0},{"$f":"'2. Conservation Measures'!JB125","v":0},{"$f":"'2. Conservation Measures'!JC125","v":0},{"$f":"'2. Conservation Measures'!JD125","v":0},{"$f":"'2. Conservation Measures'!JE125","v":0},{"$f":"'2. Conservation Measures'!JF125","v":0},{"$f":"'2. Conservation Measures'!JG125","v":0},{"$f":"'2. Conservation Measures'!JH125","v":0},{"$f":"'2. Conservation Measures'!JI125","v":0},{"$f":"'2. Conservation Measures'!JJ125","v":0},{"$f":"'2. Conservation Measures'!JK125","v":0},{"$f":"'2. Conservation Measures'!JL125","v":0},{"$f":"'2. Conservation Measures'!JM125","v":0},{"$f":"'2. Conservation Measures'!JN125","v":0},{"$f":"'2. Conservation Measures'!JO125","v":0},{"$f":"'2. Conservation Measures'!JP125","v":0},{"$f":"'2. Conservation Measures'!JQ125","v":0},{"$f":"'2. Conservation Measures'!JR125","v":0},{"$f":"'2. Conservation Measures'!JS125","v":0},{"$f":"'2. Conservation Measures'!JT125","v":0},{"$f":"'2. Conservation Measures'!JU125","v":0},{"$f":"'2. Conservation Measures'!JV125","v":0},{"$f":"'2. Conservation Measures'!JW125","v":0},{"$f":"'2. Conservation Measures'!JX125","v":0},{"$f":"'2. Conservation Measures'!JY125","v":0},{"$f":"'2. Conservation Measures'!JZ125","v":0},{"$f":"'2. Conservation Measures'!KA125","v":0},{"$f":"'2. Conservation Measures'!KB125","v":0},{"$f":"'2. Conservation Measures'!KC125","v":0},{"$f":"'2. Conservation Measures'!KD125","v":0},{"$f":"'2. Conservation Measures'!KE125","v":0},{"$f":"'2. Conservation Measures'!KF125","v":0},{"$f":"'2. Conservation Measures'!KG125","v":0},{"$f":"'2. Conservation Measures'!KH125","v":0},{"$f":"'2. Conservation Measures'!KI125","v":0},{"$f":"'2. Conservation Measures'!KJ125","v":0},{"$f":"'2. Conservation Measures'!KK125","v":0},{"$f":"'2. Conservation Measures'!KL125","v":0},{"$f":"'2. Conservation Measures'!KM125","v":0},{"$f":"'2. Conservation Measures'!KN125","v":0}]
[null,{"$f":"'2. Conservation Measures'!B126","v":"USR-ICI-19"},{"$f":"'2. Conservation Measures'!C126","v":0},{"$f":"'2. Conservation Measures'!D126","v":"N"},null,{"$f":"'2. Conservation Measures'!AA126","v":0},null,{"$f":"'2. Conservation Measures'!AO126","v":0},{"$f":"'2. Conservation Measures'!AP126","v":0},{"$f":"'2. Conservation Measures'!AQ126","v":0},{"$f":"'2. Conservation Measures'!AR126","v":0},{"$f":"'2. Conservation Measures'!AS126","v":0},{"$f":"'2. Conservation Measures'!AT126","v":0},{"$f":"'2. Conservation Measures'!AU126","v":0},{"$f":"'2. Conservation Measures'!AV126","v":0},{"$f":"'2. Conservation Measures'!AW126","v":0},{"$f":"'2. Conservation Measures'!AX126","v":0},{"$f":"'2. Conservation Measures'!AY126","v":0},{"$f":"'2. Conservation Measures'!AZ126","v":0},{"$f":"'2. Conservation Measures'!BA126","v":0},{"$f":"'2. Conservation Measures'!BB126","v":0},{"$f":"'2. Conservation Measures'!BC126","v":0},{"$f":"'2. Conservation Measures'!BD126","v":0},{"$f":"'2. Conservation Measures'!BE126","v":0},{"$f":"'2. Conservation Measures'!BF126","v":0},{"$f":"'2. Conservation Measures'!BG126","v":0},{"$f":"'2. Conservation Measures'!BH126","v":0},{"$f":"'2. Conservation Measures'!BI126","v":0},{"$f":"'2. Conservation Measures'!BJ126","v":0},{"$f":"'2. Conservation Measures'!BK126","v":0},{"$f":"'2. Conservation Measures'!BL126","v":0},{"$f":"'2. Conservation Measures'!BM126","v":0},{"$f":"'2. Conservation Measures'!BN126","v":0},{"$f":"'2. Conservation Measures'!BO126","v":0},{"$f":"'2. Conservation Measures'!BP126","v":0},{"$f":"'2. Conservation Measures'!BQ126","v":0},{"$f":"'2. Conservation Measures'!BR126","v":0},{"$f":"'2. Conservation Measures'!BS126","v":0},{"$f":"'2. Conservation Measures'!BT126","v":0},{"$f":"'2. Conservation Measures'!BU126","v":0},{"$f":"'2. Conservation Measures'!BV126","v":0},{"$f":"'2. Conservation Measures'!BW126","v":0},{"$f":"'2. Conservation Measures'!BX126","v":0},{"$f":"'2. Conservation Measures'!BY126","v":0},{"$f":"'2. Conservation Measures'!BZ126","v":0},{"$f":"'2. Conservation Measures'!CA126","v":0},{"$f":"'2. Conservation Measures'!CB126","v":0},{"$f":"'2. Conservation Measures'!CC126","v":0},{"$f":"'2. Conservation Measures'!CD126","v":0},{"$f":"'2. Conservation Measures'!CE126","v":0},{"$f":"'2. Conservation Measures'!CF126","v":0},{"$f":"'2. Conservation Measures'!CG126","v":0},{"$f":"'2. Conservation Measures'!CH126","v":0},{"$f":"'2. Conservation Measures'!CI126","v":0},{"$f":"'2. Conservation Measures'!CJ126","v":0},{"$f":"'2. Conservation Measures'!CK126","v":0},{"$f":"'2. Conservation Measures'!CL126","v":0},{"$f":"'2. Conservation Measures'!CM126","v":0},null,{"$f":"'2. Conservation Measures'!CO126","v":0},{"$f":"'2. Conservation Measures'!CP126","v":0},{"$f":"'2. Conservation Measures'!CQ126","v":0},{"$f":"'2. Conservation Measures'!CR126","v":0},{"$f":"'2. Conservation Measures'!CS126","v":0},{"$f":"'2. Conservation Measures'!CT126","v":0},{"$f":"'2. Conservation Measures'!CU126","v":0},{"$f":"'2. Conservation Measures'!CV126","v":0},{"$f":"'2. Conservation Measures'!CW126","v":0},{"$f":"'2. Conservation Measures'!CX126","v":0},{"$f":"'2. Conservation Measures'!CY126","v":0},{"$f":"'2. Conservation Measures'!CZ126","v":0},{"$f":"'2. Conservation Measures'!DA126","v":0},{"$f":"'2. Conservation Measures'!DB126","v":0},{"$f":"'2. Conservation Measures'!DC126","v":0},{"$f":"'2. Conservation Measures'!DD126","v":0},{"$f":"'2. Conservation Measures'!DE126","v":0},{"$f":"'2. Conservation Measures'!DF126","v":0},{"$f":"'2. Conservation Measures'!DG126","v":0},{"$f":"'2. Conservation Measures'!DH126","v":0},{"$f":"'2. Conservation Measures'!DI126","v":0},{"$f":"'2. Conservation Measures'!DJ126","v":0},{"$f":"'2. Conservation Measures'!DK126","v":0},{"$f":"'2. Conservation Measures'!DL126","v":0},{"$f":"'2. Conservation Measures'!DM126","v":0},{"$f":"'2. Conservation Measures'!DN126","v":0},{"$f":"'2. Conservation Measures'!DO126","v":0},{"$f":"'2. Conservation Measures'!DP126","v":0},{"$f":"'2. Conservation Measures'!DQ126","v":0},{"$f":"'2. Conservation Measures'!DR126","v":0},{"$f":"'2. Conservation Measures'!DS126","v":0},{"$f":"'2. Conservation Measures'!DT126","v":0},{"$f":"'2. Conservation Measures'!DU126","v":0},{"$f":"'2. Conservation Measures'!DV126","v":0},{"$f":"'2. Conservation Measures'!DW126","v":0},{"$f":"'2. Conservation Measures'!DX126","v":0},{"$f":"'2. Conservation Measures'!DY126","v":0},{"$f":"'2. Conservation Measures'!DZ126","v":0},{"$f":"'2. Conservation Measures'!EA126","v":0},{"$f":"'2. Conservation Measures'!EB126","v":0},{"$f":"'2. Conservation Measures'!EC126","v":0},{"$f":"'2. Conservation Measures'!ED126","v":0},{"$f":"'2. Conservation Measures'!EE126","v":0},{"$f":"'2. Conservation Measures'!EF126","v":0},{"$f":"'2. Conservation Measures'!EG126","v":0},{"$f":"'2. Conservation Measures'!EH126","v":0},{"$f":"'2. Conservation Measures'!EI126","v":0},{"$f":"'2. Conservation Measures'!EJ126","v":0},{"$f":"'2. Conservation Measures'!EK126","v":0},{"$f":"'2. Conservation Measures'!EL126","v":0},{"$f":"'2. Conservation Measures'!EM126","v":0},null,{"$f":"'2. Conservation Measures'!KP126","v":0},{"$f":"'2. Conservation Measures'!KQ126","v":0},{"$f":"'2. Conservation Measures'!KR126","v":0},{"$f":"'2. Conservation Measures'!KS126","v":0},{"$f":"'2. Conservation Measures'!KT126","v":0},{"$f":"'2. Conservation Measures'!KU126","v":0},{"$f":"'2. Conservation Measures'!KV126","v":0},{"$f":"'2. Conservation Measures'!KW126","v":0},{"$f":"'2. Conservation Measures'!KX126","v":0},{"$f":"'2. Conservation Measures'!KY126","v":0},{"$f":"'2. Conservation Measures'!KZ126","v":0},{"$f":"'2. Conservation Measures'!LA126","v":0},{"$f":"'2. Conservation Measures'!LB126","v":0},{"$f":"'2. Conservation Measures'!LC126","v":0},{"$f":"'2. Conservation Measures'!LD126","v":0},{"$f":"'2. Conservation Measures'!LE126","v":0},{"$f":"'2. Conservation Measures'!LF126","v":0},{"$f":"'2. Conservation Measures'!LG126","v":0},{"$f":"'2. Conservation Measures'!LH126","v":0},{"$f":"'2. Conservation Measures'!LI126","v":0},{"$f":"'2. Conservation Measures'!LJ126","v":0},{"$f":"'2. Conservation Measures'!LK126","v":0},{"$f":"'2. Conservation Measures'!LL126","v":0},{"$f":"'2. Conservation Measures'!LM126","v":0},{"$f":"'2. Conservation Measures'!LN126","v":0},{"$f":"'2. Conservation Measures'!LO126","v":0},{"$f":"'2. Conservation Measures'!LP126","v":0},{"$f":"'2. Conservation Measures'!LQ126","v":0},{"$f":"'2. Conservation Measures'!LR126","v":0},{"$f":"'2. Conservation Measures'!LS126","v":0},{"$f":"'2. Conservation Measures'!LT126","v":0},{"$f":"'2. Conservation Measures'!LU126","v":0},{"$f":"'2. Conservation Measures'!LV126","v":0},{"$f":"'2. Conservation Measures'!LW126","v":0},{"$f":"'2. Conservation Measures'!LX126","v":0},{"$f":"'2. Conservation Measures'!LY126","v":0},{"$f":"'2. Conservation Measures'!LZ126","v":0},{"$f":"'2. Conservation Measures'!MA126","v":0},{"$f":"'2. Conservation Measures'!MB126","v":0},{"$f":"'2. Conservation Measures'!MC126","v":0},{"$f":"'2. Conservation Measures'!MD126","v":0},{"$f":"'2. Conservation Measures'!ME126","v":0},{"$f":"'2. Conservation Measures'!MF126","v":0},{"$f":"'2. Conservation Measures'!MG126","v":0},{"$f":"'2. Conservation Measures'!MH126","v":0},{"$f":"'2. Conservation Measures'!MI126","v":0},{"$f":"'2. Conservation Measures'!MJ126","v":0},{"$f":"'2. Conservation Measures'!MK126","v":0},{"$f":"'2. Conservation Measures'!ML126","v":0},{"$f":"'2. Conservation Measures'!MM126","v":0},{"$f":"'2. Conservation Measures'!MN126","v":0},null,{"$f":"'2. Conservation Measures'!EP126","v":0},{"$f":"'2. Conservation Measures'!EQ126","v":0},{"$f":"'2. Conservation Measures'!ER126","v":0},{"$f":"'2. Conservation Measures'!ES126","v":0},{"$f":"'2. Conservation Measures'!ET126","v":0},{"$f":"'2. Conservation Measures'!EU126","v":0},{"$f":"'2. Conservation Measures'!EV126","v":0},{"$f":"'2. Conservation Measures'!EW126","v":0},{"$f":"'2. Conservation Measures'!EX126","v":0},{"$f":"'2. Conservation Measures'!EY126","v":0},{"$f":"'2. Conservation Measures'!EZ126","v":0},{"$f":"'2. Conservation Measures'!FA126","v":0},{"$f":"'2. Conservation Measures'!FB126","v":0},{"$f":"'2. Conservation Measures'!FC126","v":0},{"$f":"'2. Conservation Measures'!FD126","v":0},{"$f":"'2. Conservation Measures'!FE126","v":0},{"$f":"'2. Conservation Measures'!FF126","v":0},{"$f":"'2. Conservation Measures'!FG126","v":0},{"$f":"'2. Conservation Measures'!FH126","v":0},{"$f":"'2. Conservation Measures'!FI126","v":0},{"$f":"'2. Conservation Measures'!FJ126","v":0},{"$f":"'2. Conservation Measures'!FK126","v":0},{"$f":"'2. Conservation Measures'!FL126","v":0},{"$f":"'2. Conservation Measures'!FM126","v":0},{"$f":"'2. Conservation Measures'!FN126","v":0},{"$f":"'2. Conservation Measures'!FO126","v":0},{"$f":"'2. Conservation Measures'!FP126","v":0},{"$f":"'2. Conservation Measures'!FQ126","v":0},{"$f":"'2. Conservation Measures'!FR126","v":0},{"$f":"'2. Conservation Measures'!FS126","v":0},{"$f":"'2. Conservation Measures'!FT126","v":0},{"$f":"'2. Conservation Measures'!FU126","v":0},{"$f":"'2. Conservation Measures'!FV126","v":0},{"$f":"'2. Conservation Measures'!FW126","v":0},{"$f":"'2. Conservation Measures'!FX126","v":0},{"$f":"'2. Conservation Measures'!FY126","v":0},{"$f":"'2. Conservation Measures'!FZ126","v":0},{"$f":"'2. Conservation Measures'!GA126","v":0},{"$f":"'2. Conservation Measures'!GB126","v":0},{"$f":"'2. Conservation Measures'!GC126","v":0},{"$f":"'2. Conservation Measures'!GD126","v":0},{"$f":"'2. Conservation Measures'!GE126","v":0},{"$f":"'2. Conservation Measures'!GF126","v":0},{"$f":"'2. Conservation Measures'!GG126","v":0},{"$f":"'2. Conservation Measures'!GH126","v":0},{"$f":"'2. Conservation Measures'!GI126","v":0},{"$f":"'2. Conservation Measures'!GJ126","v":0},{"$f":"'2. Conservation Measures'!GK126","v":0},{"$f":"'2. Conservation Measures'!GL126","v":0},{"$f":"'2. Conservation Measures'!GM126","v":0},{"$f":"'2. Conservation Measures'!GN126","v":0},null,{"$f":"'2. Conservation Measures'!GP126","v":0},{"$f":"'2. Conservation Measures'!GQ126","v":0},{"$f":"'2. Conservation Measures'!GR126","v":0},{"$f":"'2. Conservation Measures'!GS126","v":0},{"$f":"'2. Conservation Measures'!GT126","v":0},{"$f":"'2. Conservation Measures'!GU126","v":0},{"$f":"'2. Conservation Measures'!GV126","v":0},{"$f":"'2. Conservation Measures'!GW126","v":0},{"$f":"'2. Conservation Measures'!GX126","v":0},{"$f":"'2. Conservation Measures'!GY126","v":0},{"$f":"'2. Conservation Measures'!GZ126","v":0},{"$f":"'2. Conservation Measures'!HA126","v":0},{"$f":"'2. Conservation Measures'!HB126","v":0},{"$f":"'2. Conservation Measures'!HC126","v":0},{"$f":"'2. Conservation Measures'!HD126","v":0},{"$f":"'2. Conservation Measures'!HE126","v":0},{"$f":"'2. Conservation Measures'!HF126","v":0},{"$f":"'2. Conservation Measures'!HG126","v":0},{"$f":"'2. Conservation Measures'!HH126","v":0},{"$f":"'2. Conservation Measures'!HI126","v":0},{"$f":"'2. Conservation Measures'!HJ126","v":0},{"$f":"'2. Conservation Measures'!HK126","v":0},{"$f":"'2. Conservation Measures'!HL126","v":0},{"$f":"'2. Conservation Measures'!HM126","v":0},{"$f":"'2. Conservation Measures'!HN126","v":0},{"$f":"'2. Conservation Measures'!HO126","v":0},{"$f":"'2. Conservation Measures'!HP126","v":0},{"$f":"'2. Conservation Measures'!HQ126","v":0},{"$f":"'2. Conservation Measures'!HR126","v":0},{"$f":"'2. Conservation Measures'!HS126","v":0},{"$f":"'2. Conservation Measures'!HT126","v":0},{"$f":"'2. Conservation Measures'!HU126","v":0},{"$f":"'2. Conservation Measures'!HV126","v":0},{"$f":"'2. Conservation Measures'!HW126","v":0},{"$f":"'2. Conservation Measures'!HX126","v":0},{"$f":"'2. Conservation Measures'!HY126","v":0},{"$f":"'2. Conservation Measures'!HZ126","v":0},{"$f":"'2. Conservation Measures'!IA126","v":0},{"$f":"'2. Conservation Measures'!IB126","v":0},{"$f":"'2. Conservation Measures'!IC126","v":0},{"$f":"'2. Conservation Measures'!ID126","v":0},{"$f":"'2. Conservation Measures'!IE126","v":0},{"$f":"'2. Conservation Measures'!IF126","v":0},{"$f":"'2. Conservation Measures'!IG126","v":0},{"$f":"'2. Conservation Measures'!IH126","v":0},{"$f":"'2. Conservation Measures'!II126","v":0},{"$f":"'2. Conservation Measures'!IJ126","v":0},{"$f":"'2. Conservation Measures'!IK126","v":0},{"$f":"'2. Conservation Measures'!IL126","v":0},{"$f":"'2. Conservation Measures'!IM126","v":0},{"$f":"'2. Conservation Measures'!IN126","v":0},null,{"$f":"'2. Conservation Measures'!IP126","v":0},{"$f":"'2. Conservation Measures'!IQ126","v":0},{"$f":"'2. Conservation Measures'!IR126","v":0},{"$f":"'2. Conservation Measures'!IS126","v":0},{"$f":"'2. Conservation Measures'!IT126","v":0},{"$f":"'2. Conservation Measures'!IU126","v":0},{"$f":"'2. Conservation Measures'!IV126","v":0},{"$f":"'2. Conservation Measures'!IW126","v":0},{"$f":"'2. Conservation Measures'!IX126","v":0},{"$f":"'2. Conservation Measures'!IY126","v":0},{"$f":"'2. Conservation Measures'!IZ126","v":0},{"$f":"'2. Conservation Measures'!JA126","v":0},{"$f":"'2. Conservation Measures'!JB126","v":0},{"$f":"'2. Conservation Measures'!JC126","v":0},{"$f":"'2. Conservation Measures'!JD126","v":0},{"$f":"'2. Conservation Measures'!JE126","v":0},{"$f":"'2. Conservation Measures'!JF126","v":0},{"$f":"'2. Conservation Measures'!JG126","v":0},{"$f":"'2. Conservation Measures'!JH126","v":0},{"$f":"'2. Conservation Measures'!JI126","v":0},{"$f":"'2. Conservation Measures'!JJ126","v":0},{"$f":"'2. Conservation Measures'!JK126","v":0},{"$f":"'2. Conservation Measures'!JL126","v":0},{"$f":"'2. Conservation Measures'!JM126","v":0},{"$f":"'2. Conservation Measures'!JN126","v":0},{"$f":"'2. Conservation Measures'!JO126","v":0},{"$f":"'2. Conservation Measures'!JP126","v":0},{"$f":"'2. Conservation Measures'!JQ126","v":0},{"$f":"'2. Conservation Measures'!JR126","v":0},{"$f":"'2. Conservation Measures'!JS126","v":0},{"$f":"'2. Conservation Measures'!JT126","v":0},{"$f":"'2. Conservation Measures'!JU126","v":0},{"$f":"'2. Conservation Measures'!JV126","v":0},{"$f":"'2. Conservation Measures'!JW126","v":0},{"$f":"'2. Conservation Measures'!JX126","v":0},{"$f":"'2. Conservation Measures'!JY126","v":0},{"$f":"'2. Conservation Measures'!JZ126","v":0},{"$f":"'2. Conservation Measures'!KA126","v":0},{"$f":"'2. Conservation Measures'!KB126","v":0},{"$f":"'2. Conservation Measures'!KC126","v":0},{"$f":"'2. Conservation Measures'!KD126","v":0},{"$f":"'2. Conservation Measures'!KE126","v":0},{"$f":"'2. Conservation Measures'!KF126","v":0},{"$f":"'2. Conservation Measures'!KG126","v":0},{"$f":"'2. Conservation Measures'!KH126","v":0},{"$f":"'2. Conservation Measures'!KI126","v":0},{"$f":"'2. Conservation Measures'!KJ126","v":0},{"$f":"'2. Conservation Measures'!KK126","v":0},{"$f":"'2. Conservation Measures'!KL126","v":0},{"$f":"'2. Conservation Measures'!KM126","v":0},{"$f":"'2. Conservation Measures'!KN126","v":0}]
[null,{"$f":"'2. Conservation Measures'!B127","v":"USR-ICI-20"},{"$f":"'2. Conservation Measures'!C127","v":0},{"$f":"'2. Conservation Measures'!D127","v":"N"},null,{"$f":"'2. Conservation Measures'!AA127","v":0},null,{"$f":"'2. Conservation Measures'!AO127","v":0},{"$f":"'2. Conservation Measures'!AP127","v":0},{"$f":"'2. Conservation Measures'!AQ127","v":0},{"$f":"'2. Conservation Measures'!AR127","v":0},{"$f":"'2. Conservation Measures'!AS127","v":0},{"$f":"'2. Conservation Measures'!AT127","v":0},{"$f":"'2. Conservation Measures'!AU127","v":0},{"$f":"'2. Conservation Measures'!AV127","v":0},{"$f":"'2. Conservation Measures'!AW127","v":0},{"$f":"'2. Conservation Measures'!AX127","v":0},{"$f":"'2. Conservation Measures'!AY127","v":0},{"$f":"'2. Conservation Measures'!AZ127","v":0},{"$f":"'2. Conservation Measures'!BA127","v":0},{"$f":"'2. Conservation Measures'!BB127","v":0},{"$f":"'2. Conservation Measures'!BC127","v":0},{"$f":"'2. Conservation Measures'!BD127","v":0},{"$f":"'2. Conservation Measures'!BE127","v":0},{"$f":"'2. Conservation Measures'!BF127","v":0},{"$f":"'2. Conservation Measures'!BG127","v":0},{"$f":"'2. Conservation Measures'!BH127","v":0},{"$f":"'2. Conservation Measures'!BI127","v":0},{"$f":"'2. Conservation Measures'!BJ127","v":0},{"$f":"'2. Conservation Measures'!BK127","v":0},{"$f":"'2. Conservation Measures'!BL127","v":0},{"$f":"'2. Conservation Measures'!BM127","v":0},{"$f":"'2. Conservation Measures'!BN127","v":0},{"$f":"'2. Conservation Measures'!BO127","v":0},{"$f":"'2. Conservation Measures'!BP127","v":0},{"$f":"'2. Conservation Measures'!BQ127","v":0},{"$f":"'2. Conservation Measures'!BR127","v":0},{"$f":"'2. Conservation Measures'!BS127","v":0},{"$f":"'2. Conservation Measures'!BT127","v":0},{"$f":"'2. Conservation Measures'!BU127","v":0},{"$f":"'2. Conservation Measures'!BV127","v":0},{"$f":"'2. Conservation Measures'!BW127","v":0},{"$f":"'2. Conservation Measures'!BX127","v":0},{"$f":"'2. Conservation Measures'!BY127","v":0},{"$f":"'2. Conservation Measures'!BZ127","v":0},{"$f":"'2. Conservation Measures'!CA127","v":0},{"$f":"'2. Conservation Measures'!CB127","v":0},{"$f":"'2. Conservation Measures'!CC127","v":0},{"$f":"'2. Conservation Measures'!CD127","v":0},{"$f":"'2. Conservation Measures'!CE127","v":0},{"$f":"'2. Conservation Measures'!CF127","v":0},{"$f":"'2. Conservation Measures'!CG127","v":0},{"$f":"'2. Conservation Measures'!CH127","v":0},{"$f":"'2. Conservation Measures'!CI127","v":0},{"$f":"'2. Conservation Measures'!CJ127","v":0},{"$f":"'2. Conservation Measures'!CK127","v":0},{"$f":"'2. Conservation Measures'!CL127","v":0},{"$f":"'2. Conservation Measures'!CM127","v":0},null,{"$f":"'2. Conservation Measures'!CO127","v":0},{"$f":"'2. Conservation Measures'!CP127","v":0},{"$f":"'2. Conservation Measures'!CQ127","v":0},{"$f":"'2. Conservation Measures'!CR127","v":0},{"$f":"'2. Conservation Measures'!CS127","v":0},{"$f":"'2. Conservation Measures'!CT127","v":0},{"$f":"'2. Conservation Measures'!CU127","v":0},{"$f":"'2. Conservation Measures'!CV127","v":0},{"$f":"'2. Conservation Measures'!CW127","v":0},{"$f":"'2. Conservation Measures'!CX127","v":0},{"$f":"'2. Conservation Measures'!CY127","v":0},{"$f":"'2. Conservation Measures'!CZ127","v":0},{"$f":"'2. Conservation Measures'!DA127","v":0},{"$f":"'2. Conservation Measures'!DB127","v":0},{"$f":"'2. Conservation Measures'!DC127","v":0},{"$f":"'2. Conservation Measures'!DD127","v":0},{"$f":"'2. Conservation Measures'!DE127","v":0},{"$f":"'2. Conservation Measures'!DF127","v":0},{"$f":"'2. Conservation Measures'!DG127","v":0},{"$f":"'2. Conservation Measures'!DH127","v":0},{"$f":"'2. Conservation Measures'!DI127","v":0},{"$f":"'2. Conservation Measures'!DJ127","v":0},{"$f":"'2. Conservation Measures'!DK127","v":0},{"$f":"'2. Conservation Measures'!DL127","v":0},{"$f":"'2. Conservation Measures'!DM127","v":0},{"$f":"'2. Conservation Measures'!DN127","v":0},{"$f":"'2. Conservation Measures'!DO127","v":0},{"$f":"'2. Conservation Measures'!DP127","v":0},{"$f":"'2. Conservation Measures'!DQ127","v":0},{"$f":"'2. Conservation Measures'!DR127","v":0},{"$f":"'2. Conservation Measures'!DS127","v":0},{"$f":"'2. Conservation Measures'!DT127","v":0},{"$f":"'2. Conservation Measures'!DU127","v":0},{"$f":"'2. Conservation Measures'!DV127","v":0},{"$f":"'2. Conservation Measures'!DW127","v":0},{"$f":"'2. Conservation Measures'!DX127","v":0},{"$f":"'2. Conservation Measures'!DY127","v":0},{"$f":"'2. Conservation Measures'!DZ127","v":0},{"$f":"'2. Conservation Measures'!EA127","v":0},{"$f":"'2. Conservation Measures'!EB127","v":0},{"$f":"'2. Conservation Measures'!EC127","v":0},{"$f":"'2. Conservation Measures'!ED127","v":0},{"$f":"'2. Conservation Measures'!EE127","v":0},{"$f":"'2. Conservation Measures'!EF127","v":0},{"$f":"'2. Conservation Measures'!EG127","v":0},{"$f":"'2. Conservation Measures'!EH127","v":0},{"$f":"'2. Conservation Measures'!EI127","v":0},{"$f":"'2. Conservation Measures'!EJ127","v":0},{"$f":"'2. Conservation Measures'!EK127","v":0},{"$f":"'2. Conservation Measures'!EL127","v":0},{"$f":"'2. Conservation Measures'!EM127","v":0},null,{"$f":"'2. Conservation Measures'!KP127","v":0},{"$f":"'2. Conservation Measures'!KQ127","v":0},{"$f":"'2. Conservation Measures'!KR127","v":0},{"$f":"'2. Conservation Measures'!KS127","v":0},{"$f":"'2. Conservation Measures'!KT127","v":0},{"$f":"'2. Conservation Measures'!KU127","v":0},{"$f":"'2. Conservation Measures'!KV127","v":0},{"$f":"'2. Conservation Measures'!KW127","v":0},{"$f":"'2. Conservation Measures'!KX127","v":0},{"$f":"'2. Conservation Measures'!KY127","v":0},{"$f":"'2. Conservation Measures'!KZ127","v":0},{"$f":"'2. Conservation Measures'!LA127","v":0},{"$f":"'2. Conservation Measures'!LB127","v":0},{"$f":"'2. Conservation Measures'!LC127","v":0},{"$f":"'2. Conservation Measures'!LD127","v":0},{"$f":"'2. Conservation Measures'!LE127","v":0},{"$f":"'2. Conservation Measures'!LF127","v":0},{"$f":"'2. Conservation Measures'!LG127","v":0},{"$f":"'2. Conservation Measures'!LH127","v":0},{"$f":"'2. Conservation Measures'!LI127","v":0},{"$f":"'2. Conservation Measures'!LJ127","v":0},{"$f":"'2. Conservation Measures'!LK127","v":0},{"$f":"'2. Conservation Measures'!LL127","v":0},{"$f":"'2. Conservation Measures'!LM127","v":0},{"$f":"'2. Conservation Measures'!LN127","v":0},{"$f":"'2. Conservation Measures'!LO127","v":0},{"$f":"'2. Conservation Measures'!LP127","v":0},{"$f":"'2. Conservation Measures'!LQ127","v":0},{"$f":"'2. Conservation Measures'!LR127","v":0},{"$f":"'2. Conservation Measures'!LS127","v":0},{"$f":"'2. Conservation Measures'!LT127","v":0},{"$f":"'2. Conservation Measures'!LU127","v":0},{"$f":"'2. Conservation Measures'!LV127","v":0},{"$f":"'2. Conservation Measures'!LW127","v":0},{"$f":"'2. Conservation Measures'!LX127","v":0},{"$f":"'2. Conservation Measures'!LY127","v":0},{"$f":"'2. Conservation Measures'!LZ127","v":0},{"$f":"'2. Conservation Measures'!MA127","v":0},{"$f":"'2. Conservation Measures'!MB127","v":0},{"$f":"'2. Conservation Measures'!MC127","v":0},{"$f":"'2. Conservation Measures'!MD127","v":0},{"$f":"'2. Conservation Measures'!ME127","v":0},{"$f":"'2. Conservation Measures'!MF127","v":0},{"$f":"'2. Conservation Measures'!MG127","v":0},{"$f":"'2. Conservation Measures'!MH127","v":0},{"$f":"'2. Conservation Measures'!MI127","v":0},{"$f":"'2. Conservation Measures'!MJ127","v":0},{"$f":"'2. Conservation Measures'!MK127","v":0},{"$f":"'2. Conservation Measures'!ML127","v":0},{"$f":"'2. Conservation Measures'!MM127","v":0},{"$f":"'2. Conservation Measures'!MN127","v":0},null,{"$f":"'2. Conservation Measures'!EP127","v":0},{"$f":"'2. Conservation Measures'!EQ127","v":0},{"$f":"'2. Conservation Measures'!ER127","v":0},{"$f":"'2. Conservation Measures'!ES127","v":0},{"$f":"'2. Conservation Measures'!ET127","v":0},{"$f":"'2. Conservation Measures'!EU127","v":0},{"$f":"'2. Conservation Measures'!EV127","v":0},{"$f":"'2. Conservation Measures'!EW127","v":0},{"$f":"'2. Conservation Measures'!EX127","v":0},{"$f":"'2. Conservation Measures'!EY127","v":0},{"$f":"'2. Conservation Measures'!EZ127","v":0},{"$f":"'2. Conservation Measures'!FA127","v":0},{"$f":"'2. Conservation Measures'!FB127","v":0},{"$f":"'2. Conservation Measures'!FC127","v":0},{"$f":"'2. Conservation Measures'!FD127","v":0},{"$f":"'2. Conservation Measures'!FE127","v":0},{"$f":"'2. Conservation Measures'!FF127","v":0},{"$f":"'2. Conservation Measures'!FG127","v":0},{"$f":"'2. Conservation Measures'!FH127","v":0},{"$f":"'2. Conservation Measures'!FI127","v":0},{"$f":"'2. Conservation Measures'!FJ127","v":0},{"$f":"'2. Conservation Measures'!FK127","v":0},{"$f":"'2. Conservation Measures'!FL127","v":0},{"$f":"'2. Conservation Measures'!FM127","v":0},{"$f":"'2. Conservation Measures'!FN127","v":0},{"$f":"'2. Conservation Measures'!FO127","v":0},{"$f":"'2. Conservation Measures'!FP127","v":0},{"$f":"'2. Conservation Measures'!FQ127","v":0},{"$f":"'2. Conservation Measures'!FR127","v":0},{"$f":"'2. Conservation Measures'!FS127","v":0},{"$f":"'2. Conservation Measures'!FT127","v":0},{"$f":"'2. Conservation Measures'!FU127","v":0},{"$f":"'2. Conservation Measures'!FV127","v":0},{"$f":"'2. Conservation Measures'!FW127","v":0},{"$f":"'2. Conservation Measures'!FX127","v":0},{"$f":"'2. Conservation Measures'!FY127","v":0},{"$f":"'2. Conservation Measures'!FZ127","v":0},{"$f":"'2. Conservation Measures'!GA127","v":0},{"$f":"'2. Conservation Measures'!GB127","v":0},{"$f":"'2. Conservation Measures'!GC127","v":0},{"$f":"'2. Conservation Measures'!GD127","v":0},{"$f":"'2. Conservation Measures'!GE127","v":0},{"$f":"'2. Conservation Measures'!GF127","v":0},{"$f":"'2. Conservation Measures'!GG127","v":0},{"$f":"'2. Conservation Measures'!GH127","v":0},{"$f":"'2. Conservation Measures'!GI127","v":0},{"$f":"'2. Conservation Measures'!GJ127","v":0},{"$f":"'2. Conservation Measures'!GK127","v":0},{"$f":"'2. Conservation Measures'!GL127","v":0},{"$f":"'2. Conservation Measures'!GM127","v":0},{"$f":"'2. Conservation Measures'!GN127","v":0},null,{"$f":"'2. Conservation Measures'!GP127","v":0},{"$f":"'2. Conservation Measures'!GQ127","v":0},{"$f":"'2. Conservation Measures'!GR127","v":0},{"$f":"'2. Conservation Measures'!GS127","v":0},{"$f":"'2. Conservation Measures'!GT127","v":0},{"$f":"'2. Conservation Measures'!GU127","v":0},{"$f":"'2. Conservation Measures'!GV127","v":0},{"$f":"'2. Conservation Measures'!GW127","v":0},{"$f":"'2. Conservation Measures'!GX127","v":0},{"$f":"'2. Conservation Measures'!GY127","v":0},{"$f":"'2. Conservation Measures'!GZ127","v":0},{"$f":"'2. Conservation Measures'!HA127","v":0},{"$f":"'2. Conservation Measures'!HB127","v":0},{"$f":"'2. Conservation Measures'!HC127","v":0},{"$f":"'2. Conservation Measures'!HD127","v":0},{"$f":"'2. Conservation Measures'!HE127","v":0},{"$f":"'2. Conservation Measures'!HF127","v":0},{"$f":"'2. Conservation Measures'!HG127","v":0},{"$f":"'2. Conservation Measures'!HH127","v":0},{"$f":"'2. Conservation Measures'!HI127","v":0},{"$f":"'2. Conservation Measures'!HJ127","v":0},{"$f":"'2. Conservation Measures'!HK127","v":0},{"$f":"'2. Conservation Measures'!HL127","v":0},{"$f":"'2. Conservation Measures'!HM127","v":0},{"$f":"'2. Conservation Measures'!HN127","v":0},{"$f":"'2. Conservation Measures'!HO127","v":0},{"$f":"'2. Conservation Measures'!HP127","v":0},{"$f":"'2. Conservation Measures'!HQ127","v":0},{"$f":"'2. Conservation Measures'!HR127","v":0},{"$f":"'2. Conservation Measures'!HS127","v":0},{"$f":"'2. Conservation Measures'!HT127","v":0},{"$f":"'2. Conservation Measures'!HU127","v":0},{"$f":"'2. Conservation Measures'!HV127","v":0},{"$f":"'2. Conservation Measures'!HW127","v":0},{"$f":"'2. Conservation Measures'!HX127","v":0},{"$f":"'2. Conservation Measures'!HY127","v":0},{"$f":"'2. Conservation Measures'!HZ127","v":0},{"$f":"'2. Conservation Measures'!IA127","v":0},{"$f":"'2. Conservation Measures'!IB127","v":0},{"$f":"'2. Conservation Measures'!IC127","v":0},{"$f":"'2. Conservation Measures'!ID127","v":0},{"$f":"'2. Conservation Measures'!IE127","v":0},{"$f":"'2. Conservation Measures'!IF127","v":0},{"$f":"'2. Conservation Measures'!IG127","v":0},{"$f":"'2. Conservation Measures'!IH127","v":0},{"$f":"'2. Conservation Measures'!II127","v":0},{"$f":"'2. Conservation Measures'!IJ127","v":0},{"$f":"'2. Conservation Measures'!IK127","v":0},{"$f":"'2. Conservation Measures'!IL127","v":0},{"$f":"'2. Conservation Measures'!IM127","v":0},{"$f":"'2. Conservation Measures'!IN127","v":0},null,{"$f":"'2. Conservation Measures'!IP127","v":0},{"$f":"'2. Conservation Measures'!IQ127","v":0},{"$f":"'2. Conservation Measures'!IR127","v":0},{"$f":"'2. Conservation Measures'!IS127","v":0},{"$f":"'2. Conservation Measures'!IT127","v":0},{"$f":"'2. Conservation Measures'!IU127","v":0},{"$f":"'2. Conservation Measures'!IV127","v":0},{"$f":"'2. Conservation Measures'!IW127","v":0},{"$f":"'2. Conservation Measures'!IX127","v":0},{"$f":"'2. Conservation Measures'!IY127","v":0},{"$f":"'2. Conservation Measures'!IZ127","v":0},{"$f":"'2. Conservation Measures'!JA127","v":0},{"$f":"'2. Conservation Measures'!JB127","v":0},{"$f":"'2. Conservation Measures'!JC127","v":0},{"$f":"'2. Conservation Measures'!JD127","v":0},{"$f":"'2. Conservation Measures'!JE127","v":0},{"$f":"'2. Conservation Measures'!JF127","v":0},{"$f":"'2. Conservation Measures'!JG127","v":0},{"$f":"'2. Conservation Measures'!JH127","v":0},{"$f":"'2. Conservation Measures'!JI127","v":0},{"$f":"'2. Conservation Measures'!JJ127","v":0},{"$f":"'2. Conservation Measures'!JK127","v":0},{"$f":"'2. Conservation Measures'!JL127","v":0},{"$f":"'2. Conservation Measures'!JM127","v":0},{"$f":"'2. Conservation Measures'!JN127","v":0},{"$f":"'2. Conservation Measures'!JO127","v":0},{"$f":"'2. Conservation Measures'!JP127","v":0},{"$f":"'2. Conservation Measures'!JQ127","v":0},{"$f":"'2. Conservation Measures'!JR127","v":0},{"$f":"'2. Conservation Measures'!JS127","v":0},{"$f":"'2. Conservation Measures'!JT127","v":0},{"$f":"'2. Conservation Measures'!JU127","v":0},{"$f":"'2. Conservation Measures'!JV127","v":0},{"$f":"'2. Conservation Measures'!JW127","v":0},{"$f":"'2. Conservation Measures'!JX127","v":0},{"$f":"'2. Conservation Measures'!JY127","v":0},{"$f":"'2. Conservation Measures'!JZ127","v":0},{"$f":"'2. Conservation Measures'!KA127","v":0},{"$f":"'2. Conservation Measures'!KB127","v":0},{"$f":"'2. Conservation Measures'!KC127","v":0},{"$f":"'2. Conservation Measures'!KD127","v":0},{"$f":"'2. Conservation Measures'!KE127","v":0},{"$f":"'2. Conservation Measures'!KF127","v":0},{"$f":"'2. Conservation Measures'!KG127","v":0},{"$f":"'2. Conservation Measures'!KH127","v":0},{"$f":"'2. Conservation Measures'!KI127","v":0},{"$f":"'2. Conservation Measures'!KJ127","v":0},{"$f":"'2. Conservation Measures'!KK127","v":0},{"$f":"'2. Conservation Measures'!KL127","v":0},{"$f":"'2. Conservation Measures'!KM127","v":0},{"$f":"'2. Conservation Measures'!KN127","v":0}]
[null,"Subtotal",null,null,null,{"$f":"'2. Conservation Measures'!AA158","v":{"$error":"#VALUE!"}},null,null,null,null,null,null,null,null,null,null,null,null,null,null,null,null,null,null,null,null,null,null,null,null,null,null,null,null,null,null,null,null,null,null,null,null,null,null,null,null,null,null,null,null,null,null,null,null,null,null,null,null,null,{"$f":"SUM(BH85:BH116)","v":{"$error":"#VALUE!"}},{"$f":"SUM(BI85:BI116)","v":{"$error":"#VALUE!"}},{"$f":"SUM(BJ85:BJ116)","v":{"$error":"#VALUE!"}},{"$f":"SUM(BK85:BK116)","v":{"$error":"#VALUE!"}},{"$f":"SUM(BL85:BL116)","v":{"$error":"#VALUE!"}},{"$f":"SUM(BM85:BM116)","v":{"$error":"#VALUE!"}},{"$f":"SUM(BN85:BN116)","v":{"$error":"#VALUE!"}},{"$f":"SUM(BO85:BO116)","v":{"$error":"#VALUE!"}},{"$f":"SUM(BP85:BP116)","v":{"$error":"#VALUE!"}},{"$f":"SUM(BQ85:BQ116)","v":{"$error":"#VALUE!"}},{"$f":"SUM(BR85:BR116)","v":{"$error":"#VALUE!"}},{"$f":"SUM(BS85:BS116)","v":{"$error":"#VALUE!"}},{"$f":"SUM(BT85:BT116)","v":{"$error":"#VALUE!"}},{"$f":"SUM(BU85:BU116)","v":{"$error":"#VALUE!"}},{"$f":"SUM(BV85:BV116)","v":{"$error":"#VALUE!"}},{"$f":"SUM(BW85:BW116)","v":{"$error":"#VALUE!"}},{"$f":"SUM(BX85:BX116)","v":{"$error":"#VALUE!"}},{"$f":"SUM(BY85:BY116)","v":{"$error":"#VALUE!"}},{"$f":"SUM(BZ85:BZ116)","v":{"$error":"#VALUE!"}},{"$f":"SUM(CA85:CA116)","v":{"$error":"#VALUE!"}},{"$f":"SUM(CB85:CB116)","v":{"$error":"#VALUE!"}},{"$f":"SUM(CC85:CC116)","v":{"$error":"#VALUE!"}},{"$f":"SUM(CD85:CD116)","v":{"$error":"#VALUE!"}},{"$f":"SUM(CE85:CE116)","v":{"$error":"#VALUE!"}},{"$f":"SUM(CF85:CF116)","v":{"$error":"#VALUE!"}},{"$f":"SUM(CG85:CG116)","v":{"$error":"#VALUE!"}},{"$f":"SUM(CH85:CH116)","v":{"$error":"#VALUE!"}},{"$f":"SUM(CI85:CI116)","v":{"$error":"#VALUE!"}},{"$f":"SUM(CJ85:CJ116)","v":{"$error":"#VALUE!"}},{"$f":"SUM(CK85:CK116)","v":{"$error":"#VALUE!"}},{"$f":"SUM(CL85:CL116)","v":{"$error":"#VALUE!"}},{"$f":"SUM(CM85:CM116)","v":{"$error":"#VALUE!"}},{"$f":"SUM(CN85:CN116)","v":{"$error":"#VALUE!"}},{"$f":"SUM(CO85:CO116)","v":{"$error":"#VALUE!"}},{"$f":"SUM(CP85:CP116)","v":{"$error":"#VALUE!"}},{"$f":"SUM(CQ85:CQ116)","v":{"$error":"#VALUE!"}},{"$f":"SUM(CR85:CR116)","v":{"$error":"#VALUE!"}},{"$f":"SUM(CS85:CS116)","v":{"$error":"#VALUE!"}},{"$f":"SUM(CT85:CT116)","v":{"$error":"#VALUE!"}},{"$f":"SUM(CU85:CU116)","v":{"$error":"#VALUE!"}},{"$f":"SUM(CV85:CV116)","v":{"$error":"#VALUE!"}},{"$f":"SUM(CW85:CW116)","v":{"$error":"#VALUE!"}},{"$f":"SUM(CX85:CX116)","v":{"$error":"#VALUE!"}},{"$f":"SUM(CY85:CY116)","v":{"$error":"#VALUE!"}},{"$f":"SUM(CZ85:CZ116)","v":{"$error":"#VALUE!"}},{"$f":"SUM(DA85:DA116)","v":{"$error":"#VALUE!"}},{"$f":"SUM(DB85:DB116)","v":{"$error":"#VALUE!"}},{"$f":"SUM(DC85:DC116)","v":{"$error":"#VALUE!"}},{"$f":"SUM(DD85:DD116)","v":{"$error":"#VALUE!"}},{"$f":"SUM(DE85:DE116)","v":{"$error":"#VALUE!"}},{"$f":"SUM(DF85:DF116)","v":{"$error":"#VALUE!"}},null,{"$f":"SUM(DH85:DH116)","v":{"$error":"#N/A"}},{"$f":"SUM(DI85:DI116)","v":{"$error":"#N/A"}},{"$error":"#N/A"},{"$error":"#N/A"},{"$error":"#N/A"},{"$error":"#N/A"},{"$error":"#N/A"},{"$error":"#N/A"},{"$error":"#N/A"},{"$error":"#N/A"},{"$error":"#N/A"},{"$error":"#N/A"},{"$error":"#N/A"},{"$error":"#N/A"},{"$error":"#N/A"},{"$error":"#N/A"},{"$error":"#N/A"},{"$error":"#N/A"},{"$error":"#N/A"},{"$error":"#N/A"},{"$error":"#N/A"},{"$error":"#N/A"},{"$error":"#N/A"},{"$error":"#N/A"},{"$error":"#N/A"},{"$error":"#N/A"},{"$error":"#N/A"},{"$error":"#N/A"},{"$error":"#N/A"},{"$error":"#N/A"},{"$error":"#N/A"},{"$error":"#N/A"},{"$error":"#N/A"},{"$error":"#N/A"},{"$error":"#N/A"},{"$error":"#N/A"},{"$error":"#N/A"},{"$error":"#N/A"},{"$error":"#N/A"},{"$error":"#N/A"},{"$error":"#N/A"},{"$error":"#N/A"},{"$error":"#N/A"},{"$error":"#N/A"},{"$error":"#N/A"},{"$error":"#N/A"},{"$error":"#N/A"},{"$error":"#N/A"},{"$error":"#N/A"},{"$error":"#N/A"},{"$error":"#N/A"},null,{"$f":"SUM(FH85:FH116)","v":{"$error":"#N/A"}},{"$f":"SUM(FI85:FI116)","v":{"$error":"#N/A"}},{"$f":"SUM(FJ85:FJ116)","v":{"$error":"#N/A"}},{"$f":"SUM(FK85:FK116)","v":{"$error":"#N/A"}},{"$f":"SUM(FL85:FL116)","v":{"$error":"#N/A"}},{"$f":"SUM(FM85:FM116)","v":{"$error":"#N/A"}},{"$f":"SUM(FN85:FN116)","v":{"$error":"#N/A"}},{"$f":"SUM(FO85:FO116)","v":{"$error":"#N/A"}},{"$f":"SUM(FP85:FP116)","v":{"$error":"#N/A"}},{"$f":"SUM(FQ85:FQ116)","v":{"$error":"#N/A"}},{"$f":"SUM(FR85:FR116)","v":{"$error":"#N/A"}},{"$f":"SUM(FS85:FS116)","v":{"$error":"#N/A"}},{"$f":"SUM(FT85:FT116)","v":{"$error":"#N/A"}},{"$f":"SUM(FU85:FU116)","v":{"$error":"#N/A"}},{"$f":"SUM(FV85:FV116)","v":{"$error":"#N/A"}},{"$f":"SUM(FW85:FW116)","v":{"$error":"#N/A"}},{"$f":"SUM(FX85:FX116)","v":{"$error":"#N/A"}},{"$f":"SUM(FY85:FY116)","v":{"$error":"#N/A"}},{"$f":"SUM(FZ85:FZ116)","v":{"$error":"#N/A"}},{"$f":"SUM(GA85:GA116)","v":{"$error":"#N/A"}},{"$f":"SUM(GB85:GB116)","v":{"$error":"#N/A"}},{"$f":"SUM(GC85:GC116)","v":{"$error":"#N/A"}},{"$f":"SUM(GD85:GD116)","v":{"$error":"#N/A"}},{"$f":"SUM(GE85:GE116)","v":{"$error":"#N/A"}},{"$f":"SUM(GF85:GF116)","v":{"$error":"#N/A"}},{"$f":"SUM(GG85:GG116)","v":{"$error":"#N/A"}},{"$f":"SUM(GH85:GH116)","v":{"$error":"#N/A"}},{"$f":"SUM(GI85:GI116)","v":{"$error":"#N/A"}},{"$f":"SUM(GJ85:GJ116)","v":{"$error":"#N/A"}},{"$f":"SUM(GK85:GK116)","v":{"$error":"#N/A"}},{"$f":"SUM(GL85:GL116)","v":{"$error":"#N/A"}},{"$f":"SUM(GM85:GM116)","v":{"$error":"#N/A"}},{"$f":"SUM(GN85:GN116)","v":{"$error":"#N/A"}},{"$f":"SUM(GO85:GO116)","v":{"$error":"#N/A"}},{"$f":"SUM(GP85:GP116)","v":{"$error":"#N/A"}},{"$f":"SUM(GQ85:GQ116)","v":{"$error":"#N/A"}},{"$f":"SUM(GR85:GR116)","v":{"$error":"#N/A"}},{"$f":"SUM(GS85:GS116)","v":{"$error":"#N/A"}},{"$f":"SUM(GT85:GT116)","v":{"$error":"#N/A"}},{"$f":"SUM(GU85:GU116)","v":{"$error":"#N/A"}},{"$f":"SUM(GV85:GV116)","v":{"$error":"#N/A"}},{"$f":"SUM(GW85:GW116)","v":{"$error":"#N/A"}},{"$f":"SUM(GX85:GX116)","v":{"$error":"#N/A"}},{"$f":"SUM(GY85:GY116)","v":{"$error":"#N/A"}},{"$f":"SUM(GZ85:GZ116)","v":{"$error":"#N/A"}},{"$f":"SUM(HA85:HA116)","v":{"$error":"#N/A"}},{"$f":"SUM(HB85:HB116)","v":{"$error":"#N/A"}},{"$f":"SUM(HC85:HC116)","v":{"$error":"#N/A"}},{"$f":"SUM(HD85:HD116)","v":{"$error":"#N/A"}},{"$f":"SUM(HE85:HE116)","v":{"$error":"#N/A"}},{"$f":"SUM(HF85:HF116)","v":{"$error":"#N/A"}},null,{"$f":"SUM(HH85:HH116)","v":{"$error":"#N/A"}},{"$f":"SUM(HI85:HI116)","v":{"$error":"#N/A"}},{"$f":"SUM(HJ85:HJ116)","v":{"$error":"#N/A"}},{"$f":"SUM(HK85:HK116)","v":{"$error":"#N/A"}},{"$f":"SUM(HL85:HL116)","v":{"$error":"#N/A"}},{"$f":"SUM(HM85:HM116)","v":{"$error":"#N/A"}},{"$f":"SUM(HN85:HN116)","v":{"$error":"#N/A"}},{"$f":"SUM(HO85:HO116)","v":{"$error":"#N/A"}},{"$f":"SUM(HP85:HP116)","v":{"$error":"#N/A"}},{"$f":"SUM(HQ85:HQ116)","v":{"$error":"#N/A"}},{"$f":"SUM(HR85:HR116)","v":{"$error":"#N/A"}},{"$f":"SUM(HS85:HS116)","v":{"$error":"#N/A"}},{"$f":"SUM(HT85:HT116)","v":{"$error":"#N/A"}},{"$f":"SUM(HU85:HU116)","v":{"$error":"#N/A"}},{"$f":"SUM(HV85:HV116)","v":{"$error":"#N/A"}},{"$f":"SUM(HW85:HW116)","v":{"$error":"#N/A"}},{"$f":"SUM(HX85:HX116)","v":{"$error":"#N/A"}},{"$f":"SUM(HY85:HY116)","v":{"$error":"#N/A"}},{"$f":"SUM(HZ85:HZ116)","v":{"$error":"#N/A"}},{"$f":"SUM(IA85:IA116)","v":{"$error":"#N/A"}},{"$f":"SUM(IB85:IB116)","v":{"$error":"#N/A"}},{"$f":"SUM(IC85:IC116)","v":{"$error":"#N/A"}},{"$f":"SUM(ID85:ID116)","v":{"$error":"#N/A"}},{"$f":"SUM(IE85:IE116)","v":{"$error":"#N/A"}},{"$f":"SUM(IF85:IF116)","v":{"$error":"#N/A"}},{"$f":"SUM(IG85:IG116)","v":{"$error":"#N/A"}},{"$f":"SUM(IH85:IH116)","v":{"$error":"#N/A"}},{"$f":"SUM(II85:II116)","v":{"$error":"#N/A"}},{"$f":"SUM(IJ85:IJ116)","v":{"$error":"#N/A"}},{"$f":"SUM(IK85:IK116)","v":{"$error":"#N/A"}},{"$f":"SUM(IL85:IL116)","v":{"$error":"#N/A"}},{"$f":"SUM(IM85:IM116)","v":{"$error":"#N/A"}},{"$f":"SUM(IN85:IN116)","v":{"$error":"#N/A"}},{"$f":"SUM(IO85:IO116)","v":{"$error":"#N/A"}},{"$f":"SUM(IP85:IP116)","v":{"$error":"#N/A"}},{"$f":"SUM(IQ85:IQ116)","v":{"$error":"#N/A"}},{"$f":"SUM(IR85:IR116)","v":{"$error":"#N/A"}},{"$f":"SUM(IS85:IS116)","v":{"$error":"#N/A"}},{"$f":"SUM(IT85:IT116)","v":{"$error":"#N/A"}},{"$f":"SUM(IU85:IU116)","v":{"$error":"#N/A"}},{"$f":"SUM(IV85:IV116)","v":{"$error":"#N/A"}},{"$f":"SUM(IW85:IW116)","v":{"$error":"#N/A"}},{"$f":"SUM(IX85:IX116)","v":{"$error":"#N/A"}},{"$f":"SUM(IY85:IY116)","v":{"$error":"#N/A"}},{"$f":"SUM(IZ85:IZ116)","v":{"$error":"#N/A"}},{"$f":"SUM(JA85:JA116)","v":{"$error":"#N/A"}},{"$f":"SUM(JB85:JB116)","v":{"$error":"#N/A"}},{"$f":"SUM(JC85:JC116)","v":{"$error":"#N/A"}},{"$f":"SUM(JD85:JD116)","v":{"$error":"#N/A"}},{"$f":"SUM(JE85:JE116)","v":{"$error":"#N/A"}},{"$f":"SUM(JF85:JF116)","v":{"$error":"#N/A"}},null,{"$f":"SUM(JH85:JH116)","v":{"$error":"#VALUE!"}},{"$f":"SUM(JI85:JI116)","v":{"$error":"#VALUE!"}},{"$f":"SUM(JJ85:JJ116)","v":{"$error":"#VALUE!"}},{"$f":"SUM(JK85:JK116)","v":{"$error":"#VALUE!"}},{"$f":"SUM(JL85:JL116)","v":{"$error":"#VALUE!"}},{"$f":"SUM(JM85:JM116)","v":{"$error":"#VALUE!"}},{"$f":"SUM(JN85:JN116)","v":{"$error":"#VALUE!"}},{"$f":"SUM(JO85:JO116)","v":{"$error":"#VALUE!"}},{"$f":"SUM(JP85:JP116)","v":{"$error":"#VALUE!"}},{"$f":"SUM(JQ85:JQ116)","v":{"$error":"#VALUE!"}},{"$f":"SUM(JR85:JR116)","v":{"$error":"#VALUE!"}},{"$f":"SUM(JS85:JS116)","v":{"$error":"#VALUE!"}},{"$f":"SUM(JT85:JT116)","v":{"$error":"#VALUE!"}},{"$f":"SUM(JU85:JU116)","v":{"$error":"#VALUE!"}},{"$f":"SUM(JV85:JV116)","v":{"$error":"#VALUE!"}},{"$f":"SUM(JW85:JW116)","v":{"$error":"#VALUE!"}},{"$f":"SUM(JX85:JX116)","v":{"$error":"#VALUE!"}},{"$f":"SUM(JY85:JY116)","v":{"$error":"#VALUE!"}},{"$f":"SUM(JZ85:JZ116)","v":{"$error":"#VALUE!"}},{"$f":"SUM(KA85:KA116)","v":{"$error":"#VALUE!"}},{"$f":"SUM(KB85:KB116)","v":{"$error":"#VALUE!"}},{"$f":"SUM(KC85:KC116)","v":{"$error":"#VALUE!"}},{"$f":"SUM(KD85:KD116)","v":{"$error":"#VALUE!"}},{"$f":"SUM(KE85:KE116)","v":{"$error":"#VALUE!"}},{"$f":"SUM(KF85:KF116)","v":{"$error":"#VALUE!"}},{"$f":"SUM(KG85:KG116)","v":{"$error":"#VALUE!"}},{"$f":"SUM(KH85:KH116)","v":{"$error":"#VALUE!"}},{"$f":"SUM(KI85:KI116)","v":{"$error":"#VALUE!"}},{"$f":"SUM(KJ85:KJ116)","v":{"$error":"#VALUE!"}},{"$f":"SUM(KK85:KK116)","v":{"$error":"#VALUE!"}},{"$f":"SUM(KL85:KL116)","v":{"$error":"#VALUE!"}},{"$f":"SUM(KM85:KM116)","v":{"$error":"#VALUE!"}},{"$f":"SUM(KN85:KN116)","v":{"$error":"#VALUE!"}},{"$f":"SUM(KO85:KO116)","v":{"$error":"#VALUE!"}},{"$f":"SUM(KP85:KP116)","v":{"$error":"#VALUE!"}},{"$f":"SUM(KQ85:KQ116)","v":{"$error":"#VALUE!"}},{"$f":"SUM(KR85:KR116)","v":{"$error":"#VALUE!"}},{"$f":"SUM(KS85:KS116)","v":{"$error":"#VALUE!"}},{"$f":"SUM(KT85:KT116)","v":{"$error":"#VALUE!"}},{"$f":"SUM(KU85:KU116)","v":{"$error":"#VALUE!"}},{"$f":"SUM(KV85:KV116)","v":{"$error":"#VALUE!"}},{"$f":"SUM(KW85:KW116)","v":{"$error":"#VALUE!"}},{"$f":"SUM(KX85:KX116)","v":{"$error":"#VALUE!"}},{"$f":"SUM(KY85:KY116)","v":{"$error":"#VALUE!"}},{"$f":"SUM(KZ85:KZ116)","v":{"$error":"#VALUE!"}},{"$f":"SUM(LA85:LA116)","v":{"$error":"#VALUE!"}},{"$f":"SUM(LB85:LB116)","v":{"$error":"#VALUE!"}},{"$f":"SUM(LC85:LC116)","v":{"$error":"#VALUE!"}},{"$f":"SUM(LD85:LD116)","v":{"$error":"#VALUE!"}},{"$f":"SUM(LE85:LE116)","v":{"$error":"#VALUE!"}},{"$f":"SUM(LF85:LF116)","v":{"$error":"#VALUE!"}}]
[]
[null,{"$f":"'2. Conservation Measures'!B129","v":"Utility & General Measures"}]
[null,{"$f":"'2. Conservation Measures'!B130","v":"USR-UTL-01"},{"$f":"'2. Conservation Measures'!C130","v":0},{"$f":"'2. Conservation Measures'!D130","v":"N"},null,{"$f":"'2. Conservation Measures'!AA130","v":0},null,{"$f":"'2. Conservation Measures'!AO130","v":0},{"$f":"'2. Conservation Measures'!AP130","v":0},{"$f":"'2. Conservation Measures'!AQ130","v":0},{"$f":"'2. Conservation Measures'!AR130","v":0},{"$f":"'2. Conservation Measures'!AS130","v":0},{"$f":"'2. Conservation Measures'!AT130","v":0},{"$f":"'2. Conservation Measures'!AU130","v":0},{"$f":"'2. Conservation Measures'!AV130","v":0},{"$f":"'2. Conservation Measures'!AW130","v":0},{"$f":"'2. Conservation Measures'!AX130","v":0},{"$f":"'2. Conservation Measures'!AY130","v":0},{"$f":"'2. Conservation Measures'!AZ130","v":0},{"$f":"'2. Conservation Measures'!BA130","v":0},{"$f":"'2. Conservation Measures'!BB130","v":0},{"$f":"'2. Conservation Measures'!BC130","v":0},{"$f":"'2. Conservation Measures'!BD130","v":0},{"$f":"'2. Conservation Measures'!BE130","v":0},{"$f":"'2. Conservation Measures'!BF130","v":0},{"$f":"'2. Conservation Measures'!BG130","v":0},{"$f":"'2. Conservation Measures'!BH130","v":0},{"$f":"'2. Conservation Measures'!BI130","v":0},{"$f":"'2. Conservation Measures'!BJ130","v":0},{"$f":"'2. Conservation Measures'!BK130","v":0},{"$f":"'2. Conservation Measures'!BL130","v":0},{"$f":"'2. Conservation Measures'!BM130","v":0},{"$f":"'2. Conservation Measures'!BN130","v":0},{"$f":"'2. Conservation Measures'!BO130","v":0},{"$f":"'2. Conservation Measures'!BP130","v":0},{"$f":"'2. Conservation Measures'!BQ130","v":0},{"$f":"'2. Conservation Measures'!BR130","v":0},{"$f":"'2. Conservation Measures'!BS130","v":0},{"$f":"'2. Conservation Measures'!BT130","v":0},{"$f":"'2. Conservation Measures'!BU130","v":0},{"$f":"'2. Conservation Measures'!BV130","v":0},{"$f":"'2. Conservation Measures'!BW130","v":0},{"$f":"'2. Conservation Measures'!BX130","v":0},{"$f":"'2. Conservation Measures'!BY130","v":0},{"$f":"'2. Conservation Measures'!BZ130","v":0},{"$f":"'2. Conservation Measures'!CA130","v":0},{"$f":"'2. Conservation Measures'!CB130","v":0},{"$f":"'2. Conservation Measures'!CC130","v":0},{"$f":"'2. Conservation Measures'!CD130","v":0},{"$f":"'2. Conservation Measures'!CE130","v":0},{"$f":"'2. Conservation Measures'!CF130","v":0},{"$f":"'2. Conservation Measures'!CG130","v":0},{"$f":"'2. Conservation Measures'!CH130","v":0},{"$f":"'2. Conservation Measures'!CI130","v":0},{"$f":"'2. Conservation Measures'!CJ130","v":0},{"$f":"'2. Conservation Measures'!CK130","v":0},{"$f":"'2. Conservation Measures'!CL130","v":0},{"$f":"'2. Conservation Measures'!CM130","v":0},null,{"$f":"'2. Conservation Measures'!CO130","v":0},{"$f":"'2. Conservation Measures'!CP130","v":0},{"$f":"'2. Conservation Measures'!CQ130","v":0},{"$f":"'2. Conservation Measures'!CR130","v":0},{"$f":"'2. Conservation Measures'!CS130","v":0},{"$f":"'2. Conservation Measures'!CT130","v":0},{"$f":"'2. Conservation Measures'!CU130","v":0},{"$f":"'2. Conservation Measures'!CV130","v":0},{"$f":"'2. Conservation Measures'!CW130","v":0},{"$f":"'2. Conservation Measures'!CX130","v":0},{"$f":"'2. Conservation Measures'!CY130","v":0},{"$f":"'2. Conservation Measures'!CZ130","v":0},{"$f":"'2. Conservation Measures'!DA130","v":0},{"$f":"'2. Conservation Measures'!DB130","v":0},{"$f":"'2. Conservation Measures'!DC130","v":0},{"$f":"'2. Conservation Measures'!DD130","v":0},{"$f":"'2. Conservation Measures'!DE130","v":0},{"$f":"'2. Conservation Measures'!DF130","v":0},{"$f":"'2. Conservation Measures'!DG130","v":0},{"$f":"'2. Conservation Measures'!DH130","v":0},{"$f":"'2. Conservation Measures'!DI130","v":0},{"$f":"'2. Conservation Measures'!DJ130","v":0},{"$f":"'2. Conservation Measures'!DK130","v":0},{"$f":"'2. Conservation Measures'!DL130","v":0},{"$f":"'2. Conservation Measures'!DM130","v":0},{"$f":"'2. Conservation Measures'!DN130","v":0},{"$f":"'2. Conservation Measures'!DO130","v":0},{"$f":"'2. Conservation Measures'!DP130","v":0},{"$f":"'2. Conservation Measures'!DQ130","v":0},{"$f":"'2. Conservation Measures'!DR130","v":0},{"$f":"'2. Conservation Measures'!DS130","v":0},{"$f":"'2. Conservation Measures'!DT130","v":0},{"$f":"'2. Conservation Measures'!DU130","v":0},{"$f":"'2. Conservation Measures'!DV130","v":0},{"$f":"'2. Conservation Measures'!DW130","v":0},{"$f":"'2. Conservation Measures'!DX130","v":0},{"$f":"'2. Conservation Measures'!DY130","v":0},{"$f":"'2. Conservation Measures'!DZ130","v":0},{"$f":"'2. Conservation Measures'!EA130","v":0},{"$f":"'2. Conservation Measures'!EB130","v":0},{"$f":"'2. Conservation Measures'!EC130","v":0},{"$f":"'2. Conservation Measures'!ED130","v":0},{"$f":"'2. Conservation Measures'!EE130","v":0},{"$f":"'2. Conservation Measures'!EF130","v":0},{"$f":"'2. Conservation Measures'!EG130","v":0},{"$f":"'2. Conservation Measures'!EH130","v":0},{"$f":"'2. Conservation Measures'!EI130","v":0},{"$f":"'2. Conservation Measures'!EJ130","v":0},{"$f":"'2. Conservation Measures'!EK130","v":0},{"$f":"'2. Conservation Measures'!EL130","v":0},{"$f":"'2. Conservation Measures'!EM130","v":0},null,{"$f":"'2. Conservation Measures'!KP130","v":0},{"$f":"'2. Conservation Measures'!KQ130","v":0},{"$f":"'2. Conservation Measures'!KR130","v":0},{"$f":"'2. Conservation Measures'!KS130","v":0},{"$f":"'2. Conservation Measures'!KT130","v":0},{"$f":"'2. Conservation Measures'!KU130","v":0},{"$f":"'2. Conservation Measures'!KV130","v":0},{"$f":"'2. Conservation Measures'!KW130","v":0},{"$f":"'2. Conservation Measures'!KX130","v":0},{"$f":"'2. Conservation Measures'!KY130","v":0},{"$f":"'2. Conservation Measures'!KZ130","v":0},{"$f":"'2. Conservation Measures'!LA130","v":0},{"$f":"'2. Conservation Measures'!LB130","v":0},{"$f":"'2. Conservation Measures'!LC130","v":0},{"$f":"'2. Conservation Measures'!LD130","v":0},{"$f":"'2. Conservation Measures'!LE130","v":0},{"$f":"'2. Conservation Measures'!LF130","v":0},{"$f":"'2. Conservation Measures'!LG130","v":0},{"$f":"'2. Conservation Measures'!LH130","v":0},{"$f":"'2. Conservation Measures'!LI130","v":0},{"$f":"'2. Conservation Measures'!LJ130","v":0},{"$f":"'2. Conservation Measures'!LK130","v":0},{"$f":"'2. Conservation Measures'!LL130","v":0},{"$f":"'2. Conservation Measures'!LM130","v":0},{"$f":"'2. Conservation Measures'!LN130","v":0},{"$f":"'2. Conservation Measures'!LO130","v":0},{"$f":"'2. Conservation Measures'!LP130","v":0},{"$f":"'2. Conservation Measures'!LQ130","v":0},{"$f":"'2. Conservation Measures'!LR130","v":0},{"$f":"'2. Conservation Measures'!LS130","v":0},{"$f":"'2. Conservation Measures'!LT130","v":0},{"$f":"'2. Conservation Measures'!LU130","v":0},{"$f":"'2. Conservation Measures'!LV130","v":0},{"$f":"'2. Conservation Measures'!LW130","v":0},{"$f":"'2. Conservation Measures'!LX130","v":0},{"$f":"'2. Conservation Measures'!LY130","v":0},{"$f":"'2. Conservation Measures'!LZ130","v":0},{"$f":"'2. Conservation Measures'!MA130","v":0},{"$f":"'2. Conservation Measures'!MB130","v":0},{"$f":"'2. Conservation Measures'!MC130","v":0},{"$f":"'2. Conservation Measures'!MD130","v":0},{"$f":"'2. Conservation Measures'!ME130","v":0},{"$f":"'2. Conservation Measures'!MF130","v":0},{"$f":"'2. Conservation Measures'!MG130","v":0},{"$f":"'2. Conservation Measures'!MH130","v":0},{"$f":"'2. Conservation Measures'!MI130","v":0},{"$f":"'2. Conservation Measures'!MJ130","v":0},{"$f":"'2. Conservation Measures'!MK130","v":0},{"$f":"'2. Conservation Measures'!ML130","v":0},{"$f":"'2. Conservation Measures'!MM130","v":0},{"$f":"'2. Conservation Measures'!MN130","v":0},null,{"$f":"'2. Conservation Measures'!EP130","v":0},{"$f":"'2. Conservation Measures'!EQ130","v":0},{"$f":"'2. Conservation Measures'!ER130","v":0},{"$f":"'2. Conservation Measures'!ES130","v":0},{"$f":"'2. Conservation Measures'!ET130","v":0},{"$f":"'2. Conservation Measures'!EU130","v":0},{"$f":"'2. Conservation Measures'!EV130","v":0},{"$f":"'2. Conservation Measures'!EW130","v":0},{"$f":"'2. Conservation Measures'!EX130","v":0},{"$f":"'2. Conservation Measures'!EY130","v":0},{"$f":"'2. Conservation Measures'!EZ130","v":0},{"$f":"'2. Conservation Measures'!FA130","v":0},{"$f":"'2. Conservation Measures'!FB130","v":0},{"$f":"'2. Conservation Measures'!FC130","v":0},{"$f":"'2. Conservation Measures'!FD130","v":0},{"$f":"'2. Conservation Measures'!FE130","v":0},{"$f":"'2. Conservation Measures'!FF130","v":0},{"$f":"'2. Conservation Measures'!FG130","v":0},{"$f":"'2. Conservation Measures'!FH130","v":0},{"$f":"'2. Conservation Measures'!FI130","v":0},{"$f":"'2. Conservation Measures'!FJ130","v":0},{"$f":"'2. Conservation Measures'!FK130","v":0},{"$f":"'2. Conservation Measures'!FL130","v":0},{"$f":"'2. Conservation Measures'!FM130","v":0},{"$f":"'2. Conservation Measures'!FN130","v":0},{"$f":"'2. Conservation Measures'!FO130","v":0},{"$f":"'2. Conservation Measures'!FP130","v":0},{"$f":"'2. Conservation Measures'!FQ130","v":0},{"$f":"'2. Conservation Measures'!FR130","v":0},{"$f":"'2. Conservation Measures'!FS130","v":0},{"$f":"'2. Conservation Measures'!FT130","v":0},{"$f":"'2. Conservation Measures'!FU130","v":0},{"$f":"'2. Conservation Measures'!FV130","v":0},{"$f":"'2. Conservation Measures'!FW130","v":0},{"$f":"'2. Conservation Measures'!FX130","v":0},{"$f":"'2. Conservation Measures'!FY130","v":0},{"$f":"'2. Conservation Measures'!FZ130","v":0},{"$f":"'2. Conservation Measures'!GA130","v":0},{"$f":"'2. Conservation Measures'!GB130","v":0},{"$f":"'2. Conservation Measures'!GC130","v":0},{"$f":"'2. Conservation Measures'!GD130","v":0},{"$f":"'2. Conservation Measures'!GE130","v":0},{"$f":"'2. Conservation Measures'!GF130","v":0},{"$f":"'2. Conservation Measures'!GG130","v":0},{"$f":"'2. Conservation Measures'!GH130","v":0},{"$f":"'2. Conservation Measures'!GI130","v":0},{"$f":"'2. Conservation Measures'!GJ130","v":0},{"$f":"'2. Conservation Measures'!GK130","v":0},{"$f":"'2. Conservation Measures'!GL130","v":0},{"$f":"'2. Conservation Measures'!GM130","v":0},{"$f":"'2. Conservation Measures'!GN130","v":0},null,{"$f":"'2. Conservation Measures'!GP130","v":0},{"$f":"'2. Conservation Measures'!GQ130","v":0},{"$f":"'2. Conservation Measures'!GR130","v":0},{"$f":"'2. Conservation Measures'!GS130","v":0},{"$f":"'2. Conservation Measures'!GT130","v":0},{"$f":"'2. Conservation Measures'!GU130","v":0},{"$f":"'2. Conservation Measures'!GV130","v":0},{"$f":"'2. Conservation Measures'!GW130","v":0},{"$f":"'2. Conservation Measures'!GX130","v":0},{"$f":"'2. Conservation Measures'!GY130","v":0},{"$f":"'2. Conservation Measures'!GZ130","v":0},{"$f":"'2. Conservation Measures'!HA130","v":0},{"$f":"'2. Conservation Measures'!HB130","v":0},{"$f":"'2. Conservation Measures'!HC130","v":0},{"$f":"'2. Conservation Measures'!HD130","v":0},{"$f":"'2. Conservation Measures'!HE130","v":0},{"$f":"'2. Conservation Measures'!HF130","v":0},{"$f":"'2. Conservation Measures'!HG130","v":0},{"$f":"'2. Conservation Measures'!HH130","v":0},{"$f":"'2. Conservation Measures'!HI130","v":0},{"$f":"'2. Conservation Measures'!HJ130","v":0},{"$f":"'2. Conservation Measures'!HK130","v":0},{"$f":"'2. Conservation Measures'!HL130","v":0},{"$f":"'2. Conservation Measures'!HM130","v":0},{"$f":"'2. Conservation Measures'!HN130","v":0},{"$f":"'2. Conservation Measures'!HO130","v":0},{"$f":"'2. Conservation Measures'!HP130","v":0},{"$f":"'2. Conservation Measures'!HQ130","v":0},{"$f":"'2. Conservation Measures'!HR130","v":0},{"$f":"'2. Conservation Measures'!HS130","v":0},{"$f":"'2. Conservation Measures'!HT130","v":0},{"$f":"'2. Conservation Measures'!HU130","v":0},{"$f":"'2. Conservation Measures'!HV130","v":0},{"$f":"'2. Conservation Measures'!HW130","v":0},{"$f":"'2. Conservation Measures'!HX130","v":0},{"$f":"'2. Conservation Measures'!HY130","v":0},{"$f":"'2. Conservation Measures'!HZ130","v":0},{"$f":"'2. Conservation Measures'!IA130","v":0},{"$f":"'2. Conservation Measures'!IB130","v":0},{"$f":"'2. Conservation Measures'!IC130","v":0},{"$f":"'2. Conservation Measures'!ID130","v":0},{"$f":"'2. Conservation Measures'!IE130","v":0},{"$f":"'2. Conservation Measures'!IF130","v":0},{"$f":"'2. Conservation Measures'!IG130","v":0},{"$f":"'2. Conservation Measures'!IH130","v":0},{"$f":"'2. Conservation Measures'!II130","v":0},{"$f":"'2. Conservation Measures'!IJ130","v":0},{"$f":"'2. Conservation Measures'!IK130","v":0},{"$f":"'2. Conservation Measures'!IL130","v":0},{"$f":"'2. Conservation Measures'!IM130","v":0},{"$f":"'2. Conservation Measures'!IN130","v":0},null,{"$f":"'2. Conservation Measures'!IP130","v":0},{"$f":"'2. Conservation Measures'!IQ130","v":0},{"$f":"'2. Conservation Measures'!IR130","v":0},{"$f":"'2. Conservation Measures'!IS130","v":0},{"$f":"'2. Conservation Measures'!IT130","v":0},{"$f":"'2. Conservation Measures'!IU130","v":0},{"$f":"'2. Conservation Measures'!IV130","v":0},{"$f":"'2. Conservation Measures'!IW130","v":0},{"$f":"'2. Conservation Measures'!IX130","v":0},{"$f":"'2. Conservation Measures'!IY130","v":0},{"$f":"'2. Conservation Measures'!IZ130","v":0},{"$f":"'2. Conservation Measures'!JA130","v":0},{"$f":"'2. Conservation Measures'!JB130","v":0},{"$f":"'2. Conservation Measures'!JC130","v":0},{"$f":"'2. Conservation Measures'!JD130","v":0},{"$f":"'2. Conservation Measures'!JE130","v":0},{"$f":"'2. Conservation Measures'!JF130","v":0},{"$f":"'2. Conservation Measures'!JG130","v":0},{"$f":"'2. Conservation Measures'!JH130","v":0},{"$f":"'2. Conservation Measures'!JI130","v":0},{"$f":"'2. Conservation Measures'!JJ130","v":0},{"$f":"'2. Conservation Measures'!JK130","v":0},{"$f":"'2. Conservation Measures'!JL130","v":0},{"$f":"'2. Conservation Measures'!JM130","v":0},{"$f":"'2. Conservation Measures'!JN130","v":0},{"$f":"'2. Conservation Measures'!JO130","v":0},{"$f":"'2. Conservation Measures'!JP130","v":0},{"$f":"'2. Conservation Measures'!JQ130","v":0},{"$f":"'2. Conservation Measures'!JR130","v":0},{"$f":"'2. Conservation Measures'!JS130","v":0},{"$f":"'2. Conservation Measures'!JT130","v":0},{"$f":"'2. Conservation Measures'!JU130","v":0},{"$f":"'2. Conservation Measures'!JV130","v":0},{"$f":"'2. Conservation Measures'!JW130","v":0},{"$f":"'2. Conservation Measures'!JX130","v":0},{"$f":"'2. Conservation Measures'!JY130","v":0},{"$f":"'2. Conservation Measures'!JZ130","v":0},{"$f":"'2. Conservation Measures'!KA130","v":0},{"$f":"'2. Conservation Measures'!KB130","v":0},{"$f":"'2. Conservation Measures'!KC130","v":0},{"$f":"'2. Conservation Measures'!KD130","v":0},{"$f":"'2. Conservation Measures'!KE130","v":0},{"$f":"'2. Conservation Measures'!KF130","v":0},{"$f":"'2. Conservation Measures'!KG130","v":0},{"$f":"'2. Conservation Measures'!KH130","v":0},{"$f":"'2. Conservation Measures'!KI130","v":0},{"$f":"'2. Conservation Measures'!KJ130","v":0},{"$f":"'2. Conservation Measures'!KK130","v":0},{"$f":"'2. Conservation Measures'!KL130","v":0},{"$f":"'2. Conservation Measures'!KM130","v":0},{"$f":"'2. Conservation Measures'!KN130","v":0}]
[null,{"$f":"'2. Conservation Measures'!B131","v":"USR-UTL-02"},{"$f":"'2. Conservation Measures'!C131","v":0},{"$f":"'2. Conservation Measures'!D131","v":"N"},null,{"$f":"'2. Conservation Measures'!AA131","v":0},null,{"$f":"'2. Conservation Measures'!AO131","v":0},{"$f":"'2. Conservation Measures'!AP131","v":0},{"$f":"'2. Conservation Measures'!AQ131","v":0},{"$f":"'2. Conservation Measures'!AR131","v":0},{"$f":"'2. Conservation Measures'!AS131","v":0},{"$f":"'2. Conservation Measures'!AT131","v":0},{"$f":"'2. Conservation Measures'!AU131","v":0},{"$f":"'2. Conservation Measures'!AV131","v":0},{"$f":"'2. Conservation Measures'!AW131","v":0},{"$f":"'2. Conservation Measures'!AX131","v":0},{"$f":"'2. Conservation Measures'!AY131","v":0},{"$f":"'2. Conservation Measures'!AZ131","v":0},{"$f":"'2. Conservation Measures'!BA131","v":0},{"$f":"'2. Conservation Measures'!BB131","v":0},{"$f":"'2. Conservation Measures'!BC131","v":0},{"$f":"'2. Conservation Measures'!BD131","v":0},{"$f":"'2. Conservation Measures'!BE131","v":0},{"$f":"'2. Conservation Measures'!BF131","v":0},{"$f":"'2. Conservation Measures'!BG131","v":0},{"$f":"'2. Conservation Measures'!BH131","v":0},{"$f":"'2. Conservation Measures'!BI131","v":0},{"$f":"'2. Conservation Measures'!BJ131","v":0},{"$f":"'2. Conservation Measures'!BK131","v":0},{"$f":"'2. Conservation Measures'!BL131","v":0},{"$f":"'2. Conservation Measures'!BM131","v":0},{"$f":"'2. Conservation Measures'!BN131","v":0},{"$f":"'2. Conservation Measures'!BO131","v":0},{"$f":"'2. Conservation Measures'!BP131","v":0},{"$f":"'2. Conservation Measures'!BQ131","v":0},{"$f":"'2. Conservation Measures'!BR131","v":0},{"$f":"'2. Conservation Measures'!BS131","v":0},{"$f":"'2. Conservation Measures'!BT131","v":0},{"$f":"'2. Conservation Measures'!BU131","v":0},{"$f":"'2. Conservation Measures'!BV131","v":0},{"$f":"'2. Conservation Measures'!BW131","v":0},{"$f":"'2. Conservation Measures'!BX131","v":0},{"$f":"'2. Conservation Measures'!BY131","v":0},{"$f":"'2. Conservation Measures'!BZ131","v":0},{"$f":"'2. Conservation Measures'!CA131","v":0},{"$f":"'2. Conservation Measures'!CB131","v":0},{"$f":"'2. Conservation Measures'!CC131","v":0},{"$f":"'2. Conservation Measures'!CD131","v":0},{"$f":"'2. Conservation Measures'!CE131","v":0},{"$f":"'2. Conservation Measures'!CF131","v":0},{"$f":"'2. Conservation Measures'!CG131","v":0},{"$f":"'2. Conservation Measures'!CH131","v":0},{"$f":"'2. Conservation Measures'!CI131","v":0},{"$f":"'2. Conservation Measures'!CJ131","v":0},{"$f":"'2. Conservation Measures'!CK131","v":0},{"$f":"'2. Conservation Measures'!CL131","v":0},{"$f":"'2. Conservation Measures'!CM131","v":0},null,{"$f":"'2. Conservation Measures'!CO131","v":0},{"$f":"'2. Conservation Measures'!CP131","v":0},{"$f":"'2. Conservation Measures'!CQ131","v":0},{"$f":"'2. Conservation Measures'!CR131","v":0},{"$f":"'2. Conservation Measures'!CS131","v":0},{"$f":"'2. Conservation Measures'!CT131","v":0},{"$f":"'2. Conservation Measures'!CU131","v":0},{"$f":"'2. Conservation Measures'!CV131","v":0},{"$f":"'2. Conservation Measures'!CW131","v":0},{"$f":"'2. Conservation Measures'!CX131","v":0},{"$f":"'2. Conservation Measures'!CY131","v":0},{"$f":"'2. Conservation Measures'!CZ131","v":0},{"$f":"'2. Conservation Measures'!DA131","v":0},{"$f":"'2. Conservation Measures'!DB131","v":0},{"$f":"'2. Conservation Measures'!DC131","v":0},{"$f":"'2. Conservation Measures'!DD131","v":0},{"$f":"'2. Conservation Measures'!DE131","v":0},{"$f":"'2. Conservation Measures'!DF131","v":0},{"$f":"'2. Conservation Measures'!DG131","v":0},{"$f":"'2. Conservation Measures'!DH131","v":0},{"$f":"'2. Conservation Measures'!DI131","v":0},{"$f":"'2. Conservation Measures'!DJ131","v":0},{"$f":"'2. Conservation Measures'!DK131","v":0},{"$f":"'2. Conservation Measures'!DL131","v":0},{"$f":"'2. Conservation Measures'!DM131","v":0},{"$f":"'2. Conservation Measures'!DN131","v":0},{"$f":"'2. Conservation Measures'!DO131","v":0},{"$f":"'2. Conservation Measures'!DP131","v":0},{"$f":"'2. Conservation Measures'!DQ131","v":0},{"$f":"'2. Conservation Measures'!DR131","v":0},{"$f":"'2. Conservation Measures'!DS131","v":0},{"$f":"'2. Conservation Measures'!DT131","v":0},{"$f":"'2. Conservation Measures'!DU131","v":0},{"$f":"'2. Conservation Measures'!DV131","v":0},{"$f":"'2. Conservation Measures'!DW131","v":0},{"$f":"'2. Conservation Measures'!DX131","v":0},{"$f":"'2. Conservation Measures'!DY131","v":0},{"$f":"'2. Conservation Measures'!DZ131","v":0},{"$f":"'2. Conservation Measures'!EA131","v":0},{"$f":"'2. Conservation Measures'!EB131","v":0},{"$f":"'2. Conservation Measures'!EC131","v":0},{"$f":"'2. Conservation Measures'!ED131","v":0},{"$f":"'2. Conservation Measures'!EE131","v":0},{"$f":"'2. Conservation Measures'!EF131","v":0},{"$f":"'2. Conservation Measures'!EG131","v":0},{"$f":"'2. Conservation Measures'!EH131","v":0},{"$f":"'2. Conservation Measures'!EI131","v":0},{"$f":"'2. Conservation Measures'!EJ131","v":0},{"$f":"'2. Conservation Measures'!EK131","v":0},{"$f":"'2. Conservation Measures'!EL131","v":0},{"$f":"'2. Conservation Measures'!EM131","v":0},null,{"$f":"'2. Conservation Measures'!KP131","v":0},{"$f":"'2. Conservation Measures'!KQ131","v":0},{"$f":"'2. Conservation Measures'!KR131","v":0},{"$f":"'2. Conservation Measures'!KS131","v":0},{"$f":"'2. Conservation Measures'!KT131","v":0},{"$f":"'2. Conservation Measures'!KU131","v":0},{"$f":"'2. Conservation Measures'!KV131","v":0},{"$f":"'2. Conservation Measures'!KW131","v":0},{"$f":"'2. Conservation Measures'!KX131","v":0},{"$f":"'2. Conservation Measures'!KY131","v":0},{"$f":"'2. Conservation Measures'!KZ131","v":0},{"$f":"'2. Conservation Measures'!LA131","v":0},{"$f":"'2. Conservation Measures'!LB131","v":0},{"$f":"'2. Conservation Measures'!LC131","v":0},{"$f":"'2. Conservation Measures'!LD131","v":0},{"$f":"'2. Conservation Measures'!LE131","v":0},{"$f":"'2. Conservation Measures'!LF131","v":0},{"$f":"'2. Conservation Measures'!LG131","v":0},{"$f":"'2. Conservation Measures'!LH131","v":0},{"$f":"'2. Conservation Measures'!LI131","v":0},{"$f":"'2. Conservation Measures'!LJ131","v":0},{"$f":"'2. Conservation Measures'!LK131","v":0},{"$f":"'2. Conservation Measures'!LL131","v":0},{"$f":"'2. Conservation Measures'!LM131","v":0},{"$f":"'2. Conservation Measures'!LN131","v":0},{"$f":"'2. Conservation Measures'!LO131","v":0},{"$f":"'2. Conservation Measures'!LP131","v":0},{"$f":"'2. Conservation Measures'!LQ131","v":0},{"$f":"'2. Conservation Measures'!LR131","v":0},{"$f":"'2. Conservation Measures'!LS131","v":0},{"$f":"'2. Conservation Measures'!LT131","v":0},{"$f":"'2. Conservation Measures'!LU131","v":0},{"$f":"'2. Conservation Measures'!LV131","v":0},{"$f":"'2. Conservation Measures'!LW131","v":0},{"$f":"'2. Conservation Measures'!LX131","v":0},{"$f":"'2. Conservation Measures'!LY131","v":0},{"$f":"'2. Conservation Measures'!LZ131","v":0},{"$f":"'2. Conservation Measures'!MA131","v":0},{"$f":"'2. Conservation Measures'!MB131","v":0},{"$f":"'2. Conservation Measures'!MC131","v":0},{"$f":"'2. Conservation Measures'!MD131","v":0},{"$f":"'2. Conservation Measures'!ME131","v":0},{"$f":"'2. Conservation Measures'!MF131","v":0},{"$f":"'2. Conservation Measures'!MG131","v":0},{"$f":"'2. Conservation Measures'!MH131","v":0},{"$f":"'2. Conservation Measures'!MI131","v":0},{"$f":"'2. Conservation Measures'!MJ131","v":0},{"$f":"'2. Conservation Measures'!MK131","v":0},{"$f":"'2. Conservation Measures'!ML131","v":0},{"$f":"'2. Conservation Measures'!MM131","v":0},{"$f":"'2. Conservation Measures'!MN131","v":0},null,{"$f":"'2. Conservation Measures'!EP131","v":0},{"$f":"'2. Conservation Measures'!EQ131","v":0},{"$f":"'2. Conservation Measures'!ER131","v":0},{"$f":"'2. Conservation Measures'!ES131","v":0},{"$f":"'2. Conservation Measures'!ET131","v":0},{"$f":"'2. Conservation Measures'!EU131","v":0},{"$f":"'2. Conservation Measures'!EV131","v":0},{"$f":"'2. Conservation Measures'!EW131","v":0},{"$f":"'2. Conservation Measures'!EX131","v":0},{"$f":"'2. Conservation Measures'!EY131","v":0},{"$f":"'2. Conservation Measures'!EZ131","v":0},{"$f":"'2. Conservation Measures'!FA131","v":0},{"$f":"'2. Conservation Measures'!FB131","v":0},{"$f":"'2. Conservation Measures'!FC131","v":0},{"$f":"'2. Conservation Measures'!FD131","v":0},{"$f":"'2. Conservation Measures'!FE131","v":0},{"$f":"'2. Conservation Measures'!FF131","v":0},{"$f":"'2. Conservation Measures'!FG131","v":0},{"$f":"'2. Conservation Measures'!FH131","v":0},{"$f":"'2. Conservation Measures'!FI131","v":0},{"$f":"'2. Conservation Measures'!FJ131","v":0},{"$f":"'2. Conservation Measures'!FK131","v":0},{"$f":"'2. Conservation Measures'!FL131","v":0},{"$f":"'2. Conservation Measures'!FM131","v":0},{"$f":"'2. Conservation Measures'!FN131","v":0},{"$f":"'2. Conservation Measures'!FO131","v":0},{"$f":"'2. Conservation Measures'!FP131","v":0},{"$f":"'2. Conservation Measures'!FQ131","v":0},{"$f":"'2. Conservation Measures'!FR131","v":0},{"$f":"'2. Conservation Measures'!FS131","v":0},{"$f":"'2. Conservation Measures'!FT131","v":0},{"$f":"'2. Conservation Measures'!FU131","v":0},{"$f":"'2. Conservation Measures'!FV131","v":0},{"$f":"'2. Conservation Measures'!FW131","v":0},{"$f":"'2. Conservation Measures'!FX131","v":0},{"$f":"'2. Conservation Measures'!FY131","v":0},{"$f":"'2. Conservation Measures'!FZ131","v":0},{"$f":"'2. Conservation Measures'!GA131","v":0},{"$f":"'2. Conservation Measures'!GB131","v":0},{"$f":"'2. Conservation Measures'!GC131","v":0},{"$f":"'2. Conservation Measures'!GD131","v":0},{"$f":"'2. Conservation Measures'!GE131","v":0},{"$f":"'2. Conservation Measures'!GF131","v":0},{"$f":"'2. Conservation Measures'!GG131","v":0},{"$f":"'2. Conservation Measures'!GH131","v":0},{"$f":"'2. Conservation Measures'!GI131","v":0},{"$f":"'2. Conservation Measures'!GJ131","v":0},{"$f":"'2. Conservation Measures'!GK131","v":0},{"$f":"'2. Conservation Measures'!GL131","v":0},{"$f":"'2. Conservation Measures'!GM131","v":0},{"$f":"'2. Conservation Measures'!GN131","v":0},null,{"$f":"'2. Conservation Measures'!GP131","v":0},{"$f":"'2. Conservation Measures'!GQ131","v":0},{"$f":"'2. Conservation Measures'!GR131","v":0},{"$f":"'2. Conservation Measures'!GS131","v":0},{"$f":"'2. Conservation Measures'!GT131","v":0},{"$f":"'2. Conservation Measures'!GU131","v":0},{"$f":"'2. Conservation Measures'!GV131","v":0},{"$f":"'2. Conservation Measures'!GW131","v":0},{"$f":"'2. Conservation Measures'!GX131","v":0},{"$f":"'2. Conservation Measures'!GY131","v":0},{"$f":"'2. Conservation Measures'!GZ131","v":0},{"$f":"'2. Conservation Measures'!HA131","v":0},{"$f":"'2. Conservation Measures'!HB131","v":0},{"$f":"'2. Conservation Measures'!HC131","v":0},{"$f":"'2. Conservation Measures'!HD131","v":0},{"$f":"'2. Conservation Measures'!HE131","v":0},{"$f":"'2. Conservation Measures'!HF131","v":0},{"$f":"'2. Conservation Measures'!HG131","v":0},{"$f":"'2. Conservation Measures'!HH131","v":0},{"$f":"'2. Conservation Measures'!HI131","v":0},{"$f":"'2. Conservation Measures'!HJ131","v":0},{"$f":"'2. Conservation Measures'!HK131","v":0},{"$f":"'2. Conservation Measures'!HL131","v":0},{"$f":"'2. Conservation Measures'!HM131","v":0},{"$f":"'2. Conservation Measures'!HN131","v":0},{"$f":"'2. Conservation Measures'!HO131","v":0},{"$f":"'2. Conservation Measures'!HP131","v":0},{"$f":"'2. Conservation Measures'!HQ131","v":0},{"$f":"'2. Conservation Measures'!HR131","v":0},{"$f":"'2. Conservation Measures'!HS131","v":0},{"$f":"'2. Conservation Measures'!HT131","v":0},{"$f":"'2. Conservation Measures'!HU131","v":0},{"$f":"'2. Conservation Measures'!HV131","v":0},{"$f":"'2. Conservation Measures'!HW131","v":0},{"$f":"'2. Conservation Measures'!HX131","v":0},{"$f":"'2. Conservation Measures'!HY131","v":0},{"$f":"'2. Conservation Measures'!HZ131","v":0},{"$f":"'2. Conservation Measures'!IA131","v":0},{"$f":"'2. Conservation Measures'!IB131","v":0},{"$f":"'2. Conservation Measures'!IC131","v":0},{"$f":"'2. Conservation Measures'!ID131","v":0},{"$f":"'2. Conservation Measures'!IE131","v":0},{"$f":"'2. Conservation Measures'!IF131","v":0},{"$f":"'2. Conservation Measures'!IG131","v":0},{"$f":"'2. Conservation Measures'!IH131","v":0},{"$f":"'2. Conservation Measures'!II131","v":0},{"$f":"'2. Conservation Measures'!IJ131","v":0},{"$f":"'2. Conservation Measures'!IK131","v":0},{"$f":"'2. Conservation Measures'!IL131","v":0},{"$f":"'2. Conservation Measures'!IM131","v":0},{"$f":"'2. Conservation Measures'!IN131","v":0},null,{"$f":"'2. Conservation Measures'!IP131","v":0},{"$f":"'2. Conservation Measures'!IQ131","v":0},{"$f":"'2. Conservation Measures'!IR131","v":0},{"$f":"'2. Conservation Measures'!IS131","v":0},{"$f":"'2. Conservation Measures'!IT131","v":0},{"$f":"'2. Conservation Measures'!IU131","v":0},{"$f":"'2. Conservation Measures'!IV131","v":0},{"$f":"'2. Conservation Measures'!IW131","v":0},{"$f":"'2. Conservation Measures'!IX131","v":0},{"$f":"'2. Conservation Measures'!IY131","v":0},{"$f":"'2. Conservation Measures'!IZ131","v":0},{"$f":"'2. Conservation Measures'!JA131","v":0},{"$f":"'2. Conservation Measures'!JB131","v":0},{"$f":"'2. Conservation Measures'!JC131","v":0},{"$f":"'2. Conservation Measures'!JD131","v":0},{"$f":"'2. Conservation Measures'!JE131","v":0},{"$f":"'2. Conservation Measures'!JF131","v":0},{"$f":"'2. Conservation Measures'!JG131","v":0},{"$f":"'2. Conservation Measures'!JH131","v":0},{"$f":"'2. Conservation Measures'!JI131","v":0},{"$f":"'2. Conservation Measures'!JJ131","v":0},{"$f":"'2. Conservation Measures'!JK131","v":0},{"$f":"'2. Conservation Measures'!JL131","v":0},{"$f":"'2. Conservation Measures'!JM131","v":0},{"$f":"'2. Conservation Measures'!JN131","v":0},{"$f":"'2. Conservation Measures'!JO131","v":0},{"$f":"'2. Conservation Measures'!JP131","v":0},{"$f":"'2. Conservation Measures'!JQ131","v":0},{"$f":"'2. Conservation Measures'!JR131","v":0},{"$f":"'2. Conservation Measures'!JS131","v":0},{"$f":"'2. Conservation Measures'!JT131","v":0},{"$f":"'2. Conservation Measures'!JU131","v":0},{"$f":"'2. Conservation Measures'!JV131","v":0},{"$f":"'2. Conservation Measures'!JW131","v":0},{"$f":"'2. Conservation Measures'!JX131","v":0},{"$f":"'2. Conservation Measures'!JY131","v":0},{"$f":"'2. Conservation Measures'!JZ131","v":0},{"$f":"'2. Conservation Measures'!KA131","v":0},{"$f":"'2. Conservation Measures'!KB131","v":0},{"$f":"'2. Conservation Measures'!KC131","v":0},{"$f":"'2. Conservation Measures'!KD131","v":0},{"$f":"'2. Conservation Measures'!KE131","v":0},{"$f":"'2. Conservation Measures'!KF131","v":0},{"$f":"'2. Conservation Measures'!KG131","v":0},{"$f":"'2. Conservation Measures'!KH131","v":0},{"$f":"'2. Conservation Measures'!KI131","v":0},{"$f":"'2. Conservation Measures'!KJ131","v":0},{"$f":"'2. Conservation Measures'!KK131","v":0},{"$f":"'2. Conservation Measures'!KL131","v":0},{"$f":"'2. Conservation Measures'!KM131","v":0},{"$f":"'2. Conservation Measures'!KN131","v":0}]
[null,{"$f":"'2. Conservation Measures'!B132","v":"USR-UTL-03"},{"$f":"'2. Conservation Measures'!C132","v":0},{"$f":"'2. Conservation Measures'!D132","v":"N"},null,{"$f":"'2. Conservation Measures'!AA132","v":0},null,{"$f":"'2. Conservation Measures'!AO132","v":0},{"$f":"'2. Conservation Measures'!AP132","v":0},{"$f":"'2. Conservation Measures'!AQ132","v":0},{"$f":"'2. Conservation Measures'!AR132","v":0},{"$f":"'2. Conservation Measures'!AS132","v":0},{"$f":"'2. Conservation Measures'!AT132","v":0},{"$f":"'2. Conservation Measures'!AU132","v":0},{"$f":"'2. Conservation Measures'!AV132","v":0},{"$f":"'2. Conservation Measures'!AW132","v":0},{"$f":"'2. Conservation Measures'!AX132","v":0},{"$f":"'2. Conservation Measures'!AY132","v":0},{"$f":"'2. Conservation Measures'!AZ132","v":0},{"$f":"'2. Conservation Measures'!BA132","v":0},{"$f":"'2. Conservation Measures'!BB132","v":0},{"$f":"'2. Conservation Measures'!BC132","v":0},{"$f":"'2. Conservation Measures'!BD132","v":0},{"$f":"'2. Conservation Measures'!BE132","v":0},{"$f":"'2. Conservation Measures'!BF132","v":0},{"$f":"'2. Conservation Measures'!BG132","v":0},{"$f":"'2. Conservation Measures'!BH132","v":0},{"$f":"'2. Conservation Measures'!BI132","v":0},{"$f":"'2. Conservation Measures'!BJ132","v":0},{"$f":"'2. Conservation Measures'!BK132","v":0},{"$f":"'2. Conservation Measures'!BL132","v":0},{"$f":"'2. Conservation Measures'!BM132","v":0},{"$f":"'2. Conservation Measures'!BN132","v":0},{"$f":"'2. Conservation Measures'!BO132","v":0},{"$f":"'2. Conservation Measures'!BP132","v":0},{"$f":"'2. Conservation Measures'!BQ132","v":0},{"$f":"'2. Conservation Measures'!BR132","v":0},{"$f":"'2. Conservation Measures'!BS132","v":0},{"$f":"'2. Conservation Measures'!BT132","v":0},{"$f":"'2. Conservation Measures'!BU132","v":0},{"$f":"'2. Conservation Measures'!BV132","v":0},{"$f":"'2. Conservation Measures'!BW132","v":0},{"$f":"'2. Conservation Measures'!BX132","v":0},{"$f":"'2. Conservation Measures'!BY132","v":0},{"$f":"'2. Conservation Measures'!BZ132","v":0},{"$f":"'2. Conservation Measures'!CA132","v":0},{"$f":"'2. Conservation Measures'!CB132","v":0},{"$f":"'2. Conservation Measures'!CC132","v":0},{"$f":"'2. Conservation Measures'!CD132","v":0},{"$f":"'2. Conservation Measures'!CE132","v":0},{"$f":"'2. Conservation Measures'!CF132","v":0},{"$f":"'2. Conservation Measures'!CG132","v":0},{"$f":"'2. Conservation Measures'!CH132","v":0},{"$f":"'2. Conservation Measures'!CI132","v":0},{"$f":"'2. Conservation Measures'!CJ132","v":0},{"$f":"'2. Conservation Measures'!CK132","v":0},{"$f":"'2. Conservation Measures'!CL132","v":0},{"$f":"'2. Conservation Measures'!CM132","v":0},null,{"$f":"'2. Conservation Measures'!CO132","v":0},{"$f":"'2. Conservation Measures'!CP132","v":0},{"$f":"'2. Conservation Measures'!CQ132","v":0},{"$f":"'2. Conservation Measures'!CR132","v":0},{"$f":"'2. Conservation Measures'!CS132","v":0},{"$f":"'2. Conservation Measures'!CT132","v":0},{"$f":"'2. Conservation Measures'!CU132","v":0},{"$f":"'2. Conservation Measures'!CV132","v":0},{"$f":"'2. Conservation Measures'!CW132","v":0},{"$f":"'2. Conservation Measures'!CX132","v":0},{"$f":"'2. Conservation Measures'!CY132","v":0},{"$f":"'2. Conservation Measures'!CZ132","v":0},{"$f":"'2. Conservation Measures'!DA132","v":0},{"$f":"'2. Conservation Measures'!DB132","v":0},{"$f":"'2. Conservation Measures'!DC132","v":0},{"$f":"'2. Conservation Measures'!DD132","v":0},{"$f":"'2. Conservation Measures'!DE132","v":0},{"$f":"'2. Conservation Measures'!DF132","v":0},{"$f":"'2. Conservation Measures'!DG132","v":0},{"$f":"'2. Conservation Measures'!DH132","v":0},{"$f":"'2. Conservation Measures'!DI132","v":0},{"$f":"'2. Conservation Measures'!DJ132","v":0},{"$f":"'2. Conservation Measures'!DK132","v":0},{"$f":"'2. Conservation Measures'!DL132","v":0},{"$f":"'2. Conservation Measures'!DM132","v":0},{"$f":"'2. Conservation Measures'!DN132","v":0},{"$f":"'2. Conservation Measures'!DO132","v":0},{"$f":"'2. Conservation Measures'!DP132","v":0},{"$f":"'2. Conservation Measures'!DQ132","v":0},{"$f":"'2. Conservation Measures'!DR132","v":0},{"$f":"'2. Conservation Measures'!DS132","v":0},{"$f":"'2. Conservation Measures'!DT132","v":0},{"$f":"'2. Conservation Measures'!DU132","v":0},{"$f":"'2. Conservation Measures'!DV132","v":0},{"$f":"'2. Conservation Measures'!DW132","v":0},{"$f":"'2. Conservation Measures'!DX132","v":0},{"$f":"'2. Conservation Measures'!DY132","v":0},{"$f":"'2. Conservation Measures'!DZ132","v":0},{"$f":"'2. Conservation Measures'!EA132","v":0},{"$f":"'2. Conservation Measures'!EB132","v":0},{"$f":"'2. Conservation Measures'!EC132","v":0},{"$f":"'2. Conservation Measures'!ED132","v":0},{"$f":"'2. Conservation Measures'!EE132","v":0},{"$f":"'2. Conservation Measures'!EF132","v":0},{"$f":"'2. Conservation Measures'!EG132","v":0},{"$f":"'2. Conservation Measures'!EH132","v":0},{"$f":"'2. Conservation Measures'!EI132","v":0},{"$f":"'2. Conservation Measures'!EJ132","v":0},{"$f":"'2. Conservation Measures'!EK132","v":0},{"$f":"'2. Conservation Measures'!EL132","v":0},{"$f":"'2. Conservation Measures'!EM132","v":0},null,{"$f":"'2. Conservation Measures'!KP132","v":0},{"$f":"'2. Conservation Measures'!KQ132","v":0},{"$f":"'2. Conservation Measures'!KR132","v":0},{"$f":"'2. Conservation Measures'!KS132","v":0},{"$f":"'2. Conservation Measures'!KT132","v":0},{"$f":"'2. Conservation Measures'!KU132","v":0},{"$f":"'2. Conservation Measures'!KV132","v":0},{"$f":"'2. Conservation Measures'!KW132","v":0},{"$f":"'2. Conservation Measures'!KX132","v":0},{"$f":"'2. Conservation Measures'!KY132","v":0},{"$f":"'2. Conservation Measures'!KZ132","v":0},{"$f":"'2. Conservation Measures'!LA132","v":0},{"$f":"'2. Conservation Measures'!LB132","v":0},{"$f":"'2. Conservation Measures'!LC132","v":0},{"$f":"'2. Conservation Measures'!LD132","v":0},{"$f":"'2. Conservation Measures'!LE132","v":0},{"$f":"'2. Conservation Measures'!LF132","v":0},{"$f":"'2. Conservation Measures'!LG132","v":0},{"$f":"'2. Conservation Measures'!LH132","v":0},{"$f":"'2. Conservation Measures'!LI132","v":0},{"$f":"'2. Conservation Measures'!LJ132","v":0},{"$f":"'2. Conservation Measures'!LK132","v":0},{"$f":"'2. Conservation Measures'!LL132","v":0},{"$f":"'2. Conservation Measures'!LM132","v":0},{"$f":"'2. Conservation Measures'!LN132","v":0},{"$f":"'2. Conservation Measures'!LO132","v":0},{"$f":"'2. Conservation Measures'!LP132","v":0},{"$f":"'2. Conservation Measures'!LQ132","v":0},{"$f":"'2. Conservation Measures'!LR132","v":0},{"$f":"'2. Conservation Measures'!LS132","v":0},{"$f":"'2. Conservation Measures'!LT132","v":0},{"$f":"'2. Conservation Measures'!LU132","v":0},{"$f":"'2. Conservation Measures'!LV132","v":0},{"$f":"'2. Conservation Measures'!LW132","v":0},{"$f":"'2. Conservation Measures'!LX132","v":0},{"$f":"'2. Conservation Measures'!LY132","v":0},{"$f":"'2. Conservation Measures'!LZ132","v":0},{"$f":"'2. Conservation Measures'!MA132","v":0},{"$f":"'2. Conservation Measures'!MB132","v":0},{"$f":"'2. Conservation Measures'!MC132","v":0},{"$f":"'2. Conservation Measures'!MD132","v":0},{"$f":"'2. Conservation Measures'!ME132","v":0},{"$f":"'2. Conservation Measures'!MF132","v":0},{"$f":"'2. Conservation Measures'!MG132","v":0},{"$f":"'2. Conservation Measures'!MH132","v":0},{"$f":"'2. Conservation Measures'!MI132","v":0},{"$f":"'2. Conservation Measures'!MJ132","v":0},{"$f":"'2. Conservation Measures'!MK132","v":0},{"$f":"'2. Conservation Measures'!ML132","v":0},{"$f":"'2. Conservation Measures'!MM132","v":0},{"$f":"'2. Conservation Measures'!MN132","v":0},null,{"$f":"'2. Conservation Measures'!EP132","v":0},{"$f":"'2. Conservation Measures'!EQ132","v":0},{"$f":"'2. Conservation Measures'!ER132","v":0},{"$f":"'2. Conservation Measures'!ES132","v":0},{"$f":"'2. Conservation Measures'!ET132","v":0},{"$f":"'2. Conservation Measures'!EU132","v":0},{"$f":"'2. Conservation Measures'!EV132","v":0},{"$f":"'2. Conservation Measures'!EW132","v":0},{"$f":"'2. Conservation Measures'!EX132","v":0},{"$f":"'2. Conservation Measures'!EY132","v":0},{"$f":"'2. Conservation Measures'!EZ132","v":0},{"$f":"'2. Conservation Measures'!FA132","v":0},{"$f":"'2. Conservation Measures'!FB132","v":0},{"$f":"'2. Conservation Measures'!FC132","v":0},{"$f":"'2. Conservation Measures'!FD132","v":0},{"$f":"'2. Conservation Measures'!FE132","v":0},{"$f":"'2. Conservation Measures'!FF132","v":0},{"$f":"'2. Conservation Measures'!FG132","v":0},{"$f":"'2. Conservation Measures'!FH132","v":0},{"$f":"'2. Conservation Measures'!FI132","v":0},{"$f":"'2. Conservation Measures'!FJ132","v":0},{"$f":"'2. Conservation Measures'!FK132","v":0},{"$f":"'2. Conservation Measures'!FL132","v":0},{"$f":"'2. Conservation Measures'!FM132","v":0},{"$f":"'2. Conservation Measures'!FN132","v":0},{"$f":"'2. Conservation Measures'!FO132","v":0},{"$f":"'2. Conservation Measures'!FP132","v":0},{"$f":"'2. Conservation Measures'!FQ132","v":0},{"$f":"'2. Conservation Measures'!FR132","v":0},{"$f":"'2. Conservation Measures'!FS132","v":0},{"$f":"'2. Conservation Measures'!FT132","v":0},{"$f":"'2. Conservation Measures'!FU132","v":0},{"$f":"'2. Conservation Measures'!FV132","v":0},{"$f":"'2. Conservation Measures'!FW132","v":0},{"$f":"'2. Conservation Measures'!FX132","v":0},{"$f":"'2. Conservation Measures'!FY132","v":0},{"$f":"'2. Conservation Measures'!FZ132","v":0},{"$f":"'2. Conservation Measures'!GA132","v":0},{"$f":"'2. Conservation Measures'!GB132","v":0},{"$f":"'2. Conservation Measures'!GC132","v":0},{"$f":"'2. Conservation Measures'!GD132","v":0},{"$f":"'2. Conservation Measures'!GE132","v":0},{"$f":"'2. Conservation Measures'!GF132","v":0},{"$f":"'2. Conservation Measures'!GG132","v":0},{"$f":"'2. Conservation Measures'!GH132","v":0},{"$f":"'2. Conservation Measures'!GI132","v":0},{"$f":"'2. Conservation Measures'!GJ132","v":0},{"$f":"'2. Conservation Measures'!GK132","v":0},{"$f":"'2. Conservation Measures'!GL132","v":0},{"$f":"'2. Conservation Measures'!GM132","v":0},{"$f":"'2. Conservation Measures'!GN132","v":0},null,{"$f":"'2. Conservation Measures'!GP132","v":0},{"$f":"'2. Conservation Measures'!GQ132","v":0},{"$f":"'2. Conservation Measures'!GR132","v":0},{"$f":"'2. Conservation Measures'!GS132","v":0},{"$f":"'2. Conservation Measures'!GT132","v":0},{"$f":"'2. Conservation Measures'!GU132","v":0},{"$f":"'2. Conservation Measures'!GV132","v":0},{"$f":"'2. Conservation Measures'!GW132","v":0},{"$f":"'2. Conservation Measures'!GX132","v":0},{"$f":"'2. Conservation Measures'!GY132","v":0},{"$f":"'2. Conservation Measures'!GZ132","v":0},{"$f":"'2. Conservation Measures'!HA132","v":0},{"$f":"'2. Conservation Measures'!HB132","v":0},{"$f":"'2. Conservation Measures'!HC132","v":0},{"$f":"'2. Conservation Measures'!HD132","v":0},{"$f":"'2. Conservation Measures'!HE132","v":0},{"$f":"'2. Conservation Measures'!HF132","v":0},{"$f":"'2. Conservation Measures'!HG132","v":0},{"$f":"'2. Conservation Measures'!HH132","v":0},{"$f":"'2. Conservation Measures'!HI132","v":0},{"$f":"'2. Conservation Measures'!HJ132","v":0},{"$f":"'2. Conservation Measures'!HK132","v":0},{"$f":"'2. Conservation Measures'!HL132","v":0},{"$f":"'2. Conservation Measures'!HM132","v":0},{"$f":"'2. Conservation Measures'!HN132","v":0},{"$f":"'2. Conservation Measures'!HO132","v":0},{"$f":"'2. Conservation Measures'!HP132","v":0},{"$f":"'2. Conservation Measures'!HQ132","v":0},{"$f":"'2. Conservation Measures'!HR132","v":0},{"$f":"'2. Conservation Measures'!HS132","v":0},{"$f":"'2. Conservation Measures'!HT132","v":0},{"$f":"'2. Conservation Measures'!HU132","v":0},{"$f":"'2. Conservation Measures'!HV132","v":0},{"$f":"'2. Conservation Measures'!HW132","v":0},{"$f":"'2. Conservation Measures'!HX132","v":0},{"$f":"'2. Conservation Measures'!HY132","v":0},{"$f":"'2. Conservation Measures'!HZ132","v":0},{"$f":"'2. Conservation Measures'!IA132","v":0},{"$f":"'2. Conservation Measures'!IB132","v":0},{"$f":"'2. Conservation Measures'!IC132","v":0},{"$f":"'2. Conservation Measures'!ID132","v":0},{"$f":"'2. Conservation Measures'!IE132","v":0},{"$f":"'2. Conservation Measures'!IF132","v":0},{"$f":"'2. Conservation Measures'!IG132","v":0},{"$f":"'2. Conservation Measures'!IH132","v":0},{"$f":"'2. Conservation Measures'!II132","v":0},{"$f":"'2. Conservation Measures'!IJ132","v":0},{"$f":"'2. Conservation Measures'!IK132","v":0},{"$f":"'2. Conservation Measures'!IL132","v":0},{"$f":"'2. Conservation Measures'!IM132","v":0},{"$f":"'2. Conservation Measures'!IN132","v":0},null,{"$f":"'2. Conservation Measures'!IP132","v":0},{"$f":"'2. Conservation Measures'!IQ132","v":0},{"$f":"'2. Conservation Measures'!IR132","v":0},{"$f":"'2. Conservation Measures'!IS132","v":0},{"$f":"'2. Conservation Measures'!IT132","v":0},{"$f":"'2. Conservation Measures'!IU132","v":0},{"$f":"'2. Conservation Measures'!IV132","v":0},{"$f":"'2. Conservation Measures'!IW132","v":0},{"$f":"'2. Conservation Measures'!IX132","v":0},{"$f":"'2. Conservation Measures'!IY132","v":0},{"$f":"'2. Conservation Measures'!IZ132","v":0},{"$f":"'2. Conservation Measures'!JA132","v":0},{"$f":"'2. Conservation Measures'!JB132","v":0},{"$f":"'2. Conservation Measures'!JC132","v":0},{"$f":"'2. Conservation Measures'!JD132","v":0},{"$f":"'2. Conservation Measures'!JE132","v":0},{"$f":"'2. Conservation Measures'!JF132","v":0},{"$f":"'2. Conservation Measures'!JG132","v":0},{"$f":"'2. Conservation Measures'!JH132","v":0},{"$f":"'2. Conservation Measures'!JI132","v":0},{"$f":"'2. Conservation Measures'!JJ132","v":0},{"$f":"'2. Conservation Measures'!JK132","v":0},{"$f":"'2. Conservation Measures'!JL132","v":0},{"$f":"'2. Conservation Measures'!JM132","v":0},{"$f":"'2. Conservation Measures'!JN132","v":0},{"$f":"'2. Conservation Measures'!JO132","v":0},{"$f":"'2. Conservation Measures'!JP132","v":0},{"$f":"'2. Conservation Measures'!JQ132","v":0},{"$f":"'2. Conservation Measures'!JR132","v":0},{"$f":"'2. Conservation Measures'!JS132","v":0},{"$f":"'2. Conservation Measures'!JT132","v":0},{"$f":"'2. Conservation Measures'!JU132","v":0},{"$f":"'2. Conservation Measures'!JV132","v":0},{"$f":"'2. Conservation Measures'!JW132","v":0},{"$f":"'2. Conservation Measures'!JX132","v":0},{"$f":"'2. Conservation Measures'!JY132","v":0},{"$f":"'2. Conservation Measures'!JZ132","v":0},{"$f":"'2. Conservation Measures'!KA132","v":0},{"$f":"'2. Conservation Measures'!KB132","v":0},{"$f":"'2. Conservation Measures'!KC132","v":0},{"$f":"'2. Conservation Measures'!KD132","v":0},{"$f":"'2. Conservation Measures'!KE132","v":0},{"$f":"'2. Conservation Measures'!KF132","v":0},{"$f":"'2. Conservation Measures'!KG132","v":0},{"$f":"'2. Conservation Measures'!KH132","v":0},{"$f":"'2. Conservation Measures'!KI132","v":0},{"$f":"'2. Conservation Measures'!KJ132","v":0},{"$f":"'2. Conservation Measures'!KK132","v":0},{"$f":"'2. Conservation Measures'!KL132","v":0},{"$f":"'2. Conservation Measures'!KM132","v":0},{"$f":"'2. Conservation Measures'!KN132","v":0}]
[null,{"$f":"'2. Conservation Measures'!B133","v":"USR-UTL-04"},{"$f":"'2. Conservation Measures'!C133","v":0},{"$f":"'2. Conservation Measures'!D133","v":"N"},null,{"$f":"'2. Conservation Measures'!AA133","v":0},null,{"$f":"'2. Conservation Measures'!AO133","v":0},{"$f":"'2. Conservation Measures'!AP133","v":0},{"$f":"'2. Conservation Measures'!AQ133","v":0},{"$f":"'2. Conservation Measures'!AR133","v":0},{"$f":"'2. Conservation Measures'!AS133","v":0},{"$f":"'2. Conservation Measures'!AT133","v":0},{"$f":"'2. Conservation Measures'!AU133","v":0},{"$f":"'2. Conservation Measures'!AV133","v":0},{"$f":"'2. Conservation Measures'!AW133","v":0},{"$f":"'2. Conservation Measures'!AX133","v":0},{"$f":"'2. Conservation Measures'!AY133","v":0},{"$f":"'2. Conservation Measures'!AZ133","v":0},{"$f":"'2. Conservation Measures'!BA133","v":0},{"$f":"'2. Conservation Measures'!BB133","v":0},{"$f":"'2. Conservation Measures'!BC133","v":0},{"$f":"'2. Conservation Measures'!BD133","v":0},{"$f":"'2. Conservation Measures'!BE133","v":0},{"$f":"'2. Conservation Measures'!BF133","v":0},{"$f":"'2. Conservation Measures'!BG133","v":0},{"$f":"'2. Conservation Measures'!BH133","v":0},{"$f":"'2. Conservation Measures'!BI133","v":0},{"$f":"'2. Conservation Measures'!BJ133","v":0},{"$f":"'2. Conservation Measures'!BK133","v":0},{"$f":"'2. Conservation Measures'!BL133","v":0},{"$f":"'2. Conservation Measures'!BM133","v":0},{"$f":"'2. Conservation Measures'!BN133","v":0},{"$f":"'2. Conservation Measures'!BO133","v":0},{"$f":"'2. Conservation Measures'!BP133","v":0},{"$f":"'2. Conservation Measures'!BQ133","v":0},{"$f":"'2. Conservation Measures'!BR133","v":0},{"$f":"'2. Conservation Measures'!BS133","v":0},{"$f":"'2. Conservation Measures'!BT133","v":0},{"$f":"'2. Conservation Measures'!BU133","v":0},{"$f":"'2. Conservation Measures'!BV133","v":0},{"$f":"'2. Conservation Measures'!BW133","v":0},{"$f":"'2. Conservation Measures'!BX133","v":0},{"$f":"'2. Conservation Measures'!BY133","v":0},{"$f":"'2. Conservation Measures'!BZ133","v":0},{"$f":"'2. Conservation Measures'!CA133","v":0},{"$f":"'2. Conservation Measures'!CB133","v":0},{"$f":"'2. Conservation Measures'!CC133","v":0},{"$f":"'2. Conservation Measures'!CD133","v":0},{"$f":"'2. Conservation Measures'!CE133","v":0},{"$f":"'2. Conservation Measures'!CF133","v":0},{"$f":"'2. Conservation Measures'!CG133","v":0},{"$f":"'2. Conservation Measures'!CH133","v":0},{"$f":"'2. Conservation Measures'!CI133","v":0},{"$f":"'2. Conservation Measures'!CJ133","v":0},{"$f":"'2. Conservation Measures'!CK133","v":0},{"$f":"'2. Conservation Measures'!CL133","v":0},{"$f":"'2. Conservation Measures'!CM133","v":0},null,{"$f":"'2. Conservation Measures'!CO133","v":0},{"$f":"'2. Conservation Measures'!CP133","v":0},{"$f":"'2. Conservation Measures'!CQ133","v":0},{"$f":"'2. Conservation Measures'!CR133","v":0},{"$f":"'2. Conservation Measures'!CS133","v":0},{"$f":"'2. Conservation Measures'!CT133","v":0},{"$f":"'2. Conservation Measures'!CU133","v":0},{"$f":"'2. Conservation Measures'!CV133","v":0},{"$f":"'2. Conservation Measures'!CW133","v":0},{"$f":"'2. Conservation Measures'!CX133","v":0},{"$f":"'2. Conservation Measures'!CY133","v":0},{"$f":"'2. Conservation Measures'!CZ133","v":0},{"$f":"'2. Conservation Measures'!DA133","v":0},{"$f":"'2. Conservation Measures'!DB133","v":0},{"$f":"'2. Conservation Measures'!DC133","v":0},{"$f":"'2. Conservation Measures'!DD133","v":0},{"$f":"'2. Conservation Measures'!DE133","v":0},{"$f":"'2. Conservation Measures'!DF133","v":0},{"$f":"'2. Conservation Measures'!DG133","v":0},{"$f":"'2. Conservation Measures'!DH133","v":0},{"$f":"'2. Conservation Measures'!DI133","v":0},{"$f":"'2. Conservation Measures'!DJ133","v":0},{"$f":"'2. Conservation Measures'!DK133","v":0},{"$f":"'2. Conservation Measures'!DL133","v":0},{"$f":"'2. Conservation Measures'!DM133","v":0},{"$f":"'2. Conservation Measures'!DN133","v":0},{"$f":"'2. Conservation Measures'!DO133","v":0},{"$f":"'2. Conservation Measures'!DP133","v":0},{"$f":"'2. Conservation Measures'!DQ133","v":0},{"$f":"'2. Conservation Measures'!DR133","v":0},{"$f":"'2. Conservation Measures'!DS133","v":0},{"$f":"'2. Conservation Measures'!DT133","v":0},{"$f":"'2. Conservation Measures'!DU133","v":0},{"$f":"'2. Conservation Measures'!DV133","v":0},{"$f":"'2. Conservation Measures'!DW133","v":0},{"$f":"'2. Conservation Measures'!DX133","v":0},{"$f":"'2. Conservation Measures'!DY133","v":0},{"$f":"'2. Conservation Measures'!DZ133","v":0},{"$f":"'2. Conservation Measures'!EA133","v":0},{"$f":"'2. Conservation Measures'!EB133","v":0},{"$f":"'2. Conservation Measures'!EC133","v":0},{"$f":"'2. Conservation Measures'!ED133","v":0},{"$f":"'2. Conservation Measures'!EE133","v":0},{"$f":"'2. Conservation Measures'!EF133","v":0},{"$f":"'2. Conservation Measures'!EG133","v":0},{"$f":"'2. Conservation Measures'!EH133","v":0},{"$f":"'2. Conservation Measures'!EI133","v":0},{"$f":"'2. Conservation Measures'!EJ133","v":0},{"$f":"'2. Conservation Measures'!EK133","v":0},{"$f":"'2. Conservation Measures'!EL133","v":0},{"$f":"'2. Conservation Measures'!EM133","v":0},null,{"$f":"'2. Conservation Measures'!KP133","v":0},{"$f":"'2. Conservation Measures'!KQ133","v":0},{"$f":"'2. Conservation Measures'!KR133","v":0},{"$f":"'2. Conservation Measures'!KS133","v":0},{"$f":"'2. Conservation Measures'!KT133","v":0},{"$f":"'2. Conservation Measures'!KU133","v":0},{"$f":"'2. Conservation Measures'!KV133","v":0},{"$f":"'2. Conservation Measures'!KW133","v":0},{"$f":"'2. Conservation Measures'!KX133","v":0},{"$f":"'2. Conservation Measures'!KY133","v":0},{"$f":"'2. Conservation Measures'!KZ133","v":0},{"$f":"'2. Conservation Measures'!LA133","v":0},{"$f":"'2. Conservation Measures'!LB133","v":0},{"$f":"'2. Conservation Measures'!LC133","v":0},{"$f":"'2. Conservation Measures'!LD133","v":0},{"$f":"'2. Conservation Measures'!LE133","v":0},{"$f":"'2. Conservation Measures'!LF133","v":0},{"$f":"'2. Conservation Measures'!LG133","v":0},{"$f":"'2. Conservation Measures'!LH133","v":0},{"$f":"'2. Conservation Measures'!LI133","v":0},{"$f":"'2. Conservation Measures'!LJ133","v":0},{"$f":"'2. Conservation Measures'!LK133","v":0},{"$f":"'2. Conservation Measures'!LL133","v":0},{"$f":"'2. Conservation Measures'!LM133","v":0},{"$f":"'2. Conservation Measures'!LN133","v":0},{"$f":"'2. Conservation Measures'!LO133","v":0},{"$f":"'2. Conservation Measures'!LP133","v":0},{"$f":"'2. Conservation Measures'!LQ133","v":0},{"$f":"'2. Conservation Measures'!LR133","v":0},{"$f":"'2. Conservation Measures'!LS133","v":0},{"$f":"'2. Conservation Measures'!LT133","v":0},{"$f":"'2. Conservation Measures'!LU133","v":0},{"$f":"'2. Conservation Measures'!LV133","v":0},{"$f":"'2. Conservation Measures'!LW133","v":0},{"$f":"'2. Conservation Measures'!LX133","v":0},{"$f":"'2. Conservation Measures'!LY133","v":0},{"$f":"'2. Conservation Measures'!LZ133","v":0},{"$f":"'2. Conservation Measures'!MA133","v":0},{"$f":"'2. Conservation Measures'!MB133","v":0},{"$f":"'2. Conservation Measures'!MC133","v":0},{"$f":"'2. Conservation Measures'!MD133","v":0},{"$f":"'2. Conservation Measures'!ME133","v":0},{"$f":"'2. Conservation Measures'!MF133","v":0},{"$f":"'2. Conservation Measures'!MG133","v":0},{"$f":"'2. Conservation Measures'!MH133","v":0},{"$f":"'2. Conservation Measures'!MI133","v":0},{"$f":"'2. Conservation Measures'!MJ133","v":0},{"$f":"'2. Conservation Measures'!MK133","v":0},{"$f":"'2. Conservation Measures'!ML133","v":0},{"$f":"'2. Conservation Measures'!MM133","v":0},{"$f":"'2. Conservation Measures'!MN133","v":0},null,{"$f":"'2. Conservation Measures'!EP133","v":0},{"$f":"'2. Conservation Measures'!EQ133","v":0},{"$f":"'2. Conservation Measures'!ER133","v":0},{"$f":"'2. Conservation Measures'!ES133","v":0},{"$f":"'2. Conservation Measures'!ET133","v":0},{"$f":"'2. Conservation Measures'!EU133","v":0},{"$f":"'2. Conservation Measures'!EV133","v":0},{"$f":"'2. Conservation Measures'!EW133","v":0},{"$f":"'2. Conservation Measures'!EX133","v":0},{"$f":"'2. Conservation Measures'!EY133","v":0},{"$f":"'2. Conservation Measures'!EZ133","v":0},{"$f":"'2. Conservation Measures'!FA133","v":0},{"$f":"'2. Conservation Measures'!FB133","v":0},{"$f":"'2. Conservation Measures'!FC133","v":0},{"$f":"'2. Conservation Measures'!FD133","v":0},{"$f":"'2. Conservation Measures'!FE133","v":0},{"$f":"'2. Conservation Measures'!FF133","v":0},{"$f":"'2. Conservation Measures'!FG133","v":0},{"$f":"'2. Conservation Measures'!FH133","v":0},{"$f":"'2. Conservation Measures'!FI133","v":0},{"$f":"'2. Conservation Measures'!FJ133","v":0},{"$f":"'2. Conservation Measures'!FK133","v":0},{"$f":"'2. Conservation Measures'!FL133","v":0},{"$f":"'2. Conservation Measures'!FM133","v":0},{"$f":"'2. Conservation Measures'!FN133","v":0},{"$f":"'2. Conservation Measures'!FO133","v":0},{"$f":"'2. Conservation Measures'!FP133","v":0},{"$f":"'2. Conservation Measures'!FQ133","v":0},{"$f":"'2. Conservation Measures'!FR133","v":0},{"$f":"'2. Conservation Measures'!FS133","v":0},{"$f":"'2. Conservation Measures'!FT133","v":0},{"$f":"'2. Conservation Measures'!FU133","v":0},{"$f":"'2. Conservation Measures'!FV133","v":0},{"$f":"'2. Conservation Measures'!FW133","v":0},{"$f":"'2. Conservation Measures'!FX133","v":0},{"$f":"'2. Conservation Measures'!FY133","v":0},{"$f":"'2. Conservation Measures'!FZ133","v":0},{"$f":"'2. Conservation Measures'!GA133","v":0},{"$f":"'2. Conservation Measures'!GB133","v":0},{"$f":"'2. Conservation Measures'!GC133","v":0},{"$f":"'2. Conservation Measures'!GD133","v":0},{"$f":"'2. Conservation Measures'!GE133","v":0},{"$f":"'2. Conservation Measures'!GF133","v":0},{"$f":"'2. Conservation Measures'!GG133","v":0},{"$f":"'2. Conservation Measures'!GH133","v":0},{"$f":"'2. Conservation Measures'!GI133","v":0},{"$f":"'2. Conservation Measures'!GJ133","v":0},{"$f":"'2. Conservation Measures'!GK133","v":0},{"$f":"'2. Conservation Measures'!GL133","v":0},{"$f":"'2. Conservation Measures'!GM133","v":0},{"$f":"'2. Conservation Measures'!GN133","v":0},null,{"$f":"'2. Conservation Measures'!GP133","v":0},{"$f":"'2. Conservation Measures'!GQ133","v":0},{"$f":"'2. Conservation Measures'!GR133","v":0},{"$f":"'2. Conservation Measures'!GS133","v":0},{"$f":"'2. Conservation Measures'!GT133","v":0},{"$f":"'2. Conservation Measures'!GU133","v":0},{"$f":"'2. Conservation Measures'!GV133","v":0},{"$f":"'2. Conservation Measures'!GW133","v":0},{"$f":"'2. Conservation Measures'!GX133","v":0},{"$f":"'2. Conservation Measures'!GY133","v":0},{"$f":"'2. Conservation Measures'!GZ133","v":0},{"$f":"'2. Conservation Measures'!HA133","v":0},{"$f":"'2. Conservation Measures'!HB133","v":0},{"$f":"'2. Conservation Measures'!HC133","v":0},{"$f":"'2. Conservation Measures'!HD133","v":0},{"$f":"'2. Conservation Measures'!HE133","v":0},{"$f":"'2. Conservation Measures'!HF133","v":0},{"$f":"'2. Conservation Measures'!HG133","v":0},{"$f":"'2. Conservation Measures'!HH133","v":0},{"$f":"'2. Conservation Measures'!HI133","v":0},{"$f":"'2. Conservation Measures'!HJ133","v":0},{"$f":"'2. Conservation Measures'!HK133","v":0},{"$f":"'2. Conservation Measures'!HL133","v":0},{"$f":"'2. Conservation Measures'!HM133","v":0},{"$f":"'2. Conservation Measures'!HN133","v":0},{"$f":"'2. Conservation Measures'!HO133","v":0},{"$f":"'2. Conservation Measures'!HP133","v":0},{"$f":"'2. Conservation Measures'!HQ133","v":0},{"$f":"'2. Conservation Measures'!HR133","v":0},{"$f":"'2. Conservation Measures'!HS133","v":0},{"$f":"'2. Conservation Measures'!HT133","v":0},{"$f":"'2. Conservation Measures'!HU133","v":0},{"$f":"'2. Conservation Measures'!HV133","v":0},{"$f":"'2. Conservation Measures'!HW133","v":0},{"$f":"'2. Conservation Measures'!HX133","v":0},{"$f":"'2. Conservation Measures'!HY133","v":0},{"$f":"'2. Conservation Measures'!HZ133","v":0},{"$f":"'2. Conservation Measures'!IA133","v":0},{"$f":"'2. Conservation Measures'!IB133","v":0},{"$f":"'2. Conservation Measures'!IC133","v":0},{"$f":"'2. Conservation Measures'!ID133","v":0},{"$f":"'2. Conservation Measures'!IE133","v":0},{"$f":"'2. Conservation Measures'!IF133","v":0},{"$f":"'2. Conservation Measures'!IG133","v":0},{"$f":"'2. Conservation Measures'!IH133","v":0},{"$f":"'2. Conservation Measures'!II133","v":0},{"$f":"'2. Conservation Measures'!IJ133","v":0},{"$f":"'2. Conservation Measures'!IK133","v":0},{"$f":"'2. Conservation Measures'!IL133","v":0},{"$f":"'2. Conservation Measures'!IM133","v":0},{"$f":"'2. Conservation Measures'!IN133","v":0},null,{"$f":"'2. Conservation Measures'!IP133","v":0},{"$f":"'2. Conservation Measures'!IQ133","v":0},{"$f":"'2. Conservation Measures'!IR133","v":0},{"$f":"'2. Conservation Measures'!IS133","v":0},{"$f":"'2. Conservation Measures'!IT133","v":0},{"$f":"'2. Conservation Measures'!IU133","v":0},{"$f":"'2. Conservation Measures'!IV133","v":0},{"$f":"'2. Conservation Measures'!IW133","v":0},{"$f":"'2. Conservation Measures'!IX133","v":0},{"$f":"'2. Conservation Measures'!IY133","v":0},{"$f":"'2. Conservation Measures'!IZ133","v":0},{"$f":"'2. Conservation Measures'!JA133","v":0},{"$f":"'2. Conservation Measures'!JB133","v":0},{"$f":"'2. Conservation Measures'!JC133","v":0},{"$f":"'2. Conservation Measures'!JD133","v":0},{"$f":"'2. Conservation Measures'!JE133","v":0},{"$f":"'2. Conservation Measures'!JF133","v":0},{"$f":"'2. Conservation Measures'!JG133","v":0},{"$f":"'2. Conservation Measures'!JH133","v":0},{"$f":"'2. Conservation Measures'!JI133","v":0},{"$f":"'2. Conservation Measures'!JJ133","v":0},{"$f":"'2. Conservation Measures'!JK133","v":0},{"$f":"'2. Conservation Measures'!JL133","v":0},{"$f":"'2. Conservation Measures'!JM133","v":0},{"$f":"'2. Conservation Measures'!JN133","v":0},{"$f":"'2. Conservation Measures'!JO133","v":0},{"$f":"'2. Conservation Measures'!JP133","v":0},{"$f":"'2. Conservation Measures'!JQ133","v":0},{"$f":"'2. Conservation Measures'!JR133","v":0},{"$f":"'2. Conservation Measures'!JS133","v":0},{"$f":"'2. Conservation Measures'!JT133","v":0},{"$f":"'2. Conservation Measures'!JU133","v":0},{"$f":"'2. Conservation Measures'!JV133","v":0},{"$f":"'2. Conservation Measures'!JW133","v":0},{"$f":"'2. Conservation Measures'!JX133","v":0},{"$f":"'2. Conservation Measures'!JY133","v":0},{"$f":"'2. Conservation Measures'!JZ133","v":0},{"$f":"'2. Conservation Measures'!KA133","v":0},{"$f":"'2. Conservation Measures'!KB133","v":0},{"$f":"'2. Conservation Measures'!KC133","v":0},{"$f":"'2. Conservation Measures'!KD133","v":0},{"$f":"'2. Conservation Measures'!KE133","v":0},{"$f":"'2. Conservation Measures'!KF133","v":0},{"$f":"'2. Conservation Measures'!KG133","v":0},{"$f":"'2. Conservation Measures'!KH133","v":0},{"$f":"'2. Conservation Measures'!KI133","v":0},{"$f":"'2. Conservation Measures'!KJ133","v":0},{"$f":"'2. Conservation Measures'!KK133","v":0},{"$f":"'2. Conservation Measures'!KL133","v":0},{"$f":"'2. Conservation Measures'!KM133","v":0},{"$f":"'2. Conservation Measures'!KN133","v":0}]
[null,{"$f":"'2. Conservation Measures'!B134","v":"USR-UTL-05"},{"$f":"'2. Conservation Measures'!C134","v":0},{"$f":"'2. Conservation Measures'!D134","v":"N"},null,{"$f":"'2. Conservation Measures'!AA134","v":0},null,{"$f":"'2. Conservation Measures'!AO134","v":0},{"$f":"'2. Conservation Measures'!AP134","v":0},{"$f":"'2. Conservation Measures'!AQ134","v":0},{"$f":"'2. Conservation Measures'!AR134","v":0},{"$f":"'2. Conservation Measures'!AS134","v":0},{"$f":"'2. Conservation Measures'!AT134","v":0},{"$f":"'2. Conservation Measures'!AU134","v":0},{"$f":"'2. Conservation Measures'!AV134","v":0},{"$f":"'2. Conservation Measures'!AW134","v":0},{"$f":"'2. Conservation Measures'!AX134","v":0},{"$f":"'2. Conservation Measures'!AY134","v":0},{"$f":"'2. Conservation Measures'!AZ134","v":0},{"$f":"'2. Conservation Measures'!BA134","v":0},{"$f":"'2. Conservation Measures'!BB134","v":0},{"$f":"'2. Conservation Measures'!BC134","v":0},{"$f":"'2. Conservation Measures'!BD134","v":0},{"$f":"'2. Conservation Measures'!BE134","v":0},{"$f":"'2. Conservation Measures'!BF134","v":0},{"$f":"'2. Conservation Measures'!BG134","v":0},{"$f":"'2. Conservation Measures'!BH134","v":0},{"$f":"'2. Conservation Measures'!BI134","v":0},{"$f":"'2. Conservation Measures'!BJ134","v":0},{"$f":"'2. Conservation Measures'!BK134","v":0},{"$f":"'2. Conservation Measures'!BL134","v":0},{"$f":"'2. Conservation Measures'!BM134","v":0},{"$f":"'2. Conservation Measures'!BN134","v":0},{"$f":"'2. Conservation Measures'!BO134","v":0},{"$f":"'2. Conservation Measures'!BP134","v":0},{"$f":"'2. Conservation Measures'!BQ134","v":0},{"$f":"'2. Conservation Measures'!BR134","v":0},{"$f":"'2. Conservation Measures'!BS134","v":0},{"$f":"'2. Conservation Measures'!BT134","v":0},{"$f":"'2. Conservation Measures'!BU134","v":0},{"$f":"'2. Conservation Measures'!BV134","v":0},{"$f":"'2. Conservation Measures'!BW134","v":0},{"$f":"'2. Conservation Measures'!BX134","v":0},{"$f":"'2. Conservation Measures'!BY134","v":0},{"$f":"'2. Conservation Measures'!BZ134","v":0},{"$f":"'2. Conservation Measures'!CA134","v":0},{"$f":"'2. Conservation Measures'!CB134","v":0},{"$f":"'2. Conservation Measures'!CC134","v":0},{"$f":"'2. Conservation Measures'!CD134","v":0},{"$f":"'2. Conservation Measures'!CE134","v":0},{"$f":"'2. Conservation Measures'!CF134","v":0},{"$f":"'2. Conservation Measures'!CG134","v":0},{"$f":"'2. Conservation Measures'!CH134","v":0},{"$f":"'2. Conservation Measures'!CI134","v":0},{"$f":"'2. Conservation Measures'!CJ134","v":0},{"$f":"'2. Conservation Measures'!CK134","v":0},{"$f":"'2. Conservation Measures'!CL134","v":0},{"$f":"'2. Conservation Measures'!CM134","v":0},null,{"$f":"'2. Conservation Measures'!CO134","v":0},{"$f":"'2. Conservation Measures'!CP134","v":0},{"$f":"'2. Conservation Measures'!CQ134","v":0},{"$f":"'2. Conservation Measures'!CR134","v":0},{"$f":"'2. Conservation Measures'!CS134","v":0},{"$f":"'2. Conservation Measures'!CT134","v":0},{"$f":"'2. Conservation Measures'!CU134","v":0},{"$f":"'2. Conservation Measures'!CV134","v":0},{"$f":"'2. Conservation Measures'!CW134","v":0},{"$f":"'2. Conservation Measures'!CX134","v":0},{"$f":"'2. Conservation Measures'!CY134","v":0},{"$f":"'2. Conservation Measures'!CZ134","v":0},{"$f":"'2. Conservation Measures'!DA134","v":0},{"$f":"'2. Conservation Measures'!DB134","v":0},{"$f":"'2. Conservation Measures'!DC134","v":0},{"$f":"'2. Conservation Measures'!DD134","v":0},{"$f":"'2. Conservation Measures'!DE134","v":0},{"$f":"'2. Conservation Measures'!DF134","v":0},{"$f":"'2. Conservation Measures'!DG134","v":0},{"$f":"'2. Conservation Measures'!DH134","v":0},{"$f":"'2. Conservation Measures'!DI134","v":0},{"$f":"'2. Conservation Measures'!DJ134","v":0},{"$f":"'2. Conservation Measures'!DK134","v":0},{"$f":"'2. Conservation Measures'!DL134","v":0},{"$f":"'2. Conservation Measures'!DM134","v":0},{"$f":"'2. Conservation Measures'!DN134","v":0},{"$f":"'2. Conservation Measures'!DO134","v":0},{"$f":"'2. Conservation Measures'!DP134","v":0},{"$f":"'2. Conservation Measures'!DQ134","v":0},{"$f":"'2. Conservation Measures'!DR134","v":0},{"$f":"'2. Conservation Measures'!DS134","v":0},{"$f":"'2. Conservation Measures'!DT134","v":0},{"$f":"'2. Conservation Measures'!DU134","v":0},{"$f":"'2. Conservation Measures'!DV134","v":0},{"$f":"'2. Conservation Measures'!DW134","v":0},{"$f":"'2. Conservation Measures'!DX134","v":0},{"$f":"'2. Conservation Measures'!DY134","v":0},{"$f":"'2. Conservation Measures'!DZ134","v":0},{"$f":"'2. Conservation Measures'!EA134","v":0},{"$f":"'2. Conservation Measures'!EB134","v":0},{"$f":"'2. Conservation Measures'!EC134","v":0},{"$f":"'2. Conservation Measures'!ED134","v":0},{"$f":"'2. Conservation Measures'!EE134","v":0},{"$f":"'2. Conservation Measures'!EF134","v":0},{"$f":"'2. Conservation Measures'!EG134","v":0},{"$f":"'2. Conservation Measures'!EH134","v":0},{"$f":"'2. Conservation Measures'!EI134","v":0},{"$f":"'2. Conservation Measures'!EJ134","v":0},{"$f":"'2. Conservation Measures'!EK134","v":0},{"$f":"'2. Conservation Measures'!EL134","v":0},{"$f":"'2. Conservation Measures'!EM134","v":0},null,{"$f":"'2. Conservation Measures'!KP134","v":0},{"$f":"'2. Conservation Measures'!KQ134","v":0},{"$f":"'2. Conservation Measures'!KR134","v":0},{"$f":"'2. Conservation Measures'!KS134","v":0},{"$f":"'2. Conservation Measures'!KT134","v":0},{"$f":"'2. Conservation Measures'!KU134","v":0},{"$f":"'2. Conservation Measures'!KV134","v":0},{"$f":"'2. Conservation Measures'!KW134","v":0},{"$f":"'2. Conservation Measures'!KX134","v":0},{"$f":"'2. Conservation Measures'!KY134","v":0},{"$f":"'2. Conservation Measures'!KZ134","v":0},{"$f":"'2. Conservation Measures'!LA134","v":0},{"$f":"'2. Conservation Measures'!LB134","v":0},{"$f":"'2. Conservation Measures'!LC134","v":0},{"$f":"'2. Conservation Measures'!LD134","v":0},{"$f":"'2. Conservation Measures'!LE134","v":0},{"$f":"'2. Conservation Measures'!LF134","v":0},{"$f":"'2. Conservation Measures'!LG134","v":0},{"$f":"'2. Conservation Measures'!LH134","v":0},{"$f":"'2. Conservation Measures'!LI134","v":0},{"$f":"'2. Conservation Measures'!LJ134","v":0},{"$f":"'2. Conservation Measures'!LK134","v":0},{"$f":"'2. Conservation Measures'!LL134","v":0},{"$f":"'2. Conservation Measures'!LM134","v":0},{"$f":"'2. Conservation Measures'!LN134","v":0},{"$f":"'2. Conservation Measures'!LO134","v":0},{"$f":"'2. Conservation Measures'!LP134","v":0},{"$f":"'2. Conservation Measures'!LQ134","v":0},{"$f":"'2. Conservation Measures'!LR134","v":0},{"$f":"'2. Conservation Measures'!LS134","v":0},{"$f":"'2. Conservation Measures'!LT134","v":0},{"$f":"'2. Conservation Measures'!LU134","v":0},{"$f":"'2. Conservation Measures'!LV134","v":0},{"$f":"'2. Conservation Measures'!LW134","v":0},{"$f":"'2. Conservation Measures'!LX134","v":0},{"$f":"'2. Conservation Measures'!LY134","v":0},{"$f":"'2. Conservation Measures'!LZ134","v":0},{"$f":"'2. Conservation Measures'!MA134","v":0},{"$f":"'2. Conservation Measures'!MB134","v":0},{"$f":"'2. Conservation Measures'!MC134","v":0},{"$f":"'2. Conservation Measures'!MD134","v":0},{"$f":"'2. Conservation Measures'!ME134","v":0},{"$f":"'2. Conservation Measures'!MF134","v":0},{"$f":"'2. Conservation Measures'!MG134","v":0},{"$f":"'2. Conservation Measures'!MH134","v":0},{"$f":"'2. Conservation Measures'!MI134","v":0},{"$f":"'2. Conservation Measures'!MJ134","v":0},{"$f":"'2. Conservation Measures'!MK134","v":0},{"$f":"'2. Conservation Measures'!ML134","v":0},{"$f":"'2. Conservation Measures'!MM134","v":0},{"$f":"'2. Conservation Measures'!MN134","v":0},null,{"$f":"'2. Conservation Measures'!EP134","v":0},{"$f":"'2. Conservation Measures'!EQ134","v":0},{"$f":"'2. Conservation Measures'!ER134","v":0},{"$f":"'2. Conservation Measures'!ES134","v":0},{"$f":"'2. Conservation Measures'!ET134","v":0},{"$f":"'2. Conservation Measures'!EU134","v":0},{"$f":"'2. Conservation Measures'!EV134","v":0},{"$f":"'2. Conservation Measures'!EW134","v":0},{"$f":"'2. Conservation Measures'!EX134","v":0},{"$f":"'2. Conservation Measures'!EY134","v":0},{"$f":"'2. Conservation Measures'!EZ134","v":0},{"$f":"'2. Conservation Measures'!FA134","v":0},{"$f":"'2. Conservation Measures'!FB134","v":0},{"$f":"'2. Conservation Measures'!FC134","v":0},{"$f":"'2. Conservation Measures'!FD134","v":0},{"$f":"'2. Conservation Measures'!FE134","v":0},{"$f":"'2. Conservation Measures'!FF134","v":0},{"$f":"'2. Conservation Measures'!FG134","v":0},{"$f":"'2. Conservation Measures'!FH134","v":0},{"$f":"'2. Conservation Measures'!FI134","v":0},{"$f":"'2. Conservation Measures'!FJ134","v":0},{"$f":"'2. Conservation Measures'!FK134","v":0},{"$f":"'2. Conservation Measures'!FL134","v":0},{"$f":"'2. Conservation Measures'!FM134","v":0},{"$f":"'2. Conservation Measures'!FN134","v":0},{"$f":"'2. Conservation Measures'!FO134","v":0},{"$f":"'2. Conservation Measures'!FP134","v":0},{"$f":"'2. Conservation Measures'!FQ134","v":0},{"$f":"'2. Conservation Measures'!FR134","v":0},{"$f":"'2. Conservation Measures'!FS134","v":0},{"$f":"'2. Conservation Measures'!FT134","v":0},{"$f":"'2. Conservation Measures'!FU134","v":0},{"$f":"'2. Conservation Measures'!FV134","v":0},{"$f":"'2. Conservation Measures'!FW134","v":0},{"$f":"'2. Conservation Measures'!FX134","v":0},{"$f":"'2. Conservation Measures'!FY134","v":0},{"$f":"'2. Conservation Measures'!FZ134","v":0},{"$f":"'2. Conservation Measures'!GA134","v":0},{"$f":"'2. Conservation Measures'!GB134","v":0},{"$f":"'2. Conservation Measures'!GC134","v":0},{"$f":"'2. Conservation Measures'!GD134","v":0},{"$f":"'2. Conservation Measures'!GE134","v":0},{"$f":"'2. Conservation Measures'!GF134","v":0},{"$f":"'2. Conservation Measures'!GG134","v":0},{"$f":"'2. Conservation Measures'!GH134","v":0},{"$f":"'2. Conservation Measures'!GI134","v":0},{"$f":"'2. Conservation Measures'!GJ134","v":0},{"$f":"'2. Conservation Measures'!GK134","v":0},{"$f":"'2. Conservation Measures'!GL134","v":0},{"$f":"'2. Conservation Measures'!GM134","v":0},{"$f":"'2. Conservation Measures'!GN134","v":0},null,{"$f":"'2. Conservation Measures'!GP134","v":0},{"$f":"'2. Conservation Measures'!GQ134","v":0},{"$f":"'2. Conservation Measures'!GR134","v":0},{"$f":"'2. Conservation Measures'!GS134","v":0},{"$f":"'2. Conservation Measures'!GT134","v":0},{"$f":"'2. Conservation Measures'!GU134","v":0},{"$f":"'2. Conservation Measures'!GV134","v":0},{"$f":"'2. Conservation Measures'!GW134","v":0},{"$f":"'2. Conservation Measures'!GX134","v":0},{"$f":"'2. Conservation Measures'!GY134","v":0},{"$f":"'2. Conservation Measures'!GZ134","v":0},{"$f":"'2. Conservation Measures'!HA134","v":0},{"$f":"'2. Conservation Measures'!HB134","v":0},{"$f":"'2. Conservation Measures'!HC134","v":0},{"$f":"'2. Conservation Measures'!HD134","v":0},{"$f":"'2. Conservation Measures'!HE134","v":0},{"$f":"'2. Conservation Measures'!HF134","v":0},{"$f":"'2. Conservation Measures'!HG134","v":0},{"$f":"'2. Conservation Measures'!HH134","v":0},{"$f":"'2. Conservation Measures'!HI134","v":0},{"$f":"'2. Conservation Measures'!HJ134","v":0},{"$f":"'2. Conservation Measures'!HK134","v":0},{"$f":"'2. Conservation Measures'!HL134","v":0},{"$f":"'2. Conservation Measures'!HM134","v":0},{"$f":"'2. Conservation Measures'!HN134","v":0},{"$f":"'2. Conservation Measures'!HO134","v":0},{"$f":"'2. Conservation Measures'!HP134","v":0},{"$f":"'2. Conservation Measures'!HQ134","v":0},{"$f":"'2. Conservation Measures'!HR134","v":0},{"$f":"'2. Conservation Measures'!HS134","v":0},{"$f":"'2. Conservation Measures'!HT134","v":0},{"$f":"'2. Conservation Measures'!HU134","v":0},{"$f":"'2. Conservation Measures'!HV134","v":0},{"$f":"'2. Conservation Measures'!HW134","v":0},{"$f":"'2. Conservation Measures'!HX134","v":0},{"$f":"'2. Conservation Measures'!HY134","v":0},{"$f":"'2. Conservation Measures'!HZ134","v":0},{"$f":"'2. Conservation Measures'!IA134","v":0},{"$f":"'2. Conservation Measures'!IB134","v":0},{"$f":"'2. Conservation Measures'!IC134","v":0},{"$f":"'2. Conservation Measures'!ID134","v":0},{"$f":"'2. Conservation Measures'!IE134","v":0},{"$f":"'2. Conservation Measures'!IF134","v":0},{"$f":"'2. Conservation Measures'!IG134","v":0},{"$f":"'2. Conservation Measures'!IH134","v":0},{"$f":"'2. Conservation Measures'!II134","v":0},{"$f":"'2. Conservation Measures'!IJ134","v":0},{"$f":"'2. Conservation Measures'!IK134","v":0},{"$f":"'2. Conservation Measures'!IL134","v":0},{"$f":"'2. Conservation Measures'!IM134","v":0},{"$f":"'2. Conservation Measures'!IN134","v":0},null,{"$f":"'2. Conservation Measures'!IP134","v":0},{"$f":"'2. Conservation Measures'!IQ134","v":0},{"$f":"'2. Conservation Measures'!IR134","v":0},{"$f":"'2. Conservation Measures'!IS134","v":0},{"$f":"'2. Conservation Measures'!IT134","v":0},{"$f":"'2. Conservation Measures'!IU134","v":0},{"$f":"'2. Conservation Measures'!IV134","v":0},{"$f":"'2. Conservation Measures'!IW134","v":0},{"$f":"'2. Conservation Measures'!IX134","v":0},{"$f":"'2. Conservation Measures'!IY134","v":0},{"$f":"'2. Conservation Measures'!IZ134","v":0},{"$f":"'2. Conservation Measures'!JA134","v":0},{"$f":"'2. Conservation Measures'!JB134","v":0},{"$f":"'2. Conservation Measures'!JC134","v":0},{"$f":"'2. Conservation Measures'!JD134","v":0},{"$f":"'2. Conservation Measures'!JE134","v":0},{"$f":"'2. Conservation Measures'!JF134","v":0},{"$f":"'2. Conservation Measures'!JG134","v":0},{"$f":"'2. Conservation Measures'!JH134","v":0},{"$f":"'2. Conservation Measures'!JI134","v":0},{"$f":"'2. Conservation Measures'!JJ134","v":0},{"$f":"'2. Conservation Measures'!JK134","v":0},{"$f":"'2. Conservation Measures'!JL134","v":0},{"$f":"'2. Conservation Measures'!JM134","v":0},{"$f":"'2. Conservation Measures'!JN134","v":0},{"$f":"'2. Conservation Measures'!JO134","v":0},{"$f":"'2. Conservation Measures'!JP134","v":0},{"$f":"'2. Conservation Measures'!JQ134","v":0},{"$f":"'2. Conservation Measures'!JR134","v":0},{"$f":"'2. Conservation Measures'!JS134","v":0},{"$f":"'2. Conservation Measures'!JT134","v":0},{"$f":"'2. Conservation Measures'!JU134","v":0},{"$f":"'2. Conservation Measures'!JV134","v":0},{"$f":"'2. Conservation Measures'!JW134","v":0},{"$f":"'2. Conservation Measures'!JX134","v":0},{"$f":"'2. Conservation Measures'!JY134","v":0},{"$f":"'2. Conservation Measures'!JZ134","v":0},{"$f":"'2. Conservation Measures'!KA134","v":0},{"$f":"'2. Conservation Measures'!KB134","v":0},{"$f":"'2. Conservation Measures'!KC134","v":0},{"$f":"'2. Conservation Measures'!KD134","v":0},{"$f":"'2. Conservation Measures'!KE134","v":0},{"$f":"'2. Conservation Measures'!KF134","v":0},{"$f":"'2. Conservation Measures'!KG134","v":0},{"$f":"'2. Conservation Measures'!KH134","v":0},{"$f":"'2. Conservation Measures'!KI134","v":0},{"$f":"'2. Conservation Measures'!KJ134","v":0},{"$f":"'2. Conservation Measures'!KK134","v":0},{"$f":"'2. Conservation Measures'!KL134","v":0},{"$f":"'2. Conservation Measures'!KM134","v":0},{"$f":"'2. Conservation Measures'!KN134","v":0}]
[null,{"$f":"'2. Conservation Measures'!B135","v":"USR-UTL-06"},{"$f":"'2. Conservation Measures'!C135","v":0},{"$f":"'2. Conservation Measures'!D135","v":"N"},null,{"$f":"'2. Conservation Measures'!AA135","v":0},null,{"$f":"'2. Conservation Measures'!AO135","v":0},{"$f":"'2. Conservation Measures'!AP135","v":0},{"$f":"'2. Conservation Measures'!AQ135","v":0},{"$f":"'2. Conservation Measures'!AR135","v":0},{"$f":"'2. Conservation Measures'!AS135","v":0},{"$f":"'2. Conservation Measures'!AT135","v":0},{"$f":"'2. Conservation Measures'!AU135","v":0},{"$f":"'2. Conservation Measures'!AV135","v":0},{"$f":"'2. Conservation Measures'!AW135","v":0},{"$f":"'2. Conservation Measures'!AX135","v":0},{"$f":"'2. Conservation Measures'!AY135","v":0},{"$f":"'2. Conservation Measures'!AZ135","v":0},{"$f":"'2. Conservation Measures'!BA135","v":0},{"$f":"'2. Conservation Measures'!BB135","v":0},{"$f":"'2. Conservation Measures'!BC135","v":0},{"$f":"'2. Conservation Measures'!BD135","v":0},{"$f":"'2. Conservation Measures'!BE135","v":0},{"$f":"'2. Conservation Measures'!BF135","v":0},{"$f":"'2. Conservation Measures'!BG135","v":0},{"$f":"'2. Conservation Measures'!BH135","v":0},{"$f":"'2. Conservation Measures'!BI135","v":0},{"$f":"'2. Conservation Measures'!BJ135","v":0},{"$f":"'2. Conservation Measures'!BK135","v":0},{"$f":"'2. Conservation Measures'!BL135","v":0},{"$f":"'2. Conservation Measures'!BM135","v":0},{"$f":"'2. Conservation Measures'!BN135","v":0},{"$f":"'2. Conservation Measures'!BO135","v":0},{"$f":"'2. Conservation Measures'!BP135","v":0},{"$f":"'2. Conservation Measures'!BQ135","v":0},{"$f":"'2. Conservation Measures'!BR135","v":0},{"$f":"'2. Conservation Measures'!BS135","v":0},{"$f":"'2. Conservation Measures'!BT135","v":0},{"$f":"'2. Conservation Measures'!BU135","v":0},{"$f":"'2. Conservation Measures'!BV135","v":0},{"$f":"'2. Conservation Measures'!BW135","v":0},{"$f":"'2. Conservation Measures'!BX135","v":0},{"$f":"'2. Conservation Measures'!BY135","v":0},{"$f":"'2. Conservation Measures'!BZ135","v":0},{"$f":"'2. Conservation Measures'!CA135","v":0},{"$f":"'2. Conservation Measures'!CB135","v":0},{"$f":"'2. Conservation Measures'!CC135","v":0},{"$f":"'2. Conservation Measures'!CD135","v":0},{"$f":"'2. Conservation Measures'!CE135","v":0},{"$f":"'2. Conservation Measures'!CF135","v":0},{"$f":"'2. Conservation Measures'!CG135","v":0},{"$f":"'2. Conservation Measures'!CH135","v":0},{"$f":"'2. Conservation Measures'!CI135","v":0},{"$f":"'2. Conservation Measures'!CJ135","v":0},{"$f":"'2. Conservation Measures'!CK135","v":0},{"$f":"'2. Conservation Measures'!CL135","v":0},{"$f":"'2. Conservation Measures'!CM135","v":0},null,{"$f":"'2. Conservation Measures'!CO135","v":0},{"$f":"'2. Conservation Measures'!CP135","v":0},{"$f":"'2. Conservation Measures'!CQ135","v":0},{"$f":"'2. Conservation Measures'!CR135","v":0},{"$f":"'2. Conservation Measures'!CS135","v":0},{"$f":"'2. Conservation Measures'!CT135","v":0},{"$f":"'2. Conservation Measures'!CU135","v":0},{"$f":"'2. Conservation Measures'!CV135","v":0},{"$f":"'2. Conservation Measures'!CW135","v":0},{"$f":"'2. Conservation Measures'!CX135","v":0},{"$f":"'2. Conservation Measures'!CY135","v":0},{"$f":"'2. Conservation Measures'!CZ135","v":0},{"$f":"'2. Conservation Measures'!DA135","v":0},{"$f":"'2. Conservation Measures'!DB135","v":0},{"$f":"'2. Conservation Measures'!DC135","v":0},{"$f":"'2. Conservation Measures'!DD135","v":0},{"$f":"'2. Conservation Measures'!DE135","v":0},{"$f":"'2. Conservation Measures'!DF135","v":0},{"$f":"'2. Conservation Measures'!DG135","v":0},{"$f":"'2. Conservation Measures'!DH135","v":0},{"$f":"'2. Conservation Measures'!DI135","v":0},{"$f":"'2. Conservation Measures'!DJ135","v":0},{"$f":"'2. Conservation Measures'!DK135","v":0},{"$f":"'2. Conservation Measures'!DL135","v":0},{"$f":"'2. Conservation Measures'!DM135","v":0},{"$f":"'2. Conservation Measures'!DN135","v":0},{"$f":"'2. Conservation Measures'!DO135","v":0},{"$f":"'2. Conservation Measures'!DP135","v":0},{"$f":"'2. Conservation Measures'!DQ135","v":0},{"$f":"'2. Conservation Measures'!DR135","v":0},{"$f":"'2. Conservation Measures'!DS135","v":0},{"$f":"'2. Conservation Measures'!DT135","v":0},{"$f":"'2. Conservation Measures'!DU135","v":0},{"$f":"'2. Conservation Measures'!DV135","v":0},{"$f":"'2. Conservation Measures'!DW135","v":0},{"$f":"'2. Conservation Measures'!DX135","v":0},{"$f":"'2. Conservation Measures'!DY135","v":0},{"$f":"'2. Conservation Measures'!DZ135","v":0},{"$f":"'2. Conservation Measures'!EA135","v":0},{"$f":"'2. Conservation Measures'!EB135","v":0},{"$f":"'2. Conservation Measures'!EC135","v":0},{"$f":"'2. Conservation Measures'!ED135","v":0},{"$f":"'2. Conservation Measures'!EE135","v":0},{"$f":"'2. Conservation Measures'!EF135","v":0},{"$f":"'2. Conservation Measures'!EG135","v":0},{"$f":"'2. Conservation Measures'!EH135","v":0},{"$f":"'2. Conservation Measures'!EI135","v":0},{"$f":"'2. Conservation Measures'!EJ135","v":0},{"$f":"'2. Conservation Measures'!EK135","v":0},{"$f":"'2. Conservation Measures'!EL135","v":0},{"$f":"'2. Conservation Measures'!EM135","v":0},null,{"$f":"'2. Conservation Measures'!KP135","v":0},{"$f":"'2. Conservation Measures'!KQ135","v":0},{"$f":"'2. Conservation Measures'!KR135","v":0},{"$f":"'2. Conservation Measures'!KS135","v":0},{"$f":"'2. Conservation Measures'!KT135","v":0},{"$f":"'2. Conservation Measures'!KU135","v":0},{"$f":"'2. Conservation Measures'!KV135","v":0},{"$f":"'2. Conservation Measures'!KW135","v":0},{"$f":"'2. Conservation Measures'!KX135","v":0},{"$f":"'2. Conservation Measures'!KY135","v":0},{"$f":"'2. Conservation Measures'!KZ135","v":0},{"$f":"'2. Conservation Measures'!LA135","v":0},{"$f":"'2. Conservation Measures'!LB135","v":0},{"$f":"'2. Conservation Measures'!LC135","v":0},{"$f":"'2. Conservation Measures'!LD135","v":0},{"$f":"'2. Conservation Measures'!LE135","v":0},{"$f":"'2. Conservation Measures'!LF135","v":0},{"$f":"'2. Conservation Measures'!LG135","v":0},{"$f":"'2. Conservation Measures'!LH135","v":0},{"$f":"'2. Conservation Measures'!LI135","v":0},{"$f":"'2. Conservation Measures'!LJ135","v":0},{"$f":"'2. Conservation Measures'!LK135","v":0},{"$f":"'2. Conservation Measures'!LL135","v":0},{"$f":"'2. Conservation Measures'!LM135","v":0},{"$f":"'2. Conservation Measures'!LN135","v":0},{"$f":"'2. Conservation Measures'!LO135","v":0},{"$f":"'2. Conservation Measures'!LP135","v":0},{"$f":"'2. Conservation Measures'!LQ135","v":0},{"$f":"'2. Conservation Measures'!LR135","v":0},{"$f":"'2. Conservation Measures'!LS135","v":0},{"$f":"'2. Conservation Measures'!LT135","v":0},{"$f":"'2. Conservation Measures'!LU135","v":0},{"$f":"'2. Conservation Measures'!LV135","v":0},{"$f":"'2. Conservation Measures'!LW135","v":0},{"$f":"'2. Conservation Measures'!LX135","v":0},{"$f":"'2. Conservation Measures'!LY135","v":0},{"$f":"'2. Conservation Measures'!LZ135","v":0},{"$f":"'2. Conservation Measures'!MA135","v":0},{"$f":"'2. Conservation Measures'!MB135","v":0},{"$f":"'2. Conservation Measures'!MC135","v":0},{"$f":"'2. Conservation Measures'!MD135","v":0},{"$f":"'2. Conservation Measures'!ME135","v":0},{"$f":"'2. Conservation Measures'!MF135","v":0},{"$f":"'2. Conservation Measures'!MG135","v":0},{"$f":"'2. Conservation Measures'!MH135","v":0},{"$f":"'2. Conservation Measures'!MI135","v":0},{"$f":"'2. Conservation Measures'!MJ135","v":0},{"$f":"'2. Conservation Measures'!MK135","v":0},{"$f":"'2. Conservation Measures'!ML135","v":0},{"$f":"'2. Conservation Measures'!MM135","v":0},{"$f":"'2. Conservation Measures'!MN135","v":0},null,{"$f":"'2. Conservation Measures'!EP135","v":0},{"$f":"'2. Conservation Measures'!EQ135","v":0},{"$f":"'2. Conservation Measures'!ER135","v":0},{"$f":"'2. Conservation Measures'!ES135","v":0},{"$f":"'2. Conservation Measures'!ET135","v":0},{"$f":"'2. Conservation Measures'!EU135","v":0},{"$f":"'2. Conservation Measures'!EV135","v":0},{"$f":"'2. Conservation Measures'!EW135","v":0},{"$f":"'2. Conservation Measures'!EX135","v":0},{"$f":"'2. Conservation Measures'!EY135","v":0},{"$f":"'2. Conservation Measures'!EZ135","v":0},{"$f":"'2. Conservation Measures'!FA135","v":0},{"$f":"'2. Conservation Measures'!FB135","v":0},{"$f":"'2. Conservation Measures'!FC135","v":0},{"$f":"'2. Conservation Measures'!FD135","v":0},{"$f":"'2. Conservation Measures'!FE135","v":0},{"$f":"'2. Conservation Measures'!FF135","v":0},{"$f":"'2. Conservation Measures'!FG135","v":0},{"$f":"'2. Conservation Measures'!FH135","v":0},{"$f":"'2. Conservation Measures'!FI135","v":0},{"$f":"'2. Conservation Measures'!FJ135","v":0},{"$f":"'2. Conservation Measures'!FK135","v":0},{"$f":"'2. Conservation Measures'!FL135","v":0},{"$f":"'2. Conservation Measures'!FM135","v":0},{"$f":"'2. Conservation Measures'!FN135","v":0},{"$f":"'2. Conservation Measures'!FO135","v":0},{"$f":"'2. Conservation Measures'!FP135","v":0},{"$f":"'2. Conservation Measures'!FQ135","v":0},{"$f":"'2. Conservation Measures'!FR135","v":0},{"$f":"'2. Conservation Measures'!FS135","v":0},{"$f":"'2. Conservation Measures'!FT135","v":0},{"$f":"'2. Conservation Measures'!FU135","v":0},{"$f":"'2. Conservation Measures'!FV135","v":0},{"$f":"'2. Conservation Measures'!FW135","v":0},{"$f":"'2. Conservation Measures'!FX135","v":0},{"$f":"'2. Conservation Measures'!FY135","v":0},{"$f":"'2. Conservation Measures'!FZ135","v":0},{"$f":"'2. Conservation Measures'!GA135","v":0},{"$f":"'2. Conservation Measures'!GB135","v":0},{"$f":"'2. Conservation Measures'!GC135","v":0},{"$f":"'2. Conservation Measures'!GD135","v":0},{"$f":"'2. Conservation Measures'!GE135","v":0},{"$f":"'2. Conservation Measures'!GF135","v":0},{"$f":"'2. Conservation Measures'!GG135","v":0},{"$f":"'2. Conservation Measures'!GH135","v":0},{"$f":"'2. Conservation Measures'!GI135","v":0},{"$f":"'2. Conservation Measures'!GJ135","v":0},{"$f":"'2. Conservation Measures'!GK135","v":0},{"$f":"'2. Conservation Measures'!GL135","v":0},{"$f":"'2. Conservation Measures'!GM135","v":0},{"$f":"'2. Conservation Measures'!GN135","v":0},null,{"$f":"'2. Conservation Measures'!GP135","v":0},{"$f":"'2. Conservation Measures'!GQ135","v":0},{"$f":"'2. Conservation Measures'!GR135","v":0},{"$f":"'2. Conservation Measures'!GS135","v":0},{"$f":"'2. Conservation Measures'!GT135","v":0},{"$f":"'2. Conservation Measures'!GU135","v":0},{"$f":"'2. Conservation Measures'!GV135","v":0},{"$f":"'2. Conservation Measures'!GW135","v":0},{"$f":"'2. Conservation Measures'!GX135","v":0},{"$f":"'2. Conservation Measures'!GY135","v":0},{"$f":"'2. Conservation Measures'!GZ135","v":0},{"$f":"'2. Conservation Measures'!HA135","v":0},{"$f":"'2. Conservation Measures'!HB135","v":0},{"$f":"'2. Conservation Measures'!HC135","v":0},{"$f":"'2. Conservation Measures'!HD135","v":0},{"$f":"'2. Conservation Measures'!HE135","v":0},{"$f":"'2. Conservation Measures'!HF135","v":0},{"$f":"'2. Conservation Measures'!HG135","v":0},{"$f":"'2. Conservation Measures'!HH135","v":0},{"$f":"'2. Conservation Measures'!HI135","v":0},{"$f":"'2. Conservation Measures'!HJ135","v":0},{"$f":"'2. Conservation Measures'!HK135","v":0},{"$f":"'2. Conservation Measures'!HL135","v":0},{"$f":"'2. Conservation Measures'!HM135","v":0},{"$f":"'2. Conservation Measures'!HN135","v":0},{"$f":"'2. Conservation Measures'!HO135","v":0},{"$f":"'2. Conservation Measures'!HP135","v":0},{"$f":"'2. Conservation Measures'!HQ135","v":0},{"$f":"'2. Conservation Measures'!HR135","v":0},{"$f":"'2. Conservation Measures'!HS135","v":0},{"$f":"'2. Conservation Measures'!HT135","v":0},{"$f":"'2. Conservation Measures'!HU135","v":0},{"$f":"'2. Conservation Measures'!HV135","v":0},{"$f":"'2. Conservation Measures'!HW135","v":0},{"$f":"'2. Conservation Measures'!HX135","v":0},{"$f":"'2. Conservation Measures'!HY135","v":0},{"$f":"'2. Conservation Measures'!HZ135","v":0},{"$f":"'2. Conservation Measures'!IA135","v":0},{"$f":"'2. Conservation Measures'!IB135","v":0},{"$f":"'2. Conservation Measures'!IC135","v":0},{"$f":"'2. Conservation Measures'!ID135","v":0},{"$f":"'2. Conservation Measures'!IE135","v":0},{"$f":"'2. Conservation Measures'!IF135","v":0},{"$f":"'2. Conservation Measures'!IG135","v":0},{"$f":"'2. Conservation Measures'!IH135","v":0},{"$f":"'2. Conservation Measures'!II135","v":0},{"$f":"'2. Conservation Measures'!IJ135","v":0},{"$f":"'2. Conservation Measures'!IK135","v":0},{"$f":"'2. Conservation Measures'!IL135","v":0},{"$f":"'2. Conservation Measures'!IM135","v":0},{"$f":"'2. Conservation Measures'!IN135","v":0},null,{"$f":"'2. Conservation Measures'!IP135","v":0},{"$f":"'2. Conservation Measures'!IQ135","v":0},{"$f":"'2. Conservation Measures'!IR135","v":0},{"$f":"'2. Conservation Measures'!IS135","v":0},{"$f":"'2. Conservation Measures'!IT135","v":0},{"$f":"'2. Conservation Measures'!IU135","v":0},{"$f":"'2. Conservation Measures'!IV135","v":0},{"$f":"'2. Conservation Measures'!IW135","v":0},{"$f":"'2. Conservation Measures'!IX135","v":0},{"$f":"'2. Conservation Measures'!IY135","v":0},{"$f":"'2. Conservation Measures'!IZ135","v":0},{"$f":"'2. Conservation Measures'!JA135","v":0},{"$f":"'2. Conservation Measures'!JB135","v":0},{"$f":"'2. Conservation Measures'!JC135","v":0},{"$f":"'2. Conservation Measures'!JD135","v":0},{"$f":"'2. Conservation Measures'!JE135","v":0},{"$f":"'2. Conservation Measures'!JF135","v":0},{"$f":"'2. Conservation Measures'!JG135","v":0},{"$f":"'2. Conservation Measures'!JH135","v":0},{"$f":"'2. Conservation Measures'!JI135","v":0},{"$f":"'2. Conservation Measures'!JJ135","v":0},{"$f":"'2. Conservation Measures'!JK135","v":0},{"$f":"'2. Conservation Measures'!JL135","v":0},{"$f":"'2. Conservation Measures'!JM135","v":0},{"$f":"'2. Conservation Measures'!JN135","v":0},{"$f":"'2. Conservation Measures'!JO135","v":0},{"$f":"'2. Conservation Measures'!JP135","v":0},{"$f":"'2. Conservation Measures'!JQ135","v":0},{"$f":"'2. Conservation Measures'!JR135","v":0},{"$f":"'2. Conservation Measures'!JS135","v":0},{"$f":"'2. Conservation Measures'!JT135","v":0},{"$f":"'2. Conservation Measures'!JU135","v":0},{"$f":"'2. Conservation Measures'!JV135","v":0},{"$f":"'2. Conservation Measures'!JW135","v":0},{"$f":"'2. Conservation Measures'!JX135","v":0},{"$f":"'2. Conservation Measures'!JY135","v":0},{"$f":"'2. Conservation Measures'!JZ135","v":0},{"$f":"'2. Conservation Measures'!KA135","v":0},{"$f":"'2. Conservation Measures'!KB135","v":0},{"$f":"'2. Conservation Measures'!KC135","v":0},{"$f":"'2. Conservation Measures'!KD135","v":0},{"$f":"'2. Conservation Measures'!KE135","v":0},{"$f":"'2. Conservation Measures'!KF135","v":0},{"$f":"'2. Conservation Measures'!KG135","v":0},{"$f":"'2. Conservation Measures'!KH135","v":0},{"$f":"'2. Conservation Measures'!KI135","v":0},{"$f":"'2. Conservation Measures'!KJ135","v":0},{"$f":"'2. Conservation Measures'!KK135","v":0},{"$f":"'2. Conservation Measures'!KL135","v":0},{"$f":"'2. Conservation Measures'!KM135","v":0},{"$f":"'2. Conservation Measures'!KN135","v":0}]
[null,{"$f":"'2. Conservation Measures'!B136","v":"USR-UTL-07"},{"$f":"'2. Conservation Measures'!C136","v":0},{"$f":"'2. Conservation Measures'!D136","v":"N"},null,{"$f":"'2. Conservation Measures'!AA136","v":0},null,{"$f":"'2. Conservation Measures'!AO136","v":0},{"$f":"'2. Conservation Measures'!AP136","v":0},{"$f":"'2. Conservation Measures'!AQ136","v":0},{"$f":"'2. Conservation Measures'!AR136","v":0},{"$f":"'2. Conservation Measures'!AS136","v":0},{"$f":"'2. Conservation Measures'!AT136","v":0},{"$f":"'2. Conservation Measures'!AU136","v":0},{"$f":"'2. Conservation Measures'!AV136","v":0},{"$f":"'2. Conservation Measures'!AW136","v":0},{"$f":"'2. Conservation Measures'!AX136","v":0},{"$f":"'2. Conservation Measures'!AY136","v":0},{"$f":"'2. Conservation Measures'!AZ136","v":0},{"$f":"'2. Conservation Measures'!BA136","v":0},{"$f":"'2. Conservation Measures'!BB136","v":0},{"$f":"'2. Conservation Measures'!BC136","v":0},{"$f":"'2. Conservation Measures'!BD136","v":0},{"$f":"'2. Conservation Measures'!BE136","v":0},{"$f":"'2. Conservation Measures'!BF136","v":0},{"$f":"'2. Conservation Measures'!BG136","v":0},{"$f":"'2. Conservation Measures'!BH136","v":0},{"$f":"'2. Conservation Measures'!BI136","v":0},{"$f":"'2. Conservation Measures'!BJ136","v":0},{"$f":"'2. Conservation Measures'!BK136","v":0},{"$f":"'2. Conservation Measures'!BL136","v":0},{"$f":"'2. Conservation Measures'!BM136","v":0},{"$f":"'2. Conservation Measures'!BN136","v":0},{"$f":"'2. Conservation Measures'!BO136","v":0},{"$f":"'2. Conservation Measures'!BP136","v":0},{"$f":"'2. Conservation Measures'!BQ136","v":0},{"$f":"'2. Conservation Measures'!BR136","v":0},{"$f":"'2. Conservation Measures'!BS136","v":0},{"$f":"'2. Conservation Measures'!BT136","v":0},{"$f":"'2. Conservation Measures'!BU136","v":0},{"$f":"'2. Conservation Measures'!BV136","v":0},{"$f":"'2. Conservation Measures'!BW136","v":0},{"$f":"'2. Conservation Measures'!BX136","v":0},{"$f":"'2. Conservation Measures'!BY136","v":0},{"$f":"'2. Conservation Measures'!BZ136","v":0},{"$f":"'2. Conservation Measures'!CA136","v":0},{"$f":"'2. Conservation Measures'!CB136","v":0},{"$f":"'2. Conservation Measures'!CC136","v":0},{"$f":"'2. Conservation Measures'!CD136","v":0},{"$f":"'2. Conservation Measures'!CE136","v":0},{"$f":"'2. Conservation Measures'!CF136","v":0},{"$f":"'2. Conservation Measures'!CG136","v":0},{"$f":"'2. Conservation Measures'!CH136","v":0},{"$f":"'2. Conservation Measures'!CI136","v":0},{"$f":"'2. Conservation Measures'!CJ136","v":0},{"$f":"'2. Conservation Measures'!CK136","v":0},{"$f":"'2. Conservation Measures'!CL136","v":0},{"$f":"'2. Conservation Measures'!CM136","v":0},null,{"$f":"'2. Conservation Measures'!CO136","v":0},{"$f":"'2. Conservation Measures'!CP136","v":0},{"$f":"'2. Conservation Measures'!CQ136","v":0},{"$f":"'2. Conservation Measures'!CR136","v":0},{"$f":"'2. Conservation Measures'!CS136","v":0},{"$f":"'2. Conservation Measures'!CT136","v":0},{"$f":"'2. Conservation Measures'!CU136","v":0},{"$f":"'2. Conservation Measures'!CV136","v":0},{"$f":"'2. Conservation Measures'!CW136","v":0},{"$f":"'2. Conservation Measures'!CX136","v":0},{"$f":"'2. Conservation Measures'!CY136","v":0},{"$f":"'2. Conservation Measures'!CZ136","v":0},{"$f":"'2. Conservation Measures'!DA136","v":0},{"$f":"'2. Conservation Measures'!DB136","v":0},{"$f":"'2. Conservation Measures'!DC136","v":0},{"$f":"'2. Conservation Measures'!DD136","v":0},{"$f":"'2. Conservation Measures'!DE136","v":0},{"$f":"'2. Conservation Measures'!DF136","v":0},{"$f":"'2. Conservation Measures'!DG136","v":0},{"$f":"'2. Conservation Measures'!DH136","v":0},{"$f":"'2. Conservation Measures'!DI136","v":0},{"$f":"'2. Conservation Measures'!DJ136","v":0},{"$f":"'2. Conservation Measures'!DK136","v":0},{"$f":"'2. Conservation Measures'!DL136","v":0},{"$f":"'2. Conservation Measures'!DM136","v":0},{"$f":"'2. Conservation Measures'!DN136","v":0},{"$f":"'2. Conservation Measures'!DO136","v":0},{"$f":"'2. Conservation Measures'!DP136","v":0},{"$f":"'2. Conservation Measures'!DQ136","v":0},{"$f":"'2. Conservation Measures'!DR136","v":0},{"$f":"'2. Conservation Measures'!DS136","v":0},{"$f":"'2. Conservation Measures'!DT136","v":0},{"$f":"'2. Conservation Measures'!DU136","v":0},{"$f":"'2. Conservation Measures'!DV136","v":0},{"$f":"'2. Conservation Measures'!DW136","v":0},{"$f":"'2. Conservation Measures'!DX136","v":0},{"$f":"'2. Conservation Measures'!DY136","v":0},{"$f":"'2. Conservation Measures'!DZ136","v":0},{"$f":"'2. Conservation Measures'!EA136","v":0},{"$f":"'2. Conservation Measures'!EB136","v":0},{"$f":"'2. Conservation Measures'!EC136","v":0},{"$f":"'2. Conservation Measures'!ED136","v":0},{"$f":"'2. Conservation Measures'!EE136","v":0},{"$f":"'2. Conservation Measures'!EF136","v":0},{"$f":"'2. Conservation Measures'!EG136","v":0},{"$f":"'2. Conservation Measures'!EH136","v":0},{"$f":"'2. Conservation Measures'!EI136","v":0},{"$f":"'2. Conservation Measures'!EJ136","v":0},{"$f":"'2. Conservation Measures'!EK136","v":0},{"$f":"'2. Conservation Measures'!EL136","v":0},{"$f":"'2. Conservation Measures'!EM136","v":0},null,{"$f":"'2. Conservation Measures'!KP136","v":0},{"$f":"'2. Conservation Measures'!KQ136","v":0},{"$f":"'2. Conservation Measures'!KR136","v":0},{"$f":"'2. Conservation Measures'!KS136","v":0},{"$f":"'2. Conservation Measures'!KT136","v":0},{"$f":"'2. Conservation Measures'!KU136","v":0},{"$f":"'2. Conservation Measures'!KV136","v":0},{"$f":"'2. Conservation Measures'!KW136","v":0},{"$f":"'2. Conservation Measures'!KX136","v":0},{"$f":"'2. Conservation Measures'!KY136","v":0},{"$f":"'2. Conservation Measures'!KZ136","v":0},{"$f":"'2. Conservation Measures'!LA136","v":0},{"$f":"'2. Conservation Measures'!LB136","v":0},{"$f":"'2. Conservation Measures'!LC136","v":0},{"$f":"'2. Conservation Measures'!LD136","v":0},{"$f":"'2. Conservation Measures'!LE136","v":0},{"$f":"'2. Conservation Measures'!LF136","v":0},{"$f":"'2. Conservation Measures'!LG136","v":0},{"$f":"'2. Conservation Measures'!LH136","v":0},{"$f":"'2. Conservation Measures'!LI136","v":0},{"$f":"'2. Conservation Measures'!LJ136","v":0},{"$f":"'2. Conservation Measures'!LK136","v":0},{"$f":"'2. Conservation Measures'!LL136","v":0},{"$f":"'2. Conservation Measures'!LM136","v":0},{"$f":"'2. Conservation Measures'!LN136","v":0},{"$f":"'2. Conservation Measures'!LO136","v":0},{"$f":"'2. Conservation Measures'!LP136","v":0},{"$f":"'2. Conservation Measures'!LQ136","v":0},{"$f":"'2. Conservation Measures'!LR136","v":0},{"$f":"'2. Conservation Measures'!LS136","v":0},{"$f":"'2. Conservation Measures'!LT136","v":0},{"$f":"'2. Conservation Measures'!LU136","v":0},{"$f":"'2. Conservation Measures'!LV136","v":0},{"$f":"'2. Conservation Measures'!LW136","v":0},{"$f":"'2. Conservation Measures'!LX136","v":0},{"$f":"'2. Conservation Measures'!LY136","v":0},{"$f":"'2. Conservation Measures'!LZ136","v":0},{"$f":"'2. Conservation Measures'!MA136","v":0},{"$f":"'2. Conservation Measures'!MB136","v":0},{"$f":"'2. Conservation Measures'!MC136","v":0},{"$f":"'2. Conservation Measures'!MD136","v":0},{"$f":"'2. Conservation Measures'!ME136","v":0},{"$f":"'2. Conservation Measures'!MF136","v":0},{"$f":"'2. Conservation Measures'!MG136","v":0},{"$f":"'2. Conservation Measures'!MH136","v":0},{"$f":"'2. Conservation Measures'!MI136","v":0},{"$f":"'2. Conservation Measures'!MJ136","v":0},{"$f":"'2. Conservation Measures'!MK136","v":0},{"$f":"'2. Conservation Measures'!ML136","v":0},{"$f":"'2. Conservation Measures'!MM136","v":0},{"$f":"'2. Conservation Measures'!MN136","v":0},null,{"$f":"'2. Conservation Measures'!EP136","v":0},{"$f":"'2. Conservation Measures'!EQ136","v":0},{"$f":"'2. Conservation Measures'!ER136","v":0},{"$f":"'2. Conservation Measures'!ES136","v":0},{"$f":"'2. Conservation Measures'!ET136","v":0},{"$f":"'2. Conservation Measures'!EU136","v":0},{"$f":"'2. Conservation Measures'!EV136","v":0},{"$f":"'2. Conservation Measures'!EW136","v":0},{"$f":"'2. Conservation Measures'!EX136","v":0},{"$f":"'2. Conservation Measures'!EY136","v":0},{"$f":"'2. Conservation Measures'!EZ136","v":0},{"$f":"'2. Conservation Measures'!FA136","v":0},{"$f":"'2. Conservation Measures'!FB136","v":0},{"$f":"'2. Conservation Measures'!FC136","v":0},{"$f":"'2. Conservation Measures'!FD136","v":0},{"$f":"'2. Conservation Measures'!FE136","v":0},{"$f":"'2. Conservation Measures'!FF136","v":0},{"$f":"'2. Conservation Measures'!FG136","v":0},{"$f":"'2. Conservation Measures'!FH136","v":0},{"$f":"'2. Conservation Measures'!FI136","v":0},{"$f":"'2. Conservation Measures'!FJ136","v":0},{"$f":"'2. Conservation Measures'!FK136","v":0},{"$f":"'2. Conservation Measures'!FL136","v":0},{"$f":"'2. Conservation Measures'!FM136","v":0},{"$f":"'2. Conservation Measures'!FN136","v":0},{"$f":"'2. Conservation Measures'!FO136","v":0},{"$f":"'2. Conservation Measures'!FP136","v":0},{"$f":"'2. Conservation Measures'!FQ136","v":0},{"$f":"'2. Conservation Measures'!FR136","v":0},{"$f":"'2. Conservation Measures'!FS136","v":0},{"$f":"'2. Conservation Measures'!FT136","v":0},{"$f":"'2. Conservation Measures'!FU136","v":0},{"$f":"'2. Conservation Measures'!FV136","v":0},{"$f":"'2. Conservation Measures'!FW136","v":0},{"$f":"'2. Conservation Measures'!FX136","v":0},{"$f":"'2. Conservation Measures'!FY136","v":0},{"$f":"'2. Conservation Measures'!FZ136","v":0},{"$f":"'2. Conservation Measures'!GA136","v":0},{"$f":"'2. Conservation Measures'!GB136","v":0},{"$f":"'2. Conservation Measures'!GC136","v":0},{"$f":"'2. Conservation Measures'!GD136","v":0},{"$f":"'2. Conservation Measures'!GE136","v":0},{"$f":"'2. Conservation Measures'!GF136","v":0},{"$f":"'2. Conservation Measures'!GG136","v":0},{"$f":"'2. Conservation Measures'!GH136","v":0},{"$f":"'2. Conservation Measures'!GI136","v":0},{"$f":"'2. Conservation Measures'!GJ136","v":0},{"$f":"'2. Conservation Measures'!GK136","v":0},{"$f":"'2. Conservation Measures'!GL136","v":0},{"$f":"'2. Conservation Measures'!GM136","v":0},{"$f":"'2. Conservation Measures'!GN136","v":0},null,{"$f":"'2. Conservation Measures'!GP136","v":0},{"$f":"'2. Conservation Measures'!GQ136","v":0},{"$f":"'2. Conservation Measures'!GR136","v":0},{"$f":"'2. Conservation Measures'!GS136","v":0},{"$f":"'2. Conservation Measures'!GT136","v":0},{"$f":"'2. Conservation Measures'!GU136","v":0},{"$f":"'2. Conservation Measures'!GV136","v":0},{"$f":"'2. Conservation Measures'!GW136","v":0},{"$f":"'2. Conservation Measures'!GX136","v":0},{"$f":"'2. Conservation Measures'!GY136","v":0},{"$f":"'2. Conservation Measures'!GZ136","v":0},{"$f":"'2. Conservation Measures'!HA136","v":0},{"$f":"'2. Conservation Measures'!HB136","v":0},{"$f":"'2. Conservation Measures'!HC136","v":0},{"$f":"'2. Conservation Measures'!HD136","v":0},{"$f":"'2. Conservation Measures'!HE136","v":0},{"$f":"'2. Conservation Measures'!HF136","v":0},{"$f":"'2. Conservation Measures'!HG136","v":0},{"$f":"'2. Conservation Measures'!HH136","v":0},{"$f":"'2. Conservation Measures'!HI136","v":0},{"$f":"'2. Conservation Measures'!HJ136","v":0},{"$f":"'2. Conservation Measures'!HK136","v":0},{"$f":"'2. Conservation Measures'!HL136","v":0},{"$f":"'2. Conservation Measures'!HM136","v":0},{"$f":"'2. Conservation Measures'!HN136","v":0},{"$f":"'2. Conservation Measures'!HO136","v":0},{"$f":"'2. Conservation Measures'!HP136","v":0},{"$f":"'2. Conservation Measures'!HQ136","v":0},{"$f":"'2. Conservation Measures'!HR136","v":0},{"$f":"'2. Conservation Measures'!HS136","v":0},{"$f":"'2. Conservation Measures'!HT136","v":0},{"$f":"'2. Conservation Measures'!HU136","v":0},{"$f":"'2. Conservation Measures'!HV136","v":0},{"$f":"'2. Conservation Measures'!HW136","v":0},{"$f":"'2. Conservation Measures'!HX136","v":0},{"$f":"'2. Conservation Measures'!HY136","v":0},{"$f":"'2. Conservation Measures'!HZ136","v":0},{"$f":"'2. Conservation Measures'!IA136","v":0},{"$f":"'2. Conservation Measures'!IB136","v":0},{"$f":"'2. Conservation Measures'!IC136","v":0},{"$f":"'2. Conservation Measures'!ID136","v":0},{"$f":"'2. Conservation Measures'!IE136","v":0},{"$f":"'2. Conservation Measures'!IF136","v":0},{"$f":"'2. Conservation Measures'!IG136","v":0},{"$f":"'2. Conservation Measures'!IH136","v":0},{"$f":"'2. Conservation Measures'!II136","v":0},{"$f":"'2. Conservation Measures'!IJ136","v":0},{"$f":"'2. Conservation Measures'!IK136","v":0},{"$f":"'2. Conservation Measures'!IL136","v":0},{"$f":"'2. Conservation Measures'!IM136","v":0},{"$f":"'2. Conservation Measures'!IN136","v":0},null,{"$f":"'2. Conservation Measures'!IP136","v":0},{"$f":"'2. Conservation Measures'!IQ136","v":0},{"$f":"'2. Conservation Measures'!IR136","v":0},{"$f":"'2. Conservation Measures'!IS136","v":0},{"$f":"'2. Conservation Measures'!IT136","v":0},{"$f":"'2. Conservation Measures'!IU136","v":0},{"$f":"'2. Conservation Measures'!IV136","v":0},{"$f":"'2. Conservation Measures'!IW136","v":0},{"$f":"'2. Conservation Measures'!IX136","v":0},{"$f":"'2. Conservation Measures'!IY136","v":0},{"$f":"'2. Conservation Measures'!IZ136","v":0},{"$f":"'2. Conservation Measures'!JA136","v":0},{"$f":"'2. Conservation Measures'!JB136","v":0},{"$f":"'2. Conservation Measures'!JC136","v":0},{"$f":"'2. Conservation Measures'!JD136","v":0},{"$f":"'2. Conservation Measures'!JE136","v":0},{"$f":"'2. Conservation Measures'!JF136","v":0},{"$f":"'2. Conservation Measures'!JG136","v":0},{"$f":"'2. Conservation Measures'!JH136","v":0},{"$f":"'2. Conservation Measures'!JI136","v":0},{"$f":"'2. Conservation Measures'!JJ136","v":0},{"$f":"'2. Conservation Measures'!JK136","v":0},{"$f":"'2. Conservation Measures'!JL136","v":0},{"$f":"'2. Conservation Measures'!JM136","v":0},{"$f":"'2. Conservation Measures'!JN136","v":0},{"$f":"'2. Conservation Measures'!JO136","v":0},{"$f":"'2. Conservation Measures'!JP136","v":0},{"$f":"'2. Conservation Measures'!JQ136","v":0},{"$f":"'2. Conservation Measures'!JR136","v":0},{"$f":"'2. Conservation Measures'!JS136","v":0},{"$f":"'2. Conservation Measures'!JT136","v":0},{"$f":"'2. Conservation Measures'!JU136","v":0},{"$f":"'2. Conservation Measures'!JV136","v":0},{"$f":"'2. Conservation Measures'!JW136","v":0},{"$f":"'2. Conservation Measures'!JX136","v":0},{"$f":"'2. Conservation Measures'!JY136","v":0},{"$f":"'2. Conservation Measures'!JZ136","v":0},{"$f":"'2. Conservation Measures'!KA136","v":0},{"$f":"'2. Conservation Measures'!KB136","v":0},{"$f":"'2. Conservation Measures'!KC136","v":0},{"$f":"'2. Conservation Measures'!KD136","v":0},{"$f":"'2. Conservation Measures'!KE136","v":0},{"$f":"'2. Conservation Measures'!KF136","v":0},{"$f":"'2. Conservation Measures'!KG136","v":0},{"$f":"'2. Conservation Measures'!KH136","v":0},{"$f":"'2. Conservation Measures'!KI136","v":0},{"$f":"'2. Conservation Measures'!KJ136","v":0},{"$f":"'2. Conservation Measures'!KK136","v":0},{"$f":"'2. Conservation Measures'!KL136","v":0},{"$f":"'2. Conservation Measures'!KM136","v":0},{"$f":"'2. Conservation Measures'!KN136","v":0}]
[null,{"$f":"'2. Conservation Measures'!B137","v":"USR-UTL-08"},{"$f":"'2. Conservation Measures'!C137","v":0},{"$f":"'2. Conservation Measures'!D137","v":"N"},null,{"$f":"'2. Conservation Measures'!AA137","v":0},null,{"$f":"'2. Conservation Measures'!AO137","v":0},{"$f":"'2. Conservation Measures'!AP137","v":0},{"$f":"'2. Conservation Measures'!AQ137","v":0},{"$f":"'2. Conservation Measures'!AR137","v":0},{"$f":"'2. Conservation Measures'!AS137","v":0},{"$f":"'2. Conservation Measures'!AT137","v":0},{"$f":"'2. Conservation Measures'!AU137","v":0},{"$f":"'2. Conservation Measures'!AV137","v":0},{"$f":"'2. Conservation Measures'!AW137","v":0},{"$f":"'2. Conservation Measures'!AX137","v":0},{"$f":"'2. Conservation Measures'!AY137","v":0},{"$f":"'2. Conservation Measures'!AZ137","v":0},{"$f":"'2. Conservation Measures'!BA137","v":0},{"$f":"'2. Conservation Measures'!BB137","v":0},{"$f":"'2. Conservation Measures'!BC137","v":0},{"$f":"'2. Conservation Measures'!BD137","v":0},{"$f":"'2. Conservation Measures'!BE137","v":0},{"$f":"'2. Conservation Measures'!BF137","v":0},{"$f":"'2. Conservation Measures'!BG137","v":0},{"$f":"'2. Conservation Measures'!BH137","v":0},{"$f":"'2. Conservation Measures'!BI137","v":0},{"$f":"'2. Conservation Measures'!BJ137","v":0},{"$f":"'2. Conservation Measures'!BK137","v":0},{"$f":"'2. Conservation Measures'!BL137","v":0},{"$f":"'2. Conservation Measures'!BM137","v":0},{"$f":"'2. Conservation Measures'!BN137","v":0},{"$f":"'2. Conservation Measures'!BO137","v":0},{"$f":"'2. Conservation Measures'!BP137","v":0},{"$f":"'2. Conservation Measures'!BQ137","v":0},{"$f":"'2. Conservation Measures'!BR137","v":0},{"$f":"'2. Conservation Measures'!BS137","v":0},{"$f":"'2. Conservation Measures'!BT137","v":0},{"$f":"'2. Conservation Measures'!BU137","v":0},{"$f":"'2. Conservation Measures'!BV137","v":0},{"$f":"'2. Conservation Measures'!BW137","v":0},{"$f":"'2. Conservation Measures'!BX137","v":0},{"$f":"'2. Conservation Measures'!BY137","v":0},{"$f":"'2. Conservation Measures'!BZ137","v":0},{"$f":"'2. Conservation Measures'!CA137","v":0},{"$f":"'2. Conservation Measures'!CB137","v":0},{"$f":"'2. Conservation Measures'!CC137","v":0},{"$f":"'2. Conservation Measures'!CD137","v":0},{"$f":"'2. Conservation Measures'!CE137","v":0},{"$f":"'2. Conservation Measures'!CF137","v":0},{"$f":"'2. Conservation Measures'!CG137","v":0},{"$f":"'2. Conservation Measures'!CH137","v":0},{"$f":"'2. Conservation Measures'!CI137","v":0},{"$f":"'2. Conservation Measures'!CJ137","v":0},{"$f":"'2. Conservation Measures'!CK137","v":0},{"$f":"'2. Conservation Measures'!CL137","v":0},{"$f":"'2. Conservation Measures'!CM137","v":0},null,{"$f":"'2. Conservation Measures'!CO137","v":0},{"$f":"'2. Conservation Measures'!CP137","v":0},{"$f":"'2. Conservation Measures'!CQ137","v":0},{"$f":"'2. Conservation Measures'!CR137","v":0},{"$f":"'2. Conservation Measures'!CS137","v":0},{"$f":"'2. Conservation Measures'!CT137","v":0},{"$f":"'2. Conservation Measures'!CU137","v":0},{"$f":"'2. Conservation Measures'!CV137","v":0},{"$f":"'2. Conservation Measures'!CW137","v":0},{"$f":"'2. Conservation Measures'!CX137","v":0},{"$f":"'2. Conservation Measures'!CY137","v":0},{"$f":"'2. Conservation Measures'!CZ137","v":0},{"$f":"'2. Conservation Measures'!DA137","v":0},{"$f":"'2. Conservation Measures'!DB137","v":0},{"$f":"'2. Conservation Measures'!DC137","v":0},{"$f":"'2. Conservation Measures'!DD137","v":0},{"$f":"'2. Conservation Measures'!DE137","v":0},{"$f":"'2. Conservation Measures'!DF137","v":0},{"$f":"'2. Conservation Measures'!DG137","v":0},{"$f":"'2. Conservation Measures'!DH137","v":0},{"$f":"'2. Conservation Measures'!DI137","v":0},{"$f":"'2. Conservation Measures'!DJ137","v":0},{"$f":"'2. Conservation Measures'!DK137","v":0},{"$f":"'2. Conservation Measures'!DL137","v":0},{"$f":"'2. Conservation Measures'!DM137","v":0},{"$f":"'2. Conservation Measures'!DN137","v":0},{"$f":"'2. Conservation Measures'!DO137","v":0},{"$f":"'2. Conservation Measures'!DP137","v":0},{"$f":"'2. Conservation Measures'!DQ137","v":0},{"$f":"'2. Conservation Measures'!DR137","v":0},{"$f":"'2. Conservation Measures'!DS137","v":0},{"$f":"'2. Conservation Measures'!DT137","v":0},{"$f":"'2. Conservation Measures'!DU137","v":0},{"$f":"'2. Conservation Measures'!DV137","v":0},{"$f":"'2. Conservation Measures'!DW137","v":0},{"$f":"'2. Conservation Measures'!DX137","v":0},{"$f":"'2. Conservation Measures'!DY137","v":0},{"$f":"'2. Conservation Measures'!DZ137","v":0},{"$f":"'2. Conservation Measures'!EA137","v":0},{"$f":"'2. Conservation Measures'!EB137","v":0},{"$f":"'2. Conservation Measures'!EC137","v":0},{"$f":"'2. Conservation Measures'!ED137","v":0},{"$f":"'2. Conservation Measures'!EE137","v":0},{"$f":"'2. Conservation Measures'!EF137","v":0},{"$f":"'2. Conservation Measures'!EG137","v":0},{"$f":"'2. Conservation Measures'!EH137","v":0},{"$f":"'2. Conservation Measures'!EI137","v":0},{"$f":"'2. Conservation Measures'!EJ137","v":0},{"$f":"'2. Conservation Measures'!EK137","v":0},{"$f":"'2. Conservation Measures'!EL137","v":0},{"$f":"'2. Conservation Measures'!EM137","v":0},null,{"$f":"'2. Conservation Measures'!KP137","v":0},{"$f":"'2. Conservation Measures'!KQ137","v":0},{"$f":"'2. Conservation Measures'!KR137","v":0},{"$f":"'2. Conservation Measures'!KS137","v":0},{"$f":"'2. Conservation Measures'!KT137","v":0},{"$f":"'2. Conservation Measures'!KU137","v":0},{"$f":"'2. Conservation Measures'!KV137","v":0},{"$f":"'2. Conservation Measures'!KW137","v":0},{"$f":"'2. Conservation Measures'!KX137","v":0},{"$f":"'2. Conservation Measures'!KY137","v":0},{"$f":"'2. Conservation Measures'!KZ137","v":0},{"$f":"'2. Conservation Measures'!LA137","v":0},{"$f":"'2. Conservation Measures'!LB137","v":0},{"$f":"'2. Conservation Measures'!LC137","v":0},{"$f":"'2. Conservation Measures'!LD137","v":0},{"$f":"'2. Conservation Measures'!LE137","v":0},{"$f":"'2. Conservation Measures'!LF137","v":0},{"$f":"'2. Conservation Measures'!LG137","v":0},{"$f":"'2. Conservation Measures'!LH137","v":0},{"$f":"'2. Conservation Measures'!LI137","v":0},{"$f":"'2. Conservation Measures'!LJ137","v":0},{"$f":"'2. Conservation Measures'!LK137","v":0},{"$f":"'2. Conservation Measures'!LL137","v":0},{"$f":"'2. Conservation Measures'!LM137","v":0},{"$f":"'2. Conservation Measures'!LN137","v":0},{"$f":"'2. Conservation Measures'!LO137","v":0},{"$f":"'2. Conservation Measures'!LP137","v":0},{"$f":"'2. Conservation Measures'!LQ137","v":0},{"$f":"'2. Conservation Measures'!LR137","v":0},{"$f":"'2. Conservation Measures'!LS137","v":0},{"$f":"'2. Conservation Measures'!LT137","v":0},{"$f":"'2. Conservation Measures'!LU137","v":0},{"$f":"'2. Conservation Measures'!LV137","v":0},{"$f":"'2. Conservation Measures'!LW137","v":0},{"$f":"'2. Conservation Measures'!LX137","v":0},{"$f":"'2. Conservation Measures'!LY137","v":0},{"$f":"'2. Conservation Measures'!LZ137","v":0},{"$f":"'2. Conservation Measures'!MA137","v":0},{"$f":"'2. Conservation Measures'!MB137","v":0},{"$f":"'2. Conservation Measures'!MC137","v":0},{"$f":"'2. Conservation Measures'!MD137","v":0},{"$f":"'2. Conservation Measures'!ME137","v":0},{"$f":"'2. Conservation Measures'!MF137","v":0},{"$f":"'2. Conservation Measures'!MG137","v":0},{"$f":"'2. Conservation Measures'!MH137","v":0},{"$f":"'2. Conservation Measures'!MI137","v":0},{"$f":"'2. Conservation Measures'!MJ137","v":0},{"$f":"'2. Conservation Measures'!MK137","v":0},{"$f":"'2. Conservation Measures'!ML137","v":0},{"$f":"'2. Conservation Measures'!MM137","v":0},{"$f":"'2. Conservation Measures'!MN137","v":0},null,{"$f":"'2. Conservation Measures'!EP137","v":0},{"$f":"'2. Conservation Measures'!EQ137","v":0},{"$f":"'2. Conservation Measures'!ER137","v":0},{"$f":"'2. Conservation Measures'!ES137","v":0},{"$f":"'2. Conservation Measures'!ET137","v":0},{"$f":"'2. Conservation Measures'!EU137","v":0},{"$f":"'2. Conservation Measures'!EV137","v":0},{"$f":"'2. Conservation Measures'!EW137","v":0},{"$f":"'2. Conservation Measures'!EX137","v":0},{"$f":"'2. Conservation Measures'!EY137","v":0},{"$f":"'2. Conservation Measures'!EZ137","v":0},{"$f":"'2. Conservation Measures'!FA137","v":0},{"$f":"'2. Conservation Measures'!FB137","v":0},{"$f":"'2. Conservation Measures'!FC137","v":0},{"$f":"'2. Conservation Measures'!FD137","v":0},{"$f":"'2. Conservation Measures'!FE137","v":0},{"$f":"'2. Conservation Measures'!FF137","v":0},{"$f":"'2. Conservation Measures'!FG137","v":0},{"$f":"'2. Conservation Measures'!FH137","v":0},{"$f":"'2. Conservation Measures'!FI137","v":0},{"$f":"'2. Conservation Measures'!FJ137","v":0},{"$f":"'2. Conservation Measures'!FK137","v":0},{"$f":"'2. Conservation Measures'!FL137","v":0},{"$f":"'2. Conservation Measures'!FM137","v":0},{"$f":"'2. Conservation Measures'!FN137","v":0},{"$f":"'2. Conservation Measures'!FO137","v":0},{"$f":"'2. Conservation Measures'!FP137","v":0},{"$f":"'2. Conservation Measures'!FQ137","v":0},{"$f":"'2. Conservation Measures'!FR137","v":0},{"$f":"'2. Conservation Measures'!FS137","v":0},{"$f":"'2. Conservation Measures'!FT137","v":0},{"$f":"'2. Conservation Measures'!FU137","v":0},{"$f":"'2. Conservation Measures'!FV137","v":0},{"$f":"'2. Conservation Measures'!FW137","v":0},{"$f":"'2. Conservation Measures'!FX137","v":0},{"$f":"'2. Conservation Measures'!FY137","v":0},{"$f":"'2. Conservation Measures'!FZ137","v":0},{"$f":"'2. Conservation Measures'!GA137","v":0},{"$f":"'2. Conservation Measures'!GB137","v":0},{"$f":"'2. Conservation Measures'!GC137","v":0},{"$f":"'2. Conservation Measures'!GD137","v":0},{"$f":"'2. Conservation Measures'!GE137","v":0},{"$f":"'2. Conservation Measures'!GF137","v":0},{"$f":"'2. Conservation Measures'!GG137","v":0},{"$f":"'2. Conservation Measures'!GH137","v":0},{"$f":"'2. Conservation Measures'!GI137","v":0},{"$f":"'2. Conservation Measures'!GJ137","v":0},{"$f":"'2. Conservation Measures'!GK137","v":0},{"$f":"'2. Conservation Measures'!GL137","v":0},{"$f":"'2. Conservation Measures'!GM137","v":0},{"$f":"'2. Conservation Measures'!GN137","v":0},null,{"$f":"'2. Conservation Measures'!GP137","v":0},{"$f":"'2. Conservation Measures'!GQ137","v":0},{"$f":"'2. Conservation Measures'!GR137","v":0},{"$f":"'2. Conservation Measures'!GS137","v":0},{"$f":"'2. Conservation Measures'!GT137","v":0},{"$f":"'2. Conservation Measures'!GU137","v":0},{"$f":"'2. Conservation Measures'!GV137","v":0},{"$f":"'2. Conservation Measures'!GW137","v":0},{"$f":"'2. Conservation Measures'!GX137","v":0},{"$f":"'2. Conservation Measures'!GY137","v":0},{"$f":"'2. Conservation Measures'!GZ137","v":0},{"$f":"'2. Conservation Measures'!HA137","v":0},{"$f":"'2. Conservation Measures'!HB137","v":0},{"$f":"'2. Conservation Measures'!HC137","v":0},{"$f":"'2. Conservation Measures'!HD137","v":0},{"$f":"'2. Conservation Measures'!HE137","v":0},{"$f":"'2. Conservation Measures'!HF137","v":0},{"$f":"'2. Conservation Measures'!HG137","v":0},{"$f":"'2. Conservation Measures'!HH137","v":0},{"$f":"'2. Conservation Measures'!HI137","v":0},{"$f":"'2. Conservation Measures'!HJ137","v":0},{"$f":"'2. Conservation Measures'!HK137","v":0},{"$f":"'2. Conservation Measures'!HL137","v":0},{"$f":"'2. Conservation Measures'!HM137","v":0},{"$f":"'2. Conservation Measures'!HN137","v":0},{"$f":"'2. Conservation Measures'!HO137","v":0},{"$f":"'2. Conservation Measures'!HP137","v":0},{"$f":"'2. Conservation Measures'!HQ137","v":0},{"$f":"'2. Conservation Measures'!HR137","v":0},{"$f":"'2. Conservation Measures'!HS137","v":0},{"$f":"'2. Conservation Measures'!HT137","v":0},{"$f":"'2. Conservation Measures'!HU137","v":0},{"$f":"'2. Conservation Measures'!HV137","v":0},{"$f":"'2. Conservation Measures'!HW137","v":0},{"$f":"'2. Conservation Measures'!HX137","v":0},{"$f":"'2. Conservation Measures'!HY137","v":0},{"$f":"'2. Conservation Measures'!HZ137","v":0},{"$f":"'2. Conservation Measures'!IA137","v":0},{"$f":"'2. Conservation Measures'!IB137","v":0},{"$f":"'2. Conservation Measures'!IC137","v":0},{"$f":"'2. Conservation Measures'!ID137","v":0},{"$f":"'2. Conservation Measures'!IE137","v":0},{"$f":"'2. Conservation Measures'!IF137","v":0},{"$f":"'2. Conservation Measures'!IG137","v":0},{"$f":"'2. Conservation Measures'!IH137","v":0},{"$f":"'2. Conservation Measures'!II137","v":0},{"$f":"'2. Conservation Measures'!IJ137","v":0},{"$f":"'2. Conservation Measures'!IK137","v":0},{"$f":"'2. Conservation Measures'!IL137","v":0},{"$f":"'2. Conservation Measures'!IM137","v":0},{"$f":"'2. Conservation Measures'!IN137","v":0},null,{"$f":"'2. Conservation Measures'!IP137","v":0},{"$f":"'2. Conservation Measures'!IQ137","v":0},{"$f":"'2. Conservation Measures'!IR137","v":0},{"$f":"'2. Conservation Measures'!IS137","v":0},{"$f":"'2. Conservation Measures'!IT137","v":0},{"$f":"'2. Conservation Measures'!IU137","v":0},{"$f":"'2. Conservation Measures'!IV137","v":0},{"$f":"'2. Conservation Measures'!IW137","v":0},{"$f":"'2. Conservation Measures'!IX137","v":0},{"$f":"'2. Conservation Measures'!IY137","v":0},{"$f":"'2. Conservation Measures'!IZ137","v":0},{"$f":"'2. Conservation Measures'!JA137","v":0},{"$f":"'2. Conservation Measures'!JB137","v":0},{"$f":"'2. Conservation Measures'!JC137","v":0},{"$f":"'2. Conservation Measures'!JD137","v":0},{"$f":"'2. Conservation Measures'!JE137","v":0},{"$f":"'2. Conservation Measures'!JF137","v":0},{"$f":"'2. Conservation Measures'!JG137","v":0},{"$f":"'2. Conservation Measures'!JH137","v":0},{"$f":"'2. Conservation Measures'!JI137","v":0},{"$f":"'2. Conservation Measures'!JJ137","v":0},{"$f":"'2. Conservation Measures'!JK137","v":0},{"$f":"'2. Conservation Measures'!JL137","v":0},{"$f":"'2. Conservation Measures'!JM137","v":0},{"$f":"'2. Conservation Measures'!JN137","v":0},{"$f":"'2. Conservation Measures'!JO137","v":0},{"$f":"'2. Conservation Measures'!JP137","v":0},{"$f":"'2. Conservation Measures'!JQ137","v":0},{"$f":"'2. Conservation Measures'!JR137","v":0},{"$f":"'2. Conservation Measures'!JS137","v":0},{"$f":"'2. Conservation Measures'!JT137","v":0},{"$f":"'2. Conservation Measures'!JU137","v":0},{"$f":"'2. Conservation Measures'!JV137","v":0},{"$f":"'2. Conservation Measures'!JW137","v":0},{"$f":"'2. Conservation Measures'!JX137","v":0},{"$f":"'2. Conservation Measures'!JY137","v":0},{"$f":"'2. Conservation Measures'!JZ137","v":0},{"$f":"'2. Conservation Measures'!KA137","v":0},{"$f":"'2. Conservation Measures'!KB137","v":0},{"$f":"'2. Conservation Measures'!KC137","v":0},{"$f":"'2. Conservation Measures'!KD137","v":0},{"$f":"'2. Conservation Measures'!KE137","v":0},{"$f":"'2. Conservation Measures'!KF137","v":0},{"$f":"'2. Conservation Measures'!KG137","v":0},{"$f":"'2. Conservation Measures'!KH137","v":0},{"$f":"'2. Conservation Measures'!KI137","v":0},{"$f":"'2. Conservation Measures'!KJ137","v":0},{"$f":"'2. Conservation Measures'!KK137","v":0},{"$f":"'2. Conservation Measures'!KL137","v":0},{"$f":"'2. Conservation Measures'!KM137","v":0},{"$f":"'2. Conservation Measures'!KN137","v":0}]
[null,{"$f":"'2. Conservation Measures'!B138","v":"USR-UTL-09"},{"$f":"'2. Conservation Measures'!C138","v":0},{"$f":"'2. Conservation Measures'!D138","v":"N"},null,{"$f":"'2. Conservation Measures'!AA138","v":0},null,{"$f":"'2. Conservation Measures'!AO138","v":0},{"$f":"'2. Conservation Measures'!AP138","v":0},{"$f":"'2. Conservation Measures'!AQ138","v":0},{"$f":"'2. Conservation Measures'!AR138","v":0},{"$f":"'2. Conservation Measures'!AS138","v":0},{"$f":"'2. Conservation Measures'!AT138","v":0},{"$f":"'2. Conservation Measures'!AU138","v":0},{"$f":"'2. Conservation Measures'!AV138","v":0},{"$f":"'2. Conservation Measures'!AW138","v":0},{"$f":"'2. Conservation Measures'!AX138","v":0},{"$f":"'2. Conservation Measures'!AY138","v":0},{"$f":"'2. Conservation Measures'!AZ138","v":0},{"$f":"'2. Conservation Measures'!BA138","v":0},{"$f":"'2. Conservation Measures'!BB138","v":0},{"$f":"'2. Conservation Measures'!BC138","v":0},{"$f":"'2. Conservation Measures'!BD138","v":0},{"$f":"'2. Conservation Measures'!BE138","v":0},{"$f":"'2. Conservation Measures'!BF138","v":0},{"$f":"'2. Conservation Measures'!BG138","v":0},{"$f":"'2. Conservation Measures'!BH138","v":0},{"$f":"'2. Conservation Measures'!BI138","v":0},{"$f":"'2. Conservation Measures'!BJ138","v":0},{"$f":"'2. Conservation Measures'!BK138","v":0},{"$f":"'2. Conservation Measures'!BL138","v":0},{"$f":"'2. Conservation Measures'!BM138","v":0},{"$f":"'2. Conservation Measures'!BN138","v":0},{"$f":"'2. Conservation Measures'!BO138","v":0},{"$f":"'2. Conservation Measures'!BP138","v":0},{"$f":"'2. Conservation Measures'!BQ138","v":0},{"$f":"'2. Conservation Measures'!BR138","v":0},{"$f":"'2. Conservation Measures'!BS138","v":0},{"$f":"'2. Conservation Measures'!BT138","v":0},{"$f":"'2. Conservation Measures'!BU138","v":0},{"$f":"'2. Conservation Measures'!BV138","v":0},{"$f":"'2. Conservation Measures'!BW138","v":0},{"$f":"'2. Conservation Measures'!BX138","v":0},{"$f":"'2. Conservation Measures'!BY138","v":0},{"$f":"'2. Conservation Measures'!BZ138","v":0},{"$f":"'2. Conservation Measures'!CA138","v":0},{"$f":"'2. Conservation Measures'!CB138","v":0},{"$f":"'2. Conservation Measures'!CC138","v":0},{"$f":"'2. Conservation Measures'!CD138","v":0},{"$f":"'2. Conservation Measures'!CE138","v":0},{"$f":"'2. Conservation Measures'!CF138","v":0},{"$f":"'2. Conservation Measures'!CG138","v":0},{"$f":"'2. Conservation Measures'!CH138","v":0},{"$f":"'2. Conservation Measures'!CI138","v":0},{"$f":"'2. Conservation Measures'!CJ138","v":0},{"$f":"'2. Conservation Measures'!CK138","v":0},{"$f":"'2. Conservation Measures'!CL138","v":0},{"$f":"'2. Conservation Measures'!CM138","v":0},null,{"$f":"'2. Conservation Measures'!CO138","v":0},{"$f":"'2. Conservation Measures'!CP138","v":0},{"$f":"'2. Conservation Measures'!CQ138","v":0},{"$f":"'2. Conservation Measures'!CR138","v":0},{"$f":"'2. Conservation Measures'!CS138","v":0},{"$f":"'2. Conservation Measures'!CT138","v":0},{"$f":"'2. Conservation Measures'!CU138","v":0},{"$f":"'2. Conservation Measures'!CV138","v":0},{"$f":"'2. Conservation Measures'!CW138","v":0},{"$f":"'2. Conservation Measures'!CX138","v":0},{"$f":"'2. Conservation Measures'!CY138","v":0},{"$f":"'2. Conservation Measures'!CZ138","v":0},{"$f":"'2. Conservation Measures'!DA138","v":0},{"$f":"'2. Conservation Measures'!DB138","v":0},{"$f":"'2. Conservation Measures'!DC138","v":0},{"$f":"'2. Conservation Measures'!DD138","v":0},{"$f":"'2. Conservation Measures'!DE138","v":0},{"$f":"'2. Conservation Measures'!DF138","v":0},{"$f":"'2. Conservation Measures'!DG138","v":0},{"$f":"'2. Conservation Measures'!DH138","v":0},{"$f":"'2. Conservation Measures'!DI138","v":0},{"$f":"'2. Conservation Measures'!DJ138","v":0},{"$f":"'2. Conservation Measures'!DK138","v":0},{"$f":"'2. Conservation Measures'!DL138","v":0},{"$f":"'2. Conservation Measures'!DM138","v":0},{"$f":"'2. Conservation Measures'!DN138","v":0},{"$f":"'2. Conservation Measures'!DO138","v":0},{"$f":"'2. Conservation Measures'!DP138","v":0},{"$f":"'2. Conservation Measures'!DQ138","v":0},{"$f":"'2. Conservation Measures'!DR138","v":0},{"$f":"'2. Conservation Measures'!DS138","v":0},{"$f":"'2. Conservation Measures'!DT138","v":0},{"$f":"'2. Conservation Measures'!DU138","v":0},{"$f":"'2. Conservation Measures'!DV138","v":0},{"$f":"'2. Conservation Measures'!DW138","v":0},{"$f":"'2. Conservation Measures'!DX138","v":0},{"$f":"'2. Conservation Measures'!DY138","v":0},{"$f":"'2. Conservation Measures'!DZ138","v":0},{"$f":"'2. Conservation Measures'!EA138","v":0},{"$f":"'2. Conservation Measures'!EB138","v":0},{"$f":"'2. Conservation Measures'!EC138","v":0},{"$f":"'2. Conservation Measures'!ED138","v":0},{"$f":"'2. Conservation Measures'!EE138","v":0},{"$f":"'2. Conservation Measures'!EF138","v":0},{"$f":"'2. Conservation Measures'!EG138","v":0},{"$f":"'2. Conservation Measures'!EH138","v":0},{"$f":"'2. Conservation Measures'!EI138","v":0},{"$f":"'2. Conservation Measures'!EJ138","v":0},{"$f":"'2. Conservation Measures'!EK138","v":0},{"$f":"'2. Conservation Measures'!EL138","v":0},{"$f":"'2. Conservation Measures'!EM138","v":0},null,{"$f":"'2. Conservation Measures'!KP138","v":0},{"$f":"'2. Conservation Measures'!KQ138","v":0},{"$f":"'2. Conservation Measures'!KR138","v":0},{"$f":"'2. Conservation Measures'!KS138","v":0},{"$f":"'2. Conservation Measures'!KT138","v":0},{"$f":"'2. Conservation Measures'!KU138","v":0},{"$f":"'2. Conservation Measures'!KV138","v":0},{"$f":"'2. Conservation Measures'!KW138","v":0},{"$f":"'2. Conservation Measures'!KX138","v":0},{"$f":"'2. Conservation Measures'!KY138","v":0},{"$f":"'2. Conservation Measures'!KZ138","v":0},{"$f":"'2. Conservation Measures'!LA138","v":0},{"$f":"'2. Conservation Measures'!LB138","v":0},{"$f":"'2. Conservation Measures'!LC138","v":0},{"$f":"'2. Conservation Measures'!LD138","v":0},{"$f":"'2. Conservation Measures'!LE138","v":0},{"$f":"'2. Conservation Measures'!LF138","v":0},{"$f":"'2. Conservation Measures'!LG138","v":0},{"$f":"'2. Conservation Measures'!LH138","v":0},{"$f":"'2. Conservation Measures'!LI138","v":0},{"$f":"'2. Conservation Measures'!LJ138","v":0},{"$f":"'2. Conservation Measures'!LK138","v":0},{"$f":"'2. Conservation Measures'!LL138","v":0},{"$f":"'2. Conservation Measures'!LM138","v":0},{"$f":"'2. Conservation Measures'!LN138","v":0},{"$f":"'2. Conservation Measures'!LO138","v":0},{"$f":"'2. Conservation Measures'!LP138","v":0},{"$f":"'2. Conservation Measures'!LQ138","v":0},{"$f":"'2. Conservation Measures'!LR138","v":0},{"$f":"'2. Conservation Measures'!LS138","v":0},{"$f":"'2. Conservation Measures'!LT138","v":0},{"$f":"'2. Conservation Measures'!LU138","v":0},{"$f":"'2. Conservation Measures'!LV138","v":0},{"$f":"'2. Conservation Measures'!LW138","v":0},{"$f":"'2. Conservation Measures'!LX138","v":0},{"$f":"'2. Conservation Measures'!LY138","v":0},{"$f":"'2. Conservation Measures'!LZ138","v":0},{"$f":"'2. Conservation Measures'!MA138","v":0},{"$f":"'2. Conservation Measures'!MB138","v":0},{"$f":"'2. Conservation Measures'!MC138","v":0},{"$f":"'2. Conservation Measures'!MD138","v":0},{"$f":"'2. Conservation Measures'!ME138","v":0},{"$f":"'2. Conservation Measures'!MF138","v":0},{"$f":"'2. Conservation Measures'!MG138","v":0},{"$f":"'2. Conservation Measures'!MH138","v":0},{"$f":"'2. Conservation Measures'!MI138","v":0},{"$f":"'2. Conservation Measures'!MJ138","v":0},{"$f":"'2. Conservation Measures'!MK138","v":0},{"$f":"'2. Conservation Measures'!ML138","v":0},{"$f":"'2. Conservation Measures'!MM138","v":0},{"$f":"'2. Conservation Measures'!MN138","v":0},null,{"$f":"'2. Conservation Measures'!EP138","v":0},{"$f":"'2. Conservation Measures'!EQ138","v":0},{"$f":"'2. Conservation Measures'!ER138","v":0},{"$f":"'2. Conservation Measures'!ES138","v":0},{"$f":"'2. Conservation Measures'!ET138","v":0},{"$f":"'2. Conservation Measures'!EU138","v":0},{"$f":"'2. Conservation Measures'!EV138","v":0},{"$f":"'2. Conservation Measures'!EW138","v":0},{"$f":"'2. Conservation Measures'!EX138","v":0},{"$f":"'2. Conservation Measures'!EY138","v":0},{"$f":"'2. Conservation Measures'!EZ138","v":0},{"$f":"'2. Conservation Measures'!FA138","v":0},{"$f":"'2. Conservation Measures'!FB138","v":0},{"$f":"'2. Conservation Measures'!FC138","v":0},{"$f":"'2. Conservation Measures'!FD138","v":0},{"$f":"'2. Conservation Measures'!FE138","v":0},{"$f":"'2. Conservation Measures'!FF138","v":0},{"$f":"'2. Conservation Measures'!FG138","v":0},{"$f":"'2. Conservation Measures'!FH138","v":0},{"$f":"'2. Conservation Measures'!FI138","v":0},{"$f":"'2. Conservation Measures'!FJ138","v":0},{"$f":"'2. Conservation Measures'!FK138","v":0},{"$f":"'2. Conservation Measures'!FL138","v":0},{"$f":"'2. Conservation Measures'!FM138","v":0},{"$f":"'2. Conservation Measures'!FN138","v":0},{"$f":"'2. Conservation Measures'!FO138","v":0},{"$f":"'2. Conservation Measures'!FP138","v":0},{"$f":"'2. Conservation Measures'!FQ138","v":0},{"$f":"'2. Conservation Measures'!FR138","v":0},{"$f":"'2. Conservation Measures'!FS138","v":0},{"$f":"'2. Conservation Measures'!FT138","v":0},{"$f":"'2. Conservation Measures'!FU138","v":0},{"$f":"'2. Conservation Measures'!FV138","v":0},{"$f":"'2. Conservation Measures'!FW138","v":0},{"$f":"'2. Conservation Measures'!FX138","v":0},{"$f":"'2. Conservation Measures'!FY138","v":0},{"$f":"'2. Conservation Measures'!FZ138","v":0},{"$f":"'2. Conservation Measures'!GA138","v":0},{"$f":"'2. Conservation Measures'!GB138","v":0},{"$f":"'2. Conservation Measures'!GC138","v":0},{"$f":"'2. Conservation Measures'!GD138","v":0},{"$f":"'2. Conservation Measures'!GE138","v":0},{"$f":"'2. Conservation Measures'!GF138","v":0},{"$f":"'2. Conservation Measures'!GG138","v":0},{"$f":"'2. Conservation Measures'!GH138","v":0},{"$f":"'2. Conservation Measures'!GI138","v":0},{"$f":"'2. Conservation Measures'!GJ138","v":0},{"$f":"'2. Conservation Measures'!GK138","v":0},{"$f":"'2. Conservation Measures'!GL138","v":0},{"$f":"'2. Conservation Measures'!GM138","v":0},{"$f":"'2. Conservation Measures'!GN138","v":0},null,{"$f":"'2. Conservation Measures'!GP138","v":0},{"$f":"'2. Conservation Measures'!GQ138","v":0},{"$f":"'2. Conservation Measures'!GR138","v":0},{"$f":"'2. Conservation Measures'!GS138","v":0},{"$f":"'2. Conservation Measures'!GT138","v":0},{"$f":"'2. Conservation Measures'!GU138","v":0},{"$f":"'2. Conservation Measures'!GV138","v":0},{"$f":"'2. Conservation Measures'!GW138","v":0},{"$f":"'2. Conservation Measures'!GX138","v":0},{"$f":"'2. Conservation Measures'!GY138","v":0},{"$f":"'2. Conservation Measures'!GZ138","v":0},{"$f":"'2. Conservation Measures'!HA138","v":0},{"$f":"'2. Conservation Measures'!HB138","v":0},{"$f":"'2. Conservation Measures'!HC138","v":0},{"$f":"'2. Conservation Measures'!HD138","v":0},{"$f":"'2. Conservation Measures'!HE138","v":0},{"$f":"'2. Conservation Measures'!HF138","v":0},{"$f":"'2. Conservation Measures'!HG138","v":0},{"$f":"'2. Conservation Measures'!HH138","v":0},{"$f":"'2. Conservation Measures'!HI138","v":0},{"$f":"'2. Conservation Measures'!HJ138","v":0},{"$f":"'2. Conservation Measures'!HK138","v":0},{"$f":"'2. Conservation Measures'!HL138","v":0},{"$f":"'2. Conservation Measures'!HM138","v":0},{"$f":"'2. Conservation Measures'!HN138","v":0},{"$f":"'2. Conservation Measures'!HO138","v":0},{"$f":"'2. Conservation Measures'!HP138","v":0},{"$f":"'2. Conservation Measures'!HQ138","v":0},{"$f":"'2. Conservation Measures'!HR138","v":0},{"$f":"'2. Conservation Measures'!HS138","v":0},{"$f":"'2. Conservation Measures'!HT138","v":0},{"$f":"'2. Conservation Measures'!HU138","v":0},{"$f":"'2. Conservation Measures'!HV138","v":0},{"$f":"'2. Conservation Measures'!HW138","v":0},{"$f":"'2. Conservation Measures'!HX138","v":0},{"$f":"'2. Conservation Measures'!HY138","v":0},{"$f":"'2. Conservation Measures'!HZ138","v":0},{"$f":"'2. Conservation Measures'!IA138","v":0},{"$f":"'2. Conservation Measures'!IB138","v":0},{"$f":"'2. Conservation Measures'!IC138","v":0},{"$f":"'2. Conservation Measures'!ID138","v":0},{"$f":"'2. Conservation Measures'!IE138","v":0},{"$f":"'2. Conservation Measures'!IF138","v":0},{"$f":"'2. Conservation Measures'!IG138","v":0},{"$f":"'2. Conservation Measures'!IH138","v":0},{"$f":"'2. Conservation Measures'!II138","v":0},{"$f":"'2. Conservation Measures'!IJ138","v":0},{"$f":"'2. Conservation Measures'!IK138","v":0},{"$f":"'2. Conservation Measures'!IL138","v":0},{"$f":"'2. Conservation Measures'!IM138","v":0},{"$f":"'2. Conservation Measures'!IN138","v":0},null,{"$f":"'2. Conservation Measures'!IP138","v":0},{"$f":"'2. Conservation Measures'!IQ138","v":0},{"$f":"'2. Conservation Measures'!IR138","v":0},{"$f":"'2. Conservation Measures'!IS138","v":0},{"$f":"'2. Conservation Measures'!IT138","v":0},{"$f":"'2. Conservation Measures'!IU138","v":0},{"$f":"'2. Conservation Measures'!IV138","v":0},{"$f":"'2. Conservation Measures'!IW138","v":0},{"$f":"'2. Conservation Measures'!IX138","v":0},{"$f":"'2. Conservation Measures'!IY138","v":0},{"$f":"'2. Conservation Measures'!IZ138","v":0},{"$f":"'2. Conservation Measures'!JA138","v":0},{"$f":"'2. Conservation Measures'!JB138","v":0},{"$f":"'2. Conservation Measures'!JC138","v":0},{"$f":"'2. Conservation Measures'!JD138","v":0},{"$f":"'2. Conservation Measures'!JE138","v":0},{"$f":"'2. Conservation Measures'!JF138","v":0},{"$f":"'2. Conservation Measures'!JG138","v":0},{"$f":"'2. Conservation Measures'!JH138","v":0},{"$f":"'2. Conservation Measures'!JI138","v":0},{"$f":"'2. Conservation Measures'!JJ138","v":0},{"$f":"'2. Conservation Measures'!JK138","v":0},{"$f":"'2. Conservation Measures'!JL138","v":0},{"$f":"'2. Conservation Measures'!JM138","v":0},{"$f":"'2. Conservation Measures'!JN138","v":0},{"$f":"'2. Conservation Measures'!JO138","v":0},{"$f":"'2. Conservation Measures'!JP138","v":0},{"$f":"'2. Conservation Measures'!JQ138","v":0},{"$f":"'2. Conservation Measures'!JR138","v":0},{"$f":"'2. Conservation Measures'!JS138","v":0},{"$f":"'2. Conservation Measures'!JT138","v":0},{"$f":"'2. Conservation Measures'!JU138","v":0},{"$f":"'2. Conservation Measures'!JV138","v":0},{"$f":"'2. Conservation Measures'!JW138","v":0},{"$f":"'2. Conservation Measures'!JX138","v":0},{"$f":"'2. Conservation Measures'!JY138","v":0},{"$f":"'2. Conservation Measures'!JZ138","v":0},{"$f":"'2. Conservation Measures'!KA138","v":0},{"$f":"'2. Conservation Measures'!KB138","v":0},{"$f":"'2. Conservation Measures'!KC138","v":0},{"$f":"'2. Conservation Measures'!KD138","v":0},{"$f":"'2. Conservation Measures'!KE138","v":0},{"$f":"'2. Conservation Measures'!KF138","v":0},{"$f":"'2. Conservation Measures'!KG138","v":0},{"$f":"'2. Conservation Measures'!KH138","v":0},{"$f":"'2. Conservation Measures'!KI138","v":0},{"$f":"'2. Conservation Measures'!KJ138","v":0},{"$f":"'2. Conservation Measures'!KK138","v":0},{"$f":"'2. Conservation Measures'!KL138","v":0},{"$f":"'2. Conservation Measures'!KM138","v":0},{"$f":"'2. Conservation Measures'!KN138","v":0}]
[null,{"$f":"'2. Conservation Measures'!B139","v":"USR-UTL-10"},{"$f":"'2. Conservation Measures'!C139","v":0},{"$f":"'2. Conservation Measures'!D139","v":"N"},null,{"$f":"'2. Conservation Measures'!AA139","v":0},null,{"$f":"'2. Conservation Measures'!AO139","v":0},{"$f":"'2. Conservation Measures'!AP139","v":0},{"$f":"'2. Conservation Measures'!AQ139","v":0},{"$f":"'2. Conservation Measures'!AR139","v":0},{"$f":"'2. Conservation Measures'!AS139","v":0},{"$f":"'2. Conservation Measures'!AT139","v":0},{"$f":"'2. Conservation Measures'!AU139","v":0},{"$f":"'2. Conservation Measures'!AV139","v":0},{"$f":"'2. Conservation Measures'!AW139","v":0},{"$f":"'2. Conservation Measures'!AX139","v":0},{"$f":"'2. Conservation Measures'!AY139","v":0},{"$f":"'2. Conservation Measures'!AZ139","v":0},{"$f":"'2. Conservation Measures'!BA139","v":0},{"$f":"'2. Conservation Measures'!BB139","v":0},{"$f":"'2. Conservation Measures'!BC139","v":0},{"$f":"'2. Conservation Measures'!BD139","v":0},{"$f":"'2. Conservation Measures'!BE139","v":0},{"$f":"'2. Conservation Measures'!BF139","v":0},{"$f":"'2. Conservation Measures'!BG139","v":0},{"$f":"'2. Conservation Measures'!BH139","v":0},{"$f":"'2. Conservation Measures'!BI139","v":0},{"$f":"'2. Conservation Measures'!BJ139","v":0},{"$f":"'2. Conservation Measures'!BK139","v":0},{"$f":"'2. Conservation Measures'!BL139","v":0},{"$f":"'2. Conservation Measures'!BM139","v":0},{"$f":"'2. Conservation Measures'!BN139","v":0},{"$f":"'2. Conservation Measures'!BO139","v":0},{"$f":"'2. Conservation Measures'!BP139","v":0},{"$f":"'2. Conservation Measures'!BQ139","v":0},{"$f":"'2. Conservation Measures'!BR139","v":0},{"$f":"'2. Conservation Measures'!BS139","v":0},{"$f":"'2. Conservation Measures'!BT139","v":0},{"$f":"'2. Conservation Measures'!BU139","v":0},{"$f":"'2. Conservation Measures'!BV139","v":0},{"$f":"'2. Conservation Measures'!BW139","v":0},{"$f":"'2. Conservation Measures'!BX139","v":0},{"$f":"'2. Conservation Measures'!BY139","v":0},{"$f":"'2. Conservation Measures'!BZ139","v":0},{"$f":"'2. Conservation Measures'!CA139","v":0},{"$f":"'2. Conservation Measures'!CB139","v":0},{"$f":"'2. Conservation Measures'!CC139","v":0},{"$f":"'2. Conservation Measures'!CD139","v":0},{"$f":"'2. Conservation Measures'!CE139","v":0},{"$f":"'2. Conservation Measures'!CF139","v":0},{"$f":"'2. Conservation Measures'!CG139","v":0},{"$f":"'2. Conservation Measures'!CH139","v":0},{"$f":"'2. Conservation Measures'!CI139","v":0},{"$f":"'2. Conservation Measures'!CJ139","v":0},{"$f":"'2. Conservation Measures'!CK139","v":0},{"$f":"'2. Conservation Measures'!CL139","v":0},{"$f":"'2. Conservation Measures'!CM139","v":0},null,{"$f":"'2. Conservation Measures'!CO139","v":0},{"$f":"'2. Conservation Measures'!CP139","v":0},{"$f":"'2. Conservation Measures'!CQ139","v":0},{"$f":"'2. Conservation Measures'!CR139","v":0},{"$f":"'2. Conservation Measures'!CS139","v":0},{"$f":"'2. Conservation Measures'!CT139","v":0},{"$f":"'2. Conservation Measures'!CU139","v":0},{"$f":"'2. Conservation Measures'!CV139","v":0},{"$f":"'2. Conservation Measures'!CW139","v":0},{"$f":"'2. Conservation Measures'!CX139","v":0},{"$f":"'2. Conservation Measures'!CY139","v":0},{"$f":"'2. Conservation Measures'!CZ139","v":0},{"$f":"'2. Conservation Measures'!DA139","v":0},{"$f":"'2. Conservation Measures'!DB139","v":0},{"$f":"'2. Conservation Measures'!DC139","v":0},{"$f":"'2. Conservation Measures'!DD139","v":0},{"$f":"'2. Conservation Measures'!DE139","v":0},{"$f":"'2. Conservation Measures'!DF139","v":0},{"$f":"'2. Conservation Measures'!DG139","v":0},{"$f":"'2. Conservation Measures'!DH139","v":0},{"$f":"'2. Conservation Measures'!DI139","v":0},{"$f":"'2. Conservation Measures'!DJ139","v":0},{"$f":"'2. Conservation Measures'!DK139","v":0},{"$f":"'2. Conservation Measures'!DL139","v":0},{"$f":"'2. Conservation Measures'!DM139","v":0},{"$f":"'2. Conservation Measures'!DN139","v":0},{"$f":"'2. Conservation Measures'!DO139","v":0},{"$f":"'2. Conservation Measures'!DP139","v":0},{"$f":"'2. Conservation Measures'!DQ139","v":0},{"$f":"'2. Conservation Measures'!DR139","v":0},{"$f":"'2. Conservation Measures'!DS139","v":0},{"$f":"'2. Conservation Measures'!DT139","v":0},{"$f":"'2. Conservation Measures'!DU139","v":0},{"$f":"'2. Conservation Measures'!DV139","v":0},{"$f":"'2. Conservation Measures'!DW139","v":0},{"$f":"'2. Conservation Measures'!DX139","v":0},{"$f":"'2. Conservation Measures'!DY139","v":0},{"$f":"'2. Conservation Measures'!DZ139","v":0},{"$f":"'2. Conservation Measures'!EA139","v":0},{"$f":"'2. Conservation Measures'!EB139","v":0},{"$f":"'2. Conservation Measures'!EC139","v":0},{"$f":"'2. Conservation Measures'!ED139","v":0},{"$f":"'2. Conservation Measures'!EE139","v":0},{"$f":"'2. Conservation Measures'!EF139","v":0},{"$f":"'2. Conservation Measures'!EG139","v":0},{"$f":"'2. Conservation Measures'!EH139","v":0},{"$f":"'2. Conservation Measures'!EI139","v":0},{"$f":"'2. Conservation Measures'!EJ139","v":0},{"$f":"'2. Conservation Measures'!EK139","v":0},{"$f":"'2. Conservation Measures'!EL139","v":0},{"$f":"'2. Conservation Measures'!EM139","v":0},null,{"$f":"'2. Conservation Measures'!KP139","v":0},{"$f":"'2. Conservation Measures'!KQ139","v":0},{"$f":"'2. Conservation Measures'!KR139","v":0},{"$f":"'2. Conservation Measures'!KS139","v":0},{"$f":"'2. Conservation Measures'!KT139","v":0},{"$f":"'2. Conservation Measures'!KU139","v":0},{"$f":"'2. Conservation Measures'!KV139","v":0},{"$f":"'2. Conservation Measures'!KW139","v":0},{"$f":"'2. Conservation Measures'!KX139","v":0},{"$f":"'2. Conservation Measures'!KY139","v":0},{"$f":"'2. Conservation Measures'!KZ139","v":0},{"$f":"'2. Conservation Measures'!LA139","v":0},{"$f":"'2. Conservation Measures'!LB139","v":0},{"$f":"'2. Conservation Measures'!LC139","v":0},{"$f":"'2. Conservation Measures'!LD139","v":0},{"$f":"'2. Conservation Measures'!LE139","v":0},{"$f":"'2. Conservation Measures'!LF139","v":0},{"$f":"'2. Conservation Measures'!LG139","v":0},{"$f":"'2. Conservation Measures'!LH139","v":0},{"$f":"'2. Conservation Measures'!LI139","v":0},{"$f":"'2. Conservation Measures'!LJ139","v":0},{"$f":"'2. Conservation Measures'!LK139","v":0},{"$f":"'2. Conservation Measures'!LL139","v":0},{"$f":"'2. Conservation Measures'!LM139","v":0},{"$f":"'2. Conservation Measures'!LN139","v":0},{"$f":"'2. Conservation Measures'!LO139","v":0},{"$f":"'2. Conservation Measures'!LP139","v":0},{"$f":"'2. Conservation Measures'!LQ139","v":0},{"$f":"'2. Conservation Measures'!LR139","v":0},{"$f":"'2. Conservation Measures'!LS139","v":0},{"$f":"'2. Conservation Measures'!LT139","v":0},{"$f":"'2. Conservation Measures'!LU139","v":0},{"$f":"'2. Conservation Measures'!LV139","v":0},{"$f":"'2. Conservation Measures'!LW139","v":0},{"$f":"'2. Conservation Measures'!LX139","v":0},{"$f":"'2. Conservation Measures'!LY139","v":0},{"$f":"'2. Conservation Measures'!LZ139","v":0},{"$f":"'2. Conservation Measures'!MA139","v":0},{"$f":"'2. Conservation Measures'!MB139","v":0},{"$f":"'2. Conservation Measures'!MC139","v":0},{"$f":"'2. Conservation Measures'!MD139","v":0},{"$f":"'2. Conservation Measures'!ME139","v":0},{"$f":"'2. Conservation Measures'!MF139","v":0},{"$f":"'2. Conservation Measures'!MG139","v":0},{"$f":"'2. Conservation Measures'!MH139","v":0},{"$f":"'2. Conservation Measures'!MI139","v":0},{"$f":"'2. Conservation Measures'!MJ139","v":0},{"$f":"'2. Conservation Measures'!MK139","v":0},{"$f":"'2. Conservation Measures'!ML139","v":0},{"$f":"'2. Conservation Measures'!MM139","v":0},{"$f":"'2. Conservation Measures'!MN139","v":0},null,{"$f":"'2. Conservation Measures'!EP139","v":0},{"$f":"'2. Conservation Measures'!EQ139","v":0},{"$f":"'2. Conservation Measures'!ER139","v":0},{"$f":"'2. Conservation Measures'!ES139","v":0},{"$f":"'2. Conservation Measures'!ET139","v":0},{"$f":"'2. Conservation Measures'!EU139","v":0},{"$f":"'2. Conservation Measures'!EV139","v":0},{"$f":"'2. Conservation Measures'!EW139","v":0},{"$f":"'2. Conservation Measures'!EX139","v":0},{"$f":"'2. Conservation Measures'!EY139","v":0},{"$f":"'2. Conservation Measures'!EZ139","v":0},{"$f":"'2. Conservation Measures'!FA139","v":0},{"$f":"'2. Conservation Measures'!FB139","v":0},{"$f":"'2. Conservation Measures'!FC139","v":0},{"$f":"'2. Conservation Measures'!FD139","v":0},{"$f":"'2. Conservation Measures'!FE139","v":0},{"$f":"'2. Conservation Measures'!FF139","v":0},{"$f":"'2. Conservation Measures'!FG139","v":0},{"$f":"'2. Conservation Measures'!FH139","v":0},{"$f":"'2. Conservation Measures'!FI139","v":0},{"$f":"'2. Conservation Measures'!FJ139","v":0},{"$f":"'2. Conservation Measures'!FK139","v":0},{"$f":"'2. Conservation Measures'!FL139","v":0},{"$f":"'2. Conservation Measures'!FM139","v":0},{"$f":"'2. Conservation Measures'!FN139","v":0},{"$f":"'2. Conservation Measures'!FO139","v":0},{"$f":"'2. Conservation Measures'!FP139","v":0},{"$f":"'2. Conservation Measures'!FQ139","v":0},{"$f":"'2. Conservation Measures'!FR139","v":0},{"$f":"'2. Conservation Measures'!FS139","v":0},{"$f":"'2. Conservation Measures'!FT139","v":0},{"$f":"'2. Conservation Measures'!FU139","v":0},{"$f":"'2. Conservation Measures'!FV139","v":0},{"$f":"'2. Conservation Measures'!FW139","v":0},{"$f":"'2. Conservation Measures'!FX139","v":0},{"$f":"'2. Conservation Measures'!FY139","v":0},{"$f":"'2. Conservation Measures'!FZ139","v":0},{"$f":"'2. Conservation Measures'!GA139","v":0},{"$f":"'2. Conservation Measures'!GB139","v":0},{"$f":"'2. Conservation Measures'!GC139","v":0},{"$f":"'2. Conservation Measures'!GD139","v":0},{"$f":"'2. Conservation Measures'!GE139","v":0},{"$f":"'2. Conservation Measures'!GF139","v":0},{"$f":"'2. Conservation Measures'!GG139","v":0},{"$f":"'2. Conservation Measures'!GH139","v":0},{"$f":"'2. Conservation Measures'!GI139","v":0},{"$f":"'2. Conservation Measures'!GJ139","v":0},{"$f":"'2. Conservation Measures'!GK139","v":0},{"$f":"'2. Conservation Measures'!GL139","v":0},{"$f":"'2. Conservation Measures'!GM139","v":0},{"$f":"'2. Conservation Measures'!GN139","v":0},null,{"$f":"'2. Conservation Measures'!GP139","v":0},{"$f":"'2. Conservation Measures'!GQ139","v":0},{"$f":"'2. Conservation Measures'!GR139","v":0},{"$f":"'2. Conservation Measures'!GS139","v":0},{"$f":"'2. Conservation Measures'!GT139","v":0},{"$f":"'2. Conservation Measures'!GU139","v":0},{"$f":"'2. Conservation Measures'!GV139","v":0},{"$f":"'2. Conservation Measures'!GW139","v":0},{"$f":"'2. Conservation Measures'!GX139","v":0},{"$f":"'2. Conservation Measures'!GY139","v":0},{"$f":"'2. Conservation Measures'!GZ139","v":0},{"$f":"'2. Conservation Measures'!HA139","v":0},{"$f":"'2. Conservation Measures'!HB139","v":0},{"$f":"'2. Conservation Measures'!HC139","v":0},{"$f":"'2. Conservation Measures'!HD139","v":0},{"$f":"'2. Conservation Measures'!HE139","v":0},{"$f":"'2. Conservation Measures'!HF139","v":0},{"$f":"'2. Conservation Measures'!HG139","v":0},{"$f":"'2. Conservation Measures'!HH139","v":0},{"$f":"'2. Conservation Measures'!HI139","v":0},{"$f":"'2. Conservation Measures'!HJ139","v":0},{"$f":"'2. Conservation Measures'!HK139","v":0},{"$f":"'2. Conservation Measures'!HL139","v":0},{"$f":"'2. Conservation Measures'!HM139","v":0},{"$f":"'2. Conservation Measures'!HN139","v":0},{"$f":"'2. Conservation Measures'!HO139","v":0},{"$f":"'2. Conservation Measures'!HP139","v":0},{"$f":"'2. Conservation Measures'!HQ139","v":0},{"$f":"'2. Conservation Measures'!HR139","v":0},{"$f":"'2. Conservation Measures'!HS139","v":0},{"$f":"'2. Conservation Measures'!HT139","v":0},{"$f":"'2. Conservation Measures'!HU139","v":0},{"$f":"'2. Conservation Measures'!HV139","v":0},{"$f":"'2. Conservation Measures'!HW139","v":0},{"$f":"'2. Conservation Measures'!HX139","v":0},{"$f":"'2. Conservation Measures'!HY139","v":0},{"$f":"'2. Conservation Measures'!HZ139","v":0},{"$f":"'2. Conservation Measures'!IA139","v":0},{"$f":"'2. Conservation Measures'!IB139","v":0},{"$f":"'2. Conservation Measures'!IC139","v":0},{"$f":"'2. Conservation Measures'!ID139","v":0},{"$f":"'2. Conservation Measures'!IE139","v":0},{"$f":"'2. Conservation Measures'!IF139","v":0},{"$f":"'2. Conservation Measures'!IG139","v":0},{"$f":"'2. Conservation Measures'!IH139","v":0},{"$f":"'2. Conservation Measures'!II139","v":0},{"$f":"'2. Conservation Measures'!IJ139","v":0},{"$f":"'2. Conservation Measures'!IK139","v":0},{"$f":"'2. Conservation Measures'!IL139","v":0},{"$f":"'2. Conservation Measures'!IM139","v":0},{"$f":"'2. Conservation Measures'!IN139","v":0},null,{"$f":"'2. Conservation Measures'!IP139","v":0},{"$f":"'2. Conservation Measures'!IQ139","v":0},{"$f":"'2. Conservation Measures'!IR139","v":0},{"$f":"'2. Conservation Measures'!IS139","v":0},{"$f":"'2. Conservation Measures'!IT139","v":0},{"$f":"'2. Conservation Measures'!IU139","v":0},{"$f":"'2. Conservation Measures'!IV139","v":0},{"$f":"'2. Conservation Measures'!IW139","v":0},{"$f":"'2. Conservation Measures'!IX139","v":0},{"$f":"'2. Conservation Measures'!IY139","v":0},{"$f":"'2. Conservation Measures'!IZ139","v":0},{"$f":"'2. Conservation Measures'!JA139","v":0},{"$f":"'2. Conservation Measures'!JB139","v":0},{"$f":"'2. Conservation Measures'!JC139","v":0},{"$f":"'2. Conservation Measures'!JD139","v":0},{"$f":"'2. Conservation Measures'!JE139","v":0},{"$f":"'2. Conservation Measures'!JF139","v":0},{"$f":"'2. Conservation Measures'!JG139","v":0},{"$f":"'2. Conservation Measures'!JH139","v":0},{"$f":"'2. Conservation Measures'!JI139","v":0},{"$f":"'2. Conservation Measures'!JJ139","v":0},{"$f":"'2. Conservation Measures'!JK139","v":0},{"$f":"'2. Conservation Measures'!JL139","v":0},{"$f":"'2. Conservation Measures'!JM139","v":0},{"$f":"'2. Conservation Measures'!JN139","v":0},{"$f":"'2. Conservation Measures'!JO139","v":0},{"$f":"'2. Conservation Measures'!JP139","v":0},{"$f":"'2. Conservation Measures'!JQ139","v":0},{"$f":"'2. Conservation Measures'!JR139","v":0},{"$f":"'2. Conservation Measures'!JS139","v":0},{"$f":"'2. Conservation Measures'!JT139","v":0},{"$f":"'2. Conservation Measures'!JU139","v":0},{"$f":"'2. Conservation Measures'!JV139","v":0},{"$f":"'2. Conservation Measures'!JW139","v":0},{"$f":"'2. Conservation Measures'!JX139","v":0},{"$f":"'2. Conservation Measures'!JY139","v":0},{"$f":"'2. Conservation Measures'!JZ139","v":0},{"$f":"'2. Conservation Measures'!KA139","v":0},{"$f":"'2. Conservation Measures'!KB139","v":0},{"$f":"'2. Conservation Measures'!KC139","v":0},{"$f":"'2. Conservation Measures'!KD139","v":0},{"$f":"'2. Conservation Measures'!KE139","v":0},{"$f":"'2. Conservation Measures'!KF139","v":0},{"$f":"'2. Conservation Measures'!KG139","v":0},{"$f":"'2. Conservation Measures'!KH139","v":0},{"$f":"'2. Conservation Measures'!KI139","v":0},{"$f":"'2. Conservation Measures'!KJ139","v":0},{"$f":"'2. Conservation Measures'!KK139","v":0},{"$f":"'2. Conservation Measures'!KL139","v":0},{"$f":"'2. Conservation Measures'!KM139","v":0},{"$f":"'2. Conservation Measures'!KN139","v":0}]
[null,{"$f":"'2. Conservation Measures'!B140","v":"USR-UTL-11"},{"$f":"'2. Conservation Measures'!C140","v":0},{"$f":"'2. Conservation Measures'!D140","v":"N"},null,{"$f":"'2. Conservation Measures'!AA140","v":0},null,{"$f":"'2. Conservation Measures'!AO140","v":0},{"$f":"'2. Conservation Measures'!AP140","v":0},{"$f":"'2. Conservation Measures'!AQ140","v":0},{"$f":"'2. Conservation Measures'!AR140","v":0},{"$f":"'2. Conservation Measures'!AS140","v":0},{"$f":"'2. Conservation Measures'!AT140","v":0},{"$f":"'2. Conservation Measures'!AU140","v":0},{"$f":"'2. Conservation Measures'!AV140","v":0},{"$f":"'2. Conservation Measures'!AW140","v":0},{"$f":"'2. Conservation Measures'!AX140","v":0},{"$f":"'2. Conservation Measures'!AY140","v":0},{"$f":"'2. Conservation Measures'!AZ140","v":0},{"$f":"'2. Conservation Measures'!BA140","v":0},{"$f":"'2. Conservation Measures'!BB140","v":0},{"$f":"'2. Conservation Measures'!BC140","v":0},{"$f":"'2. Conservation Measures'!BD140","v":0},{"$f":"'2. Conservation Measures'!BE140","v":0},{"$f":"'2. Conservation Measures'!BF140","v":0},{"$f":"'2. Conservation Measures'!BG140","v":0},{"$f":"'2. Conservation Measures'!BH140","v":0},{"$f":"'2. Conservation Measures'!BI140","v":0},{"$f":"'2. Conservation Measures'!BJ140","v":0},{"$f":"'2. Conservation Measures'!BK140","v":0},{"$f":"'2. Conservation Measures'!BL140","v":0},{"$f":"'2. Conservation Measures'!BM140","v":0},{"$f":"'2. Conservation Measures'!BN140","v":0},{"$f":"'2. Conservation Measures'!BO140","v":0},{"$f":"'2. Conservation Measures'!BP140","v":0},{"$f":"'2. Conservation Measures'!BQ140","v":0},{"$f":"'2. Conservation Measures'!BR140","v":0},{"$f":"'2. Conservation Measures'!BS140","v":0},{"$f":"'2. Conservation Measures'!BT140","v":0},{"$f":"'2. Conservation Measures'!BU140","v":0},{"$f":"'2. Conservation Measures'!BV140","v":0},{"$f":"'2. Conservation Measures'!BW140","v":0},{"$f":"'2. Conservation Measures'!BX140","v":0},{"$f":"'2. Conservation Measures'!BY140","v":0},{"$f":"'2. Conservation Measures'!BZ140","v":0},{"$f":"'2. Conservation Measures'!CA140","v":0},{"$f":"'2. Conservation Measures'!CB140","v":0},{"$f":"'2. Conservation Measures'!CC140","v":0},{"$f":"'2. Conservation Measures'!CD140","v":0},{"$f":"'2. Conservation Measures'!CE140","v":0},{"$f":"'2. Conservation Measures'!CF140","v":0},{"$f":"'2. Conservation Measures'!CG140","v":0},{"$f":"'2. Conservation Measures'!CH140","v":0},{"$f":"'2. Conservation Measures'!CI140","v":0},{"$f":"'2. Conservation Measures'!CJ140","v":0},{"$f":"'2. Conservation Measures'!CK140","v":0},{"$f":"'2. Conservation Measures'!CL140","v":0},{"$f":"'2. Conservation Measures'!CM140","v":0},null,{"$f":"'2. Conservation Measures'!CO140","v":0},{"$f":"'2. Conservation Measures'!CP140","v":0},{"$f":"'2. Conservation Measures'!CQ140","v":0},{"$f":"'2. Conservation Measures'!CR140","v":0},{"$f":"'2. Conservation Measures'!CS140","v":0},{"$f":"'2. Conservation Measures'!CT140","v":0},{"$f":"'2. Conservation Measures'!CU140","v":0},{"$f":"'2. Conservation Measures'!CV140","v":0},{"$f":"'2. Conservation Measures'!CW140","v":0},{"$f":"'2. Conservation Measures'!CX140","v":0},{"$f":"'2. Conservation Measures'!CY140","v":0},{"$f":"'2. Conservation Measures'!CZ140","v":0},{"$f":"'2. Conservation Measures'!DA140","v":0},{"$f":"'2. Conservation Measures'!DB140","v":0},{"$f":"'2. Conservation Measures'!DC140","v":0},{"$f":"'2. Conservation Measures'!DD140","v":0},{"$f":"'2. Conservation Measures'!DE140","v":0},{"$f":"'2. Conservation Measures'!DF140","v":0},{"$f":"'2. Conservation Measures'!DG140","v":0},{"$f":"'2. Conservation Measures'!DH140","v":0},{"$f":"'2. Conservation Measures'!DI140","v":0},{"$f":"'2. Conservation Measures'!DJ140","v":0},{"$f":"'2. Conservation Measures'!DK140","v":0},{"$f":"'2. Conservation Measures'!DL140","v":0},{"$f":"'2. Conservation Measures'!DM140","v":0},{"$f":"'2. Conservation Measures'!DN140","v":0},{"$f":"'2. Conservation Measures'!DO140","v":0},{"$f":"'2. Conservation Measures'!DP140","v":0},{"$f":"'2. Conservation Measures'!DQ140","v":0},{"$f":"'2. Conservation Measures'!DR140","v":0},{"$f":"'2. Conservation Measures'!DS140","v":0},{"$f":"'2. Conservation Measures'!DT140","v":0},{"$f":"'2. Conservation Measures'!DU140","v":0},{"$f":"'2. Conservation Measures'!DV140","v":0},{"$f":"'2. Conservation Measures'!DW140","v":0},{"$f":"'2. Conservation Measures'!DX140","v":0},{"$f":"'2. Conservation Measures'!DY140","v":0},{"$f":"'2. Conservation Measures'!DZ140","v":0},{"$f":"'2. Conservation Measures'!EA140","v":0},{"$f":"'2. Conservation Measures'!EB140","v":0},{"$f":"'2. Conservation Measures'!EC140","v":0},{"$f":"'2. Conservation Measures'!ED140","v":0},{"$f":"'2. Conservation Measures'!EE140","v":0},{"$f":"'2. Conservation Measures'!EF140","v":0},{"$f":"'2. Conservation Measures'!EG140","v":0},{"$f":"'2. Conservation Measures'!EH140","v":0},{"$f":"'2. Conservation Measures'!EI140","v":0},{"$f":"'2. Conservation Measures'!EJ140","v":0},{"$f":"'2. Conservation Measures'!EK140","v":0},{"$f":"'2. Conservation Measures'!EL140","v":0},{"$f":"'2. Conservation Measures'!EM140","v":0},null,{"$f":"'2. Conservation Measures'!KP140","v":0},{"$f":"'2. Conservation Measures'!KQ140","v":0},{"$f":"'2. Conservation Measures'!KR140","v":0},{"$f":"'2. Conservation Measures'!KS140","v":0},{"$f":"'2. Conservation Measures'!KT140","v":0},{"$f":"'2. Conservation Measures'!KU140","v":0},{"$f":"'2. Conservation Measures'!KV140","v":0},{"$f":"'2. Conservation Measures'!KW140","v":0},{"$f":"'2. Conservation Measures'!KX140","v":0},{"$f":"'2. Conservation Measures'!KY140","v":0},{"$f":"'2. Conservation Measures'!KZ140","v":0},{"$f":"'2. Conservation Measures'!LA140","v":0},{"$f":"'2. Conservation Measures'!LB140","v":0},{"$f":"'2. Conservation Measures'!LC140","v":0},{"$f":"'2. Conservation Measures'!LD140","v":0},{"$f":"'2. Conservation Measures'!LE140","v":0},{"$f":"'2. Conservation Measures'!LF140","v":0},{"$f":"'2. Conservation Measures'!LG140","v":0},{"$f":"'2. Conservation Measures'!LH140","v":0},{"$f":"'2. Conservation Measures'!LI140","v":0},{"$f":"'2. Conservation Measures'!LJ140","v":0},{"$f":"'2. Conservation Measures'!LK140","v":0},{"$f":"'2. Conservation Measures'!LL140","v":0},{"$f":"'2. Conservation Measures'!LM140","v":0},{"$f":"'2. Conservation Measures'!LN140","v":0},{"$f":"'2. Conservation Measures'!LO140","v":0},{"$f":"'2. Conservation Measures'!LP140","v":0},{"$f":"'2. Conservation Measures'!LQ140","v":0},{"$f":"'2. Conservation Measures'!LR140","v":0},{"$f":"'2. Conservation Measures'!LS140","v":0},{"$f":"'2. Conservation Measures'!LT140","v":0},{"$f":"'2. Conservation Measures'!LU140","v":0},{"$f":"'2. Conservation Measures'!LV140","v":0},{"$f":"'2. Conservation Measures'!LW140","v":0},{"$f":"'2. Conservation Measures'!LX140","v":0},{"$f":"'2. Conservation Measures'!LY140","v":0},{"$f":"'2. Conservation Measures'!LZ140","v":0},{"$f":"'2. Conservation Measures'!MA140","v":0},{"$f":"'2. Conservation Measures'!MB140","v":0},{"$f":"'2. Conservation Measures'!MC140","v":0},{"$f":"'2. Conservation Measures'!MD140","v":0},{"$f":"'2. Conservation Measures'!ME140","v":0},{"$f":"'2. Conservation Measures'!MF140","v":0},{"$f":"'2. Conservation Measures'!MG140","v":0},{"$f":"'2. Conservation Measures'!MH140","v":0},{"$f":"'2. Conservation Measures'!MI140","v":0},{"$f":"'2. Conservation Measures'!MJ140","v":0},{"$f":"'2. Conservation Measures'!MK140","v":0},{"$f":"'2. Conservation Measures'!ML140","v":0},{"$f":"'2. Conservation Measures'!MM140","v":0},{"$f":"'2. Conservation Measures'!MN140","v":0},null,{"$f":"'2. Conservation Measures'!EP140","v":0},{"$f":"'2. Conservation Measures'!EQ140","v":0},{"$f":"'2. Conservation Measures'!ER140","v":0},{"$f":"'2. Conservation Measures'!ES140","v":0},{"$f":"'2. Conservation Measures'!ET140","v":0},{"$f":"'2. Conservation Measures'!EU140","v":0},{"$f":"'2. Conservation Measures'!EV140","v":0},{"$f":"'2. Conservation Measures'!EW140","v":0},{"$f":"'2. Conservation Measures'!EX140","v":0},{"$f":"'2. Conservation Measures'!EY140","v":0},{"$f":"'2. Conservation Measures'!EZ140","v":0},{"$f":"'2. Conservation Measures'!FA140","v":0},{"$f":"'2. Conservation Measures'!FB140","v":0},{"$f":"'2. Conservation Measures'!FC140","v":0},{"$f":"'2. Conservation Measures'!FD140","v":0},{"$f":"'2. Conservation Measures'!FE140","v":0},{"$f":"'2. Conservation Measures'!FF140","v":0},{"$f":"'2. Conservation Measures'!FG140","v":0},{"$f":"'2. Conservation Measures'!FH140","v":0},{"$f":"'2. Conservation Measures'!FI140","v":0},{"$f":"'2. Conservation Measures'!FJ140","v":0},{"$f":"'2. Conservation Measures'!FK140","v":0},{"$f":"'2. Conservation Measures'!FL140","v":0},{"$f":"'2. Conservation Measures'!FM140","v":0},{"$f":"'2. Conservation Measures'!FN140","v":0},{"$f":"'2. Conservation Measures'!FO140","v":0},{"$f":"'2. Conservation Measures'!FP140","v":0},{"$f":"'2. Conservation Measures'!FQ140","v":0},{"$f":"'2. Conservation Measures'!FR140","v":0},{"$f":"'2. Conservation Measures'!FS140","v":0},{"$f":"'2. Conservation Measures'!FT140","v":0},{"$f":"'2. Conservation Measures'!FU140","v":0},{"$f":"'2. Conservation Measures'!FV140","v":0},{"$f":"'2. Conservation Measures'!FW140","v":0},{"$f":"'2. Conservation Measures'!FX140","v":0},{"$f":"'2. Conservation Measures'!FY140","v":0},{"$f":"'2. Conservation Measures'!FZ140","v":0},{"$f":"'2. Conservation Measures'!GA140","v":0},{"$f":"'2. Conservation Measures'!GB140","v":0},{"$f":"'2. Conservation Measures'!GC140","v":0},{"$f":"'2. Conservation Measures'!GD140","v":0},{"$f":"'2. Conservation Measures'!GE140","v":0},{"$f":"'2. Conservation Measures'!GF140","v":0},{"$f":"'2. Conservation Measures'!GG140","v":0},{"$f":"'2. Conservation Measures'!GH140","v":0},{"$f":"'2. Conservation Measures'!GI140","v":0},{"$f":"'2. Conservation Measures'!GJ140","v":0},{"$f":"'2. Conservation Measures'!GK140","v":0},{"$f":"'2. Conservation Measures'!GL140","v":0},{"$f":"'2. Conservation Measures'!GM140","v":0},{"$f":"'2. Conservation Measures'!GN140","v":0},null,{"$f":"'2. Conservation Measures'!GP140","v":0},{"$f":"'2. Conservation Measures'!GQ140","v":0},{"$f":"'2. Conservation Measures'!GR140","v":0},{"$f":"'2. Conservation Measures'!GS140","v":0},{"$f":"'2. Conservation Measures'!GT140","v":0},{"$f":"'2. Conservation Measures'!GU140","v":0},{"$f":"'2. Conservation Measures'!GV140","v":0},{"$f":"'2. Conservation Measures'!GW140","v":0},{"$f":"'2. Conservation Measures'!GX140","v":0},{"$f":"'2. Conservation Measures'!GY140","v":0},{"$f":"'2. Conservation Measures'!GZ140","v":0},{"$f":"'2. Conservation Measures'!HA140","v":0},{"$f":"'2. Conservation Measures'!HB140","v":0},{"$f":"'2. Conservation Measures'!HC140","v":0},{"$f":"'2. Conservation Measures'!HD140","v":0},{"$f":"'2. Conservation Measures'!HE140","v":0},{"$f":"'2. Conservation Measures'!HF140","v":0},{"$f":"'2. Conservation Measures'!HG140","v":0},{"$f":"'2. Conservation Measures'!HH140","v":0},{"$f":"'2. Conservation Measures'!HI140","v":0},{"$f":"'2. Conservation Measures'!HJ140","v":0},{"$f":"'2. Conservation Measures'!HK140","v":0},{"$f":"'2. Conservation Measures'!HL140","v":0},{"$f":"'2. Conservation Measures'!HM140","v":0},{"$f":"'2. Conservation Measures'!HN140","v":0},{"$f":"'2. Conservation Measures'!HO140","v":0},{"$f":"'2. Conservation Measures'!HP140","v":0},{"$f":"'2. Conservation Measures'!HQ140","v":0},{"$f":"'2. Conservation Measures'!HR140","v":0},{"$f":"'2. Conservation Measures'!HS140","v":0},{"$f":"'2. Conservation Measures'!HT140","v":0},{"$f":"'2. Conservation Measures'!HU140","v":0},{"$f":"'2. Conservation Measures'!HV140","v":0},{"$f":"'2. Conservation Measures'!HW140","v":0},{"$f":"'2. Conservation Measures'!HX140","v":0},{"$f":"'2. Conservation Measures'!HY140","v":0},{"$f":"'2. Conservation Measures'!HZ140","v":0},{"$f":"'2. Conservation Measures'!IA140","v":0},{"$f":"'2. Conservation Measures'!IB140","v":0},{"$f":"'2. Conservation Measures'!IC140","v":0},{"$f":"'2. Conservation Measures'!ID140","v":0},{"$f":"'2. Conservation Measures'!IE140","v":0},{"$f":"'2. Conservation Measures'!IF140","v":0},{"$f":"'2. Conservation Measures'!IG140","v":0},{"$f":"'2. Conservation Measures'!IH140","v":0},{"$f":"'2. Conservation Measures'!II140","v":0},{"$f":"'2. Conservation Measures'!IJ140","v":0},{"$f":"'2. Conservation Measures'!IK140","v":0},{"$f":"'2. Conservation Measures'!IL140","v":0},{"$f":"'2. Conservation Measures'!IM140","v":0},{"$f":"'2. Conservation Measures'!IN140","v":0},null,{"$f":"'2. Conservation Measures'!IP140","v":0},{"$f":"'2. Conservation Measures'!IQ140","v":0},{"$f":"'2. Conservation Measures'!IR140","v":0},{"$f":"'2. Conservation Measures'!IS140","v":0},{"$f":"'2. Conservation Measures'!IT140","v":0},{"$f":"'2. Conservation Measures'!IU140","v":0},{"$f":"'2. Conservation Measures'!IV140","v":0},{"$f":"'2. Conservation Measures'!IW140","v":0},{"$f":"'2. Conservation Measures'!IX140","v":0},{"$f":"'2. Conservation Measures'!IY140","v":0},{"$f":"'2. Conservation Measures'!IZ140","v":0},{"$f":"'2. Conservation Measures'!JA140","v":0},{"$f":"'2. Conservation Measures'!JB140","v":0},{"$f":"'2. Conservation Measures'!JC140","v":0},{"$f":"'2. Conservation Measures'!JD140","v":0},{"$f":"'2. Conservation Measures'!JE140","v":0},{"$f":"'2. Conservation Measures'!JF140","v":0},{"$f":"'2. Conservation Measures'!JG140","v":0},{"$f":"'2. Conservation Measures'!JH140","v":0},{"$f":"'2. Conservation Measures'!JI140","v":0},{"$f":"'2. Conservation Measures'!JJ140","v":0},{"$f":"'2. Conservation Measures'!JK140","v":0},{"$f":"'2. Conservation Measures'!JL140","v":0},{"$f":"'2. Conservation Measures'!JM140","v":0},{"$f":"'2. Conservation Measures'!JN140","v":0},{"$f":"'2. Conservation Measures'!JO140","v":0},{"$f":"'2. Conservation Measures'!JP140","v":0},{"$f":"'2. Conservation Measures'!JQ140","v":0},{"$f":"'2. Conservation Measures'!JR140","v":0},{"$f":"'2. Conservation Measures'!JS140","v":0},{"$f":"'2. Conservation Measures'!JT140","v":0},{"$f":"'2. Conservation Measures'!JU140","v":0},{"$f":"'2. Conservation Measures'!JV140","v":0},{"$f":"'2. Conservation Measures'!JW140","v":0},{"$f":"'2. Conservation Measures'!JX140","v":0},{"$f":"'2. Conservation Measures'!JY140","v":0},{"$f":"'2. Conservation Measures'!JZ140","v":0},{"$f":"'2. Conservation Measures'!KA140","v":0},{"$f":"'2. Conservation Measures'!KB140","v":0},{"$f":"'2. Conservation Measures'!KC140","v":0},{"$f":"'2. Conservation Measures'!KD140","v":0},{"$f":"'2. Conservation Measures'!KE140","v":0},{"$f":"'2. Conservation Measures'!KF140","v":0},{"$f":"'2. Conservation Measures'!KG140","v":0},{"$f":"'2. Conservation Measures'!KH140","v":0},{"$f":"'2. Conservation Measures'!KI140","v":0},{"$f":"'2. Conservation Measures'!KJ140","v":0},{"$f":"'2. Conservation Measures'!KK140","v":0},{"$f":"'2. Conservation Measures'!KL140","v":0},{"$f":"'2. Conservation Measures'!KM140","v":0},{"$f":"'2. Conservation Measures'!KN140","v":0}]
[null,{"$f":"'2. Conservation Measures'!B141","v":"USR-UTL-12"},{"$f":"'2. Conservation Measures'!C141","v":0},{"$f":"'2. Conservation Measures'!D141","v":"N"},null,{"$f":"'2. Conservation Measures'!AA141","v":0},null,{"$f":"'2. Conservation Measures'!AO141","v":0},{"$f":"'2. Conservation Measures'!AP141","v":0},{"$f":"'2. Conservation Measures'!AQ141","v":0},{"$f":"'2. Conservation Measures'!AR141","v":0},{"$f":"'2. Conservation Measures'!AS141","v":0},{"$f":"'2. Conservation Measures'!AT141","v":0},{"$f":"'2. Conservation Measures'!AU141","v":0},{"$f":"'2. Conservation Measures'!AV141","v":0},{"$f":"'2. Conservation Measures'!AW141","v":0},{"$f":"'2. Conservation Measures'!AX141","v":0},{"$f":"'2. Conservation Measures'!AY141","v":0},{"$f":"'2. Conservation Measures'!AZ141","v":0},{"$f":"'2. Conservation Measures'!BA141","v":0},{"$f":"'2. Conservation Measures'!BB141","v":0},{"$f":"'2. Conservation Measures'!BC141","v":0},{"$f":"'2. Conservation Measures'!BD141","v":0},{"$f":"'2. Conservation Measures'!BE141","v":0},{"$f":"'2. Conservation Measures'!BF141","v":0},{"$f":"'2. Conservation Measures'!BG141","v":0},{"$f":"'2. Conservation Measures'!BH141","v":0},{"$f":"'2. Conservation Measures'!BI141","v":0},{"$f":"'2. Conservation Measures'!BJ141","v":0},{"$f":"'2. Conservation Measures'!BK141","v":0},{"$f":"'2. Conservation Measures'!BL141","v":0},{"$f":"'2. Conservation Measures'!BM141","v":0},{"$f":"'2. Conservation Measures'!BN141","v":0},{"$f":"'2. Conservation Measures'!BO141","v":0},{"$f":"'2. Conservation Measures'!BP141","v":0},{"$f":"'2. Conservation Measures'!BQ141","v":0},{"$f":"'2. Conservation Measures'!BR141","v":0},{"$f":"'2. Conservation Measures'!BS141","v":0},{"$f":"'2. Conservation Measures'!BT141","v":0},{"$f":"'2. Conservation Measures'!BU141","v":0},{"$f":"'2. Conservation Measures'!BV141","v":0},{"$f":"'2. Conservation Measures'!BW141","v":0},{"$f":"'2. Conservation Measures'!BX141","v":0},{"$f":"'2. Conservation Measures'!BY141","v":0},{"$f":"'2. Conservation Measures'!BZ141","v":0},{"$f":"'2. Conservation Measures'!CA141","v":0},{"$f":"'2. Conservation Measures'!CB141","v":0},{"$f":"'2. Conservation Measures'!CC141","v":0},{"$f":"'2. Conservation Measures'!CD141","v":0},{"$f":"'2. Conservation Measures'!CE141","v":0},{"$f":"'2. Conservation Measures'!CF141","v":0},{"$f":"'2. Conservation Measures'!CG141","v":0},{"$f":"'2. Conservation Measures'!CH141","v":0},{"$f":"'2. Conservation Measures'!CI141","v":0},{"$f":"'2. Conservation Measures'!CJ141","v":0},{"$f":"'2. Conservation Measures'!CK141","v":0},{"$f":"'2. Conservation Measures'!CL141","v":0},{"$f":"'2. Conservation Measures'!CM141","v":0},null,{"$f":"'2. Conservation Measures'!CO141","v":0},{"$f":"'2. Conservation Measures'!CP141","v":0},{"$f":"'2. Conservation Measures'!CQ141","v":0},{"$f":"'2. Conservation Measures'!CR141","v":0},{"$f":"'2. Conservation Measures'!CS141","v":0},{"$f":"'2. Conservation Measures'!CT141","v":0},{"$f":"'2. Conservation Measures'!CU141","v":0},{"$f":"'2. Conservation Measures'!CV141","v":0},{"$f":"'2. Conservation Measures'!CW141","v":0},{"$f":"'2. Conservation Measures'!CX141","v":0},{"$f":"'2. Conservation Measures'!CY141","v":0},{"$f":"'2. Conservation Measures'!CZ141","v":0},{"$f":"'2. Conservation Measures'!DA141","v":0},{"$f":"'2. Conservation Measures'!DB141","v":0},{"$f":"'2. Conservation Measures'!DC141","v":0},{"$f":"'2. Conservation Measures'!DD141","v":0},{"$f":"'2. Conservation Measures'!DE141","v":0},{"$f":"'2. Conservation Measures'!DF141","v":0},{"$f":"'2. Conservation Measures'!DG141","v":0},{"$f":"'2. Conservation Measures'!DH141","v":0},{"$f":"'2. Conservation Measures'!DI141","v":0},{"$f":"'2. Conservation Measures'!DJ141","v":0},{"$f":"'2. Conservation Measures'!DK141","v":0},{"$f":"'2. Conservation Measures'!DL141","v":0},{"$f":"'2. Conservation Measures'!DM141","v":0},{"$f":"'2. Conservation Measures'!DN141","v":0},{"$f":"'2. Conservation Measures'!DO141","v":0},{"$f":"'2. Conservation Measures'!DP141","v":0},{"$f":"'2. Conservation Measures'!DQ141","v":0},{"$f":"'2. Conservation Measures'!DR141","v":0},{"$f":"'2. Conservation Measures'!DS141","v":0},{"$f":"'2. Conservation Measures'!DT141","v":0},{"$f":"'2. Conservation Measures'!DU141","v":0},{"$f":"'2. Conservation Measures'!DV141","v":0},{"$f":"'2. Conservation Measures'!DW141","v":0},{"$f":"'2. Conservation Measures'!DX141","v":0},{"$f":"'2. Conservation Measures'!DY141","v":0},{"$f":"'2. Conservation Measures'!DZ141","v":0},{"$f":"'2. Conservation Measures'!EA141","v":0},{"$f":"'2. Conservation Measures'!EB141","v":0},{"$f":"'2. Conservation Measures'!EC141","v":0},{"$f":"'2. Conservation Measures'!ED141","v":0},{"$f":"'2. Conservation Measures'!EE141","v":0},{"$f":"'2. Conservation Measures'!EF141","v":0},{"$f":"'2. Conservation Measures'!EG141","v":0},{"$f":"'2. Conservation Measures'!EH141","v":0},{"$f":"'2. Conservation Measures'!EI141","v":0},{"$f":"'2. Conservation Measures'!EJ141","v":0},{"$f":"'2. Conservation Measures'!EK141","v":0},{"$f":"'2. Conservation Measures'!EL141","v":0},{"$f":"'2. Conservation Measures'!EM141","v":0},null,{"$f":"'2. Conservation Measures'!KP141","v":0},{"$f":"'2. Conservation Measures'!KQ141","v":0},{"$f":"'2. Conservation Measures'!KR141","v":0},{"$f":"'2. Conservation Measures'!KS141","v":0},{"$f":"'2. Conservation Measures'!KT141","v":0},{"$f":"'2. Conservation Measures'!KU141","v":0},{"$f":"'2. Conservation Measures'!KV141","v":0},{"$f":"'2. Conservation Measures'!KW141","v":0},{"$f":"'2. Conservation Measures'!KX141","v":0},{"$f":"'2. Conservation Measures'!KY141","v":0},{"$f":"'2. Conservation Measures'!KZ141","v":0},{"$f":"'2. Conservation Measures'!LA141","v":0},{"$f":"'2. Conservation Measures'!LB141","v":0},{"$f":"'2. Conservation Measures'!LC141","v":0},{"$f":"'2. Conservation Measures'!LD141","v":0},{"$f":"'2. Conservation Measures'!LE141","v":0},{"$f":"'2. Conservation Measures'!LF141","v":0},{"$f":"'2. Conservation Measures'!LG141","v":0},{"$f":"'2. Conservation Measures'!LH141","v":0},{"$f":"'2. Conservation Measures'!LI141","v":0},{"$f":"'2. Conservation Measures'!LJ141","v":0},{"$f":"'2. Conservation Measures'!LK141","v":0},{"$f":"'2. Conservation Measures'!LL141","v":0},{"$f":"'2. Conservation Measures'!LM141","v":0},{"$f":"'2. Conservation Measures'!LN141","v":0},{"$f":"'2. Conservation Measures'!LO141","v":0},{"$f":"'2. Conservation Measures'!LP141","v":0},{"$f":"'2. Conservation Measures'!LQ141","v":0},{"$f":"'2. Conservation Measures'!LR141","v":0},{"$f":"'2. Conservation Measures'!LS141","v":0},{"$f":"'2. Conservation Measures'!LT141","v":0},{"$f":"'2. Conservation Measures'!LU141","v":0},{"$f":"'2. Conservation Measures'!LV141","v":0},{"$f":"'2. Conservation Measures'!LW141","v":0},{"$f":"'2. Conservation Measures'!LX141","v":0},{"$f":"'2. Conservation Measures'!LY141","v":0},{"$f":"'2. Conservation Measures'!LZ141","v":0},{"$f":"'2. Conservation Measures'!MA141","v":0},{"$f":"'2. Conservation Measures'!MB141","v":0},{"$f":"'2. Conservation Measures'!MC141","v":0},{"$f":"'2. Conservation Measures'!MD141","v":0},{"$f":"'2. Conservation Measures'!ME141","v":0},{"$f":"'2. Conservation Measures'!MF141","v":0},{"$f":"'2. Conservation Measures'!MG141","v":0},{"$f":"'2. Conservation Measures'!MH141","v":0},{"$f":"'2. Conservation Measures'!MI141","v":0},{"$f":"'2. Conservation Measures'!MJ141","v":0},{"$f":"'2. Conservation Measures'!MK141","v":0},{"$f":"'2. Conservation Measures'!ML141","v":0},{"$f":"'2. Conservation Measures'!MM141","v":0},{"$f":"'2. Conservation Measures'!MN141","v":0},null,{"$f":"'2. Conservation Measures'!EP141","v":0},{"$f":"'2. Conservation Measures'!EQ141","v":0},{"$f":"'2. Conservation Measures'!ER141","v":0},{"$f":"'2. Conservation Measures'!ES141","v":0},{"$f":"'2. Conservation Measures'!ET141","v":0},{"$f":"'2. Conservation Measures'!EU141","v":0},{"$f":"'2. Conservation Measures'!EV141","v":0},{"$f":"'2. Conservation Measures'!EW141","v":0},{"$f":"'2. Conservation Measures'!EX141","v":0},{"$f":"'2. Conservation Measures'!EY141","v":0},{"$f":"'2. Conservation Measures'!EZ141","v":0},{"$f":"'2. Conservation Measures'!FA141","v":0},{"$f":"'2. Conservation Measures'!FB141","v":0},{"$f":"'2. Conservation Measures'!FC141","v":0},{"$f":"'2. Conservation Measures'!FD141","v":0},{"$f":"'2. Conservation Measures'!FE141","v":0},{"$f":"'2. Conservation Measures'!FF141","v":0},{"$f":"'2. Conservation Measures'!FG141","v":0},{"$f":"'2. Conservation Measures'!FH141","v":0},{"$f":"'2. Conservation Measures'!FI141","v":0},{"$f":"'2. Conservation Measures'!FJ141","v":0},{"$f":"'2. Conservation Measures'!FK141","v":0},{"$f":"'2. Conservation Measures'!FL141","v":0},{"$f":"'2. Conservation Measures'!FM141","v":0},{"$f":"'2. Conservation Measures'!FN141","v":0},{"$f":"'2. Conservation Measures'!FO141","v":0},{"$f":"'2. Conservation Measures'!FP141","v":0},{"$f":"'2. Conservation Measures'!FQ141","v":0},{"$f":"'2. Conservation Measures'!FR141","v":0},{"$f":"'2. Conservation Measures'!FS141","v":0},{"$f":"'2. Conservation Measures'!FT141","v":0},{"$f":"'2. Conservation Measures'!FU141","v":0},{"$f":"'2. Conservation Measures'!FV141","v":0},{"$f":"'2. Conservation Measures'!FW141","v":0},{"$f":"'2. Conservation Measures'!FX141","v":0},{"$f":"'2. Conservation Measures'!FY141","v":0},{"$f":"'2. Conservation Measures'!FZ141","v":0},{"$f":"'2. Conservation Measures'!GA141","v":0},{"$f":"'2. Conservation Measures'!GB141","v":0},{"$f":"'2. Conservation Measures'!GC141","v":0},{"$f":"'2. Conservation Measures'!GD141","v":0},{"$f":"'2. Conservation Measures'!GE141","v":0},{"$f":"'2. Conservation Measures'!GF141","v":0},{"$f":"'2. Conservation Measures'!GG141","v":0},{"$f":"'2. Conservation Measures'!GH141","v":0},{"$f":"'2. Conservation Measures'!GI141","v":0},{"$f":"'2. Conservation Measures'!GJ141","v":0},{"$f":"'2. Conservation Measures'!GK141","v":0},{"$f":"'2. Conservation Measures'!GL141","v":0},{"$f":"'2. Conservation Measures'!GM141","v":0},{"$f":"'2. Conservation Measures'!GN141","v":0},null,{"$f":"'2. Conservation Measures'!GP141","v":0},{"$f":"'2. Conservation Measures'!GQ141","v":0},{"$f":"'2. Conservation Measures'!GR141","v":0},{"$f":"'2. Conservation Measures'!GS141","v":0},{"$f":"'2. Conservation Measures'!GT141","v":0},{"$f":"'2. Conservation Measures'!GU141","v":0},{"$f":"'2. Conservation Measures'!GV141","v":0},{"$f":"'2. Conservation Measures'!GW141","v":0},{"$f":"'2. Conservation Measures'!GX141","v":0},{"$f":"'2. Conservation Measures'!GY141","v":0},{"$f":"'2. Conservation Measures'!GZ141","v":0},{"$f":"'2. Conservation Measures'!HA141","v":0},{"$f":"'2. Conservation Measures'!HB141","v":0},{"$f":"'2. Conservation Measures'!HC141","v":0},{"$f":"'2. Conservation Measures'!HD141","v":0},{"$f":"'2. Conservation Measures'!HE141","v":0},{"$f":"'2. Conservation Measures'!HF141","v":0},{"$f":"'2. Conservation Measures'!HG141","v":0},{"$f":"'2. Conservation Measures'!HH141","v":0},{"$f":"'2. Conservation Measures'!HI141","v":0},{"$f":"'2. Conservation Measures'!HJ141","v":0},{"$f":"'2. Conservation Measures'!HK141","v":0},{"$f":"'2. Conservation Measures'!HL141","v":0},{"$f":"'2. Conservation Measures'!HM141","v":0},{"$f":"'2. Conservation Measures'!HN141","v":0},{"$f":"'2. Conservation Measures'!HO141","v":0},{"$f":"'2. Conservation Measures'!HP141","v":0},{"$f":"'2. Conservation Measures'!HQ141","v":0},{"$f":"'2. Conservation Measures'!HR141","v":0},{"$f":"'2. Conservation Measures'!HS141","v":0},{"$f":"'2. Conservation Measures'!HT141","v":0},{"$f":"'2. Conservation Measures'!HU141","v":0},{"$f":"'2. Conservation Measures'!HV141","v":0},{"$f":"'2. Conservation Measures'!HW141","v":0},{"$f":"'2. Conservation Measures'!HX141","v":0},{"$f":"'2. Conservation Measures'!HY141","v":0},{"$f":"'2. Conservation Measures'!HZ141","v":0},{"$f":"'2. Conservation Measures'!IA141","v":0},{"$f":"'2. Conservation Measures'!IB141","v":0},{"$f":"'2. Conservation Measures'!IC141","v":0},{"$f":"'2. Conservation Measures'!ID141","v":0},{"$f":"'2. Conservation Measures'!IE141","v":0},{"$f":"'2. Conservation Measures'!IF141","v":0},{"$f":"'2. Conservation Measures'!IG141","v":0},{"$f":"'2. Conservation Measures'!IH141","v":0},{"$f":"'2. Conservation Measures'!II141","v":0},{"$f":"'2. Conservation Measures'!IJ141","v":0},{"$f":"'2. Conservation Measures'!IK141","v":0},{"$f":"'2. Conservation Measures'!IL141","v":0},{"$f":"'2. Conservation Measures'!IM141","v":0},{"$f":"'2. Conservation Measures'!IN141","v":0},null,{"$f":"'2. Conservation Measures'!IP141","v":0},{"$f":"'2. Conservation Measures'!IQ141","v":0},{"$f":"'2. Conservation Measures'!IR141","v":0},{"$f":"'2. Conservation Measures'!IS141","v":0},{"$f":"'2. Conservation Measures'!IT141","v":0},{"$f":"'2. Conservation Measures'!IU141","v":0},{"$f":"'2. Conservation Measures'!IV141","v":0},{"$f":"'2. Conservation Measures'!IW141","v":0},{"$f":"'2. Conservation Measures'!IX141","v":0},{"$f":"'2. Conservation Measures'!IY141","v":0},{"$f":"'2. Conservation Measures'!IZ141","v":0},{"$f":"'2. Conservation Measures'!JA141","v":0},{"$f":"'2. Conservation Measures'!JB141","v":0},{"$f":"'2. Conservation Measures'!JC141","v":0},{"$f":"'2. Conservation Measures'!JD141","v":0},{"$f":"'2. Conservation Measures'!JE141","v":0},{"$f":"'2. Conservation Measures'!JF141","v":0},{"$f":"'2. Conservation Measures'!JG141","v":0},{"$f":"'2. Conservation Measures'!JH141","v":0},{"$f":"'2. Conservation Measures'!JI141","v":0},{"$f":"'2. Conservation Measures'!JJ141","v":0},{"$f":"'2. Conservation Measures'!JK141","v":0},{"$f":"'2. Conservation Measures'!JL141","v":0},{"$f":"'2. Conservation Measures'!JM141","v":0},{"$f":"'2. Conservation Measures'!JN141","v":0},{"$f":"'2. Conservation Measures'!JO141","v":0},{"$f":"'2. Conservation Measures'!JP141","v":0},{"$f":"'2. Conservation Measures'!JQ141","v":0},{"$f":"'2. Conservation Measures'!JR141","v":0},{"$f":"'2. Conservation Measures'!JS141","v":0},{"$f":"'2. Conservation Measures'!JT141","v":0},{"$f":"'2. Conservation Measures'!JU141","v":0},{"$f":"'2. Conservation Measures'!JV141","v":0},{"$f":"'2. Conservation Measures'!JW141","v":0},{"$f":"'2. Conservation Measures'!JX141","v":0},{"$f":"'2. Conservation Measures'!JY141","v":0},{"$f":"'2. Conservation Measures'!JZ141","v":0},{"$f":"'2. Conservation Measures'!KA141","v":0},{"$f":"'2. Conservation Measures'!KB141","v":0},{"$f":"'2. Conservation Measures'!KC141","v":0},{"$f":"'2. Conservation Measures'!KD141","v":0},{"$f":"'2. Conservation Measures'!KE141","v":0},{"$f":"'2. Conservation Measures'!KF141","v":0},{"$f":"'2. Conservation Measures'!KG141","v":0},{"$f":"'2. Conservation Measures'!KH141","v":0},{"$f":"'2. Conservation Measures'!KI141","v":0},{"$f":"'2. Conservation Measures'!KJ141","v":0},{"$f":"'2. Conservation Measures'!KK141","v":0},{"$f":"'2. Conservation Measures'!KL141","v":0},{"$f":"'2. Conservation Measures'!KM141","v":0},{"$f":"'2. Conservation Measures'!KN141","v":0}]
[null,{"$f":"'2. Conservation Measures'!B142","v":"USR-UTL-13"},{"$f":"'2. Conservation Measures'!C142","v":0},{"$f":"'2. Conservation Measures'!D142","v":"N"},null,{"$f":"'2. Conservation Measures'!AA142","v":0},null,{"$f":"'2. Conservation Measures'!AO142","v":0},{"$f":"'2. Conservation Measures'!AP142","v":0},{"$f":"'2. Conservation Measures'!AQ142","v":0},{"$f":"'2. Conservation Measures'!AR142","v":0},{"$f":"'2. Conservation Measures'!AS142","v":0},{"$f":"'2. Conservation Measures'!AT142","v":0},{"$f":"'2. Conservation Measures'!AU142","v":0},{"$f":"'2. Conservation Measures'!AV142","v":0},{"$f":"'2. Conservation Measures'!AW142","v":0},{"$f":"'2. Conservation Measures'!AX142","v":0},{"$f":"'2. Conservation Measures'!AY142","v":0},{"$f":"'2. Conservation Measures'!AZ142","v":0},{"$f":"'2. Conservation Measures'!BA142","v":0},{"$f":"'2. Conservation Measures'!BB142","v":0},{"$f":"'2. Conservation Measures'!BC142","v":0},{"$f":"'2. Conservation Measures'!BD142","v":0},{"$f":"'2. Conservation Measures'!BE142","v":0},{"$f":"'2. Conservation Measures'!BF142","v":0},{"$f":"'2. Conservation Measures'!BG142","v":0},{"$f":"'2. Conservation Measures'!BH142","v":0},{"$f":"'2. Conservation Measures'!BI142","v":0},{"$f":"'2. Conservation Measures'!BJ142","v":0},{"$f":"'2. Conservation Measures'!BK142","v":0},{"$f":"'2. Conservation Measures'!BL142","v":0},{"$f":"'2. Conservation Measures'!BM142","v":0},{"$f":"'2. Conservation Measures'!BN142","v":0},{"$f":"'2. Conservation Measures'!BO142","v":0},{"$f":"'2. Conservation Measures'!BP142","v":0},{"$f":"'2. Conservation Measures'!BQ142","v":0},{"$f":"'2. Conservation Measures'!BR142","v":0},{"$f":"'2. Conservation Measures'!BS142","v":0},{"$f":"'2. Conservation Measures'!BT142","v":0},{"$f":"'2. Conservation Measures'!BU142","v":0},{"$f":"'2. Conservation Measures'!BV142","v":0},{"$f":"'2. Conservation Measures'!BW142","v":0},{"$f":"'2. Conservation Measures'!BX142","v":0},{"$f":"'2. Conservation Measures'!BY142","v":0},{"$f":"'2. Conservation Measures'!BZ142","v":0},{"$f":"'2. Conservation Measures'!CA142","v":0},{"$f":"'2. Conservation Measures'!CB142","v":0},{"$f":"'2. Conservation Measures'!CC142","v":0},{"$f":"'2. Conservation Measures'!CD142","v":0},{"$f":"'2. Conservation Measures'!CE142","v":0},{"$f":"'2. Conservation Measures'!CF142","v":0},{"$f":"'2. Conservation Measures'!CG142","v":0},{"$f":"'2. Conservation Measures'!CH142","v":0},{"$f":"'2. Conservation Measures'!CI142","v":0},{"$f":"'2. Conservation Measures'!CJ142","v":0},{"$f":"'2. Conservation Measures'!CK142","v":0},{"$f":"'2. Conservation Measures'!CL142","v":0},{"$f":"'2. Conservation Measures'!CM142","v":0},null,{"$f":"'2. Conservation Measures'!CO142","v":0},{"$f":"'2. Conservation Measures'!CP142","v":0},{"$f":"'2. Conservation Measures'!CQ142","v":0},{"$f":"'2. Conservation Measures'!CR142","v":0},{"$f":"'2. Conservation Measures'!CS142","v":0},{"$f":"'2. Conservation Measures'!CT142","v":0},{"$f":"'2. Conservation Measures'!CU142","v":0},{"$f":"'2. Conservation Measures'!CV142","v":0},{"$f":"'2. Conservation Measures'!CW142","v":0},{"$f":"'2. Conservation Measures'!CX142","v":0},{"$f":"'2. Conservation Measures'!CY142","v":0},{"$f":"'2. Conservation Measures'!CZ142","v":0},{"$f":"'2. Conservation Measures'!DA142","v":0},{"$f":"'2. Conservation Measures'!DB142","v":0},{"$f":"'2. Conservation Measures'!DC142","v":0},{"$f":"'2. Conservation Measures'!DD142","v":0},{"$f":"'2. Conservation Measures'!DE142","v":0},{"$f":"'2. Conservation Measures'!DF142","v":0},{"$f":"'2. Conservation Measures'!DG142","v":0},{"$f":"'2. Conservation Measures'!DH142","v":0},{"$f":"'2. Conservation Measures'!DI142","v":0},{"$f":"'2. Conservation Measures'!DJ142","v":0},{"$f":"'2. Conservation Measures'!DK142","v":0},{"$f":"'2. Conservation Measures'!DL142","v":0},{"$f":"'2. Conservation Measures'!DM142","v":0},{"$f":"'2. Conservation Measures'!DN142","v":0},{"$f":"'2. Conservation Measures'!DO142","v":0},{"$f":"'2. Conservation Measures'!DP142","v":0},{"$f":"'2. Conservation Measures'!DQ142","v":0},{"$f":"'2. Conservation Measures'!DR142","v":0},{"$f":"'2. Conservation Measures'!DS142","v":0},{"$f":"'2. Conservation Measures'!DT142","v":0},{"$f":"'2. Conservation Measures'!DU142","v":0},{"$f":"'2. Conservation Measures'!DV142","v":0},{"$f":"'2. Conservation Measures'!DW142","v":0},{"$f":"'2. Conservation Measures'!DX142","v":0},{"$f":"'2. Conservation Measures'!DY142","v":0},{"$f":"'2. Conservation Measures'!DZ142","v":0},{"$f":"'2. Conservation Measures'!EA142","v":0},{"$f":"'2. Conservation Measures'!EB142","v":0},{"$f":"'2. Conservation Measures'!EC142","v":0},{"$f":"'2. Conservation Measures'!ED142","v":0},{"$f":"'2. Conservation Measures'!EE142","v":0},{"$f":"'2. Conservation Measures'!EF142","v":0},{"$f":"'2. Conservation Measures'!EG142","v":0},{"$f":"'2. Conservation Measures'!EH142","v":0},{"$f":"'2. Conservation Measures'!EI142","v":0},{"$f":"'2. Conservation Measures'!EJ142","v":0},{"$f":"'2. Conservation Measures'!EK142","v":0},{"$f":"'2. Conservation Measures'!EL142","v":0},{"$f":"'2. Conservation Measures'!EM142","v":0},null,{"$f":"'2. Conservation Measures'!KP142","v":0},{"$f":"'2. Conservation Measures'!KQ142","v":0},{"$f":"'2. Conservation Measures'!KR142","v":0},{"$f":"'2. Conservation Measures'!KS142","v":0},{"$f":"'2. Conservation Measures'!KT142","v":0},{"$f":"'2. Conservation Measures'!KU142","v":0},{"$f":"'2. Conservation Measures'!KV142","v":0},{"$f":"'2. Conservation Measures'!KW142","v":0},{"$f":"'2. Conservation Measures'!KX142","v":0},{"$f":"'2. Conservation Measures'!KY142","v":0},{"$f":"'2. Conservation Measures'!KZ142","v":0},{"$f":"'2. Conservation Measures'!LA142","v":0},{"$f":"'2. Conservation Measures'!LB142","v":0},{"$f":"'2. Conservation Measures'!LC142","v":0},{"$f":"'2. Conservation Measures'!LD142","v":0},{"$f":"'2. Conservation Measures'!LE142","v":0},{"$f":"'2. Conservation Measures'!LF142","v":0},{"$f":"'2. Conservation Measures'!LG142","v":0},{"$f":"'2. Conservation Measures'!LH142","v":0},{"$f":"'2. Conservation Measures'!LI142","v":0},{"$f":"'2. Conservation Measures'!LJ142","v":0},{"$f":"'2. Conservation Measures'!LK142","v":0},{"$f":"'2. Conservation Measures'!LL142","v":0},{"$f":"'2. Conservation Measures'!LM142","v":0},{"$f":"'2. Conservation Measures'!LN142","v":0},{"$f":"'2. Conservation Measures'!LO142","v":0},{"$f":"'2. Conservation Measures'!LP142","v":0},{"$f":"'2. Conservation Measures'!LQ142","v":0},{"$f":"'2. Conservation Measures'!LR142","v":0},{"$f":"'2. Conservation Measures'!LS142","v":0},{"$f":"'2. Conservation Measures'!LT142","v":0},{"$f":"'2. Conservation Measures'!LU142","v":0},{"$f":"'2. Conservation Measures'!LV142","v":0},{"$f":"'2. Conservation Measures'!LW142","v":0},{"$f":"'2. Conservation Measures'!LX142","v":0},{"$f":"'2. Conservation Measures'!LY142","v":0},{"$f":"'2. Conservation Measures'!LZ142","v":0},{"$f":"'2. Conservation Measures'!MA142","v":0},{"$f":"'2. Conservation Measures'!MB142","v":0},{"$f":"'2. Conservation Measures'!MC142","v":0},{"$f":"'2. Conservation Measures'!MD142","v":0},{"$f":"'2. Conservation Measures'!ME142","v":0},{"$f":"'2. Conservation Measures'!MF142","v":0},{"$f":"'2. Conservation Measures'!MG142","v":0},{"$f":"'2. Conservation Measures'!MH142","v":0},{"$f":"'2. Conservation Measures'!MI142","v":0},{"$f":"'2. Conservation Measures'!MJ142","v":0},{"$f":"'2. Conservation Measures'!MK142","v":0},{"$f":"'2. Conservation Measures'!ML142","v":0},{"$f":"'2. Conservation Measures'!MM142","v":0},{"$f":"'2. Conservation Measures'!MN142","v":0},null,{"$f":"'2. Conservation Measures'!EP142","v":0},{"$f":"'2. Conservation Measures'!EQ142","v":0},{"$f":"'2. Conservation Measures'!ER142","v":0},{"$f":"'2. Conservation Measures'!ES142","v":0},{"$f":"'2. Conservation Measures'!ET142","v":0},{"$f":"'2. Conservation Measures'!EU142","v":0},{"$f":"'2. Conservation Measures'!EV142","v":0},{"$f":"'2. Conservation Measures'!EW142","v":0},{"$f":"'2. Conservation Measures'!EX142","v":0},{"$f":"'2. Conservation Measures'!EY142","v":0},{"$f":"'2. Conservation Measures'!EZ142","v":0},{"$f":"'2. Conservation Measures'!FA142","v":0},{"$f":"'2. Conservation Measures'!FB142","v":0},{"$f":"'2. Conservation Measures'!FC142","v":0},{"$f":"'2. Conservation Measures'!FD142","v":0},{"$f":"'2. Conservation Measures'!FE142","v":0},{"$f":"'2. Conservation Measures'!FF142","v":0},{"$f":"'2. Conservation Measures'!FG142","v":0},{"$f":"'2. Conservation Measures'!FH142","v":0},{"$f":"'2. Conservation Measures'!FI142","v":0},{"$f":"'2. Conservation Measures'!FJ142","v":0},{"$f":"'2. Conservation Measures'!FK142","v":0},{"$f":"'2. Conservation Measures'!FL142","v":0},{"$f":"'2. Conservation Measures'!FM142","v":0},{"$f":"'2. Conservation Measures'!FN142","v":0},{"$f":"'2. Conservation Measures'!FO142","v":0},{"$f":"'2. Conservation Measures'!FP142","v":0},{"$f":"'2. Conservation Measures'!FQ142","v":0},{"$f":"'2. Conservation Measures'!FR142","v":0},{"$f":"'2. Conservation Measures'!FS142","v":0},{"$f":"'2. Conservation Measures'!FT142","v":0},{"$f":"'2. Conservation Measures'!FU142","v":0},{"$f":"'2. Conservation Measures'!FV142","v":0},{"$f":"'2. Conservation Measures'!FW142","v":0},{"$f":"'2. Conservation Measures'!FX142","v":0},{"$f":"'2. Conservation Measures'!FY142","v":0},{"$f":"'2. Conservation Measures'!FZ142","v":0},{"$f":"'2. Conservation Measures'!GA142","v":0},{"$f":"'2. Conservation Measures'!GB142","v":0},{"$f":"'2. Conservation Measures'!GC142","v":0},{"$f":"'2. Conservation Measures'!GD142","v":0},{"$f":"'2. Conservation Measures'!GE142","v":0},{"$f":"'2. Conservation Measures'!GF142","v":0},{"$f":"'2. Conservation Measures'!GG142","v":0},{"$f":"'2. Conservation Measures'!GH142","v":0},{"$f":"'2. Conservation Measures'!GI142","v":0},{"$f":"'2. Conservation Measures'!GJ142","v":0},{"$f":"'2. Conservation Measures'!GK142","v":0},{"$f":"'2. Conservation Measures'!GL142","v":0},{"$f":"'2. Conservation Measures'!GM142","v":0},{"$f":"'2. Conservation Measures'!GN142","v":0},null,{"$f":"'2. Conservation Measures'!GP142","v":0},{"$f":"'2. Conservation Measures'!GQ142","v":0},{"$f":"'2. Conservation Measures'!GR142","v":0},{"$f":"'2. Conservation Measures'!GS142","v":0},{"$f":"'2. Conservation Measures'!GT142","v":0},{"$f":"'2. Conservation Measures'!GU142","v":0},{"$f":"'2. Conservation Measures'!GV142","v":0},{"$f":"'2. Conservation Measures'!GW142","v":0},{"$f":"'2. Conservation Measures'!GX142","v":0},{"$f":"'2. Conservation Measures'!GY142","v":0},{"$f":"'2. Conservation Measures'!GZ142","v":0},{"$f":"'2. Conservation Measures'!HA142","v":0},{"$f":"'2. Conservation Measures'!HB142","v":0},{"$f":"'2. Conservation Measures'!HC142","v":0},{"$f":"'2. Conservation Measures'!HD142","v":0},{"$f":"'2. Conservation Measures'!HE142","v":0},{"$f":"'2. Conservation Measures'!HF142","v":0},{"$f":"'2. Conservation Measures'!HG142","v":0},{"$f":"'2. Conservation Measures'!HH142","v":0},{"$f":"'2. Conservation Measures'!HI142","v":0},{"$f":"'2. Conservation Measures'!HJ142","v":0},{"$f":"'2. Conservation Measures'!HK142","v":0},{"$f":"'2. Conservation Measures'!HL142","v":0},{"$f":"'2. Conservation Measures'!HM142","v":0},{"$f":"'2. Conservation Measures'!HN142","v":0},{"$f":"'2. Conservation Measures'!HO142","v":0},{"$f":"'2. Conservation Measures'!HP142","v":0},{"$f":"'2. Conservation Measures'!HQ142","v":0},{"$f":"'2. Conservation Measures'!HR142","v":0},{"$f":"'2. Conservation Measures'!HS142","v":0},{"$f":"'2. Conservation Measures'!HT142","v":0},{"$f":"'2. Conservation Measures'!HU142","v":0},{"$f":"'2. Conservation Measures'!HV142","v":0},{"$f":"'2. Conservation Measures'!HW142","v":0},{"$f":"'2. Conservation Measures'!HX142","v":0},{"$f":"'2. Conservation Measures'!HY142","v":0},{"$f":"'2. Conservation Measures'!HZ142","v":0},{"$f":"'2. Conservation Measures'!IA142","v":0},{"$f":"'2. Conservation Measures'!IB142","v":0},{"$f":"'2. Conservation Measures'!IC142","v":0},{"$f":"'2. Conservation Measures'!ID142","v":0},{"$f":"'2. Conservation Measures'!IE142","v":0},{"$f":"'2. Conservation Measures'!IF142","v":0},{"$f":"'2. Conservation Measures'!IG142","v":0},{"$f":"'2. Conservation Measures'!IH142","v":0},{"$f":"'2. Conservation Measures'!II142","v":0},{"$f":"'2. Conservation Measures'!IJ142","v":0},{"$f":"'2. Conservation Measures'!IK142","v":0},{"$f":"'2. Conservation Measures'!IL142","v":0},{"$f":"'2. Conservation Measures'!IM142","v":0},{"$f":"'2. Conservation Measures'!IN142","v":0},null,{"$f":"'2. Conservation Measures'!IP142","v":0},{"$f":"'2. Conservation Measures'!IQ142","v":0},{"$f":"'2. Conservation Measures'!IR142","v":0},{"$f":"'2. Conservation Measures'!IS142","v":0},{"$f":"'2. Conservation Measures'!IT142","v":0},{"$f":"'2. Conservation Measures'!IU142","v":0},{"$f":"'2. Conservation Measures'!IV142","v":0},{"$f":"'2. Conservation Measures'!IW142","v":0},{"$f":"'2. Conservation Measures'!IX142","v":0},{"$f":"'2. Conservation Measures'!IY142","v":0},{"$f":"'2. Conservation Measures'!IZ142","v":0},{"$f":"'2. Conservation Measures'!JA142","v":0},{"$f":"'2. Conservation Measures'!JB142","v":0},{"$f":"'2. Conservation Measures'!JC142","v":0},{"$f":"'2. Conservation Measures'!JD142","v":0},{"$f":"'2. Conservation Measures'!JE142","v":0},{"$f":"'2. Conservation Measures'!JF142","v":0},{"$f":"'2. Conservation Measures'!JG142","v":0},{"$f":"'2. Conservation Measures'!JH142","v":0},{"$f":"'2. Conservation Measures'!JI142","v":0},{"$f":"'2. Conservation Measures'!JJ142","v":0},{"$f":"'2. Conservation Measures'!JK142","v":0},{"$f":"'2. Conservation Measures'!JL142","v":0},{"$f":"'2. Conservation Measures'!JM142","v":0},{"$f":"'2. Conservation Measures'!JN142","v":0},{"$f":"'2. Conservation Measures'!JO142","v":0},{"$f":"'2. Conservation Measures'!JP142","v":0},{"$f":"'2. Conservation Measures'!JQ142","v":0},{"$f":"'2. Conservation Measures'!JR142","v":0},{"$f":"'2. Conservation Measures'!JS142","v":0},{"$f":"'2. Conservation Measures'!JT142","v":0},{"$f":"'2. Conservation Measures'!JU142","v":0},{"$f":"'2. Conservation Measures'!JV142","v":0},{"$f":"'2. Conservation Measures'!JW142","v":0},{"$f":"'2. Conservation Measures'!JX142","v":0},{"$f":"'2. Conservation Measures'!JY142","v":0},{"$f":"'2. Conservation Measures'!JZ142","v":0},{"$f":"'2. Conservation Measures'!KA142","v":0},{"$f":"'2. Conservation Measures'!KB142","v":0},{"$f":"'2. Conservation Measures'!KC142","v":0},{"$f":"'2. Conservation Measures'!KD142","v":0},{"$f":"'2. Conservation Measures'!KE142","v":0},{"$f":"'2. Conservation Measures'!KF142","v":0},{"$f":"'2. Conservation Measures'!KG142","v":0},{"$f":"'2. Conservation Measures'!KH142","v":0},{"$f":"'2. Conservation Measures'!KI142","v":0},{"$f":"'2. Conservation Measures'!KJ142","v":0},{"$f":"'2. Conservation Measures'!KK142","v":0},{"$f":"'2. Conservation Measures'!KL142","v":0},{"$f":"'2. Conservation Measures'!KM142","v":0},{"$f":"'2. Conservation Measures'!KN142","v":0}]
[null,{"$f":"'2. Conservation Measures'!B143","v":"USR-UTL-14"},{"$f":"'2. Conservation Measures'!C143","v":0},{"$f":"'2. Conservation Measures'!D143","v":"N"},null,{"$f":"'2. Conservation Measures'!AA143","v":0},null,{"$f":"'2. Conservation Measures'!AO143","v":0},{"$f":"'2. Conservation Measures'!AP143","v":0},{"$f":"'2. Conservation Measures'!AQ143","v":0},{"$f":"'2. Conservation Measures'!AR143","v":0},{"$f":"'2. Conservation Measures'!AS143","v":0},{"$f":"'2. Conservation Measures'!AT143","v":0},{"$f":"'2. Conservation Measures'!AU143","v":0},{"$f":"'2. Conservation Measures'!AV143","v":0},{"$f":"'2. Conservation Measures'!AW143","v":0},{"$f":"'2. Conservation Measures'!AX143","v":0},{"$f":"'2. Conservation Measures'!AY143","v":0},{"$f":"'2. Conservation Measures'!AZ143","v":0},{"$f":"'2. Conservation Measures'!BA143","v":0},{"$f":"'2. Conservation Measures'!BB143","v":0},{"$f":"'2. Conservation Measures'!BC143","v":0},{"$f":"'2. Conservation Measures'!BD143","v":0},{"$f":"'2. Conservation Measures'!BE143","v":0},{"$f":"'2. Conservation Measures'!BF143","v":0},{"$f":"'2. Conservation Measures'!BG143","v":0},{"$f":"'2. Conservation Measures'!BH143","v":0},{"$f":"'2. Conservation Measures'!BI143","v":0},{"$f":"'2. Conservation Measures'!BJ143","v":0},{"$f":"'2. Conservation Measures'!BK143","v":0},{"$f":"'2. Conservation Measures'!BL143","v":0},{"$f":"'2. Conservation Measures'!BM143","v":0},{"$f":"'2. Conservation Measures'!BN143","v":0},{"$f":"'2. Conservation Measures'!BO143","v":0},{"$f":"'2. Conservation Measures'!BP143","v":0},{"$f":"'2. Conservation Measures'!BQ143","v":0},{"$f":"'2. Conservation Measures'!BR143","v":0},{"$f":"'2. Conservation Measures'!BS143","v":0},{"$f":"'2. Conservation Measures'!BT143","v":0},{"$f":"'2. Conservation Measures'!BU143","v":0},{"$f":"'2. Conservation Measures'!BV143","v":0},{"$f":"'2. Conservation Measures'!BW143","v":0},{"$f":"'2. Conservation Measures'!BX143","v":0},{"$f":"'2. Conservation Measures'!BY143","v":0},{"$f":"'2. Conservation Measures'!BZ143","v":0},{"$f":"'2. Conservation Measures'!CA143","v":0},{"$f":"'2. Conservation Measures'!CB143","v":0},{"$f":"'2. Conservation Measures'!CC143","v":0},{"$f":"'2. Conservation Measures'!CD143","v":0},{"$f":"'2. Conservation Measures'!CE143","v":0},{"$f":"'2. Conservation Measures'!CF143","v":0},{"$f":"'2. Conservation Measures'!CG143","v":0},{"$f":"'2. Conservation Measures'!CH143","v":0},{"$f":"'2. Conservation Measures'!CI143","v":0},{"$f":"'2. Conservation Measures'!CJ143","v":0},{"$f":"'2. Conservation Measures'!CK143","v":0},{"$f":"'2. Conservation Measures'!CL143","v":0},{"$f":"'2. Conservation Measures'!CM143","v":0},null,{"$f":"'2. Conservation Measures'!CO143","v":0},{"$f":"'2. Conservation Measures'!CP143","v":0},{"$f":"'2. Conservation Measures'!CQ143","v":0},{"$f":"'2. Conservation Measures'!CR143","v":0},{"$f":"'2. Conservation Measures'!CS143","v":0},{"$f":"'2. Conservation Measures'!CT143","v":0},{"$f":"'2. Conservation Measures'!CU143","v":0},{"$f":"'2. Conservation Measures'!CV143","v":0},{"$f":"'2. Conservation Measures'!CW143","v":0},{"$f":"'2. Conservation Measures'!CX143","v":0},{"$f":"'2. Conservation Measures'!CY143","v":0},{"$f":"'2. Conservation Measures'!CZ143","v":0},{"$f":"'2. Conservation Measures'!DA143","v":0},{"$f":"'2. Conservation Measures'!DB143","v":0},{"$f":"'2. Conservation Measures'!DC143","v":0},{"$f":"'2. Conservation Measures'!DD143","v":0},{"$f":"'2. Conservation Measures'!DE143","v":0},{"$f":"'2. Conservation Measures'!DF143","v":0},{"$f":"'2. Conservation Measures'!DG143","v":0},{"$f":"'2. Conservation Measures'!DH143","v":0},{"$f":"'2. Conservation Measures'!DI143","v":0},{"$f":"'2. Conservation Measures'!DJ143","v":0},{"$f":"'2. Conservation Measures'!DK143","v":0},{"$f":"'2. Conservation Measures'!DL143","v":0},{"$f":"'2. Conservation Measures'!DM143","v":0},{"$f":"'2. Conservation Measures'!DN143","v":0},{"$f":"'2. Conservation Measures'!DO143","v":0},{"$f":"'2. Conservation Measures'!DP143","v":0},{"$f":"'2. Conservation Measures'!DQ143","v":0},{"$f":"'2. Conservation Measures'!DR143","v":0},{"$f":"'2. Conservation Measures'!DS143","v":0},{"$f":"'2. Conservation Measures'!DT143","v":0},{"$f":"'2. Conservation Measures'!DU143","v":0},{"$f":"'2. Conservation Measures'!DV143","v":0},{"$f":"'2. Conservation Measures'!DW143","v":0},{"$f":"'2. Conservation Measures'!DX143","v":0},{"$f":"'2. Conservation Measures'!DY143","v":0},{"$f":"'2. Conservation Measures'!DZ143","v":0},{"$f":"'2. Conservation Measures'!EA143","v":0},{"$f":"'2. Conservation Measures'!EB143","v":0},{"$f":"'2. Conservation Measures'!EC143","v":0},{"$f":"'2. Conservation Measures'!ED143","v":0},{"$f":"'2. Conservation Measures'!EE143","v":0},{"$f":"'2. Conservation Measures'!EF143","v":0},{"$f":"'2. Conservation Measures'!EG143","v":0},{"$f":"'2. Conservation Measures'!EH143","v":0},{"$f":"'2. Conservation Measures'!EI143","v":0},{"$f":"'2. Conservation Measures'!EJ143","v":0},{"$f":"'2. Conservation Measures'!EK143","v":0},{"$f":"'2. Conservation Measures'!EL143","v":0},{"$f":"'2. Conservation Measures'!EM143","v":0},null,{"$f":"'2. Conservation Measures'!KP143","v":0},{"$f":"'2. Conservation Measures'!KQ143","v":0},{"$f":"'2. Conservation Measures'!KR143","v":0},{"$f":"'2. Conservation Measures'!KS143","v":0},{"$f":"'2. Conservation Measures'!KT143","v":0},{"$f":"'2. Conservation Measures'!KU143","v":0},{"$f":"'2. Conservation Measures'!KV143","v":0},{"$f":"'2. Conservation Measures'!KW143","v":0},{"$f":"'2. Conservation Measures'!KX143","v":0},{"$f":"'2. Conservation Measures'!KY143","v":0},{"$f":"'2. Conservation Measures'!KZ143","v":0},{"$f":"'2. Conservation Measures'!LA143","v":0},{"$f":"'2. Conservation Measures'!LB143","v":0},{"$f":"'2. Conservation Measures'!LC143","v":0},{"$f":"'2. Conservation Measures'!LD143","v":0},{"$f":"'2. Conservation Measures'!LE143","v":0},{"$f":"'2. Conservation Measures'!LF143","v":0},{"$f":"'2. Conservation Measures'!LG143","v":0},{"$f":"'2. Conservation Measures'!LH143","v":0},{"$f":"'2. Conservation Measures'!LI143","v":0},{"$f":"'2. Conservation Measures'!LJ143","v":0},{"$f":"'2. Conservation Measures'!LK143","v":0},{"$f":"'2. Conservation Measures'!LL143","v":0},{"$f":"'2. Conservation Measures'!LM143","v":0},{"$f":"'2. Conservation Measures'!LN143","v":0},{"$f":"'2. Conservation Measures'!LO143","v":0},{"$f":"'2. Conservation Measures'!LP143","v":0},{"$f":"'2. Conservation Measures'!LQ143","v":0},{"$f":"'2. Conservation Measures'!LR143","v":0},{"$f":"'2. Conservation Measures'!LS143","v":0},{"$f":"'2. Conservation Measures'!LT143","v":0},{"$f":"'2. Conservation Measures'!LU143","v":0},{"$f":"'2. Conservation Measures'!LV143","v":0},{"$f":"'2. Conservation Measures'!LW143","v":0},{"$f":"'2. Conservation Measures'!LX143","v":0},{"$f":"'2. Conservation Measures'!LY143","v":0},{"$f":"'2. Conservation Measures'!LZ143","v":0},{"$f":"'2. Conservation Measures'!MA143","v":0},{"$f":"'2. Conservation Measures'!MB143","v":0},{"$f":"'2. Conservation Measures'!MC143","v":0},{"$f":"'2. Conservation Measures'!MD143","v":0},{"$f":"'2. Conservation Measures'!ME143","v":0},{"$f":"'2. Conservation Measures'!MF143","v":0},{"$f":"'2. Conservation Measures'!MG143","v":0},{"$f":"'2. Conservation Measures'!MH143","v":0},{"$f":"'2. Conservation Measures'!MI143","v":0},{"$f":"'2. Conservation Measures'!MJ143","v":0},{"$f":"'2. Conservation Measures'!MK143","v":0},{"$f":"'2. Conservation Measures'!ML143","v":0},{"$f":"'2. Conservation Measures'!MM143","v":0},{"$f":"'2. Conservation Measures'!MN143","v":0},null,{"$f":"'2. Conservation Measures'!EP143","v":0},{"$f":"'2. Conservation Measures'!EQ143","v":0},{"$f":"'2. Conservation Measures'!ER143","v":0},{"$f":"'2. Conservation Measures'!ES143","v":0},{"$f":"'2. Conservation Measures'!ET143","v":0},{"$f":"'2. Conservation Measures'!EU143","v":0},{"$f":"'2. Conservation Measures'!EV143","v":0},{"$f":"'2. Conservation Measures'!EW143","v":0},{"$f":"'2. Conservation Measures'!EX143","v":0},{"$f":"'2. Conservation Measures'!EY143","v":0},{"$f":"'2. Conservation Measures'!EZ143","v":0},{"$f":"'2. Conservation Measures'!FA143","v":0},{"$f":"'2. Conservation Measures'!FB143","v":0},{"$f":"'2. Conservation Measures'!FC143","v":0},{"$f":"'2. Conservation Measures'!FD143","v":0},{"$f":"'2. Conservation Measures'!FE143","v":0},{"$f":"'2. Conservation Measures'!FF143","v":0},{"$f":"'2. Conservation Measures'!FG143","v":0},{"$f":"'2. Conservation Measures'!FH143","v":0},{"$f":"'2. Conservation Measures'!FI143","v":0},{"$f":"'2. Conservation Measures'!FJ143","v":0},{"$f":"'2. Conservation Measures'!FK143","v":0},{"$f":"'2. Conservation Measures'!FL143","v":0},{"$f":"'2. Conservation Measures'!FM143","v":0},{"$f":"'2. Conservation Measures'!FN143","v":0},{"$f":"'2. Conservation Measures'!FO143","v":0},{"$f":"'2. Conservation Measures'!FP143","v":0},{"$f":"'2. Conservation Measures'!FQ143","v":0},{"$f":"'2. Conservation Measures'!FR143","v":0},{"$f":"'2. Conservation Measures'!FS143","v":0},{"$f":"'2. Conservation Measures'!FT143","v":0},{"$f":"'2. Conservation Measures'!FU143","v":0},{"$f":"'2. Conservation Measures'!FV143","v":0},{"$f":"'2. Conservation Measures'!FW143","v":0},{"$f":"'2. Conservation Measures'!FX143","v":0},{"$f":"'2. Conservation Measures'!FY143","v":0},{"$f":"'2. Conservation Measures'!FZ143","v":0},{"$f":"'2. Conservation Measures'!GA143","v":0},{"$f":"'2. Conservation Measures'!GB143","v":0},{"$f":"'2. Conservation Measures'!GC143","v":0},{"$f":"'2. Conservation Measures'!GD143","v":0},{"$f":"'2. Conservation Measures'!GE143","v":0},{"$f":"'2. Conservation Measures'!GF143","v":0},{"$f":"'2. Conservation Measures'!GG143","v":0},{"$f":"'2. Conservation Measures'!GH143","v":0},{"$f":"'2. Conservation Measures'!GI143","v":0},{"$f":"'2. Conservation Measures'!GJ143","v":0},{"$f":"'2. Conservation Measures'!GK143","v":0},{"$f":"'2. Conservation Measures'!GL143","v":0},{"$f":"'2. Conservation Measures'!GM143","v":0},{"$f":"'2. Conservation Measures'!GN143","v":0},null,{"$f":"'2. Conservation Measures'!GP143","v":0},{"$f":"'2. Conservation Measures'!GQ143","v":0},{"$f":"'2. Conservation Measures'!GR143","v":0},{"$f":"'2. Conservation Measures'!GS143","v":0},{"$f":"'2. Conservation Measures'!GT143","v":0},{"$f":"'2. Conservation Measures'!GU143","v":0},{"$f":"'2. Conservation Measures'!GV143","v":0},{"$f":"'2. Conservation Measures'!GW143","v":0},{"$f":"'2. Conservation Measures'!GX143","v":0},{"$f":"'2. Conservation Measures'!GY143","v":0},{"$f":"'2. Conservation Measures'!GZ143","v":0},{"$f":"'2. Conservation Measures'!HA143","v":0},{"$f":"'2. Conservation Measures'!HB143","v":0},{"$f":"'2. Conservation Measures'!HC143","v":0},{"$f":"'2. Conservation Measures'!HD143","v":0},{"$f":"'2. Conservation Measures'!HE143","v":0},{"$f":"'2. Conservation Measures'!HF143","v":0},{"$f":"'2. Conservation Measures'!HG143","v":0},{"$f":"'2. Conservation Measures'!HH143","v":0},{"$f":"'2. Conservation Measures'!HI143","v":0},{"$f":"'2. Conservation Measures'!HJ143","v":0},{"$f":"'2. Conservation Measures'!HK143","v":0},{"$f":"'2. Conservation Measures'!HL143","v":0},{"$f":"'2. Conservation Measures'!HM143","v":0},{"$f":"'2. Conservation Measures'!HN143","v":0},{"$f":"'2. Conservation Measures'!HO143","v":0},{"$f":"'2. Conservation Measures'!HP143","v":0},{"$f":"'2. Conservation Measures'!HQ143","v":0},{"$f":"'2. Conservation Measures'!HR143","v":0},{"$f":"'2. Conservation Measures'!HS143","v":0},{"$f":"'2. Conservation Measures'!HT143","v":0},{"$f":"'2. Conservation Measures'!HU143","v":0},{"$f":"'2. Conservation Measures'!HV143","v":0},{"$f":"'2. Conservation Measures'!HW143","v":0},{"$f":"'2. Conservation Measures'!HX143","v":0},{"$f":"'2. Conservation Measures'!HY143","v":0},{"$f":"'2. Conservation Measures'!HZ143","v":0},{"$f":"'2. Conservation Measures'!IA143","v":0},{"$f":"'2. Conservation Measures'!IB143","v":0},{"$f":"'2. Conservation Measures'!IC143","v":0},{"$f":"'2. Conservation Measures'!ID143","v":0},{"$f":"'2. Conservation Measures'!IE143","v":0},{"$f":"'2. Conservation Measures'!IF143","v":0},{"$f":"'2. Conservation Measures'!IG143","v":0},{"$f":"'2. Conservation Measures'!IH143","v":0},{"$f":"'2. Conservation Measures'!II143","v":0},{"$f":"'2. Conservation Measures'!IJ143","v":0},{"$f":"'2. Conservation Measures'!IK143","v":0},{"$f":"'2. Conservation Measures'!IL143","v":0},{"$f":"'2. Conservation Measures'!IM143","v":0},{"$f":"'2. Conservation Measures'!IN143","v":0},null,{"$f":"'2. Conservation Measures'!IP143","v":0},{"$f":"'2. Conservation Measures'!IQ143","v":0},{"$f":"'2. Conservation Measures'!IR143","v":0},{"$f":"'2. Conservation Measures'!IS143","v":0},{"$f":"'2. Conservation Measures'!IT143","v":0},{"$f":"'2. Conservation Measures'!IU143","v":0},{"$f":"'2. Conservation Measures'!IV143","v":0},{"$f":"'2. Conservation Measures'!IW143","v":0},{"$f":"'2. Conservation Measures'!IX143","v":0},{"$f":"'2. Conservation Measures'!IY143","v":0},{"$f":"'2. Conservation Measures'!IZ143","v":0},{"$f":"'2. Conservation Measures'!JA143","v":0},{"$f":"'2. Conservation Measures'!JB143","v":0},{"$f":"'2. Conservation Measures'!JC143","v":0},{"$f":"'2. Conservation Measures'!JD143","v":0},{"$f":"'2. Conservation Measures'!JE143","v":0},{"$f":"'2. Conservation Measures'!JF143","v":0},{"$f":"'2. Conservation Measures'!JG143","v":0},{"$f":"'2. Conservation Measures'!JH143","v":0},{"$f":"'2. Conservation Measures'!JI143","v":0},{"$f":"'2. Conservation Measures'!JJ143","v":0},{"$f":"'2. Conservation Measures'!JK143","v":0},{"$f":"'2. Conservation Measures'!JL143","v":0},{"$f":"'2. Conservation Measures'!JM143","v":0},{"$f":"'2. Conservation Measures'!JN143","v":0},{"$f":"'2. Conservation Measures'!JO143","v":0},{"$f":"'2. Conservation Measures'!JP143","v":0},{"$f":"'2. Conservation Measures'!JQ143","v":0},{"$f":"'2. Conservation Measures'!JR143","v":0},{"$f":"'2. Conservation Measures'!JS143","v":0},{"$f":"'2. Conservation Measures'!JT143","v":0},{"$f":"'2. Conservation Measures'!JU143","v":0},{"$f":"'2. Conservation Measures'!JV143","v":0},{"$f":"'2. Conservation Measures'!JW143","v":0},{"$f":"'2. Conservation Measures'!JX143","v":0},{"$f":"'2. Conservation Measures'!JY143","v":0},{"$f":"'2. Conservation Measures'!JZ143","v":0},{"$f":"'2. Conservation Measures'!KA143","v":0},{"$f":"'2. Conservation Measures'!KB143","v":0},{"$f":"'2. Conservation Measures'!KC143","v":0},{"$f":"'2. Conservation Measures'!KD143","v":0},{"$f":"'2. Conservation Measures'!KE143","v":0},{"$f":"'2. Conservation Measures'!KF143","v":0},{"$f":"'2. Conservation Measures'!KG143","v":0},{"$f":"'2. Conservation Measures'!KH143","v":0},{"$f":"'2. Conservation Measures'!KI143","v":0},{"$f":"'2. Conservation Measures'!KJ143","v":0},{"$f":"'2. Conservation Measures'!KK143","v":0},{"$f":"'2. Conservation Measures'!KL143","v":0},{"$f":"'2. Conservation Measures'!KM143","v":0},{"$f":"'2. Conservation Measures'!KN143","v":0}]
[null,{"$f":"'2. Conservation Measures'!B144","v":"USR-UTL-15"},{"$f":"'2. Conservation Measures'!C144","v":0},{"$f":"'2. Conservation Measures'!D144","v":"N"},null,{"$f":"'2. Conservation Measures'!AA144","v":0},null,{"$f":"'2. Conservation Measures'!AO144","v":0},{"$f":"'2. Conservation Measures'!AP144","v":0},{"$f":"'2. Conservation Measures'!AQ144","v":0},{"$f":"'2. Conservation Measures'!AR144","v":0},{"$f":"'2. Conservation Measures'!AS144","v":0},{"$f":"'2. Conservation Measures'!AT144","v":0},{"$f":"'2. Conservation Measures'!AU144","v":0},{"$f":"'2. Conservation Measures'!AV144","v":0},{"$f":"'2. Conservation Measures'!AW144","v":0},{"$f":"'2. Conservation Measures'!AX144","v":0},{"$f":"'2. Conservation Measures'!AY144","v":0},{"$f":"'2. Conservation Measures'!AZ144","v":0},{"$f":"'2. Conservation Measures'!BA144","v":0},{"$f":"'2. Conservation Measures'!BB144","v":0},{"$f":"'2. Conservation Measures'!BC144","v":0},{"$f":"'2. Conservation Measures'!BD144","v":0},{"$f":"'2. Conservation Measures'!BE144","v":0},{"$f":"'2. Conservation Measures'!BF144","v":0},{"$f":"'2. Conservation Measures'!BG144","v":0},{"$f":"'2. Conservation Measures'!BH144","v":0},{"$f":"'2. Conservation Measures'!BI144","v":0},{"$f":"'2. Conservation Measures'!BJ144","v":0},{"$f":"'2. Conservation Measures'!BK144","v":0},{"$f":"'2. Conservation Measures'!BL144","v":0},{"$f":"'2. Conservation Measures'!BM144","v":0},{"$f":"'2. Conservation Measures'!BN144","v":0},{"$f":"'2. Conservation Measures'!BO144","v":0},{"$f":"'2. Conservation Measures'!BP144","v":0},{"$f":"'2. Conservation Measures'!BQ144","v":0},{"$f":"'2. Conservation Measures'!BR144","v":0},{"$f":"'2. Conservation Measures'!BS144","v":0},{"$f":"'2. Conservation Measures'!BT144","v":0},{"$f":"'2. Conservation Measures'!BU144","v":0},{"$f":"'2. Conservation Measures'!BV144","v":0},{"$f":"'2. Conservation Measures'!BW144","v":0},{"$f":"'2. Conservation Measures'!BX144","v":0},{"$f":"'2. Conservation Measures'!BY144","v":0},{"$f":"'2. Conservation Measures'!BZ144","v":0},{"$f":"'2. Conservation Measures'!CA144","v":0},{"$f":"'2. Conservation Measures'!CB144","v":0},{"$f":"'2. Conservation Measures'!CC144","v":0},{"$f":"'2. Conservation Measures'!CD144","v":0},{"$f":"'2. Conservation Measures'!CE144","v":0},{"$f":"'2. Conservation Measures'!CF144","v":0},{"$f":"'2. Conservation Measures'!CG144","v":0},{"$f":"'2. Conservation Measures'!CH144","v":0},{"$f":"'2. Conservation Measures'!CI144","v":0},{"$f":"'2. Conservation Measures'!CJ144","v":0},{"$f":"'2. Conservation Measures'!CK144","v":0},{"$f":"'2. Conservation Measures'!CL144","v":0},{"$f":"'2. Conservation Measures'!CM144","v":0},null,{"$f":"'2. Conservation Measures'!CO144","v":0},{"$f":"'2. Conservation Measures'!CP144","v":0},{"$f":"'2. Conservation Measures'!CQ144","v":0},{"$f":"'2. Conservation Measures'!CR144","v":0},{"$f":"'2. Conservation Measures'!CS144","v":0},{"$f":"'2. Conservation Measures'!CT144","v":0},{"$f":"'2. Conservation Measures'!CU144","v":0},{"$f":"'2. Conservation Measures'!CV144","v":0},{"$f":"'2. Conservation Measures'!CW144","v":0},{"$f":"'2. Conservation Measures'!CX144","v":0},{"$f":"'2. Conservation Measures'!CY144","v":0},{"$f":"'2. Conservation Measures'!CZ144","v":0},{"$f":"'2. Conservation Measures'!DA144","v":0},{"$f":"'2. Conservation Measures'!DB144","v":0},{"$f":"'2. Conservation Measures'!DC144","v":0},{"$f":"'2. Conservation Measures'!DD144","v":0},{"$f":"'2. Conservation Measures'!DE144","v":0},{"$f":"'2. Conservation Measures'!DF144","v":0},{"$f":"'2. Conservation Measures'!DG144","v":0},{"$f":"'2. Conservation Measures'!DH144","v":0},{"$f":"'2. Conservation Measures'!DI144","v":0},{"$f":"'2. Conservation Measures'!DJ144","v":0},{"$f":"'2. Conservation Measures'!DK144","v":0},{"$f":"'2. Conservation Measures'!DL144","v":0},{"$f":"'2. Conservation Measures'!DM144","v":0},{"$f":"'2. Conservation Measures'!DN144","v":0},{"$f":"'2. Conservation Measures'!DO144","v":0},{"$f":"'2. Conservation Measures'!DP144","v":0},{"$f":"'2. Conservation Measures'!DQ144","v":0},{"$f":"'2. Conservation Measures'!DR144","v":0},{"$f":"'2. Conservation Measures'!DS144","v":0},{"$f":"'2. Conservation Measures'!DT144","v":0},{"$f":"'2. Conservation Measures'!DU144","v":0},{"$f":"'2. Conservation Measures'!DV144","v":0},{"$f":"'2. Conservation Measures'!DW144","v":0},{"$f":"'2. Conservation Measures'!DX144","v":0},{"$f":"'2. Conservation Measures'!DY144","v":0},{"$f":"'2. Conservation Measures'!DZ144","v":0},{"$f":"'2. Conservation Measures'!EA144","v":0},{"$f":"'2. Conservation Measures'!EB144","v":0},{"$f":"'2. Conservation Measures'!EC144","v":0},{"$f":"'2. Conservation Measures'!ED144","v":0},{"$f":"'2. Conservation Measures'!EE144","v":0},{"$f":"'2. Conservation Measures'!EF144","v":0},{"$f":"'2. Conservation Measures'!EG144","v":0},{"$f":"'2. Conservation Measures'!EH144","v":0},{"$f":"'2. Conservation Measures'!EI144","v":0},{"$f":"'2. Conservation Measures'!EJ144","v":0},{"$f":"'2. Conservation Measures'!EK144","v":0},{"$f":"'2. Conservation Measures'!EL144","v":0},{"$f":"'2. Conservation Measures'!EM144","v":0},null,{"$f":"'2. Conservation Measures'!KP144","v":0},{"$f":"'2. Conservation Measures'!KQ144","v":0},{"$f":"'2. Conservation Measures'!KR144","v":0},{"$f":"'2. Conservation Measures'!KS144","v":0},{"$f":"'2. Conservation Measures'!KT144","v":0},{"$f":"'2. Conservation Measures'!KU144","v":0},{"$f":"'2. Conservation Measures'!KV144","v":0},{"$f":"'2. Conservation Measures'!KW144","v":0},{"$f":"'2. Conservation Measures'!KX144","v":0},{"$f":"'2. Conservation Measures'!KY144","v":0},{"$f":"'2. Conservation Measures'!KZ144","v":0},{"$f":"'2. Conservation Measures'!LA144","v":0},{"$f":"'2. Conservation Measures'!LB144","v":0},{"$f":"'2. Conservation Measures'!LC144","v":0},{"$f":"'2. Conservation Measures'!LD144","v":0},{"$f":"'2. Conservation Measures'!LE144","v":0},{"$f":"'2. Conservation Measures'!LF144","v":0},{"$f":"'2. Conservation Measures'!LG144","v":0},{"$f":"'2. Conservation Measures'!LH144","v":0},{"$f":"'2. Conservation Measures'!LI144","v":0},{"$f":"'2. Conservation Measures'!LJ144","v":0},{"$f":"'2. Conservation Measures'!LK144","v":0},{"$f":"'2. Conservation Measures'!LL144","v":0},{"$f":"'2. Conservation Measures'!LM144","v":0},{"$f":"'2. Conservation Measures'!LN144","v":0},{"$f":"'2. Conservation Measures'!LO144","v":0},{"$f":"'2. Conservation Measures'!LP144","v":0},{"$f":"'2. Conservation Measures'!LQ144","v":0},{"$f":"'2. Conservation Measures'!LR144","v":0},{"$f":"'2. Conservation Measures'!LS144","v":0},{"$f":"'2. Conservation Measures'!LT144","v":0},{"$f":"'2. Conservation Measures'!LU144","v":0},{"$f":"'2. Conservation Measures'!LV144","v":0},{"$f":"'2. Conservation Measures'!LW144","v":0},{"$f":"'2. Conservation Measures'!LX144","v":0},{"$f":"'2. Conservation Measures'!LY144","v":0},{"$f":"'2. Conservation Measures'!LZ144","v":0},{"$f":"'2. Conservation Measures'!MA144","v":0},{"$f":"'2. Conservation Measures'!MB144","v":0},{"$f":"'2. Conservation Measures'!MC144","v":0},{"$f":"'2. Conservation Measures'!MD144","v":0},{"$f":"'2. Conservation Measures'!ME144","v":0},{"$f":"'2. Conservation Measures'!MF144","v":0},{"$f":"'2. Conservation Measures'!MG144","v":0},{"$f":"'2. Conservation Measures'!MH144","v":0},{"$f":"'2. Conservation Measures'!MI144","v":0},{"$f":"'2. Conservation Measures'!MJ144","v":0},{"$f":"'2. Conservation Measures'!MK144","v":0},{"$f":"'2. Conservation Measures'!ML144","v":0},{"$f":"'2. Conservation Measures'!MM144","v":0},{"$f":"'2. Conservation Measures'!MN144","v":0},null,{"$f":"'2. Conservation Measures'!EP144","v":0},{"$f":"'2. Conservation Measures'!EQ144","v":0},{"$f":"'2. Conservation Measures'!ER144","v":0},{"$f":"'2. Conservation Measures'!ES144","v":0},{"$f":"'2. Conservation Measures'!ET144","v":0},{"$f":"'2. Conservation Measures'!EU144","v":0},{"$f":"'2. Conservation Measures'!EV144","v":0},{"$f":"'2. Conservation Measures'!EW144","v":0},{"$f":"'2. Conservation Measures'!EX144","v":0},{"$f":"'2. Conservation Measures'!EY144","v":0},{"$f":"'2. Conservation Measures'!EZ144","v":0},{"$f":"'2. Conservation Measures'!FA144","v":0},{"$f":"'2. Conservation Measures'!FB144","v":0},{"$f":"'2. Conservation Measures'!FC144","v":0},{"$f":"'2. Conservation Measures'!FD144","v":0},{"$f":"'2. Conservation Measures'!FE144","v":0},{"$f":"'2. Conservation Measures'!FF144","v":0},{"$f":"'2. Conservation Measures'!FG144","v":0},{"$f":"'2. Conservation Measures'!FH144","v":0},{"$f":"'2. Conservation Measures'!FI144","v":0},{"$f":"'2. Conservation Measures'!FJ144","v":0},{"$f":"'2. Conservation Measures'!FK144","v":0},{"$f":"'2. Conservation Measures'!FL144","v":0},{"$f":"'2. Conservation Measures'!FM144","v":0},{"$f":"'2. Conservation Measures'!FN144","v":0},{"$f":"'2. Conservation Measures'!FO144","v":0},{"$f":"'2. Conservation Measures'!FP144","v":0},{"$f":"'2. Conservation Measures'!FQ144","v":0},{"$f":"'2. Conservation Measures'!FR144","v":0},{"$f":"'2. Conservation Measures'!FS144","v":0},{"$f":"'2. Conservation Measures'!FT144","v":0},{"$f":"'2. Conservation Measures'!FU144","v":0},{"$f":"'2. Conservation Measures'!FV144","v":0},{"$f":"'2. Conservation Measures'!FW144","v":0},{"$f":"'2. Conservation Measures'!FX144","v":0},{"$f":"'2. Conservation Measures'!FY144","v":0},{"$f":"'2. Conservation Measures'!FZ144","v":0},{"$f":"'2. Conservation Measures'!GA144","v":0},{"$f":"'2. Conservation Measures'!GB144","v":0},{"$f":"'2. Conservation Measures'!GC144","v":0},{"$f":"'2. Conservation Measures'!GD144","v":0},{"$f":"'2. Conservation Measures'!GE144","v":0},{"$f":"'2. Conservation Measures'!GF144","v":0},{"$f":"'2. Conservation Measures'!GG144","v":0},{"$f":"'2. Conservation Measures'!GH144","v":0},{"$f":"'2. Conservation Measures'!GI144","v":0},{"$f":"'2. Conservation Measures'!GJ144","v":0},{"$f":"'2. Conservation Measures'!GK144","v":0},{"$f":"'2. Conservation Measures'!GL144","v":0},{"$f":"'2. Conservation Measures'!GM144","v":0},{"$f":"'2. Conservation Measures'!GN144","v":0},null,{"$f":"'2. Conservation Measures'!GP144","v":0},{"$f":"'2. Conservation Measures'!GQ144","v":0},{"$f":"'2. Conservation Measures'!GR144","v":0},{"$f":"'2. Conservation Measures'!GS144","v":0},{"$f":"'2. Conservation Measures'!GT144","v":0},{"$f":"'2. Conservation Measures'!GU144","v":0},{"$f":"'2. Conservation Measures'!GV144","v":0},{"$f":"'2. Conservation Measures'!GW144","v":0},{"$f":"'2. Conservation Measures'!GX144","v":0},{"$f":"'2. Conservation Measures'!GY144","v":0},{"$f":"'2. Conservation Measures'!GZ144","v":0},{"$f":"'2. Conservation Measures'!HA144","v":0},{"$f":"'2. Conservation Measures'!HB144","v":0},{"$f":"'2. Conservation Measures'!HC144","v":0},{"$f":"'2. Conservation Measures'!HD144","v":0},{"$f":"'2. Conservation Measures'!HE144","v":0},{"$f":"'2. Conservation Measures'!HF144","v":0},{"$f":"'2. Conservation Measures'!HG144","v":0},{"$f":"'2. Conservation Measures'!HH144","v":0},{"$f":"'2. Conservation Measures'!HI144","v":0},{"$f":"'2. Conservation Measures'!HJ144","v":0},{"$f":"'2. Conservation Measures'!HK144","v":0},{"$f":"'2. Conservation Measures'!HL144","v":0},{"$f":"'2. Conservation Measures'!HM144","v":0},{"$f":"'2. Conservation Measures'!HN144","v":0},{"$f":"'2. Conservation Measures'!HO144","v":0},{"$f":"'2. Conservation Measures'!HP144","v":0},{"$f":"'2. Conservation Measures'!HQ144","v":0},{"$f":"'2. Conservation Measures'!HR144","v":0},{"$f":"'2. Conservation Measures'!HS144","v":0},{"$f":"'2. Conservation Measures'!HT144","v":0},{"$f":"'2. Conservation Measures'!HU144","v":0},{"$f":"'2. Conservation Measures'!HV144","v":0},{"$f":"'2. Conservation Measures'!HW144","v":0},{"$f":"'2. Conservation Measures'!HX144","v":0},{"$f":"'2. Conservation Measures'!HY144","v":0},{"$f":"'2. Conservation Measures'!HZ144","v":0},{"$f":"'2. Conservation Measures'!IA144","v":0},{"$f":"'2. Conservation Measures'!IB144","v":0},{"$f":"'2. Conservation Measures'!IC144","v":0},{"$f":"'2. Conservation Measures'!ID144","v":0},{"$f":"'2. Conservation Measures'!IE144","v":0},{"$f":"'2. Conservation Measures'!IF144","v":0},{"$f":"'2. Conservation Measures'!IG144","v":0},{"$f":"'2. Conservation Measures'!IH144","v":0},{"$f":"'2. Conservation Measures'!II144","v":0},{"$f":"'2. Conservation Measures'!IJ144","v":0},{"$f":"'2. Conservation Measures'!IK144","v":0},{"$f":"'2. Conservation Measures'!IL144","v":0},{"$f":"'2. Conservation Measures'!IM144","v":0},{"$f":"'2. Conservation Measures'!IN144","v":0},null,{"$f":"'2. Conservation Measures'!IP144","v":0},{"$f":"'2. Conservation Measures'!IQ144","v":0},{"$f":"'2. Conservation Measures'!IR144","v":0},{"$f":"'2. Conservation Measures'!IS144","v":0},{"$f":"'2. Conservation Measures'!IT144","v":0},{"$f":"'2. Conservation Measures'!IU144","v":0},{"$f":"'2. Conservation Measures'!IV144","v":0},{"$f":"'2. Conservation Measures'!IW144","v":0},{"$f":"'2. Conservation Measures'!IX144","v":0},{"$f":"'2. Conservation Measures'!IY144","v":0},{"$f":"'2. Conservation Measures'!IZ144","v":0},{"$f":"'2. Conservation Measures'!JA144","v":0},{"$f":"'2. Conservation Measures'!JB144","v":0},{"$f":"'2. Conservation Measures'!JC144","v":0},{"$f":"'2. Conservation Measures'!JD144","v":0},{"$f":"'2. Conservation Measures'!JE144","v":0},{"$f":"'2. Conservation Measures'!JF144","v":0},{"$f":"'2. Conservation Measures'!JG144","v":0},{"$f":"'2. Conservation Measures'!JH144","v":0},{"$f":"'2. Conservation Measures'!JI144","v":0},{"$f":"'2. Conservation Measures'!JJ144","v":0},{"$f":"'2. Conservation Measures'!JK144","v":0},{"$f":"'2. Conservation Measures'!JL144","v":0},{"$f":"'2. Conservation Measures'!JM144","v":0},{"$f":"'2. Conservation Measures'!JN144","v":0},{"$f":"'2. Conservation Measures'!JO144","v":0},{"$f":"'2. Conservation Measures'!JP144","v":0},{"$f":"'2. Conservation Measures'!JQ144","v":0},{"$f":"'2. Conservation Measures'!JR144","v":0},{"$f":"'2. Conservation Measures'!JS144","v":0},{"$f":"'2. Conservation Measures'!JT144","v":0},{"$f":"'2. Conservation Measures'!JU144","v":0},{"$f":"'2. Conservation Measures'!JV144","v":0},{"$f":"'2. Conservation Measures'!JW144","v":0},{"$f":"'2. Conservation Measures'!JX144","v":0},{"$f":"'2. Conservation Measures'!JY144","v":0},{"$f":"'2. Conservation Measures'!JZ144","v":0},{"$f":"'2. Conservation Measures'!KA144","v":0},{"$f":"'2. Conservation Measures'!KB144","v":0},{"$f":"'2. Conservation Measures'!KC144","v":0},{"$f":"'2. Conservation Measures'!KD144","v":0},{"$f":"'2. Conservation Measures'!KE144","v":0},{"$f":"'2. Conservation Measures'!KF144","v":0},{"$f":"'2. Conservation Measures'!KG144","v":0},{"$f":"'2. Conservation Measures'!KH144","v":0},{"$f":"'2. Conservation Measures'!KI144","v":0},{"$f":"'2. Conservation Measures'!KJ144","v":0},{"$f":"'2. Conservation Measures'!KK144","v":0},{"$f":"'2. Conservation Measures'!KL144","v":0},{"$f":"'2. Conservation Measures'!KM144","v":0},{"$f":"'2. Conservation Measures'!KN144","v":0}]
[null,{"$f":"'2. Conservation Measures'!B145","v":"USR-UTL-16"},{"$f":"'2. Conservation Measures'!C145","v":0},{"$f":"'2. Conservation Measures'!D145","v":"N"},null,{"$f":"'2. Conservation Measures'!AA145","v":0},null,{"$f":"'2. Conservation Measures'!AO145","v":0},{"$f":"'2. Conservation Measures'!AP145","v":0},{"$f":"'2. Conservation Measures'!AQ145","v":0},{"$f":"'2. Conservation Measures'!AR145","v":0},{"$f":"'2. Conservation Measures'!AS145","v":0},{"$f":"'2. Conservation Measures'!AT145","v":0},{"$f":"'2. Conservation Measures'!AU145","v":0},{"$f":"'2. Conservation Measures'!AV145","v":0},{"$f":"'2. Conservation Measures'!AW145","v":0},{"$f":"'2. Conservation Measures'!AX145","v":0},{"$f":"'2. Conservation Measures'!AY145","v":0},{"$f":"'2. Conservation Measures'!AZ145","v":0},{"$f":"'2. Conservation Measures'!BA145","v":0},{"$f":"'2. Conservation Measures'!BB145","v":0},{"$f":"'2. Conservation Measures'!BC145","v":0},{"$f":"'2. Conservation Measures'!BD145","v":0},{"$f":"'2. Conservation Measures'!BE145","v":0},{"$f":"'2. Conservation Measures'!BF145","v":0},{"$f":"'2. Conservation Measures'!BG145","v":0},{"$f":"'2. Conservation Measures'!BH145","v":0},{"$f":"'2. Conservation Measures'!BI145","v":0},{"$f":"'2. Conservation Measures'!BJ145","v":0},{"$f":"'2. Conservation Measures'!BK145","v":0},{"$f":"'2. Conservation Measures'!BL145","v":0},{"$f":"'2. Conservation Measures'!BM145","v":0},{"$f":"'2. Conservation Measures'!BN145","v":0},{"$f":"'2. Conservation Measures'!BO145","v":0},{"$f":"'2. Conservation Measures'!BP145","v":0},{"$f":"'2. Conservation Measures'!BQ145","v":0},{"$f":"'2. Conservation Measures'!BR145","v":0},{"$f":"'2. Conservation Measures'!BS145","v":0},{"$f":"'2. Conservation Measures'!BT145","v":0},{"$f":"'2. Conservation Measures'!BU145","v":0},{"$f":"'2. Conservation Measures'!BV145","v":0},{"$f":"'2. Conservation Measures'!BW145","v":0},{"$f":"'2. Conservation Measures'!BX145","v":0},{"$f":"'2. Conservation Measures'!BY145","v":0},{"$f":"'2. Conservation Measures'!BZ145","v":0},{"$f":"'2. Conservation Measures'!CA145","v":0},{"$f":"'2. Conservation Measures'!CB145","v":0},{"$f":"'2. Conservation Measures'!CC145","v":0},{"$f":"'2. Conservation Measures'!CD145","v":0},{"$f":"'2. Conservation Measures'!CE145","v":0},{"$f":"'2. Conservation Measures'!CF145","v":0},{"$f":"'2. Conservation Measures'!CG145","v":0},{"$f":"'2. Conservation Measures'!CH145","v":0},{"$f":"'2. Conservation Measures'!CI145","v":0},{"$f":"'2. Conservation Measures'!CJ145","v":0},{"$f":"'2. Conservation Measures'!CK145","v":0},{"$f":"'2. Conservation Measures'!CL145","v":0},{"$f":"'2. Conservation Measures'!CM145","v":0},null,{"$f":"'2. Conservation Measures'!CO145","v":0},{"$f":"'2. Conservation Measures'!CP145","v":0},{"$f":"'2. Conservation Measures'!CQ145","v":0},{"$f":"'2. Conservation Measures'!CR145","v":0},{"$f":"'2. Conservation Measures'!CS145","v":0},{"$f":"'2. Conservation Measures'!CT145","v":0},{"$f":"'2. Conservation Measures'!CU145","v":0},{"$f":"'2. Conservation Measures'!CV145","v":0},{"$f":"'2. Conservation Measures'!CW145","v":0},{"$f":"'2. Conservation Measures'!CX145","v":0},{"$f":"'2. Conservation Measures'!CY145","v":0},{"$f":"'2. Conservation Measures'!CZ145","v":0},{"$f":"'2. Conservation Measures'!DA145","v":0},{"$f":"'2. Conservation Measures'!DB145","v":0},{"$f":"'2. Conservation Measures'!DC145","v":0},{"$f":"'2. Conservation Measures'!DD145","v":0},{"$f":"'2. Conservation Measures'!DE145","v":0},{"$f":"'2. Conservation Measures'!DF145","v":0},{"$f":"'2. Conservation Measures'!DG145","v":0},{"$f":"'2. Conservation Measures'!DH145","v":0},{"$f":"'2. Conservation Measures'!DI145","v":0},{"$f":"'2. Conservation Measures'!DJ145","v":0},{"$f":"'2. Conservation Measures'!DK145","v":0},{"$f":"'2. Conservation Measures'!DL145","v":0},{"$f":"'2. Conservation Measures'!DM145","v":0},{"$f":"'2. Conservation Measures'!DN145","v":0},{"$f":"'2. Conservation Measures'!DO145","v":0},{"$f":"'2. Conservation Measures'!DP145","v":0},{"$f":"'2. Conservation Measures'!DQ145","v":0},{"$f":"'2. Conservation Measures'!DR145","v":0},{"$f":"'2. Conservation Measures'!DS145","v":0},{"$f":"'2. Conservation Measures'!DT145","v":0},{"$f":"'2. Conservation Measures'!DU145","v":0},{"$f":"'2. Conservation Measures'!DV145","v":0},{"$f":"'2. Conservation Measures'!DW145","v":0},{"$f":"'2. Conservation Measures'!DX145","v":0},{"$f":"'2. Conservation Measures'!DY145","v":0},{"$f":"'2. Conservation Measures'!DZ145","v":0},{"$f":"'2. Conservation Measures'!EA145","v":0},{"$f":"'2. Conservation Measures'!EB145","v":0},{"$f":"'2. Conservation Measures'!EC145","v":0},{"$f":"'2. Conservation Measures'!ED145","v":0},{"$f":"'2. Conservation Measures'!EE145","v":0},{"$f":"'2. Conservation Measures'!EF145","v":0},{"$f":"'2. Conservation Measures'!EG145","v":0},{"$f":"'2. Conservation Measures'!EH145","v":0},{"$f":"'2. Conservation Measures'!EI145","v":0},{"$f":"'2. Conservation Measures'!EJ145","v":0},{"$f":"'2. Conservation Measures'!EK145","v":0},{"$f":"'2. Conservation Measures'!EL145","v":0},{"$f":"'2. Conservation Measures'!EM145","v":0},null,{"$f":"'2. Conservation Measures'!KP145","v":0},{"$f":"'2. Conservation Measures'!KQ145","v":0},{"$f":"'2. Conservation Measures'!KR145","v":0},{"$f":"'2. Conservation Measures'!KS145","v":0},{"$f":"'2. Conservation Measures'!KT145","v":0},{"$f":"'2. Conservation Measures'!KU145","v":0},{"$f":"'2. Conservation Measures'!KV145","v":0},{"$f":"'2. Conservation Measures'!KW145","v":0},{"$f":"'2. Conservation Measures'!KX145","v":0},{"$f":"'2. Conservation Measures'!KY145","v":0},{"$f":"'2. Conservation Measures'!KZ145","v":0},{"$f":"'2. Conservation Measures'!LA145","v":0},{"$f":"'2. Conservation Measures'!LB145","v":0},{"$f":"'2. Conservation Measures'!LC145","v":0},{"$f":"'2. Conservation Measures'!LD145","v":0},{"$f":"'2. Conservation Measures'!LE145","v":0},{"$f":"'2. Conservation Measures'!LF145","v":0},{"$f":"'2. Conservation Measures'!LG145","v":0},{"$f":"'2. Conservation Measures'!LH145","v":0},{"$f":"'2. Conservation Measures'!LI145","v":0},{"$f":"'2. Conservation Measures'!LJ145","v":0},{"$f":"'2. Conservation Measures'!LK145","v":0},{"$f":"'2. Conservation Measures'!LL145","v":0},{"$f":"'2. Conservation Measures'!LM145","v":0},{"$f":"'2. Conservation Measures'!LN145","v":0},{"$f":"'2. Conservation Measures'!LO145","v":0},{"$f":"'2. Conservation Measures'!LP145","v":0},{"$f":"'2. Conservation Measures'!LQ145","v":0},{"$f":"'2. Conservation Measures'!LR145","v":0},{"$f":"'2. Conservation Measures'!LS145","v":0},{"$f":"'2. Conservation Measures'!LT145","v":0},{"$f":"'2. Conservation Measures'!LU145","v":0},{"$f":"'2. Conservation Measures'!LV145","v":0},{"$f":"'2. Conservation Measures'!LW145","v":0},{"$f":"'2. Conservation Measures'!LX145","v":0},{"$f":"'2. Conservation Measures'!LY145","v":0},{"$f":"'2. Conservation Measures'!LZ145","v":0},{"$f":"'2. Conservation Measures'!MA145","v":0},{"$f":"'2. Conservation Measures'!MB145","v":0},{"$f":"'2. Conservation Measures'!MC145","v":0},{"$f":"'2. Conservation Measures'!MD145","v":0},{"$f":"'2. Conservation Measures'!ME145","v":0},{"$f":"'2. Conservation Measures'!MF145","v":0},{"$f":"'2. Conservation Measures'!MG145","v":0},{"$f":"'2. Conservation Measures'!MH145","v":0},{"$f":"'2. Conservation Measures'!MI145","v":0},{"$f":"'2. Conservation Measures'!MJ145","v":0},{"$f":"'2. Conservation Measures'!MK145","v":0},{"$f":"'2. Conservation Measures'!ML145","v":0},{"$f":"'2. Conservation Measures'!MM145","v":0},{"$f":"'2. Conservation Measures'!MN145","v":0},null,{"$f":"'2. Conservation Measures'!EP145","v":0},{"$f":"'2. Conservation Measures'!EQ145","v":0},{"$f":"'2. Conservation Measures'!ER145","v":0},{"$f":"'2. Conservation Measures'!ES145","v":0},{"$f":"'2. Conservation Measures'!ET145","v":0},{"$f":"'2. Conservation Measures'!EU145","v":0},{"$f":"'2. Conservation Measures'!EV145","v":0},{"$f":"'2. Conservation Measures'!EW145","v":0},{"$f":"'2. Conservation Measures'!EX145","v":0},{"$f":"'2. Conservation Measures'!EY145","v":0},{"$f":"'2. Conservation Measures'!EZ145","v":0},{"$f":"'2. Conservation Measures'!FA145","v":0},{"$f":"'2. Conservation Measures'!FB145","v":0},{"$f":"'2. Conservation Measures'!FC145","v":0},{"$f":"'2. Conservation Measures'!FD145","v":0},{"$f":"'2. Conservation Measures'!FE145","v":0},{"$f":"'2. Conservation Measures'!FF145","v":0},{"$f":"'2. Conservation Measures'!FG145","v":0},{"$f":"'2. Conservation Measures'!FH145","v":0},{"$f":"'2. Conservation Measures'!FI145","v":0},{"$f":"'2. Conservation Measures'!FJ145","v":0},{"$f":"'2. Conservation Measures'!FK145","v":0},{"$f":"'2. Conservation Measures'!FL145","v":0},{"$f":"'2. Conservation Measures'!FM145","v":0},{"$f":"'2. Conservation Measures'!FN145","v":0},{"$f":"'2. Conservation Measures'!FO145","v":0},{"$f":"'2. Conservation Measures'!FP145","v":0},{"$f":"'2. Conservation Measures'!FQ145","v":0},{"$f":"'2. Conservation Measures'!FR145","v":0},{"$f":"'2. Conservation Measures'!FS145","v":0},{"$f":"'2. Conservation Measures'!FT145","v":0},{"$f":"'2. Conservation Measures'!FU145","v":0},{"$f":"'2. Conservation Measures'!FV145","v":0},{"$f":"'2. Conservation Measures'!FW145","v":0},{"$f":"'2. Conservation Measures'!FX145","v":0},{"$f":"'2. Conservation Measures'!FY145","v":0},{"$f":"'2. Conservation Measures'!FZ145","v":0},{"$f":"'2. Conservation Measures'!GA145","v":0},{"$f":"'2. Conservation Measures'!GB145","v":0},{"$f":"'2. Conservation Measures'!GC145","v":0},{"$f":"'2. Conservation Measures'!GD145","v":0},{"$f":"'2. Conservation Measures'!GE145","v":0},{"$f":"'2. Conservation Measures'!GF145","v":0},{"$f":"'2. Conservation Measures'!GG145","v":0},{"$f":"'2. Conservation Measures'!GH145","v":0},{"$f":"'2. Conservation Measures'!GI145","v":0},{"$f":"'2. Conservation Measures'!GJ145","v":0},{"$f":"'2. Conservation Measures'!GK145","v":0},{"$f":"'2. Conservation Measures'!GL145","v":0},{"$f":"'2. Conservation Measures'!GM145","v":0},{"$f":"'2. Conservation Measures'!GN145","v":0},null,{"$f":"'2. Conservation Measures'!GP145","v":0},{"$f":"'2. Conservation Measures'!GQ145","v":0},{"$f":"'2. Conservation Measures'!GR145","v":0},{"$f":"'2. Conservation Measures'!GS145","v":0},{"$f":"'2. Conservation Measures'!GT145","v":0},{"$f":"'2. Conservation Measures'!GU145","v":0},{"$f":"'2. Conservation Measures'!GV145","v":0},{"$f":"'2. Conservation Measures'!GW145","v":0},{"$f":"'2. Conservation Measures'!GX145","v":0},{"$f":"'2. Conservation Measures'!GY145","v":0},{"$f":"'2. Conservation Measures'!GZ145","v":0},{"$f":"'2. Conservation Measures'!HA145","v":0},{"$f":"'2. Conservation Measures'!HB145","v":0},{"$f":"'2. Conservation Measures'!HC145","v":0},{"$f":"'2. Conservation Measures'!HD145","v":0},{"$f":"'2. Conservation Measures'!HE145","v":0},{"$f":"'2. Conservation Measures'!HF145","v":0},{"$f":"'2. Conservation Measures'!HG145","v":0},{"$f":"'2. Conservation Measures'!HH145","v":0},{"$f":"'2. Conservation Measures'!HI145","v":0},{"$f":"'2. Conservation Measures'!HJ145","v":0},{"$f":"'2. Conservation Measures'!HK145","v":0},{"$f":"'2. Conservation Measures'!HL145","v":0},{"$f":"'2. Conservation Measures'!HM145","v":0},{"$f":"'2. Conservation Measures'!HN145","v":0},{"$f":"'2. Conservation Measures'!HO145","v":0},{"$f":"'2. Conservation Measures'!HP145","v":0},{"$f":"'2. Conservation Measures'!HQ145","v":0},{"$f":"'2. Conservation Measures'!HR145","v":0},{"$f":"'2. Conservation Measures'!HS145","v":0},{"$f":"'2. Conservation Measures'!HT145","v":0},{"$f":"'2. Conservation Measures'!HU145","v":0},{"$f":"'2. Conservation Measures'!HV145","v":0},{"$f":"'2. Conservation Measures'!HW145","v":0},{"$f":"'2. Conservation Measures'!HX145","v":0},{"$f":"'2. Conservation Measures'!HY145","v":0},{"$f":"'2. Conservation Measures'!HZ145","v":0},{"$f":"'2. Conservation Measures'!IA145","v":0},{"$f":"'2. Conservation Measures'!IB145","v":0},{"$f":"'2. Conservation Measures'!IC145","v":0},{"$f":"'2. Conservation Measures'!ID145","v":0},{"$f":"'2. Conservation Measures'!IE145","v":0},{"$f":"'2. Conservation Measures'!IF145","v":0},{"$f":"'2. Conservation Measures'!IG145","v":0},{"$f":"'2. Conservation Measures'!IH145","v":0},{"$f":"'2. Conservation Measures'!II145","v":0},{"$f":"'2. Conservation Measures'!IJ145","v":0},{"$f":"'2. Conservation Measures'!IK145","v":0},{"$f":"'2. Conservation Measures'!IL145","v":0},{"$f":"'2. Conservation Measures'!IM145","v":0},{"$f":"'2. Conservation Measures'!IN145","v":0},null,{"$f":"'2. Conservation Measures'!IP145","v":0},{"$f":"'2. Conservation Measures'!IQ145","v":0},{"$f":"'2. Conservation Measures'!IR145","v":0},{"$f":"'2. Conservation Measures'!IS145","v":0},{"$f":"'2. Conservation Measures'!IT145","v":0},{"$f":"'2. Conservation Measures'!IU145","v":0},{"$f":"'2. Conservation Measures'!IV145","v":0},{"$f":"'2. Conservation Measures'!IW145","v":0},{"$f":"'2. Conservation Measures'!IX145","v":0},{"$f":"'2. Conservation Measures'!IY145","v":0},{"$f":"'2. Conservation Measures'!IZ145","v":0},{"$f":"'2. Conservation Measures'!JA145","v":0},{"$f":"'2. Conservation Measures'!JB145","v":0},{"$f":"'2. Conservation Measures'!JC145","v":0},{"$f":"'2. Conservation Measures'!JD145","v":0},{"$f":"'2. Conservation Measures'!JE145","v":0},{"$f":"'2. Conservation Measures'!JF145","v":0},{"$f":"'2. Conservation Measures'!JG145","v":0},{"$f":"'2. Conservation Measures'!JH145","v":0},{"$f":"'2. Conservation Measures'!JI145","v":0},{"$f":"'2. Conservation Measures'!JJ145","v":0},{"$f":"'2. Conservation Measures'!JK145","v":0},{"$f":"'2. Conservation Measures'!JL145","v":0},{"$f":"'2. Conservation Measures'!JM145","v":0},{"$f":"'2. Conservation Measures'!JN145","v":0},{"$f":"'2. Conservation Measures'!JO145","v":0},{"$f":"'2. Conservation Measures'!JP145","v":0},{"$f":"'2. Conservation Measures'!JQ145","v":0},{"$f":"'2. Conservation Measures'!JR145","v":0},{"$f":"'2. Conservation Measures'!JS145","v":0},{"$f":"'2. Conservation Measures'!JT145","v":0},{"$f":"'2. Conservation Measures'!JU145","v":0},{"$f":"'2. Conservation Measures'!JV145","v":0},{"$f":"'2. Conservation Measures'!JW145","v":0},{"$f":"'2. Conservation Measures'!JX145","v":0},{"$f":"'2. Conservation Measures'!JY145","v":0},{"$f":"'2. Conservation Measures'!JZ145","v":0},{"$f":"'2. Conservation Measures'!KA145","v":0},{"$f":"'2. Conservation Measures'!KB145","v":0},{"$f":"'2. Conservation Measures'!KC145","v":0},{"$f":"'2. Conservation Measures'!KD145","v":0},{"$f":"'2. Conservation Measures'!KE145","v":0},{"$f":"'2. Conservation Measures'!KF145","v":0},{"$f":"'2. Conservation Measures'!KG145","v":0},{"$f":"'2. Conservation Measures'!KH145","v":0},{"$f":"'2. Conservation Measures'!KI145","v":0},{"$f":"'2. Conservation Measures'!KJ145","v":0},{"$f":"'2. Conservation Measures'!KK145","v":0},{"$f":"'2. Conservation Measures'!KL145","v":0},{"$f":"'2. Conservation Measures'!KM145","v":0},{"$f":"'2. Conservation Measures'!KN145","v":0}]
[null,{"$f":"'2. Conservation Measures'!B146","v":"USR-UTL-17"},{"$f":"'2. Conservation Measures'!C146","v":0},{"$f":"'2. Conservation Measures'!D146","v":"N"},null,{"$f":"'2. Conservation Measures'!AA146","v":0},null,{"$f":"'2. Conservation Measures'!AO146","v":0},{"$f":"'2. Conservation Measures'!AP146","v":0},{"$f":"'2. Conservation Measures'!AQ146","v":0},{"$f":"'2. Conservation Measures'!AR146","v":0},{"$f":"'2. Conservation Measures'!AS146","v":0},{"$f":"'2. Conservation Measures'!AT146","v":0},{"$f":"'2. Conservation Measures'!AU146","v":0},{"$f":"'2. Conservation Measures'!AV146","v":0},{"$f":"'2. Conservation Measures'!AW146","v":0},{"$f":"'2. Conservation Measures'!AX146","v":0},{"$f":"'2. Conservation Measures'!AY146","v":0},{"$f":"'2. Conservation Measures'!AZ146","v":0},{"$f":"'2. Conservation Measures'!BA146","v":0},{"$f":"'2. Conservation Measures'!BB146","v":0},{"$f":"'2. Conservation Measures'!BC146","v":0},{"$f":"'2. Conservation Measures'!BD146","v":0},{"$f":"'2. Conservation Measures'!BE146","v":0},{"$f":"'2. Conservation Measures'!BF146","v":0},{"$f":"'2. Conservation Measures'!BG146","v":0},{"$f":"'2. Conservation Measures'!BH146","v":0},{"$f":"'2. Conservation Measures'!BI146","v":0},{"$f":"'2. Conservation Measures'!BJ146","v":0},{"$f":"'2. Conservation Measures'!BK146","v":0},{"$f":"'2. Conservation Measures'!BL146","v":0},{"$f":"'2. Conservation Measures'!BM146","v":0},{"$f":"'2. Conservation Measures'!BN146","v":0},{"$f":"'2. Conservation Measures'!BO146","v":0},{"$f":"'2. Conservation Measures'!BP146","v":0},{"$f":"'2. Conservation Measures'!BQ146","v":0},{"$f":"'2. Conservation Measures'!BR146","v":0},{"$f":"'2. Conservation Measures'!BS146","v":0},{"$f":"'2. Conservation Measures'!BT146","v":0},{"$f":"'2. Conservation Measures'!BU146","v":0},{"$f":"'2. Conservation Measures'!BV146","v":0},{"$f":"'2. Conservation Measures'!BW146","v":0},{"$f":"'2. Conservation Measures'!BX146","v":0},{"$f":"'2. Conservation Measures'!BY146","v":0},{"$f":"'2. Conservation Measures'!BZ146","v":0},{"$f":"'2. Conservation Measures'!CA146","v":0},{"$f":"'2. Conservation Measures'!CB146","v":0},{"$f":"'2. Conservation Measures'!CC146","v":0},{"$f":"'2. Conservation Measures'!CD146","v":0},{"$f":"'2. Conservation Measures'!CE146","v":0},{"$f":"'2. Conservation Measures'!CF146","v":0},{"$f":"'2. Conservation Measures'!CG146","v":0},{"$f":"'2. Conservation Measures'!CH146","v":0},{"$f":"'2. Conservation Measures'!CI146","v":0},{"$f":"'2. Conservation Measures'!CJ146","v":0},{"$f":"'2. Conservation Measures'!CK146","v":0},{"$f":"'2. Conservation Measures'!CL146","v":0},{"$f":"'2. Conservation Measures'!CM146","v":0},null,{"$f":"'2. Conservation Measures'!CO146","v":0},{"$f":"'2. Conservation Measures'!CP146","v":0},{"$f":"'2. Conservation Measures'!CQ146","v":0},{"$f":"'2. Conservation Measures'!CR146","v":0},{"$f":"'2. Conservation Measures'!CS146","v":0},{"$f":"'2. Conservation Measures'!CT146","v":0},{"$f":"'2. Conservation Measures'!CU146","v":0},{"$f":"'2. Conservation Measures'!CV146","v":0},{"$f":"'2. Conservation Measures'!CW146","v":0},{"$f":"'2. Conservation Measures'!CX146","v":0},{"$f":"'2. Conservation Measures'!CY146","v":0},{"$f":"'2. Conservation Measures'!CZ146","v":0},{"$f":"'2. Conservation Measures'!DA146","v":0},{"$f":"'2. Conservation Measures'!DB146","v":0},{"$f":"'2. Conservation Measures'!DC146","v":0},{"$f":"'2. Conservation Measures'!DD146","v":0},{"$f":"'2. Conservation Measures'!DE146","v":0},{"$f":"'2. Conservation Measures'!DF146","v":0},{"$f":"'2. Conservation Measures'!DG146","v":0},{"$f":"'2. Conservation Measures'!DH146","v":0},{"$f":"'2. Conservation Measures'!DI146","v":0},{"$f":"'2. Conservation Measures'!DJ146","v":0},{"$f":"'2. Conservation Measures'!DK146","v":0},{"$f":"'2. Conservation Measures'!DL146","v":0},{"$f":"'2. Conservation Measures'!DM146","v":0},{"$f":"'2. Conservation Measures'!DN146","v":0},{"$f":"'2. Conservation Measures'!DO146","v":0},{"$f":"'2. Conservation Measures'!DP146","v":0},{"$f":"'2. Conservation Measures'!DQ146","v":0},{"$f":"'2. Conservation Measures'!DR146","v":0},{"$f":"'2. Conservation Measures'!DS146","v":0},{"$f":"'2. Conservation Measures'!DT146","v":0},{"$f":"'2. Conservation Measures'!DU146","v":0},{"$f":"'2. Conservation Measures'!DV146","v":0},{"$f":"'2. Conservation Measures'!DW146","v":0},{"$f":"'2. Conservation Measures'!DX146","v":0},{"$f":"'2. Conservation Measures'!DY146","v":0},{"$f":"'2. Conservation Measures'!DZ146","v":0},{"$f":"'2. Conservation Measures'!EA146","v":0},{"$f":"'2. Conservation Measures'!EB146","v":0},{"$f":"'2. Conservation Measures'!EC146","v":0},{"$f":"'2. Conservation Measures'!ED146","v":0},{"$f":"'2. Conservation Measures'!EE146","v":0},{"$f":"'2. Conservation Measures'!EF146","v":0},{"$f":"'2. Conservation Measures'!EG146","v":0},{"$f":"'2. Conservation Measures'!EH146","v":0},{"$f":"'2. Conservation Measures'!EI146","v":0},{"$f":"'2. Conservation Measures'!EJ146","v":0},{"$f":"'2. Conservation Measures'!EK146","v":0},{"$f":"'2. Conservation Measures'!EL146","v":0},{"$f":"'2. Conservation Measures'!EM146","v":0},null,{"$f":"'2. Conservation Measures'!KP146","v":0},{"$f":"'2. Conservation Measures'!KQ146","v":0},{"$f":"'2. Conservation Measures'!KR146","v":0},{"$f":"'2. Conservation Measures'!KS146","v":0},{"$f":"'2. Conservation Measures'!KT146","v":0},{"$f":"'2. Conservation Measures'!KU146","v":0},{"$f":"'2. Conservation Measures'!KV146","v":0},{"$f":"'2. Conservation Measures'!KW146","v":0},{"$f":"'2. Conservation Measures'!KX146","v":0},{"$f":"'2. Conservation Measures'!KY146","v":0},{"$f":"'2. Conservation Measures'!KZ146","v":0},{"$f":"'2. Conservation Measures'!LA146","v":0},{"$f":"'2. Conservation Measures'!LB146","v":0},{"$f":"'2. Conservation Measures'!LC146","v":0},{"$f":"'2. Conservation Measures'!LD146","v":0},{"$f":"'2. Conservation Measures'!LE146","v":0},{"$f":"'2. Conservation Measures'!LF146","v":0},{"$f":"'2. Conservation Measures'!LG146","v":0},{"$f":"'2. Conservation Measures'!LH146","v":0},{"$f":"'2. Conservation Measures'!LI146","v":0},{"$f":"'2. Conservation Measures'!LJ146","v":0},{"$f":"'2. Conservation Measures'!LK146","v":0},{"$f":"'2. Conservation Measures'!LL146","v":0},{"$f":"'2. Conservation Measures'!LM146","v":0},{"$f":"'2. Conservation Measures'!LN146","v":0},{"$f":"'2. Conservation Measures'!LO146","v":0},{"$f":"'2. Conservation Measures'!LP146","v":0},{"$f":"'2. Conservation Measures'!LQ146","v":0},{"$f":"'2. Conservation Measures'!LR146","v":0},{"$f":"'2. Conservation Measures'!LS146","v":0},{"$f":"'2. Conservation Measures'!LT146","v":0},{"$f":"'2. Conservation Measures'!LU146","v":0},{"$f":"'2. Conservation Measures'!LV146","v":0},{"$f":"'2. Conservation Measures'!LW146","v":0},{"$f":"'2. Conservation Measures'!LX146","v":0},{"$f":"'2. Conservation Measures'!LY146","v":0},{"$f":"'2. Conservation Measures'!LZ146","v":0},{"$f":"'2. Conservation Measures'!MA146","v":0},{"$f":"'2. Conservation Measures'!MB146","v":0},{"$f":"'2. Conservation Measures'!MC146","v":0},{"$f":"'2. Conservation Measures'!MD146","v":0},{"$f":"'2. Conservation Measures'!ME146","v":0},{"$f":"'2. Conservation Measures'!MF146","v":0},{"$f":"'2. Conservation Measures'!MG146","v":0},{"$f":"'2. Conservation Measures'!MH146","v":0},{"$f":"'2. Conservation Measures'!MI146","v":0},{"$f":"'2. Conservation Measures'!MJ146","v":0},{"$f":"'2. Conservation Measures'!MK146","v":0},{"$f":"'2. Conservation Measures'!ML146","v":0},{"$f":"'2. Conservation Measures'!MM146","v":0},{"$f":"'2. Conservation Measures'!MN146","v":0},null,{"$f":"'2. Conservation Measures'!EP146","v":0},{"$f":"'2. Conservation Measures'!EQ146","v":0},{"$f":"'2. Conservation Measures'!ER146","v":0},{"$f":"'2. Conservation Measures'!ES146","v":0},{"$f":"'2. Conservation Measures'!ET146","v":0},{"$f":"'2. Conservation Measures'!EU146","v":0},{"$f":"'2. Conservation Measures'!EV146","v":0},{"$f":"'2. Conservation Measures'!EW146","v":0},{"$f":"'2. Conservation Measures'!EX146","v":0},{"$f":"'2. Conservation Measures'!EY146","v":0},{"$f":"'2. Conservation Measures'!EZ146","v":0},{"$f":"'2. Conservation Measures'!FA146","v":0},{"$f":"'2. Conservation Measures'!FB146","v":0},{"$f":"'2. Conservation Measures'!FC146","v":0},{"$f":"'2. Conservation Measures'!FD146","v":0},{"$f":"'2. Conservation Measures'!FE146","v":0},{"$f":"'2. Conservation Measures'!FF146","v":0},{"$f":"'2. Conservation Measures'!FG146","v":0},{"$f":"'2. Conservation Measures'!FH146","v":0},{"$f":"'2. Conservation Measures'!FI146","v":0},{"$f":"'2. Conservation Measures'!FJ146","v":0},{"$f":"'2. Conservation Measures'!FK146","v":0},{"$f":"'2. Conservation Measures'!FL146","v":0},{"$f":"'2. Conservation Measures'!FM146","v":0},{"$f":"'2. Conservation Measures'!FN146","v":0},{"$f":"'2. Conservation Measures'!FO146","v":0},{"$f":"'2. Conservation Measures'!FP146","v":0},{"$f":"'2. Conservation Measures'!FQ146","v":0},{"$f":"'2. Conservation Measures'!FR146","v":0},{"$f":"'2. Conservation Measures'!FS146","v":0},{"$f":"'2. Conservation Measures'!FT146","v":0},{"$f":"'2. Conservation Measures'!FU146","v":0},{"$f":"'2. Conservation Measures'!FV146","v":0},{"$f":"'2. Conservation Measures'!FW146","v":0},{"$f":"'2. Conservation Measures'!FX146","v":0},{"$f":"'2. Conservation Measures'!FY146","v":0},{"$f":"'2. Conservation Measures'!FZ146","v":0},{"$f":"'2. Conservation Measures'!GA146","v":0},{"$f":"'2. Conservation Measures'!GB146","v":0},{"$f":"'2. Conservation Measures'!GC146","v":0},{"$f":"'2. Conservation Measures'!GD146","v":0},{"$f":"'2. Conservation Measures'!GE146","v":0},{"$f":"'2. Conservation Measures'!GF146","v":0},{"$f":"'2. Conservation Measures'!GG146","v":0},{"$f":"'2. Conservation Measures'!GH146","v":0},{"$f":"'2. Conservation Measures'!GI146","v":0},{"$f":"'2. Conservation Measures'!GJ146","v":0},{"$f":"'2. Conservation Measures'!GK146","v":0},{"$f":"'2. Conservation Measures'!GL146","v":0},{"$f":"'2. Conservation Measures'!GM146","v":0},{"$f":"'2. Conservation Measures'!GN146","v":0},null,{"$f":"'2. Conservation Measures'!GP146","v":0},{"$f":"'2. Conservation Measures'!GQ146","v":0},{"$f":"'2. Conservation Measures'!GR146","v":0},{"$f":"'2. Conservation Measures'!GS146","v":0},{"$f":"'2. Conservation Measures'!GT146","v":0},{"$f":"'2. Conservation Measures'!GU146","v":0},{"$f":"'2. Conservation Measures'!GV146","v":0},{"$f":"'2. Conservation Measures'!GW146","v":0},{"$f":"'2. Conservation Measures'!GX146","v":0},{"$f":"'2. Conservation Measures'!GY146","v":0},{"$f":"'2. Conservation Measures'!GZ146","v":0},{"$f":"'2. Conservation Measures'!HA146","v":0},{"$f":"'2. Conservation Measures'!HB146","v":0},{"$f":"'2. Conservation Measures'!HC146","v":0},{"$f":"'2. Conservation Measures'!HD146","v":0},{"$f":"'2. Conservation Measures'!HE146","v":0},{"$f":"'2. Conservation Measures'!HF146","v":0},{"$f":"'2. Conservation Measures'!HG146","v":0},{"$f":"'2. Conservation Measures'!HH146","v":0},{"$f":"'2. Conservation Measures'!HI146","v":0},{"$f":"'2. Conservation Measures'!HJ146","v":0},{"$f":"'2. Conservation Measures'!HK146","v":0},{"$f":"'2. Conservation Measures'!HL146","v":0},{"$f":"'2. Conservation Measures'!HM146","v":0},{"$f":"'2. Conservation Measures'!HN146","v":0},{"$f":"'2. Conservation Measures'!HO146","v":0},{"$f":"'2. Conservation Measures'!HP146","v":0},{"$f":"'2. Conservation Measures'!HQ146","v":0},{"$f":"'2. Conservation Measures'!HR146","v":0},{"$f":"'2. Conservation Measures'!HS146","v":0},{"$f":"'2. Conservation Measures'!HT146","v":0},{"$f":"'2. Conservation Measures'!HU146","v":0},{"$f":"'2. Conservation Measures'!HV146","v":0},{"$f":"'2. Conservation Measures'!HW146","v":0},{"$f":"'2. Conservation Measures'!HX146","v":0},{"$f":"'2. Conservation Measures'!HY146","v":0},{"$f":"'2. Conservation Measures'!HZ146","v":0},{"$f":"'2. Conservation Measures'!IA146","v":0},{"$f":"'2. Conservation Measures'!IB146","v":0},{"$f":"'2. Conservation Measures'!IC146","v":0},{"$f":"'2. Conservation Measures'!ID146","v":0},{"$f":"'2. Conservation Measures'!IE146","v":0},{"$f":"'2. Conservation Measures'!IF146","v":0},{"$f":"'2. Conservation Measures'!IG146","v":0},{"$f":"'2. Conservation Measures'!IH146","v":0},{"$f":"'2. Conservation Measures'!II146","v":0},{"$f":"'2. Conservation Measures'!IJ146","v":0},{"$f":"'2. Conservation Measures'!IK146","v":0},{"$f":"'2. Conservation Measures'!IL146","v":0},{"$f":"'2. Conservation Measures'!IM146","v":0},{"$f":"'2. Conservation Measures'!IN146","v":0},null,{"$f":"'2. Conservation Measures'!IP146","v":0},{"$f":"'2. Conservation Measures'!IQ146","v":0},{"$f":"'2. Conservation Measures'!IR146","v":0},{"$f":"'2. Conservation Measures'!IS146","v":0},{"$f":"'2. Conservation Measures'!IT146","v":0},{"$f":"'2. Conservation Measures'!IU146","v":0},{"$f":"'2. Conservation Measures'!IV146","v":0},{"$f":"'2. Conservation Measures'!IW146","v":0},{"$f":"'2. Conservation Measures'!IX146","v":0},{"$f":"'2. Conservation Measures'!IY146","v":0},{"$f":"'2. Conservation Measures'!IZ146","v":0},{"$f":"'2. Conservation Measures'!JA146","v":0},{"$f":"'2. Conservation Measures'!JB146","v":0},{"$f":"'2. Conservation Measures'!JC146","v":0},{"$f":"'2. Conservation Measures'!JD146","v":0},{"$f":"'2. Conservation Measures'!JE146","v":0},{"$f":"'2. Conservation Measures'!JF146","v":0},{"$f":"'2. Conservation Measures'!JG146","v":0},{"$f":"'2. Conservation Measures'!JH146","v":0},{"$f":"'2. Conservation Measures'!JI146","v":0},{"$f":"'2. Conservation Measures'!JJ146","v":0},{"$f":"'2. Conservation Measures'!JK146","v":0},{"$f":"'2. Conservation Measures'!JL146","v":0},{"$f":"'2. Conservation Measures'!JM146","v":0},{"$f":"'2. Conservation Measures'!JN146","v":0},{"$f":"'2. Conservation Measures'!JO146","v":0},{"$f":"'2. Conservation Measures'!JP146","v":0},{"$f":"'2. Conservation Measures'!JQ146","v":0},{"$f":"'2. Conservation Measures'!JR146","v":0},{"$f":"'2. Conservation Measures'!JS146","v":0},{"$f":"'2. Conservation Measures'!JT146","v":0},{"$f":"'2. Conservation Measures'!JU146","v":0},{"$f":"'2. Conservation Measures'!JV146","v":0},{"$f":"'2. Conservation Measures'!JW146","v":0},{"$f":"'2. Conservation Measures'!JX146","v":0},{"$f":"'2. Conservation Measures'!JY146","v":0},{"$f":"'2. Conservation Measures'!JZ146","v":0},{"$f":"'2. Conservation Measures'!KA146","v":0},{"$f":"'2. Conservation Measures'!KB146","v":0},{"$f":"'2. Conservation Measures'!KC146","v":0},{"$f":"'2. Conservation Measures'!KD146","v":0},{"$f":"'2. Conservation Measures'!KE146","v":0},{"$f":"'2. Conservation Measures'!KF146","v":0},{"$f":"'2. Conservation Measures'!KG146","v":0},{"$f":"'2. Conservation Measures'!KH146","v":0},{"$f":"'2. Conservation Measures'!KI146","v":0},{"$f":"'2. Conservation Measures'!KJ146","v":0},{"$f":"'2. Conservation Measures'!KK146","v":0},{"$f":"'2. Conservation Measures'!KL146","v":0},{"$f":"'2. Conservation Measures'!KM146","v":0},{"$f":"'2. Conservation Measures'!KN146","v":0}]
[null,{"$f":"'2. Conservation Measures'!B147","v":"USR-UTL-18"},{"$f":"'2. Conservation Measures'!C147","v":0},{"$f":"'2. Conservation Measures'!D147","v":"N"},null,{"$f":"'2. Conservation Measures'!AA147","v":0},null,{"$f":"'2. Conservation Measures'!AO147","v":0},{"$f":"'2. Conservation Measures'!AP147","v":0},{"$f":"'2. Conservation Measures'!AQ147","v":0},{"$f":"'2. Conservation Measures'!AR147","v":0},{"$f":"'2. Conservation Measures'!AS147","v":0},{"$f":"'2. Conservation Measures'!AT147","v":0},{"$f":"'2. Conservation Measures'!AU147","v":0},{"$f":"'2. Conservation Measures'!AV147","v":0},{"$f":"'2. Conservation Measures'!AW147","v":0},{"$f":"'2. Conservation Measures'!AX147","v":0},{"$f":"'2. Conservation Measures'!AY147","v":0},{"$f":"'2. Conservation Measures'!AZ147","v":0},{"$f":"'2. Conservation Measures'!BA147","v":0},{"$f":"'2. Conservation Measures'!BB147","v":0},{"$f":"'2. Conservation Measures'!BC147","v":0},{"$f":"'2. Conservation Measures'!BD147","v":0},{"$f":"'2. Conservation Measures'!BE147","v":0},{"$f":"'2. Conservation Measures'!BF147","v":0},{"$f":"'2. Conservation Measures'!BG147","v":0},{"$f":"'2. Conservation Measures'!BH147","v":0},{"$f":"'2. Conservation Measures'!BI147","v":0},{"$f":"'2. Conservation Measures'!BJ147","v":0},{"$f":"'2. Conservation Measures'!BK147","v":0},{"$f":"'2. Conservation Measures'!BL147","v":0},{"$f":"'2. Conservation Measures'!BM147","v":0},{"$f":"'2. Conservation Measures'!BN147","v":0},{"$f":"'2. Conservation Measures'!BO147","v":0},{"$f":"'2. Conservation Measures'!BP147","v":0},{"$f":"'2. Conservation Measures'!BQ147","v":0},{"$f":"'2. Conservation Measures'!BR147","v":0},{"$f":"'2. Conservation Measures'!BS147","v":0},{"$f":"'2. Conservation Measures'!BT147","v":0},{"$f":"'2. Conservation Measures'!BU147","v":0},{"$f":"'2. Conservation Measures'!BV147","v":0},{"$f":"'2. Conservation Measures'!BW147","v":0},{"$f":"'2. Conservation Measures'!BX147","v":0},{"$f":"'2. Conservation Measures'!BY147","v":0},{"$f":"'2. Conservation Measures'!BZ147","v":0},{"$f":"'2. Conservation Measures'!CA147","v":0},{"$f":"'2. Conservation Measures'!CB147","v":0},{"$f":"'2. Conservation Measures'!CC147","v":0},{"$f":"'2. Conservation Measures'!CD147","v":0},{"$f":"'2. Conservation Measures'!CE147","v":0},{"$f":"'2. Conservation Measures'!CF147","v":0},{"$f":"'2. Conservation Measures'!CG147","v":0},{"$f":"'2. Conservation Measures'!CH147","v":0},{"$f":"'2. Conservation Measures'!CI147","v":0},{"$f":"'2. Conservation Measures'!CJ147","v":0},{"$f":"'2. Conservation Measures'!CK147","v":0},{"$f":"'2. Conservation Measures'!CL147","v":0},{"$f":"'2. Conservation Measures'!CM147","v":0},null,{"$f":"'2. Conservation Measures'!CO147","v":0},{"$f":"'2. Conservation Measures'!CP147","v":0},{"$f":"'2. Conservation Measures'!CQ147","v":0},{"$f":"'2. Conservation Measures'!CR147","v":0},{"$f":"'2. Conservation Measures'!CS147","v":0},{"$f":"'2. Conservation Measures'!CT147","v":0},{"$f":"'2. Conservation Measures'!CU147","v":0},{"$f":"'2. Conservation Measures'!CV147","v":0},{"$f":"'2. Conservation Measures'!CW147","v":0},{"$f":"'2. Conservation Measures'!CX147","v":0},{"$f":"'2. Conservation Measures'!CY147","v":0},{"$f":"'2. Conservation Measures'!CZ147","v":0},{"$f":"'2. Conservation Measures'!DA147","v":0},{"$f":"'2. Conservation Measures'!DB147","v":0},{"$f":"'2. Conservation Measures'!DC147","v":0},{"$f":"'2. Conservation Measures'!DD147","v":0},{"$f":"'2. Conservation Measures'!DE147","v":0},{"$f":"'2. Conservation Measures'!DF147","v":0},{"$f":"'2. Conservation Measures'!DG147","v":0},{"$f":"'2. Conservation Measures'!DH147","v":0},{"$f":"'2. Conservation Measures'!DI147","v":0},{"$f":"'2. Conservation Measures'!DJ147","v":0},{"$f":"'2. Conservation Measures'!DK147","v":0},{"$f":"'2. Conservation Measures'!DL147","v":0},{"$f":"'2. Conservation Measures'!DM147","v":0},{"$f":"'2. Conservation Measures'!DN147","v":0},{"$f":"'2. Conservation Measures'!DO147","v":0},{"$f":"'2. Conservation Measures'!DP147","v":0},{"$f":"'2. Conservation Measures'!DQ147","v":0},{"$f":"'2. Conservation Measures'!DR147","v":0},{"$f":"'2. Conservation Measures'!DS147","v":0},{"$f":"'2. Conservation Measures'!DT147","v":0},{"$f":"'2. Conservation Measures'!DU147","v":0},{"$f":"'2. Conservation Measures'!DV147","v":0},{"$f":"'2. Conservation Measures'!DW147","v":0},{"$f":"'2. Conservation Measures'!DX147","v":0},{"$f":"'2. Conservation Measures'!DY147","v":0},{"$f":"'2. Conservation Measures'!DZ147","v":0},{"$f":"'2. Conservation Measures'!EA147","v":0},{"$f":"'2. Conservation Measures'!EB147","v":0},{"$f":"'2. Conservation Measures'!EC147","v":0},{"$f":"'2. Conservation Measures'!ED147","v":0},{"$f":"'2. Conservation Measures'!EE147","v":0},{"$f":"'2. Conservation Measures'!EF147","v":0},{"$f":"'2. Conservation Measures'!EG147","v":0},{"$f":"'2. Conservation Measures'!EH147","v":0},{"$f":"'2. Conservation Measures'!EI147","v":0},{"$f":"'2. Conservation Measures'!EJ147","v":0},{"$f":"'2. Conservation Measures'!EK147","v":0},{"$f":"'2. Conservation Measures'!EL147","v":0},{"$f":"'2. Conservation Measures'!EM147","v":0},null,{"$f":"'2. Conservation Measures'!KP147","v":0},{"$f":"'2. Conservation Measures'!KQ147","v":0},{"$f":"'2. Conservation Measures'!KR147","v":0},{"$f":"'2. Conservation Measures'!KS147","v":0},{"$f":"'2. Conservation Measures'!KT147","v":0},{"$f":"'2. Conservation Measures'!KU147","v":0},{"$f":"'2. Conservation Measures'!KV147","v":0},{"$f":"'2. Conservation Measures'!KW147","v":0},{"$f":"'2. Conservation Measures'!KX147","v":0},{"$f":"'2. Conservation Measures'!KY147","v":0},{"$f":"'2. Conservation Measures'!KZ147","v":0},{"$f":"'2. Conservation Measures'!LA147","v":0},{"$f":"'2. Conservation Measures'!LB147","v":0},{"$f":"'2. Conservation Measures'!LC147","v":0},{"$f":"'2. Conservation Measures'!LD147","v":0},{"$f":"'2. Conservation Measures'!LE147","v":0},{"$f":"'2. Conservation Measures'!LF147","v":0},{"$f":"'2. Conservation Measures'!LG147","v":0},{"$f":"'2. Conservation Measures'!LH147","v":0},{"$f":"'2. Conservation Measures'!LI147","v":0},{"$f":"'2. Conservation Measures'!LJ147","v":0},{"$f":"'2. Conservation Measures'!LK147","v":0},{"$f":"'2. Conservation Measures'!LL147","v":0},{"$f":"'2. Conservation Measures'!LM147","v":0},{"$f":"'2. Conservation Measures'!LN147","v":0},{"$f":"'2. Conservation Measures'!LO147","v":0},{"$f":"'2. Conservation Measures'!LP147","v":0},{"$f":"'2. Conservation Measures'!LQ147","v":0},{"$f":"'2. Conservation Measures'!LR147","v":0},{"$f":"'2. Conservation Measures'!LS147","v":0},{"$f":"'2. Conservation Measures'!LT147","v":0},{"$f":"'2. Conservation Measures'!LU147","v":0},{"$f":"'2. Conservation Measures'!LV147","v":0},{"$f":"'2. Conservation Measures'!LW147","v":0},{"$f":"'2. Conservation Measures'!LX147","v":0},{"$f":"'2. Conservation Measures'!LY147","v":0},{"$f":"'2. Conservation Measures'!LZ147","v":0},{"$f":"'2. Conservation Measures'!MA147","v":0},{"$f":"'2. Conservation Measures'!MB147","v":0},{"$f":"'2. Conservation Measures'!MC147","v":0},{"$f":"'2. Conservation Measures'!MD147","v":0},{"$f":"'2. Conservation Measures'!ME147","v":0},{"$f":"'2. Conservation Measures'!MF147","v":0},{"$f":"'2. Conservation Measures'!MG147","v":0},{"$f":"'2. Conservation Measures'!MH147","v":0},{"$f":"'2. Conservation Measures'!MI147","v":0},{"$f":"'2. Conservation Measures'!MJ147","v":0},{"$f":"'2. Conservation Measures'!MK147","v":0},{"$f":"'2. Conservation Measures'!ML147","v":0},{"$f":"'2. Conservation Measures'!MM147","v":0},{"$f":"'2. Conservation Measures'!MN147","v":0},null,{"$f":"'2. Conservation Measures'!EP147","v":0},{"$f":"'2. Conservation Measures'!EQ147","v":0},{"$f":"'2. Conservation Measures'!ER147","v":0},{"$f":"'2. Conservation Measures'!ES147","v":0},{"$f":"'2. Conservation Measures'!ET147","v":0},{"$f":"'2. Conservation Measures'!EU147","v":0},{"$f":"'2. Conservation Measures'!EV147","v":0},{"$f":"'2. Conservation Measures'!EW147","v":0},{"$f":"'2. Conservation Measures'!EX147","v":0},{"$f":"'2. Conservation Measures'!EY147","v":0},{"$f":"'2. Conservation Measures'!EZ147","v":0},{"$f":"'2. Conservation Measures'!FA147","v":0},{"$f":"'2. Conservation Measures'!FB147","v":0},{"$f":"'2. Conservation Measures'!FC147","v":0},{"$f":"'2. Conservation Measures'!FD147","v":0},{"$f":"'2. Conservation Measures'!FE147","v":0},{"$f":"'2. Conservation Measures'!FF147","v":0},{"$f":"'2. Conservation Measures'!FG147","v":0},{"$f":"'2. Conservation Measures'!FH147","v":0},{"$f":"'2. Conservation Measures'!FI147","v":0},{"$f":"'2. Conservation Measures'!FJ147","v":0},{"$f":"'2. Conservation Measures'!FK147","v":0},{"$f":"'2. Conservation Measures'!FL147","v":0},{"$f":"'2. Conservation Measures'!FM147","v":0},{"$f":"'2. Conservation Measures'!FN147","v":0},{"$f":"'2. Conservation Measures'!FO147","v":0},{"$f":"'2. Conservation Measures'!FP147","v":0},{"$f":"'2. Conservation Measures'!FQ147","v":0},{"$f":"'2. Conservation Measures'!FR147","v":0},{"$f":"'2. Conservation Measures'!FS147","v":0},{"$f":"'2. Conservation Measures'!FT147","v":0},{"$f":"'2. Conservation Measures'!FU147","v":0},{"$f":"'2. Conservation Measures'!FV147","v":0},{"$f":"'2. Conservation Measures'!FW147","v":0},{"$f":"'2. Conservation Measures'!FX147","v":0},{"$f":"'2. Conservation Measures'!FY147","v":0},{"$f":"'2. Conservation Measures'!FZ147","v":0},{"$f":"'2. Conservation Measures'!GA147","v":0},{"$f":"'2. Conservation Measures'!GB147","v":0},{"$f":"'2. Conservation Measures'!GC147","v":0},{"$f":"'2. Conservation Measures'!GD147","v":0},{"$f":"'2. Conservation Measures'!GE147","v":0},{"$f":"'2. Conservation Measures'!GF147","v":0},{"$f":"'2. Conservation Measures'!GG147","v":0},{"$f":"'2. Conservation Measures'!GH147","v":0},{"$f":"'2. Conservation Measures'!GI147","v":0},{"$f":"'2. Conservation Measures'!GJ147","v":0},{"$f":"'2. Conservation Measures'!GK147","v":0},{"$f":"'2. Conservation Measures'!GL147","v":0},{"$f":"'2. Conservation Measures'!GM147","v":0},{"$f":"'2. Conservation Measures'!GN147","v":0},null,{"$f":"'2. Conservation Measures'!GP147","v":0},{"$f":"'2. Conservation Measures'!GQ147","v":0},{"$f":"'2. Conservation Measures'!GR147","v":0},{"$f":"'2. Conservation Measures'!GS147","v":0},{"$f":"'2. Conservation Measures'!GT147","v":0},{"$f":"'2. Conservation Measures'!GU147","v":0},{"$f":"'2. Conservation Measures'!GV147","v":0},{"$f":"'2. Conservation Measures'!GW147","v":0},{"$f":"'2. Conservation Measures'!GX147","v":0},{"$f":"'2. Conservation Measures'!GY147","v":0},{"$f":"'2. Conservation Measures'!GZ147","v":0},{"$f":"'2. Conservation Measures'!HA147","v":0},{"$f":"'2. Conservation Measures'!HB147","v":0},{"$f":"'2. Conservation Measures'!HC147","v":0},{"$f":"'2. Conservation Measures'!HD147","v":0},{"$f":"'2. Conservation Measures'!HE147","v":0},{"$f":"'2. Conservation Measures'!HF147","v":0},{"$f":"'2. Conservation Measures'!HG147","v":0},{"$f":"'2. Conservation Measures'!HH147","v":0},{"$f":"'2. Conservation Measures'!HI147","v":0},{"$f":"'2. Conservation Measures'!HJ147","v":0},{"$f":"'2. Conservation Measures'!HK147","v":0},{"$f":"'2. Conservation Measures'!HL147","v":0},{"$f":"'2. Conservation Measures'!HM147","v":0},{"$f":"'2. Conservation Measures'!HN147","v":0},{"$f":"'2. Conservation Measures'!HO147","v":0},{"$f":"'2. Conservation Measures'!HP147","v":0},{"$f":"'2. Conservation Measures'!HQ147","v":0},{"$f":"'2. Conservation Measures'!HR147","v":0},{"$f":"'2. Conservation Measures'!HS147","v":0},{"$f":"'2. Conservation Measures'!HT147","v":0},{"$f":"'2. Conservation Measures'!HU147","v":0},{"$f":"'2. Conservation Measures'!HV147","v":0},{"$f":"'2. Conservation Measures'!HW147","v":0},{"$f":"'2. Conservation Measures'!HX147","v":0},{"$f":"'2. Conservation Measures'!HY147","v":0},{"$f":"'2. Conservation Measures'!HZ147","v":0},{"$f":"'2. Conservation Measures'!IA147","v":0},{"$f":"'2. Conservation Measures'!IB147","v":0},{"$f":"'2. Conservation Measures'!IC147","v":0},{"$f":"'2. Conservation Measures'!ID147","v":0},{"$f":"'2. Conservation Measures'!IE147","v":0},{"$f":"'2. Conservation Measures'!IF147","v":0},{"$f":"'2. Conservation Measures'!IG147","v":0},{"$f":"'2. Conservation Measures'!IH147","v":0},{"$f":"'2. Conservation Measures'!II147","v":0},{"$f":"'2. Conservation Measures'!IJ147","v":0},{"$f":"'2. Conservation Measures'!IK147","v":0},{"$f":"'2. Conservation Measures'!IL147","v":0},{"$f":"'2. Conservation Measures'!IM147","v":0},{"$f":"'2. Conservation Measures'!IN147","v":0},null,{"$f":"'2. Conservation Measures'!IP147","v":0},{"$f":"'2. Conservation Measures'!IQ147","v":0},{"$f":"'2. Conservation Measures'!IR147","v":0},{"$f":"'2. Conservation Measures'!IS147","v":0},{"$f":"'2. Conservation Measures'!IT147","v":0},{"$f":"'2. Conservation Measures'!IU147","v":0},{"$f":"'2. Conservation Measures'!IV147","v":0},{"$f":"'2. Conservation Measures'!IW147","v":0},{"$f":"'2. Conservation Measures'!IX147","v":0},{"$f":"'2. Conservation Measures'!IY147","v":0},{"$f":"'2. Conservation Measures'!IZ147","v":0},{"$f":"'2. Conservation Measures'!JA147","v":0},{"$f":"'2. Conservation Measures'!JB147","v":0},{"$f":"'2. Conservation Measures'!JC147","v":0},{"$f":"'2. Conservation Measures'!JD147","v":0},{"$f":"'2. Conservation Measures'!JE147","v":0},{"$f":"'2. Conservation Measures'!JF147","v":0},{"$f":"'2. Conservation Measures'!JG147","v":0},{"$f":"'2. Conservation Measures'!JH147","v":0},{"$f":"'2. Conservation Measures'!JI147","v":0},{"$f":"'2. Conservation Measures'!JJ147","v":0},{"$f":"'2. Conservation Measures'!JK147","v":0},{"$f":"'2. Conservation Measures'!JL147","v":0},{"$f":"'2. Conservation Measures'!JM147","v":0},{"$f":"'2. Conservation Measures'!JN147","v":0},{"$f":"'2. Conservation Measures'!JO147","v":0},{"$f":"'2. Conservation Measures'!JP147","v":0},{"$f":"'2. Conservation Measures'!JQ147","v":0},{"$f":"'2. Conservation Measures'!JR147","v":0},{"$f":"'2. Conservation Measures'!JS147","v":0},{"$f":"'2. Conservation Measures'!JT147","v":0},{"$f":"'2. Conservation Measures'!JU147","v":0},{"$f":"'2. Conservation Measures'!JV147","v":0},{"$f":"'2. Conservation Measures'!JW147","v":0},{"$f":"'2. Conservation Measures'!JX147","v":0},{"$f":"'2. Conservation Measures'!JY147","v":0},{"$f":"'2. Conservation Measures'!JZ147","v":0},{"$f":"'2. Conservation Measures'!KA147","v":0},{"$f":"'2. Conservation Measures'!KB147","v":0},{"$f":"'2. Conservation Measures'!KC147","v":0},{"$f":"'2. Conservation Measures'!KD147","v":0},{"$f":"'2. Conservation Measures'!KE147","v":0},{"$f":"'2. Conservation Measures'!KF147","v":0},{"$f":"'2. Conservation Measures'!KG147","v":0},{"$f":"'2. Conservation Measures'!KH147","v":0},{"$f":"'2. Conservation Measures'!KI147","v":0},{"$f":"'2. Conservation Measures'!KJ147","v":0},{"$f":"'2. Conservation Measures'!KK147","v":0},{"$f":"'2. Conservation Measures'!KL147","v":0},{"$f":"'2. Conservation Measures'!KM147","v":0},{"$f":"'2. Conservation Measures'!KN147","v":0}]
[null,{"$f":"'2. Conservation Measures'!B148","v":"USR-UTL-19"},{"$f":"'2. Conservation Measures'!C148","v":0},{"$f":"'2. Conservation Measures'!D148","v":"N"},null,{"$f":"'2. Conservation Measures'!AA148","v":0},null,{"$f":"'2. Conservation Measures'!AO148","v":0},{"$f":"'2. Conservation Measures'!AP148","v":0},{"$f":"'2. Conservation Measures'!AQ148","v":0},{"$f":"'2. Conservation Measures'!AR148","v":0},{"$f":"'2. Conservation Measures'!AS148","v":0},{"$f":"'2. Conservation Measures'!AT148","v":0},{"$f":"'2. Conservation Measures'!AU148","v":0},{"$f":"'2. Conservation Measures'!AV148","v":0},{"$f":"'2. Conservation Measures'!AW148","v":0},{"$f":"'2. Conservation Measures'!AX148","v":0},{"$f":"'2. Conservation Measures'!AY148","v":0},{"$f":"'2. Conservation Measures'!AZ148","v":0},{"$f":"'2. Conservation Measures'!BA148","v":0},{"$f":"'2. Conservation Measures'!BB148","v":0},{"$f":"'2. Conservation Measures'!BC148","v":0},{"$f":"'2. Conservation Measures'!BD148","v":0},{"$f":"'2. Conservation Measures'!BE148","v":0},{"$f":"'2. Conservation Measures'!BF148","v":0},{"$f":"'2. Conservation Measures'!BG148","v":0},{"$f":"'2. Conservation Measures'!BH148","v":0},{"$f":"'2. Conservation Measures'!BI148","v":0},{"$f":"'2. Conservation Measures'!BJ148","v":0},{"$f":"'2. Conservation Measures'!BK148","v":0},{"$f":"'2. Conservation Measures'!BL148","v":0},{"$f":"'2. Conservation Measures'!BM148","v":0},{"$f":"'2. Conservation Measures'!BN148","v":0},{"$f":"'2. Conservation Measures'!BO148","v":0},{"$f":"'2. Conservation Measures'!BP148","v":0},{"$f":"'2. Conservation Measures'!BQ148","v":0},{"$f":"'2. Conservation Measures'!BR148","v":0},{"$f":"'2. Conservation Measures'!BS148","v":0},{"$f":"'2. Conservation Measures'!BT148","v":0},{"$f":"'2. Conservation Measures'!BU148","v":0},{"$f":"'2. Conservation Measures'!BV148","v":0},{"$f":"'2. Conservation Measures'!BW148","v":0},{"$f":"'2. Conservation Measures'!BX148","v":0},{"$f":"'2. Conservation Measures'!BY148","v":0},{"$f":"'2. Conservation Measures'!BZ148","v":0},{"$f":"'2. Conservation Measures'!CA148","v":0},{"$f":"'2. Conservation Measures'!CB148","v":0},{"$f":"'2. Conservation Measures'!CC148","v":0},{"$f":"'2. Conservation Measures'!CD148","v":0},{"$f":"'2. Conservation Measures'!CE148","v":0},{"$f":"'2. Conservation Measures'!CF148","v":0},{"$f":"'2. Conservation Measures'!CG148","v":0},{"$f":"'2. Conservation Measures'!CH148","v":0},{"$f":"'2. Conservation Measures'!CI148","v":0},{"$f":"'2. Conservation Measures'!CJ148","v":0},{"$f":"'2. Conservation Measures'!CK148","v":0},{"$f":"'2. Conservation Measures'!CL148","v":0},{"$f":"'2. Conservation Measures'!CM148","v":0},null,{"$f":"'2. Conservation Measures'!CO148","v":0},{"$f":"'2. Conservation Measures'!CP148","v":0},{"$f":"'2. Conservation Measures'!CQ148","v":0},{"$f":"'2. Conservation Measures'!CR148","v":0},{"$f":"'2. Conservation Measures'!CS148","v":0},{"$f":"'2. Conservation Measures'!CT148","v":0},{"$f":"'2. Conservation Measures'!CU148","v":0},{"$f":"'2. Conservation Measures'!CV148","v":0},{"$f":"'2. Conservation Measures'!CW148","v":0},{"$f":"'2. Conservation Measures'!CX148","v":0},{"$f":"'2. Conservation Measures'!CY148","v":0},{"$f":"'2. Conservation Measures'!CZ148","v":0},{"$f":"'2. Conservation Measures'!DA148","v":0},{"$f":"'2. Conservation Measures'!DB148","v":0},{"$f":"'2. Conservation Measures'!DC148","v":0},{"$f":"'2. Conservation Measures'!DD148","v":0},{"$f":"'2. Conservation Measures'!DE148","v":0},{"$f":"'2. Conservation Measures'!DF148","v":0},{"$f":"'2. Conservation Measures'!DG148","v":0},{"$f":"'2. Conservation Measures'!DH148","v":0},{"$f":"'2. Conservation Measures'!DI148","v":0},{"$f":"'2. Conservation Measures'!DJ148","v":0},{"$f":"'2. Conservation Measures'!DK148","v":0},{"$f":"'2. Conservation Measures'!DL148","v":0},{"$f":"'2. Conservation Measures'!DM148","v":0},{"$f":"'2. Conservation Measures'!DN148","v":0},{"$f":"'2. Conservation Measures'!DO148","v":0},{"$f":"'2. Conservation Measures'!DP148","v":0},{"$f":"'2. Conservation Measures'!DQ148","v":0},{"$f":"'2. Conservation Measures'!DR148","v":0},{"$f":"'2. Conservation Measures'!DS148","v":0},{"$f":"'2. Conservation Measures'!DT148","v":0},{"$f":"'2. Conservation Measures'!DU148","v":0},{"$f":"'2. Conservation Measures'!DV148","v":0},{"$f":"'2. Conservation Measures'!DW148","v":0},{"$f":"'2. Conservation Measures'!DX148","v":0},{"$f":"'2. Conservation Measures'!DY148","v":0},{"$f":"'2. Conservation Measures'!DZ148","v":0},{"$f":"'2. Conservation Measures'!EA148","v":0},{"$f":"'2. Conservation Measures'!EB148","v":0},{"$f":"'2. Conservation Measures'!EC148","v":0},{"$f":"'2. Conservation Measures'!ED148","v":0},{"$f":"'2. Conservation Measures'!EE148","v":0},{"$f":"'2. Conservation Measures'!EF148","v":0},{"$f":"'2. Conservation Measures'!EG148","v":0},{"$f":"'2. Conservation Measures'!EH148","v":0},{"$f":"'2. Conservation Measures'!EI148","v":0},{"$f":"'2. Conservation Measures'!EJ148","v":0},{"$f":"'2. Conservation Measures'!EK148","v":0},{"$f":"'2. Conservation Measures'!EL148","v":0},{"$f":"'2. Conservation Measures'!EM148","v":0},null,{"$f":"'2. Conservation Measures'!KP148","v":0},{"$f":"'2. Conservation Measures'!KQ148","v":0},{"$f":"'2. Conservation Measures'!KR148","v":0},{"$f":"'2. Conservation Measures'!KS148","v":0},{"$f":"'2. Conservation Measures'!KT148","v":0},{"$f":"'2. Conservation Measures'!KU148","v":0},{"$f":"'2. Conservation Measures'!KV148","v":0},{"$f":"'2. Conservation Measures'!KW148","v":0},{"$f":"'2. Conservation Measures'!KX148","v":0},{"$f":"'2. Conservation Measures'!KY148","v":0},{"$f":"'2. Conservation Measures'!KZ148","v":0},{"$f":"'2. Conservation Measures'!LA148","v":0},{"$f":"'2. Conservation Measures'!LB148","v":0},{"$f":"'2. Conservation Measures'!LC148","v":0},{"$f":"'2. Conservation Measures'!LD148","v":0},{"$f":"'2. Conservation Measures'!LE148","v":0},{"$f":"'2. Conservation Measures'!LF148","v":0},{"$f":"'2. Conservation Measures'!LG148","v":0},{"$f":"'2. Conservation Measures'!LH148","v":0},{"$f":"'2. Conservation Measures'!LI148","v":0},{"$f":"'2. Conservation Measures'!LJ148","v":0},{"$f":"'2. Conservation Measures'!LK148","v":0},{"$f":"'2. Conservation Measures'!LL148","v":0},{"$f":"'2. Conservation Measures'!LM148","v":0},{"$f":"'2. Conservation Measures'!LN148","v":0},{"$f":"'2. Conservation Measures'!LO148","v":0},{"$f":"'2. Conservation Measures'!LP148","v":0},{"$f":"'2. Conservation Measures'!LQ148","v":0},{"$f":"'2. Conservation Measures'!LR148","v":0},{"$f":"'2. Conservation Measures'!LS148","v":0},{"$f":"'2. Conservation Measures'!LT148","v":0},{"$f":"'2. Conservation Measures'!LU148","v":0},{"$f":"'2. Conservation Measures'!LV148","v":0},{"$f":"'2. Conservation Measures'!LW148","v":0},{"$f":"'2. Conservation Measures'!LX148","v":0},{"$f":"'2. Conservation Measures'!LY148","v":0},{"$f":"'2. Conservation Measures'!LZ148","v":0},{"$f":"'2. Conservation Measures'!MA148","v":0},{"$f":"'2. Conservation Measures'!MB148","v":0},{"$f":"'2. Conservation Measures'!MC148","v":0},{"$f":"'2. Conservation Measures'!MD148","v":0},{"$f":"'2. Conservation Measures'!ME148","v":0},{"$f":"'2. Conservation Measures'!MF148","v":0},{"$f":"'2. Conservation Measures'!MG148","v":0},{"$f":"'2. Conservation Measures'!MH148","v":0},{"$f":"'2. Conservation Measures'!MI148","v":0},{"$f":"'2. Conservation Measures'!MJ148","v":0},{"$f":"'2. Conservation Measures'!MK148","v":0},{"$f":"'2. Conservation Measures'!ML148","v":0},{"$f":"'2. Conservation Measures'!MM148","v":0},{"$f":"'2. Conservation Measures'!MN148","v":0},null,{"$f":"'2. Conservation Measures'!EP148","v":0},{"$f":"'2. Conservation Measures'!EQ148","v":0},{"$f":"'2. Conservation Measures'!ER148","v":0},{"$f":"'2. Conservation Measures'!ES148","v":0},{"$f":"'2. Conservation Measures'!ET148","v":0},{"$f":"'2. Conservation Measures'!EU148","v":0},{"$f":"'2. Conservation Measures'!EV148","v":0},{"$f":"'2. Conservation Measures'!EW148","v":0},{"$f":"'2. Conservation Measures'!EX148","v":0},{"$f":"'2. Conservation Measures'!EY148","v":0},{"$f":"'2. Conservation Measures'!EZ148","v":0},{"$f":"'2. Conservation Measures'!FA148","v":0},{"$f":"'2. Conservation Measures'!FB148","v":0},{"$f":"'2. Conservation Measures'!FC148","v":0},{"$f":"'2. Conservation Measures'!FD148","v":0},{"$f":"'2. Conservation Measures'!FE148","v":0},{"$f":"'2. Conservation Measures'!FF148","v":0},{"$f":"'2. Conservation Measures'!FG148","v":0},{"$f":"'2. Conservation Measures'!FH148","v":0},{"$f":"'2. Conservation Measures'!FI148","v":0},{"$f":"'2. Conservation Measures'!FJ148","v":0},{"$f":"'2. Conservation Measures'!FK148","v":0},{"$f":"'2. Conservation Measures'!FL148","v":0},{"$f":"'2. Conservation Measures'!FM148","v":0},{"$f":"'2. Conservation Measures'!FN148","v":0},{"$f":"'2. Conservation Measures'!FO148","v":0},{"$f":"'2. Conservation Measures'!FP148","v":0},{"$f":"'2. Conservation Measures'!FQ148","v":0},{"$f":"'2. Conservation Measures'!FR148","v":0},{"$f":"'2. Conservation Measures'!FS148","v":0},{"$f":"'2. Conservation Measures'!FT148","v":0},{"$f":"'2. Conservation Measures'!FU148","v":0},{"$f":"'2. Conservation Measures'!FV148","v":0},{"$f":"'2. Conservation Measures'!FW148","v":0},{"$f":"'2. Conservation Measures'!FX148","v":0},{"$f":"'2. Conservation Measures'!FY148","v":0},{"$f":"'2. Conservation Measures'!FZ148","v":0},{"$f":"'2. Conservation Measures'!GA148","v":0},{"$f":"'2. Conservation Measures'!GB148","v":0},{"$f":"'2. Conservation Measures'!GC148","v":0},{"$f":"'2. Conservation Measures'!GD148","v":0},{"$f":"'2. Conservation Measures'!GE148","v":0},{"$f":"'2. Conservation Measures'!GF148","v":0},{"$f":"'2. Conservation Measures'!GG148","v":0},{"$f":"'2. Conservation Measures'!GH148","v":0},{"$f":"'2. Conservation Measures'!GI148","v":0},{"$f":"'2. Conservation Measures'!GJ148","v":0},{"$f":"'2. Conservation Measures'!GK148","v":0},{"$f":"'2. Conservation Measures'!GL148","v":0},{"$f":"'2. Conservation Measures'!GM148","v":0},{"$f":"'2. Conservation Measures'!GN148","v":0},null,{"$f":"'2. Conservation Measures'!GP148","v":0},{"$f":"'2. Conservation Measures'!GQ148","v":0},{"$f":"'2. Conservation Measures'!GR148","v":0},{"$f":"'2. Conservation Measures'!GS148","v":0},{"$f":"'2. Conservation Measures'!GT148","v":0},{"$f":"'2. Conservation Measures'!GU148","v":0},{"$f":"'2. Conservation Measures'!GV148","v":0},{"$f":"'2. Conservation Measures'!GW148","v":0},{"$f":"'2. Conservation Measures'!GX148","v":0},{"$f":"'2. Conservation Measures'!GY148","v":0},{"$f":"'2. Conservation Measures'!GZ148","v":0},{"$f":"'2. Conservation Measures'!HA148","v":0},{"$f":"'2. Conservation Measures'!HB148","v":0},{"$f":"'2. Conservation Measures'!HC148","v":0},{"$f":"'2. Conservation Measures'!HD148","v":0},{"$f":"'2. Conservation Measures'!HE148","v":0},{"$f":"'2. Conservation Measures'!HF148","v":0},{"$f":"'2. Conservation Measures'!HG148","v":0},{"$f":"'2. Conservation Measures'!HH148","v":0},{"$f":"'2. Conservation Measures'!HI148","v":0},{"$f":"'2. Conservation Measures'!HJ148","v":0},{"$f":"'2. Conservation Measures'!HK148","v":0},{"$f":"'2. Conservation Measures'!HL148","v":0},{"$f":"'2. Conservation Measures'!HM148","v":0},{"$f":"'2. Conservation Measures'!HN148","v":0},{"$f":"'2. Conservation Measures'!HO148","v":0},{"$f":"'2. Conservation Measures'!HP148","v":0},{"$f":"'2. Conservation Measures'!HQ148","v":0},{"$f":"'2. Conservation Measures'!HR148","v":0},{"$f":"'2. Conservation Measures'!HS148","v":0},{"$f":"'2. Conservation Measures'!HT148","v":0},{"$f":"'2. Conservation Measures'!HU148","v":0},{"$f":"'2. Conservation Measures'!HV148","v":0},{"$f":"'2. Conservation Measures'!HW148","v":0},{"$f":"'2. Conservation Measures'!HX148","v":0},{"$f":"'2. Conservation Measures'!HY148","v":0},{"$f":"'2. Conservation Measures'!HZ148","v":0},{"$f":"'2. Conservation Measures'!IA148","v":0},{"$f":"'2. Conservation Measures'!IB148","v":0},{"$f":"'2. Conservation Measures'!IC148","v":0},{"$f":"'2. Conservation Measures'!ID148","v":0},{"$f":"'2. Conservation Measures'!IE148","v":0},{"$f":"'2. Conservation Measures'!IF148","v":0},{"$f":"'2. Conservation Measures'!IG148","v":0},{"$f":"'2. Conservation Measures'!IH148","v":0},{"$f":"'2. Conservation Measures'!II148","v":0},{"$f":"'2. Conservation Measures'!IJ148","v":0},{"$f":"'2. Conservation Measures'!IK148","v":0},{"$f":"'2. Conservation Measures'!IL148","v":0},{"$f":"'2. Conservation Measures'!IM148","v":0},{"$f":"'2. Conservation Measures'!IN148","v":0},null,{"$f":"'2. Conservation Measures'!IP148","v":0},{"$f":"'2. Conservation Measures'!IQ148","v":0},{"$f":"'2. Conservation Measures'!IR148","v":0},{"$f":"'2. Conservation Measures'!IS148","v":0},{"$f":"'2. Conservation Measures'!IT148","v":0},{"$f":"'2. Conservation Measures'!IU148","v":0},{"$f":"'2. Conservation Measures'!IV148","v":0},{"$f":"'2. Conservation Measures'!IW148","v":0},{"$f":"'2. Conservation Measures'!IX148","v":0},{"$f":"'2. Conservation Measures'!IY148","v":0},{"$f":"'2. Conservation Measures'!IZ148","v":0},{"$f":"'2. Conservation Measures'!JA148","v":0},{"$f":"'2. Conservation Measures'!JB148","v":0},{"$f":"'2. Conservation Measures'!JC148","v":0},{"$f":"'2. Conservation Measures'!JD148","v":0},{"$f":"'2. Conservation Measures'!JE148","v":0},{"$f":"'2. Conservation Measures'!JF148","v":0},{"$f":"'2. Conservation Measures'!JG148","v":0},{"$f":"'2. Conservation Measures'!JH148","v":0},{"$f":"'2. Conservation Measures'!JI148","v":0},{"$f":"'2. Conservation Measures'!JJ148","v":0},{"$f":"'2. Conservation Measures'!JK148","v":0},{"$f":"'2. Conservation Measures'!JL148","v":0},{"$f":"'2. Conservation Measures'!JM148","v":0},{"$f":"'2. Conservation Measures'!JN148","v":0},{"$f":"'2. Conservation Measures'!JO148","v":0},{"$f":"'2. Conservation Measures'!JP148","v":0},{"$f":"'2. Conservation Measures'!JQ148","v":0},{"$f":"'2. Conservation Measures'!JR148","v":0},{"$f":"'2. Conservation Measures'!JS148","v":0},{"$f":"'2. Conservation Measures'!JT148","v":0},{"$f":"'2. Conservation Measures'!JU148","v":0},{"$f":"'2. Conservation Measures'!JV148","v":0},{"$f":"'2. Conservation Measures'!JW148","v":0},{"$f":"'2. Conservation Measures'!JX148","v":0},{"$f":"'2. Conservation Measures'!JY148","v":0},{"$f":"'2. Conservation Measures'!JZ148","v":0},{"$f":"'2. Conservation Measures'!KA148","v":0},{"$f":"'2. Conservation Measures'!KB148","v":0},{"$f":"'2. Conservation Measures'!KC148","v":0},{"$f":"'2. Conservation Measures'!KD148","v":0},{"$f":"'2. Conservation Measures'!KE148","v":0},{"$f":"'2. Conservation Measures'!KF148","v":0},{"$f":"'2. Conservation Measures'!KG148","v":0},{"$f":"'2. Conservation Measures'!KH148","v":0},{"$f":"'2. Conservation Measures'!KI148","v":0},{"$f":"'2. Conservation Measures'!KJ148","v":0},{"$f":"'2. Conservation Measures'!KK148","v":0},{"$f":"'2. Conservation Measures'!KL148","v":0},{"$f":"'2. Conservation Measures'!KM148","v":0},{"$f":"'2. Conservation Measures'!KN148","v":0}]
[null,{"$f":"'2. Conservation Measures'!B149","v":"USR-UTL-20"},{"$f":"'2. Conservation Measures'!C149","v":0},{"$f":"'2. Conservation Measures'!D149","v":"N"},null,{"$f":"'2. Conservation Measures'!AA149","v":0},null,{"$f":"'2. Conservation Measures'!AO149","v":0},{"$f":"'2. Conservation Measures'!AP149","v":0},{"$f":"'2. Conservation Measures'!AQ149","v":0},{"$f":"'2. Conservation Measures'!AR149","v":0},{"$f":"'2. Conservation Measures'!AS149","v":0},{"$f":"'2. Conservation Measures'!AT149","v":0},{"$f":"'2. Conservation Measures'!AU149","v":0},{"$f":"'2. Conservation Measures'!AV149","v":0},{"$f":"'2. Conservation Measures'!AW149","v":0},{"$f":"'2. Conservation Measures'!AX149","v":0},{"$f":"'2. Conservation Measures'!AY149","v":0},{"$f":"'2. Conservation Measures'!AZ149","v":0},{"$f":"'2. Conservation Measures'!BA149","v":0},{"$f":"'2. Conservation Measures'!BB149","v":0},{"$f":"'2. Conservation Measures'!BC149","v":0},{"$f":"'2. Conservation Measures'!BD149","v":0},{"$f":"'2. Conservation Measures'!BE149","v":0},{"$f":"'2. Conservation Measures'!BF149","v":0},{"$f":"'2. Conservation Measures'!BG149","v":0},{"$f":"'2. Conservation Measures'!BH149","v":0},{"$f":"'2. Conservation Measures'!BI149","v":0},{"$f":"'2. Conservation Measures'!BJ149","v":0},{"$f":"'2. Conservation Measures'!BK149","v":0},{"$f":"'2. Conservation Measures'!BL149","v":0},{"$f":"'2. Conservation Measures'!BM149","v":0},{"$f":"'2. Conservation Measures'!BN149","v":0},{"$f":"'2. Conservation Measures'!BO149","v":0},{"$f":"'2. Conservation Measures'!BP149","v":0},{"$f":"'2. Conservation Measures'!BQ149","v":0},{"$f":"'2. Conservation Measures'!BR149","v":0},{"$f":"'2. Conservation Measures'!BS149","v":0},{"$f":"'2. Conservation Measures'!BT149","v":0},{"$f":"'2. Conservation Measures'!BU149","v":0},{"$f":"'2. Conservation Measures'!BV149","v":0},{"$f":"'2. Conservation Measures'!BW149","v":0},{"$f":"'2. Conservation Measures'!BX149","v":0},{"$f":"'2. Conservation Measures'!BY149","v":0},{"$f":"'2. Conservation Measures'!BZ149","v":0},{"$f":"'2. Conservation Measures'!CA149","v":0},{"$f":"'2. Conservation Measures'!CB149","v":0},{"$f":"'2. Conservation Measures'!CC149","v":0},{"$f":"'2. Conservation Measures'!CD149","v":0},{"$f":"'2. Conservation Measures'!CE149","v":0},{"$f":"'2. Conservation Measures'!CF149","v":0},{"$f":"'2. Conservation Measures'!CG149","v":0},{"$f":"'2. Conservation Measures'!CH149","v":0},{"$f":"'2. Conservation Measures'!CI149","v":0},{"$f":"'2. Conservation Measures'!CJ149","v":0},{"$f":"'2. Conservation Measures'!CK149","v":0},{"$f":"'2. Conservation Measures'!CL149","v":0},{"$f":"'2. Conservation Measures'!CM149","v":0},null,{"$f":"'2. Conservation Measures'!CO149","v":0},{"$f":"'2. Conservation Measures'!CP149","v":0},{"$f":"'2. Conservation Measures'!CQ149","v":0},{"$f":"'2. Conservation Measures'!CR149","v":0},{"$f":"'2. Conservation Measures'!CS149","v":0},{"$f":"'2. Conservation Measures'!CT149","v":0},{"$f":"'2. Conservation Measures'!CU149","v":0},{"$f":"'2. Conservation Measures'!CV149","v":0},{"$f":"'2. Conservation Measures'!CW149","v":0},{"$f":"'2. Conservation Measures'!CX149","v":0},{"$f":"'2. Conservation Measures'!CY149","v":0},{"$f":"'2. Conservation Measures'!CZ149","v":0},{"$f":"'2. Conservation Measures'!DA149","v":0},{"$f":"'2. Conservation Measures'!DB149","v":0},{"$f":"'2. Conservation Measures'!DC149","v":0},{"$f":"'2. Conservation Measures'!DD149","v":0},{"$f":"'2. Conservation Measures'!DE149","v":0},{"$f":"'2. Conservation Measures'!DF149","v":0},{"$f":"'2. Conservation Measures'!DG149","v":0},{"$f":"'2. Conservation Measures'!DH149","v":0},{"$f":"'2. Conservation Measures'!DI149","v":0},{"$f":"'2. Conservation Measures'!DJ149","v":0},{"$f":"'2. Conservation Measures'!DK149","v":0},{"$f":"'2. Conservation Measures'!DL149","v":0},{"$f":"'2. Conservation Measures'!DM149","v":0},{"$f":"'2. Conservation Measures'!DN149","v":0},{"$f":"'2. Conservation Measures'!DO149","v":0},{"$f":"'2. Conservation Measures'!DP149","v":0},{"$f":"'2. Conservation Measures'!DQ149","v":0},{"$f":"'2. Conservation Measures'!DR149","v":0},{"$f":"'2. Conservation Measures'!DS149","v":0},{"$f":"'2. Conservation Measures'!DT149","v":0},{"$f":"'2. Conservation Measures'!DU149","v":0},{"$f":"'2. Conservation Measures'!DV149","v":0},{"$f":"'2. Conservation Measures'!DW149","v":0},{"$f":"'2. Conservation Measures'!DX149","v":0},{"$f":"'2. Conservation Measures'!DY149","v":0},{"$f":"'2. Conservation Measures'!DZ149","v":0},{"$f":"'2. Conservation Measures'!EA149","v":0},{"$f":"'2. Conservation Measures'!EB149","v":0},{"$f":"'2. Conservation Measures'!EC149","v":0},{"$f":"'2. Conservation Measures'!ED149","v":0},{"$f":"'2. Conservation Measures'!EE149","v":0},{"$f":"'2. Conservation Measures'!EF149","v":0},{"$f":"'2. Conservation Measures'!EG149","v":0},{"$f":"'2. Conservation Measures'!EH149","v":0},{"$f":"'2. Conservation Measures'!EI149","v":0},{"$f":"'2. Conservation Measures'!EJ149","v":0},{"$f":"'2. Conservation Measures'!EK149","v":0},{"$f":"'2. Conservation Measures'!EL149","v":0},{"$f":"'2. Conservation Measures'!EM149","v":0},null,{"$f":"'2. Conservation Measures'!KP149","v":0},{"$f":"'2. Conservation Measures'!KQ149","v":0},{"$f":"'2. Conservation Measures'!KR149","v":0},{"$f":"'2. Conservation Measures'!KS149","v":0},{"$f":"'2. Conservation Measures'!KT149","v":0},{"$f":"'2. Conservation Measures'!KU149","v":0},{"$f":"'2. Conservation Measures'!KV149","v":0},{"$f":"'2. Conservation Measures'!KW149","v":0},{"$f":"'2. Conservation Measures'!KX149","v":0},{"$f":"'2. Conservation Measures'!KY149","v":0},{"$f":"'2. Conservation Measures'!KZ149","v":0},{"$f":"'2. Conservation Measures'!LA149","v":0},{"$f":"'2. Conservation Measures'!LB149","v":0},{"$f":"'2. Conservation Measures'!LC149","v":0},{"$f":"'2. Conservation Measures'!LD149","v":0},{"$f":"'2. Conservation Measures'!LE149","v":0},{"$f":"'2. Conservation Measures'!LF149","v":0},{"$f":"'2. Conservation Measures'!LG149","v":0},{"$f":"'2. Conservation Measures'!LH149","v":0},{"$f":"'2. Conservation Measures'!LI149","v":0},{"$f":"'2. Conservation Measures'!LJ149","v":0},{"$f":"'2. Conservation Measures'!LK149","v":0},{"$f":"'2. Conservation Measures'!LL149","v":0},{"$f":"'2. Conservation Measures'!LM149","v":0},{"$f":"'2. Conservation Measures'!LN149","v":0},{"$f":"'2. Conservation Measures'!LO149","v":0},{"$f":"'2. Conservation Measures'!LP149","v":0},{"$f":"'2. Conservation Measures'!LQ149","v":0},{"$f":"'2. Conservation Measures'!LR149","v":0},{"$f":"'2. Conservation Measures'!LS149","v":0},{"$f":"'2. Conservation Measures'!LT149","v":0},{"$f":"'2. Conservation Measures'!LU149","v":0},{"$f":"'2. Conservation Measures'!LV149","v":0},{"$f":"'2. Conservation Measures'!LW149","v":0},{"$f":"'2. Conservation Measures'!LX149","v":0},{"$f":"'2. Conservation Measures'!LY149","v":0},{"$f":"'2. Conservation Measures'!LZ149","v":0},{"$f":"'2. Conservation Measures'!MA149","v":0},{"$f":"'2. Conservation Measures'!MB149","v":0},{"$f":"'2. Conservation Measures'!MC149","v":0},{"$f":"'2. Conservation Measures'!MD149","v":0},{"$f":"'2. Conservation Measures'!ME149","v":0},{"$f":"'2. Conservation Measures'!MF149","v":0},{"$f":"'2. Conservation Measures'!MG149","v":0},{"$f":"'2. Conservation Measures'!MH149","v":0},{"$f":"'2. Conservation Measures'!MI149","v":0},{"$f":"'2. Conservation Measures'!MJ149","v":0},{"$f":"'2. Conservation Measures'!MK149","v":0},{"$f":"'2. Conservation Measures'!ML149","v":0},{"$f":"'2. Conservation Measures'!MM149","v":0},{"$f":"'2. Conservation Measures'!MN149","v":0},null,{"$f":"'2. Conservation Measures'!EP149","v":0},{"$f":"'2. Conservation Measures'!EQ149","v":0},{"$f":"'2. Conservation Measures'!ER149","v":0},{"$f":"'2. Conservation Measures'!ES149","v":0},{"$f":"'2. Conservation Measures'!ET149","v":0},{"$f":"'2. Conservation Measures'!EU149","v":0},{"$f":"'2. Conservation Measures'!EV149","v":0},{"$f":"'2. Conservation Measures'!EW149","v":0},{"$f":"'2. Conservation Measures'!EX149","v":0},{"$f":"'2. Conservation Measures'!EY149","v":0},{"$f":"'2. Conservation Measures'!EZ149","v":0},{"$f":"'2. Conservation Measures'!FA149","v":0},{"$f":"'2. Conservation Measures'!FB149","v":0},{"$f":"'2. Conservation Measures'!FC149","v":0},{"$f":"'2. Conservation Measures'!FD149","v":0},{"$f":"'2. Conservation Measures'!FE149","v":0},{"$f":"'2. Conservation Measures'!FF149","v":0},{"$f":"'2. Conservation Measures'!FG149","v":0},{"$f":"'2. Conservation Measures'!FH149","v":0},{"$f":"'2. Conservation Measures'!FI149","v":0},{"$f":"'2. Conservation Measures'!FJ149","v":0},{"$f":"'2. Conservation Measures'!FK149","v":0},{"$f":"'2. Conservation Measures'!FL149","v":0},{"$f":"'2. Conservation Measures'!FM149","v":0},{"$f":"'2. Conservation Measures'!FN149","v":0},{"$f":"'2. Conservation Measures'!FO149","v":0},{"$f":"'2. Conservation Measures'!FP149","v":0},{"$f":"'2. Conservation Measures'!FQ149","v":0},{"$f":"'2. Conservation Measures'!FR149","v":0},{"$f":"'2. Conservation Measures'!FS149","v":0},{"$f":"'2. Conservation Measures'!FT149","v":0},{"$f":"'2. Conservation Measures'!FU149","v":0},{"$f":"'2. Conservation Measures'!FV149","v":0},{"$f":"'2. Conservation Measures'!FW149","v":0},{"$f":"'2. Conservation Measures'!FX149","v":0},{"$f":"'2. Conservation Measures'!FY149","v":0},{"$f":"'2. Conservation Measures'!FZ149","v":0},{"$f":"'2. Conservation Measures'!GA149","v":0},{"$f":"'2. Conservation Measures'!GB149","v":0},{"$f":"'2. Conservation Measures'!GC149","v":0},{"$f":"'2. Conservation Measures'!GD149","v":0},{"$f":"'2. Conservation Measures'!GE149","v":0},{"$f":"'2. Conservation Measures'!GF149","v":0},{"$f":"'2. Conservation Measures'!GG149","v":0},{"$f":"'2. Conservation Measures'!GH149","v":0},{"$f":"'2. Conservation Measures'!GI149","v":0},{"$f":"'2. Conservation Measures'!GJ149","v":0},{"$f":"'2. Conservation Measures'!GK149","v":0},{"$f":"'2. Conservation Measures'!GL149","v":0},{"$f":"'2. Conservation Measures'!GM149","v":0},{"$f":"'2. Conservation Measures'!GN149","v":0},null,{"$f":"'2. Conservation Measures'!GP149","v":0},{"$f":"'2. Conservation Measures'!GQ149","v":0},{"$f":"'2. Conservation Measures'!GR149","v":0},{"$f":"'2. Conservation Measures'!GS149","v":0},{"$f":"'2. Conservation Measures'!GT149","v":0},{"$f":"'2. Conservation Measures'!GU149","v":0},{"$f":"'2. Conservation Measures'!GV149","v":0},{"$f":"'2. Conservation Measures'!GW149","v":0},{"$f":"'2. Conservation Measures'!GX149","v":0},{"$f":"'2. Conservation Measures'!GY149","v":0},{"$f":"'2. Conservation Measures'!GZ149","v":0},{"$f":"'2. Conservation Measures'!HA149","v":0},{"$f":"'2. Conservation Measures'!HB149","v":0},{"$f":"'2. Conservation Measures'!HC149","v":0},{"$f":"'2. Conservation Measures'!HD149","v":0},{"$f":"'2. Conservation Measures'!HE149","v":0},{"$f":"'2. Conservation Measures'!HF149","v":0},{"$f":"'2. Conservation Measures'!HG149","v":0},{"$f":"'2. Conservation Measures'!HH149","v":0},{"$f":"'2. Conservation Measures'!HI149","v":0},{"$f":"'2. Conservation Measures'!HJ149","v":0},{"$f":"'2. Conservation Measures'!HK149","v":0},{"$f":"'2. Conservation Measures'!HL149","v":0},{"$f":"'2. Conservation Measures'!HM149","v":0},{"$f":"'2. Conservation Measures'!HN149","v":0},{"$f":"'2. Conservation Measures'!HO149","v":0},{"$f":"'2. Conservation Measures'!HP149","v":0},{"$f":"'2. Conservation Measures'!HQ149","v":0},{"$f":"'2. Conservation Measures'!HR149","v":0},{"$f":"'2. Conservation Measures'!HS149","v":0},{"$f":"'2. Conservation Measures'!HT149","v":0},{"$f":"'2. Conservation Measures'!HU149","v":0},{"$f":"'2. Conservation Measures'!HV149","v":0},{"$f":"'2. Conservation Measures'!HW149","v":0},{"$f":"'2. Conservation Measures'!HX149","v":0},{"$f":"'2. Conservation Measures'!HY149","v":0},{"$f":"'2. Conservation Measures'!HZ149","v":0},{"$f":"'2. Conservation Measures'!IA149","v":0},{"$f":"'2. Conservation Measures'!IB149","v":0},{"$f":"'2. Conservation Measures'!IC149","v":0},{"$f":"'2. Conservation Measures'!ID149","v":0},{"$f":"'2. Conservation Measures'!IE149","v":0},{"$f":"'2. Conservation Measures'!IF149","v":0},{"$f":"'2. Conservation Measures'!IG149","v":0},{"$f":"'2. Conservation Measures'!IH149","v":0},{"$f":"'2. Conservation Measures'!II149","v":0},{"$f":"'2. Conservation Measures'!IJ149","v":0},{"$f":"'2. Conservation Measures'!IK149","v":0},{"$f":"'2. Conservation Measures'!IL149","v":0},{"$f":"'2. Conservation Measures'!IM149","v":0},{"$f":"'2. Conservation Measures'!IN149","v":0},null,{"$f":"'2. Conservation Measures'!IP149","v":0},{"$f":"'2. Conservation Measures'!IQ149","v":0},{"$f":"'2. Conservation Measures'!IR149","v":0},{"$f":"'2. Conservation Measures'!IS149","v":0},{"$f":"'2. Conservation Measures'!IT149","v":0},{"$f":"'2. Conservation Measures'!IU149","v":0},{"$f":"'2. Conservation Measures'!IV149","v":0},{"$f":"'2. Conservation Measures'!IW149","v":0},{"$f":"'2. Conservation Measures'!IX149","v":0},{"$f":"'2. Conservation Measures'!IY149","v":0},{"$f":"'2. Conservation Measures'!IZ149","v":0},{"$f":"'2. Conservation Measures'!JA149","v":0},{"$f":"'2. Conservation Measures'!JB149","v":0},{"$f":"'2. Conservation Measures'!JC149","v":0},{"$f":"'2. Conservation Measures'!JD149","v":0},{"$f":"'2. Conservation Measures'!JE149","v":0},{"$f":"'2. Conservation Measures'!JF149","v":0},{"$f":"'2. Conservation Measures'!JG149","v":0},{"$f":"'2. Conservation Measures'!JH149","v":0},{"$f":"'2. Conservation Measures'!JI149","v":0},{"$f":"'2. Conservation Measures'!JJ149","v":0},{"$f":"'2. Conservation Measures'!JK149","v":0},{"$f":"'2. Conservation Measures'!JL149","v":0},{"$f":"'2. Conservation Measures'!JM149","v":0},{"$f":"'2. Conservation Measures'!JN149","v":0},{"$f":"'2. Conservation Measures'!JO149","v":0},{"$f":"'2. Conservation Measures'!JP149","v":0},{"$f":"'2. Conservation Measures'!JQ149","v":0},{"$f":"'2. Conservation Measures'!JR149","v":0},{"$f":"'2. Conservation Measures'!JS149","v":0},{"$f":"'2. Conservation Measures'!JT149","v":0},{"$f":"'2. Conservation Measures'!JU149","v":0},{"$f":"'2. Conservation Measures'!JV149","v":0},{"$f":"'2. Conservation Measures'!JW149","v":0},{"$f":"'2. Conservation Measures'!JX149","v":0},{"$f":"'2. Conservation Measures'!JY149","v":0},{"$f":"'2. Conservation Measures'!JZ149","v":0},{"$f":"'2. Conservation Measures'!KA149","v":0},{"$f":"'2. Conservation Measures'!KB149","v":0},{"$f":"'2. Conservation Measures'!KC149","v":0},{"$f":"'2. Conservation Measures'!KD149","v":0},{"$f":"'2. Conservation Measures'!KE149","v":0},{"$f":"'2. Conservation Measures'!KF149","v":0},{"$f":"'2. Conservation Measures'!KG149","v":0},{"$f":"'2. Conservation Measures'!KH149","v":0},{"$f":"'2. Conservation Measures'!KI149","v":0},{"$f":"'2. Conservation Measures'!KJ149","v":0},{"$f":"'2. Conservation Measures'!KK149","v":0},{"$f":"'2. Conservation Measures'!KL149","v":0},{"$f":"'2. Conservation Measures'!KM149","v":0},{"$f":"'2. Conservation Measures'!KN149","v":0}]
[null,"Subtotal",null,null,null,{"$f":"'2. Conservation Measures'!AA159","v":"NA"},null,null,null,null,null,null,null,null,null,null,null,null,null,null,null,null,null,null,null,null,null,null,null,null,null,null,null,null,null,null,null,null,null,null,null,null,null,null,null,null,null,null,null,null,null,null,null,null,null,null,null,null,null,{"$f":"SUM(BH120:BH139)","v":0},{"$f":"SUM(BI120:BI139)","v":0},{"$f":"SUM(BJ120:BJ139)","v":0},{"$f":"SUM(BK120:BK139)","v":0},{"$f":"SUM(BL120:BL139)","v":0},{"$f":"SUM(BM120:BM139)","v":0},{"$f":"SUM(BN120:BN139)","v":0},{"$f":"SUM(BO120:BO139)","v":0},{"$f":"SUM(BP120:BP139)","v":0},{"$f":"SUM(BQ120:BQ139)","v":0},{"$f":"SUM(BR120:BR139)","v":0},{"$f":"SUM(BS120:BS139)","v":0},{"$f":"SUM(BT120:BT139)","v":0},{"$f":"SUM(BU120:BU139)","v":0},{"$f":"SUM(BV120:BV139)","v":0},{"$f":"SUM(BW120:BW139)","v":0},{"$f":"SUM(BX120:BX139)","v":0},{"$f":"SUM(BY120:BY139)","v":0},{"$f":"SUM(BZ120:BZ139)","v":0},{"$f":"SUM(CA120:CA139)","v":0},{"$f":"SUM(CB120:CB139)","v":0},{"$f":"SUM(CC120:CC139)","v":0},{"$f":"SUM(CD120:CD139)","v":0},{"$f":"SUM(CE120:CE139)","v":0},{"$f":"SUM(CF120:CF139)","v":0},{"$f":"SUM(CG120:CG139)","v":0},{"$f":"SUM(CH120:CH139)","v":0},{"$f":"SUM(CI120:CI139)","v":0},{"$f":"SUM(CJ120:CJ139)","v":0},{"$f":"SUM(CK120:CK139)","v":0},{"$f":"SUM(CL120:CL139)","v":0},{"$f":"SUM(CM120:CM139)","v":0},{"$f":"SUM(CN120:CN139)","v":0},{"$f":"SUM(CO120:CO139)","v":0},{"$f":"SUM(CP120:CP139)","v":0},{"$f":"SUM(CQ120:CQ139)","v":0},{"$f":"SUM(CR120:CR139)","v":0},{"$f":"SUM(CS120:CS139)","v":0},{"$f":"SUM(CT120:CT139)","v":0},{"$f":"SUM(CU120:CU139)","v":0},{"$f":"SUM(CV120:CV139)","v":0},{"$f":"SUM(CW120:CW139)","v":0},{"$f":"SUM(CX120:CX139)","v":0},{"$f":"SUM(CY120:CY139)","v":0},{"$f":"SUM(CZ120:CZ139)","v":0},{"$f":"SUM(DA120:DA139)","v":0},{"$f":"SUM(DB120:DB139)","v":0},{"$f":"SUM(DC120:DC139)","v":0},{"$f":"SUM(DD120:DD139)","v":0},{"$f":"SUM(DE120:DE139)","v":0},{"$f":"SUM(DF120:DF139)","v":0},null,{"$f":"SUM(DH120:DH139)","v":0},{"$f":"SUM(DI120:DI139)","v":0},0,0,0,0,0,0,0,0,0,0,0,0,0,0,0,0,0,0,0,0,0,0,0,0,0,0,0,0,0,0,0,0,0,0,0,0,0,0,0,0,0,0,0,0,0,0,0,0,0,null,{"$f":"SUM(FH120:FH139)","v":0},{"$f":"SUM(FI120:FI139)","v":0},{"$f":"SUM(FJ120:FJ139)","v":0},{"$f":"SUM(FK120:FK139)","v":0},{"$f":"SUM(FL120:FL139)","v":0},{"$f":"SUM(FM120:FM139)","v":0},{"$f":"SUM(FN120:FN139)","v":0},{"$f":"SUM(FO120:FO139)","v":0},{"$f":"SUM(FP120:FP139)","v":0},{"$f":"SUM(FQ120:FQ139)","v":0},{"$f":"SUM(FR120:FR139)","v":0},{"$f":"SUM(FS120:FS139)","v":0},{"$f":"SUM(FT120:FT139)","v":0},{"$f":"SUM(FU120:FU139)","v":0},{"$f":"SUM(FV120:FV139)","v":0},{"$f":"SUM(FW120:FW139)","v":0},{"$f":"SUM(FX120:FX139)","v":0},{"$f":"SUM(FY120:FY139)","v":0},{"$f":"SUM(FZ120:FZ139)","v":0},{"$f":"SUM(GA120:GA139)","v":0},{"$f":"SUM(GB120:GB139)","v":0},{"$f":"SUM(GC120:GC139)","v":0},{"$f":"SUM(GD120:GD139)","v":0},{"$f":"SUM(GE120:GE139)","v":0},{"$f":"SUM(GF120:GF139)","v":0},{"$f":"SUM(GG120:GG139)","v":0},{"$f":"SUM(GH120:GH139)","v":0},{"$f":"SUM(GI120:GI139)","v":0},{"$f":"SUM(GJ120:GJ139)","v":0},{"$f":"SUM(GK120:GK139)","v":0},{"$f":"SUM(GL120:GL139)","v":0},{"$f":"SUM(GM120:GM139)","v":0},{"$f":"SUM(GN120:GN139)","v":0},{"$f":"SUM(GO120:GO139)","v":0},{"$f":"SUM(GP120:GP139)","v":0},{"$f":"SUM(GQ120:GQ139)","v":0},{"$f":"SUM(GR120:GR139)","v":0},{"$f":"SUM(GS120:GS139)","v":0},{"$f":"SUM(GT120:GT139)","v":0},{"$f":"SUM(GU120:GU139)","v":0},{"$f":"SUM(GV120:GV139)","v":0},{"$f":"SUM(GW120:GW139)","v":0},{"$f":"SUM(GX120:GX139)","v":0},{"$f":"SUM(GY120:GY139)","v":0},{"$f":"SUM(GZ120:GZ139)","v":0},{"$f":"SUM(HA120:HA139)","v":0},{"$f":"SUM(HB120:HB139)","v":0},{"$f":"SUM(HC120:HC139)","v":0},{"$f":"SUM(HD120:HD139)","v":0},{"$f":"SUM(HE120:HE139)","v":0},{"$f":"SUM(HF120:HF139)","v":0},null,{"$f":"SUM(HH120:HH139)","v":0},{"$f":"SUM(HI120:HI139)","v":0},{"$f":"SUM(HJ120:HJ139)","v":0},{"$f":"SUM(HK120:HK139)","v":0},{"$f":"SUM(HL120:HL139)","v":0},{"$f":"SUM(HM120:HM139)","v":0},{"$f":"SUM(HN120:HN139)","v":0},{"$f":"SUM(HO120:HO139)","v":0},{"$f":"SUM(HP120:HP139)","v":0},{"$f":"SUM(HQ120:HQ139)","v":0},{"$f":"SUM(HR120:HR139)","v":0},{"$f":"SUM(HS120:HS139)","v":0},{"$f":"SUM(HT120:HT139)","v":0},{"$f":"SUM(HU120:HU139)","v":0},{"$f":"SUM(HV120:HV139)","v":0},{"$f":"SUM(HW120:HW139)","v":0},{"$f":"SUM(HX120:HX139)","v":0},{"$f":"SUM(HY120:HY139)","v":0},{"$f":"SUM(HZ120:HZ139)","v":0},{"$f":"SUM(IA120:IA139)","v":0},{"$f":"SUM(IB120:IB139)","v":0},{"$f":"SUM(IC120:IC139)","v":0},{"$f":"SUM(ID120:ID139)","v":0},{"$f":"SUM(IE120:IE139)","v":0},{"$f":"SUM(IF120:IF139)","v":0},{"$f":"SUM(IG120:IG139)","v":0},{"$f":"SUM(IH120:IH139)","v":0},{"$f":"SUM(II120:II139)","v":0},{"$f":"SUM(IJ120:IJ139)","v":0},{"$f":"SUM(IK120:IK139)","v":0},{"$f":"SUM(IL120:IL139)","v":0},{"$f":"SUM(IM120:IM139)","v":0},{"$f":"SUM(IN120:IN139)","v":0},{"$f":"SUM(IO120:IO139)","v":0},{"$f":"SUM(IP120:IP139)","v":0},{"$f":"SUM(IQ120:IQ139)","v":0},{"$f":"SUM(IR120:IR139)","v":0},{"$f":"SUM(IS120:IS139)","v":0},{"$f":"SUM(IT120:IT139)","v":0},{"$f":"SUM(IU120:IU139)","v":0},{"$f":"SUM(IV120:IV139)","v":0},{"$f":"SUM(IW120:IW139)","v":0},{"$f":"SUM(IX120:IX139)","v":0},{"$f":"SUM(IY120:IY139)","v":0},{"$f":"SUM(IZ120:IZ139)","v":0},{"$f":"SUM(JA120:JA139)","v":0},{"$f":"SUM(JB120:JB139)","v":0},{"$f":"SUM(JC120:JC139)","v":0},{"$f":"SUM(JD120:JD139)","v":0},{"$f":"SUM(JE120:JE139)","v":0},{"$f":"SUM(JF120:JF139)","v":0},null,{"$f":"SUM(JH120:JH139)","v":0},{"$f":"SUM(JI120:JI139)","v":0},{"$f":"SUM(JJ120:JJ139)","v":0},{"$f":"SUM(JK120:JK139)","v":0},{"$f":"SUM(JL120:JL139)","v":0},{"$f":"SUM(JM120:JM139)","v":0},{"$f":"SUM(JN120:JN139)","v":0},{"$f":"SUM(JO120:JO139)","v":0},{"$f":"SUM(JP120:JP139)","v":0},{"$f":"SUM(JQ120:JQ139)","v":0},{"$f":"SUM(JR120:JR139)","v":0},{"$f":"SUM(JS120:JS139)","v":0},{"$f":"SUM(JT120:JT139)","v":0},{"$f":"SUM(JU120:JU139)","v":0},{"$f":"SUM(JV120:JV139)","v":0},{"$f":"SUM(JW120:JW139)","v":0},{"$f":"SUM(JX120:JX139)","v":0},{"$f":"SUM(JY120:JY139)","v":0},{"$f":"SUM(JZ120:JZ139)","v":0},{"$f":"SUM(KA120:KA139)","v":0},{"$f":"SUM(KB120:KB139)","v":0},{"$f":"SUM(KC120:KC139)","v":0},{"$f":"SUM(KD120:KD139)","v":0},{"$f":"SUM(KE120:KE139)","v":0},{"$f":"SUM(KF120:KF139)","v":0},{"$f":"SUM(KG120:KG139)","v":0},{"$f":"SUM(KH120:KH139)","v":0},{"$f":"SUM(KI120:KI139)","v":0},{"$f":"SUM(KJ120:KJ139)","v":0},{"$f":"SUM(KK120:KK139)","v":0},{"$f":"SUM(KL120:KL139)","v":0},{"$f":"SUM(KM120:KM139)","v":0},{"$f":"SUM(KN120:KN139)","v":0},{"$f":"SUM(KO120:KO139)","v":0},{"$f":"SUM(KP120:KP139)","v":0},{"$f":"SUM(KQ120:KQ139)","v":0},{"$f":"SUM(KR120:KR139)","v":0},{"$f":"SUM(KS120:KS139)","v":0},{"$f":"SUM(KT120:KT139)","v":0},{"$f":"SUM(KU120:KU139)","v":0},{"$f":"SUM(KV120:KV139)","v":0},{"$f":"SUM(KW120:KW139)","v":0},{"$f":"SUM(KX120:KX139)","v":0},{"$f":"SUM(KY120:KY139)","v":0},{"$f":"SUM(KZ120:KZ139)","v":0},{"$f":"SUM(LA120:LA139)","v":0},{"$f":"SUM(LB120:LB139)","v":0},{"$f":"SUM(LC120:LC139)","v":0},{"$f":"SUM(LD120:LD139)","v":0},{"$f":"SUM(LE120:LE139)","v":0},{"$f":"SUM(LF120:LF139)","v":0}]
[]
[null,"Grand Total for Plan",null,null,null,{"$f":"'2. Conservation Measures'!AA160","v":{"$error":"#VALUE!"}},null,null,null,null,null,null,null,null,null,null,null,null,null,null,null,null,null,null,null,null,null,null,null,null,null,null,null,null,null,null,null,null,null,null,null,null,null,null,null,null,null,null,null,null,null,null,null,null,null,null,null,null,null,{"$f":"SUM(BH50,BH82,BH117,BH140)","v":{"$error":"#VALUE!"}},{"$error":"#VALUE!"},{"$error":"#VALUE!"},{"$error":"#VALUE!"},{"$error":"#VALUE!"},{"$error":"#VALUE!"},{"$error":"#VALUE!"},{"$error":"#VALUE!"},{"$error":"#VALUE!"},{"$error":"#VALUE!"},{"$error":"#VALUE!"},{"$error":"#VALUE!"},{"$error":"#VALUE!"},{"$error":"#VALUE!"},{"$error":"#VALUE!"},{"$error":"#VALUE!"},{"$error":"#VALUE!"},{"$error":"#VALUE!"},{"$error":"#VALUE!"},{"$error":"#VALUE!"},{"$error":"#VALUE!"},{"$error":"#VALUE!"},{"$error":"#VALUE!"},{"$error":"#VALUE!"},{"$error":"#VALUE!"},{"$error":"#VALUE!"},{"$error":"#VALUE!"},{"$error":"#VALUE!"},{"$error":"#VALUE!"},{"$error":"#VALUE!"},{"$error":"#VALUE!"},{"$error":"#VALUE!"},{"$f":"SUM(CN50,CN82,CN117,CN140)","v":{"$error":"#VALUE!"}},{"$error":"#VALUE!"},{"$error":"#VALUE!"},{"$error":"#VALUE!"},{"$error":"#VALUE!"},{"$error":"#VALUE!"},{"$error":"#VALUE!"},{"$error":"#VALUE!"},{"$error":"#VALUE!"},{"$error":"#VALUE!"},{"$error":"#VALUE!"},{"$error":"#VALUE!"},{"$error":"#VALUE!"},{"$error":"#VALUE!"},{"$error":"#VALUE!"},{"$error":"#VALUE!"},{"$error":"#VALUE!"},{"$error":"#VALUE!"},{"$error":"#VALUE!"},null,{"$f":"SUM(DH50,DH82,DH117,DH140)","v":{"$error":"#N/A"}},{"$error":"#N/A"},{"$error":"#N/A"},{"$error":"#N/A"},{"$error":"#N/A"},{"$error":"#N/A"},{"$error":"#N/A"},{"$error":"#N/A"},{"$error":"#N/A"},{"$error":"#N/A"},{"$error":"#N/A"},{"$error":"#N/A"},{"$error":"#N/A"},{"$error":"#N/A"},{"$error":"#N/A"},{"$error":"#N/A"},{"$error":"#N/A"},{"$error":"#N/A"},{"$error":"#N/A"},{"$error":"#N/A"},{"$error":"#N/A"},{"$error":"#N/A"},{"$error":"#N/A"},{"$error":"#N/A"},{"$error":"#N/A"},{"$error":"#N/A"},{"$error":"#N/A"},{"$error":"#N/A"},{"$error":"#N/A"},{"$error":"#N/A"},{"$error":"#N/A"},{"$error":"#N/A"},{"$f":"SUM(EN50,EN82,EN117,EN140)","v":{"$error":"#N/A"}},{"$error":"#N/A"},{"$error":"#N/A"},{"$error":"#N/A"},{"$error":"#N/A"},{"$error":"#N/A"},{"$error":"#N/A"},{"$error":"#N/A"},{"$error":"#N/A"},{"$error":"#N/A"},{"$error":"#N/A"},{"$error":"#N/A"},{"$error":"#N/A"},{"$error":"#N/A"},{"$error":"#N/A"},{"$error":"#N/A"},{"$error":"#N/A"},{"$error":"#N/A"},{"$error":"#N/A"},null,{"$f":"SUM(FH50,FH82,FH117,FH140)","v":{"$error":"#N/A"}},{"$error":"#N/A"},{"$error":"#N/A"},{"$error":"#N/A"},{"$error":"#N/A"},{"$error":"#N/A"},{"$error":"#N/A"},{"$error":"#N/A"},{"$error":"#N/A"},{"$error":"#N/A"},{"$error":"#N/A"},{"$error":"#N/A"},{"$error":"#N/A"},{"$error":"#N/A"},{"$error":"#N/A"},{"$error":"#N/A"},{"$error":"#N/A"},{"$error":"#N/A"},{"$error":"#N/A"},{"$error":"#N/A"},{"$error":"#N/A"},{"$error":"#N/A"},{"$error":"#N/A"},{"$error":"#N/A"},{"$error":"#N/A"},{"$error":"#N/A"},{"$error":"#N/A"},{"$error":"#N/A"},{"$error":"#N/A"},{"$error":"#N/A"},{"$error":"#N/A"},{"$error":"#N/A"},{"$f":"SUM(GN50,GN82,GN117,GN140)","v":{"$error":"#N/A"}},{"$error":"#N/A"},{"$error":"#N/A"},{"$error":"#N/A"},{"$error":"#N/A"},{"$error":"#N/A"},{"$error":"#N/A"},{"$error":"#N/A"},{"$error":"#N/A"},{"$error":"#N/A"},{"$error":"#N/A"},{"$error":"#N/A"},{"$error":"#N/A"},{"$error":"#N/A"},{"$error":"#N/A"},{"$error":"#N/A"},{"$error":"#N/A"},{"$error":"#N/A"},{"$error":"#N/A"},null,{"$f":"SUM(HH50,HH82,HH117,HH140)","v":{"$error":"#N/A"}},{"$error":"#N/A"},{"$error":"#N/A"},{"$error":"#N/A"},{"$error":"#N/A"},{"$error":"#N/A"},{"$error":"#N/A"},{"$error":"#N/A"},{"$error":"#N/A"},{"$error":"#N/A"},{"$error":"#N/A"},{"$error":"#N/A"},{"$error":"#N/A"},{"$error":"#N/A"},{"$error":"#N/A"},{"$error":"#N/A"},{"$error":"#N/A"},{"$error":"#N/A"},{"$error":"#N/A"},{"$error":"#N/A"},{"$error":"#N/A"},{"$error":"#N/A"},{"$error":"#N/A"},{"$error":"#N/A"},{"$error":"#N/A"},{"$error":"#N/A"},{"$error":"#N/A"},{"$error":"#N/A"},{"$error":"#N/A"},{"$error":"#N/A"},{"$error":"#N/A"},{"$error":"#N/A"},{"$f":"SUM(IN50,IN82,IN117,IN140)","v":{"$error":"#N/A"}},{"$error":"#N/A"},{"$error":"#N/A"},{"$error":"#N/A"},{"$error":"#N/A"},{"$error":"#N/A"},{"$error":"#N/A"},{"$error":"#N/A"},{"$error":"#N/A"},{"$error":"#N/A"},{"$error":"#N/A"},{"$error":"#N/A"},{"$error":"#N/A"},{"$error":"#N/A"},{"$error":"#N/A"},{"$error":"#N/A"},{"$error":"#N/A"},{"$error":"#N/A"},{"$error":"#N/A"},null,{"$f":"SUM(JH50,JH82,JH117,JH140)","v":{"$error":"#VALUE!"}},{"$error":"#VALUE!"},{"$error":"#VALUE!"},{"$error":"#VALUE!"},{"$error":"#VALUE!"},{"$error":"#VALUE!"},{"$error":"#VALUE!"},{"$error":"#VALUE!"},{"$error":"#VALUE!"},{"$error":"#VALUE!"},{"$error":"#VALUE!"},{"$error":"#VALUE!"},{"$error":"#VALUE!"},{"$error":"#VALUE!"},{"$error":"#VALUE!"},{"$error":"#VALUE!"},{"$error":"#VALUE!"},{"$error":"#VALUE!"},{"$error":"#VALUE!"},{"$error":"#VALUE!"},{"$error":"#VALUE!"},{"$error":"#VALUE!"},{"$error":"#VALUE!"},{"$error":"#VALUE!"},{"$error":"#VALUE!"},{"$error":"#VALUE!"},{"$error":"#VALUE!"},{"$error":"#VALUE!"},{"$error":"#VALUE!"},{"$error":"#VALUE!"},{"$error":"#VALUE!"},{"$error":"#VALUE!"},{"$f":"SUM(KN50,KN82,KN117,KN140)","v":{"$error":"#VALUE!"}},{"$error":"#VALUE!"},{"$error":"#VALUE!"},{"$error":"#VALUE!"},{"$error":"#VALUE!"},{"$error":"#VALUE!"},{"$error":"#VALUE!"},{"$error":"#VALUE!"},{"$error":"#VALUE!"},{"$error":"#VALUE!"},{"$error":"#VALUE!"},{"$error":"#VALUE!"},{"$error":"#VALUE!"},{"$error":"#VALUE!"},{"$error":"#VALUE!"},{"$error":"#VALUE!"},{"$error":"#VALUE!"},{"$error":"#VALUE!"},{"$error":"#VALUE!"}]

{"sheet":"4. Plan Demand Projection","index":4,"n_rows":63,"n_cols":64,"rows_kept":63,"cut":false,"hidden":false,"merged":[]}
[null,"Conservation Plan Demand Projection"]
[]
[]
[]
[]
[]
[]
[]
[null,"Utility:",{"$f":"IF(utility<>\"UNLISTED\",utility,unlisted_utility_name)","v":0}]
[null,"Scenario:",{"$f":"LoadedScenario","v":"Empty"},null,null,null,null,null,null,null,null,null,null,null,null,null,null,null,null,null,null,null,null,null,null,null,null,null,null,null,null,null,null,null,null,null,null,null,null,null,null,null,null,null,null,null,null,null,null,null,null,null,null,"Avg Annual"]
[null,"Volume Units:","kGal",null,null,null,null,null,null,null,null,null,null,null,null,null,null,null,null,null,null,null,null,null,null,null,null,null,null,null,null,null,null,null,null,null,null,null,null,null,null,null,null,null,null,null,null,null,null,null,null,null,null,"Growth %"]
[]
[null,"Projections",2020,2021,2022,2023,2024,2025,2026,2027,2028,2029,2030,2031,2032,2033,2034,2035,2036,2037,2038,2039,2040,2041,2042,2043,2044,2045,2046,2047,2048,2049,2050,2051,2052,2053,2054,2055,2056,2057,2058,2059,2060,2061,2062,2063,2064,2065,2066,2067,2068,2069,2070,"2020-70"]
[]
[null,{"$f":"'1. Baseline Demand Projection'!B22","v":"Population"},null,null,null,null,null,null,null,null,null,null,null,null,null,null,null,null,null,null,null,null,null,null,null,null,null,null,null,null,null,null,null,null,null,null,null,null,null,null,null,null,null,null,null,null,null,null,null,null,null,null,null,null,null,null,{"$f":"\"Total Production (\"&volunit_selected&\")\"","v":"Total Production (kGal)"}]
[null,{"$f":"'1. Baseline Demand Projection'!$B$23","v":"Retail Service Area"},{"$f":"IF(MOD(C$13,10)=0,HLOOKUP(C$13,IF(baseline_selection=1,'1. Baseline Demand Projection'!$E$20:$J$47,'1. Baseline Demand Projection'!$N$20:$S$47),4),B16+(OFFSET(C16,0,10-MOD(C$13,10))-OFFSET(C16,0,-MOD(C$13,10)))/10)","v":0},{"$f":"IF(MOD(D$13,10)=0,HLOOKUP(D$13,'1. Baseline Demand Projection'!#REF!,4),C16+(OFFSET(D16,0,10-MOD(D$13,10))-OFFSET(D16,0,-MOD(D$13,10)))/10)","v":0},{"$f":"IF(MOD(E$13,10)=0,HLOOKUP(E$13,'1. Baseline Demand Projection'!#REF!,4),D16+(OFFSET(E16,0,10-MOD(E$13,10))-OFFSET(E16,0,-MOD(E$13,10)))/10)","v":0},{"$f":"IF(MOD(F$13,10)=0,HLOOKUP(F$13,'1. Baseline Demand Projection'!#REF!,4),E16+(OFFSET(F16,0,10-MOD(F$13,10))-OFFSET(F16,0,-MOD(F$13,10)))/10)","v":0},{"$f":"IF(MOD(G$13,10)=0,HLOOKUP(G$13,IF(baseline_selection=1,'1. Baseline Demand Projection'!$E$20:$J$47,'1. Baseline Demand Projection'!$N$20:$S$47),4),F16+(OFFSET(G16,0,10-MOD(G$13,10))-OFFSET(G16,0,-MOD(G$13,10)))/10)","v":0},{"$f":"IF(MOD(H$13,10)=0,HLOOKUP(H$13,IF(baseline_selection=1,'1. Baseline Demand Projection'!$E$20:$J$47,'1. Baseline Demand Projection'!$N$20:$S$47),4),G16+(OFFSET(H16,0,10-MOD(H$13,10))-OFFSET(H16,0,-MOD(H$13,10)))/10)","v":0},{"$f":"IF(MOD(I$13,10)=0,HLOOKUP(I$13,IF(baseline_selection=1,'1. Baseline Demand Projection'!$E$20:$J$47,'1. Baseline Demand Projection'!$N$20:$S$47),4),H16+(OFFSET(I16,0,10-MOD(I$13,10))-OFFSET(I16,0,-MOD(I$13,10)))/10)","v":0},{"$f":"IF(MOD(J$13,10)=0,HLOOKUP(J$13,IF(baseline_selection=1,'1. Baseline Demand Projection'!$E$20:$J$47,'1. Baseline Demand Projection'!$N$20:$S$47),4),I16+(OFFSET(J16,0,10-MOD(J$13,10))-OFFSET(J16,0,-MOD(J$13,10)))/10)","v":0},{"$f":"IF(MOD(K$13,10)=0,HLOOKUP(K$13,IF(baseline_selection=1,'1. Baseline Demand Projection'!$E$20:$J$47,'1. Baseline Demand Projection'!$N$20:$S$47),4),J16+(OFFSET(K16,0,10-MOD(K$13,10))-OFFSET(K16,0,-MOD(K$13,10)))/10)","v":0},{"$f":"IF(MOD(L$13,10)=0,HLOOKUP(L$13,IF(baseline_selection=1,'1. Baseline Demand Projection'!$E$20:$J$47,'1. Baseline Demand Projection'!$N$20:$S$47),4),K16+(OFFSET(L16,0,10-MOD(L$13,10))-OFFSET(L16,0,-MOD(L$13,10)))/10)","v":0},{"$f":"IF(MOD(M$13,10)=0,HLOOKUP(M$13,IF(baseline_selection=1,'1. Baseline Demand Projection'!$E$20:$J$47,'1. Baseline Demand Projection'!$N$20:$S$47),4),L16+(OFFSET(M16,0,10-MOD(M$13,10))-OFFSET(M16,0,-MOD(M$13,10)))/10)","v":0},{"$f":"IF(MOD(N$13,10)=0,HLOOKUP(N$13,IF(baseline_selection=1,'1. Baseline Demand Projection'!$E$20:$J$47,'1. Baseline Demand Projection'!$N$20:$S$47),4),M16+(OFFSET(N16,0,10-MOD(N$13,10))-OFFSET(N16,0,-MOD(N$13,10)))/10)","v":0},{"$f":"IF(MOD(O$13,10)=0,HLOOKUP(O$13,IF(baseline_selection=1,'1. Baseline Demand Projection'!$E$20:$J$47,'1. Baseline Demand Projection'!$N$20:$S$47),4),N16+(OFFSET(O16,0,10-MOD(O$13,10))-OFFSET(O16,0,-MOD(O$13,10)))/10)","v":0},{"$f":"IF(MOD(P$13,10)=0,HLOOKUP(P$13,IF(baseline_selection=1,'1. Baseline Demand Projection'!$E$20:$J$47,'1. Baseline Demand Projection'!$N$20:$S$47),4),O16+(OFFSET(P16,0,10-MOD(P$13,10))-OFFSET(P16,0,-MOD(P$13,10)))/10)","v":0},{"$f":"IF(MOD(Q$13,10)=0,HLOOKUP(Q$13,IF(baseline_selection=1,'1. Baseline Demand Projection'!$E$20:$J$47,'1. Baseline Demand Projection'!$N$20:$S$47),4),P16+(OFFSET(Q16,0,10-MOD(Q$13,10))-OFFSET(Q16,0,-MOD(Q$13,10)))/10)","v":0},{"$f":"IF(MOD(R$13,10)=0,HLOOKUP(R$13,IF(baseline_selection=1,'1. Baseline Demand Projection'!$E$20:$J$47,'1. Baseline Demand Projection'!$N$20:$S$47),4),Q16+(OFFSET(R16,0,10-MOD(R$13,10))-OFFSET(R16,0,-MOD(R$13,10)))/10)","v":0},{"$f":"IF(MOD(S$13,10)=0,HLOOKUP(S$13,IF(baseline_selection=1,'1. Baseline Demand Projection'!$E$20:$J$47,'1. Baseline Demand Projection'!$N$20:$S$47),4),R16+(OFFSET(S16,0,10-MOD(S$13,10))-OFFSET(S16,0,-MOD(S$13,10)))/10)","v":0},{"$f":"IF(MOD(T$13,10)=0,HLOOKUP(T$13,IF(baseline_selection=1,'1. Baseline Demand Projection'!$E$20:$J$47,'1. Baseline Demand Projection'!$N$20:$S$47),4),S16+(OFFSET(T16,0,10-MOD(T$13,10))-OFFSET(T16,0,-MOD(T$13,10)))/10)","v":0},{"$f":"IF(MOD(U$13,10)=0,HLOOKUP(U$13,IF(baseline_selection=1,'1. Baseline Demand Projection'!$E$20:$J$47,'1. Baseline Demand Projection'!$N$20:$S$47),4),T16+(OFFSET(U16,0,10-MOD(U$13,10))-OFFSET(U16,0,-MOD(U$13,10)))/10)","v":0},{"$f":"IF(MOD(V$13,10)=0,HLOOKUP(V$13,IF(baseline_selection=1,'1. Baseline Demand Projection'!$E$20:$J$47,'1. Baseline Demand Projection'!$N$20:$S$47),4),U16+(OFFSET(V16,0,10-MOD(V$13,10))-OFFSET(V16,0,-MOD(V$13,10)))/10)","v":0},{"$f":"IF(MOD(W$13,10)=0,HLOOKUP(W$13,IF(baseline_selection=1,'1. Baseline Demand Projection'!$E$20:$J$47,'1. Baseline Demand Projection'!$N$20:$S$47),4),V16+(OFFSET(W16,0,10-MOD(W$13,10))-OFFSET(W16,0,-MOD(W$13,10)))/10)","v":0},{"$f":"IF(MOD(X$13,10)=0,HLOOKUP(X$13,IF(baseline_selection=1,'1. Baseline Demand Projection'!$E$20:$J$47,'1. Baseline Demand Projection'!$N$20:$S$47),4),W16+(OFFSET(X16,0,10-MOD(X$13,10))-OFFSET(X16,0,-MOD(X$13,10)))/10)","v":0},{"$f":"IF(MOD(Y$13,10)=0,HLOOKUP(Y$13,IF(baseline_selection=1,'1. Baseline Demand Projection'!$E$20:$J$47,'1. Baseline Demand Projection'!$N$20:$S$47),4),X16+(OFFSET(Y16,0,10-MOD(Y$13,10))-OFFSET(Y16,0,-MOD(Y$13,10)))/10)","v":0},{"$f":"IF(MOD(Z$13,10)=0,HLOOKUP(Z$13,IF(baseline_selection=1,'1. Baseline Demand Projection'!$E$20:$J$47,'1. Baseline Demand Projection'!$N$20:$S$47),4),Y16+(OFFSET(Z16,0,10-MOD(Z$13,10))-OFFSET(Z16,0,-MOD(Z$13,10)))/10)","v":0},{"$f":"IF(MOD(AA$13,10)=0,HLOOKUP(AA$13,IF(baseline_selection=1,'1. Baseline Demand Projection'!$E$20:$J$47,'1. Baseline Demand Projection'!$N$20:$S$47),4),Z16+(OFFSET(AA16,0,10-MOD(AA$13,10))-OFFSET(AA16,0,-MOD(AA$13,10)))/10)","v":0},{"$f":"IF(MOD(AB$13,10)=0,HLOOKUP(AB$13,IF(baseline_selection=1,'1. Baseline Demand Projection'!$E$20:$J$47,'1. Baseline Demand Projection'!$N$20:$S$47),4),AA16+(OFFSET(AB16,0,10-MOD(AB$13,10))-OFFSET(AB16,0,-MOD(AB$13,10)))/10)","v":0},{"$f":"IF(MOD(AC$13,10)=0,HLOOKUP(AC$13,IF(baseline_selection=1,'1. Baseline Demand Projection'!$E$20:$J$47,'1. Baseline Demand Projection'!$N$20:$S$47),4),AB16+(OFFSET(AC16,0,10-MOD(AC$13,10))-OFFSET(AC16,0,-MOD(AC$13,10)))/10)","v":0},{"$f":"IF(MOD(AD$13,10)=0,HLOOKUP(AD$13,IF(baseline_selection=1,'1. Baseline Demand Projection'!$E$20:$J$47,'1. Baseline Demand Projection'!$N$20:$S$47),4),AC16+(OFFSET(AD16,0,10-MOD(AD$13,10))-OFFSET(AD16,0,-MOD(AD$13,10)))/10)","v":0},{"$f":"IF(MOD(AE$13,10)=0,HLOOKUP(AE$13,IF(baseline_selection=1,'1. Baseline Demand Projection'!$E$20:$J$47,'1. Baseline Demand Projection'!$N$20:$S$47),4),AD16+(OFFSET(AE16,0,10-MOD(AE$13,10))-OFFSET(AE16,0,-MOD(AE$13,10)))/10)","v":0},{"$f":"IF(MOD(AF$13,10)=0,HLOOKUP(AF$13,IF(baseline_selection=1,'1. Baseline Demand Projection'!$E$20:$J$47,'1. Baseline Demand Projection'!$N$20:$S$47),4),AE16+(OFFSET(AF16,0,10-MOD(AF$13,10))-OFFSET(AF16,0,-MOD(AF$13,10)))/10)","v":0},{"$f":"IF(MOD(AG$13,10)=0,HLOOKUP(AG$13,IF(baseline_selection=1,'1. Baseline Demand Projection'!$E$20:$J$47,'1. Baseline Demand Projection'!$N$20:$S$47),4),AF16+(OFFSET(AG16,0,10-MOD(AG$13,10))-OFFSET(AG16,0,-MOD(AG$13,10)))/10)","v":0},{"$f":"IF(MOD(AH$13,10)=0,HLOOKUP(AH$13,IF(baseline_selection=1,'1. Baseline Demand Projection'!$E$20:$J$47,'1. Baseline Demand Projection'!$N$20:$S$47),4),AG16+(OFFSET(AH16,0,10-MOD(AH$13,10))-OFFSET(AH16,0,-MOD(AH$13,10)))/10)","v":0},{"$f":"IF(MOD(AI$13,10)=0,HLOOKUP(AI$13,IF(baseline_selection=1,'1. Baseline Demand Projection'!$E$20:$J$47,'1. Baseline Demand Projection'!$N$20:$S$47),4),AH16+(OFFSET(AI16,0,10-MOD(AI$13,10))-OFFSET(AI16,0,-MOD(AI$13,10)))/10)","v":0},{"$f":"IF(MOD(AJ$13,10)=0,HLOOKUP(AJ$13,IF(baseline_selection=1,'1. Baseline Demand Projection'!$E$20:$J$47,'1. Baseline Demand Projection'!$N$20:$S$47),4),AI16+(OFFSET(AJ16,0,10-MOD(AJ$13,10))-OFFSET(AJ16,0,-MOD(AJ$13,10)))/10)","v":0},{"$f":"IF(MOD(AK$13,10)=0,HLOOKUP(AK$13,IF(baseline_selection=1,'1. Baseline Demand Projection'!$E$20:$J$47,'1. Baseline Demand Projection'!$N$20:$S$47),4),AJ16+(OFFSET(AK16,0,10-MOD(AK$13,10))-OFFSET(AK16,0,-MOD(AK$13,10)))/10)","v":0},{"$f":"IF(MOD(AL$13,10)=0,HLOOKUP(AL$13,IF(baseline_selection=1,'1. Baseline Demand Projection'!$E$20:$J$47,'1. Baseline Demand Projection'!$N$20:$S$47),4),AK16+(OFFSET(AL16,0,10-MOD(AL$13,10))-OFFSET(AL16,0,-MOD(AL$13,10)))/10)","v":0},{"$f":"IF(MOD(AM$13,10)=0,HLOOKUP(AM$13,IF(baseline_selection=1,'1. Baseline Demand Projection'!$E$20:$J$47,'1. Baseline Demand Projection'!$N$20:$S$47),4),AL16+(OFFSET(AM16,0,10-MOD(AM$13,10))-OFFSET(AM16,0,-MOD(AM$13,10)))/10)","v":0},{"$f":"IF(MOD(AN$13,10)=0,HLOOKUP(AN$13,IF(baseline_selection=1,'1. Baseline Demand Projection'!$E$20:$J$47,'1. Baseline Demand Projection'!$N$20:$S$47),4),AM16+(OFFSET(AN16,0,10-MOD(AN$13,10))-OFFSET(AN16,0,-MOD(AN$13,10)))/10)","v":0},{"$f":"IF(MOD(AO$13,10)=0,HLOOKUP(AO$13,IF(baseline_selection=1,'1. Baseline Demand Projection'!$E$20:$J$47,'1. Baseline Demand Projection'!$N$20:$S$47),4),AN16+(OFFSET(AO16,0,10-MOD(AO$13,10))-OFFSET(AO16,0,-MOD(AO$13,10)))/10)","v":0},{"$f":"IF(MOD(AP$13,10)=0,HLOOKUP(AP$13,IF(baseline_selection=1,'1. Baseline Demand Projection'!$E$20:$J$47,'1. Baseline Demand Projection'!$N$20:$S$47),4),AO16+(OFFSET(AP16,0,10-MOD(AP$13,10))-OFFSET(AP16,0,-MOD(AP$13,10)))/10)","v":0},{"$f":"IF(MOD(AQ$13,10)=0,HLOOKUP(AQ$13,IF(baseline_selection=1,'1. Baseline Demand Projection'!$E$20:$J$47,'1. Baseline Demand Projection'!$N$20:$S$47),4),AP16+(OFFSET(AQ16,0,10-MOD(AQ$13,10))-OFFSET(AQ16,0,-MOD(AQ$13,10)))/10)","v":0},{"$f":"IF(MOD(AR$13,10)=0,HLOOKUP(AR$13,IF(baseline_selection=1,'1. Baseline Demand Projection'!$E$20:$J$47,'1. Baseline Demand Projection'!$N$20:$S$47),4),AQ16+(OFFSET(AR16,0,10-MOD(AR$13,10))-OFFSET(AR16,0,-MOD(AR$13,10)))/10)","v":0},{"$f":"IF(MOD(AS$13,10)=0,HLOOKUP(AS$13,IF(baseline_selection=1,'1. Baseline Demand Projection'!$E$20:$J$47,'1. Baseline Demand Projection'!$N$20:$S$47),4),AR16+(OFFSET(AS16,0,10-MOD(AS$13,10))-OFFSET(AS16,0,-MOD(AS$13,10)))/10)","v":0},{"$f":"IF(MOD(AT$13,10)=0,HLOOKUP(AT$13,IF(baseline_selection=1,'1. Baseline Demand Projection'!$E$20:$J$47,'1. Baseline Demand Projection'!$N$20:$S$47),4),AS16+(OFFSET(AT16,0,10-MOD(AT$13,10))-OFFSET(AT16,0,-MOD(AT$13,10)))/10)","v":0},{"$f":"IF(MOD(AU$13,10)=0,HLOOKUP(AU$13,IF(baseline_selection=1,'1. Baseline Demand Projection'!$E$20:$J$47,'1. Baseline Demand Projection'!$N$20:$S$47),4),AT16+(OFFSET(AU16,0,10-MOD(AU$13,10))-OFFSET(AU16,0,-MOD(AU$13,10)))/10)","v":0},{"$f":"IF(MOD(AV$13,10)=0,HLOOKUP(AV$13,IF(baseline_selection=1,'1. Baseline Demand Projection'!$E$20:$J$47,'1. Baseline Demand Projection'!$N$20:$S$47),4),AU16+(OFFSET(AV16,0,10-MOD(AV$13,10))-OFFSET(AV16,0,-MOD(AV$13,10)))/10)","v":0},{"$f":"IF(MOD(AW$13,10)=0,HLOOKUP(AW$13,IF(baseline_selection=1,'1. Baseline Demand Projection'!$E$20:$J$47,'1. Baseline Demand Projection'!$N$20:$S$47),4),AV16+(OFFSET(AW16,0,10-MOD(AW$13,10))-OFFSET(AW16,0,-MOD(AW$13,10)))/10)","v":0},{"$f":"IF(MOD(AX$13,10)=0,HLOOKUP(AX$13,IF(baseline_selection=1,'1. Baseline Demand Projection'!$E$20:$J$47,'1. Baseline Demand Projection'!$N$20:$S$47),4),AW16+(OFFSET(AX16,0,10-MOD(AX$13,10))-OFFSET(AX16,0,-MOD(AX$13,10)))/10)","v":0},{"$f":"IF(MOD(AY$13,10)=0,HLOOKUP(AY$13,IF(baseline_selection=1,'1. Baseline Demand Projection'!$E$20:$J$47,'1. Baseline Demand Projection'!$N$20:$S$47),4),AX16+(OFFSET(AY16,0,10-MOD(AY$13,10))-OFFSET(AY16,0,-MOD(AY$13,10)))/10)","v":0},{"$f":"IF(MOD(AZ$13,10)=0,HLOOKUP(AZ$13,IF(baseline_selection=1,'1. Baseline Demand Projection'!$E$20:$J$47,'1. Baseline Demand Projection'!$N$20:$S$47),4),AY16+(OFFSET(AZ16,0,10-MOD(AZ$13,10))-OFFSET(AZ16,0,-MOD(AZ$13,10)))/10)","v":0},{"$f":"IF(MOD(BA$13,10)=0,HLOOKUP(BA$13,IF(baseline_selection=1,'1. Baseline Demand Projection'!$E$20:$J$47,'1. Baseline Demand Projection'!$N$20:$S$47),4),AZ16+(OFFSET(BA16,0,10-MOD(BA$13,10))-OFFSET(BA16,0,-MOD(BA$13,10)))/10)","v":0},{"$f":"IF(C16>0,(BA16/C16)^(1/50)-1,0)","v":0}]
[]
[null,{"$f":"'1. Baseline Demand Projection'!B25","v":"Connections"}]
[null,{"$f":"'1. Baseline Demand Projection'!B26","v":"Single Family"},{"$f":"IF(MOD(C$13,10)=0,HLOOKUP(C$13,IF(baseline_selection=1,'1. Baseline Demand Projection'!$E$20:$J$47,'1. Baseline Demand Projection'!$N$20:$S$47),7),B19+(OFFSET(C19,0,10-MOD(C$13,10))-OFFSET(C19,0,-MOD(C$13,10)))/10)","v":0},{"$f":"IF(MOD(D$13,10)=0,HLOOKUP(D$13,'1. Baseline Demand Projection'!#REF!,7),C19+(OFFSET(D19,0,10-MOD(D$13,10))-OFFSET(D19,0,-MOD(D$13,10)))/10)","v":0},{"$f":"IF(MOD(E$13,10)=0,HLOOKUP(E$13,'1. Baseline Demand Projection'!#REF!,7),D19+(OFFSET(E19,0,10-MOD(E$13,10))-OFFSET(E19,0,-MOD(E$13,10)))/10)","v":0},{"$f":"IF(MOD(F$13,10)=0,HLOOKUP(F$13,'1. Baseline Demand Projection'!#REF!,7),E19+(OFFSET(F19,0,10-MOD(F$13,10))-OFFSET(F19,0,-MOD(F$13,10)))/10)","v":0},{"$f":"IF(MOD(G$13,10)=0,HLOOKUP(G$13,IF(baseline_selection=1,'1. Baseline Demand Projection'!$E$20:$J$47,'1. Baseline Demand Projection'!$N$20:$S$47),7),F19+(OFFSET(G19,0,10-MOD(G$13,10))-OFFSET(G19,0,-MOD(G$13,10)))/10)","v":0},{"$f":"IF(MOD(H$13,10)=0,HLOOKUP(H$13,IF(baseline_selection=1,'1. Baseline Demand Projection'!$E$20:$J$47,'1. Baseline Demand Projection'!$N$20:$S$47),7),G19+(OFFSET(H19,0,10-MOD(H$13,10))-OFFSET(H19,0,-MOD(H$13,10)))/10)","v":0},{"$f":"IF(MOD(I$13,10)=0,HLOOKUP(I$13,IF(baseline_selection=1,'1. Baseline Demand Projection'!$E$20:$J$47,'1. Baseline Demand Projection'!$N$20:$S$47),7),H19+(OFFSET(I19,0,10-MOD(I$13,10))-OFFSET(I19,0,-MOD(I$13,10)))/10)","v":0},{"$f":"IF(MOD(J$13,10)=0,HLOOKUP(J$13,IF(baseline_selection=1,'1. Baseline Demand Projection'!$E$20:$J$47,'1. Baseline Demand Projection'!$N$20:$S$47),7),I19+(OFFSET(J19,0,10-MOD(J$13,10))-OFFSET(J19,0,-MOD(J$13,10)))/10)","v":0},{"$f":"IF(MOD(K$13,10)=0,HLOOKUP(K$13,IF(baseline_selection=1,'1. Baseline Demand Projection'!$E$20:$J$47,'1. Baseline Demand Projection'!$N$20:$S$47),7),J19+(OFFSET(K19,0,10-MOD(K$13,10))-OFFSET(K19,0,-MOD(K$13,10)))/10)","v":0},{"$f":"IF(MOD(L$13,10)=0,HLOOKUP(L$13,IF(baseline_selection=1,'1. Baseline Demand Projection'!$E$20:$J$47,'1. Baseline Demand Projection'!$N$20:$S$47),7),K19+(OFFSET(L19,0,10-MOD(L$13,10))-OFFSET(L19,0,-MOD(L$13,10)))/10)","v":0},{"$f":"IF(MOD(M$13,10)=0,HLOOKUP(M$13,IF(baseline_selection=1,'1. Baseline Demand Projection'!$E$20:$J$47,'1. Baseline Demand Projection'!$N$20:$S$47),7),L19+(OFFSET(M19,0,10-MOD(M$13,10))-OFFSET(M19,0,-MOD(M$13,10)))/10)","v":0},{"$f":"IF(MOD(N$13,10)=0,HLOOKUP(N$13,IF(baseline_selection=1,'1. Baseline Demand Projection'!$E$20:$J$47,'1. Baseline Demand Projection'!$N$20:$S$47),7),M19+(OFFSET(N19,0,10-MOD(N$13,10))-OFFSET(N19,0,-MOD(N$13,10)))/10)","v":0},{"$f":"IF(MOD(O$13,10)=0,HLOOKUP(O$13,IF(baseline_selection=1,'1. Baseline Demand Projection'!$E$20:$J$47,'1. Baseline Demand Projection'!$N$20:$S$47),7),N19+(OFFSET(O19,0,10-MOD(O$13,10))-OFFSET(O19,0,-MOD(O$13,10)))/10)","v":0},{"$f":"IF(MOD(P$13,10)=0,HLOOKUP(P$13,IF(baseline_selection=1,'1. Baseline Demand Projection'!$E$20:$J$47,'1. Baseline Demand Projection'!$N$20:$S$47),7),O19+(OFFSET(P19,0,10-MOD(P$13,10))-OFFSET(P19,0,-MOD(P$13,10)))/10)","v":0},{"$f":"IF(MOD(Q$13,10)=0,HLOOKUP(Q$13,IF(baseline_selection=1,'1. Baseline Demand Projection'!$E$20:$J$47,'1. Baseline Demand Projection'!$N$20:$S$47),7),P19+(OFFSET(Q19,0,10-MOD(Q$13,10))-OFFSET(Q19,0,-MOD(Q$13,10)))/10)","v":0},{"$f":"IF(MOD(R$13,10)=0,HLOOKUP(R$13,IF(baseline_selection=1,'1. Baseline Demand Projection'!$E$20:$J$47,'1. Baseline Demand Projection'!$N$20:$S$47),7),Q19+(OFFSET(R19,0,10-MOD(R$13,10))-OFFSET(R19,0,-MOD(R$13,10)))/10)","v":0},{"$f":"IF(MOD(S$13,10)=0,HLOOKUP(S$13,IF(baseline_selection=1,'1. Baseline Demand Projection'!$E$20:$J$47,'1. Baseline Demand Projection'!$N$20:$S$47),7),R19+(OFFSET(S19,0,10-MOD(S$13,10))-OFFSET(S19,0,-MOD(S$13,10)))/10)","v":0},{"$f":"IF(MOD(T$13,10)=0,HLOOKUP(T$13,IF(baseline_selection=1,'1. Baseline Demand Projection'!$E$20:$J$47,'1. Baseline Demand Projection'!$N$20:$S$47),7),S19+(OFFSET(T19,0,10-MOD(T$13,10))-OFFSET(T19,0,-MOD(T$13,10)))/10)","v":0},{"$f":"IF(MOD(U$13,10)=0,HLOOKUP(U$13,IF(baseline_selection=1,'1. Baseline Demand Projection'!$E$20:$J$47,'1. Baseline Demand Projection'!$N$20:$S$47),7),T19+(OFFSET(U19,0,10-MOD(U$13,10))-OFFSET(U19,0,-MOD(U$13,10)))/10)","v":0},{"$f":"IF(MOD(V$13,10)=0,HLOOKUP(V$13,IF(baseline_selection=1,'1. Baseline Demand Projection'!$E$20:$J$47,'1. Baseline Demand Projection'!$N$20:$S$47),7),U19+(OFFSET(V19,0,10-MOD(V$13,10))-OFFSET(V19,0,-MOD(V$13,10)))/10)","v":0},{"$f":"IF(MOD(W$13,10)=0,HLOOKUP(W$13,IF(baseline_selection=1,'1. Baseline Demand Projection'!$E$20:$J$47,'1. Baseline Demand Projection'!$N$20:$S$47),7),V19+(OFFSET(W19,0,10-MOD(W$13,10))-OFFSET(W19,0,-MOD(W$13,10)))/10)","v":0},{"$f":"IF(MOD(X$13,10)=0,HLOOKUP(X$13,IF(baseline_selection=1,'1. Baseline Demand Projection'!$E$20:$J$47,'1. Baseline Demand Projection'!$N$20:$S$47),7),W19+(OFFSET(X19,0,10-MOD(X$13,10))-OFFSET(X19,0,-MOD(X$13,10)))/10)","v":0},{"$f":"IF(MOD(Y$13,10)=0,HLOOKUP(Y$13,IF(baseline_selection=1,'1. Baseline Demand Projection'!$E$20:$J$47,'1. Baseline Demand Projection'!$N$20:$S$47),7),X19+(OFFSET(Y19,0,10-MOD(Y$13,10))-OFFSET(Y19,0,-MOD(Y$13,10)))/10)","v":0},{"$f":"IF(MOD(Z$13,10)=0,HLOOKUP(Z$13,IF(baseline_selection=1,'1. Baseline Demand Projection'!$E$20:$J$47,'1. Baseline Demand Projection'!$N$20:$S$47),7),Y19+(OFFSET(Z19,0,10-MOD(Z$13,10))-OFFSET(Z19,0,-MOD(Z$13,10)))/10)","v":0},{"$f":"IF(MOD(AA$13,10)=0,HLOOKUP(AA$13,IF(baseline_selection=1,'1. Baseline Demand Projection'!$E$20:$J$47,'1. Baseline Demand Projection'!$N$20:$S$47),7),Z19+(OFFSET(AA19,0,10-MOD(AA$13,10))-OFFSET(AA19,0,-MOD(AA$13,10)))/10)","v":0},{"$f":"IF(MOD(AB$13,10)=0,HLOOKUP(AB$13,IF(baseline_selection=1,'1. Baseline Demand Projection'!$E$20:$J$47,'1. Baseline Demand Projection'!$N$20:$S$47),7),AA19+(OFFSET(AB19,0,10-MOD(AB$13,10))-OFFSET(AB19,0,-MOD(AB$13,10)))/10)","v":0},{"$f":"IF(MOD(AC$13,10)=0,HLOOKUP(AC$13,IF(baseline_selection=1,'1. Baseline Demand Projection'!$E$20:$J$47,'1. Baseline Demand Projection'!$N$20:$S$47),7),AB19+(OFFSET(AC19,0,10-MOD(AC$13,10))-OFFSET(AC19,0,-MOD(AC$13,10)))/10)","v":0},{"$f":"IF(MOD(AD$13,10)=0,HLOOKUP(AD$13,IF(baseline_selection=1,'1. Baseline Demand Projection'!$E$20:$J$47,'1. Baseline Demand Projection'!$N$20:$S$47),7),AC19+(OFFSET(AD19,0,10-MOD(AD$13,10))-OFFSET(AD19,0,-MOD(AD$13,10)))/10)","v":0},{"$f":"IF(MOD(AE$13,10)=0,HLOOKUP(AE$13,IF(baseline_selection=1,'1. Baseline Demand Projection'!$E$20:$J$47,'1. Baseline Demand Projection'!$N$20:$S$47),7),AD19+(OFFSET(AE19,0,10-MOD(AE$13,10))-OFFSET(AE19,0,-MOD(AE$13,10)))/10)","v":0},{"$f":"IF(MOD(AF$13,10)=0,HLOOKUP(AF$13,IF(baseline_selection=1,'1. Baseline Demand Projection'!$E$20:$J$47,'1. Baseline Demand Projection'!$N$20:$S$47),7),AE19+(OFFSET(AF19,0,10-MOD(AF$13,10))-OFFSET(AF19,0,-MOD(AF$13,10)))/10)","v":0},{"$f":"IF(MOD(AG$13,10)=0,HLOOKUP(AG$13,IF(baseline_selection=1,'1. Baseline Demand Projection'!$E$20:$J$47,'1. Baseline Demand Projection'!$N$20:$S$47),7),AF19+(OFFSET(AG19,0,10-MOD(AG$13,10))-OFFSET(AG19,0,-MOD(AG$13,10)))/10)","v":0},{"$f":"IF(MOD(AH$13,10)=0,HLOOKUP(AH$13,IF(baseline_selection=1,'1. Baseline Demand Projection'!$E$20:$J$47,'1. Baseline Demand Projection'!$N$20:$S$47),7),AG19+(OFFSET(AH19,0,10-MOD(AH$13,10))-OFFSET(AH19,0,-MOD(AH$13,10)))/10)","v":0},{"$f":"IF(MOD(AI$13,10)=0,HLOOKUP(AI$13,IF(baseline_selection=1,'1. Baseline Demand Projection'!$E$20:$J$47,'1. Baseline Demand Projection'!$N$20:$S$47),7),AH19+(OFFSET(AI19,0,10-MOD(AI$13,10))-OFFSET(AI19,0,-MOD(AI$13,10)))/10)","v":0},{"$f":"IF(MOD(AJ$13,10)=0,HLOOKUP(AJ$13,IF(baseline_selection=1,'1. Baseline Demand Projection'!$E$20:$J$47,'1. Baseline Demand Projection'!$N$20:$S$47),7),AI19+(OFFSET(AJ19,0,10-MOD(AJ$13,10))-OFFSET(AJ19,0,-MOD(AJ$13,10)))/10)","v":0},{"$f":"IF(MOD(AK$13,10)=0,HLOOKUP(AK$13,IF(baseline_selection=1,'1. Baseline Demand Projection'!$E$20:$J$47,'1. Baseline Demand Projection'!$N$20:$S$47),7),AJ19+(OFFSET(AK19,0,10-MOD(AK$13,10))-OFFSET(AK19,0,-MOD(AK$13,10)))/10)","v":0},{"$f":"IF(MOD(AL$13,10)=0,HLOOKUP(AL$13,IF(baseline_selection=1,'1. Baseline Demand Projection'!$E$20:$J$47,'1. Baseline Demand Projection'!$N$20:$S$47),7),AK19+(OFFSET(AL19,0,10-MOD(AL$13,10))-OFFSET(AL19,0,-MOD(AL$13,10)))/10)","v":0},{"$f":"IF(MOD(AM$13,10)=0,HLOOKUP(AM$13,IF(baseline_selection=1,'1. Baseline Demand Projection'!$E$20:$J$47,'1. Baseline Demand Projection'!$N$20:$S$47),7),AL19+(OFFSET(AM19,0,10-MOD(AM$13,10))-OFFSET(AM19,0,-MOD(AM$13,10)))/10)","v":0},{"$f":"IF(MOD(AN$13,10)=0,HLOOKUP(AN$13,IF(baseline_selection=1,'1. Baseline Demand Projection'!$E$20:$J$47,'1. Baseline Demand Projection'!$N$20:$S$47),7),AM19+(OFFSET(AN19,0,10-MOD(AN$13,10))-OFFSET(AN19,0,-MOD(AN$13,10)))/10)","v":0},{"$f":"IF(MOD(AO$13,10)=0,HLOOKUP(AO$13,IF(baseline_selection=1,'1. Baseline Demand Projection'!$E$20:$J$47,'1. Baseline Demand Projection'!$N$20:$S$47),7),AN19+(OFFSET(AO19,0,10-MOD(AO$13,10))-OFFSET(AO19,0,-MOD(AO$13,10)))/10)","v":0},{"$f":"IF(MOD(AP$13,10)=0,HLOOKUP(AP$13,IF(baseline_selection=1,'1. Baseline Demand Projection'!$E$20:$J$47,'1. Baseline Demand Projection'!$N$20:$S$47),7),AO19+(OFFSET(AP19,0,10-MOD(AP$13,10))-OFFSET(AP19,0,-MOD(AP$13,10)))/10)","v":0},{"$f":"IF(MOD(AQ$13,10)=0,HLOOKUP(AQ$13,IF(baseline_selection=1,'1. Baseline Demand Projection'!$E$20:$J$47,'1. Baseline Demand Projection'!$N$20:$S$47),7),AP19+(OFFSET(AQ19,0,10-MOD(AQ$13,10))-OFFSET(AQ19,0,-MOD(AQ$13,10)))/10)","v":0},{"$f":"IF(MOD(AR$13,10)=0,HLOOKUP(AR$13,IF(baseline_selection=1,'1. Baseline Demand Projection'!$E$20:$J$47,'1. Baseline Demand Projection'!$N$20:$S$47),7),AQ19+(OFFSET(AR19,0,10-MOD(AR$13,10))-OFFSET(AR19,0,-MOD(AR$13,10)))/10)","v":0},{"$f":"IF(MOD(AS$13,10)=0,HLOOKUP(AS$13,IF(baseline_selection=1,'1. Baseline Demand Projection'!$E$20:$J$47,'1. Baseline Demand Projection'!$N$20:$S$47),7),AR19+(OFFSET(AS19,0,10-MOD(AS$13,10))-OFFSET(AS19,0,-MOD(AS$13,10)))/10)","v":0},{"$f":"IF(MOD(AT$13,10)=0,HLOOKUP(AT$13,IF(baseline_selection=1,'1. Baseline Demand Projection'!$E$20:$J$47,'1. Baseline Demand Projection'!$N$20:$S$47),7),AS19+(OFFSET(AT19,0,10-MOD(AT$13,10))-OFFSET(AT19,0,-MOD(AT$13,10)))/10)","v":0},{"$f":"IF(MOD(AU$13,10)=0,HLOOKUP(AU$13,IF(baseline_selection=1,'1. Baseline Demand Projection'!$E$20:$J$47,'1. Baseline Demand Projection'!$N$20:$S$47),7),AT19+(OFFSET(AU19,0,10-MOD(AU$13,10))-OFFSET(AU19,0,-MOD(AU$13,10)))/10)","v":0},{"$f":"IF(MOD(AV$13,10)=0,HLOOKUP(AV$13,IF(baseline_selection=1,'1. Baseline Demand Projection'!$E$20:$J$47,'1. Baseline Demand Projection'!$N$20:$S$47),7),AU19+(OFFSET(AV19,0,10-MOD(AV$13,10))-OFFSET(AV19,0,-MOD(AV$13,10)))/10)","v":0},{"$f":"IF(MOD(AW$13,10)=0,HLOOKUP(AW$13,IF(baseline_selection=1,'1. Baseline Demand Projection'!$E$20:$J$47,'1. Baseline Demand Projection'!$N$20:$S$47),7),AV19+(OFFSET(AW19,0,10-MOD(AW$13,10))-OFFSET(AW19,0,-MOD(AW$13,10)))/10)","v":0},{"$f":"IF(MOD(AX$13,10)=0,HLOOKUP(AX$13,IF(baseline_selection=1,'1. Baseline Demand Projection'!$E$20:$J$47,'1. Baseline Demand Projection'!$N$20:$S$47),7),AW19+(OFFSET(AX19,0,10-MOD(AX$13,10))-OFFSET(AX19,0,-MOD(AX$13,10)))/10)","v":0},{"$f":"IF(MOD(AY$13,10)=0,HLOOKUP(AY$13,IF(baseline_selection=1,'1. Baseline Demand Projection'!$E$20:$J$47,'1. Baseline Demand Projection'!$N$20:$S$47),7),AX19+(OFFSET(AY19,0,10-MOD(AY$13,10))-OFFSET(AY19,0,-MOD(AY$13,10)))/10)","v":0},{"$f":"IF(MOD(AZ$13,10)=0,HLOOKUP(AZ$13,IF(baseline_selection=1,'1. Baseline Demand Projection'!$E$20:$J$47,'1. Baseline Demand Projection'!$N$20:$S$47),7),AY19+(OFFSET(AZ19,0,10-MOD(AZ$13,10))-OFFSET(AZ19,0,-MOD(AZ$13,10)))/10)","v":0},{"$f":"IF(MOD(BA$13,10)=0,HLOOKUP(BA$13,IF(baseline_selection=1,'1. Baseline Demand Projection'!$E$20:$J$47,'1. Baseline Demand Projection'!$N$20:$S$47),7),AZ19+(OFFSET(BA19,0,10-MOD(BA$13,10))-OFFSET(BA19,0,-MOD(BA$13,10)))/10)","v":0},{"$f":"IF(C19>0,(BA19/C19)^(1/50)-1,0)","v":0}]
[null,{"$f":"'1. Baseline Demand Projection'!B27","v":"Multi Family"},{"$f":"IF(MOD(C$13,10)=0,HLOOKUP(C$13,IF(baseline_selection=1,'1. Baseline Demand Projection'!$E$20:$J$47,'1. Baseline Demand Projection'!$N$20:$S$47),8),B20+(OFFSET(C20,0,10-MOD(C$13,10))-OFFSET(C20,0,-MOD(C$13,10)))/10)","v":0},{"$f":"IF(MOD(D$13,10)=0,HLOOKUP(D$13,'1. Baseline Demand Projection'!#REF!,8),C20+(OFFSET(D20,0,10-MOD(D$13,10))-OFFSET(D20,0,-MOD(D$13,10)))/10)","v":0},{"$f":"IF(MOD(E$13,10)=0,HLOOKUP(E$13,'1. Baseline Demand Projection'!#REF!,8),D20+(OFFSET(E20,0,10-MOD(E$13,10))-OFFSET(E20,0,-MOD(E$13,10)))/10)","v":0},{"$f":"IF(MOD(F$13,10)=0,HLOOKUP(F$13,'1. Baseline Demand Projection'!#REF!,8),E20+(OFFSET(F20,0,10-MOD(F$13,10))-OFFSET(F20,0,-MOD(F$13,10)))/10)","v":0},{"$f":"IF(MOD(G$13,10)=0,HLOOKUP(G$13,IF(baseline_selection=1,'1. Baseline Demand Projection'!$E$20:$J$47,'1. Baseline Demand Projection'!$N$20:$S$47),8),F20+(OFFSET(G20,0,10-MOD(G$13,10))-OFFSET(G20,0,-MOD(G$13,10)))/10)","v":0},{"$f":"IF(MOD(H$13,10)=0,HLOOKUP(H$13,IF(baseline_selection=1,'1. Baseline Demand Projection'!$E$20:$J$47,'1. Baseline Demand Projection'!$N$20:$S$47),8),G20+(OFFSET(H20,0,10-MOD(H$13,10))-OFFSET(H20,0,-MOD(H$13,10)))/10)","v":0},{"$f":"IF(MOD(I$13,10)=0,HLOOKUP(I$13,IF(baseline_selection=1,'1. Baseline Demand Projection'!$E$20:$J$47,'1. Baseline Demand Projection'!$N$20:$S$47),8),H20+(OFFSET(I20,0,10-MOD(I$13,10))-OFFSET(I20,0,-MOD(I$13,10)))/10)","v":0},{"$f":"IF(MOD(J$13,10)=0,HLOOKUP(J$13,IF(baseline_selection=1,'1. Baseline Demand Projection'!$E$20:$J$47,'1. Baseline Demand Projection'!$N$20:$S$47),8),I20+(OFFSET(J20,0,10-MOD(J$13,10))-OFFSET(J20,0,-MOD(J$13,10)))/10)","v":0},{"$f":"IF(MOD(K$13,10)=0,HLOOKUP(K$13,IF(baseline_selection=1,'1. Baseline Demand Projection'!$E$20:$J$47,'1. Baseline Demand Projection'!$N$20:$S$47),8),J20+(OFFSET(K20,0,10-MOD(K$13,10))-OFFSET(K20,0,-MOD(K$13,10)))/10)","v":0},{"$f":"IF(MOD(L$13,10)=0,HLOOKUP(L$13,IF(baseline_selection=1,'1. Baseline Demand Projection'!$E$20:$J$47,'1. Baseline Demand Projection'!$N$20:$S$47),8),K20+(OFFSET(L20,0,10-MOD(L$13,10))-OFFSET(L20,0,-MOD(L$13,10)))/10)","v":0},{"$f":"IF(MOD(M$13,10)=0,HLOOKUP(M$13,IF(baseline_selection=1,'1. Baseline Demand Projection'!$E$20:$J$47,'1. Baseline Demand Projection'!$N$20:$S$47),8),L20+(OFFSET(M20,0,10-MOD(M$13,10))-OFFSET(M20,0,-MOD(M$13,10)))/10)","v":0},{"$f":"IF(MOD(N$13,10)=0,HLOOKUP(N$13,IF(baseline_selection=1,'1. Baseline Demand Projection'!$E$20:$J$47,'1. Baseline Demand Projection'!$N$20:$S$47),8),M20+(OFFSET(N20,0,10-MOD(N$13,10))-OFFSET(N20,0,-MOD(N$13,10)))/10)","v":0},{"$f":"IF(MOD(O$13,10)=0,HLOOKUP(O$13,IF(baseline_selection=1,'1. Baseline Demand Projection'!$E$20:$J$47,'1. Baseline Demand Projection'!$N$20:$S$47),8),N20+(OFFSET(O20,0,10-MOD(O$13,10))-OFFSET(O20,0,-MOD(O$13,10)))/10)","v":0},{"$f":"IF(MOD(P$13,10)=0,HLOOKUP(P$13,IF(baseline_selection=1,'1. Baseline Demand Projection'!$E$20:$J$47,'1. Baseline Demand Projection'!$N$20:$S$47),8),O20+(OFFSET(P20,0,10-MOD(P$13,10))-OFFSET(P20,0,-MOD(P$13,10)))/10)","v":0},{"$f":"IF(MOD(Q$13,10)=0,HLOOKUP(Q$13,IF(baseline_selection=1,'1. Baseline Demand Projection'!$E$20:$J$47,'1. Baseline Demand Projection'!$N$20:$S$47),8),P20+(OFFSET(Q20,0,10-MOD(Q$13,10))-OFFSET(Q20,0,-MOD(Q$13,10)))/10)","v":0},{"$f":"IF(MOD(R$13,10)=0,HLOOKUP(R$13,IF(baseline_selection=1,'1. Baseline Demand Projection'!$E$20:$J$47,'1. Baseline Demand Projection'!$N$20:$S$47),8),Q20+(OFFSET(R20,0,10-MOD(R$13,10))-OFFSET(R20,0,-MOD(R$13,10)))/10)","v":0},{"$f":"IF(MOD(S$13,10)=0,HLOOKUP(S$13,IF(baseline_selection=1,'1. Baseline Demand Projection'!$E$20:$J$47,'1. Baseline Demand Projection'!$N$20:$S$47),8),R20+(OFFSET(S20,0,10-MOD(S$13,10))-OFFSET(S20,0,-MOD(S$13,10)))/10)","v":0},{"$f":"IF(MOD(T$13,10)=0,HLOOKUP(T$13,IF(baseline_selection=1,'1. Baseline Demand Projection'!$E$20:$J$47,'1. Baseline Demand Projection'!$N$20:$S$47),8),S20+(OFFSET(T20,0,10-MOD(T$13,10))-OFFSET(T20,0,-MOD(T$13,10)))/10)","v":0},{"$f":"IF(MOD(U$13,10)=0,HLOOKUP(U$13,IF(baseline_selection=1,'1. Baseline Demand Projection'!$E$20:$J$47,'1. Baseline Demand Projection'!$N$20:$S$47),8),T20+(OFFSET(U20,0,10-MOD(U$13,10))-OFFSET(U20,0,-MOD(U$13,10)))/10)","v":0},{"$f":"IF(MOD(V$13,10)=0,HLOOKUP(V$13,IF(baseline_selection=1,'1. Baseline Demand Projection'!$E$20:$J$47,'1. Baseline Demand Projection'!$N$20:$S$47),8),U20+(OFFSET(V20,0,10-MOD(V$13,10))-OFFSET(V20,0,-MOD(V$13,10)))/10)","v":0},{"$f":"IF(MOD(W$13,10)=0,HLOOKUP(W$13,IF(baseline_selection=1,'1. Baseline Demand Projection'!$E$20:$J$47,'1. Baseline Demand Projection'!$N$20:$S$47),8),V20+(OFFSET(W20,0,10-MOD(W$13,10))-OFFSET(W20,0,-MOD(W$13,10)))/10)","v":0},{"$f":"IF(MOD(X$13,10)=0,HLOOKUP(X$13,IF(baseline_selection=1,'1. Baseline Demand Projection'!$E$20:$J$47,'1. Baseline Demand Projection'!$N$20:$S$47),8),W20+(OFFSET(X20,0,10-MOD(X$13,10))-OFFSET(X20,0,-MOD(X$13,10)))/10)","v":0},{"$f":"IF(MOD(Y$13,10)=0,HLOOKUP(Y$13,IF(baseline_selection=1,'1. Baseline Demand Projection'!$E$20:$J$47,'1. Baseline Demand Projection'!$N$20:$S$47),8),X20+(OFFSET(Y20,0,10-MOD(Y$13,10))-OFFSET(Y20,0,-MOD(Y$13,10)))/10)","v":0},{"$f":"IF(MOD(Z$13,10)=0,HLOOKUP(Z$13,IF(baseline_selection=1,'1. Baseline Demand Projection'!$E$20:$J$47,'1. Baseline Demand Projection'!$N$20:$S$47),8),Y20+(OFFSET(Z20,0,10-MOD(Z$13,10))-OFFSET(Z20,0,-MOD(Z$13,10)))/10)","v":0},{"$f":"IF(MOD(AA$13,10)=0,HLOOKUP(AA$13,IF(baseline_selection=1,'1. Baseline Demand Projection'!$E$20:$J$47,'1. Baseline Demand Projection'!$N$20:$S$47),8),Z20+(OFFSET(AA20,0,10-MOD(AA$13,10))-OFFSET(AA20,0,-MOD(AA$13,10)))/10)","v":0},{"$f":"IF(MOD(AB$13,10)=0,HLOOKUP(AB$13,IF(baseline_selection=1,'1. Baseline Demand Projection'!$E$20:$J$47,'1. Baseline Demand Projection'!$N$20:$S$47),8),AA20+(OFFSET(AB20,0,10-MOD(AB$13,10))-OFFSET(AB20,0,-MOD(AB$13,10)))/10)","v":0},{"$f":"IF(MOD(AC$13,10)=0,HLOOKUP(AC$13,IF(baseline_selection=1,'1. Baseline Demand Projection'!$E$20:$J$47,'1. Baseline Demand Projection'!$N$20:$S$47),8),AB20+(OFFSET(AC20,0,10-MOD(AC$13,10))-OFFSET(AC20,0,-MOD(AC$13,10)))/10)","v":0},{"$f":"IF(MOD(AD$13,10)=0,HLOOKUP(AD$13,IF(baseline_selection=1,'1. Baseline Demand Projection'!$E$20:$J$47,'1. Baseline Demand Projection'!$N$20:$S$47),8),AC20+(OFFSET(AD20,0,10-MOD(AD$13,10))-OFFSET(AD20,0,-MOD(AD$13,10)))/10)","v":0},{"$f":"IF(MOD(AE$13,10)=0,HLOOKUP(AE$13,IF(baseline_selection=1,'1. Baseline Demand Projection'!$E$20:$J$47,'1. Baseline Demand Projection'!$N$20:$S$47),8),AD20+(OFFSET(AE20,0,10-MOD(AE$13,10))-OFFSET(AE20,0,-MOD(AE$13,10)))/10)","v":0},{"$f":"IF(MOD(AF$13,10)=0,HLOOKUP(AF$13,IF(baseline_selection=1,'1. Baseline Demand Projection'!$E$20:$J$47,'1. Baseline Demand Projection'!$N$20:$S$47),8),AE20+(OFFSET(AF20,0,10-MOD(AF$13,10))-OFFSET(AF20,0,-MOD(AF$13,10)))/10)","v":0},{"$f":"IF(MOD(AG$13,10)=0,HLOOKUP(AG$13,IF(baseline_selection=1,'1. Baseline Demand Projection'!$E$20:$J$47,'1. Baseline Demand Projection'!$N$20:$S$47),8),AF20+(OFFSET(AG20,0,10-MOD(AG$13,10))-OFFSET(AG20,0,-MOD(AG$13,10)))/10)","v":0},{"$f":"IF(MOD(AH$13,10)=0,HLOOKUP(AH$13,IF(baseline_selection=1,'1. Baseline Demand Projection'!$E$20:$J$47,'1. Baseline Demand Projection'!$N$20:$S$47),8),AG20+(OFFSET(AH20,0,10-MOD(AH$13,10))-OFFSET(AH20,0,-MOD(AH$13,10)))/10)","v":0},{"$f":"IF(MOD(AI$13,10)=0,HLOOKUP(AI$13,IF(baseline_selection=1,'1. Baseline Demand Projection'!$E$20:$J$47,'1. Baseline Demand Projection'!$N$20:$S$47),8),AH20+(OFFSET(AI20,0,10-MOD(AI$13,10))-OFFSET(AI20,0,-MOD(AI$13,10)))/10)","v":0},{"$f":"IF(MOD(AJ$13,10)=0,HLOOKUP(AJ$13,IF(baseline_selection=1,'1. Baseline Demand Projection'!$E$20:$J$47,'1. Baseline Demand Projection'!$N$20:$S$47),8),AI20+(OFFSET(AJ20,0,10-MOD(AJ$13,10))-OFFSET(AJ20,0,-MOD(AJ$13,10)))/10)","v":0},{"$f":"IF(MOD(AK$13,10)=0,HLOOKUP(AK$13,IF(baseline_selection=1,'1. Baseline Demand Projection'!$E$20:$J$47,'1. Baseline Demand Projection'!$N$20:$S$47),8),AJ20+(OFFSET(AK20,0,10-MOD(AK$13,10))-OFFSET(AK20,0,-MOD(AK$13,10)))/10)","v":0},{"$f":"IF(MOD(AL$13,10)=0,HLOOKUP(AL$13,IF(baseline_selection=1,'1. Baseline Demand Projection'!$E$20:$J$47,'1. Baseline Demand Projection'!$N$20:$S$47),8),AK20+(OFFSET(AL20,0,10-MOD(AL$13,10))-OFFSET(AL20,0,-MOD(AL$13,10)))/10)","v":0},{"$f":"IF(MOD(AM$13,10)=0,HLOOKUP(AM$13,IF(baseline_selection=1,'1. Baseline Demand Projection'!$E$20:$J$47,'1. Baseline Demand Projection'!$N$20:$S$47),8),AL20+(OFFSET(AM20,0,10-MOD(AM$13,10))-OFFSET(AM20,0,-MOD(AM$13,10)))/10)","v":0},{"$f":"IF(MOD(AN$13,10)=0,HLOOKUP(AN$13,IF(baseline_selection=1,'1. Baseline Demand Projection'!$E$20:$J$47,'1. Baseline Demand Projection'!$N$20:$S$47),8),AM20+(OFFSET(AN20,0,10-MOD(AN$13,10))-OFFSET(AN20,0,-MOD(AN$13,10)))/10)","v":0},{"$f":"IF(MOD(AO$13,10)=0,HLOOKUP(AO$13,IF(baseline_selection=1,'1. Baseline Demand Projection'!$E$20:$J$47,'1. Baseline Demand Projection'!$N$20:$S$47),8),AN20+(OFFSET(AO20,0,10-MOD(AO$13,10))-OFFSET(AO20,0,-MOD(AO$13,10)))/10)","v":0},{"$f":"IF(MOD(AP$13,10)=0,HLOOKUP(AP$13,IF(baseline_selection=1,'1. Baseline Demand Projection'!$E$20:$J$47,'1. Baseline Demand Projection'!$N$20:$S$47),8),AO20+(OFFSET(AP20,0,10-MOD(AP$13,10))-OFFSET(AP20,0,-MOD(AP$13,10)))/10)","v":0},{"$f":"IF(MOD(AQ$13,10)=0,HLOOKUP(AQ$13,IF(baseline_selection=1,'1. Baseline Demand Projection'!$E$20:$J$47,'1. Baseline Demand Projection'!$N$20:$S$47),8),AP20+(OFFSET(AQ20,0,10-MOD(AQ$13,10))-OFFSET(AQ20,0,-MOD(AQ$13,10)))/10)","v":0},{"$f":"IF(MOD(AR$13,10)=0,HLOOKUP(AR$13,IF(baseline_selection=1,'1. Baseline Demand Projection'!$E$20:$J$47,'1. Baseline Demand Projection'!$N$20:$S$47),8),AQ20+(OFFSET(AR20,0,10-MOD(AR$13,10))-OFFSET(AR20,0,-MOD(AR$13,10)))/10)","v":0},{"$f":"IF(MOD(AS$13,10)=0,HLOOKUP(AS$13,IF(baseline_selection=1,'1. Baseline Demand Projection'!$E$20:$J$47,'1. Baseline Demand Projection'!$N$20:$S$47),8),AR20+(OFFSET(AS20,0,10-MOD(AS$13,10))-OFFSET(AS20,0,-MOD(AS$13,10)))/10)","v":0},{"$f":"IF(MOD(AT$13,10)=0,HLOOKUP(AT$13,IF(baseline_selection=1,'1. Baseline Demand Projection'!$E$20:$J$47,'1. Baseline Demand Projection'!$N$20:$S$47),8),AS20+(OFFSET(AT20,0,10-MOD(AT$13,10))-OFFSET(AT20,0,-MOD(AT$13,10)))/10)","v":0},{"$f":"IF(MOD(AU$13,10)=0,HLOOKUP(AU$13,IF(baseline_selection=1,'1. Baseline Demand Projection'!$E$20:$J$47,'1. Baseline Demand Projection'!$N$20:$S$47),8),AT20+(OFFSET(AU20,0,10-MOD(AU$13,10))-OFFSET(AU20,0,-MOD(AU$13,10)))/10)","v":0},{"$f":"IF(MOD(AV$13,10)=0,HLOOKUP(AV$13,IF(baseline_selection=1,'1. Baseline Demand Projection'!$E$20:$J$47,'1. Baseline Demand Projection'!$N$20:$S$47),8),AU20+(OFFSET(AV20,0,10-MOD(AV$13,10))-OFFSET(AV20,0,-MOD(AV$13,10)))/10)","v":0},{"$f":"IF(MOD(AW$13,10)=0,HLOOKUP(AW$13,IF(baseline_selection=1,'1. Baseline Demand Projection'!$E$20:$J$47,'1. Baseline Demand Projection'!$N$20:$S$47),8),AV20+(OFFSET(AW20,0,10-MOD(AW$13,10))-OFFSET(AW20,0,-MOD(AW$13,10)))/10)","v":0},{"$f":"IF(MOD(AX$13,10)=0,HLOOKUP(AX$13,IF(baseline_selection=1,'1. Baseline Demand Projection'!$E$20:$J$47,'1. Baseline Demand Projection'!$N$20:$S$47),8),AW20+(OFFSET(AX20,0,10-MOD(AX$13,10))-OFFSET(AX20,0,-MOD(AX$13,10)))/10)","v":0},{"$f":"IF(MOD(AY$13,10)=0,HLOOKUP(AY$13,IF(baseline_selection=1,'1. Baseline Demand Projection'!$E$20:$J$47,'1. Baseline Demand Projection'!$N$20:$S$47),8),AX20+(OFFSET(AY20,0,10-MOD(AY$13,10))-OFFSET(AY20,0,-MOD(AY$13,10)))/10)","v":0},{"$f":"IF(MOD(AZ$13,10)=0,HLOOKUP(AZ$13,IF(baseline_selection=1,'1. Baseline Demand Projection'!$E$20:$J$47,'1. Baseline Demand Projection'!$N$20:$S$47),8),AY20+(OFFSET(AZ20,0,10-MOD(AZ$13,10))-OFFSET(AZ20,0,-MOD(AZ$13,10)))/10)","v":0},{"$f":"IF(MOD(BA$13,10)=0,HLOOKUP(BA$13,IF(baseline_selection=1,'1. Baseline Demand Projection'!$E$20:$J$47,'1. Baseline Demand Projection'!$N$20:$S$47),8),AZ20+(OFFSET(BA20,0,10-MOD(BA$13,10))-OFFSET(BA20,0,-MOD(BA$13,10)))/10)","v":0},{"$f":"IF(C20>0,(BA20/C20)^(1/50)-1,0)","v":0}]
[null,{"$f":"'1. Baseline Demand Projection'!B28","v":"ICI"},{"$f":"IF(MOD(C$13,10)=0,HLOOKUP(C$13,IF(baseline_selection=1,'1. Baseline Demand Projection'!$E$20:$J$47,'1. Baseline Demand Projection'!$N$20:$S$47),9),B21+(OFFSET(C21,0,10-MOD(C$13,10))-OFFSET(C21,0,-MOD(C$13,10)))/10)","v":0},{"$f":"IF(MOD(D$13,10)=0,HLOOKUP(D$13,'1. Baseline Demand Projection'!#REF!,9),C21+(OFFSET(D21,0,10-MOD(D$13,10))-OFFSET(D21,0,-MOD(D$13,10)))/10)","v":0},{"$f":"IF(MOD(E$13,10)=0,HLOOKUP(E$13,'1. Baseline Demand Projection'!#REF!,9),D21+(OFFSET(E21,0,10-MOD(E$13,10))-OFFSET(E21,0,-MOD(E$13,10)))/10)","v":0},{"$f":"IF(MOD(F$13,10)=0,HLOOKUP(F$13,'1. Baseline Demand Projection'!#REF!,9),E21+(OFFSET(F21,0,10-MOD(F$13,10))-OFFSET(F21,0,-MOD(F$13,10)))/10)","v":0},{"$f":"IF(MOD(G$13,10)=0,HLOOKUP(G$13,IF(baseline_selection=1,'1. Baseline Demand Projection'!$E$20:$J$47,'1. Baseline Demand Projection'!$N$20:$S$47),9),F21+(OFFSET(G21,0,10-MOD(G$13,10))-OFFSET(G21,0,-MOD(G$13,10)))/10)","v":0},{"$f":"IF(MOD(H$13,10)=0,HLOOKUP(H$13,IF(baseline_selection=1,'1. Baseline Demand Projection'!$E$20:$J$47,'1. Baseline Demand Projection'!$N$20:$S$47),9),G21+(OFFSET(H21,0,10-MOD(H$13,10))-OFFSET(H21,0,-MOD(H$13,10)))/10)","v":0},{"$f":"IF(MOD(I$13,10)=0,HLOOKUP(I$13,IF(baseline_selection=1,'1. Baseline Demand Projection'!$E$20:$J$47,'1. Baseline Demand Projection'!$N$20:$S$47),9),H21+(OFFSET(I21,0,10-MOD(I$13,10))-OFFSET(I21,0,-MOD(I$13,10)))/10)","v":0},{"$f":"IF(MOD(J$13,10)=0,HLOOKUP(J$13,IF(baseline_selection=1,'1. Baseline Demand Projection'!$E$20:$J$47,'1. Baseline Demand Projection'!$N$20:$S$47),9),I21+(OFFSET(J21,0,10-MOD(J$13,10))-OFFSET(J21,0,-MOD(J$13,10)))/10)","v":0},{"$f":"IF(MOD(K$13,10)=0,HLOOKUP(K$13,IF(baseline_selection=1,'1. Baseline Demand Projection'!$E$20:$J$47,'1. Baseline Demand Projection'!$N$20:$S$47),9),J21+(OFFSET(K21,0,10-MOD(K$13,10))-OFFSET(K21,0,-MOD(K$13,10)))/10)","v":0},{"$f":"IF(MOD(L$13,10)=0,HLOOKUP(L$13,IF(baseline_selection=1,'1. Baseline Demand Projection'!$E$20:$J$47,'1. Baseline Demand Projection'!$N$20:$S$47),9),K21+(OFFSET(L21,0,10-MOD(L$13,10))-OFFSET(L21,0,-MOD(L$13,10)))/10)","v":0},{"$f":"IF(MOD(M$13,10)=0,HLOOKUP(M$13,IF(baseline_selection=1,'1. Baseline Demand Projection'!$E$20:$J$47,'1. Baseline Demand Projection'!$N$20:$S$47),9),L21+(OFFSET(M21,0,10-MOD(M$13,10))-OFFSET(M21,0,-MOD(M$13,10)))/10)","v":0},{"$f":"IF(MOD(N$13,10)=0,HLOOKUP(N$13,IF(baseline_selection=1,'1. Baseline Demand Projection'!$E$20:$J$47,'1. Baseline Demand Projection'!$N$20:$S$47),9),M21+(OFFSET(N21,0,10-MOD(N$13,10))-OFFSET(N21,0,-MOD(N$13,10)))/10)","v":0},{"$f":"IF(MOD(O$13,10)=0,HLOOKUP(O$13,IF(baseline_selection=1,'1. Baseline Demand Projection'!$E$20:$J$47,'1. Baseline Demand Projection'!$N$20:$S$47),9),N21+(OFFSET(O21,0,10-MOD(O$13,10))-OFFSET(O21,0,-MOD(O$13,10)))/10)","v":0},{"$f":"IF(MOD(P$13,10)=0,HLOOKUP(P$13,IF(baseline_selection=1,'1. Baseline Demand Projection'!$E$20:$J$47,'1. Baseline Demand Projection'!$N$20:$S$47),9),O21+(OFFSET(P21,0,10-MOD(P$13,10))-OFFSET(P21,0,-MOD(P$13,10)))/10)","v":0},{"$f":"IF(MOD(Q$13,10)=0,HLOOKUP(Q$13,IF(baseline_selection=1,'1. Baseline Demand Projection'!$E$20:$J$47,'1. Baseline Demand Projection'!$N$20:$S$47),9),P21+(OFFSET(Q21,0,10-MOD(Q$13,10))-OFFSET(Q21,0,-MOD(Q$13,10)))/10)","v":0},{"$f":"IF(MOD(R$13,10)=0,HLOOKUP(R$13,IF(baseline_selection=1,'1. Baseline Demand Projection'!$E$20:$J$47,'1. Baseline Demand Projection'!$N$20:$S$47),9),Q21+(OFFSET(R21,0,10-MOD(R$13,10))-OFFSET(R21,0,-MOD(R$13,10)))/10)","v":0},{"$f":"IF(MOD(S$13,10)=0,HLOOKUP(S$13,IF(baseline_selection=1,'1. Baseline Demand Projection'!$E$20:$J$47,'1. Baseline Demand Projection'!$N$20:$S$47),9),R21+(OFFSET(S21,0,10-MOD(S$13,10))-OFFSET(S21,0,-MOD(S$13,10)))/10)","v":0},{"$f":"IF(MOD(T$13,10)=0,HLOOKUP(T$13,IF(baseline_selection=1,'1. Baseline Demand Projection'!$E$20:$J$47,'1. Baseline Demand Projection'!$N$20:$S$47),9),S21+(OFFSET(T21,0,10-MOD(T$13,10))-OFFSET(T21,0,-MOD(T$13,10)))/10)","v":0},{"$f":"IF(MOD(U$13,10)=0,HLOOKUP(U$13,IF(baseline_selection=1,'1. Baseline Demand Projection'!$E$20:$J$47,'1. Baseline Demand Projection'!$N$20:$S$47),9),T21+(OFFSET(U21,0,10-MOD(U$13,10))-OFFSET(U21,0,-MOD(U$13,10)))/10)","v":0},{"$f":"IF(MOD(V$13,10)=0,HLOOKUP(V$13,IF(baseline_selection=1,'1. Baseline Demand Projection'!$E$20:$J$47,'1. Baseline Demand Projection'!$N$20:$S$47),9),U21+(OFFSET(V21,0,10-MOD(V$13,10))-OFFSET(V21,0,-MOD(V$13,10)))/10)","v":0},{"$f":"IF(MOD(W$13,10)=0,HLOOKUP(W$13,IF(baseline_selection=1,'1. Baseline Demand Projection'!$E$20:$J$47,'1. Baseline Demand Projection'!$N$20:$S$47),9),V21+(OFFSET(W21,0,10-MOD(W$13,10))-OFFSET(W21,0,-MOD(W$13,10)))/10)","v":0},{"$f":"IF(MOD(X$13,10)=0,HLOOKUP(X$13,IF(baseline_selection=1,'1. Baseline Demand Projection'!$E$20:$J$47,'1. Baseline Demand Projection'!$N$20:$S$47),9),W21+(OFFSET(X21,0,10-MOD(X$13,10))-OFFSET(X21,0,-MOD(X$13,10)))/10)","v":0},{"$f":"IF(MOD(Y$13,10)=0,HLOOKUP(Y$13,IF(baseline_selection=1,'1. Baseline Demand Projection'!$E$20:$J$47,'1. Baseline Demand Projection'!$N$20:$S$47),9),X21+(OFFSET(Y21,0,10-MOD(Y$13,10))-OFFSET(Y21,0,-MOD(Y$13,10)))/10)","v":0},{"$f":"IF(MOD(Z$13,10)=0,HLOOKUP(Z$13,IF(baseline_selection=1,'1. Baseline Demand Projection'!$E$20:$J$47,'1. Baseline Demand Projection'!$N$20:$S$47),9),Y21+(OFFSET(Z21,0,10-MOD(Z$13,10))-OFFSET(Z21,0,-MOD(Z$13,10)))/10)","v":0},{"$f":"IF(MOD(AA$13,10)=0,HLOOKUP(AA$13,IF(baseline_selection=1,'1. Baseline Demand Projection'!$E$20:$J$47,'1. Baseline Demand Projection'!$N$20:$S$47),9),Z21+(OFFSET(AA21,0,10-MOD(AA$13,10))-OFFSET(AA21,0,-MOD(AA$13,10)))/10)","v":0},{"$f":"IF(MOD(AB$13,10)=0,HLOOKUP(AB$13,IF(baseline_selection=1,'1. Baseline Demand Projection'!$E$20:$J$47,'1. Baseline Demand Projection'!$N$20:$S$47),9),AA21+(OFFSET(AB21,0,10-MOD(AB$13,10))-OFFSET(AB21,0,-MOD(AB$13,10)))/10)","v":0},{"$f":"IF(MOD(AC$13,10)=0,HLOOKUP(AC$13,IF(baseline_selection=1,'1. Baseline Demand Projection'!$E$20:$J$47,'1. Baseline Demand Projection'!$N$20:$S$47),9),AB21+(OFFSET(AC21,0,10-MOD(AC$13,10))-OFFSET(AC21,0,-MOD(AC$13,10)))/10)","v":0},{"$f":"IF(MOD(AD$13,10)=0,HLOOKUP(AD$13,IF(baseline_selection=1,'1. Baseline Demand Projection'!$E$20:$J$47,'1. Baseline Demand Projection'!$N$20:$S$47),9),AC21+(OFFSET(AD21,0,10-MOD(AD$13,10))-OFFSET(AD21,0,-MOD(AD$13,10)))/10)","v":0},{"$f":"IF(MOD(AE$13,10)=0,HLOOKUP(AE$13,IF(baseline_selection=1,'1. Baseline Demand Projection'!$E$20:$J$47,'1. Baseline Demand Projection'!$N$20:$S$47),9),AD21+(OFFSET(AE21,0,10-MOD(AE$13,10))-OFFSET(AE21,0,-MOD(AE$13,10)))/10)","v":0},{"$f":"IF(MOD(AF$13,10)=0,HLOOKUP(AF$13,IF(baseline_selection=1,'1. Baseline Demand Projection'!$E$20:$J$47,'1. Baseline Demand Projection'!$N$20:$S$47),9),AE21+(OFFSET(AF21,0,10-MOD(AF$13,10))-OFFSET(AF21,0,-MOD(AF$13,10)))/10)","v":0},{"$f":"IF(MOD(AG$13,10)=0,HLOOKUP(AG$13,IF(baseline_selection=1,'1. Baseline Demand Projection'!$E$20:$J$47,'1. Baseline Demand Projection'!$N$20:$S$47),9),AF21+(OFFSET(AG21,0,10-MOD(AG$13,10))-OFFSET(AG21,0,-MOD(AG$13,10)))/10)","v":0},{"$f":"IF(MOD(AH$13,10)=0,HLOOKUP(AH$13,IF(baseline_selection=1,'1. Baseline Demand Projection'!$E$20:$J$47,'1. Baseline Demand Projection'!$N$20:$S$47),9),AG21+(OFFSET(AH21,0,10-MOD(AH$13,10))-OFFSET(AH21,0,-MOD(AH$13,10)))/10)","v":0},{"$f":"IF(MOD(AI$13,10)=0,HLOOKUP(AI$13,IF(baseline_selection=1,'1. Baseline Demand Projection'!$E$20:$J$47,'1. Baseline Demand Projection'!$N$20:$S$47),9),AH21+(OFFSET(AI21,0,10-MOD(AI$13,10))-OFFSET(AI21,0,-MOD(AI$13,10)))/10)","v":0},{"$f":"IF(MOD(AJ$13,10)=0,HLOOKUP(AJ$13,IF(baseline_selection=1,'1. Baseline Demand Projection'!$E$20:$J$47,'1. Baseline Demand Projection'!$N$20:$S$47),9),AI21+(OFFSET(AJ21,0,10-MOD(AJ$13,10))-OFFSET(AJ21,0,-MOD(AJ$13,10)))/10)","v":0},{"$f":"IF(MOD(AK$13,10)=0,HLOOKUP(AK$13,IF(baseline_selection=1,'1. Baseline Demand Projection'!$E$20:$J$47,'1. Baseline Demand Projection'!$N$20:$S$47),9),AJ21+(OFFSET(AK21,0,10-MOD(AK$13,10))-OFFSET(AK21,0,-MOD(AK$13,10)))/10)","v":0},{"$f":"IF(MOD(AL$13,10)=0,HLOOKUP(AL$13,IF(baseline_selection=1,'1. Baseline Demand Projection'!$E$20:$J$47,'1. Baseline Demand Projection'!$N$20:$S$47),9),AK21+(OFFSET(AL21,0,10-MOD(AL$13,10))-OFFSET(AL21,0,-MOD(AL$13,10)))/10)","v":0},{"$f":"IF(MOD(AM$13,10)=0,HLOOKUP(AM$13,IF(baseline_selection=1,'1. Baseline Demand Projection'!$E$20:$J$47,'1. Baseline Demand Projection'!$N$20:$S$47),9),AL21+(OFFSET(AM21,0,10-MOD(AM$13,10))-OFFSET(AM21,0,-MOD(AM$13,10)))/10)","v":0},{"$f":"IF(MOD(AN$13,10)=0,HLOOKUP(AN$13,IF(baseline_selection=1,'1. Baseline Demand Projection'!$E$20:$J$47,'1. Baseline Demand Projection'!$N$20:$S$47),9),AM21+(OFFSET(AN21,0,10-MOD(AN$13,10))-OFFSET(AN21,0,-MOD(AN$13,10)))/10)","v":0},{"$f":"IF(MOD(AO$13,10)=0,HLOOKUP(AO$13,IF(baseline_selection=1,'1. Baseline Demand Projection'!$E$20:$J$47,'1. Baseline Demand Projection'!$N$20:$S$47),9),AN21+(OFFSET(AO21,0,10-MOD(AO$13,10))-OFFSET(AO21,0,-MOD(AO$13,10)))/10)","v":0},{"$f":"IF(MOD(AP$13,10)=0,HLOOKUP(AP$13,IF(baseline_selection=1,'1. Baseline Demand Projection'!$E$20:$J$47,'1. Baseline Demand Projection'!$N$20:$S$47),9),AO21+(OFFSET(AP21,0,10-MOD(AP$13,10))-OFFSET(AP21,0,-MOD(AP$13,10)))/10)","v":0},{"$f":"IF(MOD(AQ$13,10)=0,HLOOKUP(AQ$13,IF(baseline_selection=1,'1. Baseline Demand Projection'!$E$20:$J$47,'1. Baseline Demand Projection'!$N$20:$S$47),9),AP21+(OFFSET(AQ21,0,10-MOD(AQ$13,10))-OFFSET(AQ21,0,-MOD(AQ$13,10)))/10)","v":0},{"$f":"IF(MOD(AR$13,10)=0,HLOOKUP(AR$13,IF(baseline_selection=1,'1. Baseline Demand Projection'!$E$20:$J$47,'1. Baseline Demand Projection'!$N$20:$S$47),9),AQ21+(OFFSET(AR21,0,10-MOD(AR$13,10))-OFFSET(AR21,0,-MOD(AR$13,10)))/10)","v":0},{"$f":"IF(MOD(AS$13,10)=0,HLOOKUP(AS$13,IF(baseline_selection=1,'1. Baseline Demand Projection'!$E$20:$J$47,'1. Baseline Demand Projection'!$N$20:$S$47),9),AR21+(OFFSET(AS21,0,10-MOD(AS$13,10))-OFFSET(AS21,0,-MOD(AS$13,10)))/10)","v":0},{"$f":"IF(MOD(AT$13,10)=0,HLOOKUP(AT$13,IF(baseline_selection=1,'1. Baseline Demand Projection'!$E$20:$J$47,'1. Baseline Demand Projection'!$N$20:$S$47),9),AS21+(OFFSET(AT21,0,10-MOD(AT$13,10))-OFFSET(AT21,0,-MOD(AT$13,10)))/10)","v":0},{"$f":"IF(MOD(AU$13,10)=0,HLOOKUP(AU$13,IF(baseline_selection=1,'1. Baseline Demand Projection'!$E$20:$J$47,'1. Baseline Demand Projection'!$N$20:$S$47),9),AT21+(OFFSET(AU21,0,10-MOD(AU$13,10))-OFFSET(AU21,0,-MOD(AU$13,10)))/10)","v":0},{"$f":"IF(MOD(AV$13,10)=0,HLOOKUP(AV$13,IF(baseline_selection=1,'1. Baseline Demand Projection'!$E$20:$J$47,'1. Baseline Demand Projection'!$N$20:$S$47),9),AU21+(OFFSET(AV21,0,10-MOD(AV$13,10))-OFFSET(AV21,0,-MOD(AV$13,10)))/10)","v":0},{"$f":"IF(MOD(AW$13,10)=0,HLOOKUP(AW$13,IF(baseline_selection=1,'1. Baseline Demand Projection'!$E$20:$J$47,'1. Baseline Demand Projection'!$N$20:$S$47),9),AV21+(OFFSET(AW21,0,10-MOD(AW$13,10))-OFFSET(AW21,0,-MOD(AW$13,10)))/10)","v":0},{"$f":"IF(MOD(AX$13,10)=0,HLOOKUP(AX$13,IF(baseline_selection=1,'1. Baseline Demand Projection'!$E$20:$J$47,'1. Baseline Demand Projection'!$N$20:$S$47),9),AW21+(OFFSET(AX21,0,10-MOD(AX$13,10))-OFFSET(AX21,0,-MOD(AX$13,10)))/10)","v":0},{"$f":"IF(MOD(AY$13,10)=0,HLOOKUP(AY$13,IF(baseline_selection=1,'1. Baseline Demand Projection'!$E$20:$J$47,'1. Baseline Demand Projection'!$N$20:$S$47),9),AX21+(OFFSET(AY21,0,10-MOD(AY$13,10))-OFFSET(AY21,0,-MOD(AY$13,10)))/10)","v":0},{"$f":"IF(MOD(AZ$13,10)=0,HLOOKUP(AZ$13,IF(baseline_selection=1,'1. Baseline Demand Projection'!$E$20:$J$47,'1. Baseline Demand Projection'!$N$20:$S$47),9),AY21+(OFFSET(AZ21,0,10-MOD(AZ$13,10))-OFFSET(AZ21,0,-MOD(AZ$13,10)))/10)","v":0},{"$f":"IF(MOD(BA$13,10)=0,HLOOKUP(BA$13,IF(baseline_selection=1,'1. Baseline Demand Projection'!$E$20:$J$47,'1. Baseline Demand Projection'!$N$20:$S$47),9),AZ21+(OFFSET(BA21,0,10-MOD(BA$13,10))-OFFSET(BA21,0,-MOD(BA$13,10)))/10)","v":0},0]
[null,{"$f":"'1. Baseline Demand Projection'!B29","v":"Total"},{"$f":"SUM(C19:C21)","v":0},0,0,0,0,0,0,0,0,0,0,0,0,0,0,0,0,0,0,0,0,0,0,0,0,0,0,0,0,0,0,0,{"$f":"SUM(AI19:AI21)","v":0},0,0,0,0,0,0,0,0,0,0,0,0,0,0,0,0,0,0,0]
[]
[null,{"$f":"'1. Baseline Demand Projection'!B32","v":"Baseline Demand"},{"$f":"\"(in \" & volunit_selected & \")\"","v":"(in kGal)"}]
[null,{"$f":"'1. Baseline Demand Projection'!B33","v":"Single Family"},{"$f":"IF(MOD(C$13,10)=0,HLOOKUP(C$13,IF(baseline_selection=1,'1. Baseline Demand Projection'!$E$20:$J$47,'1. Baseline Demand Projection'!$N$20:$S$47),14)*CHOOSE(volunit,1,1000,1000/325851),B25+(OFFSET(C25,0,10-MOD(C$13,10))-OFFSET(C25,0,-MOD(C$13,10)))/10)","v":0},{"$f":"IF(MOD(D$13,10)=0,HLOOKUP(D$13,IF(baseline_selection=1,'1. Baseline Demand Projection'!$E$20:$J$47,'1. Baseline Demand Projection'!$N$20:$S$47),14)*CHOOSE(volunit,1,1000,1000/325851),C25+(OFFSET(D25,0,10-MOD(D$13,10))-OFFSET(D25,0,-MOD(D$13,10)))/10)","v":0},{"$f":"IF(MOD(E$13,10)=0,HLOOKUP(E$13,IF(baseline_selection=1,'1. Baseline Demand Projection'!$E$20:$J$47,'1. Baseline Demand Projection'!$N$20:$S$47),14)*CHOOSE(volunit,1,1000,1000/325851),D25+(OFFSET(E25,0,10-MOD(E$13,10))-OFFSET(E25,0,-MOD(E$13,10)))/10)","v":0},{"$f":"IF(MOD(F$13,10)=0,HLOOKUP(F$13,IF(baseline_selection=1,'1. Baseline Demand Projection'!$E$20:$J$47,'1. Baseline Demand Projection'!$N$20:$S$47),14)*CHOOSE(volunit,1,1000,1000/325851),E25+(OFFSET(F25,0,10-MOD(F$13,10))-OFFSET(F25,0,-MOD(F$13,10)))/10)","v":0},{"$f":"IF(MOD(G$13,10)=0,HLOOKUP(G$13,IF(baseline_selection=1,'1. Baseline Demand Projection'!$E$20:$J$47,'1. Baseline Demand Projection'!$N$20:$S$47),14)*CHOOSE(volunit,1,1000,1000/325851),F25+(OFFSET(G25,0,10-MOD(G$13,10))-OFFSET(G25,0,-MOD(G$13,10)))/10)","v":0},{"$f":"IF(MOD(H$13,10)=0,HLOOKUP(H$13,IF(baseline_selection=1,'1. Baseline Demand Projection'!$E$20:$J$47,'1. Baseline Demand Projection'!$N$20:$S$47),14)*CHOOSE(volunit,1,1000,1000/325851),G25+(OFFSET(H25,0,10-MOD(H$13,10))-OFFSET(H25,0,-MOD(H$13,10)))/10)","v":0},{"$f":"IF(MOD(I$13,10)=0,HLOOKUP(I$13,IF(baseline_selection=1,'1. Baseline Demand Projection'!$E$20:$J$47,'1. Baseline Demand Projection'!$N$20:$S$47),14)*CHOOSE(volunit,1,1000,1000/325851),H25+(OFFSET(I25,0,10-MOD(I$13,10))-OFFSET(I25,0,-MOD(I$13,10)))/10)","v":0},{"$f":"IF(MOD(J$13,10)=0,HLOOKUP(J$13,IF(baseline_selection=1,'1. Baseline Demand Projection'!$E$20:$J$47,'1. Baseline Demand Projection'!$N$20:$S$47),14)*CHOOSE(volunit,1,1000,1000/325851),I25+(OFFSET(J25,0,10-MOD(J$13,10))-OFFSET(J25,0,-MOD(J$13,10)))/10)","v":0},{"$f":"IF(MOD(K$13,10)=0,HLOOKUP(K$13,IF(baseline_selection=1,'1. Baseline Demand Projection'!$E$20:$J$47,'1. Baseline Demand Projection'!$N$20:$S$47),14)*CHOOSE(volunit,1,1000,1000/325851),J25+(OFFSET(K25,0,10-MOD(K$13,10))-OFFSET(K25,0,-MOD(K$13,10)))/10)","v":0},{"$f":"IF(MOD(L$13,10)=0,HLOOKUP(L$13,IF(baseline_selection=1,'1. Baseline Demand Projection'!$E$20:$J$47,'1. Baseline Demand Projection'!$N$20:$S$47),14)*CHOOSE(volunit,1,1000,1000/325851),K25+(OFFSET(L25,0,10-MOD(L$13,10))-OFFSET(L25,0,-MOD(L$13,10)))/10)","v":0},{"$f":"IF(MOD(M$13,10)=0,HLOOKUP(M$13,IF(baseline_selection=1,'1. Baseline Demand Projection'!$E$20:$J$47,'1. Baseline Demand Projection'!$N$20:$S$47),14)*CHOOSE(volunit,1,1000,1000/325851),L25+(OFFSET(M25,0,10-MOD(M$13,10))-OFFSET(M25,0,-MOD(M$13,10)))/10)","v":0},{"$f":"IF(MOD(N$13,10)=0,HLOOKUP(N$13,IF(baseline_selection=1,'1. Baseline Demand Projection'!$E$20:$J$47,'1. Baseline Demand Projection'!$N$20:$S$47),14)*CHOOSE(volunit,1,1000,1000/325851),M25+(OFFSET(N25,0,10-MOD(N$13,10))-OFFSET(N25,0,-MOD(N$13,10)))/10)","v":0},{"$f":"IF(MOD(O$13,10)=0,HLOOKUP(O$13,IF(baseline_selection=1,'1. Baseline Demand Projection'!$E$20:$J$47,'1. Baseline Demand Projection'!$N$20:$S$47),14)*CHOOSE(volunit,1,1000,1000/325851),N25+(OFFSET(O25,0,10-MOD(O$13,10))-OFFSET(O25,0,-MOD(O$13,10)))/10)","v":0},{"$f":"IF(MOD(P$13,10)=0,HLOOKUP(P$13,IF(baseline_selection=1,'1. Baseline Demand Projection'!$E$20:$J$47,'1. Baseline Demand Projection'!$N$20:$S$47),14)*CHOOSE(volunit,1,1000,1000/325851),O25+(OFFSET(P25,0,10-MOD(P$13,10))-OFFSET(P25,0,-MOD(P$13,10)))/10)","v":0},{"$f":"IF(MOD(Q$13,10)=0,HLOOKUP(Q$13,IF(baseline_selection=1,'1. Baseline Demand Projection'!$E$20:$J$47,'1. Baseline Demand Projection'!$N$20:$S$47),14)*CHOOSE(volunit,1,1000,1000/325851),P25+(OFFSET(Q25,0,10-MOD(Q$13,10))-OFFSET(Q25,0,-MOD(Q$13,10)))/10)","v":0},{"$f":"IF(MOD(R$13,10)=0,HLOOKUP(R$13,IF(baseline_selection=1,'1. Baseline Demand Projection'!$E$20:$J$47,'1. Baseline Demand Projection'!$N$20:$S$47),14)*CHOOSE(volunit,1,1000,1000/325851),Q25+(OFFSET(R25,0,10-MOD(R$13,10))-OFFSET(R25,0,-MOD(R$13,10)))/10)","v":0},{"$f":"IF(MOD(S$13,10)=0,HLOOKUP(S$13,IF(baseline_selection=1,'1. Baseline Demand Projection'!$E$20:$J$47,'1. Baseline Demand Projection'!$N$20:$S$47),14)*CHOOSE(volunit,1,1000,1000/325851),R25+(OFFSET(S25,0,10-MOD(S$13,10))-OFFSET(S25,0,-MOD(S$13,10)))/10)","v":0},{"$f":"IF(MOD(T$13,10)=0,HLOOKUP(T$13,IF(baseline_selection=1,'1. Baseline Demand Projection'!$E$20:$J$47,'1. Baseline Demand Projection'!$N$20:$S$47),14)*CHOOSE(volunit,1,1000,1000/325851),S25+(OFFSET(T25,0,10-MOD(T$13,10))-OFFSET(T25,0,-MOD(T$13,10)))/10)","v":0},{"$f":"IF(MOD(U$13,10)=0,HLOOKUP(U$13,IF(baseline_selection=1,'1. Baseline Demand Projection'!$E$20:$J$47,'1. Baseline Demand Projection'!$N$20:$S$47),14)*CHOOSE(volunit,1,1000,1000/325851),T25+(OFFSET(U25,0,10-MOD(U$13,10))-OFFSET(U25,0,-MOD(U$13,10)))/10)","v":0},{"$f":"IF(MOD(V$13,10)=0,HLOOKUP(V$13,IF(baseline_selection=1,'1. Baseline Demand Projection'!$E$20:$J$47,'1. Baseline Demand Projection'!$N$20:$S$47),14)*CHOOSE(volunit,1,1000,1000/325851),U25+(OFFSET(V25,0,10-MOD(V$13,10))-OFFSET(V25,0,-MOD(V$13,10)))/10)","v":0},{"$f":"IF(MOD(W$13,10)=0,HLOOKUP(W$13,IF(baseline_selection=1,'1. Baseline Demand Projection'!$E$20:$J$47,'1. Baseline Demand Projection'!$N$20:$S$47),14)*CHOOSE(volunit,1,1000,1000/325851),V25+(OFFSET(W25,0,10-MOD(W$13,10))-OFFSET(W25,0,-MOD(W$13,10)))/10)","v":0},{"$f":"IF(MOD(X$13,10)=0,HLOOKUP(X$13,IF(baseline_selection=1,'1. Baseline Demand Projection'!$E$20:$J$47,'1. Baseline Demand Projection'!$N$20:$S$47),14)*CHOOSE(volunit,1,1000,1000/325851),W25+(OFFSET(X25,0,10-MOD(X$13,10))-OFFSET(X25,0,-MOD(X$13,10)))/10)","v":0},{"$f":"IF(MOD(Y$13,10)=0,HLOOKUP(Y$13,IF(baseline_selection=1,'1. Baseline Demand Projection'!$E$20:$J$47,'1. Baseline Demand Projection'!$N$20:$S$47),14)*CHOOSE(volunit,1,1000,1000/325851),X25+(OFFSET(Y25,0,10-MOD(Y$13,10))-OFFSET(Y25,0,-MOD(Y$13,10)))/10)","v":0},{"$f":"IF(MOD(Z$13,10)=0,HLOOKUP(Z$13,IF(baseline_selection=1,'1. Baseline Demand Projection'!$E$20:$J$47,'1. Baseline Demand Projection'!$N$20:$S$47),14)*CHOOSE(volunit,1,1000,1000/325851),Y25+(OFFSET(Z25,0,10-MOD(Z$13,10))-OFFSET(Z25,0,-MOD(Z$13,10)))/10)","v":0},{"$f":"IF(MOD(AA$13,10)=0,HLOOKUP(AA$13,IF(baseline_selection=1,'1. Baseline Demand Projection'!$E$20:$J$47,'1. Baseline Demand Projection'!$N$20:$S$47),14)*CHOOSE(volunit,1,1000,1000/325851),Z25+(OFFSET(AA25,0,10-MOD(AA$13,10))-OFFSET(AA25,0,-MOD(AA$13,10)))/10)","v":0},{"$f":"IF(MOD(AB$13,10)=0,HLOOKUP(AB$13,IF(baseline_selection=1,'1. Baseline Demand Projection'!$E$20:$J$47,'1. Baseline Demand Projection'!$N$20:$S$47),14)*CHOOSE(volunit,1,1000,1000/325851),AA25+(OFFSET(AB25,0,10-MOD(AB$13,10))-OFFSET(AB25,0,-MOD(AB$13,10)))/10)","v":0},{"$f":"IF(MOD(AC$13,10)=0,HLOOKUP(AC$13,IF(baseline_selection=1,'1. Baseline Demand Projection'!$E$20:$J$47,'1. Baseline Demand Projection'!$N$20:$S$47),14)*CHOOSE(volunit,1,1000,1000/325851),AB25+(OFFSET(AC25,0,10-MOD(AC$13,10))-OFFSET(AC25,0,-MOD(AC$13,10)))/10)","v":0},{"$f":"IF(MOD(AD$13,10)=0,HLOOKUP(AD$13,IF(baseline_selection=1,'1. Baseline Demand Projection'!$E$20:$J$47,'1. Baseline Demand Projection'!$N$20:$S$47),14)*CHOOSE(volunit,1,1000,1000/325851),AC25+(OFFSET(AD25,0,10-MOD(AD$13,10))-OFFSET(AD25,0,-MOD(AD$13,10)))/10)","v":0},{"$f":"IF(MOD(AE$13,10)=0,HLOOKUP(AE$13,IF(baseline_selection=1,'1. Baseline Demand Projection'!$E$20:$J$47,'1. Baseline Demand Projection'!$N$20:$S$47),14)*CHOOSE(volunit,1,1000,1000/325851),AD25+(OFFSET(AE25,0,10-MOD(AE$13,10))-OFFSET(AE25,0,-MOD(AE$13,10)))/10)","v":0},{"$f":"IF(MOD(AF$13,10)=0,HLOOKUP(AF$13,IF(baseline_selection=1,'1. Baseline Demand Projection'!$E$20:$J$47,'1. Baseline Demand Projection'!$N$20:$S$47),14)*CHOOSE(volunit,1,1000,1000/325851),AE25+(OFFSET(AF25,0,10-MOD(AF$13,10))-OFFSET(AF25,0,-MOD(AF$13,10)))/10)","v":0},{"$f":"IF(MOD(AG$13,10)=0,HLOOKUP(AG$13,IF(baseline_selection=1,'1. Baseline Demand Projection'!$E$20:$J$47,'1. Baseline Demand Projection'!$N$20:$S$47),14)*CHOOSE(volunit,1,1000,1000/325851),AF25+(OFFSET(AG25,0,10-MOD(AG$13,10))-OFFSET(AG25,0,-MOD(AG$13,10)))/10)","v":0},{"$f":"IF(MOD(AH$13,10)=0,HLOOKUP(AH$13,IF(baseline_selection=1,'1. Baseline Demand Projection'!$E$20:$J$47,'1. Baseline Demand Projection'!$N$20:$S$47),14)*CHOOSE(volunit,1,1000,1000/325851),AG25+(OFFSET(AH25,0,10-MOD(AH$13,10))-OFFSET(AH25,0,-MOD(AH$13,10)))/10)","v":0},{"$f":"IF(MOD(AI$13,10)=0,HLOOKUP(AI$13,IF(baseline_selection=1,'1. Baseline Demand Projection'!$E$20:$J$47,'1. Baseline Demand Projection'!$N$20:$S$47),14)*CHOOSE(volunit,1,1000,1000/325851),AH25+(OFFSET(AI25,0,10-MOD(AI$13,10))-OFFSET(AI25,0,-MOD(AI$13,10)))/10)","v":0},{"$f":"IF(MOD(AJ$13,10)=0,HLOOKUP(AJ$13,IF(baseline_selection=1,'1. Baseline Demand Projection'!$E$20:$J$47,'1. Baseline Demand Projection'!$N$20:$S$47),14)*CHOOSE(volunit,1,1000,1000/325851),AI25+(OFFSET(AJ25,0,10-MOD(AJ$13,10))-OFFSET(AJ25,0,-MOD(AJ$13,10)))/10)","v":0},{"$f":"IF(MOD(AK$13,10)=0,HLOOKUP(AK$13,IF(baseline_selection=1,'1. Baseline Demand Projection'!$E$20:$J$47,'1. Baseline Demand Projection'!$N$20:$S$47),14)*CHOOSE(volunit,1,1000,1000/325851),AJ25+(OFFSET(AK25,0,10-MOD(AK$13,10))-OFFSET(AK25,0,-MOD(AK$13,10)))/10)","v":0},{"$f":"IF(MOD(AL$13,10)=0,HLOOKUP(AL$13,IF(baseline_selection=1,'1. Baseline Demand Projection'!$E$20:$J$47,'1. Baseline Demand Projection'!$N$20:$S$47),14)*CHOOSE(volunit,1,1000,1000/325851),AK25+(OFFSET(AL25,0,10-MOD(AL$13,10))-OFFSET(AL25,0,-MOD(AL$13,10)))/10)","v":0},{"$f":"IF(MOD(AM$13,10)=0,HLOOKUP(AM$13,IF(baseline_selection=1,'1. Baseline Demand Projection'!$E$20:$J$47,'1. Baseline Demand Projection'!$N$20:$S$47),14)*CHOOSE(volunit,1,1000,1000/325851),AL25+(OFFSET(AM25,0,10-MOD(AM$13,10))-OFFSET(AM25,0,-MOD(AM$13,10)))/10)","v":0},{"$f":"IF(MOD(AN$13,10)=0,HLOOKUP(AN$13,IF(baseline_selection=1,'1. Baseline Demand Projection'!$E$20:$J$47,'1. Baseline Demand Projection'!$N$20:$S$47),14)*CHOOSE(volunit,1,1000,1000/325851),AM25+(OFFSET(AN25,0,10-MOD(AN$13,10))-OFFSET(AN25,0,-MOD(AN$13,10)))/10)","v":0},{"$f":"IF(MOD(AO$13,10)=0,HLOOKUP(AO$13,IF(baseline_selection=1,'1. Baseline Demand Projection'!$E$20:$J$47,'1. Baseline Demand Projection'!$N$20:$S$47),14)*CHOOSE(volunit,1,1000,1000/325851),AN25+(OFFSET(AO25,0,10-MOD(AO$13,10))-OFFSET(AO25,0,-MOD(AO$13,10)))/10)","v":0},{"$f":"IF(MOD(AP$13,10)=0,HLOOKUP(AP$13,IF(baseline_selection=1,'1. Baseline Demand Projection'!$E$20:$J$47,'1. Baseline Demand Projection'!$N$20:$S$47),14)*CHOOSE(volunit,1,1000,1000/325851),AO25+(OFFSET(AP25,0,10-MOD(AP$13,10))-OFFSET(AP25,0,-MOD(AP$13,10)))/10)","v":0},{"$f":"IF(MOD(AQ$13,10)=0,HLOOKUP(AQ$13,IF(baseline_selection=1,'1. Baseline Demand Projection'!$E$20:$J$47,'1. Baseline Demand Projection'!$N$20:$S$47),14)*CHOOSE(volunit,1,1000,1000/325851),AP25+(OFFSET(AQ25,0,10-MOD(AQ$13,10))-OFFSET(AQ25,0,-MOD(AQ$13,10)))/10)","v":0},{"$f":"IF(MOD(AR$13,10)=0,HLOOKUP(AR$13,IF(baseline_selection=1,'1. Baseline Demand Projection'!$E$20:$J$47,'1. Baseline Demand Projection'!$N$20:$S$47),14)*CHOOSE(volunit,1,1000,1000/325851),AQ25+(OFFSET(AR25,0,10-MOD(AR$13,10))-OFFSET(AR25,0,-MOD(AR$13,10)))/10)","v":0},{"$f":"IF(MOD(AS$13,10)=0,HLOOKUP(AS$13,IF(baseline_selection=1,'1. Baseline Demand Projection'!$E$20:$J$47,'1. Baseline Demand Projection'!$N$20:$S$47),14)*CHOOSE(volunit,1,1000,1000/325851),AR25+(OFFSET(AS25,0,10-MOD(AS$13,10))-OFFSET(AS25,0,-MOD(AS$13,10)))/10)","v":0},{"$f":"IF(MOD(AT$13,10)=0,HLOOKUP(AT$13,IF(baseline_selection=1,'1. Baseline Demand Projection'!$E$20:$J$47,'1. Baseline Demand Projection'!$N$20:$S$47),14)*CHOOSE(volunit,1,1000,1000/325851),AS25+(OFFSET(AT25,0,10-MOD(AT$13,10))-OFFSET(AT25,0,-MOD(AT$13,10)))/10)","v":0},{"$f":"IF(MOD(AU$13,10)=0,HLOOKUP(AU$13,IF(baseline_selection=1,'1. Baseline Demand Projection'!$E$20:$J$47,'1. Baseline Demand Projection'!$N$20:$S$47),14)*CHOOSE(volunit,1,1000,1000/325851),AT25+(OFFSET(AU25,0,10-MOD(AU$13,10))-OFFSET(AU25,0,-MOD(AU$13,10)))/10)","v":0},{"$f":"IF(MOD(AV$13,10)=0,HLOOKUP(AV$13,IF(baseline_selection=1,'1. Baseline Demand Projection'!$E$20:$J$47,'1. Baseline Demand Projection'!$N$20:$S$47),14)*CHOOSE(volunit,1,1000,1000/325851),AU25+(OFFSET(AV25,0,10-MOD(AV$13,10))-OFFSET(AV25,0,-MOD(AV$13,10)))/10)","v":0},{"$f":"IF(MOD(AW$13,10)=0,HLOOKUP(AW$13,IF(baseline_selection=1,'1. Baseline Demand Projection'!$E$20:$J$47,'1. Baseline Demand Projection'!$N$20:$S$47),14)*CHOOSE(volunit,1,1000,1000/325851),AV25+(OFFSET(AW25,0,10-MOD(AW$13,10))-OFFSET(AW25,0,-MOD(AW$13,10)))/10)","v":0},{"$f":"IF(MOD(AX$13,10)=0,HLOOKUP(AX$13,IF(baseline_selection=1,'1. Baseline Demand Projection'!$E$20:$J$47,'1. Baseline Demand Projection'!$N$20:$S$47),14)*CHOOSE(volunit,1,1000,1000/325851),AW25+(OFFSET(AX25,0,10-MOD(AX$13,10))-OFFSET(AX25,0,-MOD(AX$13,10)))/10)","v":0},{"$f":"IF(MOD(AY$13,10)=0,HLOOKUP(AY$13,IF(baseline_selection=1,'1. Baseline Demand Projection'!$E$20:$J$47,'1. Baseline Demand Projection'!$N$20:$S$47),14)*CHOOSE(volunit,1,1000,1000/325851),AX25+(OFFSET(AY25,0,10-MOD(AY$13,10))-OFFSET(AY25,0,-MOD(AY$13,10)))/10)","v":0},{"$f":"IF(MOD(AZ$13,10)=0,HLOOKUP(AZ$13,IF(baseline_selection=1,'1. Baseline Demand Projection'!$E$20:$J$47,'1. Baseline Demand Projection'!$N$20:$S$47),14)*CHOOSE(volunit,1,1000,1000/325851),AY25+(OFFSET(AZ25,0,10-MOD(AZ$13,10))-OFFSET(AZ25,0,-MOD(AZ$13,10)))/10)","v":0},{"$f":"IF(MOD(BA$13,10)=0,HLOOKUP(BA$13,IF(baseline_selection=1,'1. Baseline Demand Projection'!$E$20:$J$47,'1. Baseline Demand Projection'!$N$20:$S$47),14)*CHOOSE(volunit,1,1000,1000/325851),AZ25+(OFFSET(BA25,0,10-MOD(BA$13,10))-OFFSET(BA25,0,-MOD(BA$13,10)))/10)","v":0},{"$f":"IF(C25>0,(BA25/C25)^(1/50)-1,0)","v":0}]
[null,{"$f":"'1. Baseline Demand Projection'!B34","v":"Multi Family"},{"$f":"IF(MOD(C$13,10)=0,HLOOKUP(C$13,IF(baseline_selection=1,'1. Baseline Demand Projection'!$E$20:$J$47,'1. Baseline Demand Projection'!$N$20:$S$47),15)*CHOOSE(volunit,1,1000,1000/325851),B26+(OFFSET(C26,0,10-MOD(C$13,10))-OFFSET(C26,0,-MOD(C$13,10)))/10)","v":0},{"$f":"IF(MOD(D$13,10)=0,HLOOKUP(D$13,IF(baseline_selection=1,'1. Baseline Demand Projection'!$E$20:$J$47,'1. Baseline Demand Projection'!$N$20:$S$47),15)*CHOOSE(volunit,1,1000,1000/325851),C26+(OFFSET(D26,0,10-MOD(D$13,10))-OFFSET(D26,0,-MOD(D$13,10)))/10)","v":0},{"$f":"IF(MOD(E$13,10)=0,HLOOKUP(E$13,IF(baseline_selection=1,'1. Baseline Demand Projection'!$E$20:$J$47,'1. Baseline Demand Projection'!$N$20:$S$47),15)*CHOOSE(volunit,1,1000,1000/325851),D26+(OFFSET(E26,0,10-MOD(E$13,10))-OFFSET(E26,0,-MOD(E$13,10)))/10)","v":0},{"$f":"IF(MOD(F$13,10)=0,HLOOKUP(F$13,IF(baseline_selection=1,'1. Baseline Demand Projection'!$E$20:$J$47,'1. Baseline Demand Projection'!$N$20:$S$47),15)*CHOOSE(volunit,1,1000,1000/325851),E26+(OFFSET(F26,0,10-MOD(F$13,10))-OFFSET(F26,0,-MOD(F$13,10)))/10)","v":0},{"$f":"IF(MOD(G$13,10)=0,HLOOKUP(G$13,IF(baseline_selection=1,'1. Baseline Demand Projection'!$E$20:$J$47,'1. Baseline Demand Projection'!$N$20:$S$47),15)*CHOOSE(volunit,1,1000,1000/325851),F26+(OFFSET(G26,0,10-MOD(G$13,10))-OFFSET(G26,0,-MOD(G$13,10)))/10)","v":0},{"$f":"IF(MOD(H$13,10)=0,HLOOKUP(H$13,IF(baseline_selection=1,'1. Baseline Demand Projection'!$E$20:$J$47,'1. Baseline Demand Projection'!$N$20:$S$47),15)*CHOOSE(volunit,1,1000,1000/325851),G26+(OFFSET(H26,0,10-MOD(H$13,10))-OFFSET(H26,0,-MOD(H$13,10)))/10)","v":0},{"$f":"IF(MOD(I$13,10)=0,HLOOKUP(I$13,IF(baseline_selection=1,'1. Baseline Demand Projection'!$E$20:$J$47,'1. Baseline Demand Projection'!$N$20:$S$47),15)*CHOOSE(volunit,1,1000,1000/325851),H26+(OFFSET(I26,0,10-MOD(I$13,10))-OFFSET(I26,0,-MOD(I$13,10)))/10)","v":0},{"$f":"IF(MOD(J$13,10)=0,HLOOKUP(J$13,IF(baseline_selection=1,'1. Baseline Demand Projection'!$E$20:$J$47,'1. Baseline Demand Projection'!$N$20:$S$47),15)*CHOOSE(volunit,1,1000,1000/325851),I26+(OFFSET(J26,0,10-MOD(J$13,10))-OFFSET(J26,0,-MOD(J$13,10)))/10)","v":0},{"$f":"IF(MOD(K$13,10)=0,HLOOKUP(K$13,IF(baseline_selection=1,'1. Baseline Demand Projection'!$E$20:$J$47,'1. Baseline Demand Projection'!$N$20:$S$47),15)*CHOOSE(volunit,1,1000,1000/325851),J26+(OFFSET(K26,0,10-MOD(K$13,10))-OFFSET(K26,0,-MOD(K$13,10)))/10)","v":0},{"$f":"IF(MOD(L$13,10)=0,HLOOKUP(L$13,IF(baseline_selection=1,'1. Baseline Demand Projection'!$E$20:$J$47,'1. Baseline Demand Projection'!$N$20:$S$47),15)*CHOOSE(volunit,1,1000,1000/325851),K26+(OFFSET(L26,0,10-MOD(L$13,10))-OFFSET(L26,0,-MOD(L$13,10)))/10)","v":0},{"$f":"IF(MOD(M$13,10)=0,HLOOKUP(M$13,IF(baseline_selection=1,'1. Baseline Demand Projection'!$E$20:$J$47,'1. Baseline Demand Projection'!$N$20:$S$47),15)*CHOOSE(volunit,1,1000,1000/325851),L26+(OFFSET(M26,0,10-MOD(M$13,10))-OFFSET(M26,0,-MOD(M$13,10)))/10)","v":0},{"$f":"IF(MOD(N$13,10)=0,HLOOKUP(N$13,IF(baseline_selection=1,'1. Baseline Demand Projection'!$E$20:$J$47,'1. Baseline Demand Projection'!$N$20:$S$47),15)*CHOOSE(volunit,1,1000,1000/325851),M26+(OFFSET(N26,0,10-MOD(N$13,10))-OFFSET(N26,0,-MOD(N$13,10)))/10)","v":0},{"$f":"IF(MOD(O$13,10)=0,HLOOKUP(O$13,IF(baseline_selection=1,'1. Baseline Demand Projection'!$E$20:$J$47,'1. Baseline Demand Projection'!$N$20:$S$47),15)*CHOOSE(volunit,1,1000,1000/325851),N26+(OFFSET(O26,0,10-MOD(O$13,10))-OFFSET(O26,0,-MOD(O$13,10)))/10)","v":0},{"$f":"IF(MOD(P$13,10)=0,HLOOKUP(P$13,IF(baseline_selection=1,'1. Baseline Demand Projection'!$E$20:$J$47,'1. Baseline Demand Projection'!$N$20:$S$47),15)*CHOOSE(volunit,1,1000,1000/325851),O26+(OFFSET(P26,0,10-MOD(P$13,10))-OFFSET(P26,0,-MOD(P$13,10)))/10)","v":0},{"$f":"IF(MOD(Q$13,10)=0,HLOOKUP(Q$13,IF(baseline_selection=1,'1. Baseline Demand Projection'!$E$20:$J$47,'1. Baseline Demand Projection'!$N$20:$S$47),15)*CHOOSE(volunit,1,1000,1000/325851),P26+(OFFSET(Q26,0,10-MOD(Q$13,10))-OFFSET(Q26,0,-MOD(Q$13,10)))/10)","v":0},{"$f":"IF(MOD(R$13,10)=0,HLOOKUP(R$13,IF(baseline_selection=1,'1. Baseline Demand Projection'!$E$20:$J$47,'1. Baseline Demand Projection'!$N$20:$S$47),15)*CHOOSE(volunit,1,1000,1000/325851),Q26+(OFFSET(R26,0,10-MOD(R$13,10))-OFFSET(R26,0,-MOD(R$13,10)))/10)","v":0},{"$f":"IF(MOD(S$13,10)=0,HLOOKUP(S$13,IF(baseline_selection=1,'1. Baseline Demand Projection'!$E$20:$J$47,'1. Baseline Demand Projection'!$N$20:$S$47),15)*CHOOSE(volunit,1,1000,1000/325851),R26+(OFFSET(S26,0,10-MOD(S$13,10))-OFFSET(S26,0,-MOD(S$13,10)))/10)","v":0},{"$f":"IF(MOD(T$13,10)=0,HLOOKUP(T$13,IF(baseline_selection=1,'1. Baseline Demand Projection'!$E$20:$J$47,'1. Baseline Demand Projection'!$N$20:$S$47),15)*CHOOSE(volunit,1,1000,1000/325851),S26+(OFFSET(T26,0,10-MOD(T$13,10))-OFFSET(T26,0,-MOD(T$13,10)))/10)","v":0},{"$f":"IF(MOD(U$13,10)=0,HLOOKUP(U$13,IF(baseline_selection=1,'1. Baseline Demand Projection'!$E$20:$J$47,'1. Baseline Demand Projection'!$N$20:$S$47),15)*CHOOSE(volunit,1,1000,1000/325851),T26+(OFFSET(U26,0,10-MOD(U$13,10))-OFFSET(U26,0,-MOD(U$13,10)))/10)","v":0},{"$f":"IF(MOD(V$13,10)=0,HLOOKUP(V$13,IF(baseline_selection=1,'1. Baseline Demand Projection'!$E$20:$J$47,'1. Baseline Demand Projection'!$N$20:$S$47),15)*CHOOSE(volunit,1,1000,1000/325851),U26+(OFFSET(V26,0,10-MOD(V$13,10))-OFFSET(V26,0,-MOD(V$13,10)))/10)","v":0},{"$f":"IF(MOD(W$13,10)=0,HLOOKUP(W$13,IF(baseline_selection=1,'1. Baseline Demand Projection'!$E$20:$J$47,'1. Baseline Demand Projection'!$N$20:$S$47),15)*CHOOSE(volunit,1,1000,1000/325851),V26+(OFFSET(W26,0,10-MOD(W$13,10))-OFFSET(W26,0,-MOD(W$13,10)))/10)","v":0},{"$f":"IF(MOD(X$13,10)=0,HLOOKUP(X$13,IF(baseline_selection=1,'1. Baseline Demand Projection'!$E$20:$J$47,'1. Baseline Demand Projection'!$N$20:$S$47),15)*CHOOSE(volunit,1,1000,1000/325851),W26+(OFFSET(X26,0,10-MOD(X$13,10))-OFFSET(X26,0,-MOD(X$13,10)))/10)","v":0},{"$f":"IF(MOD(Y$13,10)=0,HLOOKUP(Y$13,IF(baseline_selection=1,'1. Baseline Demand Projection'!$E$20:$J$47,'1. Baseline Demand Projection'!$N$20:$S$47),15)*CHOOSE(volunit,1,1000,1000/325851),X26+(OFFSET(Y26,0,10-MOD(Y$13,10))-OFFSET(Y26,0,-MOD(Y$13,10)))/10)","v":0},{"$f":"IF(MOD(Z$13,10)=0,HLOOKUP(Z$13,IF(baseline_selection=1,'1. Baseline Demand Projection'!$E$20:$J$47,'1. Baseline Demand Projection'!$N$20:$S$47),15)*CHOOSE(volunit,1,1000,1000/325851),Y26+(OFFSET(Z26,0,10-MOD(Z$13,10))-OFFSET(Z26,0,-MOD(Z$13,10)))/10)","v":0},{"$f":"IF(MOD(AA$13,10)=0,HLOOKUP(AA$13,IF(baseline_selection=1,'1. Baseline Demand Projection'!$E$20:$J$47,'1. Baseline Demand Projection'!$N$20:$S$47),15)*CHOOSE(volunit,1,1000,1000/325851),Z26+(OFFSET(AA26,0,10-MOD(AA$13,10))-OFFSET(AA26,0,-MOD(AA$13,10)))/10)","v":0},{"$f":"IF(MOD(AB$13,10)=0,HLOOKUP(AB$13,IF(baseline_selection=1,'1. Baseline Demand Projection'!$E$20:$J$47,'1. Baseline Demand Projection'!$N$20:$S$47),15)*CHOOSE(volunit,1,1000,1000/325851),AA26+(OFFSET(AB26,0,10-MOD(AB$13,10))-OFFSET(AB26,0,-MOD(AB$13,10)))/10)","v":0},{"$f":"IF(MOD(AC$13,10)=0,HLOOKUP(AC$13,IF(baseline_selection=1,'1. Baseline Demand Projection'!$E$20:$J$47,'1. Baseline Demand Projection'!$N$20:$S$47),15)*CHOOSE(volunit,1,1000,1000/325851),AB26+(OFFSET(AC26,0,10-MOD(AC$13,10))-OFFSET(AC26,0,-MOD(AC$13,10)))/10)","v":0},{"$f":"IF(MOD(AD$13,10)=0,HLOOKUP(AD$13,IF(baseline_selection=1,'1. Baseline Demand Projection'!$E$20:$J$47,'1. Baseline Demand Projection'!$N$20:$S$47),15)*CHOOSE(volunit,1,1000,1000/325851),AC26+(OFFSET(AD26,0,10-MOD(AD$13,10))-OFFSET(AD26,0,-MOD(AD$13,10)))/10)","v":0},{"$f":"IF(MOD(AE$13,10)=0,HLOOKUP(AE$13,IF(baseline_selection=1,'1. Baseline Demand Projection'!$E$20:$J$47,'1. Baseline Demand Projection'!$N$20:$S$47),15)*CHOOSE(volunit,1,1000,1000/325851),AD26+(OFFSET(AE26,0,10-MOD(AE$13,10))-OFFSET(AE26,0,-MOD(AE$13,10)))/10)","v":0},{"$f":"IF(MOD(AF$13,10)=0,HLOOKUP(AF$13,IF(baseline_selection=1,'1. Baseline Demand Projection'!$E$20:$J$47,'1. Baseline Demand Projection'!$N$20:$S$47),15)*CHOOSE(volunit,1,1000,1000/325851),AE26+(OFFSET(AF26,0,10-MOD(AF$13,10))-OFFSET(AF26,0,-MOD(AF$13,10)))/10)","v":0},{"$f":"IF(MOD(AG$13,10)=0,HLOOKUP(AG$13,IF(baseline_selection=1,'1. Baseline Demand Projection'!$E$20:$J$47,'1. Baseline Demand Projection'!$N$20:$S$47),15)*CHOOSE(volunit,1,1000,1000/325851),AF26+(OFFSET(AG26,0,10-MOD(AG$13,10))-OFFSET(AG26,0,-MOD(AG$13,10)))/10)","v":0},{"$f":"IF(MOD(AH$13,10)=0,HLOOKUP(AH$13,IF(baseline_selection=1,'1. Baseline Demand Projection'!$E$20:$J$47,'1. Baseline Demand Projection'!$N$20:$S$47),15)*CHOOSE(volunit,1,1000,1000/325851),AG26+(OFFSET(AH26,0,10-MOD(AH$13,10))-OFFSET(AH26,0,-MOD(AH$13,10)))/10)","v":0},{"$f":"IF(MOD(AI$13,10)=0,HLOOKUP(AI$13,IF(baseline_selection=1,'1. Baseline Demand Projection'!$E$20:$J$47,'1. Baseline Demand Projection'!$N$20:$S$47),15)*CHOOSE(volunit,1,1000,1000/325851),AH26+(OFFSET(AI26,0,10-MOD(AI$13,10))-OFFSET(AI26,0,-MOD(AI$13,10)))/10)","v":0},{"$f":"IF(MOD(AJ$13,10)=0,HLOOKUP(AJ$13,IF(baseline_selection=1,'1. Baseline Demand Projection'!$E$20:$J$47,'1. Baseline Demand Projection'!$N$20:$S$47),15)*CHOOSE(volunit,1,1000,1000/325851),AI26+(OFFSET(AJ26,0,10-MOD(AJ$13,10))-OFFSET(AJ26,0,-MOD(AJ$13,10)))/10)","v":0},{"$f":"IF(MOD(AK$13,10)=0,HLOOKUP(AK$13,IF(baseline_selection=1,'1. Baseline Demand Projection'!$E$20:$J$47,'1. Baseline Demand Projection'!$N$20:$S$47),15)*CHOOSE(volunit,1,1000,1000/325851),AJ26+(OFFSET(AK26,0,10-MOD(AK$13,10))-OFFSET(AK26,0,-MOD(AK$13,10)))/10)","v":0},{"$f":"IF(MOD(AL$13,10)=0,HLOOKUP(AL$13,IF(baseline_selection=1,'1. Baseline Demand Projection'!$E$20:$J$47,'1. Baseline Demand Projection'!$N$20:$S$47),15)*CHOOSE(volunit,1,1000,1000/325851),AK26+(OFFSET(AL26,0,10-MOD(AL$13,10))-OFFSET(AL26,0,-MOD(AL$13,10)))/10)","v":0},{"$f":"IF(MOD(AM$13,10)=0,HLOOKUP(AM$13,IF(baseline_selection=1,'1. Baseline Demand Projection'!$E$20:$J$47,'1. Baseline Demand Projection'!$N$20:$S$47),15)*CHOOSE(volunit,1,1000,1000/325851),AL26+(OFFSET(AM26,0,10-MOD(AM$13,10))-OFFSET(AM26,0,-MOD(AM$13,10)))/10)","v":0},{"$f":"IF(MOD(AN$13,10)=0,HLOOKUP(AN$13,IF(baseline_selection=1,'1. Baseline Demand Projection'!$E$20:$J$47,'1. Baseline Demand Projection'!$N$20:$S$47),15)*CHOOSE(volunit,1,1000,1000/325851),AM26+(OFFSET(AN26,0,10-MOD(AN$13,10))-OFFSET(AN26,0,-MOD(AN$13,10)))/10)","v":0},{"$f":"IF(MOD(AO$13,10)=0,HLOOKUP(AO$13,IF(baseline_selection=1,'1. Baseline Demand Projection'!$E$20:$J$47,'1. Baseline Demand Projection'!$N$20:$S$47),15)*CHOOSE(volunit,1,1000,1000/325851),AN26+(OFFSET(AO26,0,10-MOD(AO$13,10))-OFFSET(AO26,0,-MOD(AO$13,10)))/10)","v":0},{"$f":"IF(MOD(AP$13,10)=0,HLOOKUP(AP$13,IF(baseline_selection=1,'1. Baseline Demand Projection'!$E$20:$J$47,'1. Baseline Demand Projection'!$N$20:$S$47),15)*CHOOSE(volunit,1,1000,1000/325851),AO26+(OFFSET(AP26,0,10-MOD(AP$13,10))-OFFSET(AP26,0,-MOD(AP$13,10)))/10)","v":0},{"$f":"IF(MOD(AQ$13,10)=0,HLOOKUP(AQ$13,IF(baseline_selection=1,'1. Baseline Demand Projection'!$E$20:$J$47,'1. Baseline Demand Projection'!$N$20:$S$47),15)*CHOOSE(volunit,1,1000,1000/325851),AP26+(OFFSET(AQ26,0,10-MOD(AQ$13,10))-OFFSET(AQ26,0,-MOD(AQ$13,10)))/10)","v":0},{"$f":"IF(MOD(AR$13,10)=0,HLOOKUP(AR$13,IF(baseline_selection=1,'1. Baseline Demand Projection'!$E$20:$J$47,'1. Baseline Demand Projection'!$N$20:$S$47),15)*CHOOSE(volunit,1,1000,1000/325851),AQ26+(OFFSET(AR26,0,10-MOD(AR$13,10))-OFFSET(AR26,0,-MOD(AR$13,10)))/10)","v":0},{"$f":"IF(MOD(AS$13,10)=0,HLOOKUP(AS$13,IF(baseline_selection=1,'1. Baseline Demand Projection'!$E$20:$J$47,'1. Baseline Demand Projection'!$N$20:$S$47),15)*CHOOSE(volunit,1,1000,1000/325851),AR26+(OFFSET(AS26,0,10-MOD(AS$13,10))-OFFSET(AS26,0,-MOD(AS$13,10)))/10)","v":0},{"$f":"IF(MOD(AT$13,10)=0,HLOOKUP(AT$13,IF(baseline_selection=1,'1. Baseline Demand Projection'!$E$20:$J$47,'1. Baseline Demand Projection'!$N$20:$S$47),15)*CHOOSE(volunit,1,1000,1000/325851),AS26+(OFFSET(AT26,0,10-MOD(AT$13,10))-OFFSET(AT26,0,-MOD(AT$13,10)))/10)","v":0},{"$f":"IF(MOD(AU$13,10)=0,HLOOKUP(AU$13,IF(baseline_selection=1,'1. Baseline Demand Projection'!$E$20:$J$47,'1. Baseline Demand Projection'!$N$20:$S$47),15)*CHOOSE(volunit,1,1000,1000/325851),AT26+(OFFSET(AU26,0,10-MOD(AU$13,10))-OFFSET(AU26,0,-MOD(AU$13,10)))/10)","v":0},{"$f":"IF(MOD(AV$13,10)=0,HLOOKUP(AV$13,IF(baseline_selection=1,'1. Baseline Demand Projection'!$E$20:$J$47,'1. Baseline Demand Projection'!$N$20:$S$47),15)*CHOOSE(volunit,1,1000,1000/325851),AU26+(OFFSET(AV26,0,10-MOD(AV$13,10))-OFFSET(AV26,0,-MOD(AV$13,10)))/10)","v":0},{"$f":"IF(MOD(AW$13,10)=0,HLOOKUP(AW$13,IF(baseline_selection=1,'1. Baseline Demand Projection'!$E$20:$J$47,'1. Baseline Demand Projection'!$N$20:$S$47),15)*CHOOSE(volunit,1,1000,1000/325851),AV26+(OFFSET(AW26,0,10-MOD(AW$13,10))-OFFSET(AW26,0,-MOD(AW$13,10)))/10)","v":0},{"$f":"IF(MOD(AX$13,10)=0,HLOOKUP(AX$13,IF(baseline_selection=1,'1. Baseline Demand Projection'!$E$20:$J$47,'1. Baseline Demand Projection'!$N$20:$S$47),15)*CHOOSE(volunit,1,1000,1000/325851),AW26+(OFFSET(AX26,0,10-MOD(AX$13,10))-OFFSET(AX26,0,-MOD(AX$13,10)))/10)","v":0},{"$f":"IF(MOD(AY$13,10)=0,HLOOKUP(AY$13,IF(baseline_selection=1,'1. Baseline Demand Projection'!$E$20:$J$47,'1. Baseline Demand Projection'!$N$20:$S$47),15)*CHOOSE(volunit,1,1000,1000/325851),AX26+(OFFSET(AY26,0,10-MOD(AY$13,10))-OFFSET(AY26,0,-MOD(AY$13,10)))/10)","v":0},{"$f":"IF(MOD(AZ$13,10)=0,HLOOKUP(AZ$13,IF(baseline_selection=1,'1. Baseline Demand Projection'!$E$20:$J$47,'1. Baseline Demand Projection'!$N$20:$S$47),15)*CHOOSE(volunit,1,1000,1000/325851),AY26+(OFFSET(AZ26,0,10-MOD(AZ$13,10))-OFFSET(AZ26,0,-MOD(AZ$13,10)))/10)","v":0},{"$f":"IF(MOD(BA$13,10)=0,HLOOKUP(BA$13,IF(baseline_selection=1,'1. Baseline Demand Projection'!$E$20:$J$47,'1. Baseline Demand Projection'!$N$20:$S$47),15)*CHOOSE(volunit,1,1000,1000/325851),AZ26+(OFFSET(BA26,0,10-MOD(BA$13,10))-OFFSET(BA26,0,-MOD(BA$13,10)))/10)","v":0},{"$f":"IF(C26>0,(BA26/C26)^(1/50)-1,0)","v":0}]
[null,{"$f":"'1. Baseline Demand Projection'!B35","v":"ICI"},{"$f":"IF(MOD(C$13,10)=0,HLOOKUP(C$13,IF(baseline_selection=1,'1. Baseline Demand Projection'!$E$20:$J$47,'1. Baseline Demand Projection'!$N$20:$S$47),16)*CHOOSE(volunit,1,1000,1000/325851),B27+(OFFSET(C27,0,10-MOD(C$13,10))-OFFSET(C27,0,-MOD(C$13,10)))/10)","v":0},{"$f":"IF(MOD(D$13,10)=0,HLOOKUP(D$13,IF(baseline_selection=1,'1. Baseline Demand Projection'!$E$20:$J$47,'1. Baseline Demand Projection'!$N$20:$S$47),16)*CHOOSE(volunit,1,1000,1000/325851),C27+(OFFSET(D27,0,10-MOD(D$13,10))-OFFSET(D27,0,-MOD(D$13,10)))/10)","v":0},{"$f":"IF(MOD(E$13,10)=0,HLOOKUP(E$13,IF(baseline_selection=1,'1. Baseline Demand Projection'!$E$20:$J$47,'1. Baseline Demand Projection'!$N$20:$S$47),16)*CHOOSE(volunit,1,1000,1000/325851),D27+(OFFSET(E27,0,10-MOD(E$13,10))-OFFSET(E27,0,-MOD(E$13,10)))/10)","v":0},{"$f":"IF(MOD(F$13,10)=0,HLOOKUP(F$13,IF(baseline_selection=1,'1. Baseline Demand Projection'!$E$20:$J$47,'1. Baseline Demand Projection'!$N$20:$S$47),16)*CHOOSE(volunit,1,1000,1000/325851),E27+(OFFSET(F27,0,10-MOD(F$13,10))-OFFSET(F27,0,-MOD(F$13,10)))/10)","v":0},{"$f":"IF(MOD(G$13,10)=0,HLOOKUP(G$13,IF(baseline_selection=1,'1. Baseline Demand Projection'!$E$20:$J$47,'1. Baseline Demand Projection'!$N$20:$S$47),16)*CHOOSE(volunit,1,1000,1000/325851),F27+(OFFSET(G27,0,10-MOD(G$13,10))-OFFSET(G27,0,-MOD(G$13,10)))/10)","v":0},{"$f":"IF(MOD(H$13,10)=0,HLOOKUP(H$13,IF(baseline_selection=1,'1. Baseline Demand Projection'!$E$20:$J$47,'1. Baseline Demand Projection'!$N$20:$S$47),16)*CHOOSE(volunit,1,1000,1000/325851),G27+(OFFSET(H27,0,10-MOD(H$13,10))-OFFSET(H27,0,-MOD(H$13,10)))/10)","v":0},{"$f":"IF(MOD(I$13,10)=0,HLOOKUP(I$13,IF(baseline_selection=1,'1. Baseline Demand Projection'!$E$20:$J$47,'1. Baseline Demand Projection'!$N$20:$S$47),16)*CHOOSE(volunit,1,1000,1000/325851),H27+(OFFSET(I27,0,10-MOD(I$13,10))-OFFSET(I27,0,-MOD(I$13,10)))/10)","v":0},{"$f":"IF(MOD(J$13,10)=0,HLOOKUP(J$13,IF(baseline_selection=1,'1. Baseline Demand Projection'!$E$20:$J$47,'1. Baseline Demand Projection'!$N$20:$S$47),16)*CHOOSE(volunit,1,1000,1000/325851),I27+(OFFSET(J27,0,10-MOD(J$13,10))-OFFSET(J27,0,-MOD(J$13,10)))/10)","v":0},{"$f":"IF(MOD(K$13,10)=0,HLOOKUP(K$13,IF(baseline_selection=1,'1. Baseline Demand Projection'!$E$20:$J$47,'1. Baseline Demand Projection'!$N$20:$S$47),16)*CHOOSE(volunit,1,1000,1000/325851),J27+(OFFSET(K27,0,10-MOD(K$13,10))-OFFSET(K27,0,-MOD(K$13,10)))/10)","v":0},{"$f":"IF(MOD(L$13,10)=0,HLOOKUP(L$13,IF(baseline_selection=1,'1. Baseline Demand Projection'!$E$20:$J$47,'1. Baseline Demand Projection'!$N$20:$S$47),16)*CHOOSE(volunit,1,1000,1000/325851),K27+(OFFSET(L27,0,10-MOD(L$13,10))-OFFSET(L27,0,-MOD(L$13,10)))/10)","v":0},{"$f":"IF(MOD(M$13,10)=0,HLOOKUP(M$13,IF(baseline_selection=1,'1. Baseline Demand Projection'!$E$20:$J$47,'1. Baseline Demand Projection'!$N$20:$S$47),16)*CHOOSE(volunit,1,1000,1000/325851),L27+(OFFSET(M27,0,10-MOD(M$13,10))-OFFSET(M27,0,-MOD(M$13,10)))/10)","v":0},{"$f":"IF(MOD(N$13,10)=0,HLOOKUP(N$13,IF(baseline_selection=1,'1. Baseline Demand Projection'!$E$20:$J$47,'1. Baseline Demand Projection'!$N$20:$S$47),16)*CHOOSE(volunit,1,1000,1000/325851),M27+(OFFSET(N27,0,10-MOD(N$13,10))-OFFSET(N27,0,-MOD(N$13,10)))/10)","v":0},{"$f":"IF(MOD(O$13,10)=0,HLOOKUP(O$13,IF(baseline_selection=1,'1. Baseline Demand Projection'!$E$20:$J$47,'1. Baseline Demand Projection'!$N$20:$S$47),16)*CHOOSE(volunit,1,1000,1000/325851),N27+(OFFSET(O27,0,10-MOD(O$13,10))-OFFSET(O27,0,-MOD(O$13,10)))/10)","v":0},{"$f":"IF(MOD(P$13,10)=0,HLOOKUP(P$13,IF(baseline_selection=1,'1. Baseline Demand Projection'!$E$20:$J$47,'1. Baseline Demand Projection'!$N$20:$S$47),16)*CHOOSE(volunit,1,1000,1000/325851),O27+(OFFSET(P27,0,10-MOD(P$13,10))-OFFSET(P27,0,-MOD(P$13,10)))/10)","v":0},{"$f":"IF(MOD(Q$13,10)=0,HLOOKUP(Q$13,IF(baseline_selection=1,'1. Baseline Demand Projection'!$E$20:$J$47,'1. Baseline Demand Projection'!$N$20:$S$47),16)*CHOOSE(volunit,1,1000,1000/325851),P27+(OFFSET(Q27,0,10-MOD(Q$13,10))-OFFSET(Q27,0,-MOD(Q$13,10)))/10)","v":0},{"$f":"IF(MOD(R$13,10)=0,HLOOKUP(R$13,IF(baseline_selection=1,'1. Baseline Demand Projection'!$E$20:$J$47,'1. Baseline Demand Projection'!$N$20:$S$47),16)*CHOOSE(volunit,1,1000,1000/325851),Q27+(OFFSET(R27,0,10-MOD(R$13,10))-OFFSET(R27,0,-MOD(R$13,10)))/10)","v":0},{"$f":"IF(MOD(S$13,10)=0,HLOOKUP(S$13,IF(baseline_selection=1,'1. Baseline Demand Projection'!$E$20:$J$47,'1. Baseline Demand Projection'!$N$20:$S$47),16)*CHOOSE(volunit,1,1000,1000/325851),R27+(OFFSET(S27,0,10-MOD(S$13,10))-OFFSET(S27,0,-MOD(S$13,10)))/10)","v":0},{"$f":"IF(MOD(T$13,10)=0,HLOOKUP(T$13,IF(baseline_selection=1,'1. Baseline Demand Projection'!$E$20:$J$47,'1. Baseline Demand Projection'!$N$20:$S$47),16)*CHOOSE(volunit,1,1000,1000/325851),S27+(OFFSET(T27,0,10-MOD(T$13,10))-OFFSET(T27,0,-MOD(T$13,10)))/10)","v":0},{"$f":"IF(MOD(U$13,10)=0,HLOOKUP(U$13,IF(baseline_selection=1,'1. Baseline Demand Projection'!$E$20:$J$47,'1. Baseline Demand Projection'!$N$20:$S$47),16)*CHOOSE(volunit,1,1000,1000/325851),T27+(OFFSET(U27,0,10-MOD(U$13,10))-OFFSET(U27,0,-MOD(U$13,10)))/10)","v":0},{"$f":"IF(MOD(V$13,10)=0,HLOOKUP(V$13,IF(baseline_selection=1,'1. Baseline Demand Projection'!$E$20:$J$47,'1. Baseline Demand Projection'!$N$20:$S$47),16)*CHOOSE(volunit,1,1000,1000/325851),U27+(OFFSET(V27,0,10-MOD(V$13,10))-OFFSET(V27,0,-MOD(V$13,10)))/10)","v":0},{"$f":"IF(MOD(W$13,10)=0,HLOOKUP(W$13,IF(baseline_selection=1,'1. Baseline Demand Projection'!$E$20:$J$47,'1. Baseline Demand Projection'!$N$20:$S$47),16)*CHOOSE(volunit,1,1000,1000/325851),V27+(OFFSET(W27,0,10-MOD(W$13,10))-OFFSET(W27,0,-MOD(W$13,10)))/10)","v":0},{"$f":"IF(MOD(X$13,10)=0,HLOOKUP(X$13,IF(baseline_selection=1,'1. Baseline Demand Projection'!$E$20:$J$47,'1. Baseline Demand Projection'!$N$20:$S$47),16)*CHOOSE(volunit,1,1000,1000/325851),W27+(OFFSET(X27,0,10-MOD(X$13,10))-OFFSET(X27,0,-MOD(X$13,10)))/10)","v":0},{"$f":"IF(MOD(Y$13,10)=0,HLOOKUP(Y$13,IF(baseline_selection=1,'1. Baseline Demand Projection'!$E$20:$J$47,'1. Baseline Demand Projection'!$N$20:$S$47),16)*CHOOSE(volunit,1,1000,1000/325851),X27+(OFFSET(Y27,0,10-MOD(Y$13,10))-OFFSET(Y27,0,-MOD(Y$13,10)))/10)","v":0},{"$f":"IF(MOD(Z$13,10)=0,HLOOKUP(Z$13,IF(baseline_selection=1,'1. Baseline Demand Projection'!$E$20:$J$47,'1. Baseline Demand Projection'!$N$20:$S$47),16)*CHOOSE(volunit,1,1000,1000/325851),Y27+(OFFSET(Z27,0,10-MOD(Z$13,10))-OFFSET(Z27,0,-MOD(Z$13,10)))/10)","v":0},{"$f":"IF(MOD(AA$13,10)=0,HLOOKUP(AA$13,IF(baseline_selection=1,'1. Baseline Demand Projection'!$E$20:$J$47,'1. Baseline Demand Projection'!$N$20:$S$47),16)*CHOOSE(volunit,1,1000,1000/325851),Z27+(OFFSET(AA27,0,10-MOD(AA$13,10))-OFFSET(AA27,0,-MOD(AA$13,10)))/10)","v":0},{"$f":"IF(MOD(AB$13,10)=0,HLOOKUP(AB$13,IF(baseline_selection=1,'1. Baseline Demand Projection'!$E$20:$J$47,'1. Baseline Demand Projection'!$N$20:$S$47),16)*CHOOSE(volunit,1,1000,1000/325851),AA27+(OFFSET(AB27,0,10-MOD(AB$13,10))-OFFSET(AB27,0,-MOD(AB$13,10)))/10)","v":0},{"$f":"IF(MOD(AC$13,10)=0,HLOOKUP(AC$13,IF(baseline_selection=1,'1. Baseline Demand Projection'!$E$20:$J$47,'1. Baseline Demand Projection'!$N$20:$S$47),16)*CHOOSE(volunit,1,1000,1000/325851),AB27+(OFFSET(AC27,0,10-MOD(AC$13,10))-OFFSET(AC27,0,-MOD(AC$13,10)))/10)","v":0},{"$f":"IF(MOD(AD$13,10)=0,HLOOKUP(AD$13,IF(baseline_selection=1,'1. Baseline Demand Projection'!$E$20:$J$47,'1. Baseline Demand Projection'!$N$20:$S$47),16)*CHOOSE(volunit,1,1000,1000/325851),AC27+(OFFSET(AD27,0,10-MOD(AD$13,10))-OFFSET(AD27,0,-MOD(AD$13,10)))/10)","v":0},{"$f":"IF(MOD(AE$13,10)=0,HLOOKUP(AE$13,IF(baseline_selection=1,'1. Baseline Demand Projection'!$E$20:$J$47,'1. Baseline Demand Projection'!$N$20:$S$47),16)*CHOOSE(volunit,1,1000,1000/325851),AD27+(OFFSET(AE27,0,10-MOD(AE$13,10))-OFFSET(AE27,0,-MOD(AE$13,10)))/10)","v":0},{"$f":"IF(MOD(AF$13,10)=0,HLOOKUP(AF$13,IF(baseline_selection=1,'1. Baseline Demand Projection'!$E$20:$J$47,'1. Baseline Demand Projection'!$N$20:$S$47),16)*CHOOSE(volunit,1,1000,1000/325851),AE27+(OFFSET(AF27,0,10-MOD(AF$13,10))-OFFSET(AF27,0,-MOD(AF$13,10)))/10)","v":0},{"$f":"IF(MOD(AG$13,10)=0,HLOOKUP(AG$13,IF(baseline_selection=1,'1. Baseline Demand Projection'!$E$20:$J$47,'1. Baseline Demand Projection'!$N$20:$S$47),16)*CHOOSE(volunit,1,1000,1000/325851),AF27+(OFFSET(AG27,0,10-MOD(AG$13,10))-OFFSET(AG27,0,-MOD(AG$13,10)))/10)","v":0},{"$f":"IF(MOD(AH$13,10)=0,HLOOKUP(AH$13,IF(baseline_selection=1,'1. Baseline Demand Projection'!$E$20:$J$47,'1. Baseline Demand Projection'!$N$20:$S$47),16)*CHOOSE(volunit,1,1000,1000/325851),AG27+(OFFSET(AH27,0,10-MOD(AH$13,10))-OFFSET(AH27,0,-MOD(AH$13,10)))/10)","v":0},{"$f":"IF(MOD(AI$13,10)=0,HLOOKUP(AI$13,IF(baseline_selection=1,'1. Baseline Demand Projection'!$E$20:$J$47,'1. Baseline Demand Projection'!$N$20:$S$47),16)*CHOOSE(volunit,1,1000,1000/325851),AH27+(OFFSET(AI27,0,10-MOD(AI$13,10))-OFFSET(AI27,0,-MOD(AI$13,10)))/10)","v":0},{"$f":"IF(MOD(AJ$13,10)=0,HLOOKUP(AJ$13,IF(baseline_selection=1,'1. Baseline Demand Projection'!$E$20:$J$47,'1. Baseline Demand Projection'!$N$20:$S$47),16)*CHOOSE(volunit,1,1000,1000/325851),AI27+(OFFSET(AJ27,0,10-MOD(AJ$13,10))-OFFSET(AJ27,0,-MOD(AJ$13,10)))/10)","v":0},{"$f":"IF(MOD(AK$13,10)=0,HLOOKUP(AK$13,IF(baseline_selection=1,'1. Baseline Demand Projection'!$E$20:$J$47,'1. Baseline Demand Projection'!$N$20:$S$47),16)*CHOOSE(volunit,1,1000,1000/325851),AJ27+(OFFSET(AK27,0,10-MOD(AK$13,10))-OFFSET(AK27,0,-MOD(AK$13,10)))/10)","v":0},{"$f":"IF(MOD(AL$13,10)=0,HLOOKUP(AL$13,IF(baseline_selection=1,'1. Baseline Demand Projection'!$E$20:$J$47,'1. Baseline Demand Projection'!$N$20:$S$47),16)*CHOOSE(volunit,1,1000,1000/325851),AK27+(OFFSET(AL27,0,10-MOD(AL$13,10))-OFFSET(AL27,0,-MOD(AL$13,10)))/10)","v":0},{"$f":"IF(MOD(AM$13,10)=0,HLOOKUP(AM$13,IF(baseline_selection=1,'1. Baseline Demand Projection'!$E$20:$J$47,'1. Baseline Demand Projection'!$N$20:$S$47),16)*CHOOSE(volunit,1,1000,1000/325851),AL27+(OFFSET(AM27,0,10-MOD(AM$13,10))-OFFSET(AM27,0,-MOD(AM$13,10)))/10)","v":0},{"$f":"IF(MOD(AN$13,10)=0,HLOOKUP(AN$13,IF(baseline_selection=1,'1. Baseline Demand Projection'!$E$20:$J$47,'1. Baseline Demand Projection'!$N$20:$S$47),16)*CHOOSE(volunit,1,1000,1000/325851),AM27+(OFFSET(AN27,0,10-MOD(AN$13,10))-OFFSET(AN27,0,-MOD(AN$13,10)))/10)","v":0},{"$f":"IF(MOD(AO$13,10)=0,HLOOKUP(AO$13,IF(baseline_selection=1,'1. Baseline Demand Projection'!$E$20:$J$47,'1. Baseline Demand Projection'!$N$20:$S$47),16)*CHOOSE(volunit,1,1000,1000/325851),AN27+(OFFSET(AO27,0,10-MOD(AO$13,10))-OFFSET(AO27,0,-MOD(AO$13,10)))/10)","v":0},{"$f":"IF(MOD(AP$13,10)=0,HLOOKUP(AP$13,IF(baseline_selection=1,'1. Baseline Demand Projection'!$E$20:$J$47,'1. Baseline Demand Projection'!$N$20:$S$47),16)*CHOOSE(volunit,1,1000,1000/325851),AO27+(OFFSET(AP27,0,10-MOD(AP$13,10))-OFFSET(AP27,0,-MOD(AP$13,10)))/10)","v":0},{"$f":"IF(MOD(AQ$13,10)=0,HLOOKUP(AQ$13,IF(baseline_selection=1,'1. Baseline Demand Projection'!$E$20:$J$47,'1. Baseline Demand Projection'!$N$20:$S$47),16)*CHOOSE(volunit,1,1000,1000/325851),AP27+(OFFSET(AQ27,0,10-MOD(AQ$13,10))-OFFSET(AQ27,0,-MOD(AQ$13,10)))/10)","v":0},{"$f":"IF(MOD(AR$13,10)=0,HLOOKUP(AR$13,IF(baseline_selection=1,'1. Baseline Demand Projection'!$E$20:$J$47,'1. Baseline Demand Projection'!$N$20:$S$47),16)*CHOOSE(volunit,1,1000,1000/325851),AQ27+(OFFSET(AR27,0,10-MOD(AR$13,10))-OFFSET(AR27,0,-MOD(AR$13,10)))/10)","v":0},{"$f":"IF(MOD(AS$13,10)=0,HLOOKUP(AS$13,IF(baseline_selection=1,'1. Baseline Demand Projection'!$E$20:$J$47,'1. Baseline Demand Projection'!$N$20:$S$47),16)*CHOOSE(volunit,1,1000,1000/325851),AR27+(OFFSET(AS27,0,10-MOD(AS$13,10))-OFFSET(AS27,0,-MOD(AS$13,10)))/10)","v":0},{"$f":"IF(MOD(AT$13,10)=0,HLOOKUP(AT$13,IF(baseline_selection=1,'1. Baseline Demand Projection'!$E$20:$J$47,'1. Baseline Demand Projection'!$N$20:$S$47),16)*CHOOSE(volunit,1,1000,1000/325851),AS27+(OFFSET(AT27,0,10-MOD(AT$13,10))-OFFSET(AT27,0,-MOD(AT$13,10)))/10)","v":0},{"$f":"IF(MOD(AU$13,10)=0,HLOOKUP(AU$13,IF(baseline_selection=1,'1. Baseline Demand Projection'!$E$20:$J$47,'1. Baseline Demand Projection'!$N$20:$S$47),16)*CHOOSE(volunit,1,1000,1000/325851),AT27+(OFFSET(AU27,0,10-MOD(AU$13,10))-OFFSET(AU27,0,-MOD(AU$13,10)))/10)","v":0},{"$f":"IF(MOD(AV$13,10)=0,HLOOKUP(AV$13,IF(baseline_selection=1,'1. Baseline Demand Projection'!$E$20:$J$47,'1. Baseline Demand Projection'!$N$20:$S$47),16)*CHOOSE(volunit,1,1000,1000/325851),AU27+(OFFSET(AV27,0,10-MOD(AV$13,10))-OFFSET(AV27,0,-MOD(AV$13,10)))/10)","v":0},{"$f":"IF(MOD(AW$13,10)=0,HLOOKUP(AW$13,IF(baseline_selection=1,'1. Baseline Demand Projection'!$E$20:$J$47,'1. Baseline Demand Projection'!$N$20:$S$47),16)*CHOOSE(volunit,1,1000,1000/325851),AV27+(OFFSET(AW27,0,10-MOD(AW$13,10))-OFFSET(AW27,0,-MOD(AW$13,10)))/10)","v":0},{"$f":"IF(MOD(AX$13,10)=0,HLOOKUP(AX$13,IF(baseline_selection=1,'1. Baseline Demand Projection'!$E$20:$J$47,'1. Baseline Demand Projection'!$N$20:$S$47),16)*CHOOSE(volunit,1,1000,1000/325851),AW27+(OFFSET(AX27,0,10-MOD(AX$13,10))-OFFSET(AX27,0,-MOD(AX$13,10)))/10)","v":0},{"$f":"IF(MOD(AY$13,10)=0,HLOOKUP(AY$13,IF(baseline_selection=1,'1. Baseline Demand Projection'!$E$20:$J$47,'1. Baseline Demand Projection'!$N$20:$S$47),16)*CHOOSE(volunit,1,1000,1000/325851),AX27+(OFFSET(AY27,0,10-MOD(AY$13,10))-OFFSET(AY27,0,-MOD(AY$13,10)))/10)","v":0},{"$f":"IF(MOD(AZ$13,10)=0,HLOOKUP(AZ$13,IF(baseline_selection=1,'1. Baseline Demand Projection'!$E$20:$J$47,'1. Baseline Demand Projection'!$N$20:$S$47),16)*CHOOSE(volunit,1,1000,1000/325851),AY27+(OFFSET(AZ27,0,10-MOD(AZ$13,10))-OFFSET(AZ27,0,-MOD(AZ$13,10)))/10)","v":0},{"$f":"IF(MOD(BA$13,10)=0,HLOOKUP(BA$13,IF(baseline_selection=1,'1. Baseline Demand Projection'!$E$20:$J$47,'1. Baseline Demand Projection'!$N$20:$S$47),16)*CHOOSE(volunit,1,1000,1000/325851),AZ27+(OFFSET(BA27,0,10-MOD(BA$13,10))-OFFSET(BA27,0,-MOD(BA$13,10)))/10)","v":0},0]
[null,{"$f":"'1. Baseline Demand Projection'!B36","v":"Sales Subtotal"},{"$f":"SUM(C25:C27)","v":0},{"$f":"SUM(D25:D27)","v":0},0,0,0,0,0,0,0,0,0,0,0,0,0,0,0,0,0,0,0,0,0,0,0,0,0,0,0,0,0,0,0,0,0,0,0,0,0,0,0,0,0,0,0,0,0,0,0,0,0,0]
[null,{"$f":"'1. Baseline Demand Projection'!B37","v":"Other Uses"},{"$f":"IF(MOD(C$13,10)=0,HLOOKUP(C$13,IF(baseline_selection=1,'1. Baseline Demand Projection'!$E$20:$J$47,'1. Baseline Demand Projection'!$N$20:$S$47),18)*CHOOSE(volunit,1,1000,1000/325851),B29+(OFFSET(C29,0,10-MOD(C$13,10))-OFFSET(C29,0,-MOD(C$13,10)))/10)","v":0},{"$f":"IF(MOD(D$13,10)=0,HLOOKUP(D$13,IF(baseline_selection=1,'1. Baseline Demand Projection'!$E$20:$J$47,'1. Baseline Demand Projection'!$N$20:$S$47),18)*CHOOSE(volunit,1,1000,1000/325851),C29+(OFFSET(D29,0,10-MOD(D$13,10))-OFFSET(D29,0,-MOD(D$13,10)))/10)","v":0},{"$f":"IF(MOD(E$13,10)=0,HLOOKUP(E$13,IF(baseline_selection=1,'1. Baseline Demand Projection'!$E$20:$J$47,'1. Baseline Demand Projection'!$N$20:$S$47),18)*CHOOSE(volunit,1,1000,1000/325851),D29+(OFFSET(E29,0,10-MOD(E$13,10))-OFFSET(E29,0,-MOD(E$13,10)))/10)","v":0},{"$f":"IF(MOD(F$13,10)=0,HLOOKUP(F$13,IF(baseline_selection=1,'1. Baseline Demand Projection'!$E$20:$J$47,'1. Baseline Demand Projection'!$N$20:$S$47),18)*CHOOSE(volunit,1,1000,1000/325851),E29+(OFFSET(F29,0,10-MOD(F$13,10))-OFFSET(F29,0,-MOD(F$13,10)))/10)","v":0},{"$f":"IF(MOD(G$13,10)=0,HLOOKUP(G$13,IF(baseline_selection=1,'1. Baseline Demand Projection'!$E$20:$J$47,'1. Baseline Demand Projection'!$N$20:$S$47),18)*CHOOSE(volunit,1,1000,1000/325851),F29+(OFFSET(G29,0,10-MOD(G$13,10))-OFFSET(G29,0,-MOD(G$13,10)))/10)","v":0},{"$f":"IF(MOD(H$13,10)=0,HLOOKUP(H$13,IF(baseline_selection=1,'1. Baseline Demand Projection'!$E$20:$J$47,'1. Baseline Demand Projection'!$N$20:$S$47),18)*CHOOSE(volunit,1,1000,1000/325851),G29+(OFFSET(H29,0,10-MOD(H$13,10))-OFFSET(H29,0,-MOD(H$13,10)))/10)","v":0},{"$f":"IF(MOD(I$13,10)=0,HLOOKUP(I$13,IF(baseline_selection=1,'1. Baseline Demand Projection'!$E$20:$J$47,'1. Baseline Demand Projection'!$N$20:$S$47),18)*CHOOSE(volunit,1,1000,1000/325851),H29+(OFFSET(I29,0,10-MOD(I$13,10))-OFFSET(I29,0,-MOD(I$13,10)))/10)","v":0},{"$f":"IF(MOD(J$13,10)=0,HLOOKUP(J$13,IF(baseline_selection=1,'1. Baseline Demand Projection'!$E$20:$J$47,'1. Baseline Demand Projection'!$N$20:$S$47),18)*CHOOSE(volunit,1,1000,1000/325851),I29+(OFFSET(J29,0,10-MOD(J$13,10))-OFFSET(J29,0,-MOD(J$13,10)))/10)","v":0},{"$f":"IF(MOD(K$13,10)=0,HLOOKUP(K$13,IF(baseline_selection=1,'1. Baseline Demand Projection'!$E$20:$J$47,'1. Baseline Demand Projection'!$N$20:$S$47),18)*CHOOSE(volunit,1,1000,1000/325851),J29+(OFFSET(K29,0,10-MOD(K$13,10))-OFFSET(K29,0,-MOD(K$13,10)))/10)","v":0},{"$f":"IF(MOD(L$13,10)=0,HLOOKUP(L$13,IF(baseline_selection=1,'1. Baseline Demand Projection'!$E$20:$J$47,'1. Baseline Demand Projection'!$N$20:$S$47),18)*CHOOSE(volunit,1,1000,1000/325851),K29+(OFFSET(L29,0,10-MOD(L$13,10))-OFFSET(L29,0,-MOD(L$13,10)))/10)","v":0},{"$f":"IF(MOD(M$13,10)=0,HLOOKUP(M$13,IF(baseline_selection=1,'1. Baseline Demand Projection'!$E$20:$J$47,'1. Baseline Demand Projection'!$N$20:$S$47),18)*CHOOSE(volunit,1,1000,1000/325851),L29+(OFFSET(M29,0,10-MOD(M$13,10))-OFFSET(M29,0,-MOD(M$13,10)))/10)","v":0},{"$f":"IF(MOD(N$13,10)=0,HLOOKUP(N$13,IF(baseline_selection=1,'1. Baseline Demand Projection'!$E$20:$J$47,'1. Baseline Demand Projection'!$N$20:$S$47),18)*CHOOSE(volunit,1,1000,1000/325851),M29+(OFFSET(N29,0,10-MOD(N$13,10))-OFFSET(N29,0,-MOD(N$13,10)))/10)","v":0},{"$f":"IF(MOD(O$13,10)=0,HLOOKUP(O$13,IF(baseline_selection=1,'1. Baseline Demand Projection'!$E$20:$J$47,'1. Baseline Demand Projection'!$N$20:$S$47),18)*CHOOSE(volunit,1,1000,1000/325851),N29+(OFFSET(O29,0,10-MOD(O$13,10))-OFFSET(O29,0,-MOD(O$13,10)))/10)","v":0},{"$f":"IF(MOD(P$13,10)=0,HLOOKUP(P$13,IF(baseline_selection=1,'1. Baseline Demand Projection'!$E$20:$J$47,'1. Baseline Demand Projection'!$N$20:$S$47),18)*CHOOSE(volunit,1,1000,1000/325851),O29+(OFFSET(P29,0,10-MOD(P$13,10))-OFFSET(P29,0,-MOD(P$13,10)))/10)","v":0},{"$f":"IF(MOD(Q$13,10)=0,HLOOKUP(Q$13,IF(baseline_selection=1,'1. Baseline Demand Projection'!$E$20:$J$47,'1. Baseline Demand Projection'!$N$20:$S$47),18)*CHOOSE(volunit,1,1000,1000/325851),P29+(OFFSET(Q29,0,10-MOD(Q$13,10))-OFFSET(Q29,0,-MOD(Q$13,10)))/10)","v":0},{"$f":"IF(MOD(R$13,10)=0,HLOOKUP(R$13,IF(baseline_selection=1,'1. Baseline Demand Projection'!$E$20:$J$47,'1. Baseline Demand Projection'!$N$20:$S$47),18)*CHOOSE(volunit,1,1000,1000/325851),Q29+(OFFSET(R29,0,10-MOD(R$13,10))-OFFSET(R29,0,-MOD(R$13,10)))/10)","v":0},{"$f":"IF(MOD(S$13,10)=0,HLOOKUP(S$13,IF(baseline_selection=1,'1. Baseline Demand Projection'!$E$20:$J$47,'1. Baseline Demand Projection'!$N$20:$S$47),18)*CHOOSE(volunit,1,1000,1000/325851),R29+(OFFSET(S29,0,10-MOD(S$13,10))-OFFSET(S29,0,-MOD(S$13,10)))/10)","v":0},{"$f":"IF(MOD(T$13,10)=0,HLOOKUP(T$13,IF(baseline_selection=1,'1. Baseline Demand Projection'!$E$20:$J$47,'1. Baseline Demand Projection'!$N$20:$S$47),18)*CHOOSE(volunit,1,1000,1000/325851),S29+(OFFSET(T29,0,10-MOD(T$13,10))-OFFSET(T29,0,-MOD(T$13,10)))/10)","v":0},{"$f":"IF(MOD(U$13,10)=0,HLOOKUP(U$13,IF(baseline_selection=1,'1. Baseline Demand Projection'!$E$20:$J$47,'1. Baseline Demand Projection'!$N$20:$S$47),18)*CHOOSE(volunit,1,1000,1000/325851),T29+(OFFSET(U29,0,10-MOD(U$13,10))-OFFSET(U29,0,-MOD(U$13,10)))/10)","v":0},{"$f":"IF(MOD(V$13,10)=0,HLOOKUP(V$13,IF(baseline_selection=1,'1. Baseline Demand Projection'!$E$20:$J$47,'1. Baseline Demand Projection'!$N$20:$S$47),18)*CHOOSE(volunit,1,1000,1000/325851),U29+(OFFSET(V29,0,10-MOD(V$13,10))-OFFSET(V29,0,-MOD(V$13,10)))/10)","v":0},{"$f":"IF(MOD(W$13,10)=0,HLOOKUP(W$13,IF(baseline_selection=1,'1. Baseline Demand Projection'!$E$20:$J$47,'1. Baseline Demand Projection'!$N$20:$S$47),18)*CHOOSE(volunit,1,1000,1000/325851),V29+(OFFSET(W29,0,10-MOD(W$13,10))-OFFSET(W29,0,-MOD(W$13,10)))/10)","v":0},{"$f":"IF(MOD(X$13,10)=0,HLOOKUP(X$13,IF(baseline_selection=1,'1. Baseline Demand Projection'!$E$20:$J$47,'1. Baseline Demand Projection'!$N$20:$S$47),18)*CHOOSE(volunit,1,1000,1000/325851),W29+(OFFSET(X29,0,10-MOD(X$13,10))-OFFSET(X29,0,-MOD(X$13,10)))/10)","v":0},{"$f":"IF(MOD(Y$13,10)=0,HLOOKUP(Y$13,IF(baseline_selection=1,'1. Baseline Demand Projection'!$E$20:$J$47,'1. Baseline Demand Projection'!$N$20:$S$47),18)*CHOOSE(volunit,1,1000,1000/325851),X29+(OFFSET(Y29,0,10-MOD(Y$13,10))-OFFSET(Y29,0,-MOD(Y$13,10)))/10)","v":0},{"$f":"IF(MOD(Z$13,10)=0,HLOOKUP(Z$13,IF(baseline_selection=1,'1. Baseline Demand Projection'!$E$20:$J$47,'1. Baseline Demand Projection'!$N$20:$S$47),18)*CHOOSE(volunit,1,1000,1000/325851),Y29+(OFFSET(Z29,0,10-MOD(Z$13,10))-OFFSET(Z29,0,-MOD(Z$13,10)))/10)","v":0},{"$f":"IF(MOD(AA$13,10)=0,HLOOKUP(AA$13,IF(baseline_selection=1,'1. Baseline Demand Projection'!$E$20:$J$47,'1. Baseline Demand Projection'!$N$20:$S$47),18)*CHOOSE(volunit,1,1000,1000/325851),Z29+(OFFSET(AA29,0,10-MOD(AA$13,10))-OFFSET(AA29,0,-MOD(AA$13,10)))/10)","v":0},{"$f":"IF(MOD(AB$13,10)=0,HLOOKUP(AB$13,IF(baseline_selection=1,'1. Baseline Demand Projection'!$E$20:$J$47,'1. Baseline Demand Projection'!$N$20:$S$47),18)*CHOOSE(volunit,1,1000,1000/325851),AA29+(OFFSET(AB29,0,10-MOD(AB$13,10))-OFFSET(AB29,0,-MOD(AB$13,10)))/10)","v":0},{"$f":"IF(MOD(AC$13,10)=0,HLOOKUP(AC$13,IF(baseline_selection=1,'1. Baseline Demand Projection'!$E$20:$J$47,'1. Baseline Demand Projection'!$N$20:$S$47),18)*CHOOSE(volunit,1,1000,1000/325851),AB29+(OFFSET(AC29,0,10-MOD(AC$13,10))-OFFSET(AC29,0,-MOD(AC$13,10)))/10)","v":0},{"$f":"IF(MOD(AD$13,10)=0,HLOOKUP(AD$13,IF(baseline_selection=1,'1. Baseline Demand Projection'!$E$20:$J$47,'1. Baseline Demand Projection'!$N$20:$S$47),18)*CHOOSE(volunit,1,1000,1000/325851),AC29+(OFFSET(AD29,0,10-MOD(AD$13,10))-OFFSET(AD29,0,-MOD(AD$13,10)))/10)","v":0},{"$f":"IF(MOD(AE$13,10)=0,HLOOKUP(AE$13,IF(baseline_selection=1,'1. Baseline Demand Projection'!$E$20:$J$47,'1. Baseline Demand Projection'!$N$20:$S$47),18)*CHOOSE(volunit,1,1000,1000/325851),AD29+(OFFSET(AE29,0,10-MOD(AE$13,10))-OFFSET(AE29,0,-MOD(AE$13,10)))/10)","v":0},{"$f":"IF(MOD(AF$13,10)=0,HLOOKUP(AF$13,IF(baseline_selection=1,'1. Baseline Demand Projection'!$E$20:$J$47,'1. Baseline Demand Projection'!$N$20:$S$47),18)*CHOOSE(volunit,1,1000,1000/325851),AE29+(OFFSET(AF29,0,10-MOD(AF$13,10))-OFFSET(AF29,0,-MOD(AF$13,10)))/10)","v":0},{"$f":"IF(MOD(AG$13,10)=0,HLOOKUP(AG$13,IF(baseline_selection=1,'1. Baseline Demand Projection'!$E$20:$J$47,'1. Baseline Demand Projection'!$N$20:$S$47),18)*CHOOSE(volunit,1,1000,1000/325851),AF29+(OFFSET(AG29,0,10-MOD(AG$13,10))-OFFSET(AG29,0,-MOD(AG$13,10)))/10)","v":0},{"$f":"IF(MOD(AH$13,10)=0,HLOOKUP(AH$13,IF(baseline_selection=1,'1. Baseline Demand Projection'!$E$20:$J$47,'1. Baseline Demand Projection'!$N$20:$S$47),18)*CHOOSE(volunit,1,1000,1000/325851),AG29+(OFFSET(AH29,0,10-MOD(AH$13,10))-OFFSET(AH29,0,-MOD(AH$13,10)))/10)","v":0},{"$f":"IF(MOD(AI$13,10)=0,HLOOKUP(AI$13,IF(baseline_selection=1,'1. Baseline Demand Projection'!$E$20:$J$47,'1. Baseline Demand Projection'!$N$20:$S$47),18)*CHOOSE(volunit,1,1000,1000/325851),AH29+(OFFSET(AI29,0,10-MOD(AI$13,10))-OFFSET(AI29,0,-MOD(AI$13,10)))/10)","v":0},{"$f":"IF(MOD(AJ$13,10)=0,HLOOKUP(AJ$13,IF(baseline_selection=1,'1. Baseline Demand Projection'!$E$20:$J$47,'1. Baseline Demand Projection'!$N$20:$S$47),18)*CHOOSE(volunit,1,1000,1000/325851),AI29+(OFFSET(AJ29,0,10-MOD(AJ$13,10))-OFFSET(AJ29,0,-MOD(AJ$13,10)))/10)","v":0},{"$f":"IF(MOD(AK$13,10)=0,HLOOKUP(AK$13,IF(baseline_selection=1,'1. Baseline Demand Projection'!$E$20:$J$47,'1. Baseline Demand Projection'!$N$20:$S$47),18)*CHOOSE(volunit,1,1000,1000/325851),AJ29+(OFFSET(AK29,0,10-MOD(AK$13,10))-OFFSET(AK29,0,-MOD(AK$13,10)))/10)","v":0},{"$f":"IF(MOD(AL$13,10)=0,HLOOKUP(AL$13,IF(baseline_selection=1,'1. Baseline Demand Projection'!$E$20:$J$47,'1. Baseline Demand Projection'!$N$20:$S$47),18)*CHOOSE(volunit,1,1000,1000/325851),AK29+(OFFSET(AL29,0,10-MOD(AL$13,10))-OFFSET(AL29,0,-MOD(AL$13,10)))/10)","v":0},{"$f":"IF(MOD(AM$13,10)=0,HLOOKUP(AM$13,IF(baseline_selection=1,'1. Baseline Demand Projection'!$E$20:$J$47,'1. Baseline Demand Projection'!$N$20:$S$47),18)*CHOOSE(volunit,1,1000,1000/325851),AL29+(OFFSET(AM29,0,10-MOD(AM$13,10))-OFFSET(AM29,0,-MOD(AM$13,10)))/10)","v":0},{"$f":"IF(MOD(AN$13,10)=0,HLOOKUP(AN$13,IF(baseline_selection=1,'1. Baseline Demand Projection'!$E$20:$J$47,'1. Baseline Demand Projection'!$N$20:$S$47),18)*CHOOSE(volunit,1,1000,1000/325851),AM29+(OFFSET(AN29,0,10-MOD(AN$13,10))-OFFSET(AN29,0,-MOD(AN$13,10)))/10)","v":0},{"$f":"IF(MOD(AO$13,10)=0,HLOOKUP(AO$13,IF(baseline_selection=1,'1. Baseline Demand Projection'!$E$20:$J$47,'1. Baseline Demand Projection'!$N$20:$S$47),18)*CHOOSE(volunit,1,1000,1000/325851),AN29+(OFFSET(AO29,0,10-MOD(AO$13,10))-OFFSET(AO29,0,-MOD(AO$13,10)))/10)","v":0},{"$f":"IF(MOD(AP$13,10)=0,HLOOKUP(AP$13,IF(baseline_selection=1,'1. Baseline Demand Projection'!$E$20:$J$47,'1. Baseline Demand Projection'!$N$20:$S$47),18)*CHOOSE(volunit,1,1000,1000/325851),AO29+(OFFSET(AP29,0,10-MOD(AP$13,10))-OFFSET(AP29,0,-MOD(AP$13,10)))/10)","v":0},{"$f":"IF(MOD(AQ$13,10)=0,HLOOKUP(AQ$13,IF(baseline_selection=1,'1. Baseline Demand Projection'!$E$20:$J$47,'1. Baseline Demand Projection'!$N$20:$S$47),18)*CHOOSE(volunit,1,1000,1000/325851),AP29+(OFFSET(AQ29,0,10-MOD(AQ$13,10))-OFFSET(AQ29,0,-MOD(AQ$13,10)))/10)","v":0},{"$f":"IF(MOD(AR$13,10)=0,HLOOKUP(AR$13,IF(baseline_selection=1,'1. Baseline Demand Projection'!$E$20:$J$47,'1. Baseline Demand Projection'!$N$20:$S$47),18)*CHOOSE(volunit,1,1000,1000/325851),AQ29+(OFFSET(AR29,0,10-MOD(AR$13,10))-OFFSET(AR29,0,-MOD(AR$13,10)))/10)","v":0},{"$f":"IF(MOD(AS$13,10)=0,HLOOKUP(AS$13,IF(baseline_selection=1,'1. Baseline Demand Projection'!$E$20:$J$47,'1. Baseline Demand Projection'!$N$20:$S$47),18)*CHOOSE(volunit,1,1000,1000/325851),AR29+(OFFSET(AS29,0,10-MOD(AS$13,10))-OFFSET(AS29,0,-MOD(AS$13,10)))/10)","v":0},{"$f":"IF(MOD(AT$13,10)=0,HLOOKUP(AT$13,IF(baseline_selection=1,'1. Baseline Demand Projection'!$E$20:$J$47,'1. Baseline Demand Projection'!$N$20:$S$47),18)*CHOOSE(volunit,1,1000,1000/325851),AS29+(OFFSET(AT29,0,10-MOD(AT$13,10))-OFFSET(AT29,0,-MOD(AT$13,10)))/10)","v":0},{"$f":"IF(MOD(AU$13,10)=0,HLOOKUP(AU$13,IF(baseline_selection=1,'1. Baseline Demand Projection'!$E$20:$J$47,'1. Baseline Demand Projection'!$N$20:$S$47),18)*CHOOSE(volunit,1,1000,1000/325851),AT29+(OFFSET(AU29,0,10-MOD(AU$13,10))-OFFSET(AU29,0,-MOD(AU$13,10)))/10)","v":0},{"$f":"IF(MOD(AV$13,10)=0,HLOOKUP(AV$13,IF(baseline_selection=1,'1. Baseline Demand Projection'!$E$20:$J$47,'1. Baseline Demand Projection'!$N$20:$S$47),18)*CHOOSE(volunit,1,1000,1000/325851),AU29+(OFFSET(AV29,0,10-MOD(AV$13,10))-OFFSET(AV29,0,-MOD(AV$13,10)))/10)","v":0},{"$f":"IF(MOD(AW$13,10)=0,HLOOKUP(AW$13,IF(baseline_selection=1,'1. Baseline Demand Projection'!$E$20:$J$47,'1. Baseline Demand Projection'!$N$20:$S$47),18)*CHOOSE(volunit,1,1000,1000/325851),AV29+(OFFSET(AW29,0,10-MOD(AW$13,10))-OFFSET(AW29,0,-MOD(AW$13,10)))/10)","v":0},{"$f":"IF(MOD(AX$13,10)=0,HLOOKUP(AX$13,IF(baseline_selection=1,'1. Baseline Demand Projection'!$E$20:$J$47,'1. Baseline Demand Projection'!$N$20:$S$47),18)*CHOOSE(volunit,1,1000,1000/325851),AW29+(OFFSET(AX29,0,10-MOD(AX$13,10))-OFFSET(AX29,0,-MOD(AX$13,10)))/10)","v":0},{"$f":"IF(MOD(AY$13,10)=0,HLOOKUP(AY$13,IF(baseline_selection=1,'1. Baseline Demand Projection'!$E$20:$J$47,'1. Baseline Demand Projection'!$N$20:$S$47),18)*CHOOSE(volunit,1,1000,1000/325851),AX29+(OFFSET(AY29,0,10-MOD(AY$13,10))-OFFSET(AY29,0,-MOD(AY$13,10)))/10)","v":0},{"$f":"IF(MOD(AZ$13,10)=0,HLOOKUP(AZ$13,IF(baseline_selection=1,'1. Baseline Demand Projection'!$E$20:$J$47,'1. Baseline Demand Projection'!$N$20:$S$47),18)*CHOOSE(volunit,1,1000,1000/325851),AY29+(OFFSET(AZ29,0,10-MOD(AZ$13,10))-OFFSET(AZ29,0,-MOD(AZ$13,10)))/10)","v":0},{"$f":"IF(MOD(BA$13,10)=0,HLOOKUP(BA$13,IF(baseline_selection=1,'1. Baseline Demand Projection'!$E$20:$J$47,'1. Baseline Demand Projection'!$N$20:$S$47),18)*CHOOSE(volunit,1,1000,1000/325851),AZ29+(OFFSET(BA29,0,10-MOD(BA$13,10))-OFFSET(BA29,0,-MOD(BA$13,10)))/10)","v":0},{"$f":"IF(C29>0,(BA29/C29)^(1/50)-1,0)","v":0}]
[null,{"$f":"'1. Baseline Demand Projection'!B38","v":"Water Loss"},{"$f":"IF(MOD(C$13,10)=0,HLOOKUP(C$13,IF(baseline_selection=1,'1. Baseline Demand Projection'!$E$20:$J$47,'1. Baseline Demand Projection'!$N$20:$S$47),19)*CHOOSE(volunit,1,1000,1000/325851),B30+(OFFSET(C30,0,10-MOD(C$13,10))-OFFSET(C30,0,-MOD(C$13,10)))/10)","v":0},{"$f":"IF(MOD(D$13,10)=0,HLOOKUP(D$13,IF(baseline_selection=1,'1. Baseline Demand Projection'!$E$20:$J$47,'1. Baseline Demand Projection'!$N$20:$S$47),19)*CHOOSE(volunit,1,1000,1000/325851),C30+(OFFSET(D30,0,10-MOD(D$13,10))-OFFSET(D30,0,-MOD(D$13,10)))/10)","v":0},{"$f":"IF(MOD(E$13,10)=0,HLOOKUP(E$13,IF(baseline_selection=1,'1. Baseline Demand Projection'!$E$20:$J$47,'1. Baseline Demand Projection'!$N$20:$S$47),19)*CHOOSE(volunit,1,1000,1000/325851),D30+(OFFSET(E30,0,10-MOD(E$13,10))-OFFSET(E30,0,-MOD(E$13,10)))/10)","v":0},{"$f":"IF(MOD(F$13,10)=0,HLOOKUP(F$13,IF(baseline_selection=1,'1. Baseline Demand Projection'!$E$20:$J$47,'1. Baseline Demand Projection'!$N$20:$S$47),19)*CHOOSE(volunit,1,1000,1000/325851),E30+(OFFSET(F30,0,10-MOD(F$13,10))-OFFSET(F30,0,-MOD(F$13,10)))/10)","v":0},{"$f":"IF(MOD(G$13,10)=0,HLOOKUP(G$13,IF(baseline_selection=1,'1. Baseline Demand Projection'!$E$20:$J$47,'1. Baseline Demand Projection'!$N$20:$S$47),19)*CHOOSE(volunit,1,1000,1000/325851),F30+(OFFSET(G30,0,10-MOD(G$13,10))-OFFSET(G30,0,-MOD(G$13,10)))/10)","v":0},{"$f":"IF(MOD(H$13,10)=0,HLOOKUP(H$13,IF(baseline_selection=1,'1. Baseline Demand Projection'!$E$20:$J$47,'1. Baseline Demand Projection'!$N$20:$S$47),19)*CHOOSE(volunit,1,1000,1000/325851),G30+(OFFSET(H30,0,10-MOD(H$13,10))-OFFSET(H30,0,-MOD(H$13,10)))/10)","v":0},{"$f":"IF(MOD(I$13,10)=0,HLOOKUP(I$13,IF(baseline_selection=1,'1. Baseline Demand Projection'!$E$20:$J$47,'1. Baseline Demand Projection'!$N$20:$S$47),19)*CHOOSE(volunit,1,1000,1000/325851),H30+(OFFSET(I30,0,10-MOD(I$13,10))-OFFSET(I30,0,-MOD(I$13,10)))/10)","v":0},{"$f":"IF(MOD(J$13,10)=0,HLOOKUP(J$13,IF(baseline_selection=1,'1. Baseline Demand Projection'!$E$20:$J$47,'1. Baseline Demand Projection'!$N$20:$S$47),19)*CHOOSE(volunit,1,1000,1000/325851),I30+(OFFSET(J30,0,10-MOD(J$13,10))-OFFSET(J30,0,-MOD(J$13,10)))/10)","v":0},{"$f":"IF(MOD(K$13,10)=0,HLOOKUP(K$13,IF(baseline_selection=1,'1. Baseline Demand Projection'!$E$20:$J$47,'1. Baseline Demand Projection'!$N$20:$S$47),19)*CHOOSE(volunit,1,1000,1000/325851),J30+(OFFSET(K30,0,10-MOD(K$13,10))-OFFSET(K30,0,-MOD(K$13,10)))/10)","v":0},{"$f":"IF(MOD(L$13,10)=0,HLOOKUP(L$13,IF(baseline_selection=1,'1. Baseline Demand Projection'!$E$20:$J$47,'1. Baseline Demand Projection'!$N$20:$S$47),19)*CHOOSE(volunit,1,1000,1000/325851),K30+(OFFSET(L30,0,10-MOD(L$13,10))-OFFSET(L30,0,-MOD(L$13,10)))/10)","v":0},{"$f":"IF(MOD(M$13,10)=0,HLOOKUP(M$13,IF(baseline_selection=1,'1. Baseline Demand Projection'!$E$20:$J$47,'1. Baseline Demand Projection'!$N$20:$S$47),19)*CHOOSE(volunit,1,1000,1000/325851),L30+(OFFSET(M30,0,10-MOD(M$13,10))-OFFSET(M30,0,-MOD(M$13,10)))/10)","v":0},{"$f":"IF(MOD(N$13,10)=0,HLOOKUP(N$13,IF(baseline_selection=1,'1. Baseline Demand Projection'!$E$20:$J$47,'1. Baseline Demand Projection'!$N$20:$S$47),19)*CHOOSE(volunit,1,1000,1000/325851),M30+(OFFSET(N30,0,10-MOD(N$13,10))-OFFSET(N30,0,-MOD(N$13,10)))/10)","v":0},{"$f":"IF(MOD(O$13,10)=0,HLOOKUP(O$13,IF(baseline_selection=1,'1. Baseline Demand Projection'!$E$20:$J$47,'1. Baseline Demand Projection'!$N$20:$S$47),19)*CHOOSE(volunit,1,1000,1000/325851),N30+(OFFSET(O30,0,10-MOD(O$13,10))-OFFSET(O30,0,-MOD(O$13,10)))/10)","v":0},{"$f":"IF(MOD(P$13,10)=0,HLOOKUP(P$13,IF(baseline_selection=1,'1. Baseline Demand Projection'!$E$20:$J$47,'1. Baseline Demand Projection'!$N$20:$S$47),19)*CHOOSE(volunit,1,1000,1000/325851),O30+(OFFSET(P30,0,10-MOD(P$13,10))-OFFSET(P30,0,-MOD(P$13,10)))/10)","v":0},{"$f":"IF(MOD(Q$13,10)=0,HLOOKUP(Q$13,IF(baseline_selection=1,'1. Baseline Demand Projection'!$E$20:$J$47,'1. Baseline Demand Projection'!$N$20:$S$47),19)*CHOOSE(volunit,1,1000,1000/325851),P30+(OFFSET(Q30,0,10-MOD(Q$13,10))-OFFSET(Q30,0,-MOD(Q$13,10)))/10)","v":0},{"$f":"IF(MOD(R$13,10)=0,HLOOKUP(R$13,IF(baseline_selection=1,'1. Baseline Demand Projection'!$E$20:$J$47,'1. Baseline Demand Projection'!$N$20:$S$47),19)*CHOOSE(volunit,1,1000,1000/325851),Q30+(OFFSET(R30,0,10-MOD(R$13,10))-OFFSET(R30,0,-MOD(R$13,10)))/10)","v":0},{"$f":"IF(MOD(S$13,10)=0,HLOOKUP(S$13,IF(baseline_selection=1,'1. Baseline Demand Projection'!$E$20:$J$47,'1. Baseline Demand Projection'!$N$20:$S$47),19)*CHOOSE(volunit,1,1000,1000/325851),R30+(OFFSET(S30,0,10-MOD(S$13,10))-OFFSET(S30,0,-MOD(S$13,10)))/10)","v":0},{"$f":"IF(MOD(T$13,10)=0,HLOOKUP(T$13,IF(baseline_selection=1,'1. Baseline Demand Projection'!$E$20:$J$47,'1. Baseline Demand Projection'!$N$20:$S$47),19)*CHOOSE(volunit,1,1000,1000/325851),S30+(OFFSET(T30,0,10-MOD(T$13,10))-OFFSET(T30,0,-MOD(T$13,10)))/10)","v":0},{"$f":"IF(MOD(U$13,10)=0,HLOOKUP(U$13,IF(baseline_selection=1,'1. Baseline Demand Projection'!$E$20:$J$47,'1. Baseline Demand Projection'!$N$20:$S$47),19)*CHOOSE(volunit,1,1000,1000/325851),T30+(OFFSET(U30,0,10-MOD(U$13,10))-OFFSET(U30,0,-MOD(U$13,10)))/10)","v":0},{"$f":"IF(MOD(V$13,10)=0,HLOOKUP(V$13,IF(baseline_selection=1,'1. Baseline Demand Projection'!$E$20:$J$47,'1. Baseline Demand Projection'!$N$20:$S$47),19)*CHOOSE(volunit,1,1000,1000/325851),U30+(OFFSET(V30,0,10-MOD(V$13,10))-OFFSET(V30,0,-MOD(V$13,10)))/10)","v":0},{"$f":"IF(MOD(W$13,10)=0,HLOOKUP(W$13,IF(baseline_selection=1,'1. Baseline Demand Projection'!$E$20:$J$47,'1. Baseline Demand Projection'!$N$20:$S$47),19)*CHOOSE(volunit,1,1000,1000/325851),V30+(OFFSET(W30,0,10-MOD(W$13,10))-OFFSET(W30,0,-MOD(W$13,10)))/10)","v":0},{"$f":"IF(MOD(X$13,10)=0,HLOOKUP(X$13,IF(baseline_selection=1,'1. Baseline Demand Projection'!$E$20:$J$47,'1. Baseline Demand Projection'!$N$20:$S$47),19)*CHOOSE(volunit,1,1000,1000/325851),W30+(OFFSET(X30,0,10-MOD(X$13,10))-OFFSET(X30,0,-MOD(X$13,10)))/10)","v":0},{"$f":"IF(MOD(Y$13,10)=0,HLOOKUP(Y$13,IF(baseline_selection=1,'1. Baseline Demand Projection'!$E$20:$J$47,'1. Baseline Demand Projection'!$N$20:$S$47),19)*CHOOSE(volunit,1,1000,1000/325851),X30+(OFFSET(Y30,0,10-MOD(Y$13,10))-OFFSET(Y30,0,-MOD(Y$13,10)))/10)","v":0},{"$f":"IF(MOD(Z$13,10)=0,HLOOKUP(Z$13,IF(baseline_selection=1,'1. Baseline Demand Projection'!$E$20:$J$47,'1. Baseline Demand Projection'!$N$20:$S$47),19)*CHOOSE(volunit,1,1000,1000/325851),Y30+(OFFSET(Z30,0,10-MOD(Z$13,10))-OFFSET(Z30,0,-MOD(Z$13,10)))/10)","v":0},{"$f":"IF(MOD(AA$13,10)=0,HLOOKUP(AA$13,IF(baseline_selection=1,'1. Baseline Demand Projection'!$E$20:$J$47,'1. Baseline Demand Projection'!$N$20:$S$47),19)*CHOOSE(volunit,1,1000,1000/325851),Z30+(OFFSET(AA30,0,10-MOD(AA$13,10))-OFFSET(AA30,0,-MOD(AA$13,10)))/10)","v":0},{"$f":"IF(MOD(AB$13,10)=0,HLOOKUP(AB$13,IF(baseline_selection=1,'1. Baseline Demand Projection'!$E$20:$J$47,'1. Baseline Demand Projection'!$N$20:$S$47),19)*CHOOSE(volunit,1,1000,1000/325851),AA30+(OFFSET(AB30,0,10-MOD(AB$13,10))-OFFSET(AB30,0,-MOD(AB$13,10)))/10)","v":0},{"$f":"IF(MOD(AC$13,10)=0,HLOOKUP(AC$13,IF(baseline_selection=1,'1. Baseline Demand Projection'!$E$20:$J$47,'1. Baseline Demand Projection'!$N$20:$S$47),19)*CHOOSE(volunit,1,1000,1000/325851),AB30+(OFFSET(AC30,0,10-MOD(AC$13,10))-OFFSET(AC30,0,-MOD(AC$13,10)))/10)","v":0},{"$f":"IF(MOD(AD$13,10)=0,HLOOKUP(AD$13,IF(baseline_selection=1,'1. Baseline Demand Projection'!$E$20:$J$47,'1. Baseline Demand Projection'!$N$20:$S$47),19)*CHOOSE(volunit,1,1000,1000/325851),AC30+(OFFSET(AD30,0,10-MOD(AD$13,10))-OFFSET(AD30,0,-MOD(AD$13,10)))/10)","v":0},{"$f":"IF(MOD(AE$13,10)=0,HLOOKUP(AE$13,IF(baseline_selection=1,'1. Baseline Demand Projection'!$E$20:$J$47,'1. Baseline Demand Projection'!$N$20:$S$47),19)*CHOOSE(volunit,1,1000,1000/325851),AD30+(OFFSET(AE30,0,10-MOD(AE$13,10))-OFFSET(AE30,0,-MOD(AE$13,10)))/10)","v":0},{"$f":"IF(MOD(AF$13,10)=0,HLOOKUP(AF$13,IF(baseline_selection=1,'1. Baseline Demand Projection'!$E$20:$J$47,'1. Baseline Demand Projection'!$N$20:$S$47),19)*CHOOSE(volunit,1,1000,1000/325851),AE30+(OFFSET(AF30,0,10-MOD(AF$13,10))-OFFSET(AF30,0,-MOD(AF$13,10)))/10)","v":0},{"$f":"IF(MOD(AG$13,10)=0,HLOOKUP(AG$13,IF(baseline_selection=1,'1. Baseline Demand Projection'!$E$20:$J$47,'1. Baseline Demand Projection'!$N$20:$S$47),19)*CHOOSE(volunit,1,1000,1000/325851),AF30+(OFFSET(AG30,0,10-MOD(AG$13,10))-OFFSET(AG30,0,-MOD(AG$13,10)))/10)","v":0},{"$f":"IF(MOD(AH$13,10)=0,HLOOKUP(AH$13,IF(baseline_selection=1,'1. Baseline Demand Projection'!$E$20:$J$47,'1. Baseline Demand Projection'!$N$20:$S$47),19)*CHOOSE(volunit,1,1000,1000/325851),AG30+(OFFSET(AH30,0,10-MOD(AH$13,10))-OFFSET(AH30,0,-MOD(AH$13,10)))/10)","v":0},{"$f":"IF(MOD(AI$13,10)=0,HLOOKUP(AI$13,IF(baseline_selection=1,'1. Baseline Demand Projection'!$E$20:$J$47,'1. Baseline Demand Projection'!$N$20:$S$47),19)*CHOOSE(volunit,1,1000,1000/325851),AH30+(OFFSET(AI30,0,10-MOD(AI$13,10))-OFFSET(AI30,0,-MOD(AI$13,10)))/10)","v":0},{"$f":"IF(MOD(AJ$13,10)=0,HLOOKUP(AJ$13,IF(baseline_selection=1,'1. Baseline Demand Projection'!$E$20:$J$47,'1. Baseline Demand Projection'!$N$20:$S$47),19)*CHOOSE(volunit,1,1000,1000/325851),AI30+(OFFSET(AJ30,0,10-MOD(AJ$13,10))-OFFSET(AJ30,0,-MOD(AJ$13,10)))/10)","v":0},{"$f":"IF(MOD(AK$13,10)=0,HLOOKUP(AK$13,IF(baseline_selection=1,'1. Baseline Demand Projection'!$E$20:$J$47,'1. Baseline Demand Projection'!$N$20:$S$47),19)*CHOOSE(volunit,1,1000,1000/325851),AJ30+(OFFSET(AK30,0,10-MOD(AK$13,10))-OFFSET(AK30,0,-MOD(AK$13,10)))/10)","v":0},{"$f":"IF(MOD(AL$13,10)=0,HLOOKUP(AL$13,IF(baseline_selection=1,'1. Baseline Demand Projection'!$E$20:$J$47,'1. Baseline Demand Projection'!$N$20:$S$47),19)*CHOOSE(volunit,1,1000,1000/325851),AK30+(OFFSET(AL30,0,10-MOD(AL$13,10))-OFFSET(AL30,0,-MOD(AL$13,10)))/10)","v":0},{"$f":"IF(MOD(AM$13,10)=0,HLOOKUP(AM$13,IF(baseline_selection=1,'1. Baseline Demand Projection'!$E$20:$J$47,'1. Baseline Demand Projection'!$N$20:$S$47),19)*CHOOSE(volunit,1,1000,1000/325851),AL30+(OFFSET(AM30,0,10-MOD(AM$13,10))-OFFSET(AM30,0,-MOD(AM$13,10)))/10)","v":0},{"$f":"IF(MOD(AN$13,10)=0,HLOOKUP(AN$13,IF(baseline_selection=1,'1. Baseline Demand Projection'!$E$20:$J$47,'1. Baseline Demand Projection'!$N$20:$S$47),19)*CHOOSE(volunit,1,1000,1000/325851),AM30+(OFFSET(AN30,0,10-MOD(AN$13,10))-OFFSET(AN30,0,-MOD(AN$13,10)))/10)","v":0},{"$f":"IF(MOD(AO$13,10)=0,HLOOKUP(AO$13,IF(baseline_selection=1,'1. Baseline Demand Projection'!$E$20:$J$47,'1. Baseline Demand Projection'!$N$20:$S$47),19)*CHOOSE(volunit,1,1000,1000/325851),AN30+(OFFSET(AO30,0,10-MOD(AO$13,10))-OFFSET(AO30,0,-MOD(AO$13,10)))/10)","v":0},{"$f":"IF(MOD(AP$13,10)=0,HLOOKUP(AP$13,IF(baseline_selection=1,'1. Baseline Demand Projection'!$E$20:$J$47,'1. Baseline Demand Projection'!$N$20:$S$47),19)*CHOOSE(volunit,1,1000,1000/325851),AO30+(OFFSET(AP30,0,10-MOD(AP$13,10))-OFFSET(AP30,0,-MOD(AP$13,10)))/10)","v":0},{"$f":"IF(MOD(AQ$13,10)=0,HLOOKUP(AQ$13,IF(baseline_selection=1,'1. Baseline Demand Projection'!$E$20:$J$47,'1. Baseline Demand Projection'!$N$20:$S$47),19)*CHOOSE(volunit,1,1000,1000/325851),AP30+(OFFSET(AQ30,0,10-MOD(AQ$13,10))-OFFSET(AQ30,0,-MOD(AQ$13,10)))/10)","v":0},{"$f":"IF(MOD(AR$13,10)=0,HLOOKUP(AR$13,IF(baseline_selection=1,'1. Baseline Demand Projection'!$E$20:$J$47,'1. Baseline Demand Projection'!$N$20:$S$47),19)*CHOOSE(volunit,1,1000,1000/325851),AQ30+(OFFSET(AR30,0,10-MOD(AR$13,10))-OFFSET(AR30,0,-MOD(AR$13,10)))/10)","v":0},{"$f":"IF(MOD(AS$13,10)=0,HLOOKUP(AS$13,IF(baseline_selection=1,'1. Baseline Demand Projection'!$E$20:$J$47,'1. Baseline Demand Projection'!$N$20:$S$47),19)*CHOOSE(volunit,1,1000,1000/325851),AR30+(OFFSET(AS30,0,10-MOD(AS$13,10))-OFFSET(AS30,0,-MOD(AS$13,10)))/10)","v":0},{"$f":"IF(MOD(AT$13,10)=0,HLOOKUP(AT$13,IF(baseline_selection=1,'1. Baseline Demand Projection'!$E$20:$J$47,'1. Baseline Demand Projection'!$N$20:$S$47),19)*CHOOSE(volunit,1,1000,1000/325851),AS30+(OFFSET(AT30,0,10-MOD(AT$13,10))-OFFSET(AT30,0,-MOD(AT$13,10)))/10)","v":0},{"$f":"IF(MOD(AU$13,10)=0,HLOOKUP(AU$13,IF(baseline_selection=1,'1. Baseline Demand Projection'!$E$20:$J$47,'1. Baseline Demand Projection'!$N$20:$S$47),19)*CHOOSE(volunit,1,1000,1000/325851),AT30+(OFFSET(AU30,0,10-MOD(AU$13,10))-OFFSET(AU30,0,-MOD(AU$13,10)))/10)","v":0},{"$f":"IF(MOD(AV$13,10)=0,HLOOKUP(AV$13,IF(baseline_selection=1,'1. Baseline Demand Projection'!$E$20:$J$47,'1. Baseline Demand Projection'!$N$20:$S$47),19)*CHOOSE(volunit,1,1000,1000/325851),AU30+(OFFSET(AV30,0,10-MOD(AV$13,10))-OFFSET(AV30,0,-MOD(AV$13,10)))/10)","v":0},{"$f":"IF(MOD(AW$13,10)=0,HLOOKUP(AW$13,IF(baseline_selection=1,'1. Baseline Demand Projection'!$E$20:$J$47,'1. Baseline Demand Projection'!$N$20:$S$47),19)*CHOOSE(volunit,1,1000,1000/325851),AV30+(OFFSET(AW30,0,10-MOD(AW$13,10))-OFFSET(AW30,0,-MOD(AW$13,10)))/10)","v":0},{"$f":"IF(MOD(AX$13,10)=0,HLOOKUP(AX$13,IF(baseline_selection=1,'1. Baseline Demand Projection'!$E$20:$J$47,'1. Baseline Demand Projection'!$N$20:$S$47),19)*CHOOSE(volunit,1,1000,1000/325851),AW30+(OFFSET(AX30,0,10-MOD(AX$13,10))-OFFSET(AX30,0,-MOD(AX$13,10)))/10)","v":0},{"$f":"IF(MOD(AY$13,10)=0,HLOOKUP(AY$13,IF(baseline_selection=1,'1. Baseline Demand Projection'!$E$20:$J$47,'1. Baseline Demand Projection'!$N$20:$S$47),19)*CHOOSE(volunit,1,1000,1000/325851),AX30+(OFFSET(AY30,0,10-MOD(AY$13,10))-OFFSET(AY30,0,-MOD(AY$13,10)))/10)","v":0},{"$f":"IF(MOD(AZ$13,10)=0,HLOOKUP(AZ$13,IF(baseline_selection=1,'1. Baseline Demand Projection'!$E$20:$J$47,'1. Baseline Demand Projection'!$N$20:$S$47),19)*CHOOSE(volunit,1,1000,1000/325851),AY30+(OFFSET(AZ30,0,10-MOD(AZ$13,10))-OFFSET(AZ30,0,-MOD(AZ$13,10)))/10)","v":0},{"$f":"IF(MOD(BA$13,10)=0,HLOOKUP(BA$13,IF(baseline_selection=1,'1. Baseline Demand Projection'!$E$20:$J$47,'1. Baseline Demand Projection'!$N$20:$S$47),19)*CHOOSE(volunit,1,1000,1000/325851),AZ30+(OFFSET(BA30,0,10-MOD(BA$13,10))-OFFSET(BA30,0,-MOD(BA$13,10)))/10)","v":0},{"$f":"IF(C30>0,(BA30/C30)^(1/50)-1,0)","v":0}]
[null,{"$f":"'1. Baseline Demand Projection'!B39","v":"Production Total"},{"$f":"SUM(C28:C30)","v":0},{"$f":"SUM(D28:D30)","v":0},0,0,0,0,0,0,0,0,0,0,0,0,0,0,0,0,0,0,0,0,0,0,0,0,0,0,0,0,0,0,0,0,0,0,0,0,0,0,0,0,0,0,0,0,0,0,0,0,0,0]
[null,{"$f":"'1. Baseline Demand Projection'!B47","v":"Water Loss %"},{"$f":"C30/C31","v":{"$error":"#DIV/0!"}},{"$f":"D30/D31","v":{"$error":"#DIV/0!"}},{"$error":"#DIV/0!"},{"$error":"#DIV/0!"},{"$error":"#DIV/0!"},{"$error":"#DIV/0!"},{"$error":"#DIV/0!"},{"$error":"#DIV/0!"},{"$error":"#DIV/0!"},{"$error":"#DIV/0!"},{"$error":"#DIV/0!"},{"$error":"#DIV/0!"},{"$error":"#DIV/0!"},{"$error":"#DIV/0!"},{"$error":"#DIV/0!"},{"$error":"#DIV/0!"},{"$error":"#DIV/0!"},{"$error":"#DIV/0!"},{"$error":"#DIV/0!"},{"$error":"#DIV/0!"},{"$error":"#DIV/0!"},{"$error":"#DIV/0!"},{"$error":"#DIV/0!"},{"$error":"#DIV/0!"},{"$error":"#DIV/0!"},{"$error":"#DIV/0!"},{"$error":"#DIV/0!"},{"$error":"#DIV/0!"},{"$error":"#DIV/0!"},{"$error":"#DIV/0!"},{"$error":"#DIV/0!"},{"$error":"#DIV/0!"},{"$error":"#DIV/0!"},{"$error":"#DIV/0!"},{"$error":"#DIV/0!"},{"$error":"#DIV/0!"},{"$error":"#DIV/0!"},{"$error":"#DIV/0!"},{"$error":"#DIV/0!"},{"$error":"#DIV/0!"},{"$error":"#DIV/0!"},{"$error":"#DIV/0!"},{"$error":"#DIV/0!"},{"$error":"#DIV/0!"},{"$error":"#DIV/0!"},{"$error":"#DIV/0!"},{"$error":"#DIV/0!"},{"$error":"#DIV/0!"},{"$error":"#DIV/0!"},{"$error":"#DIV/0!"},{"$error":"#DIV/0!"},{"$error":"#DIV/0!"}]
[]
[null,{"$f":"'1. Baseline Demand Projection'!B41","v":"Baseline GPCD"}]
[null,{"$f":"'1. Baseline Demand Projection'!B42","v":"Total"},{"$f":"IF(C16>0,C31/C16/0.365,0)*CHOOSE(volunit,1,1/1000,325851/1000)","v":0},0,0,0,0,0,0,0,0,0,0,0,0,0,0,0,0,0,0,0,0,0,0,0,0,0,0,0,0,0,0,0,{"$f":"IF(AI16>0,AI31/AI16/0.365,0)*CHOOSE(volunit,1,1/1000,325851/1000)","v":0},0,0,0,0,0,0,0,0,0,0,0,0,0,0,0,0,0,0,{"$f":"IF(C35>0,(BA35/C35)^(1/50)-1,0)","v":0}]
[null,{"$f":"'1. Baseline Demand Projection'!B43","v":"Residential"},{"$f":"IF(C16>0,SUM(C25:C26)/C16/0.365,0)*CHOOSE(volunit,1,1/1000,325851/1000)","v":0},0,0,0,0,0,0,0,0,0,0,0,0,0,0,0,0,0,0,0,0,0,0,0,0,0,0,0,0,0,0,0,{"$f":"IF(AI16>0,SUM(AI25:AI26)/AI16/0.365,0)*CHOOSE(volunit,1,1/1000,325851/1000)","v":0},0,0,0,0,0,0,0,0,0,0,0,0,0,0,0,0,0,0,0]
[null,{"$f":"'1. Baseline Demand Projection'!B44","v":"Water Loss"},{"$f":"IF(C16>0,C30/C16/0.365,0)*CHOOSE(volunit,1,1/1000,325851/1000)","v":0},0,0,0,0,0,0,0,0,0,0,0,0,0,0,0,0,0,0,0,0,0,0,0,0,0,0,0,0,0,0,0,{"$f":"IF(AI16>0,AI30/AI16/0.365,0)*CHOOSE(volunit,1,1/1000,325851/1000)","v":0},0,0,0,0,0,0,0,0,0,0,0,0,0,0,0,0,0,0,0]
[]
[null,"Plan Active Savings",{"$f":"\"(in \" & volunit_selected & \")\"","v":"(in kGal)"},null,null,null,null,null,null,null,null,null,null,null,null,null,null,null,null,null,null,null,null,null,null,null,null,null,null,null,null,null,null,null,null,null,null,null,null,null,null,null,null,null,null,null,null,null,null,null,null,null,null,null,null,"Savings % of Baseline",2020,2024,2029,2030,2040,2050,2060,2070]
[null,"Single Family",{"$f":"SUM('2. Conservation Measures'!CO34,'2. Conservation Measures'!CO84,'2. Conservation Measures'!CO155)*CHOOSE(volunit,1,1000,1000/325851)","v":{"$error":"#VALUE!"}},{"$f":"SUM('2. Conservation Measures'!CP34,'2. Conservation Measures'!CP84,'2. Conservation Measures'!CP155)*CHOOSE(volunit,1,1000,1000/325851)","v":{"$error":"#VALUE!"}},{"$f":"SUM('2. Conservation Measures'!CQ34,'2. Conservation Measures'!CQ84,'2. Conservation Measures'!CQ155)*CHOOSE(volunit,1,1000,1000/325851)","v":{"$error":"#VALUE!"}},{"$f":"SUM('2. Conservation Measures'!CR34,'2. Conservation Measures'!CR84,'2. Conservation Measures'!CR155)*CHOOSE(volunit,1,1000,1000/325851)","v":{"$error":"#VALUE!"}},{"$f":"SUM('2. Conservation Measures'!CS34,'2. Conservation Measures'!CS84,'2. Conservation Measures'!CS155)*CHOOSE(volunit,1,1000,1000/325851)","v":{"$error":"#VALUE!"}},{"$f":"SUM('2. Conservation Measures'!CT34,'2. Conservation Measures'!CT84,'2. Conservation Measures'!CT155)*CHOOSE(volunit,1,1000,1000/325851)","v":{"$error":"#VALUE!"}},{"$f":"SUM('2. Conservation Measures'!CU34,'2. Conservation Measures'!CU84,'2. Conservation Measures'!CU155)*CHOOSE(volunit,1,1000,1000/325851)","v":{"$error":"#VALUE!"}},{"$f":"SUM('2. Conservation Measures'!CV34,'2. Conservation Measures'!CV84,'2. Conservation Measures'!CV155)*CHOOSE(volunit,1,1000,1000/325851)","v":{"$error":"#VALUE!"}},{"$f":"SUM('2. Conservation Measures'!CW34,'2. Conservation Measures'!CW84,'2. Conservation Measures'!CW155)*CHOOSE(volunit,1,1000,1000/325851)","v":{"$error":"#VALUE!"}},{"$f":"SUM('2. Conservation Measures'!CX34,'2. Conservation Measures'!CX84,'2. Conservation Measures'!CX155)*CHOOSE(volunit,1,1000,1000/325851)","v":{"$error":"#VALUE!"}},{"$f":"SUM('2. Conservation Measures'!CY34,'2. Conservation Measures'!CY84,'2. Conservation Measures'!CY155)*CHOOSE(volunit,1,1000,1000/325851)","v":{"$error":"#VALUE!"}},{"$f":"SUM('2. Conservation Measures'!CZ34,'2. Conservation Measures'!CZ84,'2. Conservation Measures'!CZ155)*CHOOSE(volunit,1,1000,1000/325851)","v":{"$error":"#VALUE!"}},{"$f":"SUM('2. Conservation Measures'!DA34,'2. Conservation Measures'!DA84,'2. Conservation Measures'!DA155)*CHOOSE(volunit,1,1000,1000/325851)","v":{"$error":"#VALUE!"}},{"$f":"SUM('2. Conservation Measures'!DB34,'2. Conservation Measures'!DB84,'2. Conservation Measures'!DB155)*CHOOSE(volunit,1,1000,1000/325851)","v":{"$error":"#VALUE!"}},{"$f":"SUM('2. Conservation Measures'!DC34,'2. Conservation Measures'!DC84,'2. Conservation Measures'!DC155)*CHOOSE(volunit,1,1000,1000/325851)","v":{"$error":"#VALUE!"}},{"$f":"SUM('2. Conservation Measures'!DD34,'2. Conservation Measures'!DD84,'2. Conservation Measures'!DD155)*CHOOSE(volunit,1,1000,1000/325851)","v":{"$error":"#VALUE!"}},{"$f":"SUM('2. Conservation Measures'!DE34,'2. Conservation Measures'!DE84,'2. Conservation Measures'!DE155)*CHOOSE(volunit,1,1000,1000/325851)","v":{"$error":"#VALUE!"}},{"$f":"SUM('2. Conservation Measures'!DF34,'2. Conservation Measures'!DF84,'2. Conservation Measures'!DF155)*CHOOSE(volunit,1,1000,1000/325851)","v":{"$error":"#VALUE!"}},{"$f":"SUM('2. Conservation Measures'!DG34,'2. Conservation Measures'!DG84,'2. Conservation Measures'!DG155)*CHOOSE(volunit,1,1000,1000/325851)","v":{"$error":"#VALUE!"}},{"$f":"SUM('2. Conservation Measures'!DH34,'2. Conservation Measures'!DH84,'2. Conservation Measures'!DH155)*CHOOSE(volunit,1,1000,1000/325851)","v":{"$error":"#VALUE!"}},{"$f":"SUM('2. Conservation Measures'!DI34,'2. Conservation Measures'!DI84,'2. Conservation Measures'!DI155)*CHOOSE(volunit,1,1000,1000/325851)","v":{"$error":"#VALUE!"}},{"$f":"SUM('2. Conservation Measures'!DJ34,'2. Conservation Measures'!DJ84,'2. Conservation Measures'!DJ155)*CHOOSE(volunit,1,1000,1000/325851)","v":{"$error":"#VALUE!"}},{"$f":"SUM('2. Conservation Measures'!DK34,'2. Conservation Measures'!DK84,'2. Conservation Measures'!DK155)*CHOOSE(volunit,1,1000,1000/325851)","v":{"$error":"#VALUE!"}},{"$f":"SUM('2. Conservation Measures'!DL34,'2. Conservation Measures'!DL84,'2. Conservation Measures'!DL155)*CHOOSE(volunit,1,1000,1000/325851)","v":{"$error":"#VALUE!"}},{"$f":"SUM('2. Conservation Measures'!DM34,'2. Conservation Measures'!DM84,'2. Conservation Measures'!DM155)*CHOOSE(volunit,1,1000,1000/325851)","v":{"$error":"#VALUE!"}},{"$f":"SUM('2. Conservation Measures'!DN34,'2. Conservation Measures'!DN84,'2. Conservation Measures'!DN155)*CHOOSE(volunit,1,1000,1000/325851)","v":{"$error":"#VALUE!"}},{"$f":"SUM('2. Conservation Measures'!DO34,'2. Conservation Measures'!DO84,'2. Conservation Measures'!DO155)*CHOOSE(volunit,1,1000,1000/325851)","v":{"$error":"#VALUE!"}},{"$f":"SUM('2. Conservation Measures'!DP34,'2. Conservation Measures'!DP84,'2. Conservation Measures'!DP155)*CHOOSE(volunit,1,1000,1000/325851)","v":{"$error":"#VALUE!"}},{"$f":"SUM('2. Conservation Measures'!DQ34,'2. Conservation Measures'!DQ84,'2. Conservation Measures'!DQ155)*CHOOSE(volunit,1,1000,1000/325851)","v":{"$error":"#VALUE!"}},{"$f":"SUM('2. Conservation Measures'!DR34,'2. Conservation Measures'!DR84,'2. Conservation Measures'!DR155)*CHOOSE(volunit,1,1000,1000/325851)","v":{"$error":"#VALUE!"}},{"$f":"SUM('2. Conservation Measures'!DS34,'2. Conservation Measures'!DS84,'2. Conservation Measures'!DS155)*CHOOSE(volunit,1,1000,1000/325851)","v":{"$error":"#VALUE!"}},{"$f":"SUM('2. Conservation Measures'!DT34,'2. Conservation Measures'!DT84,'2. Conservation Measures'!DT155)*CHOOSE(volunit,1,1000,1000/325851)","v":{"$error":"#VALUE!"}},{"$f":"SUM('2. Conservation Measures'!DU34,'2. Conservation Measures'!DU84,'2. Conservation Measures'!DU155)*CHOOSE(volunit,1,1000,1000/325851)","v":{"$error":"#VALUE!"}},{"$f":"SUM('2. Conservation Measures'!DV34,'2. Conservation Measures'!DV84,'2. Conservation Measures'!DV155)*CHOOSE(volunit,1,1000,1000/325851)","v":{"$error":"#VALUE!"}},{"$f":"SUM('2. Conservation Measures'!DW34,'2. Conservation Measures'!DW84,'2. Conservation Measures'!DW155)*CHOOSE(volunit,1,1000,1000/325851)","v":{"$error":"#VALUE!"}},{"$f":"SUM('2. Conservation Measures'!DX34,'2. Conservation Measures'!DX84,'2. Conservation Measures'!DX155)*CHOOSE(volunit,1,1000,1000/325851)","v":{"$error":"#VALUE!"}},{"$f":"SUM('2. Conservation Measures'!DY34,'2. Conservation Measures'!DY84,'2. Conservation Measures'!DY155)*CHOOSE(volunit,1,1000,1000/325851)","v":{"$error":"#VALUE!"}},{"$f":"SUM('2. Conservation Measures'!DZ34,'2. Conservation Measures'!DZ84,'2. Conservation Measures'!DZ155)*CHOOSE(volunit,1,1000,1000/325851)","v":{"$error":"#VALUE!"}},{"$f":"SUM('2. Conservation Measures'!EA34,'2. Conservation Measures'!EA84,'2. Conservation Measures'!EA155)*CHOOSE(volunit,1,1000,1000/325851)","v":{"$error":"#VALUE!"}},{"$f":"SUM('2. Conservation Measures'!EB34,'2. Conservation Measures'!EB84,'2. Conservation Measures'!EB155)*CHOOSE(volunit,1,1000,1000/325851)","v":{"$error":"#VALUE!"}},{"$f":"SUM('2. Conservation Measures'!EC34,'2. Conservation Measures'!EC84,'2. Conservation Measures'!EC155)*CHOOSE(volunit,1,1000,1000/325851)","v":{"$error":"#VALUE!"}},{"$f":"SUM('2. Conservation Measures'!ED34,'2. Conservation Measures'!ED84,'2. Conservation Measures'!ED155)*CHOOSE(volunit,1,1000,1000/325851)","v":{"$error":"#VALUE!"}},{"$f":"SUM('2. Conservation Measures'!EE34,'2. Conservation Measures'!EE84,'2. Conservation Measures'!EE155)*CHOOSE(volunit,1,1000,1000/325851)","v":{"$error":"#VALUE!"}},{"$f":"SUM('2. Conservation Measures'!EF34,'2. Conservation Measures'!EF84,'2. Conservation Measures'!EF155)*CHOOSE(volunit,1,1000,1000/325851)","v":{"$error":"#VALUE!"}},{"$f":"SUM('2. Conservation Measures'!EG34,'2. Conservation Measures'!EG84,'2. Conservation Measures'!EG155)*CHOOSE(volunit,1,1000,1000/325851)","v":{"$error":"#VALUE!"}},{"$f":"SUM('2. Conservation Measures'!EH34,'2. Conservation Measures'!EH84,'2. Conservation Measures'!EH155)*CHOOSE(volunit,1,1000,1000/325851)","v":{"$error":"#VALUE!"}},{"$f":"SUM('2. Conservation Measures'!EI34,'2. Conservation Measures'!EI84,'2. Conservation Measures'!EI155)*CHOOSE(volunit,1,1000,1000/325851)","v":{"$error":"#VALUE!"}},{"$f":"SUM('2. Conservation Measures'!EJ34,'2. Conservation Measures'!EJ84,'2. Conservation Measures'!EJ155)*CHOOSE(volunit,1,1000,1000/325851)","v":{"$error":"#VALUE!"}},{"$f":"SUM('2. Conservation Measures'!EK34,'2. Conservation Measures'!EK84,'2. Conservation Measures'!EK155)*CHOOSE(volunit,1,1000,1000/325851)","v":{"$error":"#VALUE!"}},{"$f":"SUM('2. Conservation Measures'!EL34,'2. Conservation Measures'!EL84,'2. Conservation Measures'!EL155)*CHOOSE(volunit,1,1000,1000/325851)","v":{"$error":"#VALUE!"}},{"$f":"SUM('2. Conservation Measures'!EM34,'2. Conservation Measures'!EM84,'2. Conservation Measures'!EM155)*CHOOSE(volunit,1,1000,1000/325851)","v":{"$error":"#VALUE!"}},null,null,{"$f":"B40","v":"Single Family"},{"$f":"C40/C25","v":{"$error":"#VALUE!"}},{"$f":"G40/G25","v":{"$error":"#VALUE!"}},{"$f":"L40/L25","v":{"$error":"#VALUE!"}},{"$error":"#VALUE!"},{"$f":"W40/W25","v":{"$error":"#VALUE!"}},{"$f":"AG40/AG25","v":{"$error":"#VALUE!"}},{"$f":"AQ40/AQ25","v":{"$error":"#VALUE!"}},{"$f":"BA40/BA25","v":{"$error":"#VALUE!"}}]
[null,"Multi Family",{"$f":"SUM('2. Conservation Measures'!CO45,'2. Conservation Measures'!CO106,'2. Conservation Measures'!CO156)*CHOOSE(volunit,1,1000,1000/325851)","v":{"$error":"#VALUE!"}},{"$f":"SUM('2. Conservation Measures'!CP45,'2. Conservation Measures'!CP106,'2. Conservation Measures'!CP156)*CHOOSE(volunit,1,1000,1000/325851)","v":{"$error":"#VALUE!"}},{"$f":"SUM('2. Conservation Measures'!CQ45,'2. Conservation Measures'!CQ106,'2. Conservation Measures'!CQ156)*CHOOSE(volunit,1,1000,1000/325851)","v":{"$error":"#VALUE!"}},{"$f":"SUM('2. Conservation Measures'!CR45,'2. Conservation Measures'!CR106,'2. Conservation Measures'!CR156)*CHOOSE(volunit,1,1000,1000/325851)","v":{"$error":"#VALUE!"}},{"$f":"SUM('2. Conservation Measures'!CS45,'2. Conservation Measures'!CS106,'2. Conservation Measures'!CS156)*CHOOSE(volunit,1,1000,1000/325851)","v":{"$error":"#VALUE!"}},{"$f":"SUM('2. Conservation Measures'!CT45,'2. Conservation Measures'!CT106,'2. Conservation Measures'!CT156)*CHOOSE(volunit,1,1000,1000/325851)","v":{"$error":"#VALUE!"}},{"$f":"SUM('2. Conservation Measures'!CU45,'2. Conservation Measures'!CU106,'2. Conservation Measures'!CU156)*CHOOSE(volunit,1,1000,1000/325851)","v":{"$error":"#VALUE!"}},{"$f":"SUM('2. Conservation Measures'!CV45,'2. Conservation Measures'!CV106,'2. Conservation Measures'!CV156)*CHOOSE(volunit,1,1000,1000/325851)","v":{"$error":"#VALUE!"}},{"$f":"SUM('2. Conservation Measures'!CW45,'2. Conservation Measures'!CW106,'2. Conservation Measures'!CW156)*CHOOSE(volunit,1,1000,1000/325851)","v":{"$error":"#VALUE!"}},{"$f":"SUM('2. Conservation Measures'!CX45,'2. Conservation Measures'!CX106,'2. Conservation Measures'!CX156)*CHOOSE(volunit,1,1000,1000/325851)","v":{"$error":"#VALUE!"}},{"$f":"SUM('2. Conservation Measures'!CY45,'2. Conservation Measures'!CY106,'2. Conservation Measures'!CY156)*CHOOSE(volunit,1,1000,1000/325851)","v":{"$error":"#VALUE!"}},{"$f":"SUM('2. Conservation Measures'!CZ45,'2. Conservation Measures'!CZ106,'2. Conservation Measures'!CZ156)*CHOOSE(volunit,1,1000,1000/325851)","v":{"$error":"#VALUE!"}},{"$f":"SUM('2. Conservation Measures'!DA45,'2. Conservation Measures'!DA106,'2. Conservation Measures'!DA156)*CHOOSE(volunit,1,1000,1000/325851)","v":{"$error":"#VALUE!"}},{"$f":"SUM('2. Conservation Measures'!DB45,'2. Conservation Measures'!DB106,'2. Conservation Measures'!DB156)*CHOOSE(volunit,1,1000,1000/325851)","v":{"$error":"#VALUE!"}},{"$f":"SUM('2. Conservation Measures'!DC45,'2. Conservation Measures'!DC106,'2. Conservation Measures'!DC156)*CHOOSE(volunit,1,1000,1000/325851)","v":{"$error":"#VALUE!"}},{"$f":"SUM('2. Conservation Measures'!DD45,'2. Conservation Measures'!DD106,'2. Conservation Measures'!DD156)*CHOOSE(volunit,1,1000,1000/325851)","v":{"$error":"#VALUE!"}},{"$f":"SUM('2. Conservation Measures'!DE45,'2. Conservation Measures'!DE106,'2. Conservation Measures'!DE156)*CHOOSE(volunit,1,1000,1000/325851)","v":{"$error":"#VALUE!"}},{"$f":"SUM('2. Conservation Measures'!DF45,'2. Conservation Measures'!DF106,'2. Conservation Measures'!DF156)*CHOOSE(volunit,1,1000,1000/325851)","v":{"$error":"#VALUE!"}},{"$f":"SUM('2. Conservation Measures'!DG45,'2. Conservation Measures'!DG106,'2. Conservation Measures'!DG156)*CHOOSE(volunit,1,1000,1000/325851)","v":{"$error":"#VALUE!"}},{"$f":"SUM('2. Conservation Measures'!DH45,'2. Conservation Measures'!DH106,'2. Conservation Measures'!DH156)*CHOOSE(volunit,1,1000,1000/325851)","v":{"$error":"#VALUE!"}},{"$f":"SUM('2. Conservation Measures'!DI45,'2. Conservation Measures'!DI106,'2. Conservation Measures'!DI156)*CHOOSE(volunit,1,1000,1000/325851)","v":{"$error":"#VALUE!"}},{"$f":"SUM('2. Conservation Measures'!DJ45,'2. Conservation Measures'!DJ106,'2. Conservation Measures'!DJ156)*CHOOSE(volunit,1,1000,1000/325851)","v":{"$error":"#VALUE!"}},{"$f":"SUM('2. Conservation Measures'!DK45,'2. Conservation Measures'!DK106,'2. Conservation Measures'!DK156)*CHOOSE(volunit,1,1000,1000/325851)","v":{"$error":"#VALUE!"}},{"$f":"SUM('2. Conservation Measures'!DL45,'2. Conservation Measures'!DL106,'2. Conservation Measures'!DL156)*CHOOSE(volunit,1,1000,1000/325851)","v":{"$error":"#VALUE!"}},{"$f":"SUM('2. Conservation Measures'!DM45,'2. Conservation Measures'!DM106,'2. Conservation Measures'!DM156)*CHOOSE(volunit,1,1000,1000/325851)","v":{"$error":"#VALUE!"}},{"$f":"SUM('2. Conservation Measures'!DN45,'2. Conservation Measures'!DN106,'2. Conservation Measures'!DN156)*CHOOSE(volunit,1,1000,1000/325851)","v":{"$error":"#VALUE!"}},{"$f":"SUM('2. Conservation Measures'!DO45,'2. Conservation Measures'!DO106,'2. Conservation Measures'!DO156)*CHOOSE(volunit,1,1000,1000/325851)","v":{"$error":"#VALUE!"}},{"$f":"SUM('2. Conservation Measures'!DP45,'2. Conservation Measures'!DP106,'2. Conservation Measures'!DP156)*CHOOSE(volunit,1,1000,1000/325851)","v":{"$error":"#VALUE!"}},{"$f":"SUM('2. Conservation Measures'!DQ45,'2. Conservation Measures'!DQ106,'2. Conservation Measures'!DQ156)*CHOOSE(volunit,1,1000,1000/325851)","v":{"$error":"#VALUE!"}},{"$f":"SUM('2. Conservation Measures'!DR45,'2. Conservation Measures'!DR106,'2. Conservation Measures'!DR156)*CHOOSE(volunit,1,1000,1000/325851)","v":{"$error":"#VALUE!"}},{"$f":"SUM('2. Conservation Measures'!DS45,'2. Conservation Measures'!DS106,'2. Conservation Measures'!DS156)*CHOOSE(volunit,1,1000,1000/325851)","v":{"$error":"#VALUE!"}},{"$f":"SUM('2. Conservation Measures'!DT45,'2. Conservation Measures'!DT106,'2. Conservation Measures'!DT156)*CHOOSE(volunit,1,1000,1000/325851)","v":{"$error":"#VALUE!"}},{"$f":"SUM('2. Conservation Measures'!DU45,'2. Conservation Measures'!DU106,'2. Conservation Measures'!DU156)*CHOOSE(volunit,1,1000,1000/325851)","v":{"$error":"#VALUE!"}},{"$f":"SUM('2. Conservation Measures'!DV45,'2. Conservation Measures'!DV106,'2. Conservation Measures'!DV156)*CHOOSE(volunit,1,1000,1000/325851)","v":{"$error":"#VALUE!"}},{"$f":"SUM('2. Conservation Measures'!DW45,'2. Conservation Measures'!DW106,'2. Conservation Measures'!DW156)*CHOOSE(volunit,1,1000,1000/325851)","v":{"$error":"#VALUE!"}},{"$f":"SUM('2. Conservation Measures'!DX45,'2. Conservation Measures'!DX106,'2. Conservation Measures'!DX156)*CHOOSE(volunit,1,1000,1000/325851)","v":{"$error":"#VALUE!"}},{"$f":"SUM('2. Conservation Measures'!DY45,'2. Conservation Measures'!DY106,'2. Conservation Measures'!DY156)*CHOOSE(volunit,1,1000,1000/325851)","v":{"$error":"#VALUE!"}},{"$f":"SUM('2. Conservation Measures'!DZ45,'2. Conservation Measures'!DZ106,'2. Conservation Measures'!DZ156)*CHOOSE(volunit,1,1000,1000/325851)","v":{"$error":"#VALUE!"}},{"$f":"SUM('2. Conservation Measures'!EA45,'2. Conservation Measures'!EA106,'2. Conservation Measures'!EA156)*CHOOSE(volunit,1,1000,1000/325851)","v":{"$error":"#VALUE!"}},{"$f":"SUM('2. Conservation Measures'!EB45,'2. Conservation Measures'!EB106,'2. Conservation Measures'!EB156)*CHOOSE(volunit,1,1000,1000/325851)","v":{"$error":"#VALUE!"}},{"$f":"SUM('2. Conservation Measures'!EC45,'2. Conservation Measures'!EC106,'2. Conservation Measures'!EC156)*CHOOSE(volunit,1,1000,1000/325851)","v":{"$error":"#VALUE!"}},{"$f":"SUM('2. Conservation Measures'!ED45,'2. Conservation Measures'!ED106,'2. Conservation Measures'!ED156)*CHOOSE(volunit,1,1000,1000/325851)","v":{"$error":"#VALUE!"}},{"$f":"SUM('2. Conservation Measures'!EE45,'2. Conservation Measures'!EE106,'2. Conservation Measures'!EE156)*CHOOSE(volunit,1,1000,1000/325851)","v":{"$error":"#VALUE!"}},{"$f":"SUM('2. Conservation Measures'!EF45,'2. Conservation Measures'!EF106,'2. Conservation Measures'!EF156)*CHOOSE(volunit,1,1000,1000/325851)","v":{"$error":"#VALUE!"}},{"$f":"SUM('2. Conservation Measures'!EG45,'2. Conservation Measures'!EG106,'2. Conservation Measures'!EG156)*CHOOSE(volunit,1,1000,1000/325851)","v":{"$error":"#VALUE!"}},{"$f":"SUM('2. Conservation Measures'!EH45,'2. Conservation Measures'!EH106,'2. Conservation Measures'!EH156)*CHOOSE(volunit,1,1000,1000/325851)","v":{"$error":"#VALUE!"}},{"$f":"SUM('2. Conservation Measures'!EI45,'2. Conservation Measures'!EI106,'2. Conservation Measures'!EI156)*CHOOSE(volunit,1,1000,1000/325851)","v":{"$error":"#VALUE!"}},{"$f":"SUM('2. Conservation Measures'!EJ45,'2. Conservation Measures'!EJ106,'2. Conservation Measures'!EJ156)*CHOOSE(volunit,1,1000,1000/325851)","v":{"$error":"#VALUE!"}},{"$f":"SUM('2. Conservation Measures'!EK45,'2. Conservation Measures'!EK106,'2. Conservation Measures'!EK156)*CHOOSE(volunit,1,1000,1000/325851)","v":{"$error":"#VALUE!"}},{"$f":"SUM('2. Conservation Measures'!EL45,'2. Conservation Measures'!EL106,'2. Conservation Measures'!EL156)*CHOOSE(volunit,1,1000,1000/325851)","v":{"$error":"#VALUE!"}},{"$f":"SUM('2. Conservation Measures'!EM45,'2. Conservation Measures'!EM106,'2. Conservation Measures'!EM156)*CHOOSE(volunit,1,1000,1000/325851)","v":{"$error":"#VALUE!"}},null,null,{"$f":"B41","v":"Multi Family"},{"$f":"C41/C26","v":{"$error":"#VALUE!"}},{"$f":"G41/G26","v":{"$error":"#VALUE!"}},{"$error":"#VALUE!"},{"$error":"#VALUE!"},{"$f":"W41/W26","v":{"$error":"#VALUE!"}},{"$f":"AG41/AG26","v":{"$error":"#VALUE!"}},{"$f":"AQ41/AQ26","v":{"$error":"#VALUE!"}},{"$f":"BA41/BA26","v":{"$error":"#VALUE!"}}]
[null,"ICI",{"$f":"SUM('2. Conservation Measures'!CO59,'2. Conservation Measures'!CO128,'2. Conservation Measures'!CO157)*CHOOSE(volunit,1,1000,1000/325851)","v":{"$error":"#VALUE!"}},{"$f":"SUM('2. Conservation Measures'!CP59,'2. Conservation Measures'!CP128,'2. Conservation Measures'!CP157)*CHOOSE(volunit,1,1000,1000/325851)","v":{"$error":"#VALUE!"}},{"$f":"SUM('2. Conservation Measures'!CQ59,'2. Conservation Measures'!CQ128,'2. Conservation Measures'!CQ157)*CHOOSE(volunit,1,1000,1000/325851)","v":{"$error":"#VALUE!"}},{"$f":"SUM('2. Conservation Measures'!CR59,'2. Conservation Measures'!CR128,'2. Conservation Measures'!CR157)*CHOOSE(volunit,1,1000,1000/325851)","v":{"$error":"#VALUE!"}},{"$f":"SUM('2. Conservation Measures'!CS59,'2. Conservation Measures'!CS128,'2. Conservation Measures'!CS157)*CHOOSE(volunit,1,1000,1000/325851)","v":{"$error":"#VALUE!"}},{"$f":"SUM('2. Conservation Measures'!CT59,'2. Conservation Measures'!CT128,'2. Conservation Measures'!CT157)*CHOOSE(volunit,1,1000,1000/325851)","v":{"$error":"#VALUE!"}},{"$f":"SUM('2. Conservation Measures'!CU59,'2. Conservation Measures'!CU128,'2. Conservation Measures'!CU157)*CHOOSE(volunit,1,1000,1000/325851)","v":{"$error":"#VALUE!"}},{"$f":"SUM('2. Conservation Measures'!CV59,'2. Conservation Measures'!CV128,'2. Conservation Measures'!CV157)*CHOOSE(volunit,1,1000,1000/325851)","v":{"$error":"#VALUE!"}},{"$f":"SUM('2. Conservation Measures'!CW59,'2. Conservation Measures'!CW128,'2. Conservation Measures'!CW157)*CHOOSE(volunit,1,1000,1000/325851)","v":{"$error":"#VALUE!"}},{"$f":"SUM('2. Conservation Measures'!CX59,'2. Conservation Measures'!CX128,'2. Conservation Measures'!CX157)*CHOOSE(volunit,1,1000,1000/325851)","v":{"$error":"#VALUE!"}},{"$f":"SUM('2. Conservation Measures'!CY59,'2. Conservation Measures'!CY128,'2. Conservation Measures'!CY157)*CHOOSE(volunit,1,1000,1000/325851)","v":{"$error":"#VALUE!"}},{"$f":"SUM('2. Conservation Measures'!CZ59,'2. Conservation Measures'!CZ128,'2. Conservation Measures'!CZ157)*CHOOSE(volunit,1,1000,1000/325851)","v":{"$error":"#VALUE!"}},{"$f":"SUM('2. Conservation Measures'!DA59,'2. Conservation Measures'!DA128,'2. Conservation Measures'!DA157)*CHOOSE(volunit,1,1000,1000/325851)","v":{"$error":"#VALUE!"}},{"$f":"SUM('2. Conservation Measures'!DB59,'2. Conservation Measures'!DB128,'2. Conservation Measures'!DB157)*CHOOSE(volunit,1,1000,1000/325851)","v":{"$error":"#VALUE!"}},{"$f":"SUM('2. Conservation Measures'!DC59,'2. Conservation Measures'!DC128,'2. Conservation Measures'!DC157)*CHOOSE(volunit,1,1000,1000/325851)","v":{"$error":"#VALUE!"}},{"$f":"SUM('2. Conservation Measures'!DD59,'2. Conservation Measures'!DD128,'2. Conservation Measures'!DD157)*CHOOSE(volunit,1,1000,1000/325851)","v":{"$error":"#VALUE!"}},{"$f":"SUM('2. Conservation Measures'!DE59,'2. Conservation Measures'!DE128,'2. Conservation Measures'!DE157)*CHOOSE(volunit,1,1000,1000/325851)","v":{"$error":"#VALUE!"}},{"$f":"SUM('2. Conservation Measures'!DF59,'2. Conservation Measures'!DF128,'2. Conservation Measures'!DF157)*CHOOSE(volunit,1,1000,1000/325851)","v":{"$error":"#VALUE!"}},{"$f":"SUM('2. Conservation Measures'!DG59,'2. Conservation Measures'!DG128,'2. Conservation Measures'!DG157)*CHOOSE(volunit,1,1000,1000/325851)","v":{"$error":"#VALUE!"}},{"$f":"SUM('2. Conservation Measures'!DH59,'2. Conservation Measures'!DH128,'2. Conservation Measures'!DH157)*CHOOSE(volunit,1,1000,1000/325851)","v":{"$error":"#VALUE!"}},{"$f":"SUM('2. Conservation Measures'!DI59,'2. Conservation Measures'!DI128,'2. Conservation Measures'!DI157)*CHOOSE(volunit,1,1000,1000/325851)","v":{"$error":"#VALUE!"}},{"$f":"SUM('2. Conservation Measures'!DJ59,'2. Conservation Measures'!DJ128,'2. Conservation Measures'!DJ157)*CHOOSE(volunit,1,1000,1000/325851)","v":{"$error":"#VALUE!"}},{"$f":"SUM('2. Conservation Measures'!DK59,'2. Conservation Measures'!DK128,'2. Conservation Measures'!DK157)*CHOOSE(volunit,1,1000,1000/325851)","v":{"$error":"#VALUE!"}},{"$f":"SUM('2. Conservation Measures'!DL59,'2. Conservation Measures'!DL128,'2. Conservation Measures'!DL157)*CHOOSE(volunit,1,1000,1000/325851)","v":{"$error":"#VALUE!"}},{"$f":"SUM('2. Conservation Measures'!DM59,'2. Conservation Measures'!DM128,'2. Conservation Measures'!DM157)*CHOOSE(volunit,1,1000,1000/325851)","v":{"$error":"#VALUE!"}},{"$f":"SUM('2. Conservation Measures'!DN59,'2. Conservation Measures'!DN128,'2. Conservation Measures'!DN157)*CHOOSE(volunit,1,1000,1000/325851)","v":{"$error":"#VALUE!"}},{"$f":"SUM('2. Conservation Measures'!DO59,'2. Conservation Measures'!DO128,'2. Conservation Measures'!DO157)*CHOOSE(volunit,1,1000,1000/325851)","v":{"$error":"#VALUE!"}},{"$f":"SUM('2. Conservation Measures'!DP59,'2. Conservation Measures'!DP128,'2. Conservation Measures'!DP157)*CHOOSE(volunit,1,1000,1000/325851)","v":{"$error":"#VALUE!"}},{"$f":"SUM('2. Conservation Measures'!DQ59,'2. Conservation Measures'!DQ128,'2. Conservation Measures'!DQ157)*CHOOSE(volunit,1,1000,1000/325851)","v":{"$error":"#VALUE!"}},{"$f":"SUM('2. Conservation Measures'!DR59,'2. Conservation Measures'!DR128,'2. Conservation Measures'!DR157)*CHOOSE(volunit,1,1000,1000/325851)","v":{"$error":"#VALUE!"}},{"$f":"SUM('2. Conservation Measures'!DS59,'2. Conservation Measures'!DS128,'2. Conservation Measures'!DS157)*CHOOSE(volunit,1,1000,1000/325851)","v":{"$error":"#VALUE!"}},{"$f":"SUM('2. Conservation Measures'!DT59,'2. Conservation Measures'!DT128,'2. Conservation Measures'!DT157)*CHOOSE(volunit,1,1000,1000/325851)","v":{"$error":"#VALUE!"}},{"$f":"SUM('2. Conservation Measures'!DU59,'2. Conservation Measures'!DU128,'2. Conservation Measures'!DU157)*CHOOSE(volunit,1,1000,1000/325851)","v":{"$error":"#VALUE!"}},{"$f":"SUM('2. Conservation Measures'!DV59,'2. Conservation Measures'!DV128,'2. Conservation Measures'!DV157)*CHOOSE(volunit,1,1000,1000/325851)","v":{"$error":"#VALUE!"}},{"$f":"SUM('2. Conservation Measures'!DW59,'2. Conservation Measures'!DW128,'2. Conservation Measures'!DW157)*CHOOSE(volunit,1,1000,1000/325851)","v":{"$error":"#VALUE!"}},{"$f":"SUM('2. Conservation Measures'!DX59,'2. Conservation Measures'!DX128,'2. Conservation Measures'!DX157)*CHOOSE(volunit,1,1000,1000/325851)","v":{"$error":"#VALUE!"}},{"$f":"SUM('2. Conservation Measures'!DY59,'2. Conservation Measures'!DY128,'2. Conservation Measures'!DY157)*CHOOSE(volunit,1,1000,1000/325851)","v":{"$error":"#VALUE!"}},{"$f":"SUM('2. Conservation Measures'!DZ59,'2. Conservation Measures'!DZ128,'2. Conservation Measures'!DZ157)*CHOOSE(volunit,1,1000,1000/325851)","v":{"$error":"#VALUE!"}},{"$f":"SUM('2. Conservation Measures'!EA59,'2. Conservation Measures'!EA128,'2. Conservation Measures'!EA157)*CHOOSE(volunit,1,1000,1000/325851)","v":{"$error":"#VALUE!"}},{"$f":"SUM('2. Conservation Measures'!EB59,'2. Conservation Measures'!EB128,'2. Conservation Measures'!EB157)*CHOOSE(volunit,1,1000,1000/325851)","v":{"$error":"#VALUE!"}},{"$f":"SUM('2. Conservation Measures'!EC59,'2. Conservation Measures'!EC128,'2. Conservation Measures'!EC157)*CHOOSE(volunit,1,1000,1000/325851)","v":{"$error":"#VALUE!"}},{"$f":"SUM('2. Conservation Measures'!ED59,'2. Conservation Measures'!ED128,'2. Conservation Measures'!ED157)*CHOOSE(volunit,1,1000,1000/325851)","v":{"$error":"#VALUE!"}},{"$f":"SUM('2. Conservation Measures'!EE59,'2. Conservation Measures'!EE128,'2. Conservation Measures'!EE157)*CHOOSE(volunit,1,1000,1000/325851)","v":{"$error":"#VALUE!"}},{"$f":"SUM('2. Conservation Measures'!EF59,'2. Conservation Measures'!EF128,'2. Conservation Measures'!EF157)*CHOOSE(volunit,1,1000,1000/325851)","v":{"$error":"#VALUE!"}},{"$f":"SUM('2. Conservation Measures'!EG59,'2. Conservation Measures'!EG128,'2. Conservation Measures'!EG157)*CHOOSE(volunit,1,1000,1000/325851)","v":{"$error":"#VALUE!"}},{"$f":"SUM('2. Conservation Measures'!EH59,'2. Conservation Measures'!EH128,'2. Conservation Measures'!EH157)*CHOOSE(volunit,1,1000,1000/325851)","v":{"$error":"#VALUE!"}},{"$f":"SUM('2. Conservation Measures'!EI59,'2. Conservation Measures'!EI128,'2. Conservation Measures'!EI157)*CHOOSE(volunit,1,1000,1000/325851)","v":{"$error":"#VALUE!"}},{"$f":"SUM('2. Conservation Measures'!EJ59,'2. Conservation Measures'!EJ128,'2. Conservation Measures'!EJ157)*CHOOSE(volunit,1,1000,1000/325851)","v":{"$error":"#VALUE!"}},{"$f":"SUM('2. Conservation Measures'!EK59,'2. Conservation Measures'!EK128,'2. Conservation Measures'!EK157)*CHOOSE(volunit,1,1000,1000/325851)","v":{"$error":"#VALUE!"}},{"$f":"SUM('2. Conservation Measures'!EL59,'2. Conservation Measures'!EL128,'2. Conservation Measures'!EL157)*CHOOSE(volunit,1,1000,1000/325851)","v":{"$error":"#VALUE!"}},{"$f":"SUM('2. Conservation Measures'!EM59,'2. Conservation Measures'!EM128,'2. Conservation Measures'!EM157)*CHOOSE(volunit,1,1000,1000/325851)","v":{"$error":"#VALUE!"}},null,null,"ICI",{"$f":"C42/C27","v":{"$error":"#VALUE!"}},{"$f":"G42/G27","v":{"$error":"#VALUE!"}},{"$error":"#VALUE!"},{"$error":"#VALUE!"},{"$f":"W42/W27","v":{"$error":"#VALUE!"}},{"$f":"AG42/AG27","v":{"$error":"#VALUE!"}},{"$f":"AQ42/AQ27","v":{"$error":"#VALUE!"}},{"$f":"BA42/BA27","v":{"$error":"#VALUE!"}}]
[null,"Other",{"$f":"'2. Conservation Measures'!CO158*CHOOSE(volunit,1,1000,1000/325851)","v":{"$error":"#DIV/0!"}},{"$f":"'2. Conservation Measures'!CP158*CHOOSE(volunit,1,1000,1000/325851)","v":{"$error":"#DIV/0!"}},{"$f":"'2. Conservation Measures'!CQ158*CHOOSE(volunit,1,1000,1000/325851)","v":{"$error":"#DIV/0!"}},{"$f":"'2. Conservation Measures'!CR158*CHOOSE(volunit,1,1000,1000/325851)","v":{"$error":"#DIV/0!"}},{"$f":"'2. Conservation Measures'!CS158*CHOOSE(volunit,1,1000,1000/325851)","v":{"$error":"#DIV/0!"}},{"$f":"'2. Conservation Measures'!CT158*CHOOSE(volunit,1,1000,1000/325851)","v":{"$error":"#DIV/0!"}},{"$f":"'2. Conservation Measures'!CU158*CHOOSE(volunit,1,1000,1000/325851)","v":{"$error":"#DIV/0!"}},{"$f":"'2. Conservation Measures'!CV158*CHOOSE(volunit,1,1000,1000/325851)","v":{"$error":"#DIV/0!"}},{"$f":"'2. Conservation Measures'!CW158*CHOOSE(volunit,1,1000,1000/325851)","v":{"$error":"#DIV/0!"}},{"$f":"'2. Conservation Measures'!CX158*CHOOSE(volunit,1,1000,1000/325851)","v":{"$error":"#DIV/0!"}},{"$f":"'2. Conservation Measures'!CY158*CHOOSE(volunit,1,1000,1000/325851)","v":{"$error":"#DIV/0!"}},{"$f":"'2. Conservation Measures'!CZ158*CHOOSE(volunit,1,1000,1000/325851)","v":{"$error":"#DIV/0!"}},{"$f":"'2. Conservation Measures'!DA158*CHOOSE(volunit,1,1000,1000/325851)","v":{"$error":"#DIV/0!"}},{"$f":"'2. Conservation Measures'!DB158*CHOOSE(volunit,1,1000,1000/325851)","v":{"$error":"#DIV/0!"}},{"$f":"'2. Conservation Measures'!DC158*CHOOSE(volunit,1,1000,1000/325851)","v":{"$error":"#DIV/0!"}},{"$f":"'2. Conservation Measures'!DD158*CHOOSE(volunit,1,1000,1000/325851)","v":{"$error":"#DIV/0!"}},{"$f":"'2. Conservation Measures'!DE158*CHOOSE(volunit,1,1000,1000/325851)","v":{"$error":"#DIV/0!"}},{"$f":"'2. Conservation Measures'!DF158*CHOOSE(volunit,1,1000,1000/325851)","v":{"$error":"#DIV/0!"}},{"$f":"'2. Conservation Measures'!DG158*CHOOSE(volunit,1,1000,1000/325851)","v":{"$error":"#DIV/0!"}},{"$f":"'2. Conservation Measures'!DH158*CHOOSE(volunit,1,1000,1000/325851)","v":{"$error":"#DIV/0!"}},{"$f":"'2. Conservation Measures'!DI158*CHOOSE(volunit,1,1000,1000/325851)","v":{"$error":"#DIV/0!"}},{"$f":"'2. Conservation Measures'!DJ158*CHOOSE(volunit,1,1000,1000/325851)","v":{"$error":"#DIV/0!"}},{"$f":"'2. Conservation Measures'!DK158*CHOOSE(volunit,1,1000,1000/325851)","v":{"$error":"#DIV/0!"}},{"$f":"'2. Conservation Measures'!DL158*CHOOSE(volunit,1,1000,1000/325851)","v":{"$error":"#DIV/0!"}},{"$f":"'2. Conservation Measures'!DM158*CHOOSE(volunit,1,1000,1000/325851)","v":{"$error":"#DIV/0!"}},{"$f":"'2. Conservation Measures'!DN158*CHOOSE(volunit,1,1000,1000/325851)","v":{"$error":"#DIV/0!"}},{"$f":"'2. Conservation Measures'!DO158*CHOOSE(volunit,1,1000,1000/325851)","v":{"$error":"#DIV/0!"}},{"$f":"'2. Conservation Measures'!DP158*CHOOSE(volunit,1,1000,1000/325851)","v":{"$error":"#DIV/0!"}},{"$f":"'2. Conservation Measures'!DQ158*CHOOSE(volunit,1,1000,1000/325851)","v":{"$error":"#DIV/0!"}},{"$f":"'2. Conservation Measures'!DR158*CHOOSE(volunit,1,1000,1000/325851)","v":{"$error":"#DIV/0!"}},{"$f":"'2. Conservation Measures'!DS158*CHOOSE(volunit,1,1000,1000/325851)","v":{"$error":"#DIV/0!"}},{"$f":"'2. Conservation Measures'!DT158*CHOOSE(volunit,1,1000,1000/325851)","v":{"$error":"#DIV/0!"}},{"$f":"'2. Conservation Measures'!DU158*CHOOSE(volunit,1,1000,1000/325851)","v":{"$error":"#DIV/0!"}},{"$f":"'2. Conservation Measures'!DV158*CHOOSE(volunit,1,1000,1000/325851)","v":{"$error":"#DIV/0!"}},{"$f":"'2. Conservation Measures'!DW158*CHOOSE(volunit,1,1000,1000/325851)","v":{"$error":"#DIV/0!"}},{"$f":"'2. Conservation Measures'!DX158*CHOOSE(volunit,1,1000,1000/325851)","v":{"$error":"#DIV/0!"}},{"$f":"'2. Conservation Measures'!DY158*CHOOSE(volunit,1,1000,1000/325851)","v":{"$error":"#DIV/0!"}},{"$f":"'2. Conservation Measures'!DZ158*CHOOSE(volunit,1,1000,1000/325851)","v":{"$error":"#DIV/0!"}},{"$f":"'2. Conservation Measures'!EA158*CHOOSE(volunit,1,1000,1000/325851)","v":{"$error":"#DIV/0!"}},{"$f":"'2. Conservation Measures'!EB158*CHOOSE(volunit,1,1000,1000/325851)","v":{"$error":"#DIV/0!"}},{"$f":"'2. Conservation Measures'!EC158*CHOOSE(volunit,1,1000,1000/325851)","v":{"$error":"#DIV/0!"}},{"$f":"'2. Conservation Measures'!ED158*CHOOSE(volunit,1,1000,1000/325851)","v":{"$error":"#DIV/0!"}},{"$f":"'2. Conservation Measures'!EE158*CHOOSE(volunit,1,1000,1000/325851)","v":{"$error":"#DIV/0!"}},{"$f":"'2. Conservation Measures'!EF158*CHOOSE(volunit,1,1000,1000/325851)","v":{"$error":"#DIV/0!"}},{"$f":"'2. Conservation Measures'!EG158*CHOOSE(volunit,1,1000,1000/325851)","v":{"$error":"#DIV/0!"}},{"$f":"'2. Conservation Measures'!EH158*CHOOSE(volunit,1,1000,1000/325851)","v":{"$error":"#DIV/0!"}},{"$f":"'2. Conservation Measures'!EI158*CHOOSE(volunit,1,1000,1000/325851)","v":{"$error":"#DIV/0!"}},{"$f":"'2. Conservation Measures'!EJ158*CHOOSE(volunit,1,1000,1000/325851)","v":{"$error":"#DIV/0!"}},{"$f":"'2. Conservation Measures'!EK158*CHOOSE(volunit,1,1000,1000/325851)","v":{"$error":"#DIV/0!"}},{"$f":"'2. Conservation Measures'!EL158*CHOOSE(volunit,1,1000,1000/325851)","v":{"$error":"#DIV/0!"}},{"$f":"'2. Conservation Measures'!EM158*CHOOSE(volunit,1,1000,1000/325851)","v":{"$error":"#DIV/0!"}},null,null,"Other",{"$f":"C43/C29","v":{"$error":"#DIV/0!"}},{"$f":"G43/G29","v":{"$error":"#DIV/0!"}},{"$f":"L43/L29","v":{"$error":"#DIV/0!"}},{"$error":"#DIV/0!"},{"$f":"W43/W29","v":{"$error":"#DIV/0!"}},{"$f":"AG43/AG29","v":{"$error":"#DIV/0!"}},{"$f":"AQ43/AQ29","v":{"$error":"#DIV/0!"}},{"$f":"BA43/BA29","v":{"$error":"#DIV/0!"}}]
[null,"Water Loss",{"$f":"'2. Conservation Measures'!CO159*CHOOSE(volunit,1,1000,1000/325851)","v":{"$error":"#DIV/0!"}},{"$f":"'2. Conservation Measures'!CP159*CHOOSE(volunit,1,1000,1000/325851)","v":{"$error":"#DIV/0!"}},{"$f":"'2. Conservation Measures'!CQ159*CHOOSE(volunit,1,1000,1000/325851)","v":{"$error":"#DIV/0!"}},{"$f":"'2. Conservation Measures'!CR159*CHOOSE(volunit,1,1000,1000/325851)","v":{"$error":"#DIV/0!"}},{"$f":"'2. Conservation Measures'!CS159*CHOOSE(volunit,1,1000,1000/325851)","v":{"$error":"#DIV/0!"}},{"$f":"'2. Conservation Measures'!CT159*CHOOSE(volunit,1,1000,1000/325851)","v":{"$error":"#DIV/0!"}},{"$f":"'2. Conservation Measures'!CU159*CHOOSE(volunit,1,1000,1000/325851)","v":{"$error":"#DIV/0!"}},{"$f":"'2. Conservation Measures'!CV159*CHOOSE(volunit,1,1000,1000/325851)","v":{"$error":"#DIV/0!"}},{"$f":"'2. Conservation Measures'!CW159*CHOOSE(volunit,1,1000,1000/325851)","v":{"$error":"#DIV/0!"}},{"$f":"'2. Conservation Measures'!CX159*CHOOSE(volunit,1,1000,1000/325851)","v":{"$error":"#DIV/0!"}},{"$f":"'2. Conservation Measures'!CY159*CHOOSE(volunit,1,1000,1000/325851)","v":{"$error":"#DIV/0!"}},{"$f":"'2. Conservation Measures'!CZ159*CHOOSE(volunit,1,1000,1000/325851)","v":{"$error":"#DIV/0!"}},{"$f":"'2. Conservation Measures'!DA159*CHOOSE(volunit,1,1000,1000/325851)","v":{"$error":"#DIV/0!"}},{"$f":"'2. Conservation Measures'!DB159*CHOOSE(volunit,1,1000,1000/325851)","v":{"$error":"#DIV/0!"}},{"$f":"'2. Conservation Measures'!DC159*CHOOSE(volunit,1,1000,1000/325851)","v":{"$error":"#DIV/0!"}},{"$f":"'2. Conservation Measures'!DD159*CHOOSE(volunit,1,1000,1000/325851)","v":{"$error":"#DIV/0!"}},{"$f":"'2. Conservation Measures'!DE159*CHOOSE(volunit,1,1000,1000/325851)","v":{"$error":"#DIV/0!"}},{"$f":"'2. Conservation Measures'!DF159*CHOOSE(volunit,1,1000,1000/325851)","v":{"$error":"#DIV/0!"}},{"$f":"'2. Conservation Measures'!DG159*CHOOSE(volunit,1,1000,1000/325851)","v":{"$error":"#DIV/0!"}},{"$f":"'2. Conservation Measures'!DH159*CHOOSE(volunit,1,1000,1000/325851)","v":{"$error":"#DIV/0!"}},{"$f":"'2. Conservation Measures'!DI159*CHOOSE(volunit,1,1000,1000/325851)","v":{"$error":"#DIV/0!"}},{"$f":"'2. Conservation Measures'!DJ159*CHOOSE(volunit,1,1000,1000/325851)","v":{"$error":"#DIV/0!"}},{"$f":"'2. Conservation Measures'!DK159*CHOOSE(volunit,1,1000,1000/325851)","v":{"$error":"#DIV/0!"}},{"$f":"'2. Conservation Measures'!DL159*CHOOSE(volunit,1,1000,1000/325851)","v":{"$error":"#DIV/0!"}},{"$f":"'2. Conservation Measures'!DM159*CHOOSE(volunit,1,1000,1000/325851)","v":{"$error":"#DIV/0!"}},{"$f":"'2. Conservation Measures'!DN159*CHOOSE(volunit,1,1000,1000/325851)","v":{"$error":"#DIV/0!"}},{"$f":"'2. Conservation Measures'!DO159*CHOOSE(volunit,1,1000,1000/325851)","v":{"$error":"#DIV/0!"}},{"$f":"'2. Conservation Measures'!DP159*CHOOSE(volunit,1,1000,1000/325851)","v":{"$error":"#DIV/0!"}},{"$f":"'2. Conservation Measures'!DQ159*CHOOSE(volunit,1,1000,1000/325851)","v":{"$error":"#DIV/0!"}},{"$f":"'2. Conservation Measures'!DR159*CHOOSE(volunit,1,1000,1000/325851)","v":{"$error":"#DIV/0!"}},{"$f":"'2. Conservation Measures'!DS159*CHOOSE(volunit,1,1000,1000/325851)","v":{"$error":"#DIV/0!"}},{"$f":"'2. Conservation Measures'!DT159*CHOOSE(volunit,1,1000,1000/325851)","v":{"$error":"#DIV/0!"}},{"$f":"'2. Conservation Measures'!DU159*CHOOSE(volunit,1,1000,1000/325851)","v":{"$error":"#DIV/0!"}},{"$f":"'2. Conservation Measures'!DV159*CHOOSE(volunit,1,1000,1000/325851)","v":{"$error":"#DIV/0!"}},{"$f":"'2. Conservation Measures'!DW159*CHOOSE(volunit,1,1000,1000/325851)","v":{"$error":"#DIV/0!"}},{"$f":"'2. Conservation Measures'!DX159*CHOOSE(volunit,1,1000,1000/325851)","v":{"$error":"#DIV/0!"}},{"$f":"'2. Conservation Measures'!DY159*CHOOSE(volunit,1,1000,1000/325851)","v":{"$error":"#DIV/0!"}},{"$f":"'2. Conservation Measures'!DZ159*CHOOSE(volunit,1,1000,1000/325851)","v":{"$error":"#DIV/0!"}},{"$f":"'2. Conservation Measures'!EA159*CHOOSE(volunit,1,1000,1000/325851)","v":{"$error":"#DIV/0!"}},{"$f":"'2. Conservation Measures'!EB159*CHOOSE(volunit,1,1000,1000/325851)","v":{"$error":"#DIV/0!"}},{"$f":"'2. Conservation Measures'!EC159*CHOOSE(volunit,1,1000,1000/325851)","v":{"$error":"#DIV/0!"}},{"$f":"'2. Conservation Measures'!ED159*CHOOSE(volunit,1,1000,1000/325851)","v":{"$error":"#DIV/0!"}},{"$f":"'2. Conservation Measures'!EE159*CHOOSE(volunit,1,1000,1000/325851)","v":{"$error":"#DIV/0!"}},{"$f":"'2. Conservation Measures'!EF159*CHOOSE(volunit,1,1000,1000/325851)","v":{"$error":"#DIV/0!"}},{"$f":"'2. Conservation Measures'!EG159*CHOOSE(volunit,1,1000,1000/325851)","v":{"$error":"#DIV/0!"}},{"$f":"'2. Conservation Measures'!EH159*CHOOSE(volunit,1,1000,1000/325851)","v":{"$error":"#DIV/0!"}},{"$f":"'2. Conservation Measures'!EI159*CHOOSE(volunit,1,1000,1000/325851)","v":{"$error":"#DIV/0!"}},{"$f":"'2. Conservation Measures'!EJ159*CHOOSE(volunit,1,1000,1000/325851)","v":{"$error":"#DIV/0!"}},{"$f":"'2. Conservation Measures'!EK159*CHOOSE(volunit,1,1000,1000/325851)","v":{"$error":"#DIV/0!"}},{"$f":"'2. Conservation Measures'!EL159*CHOOSE(volunit,1,1000,1000/325851)","v":{"$error":"#DIV/0!"}},{"$f":"'2. Conservation Measures'!EM159*CHOOSE(volunit,1,1000,1000/325851)","v":{"$error":"#DIV/0!"}},null,null,"Water Loss",{"$f":"C44/C30","v":{"$error":"#DIV/0!"}},{"$f":"G44/G30","v":{"$error":"#DIV/0!"}},{"$error":"#DIV/0!"},{"$error":"#DIV/0!"},{"$f":"W44/W30","v":{"$error":"#DIV/0!"}},{"$f":"AG44/AG30","v":{"$error":"#DIV/0!"}},{"$f":"AQ44/AQ30","v":{"$error":"#DIV/0!"}},{"$f":"BA44/BA30","v":{"$error":"#DIV/0!"}}]
[null,"Total Plan Savings",{"$f":"SUM(C40:C44)","v":{"$error":"#VALUE!"}},{"$f":"SUM(D40:D44)","v":{"$error":"#VALUE!"}},{"$error":"#VALUE!"},{"$error":"#VALUE!"},{"$error":"#VALUE!"},{"$error":"#VALUE!"},{"$error":"#VALUE!"},{"$error":"#VALUE!"},{"$error":"#VALUE!"},{"$error":"#VALUE!"},{"$error":"#VALUE!"},{"$error":"#VALUE!"},{"$error":"#VALUE!"},{"$error":"#VALUE!"},{"$error":"#VALUE!"},{"$error":"#VALUE!"},{"$error":"#VALUE!"},{"$error":"#VALUE!"},{"$error":"#VALUE!"},{"$error":"#VALUE!"},{"$error":"#VALUE!"},{"$error":"#VALUE!"},{"$error":"#VALUE!"},{"$error":"#VALUE!"},{"$error":"#VALUE!"},{"$error":"#VALUE!"},{"$error":"#VALUE!"},{"$error":"#VALUE!"},{"$error":"#VALUE!"},{"$error":"#VALUE!"},{"$error":"#VALUE!"},{"$error":"#VALUE!"},{"$error":"#VALUE!"},{"$error":"#VALUE!"},{"$error":"#VALUE!"},{"$error":"#VALUE!"},{"$error":"#VALUE!"},{"$error":"#VALUE!"},{"$error":"#VALUE!"},{"$error":"#VALUE!"},{"$error":"#VALUE!"},{"$error":"#VALUE!"},{"$error":"#VALUE!"},{"$error":"#VALUE!"},{"$error":"#VALUE!"},{"$error":"#VALUE!"},{"$error":"#VALUE!"},{"$error":"#VALUE!"},{"$error":"#VALUE!"},{"$error":"#VALUE!"},{"$error":"#VALUE!"},null,null,"Total Plan Savings",{"$f":"C45/C31","v":{"$error":"#VALUE!"}},{"$f":"G45/G31","v":{"$error":"#VALUE!"}},{"$error":"#VALUE!"},{"$error":"#VALUE!"},{"$f":"W45/W31","v":{"$error":"#VALUE!"}},{"$f":"AG45/AG31","v":{"$error":"#VALUE!"}},{"$f":"AQ45/AQ31","v":{"$error":"#VALUE!"}},{"$f":"BA45/BA31","v":{"$error":"#VALUE!"}}]
[]
[null,"Plan Demand Projection",{"$f":"\"(in \" & volunit_selected & \")\"","v":"(in kGal)"}]
[null,{"$f":"B25","v":"Single Family"},{"$f":"C25-C40","v":{"$error":"#VALUE!"}},{"$error":"#VALUE!"},{"$error":"#VALUE!"},{"$error":"#VALUE!"},{"$error":"#VALUE!"},{"$error":"#VALUE!"},{"$error":"#VALUE!"},{"$error":"#VALUE!"},{"$error":"#VALUE!"},{"$error":"#VALUE!"},{"$error":"#VALUE!"},{"$error":"#VALUE!"},{"$error":"#VALUE!"},{"$error":"#VALUE!"},{"$error":"#VALUE!"},{"$error":"#VALUE!"},{"$error":"#VALUE!"},{"$error":"#VALUE!"},{"$error":"#VALUE!"},{"$error":"#VALUE!"},{"$error":"#VALUE!"},{"$error":"#VALUE!"},{"$error":"#VALUE!"},{"$error":"#VALUE!"},{"$error":"#VALUE!"},{"$error":"#VALUE!"},{"$error":"#VALUE!"},{"$error":"#VALUE!"},{"$error":"#VALUE!"},{"$error":"#VALUE!"},{"$error":"#VALUE!"},{"$error":"#VALUE!"},{"$f":"AI25-AI40","v":{"$error":"#VALUE!"}},{"$error":"#VALUE!"},{"$error":"#VALUE!"},{"$error":"#VALUE!"},{"$error":"#VALUE!"},{"$error":"#VALUE!"},{"$error":"#VALUE!"},{"$error":"#VALUE!"},{"$error":"#VALUE!"},{"$error":"#VALUE!"},{"$error":"#VALUE!"},{"$error":"#VALUE!"},{"$error":"#VALUE!"},{"$error":"#VALUE!"},{"$error":"#VALUE!"},{"$error":"#VALUE!"},{"$error":"#VALUE!"},{"$error":"#VALUE!"},{"$error":"#VALUE!"},{"$f":"IF(C48>0,(BA48/C48)^(1/50)-1,0)","v":{"$error":"#VALUE!"}}]
[null,"Multi Family",{"$f":"C26-C41","v":{"$error":"#VALUE!"}},{"$error":"#VALUE!"},{"$error":"#VALUE!"},{"$error":"#VALUE!"},{"$error":"#VALUE!"},{"$error":"#VALUE!"},{"$error":"#VALUE!"},{"$error":"#VALUE!"},{"$error":"#VALUE!"},{"$error":"#VALUE!"},{"$error":"#VALUE!"},{"$error":"#VALUE!"},{"$error":"#VALUE!"},{"$error":"#VALUE!"},{"$error":"#VALUE!"},{"$error":"#VALUE!"},{"$error":"#VALUE!"},{"$error":"#VALUE!"},{"$error":"#VALUE!"},{"$error":"#VALUE!"},{"$error":"#VALUE!"},{"$error":"#VALUE!"},{"$error":"#VALUE!"},{"$error":"#VALUE!"},{"$error":"#VALUE!"},{"$error":"#VALUE!"},{"$error":"#VALUE!"},{"$error":"#VALUE!"},{"$error":"#VALUE!"},{"$error":"#VALUE!"},{"$error":"#VALUE!"},{"$error":"#VALUE!"},{"$f":"AI26-AI41","v":{"$error":"#VALUE!"}},{"$error":"#VALUE!"},{"$error":"#VALUE!"},{"$error":"#VALUE!"},{"$error":"#VALUE!"},{"$error":"#VALUE!"},{"$error":"#VALUE!"},{"$error":"#VALUE!"},{"$error":"#VALUE!"},{"$error":"#VALUE!"},{"$error":"#VALUE!"},{"$error":"#VALUE!"},{"$error":"#VALUE!"},{"$error":"#VALUE!"},{"$error":"#VALUE!"},{"$error":"#VALUE!"},{"$error":"#VALUE!"},{"$error":"#VALUE!"},{"$error":"#VALUE!"},{"$error":"#VALUE!"}]
[null,"ICI",{"$f":"C27-C42","v":{"$error":"#VALUE!"}},{"$error":"#VALUE!"},{"$error":"#VALUE!"},{"$error":"#VALUE!"},{"$error":"#VALUE!"},{"$error":"#VALUE!"},{"$error":"#VALUE!"},{"$error":"#VALUE!"},{"$error":"#VALUE!"},{"$error":"#VALUE!"},{"$error":"#VALUE!"},{"$error":"#VALUE!"},{"$error":"#VALUE!"},{"$error":"#VALUE!"},{"$error":"#VALUE!"},{"$error":"#VALUE!"},{"$error":"#VALUE!"},{"$error":"#VALUE!"},{"$error":"#VALUE!"},{"$error":"#VALUE!"},{"$error":"#VALUE!"},{"$error":"#VALUE!"},{"$error":"#VALUE!"},{"$error":"#VALUE!"},{"$error":"#VALUE!"},{"$error":"#VALUE!"},{"$error":"#VALUE!"},{"$error":"#VALUE!"},{"$error":"#VALUE!"},{"$error":"#VALUE!"},{"$error":"#VALUE!"},{"$error":"#VALUE!"},{"$f":"AI27-AI42","v":{"$error":"#VALUE!"}},{"$error":"#VALUE!"},{"$error":"#VALUE!"},{"$error":"#VALUE!"},{"$error":"#VALUE!"},{"$error":"#VALUE!"},{"$error":"#VALUE!"},{"$error":"#VALUE!"},{"$error":"#VALUE!"},{"$error":"#VALUE!"},{"$error":"#VALUE!"},{"$error":"#VALUE!"},{"$error":"#VALUE!"},{"$error":"#VALUE!"},{"$error":"#VALUE!"},{"$error":"#VALUE!"},{"$error":"#VALUE!"},{"$error":"#VALUE!"},{"$error":"#VALUE!"},{"$f":"IF(C50>0,(BA50/C50)^(1/50)-1,0)","v":{"$error":"#VALUE!"}}]
[null,"Sales Subtotal",{"$f":"SUM(C48:C50)","v":{"$error":"#VALUE!"}},{"$f":"SUM(D48:D50)","v":{"$error":"#VALUE!"}},{"$error":"#VALUE!"},{"$error":"#VALUE!"},{"$error":"#VALUE!"},{"$error":"#VALUE!"},{"$error":"#VALUE!"},{"$error":"#VALUE!"},{"$error":"#VALUE!"},{"$error":"#VALUE!"},{"$error":"#VALUE!"},{"$error":"#VALUE!"},{"$error":"#VALUE!"},{"$error":"#VALUE!"},{"$error":"#VALUE!"},{"$error":"#VALUE!"},{"$error":"#VALUE!"},{"$error":"#VALUE!"},{"$error":"#VALUE!"},{"$error":"#VALUE!"},{"$error":"#VALUE!"},{"$error":"#VALUE!"},{"$error":"#VALUE!"},{"$error":"#VALUE!"},{"$error":"#VALUE!"},{"$error":"#VALUE!"},{"$error":"#VALUE!"},{"$error":"#VALUE!"},{"$error":"#VALUE!"},{"$error":"#VALUE!"},{"$error":"#VALUE!"},{"$error":"#VALUE!"},{"$error":"#VALUE!"},{"$error":"#VALUE!"},{"$error":"#VALUE!"},{"$error":"#VALUE!"},{"$error":"#VALUE!"},{"$error":"#VALUE!"},{"$error":"#VALUE!"},{"$error":"#VALUE!"},{"$error":"#VALUE!"},{"$error":"#VALUE!"},{"$error":"#VALUE!"},{"$error":"#VALUE!"},{"$error":"#VALUE!"},{"$error":"#VALUE!"},{"$error":"#VALUE!"},{"$error":"#VALUE!"},{"$error":"#VALUE!"},{"$error":"#VALUE!"},{"$error":"#VALUE!"},{"$f":"IF(C51>0,(BA51/C51)^(1/50)-1,0)","v":{"$error":"#VALUE!"}}]
[null,"Other Uses",{"$f":"C29-C43","v":{"$error":"#DIV/0!"}},{"$f":"D29-D43","v":{"$error":"#DIV/0!"}},{"$error":"#DIV/0!"},{"$error":"#DIV/0!"},{"$error":"#DIV/0!"},{"$error":"#DIV/0!"},{"$error":"#DIV/0!"},{"$error":"#DIV/0!"},{"$error":"#DIV/0!"},{"$error":"#DIV/0!"},{"$error":"#DIV/0!"},{"$error":"#DIV/0!"},{"$error":"#DIV/0!"},{"$error":"#DIV/0!"},{"$error":"#DIV/0!"},{"$error":"#DIV/0!"},{"$error":"#DIV/0!"},{"$error":"#DIV/0!"},{"$error":"#DIV/0!"},{"$error":"#DIV/0!"},{"$error":"#DIV/0!"},{"$error":"#DIV/0!"},{"$error":"#DIV/0!"},{"$error":"#DIV/0!"},{"$error":"#DIV/0!"},{"$error":"#DIV/0!"},{"$error":"#DIV/0!"},{"$error":"#DIV/0!"},{"$error":"#DIV/0!"},{"$error":"#DIV/0!"},{"$error":"#DIV/0!"},{"$error":"#DIV/0!"},{"$error":"#DIV/0!"},{"$error":"#DIV/0!"},{"$error":"#DIV/0!"},{"$error":"#DIV/0!"},{"$error":"#DIV/0!"},{"$error":"#DIV/0!"},{"$error":"#DIV/0!"},{"$error":"#DIV/0!"},{"$error":"#DIV/0!"},{"$error":"#DIV/0!"},{"$error":"#DIV/0!"},{"$error":"#DIV/0!"},{"$error":"#DIV/0!"},{"$error":"#DIV/0!"},{"$error":"#DIV/0!"},{"$error":"#DIV/0!"},{"$error":"#DIV/0!"},{"$error":"#DIV/0!"},{"$error":"#DIV/0!"},{"$f":"IF(C52>0,(BA52/C52)^(1/50)-1,0)","v":{"$error":"#DIV/0!"}}]
[null,"Water Loss",{"$f":"SUM(C51:C52)*C32/(1-C32)-C44","v":{"$error":"#VALUE!"}},{"$f":"SUM(D51:D52)*D32/(1-D32)-D44","v":{"$error":"#VALUE!"}},{"$error":"#VALUE!"},{"$error":"#VALUE!"},{"$error":"#VALUE!"},{"$error":"#VALUE!"},{"$error":"#VALUE!"},{"$error":"#VALUE!"},{"$error":"#VALUE!"},{"$error":"#VALUE!"},{"$error":"#VALUE!"},{"$error":"#VALUE!"},{"$error":"#VALUE!"},{"$error":"#VALUE!"},{"$error":"#VALUE!"},{"$error":"#VALUE!"},{"$error":"#VALUE!"},{"$error":"#VALUE!"},{"$error":"#VALUE!"},{"$error":"#VALUE!"},{"$error":"#VALUE!"},{"$error":"#VALUE!"},{"$error":"#VALUE!"},{"$error":"#VALUE!"},{"$error":"#VALUE!"},{"$error":"#VALUE!"},{"$error":"#VALUE!"},{"$error":"#VALUE!"},{"$error":"#VALUE!"},{"$error":"#VALUE!"},{"$error":"#VALUE!"},{"$error":"#VALUE!"},{"$error":"#VALUE!"},{"$error":"#VALUE!"},{"$error":"#VALUE!"},{"$error":"#VALUE!"},{"$error":"#VALUE!"},{"$error":"#VALUE!"},{"$error":"#VALUE!"},{"$error":"#VALUE!"},{"$error":"#VALUE!"},{"$error":"#VALUE!"},{"$error":"#VALUE!"},{"$error":"#VALUE!"},{"$error":"#VALUE!"},{"$error":"#VALUE!"},{"$error":"#VALUE!"},{"$error":"#VALUE!"},{"$error":"#VALUE!"},{"$error":"#VALUE!"},{"$error":"#VALUE!"},{"$f":"IF(C53>0,(BA53/C53)^(1/50)-1,0)","v":{"$error":"#VALUE!"}}]
[null,"Production Total",{"$f":"SUM(C51:C53)","v":{"$error":"#VALUE!"}},{"$f":"SUM(D51:D53)","v":{"$error":"#VALUE!"}},{"$error":"#VALUE!"},{"$error":"#VALUE!"},{"$error":"#VALUE!"},{"$error":"#VALUE!"},{"$error":"#VALUE!"},{"$error":"#VALUE!"},{"$error":"#VALUE!"},{"$error":"#VALUE!"},{"$error":"#VALUE!"},{"$error":"#VALUE!"},{"$error":"#VALUE!"},{"$error":"#VALUE!"},{"$error":"#VALUE!"},{"$error":"#VALUE!"},{"$error":"#VALUE!"},{"$error":"#VALUE!"},{"$error":"#VALUE!"},{"$error":"#VALUE!"},{"$error":"#VALUE!"},{"$error":"#VALUE!"},{"$error":"#VALUE!"},{"$error":"#VALUE!"},{"$error":"#VALUE!"},{"$error":"#VALUE!"},{"$error":"#VALUE!"},{"$error":"#VALUE!"},{"$error":"#VALUE!"},{"$error":"#VALUE!"},{"$error":"#VALUE!"},{"$error":"#VALUE!"},{"$error":"#VALUE!"},{"$error":"#VALUE!"},{"$error":"#VALUE!"},{"$error":"#VALUE!"},{"$error":"#VALUE!"},{"$error":"#VALUE!"},{"$error":"#VALUE!"},{"$error":"#VALUE!"},{"$error":"#VALUE!"},{"$error":"#VALUE!"},{"$error":"#VALUE!"},{"$error":"#VALUE!"},{"$error":"#VALUE!"},{"$error":"#VALUE!"},{"$error":"#VALUE!"},{"$error":"#VALUE!"},{"$error":"#VALUE!"},{"$error":"#VALUE!"},{"$error":"#VALUE!"},{"$error":"#VALUE!"}]
[null,{"$f":"'1. Baseline Demand Projection'!B47","v":"Water Loss %"},{"$f":"C53/C54","v":{"$error":"#VALUE!"}},{"$f":"D53/D54","v":{"$error":"#VALUE!"}},{"$error":"#VALUE!"},{"$error":"#VALUE!"},{"$error":"#VALUE!"},{"$error":"#VALUE!"},{"$error":"#VALUE!"},{"$error":"#VALUE!"},{"$error":"#VALUE!"},{"$error":"#VALUE!"},{"$error":"#VALUE!"},{"$error":"#VALUE!"},{"$error":"#VALUE!"},{"$error":"#VALUE!"},{"$error":"#VALUE!"},{"$error":"#VALUE!"},{"$error":"#VALUE!"},{"$error":"#VALUE!"},{"$error":"#VALUE!"},{"$error":"#VALUE!"},{"$error":"#VALUE!"},{"$error":"#VALUE!"},{"$error":"#VALUE!"},{"$error":"#VALUE!"},{"$error":"#VALUE!"},{"$error":"#VALUE!"},{"$error":"#VALUE!"},{"$error":"#VALUE!"},{"$error":"#VALUE!"},{"$error":"#VALUE!"},{"$error":"#VALUE!"},{"$error":"#VALUE!"},{"$error":"#VALUE!"},{"$error":"#VALUE!"},{"$error":"#VALUE!"},{"$error":"#VALUE!"},{"$error":"#VALUE!"},{"$error":"#VALUE!"},{"$error":"#VALUE!"},{"$error":"#VALUE!"},{"$error":"#VALUE!"},{"$error":"#VALUE!"},{"$error":"#VALUE!"},{"$error":"#VALUE!"},{"$error":"#VALUE!"},{"$error":"#VALUE!"},{"$error":"#VALUE!"},{"$error":"#VALUE!"},{"$error":"#VALUE!"},{"$error":"#VALUE!"},{"$error":"#VALUE!"},{"$f":"IF(C55>0,(BA55/C55)^(1/50)-1,0)","v":{"$error":"#VALUE!"}}]
[null,null,{"$f":"IF(MIN(C48:BA53)<0,\"WARNING: Negative Demands in Projection\",\"\")","v":{"$error":"#VALUE!"}}]
[null,"Plan GPCD"]
[null,{"$f":"'1. Baseline Demand Projection'!B42","v":"Total"},{"$f":"IF(C16>0,C54/C16/0.365,0)*CHOOSE(volunit,1,1/1000,325851/1000)","v":0},0,0,0,0,0,0,0,0,0,0,0,0,0,0,0,0,0,0,0,0,0,0,0,0,0,0,0,0,0,0,0,{"$f":"IF(AI16>0,AI54/AI16/0.365,0)*CHOOSE(volunit,1,1/1000,325851/1000)","v":0},0,0,0,0,0,0,0,0,0,0,0,0,0,0,0,0,0,0,{"$f":"IF(C58>0,(BA58/C58)^(1/50)-1,0)","v":0}]
[null,"% Reduction from Baseline",{"$f":"1-C58/C35","v":{"$error":"#DIV/0!"}},{"$f":"1-D58/D35","v":{"$error":"#DIV/0!"}},{"$f":"1-E58/E35","v":{"$error":"#DIV/0!"}},{"$error":"#DIV/0!"},{"$error":"#DIV/0!"},{"$error":"#DIV/0!"},{"$error":"#DIV/0!"},{"$error":"#DIV/0!"},{"$error":"#DIV/0!"},{"$error":"#DIV/0!"},{"$error":"#DIV/0!"},{"$error":"#DIV/0!"},{"$error":"#DIV/0!"},{"$error":"#DIV/0!"},{"$error":"#DIV/0!"},{"$error":"#DIV/0!"},{"$error":"#DIV/0!"},{"$error":"#DIV/0!"},{"$error":"#DIV/0!"},{"$error":"#DIV/0!"},{"$error":"#DIV/0!"},{"$error":"#DIV/0!"},{"$error":"#DIV/0!"},{"$error":"#DIV/0!"},{"$error":"#DIV/0!"},{"$error":"#DIV/0!"},{"$error":"#DIV/0!"},{"$error":"#DIV/0!"},{"$error":"#DIV/0!"},{"$error":"#DIV/0!"},{"$error":"#DIV/0!"},{"$error":"#DIV/0!"},{"$error":"#DIV/0!"},{"$error":"#DIV/0!"},{"$error":"#DIV/0!"},{"$error":"#DIV/0!"},{"$error":"#DIV/0!"},{"$error":"#DIV/0!"},{"$error":"#DIV/0!"},{"$error":"#DIV/0!"},{"$error":"#DIV/0!"},{"$error":"#DIV/0!"},{"$error":"#DIV/0!"},{"$error":"#DIV/0!"},{"$error":"#DIV/0!"},{"$error":"#DIV/0!"},{"$error":"#DIV/0!"},{"$error":"#DIV/0!"},{"$error":"#DIV/0!"},{"$error":"#DIV/0!"},{"$error":"#DIV/0!"}]
[null,{"$f":"'1. Baseline Demand Projection'!B43","v":"Residential"},{"$f":"IF(C16>0,SUM(C48:C49)/C16/0.365,0)*CHOOSE(volunit,1,1/1000,325851/1000)","v":0},0,0,0,0,0,0,0,0,0,0,0,0,0,0,0,0,0,0,0,0,0,0,0,0,0,0,0,0,0,0,0,{"$f":"IF(AI16>0,SUM(AI48:AI49)/AI16/0.365,0)*CHOOSE(volunit,1,1/1000,325851/1000)","v":0},0,0,0,0,0,0,0,0,0,0,0,0,0,0,0,0,0,0,{"$f":"IF(C60>0,(BA60/C60)^(1/50)-1,0)","v":0}]
[null,"% Reduction from Baseline",{"$f":"1-C60/C36","v":{"$error":"#DIV/0!"}},{"$f":"1-D60/D36","v":{"$error":"#DIV/0!"}},{"$error":"#DIV/0!"},{"$error":"#DIV/0!"},{"$error":"#DIV/0!"},{"$error":"#DIV/0!"},{"$error":"#DIV/0!"},{"$error":"#DIV/0!"},{"$error":"#DIV/0!"},{"$error":"#DIV/0!"},{"$error":"#DIV/0!"},{"$error":"#DIV/0!"},{"$error":"#DIV/0!"},{"$error":"#DIV/0!"},{"$error":"#DIV/0!"},{"$error":"#DIV/0!"},{"$error":"#DIV/0!"},{"$error":"#DIV/0!"},{"$error":"#DIV/0!"},{"$error":"#DIV/0!"},{"$error":"#DIV/0!"},{"$error":"#DIV/0!"},{"$error":"#DIV/0!"},{"$error":"#DIV/0!"},{"$error":"#DIV/0!"},{"$error":"#DIV/0!"},{"$error":"#DIV/0!"},{"$error":"#DIV/0!"},{"$error":"#DIV/0!"},{"$error":"#DIV/0!"},{"$error":"#DIV/0!"},{"$error":"#DIV/0!"},{"$error":"#DIV/0!"},{"$error":"#DIV/0!"},{"$error":"#DIV/0!"},{"$error":"#DIV/0!"},{"$error":"#DIV/0!"},{"$error":"#DIV/0!"},{"$error":"#DIV/0!"},{"$error":"#DIV/0!"},{"$error":"#DIV/0!"},{"$error":"#DIV/0!"},{"$error":"#DIV/0!"},{"$error":"#DIV/0!"},{"$error":"#DIV/0!"},{"$error":"#DIV/0!"},{"$error":"#DIV/0!"},{"$error":"#DIV/0!"},{"$error":"#DIV/0!"},{"$error":"#DIV/0!"},{"$error":"#DIV/0!"}]
[null,{"$f":"'1. Baseline Demand Projection'!B44","v":"Water Loss"},{"$f":"IF(C16>0,C53/C16/0.365,0)*CHOOSE(volunit,1,1/1000,325851/1000)","v":0},0,0,0,0,0,0,0,0,0,0,0,0,0,0,0,0,0,0,0,0,0,0,0,0,0,0,0,0,0,0,0,{"$f":"IF(AI16>0,AI53/AI16/0.365,0)*CHOOSE(volunit,1,1/1000,325851/1000)","v":0},0,0,0,0,0,0,0,0,0,0,0,0,0,0,0,0,0,0,{"$f":"IF(C62>0,(BA62/C62)^(1/50)-1,0)","v":0}]
[null,"% Reduction from Baseline",{"$f":"1-C62/C37","v":{"$error":"#DIV/0!"}},{"$f":"1-D62/D37","v":{"$error":"#DIV/0!"}},{"$error":"#DIV/0!"},{"$error":"#DIV/0!"},{"$error":"#DIV/0!"},{"$error":"#DIV/0!"},{"$error":"#DIV/0!"},{"$error":"#DIV/0!"},{"$error":"#DIV/0!"},{"$error":"#DIV/0!"},{"$error":"#DIV/0!"},{"$error":"#DIV/0!"},{"$error":"#DIV/0!"},{"$error":"#DIV/0!"},{"$error":"#DIV/0!"},{"$error":"#DIV/0!"},{"$error":"#DIV/0!"},{"$error":"#DIV/0!"},{"$error":"#DIV/0!"},{"$error":"#DIV/0!"},{"$error":"#DIV/0!"},{"$error":"#DIV/0!"},{"$error":"#DIV/0!"},{"$error":"#DIV/0!"},{"$error":"#DIV/0!"},{"$error":"#DIV/0!"},{"$error":"#DIV/0!"},{"$error":"#DIV/0!"},{"$error":"#DIV/0!"},{"$error":"#DIV/0!"},{"$error":"#DIV/0!"},{"$error":"#DIV/0!"},{"$error":"#DIV/0!"},{"$error":"#DIV/0!"},{"$error":"#DIV/0!"},{"$error":"#DIV/0!"},{"$error":"#DIV/0!"},{"$error":"#DIV/0!"},{"$error":"#DIV/0!"},{"$error":"#DIV/0!"},{"$error":"#DIV/0!"},{"$error":"#DIV/0!"},{"$error":"#DIV/0!"},{"$error":"#DIV/0!"},{"$error":"#DIV/0!"},{"$error":"#DIV/0!"},{"$error":"#DIV/0!"},{"$error":"#DIV/0!"},{"$error":"#DIV/0!"},{"$error":"#DIV/0!"},{"$error":"#DIV/0!"}]

{"sheet":"Single-Year Savings Calculator","index":5,"n_rows":141,"n_cols":77,"rows_kept":141,"cut":false,"hidden":false,"merged":[]}
[null,"Single-Year Savings Calculator"]
[]
[]
[]
[]
[]
[]
[]
[]
[]
[null,{"$f":"'2. Conservation Measures'!B15","v":"Utility:"},{"$f":"'2. Conservation Measures'!C15","v":0},null,null,null,null,null,null,null,null,null,null,null,null,null,null,null,null,null,null,null,null,null,null,null,null,null,null,null,null,null,null,null,null,null,null,null,null,null,null,null,null,null,null,null,null,null,null,null,null,null,null,null,null,null,null,null,null,null,null,null,null,null,null,null,null,null,null,null,null,null,null,null,null,null,"Discounted"]
[null,{"$f":"'2. Conservation Measures'!B16","v":"Scenario:"},{"$f":"'2. Conservation Measures'!C16","v":"Empty"},{"$f":"'2. Conservation Measures'!D16","v":"Include"},null,"Enter",null,"Activity",null,null,null,null,null,null,null,null,null,{"$f":"'2. Conservation Measures'!S15","v":"Water Savings Parameters"},null,null,null,null,null,null,null,null,null,null,null,null,null,null,null,null,null,null,null,null,null,null,null,null,null,null,null,null,null,null,null,null,null,null,null,null,null,null,null,null,null,null,null,null,null,null,null,null,null,null,null,null,null,null,null,null,null,null,"Sum of"]
[null,"Volume Units:","kGal",{"$f":"'2. Conservation Measures'!D17","v":"in Plan?"},null,"Reporting",null,"Water",null,"Savings",null,{"$f":"'2. Conservation Measures'!L16","v":"Measure"},{"$f":"'2. Conservation Measures'!M16","v":"Measure"},null,{"$f":"'2. Conservation Measures'!O16","v":"Implementation Cost"},null,null,{"$f":"'2. Conservation Measures'!S16","v":"Unit"},{"$f":"'2. Conservation Measures'!T16","v":"Freerider"},{"$f":"'2. Conservation Measures'!U16","v":"Decay"},{"$f":"'2. Conservation Measures'!V16","v":"Plumb. Code"},{"$f":"'2. Conservation Measures'!W16","v":"Nat. Repl."},{"$f":"'2. Conservation Measures'!X16","v":"Useful"},null,{"$f":"\"Active Water Savings by Year generated by Reporting Year Activity (\"&singleyearcalcunit_selected&\")\"","v":"Active Water Savings by Year generated by Reporting Year Activity (kGal)"},null,null,null,null,null,null,null,null,null,null,null,null,null,null,null,null,null,null,null,null,null,null,null,null,null,null,null,null,null,null,null,null,null,null,null,null,null,null,null,null,null,null,null,null,null,null,null,null,null,null,null,"Savings"]
[null,null,null,null,null,"Year",null,"Savings",null,"Unit Cost",null,{"$f":"'2. Conservation Measures'!L17","v":"Accounting"},{"$f":"'2. Conservation Measures'!M17","v":"Delivery"},null,{"$f":"'2. Conservation Measures'!O17","v":"$ per Unit of Activity"},null,null,{"$f":"'2. Conservation Measures'!S17","v":"Savings (u)"},{"$f":"'2. Conservation Measures'!T17","v":"Rate (f)"},{"$f":"'2. Conservation Measures'!U17","v":"Rate (d)"},{"$f":"'2. Conservation Measures'!V17","v":"Interaction"},{"$f":"'2. Conservation Measures'!W17","v":"Rate (n)"},{"$f":"'2. Conservation Measures'!X17","v":"Life (T)"}]
[null,{"$f":"'2. Conservation Measures'!B18","v":"ID"},{"$f":"'2. Conservation Measures'!C18","v":"Name"},{"$f":"'2. Conservation Measures'!D18","v":"Y/N"},null,"Activity",null,{"$f":"\"(\"&singleyearcalcunit_selected&\")\"","v":"(kGal)"},null,"$/AF",null,{"$f":"'2. Conservation Measures'!L18","v":"Unit"},{"$f":"'2. Conservation Measures'!M18","v":"Method"},null,{"$f":"'2. Conservation Measures'!O18","v":"O&M"},{"$f":"'2. Conservation Measures'!P18","v":"Capital"},null,{"$f":"'2. Conservation Measures'!S18","v":"gpd"},{"$f":"'2. Conservation Measures'!T18","v":"%/yr"},{"$f":"'2. Conservation Measures'!U18","v":"%/yr"},{"$f":"'2. Conservation Measures'!V18","v":"Y/N"},{"$f":"'2. Conservation Measures'!W18","v":"%/yr"},{"$f":"'2. Conservation Measures'!X18","v":"years"},null,1,{"$f":"Y15+1","v":2},{"$f":"Z15+1","v":3},4,5,6,7,8,9,10,11,12,13,14,15,16,17,18,19,20,21,22,23,24,25,26,27,28,29,30,31,32,33,34,35,36,37,38,39,40,41,42,43,44,45,46,47,48,49,50,51,null,"(kGal)"]
[]
[null,{"$f":"'2. Conservation Measures'!B22","v":"Single-Family Measures"}]
[null,{"$f":"'2. Conservation Measures'!B23","v":"PRE-SF-01"},{"$f":"'2. Conservation Measures'!C23","v":{"$error":"#N/A"}},{"$f":"'2. Conservation Measures'!D23","v":"N"},null,null,null,{"$f":"IF(D18=\"Y\",F18*R18*(1-S18)*365/10^3,0)*CHOOSE(singleyrcalcvolunit,1,1000,1000/325851)","v":0},null,{"$f":"IF(F18>0,1,0)*'2. Conservation Measures'!AA23","v":{"$error":"#N/A"}},null,{"$f":"'2. Conservation Measures'!L23","v":{"$error":"#N/A"}},{"$f":"'2. Conservation Measures'!M23","v":{"$error":"#N/A"}},null,{"$f":"'2. Conservation Measures'!O23","v":{"$error":"#N/A"}},{"$f":"'2. Conservation Measures'!P23","v":{"$error":"#N/A"}},null,{"$f":"'2. Conservation Measures'!S23","v":{"$error":"#N/A"}},{"$f":"'2. Conservation Measures'!T23","v":{"$error":"#N/A"}},{"$f":"'2. Conservation Measures'!U23","v":{"$error":"#N/A"}},{"$f":"'2. Conservation Measures'!V23","v":{"$error":"#N/A"}},{"$f":"'2. Conservation Measures'!W23","v":{"$error":"#N/A"}},{"$f":"'2. Conservation Measures'!X23","v":{"$error":"#N/A"}},null,{"$f":"IF($D18=\"Y\",1,0)*F18*R18*(1-S18)*365/10^3*CHOOSE(singleyrcalcvolunit,1,1000,1000/325851)","v":{"$error":"#N/A"}},{"$f":"IF(Z$15<=$W18,Y18*(1-$T18)*IF($U18=\"Y\",(1-$V18),1),0)","v":{"$error":"#N/A"}},{"$f":"IF(AA$15<=$W18,Z18*(1-$T18)*IF($U18=\"Y\",(1-$V18),1),0)","v":{"$error":"#N/A"}},{"$error":"#N/A"},{"$error":"#N/A"},{"$error":"#N/A"},{"$error":"#N/A"},{"$error":"#N/A"},{"$error":"#N/A"},{"$error":"#N/A"},{"$error":"#N/A"},{"$error":"#N/A"},{"$error":"#N/A"},{"$error":"#N/A"},{"$error":"#N/A"},{"$error":"#N/A"},{"$error":"#N/A"},{"$error":"#N/A"},{"$error":"#N/A"},{"$error":"#N/A"},{"$error":"#N/A"},{"$error":"#N/A"},{"$error":"#N/A"},{"$error":"#N/A"},{"$error":"#N/A"},{"$error":"#N/A"},{"$error":"#N/A"},{"$error":"#N/A"},{"$error":"#N/A"},{"$error":"#N/A"},{"$error":"#N/A"},{"$error":"#N/A"},{"$error":"#N/A"},{"$error":"#N/A"},{"$error":"#N/A"},{"$error":"#N/A"},{"$error":"#N/A"},{"$error":"#N/A"},{"$error":"#N/A"},{"$error":"#N/A"},{"$error":"#N/A"},{"$error":"#N/A"},{"$error":"#N/A"},{"$error":"#N/A"},{"$error":"#N/A"},{"$error":"#N/A"},{"$error":"#N/A"},{"$error":"#N/A"},{"$error":"#N/A"},{"$error":"#N/A"},{"$error":"#N/A"},null,{"$f":"Y18+NPV(discount_rate,Z18:BW18)","v":{"$error":"#N/A"}}]
[null,{"$f":"'2. Conservation Measures'!B24","v":"PRE-SF-02"},{"$f":"'2. Conservation Measures'!C24","v":{"$error":"#N/A"}},{"$f":"'2. Conservation Measures'!D24","v":"N"},null,null,null,0,null,{"$f":"IF(F19>0,1,0)*'2. Conservation Measures'!AA24","v":{"$error":"#N/A"}},null,{"$f":"'2. Conservation Measures'!L24","v":{"$error":"#N/A"}},{"$f":"'2. Conservation Measures'!M24","v":{"$error":"#N/A"}},null,{"$f":"'2. Conservation Measures'!O24","v":{"$error":"#N/A"}},{"$f":"'2. Conservation Measures'!P24","v":{"$error":"#N/A"}},null,{"$f":"'2. Conservation Measures'!S24","v":{"$error":"#N/A"}},{"$f":"'2. Conservation Measures'!T24","v":{"$error":"#N/A"}},{"$f":"'2. Conservation Measures'!U24","v":{"$error":"#N/A"}},{"$f":"'2. Conservation Measures'!V24","v":{"$error":"#N/A"}},{"$f":"'2. Conservation Measures'!W24","v":{"$error":"#N/A"}},{"$f":"'2. Conservation Measures'!X24","v":{"$error":"#N/A"}},null,{"$error":"#N/A"},{"$f":"IF(Z$15<=$W19,Y19*(1-$T19)*IF($U19=\"Y\",(1-$V19),1),0)","v":{"$error":"#N/A"}},{"$error":"#N/A"},{"$error":"#N/A"},{"$error":"#N/A"},{"$error":"#N/A"},{"$error":"#N/A"},{"$error":"#N/A"},{"$error":"#N/A"},{"$error":"#N/A"},{"$error":"#N/A"},{"$error":"#N/A"},{"$error":"#N/A"},{"$error":"#N/A"},{"$error":"#N/A"},{"$error":"#N/A"},{"$error":"#N/A"},{"$error":"#N/A"},{"$error":"#N/A"},{"$error":"#N/A"},{"$error":"#N/A"},{"$error":"#N/A"},{"$error":"#N/A"},{"$error":"#N/A"},{"$error":"#N/A"},{"$error":"#N/A"},{"$error":"#N/A"},{"$error":"#N/A"},{"$error":"#N/A"},{"$error":"#N/A"},{"$error":"#N/A"},{"$error":"#N/A"},{"$error":"#N/A"},{"$error":"#N/A"},{"$error":"#N/A"},{"$error":"#N/A"},{"$error":"#N/A"},{"$error":"#N/A"},{"$error":"#N/A"},{"$error":"#N/A"},{"$error":"#N/A"},{"$error":"#N/A"},{"$error":"#N/A"},{"$error":"#N/A"},{"$error":"#N/A"},{"$error":"#N/A"},{"$error":"#N/A"},{"$error":"#N/A"},{"$error":"#N/A"},{"$error":"#N/A"},{"$error":"#N/A"},null,{"$error":"#N/A"}]
[null,{"$f":"'2. Conservation Measures'!B25","v":"PRE-SF-03"},{"$f":"'2. Conservation Measures'!C25","v":{"$error":"#N/A"}},{"$f":"'2. Conservation Measures'!D25","v":"N"},null,null,null,0,null,{"$f":"IF(F20>0,1,0)*'2. Conservation Measures'!AA25","v":{"$error":"#N/A"}},null,{"$f":"'2. Conservation Measures'!L25","v":{"$error":"#N/A"}},{"$f":"'2. Conservation Measures'!M25","v":{"$error":"#N/A"}},null,{"$f":"'2. Conservation Measures'!O25","v":{"$error":"#N/A"}},{"$f":"'2. Conservation Measures'!P25","v":{"$error":"#N/A"}},null,{"$f":"'2. Conservation Measures'!S25","v":{"$error":"#N/A"}},{"$f":"'2. Conservation Measures'!T25","v":{"$error":"#N/A"}},{"$f":"'2. Conservation Measures'!U25","v":{"$error":"#N/A"}},{"$f":"'2. Conservation Measures'!V25","v":{"$error":"#N/A"}},{"$f":"'2. Conservation Measures'!W25","v":{"$error":"#N/A"}},{"$f":"'2. Conservation Measures'!X25","v":{"$error":"#N/A"}},null,{"$error":"#N/A"},{"$f":"IF(Z$15<=$W20,Y20*(1-$T20)*IF($U20=\"Y\",(1-$V20),1),0)","v":{"$error":"#N/A"}},{"$error":"#N/A"},{"$error":"#N/A"},{"$error":"#N/A"},{"$error":"#N/A"},{"$error":"#N/A"},{"$error":"#N/A"},{"$error":"#N/A"},{"$error":"#N/A"},{"$error":"#N/A"},{"$error":"#N/A"},{"$error":"#N/A"},{"$error":"#N/A"},{"$error":"#N/A"},{"$error":"#N/A"},{"$error":"#N/A"},{"$error":"#N/A"},{"$error":"#N/A"},{"$error":"#N/A"},{"$error":"#N/A"},{"$error":"#N/A"},{"$error":"#N/A"},{"$error":"#N/A"},{"$error":"#N/A"},{"$error":"#N/A"},{"$error":"#N/A"},{"$error":"#N/A"},{"$error":"#N/A"},{"$error":"#N/A"},{"$error":"#N/A"},{"$error":"#N/A"},{"$error":"#N/A"},{"$error":"#N/A"},{"$error":"#N/A"},{"$error":"#N/A"},{"$error":"#N/A"},{"$error":"#N/A"},{"$error":"#N/A"},{"$error":"#N/A"},{"$error":"#N/A"},{"$error":"#N/A"},{"$error":"#N/A"},{"$error":"#N/A"},{"$error":"#N/A"},{"$error":"#N/A"},{"$error":"#N/A"},{"$error":"#N/A"},{"$error":"#N/A"},{"$error":"#N/A"},{"$error":"#N/A"},null,{"$error":"#N/A"}]
[null,{"$f":"'2. Conservation Measures'!B26","v":"PRE-SF-04"},{"$f":"'2. Conservation Measures'!C26","v":{"$error":"#N/A"}},{"$f":"'2. Conservation Measures'!D26","v":"N"},null,null,null,0,null,{"$f":"IF(F21>0,1,0)*'2. Conservation Measures'!AA26","v":{"$error":"#N/A"}},null,{"$f":"'2. Conservation Measures'!L26","v":{"$error":"#N/A"}},{"$f":"'2. Conservation Measures'!M26","v":{"$error":"#N/A"}},null,{"$f":"'2. Conservation Measures'!O26","v":{"$error":"#N/A"}},{"$f":"'2. Conservation Measures'!P26","v":{"$error":"#N/A"}},null,{"$f":"'2. Conservation Measures'!S26","v":{"$error":"#N/A"}},{"$f":"'2. Conservation Measures'!T26","v":{"$error":"#N/A"}},{"$f":"'2. Conservation Measures'!U26","v":{"$error":"#N/A"}},{"$f":"'2. Conservation Measures'!V26","v":{"$error":"#N/A"}},{"$f":"'2. Conservation Measures'!W26","v":{"$error":"#N/A"}},{"$f":"'2. Conservation Measures'!X26","v":{"$error":"#N/A"}},null,{"$error":"#N/A"},{"$f":"IF(Z$15<=$W21,Y21*(1-$T21)*IF($U21=\"Y\",(1-$V21),1),0)","v":{"$error":"#N/A"}},{"$error":"#N/A"},{"$error":"#N/A"},{"$error":"#N/A"},{"$error":"#N/A"},{"$error":"#N/A"},{"$error":"#N/A"},{"$error":"#N/A"},{"$error":"#N/A"},{"$error":"#N/A"},{"$error":"#N/A"},{"$error":"#N/A"},{"$error":"#N/A"},{"$error":"#N/A"},{"$error":"#N/A"},{"$error":"#N/A"},{"$error":"#N/A"},{"$error":"#N/A"},{"$error":"#N/A"},{"$error":"#N/A"},{"$error":"#N/A"},{"$error":"#N/A"},{"$error":"#N/A"},{"$error":"#N/A"},{"$error":"#N/A"},{"$error":"#N/A"},{"$error":"#N/A"},{"$error":"#N/A"},{"$error":"#N/A"},{"$error":"#N/A"},{"$error":"#N/A"},{"$error":"#N/A"},{"$error":"#N/A"},{"$error":"#N/A"},{"$error":"#N/A"},{"$error":"#N/A"},{"$error":"#N/A"},{"$error":"#N/A"},{"$error":"#N/A"},{"$error":"#N/A"},{"$error":"#N/A"},{"$error":"#N/A"},{"$error":"#N/A"},{"$error":"#N/A"},{"$error":"#N/A"},{"$error":"#N/A"},{"$error":"#N/A"},{"$error":"#N/A"},{"$error":"#N/A"},{"$error":"#N/A"},null,{"$error":"#N/A"}]
[null,{"$f":"'2. Conservation Measures'!B27","v":"PRE-SF-05"},{"$f":"'2. Conservation Measures'!C27","v":{"$error":"#N/A"}},{"$f":"'2. Conservation Measures'!D27","v":"N"},null,null,null,0,null,{"$f":"IF(F22>0,1,0)*'2. Conservation Measures'!AA27","v":{"$error":"#N/A"}},null,{"$f":"'2. Conservation Measures'!L27","v":{"$error":"#N/A"}},{"$f":"'2. Conservation Measures'!M27","v":{"$error":"#N/A"}},null,{"$f":"'2. Conservation Measures'!O27","v":{"$error":"#N/A"}},{"$f":"'2. Conservation Measures'!P27","v":{"$error":"#N/A"}},null,{"$f":"'2. Conservation Measures'!S27","v":{"$error":"#N/A"}},{"$f":"'2. Conservation Measures'!T27","v":{"$error":"#N/A"}},{"$f":"'2. Conservation Measures'!U27","v":{"$error":"#N/A"}},{"$f":"'2. Conservation Measures'!V27","v":{"$error":"#N/A"}},{"$f":"'2. Conservation Measures'!W27","v":{"$error":"#N/A"}},{"$f":"'2. Conservation Measures'!X27","v":{"$error":"#N/A"}},null,{"$error":"#N/A"},{"$f":"IF(Z$15<=$W22,Y22*(1-$T22)*IF($U22=\"Y\",(1-$V22),1),0)","v":{"$error":"#N/A"}},{"$error":"#N/A"},{"$error":"#N/A"},{"$error":"#N/A"},{"$error":"#N/A"},{"$error":"#N/A"},{"$error":"#N/A"},{"$error":"#N/A"},{"$error":"#N/A"},{"$error":"#N/A"},{"$error":"#N/A"},{"$error":"#N/A"},{"$error":"#N/A"},{"$error":"#N/A"},{"$error":"#N/A"},{"$error":"#N/A"},{"$error":"#N/A"},{"$error":"#N/A"},{"$error":"#N/A"},{"$error":"#N/A"},{"$error":"#N/A"},{"$error":"#N/A"},{"$error":"#N/A"},{"$error":"#N/A"},{"$error":"#N/A"},{"$error":"#N/A"},{"$error":"#N/A"},{"$error":"#N/A"},{"$error":"#N/A"},{"$error":"#N/A"},{"$error":"#N/A"},{"$error":"#N/A"},{"$error":"#N/A"},{"$error":"#N/A"},{"$error":"#N/A"},{"$error":"#N/A"},{"$error":"#N/A"},{"$error":"#N/A"},{"$error":"#N/A"},{"$error":"#N/A"},{"$error":"#N/A"},{"$error":"#N/A"},{"$error":"#N/A"},{"$error":"#N/A"},{"$error":"#N/A"},{"$error":"#N/A"},{"$error":"#N/A"},{"$error":"#N/A"},{"$error":"#N/A"},{"$error":"#N/A"},null,{"$error":"#N/A"}]
[null,{"$f":"'2. Conservation Measures'!B28","v":"PRE-SF-06"},{"$f":"'2. Conservation Measures'!C28","v":{"$error":"#N/A"}},{"$f":"'2. Conservation Measures'!D28","v":"N"},null,null,null,0,null,{"$f":"IF(F23>0,1,0)*'2. Conservation Measures'!AA28","v":{"$error":"#N/A"}},null,{"$f":"'2. Conservation Measures'!L28","v":{"$error":"#N/A"}},{"$f":"'2. Conservation Measures'!M28","v":{"$error":"#N/A"}},null,{"$f":"'2. Conservation Measures'!O28","v":{"$error":"#N/A"}},{"$f":"'2. Conservation Measures'!P28","v":{"$error":"#N/A"}},null,{"$f":"'2. Conservation Measures'!S28","v":{"$error":"#N/A"}},{"$f":"'2. Conservation Measures'!T28","v":{"$error":"#N/A"}},{"$f":"'2. Conservation Measures'!U28","v":{"$error":"#N/A"}},{"$f":"'2. Conservation Measures'!V28","v":{"$error":"#N/A"}},{"$f":"'2. Conservation Measures'!W28","v":{"$error":"#N/A"}},{"$f":"'2. Conservation Measures'!X28","v":{"$error":"#N/A"}},null,{"$error":"#N/A"},{"$f":"IF(Z$15<=$W23,Y23*(1-$T23)*IF($U23=\"Y\",(1-$V23),1),0)","v":{"$error":"#N/A"}},{"$error":"#N/A"},{"$error":"#N/A"},{"$error":"#N/A"},{"$error":"#N/A"},{"$error":"#N/A"},{"$error":"#N/A"},{"$error":"#N/A"},{"$error":"#N/A"},{"$error":"#N/A"},{"$error":"#N/A"},{"$error":"#N/A"},{"$error":"#N/A"},{"$error":"#N/A"},{"$error":"#N/A"},{"$error":"#N/A"},{"$error":"#N/A"},{"$error":"#N/A"},{"$error":"#N/A"},{"$error":"#N/A"},{"$error":"#N/A"},{"$error":"#N/A"},{"$error":"#N/A"},{"$error":"#N/A"},{"$error":"#N/A"},{"$error":"#N/A"},{"$error":"#N/A"},{"$error":"#N/A"},{"$error":"#N/A"},{"$error":"#N/A"},{"$error":"#N/A"},{"$error":"#N/A"},{"$error":"#N/A"},{"$error":"#N/A"},{"$error":"#N/A"},{"$error":"#N/A"},{"$error":"#N/A"},{"$error":"#N/A"},{"$error":"#N/A"},{"$error":"#N/A"},{"$error":"#N/A"},{"$error":"#N/A"},{"$error":"#N/A"},{"$error":"#N/A"},{"$error":"#N/A"},{"$error":"#N/A"},{"$error":"#N/A"},{"$error":"#N/A"},{"$error":"#N/A"},{"$error":"#N/A"},null,{"$error":"#N/A"}]
[null,{"$f":"'2. Conservation Measures'!B29","v":"PRE-SF-07"},{"$f":"'2. Conservation Measures'!C29","v":{"$error":"#N/A"}},{"$f":"'2. Conservation Measures'!D29","v":"N"},null,null,null,0,null,{"$f":"IF(F24>0,1,0)*'2. Conservation Measures'!AA29","v":{"$error":"#N/A"}},null,{"$f":"'2. Conservation Measures'!L29","v":{"$error":"#N/A"}},{"$f":"'2. Conservation Measures'!M29","v":{"$error":"#N/A"}},null,{"$f":"'2. Conservation Measures'!O29","v":{"$error":"#N/A"}},{"$f":"'2. Conservation Measures'!P29","v":{"$error":"#N/A"}},null,{"$f":"'2. Conservation Measures'!S29","v":{"$error":"#N/A"}},{"$f":"'2. Conservation Measures'!T29","v":{"$error":"#N/A"}},{"$f":"'2. Conservation Measures'!U29","v":{"$error":"#N/A"}},{"$f":"'2. Conservation Measures'!V29","v":{"$error":"#N/A"}},{"$f":"'2. Conservation Measures'!W29","v":{"$error":"#N/A"}},{"$f":"'2. Conservation Measures'!X29","v":{"$error":"#N/A"}},null,{"$error":"#N/A"},{"$f":"IF(Z$15<=$W24,Y24*(1-$T24)*IF($U24=\"Y\",(1-$V24),1),0)","v":{"$error":"#N/A"}},{"$error":"#N/A"},{"$error":"#N/A"},{"$error":"#N/A"},{"$error":"#N/A"},{"$error":"#N/A"},{"$error":"#N/A"},{"$error":"#N/A"},{"$error":"#N/A"},{"$error":"#N/A"},{"$error":"#N/A"},{"$error":"#N/A"},{"$error":"#N/A"},{"$error":"#N/A"},{"$error":"#N/A"},{"$error":"#N/A"},{"$error":"#N/A"},{"$error":"#N/A"},{"$error":"#N/A"},{"$error":"#N/A"},{"$error":"#N/A"},{"$error":"#N/A"},{"$error":"#N/A"},{"$error":"#N/A"},{"$error":"#N/A"},{"$error":"#N/A"},{"$error":"#N/A"},{"$error":"#N/A"},{"$error":"#N/A"},{"$error":"#N/A"},{"$error":"#N/A"},{"$error":"#N/A"},{"$error":"#N/A"},{"$error":"#N/A"},{"$error":"#N/A"},{"$error":"#N/A"},{"$error":"#N/A"},{"$error":"#N/A"},{"$error":"#N/A"},{"$error":"#N/A"},{"$error":"#N/A"},{"$error":"#N/A"},{"$error":"#N/A"},{"$error":"#N/A"},{"$error":"#N/A"},{"$error":"#N/A"},{"$error":"#N/A"},{"$error":"#N/A"},{"$error":"#N/A"},{"$error":"#N/A"},null,{"$error":"#N/A"}]
[null,{"$f":"'2. Conservation Measures'!B30","v":"PRE-SF-08"},{"$f":"'2. Conservation Measures'!C30","v":{"$error":"#N/A"}},{"$f":"'2. Conservation Measures'!D30","v":"N"},null,null,null,0,null,{"$f":"IF(F25>0,1,0)*'2. Conservation Measures'!AA30","v":{"$error":"#N/A"}},null,{"$f":"'2. Conservation Measures'!L30","v":{"$error":"#N/A"}},{"$f":"'2. Conservation Measures'!M30","v":{"$error":"#N/A"}},null,{"$f":"'2. Conservation Measures'!O30","v":{"$error":"#N/A"}},{"$f":"'2. Conservation Measures'!P30","v":{"$error":"#N/A"}},null,{"$f":"'2. Conservation Measures'!S30","v":{"$error":"#N/A"}},{"$f":"'2. Conservation Measures'!T30","v":{"$error":"#N/A"}},{"$f":"'2. Conservation Measures'!U30","v":{"$error":"#N/A"}},{"$f":"'2. Conservation Measures'!V30","v":{"$error":"#N/A"}},{"$f":"'2. Conservation Measures'!W30","v":{"$error":"#N/A"}},{"$f":"'2. Conservation Measures'!X30","v":{"$error":"#N/A"}},null,{"$error":"#N/A"},{"$f":"IF(Z$15<=$W25,Y25*(1-$T25)*IF($U25=\"Y\",(1-$V25),1),0)","v":{"$error":"#N/A"}},{"$error":"#N/A"},{"$error":"#N/A"},{"$error":"#N/A"},{"$error":"#N/A"},{"$error":"#N/A"},{"$error":"#N/A"},{"$error":"#N/A"},{"$error":"#N/A"},{"$error":"#N/A"},{"$error":"#N/A"},{"$error":"#N/A"},{"$error":"#N/A"},{"$error":"#N/A"},{"$error":"#N/A"},{"$error":"#N/A"},{"$error":"#N/A"},{"$error":"#N/A"},{"$error":"#N/A"},{"$error":"#N/A"},{"$error":"#N/A"},{"$error":"#N/A"},{"$error":"#N/A"},{"$error":"#N/A"},{"$error":"#N/A"},{"$error":"#N/A"},{"$error":"#N/A"},{"$error":"#N/A"},{"$error":"#N/A"},{"$error":"#N/A"},{"$error":"#N/A"},{"$error":"#N/A"},{"$error":"#N/A"},{"$error":"#N/A"},{"$error":"#N/A"},{"$error":"#N/A"},{"$error":"#N/A"},{"$error":"#N/A"},{"$error":"#N/A"},{"$error":"#N/A"},{"$error":"#N/A"},{"$error":"#N/A"},{"$error":"#N/A"},{"$error":"#N/A"},{"$error":"#N/A"},{"$error":"#N/A"},{"$error":"#N/A"},{"$error":"#N/A"},{"$error":"#N/A"},{"$error":"#N/A"},null,{"$error":"#N/A"}]
[null,{"$f":"'2. Conservation Measures'!B31","v":"PRE-SF-09"},{"$f":"'2. Conservation Measures'!C31","v":{"$error":"#N/A"}},{"$f":"'2. Conservation Measures'!D31","v":"N"},null,null,null,0,null,{"$f":"IF(F26>0,1,0)*'2. Conservation Measures'!AA31","v":{"$error":"#N/A"}},null,{"$f":"'2. Conservation Measures'!L31","v":{"$error":"#N/A"}},{"$f":"'2. Conservation Measures'!M31","v":{"$error":"#N/A"}},null,{"$f":"'2. Conservation Measures'!O31","v":{"$error":"#N/A"}},{"$f":"'2. Conservation Measures'!P31","v":{"$error":"#N/A"}},null,{"$f":"'2. Conservation Measures'!S31","v":{"$error":"#N/A"}},{"$f":"'2. Conservation Measures'!T31","v":{"$error":"#N/A"}},{"$f":"'2. Conservation Measures'!U31","v":{"$error":"#N/A"}},{"$f":"'2. Conservation Measures'!V31","v":{"$error":"#N/A"}},{"$f":"'2. Conservation Measures'!W31","v":{"$error":"#N/A"}},{"$f":"'2. Conservation Measures'!X31","v":{"$error":"#N/A"}},null,{"$error":"#N/A"},{"$f":"IF(Z$15<=$W26,Y26*(1-$T26)*IF($U26=\"Y\",(1-$V26),1),0)","v":{"$error":"#N/A"}},{"$error":"#N/A"},{"$error":"#N/A"},{"$error":"#N/A"},{"$error":"#N/A"},{"$error":"#N/A"},{"$error":"#N/A"},{"$error":"#N/A"},{"$error":"#N/A"},{"$error":"#N/A"},{"$error":"#N/A"},{"$error":"#N/A"},{"$error":"#N/A"},{"$error":"#N/A"},{"$error":"#N/A"},{"$error":"#N/A"},{"$error":"#N/A"},{"$error":"#N/A"},{"$error":"#N/A"},{"$error":"#N/A"},{"$error":"#N/A"},{"$error":"#N/A"},{"$error":"#N/A"},{"$error":"#N/A"},{"$error":"#N/A"},{"$error":"#N/A"},{"$error":"#N/A"},{"$error":"#N/A"},{"$error":"#N/A"},{"$error":"#N/A"},{"$error":"#N/A"},{"$error":"#N/A"},{"$error":"#N/A"},{"$error":"#N/A"},{"$error":"#N/A"},{"$error":"#N/A"},{"$error":"#N/A"},{"$error":"#N/A"},{"$error":"#N/A"},{"$error":"#N/A"},{"$error":"#N/A"},{"$error":"#N/A"},{"$error":"#N/A"},{"$error":"#N/A"},{"$error":"#N/A"},{"$error":"#N/A"},{"$error":"#N/A"},{"$error":"#N/A"},{"$error":"#N/A"},{"$error":"#N/A"},null,{"$error":"#N/A"}]
[null,{"$f":"'2. Conservation Measures'!B32","v":"PRE-SF-10"},{"$f":"'2. Conservation Measures'!C32","v":{"$error":"#N/A"}},{"$f":"'2. Conservation Measures'!D32","v":"N"},null,null,null,0,null,{"$f":"IF(F27>0,1,0)*'2. Conservation Measures'!AA32","v":{"$error":"#N/A"}},null,{"$f":"'2. Conservation Measures'!L32","v":{"$error":"#N/A"}},{"$f":"'2. Conservation Measures'!M32","v":{"$error":"#N/A"}},null,{"$f":"'2. Conservation Measures'!O32","v":{"$error":"#N/A"}},{"$f":"'2. Conservation Measures'!P32","v":{"$error":"#N/A"}},null,{"$f":"'2. Conservation Measures'!S32","v":{"$error":"#N/A"}},{"$f":"'2. Conservation Measures'!T32","v":{"$error":"#N/A"}},{"$f":"'2. Conservation Measures'!U32","v":{"$error":"#N/A"}},{"$f":"'2. Conservation Measures'!V32","v":{"$error":"#N/A"}},{"$f":"'2. Conservation Measures'!W32","v":{"$error":"#N/A"}},{"$f":"'2. Conservation Measures'!X32","v":{"$error":"#N/A"}},null,{"$error":"#N/A"},{"$f":"IF(Z$15<=$W27,Y27*(1-$T27)*IF($U27=\"Y\",(1-$V27),1),0)","v":{"$error":"#N/A"}},{"$error":"#N/A"},{"$error":"#N/A"},{"$error":"#N/A"},{"$error":"#N/A"},{"$error":"#N/A"},{"$error":"#N/A"},{"$error":"#N/A"},{"$error":"#N/A"},{"$error":"#N/A"},{"$error":"#N/A"},{"$error":"#N/A"},{"$error":"#N/A"},{"$error":"#N/A"},{"$error":"#N/A"},{"$error":"#N/A"},{"$error":"#N/A"},{"$error":"#N/A"},{"$error":"#N/A"},{"$error":"#N/A"},{"$error":"#N/A"},{"$error":"#N/A"},{"$error":"#N/A"},{"$error":"#N/A"},{"$error":"#N/A"},{"$error":"#N/A"},{"$error":"#N/A"},{"$error":"#N/A"},{"$error":"#N/A"},{"$error":"#N/A"},{"$error":"#N/A"},{"$error":"#N/A"},{"$error":"#N/A"},{"$error":"#N/A"},{"$error":"#N/A"},{"$error":"#N/A"},{"$error":"#N/A"},{"$error":"#N/A"},{"$error":"#N/A"},{"$error":"#N/A"},{"$error":"#N/A"},{"$error":"#N/A"},{"$error":"#N/A"},{"$error":"#N/A"},{"$error":"#N/A"},{"$error":"#N/A"},{"$error":"#N/A"},{"$error":"#N/A"},{"$error":"#N/A"},{"$error":"#N/A"},null,{"$error":"#N/A"}]
[null,{"$f":"'2. Conservation Measures'!B33","v":"PRE-SF-11"},{"$f":"'2. Conservation Measures'!C33","v":{"$error":"#N/A"}},{"$f":"'2. Conservation Measures'!D33","v":"N"},null,null,null,0,null,{"$f":"IF(F28>0,1,0)*'2. Conservation Measures'!AA33","v":{"$error":"#N/A"}},null,{"$f":"'2. Conservation Measures'!L33","v":{"$error":"#N/A"}},{"$f":"'2. Conservation Measures'!M33","v":{"$error":"#N/A"}},null,{"$f":"'2. Conservation Measures'!O33","v":{"$error":"#N/A"}},{"$f":"'2. Conservation Measures'!P33","v":{"$error":"#N/A"}},null,{"$f":"'2. Conservation Measures'!S33","v":{"$error":"#N/A"}},{"$f":"'2. Conservation Measures'!T33","v":{"$error":"#N/A"}},{"$f":"'2. Conservation Measures'!U33","v":{"$error":"#N/A"}},{"$f":"'2. Conservation Measures'!V33","v":{"$error":"#N/A"}},{"$f":"'2. Conservation Measures'!W33","v":{"$error":"#N/A"}},{"$f":"'2. Conservation Measures'!X33","v":{"$error":"#N/A"}},null,{"$error":"#N/A"},{"$f":"IF(Z$15<=$W28,Y28*(1-$T28)*IF($U28=\"Y\",(1-$V28),1),0)","v":{"$error":"#N/A"}},{"$error":"#N/A"},{"$error":"#N/A"},{"$error":"#N/A"},{"$error":"#N/A"},{"$error":"#N/A"},{"$error":"#N/A"},{"$error":"#N/A"},{"$error":"#N/A"},{"$error":"#N/A"},{"$error":"#N/A"},{"$error":"#N/A"},{"$error":"#N/A"},{"$error":"#N/A"},{"$error":"#N/A"},{"$error":"#N/A"},{"$error":"#N/A"},{"$error":"#N/A"},{"$error":"#N/A"},{"$error":"#N/A"},{"$error":"#N/A"},{"$error":"#N/A"},{"$error":"#N/A"},{"$error":"#N/A"},{"$error":"#N/A"},{"$error":"#N/A"},{"$error":"#N/A"},{"$error":"#N/A"},{"$error":"#N/A"},{"$error":"#N/A"},{"$error":"#N/A"},{"$error":"#N/A"},{"$error":"#N/A"},{"$error":"#N/A"},{"$error":"#N/A"},{"$error":"#N/A"},{"$error":"#N/A"},{"$error":"#N/A"},{"$error":"#N/A"},{"$error":"#N/A"},{"$error":"#N/A"},{"$error":"#N/A"},{"$error":"#N/A"},{"$error":"#N/A"},{"$error":"#N/A"},{"$error":"#N/A"},{"$error":"#N/A"},{"$error":"#N/A"},{"$error":"#N/A"},{"$error":"#N/A"},null,{"$error":"#N/A"}]
[null,{"$f":"'2. Conservation Measures'!B64","v":"USR-SF-01"},{"$f":"'2. Conservation Measures'!C64","v":0},{"$f":"'2. Conservation Measures'!D64","v":"N"},null,null,null,0,null,{"$f":"IF(F29>0,1,0)*'2. Conservation Measures'!AA64","v":0},null,{"$f":"'2. Conservation Measures'!L64","v":0},{"$f":"'2. Conservation Measures'!M64","v":0},null,{"$f":"'2. Conservation Measures'!O64","v":0},{"$f":"'2. Conservation Measures'!P64","v":0},null,{"$f":"'2. Conservation Measures'!S64","v":0},{"$f":"'2. Conservation Measures'!T64","v":0},{"$f":"'2. Conservation Measures'!U64","v":0},{"$f":"'2. Conservation Measures'!V64","v":0},{"$f":"'2. Conservation Measures'!W64","v":0},{"$f":"'2. Conservation Measures'!X64","v":0},null,0,{"$f":"IF(Z$15<=$W29,Y29*(1-$T29)*IF($U29=\"Y\",(1-$V29),1),0)","v":0},0,0,0,0,0,0,0,0,0,0,0,0,0,0,0,0,0,0,0,0,0,0,0,0,0,0,0,0,0,0,0,0,0,0,0,0,0,0,0,0,0,0,0,0,0,0,0,0,0,null,0]
[null,{"$f":"'2. Conservation Measures'!B65","v":"USR-SF-02"},{"$f":"'2. Conservation Measures'!C65","v":0},{"$f":"'2. Conservation Measures'!D65","v":"N"},null,null,null,0,null,{"$f":"IF(F30>0,1,0)*'2. Conservation Measures'!AA65","v":0},null,{"$f":"'2. Conservation Measures'!L65","v":0},{"$f":"'2. Conservation Measures'!M65","v":0},null,{"$f":"'2. Conservation Measures'!O65","v":0},{"$f":"'2. Conservation Measures'!P65","v":0},null,{"$f":"'2. Conservation Measures'!S65","v":0},{"$f":"'2. Conservation Measures'!T65","v":0},{"$f":"'2. Conservation Measures'!U65","v":0},{"$f":"'2. Conservation Measures'!V65","v":0},{"$f":"'2. Conservation Measures'!W65","v":0},{"$f":"'2. Conservation Measures'!X65","v":0},null,0,{"$f":"IF(Z$15<=$W30,Y30*(1-$T30)*IF($U30=\"Y\",(1-$V30),1),0)","v":0},0,0,0,0,0,0,0,0,0,0,0,0,0,0,0,0,0,0,0,0,0,0,0,0,0,0,0,0,0,0,0,0,0,0,0,0,0,0,0,0,0,0,0,0,0,0,0,0,0,null,0]
[null,{"$f":"'2. Conservation Measures'!B66","v":"USR-SF-03"},{"$f":"'2. Conservation Measures'!C66","v":0},{"$f":"'2. Conservation Measures'!D66","v":"N"},null,null,null,0,null,{"$f":"IF(F31>0,1,0)*'2. Conservation Measures'!AA66","v":0},null,{"$f":"'2. Conservation Measures'!L66","v":0},{"$f":"'2. Conservation Measures'!M66","v":0},null,{"$f":"'2. Conservation Measures'!O66","v":0},{"$f":"'2. Conservation Measures'!P66","v":0},null,{"$f":"'2. Conservation Measures'!S66","v":0},{"$f":"'2. Conservation Measures'!T66","v":0},{"$f":"'2. Conservation Measures'!U66","v":0},{"$f":"'2. Conservation Measures'!V66","v":0},{"$f":"'2. Conservation Measures'!W66","v":0},{"$f":"'2. Conservation Measures'!X66","v":0},null,0,{"$f":"IF(Z$15<=$W31,Y31*(1-$T31)*IF($U31=\"Y\",(1-$V31),1),0)","v":0},0,0,0,0,0,0,0,0,0,0,0,0,0,0,0,0,0,0,0,0,0,0,0,0,0,0,0,0,0,0,0,0,0,0,0,0,0,0,0,0,0,0,0,0,0,0,0,0,0,null,0]
[null,{"$f":"'2. Conservation Measures'!B67","v":"USR-SF-04"},{"$f":"'2. Conservation Measures'!C67","v":0},{"$f":"'2. Conservation Measures'!D67","v":"N"},null,null,null,0,null,{"$f":"IF(F32>0,1,0)*'2. Conservation Measures'!AA67","v":0},null,{"$f":"'2. Conservation Measures'!L67","v":0},{"$f":"'2. Conservation Measures'!M67","v":0},null,{"$f":"'2. Conservation Measures'!O67","v":0},{"$f":"'2. Conservation Measures'!P67","v":0},null,{"$f":"'2. Conservation Measures'!S67","v":0},{"$f":"'2. Conservation Measures'!T67","v":0},{"$f":"'2. Conservation Measures'!U67","v":0},{"$f":"'2. Conservation Measures'!V67","v":0},{"$f":"'2. Conservation Measures'!W67","v":0},{"$f":"'2. Conservation Measures'!X67","v":0},null,0,{"$f":"IF(Z$15<=$W32,Y32*(1-$T32)*IF($U32=\"Y\",(1-$V32),1),0)","v":0},0,0,0,0,0,0,0,0,0,0,0,0,0,0,0,0,0,0,0,0,0,0,0,0,0,0,0,0,0,0,0,0,0,0,0,0,0,0,0,0,0,0,0,0,0,0,0,0,0,null,0]
[null,{"$f":"'2. Conservation Measures'!B68","v":"USR-SF-05"},{"$f":"'2. Conservation Measures'!C68","v":0},{"$f":"'2. Conservation Measures'!D68","v":"N"},null,null,null,0,null,{"$f":"IF(F33>0,1,0)*'2. Conservation Measures'!AA68","v":0},null,{"$f":"'2. Conservation Measures'!L68","v":0},{"$f":"'2. Conservation Measures'!M68","v":0},null,{"$f":"'2. Conservation Measures'!O68","v":0},{"$f":"'2. Conservation Measures'!P68","v":0},null,{"$f":"'2. Conservation Measures'!S68","v":0},{"$f":"'2. Conservation Measures'!T68","v":0},{"$f":"'2. Conservation Measures'!U68","v":0},{"$f":"'2. Conservation Measures'!V68","v":0},{"$f":"'2. Conservation Measures'!W68","v":0},{"$f":"'2. Conservation Measures'!X68","v":0},null,0,{"$f":"IF(Z$15<=$W33,Y33*(1-$T33)*IF($U33=\"Y\",(1-$V33),1),0)","v":0},0,0,0,0,0,0,0,0,0,0,0,0,0,0,0,0,0,0,0,0,0,0,0,0,0,0,0,0,0,0,0,0,0,0,0,0,0,0,0,0,0,0,0,0,0,0,0,0,0,null,0]
[null,{"$f":"'2. Conservation Measures'!B69","v":"USR-SF-06"},{"$f":"'2. Conservation Measures'!C69","v":0},{"$f":"'2. Conservation Measures'!D69","v":"N"},null,null,null,0,null,{"$f":"IF(F34>0,1,0)*'2. Conservation Measures'!AA69","v":0},null,{"$f":"'2. Conservation Measures'!L69","v":0},{"$f":"'2. Conservation Measures'!M69","v":0},null,{"$f":"'2. Conservation Measures'!O69","v":0},{"$f":"'2. Conservation Measures'!P69","v":0},null,{"$f":"'2. Conservation Measures'!S69","v":0},{"$f":"'2. Conservation Measures'!T69","v":0},{"$f":"'2. Conservation Measures'!U69","v":0},{"$f":"'2. Conservation Measures'!V69","v":0},{"$f":"'2. Conservation Measures'!W69","v":0},{"$f":"'2. Conservation Measures'!X69","v":0},null,0,{"$f":"IF(Z$15<=$W34,Y34*(1-$T34)*IF($U34=\"Y\",(1-$V34),1),0)","v":0},0,0,0,0,0,0,0,0,0,0,0,0,0,0,0,0,0,0,0,0,0,0,0,0,0,0,0,0,0,0,0,0,0,0,0,0,0,0,0,0,0,0,0,0,0,0,0,0,0,null,0]
[null,{"$f":"'2. Conservation Measures'!B70","v":"USR-SF-07"},{"$f":"'2. Conservation Measures'!C70","v":0},{"$f":"'2. Conservation Measures'!D70","v":"N"},null,null,null,0,null,{"$f":"IF(F35>0,1,0)*'2. Conservation Measures'!AA70","v":0},null,{"$f":"'2. Conservation Measures'!L70","v":0},{"$f":"'2. Conservation Measures'!M70","v":0},null,{"$f":"'2. Conservation Measures'!O70","v":0},{"$f":"'2. Conservation Measures'!P70","v":0},null,{"$f":"'2. Conservation Measures'!S70","v":0},{"$f":"'2. Conservation Measures'!T70","v":0},{"$f":"'2. Conservation Measures'!U70","v":0},{"$f":"'2. Conservation Measures'!V70","v":0},{"$f":"'2. Conservation Measures'!W70","v":0},{"$f":"'2. Conservation Measures'!X70","v":0},null,0,{"$f":"IF(Z$15<=$W35,Y35*(1-$T35)*IF($U35=\"Y\",(1-$V35),1),0)","v":0},0,0,0,0,0,0,0,0,0,0,0,0,0,0,0,0,0,0,0,0,0,0,0,0,0,0,0,0,0,0,0,0,0,0,0,0,0,0,0,0,0,0,0,0,0,0,0,0,0,null,0]
[null,{"$f":"'2. Conservation Measures'!B71","v":"USR-SF-08"},{"$f":"'2. Conservation Measures'!C71","v":0},{"$f":"'2. Conservation Measures'!D71","v":"N"},null,null,null,0,null,{"$f":"IF(F36>0,1,0)*'2. Conservation Measures'!AA71","v":0},null,{"$f":"'2. Conservation Measures'!L71","v":0},{"$f":"'2. Conservation Measures'!M71","v":0},null,{"$f":"'2. Conservation Measures'!O71","v":0},{"$f":"'2. Conservation Measures'!P71","v":0},null,{"$f":"'2. Conservation Measures'!S71","v":0},{"$f":"'2. Conservation Measures'!T71","v":0},{"$f":"'2. Conservation Measures'!U71","v":0},{"$f":"'2. Conservation Measures'!V71","v":0},{"$f":"'2. Conservation Measures'!W71","v":0},{"$f":"'2. Conservation Measures'!X71","v":0},null,0,{"$f":"IF(Z$15<=$W36,Y36*(1-$T36)*IF($U36=\"Y\",(1-$V36),1),0)","v":0},0,0,0,0,0,0,0,0,0,0,0,0,0,0,0,0,0,0,0,0,0,0,0,0,0,0,0,0,0,0,0,0,0,0,0,0,0,0,0,0,0,0,0,0,0,0,0,0,0,null,0]
[null,{"$f":"'2. Conservation Measures'!B72","v":"USR-SF-09"},{"$f":"'2. Conservation Measures'!C72","v":0},{"$f":"'2. Conservation Measures'!D72","v":"N"},null,null,null,0,null,{"$f":"IF(F37>0,1,0)*'2. Conservation Measures'!AA72","v":0},null,{"$f":"'2. Conservation Measures'!L72","v":0},{"$f":"'2. Conservation Measures'!M72","v":0},null,{"$f":"'2. Conservation Measures'!O72","v":0},{"$f":"'2. Conservation Measures'!P72","v":0},null,{"$f":"'2. Conservation Measures'!S72","v":0},{"$f":"'2. Conservation Measures'!T72","v":0},{"$f":"'2. Conservation Measures'!U72","v":0},{"$f":"'2. Conservation Measures'!V72","v":0},{"$f":"'2. Conservation Measures'!W72","v":0},{"$f":"'2. Conservation Measures'!X72","v":0},null,0,{"$f":"IF(Z$15<=$W37,Y37*(1-$T37)*IF($U37=\"Y\",(1-$V37),1),0)","v":0},0,0,0,0,0,0,0,0,0,0,0,0,0,0,0,0,0,0,0,0,0,0,0,0,0,0,0,0,0,0,0,0,0,0,0,0,0,0,0,0,0,0,0,0,0,0,0,0,0,null,0]
[null,{"$f":"'2. Conservation Measures'!B73","v":"USR-SF-10"},{"$f":"'2. Conservation Measures'!C73","v":0},{"$f":"'2. Conservation Measures'!D73","v":"N"},null,null,null,0,null,{"$f":"IF(F38>0,1,0)*'2. Conservation Measures'!AA73","v":0},null,{"$f":"'2. Conservation Measures'!L73","v":0},{"$f":"'2. Conservation Measures'!M73","v":0},null,{"$f":"'2. Conservation Measures'!O73","v":0},{"$f":"'2. Conservation Measures'!P73","v":0},null,{"$f":"'2. Conservation Measures'!S73","v":0},{"$f":"'2. Conservation Measures'!T73","v":0},{"$f":"'2. Conservation Measures'!U73","v":0},{"$f":"'2. Conservation Measures'!V73","v":0},{"$f":"'2. Conservation Measures'!W73","v":0},{"$f":"'2. Conservation Measures'!X73","v":0},null,0,{"$f":"IF(Z$15<=$W38,Y38*(1-$T38)*IF($U38=\"Y\",(1-$V38),1),0)","v":0},0,0,0,0,0,0,0,0,0,0,0,0,0,0,0,0,0,0,0,0,0,0,0,0,0,0,0,0,0,0,0,0,0,0,0,0,0,0,0,0,0,0,0,0,0,0,0,0,0,null,0]
[null,{"$f":"'2. Conservation Measures'!B74","v":"USR-SF-11"},{"$f":"'2. Conservation Measures'!C74","v":0},{"$f":"'2. Conservation Measures'!D74","v":"N"},null,null,null,0,null,{"$f":"IF(F39>0,1,0)*'2. Conservation Measures'!AA74","v":0},null,{"$f":"'2. Conservation Measures'!L74","v":0},{"$f":"'2. Conservation Measures'!M74","v":0},null,{"$f":"'2. Conservation Measures'!O74","v":0},{"$f":"'2. Conservation Measures'!P74","v":0},null,{"$f":"'2. Conservation Measures'!S74","v":0},{"$f":"'2. Conservation Measures'!T74","v":0},{"$f":"'2. Conservation Measures'!U74","v":0},{"$f":"'2. Conservation Measures'!V74","v":0},{"$f":"'2. Conservation Measures'!W74","v":0},{"$f":"'2. Conservation Measures'!X74","v":0},null,0,{"$f":"IF(Z$15<=$W39,Y39*(1-$T39)*IF($U39=\"Y\",(1-$V39),1),0)","v":0},0,0,0,0,0,0,0,0,0,0,0,0,0,0,0,0,0,0,0,0,0,0,0,0,0,0,0,0,0,0,0,0,0,0,0,0,0,0,0,0,0,0,0,0,0,0,0,0,0,null,0]
[null,{"$f":"'2. Conservation Measures'!B75","v":"USR-SF-12"},{"$f":"'2. Conservation Measures'!C75","v":0},{"$f":"'2. Conservation Measures'!D75","v":"N"},null,null,null,0,null,{"$f":"IF(F40>0,1,0)*'2. Conservation Measures'!AA75","v":0},null,{"$f":"'2. Conservation Measures'!L75","v":0},{"$f":"'2. Conservation Measures'!M75","v":0},null,{"$f":"'2. Conservation Measures'!O75","v":0},{"$f":"'2. Conservation Measures'!P75","v":0},null,{"$f":"'2. Conservation Measures'!S75","v":0},{"$f":"'2. Conservation Measures'!T75","v":0},{"$f":"'2. Conservation Measures'!U75","v":0},{"$f":"'2. Conservation Measures'!V75","v":0},{"$f":"'2. Conservation Measures'!W75","v":0},{"$f":"'2. Conservation Measures'!X75","v":0},null,0,{"$f":"IF(Z$15<=$W40,Y40*(1-$T40)*IF($U40=\"Y\",(1-$V40),1),0)","v":0},0,0,0,0,0,0,0,0,0,0,0,0,0,0,0,0,0,0,0,0,0,0,0,0,0,0,0,0,0,0,0,0,0,0,0,0,0,0,0,0,0,0,0,0,0,0,0,0,0,null,0]
[null,{"$f":"'2. Conservation Measures'!B76","v":"USR-SF-13"},{"$f":"'2. Conservation Measures'!C76","v":0},{"$f":"'2. Conservation Measures'!D76","v":"N"},null,null,null,0,null,{"$f":"IF(F41>0,1,0)*'2. Conservation Measures'!AA76","v":0},null,{"$f":"'2. Conservation Measures'!L76","v":0},{"$f":"'2. Conservation Measures'!M76","v":0},null,{"$f":"'2. Conservation Measures'!O76","v":0},{"$f":"'2. Conservation Measures'!P76","v":0},null,{"$f":"'2. Conservation Measures'!S76","v":0},{"$f":"'2. Conservation Measures'!T76","v":0},{"$f":"'2. Conservation Measures'!U76","v":0},{"$f":"'2. Conservation Measures'!V76","v":0},{"$f":"'2. Conservation Measures'!W76","v":0},{"$f":"'2. Conservation Measures'!X76","v":0},null,0,{"$f":"IF(Z$15<=$W41,Y41*(1-$T41)*IF($U41=\"Y\",(1-$V41),1),0)","v":0},0,0,0,0,0,0,0,0,0,0,0,0,0,0,0,0,0,0,0,0,0,0,0,0,0,0,0,0,0,0,0,0,0,0,0,0,0,0,0,0,0,0,0,0,0,0,0,0,0,null,0]
[null,{"$f":"'2. Conservation Measures'!B77","v":"USR-SF-14"},{"$f":"'2. Conservation Measures'!C77","v":0},{"$f":"'2. Conservation Measures'!D77","v":"N"},null,null,null,0,null,{"$f":"IF(F42>0,1,0)*'2. Conservation Measures'!AA77","v":0},null,{"$f":"'2. Conservation Measures'!L77","v":0},{"$f":"'2. Conservation Measures'!M77","v":0},null,{"$f":"'2. Conservation Measures'!O77","v":0},{"$f":"'2. Conservation Measures'!P77","v":0},null,{"$f":"'2. Conservation Measures'!S77","v":0},{"$f":"'2. Conservation Measures'!T77","v":0},{"$f":"'2. Conservation Measures'!U77","v":0},{"$f":"'2. Conservation Measures'!V77","v":0},{"$f":"'2. Conservation Measures'!W77","v":0},{"$f":"'2. Conservation Measures'!X77","v":0},null,0,{"$f":"IF(Z$15<=$W42,Y42*(1-$T42)*IF($U42=\"Y\",(1-$V42),1),0)","v":0},0,0,0,0,0,0,0,0,0,0,0,0,0,0,0,0,0,0,0,0,0,0,0,0,0,0,0,0,0,0,0,0,0,0,0,0,0,0,0,0,0,0,0,0,0,0,0,0,0,null,0]
[null,{"$f":"'2. Conservation Measures'!B78","v":"USR-SF-15"},{"$f":"'2. Conservation Measures'!C78","v":0},{"$f":"'2. Conservation Measures'!D78","v":"N"},null,null,null,0,null,{"$f":"IF(F43>0,1,0)*'2. Conservation Measures'!AA78","v":0},null,{"$f":"'2. Conservation Measures'!L78","v":0},{"$f":"'2. Conservation Measures'!M78","v":0},null,{"$f":"'2. Conservation Measures'!O78","v":0},{"$f":"'2. Conservation Measures'!P78","v":0},null,{"$f":"'2. Conservation Measures'!S78","v":0},{"$f":"'2. Conservation Measures'!T78","v":0},{"$f":"'2. Conservation Measures'!U78","v":0},{"$f":"'2. Conservation Measures'!V78","v":0},{"$f":"'2. Conservation Measures'!W78","v":0},{"$f":"'2. Conservation Measures'!X78","v":0},null,0,{"$f":"IF(Z$15<=$W43,Y43*(1-$T43)*IF($U43=\"Y\",(1-$V43),1),0)","v":0},0,0,0,0,0,0,0,0,0,0,0,0,0,0,0,0,0,0,0,0,0,0,0,0,0,0,0,0,0,0,0,0,0,0,0,0,0,0,0,0,0,0,0,0,0,0,0,0,0,null,0]
[null,{"$f":"'2. Conservation Measures'!B79","v":"USR-SF-16"},{"$f":"'2. Conservation Measures'!C79","v":0},{"$f":"'2. Conservation Measures'!D79","v":"N"},null,null,null,0,null,{"$f":"IF(F44>0,1,0)*'2. Conservation Measures'!AA79","v":0},null,{"$f":"'2. Conservation Measures'!L79","v":0},{"$f":"'2. Conservation Measures'!M79","v":0},null,{"$f":"'2. Conservation Measures'!O79","v":0},{"$f":"'2. Conservation Measures'!P79","v":0},null,{"$f":"'2. Conservation Measures'!S79","v":0},{"$f":"'2. Conservation Measures'!T79","v":0},{"$f":"'2. Conservation Measures'!U79","v":0},{"$f":"'2. Conservation Measures'!V79","v":0},{"$f":"'2. Conservation Measures'!W79","v":0},{"$f":"'2. Conservation Measures'!X79","v":0},null,0,{"$f":"IF(Z$15<=$W44,Y44*(1-$T44)*IF($U44=\"Y\",(1-$V44),1),0)","v":0},0,0,0,0,0,0,0,0,0,0,0,0,0,0,0,0,0,0,0,0,0,0,0,0,0,0,0,0,0,0,0,0,0,0,0,0,0,0,0,0,0,0,0,0,0,0,0,0,0,null,0]
[null,{"$f":"'2. Conservation Measures'!B80","v":"USR-SF-17"},{"$f":"'2. Conservation Measures'!C80","v":0},{"$f":"'2. Conservation Measures'!D80","v":"N"},null,null,null,0,null,{"$f":"IF(F45>0,1,0)*'2. Conservation Measures'!AA80","v":0},null,{"$f":"'2. Conservation Measures'!L80","v":0},{"$f":"'2. Conservation Measures'!M80","v":0},null,{"$f":"'2. Conservation Measures'!O80","v":0},{"$f":"'2. Conservation Measures'!P80","v":0},null,{"$f":"'2. Conservation Measures'!S80","v":0},{"$f":"'2. Conservation Measures'!T80","v":0},{"$f":"'2. Conservation Measures'!U80","v":0},{"$f":"'2. Conservation Measures'!V80","v":0},{"$f":"'2. Conservation Measures'!W80","v":0},{"$f":"'2. Conservation Measures'!X80","v":0},null,0,{"$f":"IF(Z$15<=$W45,Y45*(1-$T45)*IF($U45=\"Y\",(1-$V45),1),0)","v":0},0,0,0,0,0,0,0,0,0,0,0,0,0,0,0,0,0,0,0,0,0,0,0,0,0,0,0,0,0,0,0,0,0,0,0,0,0,0,0,0,0,0,0,0,0,0,0,0,0,null,0]
[null,{"$f":"'2. Conservation Measures'!B81","v":"USR-SF-18"},{"$f":"'2. Conservation Measures'!C81","v":0},{"$f":"'2. Conservation Measures'!D81","v":"N"},null,null,null,0,null,{"$f":"IF(F46>0,1,0)*'2. Conservation Measures'!AA81","v":0},null,{"$f":"'2. Conservation Measures'!L81","v":0},{"$f":"'2. Conservation Measures'!M81","v":0},null,{"$f":"'2. Conservation Measures'!O81","v":0},{"$f":"'2. Conservation Measures'!P81","v":0},null,{"$f":"'2. Conservation Measures'!S81","v":0},{"$f":"'2. Conservation Measures'!T81","v":0},{"$f":"'2. Conservation Measures'!U81","v":0},{"$f":"'2. Conservation Measures'!V81","v":0},{"$f":"'2. Conservation Measures'!W81","v":0},{"$f":"'2. Conservation Measures'!X81","v":0},null,0,{"$f":"IF(Z$15<=$W46,Y46*(1-$T46)*IF($U46=\"Y\",(1-$V46),1),0)","v":0},0,0,0,0,0,0,0,0,0,0,0,0,0,0,0,0,0,0,0,0,0,0,0,0,0,0,0,0,0,0,0,0,0,0,0,0,0,0,0,0,0,0,0,0,0,0,0,0,0,null,0]
[null,{"$f":"'2. Conservation Measures'!B82","v":"USR-SF-19"},{"$f":"'2. Conservation Measures'!C82","v":0},{"$f":"'2. Conservation Measures'!D82","v":"N"},null,null,null,0,null,{"$f":"IF(F47>0,1,0)*'2. Conservation Measures'!AA82","v":0},null,{"$f":"'2. Conservation Measures'!L82","v":0},{"$f":"'2. Conservation Measures'!M82","v":0},null,{"$f":"'2. Conservation Measures'!O82","v":0},{"$f":"'2. Conservation Measures'!P82","v":0},null,{"$f":"'2. Conservation Measures'!S82","v":0},{"$f":"'2. Conservation Measures'!T82","v":0},{"$f":"'2. Conservation Measures'!U82","v":0},{"$f":"'2. Conservation Measures'!V82","v":0},{"$f":"'2. Conservation Measures'!W82","v":0},{"$f":"'2. Conservation Measures'!X82","v":0},null,0,{"$f":"IF(Z$15<=$W47,Y47*(1-$T47)*IF($U47=\"Y\",(1-$V47),1),0)","v":0},0,0,0,0,0,0,0,0,0,0,0,0,0,0,0,0,0,0,0,0,0,0,0,0,0,0,0,0,0,0,0,0,0,0,0,0,0,0,0,0,0,0,0,0,0,0,0,0,0,null,0]
[null,{"$f":"'2. Conservation Measures'!B83","v":"USR-SF-20"},{"$f":"'2. Conservation Measures'!C83","v":0},{"$f":"'2. Conservation Measures'!D83","v":"N"},null,null,null,0,null,{"$f":"IF(F48>0,1,0)*'2. Conservation Measures'!AA83","v":0},null,{"$f":"'2. Conservation Measures'!L83","v":0},{"$f":"'2. Conservation Measures'!M83","v":0},null,{"$f":"'2. Conservation Measures'!O83","v":0},{"$f":"'2. Conservation Measures'!P83","v":0},null,{"$f":"'2. Conservation Measures'!S83","v":0},{"$f":"'2. Conservation Measures'!T83","v":0},{"$f":"'2. Conservation Measures'!U83","v":0},{"$f":"'2. Conservation Measures'!V83","v":0},{"$f":"'2. Conservation Measures'!W83","v":0},{"$f":"'2. Conservation Measures'!X83","v":0},null,0,{"$f":"IF(Z$15<=$W48,Y48*(1-$T48)*IF($U48=\"Y\",(1-$V48),1),0)","v":0},0,0,0,0,0,0,0,0,0,0,0,0,0,0,0,0,0,0,0,0,0,0,0,0,0,0,0,0,0,0,0,0,0,0,0,0,0,0,0,0,0,0,0,0,0,0,0,0,0,null,0]
[null,"Subtotal",null,null,null,null,null,{"$f":"SUM(H18:H48)","v":0},null,{"$f":"IF(BY49>0,SUMPRODUCT(J18:J48,BY18:BY48)/BY49,\"NA\")","v":{"$error":"#N/A"}},null,null,null,null,null,null,null,null,null,null,null,null,null,null,{"$f":"SUM(Y18:Y48)","v":{"$error":"#N/A"}},{"$f":"SUM(Z18:Z48)","v":{"$error":"#N/A"}},{"$error":"#N/A"},{"$error":"#N/A"},{"$error":"#N/A"},{"$error":"#N/A"},{"$error":"#N/A"},{"$error":"#N/A"},{"$error":"#N/A"},{"$error":"#N/A"},{"$error":"#N/A"},{"$error":"#N/A"},{"$error":"#N/A"},{"$error":"#N/A"},{"$error":"#N/A"},{"$error":"#N/A"},{"$error":"#N/A"},{"$error":"#N/A"},{"$error":"#N/A"},{"$error":"#N/A"},{"$error":"#N/A"},{"$error":"#N/A"},{"$error":"#N/A"},{"$error":"#N/A"},{"$error":"#N/A"},{"$error":"#N/A"},{"$error":"#N/A"},{"$error":"#N/A"},{"$error":"#N/A"},{"$error":"#N/A"},{"$error":"#N/A"},{"$error":"#N/A"},{"$error":"#N/A"},{"$error":"#N/A"},{"$error":"#N/A"},{"$error":"#N/A"},{"$error":"#N/A"},{"$error":"#N/A"},{"$error":"#N/A"},{"$error":"#N/A"},{"$error":"#N/A"},{"$error":"#N/A"},{"$error":"#N/A"},{"$error":"#N/A"},{"$error":"#N/A"},{"$error":"#N/A"},{"$error":"#N/A"},{"$error":"#N/A"},{"$error":"#N/A"},{"$error":"#N/A"},{"$error":"#N/A"},null,{"$f":"SUM(BY18:BY48)","v":{"$error":"#N/A"}}]
[]
[null,{"$f":"'2. Conservation Measures'!B35","v":"Multi-Family Measures"}]
[null,{"$f":"'2. Conservation Measures'!B36","v":"PRE-MF-01"},{"$f":"'2. Conservation Measures'!C36","v":{"$error":"#N/A"}},{"$f":"'2. Conservation Measures'!D36","v":"N"},null,null,null,{"$f":"IF(D52=\"Y\",F52*R52*(1-S52)*365/10^3,0)*CHOOSE(singleyrcalcvolunit,1,1000,1000/325851)","v":0},null,{"$f":"IF(F52>0,1,0)*'2. Conservation Measures'!AA36","v":{"$error":"#N/A"}},null,{"$f":"'2. Conservation Measures'!L36","v":{"$error":"#N/A"}},{"$f":"'2. Conservation Measures'!M36","v":{"$error":"#N/A"}},null,{"$f":"'2. Conservation Measures'!O36","v":{"$error":"#N/A"}},{"$f":"'2. Conservation Measures'!P36","v":{"$error":"#N/A"}},null,{"$f":"'2. Conservation Measures'!S36","v":{"$error":"#N/A"}},{"$f":"'2. Conservation Measures'!T36","v":{"$error":"#N/A"}},{"$f":"'2. Conservation Measures'!U36","v":{"$error":"#N/A"}},{"$f":"'2. Conservation Measures'!V36","v":{"$error":"#N/A"}},{"$f":"'2. Conservation Measures'!W36","v":{"$error":"#N/A"}},{"$f":"'2. Conservation Measures'!X36","v":{"$error":"#N/A"}},null,{"$f":"IF($D52=\"Y\",1,0)*F52*R52*(1-S52)*365/10^3*CHOOSE(singleyrcalcvolunit,1,1000,1000/325851)","v":{"$error":"#N/A"}},{"$f":"IF(Z$15<=$W52,Y52*(1-$T52)*IF($U52=\"Y\",(1-$V52),1),0)","v":{"$error":"#N/A"}},{"$error":"#N/A"},{"$error":"#N/A"},{"$error":"#N/A"},{"$error":"#N/A"},{"$error":"#N/A"},{"$error":"#N/A"},{"$error":"#N/A"},{"$error":"#N/A"},{"$error":"#N/A"},{"$error":"#N/A"},{"$error":"#N/A"},{"$error":"#N/A"},{"$error":"#N/A"},{"$error":"#N/A"},{"$error":"#N/A"},{"$error":"#N/A"},{"$error":"#N/A"},{"$error":"#N/A"},{"$error":"#N/A"},{"$error":"#N/A"},{"$error":"#N/A"},{"$error":"#N/A"},{"$error":"#N/A"},{"$error":"#N/A"},{"$error":"#N/A"},{"$error":"#N/A"},{"$error":"#N/A"},{"$error":"#N/A"},{"$error":"#N/A"},{"$error":"#N/A"},{"$error":"#N/A"},{"$error":"#N/A"},{"$error":"#N/A"},{"$error":"#N/A"},{"$error":"#N/A"},{"$error":"#N/A"},{"$error":"#N/A"},{"$error":"#N/A"},{"$error":"#N/A"},{"$error":"#N/A"},{"$error":"#N/A"},{"$error":"#N/A"},{"$error":"#N/A"},{"$error":"#N/A"},{"$error":"#N/A"},{"$error":"#N/A"},{"$error":"#N/A"},{"$error":"#N/A"},{"$error":"#N/A"},null,{"$f":"Y52+NPV(discount_rate,Z52:BW52)","v":{"$error":"#N/A"}}]
[null,{"$f":"'2. Conservation Measures'!B37","v":"PRE-MF-02"},{"$f":"'2. Conservation Measures'!C37","v":{"$error":"#N/A"}},{"$f":"'2. Conservation Measures'!D37","v":"N"},null,null,null,0,null,{"$f":"IF(F53>0,1,0)*'2. Conservation Measures'!AA37","v":{"$error":"#N/A"}},null,{"$f":"'2. Conservation Measures'!L37","v":{"$error":"#N/A"}},{"$f":"'2. Conservation Measures'!M37","v":{"$error":"#N/A"}},null,{"$f":"'2. Conservation Measures'!O37","v":{"$error":"#N/A"}},{"$f":"'2. Conservation Measures'!P37","v":{"$error":"#N/A"}},null,{"$f":"'2. Conservation Measures'!S37","v":{"$error":"#N/A"}},{"$f":"'2. Conservation Measures'!T37","v":{"$error":"#N/A"}},{"$f":"'2. Conservation Measures'!U37","v":{"$error":"#N/A"}},{"$f":"'2. Conservation Measures'!V37","v":{"$error":"#N/A"}},{"$f":"'2. Conservation Measures'!W37","v":{"$error":"#N/A"}},{"$f":"'2. Conservation Measures'!X37","v":{"$error":"#N/A"}},null,{"$error":"#N/A"},{"$f":"IF(Z$15<=$W53,Y53*(1-$T53)*IF($U53=\"Y\",(1-$V53),1),0)","v":{"$error":"#N/A"}},{"$error":"#N/A"},{"$error":"#N/A"},{"$error":"#N/A"},{"$error":"#N/A"},{"$error":"#N/A"},{"$error":"#N/A"},{"$error":"#N/A"},{"$error":"#N/A"},{"$error":"#N/A"},{"$error":"#N/A"},{"$error":"#N/A"},{"$error":"#N/A"},{"$error":"#N/A"},{"$error":"#N/A"},{"$error":"#N/A"},{"$error":"#N/A"},{"$error":"#N/A"},{"$error":"#N/A"},{"$error":"#N/A"},{"$error":"#N/A"},{"$error":"#N/A"},{"$error":"#N/A"},{"$error":"#N/A"},{"$error":"#N/A"},{"$error":"#N/A"},{"$error":"#N/A"},{"$error":"#N/A"},{"$error":"#N/A"},{"$error":"#N/A"},{"$error":"#N/A"},{"$error":"#N/A"},{"$error":"#N/A"},{"$error":"#N/A"},{"$error":"#N/A"},{"$error":"#N/A"},{"$error":"#N/A"},{"$error":"#N/A"},{"$error":"#N/A"},{"$error":"#N/A"},{"$error":"#N/A"},{"$error":"#N/A"},{"$error":"#N/A"},{"$error":"#N/A"},{"$error":"#N/A"},{"$error":"#N/A"},{"$error":"#N/A"},{"$error":"#N/A"},{"$error":"#N/A"},{"$error":"#N/A"},null,{"$error":"#N/A"}]
[null,{"$f":"'2. Conservation Measures'!B38","v":"PRE-MF-03"},{"$f":"'2. Conservation Measures'!C38","v":{"$error":"#N/A"}},{"$f":"'2. Conservation Measures'!D38","v":"N"},null,null,null,0,null,{"$f":"IF(F54>0,1,0)*'2. Conservation Measures'!AA38","v":{"$error":"#N/A"}},null,{"$f":"'2. Conservation Measures'!L38","v":{"$error":"#N/A"}},{"$f":"'2. Conservation Measures'!M38","v":{"$error":"#N/A"}},null,{"$f":"'2. Conservation Measures'!O38","v":{"$error":"#N/A"}},{"$f":"'2. Conservation Measures'!P38","v":{"$error":"#N/A"}},null,{"$f":"'2. Conservation Measures'!S38","v":{"$error":"#N/A"}},{"$f":"'2. Conservation Measures'!T38","v":{"$error":"#N/A"}},{"$f":"'2. Conservation Measures'!U38","v":{"$error":"#N/A"}},{"$f":"'2. Conservation Measures'!V38","v":{"$error":"#N/A"}},{"$f":"'2. Conservation Measures'!W38","v":{"$error":"#N/A"}},{"$f":"'2. Conservation Measures'!X38","v":{"$error":"#N/A"}},null,{"$error":"#N/A"},{"$f":"IF(Z$15<=$W54,Y54*(1-$T54)*IF($U54=\"Y\",(1-$V54),1),0)","v":{"$error":"#N/A"}},{"$error":"#N/A"},{"$error":"#N/A"},{"$error":"#N/A"},{"$error":"#N/A"},{"$error":"#N/A"},{"$error":"#N/A"},{"$error":"#N/A"},{"$error":"#N/A"},{"$error":"#N/A"},{"$error":"#N/A"},{"$error":"#N/A"},{"$error":"#N/A"},{"$error":"#N/A"},{"$error":"#N/A"},{"$error":"#N/A"},{"$error":"#N/A"},{"$error":"#N/A"},{"$error":"#N/A"},{"$error":"#N/A"},{"$error":"#N/A"},{"$error":"#N/A"},{"$error":"#N/A"},{"$error":"#N/A"},{"$error":"#N/A"},{"$error":"#N/A"},{"$error":"#N/A"},{"$error":"#N/A"},{"$error":"#N/A"},{"$error":"#N/A"},{"$error":"#N/A"},{"$error":"#N/A"},{"$error":"#N/A"},{"$error":"#N/A"},{"$error":"#N/A"},{"$error":"#N/A"},{"$error":"#N/A"},{"$error":"#N/A"},{"$error":"#N/A"},{"$error":"#N/A"},{"$error":"#N/A"},{"$error":"#N/A"},{"$error":"#N/A"},{"$error":"#N/A"},{"$error":"#N/A"},{"$error":"#N/A"},{"$error":"#N/A"},{"$error":"#N/A"},{"$error":"#N/A"},{"$error":"#N/A"},null,{"$error":"#N/A"}]
[null,{"$f":"'2. Conservation Measures'!B39","v":"PRE-MF-04"},{"$f":"'2. Conservation Measures'!C39","v":{"$error":"#N/A"}},{"$f":"'2. Conservation Measures'!D39","v":"N"},null,null,null,0,null,{"$f":"IF(F55>0,1,0)*'2. Conservation Measures'!AA39","v":{"$error":"#N/A"}},null,{"$f":"'2. Conservation Measures'!L39","v":{"$error":"#N/A"}},{"$f":"'2. Conservation Measures'!M39","v":{"$error":"#N/A"}},null,{"$f":"'2. Conservation Measures'!O39","v":{"$error":"#N/A"}},{"$f":"'2. Conservation Measures'!P39","v":{"$error":"#N/A"}},null,{"$f":"'2. Conservation Measures'!S39","v":{"$error":"#N/A"}},{"$f":"'2. Conservation Measures'!T39","v":{"$error":"#N/A"}},{"$f":"'2. Conservation Measures'!U39","v":{"$error":"#N/A"}},{"$f":"'2. Conservation Measures'!V39","v":{"$error":"#N/A"}},{"$f":"'2. Conservation Measures'!W39","v":{"$error":"#N/A"}},{"$f":"'2. Conservation Measures'!X39","v":{"$error":"#N/A"}},null,{"$error":"#N/A"},{"$f":"IF(Z$15<=$W55,Y55*(1-$T55)*IF($U55=\"Y\",(1-$V55),1),0)","v":{"$error":"#N/A"}},{"$error":"#N/A"},{"$error":"#N/A"},{"$error":"#N/A"},{"$error":"#N/A"},{"$error":"#N/A"},{"$error":"#N/A"},{"$error":"#N/A"},{"$error":"#N/A"},{"$error":"#N/A"},{"$error":"#N/A"},{"$error":"#N/A"},{"$error":"#N/A"},{"$error":"#N/A"},{"$error":"#N/A"},{"$error":"#N/A"},{"$error":"#N/A"},{"$error":"#N/A"},{"$error":"#N/A"},{"$error":"#N/A"},{"$error":"#N/A"},{"$error":"#N/A"},{"$error":"#N/A"},{"$error":"#N/A"},{"$error":"#N/A"},{"$error":"#N/A"},{"$error":"#N/A"},{"$error":"#N/A"},{"$error":"#N/A"},{"$error":"#N/A"},{"$error":"#N/A"},{"$error":"#N/A"},{"$error":"#N/A"},{"$error":"#N/A"},{"$error":"#N/A"},{"$error":"#N/A"},{"$error":"#N/A"},{"$error":"#N/A"},{"$error":"#N/A"},{"$error":"#N/A"},{"$error":"#N/A"},{"$error":"#N/A"},{"$error":"#N/A"},{"$error":"#N/A"},{"$error":"#N/A"},{"$error":"#N/A"},{"$error":"#N/A"},{"$error":"#N/A"},{"$error":"#N/A"},{"$error":"#N/A"},null,{"$error":"#N/A"}]
[null,{"$f":"'2. Conservation Measures'!B40","v":"PRE-MF-05"},{"$f":"'2. Conservation Measures'!C40","v":{"$error":"#N/A"}},{"$f":"'2. Conservation Measures'!D40","v":"N"},null,null,null,0,null,{"$f":"IF(F56>0,1,0)*'2. Conservation Measures'!AA40","v":{"$error":"#N/A"}},null,{"$f":"'2. Conservation Measures'!L40","v":{"$error":"#N/A"}},{"$f":"'2. Conservation Measures'!M40","v":{"$error":"#N/A"}},null,{"$f":"'2. Conservation Measures'!O40","v":{"$error":"#N/A"}},{"$f":"'2. Conservation Measures'!P40","v":{"$error":"#N/A"}},null,{"$f":"'2. Conservation Measures'!S40","v":{"$error":"#N/A"}},{"$f":"'2. Conservation Measures'!T40","v":{"$error":"#N/A"}},{"$f":"'2. Conservation Measures'!U40","v":{"$error":"#N/A"}},{"$f":"'2. Conservation Measures'!V40","v":{"$error":"#N/A"}},{"$f":"'2. Conservation Measures'!W40","v":{"$error":"#N/A"}},{"$f":"'2. Conservation Measures'!X40","v":{"$error":"#N/A"}},null,{"$error":"#N/A"},{"$f":"IF(Z$15<=$W56,Y56*(1-$T56)*IF($U56=\"Y\",(1-$V56),1),0)","v":{"$error":"#N/A"}},{"$error":"#N/A"},{"$error":"#N/A"},{"$error":"#N/A"},{"$error":"#N/A"},{"$error":"#N/A"},{"$error":"#N/A"},{"$error":"#N/A"},{"$error":"#N/A"},{"$error":"#N/A"},{"$error":"#N/A"},{"$error":"#N/A"},{"$error":"#N/A"},{"$error":"#N/A"},{"$error":"#N/A"},{"$error":"#N/A"},{"$error":"#N/A"},{"$error":"#N/A"},{"$error":"#N/A"},{"$error":"#N/A"},{"$error":"#N/A"},{"$error":"#N/A"},{"$error":"#N/A"},{"$error":"#N/A"},{"$error":"#N/A"},{"$error":"#N/A"},{"$error":"#N/A"},{"$error":"#N/A"},{"$error":"#N/A"},{"$error":"#N/A"},{"$error":"#N/A"},{"$error":"#N/A"},{"$error":"#N/A"},{"$error":"#N/A"},{"$error":"#N/A"},{"$error":"#N/A"},{"$error":"#N/A"},{"$error":"#N/A"},{"$error":"#N/A"},{"$error":"#N/A"},{"$error":"#N/A"},{"$error":"#N/A"},{"$error":"#N/A"},{"$error":"#N/A"},{"$error":"#N/A"},{"$error":"#N/A"},{"$error":"#N/A"},{"$error":"#N/A"},{"$error":"#N/A"},{"$error":"#N/A"},null,{"$error":"#N/A"}]
[null,{"$f":"'2. Conservation Measures'!B41","v":"PRE-MF-06"},{"$f":"'2. Conservation Measures'!C41","v":{"$error":"#N/A"}},{"$f":"'2. Conservation Measures'!D41","v":"N"},null,null,null,0,null,{"$f":"IF(F57>0,1,0)*'2. Conservation Measures'!AA41","v":{"$error":"#N/A"}},null,{"$f":"'2. Conservation Measures'!L41","v":{"$error":"#N/A"}},{"$f":"'2. Conservation Measures'!M41","v":{"$error":"#N/A"}},null,{"$f":"'2. Conservation Measures'!O41","v":{"$error":"#N/A"}},{"$f":"'2. Conservation Measures'!P41","v":{"$error":"#N/A"}},null,{"$f":"'2. Conservation Measures'!S41","v":{"$error":"#N/A"}},{"$f":"'2. Conservation Measures'!T41","v":{"$error":"#N/A"}},{"$f":"'2. Conservation Measures'!U41","v":{"$error":"#N/A"}},{"$f":"'2. Conservation Measures'!V41","v":{"$error":"#N/A"}},{"$f":"'2. Conservation Measures'!W41","v":{"$error":"#N/A"}},{"$f":"'2. Conservation Measures'!X41","v":{"$error":"#N/A"}},null,{"$error":"#N/A"},{"$f":"IF(Z$15<=$W57,Y57*(1-$T57)*IF($U57=\"Y\",(1-$V57),1),0)","v":{"$error":"#N/A"}},{"$error":"#N/A"},{"$error":"#N/A"},{"$error":"#N/A"},{"$error":"#N/A"},{"$error":"#N/A"},{"$error":"#N/A"},{"$error":"#N/A"},{"$error":"#N/A"},{"$error":"#N/A"},{"$error":"#N/A"},{"$error":"#N/A"},{"$error":"#N/A"},{"$error":"#N/A"},{"$error":"#N/A"},{"$error":"#N/A"},{"$error":"#N/A"},{"$error":"#N/A"},{"$error":"#N/A"},{"$error":"#N/A"},{"$error":"#N/A"},{"$error":"#N/A"},{"$error":"#N/A"},{"$error":"#N/A"},{"$error":"#N/A"},{"$error":"#N/A"},{"$error":"#N/A"},{"$error":"#N/A"},{"$error":"#N/A"},{"$error":"#N/A"},{"$error":"#N/A"},{"$error":"#N/A"},{"$error":"#N/A"},{"$error":"#N/A"},{"$error":"#N/A"},{"$error":"#N/A"},{"$error":"#N/A"},{"$error":"#N/A"},{"$error":"#N/A"},{"$error":"#N/A"},{"$error":"#N/A"},{"$error":"#N/A"},{"$error":"#N/A"},{"$error":"#N/A"},{"$error":"#N/A"},{"$error":"#N/A"},{"$error":"#N/A"},{"$error":"#N/A"},{"$error":"#N/A"},{"$error":"#N/A"},null,{"$error":"#N/A"}]
[null,{"$f":"'2. Conservation Measures'!B42","v":"PRE-MF-07"},{"$f":"'2. Conservation Measures'!C42","v":{"$error":"#N/A"}},{"$f":"'2. Conservation Measures'!D42","v":"N"},null,null,null,0,null,{"$f":"IF(F58>0,1,0)*'2. Conservation Measures'!AA42","v":{"$error":"#N/A"}},null,{"$f":"'2. Conservation Measures'!L42","v":{"$error":"#N/A"}},{"$f":"'2. Conservation Measures'!M42","v":{"$error":"#N/A"}},null,{"$f":"'2. Conservation Measures'!O42","v":{"$error":"#N/A"}},{"$f":"'2. Conservation Measures'!P42","v":{"$error":"#N/A"}},null,{"$f":"'2. Conservation Measures'!S42","v":{"$error":"#N/A"}},{"$f":"'2. Conservation Measures'!T42","v":{"$error":"#N/A"}},{"$f":"'2. Conservation Measures'!U42","v":{"$error":"#N/A"}},{"$f":"'2. Conservation Measures'!V42","v":{"$error":"#N/A"}},{"$f":"'2. Conservation Measures'!W42","v":{"$error":"#N/A"}},{"$f":"'2. Conservation Measures'!X42","v":{"$error":"#N/A"}},null,{"$error":"#N/A"},{"$f":"IF(Z$15<=$W58,Y58*(1-$T58)*IF($U58=\"Y\",(1-$V58),1),0)","v":{"$error":"#N/A"}},{"$error":"#N/A"},{"$error":"#N/A"},{"$error":"#N/A"},{"$error":"#N/A"},{"$error":"#N/A"},{"$error":"#N/A"},{"$error":"#N/A"},{"$error":"#N/A"},{"$error":"#N/A"},{"$error":"#N/A"},{"$error":"#N/A"},{"$error":"#N/A"},{"$error":"#N/A"},{"$error":"#N/A"},{"$error":"#N/A"},{"$error":"#N/A"},{"$error":"#N/A"},{"$error":"#N/A"},{"$error":"#N/A"},{"$error":"#N/A"},{"$error":"#N/A"},{"$error":"#N/A"},{"$error":"#N/A"},{"$error":"#N/A"},{"$error":"#N/A"},{"$error":"#N/A"},{"$error":"#N/A"},{"$error":"#N/A"},{"$error":"#N/A"},{"$error":"#N/A"},{"$error":"#N/A"},{"$error":"#N/A"},{"$error":"#N/A"},{"$error":"#N/A"},{"$error":"#N/A"},{"$error":"#N/A"},{"$error":"#N/A"},{"$error":"#N/A"},{"$error":"#N/A"},{"$error":"#N/A"},{"$error":"#N/A"},{"$error":"#N/A"},{"$error":"#N/A"},{"$error":"#N/A"},{"$error":"#N/A"},{"$error":"#N/A"},{"$error":"#N/A"},{"$error":"#N/A"},{"$error":"#N/A"},null,{"$error":"#N/A"}]
[null,{"$f":"'2. Conservation Measures'!B43","v":"PRE-MF-08"},{"$f":"'2. Conservation Measures'!C43","v":{"$error":"#N/A"}},{"$f":"'2. Conservation Measures'!D43","v":"N"},null,null,null,0,null,{"$f":"IF(F59>0,1,0)*'2. Conservation Measures'!AA43","v":{"$error":"#N/A"}},null,{"$f":"'2. Conservation Measures'!L43","v":{"$error":"#N/A"}},{"$f":"'2. Conservation Measures'!M43","v":{"$error":"#N/A"}},null,{"$f":"'2. Conservation Measures'!O43","v":{"$error":"#N/A"}},{"$f":"'2. Conservation Measures'!P43","v":{"$error":"#N/A"}},null,{"$f":"'2. Conservation Measures'!S43","v":{"$error":"#N/A"}},{"$f":"'2. Conservation Measures'!T43","v":{"$error":"#N/A"}},{"$f":"'2. Conservation Measures'!U43","v":{"$error":"#N/A"}},{"$f":"'2. Conservation Measures'!V43","v":{"$error":"#N/A"}},{"$f":"'2. Conservation Measures'!W43","v":{"$error":"#N/A"}},{"$f":"'2. Conservation Measures'!X43","v":{"$error":"#N/A"}},null,{"$error":"#N/A"},{"$f":"IF(Z$15<=$W59,Y59*(1-$T59)*IF($U59=\"Y\",(1-$V59),1),0)","v":{"$error":"#N/A"}},{"$error":"#N/A"},{"$error":"#N/A"},{"$error":"#N/A"},{"$error":"#N/A"},{"$error":"#N/A"},{"$error":"#N/A"},{"$error":"#N/A"},{"$error":"#N/A"},{"$error":"#N/A"},{"$error":"#N/A"},{"$error":"#N/A"},{"$error":"#N/A"},{"$error":"#N/A"},{"$error":"#N/A"},{"$error":"#N/A"},{"$error":"#N/A"},{"$error":"#N/A"},{"$error":"#N/A"},{"$error":"#N/A"},{"$error":"#N/A"},{"$error":"#N/A"},{"$error":"#N/A"},{"$error":"#N/A"},{"$error":"#N/A"},{"$error":"#N/A"},{"$error":"#N/A"},{"$error":"#N/A"},{"$error":"#N/A"},{"$error":"#N/A"},{"$error":"#N/A"},{"$error":"#N/A"},{"$error":"#N/A"},{"$error":"#N/A"},{"$error":"#N/A"},{"$error":"#N/A"},{"$error":"#N/A"},{"$error":"#N/A"},{"$error":"#N/A"},{"$error":"#N/A"},{"$error":"#N/A"},{"$error":"#N/A"},{"$error":"#N/A"},{"$error":"#N/A"},{"$error":"#N/A"},{"$error":"#N/A"},{"$error":"#N/A"},{"$error":"#N/A"},{"$error":"#N/A"},{"$error":"#N/A"},null,{"$error":"#N/A"}]
[null,{"$f":"'2. Conservation Measures'!B44","v":"PRE-MF-09"},{"$f":"'2. Conservation Measures'!C44","v":{"$error":"#N/A"}},{"$f":"'2. Conservation Measures'!D44","v":"N"},null,null,null,0,null,{"$f":"IF(F60>0,1,0)*'2. Conservation Measures'!AA44","v":{"$error":"#N/A"}},null,{"$f":"'2. Conservation Measures'!L44","v":{"$error":"#N/A"}},{"$f":"'2. Conservation Measures'!M44","v":{"$error":"#N/A"}},null,{"$f":"'2. Conservation Measures'!O44","v":{"$error":"#N/A"}},{"$f":"'2. Conservation Measures'!P44","v":{"$error":"#N/A"}},null,{"$f":"'2. Conservation Measures'!S44","v":{"$error":"#N/A"}},{"$f":"'2. Conservation Measures'!T44","v":{"$error":"#N/A"}},{"$f":"'2. Conservation Measures'!U44","v":{"$error":"#N/A"}},{"$f":"'2. Conservation Measures'!V44","v":{"$error":"#N/A"}},{"$f":"'2. Conservation Measures'!W44","v":{"$error":"#N/A"}},{"$f":"'2. Conservation Measures'!X44","v":{"$error":"#N/A"}},null,{"$error":"#N/A"},{"$f":"IF(Z$15<=$W60,Y60*(1-$T60)*IF($U60=\"Y\",(1-$V60),1),0)","v":{"$error":"#N/A"}},{"$error":"#N/A"},{"$error":"#N/A"},{"$error":"#N/A"},{"$error":"#N/A"},{"$error":"#N/A"},{"$error":"#N/A"},{"$error":"#N/A"},{"$error":"#N/A"},{"$error":"#N/A"},{"$error":"#N/A"},{"$error":"#N/A"},{"$error":"#N/A"},{"$error":"#N/A"},{"$error":"#N/A"},{"$error":"#N/A"},{"$error":"#N/A"},{"$error":"#N/A"},{"$error":"#N/A"},{"$error":"#N/A"},{"$error":"#N/A"},{"$error":"#N/A"},{"$error":"#N/A"},{"$error":"#N/A"},{"$error":"#N/A"},{"$error":"#N/A"},{"$error":"#N/A"},{"$error":"#N/A"},{"$error":"#N/A"},{"$error":"#N/A"},{"$error":"#N/A"},{"$error":"#N/A"},{"$error":"#N/A"},{"$error":"#N/A"},{"$error":"#N/A"},{"$error":"#N/A"},{"$error":"#N/A"},{"$error":"#N/A"},{"$error":"#N/A"},{"$error":"#N/A"},{"$error":"#N/A"},{"$error":"#N/A"},{"$error":"#N/A"},{"$error":"#N/A"},{"$error":"#N/A"},{"$error":"#N/A"},{"$error":"#N/A"},{"$error":"#N/A"},{"$error":"#N/A"},{"$error":"#N/A"},null,{"$error":"#N/A"}]
[null,{"$f":"'2. Conservation Measures'!B86","v":"USR-MF-01"},{"$f":"'2. Conservation Measures'!C86","v":0},{"$f":"'2. Conservation Measures'!D86","v":"N"},null,null,null,0,null,{"$f":"IF(F61>0,1,0)*'2. Conservation Measures'!AA86","v":0},null,{"$f":"'2. Conservation Measures'!L86","v":0},{"$f":"'2. Conservation Measures'!M86","v":0},null,{"$f":"'2. Conservation Measures'!O86","v":0},{"$f":"'2. Conservation Measures'!P86","v":0},null,{"$f":"'2. Conservation Measures'!S86","v":0},{"$f":"'2. Conservation Measures'!T86","v":0},{"$f":"'2. Conservation Measures'!U86","v":0},{"$f":"'2. Conservation Measures'!V86","v":0},{"$f":"'2. Conservation Measures'!W86","v":0},{"$f":"'2. Conservation Measures'!X86","v":0},null,0,{"$f":"IF(Z$15<=$W61,Y61*(1-$T61)*IF($U61=\"Y\",(1-$V61),1),0)","v":0},0,0,0,0,0,0,0,0,0,0,0,0,0,0,0,0,0,0,0,0,0,0,0,0,0,0,0,0,0,0,0,0,0,0,0,0,0,0,0,0,0,0,0,0,0,0,0,0,0,null,0]
[null,{"$f":"'2. Conservation Measures'!B87","v":"USR-MF-02"},{"$f":"'2. Conservation Measures'!C87","v":0},{"$f":"'2. Conservation Measures'!D87","v":"N"},null,null,null,0,null,{"$f":"IF(F62>0,1,0)*'2. Conservation Measures'!AA87","v":0},null,{"$f":"'2. Conservation Measures'!L87","v":0},{"$f":"'2. Conservation Measures'!M87","v":0},null,{"$f":"'2. Conservation Measures'!O87","v":0},{"$f":"'2. Conservation Measures'!P87","v":0},null,{"$f":"'2. Conservation Measures'!S87","v":0},{"$f":"'2. Conservation Measures'!T87","v":0},{"$f":"'2. Conservation Measures'!U87","v":0},{"$f":"'2. Conservation Measures'!V87","v":0},{"$f":"'2. Conservation Measures'!W87","v":0},{"$f":"'2. Conservation Measures'!X87","v":0},null,0,{"$f":"IF(Z$15<=$W62,Y62*(1-$T62)*IF($U62=\"Y\",(1-$V62),1),0)","v":0},0,0,0,0,0,0,0,0,0,0,0,0,0,0,0,0,0,0,0,0,0,0,0,0,0,0,0,0,0,0,0,0,0,0,0,0,0,0,0,0,0,0,0,0,0,0,0,0,0,null,0]
[null,{"$f":"'2. Conservation Measures'!B88","v":"USR-MF-03"},{"$f":"'2. Conservation Measures'!C88","v":0},{"$f":"'2. Conservation Measures'!D88","v":"N"},null,null,null,0,null,{"$f":"IF(F63>0,1,0)*'2. Conservation Measures'!AA88","v":0},null,{"$f":"'2. Conservation Measures'!L88","v":0},{"$f":"'2. Conservation Measures'!M88","v":0},null,{"$f":"'2. Conservation Measures'!O88","v":0},{"$f":"'2. Conservation Measures'!P88","v":0},null,{"$f":"'2. Conservation Measures'!S88","v":0},{"$f":"'2. Conservation Measures'!T88","v":0},{"$f":"'2. Conservation Measures'!U88","v":0},{"$f":"'2. Conservation Measures'!V88","v":0},{"$f":"'2. Conservation Measures'!W88","v":0},{"$f":"'2. Conservation Measures'!X88","v":0},null,0,{"$f":"IF(Z$15<=$W63,Y63*(1-$T63)*IF($U63=\"Y\",(1-$V63),1),0)","v":0},0,0,0,0,0,0,0,0,0,0,0,0,0,0,0,0,0,0,0,0,0,0,0,0,0,0,0,0,0,0,0,0,0,0,0,0,0,0,0,0,0,0,0,0,0,0,0,0,0,null,0]
[null,{"$f":"'2. Conservation Measures'!B89","v":"USR-MF-04"},{"$f":"'2. Conservation Measures'!C89","v":0},{"$f":"'2. Conservation Measures'!D89","v":"N"},null,null,null,0,null,{"$f":"IF(F64>0,1,0)*'2. Conservation Measures'!AA89","v":0},null,{"$f":"'2. Conservation Measures'!L89","v":0},{"$f":"'2. Conservation Measures'!M89","v":0},null,{"$f":"'2. Conservation Measures'!O89","v":0},{"$f":"'2. Conservation Measures'!P89","v":0},null,{"$f":"'2. Conservation Measures'!S89","v":0},{"$f":"'2. Conservation Measures'!T89","v":0},{"$f":"'2. Conservation Measures'!U89","v":0},{"$f":"'2. Conservation Measures'!V89","v":0},{"$f":"'2. Conservation Measures'!W89","v":0},{"$f":"'2. Conservation Measures'!X89","v":0},null,0,{"$f":"IF(Z$15<=$W64,Y64*(1-$T64)*IF($U64=\"Y\",(1-$V64),1),0)","v":0},0,0,0,0,0,0,0,0,0,0,0,0,0,0,0,0,0,0,0,0,0,0,0,0,0,0,0,0,0,0,0,0,0,0,0,0,0,0,0,0,0,0,0,0,0,0,0,0,0,null,0]
[null,{"$f":"'2. Conservation Measures'!B90","v":"USR-MF-05"},{"$f":"'2. Conservation Measures'!C90","v":0},{"$f":"'2. Conservation Measures'!D90","v":"N"},null,null,null,0,null,{"$f":"IF(F65>0,1,0)*'2. Conservation Measures'!AA90","v":0},null,{"$f":"'2. Conservation Measures'!L90","v":0},{"$f":"'2. Conservation Measures'!M90","v":0},null,{"$f":"'2. Conservation Measures'!O90","v":0},{"$f":"'2. Conservation Measures'!P90","v":0},null,{"$f":"'2. Conservation Measures'!S90","v":0},{"$f":"'2. Conservation Measures'!T90","v":0},{"$f":"'2. Conservation Measures'!U90","v":0},{"$f":"'2. Conservation Measures'!V90","v":0},{"$f":"'2. Conservation Measures'!W90","v":0},{"$f":"'2. Conservation Measures'!X90","v":0},null,0,{"$f":"IF(Z$15<=$W65,Y65*(1-$T65)*IF($U65=\"Y\",(1-$V65),1),0)","v":0},0,0,0,0,0,0,0,0,0,0,0,0,0,0,0,0,0,0,0,0,0,0,0,0,0,0,0,0,0,0,0,0,0,0,0,0,0,0,0,0,0,0,0,0,0,0,0,0,0,null,0]
[null,{"$f":"'2. Conservation Measures'!B91","v":"USR-MF-06"},{"$f":"'2. Conservation Measures'!C91","v":0},{"$f":"'2. Conservation Measures'!D91","v":"N"},null,null,null,0,null,{"$f":"IF(F66>0,1,0)*'2. Conservation Measures'!AA91","v":0},null,{"$f":"'2. Conservation Measures'!L91","v":0},{"$f":"'2. Conservation Measures'!M91","v":0},null,{"$f":"'2. Conservation Measures'!O91","v":0},{"$f":"'2. Conservation Measures'!P91","v":0},null,{"$f":"'2. Conservation Measures'!S91","v":0},{"$f":"'2. Conservation Measures'!T91","v":0},{"$f":"'2. Conservation Measures'!U91","v":0},{"$f":"'2. Conservation Measures'!V91","v":0},{"$f":"'2. Conservation Measures'!W91","v":0},{"$f":"'2. Conservation Measures'!X91","v":0},null,0,{"$f":"IF(Z$15<=$W66,Y66*(1-$T66)*IF($U66=\"Y\",(1-$V66),1),0)","v":0},0,0,0,0,0,0,0,0,0,0,0,0,0,0,0,0,0,0,0,0,0,0,0,0,0,0,0,0,0,0,0,0,0,0,0,0,0,0,0,0,0,0,0,0,0,0,0,0,0,null,0]
[null,{"$f":"'2. Conservation Measures'!B92","v":"USR-MF-07"},{"$f":"'2. Conservation Measures'!C92","v":0},{"$f":"'2. Conservation Measures'!D92","v":"N"},null,null,null,0,null,{"$f":"IF(F67>0,1,0)*'2. Conservation Measures'!AA92","v":0},null,{"$f":"'2. Conservation Measures'!L92","v":0},{"$f":"'2. Conservation Measures'!M92","v":0},null,{"$f":"'2. Conservation Measures'!O92","v":0},{"$f":"'2. Conservation Measures'!P92","v":0},null,{"$f":"'2. Conservation Measures'!S92","v":0},{"$f":"'2. Conservation Measures'!T92","v":0},{"$f":"'2. Conservation Measures'!U92","v":0},{"$f":"'2. Conservation Measures'!V92","v":0},{"$f":"'2. Conservation Measures'!W92","v":0},{"$f":"'2. Conservation Measures'!X92","v":0},null,0,{"$f":"IF(Z$15<=$W67,Y67*(1-$T67)*IF($U67=\"Y\",(1-$V67),1),0)","v":0},0,0,0,0,0,0,0,0,0,0,0,0,0,0,0,0,0,0,0,0,0,0,0,0,0,0,0,0,0,0,0,0,0,0,0,0,0,0,0,0,0,0,0,0,0,0,0,0,0,null,0]
[null,{"$f":"'2. Conservation Measures'!B93","v":"USR-MF-08"},{"$f":"'2. Conservation Measures'!C93","v":0},{"$f":"'2. Conservation Measures'!D93","v":"N"},null,null,null,0,null,{"$f":"IF(F68>0,1,0)*'2. Conservation Measures'!AA93","v":0},null,{"$f":"'2. Conservation Measures'!L93","v":0},{"$f":"'2. Conservation Measures'!M93","v":0},null,{"$f":"'2. Conservation Measures'!O93","v":0},{"$f":"'2. Conservation Measures'!P93","v":0},null,{"$f":"'2. Conservation Measures'!S93","v":0},{"$f":"'2. Conservation Measures'!T93","v":0},{"$f":"'2. Conservation Measures'!U93","v":0},{"$f":"'2. Conservation Measures'!V93","v":0},{"$f":"'2. Conservation Measures'!W93","v":0},{"$f":"'2. Conservation Measures'!X93","v":0},null,0,{"$f":"IF(Z$15<=$W68,Y68*(1-$T68)*IF($U68=\"Y\",(1-$V68),1),0)","v":0},0,0,0,0,0,0,0,0,0,0,0,0,0,0,0,0,0,0,0,0,0,0,0,0,0,0,0,0,0,0,0,0,0,0,0,0,0,0,0,0,0,0,0,0,0,0,0,0,0,null,0]
[null,{"$f":"'2. Conservation Measures'!B94","v":"USR-MF-09"},{"$f":"'2. Conservation Measures'!C94","v":0},{"$f":"'2. Conservation Measures'!D94","v":"N"},null,null,null,0,null,{"$f":"IF(F69>0,1,0)*'2. Conservation Measures'!AA94","v":0},null,{"$f":"'2. Conservation Measures'!L94","v":0},{"$f":"'2. Conservation Measures'!M94","v":0},null,{"$f":"'2. Conservation Measures'!O94","v":0},{"$f":"'2. Conservation Measures'!P94","v":0},null,{"$f":"'2. Conservation Measures'!S94","v":0},{"$f":"'2. Conservation Measures'!T94","v":0},{"$f":"'2. Conservation Measures'!U94","v":0},{"$f":"'2. Conservation Measures'!V94","v":0},{"$f":"'2. Conservation Measures'!W94","v":0},{"$f":"'2. Conservation Measures'!X94","v":0},null,0,{"$f":"IF(Z$15<=$W69,Y69*(1-$T69)*IF($U69=\"Y\",(1-$V69),1),0)","v":0},0,0,0,0,0,0,0,0,0,0,0,0,0,0,0,0,0,0,0,0,0,0,0,0,0,0,0,0,0,0,0,0,0,0,0,0,0,0,0,0,0,0,0,0,0,0,0,0,0,null,0]
[null,{"$f":"'2. Conservation Measures'!B95","v":"USR-MF-10"},{"$f":"'2. Conservation Measures'!C95","v":0},{"$f":"'2. Conservation Measures'!D95","v":"N"},null,null,null,0,null,{"$f":"IF(F70>0,1,0)*'2. Conservation Measures'!AA95","v":0},null,{"$f":"'2. Conservation Measures'!L95","v":0},{"$f":"'2. Conservation Measures'!M95","v":0},null,{"$f":"'2. Conservation Measures'!O95","v":0},{"$f":"'2. Conservation Measures'!P95","v":0},null,{"$f":"'2. Conservation Measures'!S95","v":0},{"$f":"'2. Conservation Measures'!T95","v":0},{"$f":"'2. Conservation Measures'!U95","v":0},{"$f":"'2. Conservation Measures'!V95","v":0},{"$f":"'2. Conservation Measures'!W95","v":0},{"$f":"'2. Conservation Measures'!X95","v":0},null,0,{"$f":"IF(Z$15<=$W70,Y70*(1-$T70)*IF($U70=\"Y\",(1-$V70),1),0)","v":0},0,0,0,0,0,0,0,0,0,0,0,0,0,0,0,0,0,0,0,0,0,0,0,0,0,0,0,0,0,0,0,0,0,0,0,0,0,0,0,0,0,0,0,0,0,0,0,0,0,null,0]
[null,{"$f":"'2. Conservation Measures'!B96","v":"USR-MF-11"},{"$f":"'2. Conservation Measures'!C96","v":0},{"$f":"'2. Conservation Measures'!D96","v":"N"},null,null,null,0,null,{"$f":"IF(F71>0,1,0)*'2. Conservation Measures'!AA96","v":0},null,{"$f":"'2. Conservation Measures'!L96","v":0},{"$f":"'2. Conservation Measures'!M96","v":0},null,{"$f":"'2. Conservation Measures'!O96","v":0},{"$f":"'2. Conservation Measures'!P96","v":0},null,{"$f":"'2. Conservation Measures'!S96","v":0},{"$f":"'2. Conservation Measures'!T96","v":0},{"$f":"'2. Conservation Measures'!U96","v":0},{"$f":"'2. Conservation Measures'!V96","v":0},{"$f":"'2. Conservation Measures'!W96","v":0},{"$f":"'2. Conservation Measures'!X96","v":0},null,0,{"$f":"IF(Z$15<=$W71,Y71*(1-$T71)*IF($U71=\"Y\",(1-$V71),1),0)","v":0},0,0,0,0,0,0,0,0,0,0,0,0,0,0,0,0,0,0,0,0,0,0,0,0,0,0,0,0,0,0,0,0,0,0,0,0,0,0,0,0,0,0,0,0,0,0,0,0,0,null,0]
[null,{"$f":"'2. Conservation Measures'!B97","v":"USR-MF-12"},{"$f":"'2. Conservation Measures'!C97","v":0},{"$f":"'2. Conservation Measures'!D97","v":"N"},null,null,null,0,null,{"$f":"IF(F72>0,1,0)*'2. Conservation Measures'!AA97","v":0},null,{"$f":"'2. Conservation Measures'!L97","v":0},{"$f":"'2. Conservation Measures'!M97","v":0},null,{"$f":"'2. Conservation Measures'!O97","v":0},{"$f":"'2. Conservation Measures'!P97","v":0},null,{"$f":"'2. Conservation Measures'!S97","v":0},{"$f":"'2. Conservation Measures'!T97","v":0},{"$f":"'2. Conservation Measures'!U97","v":0},{"$f":"'2. Conservation Measures'!V97","v":0},{"$f":"'2. Conservation Measures'!W97","v":0},{"$f":"'2. Conservation Measures'!X97","v":0},null,0,{"$f":"IF(Z$15<=$W72,Y72*(1-$T72)*IF($U72=\"Y\",(1-$V72),1),0)","v":0},0,0,0,0,0,0,0,0,0,0,0,0,0,0,0,0,0,0,0,0,0,0,0,0,0,0,0,0,0,0,0,0,0,0,0,0,0,0,0,0,0,0,0,0,0,0,0,0,0,null,0]
[null,{"$f":"'2. Conservation Measures'!B98","v":"USR-MF-13"},{"$f":"'2. Conservation Measures'!C98","v":0},{"$f":"'2. Conservation Measures'!D98","v":"N"},null,null,null,0,null,{"$f":"IF(F73>0,1,0)*'2. Conservation Measures'!AA98","v":0},null,{"$f":"'2. Conservation Measures'!L98","v":0},{"$f":"'2. Conservation Measures'!M98","v":0},null,{"$f":"'2. Conservation Measures'!O98","v":0},{"$f":"'2. Conservation Measures'!P98","v":0},null,{"$f":"'2. Conservation Measures'!S98","v":0},{"$f":"'2. Conservation Measures'!T98","v":0},{"$f":"'2. Conservation Measures'!U98","v":0},{"$f":"'2. Conservation Measures'!V98","v":0},{"$f":"'2. Conservation Measures'!W98","v":0},{"$f":"'2. Conservation Measures'!X98","v":0},null,0,{"$f":"IF(Z$15<=$W73,Y73*(1-$T73)*IF($U73=\"Y\",(1-$V73),1),0)","v":0},0,0,0,0,0,0,0,0,0,0,0,0,0,0,0,0,0,0,0,0,0,0,0,0,0,0,0,0,0,0,0,0,0,0,0,0,0,0,0,0,0,0,0,0,0,0,0,0,0,null,0]
[null,{"$f":"'2. Conservation Measures'!B99","v":"USR-MF-14"},{"$f":"'2. Conservation Measures'!C99","v":0},{"$f":"'2. Conservation Measures'!D99","v":"N"},null,null,null,0,null,{"$f":"IF(F74>0,1,0)*'2. Conservation Measures'!AA99","v":0},null,{"$f":"'2. Conservation Measures'!L99","v":0},{"$f":"'2. Conservation Measures'!M99","v":0},null,{"$f":"'2. Conservation Measures'!O99","v":0},{"$f":"'2. Conservation Measures'!P99","v":0},null,{"$f":"'2. Conservation Measures'!S99","v":0},{"$f":"'2. Conservation Measures'!T99","v":0},{"$f":"'2. Conservation Measures'!U99","v":0},{"$f":"'2. Conservation Measures'!V99","v":0},{"$f":"'2. Conservation Measures'!W99","v":0},{"$f":"'2. Conservation Measures'!X99","v":0},null,0,{"$f":"IF(Z$15<=$W74,Y74*(1-$T74)*IF($U74=\"Y\",(1-$V74),1),0)","v":0},0,0,0,0,0,0,0,0,0,0,0,0,0,0,0,0,0,0,0,0,0,0,0,0,0,0,0,0,0,0,0,0,0,0,0,0,0,0,0,0,0,0,0,0,0,0,0,0,0,null,0]
[null,{"$f":"'2. Conservation Measures'!B100","v":"USR-MF-15"},{"$f":"'2. Conservation Measures'!C100","v":0},{"$f":"'2. Conservation Measures'!D100","v":"N"},null,null,null,0,null,{"$f":"IF(F75>0,1,0)*'2. Conservation Measures'!AA100","v":0},null,{"$f":"'2. Conservation Measures'!L100","v":0},{"$f":"'2. Conservation Measures'!M100","v":0},null,{"$f":"'2. Conservation Measures'!O100","v":0},{"$f":"'2. Conservation Measures'!P100","v":0},null,{"$f":"'2. Conservation Measures'!S100","v":0},{"$f":"'2. Conservation Measures'!T100","v":0},{"$f":"'2. Conservation Measures'!U100","v":0},{"$f":"'2. Conservation Measures'!V100","v":0},{"$f":"'2. Conservation Measures'!W100","v":0},{"$f":"'2. Conservation Measures'!X100","v":0},null,0,{"$f":"IF(Z$15<=$W75,Y75*(1-$T75)*IF($U75=\"Y\",(1-$V75),1),0)","v":0},0,0,0,0,0,0,0,0,0,0,0,0,0,0,0,0,0,0,0,0,0,0,0,0,0,0,0,0,0,0,0,0,0,0,0,0,0,0,0,0,0,0,0,0,0,0,0,0,0,null,0]
[null,{"$f":"'2. Conservation Measures'!B101","v":"USR-MF-16"},{"$f":"'2. Conservation Measures'!C101","v":0},{"$f":"'2. Conservation Measures'!D101","v":"N"},null,null,null,0,null,{"$f":"IF(F76>0,1,0)*'2. Conservation Measures'!AA101","v":0},null,{"$f":"'2. Conservation Measures'!L101","v":0},{"$f":"'2. Conservation Measures'!M101","v":0},null,{"$f":"'2. Conservation Measures'!O101","v":0},{"$f":"'2. Conservation Measures'!P101","v":0},null,{"$f":"'2. Conservation Measures'!S101","v":0},{"$f":"'2. Conservation Measures'!T101","v":0},{"$f":"'2. Conservation Measures'!U101","v":0},{"$f":"'2. Conservation Measures'!V101","v":0},{"$f":"'2. Conservation Measures'!W101","v":0},{"$f":"'2. Conservation Measures'!X101","v":0},null,0,{"$f":"IF(Z$15<=$W76,Y76*(1-$T76)*IF($U76=\"Y\",(1-$V76),1),0)","v":0},0,0,0,0,0,0,0,0,0,0,0,0,0,0,0,0,0,0,0,0,0,0,0,0,0,0,0,0,0,0,0,0,0,0,0,0,0,0,0,0,0,0,0,0,0,0,0,0,0,null,0]
[null,{"$f":"'2. Conservation Measures'!B102","v":"USR-MF-17"},{"$f":"'2. Conservation Measures'!C102","v":0},{"$f":"'2. Conservation Measures'!D102","v":"N"},null,null,null,0,null,{"$f":"IF(F77>0,1,0)*'2. Conservation Measures'!AA102","v":0},null,{"$f":"'2. Conservation Measures'!L102","v":0},{"$f":"'2. Conservation Measures'!M102","v":0},null,{"$f":"'2. Conservation Measures'!O102","v":0},{"$f":"'2. Conservation Measures'!P102","v":0},null,{"$f":"'2. Conservation Measures'!S102","v":0},{"$f":"'2. Conservation Measures'!T102","v":0},{"$f":"'2. Conservation Measures'!U102","v":0},{"$f":"'2. Conservation Measures'!V102","v":0},{"$f":"'2. Conservation Measures'!W102","v":0},{"$f":"'2. Conservation Measures'!X102","v":0},null,0,{"$f":"IF(Z$15<=$W77,Y77*(1-$T77)*IF($U77=\"Y\",(1-$V77),1),0)","v":0},0,0,0,0,0,0,0,0,0,0,0,0,0,0,0,0,0,0,0,0,0,0,0,0,0,0,0,0,0,0,0,0,0,0,0,0,0,0,0,0,0,0,0,0,0,0,0,0,0,null,0]
[null,{"$f":"'2. Conservation Measures'!B103","v":"USR-MF-18"},{"$f":"'2. Conservation Measures'!C103","v":0},{"$f":"'2. Conservation Measures'!D103","v":"N"},null,null,null,0,null,{"$f":"IF(F78>0,1,0)*'2. Conservation Measures'!AA103","v":0},null,{"$f":"'2. Conservation Measures'!L103","v":0},{"$f":"'2. Conservation Measures'!M103","v":0},null,{"$f":"'2. Conservation Measures'!O103","v":0},{"$f":"'2. Conservation Measures'!P103","v":0},null,{"$f":"'2. Conservation Measures'!S103","v":0},{"$f":"'2. Conservation Measures'!T103","v":0},{"$f":"'2. Conservation Measures'!U103","v":0},{"$f":"'2. Conservation Measures'!V103","v":0},{"$f":"'2. Conservation Measures'!W103","v":0},{"$f":"'2. Conservation Measures'!X103","v":0},null,0,{"$f":"IF(Z$15<=$W78,Y78*(1-$T78)*IF($U78=\"Y\",(1-$V78),1),0)","v":0},0,0,0,0,0,0,0,0,0,0,0,0,0,0,0,0,0,0,0,0,0,0,0,0,0,0,0,0,0,0,0,0,0,0,0,0,0,0,0,0,0,0,0,0,0,0,0,0,0,null,0]
[null,{"$f":"'2. Conservation Measures'!B104","v":"USR-MF-19"},{"$f":"'2. Conservation Measures'!C104","v":0},{"$f":"'2. Conservation Measures'!D104","v":"N"},null,null,null,0,null,{"$f":"IF(F79>0,1,0)*'2. Conservation Measures'!AA104","v":0},null,{"$f":"'2. Conservation Measures'!L104","v":0},{"$f":"'2. Conservation Measures'!M104","v":0},null,{"$f":"'2. Conservation Measures'!O104","v":0},{"$f":"'2. Conservation Measures'!P104","v":0},null,{"$f":"'2. Conservation Measures'!S104","v":0},{"$f":"'2. Conservation Measures'!T104","v":0},{"$f":"'2. Conservation Measures'!U104","v":0},{"$f":"'2. Conservation Measures'!V104","v":0},{"$f":"'2. Conservation Measures'!W104","v":0},{"$f":"'2. Conservation Measures'!X104","v":0},null,0,{"$f":"IF(Z$15<=$W79,Y79*(1-$T79)*IF($U79=\"Y\",(1-$V79),1),0)","v":0},0,0,0,0,0,0,0,0,0,0,0,0,0,0,0,0,0,0,0,0,0,0,0,0,0,0,0,0,0,0,0,0,0,0,0,0,0,0,0,0,0,0,0,0,0,0,0,0,0,null,0]
[null,{"$f":"'2. Conservation Measures'!B105","v":"USR-MF-20"},{"$f":"'2. Conservation Measures'!C105","v":0},{"$f":"'2. Conservation Measures'!D105","v":"N"},null,null,null,0,null,{"$f":"IF(F80>0,1,0)*'2. Conservation Measures'!AA105","v":0},null,{"$f":"'2. Conservation Measures'!L105","v":0},{"$f":"'2. Conservation Measures'!M105","v":0},null,{"$f":"'2. Conservation Measures'!O105","v":0},{"$f":"'2. Conservation Measures'!P105","v":0},null,{"$f":"'2. Conservation Measures'!S105","v":0},{"$f":"'2. Conservation Measures'!T105","v":0},{"$f":"'2. Conservation Measures'!U105","v":0},{"$f":"'2. Conservation Measures'!V105","v":0},{"$f":"'2. Conservation Measures'!W105","v":0},{"$f":"'2. Conservation Measures'!X105","v":0},null,0,{"$f":"IF(Z$15<=$W80,Y80*(1-$T80)*IF($U80=\"Y\",(1-$V80),1),0)","v":0},0,0,0,0,0,0,0,0,0,0,0,0,0,0,0,0,0,0,0,0,0,0,0,0,0,0,0,0,0,0,0,0,0,0,0,0,0,0,0,0,0,0,0,0,0,0,0,0,0,null,0]
[null,"Subtotal",null,null,null,null,null,{"$f":"SUM(H52:H80)","v":0},null,{"$f":"IF(BY81>0,SUMPRODUCT(J52:J80,BY52:BY80)/BY81,\"NA\")","v":{"$error":"#N/A"}},null,null,null,null,null,null,null,null,null,null,null,null,null,null,{"$f":"SUM(Y52:Y80)","v":{"$error":"#N/A"}},{"$f":"SUM(Z52:Z80)","v":{"$error":"#N/A"}},{"$error":"#N/A"},{"$error":"#N/A"},{"$error":"#N/A"},{"$error":"#N/A"},{"$error":"#N/A"},{"$error":"#N/A"},{"$error":"#N/A"},{"$error":"#N/A"},{"$error":"#N/A"},{"$error":"#N/A"},{"$error":"#N/A"},{"$error":"#N/A"},{"$error":"#N/A"},{"$error":"#N/A"},{"$error":"#N/A"},{"$error":"#N/A"},{"$error":"#N/A"},{"$error":"#N/A"},{"$error":"#N/A"},{"$error":"#N/A"},{"$error":"#N/A"},{"$error":"#N/A"},{"$error":"#N/A"},{"$error":"#N/A"},{"$error":"#N/A"},{"$error":"#N/A"},{"$error":"#N/A"},{"$error":"#N/A"},{"$error":"#N/A"},{"$error":"#N/A"},{"$error":"#N/A"},{"$error":"#N/A"},{"$error":"#N/A"},{"$error":"#N/A"},{"$error":"#N/A"},{"$error":"#N/A"},{"$error":"#N/A"},{"$error":"#N/A"},{"$error":"#N/A"},{"$error":"#N/A"},{"$error":"#N/A"},{"$error":"#N/A"},{"$error":"#N/A"},{"$error":"#N/A"},{"$error":"#N/A"},{"$error":"#N/A"},{"$error":"#N/A"},{"$error":"#N/A"},{"$error":"#N/A"},null,{"$f":"SUM(BY52:BY80)","v":{"$error":"#N/A"}}]
[]
[null,{"$f":"'2. Conservation Measures'!B46","v":"Industrial, Commercial, Institutional Measures"}]
[null,{"$f":"'2. Conservation Measures'!B47","v":"PRE-ICI-01"},{"$f":"'2. Conservation Measures'!C47","v":{"$error":"#N/A"}},{"$f":"'2. Conservation Measures'!D47","v":"N"},null,null,null,{"$f":"IF(D84=\"Y\",F84*R84*(1-S84)*365/10^3,0)*CHOOSE(singleyrcalcvolunit,1,1000,1000/325851)","v":0},null,{"$f":"IF(F84>0,1,0)*'2. Conservation Measures'!AA47","v":{"$error":"#N/A"}},null,{"$f":"'2. Conservation Measures'!L47","v":{"$error":"#N/A"}},{"$f":"'2. Conservation Measures'!M47","v":{"$error":"#N/A"}},null,{"$f":"'2. Conservation Measures'!O47","v":{"$error":"#N/A"}},{"$f":"'2. Conservation Measures'!P47","v":{"$error":"#N/A"}},null,{"$f":"'2. Conservation Measures'!S47","v":{"$error":"#N/A"}},{"$f":"'2. Conservation Measures'!T47","v":{"$error":"#N/A"}},{"$f":"'2. Conservation Measures'!U47","v":{"$error":"#N/A"}},{"$f":"'2. Conservation Measures'!V47","v":{"$error":"#N/A"}},{"$f":"'2. Conservation Measures'!W47","v":{"$error":"#N/A"}},{"$f":"'2. Conservation Measures'!X47","v":{"$error":"#N/A"}},null,{"$f":"IF($D84=\"Y\",1,0)*F84*R84*(1-S84)*365/10^3*CHOOSE(singleyrcalcvolunit,1,1000,1000/325851)","v":{"$error":"#N/A"}},{"$f":"IF(Z$15<=$W84,Y84*(1-$T84)*IF($U84=\"Y\",(1-$V84),1),0)","v":{"$error":"#N/A"}},{"$error":"#N/A"},{"$error":"#N/A"},{"$error":"#N/A"},{"$error":"#N/A"},{"$error":"#N/A"},{"$error":"#N/A"},{"$error":"#N/A"},{"$error":"#N/A"},{"$error":"#N/A"},{"$error":"#N/A"},{"$error":"#N/A"},{"$error":"#N/A"},{"$error":"#N/A"},{"$error":"#N/A"},{"$error":"#N/A"},{"$error":"#N/A"},{"$error":"#N/A"},{"$error":"#N/A"},{"$error":"#N/A"},{"$error":"#N/A"},{"$error":"#N/A"},{"$error":"#N/A"},{"$error":"#N/A"},{"$error":"#N/A"},{"$error":"#N/A"},{"$error":"#N/A"},{"$error":"#N/A"},{"$error":"#N/A"},{"$error":"#N/A"},{"$error":"#N/A"},{"$error":"#N/A"},{"$error":"#N/A"},{"$error":"#N/A"},{"$error":"#N/A"},{"$error":"#N/A"},{"$error":"#N/A"},{"$error":"#N/A"},{"$error":"#N/A"},{"$error":"#N/A"},{"$error":"#N/A"},{"$error":"#N/A"},{"$error":"#N/A"},{"$error":"#N/A"},{"$error":"#N/A"},{"$error":"#N/A"},{"$error":"#N/A"},{"$error":"#N/A"},{"$error":"#N/A"},{"$error":"#N/A"},null,{"$f":"Y84+NPV(discount_rate,Z84:BW84)","v":{"$error":"#N/A"}}]
[null,{"$f":"'2. Conservation Measures'!B48","v":"PRE-ICI-02"},{"$f":"'2. Conservation Measures'!C48","v":{"$error":"#N/A"}},{"$f":"'2. Conservation Measures'!D48","v":"N"},null,null,null,0,null,{"$f":"IF(F85>0,1,0)*'2. Conservation Measures'!AA48","v":{"$error":"#N/A"}},null,{"$f":"'2. Conservation Measures'!L48","v":{"$error":"#N/A"}},{"$f":"'2. Conservation Measures'!M48","v":{"$error":"#N/A"}},null,{"$f":"'2. Conservation Measures'!O48","v":{"$error":"#N/A"}},{"$f":"'2. Conservation Measures'!P48","v":{"$error":"#N/A"}},null,{"$f":"'2. Conservation Measures'!S48","v":{"$error":"#N/A"}},{"$f":"'2. Conservation Measures'!T48","v":{"$error":"#N/A"}},{"$f":"'2. Conservation Measures'!U48","v":{"$error":"#N/A"}},{"$f":"'2. Conservation Measures'!V48","v":{"$error":"#N/A"}},{"$f":"'2. Conservation Measures'!W48","v":{"$error":"#N/A"}},{"$f":"'2. Conservation Measures'!X48","v":{"$error":"#N/A"}},null,{"$error":"#N/A"},{"$f":"IF(Z$15<=$W85,Y85*(1-$T85)*IF($U85=\"Y\",(1-$V85),1),0)","v":{"$error":"#N/A"}},{"$error":"#N/A"},{"$error":"#N/A"},{"$error":"#N/A"},{"$error":"#N/A"},{"$error":"#N/A"},{"$error":"#N/A"},{"$error":"#N/A"},{"$error":"#N/A"},{"$error":"#N/A"},{"$error":"#N/A"},{"$error":"#N/A"},{"$error":"#N/A"},{"$error":"#N/A"},{"$error":"#N/A"},{"$error":"#N/A"},{"$error":"#N/A"},{"$error":"#N/A"},{"$error":"#N/A"},{"$error":"#N/A"},{"$error":"#N/A"},{"$error":"#N/A"},{"$error":"#N/A"},{"$error":"#N/A"},{"$error":"#N/A"},{"$error":"#N/A"},{"$error":"#N/A"},{"$error":"#N/A"},{"$error":"#N/A"},{"$error":"#N/A"},{"$error":"#N/A"},{"$error":"#N/A"},{"$error":"#N/A"},{"$error":"#N/A"},{"$error":"#N/A"},{"$error":"#N/A"},{"$error":"#N/A"},{"$error":"#N/A"},{"$error":"#N/A"},{"$error":"#N/A"},{"$error":"#N/A"},{"$error":"#N/A"},{"$error":"#N/A"},{"$error":"#N/A"},{"$error":"#N/A"},{"$error":"#N/A"},{"$error":"#N/A"},{"$error":"#N/A"},{"$error":"#N/A"},{"$error":"#N/A"},null,{"$error":"#N/A"}]
[null,{"$f":"'2. Conservation Measures'!B49","v":"PRE-ICI-03"},{"$f":"'2. Conservation Measures'!C49","v":{"$error":"#N/A"}},{"$f":"'2. Conservation Measures'!D49","v":"N"},null,null,null,0,null,{"$f":"IF(F86>0,1,0)*'2. Conservation Measures'!AA49","v":{"$error":"#N/A"}},null,{"$f":"'2. Conservation Measures'!L49","v":{"$error":"#N/A"}},{"$f":"'2. Conservation Measures'!M49","v":{"$error":"#N/A"}},null,{"$f":"'2. Conservation Measures'!O49","v":{"$error":"#N/A"}},{"$f":"'2. Conservation Measures'!P49","v":{"$error":"#N/A"}},null,{"$f":"'2. Conservation Measures'!S49","v":{"$error":"#N/A"}},{"$f":"'2. Conservation Measures'!T49","v":{"$error":"#N/A"}},{"$f":"'2. Conservation Measures'!U49","v":{"$error":"#N/A"}},{"$f":"'2. Conservation Measures'!V49","v":{"$error":"#N/A"}},{"$f":"'2. Conservation Measures'!W49","v":{"$error":"#N/A"}},{"$f":"'2. Conservation Measures'!X49","v":{"$error":"#N/A"}},null,{"$error":"#N/A"},{"$f":"IF(Z$15<=$W86,Y86*(1-$T86)*IF($U86=\"Y\",(1-$V86),1),0)","v":{"$error":"#N/A"}},{"$error":"#N/A"},{"$error":"#N/A"},{"$error":"#N/A"},{"$error":"#N/A"},{"$error":"#N/A"},{"$error":"#N/A"},{"$error":"#N/A"},{"$error":"#N/A"},{"$error":"#N/A"},{"$error":"#N/A"},{"$error":"#N/A"},{"$error":"#N/A"},{"$error":"#N/A"},{"$error":"#N/A"},{"$error":"#N/A"},{"$error":"#N/A"},{"$error":"#N/A"},{"$error":"#N/A"},{"$error":"#N/A"},{"$error":"#N/A"},{"$error":"#N/A"},{"$error":"#N/A"},{"$error":"#N/A"},{"$error":"#N/A"},{"$error":"#N/A"},{"$error":"#N/A"},{"$error":"#N/A"},{"$error":"#N/A"},{"$error":"#N/A"},{"$error":"#N/A"},{"$error":"#N/A"},{"$error":"#N/A"},{"$error":"#N/A"},{"$error":"#N/A"},{"$error":"#N/A"},{"$error":"#N/A"},{"$error":"#N/A"},{"$error":"#N/A"},{"$error":"#N/A"},{"$error":"#N/A"},{"$error":"#N/A"},{"$error":"#N/A"},{"$error":"#N/A"},{"$error":"#N/A"},{"$error":"#N/A"},{"$error":"#N/A"},{"$error":"#N/A"},{"$error":"#N/A"},{"$error":"#N/A"},null,{"$error":"#N/A"}]
[null,{"$f":"'2. Conservation Measures'!B50","v":"PRE-ICI-04"},{"$f":"'2. Conservation Measures'!C50","v":{"$error":"#N/A"}},{"$f":"'2. Conservation Measures'!D50","v":"N"},null,null,null,0,null,{"$f":"IF(F87>0,1,0)*'2. Conservation Measures'!AA50","v":{"$error":"#N/A"}},null,{"$f":"'2. Conservation Measures'!L50","v":{"$error":"#N/A"}},{"$f":"'2. Conservation Measures'!M50","v":{"$error":"#N/A"}},null,{"$f":"'2. Conservation Measures'!O50","v":{"$error":"#N/A"}},{"$f":"'2. Conservation Measures'!P50","v":{"$error":"#N/A"}},null,{"$f":"'2. Conservation Measures'!S50","v":{"$error":"#N/A"}},{"$f":"'2. Conservation Measures'!T50","v":{"$error":"#N/A"}},{"$f":"'2. Conservation Measures'!U50","v":{"$error":"#N/A"}},{"$f":"'2. Conservation Measures'!V50","v":{"$error":"#N/A"}},{"$f":"'2. Conservation Measures'!W50","v":{"$error":"#N/A"}},{"$f":"'2. Conservation Measures'!X50","v":{"$error":"#N/A"}},null,{"$error":"#N/A"},{"$f":"IF(Z$15<=$W87,Y87*(1-$T87)*IF($U87=\"Y\",(1-$V87),1),0)","v":{"$error":"#N/A"}},{"$error":"#N/A"},{"$error":"#N/A"},{"$error":"#N/A"},{"$error":"#N/A"},{"$error":"#N/A"},{"$error":"#N/A"},{"$error":"#N/A"},{"$error":"#N/A"},{"$error":"#N/A"},{"$error":"#N/A"},{"$error":"#N/A"},{"$error":"#N/A"},{"$error":"#N/A"},{"$error":"#N/A"},{"$error":"#N/A"},{"$error":"#N/A"},{"$error":"#N/A"},{"$error":"#N/A"},{"$error":"#N/A"},{"$error":"#N/A"},{"$error":"#N/A"},{"$error":"#N/A"},{"$error":"#N/A"},{"$error":"#N/A"},{"$error":"#N/A"},{"$error":"#N/A"},{"$error":"#N/A"},{"$error":"#N/A"},{"$error":"#N/A"},{"$error":"#N/A"},{"$error":"#N/A"},{"$error":"#N/A"},{"$error":"#N/A"},{"$error":"#N/A"},{"$error":"#N/A"},{"$error":"#N/A"},{"$error":"#N/A"},{"$error":"#N/A"},{"$error":"#N/A"},{"$error":"#N/A"},{"$error":"#N/A"},{"$error":"#N/A"},{"$error":"#N/A"},{"$error":"#N/A"},{"$error":"#N/A"},{"$error":"#N/A"},{"$error":"#N/A"},{"$error":"#N/A"},{"$error":"#N/A"},null,{"$error":"#N/A"}]
[null,{"$f":"'2. Conservation Measures'!B51","v":"PRE-ICI-05"},{"$f":"'2. Conservation Measures'!C51","v":{"$error":"#N/A"}},{"$f":"'2. Conservation Measures'!D51","v":"N"},null,null,null,0,null,{"$f":"IF(F88>0,1,0)*'2. Conservation Measures'!AA51","v":{"$error":"#N/A"}},null,{"$f":"'2. Conservation Measures'!L51","v":{"$error":"#N/A"}},{"$f":"'2. Conservation Measures'!M51","v":{"$error":"#N/A"}},null,{"$f":"'2. Conservation Measures'!O51","v":{"$error":"#N/A"}},{"$f":"'2. Conservation Measures'!P51","v":{"$error":"#N/A"}},null,{"$f":"'2. Conservation Measures'!S51","v":{"$error":"#N/A"}},{"$f":"'2. Conservation Measures'!T51","v":{"$error":"#N/A"}},{"$f":"'2. Conservation Measures'!U51","v":{"$error":"#N/A"}},{"$f":"'2. Conservation Measures'!V51","v":{"$error":"#N/A"}},{"$f":"'2. Conservation Measures'!W51","v":{"$error":"#N/A"}},{"$f":"'2. Conservation Measures'!X51","v":{"$error":"#N/A"}},null,{"$error":"#N/A"},{"$f":"IF(Z$15<=$W88,Y88*(1-$T88)*IF($U88=\"Y\",(1-$V88),1),0)","v":{"$error":"#N/A"}},{"$error":"#N/A"},{"$error":"#N/A"},{"$error":"#N/A"},{"$error":"#N/A"},{"$error":"#N/A"},{"$error":"#N/A"},{"$error":"#N/A"},{"$error":"#N/A"},{"$error":"#N/A"},{"$error":"#N/A"},{"$error":"#N/A"},{"$error":"#N/A"},{"$error":"#N/A"},{"$error":"#N/A"},{"$error":"#N/A"},{"$error":"#N/A"},{"$error":"#N/A"},{"$error":"#N/A"},{"$error":"#N/A"},{"$error":"#N/A"},{"$error":"#N/A"},{"$error":"#N/A"},{"$error":"#N/A"},{"$error":"#N/A"},{"$error":"#N/A"},{"$error":"#N/A"},{"$error":"#N/A"},{"$error":"#N/A"},{"$error":"#N/A"},{"$error":"#N/A"},{"$error":"#N/A"},{"$error":"#N/A"},{"$error":"#N/A"},{"$error":"#N/A"},{"$error":"#N/A"},{"$error":"#N/A"},{"$error":"#N/A"},{"$error":"#N/A"},{"$error":"#N/A"},{"$error":"#N/A"},{"$error":"#N/A"},{"$error":"#N/A"},{"$error":"#N/A"},{"$error":"#N/A"},{"$error":"#N/A"},{"$error":"#N/A"},{"$error":"#N/A"},{"$error":"#N/A"},{"$error":"#N/A"},null,{"$error":"#N/A"}]
[null,{"$f":"'2. Conservation Measures'!B52","v":"PRE-ICI-06"},{"$f":"'2. Conservation Measures'!C52","v":{"$error":"#N/A"}},{"$f":"'2. Conservation Measures'!D52","v":"N"},null,null,null,0,null,{"$f":"IF(F89>0,1,0)*'2. Conservation Measures'!AA52","v":{"$error":"#N/A"}},null,{"$f":"'2. Conservation Measures'!L52","v":{"$error":"#N/A"}},{"$f":"'2. Conservation Measures'!M52","v":{"$error":"#N/A"}},null,{"$f":"'2. Conservation Measures'!O52","v":{"$error":"#N/A"}},{"$f":"'2. Conservation Measures'!P52","v":{"$error":"#N/A"}},null,{"$f":"'2. Conservation Measures'!S52","v":{"$error":"#N/A"}},{"$f":"'2. Conservation Measures'!T52","v":{"$error":"#N/A"}},{"$f":"'2. Conservation Measures'!U52","v":{"$error":"#N/A"}},{"$f":"'2. Conservation Measures'!V52","v":{"$error":"#N/A"}},{"$f":"'2. Conservation Measures'!W52","v":{"$error":"#N/A"}},{"$f":"'2. Conservation Measures'!X52","v":{"$error":"#N/A"}},null,{"$error":"#N/A"},{"$f":"IF(Z$15<=$W89,Y89*(1-$T89)*IF($U89=\"Y\",(1-$V89),1),0)","v":{"$error":"#N/A"}},{"$error":"#N/A"},{"$error":"#N/A"},{"$error":"#N/A"},{"$error":"#N/A"},{"$error":"#N/A"},{"$error":"#N/A"},{"$error":"#N/A"},{"$error":"#N/A"},{"$error":"#N/A"},{"$error":"#N/A"},{"$error":"#N/A"},{"$error":"#N/A"},{"$error":"#N/A"},{"$error":"#N/A"},{"$error":"#N/A"},{"$error":"#N/A"},{"$error":"#N/A"},{"$error":"#N/A"},{"$error":"#N/A"},{"$error":"#N/A"},{"$error":"#N/A"},{"$error":"#N/A"},{"$error":"#N/A"},{"$error":"#N/A"},{"$error":"#N/A"},{"$error":"#N/A"},{"$error":"#N/A"},{"$error":"#N/A"},{"$error":"#N/A"},{"$error":"#N/A"},{"$error":"#N/A"},{"$error":"#N/A"},{"$error":"#N/A"},{"$error":"#N/A"},{"$error":"#N/A"},{"$error":"#N/A"},{"$error":"#N/A"},{"$error":"#N/A"},{"$error":"#N/A"},{"$error":"#N/A"},{"$error":"#N/A"},{"$error":"#N/A"},{"$error":"#N/A"},{"$error":"#N/A"},{"$error":"#N/A"},{"$error":"#N/A"},{"$error":"#N/A"},{"$error":"#N/A"},{"$error":"#N/A"},null,{"$error":"#N/A"}]
[null,{"$f":"'2. Conservation Measures'!B53","v":"PRE-ICI-07"},{"$f":"'2. Conservation Measures'!C53","v":{"$error":"#N/A"}},{"$f":"'2. Conservation Measures'!D53","v":"N"},null,null,null,0,null,{"$f":"IF(F90>0,1,0)*'2. Conservation Measures'!AA53","v":{"$error":"#N/A"}},null,{"$f":"'2. Conservation Measures'!L53","v":{"$error":"#N/A"}},{"$f":"'2. Conservation Measures'!M53","v":{"$error":"#N/A"}},null,{"$f":"'2. Conservation Measures'!O53","v":{"$error":"#N/A"}},{"$f":"'2. Conservation Measures'!P53","v":{"$error":"#N/A"}},null,{"$f":"'2. Conservation Measures'!S53","v":{"$error":"#N/A"}},{"$f":"'2. Conservation Measures'!T53","v":{"$error":"#N/A"}},{"$f":"'2. Conservation Measures'!U53","v":{"$error":"#N/A"}},{"$f":"'2. Conservation Measures'!V53","v":{"$error":"#N/A"}},{"$f":"'2. Conservation Measures'!W53","v":{"$error":"#N/A"}},{"$f":"'2. Conservation Measures'!X53","v":{"$error":"#N/A"}},null,{"$error":"#N/A"},{"$f":"IF(Z$15<=$W90,Y90*(1-$T90)*IF($U90=\"Y\",(1-$V90),1),0)","v":{"$error":"#N/A"}},{"$error":"#N/A"},{"$error":"#N/A"},{"$error":"#N/A"},{"$error":"#N/A"},{"$error":"#N/A"},{"$error":"#N/A"},{"$error":"#N/A"},{"$error":"#N/A"},{"$error":"#N/A"},{"$error":"#N/A"},{"$error":"#N/A"},{"$error":"#N/A"},{"$error":"#N/A"},{"$error":"#N/A"},{"$error":"#N/A"},{"$error":"#N/A"},{"$error":"#N/A"},{"$error":"#N/A"},{"$error":"#N/A"},{"$error":"#N/A"},{"$error":"#N/A"},{"$error":"#N/A"},{"$error":"#N/A"},{"$error":"#N/A"},{"$error":"#N/A"},{"$error":"#N/A"},{"$error":"#N/A"},{"$error":"#N/A"},{"$error":"#N/A"},{"$error":"#N/A"},{"$error":"#N/A"},{"$error":"#N/A"},{"$error":"#N/A"},{"$error":"#N/A"},{"$error":"#N/A"},{"$error":"#N/A"},{"$error":"#N/A"},{"$error":"#N/A"},{"$error":"#N/A"},{"$error":"#N/A"},{"$error":"#N/A"},{"$error":"#N/A"},{"$error":"#N/A"},{"$error":"#N/A"},{"$error":"#N/A"},{"$error":"#N/A"},{"$error":"#N/A"},{"$error":"#N/A"},{"$error":"#N/A"},null,{"$error":"#N/A"}]
[null,{"$f":"'2. Conservation Measures'!B54","v":"PRE-ICI-08"},{"$f":"'2. Conservation Measures'!C54","v":{"$error":"#N/A"}},{"$f":"'2. Conservation Measures'!D54","v":"N"},null,null,null,0,null,{"$f":"IF(F91>0,1,0)*'2. Conservation Measures'!AA54","v":{"$error":"#N/A"}},null,{"$f":"'2. Conservation Measures'!L54","v":{"$error":"#N/A"}},{"$f":"'2. Conservation Measures'!M54","v":{"$error":"#N/A"}},null,{"$f":"'2. Conservation Measures'!O54","v":{"$error":"#N/A"}},{"$f":"'2. Conservation Measures'!P54","v":{"$error":"#N/A"}},null,{"$f":"'2. Conservation Measures'!S54","v":{"$error":"#N/A"}},{"$f":"'2. Conservation Measures'!T54","v":{"$error":"#N/A"}},{"$f":"'2. Conservation Measures'!U54","v":{"$error":"#N/A"}},{"$f":"'2. Conservation Measures'!V54","v":{"$error":"#N/A"}},{"$f":"'2. Conservation Measures'!W54","v":{"$error":"#N/A"}},{"$f":"'2. Conservation Measures'!X54","v":{"$error":"#N/A"}},null,{"$error":"#N/A"},{"$f":"IF(Z$15<=$W91,Y91*(1-$T91)*IF($U91=\"Y\",(1-$V91),1),0)","v":{"$error":"#N/A"}},{"$error":"#N/A"},{"$error":"#N/A"},{"$error":"#N/A"},{"$error":"#N/A"},{"$error":"#N/A"},{"$error":"#N/A"},{"$error":"#N/A"},{"$error":"#N/A"},{"$error":"#N/A"},{"$error":"#N/A"},{"$error":"#N/A"},{"$error":"#N/A"},{"$error":"#N/A"},{"$error":"#N/A"},{"$error":"#N/A"},{"$error":"#N/A"},{"$error":"#N/A"},{"$error":"#N/A"},{"$error":"#N/A"},{"$error":"#N/A"},{"$error":"#N/A"},{"$error":"#N/A"},{"$error":"#N/A"},{"$error":"#N/A"},{"$error":"#N/A"},{"$error":"#N/A"},{"$error":"#N/A"},{"$error":"#N/A"},{"$error":"#N/A"},{"$error":"#N/A"},{"$error":"#N/A"},{"$error":"#N/A"},{"$error":"#N/A"},{"$error":"#N/A"},{"$error":"#N/A"},{"$error":"#N/A"},{"$error":"#N/A"},{"$error":"#N/A"},{"$error":"#N/A"},{"$error":"#N/A"},{"$error":"#N/A"},{"$error":"#N/A"},{"$error":"#N/A"},{"$error":"#N/A"},{"$error":"#N/A"},{"$error":"#N/A"},{"$error":"#N/A"},{"$error":"#N/A"},{"$error":"#N/A"},null,{"$error":"#N/A"}]
[null,{"$f":"'2. Conservation Measures'!B55","v":"PRE-ICI-09"},{"$f":"'2. Conservation Measures'!C55","v":{"$error":"#N/A"}},{"$f":"'2. Conservation Measures'!D55","v":"N"},null,null,null,0,null,{"$f":"IF(F92>0,1,0)*'2. Conservation Measures'!AA55","v":{"$error":"#N/A"}},null,{"$f":"'2. Conservation Measures'!L55","v":{"$error":"#N/A"}},{"$f":"'2. Conservation Measures'!M55","v":{"$error":"#N/A"}},null,{"$f":"'2. Conservation Measures'!O55","v":{"$error":"#N/A"}},{"$f":"'2. Conservation Measures'!P55","v":{"$error":"#N/A"}},null,{"$f":"'2. Conservation Measures'!S55","v":{"$error":"#N/A"}},{"$f":"'2. Conservation Measures'!T55","v":{"$error":"#N/A"}},{"$f":"'2. Conservation Measures'!U55","v":{"$error":"#N/A"}},{"$f":"'2. Conservation Measures'!V55","v":{"$error":"#N/A"}},{"$f":"'2. Conservation Measures'!W55","v":{"$error":"#N/A"}},{"$f":"'2. Conservation Measures'!X55","v":{"$error":"#N/A"}},null,{"$error":"#N/A"},{"$f":"IF(Z$15<=$W92,Y92*(1-$T92)*IF($U92=\"Y\",(1-$V92),1),0)","v":{"$error":"#N/A"}},{"$error":"#N/A"},{"$error":"#N/A"},{"$error":"#N/A"},{"$error":"#N/A"},{"$error":"#N/A"},{"$error":"#N/A"},{"$error":"#N/A"},{"$error":"#N/A"},{"$error":"#N/A"},{"$error":"#N/A"},{"$error":"#N/A"},{"$error":"#N/A"},{"$error":"#N/A"},{"$error":"#N/A"},{"$error":"#N/A"},{"$error":"#N/A"},{"$error":"#N/A"},{"$error":"#N/A"},{"$error":"#N/A"},{"$error":"#N/A"},{"$error":"#N/A"},{"$error":"#N/A"},{"$error":"#N/A"},{"$error":"#N/A"},{"$error":"#N/A"},{"$error":"#N/A"},{"$error":"#N/A"},{"$error":"#N/A"},{"$error":"#N/A"},{"$error":"#N/A"},{"$error":"#N/A"},{"$error":"#N/A"},{"$error":"#N/A"},{"$error":"#N/A"},{"$error":"#N/A"},{"$error":"#N/A"},{"$error":"#N/A"},{"$error":"#N/A"},{"$error":"#N/A"},{"$error":"#N/A"},{"$error":"#N/A"},{"$error":"#N/A"},{"$error":"#N/A"},{"$error":"#N/A"},{"$error":"#N/A"},{"$error":"#N/A"},{"$error":"#N/A"},{"$error":"#N/A"},{"$error":"#N/A"},null,{"$error":"#N/A"}]
[null,{"$f":"'2. Conservation Measures'!B56","v":"PRE-ICI-10"},{"$f":"'2. Conservation Measures'!C56","v":{"$error":"#N/A"}},{"$f":"'2. Conservation Measures'!D56","v":"N"},null,null,null,0,null,{"$f":"IF(F93>0,1,0)*'2. Conservation Measures'!AA56","v":{"$error":"#N/A"}},null,{"$f":"'2. Conservation Measures'!L56","v":{"$error":"#N/A"}},{"$f":"'2. Conservation Measures'!M56","v":{"$error":"#N/A"}},null,{"$f":"'2. Conservation Measures'!O56","v":{"$error":"#N/A"}},{"$f":"'2. Conservation Measures'!P56","v":{"$error":"#N/A"}},null,{"$f":"'2. Conservation Measures'!S56","v":{"$error":"#N/A"}},{"$f":"'2. Conservation Measures'!T56","v":{"$error":"#N/A"}},{"$f":"'2. Conservation Measures'!U56","v":{"$error":"#N/A"}},{"$f":"'2. Conservation Measures'!V56","v":{"$error":"#N/A"}},{"$f":"'2. Conservation Measures'!W56","v":{"$error":"#N/A"}},{"$f":"'2. Conservation Measures'!X56","v":{"$error":"#N/A"}},null,{"$error":"#N/A"},{"$f":"IF(Z$15<=$W93,Y93*(1-$T93)*IF($U93=\"Y\",(1-$V93),1),0)","v":{"$error":"#N/A"}},{"$error":"#N/A"},{"$error":"#N/A"},{"$error":"#N/A"},{"$error":"#N/A"},{"$error":"#N/A"},{"$error":"#N/A"},{"$error":"#N/A"},{"$error":"#N/A"},{"$error":"#N/A"},{"$error":"#N/A"},{"$error":"#N/A"},{"$error":"#N/A"},{"$error":"#N/A"},{"$error":"#N/A"},{"$error":"#N/A"},{"$error":"#N/A"},{"$error":"#N/A"},{"$error":"#N/A"},{"$error":"#N/A"},{"$error":"#N/A"},{"$error":"#N/A"},{"$error":"#N/A"},{"$error":"#N/A"},{"$error":"#N/A"},{"$error":"#N/A"},{"$error":"#N/A"},{"$error":"#N/A"},{"$error":"#N/A"},{"$error":"#N/A"},{"$error":"#N/A"},{"$error":"#N/A"},{"$error":"#N/A"},{"$error":"#N/A"},{"$error":"#N/A"},{"$error":"#N/A"},{"$error":"#N/A"},{"$error":"#N/A"},{"$error":"#N/A"},{"$error":"#N/A"},{"$error":"#N/A"},{"$error":"#N/A"},{"$error":"#N/A"},{"$error":"#N/A"},{"$error":"#N/A"},{"$error":"#N/A"},{"$error":"#N/A"},{"$error":"#N/A"},{"$error":"#N/A"},{"$error":"#N/A"},null,{"$error":"#N/A"}]
[null,"PRE-ICI-11",{"$f":"'2. Conservation Measures'!C57","v":{"$error":"#N/A"}},{"$f":"'2. Conservation Measures'!D57","v":"N"},null,null,null,{"$f":"IF(D94=\"Y\",F94*R94*(1-S94)*365/10^3,0)*CHOOSE(singleyrcalcvolunit,1,1000,1000/325851)","v":0},null,{"$f":"IF(F94>0,1,0)*'2. Conservation Measures'!AA57","v":{"$error":"#N/A"}},null,{"$f":"'2. Conservation Measures'!L57","v":{"$error":"#N/A"}},{"$f":"'2. Conservation Measures'!M57","v":{"$error":"#N/A"}},null,{"$f":"'2. Conservation Measures'!O57","v":{"$error":"#N/A"}},{"$f":"'2. Conservation Measures'!P57","v":{"$error":"#N/A"}},null,{"$f":"'2. Conservation Measures'!S57","v":{"$error":"#N/A"}},{"$f":"'2. Conservation Measures'!T57","v":{"$error":"#N/A"}},{"$f":"'2. Conservation Measures'!U57","v":{"$error":"#N/A"}},{"$f":"'2. Conservation Measures'!V57","v":{"$error":"#N/A"}},{"$f":"'2. Conservation Measures'!W57","v":{"$error":"#N/A"}},{"$f":"'2. Conservation Measures'!X57","v":{"$error":"#N/A"}},null,{"$f":"IF($D94=\"Y\",1,0)*F94*R94*(1-S94)*365/10^3*CHOOSE(singleyrcalcvolunit,1,1000,1000/325851)","v":{"$error":"#N/A"}},{"$f":"IF(Z$15<=$W94,Y94*(1-$T94)*IF($U94=\"Y\",(1-$V94),1),0)","v":{"$error":"#N/A"}},{"$f":"IF(AA$15<=$W94,Z94*(1-$T94)*IF($U94=\"Y\",(1-$V94),1),0)","v":{"$error":"#N/A"}},{"$f":"IF(AB$15<=$W94,AA94*(1-$T94)*IF($U94=\"Y\",(1-$V94),1),0)","v":{"$error":"#N/A"}},{"$f":"IF(AC$15<=$W94,AB94*(1-$T94)*IF($U94=\"Y\",(1-$V94),1),0)","v":{"$error":"#N/A"}},{"$f":"IF(AD$15<=$W94,AC94*(1-$T94)*IF($U94=\"Y\",(1-$V94),1),0)","v":{"$error":"#N/A"}},{"$f":"IF(AE$15<=$W94,AD94*(1-$T94)*IF($U94=\"Y\",(1-$V94),1),0)","v":{"$error":"#N/A"}},{"$f":"IF(AF$15<=$W94,AE94*(1-$T94)*IF($U94=\"Y\",(1-$V94),1),0)","v":{"$error":"#N/A"}},{"$f":"IF(AG$15<=$W94,AF94*(1-$T94)*IF($U94=\"Y\",(1-$V94),1),0)","v":{"$error":"#N/A"}},{"$f":"IF(AH$15<=$W94,AG94*(1-$T94)*IF($U94=\"Y\",(1-$V94),1),0)","v":{"$error":"#N/A"}},{"$f":"IF(AI$15<=$W94,AH94*(1-$T94)*IF($U94=\"Y\",(1-$V94),1),0)","v":{"$error":"#N/A"}},{"$f":"IF(AJ$15<=$W94,AI94*(1-$T94)*IF($U94=\"Y\",(1-$V94),1),0)","v":{"$error":"#N/A"}},{"$f":"IF(AK$15<=$W94,AJ94*(1-$T94)*IF($U94=\"Y\",(1-$V94),1),0)","v":{"$error":"#N/A"}},{"$f":"IF(AL$15<=$W94,AK94*(1-$T94)*IF($U94=\"Y\",(1-$V94),1),0)","v":{"$error":"#N/A"}},{"$f":"IF(AM$15<=$W94,AL94*(1-$T94)*IF($U94=\"Y\",(1-$V94),1),0)","v":{"$error":"#N/A"}},{"$f":"IF(AN$15<=$W94,AM94*(1-$T94)*IF($U94=\"Y\",(1-$V94),1),0)","v":{"$error":"#N/A"}},{"$f":"IF(AO$15<=$W94,AN94*(1-$T94)*IF($U94=\"Y\",(1-$V94),1),0)","v":{"$error":"#N/A"}},{"$f":"IF(AP$15<=$W94,AO94*(1-$T94)*IF($U94=\"Y\",(1-$V94),1),0)","v":{"$error":"#N/A"}},{"$f":"IF(AQ$15<=$W94,AP94*(1-$T94)*IF($U94=\"Y\",(1-$V94),1),0)","v":{"$error":"#N/A"}},{"$f":"IF(AR$15<=$W94,AQ94*(1-$T94)*IF($U94=\"Y\",(1-$V94),1),0)","v":{"$error":"#N/A"}},{"$f":"IF(AS$15<=$W94,AR94*(1-$T94)*IF($U94=\"Y\",(1-$V94),1),0)","v":{"$error":"#N/A"}},{"$f":"IF(AT$15<=$W94,AS94*(1-$T94)*IF($U94=\"Y\",(1-$V94),1),0)","v":{"$error":"#N/A"}},{"$f":"IF(AU$15<=$W94,AT94*(1-$T94)*IF($U94=\"Y\",(1-$V94),1),0)","v":{"$error":"#N/A"}},{"$f":"IF(AV$15<=$W94,AU94*(1-$T94)*IF($U94=\"Y\",(1-$V94),1),0)","v":{"$error":"#N/A"}},{"$f":"IF(AW$15<=$W94,AV94*(1-$T94)*IF($U94=\"Y\",(1-$V94),1),0)","v":{"$error":"#N/A"}},{"$f":"IF(AX$15<=$W94,AW94*(1-$T94)*IF($U94=\"Y\",(1-$V94),1),0)","v":{"$error":"#N/A"}},{"$f":"IF(AY$15<=$W94,AX94*(1-$T94)*IF($U94=\"Y\",(1-$V94),1),0)","v":{"$error":"#N/A"}},{"$f":"IF(AZ$15<=$W94,AY94*(1-$T94)*IF($U94=\"Y\",(1-$V94),1),0)","v":{"$error":"#N/A"}},{"$f":"IF(BA$15<=$W94,AZ94*(1-$T94)*IF($U94=\"Y\",(1-$V94),1),0)","v":{"$error":"#N/A"}},{"$f":"IF(BB$15<=$W94,BA94*(1-$T94)*IF($U94=\"Y\",(1-$V94),1),0)","v":{"$error":"#N/A"}},{"$f":"IF(BC$15<=$W94,BB94*(1-$T94)*IF($U94=\"Y\",(1-$V94),1),0)","v":{"$error":"#N/A"}},{"$f":"IF(BD$15<=$W94,BC94*(1-$T94)*IF($U94=\"Y\",(1-$V94),1),0)","v":{"$error":"#N/A"}},{"$f":"IF(BE$15<=$W94,BD94*(1-$T94)*IF($U94=\"Y\",(1-$V94),1),0)","v":{"$error":"#N/A"}},{"$f":"IF(BF$15<=$W94,BE94*(1-$T94)*IF($U94=\"Y\",(1-$V94),1),0)","v":{"$error":"#N/A"}},{"$f":"IF(BG$15<=$W94,BF94*(1-$T94)*IF($U94=\"Y\",(1-$V94),1),0)","v":{"$error":"#N/A"}},{"$f":"IF(BH$15<=$W94,BG94*(1-$T94)*IF($U94=\"Y\",(1-$V94),1),0)","v":{"$error":"#N/A"}},{"$f":"IF(BI$15<=$W94,BH94*(1-$T94)*IF($U94=\"Y\",(1-$V94),1),0)","v":{"$error":"#N/A"}},{"$f":"IF(BJ$15<=$W94,BI94*(1-$T94)*IF($U94=\"Y\",(1-$V94),1),0)","v":{"$error":"#N/A"}},{"$f":"IF(BK$15<=$W94,BJ94*(1-$T94)*IF($U94=\"Y\",(1-$V94),1),0)","v":{"$error":"#N/A"}},{"$f":"IF(BL$15<=$W94,BK94*(1-$T94)*IF($U94=\"Y\",(1-$V94),1),0)","v":{"$error":"#N/A"}},{"$f":"IF(BM$15<=$W94,BL94*(1-$T94)*IF($U94=\"Y\",(1-$V94),1),0)","v":{"$error":"#N/A"}},{"$f":"IF(BN$15<=$W94,BM94*(1-$T94)*IF($U94=\"Y\",(1-$V94),1),0)","v":{"$error":"#N/A"}},{"$f":"IF(BO$15<=$W94,BN94*(1-$T94)*IF($U94=\"Y\",(1-$V94),1),0)","v":{"$error":"#N/A"}},{"$f":"IF(BP$15<=$W94,BO94*(1-$T94)*IF($U94=\"Y\",(1-$V94),1),0)","v":{"$error":"#N/A"}},{"$f":"IF(BQ$15<=$W94,BP94*(1-$T94)*IF($U94=\"Y\",(1-$V94),1),0)","v":{"$error":"#N/A"}},{"$f":"IF(BR$15<=$W94,BQ94*(1-$T94)*IF($U94=\"Y\",(1-$V94),1),0)","v":{"$error":"#N/A"}},{"$f":"IF(BS$15<=$W94,BR94*(1-$T94)*IF($U94=\"Y\",(1-$V94),1),0)","v":{"$error":"#N/A"}},{"$f":"IF(BT$15<=$W94,BS94*(1-$T94)*IF($U94=\"Y\",(1-$V94),1),0)","v":{"$error":"#N/A"}},{"$f":"IF(BU$15<=$W94,BT94*(1-$T94)*IF($U94=\"Y\",(1-$V94),1),0)","v":{"$error":"#N/A"}},{"$f":"IF(BV$15<=$W94,BU94*(1-$T94)*IF($U94=\"Y\",(1-$V94),1),0)","v":{"$error":"#N/A"}},{"$f":"IF(BW$15<=$W94,BV94*(1-$T94)*IF($U94=\"Y\",(1-$V94),1),0)","v":{"$error":"#N/A"}},null,{"$f":"Y94+NPV(discount_rate,Z94:BW94)","v":{"$error":"#N/A"}}]
[null,"PRE-ICI-12",{"$f":"'2. Conservation Measures'!C58","v":{"$error":"#N/A"}},{"$f":"'2. Conservation Measures'!D58","v":"N"},null,null,null,0,null,{"$f":"IF(F95>0,1,0)*'2. Conservation Measures'!AA58","v":{"$error":"#N/A"}},null,{"$f":"'2. Conservation Measures'!L58","v":{"$error":"#N/A"}},{"$f":"'2. Conservation Measures'!M58","v":{"$error":"#N/A"}},null,{"$f":"'2. Conservation Measures'!O58","v":{"$error":"#N/A"}},{"$f":"'2. Conservation Measures'!P58","v":{"$error":"#N/A"}},null,{"$f":"'2. Conservation Measures'!S58","v":{"$error":"#N/A"}},{"$f":"'2. Conservation Measures'!T58","v":{"$error":"#N/A"}},{"$f":"'2. Conservation Measures'!U58","v":{"$error":"#N/A"}},{"$f":"'2. Conservation Measures'!V58","v":{"$error":"#N/A"}},{"$f":"'2. Conservation Measures'!W58","v":{"$error":"#N/A"}},{"$f":"'2. Conservation Measures'!X58","v":{"$error":"#N/A"}},null,{"$error":"#N/A"},{"$error":"#N/A"},{"$error":"#N/A"},{"$error":"#N/A"},{"$error":"#N/A"},{"$error":"#N/A"},{"$error":"#N/A"},{"$error":"#N/A"},{"$error":"#N/A"},{"$error":"#N/A"},{"$error":"#N/A"},{"$error":"#N/A"},{"$error":"#N/A"},{"$error":"#N/A"},{"$error":"#N/A"},{"$error":"#N/A"},{"$error":"#N/A"},{"$error":"#N/A"},{"$error":"#N/A"},{"$error":"#N/A"},{"$error":"#N/A"},{"$error":"#N/A"},{"$error":"#N/A"},{"$error":"#N/A"},{"$error":"#N/A"},{"$error":"#N/A"},{"$error":"#N/A"},{"$error":"#N/A"},{"$error":"#N/A"},{"$error":"#N/A"},{"$error":"#N/A"},{"$error":"#N/A"},{"$error":"#N/A"},{"$error":"#N/A"},{"$error":"#N/A"},{"$error":"#N/A"},{"$error":"#N/A"},{"$error":"#N/A"},{"$error":"#N/A"},{"$error":"#N/A"},{"$error":"#N/A"},{"$error":"#N/A"},{"$error":"#N/A"},{"$error":"#N/A"},{"$error":"#N/A"},{"$error":"#N/A"},{"$error":"#N/A"},{"$error":"#N/A"},{"$error":"#N/A"},{"$error":"#N/A"},{"$error":"#N/A"},null,{"$error":"#N/A"}]
[null,{"$f":"'2. Conservation Measures'!B108","v":"USR-ICI-01"},{"$f":"'2. Conservation Measures'!C108","v":0},{"$f":"'2. Conservation Measures'!D108","v":"N"},null,null,null,0,null,{"$f":"IF(F96>0,1,0)*'2. Conservation Measures'!AA108","v":0},null,{"$f":"'2. Conservation Measures'!L108","v":0},{"$f":"'2. Conservation Measures'!M108","v":0},null,{"$f":"'2. Conservation Measures'!O108","v":0},{"$f":"'2. Conservation Measures'!P108","v":0},null,{"$f":"'2. Conservation Measures'!S108","v":0},{"$f":"'2. Conservation Measures'!T108","v":0},{"$f":"'2. Conservation Measures'!U108","v":0},{"$f":"'2. Conservation Measures'!V108","v":0},{"$f":"'2. Conservation Measures'!W108","v":0},{"$f":"'2. Conservation Measures'!X108","v":0},null,0,{"$f":"IF(Z$15<=$W96,Y96*(1-$T96)*IF($U96=\"Y\",(1-$V96),1),0)","v":0},0,0,0,0,0,0,0,0,0,0,0,0,0,0,0,0,0,0,0,0,0,0,0,0,0,0,0,0,0,0,0,0,0,0,0,0,0,0,0,0,0,0,0,0,0,0,0,0,0,null,0]
[null,{"$f":"'2. Conservation Measures'!B109","v":"USR-ICI-02"},{"$f":"'2. Conservation Measures'!C109","v":0},{"$f":"'2. Conservation Measures'!D109","v":"N"},null,null,null,0,null,{"$f":"IF(F97>0,1,0)*'2. Conservation Measures'!AA109","v":0},null,{"$f":"'2. Conservation Measures'!L109","v":0},{"$f":"'2. Conservation Measures'!M109","v":0},null,{"$f":"'2. Conservation Measures'!O109","v":0},{"$f":"'2. Conservation Measures'!P109","v":0},null,{"$f":"'2. Conservation Measures'!S109","v":0},{"$f":"'2. Conservation Measures'!T109","v":0},{"$f":"'2. Conservation Measures'!U109","v":0},{"$f":"'2. Conservation Measures'!V109","v":0},{"$f":"'2. Conservation Measures'!W109","v":0},{"$f":"'2. Conservation Measures'!X109","v":0},null,0,{"$f":"IF(Z$15<=$W97,Y97*(1-$T97)*IF($U97=\"Y\",(1-$V97),1),0)","v":0},0,0,0,0,0,0,0,0,0,0,0,0,0,0,0,0,0,0,0,0,0,0,0,0,0,0,0,0,0,0,0,0,0,0,0,0,0,0,0,0,0,0,0,0,0,0,0,0,0,null,0]
[null,{"$f":"'2. Conservation Measures'!B110","v":"USR-ICI-03"},{"$f":"'2. Conservation Measures'!C110","v":0},{"$f":"'2. Conservation Measures'!D110","v":"N"},null,null,null,0,null,{"$f":"IF(F98>0,1,0)*'2. Conservation Measures'!AA110","v":0},null,{"$f":"'2. Conservation Measures'!L110","v":0},{"$f":"'2. Conservation Measures'!M110","v":0},null,{"$f":"'2. Conservation Measures'!O110","v":0},{"$f":"'2. Conservation Measures'!P110","v":0},null,{"$f":"'2. Conservation Measures'!S110","v":0},{"$f":"'2. Conservation Measures'!T110","v":0},{"$f":"'2. Conservation Measures'!U110","v":0},{"$f":"'2. Conservation Measures'!V110","v":0},{"$f":"'2. Conservation Measures'!W110","v":0},{"$f":"'2. Conservation Measures'!X110","v":0},null,0,{"$f":"IF(Z$15<=$W98,Y98*(1-$T98)*IF($U98=\"Y\",(1-$V98),1),0)","v":0},0,0,0,0,0,0,0,0,0,0,0,0,0,0,0,0,0,0,0,0,0,0,0,0,0,0,0,0,0,0,0,0,0,0,0,0,0,0,0,0,0,0,0,0,0,0,0,0,0,null,0]
[null,{"$f":"'2. Conservation Measures'!B111","v":"USR-ICI-04"},{"$f":"'2. Conservation Measures'!C111","v":0},{"$f":"'2. Conservation Measures'!D111","v":"N"},null,null,null,0,null,{"$f":"IF(F99>0,1,0)*'2. Conservation Measures'!AA111","v":0},null,{"$f":"'2. Conservation Measures'!L111","v":0},{"$f":"'2. Conservation Measures'!M111","v":0},null,{"$f":"'2. Conservation Measures'!O111","v":0},{"$f":"'2. Conservation Measures'!P111","v":0},null,{"$f":"'2. Conservation Measures'!S111","v":0},{"$f":"'2. Conservation Measures'!T111","v":0},{"$f":"'2. Conservation Measures'!U111","v":0},{"$f":"'2. Conservation Measures'!V111","v":0},{"$f":"'2. Conservation Measures'!W111","v":0},{"$f":"'2. Conservation Measures'!X111","v":0},null,0,{"$f":"IF(Z$15<=$W99,Y99*(1-$T99)*IF($U99=\"Y\",(1-$V99),1),0)","v":0},0,0,0,0,0,0,0,0,0,0,0,0,0,0,0,0,0,0,0,0,0,0,0,0,0,0,0,0,0,0,0,0,0,0,0,0,0,0,0,0,0,0,0,0,0,0,0,0,0,null,0]
[null,{"$f":"'2. Conservation Measures'!B112","v":"USR-ICI-05"},{"$f":"'2. Conservation Measures'!C112","v":0},{"$f":"'2. Conservation Measures'!D112","v":"N"},null,null,null,0,null,{"$f":"IF(F100>0,1,0)*'2. Conservation Measures'!AA112","v":0},null,{"$f":"'2. Conservation Measures'!L112","v":0},{"$f":"'2. Conservation Measures'!M112","v":0},null,{"$f":"'2. Conservation Measures'!O112","v":0},{"$f":"'2. Conservation Measures'!P112","v":0},null,{"$f":"'2. Conservation Measures'!S112","v":0},{"$f":"'2. Conservation Measures'!T112","v":0},{"$f":"'2. Conservation Measures'!U112","v":0},{"$f":"'2. Conservation Measures'!V112","v":0},{"$f":"'2. Conservation Measures'!W112","v":0},{"$f":"'2. Conservation Measures'!X112","v":0},null,0,{"$f":"IF(Z$15<=$W100,Y100*(1-$T100)*IF($U100=\"Y\",(1-$V100),1),0)","v":0},0,0,0,0,0,0,0,0,0,0,0,0,0,0,0,0,0,0,0,0,0,0,0,0,0,0,0,0,0,0,0,0,0,0,0,0,0,0,0,0,0,0,0,0,0,0,0,0,0,null,0]
[null,{"$f":"'2. Conservation Measures'!B113","v":"USR-ICI-06"},{"$f":"'2. Conservation Measures'!C113","v":0},{"$f":"'2. Conservation Measures'!D113","v":"N"},null,null,null,0,null,{"$f":"IF(F101>0,1,0)*'2. Conservation Measures'!AA113","v":0},null,{"$f":"'2. Conservation Measures'!L113","v":0},{"$f":"'2. Conservation Measures'!M113","v":0},null,{"$f":"'2. Conservation Measures'!O113","v":0},{"$f":"'2. Conservation Measures'!P113","v":0},null,{"$f":"'2. Conservation Measures'!S113","v":0},{"$f":"'2. Conservation Measures'!T113","v":0},{"$f":"'2. Conservation Measures'!U113","v":0},{"$f":"'2. Conservation Measures'!V113","v":0},{"$f":"'2. Conservation Measures'!W113","v":0},{"$f":"'2. Conservation Measures'!X113","v":0},null,0,{"$f":"IF(Z$15<=$W101,Y101*(1-$T101)*IF($U101=\"Y\",(1-$V101),1),0)","v":0},0,0,0,0,0,0,0,0,0,0,0,0,0,0,0,0,0,0,0,0,0,0,0,0,0,0,0,0,0,0,0,0,0,0,0,0,0,0,0,0,0,0,0,0,0,0,0,0,0,null,0]
[null,{"$f":"'2. Conservation Measures'!B114","v":"USR-ICI-07"},{"$f":"'2. Conservation Measures'!C114","v":0},{"$f":"'2. Conservation Measures'!D114","v":"N"},null,null,null,0,null,{"$f":"IF(F102>0,1,0)*'2. Conservation Measures'!AA114","v":0},null,{"$f":"'2. Conservation Measures'!L114","v":0},{"$f":"'2. Conservation Measures'!M114","v":0},null,{"$f":"'2. Conservation Measures'!O114","v":0},{"$f":"'2. Conservation Measures'!P114","v":0},null,{"$f":"'2. Conservation Measures'!S114","v":0},{"$f":"'2. Conservation Measures'!T114","v":0},{"$f":"'2. Conservation Measures'!U114","v":0},{"$f":"'2. Conservation Measures'!V114","v":0},{"$f":"'2. Conservation Measures'!W114","v":0},{"$f":"'2. Conservation Measures'!X114","v":0},null,0,{"$f":"IF(Z$15<=$W102,Y102*(1-$T102)*IF($U102=\"Y\",(1-$V102),1),0)","v":0},0,0,0,0,0,0,0,0,0,0,0,0,0,0,0,0,0,0,0,0,0,0,0,0,0,0,0,0,0,0,0,0,0,0,0,0,0,0,0,0,0,0,0,0,0,0,0,0,0,null,0]
[null,{"$f":"'2. Conservation Measures'!B115","v":"USR-ICI-08"},{"$f":"'2. Conservation Measures'!C115","v":0},{"$f":"'2. Conservation Measures'!D115","v":"N"},null,null,null,0,null,{"$f":"IF(F103>0,1,0)*'2. Conservation Measures'!AA115","v":0},null,{"$f":"'2. Conservation Measures'!L115","v":0},{"$f":"'2. Conservation Measures'!M115","v":0},null,{"$f":"'2. Conservation Measures'!O115","v":0},{"$f":"'2. Conservation Measures'!P115","v":0},null,{"$f":"'2. Conservation Measures'!S115","v":0},{"$f":"'2. Conservation Measures'!T115","v":0},{"$f":"'2. Conservation Measures'!U115","v":0},{"$f":"'2. Conservation Measures'!V115","v":0},{"$f":"'2. Conservation Measures'!W115","v":0},{"$f":"'2. Conservation Measures'!X115","v":0},null,0,{"$f":"IF(Z$15<=$W103,Y103*(1-$T103)*IF($U103=\"Y\",(1-$V103),1),0)","v":0},0,0,0,0,0,0,0,0,0,0,0,0,0,0,0,0,0,0,0,0,0,0,0,0,0,0,0,0,0,0,0,0,0,0,0,0,0,0,0,0,0,0,0,0,0,0,0,0,0,null,0]
[null,{"$f":"'2. Conservation Measures'!B116","v":"USR-ICI-09"},{"$f":"'2. Conservation Measures'!C116","v":0},{"$f":"'2. Conservation Measures'!D116","v":"N"},null,null,null,0,null,{"$f":"IF(F104>0,1,0)*'2. Conservation Measures'!AA116","v":0},null,{"$f":"'2. Conservation Measures'!L116","v":0},{"$f":"'2. Conservation Measures'!M116","v":0},null,{"$f":"'2. Conservation Measures'!O116","v":0},{"$f":"'2. Conservation Measures'!P116","v":0},null,{"$f":"'2. Conservation Measures'!S116","v":0},{"$f":"'2. Conservation Measures'!T116","v":0},{"$f":"'2. Conservation Measures'!U116","v":0},{"$f":"'2. Conservation Measures'!V116","v":0},{"$f":"'2. Conservation Measures'!W116","v":0},{"$f":"'2. Conservation Measures'!X116","v":0},null,0,{"$f":"IF(Z$15<=$W104,Y104*(1-$T104)*IF($U104=\"Y\",(1-$V104),1),0)","v":0},0,0,0,0,0,0,0,0,0,0,0,0,0,0,0,0,0,0,0,0,0,0,0,0,0,0,0,0,0,0,0,0,0,0,0,0,0,0,0,0,0,0,0,0,0,0,0,0,0,null,0]
[null,{"$f":"'2. Conservation Measures'!B117","v":"USR-ICI-10"},{"$f":"'2. Conservation Measures'!C117","v":0},{"$f":"'2. Conservation Measures'!D117","v":"N"},null,null,null,0,null,{"$f":"IF(F105>0,1,0)*'2. Conservation Measures'!AA117","v":0},null,{"$f":"'2. Conservation Measures'!L117","v":0},{"$f":"'2. Conservation Measures'!M117","v":0},null,{"$f":"'2. Conservation Measures'!O117","v":0},{"$f":"'2. Conservation Measures'!P117","v":0},null,{"$f":"'2. Conservation Measures'!S117","v":0},{"$f":"'2. Conservation Measures'!T117","v":0},{"$f":"'2. Conservation Measures'!U117","v":0},{"$f":"'2. Conservation Measures'!V117","v":0},{"$f":"'2. Conservation Measures'!W117","v":0},{"$f":"'2. Conservation Measures'!X117","v":0},null,0,{"$f":"IF(Z$15<=$W105,Y105*(1-$T105)*IF($U105=\"Y\",(1-$V105),1),0)","v":0},0,0,0,0,0,0,0,0,0,0,0,0,0,0,0,0,0,0,0,0,0,0,0,0,0,0,0,0,0,0,0,0,0,0,0,0,0,0,0,0,0,0,0,0,0,0,0,0,0,null,0]
[null,{"$f":"'2. Conservation Measures'!B118","v":"USR-ICI-11"},{"$f":"'2. Conservation Measures'!C118","v":0},{"$f":"'2. Conservation Measures'!D118","v":"N"},null,null,null,0,null,{"$f":"IF(F106>0,1,0)*'2. Conservation Measures'!AA118","v":0},null,{"$f":"'2. Conservation Measures'!L118","v":0},{"$f":"'2. Conservation Measures'!M118","v":0},null,{"$f":"'2. Conservation Measures'!O118","v":0},{"$f":"'2. Conservation Measures'!P118","v":0},null,{"$f":"'2. Conservation Measures'!S118","v":0},{"$f":"'2. Conservation Measures'!T118","v":0},{"$f":"'2. Conservation Measures'!U118","v":0},{"$f":"'2. Conservation Measures'!V118","v":0},{"$f":"'2. Conservation Measures'!W118","v":0},{"$f":"'2. Conservation Measures'!X118","v":0},null,0,{"$f":"IF(Z$15<=$W106,Y106*(1-$T106)*IF($U106=\"Y\",(1-$V106),1),0)","v":0},0,0,0,0,0,0,0,0,0,0,0,0,0,0,0,0,0,0,0,0,0,0,0,0,0,0,0,0,0,0,0,0,0,0,0,0,0,0,0,0,0,0,0,0,0,0,0,0,0,null,0]
[null,{"$f":"'2. Conservation Measures'!B119","v":"USR-ICI-12"},{"$f":"'2. Conservation Measures'!C119","v":0},{"$f":"'2. Conservation Measures'!D119","v":"N"},null,null,null,0,null,{"$f":"IF(F107>0,1,0)*'2. Conservation Measures'!AA119","v":0},null,{"$f":"'2. Conservation Measures'!L119","v":0},{"$f":"'2. Conservation Measures'!M119","v":0},null,{"$f":"'2. Conservation Measures'!O119","v":0},{"$f":"'2. Conservation Measures'!P119","v":0},null,{"$f":"'2. Conservation Measures'!S119","v":0},{"$f":"'2. Conservation Measures'!T119","v":0},{"$f":"'2. Conservation Measures'!U119","v":0},{"$f":"'2. Conservation Measures'!V119","v":0},{"$f":"'2. Conservation Measures'!W119","v":0},{"$f":"'2. Conservation Measures'!X119","v":0},null,0,{"$f":"IF(Z$15<=$W107,Y107*(1-$T107)*IF($U107=\"Y\",(1-$V107),1),0)","v":0},0,0,0,0,0,0,0,0,0,0,0,0,0,0,0,0,0,0,0,0,0,0,0,0,0,0,0,0,0,0,0,0,0,0,0,0,0,0,0,0,0,0,0,0,0,0,0,0,0,null,0]
[null,{"$f":"'2. Conservation Measures'!B120","v":"USR-ICI-13"},{"$f":"'2. Conservation Measures'!C120","v":0},{"$f":"'2. Conservation Measures'!D120","v":"N"},null,null,null,0,null,{"$f":"IF(F108>0,1,0)*'2. Conservation Measures'!AA120","v":0},null,{"$f":"'2. Conservation Measures'!L120","v":0},{"$f":"'2. Conservation Measures'!M120","v":0},null,{"$f":"'2. Conservation Measures'!O120","v":0},{"$f":"'2. Conservation Measures'!P120","v":0},null,{"$f":"'2. Conservation Measures'!S120","v":0},{"$f":"'2. Conservation Measures'!T120","v":0},{"$f":"'2. Conservation Measures'!U120","v":0},{"$f":"'2. Conservation Measures'!V120","v":0},{"$f":"'2. Conservation Measures'!W120","v":0},{"$f":"'2. Conservation Measures'!X120","v":0},null,0,{"$f":"IF(Z$15<=$W108,Y108*(1-$T108)*IF($U108=\"Y\",(1-$V108),1),0)","v":0},0,0,0,0,0,0,0,0,0,0,0,0,0,0,0,0,0,0,0,0,0,0,0,0,0,0,0,0,0,0,0,0,0,0,0,0,0,0,0,0,0,0,0,0,0,0,0,0,0,null,0]
[null,{"$f":"'2. Conservation Measures'!B121","v":"USR-ICI-14"},{"$f":"'2. Conservation Measures'!C121","v":0},{"$f":"'2. Conservation Measures'!D121","v":"N"},null,null,null,0,null,{"$f":"IF(F109>0,1,0)*'2. Conservation Measures'!AA121","v":0},null,{"$f":"'2. Conservation Measures'!L121","v":0},{"$f":"'2. Conservation Measures'!M121","v":0},null,{"$f":"'2. Conservation Measures'!O121","v":0},{"$f":"'2. Conservation Measures'!P121","v":0},null,{"$f":"'2. Conservation Measures'!S121","v":0},{"$f":"'2. Conservation Measures'!T121","v":0},{"$f":"'2. Conservation Measures'!U121","v":0},{"$f":"'2. Conservation Measures'!V121","v":0},{"$f":"'2. Conservation Measures'!W121","v":0},{"$f":"'2. Conservation Measures'!X121","v":0},null,0,{"$f":"IF(Z$15<=$W109,Y109*(1-$T109)*IF($U109=\"Y\",(1-$V109),1),0)","v":0},0,0,0,0,0,0,0,0,0,0,0,0,0,0,0,0,0,0,0,0,0,0,0,0,0,0,0,0,0,0,0,0,0,0,0,0,0,0,0,0,0,0,0,0,0,0,0,0,0,null,0]
[null,{"$f":"'2. Conservation Measures'!B122","v":"USR-ICI-15"},{"$f":"'2. Conservation Measures'!C122","v":0},{"$f":"'2. Conservation Measures'!D122","v":"N"},null,null,null,0,null,{"$f":"IF(F110>0,1,0)*'2. Conservation Measures'!AA122","v":0},null,{"$f":"'2. Conservation Measures'!L122","v":0},{"$f":"'2. Conservation Measures'!M122","v":0},null,{"$f":"'2. Conservation Measures'!O122","v":0},{"$f":"'2. Conservation Measures'!P122","v":0},null,{"$f":"'2. Conservation Measures'!S122","v":0},{"$f":"'2. Conservation Measures'!T122","v":0},{"$f":"'2. Conservation Measures'!U122","v":0},{"$f":"'2. Conservation Measures'!V122","v":0},{"$f":"'2. Conservation Measures'!W122","v":0},{"$f":"'2. Conservation Measures'!X122","v":0},null,0,{"$f":"IF(Z$15<=$W110,Y110*(1-$T110)*IF($U110=\"Y\",(1-$V110),1),0)","v":0},0,0,0,0,0,0,0,0,0,0,0,0,0,0,0,0,0,0,0,0,0,0,0,0,0,0,0,0,0,0,0,0,0,0,0,0,0,0,0,0,0,0,0,0,0,0,0,0,0,null,0]
[null,{"$f":"'2. Conservation Measures'!B123","v":"USR-ICI-16"},{"$f":"'2. Conservation Measures'!C123","v":0},{"$f":"'2. Conservation Measures'!D123","v":"N"},null,null,null,0,null,{"$f":"IF(F111>0,1,0)*'2. Conservation Measures'!AA123","v":0},null,{"$f":"'2. Conservation Measures'!L123","v":0},{"$f":"'2. Conservation Measures'!M123","v":0},null,{"$f":"'2. Conservation Measures'!O123","v":0},{"$f":"'2. Conservation Measures'!P123","v":0},null,{"$f":"'2. Conservation Measures'!S123","v":0},{"$f":"'2. Conservation Measures'!T123","v":0},{"$f":"'2. Conservation Measures'!U123","v":0},{"$f":"'2. Conservation Measures'!V123","v":0},{"$f":"'2. Conservation Measures'!W123","v":0},{"$f":"'2. Conservation Measures'!X123","v":0},null,0,{"$f":"IF(Z$15<=$W111,Y111*(1-$T111)*IF($U111=\"Y\",(1-$V111),1),0)","v":0},0,0,0,0,0,0,0,0,0,0,0,0,0,0,0,0,0,0,0,0,0,0,0,0,0,0,0,0,0,0,0,0,0,0,0,0,0,0,0,0,0,0,0,0,0,0,0,0,0,null,0]
[null,{"$f":"'2. Conservation Measures'!B124","v":"USR-ICI-17"},{"$f":"'2. Conservation Measures'!C124","v":0},{"$f":"'2. Conservation Measures'!D124","v":"N"},null,null,null,0,null,{"$f":"IF(F112>0,1,0)*'2. Conservation Measures'!AA124","v":0},null,{"$f":"'2. Conservation Measures'!L124","v":0},{"$f":"'2. Conservation Measures'!M124","v":0},null,{"$f":"'2. Conservation Measures'!O124","v":0},{"$f":"'2. Conservation Measures'!P124","v":0},null,{"$f":"'2. Conservation Measures'!S124","v":0},{"$f":"'2. Conservation Measures'!T124","v":0},{"$f":"'2. Conservation Measures'!U124","v":0},{"$f":"'2. Conservation Measures'!V124","v":0},{"$f":"'2. Conservation Measures'!W124","v":0},{"$f":"'2. Conservation Measures'!X124","v":0},null,0,{"$f":"IF(Z$15<=$W112,Y112*(1-$T112)*IF($U112=\"Y\",(1-$V112),1),0)","v":0},0,0,0,0,0,0,0,0,0,0,0,0,0,0,0,0,0,0,0,0,0,0,0,0,0,0,0,0,0,0,0,0,0,0,0,0,0,0,0,0,0,0,0,0,0,0,0,0,0,null,0]
[null,{"$f":"'2. Conservation Measures'!B125","v":"USR-ICI-18"},{"$f":"'2. Conservation Measures'!C125","v":0},{"$f":"'2. Conservation Measures'!D125","v":"N"},null,null,null,0,null,{"$f":"IF(F113>0,1,0)*'2. Conservation Measures'!AA125","v":0},null,{"$f":"'2. Conservation Measures'!L125","v":0},{"$f":"'2. Conservation Measures'!M125","v":0},null,{"$f":"'2. Conservation Measures'!O125","v":0},{"$f":"'2. Conservation Measures'!P125","v":0},null,{"$f":"'2. Conservation Measures'!S125","v":0},{"$f":"'2. Conservation Measures'!T125","v":0},{"$f":"'2. Conservation Measures'!U125","v":0},{"$f":"'2. Conservation Measures'!V125","v":0},{"$f":"'2. Conservation Measures'!W125","v":0},{"$f":"'2. Conservation Measures'!X125","v":0},null,0,{"$f":"IF(Z$15<=$W113,Y113*(1-$T113)*IF($U113=\"Y\",(1-$V113),1),0)","v":0},0,0,0,0,0,0,0,0,0,0,0,0,0,0,0,0,0,0,0,0,0,0,0,0,0,0,0,0,0,0,0,0,0,0,0,0,0,0,0,0,0,0,0,0,0,0,0,0,0,null,0]
[null,{"$f":"'2. Conservation Measures'!B126","v":"USR-ICI-19"},{"$f":"'2. Conservation Measures'!C126","v":0},{"$f":"'2. Conservation Measures'!D126","v":"N"},null,null,null,0,null,{"$f":"IF(F114>0,1,0)*'2. Conservation Measures'!AA126","v":0},null,{"$f":"'2. Conservation Measures'!L126","v":0},{"$f":"'2. Conservation Measures'!M126","v":0},null,{"$f":"'2. Conservation Measures'!O126","v":0},{"$f":"'2. Conservation Measures'!P126","v":0},null,{"$f":"'2. Conservation Measures'!S126","v":0},{"$f":"'2. Conservation Measures'!T126","v":0},{"$f":"'2. Conservation Measures'!U126","v":0},{"$f":"'2. Conservation Measures'!V126","v":0},{"$f":"'2. Conservation Measures'!W126","v":0},{"$f":"'2. Conservation Measures'!X126","v":0},null,0,{"$f":"IF(Z$15<=$W114,Y114*(1-$T114)*IF($U114=\"Y\",(1-$V114),1),0)","v":0},0,0,0,0,0,0,0,0,0,0,0,0,0,0,0,0,0,0,0,0,0,0,0,0,0,0,0,0,0,0,0,0,0,0,0,0,0,0,0,0,0,0,0,0,0,0,0,0,0,null,0]
[null,{"$f":"'2. Conservation Measures'!B127","v":"USR-ICI-20"},{"$f":"'2. Conservation Measures'!C127","v":0},{"$f":"'2. Conservation Measures'!D127","v":"N"},null,null,null,0,null,{"$f":"IF(F115>0,1,0)*'2. Conservation Measures'!AA127","v":0},null,{"$f":"'2. Conservation Measures'!L127","v":0},{"$f":"'2. Conservation Measures'!M127","v":0},null,{"$f":"'2. Conservation Measures'!O127","v":0},{"$f":"'2. Conservation Measures'!P127","v":0},null,{"$f":"'2. Conservation Measures'!S127","v":0},{"$f":"'2. Conservation Measures'!T127","v":0},{"$f":"'2. Conservation Measures'!U127","v":0},{"$f":"'2. Conservation Measures'!V127","v":0},{"$f":"'2. Conservation Measures'!W127","v":0},{"$f":"'2. Conservation Measures'!X127","v":0},null,0,{"$f":"IF(Z$15<=$W115,Y115*(1-$T115)*IF($U115=\"Y\",(1-$V115),1),0)","v":0},0,0,0,0,0,0,0,0,0,0,0,0,0,0,0,0,0,0,0,0,0,0,0,0,0,0,0,0,0,0,0,0,0,0,0,0,0,0,0,0,0,0,0,0,0,0,0,0,0,null,0]
[null,"Subtotal",null,null,null,null,null,{"$f":"SUM(H84:H115)","v":0},null,{"$f":"IF(BY116>0,SUMPRODUCT(J84:J115,BY84:BY115)/BY116,\"NA\")","v":{"$error":"#N/A"}},null,null,null,null,null,null,null,null,null,null,null,null,null,null,{"$f":"SUM(Y84:Y115)","v":{"$error":"#N/A"}},{"$f":"SUM(Z84:Z115)","v":{"$error":"#N/A"}},{"$error":"#N/A"},{"$error":"#N/A"},{"$error":"#N/A"},{"$error":"#N/A"},{"$error":"#N/A"},{"$error":"#N/A"},{"$error":"#N/A"},{"$error":"#N/A"},{"$error":"#N/A"},{"$error":"#N/A"},{"$error":"#N/A"},{"$error":"#N/A"},{"$error":"#N/A"},{"$error":"#N/A"},{"$error":"#N/A"},{"$error":"#N/A"},{"$error":"#N/A"},{"$error":"#N/A"},{"$error":"#N/A"},{"$error":"#N/A"},{"$error":"#N/A"},{"$error":"#N/A"},{"$error":"#N/A"},{"$error":"#N/A"},{"$error":"#N/A"},{"$error":"#N/A"},{"$error":"#N/A"},{"$error":"#N/A"},{"$error":"#N/A"},{"$error":"#N/A"},{"$error":"#N/A"},{"$error":"#N/A"},{"$error":"#N/A"},{"$error":"#N/A"},{"$error":"#N/A"},{"$error":"#N/A"},{"$error":"#N/A"},{"$error":"#N/A"},{"$error":"#N/A"},{"$error":"#N/A"},{"$error":"#N/A"},{"$error":"#N/A"},{"$error":"#N/A"},{"$error":"#N/A"},{"$error":"#N/A"},{"$error":"#N/A"},{"$error":"#N/A"},{"$error":"#N/A"},{"$error":"#N/A"},null,{"$f":"SUM(BY84:BY115)","v":{"$error":"#N/A"}}]
[]
[null,{"$f":"'2. Conservation Measures'!B129","v":"Utility & General Measures"}]
[null,{"$f":"'2. Conservation Measures'!B130","v":"USR-UTL-01"},{"$f":"'2. Conservation Measures'!C130","v":0},{"$f":"'2. Conservation Measures'!D130","v":"N"},null,null,null,{"$f":"IF(D119=\"Y\",F119*R119*(1-S119)*365/10^3,0)*CHOOSE(singleyrcalcvolunit,1,1000,1000/325851)","v":0},null,{"$f":"IF(F119>0,1,0)*'2. Conservation Measures'!AA130","v":0},null,{"$f":"'2. Conservation Measures'!L130","v":0},{"$f":"'2. Conservation Measures'!M130","v":0},null,{"$f":"'2. Conservation Measures'!O130","v":0},{"$f":"'2. Conservation Measures'!P130","v":0},null,{"$f":"'2. Conservation Measures'!S130","v":0},{"$f":"'2. Conservation Measures'!T130","v":0},{"$f":"'2. Conservation Measures'!U130","v":0},{"$f":"'2. Conservation Measures'!V130","v":0},{"$f":"'2. Conservation Measures'!W130","v":0},{"$f":"'2. Conservation Measures'!X130","v":0},null,{"$f":"IF($D119=\"Y\",1,0)*F119*R119*(1-S119)*365/10^3*CHOOSE(singleyrcalcvolunit,1,1000,1000/325851)","v":0},{"$f":"IF(Z$15<=$W119,Y119*(1-$T119)*IF($U119=\"Y\",(1-$V119),1),0)","v":0},0,0,0,0,0,0,0,0,0,0,0,0,0,0,0,0,0,0,0,0,0,0,0,0,0,0,0,0,0,0,0,0,0,0,0,0,0,0,0,0,0,0,0,0,0,0,0,0,0,null,{"$f":"Y119+NPV(discount_rate,Z119:BW119)","v":0}]
[null,{"$f":"'2. Conservation Measures'!B131","v":"USR-UTL-02"},{"$f":"'2. Conservation Measures'!C131","v":0},{"$f":"'2. Conservation Measures'!D131","v":"N"},null,null,null,0,null,{"$f":"IF(F120>0,1,0)*'2. Conservation Measures'!AA131","v":0},null,{"$f":"'2. Conservation Measures'!L131","v":0},{"$f":"'2. Conservation Measures'!M131","v":0},null,{"$f":"'2. Conservation Measures'!O131","v":0},{"$f":"'2. Conservation Measures'!P131","v":0},null,{"$f":"'2. Conservation Measures'!S131","v":0},{"$f":"'2. Conservation Measures'!T131","v":0},{"$f":"'2. Conservation Measures'!U131","v":0},{"$f":"'2. Conservation Measures'!V131","v":0},{"$f":"'2. Conservation Measures'!W131","v":0},{"$f":"'2. Conservation Measures'!X131","v":0},null,0,{"$f":"IF(Z$15<=$W120,Y120*(1-$T120)*IF($U120=\"Y\",(1-$V120),1),0)","v":0},0,0,0,0,0,0,0,0,0,0,0,0,0,0,0,0,0,0,0,0,0,0,0,0,0,0,0,0,0,0,0,0,0,0,0,0,0,0,0,0,0,0,0,0,0,0,0,0,0,null,0]
[null,{"$f":"'2. Conservation Measures'!B132","v":"USR-UTL-03"},{"$f":"'2. Conservation Measures'!C132","v":0},{"$f":"'2. Conservation Measures'!D132","v":"N"},null,null,null,0,null,{"$f":"IF(F121>0,1,0)*'2. Conservation Measures'!AA132","v":0},null,{"$f":"'2. Conservation Measures'!L132","v":0},{"$f":"'2. Conservation Measures'!M132","v":0},null,{"$f":"'2. Conservation Measures'!O132","v":0},{"$f":"'2. Conservation Measures'!P132","v":0},null,{"$f":"'2. Conservation Measures'!S132","v":0},{"$f":"'2. Conservation Measures'!T132","v":0},{"$f":"'2. Conservation Measures'!U132","v":0},{"$f":"'2. Conservation Measures'!V132","v":0},{"$f":"'2. Conservation Measures'!W132","v":0},{"$f":"'2. Conservation Measures'!X132","v":0},null,0,{"$f":"IF(Z$15<=$W121,Y121*(1-$T121)*IF($U121=\"Y\",(1-$V121),1),0)","v":0},0,0,0,0,0,0,0,0,0,0,0,0,0,0,0,0,0,0,0,0,0,0,0,0,0,0,0,0,0,0,0,0,0,0,0,0,0,0,0,0,0,0,0,0,0,0,0,0,0,null,0]
[null,{"$f":"'2. Conservation Measures'!B133","v":"USR-UTL-04"},{"$f":"'2. Conservation Measures'!C133","v":0},{"$f":"'2. Conservation Measures'!D133","v":"N"},null,null,null,0,null,{"$f":"IF(F122>0,1,0)*'2. Conservation Measures'!AA133","v":0},null,{"$f":"'2. Conservation Measures'!L133","v":0},{"$f":"'2. Conservation Measures'!M133","v":0},null,{"$f":"'2. Conservation Measures'!O133","v":0},{"$f":"'2. Conservation Measures'!P133","v":0},null,{"$f":"'2. Conservation Measures'!S133","v":0},{"$f":"'2. Conservation Measures'!T133","v":0},{"$f":"'2. Conservation Measures'!U133","v":0},{"$f":"'2. Conservation Measures'!V133","v":0},{"$f":"'2. Conservation Measures'!W133","v":0},{"$f":"'2. Conservation Measures'!X133","v":0},null,0,{"$f":"IF(Z$15<=$W122,Y122*(1-$T122)*IF($U122=\"Y\",(1-$V122),1),0)","v":0},0,0,0,0,0,0,0,0,0,0,0,0,0,0,0,0,0,0,0,0,0,0,0,0,0,0,0,0,0,0,0,0,0,0,0,0,0,0,0,0,0,0,0,0,0,0,0,0,0,null,0]
[null,{"$f":"'2. Conservation Measures'!B134","v":"USR-UTL-05"},{"$f":"'2. Conservation Measures'!C134","v":0},{"$f":"'2. Conservation Measures'!D134","v":"N"},null,null,null,0,null,{"$f":"IF(F123>0,1,0)*'2. Conservation Measures'!AA134","v":0},null,{"$f":"'2. Conservation Measures'!L134","v":0},{"$f":"'2. Conservation Measures'!M134","v":0},null,{"$f":"'2. Conservation Measures'!O134","v":0},{"$f":"'2. Conservation Measures'!P134","v":0},null,{"$f":"'2. Conservation Measures'!S134","v":0},{"$f":"'2. Conservation Measures'!T134","v":0},{"$f":"'2. Conservation Measures'!U134","v":0},{"$f":"'2. Conservation Measures'!V134","v":0},{"$f":"'2. Conservation Measures'!W134","v":0},{"$f":"'2. Conservation Measures'!X134","v":0},null,0,{"$f":"IF(Z$15<=$W123,Y123*(1-$T123)*IF($U123=\"Y\",(1-$V123),1),0)","v":0},0,0,0,0,0,0,0,0,0,0,0,0,0,0,0,0,0,0,0,0,0,0,0,0,0,0,0,0,0,0,0,0,0,0,0,0,0,0,0,0,0,0,0,0,0,0,0,0,0,null,0]
[null,{"$f":"'2. Conservation Measures'!B135","v":"USR-UTL-06"},{"$f":"'2. Conservation Measures'!C135","v":0},{"$f":"'2. Conservation Measures'!D135","v":"N"},null,null,null,0,null,{"$f":"IF(F124>0,1,0)*'2. Conservation Measures'!AA135","v":0},null,{"$f":"'2. Conservation Measures'!L135","v":0},{"$f":"'2. Conservation Measures'!M135","v":0},null,{"$f":"'2. Conservation Measures'!O135","v":0},{"$f":"'2. Conservation Measures'!P135","v":0},null,{"$f":"'2. Conservation Measures'!S135","v":0},{"$f":"'2. Conservation Measures'!T135","v":0},{"$f":"'2. Conservation Measures'!U135","v":0},{"$f":"'2. Conservation Measures'!V135","v":0},{"$f":"'2. Conservation Measures'!W135","v":0},{"$f":"'2. Conservation Measures'!X135","v":0},null,0,{"$f":"IF(Z$15<=$W124,Y124*(1-$T124)*IF($U124=\"Y\",(1-$V124),1),0)","v":0},0,0,0,0,0,0,0,0,0,0,0,0,0,0,0,0,0,0,0,0,0,0,0,0,0,0,0,0,0,0,0,0,0,0,0,0,0,0,0,0,0,0,0,0,0,0,0,0,0,null,0]
[null,{"$f":"'2. Conservation Measures'!B136","v":"USR-UTL-07"},{"$f":"'2. Conservation Measures'!C136","v":0},{"$f":"'2. Conservation Measures'!D136","v":"N"},null,null,null,0,null,{"$f":"IF(F125>0,1,0)*'2. Conservation Measures'!AA136","v":0},null,{"$f":"'2. Conservation Measures'!L136","v":0},{"$f":"'2. Conservation Measures'!M136","v":0},null,{"$f":"'2. Conservation Measures'!O136","v":0},{"$f":"'2. Conservation Measures'!P136","v":0},null,{"$f":"'2. Conservation Measures'!S136","v":0},{"$f":"'2. Conservation Measures'!T136","v":0},{"$f":"'2. Conservation Measures'!U136","v":0},{"$f":"'2. Conservation Measures'!V136","v":0},{"$f":"'2. Conservation Measures'!W136","v":0},{"$f":"'2. Conservation Measures'!X136","v":0},null,0,{"$f":"IF(Z$15<=$W125,Y125*(1-$T125)*IF($U125=\"Y\",(1-$V125),1),0)","v":0},0,0,0,0,0,0,0,0,0,0,0,0,0,0,0,0,0,0,0,0,0,0,0,0,0,0,0,0,0,0,0,0,0,0,0,0,0,0,0,0,0,0,0,0,0,0,0,0,0,null,0]
[null,{"$f":"'2. Conservation Measures'!B137","v":"USR-UTL-08"},{"$f":"'2. Conservation Measures'!C137","v":0},{"$f":"'2. Conservation Measures'!D137","v":"N"},null,null,null,0,null,{"$f":"IF(F126>0,1,0)*'2. Conservation Measures'!AA137","v":0},null,{"$f":"'2. Conservation Measures'!L137","v":0},{"$f":"'2. Conservation Measures'!M137","v":0},null,{"$f":"'2. Conservation Measures'!O137","v":0},{"$f":"'2. Conservation Measures'!P137","v":0},null,{"$f":"'2. Conservation Measures'!S137","v":0},{"$f":"'2. Conservation Measures'!T137","v":0},{"$f":"'2. Conservation Measures'!U137","v":0},{"$f":"'2. Conservation Measures'!V137","v":0},{"$f":"'2. Conservation Measures'!W137","v":0},{"$f":"'2. Conservation Measures'!X137","v":0},null,0,{"$f":"IF(Z$15<=$W126,Y126*(1-$T126)*IF($U126=\"Y\",(1-$V126),1),0)","v":0},0,0,0,0,0,0,0,0,0,0,0,0,0,0,0,0,0,0,0,0,0,0,0,0,0,0,0,0,0,0,0,0,0,0,0,0,0,0,0,0,0,0,0,0,0,0,0,0,0,null,0]
[null,{"$f":"'2. Conservation Measures'!B138","v":"USR-UTL-09"},{"$f":"'2. Conservation Measures'!C138","v":0},{"$f":"'2. Conservation Measures'!D138","v":"N"},null,null,null,0,null,{"$f":"IF(F127>0,1,0)*'2. Conservation Measures'!AA138","v":0},null,{"$f":"'2. Conservation Measures'!L138","v":0},{"$f":"'2. Conservation Measures'!M138","v":0},null,{"$f":"'2. Conservation Measures'!O138","v":0},{"$f":"'2. Conservation Measures'!P138","v":0},null,{"$f":"'2. Conservation Measures'!S138","v":0},{"$f":"'2. Conservation Measures'!T138","v":0},{"$f":"'2. Conservation Measures'!U138","v":0},{"$f":"'2. Conservation Measures'!V138","v":0},{"$f":"'2. Conservation Measures'!W138","v":0},{"$f":"'2. Conservation Measures'!X138","v":0},null,0,{"$f":"IF(Z$15<=$W127,Y127*(1-$T127)*IF($U127=\"Y\",(1-$V127),1),0)","v":0},0,0,0,0,0,0,0,0,0,0,0,0,0,0,0,0,0,0,0,0,0,0,0,0,0,0,0,0,0,0,0,0,0,0,0,0,0,0,0,0,0,0,0,0,0,0,0,0,0,null,0]
[null,{"$f":"'2. Conservation Measures'!B139","v":"USR-UTL-10"},{"$f":"'2. Conservation Measures'!C139","v":0},{"$f":"'2. Conservation Measures'!D139","v":"N"},null,null,null,0,null,{"$f":"IF(F128>0,1,0)*'2. Conservation Measures'!AA139","v":0},null,{"$f":"'2. Conservation Measures'!L139","v":0},{"$f":"'2. Conservation Measures'!M139","v":0},null,{"$f":"'2. Conservation Measures'!O139","v":0},{"$f":"'2. Conservation Measures'!P139","v":0},null,{"$f":"'2. Conservation Measures'!S139","v":0},{"$f":"'2. Conservation Measures'!T139","v":0},{"$f":"'2. Conservation Measures'!U139","v":0},{"$f":"'2. Conservation Measures'!V139","v":0},{"$f":"'2. Conservation Measures'!W139","v":0},{"$f":"'2. Conservation Measures'!X139","v":0},null,0,{"$f":"IF(Z$15<=$W128,Y128*(1-$T128)*IF($U128=\"Y\",(1-$V128),1),0)","v":0},0,0,0,0,0,0,0,0,0,0,0,0,0,0,0,0,0,0,0,0,0,0,0,0,0,0,0,0,0,0,0,0,0,0,0,0,0,0,0,0,0,0,0,0,0,0,0,0,0,null,0]
[null,{"$f":"'2. Conservation Measures'!B140","v":"USR-UTL-11"},{"$f":"'2. Conservation Measures'!C140","v":0},{"$f":"'2. Conservation Measures'!D140","v":"N"},null,null,null,0,null,{"$f":"IF(F129>0,1,0)*'2. Conservation Measures'!AA140","v":0},null,{"$f":"'2. Conservation Measures'!L140","v":0},{"$f":"'2. Conservation Measures'!M140","v":0},null,{"$f":"'2. Conservation Measures'!O140","v":0},{"$f":"'2. Conservation Measures'!P140","v":0},null,{"$f":"'2. Conservation Measures'!S140","v":0},{"$f":"'2. Conservation Measures'!T140","v":0},{"$f":"'2. Conservation Measures'!U140","v":0},{"$f":"'2. Conservation Measures'!V140","v":0},{"$f":"'2. Conservation Measures'!W140","v":0},{"$f":"'2. Conservation Measures'!X140","v":0},null,0,{"$f":"IF(Z$15<=$W129,Y129*(1-$T129)*IF($U129=\"Y\",(1-$V129),1),0)","v":0},0,0,0,0,0,0,0,0,0,0,0,0,0,0,0,0,0,0,0,0,0,0,0,0,0,0,0,0,0,0,0,0,0,0,0,0,0,0,0,0,0,0,0,0,0,0,0,0,0,null,0]
[null,{"$f":"'2. Conservation Measures'!B141","v":"USR-UTL-12"},{"$f":"'2. Conservation Measures'!C141","v":0},{"$f":"'2. Conservation Measures'!D141","v":"N"},null,null,null,0,null,{"$f":"IF(F130>0,1,0)*'2. Conservation Measures'!AA141","v":0},null,{"$f":"'2. Conservation Measures'!L141","v":0},{"$f":"'2. Conservation Measures'!M141","v":0},null,{"$f":"'2. Conservation Measures'!O141","v":0},{"$f":"'2. Conservation Measures'!P141","v":0},null,{"$f":"'2. Conservation Measures'!S141","v":0},{"$f":"'2. Conservation Measures'!T141","v":0},{"$f":"'2. Conservation Measures'!U141","v":0},{"$f":"'2. Conservation Measures'!V141","v":0},{"$f":"'2. Conservation Measures'!W141","v":0},{"$f":"'2. Conservation Measures'!X141","v":0},null,0,{"$f":"IF(Z$15<=$W130,Y130*(1-$T130)*IF($U130=\"Y\",(1-$V130),1),0)","v":0},0,0,0,0,0,0,0,0,0,0,0,0,0,0,0,0,0,0,0,0,0,0,0,0,0,0,0,0,0,0,0,0,0,0,0,0,0,0,0,0,0,0,0,0,0,0,0,0,0,null,0]
[null,{"$f":"'2. Conservation Measures'!B142","v":"USR-UTL-13"},{"$f":"'2. Conservation Measures'!C142","v":0},{"$f":"'2. Conservation Measures'!D142","v":"N"},null,null,null,0,null,{"$f":"IF(F131>0,1,0)*'2. Conservation Measures'!AA142","v":0},null,{"$f":"'2. Conservation Measures'!L142","v":0},{"$f":"'2. Conservation Measures'!M142","v":0},null,{"$f":"'2. Conservation Measures'!O142","v":0},{"$f":"'2. Conservation Measures'!P142","v":0},null,{"$f":"'2. Conservation Measures'!S142","v":0},{"$f":"'2. Conservation Measures'!T142","v":0},{"$f":"'2. Conservation Measures'!U142","v":0},{"$f":"'2. Conservation Measures'!V142","v":0},{"$f":"'2. Conservation Measures'!W142","v":0},{"$f":"'2. Conservation Measures'!X142","v":0},null,0,{"$f":"IF(Z$15<=$W131,Y131*(1-$T131)*IF($U131=\"Y\",(1-$V131),1),0)","v":0},0,0,0,0,0,0,0,0,0,0,0,0,0,0,0,0,0,0,0,0,0,0,0,0,0,0,0,0,0,0,0,0,0,0,0,0,0,0,0,0,0,0,0,0,0,0,0,0,0,null,0]
[null,{"$f":"'2. Conservation Measures'!B143","v":"USR-UTL-14"},{"$f":"'2. Conservation Measures'!C143","v":0},{"$f":"'2. Conservation Measures'!D143","v":"N"},null,null,null,0,null,{"$f":"IF(F132>0,1,0)*'2. Conservation Measures'!AA143","v":0},null,{"$f":"'2. Conservation Measures'!L143","v":0},{"$f":"'2. Conservation Measures'!M143","v":0},null,{"$f":"'2. Conservation Measures'!O143","v":0},{"$f":"'2. Conservation Measures'!P143","v":0},null,{"$f":"'2. Conservation Measures'!S143","v":0},{"$f":"'2. Conservation Measures'!T143","v":0},{"$f":"'2. Conservation Measures'!U143","v":0},{"$f":"'2. Conservation Measures'!V143","v":0},{"$f":"'2. Conservation Measures'!W143","v":0},{"$f":"'2. Conservation Measures'!X143","v":0},null,0,{"$f":"IF(Z$15<=$W132,Y132*(1-$T132)*IF($U132=\"Y\",(1-$V132),1),0)","v":0},0,0,0,0,0,0,0,0,0,0,0,0,0,0,0,0,0,0,0,0,0,0,0,0,0,0,0,0,0,0,0,0,0,0,0,0,0,0,0,0,0,0,0,0,0,0,0,0,0,null,0]
[null,{"$f":"'2. Conservation Measures'!B144","v":"USR-UTL-15"},{"$f":"'2. Conservation Measures'!C144","v":0},{"$f":"'2. Conservation Measures'!D144","v":"N"},null,null,null,0,null,{"$f":"IF(F133>0,1,0)*'2. Conservation Measures'!AA144","v":0},null,{"$f":"'2. Conservation Measures'!L144","v":0},{"$f":"'2. Conservation Measures'!M144","v":0},null,{"$f":"'2. Conservation Measures'!O144","v":0},{"$f":"'2. Conservation Measures'!P144","v":0},null,{"$f":"'2. Conservation Measures'!S144","v":0},{"$f":"'2. Conservation Measures'!T144","v":0},{"$f":"'2. Conservation Measures'!U144","v":0},{"$f":"'2. Conservation Measures'!V144","v":0},{"$f":"'2. Conservation Measures'!W144","v":0},{"$f":"'2. Conservation Measures'!X144","v":0},null,0,{"$f":"IF(Z$15<=$W133,Y133*(1-$T133)*IF($U133=\"Y\",(1-$V133),1),0)","v":0},0,0,0,0,0,0,0,0,0,0,0,0,0,0,0,0,0,0,0,0,0,0,0,0,0,0,0,0,0,0,0,0,0,0,0,0,0,0,0,0,0,0,0,0,0,0,0,0,0,null,0]
[null,{"$f":"'2. Conservation Measures'!B145","v":"USR-UTL-16"},{"$f":"'2. Conservation Measures'!C145","v":0},{"$f":"'2. Conservation Measures'!D145","v":"N"},null,null,null,0,null,{"$f":"IF(F134>0,1,0)*'2. Conservation Measures'!AA145","v":0},null,{"$f":"'2. Conservation Measures'!L145","v":0},{"$f":"'2. Conservation Measures'!M145","v":0},null,{"$f":"'2. Conservation Measures'!O145","v":0},{"$f":"'2. Conservation Measures'!P145","v":0},null,{"$f":"'2. Conservation Measures'!S145","v":0},{"$f":"'2. Conservation Measures'!T145","v":0},{"$f":"'2. Conservation Measures'!U145","v":0},{"$f":"'2. Conservation Measures'!V145","v":0},{"$f":"'2. Conservation Measures'!W145","v":0},{"$f":"'2. Conservation Measures'!X145","v":0},null,0,{"$f":"IF(Z$15<=$W134,Y134*(1-$T134)*IF($U134=\"Y\",(1-$V134),1),0)","v":0},0,0,0,0,0,0,0,0,0,0,0,0,0,0,0,0,0,0,0,0,0,0,0,0,0,0,0,0,0,0,0,0,0,0,0,0,0,0,0,0,0,0,0,0,0,0,0,0,0,null,0]
[null,{"$f":"'2. Conservation Measures'!B146","v":"USR-UTL-17"},{"$f":"'2. Conservation Measures'!C146","v":0},{"$f":"'2. Conservation Measures'!D146","v":"N"},null,null,null,0,null,{"$f":"IF(F135>0,1,0)*'2. Conservation Measures'!AA146","v":0},null,{"$f":"'2. Conservation Measures'!L146","v":0},{"$f":"'2. Conservation Measures'!M146","v":0},null,{"$f":"'2. Conservation Measures'!O146","v":0},{"$f":"'2. Conservation Measures'!P146","v":0},null,{"$f":"'2. Conservation Measures'!S146","v":0},{"$f":"'2. Conservation Measures'!T146","v":0},{"$f":"'2. Conservation Measures'!U146","v":0},{"$f":"'2. Conservation Measures'!V146","v":0},{"$f":"'2. Conservation Measures'!W146","v":0},{"$f":"'2. Conservation Measures'!X146","v":0},null,0,{"$f":"IF(Z$15<=$W135,Y135*(1-$T135)*IF($U135=\"Y\",(1-$V135),1),0)","v":0},0,0,0,0,0,0,0,0,0,0,0,0,0,0,0,0,0,0,0,0,0,0,0,0,0,0,0,0,0,0,0,0,0,0,0,0,0,0,0,0,0,0,0,0,0,0,0,0,0,null,0]
[null,{"$f":"'2. Conservation Measures'!B147","v":"USR-UTL-18"},{"$f":"'2. Conservation Measures'!C147","v":0},{"$f":"'2. Conservation Measures'!D147","v":"N"},null,null,null,0,null,{"$f":"IF(F136>0,1,0)*'2. Conservation Measures'!AA147","v":0},null,{"$f":"'2. Conservation Measures'!L147","v":0},{"$f":"'2. Conservation Measures'!M147","v":0},null,{"$f":"'2. Conservation Measures'!O147","v":0},{"$f":"'2. Conservation Measures'!P147","v":0},null,{"$f":"'2. Conservation Measures'!S147","v":0},{"$f":"'2. Conservation Measures'!T147","v":0},{"$f":"'2. Conservation Measures'!U147","v":0},{"$f":"'2. Conservation Measures'!V147","v":0},{"$f":"'2. Conservation Measures'!W147","v":0},{"$f":"'2. Conservation Measures'!X147","v":0},null,0,{"$f":"IF(Z$15<=$W136,Y136*(1-$T136)*IF($U136=\"Y\",(1-$V136),1),0)","v":0},0,0,0,0,0,0,0,0,0,0,0,0,0,0,0,0,0,0,0,0,0,0,0,0,0,0,0,0,0,0,0,0,0,0,0,0,0,0,0,0,0,0,0,0,0,0,0,0,0,null,0]
[null,{"$f":"'2. Conservation Measures'!B148","v":"USR-UTL-19"},{"$f":"'2. Conservation Measures'!C148","v":0},{"$f":"'2. Conservation Measures'!D148","v":"N"},null,null,null,0,null,{"$f":"IF(F137>0,1,0)*'2. Conservation Measures'!AA148","v":0},null,{"$f":"'2. Conservation Measures'!L148","v":0},{"$f":"'2. Conservation Measures'!M148","v":0},null,{"$f":"'2. Conservation Measures'!O148","v":0},{"$f":"'2. Conservation Measures'!P148","v":0},null,{"$f":"'2. Conservation Measures'!S148","v":0},{"$f":"'2. Conservation Measures'!T148","v":0},{"$f":"'2. Conservation Measures'!U148","v":0},{"$f":"'2. Conservation Measures'!V148","v":0},{"$f":"'2. Conservation Measures'!W148","v":0},{"$f":"'2. Conservation Measures'!X148","v":0},null,0,{"$f":"IF(Z$15<=$W137,Y137*(1-$T137)*IF($U137=\"Y\",(1-$V137),1),0)","v":0},0,0,0,0,0,0,0,0,0,0,0,0,0,0,0,0,0,0,0,0,0,0,0,0,0,0,0,0,0,0,0,0,0,0,0,0,0,0,0,0,0,0,0,0,0,0,0,0,0,null,0]
[null,{"$f":"'2. Conservation Measures'!B149","v":"USR-UTL-20"},{"$f":"'2. Conservation Measures'!C149","v":0},{"$f":"'2. Conservation Measures'!D149","v":"N"},null,null,null,0,null,{"$f":"IF(F138>0,1,0)*'2. Conservation Measures'!AA149","v":0},null,{"$f":"'2. Conservation Measures'!L149","v":0},{"$f":"'2. Conservation Measures'!M149","v":0},null,{"$f":"'2. Conservation Measures'!O149","v":0},{"$f":"'2. Conservation Measures'!P149","v":0},null,{"$f":"'2. Conservation Measures'!S149","v":0},{"$f":"'2. Conservation Measures'!T149","v":0},{"$f":"'2. Conservation Measures'!U149","v":0},{"$f":"'2. Conservation Measures'!V149","v":0},{"$f":"'2. Conservation Measures'!W149","v":0},{"$f":"'2. Conservation Measures'!X149","v":0},null,0,{"$f":"IF(Z$15<=$W138,Y138*(1-$T138)*IF($U138=\"Y\",(1-$V138),1),0)","v":0},0,0,0,0,0,0,0,0,0,0,0,0,0,0,0,0,0,0,0,0,0,0,0,0,0,0,0,0,0,0,0,0,0,0,0,0,0,0,0,0,0,0,0,0,0,0,0,0,0,null,0]
[null,"Subtotal",null,null,null,null,null,{"$f":"SUM(H119:H138)","v":0},null,{"$f":"IF(BY139>0,SUMPRODUCT(J119:J138,BY119:BY138)/BY139,\"NA\")","v":"NA"},null,null,null,null,null,null,null,null,null,null,null,null,null,null,{"$f":"SUM(Y119:Y138)","v":0},{"$f":"SUM(Z119:Z138)","v":0},0,0,0,0,0,0,0,0,0,0,0,0,0,0,0,0,0,0,0,0,0,0,0,0,0,0,0,0,0,0,0,0,0,0,0,0,0,0,0,0,0,0,0,0,0,0,0,0,0,null,{"$f":"SUM(BY119:BY138)","v":0}]
[]
[null,"Grand Total for Reporting Year",null,null,null,null,null,{"$f":"SUM(H49,H81,H116,H139)","v":0},null,{"$f":"IF(BY141>0,SUM(J18:J48*BY18:BY48,J52:J80*BY52:BY80,J84:J115*BY84:BY115,J119:J138*BY119:BY138)/BY141,\"NA\")","v":{"$error":"#N/A"}},null,null,null,null,null,null,null,null,null,null,null,null,null,null,{"$f":"SUM(Y49,Y81,Y116,Y139)","v":{"$error":"#N/A"}},{"$error":"#N/A"},{"$error":"#N/A"},{"$error":"#N/A"},{"$error":"#N/A"},{"$error":"#N/A"},{"$error":"#N/A"},{"$error":"#N/A"},{"$error":"#N/A"},{"$error":"#N/A"},{"$error":"#N/A"},{"$error":"#N/A"},{"$error":"#N/A"},{"$error":"#N/A"},{"$error":"#N/A"},{"$error":"#N/A"},{"$error":"#N/A"},{"$error":"#N/A"},{"$error":"#N/A"},{"$error":"#N/A"},{"$error":"#N/A"},{"$error":"#N/A"},{"$error":"#N/A"},{"$error":"#N/A"},{"$error":"#N/A"},{"$error":"#N/A"},{"$error":"#N/A"},{"$error":"#N/A"},{"$error":"#N/A"},{"$error":"#N/A"},{"$error":"#N/A"},{"$error":"#N/A"},{"$error":"#N/A"},{"$error":"#N/A"},{"$error":"#N/A"},{"$error":"#N/A"},{"$error":"#N/A"},{"$error":"#N/A"},{"$error":"#N/A"},{"$error":"#N/A"},{"$error":"#N/A"},{"$error":"#N/A"},{"$error":"#N/A"},{"$error":"#N/A"},{"$error":"#N/A"},{"$error":"#N/A"},{"$error":"#N/A"},{"$error":"#N/A"},{"$error":"#N/A"},{"$error":"#N/A"},{"$error":"#N/A"},null,{"$f":"SUM(BY49,BY81,BY116,BY139)","v":{"$error":"#N/A"}}]

{"sheet":"Plumbing Fixture Inventory","index":6,"n_rows":132,"n_cols":56,"rows_kept":132,"cut":false,"hidden":false,"merged":[]}
[null,"High-Efficiency Fixture/Appliance Saturation Rates and Inefficient Fixture/Appliance Counts Circa 2016"]
[]
[]
[]
[]
[]
[]
[null,"High-Efficiency Fixture/Appliance Saturation Rates"]
[null,"Default saturation rates of efficient toilets, clothes washers, and showerheads from \"Residential End Uses of Water, Version 2.\" Water Research Foundation, PDF Report"]
[null,"#4309b, 2016. Default saturation rate for urinals is estimated based on 0.5 gpf standard taking effect on January 1, 2014 and annual turnover rate for urinals of 4%."]
[]
[null,"Minimum Efficiency Criteria for Calculation of 2016 Saturation Rates"]
[null,"Toilets",null,"<= 2.2 gallons per flush, the threshhold used in the Residential End Uses Study to identify HE toilets"]
[null,"Urinals",null,"<= 0.5 gallons per flush"]
[null,"Clothes washers",null,"<= 30 gallons per load, the threshhold used in the Residential End Uses Study to identify HE washers"]
[null,"Showerheads",null,"<= 2.5 gallons per minute, the threshhold used in the Residential End Uses Study to identify HE showerheads"]
[]
[null,"Saturation Rates of High-Efficiency Fixtures/Appliances Circa 2016"]
[]
[]
[]
[]
[null,null,null,null,"Planning","User","Used by"]
[null,null,null,null,"Tool","Entered","Planning"]
[null,"Fixture/Appliance",null,null,"Default","Value","Tool"]
[null,"Toilets",null,null,0.37,null,{"$f":"IF(saturationrate_selection=1,E26,F26)","v":0.37}]
[null,"Clothes washers",null,null,0.46,null,{"$f":"IF(saturationrate_selection=1,E27,F27)","v":0.46}]
[null,"Showerheads",null,null,0.8,null,{"$f":"IF(saturationrate_selection=1,E28,F28)","v":0.8}]
[null,"Urinals",null,null,{"$f":"1-0.96^2","v":7.8400000000000025E-2},null,{"$f":"IF(saturationrate_selection=1,E29,F29)","v":7.8400000000000025E-2}]
[]
[null,"Residential Fixture/Appliance Ownership Rates and Counts"]
[null,"Default residential fixture/appliance ownership rates from \"Quantifying the Effectiveness of Various Water Conservation Techniques in Texas,\" GDS Associates, Inc., May 2002."]
[null,"See the User Guide for an explanation of derivation of ICI toilet and urinal default parameters."]
[]
[]
[]
[]
[null,"Ownership Rates",null,null,null,null,null,null,"2016 and 2019 Fixture/Appliance Counts"]
[]
[null,"Single Family",null,null,"Planning","User","Used by",null,"Single Family",null,null,null,null,null,"Connections",null,{"$f":"IF(baseline_selection=1,'1. Baseline Demand Projection'!D26,'1. Baseline Demand Projection'!M26)","v":0},"<-from Baseline Demand Projection"]
[null,null,null,null,"Tool","Entered","Planning",null,null,null,null,null,2016,"2019*"]
[null,"No. per Household",null,null,"Default","Value","Tool",null,"Fixture/Appliance",null,"Total","Efficient","Inefficient","Inefficient"]
[null,"Toilets",null,null,2,null,{"$f":"IF(ownershiprate_selection=1,E43,F43)","v":2},null,"SF Toilets",null,{"$f":"Q$40*G43","v":0},{"$f":"K43*G26","v":0},{"$f":"K43-L43","v":0},{"$f":"ROUND(M43*(1-0.04)^3,-2)","v":0}]
[null,"Clothes Washers",null,null,1,null,{"$f":"IF(ownershiprate_selection=1,E44,F44)","v":1},null,"SF Clothes Washers",null,{"$f":"Q$40*G44","v":0},{"$f":"K44*G27","v":0},{"$f":"K44-L44","v":0},{"$f":"ROUND(M44*(1-0.071)^3,-2)","v":0}]
[null,"Showers",null,null,2,null,{"$f":"IF(ownershiprate_selection=1,E45,F45)","v":2},null,"SF Showerheads",null,{"$f":"Q$40*G45","v":0},{"$f":"K45*G28","v":0},{"$f":"K45-L45","v":0},{"$f":"ROUND(M45*(1-0.067)^3,-2)","v":0}]
[]
[null,"Multi Family",null,null,"Planning","User","Used by",null,"Multi Family",null,null,null,null,null,"Connections",null,{"$f":"IF(baseline_selection=1,'1. Baseline Demand Projection'!D27,'1. Baseline Demand Projection'!M27)","v":0},"<-from Baseline Demand Projection"]
[null,null,null,null,"Tool","Entered","Planning",null,null,null,null,null,2016,"2019*"]
[null,"No. per Household",null,null,"Default","Value","Tool",null,"Fixture/Appliance",null,"Total","Efficient","Inefficient","Inefficient"]
[null,"Toilets",null,null,1.2,null,{"$f":"IF(ownershiprate_selection=1,E50,F50)","v":1.2},null,"MF Toilets",null,{"$f":"Q47*G52*G50","v":0},{"$f":"K50*G26","v":0},{"$f":"K50-L50","v":0},{"$f":"ROUND(M50*(1-0.04)^3,-2)","v":0}]
[null,"Showers",null,null,1.2,null,{"$f":"IF(ownershiprate_selection=1,E51,F51)","v":1.2},null,"MF Clothes Washers",null,{"$f":"IF(G53>0,Q47*G52/G53,0)","v":0},{"$f":"K51*G27","v":0},{"$f":"K51-L51","v":0},{"$f":"ROUND(M51*(1-0.125)^3,-2)","v":0}]
[null,"Households per Complex",null,null,50,null,{"$f":"IF(ownershiprate_selection=1,E52,F52)","v":50},null,"MF Showerheads",null,{"$f":"Q47*G52*G51","v":0},{"$f":"K52*G28","v":0},{"$f":"K52-L52","v":0},{"$f":"ROUND(M52*(1-0.067)^3,-2)","v":0}]
[null,"Households per Washer",null,null,18,null,{"$f":"IF(ownershiprate_selection=1,E53,F53)","v":18}]
[]
[null,"ICI",null,null,"Planning","User","Used by",null,"ICI",null,null,null,null,null,"Population",null,{"$f":"IF(baseline_selection=1,'1. Baseline Demand Projection'!D23,'1. Baseline Demand Projection'!M23)","v":0},"<-from Baseline Demand Projection"]
[null,null,null,null,"Tool","Entered","Planning",null,null,null,null,null,2016,"2019*"]
[null,null,null,null,"Default","Value","Tool",null,"Fixture/Appliance",null,"Total","Efficient","Inefficient","Inefficient"]
[null,"Population per ICI Toilet",null,null,10,null,{"$f":"IF(ownershiprate_selection=1,E58,F58)","v":10},null,"ICI Toilets",null,{"$f":"IF(G58>0,Q55/G58,0)","v":0},{"$f":"K58*G26","v":0},{"$f":"K58-L58","v":0},{"$f":"ROUND(M58*(1-0.04)^3,-2)","v":0}]
[null,"Urinals per ICI Toilet",null,null,0.3,null,{"$f":"IF(ownershiprate_selection=1,E59,F59)","v":0.3},null,"ICI Urinals",null,{"$f":"K58*G59","v":0},{"$f":"K59*G29","v":0},{"$f":"K59-L59","v":0},{"$f":"ROUND(M59*(1-0.04)^3,-2)","v":0}]
[]
[null,null,null,null,null,null,null,null,"* 2019 counts rounded to nearest 100."]
[]
["Model calculations below this line.  Do not delete or modify."]
[]
[null,"Conversion of Inefficient Plumbing Fixtures/Appliances"]
[null,"Tables below calculate the annual inventory of inefficient toilets, urinals, showerheads, and clothes washers",null,null,null,null,null,null,null,null,null,null,"Min < 0",{"$f":"MIN(E73:BD73,E79:BD79,E85:BD85,E91:BD91,E98:BD98,E104:BD104,E111:BD111,E117:BD117)<0","v":false}]
[null,"due to natural replacement and implementation of conservation measures."]
[]
[null,"Single Family Toilets",null,null,2019,2020,2021,2022,2023,2024,2025,2026,2027,2028,2029,2030,2031,2032,2033,2034,2035,2036,2037,2038,2039,2040,2041,2042,2043,2044,2045,2046,2047,2048,2049,2050,2051,2052,2053,2054,2055,2056,2057,2058,2059,2060,2061,2062,2063,2064,2065,2066,2067,2068,2069,2070]
[null,"Starting Inventory",null,null,null,{"$f":"E73","v":0},0,0,0,0,0,0,0,0,0,0,0,0,0,0,0,0,0,0,0,0,0,0,0,0,0,0,0,0,0,0,0,{"$f":"AK73","v":0},0,0,0,0,0,0,0,0,0,0,0,0,0,0,0,0,0,0]
[null,"Natural Replacement",null,null,null,{"$f":"F70*0.04","v":0},0,0,0,0,0,0,0,0,0,0,0,0,0,0,0,0,0,0,0,0,0,0,0,0,0,0,0,0,0,0,0,{"$f":"AL70*0.04","v":0},0,0,0,0,0,0,0,0,0,0,0,0,0,0,0,0,0,0]
[null,"Program Replacement",null,null,null,{"$f":"SUMIFS('2. Conservation Measures'!AO23:AO33,'2. Conservation Measures'!$L$23:$L$33,\"Toilet\")+SUMIFS('2. Conservation Measures'!AO64:AO83,'2. Conservation Measures'!$L$64:$L$83,\"Toilet\")","v":0},{"$f":"SUMIFS('2. Conservation Measures'!AP23:AP33,'2. Conservation Measures'!$L$23:$L$33,\"Toilet\")+SUMIFS('2. Conservation Measures'!AP64:AP83,'2. Conservation Measures'!$L$64:$L$83,\"Toilet\")","v":0},{"$f":"SUMIFS('2. Conservation Measures'!AQ23:AQ33,'2. Conservation Measures'!$L$23:$L$33,\"Toilet\")+SUMIFS('2. Conservation Measures'!AQ64:AQ83,'2. Conservation Measures'!$L$64:$L$83,\"Toilet\")","v":0},{"$f":"SUMIFS('2. Conservation Measures'!AR23:AR33,'2. Conservation Measures'!$L$23:$L$33,\"Toilet\")+SUMIFS('2. Conservation Measures'!AR64:AR83,'2. Conservation Measures'!$L$64:$L$83,\"Toilet\")","v":0},{"$f":"SUMIFS('2. Conservation Measures'!AS23:AS33,'2. Conservation Measures'!$L$23:$L$33,\"Toilet\")+SUMIFS('2. Conservation Measures'!AS64:AS83,'2. Conservation Measures'!$L$64:$L$83,\"Toilet\")","v":0},{"$f":"SUMIFS('2. Conservation Measures'!AT23:AT33,'2. Conservation Measures'!$L$23:$L$33,\"Toilet\")+SUMIFS('2. Conservation Measures'!AT64:AT83,'2. Conservation Measures'!$L$64:$L$83,\"Toilet\")","v":0},{"$f":"SUMIFS('2. Conservation Measures'!AU23:AU33,'2. Conservation Measures'!$L$23:$L$33,\"Toilet\")+SUMIFS('2. Conservation Measures'!AU64:AU83,'2. Conservation Measures'!$L$64:$L$83,\"Toilet\")","v":0},{"$f":"SUMIFS('2. Conservation Measures'!AV23:AV33,'2. Conservation Measures'!$L$23:$L$33,\"Toilet\")+SUMIFS('2. Conservation Measures'!AV64:AV83,'2. Conservation Measures'!$L$64:$L$83,\"Toilet\")","v":0},{"$f":"SUMIFS('2. Conservation Measures'!AW23:AW33,'2. Conservation Measures'!$L$23:$L$33,\"Toilet\")+SUMIFS('2. Conservation Measures'!AW64:AW83,'2. Conservation Measures'!$L$64:$L$83,\"Toilet\")","v":0},{"$f":"SUMIFS('2. Conservation Measures'!AX23:AX33,'2. Conservation Measures'!$L$23:$L$33,\"Toilet\")+SUMIFS('2. Conservation Measures'!AX64:AX83,'2. Conservation Measures'!$L$64:$L$83,\"Toilet\")","v":0},{"$f":"SUMIFS('2. Conservation Measures'!AY23:AY33,'2. Conservation Measures'!$L$23:$L$33,\"Toilet\")+SUMIFS('2. Conservation Measures'!AY64:AY83,'2. Conservation Measures'!$L$64:$L$83,\"Toilet\")","v":0},{"$f":"SUMIFS('2. Conservation Measures'!AZ23:AZ33,'2. Conservation Measures'!$L$23:$L$33,\"Toilet\")+SUMIFS('2. Conservation Measures'!AZ64:AZ83,'2. Conservation Measures'!$L$64:$L$83,\"Toilet\")","v":0},{"$f":"SUMIFS('2. Conservation Measures'!BA23:BA33,'2. Conservation Measures'!$L$23:$L$33,\"Toilet\")+SUMIFS('2. Conservation Measures'!BA64:BA83,'2. Conservation Measures'!$L$64:$L$83,\"Toilet\")","v":0},{"$f":"SUMIFS('2. Conservation Measures'!BB23:BB33,'2. Conservation Measures'!$L$23:$L$33,\"Toilet\")+SUMIFS('2. Conservation Measures'!BB64:BB83,'2. Conservation Measures'!$L$64:$L$83,\"Toilet\")","v":0},{"$f":"SUMIFS('2. Conservation Measures'!BC23:BC33,'2. Conservation Measures'!$L$23:$L$33,\"Toilet\")+SUMIFS('2. Conservation Measures'!BC64:BC83,'2. Conservation Measures'!$L$64:$L$83,\"Toilet\")","v":0},{"$f":"SUMIFS('2. Conservation Measures'!BD23:BD33,'2. Conservation Measures'!$L$23:$L$33,\"Toilet\")+SUMIFS('2. Conservation Measures'!BD64:BD83,'2. Conservation Measures'!$L$64:$L$83,\"Toilet\")","v":0},{"$f":"SUMIFS('2. Conservation Measures'!BE23:BE33,'2. Conservation Measures'!$L$23:$L$33,\"Toilet\")+SUMIFS('2. Conservation Measures'!BE64:BE83,'2. Conservation Measures'!$L$64:$L$83,\"Toilet\")","v":0},{"$f":"SUMIFS('2. Conservation Measures'!BF23:BF33,'2. Conservation Measures'!$L$23:$L$33,\"Toilet\")+SUMIFS('2. Conservation Measures'!BF64:BF83,'2. Conservation Measures'!$L$64:$L$83,\"Toilet\")","v":0},{"$f":"SUMIFS('2. Conservation Measures'!BG23:BG33,'2. Conservation Measures'!$L$23:$L$33,\"Toilet\")+SUMIFS('2. Conservation Measures'!BG64:BG83,'2. Conservation Measures'!$L$64:$L$83,\"Toilet\")","v":0},{"$f":"SUMIFS('2. Conservation Measures'!BH23:BH33,'2. Conservation Measures'!$L$23:$L$33,\"Toilet\")+SUMIFS('2. Conservation Measures'!BH64:BH83,'2. Conservation Measures'!$L$64:$L$83,\"Toilet\")","v":0},{"$f":"SUMIFS('2. Conservation Measures'!BI23:BI33,'2. Conservation Measures'!$L$23:$L$33,\"Toilet\")+SUMIFS('2. Conservation Measures'!BI64:BI83,'2. Conservation Measures'!$L$64:$L$83,\"Toilet\")","v":0},{"$f":"SUMIFS('2. Conservation Measures'!BJ23:BJ33,'2. Conservation Measures'!$L$23:$L$33,\"Toilet\")+SUMIFS('2. Conservation Measures'!BJ64:BJ83,'2. Conservation Measures'!$L$64:$L$83,\"Toilet\")","v":0},{"$f":"SUMIFS('2. Conservation Measures'!BK23:BK33,'2. Conservation Measures'!$L$23:$L$33,\"Toilet\")+SUMIFS('2. Conservation Measures'!BK64:BK83,'2. Conservation Measures'!$L$64:$L$83,\"Toilet\")","v":0},{"$f":"SUMIFS('2. Conservation Measures'!BL23:BL33,'2. Conservation Measures'!$L$23:$L$33,\"Toilet\")+SUMIFS('2. Conservation Measures'!BL64:BL83,'2. Conservation Measures'!$L$64:$L$83,\"Toilet\")","v":0},{"$f":"SUMIFS('2. Conservation Measures'!BM23:BM33,'2. Conservation Measures'!$L$23:$L$33,\"Toilet\")+SUMIFS('2. Conservation Measures'!BM64:BM83,'2. Conservation Measures'!$L$64:$L$83,\"Toilet\")","v":0},{"$f":"SUMIFS('2. Conservation Measures'!BN23:BN33,'2. Conservation Measures'!$L$23:$L$33,\"Toilet\")+SUMIFS('2. Conservation Measures'!BN64:BN83,'2. Conservation Measures'!$L$64:$L$83,\"Toilet\")","v":0},{"$f":"SUMIFS('2. Conservation Measures'!BO23:BO33,'2. Conservation Measures'!$L$23:$L$33,\"Toilet\")+SUMIFS('2. Conservation Measures'!BO64:BO83,'2. Conservation Measures'!$L$64:$L$83,\"Toilet\")","v":0},{"$f":"SUMIFS('2. Conservation Measures'!BP23:BP33,'2. Conservation Measures'!$L$23:$L$33,\"Toilet\")+SUMIFS('2. Conservation Measures'!BP64:BP83,'2. Conservation Measures'!$L$64:$L$83,\"Toilet\")","v":0},{"$f":"SUMIFS('2. Conservation Measures'!BQ23:BQ33,'2. Conservation Measures'!$L$23:$L$33,\"Toilet\")+SUMIFS('2. Conservation Measures'!BQ64:BQ83,'2. Conservation Measures'!$L$64:$L$83,\"Toilet\")","v":0},{"$f":"SUMIFS('2. Conservation Measures'!BR23:BR33,'2. Conservation Measures'!$L$23:$L$33,\"Toilet\")+SUMIFS('2. Conservation Measures'!BR64:BR83,'2. Conservation Measures'!$L$64:$L$83,\"Toilet\")","v":0},{"$f":"SUMIFS('2. Conservation Measures'!BS23:BS33,'2. Conservation Measures'!$L$23:$L$33,\"Toilet\")+SUMIFS('2. Conservation Measures'!BS64:BS83,'2. Conservation Measures'!$L$64:$L$83,\"Toilet\")","v":0},{"$f":"SUMIFS('2. Conservation Measures'!BT23:BT33,'2. Conservation Measures'!$L$23:$L$33,\"Toilet\")+SUMIFS('2. Conservation Measures'!BT64:BT83,'2. Conservation Measures'!$L$64:$L$83,\"Toilet\")","v":0},{"$f":"SUMIFS('2. Conservation Measures'!BU23:BU33,'2. Conservation Measures'!$L$23:$L$33,\"Toilet\")+SUMIFS('2. Conservation Measures'!BU64:BU83,'2. Conservation Measures'!$L$64:$L$83,\"Toilet\")","v":0},{"$f":"SUMIFS('2. Conservation Measures'!BV23:BV33,'2. Conservation Measures'!$L$23:$L$33,\"Toilet\")+SUMIFS('2. Conservation Measures'!BV64:BV83,'2. Conservation Measures'!$L$64:$L$83,\"Toilet\")","v":0},{"$f":"SUMIFS('2. Conservation Measures'!BW23:BW33,'2. Conservation Measures'!$L$23:$L$33,\"Toilet\")+SUMIFS('2. Conservation Measures'!BW64:BW83,'2. Conservation Measures'!$L$64:$L$83,\"Toilet\")","v":0},{"$f":"SUMIFS('2. Conservation Measures'!BX23:BX33,'2. Conservation Measures'!$L$23:$L$33,\"Toilet\")+SUMIFS('2. Conservation Measures'!BX64:BX83,'2. Conservation Measures'!$L$64:$L$83,\"Toilet\")","v":0},{"$f":"SUMIFS('2. Conservation Measures'!BY23:BY33,'2. Conservation Measures'!$L$23:$L$33,\"Toilet\")+SUMIFS('2. Conservation Measures'!BY64:BY83,'2. Conservation Measures'!$L$64:$L$83,\"Toilet\")","v":0},{"$f":"SUMIFS('2. Conservation Measures'!BZ23:BZ33,'2. Conservation Measures'!$L$23:$L$33,\"Toilet\")+SUMIFS('2. Conservation Measures'!BZ64:BZ83,'2. Conservation Measures'!$L$64:$L$83,\"Toilet\")","v":0},{"$f":"SUMIFS('2. Conservation Measures'!CA23:CA33,'2. Conservation Measures'!$L$23:$L$33,\"Toilet\")+SUMIFS('2. Conservation Measures'!CA64:CA83,'2. Conservation Measures'!$L$64:$L$83,\"Toilet\")","v":0},{"$f":"SUMIFS('2. Conservation Measures'!CB23:CB33,'2. Conservation Measures'!$L$23:$L$33,\"Toilet\")+SUMIFS('2. Conservation Measures'!CB64:CB83,'2. Conservation Measures'!$L$64:$L$83,\"Toilet\")","v":0},{"$f":"SUMIFS('2. Conservation Measures'!CC23:CC33,'2. Conservation Measures'!$L$23:$L$33,\"Toilet\")+SUMIFS('2. Conservation Measures'!CC64:CC83,'2. Conservation Measures'!$L$64:$L$83,\"Toilet\")","v":0},{"$f":"SUMIFS('2. Conservation Measures'!CD23:CD33,'2. Conservation Measures'!$L$23:$L$33,\"Toilet\")+SUMIFS('2. Conservation Measures'!CD64:CD83,'2. Conservation Measures'!$L$64:$L$83,\"Toilet\")","v":0},{"$f":"SUMIFS('2. Conservation Measures'!CE23:CE33,'2. Conservation Measures'!$L$23:$L$33,\"Toilet\")+SUMIFS('2. Conservation Measures'!CE64:CE83,'2. Conservation Measures'!$L$64:$L$83,\"Toilet\")","v":0},{"$f":"SUMIFS('2. Conservation Measures'!CF23:CF33,'2. Conservation Measures'!$L$23:$L$33,\"Toilet\")+SUMIFS('2. Conservation Measures'!CF64:CF83,'2. Conservation Measures'!$L$64:$L$83,\"Toilet\")","v":0},{"$f":"SUMIFS('2. Conservation Measures'!CG23:CG33,'2. Conservation Measures'!$L$23:$L$33,\"Toilet\")+SUMIFS('2. Conservation Measures'!CG64:CG83,'2. Conservation Measures'!$L$64:$L$83,\"Toilet\")","v":0},{"$f":"SUMIFS('2. Conservation Measures'!CH23:CH33,'2. Conservation Measures'!$L$23:$L$33,\"Toilet\")+SUMIFS('2. Conservation Measures'!CH64:CH83,'2. Conservation Measures'!$L$64:$L$83,\"Toilet\")","v":0},{"$f":"SUMIFS('2. Conservation Measures'!CI23:CI33,'2. Conservation Measures'!$L$23:$L$33,\"Toilet\")+SUMIFS('2. Conservation Measures'!CI64:CI83,'2. Conservation Measures'!$L$64:$L$83,\"Toilet\")","v":0},{"$f":"SUMIFS('2. Conservation Measures'!CJ23:CJ33,'2. Conservation Measures'!$L$23:$L$33,\"Toilet\")+SUMIFS('2. Conservation Measures'!CJ64:CJ83,'2. Conservation Measures'!$L$64:$L$83,\"Toilet\")","v":0},{"$f":"SUMIFS('2. Conservation Measures'!CK23:CK33,'2. Conservation Measures'!$L$23:$L$33,\"Toilet\")+SUMIFS('2. Conservation Measures'!CK64:CK83,'2. Conservation Measures'!$L$64:$L$83,\"Toilet\")","v":0},{"$f":"SUMIFS('2. Conservation Measures'!CL23:CL33,'2. Conservation Measures'!$L$23:$L$33,\"Toilet\")+SUMIFS('2. Conservation Measures'!CL64:CL83,'2. Conservation Measures'!$L$64:$L$83,\"Toilet\")","v":0},{"$f":"SUMIFS('2. Conservation Measures'!CM23:CM33,'2. Conservation Measures'!$L$23:$L$33,\"Toilet\")+SUMIFS('2. Conservation Measures'!CM64:CM83,'2. Conservation Measures'!$L$64:$L$83,\"Toilet\")","v":0}]
[null,"Ending Inventory",null,null,{"$f":"'Plumbing Fixture Inventory'!N43","v":0},{"$f":"F70-F71-F72","v":0},0,0,0,0,0,0,0,0,0,0,0,0,0,0,0,0,0,0,0,0,0,0,0,0,0,0,0,0,0,0,0,{"$f":"AL70-AL71-AL72","v":0},0,0,0,0,0,0,0,0,0,0,0,0,0,0,0,0,0,0]
[]
[null,"Multi Family Toilets",null,null,2019,2020,2021,2022,2023,2024,2025,2026,2027,2028,2029,2030,2031,2032,2033,2034,2035,2036,2037,2038,2039,2040,2041,2042,2043,2044,2045,2046,2047,2048,2049,2050,2051,2052,2053,2054,2055,2056,2057,2058,2059,2060,2061,2062,2063,2064,2065,2066,2067,2068,2069,2070]
[null,"Starting Inventory",null,null,null,{"$f":"E79","v":0},0,0,0,0,0,0,0,0,0,0,0,0,0,0,0,0,0,0,0,0,0,0,0,0,0,0,0,0,0,0,0,{"$f":"AK79","v":0},0,0,0,0,0,0,0,0,0,0,0,0,0,0,0,0,0,0]
[null,"Natural Replacement",null,null,null,{"$f":"F76*0.04","v":0},0,0,0,0,0,0,0,0,0,0,0,0,0,0,0,0,0,0,0,0,0,0,0,0,0,0,0,0,0,0,0,{"$f":"AL76*0.04","v":0},0,0,0,0,0,0,0,0,0,0,0,0,0,0,0,0,0,0]
[null,"Program Replacement",null,null,null,{"$f":"SUMIFS('2. Conservation Measures'!AO36:AO44,'2. Conservation Measures'!$L$36:$L$44,\"Toilet\")+SUMIFS('2. Conservation Measures'!AO86:AO105,'2. Conservation Measures'!$L$86:$L$105,\"Toilet\")","v":0},{"$f":"SUMIFS('2. Conservation Measures'!AP36:AP44,'2. Conservation Measures'!$L$36:$L$44,\"Toilet\")+SUMIFS('2. Conservation Measures'!AP86:AP105,'2. Conservation Measures'!$L$86:$L$105,\"Toilet\")","v":0},{"$f":"SUMIFS('2. Conservation Measures'!AQ36:AQ44,'2. Conservation Measures'!$L$36:$L$44,\"Toilet\")+SUMIFS('2. Conservation Measures'!AQ86:AQ105,'2. Conservation Measures'!$L$86:$L$105,\"Toilet\")","v":0},{"$f":"SUMIFS('2. Conservation Measures'!AR36:AR44,'2. Conservation Measures'!$L$36:$L$44,\"Toilet\")+SUMIFS('2. Conservation Measures'!AR86:AR105,'2. Conservation Measures'!$L$86:$L$105,\"Toilet\")","v":0},{"$f":"SUMIFS('2. Conservation Measures'!AS36:AS44,'2. Conservation Measures'!$L$36:$L$44,\"Toilet\")+SUMIFS('2. Conservation Measures'!AS86:AS105,'2. Conservation Measures'!$L$86:$L$105,\"Toilet\")","v":0},{"$f":"SUMIFS('2. Conservation Measures'!AT36:AT44,'2. Conservation Measures'!$L$36:$L$44,\"Toilet\")+SUMIFS('2. Conservation Measures'!AT86:AT105,'2. Conservation Measures'!$L$86:$L$105,\"Toilet\")","v":0},{"$f":"SUMIFS('2. Conservation Measures'!AU36:AU44,'2. Conservation Measures'!$L$36:$L$44,\"Toilet\")+SUMIFS('2. Conservation Measures'!AU86:AU105,'2. Conservation Measures'!$L$86:$L$105,\"Toilet\")","v":0},{"$f":"SUMIFS('2. Conservation Measures'!AV36:AV44,'2. Conservation Measures'!$L$36:$L$44,\"Toilet\")+SUMIFS('2. Conservation Measures'!AV86:AV105,'2. Conservation Measures'!$L$86:$L$105,\"Toilet\")","v":0},{"$f":"SUMIFS('2. Conservation Measures'!AW36:AW44,'2. Conservation Measures'!$L$36:$L$44,\"Toilet\")+SUMIFS('2. Conservation Measures'!AW86:AW105,'2. Conservation Measures'!$L$86:$L$105,\"Toilet\")","v":0},{"$f":"SUMIFS('2. Conservation Measures'!AX36:AX44,'2. Conservation Measures'!$L$36:$L$44,\"Toilet\")+SUMIFS('2. Conservation Measures'!AX86:AX105,'2. Conservation Measures'!$L$86:$L$105,\"Toilet\")","v":0},{"$f":"SUMIFS('2. Conservation Measures'!AY36:AY44,'2. Conservation Measures'!$L$36:$L$44,\"Toilet\")+SUMIFS('2. Conservation Measures'!AY86:AY105,'2. Conservation Measures'!$L$86:$L$105,\"Toilet\")","v":0},{"$f":"SUMIFS('2. Conservation Measures'!AZ36:AZ44,'2. Conservation Measures'!$L$36:$L$44,\"Toilet\")+SUMIFS('2. Conservation Measures'!AZ86:AZ105,'2. Conservation Measures'!$L$86:$L$105,\"Toilet\")","v":0},{"$f":"SUMIFS('2. Conservation Measures'!BA36:BA44,'2. Conservation Measures'!$L$36:$L$44,\"Toilet\")+SUMIFS('2. Conservation Measures'!BA86:BA105,'2. Conservation Measures'!$L$86:$L$105,\"Toilet\")","v":0},{"$f":"SUMIFS('2. Conservation Measures'!BB36:BB44,'2. Conservation Measures'!$L$36:$L$44,\"Toilet\")+SUMIFS('2. Conservation Measures'!BB86:BB105,'2. Conservation Measures'!$L$86:$L$105,\"Toilet\")","v":0},{"$f":"SUMIFS('2. Conservation Measures'!BC36:BC44,'2. Conservation Measures'!$L$36:$L$44,\"Toilet\")+SUMIFS('2. Conservation Measures'!BC86:BC105,'2. Conservation Measures'!$L$86:$L$105,\"Toilet\")","v":0},{"$f":"SUMIFS('2. Conservation Measures'!BD36:BD44,'2. Conservation Measures'!$L$36:$L$44,\"Toilet\")+SUMIFS('2. Conservation Measures'!BD86:BD105,'2. Conservation Measures'!$L$86:$L$105,\"Toilet\")","v":0},{"$f":"SUMIFS('2. Conservation Measures'!BE36:BE44,'2. Conservation Measures'!$L$36:$L$44,\"Toilet\")+SUMIFS('2. Conservation Measures'!BE86:BE105,'2. Conservation Measures'!$L$86:$L$105,\"Toilet\")","v":0},{"$f":"SUMIFS('2. Conservation Measures'!BF36:BF44,'2. Conservation Measures'!$L$36:$L$44,\"Toilet\")+SUMIFS('2. Conservation Measures'!BF86:BF105,'2. Conservation Measures'!$L$86:$L$105,\"Toilet\")","v":0},{"$f":"SUMIFS('2. Conservation Measures'!BG36:BG44,'2. Conservation Measures'!$L$36:$L$44,\"Toilet\")+SUMIFS('2. Conservation Measures'!BG86:BG105,'2. Conservation Measures'!$L$86:$L$105,\"Toilet\")","v":0},{"$f":"SUMIFS('2. Conservation Measures'!BH36:BH44,'2. Conservation Measures'!$L$36:$L$44,\"Toilet\")+SUMIFS('2. Conservation Measures'!BH86:BH105,'2. Conservation Measures'!$L$86:$L$105,\"Toilet\")","v":0},{"$f":"SUMIFS('2. Conservation Measures'!BI36:BI44,'2. Conservation Measures'!$L$36:$L$44,\"Toilet\")+SUMIFS('2. Conservation Measures'!BI86:BI105,'2. Conservation Measures'!$L$86:$L$105,\"Toilet\")","v":0},{"$f":"SUMIFS('2. Conservation Measures'!BJ36:BJ44,'2. Conservation Measures'!$L$36:$L$44,\"Toilet\")+SUMIFS('2. Conservation Measures'!BJ86:BJ105,'2. Conservation Measures'!$L$86:$L$105,\"Toilet\")","v":0},{"$f":"SUMIFS('2. Conservation Measures'!BK36:BK44,'2. Conservation Measures'!$L$36:$L$44,\"Toilet\")+SUMIFS('2. Conservation Measures'!BK86:BK105,'2. Conservation Measures'!$L$86:$L$105,\"Toilet\")","v":0},{"$f":"SUMIFS('2. Conservation Measures'!BL36:BL44,'2. Conservation Measures'!$L$36:$L$44,\"Toilet\")+SUMIFS('2. Conservation Measures'!BL86:BL105,'2. Conservation Measures'!$L$86:$L$105,\"Toilet\")","v":0},{"$f":"SUMIFS('2. Conservation Measures'!BM36:BM44,'2. Conservation Measures'!$L$36:$L$44,\"Toilet\")+SUMIFS('2. Conservation Measures'!BM86:BM105,'2. Conservation Measures'!$L$86:$L$105,\"Toilet\")","v":0},{"$f":"SUMIFS('2. Conservation Measures'!BN36:BN44,'2. Conservation Measures'!$L$36:$L$44,\"Toilet\")+SUMIFS('2. Conservation Measures'!BN86:BN105,'2. Conservation Measures'!$L$86:$L$105,\"Toilet\")","v":0},{"$f":"SUMIFS('2. Conservation Measures'!BO36:BO44,'2. Conservation Measures'!$L$36:$L$44,\"Toilet\")+SUMIFS('2. Conservation Measures'!BO86:BO105,'2. Conservation Measures'!$L$86:$L$105,\"Toilet\")","v":0},{"$f":"SUMIFS('2. Conservation Measures'!BP36:BP44,'2. Conservation Measures'!$L$36:$L$44,\"Toilet\")+SUMIFS('2. Conservation Measures'!BP86:BP105,'2. Conservation Measures'!$L$86:$L$105,\"Toilet\")","v":0},{"$f":"SUMIFS('2. Conservation Measures'!BQ36:BQ44,'2. Conservation Measures'!$L$36:$L$44,\"Toilet\")+SUMIFS('2. Conservation Measures'!BQ86:BQ105,'2. Conservation Measures'!$L$86:$L$105,\"Toilet\")","v":0},{"$f":"SUMIFS('2. Conservation Measures'!BR36:BR44,'2. Conservation Measures'!$L$36:$L$44,\"Toilet\")+SUMIFS('2. Conservation Measures'!BR86:BR105,'2. Conservation Measures'!$L$86:$L$105,\"Toilet\")","v":0},{"$f":"SUMIFS('2. Conservation Measures'!BS36:BS44,'2. Conservation Measures'!$L$36:$L$44,\"Toilet\")+SUMIFS('2. Conservation Measures'!BS86:BS105,'2. Conservation Measures'!$L$86:$L$105,\"Toilet\")","v":0},{"$f":"SUMIFS('2. Conservation Measures'!BT36:BT44,'2. Conservation Measures'!$L$36:$L$44,\"Toilet\")+SUMIFS('2. Conservation Measures'!BT86:BT105,'2. Conservation Measures'!$L$86:$L$105,\"Toilet\")","v":0},{"$f":"SUMIFS('2. Conservation Measures'!BU36:BU44,'2. Conservation Measures'!$L$36:$L$44,\"Toilet\")+SUMIFS('2. Conservation Measures'!BU86:BU105,'2. Conservation Measures'!$L$86:$L$105,\"Toilet\")","v":0},{"$f":"SUMIFS('2. Conservation Measures'!BV36:BV44,'2. Conservation Measures'!$L$36:$L$44,\"Toilet\")+SUMIFS('2. Conservation Measures'!BV86:BV105,'2. Conservation Measures'!$L$86:$L$105,\"Toilet\")","v":0},{"$f":"SUMIFS('2. Conservation Measures'!BW36:BW44,'2. Conservation Measures'!$L$36:$L$44,\"Toilet\")+SUMIFS('2. Conservation Measures'!BW86:BW105,'2. Conservation Measures'!$L$86:$L$105,\"Toilet\")","v":0},{"$f":"SUMIFS('2. Conservation Measures'!BX36:BX44,'2. Conservation Measures'!$L$36:$L$44,\"Toilet\")+SUMIFS('2. Conservation Measures'!BX86:BX105,'2. Conservation Measures'!$L$86:$L$105,\"Toilet\")","v":0},{"$f":"SUMIFS('2. Conservation Measures'!BY36:BY44,'2. Conservation Measures'!$L$36:$L$44,\"Toilet\")+SUMIFS('2. Conservation Measures'!BY86:BY105,'2. Conservation Measures'!$L$86:$L$105,\"Toilet\")","v":0},{"$f":"SUMIFS('2. Conservation Measures'!BZ36:BZ44,'2. Conservation Measures'!$L$36:$L$44,\"Toilet\")+SUMIFS('2. Conservation Measures'!BZ86:BZ105,'2. Conservation Measures'!$L$86:$L$105,\"Toilet\")","v":0},{"$f":"SUMIFS('2. Conservation Measures'!CA36:CA44,'2. Conservation Measures'!$L$36:$L$44,\"Toilet\")+SUMIFS('2. Conservation Measures'!CA86:CA105,'2. Conservation Measures'!$L$86:$L$105,\"Toilet\")","v":0},{"$f":"SUMIFS('2. Conservation Measures'!CB36:CB44,'2. Conservation Measures'!$L$36:$L$44,\"Toilet\")+SUMIFS('2. Conservation Measures'!CB86:CB105,'2. Conservation Measures'!$L$86:$L$105,\"Toilet\")","v":0},{"$f":"SUMIFS('2. Conservation Measures'!CC36:CC44,'2. Conservation Measures'!$L$36:$L$44,\"Toilet\")+SUMIFS('2. Conservation Measures'!CC86:CC105,'2. Conservation Measures'!$L$86:$L$105,\"Toilet\")","v":0},{"$f":"SUMIFS('2. Conservation Measures'!CD36:CD44,'2. Conservation Measures'!$L$36:$L$44,\"Toilet\")+SUMIFS('2. Conservation Measures'!CD86:CD105,'2. Conservation Measures'!$L$86:$L$105,\"Toilet\")","v":0},{"$f":"SUMIFS('2. Conservation Measures'!CE36:CE44,'2. Conservation Measures'!$L$36:$L$44,\"Toilet\")+SUMIFS('2. Conservation Measures'!CE86:CE105,'2. Conservation Measures'!$L$86:$L$105,\"Toilet\")","v":0},{"$f":"SUMIFS('2. Conservation Measures'!CF36:CF44,'2. Conservation Measures'!$L$36:$L$44,\"Toilet\")+SUMIFS('2. Conservation Measures'!CF86:CF105,'2. Conservation Measures'!$L$86:$L$105,\"Toilet\")","v":0},{"$f":"SUMIFS('2. Conservation Measures'!CG36:CG44,'2. Conservation Measures'!$L$36:$L$44,\"Toilet\")+SUMIFS('2. Conservation Measures'!CG86:CG105,'2. Conservation Measures'!$L$86:$L$105,\"Toilet\")","v":0},{"$f":"SUMIFS('2. Conservation Measures'!CH36:CH44,'2. Conservation Measures'!$L$36:$L$44,\"Toilet\")+SUMIFS('2. Conservation Measures'!CH86:CH105,'2. Conservation Measures'!$L$86:$L$105,\"Toilet\")","v":0},{"$f":"SUMIFS('2. Conservation Measures'!CI36:CI44,'2. Conservation Measures'!$L$36:$L$44,\"Toilet\")+SUMIFS('2. Conservation Measures'!CI86:CI105,'2. Conservation Measures'!$L$86:$L$105,\"Toilet\")","v":0},{"$f":"SUMIFS('2. Conservation Measures'!CJ36:CJ44,'2. Conservation Measures'!$L$36:$L$44,\"Toilet\")+SUMIFS('2. Conservation Measures'!CJ86:CJ105,'2. Conservation Measures'!$L$86:$L$105,\"Toilet\")","v":0},{"$f":"SUMIFS('2. Conservation Measures'!CK36:CK44,'2. Conservation Measures'!$L$36:$L$44,\"Toilet\")+SUMIFS('2. Conservation Measures'!CK86:CK105,'2. Conservation Measures'!$L$86:$L$105,\"Toilet\")","v":0},{"$f":"SUMIFS('2. Conservation Measures'!CL36:CL44,'2. Conservation Measures'!$L$36:$L$44,\"Toilet\")+SUMIFS('2. Conservation Measures'!CL86:CL105,'2. Conservation Measures'!$L$86:$L$105,\"Toilet\")","v":0},{"$f":"SUMIFS('2. Conservation Measures'!CM36:CM44,'2. Conservation Measures'!$L$36:$L$44,\"Toilet\")+SUMIFS('2. Conservation Measures'!CM86:CM105,'2. Conservation Measures'!$L$86:$L$105,\"Toilet\")","v":0}]
[null,"Ending Inventory",null,null,{"$f":"'Plumbing Fixture Inventory'!N50","v":0},{"$f":"F76-F77-F78","v":0},0,0,0,0,0,0,0,0,0,0,0,0,0,0,0,0,0,0,0,0,0,0,0,0,0,0,0,0,0,0,0,{"$f":"AL76-AL77-AL78","v":0},0,0,0,0,0,0,0,0,0,0,0,0,0,0,0,0,0,0]
[]
[null,"ICI Toilets",null,null,2019,2020,2021,2022,2023,2024,2025,2026,2027,2028,2029,2030,2031,2032,2033,2034,2035,2036,2037,2038,2039,2040,2041,2042,2043,2044,2045,2046,2047,2048,2049,2050,2051,2052,2053,2054,2055,2056,2057,2058,2059,2060,2061,2062,2063,2064,2065,2066,2067,2068,2069,2070]
[null,"Starting Inventory",null,null,null,{"$f":"E85","v":0},0,0,0,0,0,0,0,0,0,0,0,0,0,0,0,0,0,0,0,0,0,0,0,0,0,0,0,0,0,0,0,{"$f":"AK85","v":0},0,0,0,0,0,0,0,0,0,0,0,0,0,0,0,0,0,0]
[null,"Natural Replacement",null,null,null,{"$f":"F82*0.04","v":0},0,0,0,0,0,0,0,0,0,0,0,0,0,0,0,0,0,0,0,0,0,0,0,0,0,0,0,0,0,0,0,{"$f":"AL82*0.04","v":0},0,0,0,0,0,0,0,0,0,0,0,0,0,0,0,0,0,0]
[null,"Program Replacement",null,null,null,{"$f":"SUMIFS('2. Conservation Measures'!AO47:AO56,'2. Conservation Measures'!$L$47:$L$56,\"Toilet\")+SUMIFS('2. Conservation Measures'!AO108:AO127,'2. Conservation Measures'!$L$108:$L$127,\"Toilet\")","v":0},{"$f":"SUMIFS('2. Conservation Measures'!AP47:AP56,'2. Conservation Measures'!$L$47:$L$56,\"Toilet\")+SUMIFS('2. Conservation Measures'!AP108:AP127,'2. Conservation Measures'!$L$108:$L$127,\"Toilet\")","v":0},{"$f":"SUMIFS('2. Conservation Measures'!AQ47:AQ56,'2. Conservation Measures'!$L$47:$L$56,\"Toilet\")+SUMIFS('2. Conservation Measures'!AQ108:AQ127,'2. Conservation Measures'!$L$108:$L$127,\"Toilet\")","v":0},{"$f":"SUMIFS('2. Conservation Measures'!AR47:AR56,'2. Conservation Measures'!$L$47:$L$56,\"Toilet\")+SUMIFS('2. Conservation Measures'!AR108:AR127,'2. Conservation Measures'!$L$108:$L$127,\"Toilet\")","v":0},{"$f":"SUMIFS('2. Conservation Measures'!AS47:AS56,'2. Conservation Measures'!$L$47:$L$56,\"Toilet\")+SUMIFS('2. Conservation Measures'!AS108:AS127,'2. Conservation Measures'!$L$108:$L$127,\"Toilet\")","v":0},{"$f":"SUMIFS('2. Conservation Measures'!AT47:AT56,'2. Conservation Measures'!$L$47:$L$56,\"Toilet\")+SUMIFS('2. Conservation Measures'!AT108:AT127,'2. Conservation Measures'!$L$108:$L$127,\"Toilet\")","v":0},{"$f":"SUMIFS('2. Conservation Measures'!AU47:AU56,'2. Conservation Measures'!$L$47:$L$56,\"Toilet\")+SUMIFS('2. Conservation Measures'!AU108:AU127,'2. Conservation Measures'!$L$108:$L$127,\"Toilet\")","v":0},{"$f":"SUMIFS('2. Conservation Measures'!AV47:AV56,'2. Conservation Measures'!$L$47:$L$56,\"Toilet\")+SUMIFS('2. Conservation Measures'!AV108:AV127,'2. Conservation Measures'!$L$108:$L$127,\"Toilet\")","v":0},{"$f":"SUMIFS('2. Conservation Measures'!AW47:AW56,'2. Conservation Measures'!$L$47:$L$56,\"Toilet\")+SUMIFS('2. Conservation Measures'!AW108:AW127,'2. Conservation Measures'!$L$108:$L$127,\"Toilet\")","v":0},{"$f":"SUMIFS('2. Conservation Measures'!AX47:AX56,'2. Conservation Measures'!$L$47:$L$56,\"Toilet\")+SUMIFS('2. Conservation Measures'!AX108:AX127,'2. Conservation Measures'!$L$108:$L$127,\"Toilet\")","v":0},{"$f":"SUMIFS('2. Conservation Measures'!AY47:AY56,'2. Conservation Measures'!$L$47:$L$56,\"Toilet\")+SUMIFS('2. Conservation Measures'!AY108:AY127,'2. Conservation Measures'!$L$108:$L$127,\"Toilet\")","v":0},{"$f":"SUMIFS('2. Conservation Measures'!AZ47:AZ56,'2. Conservation Measures'!$L$47:$L$56,\"Toilet\")+SUMIFS('2. Conservation Measures'!AZ108:AZ127,'2. Conservation Measures'!$L$108:$L$127,\"Toilet\")","v":0},{"$f":"SUMIFS('2. Conservation Measures'!BA47:BA56,'2. Conservation Measures'!$L$47:$L$56,\"Toilet\")+SUMIFS('2. Conservation Measures'!BA108:BA127,'2. Conservation Measures'!$L$108:$L$127,\"Toilet\")","v":0},{"$f":"SUMIFS('2. Conservation Measures'!BB47:BB56,'2. Conservation Measures'!$L$47:$L$56,\"Toilet\")+SUMIFS('2. Conservation Measures'!BB108:BB127,'2. Conservation Measures'!$L$108:$L$127,\"Toilet\")","v":0},{"$f":"SUMIFS('2. Conservation Measures'!BC47:BC56,'2. Conservation Measures'!$L$47:$L$56,\"Toilet\")+SUMIFS('2. Conservation Measures'!BC108:BC127,'2. Conservation Measures'!$L$108:$L$127,\"Toilet\")","v":0},{"$f":"SUMIFS('2. Conservation Measures'!BD47:BD56,'2. Conservation Measures'!$L$47:$L$56,\"Toilet\")+SUMIFS('2. Conservation Measures'!BD108:BD127,'2. Conservation Measures'!$L$108:$L$127,\"Toilet\")","v":0},{"$f":"SUMIFS('2. Conservation Measures'!BE47:BE56,'2. Conservation Measures'!$L$47:$L$56,\"Toilet\")+SUMIFS('2. Conservation Measures'!BE108:BE127,'2. Conservation Measures'!$L$108:$L$127,\"Toilet\")","v":0},{"$f":"SUMIFS('2. Conservation Measures'!BF47:BF56,'2. Conservation Measures'!$L$47:$L$56,\"Toilet\")+SUMIFS('2. Conservation Measures'!BF108:BF127,'2. Conservation Measures'!$L$108:$L$127,\"Toilet\")","v":0},{"$f":"SUMIFS('2. Conservation Measures'!BG47:BG56,'2. Conservation Measures'!$L$47:$L$56,\"Toilet\")+SUMIFS('2. Conservation Measures'!BG108:BG127,'2. Conservation Measures'!$L$108:$L$127,\"Toilet\")","v":0},{"$f":"SUMIFS('2. Conservation Measures'!BH47:BH56,'2. Conservation Measures'!$L$47:$L$56,\"Toilet\")+SUMIFS('2. Conservation Measures'!BH108:BH127,'2. Conservation Measures'!$L$108:$L$127,\"Toilet\")","v":0},{"$f":"SUMIFS('2. Conservation Measures'!BI47:BI56,'2. Conservation Measures'!$L$47:$L$56,\"Toilet\")+SUMIFS('2. Conservation Measures'!BI108:BI127,'2. Conservation Measures'!$L$108:$L$127,\"Toilet\")","v":0},{"$f":"SUMIFS('2. Conservation Measures'!BJ47:BJ56,'2. Conservation Measures'!$L$47:$L$56,\"Toilet\")+SUMIFS('2. Conservation Measures'!BJ108:BJ127,'2. Conservation Measures'!$L$108:$L$127,\"Toilet\")","v":0},{"$f":"SUMIFS('2. Conservation Measures'!BK47:BK56,'2. Conservation Measures'!$L$47:$L$56,\"Toilet\")+SUMIFS('2. Conservation Measures'!BK108:BK127,'2. Conservation Measures'!$L$108:$L$127,\"Toilet\")","v":0},{"$f":"SUMIFS('2. Conservation Measures'!BL47:BL56,'2. Conservation Measures'!$L$47:$L$56,\"Toilet\")+SUMIFS('2. Conservation Measures'!BL108:BL127,'2. Conservation Measures'!$L$108:$L$127,\"Toilet\")","v":0},{"$f":"SUMIFS('2. Conservation Measures'!BM47:BM56,'2. Conservation Measures'!$L$47:$L$56,\"Toilet\")+SUMIFS('2. Conservation Measures'!BM108:BM127,'2. Conservation Measures'!$L$108:$L$127,\"Toilet\")","v":0},{"$f":"SUMIFS('2. Conservation Measures'!BN47:BN56,'2. Conservation Measures'!$L$47:$L$56,\"Toilet\")+SUMIFS('2. Conservation Measures'!BN108:BN127,'2. Conservation Measures'!$L$108:$L$127,\"Toilet\")","v":0},{"$f":"SUMIFS('2. Conservation Measures'!BO47:BO56,'2. Conservation Measures'!$L$47:$L$56,\"Toilet\")+SUMIFS('2. Conservation Measures'!BO108:BO127,'2. Conservation Measures'!$L$108:$L$127,\"Toilet\")","v":0},{"$f":"SUMIFS('2. Conservation Measures'!BP47:BP56,'2. Conservation Measures'!$L$47:$L$56,\"Toilet\")+SUMIFS('2. Conservation Measures'!BP108:BP127,'2. Conservation Measures'!$L$108:$L$127,\"Toilet\")","v":0},{"$f":"SUMIFS('2. Conservation Measures'!BQ47:BQ56,'2. Conservation Measures'!$L$47:$L$56,\"Toilet\")+SUMIFS('2. Conservation Measures'!BQ108:BQ127,'2. Conservation Measures'!$L$108:$L$127,\"Toilet\")","v":0},{"$f":"SUMIFS('2. Conservation Measures'!BR47:BR56,'2. Conservation Measures'!$L$47:$L$56,\"Toilet\")+SUMIFS('2. Conservation Measures'!BR108:BR127,'2. Conservation Measures'!$L$108:$L$127,\"Toilet\")","v":0},{"$f":"SUMIFS('2. Conservation Measures'!BS47:BS56,'2. Conservation Measures'!$L$47:$L$56,\"Toilet\")+SUMIFS('2. Conservation Measures'!BS108:BS127,'2. Conservation Measures'!$L$108:$L$127,\"Toilet\")","v":0},{"$f":"SUMIFS('2. Conservation Measures'!BT47:BT56,'2. Conservation Measures'!$L$47:$L$56,\"Toilet\")+SUMIFS('2. Conservation Measures'!BT108:BT127,'2. Conservation Measures'!$L$108:$L$127,\"Toilet\")","v":0},{"$f":"SUMIFS('2. Conservation Measures'!BU47:BU56,'2. Conservation Measures'!$L$47:$L$56,\"Toilet\")+SUMIFS('2. Conservation Measures'!BU108:BU127,'2. Conservation Measures'!$L$108:$L$127,\"Toilet\")","v":0},{"$f":"SUMIFS('2. Conservation Measures'!BV47:BV56,'2. Conservation Measures'!$L$47:$L$56,\"Toilet\")+SUMIFS('2. Conservation Measures'!BV108:BV127,'2. Conservation Measures'!$L$108:$L$127,\"Toilet\")","v":0},{"$f":"SUMIFS('2. Conservation Measures'!BW47:BW56,'2. Conservation Measures'!$L$47:$L$56,\"Toilet\")+SUMIFS('2. Conservation Measures'!BW108:BW127,'2. Conservation Measures'!$L$108:$L$127,\"Toilet\")","v":0},{"$f":"SUMIFS('2. Conservation Measures'!BX47:BX56,'2. Conservation Measures'!$L$47:$L$56,\"Toilet\")+SUMIFS('2. Conservation Measures'!BX108:BX127,'2. Conservation Measures'!$L$108:$L$127,\"Toilet\")","v":0},{"$f":"SUMIFS('2. Conservation Measures'!BY47:BY56,'2. Conservation Measures'!$L$47:$L$56,\"Toilet\")+SUMIFS('2. Conservation Measures'!BY108:BY127,'2. Conservation Measures'!$L$108:$L$127,\"Toilet\")","v":0},{"$f":"SUMIFS('2. Conservation Measures'!BZ47:BZ56,'2. Conservation Measures'!$L$47:$L$56,\"Toilet\")+SUMIFS('2. Conservation Measures'!BZ108:BZ127,'2. Conservation Measures'!$L$108:$L$127,\"Toilet\")","v":0},{"$f":"SUMIFS('2. Conservation Measures'!CA47:CA56,'2. Conservation Measures'!$L$47:$L$56,\"Toilet\")+SUMIFS('2. Conservation Measures'!CA108:CA127,'2. Conservation Measures'!$L$108:$L$127,\"Toilet\")","v":0},{"$f":"SUMIFS('2. Conservation Measures'!CB47:CB56,'2. Conservation Measures'!$L$47:$L$56,\"Toilet\")+SUMIFS('2. Conservation Measures'!CB108:CB127,'2. Conservation Measures'!$L$108:$L$127,\"Toilet\")","v":0},{"$f":"SUMIFS('2. Conservation Measures'!CC47:CC56,'2. Conservation Measures'!$L$47:$L$56,\"Toilet\")+SUMIFS('2. Conservation Measures'!CC108:CC127,'2. Conservation Measures'!$L$108:$L$127,\"Toilet\")","v":0},{"$f":"SUMIFS('2. Conservation Measures'!CD47:CD56,'2. Conservation Measures'!$L$47:$L$56,\"Toilet\")+SUMIFS('2. Conservation Measures'!CD108:CD127,'2. Conservation Measures'!$L$108:$L$127,\"Toilet\")","v":0},{"$f":"SUMIFS('2. Conservation Measures'!CE47:CE56,'2. Conservation Measures'!$L$47:$L$56,\"Toilet\")+SUMIFS('2. Conservation Measures'!CE108:CE127,'2. Conservation Measures'!$L$108:$L$127,\"Toilet\")","v":0},{"$f":"SUMIFS('2. Conservation Measures'!CF47:CF56,'2. Conservation Measures'!$L$47:$L$56,\"Toilet\")+SUMIFS('2. Conservation Measures'!CF108:CF127,'2. Conservation Measures'!$L$108:$L$127,\"Toilet\")","v":0},{"$f":"SUMIFS('2. Conservation Measures'!CG47:CG56,'2. Conservation Measures'!$L$47:$L$56,\"Toilet\")+SUMIFS('2. Conservation Measures'!CG108:CG127,'2. Conservation Measures'!$L$108:$L$127,\"Toilet\")","v":0},{"$f":"SUMIFS('2. Conservation Measures'!CH47:CH56,'2. Conservation Measures'!$L$47:$L$56,\"Toilet\")+SUMIFS('2. Conservation Measures'!CH108:CH127,'2. Conservation Measures'!$L$108:$L$127,\"Toilet\")","v":0},{"$f":"SUMIFS('2. Conservation Measures'!CI47:CI56,'2. Conservation Measures'!$L$47:$L$56,\"Toilet\")+SUMIFS('2. Conservation Measures'!CI108:CI127,'2. Conservation Measures'!$L$108:$L$127,\"Toilet\")","v":0},{"$f":"SUMIFS('2. Conservation Measures'!CJ47:CJ56,'2. Conservation Measures'!$L$47:$L$56,\"Toilet\")+SUMIFS('2. Conservation Measures'!CJ108:CJ127,'2. Conservation Measures'!$L$108:$L$127,\"Toilet\")","v":0},{"$f":"SUMIFS('2. Conservation Measures'!CK47:CK56,'2. Conservation Measures'!$L$47:$L$56,\"Toilet\")+SUMIFS('2. Conservation Measures'!CK108:CK127,'2. Conservation Measures'!$L$108:$L$127,\"Toilet\")","v":0},{"$f":"SUMIFS('2. Conservation Measures'!CL47:CL56,'2. Conservation Measures'!$L$47:$L$56,\"Toilet\")+SUMIFS('2. Conservation Measures'!CL108:CL127,'2. Conservation Measures'!$L$108:$L$127,\"Toilet\")","v":0},{"$f":"SUMIFS('2. Conservation Measures'!CM47:CM56,'2. Conservation Measures'!$L$47:$L$56,\"Toilet\")+SUMIFS('2. Conservation Measures'!CM108:CM127,'2. Conservation Measures'!$L$108:$L$127,\"Toilet\")","v":0}]
[null,"Ending Inventory",null,null,{"$f":"'Plumbing Fixture Inventory'!N58","v":0},{"$f":"F82-F83-F84","v":0},0,0,0,0,0,0,0,0,0,0,0,0,0,0,0,0,0,0,0,0,0,0,0,0,0,0,0,0,0,0,0,{"$f":"AL82-AL83-AL84","v":0},0,0,0,0,0,0,0,0,0,0,0,0,0,0,0,0,0,0]
[]
[null,"ICI Urinals",null,null,2019,2020,2021,2022,2023,2024,2025,2026,2027,2028,2029,2030,2031,2032,2033,2034,2035,2036,2037,2038,2039,2040,2041,2042,2043,2044,2045,2046,2047,2048,2049,2050,2051,2052,2053,2054,2055,2056,2057,2058,2059,2060,2061,2062,2063,2064,2065,2066,2067,2068,2069,2070]
[null,"Starting Inventory",null,null,null,{"$f":"E91","v":0},0,0,0,0,0,0,0,0,0,0,0,0,0,0,0,0,0,0,0,0,0,0,0,0,0,0,0,0,0,0,0,{"$f":"AK91","v":0},0,0,0,0,0,0,0,0,0,0,0,0,0,0,0,0,0,0]
[null,"Natural Replacement",null,null,null,{"$f":"F88*0.04","v":0},0,0,0,0,0,0,0,0,0,0,0,0,0,0,0,0,0,0,0,0,0,0,0,0,0,0,0,0,0,0,0,{"$f":"AL88*0.04","v":0},0,0,0,0,0,0,0,0,0,0,0,0,0,0,0,0,0,0]
[null,"Program Replacement",null,null,null,{"$f":"SUMIFS('2. Conservation Measures'!AO47:AO56,'2. Conservation Measures'!$L$47:$L$56,\"Urinal\")+SUMIFS('2. Conservation Measures'!AO108:AO127,'2. Conservation Measures'!$L$108:$L$127,\"Urinal\")","v":0},{"$f":"SUMIFS('2. Conservation Measures'!AP47:AP56,'2. Conservation Measures'!$L$47:$L$56,\"Urinal\")+SUMIFS('2. Conservation Measures'!AP108:AP127,'2. Conservation Measures'!$L$108:$L$127,\"Urinal\")","v":0},{"$f":"SUMIFS('2. Conservation Measures'!AQ47:AQ56,'2. Conservation Measures'!$L$47:$L$56,\"Urinal\")+SUMIFS('2. Conservation Measures'!AQ108:AQ127,'2. Conservation Measures'!$L$108:$L$127,\"Urinal\")","v":0},{"$f":"SUMIFS('2. Conservation Measures'!AR47:AR56,'2. Conservation Measures'!$L$47:$L$56,\"Urinal\")+SUMIFS('2. Conservation Measures'!AR108:AR127,'2. Conservation Measures'!$L$108:$L$127,\"Urinal\")","v":0},{"$f":"SUMIFS('2. Conservation Measures'!AS47:AS56,'2. Conservation Measures'!$L$47:$L$56,\"Urinal\")+SUMIFS('2. Conservation Measures'!AS108:AS127,'2. Conservation Measures'!$L$108:$L$127,\"Urinal\")","v":0},{"$f":"SUMIFS('2. Conservation Measures'!AT47:AT56,'2. Conservation Measures'!$L$47:$L$56,\"Urinal\")+SUMIFS('2. Conservation Measures'!AT108:AT127,'2. Conservation Measures'!$L$108:$L$127,\"Urinal\")","v":0},{"$f":"SUMIFS('2. Conservation Measures'!AU47:AU56,'2. Conservation Measures'!$L$47:$L$56,\"Urinal\")+SUMIFS('2. Conservation Measures'!AU108:AU127,'2. Conservation Measures'!$L$108:$L$127,\"Urinal\")","v":0},{"$f":"SUMIFS('2. Conservation Measures'!AV47:AV56,'2. Conservation Measures'!$L$47:$L$56,\"Urinal\")+SUMIFS('2. Conservation Measures'!AV108:AV127,'2. Conservation Measures'!$L$108:$L$127,\"Urinal\")","v":0},{"$f":"SUMIFS('2. Conservation Measures'!AW47:AW56,'2. Conservation Measures'!$L$47:$L$56,\"Urinal\")+SUMIFS('2. Conservation Measures'!AW108:AW127,'2. Conservation Measures'!$L$108:$L$127,\"Urinal\")","v":0},{"$f":"SUMIFS('2. Conservation Measures'!AX47:AX56,'2. Conservation Measures'!$L$47:$L$56,\"Urinal\")+SUMIFS('2. Conservation Measures'!AX108:AX127,'2. Conservation Measures'!$L$108:$L$127,\"Urinal\")","v":0},{"$f":"SUMIFS('2. Conservation Measures'!AY47:AY56,'2. Conservation Measures'!$L$47:$L$56,\"Urinal\")+SUMIFS('2. Conservation Measures'!AY108:AY127,'2. Conservation Measures'!$L$108:$L$127,\"Urinal\")","v":0},{"$f":"SUMIFS('2. Conservation Measures'!AZ47:AZ56,'2. Conservation Measures'!$L$47:$L$56,\"Urinal\")+SUMIFS('2. Conservation Measures'!AZ108:AZ127,'2. Conservation Measures'!$L$108:$L$127,\"Urinal\")","v":0},{"$f":"SUMIFS('2. Conservation Measures'!BA47:BA56,'2. Conservation Measures'!$L$47:$L$56,\"Urinal\")+SUMIFS('2. Conservation Measures'!BA108:BA127,'2. Conservation Measures'!$L$108:$L$127,\"Urinal\")","v":0},{"$f":"SUMIFS('2. Conservation Measures'!BB47:BB56,'2. Conservation Measures'!$L$47:$L$56,\"Urinal\")+SUMIFS('2. Conservation Measures'!BB108:BB127,'2. Conservation Measures'!$L$108:$L$127,\"Urinal\")","v":0},{"$f":"SUMIFS('2. Conservation Measures'!BC47:BC56,'2. Conservation Measures'!$L$47:$L$56,\"Urinal\")+SUMIFS('2. Conservation Measures'!BC108:BC127,'2. Conservation Measures'!$L$108:$L$127,\"Urinal\")","v":0},{"$f":"SUMIFS('2. Conservation Measures'!BD47:BD56,'2. Conservation Measures'!$L$47:$L$56,\"Urinal\")+SUMIFS('2. Conservation Measures'!BD108:BD127,'2. Conservation Measures'!$L$108:$L$127,\"Urinal\")","v":0},{"$f":"SUMIFS('2. Conservation Measures'!BE47:BE56,'2. Conservation Measures'!$L$47:$L$56,\"Urinal\")+SUMIFS('2. Conservation Measures'!BE108:BE127,'2. Conservation Measures'!$L$108:$L$127,\"Urinal\")","v":0},{"$f":"SUMIFS('2. Conservation Measures'!BF47:BF56,'2. Conservation Measures'!$L$47:$L$56,\"Urinal\")+SUMIFS('2. Conservation Measures'!BF108:BF127,'2. Conservation Measures'!$L$108:$L$127,\"Urinal\")","v":0},{"$f":"SUMIFS('2. Conservation Measures'!BG47:BG56,'2. Conservation Measures'!$L$47:$L$56,\"Urinal\")+SUMIFS('2. Conservation Measures'!BG108:BG127,'2. Conservation Measures'!$L$108:$L$127,\"Urinal\")","v":0},{"$f":"SUMIFS('2. Conservation Measures'!BH47:BH56,'2. Conservation Measures'!$L$47:$L$56,\"Urinal\")+SUMIFS('2. Conservation Measures'!BH108:BH127,'2. Conservation Measures'!$L$108:$L$127,\"Urinal\")","v":0},{"$f":"SUMIFS('2. Conservation Measures'!BI47:BI56,'2. Conservation Measures'!$L$47:$L$56,\"Urinal\")+SUMIFS('2. Conservation Measures'!BI108:BI127,'2. Conservation Measures'!$L$108:$L$127,\"Urinal\")","v":0},{"$f":"SUMIFS('2. Conservation Measures'!BJ47:BJ56,'2. Conservation Measures'!$L$47:$L$56,\"Urinal\")+SUMIFS('2. Conservation Measures'!BJ108:BJ127,'2. Conservation Measures'!$L$108:$L$127,\"Urinal\")","v":0},{"$f":"SUMIFS('2. Conservation Measures'!BK47:BK56,'2. Conservation Measures'!$L$47:$L$56,\"Urinal\")+SUMIFS('2. Conservation Measures'!BK108:BK127,'2. Conservation Measures'!$L$108:$L$127,\"Urinal\")","v":0},{"$f":"SUMIFS('2. Conservation Measures'!BL47:BL56,'2. Conservation Measures'!$L$47:$L$56,\"Urinal\")+SUMIFS('2. Conservation Measures'!BL108:BL127,'2. Conservation Measures'!$L$108:$L$127,\"Urinal\")","v":0},{"$f":"SUMIFS('2. Conservation Measures'!BM47:BM56,'2. Conservation Measures'!$L$47:$L$56,\"Urinal\")+SUMIFS('2. Conservation Measures'!BM108:BM127,'2. Conservation Measures'!$L$108:$L$127,\"Urinal\")","v":0},{"$f":"SUMIFS('2. Conservation Measures'!BN47:BN56,'2. Conservation Measures'!$L$47:$L$56,\"Urinal\")+SUMIFS('2. Conservation Measures'!BN108:BN127,'2. Conservation Measures'!$L$108:$L$127,\"Urinal\")","v":0},{"$f":"SUMIFS('2. Conservation Measures'!BO47:BO56,'2. Conservation Measures'!$L$47:$L$56,\"Urinal\")+SUMIFS('2. Conservation Measures'!BO108:BO127,'2. Conservation Measures'!$L$108:$L$127,\"Urinal\")","v":0},{"$f":"SUMIFS('2. Conservation Measures'!BP47:BP56,'2. Conservation Measures'!$L$47:$L$56,\"Urinal\")+SUMIFS('2. Conservation Measures'!BP108:BP127,'2. Conservation Measures'!$L$108:$L$127,\"Urinal\")","v":0},{"$f":"SUMIFS('2. Conservation Measures'!BQ47:BQ56,'2. Conservation Measures'!$L$47:$L$56,\"Urinal\")+SUMIFS('2. Conservation Measures'!BQ108:BQ127,'2. Conservation Measures'!$L$108:$L$127,\"Urinal\")","v":0},{"$f":"SUMIFS('2. Conservation Measures'!BR47:BR56,'2. Conservation Measures'!$L$47:$L$56,\"Urinal\")+SUMIFS('2. Conservation Measures'!BR108:BR127,'2. Conservation Measures'!$L$108:$L$127,\"Urinal\")","v":0},{"$f":"SUMIFS('2. Conservation Measures'!BS47:BS56,'2. Conservation Measures'!$L$47:$L$56,\"Urinal\")+SUMIFS('2. Conservation Measures'!BS108:BS127,'2. Conservation Measures'!$L$108:$L$127,\"Urinal\")","v":0},{"$f":"SUMIFS('2. Conservation Measures'!BT47:BT56,'2. Conservation Measures'!$L$47:$L$56,\"Urinal\")+SUMIFS('2. Conservation Measures'!BT108:BT127,'2. Conservation Measures'!$L$108:$L$127,\"Urinal\")","v":0},{"$f":"SUMIFS('2. Conservation Measures'!BU47:BU56,'2. Conservation Measures'!$L$47:$L$56,\"Urinal\")+SUMIFS('2. Conservation Measures'!BU108:BU127,'2. Conservation Measures'!$L$108:$L$127,\"Urinal\")","v":0},{"$f":"SUMIFS('2. Conservation Measures'!BV47:BV56,'2. Conservation Measures'!$L$47:$L$56,\"Urinal\")+SUMIFS('2. Conservation Measures'!BV108:BV127,'2. Conservation Measures'!$L$108:$L$127,\"Urinal\")","v":0},{"$f":"SUMIFS('2. Conservation Measures'!BW47:BW56,'2. Conservation Measures'!$L$47:$L$56,\"Urinal\")+SUMIFS('2. Conservation Measures'!BW108:BW127,'2. Conservation Measures'!$L$108:$L$127,\"Urinal\")","v":0},{"$f":"SUMIFS('2. Conservation Measures'!BX47:BX56,'2. Conservation Measures'!$L$47:$L$56,\"Urinal\")+SUMIFS('2. Conservation Measures'!BX108:BX127,'2. Conservation Measures'!$L$108:$L$127,\"Urinal\")","v":0},{"$f":"SUMIFS('2. Conservation Measures'!BY47:BY56,'2. Conservation Measures'!$L$47:$L$56,\"Urinal\")+SUMIFS('2. Conservation Measures'!BY108:BY127,'2. Conservation Measures'!$L$108:$L$127,\"Urinal\")","v":0},{"$f":"SUMIFS('2. Conservation Measures'!BZ47:BZ56,'2. Conservation Measures'!$L$47:$L$56,\"Urinal\")+SUMIFS('2. Conservation Measures'!BZ108:BZ127,'2. Conservation Measures'!$L$108:$L$127,\"Urinal\")","v":0},{"$f":"SUMIFS('2. Conservation Measures'!CA47:CA56,'2. Conservation Measures'!$L$47:$L$56,\"Urinal\")+SUMIFS('2. Conservation Measures'!CA108:CA127,'2. Conservation Measures'!$L$108:$L$127,\"Urinal\")","v":0},{"$f":"SUMIFS('2. Conservation Measures'!CB47:CB56,'2. Conservation Measures'!$L$47:$L$56,\"Urinal\")+SUMIFS('2. Conservation Measures'!CB108:CB127,'2. Conservation Measures'!$L$108:$L$127,\"Urinal\")","v":0},{"$f":"SUMIFS('2. Conservation Measures'!CC47:CC56,'2. Conservation Measures'!$L$47:$L$56,\"Urinal\")+SUMIFS('2. Conservation Measures'!CC108:CC127,'2. Conservation Measures'!$L$108:$L$127,\"Urinal\")","v":0},{"$f":"SUMIFS('2. Conservation Measures'!CD47:CD56,'2. Conservation Measures'!$L$47:$L$56,\"Urinal\")+SUMIFS('2. Conservation Measures'!CD108:CD127,'2. Conservation Measures'!$L$108:$L$127,\"Urinal\")","v":0},{"$f":"SUMIFS('2. Conservation Measures'!CE47:CE56,'2. Conservation Measures'!$L$47:$L$56,\"Urinal\")+SUMIFS('2. Conservation Measures'!CE108:CE127,'2. Conservation Measures'!$L$108:$L$127,\"Urinal\")","v":0},{"$f":"SUMIFS('2. Conservation Measures'!CF47:CF56,'2. Conservation Measures'!$L$47:$L$56,\"Urinal\")+SUMIFS('2. Conservation Measures'!CF108:CF127,'2. Conservation Measures'!$L$108:$L$127,\"Urinal\")","v":0},{"$f":"SUMIFS('2. Conservation Measures'!CG47:CG56,'2. Conservation Measures'!$L$47:$L$56,\"Urinal\")+SUMIFS('2. Conservation Measures'!CG108:CG127,'2. Conservation Measures'!$L$108:$L$127,\"Urinal\")","v":0},{"$f":"SUMIFS('2. Conservation Measures'!CH47:CH56,'2. Conservation Measures'!$L$47:$L$56,\"Urinal\")+SUMIFS('2. Conservation Measures'!CH108:CH127,'2. Conservation Measures'!$L$108:$L$127,\"Urinal\")","v":0},{"$f":"SUMIFS('2. Conservation Measures'!CI47:CI56,'2. Conservation Measures'!$L$47:$L$56,\"Urinal\")+SUMIFS('2. Conservation Measures'!CI108:CI127,'2. Conservation Measures'!$L$108:$L$127,\"Urinal\")","v":0},{"$f":"SUMIFS('2. Conservation Measures'!CJ47:CJ56,'2. Conservation Measures'!$L$47:$L$56,\"Urinal\")+SUMIFS('2. Conservation Measures'!CJ108:CJ127,'2. Conservation Measures'!$L$108:$L$127,\"Urinal\")","v":0},{"$f":"SUMIFS('2. Conservation Measures'!CK47:CK56,'2. Conservation Measures'!$L$47:$L$56,\"Urinal\")+SUMIFS('2. Conservation Measures'!CK108:CK127,'2. Conservation Measures'!$L$108:$L$127,\"Urinal\")","v":0},{"$f":"SUMIFS('2. Conservation Measures'!CL47:CL56,'2. Conservation Measures'!$L$47:$L$56,\"Urinal\")+SUMIFS('2. Conservation Measures'!CL108:CL127,'2. Conservation Measures'!$L$108:$L$127,\"Urinal\")","v":0},{"$f":"SUMIFS('2. Conservation Measures'!CM47:CM56,'2. Conservation Measures'!$L$47:$L$56,\"Urinal\")+SUMIFS('2. Conservation Measures'!CM108:CM127,'2. Conservation Measures'!$L$108:$L$127,\"Urinal\")","v":0}]
[null,"Ending Inventory",null,null,{"$f":"'Plumbing Fixture Inventory'!N59","v":0},{"$f":"F88-F89-F90","v":0},0,0,0,0,0,0,0,0,0,0,0,0,0,0,0,0,0,0,0,0,0,0,0,0,0,0,0,0,0,0,0,{"$f":"AL88-AL89-AL90","v":0},0,0,0,0,0,0,0,0,0,0,0,0,0,0,0,0,0,0]
[]
[]
[null,"Single Family Shwrheads",null,null,2019,2020,2021,2022,2023,2024,2025,2026,2027,2028,2029,2030,2031,2032,2033,2034,2035,2036,2037,2038,2039,2040,2041,2042,2043,2044,2045,2046,2047,2048,2049,2050,2051,2052,2053,2054,2055,2056,2057,2058,2059,2060,2061,2062,2063,2064,2065,2066,2067,2068,2069,2070]
[null,"Starting Inventory",null,null,null,{"$f":"E98","v":0},0,0,0,0,0,0,0,0,0,0,0,0,0,0,0,0,0,0,0,0,0,0,0,0,0,0,0,0,0,0,0,{"$f":"AK98","v":0},0,0,0,0,0,0,0,0,0,0,0,0,0,0,0,0,0,0]
[null,"Natural Replacement",null,null,null,{"$f":"F95*0.067","v":0},0,0,0,0,0,0,0,0,0,0,0,0,0,0,0,0,0,0,0,0,0,0,0,0,0,0,0,0,0,0,0,{"$f":"AL95*0.067","v":0},0,0,0,0,0,0,0,0,0,0,0,0,0,0,0,0,0,0]
[null,"Program Replacement",null,null,null,{"$f":"SUMIFS('2. Conservation Measures'!AO23:AO33,'2. Conservation Measures'!$L$23:$L$33,\"Showerhead\")+SUMIFS('2. Conservation Measures'!AO64:AO83,'2. Conservation Measures'!$L$64:$L$83,\"Showerhead\")","v":0},{"$f":"SUMIFS('2. Conservation Measures'!AP23:AP33,'2. Conservation Measures'!$L$23:$L$33,\"Showerhead\")+SUMIFS('2. Conservation Measures'!AP64:AP83,'2. Conservation Measures'!$L$64:$L$83,\"Showerhead\")","v":0},{"$f":"SUMIFS('2. Conservation Measures'!AQ23:AQ33,'2. Conservation Measures'!$L$23:$L$33,\"Showerhead\")+SUMIFS('2. Conservation Measures'!AQ64:AQ83,'2. Conservation Measures'!$L$64:$L$83,\"Showerhead\")","v":0},{"$f":"SUMIFS('2. Conservation Measures'!AR23:AR33,'2. Conservation Measures'!$L$23:$L$33,\"Showerhead\")+SUMIFS('2. Conservation Measures'!AR64:AR83,'2. Conservation Measures'!$L$64:$L$83,\"Showerhead\")","v":0},{"$f":"SUMIFS('2. Conservation Measures'!AS23:AS33,'2. Conservation Measures'!$L$23:$L$33,\"Showerhead\")+SUMIFS('2. Conservation Measures'!AS64:AS83,'2. Conservation Measures'!$L$64:$L$83,\"Showerhead\")","v":0},{"$f":"SUMIFS('2. Conservation Measures'!AT23:AT33,'2. Conservation Measures'!$L$23:$L$33,\"Showerhead\")+SUMIFS('2. Conservation Measures'!AT64:AT83,'2. Conservation Measures'!$L$64:$L$83,\"Showerhead\")","v":0},{"$f":"SUMIFS('2. Conservation Measures'!AU23:AU33,'2. Conservation Measures'!$L$23:$L$33,\"Showerhead\")+SUMIFS('2. Conservation Measures'!AU64:AU83,'2. Conservation Measures'!$L$64:$L$83,\"Showerhead\")","v":0},{"$f":"SUMIFS('2. Conservation Measures'!AV23:AV33,'2. Conservation Measures'!$L$23:$L$33,\"Showerhead\")+SUMIFS('2. Conservation Measures'!AV64:AV83,'2. Conservation Measures'!$L$64:$L$83,\"Showerhead\")","v":0},{"$f":"SUMIFS('2. Conservation Measures'!AW23:AW33,'2. Conservation Measures'!$L$23:$L$33,\"Showerhead\")+SUMIFS('2. Conservation Measures'!AW64:AW83,'2. Conservation Measures'!$L$64:$L$83,\"Showerhead\")","v":0},{"$f":"SUMIFS('2. Conservation Measures'!AX23:AX33,'2. Conservation Measures'!$L$23:$L$33,\"Showerhead\")+SUMIFS('2. Conservation Measures'!AX64:AX83,'2. Conservation Measures'!$L$64:$L$83,\"Showerhead\")","v":0},{"$f":"SUMIFS('2. Conservation Measures'!AY23:AY33,'2. Conservation Measures'!$L$23:$L$33,\"Showerhead\")+SUMIFS('2. Conservation Measures'!AY64:AY83,'2. Conservation Measures'!$L$64:$L$83,\"Showerhead\")","v":0},{"$f":"SUMIFS('2. Conservation Measures'!AZ23:AZ33,'2. Conservation Measures'!$L$23:$L$33,\"Showerhead\")+SUMIFS('2. Conservation Measures'!AZ64:AZ83,'2. Conservation Measures'!$L$64:$L$83,\"Showerhead\")","v":0},{"$f":"SUMIFS('2. Conservation Measures'!BA23:BA33,'2. Conservation Measures'!$L$23:$L$33,\"Showerhead\")+SUMIFS('2. Conservation Measures'!BA64:BA83,'2. Conservation Measures'!$L$64:$L$83,\"Showerhead\")","v":0},{"$f":"SUMIFS('2. Conservation Measures'!BB23:BB33,'2. Conservation Measures'!$L$23:$L$33,\"Showerhead\")+SUMIFS('2. Conservation Measures'!BB64:BB83,'2. Conservation Measures'!$L$64:$L$83,\"Showerhead\")","v":0},{"$f":"SUMIFS('2. Conservation Measures'!BC23:BC33,'2. Conservation Measures'!$L$23:$L$33,\"Showerhead\")+SUMIFS('2. Conservation Measures'!BC64:BC83,'2. Conservation Measures'!$L$64:$L$83,\"Showerhead\")","v":0},{"$f":"SUMIFS('2. Conservation Measures'!BD23:BD33,'2. Conservation Measures'!$L$23:$L$33,\"Showerhead\")+SUMIFS('2. Conservation Measures'!BD64:BD83,'2. Conservation Measures'!$L$64:$L$83,\"Showerhead\")","v":0},{"$f":"SUMIFS('2. Conservation Measures'!BE23:BE33,'2. Conservation Measures'!$L$23:$L$33,\"Showerhead\")+SUMIFS('2. Conservation Measures'!BE64:BE83,'2. Conservation Measures'!$L$64:$L$83,\"Showerhead\")","v":0},{"$f":"SUMIFS('2. Conservation Measures'!BF23:BF33,'2. Conservation Measures'!$L$23:$L$33,\"Showerhead\")+SUMIFS('2. Conservation Measures'!BF64:BF83,'2. Conservation Measures'!$L$64:$L$83,\"Showerhead\")","v":0},{"$f":"SUMIFS('2. Conservation Measures'!BG23:BG33,'2. Conservation Measures'!$L$23:$L$33,\"Showerhead\")+SUMIFS('2. Conservation Measures'!BG64:BG83,'2. Conservation Measures'!$L$64:$L$83,\"Showerhead\")","v":0},{"$f":"SUMIFS('2. Conservation Measures'!BH23:BH33,'2. Conservation Measures'!$L$23:$L$33,\"Showerhead\")+SUMIFS('2. Conservation Measures'!BH64:BH83,'2. Conservation Measures'!$L$64:$L$83,\"Showerhead\")","v":0},{"$f":"SUMIFS('2. Conservation Measures'!BI23:BI33,'2. Conservation Measures'!$L$23:$L$33,\"Showerhead\")+SUMIFS('2. Conservation Measures'!BI64:BI83,'2. Conservation Measures'!$L$64:$L$83,\"Showerhead\")","v":0},{"$f":"SUMIFS('2. Conservation Measures'!BJ23:BJ33,'2. Conservation Measures'!$L$23:$L$33,\"Showerhead\")+SUMIFS('2. Conservation Measures'!BJ64:BJ83,'2. Conservation Measures'!$L$64:$L$83,\"Showerhead\")","v":0},{"$f":"SUMIFS('2. Conservation Measures'!BK23:BK33,'2. Conservation Measures'!$L$23:$L$33,\"Showerhead\")+SUMIFS('2. Conservation Measures'!BK64:BK83,'2. Conservation Measures'!$L$64:$L$83,\"Showerhead\")","v":0},{"$f":"SUMIFS('2. Conservation Measures'!BL23:BL33,'2. Conservation Measures'!$L$23:$L$33,\"Showerhead\")+SUMIFS('2. Conservation Measures'!BL64:BL83,'2. Conservation Measures'!$L$64:$L$83,\"Showerhead\")","v":0},{"$f":"SUMIFS('2. Conservation Measures'!BM23:BM33,'2. Conservation Measures'!$L$23:$L$33,\"Showerhead\")+SUMIFS('2. Conservation Measures'!BM64:BM83,'2. Conservation Measures'!$L$64:$L$83,\"Showerhead\")","v":0},{"$f":"SUMIFS('2. Conservation Measures'!BN23:BN33,'2. Conservation Measures'!$L$23:$L$33,\"Showerhead\")+SUMIFS('2. Conservation Measures'!BN64:BN83,'2. Conservation Measures'!$L$64:$L$83,\"Showerhead\")","v":0},{"$f":"SUMIFS('2. Conservation Measures'!BO23:BO33,'2. Conservation Measures'!$L$23:$L$33,\"Showerhead\")+SUMIFS('2. Conservation Measures'!BO64:BO83,'2. Conservation Measures'!$L$64:$L$83,\"Showerhead\")","v":0},{"$f":"SUMIFS('2. Conservation Measures'!BP23:BP33,'2. Conservation Measures'!$L$23:$L$33,\"Showerhead\")+SUMIFS('2. Conservation Measures'!BP64:BP83,'2. Conservation Measures'!$L$64:$L$83,\"Showerhead\")","v":0},{"$f":"SUMIFS('2. Conservation Measures'!BQ23:BQ33,'2. Conservation Measures'!$L$23:$L$33,\"Showerhead\")+SUMIFS('2. Conservation Measures'!BQ64:BQ83,'2. Conservation Measures'!$L$64:$L$83,\"Showerhead\")","v":0},{"$f":"SUMIFS('2. Conservation Measures'!BR23:BR33,'2. Conservation Measures'!$L$23:$L$33,\"Showerhead\")+SUMIFS('2. Conservation Measures'!BR64:BR83,'2. Conservation Measures'!$L$64:$L$83,\"Showerhead\")","v":0},{"$f":"SUMIFS('2. Conservation Measures'!BS23:BS33,'2. Conservation Measures'!$L$23:$L$33,\"Showerhead\")+SUMIFS('2. Conservation Measures'!BS64:BS83,'2. Conservation Measures'!$L$64:$L$83,\"Showerhead\")","v":0},{"$f":"SUMIFS('2. Conservation Measures'!BT23:BT33,'2. Conservation Measures'!$L$23:$L$33,\"Showerhead\")+SUMIFS('2. Conservation Measures'!BT64:BT83,'2. Conservation Measures'!$L$64:$L$83,\"Showerhead\")","v":0},{"$f":"SUMIFS('2. Conservation Measures'!BU23:BU33,'2. Conservation Measures'!$L$23:$L$33,\"Showerhead\")+SUMIFS('2. Conservation Measures'!BU64:BU83,'2. Conservation Measures'!$L$64:$L$83,\"Showerhead\")","v":0},{"$f":"SUMIFS('2. Conservation Measures'!BV23:BV33,'2. Conservation Measures'!$L$23:$L$33,\"Showerhead\")+SUMIFS('2. Conservation Measures'!BV64:BV83,'2. Conservation Measures'!$L$64:$L$83,\"Showerhead\")","v":0},{"$f":"SUMIFS('2. Conservation Measures'!BW23:BW33,'2. Conservation Measures'!$L$23:$L$33,\"Showerhead\")+SUMIFS('2. Conservation Measures'!BW64:BW83,'2. Conservation Measures'!$L$64:$L$83,\"Showerhead\")","v":0},{"$f":"SUMIFS('2. Conservation Measures'!BX23:BX33,'2. Conservation Measures'!$L$23:$L$33,\"Showerhead\")+SUMIFS('2. Conservation Measures'!BX64:BX83,'2. Conservation Measures'!$L$64:$L$83,\"Showerhead\")","v":0},{"$f":"SUMIFS('2. Conservation Measures'!BY23:BY33,'2. Conservation Measures'!$L$23:$L$33,\"Showerhead\")+SUMIFS('2. Conservation Measures'!BY64:BY83,'2. Conservation Measures'!$L$64:$L$83,\"Showerhead\")","v":0},{"$f":"SUMIFS('2. Conservation Measures'!BZ23:BZ33,'2. Conservation Measures'!$L$23:$L$33,\"Showerhead\")+SUMIFS('2. Conservation Measures'!BZ64:BZ83,'2. Conservation Measures'!$L$64:$L$83,\"Showerhead\")","v":0},{"$f":"SUMIFS('2. Conservation Measures'!CA23:CA33,'2. Conservation Measures'!$L$23:$L$33,\"Showerhead\")+SUMIFS('2. Conservation Measures'!CA64:CA83,'2. Conservation Measures'!$L$64:$L$83,\"Showerhead\")","v":0},{"$f":"SUMIFS('2. Conservation Measures'!CB23:CB33,'2. Conservation Measures'!$L$23:$L$33,\"Showerhead\")+SUMIFS('2. Conservation Measures'!CB64:CB83,'2. Conservation Measures'!$L$64:$L$83,\"Showerhead\")","v":0},{"$f":"SUMIFS('2. Conservation Measures'!CC23:CC33,'2. Conservation Measures'!$L$23:$L$33,\"Showerhead\")+SUMIFS('2. Conservation Measures'!CC64:CC83,'2. Conservation Measures'!$L$64:$L$83,\"Showerhead\")","v":0},{"$f":"SUMIFS('2. Conservation Measures'!CD23:CD33,'2. Conservation Measures'!$L$23:$L$33,\"Showerhead\")+SUMIFS('2. Conservation Measures'!CD64:CD83,'2. Conservation Measures'!$L$64:$L$83,\"Showerhead\")","v":0},{"$f":"SUMIFS('2. Conservation Measures'!CE23:CE33,'2. Conservation Measures'!$L$23:$L$33,\"Showerhead\")+SUMIFS('2. Conservation Measures'!CE64:CE83,'2. Conservation Measures'!$L$64:$L$83,\"Showerhead\")","v":0},{"$f":"SUMIFS('2. Conservation Measures'!CF23:CF33,'2. Conservation Measures'!$L$23:$L$33,\"Showerhead\")+SUMIFS('2. Conservation Measures'!CF64:CF83,'2. Conservation Measures'!$L$64:$L$83,\"Showerhead\")","v":0},{"$f":"SUMIFS('2. Conservation Measures'!CG23:CG33,'2. Conservation Measures'!$L$23:$L$33,\"Showerhead\")+SUMIFS('2. Conservation Measures'!CG64:CG83,'2. Conservation Measures'!$L$64:$L$83,\"Showerhead\")","v":0},{"$f":"SUMIFS('2. Conservation Measures'!CH23:CH33,'2. Conservation Measures'!$L$23:$L$33,\"Showerhead\")+SUMIFS('2. Conservation Measures'!CH64:CH83,'2. Conservation Measures'!$L$64:$L$83,\"Showerhead\")","v":0},{"$f":"SUMIFS('2. Conservation Measures'!CI23:CI33,'2. Conservation Measures'!$L$23:$L$33,\"Showerhead\")+SUMIFS('2. Conservation Measures'!CI64:CI83,'2. Conservation Measures'!$L$64:$L$83,\"Showerhead\")","v":0},{"$f":"SUMIFS('2. Conservation Measures'!CJ23:CJ33,'2. Conservation Measures'!$L$23:$L$33,\"Showerhead\")+SUMIFS('2. Conservation Measures'!CJ64:CJ83,'2. Conservation Measures'!$L$64:$L$83,\"Showerhead\")","v":0},{"$f":"SUMIFS('2. Conservation Measures'!CK23:CK33,'2. Conservation Measures'!$L$23:$L$33,\"Showerhead\")+SUMIFS('2. Conservation Measures'!CK64:CK83,'2. Conservation Measures'!$L$64:$L$83,\"Showerhead\")","v":0},{"$f":"SUMIFS('2. Conservation Measures'!CL23:CL33,'2. Conservation Measures'!$L$23:$L$33,\"Showerhead\")+SUMIFS('2. Conservation Measures'!CL64:CL83,'2. Conservation Measures'!$L$64:$L$83,\"Showerhead\")","v":0},{"$f":"SUMIFS('2. Conservation Measures'!CM23:CM33,'2. Conservation Measures'!$L$23:$L$33,\"Showerhead\")+SUMIFS('2. Conservation Measures'!CM64:CM83,'2. Conservation Measures'!$L$64:$L$83,\"Showerhead\")","v":0}]
[null,"Ending Inventory",null,null,{"$f":"'Plumbing Fixture Inventory'!N45","v":0},{"$f":"F95-F96-F97","v":0},0,0,0,0,0,0,0,0,0,0,0,0,0,0,0,0,0,0,0,0,0,0,0,0,0,0,0,0,0,0,0,{"$f":"AL95-AL96-AL97","v":0},0,0,0,0,0,0,0,0,0,0,0,0,0,0,0,0,0,0]
[]
[null,"Multi Family Shwrheads",null,null,2019,2020,2021,2022,2023,2024,2025,2026,2027,2028,2029,2030,2031,2032,2033,2034,2035,2036,2037,2038,2039,2040,2041,2042,2043,2044,2045,2046,2047,2048,2049,2050,2051,2052,2053,2054,2055,2056,2057,2058,2059,2060,2061,2062,2063,2064,2065,2066,2067,2068,2069,2070]
[null,"Starting Inventory",null,null,null,{"$f":"E104","v":0},0,0,0,0,0,0,0,0,0,0,0,0,0,0,0,0,0,0,0,0,0,0,0,0,0,0,0,0,0,0,0,{"$f":"AK104","v":0},0,0,0,0,0,0,0,0,0,0,0,0,0,0,0,0,0,0]
[null,"Natural Replacement",null,null,null,{"$f":"F101*0.067","v":0},0,0,0,0,0,0,0,0,0,0,0,0,0,0,0,0,0,0,0,0,0,0,0,0,0,0,0,0,0,0,0,{"$f":"AL101*0.067","v":0},0,0,0,0,0,0,0,0,0,0,0,0,0,0,0,0,0,0]
[null,"Program Replacement",null,null,null,{"$f":"SUMIFS('2. Conservation Measures'!AO36:AO44,'2. Conservation Measures'!$L$36:$L$44,\"Showerhead\")+SUMIFS('2. Conservation Measures'!AO86:AO105,'2. Conservation Measures'!$L$86:$L$105,\"Showerhead\")","v":0},{"$f":"SUMIFS('2. Conservation Measures'!AP36:AP44,'2. Conservation Measures'!$L$36:$L$44,\"Showerhead\")+SUMIFS('2. Conservation Measures'!AP86:AP105,'2. Conservation Measures'!$L$86:$L$105,\"Showerhead\")","v":0},{"$f":"SUMIFS('2. Conservation Measures'!AQ36:AQ44,'2. Conservation Measures'!$L$36:$L$44,\"Showerhead\")+SUMIFS('2. Conservation Measures'!AQ86:AQ105,'2. Conservation Measures'!$L$86:$L$105,\"Showerhead\")","v":0},{"$f":"SUMIFS('2. Conservation Measures'!AR36:AR44,'2. Conservation Measures'!$L$36:$L$44,\"Showerhead\")+SUMIFS('2. Conservation Measures'!AR86:AR105,'2. Conservation Measures'!$L$86:$L$105,\"Showerhead\")","v":0},{"$f":"SUMIFS('2. Conservation Measures'!AS36:AS44,'2. Conservation Measures'!$L$36:$L$44,\"Showerhead\")+SUMIFS('2. Conservation Measures'!AS86:AS105,'2. Conservation Measures'!$L$86:$L$105,\"Showerhead\")","v":0},{"$f":"SUMIFS('2. Conservation Measures'!AT36:AT44,'2. Conservation Measures'!$L$36:$L$44,\"Showerhead\")+SUMIFS('2. Conservation Measures'!AT86:AT105,'2. Conservation Measures'!$L$86:$L$105,\"Showerhead\")","v":0},{"$f":"SUMIFS('2. Conservation Measures'!AU36:AU44,'2. Conservation Measures'!$L$36:$L$44,\"Showerhead\")+SUMIFS('2. Conservation Measures'!AU86:AU105,'2. Conservation Measures'!$L$86:$L$105,\"Showerhead\")","v":0},{"$f":"SUMIFS('2. Conservation Measures'!AV36:AV44,'2. Conservation Measures'!$L$36:$L$44,\"Showerhead\")+SUMIFS('2. Conservation Measures'!AV86:AV105,'2. Conservation Measures'!$L$86:$L$105,\"Showerhead\")","v":0},{"$f":"SUMIFS('2. Conservation Measures'!AW36:AW44,'2. Conservation Measures'!$L$36:$L$44,\"Showerhead\")+SUMIFS('2. Conservation Measures'!AW86:AW105,'2. Conservation Measures'!$L$86:$L$105,\"Showerhead\")","v":0},{"$f":"SUMIFS('2. Conservation Measures'!AX36:AX44,'2. Conservation Measures'!$L$36:$L$44,\"Showerhead\")+SUMIFS('2. Conservation Measures'!AX86:AX105,'2. Conservation Measures'!$L$86:$L$105,\"Showerhead\")","v":0},{"$f":"SUMIFS('2. Conservation Measures'!AY36:AY44,'2. Conservation Measures'!$L$36:$L$44,\"Showerhead\")+SUMIFS('2. Conservation Measures'!AY86:AY105,'2. Conservation Measures'!$L$86:$L$105,\"Showerhead\")","v":0},{"$f":"SUMIFS('2. Conservation Measures'!AZ36:AZ44,'2. Conservation Measures'!$L$36:$L$44,\"Showerhead\")+SUMIFS('2. Conservation Measures'!AZ86:AZ105,'2. Conservation Measures'!$L$86:$L$105,\"Showerhead\")","v":0},{"$f":"SUMIFS('2. Conservation Measures'!BA36:BA44,'2. Conservation Measures'!$L$36:$L$44,\"Showerhead\")+SUMIFS('2. Conservation Measures'!BA86:BA105,'2. Conservation Measures'!$L$86:$L$105,\"Showerhead\")","v":0},{"$f":"SUMIFS('2. Conservation Measures'!BB36:BB44,'2. Conservation Measures'!$L$36:$L$44,\"Showerhead\")+SUMIFS('2. Conservation Measures'!BB86:BB105,'2. Conservation Measures'!$L$86:$L$105,\"Showerhead\")","v":0},{"$f":"SUMIFS('2. Conservation Measures'!BC36:BC44,'2. Conservation Measures'!$L$36:$L$44,\"Showerhead\")+SUMIFS('2. Conservation Measures'!BC86:BC105,'2. Conservation Measures'!$L$86:$L$105,\"Showerhead\")","v":0},{"$f":"SUMIFS('2. Conservation Measures'!BD36:BD44,'2. Conservation Measures'!$L$36:$L$44,\"Showerhead\")+SUMIFS('2. Conservation Measures'!BD86:BD105,'2. Conservation Measures'!$L$86:$L$105,\"Showerhead\")","v":0},{"$f":"SUMIFS('2. Conservation Measures'!BE36:BE44,'2. Conservation Measures'!$L$36:$L$44,\"Showerhead\")+SUMIFS('2. Conservation Measures'!BE86:BE105,'2. Conservation Measures'!$L$86:$L$105,\"Showerhead\")","v":0},{"$f":"SUMIFS('2. Conservation Measures'!BF36:BF44,'2. Conservation Measures'!$L$36:$L$44,\"Showerhead\")+SUMIFS('2. Conservation Measures'!BF86:BF105,'2. Conservation Measures'!$L$86:$L$105,\"Showerhead\")","v":0},{"$f":"SUMIFS('2. Conservation Measures'!BG36:BG44,'2. Conservation Measures'!$L$36:$L$44,\"Showerhead\")+SUMIFS('2. Conservation Measures'!BG86:BG105,'2. Conservation Measures'!$L$86:$L$105,\"Showerhead\")","v":0},{"$f":"SUMIFS('2. Conservation Measures'!BH36:BH44,'2. Conservation Measures'!$L$36:$L$44,\"Showerhead\")+SUMIFS('2. Conservation Measures'!BH86:BH105,'2. Conservation Measures'!$L$86:$L$105,\"Showerhead\")","v":0},{"$f":"SUMIFS('2. Conservation Measures'!BI36:BI44,'2. Conservation Measures'!$L$36:$L$44,\"Showerhead\")+SUMIFS('2. Conservation Measures'!BI86:BI105,'2. Conservation Measures'!$L$86:$L$105,\"Showerhead\")","v":0},{"$f":"SUMIFS('2. Conservation Measures'!BJ36:BJ44,'2. Conservation Measures'!$L$36:$L$44,\"Showerhead\")+SUMIFS('2. Conservation Measures'!BJ86:BJ105,'2. Conservation Measures'!$L$86:$L$105,\"Showerhead\")","v":0},{"$f":"SUMIFS('2. Conservation Measures'!BK36:BK44,'2. Conservation Measures'!$L$36:$L$44,\"Showerhead\")+SUMIFS('2. Conservation Measures'!BK86:BK105,'2. Conservation Measures'!$L$86:$L$105,\"Showerhead\")","v":0},{"$f":"SUMIFS('2. Conservation Measures'!BL36:BL44,'2. Conservation Measures'!$L$36:$L$44,\"Showerhead\")+SUMIFS('2. Conservation Measures'!BL86:BL105,'2. Conservation Measures'!$L$86:$L$105,\"Showerhead\")","v":0},{"$f":"SUMIFS('2. Conservation Measures'!BM36:BM44,'2. Conservation Measures'!$L$36:$L$44,\"Showerhead\")+SUMIFS('2. Conservation Measures'!BM86:BM105,'2. Conservation Measures'!$L$86:$L$105,\"Showerhead\")","v":0},{"$f":"SUMIFS('2. Conservation Measures'!BN36:BN44,'2. Conservation Measures'!$L$36:$L$44,\"Showerhead\")+SUMIFS('2. Conservation Measures'!BN86:BN105,'2. Conservation Measures'!$L$86:$L$105,\"Showerhead\")","v":0},{"$f":"SUMIFS('2. Conservation Measures'!BO36:BO44,'2. Conservation Measures'!$L$36:$L$44,\"Showerhead\")+SUMIFS('2. Conservation Measures'!BO86:BO105,'2. Conservation Measures'!$L$86:$L$105,\"Showerhead\")","v":0},{"$f":"SUMIFS('2. Conservation Measures'!BP36:BP44,'2. Conservation Measures'!$L$36:$L$44,\"Showerhead\")+SUMIFS('2. Conservation Measures'!BP86:BP105,'2. Conservation Measures'!$L$86:$L$105,\"Showerhead\")","v":0},{"$f":"SUMIFS('2. Conservation Measures'!BQ36:BQ44,'2. Conservation Measures'!$L$36:$L$44,\"Showerhead\")+SUMIFS('2. Conservation Measures'!BQ86:BQ105,'2. Conservation Measures'!$L$86:$L$105,\"Showerhead\")","v":0},{"$f":"SUMIFS('2. Conservation Measures'!BR36:BR44,'2. Conservation Measures'!$L$36:$L$44,\"Showerhead\")+SUMIFS('2. Conservation Measures'!BR86:BR105,'2. Conservation Measures'!$L$86:$L$105,\"Showerhead\")","v":0},{"$f":"SUMIFS('2. Conservation Measures'!BS36:BS44,'2. Conservation Measures'!$L$36:$L$44,\"Showerhead\")+SUMIFS('2. Conservation Measures'!BS86:BS105,'2. Conservation Measures'!$L$86:$L$105,\"Showerhead\")","v":0},{"$f":"SUMIFS('2. Conservation Measures'!BT36:BT44,'2. Conservation Measures'!$L$36:$L$44,\"Showerhead\")+SUMIFS('2. Conservation Measures'!BT86:BT105,'2. Conservation Measures'!$L$86:$L$105,\"Showerhead\")","v":0},{"$f":"SUMIFS('2. Conservation Measures'!BU36:BU44,'2. Conservation Measures'!$L$36:$L$44,\"Showerhead\")+SUMIFS('2. Conservation Measures'!BU86:BU105,'2. Conservation Measures'!$L$86:$L$105,\"Showerhead\")","v":0},{"$f":"SUMIFS('2. Conservation Measures'!BV36:BV44,'2. Conservation Measures'!$L$36:$L$44,\"Showerhead\")+SUMIFS('2. Conservation Measures'!BV86:BV105,'2. Conservation Measures'!$L$86:$L$105,\"Showerhead\")","v":0},{"$f":"SUMIFS('2. Conservation Measures'!BW36:BW44,'2. Conservation Measures'!$L$36:$L$44,\"Showerhead\")+SUMIFS('2. Conservation Measures'!BW86:BW105,'2. Conservation Measures'!$L$86:$L$105,\"Showerhead\")","v":0},{"$f":"SUMIFS('2. Conservation Measures'!BX36:BX44,'2. Conservation Measures'!$L$36:$L$44,\"Showerhead\")+SUMIFS('2. Conservation Measures'!BX86:BX105,'2. Conservation Measures'!$L$86:$L$105,\"Showerhead\")","v":0},{"$f":"SUMIFS('2. Conservation Measures'!BY36:BY44,'2. Conservation Measures'!$L$36:$L$44,\"Showerhead\")+SUMIFS('2. Conservation Measures'!BY86:BY105,'2. Conservation Measures'!$L$86:$L$105,\"Showerhead\")","v":0},{"$f":"SUMIFS('2. Conservation Measures'!BZ36:BZ44,'2. Conservation Measures'!$L$36:$L$44,\"Showerhead\")+SUMIFS('2. Conservation Measures'!BZ86:BZ105,'2. Conservation Measures'!$L$86:$L$105,\"Showerhead\")","v":0},{"$f":"SUMIFS('2. Conservation Measures'!CA36:CA44,'2. Conservation Measures'!$L$36:$L$44,\"Showerhead\")+SUMIFS('2. Conservation Measures'!CA86:CA105,'2. Conservation Measures'!$L$86:$L$105,\"Showerhead\")","v":0},{"$f":"SUMIFS('2. Conservation Measures'!CB36:CB44,'2. Conservation Measures'!$L$36:$L$44,\"Showerhead\")+SUMIFS('2. Conservation Measures'!CB86:CB105,'2. Conservation Measures'!$L$86:$L$105,\"Showerhead\")","v":0},{"$f":"SUMIFS('2. Conservation Measures'!CC36:CC44,'2. Conservation Measures'!$L$36:$L$44,\"Showerhead\")+SUMIFS('2. Conservation Measures'!CC86:CC105,'2. Conservation Measures'!$L$86:$L$105,\"Showerhead\")","v":0},{"$f":"SUMIFS('2. Conservation Measures'!CD36:CD44,'2. Conservation Measures'!$L$36:$L$44,\"Showerhead\")+SUMIFS('2. Conservation Measures'!CD86:CD105,'2. Conservation Measures'!$L$86:$L$105,\"Showerhead\")","v":0},{"$f":"SUMIFS('2. Conservation Measures'!CE36:CE44,'2. Conservation Measures'!$L$36:$L$44,\"Showerhead\")+SUMIFS('2. Conservation Measures'!CE86:CE105,'2. Conservation Measures'!$L$86:$L$105,\"Showerhead\")","v":0},{"$f":"SUMIFS('2. Conservation Measures'!CF36:CF44,'2. Conservation Measures'!$L$36:$L$44,\"Showerhead\")+SUMIFS('2. Conservation Measures'!CF86:CF105,'2. Conservation Measures'!$L$86:$L$105,\"Showerhead\")","v":0},{"$f":"SUMIFS('2. Conservation Measures'!CG36:CG44,'2. Conservation Measures'!$L$36:$L$44,\"Showerhead\")+SUMIFS('2. Conservation Measures'!CG86:CG105,'2. Conservation Measures'!$L$86:$L$105,\"Showerhead\")","v":0},{"$f":"SUMIFS('2. Conservation Measures'!CH36:CH44,'2. Conservation Measures'!$L$36:$L$44,\"Showerhead\")+SUMIFS('2. Conservation Measures'!CH86:CH105,'2. Conservation Measures'!$L$86:$L$105,\"Showerhead\")","v":0},{"$f":"SUMIFS('2. Conservation Measures'!CI36:CI44,'2. Conservation Measures'!$L$36:$L$44,\"Showerhead\")+SUMIFS('2. Conservation Measures'!CI86:CI105,'2. Conservation Measures'!$L$86:$L$105,\"Showerhead\")","v":0},{"$f":"SUMIFS('2. Conservation Measures'!CJ36:CJ44,'2. Conservation Measures'!$L$36:$L$44,\"Showerhead\")+SUMIFS('2. Conservation Measures'!CJ86:CJ105,'2. Conservation Measures'!$L$86:$L$105,\"Showerhead\")","v":0},{"$f":"SUMIFS('2. Conservation Measures'!CK36:CK44,'2. Conservation Measures'!$L$36:$L$44,\"Showerhead\")+SUMIFS('2. Conservation Measures'!CK86:CK105,'2. Conservation Measures'!$L$86:$L$105,\"Showerhead\")","v":0},{"$f":"SUMIFS('2. Conservation Measures'!CL36:CL44,'2. Conservation Measures'!$L$36:$L$44,\"Showerhead\")+SUMIFS('2. Conservation Measures'!CL86:CL105,'2. Conservation Measures'!$L$86:$L$105,\"Showerhead\")","v":0},{"$f":"SUMIFS('2. Conservation Measures'!CM36:CM44,'2. Conservation Measures'!$L$36:$L$44,\"Showerhead\")+SUMIFS('2. Conservation Measures'!CM86:CM105,'2. Conservation Measures'!$L$86:$L$105,\"Showerhead\")","v":0}]
[null,"Ending Inventory",null,null,{"$f":"'Plumbing Fixture Inventory'!N52","v":0},{"$f":"F101-F102-F103","v":0},0,0,0,0,0,0,0,0,0,0,0,0,0,0,0,0,0,0,0,0,0,0,0,0,0,0,0,0,0,0,0,{"$f":"AL101-AL102-AL103","v":0},0,0,0,0,0,0,0,0,0,0,0,0,0,0,0,0,0,0]
[]
[]
[null,"Single Family Washers",null,null,2019,2020,2021,2022,2023,2024,2025,2026,2027,2028,2029,2030,2031,2032,2033,2034,2035,2036,2037,2038,2039,2040,2041,2042,2043,2044,2045,2046,2047,2048,2049,2050,2051,2052,2053,2054,2055,2056,2057,2058,2059,2060,2061,2062,2063,2064,2065,2066,2067,2068,2069,2070]
[null,"Starting Inventory",null,null,null,{"$f":"E111","v":0},0,0,0,0,0,0,0,0,0,0,0,0,0,0,0,0,0,0,0,0,0,0,0,0,0,0,0,0,0,0,0,{"$f":"AK111","v":0},0,0,0,0,0,0,0,0,0,0,0,0,0,0,0,0,0,0]
[null,"Natural Replacement",null,null,null,{"$f":"F108*0.071","v":0},0,0,0,0,0,0,0,0,0,0,0,0,0,0,0,0,0,0,0,0,0,0,0,0,0,0,0,0,0,0,0,{"$f":"AL108*0.071","v":0},0,0,0,0,0,0,0,0,0,0,0,0,0,0,0,0,0,0]
[null,"Program Replacement",null,null,null,{"$f":"SUMIFS('2. Conservation Measures'!AO23:AO33,'2. Conservation Measures'!$L$23:$L$33,\"Clothes Washer\")+SUMIFS('2. Conservation Measures'!AO64:AO83,'2. Conservation Measures'!$L$64:$L$83,\"Clothes Washer\")","v":0},{"$f":"SUMIFS('2. Conservation Measures'!AP23:AP33,'2. Conservation Measures'!$L$23:$L$33,\"Clothes Washer\")+SUMIFS('2. Conservation Measures'!AP64:AP83,'2. Conservation Measures'!$L$64:$L$83,\"Clothes Washer\")","v":0},{"$f":"SUMIFS('2. Conservation Measures'!AQ23:AQ33,'2. Conservation Measures'!$L$23:$L$33,\"Clothes Washer\")+SUMIFS('2. Conservation Measures'!AQ64:AQ83,'2. Conservation Measures'!$L$64:$L$83,\"Clothes Washer\")","v":0},{"$f":"SUMIFS('2. Conservation Measures'!AR23:AR33,'2. Conservation Measures'!$L$23:$L$33,\"Clothes Washer\")+SUMIFS('2. Conservation Measures'!AR64:AR83,'2. Conservation Measures'!$L$64:$L$83,\"Clothes Washer\")","v":0},{"$f":"SUMIFS('2. Conservation Measures'!AS23:AS33,'2. Conservation Measures'!$L$23:$L$33,\"Clothes Washer\")+SUMIFS('2. Conservation Measures'!AS64:AS83,'2. Conservation Measures'!$L$64:$L$83,\"Clothes Washer\")","v":0},{"$f":"SUMIFS('2. Conservation Measures'!AT23:AT33,'2. Conservation Measures'!$L$23:$L$33,\"Clothes Washer\")+SUMIFS('2. Conservation Measures'!AT64:AT83,'2. Conservation Measures'!$L$64:$L$83,\"Clothes Washer\")","v":0},{"$f":"SUMIFS('2. Conservation Measures'!AU23:AU33,'2. Conservation Measures'!$L$23:$L$33,\"Clothes Washer\")+SUMIFS('2. Conservation Measures'!AU64:AU83,'2. Conservation Measures'!$L$64:$L$83,\"Clothes Washer\")","v":0},{"$f":"SUMIFS('2. Conservation Measures'!AV23:AV33,'2. Conservation Measures'!$L$23:$L$33,\"Clothes Washer\")+SUMIFS('2. Conservation Measures'!AV64:AV83,'2. Conservation Measures'!$L$64:$L$83,\"Clothes Washer\")","v":0},{"$f":"SUMIFS('2. Conservation Measures'!AW23:AW33,'2. Conservation Measures'!$L$23:$L$33,\"Clothes Washer\")+SUMIFS('2. Conservation Measures'!AW64:AW83,'2. Conservation Measures'!$L$64:$L$83,\"Clothes Washer\")","v":0},{"$f":"SUMIFS('2. Conservation Measures'!AX23:AX33,'2. Conservation Measures'!$L$23:$L$33,\"Clothes Washer\")+SUMIFS('2. Conservation Measures'!AX64:AX83,'2. Conservation Measures'!$L$64:$L$83,\"Clothes Washer\")","v":0},{"$f":"SUMIFS('2. Conservation Measures'!AY23:AY33,'2. Conservation Measures'!$L$23:$L$33,\"Clothes Washer\")+SUMIFS('2. Conservation Measures'!AY64:AY83,'2. Conservation Measures'!$L$64:$L$83,\"Clothes Washer\")","v":0},{"$f":"SUMIFS('2. Conservation Measures'!AZ23:AZ33,'2. Conservation Measures'!$L$23:$L$33,\"Clothes Washer\")+SUMIFS('2. Conservation Measures'!AZ64:AZ83,'2. Conservation Measures'!$L$64:$L$83,\"Clothes Washer\")","v":0},{"$f":"SUMIFS('2. Conservation Measures'!BA23:BA33,'2. Conservation Measures'!$L$23:$L$33,\"Clothes Washer\")+SUMIFS('2. Conservation Measures'!BA64:BA83,'2. Conservation Measures'!$L$64:$L$83,\"Clothes Washer\")","v":0},{"$f":"SUMIFS('2. Conservation Measures'!BB23:BB33,'2. Conservation Measures'!$L$23:$L$33,\"Clothes Washer\")+SUMIFS('2. Conservation Measures'!BB64:BB83,'2. Conservation Measures'!$L$64:$L$83,\"Clothes Washer\")","v":0},{"$f":"SUMIFS('2. Conservation Measures'!BC23:BC33,'2. Conservation Measures'!$L$23:$L$33,\"Clothes Washer\")+SUMIFS('2. Conservation Measures'!BC64:BC83,'2. Conservation Measures'!$L$64:$L$83,\"Clothes Washer\")","v":0},{"$f":"SUMIFS('2. Conservation Measures'!BD23:BD33,'2. Conservation Measures'!$L$23:$L$33,\"Clothes Washer\")+SUMIFS('2. Conservation Measures'!BD64:BD83,'2. Conservation Measures'!$L$64:$L$83,\"Clothes Washer\")","v":0},{"$f":"SUMIFS('2. Conservation Measures'!BE23:BE33,'2. Conservation Measures'!$L$23:$L$33,\"Clothes Washer\")+SUMIFS('2. Conservation Measures'!BE64:BE83,'2. Conservation Measures'!$L$64:$L$83,\"Clothes Washer\")","v":0},{"$f":"SUMIFS('2. Conservation Measures'!BF23:BF33,'2. Conservation Measures'!$L$23:$L$33,\"Clothes Washer\")+SUMIFS('2. Conservation Measures'!BF64:BF83,'2. Conservation Measures'!$L$64:$L$83,\"Clothes Washer\")","v":0},{"$f":"SUMIFS('2. Conservation Measures'!BG23:BG33,'2. Conservation Measures'!$L$23:$L$33,\"Clothes Washer\")+SUMIFS('2. Conservation Measures'!BG64:BG83,'2. Conservation Measures'!$L$64:$L$83,\"Clothes Washer\")","v":0},{"$f":"SUMIFS('2. Conservation Measures'!BH23:BH33,'2. Conservation Measures'!$L$23:$L$33,\"Clothes Washer\")+SUMIFS('2. Conservation Measures'!BH64:BH83,'2. Conservation Measures'!$L$64:$L$83,\"Clothes Washer\")","v":0},{"$f":"SUMIFS('2. Conservation Measures'!BI23:BI33,'2. Conservation Measures'!$L$23:$L$33,\"Clothes Washer\")+SUMIFS('2. Conservation Measures'!BI64:BI83,'2. Conservation Measures'!$L$64:$L$83,\"Clothes Washer\")","v":0},{"$f":"SUMIFS('2. Conservation Measures'!BJ23:BJ33,'2. Conservation Measures'!$L$23:$L$33,\"Clothes Washer\")+SUMIFS('2. Conservation Measures'!BJ64:BJ83,'2. Conservation Measures'!$L$64:$L$83,\"Clothes Washer\")","v":0},{"$f":"SUMIFS('2. Conservation Measures'!BK23:BK33,'2. Conservation Measures'!$L$23:$L$33,\"Clothes Washer\")+SUMIFS('2. Conservation Measures'!BK64:BK83,'2. Conservation Measures'!$L$64:$L$83,\"Clothes Washer\")","v":0},{"$f":"SUMIFS('2. Conservation Measures'!BL23:BL33,'2. Conservation Measures'!$L$23:$L$33,\"Clothes Washer\")+SUMIFS('2. Conservation Measures'!BL64:BL83,'2. Conservation Measures'!$L$64:$L$83,\"Clothes Washer\")","v":0},{"$f":"SUMIFS('2. Conservation Measures'!BM23:BM33,'2. Conservation Measures'!$L$23:$L$33,\"Clothes Washer\")+SUMIFS('2. Conservation Measures'!BM64:BM83,'2. Conservation Measures'!$L$64:$L$83,\"Clothes Washer\")","v":0},{"$f":"SUMIFS('2. Conservation Measures'!BN23:BN33,'2. Conservation Measures'!$L$23:$L$33,\"Clothes Washer\")+SUMIFS('2. Conservation Measures'!BN64:BN83,'2. Conservation Measures'!$L$64:$L$83,\"Clothes Washer\")","v":0},{"$f":"SUMIFS('2. Conservation Measures'!BO23:BO33,'2. Conservation Measures'!$L$23:$L$33,\"Clothes Washer\")+SUMIFS('2. Conservation Measures'!BO64:BO83,'2. Conservation Measures'!$L$64:$L$83,\"Clothes Washer\")","v":0},{"$f":"SUMIFS('2. Conservation Measures'!BP23:BP33,'2. Conservation Measures'!$L$23:$L$33,\"Clothes Washer\")+SUMIFS('2. Conservation Measures'!BP64:BP83,'2. Conservation Measures'!$L$64:$L$83,\"Clothes Washer\")","v":0},{"$f":"SUMIFS('2. Conservation Measures'!BQ23:BQ33,'2. Conservation Measures'!$L$23:$L$33,\"Clothes Washer\")+SUMIFS('2. Conservation Measures'!BQ64:BQ83,'2. Conservation Measures'!$L$64:$L$83,\"Clothes Washer\")","v":0},{"$f":"SUMIFS('2. Conservation Measures'!BR23:BR33,'2. Conservation Measures'!$L$23:$L$33,\"Clothes Washer\")+SUMIFS('2. Conservation Measures'!BR64:BR83,'2. Conservation Measures'!$L$64:$L$83,\"Clothes Washer\")","v":0},{"$f":"SUMIFS('2. Conservation Measures'!BS23:BS33,'2. Conservation Measures'!$L$23:$L$33,\"Clothes Washer\")+SUMIFS('2. Conservation Measures'!BS64:BS83,'2. Conservation Measures'!$L$64:$L$83,\"Clothes Washer\")","v":0},{"$f":"SUMIFS('2. Conservation Measures'!BT23:BT33,'2. Conservation Measures'!$L$23:$L$33,\"Clothes Washer\")+SUMIFS('2. Conservation Measures'!BT64:BT83,'2. Conservation Measures'!$L$64:$L$83,\"Clothes Washer\")","v":0},{"$f":"SUMIFS('2. Conservation Measures'!BU23:BU33,'2. Conservation Measures'!$L$23:$L$33,\"Clothes Washer\")+SUMIFS('2. Conservation Measures'!BU64:BU83,'2. Conservation Measures'!$L$64:$L$83,\"Clothes Washer\")","v":0},{"$f":"SUMIFS('2. Conservation Measures'!BV23:BV33,'2. Conservation Measures'!$L$23:$L$33,\"Clothes Washer\")+SUMIFS('2. Conservation Measures'!BV64:BV83,'2. Conservation Measures'!$L$64:$L$83,\"Clothes Washer\")","v":0},{"$f":"SUMIFS('2. Conservation Measures'!BW23:BW33,'2. Conservation Measures'!$L$23:$L$33,\"Clothes Washer\")+SUMIFS('2. Conservation Measures'!BW64:BW83,'2. Conservation Measures'!$L$64:$L$83,\"Clothes Washer\")","v":0},{"$f":"SUMIFS('2. Conservation Measures'!BX23:BX33,'2. Conservation Measures'!$L$23:$L$33,\"Clothes Washer\")+SUMIFS('2. Conservation Measures'!BX64:BX83,'2. Conservation Measures'!$L$64:$L$83,\"Clothes Washer\")","v":0},{"$f":"SUMIFS('2. Conservation Measures'!BY23:BY33,'2. Conservation Measures'!$L$23:$L$33,\"Clothes Washer\")+SUMIFS('2. Conservation Measures'!BY64:BY83,'2. Conservation Measures'!$L$64:$L$83,\"Clothes Washer\")","v":0},{"$f":"SUMIFS('2. Conservation Measures'!BZ23:BZ33,'2. Conservation Measures'!$L$23:$L$33,\"Clothes Washer\")+SUMIFS('2. Conservation Measures'!BZ64:BZ83,'2. Conservation Measures'!$L$64:$L$83,\"Clothes Washer\")","v":0},{"$f":"SUMIFS('2. Conservation Measures'!CA23:CA33,'2. Conservation Measures'!$L$23:$L$33,\"Clothes Washer\")+SUMIFS('2. Conservation Measures'!CA64:CA83,'2. Conservation Measures'!$L$64:$L$83,\"Clothes Washer\")","v":0},{"$f":"SUMIFS('2. Conservation Measures'!CB23:CB33,'2. Conservation Measures'!$L$23:$L$33,\"Clothes Washer\")+SUMIFS('2. Conservation Measures'!CB64:CB83,'2. Conservation Measures'!$L$64:$L$83,\"Clothes Washer\")","v":0},{"$f":"SUMIFS('2. Conservation Measures'!CC23:CC33,'2. Conservation Measures'!$L$23:$L$33,\"Clothes Washer\")+SUMIFS('2. Conservation Measures'!CC64:CC83,'2. Conservation Measures'!$L$64:$L$83,\"Clothes Washer\")","v":0},{"$f":"SUMIFS('2. Conservation Measures'!CD23:CD33,'2. Conservation Measures'!$L$23:$L$33,\"Clothes Washer\")+SUMIFS('2. Conservation Measures'!CD64:CD83,'2. Conservation Measures'!$L$64:$L$83,\"Clothes Washer\")","v":0},{"$f":"SUMIFS('2. Conservation Measures'!CE23:CE33,'2. Conservation Measures'!$L$23:$L$33,\"Clothes Washer\")+SUMIFS('2. Conservation Measures'!CE64:CE83,'2. Conservation Measures'!$L$64:$L$83,\"Clothes Washer\")","v":0},{"$f":"SUMIFS('2. Conservation Measures'!CF23:CF33,'2. Conservation Measures'!$L$23:$L$33,\"Clothes Washer\")+SUMIFS('2. Conservation Measures'!CF64:CF83,'2. Conservation Measures'!$L$64:$L$83,\"Clothes Washer\")","v":0},{"$f":"SUMIFS('2. Conservation Measures'!CG23:CG33,'2. Conservation Measures'!$L$23:$L$33,\"Clothes Washer\")+SUMIFS('2. Conservation Measures'!CG64:CG83,'2. Conservation Measures'!$L$64:$L$83,\"Clothes Washer\")","v":0},{"$f":"SUMIFS('2. Conservation Measures'!CH23:CH33,'2. Conservation Measures'!$L$23:$L$33,\"Clothes Washer\")+SUMIFS('2. Conservation Measures'!CH64:CH83,'2. Conservation Measures'!$L$64:$L$83,\"Clothes Washer\")","v":0},{"$f":"SUMIFS('2. Conservation Measures'!CI23:CI33,'2. Conservation Measures'!$L$23:$L$33,\"Clothes Washer\")+SUMIFS('2. Conservation Measures'!CI64:CI83,'2. Conservation Measures'!$L$64:$L$83,\"Clothes Washer\")","v":0},{"$f":"SUMIFS('2. Conservation Measures'!CJ23:CJ33,'2. Conservation Measures'!$L$23:$L$33,\"Clothes Washer\")+SUMIFS('2. Conservation Measures'!CJ64:CJ83,'2. Conservation Measures'!$L$64:$L$83,\"Clothes Washer\")","v":0},{"$f":"SUMIFS('2. Conservation Measures'!CK23:CK33,'2. Conservation Measures'!$L$23:$L$33,\"Clothes Washer\")+SUMIFS('2. Conservation Measures'!CK64:CK83,'2. Conservation Measures'!$L$64:$L$83,\"Clothes Washer\")","v":0},{"$f":"SUMIFS('2. Conservation Measures'!CL23:CL33,'2. Conservation Measures'!$L$23:$L$33,\"Clothes Washer\")+SUMIFS('2. Conservation Measures'!CL64:CL83,'2. Conservation Measures'!$L$64:$L$83,\"Clothes Washer\")","v":0},{"$f":"SUMIFS('2. Conservation Measures'!CM23:CM33,'2. Conservation Measures'!$L$23:$L$33,\"Clothes Washer\")+SUMIFS('2. Conservation Measures'!CM64:CM83,'2. Conservation Measures'!$L$64:$L$83,\"Clothes Washer\")","v":0}]
[null,"Ending Inventory",null,null,{"$f":"'Plumbing Fixture Inventory'!N44","v":0},{"$f":"F108-F109-F110","v":0},0,0,0,0,0,0,0,0,0,0,0,0,0,0,0,0,0,0,0,0,0,0,0,0,0,0,0,0,0,0,0,{"$f":"AL108-AL109-AL110","v":0},0,0,0,0,0,0,0,0,0,0,0,0,0,0,0,0,0,0]
[]
[null,"Multi Family Washers",null,null,2019,2020,2021,2022,2023,2024,2025,2026,2027,2028,2029,2030,2031,2032,2033,2034,2035,2036,2037,2038,2039,2040,2041,2042,2043,2044,2045,2046,2047,2048,2049,2050,2051,2052,2053,2054,2055,2056,2057,2058,2059,2060,2061,2062,2063,2064,2065,2066,2067,2068,2069,2070]
[null,"Starting Inventory",null,null,null,{"$f":"E117","v":0},0,0,0,0,0,0,0,0,0,0,0,0,0,0,0,0,0,0,0,0,0,0,0,0,0,0,0,0,0,0,0,{"$f":"AK117","v":0},0,0,0,0,0,0,0,0,0,0,0,0,0,0,0,0,0,0]
[null,"Natural Replacement",null,null,null,{"$f":"F114*0.125","v":0},0,0,0,0,0,0,0,0,0,0,0,0,0,0,0,0,0,0,0,0,0,0,0,0,0,0,0,0,0,0,0,{"$f":"AL114*0.125","v":0},0,0,0,0,0,0,0,0,0,0,0,0,0,0,0,0,0,0]
[null,"Program Replacement",null,null,null,{"$f":"SUMIFS('2. Conservation Measures'!AO36:AO44,'2. Conservation Measures'!$L$36:$L$44,\"Clothes Washer\")+SUMIFS('2. Conservation Measures'!AO86:AO105,'2. Conservation Measures'!$L$86:$L$105,\"Clothes Washer\")","v":0},{"$f":"SUMIFS('2. Conservation Measures'!AP36:AP44,'2. Conservation Measures'!$L$36:$L$44,\"Clothes Washer\")+SUMIFS('2. Conservation Measures'!AP86:AP105,'2. Conservation Measures'!$L$86:$L$105,\"Clothes Washer\")","v":0},{"$f":"SUMIFS('2. Conservation Measures'!AQ36:AQ44,'2. Conservation Measures'!$L$36:$L$44,\"Clothes Washer\")+SUMIFS('2. Conservation Measures'!AQ86:AQ105,'2. Conservation Measures'!$L$86:$L$105,\"Clothes Washer\")","v":0},{"$f":"SUMIFS('2. Conservation Measures'!AR36:AR44,'2. Conservation Measures'!$L$36:$L$44,\"Clothes Washer\")+SUMIFS('2. Conservation Measures'!AR86:AR105,'2. Conservation Measures'!$L$86:$L$105,\"Clothes Washer\")","v":0},{"$f":"SUMIFS('2. Conservation Measures'!AS36:AS44,'2. Conservation Measures'!$L$36:$L$44,\"Clothes Washer\")+SUMIFS('2. Conservation Measures'!AS86:AS105,'2. Conservation Measures'!$L$86:$L$105,\"Clothes Washer\")","v":0},{"$f":"SUMIFS('2. Conservation Measures'!AT36:AT44,'2. Conservation Measures'!$L$36:$L$44,\"Clothes Washer\")+SUMIFS('2. Conservation Measures'!AT86:AT105,'2. Conservation Measures'!$L$86:$L$105,\"Clothes Washer\")","v":0},{"$f":"SUMIFS('2. Conservation Measures'!AU36:AU44,'2. Conservation Measures'!$L$36:$L$44,\"Clothes Washer\")+SUMIFS('2. Conservation Measures'!AU86:AU105,'2. Conservation Measures'!$L$86:$L$105,\"Clothes Washer\")","v":0},{"$f":"SUMIFS('2. Conservation Measures'!AV36:AV44,'2. Conservation Measures'!$L$36:$L$44,\"Clothes Washer\")+SUMIFS('2. Conservation Measures'!AV86:AV105,'2. Conservation Measures'!$L$86:$L$105,\"Clothes Washer\")","v":0},{"$f":"SUMIFS('2. Conservation Measures'!AW36:AW44,'2. Conservation Measures'!$L$36:$L$44,\"Clothes Washer\")+SUMIFS('2. Conservation Measures'!AW86:AW105,'2. Conservation Measures'!$L$86:$L$105,\"Clothes Washer\")","v":0},{"$f":"SUMIFS('2. Conservation Measures'!AX36:AX44,'2. Conservation Measures'!$L$36:$L$44,\"Clothes Washer\")+SUMIFS('2. Conservation Measures'!AX86:AX105,'2. Conservation Measures'!$L$86:$L$105,\"Clothes Washer\")","v":0},{"$f":"SUMIFS('2. Conservation Measures'!AY36:AY44,'2. Conservation Measures'!$L$36:$L$44,\"Clothes Washer\")+SUMIFS('2. Conservation Measures'!AY86:AY105,'2. Conservation Measures'!$L$86:$L$105,\"Clothes Washer\")","v":0},{"$f":"SUMIFS('2. Conservation Measures'!AZ36:AZ44,'2. Conservation Measures'!$L$36:$L$44,\"Clothes Washer\")+SUMIFS('2. Conservation Measures'!AZ86:AZ105,'2. Conservation Measures'!$L$86:$L$105,\"Clothes Washer\")","v":0},{"$f":"SUMIFS('2. Conservation Measures'!BA36:BA44,'2. Conservation Measures'!$L$36:$L$44,\"Clothes Washer\")+SUMIFS('2. Conservation Measures'!BA86:BA105,'2. Conservation Measures'!$L$86:$L$105,\"Clothes Washer\")","v":0},{"$f":"SUMIFS('2. Conservation Measures'!BB36:BB44,'2. Conservation Measures'!$L$36:$L$44,\"Clothes Washer\")+SUMIFS('2. Conservation Measures'!BB86:BB105,'2. Conservation Measures'!$L$86:$L$105,\"Clothes Washer\")","v":0},{"$f":"SUMIFS('2. Conservation Measures'!BC36:BC44,'2. Conservation Measures'!$L$36:$L$44,\"Clothes Washer\")+SUMIFS('2. Conservation Measures'!BC86:BC105,'2. Conservation Measures'!$L$86:$L$105,\"Clothes Washer\")","v":0},{"$f":"SUMIFS('2. Conservation Measures'!BD36:BD44,'2. Conservation Measures'!$L$36:$L$44,\"Clothes Washer\")+SUMIFS('2. Conservation Measures'!BD86:BD105,'2. Conservation Measures'!$L$86:$L$105,\"Clothes Washer\")","v":0},{"$f":"SUMIFS('2. Conservation Measures'!BE36:BE44,'2. Conservation Measures'!$L$36:$L$44,\"Clothes Washer\")+SUMIFS('2. Conservation Measures'!BE86:BE105,'2. Conservation Measures'!$L$86:$L$105,\"Clothes Washer\")","v":0},{"$f":"SUMIFS('2. Conservation Measures'!BF36:BF44,'2. Conservation Measures'!$L$36:$L$44,\"Clothes Washer\")+SUMIFS('2. Conservation Measures'!BF86:BF105,'2. Conservation Measures'!$L$86:$L$105,\"Clothes Washer\")","v":0},{"$f":"SUMIFS('2. Conservation Measures'!BG36:BG44,'2. Conservation Measures'!$L$36:$L$44,\"Clothes Washer\")+SUMIFS('2. Conservation Measures'!BG86:BG105,'2. Conservation Measures'!$L$86:$L$105,\"Clothes Washer\")","v":0},{"$f":"SUMIFS('2. Conservation Measures'!BH36:BH44,'2. Conservation Measures'!$L$36:$L$44,\"Clothes Washer\")+SUMIFS('2. Conservation Measures'!BH86:BH105,'2. Conservation Measures'!$L$86:$L$105,\"Clothes Washer\")","v":0},{"$f":"SUMIFS('2. Conservation Measures'!BI36:BI44,'2. Conservation Measures'!$L$36:$L$44,\"Clothes Washer\")+SUMIFS('2. Conservation Measures'!BI86:BI105,'2. Conservation Measures'!$L$86:$L$105,\"Clothes Washer\")","v":0},{"$f":"SUMIFS('2. Conservation Measures'!BJ36:BJ44,'2. Conservation Measures'!$L$36:$L$44,\"Clothes Washer\")+SUMIFS('2. Conservation Measures'!BJ86:BJ105,'2. Conservation Measures'!$L$86:$L$105,\"Clothes Washer\")","v":0},{"$f":"SUMIFS('2. Conservation Measures'!BK36:BK44,'2. Conservation Measures'!$L$36:$L$44,\"Clothes Washer\")+SUMIFS('2. Conservation Measures'!BK86:BK105,'2. Conservation Measures'!$L$86:$L$105,\"Clothes Washer\")","v":0},{"$f":"SUMIFS('2. Conservation Measures'!BL36:BL44,'2. Conservation Measures'!$L$36:$L$44,\"Clothes Washer\")+SUMIFS('2. Conservation Measures'!BL86:BL105,'2. Conservation Measures'!$L$86:$L$105,\"Clothes Washer\")","v":0},{"$f":"SUMIFS('2. Conservation Measures'!BM36:BM44,'2. Conservation Measures'!$L$36:$L$44,\"Clothes Washer\")+SUMIFS('2. Conservation Measures'!BM86:BM105,'2. Conservation Measures'!$L$86:$L$105,\"Clothes Washer\")","v":0},{"$f":"SUMIFS('2. Conservation Measures'!BN36:BN44,'2. Conservation Measures'!$L$36:$L$44,\"Clothes Washer\")+SUMIFS('2. Conservation Measures'!BN86:BN105,'2. Conservation Measures'!$L$86:$L$105,\"Clothes Washer\")","v":0},{"$f":"SUMIFS('2. Conservation Measures'!BO36:BO44,'2. Conservation Measures'!$L$36:$L$44,\"Clothes Washer\")+SUMIFS('2. Conservation Measures'!BO86:BO105,'2. Conservation Measures'!$L$86:$L$105,\"Clothes Washer\")","v":0},{"$f":"SUMIFS('2. Conservation Measures'!BP36:BP44,'2. Conservation Measures'!$L$36:$L$44,\"Clothes Washer\")+SUMIFS('2. Conservation Measures'!BP86:BP105,'2. Conservation Measures'!$L$86:$L$105,\"Clothes Washer\")","v":0},{"$f":"SUMIFS('2. Conservation Measures'!BQ36:BQ44,'2. Conservation Measures'!$L$36:$L$44,\"Clothes Washer\")+SUMIFS('2. Conservation Measures'!BQ86:BQ105,'2. Conservation Measures'!$L$86:$L$105,\"Clothes Washer\")","v":0},{"$f":"SUMIFS('2. Conservation Measures'!BR36:BR44,'2. Conservation Measures'!$L$36:$L$44,\"Clothes Washer\")+SUMIFS('2. Conservation Measures'!BR86:BR105,'2. Conservation Measures'!$L$86:$L$105,\"Clothes Washer\")","v":0},{"$f":"SUMIFS('2. Conservation Measures'!BS36:BS44,'2. Conservation Measures'!$L$36:$L$44,\"Clothes Washer\")+SUMIFS('2. Conservation Measures'!BS86:BS105,'2. Conservation Measures'!$L$86:$L$105,\"Clothes Washer\")","v":0},{"$f":"SUMIFS('2. Conservation Measures'!BT36:BT44,'2. Conservation Measures'!$L$36:$L$44,\"Clothes Washer\")+SUMIFS('2. Conservation Measures'!BT86:BT105,'2. Conservation Measures'!$L$86:$L$105,\"Clothes Washer\")","v":0},{"$f":"SUMIFS('2. Conservation Measures'!BU36:BU44,'2. Conservation Measures'!$L$36:$L$44,\"Clothes Washer\")+SUMIFS('2. Conservation Measures'!BU86:BU105,'2. Conservation Measures'!$L$86:$L$105,\"Clothes Washer\")","v":0},{"$f":"SUMIFS('2. Conservation Measures'!BV36:BV44,'2. Conservation Measures'!$L$36:$L$44,\"Clothes Washer\")+SUMIFS('2. Conservation Measures'!BV86:BV105,'2. Conservation Measures'!$L$86:$L$105,\"Clothes Washer\")","v":0},{"$f":"SUMIFS('2. Conservation Measures'!BW36:BW44,'2. Conservation Measures'!$L$36:$L$44,\"Clothes Washer\")+SUMIFS('2. Conservation Measures'!BW86:BW105,'2. Conservation Measures'!$L$86:$L$105,\"Clothes Washer\")","v":0},{"$f":"SUMIFS('2. Conservation Measures'!BX36:BX44,'2. Conservation Measures'!$L$36:$L$44,\"Clothes Washer\")+SUMIFS('2. Conservation Measures'!BX86:BX105,'2. Conservation Measures'!$L$86:$L$105,\"Clothes Washer\")","v":0},{"$f":"SUMIFS('2. Conservation Measures'!BY36:BY44,'2. Conservation Measures'!$L$36:$L$44,\"Clothes Washer\")+SUMIFS('2. Conservation Measures'!BY86:BY105,'2. Conservation Measures'!$L$86:$L$105,\"Clothes Washer\")","v":0},{"$f":"SUMIFS('2. Conservation Measures'!BZ36:BZ44,'2. Conservation Measures'!$L$36:$L$44,\"Clothes Washer\")+SUMIFS('2. Conservation Measures'!BZ86:BZ105,'2. Conservation Measures'!$L$86:$L$105,\"Clothes Washer\")","v":0},{"$f":"SUMIFS('2. Conservation Measures'!CA36:CA44,'2. Conservation Measures'!$L$36:$L$44,\"Clothes Washer\")+SUMIFS('2. Conservation Measures'!CA86:CA105,'2. Conservation Measures'!$L$86:$L$105,\"Clothes Washer\")","v":0},{"$f":"SUMIFS('2. Conservation Measures'!CB36:CB44,'2. Conservation Measures'!$L$36:$L$44,\"Clothes Washer\")+SUMIFS('2. Conservation Measures'!CB86:CB105,'2. Conservation Measures'!$L$86:$L$105,\"Clothes Washer\")","v":0},{"$f":"SUMIFS('2. Conservation Measures'!CC36:CC44,'2. Conservation Measures'!$L$36:$L$44,\"Clothes Washer\")+SUMIFS('2. Conservation Measures'!CC86:CC105,'2. Conservation Measures'!$L$86:$L$105,\"Clothes Washer\")","v":0},{"$f":"SUMIFS('2. Conservation Measures'!CD36:CD44,'2. Conservation Measures'!$L$36:$L$44,\"Clothes Washer\")+SUMIFS('2. Conservation Measures'!CD86:CD105,'2. Conservation Measures'!$L$86:$L$105,\"Clothes Washer\")","v":0},{"$f":"SUMIFS('2. Conservation Measures'!CE36:CE44,'2. Conservation Measures'!$L$36:$L$44,\"Clothes Washer\")+SUMIFS('2. Conservation Measures'!CE86:CE105,'2. Conservation Measures'!$L$86:$L$105,\"Clothes Washer\")","v":0},{"$f":"SUMIFS('2. Conservation Measures'!CF36:CF44,'2. Conservation Measures'!$L$36:$L$44,\"Clothes Washer\")+SUMIFS('2. Conservation Measures'!CF86:CF105,'2. Conservation Measures'!$L$86:$L$105,\"Clothes Washer\")","v":0},{"$f":"SUMIFS('2. Conservation Measures'!CG36:CG44,'2. Conservation Measures'!$L$36:$L$44,\"Clothes Washer\")+SUMIFS('2. Conservation Measures'!CG86:CG105,'2. Conservation Measures'!$L$86:$L$105,\"Clothes Washer\")","v":0},{"$f":"SUMIFS('2. Conservation Measures'!CH36:CH44,'2. Conservation Measures'!$L$36:$L$44,\"Clothes Washer\")+SUMIFS('2. Conservation Measures'!CH86:CH105,'2. Conservation Measures'!$L$86:$L$105,\"Clothes Washer\")","v":0},{"$f":"SUMIFS('2. Conservation Measures'!CI36:CI44,'2. Conservation Measures'!$L$36:$L$44,\"Clothes Washer\")+SUMIFS('2. Conservation Measures'!CI86:CI105,'2. Conservation Measures'!$L$86:$L$105,\"Clothes Washer\")","v":0},{"$f":"SUMIFS('2. Conservation Measures'!CJ36:CJ44,'2. Conservation Measures'!$L$36:$L$44,\"Clothes Washer\")+SUMIFS('2. Conservation Measures'!CJ86:CJ105,'2. Conservation Measures'!$L$86:$L$105,\"Clothes Washer\")","v":0},{"$f":"SUMIFS('2. Conservation Measures'!CK36:CK44,'2. Conservation Measures'!$L$36:$L$44,\"Clothes Washer\")+SUMIFS('2. Conservation Measures'!CK86:CK105,'2. Conservation Measures'!$L$86:$L$105,\"Clothes Washer\")","v":0},{"$f":"SUMIFS('2. Conservation Measures'!CL36:CL44,'2. Conservation Measures'!$L$36:$L$44,\"Clothes Washer\")+SUMIFS('2. Conservation Measures'!CL86:CL105,'2. Conservation Measures'!$L$86:$L$105,\"Clothes Washer\")","v":0},{"$f":"SUMIFS('2. Conservation Measures'!CM36:CM44,'2. Conservation Measures'!$L$36:$L$44,\"Clothes Washer\")+SUMIFS('2. Conservation Measures'!CM86:CM105,'2. Conservation Measures'!$L$86:$L$105,\"Clothes Washer\")","v":0}]
[null,"Ending Inventory",null,null,{"$f":"'Plumbing Fixture Inventory'!N51","v":0},{"$f":"F114-F115-F116","v":0},0,0,0,0,0,0,0,0,0,0,0,0,0,0,0,0,0,0,0,0,0,0,0,0,0,0,0,0,0,0,0,{"$f":"AL114-AL115-AL116","v":0},0,0,0,0,0,0,0,0,0,0,0,0,0,0,0,0,0,0]
[]
[]
[null,"Estimated End-of-Year Inventory of Inefficient Fixtures/Appliances"]
[null,"Toilets",2020,2030,2040,2050,2060,2070]
[null,"Single Family",{"$f":"IF(INDEX('Plumbing Fixture Inventory'!$E$73:$BD$73,MATCH(C$121,'Plumbing Fixture Inventory'!$E$69:$BD$69,0))>=0,INDEX('Plumbing Fixture Inventory'!$E$73:$BD$73,MATCH(C$121,'Plumbing Fixture Inventory'!$E$69:$BD$69,0)),\"<0\")","v":0},{"$f":"IF(INDEX('Plumbing Fixture Inventory'!$E$73:$BD$73,MATCH(D$121,'Plumbing Fixture Inventory'!$E$69:$BD$69,0))>=0,INDEX('Plumbing Fixture Inventory'!$E$73:$BD$73,MATCH(D$121,'Plumbing Fixture Inventory'!$E$69:$BD$69,0)),\"<0\")","v":0},{"$f":"IF(INDEX('Plumbing Fixture Inventory'!$E$73:$BD$73,MATCH(E$121,'Plumbing Fixture Inventory'!$E$69:$BD$69,0))>=0,INDEX('Plumbing Fixture Inventory'!$E$73:$BD$73,MATCH(E$121,'Plumbing Fixture Inventory'!$E$69:$BD$69,0)),\"<0\")","v":0},{"$f":"IF(INDEX('Plumbing Fixture Inventory'!$E$73:$BD$73,MATCH(F$121,'Plumbing Fixture Inventory'!$E$69:$BD$69,0))>=0,INDEX('Plumbing Fixture Inventory'!$E$73:$BD$73,MATCH(F$121,'Plumbing Fixture Inventory'!$E$69:$BD$69,0)),\"<0\")","v":0},{"$f":"IF(INDEX('Plumbing Fixture Inventory'!$E$73:$BD$73,MATCH(G$121,'Plumbing Fixture Inventory'!$E$69:$BD$69,0))>=0,INDEX('Plumbing Fixture Inventory'!$E$73:$BD$73,MATCH(G$121,'Plumbing Fixture Inventory'!$E$69:$BD$69,0)),\"<0\")","v":0},{"$f":"IF(INDEX('Plumbing Fixture Inventory'!$E$73:$BD$73,MATCH(H$121,'Plumbing Fixture Inventory'!$E$69:$BD$69,0))>=0,INDEX('Plumbing Fixture Inventory'!$E$73:$BD$73,MATCH(H$121,'Plumbing Fixture Inventory'!$E$69:$BD$69,0)),\"<0\")","v":0}]
[null,"Multi Family",{"$f":"IF(INDEX('Plumbing Fixture Inventory'!$E$79:$BD$79,MATCH(C$121,'Plumbing Fixture Inventory'!$E$75:$BD$75,0))>=0,INDEX('Plumbing Fixture Inventory'!$E$79:$BD$79,MATCH(C$121,'Plumbing Fixture Inventory'!$E$75:$BD$75,0)),\"<0\")","v":0},{"$f":"IF(INDEX('Plumbing Fixture Inventory'!$E$79:$BD$79,MATCH(D$121,'Plumbing Fixture Inventory'!$E$75:$BD$75,0))>=0,INDEX('Plumbing Fixture Inventory'!$E$79:$BD$79,MATCH(D$121,'Plumbing Fixture Inventory'!$E$75:$BD$75,0)),\"<0\")","v":0},{"$f":"IF(INDEX('Plumbing Fixture Inventory'!$E$79:$BD$79,MATCH(E$121,'Plumbing Fixture Inventory'!$E$75:$BD$75,0))>=0,INDEX('Plumbing Fixture Inventory'!$E$79:$BD$79,MATCH(E$121,'Plumbing Fixture Inventory'!$E$75:$BD$75,0)),\"<0\")","v":0},{"$f":"IF(INDEX('Plumbing Fixture Inventory'!$E$79:$BD$79,MATCH(F$121,'Plumbing Fixture Inventory'!$E$75:$BD$75,0))>=0,INDEX('Plumbing Fixture Inventory'!$E$79:$BD$79,MATCH(F$121,'Plumbing Fixture Inventory'!$E$75:$BD$75,0)),\"<0\")","v":0},{"$f":"IF(INDEX('Plumbing Fixture Inventory'!$E$79:$BD$79,MATCH(G$121,'Plumbing Fixture Inventory'!$E$75:$BD$75,0))>=0,INDEX('Plumbing Fixture Inventory'!$E$79:$BD$79,MATCH(G$121,'Plumbing Fixture Inventory'!$E$75:$BD$75,0)),\"<0\")","v":0},{"$f":"IF(INDEX('Plumbing Fixture Inventory'!$E$79:$BD$79,MATCH(H$121,'Plumbing Fixture Inventory'!$E$75:$BD$75,0))>=0,INDEX('Plumbing Fixture Inventory'!$E$79:$BD$79,MATCH(H$121,'Plumbing Fixture Inventory'!$E$75:$BD$75,0)),\"<0\")","v":0}]
[null,"ICI",{"$f":"IF(INDEX('Plumbing Fixture Inventory'!$E$85:$BD$85,MATCH(C$121,'Plumbing Fixture Inventory'!$E$81:$BD$81,0))>=0,INDEX('Plumbing Fixture Inventory'!$E$85:$BD$85,MATCH(C$121,'Plumbing Fixture Inventory'!$E$81:$BD$81,0)),\"<0\")","v":0},{"$f":"IF(INDEX('Plumbing Fixture Inventory'!$E$85:$BD$85,MATCH(D$121,'Plumbing Fixture Inventory'!$E$81:$BD$81,0))>=0,INDEX('Plumbing Fixture Inventory'!$E$85:$BD$85,MATCH(D$121,'Plumbing Fixture Inventory'!$E$81:$BD$81,0)),\"<0\")","v":0},{"$f":"IF(INDEX('Plumbing Fixture Inventory'!$E$85:$BD$85,MATCH(E$121,'Plumbing Fixture Inventory'!$E$81:$BD$81,0))>=0,INDEX('Plumbing Fixture Inventory'!$E$85:$BD$85,MATCH(E$121,'Plumbing Fixture Inventory'!$E$81:$BD$81,0)),\"<0\")","v":0},{"$f":"IF(INDEX('Plumbing Fixture Inventory'!$E$85:$BD$85,MATCH(F$121,'Plumbing Fixture Inventory'!$E$81:$BD$81,0))>=0,INDEX('Plumbing Fixture Inventory'!$E$85:$BD$85,MATCH(F$121,'Plumbing Fixture Inventory'!$E$81:$BD$81,0)),\"<0\")","v":0},{"$f":"IF(INDEX('Plumbing Fixture Inventory'!$E$85:$BD$85,MATCH(G$121,'Plumbing Fixture Inventory'!$E$81:$BD$81,0))>=0,INDEX('Plumbing Fixture Inventory'!$E$85:$BD$85,MATCH(G$121,'Plumbing Fixture Inventory'!$E$81:$BD$81,0)),\"<0\")","v":0},{"$f":"IF(INDEX('Plumbing Fixture Inventory'!$E$85:$BD$85,MATCH(H$121,'Plumbing Fixture Inventory'!$E$81:$BD$81,0))>=0,INDEX('Plumbing Fixture Inventory'!$E$85:$BD$85,MATCH(H$121,'Plumbing Fixture Inventory'!$E$81:$BD$81,0)),\"<0\")","v":0}]
[null,"Urinals"]
[null,"ICI",{"$f":"IF(INDEX('Plumbing Fixture Inventory'!$E$91:$BD$91,MATCH(C$121,'Plumbing Fixture Inventory'!$E$87:$BD$87,0))>=0,INDEX('Plumbing Fixture Inventory'!$E$91:$BD$91,MATCH(C$121,'Plumbing Fixture Inventory'!$E$87:$BD$87,0)),\"<0\")","v":0},{"$f":"IF(INDEX('Plumbing Fixture Inventory'!$E$91:$BD$91,MATCH(D$121,'Plumbing Fixture Inventory'!$E$87:$BD$87,0))>=0,INDEX('Plumbing Fixture Inventory'!$E$91:$BD$91,MATCH(D$121,'Plumbing Fixture Inventory'!$E$87:$BD$87,0)),\"<0\")","v":0},{"$f":"IF(INDEX('Plumbing Fixture Inventory'!$E$91:$BD$91,MATCH(E$121,'Plumbing Fixture Inventory'!$E$87:$BD$87,0))>=0,INDEX('Plumbing Fixture Inventory'!$E$91:$BD$91,MATCH(E$121,'Plumbing Fixture Inventory'!$E$87:$BD$87,0)),\"<0\")","v":0},{"$f":"IF(INDEX('Plumbing Fixture Inventory'!$E$91:$BD$91,MATCH(F$121,'Plumbing Fixture Inventory'!$E$87:$BD$87,0))>=0,INDEX('Plumbing Fixture Inventory'!$E$91:$BD$91,MATCH(F$121,'Plumbing Fixture Inventory'!$E$87:$BD$87,0)),\"<0\")","v":0},{"$f":"IF(INDEX('Plumbing Fixture Inventory'!$E$91:$BD$91,MATCH(G$121,'Plumbing Fixture Inventory'!$E$87:$BD$87,0))>=0,INDEX('Plumbing Fixture Inventory'!$E$91:$BD$91,MATCH(G$121,'Plumbing Fixture Inventory'!$E$87:$BD$87,0)),\"<0\")","v":0},{"$f":"IF(INDEX('Plumbing Fixture Inventory'!$E$91:$BD$91,MATCH(H$121,'Plumbing Fixture Inventory'!$E$87:$BD$87,0))>=0,INDEX('Plumbing Fixture Inventory'!$E$91:$BD$91,MATCH(H$121,'Plumbing Fixture Inventory'!$E$87:$BD$87,0)),\"<0\")","v":0}]
[null,"Showerheads"]
[null,"Single Family",{"$f":"IF(INDEX('Plumbing Fixture Inventory'!$E$98:$BD$98,MATCH(C$121,'Plumbing Fixture Inventory'!$E$94:$BD$94,0))>=0,INDEX('Plumbing Fixture Inventory'!$E$98:$BD$98,MATCH(C$121,'Plumbing Fixture Inventory'!$E$94:$BD$94,0)),\"<0\")","v":0},{"$f":"IF(INDEX('Plumbing Fixture Inventory'!$E$98:$BD$98,MATCH(D$121,'Plumbing Fixture Inventory'!$E$94:$BD$94,0))>=0,INDEX('Plumbing Fixture Inventory'!$E$98:$BD$98,MATCH(D$121,'Plumbing Fixture Inventory'!$E$94:$BD$94,0)),\"<0\")","v":0},{"$f":"IF(INDEX('Plumbing Fixture Inventory'!$E$98:$BD$98,MATCH(E$121,'Plumbing Fixture Inventory'!$E$94:$BD$94,0))>=0,INDEX('Plumbing Fixture Inventory'!$E$98:$BD$98,MATCH(E$121,'Plumbing Fixture Inventory'!$E$94:$BD$94,0)),\"<0\")","v":0},{"$f":"IF(INDEX('Plumbing Fixture Inventory'!$E$98:$BD$98,MATCH(F$121,'Plumbing Fixture Inventory'!$E$94:$BD$94,0))>=0,INDEX('Plumbing Fixture Inventory'!$E$98:$BD$98,MATCH(F$121,'Plumbing Fixture Inventory'!$E$94:$BD$94,0)),\"<0\")","v":0},{"$f":"IF(INDEX('Plumbing Fixture Inventory'!$E$98:$BD$98,MATCH(G$121,'Plumbing Fixture Inventory'!$E$94:$BD$94,0))>=0,INDEX('Plumbing Fixture Inventory'!$E$98:$BD$98,MATCH(G$121,'Plumbing Fixture Inventory'!$E$94:$BD$94,0)),\"<0\")","v":0},{"$f":"IF(INDEX('Plumbing Fixture Inventory'!$E$98:$BD$98,MATCH(H$121,'Plumbing Fixture Inventory'!$E$94:$BD$94,0))>=0,INDEX('Plumbing Fixture Inventory'!$E$98:$BD$98,MATCH(H$121,'Plumbing Fixture Inventory'!$E$94:$BD$94,0)),\"<0\")","v":0}]
[null,"Multi Family",{"$f":"IF(INDEX('Plumbing Fixture Inventory'!$E$104:$BD$104,MATCH(C$121,'Plumbing Fixture Inventory'!$E$100:$BD$100,0))>=0,INDEX('Plumbing Fixture Inventory'!$E$104:$BD$104,MATCH(C$121,'Plumbing Fixture Inventory'!$E$100:$BD$100,0)),\"<0\")","v":0},{"$f":"IF(INDEX('Plumbing Fixture Inventory'!$E$104:$BD$104,MATCH(D$121,'Plumbing Fixture Inventory'!$E$100:$BD$100,0))>=0,INDEX('Plumbing Fixture Inventory'!$E$104:$BD$104,MATCH(D$121,'Plumbing Fixture Inventory'!$E$100:$BD$100,0)),\"<0\")","v":0},{"$f":"IF(INDEX('Plumbing Fixture Inventory'!$E$104:$BD$104,MATCH(E$121,'Plumbing Fixture Inventory'!$E$100:$BD$100,0))>=0,INDEX('Plumbing Fixture Inventory'!$E$104:$BD$104,MATCH(E$121,'Plumbing Fixture Inventory'!$E$100:$BD$100,0)),\"<0\")","v":0},{"$f":"IF(INDEX('Plumbing Fixture Inventory'!$E$104:$BD$104,MATCH(F$121,'Plumbing Fixture Inventory'!$E$100:$BD$100,0))>=0,INDEX('Plumbing Fixture Inventory'!$E$104:$BD$104,MATCH(F$121,'Plumbing Fixture Inventory'!$E$100:$BD$100,0)),\"<0\")","v":0},{"$f":"IF(INDEX('Plumbing Fixture Inventory'!$E$104:$BD$104,MATCH(G$121,'Plumbing Fixture Inventory'!$E$100:$BD$100,0))>=0,INDEX('Plumbing Fixture Inventory'!$E$104:$BD$104,MATCH(G$121,'Plumbing Fixture Inventory'!$E$100:$BD$100,0)),\"<0\")","v":0},{"$f":"IF(INDEX('Plumbing Fixture Inventory'!$E$104:$BD$104,MATCH(H$121,'Plumbing Fixture Inventory'!$E$100:$BD$100,0))>=0,INDEX('Plumbing Fixture Inventory'!$E$104:$BD$104,MATCH(H$121,'Plumbing Fixture Inventory'!$E$100:$BD$100,0)),\"<0\")","v":0}]
[null,"Washers"]
[null,"Single Family",{"$f":"IF(INDEX('Plumbing Fixture Inventory'!$E$111:$BD$111,MATCH(C$121,'Plumbing Fixture Inventory'!$E$107:$BD$107,0))>=0,INDEX('Plumbing Fixture Inventory'!$E$111:$BD$111,MATCH(C$121,'Plumbing Fixture Inventory'!$E$107:$BD$107,0)),\"<0\")","v":0},{"$f":"IF(INDEX('Plumbing Fixture Inventory'!$E$111:$BD$111,MATCH(D$121,'Plumbing Fixture Inventory'!$E$107:$BD$107,0))>=0,INDEX('Plumbing Fixture Inventory'!$E$111:$BD$111,MATCH(D$121,'Plumbing Fixture Inventory'!$E$107:$BD$107,0)),\"<0\")","v":0},{"$f":"IF(INDEX('Plumbing Fixture Inventory'!$E$111:$BD$111,MATCH(E$121,'Plumbing Fixture Inventory'!$E$107:$BD$107,0))>=0,INDEX('Plumbing Fixture Inventory'!$E$111:$BD$111,MATCH(E$121,'Plumbing Fixture Inventory'!$E$107:$BD$107,0)),\"<0\")","v":0},{"$f":"IF(INDEX('Plumbing Fixture Inventory'!$E$111:$BD$111,MATCH(F$121,'Plumbing Fixture Inventory'!$E$107:$BD$107,0))>=0,INDEX('Plumbing Fixture Inventory'!$E$111:$BD$111,MATCH(F$121,'Plumbing Fixture Inventory'!$E$107:$BD$107,0)),\"<0\")","v":0},{"$f":"IF(INDEX('Plumbing Fixture Inventory'!$E$111:$BD$111,MATCH(G$121,'Plumbing Fixture Inventory'!$E$107:$BD$107,0))>=0,INDEX('Plumbing Fixture Inventory'!$E$111:$BD$111,MATCH(G$121,'Plumbing Fixture Inventory'!$E$107:$BD$107,0)),\"<0\")","v":0},{"$f":"IF(INDEX('Plumbing Fixture Inventory'!$E$111:$BD$111,MATCH(H$121,'Plumbing Fixture Inventory'!$E$107:$BD$107,0))>=0,INDEX('Plumbing Fixture Inventory'!$E$111:$BD$111,MATCH(H$121,'Plumbing Fixture Inventory'!$E$107:$BD$107,0)),\"<0\")","v":0}]
[null,"Multi Family",{"$f":"IF(INDEX('Plumbing Fixture Inventory'!$E$117:$BD$117,MATCH(C$121,'Plumbing Fixture Inventory'!$E$113:$BD$113,0))>=0,INDEX('Plumbing Fixture Inventory'!$E$117:$BD$117,MATCH(C$121,'Plumbing Fixture Inventory'!$E$113:$BD$113,0)),\"<0\")","v":0},{"$f":"IF(INDEX('Plumbing Fixture Inventory'!$E$117:$BD$117,MATCH(D$121,'Plumbing Fixture Inventory'!$E$113:$BD$113,0))>=0,INDEX('Plumbing Fixture Inventory'!$E$117:$BD$117,MATCH(D$121,'Plumbing Fixture Inventory'!$E$113:$BD$113,0)),\"<0\")","v":0},{"$f":"IF(INDEX('Plumbing Fixture Inventory'!$E$117:$BD$117,MATCH(E$121,'Plumbing Fixture Inventory'!$E$113:$BD$113,0))>=0,INDEX('Plumbing Fixture Inventory'!$E$117:$BD$117,MATCH(E$121,'Plumbing Fixture Inventory'!$E$113:$BD$113,0)),\"<0\")","v":0},{"$f":"IF(INDEX('Plumbing Fixture Inventory'!$E$117:$BD$117,MATCH(F$121,'Plumbing Fixture Inventory'!$E$113:$BD$113,0))>=0,INDEX('Plumbing Fixture Inventory'!$E$117:$BD$117,MATCH(F$121,'Plumbing Fixture Inventory'!$E$113:$BD$113,0)),\"<0\")","v":0},{"$f":"IF(INDEX('Plumbing Fixture Inventory'!$E$117:$BD$117,MATCH(G$121,'Plumbing Fixture Inventory'!$E$113:$BD$113,0))>=0,INDEX('Plumbing Fixture Inventory'!$E$117:$BD$117,MATCH(G$121,'Plumbing Fixture Inventory'!$E$113:$BD$113,0)),\"<0\")","v":0},{"$f":"IF(INDEX('Plumbing Fixture Inventory'!$E$117:$BD$117,MATCH(H$121,'Plumbing Fixture Inventory'!$E$113:$BD$113,0))>=0,INDEX('Plumbing Fixture Inventory'!$E$117:$BD$117,MATCH(H$121,'Plumbing Fixture Inventory'!$E$113:$BD$113,0)),\"<0\")","v":0}]

{"sheet":"Pre-Defined Measures","index":7,"n_rows":514,"n_cols":17,"rows_kept":514,"cut":false,"hidden":false,"merged":[]}
[]
[null,"ID","REGION","CLASS","CATEGORY","ACCOUNTING_UNIT","MEASURE","DELIVERY","SAVE_GPD","LIFE_YRS","DECAY_PCT","FREERIDE_PCT","PLUMBCODE_YN","NRR_PCT","COST_CAPITAL","COST_OM","ID&REGION"]
[null,"PRE-SF-01","A","SF","Rebate, Retrofit, and Incentive Programs","Toilet","HE Toilet Rebate","Rebate",25.38557335768753,99,0,0.2,"Y",0.04,0,113,{"$f":"tbl_predefined_measures[[#This Row],[ID]]&tbl_predefined_measures[[#This Row],[REGION]]","v":"PRE-SF-01A"}]
[null,"PRE-SF-02","A","SF","Rebate, Retrofit, and Incentive Programs","Toilet","Bathroom Retrofit","Direct Installation",28.88875087802181,99,0,0,"Y",0.04,0,329,{"$f":"tbl_predefined_measures[[#This Row],[ID]]&tbl_predefined_measures[[#This Row],[REGION]]","v":"PRE-SF-02A"}]
[null,"PRE-SF-03","A","SF","Rebate, Retrofit, and Incentive Programs","Showerhead","Showerhead and Aerator Kit","Distribution",6.5232663272952474,99,0,0.5,"Y",6.7000000000000004E-2,0,10,{"$f":"tbl_predefined_measures[[#This Row],[ID]]&tbl_predefined_measures[[#This Row],[REGION]]","v":"PRE-SF-03A"}]
[null,"PRE-SF-04","A","SF","Rebate, Retrofit, and Incentive Programs","Clothes Washer","Clothes Washer Rebate","Rebate",13.167362842576667,99,0,0.2,"Y",7.0999999999999994E-2,0,156,{"$f":"tbl_predefined_measures[[#This Row],[ID]]&tbl_predefined_measures[[#This Row],[REGION]]","v":"PRE-SF-04A"}]
[null,"PRE-SF-05","A","SF","Customer Assistance Programs","SF Acct.","Home Water Reports","Distribution",12.1,1,0,0,"N",0,0,7,{"$f":"tbl_predefined_measures[[#This Row],[ID]]&tbl_predefined_measures[[#This Row],[REGION]]","v":"PRE-SF-05A"}]
[null,"PRE-SF-06","A","SF","Customer Assistance Programs","SF Acct.","Irrigation Audits - High Users","Site Visit",33,3,0,0,"N",0,0,99,{"$f":"tbl_predefined_measures[[#This Row],[ID]]&tbl_predefined_measures[[#This Row],[REGION]]","v":"PRE-SF-06A"}]
[null,"PRE-SF-07","A","SF","Rebate, Retrofit, and Incentive Programs","SF Acct.","High-Efficiency Sprinkler Nozzle Rebate","Rebate",22.058823529411761,10,0,0,"N",0,0,110,{"$f":"tbl_predefined_measures[[#This Row],[ID]]&tbl_predefined_measures[[#This Row],[REGION]]","v":"PRE-SF-07A"}]
[null,"PRE-SF-08","A","SF","Rebate, Retrofit, and Incentive Programs","SF Acct.","Smart Irrigation Controller Rebate","Rebate",55.65404243889337,10,0,0,"N",0,0,210,{"$f":"tbl_predefined_measures[[#This Row],[ID]]&tbl_predefined_measures[[#This Row],[REGION]]","v":"PRE-SF-08A"}]
[null,"PRE-SF-09","A","SF","Rebate, Retrofit, and Incentive Programs","SF Acct.","WaterWise Landscape Rebate","Rebate",140.73529411764704,15,0,0.2,"N",0,0,550,{"$f":"tbl_predefined_measures[[#This Row],[ID]]&tbl_predefined_measures[[#This Row],[REGION]]","v":"PRE-SF-09A"}]
[null,"PRE-SF-10","A","SF","Rebate, Retrofit, and Incentive Programs","SF Acct.","Rainwater Harvesting Rebate","Rebate",22.510344827586213,15,0,0,"N",0,0,355,{"$f":"tbl_predefined_measures[[#This Row],[ID]]&tbl_predefined_measures[[#This Row],[REGION]]","v":"PRE-SF-10A"}]
[null,"PRE-SF-11","A","SF","Rebate, Retrofit, and Incentive Programs","SF Acct.","Rain Barrel","Rebate",2.4300940438871477,15,0,0,"N",0,0,64,{"$f":"tbl_predefined_measures[[#This Row],[ID]]&tbl_predefined_measures[[#This Row],[REGION]]","v":"PRE-SF-11A"}]
[null,"PRE-MF-01","A","MF","Rebate, Retrofit, and Incentive Programs","Toilet","HE Toilet Rebate","Rebate",32.690586197432737,99,0,0.2,"Y",0.04,0,113,{"$f":"tbl_predefined_measures[[#This Row],[ID]]&tbl_predefined_measures[[#This Row],[REGION]]","v":"PRE-MF-01A"}]
[null,"PRE-MF-02","A","MF","Rebate, Retrofit, and Incentive Programs","Toilet","Bathroom Retrofit","Direct Installation",42.600406684996344,99,0,0,"Y",0.04,0,329,{"$f":"tbl_predefined_measures[[#This Row],[ID]]&tbl_predefined_measures[[#This Row],[REGION]]","v":"PRE-MF-02A"}]
[null,"PRE-MF-03","A","MF","Rebate, Retrofit, and Incentive Programs","Showerhead","Showerhead and Aerator Kit","Distribution",5.6692556424900067,99,0,0.5,"Y",6.7000000000000004E-2,0,10,{"$f":"tbl_predefined_measures[[#This Row],[ID]]&tbl_predefined_measures[[#This Row],[REGION]]","v":"PRE-MF-03A"}]
[null,"PRE-MF-04","A","MF","Rebate, Retrofit, and Incentive Programs","Clothes Washer","Clothes Washer Rebate","Rebate",29.521163720827236,99,0,0.2,"Y",0.125,0,156,{"$f":"tbl_predefined_measures[[#This Row],[ID]]&tbl_predefined_measures[[#This Row],[REGION]]","v":"PRE-MF-04A"}]
[null,"PRE-MF-05","A","MF","Customer Assistance Programs","MF Acct.","Irrigation Audits - High Users","Site Visit",123,3,0,0,"N",0,0,213,{"$f":"tbl_predefined_measures[[#This Row],[ID]]&tbl_predefined_measures[[#This Row],[REGION]]","v":"PRE-MF-05A"}]
[null,"PRE-MF-06","A","MF","Rebate, Retrofit, and Incentive Programs","MF Acct.","High-Efficiency Sprinkler Nozzle Rebate","Rebate",88.235294117647044,10,0,0,"N",0,0,410,{"$f":"tbl_predefined_measures[[#This Row],[ID]]&tbl_predefined_measures[[#This Row],[REGION]]","v":"PRE-MF-06A"}]
[null,"PRE-MF-07","A","MF","Rebate, Retrofit, and Incentive Programs","MF Acct.","Smart Irrigation Controller Rebate","Rebate",208.70265914585013,10,0,0,"N",0,0,510,{"$f":"tbl_predefined_measures[[#This Row],[ID]]&tbl_predefined_measures[[#This Row],[REGION]]","v":"PRE-MF-07A"}]
[null,"PRE-MF-08","A","MF","Rebate, Retrofit, and Incentive Programs","MF Acct.","WaterWise Landscape Rebate","Rebate",1407.3529411764705,15,0,0.2,"N",0,0,5250,{"$f":"tbl_predefined_measures[[#This Row],[ID]]&tbl_predefined_measures[[#This Row],[REGION]]","v":"PRE-MF-08A"}]
[null,"PRE-MF-09","A","MF","Rebate, Retrofit, and Incentive Programs","MF Acct.","Rainwater Harvesting Rebate","Rebate",260.91536050156742,15,0,0,"N",0,0,2911,{"$f":"tbl_predefined_measures[[#This Row],[ID]]&tbl_predefined_measures[[#This Row],[REGION]]","v":"PRE-MF-09A"}]
[null,"PRE-ICI-01","A","ICI","Rebate, Retrofit, and Incentive Programs","Toilet","HE Toilet Rebate","Rebate",31.98,99,0,0.2,"Y",0.04,0,138,{"$f":"tbl_predefined_measures[[#This Row],[ID]]&tbl_predefined_measures[[#This Row],[REGION]]","v":"PRE-ICI-01A"}]
[null,"PRE-ICI-02","A","ICI","Rebate, Retrofit, and Incentive Programs","Urinal","Urinal Rebate","Rebate",17,99,0,0.2,"Y",0.04,0,138,{"$f":"tbl_predefined_measures[[#This Row],[ID]]&tbl_predefined_measures[[#This Row],[REGION]]","v":"PRE-ICI-02A"}]
[null,"PRE-ICI-03","A","ICI","Rebate, Retrofit, and Incentive Programs","Clothes Washer","Clothes Washer Rebate","Rebate",86,99,0,0.2,"Y",0.125,0,227,{"$f":"tbl_predefined_measures[[#This Row],[ID]]&tbl_predefined_measures[[#This Row],[REGION]]","v":"PRE-ICI-03A"}]
[null,"PRE-ICI-04","A","ICI","Rebate, Retrofit, and Incentive Programs","Other","Commercial General Rebate","Rebate",1,15,0,0.5,"N",0,0,1.68,{"$f":"tbl_predefined_measures[[#This Row],[ID]]&tbl_predefined_measures[[#This Row],[REGION]]","v":"PRE-ICI-04A"}]
[null,"PRE-ICI-05","A","ICI","Rebate, Retrofit, and Incentive Programs","ICI Acct.","Kitchen Pre-Rinse Spray Valve Installation","Direct Installation",77,99,0,0,"Y",0.1,0,213,{"$f":"tbl_predefined_measures[[#This Row],[ID]]&tbl_predefined_measures[[#This Row],[REGION]]","v":"PRE-ICI-05A"}]
[null,"PRE-ICI-06","A","ICI","Customer Assistance Programs","ICI Acct.","Irrigation Audits - High Users","Site Visit",123,3,0,0,"N",0,0,213,{"$f":"tbl_predefined_measures[[#This Row],[ID]]&tbl_predefined_measures[[#This Row],[REGION]]","v":"PRE-ICI-06A"}]
[null,"PRE-ICI-07","A","ICI","Rebate, Retrofit, and Incentive Programs","ICI Acct.","High-Efficiency Sprinkler Nozzle Rebate","Rebate",88.235294117647044,10,0,0,"N",0,0,410,{"$f":"tbl_predefined_measures[[#This Row],[ID]]&tbl_predefined_measures[[#This Row],[REGION]]","v":"PRE-ICI-07A"}]
[null,"PRE-ICI-08","A","ICI","Rebate, Retrofit, and Incentive Programs","ICI Acct.","Smart Irrigation Controller Rebate","Rebate",208.70265914585013,10,0,0,"N",0,0,510,{"$f":"tbl_predefined_measures[[#This Row],[ID]]&tbl_predefined_measures[[#This Row],[REGION]]","v":"PRE-ICI-08A"}]
[null,"PRE-ICI-09","A","ICI","Rebate, Retrofit, and Incentive Programs","ICI Acct.","WaterWise Landscape Rebate","Rebate",1407.3529411764705,15,0,0.2,"N",0,0,5250,{"$f":"tbl_predefined_measures[[#This Row],[ID]]&tbl_predefined_measures[[#This Row],[REGION]]","v":"PRE-ICI-09A"}]
[null,"PRE-ICI-10","A","ICI","Rebate, Retrofit, and Incentive Programs","ICI Acct.","Rainwater Harvesting Rebate","Rebate",260.91536050156742,15,0,0,"N",0,0,2911,{"$f":"tbl_predefined_measures[[#This Row],[ID]]&tbl_predefined_measures[[#This Row],[REGION]]","v":"PRE-ICI-10A"}]
[null,"PRE-ICI-11","A","ICI","Rebate, Retrofit, and Incentive Programs","ICI Acct.","Commercial Dishwasher Rebate","Rebate",158.23835616438356,20,0,0,"N",0,0,1028,{"$f":"tbl_predefined_measures[[#This Row],[ID]]&tbl_predefined_measures[[#This Row],[REGION]]","v":"PRE-ICI-11A"}]
[null,"PRE-ICI-12","A","ICI","Rebate, Retrofit, and Incentive Programs","ICI Acct.","Commercial Food Steamer Rebate","Rebate",223.2876712328767,10,0,0,"N",0,0,513,{"$f":"tbl_predefined_measures[[#This Row],[ID]]&tbl_predefined_measures[[#This Row],[REGION]]","v":"PRE-ICI-12A"}]
[null,"PRE-SF-01","B","SF","Rebate, Retrofit, and Incentive Programs","Toilet","HE Toilet Rebate","Rebate",24.736856973371065,99,0,0.2,"Y",0.04,0,113,{"$f":"tbl_predefined_measures[[#This Row],[ID]]&tbl_predefined_measures[[#This Row],[REGION]]","v":"PRE-SF-01B"}]
[null,"PRE-SF-02","B","SF","Rebate, Retrofit, and Incentive Programs","Toilet","Bathroom Retrofit","Direct Installation",27.371438894975636,99,0,0,"Y",0.04,0,329,{"$f":"tbl_predefined_measures[[#This Row],[ID]]&tbl_predefined_measures[[#This Row],[REGION]]","v":"PRE-SF-02B"}]
[null,"PRE-SF-03","B","SF","Rebate, Retrofit, and Incentive Programs","Showerhead","Showerhead and Aerator Kit","Distribution",6.1806474924138533,99,0,0.5,"Y",6.7000000000000004E-2,0,10,{"$f":"tbl_predefined_measures[[#This Row],[ID]]&tbl_predefined_measures[[#This Row],[REGION]]","v":"PRE-SF-03B"}]
[null,"PRE-SF-04","B","SF","Rebate, Retrofit, and Incentive Programs","Clothes Washer","Clothes Washer Rebate","Rebate",12.475778858536767,99,0,0.2,"Y",7.0999999999999994E-2,0,156,{"$f":"tbl_predefined_measures[[#This Row],[ID]]&tbl_predefined_measures[[#This Row],[REGION]]","v":"PRE-SF-04B"}]
[null,"PRE-SF-05","B","SF","Customer Assistance Programs","SF Acct.","Home Water Reports","Distribution",12.1,1,0,0,"N",0,0,7,{"$f":"tbl_predefined_measures[[#This Row],[ID]]&tbl_predefined_measures[[#This Row],[REGION]]","v":"PRE-SF-05B"}]
[null,"PRE-SF-06","B","SF","Customer Assistance Programs","SF Acct.","Irrigation Audits - High Users","Site Visit",33,3,0,0,"N",0,0,99,{"$f":"tbl_predefined_measures[[#This Row],[ID]]&tbl_predefined_measures[[#This Row],[REGION]]","v":"PRE-SF-06B"}]
[null,"PRE-SF-07","B","SF","Rebate, Retrofit, and Incentive Programs","SF Acct.","High-Efficiency Sprinkler Nozzle Rebate","Rebate",15.570934256055367,10,0,0,"N",0,0,110,{"$f":"tbl_predefined_measures[[#This Row],[ID]]&tbl_predefined_measures[[#This Row],[REGION]]","v":"PRE-SF-07B"}]
[null,"PRE-SF-08","B","SF","Rebate, Retrofit, and Incentive Programs","SF Acct.","Smart Irrigation Controller Rebate","Rebate",39.285206427454149,10,0,0,"N",0,0,210,{"$f":"tbl_predefined_measures[[#This Row],[ID]]&tbl_predefined_measures[[#This Row],[REGION]]","v":"PRE-SF-08B"}]
[null,"PRE-SF-09","B","SF","Rebate, Retrofit, and Incentive Programs","SF Acct.","WaterWise Landscape Rebate","Rebate",99.342560553633234,15,0,0.2,"N",0,0,550,{"$f":"tbl_predefined_measures[[#This Row],[ID]]&tbl_predefined_measures[[#This Row],[REGION]]","v":"PRE-SF-09B"}]
[null,"PRE-SF-10","B","SF","Rebate, Retrofit, and Incentive Programs","SF Acct.","Rainwater Harvesting Rebate","Rebate",31.889655172413789,15,0,0,"N",0,0,355,{"$f":"tbl_predefined_measures[[#This Row],[ID]]&tbl_predefined_measures[[#This Row],[REGION]]","v":"PRE-SF-10B"}]
[null,"PRE-SF-11","B","SF","Rebate, Retrofit, and Incentive Programs","SF Acct.","Rain Barrel","Rebate",3.4426332288401249,15,0,0,"N",0,0,64,{"$f":"tbl_predefined_measures[[#This Row],[ID]]&tbl_predefined_measures[[#This Row],[REGION]]","v":"PRE-SF-11B"}]
[null,"PRE-MF-01","B","MF","Rebate, Retrofit, and Incentive Programs","Toilet","HE Toilet Rebate","Rebate",35.129915227471393,99,0,0.2,"Y",0.04,0,113,{"$f":"tbl_predefined_measures[[#This Row],[ID]]&tbl_predefined_measures[[#This Row],[REGION]]","v":"PRE-MF-01B"}]
[null,"PRE-MF-02","B","MF","Rebate, Retrofit, and Incentive Programs","Toilet","Bathroom Retrofit","Direct Installation",46.358312018516202,99,0,0,"Y",0.04,0,329,{"$f":"tbl_predefined_measures[[#This Row],[ID]]&tbl_predefined_measures[[#This Row],[REGION]]","v":"PRE-MF-02B"}]
[null,"PRE-MF-03","B","MF","Rebate, Retrofit, and Incentive Programs","Showerhead","Showerhead and Aerator Kit","Distribution",6.1693571127302933,99,0,0.5,"Y",6.7000000000000004E-2,0,10,{"$f":"tbl_predefined_measures[[#This Row],[ID]]&tbl_predefined_measures[[#This Row],[REGION]]","v":"PRE-MF-03B"}]
[null,"PRE-MF-04","B","MF","Rebate, Retrofit, and Incentive Programs","Clothes Washer","Clothes Washer Rebate","Rebate",32.125311127647215,99,0,0.2,"Y",0.125,0,156,{"$f":"tbl_predefined_measures[[#This Row],[ID]]&tbl_predefined_measures[[#This Row],[REGION]]","v":"PRE-MF-04B"}]
[null,"PRE-MF-05","B","MF","Customer Assistance Programs","MF Acct.","Irrigation Audits - High Users","Site Visit",123,3,0,0,"N",0,0,213,{"$f":"tbl_predefined_measures[[#This Row],[ID]]&tbl_predefined_measures[[#This Row],[REGION]]","v":"PRE-MF-05B"}]
[null,"PRE-MF-06","B","MF","Rebate, Retrofit, and Incentive Programs","MF Acct.","High-Efficiency Sprinkler Nozzle Rebate","Rebate",62.283737024221466,10,0,0,"N",0,0,410,{"$f":"tbl_predefined_measures[[#This Row],[ID]]&tbl_predefined_measures[[#This Row],[REGION]]","v":"PRE-MF-06B"}]
[null,"PRE-MF-07","B","MF","Rebate, Retrofit, and Incentive Programs","MF Acct.","Smart Irrigation Controller Rebate","Rebate",147.31952410295304,10,0,0,"N",0,0,510,{"$f":"tbl_predefined_measures[[#This Row],[ID]]&tbl_predefined_measures[[#This Row],[REGION]]","v":"PRE-MF-07B"}]
[null,"PRE-MF-08","B","MF","Rebate, Retrofit, and Incentive Programs","MF Acct.","WaterWise Landscape Rebate","Rebate",993.42560553633234,15,0,0.2,"N",0,0,5250,{"$f":"tbl_predefined_measures[[#This Row],[ID]]&tbl_predefined_measures[[#This Row],[REGION]]","v":"PRE-MF-08B"}]
[null,"PRE-MF-09","B","MF","Rebate, Retrofit, and Incentive Programs","MF Acct.","Rainwater Harvesting Rebate","Rebate",369.63009404388708,15,0,0,"N",0,0,2911,{"$f":"tbl_predefined_measures[[#This Row],[ID]]&tbl_predefined_measures[[#This Row],[REGION]]","v":"PRE-MF-09B"}]
[null,"PRE-ICI-01","B","ICI","Rebate, Retrofit, and Incentive Programs","Toilet","HE Toilet Rebate","Rebate",31.98,99,0,0.2,"Y",0.04,0,138,{"$f":"tbl_predefined_measures[[#This Row],[ID]]&tbl_predefined_measures[[#This Row],[REGION]]","v":"PRE-ICI-01B"}]
[null,"PRE-ICI-02","B","ICI","Rebate, Retrofit, and Incentive Programs","Urinal","Urinal Rebate","Rebate",17,99,0,0.2,"Y",0.04,0,138,{"$f":"tbl_predefined_measures[[#This Row],[ID]]&tbl_predefined_measures[[#This Row],[REGION]]","v":"PRE-ICI-02B"}]
[null,"PRE-ICI-03","B","ICI","Rebate, Retrofit, and Incentive Programs","Clothes Washer","Clothes Washer Rebate","Rebate",86,99,0,0.2,"Y",0.125,0,227,{"$f":"tbl_predefined_measures[[#This Row],[ID]]&tbl_predefined_measures[[#This Row],[REGION]]","v":"PRE-ICI-03B"}]
[null,"PRE-ICI-04","B","ICI","Rebate, Retrofit, and Incentive Programs","Other","Commercial General Rebate","Rebate",1,15,0,0.5,"N",0,0,1.68,{"$f":"tbl_predefined_measures[[#This Row],[ID]]&tbl_predefined_measures[[#This Row],[REGION]]","v":"PRE-ICI-04B"}]
[null,"PRE-ICI-05","B","ICI","Rebate, Retrofit, and Incentive Programs","ICI Acct.","Kitchen Pre-Rinse Spray Valve Installation","Direct Installation",77,99,0,0,"Y",0.1,0,213,{"$f":"tbl_predefined_measures[[#This Row],[ID]]&tbl_predefined_measures[[#This Row],[REGION]]","v":"PRE-ICI-05B"}]
[null,"PRE-ICI-06","B","ICI","Customer Assistance Programs","ICI Acct.","Irrigation Audits - High Users","Site Visit",123,3,0,0,"N",0,0,213,{"$f":"tbl_predefined_measures[[#This Row],[ID]]&tbl_predefined_measures[[#This Row],[REGION]]","v":"PRE-ICI-06B"}]
[null,"PRE-ICI-07","B","ICI","Rebate, Retrofit, and Incentive Programs","ICI Acct.","High-Efficiency Sprinkler Nozzle Rebate","Rebate",62.283737024221466,10,0,0,"N",0,0,410,{"$f":"tbl_predefined_measures[[#This Row],[ID]]&tbl_predefined_measures[[#This Row],[REGION]]","v":"PRE-ICI-07B"}]
[null,"PRE-ICI-08","B","ICI","Rebate, Retrofit, and Incentive Programs","ICI Acct.","Smart Irrigation Controller Rebate","Rebate",147.31952410295304,10,0,0,"N",0,0,510,{"$f":"tbl_predefined_measures[[#This Row],[ID]]&tbl_predefined_measures[[#This Row],[REGION]]","v":"PRE-ICI-08B"}]
[null,"PRE-ICI-09","B","ICI","Rebate, Retrofit, and Incentive Programs","ICI Acct.","WaterWise Landscape Rebate","Rebate",993.42560553633234,15,0,0.2,"N",0,0,5250,{"$f":"tbl_predefined_measures[[#This Row],[ID]]&tbl_predefined_measures[[#This Row],[REGION]]","v":"PRE-ICI-09B"}]
[null,"PRE-ICI-10","B","ICI","Rebate, Retrofit, and Incentive Programs","ICI Acct.","Rainwater Harvesting Rebate","Rebate",369.63009404388708,15,0,0,"N",0,0,2911,{"$f":"tbl_predefined_measures[[#This Row],[ID]]&tbl_predefined_measures[[#This Row],[REGION]]","v":"PRE-ICI-10B"}]
[null,"PRE-ICI-11","B","ICI","Rebate, Retrofit, and Incentive Programs","ICI Acct.","Commercial Dishwasher Rebate","Rebate",158.23835616438356,20,0,0,"N",0,0,1028,{"$f":"tbl_predefined_measures[[#This Row],[ID]]&tbl_predefined_measures[[#This Row],[REGION]]","v":"PRE-ICI-11B"}]
[null,"PRE-ICI-12","B","ICI","Rebate, Retrofit, and Incentive Programs","ICI Acct.","Commercial Food Steamer Rebate","Rebate",223.2876712328767,10,0,0,"N",0,0,513,{"$f":"tbl_predefined_measures[[#This Row],[ID]]&tbl_predefined_measures[[#This Row],[REGION]]","v":"PRE-ICI-12B"}]
[null,"PRE-SF-01","C","SF","Rebate, Retrofit, and Incentive Programs","Toilet","HE Toilet Rebate","Rebate",26.838030291032851,99,0,0.2,"Y",0.04,0,113,{"$f":"tbl_predefined_measures[[#This Row],[ID]]&tbl_predefined_measures[[#This Row],[REGION]]","v":"PRE-SF-01C"}]
[null,"PRE-SF-02","C","SF","Rebate, Retrofit, and Incentive Programs","Toilet","Bathroom Retrofit","Direct Installation",32.470061906534113,99,0,0,"Y",0.04,0,329,{"$f":"tbl_predefined_measures[[#This Row],[ID]]&tbl_predefined_measures[[#This Row],[REGION]]","v":"PRE-SF-02C"}]
[null,"PRE-SF-03","C","SF","Rebate, Retrofit, and Incentive Programs","Showerhead","Showerhead and Aerator Kit","Distribution",7.3319494627657669,99,0,0.5,"Y",6.7000000000000004E-2,0,10,{"$f":"tbl_predefined_measures[[#This Row],[ID]]&tbl_predefined_measures[[#This Row],[REGION]]","v":"PRE-SF-03C"}]
[null,"PRE-SF-04","C","SF","Rebate, Retrofit, and Incentive Programs","Clothes Washer","Clothes Washer Rebate","Rebate",14.799708317244418,99,0,0.2,"Y",7.0999999999999994E-2,0,156,{"$f":"tbl_predefined_measures[[#This Row],[ID]]&tbl_predefined_measures[[#This Row],[REGION]]","v":"PRE-SF-04C"}]
[null,"PRE-SF-05","C","SF","Customer Assistance Programs","SF Acct.","Home Water Reports","Distribution",12.1,1,0,0,"N",0,0,7,{"$f":"tbl_predefined_measures[[#This Row],[ID]]&tbl_predefined_measures[[#This Row],[REGION]]","v":"PRE-SF-05C"}]
[null,"PRE-SF-06","C","SF","Customer Assistance Programs","SF Acct.","Irrigation Audits - High Users","Site Visit",33,3,0,0,"N",0,0,99,{"$f":"tbl_predefined_measures[[#This Row],[ID]]&tbl_predefined_measures[[#This Row],[REGION]]","v":"PRE-SF-06C"}]
[null,"PRE-SF-07","C","SF","Rebate, Retrofit, and Incentive Programs","SF Acct.","High-Efficiency Sprinkler Nozzle Rebate","Rebate",12.465373961218836,10,0,0,"N",0,0,110,{"$f":"tbl_predefined_measures[[#This Row],[ID]]&tbl_predefined_measures[[#This Row],[REGION]]","v":"PRE-SF-07C"}]
[null,"PRE-SF-08","C","SF","Rebate, Retrofit, and Incentive Programs","SF Acct.","Smart Irrigation Controller Rebate","Rebate",31.449929799263845,10,0,0,"N",0,0,210,{"$f":"tbl_predefined_measures[[#This Row],[ID]]&tbl_predefined_measures[[#This Row],[REGION]]","v":"PRE-SF-08C"}]
[null,"PRE-SF-09","C","SF","Rebate, Retrofit, and Incentive Programs","SF Acct.","WaterWise Landscape Rebate","Rebate",79.529085872576175,15,0,0.2,"N",0,0,550,{"$f":"tbl_predefined_measures[[#This Row],[ID]]&tbl_predefined_measures[[#This Row],[REGION]]","v":"PRE-SF-09C"}]
[null,"PRE-SF-10","C","SF","Rebate, Retrofit, and Incentive Programs","SF Acct.","Rainwater Harvesting Rebate","Rebate",39.834482758620702,15,0,0,"N",0,0,355,{"$f":"tbl_predefined_measures[[#This Row],[ID]]&tbl_predefined_measures[[#This Row],[REGION]]","v":"PRE-SF-10C"}]
[null,"PRE-SF-11","C","SF","Rebate, Retrofit, and Incentive Programs","SF Acct.","Rain Barrel","Rebate",4.3003134796238252,15,0,0,"N",0,0,64,{"$f":"tbl_predefined_measures[[#This Row],[ID]]&tbl_predefined_measures[[#This Row],[REGION]]","v":"PRE-SF-11C"}]
[null,"PRE-MF-01","C","MF","Rebate, Retrofit, and Incentive Programs","Toilet","HE Toilet Rebate","Rebate",38.813067861044573,99,0,0.2,"Y",0.04,0,113,{"$f":"tbl_predefined_measures[[#This Row],[ID]]&tbl_predefined_measures[[#This Row],[REGION]]","v":"PRE-MF-01C"}]
[null,"PRE-MF-02","C","MF","Rebate, Retrofit, and Incentive Programs","Toilet","Bathroom Retrofit","Direct Installation",52.133538781696267,99,0,0,"Y",0.04,0,329,{"$f":"tbl_predefined_measures[[#This Row],[ID]]&tbl_predefined_measures[[#This Row],[REGION]]","v":"PRE-MF-02C"}]
[null,"PRE-MF-03","C","MF","Rebate, Retrofit, and Incentive Programs","Showerhead","Showerhead and Aerator Kit","Distribution",6.9379234120128102,99,0,0.5,"Y",6.7000000000000004E-2,0,10,{"$f":"tbl_predefined_measures[[#This Row],[ID]]&tbl_predefined_measures[[#This Row],[REGION]]","v":"PRE-MF-03C"}]
[null,"PRE-MF-04","C","MF","Rebate, Retrofit, and Incentive Programs","Clothes Washer","Clothes Washer Rebate","Rebate",36.127418808482759,99,0,0.2,"Y",0.125,0,156,{"$f":"tbl_predefined_measures[[#This Row],[ID]]&tbl_predefined_measures[[#This Row],[REGION]]","v":"PRE-MF-04C"}]
[null,"PRE-MF-05","C","MF","Customer Assistance Programs","MF Acct.","Irrigation Audits - High Users","Site Visit",123,3,0,0,"N",0,0,213,{"$f":"tbl_predefined_measures[[#This Row],[ID]]&tbl_predefined_measures[[#This Row],[REGION]]","v":"PRE-MF-05C"}]
[null,"PRE-MF-06","C","MF","Rebate, Retrofit, and Incentive Programs","MF Acct.","High-Efficiency Sprinkler Nozzle Rebate","Rebate",49.861495844875343,10,0,0,"N",0,0,410,{"$f":"tbl_predefined_measures[[#This Row],[ID]]&tbl_predefined_measures[[#This Row],[REGION]]","v":"PRE-MF-06C"}]
[null,"PRE-MF-07","C","MF","Rebate, Retrofit, and Incentive Programs","MF Acct.","Smart Irrigation Controller Rebate","Rebate",117.93723674723941,10,0,0,"N",0,0,510,{"$f":"tbl_predefined_measures[[#This Row],[ID]]&tbl_predefined_measures[[#This Row],[REGION]]","v":"PRE-MF-07C"}]
[null,"PRE-MF-08","C","MF","Rebate, Retrofit, and Incentive Programs","MF Acct.","WaterWise Landscape Rebate","Rebate",795.29085872576172,15,0,0.2,"N",0,0,5250,{"$f":"tbl_predefined_measures[[#This Row],[ID]]&tbl_predefined_measures[[#This Row],[REGION]]","v":"PRE-MF-08C"}]
[null,"PRE-MF-09","C","MF","Rebate, Retrofit, and Incentive Programs","MF Acct.","Rainwater Harvesting Rebate","Rebate",461.71786833855805,15,0,0,"N",0,0,2911,{"$f":"tbl_predefined_measures[[#This Row],[ID]]&tbl_predefined_measures[[#This Row],[REGION]]","v":"PRE-MF-09C"}]
[null,"PRE-ICI-01","C","ICI","Rebate, Retrofit, and Incentive Programs","Toilet","HE Toilet Rebate","Rebate",31.98,99,0,0.2,"Y",0.04,0,138,{"$f":"tbl_predefined_measures[[#This Row],[ID]]&tbl_predefined_measures[[#This Row],[REGION]]","v":"PRE-ICI-01C"}]
[null,"PRE-ICI-02","C","ICI","Rebate, Retrofit, and Incentive Programs","Urinal","Urinal Rebate","Rebate",17,99,0,0.2,"Y",0.04,0,138,{"$f":"tbl_predefined_measures[[#This Row],[ID]]&tbl_predefined_measures[[#This Row],[REGION]]","v":"PRE-ICI-02C"}]
[null,"PRE-ICI-03","C","ICI","Rebate, Retrofit, and Incentive Programs","Clothes Washer","Clothes Washer Rebate","Rebate",86,99,0,0.2,"Y",0.125,0,227,{"$f":"tbl_predefined_measures[[#This Row],[ID]]&tbl_predefined_measures[[#This Row],[REGION]]","v":"PRE-ICI-03C"}]
[null,"PRE-ICI-04","C","ICI","Rebate, Retrofit, and Incentive Programs","Other","Commercial General Rebate","Rebate",1,15,0,0.5,"N",0,0,1.68,{"$f":"tbl_predefined_measures[[#This Row],[ID]]&tbl_predefined_measures[[#This Row],[REGION]]","v":"PRE-ICI-04C"}]
[null,"PRE-ICI-05","C","ICI","Rebate, Retrofit, and Incentive Programs","ICI Acct.","Kitchen Pre-Rinse Spray Valve Installation","Direct Installation",77,99,0,0,"Y",0.1,0,213,{"$f":"tbl_predefined_measures[[#This Row],[ID]]&tbl_predefined_measures[[#This Row],[REGION]]","v":"PRE-ICI-05C"}]
[null,"PRE-ICI-06","C","ICI","Customer Assistance Programs","ICI Acct.","Irrigation Audits - High Users","Site Visit",123,3,0,0,"N",0,0,213,{"$f":"tbl_predefined_measures[[#This Row],[ID]]&tbl_predefined_measures[[#This Row],[REGION]]","v":"PRE-ICI-06C"}]
[null,"PRE-ICI-07","C","ICI","Rebate, Retrofit, and Incentive Programs","ICI Acct.","High-Efficiency Sprinkler Nozzle Rebate","Rebate",49.861495844875343,10,0,0,"N",0,0,410,{"$f":"tbl_predefined_measures[[#This Row],[ID]]&tbl_predefined_measures[[#This Row],[REGION]]","v":"PRE-ICI-07C"}]
[null,"PRE-ICI-08","C","ICI","Rebate, Retrofit, and Incentive Programs","ICI Acct.","Smart Irrigation Controller Rebate","Rebate",117.93723674723941,10,0,0,"N",0,0,510,{"$f":"tbl_predefined_measures[[#This Row],[ID]]&tbl_predefined_measures[[#This Row],[REGION]]","v":"PRE-ICI-08C"}]
[null,"PRE-ICI-09","C","ICI","Rebate, Retrofit, and Incentive Programs","ICI Acct.","WaterWise Landscape Rebate","Rebate",795.29085872576172,15,0,0.2,"N",0,0,5250,{"$f":"tbl_predefined_measures[[#This Row],[ID]]&tbl_predefined_measures[[#This Row],[REGION]]","v":"PRE-ICI-09C"}]
[null,"PRE-ICI-10","C","ICI","Rebate, Retrofit, and Incentive Programs","ICI Acct.","Rainwater Harvesting Rebate","Rebate",461.71786833855805,15,0,0,"N",0,0,2911,{"$f":"tbl_predefined_measures[[#This Row],[ID]]&tbl_predefined_measures[[#This Row],[REGION]]","v":"PRE-ICI-10C"}]
[null,"PRE-ICI-11","C","ICI","Rebate, Retrofit, and Incentive Programs","ICI Acct.","Commercial Dishwasher Rebate","Rebate",158.23835616438356,20,0,0,"N",0,0,1028,{"$f":"tbl_predefined_measures[[#This Row],[ID]]&tbl_predefined_measures[[#This Row],[REGION]]","v":"PRE-ICI-11C"}]
[null,"PRE-ICI-12","C","ICI","Rebate, Retrofit, and Incentive Programs","ICI Acct.","Commercial Food Steamer Rebate","Rebate",223.2876712328767,10,0,0,"N",0,0,513,{"$f":"tbl_predefined_measures[[#This Row],[ID]]&tbl_predefined_measures[[#This Row],[REGION]]","v":"PRE-ICI-12C"}]
[null,"PRE-SF-01","D","SF","Rebate, Retrofit, and Incentive Programs","Toilet","HE Toilet Rebate","Rebate",25.247206482255653,99,0,0.2,"Y",0.04,0,113,{"$f":"tbl_predefined_measures[[#This Row],[ID]]&tbl_predefined_measures[[#This Row],[REGION]]","v":"PRE-SF-01D"}]
[null,"PRE-SF-02","D","SF","Rebate, Retrofit, and Incentive Programs","Toilet","Bathroom Retrofit","Direct Installation",28.561189252627841,99,0,0,"Y",0.04,0,329,{"$f":"tbl_predefined_measures[[#This Row],[ID]]&tbl_predefined_measures[[#This Row],[REGION]]","v":"PRE-SF-02D"}]
[null,"PRE-SF-03","D","SF","Rebate, Retrofit, and Incentive Programs","Showerhead","Showerhead and Aerator Kit","Distribution",6.4493007989804809,99,0,0.5,"Y",6.7000000000000004E-2,0,10,{"$f":"tbl_predefined_measures[[#This Row],[ID]]&tbl_predefined_measures[[#This Row],[REGION]]","v":"PRE-SF-03D"}]
[null,"PRE-SF-04","D","SF","Rebate, Retrofit, and Incentive Programs","Clothes Washer","Clothes Washer Rebate","Rebate",13.018061725575173,99,0,0.2,"Y",7.0999999999999994E-2,0,156,{"$f":"tbl_predefined_measures[[#This Row],[ID]]&tbl_predefined_measures[[#This Row],[REGION]]","v":"PRE-SF-04D"}]
[null,"PRE-SF-05","D","SF","Customer Assistance Programs","SF Acct.","Home Water Reports","Distribution",12.1,1,0,0,"N",0,0,7,{"$f":"tbl_predefined_measures[[#This Row],[ID]]&tbl_predefined_measures[[#This Row],[REGION]]","v":"PRE-SF-05D"}]
[null,"PRE-SF-06","D","SF","Customer Assistance Programs","SF Acct.","Irrigation Audits - High Users","Site Visit",33,3,0,0,"N",0,0,99,{"$f":"tbl_predefined_measures[[#This Row],[ID]]&tbl_predefined_measures[[#This Row],[REGION]]","v":"PRE-SF-06D"}]
[null,"PRE-SF-07","D","SF","Rebate, Retrofit, and Incentive Programs","SF Acct.","High-Efficiency Sprinkler Nozzle Rebate","Rebate",10.392609699769055,10,0,0,"N",0,0,110,{"$f":"tbl_predefined_measures[[#This Row],[ID]]&tbl_predefined_measures[[#This Row],[REGION]]","v":"PRE-SF-07D"}]
[null,"PRE-SF-08","D","SF","Rebate, Retrofit, and Incentive Programs","SF Acct.","Smart Irrigation Controller Rebate","Rebate",26.220380271441691,10,0,0,"N",0,0,210,{"$f":"tbl_predefined_measures[[#This Row],[ID]]&tbl_predefined_measures[[#This Row],[REGION]]","v":"PRE-SF-08D"}]
[null,"PRE-SF-09","D","SF","Rebate, Retrofit, and Incentive Programs","SF Acct.","WaterWise Landscape Rebate","Rebate",66.304849884526575,15,0,0.2,"N",0,0,550,{"$f":"tbl_predefined_measures[[#This Row],[ID]]&tbl_predefined_measures[[#This Row],[REGION]]","v":"PRE-SF-09D"}]
[null,"PRE-SF-10","D","SF","Rebate, Retrofit, and Incentive Programs","SF Acct.","Rainwater Harvesting Rebate","Rebate",47.779310344827586,15,0,0,"N",0,0,355,{"$f":"tbl_predefined_measures[[#This Row],[ID]]&tbl_predefined_measures[[#This Row],[REGION]]","v":"PRE-SF-10D"}]
[null,"PRE-SF-11","D","SF","Rebate, Retrofit, and Incentive Programs","SF Acct.","Rain Barrel","Rebate",5.1579937304075223,15,0,0,"N",0,0,64,{"$f":"tbl_predefined_measures[[#This Row],[ID]]&tbl_predefined_measures[[#This Row],[REGION]]","v":"PRE-SF-11D"}]
[null,"PRE-MF-01","D","MF","Rebate, Retrofit, and Incentive Programs","Toilet","HE Toilet Rebate","Rebate",37.216256449583085,99,0,0.2,"Y",0.04,0,113,{"$f":"tbl_predefined_measures[[#This Row],[ID]]&tbl_predefined_measures[[#This Row],[REGION]]","v":"PRE-MF-01D"}]
[null,"PRE-MF-02","D","MF","Rebate, Retrofit, and Incentive Programs","Toilet","Bathroom Retrofit","Direct Installation",49.614381039133967,99,0,0,"Y",0.04,0,329,{"$f":"tbl_predefined_measures[[#This Row],[ID]]&tbl_predefined_measures[[#This Row],[REGION]]","v":"PRE-MF-02D"}]
[null,"PRE-MF-03","D","MF","Rebate, Retrofit, and Incentive Programs","Showerhead","Showerhead and Aerator Kit","Distribution",6.6026742827744824,99,0,0.5,"Y",6.7000000000000004E-2,0,10,{"$f":"tbl_predefined_measures[[#This Row],[ID]]&tbl_predefined_measures[[#This Row],[REGION]]","v":"PRE-MF-03D"}]
[null,"PRE-MF-04","D","MF","Rebate, Retrofit, and Incentive Programs","Clothes Washer","Clothes Washer Rebate","Rebate",34.381696785059837,99,0,0.2,"Y",0.125,0,156,{"$f":"tbl_predefined_measures[[#This Row],[ID]]&tbl_predefined_measures[[#This Row],[REGION]]","v":"PRE-MF-04D"}]
[null,"PRE-MF-05","D","MF","Customer Assistance Programs","MF Acct.","Irrigation Audits - High Users","Site Visit",123,3,0,0,"N",0,0,213,{"$f":"tbl_predefined_measures[[#This Row],[ID]]&tbl_predefined_measures[[#This Row],[REGION]]","v":"PRE-MF-05D"}]
[null,"PRE-MF-06","D","MF","Rebate, Retrofit, and Incentive Programs","MF Acct.","High-Efficiency Sprinkler Nozzle Rebate","Rebate",41.570438799076221,10,0,0,"N",0,0,410,{"$f":"tbl_predefined_measures[[#This Row],[ID]]&tbl_predefined_measures[[#This Row],[REGION]]","v":"PRE-MF-06D"}]
[null,"PRE-MF-07","D","MF","Rebate, Retrofit, and Incentive Programs","MF Acct.","Smart Irrigation Controller Rebate","Rebate",98.326426017906329,10,0,0,"N",0,0,510,{"$f":"tbl_predefined_measures[[#This Row],[ID]]&tbl_predefined_measures[[#This Row],[REGION]]","v":"PRE-MF-07D"}]
[null,"PRE-MF-08","D","MF","Rebate, Retrofit, and Incentive Programs","MF Acct.","WaterWise Landscape Rebate","Rebate",663.04849884526573,15,0,0.2,"N",0,0,5250,{"$f":"tbl_predefined_measures[[#This Row],[ID]]&tbl_predefined_measures[[#This Row],[REGION]]","v":"PRE-MF-08D"}]
[null,"PRE-MF-09","D","MF","Rebate, Retrofit, and Incentive Programs","MF Acct.","Rainwater Harvesting Rebate","Rebate",553.80564263322867,15,0,0,"N",0,0,2911,{"$f":"tbl_predefined_measures[[#This Row],[ID]]&tbl_predefined_measures[[#This Row],[REGION]]","v":"PRE-MF-09D"}]
[null,"PRE-ICI-01","D","ICI","Rebate, Retrofit, and Incentive Programs","Toilet","HE Toilet Rebate","Rebate",31.98,99,0,0.2,"Y",0.04,0,138,{"$f":"tbl_predefined_measures[[#This Row],[ID]]&tbl_predefined_measures[[#This Row],[REGION]]","v":"PRE-ICI-01D"}]
[null,"PRE-ICI-02","D","ICI","Rebate, Retrofit, and Incentive Programs","Urinal","Urinal Rebate","Rebate",17,99,0,0.2,"Y",0.04,0,138,{"$f":"tbl_predefined_measures[[#This Row],[ID]]&tbl_predefined_measures[[#This Row],[REGION]]","v":"PRE-ICI-02D"}]
[null,"PRE-ICI-03","D","ICI","Rebate, Retrofit, and Incentive Programs","Clothes Washer","Clothes Washer Rebate","Rebate",86,99,0,0.2,"Y",0.125,0,227,{"$f":"tbl_predefined_measures[[#This Row],[ID]]&tbl_predefined_measures[[#This Row],[REGION]]","v":"PRE-ICI-03D"}]
[null,"PRE-ICI-04","D","ICI","Rebate, Retrofit, and Incentive Programs","Other","Commercial General Rebate","Rebate",1,15,0,0.5,"N",0,0,1.68,{"$f":"tbl_predefined_measures[[#This Row],[ID]]&tbl_predefined_measures[[#This Row],[REGION]]","v":"PRE-ICI-04D"}]
[null,"PRE-ICI-05","D","ICI","Rebate, Retrofit, and Incentive Programs","ICI Acct.","Kitchen Pre-Rinse Spray Valve Installation","Direct Installation",77,99,0,0,"Y",0.1,0,213,{"$f":"tbl_predefined_measures[[#This Row],[ID]]&tbl_predefined_measures[[#This Row],[REGION]]","v":"PRE-ICI-05D"}]
[null,"PRE-ICI-06","D","ICI","Customer Assistance Programs","ICI Acct.","Irrigation Audits - High Users","Site Visit",123,3,0,0,"N",0,0,213,{"$f":"tbl_predefined_measures[[#This Row],[ID]]&tbl_predefined_measures[[#This Row],[REGION]]","v":"PRE-ICI-06D"}]
[null,"PRE-ICI-07","D","ICI","Rebate, Retrofit, and Incentive Programs","ICI Acct.","High-Efficiency Sprinkler Nozzle Rebate","Rebate",41.570438799076221,10,0,0,"N",0,0,410,{"$f":"tbl_predefined_measures[[#This Row],[ID]]&tbl_predefined_measures[[#This Row],[REGION]]","v":"PRE-ICI-07D"}]
[null,"PRE-ICI-08","D","ICI","Rebate, Retrofit, and Incentive Programs","ICI Acct.","Smart Irrigation Controller Rebate","Rebate",98.326426017906329,10,0,0,"N",0,0,510,{"$f":"tbl_predefined_measures[[#This Row],[ID]]&tbl_predefined_measures[[#This Row],[REGION]]","v":"PRE-ICI-08D"}]
[null,"PRE-ICI-09","D","ICI","Rebate, Retrofit, and Incentive Programs","ICI Acct.","WaterWise Landscape Rebate","Rebate",663.04849884526573,15,0,0.2,"N",0,0,5250,{"$f":"tbl_predefined_measures[[#This Row],[ID]]&tbl_predefined_measures[[#This Row],[REGION]]","v":"PRE-ICI-09D"}]
[null,"PRE-ICI-10","D","ICI","Rebate, Retrofit, and Incentive Programs","ICI Acct.","Rainwater Harvesting Rebate","Rebate",553.80564263322867,15,0,0,"N",0,0,2911,{"$f":"tbl_predefined_measures[[#This Row],[ID]]&tbl_predefined_measures[[#This Row],[REGION]]","v":"PRE-ICI-10D"}]
[null,"PRE-ICI-11","D","ICI","Rebate, Retrofit, and Incentive Programs","ICI Acct.","Commercial Dishwasher Rebate","Rebate",158.23835616438356,20,0,0,"N",0,0,1028,{"$f":"tbl_predefined_measures[[#This Row],[ID]]&tbl_predefined_measures[[#This Row],[REGION]]","v":"PRE-ICI-11D"}]
[null,"PRE-ICI-12","D","ICI","Rebate, Retrofit, and Incentive Programs","ICI Acct.","Commercial Food Steamer Rebate","Rebate",223.2876712328767,10,0,0,"N",0,0,513,{"$f":"tbl_predefined_measures[[#This Row],[ID]]&tbl_predefined_measures[[#This Row],[REGION]]","v":"PRE-ICI-12D"}]
[null,"PRE-SF-01","E","SF","Rebate, Retrofit, and Incentive Programs","Toilet","HE Toilet Rebate","Rebate",29.690734633432264,99,0,0.2,"Y",0.04,0,113,{"$f":"tbl_predefined_measures[[#This Row],[ID]]&tbl_predefined_measures[[#This Row],[REGION]]","v":"PRE-SF-01E"}]
[null,"PRE-SF-02","E","SF","Rebate, Retrofit, and Incentive Programs","Toilet","Bathroom Retrofit","Direct Installation",40.493565374731332,99,0,0,"Y",0.04,0,329,{"$f":"tbl_predefined_measures[[#This Row],[ID]]&tbl_predefined_measures[[#This Row],[REGION]]","v":"PRE-SF-02E"}]
[null,"PRE-SF-03","E","SF","Rebate, Retrofit, and Incentive Programs","Showerhead","Showerhead and Aerator Kit","Distribution",9.1437083104232038,99,0,0.5,"Y",6.7000000000000004E-2,0,10,{"$f":"tbl_predefined_measures[[#This Row],[ID]]&tbl_predefined_measures[[#This Row],[REGION]]","v":"PRE-SF-03E"}]
[null,"PRE-SF-04","E","SF","Rebate, Retrofit, and Incentive Programs","Clothes Washer","Clothes Washer Rebate","Rebate",18.456785145540273,99,0,0.2,"Y",7.0999999999999994E-2,0,156,{"$f":"tbl_predefined_measures[[#This Row],[ID]]&tbl_predefined_measures[[#This Row],[REGION]]","v":"PRE-SF-04E"}]
[null,"PRE-SF-05","E","SF","Customer Assistance Programs","SF Acct.","Home Water Reports","Distribution",12.1,1,0,0,"N",0,0,7,{"$f":"tbl_predefined_measures[[#This Row],[ID]]&tbl_predefined_measures[[#This Row],[REGION]]","v":"PRE-SF-05E"}]
[null,"PRE-SF-06","E","SF","Customer Assistance Programs","SF Acct.","Irrigation Audits - High Users","Site Visit",33,3,0,0,"N",0,0,99,{"$f":"tbl_predefined_measures[[#This Row],[ID]]&tbl_predefined_measures[[#This Row],[REGION]]","v":"PRE-SF-06E"}]
[null,"PRE-SF-07","E","SF","Rebate, Retrofit, and Incentive Programs","SF Acct.","High-Efficiency Sprinkler Nozzle Rebate","Rebate",44.407894736842103,10,0,0,"N",0,0,110,{"$f":"tbl_predefined_measures[[#This Row],[ID]]&tbl_predefined_measures[[#This Row],[REGION]]","v":"PRE-SF-07E"}]
[null,"PRE-SF-08","E","SF","Rebate, Retrofit, and Incentive Programs","SF Acct.","Smart Irrigation Controller Rebate","Rebate",112.04037490987744,10,0,0,"N",0,0,210,{"$f":"tbl_predefined_measures[[#This Row],[ID]]&tbl_predefined_measures[[#This Row],[REGION]]","v":"PRE-SF-08E"}]
[null,"PRE-SF-09","E","SF","Rebate, Retrofit, and Incentive Programs","SF Acct.","WaterWise Landscape Rebate","Rebate",283.3223684210526,15,0,0.2,"N",0,0,550,{"$f":"tbl_predefined_measures[[#This Row],[ID]]&tbl_predefined_measures[[#This Row],[REGION]]","v":"PRE-SF-09E"}]
[null,"PRE-SF-10","E","SF","Rebate, Retrofit, and Incentive Programs","SF Acct.","Rainwater Harvesting Rebate","Rebate",11.1816091954023,15,0,0,"N",0,0,355,{"$f":"tbl_predefined_measures[[#This Row],[ID]]&tbl_predefined_measures[[#This Row],[REGION]]","v":"PRE-SF-10E"}]
[null,"PRE-SF-11","E","SF","Rebate, Retrofit, and Incentive Programs","SF Acct.","Rain Barrel","Rebate",1.2071055381400211,15,0,0,"N",0,0,64,{"$f":"tbl_predefined_measures[[#This Row],[ID]]&tbl_predefined_measures[[#This Row],[REGION]]","v":"PRE-SF-11E"}]
[null,"PRE-MF-01","E","MF","Rebate, Retrofit, and Incentive Programs","Toilet","HE Toilet Rebate","Rebate",52.687785947577211,99,0,0.2,"Y",0.04,0,113,{"$f":"tbl_predefined_measures[[#This Row],[ID]]&tbl_predefined_measures[[#This Row],[REGION]]","v":"PRE-MF-01E"}]
[null,"PRE-MF-02","E","MF","Rebate, Retrofit, and Incentive Programs","Toilet","Bathroom Retrofit","Direct Installation",75.126155867764098,99,0,0,"Y",0.04,0,329,{"$f":"tbl_predefined_measures[[#This Row],[ID]]&tbl_predefined_measures[[#This Row],[REGION]]","v":"PRE-MF-02E"}]
[null,"PRE-MF-03","E","MF","Rebate, Retrofit, and Incentive Programs","Showerhead","Showerhead and Aerator Kit","Distribution",9.9977773968507364,99,0,0.5,"Y",6.7000000000000004E-2,0,10,{"$f":"tbl_predefined_measures[[#This Row],[ID]]&tbl_predefined_measures[[#This Row],[REGION]]","v":"PRE-MF-03E"}]
[null,"PRE-MF-04","E","MF","Rebate, Retrofit, and Incentive Programs","Clothes Washer","Clothes Washer Rebate","Rebate",52.060806918769444,99,0,0.2,"Y",0.125,0,156,{"$f":"tbl_predefined_measures[[#This Row],[ID]]&tbl_predefined_measures[[#This Row],[REGION]]","v":"PRE-MF-04E"}]
[null,"PRE-MF-05","E","MF","Customer Assistance Programs","MF Acct.","Irrigation Audits - High Users","Site Visit",123,3,0,0,"N",0,0,213,{"$f":"tbl_predefined_measures[[#This Row],[ID]]&tbl_predefined_measures[[#This Row],[REGION]]","v":"PRE-MF-05E"}]
[null,"PRE-MF-06","E","MF","Rebate, Retrofit, and Incentive Programs","MF Acct.","High-Efficiency Sprinkler Nozzle Rebate","Rebate",177.63157894736841,10,0,0,"N",0,0,410,{"$f":"tbl_predefined_measures[[#This Row],[ID]]&tbl_predefined_measures[[#This Row],[REGION]]","v":"PRE-MF-06E"}]
[null,"PRE-MF-07","E","MF","Rebate, Retrofit, and Incentive Programs","MF Acct.","Smart Irrigation Controller Rebate","Rebate",420.15140591204039,10,0,0,"N",0,0,510,{"$f":"tbl_predefined_measures[[#This Row],[ID]]&tbl_predefined_measures[[#This Row],[REGION]]","v":"PRE-MF-07E"}]
[null,"PRE-MF-08","E","MF","Rebate, Retrofit, and Incentive Programs","MF Acct.","WaterWise Landscape Rebate","Rebate",2833.2236842105258,15,0,0.2,"N",0,0,5250,{"$f":"tbl_predefined_measures[[#This Row],[ID]]&tbl_predefined_measures[[#This Row],[REGION]]","v":"PRE-MF-08E"}]
[null,"PRE-MF-09","E","MF","Rebate, Retrofit, and Incentive Programs","MF Acct.","Rainwater Harvesting Rebate","Rebate",129.60501567398123,15,0,0,"N",0,0,2911,{"$f":"tbl_predefined_measures[[#This Row],[ID]]&tbl_predefined_measures[[#This Row],[REGION]]","v":"PRE-MF-09E"}]
[null,"PRE-ICI-01","E","ICI","Rebate, Retrofit, and Incentive Programs","Toilet","HE Toilet Rebate","Rebate",31.98,99,0,0.2,"Y",0.04,0,138,{"$f":"tbl_predefined_measures[[#This Row],[ID]]&tbl_predefined_measures[[#This Row],[REGION]]","v":"PRE-ICI-01E"}]
[null,"PRE-ICI-02","E","ICI","Rebate, Retrofit, and Incentive Programs","Urinal","Urinal Rebate","Rebate",17,99,0,0.2,"Y",0.04,0,138,{"$f":"tbl_predefined_measures[[#This Row],[ID]]&tbl_predefined_measures[[#This Row],[REGION]]","v":"PRE-ICI-02E"}]
[null,"PRE-ICI-03","E","ICI","Rebate, Retrofit, and Incentive Programs","Clothes Washer","Clothes Washer Rebate","Rebate",86,99,0,0.2,"Y",0.125,0,227,{"$f":"tbl_predefined_measures[[#This Row],[ID]]&tbl_predefined_measures[[#This Row],[REGION]]","v":"PRE-ICI-03E"}]
[null,"PRE-ICI-04","E","ICI","Rebate, Retrofit, and Incentive Programs","Other","Commercial General Rebate","Rebate",1,15,0,0.5,"N",0,0,1.68,{"$f":"tbl_predefined_measures[[#This Row],[ID]]&tbl_predefined_measures[[#This Row],[REGION]]","v":"PRE-ICI-04E"}]
[null,"PRE-ICI-05","E","ICI","Rebate, Retrofit, and Incentive Programs","ICI Acct.","Kitchen Pre-Rinse Spray Valve Installation","Direct Installation",77,99,0,0,"Y",0.1,0,213,{"$f":"tbl_predefined_measures[[#This Row],[ID]]&tbl_predefined_measures[[#This Row],[REGION]]","v":"PRE-ICI-05E"}]
[null,"PRE-ICI-06","E","ICI","Customer Assistance Programs","ICI Acct.","Irrigation Audits - High Users","Site Visit",123,3,0,0,"N",0,0,213,{"$f":"tbl_predefined_measures[[#This Row],[ID]]&tbl_predefined_measures[[#This Row],[REGION]]","v":"PRE-ICI-06E"}]
[null,"PRE-ICI-07","E","ICI","Rebate, Retrofit, and Incentive Programs","ICI Acct.","High-Efficiency Sprinkler Nozzle Rebate","Rebate",177.63157894736841,10,0,0,"N",0,0,410,{"$f":"tbl_predefined_measures[[#This Row],[ID]]&tbl_predefined_measures[[#This Row],[REGION]]","v":"PRE-ICI-07E"}]
[null,"PRE-ICI-08","E","ICI","Rebate, Retrofit, and Incentive Programs","ICI Acct.","Smart Irrigation Controller Rebate","Rebate",420.15140591204039,10,0,0,"N",0,0,510,{"$f":"tbl_predefined_measures[[#This Row],[ID]]&tbl_predefined_measures[[#This Row],[REGION]]","v":"PRE-ICI-08E"}]
[null,"PRE-ICI-09","E","ICI","Rebate, Retrofit, and Incentive Programs","ICI Acct.","WaterWise Landscape Rebate","Rebate",2833.2236842105258,15,0,0.2,"N",0,0,5250,{"$f":"tbl_predefined_measures[[#This Row],[ID]]&tbl_predefined_measures[[#This Row],[REGION]]","v":"PRE-ICI-09E"}]
[null,"PRE-ICI-10","E","ICI","Rebate, Retrofit, and Incentive Programs","ICI Acct.","Rainwater Harvesting Rebate","Rebate",129.60501567398123,15,0,0,"N",0,0,2911,{"$f":"tbl_predefined_measures[[#This Row],[ID]]&tbl_predefined_measures[[#This Row],[REGION]]","v":"PRE-ICI-10E"}]
[null,"PRE-ICI-11","E","ICI","Rebate, Retrofit, and Incentive Programs","ICI Acct.","Commercial Dishwasher Rebate","Rebate",158.23835616438356,20,0,0,"N",0,0,1028,{"$f":"tbl_predefined_measures[[#This Row],[ID]]&tbl_predefined_measures[[#This Row],[REGION]]","v":"PRE-ICI-11E"}]
[null,"PRE-ICI-12","E","ICI","Rebate, Retrofit, and Incentive Programs","ICI Acct.","Commercial Food Steamer Rebate","Rebate",223.2876712328767,10,0,0,"N",0,0,513,{"$f":"tbl_predefined_measures[[#This Row],[ID]]&tbl_predefined_measures[[#This Row],[REGION]]","v":"PRE-ICI-12E"}]
[null,"PRE-SF-01","F","SF","Rebate, Retrofit, and Incentive Programs","Toilet","HE Toilet Rebate","Rebate",25.605417405806261,99,0,0.2,"Y",0.04,0,113,{"$f":"tbl_predefined_measures[[#This Row],[ID]]&tbl_predefined_measures[[#This Row],[REGION]]","v":"PRE-SF-01F"}]
[null,"PRE-SF-02","F","SF","Rebate, Retrofit, and Incentive Programs","Toilet","Bathroom Retrofit","Direct Installation",29.413764391369426,99,0,0,"Y",0.04,0,329,{"$f":"tbl_predefined_measures[[#This Row],[ID]]&tbl_predefined_measures[[#This Row],[REGION]]","v":"PRE-SF-02F"}]
[null,"PRE-SF-03","F","SF","Rebate, Retrofit, and Incentive Programs","Showerhead","Showerhead and Aerator Kit","Distribution",6.6418177657930961,99,0,0.5,"Y",6.7000000000000004E-2,0,10,{"$f":"tbl_predefined_measures[[#This Row],[ID]]&tbl_predefined_measures[[#This Row],[REGION]]","v":"PRE-SF-03F"}]
[null,"PRE-SF-04","F","SF","Rebate, Retrofit, and Incentive Programs","Clothes Washer","Clothes Washer Rebate","Rebate",13.406661642884554,99,0,0.2,"Y",7.0999999999999994E-2,0,156,{"$f":"tbl_predefined_measures[[#This Row],[ID]]&tbl_predefined_measures[[#This Row],[REGION]]","v":"PRE-SF-04F"}]
[null,"PRE-SF-05","F","SF","Customer Assistance Programs","SF Acct.","Home Water Reports","Distribution",12.1,1,0,0,"N",0,0,7,{"$f":"tbl_predefined_measures[[#This Row],[ID]]&tbl_predefined_measures[[#This Row],[REGION]]","v":"PRE-SF-05F"}]
[null,"PRE-SF-06","F","SF","Customer Assistance Programs","SF Acct.","Irrigation Audits - High Users","Site Visit",33,3,0,0,"N",0,0,99,{"$f":"tbl_predefined_measures[[#This Row],[ID]]&tbl_predefined_measures[[#This Row],[REGION]]","v":"PRE-SF-06F"}]
[null,"PRE-SF-07","F","SF","Rebate, Retrofit, and Incentive Programs","SF Acct.","High-Efficiency Sprinkler Nozzle Rebate","Rebate",23.4375,10,0,0,"N",0,0,110,{"$f":"tbl_predefined_measures[[#This Row],[ID]]&tbl_predefined_measures[[#This Row],[REGION]]","v":"PRE-SF-07F"}]
[null,"PRE-SF-08","F","SF","Rebate, Retrofit, and Incentive Programs","SF Acct.","Smart Irrigation Controller Rebate","Rebate",59.132420091324207,10,0,0,"N",0,0,210,{"$f":"tbl_predefined_measures[[#This Row],[ID]]&tbl_predefined_measures[[#This Row],[REGION]]","v":"PRE-SF-08F"}]
[null,"PRE-SF-09","F","SF","Rebate, Retrofit, and Incentive Programs","SF Acct.","WaterWise Landscape Rebate","Rebate",149.53125,15,0,0.2,"N",0,0,550,{"$f":"tbl_predefined_measures[[#This Row],[ID]]&tbl_predefined_measures[[#This Row],[REGION]]","v":"PRE-SF-09F"}]
[null,"PRE-SF-10","F","SF","Rebate, Retrofit, and Incentive Programs","SF Acct.","Rainwater Harvesting Rebate","Rebate",21.186206896551727,15,0,0,"N",0,0,355,{"$f":"tbl_predefined_measures[[#This Row],[ID]]&tbl_predefined_measures[[#This Row],[REGION]]","v":"PRE-SF-10F"}]
[null,"PRE-SF-11","F","SF","Rebate, Retrofit, and Incentive Programs","SF Acct.","Rain Barrel","Rebate",2.2871473354231973,15,0,0,"N",0,0,64,{"$f":"tbl_predefined_measures[[#This Row],[ID]]&tbl_predefined_measures[[#This Row],[REGION]]","v":"PRE-SF-11F"}]
[null,"PRE-MF-01","F","MF","Rebate, Retrofit, and Incentive Programs","Toilet","HE Toilet Rebate","Rebate",35.317750813591445,99,0,0.2,"Y",0.04,0,113,{"$f":"tbl_predefined_measures[[#This Row],[ID]]&tbl_predefined_measures[[#This Row],[REGION]]","v":"PRE-MF-01F"}]
[null,"PRE-MF-02","F","MF","Rebate, Retrofit, and Incentive Programs","Toilet","Bathroom Retrofit","Direct Installation",46.64985087812525,99,0,0,"Y",0.04,0,329,{"$f":"tbl_predefined_measures[[#This Row],[ID]]&tbl_predefined_measures[[#This Row],[REGION]]","v":"PRE-MF-02F"}]
[null,"PRE-MF-03","F","MF","Rebate, Retrofit, and Incentive Programs","Showerhead","Showerhead and Aerator Kit","Distribution",6.208155059826554,99,0,0.5,"Y",6.7000000000000004E-2,0,10,{"$f":"tbl_predefined_measures[[#This Row],[ID]]&tbl_predefined_measures[[#This Row],[REGION]]","v":"PRE-MF-03F"}]
[null,"PRE-MF-04","F","MF","Rebate, Retrofit, and Incentive Programs","Clothes Washer","Clothes Washer Rebate","Rebate",32.327341274193515,99,0,0.2,"Y",0.125,0,156,{"$f":"tbl_predefined_measures[[#This Row],[ID]]&tbl_predefined_measures[[#This Row],[REGION]]","v":"PRE-MF-04F"}]
[null,"PRE-MF-05","F","MF","Customer Assistance Programs","MF Acct.","Irrigation Audits - High Users","Site Visit",123,3,0,0,"N",0,0,213,{"$f":"tbl_predefined_measures[[#This Row],[ID]]&tbl_predefined_measures[[#This Row],[REGION]]","v":"PRE-MF-05F"}]
[null,"PRE-MF-06","F","MF","Rebate, Retrofit, and Incentive Programs","MF Acct.","High-Efficiency Sprinkler Nozzle Rebate","Rebate",93.75,10,0,0,"N",0,0,410,{"$f":"tbl_predefined_measures[[#This Row],[ID]]&tbl_predefined_measures[[#This Row],[REGION]]","v":"PRE-MF-06F"}]
[null,"PRE-MF-07","F","MF","Rebate, Retrofit, and Incentive Programs","MF Acct.","Smart Irrigation Controller Rebate","Rebate",221.74657534246577,10,0,0,"N",0,0,510,{"$f":"tbl_predefined_measures[[#This Row],[ID]]&tbl_predefined_measures[[#This Row],[REGION]]","v":"PRE-MF-07F"}]
[null,"PRE-MF-08","F","MF","Rebate, Retrofit, and Incentive Programs","MF Acct.","WaterWise Landscape Rebate","Rebate",1495.3125,15,0,0.2,"N",0,0,5250,{"$f":"tbl_predefined_measures[[#This Row],[ID]]&tbl_predefined_measures[[#This Row],[REGION]]","v":"PRE-MF-08F"}]
[null,"PRE-MF-09","F","MF","Rebate, Retrofit, and Incentive Programs","MF Acct.","Rainwater Harvesting Rebate","Rebate",245.56739811912226,15,0,0,"N",0,0,2911,{"$f":"tbl_predefined_measures[[#This Row],[ID]]&tbl_predefined_measures[[#This Row],[REGION]]","v":"PRE-MF-09F"}]
[null,"PRE-ICI-01","F","ICI","Rebate, Retrofit, and Incentive Programs","Toilet","HE Toilet Rebate","Rebate",31.98,99,0,0.2,"Y",0.04,0,138,{"$f":"tbl_predefined_measures[[#This Row],[ID]]&tbl_predefined_measures[[#This Row],[REGION]]","v":"PRE-ICI-01F"}]
[null,"PRE-ICI-02","F","ICI","Rebate, Retrofit, and Incentive Programs","Urinal","Urinal Rebate","Rebate",17,99,0,0.2,"Y",0.04,0,138,{"$f":"tbl_predefined_measures[[#This Row],[ID]]&tbl_predefined_measures[[#This Row],[REGION]]","v":"PRE-ICI-02F"}]
[null,"PRE-ICI-03","F","ICI","Rebate, Retrofit, and Incentive Programs","Clothes Washer","Clothes Washer Rebate","Rebate",86,99,0,0.2,"Y",0.125,0,227,{"$f":"tbl_predefined_measures[[#This Row],[ID]]&tbl_predefined_measures[[#This Row],[REGION]]","v":"PRE-ICI-03F"}]
[null,"PRE-ICI-04","F","ICI","Rebate, Retrofit, and Incentive Programs","Other","Commercial General Rebate","Rebate",1,15,0,0.5,"N",0,0,1.68,{"$f":"tbl_predefined_measures[[#This Row],[ID]]&tbl_predefined_measures[[#This Row],[REGION]]","v":"PRE-ICI-04F"}]
[null,"PRE-ICI-05","F","ICI","Rebate, Retrofit, and Incentive Programs","ICI Acct.","Kitchen Pre-Rinse Spray Valve Installation","Direct Installation",77,99,0,0,"Y",0.1,0,213,{"$f":"tbl_predefined_measures[[#This Row],[ID]]&tbl_predefined_measures[[#This Row],[REGION]]","v":"PRE-ICI-05F"}]
[null,"PRE-ICI-06","F","ICI","Customer Assistance Programs","ICI Acct.","Irrigation Audits - High Users","Site Visit",123,3,0,0,"N",0,0,213,{"$f":"tbl_predefined_measures[[#This Row],[ID]]&tbl_predefined_measures[[#This Row],[REGION]]","v":"PRE-ICI-06F"}]
[null,"PRE-ICI-07","F","ICI","Rebate, Retrofit, and Incentive Programs","ICI Acct.","High-Efficiency Sprinkler Nozzle Rebate","Rebate",93.75,10,0,0,"N",0,0,410,{"$f":"tbl_predefined_measures[[#This Row],[ID]]&tbl_predefined_measures[[#This Row],[REGION]]","v":"PRE-ICI-07F"}]
[null,"PRE-ICI-08","F","ICI","Rebate, Retrofit, and Incentive Programs","ICI Acct.","Smart Irrigation Controller Rebate","Rebate",221.74657534246577,10,0,0,"N",0,0,510,{"$f":"tbl_predefined_measures[[#This Row],[ID]]&tbl_predefined_measures[[#This Row],[REGION]]","v":"PRE-ICI-08F"}]
[null,"PRE-ICI-09","F","ICI","Rebate, Retrofit, and Incentive Programs","ICI Acct.","WaterWise Landscape Rebate","Rebate",1495.3125,15,0,0.2,"N",0,0,5250,{"$f":"tbl_predefined_measures[[#This Row],[ID]]&tbl_predefined_measures[[#This Row],[REGION]]","v":"PRE-ICI-09F"}]
[null,"PRE-ICI-10","F","ICI","Rebate, Retrofit, and Incentive Programs","ICI Acct.","Rainwater Harvesting Rebate","Rebate",245.56739811912226,15,0,0,"N",0,0,2911,{"$f":"tbl_predefined_measures[[#This Row],[ID]]&tbl_predefined_measures[[#This Row],[REGION]]","v":"PRE-ICI-10F"}]
[null,"PRE-ICI-11","F","ICI","Rebate, Retrofit, and Incentive Programs","ICI Acct.","Commercial Dishwasher Rebate","Rebate",158.23835616438356,20,0,0,"N",0,0,1028,{"$f":"tbl_predefined_measures[[#This Row],[ID]]&tbl_predefined_measures[[#This Row],[REGION]]","v":"PRE-ICI-11F"}]
[null,"PRE-ICI-12","F","ICI","Rebate, Retrofit, and Incentive Programs","ICI Acct.","Commercial Food Steamer Rebate","Rebate",223.2876712328767,10,0,0,"N",0,0,513,{"$f":"tbl_predefined_measures[[#This Row],[ID]]&tbl_predefined_measures[[#This Row],[REGION]]","v":"PRE-ICI-12F"}]
[null,"PRE-SF-01","G","SF","Rebate, Retrofit, and Incentive Programs","Toilet","HE Toilet Rebate","Rebate",25.351409309425225,99,0,0.2,"Y",0.04,0,113,{"$f":"tbl_predefined_measures[[#This Row],[ID]]&tbl_predefined_measures[[#This Row],[REGION]]","v":"PRE-SF-01G"}]
[null,"PRE-SF-02","G","SF","Rebate, Retrofit, and Incentive Programs","Toilet","Bathroom Retrofit","Direct Installation",28.807668979409367,99,0,0,"Y",0.04,0,329,{"$f":"tbl_predefined_measures[[#This Row],[ID]]&tbl_predefined_measures[[#This Row],[REGION]]","v":"PRE-SF-02G"}]
[null,"PRE-SF-03","G","SF","Rebate, Retrofit, and Incentive Programs","Showerhead","Showerhead and Aerator Kit","Distribution",6.5049575114795353,99,0,0.5,"Y",6.7000000000000004E-2,0,10,{"$f":"tbl_predefined_measures[[#This Row],[ID]]&tbl_predefined_measures[[#This Row],[REGION]]","v":"PRE-SF-03G"}]
[null,"PRE-SF-04","G","SF","Rebate, Retrofit, and Incentive Programs","Clothes Washer","Clothes Washer Rebate","Rebate",13.130406077519469,99,0,0.2,"Y",7.0999999999999994E-2,0,156,{"$f":"tbl_predefined_measures[[#This Row],[ID]]&tbl_predefined_measures[[#This Row],[REGION]]","v":"PRE-SF-04G"}]
[null,"PRE-SF-05","G","SF","Customer Assistance Programs","SF Acct.","Home Water Reports","Distribution",12.1,1,0,0,"N",0,0,7,{"$f":"tbl_predefined_measures[[#This Row],[ID]]&tbl_predefined_measures[[#This Row],[REGION]]","v":"PRE-SF-05G"}]
[null,"PRE-SF-06","G","SF","Customer Assistance Programs","SF Acct.","Irrigation Audits - High Users","Site Visit",33,3,0,0,"N",0,0,99,{"$f":"tbl_predefined_measures[[#This Row],[ID]]&tbl_predefined_measures[[#This Row],[REGION]]","v":"PRE-SF-06G"}]
[null,"PRE-SF-07","G","SF","Rebate, Retrofit, and Incentive Programs","SF Acct.","High-Efficiency Sprinkler Nozzle Rebate","Rebate",14.150943396226415,10,0,0,"N",0,0,110,{"$f":"tbl_predefined_measures[[#This Row],[ID]]&tbl_predefined_measures[[#This Row],[REGION]]","v":"PRE-SF-07G"}]
[null,"PRE-SF-08","G","SF","Rebate, Retrofit, and Incentive Programs","SF Acct.","Smart Irrigation Controller Rebate","Rebate",35.702593262686314,10,0,0,"N",0,0,210,{"$f":"tbl_predefined_measures[[#This Row],[ID]]&tbl_predefined_measures[[#This Row],[REGION]]","v":"PRE-SF-08G"}]
[null,"PRE-SF-09","G","SF","Rebate, Retrofit, and Incentive Programs","SF Acct.","WaterWise Landscape Rebate","Rebate",90.283018867924525,15,0,0.2,"N",0,0,550,{"$f":"tbl_predefined_measures[[#This Row],[ID]]&tbl_predefined_measures[[#This Row],[REGION]]","v":"PRE-SF-09G"}]
[null,"PRE-SF-10","G","SF","Rebate, Retrofit, and Incentive Programs","SF Acct.","Rainwater Harvesting Rebate","Rebate",35.089655172413799,15,0,0,"N",0,0,355,{"$f":"tbl_predefined_measures[[#This Row],[ID]]&tbl_predefined_measures[[#This Row],[REGION]]","v":"PRE-SF-10G"}]
[null,"PRE-SF-11","G","SF","Rebate, Retrofit, and Incentive Programs","SF Acct.","Rain Barrel","Rebate",3.788087774294671,15,0,0,"N",0,0,64,{"$f":"tbl_predefined_measures[[#This Row],[ID]]&tbl_predefined_measures[[#This Row],[REGION]]","v":"PRE-SF-11G"}]
[null,"PRE-MF-01","G","MF","Rebate, Retrofit, and Incentive Programs","Toilet","HE Toilet Rebate","Rebate",39.010279137838999,99,0,0.2,"Y",0.04,0,113,{"$f":"tbl_predefined_measures[[#This Row],[ID]]&tbl_predefined_measures[[#This Row],[REGION]]","v":"PRE-MF-01G"}]
[null,"PRE-MF-02","G","MF","Rebate, Retrofit, and Incentive Programs","Toilet","Bathroom Retrofit","Direct Installation",52.446329347057642,99,0,0,"Y",0.04,0,329,{"$f":"tbl_predefined_measures[[#This Row],[ID]]&tbl_predefined_measures[[#This Row],[REGION]]","v":"PRE-MF-02G"}]
[null,"PRE-MF-03","G","MF","Rebate, Retrofit, and Incentive Programs","Showerhead","Showerhead and Aerator Kit","Distribution",6.9795495328783943,99,0,0.5,"Y",6.7000000000000004E-2,0,10,{"$f":"tbl_predefined_measures[[#This Row],[ID]]&tbl_predefined_measures[[#This Row],[REGION]]","v":"PRE-MF-03G"}]
[null,"PRE-MF-04","G","MF","Rebate, Retrofit, and Incentive Programs","Clothes Washer","Clothes Washer Rebate","Rebate",36.344175929104701,99,0,0.2,"Y",0.125,0,156,{"$f":"tbl_predefined_measures[[#This Row],[ID]]&tbl_predefined_measures[[#This Row],[REGION]]","v":"PRE-MF-04G"}]
[null,"PRE-MF-05","G","MF","Customer Assistance Programs","MF Acct.","Irrigation Audits - High Users","Site Visit",123,3,0,0,"N",0,0,213,{"$f":"tbl_predefined_measures[[#This Row],[ID]]&tbl_predefined_measures[[#This Row],[REGION]]","v":"PRE-MF-05G"}]
[null,"PRE-MF-06","G","MF","Rebate, Retrofit, and Incentive Programs","MF Acct.","High-Efficiency Sprinkler Nozzle Rebate","Rebate",56.60377358490566,10,0,0,"N",0,0,410,{"$f":"tbl_predefined_measures[[#This Row],[ID]]&tbl_predefined_measures[[#This Row],[REGION]]","v":"PRE-MF-06G"}]
[null,"PRE-MF-07","G","MF","Rebate, Retrofit, and Incentive Programs","MF Acct.","Smart Irrigation Controller Rebate","Rebate",133.88472473507366,10,0,0,"N",0,0,510,{"$f":"tbl_predefined_measures[[#This Row],[ID]]&tbl_predefined_measures[[#This Row],[REGION]]","v":"PRE-MF-07G"}]
[null,"PRE-MF-08","G","MF","Rebate, Retrofit, and Incentive Programs","MF Acct.","WaterWise Landscape Rebate","Rebate",902.83018867924523,15,0,0.2,"N",0,0,5250,{"$f":"tbl_predefined_measures[[#This Row],[ID]]&tbl_predefined_measures[[#This Row],[REGION]]","v":"PRE-MF-08G"}]
[null,"PRE-MF-09","G","MF","Rebate, Retrofit, and Incentive Programs","MF Acct.","Rainwater Harvesting Rebate","Rebate",406.72100313479626,15,0,0,"N",0,0,2911,{"$f":"tbl_predefined_measures[[#This Row],[ID]]&tbl_predefined_measures[[#This Row],[REGION]]","v":"PRE-MF-09G"}]
[null,"PRE-ICI-01","G","ICI","Rebate, Retrofit, and Incentive Programs","Toilet","HE Toilet Rebate","Rebate",31.98,99,0,0.2,"Y",0.04,0,138,{"$f":"tbl_predefined_measures[[#This Row],[ID]]&tbl_predefined_measures[[#This Row],[REGION]]","v":"PRE-ICI-01G"}]
[null,"PRE-ICI-02","G","ICI","Rebate, Retrofit, and Incentive Programs","Urinal","Urinal Rebate","Rebate",17,99,0,0.2,"Y",0.04,0,138,{"$f":"tbl_predefined_measures[[#This Row],[ID]]&tbl_predefined_measures[[#This Row],[REGION]]","v":"PRE-ICI-02G"}]
[null,"PRE-ICI-03","G","ICI","Rebate, Retrofit, and Incentive Programs","Clothes Washer","Clothes Washer Rebate","Rebate",86,99,0,0.2,"Y",0.125,0,227,{"$f":"tbl_predefined_measures[[#This Row],[ID]]&tbl_predefined_measures[[#This Row],[REGION]]","v":"PRE-ICI-03G"}]
[null,"PRE-ICI-04","G","ICI","Rebate, Retrofit, and Incentive Programs","Other","Commercial General Rebate","Rebate",1,15,0,0.5,"N",0,0,1.68,{"$f":"tbl_predefined_measures[[#This Row],[ID]]&tbl_predefined_measures[[#This Row],[REGION]]","v":"PRE-ICI-04G"}]
[null,"PRE-ICI-05","G","ICI","Rebate, Retrofit, and Incentive Programs","ICI Acct.","Kitchen Pre-Rinse Spray Valve Installation","Direct Installation",77,99,0,0,"Y",0.1,0,213,{"$f":"tbl_predefined_measures[[#This Row],[ID]]&tbl_predefined_measures[[#This Row],[REGION]]","v":"PRE-ICI-05G"}]
[null,"PRE-ICI-06","G","ICI","Customer Assistance Programs","ICI Acct.","Irrigation Audits - High Users","Site Visit",123,3,0,0,"N",0,0,213,{"$f":"tbl_predefined_measures[[#This Row],[ID]]&tbl_predefined_measures[[#This Row],[REGION]]","v":"PRE-ICI-06G"}]
[null,"PRE-ICI-07","G","ICI","Rebate, Retrofit, and Incentive Programs","ICI Acct.","High-Efficiency Sprinkler Nozzle Rebate","Rebate",56.60377358490566,10,0,0,"N",0,0,410,{"$f":"tbl_predefined_measures[[#This Row],[ID]]&tbl_predefined_measures[[#This Row],[REGION]]","v":"PRE-ICI-07G"}]
[null,"PRE-ICI-08","G","ICI","Rebate, Retrofit, and Incentive Programs","ICI Acct.","Smart Irrigation Controller Rebate","Rebate",133.88472473507366,10,0,0,"N",0,0,510,{"$f":"tbl_predefined_measures[[#This Row],[ID]]&tbl_predefined_measures[[#This Row],[REGION]]","v":"PRE-ICI-08G"}]
[null,"PRE-ICI-09","G","ICI","Rebate, Retrofit, and Incentive Programs","ICI Acct.","WaterWise Landscape Rebate","Rebate",902.83018867924523,15,0,0.2,"N",0,0,5250,{"$f":"tbl_predefined_measures[[#This Row],[ID]]&tbl_predefined_measures[[#This Row],[REGION]]","v":"PRE-ICI-09G"}]
[null,"PRE-ICI-10","G","ICI","Rebate, Retrofit, and Incentive Programs","ICI Acct.","Rainwater Harvesting Rebate","Rebate",406.72100313479626,15,0,0,"N",0,0,2911,{"$f":"tbl_predefined_measures[[#This Row],[ID]]&tbl_predefined_measures[[#This Row],[REGION]]","v":"PRE-ICI-10G"}]
[null,"PRE-ICI-11","G","ICI","Rebate, Retrofit, and Incentive Programs","ICI Acct.","Commercial Dishwasher Rebate","Rebate",158.23835616438356,20,0,0,"N",0,0,1028,{"$f":"tbl_predefined_measures[[#This Row],[ID]]&tbl_predefined_measures[[#This Row],[REGION]]","v":"PRE-ICI-11G"}]
[null,"PRE-ICI-12","G","ICI","Rebate, Retrofit, and Incentive Programs","ICI Acct.","Commercial Food Steamer Rebate","Rebate",223.2876712328767,10,0,0,"N",0,0,513,{"$f":"tbl_predefined_measures[[#This Row],[ID]]&tbl_predefined_measures[[#This Row],[REGION]]","v":"PRE-ICI-12G"}]
[null,"PRE-SF-01","H","SF","Rebate, Retrofit, and Incentive Programs","Toilet","HE Toilet Rebate","Rebate",26.997090986580382,99,0,0.2,"Y",0.04,0,113,{"$f":"tbl_predefined_measures[[#This Row],[ID]]&tbl_predefined_measures[[#This Row],[REGION]]","v":"PRE-SF-01H"}]
[null,"PRE-SF-02","H","SF","Rebate, Retrofit, and Incentive Programs","Toilet","Bathroom Retrofit","Direct Installation",32.879628829319522,99,0,0,"Y",0.04,0,329,{"$f":"tbl_predefined_measures[[#This Row],[ID]]&tbl_predefined_measures[[#This Row],[REGION]]","v":"PRE-SF-02H"}]
[null,"PRE-SF-03","H","SF","Rebate, Retrofit, and Incentive Programs","Showerhead","Showerhead and Aerator Kit","Distribution",7.4244323162979571,99,0,0.5,"Y",6.7000000000000004E-2,0,10,{"$f":"tbl_predefined_measures[[#This Row],[ID]]&tbl_predefined_measures[[#This Row],[REGION]]","v":"PRE-SF-03H"}]
[null,"PRE-SF-04","H","SF","Rebate, Retrofit, and Incentive Programs","Clothes Washer","Clothes Washer Rebate","Rebate",14.986387080317417,99,0,0.2,"Y",7.0999999999999994E-2,0,156,{"$f":"tbl_predefined_measures[[#This Row],[ID]]&tbl_predefined_measures[[#This Row],[REGION]]","v":"PRE-SF-04H"}]
[null,"PRE-SF-05","H","SF","Customer Assistance Programs","SF Acct.","Home Water Reports","Distribution",12.1,1,0,0,"N",0,0,7,{"$f":"tbl_predefined_measures[[#This Row],[ID]]&tbl_predefined_measures[[#This Row],[REGION]]","v":"PRE-SF-05H"}]
[null,"PRE-SF-06","H","SF","Customer Assistance Programs","SF Acct.","Irrigation Audits - High Users","Site Visit",33,3,0,0,"N",0,0,99,{"$f":"tbl_predefined_measures[[#This Row],[ID]]&tbl_predefined_measures[[#This Row],[REGION]]","v":"PRE-SF-06H"}]
[null,"PRE-SF-07","H","SF","Rebate, Retrofit, and Incentive Programs","SF Acct.","High-Efficiency Sprinkler Nozzle Rebate","Rebate",9.7613882863340553,10,0,0,"N",0,0,110,{"$f":"tbl_predefined_measures[[#This Row],[ID]]&tbl_predefined_measures[[#This Row],[REGION]]","v":"PRE-SF-07H"}]
[null,"PRE-SF-08","H","SF","Rebate, Retrofit, and Incentive Programs","SF Acct.","Smart Irrigation Controller Rebate","Rebate",24.627819213740235,10,0,0,"N",0,0,210,{"$f":"tbl_predefined_measures[[#This Row],[ID]]&tbl_predefined_measures[[#This Row],[REGION]]","v":"PRE-SF-08H"}]
[null,"PRE-SF-09","H","SF","Rebate, Retrofit, and Incentive Programs","SF Acct.","WaterWise Landscape Rebate","Rebate",62.277657266811275,15,0,0.2,"N",0,0,550,{"$f":"tbl_predefined_measures[[#This Row],[ID]]&tbl_predefined_measures[[#This Row],[REGION]]","v":"PRE-SF-09H"}]
[null,"PRE-SF-10","H","SF","Rebate, Retrofit, and Incentive Programs","SF Acct.","Rainwater Harvesting Rebate","Rebate",50.868965517241392,15,0,0,"N",0,0,355,{"$f":"tbl_predefined_measures[[#This Row],[ID]]&tbl_predefined_measures[[#This Row],[REGION]]","v":"PRE-SF-10H"}]
[null,"PRE-SF-11","H","SF","Rebate, Retrofit, and Incentive Programs","SF Acct.","Rain Barrel","Rebate",5.4915360501567401,15,0,0,"N",0,0,64,{"$f":"tbl_predefined_measures[[#This Row],[ID]]&tbl_predefined_measures[[#This Row],[REGION]]","v":"PRE-SF-11H"}]
[null,"PRE-MF-01","H","MF","Rebate, Retrofit, and Incentive Programs","Toilet","HE Toilet Rebate","Rebate",40.021606239313215,99,0,0.2,"Y",0.04,0,113,{"$f":"tbl_predefined_measures[[#This Row],[ID]]&tbl_predefined_measures[[#This Row],[REGION]]","v":"PRE-MF-01H"}]
[null,"PRE-MF-02","H","MF","Rebate, Retrofit, and Incentive Programs","Toilet","Bathroom Retrofit","Direct Installation",54.05621806605847,99,0,0,"Y",0.04,0,329,{"$f":"tbl_predefined_measures[[#This Row],[ID]]&tbl_predefined_measures[[#This Row],[REGION]]","v":"PRE-MF-02H"}]
[null,"PRE-MF-03","H","MF","Rebate, Retrofit, and Incentive Programs","Showerhead","Showerhead and Aerator Kit","Distribution",7.1937932787530281,99,0,0.5,"Y",6.7000000000000004E-2,0,10,{"$f":"tbl_predefined_measures[[#This Row],[ID]]&tbl_predefined_measures[[#This Row],[REGION]]","v":"PRE-MF-03H"}]
[null,"PRE-MF-04","H","MF","Rebate, Retrofit, and Incentive Programs","Clothes Washer","Clothes Washer Rebate","Rebate",37.459794115507471,99,0,0.2,"Y",0.125,0,156,{"$f":"tbl_predefined_measures[[#This Row],[ID]]&tbl_predefined_measures[[#This Row],[REGION]]","v":"PRE-MF-04H"}]
[null,"PRE-MF-05","H","MF","Customer Assistance Programs","MF Acct.","Irrigation Audits - High Users","Site Visit",123,3,0,0,"N",0,0,213,{"$f":"tbl_predefined_measures[[#This Row],[ID]]&tbl_predefined_measures[[#This Row],[REGION]]","v":"PRE-MF-05H"}]
[null,"PRE-MF-06","H","MF","Rebate, Retrofit, and Incentive Programs","MF Acct.","High-Efficiency Sprinkler Nozzle Rebate","Rebate",39.045553145336221,10,0,0,"N",0,0,410,{"$f":"tbl_predefined_measures[[#This Row],[ID]]&tbl_predefined_measures[[#This Row],[REGION]]","v":"PRE-MF-06H"}]
[null,"PRE-MF-07","H","MF","Rebate, Retrofit, and Incentive Programs","MF Acct.","Smart Irrigation Controller Rebate","Rebate",92.35432205152587,10,0,0,"N",0,0,510,{"$f":"tbl_predefined_measures[[#This Row],[ID]]&tbl_predefined_measures[[#This Row],[REGION]]","v":"PRE-MF-07H"}]
[null,"PRE-MF-08","H","MF","Rebate, Retrofit, and Incentive Programs","MF Acct.","WaterWise Landscape Rebate","Rebate",622.77657266811275,15,0,0.2,"N",0,0,5250,{"$f":"tbl_predefined_measures[[#This Row],[ID]]&tbl_predefined_measures[[#This Row],[REGION]]","v":"PRE-MF-08H"}]
[null,"PRE-MF-09","H","MF","Rebate, Retrofit, and Incentive Programs","MF Acct.","Rainwater Harvesting Rebate","Rebate",589.61755485893423,15,0,0,"N",0,0,2911,{"$f":"tbl_predefined_measures[[#This Row],[ID]]&tbl_predefined_measures[[#This Row],[REGION]]","v":"PRE-MF-09H"}]
[null,"PRE-ICI-01","H","ICI","Rebate, Retrofit, and Incentive Programs","Toilet","HE Toilet Rebate","Rebate",31.98,99,0,0.2,"Y",0.04,0,138,{"$f":"tbl_predefined_measures[[#This Row],[ID]]&tbl_predefined_measures[[#This Row],[REGION]]","v":"PRE-ICI-01H"}]
[null,"PRE-ICI-02","H","ICI","Rebate, Retrofit, and Incentive Programs","Urinal","Urinal Rebate","Rebate",17,99,0,0.2,"Y",0.04,0,138,{"$f":"tbl_predefined_measures[[#This Row],[ID]]&tbl_predefined_measures[[#This Row],[REGION]]","v":"PRE-ICI-02H"}]
[null,"PRE-ICI-03","H","ICI","Rebate, Retrofit, and Incentive Programs","Clothes Washer","Clothes Washer Rebate","Rebate",86,99,0,0.2,"Y",0.125,0,227,{"$f":"tbl_predefined_measures[[#This Row],[ID]]&tbl_predefined_measures[[#This Row],[REGION]]","v":"PRE-ICI-03H"}]
[null,"PRE-ICI-04","H","ICI","Rebate, Retrofit, and Incentive Programs","Other","Commercial General Rebate","Rebate",1,15,0,0.5,"N",0,0,1.68,{"$f":"tbl_predefined_measures[[#This Row],[ID]]&tbl_predefined_measures[[#This Row],[REGION]]","v":"PRE-ICI-04H"}]
[null,"PRE-ICI-05","H","ICI","Rebate, Retrofit, and Incentive Programs","ICI Acct.","Kitchen Pre-Rinse Spray Valve Installation","Direct Installation",77,99,0,0,"Y",0.1,0,213,{"$f":"tbl_predefined_measures[[#This Row],[ID]]&tbl_predefined_measures[[#This Row],[REGION]]","v":"PRE-ICI-05H"}]
[null,"PRE-ICI-06","H","ICI","Customer Assistance Programs","ICI Acct.","Irrigation Audits - High Users","Site Visit",123,3,0,0,"N",0,0,213,{"$f":"tbl_predefined_measures[[#This Row],[ID]]&tbl_predefined_measures[[#This Row],[REGION]]","v":"PRE-ICI-06H"}]
[null,"PRE-ICI-07","H","ICI","Rebate, Retrofit, and Incentive Programs","ICI Acct.","High-Efficiency Sprinkler Nozzle Rebate","Rebate",39.045553145336221,10,0,0,"N",0,0,410,{"$f":"tbl_predefined_measures[[#This Row],[ID]]&tbl_predefined_measures[[#This Row],[REGION]]","v":"PRE-ICI-07H"}]
[null,"PRE-ICI-08","H","ICI","Rebate, Retrofit, and Incentive Programs","ICI Acct.","Smart Irrigation Controller Rebate","Rebate",92.35432205152587,10,0,0,"N",0,0,510,{"$f":"tbl_predefined_measures[[#This Row],[ID]]&tbl_predefined_measures[[#This Row],[REGION]]","v":"PRE-ICI-08H"}]
[null,"PRE-ICI-09","H","ICI","Rebate, Retrofit, and Incentive Programs","ICI Acct.","WaterWise Landscape Rebate","Rebate",622.77657266811275,15,0,0.2,"N",0,0,5250,{"$f":"tbl_predefined_measures[[#This Row],[ID]]&tbl_predefined_measures[[#This Row],[REGION]]","v":"PRE-ICI-09H"}]
[null,"PRE-ICI-10","H","ICI","Rebate, Retrofit, and Incentive Programs","ICI Acct.","Rainwater Harvesting Rebate","Rebate",589.61755485893423,15,0,0,"N",0,0,2911,{"$f":"tbl_predefined_measures[[#This Row],[ID]]&tbl_predefined_measures[[#This Row],[REGION]]","v":"PRE-ICI-10H"}]
[null,"PRE-ICI-11","H","ICI","Rebate, Retrofit, and Incentive Programs","ICI Acct.","Commercial Dishwasher Rebate","Rebate",158.23835616438356,20,0,0,"N",0,0,1028,{"$f":"tbl_predefined_measures[[#This Row],[ID]]&tbl_predefined_measures[[#This Row],[REGION]]","v":"PRE-ICI-11H"}]
[null,"PRE-ICI-12","H","ICI","Rebate, Retrofit, and Incentive Programs","ICI Acct.","Commercial Food Steamer Rebate","Rebate",223.2876712328767,10,0,0,"N",0,0,513,{"$f":"tbl_predefined_measures[[#This Row],[ID]]&tbl_predefined_measures[[#This Row],[REGION]]","v":"PRE-ICI-12H"}]
[null,"PRE-SF-01","I","SF","Rebate, Retrofit, and Incentive Programs","Toilet","HE Toilet Rebate","Rebate",24.811086615994938,99,0,0.2,"Y",0.04,0,113,{"$f":"tbl_predefined_measures[[#This Row],[ID]]&tbl_predefined_measures[[#This Row],[REGION]]","v":"PRE-SF-01I"}]
[null,"PRE-SF-02","I","SF","Rebate, Retrofit, and Incentive Programs","Toilet","Bathroom Retrofit","Direct Installation",27.54273340059591,99,0,0,"Y",0.04,0,329,{"$f":"tbl_predefined_measures[[#This Row],[ID]]&tbl_predefined_measures[[#This Row],[REGION]]","v":"PRE-SF-02I"}]
[null,"PRE-SF-03","I","SF","Rebate, Retrofit, and Incentive Programs","Showerhead","Showerhead and Aerator Kit","Distribution",6.2193268969087541,99,0,0.5,"Y",6.7000000000000004E-2,0,10,{"$f":"tbl_predefined_measures[[#This Row],[ID]]&tbl_predefined_measures[[#This Row],[REGION]]","v":"PRE-SF-03I"}]
[null,"PRE-SF-04","I","SF","Rebate, Retrofit, and Incentive Programs","Clothes Washer","Clothes Washer Rebate","Rebate",12.553854124510204,99,0,0.2,"Y",7.0999999999999994E-2,0,156,{"$f":"tbl_predefined_measures[[#This Row],[ID]]&tbl_predefined_measures[[#This Row],[REGION]]","v":"PRE-SF-04I"}]
[null,"PRE-SF-05","I","SF","Customer Assistance Programs","SF Acct.","Home Water Reports","Distribution",12.1,1,0,0,"N",0,0,7,{"$f":"tbl_predefined_measures[[#This Row],[ID]]&tbl_predefined_measures[[#This Row],[REGION]]","v":"PRE-SF-05I"}]
[null,"PRE-SF-06","I","SF","Customer Assistance Programs","SF Acct.","Irrigation Audits - High Users","Site Visit",33,3,0,0,"N",0,0,99,{"$f":"tbl_predefined_measures[[#This Row],[ID]]&tbl_predefined_measures[[#This Row],[REGION]]","v":"PRE-SF-06I"}]
[null,"PRE-SF-07","I","SF","Rebate, Retrofit, and Incentive Programs","SF Acct.","High-Efficiency Sprinkler Nozzle Rebate","Rebate",11.568123393316196,10,0,0,"N",0,0,110,{"$f":"tbl_predefined_measures[[#This Row],[ID]]&tbl_predefined_measures[[#This Row],[REGION]]","v":"PRE-SF-07I"}]
[null,"PRE-SF-08","I","SF","Rebate, Retrofit, and Incentive Programs","SF Acct.","Smart Irrigation Controller Rebate","Rebate",29.186181638905524,10,0,0,"N",0,0,210,{"$f":"tbl_predefined_measures[[#This Row],[ID]]&tbl_predefined_measures[[#This Row],[REGION]]","v":"PRE-SF-08I"}]
[null,"PRE-SF-09","I","SF","Rebate, Retrofit, and Incentive Programs","SF Acct.","WaterWise Landscape Rebate","Rebate",73.804627249357324,15,0,0.2,"N",0,0,550,{"$f":"tbl_predefined_measures[[#This Row],[ID]]&tbl_predefined_measures[[#This Row],[REGION]]","v":"PRE-SF-09I"}]
[null,"PRE-SF-10","I","SF","Rebate, Retrofit, and Incentive Programs","SF Acct.","Rainwater Harvesting Rebate","Rebate",42.924137931034487,15,0,0,"N",0,0,355,{"$f":"tbl_predefined_measures[[#This Row],[ID]]&tbl_predefined_measures[[#This Row],[REGION]]","v":"PRE-SF-10I"}]
[null,"PRE-SF-11","I","SF","Rebate, Retrofit, and Incentive Programs","SF Acct.","Rain Barrel","Rebate",4.6338557993730412,15,0,0,"N",0,0,64,{"$f":"tbl_predefined_measures[[#This Row],[ID]]&tbl_predefined_measures[[#This Row],[REGION]]","v":"PRE-SF-11I"}]
[null,"PRE-MF-01","I","MF","Rebate, Retrofit, and Incentive Programs","Toilet","HE Toilet Rebate","Rebate",39.926967325940311,99,0,0.2,"Y",0.04,0,113,{"$f":"tbl_predefined_measures[[#This Row],[ID]]&tbl_predefined_measures[[#This Row],[REGION]]","v":"PRE-MF-01I"}]
[null,"PRE-MF-02","I","MF","Rebate, Retrofit, and Incentive Programs","Toilet","Bathroom Retrofit","Direct Installation",53.905148012896831,99,0,0,"Y",0.04,0,329,{"$f":"tbl_predefined_measures[[#This Row],[ID]]&tbl_predefined_measures[[#This Row],[REGION]]","v":"PRE-MF-02I"}]
[null,"PRE-MF-03","I","MF","Rebate, Retrofit, and Incentive Programs","Showerhead","Showerhead and Aerator Kit","Distribution",7.173688899054711,99,0,0.5,"Y",6.7000000000000004E-2,0,10,{"$f":"tbl_predefined_measures[[#This Row],[ID]]&tbl_predefined_measures[[#This Row],[REGION]]","v":"PRE-MF-03I"}]
[null,"PRE-MF-04","I","MF","Rebate, Retrofit, and Incentive Programs","Clothes Washer","Clothes Washer Rebate","Rebate",37.355105824485364,99,0,0.2,"Y",0.125,0,156,{"$f":"tbl_predefined_measures[[#This Row],[ID]]&tbl_predefined_measures[[#This Row],[REGION]]","v":"PRE-MF-04I"}]
[null,"PRE-MF-05","I","MF","Customer Assistance Programs","MF Acct.","Irrigation Audits - High Users","Site Visit",123,3,0,0,"N",0,0,213,{"$f":"tbl_predefined_measures[[#This Row],[ID]]&tbl_predefined_measures[[#This Row],[REGION]]","v":"PRE-MF-05I"}]
[null,"PRE-MF-06","I","MF","Rebate, Retrofit, and Incentive Programs","MF Acct.","High-Efficiency Sprinkler Nozzle Rebate","Rebate",46.272493573264782,10,0,0,"N",0,0,410,{"$f":"tbl_predefined_measures[[#This Row],[ID]]&tbl_predefined_measures[[#This Row],[REGION]]","v":"PRE-MF-06I"}]
[null,"PRE-MF-07","I","MF","Rebate, Retrofit, and Incentive Programs","MF Acct.","Smart Irrigation Controller Rebate","Rebate",109.4481811458957,10,0,0,"N",0,0,510,{"$f":"tbl_predefined_measures[[#This Row],[ID]]&tbl_predefined_measures[[#This Row],[REGION]]","v":"PRE-MF-07I"}]
[null,"PRE-MF-08","I","MF","Rebate, Retrofit, and Incentive Programs","MF Acct.","WaterWise Landscape Rebate","Rebate",738.04627249357327,15,0,0.2,"N",0,0,5250,{"$f":"tbl_predefined_measures[[#This Row],[ID]]&tbl_predefined_measures[[#This Row],[REGION]]","v":"PRE-MF-08I"}]
[null,"PRE-MF-09","I","MF","Rebate, Retrofit, and Incentive Programs","MF Acct.","Rainwater Harvesting Rebate","Rebate",497.52978056426332,15,0,0,"N",0,0,2911,{"$f":"tbl_predefined_measures[[#This Row],[ID]]&tbl_predefined_measures[[#This Row],[REGION]]","v":"PRE-MF-09I"}]
[null,"PRE-ICI-01","I","ICI","Rebate, Retrofit, and Incentive Programs","Toilet","HE Toilet Rebate","Rebate",31.98,99,0,0.2,"Y",0.04,0,138,{"$f":"tbl_predefined_measures[[#This Row],[ID]]&tbl_predefined_measures[[#This Row],[REGION]]","v":"PRE-ICI-01I"}]
[null,"PRE-ICI-02","I","ICI","Rebate, Retrofit, and Incentive Programs","Urinal","Urinal Rebate","Rebate",17,99,0,0.2,"Y",0.04,0,138,{"$f":"tbl_predefined_measures[[#This Row],[ID]]&tbl_predefined_measures[[#This Row],[REGION]]","v":"PRE-ICI-02I"}]
[null,"PRE-ICI-03","I","ICI","Rebate, Retrofit, and Incentive Programs","Clothes Washer","Clothes Washer Rebate","Rebate",86,99,0,0.2,"Y",0.125,0,227,{"$f":"tbl_predefined_measures[[#This Row],[ID]]&tbl_predefined_measures[[#This Row],[REGION]]","v":"PRE-ICI-03I"}]
[null,"PRE-ICI-04","I","ICI","Rebate, Retrofit, and Incentive Programs","Other","Commercial General Rebate","Rebate",1,15,0,0.5,"N",0,0,1.68,{"$f":"tbl_predefined_measures[[#This Row],[ID]]&tbl_predefined_measures[[#This Row],[REGION]]","v":"PRE-ICI-04I"}]
[null,"PRE-ICI-05","I","ICI","Rebate, Retrofit, and Incentive Programs","ICI Acct.","Kitchen Pre-Rinse Spray Valve Installation","Direct Installation",77,99,0,0,"Y",0.1,0,213,{"$f":"tbl_predefined_measures[[#This Row],[ID]]&tbl_predefined_measures[[#This Row],[REGION]]","v":"PRE-ICI-05I"}]
[null,"PRE-ICI-06","I","ICI","Customer Assistance Programs","ICI Acct.","Irrigation Audits - High Users","Site Visit",123,3,0,0,"N",0,0,213,{"$f":"tbl_predefined_measures[[#This Row],[ID]]&tbl_predefined_measures[[#This Row],[REGION]]","v":"PRE-ICI-06I"}]
[null,"PRE-ICI-07","I","ICI","Rebate, Retrofit, and Incentive Programs","ICI Acct.","High-Efficiency Sprinkler Nozzle Rebate","Rebate",46.272493573264782,10,0,0,"N",0,0,410,{"$f":"tbl_predefined_measures[[#This Row],[ID]]&tbl_predefined_measures[[#This Row],[REGION]]","v":"PRE-ICI-07I"}]
[null,"PRE-ICI-08","I","ICI","Rebate, Retrofit, and Incentive Programs","ICI Acct.","Smart Irrigation Controller Rebate","Rebate",109.4481811458957,10,0,0,"N",0,0,510,{"$f":"tbl_predefined_measures[[#This Row],[ID]]&tbl_predefined_measures[[#This Row],[REGION]]","v":"PRE-ICI-08I"}]
[null,"PRE-ICI-09","I","ICI","Rebate, Retrofit, and Incentive Programs","ICI Acct.","WaterWise Landscape Rebate","Rebate",738.04627249357327,15,0,0.2,"N",0,0,5250,{"$f":"tbl_predefined_measures[[#This Row],[ID]]&tbl_predefined_measures[[#This Row],[REGION]]","v":"PRE-ICI-09I"}]
[null,"PRE-ICI-10","I","ICI","Rebate, Retrofit, and Incentive Programs","ICI Acct.","Rainwater Harvesting Rebate","Rebate",497.52978056426332,15,0,0,"N",0,0,2911,{"$f":"tbl_predefined_measures[[#This Row],[ID]]&tbl_predefined_measures[[#This Row],[REGION]]","v":"PRE-ICI-10I"}]
[null,"PRE-ICI-11","I","ICI","Rebate, Retrofit, and Incentive Programs","ICI Acct.","Commercial Dishwasher Rebate","Rebate",158.23835616438356,20,0,0,"N",0,0,1028,{"$f":"tbl_predefined_measures[[#This Row],[ID]]&tbl_predefined_measures[[#This Row],[REGION]]","v":"PRE-ICI-11I"}]
[null,"PRE-ICI-12","I","ICI","Rebate, Retrofit, and Incentive Programs","ICI Acct.","Commercial Food Steamer Rebate","Rebate",223.2876712328767,10,0,0,"N",0,0,513,{"$f":"tbl_predefined_measures[[#This Row],[ID]]&tbl_predefined_measures[[#This Row],[REGION]]","v":"PRE-ICI-12I"}]
[null,"PRE-SF-01","J","SF","Rebate, Retrofit, and Incentive Programs","Toilet","HE Toilet Rebate","Rebate",24.318459280822669,99,0,0.2,"Y",0.04,0,113,{"$f":"tbl_predefined_measures[[#This Row],[ID]]&tbl_predefined_measures[[#This Row],[REGION]]","v":"PRE-SF-01J"}]
[null,"PRE-SF-02","J","SF","Rebate, Retrofit, and Incentive Programs","Toilet","Bathroom Retrofit","Direct Installation",26.416627254299737,99,0,0,"Y",0.04,0,329,{"$f":"tbl_predefined_measures[[#This Row],[ID]]&tbl_predefined_measures[[#This Row],[REGION]]","v":"PRE-SF-02J"}]
[null,"PRE-SF-03","J","SF","Rebate, Retrofit, and Incentive Programs","Showerhead","Showerhead and Aerator Kit","Distribution",5.9650448638741347,99,0,0.5,"Y",6.7000000000000004E-2,0,10,{"$f":"tbl_predefined_measures[[#This Row],[ID]]&tbl_predefined_measures[[#This Row],[REGION]]","v":"PRE-SF-03J"}]
[null,"PRE-SF-04","J","SF","Rebate, Retrofit, and Incentive Programs","Clothes Washer","Clothes Washer Rebate","Rebate",12.040580003031375,99,0,0.2,"Y",7.0999999999999994E-2,0,156,{"$f":"tbl_predefined_measures[[#This Row],[ID]]&tbl_predefined_measures[[#This Row],[REGION]]","v":"PRE-SF-04J"}]
[null,"PRE-SF-05","J","SF","Customer Assistance Programs","SF Acct.","Home Water Reports","Distribution",12.1,1,0,0,"N",0,0,7,{"$f":"tbl_predefined_measures[[#This Row],[ID]]&tbl_predefined_measures[[#This Row],[REGION]]","v":"PRE-SF-05J"}]
[null,"PRE-SF-06","J","SF","Customer Assistance Programs","SF Acct.","Irrigation Audits - High Users","Site Visit",33,3,0,0,"N",0,0,99,{"$f":"tbl_predefined_measures[[#This Row],[ID]]&tbl_predefined_measures[[#This Row],[REGION]]","v":"PRE-SF-06J"}]
[null,"PRE-SF-07","J","SF","Rebate, Retrofit, and Incentive Programs","SF Acct.","High-Efficiency Sprinkler Nozzle Rebate","Rebate",20.454545454545453,10,0,0,"N",0,0,110,{"$f":"tbl_predefined_measures[[#This Row],[ID]]&tbl_predefined_measures[[#This Row],[REGION]]","v":"PRE-SF-07J"}]
[null,"PRE-SF-08","J","SF","Rebate, Retrofit, and Incentive Programs","SF Acct.","Smart Irrigation Controller Rebate","Rebate",51.606475716064764,10,0,0,"N",0,0,210,{"$f":"tbl_predefined_measures[[#This Row],[ID]]&tbl_predefined_measures[[#This Row],[REGION]]","v":"PRE-SF-08J"}]
[null,"PRE-SF-09","J","SF","Rebate, Retrofit, and Incentive Programs","SF Acct.","WaterWise Landscape Rebate","Rebate",130.5,15,0,0.2,"N",0,0,550,{"$f":"tbl_predefined_measures[[#This Row],[ID]]&tbl_predefined_measures[[#This Row],[REGION]]","v":"PRE-SF-09J"}]
[null,"PRE-SF-10","J","SF","Rebate, Retrofit, and Incentive Programs","SF Acct.","Rainwater Harvesting Rebate","Rebate",24.27586206896552,15,0,0,"N",0,0,355,{"$f":"tbl_predefined_measures[[#This Row],[ID]]&tbl_predefined_measures[[#This Row],[REGION]]","v":"PRE-SF-10J"}]
[null,"PRE-SF-11","J","SF","Rebate, Retrofit, and Incentive Programs","SF Acct.","Rain Barrel","Rebate",2.6206896551724137,15,0,0,"N",0,0,64,{"$f":"tbl_predefined_measures[[#This Row],[ID]]&tbl_predefined_measures[[#This Row],[REGION]]","v":"PRE-SF-11J"}]
[null,"PRE-MF-01","J","MF","Rebate, Retrofit, and Incentive Programs","Toilet","HE Toilet Rebate","Rebate",35.849921430796662,99,0,0.2,"Y",0.04,0,113,{"$f":"tbl_predefined_measures[[#This Row],[ID]]&tbl_predefined_measures[[#This Row],[REGION]]","v":"PRE-MF-01J"}]
[null,"PRE-MF-02","J","MF","Rebate, Retrofit, and Incentive Programs","Toilet","Bathroom Retrofit","Direct Installation",47.477545494385154,99,0,0,"Y",0.04,0,329,{"$f":"tbl_predefined_measures[[#This Row],[ID]]&tbl_predefined_measures[[#This Row],[REGION]]","v":"PRE-MF-02J"}]
[null,"PRE-MF-03","J","MF","Rebate, Retrofit, and Incentive Programs","Showerhead","Showerhead and Aerator Kit","Distribution",6.3183045334733086,99,0,0.5,"Y",6.7000000000000004E-2,0,10,{"$f":"tbl_predefined_measures[[#This Row],[ID]]&tbl_predefined_measures[[#This Row],[REGION]]","v":"PRE-MF-03J"}]
[null,"PRE-MF-04","J","MF","Rebate, Retrofit, and Incentive Programs","Clothes Washer","Clothes Washer Rebate","Rebate",32.900915805022152,99,0,0.2,"Y",0.125,0,156,{"$f":"tbl_predefined_measures[[#This Row],[ID]]&tbl_predefined_measures[[#This Row],[REGION]]","v":"PRE-MF-04J"}]
[null,"PRE-MF-05","J","MF","Customer Assistance Programs","MF Acct.","Irrigation Audits - High Users","Site Visit",123,3,0,0,"N",0,0,213,{"$f":"tbl_predefined_measures[[#This Row],[ID]]&tbl_predefined_measures[[#This Row],[REGION]]","v":"PRE-MF-05J"}]
[null,"PRE-MF-06","J","MF","Rebate, Retrofit, and Incentive Programs","MF Acct.","High-Efficiency Sprinkler Nozzle Rebate","Rebate",81.818181818181813,10,0,0,"N",0,0,410,{"$f":"tbl_predefined_measures[[#This Row],[ID]]&tbl_predefined_measures[[#This Row],[REGION]]","v":"PRE-MF-06J"}]
[null,"PRE-MF-07","J","MF","Rebate, Retrofit, and Incentive Programs","MF Acct.","Smart Irrigation Controller Rebate","Rebate",193.52428393524283,10,0,0,"N",0,0,510,{"$f":"tbl_predefined_measures[[#This Row],[ID]]&tbl_predefined_measures[[#This Row],[REGION]]","v":"PRE-MF-07J"}]
[null,"PRE-MF-08","J","MF","Rebate, Retrofit, and Incentive Programs","MF Acct.","WaterWise Landscape Rebate","Rebate",1305,15,0,0.2,"N",0,0,5250,{"$f":"tbl_predefined_measures[[#This Row],[ID]]&tbl_predefined_measures[[#This Row],[REGION]]","v":"PRE-MF-08J"}]
[null,"PRE-MF-09","J","MF","Rebate, Retrofit, and Incentive Programs","MF Acct.","Rainwater Harvesting Rebate","Rebate",281.37931034482762,15,0,0,"N",0,0,2911,{"$f":"tbl_predefined_measures[[#This Row],[ID]]&tbl_predefined_measures[[#This Row],[REGION]]","v":"PRE-MF-09J"}]
[null,"PRE-ICI-01","J","ICI","Rebate, Retrofit, and Incentive Programs","Toilet","HE Toilet Rebate","Rebate",31.98,99,0,0.2,"Y",0.04,0,138,{"$f":"tbl_predefined_measures[[#This Row],[ID]]&tbl_predefined_measures[[#This Row],[REGION]]","v":"PRE-ICI-01J"}]
[null,"PRE-ICI-02","J","ICI","Rebate, Retrofit, and Incentive Programs","Urinal","Urinal Rebate","Rebate",17,99,0,0.2,"Y",0.04,0,138,{"$f":"tbl_predefined_measures[[#This Row],[ID]]&tbl_predefined_measures[[#This Row],[REGION]]","v":"PRE-ICI-02J"}]
[null,"PRE-ICI-03","J","ICI","Rebate, Retrofit, and Incentive Programs","Clothes Washer","Clothes Washer Rebate","Rebate",86,99,0,0.2,"Y",0.125,0,227,{"$f":"tbl_predefined_measures[[#This Row],[ID]]&tbl_predefined_measures[[#This Row],[REGION]]","v":"PRE-ICI-03J"}]
[null,"PRE-ICI-04","J","ICI","Rebate, Retrofit, and Incentive Programs","Other","Commercial General Rebate","Rebate",1,15,0,0.5,"N",0,0,1.68,{"$f":"tbl_predefined_measures[[#This Row],[ID]]&tbl_predefined_measures[[#This Row],[REGION]]","v":"PRE-ICI-04J"}]
[null,"PRE-ICI-05","J","ICI","Rebate, Retrofit, and Incentive Programs","ICI Acct.","Kitchen Pre-Rinse Spray Valve Installation","Direct Installation",77,99,0,0,"Y",0.1,0,213,{"$f":"tbl_predefined_measures[[#This Row],[ID]]&tbl_predefined_measures[[#This Row],[REGION]]","v":"PRE-ICI-05J"}]
[null,"PRE-ICI-06","J","ICI","Customer Assistance Programs","ICI Acct.","Irrigation Audits - High Users","Site Visit",123,3,0,0,"N",0,0,213,{"$f":"tbl_predefined_measures[[#This Row],[ID]]&tbl_predefined_measures[[#This Row],[REGION]]","v":"PRE-ICI-06J"}]
[null,"PRE-ICI-07","J","ICI","Rebate, Retrofit, and Incentive Programs","ICI Acct.","High-Efficiency Sprinkler Nozzle Rebate","Rebate",81.818181818181813,10,0,0,"N",0,0,410,{"$f":"tbl_predefined_measures[[#This Row],[ID]]&tbl_predefined_measures[[#This Row],[REGION]]","v":"PRE-ICI-07J"}]
[null,"PRE-ICI-08","J","ICI","Rebate, Retrofit, and Incentive Programs","ICI Acct.","Smart Irrigation Controller Rebate","Rebate",193.52428393524283,10,0,0,"N",0,0,510,{"$f":"tbl_predefined_measures[[#This Row],[ID]]&tbl_predefined_measures[[#This Row],[REGION]]","v":"PRE-ICI-08J"}]
[null,"PRE-ICI-09","J","ICI","Rebate, Retrofit, and Incentive Programs","ICI Acct.","WaterWise Landscape Rebate","Rebate",1305,15,0,0.2,"N",0,0,5250,{"$f":"tbl_predefined_measures[[#This Row],[ID]]&tbl_predefined_measures[[#This Row],[REGION]]","v":"PRE-ICI-09J"}]
[null,"PRE-ICI-10","J","ICI","Rebate, Retrofit, and Incentive Programs","ICI Acct.","Rainwater Harvesting Rebate","Rebate",281.37931034482762,15,0,0,"N",0,0,2911,{"$f":"tbl_predefined_measures[[#This Row],[ID]]&tbl_predefined_measures[[#This Row],[REGION]]","v":"PRE-ICI-10J"}]
[null,"PRE-ICI-11","J","ICI","Rebate, Retrofit, and Incentive Programs","ICI Acct.","Commercial Dishwasher Rebate","Rebate",158.23835616438356,20,0,0,"N",0,0,1028,{"$f":"tbl_predefined_measures[[#This Row],[ID]]&tbl_predefined_measures[[#This Row],[REGION]]","v":"PRE-ICI-11J"}]
[null,"PRE-ICI-12","J","ICI","Rebate, Retrofit, and Incentive Programs","ICI Acct.","Commercial Food Steamer Rebate","Rebate",223.2876712328767,10,0,0,"N",0,0,513,{"$f":"tbl_predefined_measures[[#This Row],[ID]]&tbl_predefined_measures[[#This Row],[REGION]]","v":"PRE-ICI-12J"}]
[null,"PRE-SF-01","K","SF","Rebate, Retrofit, and Incentive Programs","Toilet","HE Toilet Rebate","Rebate",25.209897533608238,99,0,0.2,"Y",0.04,0,113,{"$f":"tbl_predefined_measures[[#This Row],[ID]]&tbl_predefined_measures[[#This Row],[REGION]]","v":"PRE-SF-01K"}]
[null,"PRE-SF-02","K","SF","Rebate, Retrofit, and Incentive Programs","Toilet","Bathroom Retrofit","Direct Installation",28.473239146978198,99,0,0,"Y",0.04,0,329,{"$f":"tbl_predefined_measures[[#This Row],[ID]]&tbl_predefined_measures[[#This Row],[REGION]]","v":"PRE-SF-02K"}]
[null,"PRE-SF-03","K","SF","Rebate, Retrofit, and Incentive Programs","Showerhead","Showerhead and Aerator Kit","Distribution",6.4294410977047534,99,0,0.5,"Y",6.7000000000000004E-2,0,10,{"$f":"tbl_predefined_measures[[#This Row],[ID]]&tbl_predefined_measures[[#This Row],[REGION]]","v":"PRE-SF-03K"}]
[null,"PRE-SF-04","K","SF","Rebate, Retrofit, and Incentive Programs","Clothes Washer","Clothes Washer Rebate","Rebate",12.977974462611758,99,0,0.2,"Y",7.0999999999999994E-2,0,156,{"$f":"tbl_predefined_measures[[#This Row],[ID]]&tbl_predefined_measures[[#This Row],[REGION]]","v":"PRE-SF-04K"}]
[null,"PRE-SF-05","K","SF","Customer Assistance Programs","SF Acct.","Home Water Reports","Distribution",12.1,1,0,0,"N",0,0,7,{"$f":"tbl_predefined_measures[[#This Row],[ID]]&tbl_predefined_measures[[#This Row],[REGION]]","v":"PRE-SF-05K"}]
[null,"PRE-SF-06","K","SF","Customer Assistance Programs","SF Acct.","Irrigation Audits - High Users","Site Visit",33,3,0,0,"N",0,0,99,{"$f":"tbl_predefined_measures[[#This Row],[ID]]&tbl_predefined_measures[[#This Row],[REGION]]","v":"PRE-SF-06K"}]
[null,"PRE-SF-07","K","SF","Rebate, Retrofit, and Incentive Programs","SF Acct.","High-Efficiency Sprinkler Nozzle Rebate","Rebate",12.442396313364057,10,0,0,"N",0,0,110,{"$f":"tbl_predefined_measures[[#This Row],[ID]]&tbl_predefined_measures[[#This Row],[REGION]]","v":"PRE-SF-07K"}]
[null,"PRE-SF-08","K","SF","Rebate, Retrofit, and Incentive Programs","SF Acct.","Smart Irrigation Controller Rebate","Rebate",31.391957578435711,10,0,0,"N",0,0,210,{"$f":"tbl_predefined_measures[[#This Row],[ID]]&tbl_predefined_measures[[#This Row],[REGION]]","v":"PRE-SF-08K"}]
[null,"PRE-SF-09","K","SF","Rebate, Retrofit, and Incentive Programs","SF Acct.","WaterWise Landscape Rebate","Rebate",79.382488479262676,15,0,0.2,"N",0,0,550,{"$f":"tbl_predefined_measures[[#This Row],[ID]]&tbl_predefined_measures[[#This Row],[REGION]]","v":"PRE-SF-09K"}]
[null,"PRE-SF-10","K","SF","Rebate, Retrofit, and Incentive Programs","SF Acct.","Rainwater Harvesting Rebate","Rebate",39.908045977011497,15,0,0,"N",0,0,355,{"$f":"tbl_predefined_measures[[#This Row],[ID]]&tbl_predefined_measures[[#This Row],[REGION]]","v":"PRE-SF-10K"}]
[null,"PRE-SF-11","K","SF","Rebate, Retrofit, and Incentive Programs","SF Acct.","Rain Barrel","Rebate",4.3082549634273768,15,0,0,"N",0,0,64,{"$f":"tbl_predefined_measures[[#This Row],[ID]]&tbl_predefined_measures[[#This Row],[REGION]]","v":"PRE-SF-11K"}]
[null,"PRE-MF-01","K","MF","Rebate, Retrofit, and Incentive Programs","Toilet","HE Toilet Rebate","Rebate",34.719943167609983,99,0,0.2,"Y",0.04,0,113,{"$f":"tbl_predefined_measures[[#This Row],[ID]]&tbl_predefined_measures[[#This Row],[REGION]]","v":"PRE-MF-01K"}]
[null,"PRE-MF-02","K","MF","Rebate, Retrofit, and Incentive Programs","Toilet","Bathroom Retrofit","Direct Installation",45.723085723611227,99,0,0,"Y",0.04,0,329,{"$f":"tbl_predefined_measures[[#This Row],[ID]]&tbl_predefined_measures[[#This Row],[REGION]]","v":"PRE-MF-02K"}]
[null,"PRE-MF-03","K","MF","Rebate, Retrofit, and Incentive Programs","Showerhead","Showerhead and Aerator Kit","Distribution",6.0848212940167032,99,0,0.5,"Y",6.7000000000000004E-2,0,10,{"$f":"tbl_predefined_measures[[#This Row],[ID]]&tbl_predefined_measures[[#This Row],[REGION]]","v":"PRE-MF-03K"}]
[null,"PRE-MF-04","K","MF","Rebate, Retrofit, and Incentive Programs","Clothes Washer","Clothes Washer Rebate","Rebate",31.685112995494901,99,0,0.2,"Y",0.125,0,156,{"$f":"tbl_predefined_measures[[#This Row],[ID]]&tbl_predefined_measures[[#This Row],[REGION]]","v":"PRE-MF-04K"}]
[null,"PRE-MF-05","K","MF","Customer Assistance Programs","MF Acct.","Irrigation Audits - High Users","Site Visit",123,3,0,0,"N",0,0,213,{"$f":"tbl_predefined_measures[[#This Row],[ID]]&tbl_predefined_measures[[#This Row],[REGION]]","v":"PRE-MF-05K"}]
[null,"PRE-MF-06","K","MF","Rebate, Retrofit, and Incentive Programs","MF Acct.","High-Efficiency Sprinkler Nozzle Rebate","Rebate",49.769585253456228,10,0,0,"N",0,0,410,{"$f":"tbl_predefined_measures[[#This Row],[ID]]&tbl_predefined_measures[[#This Row],[REGION]]","v":"PRE-MF-06K"}]
[null,"PRE-MF-07","K","MF","Rebate, Retrofit, and Incentive Programs","MF Acct.","Smart Irrigation Controller Rebate","Rebate",117.7198409191339,10,0,0,"N",0,0,510,{"$f":"tbl_predefined_measures[[#This Row],[ID]]&tbl_predefined_measures[[#This Row],[REGION]]","v":"PRE-MF-07K"}]
[null,"PRE-MF-08","K","MF","Rebate, Retrofit, and Incentive Programs","MF Acct.","WaterWise Landscape Rebate","Rebate",793.82488479262679,15,0,0.2,"N",0,0,5250,{"$f":"tbl_predefined_measures[[#This Row],[ID]]&tbl_predefined_measures[[#This Row],[REGION]]","v":"PRE-MF-08K"}]
[null,"PRE-MF-09","K","MF","Rebate, Retrofit, and Incentive Programs","MF Acct.","Rainwater Harvesting Rebate","Rebate",462.57053291536045,15,0,0,"N",0,0,2911,{"$f":"tbl_predefined_measures[[#This Row],[ID]]&tbl_predefined_measures[[#This Row],[REGION]]","v":"PRE-MF-09K"}]
[null,"PRE-ICI-01","K","ICI","Rebate, Retrofit, and Incentive Programs","Toilet","HE Toilet Rebate","Rebate",31.98,99,0,0.2,"Y",0.04,0,138,{"$f":"tbl_predefined_measures[[#This Row],[ID]]&tbl_predefined_measures[[#This Row],[REGION]]","v":"PRE-ICI-01K"}]
[null,"PRE-ICI-02","K","ICI","Rebate, Retrofit, and Incentive Programs","Urinal","Urinal Rebate","Rebate",17,99,0,0.2,"Y",0.04,0,138,{"$f":"tbl_predefined_measures[[#This Row],[ID]]&tbl_predefined_measures[[#This Row],[REGION]]","v":"PRE-ICI-02K"}]
[null,"PRE-ICI-03","K","ICI","Rebate, Retrofit, and Incentive Programs","Clothes Washer","Clothes Washer Rebate","Rebate",86,99,0,0.2,"Y",0.125,0,227,{"$f":"tbl_predefined_measures[[#This Row],[ID]]&tbl_predefined_measures[[#This Row],[REGION]]","v":"PRE-ICI-03K"}]
[null,"PRE-ICI-04","K","ICI","Rebate, Retrofit, and Incentive Programs","Other","Commercial General Rebate","Rebate",1,15,0,0.5,"N",0,0,1.68,{"$f":"tbl_predefined_measures[[#This Row],[ID]]&tbl_predefined_measures[[#This Row],[REGION]]","v":"PRE-ICI-04K"}]
[null,"PRE-ICI-05","K","ICI","Rebate, Retrofit, and Incentive Programs","ICI Acct.","Kitchen Pre-Rinse Spray Valve Installation","Direct Installation",77,99,0,0,"Y",0.1,0,213,{"$f":"tbl_predefined_measures[[#This Row],[ID]]&tbl_predefined_measures[[#This Row],[REGION]]","v":"PRE-ICI-05K"}]
[null,"PRE-ICI-06","K","ICI","Customer Assistance Programs","ICI Acct.","Irrigation Audits - High Users","Site Visit",123,3,0,0,"N",0,0,213,{"$f":"tbl_predefined_measures[[#This Row],[ID]]&tbl_predefined_measures[[#This Row],[REGION]]","v":"PRE-ICI-06K"}]
[null,"PRE-ICI-07","K","ICI","Rebate, Retrofit, and Incentive Programs","ICI Acct.","High-Efficiency Sprinkler Nozzle Rebate","Rebate",49.769585253456228,10,0,0,"N",0,0,410,{"$f":"tbl_predefined_measures[[#This Row],[ID]]&tbl_predefined_measures[[#This Row],[REGION]]","v":"PRE-ICI-07K"}]
[null,"PRE-ICI-08","K","ICI","Rebate, Retrofit, and Incentive Programs","ICI Acct.","Smart Irrigation Controller Rebate","Rebate",117.7198409191339,10,0,0,"N",0,0,510,{"$f":"tbl_predefined_measures[[#This Row],[ID]]&tbl_predefined_measures[[#This Row],[REGION]]","v":"PRE-ICI-08K"}]
[null,"PRE-ICI-09","K","ICI","Rebate, Retrofit, and Incentive Programs","ICI Acct.","WaterWise Landscape Rebate","Rebate",793.82488479262679,15,0,0.2,"N",0,0,5250,{"$f":"tbl_predefined_measures[[#This Row],[ID]]&tbl_predefined_measures[[#This Row],[REGION]]","v":"PRE-ICI-09K"}]
[null,"PRE-ICI-10","K","ICI","Rebate, Retrofit, and Incentive Programs","ICI Acct.","Rainwater Harvesting Rebate","Rebate",462.57053291536045,15,0,0,"N",0,0,2911,{"$f":"tbl_predefined_measures[[#This Row],[ID]]&tbl_predefined_measures[[#This Row],[REGION]]","v":"PRE-ICI-10K"}]
[null,"PRE-ICI-11","K","ICI","Rebate, Retrofit, and Incentive Programs","ICI Acct.","Commercial Dishwasher Rebate","Rebate",158.23835616438356,20,0,0,"N",0,0,1028,{"$f":"tbl_predefined_measures[[#This Row],[ID]]&tbl_predefined_measures[[#This Row],[REGION]]","v":"PRE-ICI-11K"}]
[null,"PRE-ICI-12","K","ICI","Rebate, Retrofit, and Incentive Programs","ICI Acct.","Commercial Food Steamer Rebate","Rebate",223.2876712328767,10,0,0,"N",0,0,513,{"$f":"tbl_predefined_measures[[#This Row],[ID]]&tbl_predefined_measures[[#This Row],[REGION]]","v":"PRE-ICI-12K"}]
[null,"PRE-SF-01","L","SF","Rebate, Retrofit, and Incentive Programs","Toilet","HE Toilet Rebate","Rebate",27.132248592101561,99,0,0.2,"Y",0.04,0,113,{"$f":"tbl_predefined_measures[[#This Row],[ID]]&tbl_predefined_measures[[#This Row],[REGION]]","v":"PRE-SF-01L"}]
[null,"PRE-SF-02","L","SF","Rebate, Retrofit, and Incentive Programs","Toilet","Bathroom Retrofit","Direct Installation",33.230610222936797,99,0,0,"Y",0.04,0,329,{"$f":"tbl_predefined_measures[[#This Row],[ID]]&tbl_predefined_measures[[#This Row],[REGION]]","v":"PRE-SF-02L"}]
[null,"PRE-SF-03","L","SF","Rebate, Retrofit, and Incentive Programs","Showerhead","Showerhead and Aerator Kit","Distribution",7.5036861793728233,99,0,0.5,"Y",6.7000000000000004E-2,0,10,{"$f":"tbl_predefined_measures[[#This Row],[ID]]&tbl_predefined_measures[[#This Row],[REGION]]","v":"PRE-SF-03L"}]
[null,"PRE-SF-04","L","SF","Rebate, Retrofit, and Incentive Programs","Clothes Washer","Clothes Washer Rebate","Rebate",15.146362822441585,99,0,0.2,"Y",7.0999999999999994E-2,0,156,{"$f":"tbl_predefined_measures[[#This Row],[ID]]&tbl_predefined_measures[[#This Row],[REGION]]","v":"PRE-SF-04L"}]
[null,"PRE-SF-05","L","SF","Customer Assistance Programs","SF Acct.","Home Water Reports","Distribution",12.1,1,0,0,"N",0,0,7,{"$f":"tbl_predefined_measures[[#This Row],[ID]]&tbl_predefined_measures[[#This Row],[REGION]]","v":"PRE-SF-05L"}]
[null,"PRE-SF-06","L","SF","Customer Assistance Programs","SF Acct.","Irrigation Audits - High Users","Site Visit",33,3,0,0,"N",0,0,99,{"$f":"tbl_predefined_measures[[#This Row],[ID]]&tbl_predefined_measures[[#This Row],[REGION]]","v":"PRE-SF-06L"}]
[null,"PRE-SF-07","L","SF","Rebate, Retrofit, and Incentive Programs","SF Acct.","High-Efficiency Sprinkler Nozzle Rebate","Rebate",15.033407572383073,10,0,0,"N",0,0,110,{"$f":"tbl_predefined_measures[[#This Row],[ID]]&tbl_predefined_measures[[#This Row],[REGION]]","v":"PRE-SF-07L"}]
[null,"PRE-SF-08","L","SF","Rebate, Retrofit, and Incentive Programs","SF Acct.","Smart Irrigation Controller Rebate","Rebate",37.929035604234684,10,0,0,"N",0,0,210,{"$f":"tbl_predefined_measures[[#This Row],[ID]]&tbl_predefined_measures[[#This Row],[REGION]]","v":"PRE-SF-08L"}]
[null,"PRE-SF-09","L","SF","Rebate, Retrofit, and Incentive Programs","SF Acct.","WaterWise Landscape Rebate","Rebate",95.913140311804014,15,0,0.2,"N",0,0,550,{"$f":"tbl_predefined_measures[[#This Row],[ID]]&tbl_predefined_measures[[#This Row],[REGION]]","v":"PRE-SF-09L"}]
[null,"PRE-SF-10","L","SF","Rebate, Retrofit, and Incentive Programs","SF Acct.","Rainwater Harvesting Rebate","Rebate",33.029885057471269,15,0,0,"N",0,0,355,{"$f":"tbl_predefined_measures[[#This Row],[ID]]&tbl_predefined_measures[[#This Row],[REGION]]","v":"PRE-SF-10L"}]
[null,"PRE-SF-11","L","SF","Rebate, Retrofit, and Incentive Programs","SF Acct.","Rain Barrel","Rebate",3.5657262277951931,15,0,0,"N",0,0,64,{"$f":"tbl_predefined_measures[[#This Row],[ID]]&tbl_predefined_measures[[#This Row],[REGION]]","v":"PRE-SF-11L"}]
[null,"PRE-MF-01","L","MF","Rebate, Retrofit, and Incentive Programs","Toilet","HE Toilet Rebate","Rebate",39.387637704703053,99,0,0.2,"Y",0.04,0,113,{"$f":"tbl_predefined_measures[[#This Row],[ID]]&tbl_predefined_measures[[#This Row],[REGION]]","v":"PRE-MF-01L"}]
[null,"PRE-MF-02","L","MF","Rebate, Retrofit, and Incentive Programs","Toilet","Bathroom Retrofit","Direct Installation",53.04588047880263,99,0,0,"Y",0.04,0,329,{"$f":"tbl_predefined_measures[[#This Row],[ID]]&tbl_predefined_measures[[#This Row],[REGION]]","v":"PRE-MF-02L"}]
[null,"PRE-MF-03","L","MF","Rebate, Retrofit, and Incentive Programs","Showerhead","Showerhead and Aerator Kit","Distribution",7.0593377063045324,99,0,0.5,"Y",6.7000000000000004E-2,0,10,{"$f":"tbl_predefined_measures[[#This Row],[ID]]&tbl_predefined_measures[[#This Row],[REGION]]","v":"PRE-MF-03L"}]
[null,"PRE-MF-04","L","MF","Rebate, Retrofit, and Incentive Programs","Clothes Washer","Clothes Washer Rebate","Rebate",36.75965194204813,99,0,0.2,"Y",0.125,0,156,{"$f":"tbl_predefined_measures[[#This Row],[ID]]&tbl_predefined_measures[[#This Row],[REGION]]","v":"PRE-MF-04L"}]
[null,"PRE-MF-05","L","MF","Customer Assistance Programs","MF Acct.","Irrigation Audits - High Users","Site Visit",123,3,0,0,"N",0,0,213,{"$f":"tbl_predefined_measures[[#This Row],[ID]]&tbl_predefined_measures[[#This Row],[REGION]]","v":"PRE-MF-05L"}]
[null,"PRE-MF-06","L","MF","Rebate, Retrofit, and Incentive Programs","MF Acct.","High-Efficiency Sprinkler Nozzle Rebate","Rebate",60.133630289532292,10,0,0,"N",0,0,410,{"$f":"tbl_predefined_measures[[#This Row],[ID]]&tbl_predefined_measures[[#This Row],[REGION]]","v":"PRE-MF-06L"}]
[null,"PRE-MF-07","L","MF","Rebate, Retrofit, and Incentive Programs","MF Acct.","Smart Irrigation Controller Rebate","Rebate",142.23388351588005,10,0,0,"N",0,0,510,{"$f":"tbl_predefined_measures[[#This Row],[ID]]&tbl_predefined_measures[[#This Row],[REGION]]","v":"PRE-MF-07L"}]
[null,"PRE-MF-08","L","MF","Rebate, Retrofit, and Incentive Programs","MF Acct.","WaterWise Landscape Rebate","Rebate",959.13140311804011,15,0,0.2,"N",0,0,5250,{"$f":"tbl_predefined_measures[[#This Row],[ID]]&tbl_predefined_measures[[#This Row],[REGION]]","v":"PRE-MF-08L"}]
[null,"PRE-MF-09","L","MF","Rebate, Retrofit, and Incentive Programs","MF Acct.","Rainwater Harvesting Rebate","Rebate",382.84639498432603,15,0,0,"N",0,0,2911,{"$f":"tbl_predefined_measures[[#This Row],[ID]]&tbl_predefined_measures[[#This Row],[REGION]]","v":"PRE-MF-09L"}]
[null,"PRE-ICI-01","L","ICI","Rebate, Retrofit, and Incentive Programs","Toilet","HE Toilet Rebate","Rebate",31.98,99,0,0.2,"Y",0.04,0,138,{"$f":"tbl_predefined_measures[[#This Row],[ID]]&tbl_predefined_measures[[#This Row],[REGION]]","v":"PRE-ICI-01L"}]
[null,"PRE-ICI-02","L","ICI","Rebate, Retrofit, and Incentive Programs","Urinal","Urinal Rebate","Rebate",17,99,0,0.2,"Y",0.04,0,138,{"$f":"tbl_predefined_measures[[#This Row],[ID]]&tbl_predefined_measures[[#This Row],[REGION]]","v":"PRE-ICI-02L"}]
[null,"PRE-ICI-03","L","ICI","Rebate, Retrofit, and Incentive Programs","Clothes Washer","Clothes Washer Rebate","Rebate",86,99,0,0.2,"Y",0.125,0,227,{"$f":"tbl_predefined_measures[[#This Row],[ID]]&tbl_predefined_measures[[#This Row],[REGION]]","v":"PRE-ICI-03L"}]
[null,"PRE-ICI-04","L","ICI","Rebate, Retrofit, and Incentive Programs","Other","Commercial General Rebate","Rebate",1,15,0,0.5,"N",0,0,1.68,{"$f":"tbl_predefined_measures[[#This Row],[ID]]&tbl_predefined_measures[[#This Row],[REGION]]","v":"PRE-ICI-04L"}]
[null,"PRE-ICI-05","L","ICI","Rebate, Retrofit, and Incentive Programs","ICI Acct.","Kitchen Pre-Rinse Spray Valve Installation","Direct Installation",77,99,0,0,"Y",0.1,0,213,{"$f":"tbl_predefined_measures[[#This Row],[ID]]&tbl_predefined_measures[[#This Row],[REGION]]","v":"PRE-ICI-05L"}]
[null,"PRE-ICI-06","L","ICI","Customer Assistance Programs","ICI Acct.","Irrigation Audits - High Users","Site Visit",123,3,0,0,"N",0,0,213,{"$f":"tbl_predefined_measures[[#This Row],[ID]]&tbl_predefined_measures[[#This Row],[REGION]]","v":"PRE-ICI-06L"}]
[null,"PRE-ICI-07","L","ICI","Rebate, Retrofit, and Incentive Programs","ICI Acct.","High-Efficiency Sprinkler Nozzle Rebate","Rebate",60.133630289532292,10,0,0,"N",0,0,410,{"$f":"tbl_predefined_measures[[#This Row],[ID]]&tbl_predefined_measures[[#This Row],[REGION]]","v":"PRE-ICI-07L"}]
[null,"PRE-ICI-08","L","ICI","Rebate, Retrofit, and Incentive Programs","ICI Acct.","Smart Irrigation Controller Rebate","Rebate",142.23388351588005,10,0,0,"N",0,0,510,{"$f":"tbl_predefined_measures[[#This Row],[ID]]&tbl_predefined_measures[[#This Row],[REGION]]","v":"PRE-ICI-08L"}]
[null,"PRE-ICI-09","L","ICI","Rebate, Retrofit, and Incentive Programs","ICI Acct.","WaterWise Landscape Rebate","Rebate",959.13140311804011,15,0,0.2,"N",0,0,5250,{"$f":"tbl_predefined_measures[[#This Row],[ID]]&tbl_predefined_measures[[#This Row],[REGION]]","v":"PRE-ICI-09L"}]
[null,"PRE-ICI-10","L","ICI","Rebate, Retrofit, and Incentive Programs","ICI Acct.","Rainwater Harvesting Rebate","Rebate",382.84639498432603,15,0,0,"N",0,0,2911,{"$f":"tbl_predefined_measures[[#This Row],[ID]]&tbl_predefined_measures[[#This Row],[REGION]]","v":"PRE-ICI-10L"}]
[null,"PRE-ICI-11","L","ICI","Rebate, Retrofit, and Incentive Programs","ICI Acct.","Commercial Dishwasher Rebate","Rebate",158.23835616438356,20,0,0,"N",0,0,1028,{"$f":"tbl_predefined_measures[[#This Row],[ID]]&tbl_predefined_measures[[#This Row],[REGION]]","v":"PRE-ICI-11L"}]
[null,"PRE-ICI-12","L","ICI","Rebate, Retrofit, and Incentive Programs","ICI Acct.","Commercial Food Steamer Rebate","Rebate",223.2876712328767,10,0,0,"N",0,0,513,{"$f":"tbl_predefined_measures[[#This Row],[ID]]&tbl_predefined_measures[[#This Row],[REGION]]","v":"PRE-ICI-12L"}]
[null,"PRE-SF-01","M","SF","Rebate, Retrofit, and Incentive Programs","Toilet","HE Toilet Rebate","Rebate",29.093035700569917,99,0,0.2,"Y",0.04,0,113,{"$f":"tbl_predefined_measures[[#This Row],[ID]]&tbl_predefined_measures[[#This Row],[REGION]]","v":"PRE-SF-01M"}]
[null,"PRE-SF-02","M","SF","Rebate, Retrofit, and Incentive Programs","Toilet","Bathroom Retrofit","Direct Installation",38.6757141183787,99,0,0,"Y",0.04,0,329,{"$f":"tbl_predefined_measures[[#This Row],[ID]]&tbl_predefined_measures[[#This Row],[REGION]]","v":"PRE-SF-02M"}]
[null,"PRE-SF-03","M","SF","Rebate, Retrofit, and Incentive Programs","Showerhead","Showerhead and Aerator Kit","Distribution",8.7332257686661592,99,0,0.5,"Y",6.7000000000000004E-2,0,10,{"$f":"tbl_predefined_measures[[#This Row],[ID]]&tbl_predefined_measures[[#This Row],[REGION]]","v":"PRE-SF-03M"}]
[null,"PRE-SF-04","M","SF","Rebate, Retrofit, and Incentive Programs","Clothes Washer","Clothes Washer Rebate","Rebate",17.628216711159148,99,0,0.2,"Y",7.0999999999999994E-2,0,156,{"$f":"tbl_predefined_measures[[#This Row],[ID]]&tbl_predefined_measures[[#This Row],[REGION]]","v":"PRE-SF-04M"}]
[null,"PRE-SF-05","M","SF","Customer Assistance Programs","SF Acct.","Home Water Reports","Distribution",12.1,1,0,0,"N",0,0,7,{"$f":"tbl_predefined_measures[[#This Row],[ID]]&tbl_predefined_measures[[#This Row],[REGION]]","v":"PRE-SF-05M"}]
[null,"PRE-SF-06","M","SF","Customer Assistance Programs","SF Acct.","Irrigation Audits - High Users","Site Visit",33,3,0,0,"N",0,0,99,{"$f":"tbl_predefined_measures[[#This Row],[ID]]&tbl_predefined_measures[[#This Row],[REGION]]","v":"PRE-SF-06M"}]
[null,"PRE-SF-07","M","SF","Rebate, Retrofit, and Incentive Programs","SF Acct.","High-Efficiency Sprinkler Nozzle Rebate","Rebate",19.823788546255507,10,0,0,"N",0,0,110,{"$f":"tbl_predefined_measures[[#This Row],[ID]]&tbl_predefined_measures[[#This Row],[REGION]]","v":"PRE-SF-07M"}]
[null,"PRE-SF-08","M","SF","Rebate, Retrofit, and Incentive Programs","SF Acct.","Smart Irrigation Controller Rebate","Rebate",50.015086597067175,10,0,0,"N",0,0,210,{"$f":"tbl_predefined_measures[[#This Row],[ID]]&tbl_predefined_measures[[#This Row],[REGION]]","v":"PRE-SF-08M"}]
[null,"PRE-SF-09","M","SF","Rebate, Retrofit, and Incentive Programs","SF Acct.","WaterWise Landscape Rebate","Rebate",126.47577092511014,15,0,0.2,"N",0,0,550,{"$f":"tbl_predefined_measures[[#This Row],[ID]]&tbl_predefined_measures[[#This Row],[REGION]]","v":"PRE-SF-09M"}]
[null,"PRE-SF-10","M","SF","Rebate, Retrofit, and Incentive Programs","SF Acct.","Rainwater Harvesting Rebate","Rebate",25.048275862068969,15,0,0,"N",0,0,355,{"$f":"tbl_predefined_measures[[#This Row],[ID]]&tbl_predefined_measures[[#This Row],[REGION]]","v":"PRE-SF-10M"}]
[null,"PRE-SF-11","M","SF","Rebate, Retrofit, and Incentive Programs","SF Acct.","Rain Barrel","Rebate",2.7040752351097179,15,0,0,"N",0,0,64,{"$f":"tbl_predefined_measures[[#This Row],[ID]]&tbl_predefined_measures[[#This Row],[REGION]]","v":"PRE-SF-11M"}]
[null,"PRE-MF-01","M","MF","Rebate, Retrofit, and Incentive Programs","Toilet","HE Toilet Rebate","Rebate",48.28404630972296,99,0,0.2,"Y",0.04,0,113,{"$f":"tbl_predefined_measures[[#This Row],[ID]]&tbl_predefined_measures[[#This Row],[REGION]]","v":"PRE-MF-01M"}]
[null,"PRE-MF-02","M","MF","Rebate, Retrofit, and Incentive Programs","Toilet","Bathroom Retrofit","Direct Installation",67.598385880124908,99,0,0,"Y",0.04,0,329,{"$f":"tbl_predefined_measures[[#This Row],[ID]]&tbl_predefined_measures[[#This Row],[REGION]]","v":"PRE-MF-02M"}]
[null,"PRE-MF-03","M","MF","Rebate, Retrofit, and Incentive Programs","Showerhead","Showerhead and Aerator Kit","Distribution",8.9959829118036954,99,0,0.5,"Y",6.7000000000000004E-2,0,10,{"$f":"tbl_predefined_measures[[#This Row],[ID]]&tbl_predefined_measures[[#This Row],[REGION]]","v":"PRE-MF-03M"}]
[null,"PRE-MF-04","M","MF","Rebate, Retrofit, and Incentive Programs","Clothes Washer","Clothes Washer Rebate","Rebate",46.844224553697941,99,0,0.2,"Y",0.125,0,156,{"$f":"tbl_predefined_measures[[#This Row],[ID]]&tbl_predefined_measures[[#This Row],[REGION]]","v":"PRE-MF-04M"}]
[null,"PRE-MF-05","M","MF","Customer Assistance Programs","MF Acct.","Irrigation Audits - High Users","Site Visit",123,3,0,0,"N",0,0,213,{"$f":"tbl_predefined_measures[[#This Row],[ID]]&tbl_predefined_measures[[#This Row],[REGION]]","v":"PRE-MF-05M"}]
[null,"PRE-MF-06","M","MF","Rebate, Retrofit, and Incentive Programs","MF Acct.","High-Efficiency Sprinkler Nozzle Rebate","Rebate",79.295154185022028,10,0,0,"N",0,0,410,{"$f":"tbl_predefined_measures[[#This Row],[ID]]&tbl_predefined_measures[[#This Row],[REGION]]","v":"PRE-MF-06M"}]
[null,"PRE-MF-07","M","MF","Rebate, Retrofit, and Incentive Programs","MF Acct.","Smart Irrigation Controller Rebate","Rebate",187.55657473900189,10,0,0,"N",0,0,510,{"$f":"tbl_predefined_measures[[#This Row],[ID]]&tbl_predefined_measures[[#This Row],[REGION]]","v":"PRE-MF-07M"}]
[null,"PRE-MF-08","M","MF","Rebate, Retrofit, and Incentive Programs","MF Acct.","WaterWise Landscape Rebate","Rebate",1264.7577092511015,15,0,0.2,"N",0,0,5250,{"$f":"tbl_predefined_measures[[#This Row],[ID]]&tbl_predefined_measures[[#This Row],[REGION]]","v":"PRE-MF-08M"}]
[null,"PRE-MF-09","M","MF","Rebate, Retrofit, and Incentive Programs","MF Acct.","Rainwater Harvesting Rebate","Rebate",290.33228840125395,15,0,0,"N",0,0,2911,{"$f":"tbl_predefined_measures[[#This Row],[ID]]&tbl_predefined_measures[[#This Row],[REGION]]","v":"PRE-MF-09M"}]
[null,"PRE-ICI-01","M","ICI","Rebate, Retrofit, and Incentive Programs","Toilet","HE Toilet Rebate","Rebate",31.98,99,0,0.2,"Y",0.04,0,138,{"$f":"tbl_predefined_measures[[#This Row],[ID]]&tbl_predefined_measures[[#This Row],[REGION]]","v":"PRE-ICI-01M"}]
[null,"PRE-ICI-02","M","ICI","Rebate, Retrofit, and Incentive Programs","Urinal","Urinal Rebate","Rebate",17,99,0,0.2,"Y",0.04,0,138,{"$f":"tbl_predefined_measures[[#This Row],[ID]]&tbl_predefined_measures[[#This Row],[REGION]]","v":"PRE-ICI-02M"}]
[null,"PRE-ICI-03","M","ICI","Rebate, Retrofit, and Incentive Programs","Clothes Washer","Clothes Washer Rebate","Rebate",86,99,0,0.2,"Y",0.125,0,227,{"$f":"tbl_predefined_measures[[#This Row],[ID]]&tbl_predefined_measures[[#This Row],[REGION]]","v":"PRE-ICI-03M"}]
[null,"PRE-ICI-04","M","ICI","Rebate, Retrofit, and Incentive Programs","Other","Commercial General Rebate","Rebate",1,15,0,0.5,"N",0,0,1.68,{"$f":"tbl_predefined_measures[[#This Row],[ID]]&tbl_predefined_measures[[#This Row],[REGION]]","v":"PRE-ICI-04M"}]
[null,"PRE-ICI-05","M","ICI","Rebate, Retrofit, and Incentive Programs","ICI Acct.","Kitchen Pre-Rinse Spray Valve Installation","Direct Installation",77,99,0,0,"Y",0.1,0,213,{"$f":"tbl_predefined_measures[[#This Row],[ID]]&tbl_predefined_measures[[#This Row],[REGION]]","v":"PRE-ICI-05M"}]
[null,"PRE-ICI-06","M","ICI","Customer Assistance Programs","ICI Acct.","Irrigation Audits - High Users","Site Visit",123,3,0,0,"N",0,0,213,{"$f":"tbl_predefined_measures[[#This Row],[ID]]&tbl_predefined_measures[[#This Row],[REGION]]","v":"PRE-ICI-06M"}]
[null,"PRE-ICI-07","M","ICI","Rebate, Retrofit, and Incentive Programs","ICI Acct.","High-Efficiency Sprinkler Nozzle Rebate","Rebate",79.295154185022028,10,0,0,"N",0,0,410,{"$f":"tbl_predefined_measures[[#This Row],[ID]]&tbl_predefined_measures[[#This Row],[REGION]]","v":"PRE-ICI-07M"}]
[null,"PRE-ICI-08","M","ICI","Rebate, Retrofit, and Incentive Programs","ICI Acct.","Smart Irrigation Controller Rebate","Rebate",187.55657473900189,10,0,0,"N",0,0,510,{"$f":"tbl_predefined_measures[[#This Row],[ID]]&tbl_predefined_measures[[#This Row],[REGION]]","v":"PRE-ICI-08M"}]
[null,"PRE-ICI-09","M","ICI","Rebate, Retrofit, and Incentive Programs","ICI Acct.","WaterWise Landscape Rebate","Rebate",1264.7577092511015,15,0,0.2,"N",0,0,5250,{"$f":"tbl_predefined_measures[[#This Row],[ID]]&tbl_predefined_measures[[#This Row],[REGION]]","v":"PRE-ICI-09M"}]
[null,"PRE-ICI-10","M","ICI","Rebate, Retrofit, and Incentive Programs","ICI Acct.","Rainwater Harvesting Rebate","Rebate",290.33228840125395,15,0,0,"N",0,0,2911,{"$f":"tbl_predefined_measures[[#This Row],[ID]]&tbl_predefined_measures[[#This Row],[REGION]]","v":"PRE-ICI-10M"}]
[null,"PRE-ICI-11","M","ICI","Rebate, Retrofit, and Incentive Programs","ICI Acct.","Commercial Dishwasher Rebate","Rebate",158.23835616438356,20,0,0,"N",0,0,1028,{"$f":"tbl_predefined_measures[[#This Row],[ID]]&tbl_predefined_measures[[#This Row],[REGION]]","v":"PRE-ICI-11M"}]
[null,"PRE-ICI-12","M","ICI","Rebate, Retrofit, and Incentive Programs","ICI Acct.","Commercial Food Steamer Rebate","Rebate",223.2876712328767,10,0,0,"N",0,0,513,{"$f":"tbl_predefined_measures[[#This Row],[ID]]&tbl_predefined_measures[[#This Row],[REGION]]","v":"PRE-ICI-12M"}]
[null,"PRE-SF-01","N","SF","Rebate, Retrofit, and Incentive Programs","Toilet","HE Toilet Rebate","Rebate",26.679644875343499,99,0,0.2,"Y",0.04,0,113,{"$f":"tbl_predefined_measures[[#This Row],[ID]]&tbl_predefined_measures[[#This Row],[REGION]]","v":"PRE-SF-01N"}]
[null,"PRE-SF-02","N","SF","Rebate, Retrofit, and Incentive Programs","Toilet","Bathroom Retrofit","Direct Installation",32.065884225540529,99,0,0,"Y",0.04,0,329,{"$f":"tbl_predefined_measures[[#This Row],[ID]]&tbl_predefined_measures[[#This Row],[REGION]]","v":"PRE-SF-02N"}]
[null,"PRE-SF-03","N","SF","Rebate, Retrofit, and Incentive Programs","Showerhead","Showerhead and Aerator Kit","Distribution",7.2406835347994747,99,0,0.5,"Y",6.7000000000000004E-2,0,10,{"$f":"tbl_predefined_measures[[#This Row],[ID]]&tbl_predefined_measures[[#This Row],[REGION]]","v":"PRE-SF-03N"}]
[null,"PRE-SF-04","N","SF","Rebate, Retrofit, and Incentive Programs","Clothes Washer","Clothes Washer Rebate","Rebate",14.61548594636432,99,0,0.2,"Y",7.0999999999999994E-2,0,156,{"$f":"tbl_predefined_measures[[#This Row],[ID]]&tbl_predefined_measures[[#This Row],[REGION]]","v":"PRE-SF-04N"}]
[null,"PRE-SF-05","N","SF","Customer Assistance Programs","SF Acct.","Home Water Reports","Distribution",12.1,1,0,0,"N",0,0,7,{"$f":"tbl_predefined_measures[[#This Row],[ID]]&tbl_predefined_measures[[#This Row],[REGION]]","v":"PRE-SF-05N"}]
[null,"PRE-SF-06","N","SF","Customer Assistance Programs","SF Acct.","Irrigation Audits - High Users","Site Visit",33,3,0,0,"N",0,0,99,{"$f":"tbl_predefined_measures[[#This Row],[ID]]&tbl_predefined_measures[[#This Row],[REGION]]","v":"PRE-SF-06N"}]
[null,"PRE-SF-07","N","SF","Rebate, Retrofit, and Incentive Programs","SF Acct.","High-Efficiency Sprinkler Nozzle Rebate","Rebate",15.752625437572929,10,0,0,"N",0,0,110,{"$f":"tbl_predefined_measures[[#This Row],[ID]]&tbl_predefined_measures[[#This Row],[REGION]]","v":"PRE-SF-07N"}]
[null,"PRE-SF-08","N","SF","Rebate, Retrofit, and Incentive Programs","SF Acct.","Smart Irrigation Controller Rebate","Rebate",39.743610236409275,10,0,0,"N",0,0,210,{"$f":"tbl_predefined_measures[[#This Row],[ID]]&tbl_predefined_measures[[#This Row],[REGION]]","v":"PRE-SF-08N"}]
[null,"PRE-SF-09","N","SF","Rebate, Retrofit, and Incentive Programs","SF Acct.","WaterWise Landscape Rebate","Rebate",100.50175029171528,15,0,0.2,"N",0,0,550,{"$f":"tbl_predefined_measures[[#This Row],[ID]]&tbl_predefined_measures[[#This Row],[REGION]]","v":"PRE-SF-09N"}]
[null,"PRE-SF-10","N","SF","Rebate, Retrofit, and Incentive Programs","SF Acct.","Rainwater Harvesting Rebate","Rebate",31.521839080459774,15,0,0,"N",0,0,355,{"$f":"tbl_predefined_measures[[#This Row],[ID]]&tbl_predefined_measures[[#This Row],[REGION]]","v":"PRE-SF-10N"}]
[null,"PRE-SF-11","N","SF","Rebate, Retrofit, and Incentive Programs","SF Acct.","Rain Barrel","Rebate",3.4029258098223614,15,0,0,"N",0,0,64,{"$f":"tbl_predefined_measures[[#This Row],[ID]]&tbl_predefined_measures[[#This Row],[REGION]]","v":"PRE-SF-11N"}]
[null,"PRE-MF-01","N","MF","Rebate, Retrofit, and Incentive Programs","Toilet","HE Toilet Rebate","Rebate",40.423098154359501,99,0,0.2,"Y",0.04,0,113,{"$f":"tbl_predefined_measures[[#This Row],[ID]]&tbl_predefined_measures[[#This Row],[REGION]]","v":"PRE-MF-01N"}]
[null,"PRE-MF-02","N","MF","Rebate, Retrofit, and Incentive Programs","Toilet","Bathroom Retrofit","Direct Installation",54.698079826421967,99,0,0,"Y",0.04,0,329,{"$f":"tbl_predefined_measures[[#This Row],[ID]]&tbl_predefined_measures[[#This Row],[REGION]]","v":"PRE-MF-02N"}]
[null,"PRE-MF-03","N","MF","Rebate, Retrofit, and Incentive Programs","Showerhead","Showerhead and Aerator Kit","Distribution",7.279212144200641,99,0,0.5,"Y",6.7000000000000004E-2,0,10,{"$f":"tbl_predefined_measures[[#This Row],[ID]]&tbl_predefined_measures[[#This Row],[REGION]]","v":"PRE-MF-03N"}]
[null,"PRE-MF-04","N","MF","Rebate, Retrofit, and Incentive Programs","Clothes Washer","Clothes Washer Rebate","Rebate",37.904590482216868,99,0,0.2,"Y",0.125,0,156,{"$f":"tbl_predefined_measures[[#This Row],[ID]]&tbl_predefined_measures[[#This Row],[REGION]]","v":"PRE-MF-04N"}]
[null,"PRE-MF-05","N","MF","Customer Assistance Programs","MF Acct.","Irrigation Audits - High Users","Site Visit",123,3,0,0,"N",0,0,213,{"$f":"tbl_predefined_measures[[#This Row],[ID]]&tbl_predefined_measures[[#This Row],[REGION]]","v":"PRE-MF-05N"}]
[null,"PRE-MF-06","N","MF","Rebate, Retrofit, and Incentive Programs","MF Acct.","High-Efficiency Sprinkler Nozzle Rebate","Rebate",63.010501750291716,10,0,0,"N",0,0,410,{"$f":"tbl_predefined_measures[[#This Row],[ID]]&tbl_predefined_measures[[#This Row],[REGION]]","v":"PRE-MF-06N"}]
[null,"PRE-MF-07","N","MF","Rebate, Retrofit, and Incentive Programs","MF Acct.","Smart Irrigation Controller Rebate","Rebate",149.03853838653475,10,0,0,"N",0,0,510,{"$f":"tbl_predefined_measures[[#This Row],[ID]]&tbl_predefined_measures[[#This Row],[REGION]]","v":"PRE-MF-07N"}]
[null,"PRE-MF-08","N","MF","Rebate, Retrofit, and Incentive Programs","MF Acct.","WaterWise Landscape Rebate","Rebate",1005.0175029171529,15,0,0.2,"N",0,0,5250,{"$f":"tbl_predefined_measures[[#This Row],[ID]]&tbl_predefined_measures[[#This Row],[REGION]]","v":"PRE-MF-08N"}]
[null,"PRE-MF-09","N","MF","Rebate, Retrofit, and Incentive Programs","MF Acct.","Rainwater Harvesting Rebate","Rebate",365.36677115987465,15,0,0,"N",0,0,2911,{"$f":"tbl_predefined_measures[[#This Row],[ID]]&tbl_predefined_measures[[#This Row],[REGION]]","v":"PRE-MF-09N"}]
[null,"PRE-ICI-01","N","ICI","Rebate, Retrofit, and Incentive Programs","Toilet","HE Toilet Rebate","Rebate",31.98,99,0,0.2,"Y",0.04,0,138,{"$f":"tbl_predefined_measures[[#This Row],[ID]]&tbl_predefined_measures[[#This Row],[REGION]]","v":"PRE-ICI-01N"}]
[null,"PRE-ICI-02","N","ICI","Rebate, Retrofit, and Incentive Programs","Urinal","Urinal Rebate","Rebate",17,99,0,0.2,"Y",0.04,0,138,{"$f":"tbl_predefined_measures[[#This Row],[ID]]&tbl_predefined_measures[[#This Row],[REGION]]","v":"PRE-ICI-02N"}]
[null,"PRE-ICI-03","N","ICI","Rebate, Retrofit, and Incentive Programs","Clothes Washer","Clothes Washer Rebate","Rebate",86,99,0,0.2,"Y",0.125,0,227,{"$f":"tbl_predefined_measures[[#This Row],[ID]]&tbl_predefined_measures[[#This Row],[REGION]]","v":"PRE-ICI-03N"}]
[null,"PRE-ICI-04","N","ICI","Rebate, Retrofit, and Incentive Programs","Other","Commercial General Rebate","Rebate",1,15,0,0.5,"N",0,0,1.68,{"$f":"tbl_predefined_measures[[#This Row],[ID]]&tbl_predefined_measures[[#This Row],[REGION]]","v":"PRE-ICI-04N"}]
[null,"PRE-ICI-05","N","ICI","Rebate, Retrofit, and Incentive Programs","ICI Acct.","Kitchen Pre-Rinse Spray Valve Installation","Direct Installation",77,99,0,0,"Y",0.1,0,213,{"$f":"tbl_predefined_measures[[#This Row],[ID]]&tbl_predefined_measures[[#This Row],[REGION]]","v":"PRE-ICI-05N"}]
[null,"PRE-ICI-06","N","ICI","Customer Assistance Programs","ICI Acct.","Irrigation Audits - High Users","Site Visit",123,3,0,0,"N",0,0,213,{"$f":"tbl_predefined_measures[[#This Row],[ID]]&tbl_predefined_measures[[#This Row],[REGION]]","v":"PRE-ICI-06N"}]
[null,"PRE-ICI-07","N","ICI","Rebate, Retrofit, and Incentive Programs","ICI Acct.","High-Efficiency Sprinkler Nozzle Rebate","Rebate",63.010501750291716,10,0,0,"N",0,0,410,{"$f":"tbl_predefined_measures[[#This Row],[ID]]&tbl_predefined_measures[[#This Row],[REGION]]","v":"PRE-ICI-07N"}]
[null,"PRE-ICI-08","N","ICI","Rebate, Retrofit, and Incentive Programs","ICI Acct.","Smart Irrigation Controller Rebate","Rebate",149.03853838653475,10,0,0,"N",0,0,510,{"$f":"tbl_predefined_measures[[#This Row],[ID]]&tbl_predefined_measures[[#This Row],[REGION]]","v":"PRE-ICI-08N"}]
[null,"PRE-ICI-09","N","ICI","Rebate, Retrofit, and Incentive Programs","ICI Acct.","WaterWise Landscape Rebate","Rebate",1005.0175029171529,15,0,0.2,"N",0,0,5250,{"$f":"tbl_predefined_measures[[#This Row],[ID]]&tbl_predefined_measures[[#This Row],[REGION]]","v":"PRE-ICI-09N"}]
[null,"PRE-ICI-10","N","ICI","Rebate, Retrofit, and Incentive Programs","ICI Acct.","Rainwater Harvesting Rebate","Rebate",365.36677115987465,15,0,0,"N",0,0,2911,{"$f":"tbl_predefined_measures[[#This Row],[ID]]&tbl_predefined_measures[[#This Row],[REGION]]","v":"PRE-ICI-10N"}]
[null,"PRE-ICI-11","N","ICI","Rebate, Retrofit, and Incentive Programs","ICI Acct.","Commercial Dishwasher Rebate","Rebate",158.23835616438356,20,0,0,"N",0,0,1028,{"$f":"tbl_predefined_measures[[#This Row],[ID]]&tbl_predefined_measures[[#This Row],[REGION]]","v":"PRE-ICI-11N"}]
[null,"PRE-ICI-12","N","ICI","Rebate, Retrofit, and Incentive Programs","ICI Acct.","Commercial Food Steamer Rebate","Rebate",223.2876712328767,10,0,0,"N",0,0,513,{"$f":"tbl_predefined_measures[[#This Row],[ID]]&tbl_predefined_measures[[#This Row],[REGION]]","v":"PRE-ICI-12N"}]
[null,"PRE-SF-01","O","SF","Rebate, Retrofit, and Incentive Programs","Toilet","HE Toilet Rebate","Rebate",26.291061062288144,99,0,0.2,"Y",0.04,0,113,{"$f":"tbl_predefined_measures[[#This Row],[ID]]&tbl_predefined_measures[[#This Row],[REGION]]","v":"PRE-SF-01O"}]
[null,"PRE-SF-02","O","SF","Rebate, Retrofit, and Incentive Programs","Toilet","Bathroom Retrofit","Direct Installation",31.08910937375709,99,0,0,"Y",0.04,0,329,{"$f":"tbl_predefined_measures[[#This Row],[ID]]&tbl_predefined_measures[[#This Row],[REGION]]","v":"PRE-SF-02O"}]
[null,"PRE-SF-03","O","SF","Rebate, Retrofit, and Incentive Programs","Showerhead","Showerhead and Aerator Kit","Distribution",7.0201214714935363,99,0,0.5,"Y",6.7000000000000004E-2,0,10,{"$f":"tbl_predefined_measures[[#This Row],[ID]]&tbl_predefined_measures[[#This Row],[REGION]]","v":"PRE-SF-03O"}]
[null,"PRE-SF-04","O","SF","Rebate, Retrofit, and Incentive Programs","Clothes Washer","Clothes Washer Rebate","Rebate",14.170276357924775,99,0,0.2,"Y",7.0999999999999994E-2,0,156,{"$f":"tbl_predefined_measures[[#This Row],[ID]]&tbl_predefined_measures[[#This Row],[REGION]]","v":"PRE-SF-04O"}]
[null,"PRE-SF-05","O","SF","Customer Assistance Programs","SF Acct.","Home Water Reports","Distribution",12.1,1,0,0,"N",0,0,7,{"$f":"tbl_predefined_measures[[#This Row],[ID]]&tbl_predefined_measures[[#This Row],[REGION]]","v":"PRE-SF-05O"}]
[null,"PRE-SF-06","O","SF","Customer Assistance Programs","SF Acct.","Irrigation Audits - High Users","Site Visit",33,3,0,0,"N",0,0,99,{"$f":"tbl_predefined_measures[[#This Row],[ID]]&tbl_predefined_measures[[#This Row],[REGION]]","v":"PRE-SF-06O"}]
[null,"PRE-SF-07","O","SF","Rebate, Retrofit, and Incentive Programs","SF Acct.","High-Efficiency Sprinkler Nozzle Rebate","Rebate",24.064171122994654,10,0,0,"N",0,0,110,{"$f":"tbl_predefined_measures[[#This Row],[ID]]&tbl_predefined_measures[[#This Row],[REGION]]","v":"PRE-SF-07O"}]
[null,"PRE-SF-08","O","SF","Rebate, Retrofit, and Incentive Programs","SF Acct.","Smart Irrigation Controller Rebate","Rebate",60.713500842429134,10,0,0,"N",0,0,210,{"$f":"tbl_predefined_measures[[#This Row],[ID]]&tbl_predefined_measures[[#This Row],[REGION]]","v":"PRE-SF-08O"}]
[null,"PRE-SF-09","O","SF","Rebate, Retrofit, and Incentive Programs","SF Acct.","WaterWise Landscape Rebate","Rebate",153.52941176470588,15,0,0.2,"N",0,0,550,{"$f":"tbl_predefined_measures[[#This Row],[ID]]&tbl_predefined_measures[[#This Row],[REGION]]","v":"PRE-SF-09O"}]
[null,"PRE-SF-10","O","SF","Rebate, Retrofit, and Incentive Programs","SF Acct.","Rainwater Harvesting Rebate","Rebate",20.634482758620692,15,0,0,"N",0,0,355,{"$f":"tbl_predefined_measures[[#This Row],[ID]]&tbl_predefined_measures[[#This Row],[REGION]]","v":"PRE-SF-10O"}]
[null,"PRE-SF-11","O","SF","Rebate, Retrofit, and Incentive Programs","SF Acct.","Rain Barrel","Rebate",2.2275862068965515,15,0,0,"N",0,0,64,{"$f":"tbl_predefined_measures[[#This Row],[ID]]&tbl_predefined_measures[[#This Row],[REGION]]","v":"PRE-SF-11O"}]
[null,"PRE-MF-01","O","MF","Rebate, Retrofit, and Incentive Programs","Toilet","HE Toilet Rebate","Rebate",34.723430711333229,99,0,0.2,"Y",0.04,0,113,{"$f":"tbl_predefined_measures[[#This Row],[ID]]&tbl_predefined_measures[[#This Row],[REGION]]","v":"PRE-MF-01O"}]
[null,"PRE-MF-02","O","MF","Rebate, Retrofit, and Incentive Programs","Toilet","Bathroom Retrofit","Direct Installation",45.728483174791485,99,0,0,"Y",0.04,0,329,{"$f":"tbl_predefined_measures[[#This Row],[ID]]&tbl_predefined_measures[[#This Row],[REGION]]","v":"PRE-MF-02O"}]
[null,"PRE-MF-03","O","MF","Rebate, Retrofit, and Incentive Programs","Showerhead","Showerhead and Aerator Kit","Distribution",6.085539585998867,99,0,0.5,"Y",6.7000000000000004E-2,0,10,{"$f":"tbl_predefined_measures[[#This Row],[ID]]&tbl_predefined_measures[[#This Row],[REGION]]","v":"PRE-MF-03O"}]
[null,"PRE-MF-04","O","MF","Rebate, Retrofit, and Incentive Programs","Clothes Washer","Clothes Washer Rebate","Rebate",31.688853312838482,99,0,0.2,"Y",0.125,0,156,{"$f":"tbl_predefined_measures[[#This Row],[ID]]&tbl_predefined_measures[[#This Row],[REGION]]","v":"PRE-MF-04O"}]
[null,"PRE-MF-05","O","MF","Customer Assistance Programs","MF Acct.","Irrigation Audits - High Users","Site Visit",123,3,0,0,"N",0,0,213,{"$f":"tbl_predefined_measures[[#This Row],[ID]]&tbl_predefined_measures[[#This Row],[REGION]]","v":"PRE-MF-05O"}]
[null,"PRE-MF-06","O","MF","Rebate, Retrofit, and Incentive Programs","MF Acct.","High-Efficiency Sprinkler Nozzle Rebate","Rebate",96.256684491978618,10,0,0,"N",0,0,410,{"$f":"tbl_predefined_measures[[#This Row],[ID]]&tbl_predefined_measures[[#This Row],[REGION]]","v":"PRE-MF-06O"}]
[null,"PRE-MF-07","O","MF","Rebate, Retrofit, and Incentive Programs","MF Acct.","Smart Irrigation Controller Rebate","Rebate",227.67562815910924,10,0,0,"N",0,0,510,{"$f":"tbl_predefined_measures[[#This Row],[ID]]&tbl_predefined_measures[[#This Row],[REGION]]","v":"PRE-MF-07O"}]
[null,"PRE-MF-08","O","MF","Rebate, Retrofit, and Incentive Programs","MF Acct.","WaterWise Landscape Rebate","Rebate",1535.2941176470588,15,0,0.2,"N",0,0,5250,{"$f":"tbl_predefined_measures[[#This Row],[ID]]&tbl_predefined_measures[[#This Row],[REGION]]","v":"PRE-MF-08O"}]
[null,"PRE-MF-09","O","MF","Rebate, Retrofit, and Incentive Programs","MF Acct.","Rainwater Harvesting Rebate","Rebate",239.17241379310343,15,0,0,"N",0,0,2911,{"$f":"tbl_predefined_measures[[#This Row],[ID]]&tbl_predefined_measures[[#This Row],[REGION]]","v":"PRE-MF-09O"}]
[null,"PRE-ICI-01","O","ICI","Rebate, Retrofit, and Incentive Programs","Toilet","HE Toilet Rebate","Rebate",31.98,99,0,0.2,"Y",0.04,0,138,{"$f":"tbl_predefined_measures[[#This Row],[ID]]&tbl_predefined_measures[[#This Row],[REGION]]","v":"PRE-ICI-01O"}]
[null,"PRE-ICI-02","O","ICI","Rebate, Retrofit, and Incentive Programs","Urinal","Urinal Rebate","Rebate",17,99,0,0.2,"Y",0.04,0,138,{"$f":"tbl_predefined_measures[[#This Row],[ID]]&tbl_predefined_measures[[#This Row],[REGION]]","v":"PRE-ICI-02O"}]
[null,"PRE-ICI-03","O","ICI","Rebate, Retrofit, and Incentive Programs","Clothes Washer","Clothes Washer Rebate","Rebate",86,99,0,0.2,"Y",0.125,0,227,{"$f":"tbl_predefined_measures[[#This Row],[ID]]&tbl_predefined_measures[[#This Row],[REGION]]","v":"PRE-ICI-03O"}]
[null,"PRE-ICI-04","O","ICI","Rebate, Retrofit, and Incentive Programs","Other","Commercial General Rebate","Rebate",1,15,0,0.5,"N",0,0,1.68,{"$f":"tbl_predefined_measures[[#This Row],[ID]]&tbl_predefined_measures[[#This Row],[REGION]]","v":"PRE-ICI-04O"}]
[null,"PRE-ICI-05","O","ICI","Rebate, Retrofit, and Incentive Programs","ICI Acct.","Kitchen Pre-Rinse Spray Valve Installation","Direct Installation",77,99,0,0,"Y",0.1,0,213,{"$f":"tbl_predefined_measures[[#This Row],[ID]]&tbl_predefined_measures[[#This Row],[REGION]]","v":"PRE-ICI-05O"}]
[null,"PRE-ICI-06","O","ICI","Customer Assistance Programs","ICI Acct.","Irrigation Audits - High Users","Site Visit",123,3,0,0,"N",0,0,213,{"$f":"tbl_predefined_measures[[#This Row],[ID]]&tbl_predefined_measures[[#This Row],[REGION]]","v":"PRE-ICI-06O"}]
[null,"PRE-ICI-07","O","ICI","Rebate, Retrofit, and Incentive Programs","ICI Acct.","High-Efficiency Sprinkler Nozzle Rebate","Rebate",96.256684491978618,10,0,0,"N",0,0,410,{"$f":"tbl_predefined_measures[[#This Row],[ID]]&tbl_predefined_measures[[#This Row],[REGION]]","v":"PRE-ICI-07O"}]
[null,"PRE-ICI-08","O","ICI","Rebate, Retrofit, and Incentive Programs","ICI Acct.","Smart Irrigation Controller Rebate","Rebate",227.67562815910924,10,0,0,"N",0,0,510,{"$f":"tbl_predefined_measures[[#This Row],[ID]]&tbl_predefined_measures[[#This Row],[REGION]]","v":"PRE-ICI-08O"}]
[null,"PRE-ICI-09","O","ICI","Rebate, Retrofit, and Incentive Programs","ICI Acct.","WaterWise Landscape Rebate","Rebate",1535.2941176470588,15,0,0.2,"N",0,0,5250,{"$f":"tbl_predefined_measures[[#This Row],[ID]]&tbl_predefined_measures[[#This Row],[REGION]]","v":"PRE-ICI-09O"}]
[null,"PRE-ICI-10","O","ICI","Rebate, Retrofit, and Incentive Programs","ICI Acct.","Rainwater Harvesting Rebate","Rebate",239.17241379310343,15,0,0,"N",0,0,2911,{"$f":"tbl_predefined_measures[[#This Row],[ID]]&tbl_predefined_measures[[#This Row],[REGION]]","v":"PRE-ICI-10O"}]
[null,"PRE-ICI-11","O","ICI","Rebate, Retrofit, and Incentive Programs","ICI Acct.","Commercial Dishwasher Rebate","Rebate",158.23835616438356,20,0,0,"N",0,0,1028,{"$f":"tbl_predefined_measures[[#This Row],[ID]]&tbl_predefined_measures[[#This Row],[REGION]]","v":"PRE-ICI-11O"}]
[null,"PRE-ICI-12","O","ICI","Rebate, Retrofit, and Incentive Programs","ICI Acct.","Commercial Food Steamer Rebate","Rebate",223.2876712328767,10,0,0,"N",0,0,513,{"$f":"tbl_predefined_measures[[#This Row],[ID]]&tbl_predefined_measures[[#This Row],[REGION]]","v":"PRE-ICI-12O"}]
[null,"PRE-SF-01","P","SF","Rebate, Retrofit, and Incentive Programs","Toilet","HE Toilet Rebate","Rebate",25.691132102936415,99,0,0.2,"Y",0.04,0,113,{"$f":"tbl_predefined_measures[[#This Row],[ID]]&tbl_predefined_measures[[#This Row],[REGION]]","v":"PRE-SF-01P"}]
[null,"PRE-SF-02","P","SF","Rebate, Retrofit, and Incentive Programs","Toilet","Bathroom Retrofit","Direct Installation",29.620013750523977,99,0,0,"Y",0.04,0,329,{"$f":"tbl_predefined_measures[[#This Row],[ID]]&tbl_predefined_measures[[#This Row],[REGION]]","v":"PRE-SF-02P"}]
[null,"PRE-SF-03","P","SF","Rebate, Retrofit, and Incentive Programs","Showerhead","Showerhead and Aerator Kit","Distribution",6.6883902017312202,99,0,0.5,"Y",6.7000000000000004E-2,0,10,{"$f":"tbl_predefined_measures[[#This Row],[ID]]&tbl_predefined_measures[[#This Row],[REGION]]","v":"PRE-SF-03P"}]
[null,"PRE-SF-04","P","SF","Rebate, Retrofit, and Incentive Programs","Clothes Washer","Clothes Washer Rebate","Rebate",13.500669174034092,99,0,0.2,"Y",7.0999999999999994E-2,0,156,{"$f":"tbl_predefined_measures[[#This Row],[ID]]&tbl_predefined_measures[[#This Row],[REGION]]","v":"PRE-SF-04P"}]
[null,"PRE-SF-05","P","SF","Customer Assistance Programs","SF Acct.","Home Water Reports","Distribution",12.1,1,0,0,"N",0,0,7,{"$f":"tbl_predefined_measures[[#This Row],[ID]]&tbl_predefined_measures[[#This Row],[REGION]]","v":"PRE-SF-05P"}]
[null,"PRE-SF-06","P","SF","Customer Assistance Programs","SF Acct.","Irrigation Audits - High Users","Site Visit",33,3,0,0,"N",0,0,99,{"$f":"tbl_predefined_measures[[#This Row],[ID]]&tbl_predefined_measures[[#This Row],[REGION]]","v":"PRE-SF-06P"}]
[null,"PRE-SF-07","P","SF","Rebate, Retrofit, and Incentive Programs","SF Acct.","High-Efficiency Sprinkler Nozzle Rebate","Rebate",11.002444987775062,10,0,0,"N",0,0,110,{"$f":"tbl_predefined_measures[[#This Row],[ID]]&tbl_predefined_measures[[#This Row],[REGION]]","v":"PRE-SF-07P"}]
[null,"PRE-SF-08","P","SF","Rebate, Retrofit, and Incentive Programs","SF Acct.","Smart Irrigation Controller Rebate","Rebate",27.758984492748777,10,0,0,"N",0,0,210,{"$f":"tbl_predefined_measures[[#This Row],[ID]]&tbl_predefined_measures[[#This Row],[REGION]]","v":"PRE-SF-08P"}]
[null,"PRE-SF-09","P","SF","Rebate, Retrofit, and Incentive Programs","SF Acct.","WaterWise Landscape Rebate","Rebate",70.195599022004899,15,0,0.2,"N",0,0,550,{"$f":"tbl_predefined_measures[[#This Row],[ID]]&tbl_predefined_measures[[#This Row],[REGION]]","v":"PRE-SF-09P"}]
[null,"PRE-SF-10","P","SF","Rebate, Retrofit, and Incentive Programs","SF Acct.","Rainwater Harvesting Rebate","Rebate",45.131034482758622,15,0,0,"N",0,0,355,{"$f":"tbl_predefined_measures[[#This Row],[ID]]&tbl_predefined_measures[[#This Row],[REGION]]","v":"PRE-SF-10P"}]
[null,"PRE-SF-11","P","SF","Rebate, Retrofit, and Incentive Programs","SF Acct.","Rain Barrel","Rebate",4.8721003134796232,15,0,0,"N",0,0,64,{"$f":"tbl_predefined_measures[[#This Row],[ID]]&tbl_predefined_measures[[#This Row],[REGION]]","v":"PRE-SF-11P"}]
[null,"PRE-MF-01","P","MF","Rebate, Retrofit, and Incentive Programs","Toilet","HE Toilet Rebate","Rebate",40.260657923156664,99,0,0.2,"Y",0.04,0,113,{"$f":"tbl_predefined_measures[[#This Row],[ID]]&tbl_predefined_measures[[#This Row],[REGION]]","v":"PRE-MF-01P"}]
[null,"PRE-MF-02","P","MF","Rebate, Retrofit, and Incentive Programs","Toilet","Bathroom Retrofit","Direct Installation",54.438198725617568,99,0,0,"Y",0.04,0,329,{"$f":"tbl_predefined_measures[[#This Row],[ID]]&tbl_predefined_measures[[#This Row],[REGION]]","v":"PRE-MF-02P"}]
[null,"PRE-MF-03","P","MF","Rebate, Retrofit, and Incentive Programs","Showerhead","Showerhead and Aerator Kit","Distribution",7.2446272068312361,99,0,0.5,"Y",6.7000000000000004E-2,0,10,{"$f":"tbl_predefined_measures[[#This Row],[ID]]&tbl_predefined_measures[[#This Row],[REGION]]","v":"PRE-MF-03P"}]
[null,"PRE-MF-04","P","MF","Rebate, Retrofit, and Incentive Programs","Clothes Washer","Clothes Washer Rebate","Rebate",37.724498480243156,99,0,0.2,"Y",0.125,0,156,{"$f":"tbl_predefined_measures[[#This Row],[ID]]&tbl_predefined_measures[[#This Row],[REGION]]","v":"PRE-MF-04P"}]
[null,"PRE-MF-05","P","MF","Customer Assistance Programs","MF Acct.","Irrigation Audits - High Users","Site Visit",123,3,0,0,"N",0,0,213,{"$f":"tbl_predefined_measures[[#This Row],[ID]]&tbl_predefined_measures[[#This Row],[REGION]]","v":"PRE-MF-05P"}]
[null,"PRE-MF-06","P","MF","Rebate, Retrofit, and Incentive Programs","MF Acct.","High-Efficiency Sprinkler Nozzle Rebate","Rebate",44.009779951100249,10,0,0,"N",0,0,410,{"$f":"tbl_predefined_measures[[#This Row],[ID]]&tbl_predefined_measures[[#This Row],[REGION]]","v":"PRE-MF-06P"}]
[null,"PRE-MF-07","P","MF","Rebate, Retrofit, and Incentive Programs","MF Acct.","Smart Irrigation Controller Rebate","Rebate",104.0961918478079,10,0,0,"N",0,0,510,{"$f":"tbl_predefined_measures[[#This Row],[ID]]&tbl_predefined_measures[[#This Row],[REGION]]","v":"PRE-MF-07P"}]
[null,"PRE-MF-08","P","MF","Rebate, Retrofit, and Incentive Programs","MF Acct.","WaterWise Landscape Rebate","Rebate",701.95599022004888,15,0,0.2,"N",0,0,5250,{"$f":"tbl_predefined_measures[[#This Row],[ID]]&tbl_predefined_measures[[#This Row],[REGION]]","v":"PRE-MF-08P"}]
[null,"PRE-MF-09","P","MF","Rebate, Retrofit, and Incentive Programs","MF Acct.","Rainwater Harvesting Rebate","Rebate",523.10971786833863,15,0,0,"N",0,0,2911,{"$f":"tbl_predefined_measures[[#This Row],[ID]]&tbl_predefined_measures[[#This Row],[REGION]]","v":"PRE-MF-09P"}]
[null,"PRE-ICI-01","P","ICI","Rebate, Retrofit, and Incentive Programs","Toilet","HE Toilet Rebate","Rebate",31.98,99,0,0.2,"Y",0.04,0,138,{"$f":"tbl_predefined_measures[[#This Row],[ID]]&tbl_predefined_measures[[#This Row],[REGION]]","v":"PRE-ICI-01P"}]
[null,"PRE-ICI-02","P","ICI","Rebate, Retrofit, and Incentive Programs","Urinal","Urinal Rebate","Rebate",17,99,0,0.2,"Y",0.04,0,138,{"$f":"tbl_predefined_measures[[#This Row],[ID]]&tbl_predefined_measures[[#This Row],[REGION]]","v":"PRE-ICI-02P"}]
[null,"PRE-ICI-03","P","ICI","Rebate, Retrofit, and Incentive Programs","Clothes Washer","Clothes Washer Rebate","Rebate",86,99,0,0.2,"Y",0.125,0,227,{"$f":"tbl_predefined_measures[[#This Row],[ID]]&tbl_predefined_measures[[#This Row],[REGION]]","v":"PRE-ICI-03P"}]
[null,"PRE-ICI-04","P","ICI","Rebate, Retrofit, and Incentive Programs","Other","Commercial General Rebate","Rebate",1,15,0,0.5,"N",0,0,1.68,{"$f":"tbl_predefined_measures[[#This Row],[ID]]&tbl_predefined_measures[[#This Row],[REGION]]","v":"PRE-ICI-04P"}]
[null,"PRE-ICI-05","P","ICI","Rebate, Retrofit, and Incentive Programs","ICI Acct.","Kitchen Pre-Rinse Spray Valve Installation","Direct Installation",77,99,0,0,"Y",0.1,0,213,{"$f":"tbl_predefined_measures[[#This Row],[ID]]&tbl_predefined_measures[[#This Row],[REGION]]","v":"PRE-ICI-05P"}]
[null,"PRE-ICI-06","P","ICI","Customer Assistance Programs","ICI Acct.","Irrigation Audits - High Users","Site Visit",123,3,0,0,"N",0,0,213,{"$f":"tbl_predefined_measures[[#This Row],[ID]]&tbl_predefined_measures[[#This Row],[REGION]]","v":"PRE-ICI-06P"}]
[null,"PRE-ICI-07","P","ICI","Rebate, Retrofit, and Incentive Programs","ICI Acct.","High-Efficiency Sprinkler Nozzle Rebate","Rebate",44.009779951100249,10,0,0,"N",0,0,410,{"$f":"tbl_predefined_measures[[#This Row],[ID]]&tbl_predefined_measures[[#This Row],[REGION]]","v":"PRE-ICI-07P"}]
[null,"PRE-ICI-08","P","ICI","Rebate, Retrofit, and Incentive Programs","ICI Acct.","Smart Irrigation Controller Rebate","Rebate",104.0961918478079,10,0,0,"N",0,0,510,{"$f":"tbl_predefined_measures[[#This Row],[ID]]&tbl_predefined_measures[[#This Row],[REGION]]","v":"PRE-ICI-08P"}]
[null,"PRE-ICI-09","P","ICI","Rebate, Retrofit, and Incentive Programs","ICI Acct.","WaterWise Landscape Rebate","Rebate",701.95599022004888,15,0,0.2,"N",0,0,5250,{"$f":"tbl_predefined_measures[[#This Row],[ID]]&tbl_predefined_measures[[#This Row],[REGION]]","v":"PRE-ICI-09P"}]
[null,"PRE-ICI-10","P","ICI","Rebate, Retrofit, and Incentive Programs","ICI Acct.","Rainwater Harvesting Rebate","Rebate",523.10971786833863,15,0,0,"N",0,0,2911,{"$f":"tbl_predefined_measures[[#This Row],[ID]]&tbl_predefined_measures[[#This Row],[REGION]]","v":"PRE-ICI-10P"}]
[null,"PRE-ICI-11","P","ICI","Rebate, Retrofit, and Incentive Programs","ICI Acct.","Commercial Dishwasher Rebate","Rebate",158.23835616438356,20,0,0,"N",0,0,1028,{"$f":"tbl_predefined_measures[[#This Row],[ID]]&tbl_predefined_measures[[#This Row],[REGION]]","v":"PRE-ICI-11P"}]
[null,"PRE-ICI-12","P","ICI","Rebate, Retrofit, and Incentive Programs","ICI Acct.","Commercial Food Steamer Rebate","Rebate",223.2876712328767,10,0,0,"N",0,0,513,{"$f":"tbl_predefined_measures[[#This Row],[ID]]&tbl_predefined_measures[[#This Row],[REGION]]","v":"PRE-ICI-12P"}]

{"sheet":"Passive Savings","index":8,"n_rows":32,"n_cols":6,"rows_kept":32,"cut":false,"hidden":false,"merged":[]}
[]
[]
[null,"Passive Water Savings from Codes and Standards in Gallons by Year and Class"]
[]
[null,"Year","sfvol","mfvol","icivol"]
[null,2016,0,0,0]
[null,2020,{"$f":"INDEX(tbl_twdbdata[effsave2],MATCH(utility&tbl_passive[[#This Row],[Year]],tbl_twdbdata[utility_yr],0))*INDEX(tbl_twdbdata[sfvol],MATCH(utility&tbl_passive[[#This Row],[Year]],tbl_twdbdata[utility_yr],0))/(INDEX(tbl_twdbdata[sfvol],MATCH(utility&tbl_passive[[#This Row],[Year]],tbl_twdbdata[utility_yr],0))+INDEX(tbl_twdbdata[mfvol],MATCH(utility&tbl_passive[[#This Row],[Year]],tbl_twdbdata[utility_yr],0)))","v":{"$error":"#N/A"}},{"$f":"INDEX(tbl_twdbdata[effsave2],MATCH(utility&tbl_passive[[#This Row],[Year]],tbl_twdbdata[utility_yr],0))*INDEX(tbl_twdbdata[mfvol],MATCH(utility&tbl_passive[[#This Row],[Year]],tbl_twdbdata[utility_yr],0))/(INDEX(tbl_twdbdata[sfvol],MATCH(utility&tbl_passive[[#This Row],[Year]],tbl_twdbdata[utility_yr],0))+INDEX(tbl_twdbdata[mfvol],MATCH(utility&tbl_passive[[#This Row],[Year]],tbl_twdbdata[utility_yr],0)))","v":{"$error":"#N/A"}},{"$f":"INDEX(tbl_passive_ici[% CII Savings],MATCH(tbl_passive[[#This Row],[Year]],tbl_passive_ici[Year],0))*INDEX(tbl_twdbdata[icivol],MATCH(utility&tbl_passive[[#This Row],[Year]],tbl_twdbdata[utility_yr]))","v":{"$error":"#N/A"}}]
[null,2030,{"$f":"INDEX(tbl_twdbdata[effsave2],MATCH(utility&tbl_passive[[#This Row],[Year]],tbl_twdbdata[utility_yr],0))*INDEX(tbl_twdbdata[sfvol],MATCH(utility&tbl_passive[[#This Row],[Year]],tbl_twdbdata[utility_yr],0))/(INDEX(tbl_twdbdata[sfvol],MATCH(utility&tbl_passive[[#This Row],[Year]],tbl_twdbdata[utility_yr],0))+INDEX(tbl_twdbdata[mfvol],MATCH(utility&tbl_passive[[#This Row],[Year]],tbl_twdbdata[utility_yr],0)))","v":{"$error":"#N/A"}},{"$f":"INDEX(tbl_twdbdata[effsave2],MATCH(utility&tbl_passive[[#This Row],[Year]],tbl_twdbdata[utility_yr],0))*INDEX(tbl_twdbdata[mfvol],MATCH(utility&tbl_passive[[#This Row],[Year]],tbl_twdbdata[utility_yr],0))/(INDEX(tbl_twdbdata[sfvol],MATCH(utility&tbl_passive[[#This Row],[Year]],tbl_twdbdata[utility_yr],0))+INDEX(tbl_twdbdata[mfvol],MATCH(utility&tbl_passive[[#This Row],[Year]],tbl_twdbdata[utility_yr],0)))","v":{"$error":"#N/A"}},{"$f":"INDEX(tbl_passive_ici[% CII Savings],MATCH(tbl_passive[[#This Row],[Year]],tbl_passive_ici[Year],0))*INDEX(tbl_twdbdata[icivol],MATCH(utility&tbl_passive[[#This Row],[Year]],tbl_twdbdata[utility_yr]))","v":{"$error":"#N/A"}}]
[null,2040,{"$f":"INDEX(tbl_twdbdata[effsave2],MATCH(utility&tbl_passive[[#This Row],[Year]],tbl_twdbdata[utility_yr],0))*INDEX(tbl_twdbdata[sfvol],MATCH(utility&tbl_passive[[#This Row],[Year]],tbl_twdbdata[utility_yr],0))/(INDEX(tbl_twdbdata[sfvol],MATCH(utility&tbl_passive[[#This Row],[Year]],tbl_twdbdata[utility_yr],0))+INDEX(tbl_twdbdata[mfvol],MATCH(utility&tbl_passive[[#This Row],[Year]],tbl_twdbdata[utility_yr],0)))","v":{"$error":"#N/A"}},{"$f":"INDEX(tbl_twdbdata[effsave2],MATCH(utility&tbl_passive[[#This Row],[Year]],tbl_twdbdata[utility_yr],0))*INDEX(tbl_twdbdata[mfvol],MATCH(utility&tbl_passive[[#This Row],[Year]],tbl_twdbdata[utility_yr],0))/(INDEX(tbl_twdbdata[sfvol],MATCH(utility&tbl_passive[[#This Row],[Year]],tbl_twdbdata[utility_yr],0))+INDEX(tbl_twdbdata[mfvol],MATCH(utility&tbl_passive[[#This Row],[Year]],tbl_twdbdata[utility_yr],0)))","v":{"$error":"#N/A"}},{"$f":"INDEX(tbl_passive_ici[% CII Savings],MATCH(tbl_passive[[#This Row],[Year]],tbl_passive_ici[Year],0))*INDEX(tbl_twdbdata[icivol],MATCH(utility&tbl_passive[[#This Row],[Year]],tbl_twdbdata[utility_yr]))","v":{"$error":"#N/A"}}]
[null,2050,{"$f":"INDEX(tbl_twdbdata[effsave2],MATCH(utility&tbl_passive[[#This Row],[Year]],tbl_twdbdata[utility_yr],0))*INDEX(tbl_twdbdata[sfvol],MATCH(utility&tbl_passive[[#This Row],[Year]],tbl_twdbdata[utility_yr],0))/(INDEX(tbl_twdbdata[sfvol],MATCH(utility&tbl_passive[[#This Row],[Year]],tbl_twdbdata[utility_yr],0))+INDEX(tbl_twdbdata[mfvol],MATCH(utility&tbl_passive[[#This Row],[Year]],tbl_twdbdata[utility_yr],0)))","v":{"$error":"#N/A"}},{"$f":"INDEX(tbl_twdbdata[effsave2],MATCH(utility&tbl_passive[[#This Row],[Year]],tbl_twdbdata[utility_yr],0))*INDEX(tbl_twdbdata[mfvol],MATCH(utility&tbl_passive[[#This Row],[Year]],tbl_twdbdata[utility_yr],0))/(INDEX(tbl_twdbdata[sfvol],MATCH(utility&tbl_passive[[#This Row],[Year]],tbl_twdbdata[utility_yr],0))+INDEX(tbl_twdbdata[mfvol],MATCH(utility&tbl_passive[[#This Row],[Year]],tbl_twdbdata[utility_yr],0)))","v":{"$error":"#N/A"}},{"$f":"INDEX(tbl_passive_ici[% CII Savings],MATCH(tbl_passive[[#This Row],[Year]],tbl_passive_ici[Year],0))*INDEX(tbl_twdbdata[icivol],MATCH(utility&tbl_passive[[#This Row],[Year]],tbl_twdbdata[utility_yr]))","v":{"$error":"#N/A"}}]
[null,2060,{"$f":"INDEX(tbl_twdbdata[effsave2],MATCH(utility&tbl_passive[[#This Row],[Year]],tbl_twdbdata[utility_yr],0))*INDEX(tbl_twdbdata[sfvol],MATCH(utility&tbl_passive[[#This Row],[Year]],tbl_twdbdata[utility_yr],0))/(INDEX(tbl_twdbdata[sfvol],MATCH(utility&tbl_passive[[#This Row],[Year]],tbl_twdbdata[utility_yr],0))+INDEX(tbl_twdbdata[mfvol],MATCH(utility&tbl_passive[[#This Row],[Year]],tbl_twdbdata[utility_yr],0)))","v":{"$error":"#N/A"}},{"$f":"INDEX(tbl_twdbdata[effsave2],MATCH(utility&tbl_passive[[#This Row],[Year]],tbl_twdbdata[utility_yr],0))*INDEX(tbl_twdbdata[mfvol],MATCH(utility&tbl_passive[[#This Row],[Year]],tbl_twdbdata[utility_yr],0))/(INDEX(tbl_twdbdata[sfvol],MATCH(utility&tbl_passive[[#This Row],[Year]],tbl_twdbdata[utility_yr],0))+INDEX(tbl_twdbdata[mfvol],MATCH(utility&tbl_passive[[#This Row],[Year]],tbl_twdbdata[utility_yr],0)))","v":{"$error":"#N/A"}},{"$f":"INDEX(tbl_passive_ici[% CII Savings],MATCH(tbl_passive[[#This Row],[Year]],tbl_passive_ici[Year],0))*INDEX(tbl_twdbdata[icivol],MATCH(utility&tbl_passive[[#This Row],[Year]],tbl_twdbdata[utility_yr]))","v":{"$error":"#N/A"}}]
[null,2070,{"$f":"INDEX(tbl_twdbdata[effsave2],MATCH(utility&tbl_passive[[#This Row],[Year]],tbl_twdbdata[utility_yr],0))*INDEX(tbl_twdbdata[sfvol],MATCH(utility&tbl_passive[[#This Row],[Year]],tbl_twdbdata[utility_yr],0))/(INDEX(tbl_twdbdata[sfvol],MATCH(utility&tbl_passive[[#This Row],[Year]],tbl_twdbdata[utility_yr],0))+INDEX(tbl_twdbdata[mfvol],MATCH(utility&tbl_passive[[#This Row],[Year]],tbl_twdbdata[utility_yr],0)))","v":{"$error":"#N/A"}},{"$f":"INDEX(tbl_twdbdata[effsave2],MATCH(utility&tbl_passive[[#This Row],[Year]],tbl_twdbdata[utility_yr],0))*INDEX(tbl_twdbdata[mfvol],MATCH(utility&tbl_passive[[#This Row],[Year]],tbl_twdbdata[utility_yr],0))/(INDEX(tbl_twdbdata[sfvol],MATCH(utility&tbl_passive[[#This Row],[Year]],tbl_twdbdata[utility_yr],0))+INDEX(tbl_twdbdata[mfvol],MATCH(utility&tbl_passive[[#This Row],[Year]],tbl_twdbdata[utility_yr],0)))","v":{"$error":"#N/A"}},{"$f":"INDEX(tbl_passive_ici[% CII Savings],MATCH(tbl_passive[[#This Row],[Year]],tbl_passive_ici[Year],0))*INDEX(tbl_twdbdata[icivol],MATCH(utility&tbl_passive[[#This Row],[Year]],tbl_twdbdata[utility_yr]))","v":{"$error":"#N/A"}}]
[]
[]
[null,"ICI Passive Savings from Plumbing Codes and Appliance Standards for Non-Residential Toilets, Urinals, and Clothes Washers"]
[]
[null,"Year","GPCD","Diff","Base CII GPCD","% CII Savings"]
[null,2015,0,null,35,{"$f":"C18/E18","v":0}]
[null,2020,0.8,{"$f":"C19-C18","v":0.8},35,2.2857142857142857E-2]
[null,2025,1.4,{"$f":"C20-C19","v":0.59999999999999987},35,0.04]
[null,2030,1.8,{"$f":"C21-C20","v":0.40000000000000013},35,5.1428571428571428E-2]
[null,2035,2.1,{"$f":"C22-C21","v":0.30000000000000004},35,6.0000000000000005E-2]
[null,2040,2.2999999999999998,{"$f":"C23-C22","v":0.19999999999999973},35,6.5714285714285711E-2]
[null,2045,{"$f":"C23+D24","v":2.4447923118233406},{"$f":"GROWTH($D$19:$D$23,$B$19:$B$23,B24)","v":0.1447923118233406},35,6.9851208909238308E-2]
[null,2050,2.5471759373773017,{"$f":"GROWTH($D$19:$D$23,$B$19:$B$23,B25)","v":0.10238362555396116},35,7.2776455353637193E-2]
[null,2055,2.6195720932889719,{"$f":"GROWTH($D$19:$D$23,$B$19:$B$23,B26)","v":7.239615591167016E-2},35,7.4844916951113477E-2]
[null,2060,2.6707639060659525,5.1191812776980483E-2,35,7.6307540173312927E-2]
[null,2065,2.7069619840217873,3.619807795583501E-2,35,7.7341770972051069E-2]
[null,2070,2.7325578904102774,2.5595906388490193E-2,35,7.807308258315078E-2]
[]
[null,"Source: Projected Statewide and County-Level Effects of Plumbing Codes and Appliance Standards"]
[null,"on Indoor GPCD. Prepared for California Department of Water Resources, August 30, 2016."]

{"sheet":"TWDB Data","index":9,"n_rows":3237,"n_cols":20,"rows_kept":3237,"cut":false,"hidden":false,"merged":[]}
[]
[]
[null,"utilityid","utility","region","Year","respop2016","pop","effsave","effsave2","sfconn","mfconn","iciconn","agconn","sfvol","mfvol","icivol","agvol","othvol","lossvol","utility_yr"]
[null,1,"ABILENE","G",2016,132300,132300,0,{"$f":"IF(tbl_twdbdata[[#This Row],[Year]]=2016,0,tbl_twdbdata[[#This Row],[effsave]]-0.6*SUMIFS(tbl_twdbdata[effsave],tbl_twdbdata[Year],2020,tbl_twdbdata[utility],tbl_twdbdata[[#This Row],[utility]]))","v":0},36284,10358,5668,0,2553239000,537006000,1636204000,0,916101000,573062123,{"$f":"tbl_twdbdata[[#This Row],[utility]]&tbl_twdbdata[[#This Row],[Year]]","v":"ABILENE2016"}]
[null,1,"ABILENE","G",2020,123457,122542,439227291,{"$f":"IF(tbl_twdbdata[[#This Row],[Year]]=2016,0,tbl_twdbdata[[#This Row],[effsave]]-0.6*SUMIFS(tbl_twdbdata[effsave],tbl_twdbdata[Year],2020,tbl_twdbdata[utility],tbl_twdbdata[[#This Row],[utility]]))","v":175690916.40000001},36015,10281,5626,0,2534315701,533025987,1624077295,0,909311329,568814880,{"$f":"tbl_twdbdata[[#This Row],[utility]]&tbl_twdbdata[[#This Row],[Year]]","v":"ABILENE2020"}]
[null,1,"ABILENE","G",2030,123457,128274,656884740,{"$f":"IF(tbl_twdbdata[[#This Row],[Year]]=2016,0,tbl_twdbdata[[#This Row],[effsave]]-0.6*SUMIFS(tbl_twdbdata[effsave],tbl_twdbdata[Year],2020,tbl_twdbdata[utility],tbl_twdbdata[[#This Row],[utility]]))","v":393348365.39999998},37700,10762,5890,0,2652860344,557958704,1700044808,0,951845093,595421651,{"$f":"tbl_twdbdata[[#This Row],[utility]]&tbl_twdbdata[[#This Row],[Year]]","v":"ABILENE2030"}]
[null,1,"ABILENE","G",2040,123457,132973,837231251,{"$f":"IF(tbl_twdbdata[[#This Row],[Year]]=2016,0,tbl_twdbdata[[#This Row],[effsave]]-0.6*SUMIFS(tbl_twdbdata[effsave],tbl_twdbdata[Year],2020,tbl_twdbdata[utility],tbl_twdbdata[[#This Row],[utility]]))","v":573694876.39999998},39081,11265,6165,0,2750041306,578398138,1762321735,0,986713578,617233447,{"$f":"tbl_twdbdata[[#This Row],[utility]]&tbl_twdbdata[[#This Row],[Year]]","v":"ABILENE2040"}]
[null,1,"ABILENE","G",2050,123457,136711,944597819,{"$f":"IF(tbl_twdbdata[[#This Row],[Year]]=2016,0,tbl_twdbdata[[#This Row],[effsave]]-0.6*SUMIFS(tbl_twdbdata[effsave],tbl_twdbdata[Year],2020,tbl_twdbdata[utility],tbl_twdbdata[[#This Row],[utility]]))","v":681061444.39999998},40180,11792,6453,0,2827347634,594657471,1811862308,0,1014451054,634584478,{"$f":"tbl_twdbdata[[#This Row],[utility]]&tbl_twdbdata[[#This Row],[Year]]","v":"ABILENE2050"}]
[null,1,"ABILENE","G",2060,123457,139517,979262847,{"$f":"IF(tbl_twdbdata[[#This Row],[Year]]=2016,0,tbl_twdbdata[[#This Row],[effsave]]-0.6*SUMIFS(tbl_twdbdata[effsave],tbl_twdbdata[Year],2020,tbl_twdbdata[utility],tbl_twdbdata[[#This Row],[utility]]))","v":715726472.39999998},41005,12344,6755,0,2885379083,606862845,1849050872,0,1035272712,647609356,{"$f":"tbl_twdbdata[[#This Row],[utility]]&tbl_twdbdata[[#This Row],[Year]]","v":"ABILENE2060"}]
[null,1,"ABILENE","G",2070,123457,141659,995331549,{"$f":"IF(tbl_twdbdata[[#This Row],[Year]]=2016,0,tbl_twdbdata[[#This Row],[effsave]]-0.6*SUMIFS(tbl_twdbdata[effsave],tbl_twdbdata[Year],2020,tbl_twdbdata[utility],tbl_twdbdata[[#This Row],[utility]]))","v":731795174.39999998},41635,12921,7070,0,2929678215,616179991,1877439290,0,1051167221,657552082,{"$f":"tbl_twdbdata[[#This Row],[utility]]&tbl_twdbdata[[#This Row],[Year]]","v":"ABILENE2070"}]
[null,165,"ACTON MUD","G",2016,18132,18132,0,{"$f":"IF(tbl_twdbdata[[#This Row],[Year]]=2016,0,tbl_twdbdata[[#This Row],[effsave]]-0.6*SUMIFS(tbl_twdbdata[effsave],tbl_twdbdata[Year],2020,tbl_twdbdata[utility],tbl_twdbdata[[#This Row],[utility]]))","v":0},7133,93,168,0,574885794,3299174,23241050,0,493155,13541013,{"$f":"tbl_twdbdata[[#This Row],[utility]]&tbl_twdbdata[[#This Row],[Year]]","v":"ACTON MUD2016"}]
[null,165,"ACTON MUD","G",2020,17430,19608,67919171,{"$f":"IF(tbl_twdbdata[[#This Row],[Year]]=2016,0,tbl_twdbdata[[#This Row],[effsave]]-0.6*SUMIFS(tbl_twdbdata[effsave],tbl_twdbdata[Year],2020,tbl_twdbdata[utility],tbl_twdbdata[[#This Row],[utility]]))","v":27167668.399999999},8024,105,189,0,646721781,3711429,26145181,0,554778,15233057,{"$f":"tbl_twdbdata[[#This Row],[utility]]&tbl_twdbdata[[#This Row],[Year]]","v":"ACTON MUD2020"}]
[null,165,"ACTON MUD","G",2030,17430,31620,163309395,{"$f":"IF(tbl_twdbdata[[#This Row],[Year]]=2016,0,tbl_twdbdata[[#This Row],[effsave]]-0.6*SUMIFS(tbl_twdbdata[effsave],tbl_twdbdata[Year],2020,tbl_twdbdata[utility],tbl_twdbdata[[#This Row],[utility]]))","v":122557892.40000001},12940,169,305,0,1042908135,5985077,42161905,0,894639,24564936,{"$f":"tbl_twdbdata[[#This Row],[utility]]&tbl_twdbdata[[#This Row],[Year]]","v":"ACTON MUD2030"}]
[null,165,"ACTON MUD","G",2040,17430,39531,228119565,{"$f":"IF(tbl_twdbdata[[#This Row],[Year]]=2016,0,tbl_twdbdata[[#This Row],[effsave]]-0.6*SUMIFS(tbl_twdbdata[effsave],tbl_twdbdata[Year],2020,tbl_twdbdata[utility],tbl_twdbdata[[#This Row],[utility]]))","v":187368062.40000001},16177,273,492,0,1303833064,7482482,52710382,0,1118469,30710831,{"$f":"tbl_twdbdata[[#This Row],[utility]]&tbl_twdbdata[[#This Row],[Year]]","v":"ACTON MUD2040"}]
[null,165,"ACTON MUD","G",2050,17430,43668,262671754,{"$f":"IF(tbl_twdbdata[[#This Row],[Year]]=2016,0,tbl_twdbdata[[#This Row],[effsave]]-0.6*SUMIFS(tbl_twdbdata[effsave],tbl_twdbdata[Year],2020,tbl_twdbdata[utility],tbl_twdbdata[[#This Row],[utility]]))","v":221920251.40000001},17870,440,793,0,1440281861,8265539,58226631,0,1235519,33924782,{"$f":"tbl_twdbdata[[#This Row],[utility]]&tbl_twdbdata[[#This Row],[Year]]","v":"ACTON MUD2050"}]
[null,165,"ACTON MUD","G",2060,17430,48233,293123999,{"$f":"IF(tbl_twdbdata[[#This Row],[Year]]=2016,0,tbl_twdbdata[[#This Row],[effsave]]-0.6*SUMIFS(tbl_twdbdata[effsave],tbl_twdbdata[Year],2020,tbl_twdbdata[utility],tbl_twdbdata[[#This Row],[utility]]))","v":252372496.40000001},19738,710,1278,0,1590847188,9129608,64313572,0,1364679,37471238,{"$f":"tbl_twdbdata[[#This Row],[utility]]&tbl_twdbdata[[#This Row],[Year]]","v":"ACTON MUD2060"}]
[null,165,"ACTON MUD","G",2070,17430,53282,324974910,{"$f":"IF(tbl_twdbdata[[#This Row],[Year]]=2016,0,tbl_twdbdata[[#This Row],[effsave]]-0.6*SUMIFS(tbl_twdbdata[effsave],tbl_twdbdata[Year],2020,tbl_twdbdata[utility],tbl_twdbdata[[#This Row],[utility]]))","v":284223407.39999998},21804,1145,2061,0,1757376068,10085290,71045876,0,1507533,41393704,{"$f":"tbl_twdbdata[[#This Row],[utility]]&tbl_twdbdata[[#This Row],[Year]]","v":"ACTON MUD2070"}]
[null,166,"ADDISON","C",2016,15407,15407,0,{"$f":"IF(tbl_twdbdata[[#This Row],[Year]]=2016,0,tbl_twdbdata[[#This Row],[effsave]]-0.6*SUMIFS(tbl_twdbdata[effsave],tbl_twdbdata[Year],2020,tbl_twdbdata[utility],tbl_twdbdata[[#This Row],[utility]]))","v":0},1806,156,1195,210,176720180,322235000,534795290,448097800,null,null,{"$f":"tbl_twdbdata[[#This Row],[utility]]&tbl_twdbdata[[#This Row],[Year]]","v":"ADDISON2016"}]
[null,166,"ADDISON","C",2020,13934,14869,51612529,{"$f":"IF(tbl_twdbdata[[#This Row],[Year]]=2016,0,tbl_twdbdata[[#This Row],[effsave]]-0.6*SUMIFS(tbl_twdbdata[effsave],tbl_twdbdata[Year],2020,tbl_twdbdata[utility],tbl_twdbdata[[#This Row],[utility]]))","v":20645011.600000001},1927,166,1275,224,188578467,343857630,570681152,478166082,null,null,{"$f":"tbl_twdbdata[[#This Row],[utility]]&tbl_twdbdata[[#This Row],[Year]]","v":"ADDISON2020"}]
[null,166,"ADDISON","C",2030,13934,15895,79715015,{"$f":"IF(tbl_twdbdata[[#This Row],[Year]]=2016,0,tbl_twdbdata[[#This Row],[effsave]]-0.6*SUMIFS(tbl_twdbdata[effsave],tbl_twdbdata[Year],2020,tbl_twdbdata[utility],tbl_twdbdata[[#This Row],[utility]]))","v":48747497.600000001},2060,177,1364,239,201590876,367584708,610059648,511160796,null,null,{"$f":"tbl_twdbdata[[#This Row],[utility]]&tbl_twdbdata[[#This Row],[Year]]","v":"ADDISON2030"}]
[null,166,"ADDISON","C",2040,13934,16921,100547966,{"$f":"IF(tbl_twdbdata[[#This Row],[Year]]=2016,0,tbl_twdbdata[[#This Row],[effsave]]-0.6*SUMIFS(tbl_twdbdata[effsave],tbl_twdbdata[Year],2020,tbl_twdbdata[utility],tbl_twdbdata[[#This Row],[utility]]))","v":69580448.599999994},2193,189,1459,255,214603285,391311786,649438144,544155510,null,null,{"$f":"tbl_twdbdata[[#This Row],[utility]]&tbl_twdbdata[[#This Row],[Year]]","v":"ADDISON2040"}]
[null,166,"ADDISON","C",2050,13934,17947,114374436,{"$f":"IF(tbl_twdbdata[[#This Row],[Year]]=2016,0,tbl_twdbdata[[#This Row],[effsave]]-0.6*SUMIFS(tbl_twdbdata[effsave],tbl_twdbdata[Year],2020,tbl_twdbdata[utility],tbl_twdbdata[[#This Row],[utility]]))","v":83406918.599999994},2326,202,1560,273,227615694,415038864,688816640,577150224,null,null,{"$f":"tbl_twdbdata[[#This Row],[utility]]&tbl_twdbdata[[#This Row],[Year]]","v":"ADDISON2050"}]
[null,166,"ADDISON","C",2060,13934,18973,122782821,{"$f":"IF(tbl_twdbdata[[#This Row],[Year]]=2016,0,tbl_twdbdata[[#This Row],[effsave]]-0.6*SUMIFS(tbl_twdbdata[effsave],tbl_twdbdata[Year],2020,tbl_twdbdata[utility],tbl_twdbdata[[#This Row],[utility]]))","v":91815303.599999994},2459,216,1667,292,240628103,438765942,728195136,610144938,null,null,{"$f":"tbl_twdbdata[[#This Row],[utility]]&tbl_twdbdata[[#This Row],[Year]]","v":"ADDISON2060"}]
[null,166,"ADDISON","C",2070,13934,20000,130013000,{"$f":"IF(tbl_twdbdata[[#This Row],[Year]]=2016,0,tbl_twdbdata[[#This Row],[effsave]]-0.6*SUMIFS(tbl_twdbdata[effsave],tbl_twdbdata[Year],2020,tbl_twdbdata[utility],tbl_twdbdata[[#This Row],[utility]]))","v":99045482.599999994},2592,231,1782,312,253653195,462516146,767612012,643171810,null,null,{"$f":"tbl_twdbdata[[#This Row],[utility]]&tbl_twdbdata[[#This Row],[Year]]","v":"ADDISON2070"}]
[null,6196,"AFTON GROVE WSC","I",2016,1593,1593,0,{"$f":"IF(tbl_twdbdata[[#This Row],[Year]]=2016,0,tbl_twdbdata[[#This Row],[effsave]]-0.6*SUMIFS(tbl_twdbdata[effsave],tbl_twdbdata[Year],2020,tbl_twdbdata[utility],tbl_twdbdata[[#This Row],[utility]]))","v":0},433,4,15,0,36556036,1347200,2287600,0,null,null,{"$f":"tbl_twdbdata[[#This Row],[utility]]&tbl_twdbdata[[#This Row],[Year]]","v":"AFTON GROVE WSC2016"}]
[null,6196,"AFTON GROVE WSC","I",2020,1081,1237,4338963,{"$f":"IF(tbl_twdbdata[[#This Row],[Year]]=2016,0,tbl_twdbdata[[#This Row],[effsave]]-0.6*SUMIFS(tbl_twdbdata[effsave],tbl_twdbdata[Year],2020,tbl_twdbdata[utility],tbl_twdbdata[[#This Row],[utility]]))","v":1735585.2000000002},495,5,17,0,41831468,1541616,2617725,0,null,null,{"$f":"tbl_twdbdata[[#This Row],[utility]]&tbl_twdbdata[[#This Row],[Year]]","v":"AFTON GROVE WSC2020"}]
[null,6196,"AFTON GROVE WSC","I",2030,1081,1357,6785679,{"$f":"IF(tbl_twdbdata[[#This Row],[Year]]=2016,0,tbl_twdbdata[[#This Row],[effsave]]-0.6*SUMIFS(tbl_twdbdata[effsave],tbl_twdbdata[Year],2020,tbl_twdbdata[utility],tbl_twdbdata[[#This Row],[utility]]))","v":4182301.2},543,5,18,0,45889492,1691166,2871667,0,null,null,{"$f":"tbl_twdbdata[[#This Row],[utility]]&tbl_twdbdata[[#This Row],[Year]]","v":"AFTON GROVE WSC2030"}]
[null,6196,"AFTON GROVE WSC","I",2040,1081,1474,8586640,{"$f":"IF(tbl_twdbdata[[#This Row],[Year]]=2016,0,tbl_twdbdata[[#This Row],[effsave]]-0.6*SUMIFS(tbl_twdbdata[effsave],tbl_twdbdata[Year],2020,tbl_twdbdata[utility],tbl_twdbdata[[#This Row],[utility]]))","v":5983262.2000000002},590,5,19,0,49846066,1836978,3119262,0,null,null,{"$f":"tbl_twdbdata[[#This Row],[utility]]&tbl_twdbdata[[#This Row],[Year]]","v":"AFTON GROVE WSC2040"}]
[null,6196,"AFTON GROVE WSC","I",2050,1081,1614,10085563,{"$f":"IF(tbl_twdbdata[[#This Row],[Year]]=2016,0,tbl_twdbdata[[#This Row],[effsave]]-0.6*SUMIFS(tbl_twdbdata[effsave],tbl_twdbdata[Year],2020,tbl_twdbdata[utility],tbl_twdbdata[[#This Row],[utility]]))","v":7482185.2000000002},646,5,20,0,54580428,2011454,3415528,0,null,null,{"$f":"tbl_twdbdata[[#This Row],[utility]]&tbl_twdbdata[[#This Row],[Year]]","v":"AFTON GROVE WSC2050"}]
[null,6196,"AFTON GROVE WSC","I",2060,1081,1761,11196966,{"$f":"IF(tbl_twdbdata[[#This Row],[Year]]=2016,0,tbl_twdbdata[[#This Row],[effsave]]-0.6*SUMIFS(tbl_twdbdata[effsave],tbl_twdbdata[Year],2020,tbl_twdbdata[utility],tbl_twdbdata[[#This Row],[utility]]))","v":8593588.1999999993},705,5,21,0,59551508,2194653,3726607,0,null,null,{"$f":"tbl_twdbdata[[#This Row],[utility]]&tbl_twdbdata[[#This Row],[Year]]","v":"AFTON GROVE WSC2060"}]
[null,6196,"AFTON GROVE WSC","I",2070,1081,1919,12264617,{"$f":"IF(tbl_twdbdata[[#This Row],[Year]]=2016,0,tbl_twdbdata[[#This Row],[effsave]]-0.6*SUMIFS(tbl_twdbdata[effsave],tbl_twdbdata[Year],2020,tbl_twdbdata[utility],tbl_twdbdata[[#This Row],[utility]]))","v":9661239.1999999993},768,5,22,0,64894573,2391561,4060964,0,null,null,{"$f":"tbl_twdbdata[[#This Row],[utility]]&tbl_twdbdata[[#This Row],[Year]]","v":"AFTON GROVE WSC2070"}]
[null,168,"ALAMO","M",2016,18353,18353,0,{"$f":"IF(tbl_twdbdata[[#This Row],[Year]]=2016,0,tbl_twdbdata[[#This Row],[effsave]]-0.6*SUMIFS(tbl_twdbdata[effsave],tbl_twdbdata[Year],2020,tbl_twdbdata[utility],tbl_twdbdata[[#This Row],[utility]]))","v":0},4605,0,439,0,424857300,0,192293800,0,3465300,95464681,{"$f":"tbl_twdbdata[[#This Row],[utility]]&tbl_twdbdata[[#This Row],[Year]]","v":"ALAMO2016"}]
[null,168,"ALAMO","M",2020,17633,23259,76490710,{"$f":"IF(tbl_twdbdata[[#This Row],[Year]]=2016,0,tbl_twdbdata[[#This Row],[effsave]]-0.6*SUMIFS(tbl_twdbdata[effsave],tbl_twdbdata[Year],2020,tbl_twdbdata[utility],tbl_twdbdata[[#This Row],[utility]]))","v":30596284},6074,0,579,0,560412632,0,253647224,0,4570942,125923723,{"$f":"tbl_twdbdata[[#This Row],[utility]]&tbl_twdbdata[[#This Row],[Year]]","v":"ALAMO2020"}]
[null,168,"ALAMO","M",2030,17633,28881,128501677,{"$f":"IF(tbl_twdbdata[[#This Row],[Year]]=2016,0,tbl_twdbdata[[#This Row],[effsave]]-0.6*SUMIFS(tbl_twdbdata[effsave],tbl_twdbdata[Year],2020,tbl_twdbdata[utility],tbl_twdbdata[[#This Row],[utility]]))","v":82607251},7542,0,719,0,695871586,0,314957026,0,5675798,156361109,{"$f":"tbl_twdbdata[[#This Row],[utility]]&tbl_twdbdata[[#This Row],[Year]]","v":"ALAMO2030"}]
[null,168,"ALAMO","M",2040,17633,34525,174910555,{"$f":"IF(tbl_twdbdata[[#This Row],[Year]]=2016,0,tbl_twdbdata[[#This Row],[effsave]]-0.6*SUMIFS(tbl_twdbdata[effsave],tbl_twdbdata[Year],2020,tbl_twdbdata[utility],tbl_twdbdata[[#This Row],[utility]]))","v":129016129},9016,0,893,0,831860618,0,376506746,0,6784977,186917603,{"$f":"tbl_twdbdata[[#This Row],[utility]]&tbl_twdbdata[[#This Row],[Year]]","v":"ALAMO2040"}]
[null,168,"ALAMO","M",2050,17633,40181,215151174,{"$f":"IF(tbl_twdbdata[[#This Row],[Year]]=2016,0,tbl_twdbdata[[#This Row],[effsave]]-0.6*SUMIFS(tbl_twdbdata[effsave],tbl_twdbdata[Year],2020,tbl_twdbdata[utility],tbl_twdbdata[[#This Row],[utility]]))","v":169256748},10493,0,1109,0,968138783,0,438187330,0,7896514,217539065,{"$f":"tbl_twdbdata[[#This Row],[utility]]&tbl_twdbdata[[#This Row],[Year]]","v":"ALAMO2050"}]
[null,168,"ALAMO","M",2060,17633,45837,249284525,{"$f":"IF(tbl_twdbdata[[#This Row],[Year]]=2016,0,tbl_twdbdata[[#This Row],[effsave]]-0.6*SUMIFS(tbl_twdbdata[effsave],tbl_twdbdata[Year],2020,tbl_twdbdata[utility],tbl_twdbdata[[#This Row],[utility]]))","v":203390099},11970,0,1377,0,1104416948,0,499867914,0,9008051,248160527,{"$f":"tbl_twdbdata[[#This Row],[utility]]&tbl_twdbdata[[#This Row],[Year]]","v":"ALAMO2060"}]
[null,168,"ALAMO","M",2070,17633,51335,280684380,{"$f":"IF(tbl_twdbdata[[#This Row],[Year]]=2016,0,tbl_twdbdata[[#This Row],[effsave]]-0.6*SUMIFS(tbl_twdbdata[effsave],tbl_twdbdata[Year],2020,tbl_twdbdata[utility],tbl_twdbdata[[#This Row],[utility]]))","v":234789954},13406,0,1710,0,1236888191,0,559825455,0,10088538,277926580,{"$f":"tbl_twdbdata[[#This Row],[utility]]&tbl_twdbdata[[#This Row],[Year]]","v":"ALAMO2070"}]
[null,170,"ALBANY","G",2016,2500,2500,0,{"$f":"IF(tbl_twdbdata[[#This Row],[Year]]=2016,0,tbl_twdbdata[[#This Row],[effsave]]-0.6*SUMIFS(tbl_twdbdata[effsave],tbl_twdbdata[Year],2020,tbl_twdbdata[utility],tbl_twdbdata[[#This Row],[utility]]))","v":0},865,4,205,9,68312000,1661000,18501000,6432510,863000,5775000,{"$f":"tbl_twdbdata[[#This Row],[utility]]&tbl_twdbdata[[#This Row],[Year]]","v":"ALBANY2016"}]
[null,170,"ALBANY","G",2020,2138,2174,8054127,{"$f":"IF(tbl_twdbdata[[#This Row],[Year]]=2016,0,tbl_twdbdata[[#This Row],[effsave]]-0.6*SUMIFS(tbl_twdbdata[effsave],tbl_twdbdata[Year],2020,tbl_twdbdata[utility],tbl_twdbdata[[#This Row],[utility]]))","v":3221650.8},880,4,209,9,69462249,1688968,18812522,6540822,877531,5872240,{"$f":"tbl_twdbdata[[#This Row],[utility]]&tbl_twdbdata[[#This Row],[Year]]","v":"ALBANY2020"}]
[null,170,"ALBANY","G",2030,2138,2327,12069335,{"$f":"IF(tbl_twdbdata[[#This Row],[Year]]=2016,0,tbl_twdbdata[[#This Row],[effsave]]-0.6*SUMIFS(tbl_twdbdata[effsave],tbl_twdbdata[Year],2020,tbl_twdbdata[utility],tbl_twdbdata[[#This Row],[utility]]))","v":7236858.7999999998},942,4,224,10,74350807,1807833,20136494,7001147,939289,6285512,{"$f":"tbl_twdbdata[[#This Row],[utility]]&tbl_twdbdata[[#This Row],[Year]]","v":"ALBANY2030"}]
[null,170,"ALBANY","G",2040,2138,2314,14425939,{"$f":"IF(tbl_twdbdata[[#This Row],[Year]]=2016,0,tbl_twdbdata[[#This Row],[effsave]]-0.6*SUMIFS(tbl_twdbdata[effsave],tbl_twdbdata[Year],2020,tbl_twdbdata[utility],tbl_twdbdata[[#This Row],[utility]]))","v":9593462.8000000007},937,4,240,11,73935439,1797733,20024000,6962034,934042,6250397,{"$f":"tbl_twdbdata[[#This Row],[utility]]&tbl_twdbdata[[#This Row],[Year]]","v":"ALBANY2040"}]
[null,170,"ALBANY","G",2050,2138,2329,15760576,{"$f":"IF(tbl_twdbdata[[#This Row],[Year]]=2016,0,tbl_twdbdata[[#This Row],[effsave]]-0.6*SUMIFS(tbl_twdbdata[effsave],tbl_twdbdata[Year],2020,tbl_twdbdata[utility],tbl_twdbdata[[#This Row],[utility]]))","v":10928099.800000001},943,4,257,12,74414709,1809386,20153801,7007164,940097,6290914,{"$f":"tbl_twdbdata[[#This Row],[utility]]&tbl_twdbdata[[#This Row],[Year]]","v":"ALBANY2050"}]
[null,170,"ALBANY","G",2060,2138,2329,15990099,{"$f":"IF(tbl_twdbdata[[#This Row],[Year]]=2016,0,tbl_twdbdata[[#This Row],[effsave]]-0.6*SUMIFS(tbl_twdbdata[effsave],tbl_twdbdata[Year],2020,tbl_twdbdata[utility],tbl_twdbdata[[#This Row],[utility]]))","v":11157622.800000001},943,4,275,13,74414709,1809386,20153801,7007164,940097,6290914,{"$f":"tbl_twdbdata[[#This Row],[utility]]&tbl_twdbdata[[#This Row],[Year]]","v":"ALBANY2060"}]
[null,170,"ALBANY","G",2070,2138,2329,16007101,{"$f":"IF(tbl_twdbdata[[#This Row],[Year]]=2016,0,tbl_twdbdata[[#This Row],[effsave]]-0.6*SUMIFS(tbl_twdbdata[effsave],tbl_twdbdata[Year],2020,tbl_twdbdata[utility],tbl_twdbdata[[#This Row],[utility]]))","v":11174624.800000001},943,4,295,14,74414709,1809386,20153801,7007164,940097,6290914,{"$f":"tbl_twdbdata[[#This Row],[utility]]&tbl_twdbdata[[#This Row],[Year]]","v":"ALBANY2070"}]
[null,171,"ALEDO","C",2016,3530,3530,0,{"$f":"IF(tbl_twdbdata[[#This Row],[Year]]=2016,0,tbl_twdbdata[[#This Row],[effsave]]-0.6*SUMIFS(tbl_twdbdata[effsave],tbl_twdbdata[Year],2020,tbl_twdbdata[utility],tbl_twdbdata[[#This Row],[utility]]))","v":0},1405,0,166,0,101246650,0,24124970,0,2303955,56640862,{"$f":"tbl_twdbdata[[#This Row],[utility]]&tbl_twdbdata[[#This Row],[Year]]","v":"ALEDO2016"}]
[null,171,"ALEDO","C",2020,3247,5579,20566984,{"$f":"IF(tbl_twdbdata[[#This Row],[Year]]=2016,0,tbl_twdbdata[[#This Row],[effsave]]-0.6*SUMIFS(tbl_twdbdata[effsave],tbl_twdbdata[Year],2020,tbl_twdbdata[utility],tbl_twdbdata[[#This Row],[utility]]))","v":8226793.5999999996},2414,0,285,0,173962137,0,41451558,0,3958659,97320409,{"$f":"tbl_twdbdata[[#This Row],[utility]]&tbl_twdbdata[[#This Row],[Year]]","v":"ALEDO2020"}]
[null,171,"ALEDO","C",2030,3247,8724,40408259,{"$f":"IF(tbl_twdbdata[[#This Row],[Year]]=2016,0,tbl_twdbdata[[#This Row],[effsave]]-0.6*SUMIFS(tbl_twdbdata[effsave],tbl_twdbdata[Year],2020,tbl_twdbdata[utility],tbl_twdbdata[[#This Row],[utility]]))","v":28068068.600000001},3775,0,446,0,272028264,0,64818676,0,6190239,152181977,{"$f":"tbl_twdbdata[[#This Row],[utility]]&tbl_twdbdata[[#This Row],[Year]]","v":"ALEDO2030"}]
[null,171,"ALEDO","C",2040,3247,10000,49822500,{"$f":"IF(tbl_twdbdata[[#This Row],[Year]]=2016,0,tbl_twdbdata[[#This Row],[effsave]]-0.6*SUMIFS(tbl_twdbdata[effsave],tbl_twdbdata[Year],2020,tbl_twdbdata[utility],tbl_twdbdata[[#This Row],[utility]]))","v":37482309.600000001},4327,0,697,0,311815983,0,74299262,0,7095643,174440597,{"$f":"tbl_twdbdata[[#This Row],[utility]]&tbl_twdbdata[[#This Row],[Year]]","v":"ALEDO2040"}]
[null,171,"ALEDO","C",2050,3247,11500,58387225,{"$f":"IF(tbl_twdbdata[[#This Row],[Year]]=2016,0,tbl_twdbdata[[#This Row],[effsave]]-0.6*SUMIFS(tbl_twdbdata[effsave],tbl_twdbdata[Year],2020,tbl_twdbdata[utility],tbl_twdbdata[[#This Row],[utility]]))","v":46047034.600000001},4976,0,1090,0,358588380,0,85444151,0,8159989,200606687,{"$f":"tbl_twdbdata[[#This Row],[utility]]&tbl_twdbdata[[#This Row],[Year]]","v":"ALEDO2050"}]
[null,171,"ALEDO","C",2060,3247,12000,61188600,{"$f":"IF(tbl_twdbdata[[#This Row],[Year]]=2016,0,tbl_twdbdata[[#This Row],[effsave]]-0.6*SUMIFS(tbl_twdbdata[effsave],tbl_twdbdata[Year],2020,tbl_twdbdata[utility],tbl_twdbdata[[#This Row],[utility]]))","v":48848409.600000001},5192,0,1704,0,374179179,0,89159114,0,8514771,209328717,{"$f":"tbl_twdbdata[[#This Row],[utility]]&tbl_twdbdata[[#This Row],[Year]]","v":"ALEDO2060"}]
[null,171,"ALEDO","C",2070,3247,13500,69034275,{"$f":"IF(tbl_twdbdata[[#This Row],[Year]]=2016,0,tbl_twdbdata[[#This Row],[effsave]]-0.6*SUMIFS(tbl_twdbdata[effsave],tbl_twdbdata[Year],2020,tbl_twdbdata[utility],tbl_twdbdata[[#This Row],[utility]]))","v":56694084.600000001},5841,0,2665,0,420951576,0,100304003,0,9579117,235494807,{"$f":"tbl_twdbdata[[#This Row],[utility]]&tbl_twdbdata[[#This Row],[Year]]","v":"ALEDO2070"}]
[null,172,"ALICE","N",2016,19100,19100,0,{"$f":"IF(tbl_twdbdata[[#This Row],[Year]]=2016,0,tbl_twdbdata[[#This Row],[effsave]]-0.6*SUMIFS(tbl_twdbdata[effsave],tbl_twdbdata[Year],2020,tbl_twdbdata[utility],tbl_twdbdata[[#This Row],[utility]]))","v":0},7093,56,1207,0,514397000,68258000,321298363,0,36005086,150721349,{"$f":"tbl_twdbdata[[#This Row],[utility]]&tbl_twdbdata[[#This Row],[Year]]","v":"ALICE2016"}]
[null,172,"ALICE","N",2020,19100,22566,84013218,{"$f":"IF(tbl_twdbdata[[#This Row],[Year]]=2016,0,tbl_twdbdata[[#This Row],[effsave]]-0.6*SUMIFS(tbl_twdbdata[effsave],tbl_twdbdata[Year],2020,tbl_twdbdata[utility],tbl_twdbdata[[#This Row],[utility]]))","v":33605287.200000003},7777,61,1323,0,564009655,74841360,352287005,0,39477711,165258149,{"$f":"tbl_twdbdata[[#This Row],[utility]]&tbl_twdbdata[[#This Row],[Year]]","v":"ALICE2020"}]
[null,172,"ALICE","N",2030,19100,24424,130155496,{"$f":"IF(tbl_twdbdata[[#This Row],[Year]]=2016,0,tbl_twdbdata[[#This Row],[effsave]]-0.6*SUMIFS(tbl_twdbdata[effsave],tbl_twdbdata[Year],2020,tbl_twdbdata[utility],tbl_twdbdata[[#This Row],[utility]]))","v":79747565.200000003},8417,66,1432,0,610448100,81003518,381292999,0,42728158,178864887,{"$f":"tbl_twdbdata[[#This Row],[utility]]&tbl_twdbdata[[#This Row],[Year]]","v":"ALICE2030"}]
[null,172,"ALICE","N",2040,19100,26110,169446067,{"$f":"IF(tbl_twdbdata[[#This Row],[Year]]=2016,0,tbl_twdbdata[[#This Row],[effsave]]-0.6*SUMIFS(tbl_twdbdata[effsave],tbl_twdbdata[Year],2020,tbl_twdbdata[utility],tbl_twdbdata[[#This Row],[utility]]))","v":119038136.2},8998,71,1550,0,652587614,86595228,407613831,0,45677702,191212013,{"$f":"tbl_twdbdata[[#This Row],[utility]]&tbl_twdbdata[[#This Row],[Year]]","v":"ALICE2040"}]
[null,172,"ALICE","N",2050,19100,27856,195316522,{"$f":"IF(tbl_twdbdata[[#This Row],[Year]]=2016,0,tbl_twdbdata[[#This Row],[effsave]]-0.6*SUMIFS(tbl_twdbdata[effsave],tbl_twdbdata[Year],2020,tbl_twdbdata[utility],tbl_twdbdata[[#This Row],[utility]]))","v":144908591.19999999},9600,77,1678,0,696226755,92385931,434871347,0,48732212,203998538,{"$f":"tbl_twdbdata[[#This Row],[utility]]&tbl_twdbdata[[#This Row],[Year]]","v":"ALICE2050"}]
[null,172,"ALICE","N",2060,19100,29395,209218913,{"$f":"IF(tbl_twdbdata[[#This Row],[Year]]=2016,0,tbl_twdbdata[[#This Row],[effsave]]-0.6*SUMIFS(tbl_twdbdata[effsave],tbl_twdbdata[Year],2020,tbl_twdbdata[utility],tbl_twdbdata[[#This Row],[utility]]))","v":158810982.19999999},10130,83,1816,0,734692183,97490108,458897302,0,51424590,215269135,{"$f":"tbl_twdbdata[[#This Row],[utility]]&tbl_twdbdata[[#This Row],[Year]]","v":"ALICE2060"}]
[null,172,"ALICE","N",2070,19100,30804,219922078,{"$f":"IF(tbl_twdbdata[[#This Row],[Year]]=2016,0,tbl_twdbdata[[#This Row],[effsave]]-0.6*SUMIFS(tbl_twdbdata[effsave],tbl_twdbdata[Year],2020,tbl_twdbdata[utility],tbl_twdbdata[[#This Row],[utility]]))","v":169514147.19999999},10616,90,1966,0,769908420,102163133,480893774,0,53889541,225587700,{"$f":"tbl_twdbdata[[#This Row],[utility]]&tbl_twdbdata[[#This Row],[Year]]","v":"ALICE2070"}]
[null,173,"ALLEN","C",2016,97069,97069,0,{"$f":"IF(tbl_twdbdata[[#This Row],[Year]]=2016,0,tbl_twdbdata[[#This Row],[effsave]]-0.6*SUMIFS(tbl_twdbdata[effsave],tbl_twdbdata[Year],2020,tbl_twdbdata[utility],tbl_twdbdata[[#This Row],[utility]]))","v":0},28280,6826,1945,0,3062528000,264820000,1286997300,0,68339230,784453854,{"$f":"tbl_twdbdata[[#This Row],[utility]]&tbl_twdbdata[[#This Row],[Year]]","v":"ALLEN2016"}]
[null,173,"ALLEN","C",2020,90726,105000,264825750,{"$f":"IF(tbl_twdbdata[[#This Row],[Year]]=2016,0,tbl_twdbdata[[#This Row],[effsave]]-0.6*SUMIFS(tbl_twdbdata[effsave],tbl_twdbdata[Year],2020,tbl_twdbdata[utility],tbl_twdbdata[[#This Row],[utility]]))","v":105930300},32729,7900,2251,0,3544358177,306484360,1489481698,0,79091100,907872657,{"$f":"tbl_twdbdata[[#This Row],[utility]]&tbl_twdbdata[[#This Row],[Year]]","v":"ALLEN2020"}]
[null,173,"ALLEN","C",2030,90726,114000,361590900,{"$f":"IF(tbl_twdbdata[[#This Row],[Year]]=2016,0,tbl_twdbdata[[#This Row],[effsave]]-0.6*SUMIFS(tbl_twdbdata[effsave],tbl_twdbdata[Year],2020,tbl_twdbdata[utility],tbl_twdbdata[[#This Row],[utility]]))","v":202695450},35534,8577,2444,0,3848160306,332754448,1617151557,0,85870337,985690313,{"$f":"tbl_twdbdata[[#This Row],[utility]]&tbl_twdbdata[[#This Row],[Year]]","v":"ALLEN2030"}]
[null,173,"ALLEN","C",2040,90726,116000,414508600,{"$f":"IF(tbl_twdbdata[[#This Row],[Year]]=2016,0,tbl_twdbdata[[#This Row],[effsave]]-0.6*SUMIFS(tbl_twdbdata[effsave],tbl_twdbdata[Year],2020,tbl_twdbdata[utility],tbl_twdbdata[[#This Row],[utility]]))","v":255613150},36157,9312,2654,0,3915671890,338592245,1645522637,0,87376834,1002983126,{"$f":"tbl_twdbdata[[#This Row],[utility]]&tbl_twdbdata[[#This Row],[Year]]","v":"ALLEN2040"}]
[null,173,"ALLEN","C",2050,90726,118000,451373600,{"$f":"IF(tbl_twdbdata[[#This Row],[Year]]=2016,0,tbl_twdbdata[[#This Row],[effsave]]-0.6*SUMIFS(tbl_twdbdata[effsave],tbl_twdbdata[Year],2020,tbl_twdbdata[utility],tbl_twdbdata[[#This Row],[utility]]))","v":292478150},36780,10110,2882,0,3983183474,344430042,1673893717,0,88883331,1020275939,{"$f":"tbl_twdbdata[[#This Row],[utility]]&tbl_twdbdata[[#This Row],[Year]]","v":"ALLEN2050"}]
[null,173,"ALLEN","C",2060,90726,120000,471288000,{"$f":"IF(tbl_twdbdata[[#This Row],[Year]]=2016,0,tbl_twdbdata[[#This Row],[effsave]]-0.6*SUMIFS(tbl_twdbdata[effsave],tbl_twdbdata[Year],2020,tbl_twdbdata[utility],tbl_twdbdata[[#This Row],[utility]]))","v":312392550},37403,10977,3129,0,4050695058,350267839,1702264797,0,90389828,1037568752,{"$f":"tbl_twdbdata[[#This Row],[utility]]&tbl_twdbdata[[#This Row],[Year]]","v":"ALLEN2060"}]
[null,173,"ALLEN","C",2070,90726,122000,480033400,{"$f":"IF(tbl_twdbdata[[#This Row],[Year]]=2016,0,tbl_twdbdata[[#This Row],[effsave]]-0.6*SUMIFS(tbl_twdbdata[effsave],tbl_twdbdata[Year],2020,tbl_twdbdata[utility],tbl_twdbdata[[#This Row],[utility]]))","v":321137950},38026,11918,3397,0,4118206642,356105636,1730635877,0,91896325,1054861565,{"$f":"tbl_twdbdata[[#This Row],[utility]]&tbl_twdbdata[[#This Row],[Year]]","v":"ALLEN2070"}]
[null,179,"ALVIN","H",2016,24560,24560,0,{"$f":"IF(tbl_twdbdata[[#This Row],[Year]]=2016,0,tbl_twdbdata[[#This Row],[effsave]]-0.6*SUMIFS(tbl_twdbdata[effsave],tbl_twdbdata[Year],2020,tbl_twdbdata[utility],tbl_twdbdata[[#This Row],[utility]]))","v":0},6317,3727,1098,0,381902265,187904100,209381100,0,null,null,{"$f":"tbl_twdbdata[[#This Row],[utility]]&tbl_twdbdata[[#This Row],[Year]]","v":"ALVIN2016"}]
[null,179,"ALVIN","H",2020,24560,26830,92935096,{"$f":"IF(tbl_twdbdata[[#This Row],[Year]]=2016,0,tbl_twdbdata[[#This Row],[effsave]]-0.6*SUMIFS(tbl_twdbdata[effsave],tbl_twdbdata[Year],2020,tbl_twdbdata[utility],tbl_twdbdata[[#This Row],[utility]]))","v":37174038.399999999},6901,4071,1199,0,417200235,205271458,228733507,0,null,null,{"$f":"tbl_twdbdata[[#This Row],[utility]]&tbl_twdbdata[[#This Row],[Year]]","v":"ALVIN2020"}]
[null,179,"ALVIN","H",2030,24560,28832,140385891,{"$f":"IF(tbl_twdbdata[[#This Row],[Year]]=2016,0,tbl_twdbdata[[#This Row],[effsave]]-0.6*SUMIFS(tbl_twdbdata[effsave],tbl_twdbdata[Year],2020,tbl_twdbdata[utility],tbl_twdbdata[[#This Row],[utility]]))","v":84624833.400000006},7416,4375,1288,0,448330868,220588396,245801136,0,null,null,{"$f":"tbl_twdbdata[[#This Row],[utility]]&tbl_twdbdata[[#This Row],[Year]]","v":"ALVIN2030"}]
[null,179,"ALVIN","H",2040,24560,31157,183662726,{"$f":"IF(tbl_twdbdata[[#This Row],[Year]]=2016,0,tbl_twdbdata[[#This Row],[effsave]]-0.6*SUMIFS(tbl_twdbdata[effsave],tbl_twdbdata[Year],2020,tbl_twdbdata[utility],tbl_twdbdata[[#This Row],[utility]]))","v":127901668.40000001},8014,4701,1384,0,484484075,238376549,265622433,0,null,null,{"$f":"tbl_twdbdata[[#This Row],[utility]]&tbl_twdbdata[[#This Row],[Year]]","v":"ALVIN2040"}]
[null,179,"ALVIN","H",2050,24560,34065,218709223,{"$f":"IF(tbl_twdbdata[[#This Row],[Year]]=2016,0,tbl_twdbdata[[#This Row],[effsave]]-0.6*SUMIFS(tbl_twdbdata[effsave],tbl_twdbdata[Year],2020,tbl_twdbdata[utility],tbl_twdbdata[[#This Row],[utility]]))","v":162948165.40000001},8762,5052,1487,0,529702796,260625129,290413973,0,null,null,{"$f":"tbl_twdbdata[[#This Row],[utility]]&tbl_twdbdata[[#This Row],[Year]]","v":"ALVIN2050"}]
[null,179,"ALVIN","H",2060,24560,37803,247261862,{"$f":"IF(tbl_twdbdata[[#This Row],[Year]]=2016,0,tbl_twdbdata[[#This Row],[effsave]]-0.6*SUMIFS(tbl_twdbdata[effsave],tbl_twdbdata[Year],2020,tbl_twdbdata[utility],tbl_twdbdata[[#This Row],[utility]]))","v":191500804.40000001},9723,5429,1598,0,587827823,289223888,322281503,0,null,null,{"$f":"tbl_twdbdata[[#This Row],[utility]]&tbl_twdbdata[[#This Row],[Year]]","v":"ALVIN2060"}]
[null,179,"ALVIN","H",2070,24560,42709,281221681,{"$f":"IF(tbl_twdbdata[[#This Row],[Year]]=2016,0,tbl_twdbdata[[#This Row],[effsave]]-0.6*SUMIFS(tbl_twdbdata[effsave],tbl_twdbdata[Year],2020,tbl_twdbdata[utility],tbl_twdbdata[[#This Row],[utility]]))","v":225460623.40000001},10985,5834,1717,0,664114977,326758803,364106571,0,null,null,{"$f":"tbl_twdbdata[[#This Row],[utility]]&tbl_twdbdata[[#This Row],[Year]]","v":"ALVIN2070"}]
[null,2,"AMARILLO","A",2016,202827,202827,0,{"$f":"IF(tbl_twdbdata[[#This Row],[Year]]=2016,0,tbl_twdbdata[[#This Row],[effsave]]-0.6*SUMIFS(tbl_twdbdata[effsave],tbl_twdbdata[Year],2020,tbl_twdbdata[utility],tbl_twdbdata[[#This Row],[utility]]))","v":0},62674,1250,7952,0,6932508000,829347000,8579310000,0,213266342,506876027,{"$f":"tbl_twdbdata[[#This Row],[utility]]&tbl_twdbdata[[#This Row],[Year]]","v":"AMARILLO2016"}]
[null,2,"AMARILLO","A",2020,202827,219236,769803367,{"$f":"IF(tbl_twdbdata[[#This Row],[Year]]=2016,0,tbl_twdbdata[[#This Row],[effsave]]-0.6*SUMIFS(tbl_twdbdata[effsave],tbl_twdbdata[Year],2020,tbl_twdbdata[utility],tbl_twdbdata[[#This Row],[utility]]))","v":307921346.80000001},65792,1312,8348,0,7277362490,870602493,9006083914,0,223875180,532090347,{"$f":"tbl_twdbdata[[#This Row],[utility]]&tbl_twdbdata[[#This Row],[Year]]","v":"AMARILLO2020"}]
[null,2,"AMARILLO","A",2030,202827,244327,1223540751,{"$f":"IF(tbl_twdbdata[[#This Row],[Year]]=2016,0,tbl_twdbdata[[#This Row],[effsave]]-0.6*SUMIFS(tbl_twdbdata[effsave],tbl_twdbdata[Year],2020,tbl_twdbdata[utility],tbl_twdbdata[[#This Row],[utility]]))","v":761658730.79999995},73322,1462,9304,0,8110238032,970240724,10036807205,0,249497122,592986728,{"$f":"tbl_twdbdata[[#This Row],[utility]]&tbl_twdbdata[[#This Row],[Year]]","v":"AMARILLO2030"}]
[null,2,"AMARILLO","A",2040,202827,270211,1630304558,{"$f":"IF(tbl_twdbdata[[#This Row],[Year]]=2016,0,tbl_twdbdata[[#This Row],[effsave]]-0.6*SUMIFS(tbl_twdbdata[effsave],tbl_twdbdata[Year],2020,tbl_twdbdata[utility],tbl_twdbdata[[#This Row],[utility]]))","v":1168422537.8},81090,1629,10369,0,8969436570,1073028017,11100106463,0,275928845,655807736,{"$f":"tbl_twdbdata[[#This Row],[utility]]&tbl_twdbdata[[#This Row],[Year]]","v":"AMARILLO2040"}]
[null,2,"AMARILLO","A",2050,202827,296318,1935993653,{"$f":"IF(tbl_twdbdata[[#This Row],[Year]]=2016,0,tbl_twdbdata[[#This Row],[effsave]]-0.6*SUMIFS(tbl_twdbdata[effsave],tbl_twdbdata[Year],2020,tbl_twdbdata[utility],tbl_twdbdata[[#This Row],[utility]]))","v":1474111632.8},88925,1815,11555,0,9836037414,1176700859,12172566427,0,302588287,719169970,{"$f":"tbl_twdbdata[[#This Row],[utility]]&tbl_twdbdata[[#This Row],[Year]]","v":"AMARILLO2050"}]
[null,2,"AMARILLO","A",2060,202827,324470,2155454210,{"$f":"IF(tbl_twdbdata[[#This Row],[Year]]=2016,0,tbl_twdbdata[[#This Row],[effsave]]-0.6*SUMIFS(tbl_twdbdata[effsave],tbl_twdbdata[Year],2020,tbl_twdbdata[utility],tbl_twdbdata[[#This Row],[utility]]))","v":1693572189.8},97373,2023,12877,0,10770520386,1288494549,13329033769,0,331336002,787495462,{"$f":"tbl_twdbdata[[#This Row],[utility]]&tbl_twdbdata[[#This Row],[Year]]","v":"AMARILLO2060"}]
[null,2,"AMARILLO","A",2070,202827,353937,2362830321,{"$f":"IF(tbl_twdbdata[[#This Row],[Year]]=2016,0,tbl_twdbdata[[#This Row],[effsave]]-0.6*SUMIFS(tbl_twdbdata[effsave],tbl_twdbdata[Year],2020,tbl_twdbdata[utility],tbl_twdbdata[[#This Row],[utility]]))","v":1900948300.8},106216,2255,14351,0,11748653724,1405510202,14539520525,0,361426543,859012486,{"$f":"tbl_twdbdata[[#This Row],[utility]]&tbl_twdbdata[[#This Row],[Year]]","v":"AMARILLO2070"}]
[null,185,"ANDREWS","F",2016,12000,12000,0,{"$f":"IF(tbl_twdbdata[[#This Row],[Year]]=2016,0,tbl_twdbdata[[#This Row],[effsave]]-0.6*SUMIFS(tbl_twdbdata[effsave],tbl_twdbdata[Year],2020,tbl_twdbdata[utility],tbl_twdbdata[[#This Row],[utility]]))","v":0},4232,62,567,0,507403000,21161000,176992000,0,11322824,104315115,{"$f":"tbl_twdbdata[[#This Row],[utility]]&tbl_twdbdata[[#This Row],[Year]]","v":"ANDREWS2016"}]
[null,185,"ANDREWS","F",2020,12000,14661,60790370,{"$f":"IF(tbl_twdbdata[[#This Row],[Year]]=2016,0,tbl_twdbdata[[#This Row],[effsave]]-0.6*SUMIFS(tbl_twdbdata[effsave],tbl_twdbdata[Year],2020,tbl_twdbdata[utility],tbl_twdbdata[[#This Row],[utility]]))","v":24316148},4987,73,669,0,597945132,24937016,208574850,0,13343294,122929339,{"$f":"tbl_twdbdata[[#This Row],[utility]]&tbl_twdbdata[[#This Row],[Year]]","v":"ANDREWS2020"}]
[null,185,"ANDREWS","F",2030,12000,17907,100916689,{"$f":"IF(tbl_twdbdata[[#This Row],[Year]]=2016,0,tbl_twdbdata[[#This Row],[effsave]]-0.6*SUMIFS(tbl_twdbdata[effsave],tbl_twdbdata[Year],2020,tbl_twdbdata[utility],tbl_twdbdata[[#This Row],[utility]]))","v":64442467},6091,89,817,0,730332411,30458164,254754098,0,16297549,150146352,{"$f":"tbl_twdbdata[[#This Row],[utility]]&tbl_twdbdata[[#This Row],[Year]]","v":"ANDREWS2030"}]
[null,185,"ANDREWS","F",2040,12000,20804,134859850,{"$f":"IF(tbl_twdbdata[[#This Row],[Year]]=2016,0,tbl_twdbdata[[#This Row],[effsave]]-0.6*SUMIFS(tbl_twdbdata[effsave],tbl_twdbdata[Year],2020,tbl_twdbdata[utility],tbl_twdbdata[[#This Row],[utility]]))","v":98385628},7076,109,998,0,848485814,35385695,295968295,0,18934172,174437075,{"$f":"tbl_twdbdata[[#This Row],[utility]]&tbl_twdbdata[[#This Row],[Year]]","v":"ANDREWS2040"}]
[null,185,"ANDREWS","F",2050,12000,24171,166214299,{"$f":"IF(tbl_twdbdata[[#This Row],[Year]]=2016,0,tbl_twdbdata[[#This Row],[effsave]]-0.6*SUMIFS(tbl_twdbdata[effsave],tbl_twdbdata[Year],2020,tbl_twdbdata[utility],tbl_twdbdata[[#This Row],[utility]]))","v":129740077},8221,133,1218,0,985808047,41112653,343868951,0,21998552,202668647,{"$f":"tbl_twdbdata[[#This Row],[utility]]&tbl_twdbdata[[#This Row],[Year]]","v":"ANDREWS2050"}]
[null,185,"ANDREWS","F",2060,12000,28082,195568664,{"$f":"IF(tbl_twdbdata[[#This Row],[Year]]=2016,0,tbl_twdbdata[[#This Row],[effsave]]-0.6*SUMIFS(tbl_twdbdata[effsave],tbl_twdbdata[Year],2020,tbl_twdbdata[utility],tbl_twdbdata[[#This Row],[utility]]))","v":159094442},9551,162,1488,0,1145317181,47764905,399508828,0,25558038,235461543,{"$f":"tbl_twdbdata[[#This Row],[utility]]&tbl_twdbdata[[#This Row],[Year]]","v":"ANDREWS2060"}]
[null,185,"ANDREWS","F",2070,12000,32627,228411839,{"$f":"IF(tbl_twdbdata[[#This Row],[Year]]=2016,0,tbl_twdbdata[[#This Row],[effsave]]-0.6*SUMIFS(tbl_twdbdata[effsave],tbl_twdbdata[Year],2020,tbl_twdbdata[utility],tbl_twdbdata[[#This Row],[utility]]))","v":191937617},11097,198,1817,0,1330683842,55495533,464168311,0,29694541,273570393,{"$f":"tbl_twdbdata[[#This Row],[utility]]&tbl_twdbdata[[#This Row],[Year]]","v":"ANDREWS2070"}]
[null,186,"ANGLETON","H",2016,18982,18982,0,{"$f":"IF(tbl_twdbdata[[#This Row],[Year]]=2016,0,tbl_twdbdata[[#This Row],[effsave]]-0.6*SUMIFS(tbl_twdbdata[effsave],tbl_twdbdata[Year],2020,tbl_twdbdata[utility],tbl_twdbdata[[#This Row],[utility]]))","v":0},6109,61,637,0,356113100,88386700,116170200,0,87939288,102541732,{"$f":"tbl_twdbdata[[#This Row],[utility]]&tbl_twdbdata[[#This Row],[Year]]","v":"ANGLETON2016"}]
[null,186,"ANGLETON","H",2020,17807,18628,61532941,{"$f":"IF(tbl_twdbdata[[#This Row],[Year]]=2016,0,tbl_twdbdata[[#This Row],[effsave]]-0.6*SUMIFS(tbl_twdbdata[effsave],tbl_twdbdata[Year],2020,tbl_twdbdata[utility],tbl_twdbdata[[#This Row],[utility]]))","v":24613176.399999999},6391,64,666,0,372531860,92461810,121526281,0,91993770,107269466,{"$f":"tbl_twdbdata[[#This Row],[utility]]&tbl_twdbdata[[#This Row],[Year]]","v":"ANGLETON2020"}]
[null,186,"ANGLETON","H",2030,17807,18769,89332932,{"$f":"IF(tbl_twdbdata[[#This Row],[Year]]=2016,0,tbl_twdbdata[[#This Row],[effsave]]-0.6*SUMIFS(tbl_twdbdata[effsave],tbl_twdbdata[Year],2020,tbl_twdbdata[utility],tbl_twdbdata[[#This Row],[utility]]))","v":52413167.399999999},6439,64,671,0,375351647,93161677,122446144,0,92690094,108081415,{"$f":"tbl_twdbdata[[#This Row],[utility]]&tbl_twdbdata[[#This Row],[Year]]","v":"ANGLETON2030"}]
[null,186,"ANGLETON","H",2040,17807,18900,112583520,{"$f":"IF(tbl_twdbdata[[#This Row],[Year]]=2016,0,tbl_twdbdata[[#This Row],[effsave]]-0.6*SUMIFS(tbl_twdbdata[effsave],tbl_twdbdata[Year],2020,tbl_twdbdata[utility],tbl_twdbdata[[#This Row],[utility]]))","v":75663755.400000006},6484,64,676,0,377971449,93811908,123300768,0,93337033,108835779,{"$f":"tbl_twdbdata[[#This Row],[utility]]&tbl_twdbdata[[#This Row],[Year]]","v":"ANGLETON2040"}]
[null,186,"ANGLETON","H",2050,17807,19037,125767941,{"$f":"IF(tbl_twdbdata[[#This Row],[Year]]=2016,0,tbl_twdbdata[[#This Row],[effsave]]-0.6*SUMIFS(tbl_twdbdata[effsave],tbl_twdbdata[Year],2020,tbl_twdbdata[utility],tbl_twdbdata[[#This Row],[utility]]))","v":88848176.400000006},6531,64,681,0,380711242,94491920,124194535,0,94013603,109624694,{"$f":"tbl_twdbdata[[#This Row],[utility]]&tbl_twdbdata[[#This Row],[Year]]","v":"ANGLETON2050"}]
[null,186,"ANGLETON","H",2060,17807,19180,129022901,{"$f":"IF(tbl_twdbdata[[#This Row],[Year]]=2016,0,tbl_twdbdata[[#This Row],[effsave]]-0.6*SUMIFS(tbl_twdbdata[effsave],tbl_twdbdata[Year],2020,tbl_twdbdata[utility],tbl_twdbdata[[#This Row],[utility]]))","v":92103136.400000006},6580,64,686,0,383571026,95201714,125127446,0,94719804,110448160,{"$f":"tbl_twdbdata[[#This Row],[utility]]&tbl_twdbdata[[#This Row],[Year]]","v":"ANGLETON2060"}]
[null,186,"ANGLETON","H",2070,17807,19333,130122690,{"$f":"IF(tbl_twdbdata[[#This Row],[Year]]=2016,0,tbl_twdbdata[[#This Row],[effsave]]-0.6*SUMIFS(tbl_twdbdata[effsave],tbl_twdbdata[Year],2020,tbl_twdbdata[utility],tbl_twdbdata[[#This Row],[utility]]))","v":93202925.400000006},6632,64,691,0,386630795,95961144,126125595,0,95475390,111329212,{"$f":"tbl_twdbdata[[#This Row],[utility]]&tbl_twdbdata[[#This Row],[Year]]","v":"ANGLETON2070"}]
[null,191,"ANTHONY","E",2016,3500,3500,0,{"$f":"IF(tbl_twdbdata[[#This Row],[Year]]=2016,0,tbl_twdbdata[[#This Row],[effsave]]-0.6*SUMIFS(tbl_twdbdata[effsave],tbl_twdbdata[Year],2020,tbl_twdbdata[utility],tbl_twdbdata[[#This Row],[utility]]))","v":0},1073,0,134,0,92158000,0,61146000,0,null,null,{"$f":"tbl_twdbdata[[#This Row],[utility]]&tbl_twdbdata[[#This Row],[Year]]","v":"ANTHONY2016"}]
[null,191,"ANTHONY","E",2020,3033,4206,14615009,{"$f":"IF(tbl_twdbdata[[#This Row],[Year]]=2016,0,tbl_twdbdata[[#This Row],[effsave]]-0.6*SUMIFS(tbl_twdbdata[effsave],tbl_twdbdata[Year],2020,tbl_twdbdata[utility],tbl_twdbdata[[#This Row],[utility]]))","v":5846003.5999999996},1488,0,186,0,127799719,0,84793958,0,null,null,{"$f":"tbl_twdbdata[[#This Row],[utility]]&tbl_twdbdata[[#This Row],[Year]]","v":"ANTHONY2020"}]
[null,191,"ANTHONY","E",2030,3033,5053,24160920,{"$f":"IF(tbl_twdbdata[[#This Row],[Year]]=2016,0,tbl_twdbdata[[#This Row],[effsave]]-0.6*SUMIFS(tbl_twdbdata[effsave],tbl_twdbdata[Year],2020,tbl_twdbdata[utility],tbl_twdbdata[[#This Row],[utility]]))","v":15391914.6},1788,0,223,0,153535896,0,101869679,0,null,null,{"$f":"tbl_twdbdata[[#This Row],[utility]]&tbl_twdbdata[[#This Row],[Year]]","v":"ANTHONY2030"}]
[null,191,"ANTHONY","E",2040,3033,5840,32315056,{"$f":"IF(tbl_twdbdata[[#This Row],[Year]]=2016,0,tbl_twdbdata[[#This Row],[effsave]]-0.6*SUMIFS(tbl_twdbdata[effsave],tbl_twdbdata[Year],2020,tbl_twdbdata[utility],tbl_twdbdata[[#This Row],[utility]]))","v":23546050.600000001},2066,0,268,0,177448967,0,117735786,0,null,null,{"$f":"tbl_twdbdata[[#This Row],[utility]]&tbl_twdbdata[[#This Row],[Year]]","v":"ANTHONY2040"}]
[null,191,"ANTHONY","E",2050,3033,6620,38974919,{"$f":"IF(tbl_twdbdata[[#This Row],[Year]]=2016,0,tbl_twdbdata[[#This Row],[effsave]]-0.6*SUMIFS(tbl_twdbdata[effsave],tbl_twdbdata[Year],2020,tbl_twdbdata[utility],tbl_twdbdata[[#This Row],[utility]]))","v":30205913.600000001},2342,0,322,0,201149343,0,133460771,0,null,null,{"$f":"tbl_twdbdata[[#This Row],[utility]]&tbl_twdbdata[[#This Row],[Year]]","v":"ANTHONY2050"}]
[null,191,"ANTHONY","E",2060,3033,7358,43991275,{"$f":"IF(tbl_twdbdata[[#This Row],[Year]]=2016,0,tbl_twdbdata[[#This Row],[effsave]]-0.6*SUMIFS(tbl_twdbdata[effsave],tbl_twdbdata[Year],2020,tbl_twdbdata[utility],tbl_twdbdata[[#This Row],[utility]]))","v":35222269.600000001},2603,0,387,0,223573545,0,148339026,0,null,null,{"$f":"tbl_twdbdata[[#This Row],[utility]]&tbl_twdbdata[[#This Row],[Year]]","v":"ANTHONY2060"}]
[null,191,"ANTHONY","E",2070,3033,8052,48346221,{"$f":"IF(tbl_twdbdata[[#This Row],[Year]]=2016,0,tbl_twdbdata[[#This Row],[effsave]]-0.6*SUMIFS(tbl_twdbdata[effsave],tbl_twdbdata[Year],2020,tbl_twdbdata[utility],tbl_twdbdata[[#This Row],[utility]]))","v":39577215.600000001},2849,0,465,0,244660802,0,162330231,0,null,null,{"$f":"tbl_twdbdata[[#This Row],[utility]]&tbl_twdbdata[[#This Row],[Year]]","v":"ANTHONY2070"}]
[null,192,"ANTON","O",2016,1126,1126,0,{"$f":"IF(tbl_twdbdata[[#This Row],[Year]]=2016,0,tbl_twdbdata[[#This Row],[effsave]]-0.6*SUMIFS(tbl_twdbdata[effsave],tbl_twdbdata[Year],2020,tbl_twdbdata[utility],tbl_twdbdata[[#This Row],[utility]]))","v":0},408,1,25,0,28273000,1668000,2545000,0,null,null,{"$f":"tbl_twdbdata[[#This Row],[utility]]&tbl_twdbdata[[#This Row],[Year]]","v":"ANTON2016"}]
[null,192,"ANTON","O",2020,1057,1235,4647490,{"$f":"IF(tbl_twdbdata[[#This Row],[Year]]=2016,0,tbl_twdbdata[[#This Row],[effsave]]-0.6*SUMIFS(tbl_twdbdata[effsave],tbl_twdbdata[Year],2020,tbl_twdbdata[utility],tbl_twdbdata[[#This Row],[utility]]))","v":1858996},477,1,29,0,33034205,1948893,2973581,0,null,null,{"$f":"tbl_twdbdata[[#This Row],[utility]]&tbl_twdbdata[[#This Row],[Year]]","v":"ANTON2020"}]
[null,192,"ANTON","O",2030,1057,1313,7064071,{"$f":"IF(tbl_twdbdata[[#This Row],[Year]]=2016,0,tbl_twdbdata[[#This Row],[effsave]]-0.6*SUMIFS(tbl_twdbdata[effsave],tbl_twdbdata[Year],2020,tbl_twdbdata[utility],tbl_twdbdata[[#This Row],[utility]]))","v":4275577},507,1,31,0,35120576,2071981,3161386,0,null,null,{"$f":"tbl_twdbdata[[#This Row],[utility]]&tbl_twdbdata[[#This Row],[Year]]","v":"ANTON2030"}]
[null,192,"ANTON","O",2040,1057,1361,8961641,{"$f":"IF(tbl_twdbdata[[#This Row],[Year]]=2016,0,tbl_twdbdata[[#This Row],[effsave]]-0.6*SUMIFS(tbl_twdbdata[effsave],tbl_twdbdata[Year],2020,tbl_twdbdata[utility],tbl_twdbdata[[#This Row],[utility]]))","v":6173147},526,1,33,0,36404497,2147727,3276958,0,null,null,{"$f":"tbl_twdbdata[[#This Row],[utility]]&tbl_twdbdata[[#This Row],[Year]]","v":"ANTON2040"}]
[null,192,"ANTON","O",2050,1057,1370,9400940,{"$f":"IF(tbl_twdbdata[[#This Row],[Year]]=2016,0,tbl_twdbdata[[#This Row],[effsave]]-0.6*SUMIFS(tbl_twdbdata[effsave],tbl_twdbdata[Year],2020,tbl_twdbdata[utility],tbl_twdbdata[[#This Row],[utility]]))","v":6612446},529,1,35,0,36645232,2161929,3298628,0,null,null,{"$f":"tbl_twdbdata[[#This Row],[utility]]&tbl_twdbdata[[#This Row],[Year]]","v":"ANTON2050"}]
[null,192,"ANTON","O",2060,1057,1431,9981440,{"$f":"IF(tbl_twdbdata[[#This Row],[Year]]=2016,0,tbl_twdbdata[[#This Row],[effsave]]-0.6*SUMIFS(tbl_twdbdata[effsave],tbl_twdbdata[Year],2020,tbl_twdbdata[utility],tbl_twdbdata[[#This Row],[utility]]))","v":7192946},553,1,37,0,38276881,2258190,3445502,0,null,null,{"$f":"tbl_twdbdata[[#This Row],[utility]]&tbl_twdbdata[[#This Row],[Year]]","v":"ANTON2060"}]
[null,192,"ANTON","O",2070,1057,1470,10280298,{"$f":"IF(tbl_twdbdata[[#This Row],[Year]]=2016,0,tbl_twdbdata[[#This Row],[effsave]]-0.6*SUMIFS(tbl_twdbdata[effsave],tbl_twdbdata[Year],2020,tbl_twdbdata[utility],tbl_twdbdata[[#This Row],[utility]]))","v":7491804},568,1,39,0,39320066,2319734,3539405,0,null,null,{"$f":"tbl_twdbdata[[#This Row],[utility]]&tbl_twdbdata[[#This Row],[Year]]","v":"ANTON2070"}]
[null,194,"AQUA WSC","K",2016,61051,61051,0,{"$f":"IF(tbl_twdbdata[[#This Row],[Year]]=2016,0,tbl_twdbdata[[#This Row],[effsave]]-0.6*SUMIFS(tbl_twdbdata[effsave],tbl_twdbdata[Year],2020,tbl_twdbdata[utility],tbl_twdbdata[[#This Row],[utility]]))","v":0},19535,0,243,5,1590954833,0,139150820,4713000,75157884,679359653,{"$f":"tbl_twdbdata[[#This Row],[utility]]&tbl_twdbdata[[#This Row],[Year]]","v":"AQUA WSC2016"}]
[null,194,"AQUA WSC","K",2020,59321,67397,231239107,{"$f":"IF(tbl_twdbdata[[#This Row],[Year]]=2016,0,tbl_twdbdata[[#This Row],[effsave]]-0.6*SUMIFS(tbl_twdbdata[effsave],tbl_twdbdata[Year],2020,tbl_twdbdata[utility],tbl_twdbdata[[#This Row],[utility]]))","v":92495642.800000012},22195,0,276,6,1807548472,0,158094905,5354631,85389928,771848123,{"$f":"tbl_twdbdata[[#This Row],[utility]]&tbl_twdbdata[[#This Row],[Year]]","v":"AQUA WSC2020"}]
[null,194,"AQUA WSC","K",2030,59321,86859,412145955,{"$f":"IF(tbl_twdbdata[[#This Row],[Year]]=2016,0,tbl_twdbdata[[#This Row],[effsave]]-0.6*SUMIFS(tbl_twdbdata[effsave],tbl_twdbdata[Year],2020,tbl_twdbdata[utility],tbl_twdbdata[[#This Row],[utility]]))","v":273402490.80000001},28604,0,356,8,2329508030,0,203747427,6900869,110047684,994732052,{"$f":"tbl_twdbdata[[#This Row],[utility]]&tbl_twdbdata[[#This Row],[Year]]","v":"AQUA WSC2030"}]
[null,194,"AQUA WSC","K",2040,59321,111413,606732915,{"$f":"IF(tbl_twdbdata[[#This Row],[Year]]=2016,0,tbl_twdbdata[[#This Row],[effsave]]-0.6*SUMIFS(tbl_twdbdata[effsave],tbl_twdbdata[Year],2020,tbl_twdbdata[utility],tbl_twdbdata[[#This Row],[utility]]))","v":467989450.80000001},36690,0,458,10,2988032077,0,261344387,8851662,141156848,1275930901,{"$f":"tbl_twdbdata[[#This Row],[utility]]&tbl_twdbdata[[#This Row],[Year]]","v":"AQUA WSC2040"}]
[null,194,"AQUA WSC","K",2050,59321,144109,829498609,{"$f":"IF(tbl_twdbdata[[#This Row],[Year]]=2016,0,tbl_twdbdata[[#This Row],[effsave]]-0.6*SUMIFS(tbl_twdbdata[effsave],tbl_twdbdata[Year],2020,tbl_twdbdata[utility],tbl_twdbdata[[#This Row],[utility]]))","v":690755144.79999995},47457,0,590,13,3864919844,0,338040248,11449330,182581675,1650374070,{"$f":"tbl_twdbdata[[#This Row],[utility]]&tbl_twdbdata[[#This Row],[Year]]","v":"AQUA WSC2050"}]
[null,194,"AQUA WSC","K",2060,59321,187587,1096192773,{"$f":"IF(tbl_twdbdata[[#This Row],[Year]]=2016,0,tbl_twdbdata[[#This Row],[effsave]]-0.6*SUMIFS(tbl_twdbdata[effsave],tbl_twdbdata[Year],2020,tbl_twdbdata[utility],tbl_twdbdata[[#This Row],[utility]]))","v":957449308.79999995},61775,0,761,17,5030974601,0,440027729,14903618,237666965,2148295531,{"$f":"tbl_twdbdata[[#This Row],[utility]]&tbl_twdbdata[[#This Row],[Year]]","v":"AQUA WSC2060"}]
[null,194,"AQUA WSC","K",2070,59321,244834,1440554289,{"$f":"IF(tbl_twdbdata[[#This Row],[Year]]=2016,0,tbl_twdbdata[[#This Row],[effsave]]-0.6*SUMIFS(tbl_twdbdata[effsave],tbl_twdbdata[Year],2020,tbl_twdbdata[utility],tbl_twdbdata[[#This Row],[utility]]))","v":1301810824.8},80627,0,980,22,6566305956,0,574313513,19451841,310197155,2803903192,{"$f":"tbl_twdbdata[[#This Row],[utility]]&tbl_twdbdata[[#This Row],[Year]]","v":"AQUA WSC2070"}]
[null,195,"ARANSAS PASS","N",2016,8461,8461,0,{"$f":"IF(tbl_twdbdata[[#This Row],[Year]]=2016,0,tbl_twdbdata[[#This Row],[effsave]]-0.6*SUMIFS(tbl_twdbdata[effsave],tbl_twdbdata[Year],2020,tbl_twdbdata[utility],tbl_twdbdata[[#This Row],[utility]]))","v":0},3445,40,445,0,269083524,44371128,160216692,0,null,null,{"$f":"tbl_twdbdata[[#This Row],[utility]]&tbl_twdbdata[[#This Row],[Year]]","v":"ARANSAS PASS2016"}]
[null,195,"ARANSAS PASS","N",2020,8461,10541,36935664,{"$f":"IF(tbl_twdbdata[[#This Row],[Year]]=2016,0,tbl_twdbdata[[#This Row],[effsave]]-0.6*SUMIFS(tbl_twdbdata[effsave],tbl_twdbdata[Year],2020,tbl_twdbdata[utility],tbl_twdbdata[[#This Row],[utility]]))","v":14774265.600000001},4232,49,546,0,330545324,54506009,196812044,0,null,null,{"$f":"tbl_twdbdata[[#This Row],[utility]]&tbl_twdbdata[[#This Row],[Year]]","v":"ARANSAS PASS2020"}]
[null,195,"ARANSAS PASS","N",2030,8461,11033,55210787,{"$f":"IF(tbl_twdbdata[[#This Row],[Year]]=2016,0,tbl_twdbdata[[#This Row],[effsave]]-0.6*SUMIFS(tbl_twdbdata[effsave],tbl_twdbdata[Year],2020,tbl_twdbdata[utility],tbl_twdbdata[[#This Row],[utility]]))","v":33049388.600000001},4430,51,572,0,345973490,57050071,205998224,0,null,null,{"$f":"tbl_twdbdata[[#This Row],[utility]]&tbl_twdbdata[[#This Row],[Year]]","v":"ARANSAS PASS2030"}]
[null,195,"ARANSAS PASS","N",2040,8461,11301,69338981,{"$f":"IF(tbl_twdbdata[[#This Row],[Year]]=2016,0,tbl_twdbdata[[#This Row],[effsave]]-0.6*SUMIFS(tbl_twdbdata[effsave],tbl_twdbdata[Year],2020,tbl_twdbdata[utility],tbl_twdbdata[[#This Row],[utility]]))","v":47177582.600000001},4538,53,599,0,354377450,58435861,211002078,0,null,null,{"$f":"tbl_twdbdata[[#This Row],[utility]]&tbl_twdbdata[[#This Row],[Year]]","v":"ARANSAS PASS2040"}]
[null,195,"ARANSAS PASS","N",2050,8461,11503,77464078,{"$f":"IF(tbl_twdbdata[[#This Row],[Year]]=2016,0,tbl_twdbdata[[#This Row],[effsave]]-0.6*SUMIFS(tbl_twdbdata[effsave],tbl_twdbdata[Year],2020,tbl_twdbdata[utility],tbl_twdbdata[[#This Row],[utility]]))","v":55302679.600000001},4619,55,627,0,360711778,59480374,214773640,0,null,null,{"$f":"tbl_twdbdata[[#This Row],[utility]]&tbl_twdbdata[[#This Row],[Year]]","v":"ARANSAS PASS2050"}]
[null,195,"ARANSAS PASS","N",2060,8461,11637,79640719,{"$f":"IF(tbl_twdbdata[[#This Row],[Year]]=2016,0,tbl_twdbdata[[#This Row],[effsave]]-0.6*SUMIFS(tbl_twdbdata[effsave],tbl_twdbdata[Year],2020,tbl_twdbdata[utility],tbl_twdbdata[[#This Row],[utility]]))","v":57479320.600000001},4673,58,657,0,364913758,60173269,217275568,0,null,null,{"$f":"tbl_twdbdata[[#This Row],[utility]]&tbl_twdbdata[[#This Row],[Year]]","v":"ARANSAS PASS2060"}]
[null,195,"ARANSAS PASS","N",2070,8461,11726,80335412,{"$f":"IF(tbl_twdbdata[[#This Row],[Year]]=2016,0,tbl_twdbdata[[#This Row],[effsave]]-0.6*SUMIFS(tbl_twdbdata[effsave],tbl_twdbdata[Year],2020,tbl_twdbdata[utility],tbl_twdbdata[[#This Row],[utility]]))","v":58174013.600000001},4709,61,688,0,367704625,60633475,218937296,0,null,null,{"$f":"tbl_twdbdata[[#This Row],[utility]]&tbl_twdbdata[[#This Row],[Year]]","v":"ARANSAS PASS2070"}]
[null,200,"ARLINGTON","C",2016,379370,379370,0,{"$f":"IF(tbl_twdbdata[[#This Row],[Year]]=2016,0,tbl_twdbdata[[#This Row],[effsave]]-0.6*SUMIFS(tbl_twdbdata[effsave],tbl_twdbdata[Year],2020,tbl_twdbdata[utility],tbl_twdbdata[[#This Row],[utility]]))","v":0},95543,47949,5722,0,8827122000,3111127000,4699816000,0,237045505,2088529899,{"$f":"tbl_twdbdata[[#This Row],[utility]]&tbl_twdbdata[[#This Row],[Year]]","v":"ARLINGTON2016"}]
[null,200,"ARLINGTON","C",2020,367484,387000,1254344400,{"$f":"IF(tbl_twdbdata[[#This Row],[Year]]=2016,0,tbl_twdbdata[[#This Row],[effsave]]-0.6*SUMIFS(tbl_twdbdata[effsave],tbl_twdbdata[Year],2020,tbl_twdbdata[utility],tbl_twdbdata[[#This Row],[utility]]))","v":501737760},100617,50495,6025,0,9295904622,3276349852,4949409476,0,249634298,2199445611,{"$f":"tbl_twdbdata[[#This Row],[utility]]&tbl_twdbdata[[#This Row],[Year]]","v":"ARLINGTON2020"}]
[null,200,"ARLINGTON","C",2030,367484,404225,1854604511,{"$f":"IF(tbl_twdbdata[[#This Row],[Year]]=2016,0,tbl_twdbdata[[#This Row],[effsave]]-0.6*SUMIFS(tbl_twdbdata[effsave],tbl_twdbdata[Year],2020,tbl_twdbdata[utility],tbl_twdbdata[[#This Row],[utility]]))","v":1101997871},105095,52742,6293,0,9709656449,3422177051,5169702959,0,260745282,2297340832,{"$f":"tbl_twdbdata[[#This Row],[utility]]&tbl_twdbdata[[#This Row],[Year]]","v":"ARLINGTON2030"}]
[null,200,"ARLINGTON","C",2040,367484,413655,2285898896,{"$f":"IF(tbl_twdbdata[[#This Row],[Year]]=2016,0,tbl_twdbdata[[#This Row],[effsave]]-0.6*SUMIFS(tbl_twdbdata[effsave],tbl_twdbdata[Year],2020,tbl_twdbdata[utility],tbl_twdbdata[[#This Row],[utility]]))","v":1533292256},107547,55089,6573,0,9936169060,3502011622,5290304849,0,266828102,2350934558,{"$f":"tbl_twdbdata[[#This Row],[utility]]&tbl_twdbdata[[#This Row],[Year]]","v":"ARLINGTON2040"}]
[null,200,"ARLINGTON","C",2050,367484,423084,2551111903,{"$f":"IF(tbl_twdbdata[[#This Row],[Year]]=2016,0,tbl_twdbdata[[#This Row],[effsave]]-0.6*SUMIFS(tbl_twdbdata[effsave],tbl_twdbdata[Year],2020,tbl_twdbdata[utility],tbl_twdbdata[[#This Row],[utility]]))","v":1798505263},109998,57541,6865,0,10162657651,3581837727,5410893949,0,272910277,2404522601,{"$f":"tbl_twdbdata[[#This Row],[utility]]&tbl_twdbdata[[#This Row],[Year]]","v":"ARLINGTON2050"}]
[null,200,"ARLINGTON","C",2060,367484,423084,2595895345,{"$f":"IF(tbl_twdbdata[[#This Row],[Year]]=2016,0,tbl_twdbdata[[#This Row],[effsave]]-0.6*SUMIFS(tbl_twdbdata[effsave],tbl_twdbdata[Year],2020,tbl_twdbdata[utility],tbl_twdbdata[[#This Row],[utility]]))","v":1843288705},109998,60102,7170,0,10162657651,3581837727,5410893949,0,272910277,2404522601,{"$f":"tbl_twdbdata[[#This Row],[utility]]&tbl_twdbdata[[#This Row],[Year]]","v":"ARLINGTON2060"}]
[null,200,"ARLINGTON","C",2070,367484,423084,2597439601,{"$f":"IF(tbl_twdbdata[[#This Row],[Year]]=2016,0,tbl_twdbdata[[#This Row],[effsave]]-0.6*SUMIFS(tbl_twdbdata[effsave],tbl_twdbdata[Year],2020,tbl_twdbdata[utility],tbl_twdbdata[[#This Row],[utility]]))","v":1844832961},109998,62777,7489,0,10162657651,3581837727,5410893949,0,272910277,2404522601,{"$f":"tbl_twdbdata[[#This Row],[utility]]&tbl_twdbdata[[#This Row],[Year]]","v":"ARLINGTON2070"}]
[null,204,"ATASCOSA RURAL WSC","L",2016,13844,13844,0,{"$f":"IF(tbl_twdbdata[[#This Row],[Year]]=2016,0,tbl_twdbdata[[#This Row],[effsave]]-0.6*SUMIFS(tbl_twdbdata[effsave],tbl_twdbdata[Year],2020,tbl_twdbdata[utility],tbl_twdbdata[[#This Row],[utility]]))","v":0},3361,1,99,0,272223520,7494100,77196310,0,7281012,218286010,{"$f":"tbl_twdbdata[[#This Row],[utility]]&tbl_twdbdata[[#This Row],[Year]]","v":"ATASCOSA RURAL WSC2016"}]
[null,204,"ATASCOSA RURAL WSC","L",2020,12979,11678,37509736,{"$f":"IF(tbl_twdbdata[[#This Row],[Year]]=2016,0,tbl_twdbdata[[#This Row],[effsave]]-0.6*SUMIFS(tbl_twdbdata[effsave],tbl_twdbdata[Year],2020,tbl_twdbdata[utility],tbl_twdbdata[[#This Row],[utility]]))","v":15003894.400000002},3024,1,89,0,244936148,6742900,69458241,0,6551172,196405272,{"$f":"tbl_twdbdata[[#This Row],[utility]]&tbl_twdbdata[[#This Row],[Year]]","v":"ATASCOSA RURAL WSC2020"}]
[null,204,"ATASCOSA RURAL WSC","L",2030,12979,14016,60827338,{"$f":"IF(tbl_twdbdata[[#This Row],[Year]]=2016,0,tbl_twdbdata[[#This Row],[effsave]]-0.6*SUMIFS(tbl_twdbdata[effsave],tbl_twdbdata[Year],2020,tbl_twdbdata[utility],tbl_twdbdata[[#This Row],[utility]]))","v":38321496.400000006},3629,1,107,0,293973716,8092866,83364164,0,7862753,235726691,{"$f":"tbl_twdbdata[[#This Row],[utility]]&tbl_twdbdata[[#This Row],[Year]]","v":"ATASCOSA RURAL WSC2030"}]
[null,204,"ATASCOSA RURAL WSC","L",2040,12979,16167,80134969,{"$f":"IF(tbl_twdbdata[[#This Row],[Year]]=2016,0,tbl_twdbdata[[#This Row],[effsave]]-0.6*SUMIFS(tbl_twdbdata[effsave],tbl_twdbdata[Year],2020,tbl_twdbdata[utility],tbl_twdbdata[[#This Row],[utility]]))","v":57629127.400000006},4186,1,128,0,339089117,9334858,96157851,0,9069430,271903069,{"$f":"tbl_twdbdata[[#This Row],[utility]]&tbl_twdbdata[[#This Row],[Year]]","v":"ATASCOSA RURAL WSC2040"}]
[null,204,"ATASCOSA RURAL WSC","L",2050,12979,18233,95832648,{"$f":"IF(tbl_twdbdata[[#This Row],[Year]]=2016,0,tbl_twdbdata[[#This Row],[effsave]]-0.6*SUMIFS(tbl_twdbdata[effsave],tbl_twdbdata[Year],2020,tbl_twdbdata[utility],tbl_twdbdata[[#This Row],[utility]]))","v":73326806.400000006},4721,1,154,0,382421715,10527771,108445976,0,10228423,306649883,{"$f":"tbl_twdbdata[[#This Row],[utility]]&tbl_twdbdata[[#This Row],[Year]]","v":"ATASCOSA RURAL WSC2050"}]
[null,204,"ATASCOSA RURAL WSC","L",2060,12979,20129,107561324,{"$f":"IF(tbl_twdbdata[[#This Row],[Year]]=2016,0,tbl_twdbdata[[#This Row],[effsave]]-0.6*SUMIFS(tbl_twdbdata[effsave],tbl_twdbdata[Year],2020,tbl_twdbdata[utility],tbl_twdbdata[[#This Row],[utility]]))","v":85055482.400000006},5212,1,185,0,422188707,11622525,119722978,0,11292049,338537569,{"$f":"tbl_twdbdata[[#This Row],[utility]]&tbl_twdbdata[[#This Row],[Year]]","v":"ATASCOSA RURAL WSC2060"}]
[null,204,"ATASCOSA RURAL WSC","L",2070,12979,21860,117369619,{"$f":"IF(tbl_twdbdata[[#This Row],[Year]]=2016,0,tbl_twdbdata[[#This Row],[effsave]]-0.6*SUMIFS(tbl_twdbdata[effsave],tbl_twdbdata[Year],2020,tbl_twdbdata[utility],tbl_twdbdata[[#This Row],[utility]]))","v":94863777.400000006},5660,1,222,0,458494964,12622008,130018595,0,12263112,367650219,{"$f":"tbl_twdbdata[[#This Row],[utility]]&tbl_twdbdata[[#This Row],[Year]]","v":"ATASCOSA RURAL WSC2070"}]
[null,205,"ATHENS","C",2016,13261,13261,0,{"$f":"IF(tbl_twdbdata[[#This Row],[Year]]=2016,0,tbl_twdbdata[[#This Row],[effsave]]-0.6*SUMIFS(tbl_twdbdata[effsave],tbl_twdbdata[Year],2020,tbl_twdbdata[utility],tbl_twdbdata[[#This Row],[utility]]))","v":0},3804,937,766,0,288117100,38023900,193205100,0,null,null,{"$f":"tbl_twdbdata[[#This Row],[utility]]&tbl_twdbdata[[#This Row],[Year]]","v":"ATHENS2016"}]
[null,205,"ATHENS","C",2020,12848,14515,52132074,{"$f":"IF(tbl_twdbdata[[#This Row],[Year]]=2016,0,tbl_twdbdata[[#This Row],[effsave]]-0.6*SUMIFS(tbl_twdbdata[effsave],tbl_twdbdata[Year],2020,tbl_twdbdata[utility],tbl_twdbdata[[#This Row],[utility]]))","v":20852829.600000001},4298,1059,865,0,325499666,42957418,218273040,0,null,null,{"$f":"tbl_twdbdata[[#This Row],[utility]]&tbl_twdbdata[[#This Row],[Year]]","v":"ATHENS2020"}]
[null,205,"ATHENS","C",2030,12848,16200,81835920,{"$f":"IF(tbl_twdbdata[[#This Row],[Year]]=2016,0,tbl_twdbdata[[#This Row],[effsave]]-0.6*SUMIFS(tbl_twdbdata[effsave],tbl_twdbdata[Year],2020,tbl_twdbdata[utility],tbl_twdbdata[[#This Row],[utility]]))","v":50556675.600000001},4797,1182,965,0,363285883,47944207,243611661,0,null,null,{"$f":"tbl_twdbdata[[#This Row],[utility]]&tbl_twdbdata[[#This Row],[Year]]","v":"ATHENS2030"}]
[null,205,"ATHENS","C",2040,12848,17605,106090371,{"$f":"IF(tbl_twdbdata[[#This Row],[Year]]=2016,0,tbl_twdbdata[[#This Row],[effsave]]-0.6*SUMIFS(tbl_twdbdata[effsave],tbl_twdbdata[Year],2020,tbl_twdbdata[utility],tbl_twdbdata[[#This Row],[utility]]))","v":74811126.599999994},5213,1319,1076,0,394793085,52102331,264739709,0,null,null,{"$f":"tbl_twdbdata[[#This Row],[utility]]&tbl_twdbdata[[#This Row],[Year]]","v":"ATHENS2040"}]
[null,205,"ATHENS","C",2050,12848,19458,126915778,{"$f":"IF(tbl_twdbdata[[#This Row],[Year]]=2016,0,tbl_twdbdata[[#This Row],[effsave]]-0.6*SUMIFS(tbl_twdbdata[effsave],tbl_twdbdata[Year],2020,tbl_twdbdata[utility],tbl_twdbdata[[#This Row],[utility]]))","v":95636533.599999994},5762,1472,1201,0,436346711,57586320,292604673,0,null,null,{"$f":"tbl_twdbdata[[#This Row],[utility]]&tbl_twdbdata[[#This Row],[Year]]","v":"ATHENS2050"}]
[null,205,"ATHENS","C",2060,12848,33247,224014961,{"$f":"IF(tbl_twdbdata[[#This Row],[Year]]=2016,0,tbl_twdbdata[[#This Row],[effsave]]-0.6*SUMIFS(tbl_twdbdata[effsave],tbl_twdbdata[Year],2020,tbl_twdbdata[utility],tbl_twdbdata[[#This Row],[utility]]))","v":192735716.59999999},9845,1643,1340,0,745565788,98395127,499960302,0,null,null,{"$f":"tbl_twdbdata[[#This Row],[utility]]&tbl_twdbdata[[#This Row],[Year]]","v":"ATHENS2060"}]
[null,205,"ATHENS","C",2070,12848,49212,334998387,{"$f":"IF(tbl_twdbdata[[#This Row],[Year]]=2016,0,tbl_twdbdata[[#This Row],[effsave]]-0.6*SUMIFS(tbl_twdbdata[effsave],tbl_twdbdata[Year],2020,tbl_twdbdata[utility],tbl_twdbdata[[#This Row],[utility]]))","v":303719142.60000002},14573,1834,1495,0,1103581784,145643847,740038090,0,null,null,{"$f":"tbl_twdbdata[[#This Row],[utility]]&tbl_twdbdata[[#This Row],[Year]]","v":"ATHENS2070"}]
[null,7,"AUSTIN","K",2016,958866,958866,0,{"$f":"IF(tbl_twdbdata[[#This Row],[Year]]=2016,0,tbl_twdbdata[[#This Row],[effsave]]-0.6*SUMIFS(tbl_twdbdata[effsave],tbl_twdbdata[Year],2020,tbl_twdbdata[utility],tbl_twdbdata[[#This Row],[utility]]))","v":0},202813,6242,17441,22,13833630600,9354070600,13934111400,8756200,238266553,5979916044,{"$f":"tbl_twdbdata[[#This Row],[utility]]&tbl_twdbdata[[#This Row],[Year]]","v":"AUSTIN2016"}]
[null,7,"AUSTIN","K",2020,930650,1039588,2276697720,{"$f":"IF(tbl_twdbdata[[#This Row],[Year]]=2016,0,tbl_twdbdata[[#This Row],[effsave]]-0.6*SUMIFS(tbl_twdbdata[effsave],tbl_twdbdata[Year],2020,tbl_twdbdata[utility],tbl_twdbdata[[#This Row],[utility]]))","v":910679088},226553,6973,19482,25,15452937590,10449019016,15565180253,9781164,266157040,6679900027,{"$f":"tbl_twdbdata[[#This Row],[utility]]&tbl_twdbdata[[#This Row],[Year]]","v":"AUSTIN2020"}]
[null,7,"AUSTIN","K",2030,930650,1238017,3615009640,{"$f":"IF(tbl_twdbdata[[#This Row],[Year]]=2016,0,tbl_twdbdata[[#This Row],[effsave]]-0.6*SUMIFS(tbl_twdbdata[effsave],tbl_twdbdata[Year],2020,tbl_twdbdata[utility],tbl_twdbdata[[#This Row],[utility]]))","v":2248991008},269796,8304,23201,30,18402481980,12443451805,18536148707,11648121,316959161,7954910784,{"$f":"tbl_twdbdata[[#This Row],[utility]]&tbl_twdbdata[[#This Row],[Year]]","v":"AUSTIN2030"}]
[null,7,"AUSTIN","K",2040,930650,1438692,4200980640,{"$f":"IF(tbl_twdbdata[[#This Row],[Year]]=2016,0,tbl_twdbdata[[#This Row],[effsave]]-0.6*SUMIFS(tbl_twdbdata[effsave],tbl_twdbdata[Year],2020,tbl_twdbdata[utility],tbl_twdbdata[[#This Row],[utility]]))","v":2834962008},313528,9889,27629,36,21385411997,14460459399,21540745285,13536210,368336307,9244353273,{"$f":"tbl_twdbdata[[#This Row],[utility]]&tbl_twdbdata[[#This Row],[Year]]","v":"AUSTIN2040"}]
[null,7,"AUSTIN","K",2050,930650,1584433,4626544360,{"$f":"IF(tbl_twdbdata[[#This Row],[Year]]=2016,0,tbl_twdbdata[[#This Row],[effsave]]-0.6*SUMIFS(tbl_twdbdata[effsave],tbl_twdbdata[Year],2020,tbl_twdbdata[utility],tbl_twdbdata[[#This Row],[utility]]))","v":3260525728},345289,11777,32903,43,23551776535,15925319017,23722845246,14907442,405649159,10180815900,{"$f":"tbl_twdbdata[[#This Row],[utility]]&tbl_twdbdata[[#This Row],[Year]]","v":"AUSTIN2050"}]
[null,7,"AUSTIN","K",2060,930650,1707636,4986297120,{"$f":"IF(tbl_twdbdata[[#This Row],[Year]]=2016,0,tbl_twdbdata[[#This Row],[effsave]]-0.6*SUMIFS(tbl_twdbdata[effsave],tbl_twdbdata[Year],2020,tbl_twdbdata[utility],tbl_twdbdata[[#This Row],[utility]]))","v":3620278488},372138,14025,39183,51,25383125367,17163646595,25567496110,16066621,437191795,10972460016,{"$f":"tbl_twdbdata[[#This Row],[utility]]&tbl_twdbdata[[#This Row],[Year]]","v":"AUSTIN2060"}]
[null,7,"AUSTIN","K",2070,930650,1870419,5461623480,{"$f":"IF(tbl_twdbdata[[#This Row],[Year]]=2016,0,tbl_twdbdata[[#This Row],[effsave]]-0.6*SUMIFS(tbl_twdbdata[effsave],tbl_twdbdata[Year],2020,tbl_twdbdata[utility],tbl_twdbdata[[#This Row],[utility]]))","v":4095604848},407613,16702,46661,61,27802810415,18799797322,28004756579,17598196,478867768,12018426462,{"$f":"tbl_twdbdata[[#This Row],[utility]]&tbl_twdbdata[[#This Row],[Year]]","v":"AUSTIN2070"}]
[null,209,"AZLE","C",2016,10947,11220,0,{"$f":"IF(tbl_twdbdata[[#This Row],[Year]]=2016,0,tbl_twdbdata[[#This Row],[effsave]]-0.6*SUMIFS(tbl_twdbdata[effsave],tbl_twdbdata[Year],2020,tbl_twdbdata[utility],tbl_twdbdata[[#This Row],[utility]]))","v":0},5131,0,490,0,454857918,0,17476368,0,7119559,19731869,{"$f":"tbl_twdbdata[[#This Row],[utility]]&tbl_twdbdata[[#This Row],[Year]]","v":"AZLE2016"}]
[null,209,"AZLE","C",2020,10947,12339,41524437,{"$f":"IF(tbl_twdbdata[[#This Row],[Year]]=2016,0,tbl_twdbdata[[#This Row],[effsave]]-0.6*SUMIFS(tbl_twdbdata[effsave],tbl_twdbdata[Year],2020,tbl_twdbdata[utility],tbl_twdbdata[[#This Row],[utility]]))","v":16609774.800000001},5643,0,539,0,500222090,0,19219332,0,262029501,6576308740,{"$f":"tbl_twdbdata[[#This Row],[utility]]&tbl_twdbdata[[#This Row],[Year]]","v":"AZLE2020"}]
[null,209,"AZLE","C",2030,10947,13377,64108604,{"$f":"IF(tbl_twdbdata[[#This Row],[Year]]=2016,0,tbl_twdbdata[[#This Row],[effsave]]-0.6*SUMIFS(tbl_twdbdata[effsave],tbl_twdbdata[Year],2020,tbl_twdbdata[utility],tbl_twdbdata[[#This Row],[utility]]))","v":39193941.799999997},6118,0,584,0,542302528,0,20836130,0,284072343,7129530919,{"$f":"tbl_twdbdata[[#This Row],[utility]]&tbl_twdbdata[[#This Row],[Year]]","v":"AZLE2030"}]
[null,209,"AZLE","C",2040,10947,14432,83861466,{"$f":"IF(tbl_twdbdata[[#This Row],[Year]]=2016,0,tbl_twdbdata[[#This Row],[effsave]]-0.6*SUMIFS(tbl_twdbdata[effsave],tbl_twdbdata[Year],2020,tbl_twdbdata[utility],tbl_twdbdata[[#This Row],[utility]]))","v":58946803.799999997},6601,0,633,0,585072145,0,22479407,0,306476195,7691813577,{"$f":"tbl_twdbdata[[#This Row],[utility]]&tbl_twdbdata[[#This Row],[Year]]","v":"AZLE2040"}]
[null,209,"AZLE","C",2050,10947,15503,98120037,{"$f":"IF(tbl_twdbdata[[#This Row],[Year]]=2016,0,tbl_twdbdata[[#This Row],[effsave]]-0.6*SUMIFS(tbl_twdbdata[effsave],tbl_twdbdata[Year],2020,tbl_twdbdata[utility],tbl_twdbdata[[#This Row],[utility]]))","v":73205374.799999997},7091,0,686,0,628490401,0,24147606,0,329219821,8262623745,{"$f":"tbl_twdbdata[[#This Row],[utility]]&tbl_twdbdata[[#This Row],[Year]]","v":"AZLE2050"}]
[null,209,"AZLE","C",2060,10947,18731,121421834,{"$f":"IF(tbl_twdbdata[[#This Row],[Year]]=2016,0,tbl_twdbdata[[#This Row],[effsave]]-0.6*SUMIFS(tbl_twdbdata[effsave],tbl_twdbdata[Year],2020,tbl_twdbdata[utility],tbl_twdbdata[[#This Row],[utility]]))","v":96507171.799999997},8567,0,744,0,759353267,0,29175567,0,397769236,9983048788,{"$f":"tbl_twdbdata[[#This Row],[utility]]&tbl_twdbdata[[#This Row],[Year]]","v":"AZLE2060"}]
[null,209,"AZLE","C",2070,10947,24029,157432001,{"$f":"IF(tbl_twdbdata[[#This Row],[Year]]=2016,0,tbl_twdbdata[[#This Row],[effsave]]-0.6*SUMIFS(tbl_twdbdata[effsave],tbl_twdbdata[Year],2020,tbl_twdbdata[utility],tbl_twdbdata[[#This Row],[utility]]))","v":132517338.8},10990,0,807,0,974133770,0,37427777,0,510276919,12806720374,{"$f":"tbl_twdbdata[[#This Row],[utility]]&tbl_twdbdata[[#This Row],[Year]]","v":"AZLE2070"}]
[null,213,"BALCH SPRINGS","C",2016,23500,23500,0,{"$f":"IF(tbl_twdbdata[[#This Row],[Year]]=2016,0,tbl_twdbdata[[#This Row],[effsave]]-0.6*SUMIFS(tbl_twdbdata[effsave],tbl_twdbdata[Year],2020,tbl_twdbdata[utility],tbl_twdbdata[[#This Row],[utility]]))","v":0},6582,2520,859,0,398138000,133628000,119566000,0,null,null,{"$f":"tbl_twdbdata[[#This Row],[utility]]&tbl_twdbdata[[#This Row],[Year]]","v":"BALCH SPRINGS2016"}]
[null,213,"BALCH SPRINGS","C",2020,23167,26418,87940238,{"$f":"IF(tbl_twdbdata[[#This Row],[Year]]=2016,0,tbl_twdbdata[[#This Row],[effsave]]-0.6*SUMIFS(tbl_twdbdata[effsave],tbl_twdbdata[Year],2020,tbl_twdbdata[utility],tbl_twdbdata[[#This Row],[utility]]))","v":35176095.200000003},7506,2874,980,0,454008274,152379872,136344567,0,null,null,{"$f":"tbl_twdbdata[[#This Row],[utility]]&tbl_twdbdata[[#This Row],[Year]]","v":"BALCH SPRINGS2020"}]
[null,213,"BALCH SPRINGS","C",2030,23167,28974,135578038,{"$f":"IF(tbl_twdbdata[[#This Row],[Year]]=2016,0,tbl_twdbdata[[#This Row],[effsave]]-0.6*SUMIFS(tbl_twdbdata[effsave],tbl_twdbdata[Year],2020,tbl_twdbdata[utility],tbl_twdbdata[[#This Row],[utility]]))","v":82813895.200000003},8232,3152,1075,0,497934580,167122962,149536206,0,null,null,{"$f":"tbl_twdbdata[[#This Row],[utility]]&tbl_twdbdata[[#This Row],[Year]]","v":"BALCH SPRINGS2030"}]
[null,213,"BALCH SPRINGS","C",2040,23167,31600,177277580,{"$f":"IF(tbl_twdbdata[[#This Row],[Year]]=2016,0,tbl_twdbdata[[#This Row],[effsave]]-0.6*SUMIFS(tbl_twdbdata[effsave],tbl_twdbdata[Year],2020,tbl_twdbdata[utility],tbl_twdbdata[[#This Row],[utility]]))","v":124513437.2},8978,3457,1179,0,543063875,182269814,163089118,0,null,null,{"$f":"tbl_twdbdata[[#This Row],[utility]]&tbl_twdbdata[[#This Row],[Year]]","v":"BALCH SPRINGS2040"}]
[null,213,"BALCH SPRINGS","C",2050,23167,34449,209480924,{"$f":"IF(tbl_twdbdata[[#This Row],[Year]]=2016,0,tbl_twdbdata[[#This Row],[effsave]]-0.6*SUMIFS(tbl_twdbdata[effsave],tbl_twdbdata[Year],2020,tbl_twdbdata[utility],tbl_twdbdata[[#This Row],[utility]]))","v":156716781.19999999},9787,3791,1293,0,592025552,198702937,177792944,0,null,null,{"$f":"tbl_twdbdata[[#This Row],[utility]]&tbl_twdbdata[[#This Row],[Year]]","v":"BALCH SPRINGS2050"}]
[null,213,"BALCH SPRINGS","C",2060,23167,37226,230443830,{"$f":"IF(tbl_twdbdata[[#This Row],[Year]]=2016,0,tbl_twdbdata[[#This Row],[effsave]]-0.6*SUMIFS(tbl_twdbdata[effsave],tbl_twdbdata[Year],2020,tbl_twdbdata[utility],tbl_twdbdata[[#This Row],[utility]]))","v":177679687.19999999},10576,4158,1418,0,639749868,214720762,192125174,0,null,null,{"$f":"tbl_twdbdata[[#This Row],[utility]]&tbl_twdbdata[[#This Row],[Year]]","v":"BALCH SPRINGS2060"}]
[null,213,"BALCH SPRINGS","C",2070,23167,40010,248700160,{"$f":"IF(tbl_twdbdata[[#This Row],[Year]]=2016,0,tbl_twdbdata[[#This Row],[effsave]]-0.6*SUMIFS(tbl_twdbdata[effsave],tbl_twdbdata[Year],2020,tbl_twdbdata[utility],tbl_twdbdata[[#This Row],[utility]]))","v":195936017.19999999},11367,4560,1555,0,687594483,230778963,206493532,0,null,null,{"$f":"tbl_twdbdata[[#This Row],[utility]]&tbl_twdbdata[[#This Row],[Year]]","v":"BALCH SPRINGS2070"}]
[null,215,"BALLINGER","F",2016,3767,3767,0,{"$f":"IF(tbl_twdbdata[[#This Row],[Year]]=2016,0,tbl_twdbdata[[#This Row],[effsave]]-0.6*SUMIFS(tbl_twdbdata[effsave],tbl_twdbdata[Year],2020,tbl_twdbdata[utility],tbl_twdbdata[[#This Row],[utility]]))","v":0},1991,6,232,0,100481483,3114353,27206987,0,1912197,20260770,{"$f":"tbl_twdbdata[[#This Row],[utility]]&tbl_twdbdata[[#This Row],[Year]]","v":"BALLINGER2016"}]
[null,215,"BALLINGER","F",2020,3767,3864,13793321,{"$f":"IF(tbl_twdbdata[[#This Row],[Year]]=2016,0,tbl_twdbdata[[#This Row],[effsave]]-0.6*SUMIFS(tbl_twdbdata[effsave],tbl_twdbdata[Year],2020,tbl_twdbdata[utility],tbl_twdbdata[[#This Row],[utility]]))","v":5517328.4000000004},2018,6,235,0,101825452,3156008,27570889,0,1937773,20531764,{"$f":"tbl_twdbdata[[#This Row],[utility]]&tbl_twdbdata[[#This Row],[Year]]","v":"BALLINGER2020"}]
[null,215,"BALLINGER","F",2030,3767,3966,20758441,{"$f":"IF(tbl_twdbdata[[#This Row],[Year]]=2016,0,tbl_twdbdata[[#This Row],[effsave]]-0.6*SUMIFS(tbl_twdbdata[effsave],tbl_twdbdata[Year],2020,tbl_twdbdata[utility],tbl_twdbdata[[#This Row],[utility]]))","v":12482448.4},2071,6,241,0,104513391,3239319,28298692,0,1988925,21073752,{"$f":"tbl_twdbdata[[#This Row],[utility]]&tbl_twdbdata[[#This Row],[Year]]","v":"BALLINGER2030"}]
[null,215,"BALLINGER","F",2040,3767,3966,26056620,{"$f":"IF(tbl_twdbdata[[#This Row],[Year]]=2016,0,tbl_twdbdata[[#This Row],[effsave]]-0.6*SUMIFS(tbl_twdbdata[effsave],tbl_twdbdata[Year],2020,tbl_twdbdata[utility],tbl_twdbdata[[#This Row],[utility]]))","v":17780627.399999999},2071,6,247,0,104513391,3239319,28298692,0,1988925,21073752,{"$f":"tbl_twdbdata[[#This Row],[utility]]&tbl_twdbdata[[#This Row],[Year]]","v":"BALLINGER2040"}]
[null,215,"BALLINGER","F",2050,3767,3966,26693560,{"$f":"IF(tbl_twdbdata[[#This Row],[Year]]=2016,0,tbl_twdbdata[[#This Row],[effsave]]-0.6*SUMIFS(tbl_twdbdata[effsave],tbl_twdbdata[Year],2020,tbl_twdbdata[utility],tbl_twdbdata[[#This Row],[utility]]))","v":18417567.399999999},2071,6,253,0,104513391,3239319,28298692,0,1988925,21073752,{"$f":"tbl_twdbdata[[#This Row],[utility]]&tbl_twdbdata[[#This Row],[Year]]","v":"BALLINGER2050"}]
[null,215,"BALLINGER","F",2060,3767,3966,27142313,{"$f":"IF(tbl_twdbdata[[#This Row],[Year]]=2016,0,tbl_twdbdata[[#This Row],[effsave]]-0.6*SUMIFS(tbl_twdbdata[effsave],tbl_twdbdata[Year],2020,tbl_twdbdata[utility],tbl_twdbdata[[#This Row],[utility]]))","v":18866320.399999999},2071,6,260,0,104513391,3239319,28298692,0,1988925,21073752,{"$f":"tbl_twdbdata[[#This Row],[utility]]&tbl_twdbdata[[#This Row],[Year]]","v":"BALLINGER2060"}]
[null,215,"BALLINGER","F",2070,3767,3966,27156788,{"$f":"IF(tbl_twdbdata[[#This Row],[Year]]=2016,0,tbl_twdbdata[[#This Row],[effsave]]-0.6*SUMIFS(tbl_twdbdata[effsave],tbl_twdbdata[Year],2020,tbl_twdbdata[utility],tbl_twdbdata[[#This Row],[utility]]))","v":18880795.399999999},2071,6,267,0,104513391,3239319,28298692,0,1988925,21073752,{"$f":"tbl_twdbdata[[#This Row],[utility]]&tbl_twdbdata[[#This Row],[Year]]","v":"BALLINGER2070"}]
[null,6211,"BANDERA COUNTY FWSD 1","J",2016,1065,1065,0,{"$f":"IF(tbl_twdbdata[[#This Row],[Year]]=2016,0,tbl_twdbdata[[#This Row],[effsave]]-0.6*SUMIFS(tbl_twdbdata[effsave],tbl_twdbdata[Year],2020,tbl_twdbdata[utility],tbl_twdbdata[[#This Row],[utility]]))","v":0},421,0,0,0,19538405,0,0,0,null,null,{"$f":"tbl_twdbdata[[#This Row],[utility]]&tbl_twdbdata[[#This Row],[Year]]","v":"BANDERA COUNTY FWSD 12016"}]
[null,6211,"BANDERA COUNTY FWSD 1","J",2020,449,679,2778230,{"$f":"IF(tbl_twdbdata[[#This Row],[Year]]=2016,0,tbl_twdbdata[[#This Row],[effsave]]-0.6*SUMIFS(tbl_twdbdata[effsave],tbl_twdbdata[Year],2020,tbl_twdbdata[utility],tbl_twdbdata[[#This Row],[utility]]))","v":1111292},637,0,0,0,29546942,0,0,0,null,null,{"$f":"tbl_twdbdata[[#This Row],[utility]]&tbl_twdbdata[[#This Row],[Year]]","v":"BANDERA COUNTY FWSD 12020"}]
[null,6211,"BANDERA COUNTY FWSD 1","J",2030,449,781,4461267,{"$f":"IF(tbl_twdbdata[[#This Row],[Year]]=2016,0,tbl_twdbdata[[#This Row],[effsave]]-0.6*SUMIFS(tbl_twdbdata[effsave],tbl_twdbdata[Year],2020,tbl_twdbdata[utility],tbl_twdbdata[[#This Row],[utility]]))","v":2794329},733,0,0,0,33985511,0,0,0,null,null,{"$f":"tbl_twdbdata[[#This Row],[utility]]&tbl_twdbdata[[#This Row],[Year]]","v":"BANDERA COUNTY FWSD 12030"}]
[null,6211,"BANDERA COUNTY FWSD 1","J",2040,449,838,5643302,{"$f":"IF(tbl_twdbdata[[#This Row],[Year]]=2016,0,tbl_twdbdata[[#This Row],[effsave]]-0.6*SUMIFS(tbl_twdbdata[effsave],tbl_twdbdata[Year],2020,tbl_twdbdata[utility],tbl_twdbdata[[#This Row],[utility]]))","v":3976364},786,0,0,0,36465888,0,0,0,null,null,{"$f":"tbl_twdbdata[[#This Row],[utility]]&tbl_twdbdata[[#This Row],[Year]]","v":"BANDERA COUNTY FWSD 12040"}]
[null,6211,"BANDERA COUNTY FWSD 1","J",2050,449,862,6006287,{"$f":"IF(tbl_twdbdata[[#This Row],[Year]]=2016,0,tbl_twdbdata[[#This Row],[effsave]]-0.6*SUMIFS(tbl_twdbdata[effsave],tbl_twdbdata[Year],2020,tbl_twdbdata[utility],tbl_twdbdata[[#This Row],[utility]]))","v":4339349},809,0,0,0,37510257,0,0,0,null,null,{"$f":"tbl_twdbdata[[#This Row],[utility]]&tbl_twdbdata[[#This Row],[Year]]","v":"BANDERA COUNTY FWSD 12050"}]
[null,6211,"BANDERA COUNTY FWSD 1","J",2060,449,876,6177377,{"$f":"IF(tbl_twdbdata[[#This Row],[Year]]=2016,0,tbl_twdbdata[[#This Row],[effsave]]-0.6*SUMIFS(tbl_twdbdata[effsave],tbl_twdbdata[Year],2020,tbl_twdbdata[utility],tbl_twdbdata[[#This Row],[utility]]))","v":4510439},822,0,0,0,38119472,0,0,0,null,null,{"$f":"tbl_twdbdata[[#This Row],[utility]]&tbl_twdbdata[[#This Row],[Year]]","v":"BANDERA COUNTY FWSD 12060"}]
[null,6211,"BANDERA COUNTY FWSD 1","J",2070,449,883,6236408,{"$f":"IF(tbl_twdbdata[[#This Row],[Year]]=2016,0,tbl_twdbdata[[#This Row],[effsave]]-0.6*SUMIFS(tbl_twdbdata[effsave],tbl_twdbdata[Year],2020,tbl_twdbdata[utility],tbl_twdbdata[[#This Row],[utility]]))","v":4569470},829,0,0,0,38424080,0,0,0,null,null,{"$f":"tbl_twdbdata[[#This Row],[utility]]&tbl_twdbdata[[#This Row],[Year]]","v":"BANDERA COUNTY FWSD 12070"}]
[null,224,"BASTROP","K",2016,8080,8080,0,{"$f":"IF(tbl_twdbdata[[#This Row],[Year]]=2016,0,tbl_twdbdata[[#This Row],[effsave]]-0.6*SUMIFS(tbl_twdbdata[effsave],tbl_twdbdata[Year],2020,tbl_twdbdata[utility],tbl_twdbdata[[#This Row],[utility]]))","v":0},2527,718,637,0,183589000,51989727,201496773,0,12577048,36023508,{"$f":"tbl_twdbdata[[#This Row],[utility]]&tbl_twdbdata[[#This Row],[Year]]","v":"BASTROP2016"}]
[null,224,"BASTROP","K",2020,7535,11069,40442252,{"$f":"IF(tbl_twdbdata[[#This Row],[Year]]=2016,0,tbl_twdbdata[[#This Row],[effsave]]-0.6*SUMIFS(tbl_twdbdata[effsave],tbl_twdbdata[Year],2020,tbl_twdbdata[utility],tbl_twdbdata[[#This Row],[utility]]))","v":16176900.800000001},3712,1055,936,0,269694312,76373495,296001033,0,18475825,52918940,{"$f":"tbl_twdbdata[[#This Row],[utility]]&tbl_twdbdata[[#This Row],[Year]]","v":"BASTROP2020"}]
[null,224,"BASTROP","K",2030,7535,15008,75869192,{"$f":"IF(tbl_twdbdata[[#This Row],[Year]]=2016,0,tbl_twdbdata[[#This Row],[effsave]]-0.6*SUMIFS(tbl_twdbdata[effsave],tbl_twdbdata[Year],2020,tbl_twdbdata[utility],tbl_twdbdata[[#This Row],[utility]]))","v":51603840.799999997},5033,1430,1269,0,365667380,103551668,401335577,0,25050608,71750605,{"$f":"tbl_twdbdata[[#This Row],[utility]]&tbl_twdbdata[[#This Row],[Year]]","v":"BASTROP2030"}]
[null,224,"BASTROP","K",2040,7535,20129,115937001,{"$f":"IF(tbl_twdbdata[[#This Row],[Year]]=2016,0,tbl_twdbdata[[#This Row],[effsave]]-0.6*SUMIFS(tbl_twdbdata[effsave],tbl_twdbdata[Year],2020,tbl_twdbdata[utility],tbl_twdbdata[[#This Row],[utility]]))","v":91671649.799999997},6750,1939,1721,0,490439678,138885363,538278507,0,33598327,96233204,{"$f":"tbl_twdbdata[[#This Row],[utility]]&tbl_twdbdata[[#This Row],[Year]]","v":"BASTROP2040"}]
[null,224,"BASTROP","K",2050,7535,27068,163807416,{"$f":"IF(tbl_twdbdata[[#This Row],[Year]]=2016,0,tbl_twdbdata[[#This Row],[effsave]]-0.6*SUMIFS(tbl_twdbdata[effsave],tbl_twdbdata[Year],2020,tbl_twdbdata[utility],tbl_twdbdata[[#This Row],[utility]]))","v":139542064.80000001},9077,2629,2333,0,659507239,186762830,723837380,0,45180561,129407341,{"$f":"tbl_twdbdata[[#This Row],[utility]]&tbl_twdbdata[[#This Row],[Year]]","v":"BASTROP2050"}]
[null,224,"BASTROP","K",2060,7535,36439,223310946,{"$f":"IF(tbl_twdbdata[[#This Row],[Year]]=2016,0,tbl_twdbdata[[#This Row],[effsave]]-0.6*SUMIFS(tbl_twdbdata[effsave],tbl_twdbdata[Year],2020,tbl_twdbdata[utility],tbl_twdbdata[[#This Row],[utility]]))","v":199045594.80000001},12219,3565,3163,0,887830068,251420525,974431443,0,60822169,174208442,{"$f":"tbl_twdbdata[[#This Row],[utility]]&tbl_twdbdata[[#This Row],[Year]]","v":"BASTROP2060"}]
[null,224,"BASTROP","K",2070,7535,48898,301448835,{"$f":"IF(tbl_twdbdata[[#This Row],[Year]]=2016,0,tbl_twdbdata[[#This Row],[effsave]]-0.6*SUMIFS(tbl_twdbdata[effsave],tbl_twdbdata[Year],2020,tbl_twdbdata[utility],tbl_twdbdata[[#This Row],[utility]]))","v":277183483.80000001},16397,4834,4289,0,1191391494,337384693,1307603082,0,81618113,233772727,{"$f":"tbl_twdbdata[[#This Row],[utility]]&tbl_twdbdata[[#This Row],[Year]]","v":"BASTROP2070"}]
[null,225,"BASTROP COUNTY WCID 2","K",2016,4979,4979,0,{"$f":"IF(tbl_twdbdata[[#This Row],[Year]]=2016,0,tbl_twdbdata[[#This Row],[effsave]]-0.6*SUMIFS(tbl_twdbdata[effsave],tbl_twdbdata[Year],2020,tbl_twdbdata[utility],tbl_twdbdata[[#This Row],[utility]]))","v":0},1529,1,26,0,96395343,1315500,992953,0,null,null,{"$f":"tbl_twdbdata[[#This Row],[utility]]&tbl_twdbdata[[#This Row],[Year]]","v":"BASTROP COUNTY WCID 22016"}]
[null,225,"BASTROP COUNTY WCID 2","K",2020,3736,5007,15735249,{"$f":"IF(tbl_twdbdata[[#This Row],[Year]]=2016,0,tbl_twdbdata[[#This Row],[effsave]]-0.6*SUMIFS(tbl_twdbdata[effsave],tbl_twdbdata[Year],2020,tbl_twdbdata[utility],tbl_twdbdata[[#This Row],[utility]]))","v":6294099.5999999996},2049,1,35,0,129189369,1763038,1330759,0,null,null,{"$f":"tbl_twdbdata[[#This Row],[utility]]&tbl_twdbdata[[#This Row],[Year]]","v":"BASTROP COUNTY WCID 22020"}]
[null,225,"BASTROP COUNTY WCID 2","K",2030,3736,7450,30754718,{"$f":"IF(tbl_twdbdata[[#This Row],[Year]]=2016,0,tbl_twdbdata[[#This Row],[effsave]]-0.6*SUMIFS(tbl_twdbdata[effsave],tbl_twdbdata[Year],2020,tbl_twdbdata[utility],tbl_twdbdata[[#This Row],[utility]]))","v":21313568.600000001},3049,1,52,0,192223048,2623254,1980059,0,null,null,{"$f":"tbl_twdbdata[[#This Row],[utility]]&tbl_twdbdata[[#This Row],[Year]]","v":"BASTROP COUNTY WCID 22030"}]
[null,225,"BASTROP COUNTY WCID 2","K",2040,3736,10626,48054491,{"$f":"IF(tbl_twdbdata[[#This Row],[Year]]=2016,0,tbl_twdbdata[[#This Row],[effsave]]-0.6*SUMIFS(tbl_twdbdata[effsave],tbl_twdbdata[Year],2020,tbl_twdbdata[utility],tbl_twdbdata[[#This Row],[utility]]))","v":38613341.600000001},4349,1,78,0,274169410,3741570,2824175,0,null,null,{"$f":"tbl_twdbdata[[#This Row],[utility]]&tbl_twdbdata[[#This Row],[Year]]","v":"BASTROP COUNTY WCID 22040"}]
[null,225,"BASTROP COUNTY WCID 2","K",2050,3736,14930,70025433,{"$f":"IF(tbl_twdbdata[[#This Row],[Year]]=2016,0,tbl_twdbdata[[#This Row],[effsave]]-0.6*SUMIFS(tbl_twdbdata[effsave],tbl_twdbdata[Year],2020,tbl_twdbdata[utility],tbl_twdbdata[[#This Row],[utility]]))","v":60584283.600000001},6111,1,116,0,385220148,5257071,3968091,0,null,null,{"$f":"tbl_twdbdata[[#This Row],[utility]]&tbl_twdbdata[[#This Row],[Year]]","v":"BASTROP COUNTY WCID 22050"}]
[null,225,"BASTROP COUNTY WCID 2","K",2060,3736,20741,98491750,{"$f":"IF(tbl_twdbdata[[#This Row],[Year]]=2016,0,tbl_twdbdata[[#This Row],[effsave]]-0.6*SUMIFS(tbl_twdbdata[effsave],tbl_twdbdata[Year],2020,tbl_twdbdata[utility],tbl_twdbdata[[#This Row],[utility]]))","v":89050600.599999994},8490,1,173,0,535154125,7303209,5512537,0,null,null,{"$f":"tbl_twdbdata[[#This Row],[utility]]&tbl_twdbdata[[#This Row],[Year]]","v":"BASTROP COUNTY WCID 22060"}]
[null,225,"BASTROP COUNTY WCID 2","K",2070,3736,28469,135916700,{"$f":"IF(tbl_twdbdata[[#This Row],[Year]]=2016,0,tbl_twdbdata[[#This Row],[effsave]]-0.6*SUMIFS(tbl_twdbdata[effsave],tbl_twdbdata[Year],2020,tbl_twdbdata[utility],tbl_twdbdata[[#This Row],[utility]]))","v":126475550.59999999},11653,1,258,0,734550060,10024351,7566483,0,null,null,{"$f":"tbl_twdbdata[[#This Row],[utility]]&tbl_twdbdata[[#This Row],[Year]]","v":"BASTROP COUNTY WCID 22070"}]
[null,226,"BAY CITY","K",2016,16557,17614,0,{"$f":"IF(tbl_twdbdata[[#This Row],[Year]]=2016,0,tbl_twdbdata[[#This Row],[effsave]]-0.6*SUMIFS(tbl_twdbdata[effsave],tbl_twdbdata[Year],2020,tbl_twdbdata[utility],tbl_twdbdata[[#This Row],[utility]]))","v":0},7013,2272,920,0,354741500,96969900,170855300,0,11046123,199171393,{"$f":"tbl_twdbdata[[#This Row],[utility]]&tbl_twdbdata[[#This Row],[Year]]","v":"BAY CITY2016"}]
[null,226,"BAY CITY","K",2020,16557,19285,70390250,{"$f":"IF(tbl_twdbdata[[#This Row],[Year]]=2016,0,tbl_twdbdata[[#This Row],[effsave]]-0.6*SUMIFS(tbl_twdbdata[effsave],tbl_twdbdata[Year],2020,tbl_twdbdata[utility],tbl_twdbdata[[#This Row],[utility]]))","v":28156100},7931,2570,1040,0,401195744,109668339,193229209,0,12492639,225253361,{"$f":"tbl_twdbdata[[#This Row],[utility]]&tbl_twdbdata[[#This Row],[Year]]","v":"BAY CITY2020"}]
[null,226,"BAY CITY","K",2030,16557,20300,106844990,{"$f":"IF(tbl_twdbdata[[#This Row],[Year]]=2016,0,tbl_twdbdata[[#This Row],[effsave]]-0.6*SUMIFS(tbl_twdbdata[effsave],tbl_twdbdata[Year],2020,tbl_twdbdata[utility],tbl_twdbdata[[#This Row],[utility]]))","v":64610840},8348,2705,1095,0,422311309,115440357,203399167,0,13150146,237108801,{"$f":"tbl_twdbdata[[#This Row],[utility]]&tbl_twdbdata[[#This Row],[Year]]","v":"BAY CITY2030"}]
[null,226,"BAY CITY","K",2040,16557,20950,135959215,{"$f":"IF(tbl_twdbdata[[#This Row],[Year]]=2016,0,tbl_twdbdata[[#This Row],[effsave]]-0.6*SUMIFS(tbl_twdbdata[effsave],tbl_twdbdata[Year],2020,tbl_twdbdata[utility],tbl_twdbdata[[#This Row],[utility]]))","v":93725065},8615,2847,1153,0,435833592,119136723,209911948,0,13571210,244700955,{"$f":"tbl_twdbdata[[#This Row],[utility]]&tbl_twdbdata[[#This Row],[Year]]","v":"BAY CITY2040"}]
[null,226,"BAY CITY","K",2050,16557,21453,147758610,{"$f":"IF(tbl_twdbdata[[#This Row],[Year]]=2016,0,tbl_twdbdata[[#This Row],[effsave]]-0.6*SUMIFS(tbl_twdbdata[effsave],tbl_twdbdata[Year],2020,tbl_twdbdata[utility],tbl_twdbdata[[#This Row],[utility]]))","v":105524460},8822,2997,1214,0,446297759,121997142,214951839,0,13897049,250576114,{"$f":"tbl_twdbdata[[#This Row],[utility]]&tbl_twdbdata[[#This Row],[Year]]","v":"BAY CITY2050"}]
[null,226,"BAY CITY","K",2060,16557,21810,152605661,{"$f":"IF(tbl_twdbdata[[#This Row],[Year]]=2016,0,tbl_twdbdata[[#This Row],[effsave]]-0.6*SUMIFS(tbl_twdbdata[effsave],tbl_twdbdata[Year],2020,tbl_twdbdata[utility],tbl_twdbdata[[#This Row],[utility]]))","v":110371511},8969,3155,1278,0,453724613,124027300,218528858,0,14128310,254745958,{"$f":"tbl_twdbdata[[#This Row],[utility]]&tbl_twdbdata[[#This Row],[Year]]","v":"BAY CITY2060"}]
[null,226,"BAY CITY","K",2070,16557,22066,154557987,{"$f":"IF(tbl_twdbdata[[#This Row],[Year]]=2016,0,tbl_twdbdata[[#This Row],[effsave]]-0.6*SUMIFS(tbl_twdbdata[effsave],tbl_twdbdata[Year],2020,tbl_twdbdata[utility],tbl_twdbdata[[#This Row],[utility]]))","v":112323837},9074,3321,1345,0,459050312,125483100,221093892,0,14294144,257736099,{"$f":"tbl_twdbdata[[#This Row],[utility]]&tbl_twdbdata[[#This Row],[Year]]","v":"BAY CITY2070"}]
[null,6216,"BAYLOR SUD","B",2016,2558,2558,0,{"$f":"IF(tbl_twdbdata[[#This Row],[Year]]=2016,0,tbl_twdbdata[[#This Row],[effsave]]-0.6*SUMIFS(tbl_twdbdata[effsave],tbl_twdbdata[Year],2020,tbl_twdbdata[utility],tbl_twdbdata[[#This Row],[utility]]))","v":0},1018,0,0,0,58221500,0,0,0,1208667,37263200,{"$f":"tbl_twdbdata[[#This Row],[utility]]&tbl_twdbdata[[#This Row],[Year]]","v":"BAYLOR SUD2016"}]
[null,6216,"BAYLOR SUD","B",2020,1519,1385,4898537,{"$f":"IF(tbl_twdbdata[[#This Row],[Year]]=2016,0,tbl_twdbdata[[#This Row],[effsave]]-0.6*SUMIFS(tbl_twdbdata[effsave],tbl_twdbdata[Year],2020,tbl_twdbdata[utility],tbl_twdbdata[[#This Row],[utility]]))","v":1959414.8000000003},928,0,0,0,53085436,0,0,0,1102043,33975992,{"$f":"tbl_twdbdata[[#This Row],[utility]]&tbl_twdbdata[[#This Row],[Year]]","v":"BAYLOR SUD2020"}]
[null,6216,"BAYLOR SUD","B",2030,1519,1409,7374847,{"$f":"IF(tbl_twdbdata[[#This Row],[Year]]=2016,0,tbl_twdbdata[[#This Row],[effsave]]-0.6*SUMIFS(tbl_twdbdata[effsave],tbl_twdbdata[Year],2020,tbl_twdbdata[utility],tbl_twdbdata[[#This Row],[utility]]))","v":4435724.8000000007},944,0,0,0,54005328,0,0,0,1121140,34564746,{"$f":"tbl_twdbdata[[#This Row],[utility]]&tbl_twdbdata[[#This Row],[Year]]","v":"BAYLOR SUD2030"}]
[null,6216,"BAYLOR SUD","B",2040,1519,1419,9224422,{"$f":"IF(tbl_twdbdata[[#This Row],[Year]]=2016,0,tbl_twdbdata[[#This Row],[effsave]]-0.6*SUMIFS(tbl_twdbdata[effsave],tbl_twdbdata[Year],2020,tbl_twdbdata[utility],tbl_twdbdata[[#This Row],[utility]]))","v":6285299.8000000007},951,0,0,0,54388616,0,0,0,1129097,34810060,{"$f":"tbl_twdbdata[[#This Row],[utility]]&tbl_twdbdata[[#This Row],[Year]]","v":"BAYLOR SUD2040"}]
[null,6216,"BAYLOR SUD","B",2050,1519,1431,9474794,{"$f":"IF(tbl_twdbdata[[#This Row],[Year]]=2016,0,tbl_twdbdata[[#This Row],[effsave]]-0.6*SUMIFS(tbl_twdbdata[effsave],tbl_twdbdata[Year],2020,tbl_twdbdata[utility],tbl_twdbdata[[#This Row],[utility]]))","v":6535671.8000000007},959,0,0,0,54848562,0,0,0,1138645,35104437,{"$f":"tbl_twdbdata[[#This Row],[utility]]&tbl_twdbdata[[#This Row],[Year]]","v":"BAYLOR SUD2050"}]
[null,6216,"BAYLOR SUD","B",2060,1519,1440,9702576,{"$f":"IF(tbl_twdbdata[[#This Row],[Year]]=2016,0,tbl_twdbdata[[#This Row],[effsave]]-0.6*SUMIFS(tbl_twdbdata[effsave],tbl_twdbdata[Year],2020,tbl_twdbdata[utility],tbl_twdbdata[[#This Row],[utility]]))","v":6763453.8000000007},965,0,0,0,55193522,0,0,0,1145806,35325220,{"$f":"tbl_twdbdata[[#This Row],[utility]]&tbl_twdbdata[[#This Row],[Year]]","v":"BAYLOR SUD2060"}]
[null,6216,"BAYLOR SUD","B",2070,1519,1448,9756479,{"$f":"IF(tbl_twdbdata[[#This Row],[Year]]=2016,0,tbl_twdbdata[[#This Row],[effsave]]-0.6*SUMIFS(tbl_twdbdata[effsave],tbl_twdbdata[Year],2020,tbl_twdbdata[utility],tbl_twdbdata[[#This Row],[utility]]))","v":6817356.8000000007},970,0,0,0,55500153,0,0,0,1152172,35521471,{"$f":"tbl_twdbdata[[#This Row],[utility]]&tbl_twdbdata[[#This Row],[Year]]","v":"BAYLOR SUD2070"}]
[null,228,"BAYTOWN","H",2016,87787,87787,0,{"$f":"IF(tbl_twdbdata[[#This Row],[Year]]=2016,0,tbl_twdbdata[[#This Row],[effsave]]-0.6*SUMIFS(tbl_twdbdata[effsave],tbl_twdbdata[Year],2020,tbl_twdbdata[utility],tbl_twdbdata[[#This Row],[utility]]))","v":0},18733,11122,1842,473,1079128000,579976000,1416374000,84694000,119663197,616359050,{"$f":"tbl_twdbdata[[#This Row],[utility]]&tbl_twdbdata[[#This Row],[Year]]","v":"BAYTOWN2016"}]
[null,228,"BAYTOWN","H",2020,68301,75554,256468053,{"$f":"IF(tbl_twdbdata[[#This Row],[Year]]=2016,0,tbl_twdbdata[[#This Row],[effsave]]-0.6*SUMIFS(tbl_twdbdata[effsave],tbl_twdbdata[Year],2020,tbl_twdbdata[utility],tbl_twdbdata[[#This Row],[utility]]))","v":102587221.20000002},20722,12303,2037,523,1193722448,641564643,1566781177,93687801,132370437,681811272,{"$f":"tbl_twdbdata[[#This Row],[utility]]&tbl_twdbdata[[#This Row],[Year]]","v":"BAYTOWN2020"}]
[null,228,"BAYTOWN","H",2030,68301,77528,372963950,{"$f":"IF(tbl_twdbdata[[#This Row],[Year]]=2016,0,tbl_twdbdata[[#This Row],[effsave]]-0.6*SUMIFS(tbl_twdbdata[effsave],tbl_twdbdata[Year],2020,tbl_twdbdata[utility],tbl_twdbdata[[#This Row],[utility]]))","v":219083118.20000002},21263,12624,2090,537,1224910845,658326808,1607716483,96135583,135828881,699624961,{"$f":"tbl_twdbdata[[#This Row],[utility]]&tbl_twdbdata[[#This Row],[Year]]","v":"BAYTOWN2030"}]
[null,228,"BAYTOWN","H",2040,68301,79672,472554550,{"$f":"IF(tbl_twdbdata[[#This Row],[Year]]=2016,0,tbl_twdbdata[[#This Row],[effsave]]-0.6*SUMIFS(tbl_twdbdata[effsave],tbl_twdbdata[Year],2020,tbl_twdbdata[utility],tbl_twdbdata[[#This Row],[utility]]))","v":318673718.20000005},21851,12954,2144,551,1258785172,676532523,1652177118,98794167,139585164,718972757,{"$f":"tbl_twdbdata[[#This Row],[utility]]&tbl_twdbdata[[#This Row],[Year]]","v":"BAYTOWN2040"}]
[null,228,"BAYTOWN","H",2050,68301,81905,534827364,{"$f":"IF(tbl_twdbdata[[#This Row],[Year]]=2016,0,tbl_twdbdata[[#This Row],[effsave]]-0.6*SUMIFS(tbl_twdbdata[effsave],tbl_twdbdata[Year],2020,tbl_twdbdata[utility],tbl_twdbdata[[#This Row],[utility]]))","v":380946532.20000005},22463,13292,2200,565,1294065663,695493979,1698483367,101563112,143497375,739123703,{"$f":"tbl_twdbdata[[#This Row],[utility]]&tbl_twdbdata[[#This Row],[Year]]","v":"BAYTOWN2050"}]
[null,228,"BAYTOWN","H",2060,68301,84224,559807450,{"$f":"IF(tbl_twdbdata[[#This Row],[Year]]=2016,0,tbl_twdbdata[[#This Row],[effsave]]-0.6*SUMIFS(tbl_twdbdata[effsave],tbl_twdbdata[Year],2020,tbl_twdbdata[utility],tbl_twdbdata[[#This Row],[utility]]))","v":405926618.20000005},23099,13639,2257,580,1330704919,715185702,1746573019,104438698,147560258,760050727,{"$f":"tbl_twdbdata[[#This Row],[utility]]&tbl_twdbdata[[#This Row],[Year]]","v":"BAYTOWN2060"}]
[null,228,"BAYTOWN","H",2070,68301,86612,576944185,{"$f":"IF(tbl_twdbdata[[#This Row],[Year]]=2016,0,tbl_twdbdata[[#This Row],[effsave]]-0.6*SUMIFS(tbl_twdbdata[effsave],tbl_twdbdata[Year],2020,tbl_twdbdata[utility],tbl_twdbdata[[#This Row],[utility]]))","v":423063353.20000005},23754,13995,2315,595,1368434347,735463336,1796093541,107399845,151744029,781600418,{"$f":"tbl_twdbdata[[#This Row],[utility]]&tbl_twdbdata[[#This Row],[Year]]","v":"BAYTOWN2070"}]
[null,9,"BEAUMONT","I",2016,125643,125643,0,{"$f":"IF(tbl_twdbdata[[#This Row],[Year]]=2016,0,tbl_twdbdata[[#This Row],[effsave]]-0.6*SUMIFS(tbl_twdbdata[effsave],tbl_twdbdata[Year],2020,tbl_twdbdata[utility],tbl_twdbdata[[#This Row],[utility]]))","v":0},41881,13876,5199,0,2249656000,640495900,2411412300,0,257068284,1896910239,{"$f":"tbl_twdbdata[[#This Row],[utility]]&tbl_twdbdata[[#This Row],[Year]]","v":"BEAUMONT2016"}]
[null,9,"BEAUMONT","I",2020,125643,130024,456078684,{"$f":"IF(tbl_twdbdata[[#This Row],[Year]]=2016,0,tbl_twdbdata[[#This Row],[effsave]]-0.6*SUMIFS(tbl_twdbdata[effsave],tbl_twdbdata[Year],2020,tbl_twdbdata[utility],tbl_twdbdata[[#This Row],[utility]]))","v":182431473.60000002},43341,14360,5381,0,2328098436,662829118,2495494957,0,266031904,1963052911,{"$f":"tbl_twdbdata[[#This Row],[utility]]&tbl_twdbdata[[#This Row],[Year]]","v":"BEAUMONT2020"}]
[null,9,"BEAUMONT","I",2030,125643,138409,701712869,{"$f":"IF(tbl_twdbdata[[#This Row],[Year]]=2016,0,tbl_twdbdata[[#This Row],[effsave]]-0.6*SUMIFS(tbl_twdbdata[effsave],tbl_twdbdata[Year],2020,tbl_twdbdata[utility],tbl_twdbdata[[#This Row],[utility]]))","v":428065658.60000002},46136,15286,5728,0,2478233068,705573705,2656424672,0,283187795,2089646453,{"$f":"tbl_twdbdata[[#This Row],[utility]]&tbl_twdbdata[[#This Row],[Year]]","v":"BEAUMONT2030"}]
[null,9,"BEAUMONT","I",2040,125643,147221,919417228,{"$f":"IF(tbl_twdbdata[[#This Row],[Year]]=2016,0,tbl_twdbdata[[#This Row],[effsave]]-0.6*SUMIFS(tbl_twdbdata[effsave],tbl_twdbdata[Year],2020,tbl_twdbdata[utility],tbl_twdbdata[[#This Row],[utility]]))","v":645770017.60000002},49073,16272,6097,0,2636013196,750495029,2825549615,0,301217337,2222686678,{"$f":"tbl_twdbdata[[#This Row],[utility]]&tbl_twdbdata[[#This Row],[Year]]","v":"BEAUMONT2040"}]
[null,9,"BEAUMONT","I",2050,125643,157462,1078205299,{"$f":"IF(tbl_twdbdata[[#This Row],[Year]]=2016,0,tbl_twdbdata[[#This Row],[effsave]]-0.6*SUMIFS(tbl_twdbdata[effsave],tbl_twdbdata[Year],2020,tbl_twdbdata[utility],tbl_twdbdata[[#This Row],[utility]]))","v":804558088.60000002},52487,17321,6491,0,2819379775,802701029,3022100743,0,322170644,2377301402,{"$f":"tbl_twdbdata[[#This Row],[utility]]&tbl_twdbdata[[#This Row],[Year]]","v":"BEAUMONT2050"}]
[null,9,"BEAUMONT","I",2060,125643,168758,1175880430,{"$f":"IF(tbl_twdbdata[[#This Row],[Year]]=2016,0,tbl_twdbdata[[#This Row],[effsave]]-0.6*SUMIFS(tbl_twdbdata[effsave],tbl_twdbdata[Year],2020,tbl_twdbdata[utility],tbl_twdbdata[[#This Row],[utility]]))","v":902233219.60000002},56252,18438,6910,0,3021636281,860285150,3238900034,0,345282503,2547844115,{"$f":"tbl_twdbdata[[#This Row],[utility]]&tbl_twdbdata[[#This Row],[Year]]","v":"BEAUMONT2060"}]
[null,9,"BEAUMONT","I",2070,125643,181406,1269306852,{"$f":"IF(tbl_twdbdata[[#This Row],[Year]]=2016,0,tbl_twdbdata[[#This Row],[effsave]]-0.6*SUMIFS(tbl_twdbdata[effsave],tbl_twdbdata[Year],2020,tbl_twdbdata[utility],tbl_twdbdata[[#This Row],[utility]]))","v":995659641.60000002},60468,19627,7356,0,3248100542,924761421,3481647682,0,371160583,2738798810,{"$f":"tbl_twdbdata[[#This Row],[utility]]&tbl_twdbdata[[#This Row],[Year]]","v":"BEAUMONT2070"}]
[null,232,"BEDFORD","C",2016,49337,49337,0,{"$f":"IF(tbl_twdbdata[[#This Row],[Year]]=2016,0,tbl_twdbdata[[#This Row],[effsave]]-0.6*SUMIFS(tbl_twdbdata[effsave],tbl_twdbdata[Year],2020,tbl_twdbdata[utility],tbl_twdbdata[[#This Row],[utility]]))","v":0},13641,296,1177,0,1331335000,424480000,549149000,0,11274000,115522204,{"$f":"tbl_twdbdata[[#This Row],[utility]]&tbl_twdbdata[[#This Row],[Year]]","v":"BEDFORD2016"}]
[null,232,"BEDFORD","C",2020,43915,48435,166003697,{"$f":"IF(tbl_twdbdata[[#This Row],[Year]]=2016,0,tbl_twdbdata[[#This Row],[effsave]]-0.6*SUMIFS(tbl_twdbdata[effsave],tbl_twdbdata[Year],2020,tbl_twdbdata[utility],tbl_twdbdata[[#This Row],[utility]]))","v":66401478.799999997},15045,326,1298,0,1468364129,468170074,605670768,0,12434389,127412455,{"$f":"tbl_twdbdata[[#This Row],[utility]]&tbl_twdbdata[[#This Row],[Year]]","v":"BEDFORD2020"}]
[null,232,"BEDFORD","C",2030,43915,52345,266145535,{"$f":"IF(tbl_twdbdata[[#This Row],[Year]]=2016,0,tbl_twdbdata[[#This Row],[effsave]]-0.6*SUMIFS(tbl_twdbdata[effsave],tbl_twdbdata[Year],2020,tbl_twdbdata[utility],tbl_twdbdata[[#This Row],[utility]]))","v":166543316.80000001},16260,352,1403,0,1586900389,505963921,654564599,0,13438177,137698048,{"$f":"tbl_twdbdata[[#This Row],[utility]]&tbl_twdbdata[[#This Row],[Year]]","v":"BEDFORD2030"}]
[null,232,"BEDFORD","C",2040,43915,56255,354811536,{"$f":"IF(tbl_twdbdata[[#This Row],[Year]]=2016,0,tbl_twdbdata[[#This Row],[effsave]]-0.6*SUMIFS(tbl_twdbdata[effsave],tbl_twdbdata[Year],2020,tbl_twdbdata[utility],tbl_twdbdata[[#This Row],[utility]]))","v":255209317.80000001},17475,380,1516,0,1705436649,543757768,703458430,0,14441965,147983641,{"$f":"tbl_twdbdata[[#This Row],[utility]]&tbl_twdbdata[[#This Row],[Year]]","v":"BEDFORD2040"}]
[null,232,"BEDFORD","C",2050,43915,60166,416592392,{"$f":"IF(tbl_twdbdata[[#This Row],[Year]]=2016,0,tbl_twdbdata[[#This Row],[effsave]]-0.6*SUMIFS(tbl_twdbdata[effsave],tbl_twdbdata[Year],2020,tbl_twdbdata[utility],tbl_twdbdata[[#This Row],[utility]]))","v":316990173.80000001},18690,411,1638,0,1824003225,581561281,752364765,0,15446010,158271865,{"$f":"tbl_twdbdata[[#This Row],[utility]]&tbl_twdbdata[[#This Row],[Year]]","v":"BEDFORD2050"}]
[null,232,"BEDFORD","C",2060,43915,60166,422302146,{"$f":"IF(tbl_twdbdata[[#This Row],[Year]]=2016,0,tbl_twdbdata[[#This Row],[effsave]]-0.6*SUMIFS(tbl_twdbdata[effsave],tbl_twdbdata[Year],2020,tbl_twdbdata[utility],tbl_twdbdata[[#This Row],[utility]]))","v":322699927.80000001},18690,444,1770,0,1824003225,581561281,752364765,0,15446010,158271865,{"$f":"tbl_twdbdata[[#This Row],[utility]]&tbl_twdbdata[[#This Row],[Year]]","v":"BEDFORD2060"}]
[null,232,"BEDFORD","C",2070,43915,60166,422302146,{"$f":"IF(tbl_twdbdata[[#This Row],[Year]]=2016,0,tbl_twdbdata[[#This Row],[effsave]]-0.6*SUMIFS(tbl_twdbdata[effsave],tbl_twdbdata[Year],2020,tbl_twdbdata[utility],tbl_twdbdata[[#This Row],[utility]]))","v":322699927.80000001},18690,480,1913,0,1824003225,581561281,752364765,0,15446010,158271865,{"$f":"tbl_twdbdata[[#This Row],[utility]]&tbl_twdbdata[[#This Row],[Year]]","v":"BEDFORD2070"}]
[null,234,"BEEVILLE","N",2016,16266,16266,0,{"$f":"IF(tbl_twdbdata[[#This Row],[Year]]=2016,0,tbl_twdbdata[[#This Row],[effsave]]-0.6*SUMIFS(tbl_twdbdata[effsave],tbl_twdbdata[Year],2020,tbl_twdbdata[utility],tbl_twdbdata[[#This Row],[utility]]))","v":0},3858,206,640,0,256944400,53542400,481397500,0,1250000,36084261,{"$f":"tbl_twdbdata[[#This Row],[utility]]&tbl_twdbdata[[#This Row],[Year]]","v":"BEEVILLE2016"}]
[null,234,"BEEVILLE","N",2020,14198,15418,55262737,{"$f":"IF(tbl_twdbdata[[#This Row],[Year]]=2016,0,tbl_twdbdata[[#This Row],[effsave]]-0.6*SUMIFS(tbl_twdbdata[effsave],tbl_twdbdata[Year],2020,tbl_twdbdata[utility],tbl_twdbdata[[#This Row],[utility]]))","v":22105094.800000001},4190,224,695,0,279023014,58143170,522762829,0,1357409,39184895,{"$f":"tbl_twdbdata[[#This Row],[utility]]&tbl_twdbdata[[#This Row],[Year]]","v":"BEEVILLE2020"}]
[null,234,"BEEVILLE","N",2030,14198,16063,83313159,{"$f":"IF(tbl_twdbdata[[#This Row],[Year]]=2016,0,tbl_twdbdata[[#This Row],[effsave]]-0.6*SUMIFS(tbl_twdbdata[effsave],tbl_twdbdata[Year],2020,tbl_twdbdata[utility],tbl_twdbdata[[#This Row],[utility]]))","v":50155516.799999997},4365,233,724,0,290695724,60575544,544632205,0,1414195,40824165,{"$f":"tbl_twdbdata[[#This Row],[utility]]&tbl_twdbdata[[#This Row],[Year]]","v":"BEEVILLE2030"}]
[null,234,"BEEVILLE","N",2040,14198,16343,104868128,{"$f":"IF(tbl_twdbdata[[#This Row],[Year]]=2016,0,tbl_twdbdata[[#This Row],[effsave]]-0.6*SUMIFS(tbl_twdbdata[effsave],tbl_twdbdata[Year],2020,tbl_twdbdata[utility],tbl_twdbdata[[#This Row],[utility]]))","v":71710485.799999997},4441,243,754,0,295762947,61631458,554125888,0,1438846,41535786,{"$f":"tbl_twdbdata[[#This Row],[utility]]&tbl_twdbdata[[#This Row],[Year]]","v":"BEEVILLE2040"}]
[null,234,"BEEVILLE","N",2050,14198,16369,112563065,{"$f":"IF(tbl_twdbdata[[#This Row],[Year]]=2016,0,tbl_twdbdata[[#This Row],[effsave]]-0.6*SUMIFS(tbl_twdbdata[effsave],tbl_twdbdata[Year],2020,tbl_twdbdata[utility],tbl_twdbdata[[#This Row],[utility]]))","v":79405422.799999997},4448,253,785,0,296233475,61729507,555007445,0,1441135,41601865,{"$f":"tbl_twdbdata[[#This Row],[utility]]&tbl_twdbdata[[#This Row],[Year]]","v":"BEEVILLE2050"}]
[null,234,"BEEVILLE","N",2060,14198,16385,114407443,{"$f":"IF(tbl_twdbdata[[#This Row],[Year]]=2016,0,tbl_twdbdata[[#This Row],[effsave]]-0.6*SUMIFS(tbl_twdbdata[effsave],tbl_twdbdata[Year],2020,tbl_twdbdata[utility],tbl_twdbdata[[#This Row],[utility]]))","v":81249800.799999997},4452,264,818,0,296523031,61789845,555549942,0,1442544,41642529,{"$f":"tbl_twdbdata[[#This Row],[utility]]&tbl_twdbdata[[#This Row],[Year]]","v":"BEEVILLE2060"}]
[null,234,"BEEVILLE","N",2070,14198,16391,114509165,{"$f":"IF(tbl_twdbdata[[#This Row],[Year]]=2016,0,tbl_twdbdata[[#This Row],[effsave]]-0.6*SUMIFS(tbl_twdbdata[effsave],tbl_twdbdata[Year],2020,tbl_twdbdata[utility],tbl_twdbdata[[#This Row],[utility]]))","v":81351522.799999997},4454,275,852,0,296631614,61812472,555753378,0,1443072,41657778,{"$f":"tbl_twdbdata[[#This Row],[utility]]&tbl_twdbdata[[#This Row],[Year]]","v":"BEEVILLE2070"}]
[null,1329,"BELL COUNTY WCID 2","G",2016,1961,1961,0,{"$f":"IF(tbl_twdbdata[[#This Row],[Year]]=2016,0,tbl_twdbdata[[#This Row],[effsave]]-0.6*SUMIFS(tbl_twdbdata[effsave],tbl_twdbdata[Year],2020,tbl_twdbdata[utility],tbl_twdbdata[[#This Row],[utility]]))","v":0},711,85,22,0,46840190,4109740,10874200,0,1772849,9094940,{"$f":"tbl_twdbdata[[#This Row],[utility]]&tbl_twdbdata[[#This Row],[Year]]","v":"BELL COUNTY WCID 22016"}]
[null,1329,"BELL COUNTY WCID 2","G",2020,1961,2239,7722871,{"$f":"IF(tbl_twdbdata[[#This Row],[Year]]=2016,0,tbl_twdbdata[[#This Row],[effsave]]-0.6*SUMIFS(tbl_twdbdata[effsave],tbl_twdbdata[Year],2020,tbl_twdbdata[utility],tbl_twdbdata[[#This Row],[utility]]))","v":3089148.4000000004},808,97,25,0,53263172,4673290,12365330,0,2015952,10342088,{"$f":"tbl_twdbdata[[#This Row],[utility]]&tbl_twdbdata[[#This Row],[Year]]","v":"BELL COUNTY WCID 22020"}]
[null,1329,"BELL COUNTY WCID 2","G",2030,1961,2535,12111850,{"$f":"IF(tbl_twdbdata[[#This Row],[Year]]=2016,0,tbl_twdbdata[[#This Row],[effsave]]-0.6*SUMIFS(tbl_twdbdata[effsave],tbl_twdbdata[Year],2020,tbl_twdbdata[utility],tbl_twdbdata[[#This Row],[utility]]))","v":7478127.4000000004},915,110,28,0,60304663,5291108,14000049,0,2282465,11709331,{"$f":"tbl_twdbdata[[#This Row],[utility]]&tbl_twdbdata[[#This Row],[Year]]","v":"BELL COUNTY WCID 22030"}]
[null,1329,"BELL COUNTY WCID 2","G",2040,1961,2835,16070056,{"$f":"IF(tbl_twdbdata[[#This Row],[Year]]=2016,0,tbl_twdbdata[[#This Row],[effsave]]-0.6*SUMIFS(tbl_twdbdata[effsave],tbl_twdbdata[Year],2020,tbl_twdbdata[utility],tbl_twdbdata[[#This Row],[utility]]))","v":11436333.4},1023,125,32,0,67441310,5917275,15656860,0,2552579,13095051,{"$f":"tbl_twdbdata[[#This Row],[utility]]&tbl_twdbdata[[#This Row],[Year]]","v":"BELL COUNTY WCID 22040"}]
[null,1329,"BELL COUNTY WCID 2","G",2050,1961,3130,19021793,{"$f":"IF(tbl_twdbdata[[#This Row],[Year]]=2016,0,tbl_twdbdata[[#This Row],[effsave]]-0.6*SUMIFS(tbl_twdbdata[effsave],tbl_twdbdata[Year],2020,tbl_twdbdata[utility],tbl_twdbdata[[#This Row],[utility]]))","v":14388070.4},1129,142,36,0,74459012,6533006,17286057,0,2818191,14457675,{"$f":"tbl_twdbdata[[#This Row],[utility]]&tbl_twdbdata[[#This Row],[Year]]","v":"BELL COUNTY WCID 22050"}]
[null,1329,"BELL COUNTY WCID 2","G",2060,1961,3419,21127540,{"$f":"IF(tbl_twdbdata[[#This Row],[Year]]=2016,0,tbl_twdbdata[[#This Row],[effsave]]-0.6*SUMIFS(tbl_twdbdata[effsave],tbl_twdbdata[Year],2020,tbl_twdbdata[utility],tbl_twdbdata[[#This Row],[utility]]))","v":16493817.4},1233,161,40,0,81333981,7136213,18882118,0,3078401,15792585,{"$f":"tbl_twdbdata[[#This Row],[utility]]&tbl_twdbdata[[#This Row],[Year]]","v":"BELL COUNTY WCID 22060"}]
[null,1329,"BELL COUNTY WCID 2","G",2070,1961,3704,22969800,{"$f":"IF(tbl_twdbdata[[#This Row],[Year]]=2016,0,tbl_twdbdata[[#This Row],[effsave]]-0.6*SUMIFS(tbl_twdbdata[effsave],tbl_twdbdata[Year],2020,tbl_twdbdata[utility],tbl_twdbdata[[#This Row],[utility]]))","v":18336077.399999999},1336,182,46,0,88113795,7731071,20456088,0,3335009,17109019,{"$f":"tbl_twdbdata[[#This Row],[utility]]&tbl_twdbdata[[#This Row],[Year]]","v":"BELL COUNTY WCID 22070"}]
[null,235,"BELL MILAM FALLS WSC","G",2016,5790,5790,0,{"$f":"IF(tbl_twdbdata[[#This Row],[Year]]=2016,0,tbl_twdbdata[[#This Row],[effsave]]-0.6*SUMIFS(tbl_twdbdata[effsave],tbl_twdbdata[Year],2020,tbl_twdbdata[utility],tbl_twdbdata[[#This Row],[utility]]))","v":0},1930,0,0,0,153482300,0,0,0,2966746,80890652,{"$f":"tbl_twdbdata[[#This Row],[utility]]&tbl_twdbdata[[#This Row],[Year]]","v":"BELL MILAM FALLS WSC2016"}]
[null,235,"BELL MILAM FALLS WSC","G",2020,4404,5199,16566354,{"$f":"IF(tbl_twdbdata[[#This Row],[Year]]=2016,0,tbl_twdbdata[[#This Row],[effsave]]-0.6*SUMIFS(tbl_twdbdata[effsave],tbl_twdbdata[Year],2020,tbl_twdbdata[utility],tbl_twdbdata[[#This Row],[utility]]))","v":6626541.5999999996},2278,0,0,0,181188574,0,0,0,3502296,95492847,{"$f":"tbl_twdbdata[[#This Row],[utility]]&tbl_twdbdata[[#This Row],[Year]]","v":"BELL MILAM FALLS WSC2020"}]
[null,235,"BELL MILAM FALLS WSC","G",2030,4404,5596,24755585,{"$f":"IF(tbl_twdbdata[[#This Row],[Year]]=2016,0,tbl_twdbdata[[#This Row],[effsave]]-0.6*SUMIFS(tbl_twdbdata[effsave],tbl_twdbdata[Year],2020,tbl_twdbdata[utility],tbl_twdbdata[[#This Row],[utility]]))","v":14815772.6},2452,0,0,0,195024285,0,0,0,3769734,102784761,{"$f":"tbl_twdbdata[[#This Row],[utility]]&tbl_twdbdata[[#This Row],[Year]]","v":"BELL MILAM FALLS WSC2030"}]
[null,235,"BELL MILAM FALLS WSC","G",2040,4404,5931,31368169,{"$f":"IF(tbl_twdbdata[[#This Row],[Year]]=2016,0,tbl_twdbdata[[#This Row],[effsave]]-0.6*SUMIFS(tbl_twdbdata[effsave],tbl_twdbdata[Year],2020,tbl_twdbdata[utility],tbl_twdbdata[[#This Row],[utility]]))","v":21428356.600000001},2599,0,0,0,206699256,0,0,0,3995406,108937887,{"$f":"tbl_twdbdata[[#This Row],[utility]]&tbl_twdbdata[[#This Row],[Year]]","v":"BELL MILAM FALLS WSC2040"}]
[null,235,"BELL MILAM FALLS WSC","G",2050,4404,6238,35837934,{"$f":"IF(tbl_twdbdata[[#This Row],[Year]]=2016,0,tbl_twdbdata[[#This Row],[effsave]]-0.6*SUMIFS(tbl_twdbdata[effsave],tbl_twdbdata[Year],2020,tbl_twdbdata[utility],tbl_twdbdata[[#This Row],[utility]]))","v":25898121.600000001},2734,0,0,0,217398408,0,0,0,4202216,114576722,{"$f":"tbl_twdbdata[[#This Row],[utility]]&tbl_twdbdata[[#This Row],[Year]]","v":"BELL MILAM FALLS WSC2050"}]
[null,235,"BELL MILAM FALLS WSC","G",2060,4404,6611,38753021,{"$f":"IF(tbl_twdbdata[[#This Row],[Year]]=2016,0,tbl_twdbdata[[#This Row],[effsave]]-0.6*SUMIFS(tbl_twdbdata[effsave],tbl_twdbdata[Year],2020,tbl_twdbdata[utility],tbl_twdbdata[[#This Row],[utility]]))","v":28813208.600000001},2897,0,0,0,230397704,0,0,0,4453487,121427815,{"$f":"tbl_twdbdata[[#This Row],[utility]]&tbl_twdbdata[[#This Row],[Year]]","v":"BELL MILAM FALLS WSC2060"}]
[null,235,"BELL MILAM FALLS WSC","G",2070,4404,6982,41080692,{"$f":"IF(tbl_twdbdata[[#This Row],[Year]]=2016,0,tbl_twdbdata[[#This Row],[effsave]]-0.6*SUMIFS(tbl_twdbdata[effsave],tbl_twdbdata[Year],2020,tbl_twdbdata[utility],tbl_twdbdata[[#This Row],[utility]]))","v":31140879.600000001},3060,0,0,0,243327298,0,0,0,4703410,128242173,{"$f":"tbl_twdbdata[[#This Row],[utility]]&tbl_twdbdata[[#This Row],[Year]]","v":"BELL MILAM FALLS WSC2070"}]
[null,236,"BELLAIRE","H",2016,17849,17849,0,{"$f":"IF(tbl_twdbdata[[#This Row],[Year]]=2016,0,tbl_twdbdata[[#This Row],[effsave]]-0.6*SUMIFS(tbl_twdbdata[effsave],tbl_twdbdata[Year],2020,tbl_twdbdata[utility],tbl_twdbdata[[#This Row],[utility]]))","v":0},6227,1,310,1041,668273185,2522795,128467449,191393958,13936718,98295342,{"$f":"tbl_twdbdata[[#This Row],[utility]]&tbl_twdbdata[[#This Row],[Year]]","v":"BELLAIRE2016"}]
[null,236,"BELLAIRE","H",2020,17849,18921,61119560,{"$f":"IF(tbl_twdbdata[[#This Row],[Year]]=2016,0,tbl_twdbdata[[#This Row],[effsave]]-0.6*SUMIFS(tbl_twdbdata[effsave],tbl_twdbdata[Year],2020,tbl_twdbdata[utility],tbl_twdbdata[[#This Row],[utility]]))","v":24447824},6601,1,329,1104,708409263,2674313,136183125,202888962,14773749,104198900,{"$f":"tbl_twdbdata[[#This Row],[utility]]&tbl_twdbdata[[#This Row],[Year]]","v":"BELLAIRE2020"}]
[null,236,"BELLAIRE","H",2030,17849,20564,98251707,{"$f":"IF(tbl_twdbdata[[#This Row],[Year]]=2016,0,tbl_twdbdata[[#This Row],[effsave]]-0.6*SUMIFS(tbl_twdbdata[effsave],tbl_twdbdata[Year],2020,tbl_twdbdata[utility],tbl_twdbdata[[#This Row],[utility]]))","v":61579971},7174,1,358,1200,769923793,2906536,148008550,220506771,16056624,113246984,{"$f":"tbl_twdbdata[[#This Row],[utility]]&tbl_twdbdata[[#This Row],[Year]]","v":"BELLAIRE2030"}]
[null,236,"BELLAIRE","H",2040,17849,22361,131975740,{"$f":"IF(tbl_twdbdata[[#This Row],[Year]]=2016,0,tbl_twdbdata[[#This Row],[effsave]]-0.6*SUMIFS(tbl_twdbdata[effsave],tbl_twdbdata[Year],2020,tbl_twdbdata[utility],tbl_twdbdata[[#This Row],[utility]]))","v":95304004},7801,1,389,1304,837204140,3160526,160942384,239775915,17459744,123143154,{"$f":"tbl_twdbdata[[#This Row],[utility]]&tbl_twdbdata[[#This Row],[Year]]","v":"BELLAIRE2040"}]
[null,236,"BELLAIRE","H",2050,17849,24315,157264557,{"$f":"IF(tbl_twdbdata[[#This Row],[Year]]=2016,0,tbl_twdbdata[[#This Row],[effsave]]-0.6*SUMIFS(tbl_twdbdata[effsave],tbl_twdbdata[Year],2020,tbl_twdbdata[utility],tbl_twdbdata[[#This Row],[utility]]))","v":120592821},8483,1,423,1417,910362625,3436706,175006219,260728562,18985451,133903930,{"$f":"tbl_twdbdata[[#This Row],[utility]]&tbl_twdbdata[[#This Row],[Year]]","v":"BELLAIRE2050"}]
[null,236,"BELLAIRE","H",2060,17849,26448,174246036,{"$f":"IF(tbl_twdbdata[[#This Row],[Year]]=2016,0,tbl_twdbdata[[#This Row],[effsave]]-0.6*SUMIFS(tbl_twdbdata[effsave],tbl_twdbdata[Year],2020,tbl_twdbdata[utility],tbl_twdbdata[[#This Row],[utility]]))","v":137574300},9227,1,460,1540,990222937,3738186,190358399,283600617,20650924,145650468,{"$f":"tbl_twdbdata[[#This Row],[utility]]&tbl_twdbdata[[#This Row],[Year]]","v":"BELLAIRE2060"}]
[null,236,"BELLAIRE","H",2070,17849,28776,190423741,{"$f":"IF(tbl_twdbdata[[#This Row],[Year]]=2016,0,tbl_twdbdata[[#This Row],[effsave]]-0.6*SUMIFS(tbl_twdbdata[effsave],tbl_twdbdata[Year],2020,tbl_twdbdata[utility],tbl_twdbdata[[#This Row],[utility]]))","v":153752005},10039,1,500,1674,1077384121,4067228,207114084,308563648,22468655,158470881,{"$f":"tbl_twdbdata[[#This Row],[utility]]&tbl_twdbdata[[#This Row],[Year]]","v":"BELLAIRE2070"}]
[null,237,"BELLMEAD","G",2016,9900,9900,0,{"$f":"IF(tbl_twdbdata[[#This Row],[Year]]=2016,0,tbl_twdbdata[[#This Row],[effsave]]-0.6*SUMIFS(tbl_twdbdata[effsave],tbl_twdbdata[Year],2020,tbl_twdbdata[utility],tbl_twdbdata[[#This Row],[utility]]))","v":0},3051,34,263,31,194568700,21487200,63076700,9787000,5905132,177585795,{"$f":"tbl_twdbdata[[#This Row],[utility]]&tbl_twdbdata[[#This Row],[Year]]","v":"BELLMEAD2016"}]
[null,237,"BELLMEAD","G",2020,9900,10398,34574910,{"$f":"IF(tbl_twdbdata[[#This Row],[Year]]=2016,0,tbl_twdbdata[[#This Row],[effsave]]-0.6*SUMIFS(tbl_twdbdata[effsave],tbl_twdbdata[Year],2020,tbl_twdbdata[utility],tbl_twdbdata[[#This Row],[utility]]))","v":13829964},3125,35,270,32,199263798,22005703,64598791,10023168,6047628,181871082,{"$f":"tbl_twdbdata[[#This Row],[utility]]&tbl_twdbdata[[#This Row],[Year]]","v":"BELLMEAD2020"}]
[null,237,"BELLMEAD","G",2030,9900,11037,52410850,{"$f":"IF(tbl_twdbdata[[#This Row],[Year]]=2016,0,tbl_twdbdata[[#This Row],[effsave]]-0.6*SUMIFS(tbl_twdbdata[effsave],tbl_twdbdata[Year],2020,tbl_twdbdata[utility],tbl_twdbdata[[#This Row],[utility]]))","v":31665904},3317,37,286,34,211509381,23358044,68568653,10639133,6419280,193047810,{"$f":"tbl_twdbdata[[#This Row],[utility]]&tbl_twdbdata[[#This Row],[Year]]","v":"BELLMEAD2030"}]
[null,237,"BELLMEAD","G",2040,9900,11602,67205165,{"$f":"IF(tbl_twdbdata[[#This Row],[Year]]=2016,0,tbl_twdbdata[[#This Row],[effsave]]-0.6*SUMIFS(tbl_twdbdata[effsave],tbl_twdbdata[Year],2020,tbl_twdbdata[utility],tbl_twdbdata[[#This Row],[utility]]))","v":46460219},3487,39,303,36,222336852,24553776,72078781,11183766,6747892,202930207,{"$f":"tbl_twdbdata[[#This Row],[utility]]&tbl_twdbdata[[#This Row],[Year]]","v":"BELLMEAD2040"}]
[null,237,"BELLMEAD","G",2050,9900,12170,77158409,{"$f":"IF(tbl_twdbdata[[#This Row],[Year]]=2016,0,tbl_twdbdata[[#This Row],[effsave]]-0.6*SUMIFS(tbl_twdbdata[effsave],tbl_twdbdata[Year],2020,tbl_twdbdata[utility],tbl_twdbdata[[#This Row],[utility]]))","v":56413463},3658,41,321,38,233221814,25755857,75607548,11731290,7078249,212865077,{"$f":"tbl_twdbdata[[#This Row],[utility]]&tbl_twdbdata[[#This Row],[Year]]","v":"BELLMEAD2050"}]
[null,237,"BELLMEAD","G",2060,9900,12736,82187955,{"$f":"IF(tbl_twdbdata[[#This Row],[Year]]=2016,0,tbl_twdbdata[[#This Row],[effsave]]-0.6*SUMIFS(tbl_twdbdata[effsave],tbl_twdbdata[Year],2020,tbl_twdbdata[utility],tbl_twdbdata[[#This Row],[utility]]))","v":61443009},3828,44,341,40,244068449,26953705,79123889,12276887,7407443,222764965,{"$f":"tbl_twdbdata[[#This Row],[utility]]&tbl_twdbdata[[#This Row],[Year]]","v":"BELLMEAD2060"}]
[null,237,"BELLMEAD","G",2070,9900,13292,86018513,{"$f":"IF(tbl_twdbdata[[#This Row],[Year]]=2016,0,tbl_twdbdata[[#This Row],[effsave]]-0.6*SUMIFS(tbl_twdbdata[effsave],tbl_twdbdata[Year],2020,tbl_twdbdata[utility],tbl_twdbdata[[#This Row],[utility]]))","v":65273567},3995,47,362,42,254723447,28130390,82578104,12812844,7730821,232489943,{"$f":"tbl_twdbdata[[#This Row],[utility]]&tbl_twdbdata[[#This Row],[Year]]","v":"BELLMEAD2070"}]
[null,240,"BELTON","G",2016,21214,21214,0,{"$f":"IF(tbl_twdbdata[[#This Row],[Year]]=2016,0,tbl_twdbdata[[#This Row],[effsave]]-0.6*SUMIFS(tbl_twdbdata[effsave],tbl_twdbdata[Year],2020,tbl_twdbdata[utility],tbl_twdbdata[[#This Row],[utility]]))","v":0},5586,102,987,0,474720100,73255500,348608140,0,67415138,97920378,{"$f":"tbl_twdbdata[[#This Row],[utility]]&tbl_twdbdata[[#This Row],[Year]]","v":"BELTON2016"}]
[null,240,"BELTON","G",2020,21214,21753,74872738,{"$f":"IF(tbl_twdbdata[[#This Row],[Year]]=2016,0,tbl_twdbdata[[#This Row],[effsave]]-0.6*SUMIFS(tbl_twdbdata[effsave],tbl_twdbdata[Year],2020,tbl_twdbdata[utility],tbl_twdbdata[[#This Row],[utility]]))","v":29949095.200000003},5636,103,996,0,478969682,73911266,351728797,0,68018622,98796938,{"$f":"tbl_twdbdata[[#This Row],[utility]]&tbl_twdbdata[[#This Row],[Year]]","v":"BELTON2020"}]
[null,240,"BELTON","G",2030,21214,25571,121427729,{"$f":"IF(tbl_twdbdata[[#This Row],[Year]]=2016,0,tbl_twdbdata[[#This Row],[effsave]]-0.6*SUMIFS(tbl_twdbdata[effsave],tbl_twdbdata[Year],2020,tbl_twdbdata[utility],tbl_twdbdata[[#This Row],[utility]]))","v":76504086.200000003},6625,121,1171,0,563036535,86883877,413462835,0,79956980,116137383,{"$f":"tbl_twdbdata[[#This Row],[utility]]&tbl_twdbdata[[#This Row],[Year]]","v":"BELTON2030"}]
[null,240,"BELTON","G",2040,21214,29514,164174576,{"$f":"IF(tbl_twdbdata[[#This Row],[Year]]=2016,0,tbl_twdbdata[[#This Row],[effsave]]-0.6*SUMIFS(tbl_twdbdata[effsave],tbl_twdbdata[Year],2020,tbl_twdbdata[utility],tbl_twdbdata[[#This Row],[utility]]))","v":119250933.2},7647,142,1377,0,649855707,100281207,477218025,0,92286196,134045549,{"$f":"tbl_twdbdata[[#This Row],[utility]]&tbl_twdbdata[[#This Row],[Year]]","v":"BELTON2040"}]
[null,240,"BELTON","G",2050,21214,33433,199031664,{"$f":"IF(tbl_twdbdata[[#This Row],[Year]]=2016,0,tbl_twdbdata[[#This Row],[effsave]]-0.6*SUMIFS(tbl_twdbdata[effsave],tbl_twdbdata[Year],2020,tbl_twdbdata[utility],tbl_twdbdata[[#This Row],[utility]]))","v":154108021.19999999},8662,167,1619,0,736146434,113596991,540585154,0,104540367,151844712,{"$f":"tbl_twdbdata[[#This Row],[utility]]&tbl_twdbdata[[#This Row],[Year]]","v":"BELTON2050"}]
[null,240,"BELTON","G",2060,21214,37278,225459208,{"$f":"IF(tbl_twdbdata[[#This Row],[Year]]=2016,0,tbl_twdbdata[[#This Row],[effsave]]-0.6*SUMIFS(tbl_twdbdata[effsave],tbl_twdbdata[Year],2020,tbl_twdbdata[utility],tbl_twdbdata[[#This Row],[utility]]))","v":180535565.19999999},9658,196,1904,0,820807788,126661342,602755761,0,116563150,169307785,{"$f":"tbl_twdbdata[[#This Row],[utility]]&tbl_twdbdata[[#This Row],[Year]]","v":"BELTON2060"}]
[null,240,"BELTON","G",2070,21214,41063,249550117,{"$f":"IF(tbl_twdbdata[[#This Row],[Year]]=2016,0,tbl_twdbdata[[#This Row],[effsave]]-0.6*SUMIFS(tbl_twdbdata[effsave],tbl_twdbdata[Year],2020,tbl_twdbdata[utility],tbl_twdbdata[[#This Row],[utility]]))","v":204626474.19999999},10639,230,2238,0,904148028,139521828,663956216,0,128398321,186498352,{"$f":"tbl_twdbdata[[#This Row],[utility]]&tbl_twdbdata[[#This Row],[Year]]","v":"BELTON2070"}]
[null,242,"BENBROOK WATER AUTHORITY","C",2016,21530,21530,0,{"$f":"IF(tbl_twdbdata[[#This Row],[Year]]=2016,0,tbl_twdbdata[[#This Row],[effsave]]-0.6*SUMIFS(tbl_twdbdata[effsave],tbl_twdbdata[Year],2020,tbl_twdbdata[utility],tbl_twdbdata[[#This Row],[utility]]))","v":0},8059,2809,511,0,713087391,124094546,149885293,0,42048494,134963576,{"$f":"tbl_twdbdata[[#This Row],[utility]]&tbl_twdbdata[[#This Row],[Year]]","v":"BENBROOK WATER AUTHORITY2016"}]
[null,242,"BENBROOK WATER AUTHORITY","C",2020,21361,22323,77323524,{"$f":"IF(tbl_twdbdata[[#This Row],[Year]]=2016,0,tbl_twdbdata[[#This Row],[effsave]]-0.6*SUMIFS(tbl_twdbdata[effsave],tbl_twdbdata[Year],2020,tbl_twdbdata[utility],tbl_twdbdata[[#This Row],[utility]]))","v":30929409.600000001},8422,2936,534,0,745201528,129683187,156635429,0,43942162,141041707,{"$f":"tbl_twdbdata[[#This Row],[utility]]&tbl_twdbdata[[#This Row],[Year]]","v":"BENBROOK WATER AUTHORITY2020"}]
[null,242,"BENBROOK WATER AUTHORITY","C",2030,21361,24803,126200144,{"$f":"IF(tbl_twdbdata[[#This Row],[Year]]=2016,0,tbl_twdbdata[[#This Row],[effsave]]-0.6*SUMIFS(tbl_twdbdata[effsave],tbl_twdbdata[Year],2020,tbl_twdbdata[utility],tbl_twdbdata[[#This Row],[utility]]))","v":79806029.599999994},9358,3262,593,0,827990570,144090494,174037027,0,48823968,156710902,{"$f":"tbl_twdbdata[[#This Row],[utility]]&tbl_twdbdata[[#This Row],[Year]]","v":"BENBROOK WATER AUTHORITY2030"}]
[null,242,"BENBROOK WATER AUTHORITY","C",2040,21361,27284,169595980,{"$f":"IF(tbl_twdbdata[[#This Row],[Year]]=2016,0,tbl_twdbdata[[#This Row],[effsave]]-0.6*SUMIFS(tbl_twdbdata[effsave],tbl_twdbdata[Year],2020,tbl_twdbdata[utility],tbl_twdbdata[[#This Row],[utility]]))","v":123201865.59999999},10294,3624,659,0,910812995,158503610,191445642,0,53707743,172386415,{"$f":"tbl_twdbdata[[#This Row],[utility]]&tbl_twdbdata[[#This Row],[Year]]","v":"BENBROOK WATER AUTHORITY2040"}]
[null,242,"BENBROOK WATER AUTHORITY","C",2050,21361,30749,209428364,{"$f":"IF(tbl_twdbdata[[#This Row],[Year]]=2016,0,tbl_twdbdata[[#This Row],[effsave]]-0.6*SUMIFS(tbl_twdbdata[effsave],tbl_twdbdata[Year],2020,tbl_twdbdata[utility],tbl_twdbdata[[#This Row],[utility]]))","v":163034249.59999999},11601,4027,732,0,1026483975,178633173,215758761,0,60528493,194279060,{"$f":"tbl_twdbdata[[#This Row],[utility]]&tbl_twdbdata[[#This Row],[Year]]","v":"BENBROOK WATER AUTHORITY2050"}]
[null,242,"BENBROOK WATER AUTHORITY","C",2060,21361,34213,239265194,{"$f":"IF(tbl_twdbdata[[#This Row],[Year]]=2016,0,tbl_twdbdata[[#This Row],[effsave]]-0.6*SUMIFS(tbl_twdbdata[effsave],tbl_twdbdata[Year],2020,tbl_twdbdata[utility],tbl_twdbdata[[#This Row],[utility]]))","v":192871079.59999999},12908,4474,813,0,1142121573,198756927,240064863,0,67347274,216165387,{"$f":"tbl_twdbdata[[#This Row],[utility]]&tbl_twdbdata[[#This Row],[Year]]","v":"BENBROOK WATER AUTHORITY2060"}]
[null,242,"BENBROOK WATER AUTHORITY","C",2070,21361,34213,239265194,{"$f":"IF(tbl_twdbdata[[#This Row],[Year]]=2016,0,tbl_twdbdata[[#This Row],[effsave]]-0.6*SUMIFS(tbl_twdbdata[effsave],tbl_twdbdata[Year],2020,tbl_twdbdata[utility],tbl_twdbdata[[#This Row],[utility]]))","v":192871079.59999999},12908,4971,903,0,1142121573,198756927,240064863,0,67347274,216165387,{"$f":"tbl_twdbdata[[#This Row],[utility]]&tbl_twdbdata[[#This Row],[Year]]","v":"BENBROOK WATER AUTHORITY2070"}]
[null,243,"BENTON CITY WSC","L",2016,17217,17217,0,{"$f":"IF(tbl_twdbdata[[#This Row],[Year]]=2016,0,tbl_twdbdata[[#This Row],[effsave]]-0.6*SUMIFS(tbl_twdbdata[effsave],tbl_twdbdata[Year],2020,tbl_twdbdata[utility],tbl_twdbdata[[#This Row],[utility]]))","v":0},5710,0,22,0,420816800,0,10866100,0,138208755,51286583,{"$f":"tbl_twdbdata[[#This Row],[utility]]&tbl_twdbdata[[#This Row],[Year]]","v":"BENTON CITY WSC2016"}]
[null,243,"BENTON CITY WSC","L",2020,14594,16047,43928663,{"$f":"IF(tbl_twdbdata[[#This Row],[Year]]=2016,0,tbl_twdbdata[[#This Row],[effsave]]-0.6*SUMIFS(tbl_twdbdata[effsave],tbl_twdbdata[Year],2020,tbl_twdbdata[utility],tbl_twdbdata[[#This Row],[utility]]))","v":17571465.199999999},6278,0,24,0,462713937,0,11947945,0,151969021,56392750,{"$f":"tbl_twdbdata[[#This Row],[utility]]&tbl_twdbdata[[#This Row],[Year]]","v":"BENTON CITY WSC2020"}]
[null,243,"BENTON CITY WSC","L",2030,14594,18763,68279495,{"$f":"IF(tbl_twdbdata[[#This Row],[Year]]=2016,0,tbl_twdbdata[[#This Row],[effsave]]-0.6*SUMIFS(tbl_twdbdata[effsave],tbl_twdbdata[Year],2020,tbl_twdbdata[utility],tbl_twdbdata[[#This Row],[utility]]))","v":41922297.200000003},7341,0,28,0,541029576,0,13970168,0,177690206,65937382,{"$f":"tbl_twdbdata[[#This Row],[utility]]&tbl_twdbdata[[#This Row],[Year]]","v":"BENTON CITY WSC2030"}]
[null,243,"BENTON CITY WSC","L",2040,14594,21168,87152890,{"$f":"IF(tbl_twdbdata[[#This Row],[Year]]=2016,0,tbl_twdbdata[[#This Row],[effsave]]-0.6*SUMIFS(tbl_twdbdata[effsave],tbl_twdbdata[Year],2020,tbl_twdbdata[utility],tbl_twdbdata[[#This Row],[utility]]))","v":60795692.200000003},8282,0,33,0,610377555,0,15760833,0,200466145,74389090,{"$f":"tbl_twdbdata[[#This Row],[utility]]&tbl_twdbdata[[#This Row],[Year]]","v":"BENTON CITY WSC2040"}]
[null,243,"BENTON CITY WSC","L",2050,14594,23415,102386771,{"$f":"IF(tbl_twdbdata[[#This Row],[Year]]=2016,0,tbl_twdbdata[[#This Row],[effsave]]-0.6*SUMIFS(tbl_twdbdata[effsave],tbl_twdbdata[Year],2020,tbl_twdbdata[utility],tbl_twdbdata[[#This Row],[utility]]))","v":76029573.200000003},9161,0,39,0,675169617,0,17433858,0,221745785,82285551,{"$f":"tbl_twdbdata[[#This Row],[utility]]&tbl_twdbdata[[#This Row],[Year]]","v":"BENTON CITY WSC2050"}]
[null,243,"BENTON CITY WSC","L",2060,14594,25492,113795013,{"$f":"IF(tbl_twdbdata[[#This Row],[Year]]=2016,0,tbl_twdbdata[[#This Row],[effsave]]-0.6*SUMIFS(tbl_twdbdata[effsave],tbl_twdbdata[Year],2020,tbl_twdbdata[utility],tbl_twdbdata[[#This Row],[utility]]))","v":87437815.200000003},9974,0,46,0,735059743,0,18980308,0,241415484,89584594,{"$f":"tbl_twdbdata[[#This Row],[utility]]&tbl_twdbdata[[#This Row],[Year]]","v":"BENTON CITY WSC2060"}]
[null,243,"BENTON CITY WSC","L",2070,14594,27380,122922510,{"$f":"IF(tbl_twdbdata[[#This Row],[Year]]=2016,0,tbl_twdbdata[[#This Row],[effsave]]-0.6*SUMIFS(tbl_twdbdata[effsave],tbl_twdbdata[Year],2020,tbl_twdbdata[utility],tbl_twdbdata[[#This Row],[utility]]))","v":96565312.200000003},10713,0,54,0,789500069,0,20386036,0,259295306,96219449,{"$f":"tbl_twdbdata[[#This Row],[utility]]&tbl_twdbdata[[#This Row],[Year]]","v":"BENTON CITY WSC2070"}]
[null,248,"BETHESDA WSC","G",2016,30900,30900,0,{"$f":"IF(tbl_twdbdata[[#This Row],[Year]]=2016,0,tbl_twdbdata[[#This Row],[effsave]]-0.6*SUMIFS(tbl_twdbdata[effsave],tbl_twdbdata[Year],2020,tbl_twdbdata[utility],tbl_twdbdata[[#This Row],[utility]]))","v":0},10092,6,202,0,1062101000,23393000,52695000,0,15977900,124065137,{"$f":"tbl_twdbdata[[#This Row],[utility]]&tbl_twdbdata[[#This Row],[Year]]","v":"BETHESDA WSC2016"}]
[null,248,"BETHESDA WSC","G",2020,26935,28794,103416530,{"$f":"IF(tbl_twdbdata[[#This Row],[Year]]=2016,0,tbl_twdbdata[[#This Row],[effsave]]-0.6*SUMIFS(tbl_twdbdata[effsave],tbl_twdbdata[Year],2020,tbl_twdbdata[utility],tbl_twdbdata[[#This Row],[utility]]))","v":41366612},10789,6,216,0,1135405094,25007538,56331904,0,17080663,132627865,{"$f":"tbl_twdbdata[[#This Row],[utility]]&tbl_twdbdata[[#This Row],[Year]]","v":"BETHESDA WSC2020"}]
[null,248,"BETHESDA WSC","G",2030,26935,32909,166243104,{"$f":"IF(tbl_twdbdata[[#This Row],[Year]]=2016,0,tbl_twdbdata[[#This Row],[effsave]]-0.6*SUMIFS(tbl_twdbdata[effsave],tbl_twdbdata[Year],2020,tbl_twdbdata[utility],tbl_twdbdata[[#This Row],[utility]]))","v":104193186},12331,7,247,0,1297667786,28581408,64382394,0,19521690,151581941,{"$f":"tbl_twdbdata[[#This Row],[utility]]&tbl_twdbdata[[#This Row],[Year]]","v":"BETHESDA WSC2030"}]
[null,248,"BETHESDA WSC","G",2040,26935,37099,222480848,{"$f":"IF(tbl_twdbdata[[#This Row],[Year]]=2016,0,tbl_twdbdata[[#This Row],[effsave]]-0.6*SUMIFS(tbl_twdbdata[effsave],tbl_twdbdata[Year],2020,tbl_twdbdata[utility],tbl_twdbdata[[#This Row],[utility]]))","v":160430930},13901,8,282,0,1462887878,32220416,72579612,0,22007207,170881474,{"$f":"tbl_twdbdata[[#This Row],[utility]]&tbl_twdbdata[[#This Row],[Year]]","v":"BETHESDA WSC2040"}]
[null,248,"BETHESDA WSC","G",2050,26935,41531,268159437,{"$f":"IF(tbl_twdbdata[[#This Row],[Year]]=2016,0,tbl_twdbdata[[#This Row],[effsave]]-0.6*SUMIFS(tbl_twdbdata[effsave],tbl_twdbdata[Year],2020,tbl_twdbdata[utility],tbl_twdbdata[[#This Row],[utility]]))","v":206109519},15562,9,322,0,1637650515,36069600,81250273,0,24636279,191295682,{"$f":"tbl_twdbdata[[#This Row],[utility]]&tbl_twdbdata[[#This Row],[Year]]","v":"BETHESDA WSC2050"}]
[null,248,"BETHESDA WSC","G",2060,26935,46215,303126496,{"$f":"IF(tbl_twdbdata[[#This Row],[Year]]=2016,0,tbl_twdbdata[[#This Row],[effsave]]-0.6*SUMIFS(tbl_twdbdata[effsave],tbl_twdbdata[Year],2020,tbl_twdbdata[utility],tbl_twdbdata[[#This Row],[utility]]))","v":241076578},17317,10,368,0,1822350017,40137646,90413941,0,27414838,212870625,{"$f":"tbl_twdbdata[[#This Row],[utility]]&tbl_twdbdata[[#This Row],[Year]]","v":"BETHESDA WSC2060"}]
[null,248,"BETHESDA WSC","G",2070,26935,51113,336931785,{"$f":"IF(tbl_twdbdata[[#This Row],[Year]]=2016,0,tbl_twdbdata[[#This Row],[effsave]]-0.6*SUMIFS(tbl_twdbdata[effsave],tbl_twdbdata[Year],2020,tbl_twdbdata[utility],tbl_twdbdata[[#This Row],[utility]]))","v":274881867},19152,11,421,0,2015487968,44391550,99996273,0,30320342,235431272,{"$f":"tbl_twdbdata[[#This Row],[utility]]&tbl_twdbdata[[#This Row],[Year]]","v":"BETHESDA WSC2070"}]
[null,255,"BIG SPRING","F",2016,28125,28125,0,{"$f":"IF(tbl_twdbdata[[#This Row],[Year]]=2016,0,tbl_twdbdata[[#This Row],[effsave]]-0.6*SUMIFS(tbl_twdbdata[effsave],tbl_twdbdata[Year],2020,tbl_twdbdata[utility],tbl_twdbdata[[#This Row],[utility]]))","v":0},7375,32,1170,0,528173000,43018000,1076452000,0,5632272,52148144,{"$f":"tbl_twdbdata[[#This Row],[utility]]&tbl_twdbdata[[#This Row],[Year]]","v":"BIG SPRING2016"}]
[null,255,"BIG SPRING","F",2020,27397,29443,98869594,{"$f":"IF(tbl_twdbdata[[#This Row],[Year]]=2016,0,tbl_twdbdata[[#This Row],[effsave]]-0.6*SUMIFS(tbl_twdbdata[effsave],tbl_twdbdata[Year],2020,tbl_twdbdata[utility],tbl_twdbdata[[#This Row],[utility]]))","v":39547837.600000001},7926,34,1258,0,567616806,46230572,1156841122,0,6052888,56042552,{"$f":"tbl_twdbdata[[#This Row],[utility]]&tbl_twdbdata[[#This Row],[Year]]","v":"BIG SPRING2020"}]
[null,255,"BIG SPRING","F",2030,27397,30727,145575308,{"$f":"IF(tbl_twdbdata[[#This Row],[Year]]=2016,0,tbl_twdbdata[[#This Row],[effsave]]-0.6*SUMIFS(tbl_twdbdata[effsave],tbl_twdbdata[Year],2020,tbl_twdbdata[utility],tbl_twdbdata[[#This Row],[utility]]))","v":86253551.599999994},8272,35,1312,0,592370397,48246673,1207290600,0,6316853,58486550,{"$f":"tbl_twdbdata[[#This Row],[utility]]&tbl_twdbdata[[#This Row],[Year]]","v":"BIG SPRING2030"}]
[null,255,"BIG SPRING","F",2040,27397,31253,180007904,{"$f":"IF(tbl_twdbdata[[#This Row],[Year]]=2016,0,tbl_twdbdata[[#This Row],[effsave]]-0.6*SUMIFS(tbl_twdbdata[effsave],tbl_twdbdata[Year],2020,tbl_twdbdata[utility],tbl_twdbdata[[#This Row],[utility]]))","v":120686147.59999999},8414,37,1369,0,602510887,49072583,1227957598,0,6424988,59487752,{"$f":"tbl_twdbdata[[#This Row],[utility]]&tbl_twdbdata[[#This Row],[Year]]","v":"BIG SPRING2040"}]
[null,255,"BIG SPRING","F",2050,27397,31253,197118922,{"$f":"IF(tbl_twdbdata[[#This Row],[Year]]=2016,0,tbl_twdbdata[[#This Row],[effsave]]-0.6*SUMIFS(tbl_twdbdata[effsave],tbl_twdbdata[Year],2020,tbl_twdbdata[utility],tbl_twdbdata[[#This Row],[utility]]))","v":137797165.59999999},8414,39,1429,0,602510887,49072583,1227957598,0,6424988,59487752,{"$f":"tbl_twdbdata[[#This Row],[utility]]&tbl_twdbdata[[#This Row],[Year]]","v":"BIG SPRING2050"}]
[null,255,"BIG SPRING","F",2060,27397,31253,200427052,{"$f":"IF(tbl_twdbdata[[#This Row],[Year]]=2016,0,tbl_twdbdata[[#This Row],[effsave]]-0.6*SUMIFS(tbl_twdbdata[effsave],tbl_twdbdata[Year],2020,tbl_twdbdata[utility],tbl_twdbdata[[#This Row],[utility]]))","v":141105295.59999999},8414,41,1491,0,602510887,49072583,1227957598,0,6424988,59487752,{"$f":"tbl_twdbdata[[#This Row],[utility]]&tbl_twdbdata[[#This Row],[Year]]","v":"BIG SPRING2060"}]
[null,255,"BIG SPRING","F",2070,27397,31253,200541125,{"$f":"IF(tbl_twdbdata[[#This Row],[Year]]=2016,0,tbl_twdbdata[[#This Row],[effsave]]-0.6*SUMIFS(tbl_twdbdata[effsave],tbl_twdbdata[Year],2020,tbl_twdbdata[utility],tbl_twdbdata[[#This Row],[utility]]))","v":141219368.59999999},8414,43,1555,0,602510887,49072583,1227957598,0,6424988,59487752,{"$f":"tbl_twdbdata[[#This Row],[utility]]&tbl_twdbdata[[#This Row],[Year]]","v":"BIG SPRING2070"}]
[null,6222,"BIROME WSC","G",2016,1506,1506,0,{"$f":"IF(tbl_twdbdata[[#This Row],[Year]]=2016,0,tbl_twdbdata[[#This Row],[effsave]]-0.6*SUMIFS(tbl_twdbdata[effsave],tbl_twdbdata[Year],2020,tbl_twdbdata[utility],tbl_twdbdata[[#This Row],[utility]]))","v":0},502,0,0,0,29267493,0,0,0,null,null,{"$f":"tbl_twdbdata[[#This Row],[utility]]&tbl_twdbdata[[#This Row],[Year]]","v":"BIROME WSC2016"}]
[null,6222,"BIROME WSC","G",2020,1121,1310,4556770,{"$f":"IF(tbl_twdbdata[[#This Row],[Year]]=2016,0,tbl_twdbdata[[#This Row],[effsave]]-0.6*SUMIFS(tbl_twdbdata[effsave],tbl_twdbdata[Year],2020,tbl_twdbdata[utility],tbl_twdbdata[[#This Row],[utility]]))","v":1822708},587,0,0,0,34201977,0,0,0,null,null,{"$f":"tbl_twdbdata[[#This Row],[utility]]&tbl_twdbdata[[#This Row],[Year]]","v":"BIROME WSC2020"}]
[null,6222,"BIROME WSC","G",2030,1121,1396,6868599,{"$f":"IF(tbl_twdbdata[[#This Row],[Year]]=2016,0,tbl_twdbdata[[#This Row],[effsave]]-0.6*SUMIFS(tbl_twdbdata[effsave],tbl_twdbdata[Year],2020,tbl_twdbdata[utility],tbl_twdbdata[[#This Row],[utility]]))","v":4134537},626,0,0,0,36447298,0,0,0,null,null,{"$f":"tbl_twdbdata[[#This Row],[utility]]&tbl_twdbdata[[#This Row],[Year]]","v":"BIROME WSC2030"}]
[null,6222,"BIROME WSC","G",2040,1121,1453,8501430,{"$f":"IF(tbl_twdbdata[[#This Row],[Year]]=2016,0,tbl_twdbdata[[#This Row],[effsave]]-0.6*SUMIFS(tbl_twdbdata[effsave],tbl_twdbdata[Year],2020,tbl_twdbdata[utility],tbl_twdbdata[[#This Row],[utility]]))","v":5767368},652,0,0,0,37935476,0,0,0,null,null,{"$f":"tbl_twdbdata[[#This Row],[utility]]&tbl_twdbdata[[#This Row],[Year]]","v":"BIROME WSC2040"}]
[null,6222,"BIROME WSC","G",2050,1121,1511,9397816,{"$f":"IF(tbl_twdbdata[[#This Row],[Year]]=2016,0,tbl_twdbdata[[#This Row],[effsave]]-0.6*SUMIFS(tbl_twdbdata[effsave],tbl_twdbdata[Year],2020,tbl_twdbdata[utility],tbl_twdbdata[[#This Row],[utility]]))","v":6663754},678,0,0,0,39449762,0,0,0,null,null,{"$f":"tbl_twdbdata[[#This Row],[utility]]&tbl_twdbdata[[#This Row],[Year]]","v":"BIROME WSC2050"}]
[null,6222,"BIROME WSC","G",2060,1121,1558,9849364,{"$f":"IF(tbl_twdbdata[[#This Row],[Year]]=2016,0,tbl_twdbdata[[#This Row],[effsave]]-0.6*SUMIFS(tbl_twdbdata[effsave],tbl_twdbdata[Year],2020,tbl_twdbdata[utility],tbl_twdbdata[[#This Row],[utility]]))","v":7115302},699,0,0,0,40676856,0,0,0,null,null,{"$f":"tbl_twdbdata[[#This Row],[utility]]&tbl_twdbdata[[#This Row],[Year]]","v":"BIROME WSC2060"}]
[null,6222,"BIROME WSC","G",2070,1121,1592,10099170,{"$f":"IF(tbl_twdbdata[[#This Row],[Year]]=2016,0,tbl_twdbdata[[#This Row],[effsave]]-0.6*SUMIFS(tbl_twdbdata[effsave],tbl_twdbdata[Year],2020,tbl_twdbdata[utility],tbl_twdbdata[[#This Row],[utility]]))","v":7365108},714,0,0,0,41564541,0,0,0,null,null,{"$f":"tbl_twdbdata[[#This Row],[utility]]&tbl_twdbdata[[#This Row],[Year]]","v":"BIROME WSC2070"}]
[null,258,"BISTONE MUNICIPAL WATER SUPPLY DISTRICT","G",2016,720,720,0,{"$f":"IF(tbl_twdbdata[[#This Row],[Year]]=2016,0,tbl_twdbdata[[#This Row],[effsave]]-0.6*SUMIFS(tbl_twdbdata[effsave],tbl_twdbdata[Year],2020,tbl_twdbdata[utility],tbl_twdbdata[[#This Row],[utility]]))","v":0},220,16,4,5,8403400,640100,793600,359500,17747768,44799810,{"$f":"tbl_twdbdata[[#This Row],[utility]]&tbl_twdbdata[[#This Row],[Year]]","v":"BISTONE MUNICIPAL WATER SUPPLY DISTRICT2016"}]
[null,258,"BISTONE MUNICIPAL WATER SUPPLY DISTRICT","G",2020,607,586,2042650,{"$f":"IF(tbl_twdbdata[[#This Row],[Year]]=2016,0,tbl_twdbdata[[#This Row],[effsave]]-0.6*SUMIFS(tbl_twdbdata[effsave],tbl_twdbdata[Year],2020,tbl_twdbdata[utility],tbl_twdbdata[[#This Row],[utility]]))","v":817060},212,15,4,5,8112673,617955,766144,347063,17133760,43249899,{"$f":"tbl_twdbdata[[#This Row],[utility]]&tbl_twdbdata[[#This Row],[Year]]","v":"BISTONE MUNICIPAL WATER SUPPLY DISTRICT2020"}]
[null,258,"BISTONE MUNICIPAL WATER SUPPLY DISTRICT","G",2030,607,615,3028168,{"$f":"IF(tbl_twdbdata[[#This Row],[Year]]=2016,0,tbl_twdbdata[[#This Row],[effsave]]-0.6*SUMIFS(tbl_twdbdata[effsave],tbl_twdbdata[Year],2020,tbl_twdbdata[utility],tbl_twdbdata[[#This Row],[utility]]))","v":1802578},222,16,4,5,8514153,648536,804059,364238,17981676,45390252,{"$f":"tbl_twdbdata[[#This Row],[utility]]&tbl_twdbdata[[#This Row],[Year]]","v":"BISTONE MUNICIPAL WATER SUPPLY DISTRICT2030"}]
[null,258,"BISTONE MUNICIPAL WATER SUPPLY DISTRICT","G",2040,607,635,3784886,{"$f":"IF(tbl_twdbdata[[#This Row],[Year]]=2016,0,tbl_twdbdata[[#This Row],[effsave]]-0.6*SUMIFS(tbl_twdbdata[effsave],tbl_twdbdata[Year],2020,tbl_twdbdata[utility],tbl_twdbdata[[#This Row],[utility]]))","v":2559296},229,17,4,5,8791036,669627,830207,376083,18566446,46866358,{"$f":"tbl_twdbdata[[#This Row],[utility]]&tbl_twdbdata[[#This Row],[Year]]","v":"BISTONE MUNICIPAL WATER SUPPLY DISTRICT2040"}]
[null,258,"BISTONE MUNICIPAL WATER SUPPLY DISTRICT","G",2050,607,665,4315651,{"$f":"IF(tbl_twdbdata[[#This Row],[Year]]=2016,0,tbl_twdbdata[[#This Row],[effsave]]-0.6*SUMIFS(tbl_twdbdata[effsave],tbl_twdbdata[Year],2020,tbl_twdbdata[utility],tbl_twdbdata[[#This Row],[utility]]))","v":3090061},240,18,4,5,9206361,701263,869429,393851,19443601,49080517,{"$f":"tbl_twdbdata[[#This Row],[utility]]&tbl_twdbdata[[#This Row],[Year]]","v":"BISTONE MUNICIPAL WATER SUPPLY DISTRICT2050"}]
[null,258,"BISTONE MUNICIPAL WATER SUPPLY DISTRICT","G",2060,607,690,4553448,{"$f":"IF(tbl_twdbdata[[#This Row],[Year]]=2016,0,tbl_twdbdata[[#This Row],[effsave]]-0.6*SUMIFS(tbl_twdbdata[effsave],tbl_twdbdata[Year],2020,tbl_twdbdata[utility],tbl_twdbdata[[#This Row],[utility]]))","v":3327858},249,19,4,5,9552465,727626,902114,408657,20174563,50925649,{"$f":"tbl_twdbdata[[#This Row],[utility]]&tbl_twdbdata[[#This Row],[Year]]","v":"BISTONE MUNICIPAL WATER SUPPLY DISTRICT2060"}]
[null,258,"BISTONE MUNICIPAL WATER SUPPLY DISTRICT","G",2070,607,704,4656115,{"$f":"IF(tbl_twdbdata[[#This Row],[Year]]=2016,0,tbl_twdbdata[[#This Row],[effsave]]-0.6*SUMIFS(tbl_twdbdata[effsave],tbl_twdbdata[Year],2020,tbl_twdbdata[utility],tbl_twdbdata[[#This Row],[utility]]))","v":3430525},254,20,4,5,9746283,742389,920418,416949,20583902,51958923,{"$f":"tbl_twdbdata[[#This Row],[utility]]&tbl_twdbdata[[#This Row],[Year]]","v":"BISTONE MUNICIPAL WATER SUPPLY DISTRICT2070"}]
[null,264,"BLOSSOM","D",2016,1498,1498,0,{"$f":"IF(tbl_twdbdata[[#This Row],[Year]]=2016,0,tbl_twdbdata[[#This Row],[effsave]]-0.6*SUMIFS(tbl_twdbdata[effsave],tbl_twdbdata[Year],2020,tbl_twdbdata[utility],tbl_twdbdata[[#This Row],[utility]]))","v":0},570,0,28,0,33265000,0,3978000,0,null,null,{"$f":"tbl_twdbdata[[#This Row],[utility]]&tbl_twdbdata[[#This Row],[Year]]","v":"BLOSSOM2016"}]
[null,264,"BLOSSOM","D",2020,1466,1546,5366398,{"$f":"IF(tbl_twdbdata[[#This Row],[Year]]=2016,0,tbl_twdbdata[[#This Row],[effsave]]-0.6*SUMIFS(tbl_twdbdata[effsave],tbl_twdbdata[Year],2020,tbl_twdbdata[utility],tbl_twdbdata[[#This Row],[utility]]))","v":2146559.2000000002},601,0,30,0,35080280,0,4195080,0,null,null,{"$f":"tbl_twdbdata[[#This Row],[utility]]&tbl_twdbdata[[#This Row],[Year]]","v":"BLOSSOM2020"}]
[null,264,"BLOSSOM","D",2030,1466,1605,8002370,{"$f":"IF(tbl_twdbdata[[#This Row],[Year]]=2016,0,tbl_twdbdata[[#This Row],[effsave]]-0.6*SUMIFS(tbl_twdbdata[effsave],tbl_twdbdata[Year],2020,tbl_twdbdata[utility],tbl_twdbdata[[#This Row],[utility]]))","v":4782531.2},624,0,31,0,36419049,0,4355177,0,null,null,{"$f":"tbl_twdbdata[[#This Row],[utility]]&tbl_twdbdata[[#This Row],[Year]]","v":"BLOSSOM2030"}]
[null,264,"BLOSSOM","D",2040,1466,1649,10165838,{"$f":"IF(tbl_twdbdata[[#This Row],[Year]]=2016,0,tbl_twdbdata[[#This Row],[effsave]]-0.6*SUMIFS(tbl_twdbdata[effsave],tbl_twdbdata[Year],2020,tbl_twdbdata[utility],tbl_twdbdata[[#This Row],[utility]]))","v":6945999.2000000002},641,0,32,0,37417453,0,4474571,0,null,null,{"$f":"tbl_twdbdata[[#This Row],[utility]]&tbl_twdbdata[[#This Row],[Year]]","v":"BLOSSOM2040"}]
[null,264,"BLOSSOM","D",2050,1466,1690,11467242,{"$f":"IF(tbl_twdbdata[[#This Row],[Year]]=2016,0,tbl_twdbdata[[#This Row],[effsave]]-0.6*SUMIFS(tbl_twdbdata[effsave],tbl_twdbdata[Year],2020,tbl_twdbdata[utility],tbl_twdbdata[[#This Row],[utility]]))","v":8247403.2000000002},657,0,33,0,38347784,0,4585825,0,null,null,{"$f":"tbl_twdbdata[[#This Row],[utility]]&tbl_twdbdata[[#This Row],[Year]]","v":"BLOSSOM2050"}]
[null,264,"BLOSSOM","D",2060,1466,1721,11872319,{"$f":"IF(tbl_twdbdata[[#This Row],[Year]]=2016,0,tbl_twdbdata[[#This Row],[effsave]]-0.6*SUMIFS(tbl_twdbdata[effsave],tbl_twdbdata[Year],2020,tbl_twdbdata[utility],tbl_twdbdata[[#This Row],[utility]]))","v":8652480.1999999993},669,0,34,0,39051205,0,4669944,0,null,null,{"$f":"tbl_twdbdata[[#This Row],[utility]]&tbl_twdbdata[[#This Row],[Year]]","v":"BLOSSOM2060"}]
[null,264,"BLOSSOM","D",2070,1466,1746,12057527,{"$f":"IF(tbl_twdbdata[[#This Row],[Year]]=2016,0,tbl_twdbdata[[#This Row],[effsave]]-0.6*SUMIFS(tbl_twdbdata[effsave],tbl_twdbdata[Year],2020,tbl_twdbdata[utility],tbl_twdbdata[[#This Row],[utility]]))","v":8837688.1999999993},679,0,35,0,39618480,0,4737782,0,null,null,{"$f":"tbl_twdbdata[[#This Row],[utility]]&tbl_twdbdata[[#This Row],[Year]]","v":"BLOSSOM2070"}]
[null,268,"BOERNE","L",2016,13490,14392,0,{"$f":"IF(tbl_twdbdata[[#This Row],[Year]]=2016,0,tbl_twdbdata[[#This Row],[effsave]]-0.6*SUMIFS(tbl_twdbdata[effsave],tbl_twdbdata[Year],2020,tbl_twdbdata[utility],tbl_twdbdata[[#This Row],[utility]]))","v":0},4080,650,958,0,342363693,27108000,306519407,0,10310458,67309442,{"$f":"tbl_twdbdata[[#This Row],[utility]]&tbl_twdbdata[[#This Row],[Year]]","v":"BOERNE2016"}]
[null,268,"BOERNE","L",2020,13490,14732,48071989,{"$f":"IF(tbl_twdbdata[[#This Row],[Year]]=2016,0,tbl_twdbdata[[#This Row],[effsave]]-0.6*SUMIFS(tbl_twdbdata[effsave],tbl_twdbdata[Year],2020,tbl_twdbdata[utility],tbl_twdbdata[[#This Row],[utility]]))","v":19228795.600000001},4269,680,1002,0,358192027,28361271,320690570,0,10787136,70421327,{"$f":"tbl_twdbdata[[#This Row],[utility]]&tbl_twdbdata[[#This Row],[Year]]","v":"BOERNE2020"}]
[null,268,"BOERNE","L",2030,13490,19298,84525240,{"$f":"IF(tbl_twdbdata[[#This Row],[Year]]=2016,0,tbl_twdbdata[[#This Row],[effsave]]-0.6*SUMIFS(tbl_twdbdata[effsave],tbl_twdbdata[Year],2020,tbl_twdbdata[utility],tbl_twdbdata[[#This Row],[utility]]))","v":55682046.600000001},5592,891,1313,0,469209187,37151494,420084620,0,14130475,92247541,{"$f":"tbl_twdbdata[[#This Row],[utility]]&tbl_twdbdata[[#This Row],[Year]]","v":"BOERNE2030"}]
[null,268,"BOERNE","L",2040,13490,24121,118680144,{"$f":"IF(tbl_twdbdata[[#This Row],[Year]]=2016,0,tbl_twdbdata[[#This Row],[effsave]]-0.6*SUMIFS(tbl_twdbdata[effsave],tbl_twdbdata[Year],2020,tbl_twdbdata[utility],tbl_twdbdata[[#This Row],[utility]]))","v":89836950.599999994},6990,1167,1720,0,586475013,46436480,525073123,0,17661995,115302256,{"$f":"tbl_twdbdata[[#This Row],[utility]]&tbl_twdbdata[[#This Row],[Year]]","v":"BOERNE2040"}]
[null,268,"BOERNE","L",2050,13490,28903,149276769,{"$f":"IF(tbl_twdbdata[[#This Row],[Year]]=2016,0,tbl_twdbdata[[#This Row],[effsave]]-0.6*SUMIFS(tbl_twdbdata[effsave],tbl_twdbdata[Year],2020,tbl_twdbdata[utility],tbl_twdbdata[[#This Row],[utility]]))","v":120433575.59999999},8376,1529,2253,0,702743970,55642535,629169125,0,21163494,138160984,{"$f":"tbl_twdbdata[[#This Row],[utility]]&tbl_twdbdata[[#This Row],[Year]]","v":"BOERNE2050"}]
[null,268,"BOERNE","L",2060,13490,33783,176946908,{"$f":"IF(tbl_twdbdata[[#This Row],[Year]]=2016,0,tbl_twdbdata[[#This Row],[effsave]]-0.6*SUMIFS(tbl_twdbdata[effsave],tbl_twdbdata[Year],2020,tbl_twdbdata[utility],tbl_twdbdata[[#This Row],[utility]]))","v":148103714.59999999},9790,2003,2951,0,821395687,65037254,735398421,0,24736751,161488168,{"$f":"tbl_twdbdata[[#This Row],[utility]]&tbl_twdbdata[[#This Row],[Year]]","v":"BOERNE2060"}]
[null,268,"BOERNE","L",2070,13490,38574,203026534,{"$f":"IF(tbl_twdbdata[[#This Row],[Year]]=2016,0,tbl_twdbdata[[#This Row],[effsave]]-0.6*SUMIFS(tbl_twdbdata[effsave],tbl_twdbdata[Year],2020,tbl_twdbdata[utility],tbl_twdbdata[[#This Row],[utility]]))","v":174183340.59999999},11178,2624,3866,0,937883469,74260635,839690338,0,28244840,184389918,{"$f":"tbl_twdbdata[[#This Row],[utility]]&tbl_twdbdata[[#This Row],[Year]]","v":"BOERNE2070"}]
[null,269,"BOGATA","D",2016,1153,1153,0,{"$f":"IF(tbl_twdbdata[[#This Row],[Year]]=2016,0,tbl_twdbdata[[#This Row],[effsave]]-0.6*SUMIFS(tbl_twdbdata[effsave],tbl_twdbdata[Year],2020,tbl_twdbdata[utility],tbl_twdbdata[[#This Row],[utility]]))","v":0},433,0,0,0,60426000,0,0,0,null,null,{"$f":"tbl_twdbdata[[#This Row],[utility]]&tbl_twdbdata[[#This Row],[Year]]","v":"BOGATA2016"}]
[null,269,"BOGATA","D",2020,963,1178,4286801,{"$f":"IF(tbl_twdbdata[[#This Row],[Year]]=2016,0,tbl_twdbdata[[#This Row],[effsave]]-0.6*SUMIFS(tbl_twdbdata[effsave],tbl_twdbdata[Year],2020,tbl_twdbdata[utility],tbl_twdbdata[[#This Row],[utility]]))","v":1714720.4},530,0,0,0,73916748,0,0,0,null,null,{"$f":"tbl_twdbdata[[#This Row],[utility]]&tbl_twdbdata[[#This Row],[Year]]","v":"BOGATA2020"}]
[null,269,"BOGATA","D",2030,963,1178,6359256,{"$f":"IF(tbl_twdbdata[[#This Row],[Year]]=2016,0,tbl_twdbdata[[#This Row],[effsave]]-0.6*SUMIFS(tbl_twdbdata[effsave],tbl_twdbdata[Year],2020,tbl_twdbdata[utility],tbl_twdbdata[[#This Row],[utility]]))","v":3787175.4},530,0,0,0,73916748,0,0,0,null,null,{"$f":"tbl_twdbdata[[#This Row],[utility]]&tbl_twdbdata[[#This Row],[Year]]","v":"BOGATA2030"}]
[null,269,"BOGATA","D",2040,963,1178,7537374,{"$f":"IF(tbl_twdbdata[[#This Row],[Year]]=2016,0,tbl_twdbdata[[#This Row],[effsave]]-0.6*SUMIFS(tbl_twdbdata[effsave],tbl_twdbdata[Year],2020,tbl_twdbdata[utility],tbl_twdbdata[[#This Row],[utility]]))","v":4965293.4000000004},530,0,0,0,73916748,0,0,0,null,null,{"$f":"tbl_twdbdata[[#This Row],[utility]]&tbl_twdbdata[[#This Row],[Year]]","v":"BOGATA2040"}]
[null,269,"BOGATA","D",2050,963,1178,7674965,{"$f":"IF(tbl_twdbdata[[#This Row],[Year]]=2016,0,tbl_twdbdata[[#This Row],[effsave]]-0.6*SUMIFS(tbl_twdbdata[effsave],tbl_twdbdata[Year],2020,tbl_twdbdata[utility],tbl_twdbdata[[#This Row],[utility]]))","v":5102884.4000000004},530,0,0,0,73916748,0,0,0,null,null,{"$f":"tbl_twdbdata[[#This Row],[utility]]&tbl_twdbdata[[#This Row],[Year]]","v":"BOGATA2050"}]
[null,269,"BOGATA","D",2060,963,1178,7812555,{"$f":"IF(tbl_twdbdata[[#This Row],[Year]]=2016,0,tbl_twdbdata[[#This Row],[effsave]]-0.6*SUMIFS(tbl_twdbdata[effsave],tbl_twdbdata[Year],2020,tbl_twdbdata[utility],tbl_twdbdata[[#This Row],[utility]]))","v":5240474.4000000004},530,0,0,0,73916748,0,0,0,null,null,{"$f":"tbl_twdbdata[[#This Row],[utility]]&tbl_twdbdata[[#This Row],[Year]]","v":"BOGATA2060"}]
[null,269,"BOGATA","D",2070,963,1178,7812555,{"$f":"IF(tbl_twdbdata[[#This Row],[Year]]=2016,0,tbl_twdbdata[[#This Row],[effsave]]-0.6*SUMIFS(tbl_twdbdata[effsave],tbl_twdbdata[Year],2020,tbl_twdbdata[utility],tbl_twdbdata[[#This Row],[utility]]))","v":5240474.4000000004},530,0,0,0,73916748,0,0,0,null,null,{"$f":"tbl_twdbdata[[#This Row],[utility]]&tbl_twdbdata[[#This Row],[Year]]","v":"BOGATA2070"}]
[null,6227,"BOIS D ARC MUD","C",2016,2760,2760,0,{"$f":"IF(tbl_twdbdata[[#This Row],[Year]]=2016,0,tbl_twdbdata[[#This Row],[effsave]]-0.6*SUMIFS(tbl_twdbdata[effsave],tbl_twdbdata[Year],2020,tbl_twdbdata[utility],tbl_twdbdata[[#This Row],[utility]]))","v":0},1091,0,12,0,62950000,0,291465,0,13823000,28651508,{"$f":"tbl_twdbdata[[#This Row],[utility]]&tbl_twdbdata[[#This Row],[Year]]","v":"BOIS D ARC MUD2016"}]
[null,6227,"BOIS D ARC MUD","C",2020,2248,2319,8396635,{"$f":"IF(tbl_twdbdata[[#This Row],[Year]]=2016,0,tbl_twdbdata[[#This Row],[effsave]]-0.6*SUMIFS(tbl_twdbdata[effsave],tbl_twdbdata[Year],2020,tbl_twdbdata[utility],tbl_twdbdata[[#This Row],[utility]]))","v":3358654},1125,0,12,0,64938190,0,300671,0,14259581,29556427,{"$f":"tbl_twdbdata[[#This Row],[utility]]&tbl_twdbdata[[#This Row],[Year]]","v":"BOIS D ARC MUD2020"}]
[null,6227,"BOIS D ARC MUD","C",2030,2248,2625,13365844,{"$f":"IF(tbl_twdbdata[[#This Row],[Year]]=2016,0,tbl_twdbdata[[#This Row],[effsave]]-0.6*SUMIFS(tbl_twdbdata[effsave],tbl_twdbdata[Year],2020,tbl_twdbdata[utility],tbl_twdbdata[[#This Row],[utility]]))","v":8327863},1273,0,14,0,73507007,0,340346,0,16141182,33456499,{"$f":"tbl_twdbdata[[#This Row],[utility]]&tbl_twdbdata[[#This Row],[Year]]","v":"BOIS D ARC MUD2030"}]
[null,6227,"BOIS D ARC MUD","C",2040,2248,3190,19258349,{"$f":"IF(tbl_twdbdata[[#This Row],[Year]]=2016,0,tbl_twdbdata[[#This Row],[effsave]]-0.6*SUMIFS(tbl_twdbdata[effsave],tbl_twdbdata[Year],2020,tbl_twdbdata[utility],tbl_twdbdata[[#This Row],[utility]]))","v":14220368},1547,0,16,0,89328515,0,413601,0,19615379,40657612,{"$f":"tbl_twdbdata[[#This Row],[utility]]&tbl_twdbdata[[#This Row],[Year]]","v":"BOIS D ARC MUD2040"}]
[null,6227,"BOIS D ARC MUD","C",2050,2248,4187,26805593,{"$f":"IF(tbl_twdbdata[[#This Row],[Year]]=2016,0,tbl_twdbdata[[#This Row],[effsave]]-0.6*SUMIFS(tbl_twdbdata[effsave],tbl_twdbdata[Year],2020,tbl_twdbdata[utility],tbl_twdbdata[[#This Row],[utility]]))","v":21767612},2030,0,18,0,117247176,0,542868,0,25745954,53364709,{"$f":"tbl_twdbdata[[#This Row],[utility]]&tbl_twdbdata[[#This Row],[Year]]","v":"BOIS D ARC MUD2050"}]
[null,6227,"BOIS D ARC MUD","C",2060,2248,6164,40115004,{"$f":"IF(tbl_twdbdata[[#This Row],[Year]]=2016,0,tbl_twdbdata[[#This Row],[effsave]]-0.6*SUMIFS(tbl_twdbdata[effsave],tbl_twdbdata[Year],2020,tbl_twdbdata[utility],tbl_twdbdata[[#This Row],[utility]]))","v":35077023},2989,0,20,0,172608453,0,799197,0,37902570,78562232,{"$f":"tbl_twdbdata[[#This Row],[utility]]&tbl_twdbdata[[#This Row],[Year]]","v":"BOIS D ARC MUD2060"}]
[null,6227,"BOIS D ARC MUD","C",2070,2248,8376,54785741,{"$f":"IF(tbl_twdbdata[[#This Row],[Year]]=2016,0,tbl_twdbdata[[#This Row],[effsave]]-0.6*SUMIFS(tbl_twdbdata[effsave],tbl_twdbdata[Year],2020,tbl_twdbdata[utility],tbl_twdbdata[[#This Row],[utility]]))","v":49747760},4062,0,23,0,234550357,0,1085995,0,51504206,106754908,{"$f":"tbl_twdbdata[[#This Row],[utility]]&tbl_twdbdata[[#This Row],[Year]]","v":"BOIS D ARC MUD2070"}]
[null,3148,"BOLIVAR PENINSULA SUD","H",2016,16074,16074,0,{"$f":"IF(tbl_twdbdata[[#This Row],[Year]]=2016,0,tbl_twdbdata[[#This Row],[effsave]]-0.6*SUMIFS(tbl_twdbdata[effsave],tbl_twdbdata[Year],2020,tbl_twdbdata[utility],tbl_twdbdata[[#This Row],[utility]]))","v":0},4449,0,193,0,197902000,0,37689000,0,null,null,{"$f":"tbl_twdbdata[[#This Row],[utility]]&tbl_twdbdata[[#This Row],[Year]]","v":"BOLIVAR PENINSULA SUD2016"}]
[null,3148,"BOLIVAR PENINSULA SUD","H",2020,3429,2943,8593560,{"$f":"IF(tbl_twdbdata[[#This Row],[Year]]=2016,0,tbl_twdbdata[[#This Row],[effsave]]-0.6*SUMIFS(tbl_twdbdata[effsave],tbl_twdbdata[Year],2020,tbl_twdbdata[utility],tbl_twdbdata[[#This Row],[utility]]))","v":3437424},3818,0,166,0,169852898,0,32347252,0,null,null,{"$f":"tbl_twdbdata[[#This Row],[utility]]&tbl_twdbdata[[#This Row],[Year]]","v":"BOLIVAR PENINSULA SUD2020"}]
[null,3148,"BOLIVAR PENINSULA SUD","H",2030,3429,3480,10161600,{"$f":"IF(tbl_twdbdata[[#This Row],[Year]]=2016,0,tbl_twdbdata[[#This Row],[effsave]]-0.6*SUMIFS(tbl_twdbdata[effsave],tbl_twdbdata[Year],2020,tbl_twdbdata[utility],tbl_twdbdata[[#This Row],[utility]]))","v":5005464},4515,0,196,0,200845425,0,38249554,0,null,null,{"$f":"tbl_twdbdata[[#This Row],[utility]]&tbl_twdbdata[[#This Row],[Year]]","v":"BOLIVAR PENINSULA SUD2030"}]
[null,3148,"BOLIVAR PENINSULA SUD","H",2040,3429,4118,12024560,{"$f":"IF(tbl_twdbdata[[#This Row],[Year]]=2016,0,tbl_twdbdata[[#This Row],[effsave]]-0.6*SUMIFS(tbl_twdbdata[effsave],tbl_twdbdata[Year],2020,tbl_twdbdata[utility],tbl_twdbdata[[#This Row],[utility]]))","v":6868424},5343,0,232,0,237667086,0,45261971,0,null,null,{"$f":"tbl_twdbdata[[#This Row],[utility]]&tbl_twdbdata[[#This Row],[Year]]","v":"BOLIVAR PENINSULA SUD2040"}]
[null,3148,"BOLIVAR PENINSULA SUD","H",2050,3429,4875,14235000,{"$f":"IF(tbl_twdbdata[[#This Row],[Year]]=2016,0,tbl_twdbdata[[#This Row],[effsave]]-0.6*SUMIFS(tbl_twdbdata[effsave],tbl_twdbdata[Year],2020,tbl_twdbdata[utility],tbl_twdbdata[[#This Row],[utility]]))","v":9078864},6325,0,274,0,281356737,0,53582348,0,null,null,{"$f":"tbl_twdbdata[[#This Row],[utility]]&tbl_twdbdata[[#This Row],[Year]]","v":"BOLIVAR PENINSULA SUD2050"}]
[null,3148,"BOLIVAR PENINSULA SUD","H",2060,3429,5771,16851320,{"$f":"IF(tbl_twdbdata[[#This Row],[Year]]=2016,0,tbl_twdbdata[[#This Row],[effsave]]-0.6*SUMIFS(tbl_twdbdata[effsave],tbl_twdbdata[Year],2020,tbl_twdbdata[utility],tbl_twdbdata[[#This Row],[utility]]))","v":11695184},7488,0,324,0,333068662,0,63430509,0,null,null,{"$f":"tbl_twdbdata[[#This Row],[utility]]&tbl_twdbdata[[#This Row],[Year]]","v":"BOLIVAR PENINSULA SUD2060"}]
[null,3148,"BOLIVAR PENINSULA SUD","H",2070,3429,6835,19958200,{"$f":"IF(tbl_twdbdata[[#This Row],[Year]]=2016,0,tbl_twdbdata[[#This Row],[effsave]]-0.6*SUMIFS(tbl_twdbdata[effsave],tbl_twdbdata[Year],2020,tbl_twdbdata[utility],tbl_twdbdata[[#This Row],[utility]]))","v":14802064},8869,0,384,0,394476573,0,75125200,0,null,null,{"$f":"tbl_twdbdata[[#This Row],[utility]]&tbl_twdbdata[[#This Row],[Year]]","v":"BOLIVAR PENINSULA SUD2070"}]
[null,272,"BONHAM","C",2016,7133,10058,0,{"$f":"IF(tbl_twdbdata[[#This Row],[Year]]=2016,0,tbl_twdbdata[[#This Row],[effsave]]-0.6*SUMIFS(tbl_twdbdata[effsave],tbl_twdbdata[Year],2020,tbl_twdbdata[utility],tbl_twdbdata[[#This Row],[utility]]))","v":0},2959,25,459,0,164062439,12295531,198547565,0,32730242,96512202,{"$f":"tbl_twdbdata[[#This Row],[utility]]&tbl_twdbdata[[#This Row],[Year]]","v":"BONHAM2016"}]
[null,272,"BONHAM","C",2020,7133,12603,44298915,{"$f":"IF(tbl_twdbdata[[#This Row],[Year]]=2016,0,tbl_twdbdata[[#This Row],[effsave]]-0.6*SUMIFS(tbl_twdbdata[effsave],tbl_twdbdata[Year],2020,tbl_twdbdata[utility],tbl_twdbdata[[#This Row],[utility]]))","v":17719566},4168,35,646,0,231103042,17319837,279679777,0,46104755,135949847,{"$f":"tbl_twdbdata[[#This Row],[utility]]&tbl_twdbdata[[#This Row],[Year]]","v":"BONHAM2020"}]
[null,272,"BONHAM","C",2030,7133,16000,77263200,{"$f":"IF(tbl_twdbdata[[#This Row],[Year]]=2016,0,tbl_twdbdata[[#This Row],[effsave]]-0.6*SUMIFS(tbl_twdbdata[effsave],tbl_twdbdata[Year],2020,tbl_twdbdata[utility],tbl_twdbdata[[#This Row],[utility]]))","v":50683851},5291,44,820,0,293394325,21988209,355064384,0,58531784,172593633,{"$f":"tbl_twdbdata[[#This Row],[utility]]&tbl_twdbdata[[#This Row],[Year]]","v":"BONHAM2030"}]
[null,272,"BONHAM","C",2040,7133,22000,123019600,{"$f":"IF(tbl_twdbdata[[#This Row],[Year]]=2016,0,tbl_twdbdata[[#This Row],[effsave]]-0.6*SUMIFS(tbl_twdbdata[effsave],tbl_twdbdata[Year],2020,tbl_twdbdata[utility],tbl_twdbdata[[#This Row],[utility]]))","v":96440251},7275,56,1041,0,403417197,30233787,488213528,0,80481203,237316245,{"$f":"tbl_twdbdata[[#This Row],[utility]]&tbl_twdbdata[[#This Row],[Year]]","v":"BONHAM2040"}]
[null,272,"BONHAM","C",2050,7133,30000,177171000,{"$f":"IF(tbl_twdbdata[[#This Row],[Year]]=2016,0,tbl_twdbdata[[#This Row],[effsave]]-0.6*SUMIFS(tbl_twdbdata[effsave],tbl_twdbdata[Year],2020,tbl_twdbdata[utility],tbl_twdbdata[[#This Row],[utility]]))","v":150591651},9920,71,1321,0,550114360,41227891,665745720,0,109747095,323613061,{"$f":"tbl_twdbdata[[#This Row],[utility]]&tbl_twdbdata[[#This Row],[Year]]","v":"BONHAM2050"}]
[null,272,"BONHAM","C",2060,7133,37000,221211900,{"$f":"IF(tbl_twdbdata[[#This Row],[Year]]=2016,0,tbl_twdbdata[[#This Row],[effsave]]-0.6*SUMIFS(tbl_twdbdata[effsave],tbl_twdbdata[Year],2020,tbl_twdbdata[utility],tbl_twdbdata[[#This Row],[utility]]))","v":194632551},12235,90,1677,0,678474377,50847732,821086389,0,135354751,399122775,{"$f":"tbl_twdbdata[[#This Row],[utility]]&tbl_twdbdata[[#This Row],[Year]]","v":"BONHAM2060"}]
[null,272,"BONHAM","C",2070,7133,45000,270355500,{"$f":"IF(tbl_twdbdata[[#This Row],[Year]]=2016,0,tbl_twdbdata[[#This Row],[effsave]]-0.6*SUMIFS(tbl_twdbdata[effsave],tbl_twdbdata[Year],2020,tbl_twdbdata[utility],tbl_twdbdata[[#This Row],[utility]]))","v":243776151},14880,114,2129,0,825171540,61841836,998618581,0,164620643,485419591,{"$f":"tbl_twdbdata[[#This Row],[utility]]&tbl_twdbdata[[#This Row],[Year]]","v":"BONHAM2070"}]
[null,13,"BORGER","A",2016,13259,13259,0,{"$f":"IF(tbl_twdbdata[[#This Row],[Year]]=2016,0,tbl_twdbdata[[#This Row],[effsave]]-0.6*SUMIFS(tbl_twdbdata[effsave],tbl_twdbdata[Year],2020,tbl_twdbdata[utility],tbl_twdbdata[[#This Row],[utility]]))","v":0},5225,20,648,12,394375000,9414000,2002505000,2404000,316000000,253151000,{"$f":"tbl_twdbdata[[#This Row],[utility]]&tbl_twdbdata[[#This Row],[Year]]","v":"BORGER2016"}]
[null,13,"BORGER","A",2020,13259,13514,49720709,{"$f":"IF(tbl_twdbdata[[#This Row],[Year]]=2016,0,tbl_twdbdata[[#This Row],[effsave]]-0.6*SUMIFS(tbl_twdbdata[effsave],tbl_twdbdata[Year],2020,tbl_twdbdata[utility],tbl_twdbdata[[#This Row],[utility]]))","v":19888283.600000001},5325,20,660,12,401959707,9595052,2041017616,2450234,322077381,258019656,{"$f":"tbl_twdbdata[[#This Row],[utility]]&tbl_twdbdata[[#This Row],[Year]]","v":"BORGER2020"}]
[null,13,"BORGER","A",2030,13259,13998,75821567,{"$f":"IF(tbl_twdbdata[[#This Row],[Year]]=2016,0,tbl_twdbdata[[#This Row],[effsave]]-0.6*SUMIFS(tbl_twdbdata[effsave],tbl_twdbdata[Year],2020,tbl_twdbdata[utility],tbl_twdbdata[[#This Row],[utility]]))","v":45989141.600000001},5516,21,683,12,416355778,9938696,2114116071,2537988,333612489,267260555,{"$f":"tbl_twdbdata[[#This Row],[utility]]&tbl_twdbdata[[#This Row],[Year]]","v":"BORGER2030"}]
[null,13,"BORGER","A",2040,13259,14122,92008361,{"$f":"IF(tbl_twdbdata[[#This Row],[Year]]=2016,0,tbl_twdbdata[[#This Row],[effsave]]-0.6*SUMIFS(tbl_twdbdata[effsave],tbl_twdbdata[Year],2020,tbl_twdbdata[utility],tbl_twdbdata[[#This Row],[utility]]))","v":62175935.600000001},5565,22,707,12,420044027,10026737,2132843775,2560471,336567765,269628058,{"$f":"tbl_twdbdata[[#This Row],[utility]]&tbl_twdbdata[[#This Row],[Year]]","v":"BORGER2040"}]
[null,13,"BORGER","A",2050,13259,14122,93554720,{"$f":"IF(tbl_twdbdata[[#This Row],[Year]]=2016,0,tbl_twdbdata[[#This Row],[effsave]]-0.6*SUMIFS(tbl_twdbdata[effsave],tbl_twdbdata[Year],2020,tbl_twdbdata[utility],tbl_twdbdata[[#This Row],[utility]]))","v":63722294.600000001},5565,23,732,12,420044027,10026737,2132843775,2560471,336567765,269628058,{"$f":"tbl_twdbdata[[#This Row],[utility]]&tbl_twdbdata[[#This Row],[Year]]","v":"BORGER2050"}]
[null,13,"BORGER","A",2060,13259,14122,95101079,{"$f":"IF(tbl_twdbdata[[#This Row],[Year]]=2016,0,tbl_twdbdata[[#This Row],[effsave]]-0.6*SUMIFS(tbl_twdbdata[effsave],tbl_twdbdata[Year],2020,tbl_twdbdata[utility],tbl_twdbdata[[#This Row],[utility]]))","v":65268653.600000001},5565,24,758,12,420044027,10026737,2132843775,2560471,336567765,269628058,{"$f":"tbl_twdbdata[[#This Row],[utility]]&tbl_twdbdata[[#This Row],[Year]]","v":"BORGER2060"}]
[null,13,"BORGER","A",2070,13259,14122,95152624,{"$f":"IF(tbl_twdbdata[[#This Row],[Year]]=2016,0,tbl_twdbdata[[#This Row],[effsave]]-0.6*SUMIFS(tbl_twdbdata[effsave],tbl_twdbdata[Year],2020,tbl_twdbdata[utility],tbl_twdbdata[[#This Row],[utility]]))","v":65320198.600000001},5565,25,784,12,420044027,10026737,2132843775,2560471,336567765,269628058,{"$f":"tbl_twdbdata[[#This Row],[utility]]&tbl_twdbdata[[#This Row],[Year]]","v":"BORGER2070"}]
[null,275,"BOWIE","B",2016,5280,5280,0,{"$f":"IF(tbl_twdbdata[[#This Row],[Year]]=2016,0,tbl_twdbdata[[#This Row],[effsave]]-0.6*SUMIFS(tbl_twdbdata[effsave],tbl_twdbdata[Year],2020,tbl_twdbdata[utility],tbl_twdbdata[[#This Row],[utility]]))","v":0},2531,20,418,0,119701756,4159446,54559366,0,23704938,110752271,{"$f":"tbl_twdbdata[[#This Row],[utility]]&tbl_twdbdata[[#This Row],[Year]]","v":"BOWIE2016"}]
[null,275,"BOWIE","B",2020,5280,5828,20293679,{"$f":"IF(tbl_twdbdata[[#This Row],[Year]]=2016,0,tbl_twdbdata[[#This Row],[effsave]]-0.6*SUMIFS(tbl_twdbdata[effsave],tbl_twdbdata[Year],2020,tbl_twdbdata[utility],tbl_twdbdata[[#This Row],[utility]]))","v":8117471.5999999996},2794,22,461,0,132125347,4591146,60221967,0,26165223,122247014,{"$f":"tbl_twdbdata[[#This Row],[utility]]&tbl_twdbdata[[#This Row],[Year]]","v":"BOWIE2020"}]
[null,275,"BOWIE","B",2030,5280,6042,30345341,{"$f":"IF(tbl_twdbdata[[#This Row],[Year]]=2016,0,tbl_twdbdata[[#This Row],[effsave]]-0.6*SUMIFS(tbl_twdbdata[effsave],tbl_twdbdata[Year],2020,tbl_twdbdata[utility],tbl_twdbdata[[#This Row],[utility]]))","v":18169133.600000001},2897,23,478,0,136976895,4759730,62433275,0,27125991,126735837,{"$f":"tbl_twdbdata[[#This Row],[utility]]&tbl_twdbdata[[#This Row],[Year]]","v":"BOWIE2030"}]
[null,275,"BOWIE","B",2040,5280,6139,38137310,{"$f":"IF(tbl_twdbdata[[#This Row],[Year]]=2016,0,tbl_twdbdata[[#This Row],[effsave]]-0.6*SUMIFS(tbl_twdbdata[effsave],tbl_twdbdata[Year],2020,tbl_twdbdata[utility],tbl_twdbdata[[#This Row],[utility]]))","v":25961102.600000001},2944,24,495,0,139175961,4836144,63435596,0,27561479,128770490,{"$f":"tbl_twdbdata[[#This Row],[utility]]&tbl_twdbdata[[#This Row],[Year]]","v":"BOWIE2040"}]
[null,275,"BOWIE","B",2050,5280,6247,42798509,{"$f":"IF(tbl_twdbdata[[#This Row],[Year]]=2016,0,tbl_twdbdata[[#This Row],[effsave]]-0.6*SUMIFS(tbl_twdbdata[effsave],tbl_twdbdata[Year],2020,tbl_twdbdata[utility],tbl_twdbdata[[#This Row],[utility]]))","v":30622301.600000001},2996,25,513,0,141624406,4921224,64551583,0,28046353,131035877,{"$f":"tbl_twdbdata[[#This Row],[utility]]&tbl_twdbdata[[#This Row],[Year]]","v":"BOWIE2050"}]
[null,275,"BOWIE","B",2060,5280,6316,43985887,{"$f":"IF(tbl_twdbdata[[#This Row],[Year]]=2016,0,tbl_twdbdata[[#This Row],[effsave]]-0.6*SUMIFS(tbl_twdbdata[effsave],tbl_twdbdata[Year],2020,tbl_twdbdata[utility],tbl_twdbdata[[#This Row],[utility]]))","v":31809679.600000001},3029,26,532,0,143188690,4975580,65264574,0,28356133,132483208,{"$f":"tbl_twdbdata[[#This Row],[utility]]&tbl_twdbdata[[#This Row],[Year]]","v":"BOWIE2060"}]
[null,275,"BOWIE","B",2070,5280,6367,44364301,{"$f":"IF(tbl_twdbdata[[#This Row],[Year]]=2016,0,tbl_twdbdata[[#This Row],[effsave]]-0.6*SUMIFS(tbl_twdbdata[effsave],tbl_twdbdata[Year],2020,tbl_twdbdata[utility],tbl_twdbdata[[#This Row],[utility]]))","v":32188093.600000001},3053,27,551,0,144344900,5015756,65791568,0,28585101,133552974,{"$f":"tbl_twdbdata[[#This Row],[utility]]&tbl_twdbdata[[#This Row],[Year]]","v":"BOWIE2070"}]
[null,286,"BRECKENRIDGE","G",2016,5971,5971,0,{"$f":"IF(tbl_twdbdata[[#This Row],[Year]]=2016,0,tbl_twdbdata[[#This Row],[effsave]]-0.6*SUMIFS(tbl_twdbdata[effsave],tbl_twdbdata[Year],2020,tbl_twdbdata[utility],tbl_twdbdata[[#This Row],[utility]]))","v":0},2329,529,393,0,106220592,14160400,62452249,0,9434062,63685698,{"$f":"tbl_twdbdata[[#This Row],[utility]]&tbl_twdbdata[[#This Row],[Year]]","v":"BRECKENRIDGE2016"}]
[null,286,"BRECKENRIDGE","G",2020,5390,5903,20296285,{"$f":"IF(tbl_twdbdata[[#This Row],[Year]]=2016,0,tbl_twdbdata[[#This Row],[effsave]]-0.6*SUMIFS(tbl_twdbdata[effsave],tbl_twdbdata[Year],2020,tbl_twdbdata[utility],tbl_twdbdata[[#This Row],[utility]]))","v":8118514},2551,579,429,0,116330270,15508134,68396221,0,10331961,69747064,{"$f":"tbl_twdbdata[[#This Row],[utility]]&tbl_twdbdata[[#This Row],[Year]]","v":"BRECKENRIDGE2020"}]
[null,286,"BRECKENRIDGE","G",2030,5390,6130,30541193,{"$f":"IF(tbl_twdbdata[[#This Row],[Year]]=2016,0,tbl_twdbdata[[#This Row],[effsave]]-0.6*SUMIFS(tbl_twdbdata[effsave],tbl_twdbdata[Year],2020,tbl_twdbdata[utility],tbl_twdbdata[[#This Row],[utility]]))","v":18363422},2649,601,445,0,120803753,16104500,71026398,0,10729277,72429189,{"$f":"tbl_twdbdata[[#This Row],[utility]]&tbl_twdbdata[[#This Row],[Year]]","v":"BRECKENRIDGE2030"}]
[null,286,"BRECKENRIDGE","G",2040,5390,6232,38464839,{"$f":"IF(tbl_twdbdata[[#This Row],[Year]]=2016,0,tbl_twdbdata[[#This Row],[effsave]]-0.6*SUMIFS(tbl_twdbdata[effsave],tbl_twdbdata[Year],2020,tbl_twdbdata[utility],tbl_twdbdata[[#This Row],[utility]]))","v":26287068},2693,624,462,0,122813864,16372470,72208240,0,10907807,73634373,{"$f":"tbl_twdbdata[[#This Row],[utility]]&tbl_twdbdata[[#This Row],[Year]]","v":"BRECKENRIDGE2040"}]
[null,286,"BRECKENRIDGE","G",2050,5390,6298,42872061,{"$f":"IF(tbl_twdbdata[[#This Row],[Year]]=2016,0,tbl_twdbdata[[#This Row],[effsave]]-0.6*SUMIFS(tbl_twdbdata[effsave],tbl_twdbdata[Year],2020,tbl_twdbdata[utility],tbl_twdbdata[[#This Row],[utility]]))","v":30694290},2722,648,479,0,124114524,16545863,72972962,0,11023326,74414198,{"$f":"tbl_twdbdata[[#This Row],[utility]]&tbl_twdbdata[[#This Row],[Year]]","v":"BRECKENRIDGE2050"}]
[null,286,"BRECKENRIDGE","G",2060,5390,6315,43702326,{"$f":"IF(tbl_twdbdata[[#This Row],[Year]]=2016,0,tbl_twdbdata[[#This Row],[effsave]]-0.6*SUMIFS(tbl_twdbdata[effsave],tbl_twdbdata[Year],2020,tbl_twdbdata[utility],tbl_twdbdata[[#This Row],[utility]]))","v":31524555},2729,673,497,0,124449543,16590525,73169936,0,11053081,74615062,{"$f":"tbl_twdbdata[[#This Row],[utility]]&tbl_twdbdata[[#This Row],[Year]]","v":"BRECKENRIDGE2060"}]
[null,286,"BRECKENRIDGE","G",2070,5390,6380,44175439,{"$f":"IF(tbl_twdbdata[[#This Row],[Year]]=2016,0,tbl_twdbdata[[#This Row],[effsave]]-0.6*SUMIFS(tbl_twdbdata[effsave],tbl_twdbdata[Year],2020,tbl_twdbdata[utility],tbl_twdbdata[[#This Row],[utility]]))","v":31997668},2757,699,516,0,125730496,16761290,73923071,0,11166850,75383071,{"$f":"tbl_twdbdata[[#This Row],[utility]]&tbl_twdbdata[[#This Row],[Year]]","v":"BRECKENRIDGE2070"}]
[null,288,"BRENHAM","G",2016,14834,16668,0,{"$f":"IF(tbl_twdbdata[[#This Row],[Year]]=2016,0,tbl_twdbdata[[#This Row],[effsave]]-0.6*SUMIFS(tbl_twdbdata[effsave],tbl_twdbdata[Year],2020,tbl_twdbdata[utility],tbl_twdbdata[[#This Row],[utility]]))","v":0},5521,871,1271,2,369132000,63832100,324141900,2859600,84622576,72995624,{"$f":"tbl_twdbdata[[#This Row],[utility]]&tbl_twdbdata[[#This Row],[Year]]","v":"BRENHAM2016"}]
[null,288,"BRENHAM","G",2020,14834,18423,61998922,{"$f":"IF(tbl_twdbdata[[#This Row],[Year]]=2016,0,tbl_twdbdata[[#This Row],[effsave]]-0.6*SUMIFS(tbl_twdbdata[effsave],tbl_twdbdata[Year],2020,tbl_twdbdata[utility],tbl_twdbdata[[#This Row],[utility]]))","v":24799568.800000004},5906,932,1360,2,394896861,68287485,346766519,3059196,90529105,78090609,{"$f":"tbl_twdbdata[[#This Row],[utility]]&tbl_twdbdata[[#This Row],[Year]]","v":"BRENHAM2020"}]
[null,288,"BRENHAM","G",2030,14834,20048,94981410,{"$f":"IF(tbl_twdbdata[[#This Row],[Year]]=2016,0,tbl_twdbdata[[#This Row],[effsave]]-0.6*SUMIFS(tbl_twdbdata[effsave],tbl_twdbdata[Year],2020,tbl_twdbdata[utility],tbl_twdbdata[[#This Row],[utility]]))","v":57782056.800000004},6427,1014,1480,2,429728723,74310780,377353047,3329032,98514221,84978588,{"$f":"tbl_twdbdata[[#This Row],[utility]]&tbl_twdbdata[[#This Row],[Year]]","v":"BRENHAM2030"}]
[null,288,"BRENHAM","G",2040,14834,21155,120070491,{"$f":"IF(tbl_twdbdata[[#This Row],[Year]]=2016,0,tbl_twdbdata[[#This Row],[effsave]]-0.6*SUMIFS(tbl_twdbdata[effsave],tbl_twdbdata[Year],2020,tbl_twdbdata[utility],tbl_twdbdata[[#This Row],[utility]]))","v":82871137.800000012},6782,1103,1610,2,453457259,78414034,398189530,3512853,103953928,89670891,{"$f":"tbl_twdbdata[[#This Row],[utility]]&tbl_twdbdata[[#This Row],[Year]]","v":"BRENHAM2040"}]
[null,288,"BRENHAM","G",2050,14834,22256,137286136,{"$f":"IF(tbl_twdbdata[[#This Row],[Year]]=2016,0,tbl_twdbdata[[#This Row],[effsave]]-0.6*SUMIFS(tbl_twdbdata[effsave],tbl_twdbdata[Year],2020,tbl_twdbdata[utility],tbl_twdbdata[[#This Row],[utility]]))","v":100086782.80000001},7135,1200,1752,2,477057185,82495048,418913079,3695677,109364151,94337762,{"$f":"tbl_twdbdata[[#This Row],[utility]]&tbl_twdbdata[[#This Row],[Year]]","v":"BRENHAM2050"}]
[null,288,"BRENHAM","G",2060,14834,23111,144922148,{"$f":"IF(tbl_twdbdata[[#This Row],[Year]]=2016,0,tbl_twdbdata[[#This Row],[effsave]]-0.6*SUMIFS(tbl_twdbdata[effsave],tbl_twdbdata[Year],2020,tbl_twdbdata[utility],tbl_twdbdata[[#This Row],[utility]]))","v":107722794.80000001},7409,1306,1907,2,495384103,85664228,435006298,3837652,113565551,97961899,{"$f":"tbl_twdbdata[[#This Row],[utility]]&tbl_twdbdata[[#This Row],[Year]]","v":"BRENHAM2060"}]
[null,288,"BRENHAM","G",2070,14834,23810,149652993,{"$f":"IF(tbl_twdbdata[[#This Row],[Year]]=2016,0,tbl_twdbdata[[#This Row],[effsave]]-0.6*SUMIFS(tbl_twdbdata[effsave],tbl_twdbdata[Year],2020,tbl_twdbdata[utility],tbl_twdbdata[[#This Row],[utility]]))","v":112453639.80000001},7633,1421,2075,2,510367162,88255172,448163211,3953723,117000379,100924790,{"$f":"tbl_twdbdata[[#This Row],[utility]]&tbl_twdbdata[[#This Row],[Year]]","v":"BRENHAM2070"}]
[null,290,"BRIDGE CITY","I",2016,7840,8059,0,{"$f":"IF(tbl_twdbdata[[#This Row],[Year]]=2016,0,tbl_twdbdata[[#This Row],[effsave]]-0.6*SUMIFS(tbl_twdbdata[effsave],tbl_twdbdata[Year],2020,tbl_twdbdata[utility],tbl_twdbdata[[#This Row],[utility]]))","v":0},3642,68,326,0,203641000,18356000,34011000,0,3710132,34019395,{"$f":"tbl_twdbdata[[#This Row],[utility]]&tbl_twdbdata[[#This Row],[Year]]","v":"BRIDGE CITY2016"}]
[null,290,"BRIDGE CITY","I",2020,7840,8991,32751516,{"$f":"IF(tbl_twdbdata[[#This Row],[Year]]=2016,0,tbl_twdbdata[[#This Row],[effsave]]-0.6*SUMIFS(tbl_twdbdata[effsave],tbl_twdbdata[Year],2020,tbl_twdbdata[utility],tbl_twdbdata[[#This Row],[utility]]))","v":13100606.400000002},4063,76,364,0,227191492,20478818,37944274,0,4139198,37953639,{"$f":"tbl_twdbdata[[#This Row],[utility]]&tbl_twdbdata[[#This Row],[Year]]","v":"BRIDGE CITY2020"}]
[null,290,"BRIDGE CITY","I",2030,7840,9397,49699323,{"$f":"IF(tbl_twdbdata[[#This Row],[Year]]=2016,0,tbl_twdbdata[[#This Row],[effsave]]-0.6*SUMIFS(tbl_twdbdata[effsave],tbl_twdbdata[Year],2020,tbl_twdbdata[utility],tbl_twdbdata[[#This Row],[utility]]))","v":30048413.400000002},4246,79,381,0,237450612,21403565,39657695,0,4326109,39667484,{"$f":"tbl_twdbdata[[#This Row],[utility]]&tbl_twdbdata[[#This Row],[Year]]","v":"BRIDGE CITY2030"}]
[null,290,"BRIDGE CITY","I",2040,7840,9683,63581967,{"$f":"IF(tbl_twdbdata[[#This Row],[Year]]=2016,0,tbl_twdbdata[[#This Row],[effsave]]-0.6*SUMIFS(tbl_twdbdata[effsave],tbl_twdbdata[Year],2020,tbl_twdbdata[utility],tbl_twdbdata[[#This Row],[utility]]))","v":43931057.400000006},4375,83,398,0,244677480,22054988,40864687,0,4457775,40874774,{"$f":"tbl_twdbdata[[#This Row],[utility]]&tbl_twdbdata[[#This Row],[Year]]","v":"BRIDGE CITY2040"}]
[null,290,"BRIDGE CITY","I",2050,7840,9877,67343361,{"$f":"IF(tbl_twdbdata[[#This Row],[Year]]=2016,0,tbl_twdbdata[[#This Row],[effsave]]-0.6*SUMIFS(tbl_twdbdata[effsave],tbl_twdbdata[Year],2020,tbl_twdbdata[utility],tbl_twdbdata[[#This Row],[utility]]))","v":47692451.400000006},4463,87,416,0,249579621,22496862,41683416,0,4547087,41693705,{"$f":"tbl_twdbdata[[#This Row],[utility]]&tbl_twdbdata[[#This Row],[Year]]","v":"BRIDGE CITY2050"}]
[null,290,"BRIDGE CITY","I",2060,7840,10026,69457120,{"$f":"IF(tbl_twdbdata[[#This Row],[Year]]=2016,0,tbl_twdbdata[[#This Row],[effsave]]-0.6*SUMIFS(tbl_twdbdata[effsave],tbl_twdbdata[Year],2020,tbl_twdbdata[utility],tbl_twdbdata[[#This Row],[utility]]))","v":49806210.400000006},4530,91,435,0,253344667,22836240,42312234,0,4615682,42322678,{"$f":"tbl_twdbdata[[#This Row],[utility]]&tbl_twdbdata[[#This Row],[Year]]","v":"BRIDGE CITY2060"}]
[null,290,"BRIDGE CITY","I",2070,7840,10134,70279290,{"$f":"IF(tbl_twdbdata[[#This Row],[Year]]=2016,0,tbl_twdbdata[[#This Row],[effsave]]-0.6*SUMIFS(tbl_twdbdata[effsave],tbl_twdbdata[Year],2020,tbl_twdbdata[utility],tbl_twdbdata[[#This Row],[utility]]))","v":50628380.400000006},4579,95,455,0,256073694,23082232,42768021,0,4665402,42778578,{"$f":"tbl_twdbdata[[#This Row],[utility]]&tbl_twdbdata[[#This Row],[Year]]","v":"BRIDGE CITY2070"}]
[null,3149,"BRIGHT STAR SALEM SUD","D",2016,6951,6951,0,{"$f":"IF(tbl_twdbdata[[#This Row],[Year]]=2016,0,tbl_twdbdata[[#This Row],[effsave]]-0.6*SUMIFS(tbl_twdbdata[effsave],tbl_twdbdata[Year],2020,tbl_twdbdata[utility],tbl_twdbdata[[#This Row],[utility]]))","v":0},2121,22,45,3,101179600,11228300,6394500,1480400,1894495,34753495,{"$f":"tbl_twdbdata[[#This Row],[utility]]&tbl_twdbdata[[#This Row],[Year]]","v":"BRIGHT STAR SALEM SUD2016"}]
[null,3149,"BRIGHT STAR SALEM SUD","D",2020,4390,4406,16451784,{"$f":"IF(tbl_twdbdata[[#This Row],[Year]]=2016,0,tbl_twdbdata[[#This Row],[effsave]]-0.6*SUMIFS(tbl_twdbdata[effsave],tbl_twdbdata[Year],2020,tbl_twdbdata[utility],tbl_twdbdata[[#This Row],[utility]]))","v":6580713.5999999996},2129,22,45,3,101548364,11269223,6417806,1485796,1901400,34880159,{"$f":"tbl_twdbdata[[#This Row],[utility]]&tbl_twdbdata[[#This Row],[Year]]","v":"BRIGHT STAR SALEM SUD2020"}]
[null,3149,"BRIGHT STAR SALEM SUD","D",2030,4390,4637,24930599,{"$f":"IF(tbl_twdbdata[[#This Row],[Year]]=2016,0,tbl_twdbdata[[#This Row],[effsave]]-0.6*SUMIFS(tbl_twdbdata[effsave],tbl_twdbdata[Year],2020,tbl_twdbdata[utility],tbl_twdbdata[[#This Row],[utility]]))","v":15059528.6},2241,23,47,3,106872393,11860052,6754282,1563694,2001088,36708874,{"$f":"tbl_twdbdata[[#This Row],[utility]]&tbl_twdbdata[[#This Row],[Year]]","v":"BRIGHT STAR SALEM SUD2030"}]
[null,3149,"BRIGHT STAR SALEM SUD","D",2040,4390,4712,31215822,{"$f":"IF(tbl_twdbdata[[#This Row],[Year]]=2016,0,tbl_twdbdata[[#This Row],[effsave]]-0.6*SUMIFS(tbl_twdbdata[effsave],tbl_twdbdata[Year],2020,tbl_twdbdata[utility],tbl_twdbdata[[#This Row],[utility]]))","v":21344751.600000001},2277,24,49,3,108600974,12051879,6863527,1588986,2033454,37302613,{"$f":"tbl_twdbdata[[#This Row],[utility]]&tbl_twdbdata[[#This Row],[Year]]","v":"BRIGHT STAR SALEM SUD2040"}]
[null,3149,"BRIGHT STAR SALEM SUD","D",2050,4390,4790,32466860,{"$f":"IF(tbl_twdbdata[[#This Row],[Year]]=2016,0,tbl_twdbdata[[#This Row],[effsave]]-0.6*SUMIFS(tbl_twdbdata[effsave],tbl_twdbdata[Year],2020,tbl_twdbdata[utility],tbl_twdbdata[[#This Row],[utility]]))","v":22595789.600000001},2315,25,51,3,110398698,12251380,6977143,1615289,2067115,37920101,{"$f":"tbl_twdbdata[[#This Row],[utility]]&tbl_twdbdata[[#This Row],[Year]]","v":"BRIGHT STAR SALEM SUD2050"}]
[null,3149,"BRIGHT STAR SALEM SUD","D",2060,4390,4827,33228585,{"$f":"IF(tbl_twdbdata[[#This Row],[Year]]=2016,0,tbl_twdbdata[[#This Row],[effsave]]-0.6*SUMIFS(tbl_twdbdata[effsave],tbl_twdbdata[Year],2020,tbl_twdbdata[utility],tbl_twdbdata[[#This Row],[utility]]))","v":23357514.600000001},2333,26,53,3,111251465,12346015,7031037,1627766,2083082,38213012,{"$f":"tbl_twdbdata[[#This Row],[utility]]&tbl_twdbdata[[#This Row],[Year]]","v":"BRIGHT STAR SALEM SUD2060"}]
[null,3149,"BRIGHT STAR SALEM SUD","D",2070,4390,4848,33408538,{"$f":"IF(tbl_twdbdata[[#This Row],[Year]]=2016,0,tbl_twdbdata[[#This Row],[effsave]]-0.6*SUMIFS(tbl_twdbdata[effsave],tbl_twdbdata[Year],2020,tbl_twdbdata[utility],tbl_twdbdata[[#This Row],[utility]]))","v":23537467.600000001},2343,27,55,3,111735468,12399727,7061626,1634848,2092145,38379259,{"$f":"tbl_twdbdata[[#This Row],[utility]]&tbl_twdbdata[[#This Row],[Year]]","v":"BRIGHT STAR SALEM SUD2070"}]
[null,295,"BROOKESMITH SUD","F",2016,8045,8045,0,{"$f":"IF(tbl_twdbdata[[#This Row],[Year]]=2016,0,tbl_twdbdata[[#This Row],[effsave]]-0.6*SUMIFS(tbl_twdbdata[effsave],tbl_twdbdata[Year],2020,tbl_twdbdata[utility],tbl_twdbdata[[#This Row],[utility]]))","v":0},3620,1,68,59,307072500,29400,10906500,3380800,4505094,4913196,{"$f":"tbl_twdbdata[[#This Row],[utility]]&tbl_twdbdata[[#This Row],[Year]]","v":"BROOKESMITH SUD2016"}]
[null,295,"BROOKESMITH SUD","F",2020,8045,8136,26607974,{"$f":"IF(tbl_twdbdata[[#This Row],[Year]]=2016,0,tbl_twdbdata[[#This Row],[effsave]]-0.6*SUMIFS(tbl_twdbdata[effsave],tbl_twdbdata[Year],2020,tbl_twdbdata[utility],tbl_twdbdata[[#This Row],[utility]]))","v":10643189.600000001},3661,1,69,60,310545912,29733,11029868,3419041,4556053,4968771,{"$f":"tbl_twdbdata[[#This Row],[utility]]&tbl_twdbdata[[#This Row],[Year]]","v":"BROOKESMITH SUD2020"}]
[null,295,"BROOKESMITH SUD","F",2030,8045,8332,38136397,{"$f":"IF(tbl_twdbdata[[#This Row],[Year]]=2016,0,tbl_twdbdata[[#This Row],[effsave]]-0.6*SUMIFS(tbl_twdbdata[effsave],tbl_twdbdata[Year],2020,tbl_twdbdata[utility],tbl_twdbdata[[#This Row],[utility]]))","v":22171612.600000001},3749,1,70,61,318027107,30449,11295582,3501407,4665810,5088471,{"$f":"tbl_twdbdata[[#This Row],[utility]]&tbl_twdbdata[[#This Row],[Year]]","v":"BROOKESMITH SUD2030"}]
[null,295,"BROOKESMITH SUD","F",2040,8045,8334,46419547,{"$f":"IF(tbl_twdbdata[[#This Row],[Year]]=2016,0,tbl_twdbdata[[#This Row],[effsave]]-0.6*SUMIFS(tbl_twdbdata[effsave],tbl_twdbdata[Year],2020,tbl_twdbdata[utility],tbl_twdbdata[[#This Row],[utility]]))","v":30454762.600000001},3750,1,71,62,318103446,30456,11298293,3502247,4666930,5089692,{"$f":"tbl_twdbdata[[#This Row],[utility]]&tbl_twdbdata[[#This Row],[Year]]","v":"BROOKESMITH SUD2040"}]
[null,295,"BROOKESMITH SUD","F",2050,8045,8335,51018952,{"$f":"IF(tbl_twdbdata[[#This Row],[Year]]=2016,0,tbl_twdbdata[[#This Row],[effsave]]-0.6*SUMIFS(tbl_twdbdata[effsave],tbl_twdbdata[Year],2020,tbl_twdbdata[utility],tbl_twdbdata[[#This Row],[utility]]))","v":35054167.600000001},3750,1,72,63,318141615,30460,11299649,3502667,4667490,5090303,{"$f":"tbl_twdbdata[[#This Row],[utility]]&tbl_twdbdata[[#This Row],[Year]]","v":"BROOKESMITH SUD2050"}]
[null,295,"BROOKESMITH SUD","F",2060,8045,8337,51944095,{"$f":"IF(tbl_twdbdata[[#This Row],[Year]]=2016,0,tbl_twdbdata[[#This Row],[effsave]]-0.6*SUMIFS(tbl_twdbdata[effsave],tbl_twdbdata[Year],2020,tbl_twdbdata[utility],tbl_twdbdata[[#This Row],[utility]]))","v":35979310.600000001},3751,1,73,65,318217954,30467,11302360,3503507,4668610,5091524,{"$f":"tbl_twdbdata[[#This Row],[utility]]&tbl_twdbdata[[#This Row],[Year]]","v":"BROOKESMITH SUD2060"}]
[null,295,"BROOKESMITH SUD","F",2070,8045,8340,51993228,{"$f":"IF(tbl_twdbdata[[#This Row],[Year]]=2016,0,tbl_twdbdata[[#This Row],[effsave]]-0.6*SUMIFS(tbl_twdbdata[effsave],tbl_twdbdata[Year],2020,tbl_twdbdata[utility],tbl_twdbdata[[#This Row],[utility]]))","v":36028443.600000001},3752,1,74,67,318332462,30478,11306426,3504768,4670290,5093356,{"$f":"tbl_twdbdata[[#This Row],[utility]]&tbl_twdbdata[[#This Row],[Year]]","v":"BROOKESMITH SUD2070"}]
[null,298,"BROWNFIELD","O",2016,8857,10000,0,{"$f":"IF(tbl_twdbdata[[#This Row],[Year]]=2016,0,tbl_twdbdata[[#This Row],[effsave]]-0.6*SUMIFS(tbl_twdbdata[effsave],tbl_twdbdata[Year],2020,tbl_twdbdata[utility],tbl_twdbdata[[#This Row],[utility]]))","v":0},2694,490,315,0,311145219,32326776,60612705,0,7454809,184845195,{"$f":"tbl_twdbdata[[#This Row],[utility]]&tbl_twdbdata[[#This Row],[Year]]","v":"BROWNFIELD2016"}]
[null,298,"BROWNFIELD","O",2020,8857,10000,35806500,{"$f":"IF(tbl_twdbdata[[#This Row],[Year]]=2016,0,tbl_twdbdata[[#This Row],[effsave]]-0.6*SUMIFS(tbl_twdbdata[effsave],tbl_twdbdata[Year],2020,tbl_twdbdata[utility],tbl_twdbdata[[#This Row],[utility]]))","v":14322600},2790,507,326,0,322196561,33474967,62765564,0,7719591,191410578,{"$f":"tbl_twdbdata[[#This Row],[utility]]&tbl_twdbdata[[#This Row],[Year]]","v":"BROWNFIELD2020"}]
[null,298,"BROWNFIELD","O",2030,8857,10700,54872275,{"$f":"IF(tbl_twdbdata[[#This Row],[Year]]=2016,0,tbl_twdbdata[[#This Row],[effsave]]-0.6*SUMIFS(tbl_twdbdata[effsave],tbl_twdbdata[Year],2020,tbl_twdbdata[utility],tbl_twdbdata[[#This Row],[utility]]))","v":33388375},2985,542,349,0,344750320,35818215,67159154,0,8259962,204809318,{"$f":"tbl_twdbdata[[#This Row],[utility]]&tbl_twdbdata[[#This Row],[Year]]","v":"BROWNFIELD2030"}]
[null,298,"BROWNFIELD","O",2040,8857,11300,71106380,{"$f":"IF(tbl_twdbdata[[#This Row],[Year]]=2016,0,tbl_twdbdata[[#This Row],[effsave]]-0.6*SUMIFS(tbl_twdbdata[effsave],tbl_twdbdata[Year],2020,tbl_twdbdata[utility],tbl_twdbdata[[#This Row],[utility]]))","v":49622480},3152,580,374,0,364082114,37826713,70925088,0,8723137,216293953,{"$f":"tbl_twdbdata[[#This Row],[utility]]&tbl_twdbdata[[#This Row],[Year]]","v":"BROWNFIELD2040"}]
[null,298,"BROWNFIELD","O",2050,8857,12250,84327775,{"$f":"IF(tbl_twdbdata[[#This Row],[Year]]=2016,0,tbl_twdbdata[[#This Row],[effsave]]-0.6*SUMIFS(tbl_twdbdata[effsave],tbl_twdbdata[Year],2020,tbl_twdbdata[utility],tbl_twdbdata[[#This Row],[utility]]))","v":62843875},3417,621,400,0,394690787,41006835,76887816,0,9456498,234477958,{"$f":"tbl_twdbdata[[#This Row],[utility]]&tbl_twdbdata[[#This Row],[Year]]","v":"BROWNFIELD2050"}]
[null,298,"BROWNFIELD","O",2060,8857,12800,89515520,{"$f":"IF(tbl_twdbdata[[#This Row],[Year]]=2016,0,tbl_twdbdata[[#This Row],[effsave]]-0.6*SUMIFS(tbl_twdbdata[effsave],tbl_twdbdata[Year],2020,tbl_twdbdata[utility],tbl_twdbdata[[#This Row],[utility]]))","v":68031620},3570,664,428,0,412411598,42847958,80339922,0,9881075,245005540,{"$f":"tbl_twdbdata[[#This Row],[utility]]&tbl_twdbdata[[#This Row],[Year]]","v":"BROWNFIELD2060"}]
[null,298,"BROWNFIELD","O",2070,8857,13300,93254945,{"$f":"IF(tbl_twdbdata[[#This Row],[Year]]=2016,0,tbl_twdbdata[[#This Row],[effsave]]-0.6*SUMIFS(tbl_twdbdata[effsave],tbl_twdbdata[Year],2020,tbl_twdbdata[utility],tbl_twdbdata[[#This Row],[utility]]))","v":71771045},3709,710,458,0,428521426,44521706,83478201,0,10267054,254576069,{"$f":"tbl_twdbdata[[#This Row],[utility]]&tbl_twdbdata[[#This Row],[Year]]","v":"BROWNFIELD2070"}]
[null,300,"BROWNSVILLE","M",2016,187209,187209,0,{"$f":"IF(tbl_twdbdata[[#This Row],[Year]]=2016,0,tbl_twdbdata[[#This Row],[effsave]]-0.6*SUMIFS(tbl_twdbdata[effsave],tbl_twdbdata[Year],2020,tbl_twdbdata[utility],tbl_twdbdata[[#This Row],[utility]]))","v":0},45532,12135,4306,0,3643733000,479918000,2013029000,0,131613965,832263217,{"$f":"tbl_twdbdata[[#This Row],[utility]]&tbl_twdbdata[[#This Row],[Year]]","v":"BROWNSVILLE2016"}]
[null,300,"BROWNSVILLE","M",2020,177458,207603,715316897,{"$f":"IF(tbl_twdbdata[[#This Row],[Year]]=2016,0,tbl_twdbdata[[#This Row],[effsave]]-0.6*SUMIFS(tbl_twdbdata[effsave],tbl_twdbdata[Year],2020,tbl_twdbdata[utility],tbl_twdbdata[[#This Row],[utility]]))","v":286126758.80000001},53267,14196,5038,0,4262698227,561442237,2354984613,0,153971385,973640752,{"$f":"tbl_twdbdata[[#This Row],[utility]]&tbl_twdbdata[[#This Row],[Year]]","v":"BROWNSVILLE2020"}]
[null,300,"BROWNSVILLE","M",2030,177458,247009,1181073534,{"$f":"IF(tbl_twdbdata[[#This Row],[Year]]=2016,0,tbl_twdbdata[[#This Row],[effsave]]-0.6*SUMIFS(tbl_twdbdata[effsave],tbl_twdbdata[Year],2020,tbl_twdbdata[utility],tbl_twdbdata[[#This Row],[utility]]))","v":751883395.79999995},63378,16891,5994,0,5071818935,668011953,2801994164,0,183197342,1158451605,{"$f":"tbl_twdbdata[[#This Row],[utility]]&tbl_twdbdata[[#This Row],[Year]]","v":"BROWNSVILLE2030"}]
[null,300,"BROWNSVILLE","M",2040,177458,286983,1599514100,{"$f":"IF(tbl_twdbdata[[#This Row],[Year]]=2016,0,tbl_twdbdata[[#This Row],[effsave]]-0.6*SUMIFS(tbl_twdbdata[effsave],tbl_twdbdata[Year],2020,tbl_twdbdata[utility],tbl_twdbdata[[#This Row],[utility]]))","v":1170323961.8},73635,20097,7132,0,5892602348,776117770,3255446932,0,212844564,1345926330,{"$f":"tbl_twdbdata[[#This Row],[utility]]&tbl_twdbdata[[#This Row],[Year]]","v":"BROWNSVILLE2040"}]
[null,300,"BROWNSVILLE","M",2050,177458,330172,1964358314,{"$f":"IF(tbl_twdbdata[[#This Row],[Year]]=2016,0,tbl_twdbdata[[#This Row],[effsave]]-0.6*SUMIFS(tbl_twdbdata[effsave],tbl_twdbdata[Year],2020,tbl_twdbdata[utility],tbl_twdbdata[[#This Row],[utility]]))","v":1535168175.8},84717,23912,8485,0,6779399137,892918244,3745369672,0,244876231,1548479137,{"$f":"tbl_twdbdata[[#This Row],[utility]]&tbl_twdbdata[[#This Row],[Year]]","v":"BROWNSVILLE2050"}]
[null,300,"BROWNSVILLE","M",2060,177458,374323,2262557941,{"$f":"IF(tbl_twdbdata[[#This Row],[Year]]=2016,0,tbl_twdbdata[[#This Row],[effsave]]-0.6*SUMIFS(tbl_twdbdata[effsave],tbl_twdbdata[Year],2020,tbl_twdbdata[utility],tbl_twdbdata[[#This Row],[utility]]))","v":1833367802.8},96045,28451,10096,0,7685948606,1012320354,4246205044,0,277621377,1755543644,{"$f":"tbl_twdbdata[[#This Row],[utility]]&tbl_twdbdata[[#This Row],[Year]]","v":"BROWNSVILLE2060"}]
[null,300,"BROWNSVILLE","M",2070,177458,419718,2550731216,{"$f":"IF(tbl_twdbdata[[#This Row],[Year]]=2016,0,tbl_twdbdata[[#This Row],[effsave]]-0.6*SUMIFS(tbl_twdbdata[effsave],tbl_twdbdata[Year],2020,tbl_twdbdata[utility],tbl_twdbdata[[#This Row],[utility]]))","v":2121541077.8},107693,33851,12013,0,8618041042,1135086742,4761151969,0,311289152,1968442407,{"$f":"tbl_twdbdata[[#This Row],[utility]]&tbl_twdbdata[[#This Row],[Year]]","v":"BROWNSVILLE2070"}]
[null,301,"BROWNWOOD","F",2016,19288,19288,0,{"$f":"IF(tbl_twdbdata[[#This Row],[Year]]=2016,0,tbl_twdbdata[[#This Row],[effsave]]-0.6*SUMIFS(tbl_twdbdata[effsave],tbl_twdbdata[Year],2020,tbl_twdbdata[utility],tbl_twdbdata[[#This Row],[utility]]))","v":0},6018,2032,993,0,469984856,80242448,391509184,0,12389395,37025678,{"$f":"tbl_twdbdata[[#This Row],[utility]]&tbl_twdbdata[[#This Row],[Year]]","v":"BROWNWOOD2016"}]
[null,301,"BROWNWOOD","F",2020,18056,19926,68947945,{"$f":"IF(tbl_twdbdata[[#This Row],[Year]]=2016,0,tbl_twdbdata[[#This Row],[effsave]]-0.6*SUMIFS(tbl_twdbdata[effsave],tbl_twdbdata[Year],2020,tbl_twdbdata[utility],tbl_twdbdata[[#This Row],[utility]]))","v":27579178},6641,2242,1096,0,518659628,88552892,432056492,0,13672524,40860305,{"$f":"tbl_twdbdata[[#This Row],[utility]]&tbl_twdbdata[[#This Row],[Year]]","v":"BROWNWOOD2020"}]
[null,301,"BROWNWOOD","F",2030,18056,20406,101071938,{"$f":"IF(tbl_twdbdata[[#This Row],[Year]]=2016,0,tbl_twdbdata[[#This Row],[effsave]]-0.6*SUMIFS(tbl_twdbdata[effsave],tbl_twdbdata[Year],2020,tbl_twdbdata[utility],tbl_twdbdata[[#This Row],[utility]]))","v":59703171},6801,2296,1122,0,531153687,90686054,442464356,0,14001883,41844594,{"$f":"tbl_twdbdata[[#This Row],[utility]]&tbl_twdbdata[[#This Row],[Year]]","v":"BROWNWOOD2030"}]
[null,301,"BROWNWOOD","F",2040,18056,20406,124831664,{"$f":"IF(tbl_twdbdata[[#This Row],[Year]]=2016,0,tbl_twdbdata[[#This Row],[effsave]]-0.6*SUMIFS(tbl_twdbdata[effsave],tbl_twdbdata[Year],2020,tbl_twdbdata[utility],tbl_twdbdata[[#This Row],[utility]]))","v":83462897},6801,2351,1148,0,531153687,90686054,442464356,0,14001883,41844594,{"$f":"tbl_twdbdata[[#This Row],[utility]]&tbl_twdbdata[[#This Row],[Year]]","v":"BROWNWOOD2040"}]
[null,301,"BROWNWOOD","F",2050,18056,20406,137865997,{"$f":"IF(tbl_twdbdata[[#This Row],[Year]]=2016,0,tbl_twdbdata[[#This Row],[effsave]]-0.6*SUMIFS(tbl_twdbdata[effsave],tbl_twdbdata[Year],2020,tbl_twdbdata[utility],tbl_twdbdata[[#This Row],[utility]]))","v":96497230},6801,2408,1175,0,531153687,90686054,442464356,0,14001883,41844594,{"$f":"tbl_twdbdata[[#This Row],[utility]]&tbl_twdbdata[[#This Row],[Year]]","v":"BROWNWOOD2050"}]
[null,301,"BROWNWOOD","F",2060,18056,20406,140100454,{"$f":"IF(tbl_twdbdata[[#This Row],[Year]]=2016,0,tbl_twdbdata[[#This Row],[effsave]]-0.6*SUMIFS(tbl_twdbdata[effsave],tbl_twdbdata[Year],2020,tbl_twdbdata[utility],tbl_twdbdata[[#This Row],[utility]]))","v":98731687},6801,2466,1204,0,531153687,90686054,442464356,0,14001883,41844594,{"$f":"tbl_twdbdata[[#This Row],[utility]]&tbl_twdbdata[[#This Row],[Year]]","v":"BROWNWOOD2060"}]
[null,301,"BROWNWOOD","F",2070,18056,20406,140174936,{"$f":"IF(tbl_twdbdata[[#This Row],[Year]]=2016,0,tbl_twdbdata[[#This Row],[effsave]]-0.6*SUMIFS(tbl_twdbdata[effsave],tbl_twdbdata[Year],2020,tbl_twdbdata[utility],tbl_twdbdata[[#This Row],[utility]]))","v":98806169},6801,2525,1233,0,531153687,90686054,442464356,0,14001883,41844594,{"$f":"tbl_twdbdata[[#This Row],[utility]]&tbl_twdbdata[[#This Row],[Year]]","v":"BROWNWOOD2070"}]
[null,304,"BRUSHY CREEK WSC","I",2016,4560,4560,0,{"$f":"IF(tbl_twdbdata[[#This Row],[Year]]=2016,0,tbl_twdbdata[[#This Row],[effsave]]-0.6*SUMIFS(tbl_twdbdata[effsave],tbl_twdbdata[Year],2020,tbl_twdbdata[utility],tbl_twdbdata[[#This Row],[utility]]))","v":0},1518,0,2,0,88443300,0,902000,0,null,null,{"$f":"tbl_twdbdata[[#This Row],[utility]]&tbl_twdbdata[[#This Row],[Year]]","v":"BRUSHY CREEK WSC2016"}]
[null,304,"BRUSHY CREEK WSC","I",2020,4276,4278,14943268,{"$f":"IF(tbl_twdbdata[[#This Row],[Year]]=2016,0,tbl_twdbdata[[#This Row],[effsave]]-0.6*SUMIFS(tbl_twdbdata[effsave],tbl_twdbdata[Year],2020,tbl_twdbdata[utility],tbl_twdbdata[[#This Row],[utility]]))","v":5977307.2000000011},1519,0,2,0,88484667,0,902422,0,null,null,{"$f":"tbl_twdbdata[[#This Row],[utility]]&tbl_twdbdata[[#This Row],[Year]]","v":"BRUSHY CREEK WSC2020"}]
[null,304,"BRUSHY CREEK WSC","I",2030,4276,4455,22277228,{"$f":"IF(tbl_twdbdata[[#This Row],[Year]]=2016,0,tbl_twdbdata[[#This Row],[effsave]]-0.6*SUMIFS(tbl_twdbdata[effsave],tbl_twdbdata[Year],2020,tbl_twdbdata[utility],tbl_twdbdata[[#This Row],[utility]]))","v":13311267.200000001},1582,0,2,0,92145674,0,939759,0,null,null,{"$f":"tbl_twdbdata[[#This Row],[utility]]&tbl_twdbdata[[#This Row],[Year]]","v":"BRUSHY CREEK WSC2030"}]
[null,304,"BRUSHY CREEK WSC","I",2040,4276,4552,27995938,{"$f":"IF(tbl_twdbdata[[#This Row],[Year]]=2016,0,tbl_twdbdata[[#This Row],[effsave]]-0.6*SUMIFS(tbl_twdbdata[effsave],tbl_twdbdata[Year],2020,tbl_twdbdata[utility],tbl_twdbdata[[#This Row],[utility]]))","v":19029977.200000003},1616,0,2,0,94151988,0,960221,0,null,null,{"$f":"tbl_twdbdata[[#This Row],[utility]]&tbl_twdbdata[[#This Row],[Year]]","v":"BRUSHY CREEK WSC2040"}]
[null,304,"BRUSHY CREEK WSC","I",2050,4276,4627,31277595,{"$f":"IF(tbl_twdbdata[[#This Row],[Year]]=2016,0,tbl_twdbdata[[#This Row],[effsave]]-0.6*SUMIFS(tbl_twdbdata[effsave],tbl_twdbdata[Year],2020,tbl_twdbdata[utility],tbl_twdbdata[[#This Row],[utility]]))","v":22311634.200000003},1643,0,2,0,95703262,0,976042,0,null,null,{"$f":"tbl_twdbdata[[#This Row],[utility]]&tbl_twdbdata[[#This Row],[Year]]","v":"BRUSHY CREEK WSC2050"}]
[null,304,"BRUSHY CREEK WSC","I",2060,4276,4692,32247881,{"$f":"IF(tbl_twdbdata[[#This Row],[Year]]=2016,0,tbl_twdbdata[[#This Row],[effsave]]-0.6*SUMIFS(tbl_twdbdata[effsave],tbl_twdbdata[Year],2020,tbl_twdbdata[utility],tbl_twdbdata[[#This Row],[utility]]))","v":23281920.200000003},1666,0,2,0,97047699,0,989753,0,null,null,{"$f":"tbl_twdbdata[[#This Row],[utility]]&tbl_twdbdata[[#This Row],[Year]]","v":"BRUSHY CREEK WSC2060"}]
[null,304,"BRUSHY CREEK WSC","I",2070,4276,4754,32708709,{"$f":"IF(tbl_twdbdata[[#This Row],[Year]]=2016,0,tbl_twdbdata[[#This Row],[effsave]]-0.6*SUMIFS(tbl_twdbdata[effsave],tbl_twdbdata[Year],2020,tbl_twdbdata[utility],tbl_twdbdata[[#This Row],[utility]]))","v":23742748.200000003},1688,0,2,0,98330085,0,1002832,0,null,null,{"$f":"tbl_twdbdata[[#This Row],[utility]]&tbl_twdbdata[[#This Row],[Year]]","v":"BRUSHY CREEK WSC2070"}]
[null,305,"BRYAN","G",2016,59400,83322,0,{"$f":"IF(tbl_twdbdata[[#This Row],[Year]]=2016,0,tbl_twdbdata[[#This Row],[effsave]]-0.6*SUMIFS(tbl_twdbdata[effsave],tbl_twdbdata[Year],2020,tbl_twdbdata[utility],tbl_twdbdata[[#This Row],[utility]]))","v":0},19800,0,3151,2,1754070900,0,1789783100,10837900,26226653,183014347,{"$f":"tbl_twdbdata[[#This Row],[utility]]&tbl_twdbdata[[#This Row],[Year]]","v":"BRYAN2016"}]
[null,305,"BRYAN","G",2020,59400,84196,293486207,{"$f":"IF(tbl_twdbdata[[#This Row],[Year]]=2016,0,tbl_twdbdata[[#This Row],[effsave]]-0.6*SUMIFS(tbl_twdbdata[effsave],tbl_twdbdata[Year],2020,tbl_twdbdata[utility],tbl_twdbdata[[#This Row],[utility]]))","v":117394482.80000001},20225,0,3218,2,1791715742,0,1828194377,11070497,26789514,186942094,{"$f":"tbl_twdbdata[[#This Row],[utility]]&tbl_twdbdata[[#This Row],[Year]]","v":"BRYAN2020"}]
[null,305,"BRYAN","G",2030,59400,99959,473940605,{"$f":"IF(tbl_twdbdata[[#This Row],[Year]]=2016,0,tbl_twdbdata[[#This Row],[effsave]]-0.6*SUMIFS(tbl_twdbdata[effsave],tbl_twdbdata[Year],2020,tbl_twdbdata[utility],tbl_twdbdata[[#This Row],[utility]]))","v":297848880.80000001},24011,0,3820,2,2127157037,0,2170465125,13143092,31804991,221941004,{"$f":"tbl_twdbdata[[#This Row],[utility]]&tbl_twdbdata[[#This Row],[Year]]","v":"BRYAN2030"}]
[null,305,"BRYAN","G",2040,59400,118714,689823311,{"$f":"IF(tbl_twdbdata[[#This Row],[Year]]=2016,0,tbl_twdbdata[[#This Row],[effsave]]-0.6*SUMIFS(tbl_twdbdata[effsave],tbl_twdbdata[Year],2020,tbl_twdbdata[utility],tbl_twdbdata[[#This Row],[utility]]))","v":513731586.80000001},28516,0,4534,2,2526268975,0,2577702827,15609090,37772464,263583113,{"$f":"tbl_twdbdata[[#This Row],[utility]]&tbl_twdbdata[[#This Row],[Year]]","v":"BRYAN2040"}]
[null,305,"BRYAN","G",2050,59400,140827,878971721,{"$f":"IF(tbl_twdbdata[[#This Row],[Year]]=2016,0,tbl_twdbdata[[#This Row],[effsave]]-0.6*SUMIFS(tbl_twdbdata[effsave],tbl_twdbdata[Year],2020,tbl_twdbdata[utility],tbl_twdbdata[[#This Row],[utility]]))","v":702879996.79999995},33828,0,5383,2,2996840145,0,3057854643,18516614,44808386,312681057,{"$f":"tbl_twdbdata[[#This Row],[utility]]&tbl_twdbdata[[#This Row],[Year]]","v":"BRYAN2050"}]
[null,305,"BRYAN","G",2060,59400,167176,1060514391,{"$f":"IF(tbl_twdbdata[[#This Row],[Year]]=2016,0,tbl_twdbdata[[#This Row],[effsave]]-0.6*SUMIFS(tbl_twdbdata[effsave],tbl_twdbdata[Year],2020,tbl_twdbdata[utility],tbl_twdbdata[[#This Row],[utility]]))","v":884422666.79999995},40157,0,6391,2,3557554646,0,3629985072,21981108,53192120,371184278,{"$f":"tbl_twdbdata[[#This Row],[utility]]&tbl_twdbdata[[#This Row],[Year]]","v":"BRYAN2060"}]
[null,305,"BRYAN","G",2070,59400,211266,1347919333,{"$f":"IF(tbl_twdbdata[[#This Row],[Year]]=2016,0,tbl_twdbdata[[#This Row],[effsave]]-0.6*SUMIFS(tbl_twdbdata[effsave],tbl_twdbdata[Year],2020,tbl_twdbdata[utility],tbl_twdbdata[[#This Row],[utility]]))","v":1171827608.8},50748,0,7587,2,4495802865,0,4587335660,27778274,67220692,469078203,{"$f":"tbl_twdbdata[[#This Row],[utility]]&tbl_twdbdata[[#This Row],[Year]]","v":"BRYAN2070"}]
[null,308,"BUENA VISTA-BETHEL SUD","C",2016,3266,3266,0,{"$f":"IF(tbl_twdbdata[[#This Row],[Year]]=2016,0,tbl_twdbdata[[#This Row],[effsave]]-0.6*SUMIFS(tbl_twdbdata[effsave],tbl_twdbdata[Year],2020,tbl_twdbdata[utility],tbl_twdbdata[[#This Row],[utility]]))","v":0},1587,0,1,0,164685410,0,1711300,0,3887980,140753710,{"$f":"tbl_twdbdata[[#This Row],[utility]]&tbl_twdbdata[[#This Row],[Year]]","v":"BUENA VISTA-BETHEL SUD2016"}]
[null,308,"BUENA VISTA-BETHEL SUD","C",2020,3266,4619,12172451,{"$f":"IF(tbl_twdbdata[[#This Row],[Year]]=2016,0,tbl_twdbdata[[#This Row],[effsave]]-0.6*SUMIFS(tbl_twdbdata[effsave],tbl_twdbdata[Year],2020,tbl_twdbdata[utility],tbl_twdbdata[[#This Row],[utility]]))","v":4868980.4000000004},1853,0,1,0,192334237,0,1998608,0,4540728,164384674,{"$f":"tbl_twdbdata[[#This Row],[utility]]&tbl_twdbdata[[#This Row],[Year]]","v":"BUENA VISTA-BETHEL SUD2020"}]
[null,308,"BUENA VISTA-BETHEL SUD","C",2030,3266,5617,20789079,{"$f":"IF(tbl_twdbdata[[#This Row],[Year]]=2016,0,tbl_twdbdata[[#This Row],[effsave]]-0.6*SUMIFS(tbl_twdbdata[effsave],tbl_twdbdata[Year],2020,tbl_twdbdata[utility],tbl_twdbdata[[#This Row],[utility]]))","v":13485608.4},2253,0,1,0,233890758,0,2430435,0,5521816,199902298,{"$f":"tbl_twdbdata[[#This Row],[utility]]&tbl_twdbdata[[#This Row],[Year]]","v":"BUENA VISTA-BETHEL SUD2030"}]
[null,308,"BUENA VISTA-BETHEL SUD","C",2040,3266,6605,28206653,{"$f":"IF(tbl_twdbdata[[#This Row],[Year]]=2016,0,tbl_twdbdata[[#This Row],[effsave]]-0.6*SUMIFS(tbl_twdbdata[effsave],tbl_twdbdata[Year],2020,tbl_twdbdata[utility],tbl_twdbdata[[#This Row],[utility]]))","v":20903182.399999999},2649,0,1,0,275030881,0,2857935,0,6493074,235064034,{"$f":"tbl_twdbdata[[#This Row],[utility]]&tbl_twdbdata[[#This Row],[Year]]","v":"BUENA VISTA-BETHEL SUD2040"}]
[null,308,"BUENA VISTA-BETHEL SUD","C",2050,3266,8465,38714254,{"$f":"IF(tbl_twdbdata[[#This Row],[Year]]=2016,0,tbl_twdbdata[[#This Row],[effsave]]-0.6*SUMIFS(tbl_twdbdata[effsave],tbl_twdbdata[Year],2020,tbl_twdbdata[utility],tbl_twdbdata[[#This Row],[utility]]))","v":31410783.399999999},3395,0,1,0,352480910,0,3662743,0,8321555,301259205,{"$f":"tbl_twdbdata[[#This Row],[utility]]&tbl_twdbdata[[#This Row],[Year]]","v":"BUENA VISTA-BETHEL SUD2050"}]
[null,308,"BUENA VISTA-BETHEL SUD","C",2060,3266,12169,57342153,{"$f":"IF(tbl_twdbdata[[#This Row],[Year]]=2016,0,tbl_twdbdata[[#This Row],[effsave]]-0.6*SUMIFS(tbl_twdbdata[effsave],tbl_twdbdata[Year],2020,tbl_twdbdata[utility],tbl_twdbdata[[#This Row],[utility]]))","v":50038682.399999999},4881,0,1,0,506714731,0,5265436,0,11962788,433080126,{"$f":"tbl_twdbdata[[#This Row],[utility]]&tbl_twdbdata[[#This Row],[Year]]","v":"BUENA VISTA-BETHEL SUD2060"}]
[null,308,"BUENA VISTA-BETHEL SUD","C",2070,3266,16217,77186433,{"$f":"IF(tbl_twdbdata[[#This Row],[Year]]=2016,0,tbl_twdbdata[[#This Row],[effsave]]-0.6*SUMIFS(tbl_twdbdata[effsave],tbl_twdbdata[Year],2020,tbl_twdbdata[utility],tbl_twdbdata[[#This Row],[utility]]))","v":69882962.400000006},6505,0,1,0,675272643,0,7016976,0,15942192,577143595,{"$f":"tbl_twdbdata[[#This Row],[utility]]&tbl_twdbdata[[#This Row],[Year]]","v":"BUENA VISTA-BETHEL SUD2070"}]
[null,309,"BUFFALO","H",2016,1900,1900,0,{"$f":"IF(tbl_twdbdata[[#This Row],[Year]]=2016,0,tbl_twdbdata[[#This Row],[effsave]]-0.6*SUMIFS(tbl_twdbdata[effsave],tbl_twdbdata[Year],2020,tbl_twdbdata[utility],tbl_twdbdata[[#This Row],[utility]]))","v":0},714,65,146,0,41151000,2828000,47348000,0,1551788,31264240,{"$f":"tbl_twdbdata[[#This Row],[utility]]&tbl_twdbdata[[#This Row],[Year]]","v":"BUFFALO2016"}]
[null,309,"BUFFALO","H",2020,1735,1970,6557736,{"$f":"IF(tbl_twdbdata[[#This Row],[Year]]=2016,0,tbl_twdbdata[[#This Row],[effsave]]-0.6*SUMIFS(tbl_twdbdata[effsave],tbl_twdbdata[Year],2020,tbl_twdbdata[utility],tbl_twdbdata[[#This Row],[utility]]))","v":2623094.4000000004},811,74,165,0,46724767,3211043,53761130,0,1761973,35498878,{"$f":"tbl_twdbdata[[#This Row],[utility]]&tbl_twdbdata[[#This Row],[Year]]","v":"BUFFALO2020"}]
[null,309,"BUFFALO","H",2030,1735,2020,9629138,{"$f":"IF(tbl_twdbdata[[#This Row],[Year]]=2016,0,tbl_twdbdata[[#This Row],[effsave]]-0.6*SUMIFS(tbl_twdbdata[effsave],tbl_twdbdata[Year],2020,tbl_twdbdata[utility],tbl_twdbdata[[#This Row],[utility]]))","v":5694496.4000000004},832,76,169,0,47910675,3292542,55125625,0,1806693,36399865,{"$f":"tbl_twdbdata[[#This Row],[utility]]&tbl_twdbdata[[#This Row],[Year]]","v":"BUFFALO2030"}]
[null,309,"BUFFALO","H",2040,1735,2059,12152321,{"$f":"IF(tbl_twdbdata[[#This Row],[Year]]=2016,0,tbl_twdbdata[[#This Row],[effsave]]-0.6*SUMIFS(tbl_twdbdata[effsave],tbl_twdbdata[Year],2020,tbl_twdbdata[utility],tbl_twdbdata[[#This Row],[utility]]))","v":8217679.4000000004},848,78,173,0,48835683,3356111,56189932,0,1841575,37102635,{"$f":"tbl_twdbdata[[#This Row],[utility]]&tbl_twdbdata[[#This Row],[Year]]","v":"BUFFALO2040"}]
[null,309,"BUFFALO","H",2050,1735,2113,13774436,{"$f":"IF(tbl_twdbdata[[#This Row],[Year]]=2016,0,tbl_twdbdata[[#This Row],[effsave]]-0.6*SUMIFS(tbl_twdbdata[effsave],tbl_twdbdata[Year],2020,tbl_twdbdata[utility],tbl_twdbdata[[#This Row],[utility]]))","v":9839794.4000000004},870,80,177,0,50116463,3444129,57663588,0,1889873,38075701,{"$f":"tbl_twdbdata[[#This Row],[utility]]&tbl_twdbdata[[#This Row],[Year]]","v":"BUFFALO2050"}]
[null,309,"BUFFALO","H",2060,1735,2161,14347635,{"$f":"IF(tbl_twdbdata[[#This Row],[Year]]=2016,0,tbl_twdbdata[[#This Row],[effsave]]-0.6*SUMIFS(tbl_twdbdata[effsave],tbl_twdbdata[Year],2020,tbl_twdbdata[utility],tbl_twdbdata[[#This Row],[utility]]))","v":10412993.4},890,82,181,0,51254934,3522368,58973503,0,1932804,38940648,{"$f":"tbl_twdbdata[[#This Row],[utility]]&tbl_twdbdata[[#This Row],[Year]]","v":"BUFFALO2060"}]
[null,309,"BUFFALO","H",2070,1735,2207,14677212,{"$f":"IF(tbl_twdbdata[[#This Row],[Year]]=2016,0,tbl_twdbdata[[#This Row],[effsave]]-0.6*SUMIFS(tbl_twdbdata[effsave],tbl_twdbdata[Year],2020,tbl_twdbdata[utility],tbl_twdbdata[[#This Row],[utility]]))","v":10742570.4},909,84,185,0,52345969,3597347,60228839,0,1973947,39769556,{"$f":"tbl_twdbdata[[#This Row],[utility]]&tbl_twdbdata[[#This Row],[Year]]","v":"BUFFALO2070"}]
[null,313,"BURKBURNETT","B",2016,10811,10811,0,{"$f":"IF(tbl_twdbdata[[#This Row],[Year]]=2016,0,tbl_twdbdata[[#This Row],[effsave]]-0.6*SUMIFS(tbl_twdbdata[effsave],tbl_twdbdata[Year],2020,tbl_twdbdata[utility],tbl_twdbdata[[#This Row],[utility]]))","v":0},4109,15,378,2,175491200,14730600,99461600,1288100,null,null,{"$f":"tbl_twdbdata[[#This Row],[utility]]&tbl_twdbdata[[#This Row],[Year]]","v":"BURKBURNETT2016"}]
[null,313,"BURKBURNETT","B",2020,10638,11004,37915382,{"$f":"IF(tbl_twdbdata[[#This Row],[Year]]=2016,0,tbl_twdbdata[[#This Row],[effsave]]-0.6*SUMIFS(tbl_twdbdata[effsave],tbl_twdbdata[Year],2020,tbl_twdbdata[utility],tbl_twdbdata[[#This Row],[utility]]))","v":15166152.800000001},4250,16,391,2,181528968,15237406,102883572,1332417,null,null,{"$f":"tbl_twdbdata[[#This Row],[utility]]&tbl_twdbdata[[#This Row],[Year]]","v":"BURKBURNETT2020"}]
[null,313,"BURKBURNETT","B",2030,10638,11405,56947446,{"$f":"IF(tbl_twdbdata[[#This Row],[Year]]=2016,0,tbl_twdbdata[[#This Row],[effsave]]-0.6*SUMIFS(tbl_twdbdata[effsave],tbl_twdbdata[Year],2020,tbl_twdbdata[utility],tbl_twdbdata[[#This Row],[utility]]))","v":34198216.799999997},4405,17,405,2,188144119,15792677,106632782,1380972,null,null,{"$f":"tbl_twdbdata[[#This Row],[utility]]&tbl_twdbdata[[#This Row],[Year]]","v":"BURKBURNETT2030"}]
[null,313,"BURKBURNETT","B",2040,10638,11721,72686023,{"$f":"IF(tbl_twdbdata[[#This Row],[Year]]=2016,0,tbl_twdbdata[[#This Row],[effsave]]-0.6*SUMIFS(tbl_twdbdata[effsave],tbl_twdbdata[Year],2020,tbl_twdbdata[utility],tbl_twdbdata[[#This Row],[utility]]))","v":49936793.799999997},4527,18,419,2,193357056,16230247,109587271,1419235,null,null,{"$f":"tbl_twdbdata[[#This Row],[utility]]&tbl_twdbdata[[#This Row],[Year]]","v":"BURKBURNETT2040"}]
[null,313,"BURKBURNETT","B",2050,10638,11941,81634049,{"$f":"IF(tbl_twdbdata[[#This Row],[Year]]=2016,0,tbl_twdbdata[[#This Row],[effsave]]-0.6*SUMIFS(tbl_twdbdata[effsave],tbl_twdbdata[Year],2020,tbl_twdbdata[utility],tbl_twdbdata[[#This Row],[utility]]))","v":58884819.799999997},4612,19,434,2,196986316,16534884,111644194,1445874,null,null,{"$f":"tbl_twdbdata[[#This Row],[utility]]&tbl_twdbdata[[#This Row],[Year]]","v":"BURKBURNETT2050"}]
[null,313,"BURKBURNETT","B",2060,10638,12153,84458489,{"$f":"IF(tbl_twdbdata[[#This Row],[Year]]=2016,0,tbl_twdbdata[[#This Row],[effsave]]-0.6*SUMIFS(tbl_twdbdata[effsave],tbl_twdbdata[Year],2020,tbl_twdbdata[utility],tbl_twdbdata[[#This Row],[utility]]))","v":61709259.799999997},4694,20,449,2,200483603,16828444,113626320,1471544,null,null,{"$f":"tbl_twdbdata[[#This Row],[utility]]&tbl_twdbdata[[#This Row],[Year]]","v":"BURKBURNETT2060"}]
[null,313,"BURKBURNETT","B",2070,10638,12331,85830542,{"$f":"IF(tbl_twdbdata[[#This Row],[Year]]=2016,0,tbl_twdbdata[[#This Row],[effsave]]-0.6*SUMIFS(tbl_twdbdata[effsave],tbl_twdbdata[Year],2020,tbl_twdbdata[utility],tbl_twdbdata[[#This Row],[utility]]))","v":63081312.799999997},4763,21,466,2,203420004,17074923,115290558,1493097,null,null,{"$f":"tbl_twdbdata[[#This Row],[utility]]&tbl_twdbdata[[#This Row],[Year]]","v":"BURKBURNETT2070"}]
[null,314,"BURLESON","G",2016,35393,35393,0,{"$f":"IF(tbl_twdbdata[[#This Row],[Year]]=2016,0,tbl_twdbdata[[#This Row],[effsave]]-0.6*SUMIFS(tbl_twdbdata[effsave],tbl_twdbdata[Year],2020,tbl_twdbdata[utility],tbl_twdbdata[[#This Row],[utility]]))","v":0},13483,102,1071,0,1059458200,79720800,298493500,0,null,null,{"$f":"tbl_twdbdata[[#This Row],[utility]]&tbl_twdbdata[[#This Row],[Year]]","v":"BURLESON2016"}]
[null,314,"BURLESON","G",2020,35393,42785,126181522,{"$f":"IF(tbl_twdbdata[[#This Row],[Year]]=2016,0,tbl_twdbdata[[#This Row],[effsave]]-0.6*SUMIFS(tbl_twdbdata[effsave],tbl_twdbdata[Year],2020,tbl_twdbdata[utility],tbl_twdbdata[[#This Row],[utility]]))","v":50472608.799999997},14160,107,1125,0,1112693777,83726605,313492179,0,null,null,{"$f":"tbl_twdbdata[[#This Row],[utility]]&tbl_twdbdata[[#This Row],[Year]]","v":"BURLESON2020"}]
[null,314,"BURLESON","G",2030,35393,50642,204436690,{"$f":"IF(tbl_twdbdata[[#This Row],[Year]]=2016,0,tbl_twdbdata[[#This Row],[effsave]]-0.6*SUMIFS(tbl_twdbdata[effsave],tbl_twdbdata[Year],2020,tbl_twdbdata[utility],tbl_twdbdata[[#This Row],[utility]]))","v":128727776.8},16760,127,1332,0,1317027890,99102086,371061609,0,null,null,{"$f":"tbl_twdbdata[[#This Row],[utility]]&tbl_twdbdata[[#This Row],[Year]]","v":"BURLESON2030"}]
[null,314,"BURLESON","G",2040,35393,58630,273063362,{"$f":"IF(tbl_twdbdata[[#This Row],[Year]]=2016,0,tbl_twdbdata[[#This Row],[effsave]]-0.6*SUMIFS(tbl_twdbdata[effsave],tbl_twdbdata[Year],2020,tbl_twdbdata[utility],tbl_twdbdata[[#This Row],[utility]]))","v":197354448.80000001},19404,150,1577,0,1524768872,114733922,429590896,0,null,null,{"$f":"tbl_twdbdata[[#This Row],[utility]]&tbl_twdbdata[[#This Row],[Year]]","v":"BURLESON2040"}]
[null,314,"BURLESON","G",2050,35393,67043,332801452,{"$f":"IF(tbl_twdbdata[[#This Row],[Year]]=2016,0,tbl_twdbdata[[#This Row],[effsave]]-0.6*SUMIFS(tbl_twdbdata[effsave],tbl_twdbdata[Year],2020,tbl_twdbdata[utility],tbl_twdbdata[[#This Row],[utility]]))","v":257092538.80000001},22188,178,1867,0,1743562672,131197447,491234222,0,null,null,{"$f":"tbl_twdbdata[[#This Row],[utility]]&tbl_twdbdata[[#This Row],[Year]]","v":"BURLESON2050"}]
[null,314,"BURLESON","G",2060,35393,75909,384293108,{"$f":"IF(tbl_twdbdata[[#This Row],[Year]]=2016,0,tbl_twdbdata[[#This Row],[effsave]]-0.6*SUMIFS(tbl_twdbdata[effsave],tbl_twdbdata[Year],2020,tbl_twdbdata[utility],tbl_twdbdata[[#This Row],[utility]]))","v":308584194.80000001},25122,211,2210,0,1974137477,148547455,556196748,0,null,null,{"$f":"tbl_twdbdata[[#This Row],[utility]]&tbl_twdbdata[[#This Row],[Year]]","v":"BURLESON2060"}]
[null,314,"BURLESON","G",2070,35393,85147,433547237,{"$f":"IF(tbl_twdbdata[[#This Row],[Year]]=2016,0,tbl_twdbdata[[#This Row],[effsave]]-0.6*SUMIFS(tbl_twdbdata[effsave],tbl_twdbdata[Year],2020,tbl_twdbdata[utility],tbl_twdbdata[[#This Row],[utility]]))","v":357838323.80000001},28179,250,2616,0,2214386749,166625435,623884974,0,null,null,{"$f":"tbl_twdbdata[[#This Row],[utility]]&tbl_twdbdata[[#This Row],[Year]]","v":"BURLESON2070"}]
[null,315,"BURNET","K",2016,7000,7000,0,{"$f":"IF(tbl_twdbdata[[#This Row],[Year]]=2016,0,tbl_twdbdata[[#This Row],[effsave]]-0.6*SUMIFS(tbl_twdbdata[effsave],tbl_twdbdata[Year],2020,tbl_twdbdata[utility],tbl_twdbdata[[#This Row],[utility]]))","v":0},1769,15,421,0,134871000,5900000,125452000,0,3763813,31118238,{"$f":"tbl_twdbdata[[#This Row],[utility]]&tbl_twdbdata[[#This Row],[Year]]","v":"BURNET2016"}]
[null,315,"BURNET","K",2020,6147,7424,25065280,{"$f":"IF(tbl_twdbdata[[#This Row],[Year]]=2016,0,tbl_twdbdata[[#This Row],[effsave]]-0.6*SUMIFS(tbl_twdbdata[effsave],tbl_twdbdata[Year],2020,tbl_twdbdata[utility],tbl_twdbdata[[#This Row],[utility]]))","v":10026112},2136,18,509,0,162889589,7125687,151513852,0,4545721,37582853,{"$f":"tbl_twdbdata[[#This Row],[utility]]&tbl_twdbdata[[#This Row],[Year]]","v":"BURNET2020"}]
[null,315,"BURNET","K",2030,6147,8983,41411181,{"$f":"IF(tbl_twdbdata[[#This Row],[Year]]=2016,0,tbl_twdbdata[[#This Row],[effsave]]-0.6*SUMIFS(tbl_twdbdata[effsave],tbl_twdbdata[Year],2020,tbl_twdbdata[utility],tbl_twdbdata[[#This Row],[utility]]))","v":26372013},2585,22,616,0,197095525,8622043,183330945,0,5500298,45475050,{"$f":"tbl_twdbdata[[#This Row],[utility]]&tbl_twdbdata[[#This Row],[Year]]","v":"BURNET2030"}]
[null,315,"BURNET","K",2040,6147,10298,54502165,{"$f":"IF(tbl_twdbdata[[#This Row],[Year]]=2016,0,tbl_twdbdata[[#This Row],[effsave]]-0.6*SUMIFS(tbl_twdbdata[effsave],tbl_twdbdata[Year],2020,tbl_twdbdata[utility],tbl_twdbdata[[#This Row],[utility]]))","v":39462997},2963,27,745,0,225947870,9884203,210168326,0,6305474,52132034,{"$f":"tbl_twdbdata[[#This Row],[utility]]&tbl_twdbdata[[#This Row],[Year]]","v":"BURNET2040"}]
[null,315,"BURNET","K",2050,6147,11555,64992831,{"$f":"IF(tbl_twdbdata[[#This Row],[Year]]=2016,0,tbl_twdbdata[[#This Row],[effsave]]-0.6*SUMIFS(tbl_twdbdata[effsave],tbl_twdbdata[Year],2020,tbl_twdbdata[utility],tbl_twdbdata[[#This Row],[utility]]))","v":49953663},3325,33,901,0,253527640,11090694,235822004,0,7075136,58495402,{"$f":"tbl_twdbdata[[#This Row],[utility]]&tbl_twdbdata[[#This Row],[Year]]","v":"BURNET2050"}]
[null,315,"BURNET","K",2060,6147,12660,72270876,{"$f":"IF(tbl_twdbdata[[#This Row],[Year]]=2016,0,tbl_twdbdata[[#This Row],[effsave]]-0.6*SUMIFS(tbl_twdbdata[effsave],tbl_twdbdata[Year],2020,tbl_twdbdata[utility],tbl_twdbdata[[#This Row],[utility]]))","v":57231708},3643,40,1090,0,277772386,12151293,258373568,0,7751728,64089294,{"$f":"tbl_twdbdata[[#This Row],[utility]]&tbl_twdbdata[[#This Row],[Year]]","v":"BURNET2060"}]
[null,315,"BURNET","K",2070,6147,13619,78093389,{"$f":"IF(tbl_twdbdata[[#This Row],[Year]]=2016,0,tbl_twdbdata[[#This Row],[effsave]]-0.6*SUMIFS(tbl_twdbdata[effsave],tbl_twdbdata[Year],2020,tbl_twdbdata[utility],tbl_twdbdata[[#This Row],[utility]]))","v":63054221},3919,48,1319,0,298813754,13071758,277945468,0,8338924,68944083,{"$f":"tbl_twdbdata[[#This Row],[utility]]&tbl_twdbdata[[#This Row],[Year]]","v":"BURNET2070"}]
[null,322,"CAMERON","G",2016,5580,5580,0,{"$f":"IF(tbl_twdbdata[[#This Row],[Year]]=2016,0,tbl_twdbdata[[#This Row],[effsave]]-0.6*SUMIFS(tbl_twdbdata[effsave],tbl_twdbdata[Year],2020,tbl_twdbdata[utility],tbl_twdbdata[[#This Row],[utility]]))","v":0},1598,65,321,0,122868500,2438200,100094100,0,47500000,53153200,{"$f":"tbl_twdbdata[[#This Row],[utility]]&tbl_twdbdata[[#This Row],[Year]]","v":"CAMERON2016"}]
[null,322,"CAMERON","G",2020,4961,5904,21204806,{"$f":"IF(tbl_twdbdata[[#This Row],[Year]]=2016,0,tbl_twdbdata[[#This Row],[effsave]]-0.6*SUMIFS(tbl_twdbdata[effsave],tbl_twdbdata[Year],2020,tbl_twdbdata[utility],tbl_twdbdata[[#This Row],[utility]]))","v":8481922.4000000004},1902,77,382,0,146223669,2901660,119120251,0,56528926,63256701,{"$f":"tbl_twdbdata[[#This Row],[utility]]&tbl_twdbdata[[#This Row],[Year]]","v":"CAMERON2020"}]
[null,322,"CAMERON","G",2030,4961,6254,32505790,{"$f":"IF(tbl_twdbdata[[#This Row],[Year]]=2016,0,tbl_twdbdata[[#This Row],[effsave]]-0.6*SUMIFS(tbl_twdbdata[effsave],tbl_twdbdata[Year],2020,tbl_twdbdata[utility],tbl_twdbdata[[#This Row],[utility]]))","v":19782906.399999999},2015,82,404,0,154892078,3073676,126181919,0,59880065,67006675,{"$f":"tbl_twdbdata[[#This Row],[utility]]&tbl_twdbdata[[#This Row],[Year]]","v":"CAMERON2030"}]
[null,322,"CAMERON","G",2040,4961,6504,41639258,{"$f":"IF(tbl_twdbdata[[#This Row],[Year]]=2016,0,tbl_twdbdata[[#This Row],[effsave]]-0.6*SUMIFS(tbl_twdbdata[effsave],tbl_twdbdata[Year],2020,tbl_twdbdata[utility],tbl_twdbdata[[#This Row],[utility]]))","v":28916374.399999999},2096,87,428,0,161083798,3196544,131225968,0,62273736,69685228,{"$f":"tbl_twdbdata[[#This Row],[utility]]&tbl_twdbdata[[#This Row],[Year]]","v":"CAMERON2040"}]
[null,322,"CAMERON","G",2050,4961,6820,47495844,{"$f":"IF(tbl_twdbdata[[#This Row],[Year]]=2016,0,tbl_twdbdata[[#This Row],[effsave]]-0.6*SUMIFS(tbl_twdbdata[effsave],tbl_twdbdata[Year],2020,tbl_twdbdata[utility],tbl_twdbdata[[#This Row],[utility]]))","v":34772960.399999999},2198,92,453,0,168910133,3351850,137601646,0,65299336,73070919,{"$f":"tbl_twdbdata[[#This Row],[utility]]&tbl_twdbdata[[#This Row],[Year]]","v":"CAMERON2050"}]
[null,322,"CAMERON","G",2060,4961,7089,50171334,{"$f":"IF(tbl_twdbdata[[#This Row],[Year]]=2016,0,tbl_twdbdata[[#This Row],[effsave]]-0.6*SUMIFS(tbl_twdbdata[effsave],tbl_twdbdata[Year],2020,tbl_twdbdata[utility],tbl_twdbdata[[#This Row],[utility]]))","v":37448450.399999999},2285,97,479,0,175572424,3484056,143029043,0,67874926,75953042,{"$f":"tbl_twdbdata[[#This Row],[utility]]&tbl_twdbdata[[#This Row],[Year]]","v":"CAMERON2060"}]
[null,322,"CAMERON","G",2070,4961,7343,52102991,{"$f":"IF(tbl_twdbdata[[#This Row],[Year]]=2016,0,tbl_twdbdata[[#This Row],[effsave]]-0.6*SUMIFS(tbl_twdbdata[effsave],tbl_twdbdata[Year],2020,tbl_twdbdata[utility],tbl_twdbdata[[#This Row],[utility]]))","v":39380107.399999999},2367,103,507,0,181863212,3608890,148153796,0,70306895,78674452,{"$f":"tbl_twdbdata[[#This Row],[utility]]&tbl_twdbdata[[#This Row],[Year]]","v":"CAMERON2070"}]
[null,323,"CAMP WOOD","J",2016,1134,1134,0,{"$f":"IF(tbl_twdbdata[[#This Row],[Year]]=2016,0,tbl_twdbdata[[#This Row],[effsave]]-0.6*SUMIFS(tbl_twdbdata[effsave],tbl_twdbdata[Year],2020,tbl_twdbdata[utility],tbl_twdbdata[[#This Row],[utility]]))","v":0},317,0,81,0,17645430,0,10443120,0,null,null,{"$f":"tbl_twdbdata[[#This Row],[utility]]&tbl_twdbdata[[#This Row],[Year]]","v":"CAMP WOOD2016"}]
[null,323,"CAMP WOOD","J",2020,678,747,2560230,{"$f":"IF(tbl_twdbdata[[#This Row],[Year]]=2016,0,tbl_twdbdata[[#This Row],[effsave]]-0.6*SUMIFS(tbl_twdbdata[effsave],tbl_twdbdata[Year],2020,tbl_twdbdata[utility],tbl_twdbdata[[#This Row],[utility]]))","v":1024092},349,0,89,0,19441204,0,11505915,0,null,null,{"$f":"tbl_twdbdata[[#This Row],[utility]]&tbl_twdbdata[[#This Row],[Year]]","v":"CAMP WOOD2020"}]
[null,323,"CAMP WOOD","J",2030,678,747,3735374,{"$f":"IF(tbl_twdbdata[[#This Row],[Year]]=2016,0,tbl_twdbdata[[#This Row],[effsave]]-0.6*SUMIFS(tbl_twdbdata[effsave],tbl_twdbdata[Year],2020,tbl_twdbdata[utility],tbl_twdbdata[[#This Row],[utility]]))","v":2199236},349,0,89,0,19441204,0,11505915,0,null,null,{"$f":"tbl_twdbdata[[#This Row],[utility]]&tbl_twdbdata[[#This Row],[Year]]","v":"CAMP WOOD2030"}]
[null,323,"CAMP WOOD","J",2040,678,747,4733291,{"$f":"IF(tbl_twdbdata[[#This Row],[Year]]=2016,0,tbl_twdbdata[[#This Row],[effsave]]-0.6*SUMIFS(tbl_twdbdata[effsave],tbl_twdbdata[Year],2020,tbl_twdbdata[utility],tbl_twdbdata[[#This Row],[utility]]))","v":3197153},349,0,89,0,19441204,0,11505915,0,null,null,{"$f":"tbl_twdbdata[[#This Row],[utility]]&tbl_twdbdata[[#This Row],[Year]]","v":"CAMP WOOD2040"}]
[null,323,"CAMP WOOD","J",2050,678,747,5101375,{"$f":"IF(tbl_twdbdata[[#This Row],[Year]]=2016,0,tbl_twdbdata[[#This Row],[effsave]]-0.6*SUMIFS(tbl_twdbdata[effsave],tbl_twdbdata[Year],2020,tbl_twdbdata[utility],tbl_twdbdata[[#This Row],[utility]]))","v":3565237},349,0,89,0,19441204,0,11505915,0,null,null,{"$f":"tbl_twdbdata[[#This Row],[utility]]&tbl_twdbdata[[#This Row],[Year]]","v":"CAMP WOOD2050"}]
[null,323,"CAMP WOOD","J",2060,678,747,5191351,{"$f":"IF(tbl_twdbdata[[#This Row],[Year]]=2016,0,tbl_twdbdata[[#This Row],[effsave]]-0.6*SUMIFS(tbl_twdbdata[effsave],tbl_twdbdata[Year],2020,tbl_twdbdata[utility],tbl_twdbdata[[#This Row],[utility]]))","v":3655213},349,0,89,0,19441204,0,11505915,0,null,null,{"$f":"tbl_twdbdata[[#This Row],[utility]]&tbl_twdbdata[[#This Row],[Year]]","v":"CAMP WOOD2060"}]
[null,323,"CAMP WOOD","J",2070,678,747,5191351,{"$f":"IF(tbl_twdbdata[[#This Row],[Year]]=2016,0,tbl_twdbdata[[#This Row],[effsave]]-0.6*SUMIFS(tbl_twdbdata[effsave],tbl_twdbdata[Year],2020,tbl_twdbdata[utility],tbl_twdbdata[[#This Row],[utility]]))","v":3655213},349,0,89,0,19441204,0,11505915,0,null,null,{"$f":"tbl_twdbdata[[#This Row],[utility]]&tbl_twdbdata[[#This Row],[Year]]","v":"CAMP WOOD2070"}]
[null,6237,"CANEY CREEK MUD OF MATAGORDA COUNTY","K",2016,1681,1681,0,{"$f":"IF(tbl_twdbdata[[#This Row],[Year]]=2016,0,tbl_twdbdata[[#This Row],[effsave]]-0.6*SUMIFS(tbl_twdbdata[effsave],tbl_twdbdata[Year],2020,tbl_twdbdata[utility],tbl_twdbdata[[#This Row],[utility]]))","v":0},1996,0,9,0,47393670,0,7025000,0,843763,12238588,{"$f":"tbl_twdbdata[[#This Row],[utility]]&tbl_twdbdata[[#This Row],[Year]]","v":"CANEY CREEK MUD OF MATAGORDA COUNTY2016"}]
[null,6237,"CANEY CREEK MUD OF MATAGORDA COUNTY","K",2020,1656,2088,7529746,{"$f":"IF(tbl_twdbdata[[#This Row],[Year]]=2016,0,tbl_twdbdata[[#This Row],[effsave]]-0.6*SUMIFS(tbl_twdbdata[effsave],tbl_twdbdata[Year],2020,tbl_twdbdata[utility],tbl_twdbdata[[#This Row],[utility]]))","v":3011898.4000000004},2517,0,11,0,59757236,0,8857609,0,1063875,15431263,{"$f":"tbl_twdbdata[[#This Row],[utility]]&tbl_twdbdata[[#This Row],[Year]]","v":"CANEY CREEK MUD OF MATAGORDA COUNTY2020"}]
[null,6237,"CANEY CREEK MUD OF MATAGORDA COUNTY","K",2030,1656,2198,11392234,{"$f":"IF(tbl_twdbdata[[#This Row],[Year]]=2016,0,tbl_twdbdata[[#This Row],[effsave]]-0.6*SUMIFS(tbl_twdbdata[effsave],tbl_twdbdata[Year],2020,tbl_twdbdata[utility],tbl_twdbdata[[#This Row],[utility]]))","v":6874386.4000000004},2650,0,12,0,62905366,0,9324245,0,1119922,16244213,{"$f":"tbl_twdbdata[[#This Row],[utility]]&tbl_twdbdata[[#This Row],[Year]]","v":"CANEY CREEK MUD OF MATAGORDA COUNTY2030"}]
[null,6237,"CANEY CREEK MUD OF MATAGORDA COUNTY","K",2040,1656,2270,14466483,{"$f":"IF(tbl_twdbdata[[#This Row],[Year]]=2016,0,tbl_twdbdata[[#This Row],[effsave]]-0.6*SUMIFS(tbl_twdbdata[effsave],tbl_twdbdata[Year],2020,tbl_twdbdata[utility],tbl_twdbdata[[#This Row],[utility]]))","v":9948635.4000000004},2737,0,13,0,64965960,0,9629680,0,1156607,16776326,{"$f":"tbl_twdbdata[[#This Row],[utility]]&tbl_twdbdata[[#This Row],[Year]]","v":"CANEY CREEK MUD OF MATAGORDA COUNTY2040"}]
[null,6237,"CANEY CREEK MUD OF MATAGORDA COUNTY","K",2050,1656,2324,15887910,{"$f":"IF(tbl_twdbdata[[#This Row],[Year]]=2016,0,tbl_twdbdata[[#This Row],[effsave]]-0.6*SUMIFS(tbl_twdbdata[effsave],tbl_twdbdata[Year],2020,tbl_twdbdata[utility],tbl_twdbdata[[#This Row],[utility]]))","v":11370062.4},2802,0,14,0,66511406,0,9858756,0,1184121,17175410,{"$f":"tbl_twdbdata[[#This Row],[utility]]&tbl_twdbdata[[#This Row],[Year]]","v":"CANEY CREEK MUD OF MATAGORDA COUNTY2050"}]
[null,6237,"CANEY CREEK MUD OF MATAGORDA COUNTY","K",2060,1656,2362,16406334,{"$f":"IF(tbl_twdbdata[[#This Row],[Year]]=2016,0,tbl_twdbdata[[#This Row],[effsave]]-0.6*SUMIFS(tbl_twdbdata[effsave],tbl_twdbdata[Year],2020,tbl_twdbdata[utility],tbl_twdbdata[[#This Row],[utility]]))","v":11888486.4},2848,0,15,0,67598942,0,10019958,0,1203483,17456247,{"$f":"tbl_twdbdata[[#This Row],[utility]]&tbl_twdbdata[[#This Row],[Year]]","v":"CANEY CREEK MUD OF MATAGORDA COUNTY2060"}]
[null,6237,"CANEY CREEK MUD OF MATAGORDA COUNTY","K",2070,1656,2390,16618268,{"$f":"IF(tbl_twdbdata[[#This Row],[Year]]=2016,0,tbl_twdbdata[[#This Row],[effsave]]-0.6*SUMIFS(tbl_twdbdata[effsave],tbl_twdbdata[Year],2020,tbl_twdbdata[utility],tbl_twdbdata[[#This Row],[utility]]))","v":12100420.4},2882,0,16,0,68400284,0,10138738,0,1217750,17663180,{"$f":"tbl_twdbdata[[#This Row],[utility]]&tbl_twdbdata[[#This Row],[Year]]","v":"CANEY CREEK MUD OF MATAGORDA COUNTY2070"}]
[null,328,"CANTON","D",2016,3581,3581,0,{"$f":"IF(tbl_twdbdata[[#This Row],[Year]]=2016,0,tbl_twdbdata[[#This Row],[effsave]]-0.6*SUMIFS(tbl_twdbdata[effsave],tbl_twdbdata[Year],2020,tbl_twdbdata[utility],tbl_twdbdata[[#This Row],[utility]]))","v":0},1678,21,549,0,204334760,5729172,114160271,0,4378643,21688611,{"$f":"tbl_twdbdata[[#This Row],[utility]]&tbl_twdbdata[[#This Row],[Year]]","v":"CANTON2016"}]
[null,328,"CANTON","D",2020,3581,3981,13905832,{"$f":"IF(tbl_twdbdata[[#This Row],[Year]]=2016,0,tbl_twdbdata[[#This Row],[effsave]]-0.6*SUMIFS(tbl_twdbdata[effsave],tbl_twdbdata[Year],2020,tbl_twdbdata[utility],tbl_twdbdata[[#This Row],[utility]]))","v":5562332.8000000007},1858,23,608,0,226211535,6342557,126382658,0,4847435,24010668,{"$f":"tbl_twdbdata[[#This Row],[utility]]&tbl_twdbdata[[#This Row],[Year]]","v":"CANTON2020"}]
[null,328,"CANTON","D",2030,3581,4352,21539789,{"$f":"IF(tbl_twdbdata[[#This Row],[Year]]=2016,0,tbl_twdbdata[[#This Row],[effsave]]-0.6*SUMIFS(tbl_twdbdata[effsave],tbl_twdbdata[Year],2020,tbl_twdbdata[utility],tbl_twdbdata[[#This Row],[utility]]))","v":13196289.800000001},2031,25,665,0,247292791,6933637,138160595,0,5299180,26248286,{"$f":"tbl_twdbdata[[#This Row],[utility]]&tbl_twdbdata[[#This Row],[Year]]","v":"CANTON2030"}]
[null,328,"CANTON","D",2040,3581,4636,27581882,{"$f":"IF(tbl_twdbdata[[#This Row],[Year]]=2016,0,tbl_twdbdata[[#This Row],[effsave]]-0.6*SUMIFS(tbl_twdbdata[effsave],tbl_twdbdata[Year],2020,tbl_twdbdata[utility],tbl_twdbdata[[#This Row],[utility]]))","v":19238382.800000001},2164,27,727,0,263430464,7386108,147176590,0,5644990,27961180,{"$f":"tbl_twdbdata[[#This Row],[utility]]&tbl_twdbdata[[#This Row],[Year]]","v":"CANTON2040"}]
[null,328,"CANTON","D",2050,3581,4919,31797154,{"$f":"IF(tbl_twdbdata[[#This Row],[Year]]=2016,0,tbl_twdbdata[[#This Row],[effsave]]-0.6*SUMIFS(tbl_twdbdata[effsave],tbl_twdbdata[Year],2020,tbl_twdbdata[utility],tbl_twdbdata[[#This Row],[utility]]))","v":23453654.800000001},2296,30,795,0,279511314,7836986,156160838,0,5989583,29668042,{"$f":"tbl_twdbdata[[#This Row],[utility]]&tbl_twdbdata[[#This Row],[Year]]","v":"CANTON2050"}]
[null,328,"CANTON","D",2060,3581,5153,33855210,{"$f":"IF(tbl_twdbdata[[#This Row],[Year]]=2016,0,tbl_twdbdata[[#This Row],[effsave]]-0.6*SUMIFS(tbl_twdbdata[effsave],tbl_twdbdata[Year],2020,tbl_twdbdata[utility],tbl_twdbdata[[#This Row],[utility]]))","v":25511710.800000001},2405,33,869,0,292807847,8209796,163589510,0,6274511,31079370,{"$f":"tbl_twdbdata[[#This Row],[utility]]&tbl_twdbdata[[#This Row],[Year]]","v":"CANTON2060"}]
[null,328,"CANTON","D",2070,3581,5352,35260314,{"$f":"IF(tbl_twdbdata[[#This Row],[Year]]=2016,0,tbl_twdbdata[[#This Row],[effsave]]-0.6*SUMIFS(tbl_twdbdata[effsave],tbl_twdbdata[Year],2020,tbl_twdbdata[utility],tbl_twdbdata[[#This Row],[utility]]))","v":26916814.800000001},2498,36,950,0,304115583,8526844,169907056,0,6516822,32279602,{"$f":"tbl_twdbdata[[#This Row],[utility]]&tbl_twdbdata[[#This Row],[Year]]","v":"CANTON2070"}]
[null,329,"CANYON","A",2016,14200,14200,0,{"$f":"IF(tbl_twdbdata[[#This Row],[Year]]=2016,0,tbl_twdbdata[[#This Row],[effsave]]-0.6*SUMIFS(tbl_twdbdata[effsave],tbl_twdbdata[Year],2020,tbl_twdbdata[utility],tbl_twdbdata[[#This Row],[utility]]))","v":0},4364,120,354,0,405781000,54040000,239668000,0,136968943,69031853,{"$f":"tbl_twdbdata[[#This Row],[utility]]&tbl_twdbdata[[#This Row],[Year]]","v":"CANYON2016"}]
[null,329,"CANYON","A",2020,12452,14802,53811191,{"$f":"IF(tbl_twdbdata[[#This Row],[Year]]=2016,0,tbl_twdbdata[[#This Row],[effsave]]-0.6*SUMIFS(tbl_twdbdata[effsave],tbl_twdbdata[Year],2020,tbl_twdbdata[utility],tbl_twdbdata[[#This Row],[utility]]))","v":21524476.400000002},5188,143,421,0,482361899,64238683,284899272,0,162818366,82059869,{"$f":"tbl_twdbdata[[#This Row],[utility]]&tbl_twdbdata[[#This Row],[Year]]","v":"CANYON2020"}]
[null,329,"CANYON","A",2030,12452,16552,86211920,{"$f":"IF(tbl_twdbdata[[#This Row],[Year]]=2016,0,tbl_twdbdata[[#This Row],[effsave]]-0.6*SUMIFS(tbl_twdbdata[effsave],tbl_twdbdata[Year],2020,tbl_twdbdata[utility],tbl_twdbdata[[#This Row],[utility]]))","v":53925205.400000006},5801,160,471,0,539390228,71833447,318582134,0,182067936,91761583,{"$f":"tbl_twdbdata[[#This Row],[utility]]&tbl_twdbdata[[#This Row],[Year]]","v":"CANYON2030"}]
[null,329,"CANYON","A",2040,12452,18304,114979322,{"$f":"IF(tbl_twdbdata[[#This Row],[Year]]=2016,0,tbl_twdbdata[[#This Row],[effsave]]-0.6*SUMIFS(tbl_twdbdata[effsave],tbl_twdbdata[Year],2020,tbl_twdbdata[utility],tbl_twdbdata[[#This Row],[utility]]))","v":82692607.400000006},6415,179,527,0,596483732,79436891,352303491,0,201339506,101474385,{"$f":"tbl_twdbdata[[#This Row],[utility]]&tbl_twdbdata[[#This Row],[Year]]","v":"CANYON2040"}]
[null,329,"CANYON","A",2050,12452,20097,136805303,{"$f":"IF(tbl_twdbdata[[#This Row],[Year]]=2016,0,tbl_twdbdata[[#This Row],[effsave]]-0.6*SUMIFS(tbl_twdbdata[effsave],tbl_twdbdata[Year],2020,tbl_twdbdata[utility],tbl_twdbdata[[#This Row],[utility]]))","v":104518588.40000001},7043,200,590,0,654913328,87218269,386813989,0,221062066,111414484,{"$f":"tbl_twdbdata[[#This Row],[utility]]&tbl_twdbdata[[#This Row],[Year]]","v":"CANYON2050"}]
[null,329,"CANYON","A",2060,12452,22006,152210001,{"$f":"IF(tbl_twdbdata[[#This Row],[Year]]=2016,0,tbl_twdbdata[[#This Row],[effsave]]-0.6*SUMIFS(tbl_twdbdata[effsave],tbl_twdbdata[Year],2020,tbl_twdbdata[utility],tbl_twdbdata[[#This Row],[utility]]))","v":119923286.40000001},7712,224,660,0,717123088,95503071,423557179,0,242060597,121997668,{"$f":"tbl_twdbdata[[#This Row],[utility]]&tbl_twdbdata[[#This Row],[Year]]","v":"CANYON2060"}]
[null,329,"CANYON","A",2070,12452,23989,166626395,{"$f":"IF(tbl_twdbdata[[#This Row],[Year]]=2016,0,tbl_twdbdata[[#This Row],[effsave]]-0.6*SUMIFS(tbl_twdbdata[effsave],tbl_twdbdata[Year],2020,tbl_twdbdata[utility],tbl_twdbdata[[#This Row],[utility]]))","v":134339680.40000001},8407,250,738,0,781744331,104109023,461724674,0,263873110,132991096,{"$f":"tbl_twdbdata[[#This Row],[utility]]&tbl_twdbdata[[#This Row],[Year]]","v":"CANYON2070"}]
[null,3150,"CANYON LAKE WATER SERVICE","L",2016,28983,36209,0,{"$f":"IF(tbl_twdbdata[[#This Row],[Year]]=2016,0,tbl_twdbdata[[#This Row],[effsave]]-0.6*SUMIFS(tbl_twdbdata[effsave],tbl_twdbdata[Year],2020,tbl_twdbdata[utility],tbl_twdbdata[[#This Row],[utility]]))","v":0},12607,35,525,0,845167800,12654500,170083198,0,56264499,289272550,{"$f":"tbl_twdbdata[[#This Row],[utility]]&tbl_twdbdata[[#This Row],[Year]]","v":"CANYON LAKE WATER SERVICE2016"}]
[null,3150,"CANYON LAKE WATER SERVICE","L",2020,28983,38521,100811383,{"$f":"IF(tbl_twdbdata[[#This Row],[Year]]=2016,0,tbl_twdbdata[[#This Row],[effsave]]-0.6*SUMIFS(tbl_twdbdata[effsave],tbl_twdbdata[Year],2020,tbl_twdbdata[utility],tbl_twdbdata[[#This Row],[utility]]))","v":40324553.200000003},13396,37,558,0,898066557,13446541,180728646,0,18312773,250420981,{"$f":"tbl_twdbdata[[#This Row],[utility]]&tbl_twdbdata[[#This Row],[Year]]","v":"CANYON LAKE WATER SERVICE2020"}]
[null,3150,"CANYON LAKE WATER SERVICE","L",2030,28983,54059,179556969,{"$f":"IF(tbl_twdbdata[[#This Row],[Year]]=2016,0,tbl_twdbdata[[#This Row],[effsave]]-0.6*SUMIFS(tbl_twdbdata[effsave],tbl_twdbdata[Year],2020,tbl_twdbdata[utility],tbl_twdbdata[[#This Row],[utility]]))","v":119070139.2},18799,52,783,0,1260314634,18870397,253628148,0,25699494,351431889,{"$f":"tbl_twdbdata[[#This Row],[utility]]&tbl_twdbdata[[#This Row],[Year]]","v":"CANYON LAKE WATER SERVICE2030"}]
[null,3150,"CANYON LAKE WATER SERVICE","L",2040,28983,69763,249032981,{"$f":"IF(tbl_twdbdata[[#This Row],[Year]]=2016,0,tbl_twdbdata[[#This Row],[effsave]]-0.6*SUMIFS(tbl_twdbdata[effsave],tbl_twdbdata[Year],2020,tbl_twdbdata[utility],tbl_twdbdata[[#This Row],[utility]]))","v":188546151.19999999},24260,73,1099,0,1626432783,24352199,327306470,0,33165131,453521946,{"$f":"tbl_twdbdata[[#This Row],[utility]]&tbl_twdbdata[[#This Row],[Year]]","v":"CANYON LAKE WATER SERVICE2040"}]
[null,3150,"CANYON LAKE WATER SERVICE","L",2050,28983,85585,316133873,{"$f":"IF(tbl_twdbdata[[#This Row],[Year]]=2016,0,tbl_twdbdata[[#This Row],[effsave]]-0.6*SUMIFS(tbl_twdbdata[effsave],tbl_twdbdata[Year],2020,tbl_twdbdata[utility],tbl_twdbdata[[#This Row],[utility]]))","v":255647043.19999999},29762,102,1543,0,1995301947,29875191,401538412,0,40686865,556379109,{"$f":"tbl_twdbdata[[#This Row],[utility]]&tbl_twdbdata[[#This Row],[Year]]","v":"CANYON LAKE WATER SERVICE2050"}]
[null,3150,"CANYON LAKE WATER SERVICE","L",2060,28983,101326,380195417,{"$f":"IF(tbl_twdbdata[[#This Row],[Year]]=2016,0,tbl_twdbdata[[#This Row],[effsave]]-0.6*SUMIFS(tbl_twdbdata[effsave],tbl_twdbdata[Year],2020,tbl_twdbdata[utility],tbl_twdbdata[[#This Row],[utility]]))","v":319708587.19999999},35236,143,2165,0,2362282702,35369908,475390327,0,48170092,658709699,{"$f":"tbl_twdbdata[[#This Row],[utility]]&tbl_twdbdata[[#This Row],[Year]]","v":"CANYON LAKE WATER SERVICE2060"}]
[null,3150,"CANYON LAKE WATER SERVICE","L",2070,28983,116502,440115431,{"$f":"IF(tbl_twdbdata[[#This Row],[Year]]=2016,0,tbl_twdbdata[[#This Row],[effsave]]-0.6*SUMIFS(tbl_twdbdata[effsave],tbl_twdbdata[Year],2020,tbl_twdbdata[utility],tbl_twdbdata[[#This Row],[utility]]))","v":379628601.19999999},40513,201,3038,0,2716091224,40667400,546591436,0,55384719,757367283,{"$f":"tbl_twdbdata[[#This Row],[utility]]&tbl_twdbdata[[#This Row],[Year]]","v":"CANYON LAKE WATER SERVICE2070"}]
[null,332,"CARROLLTON","C",2016,127980,127980,0,{"$f":"IF(tbl_twdbdata[[#This Row],[Year]]=2016,0,tbl_twdbdata[[#This Row],[effsave]]-0.6*SUMIFS(tbl_twdbdata[effsave],tbl_twdbdata[Year],2020,tbl_twdbdata[utility],tbl_twdbdata[[#This Row],[utility]]))","v":0},31995,15900,1831,0,3380759000,1253478000,2031005000,0,91001413,523869587,{"$f":"tbl_twdbdata[[#This Row],[utility]]&tbl_twdbdata[[#This Row],[Year]]","v":"CARROLLTON2016"}]
[null,332,"CARROLLTON","C",2020,127969,130481,430535108,{"$f":"IF(tbl_twdbdata[[#This Row],[Year]]=2016,0,tbl_twdbdata[[#This Row],[effsave]]-0.6*SUMIFS(tbl_twdbdata[effsave],tbl_twdbdata[Year],2020,tbl_twdbdata[utility],tbl_twdbdata[[#This Row],[utility]]))","v":172214043.20000002},32623,16212,1867,0,3447122468,1278083465,2070873129,0,92787748,534153018,{"$f":"tbl_twdbdata[[#This Row],[utility]]&tbl_twdbdata[[#This Row],[Year]]","v":"CARROLLTON2020"}]
[null,332,"CARROLLTON","C",2030,127969,132965,610535391,{"$f":"IF(tbl_twdbdata[[#This Row],[Year]]=2016,0,tbl_twdbdata[[#This Row],[effsave]]-0.6*SUMIFS(tbl_twdbdata[effsave],tbl_twdbdata[Year],2020,tbl_twdbdata[utility],tbl_twdbdata[[#This Row],[utility]]))","v":352214326.20000005},33244,16521,1903,0,3512746216,1302414665,2110296867,0,94554172,544321825,{"$f":"tbl_twdbdata[[#This Row],[utility]]&tbl_twdbdata[[#This Row],[Year]]","v":"CARROLLTON2030"}]
[null,332,"CARROLLTON","C",2040,127969,132968,742074463,{"$f":"IF(tbl_twdbdata[[#This Row],[Year]]=2016,0,tbl_twdbdata[[#This Row],[effsave]]-0.6*SUMIFS(tbl_twdbdata[effsave],tbl_twdbdata[Year],2020,tbl_twdbdata[utility],tbl_twdbdata[[#This Row],[utility]]))","v":483753398.20000005},33245,16836,1939,0,3512825472,1302444051,2110344480,0,94556305,544334106,{"$f":"tbl_twdbdata[[#This Row],[utility]]&tbl_twdbdata[[#This Row],[Year]]","v":"CARROLLTON2040"}]
[null,332,"CARROLLTON","C",2050,127969,132971,814892828,{"$f":"IF(tbl_twdbdata[[#This Row],[Year]]=2016,0,tbl_twdbdata[[#This Row],[effsave]]-0.6*SUMIFS(tbl_twdbdata[effsave],tbl_twdbdata[Year],2020,tbl_twdbdata[utility],tbl_twdbdata[[#This Row],[utility]]))","v":556571763.20000005},33246,17157,1976,0,3512904728,1302473437,2110392093,0,94558438,544346387,{"$f":"tbl_twdbdata[[#This Row],[utility]]&tbl_twdbdata[[#This Row],[Year]]","v":"CARROLLTON2050"}]
[null,332,"CARROLLTON","C",2060,127969,132974,829471866,{"$f":"IF(tbl_twdbdata[[#This Row],[Year]]=2016,0,tbl_twdbdata[[#This Row],[effsave]]-0.6*SUMIFS(tbl_twdbdata[effsave],tbl_twdbdata[Year],2020,tbl_twdbdata[utility],tbl_twdbdata[[#This Row],[utility]]))","v":571150801.20000005},33247,17484,2013,0,3512983984,1302502823,2110439706,0,94560571,544358668,{"$f":"tbl_twdbdata[[#This Row],[utility]]&tbl_twdbdata[[#This Row],[Year]]","v":"CARROLLTON2060"}]
[null,332,"CARROLLTON","C",2070,127969,132978,830467557,{"$f":"IF(tbl_twdbdata[[#This Row],[Year]]=2016,0,tbl_twdbdata[[#This Row],[effsave]]-0.6*SUMIFS(tbl_twdbdata[effsave],tbl_twdbdata[Year],2020,tbl_twdbdata[utility],tbl_twdbdata[[#This Row],[utility]]))","v":572146492.20000005},33248,17817,2051,0,3513089658,1302542004,2110503191,0,94563415,544375043,{"$f":"tbl_twdbdata[[#This Row],[utility]]&tbl_twdbdata[[#This Row],[Year]]","v":"CARROLLTON2070"}]
[null,22,"CARTHAGE","I",2016,6882,6882,0,{"$f":"IF(tbl_twdbdata[[#This Row],[Year]]=2016,0,tbl_twdbdata[[#This Row],[effsave]]-0.6*SUMIFS(tbl_twdbdata[effsave],tbl_twdbdata[Year],2020,tbl_twdbdata[utility],tbl_twdbdata[[#This Row],[utility]]))","v":0},2818,20,761,0,162773000,4274700,542788100,0,null,null,{"$f":"tbl_twdbdata[[#This Row],[utility]]&tbl_twdbdata[[#This Row],[Year]]","v":"CARTHAGE2016"}]
[null,22,"CARTHAGE","I",2020,6864,6925,23532189,{"$f":"IF(tbl_twdbdata[[#This Row],[Year]]=2016,0,tbl_twdbdata[[#This Row],[effsave]]-0.6*SUMIFS(tbl_twdbdata[effsave],tbl_twdbdata[Year],2020,tbl_twdbdata[utility],tbl_twdbdata[[#This Row],[utility]]))","v":9412875.5999999996},2843,20,768,0,164219555,4312689,547611829,0,null,null,{"$f":"tbl_twdbdata[[#This Row],[utility]]&tbl_twdbdata[[#This Row],[Year]]","v":"CARTHAGE2020"}]
[null,22,"CARTHAGE","I",2030,6864,7066,34714551,{"$f":"IF(tbl_twdbdata[[#This Row],[Year]]=2016,0,tbl_twdbdata[[#This Row],[effsave]]-0.6*SUMIFS(tbl_twdbdata[effsave],tbl_twdbdata[Year],2020,tbl_twdbdata[utility],tbl_twdbdata[[#This Row],[utility]]))","v":20595237.600000001},2901,20,784,0,167563231,4400500,558761759,0,null,null,{"$f":"tbl_twdbdata[[#This Row],[utility]]&tbl_twdbdata[[#This Row],[Year]]","v":"CARTHAGE2030"}]
[null,22,"CARTHAGE","I",2040,6864,7152,43856064,{"$f":"IF(tbl_twdbdata[[#This Row],[Year]]=2016,0,tbl_twdbdata[[#This Row],[effsave]]-0.6*SUMIFS(tbl_twdbdata[effsave],tbl_twdbdata[Year],2020,tbl_twdbdata[utility],tbl_twdbdata[[#This Row],[utility]]))","v":29736750.600000001},2936,20,800,0,169602636,4454058,565562426,0,null,null,{"$f":"tbl_twdbdata[[#This Row],[utility]]&tbl_twdbdata[[#This Row],[Year]]","v":"CARTHAGE2040"}]
[null,22,"CARTHAGE","I",2050,6864,7232,49098048,{"$f":"IF(tbl_twdbdata[[#This Row],[Year]]=2016,0,tbl_twdbdata[[#This Row],[effsave]]-0.6*SUMIFS(tbl_twdbdata[effsave],tbl_twdbdata[Year],2020,tbl_twdbdata[utility],tbl_twdbdata[[#This Row],[utility]]))","v":34978734.600000001},2969,20,816,0,171499757,4503880,571888628,0,null,null,{"$f":"tbl_twdbdata[[#This Row],[utility]]&tbl_twdbdata[[#This Row],[Year]]","v":"CARTHAGE2050"}]
[null,22,"CARTHAGE","I",2060,6864,7292,50357094,{"$f":"IF(tbl_twdbdata[[#This Row],[Year]]=2016,0,tbl_twdbdata[[#This Row],[effsave]]-0.6*SUMIFS(tbl_twdbdata[effsave],tbl_twdbdata[Year],2020,tbl_twdbdata[utility],tbl_twdbdata[[#This Row],[utility]]))","v":36237780.600000001},2994,20,833,0,172922598,4541246,576633280,0,null,null,{"$f":"tbl_twdbdata[[#This Row],[utility]]&tbl_twdbdata[[#This Row],[Year]]","v":"CARTHAGE2060"}]
[null,22,"CARTHAGE","I",2070,6864,7339,50708454,{"$f":"IF(tbl_twdbdata[[#This Row],[Year]]=2016,0,tbl_twdbdata[[#This Row],[effsave]]-0.6*SUMIFS(tbl_twdbdata[effsave],tbl_twdbdata[Year],2020,tbl_twdbdata[utility],tbl_twdbdata[[#This Row],[utility]]))","v":36589140.600000001},3013,20,850,0,174037157,4570516,580349923,0,null,null,{"$f":"tbl_twdbdata[[#This Row],[utility]]&tbl_twdbdata[[#This Row],[Year]]","v":"CARTHAGE2070"}]
[null,23,"CASH SUD","D",2016,17718,17718,0,{"$f":"IF(tbl_twdbdata[[#This Row],[Year]]=2016,0,tbl_twdbdata[[#This Row],[effsave]]-0.6*SUMIFS(tbl_twdbdata[effsave],tbl_twdbdata[Year],2020,tbl_twdbdata[utility],tbl_twdbdata[[#This Row],[utility]]))","v":0},6115,0,187,0,421970652,0,12986850,0,40387600,125020619,{"$f":"tbl_twdbdata[[#This Row],[utility]]&tbl_twdbdata[[#This Row],[Year]]","v":"CASH SUD2016"}]
[null,23,"CASH SUD","D",2020,17019,20491,70902958,{"$f":"IF(tbl_twdbdata[[#This Row],[Year]]=2016,0,tbl_twdbdata[[#This Row],[effsave]]-0.6*SUMIFS(tbl_twdbdata[effsave],tbl_twdbdata[Year],2020,tbl_twdbdata[utility],tbl_twdbdata[[#This Row],[utility]]))","v":28361183.200000003},7363,0,225,0,508055739,0,15636262,0,48626965,150525736,{"$f":"tbl_twdbdata[[#This Row],[utility]]&tbl_twdbdata[[#This Row],[Year]]","v":"CASH SUD2020"}]
[null,23,"CASH SUD","D",2030,17019,24592,113906455,{"$f":"IF(tbl_twdbdata[[#This Row],[Year]]=2016,0,tbl_twdbdata[[#This Row],[effsave]]-0.6*SUMIFS(tbl_twdbdata[effsave],tbl_twdbdata[Year],2020,tbl_twdbdata[utility],tbl_twdbdata[[#This Row],[utility]]))","v":71364680.200000003},8837,0,270,0,609736310,0,18765651,0,58359003,180651452,{"$f":"tbl_twdbdata[[#This Row],[utility]]&tbl_twdbdata[[#This Row],[Year]]","v":"CASH SUD2030"}]
[null,23,"CASH SUD","D",2040,17019,29451,156299402,{"$f":"IF(tbl_twdbdata[[#This Row],[Year]]=2016,0,tbl_twdbdata[[#This Row],[effsave]]-0.6*SUMIFS(tbl_twdbdata[effsave],tbl_twdbdata[Year],2020,tbl_twdbdata[utility],tbl_twdbdata[[#This Row],[utility]]))","v":113757627.2},10583,0,324,0,730210803,0,22473454,0,69889842,216345393,{"$f":"tbl_twdbdata[[#This Row],[utility]]&tbl_twdbdata[[#This Row],[Year]]","v":"CASH SUD2040"}]
[null,23,"CASH SUD","D",2050,17019,35192,197942683,{"$f":"IF(tbl_twdbdata[[#This Row],[Year]]=2016,0,tbl_twdbdata[[#This Row],[effsave]]-0.6*SUMIFS(tbl_twdbdata[effsave],tbl_twdbdata[Year],2020,tbl_twdbdata[utility],tbl_twdbdata[[#This Row],[utility]]))","v":155400908.19999999},12646,0,389,0,872553685,0,26854293,0,83513746,258518457,{"$f":"tbl_twdbdata[[#This Row],[utility]]&tbl_twdbdata[[#This Row],[Year]]","v":"CASH SUD2050"}]
[null,23,"CASH SUD","D",2060,17019,42044,240319300,{"$f":"IF(tbl_twdbdata[[#This Row],[Year]]=2016,0,tbl_twdbdata[[#This Row],[effsave]]-0.6*SUMIFS(tbl_twdbdata[effsave],tbl_twdbdata[Year],2020,tbl_twdbdata[utility],tbl_twdbdata[[#This Row],[utility]]))","v":197777525.19999999},15108,0,467,0,1042442803,0,32082914,0,99774151,308852864,{"$f":"tbl_twdbdata[[#This Row],[utility]]&tbl_twdbdata[[#This Row],[Year]]","v":"CASH SUD2060"}]
[null,23,"CASH SUD","D",2070,17019,50195,288924930,{"$f":"IF(tbl_twdbdata[[#This Row],[Year]]=2016,0,tbl_twdbdata[[#This Row],[effsave]]-0.6*SUMIFS(tbl_twdbdata[effsave],tbl_twdbdata[Year],2020,tbl_twdbdata[utility],tbl_twdbdata[[#This Row],[utility]]))","v":246383155.19999999},18037,0,561,0,1244539447,0,38302774,0,119117199,368729652,{"$f":"tbl_twdbdata[[#This Row],[utility]]&tbl_twdbdata[[#This Row],[Year]]","v":"CASH SUD2070"}]
[null,335,"CASTROVILLE","L",2016,3129,3129,0,{"$f":"IF(tbl_twdbdata[[#This Row],[Year]]=2016,0,tbl_twdbdata[[#This Row],[effsave]]-0.6*SUMIFS(tbl_twdbdata[effsave],tbl_twdbdata[Year],2020,tbl_twdbdata[utility],tbl_twdbdata[[#This Row],[utility]]))","v":0},1034,47,203,0,78026300,4932000,64729000,0,3190277,58727349,{"$f":"tbl_twdbdata[[#This Row],[utility]]&tbl_twdbdata[[#This Row],[Year]]","v":"CASTROVILLE2016"}]
[null,335,"CASTROVILLE","L",2020,2971,2846,9556868,{"$f":"IF(tbl_twdbdata[[#This Row],[Year]]=2016,0,tbl_twdbdata[[#This Row],[effsave]]-0.6*SUMIFS(tbl_twdbdata[effsave],tbl_twdbdata[Year],2020,tbl_twdbdata[utility],tbl_twdbdata[[#This Row],[utility]]))","v":3822747.2},990,45,194,0,74743470,4724494,62005632,0,3056051,56256491,{"$f":"tbl_twdbdata[[#This Row],[utility]]&tbl_twdbdata[[#This Row],[Year]]","v":"CASTROVILLE2020"}]
[null,335,"CASTROVILLE","L",2030,2971,2864,13934649,{"$f":"IF(tbl_twdbdata[[#This Row],[Year]]=2016,0,tbl_twdbdata[[#This Row],[effsave]]-0.6*SUMIFS(tbl_twdbdata[effsave],tbl_twdbdata[Year],2020,tbl_twdbdata[utility],tbl_twdbdata[[#This Row],[utility]]))","v":8200528.2000000002},996,45,195,0,75216197,4754375,62397797,0,3075380,56612295,{"$f":"tbl_twdbdata[[#This Row],[utility]]&tbl_twdbdata[[#This Row],[Year]]","v":"CASTROVILLE2030"}]
[null,335,"CASTROVILLE","L",2040,2971,2880,17618112,{"$f":"IF(tbl_twdbdata[[#This Row],[Year]]=2016,0,tbl_twdbdata[[#This Row],[effsave]]-0.6*SUMIFS(tbl_twdbdata[effsave],tbl_twdbdata[Year],2020,tbl_twdbdata[utility],tbl_twdbdata[[#This Row],[utility]]))","v":11883991.199999999},1002,45,196,0,75636399,4780936,62746388,0,3092561,56928565,{"$f":"tbl_twdbdata[[#This Row],[utility]]&tbl_twdbdata[[#This Row],[Year]]","v":"CASTROVILLE2040"}]
[null,335,"CASTROVILLE","L",2050,2971,2893,19672255,{"$f":"IF(tbl_twdbdata[[#This Row],[Year]]=2016,0,tbl_twdbdata[[#This Row],[effsave]]-0.6*SUMIFS(tbl_twdbdata[effsave],tbl_twdbdata[Year],2020,tbl_twdbdata[utility],tbl_twdbdata[[#This Row],[utility]]))","v":13938134.199999999},1007,45,197,0,75977813,4802517,63029618,0,3106520,57185534,{"$f":"tbl_twdbdata[[#This Row],[utility]]&tbl_twdbdata[[#This Row],[Year]]","v":"CASTROVILLE2050"}]
[null,335,"CASTROVILLE","L",2060,2971,2906,20110682,{"$f":"IF(tbl_twdbdata[[#This Row],[Year]]=2016,0,tbl_twdbdata[[#This Row],[effsave]]-0.6*SUMIFS(tbl_twdbdata[effsave],tbl_twdbdata[Year],2020,tbl_twdbdata[utility],tbl_twdbdata[[#This Row],[utility]]))","v":14376561.199999999},1012,45,198,0,76319227,4824098,63312848,0,3120479,57442503,{"$f":"tbl_twdbdata[[#This Row],[utility]]&tbl_twdbdata[[#This Row],[Year]]","v":"CASTROVILLE2060"}]
[null,335,"CASTROVILLE","L",2070,2971,2916,20179886,{"$f":"IF(tbl_twdbdata[[#This Row],[Year]]=2016,0,tbl_twdbdata[[#This Row],[effsave]]-0.6*SUMIFS(tbl_twdbdata[effsave],tbl_twdbdata[Year],2020,tbl_twdbdata[utility],tbl_twdbdata[[#This Row],[utility]]))","v":14445765.199999999},1015,45,199,0,76581853,4840698,63530718,0,3131217,57640172,{"$f":"tbl_twdbdata[[#This Row],[utility]]&tbl_twdbdata[[#This Row],[Year]]","v":"CASTROVILLE2070"}]
[null,24,"CEDAR HILL","C",2016,49000,49000,0,{"$f":"IF(tbl_twdbdata[[#This Row],[Year]]=2016,0,tbl_twdbdata[[#This Row],[effsave]]-0.6*SUMIFS(tbl_twdbdata[effsave],tbl_twdbdata[Year],2020,tbl_twdbdata[utility],tbl_twdbdata[[#This Row],[utility]]))","v":0},14984,111,884,301,1181360630,111655344,213095653,159371023,270231650,315496100,{"$f":"tbl_twdbdata[[#This Row],[utility]]&tbl_twdbdata[[#This Row],[Year]]","v":"CEDAR HILL2016"}]
[null,24,"CEDAR HILL","C",2020,47168,53938,162814550,{"$f":"IF(tbl_twdbdata[[#This Row],[Year]]=2016,0,tbl_twdbdata[[#This Row],[effsave]]-0.6*SUMIFS(tbl_twdbdata[effsave],tbl_twdbdata[Year],2020,tbl_twdbdata[utility],tbl_twdbdata[[#This Row],[utility]]))","v":65125820},17135,127,1011,344,1350920744,127681181,243681168,182245468,309017867,360779101,{"$f":"tbl_twdbdata[[#This Row],[utility]]&tbl_twdbdata[[#This Row],[Year]]","v":"CEDAR HILL2020"}]
[null,24,"CEDAR HILL","C",2030,47168,66017,275178661,{"$f":"IF(tbl_twdbdata[[#This Row],[Year]]=2016,0,tbl_twdbdata[[#This Row],[effsave]]-0.6*SUMIFS(tbl_twdbdata[effsave],tbl_twdbdata[Year],2020,tbl_twdbdata[utility],tbl_twdbdata[[#This Row],[utility]]))","v":177489931},20972,155,1237,421,1653449048,156274399,298251690,223057938,378220040,441572804,{"$f":"tbl_twdbdata[[#This Row],[utility]]&tbl_twdbdata[[#This Row],[Year]]","v":"CEDAR HILL2030"}]
[null,24,"CEDAR HILL","C",2040,47168,78092,374252005,{"$f":"IF(tbl_twdbdata[[#This Row],[Year]]=2016,0,tbl_twdbdata[[#This Row],[effsave]]-0.6*SUMIFS(tbl_twdbdata[effsave],tbl_twdbdata[Year],2020,tbl_twdbdata[utility],tbl_twdbdata[[#This Row],[utility]]))","v":276563275},24808,190,1514,515,1955877169,184858148,352804141,263856893,447399297,522339752,{"$f":"tbl_twdbdata[[#This Row],[utility]]&tbl_twdbdata[[#This Row],[Year]]","v":"CEDAR HILL2040"}]
[null,24,"CEDAR HILL","C",2050,47168,85000,432798750,{"$f":"IF(tbl_twdbdata[[#This Row],[Year]]=2016,0,tbl_twdbdata[[#This Row],[effsave]]-0.6*SUMIFS(tbl_twdbdata[effsave],tbl_twdbdata[Year],2020,tbl_twdbdata[utility],tbl_twdbdata[[#This Row],[utility]]))","v":335110020},27003,233,1853,630,2128893605,201210656,384013113,287197612,486976134,568545804,{"$f":"tbl_twdbdata[[#This Row],[utility]]&tbl_twdbdata[[#This Row],[Year]]","v":"CEDAR HILL2050"}]
[null,24,"CEDAR HILL","C",2060,47168,85000,437762750,{"$f":"IF(tbl_twdbdata[[#This Row],[Year]]=2016,0,tbl_twdbdata[[#This Row],[effsave]]-0.6*SUMIFS(tbl_twdbdata[effsave],tbl_twdbdata[Year],2020,tbl_twdbdata[utility],tbl_twdbdata[[#This Row],[utility]]))","v":340074020},27003,285,2268,771,2128893605,201210656,384013113,287197612,486976134,568545804,{"$f":"tbl_twdbdata[[#This Row],[utility]]&tbl_twdbdata[[#This Row],[Year]]","v":"CEDAR HILL2060"}]
[null,24,"CEDAR HILL","C",2070,47168,85000,438383250,{"$f":"IF(tbl_twdbdata[[#This Row],[Year]]=2016,0,tbl_twdbdata[[#This Row],[effsave]]-0.6*SUMIFS(tbl_twdbdata[effsave],tbl_twdbdata[Year],2020,tbl_twdbdata[utility],tbl_twdbdata[[#This Row],[utility]]))","v":340694520},27003,349,2776,944,2128893605,201210656,384013113,287197612,486976134,568545804,{"$f":"tbl_twdbdata[[#This Row],[utility]]&tbl_twdbdata[[#This Row],[Year]]","v":"CEDAR HILL2070"}]
[null,25,"CEDAR PARK","G",2016,76070,76070,0,{"$f":"IF(tbl_twdbdata[[#This Row],[Year]]=2016,0,tbl_twdbdata[[#This Row],[effsave]]-0.6*SUMIFS(tbl_twdbdata[effsave],tbl_twdbdata[Year],2020,tbl_twdbdata[utility],tbl_twdbdata[[#This Row],[utility]]))","v":0},20850,5598,1415,0,2179561240,386354880,763380490,0,50133253,631230339,{"$f":"tbl_twdbdata[[#This Row],[utility]]&tbl_twdbdata[[#This Row],[Year]]","v":"CEDAR PARK2016"}]
[null,25,"CEDAR PARK","G",2020,72733,92629,298876731,{"$f":"IF(tbl_twdbdata[[#This Row],[Year]]=2016,0,tbl_twdbdata[[#This Row],[effsave]]-0.6*SUMIFS(tbl_twdbdata[effsave],tbl_twdbdata[Year],2020,tbl_twdbdata[utility],tbl_twdbdata[[#This Row],[utility]]))","v":119550692.40000001},26553,7129,1802,0,2775776856,492041662,972202046,0,63847127,803902425,{"$f":"tbl_twdbdata[[#This Row],[utility]]&tbl_twdbdata[[#This Row],[Year]]","v":"CEDAR PARK2020"}]
[null,25,"CEDAR PARK","G",2030,72733,102282,372582641,{"$f":"IF(tbl_twdbdata[[#This Row],[Year]]=2016,0,tbl_twdbdata[[#This Row],[effsave]]-0.6*SUMIFS(tbl_twdbdata[effsave],tbl_twdbdata[Year],2020,tbl_twdbdata[utility],tbl_twdbdata[[#This Row],[utility]]))","v":193256602.40000001},29320,7872,1989,0,3065044515,543318024,1073516605,0,70500727,887678242,{"$f":"tbl_twdbdata[[#This Row],[utility]]&tbl_twdbdata[[#This Row],[Year]]","v":"CEDAR PARK2030"}]
[null,25,"CEDAR PARK","G",2040,72733,103162,410053476,{"$f":"IF(tbl_twdbdata[[#This Row],[Year]]=2016,0,tbl_twdbdata[[#This Row],[effsave]]-0.6*SUMIFS(tbl_twdbdata[effsave],tbl_twdbdata[Year],2020,tbl_twdbdata[utility],tbl_twdbdata[[#This Row],[utility]]))","v":230727437.40000001},29572,8692,2197,0,3091415129,547992550,1082752782,0,71107292,895315528,{"$f":"tbl_twdbdata[[#This Row],[utility]]&tbl_twdbdata[[#This Row],[Year]]","v":"CEDAR PARK2040"}]
[null,25,"CEDAR PARK","G",2050,72733,103162,422102797,{"$f":"IF(tbl_twdbdata[[#This Row],[Year]]=2016,0,tbl_twdbdata[[#This Row],[effsave]]-0.6*SUMIFS(tbl_twdbdata[effsave],tbl_twdbdata[Year],2020,tbl_twdbdata[utility],tbl_twdbdata[[#This Row],[utility]]))","v":242776758.40000001},29572,9598,2426,0,3091415129,547992550,1082752782,0,71107292,895315528,{"$f":"tbl_twdbdata[[#This Row],[utility]]&tbl_twdbdata[[#This Row],[Year]]","v":"CEDAR PARK2050"}]
[null,25,"CEDAR PARK","G",2060,72733,103162,428127458,{"$f":"IF(tbl_twdbdata[[#This Row],[Year]]=2016,0,tbl_twdbdata[[#This Row],[effsave]]-0.6*SUMIFS(tbl_twdbdata[effsave],tbl_twdbdata[Year],2020,tbl_twdbdata[utility],tbl_twdbdata[[#This Row],[utility]]))","v":248801419.40000001},29572,10598,2679,0,3091415129,547992550,1082752782,0,71107292,895315528,{"$f":"tbl_twdbdata[[#This Row],[utility]]&tbl_twdbdata[[#This Row],[Year]]","v":"CEDAR PARK2060"}]
[null,25,"CEDAR PARK","G",2070,72733,103162,430763247,{"$f":"IF(tbl_twdbdata[[#This Row],[Year]]=2016,0,tbl_twdbdata[[#This Row],[effsave]]-0.6*SUMIFS(tbl_twdbdata[effsave],tbl_twdbdata[Year],2020,tbl_twdbdata[utility],tbl_twdbdata[[#This Row],[utility]]))","v":251437208.40000001},29572,11702,2958,0,3091415129,547992550,1082752782,0,71107292,895315528,{"$f":"tbl_twdbdata[[#This Row],[utility]]&tbl_twdbdata[[#This Row],[Year]]","v":"CEDAR PARK2070"}]
[null,338,"CELINA","C",2016,11196,11196,0,{"$f":"IF(tbl_twdbdata[[#This Row],[Year]]=2016,0,tbl_twdbdata[[#This Row],[effsave]]-0.6*SUMIFS(tbl_twdbdata[effsave],tbl_twdbdata[Year],2020,tbl_twdbdata[utility],tbl_twdbdata[[#This Row],[utility]]))","v":0},3732,54,259,0,307045800,3007300,95024780,0,44117283,93408878,{"$f":"tbl_twdbdata[[#This Row],[utility]]&tbl_twdbdata[[#This Row],[Year]]","v":"CELINA2016"}]
[null,338,"CELINA","C",2020,9276,22000,75321400,{"$f":"IF(tbl_twdbdata[[#This Row],[Year]]=2016,0,tbl_twdbdata[[#This Row],[effsave]]-0.6*SUMIFS(tbl_twdbdata[effsave],tbl_twdbdata[Year],2020,tbl_twdbdata[utility],tbl_twdbdata[[#This Row],[utility]]))","v":30128560},8851,128,614,0,728224191,7132449,225371407,0,104633487,221538952,{"$f":"tbl_twdbdata[[#This Row],[utility]]&tbl_twdbdata[[#This Row],[Year]]","v":"CELINA2020"}]
[null,338,"CELINA","C",2030,9276,56286,227631841,{"$f":"IF(tbl_twdbdata[[#This Row],[Year]]=2016,0,tbl_twdbdata[[#This Row],[effsave]]-0.6*SUMIFS(tbl_twdbdata[effsave],tbl_twdbdata[Year],2020,tbl_twdbdata[utility],tbl_twdbdata[[#This Row],[utility]]))","v":182439001},22645,327,1571,0,1863128492,18248047,576602501,0,267700020,566797339,{"$f":"tbl_twdbdata[[#This Row],[utility]]&tbl_twdbdata[[#This Row],[Year]]","v":"CELINA2030"}]
[null,338,"CELINA","C",2040,9276,95224,396922199,{"$f":"IF(tbl_twdbdata[[#This Row],[Year]]=2016,0,tbl_twdbdata[[#This Row],[effsave]]-0.6*SUMIFS(tbl_twdbdata[effsave],tbl_twdbdata[Year],2020,tbl_twdbdata[utility],tbl_twdbdata[[#This Row],[utility]]))","v":351729359},38311,837,4019,0,3152019108,30871834,975489404,0,452891780,958901144,{"$f":"tbl_twdbdata[[#This Row],[utility]]&tbl_twdbdata[[#This Row],[Year]]","v":"CELINA2040"}]
[null,338,"CELINA","C",2050,9276,143425,603596941,{"$f":"IF(tbl_twdbdata[[#This Row],[Year]]=2016,0,tbl_twdbdata[[#This Row],[effsave]]-0.6*SUMIFS(tbl_twdbdata[effsave],tbl_twdbdata[Year],2020,tbl_twdbdata[utility],tbl_twdbdata[[#This Row],[utility]]))","v":558404101},57703,2141,10283,0,4747525210,46498706,1469267913,0,682138994,1444282918,{"$f":"tbl_twdbdata[[#This Row],[utility]]&tbl_twdbdata[[#This Row],[Year]]","v":"CELINA2050"}]
[null,338,"CELINA","C",2060,9276,171713,723272327,{"$f":"IF(tbl_twdbdata[[#This Row],[Year]]=2016,0,tbl_twdbdata[[#This Row],[effsave]]-0.6*SUMIFS(tbl_twdbdata[effsave],tbl_twdbdata[Year],2020,tbl_twdbdata[utility],tbl_twdbdata[[#This Row],[utility]]))","v":678079487},69084,5478,26308,0,5683889115,55669739,1759054566,0,816678634,1729141731,{"$f":"tbl_twdbdata[[#This Row],[utility]]&tbl_twdbdata[[#This Row],[Year]]","v":"CELINA2060"}]
[null,338,"CELINA","C",2070,9276,200000,843880000,{"$f":"IF(tbl_twdbdata[[#This Row],[Year]]=2016,0,tbl_twdbdata[[#This Row],[effsave]]-0.6*SUMIFS(tbl_twdbdata[effsave],tbl_twdbdata[Year],2020,tbl_twdbdata[utility],tbl_twdbdata[[#This Row],[utility]]))","v":798687160},80464,14015,67308,0,6620219919,64840448,2048830975,0,951213518,2013990474,{"$f":"tbl_twdbdata[[#This Row],[utility]]&tbl_twdbdata[[#This Row],[Year]]","v":"CELINA2070"}]
[null,26,"CENTER","I",2016,5132,6342,0,{"$f":"IF(tbl_twdbdata[[#This Row],[Year]]=2016,0,tbl_twdbdata[[#This Row],[effsave]]-0.6*SUMIFS(tbl_twdbdata[effsave],tbl_twdbdata[Year],2020,tbl_twdbdata[utility],tbl_twdbdata[[#This Row],[utility]]))","v":0},1965,10,478,3,107956000,22409400,694559700,4907200,105005661,94006888,{"$f":"tbl_twdbdata[[#This Row],[utility]]&tbl_twdbdata[[#This Row],[Year]]","v":"CENTER2016"}]
[null,26,"CENTER","I",2020,5132,5589,20053053,{"$f":"IF(tbl_twdbdata[[#This Row],[Year]]=2016,0,tbl_twdbdata[[#This Row],[effsave]]-0.6*SUMIFS(tbl_twdbdata[effsave],tbl_twdbdata[Year],2020,tbl_twdbdata[utility],tbl_twdbdata[[#This Row],[utility]]))","v":8021221.2000000011},1816,9,442,3,99746418,20705263,641741472,4534029,97020440,86858075,{"$f":"tbl_twdbdata[[#This Row],[utility]]&tbl_twdbdata[[#This Row],[Year]]","v":"CENTER2020"}]
[null,26,"CENTER","I",2030,5132,6011,30935612,{"$f":"IF(tbl_twdbdata[[#This Row],[Year]]=2016,0,tbl_twdbdata[[#This Row],[effsave]]-0.6*SUMIFS(tbl_twdbdata[effsave],tbl_twdbdata[Year],2020,tbl_twdbdata[utility],tbl_twdbdata[[#This Row],[utility]]))","v":18903780.200000003},1953,10,475,3,107277817,22268623,690196456,4876373,104346013,93416334,{"$f":"tbl_twdbdata[[#This Row],[utility]]&tbl_twdbdata[[#This Row],[Year]]","v":"CENTER2030"}]
[null,26,"CENTER","I",2040,5132,6383,40119070,{"$f":"IF(tbl_twdbdata[[#This Row],[Year]]=2016,0,tbl_twdbdata[[#This Row],[effsave]]-0.6*SUMIFS(tbl_twdbdata[effsave],tbl_twdbdata[Year],2020,tbl_twdbdata[utility],tbl_twdbdata[[#This Row],[utility]]))","v":28087238.200000003},2074,11,511,3,113916870,23646751,732910328,5178155,110803627,99197548,{"$f":"tbl_twdbdata[[#This Row],[utility]]&tbl_twdbdata[[#This Row],[Year]]","v":"CENTER2040"}]
[null,26,"CENTER","I",2050,5132,6736,46222432,{"$f":"IF(tbl_twdbdata[[#This Row],[Year]]=2016,0,tbl_twdbdata[[#This Row],[effsave]]-0.6*SUMIFS(tbl_twdbdata[effsave],tbl_twdbdata[Year],2020,tbl_twdbdata[utility],tbl_twdbdata[[#This Row],[utility]]))","v":34190600.200000003},2189,12,550,3,120216832,24954491,773442577,5464523,116931416,104683485,{"$f":"tbl_twdbdata[[#This Row],[utility]]&tbl_twdbdata[[#This Row],[Year]]","v":"CENTER2050"}]
[null,26,"CENTER","I",2060,5132,7066,49260619,{"$f":"IF(tbl_twdbdata[[#This Row],[Year]]=2016,0,tbl_twdbdata[[#This Row],[effsave]]-0.6*SUMIFS(tbl_twdbdata[effsave],tbl_twdbdata[Year],2020,tbl_twdbdata[utility],tbl_twdbdata[[#This Row],[utility]]))","v":37228787.200000003},2296,13,591,3,126106315,26177024,811333914,5732233,122659944,109811981,{"$f":"tbl_twdbdata[[#This Row],[utility]]&tbl_twdbdata[[#This Row],[Year]]","v":"CENTER2060"}]
[null,26,"CENTER","I",2070,5132,7370,51541358,{"$f":"IF(tbl_twdbdata[[#This Row],[Year]]=2016,0,tbl_twdbdata[[#This Row],[effsave]]-0.6*SUMIFS(tbl_twdbdata[effsave],tbl_twdbdata[Year],2020,tbl_twdbdata[utility],tbl_twdbdata[[#This Row],[utility]]))","v":39509526.200000003},2395,14,636,3,131531778,27303236,846239873,5978850,127937134,114536414,{"$f":"tbl_twdbdata[[#This Row],[utility]]&tbl_twdbdata[[#This Row],[Year]]","v":"CENTER2070"}]
[null,3151,"CENTRAL BOWIE COUNTY WSC","D",2016,8235,8235,0,{"$f":"IF(tbl_twdbdata[[#This Row],[Year]]=2016,0,tbl_twdbdata[[#This Row],[effsave]]-0.6*SUMIFS(tbl_twdbdata[effsave],tbl_twdbdata[Year],2020,tbl_twdbdata[utility],tbl_twdbdata[[#This Row],[utility]]))","v":0},2708,20,16,0,150086623,1108059,886447,0,44420829,38324818,{"$f":"tbl_twdbdata[[#This Row],[utility]]&tbl_twdbdata[[#This Row],[Year]]","v":"CENTRAL BOWIE COUNTY WSC2016"}]
[null,3151,"CENTRAL BOWIE COUNTY WSC","D",2020,7128,7529,20995369,{"$f":"IF(tbl_twdbdata[[#This Row],[Year]]=2016,0,tbl_twdbdata[[#This Row],[effsave]]-0.6*SUMIFS(tbl_twdbdata[effsave],tbl_twdbdata[Year],2020,tbl_twdbdata[utility],tbl_twdbdata[[#This Row],[utility]]))","v":8398147.5999999996},2860,21,17,0,158530048,1170395,936316,0,46919812,40480858,{"$f":"tbl_twdbdata[[#This Row],[utility]]&tbl_twdbdata[[#This Row],[Year]]","v":"CENTRAL BOWIE COUNTY WSC2020"}]
[null,3151,"CENTRAL BOWIE COUNTY WSC","D",2030,7128,8037,29335050,{"$f":"IF(tbl_twdbdata[[#This Row],[Year]]=2016,0,tbl_twdbdata[[#This Row],[effsave]]-0.6*SUMIFS(tbl_twdbdata[effsave],tbl_twdbdata[Year],2020,tbl_twdbdata[utility],tbl_twdbdata[[#This Row],[utility]]))","v":16737828.6},3053,22,18,0,169226457,1249364,999492,0,50085606,43212200,{"$f":"tbl_twdbdata[[#This Row],[utility]]&tbl_twdbdata[[#This Row],[Year]]","v":"CENTRAL BOWIE COUNTY WSC2030"}]
[null,3151,"CENTRAL BOWIE COUNTY WSC","D",2040,7128,8903,32495950,{"$f":"IF(tbl_twdbdata[[#This Row],[Year]]=2016,0,tbl_twdbdata[[#This Row],[effsave]]-0.6*SUMIFS(tbl_twdbdata[effsave],tbl_twdbdata[Year],2020,tbl_twdbdata[utility],tbl_twdbdata[[#This Row],[utility]]))","v":19898728.600000001},3382,23,19,0,187460887,1383985,1107189,0,55482413,47868386,{"$f":"tbl_twdbdata[[#This Row],[utility]]&tbl_twdbdata[[#This Row],[Year]]","v":"CENTRAL BOWIE COUNTY WSC2040"}]
[null,3151,"CENTRAL BOWIE COUNTY WSC","D",2050,7128,9862,35996300,{"$f":"IF(tbl_twdbdata[[#This Row],[Year]]=2016,0,tbl_twdbdata[[#This Row],[effsave]]-0.6*SUMIFS(tbl_twdbdata[effsave],tbl_twdbdata[Year],2020,tbl_twdbdata[utility],tbl_twdbdata[[#This Row],[utility]]))","v":23399078.600000001},3746,25,20,0,207653518,1533063,1226452,0,61458784,53024601,{"$f":"tbl_twdbdata[[#This Row],[utility]]&tbl_twdbdata[[#This Row],[Year]]","v":"CENTRAL BOWIE COUNTY WSC2050"}]
[null,3151,"CENTRAL BOWIE COUNTY WSC","D",2060,7128,10924,39872600,{"$f":"IF(tbl_twdbdata[[#This Row],[Year]]=2016,0,tbl_twdbdata[[#This Row],[effsave]]-0.6*SUMIFS(tbl_twdbdata[effsave],tbl_twdbdata[Year],2020,tbl_twdbdata[utility],tbl_twdbdata[[#This Row],[utility]]))","v":27275378.600000001},4149,27,21,0,230014909,1698153,1358524,0,68077039,58734612,{"$f":"tbl_twdbdata[[#This Row],[utility]]&tbl_twdbdata[[#This Row],[Year]]","v":"CENTRAL BOWIE COUNTY WSC2060"}]
[null,3151,"CENTRAL BOWIE COUNTY WSC","D",2070,7128,12101,44168650,{"$f":"IF(tbl_twdbdata[[#This Row],[Year]]=2016,0,tbl_twdbdata[[#This Row],[effsave]]-0.6*SUMIFS(tbl_twdbdata[effsave],tbl_twdbdata[Year],2020,tbl_twdbdata[utility],tbl_twdbdata[[#This Row],[utility]]))","v":31571428.600000001},4596,29,22,0,254797731,1881120,1504897,0,75411960,65062938,{"$f":"tbl_twdbdata[[#This Row],[utility]]&tbl_twdbdata[[#This Row],[Year]]","v":"CENTRAL BOWIE COUNTY WSC2070"}]
[null,362,"CISCO","G",2016,3851,3851,0,{"$f":"IF(tbl_twdbdata[[#This Row],[Year]]=2016,0,tbl_twdbdata[[#This Row],[effsave]]-0.6*SUMIFS(tbl_twdbdata[effsave],tbl_twdbdata[Year],2020,tbl_twdbdata[utility],tbl_twdbdata[[#This Row],[utility]]))","v":0},1406,167,201,0,72525740,3370500,20718217,0,8720956,28255197,{"$f":"tbl_twdbdata[[#This Row],[utility]]&tbl_twdbdata[[#This Row],[Year]]","v":"CISCO2016"}]
[null,362,"CISCO","G",2020,3851,4108,14274478,{"$f":"IF(tbl_twdbdata[[#This Row],[Year]]=2016,0,tbl_twdbdata[[#This Row],[effsave]]-0.6*SUMIFS(tbl_twdbdata[effsave],tbl_twdbdata[Year],2020,tbl_twdbdata[utility],tbl_twdbdata[[#This Row],[utility]]))","v":5709791.2000000011},1460,173,208,0,75293338,3499119,21508829,0,9053750,29333422,{"$f":"tbl_twdbdata[[#This Row],[utility]]&tbl_twdbdata[[#This Row],[Year]]","v":"CISCO2020"}]
[null,362,"CISCO","G",2030,3851,4197,20925822,{"$f":"IF(tbl_twdbdata[[#This Row],[Year]]=2016,0,tbl_twdbdata[[#This Row],[effsave]]-0.6*SUMIFS(tbl_twdbdata[effsave],tbl_twdbdata[Year],2020,tbl_twdbdata[utility],tbl_twdbdata[[#This Row],[utility]]))","v":12361135.200000001},1492,177,213,0,76924571,3574928,21974819,0,9249900,29968932,{"$f":"tbl_twdbdata[[#This Row],[utility]]&tbl_twdbdata[[#This Row],[Year]]","v":"CISCO2030"}]
[null,362,"CISCO","G",2040,3851,4201,25975203,{"$f":"IF(tbl_twdbdata[[#This Row],[Year]]=2016,0,tbl_twdbdata[[#This Row],[effsave]]-0.6*SUMIFS(tbl_twdbdata[effsave],tbl_twdbdata[Year],2020,tbl_twdbdata[utility],tbl_twdbdata[[#This Row],[utility]]))","v":17410516.200000003},1493,181,218,0,76997885,3578335,21995763,0,9258716,29997494,{"$f":"tbl_twdbdata[[#This Row],[utility]]&tbl_twdbdata[[#This Row],[Year]]","v":"CISCO2040"}]
[null,362,"CISCO","G",2050,3851,4203,28733599,{"$f":"IF(tbl_twdbdata[[#This Row],[Year]]=2016,0,tbl_twdbdata[[#This Row],[effsave]]-0.6*SUMIFS(tbl_twdbdata[effsave],tbl_twdbdata[Year],2020,tbl_twdbdata[utility],tbl_twdbdata[[#This Row],[utility]]))","v":20168912.200000003},1494,185,223,0,77034542,3580039,22006235,0,9263124,30011775,{"$f":"tbl_twdbdata[[#This Row],[utility]]&tbl_twdbdata[[#This Row],[Year]]","v":"CISCO2050"}]
[null,362,"CISCO","G",2060,3851,4203,29193828,{"$f":"IF(tbl_twdbdata[[#This Row],[Year]]=2016,0,tbl_twdbdata[[#This Row],[effsave]]-0.6*SUMIFS(tbl_twdbdata[effsave],tbl_twdbdata[Year],2020,tbl_twdbdata[utility],tbl_twdbdata[[#This Row],[utility]]))","v":20629141.200000003},1494,189,228,0,77034542,3580039,22006235,0,9263124,30011775,{"$f":"tbl_twdbdata[[#This Row],[utility]]&tbl_twdbdata[[#This Row],[Year]]","v":"CISCO2060"}]
[null,362,"CISCO","G",2070,3851,4203,29209169,{"$f":"IF(tbl_twdbdata[[#This Row],[Year]]=2016,0,tbl_twdbdata[[#This Row],[effsave]]-0.6*SUMIFS(tbl_twdbdata[effsave],tbl_twdbdata[Year],2020,tbl_twdbdata[utility],tbl_twdbdata[[#This Row],[utility]]))","v":20644482.200000003},1494,193,233,0,77034542,3580039,22006235,0,9263124,30011775,{"$f":"tbl_twdbdata[[#This Row],[utility]]&tbl_twdbdata[[#This Row],[Year]]","v":"CISCO2070"}]
[null,3152,"CLEAR BROOK CITY MUD","H",2016,23500,23500,0,{"$f":"IF(tbl_twdbdata[[#This Row],[Year]]=2016,0,tbl_twdbdata[[#This Row],[effsave]]-0.6*SUMIFS(tbl_twdbdata[effsave],tbl_twdbdata[Year],2020,tbl_twdbdata[utility],tbl_twdbdata[[#This Row],[utility]]))","v":0},5513,5,98,170,461490000,53798000,48813000,19805000,null,null,{"$f":"tbl_twdbdata[[#This Row],[utility]]&tbl_twdbdata[[#This Row],[Year]]","v":"CLEAR BROOK CITY MUD2016"}]
[null,3152,"CLEAR BROOK CITY MUD","H",2020,18556,18726,52834473,{"$f":"IF(tbl_twdbdata[[#This Row],[Year]]=2016,0,tbl_twdbdata[[#This Row],[effsave]]-0.6*SUMIFS(tbl_twdbdata[effsave],tbl_twdbdata[Year],2020,tbl_twdbdata[utility],tbl_twdbdata[[#This Row],[utility]]))","v":21133789.200000003},5564,5,98,172,465717921,54290868,49260198,19986443,null,null,{"$f":"tbl_twdbdata[[#This Row],[utility]]&tbl_twdbdata[[#This Row],[Year]]","v":"CLEAR BROOK CITY MUD2020"}]
[null,3152,"CLEAR BROOK CITY MUD","H",2030,18556,19140,72515718,{"$f":"IF(tbl_twdbdata[[#This Row],[Year]]=2016,0,tbl_twdbdata[[#This Row],[effsave]]-0.6*SUMIFS(tbl_twdbdata[effsave],tbl_twdbdata[Year],2020,tbl_twdbdata[utility],tbl_twdbdata[[#This Row],[utility]]))","v":40815034.200000003},5687,5,100,176,476014152,55491147,50349257,20428309,null,null,{"$f":"tbl_twdbdata[[#This Row],[utility]]&tbl_twdbdata[[#This Row],[Year]]","v":"CLEAR BROOK CITY MUD2030"}]
[null,3152,"CLEAR BROOK CITY MUD","H",2040,18556,21491,95856307,{"$f":"IF(tbl_twdbdata[[#This Row],[Year]]=2016,0,tbl_twdbdata[[#This Row],[effsave]]-0.6*SUMIFS(tbl_twdbdata[effsave],tbl_twdbdata[Year],2020,tbl_twdbdata[utility],tbl_twdbdata[[#This Row],[utility]]))","v":64155623.200000003},6386,5,102,180,534483811,62307223,56533745,22937554,null,null,{"$f":"tbl_twdbdata[[#This Row],[utility]]&tbl_twdbdata[[#This Row],[Year]]","v":"CLEAR BROOK CITY MUD2040"}]
[null,3152,"CLEAR BROOK CITY MUD","H",2050,18556,23082,111209076,{"$f":"IF(tbl_twdbdata[[#This Row],[Year]]=2016,0,tbl_twdbdata[[#This Row],[effsave]]-0.6*SUMIFS(tbl_twdbdata[effsave],tbl_twdbdata[Year],2020,tbl_twdbdata[utility],tbl_twdbdata[[#This Row],[utility]]))","v":79508392.200000003},6859,5,104,184,574052177,66919888,60718994,24635644,null,null,{"$f":"tbl_twdbdata[[#This Row],[utility]]&tbl_twdbdata[[#This Row],[Year]]","v":"CLEAR BROOK CITY MUD2050"}]
[null,3152,"CLEAR BROOK CITY MUD","H",2060,18556,24365,119969605,{"$f":"IF(tbl_twdbdata[[#This Row],[Year]]=2016,0,tbl_twdbdata[[#This Row],[effsave]]-0.6*SUMIFS(tbl_twdbdata[effsave],tbl_twdbdata[Year],2020,tbl_twdbdata[utility],tbl_twdbdata[[#This Row],[utility]]))","v":88268921.200000003},7240,5,106,188,605960545,70639592,64094025,26005002,null,null,{"$f":"tbl_twdbdata[[#This Row],[utility]]&tbl_twdbdata[[#This Row],[Year]]","v":"CLEAR BROOK CITY MUD2060"}]
[null,3152,"CLEAR BROOK CITY MUD","H",2070,18556,25572,126472719,{"$f":"IF(tbl_twdbdata[[#This Row],[Year]]=2016,0,tbl_twdbdata[[#This Row],[effsave]]-0.6*SUMIFS(tbl_twdbdata[effsave],tbl_twdbdata[Year],2020,tbl_twdbdata[utility],tbl_twdbdata[[#This Row],[utility]]))","v":94772035.200000003},7599,5,108,192,635978783,74138955,67269132,27293245,null,null,{"$f":"tbl_twdbdata[[#This Row],[utility]]&tbl_twdbdata[[#This Row],[Year]]","v":"CLEAR BROOK CITY MUD2070"}]
[null,31,"CLEAR LAKE CITY WATER AUTHORITY","H",2016,85636,85636,0,{"$f":"IF(tbl_twdbdata[[#This Row],[Year]]=2016,0,tbl_twdbdata[[#This Row],[effsave]]-0.6*SUMIFS(tbl_twdbdata[effsave],tbl_twdbdata[Year],2020,tbl_twdbdata[utility],tbl_twdbdata[[#This Row],[utility]]))","v":0},16550,7562,992,0,1551194000,395865000,539501000,0,36354367,301914977,{"$f":"tbl_twdbdata[[#This Row],[utility]]&tbl_twdbdata[[#This Row],[Year]]","v":"CLEAR LAKE CITY WATER AUTHORITY2016"}]
[null,31,"CLEAR LAKE CITY WATER AUTHORITY","H",2020,67008,70552,226613024,{"$f":"IF(tbl_twdbdata[[#This Row],[Year]]=2016,0,tbl_twdbdata[[#This Row],[effsave]]-0.6*SUMIFS(tbl_twdbdata[effsave],tbl_twdbdata[Year],2020,tbl_twdbdata[utility],tbl_twdbdata[[#This Row],[utility]]))","v":90645209.599999994},17425,7962,1045,0,1633235421,416801986,568034781,0,38277121,317883021,{"$f":"tbl_twdbdata[[#This Row],[utility]]&tbl_twdbdata[[#This Row],[Year]]","v":"CLEAR LAKE CITY WATER AUTHORITY2020"}]
[null,31,"CLEAR LAKE CITY WATER AUTHORITY","H",2030,67008,72792,306341492,{"$f":"IF(tbl_twdbdata[[#This Row],[Year]]=2016,0,tbl_twdbdata[[#This Row],[effsave]]-0.6*SUMIFS(tbl_twdbdata[effsave],tbl_twdbdata[Year],2020,tbl_twdbdata[utility],tbl_twdbdata[[#This Row],[utility]]))","v":170373677.59999999},17978,8215,1078,0,1685090044,430035295,586069676,0,39492405,327975690,{"$f":"tbl_twdbdata[[#This Row],[utility]]&tbl_twdbdata[[#This Row],[Year]]","v":"CLEAR LAKE CITY WATER AUTHORITY2030"}]
[null,31,"CLEAR LAKE CITY WATER AUTHORITY","H",2040,67008,78070,379275771,{"$f":"IF(tbl_twdbdata[[#This Row],[Year]]=2016,0,tbl_twdbdata[[#This Row],[effsave]]-0.6*SUMIFS(tbl_twdbdata[effsave],tbl_twdbdata[Year],2020,tbl_twdbdata[utility],tbl_twdbdata[[#This Row],[utility]]))","v":243307956.59999999},19282,8476,1112,0,1807272499,461216280,628564397,0,42355919,351756541,{"$f":"tbl_twdbdata[[#This Row],[utility]]&tbl_twdbdata[[#This Row],[Year]]","v":"CLEAR LAKE CITY WATER AUTHORITY2040"}]
[null,31,"CLEAR LAKE CITY WATER AUTHORITY","H",2050,67008,82541,429015102,{"$f":"IF(tbl_twdbdata[[#This Row],[Year]]=2016,0,tbl_twdbdata[[#This Row],[effsave]]-0.6*SUMIFS(tbl_twdbdata[effsave],tbl_twdbdata[Year],2020,tbl_twdbdata[utility],tbl_twdbdata[[#This Row],[utility]]))","v":293047287.60000002},20386,8745,1147,0,1910773400,487629729,664561725,0,44781605,371901328,{"$f":"tbl_twdbdata[[#This Row],[utility]]&tbl_twdbdata[[#This Row],[Year]]","v":"CLEAR LAKE CITY WATER AUTHORITY2050"}]
[null,31,"CLEAR LAKE CITY WATER AUTHORITY","H",2060,67008,86841,459605993,{"$f":"IF(tbl_twdbdata[[#This Row],[Year]]=2016,0,tbl_twdbdata[[#This Row],[effsave]]-0.6*SUMIFS(tbl_twdbdata[effsave],tbl_twdbdata[Year],2020,tbl_twdbdata[utility],tbl_twdbdata[[#This Row],[utility]]))","v":323638178.60000002},21448,9023,1183,0,2010315756,513032957,699182283,0,47114517,391275648,{"$f":"tbl_twdbdata[[#This Row],[utility]]&tbl_twdbdata[[#This Row],[Year]]","v":"CLEAR LAKE CITY WATER AUTHORITY2060"}]
[null,31,"CLEAR LAKE CITY WATER AUTHORITY","H",2070,67008,91177,484218253,{"$f":"IF(tbl_twdbdata[[#This Row],[Year]]=2016,0,tbl_twdbdata[[#This Row],[effsave]]-0.6*SUMIFS(tbl_twdbdata[effsave],tbl_twdbdata[Year],2020,tbl_twdbdata[utility],tbl_twdbdata[[#This Row],[utility]]))","v":348250438.60000002},22519,9309,1220,0,2110691490,538648863,734092687,0,49466960,410812171,{"$f":"tbl_twdbdata[[#This Row],[utility]]&tbl_twdbdata[[#This Row],[Year]]","v":"CLEAR LAKE CITY WATER AUTHORITY2070"}]
[null,369,"CLEBURNE","G",2016,29337,29337,0,{"$f":"IF(tbl_twdbdata[[#This Row],[Year]]=2016,0,tbl_twdbdata[[#This Row],[effsave]]-0.6*SUMIFS(tbl_twdbdata[effsave],tbl_twdbdata[Year],2020,tbl_twdbdata[utility],tbl_twdbdata[[#This Row],[utility]]))","v":0},9818,1752,1521,0,588036771,85070254,958750785,0,63701895,350329757,{"$f":"tbl_twdbdata[[#This Row],[utility]]&tbl_twdbdata[[#This Row],[Year]]","v":"CLEBURNE2016"}]
[null,369,"CLEBURNE","G",2020,29337,38220,128482263,{"$f":"IF(tbl_twdbdata[[#This Row],[Year]]=2016,0,tbl_twdbdata[[#This Row],[effsave]]-0.6*SUMIFS(tbl_twdbdata[effsave],tbl_twdbdata[Year],2020,tbl_twdbdata[utility],tbl_twdbdata[[#This Row],[utility]]))","v":51392905.200000003},10877,1941,1685,0,651461358,94245778,1062159917,0,70572667,388115694,{"$f":"tbl_twdbdata[[#This Row],[utility]]&tbl_twdbdata[[#This Row],[Year]]","v":"CLEBURNE2020"}]
[null,369,"CLEBURNE","G",2030,29337,42564,202276897,{"$f":"IF(tbl_twdbdata[[#This Row],[Year]]=2016,0,tbl_twdbdata[[#This Row],[effsave]]-0.6*SUMIFS(tbl_twdbdata[effsave],tbl_twdbdata[Year],2020,tbl_twdbdata[utility],tbl_twdbdata[[#This Row],[utility]]))","v":125187539.2},12113,2162,1876,0,725505004,104957543,1182882646,0,78593799,432228059,{"$f":"tbl_twdbdata[[#This Row],[utility]]&tbl_twdbdata[[#This Row],[Year]]","v":"CLEBURNE2030"}]
[null,369,"CLEBURNE","G",2040,29337,51236,291550773,{"$f":"IF(tbl_twdbdata[[#This Row],[Year]]=2016,0,tbl_twdbdata[[#This Row],[effsave]]-0.6*SUMIFS(tbl_twdbdata[effsave],tbl_twdbdata[Year],2020,tbl_twdbdata[utility],tbl_twdbdata[[#This Row],[utility]]))","v":214461415.19999999},14581,2408,2090,0,873319575,126341619,1423883452,0,94606519,520290312,{"$f":"tbl_twdbdata[[#This Row],[utility]]&tbl_twdbdata[[#This Row],[Year]]","v":"CLEBURNE2040"}]
[null,369,"CLEBURNE","G",2050,29337,60121,370417505,{"$f":"IF(tbl_twdbdata[[#This Row],[Year]]=2016,0,tbl_twdbdata[[#This Row],[effsave]]-0.6*SUMIFS(tbl_twdbdata[effsave],tbl_twdbdata[Year],2020,tbl_twdbdata[utility],tbl_twdbdata[[#This Row],[utility]]))","v":293328147.19999999},17110,2682,2328,0,1024764739,148250927,1670803674,0,111012541,610515533,{"$f":"tbl_twdbdata[[#This Row],[utility]]&tbl_twdbdata[[#This Row],[Year]]","v":"CLEBURNE2050"}]
[null,369,"CLEBURNE","G",2060,29337,70546,442372802,{"$f":"IF(tbl_twdbdata[[#This Row],[Year]]=2016,0,tbl_twdbdata[[#This Row],[effsave]]-0.6*SUMIFS(tbl_twdbdata[effsave],tbl_twdbdata[Year],2020,tbl_twdbdata[utility],tbl_twdbdata[[#This Row],[utility]]))","v":365283444.19999999},20077,2987,2592,0,1202459262,173957684,1960521549,0,130262150,716379115,{"$f":"tbl_twdbdata[[#This Row],[utility]]&tbl_twdbdata[[#This Row],[Year]]","v":"CLEBURNE2060"}]
[null,369,"CLEBURNE","G",2070,29337,78919,497469862,{"$f":"IF(tbl_twdbdata[[#This Row],[Year]]=2016,0,tbl_twdbdata[[#This Row],[effsave]]-0.6*SUMIFS(tbl_twdbdata[effsave],tbl_twdbdata[Year],2020,tbl_twdbdata[utility],tbl_twdbdata[[#This Row],[utility]]))","v":420380504.19999999},22460,3326,2887,0,1345177367,194604463,2193212941,0,145722771,801405089,{"$f":"tbl_twdbdata[[#This Row],[utility]]&tbl_twdbdata[[#This Row],[Year]]","v":"CLEBURNE2070"}]
[null,370,"CLEVELAND","H",2016,7707,7707,0,{"$f":"IF(tbl_twdbdata[[#This Row],[Year]]=2016,0,tbl_twdbdata[[#This Row],[effsave]]-0.6*SUMIFS(tbl_twdbdata[effsave],tbl_twdbdata[Year],2020,tbl_twdbdata[utility],tbl_twdbdata[[#This Row],[utility]]))","v":0},2032,690,449,0,115796247,20339900,132104290,0,11628750,92814480,{"$f":"tbl_twdbdata[[#This Row],[utility]]&tbl_twdbdata[[#This Row],[Year]]","v":"CLEVELAND2016"}]
[null,370,"CLEVELAND","H",2020,7707,7760,26199700,{"$f":"IF(tbl_twdbdata[[#This Row],[Year]]=2016,0,tbl_twdbdata[[#This Row],[effsave]]-0.6*SUMIFS(tbl_twdbdata[effsave],tbl_twdbdata[Year],2020,tbl_twdbdata[utility],tbl_twdbdata[[#This Row],[utility]]))","v":10479880},2042,693,451,0,116366081,20439993,132754376,0,11685975,93271221,{"$f":"tbl_twdbdata[[#This Row],[utility]]&tbl_twdbdata[[#This Row],[Year]]","v":"CLEVELAND2020"}]
[null,370,"CLEVELAND","H",2030,7707,7887,38431379,{"$f":"IF(tbl_twdbdata[[#This Row],[Year]]=2016,0,tbl_twdbdata[[#This Row],[effsave]]-0.6*SUMIFS(tbl_twdbdata[effsave],tbl_twdbdata[Year],2020,tbl_twdbdata[utility],tbl_twdbdata[[#This Row],[utility]]))","v":22711559},2075,704,459,0,118270526,20774514,134927031,0,11877227,94797696,{"$f":"tbl_twdbdata[[#This Row],[utility]]&tbl_twdbdata[[#This Row],[Year]]","v":"CLEVELAND2030"}]
[null,370,"CLEVELAND","H",2040,7707,8017,48838361,{"$f":"IF(tbl_twdbdata[[#This Row],[Year]]=2016,0,tbl_twdbdata[[#This Row],[effsave]]-0.6*SUMIFS(tbl_twdbdata[effsave],tbl_twdbdata[Year],2020,tbl_twdbdata[utility],tbl_twdbdata[[#This Row],[utility]]))","v":33118541},2109,716,467,0,120219958,21116937,137151009,0,12072997,96360229,{"$f":"tbl_twdbdata[[#This Row],[utility]]&tbl_twdbdata[[#This Row],[Year]]","v":"CLEVELAND2040"}]
[null,370,"CLEVELAND","H",2050,7707,8150,54973380,{"$f":"IF(tbl_twdbdata[[#This Row],[Year]]=2016,0,tbl_twdbdata[[#This Row],[effsave]]-0.6*SUMIFS(tbl_twdbdata[effsave],tbl_twdbdata[Year],2020,tbl_twdbdata[utility],tbl_twdbdata[[#This Row],[utility]]))","v":39253560},2144,728,475,0,122214377,21467262,139426309,0,12273285,97958821,{"$f":"tbl_twdbdata[[#This Row],[utility]]&tbl_twdbdata[[#This Row],[Year]]","v":"CLEVELAND2050"}]
[null,370,"CLEVELAND","H",2060,7707,8282,56861313,{"$f":"IF(tbl_twdbdata[[#This Row],[Year]]=2016,0,tbl_twdbdata[[#This Row],[effsave]]-0.6*SUMIFS(tbl_twdbdata[effsave],tbl_twdbdata[Year],2020,tbl_twdbdata[utility],tbl_twdbdata[[#This Row],[utility]]))","v":41141493},2179,740,483,0,124193800,21814953,141684502,0,12472067,99545393,{"$f":"tbl_twdbdata[[#This Row],[utility]]&tbl_twdbdata[[#This Row],[Year]]","v":"CLEVELAND2060"}]
[null,370,"CLEVELAND","H",2070,7707,8416,57842747,{"$f":"IF(tbl_twdbdata[[#This Row],[Year]]=2016,0,tbl_twdbdata[[#This Row],[effsave]]-0.6*SUMIFS(tbl_twdbdata[effsave],tbl_twdbdata[Year],2020,tbl_twdbdata[utility],tbl_twdbdata[[#This Row],[utility]]))","v":42122927},2214,752,491,0,126203214,22167912,143976910,0,12673861,101156004,{"$f":"tbl_twdbdata[[#This Row],[utility]]&tbl_twdbdata[[#This Row],[Year]]","v":"CLEVELAND2070"}]
[null,371,"CLIFTON","G",2016,3462,3462,0,{"$f":"IF(tbl_twdbdata[[#This Row],[Year]]=2016,0,tbl_twdbdata[[#This Row],[effsave]]-0.6*SUMIFS(tbl_twdbdata[effsave],tbl_twdbdata[Year],2020,tbl_twdbdata[utility],tbl_twdbdata[[#This Row],[utility]]))","v":0},864,72,504,0,77260000,6440000,45090000,0,3058000,19295574,{"$f":"tbl_twdbdata[[#This Row],[utility]]&tbl_twdbdata[[#This Row],[Year]]","v":"CLIFTON2016"}]
[null,371,"CLIFTON","G",2020,3461,3859,14367057,{"$f":"IF(tbl_twdbdata[[#This Row],[Year]]=2016,0,tbl_twdbdata[[#This Row],[effsave]]-0.6*SUMIFS(tbl_twdbdata[effsave],tbl_twdbdata[Year],2020,tbl_twdbdata[utility],tbl_twdbdata[[#This Row],[utility]]))","v":5746822.8000000007},963,80,562,0,86144565,7180572,50275154,0,3409657,21514481,{"$f":"tbl_twdbdata[[#This Row],[utility]]&tbl_twdbdata[[#This Row],[Year]]","v":"CLIFTON2020"}]
[null,371,"CLIFTON","G",2030,3461,4215,22307888,{"$f":"IF(tbl_twdbdata[[#This Row],[Year]]=2016,0,tbl_twdbdata[[#This Row],[effsave]]-0.6*SUMIFS(tbl_twdbdata[effsave],tbl_twdbdata[Year],2020,tbl_twdbdata[utility],tbl_twdbdata[[#This Row],[utility]]))","v":13687653.800000001},1052,87,613,0,94091563,7842993,54913131,0,3724204,23499232,{"$f":"tbl_twdbdata[[#This Row],[utility]]&tbl_twdbdata[[#This Row],[Year]]","v":"CLIFTON2030"}]
[null,371,"CLIFTON","G",2040,3461,4398,28028014,{"$f":"IF(tbl_twdbdata[[#This Row],[Year]]=2016,0,tbl_twdbdata[[#This Row],[effsave]]-0.6*SUMIFS(tbl_twdbdata[effsave],tbl_twdbdata[Year],2020,tbl_twdbdata[utility],tbl_twdbdata[[#This Row],[utility]]))","v":19407779.800000001},1098,95,670,0,98176677,8183507,57297260,0,3885895,24519483,{"$f":"tbl_twdbdata[[#This Row],[utility]]&tbl_twdbdata[[#This Row],[Year]]","v":"CLIFTON2040"}]
[null,371,"CLIFTON","G",2050,3461,4513,31264710,{"$f":"IF(tbl_twdbdata[[#This Row],[Year]]=2016,0,tbl_twdbdata[[#This Row],[effsave]]-0.6*SUMIFS(tbl_twdbdata[effsave],tbl_twdbdata[Year],2020,tbl_twdbdata[utility],tbl_twdbdata[[#This Row],[utility]]))","v":22644475.800000001},1127,104,732,0,100743825,8397491,58795483,0,3987504,25160625,{"$f":"tbl_twdbdata[[#This Row],[utility]]&tbl_twdbdata[[#This Row],[Year]]","v":"CLIFTON2050"}]
[null,371,"CLIFTON","G",2060,3461,4585,32215356,{"$f":"IF(tbl_twdbdata[[#This Row],[Year]]=2016,0,tbl_twdbdata[[#This Row],[effsave]]-0.6*SUMIFS(tbl_twdbdata[effsave],tbl_twdbdata[Year],2020,tbl_twdbdata[utility],tbl_twdbdata[[#This Row],[utility]]))","v":23595121.800000001},1145,114,800,0,102351083,8531464,59733501,0,4051120,25562035,{"$f":"tbl_twdbdata[[#This Row],[utility]]&tbl_twdbdata[[#This Row],[Year]]","v":"CLIFTON2060"}]
[null,371,"CLIFTON","G",2070,3461,4629,32558303,{"$f":"IF(tbl_twdbdata[[#This Row],[Year]]=2016,0,tbl_twdbdata[[#This Row],[effsave]]-0.6*SUMIFS(tbl_twdbdata[effsave],tbl_twdbdata[Year],2020,tbl_twdbdata[utility],tbl_twdbdata[[#This Row],[utility]]))","v":23938068.800000001},1156,125,874,0,103333296,8613336,60306734,0,4089997,25807341,{"$f":"tbl_twdbdata[[#This Row],[utility]]&tbl_twdbdata[[#This Row],[Year]]","v":"CLIFTON2070"}]
[null,373,"CLUTE","H",2016,11211,11211,0,{"$f":"IF(tbl_twdbdata[[#This Row],[Year]]=2016,0,tbl_twdbdata[[#This Row],[effsave]]-0.6*SUMIFS(tbl_twdbdata[effsave],tbl_twdbdata[Year],2020,tbl_twdbdata[utility],tbl_twdbdata[[#This Row],[utility]]))","v":0},2591,1996,467,91,143429000,105305000,107379000,17514000,25686300,48578630,{"$f":"tbl_twdbdata[[#This Row],[utility]]&tbl_twdbdata[[#This Row],[Year]]","v":"CLUTE2016"}]
[null,373,"CLUTE","H",2020,11211,11508,37173717,{"$f":"IF(tbl_twdbdata[[#This Row],[Year]]=2016,0,tbl_twdbdata[[#This Row],[effsave]]-0.6*SUMIFS(tbl_twdbdata[effsave],tbl_twdbdata[Year],2020,tbl_twdbdata[utility],tbl_twdbdata[[#This Row],[utility]]))","v":14869486.800000001},2644,2037,477,93,146367024,107462086,109578570,17872760,26212463,49573723,{"$f":"tbl_twdbdata[[#This Row],[utility]]&tbl_twdbdata[[#This Row],[Year]]","v":"CLUTE2020"}]
[null,373,"CLUTE","H",2030,11211,11900,55336190,{"$f":"IF(tbl_twdbdata[[#This Row],[Year]]=2016,0,tbl_twdbdata[[#This Row],[effsave]]-0.6*SUMIFS(tbl_twdbdata[effsave],tbl_twdbdata[Year],2020,tbl_twdbdata[utility],tbl_twdbdata[[#This Row],[utility]]))","v":33031959.800000001},2734,2106,494,96,151352762,111122595,113311174,18481564,27105345,51262366,{"$f":"tbl_twdbdata[[#This Row],[utility]]&tbl_twdbdata[[#This Row],[Year]]","v":"CLUTE2030"}]
[null,373,"CLUTE","H",2040,11211,12328,71005582,{"$f":"IF(tbl_twdbdata[[#This Row],[Year]]=2016,0,tbl_twdbdata[[#This Row],[effsave]]-0.6*SUMIFS(tbl_twdbdata[effsave],tbl_twdbdata[Year],2020,tbl_twdbdata[utility],tbl_twdbdata[[#This Row],[utility]]))","v":48701351.799999997},2832,2178,511,99,156796374,115119273,117386568,19146279,28080226,53106088,{"$f":"tbl_twdbdata[[#This Row],[utility]]&tbl_twdbdata[[#This Row],[Year]]","v":"CLUTE2040"}]
[null,373,"CLUTE","H",2050,11211,12782,81178482,{"$f":"IF(tbl_twdbdata[[#This Row],[Year]]=2016,0,tbl_twdbdata[[#This Row],[effsave]]-0.6*SUMIFS(tbl_twdbdata[effsave],tbl_twdbdata[Year],2020,tbl_twdbdata[utility],tbl_twdbdata[[#This Row],[utility]]))","v":58874251.799999997},2936,2252,529,102,162570673,119358740,121709533,19851374,29114329,55061812,{"$f":"tbl_twdbdata[[#This Row],[utility]]&tbl_twdbdata[[#This Row],[Year]]","v":"CLUTE2050"}]
[null,373,"CLUTE","H",2060,11211,13267,85856727,{"$f":"IF(tbl_twdbdata[[#This Row],[Year]]=2016,0,tbl_twdbdata[[#This Row],[effsave]]-0.6*SUMIFS(tbl_twdbdata[effsave],tbl_twdbdata[Year],2020,tbl_twdbdata[utility],tbl_twdbdata[[#This Row],[utility]]))","v":63552496.799999997},3047,2329,547,105,168739252,123887686,126327678,20604614,30219043,57151076,{"$f":"tbl_twdbdata[[#This Row],[utility]]&tbl_twdbdata[[#This Row],[Year]]","v":"CLUTE2060"}]
[null,373,"CLUTE","H",2070,11211,13787,89473494,{"$f":"IF(tbl_twdbdata[[#This Row],[Year]]=2016,0,tbl_twdbdata[[#This Row],[effsave]]-0.6*SUMIFS(tbl_twdbdata[effsave],tbl_twdbdata[Year],2020,tbl_twdbdata[utility],tbl_twdbdata[[#This Row],[utility]]))","v":67169263.799999997},3166,2408,566,109,175352986,128743463,131279091,21412212,31403478,59391112,{"$f":"tbl_twdbdata[[#This Row],[utility]]&tbl_twdbdata[[#This Row],[Year]]","v":"CLUTE2070"}]
[null,374,"CLYDE","G",2016,3420,3420,0,{"$f":"IF(tbl_twdbdata[[#This Row],[Year]]=2016,0,tbl_twdbdata[[#This Row],[effsave]]-0.6*SUMIFS(tbl_twdbdata[effsave],tbl_twdbdata[Year],2020,tbl_twdbdata[utility],tbl_twdbdata[[#This Row],[utility]]))","v":0},1491,0,129,0,84901000,0,13970000,0,1499000,22475543,{"$f":"tbl_twdbdata[[#This Row],[utility]]&tbl_twdbdata[[#This Row],[Year]]","v":"CLYDE2016"}]
[null,374,"CLYDE","G",2020,3420,3792,12899626,{"$f":"IF(tbl_twdbdata[[#This Row],[Year]]=2016,0,tbl_twdbdata[[#This Row],[effsave]]-0.6*SUMIFS(tbl_twdbdata[effsave],tbl_twdbdata[Year],2020,tbl_twdbdata[utility],tbl_twdbdata[[#This Row],[utility]]))","v":5159850.4000000004},1653,0,143,0,94135846,0,15489544,0,1662049,24920251,{"$f":"tbl_twdbdata[[#This Row],[utility]]&tbl_twdbdata[[#This Row],[Year]]","v":"CLYDE2020"}]
[null,374,"CLYDE","G",2030,3420,4060,19783365,{"$f":"IF(tbl_twdbdata[[#This Row],[Year]]=2016,0,tbl_twdbdata[[#This Row],[effsave]]-0.6*SUMIFS(tbl_twdbdata[effsave],tbl_twdbdata[Year],2020,tbl_twdbdata[utility],tbl_twdbdata[[#This Row],[utility]]))","v":12043589.4},1770,0,153,0,100788907,0,16584269,0,1779514,26681492,{"$f":"tbl_twdbdata[[#This Row],[utility]]&tbl_twdbdata[[#This Row],[Year]]","v":"CLYDE2030"}]
[null,374,"CLYDE","G",2040,3420,4205,24894862,{"$f":"IF(tbl_twdbdata[[#This Row],[Year]]=2016,0,tbl_twdbdata[[#This Row],[effsave]]-0.6*SUMIFS(tbl_twdbdata[effsave],tbl_twdbdata[Year],2020,tbl_twdbdata[utility],tbl_twdbdata[[#This Row],[utility]]))","v":17155086.399999999},1833,0,164,0,104388511,0,17176564,0,1843068,27634402,{"$f":"tbl_twdbdata[[#This Row],[utility]]&tbl_twdbdata[[#This Row],[Year]]","v":"CLYDE2040"}]
[null,374,"CLYDE","G",2050,3420,4280,27682184,{"$f":"IF(tbl_twdbdata[[#This Row],[Year]]=2016,0,tbl_twdbdata[[#This Row],[effsave]]-0.6*SUMIFS(tbl_twdbdata[effsave],tbl_twdbdata[Year],2020,tbl_twdbdata[utility],tbl_twdbdata[[#This Row],[utility]]))","v":19942408.399999999},1866,0,176,0,106250375,0,17482924,0,1875941,28127287,{"$f":"tbl_twdbdata[[#This Row],[utility]]&tbl_twdbdata[[#This Row],[Year]]","v":"CLYDE2050"}]
[null,374,"CLYDE","G",2060,3420,4337,28509920,{"$f":"IF(tbl_twdbdata[[#This Row],[Year]]=2016,0,tbl_twdbdata[[#This Row],[effsave]]-0.6*SUMIFS(tbl_twdbdata[effsave],tbl_twdbdata[Year],2020,tbl_twdbdata[utility],tbl_twdbdata[[#This Row],[utility]]))","v":20770144.399999999},1891,0,188,0,107665392,0,17715757,0,1900924,28501879,{"$f":"tbl_twdbdata[[#This Row],[utility]]&tbl_twdbdata[[#This Row],[Year]]","v":"CLYDE2060"}]
[null,374,"CLYDE","G",2070,3420,4372,28771913,{"$f":"IF(tbl_twdbdata[[#This Row],[Year]]=2016,0,tbl_twdbdata[[#This Row],[effsave]]-0.6*SUMIFS(tbl_twdbdata[effsave],tbl_twdbdata[Year],2020,tbl_twdbdata[utility],tbl_twdbdata[[#This Row],[utility]]))","v":21032137.399999999},1906,0,201,0,108534262,0,17858725,0,1916265,28731892,{"$f":"tbl_twdbdata[[#This Row],[utility]]&tbl_twdbdata[[#This Row],[Year]]","v":"CLYDE2070"}]
[null,376,"COCKRELL HILL","C",2016,4280,4280,0,{"$f":"IF(tbl_twdbdata[[#This Row],[Year]]=2016,0,tbl_twdbdata[[#This Row],[effsave]]-0.6*SUMIFS(tbl_twdbdata[effsave],tbl_twdbdata[Year],2020,tbl_twdbdata[utility],tbl_twdbdata[[#This Row],[utility]]))","v":0},1071,0,107,0,90633909,0,39743570,0,3000000,41825552,{"$f":"tbl_twdbdata[[#This Row],[utility]]&tbl_twdbdata[[#This Row],[Year]]","v":"COCKRELL HILL2016"}]
[null,376,"COCKRELL HILL","C",2020,4062,4787,17909364,{"$f":"IF(tbl_twdbdata[[#This Row],[Year]]=2016,0,tbl_twdbdata[[#This Row],[effsave]]-0.6*SUMIFS(tbl_twdbdata[effsave],tbl_twdbdata[Year],2020,tbl_twdbdata[utility],tbl_twdbdata[[#This Row],[utility]]))","v":7163745.5999999996},1262,0,126,0,106810567,0,46837142,0,3535451,49290723,{"$f":"tbl_twdbdata[[#This Row],[utility]]&tbl_twdbdata[[#This Row],[Year]]","v":"COCKRELL HILL2020"}]
[null,376,"COCKRELL HILL","C",2030,4062,5250,28034738,{"$f":"IF(tbl_twdbdata[[#This Row],[Year]]=2016,0,tbl_twdbdata[[#This Row],[effsave]]-0.6*SUMIFS(tbl_twdbdata[effsave],tbl_twdbdata[Year],2020,tbl_twdbdata[utility],tbl_twdbdata[[#This Row],[utility]]))","v":17289119.600000001},1384,0,138,0,117141315,0,51367244,0,3877401,54058136,{"$f":"tbl_twdbdata[[#This Row],[utility]]&tbl_twdbdata[[#This Row],[Year]]","v":"COCKRELL HILL2030"}]
[null,376,"COCKRELL HILL","C",2040,4062,5250,33534375,{"$f":"IF(tbl_twdbdata[[#This Row],[Year]]=2016,0,tbl_twdbdata[[#This Row],[effsave]]-0.6*SUMIFS(tbl_twdbdata[effsave],tbl_twdbdata[Year],2020,tbl_twdbdata[utility],tbl_twdbdata[[#This Row],[utility]]))","v":22788756.600000001},1384,0,151,0,117141315,0,51367244,0,3877401,54058136,{"$f":"tbl_twdbdata[[#This Row],[utility]]&tbl_twdbdata[[#This Row],[Year]]","v":"COCKRELL HILL2040"}]
[null,376,"COCKRELL HILL","C",2050,4062,5250,36542888,{"$f":"IF(tbl_twdbdata[[#This Row],[Year]]=2016,0,tbl_twdbdata[[#This Row],[effsave]]-0.6*SUMIFS(tbl_twdbdata[effsave],tbl_twdbdata[Year],2020,tbl_twdbdata[utility],tbl_twdbdata[[#This Row],[utility]]))","v":25797269.600000001},1384,0,166,0,117141315,0,51367244,0,3877401,54058136,{"$f":"tbl_twdbdata[[#This Row],[utility]]&tbl_twdbdata[[#This Row],[Year]]","v":"COCKRELL HILL2050"}]
[null,376,"COCKRELL HILL","C",2060,4062,6999,50198578,{"$f":"IF(tbl_twdbdata[[#This Row],[Year]]=2016,0,tbl_twdbdata[[#This Row],[effsave]]-0.6*SUMIFS(tbl_twdbdata[effsave],tbl_twdbdata[Year],2020,tbl_twdbdata[utility],tbl_twdbdata[[#This Row],[utility]]))","v":39452959.600000001},1845,0,182,0,156166107,0,68479874,0,5169129,72067218,{"$f":"tbl_twdbdata[[#This Row],[utility]]&tbl_twdbdata[[#This Row],[Year]]","v":"COCKRELL HILL2060"}]
[null,376,"COCKRELL HILL","C",2070,4062,14997,110080230,{"$f":"IF(tbl_twdbdata[[#This Row],[Year]]=2016,0,tbl_twdbdata[[#This Row],[effsave]]-0.6*SUMIFS(tbl_twdbdata[effsave],tbl_twdbdata[Year],2020,tbl_twdbdata[utility],tbl_twdbdata[[#This Row],[utility]]))","v":99334611.599999994},3953,0,200,0,334622533,0,146734201,0,11076072,154420927,{"$f":"tbl_twdbdata[[#This Row],[utility]]&tbl_twdbdata[[#This Row],[Year]]","v":"COCKRELL HILL2070"}]
[null,378,"COLEMAN","F",2016,4709,4709,0,{"$f":"IF(tbl_twdbdata[[#This Row],[Year]]=2016,0,tbl_twdbdata[[#This Row],[effsave]]-0.6*SUMIFS(tbl_twdbdata[effsave],tbl_twdbdata[Year],2020,tbl_twdbdata[utility],tbl_twdbdata[[#This Row],[utility]]))","v":0},1910,0,331,0,94550000,0,42909000,0,3526487,141133461,{"$f":"tbl_twdbdata[[#This Row],[utility]]&tbl_twdbdata[[#This Row],[Year]]","v":"COLEMAN2016"}]
[null,378,"COLEMAN","F",2020,4328,4820,17364291,{"$f":"IF(tbl_twdbdata[[#This Row],[Year]]=2016,0,tbl_twdbdata[[#This Row],[effsave]]-0.6*SUMIFS(tbl_twdbdata[effsave],tbl_twdbdata[Year],2020,tbl_twdbdata[utility],tbl_twdbdata[[#This Row],[utility]]))","v":6945716.4000000004},2127,0,369,0,105298290,0,47786825,0,3927372,157177283,{"$f":"tbl_twdbdata[[#This Row],[utility]]&tbl_twdbdata[[#This Row],[Year]]","v":"COLEMAN2020"}]
[null,378,"COLEMAN","F",2030,4328,4928,26117414,{"$f":"IF(tbl_twdbdata[[#This Row],[Year]]=2016,0,tbl_twdbdata[[#This Row],[effsave]]-0.6*SUMIFS(tbl_twdbdata[effsave],tbl_twdbdata[Year],2020,tbl_twdbdata[utility],tbl_twdbdata[[#This Row],[utility]]))","v":15698839.4},2175,0,377,0,107657671,0,48857567,0,4015371,160699098,{"$f":"tbl_twdbdata[[#This Row],[utility]]&tbl_twdbdata[[#This Row],[Year]]","v":"COLEMAN2030"}]
[null,378,"COLEMAN","F",2040,4328,4928,32269037,{"$f":"IF(tbl_twdbdata[[#This Row],[Year]]=2016,0,tbl_twdbdata[[#This Row],[effsave]]-0.6*SUMIFS(tbl_twdbdata[effsave],tbl_twdbdata[Year],2020,tbl_twdbdata[utility],tbl_twdbdata[[#This Row],[utility]]))","v":21850462.399999999},2175,0,385,0,107657671,0,48857567,0,4015371,160699098,{"$f":"tbl_twdbdata[[#This Row],[utility]]&tbl_twdbdata[[#This Row],[Year]]","v":"COLEMAN2040"}]
[null,378,"COLEMAN","F",2050,4328,4928,32844627,{"$f":"IF(tbl_twdbdata[[#This Row],[Year]]=2016,0,tbl_twdbdata[[#This Row],[effsave]]-0.6*SUMIFS(tbl_twdbdata[effsave],tbl_twdbdata[Year],2020,tbl_twdbdata[utility],tbl_twdbdata[[#This Row],[utility]]))","v":22426052.399999999},2175,0,393,0,107657671,0,48857567,0,4015371,160699098,{"$f":"tbl_twdbdata[[#This Row],[utility]]&tbl_twdbdata[[#This Row],[Year]]","v":"COLEMAN2050"}]
[null,378,"COLEMAN","F",2060,4328,4928,33402230,{"$f":"IF(tbl_twdbdata[[#This Row],[Year]]=2016,0,tbl_twdbdata[[#This Row],[effsave]]-0.6*SUMIFS(tbl_twdbdata[effsave],tbl_twdbdata[Year],2020,tbl_twdbdata[utility],tbl_twdbdata[[#This Row],[utility]]))","v":22983655.399999999},2175,0,402,0,107657671,0,48857567,0,4015371,160699098,{"$f":"tbl_twdbdata[[#This Row],[utility]]&tbl_twdbdata[[#This Row],[Year]]","v":"COLEMAN2060"}]
[null,378,"COLEMAN","F",2070,4328,4928,33402230,{"$f":"IF(tbl_twdbdata[[#This Row],[Year]]=2016,0,tbl_twdbdata[[#This Row],[effsave]]-0.6*SUMIFS(tbl_twdbdata[effsave],tbl_twdbdata[Year],2020,tbl_twdbdata[utility],tbl_twdbdata[[#This Row],[utility]]))","v":22983655.399999999},2175,0,411,0,107657671,0,48857567,0,4015371,160699098,{"$f":"tbl_twdbdata[[#This Row],[utility]]&tbl_twdbdata[[#This Row],[Year]]","v":"COLEMAN2070"}]
[null,381,"COLLEGE STATION","G",2016,90000,90000,0,{"$f":"IF(tbl_twdbdata[[#This Row],[Year]]=2016,0,tbl_twdbdata[[#This Row],[effsave]]-0.6*SUMIFS(tbl_twdbdata[effsave],tbl_twdbdata[Year],2020,tbl_twdbdata[utility],tbl_twdbdata[[#This Row],[utility]]))","v":0},23090,16591,2136,0,2035561000,812902000,1214164000,0,55200881,298242592,{"$f":"tbl_twdbdata[[#This Row],[utility]]&tbl_twdbdata[[#This Row],[Year]]","v":"COLLEGE STATION2016"}]
[null,381,"COLLEGE STATION","G",2020,90000,100854,345293840,{"$f":"IF(tbl_twdbdata[[#This Row],[Year]]=2016,0,tbl_twdbdata[[#This Row],[effsave]]-0.6*SUMIFS(tbl_twdbdata[effsave],tbl_twdbdata[Year],2020,tbl_twdbdata[utility],tbl_twdbdata[[#This Row],[utility]]))","v":138117536},24733,17771,2288,0,2180388392,870738870,1300550115,0,59128348,319462146,{"$f":"tbl_twdbdata[[#This Row],[utility]]&tbl_twdbdata[[#This Row],[Year]]","v":"COLLEGE STATION2020"}]
[null,381,"COLLEGE STATION","G",2030,90000,129102,630495437,{"$f":"IF(tbl_twdbdata[[#This Row],[Year]]=2016,0,tbl_twdbdata[[#This Row],[effsave]]-0.6*SUMIFS(tbl_twdbdata[effsave],tbl_twdbdata[Year],2020,tbl_twdbdata[utility],tbl_twdbdata[[#This Row],[utility]]))","v":423319133},31660,22748,2929,0,2791089121,1114622420,1664818658,0,75689492,408939675,{"$f":"tbl_twdbdata[[#This Row],[utility]]&tbl_twdbdata[[#This Row],[Year]]","v":"COLLEGE STATION2030"}]
[null,381,"COLLEGE STATION","G",2040,90000,165261,917471231,{"$f":"IF(tbl_twdbdata[[#This Row],[Year]]=2016,0,tbl_twdbdata[[#This Row],[effsave]]-0.6*SUMIFS(tbl_twdbdata[effsave],tbl_twdbdata[Year],2020,tbl_twdbdata[utility],tbl_twdbdata[[#This Row],[utility]]))","v":710294927},40527,29119,3749,0,3572819780,1426806833,2131102510,0,96888670,523475853,{"$f":"tbl_twdbdata[[#This Row],[utility]]&tbl_twdbdata[[#This Row],[Year]]","v":"COLLEGE STATION2040"}]
[null,381,"COLLEGE STATION","G",2050,90000,195852,1161647175,{"$f":"IF(tbl_twdbdata[[#This Row],[Year]]=2016,0,tbl_twdbdata[[#This Row],[effsave]]-0.6*SUMIFS(tbl_twdbdata[effsave],tbl_twdbdata[Year],2020,tbl_twdbdata[utility],tbl_twdbdata[[#This Row],[utility]]))","v":954470871},48029,37275,4799,0,4234174424,1690919042,2525584916,0,114823460,620374999,{"$f":"tbl_twdbdata[[#This Row],[utility]]&tbl_twdbdata[[#This Row],[Year]]","v":"COLLEGE STATION2050"}]
[null,381,"COLLEGE STATION","G",2060,90000,195852,1180233530,{"$f":"IF(tbl_twdbdata[[#This Row],[Year]]=2016,0,tbl_twdbdata[[#This Row],[effsave]]-0.6*SUMIFS(tbl_twdbdata[effsave],tbl_twdbdata[Year],2020,tbl_twdbdata[utility],tbl_twdbdata[[#This Row],[utility]]))","v":973057226},48029,47715,6143,0,4234174424,1690919042,2525584916,0,114823460,620374999,{"$f":"tbl_twdbdata[[#This Row],[utility]]&tbl_twdbdata[[#This Row],[Year]]","v":"COLLEGE STATION2060"}]
[null,381,"COLLEGE STATION","G",2070,90000,195852,1186667268,{"$f":"IF(tbl_twdbdata[[#This Row],[Year]]=2016,0,tbl_twdbdata[[#This Row],[effsave]]-0.6*SUMIFS(tbl_twdbdata[effsave],tbl_twdbdata[Year],2020,tbl_twdbdata[utility],tbl_twdbdata[[#This Row],[utility]]))","v":979490964},48029,61079,7864,0,4234174424,1690919042,2525584916,0,114823460,620374999,{"$f":"tbl_twdbdata[[#This Row],[utility]]&tbl_twdbdata[[#This Row],[Year]]","v":"COLLEGE STATION2070"}]
[null,382,"COLLEYVILLE","C",2016,25487,25487,0,{"$f":"IF(tbl_twdbdata[[#This Row],[Year]]=2016,0,tbl_twdbdata[[#This Row],[effsave]]-0.6*SUMIFS(tbl_twdbdata[effsave],tbl_twdbdata[Year],2020,tbl_twdbdata[utility],tbl_twdbdata[[#This Row],[utility]]))","v":0},8913,0,980,0,2035100300,0,135412400,0,30138926,51902456,{"$f":"tbl_twdbdata[[#This Row],[utility]]&tbl_twdbdata[[#This Row],[Year]]","v":"COLLEYVILLE2016"}]
[null,382,"COLLEYVILLE","C",2020,24210,23719,72029859,{"$f":"IF(tbl_twdbdata[[#This Row],[Year]]=2016,0,tbl_twdbdata[[#This Row],[effsave]]-0.6*SUMIFS(tbl_twdbdata[effsave],tbl_twdbdata[Year],2020,tbl_twdbdata[utility],tbl_twdbdata[[#This Row],[utility]]))","v":28811943.600000001},8732,0,960,0,1993826684,0,132666118,0,29527682,50849829,{"$f":"tbl_twdbdata[[#This Row],[utility]]&tbl_twdbdata[[#This Row],[Year]]","v":"COLLEYVILLE2020"}]
[null,382,"COLLEYVILLE","C",2030,24210,25201,107068969,{"$f":"IF(tbl_twdbdata[[#This Row],[Year]]=2016,0,tbl_twdbdata[[#This Row],[effsave]]-0.6*SUMIFS(tbl_twdbdata[effsave],tbl_twdbdata[Year],2020,tbl_twdbdata[utility],tbl_twdbdata[[#This Row],[utility]]))","v":63851053.600000001},9278,0,1020,0,2118404075,0,140955303,0,31372617,54027005,{"$f":"tbl_twdbdata[[#This Row],[utility]]&tbl_twdbdata[[#This Row],[Year]]","v":"COLLEYVILLE2030"}]
[null,382,"COLLEYVILLE","C",2040,24210,27000,137970000,{"$f":"IF(tbl_twdbdata[[#This Row],[Year]]=2016,0,tbl_twdbdata[[#This Row],[effsave]]-0.6*SUMIFS(tbl_twdbdata[effsave],tbl_twdbdata[Year],2020,tbl_twdbdata[utility],tbl_twdbdata[[#This Row],[utility]]))","v":94752084.599999994},9940,0,1084,0,2269628587,0,151017546,0,33612184,57883780,{"$f":"tbl_twdbdata[[#This Row],[utility]]&tbl_twdbdata[[#This Row],[Year]]","v":"COLLEYVILLE2040"}]
[null,382,"COLLEYVILLE","C",2050,24210,28000,155752800,{"$f":"IF(tbl_twdbdata[[#This Row],[Year]]=2016,0,tbl_twdbdata[[#This Row],[effsave]]-0.6*SUMIFS(tbl_twdbdata[effsave],tbl_twdbdata[Year],2020,tbl_twdbdata[utility],tbl_twdbdata[[#This Row],[utility]]))","v":112534884.59999999},10308,0,1152,0,2353688905,0,156610788,0,34857080,60027624,{"$f":"tbl_twdbdata[[#This Row],[utility]]&tbl_twdbdata[[#This Row],[Year]]","v":"COLLEYVILLE2050"}]
[null,382,"COLLEYVILLE","C",2060,24210,28000,158410000,{"$f":"IF(tbl_twdbdata[[#This Row],[Year]]=2016,0,tbl_twdbdata[[#This Row],[effsave]]-0.6*SUMIFS(tbl_twdbdata[effsave],tbl_twdbdata[Year],2020,tbl_twdbdata[utility],tbl_twdbdata[[#This Row],[utility]]))","v":115192084.59999999},10308,0,1224,0,2353688905,0,156610788,0,34857080,60027624,{"$f":"tbl_twdbdata[[#This Row],[utility]]&tbl_twdbdata[[#This Row],[Year]]","v":"COLLEYVILLE2060"}]
[null,382,"COLLEYVILLE","C",2070,24210,28000,158512200,{"$f":"IF(tbl_twdbdata[[#This Row],[Year]]=2016,0,tbl_twdbdata[[#This Row],[effsave]]-0.6*SUMIFS(tbl_twdbdata[effsave],tbl_twdbdata[Year],2020,tbl_twdbdata[utility],tbl_twdbdata[[#This Row],[utility]]))","v":115294284.59999999},10308,0,1300,0,2353688905,0,156610788,0,34857080,60027624,{"$f":"tbl_twdbdata[[#This Row],[utility]]&tbl_twdbdata[[#This Row],[Year]]","v":"COLLEYVILLE2070"}]
[null,387,"COMANCHE","G",2016,4335,4335,0,{"$f":"IF(tbl_twdbdata[[#This Row],[Year]]=2016,0,tbl_twdbdata[[#This Row],[effsave]]-0.6*SUMIFS(tbl_twdbdata[effsave],tbl_twdbdata[Year],2020,tbl_twdbdata[utility],tbl_twdbdata[[#This Row],[utility]]))","v":0},1430,232,301,0,73339807,6692876,34525017,0,18999828,13108703,{"$f":"tbl_twdbdata[[#This Row],[utility]]&tbl_twdbdata[[#This Row],[Year]]","v":"COMANCHE2016"}]
[null,387,"COMANCHE","G",2020,4327,4491,15802033,{"$f":"IF(tbl_twdbdata[[#This Row],[Year]]=2016,0,tbl_twdbdata[[#This Row],[effsave]]-0.6*SUMIFS(tbl_twdbdata[effsave],tbl_twdbdata[Year],2020,tbl_twdbdata[utility],tbl_twdbdata[[#This Row],[utility]]))","v":6320813.2000000011},1484,241,313,0,76119499,6946546,35833569,0,19719951,13605543,{"$f":"tbl_twdbdata[[#This Row],[utility]]&tbl_twdbdata[[#This Row],[Year]]","v":"COMANCHE2020"}]
[null,387,"COMANCHE","G",2030,4327,4670,23846655,{"$f":"IF(tbl_twdbdata[[#This Row],[Year]]=2016,0,tbl_twdbdata[[#This Row],[effsave]]-0.6*SUMIFS(tbl_twdbdata[effsave],tbl_twdbdata[Year],2020,tbl_twdbdata[utility],tbl_twdbdata[[#This Row],[utility]]))","v":14365435.200000001},1543,251,326,0,79153431,7223418,37261805,0,20505939,14147826,{"$f":"tbl_twdbdata[[#This Row],[utility]]&tbl_twdbdata[[#This Row],[Year]]","v":"COMANCHE2030"}]
[null,387,"COMANCHE","G",2040,4327,4791,30392667,{"$f":"IF(tbl_twdbdata[[#This Row],[Year]]=2016,0,tbl_twdbdata[[#This Row],[effsave]]-0.6*SUMIFS(tbl_twdbdata[effsave],tbl_twdbdata[Year],2020,tbl_twdbdata[utility],tbl_twdbdata[[#This Row],[utility]]))","v":20911447.200000003},1583,261,339,0,81204301,7410577,38227261,0,21037249,14514397,{"$f":"tbl_twdbdata[[#This Row],[utility]]&tbl_twdbdata[[#This Row],[Year]]","v":"COMANCHE2040"}]
[null,387,"COMANCHE","G",2050,4327,4947,34271332,{"$f":"IF(tbl_twdbdata[[#This Row],[Year]]=2016,0,tbl_twdbdata[[#This Row],[effsave]]-0.6*SUMIFS(tbl_twdbdata[effsave],tbl_twdbdata[Year],2020,tbl_twdbdata[utility],tbl_twdbdata[[#This Row],[utility]]))","v":24790112.200000003},1635,271,352,0,83848398,7651873,39471981,0,21722244,14987001,{"$f":"tbl_twdbdata[[#This Row],[utility]]&tbl_twdbdata[[#This Row],[Year]]","v":"COMANCHE2050"}]
[null,387,"COMANCHE","G",2060,4327,5081,35793105,{"$f":"IF(tbl_twdbdata[[#This Row],[Year]]=2016,0,tbl_twdbdata[[#This Row],[effsave]]-0.6*SUMIFS(tbl_twdbdata[effsave],tbl_twdbdata[Year],2020,tbl_twdbdata[utility],tbl_twdbdata[[#This Row],[utility]]))","v":26311885.200000003},1679,282,366,0,86119610,7859140,40541163,0,22310637,15392956,{"$f":"tbl_twdbdata[[#This Row],[utility]]&tbl_twdbdata[[#This Row],[Year]]","v":"COMANCHE2060"}]
[null,387,"COMANCHE","G",2070,4327,5208,36763793,{"$f":"IF(tbl_twdbdata[[#This Row],[Year]]=2016,0,tbl_twdbdata[[#This Row],[effsave]]-0.6*SUMIFS(tbl_twdbdata[effsave],tbl_twdbdata[Year],2020,tbl_twdbdata[utility],tbl_twdbdata[[#This Row],[utility]]))","v":27282573.200000003},1721,293,380,0,88272177,8055580,41554492,0,22868293,15777704,{"$f":"tbl_twdbdata[[#This Row],[utility]]&tbl_twdbdata[[#This Row],[Year]]","v":"COMANCHE2070"}]
[null,392,"COMMERCE","D",2016,8001,8001,0,{"$f":"IF(tbl_twdbdata[[#This Row],[Year]]=2016,0,tbl_twdbdata[[#This Row],[effsave]]-0.6*SUMIFS(tbl_twdbdata[effsave],tbl_twdbdata[Year],2020,tbl_twdbdata[utility],tbl_twdbdata[[#This Row],[utility]]))","v":0},2600,0,0,0,274451000,0,0,0,496865482,66892089,{"$f":"tbl_twdbdata[[#This Row],[utility]]&tbl_twdbdata[[#This Row],[Year]]","v":"COMMERCE2016"}]
[null,392,"COMMERCE","D",2020,8001,8883,31190878,{"$f":"IF(tbl_twdbdata[[#This Row],[Year]]=2016,0,tbl_twdbdata[[#This Row],[effsave]]-0.6*SUMIFS(tbl_twdbdata[effsave],tbl_twdbdata[Year],2020,tbl_twdbdata[utility],tbl_twdbdata[[#This Row],[utility]]))","v":12476351.199999999},2887,0,0,0,304705441,0,0,0,551638055,74266020,{"$f":"tbl_twdbdata[[#This Row],[utility]]&tbl_twdbdata[[#This Row],[Year]]","v":"COMMERCE2020"}]
[null,392,"COMMERCE","D",2030,8001,9975,50316893,{"$f":"IF(tbl_twdbdata[[#This Row],[Year]]=2016,0,tbl_twdbdata[[#This Row],[effsave]]-0.6*SUMIFS(tbl_twdbdata[effsave],tbl_twdbdata[Year],2020,tbl_twdbdata[utility],tbl_twdbdata[[#This Row],[utility]]))","v":31602366.199999999},3242,0,0,0,342163320,0,0,0,619451717,83395649,{"$f":"tbl_twdbdata[[#This Row],[utility]]&tbl_twdbdata[[#This Row],[Year]]","v":"COMMERCE2030"}]
[null,392,"COMMERCE","D",2040,8001,11456,69997306,{"$f":"IF(tbl_twdbdata[[#This Row],[Year]]=2016,0,tbl_twdbdata[[#This Row],[effsave]]-0.6*SUMIFS(tbl_twdbdata[effsave],tbl_twdbdata[Year],2020,tbl_twdbdata[utility],tbl_twdbdata[[#This Row],[utility]]))","v":51282779.200000003},3723,0,0,0,392964711,0,0,0,711422443,95777499,{"$f":"tbl_twdbdata[[#This Row],[utility]]&tbl_twdbdata[[#This Row],[Year]]","v":"COMMERCE2040"}]
[null,392,"COMMERCE","D",2050,8001,13502,89447375,{"$f":"IF(tbl_twdbdata[[#This Row],[Year]]=2016,0,tbl_twdbdata[[#This Row],[effsave]]-0.6*SUMIFS(tbl_twdbdata[effsave],tbl_twdbdata[Year],2020,tbl_twdbdata[utility],tbl_twdbdata[[#This Row],[utility]]))","v":70732848.200000003},4388,0,0,0,463146781,0,0,0,838479908,112883013,{"$f":"tbl_twdbdata[[#This Row],[utility]]&tbl_twdbdata[[#This Row],[Year]]","v":"COMMERCE2050"}]
[null,392,"COMMERCE","D",2060,8001,16416,110849040,{"$f":"IF(tbl_twdbdata[[#This Row],[Year]]=2016,0,tbl_twdbdata[[#This Row],[effsave]]-0.6*SUMIFS(tbl_twdbdata[effsave],tbl_twdbdata[Year],2020,tbl_twdbdata[utility],tbl_twdbdata[[#This Row],[utility]]))","v":92134513.200000003},5335,0,0,0,563103063,0,0,0,1019440540,137245411,{"$f":"tbl_twdbdata[[#This Row],[utility]]&tbl_twdbdata[[#This Row],[Year]]","v":"COMMERCE2060"}]
[null,392,"COMMERCE","D",2070,8001,20651,140501144,{"$f":"IF(tbl_twdbdata[[#This Row],[Year]]=2016,0,tbl_twdbdata[[#This Row],[effsave]]-0.6*SUMIFS(tbl_twdbdata[effsave],tbl_twdbdata[Year],2020,tbl_twdbdata[utility],tbl_twdbdata[[#This Row],[utility]]))","v":121786617.2},6711,0,0,0,708372402,0,0,0,1282435830,172651985,{"$f":"tbl_twdbdata[[#This Row],[utility]]&tbl_twdbdata[[#This Row],[Year]]","v":"COMMERCE2070"}]
[null,397,"CONROE","H",2016,24819,71468,0,{"$f":"IF(tbl_twdbdata[[#This Row],[Year]]=2016,0,tbl_twdbdata[[#This Row],[effsave]]-0.6*SUMIFS(tbl_twdbdata[effsave],tbl_twdbdata[Year],2020,tbl_twdbdata[utility],tbl_twdbdata[[#This Row],[utility]]))","v":0},16222,296,2284,0,1238878000,414027000,1451616000,0,48902574,38504809,{"$f":"tbl_twdbdata[[#This Row],[utility]]&tbl_twdbdata[[#This Row],[Year]]","v":"CONROE2016"}]
[null,397,"CONROE","H",2020,24819,74960,252262888,{"$f":"IF(tbl_twdbdata[[#This Row],[Year]]=2016,0,tbl_twdbdata[[#This Row],[effsave]]-0.6*SUMIFS(tbl_twdbdata[effsave],tbl_twdbdata[Year],2020,tbl_twdbdata[utility],tbl_twdbdata[[#This Row],[utility]]))","v":100905155.20000002},18044,329,2540,0,1378022212,460528319,1614653817,0,54395052,42829465,{"$f":"tbl_twdbdata[[#This Row],[utility]]&tbl_twdbdata[[#This Row],[Year]]","v":"CONROE2020"}]
[null,397,"CONROE","H",2030,24819,89956,396633995,{"$f":"IF(tbl_twdbdata[[#This Row],[Year]]=2016,0,tbl_twdbdata[[#This Row],[effsave]]-0.6*SUMIFS(tbl_twdbdata[effsave],tbl_twdbdata[Year],2020,tbl_twdbdata[utility],tbl_twdbdata[[#This Row],[utility]]))","v":245276262.20000002},21654,395,3048,0,1653700188,552658557,1937670741,0,65276965,51397643,{"$f":"tbl_twdbdata[[#This Row],[utility]]&tbl_twdbdata[[#This Row],[Year]]","v":"CONROE2030"}]
[null,397,"CONROE","H",2040,24819,103366,513108824,{"$f":"IF(tbl_twdbdata[[#This Row],[Year]]=2016,0,tbl_twdbdata[[#This Row],[effsave]]-0.6*SUMIFS(tbl_twdbdata[effsave],tbl_twdbdata[Year],2020,tbl_twdbdata[utility],tbl_twdbdata[[#This Row],[utility]]))","v":361751091.20000005},24882,474,3659,0,1900222038,635044960,2226524899,0,75007990,59059638,{"$f":"tbl_twdbdata[[#This Row],[utility]]&tbl_twdbdata[[#This Row],[Year]]","v":"CONROE2040"}]
[null,397,"CONROE","H",2050,24819,115733,606180521,{"$f":"IF(tbl_twdbdata[[#This Row],[Year]]=2016,0,tbl_twdbdata[[#This Row],[effsave]]-0.6*SUMIFS(tbl_twdbdata[effsave],tbl_twdbdata[Year],2020,tbl_twdbdata[utility],tbl_twdbdata[[#This Row],[utility]]))","v":454822788.20000005},27859,569,4390,0,2127569966,711023531,2492912623,0,83982158,66125700,{"$f":"tbl_twdbdata[[#This Row],[utility]]&tbl_twdbdata[[#This Row],[Year]]","v":"CONROE2050"}]
[null,397,"CONROE","H",2060,24819,128981,685927407,{"$f":"IF(tbl_twdbdata[[#This Row],[Year]]=2016,0,tbl_twdbdata[[#This Row],[effsave]]-0.6*SUMIFS(tbl_twdbdata[effsave],tbl_twdbdata[Year],2020,tbl_twdbdata[utility],tbl_twdbdata[[#This Row],[utility]]))","v":534569674.20000005},31048,683,5268,0,2371113700,792414662,2778277267,0,93595627,73695134,{"$f":"tbl_twdbdata[[#This Row],[utility]]&tbl_twdbdata[[#This Row],[Year]]","v":"CONROE2060"}]
[null,397,"CONROE","H",2070,24819,143164,766056248,{"$f":"IF(tbl_twdbdata[[#This Row],[Year]]=2016,0,tbl_twdbdata[[#This Row],[effsave]]-0.6*SUMIFS(tbl_twdbdata[effsave],tbl_twdbdata[Year],2020,tbl_twdbdata[utility],tbl_twdbdata[[#This Row],[utility]]))","v":614698515.20000005},34462,820,6322,0,2631845944,879550109,3083782004,0,103887583,81798793,{"$f":"tbl_twdbdata[[#This Row],[utility]]&tbl_twdbdata[[#This Row],[Year]]","v":"CONROE2070"}]
[null,400,"CONVERSE","L",2016,1969,25959,0,{"$f":"IF(tbl_twdbdata[[#This Row],[Year]]=2016,0,tbl_twdbdata[[#This Row],[effsave]]-0.6*SUMIFS(tbl_twdbdata[effsave],tbl_twdbdata[Year],2020,tbl_twdbdata[utility],tbl_twdbdata[[#This Row],[utility]]))","v":0},7052,1221,367,0,433814420,38353850,98666342,0,6433350,10310193,{"$f":"tbl_twdbdata[[#This Row],[utility]]&tbl_twdbdata[[#This Row],[Year]]","v":"CONVERSE2016"}]
[null,400,"CONVERSE","L",2020,1969,23458,75261474,{"$f":"IF(tbl_twdbdata[[#This Row],[Year]]=2016,0,tbl_twdbdata[[#This Row],[effsave]]-0.6*SUMIFS(tbl_twdbdata[effsave],tbl_twdbdata[Year],2020,tbl_twdbdata[utility],tbl_twdbdata[[#This Row],[utility]]))","v":30104589.600000001},7747,1341,403,0,476557959,42132838,108387893,0,7067225,11326052,{"$f":"tbl_twdbdata[[#This Row],[utility]]&tbl_twdbdata[[#This Row],[Year]]","v":"CONVERSE2020"}]
[null,400,"CONVERSE","L",2030,1969,26125,110231825,{"$f":"IF(tbl_twdbdata[[#This Row],[Year]]=2016,0,tbl_twdbdata[[#This Row],[effsave]]-0.6*SUMIFS(tbl_twdbdata[effsave],tbl_twdbdata[Year],2020,tbl_twdbdata[utility],tbl_twdbdata[[#This Row],[utility]]))","v":65074940.600000001},8628,1493,448,0,530739052,46923028,120710790,0,7870716,12613740,{"$f":"tbl_twdbdata[[#This Row],[utility]]&tbl_twdbdata[[#This Row],[Year]]","v":"CONVERSE2030"}]
[null,400,"CONVERSE","L",2040,1969,28398,137236175,{"$f":"IF(tbl_twdbdata[[#This Row],[Year]]=2016,0,tbl_twdbdata[[#This Row],[effsave]]-0.6*SUMIFS(tbl_twdbdata[effsave],tbl_twdbdata[Year],2020,tbl_twdbdata[utility],tbl_twdbdata[[#This Row],[utility]]))","v":92079290.599999994},9379,1663,499,0,576915889,51005556,131213206,0,8555506,13711196,{"$f":"tbl_twdbdata[[#This Row],[utility]]&tbl_twdbdata[[#This Row],[Year]]","v":"CONVERSE2040"}]
[null,400,"CONVERSE","L",2050,1969,28398,145528391,{"$f":"IF(tbl_twdbdata[[#This Row],[Year]]=2016,0,tbl_twdbdata[[#This Row],[effsave]]-0.6*SUMIFS(tbl_twdbdata[effsave],tbl_twdbdata[Year],2020,tbl_twdbdata[utility],tbl_twdbdata[[#This Row],[utility]]))","v":100371506.59999999},9379,1852,556,0,576915889,51005556,131213206,0,8555506,13711196,{"$f":"tbl_twdbdata[[#This Row],[utility]]&tbl_twdbdata[[#This Row],[Year]]","v":"CONVERSE2050"}]
[null,400,"CONVERSE","L",2060,1969,28398,147705098,{"$f":"IF(tbl_twdbdata[[#This Row],[Year]]=2016,0,tbl_twdbdata[[#This Row],[effsave]]-0.6*SUMIFS(tbl_twdbdata[effsave],tbl_twdbdata[Year],2020,tbl_twdbdata[utility],tbl_twdbdata[[#This Row],[utility]]))","v":102548213.59999999},9379,2063,619,0,576915889,51005556,131213206,0,8555506,13711196,{"$f":"tbl_twdbdata[[#This Row],[utility]]&tbl_twdbdata[[#This Row],[Year]]","v":"CONVERSE2060"}]
[null,400,"CONVERSE","L",2070,1969,28398,148119708,{"$f":"IF(tbl_twdbdata[[#This Row],[Year]]=2016,0,tbl_twdbdata[[#This Row],[effsave]]-0.6*SUMIFS(tbl_twdbdata[effsave],tbl_twdbdata[Year],2020,tbl_twdbdata[utility],tbl_twdbdata[[#This Row],[utility]]))","v":102962823.59999999},9379,2298,689,0,576915889,51005556,131213206,0,8555506,13711196,{"$f":"tbl_twdbdata[[#This Row],[utility]]&tbl_twdbdata[[#This Row],[Year]]","v":"CONVERSE2070"}]
[null,402,"COOPER","D",2016,1969,1969,0,{"$f":"IF(tbl_twdbdata[[#This Row],[Year]]=2016,0,tbl_twdbdata[[#This Row],[effsave]]-0.6*SUMIFS(tbl_twdbdata[effsave],tbl_twdbdata[Year],2020,tbl_twdbdata[utility],tbl_twdbdata[[#This Row],[utility]]))","v":0},859,43,114,0,42950800,6197000,9644500,0,3019100,9441398,{"$f":"tbl_twdbdata[[#This Row],[utility]]&tbl_twdbdata[[#This Row],[Year]]","v":"COOPER2016"}]
[null,402,"COOPER","D",2020,1827,2026,7158263,{"$f":"IF(tbl_twdbdata[[#This Row],[Year]]=2016,0,tbl_twdbdata[[#This Row],[effsave]]-0.6*SUMIFS(tbl_twdbdata[effsave],tbl_twdbdata[Year],2020,tbl_twdbdata[utility],tbl_twdbdata[[#This Row],[utility]]))","v":2863305.2},953,48,127,0,47629075,6871988,10694996,0,3347946,10469771,{"$f":"tbl_twdbdata[[#This Row],[utility]]&tbl_twdbdata[[#This Row],[Year]]","v":"COOPER2020"}]
[null,402,"COOPER","D",2030,1827,2047,10572243,{"$f":"IF(tbl_twdbdata[[#This Row],[Year]]=2016,0,tbl_twdbdata[[#This Row],[effsave]]-0.6*SUMIFS(tbl_twdbdata[effsave],tbl_twdbdata[Year],2020,tbl_twdbdata[utility],tbl_twdbdata[[#This Row],[utility]]))","v":6277285.2000000002},963,48,128,0,48122762,6943218,10805852,0,3382648,10578293,{"$f":"tbl_twdbdata[[#This Row],[utility]]&tbl_twdbdata[[#This Row],[Year]]","v":"COOPER2030"}]
[null,402,"COOPER","D",2040,1827,2047,13351660,{"$f":"IF(tbl_twdbdata[[#This Row],[Year]]=2016,0,tbl_twdbdata[[#This Row],[effsave]]-0.6*SUMIFS(tbl_twdbdata[effsave],tbl_twdbdata[Year],2020,tbl_twdbdata[utility],tbl_twdbdata[[#This Row],[utility]]))","v":9056702.1999999993},963,48,129,0,48122762,6943218,10805852,0,3382648,10578293,{"$f":"tbl_twdbdata[[#This Row],[utility]]&tbl_twdbdata[[#This Row],[Year]]","v":"COOPER2040"}]
[null,402,"COOPER","D",2050,1827,2047,13777538,{"$f":"IF(tbl_twdbdata[[#This Row],[Year]]=2016,0,tbl_twdbdata[[#This Row],[effsave]]-0.6*SUMIFS(tbl_twdbdata[effsave],tbl_twdbdata[Year],2020,tbl_twdbdata[utility],tbl_twdbdata[[#This Row],[utility]]))","v":9482580.1999999993},963,48,130,0,48122762,6943218,10805852,0,3382648,10578293,{"$f":"tbl_twdbdata[[#This Row],[utility]]&tbl_twdbdata[[#This Row],[Year]]","v":"COOPER2050"}]
[null,402,"COOPER","D",2060,1827,2047,14016628,{"$f":"IF(tbl_twdbdata[[#This Row],[Year]]=2016,0,tbl_twdbdata[[#This Row],[effsave]]-0.6*SUMIFS(tbl_twdbdata[effsave],tbl_twdbdata[Year],2020,tbl_twdbdata[utility],tbl_twdbdata[[#This Row],[utility]]))","v":9721670.1999999993},963,48,131,0,48122762,6943218,10805852,0,3382648,10578293,{"$f":"tbl_twdbdata[[#This Row],[utility]]&tbl_twdbdata[[#This Row],[Year]]","v":"COOPER2060"}]
[null,402,"COOPER","D",2070,1827,2047,14016628,{"$f":"IF(tbl_twdbdata[[#This Row],[Year]]=2016,0,tbl_twdbdata[[#This Row],[effsave]]-0.6*SUMIFS(tbl_twdbdata[effsave],tbl_twdbdata[Year],2020,tbl_twdbdata[utility],tbl_twdbdata[[#This Row],[utility]]))","v":9721670.1999999993},963,48,132,0,48122762,6943218,10805852,0,3382648,10578293,{"$f":"tbl_twdbdata[[#This Row],[utility]]&tbl_twdbdata[[#This Row],[Year]]","v":"COOPER2070"}]
[null,3002,"COPEVILLE SUD","C",2016,4592,4592,0,{"$f":"IF(tbl_twdbdata[[#This Row],[Year]]=2016,0,tbl_twdbdata[[#This Row],[effsave]]-0.6*SUMIFS(tbl_twdbdata[effsave],tbl_twdbdata[Year],2020,tbl_twdbdata[utility],tbl_twdbdata[[#This Row],[utility]]))","v":0},1580,0,37,0,86331739,0,3292611,0,3019100,9441398,{"$f":"tbl_twdbdata[[#This Row],[utility]]&tbl_twdbdata[[#This Row],[Year]]","v":"COPEVILLE SUD2016"}]
[null,3002,"COPEVILLE SUD","C",2020,3521,3959,14710456,{"$f":"IF(tbl_twdbdata[[#This Row],[Year]]=2016,0,tbl_twdbdata[[#This Row],[effsave]]-0.6*SUMIFS(tbl_twdbdata[effsave],tbl_twdbdata[Year],2020,tbl_twdbdata[utility],tbl_twdbdata[[#This Row],[utility]]))","v":5884182.4000000004},1777,0,42,0,97071103,0,3702200,0,3394665,10615875,{"$f":"tbl_twdbdata[[#This Row],[utility]]&tbl_twdbdata[[#This Row],[Year]]","v":"COPEVILLE SUD2020"}]
[null,3002,"COPEVILLE SUD","C",2030,3521,4945,25629935,{"$f":"IF(tbl_twdbdata[[#This Row],[Year]]=2016,0,tbl_twdbdata[[#This Row],[effsave]]-0.6*SUMIFS(tbl_twdbdata[effsave],tbl_twdbdata[Year],2020,tbl_twdbdata[utility],tbl_twdbdata[[#This Row],[utility]]))","v":16803661.399999999},2220,0,52,0,121246932,0,4624243,0,4240116,13259788,{"$f":"tbl_twdbdata[[#This Row],[utility]]&tbl_twdbdata[[#This Row],[Year]]","v":"COPEVILLE SUD2030"}]
[null,3002,"COPEVILLE SUD","C",2040,3521,6148,37026330,{"$f":"IF(tbl_twdbdata[[#This Row],[Year]]=2016,0,tbl_twdbdata[[#This Row],[effsave]]-0.6*SUMIFS(tbl_twdbdata[effsave],tbl_twdbdata[Year],2020,tbl_twdbdata[utility],tbl_twdbdata[[#This Row],[utility]]))","v":28200056.399999999},2760,0,65,0,150743405,0,5749211,0,5271635,16485577,{"$f":"tbl_twdbdata[[#This Row],[utility]]&tbl_twdbdata[[#This Row],[Year]]","v":"COPEVILLE SUD2040"}]
[null,3002,"COPEVILLE SUD","C",2050,3521,8574,54954196,{"$f":"IF(tbl_twdbdata[[#This Row],[Year]]=2016,0,tbl_twdbdata[[#This Row],[effsave]]-0.6*SUMIFS(tbl_twdbdata[effsave],tbl_twdbdata[Year],2020,tbl_twdbdata[utility],tbl_twdbdata[[#This Row],[utility]]))","v":46127922.399999999},3849,0,81,0,210226733,0,8017849,0,7351821,22990784,{"$f":"tbl_twdbdata[[#This Row],[utility]]&tbl_twdbdata[[#This Row],[Year]]","v":"COPEVILLE SUD2050"}]
[null,3002,"COPEVILLE SUD","C",2060,3521,15171,99230477,{"$f":"IF(tbl_twdbdata[[#This Row],[Year]]=2016,0,tbl_twdbdata[[#This Row],[effsave]]-0.6*SUMIFS(tbl_twdbdata[effsave],tbl_twdbdata[Year],2020,tbl_twdbdata[utility],tbl_twdbdata[[#This Row],[utility]]))","v":90404203.400000006},6810,0,101,0,371979212,0,14186936,0,13008453,40680334,{"$f":"tbl_twdbdata[[#This Row],[utility]]&tbl_twdbdata[[#This Row],[Year]]","v":"COPEVILLE SUD2060"}]
[null,3002,"COPEVILLE SUD","C",2070,3521,26007,171435543,{"$f":"IF(tbl_twdbdata[[#This Row],[Year]]=2016,0,tbl_twdbdata[[#This Row],[effsave]]-0.6*SUMIFS(tbl_twdbdata[effsave],tbl_twdbdata[Year],2020,tbl_twdbdata[utility],tbl_twdbdata[[#This Row],[utility]]))","v":162609269.40000001},11674,0,126,0,637668141,0,24320061,0,22299838,69736566,{"$f":"tbl_twdbdata[[#This Row],[utility]]&tbl_twdbdata[[#This Row],[Year]]","v":"COPEVILLE SUD2070"}]
[null,403,"COPPELL","C",2016,40310,40310,0,{"$f":"IF(tbl_twdbdata[[#This Row],[Year]]=2016,0,tbl_twdbdata[[#This Row],[effsave]]-0.6*SUMIFS(tbl_twdbdata[effsave],tbl_twdbdata[Year],2020,tbl_twdbdata[utility],tbl_twdbdata[[#This Row],[utility]]))","v":0},11664,62,1501,0,1658302000,101748000,905252000,0,null,null,{"$f":"tbl_twdbdata[[#This Row],[utility]]&tbl_twdbdata[[#This Row],[Year]]","v":"COPPELL2016"}]
[null,403,"COPPELL","C",2020,39138,41982,127950641,{"$f":"IF(tbl_twdbdata[[#This Row],[Year]]=2016,0,tbl_twdbdata[[#This Row],[effsave]]-0.6*SUMIFS(tbl_twdbdata[effsave],tbl_twdbdata[Year],2020,tbl_twdbdata[utility],tbl_twdbdata[[#This Row],[utility]]))","v":51180256.400000006},12512,67,1611,0,1778804092,109141615,971032997,0,null,null,{"$f":"tbl_twdbdata[[#This Row],[utility]]&tbl_twdbdata[[#This Row],[Year]]","v":"COPPELL2020"}]
[null,403,"COPPELL","C",2030,39138,42881,177019200,{"$f":"IF(tbl_twdbdata[[#This Row],[Year]]=2016,0,tbl_twdbdata[[#This Row],[effsave]]-0.6*SUMIFS(tbl_twdbdata[effsave],tbl_twdbdata[Year],2020,tbl_twdbdata[utility],tbl_twdbdata[[#This Row],[utility]]))","v":100248815.40000001},12780,68,1646,0,1816895295,111478767,991826639,0,null,null,{"$f":"tbl_twdbdata[[#This Row],[utility]]&tbl_twdbdata[[#This Row],[Year]]","v":"COPPELL2030"}]
[null,403,"COPPELL","C",2040,39138,42943,209407245,{"$f":"IF(tbl_twdbdata[[#This Row],[Year]]=2016,0,tbl_twdbdata[[#This Row],[effsave]]-0.6*SUMIFS(tbl_twdbdata[effsave],tbl_twdbdata[Year],2020,tbl_twdbdata[utility],tbl_twdbdata[[#This Row],[utility]]))","v":132636860.40000001},12798,69,1681,0,1819522275,111639950,993260683,0,null,null,{"$f":"tbl_twdbdata[[#This Row],[utility]]&tbl_twdbdata[[#This Row],[Year]]","v":"COPPELL2040"}]
[null,403,"COPPELL","C",2050,39138,42943,227902795,{"$f":"IF(tbl_twdbdata[[#This Row],[Year]]=2016,0,tbl_twdbdata[[#This Row],[effsave]]-0.6*SUMIFS(tbl_twdbdata[effsave],tbl_twdbdata[Year],2020,tbl_twdbdata[utility],tbl_twdbdata[[#This Row],[utility]]))","v":151132410.40000001},12798,70,1717,0,1819522275,111639950,993260683,0,null,null,{"$f":"tbl_twdbdata[[#This Row],[utility]]&tbl_twdbdata[[#This Row],[Year]]","v":"COPPELL2050"}]
[null,403,"COPPELL","C",2060,39138,42943,232448312,{"$f":"IF(tbl_twdbdata[[#This Row],[Year]]=2016,0,tbl_twdbdata[[#This Row],[effsave]]-0.6*SUMIFS(tbl_twdbdata[effsave],tbl_twdbdata[Year],2020,tbl_twdbdata[utility],tbl_twdbdata[[#This Row],[utility]]))","v":155677927.40000001},12798,71,1753,0,1819522275,111639950,993260683,0,null,null,{"$f":"tbl_twdbdata[[#This Row],[utility]]&tbl_twdbdata[[#This Row],[Year]]","v":"COPPELL2060"}]
[null,403,"COPPELL","C",2070,39138,42943,232605054,{"$f":"IF(tbl_twdbdata[[#This Row],[Year]]=2016,0,tbl_twdbdata[[#This Row],[effsave]]-0.6*SUMIFS(tbl_twdbdata[effsave],tbl_twdbdata[Year],2020,tbl_twdbdata[utility],tbl_twdbdata[[#This Row],[utility]]))","v":155834669.40000001},12798,73,1790,0,1819522275,111639950,993260683,0,null,null,{"$f":"tbl_twdbdata[[#This Row],[utility]]&tbl_twdbdata[[#This Row],[Year]]","v":"COPPELL2070"}]
[null,405,"COPPERAS COVE","G",2016,33919,33919,0,{"$f":"IF(tbl_twdbdata[[#This Row],[Year]]=2016,0,tbl_twdbdata[[#This Row],[effsave]]-0.6*SUMIFS(tbl_twdbdata[effsave],tbl_twdbdata[Year],2020,tbl_twdbdata[utility],tbl_twdbdata[[#This Row],[utility]]))","v":0},11610,1814,684,0,701237000,132750000,149636000,0,91983646,283085021,{"$f":"tbl_twdbdata[[#This Row],[utility]]&tbl_twdbdata[[#This Row],[Year]]","v":"COPPERAS COVE2016"}]
[null,405,"COPPERAS COVE","G",2020,32612,36253,132323450,{"$f":"IF(tbl_twdbdata[[#This Row],[Year]]=2016,0,tbl_twdbdata[[#This Row],[effsave]]-0.6*SUMIFS(tbl_twdbdata[effsave],tbl_twdbdata[Year],2020,tbl_twdbdata[utility],tbl_twdbdata[[#This Row],[utility]]))","v":52929380},12906,2017,760,0,779527320,147571009,166342264,0,102253254,314690337,{"$f":"tbl_twdbdata[[#This Row],[utility]]&tbl_twdbdata[[#This Row],[Year]]","v":"COPPERAS COVE2020"}]
[null,405,"COPPERAS COVE","G",2030,32612,41385,213743179,{"$f":"IF(tbl_twdbdata[[#This Row],[Year]]=2016,0,tbl_twdbdata[[#This Row],[effsave]]-0.6*SUMIFS(tbl_twdbdata[effsave],tbl_twdbdata[Year],2020,tbl_twdbdata[utility],tbl_twdbdata[[#This Row],[utility]]))","v":134349109},14733,2303,868,0,889877752,168461264,189889791,0,116728296,359238121,{"$f":"tbl_twdbdata[[#This Row],[utility]]&tbl_twdbdata[[#This Row],[Year]]","v":"COPPERAS COVE2030"}]
[null,405,"COPPERAS COVE","G",2040,32612,47053,289559457,{"$f":"IF(tbl_twdbdata[[#This Row],[Year]]=2016,0,tbl_twdbdata[[#This Row],[effsave]]-0.6*SUMIFS(tbl_twdbdata[effsave],tbl_twdbdata[Year],2020,tbl_twdbdata[utility],tbl_twdbdata[[#This Row],[utility]]))","v":210165387},16751,2629,991,0,1011753482,191533354,215896686,0,132715151,408438596,{"$f":"tbl_twdbdata[[#This Row],[utility]]&tbl_twdbdata[[#This Row],[Year]]","v":"COPPERAS COVE2040"}]
[null,405,"COPPERAS COVE","G",2050,32612,52061,344511064,{"$f":"IF(tbl_twdbdata[[#This Row],[Year]]=2016,0,tbl_twdbdata[[#This Row],[effsave]]-0.6*SUMIFS(tbl_twdbdata[effsave],tbl_twdbdata[Year],2020,tbl_twdbdata[utility],tbl_twdbdata[[#This Row],[utility]]))","v":265116994},18534,3001,1131,0,1119437613,211918856,238875255,0,146840445,451910011,{"$f":"tbl_twdbdata[[#This Row],[utility]]&tbl_twdbdata[[#This Row],[Year]]","v":"COPPERAS COVE2050"}]
[null,405,"COPPERAS COVE","G",2060,32612,57332,385250974,{"$f":"IF(tbl_twdbdata[[#This Row],[Year]]=2016,0,tbl_twdbdata[[#This Row],[effsave]]-0.6*SUMIFS(tbl_twdbdata[effsave],tbl_twdbdata[Year],2020,tbl_twdbdata[utility],tbl_twdbdata[[#This Row],[utility]]))","v":305856904},20411,3426,1291,0,1232776882,233374923,263060566,0,161707543,497664370,{"$f":"tbl_twdbdata[[#This Row],[utility]]&tbl_twdbdata[[#This Row],[Year]]","v":"COPPERAS COVE2060"}]
[null,405,"COPPERAS COVE","G",2070,32612,62549,421905515,{"$f":"IF(tbl_twdbdata[[#This Row],[Year]]=2016,0,tbl_twdbdata[[#This Row],[effsave]]-0.6*SUMIFS(tbl_twdbdata[effsave],tbl_twdbdata[Year],2020,tbl_twdbdata[utility],tbl_twdbdata[[#This Row],[utility]]))","v":342511445},22268,3911,1473,0,1344955020,254611178,286998105,0,176422331,542949987,{"$f":"tbl_twdbdata[[#This Row],[utility]]&tbl_twdbdata[[#This Row],[Year]]","v":"COPPERAS COVE2070"}]
[null,406,"CORINTH","C",2016,20749,20749,0,{"$f":"IF(tbl_twdbdata[[#This Row],[Year]]=2016,0,tbl_twdbdata[[#This Row],[effsave]]-0.6*SUMIFS(tbl_twdbdata[effsave],tbl_twdbdata[Year],2020,tbl_twdbdata[utility],tbl_twdbdata[[#This Row],[utility]]))","v":0},6620,839,302,26,701352139,33788446,150894929,19163386,12641975,93517125,{"$f":"tbl_twdbdata[[#This Row],[utility]]&tbl_twdbdata[[#This Row],[Year]]","v":"CORINTH2016"}]
[null,406,"CORINTH","C",2020,20749,24928,64782886,{"$f":"IF(tbl_twdbdata[[#This Row],[Year]]=2016,0,tbl_twdbdata[[#This Row],[effsave]]-0.6*SUMIFS(tbl_twdbdata[effsave],tbl_twdbdata[Year],2020,tbl_twdbdata[utility],tbl_twdbdata[[#This Row],[utility]]))","v":25913154.399999999},7948,1007,363,31,842041426,40566314,181164032,23007508,15177920,112276400,{"$f":"tbl_twdbdata[[#This Row],[utility]]&tbl_twdbdata[[#This Row],[Year]]","v":"CORINTH2020"}]
[null,406,"CORINTH","C",2030,20749,29520,99343656,{"$f":"IF(tbl_twdbdata[[#This Row],[Year]]=2016,0,tbl_twdbdata[[#This Row],[effsave]]-0.6*SUMIFS(tbl_twdbdata[effsave],tbl_twdbdata[Year],2020,tbl_twdbdata[utility],tbl_twdbdata[[#This Row],[utility]]))","v":60473924.399999999},9412,1193,430,37,997154320,48039056,214536354,27245733,17973853,132958895,{"$f":"tbl_twdbdata[[#This Row],[utility]]&tbl_twdbdata[[#This Row],[Year]]","v":"CORINTH2030"}]
[null,406,"CORINTH","C",2040,20749,29520,108071244,{"$f":"IF(tbl_twdbdata[[#This Row],[Year]]=2016,0,tbl_twdbdata[[#This Row],[effsave]]-0.6*SUMIFS(tbl_twdbdata[effsave],tbl_twdbdata[Year],2020,tbl_twdbdata[utility],tbl_twdbdata[[#This Row],[utility]]))","v":69201512.400000006},9412,1413,509,44,997154320,48039056,214536354,27245733,17973853,132958895,{"$f":"tbl_twdbdata[[#This Row],[utility]]&tbl_twdbdata[[#This Row],[Year]]","v":"CORINTH2040"}]
[null,406,"CORINTH","C",2050,20749,29520,113674140,{"$f":"IF(tbl_twdbdata[[#This Row],[Year]]=2016,0,tbl_twdbdata[[#This Row],[effsave]]-0.6*SUMIFS(tbl_twdbdata[effsave],tbl_twdbdata[Year],2020,tbl_twdbdata[utility],tbl_twdbdata[[#This Row],[utility]]))","v":74804408.400000006},9412,1673,603,52,997154320,48039056,214536354,27245733,17973853,132958895,{"$f":"tbl_twdbdata[[#This Row],[utility]]&tbl_twdbdata[[#This Row],[Year]]","v":"CORINTH2050"}]
[null,406,"CORINTH","C",2060,20749,29520,116044596,{"$f":"IF(tbl_twdbdata[[#This Row],[Year]]=2016,0,tbl_twdbdata[[#This Row],[effsave]]-0.6*SUMIFS(tbl_twdbdata[effsave],tbl_twdbdata[Year],2020,tbl_twdbdata[utility],tbl_twdbdata[[#This Row],[utility]]))","v":77174864.400000006},9412,1981,714,62,997154320,48039056,214536354,27245733,17973853,132958895,{"$f":"tbl_twdbdata[[#This Row],[utility]]&tbl_twdbdata[[#This Row],[Year]]","v":"CORINTH2060"}]
[null,406,"CORINTH","C",2070,20749,29520,116367840,{"$f":"IF(tbl_twdbdata[[#This Row],[Year]]=2016,0,tbl_twdbdata[[#This Row],[effsave]]-0.6*SUMIFS(tbl_twdbdata[effsave],tbl_twdbdata[Year],2020,tbl_twdbdata[utility],tbl_twdbdata[[#This Row],[utility]]))","v":77498108.400000006},9412,2346,846,73,997154320,48039056,214536354,27245733,17973853,132958895,{"$f":"tbl_twdbdata[[#This Row],[utility]]&tbl_twdbdata[[#This Row],[Year]]","v":"CORINTH2070"}]
[null,34,"CORPUS CHRISTI","N",2016,324074,324074,0,{"$f":"IF(tbl_twdbdata[[#This Row],[Year]]=2016,0,tbl_twdbdata[[#This Row],[effsave]]-0.6*SUMIFS(tbl_twdbdata[effsave],tbl_twdbdata[Year],2020,tbl_twdbdata[utility],tbl_twdbdata[[#This Row],[utility]]))","v":0},79322,1769,6866,0,6034448450,1494068000,11910449000,0,49289000,2070194004,{"$f":"tbl_twdbdata[[#This Row],[utility]]&tbl_twdbdata[[#This Row],[Year]]","v":"CORPUS CHRISTI2016"}]
[null,34,"CORPUS CHRISTI","N",2020,322263,332002,1164546815,{"$f":"IF(tbl_twdbdata[[#This Row],[Year]]=2016,0,tbl_twdbdata[[#This Row],[effsave]]-0.6*SUMIFS(tbl_twdbdata[effsave],tbl_twdbdata[Year],2020,tbl_twdbdata[utility],tbl_twdbdata[[#This Row],[utility]]))","v":465818726},81719,1822,7074,0,6216813455,1539219718,12270390609,0,50778546,2132756630,{"$f":"tbl_twdbdata[[#This Row],[utility]]&tbl_twdbdata[[#This Row],[Year]]","v":"CORPUS CHRISTI2020"}]
[null,34,"CORPUS CHRISTI","N",2030,322263,361618,1805630998,{"$f":"IF(tbl_twdbdata[[#This Row],[Year]]=2016,0,tbl_twdbdata[[#This Row],[effsave]]-0.6*SUMIFS(tbl_twdbdata[effsave],tbl_twdbdata[Year],2020,tbl_twdbdata[utility],tbl_twdbdata[[#This Row],[utility]]))","v":1106902909},89009,1985,7705,0,6771379835,1676524708,13364961993,0,55308210,2323007654,{"$f":"tbl_twdbdata[[#This Row],[utility]]&tbl_twdbdata[[#This Row],[Year]]","v":"CORPUS CHRISTI2030"}]
[null,34,"CORPUS CHRISTI","N",2040,322263,380234,2288571411,{"$f":"IF(tbl_twdbdata[[#This Row],[Year]]=2016,0,tbl_twdbdata[[#This Row],[effsave]]-0.6*SUMIFS(tbl_twdbdata[effsave],tbl_twdbdata[Year],2020,tbl_twdbdata[utility],tbl_twdbdata[[#This Row],[utility]]))","v":1589843322},93591,2162,8392,0,7119968697,1762831761,14052986739,0,58155462,2442595480,{"$f":"tbl_twdbdata[[#This Row],[utility]]&tbl_twdbdata[[#This Row],[Year]]","v":"CORPUS CHRISTI2040"}]
[null,34,"CORPUS CHRISTI","N",2050,322263,391134,2558329267,{"$f":"IF(tbl_twdbdata[[#This Row],[Year]]=2016,0,tbl_twdbdata[[#This Row],[effsave]]-0.6*SUMIFS(tbl_twdbdata[effsave],tbl_twdbdata[Year],2020,tbl_twdbdata[utility],tbl_twdbdata[[#This Row],[utility]]))","v":1859601178},96274,2355,9140,0,7324073692,1813366080,14455837498,0,59822579,2512616285,{"$f":"tbl_twdbdata[[#This Row],[utility]]&tbl_twdbdata[[#This Row],[Year]]","v":"CORPUS CHRISTI2050"}]
[null,34,"CORPUS CHRISTI","N",2060,322263,399244,2650720651,{"$f":"IF(tbl_twdbdata[[#This Row],[Year]]=2016,0,tbl_twdbdata[[#This Row],[effsave]]-0.6*SUMIFS(tbl_twdbdata[effsave],tbl_twdbdata[Year],2020,tbl_twdbdata[utility],tbl_twdbdata[[#This Row],[utility]]))","v":1951992562},98270,2565,9955,0,7475935299,1850965468,14755573246,0,61062975,2564714333,{"$f":"tbl_twdbdata[[#This Row],[utility]]&tbl_twdbdata[[#This Row],[Year]]","v":"CORPUS CHRISTI2060"}]
[null,34,"CORPUS CHRISTI","N",2070,322263,404674,2691203502,{"$f":"IF(tbl_twdbdata[[#This Row],[Year]]=2016,0,tbl_twdbdata[[#This Row],[effsave]]-0.6*SUMIFS(tbl_twdbdata[effsave],tbl_twdbdata[Year],2020,tbl_twdbdata[utility],tbl_twdbdata[[#This Row],[utility]]))","v":1992475413},99607,2794,10842,0,7577613292,1876139904,14956259450,0,61893475,2599596257,{"$f":"tbl_twdbdata[[#This Row],[utility]]&tbl_twdbdata[[#This Row],[Year]]","v":"CORPUS CHRISTI2070"}]
[null,35,"CORSICANA","C",2016,23770,25070,0,{"$f":"IF(tbl_twdbdata[[#This Row],[Year]]=2016,0,tbl_twdbdata[[#This Row],[effsave]]-0.6*SUMIFS(tbl_twdbdata[effsave],tbl_twdbdata[Year],2020,tbl_twdbdata[utility],tbl_twdbdata[[#This Row],[utility]]))","v":0},7557,2011,1298,0,478584000,87451000,517439000,0,90107050,226552016,{"$f":"tbl_twdbdata[[#This Row],[utility]]&tbl_twdbdata[[#This Row],[Year]]","v":"CORSICANA2016"}]
[null,35,"CORSICANA","C",2020,23770,26739,99744492,{"$f":"IF(tbl_twdbdata[[#This Row],[Year]]=2016,0,tbl_twdbdata[[#This Row],[effsave]]-0.6*SUMIFS(tbl_twdbdata[effsave],tbl_twdbdata[Year],2020,tbl_twdbdata[utility],tbl_twdbdata[[#This Row],[utility]]))","v":39897796.800000004},8038,2139,1380,0,509023770,93013218,550350096,0,95838202,240961589,{"$f":"tbl_twdbdata[[#This Row],[utility]]&tbl_twdbdata[[#This Row],[Year]]","v":"CORSICANA2020"}]
[null,35,"CORSICANA","C",2030,23770,29484,158088785,{"$f":"IF(tbl_twdbdata[[#This Row],[Year]]=2016,0,tbl_twdbdata[[#This Row],[effsave]]-0.6*SUMIFS(tbl_twdbdata[effsave],tbl_twdbdata[Year],2020,tbl_twdbdata[utility],tbl_twdbdata[[#This Row],[utility]]))","v":98242089.800000012},8863,2359,1521,0,561279660,102561865,606848507,0,105676860,265698474,{"$f":"tbl_twdbdata[[#This Row],[utility]]&tbl_twdbdata[[#This Row],[Year]]","v":"CORSICANA2030"}]
[null,35,"CORSICANA","C",2040,23770,32318,210559850,{"$f":"IF(tbl_twdbdata[[#This Row],[Year]]=2016,0,tbl_twdbdata[[#This Row],[effsave]]-0.6*SUMIFS(tbl_twdbdata[effsave],tbl_twdbdata[Year],2020,tbl_twdbdata[utility],tbl_twdbdata[[#This Row],[utility]]))","v":150713154.80000001},9715,2601,1678,0,615229821,112420104,665178743,0,115834512,291237393,{"$f":"tbl_twdbdata[[#This Row],[utility]]&tbl_twdbdata[[#This Row],[Year]]","v":"CORSICANA2040"}]
[null,35,"CORSICANA","C",2050,23770,35546,251182254,{"$f":"IF(tbl_twdbdata[[#This Row],[Year]]=2016,0,tbl_twdbdata[[#This Row],[effsave]]-0.6*SUMIFS(tbl_twdbdata[effsave],tbl_twdbdata[Year],2020,tbl_twdbdata[utility],tbl_twdbdata[[#This Row],[utility]]))","v":191335558.80000001},10685,2868,1851,0,676680463,123648896,731618405,0,127404343,320326888,{"$f":"tbl_twdbdata[[#This Row],[utility]]&tbl_twdbdata[[#This Row],[Year]]","v":"CORSICANA2050"}]
[null,35,"CORSICANA","C",2060,23770,38921,279435266,{"$f":"IF(tbl_twdbdata[[#This Row],[Year]]=2016,0,tbl_twdbdata[[#This Row],[effsave]]-0.6*SUMIFS(tbl_twdbdata[effsave],tbl_twdbdata[Year],2020,tbl_twdbdata[utility],tbl_twdbdata[[#This Row],[utility]]))","v":219588570.80000001},11700,3162,2040,0,740929508,135389036,801083664,0,139501053,350741091,{"$f":"tbl_twdbdata[[#This Row],[utility]]&tbl_twdbdata[[#This Row],[Year]]","v":"CORSICANA2060"}]
[null,35,"CORSICANA","C",2070,23770,42525,306552094,{"$f":"IF(tbl_twdbdata[[#This Row],[Year]]=2016,0,tbl_twdbdata[[#This Row],[effsave]]-0.6*SUMIFS(tbl_twdbdata[effsave],tbl_twdbdata[Year],2020,tbl_twdbdata[utility],tbl_twdbdata[[#This Row],[utility]]))","v":246705398.80000001},12783,3487,2249,0,809537970,147925766,875262270,0,152418547,383218954,{"$f":"tbl_twdbdata[[#This Row],[utility]]&tbl_twdbdata[[#This Row],[Year]]","v":"CORSICANA2070"}]
[null,410,"COTULLA","L",2016,6750,6750,0,{"$f":"IF(tbl_twdbdata[[#This Row],[Year]]=2016,0,tbl_twdbdata[[#This Row],[effsave]]-0.6*SUMIFS(tbl_twdbdata[effsave],tbl_twdbdata[Year],2020,tbl_twdbdata[utility],tbl_twdbdata[[#This Row],[utility]]))","v":0},1467,0,259,0,310436637,0,149605157,0,null,null,{"$f":"tbl_twdbdata[[#This Row],[utility]]&tbl_twdbdata[[#This Row],[Year]]","v":"COTULLA2016"}]
[null,410,"COTULLA","L",2020,3711,4138,15768263,{"$f":"IF(tbl_twdbdata[[#This Row],[Year]]=2016,0,tbl_twdbdata[[#This Row],[effsave]]-0.6*SUMIFS(tbl_twdbdata[effsave],tbl_twdbdata[Year],2020,tbl_twdbdata[utility],tbl_twdbdata[[#This Row],[utility]]))","v":6307305.2000000011},1636,0,289,0,346156509,0,166819224,0,null,null,{"$f":"tbl_twdbdata[[#This Row],[utility]]&tbl_twdbdata[[#This Row],[Year]]","v":"COTULLA2020"}]
[null,410,"COTULLA","L",2030,3711,4532,24498406,{"$f":"IF(tbl_twdbdata[[#This Row],[Year]]=2016,0,tbl_twdbdata[[#This Row],[effsave]]-0.6*SUMIFS(tbl_twdbdata[effsave],tbl_twdbdata[Year],2020,tbl_twdbdata[utility],tbl_twdbdata[[#This Row],[utility]]))","v":15037448.200000001},1792,0,317,0,379115829,0,182702930,0,null,null,{"$f":"tbl_twdbdata[[#This Row],[utility]]&tbl_twdbdata[[#This Row],[Year]]","v":"COTULLA2030"}]
[null,410,"COTULLA","L",2040,3711,4901,32038572,{"$f":"IF(tbl_twdbdata[[#This Row],[Year]]=2016,0,tbl_twdbdata[[#This Row],[effsave]]-0.6*SUMIFS(tbl_twdbdata[effsave],tbl_twdbdata[Year],2020,tbl_twdbdata[utility],tbl_twdbdata[[#This Row],[utility]]))","v":22577614.200000003},1938,0,347,0,409983821,0,197578786,0,null,null,{"$f":"tbl_twdbdata[[#This Row],[utility]]&tbl_twdbdata[[#This Row],[Year]]","v":"COTULLA2040"}]
[null,410,"COTULLA","L",2050,3711,5314,37415077,{"$f":"IF(tbl_twdbdata[[#This Row],[Year]]=2016,0,tbl_twdbdata[[#This Row],[effsave]]-0.6*SUMIFS(tbl_twdbdata[effsave],tbl_twdbdata[Year],2020,tbl_twdbdata[utility],tbl_twdbdata[[#This Row],[utility]]))","v":27954119.200000003},2101,0,380,0,444532549,0,214228457,0,null,null,{"$f":"tbl_twdbdata[[#This Row],[utility]]&tbl_twdbdata[[#This Row],[Year]]","v":"COTULLA2050"}]
[null,410,"COTULLA","L",2060,3711,5671,40528936,{"$f":"IF(tbl_twdbdata[[#This Row],[Year]]=2016,0,tbl_twdbdata[[#This Row],[effsave]]-0.6*SUMIFS(tbl_twdbdata[effsave],tbl_twdbdata[Year],2020,tbl_twdbdata[utility],tbl_twdbdata[[#This Row],[utility]]))","v":31067978.200000003},2242,0,416,0,474396704,0,228620546,0,null,null,{"$f":"tbl_twdbdata[[#This Row],[utility]]&tbl_twdbdata[[#This Row],[Year]]","v":"COTULLA2060"}]
[null,410,"COTULLA","L",2070,3711,6002,43047845,{"$f":"IF(tbl_twdbdata[[#This Row],[Year]]=2016,0,tbl_twdbdata[[#This Row],[effsave]]-0.6*SUMIFS(tbl_twdbdata[effsave],tbl_twdbdata[Year],2020,tbl_twdbdata[utility],tbl_twdbdata[[#This Row],[utility]]))","v":33586887.200000003},2373,0,456,0,502085879,0,241964471,0,null,null,{"$f":"tbl_twdbdata[[#This Row],[utility]]&tbl_twdbdata[[#This Row],[Year]]","v":"COTULLA2070"}]
[null,673,"CROSBY MUD","H",2016,2299,2299,0,{"$f":"IF(tbl_twdbdata[[#This Row],[Year]]=2016,0,tbl_twdbdata[[#This Row],[effsave]]-0.6*SUMIFS(tbl_twdbdata[effsave],tbl_twdbdata[Year],2020,tbl_twdbdata[utility],tbl_twdbdata[[#This Row],[utility]]))","v":0},848,6,222,34,46219000,12532000,85983000,6230000,14575785,41242998,{"$f":"tbl_twdbdata[[#This Row],[utility]]&tbl_twdbdata[[#This Row],[Year]]","v":"CROSBY MUD2016"}]
[null,673,"CROSBY MUD","H",2020,1915,2969,11898861,{"$f":"IF(tbl_twdbdata[[#This Row],[Year]]=2016,0,tbl_twdbdata[[#This Row],[effsave]]-0.6*SUMIFS(tbl_twdbdata[effsave],tbl_twdbdata[Year],2020,tbl_twdbdata[utility],tbl_twdbdata[[#This Row],[utility]]))","v":4759544.4000000004},1315,9,344,53,71657551,19429508,133307325,9658940,22598175,63942800,{"$f":"tbl_twdbdata[[#This Row],[utility]]&tbl_twdbdata[[#This Row],[Year]]","v":"CROSBY MUD2020"}]
[null,673,"CROSBY MUD","H",2030,1915,3158,18534934,{"$f":"IF(tbl_twdbdata[[#This Row],[Year]]=2016,0,tbl_twdbdata[[#This Row],[effsave]]-0.6*SUMIFS(tbl_twdbdata[effsave],tbl_twdbdata[Year],2020,tbl_twdbdata[utility],tbl_twdbdata[[#This Row],[utility]]))","v":11395617.4},1399,10,366,56,76219113,20666348,141793375,10273807,24036725,68013258,{"$f":"tbl_twdbdata[[#This Row],[utility]]&tbl_twdbdata[[#This Row],[Year]]","v":"CROSBY MUD2030"}]
[null,673,"CROSBY MUD","H",2040,1915,3220,19286673,{"$f":"IF(tbl_twdbdata[[#This Row],[Year]]=2016,0,tbl_twdbdata[[#This Row],[effsave]]-0.6*SUMIFS(tbl_twdbdata[effsave],tbl_twdbdata[Year],2020,tbl_twdbdata[utility],tbl_twdbdata[[#This Row],[utility]]))","v":12147356.4},1426,11,390,60,77715498,21072084,144577159,10475509,24508630,69348540,{"$f":"tbl_twdbdata[[#This Row],[utility]]&tbl_twdbdata[[#This Row],[Year]]","v":"CROSBY MUD2040"}]
[null,673,"CROSBY MUD","H",2050,1915,3282,20041369,{"$f":"IF(tbl_twdbdata[[#This Row],[Year]]=2016,0,tbl_twdbdata[[#This Row],[effsave]]-0.6*SUMIFS(tbl_twdbdata[effsave],tbl_twdbdata[Year],2020,tbl_twdbdata[utility],tbl_twdbdata[[#This Row],[utility]]))","v":12902052.4},1453,12,415,64,79211883,21477820,147360943,10677211,24980535,70683822,{"$f":"tbl_twdbdata[[#This Row],[utility]]&tbl_twdbdata[[#This Row],[Year]]","v":"CROSBY MUD2050"}]
[null,673,"CROSBY MUD","H",2060,1915,3344,20798342,{"$f":"IF(tbl_twdbdata[[#This Row],[Year]]=2016,0,tbl_twdbdata[[#This Row],[effsave]]-0.6*SUMIFS(tbl_twdbdata[effsave],tbl_twdbdata[Year],2020,tbl_twdbdata[utility],tbl_twdbdata[[#This Row],[utility]]))","v":13659025.4},1480,13,442,68,80708268,21883556,150144727,10878913,25452440,72019104,{"$f":"tbl_twdbdata[[#This Row],[utility]]&tbl_twdbdata[[#This Row],[Year]]","v":"CROSBY MUD2060"}]
[null,673,"CROSBY MUD","H",2070,1915,3408,21233714,{"$f":"IF(tbl_twdbdata[[#This Row],[Year]]=2016,0,tbl_twdbdata[[#This Row],[effsave]]-0.6*SUMIFS(tbl_twdbdata[effsave],tbl_twdbdata[Year],2020,tbl_twdbdata[utility],tbl_twdbdata[[#This Row],[utility]]))","v":14094397.4},1508,14,470,72,82252924,22302380,153018311,11087122,25939568,73397460,{"$f":"tbl_twdbdata[[#This Row],[utility]]&tbl_twdbdata[[#This Row],[Year]]","v":"CROSBY MUD2070"}]
[null,679,"CROWLEY","C",2016,14700,14700,0,{"$f":"IF(tbl_twdbdata[[#This Row],[Year]]=2016,0,tbl_twdbdata[[#This Row],[effsave]]-0.6*SUMIFS(tbl_twdbdata[effsave],tbl_twdbdata[Year],2020,tbl_twdbdata[utility],tbl_twdbdata[[#This Row],[utility]]))","v":0},5085,490,237,107,357910000,21665000,58234000,35624000,13391243,107127997,{"$f":"tbl_twdbdata[[#This Row],[utility]]&tbl_twdbdata[[#This Row],[Year]]","v":"CROWLEY2016"}]
[null,679,"CROWLEY","C",2020,14282,16311,51438370,{"$f":"IF(tbl_twdbdata[[#This Row],[Year]]=2016,0,tbl_twdbdata[[#This Row],[effsave]]-0.6*SUMIFS(tbl_twdbdata[effsave],tbl_twdbdata[Year],2020,tbl_twdbdata[utility],tbl_twdbdata[[#This Row],[utility]]))","v":20575348},5807,560,271,122,408757178,24742880,66507126,40684993,15293696,122347343,{"$f":"tbl_twdbdata[[#This Row],[utility]]&tbl_twdbdata[[#This Row],[Year]]","v":"CROWLEY2020"}]
[null,679,"CROWLEY","C",2030,14282,19082,80584240,{"$f":"IF(tbl_twdbdata[[#This Row],[Year]]=2016,0,tbl_twdbdata[[#This Row],[effsave]]-0.6*SUMIFS(tbl_twdbdata[effsave],tbl_twdbdata[Year],2020,tbl_twdbdata[utility],tbl_twdbdata[[#This Row],[utility]]))","v":49721218},6794,655,317,143,478199036,28946333,77805712,47596777,17891871,143132365,{"$f":"tbl_twdbdata[[#This Row],[utility]]&tbl_twdbdata[[#This Row],[Year]]","v":"CROWLEY2030"}]
[null,679,"CROWLEY","C",2040,14282,22811,110902520,{"$f":"IF(tbl_twdbdata[[#This Row],[Year]]=2016,0,tbl_twdbdata[[#This Row],[effsave]]-0.6*SUMIFS(tbl_twdbdata[effsave],tbl_twdbdata[Year],2020,tbl_twdbdata[utility],tbl_twdbdata[[#This Row],[utility]]))","v":80039498},8122,766,371,167,571648580,34603019,93010487,56898128,21388296,171103258,{"$f":"tbl_twdbdata[[#This Row],[utility]]&tbl_twdbdata[[#This Row],[Year]]","v":"CROWLEY2040"}]
[null,679,"CROWLEY","C",2050,14282,27438,142010857,{"$f":"IF(tbl_twdbdata[[#This Row],[Year]]=2016,0,tbl_twdbdata[[#This Row],[effsave]]-0.6*SUMIFS(tbl_twdbdata[effsave],tbl_twdbdata[Year],2020,tbl_twdbdata[utility],tbl_twdbdata[[#This Row],[utility]]))","v":111147835},9769,896,434,195,687602198,41621921,111876802,68439386,25726714,205809969,{"$f":"tbl_twdbdata[[#This Row],[utility]]&tbl_twdbdata[[#This Row],[Year]]","v":"CROWLEY2050"}]
[null,679,"CROWLEY","C",2060,14282,35102,185521090,{"$f":"IF(tbl_twdbdata[[#This Row],[Year]]=2016,0,tbl_twdbdata[[#This Row],[effsave]]-0.6*SUMIFS(tbl_twdbdata[effsave],tbl_twdbdata[Year],2020,tbl_twdbdata[utility],tbl_twdbdata[[#This Row],[utility]]))","v":154658068},12498,1048,508,228,879663691,53247783,143126303,87555920,32912716,263296943,{"$f":"tbl_twdbdata[[#This Row],[utility]]&tbl_twdbdata[[#This Row],[Year]]","v":"CROWLEY2060"}]
[null,679,"CROWLEY","C",2070,14282,40131,213272186,{"$f":"IF(tbl_twdbdata[[#This Row],[Year]]=2016,0,tbl_twdbdata[[#This Row],[effsave]]-0.6*SUMIFS(tbl_twdbdata[effsave],tbl_twdbdata[Year],2020,tbl_twdbdata[utility],tbl_twdbdata[[#This Row],[utility]]))","v":182409164},14289,1226,594,267,1005691516,60876496,163631749,100099898,37628061,301019019,{"$f":"tbl_twdbdata[[#This Row],[utility]]&tbl_twdbdata[[#This Row],[Year]]","v":"CROWLEY2070"}]
[null,681,"CRYSTAL CLEAR WSC","L",2016,16484,16484,0,{"$f":"IF(tbl_twdbdata[[#This Row],[Year]]=2016,0,tbl_twdbdata[[#This Row],[effsave]]-0.6*SUMIFS(tbl_twdbdata[effsave],tbl_twdbdata[Year],2020,tbl_twdbdata[utility],tbl_twdbdata[[#This Row],[utility]]))","v":0},5028,0,205,0,427181482,0,44681653,0,8720327,217042730,{"$f":"tbl_twdbdata[[#This Row],[utility]]&tbl_twdbdata[[#This Row],[Year]]","v":"CRYSTAL CLEAR WSC2016"}]
[null,681,"CRYSTAL CLEAR WSC","L",2020,16466,16771,59010441,{"$f":"IF(tbl_twdbdata[[#This Row],[Year]]=2016,0,tbl_twdbdata[[#This Row],[effsave]]-0.6*SUMIFS(tbl_twdbdata[effsave],tbl_twdbdata[Year],2020,tbl_twdbdata[utility],tbl_twdbdata[[#This Row],[utility]]))","v":23604176.399999999},5121,0,209,0,435094172,0,45509292,0,8881854,221063016,{"$f":"tbl_twdbdata[[#This Row],[utility]]&tbl_twdbdata[[#This Row],[Year]]","v":"CRYSTAL CLEAR WSC2020"}]
[null,681,"CRYSTAL CLEAR WSC","L",2030,16466,19916,96972996,{"$f":"IF(tbl_twdbdata[[#This Row],[Year]]=2016,0,tbl_twdbdata[[#This Row],[effsave]]-0.6*SUMIFS(tbl_twdbdata[effsave],tbl_twdbdata[Year],2020,tbl_twdbdata[utility],tbl_twdbdata[[#This Row],[utility]]))","v":61566731.399999999},6081,0,249,0,516685679,0,54043471,0,10547433,262518098,{"$f":"tbl_twdbdata[[#This Row],[utility]]&tbl_twdbdata[[#This Row],[Year]]","v":"CRYSTAL CLEAR WSC2030"}]
[null,681,"CRYSTAL CLEAR WSC","L",2040,16466,23272,132170997,{"$f":"IF(tbl_twdbdata[[#This Row],[Year]]=2016,0,tbl_twdbdata[[#This Row],[effsave]]-0.6*SUMIFS(tbl_twdbdata[effsave],tbl_twdbdata[Year],2020,tbl_twdbdata[utility],tbl_twdbdata[[#This Row],[utility]]))","v":96764732.400000006},7106,0,296,0,603751211,0,63150214,0,12324757,306754427,{"$f":"tbl_twdbdata[[#This Row],[utility]]&tbl_twdbdata[[#This Row],[Year]]","v":"CRYSTAL CLEAR WSC2040"}]
[null,681,"CRYSTAL CLEAR WSC","L",2050,16466,26810,162441790,{"$f":"IF(tbl_twdbdata[[#This Row],[Year]]=2016,0,tbl_twdbdata[[#This Row],[effsave]]-0.6*SUMIFS(tbl_twdbdata[effsave],tbl_twdbdata[Year],2020,tbl_twdbdata[utility],tbl_twdbdata[[#This Row],[utility]]))","v":127035525.40000001},8186,0,352,0,695538414,0,72750827,0,14198467,353389747,{"$f":"tbl_twdbdata[[#This Row],[utility]]&tbl_twdbdata[[#This Row],[Year]]","v":"CRYSTAL CLEAR WSC2050"}]
[null,681,"CRYSTAL CLEAR WSC","L",2060,16466,30529,187872413,{"$f":"IF(tbl_twdbdata[[#This Row],[Year]]=2016,0,tbl_twdbdata[[#This Row],[effsave]]-0.6*SUMIFS(tbl_twdbdata[effsave],tbl_twdbdata[Year],2020,tbl_twdbdata[utility],tbl_twdbdata[[#This Row],[utility]]))","v":152466148.40000001},9322,0,418,0,792021344,0,82842596,0,16168034,402410876,{"$f":"tbl_twdbdata[[#This Row],[utility]]&tbl_twdbdata[[#This Row],[Year]]","v":"CRYSTAL CLEAR WSC2060"}]
[null,681,"CRYSTAL CLEAR WSC","L",2070,16466,34372,212650971,{"$f":"IF(tbl_twdbdata[[#This Row],[Year]]=2016,0,tbl_twdbdata[[#This Row],[effsave]]-0.6*SUMIFS(tbl_twdbdata[effsave],tbl_twdbdata[Year],2020,tbl_twdbdata[utility],tbl_twdbdata[[#This Row],[utility]]))","v":177244706.40000001},10495,0,496,0,891721237,0,93270848,0,18203271,453066482,{"$f":"tbl_twdbdata[[#This Row],[utility]]&tbl_twdbdata[[#This Row],[Year]]","v":"CRYSTAL CLEAR WSC2070"}]
[null,686,"CUMBY","D",2016,1224,1224,0,{"$f":"IF(tbl_twdbdata[[#This Row],[Year]]=2016,0,tbl_twdbdata[[#This Row],[effsave]]-0.6*SUMIFS(tbl_twdbdata[effsave],tbl_twdbdata[Year],2020,tbl_twdbdata[utility],tbl_twdbdata[[#This Row],[utility]]))","v":0},355,13,36,4,24803300,529800,2878800,157300,564751,3478154,{"$f":"tbl_twdbdata[[#This Row],[utility]]&tbl_twdbdata[[#This Row],[Year]]","v":"CUMBY2016"}]
[null,686,"CUMBY","D",2020,885,1044,3612449,{"$f":"IF(tbl_twdbdata[[#This Row],[Year]]=2016,0,tbl_twdbdata[[#This Row],[effsave]]-0.6*SUMIFS(tbl_twdbdata[effsave],tbl_twdbdata[Year],2020,tbl_twdbdata[utility],tbl_twdbdata[[#This Row],[utility]]))","v":1444979.6},419,15,43,5,29259486,624984,3396008,185561,666215,4103043,{"$f":"tbl_twdbdata[[#This Row],[utility]]&tbl_twdbdata[[#This Row],[Year]]","v":"CUMBY2020"}]
[null,686,"CUMBY","D",2030,885,1212,5852687,{"$f":"IF(tbl_twdbdata[[#This Row],[Year]]=2016,0,tbl_twdbdata[[#This Row],[effsave]]-0.6*SUMIFS(tbl_twdbdata[effsave],tbl_twdbdata[Year],2020,tbl_twdbdata[utility],tbl_twdbdata[[#This Row],[utility]]))","v":3685217.6},486,17,50,6,33967909,725556,3942492,215421,773422,4763303,{"$f":"tbl_twdbdata[[#This Row],[utility]]&tbl_twdbdata[[#This Row],[Year]]","v":"CUMBY2030"}]
[null,686,"CUMBY","D",2040,885,1363,7731072,{"$f":"IF(tbl_twdbdata[[#This Row],[Year]]=2016,0,tbl_twdbdata[[#This Row],[effsave]]-0.6*SUMIFS(tbl_twdbdata[effsave],tbl_twdbdata[Year],2020,tbl_twdbdata[utility],tbl_twdbdata[[#This Row],[utility]]))","v":5563602.5999999996},547,20,58,7,38199884,815951,4433677,242260,869781,5356751,{"$f":"tbl_twdbdata[[#This Row],[utility]]&tbl_twdbdata[[#This Row],[Year]]","v":"CUMBY2040"}]
[null,686,"CUMBY","D",2050,885,1496,9107947,{"$f":"IF(tbl_twdbdata[[#This Row],[Year]]=2016,0,tbl_twdbdata[[#This Row],[effsave]]-0.6*SUMIFS(tbl_twdbdata[effsave],tbl_twdbdata[Year],2020,tbl_twdbdata[utility],tbl_twdbdata[[#This Row],[utility]]))","v":6940477.5999999996},600,23,67,8,41927386,895571,4866310,265899,954653,5879457,{"$f":"tbl_twdbdata[[#This Row],[utility]]&tbl_twdbdata[[#This Row],[Year]]","v":"CUMBY2050"}]
[null,686,"CUMBY","D",2060,885,1660,10270005,{"$f":"IF(tbl_twdbdata[[#This Row],[Year]]=2016,0,tbl_twdbdata[[#This Row],[effsave]]-0.6*SUMIFS(tbl_twdbdata[effsave],tbl_twdbdata[Year],2020,tbl_twdbdata[utility],tbl_twdbdata[[#This Row],[utility]]))","v":8102535.5999999996},666,27,78,9,46523704,993749,5399783,295048,1059307,6523996,{"$f":"tbl_twdbdata[[#This Row],[utility]]&tbl_twdbdata[[#This Row],[Year]]","v":"CUMBY2060"}]
[null,686,"CUMBY","D",2070,885,1755,10908992,{"$f":"IF(tbl_twdbdata[[#This Row],[Year]]=2016,0,tbl_twdbdata[[#This Row],[effsave]]-0.6*SUMIFS(tbl_twdbdata[effsave],tbl_twdbdata[Year],2020,tbl_twdbdata[utility],tbl_twdbdata[[#This Row],[utility]]))","v":8741522.5999999996},704,31,90,10,49186205,1050620,5708807,311933,1119930,6897357,{"$f":"tbl_twdbdata[[#This Row],[utility]]&tbl_twdbdata[[#This Row],[Year]]","v":"CUMBY2070"}]
[null,687,"CUSHING","I",2016,967,967,0,{"$f":"IF(tbl_twdbdata[[#This Row],[Year]]=2016,0,tbl_twdbdata[[#This Row],[effsave]]-0.6*SUMIFS(tbl_twdbdata[effsave],tbl_twdbdata[Year],2020,tbl_twdbdata[utility],tbl_twdbdata[[#This Row],[utility]]))","v":0},367,0,52,0,17656000,0,2978000,0,null,null,{"$f":"tbl_twdbdata[[#This Row],[utility]]&tbl_twdbdata[[#This Row],[Year]]","v":"CUSHING2016"}]
[null,687,"CUSHING","I",2020,887,924,3480523,{"$f":"IF(tbl_twdbdata[[#This Row],[Year]]=2016,0,tbl_twdbdata[[#This Row],[effsave]]-0.6*SUMIFS(tbl_twdbdata[effsave],tbl_twdbdata[Year],2020,tbl_twdbdata[utility],tbl_twdbdata[[#This Row],[utility]]))","v":1392209.2000000002},382,0,54,0,18392496,0,3102223,0,null,null,{"$f":"tbl_twdbdata[[#This Row],[utility]]&tbl_twdbdata[[#This Row],[Year]]","v":"CUSHING2020"}]
[null,687,"CUSHING","I",2030,887,1037,5617014,{"$f":"IF(tbl_twdbdata[[#This Row],[Year]]=2016,0,tbl_twdbdata[[#This Row],[effsave]]-0.6*SUMIFS(tbl_twdbdata[effsave],tbl_twdbdata[Year],2020,tbl_twdbdata[utility],tbl_twdbdata[[#This Row],[utility]]))","v":3528700.2},429,0,61,0,20641795,0,3481607,0,null,null,{"$f":"tbl_twdbdata[[#This Row],[utility]]&tbl_twdbdata[[#This Row],[Year]]","v":"CUSHING2030"}]
[null,687,"CUSHING","I",2040,887,1150,7526118,{"$f":"IF(tbl_twdbdata[[#This Row],[Year]]=2016,0,tbl_twdbdata[[#This Row],[effsave]]-0.6*SUMIFS(tbl_twdbdata[effsave],tbl_twdbdata[Year],2020,tbl_twdbdata[utility],tbl_twdbdata[[#This Row],[utility]]))","v":5437804.2000000002},476,0,68,0,22891094,0,3860991,0,null,null,{"$f":"tbl_twdbdata[[#This Row],[utility]]&tbl_twdbdata[[#This Row],[Year]]","v":"CUSHING2040"}]
[null,687,"CUSHING","I",2050,887,1270,9006777,{"$f":"IF(tbl_twdbdata[[#This Row],[Year]]=2016,0,tbl_twdbdata[[#This Row],[effsave]]-0.6*SUMIFS(tbl_twdbdata[effsave],tbl_twdbdata[Year],2020,tbl_twdbdata[utility],tbl_twdbdata[[#This Row],[utility]]))","v":6918463.2000000002},526,0,76,0,25279730,0,4263877,0,null,null,{"$f":"tbl_twdbdata[[#This Row],[utility]]&tbl_twdbdata[[#This Row],[Year]]","v":"CUSHING2050"}]
[null,687,"CUSHING","I",2060,887,1396,10053224,{"$f":"IF(tbl_twdbdata[[#This Row],[Year]]=2016,0,tbl_twdbdata[[#This Row],[effsave]]-0.6*SUMIFS(tbl_twdbdata[effsave],tbl_twdbdata[Year],2020,tbl_twdbdata[utility],tbl_twdbdata[[#This Row],[utility]]))","v":7964910.2000000002},578,0,85,0,27787798,0,4686907,0,null,null,{"$f":"tbl_twdbdata[[#This Row],[utility]]&tbl_twdbdata[[#This Row],[Year]]","v":"CUSHING2060"}]
[null,687,"CUSHING","I",2070,887,1528,11048433,{"$f":"IF(tbl_twdbdata[[#This Row],[Year]]=2016,0,tbl_twdbdata[[#This Row],[effsave]]-0.6*SUMIFS(tbl_twdbdata[effsave],tbl_twdbdata[Year],2020,tbl_twdbdata[utility],tbl_twdbdata[[#This Row],[utility]]))","v":8960119.1999999993},633,0,95,0,30415298,0,5130082,0,null,null,{"$f":"tbl_twdbdata[[#This Row],[utility]]&tbl_twdbdata[[#This Row],[Year]]","v":"CUSHING2070"}]
[null,3157,"CYPRESS SPRINGS SUD","D",2016,13974,13974,0,{"$f":"IF(tbl_twdbdata[[#This Row],[Year]]=2016,0,tbl_twdbdata[[#This Row],[effsave]]-0.6*SUMIFS(tbl_twdbdata[effsave],tbl_twdbdata[Year],2020,tbl_twdbdata[utility],tbl_twdbdata[[#This Row],[utility]]))","v":0},4514,0,144,0,232770127,0,61902511,0,null,null,{"$f":"tbl_twdbdata[[#This Row],[utility]]&tbl_twdbdata[[#This Row],[Year]]","v":"CYPRESS SPRINGS SUD2016"}]
[null,3157,"CYPRESS SPRINGS SUD","D",2020,7691,8758,26883995,{"$f":"IF(tbl_twdbdata[[#This Row],[Year]]=2016,0,tbl_twdbdata[[#This Row],[effsave]]-0.6*SUMIFS(tbl_twdbdata[effsave],tbl_twdbdata[Year],2020,tbl_twdbdata[utility],tbl_twdbdata[[#This Row],[utility]]))","v":10753598},5140,0,164,0,265063161,0,70490468,0,null,null,{"$f":"tbl_twdbdata[[#This Row],[utility]]&tbl_twdbdata[[#This Row],[Year]]","v":"CYPRESS SPRINGS SUD2020"}]
[null,3157,"CYPRESS SPRINGS SUD","D",2030,7691,9139,39628532,{"$f":"IF(tbl_twdbdata[[#This Row],[Year]]=2016,0,tbl_twdbdata[[#This Row],[effsave]]-0.6*SUMIFS(tbl_twdbdata[effsave],tbl_twdbdata[Year],2020,tbl_twdbdata[utility],tbl_twdbdata[[#This Row],[utility]]))","v":23498135},5364,0,171,0,276594226,0,73557021,0,null,null,{"$f":"tbl_twdbdata[[#This Row],[utility]]&tbl_twdbdata[[#This Row],[Year]]","v":"CYPRESS SPRINGS SUD2030"}]
[null,3157,"CYPRESS SPRINGS SUD","D",2040,7691,9374,49372389,{"$f":"IF(tbl_twdbdata[[#This Row],[Year]]=2016,0,tbl_twdbdata[[#This Row],[effsave]]-0.6*SUMIFS(tbl_twdbdata[effsave],tbl_twdbdata[Year],2020,tbl_twdbdata[utility],tbl_twdbdata[[#This Row],[utility]]))","v":33241992},5502,0,178,0,283706562,0,75448465,0,null,null,{"$f":"tbl_twdbdata[[#This Row],[utility]]&tbl_twdbdata[[#This Row],[Year]]","v":"CYPRESS SPRINGS SUD2040"}]
[null,3157,"CYPRESS SPRINGS SUD","D",2050,7691,9614,55549211,{"$f":"IF(tbl_twdbdata[[#This Row],[Year]]=2016,0,tbl_twdbdata[[#This Row],[effsave]]-0.6*SUMIFS(tbl_twdbdata[effsave],tbl_twdbdata[Year],2020,tbl_twdbdata[utility],tbl_twdbdata[[#This Row],[utility]]))","v":39418814},5643,0,185,0,290970225,0,77380152,0,null,null,{"$f":"tbl_twdbdata[[#This Row],[utility]]&tbl_twdbdata[[#This Row],[Year]]","v":"CYPRESS SPRINGS SUD2050"}]
[null,3157,"CYPRESS SPRINGS SUD","D",2060,7691,9801,57702897,{"$f":"IF(tbl_twdbdata[[#This Row],[Year]]=2016,0,tbl_twdbdata[[#This Row],[effsave]]-0.6*SUMIFS(tbl_twdbdata[effsave],tbl_twdbdata[Year],2020,tbl_twdbdata[utility],tbl_twdbdata[[#This Row],[utility]]))","v":41572500},5753,0,192,0,296629829,0,78885258,0,null,null,{"$f":"tbl_twdbdata[[#This Row],[utility]]&tbl_twdbdata[[#This Row],[Year]]","v":"CYPRESS SPRINGS SUD2060"}]
[null,3157,"CYPRESS SPRINGS SUD","D",2070,7691,9960,58748064,{"$f":"IF(tbl_twdbdata[[#This Row],[Year]]=2016,0,tbl_twdbdata[[#This Row],[effsave]]-0.6*SUMIFS(tbl_twdbdata[effsave],tbl_twdbdata[Year],2020,tbl_twdbdata[utility],tbl_twdbdata[[#This Row],[utility]]))","v":42617667},5846,0,200,0,301442006,0,80165000,0,null,null,{"$f":"tbl_twdbdata[[#This Row],[utility]]&tbl_twdbdata[[#This Row],[Year]]","v":"CYPRESS SPRINGS SUD2070"}]
[null,692,"DALHART","A",2016,9200,9200,0,{"$f":"IF(tbl_twdbdata[[#This Row],[Year]]=2016,0,tbl_twdbdata[[#This Row],[effsave]]-0.6*SUMIFS(tbl_twdbdata[effsave],tbl_twdbdata[Year],2020,tbl_twdbdata[utility],tbl_twdbdata[[#This Row],[utility]]))","v":0},3157,92,427,0,337118000,52134000,173152000,0,null,null,{"$f":"tbl_twdbdata[[#This Row],[utility]]&tbl_twdbdata[[#This Row],[Year]]","v":"DALHART2016"}]
[null,692,"DALHART","A",2020,8467,8802,30360299,{"$f":"IF(tbl_twdbdata[[#This Row],[Year]]=2016,0,tbl_twdbdata[[#This Row],[effsave]]-0.6*SUMIFS(tbl_twdbdata[effsave],tbl_twdbdata[Year],2020,tbl_twdbdata[utility],tbl_twdbdata[[#This Row],[utility]]))","v":12144119.600000001},3282,96,443,0,350456199,54196701,180002823,0,null,null,{"$f":"tbl_twdbdata[[#This Row],[utility]]&tbl_twdbdata[[#This Row],[Year]]","v":"DALHART2020"}]
[null,692,"DALHART","A",2030,8467,9664,47019709,{"$f":"IF(tbl_twdbdata[[#This Row],[Year]]=2016,0,tbl_twdbdata[[#This Row],[effsave]]-0.6*SUMIFS(tbl_twdbdata[effsave],tbl_twdbdata[Year],2020,tbl_twdbdata[utility],tbl_twdbdata[[#This Row],[utility]]))","v":28803529.600000001},3603,105,486,0,384777176,59504308,197630911,0,null,null,{"$f":"tbl_twdbdata[[#This Row],[utility]]&tbl_twdbdata[[#This Row],[Year]]","v":"DALHART2030"}]
[null,692,"DALHART","A",2040,8467,10514,61440136,{"$f":"IF(tbl_twdbdata[[#This Row],[Year]]=2016,0,tbl_twdbdata[[#This Row],[effsave]]-0.6*SUMIFS(tbl_twdbdata[effsave],tbl_twdbdata[Year],2020,tbl_twdbdata[utility],tbl_twdbdata[[#This Row],[utility]]))","v":43223956.600000001},3920,115,533,0,418620367,64738027,215013596,0,null,null,{"$f":"tbl_twdbdata[[#This Row],[utility]]&tbl_twdbdata[[#This Row],[Year]]","v":"DALHART2040"}]
[null,692,"DALHART","A",2050,8467,11338,71842103,{"$f":"IF(tbl_twdbdata[[#This Row],[Year]]=2016,0,tbl_twdbdata[[#This Row],[effsave]]-0.6*SUMIFS(tbl_twdbdata[effsave],tbl_twdbdata[Year],2020,tbl_twdbdata[utility],tbl_twdbdata[[#This Row],[utility]]))","v":53625923.600000001},4227,126,585,0,451428355,69811656,231864576,0,null,null,{"$f":"tbl_twdbdata[[#This Row],[utility]]&tbl_twdbdata[[#This Row],[Year]]","v":"DALHART2050"}]
[null,692,"DALHART","A",2060,8467,12127,78125166,{"$f":"IF(tbl_twdbdata[[#This Row],[Year]]=2016,0,tbl_twdbdata[[#This Row],[effsave]]-0.6*SUMIFS(tbl_twdbdata[effsave],tbl_twdbdata[Year],2020,tbl_twdbdata[utility],tbl_twdbdata[[#This Row],[utility]]))","v":59908986.600000001},4521,138,642,0,482842800,74669779,247999798,0,null,null,{"$f":"tbl_twdbdata[[#This Row],[utility]]&tbl_twdbdata[[#This Row],[Year]]","v":"DALHART2060"}]
[null,692,"DALHART","A",2070,8467,12881,83311732,{"$f":"IF(tbl_twdbdata[[#This Row],[Year]]=2016,0,tbl_twdbdata[[#This Row],[effsave]]-0.6*SUMIFS(tbl_twdbdata[effsave],tbl_twdbdata[Year],2020,tbl_twdbdata[utility],tbl_twdbdata[[#This Row],[utility]]))","v":65095552.600000001},4802,152,705,0,512863701,79312396,263419263,0,null,null,{"$f":"tbl_twdbdata[[#This Row],[utility]]&tbl_twdbdata[[#This Row],[Year]]","v":"DALHART2070"}]
[null,36,"DALLAS","C",2016,1257730,1257730,0,{"$f":"IF(tbl_twdbdata[[#This Row],[Year]]=2016,0,tbl_twdbdata[[#This Row],[effsave]]-0.6*SUMIFS(tbl_twdbdata[effsave],tbl_twdbdata[Year],2020,tbl_twdbdata[utility],tbl_twdbdata[[#This Row],[utility]]))","v":0},275936,0,56208,25,23570887000,0,38626148797,101371897,10841829475,6861320851,{"$f":"tbl_twdbdata[[#This Row],[utility]]&tbl_twdbdata[[#This Row],[Year]]","v":"DALLAS2016"}]
[null,36,"DALLAS","C",2020,1212879,1242136,4143889910,{"$f":"IF(tbl_twdbdata[[#This Row],[Year]]=2016,0,tbl_twdbdata[[#This Row],[effsave]]-0.6*SUMIFS(tbl_twdbdata[effsave],tbl_twdbdata[Year],2020,tbl_twdbdata[utility],tbl_twdbdata[[#This Row],[utility]]))","v":1657555964},282592,0,57564,26,24139462630,0,39557886616,103817184,11103355485,7026829252,{"$f":"tbl_twdbdata[[#This Row],[utility]]&tbl_twdbdata[[#This Row],[Year]]","v":"DALLAS2020"}]
[null,36,"DALLAS","C",2030,1212879,1347717,6547411344,{"$f":"IF(tbl_twdbdata[[#This Row],[Year]]=2016,0,tbl_twdbdata[[#This Row],[effsave]]-0.6*SUMIFS(tbl_twdbdata[effsave],tbl_twdbdata[Year],2020,tbl_twdbdata[utility],tbl_twdbdata[[#This Row],[utility]]))","v":4061077398},306612,0,62456,28,26191306071,0,42920289144,112641598,12047135695,7624106570,{"$f":"tbl_twdbdata[[#This Row],[utility]]&tbl_twdbdata[[#This Row],[Year]]","v":"DALLAS2030"}]
[null,36,"DALLAS","C",2040,1212879,1531680,9202180272,{"$f":"IF(tbl_twdbdata[[#This Row],[Year]]=2016,0,tbl_twdbdata[[#This Row],[effsave]]-0.6*SUMIFS(tbl_twdbdata[effsave],tbl_twdbdata[Year],2020,tbl_twdbdata[utility],tbl_twdbdata[[#This Row],[utility]]))","v":6715846326},348464,0,67764,30,29766412149,0,48778896813,128017145,13691566405,8664795021,{"$f":"tbl_twdbdata[[#This Row],[utility]]&tbl_twdbdata[[#This Row],[Year]]","v":"DALLAS2040"}]
[null,36,"DALLAS","C",2050,1212879,1707057,11184210700,{"$f":"IF(tbl_twdbdata[[#This Row],[Year]]=2016,0,tbl_twdbdata[[#This Row],[effsave]]-0.6*SUMIFS(tbl_twdbdata[effsave],tbl_twdbdata[Year],2020,tbl_twdbdata[utility],tbl_twdbdata[[#This Row],[utility]]))","v":8697876754},388363,0,73523,33,33174659344,0,54364069033,142675078,15259247540,9656912014,{"$f":"tbl_twdbdata[[#This Row],[utility]]&tbl_twdbdata[[#This Row],[Year]]","v":"DALLAS2050"}]
[null,36,"DALLAS","C",2060,1212879,1841064,12263787570,{"$f":"IF(tbl_twdbdata[[#This Row],[Year]]=2016,0,tbl_twdbdata[[#This Row],[effsave]]-0.6*SUMIFS(tbl_twdbdata[effsave],tbl_twdbdata[Year],2020,tbl_twdbdata[utility],tbl_twdbdata[[#This Row],[utility]]))","v":9777453624},418850,0,79772,36,35778928900,0,58631744803,153875324,16457125517,10414996723,{"$f":"tbl_twdbdata[[#This Row],[utility]]&tbl_twdbdata[[#This Row],[Year]]","v":"DALLAS2060"}]
[null,36,"DALLAS","C",2070,1212879,1905499,12713870428,{"$f":"IF(tbl_twdbdata[[#This Row],[Year]]=2016,0,tbl_twdbdata[[#This Row],[effsave]]-0.6*SUMIFS(tbl_twdbdata[effsave],tbl_twdbdata[Year],2020,tbl_twdbdata[utility],tbl_twdbdata[[#This Row],[utility]]))","v":10227536482},433509,0,86552,39,37031147880,0,60683784535,159260773,17033104887,10779508937,{"$f":"tbl_twdbdata[[#This Row],[utility]]&tbl_twdbdata[[#This Row],[Year]]","v":"DALLAS2070"}]
[null,698,"DAYTON","H",2016,8300,8300,0,{"$f":"IF(tbl_twdbdata[[#This Row],[Year]]=2016,0,tbl_twdbdata[[#This Row],[effsave]]-0.6*SUMIFS(tbl_twdbdata[effsave],tbl_twdbdata[Year],2020,tbl_twdbdata[utility],tbl_twdbdata[[#This Row],[utility]]))","v":0},2656,209,360,0,129492249,34089000,312253543,0,null,null,{"$f":"tbl_twdbdata[[#This Row],[utility]]&tbl_twdbdata[[#This Row],[Year]]","v":"DAYTON2016"}]
[null,698,"DAYTON","H",2020,8300,10759,41116056,{"$f":"IF(tbl_twdbdata[[#This Row],[Year]]=2016,0,tbl_twdbdata[[#This Row],[effsave]]-0.6*SUMIFS(tbl_twdbdata[effsave],tbl_twdbdata[Year],2020,tbl_twdbdata[utility],tbl_twdbdata[[#This Row],[utility]]))","v":16446422.400000002},3297,259,447,0,160767033,42322127,387668575,0,null,null,{"$f":"tbl_twdbdata[[#This Row],[utility]]&tbl_twdbdata[[#This Row],[Year]]","v":"DAYTON2020"}]
[null,698,"DAYTON","H",2030,8300,13971,71697775,{"$f":"IF(tbl_twdbdata[[#This Row],[Year]]=2016,0,tbl_twdbdata[[#This Row],[effsave]]-0.6*SUMIFS(tbl_twdbdata[effsave],tbl_twdbdata[Year],2020,tbl_twdbdata[utility],tbl_twdbdata[[#This Row],[utility]]))","v":47028141.400000006},4281,336,580,0,208762545,54957007,503403445,0,null,null,{"$f":"tbl_twdbdata[[#This Row],[utility]]&tbl_twdbdata[[#This Row],[Year]]","v":"DAYTON2030"}]
[null,698,"DAYTON","H",2040,8300,17028,98511237,{"$f":"IF(tbl_twdbdata[[#This Row],[Year]]=2016,0,tbl_twdbdata[[#This Row],[effsave]]-0.6*SUMIFS(tbl_twdbdata[effsave],tbl_twdbdata[Year],2020,tbl_twdbdata[utility],tbl_twdbdata[[#This Row],[utility]]))","v":73841603.400000006},5218,436,753,0,254441960,66982171,613553350,0,null,null,{"$f":"tbl_twdbdata[[#This Row],[utility]]&tbl_twdbdata[[#This Row],[Year]]","v":"DAYTON2040"}]
[null,698,"DAYTON","H",2050,8300,20094,122116262,{"$f":"IF(tbl_twdbdata[[#This Row],[Year]]=2016,0,tbl_twdbdata[[#This Row],[effsave]]-0.6*SUMIFS(tbl_twdbdata[effsave],tbl_twdbdata[Year],2020,tbl_twdbdata[utility],tbl_twdbdata[[#This Row],[utility]]))","v":97446628.400000006},6158,566,978,0,300255858,79042738,724027544,0,null,null,{"$f":"tbl_twdbdata[[#This Row],[utility]]&tbl_twdbdata[[#This Row],[Year]]","v":"DAYTON2050"}]
[null,698,"DAYTON","H",2060,8300,23028,141543905,{"$f":"IF(tbl_twdbdata[[#This Row],[Year]]=2016,0,tbl_twdbdata[[#This Row],[effsave]]-0.6*SUMIFS(tbl_twdbdata[effsave],tbl_twdbdata[Year],2020,tbl_twdbdata[utility],tbl_twdbdata[[#This Row],[utility]]))","v":116874271.40000001},7057,735,1270,0,344097337,90584063,829745511,0,null,null,{"$f":"tbl_twdbdata[[#This Row],[utility]]&tbl_twdbdata[[#This Row],[Year]]","v":"DAYTON2060"}]
[null,698,"DAYTON","H",2070,8300,25832,159533266,{"$f":"IF(tbl_twdbdata[[#This Row],[Year]]=2016,0,tbl_twdbdata[[#This Row],[effsave]]-0.6*SUMIFS(tbl_twdbdata[effsave],tbl_twdbdata[Year],2020,tbl_twdbdata[utility],tbl_twdbdata[[#This Row],[utility]]))","v":134863632.40000001},7916,954,1649,0,385996283,101614014,930779314,0,null,null,{"$f":"tbl_twdbdata[[#This Row],[utility]]&tbl_twdbdata[[#This Row],[Year]]","v":"DAYTON2070"}]
[null,700,"DE LEON","G",2016,2246,2246,0,{"$f":"IF(tbl_twdbdata[[#This Row],[Year]]=2016,0,tbl_twdbdata[[#This Row],[effsave]]-0.6*SUMIFS(tbl_twdbdata[effsave],tbl_twdbdata[Year],2020,tbl_twdbdata[utility],tbl_twdbdata[[#This Row],[utility]]))","v":0},865,1,190,0,37408789,3672433,11280490,0,null,null,{"$f":"tbl_twdbdata[[#This Row],[utility]]&tbl_twdbdata[[#This Row],[Year]]","v":"DE LEON2016"}]
[null,700,"DE LEON","G",2020,2128,2296,8103847,{"$f":"IF(tbl_twdbdata[[#This Row],[Year]]=2016,0,tbl_twdbdata[[#This Row],[effsave]]-0.6*SUMIFS(tbl_twdbdata[effsave],tbl_twdbdata[Year],2020,tbl_twdbdata[utility],tbl_twdbdata[[#This Row],[utility]]))","v":3241538.8},933,1,205,0,40362114,3962362,12171055,0,null,null,{"$f":"tbl_twdbdata[[#This Row],[utility]]&tbl_twdbdata[[#This Row],[Year]]","v":"DE LEON2020"}]
[null,700,"DE LEON","G",2030,2128,2387,12249845,{"$f":"IF(tbl_twdbdata[[#This Row],[Year]]=2016,0,tbl_twdbdata[[#This Row],[effsave]]-0.6*SUMIFS(tbl_twdbdata[effsave],tbl_twdbdata[Year],2020,tbl_twdbdata[utility],tbl_twdbdata[[#This Row],[utility]]))","v":7387536.7999999998},970,1,214,0,41961832,4119407,12653444,0,null,null,{"$f":"tbl_twdbdata[[#This Row],[utility]]&tbl_twdbdata[[#This Row],[Year]]","v":"DE LEON2030"}]
[null,700,"DE LEON","G",2040,2128,2448,15618730,{"$f":"IF(tbl_twdbdata[[#This Row],[Year]]=2016,0,tbl_twdbdata[[#This Row],[effsave]]-0.6*SUMIFS(tbl_twdbdata[effsave],tbl_twdbdata[Year],2020,tbl_twdbdata[utility],tbl_twdbdata[[#This Row],[utility]]))","v":10756421.800000001},995,1,223,0,43034170,4224679,12976804,0,null,null,{"$f":"tbl_twdbdata[[#This Row],[utility]]&tbl_twdbdata[[#This Row],[Year]]","v":"DE LEON2040"}]
[null,700,"DE LEON","G",2050,2128,2529,17473999,{"$f":"IF(tbl_twdbdata[[#This Row],[Year]]=2016,0,tbl_twdbdata[[#This Row],[effsave]]-0.6*SUMIFS(tbl_twdbdata[effsave],tbl_twdbdata[Year],2020,tbl_twdbdata[utility],tbl_twdbdata[[#This Row],[utility]]))","v":12611690.800000001},1028,1,232,0,44458095,4364466,13406184,0,null,null,{"$f":"tbl_twdbdata[[#This Row],[utility]]&tbl_twdbdata[[#This Row],[Year]]","v":"DE LEON2050"}]
[null,700,"DE LEON","G",2060,2128,2597,18237692,{"$f":"IF(tbl_twdbdata[[#This Row],[Year]]=2016,0,tbl_twdbdata[[#This Row],[effsave]]-0.6*SUMIFS(tbl_twdbdata[effsave],tbl_twdbdata[Year],2020,tbl_twdbdata[utility],tbl_twdbdata[[#This Row],[utility]]))","v":13375383.800000001},1056,1,241,0,45653489,4481818,13766651,0,null,null,{"$f":"tbl_twdbdata[[#This Row],[utility]]&tbl_twdbdata[[#This Row],[Year]]","v":"DE LEON2060"}]
[null,700,"DE LEON","G",2070,2128,2662,18733026,{"$f":"IF(tbl_twdbdata[[#This Row],[Year]]=2016,0,tbl_twdbdata[[#This Row],[effsave]]-0.6*SUMIFS(tbl_twdbdata[effsave],tbl_twdbdata[Year],2020,tbl_twdbdata[utility],tbl_twdbdata[[#This Row],[utility]]))","v":13870717.800000001},1082,1,251,0,46796145,4593993,14111215,0,null,null,{"$f":"tbl_twdbdata[[#This Row],[utility]]&tbl_twdbdata[[#This Row],[Year]]","v":"DE LEON2070"}]
[null,38,"DEL RIO UTILITIES COMMISSION","J",2016,35589,35639,0,{"$f":"IF(tbl_twdbdata[[#This Row],[Year]]=2016,0,tbl_twdbdata[[#This Row],[effsave]]-0.6*SUMIFS(tbl_twdbdata[effsave],tbl_twdbdata[Year],2020,tbl_twdbdata[utility],tbl_twdbdata[[#This Row],[utility]]))","v":0},12534,0,1575,863,1702533600,0,445682100,168545000,3259000,298519500,{"$f":"tbl_twdbdata[[#This Row],[utility]]&tbl_twdbdata[[#This Row],[Year]]","v":"DEL RIO UTILITIES COMMISSION2016"}]
[null,38,"DEL RIO UTILITIES COMMISSION","J",2020,35589,37775,130571176,{"$f":"IF(tbl_twdbdata[[#This Row],[Year]]=2016,0,tbl_twdbdata[[#This Row],[effsave]]-0.6*SUMIFS(tbl_twdbdata[effsave],tbl_twdbdata[Year],2020,tbl_twdbdata[utility],tbl_twdbdata[[#This Row],[utility]]))","v":52228470.400000006},13010,0,1635,896,1767234742,0,462619294,174950192,3382851,309864094,{"$f":"tbl_twdbdata[[#This Row],[utility]]&tbl_twdbdata[[#This Row],[Year]]","v":"DEL RIO UTILITIES COMMISSION2020"}]
[null,38,"DEL RIO UTILITIES COMMISSION","J",2030,35589,40196,198359221,{"$f":"IF(tbl_twdbdata[[#This Row],[Year]]=2016,0,tbl_twdbdata[[#This Row],[effsave]]-0.6*SUMIFS(tbl_twdbdata[effsave],tbl_twdbdata[Year],2020,tbl_twdbdata[utility],tbl_twdbdata[[#This Row],[utility]]))","v":120016515.40000001},13844,0,1740,953,1880496828,0,492268567,186162751,3599658,329723286,{"$f":"tbl_twdbdata[[#This Row],[utility]]&tbl_twdbdata[[#This Row],[Year]]","v":"DEL RIO UTILITIES COMMISSION2030"}]
[null,38,"DEL RIO UTILITIES COMMISSION","J",2040,35589,42540,256662963,{"$f":"IF(tbl_twdbdata[[#This Row],[Year]]=2016,0,tbl_twdbdata[[#This Row],[effsave]]-0.6*SUMIFS(tbl_twdbdata[effsave],tbl_twdbdata[Year],2020,tbl_twdbdata[utility],tbl_twdbdata[[#This Row],[utility]]))","v":178320257.40000001},14651,0,1851,1014,1990156609,0,520974844,197018694,3809569,348950855,{"$f":"tbl_twdbdata[[#This Row],[utility]]&tbl_twdbdata[[#This Row],[Year]]","v":"DEL RIO UTILITIES COMMISSION2040"}]
[null,38,"DEL RIO UTILITIES COMMISSION","J",2050,35589,44948,296620842,{"$f":"IF(tbl_twdbdata[[#This Row],[Year]]=2016,0,tbl_twdbdata[[#This Row],[effsave]]-0.6*SUMIFS(tbl_twdbdata[effsave],tbl_twdbdata[Year],2020,tbl_twdbdata[utility],tbl_twdbdata[[#This Row],[utility]]))","v":218278136.40000001},15480,0,1969,1079,2102810514,0,550464910,208171045,4025212,368703409,{"$f":"tbl_twdbdata[[#This Row],[utility]]&tbl_twdbdata[[#This Row],[Year]]","v":"DEL RIO UTILITIES COMMISSION2050"}]
[null,38,"DEL RIO UTILITIES COMMISSION","J",2060,35589,47242,317104839,{"$f":"IF(tbl_twdbdata[[#This Row],[Year]]=2016,0,tbl_twdbdata[[#This Row],[effsave]]-0.6*SUMIFS(tbl_twdbdata[effsave],tbl_twdbdata[Year],2020,tbl_twdbdata[utility],tbl_twdbdata[[#This Row],[utility]]))","v":238762133.40000001},16270,0,2095,1148,2210131136,0,578558852,218795419,4230646,387520834,{"$f":"tbl_twdbdata[[#This Row],[utility]]&tbl_twdbdata[[#This Row],[Year]]","v":"DEL RIO UTILITIES COMMISSION2060"}]
[null,38,"DEL RIO UTILITIES COMMISSION","J",2070,35589,49453,332848362,{"$f":"IF(tbl_twdbdata[[#This Row],[Year]]=2016,0,tbl_twdbdata[[#This Row],[effsave]]-0.6*SUMIFS(tbl_twdbdata[effsave],tbl_twdbdata[Year],2020,tbl_twdbdata[utility],tbl_twdbdata[[#This Row],[utility]]))","v":254505656.40000001},17031,0,2230,1222,2313568754,0,605636318,229035389,4428647,405657419,{"$f":"tbl_twdbdata[[#This Row],[utility]]&tbl_twdbdata[[#This Row],[Year]]","v":"DEL RIO UTILITIES COMMISSION2070"}]
[null,706,"DENISON","C",2016,22907,22907,0,{"$f":"IF(tbl_twdbdata[[#This Row],[Year]]=2016,0,tbl_twdbdata[[#This Row],[effsave]]-0.6*SUMIFS(tbl_twdbdata[effsave],tbl_twdbdata[Year],2020,tbl_twdbdata[utility],tbl_twdbdata[[#This Row],[utility]]))","v":0},9040,0,1137,0,631867202,0,652114716,0,null,null,{"$f":"tbl_twdbdata[[#This Row],[utility]]&tbl_twdbdata[[#This Row],[Year]]","v":"DENISON2016"}]
[null,706,"DENISON","C",2020,22907,27340,100389746,{"$f":"IF(tbl_twdbdata[[#This Row],[Year]]=2016,0,tbl_twdbdata[[#This Row],[effsave]]-0.6*SUMIFS(tbl_twdbdata[effsave],tbl_twdbdata[Year],2020,tbl_twdbdata[utility],tbl_twdbdata[[#This Row],[utility]]))","v":40155898.399999999},10233,0,1287,0,715271998,0,738192130,0,null,null,{"$f":"tbl_twdbdata[[#This Row],[utility]]&tbl_twdbdata[[#This Row],[Year]]","v":"DENISON2020"}]
[null,706,"DENISON","C",2030,22907,30410,160056953,{"$f":"IF(tbl_twdbdata[[#This Row],[Year]]=2016,0,tbl_twdbdata[[#This Row],[effsave]]-0.6*SUMIFS(tbl_twdbdata[effsave],tbl_twdbdata[Year],2020,tbl_twdbdata[utility],tbl_twdbdata[[#This Row],[utility]]))","v":99823105.400000006},11382,0,1431,0,795589666,0,821083492,0,null,null,{"$f":"tbl_twdbdata[[#This Row],[utility]]&tbl_twdbdata[[#This Row],[Year]]","v":"DENISON2030"}]
[null,706,"DENISON","C",2040,22907,30768,195856781,{"$f":"IF(tbl_twdbdata[[#This Row],[Year]]=2016,0,tbl_twdbdata[[#This Row],[effsave]]-0.6*SUMIFS(tbl_twdbdata[effsave],tbl_twdbdata[Year],2020,tbl_twdbdata[utility],tbl_twdbdata[[#This Row],[utility]]))","v":135622933.40000001},11516,0,1591,0,804955700,0,830749651,0,null,null,{"$f":"tbl_twdbdata[[#This Row],[utility]]&tbl_twdbdata[[#This Row],[Year]]","v":"DENISON2040"}]
[null,706,"DENISON","C",2050,22907,33805,233573957,{"$f":"IF(tbl_twdbdata[[#This Row],[Year]]=2016,0,tbl_twdbdata[[#This Row],[effsave]]-0.6*SUMIFS(tbl_twdbdata[effsave],tbl_twdbdata[Year],2020,tbl_twdbdata[utility],tbl_twdbdata[[#This Row],[utility]]))","v":173340109.40000001},12653,0,1769,0,884410018,0,912749998,0,null,null,{"$f":"tbl_twdbdata[[#This Row],[utility]]&tbl_twdbdata[[#This Row],[Year]]","v":"DENISON2050"}]
[null,706,"DENISON","C",2060,22907,39346,277029284,{"$f":"IF(tbl_twdbdata[[#This Row],[Year]]=2016,0,tbl_twdbdata[[#This Row],[effsave]]-0.6*SUMIFS(tbl_twdbdata[effsave],tbl_twdbdata[Year],2020,tbl_twdbdata[utility],tbl_twdbdata[[#This Row],[utility]]))","v":216795436.40000001},14727,0,1967,0,1029374251,0,1062359457,0,null,null,{"$f":"tbl_twdbdata[[#This Row],[utility]]&tbl_twdbdata[[#This Row],[Year]]","v":"DENISON2060"}]
[null,706,"DENISON","C",2070,22907,52403,372213269,{"$f":"IF(tbl_twdbdata[[#This Row],[Year]]=2016,0,tbl_twdbdata[[#This Row],[effsave]]-0.6*SUMIFS(tbl_twdbdata[effsave],tbl_twdbdata[Year],2020,tbl_twdbdata[utility],tbl_twdbdata[[#This Row],[utility]]))","v":311979421.39999998},19614,0,2188,0,1370972878,0,1414904250,0,null,null,{"$f":"tbl_twdbdata[[#This Row],[utility]]&tbl_twdbdata[[#This Row],[Year]]","v":"DENISON2070"}]
[null,40,"DENTON","C",2016,125980,125980,0,{"$f":"IF(tbl_twdbdata[[#This Row],[Year]]=2016,0,tbl_twdbdata[[#This Row],[effsave]]-0.6*SUMIFS(tbl_twdbdata[effsave],tbl_twdbdata[Year],2020,tbl_twdbdata[utility],tbl_twdbdata[[#This Row],[utility]]))","v":0},29449,0,4640,0,2590131050,0,2917903261,0,null,null,{"$f":"tbl_twdbdata[[#This Row],[utility]]&tbl_twdbdata[[#This Row],[Year]]","v":"DENTON2016"}]
[null,40,"DENTON","C",2020,124681,145000,521311250,{"$f":"IF(tbl_twdbdata[[#This Row],[Year]]=2016,0,tbl_twdbdata[[#This Row],[effsave]]-0.6*SUMIFS(tbl_twdbdata[effsave],tbl_twdbdata[Year],2020,tbl_twdbdata[utility],tbl_twdbdata[[#This Row],[utility]]))","v":208524500},34248,0,5396,0,3012239253,0,3393427811,0,null,null,{"$f":"tbl_twdbdata[[#This Row],[utility]]&tbl_twdbdata[[#This Row],[Year]]","v":"DENTON2020"}]
[null,40,"DENTON","C",2030,124681,186773,900554035,{"$f":"IF(tbl_twdbdata[[#This Row],[Year]]=2016,0,tbl_twdbdata[[#This Row],[effsave]]-0.6*SUMIFS(tbl_twdbdata[effsave],tbl_twdbdata[Year],2020,tbl_twdbdata[utility],tbl_twdbdata[[#This Row],[utility]]))","v":587767285},44114,0,6951,0,3880034221,0,4371039259,0,null,null,{"$f":"tbl_twdbdata[[#This Row],[utility]]&tbl_twdbdata[[#This Row],[Year]]","v":"DENTON2030"}]
[null,40,"DENTON","C",2040,124681,233749,1266978017,{"$f":"IF(tbl_twdbdata[[#This Row],[Year]]=2016,0,tbl_twdbdata[[#This Row],[effsave]]-0.6*SUMIFS(tbl_twdbdata[effsave],tbl_twdbdata[Year],2020,tbl_twdbdata[utility],tbl_twdbdata[[#This Row],[utility]]))","v":954191267},55209,0,8954,0,4855916643,0,5470416258,0,null,null,{"$f":"tbl_twdbdata[[#This Row],[utility]]&tbl_twdbdata[[#This Row],[Year]]","v":"DENTON2040"}]
[null,40,"DENTON","C",2050,124681,322996,1837960289,{"$f":"IF(tbl_twdbdata[[#This Row],[Year]]=2016,0,tbl_twdbdata[[#This Row],[effsave]]-0.6*SUMIFS(tbl_twdbdata[effsave],tbl_twdbdata[Year],2020,tbl_twdbdata[utility],tbl_twdbdata[[#This Row],[utility]]))","v":1525173539},76288,0,11534,0,6709939516,0,7559059374,0,null,null,{"$f":"tbl_twdbdata[[#This Row],[utility]]&tbl_twdbdata[[#This Row],[Year]]","v":"DENTON2050"}]
[null,40,"DENTON","C",2060,124681,463472,2677918042,{"$f":"IF(tbl_twdbdata[[#This Row],[Year]]=2016,0,tbl_twdbdata[[#This Row],[effsave]]-0.6*SUMIFS(tbl_twdbdata[effsave],tbl_twdbdata[Year],2020,tbl_twdbdata[utility],tbl_twdbdata[[#This Row],[utility]]))","v":2365131292},109467,0,14857,0,9628196904,0,10846612237,0,null,null,{"$f":"tbl_twdbdata[[#This Row],[utility]]&tbl_twdbdata[[#This Row],[Year]]","v":"DENTON2060"}]
[null,40,"DENTON","C",2070,124681,570694,3314105662,{"$f":"IF(tbl_twdbdata[[#This Row],[Year]]=2016,0,tbl_twdbdata[[#This Row],[effsave]]-0.6*SUMIFS(tbl_twdbdata[effsave],tbl_twdbdata[Year],2020,tbl_twdbdata[utility],tbl_twdbdata[[#This Row],[utility]]))","v":3001318912},134792,0,19137,0,11855633574,0,13355923387,0,null,null,{"$f":"tbl_twdbdata[[#This Row],[utility]]&tbl_twdbdata[[#This Row],[Year]]","v":"DENTON2070"}]
[null,707,"DENTON COUNTY FWSD 1-A","C",2016,13184,13184,0,{"$f":"IF(tbl_twdbdata[[#This Row],[Year]]=2016,0,tbl_twdbdata[[#This Row],[effsave]]-0.6*SUMIFS(tbl_twdbdata[effsave],tbl_twdbdata[Year],2020,tbl_twdbdata[utility],tbl_twdbdata[[#This Row],[utility]]))","v":0},3767,6,168,0,629087100,21084400,111984442,0,null,null,{"$f":"tbl_twdbdata[[#This Row],[utility]]&tbl_twdbdata[[#This Row],[Year]]","v":"DENTON COUNTY FWSD 1-A2016"}]
[null,707,"DENTON COUNTY FWSD 1-A","C",2020,10531,14000,34185900,{"$f":"IF(tbl_twdbdata[[#This Row],[Year]]=2016,0,tbl_twdbdata[[#This Row],[effsave]]-0.6*SUMIFS(tbl_twdbdata[effsave],tbl_twdbdata[Year],2020,tbl_twdbdata[utility],tbl_twdbdata[[#This Row],[utility]]))","v":13674360},5008,8,223,0,836313683,28029779,148873059,0,null,null,{"$f":"tbl_twdbdata[[#This Row],[utility]]&tbl_twdbdata[[#This Row],[Year]]","v":"DENTON COUNTY FWSD 1-A2020"}]
[null,707,"DENTON COUNTY FWSD 1-A","C",2030,10531,25021,75983773,{"$f":"IF(tbl_twdbdata[[#This Row],[Year]]=2016,0,tbl_twdbdata[[#This Row],[effsave]]-0.6*SUMIFS(tbl_twdbdata[effsave],tbl_twdbdata[Year],2020,tbl_twdbdata[utility],tbl_twdbdata[[#This Row],[utility]]))","v":55472233},8950,14,398,0,1494671762,50095221,266068058,0,null,null,{"$f":"tbl_twdbdata[[#This Row],[utility]]&tbl_twdbdata[[#This Row],[Year]]","v":"DENTON COUNTY FWSD 1-A2030"}]
[null,707,"DENTON COUNTY FWSD 1-A","C",2040,10531,30000,94060500,{"$f":"IF(tbl_twdbdata[[#This Row],[Year]]=2016,0,tbl_twdbdata[[#This Row],[effsave]]-0.6*SUMIFS(tbl_twdbdata[effsave],tbl_twdbdata[Year],2020,tbl_twdbdata[utility],tbl_twdbdata[[#This Row],[utility]]))","v":73548960},10731,25,712,0,1792100750,60063812,319013698,0,null,null,{"$f":"tbl_twdbdata[[#This Row],[utility]]&tbl_twdbdata[[#This Row],[Year]]","v":"DENTON COUNTY FWSD 1-A2040"}]
[null,707,"DENTON COUNTY FWSD 1-A","C",2050,10531,30000,95155500,{"$f":"IF(tbl_twdbdata[[#This Row],[Year]]=2016,0,tbl_twdbdata[[#This Row],[effsave]]-0.6*SUMIFS(tbl_twdbdata[effsave],tbl_twdbdata[Year],2020,tbl_twdbdata[utility],tbl_twdbdata[[#This Row],[utility]]))","v":74643960},10731,45,1272,0,1792100750,60063812,319013698,0,null,null,{"$f":"tbl_twdbdata[[#This Row],[utility]]&tbl_twdbdata[[#This Row],[Year]]","v":"DENTON COUNTY FWSD 1-A2050"}]
[null,707,"DENTON COUNTY FWSD 1-A","C",2060,10531,30000,95922000,{"$f":"IF(tbl_twdbdata[[#This Row],[Year]]=2016,0,tbl_twdbdata[[#This Row],[effsave]]-0.6*SUMIFS(tbl_twdbdata[effsave],tbl_twdbdata[Year],2020,tbl_twdbdata[utility],tbl_twdbdata[[#This Row],[utility]]))","v":75410460},10731,80,2273,0,1792100750,60063812,319013698,0,null,null,{"$f":"tbl_twdbdata[[#This Row],[utility]]&tbl_twdbdata[[#This Row],[Year]]","v":"DENTON COUNTY FWSD 1-A2060"}]
[null,707,"DENTON COUNTY FWSD 1-A","C",2070,10531,30000,96469500,{"$f":"IF(tbl_twdbdata[[#This Row],[Year]]=2016,0,tbl_twdbdata[[#This Row],[effsave]]-0.6*SUMIFS(tbl_twdbdata[effsave],tbl_twdbdata[Year],2020,tbl_twdbdata[utility],tbl_twdbdata[[#This Row],[utility]]))","v":75957960},10731,143,4062,0,1792100750,60063812,319013698,0,null,null,{"$f":"tbl_twdbdata[[#This Row],[utility]]&tbl_twdbdata[[#This Row],[Year]]","v":"DENTON COUNTY FWSD 1-A2070"}]
[null,2774,"DESOTO","C",2016,52000,52000,0,{"$f":"IF(tbl_twdbdata[[#This Row],[Year]]=2016,0,tbl_twdbdata[[#This Row],[effsave]]-0.6*SUMIFS(tbl_twdbdata[effsave],tbl_twdbdata[Year],2020,tbl_twdbdata[utility],tbl_twdbdata[[#This Row],[utility]]))","v":0},16242,127,872,0,1578545464,205836441,254944808,0,75195605,372845682,{"$f":"tbl_twdbdata[[#This Row],[utility]]&tbl_twdbdata[[#This Row],[Year]]","v":"DESOTO2016"}]
[null,2774,"DESOTO","C",2020,51214,54505,172483798,{"$f":"IF(tbl_twdbdata[[#This Row],[Year]]=2016,0,tbl_twdbdata[[#This Row],[effsave]]-0.6*SUMIFS(tbl_twdbdata[effsave],tbl_twdbdata[Year],2020,tbl_twdbdata[utility],tbl_twdbdata[[#This Row],[utility]]))","v":68993519.200000003},17286,135,928,0,1679982437,219063444,271327503,0,80027657,396804661,{"$f":"tbl_twdbdata[[#This Row],[utility]]&tbl_twdbdata[[#This Row],[Year]]","v":"DESOTO2020"}]
[null,2774,"DESOTO","C",2030,51214,58941,259667523,{"$f":"IF(tbl_twdbdata[[#This Row],[Year]]=2016,0,tbl_twdbdata[[#This Row],[effsave]]-0.6*SUMIFS(tbl_twdbdata[effsave],tbl_twdbdata[Year],2020,tbl_twdbdata[utility],tbl_twdbdata[[#This Row],[utility]]))","v":156177244.19999999},18693,146,1003,0,1816711216,236892367,293410042,0,86540870,429099413,{"$f":"tbl_twdbdata[[#This Row],[utility]]&tbl_twdbdata[[#This Row],[Year]]","v":"DESOTO2030"}]
[null,2774,"DESOTO","C",2040,51214,64281,336922433,{"$f":"IF(tbl_twdbdata[[#This Row],[Year]]=2016,0,tbl_twdbdata[[#This Row],[effsave]]-0.6*SUMIFS(tbl_twdbdata[effsave],tbl_twdbdata[Year],2020,tbl_twdbdata[utility],tbl_twdbdata[[#This Row],[utility]]))","v":233432154.19999999},20387,158,1085,0,1981303569,258354596,319992720,0,94381393,467975422,{"$f":"tbl_twdbdata[[#This Row],[utility]]&tbl_twdbdata[[#This Row],[Year]]","v":"DESOTO2040"}]
[null,2774,"DESOTO","C",2050,51214,70078,397489424,{"$f":"IF(tbl_twdbdata[[#This Row],[Year]]=2016,0,tbl_twdbdata[[#This Row],[effsave]]-0.6*SUMIFS(tbl_twdbdata[effsave],tbl_twdbdata[Year],2020,tbl_twdbdata[utility],tbl_twdbdata[[#This Row],[utility]]))","v":293999145.19999999},22226,171,1173,0,2159981822,281653574,348850357,0,102892912,510178461,{"$f":"tbl_twdbdata[[#This Row],[utility]]&tbl_twdbdata[[#This Row],[Year]]","v":"DESOTO2050"}]
[null,2774,"DESOTO","C",2060,51214,75727,437823223,{"$f":"IF(tbl_twdbdata[[#This Row],[Year]]=2016,0,tbl_twdbdata[[#This Row],[effsave]]-0.6*SUMIFS(tbl_twdbdata[effsave],tbl_twdbdata[Year],2020,tbl_twdbdata[utility],tbl_twdbdata[[#This Row],[utility]]))","v":334332944.19999999},24018,185,1269,0,2334098339,304357719,376971246,0,111187128,551304037,{"$f":"tbl_twdbdata[[#This Row],[utility]]&tbl_twdbdata[[#This Row],[Year]]","v":"DESOTO2060"}]
[null,2774,"DESOTO","C",2070,51214,78033,453434156,{"$f":"IF(tbl_twdbdata[[#This Row],[Year]]=2016,0,tbl_twdbdata[[#This Row],[effsave]]-0.6*SUMIFS(tbl_twdbdata[effsave],tbl_twdbdata[Year],2020,tbl_twdbdata[utility],tbl_twdbdata[[#This Row],[utility]]))","v":349943877.19999999},24749,200,1372,0,2405175112,313625865,388450583,0,114572942,568092066,{"$f":"tbl_twdbdata[[#This Row],[utility]]&tbl_twdbdata[[#This Row],[Year]]","v":"DESOTO2070"}]
[null,718,"DONNA","M",2016,16500,16500,0,{"$f":"IF(tbl_twdbdata[[#This Row],[Year]]=2016,0,tbl_twdbdata[[#This Row],[effsave]]-0.6*SUMIFS(tbl_twdbdata[effsave],tbl_twdbdata[Year],2020,tbl_twdbdata[utility],tbl_twdbdata[[#This Row],[utility]]))","v":0},4746,73,482,33,245405000,11454000,99370000,10545000,null,null,{"$f":"tbl_twdbdata[[#This Row],[utility]]&tbl_twdbdata[[#This Row],[Year]]","v":"DONNA2016"}]
[null,718,"DONNA","M",2020,16500,20021,77680479,{"$f":"IF(tbl_twdbdata[[#This Row],[Year]]=2016,0,tbl_twdbdata[[#This Row],[effsave]]-0.6*SUMIFS(tbl_twdbdata[effsave],tbl_twdbdata[Year],2020,tbl_twdbdata[utility],tbl_twdbdata[[#This Row],[utility]]))","v":31072191.600000001},5720,88,581,40,295765321,13804511,119762026,12708972,null,null,{"$f":"tbl_twdbdata[[#This Row],[utility]]&tbl_twdbdata[[#This Row],[Year]]","v":"DONNA2020"}]
[null,718,"DONNA","M",2030,16500,24860,133930764,{"$f":"IF(tbl_twdbdata[[#This Row],[Year]]=2016,0,tbl_twdbdata[[#This Row],[effsave]]-0.6*SUMIFS(tbl_twdbdata[effsave],tbl_twdbdata[Year],2020,tbl_twdbdata[utility],tbl_twdbdata[[#This Row],[utility]]))","v":87322476.599999994},7103,109,721,50,367250681,17141009,148708055,15780682,null,null,{"$f":"tbl_twdbdata[[#This Row],[utility]]&tbl_twdbdata[[#This Row],[Year]]","v":"DONNA2030"}]
[null,718,"DONNA","M",2040,16500,29719,185274190,{"$f":"IF(tbl_twdbdata[[#This Row],[Year]]=2016,0,tbl_twdbdata[[#This Row],[effsave]]-0.6*SUMIFS(tbl_twdbdata[effsave],tbl_twdbdata[Year],2020,tbl_twdbdata[utility],tbl_twdbdata[[#This Row],[utility]]))","v":138665902.59999999},8491,135,895,62,439031496,20491297,177773720,18865088,null,null,{"$f":"tbl_twdbdata[[#This Row],[utility]]&tbl_twdbdata[[#This Row],[Year]]","v":"DONNA2040"}]
[null,718,"DONNA","M",2050,16500,34587,228751501,{"$f":"IF(tbl_twdbdata[[#This Row],[Year]]=2016,0,tbl_twdbdata[[#This Row],[effsave]]-0.6*SUMIFS(tbl_twdbdata[effsave],tbl_twdbdata[Year],2020,tbl_twdbdata[utility],tbl_twdbdata[[#This Row],[utility]]))","v":182143213.59999999},9882,168,1112,77,510945266,23847791,206893221,21955207,null,null,{"$f":"tbl_twdbdata[[#This Row],[utility]]&tbl_twdbdata[[#This Row],[Year]]","v":"DONNA2050"}]
[null,718,"DONNA","M",2060,16500,39456,264266424,{"$f":"IF(tbl_twdbdata[[#This Row],[Year]]=2016,0,tbl_twdbdata[[#This Row],[effsave]]-0.6*SUMIFS(tbl_twdbdata[effsave],tbl_twdbdata[Year],2020,tbl_twdbdata[utility],tbl_twdbdata[[#This Row],[utility]]))","v":217658136.59999999},11273,209,1381,96,582873809,27204974,236018704,25045961,null,null,{"$f":"tbl_twdbdata[[#This Row],[utility]]&tbl_twdbdata[[#This Row],[Year]]","v":"DONNA2060"}]
[null,718,"DONNA","M",2070,16500,44189,297257194,{"$f":"IF(tbl_twdbdata[[#This Row],[Year]]=2016,0,tbl_twdbdata[[#This Row],[effsave]]-0.6*SUMIFS(tbl_twdbdata[effsave],tbl_twdbdata[Year],2020,tbl_twdbdata[utility],tbl_twdbdata[[#This Row],[utility]]))","v":250648906.59999999},12625,260,1714,119,652793257,30468385,264330660,28050384,null,null,{"$f":"tbl_twdbdata[[#This Row],[utility]]&tbl_twdbdata[[#This Row],[Year]]","v":"DONNA2070"}]
[null,43,"DUMAS","A",2016,14691,16100,0,{"$f":"IF(tbl_twdbdata[[#This Row],[Year]]=2016,0,tbl_twdbdata[[#This Row],[effsave]]-0.6*SUMIFS(tbl_twdbdata[effsave],tbl_twdbdata[Year],2020,tbl_twdbdata[utility],tbl_twdbdata[[#This Row],[utility]]))","v":0},4712,0,520,0,533613000,0,181095200,0,11650871,205710620,{"$f":"tbl_twdbdata[[#This Row],[utility]]&tbl_twdbdata[[#This Row],[Year]]","v":"DUMAS2016"}]
[null,43,"DUMAS","A",2020,14691,17119,63171678,{"$f":"IF(tbl_twdbdata[[#This Row],[Year]]=2016,0,tbl_twdbdata[[#This Row],[effsave]]-0.6*SUMIFS(tbl_twdbdata[effsave],tbl_twdbdata[Year],2020,tbl_twdbdata[utility],tbl_twdbdata[[#This Row],[utility]]))","v":25268671.200000003},5417,0,598,0,613452485,0,208190768,0,13394081,236489161,{"$f":"tbl_twdbdata[[#This Row],[utility]]&tbl_twdbdata[[#This Row],[Year]]","v":"DUMAS2020"}]
[null,43,"DUMAS","A",2030,14691,19513,102061771,{"$f":"IF(tbl_twdbdata[[#This Row],[Year]]=2016,0,tbl_twdbdata[[#This Row],[effsave]]-0.6*SUMIFS(tbl_twdbdata[effsave],tbl_twdbdata[Year],2020,tbl_twdbdata[utility],tbl_twdbdata[[#This Row],[utility]]))","v":64158764.200000003},6175,0,682,0,699240513,0,237305126,0,15267171,269560897,{"$f":"tbl_twdbdata[[#This Row],[utility]]&tbl_twdbdata[[#This Row],[Year]]","v":"DUMAS2030"}]
[null,43,"DUMAS","A",2040,14691,22063,137867274,{"$f":"IF(tbl_twdbdata[[#This Row],[Year]]=2016,0,tbl_twdbdata[[#This Row],[effsave]]-0.6*SUMIFS(tbl_twdbdata[effsave],tbl_twdbdata[Year],2020,tbl_twdbdata[utility],tbl_twdbdata[[#This Row],[utility]]))","v":99964267.200000003},6982,0,777,0,790618738,0,268316660,0,17262317,304787684,{"$f":"tbl_twdbdata[[#This Row],[utility]]&tbl_twdbdata[[#This Row],[Year]]","v":"DUMAS2040"}]
[null,43,"DUMAS","A",2050,14691,24650,166089235,{"$f":"IF(tbl_twdbdata[[#This Row],[Year]]=2016,0,tbl_twdbdata[[#This Row],[effsave]]-0.6*SUMIFS(tbl_twdbdata[effsave],tbl_twdbdata[Year],2020,tbl_twdbdata[utility],tbl_twdbdata[[#This Row],[utility]]))","v":128186228.2},7801,0,886,0,883322843,0,299778166,0,19286412,340525604,{"$f":"tbl_twdbdata[[#This Row],[utility]]&tbl_twdbdata[[#This Row],[Year]]","v":"DUMAS2050"}]
[null,43,"DUMAS","A",2060,14691,27349,187069895,{"$f":"IF(tbl_twdbdata[[#This Row],[Year]]=2016,0,tbl_twdbdata[[#This Row],[effsave]]-0.6*SUMIFS(tbl_twdbdata[effsave],tbl_twdbdata[Year],2020,tbl_twdbdata[utility],tbl_twdbdata[[#This Row],[utility]]))","v":149166888.19999999},8655,0,1010,0,980040423,0,332601747,0,21398137,377810740,{"$f":"tbl_twdbdata[[#This Row],[utility]]&tbl_twdbdata[[#This Row],[Year]]","v":"DUMAS2060"}]
[null,43,"DUMAS","A",2070,14691,30115,206868970,{"$f":"IF(tbl_twdbdata[[#This Row],[Year]]=2016,0,tbl_twdbdata[[#This Row],[effsave]]-0.6*SUMIFS(tbl_twdbdata[effsave],tbl_twdbdata[Year],2020,tbl_twdbdata[utility],tbl_twdbdata[[#This Row],[utility]]))","v":168965963.19999999},9530,0,1151,0,1079158921,0,366240141,0,23562284,416021443,{"$f":"tbl_twdbdata[[#This Row],[utility]]&tbl_twdbdata[[#This Row],[Year]]","v":"DUMAS2070"}]
[null,724,"DUNCANVILLE","C",2016,39826,39826,0,{"$f":"IF(tbl_twdbdata[[#This Row],[Year]]=2016,0,tbl_twdbdata[[#This Row],[effsave]]-0.6*SUMIFS(tbl_twdbdata[effsave],tbl_twdbdata[Year],2020,tbl_twdbdata[utility],tbl_twdbdata[[#This Row],[utility]]))","v":0},11500,93,927,0,946627000,127883000,211318000,0,17978840,134500376,{"$f":"tbl_twdbdata[[#This Row],[utility]]&tbl_twdbdata[[#This Row],[Year]]","v":"DUNCANVILLE2016"}]
[null,724,"DUNCANVILLE","C",2020,39256,43110,155305931,{"$f":"IF(tbl_twdbdata[[#This Row],[Year]]=2016,0,tbl_twdbdata[[#This Row],[effsave]]-0.6*SUMIFS(tbl_twdbdata[effsave],tbl_twdbdata[Year],2020,tbl_twdbdata[utility],tbl_twdbdata[[#This Row],[utility]]))","v":62122372.400000006},12629,102,1018,0,1039563123,140438051,232064372,0,19743932,147705095,{"$f":"tbl_twdbdata[[#This Row],[utility]]&tbl_twdbdata[[#This Row],[Year]]","v":"DUNCANVILLE2020"}]
[null,724,"DUNCANVILLE","C",2030,39256,47307,242084111,{"$f":"IF(tbl_twdbdata[[#This Row],[Year]]=2016,0,tbl_twdbdata[[#This Row],[effsave]]-0.6*SUMIFS(tbl_twdbdata[effsave],tbl_twdbdata[Year],2020,tbl_twdbdata[utility],tbl_twdbdata[[#This Row],[utility]]))","v":148900552.40000001},13859,112,1117,0,1140770417,154110482,254657139,0,21666114,162085013,{"$f":"tbl_twdbdata[[#This Row],[utility]]&tbl_twdbdata[[#This Row],[Year]]","v":"DUNCANVILLE2030"}]
[null,724,"DUNCANVILLE","C",2040,39256,47307,288359819,{"$f":"IF(tbl_twdbdata[[#This Row],[Year]]=2016,0,tbl_twdbdata[[#This Row],[effsave]]-0.6*SUMIFS(tbl_twdbdata[effsave],tbl_twdbdata[Year],2020,tbl_twdbdata[utility],tbl_twdbdata[[#This Row],[utility]]))","v":195176260.40000001},13859,123,1225,0,1140770417,154110482,254657139,0,21666114,162085013,{"$f":"tbl_twdbdata[[#This Row],[utility]]&tbl_twdbdata[[#This Row],[Year]]","v":"DUNCANVILLE2040"}]
[null,724,"DUNCANVILLE","C",2050,39256,47307,313742389,{"$f":"IF(tbl_twdbdata[[#This Row],[Year]]=2016,0,tbl_twdbdata[[#This Row],[effsave]]-0.6*SUMIFS(tbl_twdbdata[effsave],tbl_twdbdata[Year],2020,tbl_twdbdata[utility],tbl_twdbdata[[#This Row],[utility]]))","v":220558830.40000001},13859,135,1345,0,1140770417,154110482,254657139,0,21666114,162085013,{"$f":"tbl_twdbdata[[#This Row],[utility]]&tbl_twdbdata[[#This Row],[Year]]","v":"DUNCANVILLE2050"}]
[null,724,"DUNCANVILLE","C",2060,39256,47307,318404494,{"$f":"IF(tbl_twdbdata[[#This Row],[Year]]=2016,0,tbl_twdbdata[[#This Row],[effsave]]-0.6*SUMIFS(tbl_twdbdata[effsave],tbl_twdbdata[Year],2020,tbl_twdbdata[utility],tbl_twdbdata[[#This Row],[utility]]))","v":225220935.40000001},13859,148,1476,0,1140770417,154110482,254657139,0,21666114,162085013,{"$f":"tbl_twdbdata[[#This Row],[utility]]&tbl_twdbdata[[#This Row],[Year]]","v":"DUNCANVILLE2060"}]
[null,724,"DUNCANVILLE","C",2070,39256,47307,318749835,{"$f":"IF(tbl_twdbdata[[#This Row],[Year]]=2016,0,tbl_twdbdata[[#This Row],[effsave]]-0.6*SUMIFS(tbl_twdbdata[effsave],tbl_twdbdata[Year],2020,tbl_twdbdata[utility],tbl_twdbdata[[#This Row],[utility]]))","v":225566276.40000001},13859,162,1620,0,1140770417,154110482,254657139,0,21666114,162085013,{"$f":"tbl_twdbdata[[#This Row],[utility]]&tbl_twdbdata[[#This Row],[Year]]","v":"DUNCANVILLE2070"}]
[null,44,"EAGLE PASS","M",2016,64444,64444,0,{"$f":"IF(tbl_twdbdata[[#This Row],[Year]]=2016,0,tbl_twdbdata[[#This Row],[effsave]]-0.6*SUMIFS(tbl_twdbdata[effsave],tbl_twdbdata[Year],2020,tbl_twdbdata[utility],tbl_twdbdata[[#This Row],[utility]]))","v":0},15107,0,1356,0,1440255000,0,491412000,0,182538383,338852193,{"$f":"tbl_twdbdata[[#This Row],[utility]]&tbl_twdbdata[[#This Row],[Year]]","v":"EAGLE PASS2016"}]
[null,44,"EAGLE PASS","M",2020,51317,57119,204523147,{"$f":"IF(tbl_twdbdata[[#This Row],[Year]]=2016,0,tbl_twdbdata[[#This Row],[effsave]]-0.6*SUMIFS(tbl_twdbdata[effsave],tbl_twdbdata[Year],2020,tbl_twdbdata[utility],tbl_twdbdata[[#This Row],[utility]]))","v":81809258.800000012},16815,0,1509,0,1603093036,0,546971998,0,203176528,377163482,{"$f":"tbl_twdbdata[[#This Row],[utility]]&tbl_twdbdata[[#This Row],[Year]]","v":"EAGLE PASS2020"}]
[null,44,"EAGLE PASS","M",2030,51317,66607,333797650,{"$f":"IF(tbl_twdbdata[[#This Row],[Year]]=2016,0,tbl_twdbdata[[#This Row],[effsave]]-0.6*SUMIFS(tbl_twdbdata[effsave],tbl_twdbdata[Year],2020,tbl_twdbdata[utility],tbl_twdbdata[[#This Row],[utility]]))","v":211083761.80000001},19608,0,1760,0,1869381779,0,637829162,0,236926049,439813863,{"$f":"tbl_twdbdata[[#This Row],[utility]]&tbl_twdbdata[[#This Row],[Year]]","v":"EAGLE PASS2030"}]
[null,44,"EAGLE PASS","M",2040,51317,75457,444800151,{"$f":"IF(tbl_twdbdata[[#This Row],[Year]]=2016,0,tbl_twdbdata[[#This Row],[effsave]]-0.6*SUMIFS(tbl_twdbdata[effsave],tbl_twdbdata[Year],2020,tbl_twdbdata[utility],tbl_twdbdata[[#This Row],[utility]]))","v":322086262.80000001},22213,0,2052,0,2117764513,0,722576832,0,268406157,498251455,{"$f":"tbl_twdbdata[[#This Row],[utility]]&tbl_twdbdata[[#This Row],[Year]]","v":"EAGLE PASS2040"}]
[null,44,"EAGLE PASS","M",2050,51317,84618,534938072,{"$f":"IF(tbl_twdbdata[[#This Row],[Year]]=2016,0,tbl_twdbdata[[#This Row],[effsave]]-0.6*SUMIFS(tbl_twdbdata[effsave],tbl_twdbdata[Year],2020,tbl_twdbdata[utility],tbl_twdbdata[[#This Row],[utility]]))","v":412224183.80000001},24910,0,2393,0,2374875725,0,810302641,0,300992515,558742617,{"$f":"tbl_twdbdata[[#This Row],[utility]]&tbl_twdbdata[[#This Row],[Year]]","v":"EAGLE PASS2050"}]
[null,44,"EAGLE PASS","M",2060,51317,93399,599313363,{"$f":"IF(tbl_twdbdata[[#This Row],[Year]]=2016,0,tbl_twdbdata[[#This Row],[effsave]]-0.6*SUMIFS(tbl_twdbdata[effsave],tbl_twdbdata[Year],2020,tbl_twdbdata[utility],tbl_twdbdata[[#This Row],[utility]]))","v":476599474.80000001},27495,0,2791,0,2621321915,0,894389567,0,332227185,616724594,{"$f":"tbl_twdbdata[[#This Row],[utility]]&tbl_twdbdata[[#This Row],[Year]]","v":"EAGLE PASS2060"}]
[null,44,"EAGLE PASS","M",2070,51317,101833,656405335,{"$f":"IF(tbl_twdbdata[[#This Row],[Year]]=2016,0,tbl_twdbdata[[#This Row],[effsave]]-0.6*SUMIFS(tbl_twdbdata[effsave],tbl_twdbdata[Year],2020,tbl_twdbdata[utility],tbl_twdbdata[[#This Row],[utility]]))","v":533691446.80000001},29978,0,3255,0,2858029257,0,975153618,0,362227550,672415289,{"$f":"tbl_twdbdata[[#This Row],[utility]]&tbl_twdbdata[[#This Row],[Year]]","v":"EAGLE PASS2070"}]
[null,726,"EARLY","F",2016,2762,2762,0,{"$f":"IF(tbl_twdbdata[[#This Row],[Year]]=2016,0,tbl_twdbdata[[#This Row],[effsave]]-0.6*SUMIFS(tbl_twdbdata[effsave],tbl_twdbdata[Year],2020,tbl_twdbdata[utility],tbl_twdbdata[[#This Row],[utility]]))","v":0},1074,20,208,23,60373210,4439428,33170158,3211863,1471046,15017968,{"$f":"tbl_twdbdata[[#This Row],[utility]]&tbl_twdbdata[[#This Row],[Year]]","v":"EARLY2016"}]
[null,726,"EARLY","F",2020,2762,2907,9751095,{"$f":"IF(tbl_twdbdata[[#This Row],[Year]]=2016,0,tbl_twdbdata[[#This Row],[effsave]]-0.6*SUMIFS(tbl_twdbdata[effsave],tbl_twdbdata[Year],2020,tbl_twdbdata[utility],tbl_twdbdata[[#This Row],[utility]]))","v":3900438},1075,20,208,23,60435579,4444014,33204425,3215181,1472566,15033482,{"$f":"tbl_twdbdata[[#This Row],[utility]]&tbl_twdbdata[[#This Row],[Year]]","v":"EARLY2020"}]
[null,726,"EARLY","F",2030,2762,2978,14206698,{"$f":"IF(tbl_twdbdata[[#This Row],[Year]]=2016,0,tbl_twdbdata[[#This Row],[effsave]]-0.6*SUMIFS(tbl_twdbdata[effsave],tbl_twdbdata[Year],2020,tbl_twdbdata[utility],tbl_twdbdata[[#This Row],[utility]]))","v":8356041},1101,20,213,24,61911646,4552554,34015404,3293708,1508532,15400657,{"$f":"tbl_twdbdata[[#This Row],[utility]]&tbl_twdbdata[[#This Row],[Year]]","v":"EARLY2030"}]
[null,726,"EARLY","F",2040,2762,2978,17456738,{"$f":"IF(tbl_twdbdata[[#This Row],[Year]]=2016,0,tbl_twdbdata[[#This Row],[effsave]]-0.6*SUMIFS(tbl_twdbdata[effsave],tbl_twdbdata[Year],2020,tbl_twdbdata[utility],tbl_twdbdata[[#This Row],[utility]]))","v":11606081},1101,20,219,25,61911646,4552554,34015404,3293708,1508532,15400657,{"$f":"tbl_twdbdata[[#This Row],[utility]]&tbl_twdbdata[[#This Row],[Year]]","v":"EARLY2040"}]
[null,726,"EARLY","F",2050,2762,2978,19250239,{"$f":"IF(tbl_twdbdata[[#This Row],[Year]]=2016,0,tbl_twdbdata[[#This Row],[effsave]]-0.6*SUMIFS(tbl_twdbdata[effsave],tbl_twdbdata[Year],2020,tbl_twdbdata[utility],tbl_twdbdata[[#This Row],[utility]]))","v":13399582},1101,20,225,26,61911646,4552554,34015404,3293708,1508532,15400657,{"$f":"tbl_twdbdata[[#This Row],[utility]]&tbl_twdbdata[[#This Row],[Year]]","v":"EARLY2050"}]
[null,726,"EARLY","F",2060,2762,2978,19587199,{"$f":"IF(tbl_twdbdata[[#This Row],[Year]]=2016,0,tbl_twdbdata[[#This Row],[effsave]]-0.6*SUMIFS(tbl_twdbdata[effsave],tbl_twdbdata[Year],2020,tbl_twdbdata[utility],tbl_twdbdata[[#This Row],[utility]]))","v":13736542},1101,20,231,27,61911646,4552554,34015404,3293708,1508532,15400657,{"$f":"tbl_twdbdata[[#This Row],[utility]]&tbl_twdbdata[[#This Row],[Year]]","v":"EARLY2060"}]
[null,726,"EARLY","F",2070,2762,2978,19598069,{"$f":"IF(tbl_twdbdata[[#This Row],[Year]]=2016,0,tbl_twdbdata[[#This Row],[effsave]]-0.6*SUMIFS(tbl_twdbdata[effsave],tbl_twdbdata[Year],2020,tbl_twdbdata[utility],tbl_twdbdata[[#This Row],[utility]]))","v":13747412},1101,20,237,28,61911646,4552554,34015404,3293708,1508532,15400657,{"$f":"tbl_twdbdata[[#This Row],[utility]]&tbl_twdbdata[[#This Row],[Year]]","v":"EARLY2070"}]
[null,45,"EAST CEDAR CREEK FWSD","C",2016,18225,18225,0,{"$f":"IF(tbl_twdbdata[[#This Row],[Year]]=2016,0,tbl_twdbdata[[#This Row],[effsave]]-0.6*SUMIFS(tbl_twdbdata[effsave],tbl_twdbdata[Year],2020,tbl_twdbdata[utility],tbl_twdbdata[[#This Row],[utility]]))","v":0},5979,89,313,35,268508569,5512377,38804236,9360308,53269214,27890442,{"$f":"tbl_twdbdata[[#This Row],[utility]]&tbl_twdbdata[[#This Row],[Year]]","v":"EAST CEDAR CREEK FWSD2016"}]
[null,45,"EAST CEDAR CREEK FWSD","C",2020,13197,20100,36682500,{"$f":"IF(tbl_twdbdata[[#This Row],[Year]]=2016,0,tbl_twdbdata[[#This Row],[effsave]]-0.6*SUMIFS(tbl_twdbdata[effsave],tbl_twdbdata[Year],2020,tbl_twdbdata[utility],tbl_twdbdata[[#This Row],[utility]]))","v":14673000},9106,136,477,53,408958266,8395755,59101701,14256436,81132924,42479191,{"$f":"tbl_twdbdata[[#This Row],[utility]]&tbl_twdbdata[[#This Row],[Year]]","v":"EAST CEDAR CREEK FWSD2020"}]
[null,45,"EAST CEDAR CREEK FWSD","C",2030,13197,22320,40734000,{"$f":"IF(tbl_twdbdata[[#This Row],[Year]]=2016,0,tbl_twdbdata[[#This Row],[effsave]]-0.6*SUMIFS(tbl_twdbdata[effsave],tbl_twdbdata[Year],2020,tbl_twdbdata[utility],tbl_twdbdata[[#This Row],[utility]]))","v":18724500},10112,151,530,59,454126791,9323047,65629352,15831027,90093874,47170923,{"$f":"tbl_twdbdata[[#This Row],[utility]]&tbl_twdbdata[[#This Row],[Year]]","v":"EAST CEDAR CREEK FWSD2030"}]
[null,45,"EAST CEDAR CREEK FWSD","C",2040,13197,24840,45333000,{"$f":"IF(tbl_twdbdata[[#This Row],[Year]]=2016,0,tbl_twdbdata[[#This Row],[effsave]]-0.6*SUMIFS(tbl_twdbdata[effsave],tbl_twdbdata[Year],2020,tbl_twdbdata[utility],tbl_twdbdata[[#This Row],[utility]]))","v":23323500},11254,168,589,66,505399171,10375649,73039118,17618401,100265763,52496672,{"$f":"tbl_twdbdata[[#This Row],[utility]]&tbl_twdbdata[[#This Row],[Year]]","v":"EAST CEDAR CREEK FWSD2040"}]
[null,45,"EAST CEDAR CREEK FWSD","C",2050,13197,27570,50315250,{"$f":"IF(tbl_twdbdata[[#This Row],[Year]]=2016,0,tbl_twdbdata[[#This Row],[effsave]]-0.6*SUMIFS(tbl_twdbdata[effsave],tbl_twdbdata[Year],2020,tbl_twdbdata[utility],tbl_twdbdata[[#This Row],[utility]]))","v":28305750},12491,187,654,73,560944249,11515968,81066364,19554723,111285309,58266234,{"$f":"tbl_twdbdata[[#This Row],[utility]]&tbl_twdbdata[[#This Row],[Year]]","v":"EAST CEDAR CREEK FWSD2050"}]
[null,45,"EAST CEDAR CREEK FWSD","C",2060,13197,30630,55899750,{"$f":"IF(tbl_twdbdata[[#This Row],[Year]]=2016,0,tbl_twdbdata[[#This Row],[effsave]]-0.6*SUMIFS(tbl_twdbdata[effsave],tbl_twdbdata[Year],2020,tbl_twdbdata[utility],tbl_twdbdata[[#This Row],[utility]]))","v":33890250},13877,208,726,81,623203567,12794128,90063937,21725106,123636888,64733215,{"$f":"tbl_twdbdata[[#This Row],[utility]]&tbl_twdbdata[[#This Row],[Year]]","v":"EAST CEDAR CREEK FWSD2060"}]
[null,45,"EAST CEDAR CREEK FWSD","C",2070,13197,34050,62141250,{"$f":"IF(tbl_twdbdata[[#This Row],[Year]]=2016,0,tbl_twdbdata[[#This Row],[effsave]]-0.6*SUMIFS(tbl_twdbdata[effsave],tbl_twdbdata[Year],2020,tbl_twdbdata[utility],tbl_twdbdata[[#This Row],[utility]]))","v":40131750},15426,231,806,90,692787511,14222659,100120047,24150828,137441594,71961018,{"$f":"tbl_twdbdata[[#This Row],[utility]]&tbl_twdbdata[[#This Row],[Year]]","v":"EAST CEDAR CREEK FWSD2070"}]
[null,3161,"EAST CENTRAL SUD","L",2016,15367,15367,0,{"$f":"IF(tbl_twdbdata[[#This Row],[Year]]=2016,0,tbl_twdbdata[[#This Row],[effsave]]-0.6*SUMIFS(tbl_twdbdata[effsave],tbl_twdbdata[Year],2020,tbl_twdbdata[utility],tbl_twdbdata[[#This Row],[utility]]))","v":0},4942,103,84,0,343374635,19715242,43199419,0,null,null,{"$f":"tbl_twdbdata[[#This Row],[utility]]&tbl_twdbdata[[#This Row],[Year]]","v":"EAST CENTRAL SUD2016"}]
[null,3161,"EAST CENTRAL SUD","L",2020,13888,14900,55255160,{"$f":"IF(tbl_twdbdata[[#This Row],[Year]]=2016,0,tbl_twdbdata[[#This Row],[effsave]]-0.6*SUMIFS(tbl_twdbdata[effsave],tbl_twdbdata[Year],2020,tbl_twdbdata[utility],tbl_twdbdata[[#This Row],[utility]]))","v":22102064},5302,111,90,0,368395886,21151865,46347303,0,null,null,{"$f":"tbl_twdbdata[[#This Row],[utility]]&tbl_twdbdata[[#This Row],[Year]]","v":"EAST CENTRAL SUD2020"}]
[null,3161,"EAST CENTRAL SUD","L",2030,13888,16859,89287793,{"$f":"IF(tbl_twdbdata[[#This Row],[Year]]=2016,0,tbl_twdbdata[[#This Row],[effsave]]-0.6*SUMIFS(tbl_twdbdata[effsave],tbl_twdbdata[Year],2020,tbl_twdbdata[utility],tbl_twdbdata[[#This Row],[utility]]))","v":56134697},5999,126,102,0,416831291,23932838,52440885,0,null,null,{"$f":"tbl_twdbdata[[#This Row],[utility]]&tbl_twdbdata[[#This Row],[Year]]","v":"EAST CENTRAL SUD2030"}]
[null,3161,"EAST CENTRAL SUD","L",2040,13888,18639,118376289,{"$f":"IF(tbl_twdbdata[[#This Row],[Year]]=2016,0,tbl_twdbdata[[#This Row],[effsave]]-0.6*SUMIFS(tbl_twdbdata[effsave],tbl_twdbdata[Year],2020,tbl_twdbdata[utility],tbl_twdbdata[[#This Row],[utility]]))","v":85223193},6632,143,115,0,460841001,26459705,57977677,0,null,null,{"$f":"tbl_twdbdata[[#This Row],[utility]]&tbl_twdbdata[[#This Row],[Year]]","v":"EAST CENTRAL SUD2040"}]
[null,3161,"EAST CENTRAL SUD","L",2050,13888,20441,140266142,{"$f":"IF(tbl_twdbdata[[#This Row],[Year]]=2016,0,tbl_twdbdata[[#This Row],[effsave]]-0.6*SUMIFS(tbl_twdbdata[effsave],tbl_twdbdata[Year],2020,tbl_twdbdata[utility],tbl_twdbdata[[#This Row],[utility]]))","v":107113046},7273,162,130,0,505394651,29017803,63582901,0,null,null,{"$f":"tbl_twdbdata[[#This Row],[utility]]&tbl_twdbdata[[#This Row],[Year]]","v":"EAST CENTRAL SUD2050"}]
[null,3161,"EAST CENTRAL SUD","L",2060,13888,22072,153633260,{"$f":"IF(tbl_twdbdata[[#This Row],[Year]]=2016,0,tbl_twdbdata[[#This Row],[effsave]]-0.6*SUMIFS(tbl_twdbdata[effsave],tbl_twdbdata[Year],2020,tbl_twdbdata[utility],tbl_twdbdata[[#This Row],[utility]]))","v":120480164},7853,183,147,0,545720402,31333151,68656220,0,null,null,{"$f":"tbl_twdbdata[[#This Row],[utility]]&tbl_twdbdata[[#This Row],[Year]]","v":"EAST CENTRAL SUD2060"}]
[null,3161,"EAST CENTRAL SUD","L",2070,13888,23672,165374959,{"$f":"IF(tbl_twdbdata[[#This Row],[Year]]=2016,0,tbl_twdbdata[[#This Row],[effsave]]-0.6*SUMIFS(tbl_twdbdata[effsave],tbl_twdbdata[Year],2020,tbl_twdbdata[utility],tbl_twdbdata[[#This Row],[utility]]))","v":132221863},8422,207,166,0,585279692,33604492,73633112,0,null,null,{"$f":"tbl_twdbdata[[#This Row],[utility]]&tbl_twdbdata[[#This Row],[Year]]","v":"EAST CENTRAL SUD2070"}]
[null,730,"EAST FORK SUD","C",2016,12419,12419,0,{"$f":"IF(tbl_twdbdata[[#This Row],[Year]]=2016,0,tbl_twdbdata[[#This Row],[effsave]]-0.6*SUMIFS(tbl_twdbdata[effsave],tbl_twdbdata[Year],2020,tbl_twdbdata[utility],tbl_twdbdata[[#This Row],[utility]]))","v":0},3938,6,27,0,348674900,12013100,10874000,0,4990944,22722567,{"$f":"tbl_twdbdata[[#This Row],[utility]]&tbl_twdbdata[[#This Row],[Year]]","v":"EAST FORK SUD2016"}]
[null,730,"EAST FORK SUD","C",2020,12319,15700,70084015,{"$f":"IF(tbl_twdbdata[[#This Row],[Year]]=2016,0,tbl_twdbdata[[#This Row],[effsave]]-0.6*SUMIFS(tbl_twdbdata[effsave],tbl_twdbdata[Year],2020,tbl_twdbdata[utility],tbl_twdbdata[[#This Row],[utility]]))","v":28033606},5019,8,34,0,444370154,15310144,13858414,0,6360729,28958869,{"$f":"tbl_twdbdata[[#This Row],[utility]]&tbl_twdbdata[[#This Row],[Year]]","v":"EAST FORK SUD2020"}]
[null,730,"EAST FORK SUD","C",2030,12319,17500,106288000,{"$f":"IF(tbl_twdbdata[[#This Row],[Year]]=2016,0,tbl_twdbdata[[#This Row],[effsave]]-0.6*SUMIFS(tbl_twdbdata[effsave],tbl_twdbdata[Year],2020,tbl_twdbdata[utility],tbl_twdbdata[[#This Row],[utility]]))","v":64237591},5594,9,38,0,495317051,17065447,15447276,0,7089985,32278994,{"$f":"tbl_twdbdata[[#This Row],[utility]]&tbl_twdbdata[[#This Row],[Year]]","v":"EAST FORK SUD2030"}]
[null,730,"EAST FORK SUD","C",2040,12319,19500,134947800,{"$f":"IF(tbl_twdbdata[[#This Row],[Year]]=2016,0,tbl_twdbdata[[#This Row],[effsave]]-0.6*SUMIFS(tbl_twdbdata[effsave],tbl_twdbdata[Year],2020,tbl_twdbdata[utility],tbl_twdbdata[[#This Row],[utility]]))","v":92897391},6233,10,42,0,551924714,19015784,17212679,0,7900269,35968022,{"$f":"tbl_twdbdata[[#This Row],[utility]]&tbl_twdbdata[[#This Row],[Year]]","v":"EAST FORK SUD2040"}]
[null,730,"EAST FORK SUD","C",2050,12319,21000,152686800,{"$f":"IF(tbl_twdbdata[[#This Row],[Year]]=2016,0,tbl_twdbdata[[#This Row],[effsave]]-0.6*SUMIFS(tbl_twdbdata[effsave],tbl_twdbdata[Year],2020,tbl_twdbdata[utility],tbl_twdbdata[[#This Row],[utility]]))","v":110636391},6712,11,47,0,594380461,20478537,18536731,0,8507982,38734793,{"$f":"tbl_twdbdata[[#This Row],[utility]]&tbl_twdbdata[[#This Row],[Year]]","v":"EAST FORK SUD2050"}]
[null,730,"EAST FORK SUD","C",2060,12319,23000,168907400,{"$f":"IF(tbl_twdbdata[[#This Row],[Year]]=2016,0,tbl_twdbdata[[#This Row],[effsave]]-0.6*SUMIFS(tbl_twdbdata[effsave],tbl_twdbdata[Year],2020,tbl_twdbdata[utility],tbl_twdbdata[[#This Row],[utility]]))","v":126856991},7351,12,52,0,650988124,22428874,20302134,0,9318266,42423821,{"$f":"tbl_twdbdata[[#This Row],[utility]]&tbl_twdbdata[[#This Row],[Year]]","v":"EAST FORK SUD2060"}]
[null,730,"EAST FORK SUD","C",2070,12319,25000,184325000,{"$f":"IF(tbl_twdbdata[[#This Row],[Year]]=2016,0,tbl_twdbdata[[#This Row],[effsave]]-0.6*SUMIFS(tbl_twdbdata[effsave],tbl_twdbdata[Year],2020,tbl_twdbdata[utility],tbl_twdbdata[[#This Row],[utility]]))","v":142274591},7990,13,58,0,707595787,24379211,22067537,0,10128550,46112849,{"$f":"tbl_twdbdata[[#This Row],[utility]]&tbl_twdbdata[[#This Row],[Year]]","v":"EAST FORK SUD2070"}]
[null,734,"EAST RIO HONDO WSC","M",2016,23085,24906,0,{"$f":"IF(tbl_twdbdata[[#This Row],[Year]]=2016,0,tbl_twdbdata[[#This Row],[effsave]]-0.6*SUMIFS(tbl_twdbdata[effsave],tbl_twdbdata[Year],2020,tbl_twdbdata[utility],tbl_twdbdata[[#This Row],[utility]]))","v":0},7632,0,63,0,737506900,0,22111000,0,16782960,160096384,{"$f":"tbl_twdbdata[[#This Row],[utility]]&tbl_twdbdata[[#This Row],[Year]]","v":"EAST RIO HONDO WSC2016"}]
[null,734,"EAST RIO HONDO WSC","M",2020,23085,28015,78736158,{"$f":"IF(tbl_twdbdata[[#This Row],[Year]]=2016,0,tbl_twdbdata[[#This Row],[effsave]]-0.6*SUMIFS(tbl_twdbdata[effsave],tbl_twdbdata[Year],2020,tbl_twdbdata[utility],tbl_twdbdata[[#This Row],[utility]]))","v":31494463.200000003},8493,0,70,0,820705295,0,24605349,0,18676251,178156910,{"$f":"tbl_twdbdata[[#This Row],[utility]]&tbl_twdbdata[[#This Row],[Year]]","v":"EAST RIO HONDO WSC2020"}]
[null,734,"EAST RIO HONDO WSC","M",2030,23085,32728,124474402,{"$f":"IF(tbl_twdbdata[[#This Row],[Year]]=2016,0,tbl_twdbdata[[#This Row],[effsave]]-0.6*SUMIFS(tbl_twdbdata[effsave],tbl_twdbdata[Year],2020,tbl_twdbdata[utility],tbl_twdbdata[[#This Row],[utility]]))","v":77232707.200000003},9922,0,81,0,958773618,0,28744739,0,21818181,208128479,{"$f":"tbl_twdbdata[[#This Row],[utility]]&tbl_twdbdata[[#This Row],[Year]]","v":"EAST RIO HONDO WSC2030"}]
[null,734,"EAST RIO HONDO WSC","M",2040,23085,33386,145621386,{"$f":"IF(tbl_twdbdata[[#This Row],[Year]]=2016,0,tbl_twdbdata[[#This Row],[effsave]]-0.6*SUMIFS(tbl_twdbdata[effsave],tbl_twdbdata[Year],2020,tbl_twdbdata[utility],tbl_twdbdata[[#This Row],[utility]]))","v":98379691.200000003},10121,0,95,0,978049866,0,29322655,0,22256838,212312925,{"$f":"tbl_twdbdata[[#This Row],[utility]]&tbl_twdbdata[[#This Row],[Year]]","v":"EAST RIO HONDO WSC2040"}]
[null,734,"EAST RIO HONDO WSC","M",2050,23085,37205,173006971,{"$f":"IF(tbl_twdbdata[[#This Row],[Year]]=2016,0,tbl_twdbdata[[#This Row],[effsave]]-0.6*SUMIFS(tbl_twdbdata[effsave],tbl_twdbdata[Year],2020,tbl_twdbdata[utility],tbl_twdbdata[[#This Row],[utility]]))","v":125765276.2},11279,0,111,0,1089928271,0,32676852,0,24802781,236599244,{"$f":"tbl_twdbdata[[#This Row],[utility]]&tbl_twdbdata[[#This Row],[Year]]","v":"EAST RIO HONDO WSC2050"}]
[null,734,"EAST RIO HONDO WSC","M",2060,23085,40961,194509453,{"$f":"IF(tbl_twdbdata[[#This Row],[Year]]=2016,0,tbl_twdbdata[[#This Row],[effsave]]-0.6*SUMIFS(tbl_twdbdata[effsave],tbl_twdbdata[Year],2020,tbl_twdbdata[utility],tbl_twdbdata[[#This Row],[utility]]))","v":147267758.19999999},12418,0,129,0,1199961078,0,35975717,0,27306725,260484925,{"$f":"tbl_twdbdata[[#This Row],[utility]]&tbl_twdbdata[[#This Row],[Year]]","v":"EAST RIO HONDO WSC2060"}]
[null,734,"EAST RIO HONDO WSC","M",2070,23085,45599,218031619,{"$f":"IF(tbl_twdbdata[[#This Row],[Year]]=2016,0,tbl_twdbdata[[#This Row],[effsave]]-0.6*SUMIFS(tbl_twdbdata[effsave],tbl_twdbdata[Year],2020,tbl_twdbdata[utility],tbl_twdbdata[[#This Row],[utility]]))","v":170789924.19999999},13824,0,150,0,1335832260,0,40049235,0,30398656,289979544,{"$f":"tbl_twdbdata[[#This Row],[utility]]&tbl_twdbdata[[#This Row],[Year]]","v":"EAST RIO HONDO WSC2070"}]
[null,735,"EAST TAWAKONI","D",2016,2000,2000,0,{"$f":"IF(tbl_twdbdata[[#This Row],[Year]]=2016,0,tbl_twdbdata[[#This Row],[effsave]]-0.6*SUMIFS(tbl_twdbdata[effsave],tbl_twdbdata[Year],2020,tbl_twdbdata[utility],tbl_twdbdata[[#This Row],[utility]]))","v":0},860,3,15,0,34484950,1238300,1722660,0,2656301,8333831,{"$f":"tbl_twdbdata[[#This Row],[utility]]&tbl_twdbdata[[#This Row],[Year]]","v":"EAST TAWAKONI2016"}]
[null,735,"EAST TAWAKONI","D",2020,994,1158,3901244,{"$f":"IF(tbl_twdbdata[[#This Row],[Year]]=2016,0,tbl_twdbdata[[#This Row],[effsave]]-0.6*SUMIFS(tbl_twdbdata[effsave],tbl_twdbdata[Year],2020,tbl_twdbdata[utility],tbl_twdbdata[[#This Row],[utility]]))","v":1560497.6},1002,3,17,0,40174620,1442607,2006882,0,3094564,9708829,{"$f":"tbl_twdbdata[[#This Row],[utility]]&tbl_twdbdata[[#This Row],[Year]]","v":"EAST TAWAKONI2020"}]
[null,735,"EAST TAWAKONI","D",2030,994,1228,5808931,{"$f":"IF(tbl_twdbdata[[#This Row],[Year]]=2016,0,tbl_twdbdata[[#This Row],[effsave]]-0.6*SUMIFS(tbl_twdbdata[effsave],tbl_twdbdata[Year],2020,tbl_twdbdata[utility],tbl_twdbdata[[#This Row],[utility]]))","v":3468184.6},1063,3,18,0,42603138,1529811,2128196,0,3281627,10295718,{"$f":"tbl_twdbdata[[#This Row],[utility]]&tbl_twdbdata[[#This Row],[Year]]","v":"EAST TAWAKONI2030"}]
[null,735,"EAST TAWAKONI","D",2040,994,1248,7101557,{"$f":"IF(tbl_twdbdata[[#This Row],[Year]]=2016,0,tbl_twdbdata[[#This Row],[effsave]]-0.6*SUMIFS(tbl_twdbdata[effsave],tbl_twdbdata[Year],2020,tbl_twdbdata[utility],tbl_twdbdata[[#This Row],[utility]]))","v":4760810.5999999996},1080,3,19,0,43297000,1554726,2162857,0,3335074,10463401,{"$f":"tbl_twdbdata[[#This Row],[utility]]&tbl_twdbdata[[#This Row],[Year]]","v":"EAST TAWAKONI2040"}]
[null,735,"EAST TAWAKONI","D",2050,994,1262,7839923,{"$f":"IF(tbl_twdbdata[[#This Row],[Year]]=2016,0,tbl_twdbdata[[#This Row],[effsave]]-0.6*SUMIFS(tbl_twdbdata[effsave],tbl_twdbdata[Year],2020,tbl_twdbdata[utility],tbl_twdbdata[[#This Row],[utility]]))","v":5499176.5999999996},1092,3,20,0,43782704,1572167,2187120,0,3372487,10580779,{"$f":"tbl_twdbdata[[#This Row],[utility]]&tbl_twdbdata[[#This Row],[Year]]","v":"EAST TAWAKONI2050"}]
[null,735,"EAST TAWAKONI","D",2060,994,1268,8006786,{"$f":"IF(tbl_twdbdata[[#This Row],[Year]]=2016,0,tbl_twdbdata[[#This Row],[effsave]]-0.6*SUMIFS(tbl_twdbdata[effsave],tbl_twdbdata[Year],2020,tbl_twdbdata[utility],tbl_twdbdata[[#This Row],[utility]]))","v":5666039.5999999996},1097,3,21,0,43990863,1579642,2197518,0,3388521,10631084,{"$f":"tbl_twdbdata[[#This Row],[utility]]&tbl_twdbdata[[#This Row],[Year]]","v":"EAST TAWAKONI2060"}]
[null,735,"EAST TAWAKONI","D",2070,994,1270,8028686,{"$f":"IF(tbl_twdbdata[[#This Row],[Year]]=2016,0,tbl_twdbdata[[#This Row],[effsave]]-0.6*SUMIFS(tbl_twdbdata[effsave],tbl_twdbdata[Year],2020,tbl_twdbdata[utility],tbl_twdbdata[[#This Row],[utility]]))","v":5687939.5999999996},1099,3,22,0,44060249,1582134,2200984,0,3393866,10647852,{"$f":"tbl_twdbdata[[#This Row],[utility]]&tbl_twdbdata[[#This Row],[Year]]","v":"EAST TAWAKONI2070"}]
[null,736,"EASTLAND","G",2016,3862,3862,0,{"$f":"IF(tbl_twdbdata[[#This Row],[Year]]=2016,0,tbl_twdbdata[[#This Row],[effsave]]-0.6*SUMIFS(tbl_twdbdata[effsave],tbl_twdbdata[Year],2020,tbl_twdbdata[utility],tbl_twdbdata[[#This Row],[utility]]))","v":0},1440,14,320,0,90733400,8477600,68518400,0,2421495,23568697,{"$f":"tbl_twdbdata[[#This Row],[utility]]&tbl_twdbdata[[#This Row],[Year]]","v":"EASTLAND2016"}]
[null,736,"EASTLAND","G",2020,3862,3946,13452309,{"$f":"IF(tbl_twdbdata[[#This Row],[Year]]=2016,0,tbl_twdbdata[[#This Row],[effsave]]-0.6*SUMIFS(tbl_twdbdata[effsave],tbl_twdbdata[Year],2020,tbl_twdbdata[utility],tbl_twdbdata[[#This Row],[utility]]))","v":5380923.6000000006},1441,14,320,0,90825468,8486202,68587927,0,2423952,23592612,{"$f":"tbl_twdbdata[[#This Row],[utility]]&tbl_twdbdata[[#This Row],[Year]]","v":"EASTLAND2020"}]
[null,736,"EASTLAND","G",2030,3862,4032,19705795,{"$f":"IF(tbl_twdbdata[[#This Row],[Year]]=2016,0,tbl_twdbdata[[#This Row],[effsave]]-0.6*SUMIFS(tbl_twdbdata[effsave],tbl_twdbdata[Year],2020,tbl_twdbdata[utility],tbl_twdbdata[[#This Row],[utility]]))","v":11634409.600000001},1472,14,327,0,92804938,8671152,70082748,0,2476780,24106795,{"$f":"tbl_twdbdata[[#This Row],[utility]]&tbl_twdbdata[[#This Row],[Year]]","v":"EASTLAND2030"}]
[null,736,"EASTLAND","G",2040,3862,4035,24389154,{"$f":"IF(tbl_twdbdata[[#This Row],[Year]]=2016,0,tbl_twdbdata[[#This Row],[effsave]]-0.6*SUMIFS(tbl_twdbdata[effsave],tbl_twdbdata[Year],2020,tbl_twdbdata[utility],tbl_twdbdata[[#This Row],[utility]]))","v":16317768.600000001},1473,14,334,0,92873989,8677604,70134892,0,2478623,24124732,{"$f":"tbl_twdbdata[[#This Row],[utility]]&tbl_twdbdata[[#This Row],[Year]]","v":"EASTLAND2040"}]
[null,736,"EASTLAND","G",2050,3862,4035,26951783,{"$f":"IF(tbl_twdbdata[[#This Row],[Year]]=2016,0,tbl_twdbdata[[#This Row],[effsave]]-0.6*SUMIFS(tbl_twdbdata[effsave],tbl_twdbdata[Year],2020,tbl_twdbdata[utility],tbl_twdbdata[[#This Row],[utility]]))","v":18880397.600000001},1473,14,341,0,92873989,8677604,70134892,0,2478623,24124732,{"$f":"tbl_twdbdata[[#This Row],[utility]]&tbl_twdbdata[[#This Row],[Year]]","v":"EASTLAND2050"}]
[null,736,"EASTLAND","G",2060,3862,4035,27393615,{"$f":"IF(tbl_twdbdata[[#This Row],[Year]]=2016,0,tbl_twdbdata[[#This Row],[effsave]]-0.6*SUMIFS(tbl_twdbdata[effsave],tbl_twdbdata[Year],2020,tbl_twdbdata[utility],tbl_twdbdata[[#This Row],[utility]]))","v":19322229.600000001},1473,14,348,0,92873989,8677604,70134892,0,2478623,24124732,{"$f":"tbl_twdbdata[[#This Row],[utility]]&tbl_twdbdata[[#This Row],[Year]]","v":"EASTLAND2060"}]
[null,736,"EASTLAND","G",2070,3862,4035,27408343,{"$f":"IF(tbl_twdbdata[[#This Row],[Year]]=2016,0,tbl_twdbdata[[#This Row],[effsave]]-0.6*SUMIFS(tbl_twdbdata[effsave],tbl_twdbdata[Year],2020,tbl_twdbdata[utility],tbl_twdbdata[[#This Row],[utility]]))","v":19336957.600000001},1473,14,355,0,92873989,8677604,70134892,0,2478623,24124732,{"$f":"tbl_twdbdata[[#This Row],[utility]]&tbl_twdbdata[[#This Row],[Year]]","v":"EASTLAND2070"}]
[null,740,"EDCOUCH","M",2016,3606,3606,0,{"$f":"IF(tbl_twdbdata[[#This Row],[Year]]=2016,0,tbl_twdbdata[[#This Row],[effsave]]-0.6*SUMIFS(tbl_twdbdata[effsave],tbl_twdbdata[Year],2020,tbl_twdbdata[utility],tbl_twdbdata[[#This Row],[utility]]))","v":0},766,122,70,0,66946840,6236960,4026955,0,25000,3598835,{"$f":"tbl_twdbdata[[#This Row],[utility]]&tbl_twdbdata[[#This Row],[Year]]","v":"EDCOUCH2016"}]
[null,740,"EDCOUCH","M",2020,3606,3837,15839712,{"$f":"IF(tbl_twdbdata[[#This Row],[Year]]=2016,0,tbl_twdbdata[[#This Row],[effsave]]-0.6*SUMIFS(tbl_twdbdata[effsave],tbl_twdbdata[Year],2020,tbl_twdbdata[utility],tbl_twdbdata[[#This Row],[utility]]))","v":6335884.8000000007},792,126,72,0,69182608,6445251,4161440,0,25835,3719022,{"$f":"tbl_twdbdata[[#This Row],[utility]]&tbl_twdbdata[[#This Row],[Year]]","v":"EDCOUCH2020"}]
[null,740,"EDCOUCH","M",2030,3606,4765,27514540,{"$f":"IF(tbl_twdbdata[[#This Row],[Year]]=2016,0,tbl_twdbdata[[#This Row],[effsave]]-0.6*SUMIFS(tbl_twdbdata[effsave],tbl_twdbdata[Year],2020,tbl_twdbdata[utility],tbl_twdbdata[[#This Row],[utility]]))","v":18010712.800000001},984,156,89,0,85914810,8004071,5167908,0,32083,4618488,{"$f":"tbl_twdbdata[[#This Row],[utility]]&tbl_twdbdata[[#This Row],[Year]]","v":"EDCOUCH2030"}]
[null,740,"EDCOUCH","M",2040,3606,5696,38275126,{"$f":"IF(tbl_twdbdata[[#This Row],[Year]]=2016,0,tbl_twdbdata[[#This Row],[effsave]]-0.6*SUMIFS(tbl_twdbdata[effsave],tbl_twdbdata[Year],2020,tbl_twdbdata[utility],tbl_twdbdata[[#This Row],[utility]]))","v":28771298.800000001},1176,194,111,0,102701103,9567930,6177629,0,38351,5520862,{"$f":"tbl_twdbdata[[#This Row],[utility]]&tbl_twdbdata[[#This Row],[Year]]","v":"EDCOUCH2040"}]
[null,740,"EDCOUCH","M",2050,3606,6629,47302887,{"$f":"IF(tbl_twdbdata[[#This Row],[Year]]=2016,0,tbl_twdbdata[[#This Row],[effsave]]-0.6*SUMIFS(tbl_twdbdata[effsave],tbl_twdbdata[Year],2020,tbl_twdbdata[utility],tbl_twdbdata[[#This Row],[utility]]))","v":37799059.799999997},1369,241,138,0,119523457,11135149,7189519,0,44633,6425175,{"$f":"tbl_twdbdata[[#This Row],[utility]]&tbl_twdbdata[[#This Row],[Year]]","v":"EDCOUCH2050"}]
[null,740,"EDCOUCH","M",2060,3606,7562,54595371,{"$f":"IF(tbl_twdbdata[[#This Row],[Year]]=2016,0,tbl_twdbdata[[#This Row],[effsave]]-0.6*SUMIFS(tbl_twdbdata[effsave],tbl_twdbdata[Year],2020,tbl_twdbdata[utility],tbl_twdbdata[[#This Row],[utility]]))","v":45091543.799999997},1562,299,171,0,136345811,12702368,8201409,0,50915,7329488,{"$f":"tbl_twdbdata[[#This Row],[utility]]&tbl_twdbdata[[#This Row],[Year]]","v":"EDCOUCH2060"}]
[null,740,"EDCOUCH","M",2070,3606,8469,61390934,{"$f":"IF(tbl_twdbdata[[#This Row],[Year]]=2016,0,tbl_twdbdata[[#This Row],[effsave]]-0.6*SUMIFS(tbl_twdbdata[effsave],tbl_twdbdata[Year],2020,tbl_twdbdata[utility],tbl_twdbdata[[#This Row],[utility]]))","v":51887106.799999997},1749,371,212,0,152699375,14225913,9185101,0,57022,8208600,{"$f":"tbl_twdbdata[[#This Row],[utility]]&tbl_twdbdata[[#This Row],[Year]]","v":"EDCOUCH2070"}]
[null,741,"EDEN","F",2016,2766,2766,0,{"$f":"IF(tbl_twdbdata[[#This Row],[Year]]=2016,0,tbl_twdbdata[[#This Row],[effsave]]-0.6*SUMIFS(tbl_twdbdata[effsave],tbl_twdbdata[Year],2020,tbl_twdbdata[utility],tbl_twdbdata[[#This Row],[utility]]))","v":0},470,36,107,0,24998900,818600,86102800,0,1726837,24499790,{"$f":"tbl_twdbdata[[#This Row],[utility]]&tbl_twdbdata[[#This Row],[Year]]","v":"EDEN2016"}]
[null,741,"EDEN","F",2020,1378,1264,3796993,{"$f":"IF(tbl_twdbdata[[#This Row],[Year]]=2016,0,tbl_twdbdata[[#This Row],[effsave]]-0.6*SUMIFS(tbl_twdbdata[effsave],tbl_twdbdata[Year],2020,tbl_twdbdata[utility],tbl_twdbdata[[#This Row],[utility]]))","v":1518797.2000000002},431,33,99,0,22930776,750878,78979636,0,1583978,22472957,{"$f":"tbl_twdbdata[[#This Row],[utility]]&tbl_twdbdata[[#This Row],[Year]]","v":"EDEN2020"}]
[null,741,"EDEN","F",2030,1378,1310,5297902,{"$f":"IF(tbl_twdbdata[[#This Row],[Year]]=2016,0,tbl_twdbdata[[#This Row],[effsave]]-0.6*SUMIFS(tbl_twdbdata[effsave],tbl_twdbdata[Year],2020,tbl_twdbdata[utility],tbl_twdbdata[[#This Row],[utility]]))","v":3019706.2},447,34,103,0,23765282,778204,81853895,0,1641623,23290802,{"$f":"tbl_twdbdata[[#This Row],[utility]]&tbl_twdbdata[[#This Row],[Year]]","v":"EDEN2030"}]
[null,741,"EDEN","F",2040,1378,1310,6292454,{"$f":"IF(tbl_twdbdata[[#This Row],[Year]]=2016,0,tbl_twdbdata[[#This Row],[effsave]]-0.6*SUMIFS(tbl_twdbdata[effsave],tbl_twdbdata[Year],2020,tbl_twdbdata[utility],tbl_twdbdata[[#This Row],[utility]]))","v":4014258.2},447,35,107,0,23765282,778204,81853895,0,1641623,23290802,{"$f":"tbl_twdbdata[[#This Row],[utility]]&tbl_twdbdata[[#This Row],[Year]]","v":"EDEN2040"}]
[null,741,"EDEN","F",2050,1378,1310,6861453,{"$f":"IF(tbl_twdbdata[[#This Row],[Year]]=2016,0,tbl_twdbdata[[#This Row],[effsave]]-0.6*SUMIFS(tbl_twdbdata[effsave],tbl_twdbdata[Year],2020,tbl_twdbdata[utility],tbl_twdbdata[[#This Row],[utility]]))","v":4583257.2},447,36,111,0,23765282,778204,81853895,0,1641623,23290802,{"$f":"tbl_twdbdata[[#This Row],[utility]]&tbl_twdbdata[[#This Row],[Year]]","v":"EDEN2050"}]
[null,741,"EDEN","F",2060,1378,1310,7004898,{"$f":"IF(tbl_twdbdata[[#This Row],[Year]]=2016,0,tbl_twdbdata[[#This Row],[effsave]]-0.6*SUMIFS(tbl_twdbdata[effsave],tbl_twdbdata[Year],2020,tbl_twdbdata[utility],tbl_twdbdata[[#This Row],[utility]]))","v":4726702.2},447,37,115,0,23765282,778204,81853895,0,1641623,23290802,{"$f":"tbl_twdbdata[[#This Row],[utility]]&tbl_twdbdata[[#This Row],[Year]]","v":"EDEN2060"}]
[null,741,"EDEN","F",2070,1378,1310,7009679,{"$f":"IF(tbl_twdbdata[[#This Row],[Year]]=2016,0,tbl_twdbdata[[#This Row],[effsave]]-0.6*SUMIFS(tbl_twdbdata[effsave],tbl_twdbdata[Year],2020,tbl_twdbdata[utility],tbl_twdbdata[[#This Row],[utility]]))","v":4731483.2},447,38,119,0,23765282,778204,81853895,0,1641623,23290802,{"$f":"tbl_twdbdata[[#This Row],[utility]]&tbl_twdbdata[[#This Row],[Year]]","v":"EDEN2070"}]
[null,743,"EDGEWOOD","D",2016,1350,1350,0,{"$f":"IF(tbl_twdbdata[[#This Row],[Year]]=2016,0,tbl_twdbdata[[#This Row],[effsave]]-0.6*SUMIFS(tbl_twdbdata[effsave],tbl_twdbdata[Year],2020,tbl_twdbdata[utility],tbl_twdbdata[[#This Row],[utility]]))","v":0},605,7,66,0,32824700,2144100,4632600,0,31550000,8896792,{"$f":"tbl_twdbdata[[#This Row],[utility]]&tbl_twdbdata[[#This Row],[Year]]","v":"EDGEWOOD2016"}]
[null,743,"EDGEWOOD","D",2020,1350,1564,5480256,{"$f":"IF(tbl_twdbdata[[#This Row],[Year]]=2016,0,tbl_twdbdata[[#This Row],[effsave]]-0.6*SUMIFS(tbl_twdbdata[effsave],tbl_twdbdata[Year],2020,tbl_twdbdata[utility],tbl_twdbdata[[#This Row],[utility]]))","v":2192102.3999999999},681,8,74,0,36933691,2412498,5212508,0,35499424,10010491,{"$f":"tbl_twdbdata[[#This Row],[utility]]&tbl_twdbdata[[#This Row],[Year]]","v":"EDGEWOOD2020"}]
[null,743,"EDGEWOOD","D",2030,1350,1683,8409699,{"$f":"IF(tbl_twdbdata[[#This Row],[Year]]=2016,0,tbl_twdbdata[[#This Row],[effsave]]-0.6*SUMIFS(tbl_twdbdata[effsave],tbl_twdbdata[Year],2020,tbl_twdbdata[utility],tbl_twdbdata[[#This Row],[utility]]))","v":5121545.4000000004},733,9,80,0,39743863,2596058,5609112,0,38200467,10772159,{"$f":"tbl_twdbdata[[#This Row],[utility]]&tbl_twdbdata[[#This Row],[Year]]","v":"EDGEWOOD2030"}]
[null,743,"EDGEWOOD","D",2040,1350,1774,10768091,{"$f":"IF(tbl_twdbdata[[#This Row],[Year]]=2016,0,tbl_twdbdata[[#This Row],[effsave]]-0.6*SUMIFS(tbl_twdbdata[effsave],tbl_twdbdata[Year],2020,tbl_twdbdata[utility],tbl_twdbdata[[#This Row],[utility]]))","v":7479937.4000000004},773,10,86,0,41892818,2736427,5912397,0,40265971,11354611,{"$f":"tbl_twdbdata[[#This Row],[utility]]&tbl_twdbdata[[#This Row],[Year]]","v":"EDGEWOOD2040"}]
[null,743,"EDGEWOOD","D",2050,1350,1864,12348534,{"$f":"IF(tbl_twdbdata[[#This Row],[Year]]=2016,0,tbl_twdbdata[[#This Row],[effsave]]-0.6*SUMIFS(tbl_twdbdata[effsave],tbl_twdbdata[Year],2020,tbl_twdbdata[utility],tbl_twdbdata[[#This Row],[utility]]))","v":9060380.4000000004},812,11,92,0,44018158,2875254,6212349,0,42308777,11930662,{"$f":"tbl_twdbdata[[#This Row],[utility]]&tbl_twdbdata[[#This Row],[Year]]","v":"EDGEWOOD2050"}]
[null,743,"EDGEWOOD","D",2060,1350,1939,13050633,{"$f":"IF(tbl_twdbdata[[#This Row],[Year]]=2016,0,tbl_twdbdata[[#This Row],[effsave]]-0.6*SUMIFS(tbl_twdbdata[effsave],tbl_twdbdata[Year],2020,tbl_twdbdata[utility],tbl_twdbdata[[#This Row],[utility]]))","v":9762479.4000000004},845,12,99,0,45789275,2990943,6462309,0,44011115,12410705,{"$f":"tbl_twdbdata[[#This Row],[utility]]&tbl_twdbdata[[#This Row],[Year]]","v":"EDGEWOOD2060"}]
[null,743,"EDGEWOOD","D",2070,1350,2003,13517947,{"$f":"IF(tbl_twdbdata[[#This Row],[Year]]=2016,0,tbl_twdbdata[[#This Row],[effsave]]-0.6*SUMIFS(tbl_twdbdata[effsave],tbl_twdbdata[Year],2020,tbl_twdbdata[utility],tbl_twdbdata[[#This Row],[utility]]))","v":10229793.4},873,13,106,0,47300628,3089664,6675609,0,45463777,12820341,{"$f":"tbl_twdbdata[[#This Row],[utility]]&tbl_twdbdata[[#This Row],[Year]]","v":"EDGEWOOD2070"}]
[null,744,"EDINBURG","M",2016,66399,83511,0,{"$f":"IF(tbl_twdbdata[[#This Row],[Year]]=2016,0,tbl_twdbdata[[#This Row],[effsave]]-0.6*SUMIFS(tbl_twdbdata[effsave],tbl_twdbdata[Year],2020,tbl_twdbdata[utility],tbl_twdbdata[[#This Row],[utility]]))","v":0},24787,684,2366,0,1792842474,473064372,1241593977,0,49372492,392926017,{"$f":"tbl_twdbdata[[#This Row],[utility]]&tbl_twdbdata[[#This Row],[Year]]","v":"EDINBURG2016"}]
[null,744,"EDINBURG","M",2020,66399,96678,289357254,{"$f":"IF(tbl_twdbdata[[#This Row],[Year]]=2016,0,tbl_twdbdata[[#This Row],[effsave]]-0.6*SUMIFS(tbl_twdbdata[effsave],tbl_twdbdata[Year],2020,tbl_twdbdata[utility],tbl_twdbdata[[#This Row],[utility]]))","v":115742901.59999999},27090,748,2586,0,1959421028,517018250,1356954323,0,53959843,429433992,{"$f":"tbl_twdbdata[[#This Row],[utility]]&tbl_twdbdata[[#This Row],[Year]]","v":"EDINBURG2020"}]
[null,744,"EDINBURG","M",2030,66399,120046,482861026,{"$f":"IF(tbl_twdbdata[[#This Row],[Year]]=2016,0,tbl_twdbdata[[#This Row],[effsave]]-0.6*SUMIFS(tbl_twdbdata[effsave],tbl_twdbdata[Year],2020,tbl_twdbdata[utility],tbl_twdbdata[[#This Row],[utility]]))","v":309246673.60000002},33638,929,3211,0,2433031887,641986521,1684943200,0,67002455,533232307,{"$f":"tbl_twdbdata[[#This Row],[utility]]&tbl_twdbdata[[#This Row],[Year]]","v":"EDINBURG2030"}]
[null,744,"EDINBURG","M",2040,66399,143507,652655485,{"$f":"IF(tbl_twdbdata[[#This Row],[Year]]=2016,0,tbl_twdbdata[[#This Row],[effsave]]-0.6*SUMIFS(tbl_twdbdata[effsave],tbl_twdbdata[Year],2020,tbl_twdbdata[utility],tbl_twdbdata[[#This Row],[utility]]))","v":479041132.60000002},40212,1154,3987,0,2908527623,767452141,2014237407,0,80096974,637443719,{"$f":"tbl_twdbdata[[#This Row],[utility]]&tbl_twdbdata[[#This Row],[Year]]","v":"EDINBURG2040"}]
[null,744,"EDINBURG","M",2050,66399,167015,802239851,{"$f":"IF(tbl_twdbdata[[#This Row],[Year]]=2016,0,tbl_twdbdata[[#This Row],[effsave]]-0.6*SUMIFS(tbl_twdbdata[effsave],tbl_twdbdata[Year],2020,tbl_twdbdata[utility],tbl_twdbdata[[#This Row],[utility]]))","v":628625498.60000002},46799,1433,4951,0,3384975931,893169109,2344191298,0,93217725,741863900,{"$f":"tbl_twdbdata[[#This Row],[utility]]&tbl_twdbdata[[#This Row],[Year]]","v":"EDINBURG2050"}]
[null,744,"EDINBURG","M",2060,66399,190523,931152584,{"$f":"IF(tbl_twdbdata[[#This Row],[Year]]=2016,0,tbl_twdbdata[[#This Row],[effsave]]-0.6*SUMIFS(tbl_twdbdata[effsave],tbl_twdbdata[Year],2020,tbl_twdbdata[utility],tbl_twdbdata[[#This Row],[utility]]))","v":757538231.60000002},53386,1779,6148,0,3861424239,1018886077,2674145189,0,106338476,846284081,{"$f":"tbl_twdbdata[[#This Row],[utility]]&tbl_twdbdata[[#This Row],[Year]]","v":"EDINBURG2060"}]
[null,744,"EDINBURG","M",2070,66399,213378,1049083606,{"$f":"IF(tbl_twdbdata[[#This Row],[Year]]=2016,0,tbl_twdbdata[[#This Row],[effsave]]-0.6*SUMIFS(tbl_twdbdata[effsave],tbl_twdbdata[Year],2020,tbl_twdbdata[utility],tbl_twdbdata[[#This Row],[utility]]))","v":875469253.60000002},59790,2209,7634,0,4324637872,1141110907,2994933694,0,119094762,947803702,{"$f":"tbl_twdbdata[[#This Row],[utility]]&tbl_twdbdata[[#This Row],[Year]]","v":"EDINBURG2070"}]
[null,746,"EL CAMPO","P",2016,11602,11602,0,{"$f":"IF(tbl_twdbdata[[#This Row],[Year]]=2016,0,tbl_twdbdata[[#This Row],[effsave]]-0.6*SUMIFS(tbl_twdbdata[effsave],tbl_twdbdata[Year],2020,tbl_twdbdata[utility],tbl_twdbdata[[#This Row],[utility]]))","v":0},4128,17,774,0,318575900,14931117,163694200,0,17728445,41201961,{"$f":"tbl_twdbdata[[#This Row],[utility]]&tbl_twdbdata[[#This Row],[Year]]","v":"EL CAMPO2016"}]
[null,746,"EL CAMPO","P",2020,11602,12123,41195772,{"$f":"IF(tbl_twdbdata[[#This Row],[Year]]=2016,0,tbl_twdbdata[[#This Row],[effsave]]-0.6*SUMIFS(tbl_twdbdata[effsave],tbl_twdbdata[Year],2020,tbl_twdbdata[utility],tbl_twdbdata[[#This Row],[utility]]))","v":16478308.800000001},4309,18,808,0,332566575,15586836,170883043,0,18507013,43011399,{"$f":"tbl_twdbdata[[#This Row],[utility]]&tbl_twdbdata[[#This Row],[Year]]","v":"EL CAMPO2020"}]
[null,746,"EL CAMPO","P",2030,11602,12689,62200844,{"$f":"IF(tbl_twdbdata[[#This Row],[Year]]=2016,0,tbl_twdbdata[[#This Row],[effsave]]-0.6*SUMIFS(tbl_twdbdata[effsave],tbl_twdbdata[Year],2020,tbl_twdbdata[utility],tbl_twdbdata[[#This Row],[utility]]))","v":37483380.799999997},4510,19,845,0,348093481,16314556,178861250,0,19371071,45019520,{"$f":"tbl_twdbdata[[#This Row],[utility]]&tbl_twdbdata[[#This Row],[Year]]","v":"EL CAMPO2030"}]
[null,746,"EL CAMPO","P",2040,11602,13141,79429460,{"$f":"IF(tbl_twdbdata[[#This Row],[Year]]=2016,0,tbl_twdbdata[[#This Row],[effsave]]-0.6*SUMIFS(tbl_twdbdata[effsave],tbl_twdbdata[Year],2020,tbl_twdbdata[utility],tbl_twdbdata[[#This Row],[utility]]))","v":54711996.799999997},4671,20,885,0,360493060,16895703,185232540,0,20061096,46623179,{"$f":"tbl_twdbdata[[#This Row],[utility]]&tbl_twdbdata[[#This Row],[Year]]","v":"EL CAMPO2040"}]
[null,746,"EL CAMPO","P",2050,11602,13533,89949114,{"$f":"IF(tbl_twdbdata[[#This Row],[Year]]=2016,0,tbl_twdbdata[[#This Row],[effsave]]-0.6*SUMIFS(tbl_twdbdata[effsave],tbl_twdbdata[Year],2020,tbl_twdbdata[utility],tbl_twdbdata[[#This Row],[utility]]))","v":65231650.799999997},4810,21,926,0,371246677,17399707,190758083,0,20659525,48013963,{"$f":"tbl_twdbdata[[#This Row],[utility]]&tbl_twdbdata[[#This Row],[Year]]","v":"EL CAMPO2050"}]
[null,746,"EL CAMPO","P",2060,11602,13895,93927421,{"$f":"IF(tbl_twdbdata[[#This Row],[Year]]=2016,0,tbl_twdbdata[[#This Row],[effsave]]-0.6*SUMIFS(tbl_twdbdata[effsave],tbl_twdbdata[Year],2020,tbl_twdbdata[utility],tbl_twdbdata[[#This Row],[utility]]))","v":69209957.799999997},4939,22,969,0,381177313,17865139,195860753,0,21212155,49298309,{"$f":"tbl_twdbdata[[#This Row],[utility]]&tbl_twdbdata[[#This Row],[Year]]","v":"EL CAMPO2060"}]
[null,746,"EL CAMPO","P",2070,11602,14216,96252982,{"$f":"IF(tbl_twdbdata[[#This Row],[Year]]=2016,0,tbl_twdbdata[[#This Row],[effsave]]-0.6*SUMIFS(tbl_twdbdata[effsave],tbl_twdbdata[Year],2020,tbl_twdbdata[utility],tbl_twdbdata[[#This Row],[utility]]))","v":71535518.799999997},5053,23,1013,0,389983208,18277856,200385496,0,21702195,50437190,{"$f":"tbl_twdbdata[[#This Row],[utility]]&tbl_twdbdata[[#This Row],[Year]]","v":"EL CAMPO2070"}]
[null,2987,"EL PASO COUNTY TORNILLO WID","E",2016,3600,3600,0,{"$f":"IF(tbl_twdbdata[[#This Row],[Year]]=2016,0,tbl_twdbdata[[#This Row],[effsave]]-0.6*SUMIFS(tbl_twdbdata[effsave],tbl_twdbdata[Year],2020,tbl_twdbdata[utility],tbl_twdbdata[[#This Row],[utility]]))","v":0},874,27,48,21,76049680,3092670,10086890,12830430,2355420,9244096,{"$f":"tbl_twdbdata[[#This Row],[utility]]&tbl_twdbdata[[#This Row],[Year]]","v":"EL PASO COUNTY TORNILLO WID2016"}]
[null,2987,"EL PASO COUNTY TORNILLO WID","E",2020,3308,3202,9057658,{"$f":"IF(tbl_twdbdata[[#This Row],[Year]]=2016,0,tbl_twdbdata[[#This Row],[effsave]]-0.6*SUMIFS(tbl_twdbdata[effsave],tbl_twdbdata[Year],2020,tbl_twdbdata[utility],tbl_twdbdata[[#This Row],[utility]]))","v":3623063.2},846,26,46,20,73612780,2993570,9763670,12419298,2279944,8947883,{"$f":"tbl_twdbdata[[#This Row],[utility]]&tbl_twdbdata[[#This Row],[Year]]","v":"EL PASO COUNTY TORNILLO WID2020"}]
[null,2987,"EL PASO COUNTY TORNILLO WID","E",2030,3308,3215,12274549,{"$f":"IF(tbl_twdbdata[[#This Row],[Year]]=2016,0,tbl_twdbdata[[#This Row],[effsave]]-0.6*SUMIFS(tbl_twdbdata[effsave],tbl_twdbdata[Year],2020,tbl_twdbdata[utility],tbl_twdbdata[[#This Row],[utility]]))","v":6839954.2000000002},849,26,46,20,73911645,3005724,9803311,12469720,2289200,8984211,{"$f":"tbl_twdbdata[[#This Row],[utility]]&tbl_twdbdata[[#This Row],[Year]]","v":"EL PASO COUNTY TORNILLO WID2030"}]
[null,2987,"EL PASO COUNTY TORNILLO WID","E",2040,3308,3229,14720527,{"$f":"IF(tbl_twdbdata[[#This Row],[Year]]=2016,0,tbl_twdbdata[[#This Row],[effsave]]-0.6*SUMIFS(tbl_twdbdata[effsave],tbl_twdbdata[Year],2020,tbl_twdbdata[utility],tbl_twdbdata[[#This Row],[utility]]))","v":9285932.1999999993},853,26,46,20,74233500,3018813,9846001,12524020,2299169,9023334,{"$f":"tbl_twdbdata[[#This Row],[utility]]&tbl_twdbdata[[#This Row],[Year]]","v":"EL PASO COUNTY TORNILLO WID2040"}]
[null,2987,"EL PASO COUNTY TORNILLO WID","E",2050,3308,3242,16176121,{"$f":"IF(tbl_twdbdata[[#This Row],[Year]]=2016,0,tbl_twdbdata[[#This Row],[effsave]]-0.6*SUMIFS(tbl_twdbdata[effsave],tbl_twdbdata[Year],2020,tbl_twdbdata[utility],tbl_twdbdata[[#This Row],[utility]]))","v":10741526.199999999},856,26,46,20,74532365,3030967,9885642,12574442,2308425,9059662,{"$f":"tbl_twdbdata[[#This Row],[utility]]&tbl_twdbdata[[#This Row],[Year]]","v":"EL PASO COUNTY TORNILLO WID2050"}]
[null,2987,"EL PASO COUNTY TORNILLO WID","E",2060,3308,3254,16616063,{"$f":"IF(tbl_twdbdata[[#This Row],[Year]]=2016,0,tbl_twdbdata[[#This Row],[effsave]]-0.6*SUMIFS(tbl_twdbdata[effsave],tbl_twdbdata[Year],2020,tbl_twdbdata[utility],tbl_twdbdata[[#This Row],[utility]]))","v":11181468.199999999},859,26,46,20,74808241,3042186,9922232,12620985,2316969,9093196,{"$f":"tbl_twdbdata[[#This Row],[utility]]&tbl_twdbdata[[#This Row],[Year]]","v":"EL PASO COUNTY TORNILLO WID2060"}]
[null,2987,"EL PASO COUNTY TORNILLO WID","E",2070,3308,3266,16689260,{"$f":"IF(tbl_twdbdata[[#This Row],[Year]]=2016,0,tbl_twdbdata[[#This Row],[effsave]]-0.6*SUMIFS(tbl_twdbdata[effsave],tbl_twdbdata[Year],2020,tbl_twdbdata[utility],tbl_twdbdata[[#This Row],[utility]]))","v":11254665.199999999},862,26,46,20,75084117,3053405,9958822,12667528,2325513,9126730,{"$f":"tbl_twdbdata[[#This Row],[utility]]&tbl_twdbdata[[#This Row],[Year]]","v":"EL PASO COUNTY TORNILLO WID2070"}]
[null,49,"EL PASO WATER UTILITIES PUBLIC SERVICE BOARD","E",2016,681124,681124,0,{"$f":"IF(tbl_twdbdata[[#This Row],[Year]]=2016,0,tbl_twdbdata[[#This Row],[effsave]]-0.6*SUMIFS(tbl_twdbdata[effsave],tbl_twdbdata[Year],2020,tbl_twdbdata[utility],tbl_twdbdata[[#This Row],[utility]]))","v":0},184690,2156,18517,0,18270148000,2458947000,10839334000,0,21150224,3369574075,{"$f":"tbl_twdbdata[[#This Row],[utility]]&tbl_twdbdata[[#This Row],[Year]]","v":"EL PASO WATER UTILITIES PUBLIC SERVICE BOARD2016"}]
[null,49,"EL PASO WATER UTILITIES PUBLIC SERVICE BOARD","E",2020,681124,734031,2550610919,{"$f":"IF(tbl_twdbdata[[#This Row],[Year]]=2016,0,tbl_twdbdata[[#This Row],[effsave]]-0.6*SUMIFS(tbl_twdbdata[effsave],tbl_twdbdata[Year],2020,tbl_twdbdata[utility],tbl_twdbdata[[#This Row],[utility]]))","v":1020244367.6000001},198458,2317,19897,0,19632144022,2642255643,11647380536,0,22726923,3620767797,{"$f":"tbl_twdbdata[[#This Row],[utility]]&tbl_twdbdata[[#This Row],[Year]]","v":"EL PASO WATER UTILITIES PUBLIC SERVICE BOARD2020"}]
[null,49,"EL PASO WATER UTILITIES PUBLIC SERVICE BOARD","E",2030,681124,822625,4032466619,{"$f":"IF(tbl_twdbdata[[#This Row],[Year]]=2016,0,tbl_twdbdata[[#This Row],[effsave]]-0.6*SUMIFS(tbl_twdbdata[effsave],tbl_twdbdata[Year],2020,tbl_twdbdata[utility],tbl_twdbdata[[#This Row],[utility]]))","v":2502100067.6000004},222411,2597,22298,0,22001649080,2961163150,13053163169,0,25469953,4057777000,{"$f":"tbl_twdbdata[[#This Row],[utility]]&tbl_twdbdata[[#This Row],[Year]]","v":"EL PASO WATER UTILITIES PUBLIC SERVICE BOARD2030"}]
[null,49,"EL PASO WATER UTILITIES PUBLIC SERVICE BOARD","E",2040,681124,904900,5294524655,{"$f":"IF(tbl_twdbdata[[#This Row],[Year]]=2016,0,tbl_twdbdata[[#This Row],[effsave]]-0.6*SUMIFS(tbl_twdbdata[effsave],tbl_twdbdata[Year],2020,tbl_twdbdata[utility],tbl_twdbdata[[#This Row],[utility]]))","v":3764158103.6000004},244655,2910,24989,0,24202148309,3257324461,14358677832,0,28017335,4463616359,{"$f":"tbl_twdbdata[[#This Row],[utility]]&tbl_twdbdata[[#This Row],[Year]]","v":"EL PASO WATER UTILITIES PUBLIC SERVICE BOARD2040"}]
[null,49,"EL PASO WATER UTILITIES PUBLIC SERVICE BOARD","E",2050,681124,986455,6236171219,{"$f":"IF(tbl_twdbdata[[#This Row],[Year]]=2016,0,tbl_twdbdata[[#This Row],[effsave]]-0.6*SUMIFS(tbl_twdbdata[effsave],tbl_twdbdata[Year],2020,tbl_twdbdata[utility],tbl_twdbdata[[#This Row],[utility]]))","v":4705804667.6000004},266705,3261,28006,0,26383390662,3550894023,15652767755,0,30542425,4865904161,{"$f":"tbl_twdbdata[[#This Row],[utility]]&tbl_twdbdata[[#This Row],[Year]]","v":"EL PASO WATER UTILITIES PUBLIC SERVICE BOARD2050"}]
[null,49,"EL PASO WATER UTILITIES PUBLIC SERVICE BOARD","E",2060,681124,1063672,6833028928,{"$f":"IF(tbl_twdbdata[[#This Row],[Year]]=2016,0,tbl_twdbdata[[#This Row],[effsave]]-0.6*SUMIFS(tbl_twdbdata[effsave],tbl_twdbdata[Year],2020,tbl_twdbdata[utility],tbl_twdbdata[[#This Row],[utility]]))","v":5302662376.6000004},287582,3655,31386,0,28448610339,3828848297,16878023614,0,32933203,5246793833,{"$f":"tbl_twdbdata[[#This Row],[utility]]&tbl_twdbdata[[#This Row],[Year]]","v":"EL PASO WATER UTILITIES PUBLIC SERVICE BOARD2060"}]
[null,49,"EL PASO WATER UTILITIES PUBLIC SERVICE BOARD","E",2070,681124,1136275,7328462426,{"$f":"IF(tbl_twdbdata[[#This Row],[Year]]=2016,0,tbl_twdbdata[[#This Row],[effsave]]-0.6*SUMIFS(tbl_twdbdata[effsave],tbl_twdbdata[Year],2020,tbl_twdbdata[utility],tbl_twdbdata[[#This Row],[utility]]))","v":5798095874.6000004},307211,4096,35175,0,30390425538,4090193780,18030065924,0,35181123,5604923945,{"$f":"tbl_twdbdata[[#This Row],[utility]]&tbl_twdbdata[[#This Row],[Year]]","v":"EL PASO WATER UTILITIES PUBLIC SERVICE BOARD2070"}]
[null,755,"ELDORADO","F",2016,1951,1951,0,{"$f":"IF(tbl_twdbdata[[#This Row],[Year]]=2016,0,tbl_twdbdata[[#This Row],[effsave]]-0.6*SUMIFS(tbl_twdbdata[effsave],tbl_twdbdata[Year],2020,tbl_twdbdata[utility],tbl_twdbdata[[#This Row],[utility]]))","v":0},1025,0,1,0,89654800,0,8293800,0,13090987,24671402,{"$f":"tbl_twdbdata[[#This Row],[utility]]&tbl_twdbdata[[#This Row],[Year]]","v":"ELDORADO2016"}]
[null,755,"ELDORADO","F",2020,1951,2104,7126669,{"$f":"IF(tbl_twdbdata[[#This Row],[Year]]=2016,0,tbl_twdbdata[[#This Row],[effsave]]-0.6*SUMIFS(tbl_twdbdata[effsave],tbl_twdbdata[Year],2020,tbl_twdbdata[utility],tbl_twdbdata[[#This Row],[utility]]))","v":2850667.6000000006},1099,0,1,0,96094600,0,8889534,0,14031297,26443520,{"$f":"tbl_twdbdata[[#This Row],[utility]]&tbl_twdbdata[[#This Row],[Year]]","v":"ELDORADO2020"}]
[null,755,"ELDORADO","F",2030,1951,2104,10375140,{"$f":"IF(tbl_twdbdata[[#This Row],[Year]]=2016,0,tbl_twdbdata[[#This Row],[effsave]]-0.6*SUMIFS(tbl_twdbdata[effsave],tbl_twdbdata[Year],2020,tbl_twdbdata[utility],tbl_twdbdata[[#This Row],[utility]]))","v":6099138.6000000006},1099,0,1,0,96094600,0,8889534,0,14031297,26443520,{"$f":"tbl_twdbdata[[#This Row],[utility]]&tbl_twdbdata[[#This Row],[Year]]","v":"ELDORADO2030"}]
[null,755,"ELDORADO","F",2040,1951,2104,13124436,{"$f":"IF(tbl_twdbdata[[#This Row],[Year]]=2016,0,tbl_twdbdata[[#This Row],[effsave]]-0.6*SUMIFS(tbl_twdbdata[effsave],tbl_twdbdata[Year],2020,tbl_twdbdata[utility],tbl_twdbdata[[#This Row],[utility]]))","v":8848434.6000000015},1099,0,1,0,96094600,0,8889534,0,14031297,26443520,{"$f":"tbl_twdbdata[[#This Row],[utility]]&tbl_twdbdata[[#This Row],[Year]]","v":"ELDORADO2040"}]
[null,755,"ELDORADO","F",2050,1951,2104,14406930,{"$f":"IF(tbl_twdbdata[[#This Row],[Year]]=2016,0,tbl_twdbdata[[#This Row],[effsave]]-0.6*SUMIFS(tbl_twdbdata[effsave],tbl_twdbdata[Year],2020,tbl_twdbdata[utility],tbl_twdbdata[[#This Row],[utility]]))","v":10130928.600000001},1099,0,1,0,96094600,0,8889534,0,14031297,26443520,{"$f":"tbl_twdbdata[[#This Row],[utility]]&tbl_twdbdata[[#This Row],[Year]]","v":"ELDORADO2050"}]
[null,755,"ELDORADO","F",2060,1951,2104,14660356,{"$f":"IF(tbl_twdbdata[[#This Row],[Year]]=2016,0,tbl_twdbdata[[#This Row],[effsave]]-0.6*SUMIFS(tbl_twdbdata[effsave],tbl_twdbdata[Year],2020,tbl_twdbdata[utility],tbl_twdbdata[[#This Row],[utility]]))","v":10384354.600000001},1099,0,1,0,96094600,0,8889534,0,14031297,26443520,{"$f":"tbl_twdbdata[[#This Row],[utility]]&tbl_twdbdata[[#This Row],[Year]]","v":"ELDORADO2060"}]
[null,755,"ELDORADO","F",2070,1951,2104,14660356,{"$f":"IF(tbl_twdbdata[[#This Row],[Year]]=2016,0,tbl_twdbdata[[#This Row],[effsave]]-0.6*SUMIFS(tbl_twdbdata[effsave],tbl_twdbdata[Year],2020,tbl_twdbdata[utility],tbl_twdbdata[[#This Row],[utility]]))","v":10384354.600000001},1099,0,1,0,96094600,0,8889534,0,14031297,26443520,{"$f":"tbl_twdbdata[[#This Row],[utility]]&tbl_twdbdata[[#This Row],[Year]]","v":"ELDORADO2070"}]
[null,50,"EMORY","D",2016,2699,2699,0,{"$f":"IF(tbl_twdbdata[[#This Row],[Year]]=2016,0,tbl_twdbdata[[#This Row],[effsave]]-0.6*SUMIFS(tbl_twdbdata[effsave],tbl_twdbdata[Year],2020,tbl_twdbdata[utility],tbl_twdbdata[[#This Row],[utility]]))","v":0},820,10,208,0,47156920,4669000,25932720,0,null,null,{"$f":"tbl_twdbdata[[#This Row],[utility]]&tbl_twdbdata[[#This Row],[Year]]","v":"EMORY2016"}]
[null,50,"EMORY","D",2020,2442,2147,7068568,{"$f":"IF(tbl_twdbdata[[#This Row],[Year]]=2016,0,tbl_twdbdata[[#This Row],[effsave]]-0.6*SUMIFS(tbl_twdbdata[effsave],tbl_twdbdata[Year],2020,tbl_twdbdata[utility],tbl_twdbdata[[#This Row],[utility]]))","v":2827427.2},721,9,183,0,41460240,4104973,22799979,0,null,null,{"$f":"tbl_twdbdata[[#This Row],[utility]]&tbl_twdbdata[[#This Row],[Year]]","v":"EMORY2020"}]
[null,50,"EMORY","D",2030,2442,2276,10517168,{"$f":"IF(tbl_twdbdata[[#This Row],[Year]]=2016,0,tbl_twdbdata[[#This Row],[effsave]]-0.6*SUMIFS(tbl_twdbdata[effsave],tbl_twdbdata[Year],2020,tbl_twdbdata[utility],tbl_twdbdata[[#This Row],[utility]]))","v":6276027.2000000002},764,10,194,0,43951330,4351616,24169890,0,null,null,{"$f":"tbl_twdbdata[[#This Row],[utility]]&tbl_twdbdata[[#This Row],[Year]]","v":"EMORY2030"}]
[null,50,"EMORY","D",2040,2442,2314,12846518,{"$f":"IF(tbl_twdbdata[[#This Row],[Year]]=2016,0,tbl_twdbdata[[#This Row],[effsave]]-0.6*SUMIFS(tbl_twdbdata[effsave],tbl_twdbdata[Year],2020,tbl_twdbdata[utility],tbl_twdbdata[[#This Row],[utility]]))","v":8605377.1999999993},777,11,206,0,44685140,4424270,24573430,0,null,null,{"$f":"tbl_twdbdata[[#This Row],[utility]]&tbl_twdbdata[[#This Row],[Year]]","v":"EMORY2040"}]
[null,50,"EMORY","D",2050,2442,2338,14157408,{"$f":"IF(tbl_twdbdata[[#This Row],[Year]]=2016,0,tbl_twdbdata[[#This Row],[effsave]]-0.6*SUMIFS(tbl_twdbdata[effsave],tbl_twdbdata[Year],2020,tbl_twdbdata[utility],tbl_twdbdata[[#This Row],[utility]]))","v":9916267.1999999993},785,12,218,0,45148599,4470157,24828297,0,null,null,{"$f":"tbl_twdbdata[[#This Row],[utility]]&tbl_twdbdata[[#This Row],[Year]]","v":"EMORY2050"}]
[null,50,"EMORY","D",2060,2442,2349,14464085,{"$f":"IF(tbl_twdbdata[[#This Row],[Year]]=2016,0,tbl_twdbdata[[#This Row],[effsave]]-0.6*SUMIFS(tbl_twdbdata[effsave],tbl_twdbdata[Year],2020,tbl_twdbdata[utility],tbl_twdbdata[[#This Row],[utility]]))","v":10222944.199999999},789,13,231,0,45361018,4491189,24945112,0,null,null,{"$f":"tbl_twdbdata[[#This Row],[utility]]&tbl_twdbdata[[#This Row],[Year]]","v":"EMORY2060"}]
[null,50,"EMORY","D",2070,2442,2354,14512057,{"$f":"IF(tbl_twdbdata[[#This Row],[Year]]=2016,0,tbl_twdbdata[[#This Row],[effsave]]-0.6*SUMIFS(tbl_twdbdata[effsave],tbl_twdbdata[Year],2020,tbl_twdbdata[utility],tbl_twdbdata[[#This Row],[utility]]))","v":10270916.199999999},791,14,244,0,45457572,4500749,24998210,0,null,null,{"$f":"tbl_twdbdata[[#This Row],[utility]]&tbl_twdbdata[[#This Row],[Year]]","v":"EMORY2070"}]
[null,51,"ENNIS","C",2016,19300,19300,0,{"$f":"IF(tbl_twdbdata[[#This Row],[Year]]=2016,0,tbl_twdbdata[[#This Row],[effsave]]-0.6*SUMIFS(tbl_twdbdata[effsave],tbl_twdbdata[Year],2020,tbl_twdbdata[utility],tbl_twdbdata[[#This Row],[utility]]))","v":0},5088,67,742,0,380916000,58389000,118173000,0,38012000,11471979,{"$f":"tbl_twdbdata[[#This Row],[utility]]&tbl_twdbdata[[#This Row],[Year]]","v":"ENNIS2016"}]
[null,51,"ENNIS","C",2020,18155,21354,75603837,{"$f":"IF(tbl_twdbdata[[#This Row],[Year]]=2016,0,tbl_twdbdata[[#This Row],[effsave]]-0.6*SUMIFS(tbl_twdbdata[effsave],tbl_twdbdata[Year],2020,tbl_twdbdata[utility],tbl_twdbdata[[#This Row],[utility]]))","v":30241534.800000004},5985,79,873,0,448035267,68677428,138995662,0,44709901,13493398,{"$f":"tbl_twdbdata[[#This Row],[utility]]&tbl_twdbdata[[#This Row],[Year]]","v":"ENNIS2020"}]
[null,51,"ENNIS","C",2030,18155,25111,124376039,{"$f":"IF(tbl_twdbdata[[#This Row],[Year]]=2016,0,tbl_twdbdata[[#This Row],[effsave]]-0.6*SUMIFS(tbl_twdbdata[effsave],tbl_twdbdata[Year],2020,tbl_twdbdata[utility],tbl_twdbdata[[#This Row],[utility]]))","v":79013736.800000012},7038,93,1027,0,526862114,80760461,163450411,0,52576113,15867412,{"$f":"tbl_twdbdata[[#This Row],[utility]]&tbl_twdbdata[[#This Row],[Year]]","v":"ENNIS2030"}]
[null,51,"ENNIS","C",2040,18155,28828,167408520,{"$f":"IF(tbl_twdbdata[[#This Row],[Year]]=2016,0,tbl_twdbdata[[#This Row],[effsave]]-0.6*SUMIFS(tbl_twdbdata[effsave],tbl_twdbdata[Year],2020,tbl_twdbdata[utility],tbl_twdbdata[[#This Row],[utility]]))","v":122046217.80000001},8080,109,1208,0,604849708,92714849,187644795,0,60358575,18216150,{"$f":"tbl_twdbdata[[#This Row],[utility]]&tbl_twdbdata[[#This Row],[Year]]","v":"ENNIS2040"}]
[null,51,"ENNIS","C",2050,18155,41086,257637980,{"$f":"IF(tbl_twdbdata[[#This Row],[Year]]=2016,0,tbl_twdbdata[[#This Row],[effsave]]-0.6*SUMIFS(tbl_twdbdata[effsave],tbl_twdbdata[Year],2020,tbl_twdbdata[utility],tbl_twdbdata[[#This Row],[utility]]))","v":212275677.80000001},11516,128,1421,0,862038820,132138278,267433538,0,86023741,25961868,{"$f":"tbl_twdbdata[[#This Row],[utility]]&tbl_twdbdata[[#This Row],[Year]]","v":"ENNIS2050"}]
[null,51,"ENNIS","C",2060,18155,66145,424191192,{"$f":"IF(tbl_twdbdata[[#This Row],[Year]]=2016,0,tbl_twdbdata[[#This Row],[effsave]]-0.6*SUMIFS(tbl_twdbdata[effsave],tbl_twdbdata[Year],2020,tbl_twdbdata[utility],tbl_twdbdata[[#This Row],[utility]]))","v":378828889.80000001},18540,151,1671,0,1387809905,212731500,430545475,0,138490979,41796421,{"$f":"tbl_twdbdata[[#This Row],[utility]]&tbl_twdbdata[[#This Row],[Year]]","v":"ENNIS2060"}]
[null,51,"ENNIS","C",2070,18155,110073,712331916,{"$f":"IF(tbl_twdbdata[[#This Row],[Year]]=2016,0,tbl_twdbdata[[#This Row],[effsave]]-0.6*SUMIFS(tbl_twdbdata[effsave],tbl_twdbdata[Year],2020,tbl_twdbdata[utility],tbl_twdbdata[[#This Row],[utility]]))","v":666969613.79999995},30853,178,1965,0,2309477658,354010045,716477921,0,230465153,69554123,{"$f":"tbl_twdbdata[[#This Row],[utility]]&tbl_twdbdata[[#This Row],[Year]]","v":"ENNIS2070"}]
[null,763,"EULESS","C",2016,54250,54250,0,{"$f":"IF(tbl_twdbdata[[#This Row],[Year]]=2016,0,tbl_twdbdata[[#This Row],[effsave]]-0.6*SUMIFS(tbl_twdbdata[effsave],tbl_twdbdata[Year],2020,tbl_twdbdata[utility],tbl_twdbdata[[#This Row],[utility]]))","v":0},12335,12201,689,606,949983000,613503000,195906000,368618000,36908903,196605301,{"$f":"tbl_twdbdata[[#This Row],[utility]]&tbl_twdbdata[[#This Row],[Year]]","v":"EULESS2016"}]
[null,763,"EULESS","C",2020,54250,54725,183167311,{"$f":"IF(tbl_twdbdata[[#This Row],[Year]]=2016,0,tbl_twdbdata[[#This Row],[effsave]]-0.6*SUMIFS(tbl_twdbdata[effsave],tbl_twdbdata[Year],2020,tbl_twdbdata[utility],tbl_twdbdata[[#This Row],[utility]]))","v":73266924.400000006},12443,12308,695,611,958300824,618874685,197621306,371845531,37232069,198326730,{"$f":"tbl_twdbdata[[#This Row],[utility]]&tbl_twdbdata[[#This Row],[Year]]","v":"EULESS2020"}]
[null,763,"EULESS","C",2030,54250,57689,276050518,{"$f":"IF(tbl_twdbdata[[#This Row],[Year]]=2016,0,tbl_twdbdata[[#This Row],[effsave]]-0.6*SUMIFS(tbl_twdbdata[effsave],tbl_twdbdata[Year],2020,tbl_twdbdata[utility],tbl_twdbdata[[#This Row],[utility]]))","v":166150131.40000001},13117,12975,733,644,1010204043,652394001,208324815,391985324,39248622,209068446,{"$f":"tbl_twdbdata[[#This Row],[utility]]&tbl_twdbdata[[#This Row],[Year]]","v":"EULESS2030"}]
[null,763,"EULESS","C",2040,54250,57689,335429806,{"$f":"IF(tbl_twdbdata[[#This Row],[Year]]=2016,0,tbl_twdbdata[[#This Row],[effsave]]-0.6*SUMIFS(tbl_twdbdata[effsave],tbl_twdbdata[Year],2020,tbl_twdbdata[utility],tbl_twdbdata[[#This Row],[utility]]))","v":225529419.40000001},13117,13678,773,679,1010204043,652394001,208324815,391985324,39248622,209068446,{"$f":"tbl_twdbdata[[#This Row],[utility]]&tbl_twdbdata[[#This Row],[Year]]","v":"EULESS2040"}]
[null,763,"EULESS","C",2050,54250,57689,368067358,{"$f":"IF(tbl_twdbdata[[#This Row],[Year]]=2016,0,tbl_twdbdata[[#This Row],[effsave]]-0.6*SUMIFS(tbl_twdbdata[effsave],tbl_twdbdata[Year],2020,tbl_twdbdata[utility],tbl_twdbdata[[#This Row],[utility]]))","v":258166971.40000001},13117,14419,815,716,1010204043,652394001,208324815,391985324,39248622,209068446,{"$f":"tbl_twdbdata[[#This Row],[utility]]&tbl_twdbdata[[#This Row],[Year]]","v":"EULESS2050"}]
[null,763,"EULESS","C",2060,54250,57689,374173738,{"$f":"IF(tbl_twdbdata[[#This Row],[Year]]=2016,0,tbl_twdbdata[[#This Row],[effsave]]-0.6*SUMIFS(tbl_twdbdata[effsave],tbl_twdbdata[Year],2020,tbl_twdbdata[utility],tbl_twdbdata[[#This Row],[utility]]))","v":264273351.40000001},13117,15200,859,755,1010204043,652394001,208324815,391985324,39248622,209068446,{"$f":"tbl_twdbdata[[#This Row],[utility]]&tbl_twdbdata[[#This Row],[Year]]","v":"EULESS2060"}]
[null,763,"EULESS","C",2070,54250,57689,374384303,{"$f":"IF(tbl_twdbdata[[#This Row],[Year]]=2016,0,tbl_twdbdata[[#This Row],[effsave]]-0.6*SUMIFS(tbl_twdbdata[effsave],tbl_twdbdata[Year],2020,tbl_twdbdata[utility],tbl_twdbdata[[#This Row],[utility]]))","v":264483916.40000001},13117,16023,906,796,1010204043,652394001,208324815,391985324,39248622,209068446,{"$f":"tbl_twdbdata[[#This Row],[utility]]&tbl_twdbdata[[#This Row],[Year]]","v":"EULESS2070"}]
[null,769,"FAIRVIEW","C",2016,8500,8500,0,{"$f":"IF(tbl_twdbdata[[#This Row],[Year]]=2016,0,tbl_twdbdata[[#This Row],[effsave]]-0.6*SUMIFS(tbl_twdbdata[effsave],tbl_twdbdata[Year],2020,tbl_twdbdata[utility],tbl_twdbdata[[#This Row],[utility]]))","v":0},3186,943,294,0,470360000,39809000,119639000,0,null,null,{"$f":"tbl_twdbdata[[#This Row],[utility]]&tbl_twdbdata[[#This Row],[Year]]","v":"FAIRVIEW2016"}]
[null,769,"FAIRVIEW","C",2020,8500,12592,37274209,{"$f":"IF(tbl_twdbdata[[#This Row],[Year]]=2016,0,tbl_twdbdata[[#This Row],[effsave]]-0.6*SUMIFS(tbl_twdbdata[effsave],tbl_twdbdata[Year],2020,tbl_twdbdata[utility],tbl_twdbdata[[#This Row],[utility]]))","v":14909683.600000001},4643,1374,428,0,685506148,58017931,174362765,0,null,null,{"$f":"tbl_twdbdata[[#This Row],[utility]]&tbl_twdbdata[[#This Row],[Year]]","v":"FAIRVIEW2020"}]
[null,769,"FAIRVIEW","C",2030,8500,14529,52182356,{"$f":"IF(tbl_twdbdata[[#This Row],[Year]]=2016,0,tbl_twdbdata[[#This Row],[effsave]]-0.6*SUMIFS(tbl_twdbdata[effsave],tbl_twdbdata[Year],2020,tbl_twdbdata[utility],tbl_twdbdata[[#This Row],[utility]]))","v":29817830.600000001},5357,1585,493,0,790956069,66942703,201184611,0,null,null,{"$f":"tbl_twdbdata[[#This Row],[utility]]&tbl_twdbdata[[#This Row],[Year]]","v":"FAIRVIEW2030"}]
[null,769,"FAIRVIEW","C",2040,8500,19397,76321376,{"$f":"IF(tbl_twdbdata[[#This Row],[Year]]=2016,0,tbl_twdbdata[[#This Row],[effsave]]-0.6*SUMIFS(tbl_twdbdata[effsave],tbl_twdbdata[Year],2020,tbl_twdbdata[utility],tbl_twdbdata[[#This Row],[utility]]))","v":53956850.600000001},7152,1829,569,0,1055969087,89372125,268592326,0,null,null,{"$f":"tbl_twdbdata[[#This Row],[utility]]&tbl_twdbdata[[#This Row],[Year]]","v":"FAIRVIEW2040"}]
[null,769,"FAIRVIEW","C",2050,8500,20193,81664531,{"$f":"IF(tbl_twdbdata[[#This Row],[Year]]=2016,0,tbl_twdbdata[[#This Row],[effsave]]-0.6*SUMIFS(tbl_twdbdata[effsave],tbl_twdbdata[Year],2020,tbl_twdbdata[utility],tbl_twdbdata[[#This Row],[utility]]))","v":59300005.600000001},7445,2110,656,0,1099303180,93039713,279614622,0,null,null,{"$f":"tbl_twdbdata[[#This Row],[utility]]&tbl_twdbdata[[#This Row],[Year]]","v":"FAIRVIEW2050"}]
[null,769,"FAIRVIEW","C",2060,8500,20418,83468784,{"$f":"IF(tbl_twdbdata[[#This Row],[Year]]=2016,0,tbl_twdbdata[[#This Row],[effsave]]-0.6*SUMIFS(tbl_twdbdata[effsave],tbl_twdbdata[Year],2020,tbl_twdbdata[utility],tbl_twdbdata[[#This Row],[utility]]))","v":61104258.600000001},7528,2435,757,0,1111552138,94076406,282730220,0,null,null,{"$f":"tbl_twdbdata[[#This Row],[utility]]&tbl_twdbdata[[#This Row],[Year]]","v":"FAIRVIEW2060"}]
[null,769,"FAIRVIEW","C",2070,8500,20418,83841413,{"$f":"IF(tbl_twdbdata[[#This Row],[Year]]=2016,0,tbl_twdbdata[[#This Row],[effsave]]-0.6*SUMIFS(tbl_twdbdata[effsave],tbl_twdbdata[Year],2020,tbl_twdbdata[utility],tbl_twdbdata[[#This Row],[utility]]))","v":61476887.600000001},7528,2810,874,0,1111552138,94076406,282730220,0,null,null,{"$f":"tbl_twdbdata[[#This Row],[utility]]&tbl_twdbdata[[#This Row],[Year]]","v":"FAIRVIEW2070"}]
[null,773,"FARMERS BRANCH","C",2016,30480,30480,0,{"$f":"IF(tbl_twdbdata[[#This Row],[Year]]=2016,0,tbl_twdbdata[[#This Row],[effsave]]-0.6*SUMIFS(tbl_twdbdata[effsave],tbl_twdbdata[Year],2020,tbl_twdbdata[utility],tbl_twdbdata[[#This Row],[utility]]))","v":0},7672,5604,2668,0,684949000,302547000,1071760000,0,376684000,396425688,{"$f":"tbl_twdbdata[[#This Row],[utility]]&tbl_twdbdata[[#This Row],[Year]]","v":"FARMERS BRANCH2016"}]
[null,773,"FARMERS BRANCH","C",2020,28108,30582,104480345,{"$f":"IF(tbl_twdbdata[[#This Row],[Year]]=2016,0,tbl_twdbdata[[#This Row],[effsave]]-0.6*SUMIFS(tbl_twdbdata[effsave],tbl_twdbdata[Year],2020,tbl_twdbdata[utility],tbl_twdbdata[[#This Row],[utility]]))","v":41792138},8347,6097,2902,0,745236599,329176475,1166093792,0,409838839,431318144,{"$f":"tbl_twdbdata[[#This Row],[utility]]&tbl_twdbdata[[#This Row],[Year]]","v":"FARMERS BRANCH2020"}]
[null,773,"FARMERS BRANCH","C",2030,28108,32477,157541055,{"$f":"IF(tbl_twdbdata[[#This Row],[Year]]=2016,0,tbl_twdbdata[[#This Row],[effsave]]-0.6*SUMIFS(tbl_twdbdata[effsave],tbl_twdbdata[Year],2020,tbl_twdbdata[utility],tbl_twdbdata[[#This Row],[utility]]))","v":94852848},8864,6475,3082,0,791414853,349573749,1238350274,0,435234320,458044581,{"$f":"tbl_twdbdata[[#This Row],[utility]]&tbl_twdbdata[[#This Row],[Year]]","v":"FARMERS BRANCH2030"}]
[null,773,"FARMERS BRANCH","C",2040,28108,34420,203651093,{"$f":"IF(tbl_twdbdata[[#This Row],[Year]]=2016,0,tbl_twdbdata[[#This Row],[effsave]]-0.6*SUMIFS(tbl_twdbdata[effsave],tbl_twdbdata[Year],2020,tbl_twdbdata[utility],tbl_twdbdata[[#This Row],[utility]]))","v":140962886},9394,6876,3273,0,838762793,370487682,1312436999,0,461273064,485447993,{"$f":"tbl_twdbdata[[#This Row],[utility]]&tbl_twdbdata[[#This Row],[Year]]","v":"FARMERS BRANCH2040"}]
[null,773,"FARMERS BRANCH","C",2050,28108,36531,236275202,{"$f":"IF(tbl_twdbdata[[#This Row],[Year]]=2016,0,tbl_twdbdata[[#This Row],[effsave]]-0.6*SUMIFS(tbl_twdbdata[effsave],tbl_twdbdata[Year],2020,tbl_twdbdata[utility],tbl_twdbdata[[#This Row],[utility]]))","v":173586995},9970,7302,3476,0,890204637,393209922,1392929577,0,489563228,515220820,{"$f":"tbl_twdbdata[[#This Row],[utility]]&tbl_twdbdata[[#This Row],[Year]]","v":"FARMERS BRANCH2050"}]
[null,773,"FARMERS BRANCH","C",2060,28108,38586,254073376,{"$f":"IF(tbl_twdbdata[[#This Row],[Year]]=2016,0,tbl_twdbdata[[#This Row],[effsave]]-0.6*SUMIFS(tbl_twdbdata[effsave],tbl_twdbdata[Year],2020,tbl_twdbdata[utility],tbl_twdbdata[[#This Row],[utility]]))","v":191385169},10531,7754,3691,0,940281846,415329393,1471286870,0,517102918,544203842,{"$f":"tbl_twdbdata[[#This Row],[utility]]&tbl_twdbdata[[#This Row],[Year]]","v":"FARMERS BRANCH2060"}]
[null,773,"FARMERS BRANCH","C",2070,28108,40648,268541012,{"$f":"IF(tbl_twdbdata[[#This Row],[Year]]=2016,0,tbl_twdbdata[[#This Row],[effsave]]-0.6*SUMIFS(tbl_twdbdata[effsave],tbl_twdbdata[Year],2020,tbl_twdbdata[utility],tbl_twdbdata[[#This Row],[utility]]))","v":205852805},11094,8234,3920,0,990529634,437524210,1549911074,0,544736418,573285590,{"$f":"tbl_twdbdata[[#This Row],[utility]]&tbl_twdbdata[[#This Row],[Year]]","v":"FARMERS BRANCH2070"}]
[null,781,"FLATONIA","K",2016,2096,2096,0,{"$f":"IF(tbl_twdbdata[[#This Row],[Year]]=2016,0,tbl_twdbdata[[#This Row],[effsave]]-0.6*SUMIFS(tbl_twdbdata[effsave],tbl_twdbdata[Year],2020,tbl_twdbdata[utility],tbl_twdbdata[[#This Row],[utility]]))","v":0},624,14,168,0,37241000,140000,30482000,0,1268500,5542237,{"$f":"tbl_twdbdata[[#This Row],[utility]]&tbl_twdbdata[[#This Row],[Year]]","v":"FLATONIA2016"}]
[null,781,"FLATONIA","K",2020,1464,1658,6360337,{"$f":"IF(tbl_twdbdata[[#This Row],[Year]]=2016,0,tbl_twdbdata[[#This Row],[effsave]]-0.6*SUMIFS(tbl_twdbdata[effsave],tbl_twdbdata[Year],2020,tbl_twdbdata[utility],tbl_twdbdata[[#This Row],[utility]]))","v":2544134.8000000003},707,16,190,0,42175941,158552,34521281,0,1436594,6276659,{"$f":"tbl_twdbdata[[#This Row],[utility]]&tbl_twdbdata[[#This Row],[Year]]","v":"FLATONIA2020"}]
[null,781,"FLATONIA","K",2030,1464,1893,10315809,{"$f":"IF(tbl_twdbdata[[#This Row],[Year]]=2016,0,tbl_twdbdata[[#This Row],[effsave]]-0.6*SUMIFS(tbl_twdbdata[effsave],tbl_twdbdata[Year],2020,tbl_twdbdata[utility],tbl_twdbdata[[#This Row],[utility]]))","v":6499606.8000000007},807,18,217,0,48153834,181025,39414225,0,1640213,7166294,{"$f":"tbl_twdbdata[[#This Row],[utility]]&tbl_twdbdata[[#This Row],[Year]]","v":"FLATONIA2030"}]
[null,781,"FLATONIA","K",2040,1464,2052,13301885,{"$f":"IF(tbl_twdbdata[[#This Row],[Year]]=2016,0,tbl_twdbdata[[#This Row],[effsave]]-0.6*SUMIFS(tbl_twdbdata[effsave],tbl_twdbdata[Year],2020,tbl_twdbdata[utility],tbl_twdbdata[[#This Row],[utility]]))","v":9485682.8000000007},875,21,248,0,52198451,196230,42724770,0,1777980,7768217,{"$f":"tbl_twdbdata[[#This Row],[utility]]&tbl_twdbdata[[#This Row],[Year]]","v":"FLATONIA2040"}]
[null,781,"FLATONIA","K",2050,1464,2183,15266592,{"$f":"IF(tbl_twdbdata[[#This Row],[Year]]=2016,0,tbl_twdbdata[[#This Row],[effsave]]-0.6*SUMIFS(tbl_twdbdata[effsave],tbl_twdbdata[Year],2020,tbl_twdbdata[utility],tbl_twdbdata[[#This Row],[utility]]))","v":11450389.800000001},931,24,283,0,55530808,208757,45452326,0,1891487,8264141,{"$f":"tbl_twdbdata[[#This Row],[utility]]&tbl_twdbdata[[#This Row],[Year]]","v":"FLATONIA2050"}]
[null,781,"FLATONIA","K",2060,1464,2287,16202595,{"$f":"IF(tbl_twdbdata[[#This Row],[Year]]=2016,0,tbl_twdbdata[[#This Row],[effsave]]-0.6*SUMIFS(tbl_twdbdata[effsave],tbl_twdbdata[Year],2020,tbl_twdbdata[utility],tbl_twdbdata[[#This Row],[utility]]))","v":12386392.800000001},975,27,323,0,58176344,218702,47617714,0,1981599,8657852,{"$f":"tbl_twdbdata[[#This Row],[utility]]&tbl_twdbdata[[#This Row],[Year]]","v":"FLATONIA2060"}]
[null,781,"FLATONIA","K",2070,1464,2365,16798359,{"$f":"IF(tbl_twdbdata[[#This Row],[Year]]=2016,0,tbl_twdbdata[[#This Row],[effsave]]-0.6*SUMIFS(tbl_twdbdata[effsave],tbl_twdbdata[Year],2020,tbl_twdbdata[utility],tbl_twdbdata[[#This Row],[utility]]))","v":12982156.800000001},1008,31,369,0,60160496,226161,49241755,0,2049183,8953135,{"$f":"tbl_twdbdata[[#This Row],[utility]]&tbl_twdbdata[[#This Row],[Year]]","v":"FLATONIA2070"}]
[null,785,"FLOWER MOUND","C",2016,68050,68050,0,{"$f":"IF(tbl_twdbdata[[#This Row],[Year]]=2016,0,tbl_twdbdata[[#This Row],[effsave]]-0.6*SUMIFS(tbl_twdbdata[effsave],tbl_twdbdata[Year],2020,tbl_twdbdata[utility],tbl_twdbdata[[#This Row],[utility]]))","v":0},21719,63,1567,0,3280174127,48223620,906591085,0,null,null,{"$f":"tbl_twdbdata[[#This Row],[utility]]&tbl_twdbdata[[#This Row],[Year]]","v":"FLOWER MOUND2016"}]
[null,785,"FLOWER MOUND","C",2020,68050,75555,218690170,{"$f":"IF(tbl_twdbdata[[#This Row],[Year]]=2016,0,tbl_twdbdata[[#This Row],[effsave]]-0.6*SUMIFS(tbl_twdbdata[effsave],tbl_twdbdata[Year],2020,tbl_twdbdata[utility],tbl_twdbdata[[#This Row],[utility]]))","v":87476068},24114,70,1740,0,3641933228,53542037,1006575891,0,null,null,{"$f":"tbl_twdbdata[[#This Row],[utility]]&tbl_twdbdata[[#This Row],[Year]]","v":"FLOWER MOUND2020"}]
[null,785,"FLOWER MOUND","C",2030,68050,84470,333289056,{"$f":"IF(tbl_twdbdata[[#This Row],[Year]]=2016,0,tbl_twdbdata[[#This Row],[effsave]]-0.6*SUMIFS(tbl_twdbdata[effsave],tbl_twdbdata[Year],2020,tbl_twdbdata[utility],tbl_twdbdata[[#This Row],[utility]]))","v":202074954},26959,78,1946,0,4071657730,59859650,1125345318,0,null,null,{"$f":"tbl_twdbdata[[#This Row],[utility]]&tbl_twdbdata[[#This Row],[Year]]","v":"FLOWER MOUND2030"}]
[null,785,"FLOWER MOUND","C",2040,68050,86270,378177486,{"$f":"IF(tbl_twdbdata[[#This Row],[Year]]=2016,0,tbl_twdbdata[[#This Row],[effsave]]-0.6*SUMIFS(tbl_twdbdata[effsave],tbl_twdbdata[Year],2020,tbl_twdbdata[utility],tbl_twdbdata[[#This Row],[utility]]))","v":246963384},27533,87,2176,0,4158422071,61135220,1149325685,0,null,null,{"$f":"tbl_twdbdata[[#This Row],[utility]]&tbl_twdbdata[[#This Row],[Year]]","v":"FLOWER MOUND2040"}]
[null,785,"FLOWER MOUND","C",2050,68050,88270,409819956,{"$f":"IF(tbl_twdbdata[[#This Row],[Year]]=2016,0,tbl_twdbdata[[#This Row],[effsave]]-0.6*SUMIFS(tbl_twdbdata[effsave],tbl_twdbdata[Year],2020,tbl_twdbdata[utility],tbl_twdbdata[[#This Row],[utility]]))","v":278605854},28171,97,2433,0,4254826895,62552520,1175970537,0,null,null,{"$f":"tbl_twdbdata[[#This Row],[utility]]&tbl_twdbdata[[#This Row],[Year]]","v":"FLOWER MOUND2050"}]
[null,785,"FLOWER MOUND","C",2060,68050,90270,426683723,{"$f":"IF(tbl_twdbdata[[#This Row],[Year]]=2016,0,tbl_twdbdata[[#This Row],[effsave]]-0.6*SUMIFS(tbl_twdbdata[effsave],tbl_twdbdata[Year],2020,tbl_twdbdata[utility],tbl_twdbdata[[#This Row],[utility]]))","v":295469621},28809,108,2720,0,4351231719,63969820,1202615389,0,null,null,{"$f":"tbl_twdbdata[[#This Row],[utility]]&tbl_twdbdata[[#This Row],[Year]]","v":"FLOWER MOUND2060"}]
[null,785,"FLOWER MOUND","C",2070,68050,93000,440266650,{"$f":"IF(tbl_twdbdata[[#This Row],[Year]]=2016,0,tbl_twdbdata[[#This Row],[effsave]]-0.6*SUMIFS(tbl_twdbdata[effsave],tbl_twdbdata[Year],2020,tbl_twdbdata[utility],tbl_twdbdata[[#This Row],[utility]]))","v":309052548},29680,121,3041,0,4482824303,65904434,1238985612,0,null,null,{"$f":"tbl_twdbdata[[#This Row],[utility]]&tbl_twdbdata[[#This Row],[Year]]","v":"FLOWER MOUND2070"}]
[null,787,"FOREST HILL","C",2016,13000,13000,0,{"$f":"IF(tbl_twdbdata[[#This Row],[Year]]=2016,0,tbl_twdbdata[[#This Row],[effsave]]-0.6*SUMIFS(tbl_twdbdata[effsave],tbl_twdbdata[Year],2020,tbl_twdbdata[utility],tbl_twdbdata[[#This Row],[utility]]))","v":0},4007,0,300,0,253895000,0,76232000,0,7571603,47069646,{"$f":"tbl_twdbdata[[#This Row],[utility]]&tbl_twdbdata[[#This Row],[Year]]","v":"FOREST HILL2016"}]
[null,787,"FOREST HILL","C",2020,12975,12975,44896095,{"$f":"IF(tbl_twdbdata[[#This Row],[Year]]=2016,0,tbl_twdbdata[[#This Row],[effsave]]-0.6*SUMIFS(tbl_twdbdata[effsave],tbl_twdbdata[Year],2020,tbl_twdbdata[utility],tbl_twdbdata[[#This Row],[utility]]))","v":17958438},4007,0,300,0,253895000,0,76232000,0,7571603,47069646,{"$f":"tbl_twdbdata[[#This Row],[utility]]&tbl_twdbdata[[#This Row],[Year]]","v":"FOREST HILL2020"}]
[null,787,"FOREST HILL","C",2030,12975,13761,68510515,{"$f":"IF(tbl_twdbdata[[#This Row],[Year]]=2016,0,tbl_twdbdata[[#This Row],[effsave]]-0.6*SUMIFS(tbl_twdbdata[effsave],tbl_twdbdata[Year],2020,tbl_twdbdata[utility],tbl_twdbdata[[#This Row],[utility]]))","v":41572858},4250,0,318,0,269275460,0,80849985,0,8030276,49921033,{"$f":"tbl_twdbdata[[#This Row],[utility]]&tbl_twdbdata[[#This Row],[Year]]","v":"FOREST HILL2030"}]
[null,787,"FOREST HILL","C",2040,12975,14971,92075393,{"$f":"IF(tbl_twdbdata[[#This Row],[Year]]=2016,0,tbl_twdbdata[[#This Row],[effsave]]-0.6*SUMIFS(tbl_twdbdata[effsave],tbl_twdbdata[Year],2020,tbl_twdbdata[utility],tbl_twdbdata[[#This Row],[utility]]))","v":65137736},4624,0,337,0,292952759,0,87959096,0,8736375,54310572,{"$f":"tbl_twdbdata[[#This Row],[utility]]&tbl_twdbdata[[#This Row],[Year]]","v":"FOREST HILL2040"}]
[null,787,"FOREST HILL","C",2050,12975,17965,121833241,{"$f":"IF(tbl_twdbdata[[#This Row],[Year]]=2016,0,tbl_twdbdata[[#This Row],[effsave]]-0.6*SUMIFS(tbl_twdbdata[effsave],tbl_twdbdata[Year],2020,tbl_twdbdata[utility],tbl_twdbdata[[#This Row],[utility]]))","v":94895584},5549,0,357,0,351539397,0,105549740,0,10483533,65171961,{"$f":"tbl_twdbdata[[#This Row],[utility]]&tbl_twdbdata[[#This Row],[Year]]","v":"FOREST HILL2050"}]
[null,787,"FOREST HILL","C",2060,12975,22955,159360497,{"$f":"IF(tbl_twdbdata[[#This Row],[Year]]=2016,0,tbl_twdbdata[[#This Row],[effsave]]-0.6*SUMIFS(tbl_twdbdata[effsave],tbl_twdbdata[Year],2020,tbl_twdbdata[utility],tbl_twdbdata[[#This Row],[utility]]))","v":132422840},7090,0,379,0,449183794,0,134867480,0,13395463,83274276,{"$f":"tbl_twdbdata[[#This Row],[utility]]&tbl_twdbdata[[#This Row],[Year]]","v":"FOREST HILL2060"}]
[null,787,"FOREST HILL","C",2070,12975,29942,209833536,{"$f":"IF(tbl_twdbdata[[#This Row],[Year]]=2016,0,tbl_twdbdata[[#This Row],[effsave]]-0.6*SUMIFS(tbl_twdbdata[effsave],tbl_twdbdata[Year],2020,tbl_twdbdata[utility],tbl_twdbdata[[#This Row],[utility]]))","v":182895879},9248,0,402,0,585905518,0,175918192,0,17472749,108621144,{"$f":"tbl_twdbdata[[#This Row],[utility]]&tbl_twdbdata[[#This Row],[Year]]","v":"FOREST HILL2070"}]
[null,52,"FORNEY","C",2016,17900,17900,0,{"$f":"IF(tbl_twdbdata[[#This Row],[Year]]=2016,0,tbl_twdbdata[[#This Row],[effsave]]-0.6*SUMIFS(tbl_twdbdata[effsave],tbl_twdbdata[Year],2020,tbl_twdbdata[utility],tbl_twdbdata[[#This Row],[utility]]))","v":0},5380,200,527,0,418826022,9387280,387143600,0,25053270,-85428539,{"$f":"tbl_twdbdata[[#This Row],[utility]]&tbl_twdbdata[[#This Row],[Year]]","v":"FORNEY2016"}]
[null,52,"FORNEY","C",2020,16876,21341,60134670,{"$f":"IF(tbl_twdbdata[[#This Row],[Year]]=2016,0,tbl_twdbdata[[#This Row],[effsave]]-0.6*SUMIFS(tbl_twdbdata[effsave],tbl_twdbdata[Year],2020,tbl_twdbdata[utility],tbl_twdbdata[[#This Row],[utility]]))","v":24053868},6803,253,667,0,529637718,11870938,489572859,0,31681787,-108030958,{"$f":"tbl_twdbdata[[#This Row],[utility]]&tbl_twdbdata[[#This Row],[Year]]","v":"FORNEY2020"}]
[null,52,"FORNEY","C",2030,16876,24927,88436011,{"$f":"IF(tbl_twdbdata[[#This Row],[Year]]=2016,0,tbl_twdbdata[[#This Row],[effsave]]-0.6*SUMIFS(tbl_twdbdata[effsave],tbl_twdbdata[Year],2020,tbl_twdbdata[utility],tbl_twdbdata[[#This Row],[utility]]))","v":52355209},7946,296,780,0,618634525,13865652,571837432,0,37005384,-126183763,{"$f":"tbl_twdbdata[[#This Row],[utility]]&tbl_twdbdata[[#This Row],[Year]]","v":"FORNEY2030"}]
[null,52,"FORNEY","C",2040,16876,31904,126114917,{"$f":"IF(tbl_twdbdata[[#This Row],[Year]]=2016,0,tbl_twdbdata[[#This Row],[effsave]]-0.6*SUMIFS(tbl_twdbdata[effsave],tbl_twdbdata[Year],2020,tbl_twdbdata[utility],tbl_twdbdata[[#This Row],[utility]]))","v":90034115},10170,346,911,0,791788658,17746611,731893185,0,47363091,-161502258,{"$f":"tbl_twdbdata[[#This Row],[utility]]&tbl_twdbdata[[#This Row],[Year]]","v":"FORNEY2040"}]
[null,52,"FORNEY","C",2050,16876,40020,165500709,{"$f":"IF(tbl_twdbdata[[#This Row],[Year]]=2016,0,tbl_twdbdata[[#This Row],[effsave]]-0.6*SUMIFS(tbl_twdbdata[effsave],tbl_twdbdata[Year],2020,tbl_twdbdata[utility],tbl_twdbdata[[#This Row],[utility]]))","v":129419907},12757,404,1064,0,993210321,22261139,918078149,0,59411701,-202586521,{"$f":"tbl_twdbdata[[#This Row],[utility]]&tbl_twdbdata[[#This Row],[Year]]","v":"FORNEY2050"}]
[null,52,"FORNEY","C",2060,16876,59400,251716410,{"$f":"IF(tbl_twdbdata[[#This Row],[Year]]=2016,0,tbl_twdbdata[[#This Row],[effsave]]-0.6*SUMIFS(tbl_twdbdata[effsave],tbl_twdbdata[Year],2020,tbl_twdbdata[utility],tbl_twdbdata[[#This Row],[utility]]))","v":215635608},18935,472,1243,0,1474180237,33041271,1362664719,0,88182285,-300690638,{"$f":"tbl_twdbdata[[#This Row],[utility]]&tbl_twdbdata[[#This Row],[Year]]","v":"FORNEY2060"}]
[null,52,"FORNEY","C",2070,16876,79200,338801760,{"$f":"IF(tbl_twdbdata[[#This Row],[Year]]=2016,0,tbl_twdbdata[[#This Row],[effsave]]-0.6*SUMIFS(tbl_twdbdata[effsave],tbl_twdbdata[Year],2020,tbl_twdbdata[utility],tbl_twdbdata[[#This Row],[utility]]))","v":302720958},25247,551,1452,0,1965573649,44055028,1816886292,0,117576380,-400920851,{"$f":"tbl_twdbdata[[#This Row],[utility]]&tbl_twdbdata[[#This Row],[Year]]","v":"FORNEY2070"}]
[null,6612,"FORT BEND COUNTY FWSD 1","H",2016,1611,1684,0,{"$f":"IF(tbl_twdbdata[[#This Row],[Year]]=2016,0,tbl_twdbdata[[#This Row],[effsave]]-0.6*SUMIFS(tbl_twdbdata[effsave],tbl_twdbdata[Year],2020,tbl_twdbdata[utility],tbl_twdbdata[[#This Row],[utility]]))","v":0},537,0,25,0,36637000,0,2324710,0,0,14596757,{"$f":"tbl_twdbdata[[#This Row],[utility]]&tbl_twdbdata[[#This Row],[Year]]","v":"FORT BEND COUNTY FWSD 12016"}]
[null,6612,"FORT BEND COUNTY FWSD 1","H",2020,1611,1184,3150446,{"$f":"IF(tbl_twdbdata[[#This Row],[Year]]=2016,0,tbl_twdbdata[[#This Row],[effsave]]-0.6*SUMIFS(tbl_twdbdata[effsave],tbl_twdbdata[Year],2020,tbl_twdbdata[utility],tbl_twdbdata[[#This Row],[utility]]))","v":1260178.4000000001},378,0,18,0,25759031,0,1634475,0,0,10262803,{"$f":"tbl_twdbdata[[#This Row],[utility]]&tbl_twdbdata[[#This Row],[Year]]","v":"FORT BEND COUNTY FWSD 12020"}]
[null,6612,"FORT BEND COUNTY FWSD 1","H",2030,1611,1470,5032839,{"$f":"IF(tbl_twdbdata[[#This Row],[Year]]=2016,0,tbl_twdbdata[[#This Row],[effsave]]-0.6*SUMIFS(tbl_twdbdata[effsave],tbl_twdbdata[Year],2020,tbl_twdbdata[utility],tbl_twdbdata[[#This Row],[utility]]))","v":3142571.4000000004},469,0,22,0,31981229,0,2029289,0,0,12741825,{"$f":"tbl_twdbdata[[#This Row],[utility]]&tbl_twdbdata[[#This Row],[Year]]","v":"FORT BEND COUNTY FWSD 12030"}]
[null,6612,"FORT BEND COUNTY FWSD 1","H",2040,1611,1691,5789477,{"$f":"IF(tbl_twdbdata[[#This Row],[Year]]=2016,0,tbl_twdbdata[[#This Row],[effsave]]-0.6*SUMIFS(tbl_twdbdata[effsave],tbl_twdbdata[Year],2020,tbl_twdbdata[utility],tbl_twdbdata[[#This Row],[utility]]))","v":3899209.4000000004},540,0,27,0,36789291,0,2334373,0,0,14657433,{"$f":"tbl_twdbdata[[#This Row],[utility]]&tbl_twdbdata[[#This Row],[Year]]","v":"FORT BEND COUNTY FWSD 12040"}]
[null,6612,"FORT BEND COUNTY FWSD 1","H",2050,1611,1909,6535843,{"$f":"IF(tbl_twdbdata[[#This Row],[Year]]=2016,0,tbl_twdbdata[[#This Row],[effsave]]-0.6*SUMIFS(tbl_twdbdata[effsave],tbl_twdbdata[Year],2020,tbl_twdbdata[utility],tbl_twdbdata[[#This Row],[utility]]))","v":4645575.4000000004},610,0,33,0,41532085,0,2635315,0,0,16547037,{"$f":"tbl_twdbdata[[#This Row],[utility]]&tbl_twdbdata[[#This Row],[Year]]","v":"FORT BEND COUNTY FWSD 12050"}]
[null,6612,"FORT BEND COUNTY FWSD 1","H",2060,1611,2127,7282210,{"$f":"IF(tbl_twdbdata[[#This Row],[Year]]=2016,0,tbl_twdbdata[[#This Row],[effsave]]-0.6*SUMIFS(tbl_twdbdata[effsave],tbl_twdbdata[Year],2020,tbl_twdbdata[utility],tbl_twdbdata[[#This Row],[utility]]))","v":5391942.4000000004},680,0,41,0,46274879,0,2936257,0,0,18436641,{"$f":"tbl_twdbdata[[#This Row],[utility]]&tbl_twdbdata[[#This Row],[Year]]","v":"FORT BEND COUNTY FWSD 12060"}]
[null,6612,"FORT BEND COUNTY FWSD 1","H",2070,1611,2357,8069661,{"$f":"IF(tbl_twdbdata[[#This Row],[Year]]=2016,0,tbl_twdbdata[[#This Row],[effsave]]-0.6*SUMIFS(tbl_twdbdata[effsave],tbl_twdbdata[Year],2020,tbl_twdbdata[utility],tbl_twdbdata[[#This Row],[utility]]))","v":6179393.4000000004},754,0,51,0,51278745,0,3253765,0,0,20430260,{"$f":"tbl_twdbdata[[#This Row],[utility]]&tbl_twdbdata[[#This Row],[Year]]","v":"FORT BEND COUNTY FWSD 12070"}]
[null,794,"FORT BEND COUNTY MUD 23","H",2016,12075,12075,0,{"$f":"IF(tbl_twdbdata[[#This Row],[Year]]=2016,0,tbl_twdbdata[[#This Row],[effsave]]-0.6*SUMIFS(tbl_twdbdata[effsave],tbl_twdbdata[Year],2020,tbl_twdbdata[utility],tbl_twdbdata[[#This Row],[utility]]))","v":0},4363,0,28,0,337593000,0,35568000,0,2025050,19281034,{"$f":"tbl_twdbdata[[#This Row],[utility]]&tbl_twdbdata[[#This Row],[Year]]","v":"FORT BEND COUNTY MUD 232016"}]
[null,794,"FORT BEND COUNTY MUD 23","H",2020,11980,11709,23121177,{"$f":"IF(tbl_twdbdata[[#This Row],[Year]]=2016,0,tbl_twdbdata[[#This Row],[effsave]]-0.6*SUMIFS(tbl_twdbdata[effsave],tbl_twdbdata[Year],2020,tbl_twdbdata[utility],tbl_twdbdata[[#This Row],[utility]]))","v":9248470.8000000007},4264,0,28,0,329956297,0,34763415,0,1979241,18844877,{"$f":"tbl_twdbdata[[#This Row],[utility]]&tbl_twdbdata[[#This Row],[Year]]","v":"FORT BEND COUNTY MUD 232020"}]
[null,794,"FORT BEND COUNTY MUD 23","H",2030,11980,12481,30340063,{"$f":"IF(tbl_twdbdata[[#This Row],[Year]]=2016,0,tbl_twdbdata[[#This Row],[effsave]]-0.6*SUMIFS(tbl_twdbdata[effsave],tbl_twdbdata[Year],2020,tbl_twdbdata[utility],tbl_twdbdata[[#This Row],[utility]]))","v":16467356.800000001},4545,0,30,0,351711038,0,37055443,0,2109737,20087361,{"$f":"tbl_twdbdata[[#This Row],[utility]]&tbl_twdbdata[[#This Row],[Year]]","v":"FORT BEND COUNTY MUD 232030"}]
[null,794,"FORT BEND COUNTY MUD 23","H",2040,11980,12902,33529718,{"$f":"IF(tbl_twdbdata[[#This Row],[Year]]=2016,0,tbl_twdbdata[[#This Row],[effsave]]-0.6*SUMIFS(tbl_twdbdata[effsave],tbl_twdbdata[Year],2020,tbl_twdbdata[utility],tbl_twdbdata[[#This Row],[utility]]))","v":19657011.800000001},4698,0,32,0,363574699,0,38305371,0,2180901,20764933,{"$f":"tbl_twdbdata[[#This Row],[utility]]&tbl_twdbdata[[#This Row],[Year]]","v":"FORT BEND COUNTY MUD 232040"}]
[null,794,"FORT BEND COUNTY MUD 23","H",2050,11980,13323,36423084,{"$f":"IF(tbl_twdbdata[[#This Row],[Year]]=2016,0,tbl_twdbdata[[#This Row],[effsave]]-0.6*SUMIFS(tbl_twdbdata[effsave],tbl_twdbdata[Year],2020,tbl_twdbdata[utility],tbl_twdbdata[[#This Row],[utility]]))","v":22550377.800000001},4851,0,34,0,375438360,0,39555299,0,2252065,21442505,{"$f":"tbl_twdbdata[[#This Row],[utility]]&tbl_twdbdata[[#This Row],[Year]]","v":"FORT BEND COUNTY MUD 232050"}]
[null,794,"FORT BEND COUNTY MUD 23","H",2060,11980,13744,39028837,{"$f":"IF(tbl_twdbdata[[#This Row],[Year]]=2016,0,tbl_twdbdata[[#This Row],[effsave]]-0.6*SUMIFS(tbl_twdbdata[effsave],tbl_twdbdata[Year],2020,tbl_twdbdata[utility],tbl_twdbdata[[#This Row],[utility]]))","v":25156130.800000001},5004,0,36,0,387302021,0,40805227,0,2323229,22120077,{"$f":"tbl_twdbdata[[#This Row],[utility]]&tbl_twdbdata[[#This Row],[Year]]","v":"FORT BEND COUNTY MUD 232060"}]
[null,794,"FORT BEND COUNTY MUD 23","H",2070,11980,14164,40480004,{"$f":"IF(tbl_twdbdata[[#This Row],[Year]]=2016,0,tbl_twdbdata[[#This Row],[effsave]]-0.6*SUMIFS(tbl_twdbdata[effsave],tbl_twdbdata[Year],2020,tbl_twdbdata[utility],tbl_twdbdata[[#This Row],[utility]]))","v":26607297.800000001},5157,0,38,0,399137502,0,42052186,0,2394224,22796040,{"$f":"tbl_twdbdata[[#This Row],[utility]]&tbl_twdbdata[[#This Row],[Year]]","v":"FORT BEND COUNTY MUD 232070"}]
[null,795,"FORT BEND COUNTY MUD 25","H",2016,16016,16016,0,{"$f":"IF(tbl_twdbdata[[#This Row],[Year]]=2016,0,tbl_twdbdata[[#This Row],[effsave]]-0.6*SUMIFS(tbl_twdbdata[effsave],tbl_twdbdata[Year],2020,tbl_twdbdata[utility],tbl_twdbdata[[#This Row],[utility]]))","v":0},3904,672,141,0,348537899,31701900,83582245,0,34139192,24172097,{"$f":"tbl_twdbdata[[#This Row],[utility]]&tbl_twdbdata[[#This Row],[Year]]","v":"FORT BEND COUNTY MUD 252016"}]
[null,795,"FORT BEND COUNTY MUD 25","H",2020,14681,11954,30716998,{"$f":"IF(tbl_twdbdata[[#This Row],[Year]]=2016,0,tbl_twdbdata[[#This Row],[effsave]]-0.6*SUMIFS(tbl_twdbdata[effsave],tbl_twdbdata[Year],2020,tbl_twdbdata[utility],tbl_twdbdata[[#This Row],[utility]]))","v":12286799.199999999},3179,547,115,0,283796883,25813263,68056818,0,27797827,19682123,{"$f":"tbl_twdbdata[[#This Row],[utility]]&tbl_twdbdata[[#This Row],[Year]]","v":"FORT BEND COUNTY MUD 252020"}]
[null,795,"FORT BEND COUNTY MUD 25","H",2030,14681,12068,41361260,{"$f":"IF(tbl_twdbdata[[#This Row],[Year]]=2016,0,tbl_twdbdata[[#This Row],[effsave]]-0.6*SUMIFS(tbl_twdbdata[effsave],tbl_twdbdata[Year],2020,tbl_twdbdata[utility],tbl_twdbdata[[#This Row],[utility]]))","v":22931061.199999999},3209,552,116,0,286503328,26059433,68705846,0,28062923,19869823,{"$f":"tbl_twdbdata[[#This Row],[utility]]&tbl_twdbdata[[#This Row],[Year]]","v":"FORT BEND COUNTY MUD 252030"}]
[null,795,"FORT BEND COUNTY MUD 25","H",2040,14681,12254,49468173,{"$f":"IF(tbl_twdbdata[[#This Row],[Year]]=2016,0,tbl_twdbdata[[#This Row],[effsave]]-0.6*SUMIFS(tbl_twdbdata[effsave],tbl_twdbdata[Year],2020,tbl_twdbdata[utility],tbl_twdbdata[[#This Row],[utility]]))","v":31037974.199999999},3258,557,117,0,290919107,26461078,69764785,0,28495447,20176070,{"$f":"tbl_twdbdata[[#This Row],[utility]]&tbl_twdbdata[[#This Row],[Year]]","v":"FORT BEND COUNTY MUD 252040"}]
[null,795,"FORT BEND COUNTY MUD 25","H",2050,14681,12474,54909301,{"$f":"IF(tbl_twdbdata[[#This Row],[Year]]=2016,0,tbl_twdbdata[[#This Row],[effsave]]-0.6*SUMIFS(tbl_twdbdata[effsave],tbl_twdbdata[Year],2020,tbl_twdbdata[utility],tbl_twdbdata[[#This Row],[utility]]))","v":36479102.200000003},3316,562,118,0,296142071,26936142,71017294,0,29007035,20538297,{"$f":"tbl_twdbdata[[#This Row],[utility]]&tbl_twdbdata[[#This Row],[Year]]","v":"FORT BEND COUNTY MUD 252050"}]
[null,795,"FORT BEND COUNTY MUD 25","H",2060,14681,12701,57438367,{"$f":"IF(tbl_twdbdata[[#This Row],[Year]]=2016,0,tbl_twdbdata[[#This Row],[effsave]]-0.6*SUMIFS(tbl_twdbdata[effsave],tbl_twdbdata[Year],2020,tbl_twdbdata[utility],tbl_twdbdata[[#This Row],[utility]]))","v":39008168.200000003},3376,567,119,0,301531220,27426322,72309656,0,29534901,20912050,{"$f":"tbl_twdbdata[[#This Row],[utility]]&tbl_twdbdata[[#This Row],[Year]]","v":"FORT BEND COUNTY MUD 252060"}]
[null,795,"FORT BEND COUNTY MUD 25","H",2070,14681,12931,58572904,{"$f":"IF(tbl_twdbdata[[#This Row],[Year]]=2016,0,tbl_twdbdata[[#This Row],[effsave]]-0.6*SUMIFS(tbl_twdbdata[effsave],tbl_twdbdata[Year],2020,tbl_twdbdata[utility],tbl_twdbdata[[#This Row],[utility]]))","v":40142705.200000003},3437,572,120,0,306991592,27922980,73619098,0,30069743,21290742,{"$f":"tbl_twdbdata[[#This Row],[utility]]&tbl_twdbdata[[#This Row],[Year]]","v":"FORT BEND COUNTY MUD 252070"}]
[null,6309,"FORT BEND COUNTY MUD 26","H",2016,4542,4542,0,{"$f":"IF(tbl_twdbdata[[#This Row],[Year]]=2016,0,tbl_twdbdata[[#This Row],[effsave]]-0.6*SUMIFS(tbl_twdbdata[effsave],tbl_twdbdata[Year],2020,tbl_twdbdata[utility],tbl_twdbdata[[#This Row],[utility]]))","v":0},1464,0,50,0,97699000,0,18850000,0,2369000,1713610,{"$f":"tbl_twdbdata[[#This Row],[utility]]&tbl_twdbdata[[#This Row],[Year]]","v":"FORT BEND COUNTY MUD 262016"}]
[null,6309,"FORT BEND COUNTY MUD 26","H",2020,4448,5276,14038645,{"$f":"IF(tbl_twdbdata[[#This Row],[Year]]=2016,0,tbl_twdbdata[[#This Row],[effsave]]-0.6*SUMIFS(tbl_twdbdata[effsave],tbl_twdbdata[Year],2020,tbl_twdbdata[utility],tbl_twdbdata[[#This Row],[utility]]))","v":5615458},1737,0,59,0,115885774,0,22358948,0,2809992,2032600,{"$f":"tbl_twdbdata[[#This Row],[utility]]&tbl_twdbdata[[#This Row],[Year]]","v":"FORT BEND COUNTY MUD 262020"}]
[null,6309,"FORT BEND COUNTY MUD 26","H",2030,4448,6460,21786996,{"$f":"IF(tbl_twdbdata[[#This Row],[Year]]=2016,0,tbl_twdbdata[[#This Row],[effsave]]-0.6*SUMIFS(tbl_twdbdata[effsave],tbl_twdbdata[Year],2020,tbl_twdbdata[utility],tbl_twdbdata[[#This Row],[utility]]))","v":13363809},2127,0,72,0,141891983,0,27376574,0,3440589,2488741,{"$f":"tbl_twdbdata[[#This Row],[utility]]&tbl_twdbdata[[#This Row],[Year]]","v":"FORT BEND COUNTY MUD 262030"}]
[null,6309,"FORT BEND COUNTY MUD 26","H",2040,4448,7626,28363763,{"$f":"IF(tbl_twdbdata[[#This Row],[Year]]=2016,0,tbl_twdbdata[[#This Row],[effsave]]-0.6*SUMIFS(tbl_twdbdata[effsave],tbl_twdbdata[Year],2020,tbl_twdbdata[utility],tbl_twdbdata[[#This Row],[utility]]))","v":19940576},2511,0,88,0,167502827,0,32317918,0,4061599,2937947,{"$f":"tbl_twdbdata[[#This Row],[utility]]&tbl_twdbdata[[#This Row],[Year]]","v":"FORT BEND COUNTY MUD 262040"}]
[null,6309,"FORT BEND COUNTY MUD 26","H",2050,4448,7626,29755508,{"$f":"IF(tbl_twdbdata[[#This Row],[Year]]=2016,0,tbl_twdbdata[[#This Row],[effsave]]-0.6*SUMIFS(tbl_twdbdata[effsave],tbl_twdbdata[Year],2020,tbl_twdbdata[utility],tbl_twdbdata[[#This Row],[utility]]))","v":21332321},2511,0,108,0,167502827,0,32317918,0,4061599,2937947,{"$f":"tbl_twdbdata[[#This Row],[utility]]&tbl_twdbdata[[#This Row],[Year]]","v":"FORT BEND COUNTY MUD 262050"}]
[null,6309,"FORT BEND COUNTY MUD 26","H",2060,4448,7626,30340041,{"$f":"IF(tbl_twdbdata[[#This Row],[Year]]=2016,0,tbl_twdbdata[[#This Row],[effsave]]-0.6*SUMIFS(tbl_twdbdata[effsave],tbl_twdbdata[Year],2020,tbl_twdbdata[utility],tbl_twdbdata[[#This Row],[utility]]))","v":21916854},2511,0,132,0,167502827,0,32317918,0,4061599,2937947,{"$f":"tbl_twdbdata[[#This Row],[utility]]&tbl_twdbdata[[#This Row],[Year]]","v":"FORT BEND COUNTY MUD 262060"}]
[null,6309,"FORT BEND COUNTY MUD 26","H",2070,4448,7626,30507050,{"$f":"IF(tbl_twdbdata[[#This Row],[Year]]=2016,0,tbl_twdbdata[[#This Row],[effsave]]-0.6*SUMIFS(tbl_twdbdata[effsave],tbl_twdbdata[Year],2020,tbl_twdbdata[utility],tbl_twdbdata[[#This Row],[utility]]))","v":22083863},2511,0,162,0,167502827,0,32317918,0,4061599,2937947,{"$f":"tbl_twdbdata[[#This Row],[utility]]&tbl_twdbdata[[#This Row],[Year]]","v":"FORT BEND COUNTY MUD 262070"}]
[null,6310,"FORT BEND COUNTY MUD 42","H",2016,4463,4463,0,{"$f":"IF(tbl_twdbdata[[#This Row],[Year]]=2016,0,tbl_twdbdata[[#This Row],[effsave]]-0.6*SUMIFS(tbl_twdbdata[effsave],tbl_twdbdata[Year],2020,tbl_twdbdata[utility],tbl_twdbdata[[#This Row],[utility]]))","v":0},1326,120,41,0,144187000,3206000,32594000,0,null,null,{"$f":"tbl_twdbdata[[#This Row],[utility]]&tbl_twdbdata[[#This Row],[Year]]","v":"FORT BEND COUNTY MUD 422016"}]
[null,6310,"FORT BEND COUNTY MUD 42","H",2020,4461,4530,12053651,{"$f":"IF(tbl_twdbdata[[#This Row],[Year]]=2016,0,tbl_twdbdata[[#This Row],[effsave]]-0.6*SUMIFS(tbl_twdbdata[effsave],tbl_twdbdata[Year],2020,tbl_twdbdata[utility],tbl_twdbdata[[#This Row],[utility]]))","v":4821460.4000000004},1347,122,42,0,146417196,3255588,33098144,0,null,null,{"$f":"tbl_twdbdata[[#This Row],[utility]]&tbl_twdbdata[[#This Row],[Year]]","v":"FORT BEND COUNTY MUD 422020"}]
[null,6310,"FORT BEND COUNTY MUD 42","H",2030,4461,5547,18707812,{"$f":"IF(tbl_twdbdata[[#This Row],[Year]]=2016,0,tbl_twdbdata[[#This Row],[effsave]]-0.6*SUMIFS(tbl_twdbdata[effsave],tbl_twdbdata[Year],2020,tbl_twdbdata[utility],tbl_twdbdata[[#This Row],[utility]]))","v":11475621.4},1649,149,51,0,179288341,3986478,40528787,0,null,null,{"$f":"tbl_twdbdata[[#This Row],[utility]]&tbl_twdbdata[[#This Row],[Year]]","v":"FORT BEND COUNTY MUD 422030"}]
[null,6310,"FORT BEND COUNTY MUD 42","H",2040,4461,5547,20631234,{"$f":"IF(tbl_twdbdata[[#This Row],[Year]]=2016,0,tbl_twdbdata[[#This Row],[effsave]]-0.6*SUMIFS(tbl_twdbdata[effsave],tbl_twdbdata[Year],2020,tbl_twdbdata[utility],tbl_twdbdata[[#This Row],[utility]]))","v":13399043.4},1649,182,62,0,179288341,3986478,40528787,0,null,null,{"$f":"tbl_twdbdata[[#This Row],[utility]]&tbl_twdbdata[[#This Row],[Year]]","v":"FORT BEND COUNTY MUD 422040"}]
[null,6310,"FORT BEND COUNTY MUD 42","H",2050,4461,5547,21643562,{"$f":"IF(tbl_twdbdata[[#This Row],[Year]]=2016,0,tbl_twdbdata[[#This Row],[effsave]]-0.6*SUMIFS(tbl_twdbdata[effsave],tbl_twdbdata[Year],2020,tbl_twdbdata[utility],tbl_twdbdata[[#This Row],[utility]]))","v":14411371.4},1649,223,76,0,179288341,3986478,40528787,0,null,null,{"$f":"tbl_twdbdata[[#This Row],[utility]]&tbl_twdbdata[[#This Row],[Year]]","v":"FORT BEND COUNTY MUD 422050"}]
[null,6310,"FORT BEND COUNTY MUD 42","H",2060,4461,5547,22068740,{"$f":"IF(tbl_twdbdata[[#This Row],[Year]]=2016,0,tbl_twdbdata[[#This Row],[effsave]]-0.6*SUMIFS(tbl_twdbdata[effsave],tbl_twdbdata[Year],2020,tbl_twdbdata[utility],tbl_twdbdata[[#This Row],[utility]]))","v":14836549.4},1649,273,93,0,179288341,3986478,40528787,0,null,null,{"$f":"tbl_twdbdata[[#This Row],[utility]]&tbl_twdbdata[[#This Row],[Year]]","v":"FORT BEND COUNTY MUD 422060"}]
[null,6310,"FORT BEND COUNTY MUD 42","H",2070,4461,5547,22190219,{"$f":"IF(tbl_twdbdata[[#This Row],[Year]]=2016,0,tbl_twdbdata[[#This Row],[effsave]]-0.6*SUMIFS(tbl_twdbdata[effsave],tbl_twdbdata[Year],2020,tbl_twdbdata[utility],tbl_twdbdata[[#This Row],[utility]]))","v":14958028.4},1649,334,114,0,179288341,3986478,40528787,0,null,null,{"$f":"tbl_twdbdata[[#This Row],[utility]]&tbl_twdbdata[[#This Row],[Year]]","v":"FORT BEND COUNTY MUD 422070"}]
[null,6314,"FORT BEND COUNTY MUD 49","H",2016,1047,1047,0,{"$f":"IF(tbl_twdbdata[[#This Row],[Year]]=2016,0,tbl_twdbdata[[#This Row],[effsave]]-0.6*SUMIFS(tbl_twdbdata[effsave],tbl_twdbdata[Year],2020,tbl_twdbdata[utility],tbl_twdbdata[[#This Row],[utility]]))","v":0},341,0,8,0,33127000,0,2087000,0,null,null,{"$f":"tbl_twdbdata[[#This Row],[utility]]&tbl_twdbdata[[#This Row],[Year]]","v":"FORT BEND COUNTY MUD 492016"}]
[null,6314,"FORT BEND COUNTY MUD 49","H",2020,1047,1354,3602791,{"$f":"IF(tbl_twdbdata[[#This Row],[Year]]=2016,0,tbl_twdbdata[[#This Row],[effsave]]-0.6*SUMIFS(tbl_twdbdata[effsave],tbl_twdbdata[Year],2020,tbl_twdbdata[utility],tbl_twdbdata[[#This Row],[utility]]))","v":1441116.4},426,0,10,0,41416397,0,2609232,0,null,null,{"$f":"tbl_twdbdata[[#This Row],[utility]]&tbl_twdbdata[[#This Row],[Year]]","v":"FORT BEND COUNTY MUD 492020"}]
[null,6314,"FORT BEND COUNTY MUD 49","H",2030,1047,1657,5588398,{"$f":"IF(tbl_twdbdata[[#This Row],[Year]]=2016,0,tbl_twdbdata[[#This Row],[effsave]]-0.6*SUMIFS(tbl_twdbdata[effsave],tbl_twdbdata[Year],2020,tbl_twdbdata[utility],tbl_twdbdata[[#This Row],[utility]]))","v":3426723.4},521,0,12,0,50684616,0,3193130,0,null,null,{"$f":"tbl_twdbdata[[#This Row],[utility]]&tbl_twdbdata[[#This Row],[Year]]","v":"FORT BEND COUNTY MUD 492030"}]
[null,6314,"FORT BEND COUNTY MUD 49","H",2040,1047,1657,6162963,{"$f":"IF(tbl_twdbdata[[#This Row],[Year]]=2016,0,tbl_twdbdata[[#This Row],[effsave]]-0.6*SUMIFS(tbl_twdbdata[effsave],tbl_twdbdata[Year],2020,tbl_twdbdata[utility],tbl_twdbdata[[#This Row],[utility]]))","v":4001288.4},521,0,15,0,50684616,0,3193130,0,null,null,{"$f":"tbl_twdbdata[[#This Row],[utility]]&tbl_twdbdata[[#This Row],[Year]]","v":"FORT BEND COUNTY MUD 492040"}]
[null,6314,"FORT BEND COUNTY MUD 49","H",2050,1047,1657,6465365,{"$f":"IF(tbl_twdbdata[[#This Row],[Year]]=2016,0,tbl_twdbdata[[#This Row],[effsave]]-0.6*SUMIFS(tbl_twdbdata[effsave],tbl_twdbdata[Year],2020,tbl_twdbdata[utility],tbl_twdbdata[[#This Row],[utility]]))","v":4303690.4000000004},521,0,18,0,50684616,0,3193130,0,null,null,{"$f":"tbl_twdbdata[[#This Row],[utility]]&tbl_twdbdata[[#This Row],[Year]]","v":"FORT BEND COUNTY MUD 492050"}]
[null,6314,"FORT BEND COUNTY MUD 49","H",2060,1047,1657,6592375,{"$f":"IF(tbl_twdbdata[[#This Row],[Year]]=2016,0,tbl_twdbdata[[#This Row],[effsave]]-0.6*SUMIFS(tbl_twdbdata[effsave],tbl_twdbdata[Year],2020,tbl_twdbdata[utility],tbl_twdbdata[[#This Row],[utility]]))","v":4430700.4000000004},521,0,22,0,50684616,0,3193130,0,null,null,{"$f":"tbl_twdbdata[[#This Row],[utility]]&tbl_twdbdata[[#This Row],[Year]]","v":"FORT BEND COUNTY MUD 492060"}]
[null,6314,"FORT BEND COUNTY MUD 49","H",2070,1047,1657,6628663,{"$f":"IF(tbl_twdbdata[[#This Row],[Year]]=2016,0,tbl_twdbdata[[#This Row],[effsave]]-0.6*SUMIFS(tbl_twdbdata[effsave],tbl_twdbdata[Year],2020,tbl_twdbdata[utility],tbl_twdbdata[[#This Row],[utility]]))","v":4466988.4000000004},521,0,27,0,50684616,0,3193130,0,null,null,{"$f":"tbl_twdbdata[[#This Row],[utility]]&tbl_twdbdata[[#This Row],[Year]]","v":"FORT BEND COUNTY MUD 492070"}]
[null,808,"FORT STOCKTON","F",2016,12769,12769,0,{"$f":"IF(tbl_twdbdata[[#This Row],[Year]]=2016,0,tbl_twdbdata[[#This Row],[effsave]]-0.6*SUMIFS(tbl_twdbdata[effsave],tbl_twdbdata[Year],2020,tbl_twdbdata[utility],tbl_twdbdata[[#This Row],[utility]]))","v":0},2966,16,544,0,358498000,32388000,468773000,0,null,null,{"$f":"tbl_twdbdata[[#This Row],[utility]]&tbl_twdbdata[[#This Row],[Year]]","v":"FORT STOCKTON2016"}]
[null,808,"FORT STOCKTON","F",2020,8882,11776,42939418,{"$f":"IF(tbl_twdbdata[[#This Row],[Year]]=2016,0,tbl_twdbdata[[#This Row],[effsave]]-0.6*SUMIFS(tbl_twdbdata[effsave],tbl_twdbdata[Year],2020,tbl_twdbdata[utility],tbl_twdbdata[[#This Row],[utility]]))","v":17175767.199999999},3932,21,721,0,475306513,42940902,621512142,0,null,null,{"$f":"tbl_twdbdata[[#This Row],[utility]]&tbl_twdbdata[[#This Row],[Year]]","v":"FORT STOCKTON2020"}]
[null,808,"FORT STOCKTON","F",2030,8882,12731,66402986,{"$f":"IF(tbl_twdbdata[[#This Row],[Year]]=2016,0,tbl_twdbdata[[#This Row],[effsave]]-0.6*SUMIFS(tbl_twdbdata[effsave],tbl_twdbdata[Year],2020,tbl_twdbdata[utility],tbl_twdbdata[[#This Row],[utility]]))","v":40639335.200000003},4251,23,780,0,513852515,46423287,671915004,0,null,null,{"$f":"tbl_twdbdata[[#This Row],[utility]]&tbl_twdbdata[[#This Row],[Year]]","v":"FORT STOCKTON2030"}]
[null,808,"FORT STOCKTON","F",2040,8882,13774,87679774,{"$f":"IF(tbl_twdbdata[[#This Row],[Year]]=2016,0,tbl_twdbdata[[#This Row],[effsave]]-0.6*SUMIFS(tbl_twdbdata[effsave],tbl_twdbdata[Year],2020,tbl_twdbdata[utility],tbl_twdbdata[[#This Row],[utility]]))","v":61916123.200000003},4599,25,843,0,555950400,50226562,726962318,0,null,null,{"$f":"tbl_twdbdata[[#This Row],[utility]]&tbl_twdbdata[[#This Row],[Year]]","v":"FORT STOCKTON2040"}]
[null,808,"FORT STOCKTON","F",2050,8882,14498,100702383,{"$f":"IF(tbl_twdbdata[[#This Row],[Year]]=2016,0,tbl_twdbdata[[#This Row],[effsave]]-0.6*SUMIFS(tbl_twdbdata[effsave],tbl_twdbdata[Year],2020,tbl_twdbdata[utility],tbl_twdbdata[[#This Row],[utility]]))","v":74938732.200000003},4841,27,911,0,585172709,52866611,765173492,0,null,null,{"$f":"tbl_twdbdata[[#This Row],[utility]]&tbl_twdbdata[[#This Row],[Year]]","v":"FORT STOCKTON2050"}]
[null,808,"FORT STOCKTON","F",2060,8882,15143,106840679,{"$f":"IF(tbl_twdbdata[[#This Row],[Year]]=2016,0,tbl_twdbdata[[#This Row],[effsave]]-0.6*SUMIFS(tbl_twdbdata[effsave],tbl_twdbdata[Year],2020,tbl_twdbdata[utility],tbl_twdbdata[[#This Row],[utility]]))","v":81077028.200000003},5056,29,985,0,611206396,55218588,799215215,0,null,null,{"$f":"tbl_twdbdata[[#This Row],[utility]]&tbl_twdbdata[[#This Row],[Year]]","v":"FORT STOCKTON2060"}]
[null,808,"FORT STOCKTON","F",2070,8882,15726,111241006,{"$f":"IF(tbl_twdbdata[[#This Row],[Year]]=2016,0,tbl_twdbdata[[#This Row],[effsave]]-0.6*SUMIFS(tbl_twdbdata[effsave],tbl_twdbdata[Year],2020,tbl_twdbdata[utility],tbl_twdbdata[[#This Row],[utility]]))","v":85477355.200000003},5251,31,1065,0,634737620,57344484,829984711,0,null,null,{"$f":"tbl_twdbdata[[#This Row],[utility]]&tbl_twdbdata[[#This Row],[Year]]","v":"FORT STOCKTON2070"}]
[null,55,"FORT WORTH","C",2016,806380,806880,0,{"$f":"IF(tbl_twdbdata[[#This Row],[Year]]=2016,0,tbl_twdbdata[[#This Row],[effsave]]-0.6*SUMIFS(tbl_twdbdata[effsave],tbl_twdbdata[Year],2020,tbl_twdbdata[utility],tbl_twdbdata[[#This Row],[utility]]))","v":0},225263,2449,18130,0,17000857267,1373789532,14960054975,0,505674723,8947583110,{"$f":"tbl_twdbdata[[#This Row],[utility]]&tbl_twdbdata[[#This Row],[Year]]","v":"FORT WORTH2016"}]
[null,55,"FORT WORTH","C",2020,806380,960824,3258010060,{"$f":"IF(tbl_twdbdata[[#This Row],[Year]]=2016,0,tbl_twdbdata[[#This Row],[effsave]]-0.6*SUMIFS(tbl_twdbdata[effsave],tbl_twdbdata[Year],2020,tbl_twdbdata[utility],tbl_twdbdata[[#This Row],[utility]]))","v":1303204024},266213,2894,21425,0,20091401361,1623527357,17679606632,0,597600089,10574142271,{"$f":"tbl_twdbdata[[#This Row],[utility]]&tbl_twdbdata[[#This Row],[Year]]","v":"FORT WORTH2020"}]
[null,55,"FORT WORTH","C",2030,806380,1215589,5639299709,{"$f":"IF(tbl_twdbdata[[#This Row],[Year]]=2016,0,tbl_twdbdata[[#This Row],[effsave]]-0.6*SUMIFS(tbl_twdbdata[effsave],tbl_twdbdata[Year],2020,tbl_twdbdata[utility],tbl_twdbdata[[#This Row],[utility]]))","v":3684493673},336800,3661,27106,0,25418689051,2054009888,22367400634,0,756055318,13377903788,{"$f":"tbl_twdbdata[[#This Row],[utility]]&tbl_twdbdata[[#This Row],[Year]]","v":"FORT WORTH2030"}]
[null,55,"FORT WORTH","C",2040,806380,1499216,7951017095,{"$f":"IF(tbl_twdbdata[[#This Row],[Year]]=2016,0,tbl_twdbdata[[#This Row],[effsave]]-0.6*SUMIFS(tbl_twdbdata[effsave],tbl_twdbdata[Year],2020,tbl_twdbdata[utility],tbl_twdbdata[[#This Row],[utility]]))","v":5996211059},415384,4632,34293,0,31349498329,2533261232,27586268803,0,932461736,16499299850,{"$f":"tbl_twdbdata[[#This Row],[utility]]&tbl_twdbdata[[#This Row],[Year]]","v":"FORT WORTH2040"}]
[null,55,"FORT WORTH","C",2050,806380,1671604,9328971183,{"$f":"IF(tbl_twdbdata[[#This Row],[Year]]=2016,0,tbl_twdbdata[[#This Row],[effsave]]-0.6*SUMIFS(tbl_twdbdata[effsave],tbl_twdbdata[Year],2020,tbl_twdbdata[utility],tbl_twdbdata[[#This Row],[utility]]))","v":7374165147},463147,5860,43386,0,34954233949,2824549370,30758287849,0,1039681252,18396478977,{"$f":"tbl_twdbdata[[#This Row],[utility]]&tbl_twdbdata[[#This Row],[Year]]","v":"FORT WORTH2050"}]
[null,55,"FORT WORTH","C",2060,806380,1819451,10286903036,{"$f":"IF(tbl_twdbdata[[#This Row],[Year]]=2016,0,tbl_twdbdata[[#This Row],[effsave]]-0.6*SUMIFS(tbl_twdbdata[effsave],tbl_twdbdata[Year],2020,tbl_twdbdata[utility],tbl_twdbdata[[#This Row],[utility]]))","v":8332097000},504111,7414,54890,0,38045802662,3074369992,33478741129,0,1131637094,20023577397,{"$f":"tbl_twdbdata[[#This Row],[utility]]&tbl_twdbdata[[#This Row],[Year]]","v":"FORT WORTH2060"}]
[null,55,"FORT WORTH","C",2070,806380,1967299,11165897299,{"$f":"IF(tbl_twdbdata[[#This Row],[Year]]=2016,0,tbl_twdbdata[[#This Row],[effsave]]-0.6*SUMIFS(tbl_twdbdata[effsave],tbl_twdbdata[Year],2020,tbl_twdbdata[utility],tbl_twdbdata[[#This Row],[utility]]))","v":9211091263},545075,9380,69444,0,41137392285,3324192304,36199212809,0,1223593558,21650686822,{"$f":"tbl_twdbdata[[#This Row],[utility]]&tbl_twdbdata[[#This Row],[Year]]","v":"FORT WORTH2070"}]
[null,814,"FREDERICKSBURG","K",2016,11094,11094,0,{"$f":"IF(tbl_twdbdata[[#This Row],[Year]]=2016,0,tbl_twdbdata[[#This Row],[effsave]]-0.6*SUMIFS(tbl_twdbdata[effsave],tbl_twdbdata[Year],2020,tbl_twdbdata[utility],tbl_twdbdata[[#This Row],[utility]]))","v":0},4790,31,1006,0,409286600,28888996,268691400,0,null,null,{"$f":"tbl_twdbdata[[#This Row],[utility]]&tbl_twdbdata[[#This Row],[Year]]","v":"FREDERICKSBURG2016"}]
[null,814,"FREDERICKSBURG","K",2020,11094,12056,38987898,{"$f":"IF(tbl_twdbdata[[#This Row],[Year]]=2016,0,tbl_twdbdata[[#This Row],[effsave]]-0.6*SUMIFS(tbl_twdbdata[effsave],tbl_twdbdata[Year],2020,tbl_twdbdata[utility],tbl_twdbdata[[#This Row],[utility]]))","v":15595159.199999999},5154,33,1083,0,440410501,31085839,289123841,0,null,null,{"$f":"tbl_twdbdata[[#This Row],[utility]]&tbl_twdbdata[[#This Row],[Year]]","v":"FREDERICKSBURG2020"}]
[null,814,"FREDERICKSBURG","K",2030,11094,12938,59171296,{"$f":"IF(tbl_twdbdata[[#This Row],[Year]]=2016,0,tbl_twdbdata[[#This Row],[effsave]]-0.6*SUMIFS(tbl_twdbdata[effsave],tbl_twdbdata[Year],2020,tbl_twdbdata[utility],tbl_twdbdata[[#This Row],[utility]]))","v":35778557.200000003},5531,35,1162,0,472630314,33360035,310275734,0,null,null,{"$f":"tbl_twdbdata[[#This Row],[utility]]&tbl_twdbdata[[#This Row],[Year]]","v":"FREDERICKSBURG2030"}]
[null,814,"FREDERICKSBURG","K",2040,11094,13666,75419921,{"$f":"IF(tbl_twdbdata[[#This Row],[Year]]=2016,0,tbl_twdbdata[[#This Row],[effsave]]-0.6*SUMIFS(tbl_twdbdata[effsave],tbl_twdbdata[Year],2020,tbl_twdbdata[utility],tbl_twdbdata[[#This Row],[utility]]))","v":52027182.200000003},5842,38,1247,0,499224445,35237149,327734440,0,null,null,{"$f":"tbl_twdbdata[[#This Row],[utility]]&tbl_twdbdata[[#This Row],[Year]]","v":"FREDERICKSBURG2040"}]
[null,814,"FREDERICKSBURG","K",2050,11094,14519,87440678,{"$f":"IF(tbl_twdbdata[[#This Row],[Year]]=2016,0,tbl_twdbdata[[#This Row],[effsave]]-0.6*SUMIFS(tbl_twdbdata[effsave],tbl_twdbdata[Year],2020,tbl_twdbdata[utility],tbl_twdbdata[[#This Row],[utility]]))","v":64047939.200000003},6207,41,1338,0,530384876,37436570,348190863,0,null,null,{"$f":"tbl_twdbdata[[#This Row],[utility]]&tbl_twdbdata[[#This Row],[Year]]","v":"FREDERICKSBURG2050"}]
[null,814,"FREDERICKSBURG","K",2060,11094,15304,93899988,{"$f":"IF(tbl_twdbdata[[#This Row],[Year]]=2016,0,tbl_twdbdata[[#This Row],[effsave]]-0.6*SUMIFS(tbl_twdbdata[effsave],tbl_twdbdata[Year],2020,tbl_twdbdata[utility],tbl_twdbdata[[#This Row],[utility]]))","v":70507249.200000003},6543,44,1436,0,559061240,39460656,367016528,0,null,null,{"$f":"tbl_twdbdata[[#This Row],[utility]]&tbl_twdbdata[[#This Row],[Year]]","v":"FREDERICKSBURG2060"}]
[null,814,"FREDERICKSBURG","K",2070,11094,16067,98874711,{"$f":"IF(tbl_twdbdata[[#This Row],[Year]]=2016,0,tbl_twdbdata[[#This Row],[effsave]]-0.6*SUMIFS(tbl_twdbdata[effsave],tbl_twdbdata[Year],2020,tbl_twdbdata[utility],tbl_twdbdata[[#This Row],[utility]]))","v":75481972.200000003},6869,47,1541,0,586933935,41428016,385314595,0,null,null,{"$f":"tbl_twdbdata[[#This Row],[utility]]&tbl_twdbdata[[#This Row],[Year]]","v":"FREDERICKSBURG2070"}]
[null,817,"FRIENDSWOOD","H",2016,41500,41500,0,{"$f":"IF(tbl_twdbdata[[#This Row],[Year]]=2016,0,tbl_twdbdata[[#This Row],[effsave]]-0.6*SUMIFS(tbl_twdbdata[effsave],tbl_twdbdata[Year],2020,tbl_twdbdata[utility],tbl_twdbdata[[#This Row],[utility]]))","v":0},12130,2119,685,908,1151161000,90105000,108751000,151049000,72470459,310180271,{"$f":"tbl_twdbdata[[#This Row],[utility]]&tbl_twdbdata[[#This Row],[Year]]","v":"FRIENDSWOOD2016"}]
[null,817,"FRIENDSWOOD","H",2020,41500,43101,138597731,{"$f":"IF(tbl_twdbdata[[#This Row],[Year]]=2016,0,tbl_twdbdata[[#This Row],[effsave]]-0.6*SUMIFS(tbl_twdbdata[effsave],tbl_twdbdata[Year],2020,tbl_twdbdata[utility],tbl_twdbdata[[#This Row],[utility]]))","v":55439092.400000006},12329,2154,696,923,1170055188,91583908,110535948,153528191,73659928,315271309,{"$f":"tbl_twdbdata[[#This Row],[utility]]&tbl_twdbdata[[#This Row],[Year]]","v":"FRIENDSWOOD2020"}]
[null,817,"FRIENDSWOOD","H",2030,41500,47513,214523571,{"$f":"IF(tbl_twdbdata[[#This Row],[Year]]=2016,0,tbl_twdbdata[[#This Row],[effsave]]-0.6*SUMIFS(tbl_twdbdata[effsave],tbl_twdbdata[Year],2020,tbl_twdbdata[utility],tbl_twdbdata[[#This Row],[utility]]))","v":131364932.40000001},13591,2374,768,1017,1289826968,100958823,121850873,169243984,81200069,347543809,{"$f":"tbl_twdbdata[[#This Row],[utility]]&tbl_twdbdata[[#This Row],[Year]]","v":"FRIENDSWOOD2030"}]
[null,817,"FRIENDSWOOD","H",2040,41500,51306,275656877,{"$f":"IF(tbl_twdbdata[[#This Row],[Year]]=2016,0,tbl_twdbdata[[#This Row],[effsave]]-0.6*SUMIFS(tbl_twdbdata[effsave],tbl_twdbdata[Year],2020,tbl_twdbdata[utility],tbl_twdbdata[[#This Row],[utility]]))","v":192498238.40000001},14676,2617,846,1121,1392794865,109018445,131578324,182754864,87682334,375288503,{"$f":"tbl_twdbdata[[#This Row],[utility]]&tbl_twdbdata[[#This Row],[Year]]","v":"FRIENDSWOOD2040"}]
[null,817,"FRIENDSWOOD","H",2050,41500,55497,322481968,{"$f":"IF(tbl_twdbdata[[#This Row],[Year]]=2016,0,tbl_twdbdata[[#This Row],[effsave]]-0.6*SUMIFS(tbl_twdbdata[effsave],tbl_twdbdata[Year],2020,tbl_twdbdata[utility],tbl_twdbdata[[#This Row],[utility]]))","v":239323329.40000001},15875,2885,932,1236,1506567197,117923764,142326477,197683442,94844784,405944452,{"$f":"tbl_twdbdata[[#This Row],[utility]]&tbl_twdbdata[[#This Row],[Year]]","v":"FRIENDSWOOD2050"}]
[null,817,"FRIENDSWOOD","H",2060,41500,59697,353424149,{"$f":"IF(tbl_twdbdata[[#This Row],[Year]]=2016,0,tbl_twdbdata[[#This Row],[effsave]]-0.6*SUMIFS(tbl_twdbdata[effsave],tbl_twdbdata[Year],2020,tbl_twdbdata[utility],tbl_twdbdata[[#This Row],[utility]]))","v":270265510.39999998},17076,3180,1027,1363,1620583851,126848207,153097711,212644079,102022615,436666233,{"$f":"tbl_twdbdata[[#This Row],[utility]]&tbl_twdbdata[[#This Row],[Year]]","v":"FRIENDSWOOD2060"}]
[null,817,"FRIENDSWOOD","H",2070,41500,64342,382802729,{"$f":"IF(tbl_twdbdata[[#This Row],[Year]]=2016,0,tbl_twdbdata[[#This Row],[effsave]]-0.6*SUMIFS(tbl_twdbdata[effsave],tbl_twdbdata[Year],2020,tbl_twdbdata[utility],tbl_twdbdata[[#This Row],[utility]]))","v":299644090.39999998},18405,3506,1132,1503,1746680841,136718216,165010183,229189831,109960954,470643060,{"$f":"tbl_twdbdata[[#This Row],[utility]]&tbl_twdbdata[[#This Row],[Year]]","v":"FRIENDSWOOD2070"}]
[null,819,"FRISCO","C",2016,159920,159920,0,{"$f":"IF(tbl_twdbdata[[#This Row],[Year]]=2016,0,tbl_twdbdata[[#This Row],[effsave]]-0.6*SUMIFS(tbl_twdbdata[effsave],tbl_twdbdata[Year],2020,tbl_twdbdata[utility],tbl_twdbdata[[#This Row],[utility]]))","v":0},46401,609,5605,0,5668681700,450158600,2617029200,0,19168764,499931328,{"$f":"tbl_twdbdata[[#This Row],[utility]]&tbl_twdbdata[[#This Row],[Year]]","v":"FRISCO2016"}]
[null,819,"FRISCO","C",2020,151544,188343,430344921,{"$f":"IF(tbl_twdbdata[[#This Row],[Year]]=2016,0,tbl_twdbdata[[#This Row],[effsave]]-0.6*SUMIFS(tbl_twdbdata[effsave],tbl_twdbdata[Year],2020,tbl_twdbdata[utility],tbl_twdbdata[[#This Row],[utility]]))","v":172137968.40000001},57668,757,6966,0,7045191611,559469337,3252514983,0,23823461,621328235,{"$f":"tbl_twdbdata[[#This Row],[utility]]&tbl_twdbdata[[#This Row],[Year]]","v":"FRISCO2020"}]
[null,819,"FRISCO","C",2030,151544,212165,611003375,{"$f":"IF(tbl_twdbdata[[#This Row],[Year]]=2016,0,tbl_twdbdata[[#This Row],[effsave]]-0.6*SUMIFS(tbl_twdbdata[effsave],tbl_twdbdata[Year],2020,tbl_twdbdata[utility],tbl_twdbdata[[#This Row],[utility]]))","v":352796422.39999998},64962,853,7847,0,7936281562,630232140,3663899595,0,26836700,699915075,{"$f":"tbl_twdbdata[[#This Row],[utility]]&tbl_twdbdata[[#This Row],[Year]]","v":"FRISCO2030"}]
[null,819,"FRISCO","C",2040,151544,257873,797227273,{"$f":"IF(tbl_twdbdata[[#This Row],[Year]]=2016,0,tbl_twdbdata[[#This Row],[effsave]]-0.6*SUMIFS(tbl_twdbdata[effsave],tbl_twdbdata[Year],2020,tbl_twdbdata[utility],tbl_twdbdata[[#This Row],[utility]]))","v":539020320.39999998},78957,961,8839,0,9646043104,766006894,4453235832,0,32618294,850702049,{"$f":"tbl_twdbdata[[#This Row],[utility]]&tbl_twdbdata[[#This Row],[Year]]","v":"FRISCO2040"}]
[null,819,"FRISCO","C",2050,151544,321456,1017263585,{"$f":"IF(tbl_twdbdata[[#This Row],[Year]]=2016,0,tbl_twdbdata[[#This Row],[effsave]]-0.6*SUMIFS(tbl_twdbdata[effsave],tbl_twdbdata[Year],2020,tbl_twdbdata[utility],tbl_twdbdata[[#This Row],[utility]]))","v":759056632.39999998},98425,1083,9957,0,12024440062,954878999,5551257315,0,40660892,1060457194,{"$f":"tbl_twdbdata[[#This Row],[utility]]&tbl_twdbdata[[#This Row],[Year]]","v":"FRISCO2050"}]
[null,819,"FRISCO","C",2060,151544,357565,1149803892,{"$f":"IF(tbl_twdbdata[[#This Row],[Year]]=2016,0,tbl_twdbdata[[#This Row],[effsave]]-0.6*SUMIFS(tbl_twdbdata[effsave],tbl_twdbdata[Year],2020,tbl_twdbdata[utility],tbl_twdbdata[[#This Row],[utility]]))","v":891596939.39999998},109481,1220,11216,0,13375139710,1062140104,6174827417,0,45228311,1179577848,{"$f":"tbl_twdbdata[[#This Row],[utility]]&tbl_twdbdata[[#This Row],[Year]]","v":"FRISCO2060"}]
[null,819,"FRISCO","C",2070,151544,375000,1211343750,{"$f":"IF(tbl_twdbdata[[#This Row],[Year]]=2016,0,tbl_twdbdata[[#This Row],[effsave]]-0.6*SUMIFS(tbl_twdbdata[effsave],tbl_twdbdata[Year],2020,tbl_twdbdata[utility],tbl_twdbdata[[#This Row],[utility]]))","v":953136797.39999998},114819,1374,12635,0,14027316408,1113930443,6475914258,0,47433660,1237094495,{"$f":"tbl_twdbdata[[#This Row],[utility]]&tbl_twdbdata[[#This Row],[Year]]","v":"FRISCO2070"}]
[null,2972,"G M WSC","I",2016,10071,10071,0,{"$f":"IF(tbl_twdbdata[[#This Row],[Year]]=2016,0,tbl_twdbdata[[#This Row],[effsave]]-0.6*SUMIFS(tbl_twdbdata[effsave],tbl_twdbdata[Year],2020,tbl_twdbdata[utility],tbl_twdbdata[[#This Row],[utility]]))","v":0},3347,0,10,0,82721350,0,5988920,0,11031089,65810446,{"$f":"tbl_twdbdata[[#This Row],[utility]]&tbl_twdbdata[[#This Row],[Year]]","v":"G M WSC2016"}]
[null,2972,"G M WSC","I",2020,5698,7313,0,{"$f":"IF(tbl_twdbdata[[#This Row],[Year]]=2016,0,tbl_twdbdata[[#This Row],[effsave]]-0.6*SUMIFS(tbl_twdbdata[effsave],tbl_twdbdata[Year],2020,tbl_twdbdata[utility],tbl_twdbdata[[#This Row],[utility]]))","v":0},4296,0,13,0,106167292,0,7686376,0,14157661,84463284,{"$f":"tbl_twdbdata[[#This Row],[utility]]&tbl_twdbdata[[#This Row],[Year]]","v":"G M WSC2020"}]
[null,2972,"G M WSC","I",2030,5698,7318,0,{"$f":"IF(tbl_twdbdata[[#This Row],[Year]]=2016,0,tbl_twdbdata[[#This Row],[effsave]]-0.6*SUMIFS(tbl_twdbdata[effsave],tbl_twdbdata[Year],2020,tbl_twdbdata[utility],tbl_twdbdata[[#This Row],[utility]]))","v":0},4299,0,13,0,106239880,0,7691631,0,14167341,84521033,{"$f":"tbl_twdbdata[[#This Row],[utility]]&tbl_twdbdata[[#This Row],[Year]]","v":"G M WSC2030"}]
[null,2972,"G M WSC","I",2040,5698,7319,0,{"$f":"IF(tbl_twdbdata[[#This Row],[Year]]=2016,0,tbl_twdbdata[[#This Row],[effsave]]-0.6*SUMIFS(tbl_twdbdata[effsave],tbl_twdbdata[Year],2020,tbl_twdbdata[utility],tbl_twdbdata[[#This Row],[utility]]))","v":0},4300,0,13,0,106254398,0,7692682,0,14169277,84532583,{"$f":"tbl_twdbdata[[#This Row],[utility]]&tbl_twdbdata[[#This Row],[Year]]","v":"G M WSC2040"}]
[null,2972,"G M WSC","I",2050,5698,7319,0,{"$f":"IF(tbl_twdbdata[[#This Row],[Year]]=2016,0,tbl_twdbdata[[#This Row],[effsave]]-0.6*SUMIFS(tbl_twdbdata[effsave],tbl_twdbdata[Year],2020,tbl_twdbdata[utility],tbl_twdbdata[[#This Row],[utility]]))","v":0},4300,0,13,0,106254398,0,7692682,0,14169277,84532583,{"$f":"tbl_twdbdata[[#This Row],[utility]]&tbl_twdbdata[[#This Row],[Year]]","v":"G M WSC2050"}]
[null,2972,"G M WSC","I",2060,5698,7319,0,{"$f":"IF(tbl_twdbdata[[#This Row],[Year]]=2016,0,tbl_twdbdata[[#This Row],[effsave]]-0.6*SUMIFS(tbl_twdbdata[effsave],tbl_twdbdata[Year],2020,tbl_twdbdata[utility],tbl_twdbdata[[#This Row],[utility]]))","v":0},4300,0,13,0,106254398,0,7692682,0,14169277,84532583,{"$f":"tbl_twdbdata[[#This Row],[utility]]&tbl_twdbdata[[#This Row],[Year]]","v":"G M WSC2060"}]
[null,2972,"G M WSC","I",2070,5698,7319,0,{"$f":"IF(tbl_twdbdata[[#This Row],[Year]]=2016,0,tbl_twdbdata[[#This Row],[effsave]]-0.6*SUMIFS(tbl_twdbdata[effsave],tbl_twdbdata[Year],2020,tbl_twdbdata[utility],tbl_twdbdata[[#This Row],[utility]]))","v":0},4300,0,13,0,106254398,0,7692682,0,14169277,84532583,{"$f":"tbl_twdbdata[[#This Row],[utility]]&tbl_twdbdata[[#This Row],[Year]]","v":"G M WSC2070"}]
[null,57,"GAINESVILLE","C",2016,16200,16200,0,{"$f":"IF(tbl_twdbdata[[#This Row],[Year]]=2016,0,tbl_twdbdata[[#This Row],[effsave]]-0.6*SUMIFS(tbl_twdbdata[effsave],tbl_twdbdata[Year],2020,tbl_twdbdata[utility],tbl_twdbdata[[#This Row],[utility]]))","v":0},5655,1220,1550,0,369431500,50949140,196333451,0,37143024,115590360,{"$f":"tbl_twdbdata[[#This Row],[utility]]&tbl_twdbdata[[#This Row],[Year]]","v":"GAINESVILLE2016"}]
[null,57,"GAINESVILLE","C",2020,16200,18477,65350377,{"$f":"IF(tbl_twdbdata[[#This Row],[Year]]=2016,0,tbl_twdbdata[[#This Row],[effsave]]-0.6*SUMIFS(tbl_twdbdata[effsave],tbl_twdbdata[Year],2020,tbl_twdbdata[utility],tbl_twdbdata[[#This Row],[utility]]))","v":26140150.800000004},5876,1268,1610,0,383870533,52940460,204007040,0,38594739,120108148,{"$f":"tbl_twdbdata[[#This Row],[utility]]&tbl_twdbdata[[#This Row],[Year]]","v":"GAINESVILLE2020"}]
[null,57,"GAINESVILLE","C",2030,16200,19832,100110944,{"$f":"IF(tbl_twdbdata[[#This Row],[Year]]=2016,0,tbl_twdbdata[[#This Row],[effsave]]-0.6*SUMIFS(tbl_twdbdata[effsave],tbl_twdbdata[Year],2020,tbl_twdbdata[utility],tbl_twdbdata[[#This Row],[utility]]))","v":60900717.800000004},6307,1361,1728,0,412021454,56822818,218967777,0,41425062,128916209,{"$f":"tbl_twdbdata[[#This Row],[utility]]&tbl_twdbdata[[#This Row],[Year]]","v":"GAINESVILLE2030"}]
[null,57,"GAINESVILLE","C",2040,16200,20870,128051016,{"$f":"IF(tbl_twdbdata[[#This Row],[Year]]=2016,0,tbl_twdbdata[[#This Row],[effsave]]-0.6*SUMIFS(tbl_twdbdata[effsave],tbl_twdbdata[Year],2020,tbl_twdbdata[utility],tbl_twdbdata[[#This Row],[utility]]))","v":88840789.800000012},6637,1461,1855,0,433586514,59796905,230428475,0,43593235,135663639,{"$f":"tbl_twdbdata[[#This Row],[utility]]&tbl_twdbdata[[#This Row],[Year]]","v":"GAINESVILLE2040"}]
[null,57,"GAINESVILLE","C",2050,16200,21904,146787466,{"$f":"IF(tbl_twdbdata[[#This Row],[Year]]=2016,0,tbl_twdbdata[[#This Row],[effsave]]-0.6*SUMIFS(tbl_twdbdata[effsave],tbl_twdbdata[Year],2020,tbl_twdbdata[utility],tbl_twdbdata[[#This Row],[utility]]))","v":107577239.80000001},6966,1568,1991,0,455068472,62759531,241845008,0,45753053,142385067,{"$f":"tbl_twdbdata[[#This Row],[utility]]&tbl_twdbdata[[#This Row],[Year]]","v":"GAINESVILLE2050"}]
[null,57,"GAINESVILLE","C",2060,16200,26645,182935244,{"$f":"IF(tbl_twdbdata[[#This Row],[Year]]=2016,0,tbl_twdbdata[[#This Row],[effsave]]-0.6*SUMIFS(tbl_twdbdata[effsave],tbl_twdbdata[Year],2020,tbl_twdbdata[utility],tbl_twdbdata[[#This Row],[utility]]))","v":143725017.80000001},8474,1683,2137,0,553565533,76343485,294191026,0,55656049,173203530,{"$f":"tbl_twdbdata[[#This Row],[utility]]&tbl_twdbdata[[#This Row],[Year]]","v":"GAINESVILLE2060"}]
[null,57,"GAINESVILLE","C",2070,16200,37302,259642436,{"$f":"IF(tbl_twdbdata[[#This Row],[Year]]=2016,0,tbl_twdbdata[[#This Row],[effsave]]-0.6*SUMIFS(tbl_twdbdata[effsave],tbl_twdbdata[Year],2020,tbl_twdbdata[utility],tbl_twdbdata[[#This Row],[utility]]))","v":220432209.80000001},11863,1806,2293,0,774970971,106878014,411856396,0,77916380,242478442,{"$f":"tbl_twdbdata[[#This Row],[utility]]&tbl_twdbdata[[#This Row],[Year]]","v":"GAINESVILLE2070"}]
[null,825,"GALENA PARK","H",2016,11091,11091,0,{"$f":"IF(tbl_twdbdata[[#This Row],[Year]]=2016,0,tbl_twdbdata[[#This Row],[effsave]]-0.6*SUMIFS(tbl_twdbdata[effsave],tbl_twdbdata[Year],2020,tbl_twdbdata[utility],tbl_twdbdata[[#This Row],[utility]]))","v":0},2725,471,217,0,172760676,13014659,45781379,0,null,null,{"$f":"tbl_twdbdata[[#This Row],[utility]]&tbl_twdbdata[[#This Row],[Year]]","v":"GALENA PARK2016"}]
[null,825,"GALENA PARK","H",2020,11091,10887,35763795,{"$f":"IF(tbl_twdbdata[[#This Row],[Year]]=2016,0,tbl_twdbdata[[#This Row],[effsave]]-0.6*SUMIFS(tbl_twdbdata[effsave],tbl_twdbdata[Year],2020,tbl_twdbdata[utility],tbl_twdbdata[[#This Row],[utility]]))","v":14305518},2581,446,205,0,163608688,12325208,43356113,0,null,null,{"$f":"tbl_twdbdata[[#This Row],[utility]]&tbl_twdbdata[[#This Row],[Year]]","v":"GALENA PARK2020"}]
[null,825,"GALENA PARK","H",2030,11091,11092,53198341,{"$f":"IF(tbl_twdbdata[[#This Row],[Year]]=2016,0,tbl_twdbdata[[#This Row],[effsave]]-0.6*SUMIFS(tbl_twdbdata[effsave],tbl_twdbdata[Year],2020,tbl_twdbdata[utility],tbl_twdbdata[[#This Row],[utility]]))","v":31740064},2630,454,209,0,166689406,12557289,44172500,0,null,null,{"$f":"tbl_twdbdata[[#This Row],[utility]]&tbl_twdbdata[[#This Row],[Year]]","v":"GALENA PARK2030"}]
[null,825,"GALENA PARK","H",2040,11091,11303,68072318,{"$f":"IF(tbl_twdbdata[[#This Row],[Year]]=2016,0,tbl_twdbdata[[#This Row],[effsave]]-0.6*SUMIFS(tbl_twdbdata[effsave],tbl_twdbdata[Year],2020,tbl_twdbdata[utility],tbl_twdbdata[[#This Row],[utility]]))","v":46614041},2680,463,213,0,169860292,12796163,45012781,0,null,null,{"$f":"tbl_twdbdata[[#This Row],[utility]]&tbl_twdbdata[[#This Row],[Year]]","v":"GALENA PARK2040"}]
[null,825,"GALENA PARK","H",2050,11091,11520,75686400,{"$f":"IF(tbl_twdbdata[[#This Row],[Year]]=2016,0,tbl_twdbdata[[#This Row],[effsave]]-0.6*SUMIFS(tbl_twdbdata[effsave],tbl_twdbdata[Year],2020,tbl_twdbdata[utility],tbl_twdbdata[[#This Row],[utility]]))","v":54228123},2731,472,217,0,173121345,13041829,45876956,0,null,null,{"$f":"tbl_twdbdata[[#This Row],[utility]]&tbl_twdbdata[[#This Row],[Year]]","v":"GALENA PARK2050"}]
[null,825,"GALENA PARK","H",2060,11091,11742,77144940,{"$f":"IF(tbl_twdbdata[[#This Row],[Year]]=2016,0,tbl_twdbdata[[#This Row],[effsave]]-0.6*SUMIFS(tbl_twdbdata[effsave],tbl_twdbdata[Year],2020,tbl_twdbdata[utility],tbl_twdbdata[[#This Row],[utility]]))","v":55686663},2784,481,221,0,176457538,13293156,46761043,0,null,null,{"$f":"tbl_twdbdata[[#This Row],[utility]]&tbl_twdbdata[[#This Row],[Year]]","v":"GALENA PARK2060"}]
[null,825,"GALENA PARK","H",2070,11091,11969,78636330,{"$f":"IF(tbl_twdbdata[[#This Row],[Year]]=2016,0,tbl_twdbdata[[#This Row],[effsave]]-0.6*SUMIFS(tbl_twdbdata[effsave],tbl_twdbdata[Year],2020,tbl_twdbdata[utility],tbl_twdbdata[[#This Row],[utility]]))","v":57178053},2838,490,225,0,179868870,13550143,47665041,0,null,null,{"$f":"tbl_twdbdata[[#This Row],[utility]]&tbl_twdbdata[[#This Row],[Year]]","v":"GALENA PARK2070"}]
[null,58,"GALVESTON","H",2016,48726,48726,0,{"$f":"IF(tbl_twdbdata[[#This Row],[Year]]=2016,0,tbl_twdbdata[[#This Row],[effsave]]-0.6*SUMIFS(tbl_twdbdata[effsave],tbl_twdbdata[Year],2020,tbl_twdbdata[utility],tbl_twdbdata[[#This Row],[utility]]))","v":0},22517,1963,363,0,1133791760,70208488,1746597179,0,null,null,{"$f":"tbl_twdbdata[[#This Row],[utility]]&tbl_twdbdata[[#This Row],[Year]]","v":"GALVESTON2016"}]
[null,58,"GALVESTON","H",2020,48726,51260,196641049,{"$f":"IF(tbl_twdbdata[[#This Row],[Year]]=2016,0,tbl_twdbdata[[#This Row],[effsave]]-0.6*SUMIFS(tbl_twdbdata[effsave],tbl_twdbdata[Year],2020,tbl_twdbdata[utility],tbl_twdbdata[[#This Row],[utility]]))","v":78656419.600000009},23688,2065,381,0,1192754702,73859687,1837429122,0,null,null,{"$f":"tbl_twdbdata[[#This Row],[utility]]&tbl_twdbdata[[#This Row],[Year]]","v":"GALVESTON2020"}]
[null,58,"GALVESTON","H",2030,48726,54643,306549962,{"$f":"IF(tbl_twdbdata[[#This Row],[Year]]=2016,0,tbl_twdbdata[[#This Row],[effsave]]-0.6*SUMIFS(tbl_twdbdata[effsave],tbl_twdbdata[Year],2020,tbl_twdbdata[utility],tbl_twdbdata[[#This Row],[utility]]))","v":188565332.60000002},25251,2201,406,0,1271472789,78734196,1958693709,0,null,null,{"$f":"tbl_twdbdata[[#This Row],[utility]]&tbl_twdbdata[[#This Row],[Year]]","v":"GALVESTON2030"}]
[null,58,"GALVESTON","H",2040,48726,57846,376247738,{"$f":"IF(tbl_twdbdata[[#This Row],[Year]]=2016,0,tbl_twdbdata[[#This Row],[effsave]]-0.6*SUMIFS(tbl_twdbdata[effsave],tbl_twdbdata[Year],2020,tbl_twdbdata[utility],tbl_twdbdata[[#This Row],[utility]]))","v":258263108.60000002},26731,2346,433,0,1346002506,83349346,2073506145,0,null,null,{"$f":"tbl_twdbdata[[#This Row],[utility]]&tbl_twdbdata[[#This Row],[Year]]","v":"GALVESTON2040"}]
[null,58,"GALVESTON","H",2050,48726,60955,404034122,{"$f":"IF(tbl_twdbdata[[#This Row],[Year]]=2016,0,tbl_twdbdata[[#This Row],[effsave]]-0.6*SUMIFS(tbl_twdbdata[effsave],tbl_twdbdata[Year],2020,tbl_twdbdata[utility],tbl_twdbdata[[#This Row],[utility]]))","v":286049492.60000002},28168,2501,462,0,1418344963,87829053,2184949125,0,null,null,{"$f":"tbl_twdbdata[[#This Row],[utility]]&tbl_twdbdata[[#This Row],[Year]]","v":"GALVESTON2050"}]
[null,58,"GALVESTON","H",2060,48726,63941,431061449,{"$f":"IF(tbl_twdbdata[[#This Row],[Year]]=2016,0,tbl_twdbdata[[#This Row],[effsave]]-0.6*SUMIFS(tbl_twdbdata[effsave],tbl_twdbdata[Year],2020,tbl_twdbdata[utility],tbl_twdbdata[[#This Row],[utility]]))","v":313076819.60000002},29548,2666,492,0,1487825368,92131531,2291983135,0,null,null,{"$f":"tbl_twdbdata[[#This Row],[utility]]&tbl_twdbdata[[#This Row],[Year]]","v":"GALVESTON2060"}]
[null,58,"GALVESTON","H",2070,48726,67085,453726043,{"$f":"IF(tbl_twdbdata[[#This Row],[Year]]=2016,0,tbl_twdbdata[[#This Row],[effsave]]-0.6*SUMIFS(tbl_twdbdata[effsave],tbl_twdbdata[Year],2020,tbl_twdbdata[utility],tbl_twdbdata[[#This Row],[utility]]))","v":335741413.60000002},31001,2842,525,0,1560982231,96661669,2404680699,0,null,null,{"$f":"tbl_twdbdata[[#This Row],[utility]]&tbl_twdbdata[[#This Row],[Year]]","v":"GALVESTON2070"}]
[null,59,"GALVESTON COUNTY WCID 1","H",2016,25000,25000,0,{"$f":"IF(tbl_twdbdata[[#This Row],[Year]]=2016,0,tbl_twdbdata[[#This Row],[effsave]]-0.6*SUMIFS(tbl_twdbdata[effsave],tbl_twdbdata[Year],2020,tbl_twdbdata[utility],tbl_twdbdata[[#This Row],[utility]]))","v":0},7430,84,482,0,439652000,127821000,105580000,0,8203270,69416730,{"$f":"tbl_twdbdata[[#This Row],[utility]]&tbl_twdbdata[[#This Row],[Year]]","v":"GALVESTON COUNTY WCID 12016"}]
[null,59,"GALVESTON COUNTY WCID 1","H",2020,22426,26675,94637565,{"$f":"IF(tbl_twdbdata[[#This Row],[Year]]=2016,0,tbl_twdbdata[[#This Row],[effsave]]-0.6*SUMIFS(tbl_twdbdata[effsave],tbl_twdbdata[Year],2020,tbl_twdbdata[utility],tbl_twdbdata[[#This Row],[utility]]))","v":37855026},8838,100,573,0,522951801,152038936,125583987,0,9757524,82568950,{"$f":"tbl_twdbdata[[#This Row],[utility]]&tbl_twdbdata[[#This Row],[Year]]","v":"GALVESTON COUNTY WCID 12020"}]
[null,59,"GALVESTON COUNTY WCID 1","H",2030,22426,30240,148455720,{"$f":"IF(tbl_twdbdata[[#This Row],[Year]]=2016,0,tbl_twdbdata[[#This Row],[effsave]]-0.6*SUMIFS(tbl_twdbdata[effsave],tbl_twdbdata[Year],2020,tbl_twdbdata[utility],tbl_twdbdata[[#This Row],[utility]]))","v":91673181},10019,113,650,0,592842079,172358291,142367752,0,11061575,93603938,{"$f":"tbl_twdbdata[[#This Row],[utility]]&tbl_twdbdata[[#This Row],[Year]]","v":"GALVESTON COUNTY WCID 12030"}]
[null,59,"GALVESTON COUNTY WCID 1","H",2040,22426,33805,192732447,{"$f":"IF(tbl_twdbdata[[#This Row],[Year]]=2016,0,tbl_twdbdata[[#This Row],[effsave]]-0.6*SUMIFS(tbl_twdbdata[effsave],tbl_twdbdata[Year],2020,tbl_twdbdata[utility],tbl_twdbdata[[#This Row],[utility]]))","v":135949908},11200,128,737,0,662732357,192677646,159151517,0,12365626,104638926,{"$f":"tbl_twdbdata[[#This Row],[utility]]&tbl_twdbdata[[#This Row],[Year]]","v":"GALVESTON COUNTY WCID 12040"}]
[null,59,"GALVESTON COUNTY WCID 1","H",2050,22426,37370,226834032,{"$f":"IF(tbl_twdbdata[[#This Row],[Year]]=2016,0,tbl_twdbdata[[#This Row],[effsave]]-0.6*SUMIFS(tbl_twdbdata[effsave],tbl_twdbdata[Year],2020,tbl_twdbdata[utility],tbl_twdbdata[[#This Row],[utility]]))","v":170051493},12381,145,835,0,732622635,212997001,175935282,0,13669677,115673914,{"$f":"tbl_twdbdata[[#This Row],[utility]]&tbl_twdbdata[[#This Row],[Year]]","v":"GALVESTON COUNTY WCID 12050"}]
[null,59,"GALVESTON COUNTY WCID 1","H",2060,22426,40935,252507548,{"$f":"IF(tbl_twdbdata[[#This Row],[Year]]=2016,0,tbl_twdbdata[[#This Row],[effsave]]-0.6*SUMIFS(tbl_twdbdata[effsave],tbl_twdbdata[Year],2020,tbl_twdbdata[utility],tbl_twdbdata[[#This Row],[utility]]))","v":195725009},13562,164,946,0,802512913,233316356,192719047,0,14973728,126708902,{"$f":"tbl_twdbdata[[#This Row],[utility]]&tbl_twdbdata[[#This Row],[Year]]","v":"GALVESTON COUNTY WCID 12060"}]
[null,59,"GALVESTON COUNTY WCID 1","H",2070,22426,44500,275472800,{"$f":"IF(tbl_twdbdata[[#This Row],[Year]]=2016,0,tbl_twdbdata[[#This Row],[effsave]]-0.6*SUMIFS(tbl_twdbdata[effsave],tbl_twdbdata[Year],2020,tbl_twdbdata[utility],tbl_twdbdata[[#This Row],[utility]]))","v":218690261},14743,186,1073,0,872403191,253635711,209502812,0,16277779,137743890,{"$f":"tbl_twdbdata[[#This Row],[utility]]&tbl_twdbdata[[#This Row],[Year]]","v":"GALVESTON COUNTY WCID 12070"}]
[null,834,"GEORGETOWN","G",2016,94546,94546,0,{"$f":"IF(tbl_twdbdata[[#This Row],[Year]]=2016,0,tbl_twdbdata[[#This Row],[effsave]]-0.6*SUMIFS(tbl_twdbdata[effsave],tbl_twdbdata[Year],2020,tbl_twdbdata[utility],tbl_twdbdata[[#This Row],[utility]]))","v":0},33233,4316,1947,0,4087435000,238569000,1007390000,0,108327405,756487722,{"$f":"tbl_twdbdata[[#This Row],[utility]]&tbl_twdbdata[[#This Row],[Year]]","v":"GEORGETOWN2016"}]
[null,834,"GEORGETOWN","G",2020,94546,122109,387311432,{"$f":"IF(tbl_twdbdata[[#This Row],[Year]]=2016,0,tbl_twdbdata[[#This Row],[effsave]]-0.6*SUMIFS(tbl_twdbdata[effsave],tbl_twdbdata[Year],2020,tbl_twdbdata[utility],tbl_twdbdata[[#This Row],[utility]]))","v":154924572.80000001},33537,4355,1965,0,4124795256,240749585,1016597817,0,109317547,763402223,{"$f":"tbl_twdbdata[[#This Row],[utility]]&tbl_twdbdata[[#This Row],[Year]]","v":"GEORGETOWN2020"}]
[null,834,"GEORGETOWN","G",2030,94546,161023,650621483,{"$f":"IF(tbl_twdbdata[[#This Row],[Year]]=2016,0,tbl_twdbdata[[#This Row],[effsave]]-0.6*SUMIFS(tbl_twdbdata[effsave],tbl_twdbdata[Year],2020,tbl_twdbdata[utility],tbl_twdbdata[[#This Row],[utility]]))","v":418234623.80000001},44225,5743,2591,0,5439295273,317472262,1340569739,0,144155135,1006685143,{"$f":"tbl_twdbdata[[#This Row],[utility]]&tbl_twdbdata[[#This Row],[Year]]","v":"GEORGETOWN2030"}]
[null,834,"GEORGETOWN","G",2040,94546,201466,898598800,{"$f":"IF(tbl_twdbdata[[#This Row],[Year]]=2016,0,tbl_twdbdata[[#This Row],[effsave]]-0.6*SUMIFS(tbl_twdbdata[effsave],tbl_twdbdata[Year],2020,tbl_twdbdata[utility],tbl_twdbdata[[#This Row],[utility]]))","v":666211940.79999995},55333,7573,3417,0,6805444325,397209509,1677271091,0,180361553,1259527080,{"$f":"tbl_twdbdata[[#This Row],[utility]]&tbl_twdbdata[[#This Row],[Year]]","v":"GEORGETOWN2040"}]
[null,834,"GEORGETOWN","G",2050,94546,249196,1161515016,{"$f":"IF(tbl_twdbdata[[#This Row],[Year]]=2016,0,tbl_twdbdata[[#This Row],[effsave]]-0.6*SUMIFS(tbl_twdbdata[effsave],tbl_twdbdata[Year],2020,tbl_twdbdata[utility],tbl_twdbdata[[#This Row],[utility]]))","v":929128156.79999995},68442,9986,4506,0,8417745446,491313774,2074639129,0,223091626,1557925954,{"$f":"tbl_twdbdata[[#This Row],[utility]]&tbl_twdbdata[[#This Row],[Year]]","v":"GEORGETOWN2050"}]
[null,834,"GEORGETOWN","G",2060,94546,302430,1431718742,{"$f":"IF(tbl_twdbdata[[#This Row],[Year]]=2016,0,tbl_twdbdata[[#This Row],[effsave]]-0.6*SUMIFS(tbl_twdbdata[effsave],tbl_twdbdata[Year],2020,tbl_twdbdata[utility],tbl_twdbdata[[#This Row],[utility]]))","v":1199331882.8},83063,13168,5942,0,10215969579,596269702,2517829787,0,270749131,1890734788,{"$f":"tbl_twdbdata[[#This Row],[utility]]&tbl_twdbdata[[#This Row],[Year]]","v":"GEORGETOWN2060"}]
[null,834,"GEORGETOWN","G",2070,94546,364407,1735761643,{"$f":"IF(tbl_twdbdata[[#This Row],[Year]]=2016,0,tbl_twdbdata[[#This Row],[effsave]]-0.6*SUMIFS(tbl_twdbdata[effsave],tbl_twdbdata[Year],2020,tbl_twdbdata[utility],tbl_twdbdata[[#This Row],[utility]]))","v":1503374783.8},100085,17364,7836,0,12309528904,718463292,3033808812,0,326233768,2278203194,{"$f":"tbl_twdbdata[[#This Row],[utility]]&tbl_twdbdata[[#This Row],[Year]]","v":"GEORGETOWN2070"}]
[null,839,"GLADEWATER","D",2016,6850,6850,0,{"$f":"IF(tbl_twdbdata[[#This Row],[Year]]=2016,0,tbl_twdbdata[[#This Row],[effsave]]-0.6*SUMIFS(tbl_twdbdata[effsave],tbl_twdbdata[Year],2020,tbl_twdbdata[utility],tbl_twdbdata[[#This Row],[utility]]))","v":0},2799,25,218,0,163734904,20315372,136998556,0,null,null,{"$f":"tbl_twdbdata[[#This Row],[utility]]&tbl_twdbdata[[#This Row],[Year]]","v":"GLADEWATER2016"}]
[null,839,"GLADEWATER","D",2020,6850,7034,25083596,{"$f":"IF(tbl_twdbdata[[#This Row],[Year]]=2016,0,tbl_twdbdata[[#This Row],[effsave]]-0.6*SUMIFS(tbl_twdbdata[effsave],tbl_twdbdata[Year],2020,tbl_twdbdata[utility],tbl_twdbdata[[#This Row],[utility]]))","v":10033438.4},2874,26,223,0,168133039,20861070,140678517,0,null,null,{"$f":"tbl_twdbdata[[#This Row],[utility]]&tbl_twdbdata[[#This Row],[Year]]","v":"GLADEWATER2020"}]
[null,839,"GLADEWATER","D",2030,6850,7664,39163040,{"$f":"IF(tbl_twdbdata[[#This Row],[Year]]=2016,0,tbl_twdbdata[[#This Row],[effsave]]-0.6*SUMIFS(tbl_twdbdata[effsave],tbl_twdbdata[Year],2020,tbl_twdbdata[utility],tbl_twdbdata[[#This Row],[utility]]))","v":24112882.399999999},3131,28,243,0,183191870,22729491,153278385,0,null,null,{"$f":"tbl_twdbdata[[#This Row],[utility]]&tbl_twdbdata[[#This Row],[Year]]","v":"GLADEWATER2030"}]
[null,839,"GLADEWATER","D",2040,6850,8324,51771950,{"$f":"IF(tbl_twdbdata[[#This Row],[Year]]=2016,0,tbl_twdbdata[[#This Row],[effsave]]-0.6*SUMIFS(tbl_twdbdata[effsave],tbl_twdbdata[Year],2020,tbl_twdbdata[utility],tbl_twdbdata[[#This Row],[utility]]))","v":36721792.399999999},3401,31,265,0,198967788,24686885,166478245,0,null,null,{"$f":"tbl_twdbdata[[#This Row],[utility]]&tbl_twdbdata[[#This Row],[Year]]","v":"GLADEWATER2040"}]
[null,839,"GLADEWATER","D",2050,6850,9051,61348131,{"$f":"IF(tbl_twdbdata[[#This Row],[Year]]=2016,0,tbl_twdbdata[[#This Row],[effsave]]-0.6*SUMIFS(tbl_twdbdata[effsave],tbl_twdbdata[Year],2020,tbl_twdbdata[utility],tbl_twdbdata[[#This Row],[utility]]))","v":46297973.399999999},3698,34,289,0,216345201,26842984,181018092,0,null,null,{"$f":"tbl_twdbdata[[#This Row],[utility]]&tbl_twdbdata[[#This Row],[Year]]","v":"GLADEWATER2050"}]
[null,839,"GLADEWATER","D",2060,6850,9829,67733605,{"$f":"IF(tbl_twdbdata[[#This Row],[Year]]=2016,0,tbl_twdbdata[[#This Row],[effsave]]-0.6*SUMIFS(tbl_twdbdata[effsave],tbl_twdbdata[Year],2020,tbl_twdbdata[utility],tbl_twdbdata[[#This Row],[utility]]))","v":52683447.399999999},4016,37,315,0,234941662,29150336,196577929,0,null,null,{"$f":"tbl_twdbdata[[#This Row],[utility]]&tbl_twdbdata[[#This Row],[Year]]","v":"GLADEWATER2060"}]
[null,839,"GLADEWATER","D",2070,6850,10675,73875270,{"$f":"IF(tbl_twdbdata[[#This Row],[Year]]=2016,0,tbl_twdbdata[[#This Row],[effsave]]-0.6*SUMIFS(tbl_twdbdata[effsave],tbl_twdbdata[Year],2020,tbl_twdbdata[utility],tbl_twdbdata[[#This Row],[utility]]))","v":58825112.399999999},4362,40,343,0,255163520,31659359,213497751,0,null,null,{"$f":"tbl_twdbdata[[#This Row],[utility]]&tbl_twdbdata[[#This Row],[Year]]","v":"GLADEWATER2070"}]
[null,840,"GLEN ROSE","G",2016,2502,2502,0,{"$f":"IF(tbl_twdbdata[[#This Row],[Year]]=2016,0,tbl_twdbdata[[#This Row],[effsave]]-0.6*SUMIFS(tbl_twdbdata[effsave],tbl_twdbdata[Year],2020,tbl_twdbdata[utility],tbl_twdbdata[[#This Row],[utility]]))","v":0},1016,5,283,44,55943000,3604000,48748000,8488000,1758642,22149714,{"$f":"tbl_twdbdata[[#This Row],[utility]]&tbl_twdbdata[[#This Row],[Year]]","v":"GLEN ROSE2016"}]
[null,840,"GLEN ROSE","G",2020,2444,2836,9751019,{"$f":"IF(tbl_twdbdata[[#This Row],[Year]]=2016,0,tbl_twdbdata[[#This Row],[effsave]]-0.6*SUMIFS(tbl_twdbdata[effsave],tbl_twdbdata[Year],2020,tbl_twdbdata[utility],tbl_twdbdata[[#This Row],[utility]]))","v":3900407.6000000006},1179,6,329,51,64915854,4182056,56566828,9849414,2040716,25702369,{"$f":"tbl_twdbdata[[#This Row],[utility]]&tbl_twdbdata[[#This Row],[Year]]","v":"GLEN ROSE2020"}]
[null,840,"GLEN ROSE","G",2030,2444,3169,15453312,{"$f":"IF(tbl_twdbdata[[#This Row],[Year]]=2016,0,tbl_twdbdata[[#This Row],[effsave]]-0.6*SUMIFS(tbl_twdbdata[effsave],tbl_twdbdata[Year],2020,tbl_twdbdata[utility],tbl_twdbdata[[#This Row],[utility]]))","v":9602700.6000000015},1317,7,367,57,72538202,4673108,63208842,11005921,2280335,28720313,{"$f":"tbl_twdbdata[[#This Row],[utility]]&tbl_twdbdata[[#This Row],[Year]]","v":"GLEN ROSE2030"}]
[null,840,"GLEN ROSE","G",2040,2444,3409,19846346,{"$f":"IF(tbl_twdbdata[[#This Row],[Year]]=2016,0,tbl_twdbdata[[#This Row],[effsave]]-0.6*SUMIFS(tbl_twdbdata[effsave],tbl_twdbdata[Year],2020,tbl_twdbdata[utility],tbl_twdbdata[[#This Row],[utility]]))","v":13995734.600000001},1417,8,410,64,78031786,5027020,67995879,11839440,2453033,30895408,{"$f":"tbl_twdbdata[[#This Row],[utility]]&tbl_twdbdata[[#This Row],[Year]]","v":"GLEN ROSE2040"}]
[null,840,"GLEN ROSE","G",2050,2444,3593,22622426,{"$f":"IF(tbl_twdbdata[[#This Row],[Year]]=2016,0,tbl_twdbdata[[#This Row],[effsave]]-0.6*SUMIFS(tbl_twdbdata[effsave],tbl_twdbdata[Year],2020,tbl_twdbdata[utility],tbl_twdbdata[[#This Row],[utility]]))","v":16771814.600000001},1493,9,459,72,82243534,5298352,71665941,12478471,2585435,32562981,{"$f":"tbl_twdbdata[[#This Row],[utility]]&tbl_twdbdata[[#This Row],[Year]]","v":"GLEN ROSE2050"}]
[null,840,"GLEN ROSE","G",2060,2444,3750,23980500,{"$f":"IF(tbl_twdbdata[[#This Row],[Year]]=2016,0,tbl_twdbdata[[#This Row],[effsave]]-0.6*SUMIFS(tbl_twdbdata[effsave],tbl_twdbdata[Year],2020,tbl_twdbdata[utility],tbl_twdbdata[[#This Row],[utility]]))","v":18129888.600000001},1558,10,513,80,85837254,5529869,74797462,13023731,2698408,33985855,{"$f":"tbl_twdbdata[[#This Row],[utility]]&tbl_twdbdata[[#This Row],[Year]]","v":"GLEN ROSE2060"}]
[null,840,"GLEN ROSE","G",2070,2444,3876,24856982,{"$f":"IF(tbl_twdbdata[[#This Row],[Year]]=2016,0,tbl_twdbdata[[#This Row],[effsave]]-0.6*SUMIFS(tbl_twdbdata[effsave],tbl_twdbdata[Year],2020,tbl_twdbdata[utility],tbl_twdbdata[[#This Row],[utility]]))","v":19006370.600000001},1610,11,573,89,88721386,5715673,77310657,13461328,2789075,35127780,{"$f":"tbl_twdbdata[[#This Row],[utility]]&tbl_twdbdata[[#This Row],[Year]]","v":"GLEN ROSE2070"}]
[null,2973,"GOFORTH SUD","L",2016,20000,20000,0,{"$f":"IF(tbl_twdbdata[[#This Row],[Year]]=2016,0,tbl_twdbdata[[#This Row],[effsave]]-0.6*SUMIFS(tbl_twdbdata[effsave],tbl_twdbdata[Year],2020,tbl_twdbdata[utility],tbl_twdbdata[[#This Row],[utility]]))","v":0},6725,0,87,0,463837140,0,87019440,0,7431788,36254633,{"$f":"tbl_twdbdata[[#This Row],[utility]]&tbl_twdbdata[[#This Row],[Year]]","v":"GOFORTH SUD2016"}]
[null,2973,"GOFORTH SUD","L",2020,19303,25116,82781080,{"$f":"IF(tbl_twdbdata[[#This Row],[Year]]=2016,0,tbl_twdbdata[[#This Row],[effsave]]-0.6*SUMIFS(tbl_twdbdata[effsave],tbl_twdbdata[Year],2020,tbl_twdbdata[utility],tbl_twdbdata[[#This Row],[utility]]))","v":33112432},8750,0,113,0,603519329,0,113224901,0,9669833,47172531,{"$f":"tbl_twdbdata[[#This Row],[utility]]&tbl_twdbdata[[#This Row],[Year]]","v":"GOFORTH SUD2020"}]
[null,2973,"GOFORTH SUD","L",2030,19303,37944,166333216,{"$f":"IF(tbl_twdbdata[[#This Row],[Year]]=2016,0,tbl_twdbdata[[#This Row],[effsave]]-0.6*SUMIFS(tbl_twdbdata[effsave],tbl_twdbdata[Year],2020,tbl_twdbdata[utility],tbl_twdbdata[[#This Row],[utility]]))","v":116664568},13219,0,171,0,911766898,0,171054533,0,14608701,71265907,{"$f":"tbl_twdbdata[[#This Row],[utility]]&tbl_twdbdata[[#This Row],[Year]]","v":"GOFORTH SUD2030"}]
[null,2973,"GOFORTH SUD","L",2040,19303,50868,249909397,{"$f":"IF(tbl_twdbdata[[#This Row],[Year]]=2016,0,tbl_twdbdata[[#This Row],[effsave]]-0.6*SUMIFS(tbl_twdbdata[effsave],tbl_twdbdata[Year],2020,tbl_twdbdata[utility],tbl_twdbdata[[#This Row],[utility]]))","v":200240749},17721,0,258,0,1222321278,0,229316940,0,19584530,95539589,{"$f":"tbl_twdbdata[[#This Row],[utility]]&tbl_twdbdata[[#This Row],[Year]]","v":"GOFORTH SUD2040"}]
[null,2973,"GOFORTH SUD","L",2050,19303,63931,329487588,{"$f":"IF(tbl_twdbdata[[#This Row],[Year]]=2016,0,tbl_twdbdata[[#This Row],[effsave]]-0.6*SUMIFS(tbl_twdbdata[effsave],tbl_twdbdata[Year],2020,tbl_twdbdata[utility],tbl_twdbdata[[#This Row],[utility]]))","v":279818940},22272,0,390,0,1536215727,0,288205970,0,24613875,120074339,{"$f":"tbl_twdbdata[[#This Row],[utility]]&tbl_twdbdata[[#This Row],[Year]]","v":"GOFORTH SUD2050"}]
[null,2973,"GOFORTH SUD","L",2060,19303,77082,402892198,{"$f":"IF(tbl_twdbdata[[#This Row],[Year]]=2016,0,tbl_twdbdata[[#This Row],[effsave]]-0.6*SUMIFS(tbl_twdbdata[effsave],tbl_twdbdata[Year],2020,tbl_twdbdata[utility],tbl_twdbdata[[#This Row],[utility]]))","v":353223550},26853,0,589,0,1852224753,0,347491711,0,29677101,144774369,{"$f":"tbl_twdbdata[[#This Row],[utility]]&tbl_twdbdata[[#This Row],[Year]]","v":"GOFORTH SUD2060"}]
[null,2973,"GOFORTH SUD","L",2070,19303,90340,475156781,{"$f":"IF(tbl_twdbdata[[#This Row],[Year]]=2016,0,tbl_twdbdata[[#This Row],[effsave]]-0.6*SUMIFS(tbl_twdbdata[effsave],tbl_twdbdata[Year],2020,tbl_twdbdata[utility],tbl_twdbdata[[#This Row],[utility]]))","v":425488133},31472,0,890,0,2170804911,0,407259816,0,34781522,169675365,{"$f":"tbl_twdbdata[[#This Row],[utility]]&tbl_twdbdata[[#This Row],[Year]]","v":"GOFORTH SUD2070"}]
[null,3012,"GOLDEN WSC","D",2016,4119,4119,0,{"$f":"IF(tbl_twdbdata[[#This Row],[Year]]=2016,0,tbl_twdbdata[[#This Row],[effsave]]-0.6*SUMIFS(tbl_twdbdata[effsave],tbl_twdbdata[Year],2020,tbl_twdbdata[utility],tbl_twdbdata[[#This Row],[utility]]))","v":0},1313,12,33,15,68553200,1939300,6166800,800700,11725000,11365694,{"$f":"tbl_twdbdata[[#This Row],[utility]]&tbl_twdbdata[[#This Row],[Year]]","v":"GOLDEN WSC2016"}]
[null,3012,"GOLDEN WSC","D",2020,3204,3336,11287523,{"$f":"IF(tbl_twdbdata[[#This Row],[Year]]=2016,0,tbl_twdbdata[[#This Row],[effsave]]-0.6*SUMIFS(tbl_twdbdata[effsave],tbl_twdbdata[Year],2020,tbl_twdbdata[utility],tbl_twdbdata[[#This Row],[utility]]))","v":4515009.2},1367,12,35,16,71377489,2019196,6420863,833688,12208052,11833944,{"$f":"tbl_twdbdata[[#This Row],[utility]]&tbl_twdbdata[[#This Row],[Year]]","v":"GOLDEN WSC2020"}]
[null,3012,"GOLDEN WSC","D",2030,3204,3503,16851882,{"$f":"IF(tbl_twdbdata[[#This Row],[Year]]=2016,0,tbl_twdbdata[[#This Row],[effsave]]-0.6*SUMIFS(tbl_twdbdata[effsave],tbl_twdbdata[Year],2020,tbl_twdbdata[utility],tbl_twdbdata[[#This Row],[utility]]))","v":10079368.199999999},1435,13,37,17,74950643,2120277,6742291,875422,12819186,12426351,{"$f":"tbl_twdbdata[[#This Row],[utility]]&tbl_twdbdata[[#This Row],[Year]]","v":"GOLDEN WSC2030"}]
[null,3012,"GOLDEN WSC","D",2040,3204,3591,21050083,{"$f":"IF(tbl_twdbdata[[#This Row],[Year]]=2016,0,tbl_twdbdata[[#This Row],[effsave]]-0.6*SUMIFS(tbl_twdbdata[effsave],tbl_twdbdata[Year],2020,tbl_twdbdata[utility],tbl_twdbdata[[#This Row],[utility]]))","v":14277569.199999999},1471,14,39,18,76833502,2173541,6911667,897414,13141221,12738517,{"$f":"tbl_twdbdata[[#This Row],[utility]]&tbl_twdbdata[[#This Row],[Year]]","v":"GOLDEN WSC2040"}]
[null,3012,"GOLDEN WSC","D",2050,3204,3703,23801588,{"$f":"IF(tbl_twdbdata[[#This Row],[Year]]=2016,0,tbl_twdbdata[[#This Row],[effsave]]-0.6*SUMIFS(tbl_twdbdata[effsave],tbl_twdbdata[Year],2020,tbl_twdbdata[utility],tbl_twdbdata[[#This Row],[utility]]))","v":17029074.199999999},1517,15,41,19,79229869,2241332,7127235,925404,13551084,13135820,{"$f":"tbl_twdbdata[[#This Row],[utility]]&tbl_twdbdata[[#This Row],[Year]]","v":"GOLDEN WSC2050"}]
[null,3012,"GOLDEN WSC","D",2060,3204,3772,24658130,{"$f":"IF(tbl_twdbdata[[#This Row],[Year]]=2016,0,tbl_twdbdata[[#This Row],[effsave]]-0.6*SUMIFS(tbl_twdbdata[effsave],tbl_twdbdata[Year],2020,tbl_twdbdata[utility],tbl_twdbdata[[#This Row],[utility]]))","v":17885616.199999999},1545,16,43,20,80706202,2283096,7260040,942648,13803589,13380587,{"$f":"tbl_twdbdata[[#This Row],[utility]]&tbl_twdbdata[[#This Row],[Year]]","v":"GOLDEN WSC2060"}]
[null,3012,"GOLDEN WSC","D",2070,3204,3826,25039066,{"$f":"IF(tbl_twdbdata[[#This Row],[Year]]=2016,0,tbl_twdbdata[[#This Row],[effsave]]-0.6*SUMIFS(tbl_twdbdata[effsave],tbl_twdbdata[Year],2020,tbl_twdbdata[utility],tbl_twdbdata[[#This Row],[utility]]))","v":18266552.199999999},1567,17,45,21,81861593,2315781,7363975,956143,14001201,13572144,{"$f":"tbl_twdbdata[[#This Row],[utility]]&tbl_twdbdata[[#This Row],[Year]]","v":"GOLDEN WSC2070"}]
[null,844,"GOLDTHWAITE","K",2016,1878,1878,0,{"$f":"IF(tbl_twdbdata[[#This Row],[Year]]=2016,0,tbl_twdbdata[[#This Row],[effsave]]-0.6*SUMIFS(tbl_twdbdata[effsave],tbl_twdbdata[Year],2020,tbl_twdbdata[utility],tbl_twdbdata[[#This Row],[utility]]))","v":0},852,50,52,0,69784500,4505000,3800000,0,3793666,3414106,{"$f":"tbl_twdbdata[[#This Row],[utility]]&tbl_twdbdata[[#This Row],[Year]]","v":"GOLDTHWAITE2016"}]
[null,844,"GOLDTHWAITE","K",2020,1878,2075,6770933,{"$f":"IF(tbl_twdbdata[[#This Row],[Year]]=2016,0,tbl_twdbdata[[#This Row],[effsave]]-0.6*SUMIFS(tbl_twdbdata[effsave],tbl_twdbdata[Year],2020,tbl_twdbdata[utility],tbl_twdbdata[[#This Row],[utility]]))","v":2708373.2},941,55,57,0,77104812,4977569,4198616,0,4191617,3772242,{"$f":"tbl_twdbdata[[#This Row],[utility]]&tbl_twdbdata[[#This Row],[Year]]","v":"GOLDTHWAITE2020"}]
[null,844,"GOLDTHWAITE","K",2030,1878,2144,10243710,{"$f":"IF(tbl_twdbdata[[#This Row],[Year]]=2016,0,tbl_twdbdata[[#This Row],[effsave]]-0.6*SUMIFS(tbl_twdbdata[effsave],tbl_twdbdata[Year],2020,tbl_twdbdata[utility],tbl_twdbdata[[#This Row],[utility]]))","v":6181150.2000000002},972,57,59,0,79668779,5143088,4338233,0,4331001,3897680,{"$f":"tbl_twdbdata[[#This Row],[utility]]&tbl_twdbdata[[#This Row],[Year]]","v":"GOLDTHWAITE2030"}]
[null,844,"GOLDTHWAITE","K",2040,1878,2203,13154994,{"$f":"IF(tbl_twdbdata[[#This Row],[Year]]=2016,0,tbl_twdbdata[[#This Row],[effsave]]-0.6*SUMIFS(tbl_twdbdata[effsave],tbl_twdbdata[Year],2020,tbl_twdbdata[utility],tbl_twdbdata[[#This Row],[utility]]))","v":9092434.1999999993},999,59,61,0,81861157,5284619,4457615,0,4450184,4004939,{"$f":"tbl_twdbdata[[#This Row],[utility]]&tbl_twdbdata[[#This Row],[Year]]","v":"GOLDTHWAITE2040"}]
[null,844,"GOLDTHWAITE","K",2050,1878,2289,15080504,{"$f":"IF(tbl_twdbdata[[#This Row],[Year]]=2016,0,tbl_twdbdata[[#This Row],[effsave]]-0.6*SUMIFS(tbl_twdbdata[effsave],tbl_twdbdata[Year],2020,tbl_twdbdata[utility],tbl_twdbdata[[#This Row],[utility]]))","v":11017944.199999999},1038,61,63,0,85056826,5490918,4631630,0,4623909,4161283,{"$f":"tbl_twdbdata[[#This Row],[utility]]&tbl_twdbdata[[#This Row],[Year]]","v":"GOLDTHWAITE2050"}]
[null,844,"GOLDTHWAITE","K",2060,1878,2377,15963932,{"$f":"IF(tbl_twdbdata[[#This Row],[Year]]=2016,0,tbl_twdbdata[[#This Row],[effsave]]-0.6*SUMIFS(tbl_twdbdata[effsave],tbl_twdbdata[Year],2020,tbl_twdbdata[utility],tbl_twdbdata[[#This Row],[utility]]))","v":11901372.199999999},1078,63,65,0,88326813,5702015,4809692,0,4801674,4321262,{"$f":"tbl_twdbdata[[#This Row],[utility]]&tbl_twdbdata[[#This Row],[Year]]","v":"GOLDTHWAITE2060"}]
[null,844,"GOLDTHWAITE","K",2070,1878,2475,16667269,{"$f":"IF(tbl_twdbdata[[#This Row],[Year]]=2016,0,tbl_twdbdata[[#This Row],[effsave]]-0.6*SUMIFS(tbl_twdbdata[effsave],tbl_twdbdata[Year],2020,tbl_twdbdata[utility],tbl_twdbdata[[#This Row],[utility]]))","v":12604709.199999999},1122,65,67,0,91968390,5937100,5007988,0,4999640,4499421,{"$f":"tbl_twdbdata[[#This Row],[utility]]&tbl_twdbdata[[#This Row],[Year]]","v":"GOLDTHWAITE2070"}]
[null,846,"GONZALES","L",2016,9089,9089,0,{"$f":"IF(tbl_twdbdata[[#This Row],[Year]]=2016,0,tbl_twdbdata[[#This Row],[effsave]]-0.6*SUMIFS(tbl_twdbdata[effsave],tbl_twdbdata[Year],2020,tbl_twdbdata[utility],tbl_twdbdata[[#This Row],[utility]]))","v":0},2588,0,543,3,204448845,0,237195123,54600,null,null,{"$f":"tbl_twdbdata[[#This Row],[utility]]&tbl_twdbdata[[#This Row],[Year]]","v":"GONZALES2016"}]
[null,846,"GONZALES","L",2020,6318,8304,29248764,{"$f":"IF(tbl_twdbdata[[#This Row],[Year]]=2016,0,tbl_twdbdata[[#This Row],[effsave]]-0.6*SUMIFS(tbl_twdbdata[effsave],tbl_twdbdata[Year],2020,tbl_twdbdata[utility],tbl_twdbdata[[#This Row],[utility]]))","v":11699505.600000001},3402,0,713,4,268715291,0,311755033,71763,null,null,{"$f":"tbl_twdbdata[[#This Row],[utility]]&tbl_twdbdata[[#This Row],[Year]]","v":"GONZALES2020"}]
[null,846,"GONZALES","L",2030,6318,9132,45697898,{"$f":"IF(tbl_twdbdata[[#This Row],[Year]]=2016,0,tbl_twdbdata[[#This Row],[effsave]]-0.6*SUMIFS(tbl_twdbdata[effsave],tbl_twdbdata[Year],2020,tbl_twdbdata[utility],tbl_twdbdata[[#This Row],[utility]]))","v":28148639.600000001},3741,0,785,4,295509157,0,342840434,78919,null,null,{"$f":"tbl_twdbdata[[#This Row],[utility]]&tbl_twdbdata[[#This Row],[Year]]","v":"GONZALES2030"}]
[null,846,"GONZALES","L",2040,6318,9912,59803556,{"$f":"IF(tbl_twdbdata[[#This Row],[Year]]=2016,0,tbl_twdbdata[[#This Row],[effsave]]-0.6*SUMIFS(tbl_twdbdata[effsave],tbl_twdbdata[Year],2020,tbl_twdbdata[utility],tbl_twdbdata[[#This Row],[utility]]))","v":42254297.600000001},4061,0,863,4,320749755,0,372123783,85660,null,null,{"$f":"tbl_twdbdata[[#This Row],[utility]]&tbl_twdbdata[[#This Row],[Year]]","v":"GONZALES2040"}]
[null,846,"GONZALES","L",2050,6318,10816,70903206,{"$f":"IF(tbl_twdbdata[[#This Row],[Year]]=2016,0,tbl_twdbdata[[#This Row],[effsave]]-0.6*SUMIFS(tbl_twdbdata[effsave],tbl_twdbdata[Year],2020,tbl_twdbdata[utility],tbl_twdbdata[[#This Row],[utility]]))","v":53353947.600000001},4431,0,949,4,350002961,0,406062433,93472,null,null,{"$f":"tbl_twdbdata[[#This Row],[utility]]&tbl_twdbdata[[#This Row],[Year]]","v":"GONZALES2050"}]
[null,846,"GONZALES","L",2060,6318,11734,78205937,{"$f":"IF(tbl_twdbdata[[#This Row],[Year]]=2016,0,tbl_twdbdata[[#This Row],[effsave]]-0.6*SUMIFS(tbl_twdbdata[effsave],tbl_twdbdata[Year],2020,tbl_twdbdata[utility],tbl_twdbdata[[#This Row],[utility]]))","v":60656678.600000001},4807,0,1043,4,379709203,0,440526681,101405,null,null,{"$f":"tbl_twdbdata[[#This Row],[utility]]&tbl_twdbdata[[#This Row],[Year]]","v":"GONZALES2060"}]
[null,846,"GONZALES","L",2070,6318,12695,84981600,{"$f":"IF(tbl_twdbdata[[#This Row],[Year]]=2016,0,tbl_twdbdata[[#This Row],[effsave]]-0.6*SUMIFS(tbl_twdbdata[effsave],tbl_twdbdata[Year],2020,tbl_twdbdata[utility],tbl_twdbdata[[#This Row],[utility]]))","v":67432341.599999994},5201,0,1147,4,410806914,0,476605268,109710,null,null,{"$f":"tbl_twdbdata[[#This Row],[utility]]&tbl_twdbdata[[#This Row],[Year]]","v":"GONZALES2070"}]
[null,850,"GRAHAM","G",2016,8759,8759,0,{"$f":"IF(tbl_twdbdata[[#This Row],[Year]]=2016,0,tbl_twdbdata[[#This Row],[effsave]]-0.6*SUMIFS(tbl_twdbdata[effsave],tbl_twdbdata[Year],2020,tbl_twdbdata[utility],tbl_twdbdata[[#This Row],[utility]]))","v":0},3822,0,717,0,278665900,0,100744900,0,27992747,232016211,{"$f":"tbl_twdbdata[[#This Row],[utility]]&tbl_twdbdata[[#This Row],[Year]]","v":"GRAHAM2016"}]
[null,850,"GRAHAM","G",2020,8759,9708,34087700,{"$f":"IF(tbl_twdbdata[[#This Row],[Year]]=2016,0,tbl_twdbdata[[#This Row],[effsave]]-0.6*SUMIFS(tbl_twdbdata[effsave],tbl_twdbdata[Year],2020,tbl_twdbdata[utility],tbl_twdbdata[[#This Row],[utility]]))","v":13635080},4236,0,795,0,308858152,0,111660177,0,31025641,257154170,{"$f":"tbl_twdbdata[[#This Row],[utility]]&tbl_twdbdata[[#This Row],[Year]]","v":"GRAHAM2020"}]
[null,850,"GRAHAM","G",2030,8759,10242,52411387,{"$f":"IF(tbl_twdbdata[[#This Row],[Year]]=2016,0,tbl_twdbdata[[#This Row],[effsave]]-0.6*SUMIFS(tbl_twdbdata[effsave],tbl_twdbdata[Year],2020,tbl_twdbdata[utility],tbl_twdbdata[[#This Row],[utility]]))","v":31958767},4469,0,839,0,325847259,0,117802177,0,32732243,271299239,{"$f":"tbl_twdbdata[[#This Row],[utility]]&tbl_twdbdata[[#This Row],[Year]]","v":"GRAHAM2030"}]
[null,850,"GRAHAM","G",2040,8759,10626,67330586,{"$f":"IF(tbl_twdbdata[[#This Row],[Year]]=2016,0,tbl_twdbdata[[#This Row],[effsave]]-0.6*SUMIFS(tbl_twdbdata[effsave],tbl_twdbdata[Year],2020,tbl_twdbdata[utility],tbl_twdbdata[[#This Row],[utility]]))","v":46877966},4637,0,885,0,338064145,0,122218896,0,33959462,281470974,{"$f":"tbl_twdbdata[[#This Row],[utility]]&tbl_twdbdata[[#This Row],[Year]]","v":"GRAHAM2040"}]
[null,850,"GRAHAM","G",2050,8759,11032,76748521,{"$f":"IF(tbl_twdbdata[[#This Row],[Year]]=2016,0,tbl_twdbdata[[#This Row],[effsave]]-0.6*SUMIFS(tbl_twdbdata[effsave],tbl_twdbdata[Year],2020,tbl_twdbdata[utility],tbl_twdbdata[[#This Row],[utility]]))","v":56295901},4814,0,934,0,350980957,0,126888656,0,35256991,292225464,{"$f":"tbl_twdbdata[[#This Row],[utility]]&tbl_twdbdata[[#This Row],[Year]]","v":"GRAHAM2050"}]
[null,850,"GRAHAM","G",2060,8759,11426,80782391,{"$f":"IF(tbl_twdbdata[[#This Row],[Year]]=2016,0,tbl_twdbdata[[#This Row],[effsave]]-0.6*SUMIFS(tbl_twdbdata[effsave],tbl_twdbdata[Year],2020,tbl_twdbdata[utility],tbl_twdbdata[[#This Row],[utility]]))","v":60329771},4986,0,985,0,363515991,0,131420394,0,36516169,302662088,{"$f":"tbl_twdbdata[[#This Row],[utility]]&tbl_twdbdata[[#This Row],[Year]]","v":"GRAHAM2060"}]
[null,850,"GRAHAM","G",2070,8759,11809,83705735,{"$f":"IF(tbl_twdbdata[[#This Row],[Year]]=2016,0,tbl_twdbdata[[#This Row],[effsave]]-0.6*SUMIFS(tbl_twdbdata[effsave],tbl_twdbdata[Year],2020,tbl_twdbdata[utility],tbl_twdbdata[[#This Row],[utility]]))","v":63253115},5153,0,1039,0,375701062,0,135825611,0,37740193,312807334,{"$f":"tbl_twdbdata[[#This Row],[utility]]&tbl_twdbdata[[#This Row],[Year]]","v":"GRAHAM2070"}]
[null,851,"GRANBURY","G",2016,11193,11193,0,{"$f":"IF(tbl_twdbdata[[#This Row],[Year]]=2016,0,tbl_twdbdata[[#This Row],[effsave]]-0.6*SUMIFS(tbl_twdbdata[effsave],tbl_twdbdata[Year],2020,tbl_twdbdata[utility],tbl_twdbdata[[#This Row],[utility]]))","v":0},4275,94,1203,0,231287876,36144538,297325986,0,27095240,80100975,{"$f":"tbl_twdbdata[[#This Row],[utility]]&tbl_twdbdata[[#This Row],[Year]]","v":"GRANBURY2016"}]
[null,851,"GRANBURY","G",2020,11022,14656,48786893,{"$f":"IF(tbl_twdbdata[[#This Row],[Year]]=2016,0,tbl_twdbdata[[#This Row],[effsave]]-0.6*SUMIFS(tbl_twdbdata[effsave],tbl_twdbdata[Year],2020,tbl_twdbdata[utility],tbl_twdbdata[[#This Row],[utility]]))","v":19514757.199999999},5684,125,1600,0,307544467,48061545,395355621,0,36028655,106510605,{"$f":"tbl_twdbdata[[#This Row],[utility]]&tbl_twdbdata[[#This Row],[Year]]","v":"GRANBURY2020"}]
[null,851,"GRANBURY","G",2030,11022,17791,79937632,{"$f":"IF(tbl_twdbdata[[#This Row],[Year]]=2016,0,tbl_twdbdata[[#This Row],[effsave]]-0.6*SUMIFS(tbl_twdbdata[effsave],tbl_twdbdata[Year],2020,tbl_twdbdata[utility],tbl_twdbdata[[#This Row],[utility]]))","v":50665496.200000003},6900,152,1942,0,373329941,58342177,479924389,0,43735385,129293816,{"$f":"tbl_twdbdata[[#This Row],[utility]]&tbl_twdbdata[[#This Row],[Year]]","v":"GRANBURY2030"}]
[null,851,"GRANBURY","G",2040,11022,20037,102315935,{"$f":"IF(tbl_twdbdata[[#This Row],[Year]]=2016,0,tbl_twdbdata[[#This Row],[effsave]]-0.6*SUMIFS(tbl_twdbdata[effsave],tbl_twdbdata[Year],2020,tbl_twdbdata[utility],tbl_twdbdata[[#This Row],[utility]]))","v":73043799.200000003},7771,185,2358,0,420460459,65707504,540511775,0,49256698,145616334,{"$f":"tbl_twdbdata[[#This Row],[utility]]&tbl_twdbdata[[#This Row],[Year]]","v":"GRANBURY2040"}]
[null,851,"GRANBURY","G",2050,11022,21972,118772942,{"$f":"IF(tbl_twdbdata[[#This Row],[Year]]=2016,0,tbl_twdbdata[[#This Row],[effsave]]-0.6*SUMIFS(tbl_twdbdata[effsave],tbl_twdbdata[Year],2020,tbl_twdbdata[utility],tbl_twdbdata[[#This Row],[utility]]))","v":89500806.200000003},8521,225,2862,0,461064890,72052966,592709723,0,54013483,159678699,{"$f":"tbl_twdbdata[[#This Row],[utility]]&tbl_twdbdata[[#This Row],[Year]]","v":"GRANBURY2050"}]
[null,851,"GRANBURY","G",2060,11022,23458,128689415,{"$f":"IF(tbl_twdbdata[[#This Row],[Year]]=2016,0,tbl_twdbdata[[#This Row],[effsave]]-0.6*SUMIFS(tbl_twdbdata[effsave],tbl_twdbdata[Year],2020,tbl_twdbdata[utility],tbl_twdbdata[[#This Row],[utility]]))","v":99417279.200000003},9097,273,3474,0,492247414,76926018,632795589,0,57666498,170478014,{"$f":"tbl_twdbdata[[#This Row],[utility]]&tbl_twdbdata[[#This Row],[Year]]","v":"GRANBURY2060"}]
[null,851,"GRANBURY","G",2070,11022,24596,135471079,{"$f":"IF(tbl_twdbdata[[#This Row],[Year]]=2016,0,tbl_twdbdata[[#This Row],[effsave]]-0.6*SUMIFS(tbl_twdbdata[effsave],tbl_twdbdata[Year],2020,tbl_twdbdata[utility],tbl_twdbdata[[#This Row],[utility]]))","v":106198943.2},9538,331,4218,0,516127436,80657871,663493917,0,60464029,178748283,{"$f":"tbl_twdbdata[[#This Row],[utility]]&tbl_twdbdata[[#This Row],[Year]]","v":"GRANBURY2070"}]
[null,853,"GRAND PRAIRIE","C",2016,184620,184620,0,{"$f":"IF(tbl_twdbdata[[#This Row],[Year]]=2016,0,tbl_twdbdata[[#This Row],[effsave]]-0.6*SUMIFS(tbl_twdbdata[effsave],tbl_twdbdata[Year],2020,tbl_twdbdata[utility],tbl_twdbdata[[#This Row],[utility]]))","v":0},45094,0,5343,0,4905106000,0,2254884000,0,270143291,1547580709,{"$f":"tbl_twdbdata[[#This Row],[utility]]&tbl_twdbdata[[#This Row],[Year]]","v":"GRAND PRAIRIE2016"}]
[null,853,"GRAND PRAIRIE","C",2020,184591,218127,715751031,{"$f":"IF(tbl_twdbdata[[#This Row],[Year]]=2016,0,tbl_twdbdata[[#This Row],[effsave]]-0.6*SUMIFS(tbl_twdbdata[effsave],tbl_twdbdata[Year],2020,tbl_twdbdata[utility],tbl_twdbdata[[#This Row],[utility]]))","v":286300412.40000004},53287,0,6314,0,5796252561,0,2664545304,0,319222203,1828741040,{"$f":"tbl_twdbdata[[#This Row],[utility]]&tbl_twdbdata[[#This Row],[Year]]","v":"GRAND PRAIRIE2020"}]
[null,853,"GRAND PRAIRIE","C",2030,184591,258716,1151118035,{"$f":"IF(tbl_twdbdata[[#This Row],[Year]]=2016,0,tbl_twdbdata[[#This Row],[effsave]]-0.6*SUMIFS(tbl_twdbdata[effsave],tbl_twdbdata[Year],2020,tbl_twdbdata[utility],tbl_twdbdata[[#This Row],[utility]]))","v":721667416.4000001},63203,0,7488,0,6874817320,0,3160363012,0,378622965,2169032568,{"$f":"tbl_twdbdata[[#This Row],[utility]]&tbl_twdbdata[[#This Row],[Year]]","v":"GRAND PRAIRIE2030"}]
[null,853,"GRAND PRAIRIE","C",2040,184591,283443,1441151761,{"$f":"IF(tbl_twdbdata[[#This Row],[Year]]=2016,0,tbl_twdbdata[[#This Row],[effsave]]-0.6*SUMIFS(tbl_twdbdata[effsave],tbl_twdbdata[Year],2020,tbl_twdbdata[utility],tbl_twdbdata[[#This Row],[utility]]))","v":1011701142.4000001},69244,0,8881,0,7531883786,0,3462417374,0,414810174,2376339686,{"$f":"tbl_twdbdata[[#This Row],[utility]]&tbl_twdbdata[[#This Row],[Year]]","v":"GRAND PRAIRIE2040"}]
[null,853,"GRAND PRAIRIE","C",2050,184591,283469,1525091567,{"$f":"IF(tbl_twdbdata[[#This Row],[Year]]=2016,0,tbl_twdbdata[[#This Row],[effsave]]-0.6*SUMIFS(tbl_twdbdata[effsave],tbl_twdbdata[Year],2020,tbl_twdbdata[utility],tbl_twdbdata[[#This Row],[utility]]))","v":1095640948.4000001},69250,0,10534,0,7532574680,0,3462734978,0,414848224,2376557666,{"$f":"tbl_twdbdata[[#This Row],[utility]]&tbl_twdbdata[[#This Row],[Year]]","v":"GRAND PRAIRIE2050"}]
[null,853,"GRAND PRAIRIE","C",2060,184591,283495,1545926585,{"$f":"IF(tbl_twdbdata[[#This Row],[Year]]=2016,0,tbl_twdbdata[[#This Row],[effsave]]-0.6*SUMIFS(tbl_twdbdata[effsave],tbl_twdbdata[Year],2020,tbl_twdbdata[utility],tbl_twdbdata[[#This Row],[utility]]))","v":1116475966.4000001},69256,0,12494,0,7533265574,0,3463052582,0,414886274,2376775646,{"$f":"tbl_twdbdata[[#This Row],[utility]]&tbl_twdbdata[[#This Row],[Year]]","v":"GRAND PRAIRIE2060"}]
[null,853,"GRAND PRAIRIE","C",2070,184591,283525,1549194776,{"$f":"IF(tbl_twdbdata[[#This Row],[Year]]=2016,0,tbl_twdbdata[[#This Row],[effsave]]-0.6*SUMIFS(tbl_twdbdata[effsave],tbl_twdbdata[Year],2020,tbl_twdbdata[utility],tbl_twdbdata[[#This Row],[utility]]))","v":1119744157.4000001},69263,0,14819,0,7534062759,0,3463419049,0,414930178,2377027161,{"$f":"tbl_twdbdata[[#This Row],[utility]]&tbl_twdbdata[[#This Row],[Year]]","v":"GRAND PRAIRIE2070"}]
[null,859,"GRAPEVINE","C",2016,48751,48751,0,{"$f":"IF(tbl_twdbdata[[#This Row],[Year]]=2016,0,tbl_twdbdata[[#This Row],[effsave]]-0.6*SUMIFS(tbl_twdbdata[effsave],tbl_twdbdata[Year],2020,tbl_twdbdata[utility],tbl_twdbdata[[#This Row],[utility]]))","v":0},13415,8987,1057,0,2198220367,373083635,667284038,0,57448500,122470967,{"$f":"tbl_twdbdata[[#This Row],[utility]]&tbl_twdbdata[[#This Row],[Year]]","v":"GRAPEVINE2016"}]
[null,859,"GRAPEVINE","C",2020,47836,52243,180580542,{"$f":"IF(tbl_twdbdata[[#This Row],[Year]]=2016,0,tbl_twdbdata[[#This Row],[effsave]]-0.6*SUMIFS(tbl_twdbdata[effsave],tbl_twdbdata[Year],2020,tbl_twdbdata[utility],tbl_twdbdata[[#This Row],[utility]]))","v":72232216.799999997},14651,9815,1154,0,2400736404,407454811,728759094,0,62741073,133753883,{"$f":"tbl_twdbdata[[#This Row],[utility]]&tbl_twdbdata[[#This Row],[Year]]","v":"GRAPEVINE2020"}]
[null,859,"GRAPEVINE","C",2030,47836,54037,262519852,{"$f":"IF(tbl_twdbdata[[#This Row],[Year]]=2016,0,tbl_twdbdata[[#This Row],[effsave]]-0.6*SUMIFS(tbl_twdbdata[effsave],tbl_twdbdata[Year],2020,tbl_twdbdata[utility],tbl_twdbdata[[#This Row],[utility]]))","v":154171526.80000001},15154,10152,1193,0,2483176561,421446617,753784338,0,64895572,138346928,{"$f":"tbl_twdbdata[[#This Row],[utility]]&tbl_twdbdata[[#This Row],[Year]]","v":"GRAPEVINE2030"}]
[null,859,"GRAPEVINE","C",2040,47836,54037,308475618,{"$f":"IF(tbl_twdbdata[[#This Row],[Year]]=2016,0,tbl_twdbdata[[#This Row],[effsave]]-0.6*SUMIFS(tbl_twdbdata[effsave],tbl_twdbdata[Year],2020,tbl_twdbdata[utility],tbl_twdbdata[[#This Row],[utility]]))","v":200127292.80000001},15154,10501,1234,0,2483176561,421446617,753784338,0,64895572,138346928,{"$f":"tbl_twdbdata[[#This Row],[utility]]&tbl_twdbdata[[#This Row],[Year]]","v":"GRAPEVINE2040"}]
[null,859,"GRAPEVINE","C",2050,47836,54037,333129999,{"$f":"IF(tbl_twdbdata[[#This Row],[Year]]=2016,0,tbl_twdbdata[[#This Row],[effsave]]-0.6*SUMIFS(tbl_twdbdata[effsave],tbl_twdbdata[Year],2020,tbl_twdbdata[utility],tbl_twdbdata[[#This Row],[utility]]))","v":224781673.80000001},15154,10862,1276,0,2483176561,421446617,753784338,0,64895572,138346928,{"$f":"tbl_twdbdata[[#This Row],[utility]]&tbl_twdbdata[[#This Row],[Year]]","v":"GRAPEVINE2050"}]
[null,859,"GRAPEVINE","C",2060,47836,54037,338060876,{"$f":"IF(tbl_twdbdata[[#This Row],[Year]]=2016,0,tbl_twdbdata[[#This Row],[effsave]]-0.6*SUMIFS(tbl_twdbdata[effsave],tbl_twdbdata[Year],2020,tbl_twdbdata[utility],tbl_twdbdata[[#This Row],[utility]]))","v":229712550.80000001},15154,11235,1319,0,2483176561,421446617,753784338,0,64895572,138346928,{"$f":"tbl_twdbdata[[#This Row],[utility]]&tbl_twdbdata[[#This Row],[Year]]","v":"GRAPEVINE2060"}]
[null,859,"GRAPEVINE","C",2070,47836,54037,338455346,{"$f":"IF(tbl_twdbdata[[#This Row],[Year]]=2016,0,tbl_twdbdata[[#This Row],[effsave]]-0.6*SUMIFS(tbl_twdbdata[effsave],tbl_twdbdata[Year],2020,tbl_twdbdata[utility],tbl_twdbdata[[#This Row],[utility]]))","v":230107020.80000001},15154,11621,1364,0,2483176561,421446617,753784338,0,64895572,138346928,{"$f":"tbl_twdbdata[[#This Row],[utility]]&tbl_twdbdata[[#This Row],[Year]]","v":"GRAPEVINE2070"}]
[null,861,"GREEN VALLEY SUD","L",2016,31043,31043,0,{"$f":"IF(tbl_twdbdata[[#This Row],[Year]]=2016,0,tbl_twdbdata[[#This Row],[effsave]]-0.6*SUMIFS(tbl_twdbdata[effsave],tbl_twdbdata[Year],2020,tbl_twdbdata[utility],tbl_twdbdata[[#This Row],[utility]]))","v":0},11406,12,177,50,803512436,22104800,62996180,14468000,14324625,228563968,{"$f":"tbl_twdbdata[[#This Row],[utility]]&tbl_twdbdata[[#This Row],[Year]]","v":"GREEN VALLEY SUD2016"}]
[null,861,"GREEN VALLEY SUD","L",2020,25253,28098,111172547,{"$f":"IF(tbl_twdbdata[[#This Row],[Year]]=2016,0,tbl_twdbdata[[#This Row],[effsave]]-0.6*SUMIFS(tbl_twdbdata[effsave],tbl_twdbdata[Year],2020,tbl_twdbdata[utility],tbl_twdbdata[[#This Row],[utility]]))","v":44469018.800000004},12691,13,197,56,894036052,24595124,70093322,16097963,15938436,254313958,{"$f":"tbl_twdbdata[[#This Row],[utility]]&tbl_twdbdata[[#This Row],[Year]]","v":"GREEN VALLEY SUD2020"}]
[null,861,"GREEN VALLEY SUD","L",2030,25253,33582,187170956,{"$f":"IF(tbl_twdbdata[[#This Row],[Year]]=2016,0,tbl_twdbdata[[#This Row],[effsave]]-0.6*SUMIFS(tbl_twdbdata[effsave],tbl_twdbdata[Year],2020,tbl_twdbdata[utility],tbl_twdbdata[[#This Row],[utility]]))","v":120467427.80000001},15168,16,235,67,1068528675,29395454,83773719,19239867,19049205,303949439,{"$f":"tbl_twdbdata[[#This Row],[utility]]&tbl_twdbdata[[#This Row],[Year]]","v":"GREEN VALLEY SUD2030"}]
[null,861,"GREEN VALLEY SUD","L",2040,25253,39150,257072603,{"$f":"IF(tbl_twdbdata[[#This Row],[Year]]=2016,0,tbl_twdbdata[[#This Row],[effsave]]-0.6*SUMIFS(tbl_twdbdata[effsave],tbl_twdbdata[Year],2020,tbl_twdbdata[utility],tbl_twdbdata[[#This Row],[utility]]))","v":190369074.80000001},17683,19,281,80,1245694051,34269312,97663663,22429897,22207622,354345201,{"$f":"tbl_twdbdata[[#This Row],[utility]]&tbl_twdbdata[[#This Row],[Year]]","v":"GREEN VALLEY SUD2040"}]
[null,861,"GREEN VALLEY SUD","L",2050,25253,44591,312819242,{"$f":"IF(tbl_twdbdata[[#This Row],[Year]]=2016,0,tbl_twdbdata[[#This Row],[effsave]]-0.6*SUMIFS(tbl_twdbdata[effsave],tbl_twdbdata[Year],2020,tbl_twdbdata[utility],tbl_twdbdata[[#This Row],[utility]]))","v":246115713.80000001},20141,23,336,96,1418818478,39032002,111236792,25547166,25293999,403591491,{"$f":"tbl_twdbdata[[#This Row],[utility]]&tbl_twdbdata[[#This Row],[Year]]","v":"GREEN VALLEY SUD2050"}]
[null,861,"GREEN VALLEY SUD","L",2060,25253,50090,355967090,{"$f":"IF(tbl_twdbdata[[#This Row],[Year]]=2016,0,tbl_twdbdata[[#This Row],[effsave]]-0.6*SUMIFS(tbl_twdbdata[effsave],tbl_twdbdata[Year],2020,tbl_twdbdata[utility],tbl_twdbdata[[#This Row],[utility]]))","v":289263561.80000001},22625,27,401,115,1593788378,43845462,124954608,28697664,28413276,453362737,{"$f":"tbl_twdbdata[[#This Row],[utility]]&tbl_twdbdata[[#This Row],[Year]]","v":"GREEN VALLEY SUD2060"}]
[null,861,"GREEN VALLEY SUD","L",2070,25253,55462,395762967,{"$f":"IF(tbl_twdbdata[[#This Row],[Year]]=2016,0,tbl_twdbdata[[#This Row],[effsave]]-0.6*SUMIFS(tbl_twdbdata[effsave],tbl_twdbdata[Year],2020,tbl_twdbdata[utility],tbl_twdbdata[[#This Row],[utility]]))","v":329059438.80000001},25051,32,480,137,1764717329,48547754,138355609,31775401,31460513,501984510,{"$f":"tbl_twdbdata[[#This Row],[utility]]&tbl_twdbdata[[#This Row],[Year]]","v":"GREEN VALLEY SUD2070"}]
[null,64,"GREENVILLE","D",2016,25917,25917,0,{"$f":"IF(tbl_twdbdata[[#This Row],[Year]]=2016,0,tbl_twdbdata[[#This Row],[effsave]]-0.6*SUMIFS(tbl_twdbdata[effsave],tbl_twdbdata[Year],2020,tbl_twdbdata[utility],tbl_twdbdata[[#This Row],[utility]]))","v":0},8999,164,1365,0,535639000,175176700,497577013,0,21494091,69626155,{"$f":"tbl_twdbdata[[#This Row],[utility]]&tbl_twdbdata[[#This Row],[Year]]","v":"GREENVILLE2016"}]
[null,64,"GREENVILLE","D",2020,25917,29871,108265946,{"$f":"IF(tbl_twdbdata[[#This Row],[Year]]=2016,0,tbl_twdbdata[[#This Row],[effsave]]-0.6*SUMIFS(tbl_twdbdata[effsave],tbl_twdbdata[Year],2020,tbl_twdbdata[utility],tbl_twdbdata[[#This Row],[utility]]))","v":43306378.400000006},10372,189,1573,0,617358204,201902350,573489330,0,24773315,80248597,{"$f":"tbl_twdbdata[[#This Row],[utility]]&tbl_twdbdata[[#This Row],[Year]]","v":"GREENVILLE2020"}]
[null,64,"GREENVILLE","D",2030,25917,34309,178950598,{"$f":"IF(tbl_twdbdata[[#This Row],[Year]]=2016,0,tbl_twdbdata[[#This Row],[effsave]]-0.6*SUMIFS(tbl_twdbdata[effsave],tbl_twdbdata[Year],2020,tbl_twdbdata[utility],tbl_twdbdata[[#This Row],[utility]]))","v":113991030.40000001},11913,217,1807,0,709080467,231899425,658693898,0,28453941,92171307,{"$f":"tbl_twdbdata[[#This Row],[utility]]&tbl_twdbdata[[#This Row],[Year]]","v":"GREENVILLE2030"}]
[null,64,"GREENVILLE","D",2040,25917,40330,253780558,{"$f":"IF(tbl_twdbdata[[#This Row],[Year]]=2016,0,tbl_twdbdata[[#This Row],[effsave]]-0.6*SUMIFS(tbl_twdbdata[effsave],tbl_twdbdata[Year],2020,tbl_twdbdata[utility],tbl_twdbdata[[#This Row],[utility]]))","v":188820990.40000001},14004,249,2075,0,833519346,272596223,774290271,0,33447417,108346755,{"$f":"tbl_twdbdata[[#This Row],[utility]]&tbl_twdbdata[[#This Row],[Year]]","v":"GREENVILLE2040"}]
[null,64,"GREENVILLE","D",2050,25917,48645,330606014,{"$f":"IF(tbl_twdbdata[[#This Row],[Year]]=2016,0,tbl_twdbdata[[#This Row],[effsave]]-0.6*SUMIFS(tbl_twdbdata[effsave],tbl_twdbdata[Year],2020,tbl_twdbdata[utility],tbl_twdbdata[[#This Row],[utility]]))","v":265646446.40000001},16891,286,2383,0,1005369417,328798494,933928843,0,40343407,130685046,{"$f":"tbl_twdbdata[[#This Row],[utility]]&tbl_twdbdata[[#This Row],[Year]]","v":"GREENVILLE2050"}]
[null,64,"GREENVILLE","D",2060,25917,60491,418401124,{"$f":"IF(tbl_twdbdata[[#This Row],[Year]]=2016,0,tbl_twdbdata[[#This Row],[effsave]]-0.6*SUMIFS(tbl_twdbdata[effsave],tbl_twdbdata[Year],2020,tbl_twdbdata[utility],tbl_twdbdata[[#This Row],[utility]]))","v":353441556.39999998},21004,328,2737,0,1250196349,408867298,1161358610,0,50167808,162509387,{"$f":"tbl_twdbdata[[#This Row],[utility]]&tbl_twdbdata[[#This Row],[Year]]","v":"GREENVILLE2060"}]
[null,64,"GREENVILLE","D",2070,25917,77705,541436784,{"$f":"IF(tbl_twdbdata[[#This Row],[Year]]=2016,0,tbl_twdbdata[[#This Row],[effsave]]-0.6*SUMIFS(tbl_twdbdata[effsave],tbl_twdbdata[Year],2020,tbl_twdbdata[utility],tbl_twdbdata[[#This Row],[utility]]))","v":476477216.39999998},26981,377,3144,0,1605966297,525219180,1491847891,0,64444124,208754888,{"$f":"tbl_twdbdata[[#This Row],[utility]]&tbl_twdbdata[[#This Row],[Year]]","v":"GREENVILLE2070"}]
[null,863,"GROESBECK","G",2016,3150,4328,0,{"$f":"IF(tbl_twdbdata[[#This Row],[Year]]=2016,0,tbl_twdbdata[[#This Row],[effsave]]-0.6*SUMIFS(tbl_twdbdata[effsave],tbl_twdbdata[Year],2020,tbl_twdbdata[utility],tbl_twdbdata[[#This Row],[utility]]))","v":0},1925,128,163,0,72840764,4290354,35184822,0,1726463,24074597,{"$f":"tbl_twdbdata[[#This Row],[utility]]&tbl_twdbdata[[#This Row],[Year]]","v":"GROESBECK2016"}]
[null,863,"GROESBECK","G",2020,3150,4377,13899164,{"$f":"IF(tbl_twdbdata[[#This Row],[Year]]=2016,0,tbl_twdbdata[[#This Row],[effsave]]-0.6*SUMIFS(tbl_twdbdata[effsave],tbl_twdbdata[Year],2020,tbl_twdbdata[utility],tbl_twdbdata[[#This Row],[utility]]))","v":5559665.6000000006},2395,159,202,0,90626499,5337942,43776000,0,2148018,29952959,{"$f":"tbl_twdbdata[[#This Row],[utility]]&tbl_twdbdata[[#This Row],[Year]]","v":"GROESBECK2020"}]
[null,863,"GROESBECK","G",2030,3150,4419,19855230,{"$f":"IF(tbl_twdbdata[[#This Row],[Year]]=2016,0,tbl_twdbdata[[#This Row],[effsave]]-0.6*SUMIFS(tbl_twdbdata[effsave],tbl_twdbdata[Year],2020,tbl_twdbdata[utility],tbl_twdbdata[[#This Row],[utility]]))","v":11515731.600000001},2418,161,204,0,91496116,5389163,44196058,0,2168630,30240376,{"$f":"tbl_twdbdata[[#This Row],[utility]]&tbl_twdbdata[[#This Row],[Year]]","v":"GROESBECK2030"}]
[null,863,"GROESBECK","G",2040,3150,4453,24705244,{"$f":"IF(tbl_twdbdata[[#This Row],[Year]]=2016,0,tbl_twdbdata[[#This Row],[effsave]]-0.6*SUMIFS(tbl_twdbdata[effsave],tbl_twdbdata[Year],2020,tbl_twdbdata[utility],tbl_twdbdata[[#This Row],[utility]]))","v":16365745.600000001},2437,163,206,0,92200092,5430627,44536105,0,2185316,30473047,{"$f":"tbl_twdbdata[[#This Row],[utility]]&tbl_twdbdata[[#This Row],[Year]]","v":"GROESBECK2040"}]
[null,863,"GROESBECK","G",2050,3150,4490,27516292,{"$f":"IF(tbl_twdbdata[[#This Row],[Year]]=2016,0,tbl_twdbdata[[#This Row],[effsave]]-0.6*SUMIFS(tbl_twdbdata[effsave],tbl_twdbdata[Year],2020,tbl_twdbdata[utility],tbl_twdbdata[[#This Row],[utility]]))","v":19176793.600000001},2457,165,208,0,92966183,5475750,44906156,0,2203474,30726248,{"$f":"tbl_twdbdata[[#This Row],[utility]]&tbl_twdbdata[[#This Row],[Year]]","v":"GROESBECK2050"}]
[null,863,"GROESBECK","G",2060,3150,4520,28228078,{"$f":"IF(tbl_twdbdata[[#This Row],[Year]]=2016,0,tbl_twdbdata[[#This Row],[effsave]]-0.6*SUMIFS(tbl_twdbdata[effsave],tbl_twdbdata[Year],2020,tbl_twdbdata[utility],tbl_twdbdata[[#This Row],[utility]]))","v":19888579.600000001},2473,167,210,0,93587338,5512336,45206197,0,2218197,30931546,{"$f":"tbl_twdbdata[[#This Row],[utility]]&tbl_twdbdata[[#This Row],[Year]]","v":"GROESBECK2060"}]
[null,863,"GROESBECK","G",2070,3150,4502,28132098,{"$f":"IF(tbl_twdbdata[[#This Row],[Year]]=2016,0,tbl_twdbdata[[#This Row],[effsave]]-0.6*SUMIFS(tbl_twdbdata[effsave],tbl_twdbdata[Year],2020,tbl_twdbdata[utility],tbl_twdbdata[[#This Row],[utility]]))","v":19792599.600000001},2463,169,212,0,93214645,5490384,45026172,0,2209363,30808367,{"$f":"tbl_twdbdata[[#This Row],[utility]]&tbl_twdbdata[[#This Row],[Year]]","v":"GROESBECK2070"}]
[null,865,"GROVES","I",2016,17250,17250,0,{"$f":"IF(tbl_twdbdata[[#This Row],[Year]]=2016,0,tbl_twdbdata[[#This Row],[effsave]]-0.6*SUMIFS(tbl_twdbdata[effsave],tbl_twdbdata[Year],2020,tbl_twdbdata[utility],tbl_twdbdata[[#This Row],[utility]]))","v":0},6853,0,389,0,343765100,0,103688300,0,177713835,106154988,{"$f":"tbl_twdbdata[[#This Row],[utility]]&tbl_twdbdata[[#This Row],[Year]]","v":"GROVES2016"}]
[null,865,"GROVES","I",2020,17250,16007,54277336,{"$f":"IF(tbl_twdbdata[[#This Row],[Year]]=2016,0,tbl_twdbdata[[#This Row],[effsave]]-0.6*SUMIFS(tbl_twdbdata[effsave],tbl_twdbdata[Year],2020,tbl_twdbdata[utility],tbl_twdbdata[[#This Row],[utility]]))","v":21710934.400000002},6250,0,355,0,313541194,0,94572001,0,162089194,96821817,{"$f":"tbl_twdbdata[[#This Row],[utility]]&tbl_twdbdata[[#This Row],[Year]]","v":"GROVES2020"}]
[null,865,"GROVES","I",2030,17250,16007,79400322,{"$f":"IF(tbl_twdbdata[[#This Row],[Year]]=2016,0,tbl_twdbdata[[#This Row],[effsave]]-0.6*SUMIFS(tbl_twdbdata[effsave],tbl_twdbdata[Year],2020,tbl_twdbdata[utility],tbl_twdbdata[[#This Row],[utility]]))","v":46833920.400000006},6250,0,355,0,313541194,0,94572001,0,162089194,96821817,{"$f":"tbl_twdbdata[[#This Row],[utility]]&tbl_twdbdata[[#This Row],[Year]]","v":"GROVES2030"}]
[null,865,"GROVES","I",2040,17250,16007,100667223,{"$f":"IF(tbl_twdbdata[[#This Row],[Year]]=2016,0,tbl_twdbdata[[#This Row],[effsave]]-0.6*SUMIFS(tbl_twdbdata[effsave],tbl_twdbdata[Year],2020,tbl_twdbdata[utility],tbl_twdbdata[[#This Row],[utility]]))","v":68100821.400000006},6250,0,355,0,313541194,0,94572001,0,162089194,96821817,{"$f":"tbl_twdbdata[[#This Row],[utility]]&tbl_twdbdata[[#This Row],[Year]]","v":"GROVES2040"}]
[null,865,"GROVES","I",2050,17250,16007,108846800,{"$f":"IF(tbl_twdbdata[[#This Row],[Year]]=2016,0,tbl_twdbdata[[#This Row],[effsave]]-0.6*SUMIFS(tbl_twdbdata[effsave],tbl_twdbdata[Year],2020,tbl_twdbdata[utility],tbl_twdbdata[[#This Row],[utility]]))","v":76280398.400000006},6250,0,355,0,313541194,0,94572001,0,162089194,96821817,{"$f":"tbl_twdbdata[[#This Row],[utility]]&tbl_twdbdata[[#This Row],[Year]]","v":"GROVES2050"}]
[null,865,"GROVES","I",2060,17250,16007,110716417,{"$f":"IF(tbl_twdbdata[[#This Row],[Year]]=2016,0,tbl_twdbdata[[#This Row],[effsave]]-0.6*SUMIFS(tbl_twdbdata[effsave],tbl_twdbdata[Year],2020,tbl_twdbdata[utility],tbl_twdbdata[[#This Row],[utility]]))","v":78150015.400000006},6250,0,355,0,313541194,0,94572001,0,162089194,96821817,{"$f":"tbl_twdbdata[[#This Row],[utility]]&tbl_twdbdata[[#This Row],[Year]]","v":"GROVES2060"}]
[null,865,"GROVES","I",2070,17250,16007,110716417,{"$f":"IF(tbl_twdbdata[[#This Row],[Year]]=2016,0,tbl_twdbdata[[#This Row],[effsave]]-0.6*SUMIFS(tbl_twdbdata[effsave],tbl_twdbdata[Year],2020,tbl_twdbdata[utility],tbl_twdbdata[[#This Row],[utility]]))","v":78150015.400000006},6250,0,355,0,313541194,0,94572001,0,162089194,96821817,{"$f":"tbl_twdbdata[[#This Row],[utility]]&tbl_twdbdata[[#This Row],[Year]]","v":"GROVES2070"}]
[null,866,"GROVETON","H",2016,1057,1057,0,{"$f":"IF(tbl_twdbdata[[#This Row],[Year]]=2016,0,tbl_twdbdata[[#This Row],[effsave]]-0.6*SUMIFS(tbl_twdbdata[effsave],tbl_twdbdata[Year],2020,tbl_twdbdata[utility],tbl_twdbdata[[#This Row],[utility]]))","v":0},549,3,69,0,19854250,2656900,8311800,0,568719,14105837,{"$f":"tbl_twdbdata[[#This Row],[utility]]&tbl_twdbdata[[#This Row],[Year]]","v":"GROVETON2016"}]
[null,866,"GROVETON","H",2020,998,1147,4391691,{"$f":"IF(tbl_twdbdata[[#This Row],[Year]]=2016,0,tbl_twdbdata[[#This Row],[effsave]]-0.6*SUMIFS(tbl_twdbdata[effsave],tbl_twdbdata[Year],2020,tbl_twdbdata[utility],tbl_twdbdata[[#This Row],[utility]]))","v":1756676.4},631,3,80,0,22818462,3053571,9552740,0,653628,16211819,{"$f":"tbl_twdbdata[[#This Row],[utility]]&tbl_twdbdata[[#This Row],[Year]]","v":"GROVETON2020"}]
[null,866,"GROVETON","H",2030,998,1241,6708412,{"$f":"IF(tbl_twdbdata[[#This Row],[Year]]=2016,0,tbl_twdbdata[[#This Row],[effsave]]-0.6*SUMIFS(tbl_twdbdata[effsave],tbl_twdbdata[Year],2020,tbl_twdbdata[utility],tbl_twdbdata[[#This Row],[utility]]))","v":4073397.4},683,3,86,0,24688502,3303820,10335614,0,707195,17540425,{"$f":"tbl_twdbdata[[#This Row],[utility]]&tbl_twdbdata[[#This Row],[Year]]","v":"GROVETON2030"}]
[null,866,"GROVETON","H",2040,998,1250,8121250,{"$f":"IF(tbl_twdbdata[[#This Row],[Year]]=2016,0,tbl_twdbdata[[#This Row],[effsave]]-0.6*SUMIFS(tbl_twdbdata[effsave],tbl_twdbdata[Year],2020,tbl_twdbdata[utility],tbl_twdbdata[[#This Row],[utility]]))","v":5486235.4000000004},688,3,94,0,24867548,3327780,10410571,0,712324,17667632,{"$f":"tbl_twdbdata[[#This Row],[utility]]&tbl_twdbdata[[#This Row],[Year]]","v":"GROVETON2040"}]
[null,866,"GROVETON","H",2050,998,1215,8430460,{"$f":"IF(tbl_twdbdata[[#This Row],[Year]]=2016,0,tbl_twdbdata[[#This Row],[effsave]]-0.6*SUMIFS(tbl_twdbdata[effsave],tbl_twdbdata[Year],2020,tbl_twdbdata[utility],tbl_twdbdata[[#This Row],[utility]]))","v":5795445.4000000004},669,3,102,0,24171257,3234602,10119075,0,692379,17172938,{"$f":"tbl_twdbdata[[#This Row],[utility]]&tbl_twdbdata[[#This Row],[Year]]","v":"GROVETON2050"}]
[null,866,"GROVETON","H",2060,998,1258,8875756,{"$f":"IF(tbl_twdbdata[[#This Row],[Year]]=2016,0,tbl_twdbdata[[#This Row],[effsave]]-0.6*SUMIFS(tbl_twdbdata[effsave],tbl_twdbdata[Year],2020,tbl_twdbdata[utility],tbl_twdbdata[[#This Row],[utility]]))","v":6240741.4000000004},693,3,110,0,25026701,3349078,10477199,0,716883,17780705,{"$f":"tbl_twdbdata[[#This Row],[utility]]&tbl_twdbdata[[#This Row],[Year]]","v":"GROVETON2060"}]
[null,866,"GROVETON","H",2070,998,1317,9325677,{"$f":"IF(tbl_twdbdata[[#This Row],[Year]]=2016,0,tbl_twdbdata[[#This Row],[effsave]]-0.6*SUMIFS(tbl_twdbdata[effsave],tbl_twdbdata[Year],2020,tbl_twdbdata[utility],tbl_twdbdata[[#This Row],[utility]]))","v":6690662.4000000004},726,3,119,0,26200449,3506149,10968577,0,750505,18614617,{"$f":"tbl_twdbdata[[#This Row],[utility]]&tbl_twdbdata[[#This Row],[Year]]","v":"GROVETON2070"}]
[null,878,"HALTOM CITY","C",2016,42730,42730,0,{"$f":"IF(tbl_twdbdata[[#This Row],[Year]]=2016,0,tbl_twdbdata[[#This Row],[effsave]]-0.6*SUMIFS(tbl_twdbdata[effsave],tbl_twdbdata[Year],2020,tbl_twdbdata[utility],tbl_twdbdata[[#This Row],[utility]]))","v":0},12112,485,1342,0,715856900,329257800,359610500,0,43552240,95959946,{"$f":"tbl_twdbdata[[#This Row],[utility]]&tbl_twdbdata[[#This Row],[Year]]","v":"HALTOM CITY2016"}]
[null,878,"HALTOM CITY","C",2020,42730,43611,139600992,{"$f":"IF(tbl_twdbdata[[#This Row],[Year]]=2016,0,tbl_twdbdata[[#This Row],[effsave]]-0.6*SUMIFS(tbl_twdbdata[effsave],tbl_twdbdata[Year],2020,tbl_twdbdata[utility],tbl_twdbdata[[#This Row],[utility]]))","v":55840396.799999997},12183,488,1350,0,720050632,331186704,361717220,0,43807384,96522112,{"$f":"tbl_twdbdata[[#This Row],[utility]]&tbl_twdbdata[[#This Row],[Year]]","v":"HALTOM CITY2020"}]
[null,878,"HALTOM CITY","C",2030,42730,44602,200891868,{"$f":"IF(tbl_twdbdata[[#This Row],[Year]]=2016,0,tbl_twdbdata[[#This Row],[effsave]]-0.6*SUMIFS(tbl_twdbdata[effsave],tbl_twdbdata[Year],2020,tbl_twdbdata[utility],tbl_twdbdata[[#This Row],[utility]]))","v":117131272.8},12460,499,1381,0,736412792,338712466,369936747,0,44802847,98715444,{"$f":"tbl_twdbdata[[#This Row],[utility]]&tbl_twdbdata[[#This Row],[Year]]","v":"HALTOM CITY2030"}]
[null,878,"HALTOM CITY","C",2040,42730,46585,258283545,{"$f":"IF(tbl_twdbdata[[#This Row],[Year]]=2016,0,tbl_twdbdata[[#This Row],[effsave]]-0.6*SUMIFS(tbl_twdbdata[effsave],tbl_twdbdata[Year],2020,tbl_twdbdata[utility],tbl_twdbdata[[#This Row],[utility]]))","v":174522949.80000001},13014,510,1412,0,769153623,353771585,386384094,0,46794777,103104322,{"$f":"tbl_twdbdata[[#This Row],[utility]]&tbl_twdbdata[[#This Row],[Year]]","v":"HALTOM CITY2040"}]
[null,878,"HALTOM CITY","C",2050,42730,50550,309234570,{"$f":"IF(tbl_twdbdata[[#This Row],[Year]]=2016,0,tbl_twdbdata[[#This Row],[effsave]]-0.6*SUMIFS(tbl_twdbdata[effsave],tbl_twdbdata[Year],2020,tbl_twdbdata[utility],tbl_twdbdata[[#This Row],[utility]]))","v":225473974.80000001},14122,522,1444,0,834618775,383882229,419270494,0,50777632,111879864,{"$f":"tbl_twdbdata[[#This Row],[utility]]&tbl_twdbdata[[#This Row],[Year]]","v":"HALTOM CITY2050"}]
[null,878,"HALTOM CITY","C",2060,42730,54514,340448107,{"$f":"IF(tbl_twdbdata[[#This Row],[Year]]=2016,0,tbl_twdbdata[[#This Row],[effsave]]-0.6*SUMIFS(tbl_twdbdata[effsave],tbl_twdbdata[Year],2020,tbl_twdbdata[utility],tbl_twdbdata[[#This Row],[utility]]))","v":256687511.80000001},15229,534,1477,0,900067416,413985279,452148599,0,54759482,120653193,{"$f":"tbl_twdbdata[[#This Row],[utility]]&tbl_twdbdata[[#This Row],[Year]]","v":"HALTOM CITY2060"}]
[null,878,"HALTOM CITY","C",2070,42730,59470,373569726,{"$f":"IF(tbl_twdbdata[[#This Row],[Year]]=2016,0,tbl_twdbdata[[#This Row],[effsave]]-0.6*SUMIFS(tbl_twdbdata[effsave],tbl_twdbdata[Year],2020,tbl_twdbdata[utility],tbl_twdbdata[[#This Row],[utility]]))","v":289809130.80000001},16614,546,1511,0,981894729,451621685,493254526,0,59737799,131622068,{"$f":"tbl_twdbdata[[#This Row],[utility]]&tbl_twdbdata[[#This Row],[Year]]","v":"HALTOM CITY2070"}]
[null,884,"HARKER HEIGHTS","G",2016,28170,29629,0,{"$f":"IF(tbl_twdbdata[[#This Row],[Year]]=2016,0,tbl_twdbdata[[#This Row],[effsave]]-0.6*SUMIFS(tbl_twdbdata[effsave],tbl_twdbdata[Year],2020,tbl_twdbdata[utility],tbl_twdbdata[[#This Row],[utility]]))","v":0},9821,99,557,0,1073373100,63110700,196879200,0,15103526,161601474,{"$f":"tbl_twdbdata[[#This Row],[utility]]&tbl_twdbdata[[#This Row],[Year]]","v":"HARKER HEIGHTS2016"}]
[null,884,"HARKER HEIGHTS","G",2020,28170,31372,96759091,{"$f":"IF(tbl_twdbdata[[#This Row],[Year]]=2016,0,tbl_twdbdata[[#This Row],[effsave]]-0.6*SUMIFS(tbl_twdbdata[effsave],tbl_twdbdata[Year],2020,tbl_twdbdata[utility],tbl_twdbdata[[#This Row],[utility]]))","v":38703636.399999999},10578,107,600,0,1156064985,67972703,212046630,0,16267091,174051134,{"$f":"tbl_twdbdata[[#This Row],[utility]]&tbl_twdbdata[[#This Row],[Year]]","v":"HARKER HEIGHTS2020"}]
[null,884,"HARKER HEIGHTS","G",2030,28170,36879,154934211,{"$f":"IF(tbl_twdbdata[[#This Row],[Year]]=2016,0,tbl_twdbdata[[#This Row],[effsave]]-0.6*SUMIFS(tbl_twdbdata[effsave],tbl_twdbdata[Year],2020,tbl_twdbdata[utility],tbl_twdbdata[[#This Row],[utility]]))","v":96878756.400000006},12435,126,705,0,1358999126,79904543,249269019,0,19122595,204603843,{"$f":"tbl_twdbdata[[#This Row],[utility]]&tbl_twdbdata[[#This Row],[Year]]","v":"HARKER HEIGHTS2030"}]
[null,884,"HARKER HEIGHTS","G",2040,28170,42566,207258111,{"$f":"IF(tbl_twdbdata[[#This Row],[Year]]=2016,0,tbl_twdbdata[[#This Row],[effsave]]-0.6*SUMIFS(tbl_twdbdata[effsave],tbl_twdbdata[Year],2020,tbl_twdbdata[utility],tbl_twdbdata[[#This Row],[utility]]))","v":149202656.40000001},14353,148,828,0,1568566306,92226383,287708047,0,22071433,236155188,{"$f":"tbl_twdbdata[[#This Row],[utility]]&tbl_twdbdata[[#This Row],[Year]]","v":"HARKER HEIGHTS2040"}]
[null,884,"HARKER HEIGHTS","G",2050,28170,48218,250793873,{"$f":"IF(tbl_twdbdata[[#This Row],[Year]]=2016,0,tbl_twdbdata[[#This Row],[effsave]]-0.6*SUMIFS(tbl_twdbdata[effsave],tbl_twdbdata[Year],2020,tbl_twdbdata[utility],tbl_twdbdata[[#This Row],[utility]]))","v":192738418.40000001},16259,174,973,0,1776843728,104472390,325910506,0,25002123,267512354,{"$f":"tbl_twdbdata[[#This Row],[utility]]&tbl_twdbdata[[#This Row],[Year]]","v":"HARKER HEIGHTS2050"}]
[null,884,"HARKER HEIGHTS","G",2060,28170,53763,284736912,{"$f":"IF(tbl_twdbdata[[#This Row],[Year]]=2016,0,tbl_twdbdata[[#This Row],[effsave]]-0.6*SUMIFS(tbl_twdbdata[effsave],tbl_twdbdata[Year],2020,tbl_twdbdata[utility],tbl_twdbdata[[#This Row],[utility]]))","v":226681457.40000001},18129,205,1144,0,1981178177,116486563,363389741,0,27877331,298275886,{"$f":"tbl_twdbdata[[#This Row],[utility]]&tbl_twdbdata[[#This Row],[Year]]","v":"HARKER HEIGHTS2060"}]
[null,884,"HARKER HEIGHTS","G",2070,28170,59222,315377878,{"$f":"IF(tbl_twdbdata[[#This Row],[Year]]=2016,0,tbl_twdbdata[[#This Row],[effsave]]-0.6*SUMIFS(tbl_twdbdata[effsave],tbl_twdbdata[Year],2020,tbl_twdbdata[utility],tbl_twdbdata[[#This Row],[utility]]))","v":257322423.40000001},19970,241,1345,0,2182343508,128314403,400287693,0,30707946,328562292,{"$f":"tbl_twdbdata[[#This Row],[utility]]&tbl_twdbdata[[#This Row],[Year]]","v":"HARKER HEIGHTS2070"}]
[null,68,"HARLINGEN","M",2016,71845,71845,0,{"$f":"IF(tbl_twdbdata[[#This Row],[Year]]=2016,0,tbl_twdbdata[[#This Row],[effsave]]-0.6*SUMIFS(tbl_twdbdata[effsave],tbl_twdbdata[Year],2020,tbl_twdbdata[utility],tbl_twdbdata[[#This Row],[utility]]))","v":0},26217,852,4023,0,1901412700,470915800,1131954700,0,null,null,{"$f":"tbl_twdbdata[[#This Row],[utility]]&tbl_twdbdata[[#This Row],[Year]]","v":"HARLINGEN2016"}]
[null,68,"HARLINGEN","M",2020,71845,89171,320592038,{"$f":"IF(tbl_twdbdata[[#This Row],[Year]]=2016,0,tbl_twdbdata[[#This Row],[effsave]]-0.6*SUMIFS(tbl_twdbdata[effsave],tbl_twdbdata[Year],2020,tbl_twdbdata[utility],tbl_twdbdata[[#This Row],[utility]]))","v":128236815.20000002},30839,1002,4732,0,2236641847,553940754,1331524319,0,null,null,{"$f":"tbl_twdbdata[[#This Row],[utility]]&tbl_twdbdata[[#This Row],[Year]]","v":"HARLINGEN2020"}]
[null,68,"HARLINGEN","M",2030,71845,104179,525510130,{"$f":"IF(tbl_twdbdata[[#This Row],[Year]]=2016,0,tbl_twdbdata[[#This Row],[effsave]]-0.6*SUMIFS(tbl_twdbdata[effsave],tbl_twdbdata[Year],2020,tbl_twdbdata[utility],tbl_twdbdata[[#This Row],[utility]]))","v":333154907.20000005},36029,1171,5528,0,2613081730,647172218,1555627637,0,null,null,{"$f":"tbl_twdbdata[[#This Row],[utility]]&tbl_twdbdata[[#This Row],[Year]]","v":"HARLINGEN2030"}]
[null,68,"HARLINGEN","M",2040,71845,118211,702864874,{"$f":"IF(tbl_twdbdata[[#This Row],[Year]]=2016,0,tbl_twdbdata[[#This Row],[effsave]]-0.6*SUMIFS(tbl_twdbdata[effsave],tbl_twdbdata[Year],2020,tbl_twdbdata[utility],tbl_twdbdata[[#This Row],[utility]]))","v":510509651.20000005},40882,1368,6459,0,2965040981,734340655,1765157072,0,null,null,{"$f":"tbl_twdbdata[[#This Row],[utility]]&tbl_twdbdata[[#This Row],[Year]]","v":"HARLINGEN2040"}]
[null,68,"HARLINGEN","M",2050,71845,131729,839976555,{"$f":"IF(tbl_twdbdata[[#This Row],[Year]]=2016,0,tbl_twdbdata[[#This Row],[effsave]]-0.6*SUMIFS(tbl_twdbdata[effsave],tbl_twdbdata[Year],2020,tbl_twdbdata[utility],tbl_twdbdata[[#This Row],[utility]]))","v":647621332.20000005},45557,1598,7547,0,3304107768,818316063,1967011327,0,null,null,{"$f":"tbl_twdbdata[[#This Row],[utility]]&tbl_twdbdata[[#This Row],[Year]]","v":"HARLINGEN2050"}]
[null,68,"HARLINGEN","M",2060,71845,145037,939129079,{"$f":"IF(tbl_twdbdata[[#This Row],[Year]]=2016,0,tbl_twdbdata[[#This Row],[effsave]]-0.6*SUMIFS(tbl_twdbdata[effsave],tbl_twdbdata[Year],2020,tbl_twdbdata[utility],tbl_twdbdata[[#This Row],[utility]]))","v":746773856.20000005},50159,1867,8817,0,3637907206,900986926,2165729807,0,null,null,{"$f":"tbl_twdbdata[[#This Row],[utility]]&tbl_twdbdata[[#This Row],[Year]]","v":"HARLINGEN2060"}]
[null,68,"HARLINGEN","M",2070,71845,161462,1050786623,{"$f":"IF(tbl_twdbdata[[#This Row],[Year]]=2016,0,tbl_twdbdata[[#This Row],[effsave]]-0.6*SUMIFS(tbl_twdbdata[effsave],tbl_twdbdata[Year],2020,tbl_twdbdata[utility],tbl_twdbdata[[#This Row],[utility]]))","v":858431400.20000005},55839,2181,10301,0,4049889154,1003020960,2410992134,0,null,null,{"$f":"tbl_twdbdata[[#This Row],[utility]]&tbl_twdbdata[[#This Row],[Year]]","v":"HARLINGEN2070"}]
[null,3065,"HARRIS COUNTY MUD 148","H",2016,3950,3950,0,{"$f":"IF(tbl_twdbdata[[#This Row],[Year]]=2016,0,tbl_twdbdata[[#This Row],[effsave]]-0.6*SUMIFS(tbl_twdbdata[effsave],tbl_twdbdata[Year],2020,tbl_twdbdata[utility],tbl_twdbdata[[#This Row],[utility]]))","v":0},1496,0,4,9,100168000,0,4491000,1437000,null,null,{"$f":"tbl_twdbdata[[#This Row],[utility]]&tbl_twdbdata[[#This Row],[Year]]","v":"HARRIS COUNTY MUD 1482016"}]
[null,3065,"HARRIS COUNTY MUD 148","H",2020,3386,4548,10922932,{"$f":"IF(tbl_twdbdata[[#This Row],[Year]]=2016,0,tbl_twdbdata[[#This Row],[effsave]]-0.6*SUMIFS(tbl_twdbdata[effsave],tbl_twdbdata[Year],2020,tbl_twdbdata[utility],tbl_twdbdata[[#This Row],[utility]]))","v":4369172.8},2009,0,5,12,134543433,0,6032211,1930146,null,null,{"$f":"tbl_twdbdata[[#This Row],[utility]]&tbl_twdbdata[[#This Row],[Year]]","v":"HARRIS COUNTY MUD 1482020"}]
[null,3065,"HARRIS COUNTY MUD 148","H",2030,3386,4792,14692272,{"$f":"IF(tbl_twdbdata[[#This Row],[Year]]=2016,0,tbl_twdbdata[[#This Row],[effsave]]-0.6*SUMIFS(tbl_twdbdata[effsave],tbl_twdbdata[Year],2020,tbl_twdbdata[utility],tbl_twdbdata[[#This Row],[utility]]))","v":8138512.7999999998},2117,0,5,13,141761682,0,6355839,2033698,null,null,{"$f":"tbl_twdbdata[[#This Row],[utility]]&tbl_twdbdata[[#This Row],[Year]]","v":"HARRIS COUNTY MUD 1482030"}]
[null,3065,"HARRIS COUNTY MUD 148","H",2040,3386,4834,16497234,{"$f":"IF(tbl_twdbdata[[#This Row],[Year]]=2016,0,tbl_twdbdata[[#This Row],[effsave]]-0.6*SUMIFS(tbl_twdbdata[effsave],tbl_twdbdata[Year],2020,tbl_twdbdata[utility],tbl_twdbdata[[#This Row],[utility]]))","v":9943474.8000000007},2136,0,5,14,143004168,0,6411546,2051523,null,null,{"$f":"tbl_twdbdata[[#This Row],[utility]]&tbl_twdbdata[[#This Row],[Year]]","v":"HARRIS COUNTY MUD 1482040"}]
[null,3065,"HARRIS COUNTY MUD 148","H",2050,3386,4878,17733481,{"$f":"IF(tbl_twdbdata[[#This Row],[Year]]=2016,0,tbl_twdbdata[[#This Row],[effsave]]-0.6*SUMIFS(tbl_twdbdata[effsave],tbl_twdbdata[Year],2020,tbl_twdbdata[utility],tbl_twdbdata[[#This Row],[utility]]))","v":11179721.800000001},2155,0,5,15,144305820,0,6469905,2070196,null,null,{"$f":"tbl_twdbdata[[#This Row],[utility]]&tbl_twdbdata[[#This Row],[Year]]","v":"HARRIS COUNTY MUD 1482050"}]
[null,3065,"HARRIS COUNTY MUD 148","H",2060,3386,4923,18364267,{"$f":"IF(tbl_twdbdata[[#This Row],[Year]]=2016,0,tbl_twdbdata[[#This Row],[effsave]]-0.6*SUMIFS(tbl_twdbdata[effsave],tbl_twdbdata[Year],2020,tbl_twdbdata[utility],tbl_twdbdata[[#This Row],[utility]]))","v":11810507.800000001},2175,0,5,16,145637055,0,6529590,2089294,null,null,{"$f":"tbl_twdbdata[[#This Row],[utility]]&tbl_twdbdata[[#This Row],[Year]]","v":"HARRIS COUNTY MUD 1482060"}]
[null,3065,"HARRIS COUNTY MUD 148","H",2070,3386,4970,18612153,{"$f":"IF(tbl_twdbdata[[#This Row],[Year]]=2016,0,tbl_twdbdata[[#This Row],[effsave]]-0.6*SUMIFS(tbl_twdbdata[effsave],tbl_twdbdata[Year],2020,tbl_twdbdata[utility],tbl_twdbdata[[#This Row],[utility]]))","v":12058393.800000001},2196,0,5,17,147027455,0,6591928,2109241,null,null,{"$f":"tbl_twdbdata[[#This Row],[utility]]&tbl_twdbdata[[#This Row],[Year]]","v":"HARRIS COUNTY MUD 1482070"}]
[null,903,"HARRIS COUNTY MUD 46","H",2016,3491,3491,0,{"$f":"IF(tbl_twdbdata[[#This Row],[Year]]=2016,0,tbl_twdbdata[[#This Row],[effsave]]-0.6*SUMIFS(tbl_twdbdata[effsave],tbl_twdbdata[Year],2020,tbl_twdbdata[utility],tbl_twdbdata[[#This Row],[utility]]))","v":0},1161,12,30,0,94546100,31279900,19278500,0,1942342,8340518,{"$f":"tbl_twdbdata[[#This Row],[utility]]&tbl_twdbdata[[#This Row],[Year]]","v":"HARRIS COUNTY MUD 462016"}]
[null,903,"HARRIS COUNTY MUD 46","H",2020,3491,3743,11803925,{"$f":"IF(tbl_twdbdata[[#This Row],[Year]]=2016,0,tbl_twdbdata[[#This Row],[effsave]]-0.6*SUMIFS(tbl_twdbdata[effsave],tbl_twdbdata[Year],2020,tbl_twdbdata[utility],tbl_twdbdata[[#This Row],[utility]]))","v":4721570},1245,13,32,0,101370969,33537859,20670130,0,2082551,8942583,{"$f":"tbl_twdbdata[[#This Row],[utility]]&tbl_twdbdata[[#This Row],[Year]]","v":"HARRIS COUNTY MUD 462020"}]
[null,903,"HARRIS COUNTY MUD 46","H",2030,3491,3751,16087101,{"$f":"IF(tbl_twdbdata[[#This Row],[Year]]=2016,0,tbl_twdbdata[[#This Row],[effsave]]-0.6*SUMIFS(tbl_twdbdata[effsave],tbl_twdbdata[Year],2020,tbl_twdbdata[utility],tbl_twdbdata[[#This Row],[utility]]))","v":9004746},1248,13,32,0,101587632,33609540,20714309,0,2087002,8961696,{"$f":"tbl_twdbdata[[#This Row],[utility]]&tbl_twdbdata[[#This Row],[Year]]","v":"HARRIS COUNTY MUD 462030"}]
[null,903,"HARRIS COUNTY MUD 46","H",2040,3491,3753,19438101,{"$f":"IF(tbl_twdbdata[[#This Row],[Year]]=2016,0,tbl_twdbdata[[#This Row],[effsave]]-0.6*SUMIFS(tbl_twdbdata[effsave],tbl_twdbdata[Year],2020,tbl_twdbdata[utility],tbl_twdbdata[[#This Row],[utility]]))","v":12355746},1249,13,32,0,101641798,33627460,20725354,0,2088115,8966474,{"$f":"tbl_twdbdata[[#This Row],[utility]]&tbl_twdbdata[[#This Row],[Year]]","v":"HARRIS COUNTY MUD 462040"}]
[null,903,"HARRIS COUNTY MUD 46","H",2050,3491,3755,21326147,{"$f":"IF(tbl_twdbdata[[#This Row],[Year]]=2016,0,tbl_twdbdata[[#This Row],[effsave]]-0.6*SUMIFS(tbl_twdbdata[effsave],tbl_twdbdata[Year],2020,tbl_twdbdata[utility],tbl_twdbdata[[#This Row],[utility]]))","v":14243792},1250,13,32,0,101695964,33645380,20736399,0,2089228,8971252,{"$f":"tbl_twdbdata[[#This Row],[utility]]&tbl_twdbdata[[#This Row],[Year]]","v":"HARRIS COUNTY MUD 462050"}]
[null,903,"HARRIS COUNTY MUD 46","H",2060,3491,3756,21756818,{"$f":"IF(tbl_twdbdata[[#This Row],[Year]]=2016,0,tbl_twdbdata[[#This Row],[effsave]]-0.6*SUMIFS(tbl_twdbdata[effsave],tbl_twdbdata[Year],2020,tbl_twdbdata[utility],tbl_twdbdata[[#This Row],[utility]]))","v":14674463},1250,13,32,0,101723047,33654340,20741921,0,2089784,8973641,{"$f":"tbl_twdbdata[[#This Row],[utility]]&tbl_twdbdata[[#This Row],[Year]]","v":"HARRIS COUNTY MUD 462060"}]
[null,903,"HARRIS COUNTY MUD 46","H",2070,3491,3757,21776323,{"$f":"IF(tbl_twdbdata[[#This Row],[Year]]=2016,0,tbl_twdbdata[[#This Row],[effsave]]-0.6*SUMIFS(tbl_twdbdata[effsave],tbl_twdbdata[Year],2020,tbl_twdbdata[utility],tbl_twdbdata[[#This Row],[utility]]))","v":14693968},1250,13,32,0,101750130,33663300,20747443,0,2090340,8976030,{"$f":"tbl_twdbdata[[#This Row],[utility]]&tbl_twdbdata[[#This Row],[Year]]","v":"HARRIS COUNTY MUD 462070"}]
[null,905,"HARRIS COUNTY MUD 50","H",2016,3960,3960,0,{"$f":"IF(tbl_twdbdata[[#This Row],[Year]]=2016,0,tbl_twdbdata[[#This Row],[effsave]]-0.6*SUMIFS(tbl_twdbdata[effsave],tbl_twdbdata[Year],2020,tbl_twdbdata[utility],tbl_twdbdata[[#This Row],[utility]]))","v":0},1296,24,49,0,76727670,1387500,6693930,0,9500000,18159242,{"$f":"tbl_twdbdata[[#This Row],[utility]]&tbl_twdbdata[[#This Row],[Year]]","v":"HARRIS COUNTY MUD 502016"}]
[null,905,"HARRIS COUNTY MUD 50","H",2020,3542,3165,11852609,{"$f":"IF(tbl_twdbdata[[#This Row],[Year]]=2016,0,tbl_twdbdata[[#This Row],[effsave]]-0.6*SUMIFS(tbl_twdbdata[effsave],tbl_twdbdata[Year],2020,tbl_twdbdata[utility],tbl_twdbdata[[#This Row],[utility]]))","v":4741043.6000000006},1158,21,44,0,68561004,1239819,5981449,0,8488848,16226426,{"$f":"tbl_twdbdata[[#This Row],[utility]]&tbl_twdbdata[[#This Row],[Year]]","v":"HARRIS COUNTY MUD 502020"}]
[null,905,"HARRIS COUNTY MUD 50","H",2030,3542,3197,18110366,{"$f":"IF(tbl_twdbdata[[#This Row],[Year]]=2016,0,tbl_twdbdata[[#This Row],[effsave]]-0.6*SUMIFS(tbl_twdbdata[effsave],tbl_twdbdata[Year],2020,tbl_twdbdata[utility],tbl_twdbdata[[#This Row],[utility]]))","v":10998800.600000001},1170,21,44,0,69254196,1252354,6041925,0,8574675,16390485,{"$f":"tbl_twdbdata[[#This Row],[utility]]&tbl_twdbdata[[#This Row],[Year]]","v":"HARRIS COUNTY MUD 502030"}]
[null,905,"HARRIS COUNTY MUD 50","H",2040,3542,3264,20265034,{"$f":"IF(tbl_twdbdata[[#This Row],[Year]]=2016,0,tbl_twdbdata[[#This Row],[effsave]]-0.6*SUMIFS(tbl_twdbdata[effsave],tbl_twdbdata[Year],2020,tbl_twdbdata[utility],tbl_twdbdata[[#This Row],[utility]]))","v":13153468.600000001},1195,21,44,0,70705566,1278600,6168546,0,8754376,16733983,{"$f":"tbl_twdbdata[[#This Row],[utility]]&tbl_twdbdata[[#This Row],[Year]]","v":"HARRIS COUNTY MUD 502040"}]
[null,905,"HARRIS COUNTY MUD 50","H",2050,3542,3311,20967735,{"$f":"IF(tbl_twdbdata[[#This Row],[Year]]=2016,0,tbl_twdbdata[[#This Row],[effsave]]-0.6*SUMIFS(tbl_twdbdata[effsave],tbl_twdbdata[Year],2020,tbl_twdbdata[utility],tbl_twdbdata[[#This Row],[utility]]))","v":13856169.600000001},1212,21,44,0,71723691,1297011,6257370,0,8880435,16974944,{"$f":"tbl_twdbdata[[#This Row],[utility]]&tbl_twdbdata[[#This Row],[Year]]","v":"HARRIS COUNTY MUD 502050"}]
[null,905,"HARRIS COUNTY MUD 50","H",2060,3542,3321,21418956,{"$f":"IF(tbl_twdbdata[[#This Row],[Year]]=2016,0,tbl_twdbdata[[#This Row],[effsave]]-0.6*SUMIFS(tbl_twdbdata[effsave],tbl_twdbdata[Year],2020,tbl_twdbdata[utility],tbl_twdbdata[[#This Row],[utility]]))","v":14307390.600000001},1216,21,44,0,71940313,1300928,6276268,0,8907256,17026212,{"$f":"tbl_twdbdata[[#This Row],[utility]]&tbl_twdbdata[[#This Row],[Year]]","v":"HARRIS COUNTY MUD 502060"}]
[null,905,"HARRIS COUNTY MUD 50","H",2070,3542,3333,21496350,{"$f":"IF(tbl_twdbdata[[#This Row],[Year]]=2016,0,tbl_twdbdata[[#This Row],[effsave]]-0.6*SUMIFS(tbl_twdbdata[effsave],tbl_twdbdata[Year],2020,tbl_twdbdata[utility],tbl_twdbdata[[#This Row],[utility]]))","v":14384784.600000001},1220,21,44,0,72200260,1305629,6298947,0,8939441,17087734,{"$f":"tbl_twdbdata[[#This Row],[utility]]&tbl_twdbdata[[#This Row],[Year]]","v":"HARRIS COUNTY MUD 502070"}]
[null,907,"HARRIS COUNTY MUD 55","H",2016,16095,16095,0,{"$f":"IF(tbl_twdbdata[[#This Row],[Year]]=2016,0,tbl_twdbdata[[#This Row],[effsave]]-0.6*SUMIFS(tbl_twdbdata[effsave],tbl_twdbdata[Year],2020,tbl_twdbdata[utility],tbl_twdbdata[[#This Row],[utility]]))","v":0},4265,1100,46,37,294915800,57241700,34884300,3511500,17414000,46750923,{"$f":"tbl_twdbdata[[#This Row],[utility]]&tbl_twdbdata[[#This Row],[Year]]","v":"HARRIS COUNTY MUD 552016"}]
[null,907,"HARRIS COUNTY MUD 55","H",2020,15318,13959,43460649,{"$f":"IF(tbl_twdbdata[[#This Row],[Year]]=2016,0,tbl_twdbdata[[#This Row],[effsave]]-0.6*SUMIFS(tbl_twdbdata[effsave],tbl_twdbdata[Year],2020,tbl_twdbdata[utility],tbl_twdbdata[[#This Row],[utility]]))","v":17384259.600000001},3887,1002,42,34,268751120,52163265,31789394,3199963,15869045,42603221,{"$f":"tbl_twdbdata[[#This Row],[utility]]&tbl_twdbdata[[#This Row],[Year]]","v":"HARRIS COUNTY MUD 552020"}]
[null,907,"HARRIS COUNTY MUD 55","H",2030,15318,14955,68832631,{"$f":"IF(tbl_twdbdata[[#This Row],[Year]]=2016,0,tbl_twdbdata[[#This Row],[effsave]]-0.6*SUMIFS(tbl_twdbdata[effsave],tbl_twdbdata[Year],2020,tbl_twdbdata[utility],tbl_twdbdata[[#This Row],[utility]]))","v":42756241.600000001},4164,1073,45,36,287927000,55885209,34057625,3428286,17001330,45643038,{"$f":"tbl_twdbdata[[#This Row],[utility]]&tbl_twdbdata[[#This Row],[Year]]","v":"HARRIS COUNTY MUD 552030"}]
[null,907,"HARRIS COUNTY MUD 55","H",2040,15318,15697,89665188,{"$f":"IF(tbl_twdbdata[[#This Row],[Year]]=2016,0,tbl_twdbdata[[#This Row],[effsave]]-0.6*SUMIFS(tbl_twdbdata[effsave],tbl_twdbdata[Year],2020,tbl_twdbdata[utility],tbl_twdbdata[[#This Row],[utility]]))","v":63588798.600000001},4371,1150,48,39,302212646,58657982,35747412,3598382,17844860,47907641,{"$f":"tbl_twdbdata[[#This Row],[utility]]&tbl_twdbdata[[#This Row],[Year]]","v":"HARRIS COUNTY MUD 552040"}]
[null,907,"HARRIS COUNTY MUD 55","H",2050,15318,16785,105743822,{"$f":"IF(tbl_twdbdata[[#This Row],[Year]]=2016,0,tbl_twdbdata[[#This Row],[effsave]]-0.6*SUMIFS(tbl_twdbdata[effsave],tbl_twdbdata[Year],2020,tbl_twdbdata[utility],tbl_twdbdata[[#This Row],[utility]]))","v":79667432.599999994},4674,1232,51,42,323159793,62723720,38225159,3847795,19081734,51228245,{"$f":"tbl_twdbdata[[#This Row],[utility]]&tbl_twdbdata[[#This Row],[Year]]","v":"HARRIS COUNTY MUD 552050"}]
[null,907,"HARRIS COUNTY MUD 55","H",2060,15318,18055,116183022,{"$f":"IF(tbl_twdbdata[[#This Row],[Year]]=2016,0,tbl_twdbdata[[#This Row],[effsave]]-0.6*SUMIFS(tbl_twdbdata[effsave],tbl_twdbdata[Year],2020,tbl_twdbdata[utility],tbl_twdbdata[[#This Row],[utility]]))","v":90106632.599999994},5028,1320,54,45,347610966,67469572,41117381,4138930,20525511,55104317,{"$f":"tbl_twdbdata[[#This Row],[utility]]&tbl_twdbdata[[#This Row],[Year]]","v":"HARRIS COUNTY MUD 552060"}]
[null,907,"HARRIS COUNTY MUD 55","H",2070,15318,19802,128147653,{"$f":"IF(tbl_twdbdata[[#This Row],[Year]]=2016,0,tbl_twdbdata[[#This Row],[effsave]]-0.6*SUMIFS(tbl_twdbdata[effsave],tbl_twdbdata[Year],2020,tbl_twdbdata[utility],tbl_twdbdata[[#This Row],[utility]]))","v":102071263.59999999},5515,1414,58,48,381245768,73997921,45095895,4539412,22511557,60436205,{"$f":"tbl_twdbdata[[#This Row],[utility]]&tbl_twdbdata[[#This Row],[Year]]","v":"HARRIS COUNTY MUD 552070"}]
[null,6354,"HARRIS COUNTY WCID 70","H",2016,1635,1635,0,{"$f":"IF(tbl_twdbdata[[#This Row],[Year]]=2016,0,tbl_twdbdata[[#This Row],[effsave]]-0.6*SUMIFS(tbl_twdbdata[effsave],tbl_twdbdata[Year],2020,tbl_twdbdata[utility],tbl_twdbdata[[#This Row],[utility]]))","v":0},666,0,3,0,59318000,0,7883000,0,1220500,10018500,{"$f":"tbl_twdbdata[[#This Row],[utility]]&tbl_twdbdata[[#This Row],[Year]]","v":"HARRIS COUNTY WCID 702016"}]
[null,6354,"HARRIS COUNTY WCID 70","H",2020,1413,1536,4933632,{"$f":"IF(tbl_twdbdata[[#This Row],[Year]]=2016,0,tbl_twdbdata[[#This Row],[effsave]]-0.6*SUMIFS(tbl_twdbdata[effsave],tbl_twdbdata[Year],2020,tbl_twdbdata[utility],tbl_twdbdata[[#This Row],[utility]]))","v":1973452.8000000003},724,0,3,0,64481563,0,8569206,0,1326743,10890599,{"$f":"tbl_twdbdata[[#This Row],[utility]]&tbl_twdbdata[[#This Row],[Year]]","v":"HARRIS COUNTY WCID 702020"}]
[null,6354,"HARRIS COUNTY WCID 70","H",2030,1413,1650,6943943,{"$f":"IF(tbl_twdbdata[[#This Row],[Year]]=2016,0,tbl_twdbdata[[#This Row],[effsave]]-0.6*SUMIFS(tbl_twdbdata[effsave],tbl_twdbdata[Year],2020,tbl_twdbdata[utility],tbl_twdbdata[[#This Row],[utility]]))","v":3983763.8000000003},778,0,3,0,69267304,0,9205202,0,1425212,11698886,{"$f":"tbl_twdbdata[[#This Row],[utility]]&tbl_twdbdata[[#This Row],[Year]]","v":"HARRIS COUNTY WCID 702030"}]
[null,6354,"HARRIS COUNTY WCID 70","H",2040,1413,1650,8015948,{"$f":"IF(tbl_twdbdata[[#This Row],[Year]]=2016,0,tbl_twdbdata[[#This Row],[effsave]]-0.6*SUMIFS(tbl_twdbdata[effsave],tbl_twdbdata[Year],2020,tbl_twdbdata[utility],tbl_twdbdata[[#This Row],[utility]]))","v":5055768.8000000007},778,0,3,0,69267304,0,9205202,0,1425212,11698886,{"$f":"tbl_twdbdata[[#This Row],[utility]]&tbl_twdbdata[[#This Row],[Year]]","v":"HARRIS COUNTY WCID 702040"}]
[null,6354,"HARRIS COUNTY WCID 70","H",2050,1413,1650,8576040,{"$f":"IF(tbl_twdbdata[[#This Row],[Year]]=2016,0,tbl_twdbdata[[#This Row],[effsave]]-0.6*SUMIFS(tbl_twdbdata[effsave],tbl_twdbdata[Year],2020,tbl_twdbdata[utility],tbl_twdbdata[[#This Row],[utility]]))","v":5615860.8000000007},778,0,3,0,69267304,0,9205202,0,1425212,11698886,{"$f":"tbl_twdbdata[[#This Row],[utility]]&tbl_twdbdata[[#This Row],[Year]]","v":"HARRIS COUNTY WCID 702050"}]
[null,6354,"HARRIS COUNTY WCID 70","H",2060,1413,1650,8732625,{"$f":"IF(tbl_twdbdata[[#This Row],[Year]]=2016,0,tbl_twdbdata[[#This Row],[effsave]]-0.6*SUMIFS(tbl_twdbdata[effsave],tbl_twdbdata[Year],2020,tbl_twdbdata[utility],tbl_twdbdata[[#This Row],[utility]]))","v":5772445.8000000007},778,0,3,0,69267304,0,9205202,0,1425212,11698886,{"$f":"tbl_twdbdata[[#This Row],[utility]]&tbl_twdbdata[[#This Row],[Year]]","v":"HARRIS COUNTY WCID 702060"}]
[null,6354,"HARRIS COUNTY WCID 70","H",2070,1413,1650,8762738,{"$f":"IF(tbl_twdbdata[[#This Row],[Year]]=2016,0,tbl_twdbdata[[#This Row],[effsave]]-0.6*SUMIFS(tbl_twdbdata[effsave],tbl_twdbdata[Year],2020,tbl_twdbdata[utility],tbl_twdbdata[[#This Row],[utility]]))","v":5802558.8000000007},778,0,3,0,69267304,0,9205202,0,1425212,11698886,{"$f":"tbl_twdbdata[[#This Row],[utility]]&tbl_twdbdata[[#This Row],[Year]]","v":"HARRIS COUNTY WCID 702070"}]
[null,6355,"HARRIS COUNTY WCID 89","H",2016,8931,8931,0,{"$f":"IF(tbl_twdbdata[[#This Row],[Year]]=2016,0,tbl_twdbdata[[#This Row],[effsave]]-0.6*SUMIFS(tbl_twdbdata[effsave],tbl_twdbdata[Year],2020,tbl_twdbdata[utility],tbl_twdbdata[[#This Row],[utility]]))","v":0},2737,240,21,32,172957800,17558800,4780500,15884000,5826000,39048010,{"$f":"tbl_twdbdata[[#This Row],[utility]]&tbl_twdbdata[[#This Row],[Year]]","v":"HARRIS COUNTY WCID 892016"}]
[null,6355,"HARRIS COUNTY WCID 89","H",2020,8202,6116,19644592,{"$f":"IF(tbl_twdbdata[[#This Row],[Year]]=2016,0,tbl_twdbdata[[#This Row],[effsave]]-0.6*SUMIFS(tbl_twdbdata[effsave],tbl_twdbdata[Year],2020,tbl_twdbdata[utility],tbl_twdbdata[[#This Row],[utility]]))","v":7857836.8000000007},2041,179,16,24,128969752,13093102,3564684,11844251,4344284,29116999,{"$f":"tbl_twdbdata[[#This Row],[utility]]&tbl_twdbdata[[#This Row],[Year]]","v":"HARRIS COUNTY WCID 892020"}]
[null,6355,"HARRIS COUNTY WCID 89","H",2030,8202,6239,26256520,{"$f":"IF(tbl_twdbdata[[#This Row],[Year]]=2016,0,tbl_twdbdata[[#This Row],[effsave]]-0.6*SUMIFS(tbl_twdbdata[effsave],tbl_twdbdata[Year],2020,tbl_twdbdata[utility],tbl_twdbdata[[#This Row],[utility]]))","v":14469764.800000001},2082,183,16,24,131563486,13356420,3636374,12082453,4431653,29702576,{"$f":"tbl_twdbdata[[#This Row],[utility]]&tbl_twdbdata[[#This Row],[Year]]","v":"HARRIS COUNTY WCID 892030"}]
[null,6355,"HARRIS COUNTY WCID 89","H",2040,8202,6287,30543189,{"$f":"IF(tbl_twdbdata[[#This Row],[Year]]=2016,0,tbl_twdbdata[[#This Row],[effsave]]-0.6*SUMIFS(tbl_twdbdata[effsave],tbl_twdbdata[Year],2020,tbl_twdbdata[utility],tbl_twdbdata[[#This Row],[utility]]))","v":18756433.800000001},2098,187,16,24,132575675,13459178,3664351,12175410,4465748,29931094,{"$f":"tbl_twdbdata[[#This Row],[utility]]&tbl_twdbdata[[#This Row],[Year]]","v":"HARRIS COUNTY WCID 892040"}]
[null,6355,"HARRIS COUNTY WCID 89","H",2050,8202,6411,33321814,{"$f":"IF(tbl_twdbdata[[#This Row],[Year]]=2016,0,tbl_twdbdata[[#This Row],[effsave]]-0.6*SUMIFS(tbl_twdbdata[effsave],tbl_twdbdata[Year],2020,tbl_twdbdata[utility],tbl_twdbdata[[#This Row],[utility]]))","v":21535058.800000001},2139,191,16,24,135190497,13724637,3736624,12415549,4553827,30521432,{"$f":"tbl_twdbdata[[#This Row],[utility]]&tbl_twdbdata[[#This Row],[Year]]","v":"HARRIS COUNTY WCID 892050"}]
[null,6355,"HARRIS COUNTY WCID 89","H",2060,8202,6448,34126040,{"$f":"IF(tbl_twdbdata[[#This Row],[Year]]=2016,0,tbl_twdbdata[[#This Row],[effsave]]-0.6*SUMIFS(tbl_twdbdata[effsave],tbl_twdbdata[Year],2020,tbl_twdbdata[utility],tbl_twdbdata[[#This Row],[utility]]))","v":22339284.800000001},2151,195,16,24,135970726,13803846,3758189,12487203,4580109,30697581,{"$f":"tbl_twdbdata[[#This Row],[utility]]&tbl_twdbdata[[#This Row],[Year]]","v":"HARRIS COUNTY WCID 892060"}]
[null,6355,"HARRIS COUNTY WCID 89","H",2070,8202,6484,34434903,{"$f":"IF(tbl_twdbdata[[#This Row],[Year]]=2016,0,tbl_twdbdata[[#This Row],[effsave]]-0.6*SUMIFS(tbl_twdbdata[effsave],tbl_twdbdata[Year],2020,tbl_twdbdata[utility],tbl_twdbdata[[#This Row],[utility]]))","v":22648147.800000001},2163,199,16,24,136729868,13880915,3779171,12556921,4605680,30868969,{"$f":"tbl_twdbdata[[#This Row],[utility]]&tbl_twdbdata[[#This Row],[Year]]","v":"HARRIS COUNTY WCID 892070"}]
[null,932,"HENDERSON","I",2016,13700,13700,0,{"$f":"IF(tbl_twdbdata[[#This Row],[Year]]=2016,0,tbl_twdbdata[[#This Row],[effsave]]-0.6*SUMIFS(tbl_twdbdata[effsave],tbl_twdbdata[Year],2020,tbl_twdbdata[utility],tbl_twdbdata[[#This Row],[utility]]))","v":0},4767,294,925,0,346020000,25833600,314921500,0,10691576,157859410,{"$f":"tbl_twdbdata[[#This Row],[utility]]&tbl_twdbdata[[#This Row],[Year]]","v":"HENDERSON2016"}]
[null,932,"HENDERSON","I",2020,13418,14928,50400660,{"$f":"IF(tbl_twdbdata[[#This Row],[Year]]=2016,0,tbl_twdbdata[[#This Row],[effsave]]-0.6*SUMIFS(tbl_twdbdata[effsave],tbl_twdbdata[Year],2020,tbl_twdbdata[utility],tbl_twdbdata[[#This Row],[utility]]))","v":20160264},5303,327,1029,0,384959499,28740795,350361317,0,11894757,175624182,{"$f":"tbl_twdbdata[[#This Row],[utility]]&tbl_twdbdata[[#This Row],[Year]]","v":"HENDERSON2020"}]
[null,932,"HENDERSON","I",2030,13418,16640,79807104,{"$f":"IF(tbl_twdbdata[[#This Row],[Year]]=2016,0,tbl_twdbdata[[#This Row],[effsave]]-0.6*SUMIFS(tbl_twdbdata[effsave],tbl_twdbdata[Year],2020,tbl_twdbdata[utility],tbl_twdbdata[[#This Row],[utility]]))","v":49566708},5911,365,1147,0,429108123,32036899,390542089,0,13258893,195765433,{"$f":"tbl_twdbdata[[#This Row],[utility]]&tbl_twdbdata[[#This Row],[Year]]","v":"HENDERSON2030"}]
[null,932,"HENDERSON","I",2040,13418,18302,105280425,{"$f":"IF(tbl_twdbdata[[#This Row],[Year]]=2016,0,tbl_twdbdata[[#This Row],[effsave]]-0.6*SUMIFS(tbl_twdbdata[effsave],tbl_twdbdata[Year],2020,tbl_twdbdata[utility],tbl_twdbdata[[#This Row],[utility]]))","v":75040029},6501,407,1278,0,471967360,35236738,429549357,0,14583189,215318447,{"$f":"tbl_twdbdata[[#This Row],[utility]]&tbl_twdbdata[[#This Row],[Year]]","v":"HENDERSON2040"}]
[null,932,"HENDERSON","I",2050,13418,20089,125238844,{"$f":"IF(tbl_twdbdata[[#This Row],[Year]]=2016,0,tbl_twdbdata[[#This Row],[effsave]]-0.6*SUMIFS(tbl_twdbdata[effsave],tbl_twdbdata[Year],2020,tbl_twdbdata[utility],tbl_twdbdata[[#This Row],[utility]]))","v":94998448},7136,454,1424,0,518050065,38677239,471490385,0,16007086,236342055,{"$f":"tbl_twdbdata[[#This Row],[utility]]&tbl_twdbdata[[#This Row],[Year]]","v":"HENDERSON2050"}]
[null,932,"HENDERSON","I",2060,13418,21946,139138737,{"$f":"IF(tbl_twdbdata[[#This Row],[Year]]=2016,0,tbl_twdbdata[[#This Row],[effsave]]-0.6*SUMIFS(tbl_twdbdata[effsave],tbl_twdbdata[Year],2020,tbl_twdbdata[utility],tbl_twdbdata[[#This Row],[utility]]))","v":108898341},7796,506,1588,0,565937913,42252511,515074318,0,17486759,258189195,{"$f":"tbl_twdbdata[[#This Row],[utility]]&tbl_twdbdata[[#This Row],[Year]]","v":"HENDERSON2060"}]
[null,932,"HENDERSON","I",2070,13418,23871,152040367,{"$f":"IF(tbl_twdbdata[[#This Row],[Year]]=2016,0,tbl_twdbdata[[#This Row],[effsave]]-0.6*SUMIFS(tbl_twdbdata[effsave],tbl_twdbdata[Year],2020,tbl_twdbdata[utility],tbl_twdbdata[[#This Row],[utility]]))","v":121799971},8480,564,1771,0,615579327,45958703,560254216,0,19020615,280836338,{"$f":"tbl_twdbdata[[#This Row],[utility]]&tbl_twdbdata[[#This Row],[Year]]","v":"HENDERSON2070"}]
[null,933,"HENRIETTA","B",2016,3146,3146,0,{"$f":"IF(tbl_twdbdata[[#This Row],[Year]]=2016,0,tbl_twdbdata[[#This Row],[effsave]]-0.6*SUMIFS(tbl_twdbdata[effsave],tbl_twdbdata[Year],2020,tbl_twdbdata[utility],tbl_twdbdata[[#This Row],[utility]]))","v":0},1328,164,104,1,54860600,13970400,22181000,435400,12430400,13016139,{"$f":"tbl_twdbdata[[#This Row],[utility]]&tbl_twdbdata[[#This Row],[Year]]","v":"HENRIETTA2016"}]
[null,933,"HENRIETTA","B",2020,3085,3321,11491324,{"$f":"IF(tbl_twdbdata[[#This Row],[Year]]=2016,0,tbl_twdbdata[[#This Row],[effsave]]-0.6*SUMIFS(tbl_twdbdata[effsave],tbl_twdbdata[Year],2020,tbl_twdbdata[utility],tbl_twdbdata[[#This Row],[utility]]))","v":4596529.6000000006},1430,177,112,1,59057391,15039124,23877828,468708,13381316,14011863,{"$f":"tbl_twdbdata[[#This Row],[utility]]&tbl_twdbdata[[#This Row],[Year]]","v":"HENRIETTA2020"}]
[null,933,"HENRIETTA","B",2030,3085,3425,17051705,{"$f":"IF(tbl_twdbdata[[#This Row],[Year]]=2016,0,tbl_twdbdata[[#This Row],[effsave]]-0.6*SUMIFS(tbl_twdbdata[effsave],tbl_twdbdata[Year],2020,tbl_twdbdata[utility],tbl_twdbdata[[#This Row],[utility]]))","v":10156910.600000001},1475,183,115,1,60906825,15510087,24625583,483386,13800364,14450657,{"$f":"tbl_twdbdata[[#This Row],[utility]]&tbl_twdbdata[[#This Row],[Year]]","v":"HENRIETTA2030"}]
[null,933,"HENRIETTA","B",2040,3085,3425,21052105,{"$f":"IF(tbl_twdbdata[[#This Row],[Year]]=2016,0,tbl_twdbdata[[#This Row],[effsave]]-0.6*SUMIFS(tbl_twdbdata[effsave],tbl_twdbdata[Year],2020,tbl_twdbdata[utility],tbl_twdbdata[[#This Row],[utility]]))","v":14157310.600000001},1475,189,118,1,60906825,15510087,24625583,483386,13800364,14450657,{"$f":"tbl_twdbdata[[#This Row],[utility]]&tbl_twdbdata[[#This Row],[Year]]","v":"HENRIETTA2040"}]
[null,933,"HENRIETTA","B",2050,3085,3425,23239824,{"$f":"IF(tbl_twdbdata[[#This Row],[Year]]=2016,0,tbl_twdbdata[[#This Row],[effsave]]-0.6*SUMIFS(tbl_twdbdata[effsave],tbl_twdbdata[Year],2020,tbl_twdbdata[utility],tbl_twdbdata[[#This Row],[utility]]))","v":16345029.600000001},1475,195,122,1,60906825,15510087,24625583,483386,13800364,14450657,{"$f":"tbl_twdbdata[[#This Row],[utility]]&tbl_twdbdata[[#This Row],[Year]]","v":"HENRIETTA2050"}]
[null,933,"HENRIETTA","B",2060,3085,3425,23627363,{"$f":"IF(tbl_twdbdata[[#This Row],[Year]]=2016,0,tbl_twdbdata[[#This Row],[effsave]]-0.6*SUMIFS(tbl_twdbdata[effsave],tbl_twdbdata[Year],2020,tbl_twdbdata[utility],tbl_twdbdata[[#This Row],[utility]]))","v":16732568.600000001},1475,201,126,1,60906825,15510087,24625583,483386,13800364,14450657,{"$f":"tbl_twdbdata[[#This Row],[utility]]&tbl_twdbdata[[#This Row],[Year]]","v":"HENRIETTA2060"}]
[null,933,"HENRIETTA","B",2070,3085,3425,23627363,{"$f":"IF(tbl_twdbdata[[#This Row],[Year]]=2016,0,tbl_twdbdata[[#This Row],[effsave]]-0.6*SUMIFS(tbl_twdbdata[effsave],tbl_twdbdata[Year],2020,tbl_twdbdata[utility],tbl_twdbdata[[#This Row],[utility]]))","v":16732568.600000001},1475,207,130,1,60906825,15510087,24625583,483386,13800364,14450657,{"$f":"tbl_twdbdata[[#This Row],[utility]]&tbl_twdbdata[[#This Row],[Year]]","v":"HENRIETTA2070"}]
[null,935,"HEWITT","G",2016,16638,16638,0,{"$f":"IF(tbl_twdbdata[[#This Row],[Year]]=2016,0,tbl_twdbdata[[#This Row],[effsave]]-0.6*SUMIFS(tbl_twdbdata[effsave],tbl_twdbdata[Year],2020,tbl_twdbdata[utility],tbl_twdbdata[[#This Row],[utility]]))","v":0},4326,1220,387,0,373705000,53754600,65226000,0,6942359,55760758,{"$f":"tbl_twdbdata[[#This Row],[utility]]&tbl_twdbdata[[#This Row],[Year]]","v":"HEWITT2016"}]
[null,935,"HEWITT","G",2020,16025,17373,59162883,{"$f":"IF(tbl_twdbdata[[#This Row],[Year]]=2016,0,tbl_twdbdata[[#This Row],[effsave]]-0.6*SUMIFS(tbl_twdbdata[effsave],tbl_twdbdata[Year],2020,tbl_twdbdata[utility],tbl_twdbdata[[#This Row],[utility]]))","v":23665153.200000003},4690,1323,419,0,405140528,58276360,70712717,0,7526340,60451273,{"$f":"tbl_twdbdata[[#This Row],[utility]]&tbl_twdbdata[[#This Row],[Year]]","v":"HEWITT2020"}]
[null,935,"HEWITT","G",2030,16025,19949,95750213,{"$f":"IF(tbl_twdbdata[[#This Row],[Year]]=2016,0,tbl_twdbdata[[#This Row],[effsave]]-0.6*SUMIFS(tbl_twdbdata[effsave],tbl_twdbdata[Year],2020,tbl_twdbdata[utility],tbl_twdbdata[[#This Row],[utility]]))","v":60252483.200000003},5385,1519,481,0,465213169,66917349,81197720,0,8642316,69414750,{"$f":"tbl_twdbdata[[#This Row],[utility]]&tbl_twdbdata[[#This Row],[Year]]","v":"HEWITT2030"}]
[null,935,"HEWITT","G",2040,16025,22225,126062423,{"$f":"IF(tbl_twdbdata[[#This Row],[Year]]=2016,0,tbl_twdbdata[[#This Row],[effsave]]-0.6*SUMIFS(tbl_twdbdata[effsave],tbl_twdbdata[Year],2020,tbl_twdbdata[utility],tbl_twdbdata[[#This Row],[utility]]))","v":90564693.200000003},5999,1744,552,0,518289773,74552012,90461643,0,9628326,77334344,{"$f":"tbl_twdbdata[[#This Row],[utility]]&tbl_twdbdata[[#This Row],[Year]]","v":"HEWITT2040"}]
[null,935,"HEWITT","G",2050,16025,24514,149693515,{"$f":"IF(tbl_twdbdata[[#This Row],[Year]]=2016,0,tbl_twdbdata[[#This Row],[effsave]]-0.6*SUMIFS(tbl_twdbdata[effsave],tbl_twdbdata[Year],2020,tbl_twdbdata[utility],tbl_twdbdata[[#This Row],[utility]]))","v":114195785.2},6617,2003,634,0,571669539,82230282,99778480,0,10619968,85299173,{"$f":"tbl_twdbdata[[#This Row],[utility]]&tbl_twdbdata[[#This Row],[Year]]","v":"HEWITT2050"}]
[null,935,"HEWITT","G",2060,16025,26795,166262975,{"$f":"IF(tbl_twdbdata[[#This Row],[Year]]=2016,0,tbl_twdbdata[[#This Row],[effsave]]-0.6*SUMIFS(tbl_twdbdata[effsave],tbl_twdbdata[Year],2020,tbl_twdbdata[utility],tbl_twdbdata[[#This Row],[utility]]))","v":130765245.2},7233,2300,728,0,624862744,89881717,109062755,0,11608144,93236165,{"$f":"tbl_twdbdata[[#This Row],[utility]]&tbl_twdbdata[[#This Row],[Year]]","v":"HEWITT2060"}]
[null,935,"HEWITT","G",2070,16025,29034,181003763,{"$f":"IF(tbl_twdbdata[[#This Row],[Year]]=2016,0,tbl_twdbdata[[#This Row],[effsave]]-0.6*SUMIFS(tbl_twdbdata[effsave],tbl_twdbdata[Year],2020,tbl_twdbdata[utility],tbl_twdbdata[[#This Row],[utility]]))","v":145506033.19999999},7837,2641,836,0,677076503,97392266,118176079,0,12578125,101027013,{"$f":"tbl_twdbdata[[#This Row],[utility]]&tbl_twdbdata[[#This Row],[Year]]","v":"HEWITT2070"}]
[null,939,"HICO","G",2016,1410,1410,0,{"$f":"IF(tbl_twdbdata[[#This Row],[Year]]=2016,0,tbl_twdbdata[[#This Row],[effsave]]-0.6*SUMIFS(tbl_twdbdata[effsave],tbl_twdbdata[Year],2020,tbl_twdbdata[utility],tbl_twdbdata[[#This Row],[utility]]))","v":0},550,85,125,15,26697880,2583260,10554460,272740,2038000,12465905,{"$f":"tbl_twdbdata[[#This Row],[utility]]&tbl_twdbdata[[#This Row],[Year]]","v":"HICO2016"}]
[null,939,"HICO","G",2020,1410,1387,4622108,{"$f":"IF(tbl_twdbdata[[#This Row],[Year]]=2016,0,tbl_twdbdata[[#This Row],[effsave]]-0.6*SUMIFS(tbl_twdbdata[effsave],tbl_twdbdata[Year],2020,tbl_twdbdata[utility],tbl_twdbdata[[#This Row],[utility]]))","v":1848843.2000000002},540,83,122,15,26225184,2537522,10367589,267911,2001916,12245191,{"$f":"tbl_twdbdata[[#This Row],[utility]]&tbl_twdbdata[[#This Row],[Year]]","v":"HICO2020"}]
[null,939,"HICO","G",2030,1410,1406,6825427,{"$f":"IF(tbl_twdbdata[[#This Row],[Year]]=2016,0,tbl_twdbdata[[#This Row],[effsave]]-0.6*SUMIFS(tbl_twdbdata[effsave],tbl_twdbdata[Year],2020,tbl_twdbdata[utility],tbl_twdbdata[[#This Row],[utility]]))","v":4052162.2},547,84,123,15,26584433,2572283,10509611,271581,2029340,12412933,{"$f":"tbl_twdbdata[[#This Row],[utility]]&tbl_twdbdata[[#This Row],[Year]]","v":"HICO2030"}]
[null,939,"HICO","G",2040,1410,1406,8560009,{"$f":"IF(tbl_twdbdata[[#This Row],[Year]]=2016,0,tbl_twdbdata[[#This Row],[effsave]]-0.6*SUMIFS(tbl_twdbdata[effsave],tbl_twdbdata[Year],2020,tbl_twdbdata[utility],tbl_twdbdata[[#This Row],[utility]]))","v":5786744.2000000002},547,85,124,15,26584433,2572283,10509611,271581,2029340,12412933,{"$f":"tbl_twdbdata[[#This Row],[utility]]&tbl_twdbdata[[#This Row],[Year]]","v":"HICO2040"}]
[null,939,"HICO","G",2050,1410,1406,9509411,{"$f":"IF(tbl_twdbdata[[#This Row],[Year]]=2016,0,tbl_twdbdata[[#This Row],[effsave]]-0.6*SUMIFS(tbl_twdbdata[effsave],tbl_twdbdata[Year],2020,tbl_twdbdata[utility],tbl_twdbdata[[#This Row],[utility]]))","v":6736146.2000000002},547,86,125,15,26584433,2572283,10509611,271581,2029340,12412933,{"$f":"tbl_twdbdata[[#This Row],[utility]]&tbl_twdbdata[[#This Row],[Year]]","v":"HICO2050"}]
[null,939,"HICO","G",2060,1410,1406,9673632,{"$f":"IF(tbl_twdbdata[[#This Row],[Year]]=2016,0,tbl_twdbdata[[#This Row],[effsave]]-0.6*SUMIFS(tbl_twdbdata[effsave],tbl_twdbdata[Year],2020,tbl_twdbdata[utility],tbl_twdbdata[[#This Row],[utility]]))","v":6900367.2000000002},547,87,126,15,26584433,2572283,10509611,271581,2029340,12412933,{"$f":"tbl_twdbdata[[#This Row],[utility]]&tbl_twdbdata[[#This Row],[Year]]","v":"HICO2060"}]
[null,939,"HICO","G",2070,1410,1406,9673632,{"$f":"IF(tbl_twdbdata[[#This Row],[Year]]=2016,0,tbl_twdbdata[[#This Row],[effsave]]-0.6*SUMIFS(tbl_twdbdata[effsave],tbl_twdbdata[Year],2020,tbl_twdbdata[utility],tbl_twdbdata[[#This Row],[utility]]))","v":6900367.2000000002},547,88,127,15,26584433,2572283,10509611,271581,2029340,12412933,{"$f":"tbl_twdbdata[[#This Row],[utility]]&tbl_twdbdata[[#This Row],[Year]]","v":"HICO2070"}]
[null,940,"HIDALGO","M",2016,12500,12500,0,{"$f":"IF(tbl_twdbdata[[#This Row],[Year]]=2016,0,tbl_twdbdata[[#This Row],[effsave]]-0.6*SUMIFS(tbl_twdbdata[effsave],tbl_twdbdata[Year],2020,tbl_twdbdata[utility],tbl_twdbdata[[#This Row],[utility]]))","v":0},3471,0,504,0,308600037,0,135752316,0,null,null,{"$f":"tbl_twdbdata[[#This Row],[utility]]&tbl_twdbdata[[#This Row],[Year]]","v":"HIDALGO2016"}]
[null,940,"HIDALGO","M",2020,11831,14191,41955692,{"$f":"IF(tbl_twdbdata[[#This Row],[Year]]=2016,0,tbl_twdbdata[[#This Row],[effsave]]-0.6*SUMIFS(tbl_twdbdata[effsave],tbl_twdbdata[Year],2020,tbl_twdbdata[utility],tbl_twdbdata[[#This Row],[utility]]))","v":16782276.800000001},4163,0,605,0,370158323,0,162831639,0,null,null,{"$f":"tbl_twdbdata[[#This Row],[utility]]&tbl_twdbdata[[#This Row],[Year]]","v":"HIDALGO2020"}]
[null,940,"HIDALGO","M",2030,11831,17621,69654932,{"$f":"IF(tbl_twdbdata[[#This Row],[Year]]=2016,0,tbl_twdbdata[[#This Row],[effsave]]-0.6*SUMIFS(tbl_twdbdata[effsave],tbl_twdbdata[Year],2020,tbl_twdbdata[utility],tbl_twdbdata[[#This Row],[utility]]))","v":44481516.799999997},5169,0,751,0,459626510,0,202188451,0,null,null,{"$f":"tbl_twdbdata[[#This Row],[utility]]&tbl_twdbdata[[#This Row],[Year]]","v":"HIDALGO2030"}]
[null,940,"HIDALGO","M",2040,11831,21065,93879332,{"$f":"IF(tbl_twdbdata[[#This Row],[Year]]=2016,0,tbl_twdbdata[[#This Row],[effsave]]-0.6*SUMIFS(tbl_twdbdata[effsave],tbl_twdbdata[Year],2020,tbl_twdbdata[utility],tbl_twdbdata[[#This Row],[utility]]))","v":68705916.799999997},6179,0,933,0,549459874,0,241705903,0,null,null,{"$f":"tbl_twdbdata[[#This Row],[utility]]&tbl_twdbdata[[#This Row],[Year]]","v":"HIDALGO2040"}]
[null,940,"HIDALGO","M",2050,11831,24516,115344103,{"$f":"IF(tbl_twdbdata[[#This Row],[Year]]=2016,0,tbl_twdbdata[[#This Row],[effsave]]-0.6*SUMIFS(tbl_twdbdata[effsave],tbl_twdbdata[Year],2020,tbl_twdbdata[utility],tbl_twdbdata[[#This Row],[utility]]))","v":90170687.799999997},7191,0,1159,0,639475826,0,281303675,0,null,null,{"$f":"tbl_twdbdata[[#This Row],[utility]]&tbl_twdbdata[[#This Row],[Year]]","v":"HIDALGO2050"}]
[null,940,"HIDALGO","M",2060,11831,27967,133928370,{"$f":"IF(tbl_twdbdata[[#This Row],[Year]]=2016,0,tbl_twdbdata[[#This Row],[effsave]]-0.6*SUMIFS(tbl_twdbdata[effsave],tbl_twdbdata[Year],2020,tbl_twdbdata[utility],tbl_twdbdata[[#This Row],[utility]]))","v":108754954.8},8203,0,1439,0,729491778,0,320901447,0,null,null,{"$f":"tbl_twdbdata[[#This Row],[utility]]&tbl_twdbdata[[#This Row],[Year]]","v":"HIDALGO2060"}]
[null,940,"HIDALGO","M",2070,11831,31322,150909396,{"$f":"IF(tbl_twdbdata[[#This Row],[Year]]=2016,0,tbl_twdbdata[[#This Row],[effsave]]-0.6*SUMIFS(tbl_twdbdata[effsave],tbl_twdbdata[Year],2020,tbl_twdbdata[utility],tbl_twdbdata[[#This Row],[utility]]))","v":125735980.8},9187,0,1787,0,817003664,0,359397687,0,null,null,{"$f":"tbl_twdbdata[[#This Row],[utility]]&tbl_twdbdata[[#This Row],[Year]]","v":"HIDALGO2070"}]
[null,941,"HIDALGO COUNTY MUD 1","M",2016,7989,7989,0,{"$f":"IF(tbl_twdbdata[[#This Row],[Year]]=2016,0,tbl_twdbdata[[#This Row],[effsave]]-0.6*SUMIFS(tbl_twdbdata[effsave],tbl_twdbdata[Year],2020,tbl_twdbdata[utility],tbl_twdbdata[[#This Row],[utility]]))","v":0},2853,0,82,0,139847340,0,32000300,0,23303724,29146595,{"$f":"tbl_twdbdata[[#This Row],[utility]]&tbl_twdbdata[[#This Row],[Year]]","v":"HIDALGO COUNTY MUD 12016"}]
[null,941,"HIDALGO COUNTY MUD 1","M",2020,6547,7909,22805602,{"$f":"IF(tbl_twdbdata[[#This Row],[Year]]=2016,0,tbl_twdbdata[[#This Row],[effsave]]-0.6*SUMIFS(tbl_twdbdata[effsave],tbl_twdbdata[Year],2020,tbl_twdbdata[utility],tbl_twdbdata[[#This Row],[utility]]))","v":9122240.8000000007},3447,0,99,0,168940371,0,38657457,0,28151696,35210084,{"$f":"tbl_twdbdata[[#This Row],[utility]]&tbl_twdbdata[[#This Row],[Year]]","v":"HIDALGO COUNTY MUD 12020"}]
[null,941,"HIDALGO COUNTY MUD 1","M",2030,6547,8937,34348913,{"$f":"IF(tbl_twdbdata[[#This Row],[Year]]=2016,0,tbl_twdbdata[[#This Row],[effsave]]-0.6*SUMIFS(tbl_twdbdata[effsave],tbl_twdbdata[Year],2020,tbl_twdbdata[utility],tbl_twdbdata[[#This Row],[utility]]))","v":20665551.800000001},3895,0,112,0,190898988,0,43682095,0,31810811,39786638,{"$f":"tbl_twdbdata[[#This Row],[utility]]&tbl_twdbdata[[#This Row],[Year]]","v":"HIDALGO COUNTY MUD 12030"}]
[null,941,"HIDALGO COUNTY MUD 1","M",2040,6547,9912,42835699,{"$f":"IF(tbl_twdbdata[[#This Row],[Year]]=2016,0,tbl_twdbdata[[#This Row],[effsave]]-0.6*SUMIFS(tbl_twdbdata[effsave],tbl_twdbdata[Year],2020,tbl_twdbdata[utility],tbl_twdbdata[[#This Row],[utility]]))","v":29152337.800000001},4320,0,127,0,211725497,0,48447681,0,35281275,44127241,{"$f":"tbl_twdbdata[[#This Row],[utility]]&tbl_twdbdata[[#This Row],[Year]]","v":"HIDALGO COUNTY MUD 12040"}]
[null,941,"HIDALGO COUNTY MUD 1","M",2050,6547,10843,49431611,{"$f":"IF(tbl_twdbdata[[#This Row],[Year]]=2016,0,tbl_twdbdata[[#This Row],[effsave]]-0.6*SUMIFS(tbl_twdbdata[effsave],tbl_twdbdata[Year],2020,tbl_twdbdata[utility],tbl_twdbdata[[#This Row],[utility]]))","v":35748249.799999997},4726,0,144,0,231612143,0,52998205,0,38595124,48271961,{"$f":"tbl_twdbdata[[#This Row],[utility]]&tbl_twdbdata[[#This Row],[Year]]","v":"HIDALGO COUNTY MUD 12050"}]
[null,941,"HIDALGO COUNTY MUD 1","M",2060,6547,11737,54492544,{"$f":"IF(tbl_twdbdata[[#This Row],[Year]]=2016,0,tbl_twdbdata[[#This Row],[effsave]]-0.6*SUMIFS(tbl_twdbdata[effsave],tbl_twdbdata[Year],2020,tbl_twdbdata[utility],tbl_twdbdata[[#This Row],[utility]]))","v":40809182.799999997},5116,0,163,0,250708450,0,57367881,0,41777273,52251960,{"$f":"tbl_twdbdata[[#This Row],[utility]]&tbl_twdbdata[[#This Row],[Year]]","v":"HIDALGO COUNTY MUD 12060"}]
[null,941,"HIDALGO COUNTY MUD 1","M",2070,6547,12576,58755072,{"$f":"IF(tbl_twdbdata[[#This Row],[Year]]=2016,0,tbl_twdbdata[[#This Row],[effsave]]-0.6*SUMIFS(tbl_twdbdata[effsave],tbl_twdbdata[Year],2020,tbl_twdbdata[utility],tbl_twdbdata[[#This Row],[utility]]))","v":45071710.799999997},5482,0,184,0,268629928,0,61468729,0,44763652,55987105,{"$f":"tbl_twdbdata[[#This Row],[utility]]&tbl_twdbdata[[#This Row],[Year]]","v":"HIDALGO COUNTY MUD 12070"}]
[null,943,"HIGHLAND PARK","C",2016,8430,8430,0,{"$f":"IF(tbl_twdbdata[[#This Row],[Year]]=2016,0,tbl_twdbdata[[#This Row],[effsave]]-0.6*SUMIFS(tbl_twdbdata[effsave],tbl_twdbdata[Year],2020,tbl_twdbdata[utility],tbl_twdbdata[[#This Row],[utility]]))","v":0},5318,581,199,0,834663000,29796000,79064000,0,null,null,{"$f":"tbl_twdbdata[[#This Row],[utility]]&tbl_twdbdata[[#This Row],[Year]]","v":"HIGHLAND PARK2016"}]
[null,943,"HIGHLAND PARK","C",2020,8344,9023,32341139,{"$f":"IF(tbl_twdbdata[[#This Row],[Year]]=2016,0,tbl_twdbdata[[#This Row],[effsave]]-0.6*SUMIFS(tbl_twdbdata[effsave],tbl_twdbdata[Year],2020,tbl_twdbdata[utility],tbl_twdbdata[[#This Row],[utility]]))","v":12936455.600000001},5751,628,215,0,902584402,32220674,85497899,0,null,null,{"$f":"tbl_twdbdata[[#This Row],[utility]]&tbl_twdbdata[[#This Row],[Year]]","v":"HIGHLAND PARK2020"}]
[null,943,"HIGHLAND PARK","C",2030,8344,9311,47953047,{"$f":"IF(tbl_twdbdata[[#This Row],[Year]]=2016,0,tbl_twdbdata[[#This Row],[effsave]]-0.6*SUMIFS(tbl_twdbdata[effsave],tbl_twdbdata[Year],2020,tbl_twdbdata[utility],tbl_twdbdata[[#This Row],[utility]]))","v":28548363.600000001},5935,648,221,0,931393480,33249107,88226858,0,null,null,{"$f":"tbl_twdbdata[[#This Row],[utility]]&tbl_twdbdata[[#This Row],[Year]]","v":"HIGHLAND PARK2030"}]
[null,943,"HIGHLAND PARK","C",2040,8344,9311,59236116,{"$f":"IF(tbl_twdbdata[[#This Row],[Year]]=2016,0,tbl_twdbdata[[#This Row],[effsave]]-0.6*SUMIFS(tbl_twdbdata[effsave],tbl_twdbdata[Year],2020,tbl_twdbdata[utility],tbl_twdbdata[[#This Row],[utility]]))","v":39831432.600000001},5935,669,229,0,931393480,33249107,88226858,0,null,null,{"$f":"tbl_twdbdata[[#This Row],[utility]]&tbl_twdbdata[[#This Row],[Year]]","v":"HIGHLAND PARK2040"}]
[null,943,"HIGHLAND PARK","C",2050,8344,9311,64062008,{"$f":"IF(tbl_twdbdata[[#This Row],[Year]]=2016,0,tbl_twdbdata[[#This Row],[effsave]]-0.6*SUMIFS(tbl_twdbdata[effsave],tbl_twdbdata[Year],2020,tbl_twdbdata[utility],tbl_twdbdata[[#This Row],[utility]]))","v":44657324.600000001},5935,690,237,0,931393480,33249107,88226858,0,null,null,{"$f":"tbl_twdbdata[[#This Row],[utility]]&tbl_twdbdata[[#This Row],[Year]]","v":"HIGHLAND PARK2050"}]
[null,943,"HIGHLAND PARK","C",2060,8344,9311,65081562,{"$f":"IF(tbl_twdbdata[[#This Row],[Year]]=2016,0,tbl_twdbdata[[#This Row],[effsave]]-0.6*SUMIFS(tbl_twdbdata[effsave],tbl_twdbdata[Year],2020,tbl_twdbdata[utility],tbl_twdbdata[[#This Row],[utility]]))","v":45676878.600000001},5935,712,245,0,931393480,33249107,88226858,0,null,null,{"$f":"tbl_twdbdata[[#This Row],[utility]]&tbl_twdbdata[[#This Row],[Year]]","v":"HIGHLAND PARK2060"}]
[null,943,"HIGHLAND PARK","C",2070,8344,9311,65115547,{"$f":"IF(tbl_twdbdata[[#This Row],[Year]]=2016,0,tbl_twdbdata[[#This Row],[effsave]]-0.6*SUMIFS(tbl_twdbdata[effsave],tbl_twdbdata[Year],2020,tbl_twdbdata[utility],tbl_twdbdata[[#This Row],[utility]]))","v":45710863.600000001},5935,735,253,0,931393480,33249107,88226858,0,null,null,{"$f":"tbl_twdbdata[[#This Row],[utility]]&tbl_twdbdata[[#This Row],[Year]]","v":"HIGHLAND PARK2070"}]
[null,944,"HIGHLAND VILLAGE","C",2016,17000,17000,0,{"$f":"IF(tbl_twdbdata[[#This Row],[Year]]=2016,0,tbl_twdbdata[[#This Row],[effsave]]-0.6*SUMIFS(tbl_twdbdata[effsave],tbl_twdbdata[Year],2020,tbl_twdbdata[utility],tbl_twdbdata[[#This Row],[utility]]))","v":0},5145,2,157,189,755996700,1289300,80444800,61550500,null,null,{"$f":"tbl_twdbdata[[#This Row],[utility]]&tbl_twdbdata[[#This Row],[Year]]","v":"HIGHLAND VILLAGE2016"}]
[null,944,"HIGHLAND VILLAGE","C",2020,15529,17119,56173431,{"$f":"IF(tbl_twdbdata[[#This Row],[Year]]=2016,0,tbl_twdbdata[[#This Row],[effsave]]-0.6*SUMIFS(tbl_twdbdata[effsave],tbl_twdbdata[Year],2020,tbl_twdbdata[utility],tbl_twdbdata[[#This Row],[utility]]))","v":22469372.399999999},5672,2,173,208,833402505,1421310,88681469,67852599,null,null,{"$f":"tbl_twdbdata[[#This Row],[utility]]&tbl_twdbdata[[#This Row],[Year]]","v":"HIGHLAND VILLAGE2020"}]
[null,944,"HIGHLAND VILLAGE","C",2030,15529,18020,80440379,{"$f":"IF(tbl_twdbdata[[#This Row],[Year]]=2016,0,tbl_twdbdata[[#This Row],[effsave]]-0.6*SUMIFS(tbl_twdbdata[effsave],tbl_twdbdata[Year],2020,tbl_twdbdata[utility],tbl_twdbdata[[#This Row],[utility]]))","v":46736320.399999999},5971,2,182,219,877265795,1496116,93348914,71423788,null,null,{"$f":"tbl_twdbdata[[#This Row],[utility]]&tbl_twdbdata[[#This Row],[Year]]","v":"HIGHLAND VILLAGE2030"}]
[null,944,"HIGHLAND VILLAGE","C",2040,15529,18020,94910439,{"$f":"IF(tbl_twdbdata[[#This Row],[Year]]=2016,0,tbl_twdbdata[[#This Row],[effsave]]-0.6*SUMIFS(tbl_twdbdata[effsave],tbl_twdbdata[Year],2020,tbl_twdbdata[utility],tbl_twdbdata[[#This Row],[utility]]))","v":61206380.399999999},5971,2,192,231,877265795,1496116,93348914,71423788,null,null,{"$f":"tbl_twdbdata[[#This Row],[utility]]&tbl_twdbdata[[#This Row],[Year]]","v":"HIGHLAND VILLAGE2040"}]
[null,944,"HIGHLAND VILLAGE","C",2050,15529,18020,103066291,{"$f":"IF(tbl_twdbdata[[#This Row],[Year]]=2016,0,tbl_twdbdata[[#This Row],[effsave]]-0.6*SUMIFS(tbl_twdbdata[effsave],tbl_twdbdata[Year],2020,tbl_twdbdata[utility],tbl_twdbdata[[#This Row],[utility]]))","v":69362232.400000006},5971,2,202,243,877265795,1496116,93348914,71423788,null,null,{"$f":"tbl_twdbdata[[#This Row],[utility]]&tbl_twdbdata[[#This Row],[Year]]","v":"HIGHLAND VILLAGE2050"}]
[null,944,"HIGHLAND VILLAGE","C",2060,15529,18020,104842162,{"$f":"IF(tbl_twdbdata[[#This Row],[Year]]=2016,0,tbl_twdbdata[[#This Row],[effsave]]-0.6*SUMIFS(tbl_twdbdata[effsave],tbl_twdbdata[Year],2020,tbl_twdbdata[utility],tbl_twdbdata[[#This Row],[utility]]))","v":71138103.400000006},5971,2,212,256,877265795,1496116,93348914,71423788,null,null,{"$f":"tbl_twdbdata[[#This Row],[utility]]&tbl_twdbdata[[#This Row],[Year]]","v":"HIGHLAND VILLAGE2060"}]
[null,944,"HIGHLAND VILLAGE","C",2070,15529,18020,104973708,{"$f":"IF(tbl_twdbdata[[#This Row],[Year]]=2016,0,tbl_twdbdata[[#This Row],[effsave]]-0.6*SUMIFS(tbl_twdbdata[effsave],tbl_twdbdata[Year],2020,tbl_twdbdata[utility],tbl_twdbdata[[#This Row],[utility]]))","v":71269649.400000006},5971,2,223,269,877265795,1496116,93348914,71423788,null,null,{"$f":"tbl_twdbdata[[#This Row],[utility]]&tbl_twdbdata[[#This Row],[Year]]","v":"HIGHLAND VILLAGE2070"}]
[null,957,"HONEY GROVE","C",2016,1638,1668,0,{"$f":"IF(tbl_twdbdata[[#This Row],[Year]]=2016,0,tbl_twdbdata[[#This Row],[effsave]]-0.6*SUMIFS(tbl_twdbdata[effsave],tbl_twdbdata[Year],2020,tbl_twdbdata[utility],tbl_twdbdata[[#This Row],[utility]]))","v":0},641,8,99,0,31026200,4805600,8587100,0,1627000,9512059,{"$f":"tbl_twdbdata[[#This Row],[utility]]&tbl_twdbdata[[#This Row],[Year]]","v":"HONEY GROVE2016"}]
[null,957,"HONEY GROVE","C",2020,1638,1817,6333608,{"$f":"IF(tbl_twdbdata[[#This Row],[Year]]=2016,0,tbl_twdbdata[[#This Row],[effsave]]-0.6*SUMIFS(tbl_twdbdata[effsave],tbl_twdbdata[Year],2020,tbl_twdbdata[utility],tbl_twdbdata[[#This Row],[utility]]))","v":2533443.2000000002},684,9,105,0,33083689,5124281,9156549,0,1734894,10142847,{"$f":"tbl_twdbdata[[#This Row],[utility]]&tbl_twdbdata[[#This Row],[Year]]","v":"HONEY GROVE2020"}]
[null,957,"HONEY GROVE","C",2030,1638,1828,9447835,{"$f":"IF(tbl_twdbdata[[#This Row],[Year]]=2016,0,tbl_twdbdata[[#This Row],[effsave]]-0.6*SUMIFS(tbl_twdbdata[effsave],tbl_twdbdata[Year],2020,tbl_twdbdata[utility],tbl_twdbdata[[#This Row],[utility]]))","v":5647670.2000000002},688,9,105,0,33283976,5155303,9211982,0,1745397,10204251,{"$f":"tbl_twdbdata[[#This Row],[utility]]&tbl_twdbdata[[#This Row],[Year]]","v":"HONEY GROVE2030"}]
[null,957,"HONEY GROVE","C",2040,1638,1828,11716383,{"$f":"IF(tbl_twdbdata[[#This Row],[Year]]=2016,0,tbl_twdbdata[[#This Row],[effsave]]-0.6*SUMIFS(tbl_twdbdata[effsave],tbl_twdbdata[Year],2020,tbl_twdbdata[utility],tbl_twdbdata[[#This Row],[utility]]))","v":7916218.2000000002},688,9,105,0,33283976,5155303,9211982,0,1745397,10204251,{"$f":"tbl_twdbdata[[#This Row],[utility]]&tbl_twdbdata[[#This Row],[Year]]","v":"HONEY GROVE2040"}]
[null,957,"HONEY GROVE","C",2050,1638,1828,12510375,{"$f":"IF(tbl_twdbdata[[#This Row],[Year]]=2016,0,tbl_twdbdata[[#This Row],[effsave]]-0.6*SUMIFS(tbl_twdbdata[effsave],tbl_twdbdata[Year],2020,tbl_twdbdata[utility],tbl_twdbdata[[#This Row],[utility]]))","v":8710210.1999999993},688,9,105,0,33283976,5155303,9211982,0,1745397,10204251,{"$f":"tbl_twdbdata[[#This Row],[utility]]&tbl_twdbdata[[#This Row],[Year]]","v":"HONEY GROVE2050"}]
[null,957,"HONEY GROVE","C",2060,1638,1828,12717213,{"$f":"IF(tbl_twdbdata[[#This Row],[Year]]=2016,0,tbl_twdbdata[[#This Row],[effsave]]-0.6*SUMIFS(tbl_twdbdata[effsave],tbl_twdbdata[Year],2020,tbl_twdbdata[utility],tbl_twdbdata[[#This Row],[utility]]))","v":8917048.1999999993},688,9,105,0,33283976,5155303,9211982,0,1745397,10204251,{"$f":"tbl_twdbdata[[#This Row],[utility]]&tbl_twdbdata[[#This Row],[Year]]","v":"HONEY GROVE2060"}]
[null,957,"HONEY GROVE","C",2070,1638,1828,12717213,{"$f":"IF(tbl_twdbdata[[#This Row],[Year]]=2016,0,tbl_twdbdata[[#This Row],[effsave]]-0.6*SUMIFS(tbl_twdbdata[effsave],tbl_twdbdata[Year],2020,tbl_twdbdata[utility],tbl_twdbdata[[#This Row],[utility]]))","v":8917048.1999999993},688,9,105,0,33283976,5155303,9211982,0,1745397,10204251,{"$f":"tbl_twdbdata[[#This Row],[utility]]&tbl_twdbdata[[#This Row],[Year]]","v":"HONEY GROVE2070"}]
[null,75,"HORIZON REGIONAL MUD","E",2016,34387,34387,0,{"$f":"IF(tbl_twdbdata[[#This Row],[Year]]=2016,0,tbl_twdbdata[[#This Row],[effsave]]-0.6*SUMIFS(tbl_twdbdata[effsave],tbl_twdbdata[Year],2020,tbl_twdbdata[utility],tbl_twdbdata[[#This Row],[utility]]))","v":0},9669,0,156,0,867234500,0,477174400,0,null,null,{"$f":"tbl_twdbdata[[#This Row],[utility]]&tbl_twdbdata[[#This Row],[Year]]","v":"HORIZON REGIONAL MUD2016"}]
[null,75,"HORIZON REGIONAL MUD","E",2020,32247,52993,141393273,{"$f":"IF(tbl_twdbdata[[#This Row],[Year]]=2016,0,tbl_twdbdata[[#This Row],[effsave]]-0.6*SUMIFS(tbl_twdbdata[effsave],tbl_twdbdata[Year],2020,tbl_twdbdata[utility],tbl_twdbdata[[#This Row],[utility]]))","v":56557309.200000003},15890,0,257,0,1425166926,0,784162960,0,null,null,{"$f":"tbl_twdbdata[[#This Row],[utility]]&tbl_twdbdata[[#This Row],[Year]]","v":"HORIZON REGIONAL MUD2020"}]
[null,75,"HORIZON REGIONAL MUD","E",2030,32247,74830,252644788,{"$f":"IF(tbl_twdbdata[[#This Row],[Year]]=2016,0,tbl_twdbdata[[#This Row],[effsave]]-0.6*SUMIFS(tbl_twdbdata[effsave],tbl_twdbdata[Year],2020,tbl_twdbdata[utility],tbl_twdbdata[[#This Row],[utility]]))","v":167808824.19999999},22438,0,363,0,2012440154,0,1107295573,0,null,null,{"$f":"tbl_twdbdata[[#This Row],[utility]]&tbl_twdbdata[[#This Row],[Year]]","v":"HORIZON REGIONAL MUD2030"}]
[null,75,"HORIZON REGIONAL MUD","E",2040,32247,95108,345061335,{"$f":"IF(tbl_twdbdata[[#This Row],[Year]]=2016,0,tbl_twdbdata[[#This Row],[effsave]]-0.6*SUMIFS(tbl_twdbdata[effsave],tbl_twdbdata[Year],2020,tbl_twdbdata[utility],tbl_twdbdata[[#This Row],[utility]]))","v":260225371.19999999},28518,0,513,0,2557786425,0,1407358912,0,null,null,{"$f":"tbl_twdbdata[[#This Row],[utility]]&tbl_twdbdata[[#This Row],[Year]]","v":"HORIZON REGIONAL MUD2040"}]
[null,75,"HORIZON REGIONAL MUD","E",2050,32247,115207,432700211,{"$f":"IF(tbl_twdbdata[[#This Row],[Year]]=2016,0,tbl_twdbdata[[#This Row],[effsave]]-0.6*SUMIFS(tbl_twdbdata[effsave],tbl_twdbdata[Year],2020,tbl_twdbdata[utility],tbl_twdbdata[[#This Row],[utility]]))","v":347864247.19999999},34545,0,724,0,3098318760,0,1704773502,0,null,null,{"$f":"tbl_twdbdata[[#This Row],[utility]]&tbl_twdbdata[[#This Row],[Year]]","v":"HORIZON REGIONAL MUD2050"}]
[null,75,"HORIZON REGIONAL MUD","E",2060,32247,134239,512021106,{"$f":"IF(tbl_twdbdata[[#This Row],[Year]]=2016,0,tbl_twdbdata[[#This Row],[effsave]]-0.6*SUMIFS(tbl_twdbdata[effsave],tbl_twdbdata[Year],2020,tbl_twdbdata[utility],tbl_twdbdata[[#This Row],[utility]]))","v":427185142.19999999},40252,0,1022,0,3610155737,0,1986399178,0,null,null,{"$f":"tbl_twdbdata[[#This Row],[utility]]&tbl_twdbdata[[#This Row],[Year]]","v":"HORIZON REGIONAL MUD2060"}]
[null,75,"HORIZON REGIONAL MUD","E",2070,32247,152133,584160293,{"$f":"IF(tbl_twdbdata[[#This Row],[Year]]=2016,0,tbl_twdbdata[[#This Row],[effsave]]-0.6*SUMIFS(tbl_twdbdata[effsave],tbl_twdbdata[Year],2020,tbl_twdbdata[utility],tbl_twdbdata[[#This Row],[utility]]))","v":499324329.19999999},45618,0,1444,0,4091387918,0,2251185320,0,null,null,{"$f":"tbl_twdbdata[[#This Row],[utility]]&tbl_twdbdata[[#This Row],[Year]]","v":"HORIZON REGIONAL MUD2070"}]
[null,3127,"HORSESHOE BAY","K",2016,6814,6814,0,{"$f":"IF(tbl_twdbdata[[#This Row],[Year]]=2016,0,tbl_twdbdata[[#This Row],[effsave]]-0.6*SUMIFS(tbl_twdbdata[effsave],tbl_twdbdata[Year],2020,tbl_twdbdata[utility],tbl_twdbdata[[#This Row],[utility]]))","v":0},2345,776,90,0,423539850,41149210,22327000,0,null,null,{"$f":"tbl_twdbdata[[#This Row],[utility]]&tbl_twdbdata[[#This Row],[Year]]","v":"HORSESHOE BAY2016"}]
[null,3127,"HORSESHOE BAY","K",2020,5377,6125,21350219,{"$f":"IF(tbl_twdbdata[[#This Row],[Year]]=2016,0,tbl_twdbdata[[#This Row],[effsave]]-0.6*SUMIFS(tbl_twdbdata[effsave],tbl_twdbdata[Year],2020,tbl_twdbdata[utility],tbl_twdbdata[[#This Row],[utility]]))","v":8540087.5999999996},2671,884,102,0,482458914,46873519,25432932,0,null,null,{"$f":"tbl_twdbdata[[#This Row],[utility]]&tbl_twdbdata[[#This Row],[Year]]","v":"HORSESHOE BAY2020"}]
[null,3127,"HORSESHOE BAY","K",2030,5377,6800,32117080,{"$f":"IF(tbl_twdbdata[[#This Row],[Year]]=2016,0,tbl_twdbdata[[#This Row],[effsave]]-0.6*SUMIFS(tbl_twdbdata[effsave],tbl_twdbdata[Year],2020,tbl_twdbdata[utility],tbl_twdbdata[[#This Row],[utility]]))","v":19306948.600000001},2965,981,113,0,535627856,52039172,28235745,0,null,null,{"$f":"tbl_twdbdata[[#This Row],[utility]]&tbl_twdbdata[[#This Row],[Year]]","v":"HORSESHOE BAY2030"}]
[null,3127,"HORSESHOE BAY","K",2040,5377,7086,38537211,{"$f":"IF(tbl_twdbdata[[#This Row],[Year]]=2016,0,tbl_twdbdata[[#This Row],[effsave]]-0.6*SUMIFS(tbl_twdbdata[effsave],tbl_twdbdata[Year],2020,tbl_twdbdata[utility],tbl_twdbdata[[#This Row],[utility]]))","v":25727079.600000001},3090,1089,125,0,558155733,54227878,29423307,0,null,null,{"$f":"tbl_twdbdata[[#This Row],[utility]]&tbl_twdbdata[[#This Row],[Year]]","v":"HORSESHOE BAY2040"}]
[null,3127,"HORSESHOE BAY","K",2050,5377,7551,43849790,{"$f":"IF(tbl_twdbdata[[#This Row],[Year]]=2016,0,tbl_twdbdata[[#This Row],[effsave]]-0.6*SUMIFS(tbl_twdbdata[effsave],tbl_twdbdata[Year],2020,tbl_twdbdata[utility],tbl_twdbdata[[#This Row],[utility]]))","v":31039658.600000001},3293,1209,138,0,594783226,57786439,31354134,0,null,null,{"$f":"tbl_twdbdata[[#This Row],[utility]]&tbl_twdbdata[[#This Row],[Year]]","v":"HORSESHOE BAY2050"}]
[null,3127,"HORSESHOE BAY","K",2060,5377,7825,46183541,{"$f":"IF(tbl_twdbdata[[#This Row],[Year]]=2016,0,tbl_twdbdata[[#This Row],[effsave]]-0.6*SUMIFS(tbl_twdbdata[effsave],tbl_twdbdata[Year],2020,tbl_twdbdata[utility],tbl_twdbdata[[#This Row],[utility]]))","v":33373409.600000001},3412,1342,153,0,616365878,59883312,32491868,0,null,null,{"$f":"tbl_twdbdata[[#This Row],[utility]]&tbl_twdbdata[[#This Row],[Year]]","v":"HORSESHOE BAY2060"}]
[null,3127,"HORSESHOE BAY","K",2070,5377,8014,47533038,{"$f":"IF(tbl_twdbdata[[#This Row],[Year]]=2016,0,tbl_twdbdata[[#This Row],[effsave]]-0.6*SUMIFS(tbl_twdbdata[effsave],tbl_twdbdata[Year],2020,tbl_twdbdata[utility],tbl_twdbdata[[#This Row],[utility]]))","v":34722906.600000001},3494,1490,170,0,631253182,61329695,33276656,0,null,null,{"$f":"tbl_twdbdata[[#This Row],[utility]]&tbl_twdbdata[[#This Row],[Year]]","v":"HORSESHOE BAY2070"}]
[null,76,"HOUSTON","H",2016,2319603,2319603,0,{"$f":"IF(tbl_twdbdata[[#This Row],[Year]]=2016,0,tbl_twdbdata[[#This Row],[effsave]]-0.6*SUMIFS(tbl_twdbdata[effsave],tbl_twdbdata[Year],2020,tbl_twdbdata[utility],tbl_twdbdata[[#This Row],[utility]]))","v":0},402754,15792,44117,0,25043534400,25535451000,104599045000,0,2776847967,25104781988,{"$f":"tbl_twdbdata[[#This Row],[utility]]&tbl_twdbdata[[#This Row],[Year]]","v":"HOUSTON2016"}]
[null,76,"HOUSTON","H",2020,2264724,2204215,7361527046,{"$f":"IF(tbl_twdbdata[[#This Row],[Year]]=2016,0,tbl_twdbdata[[#This Row],[effsave]]-0.6*SUMIFS(tbl_twdbdata[effsave],tbl_twdbdata[Year],2020,tbl_twdbdata[utility],tbl_twdbdata[[#This Row],[utility]]))","v":2944610818.4000006},391993,15370,42938,0,24374420096,24853193646,101804362904,0,2702656015,24434031268,{"$f":"tbl_twdbdata[[#This Row],[utility]]&tbl_twdbdata[[#This Row],[Year]]","v":"HOUSTON2020"}]
[null,76,"HOUSTON","H",2030,2264724,2383505,11344530398,{"$f":"IF(tbl_twdbdata[[#This Row],[Year]]=2016,0,tbl_twdbdata[[#This Row],[effsave]]-0.6*SUMIFS(tbl_twdbdata[effsave],tbl_twdbdata[Year],2020,tbl_twdbdata[utility],tbl_twdbdata[[#This Row],[utility]]))","v":6927614170.4000006},423878,16620,46430,0,26357026048,26874742855,110085090612,0,2922489015,26421485970,{"$f":"tbl_twdbdata[[#This Row],[utility]]&tbl_twdbdata[[#This Row],[Year]]","v":"HOUSTON2030"}]
[null,76,"HOUSTON","H",2040,2264724,2557864,14760537892,{"$f":"IF(tbl_twdbdata[[#This Row],[Year]]=2016,0,tbl_twdbdata[[#This Row],[effsave]]-0.6*SUMIFS(tbl_twdbdata[effsave],tbl_twdbdata[Year],2020,tbl_twdbdata[utility],tbl_twdbdata[[#This Row],[utility]]))","v":10343621664.400002},454886,17972,50207,0,28285104531,28840693541,118138074060,0,3136275964,28354279848,{"$f":"tbl_twdbdata[[#This Row],[utility]]&tbl_twdbdata[[#This Row],[Year]]","v":"HOUSTON2040"}]
[null,76,"HOUSTON","H",2050,2264724,2733801,17192737799,{"$f":"IF(tbl_twdbdata[[#This Row],[Year]]=2016,0,tbl_twdbdata[[#This Row],[effsave]]-0.6*SUMIFS(tbl_twdbdata[effsave],tbl_twdbdata[Year],2020,tbl_twdbdata[utility],tbl_twdbdata[[#This Row],[utility]]))","v":12775821571.400002},486174,19434,54291,0,30230632689,30824436656,126263939366,0,3351997748,30304566077,{"$f":"tbl_twdbdata[[#This Row],[utility]]&tbl_twdbdata[[#This Row],[Year]]","v":"HOUSTON2050"}]
[null,76,"HOUSTON","H",2060,2264724,2913176,18650444070,{"$f":"IF(tbl_twdbdata[[#This Row],[Year]]=2016,0,tbl_twdbdata[[#This Row],[effsave]]-0.6*SUMIFS(tbl_twdbdata[effsave],tbl_twdbdata[Year],2020,tbl_twdbdata[utility],tbl_twdbdata[[#This Row],[utility]]))","v":14233527842.400002},518074,21015,58707,0,32214178579,32846944265,134548592903,0,3571934969,32292963016,{"$f":"tbl_twdbdata[[#This Row],[utility]]&tbl_twdbdata[[#This Row],[Year]]","v":"HOUSTON2060"}]
[null,76,"HOUSTON","H",2070,2264724,3099778,19924288062,{"$f":"IF(tbl_twdbdata[[#This Row],[Year]]=2016,0,tbl_twdbdata[[#This Row],[effsave]]-0.6*SUMIFS(tbl_twdbdata[effsave],tbl_twdbdata[Year],2020,tbl_twdbdata[utility],tbl_twdbdata[[#This Row],[utility]]))","v":15507371834.400002},551259,22724,63482,0,34277641326,34950938495,143166960959,0,3800733438,34361472260,{"$f":"tbl_twdbdata[[#This Row],[utility]]&tbl_twdbdata[[#This Row],[Year]]","v":"HOUSTON2070"}]
[null,961,"HUBBARD","G",2016,1476,1476,0,{"$f":"IF(tbl_twdbdata[[#This Row],[Year]]=2016,0,tbl_twdbdata[[#This Row],[effsave]]-0.6*SUMIFS(tbl_twdbdata[effsave],tbl_twdbdata[Year],2020,tbl_twdbdata[utility],tbl_twdbdata[[#This Row],[utility]]))","v":0},519,7,70,0,28034500,2722400,6426300,0,537729,5297430,{"$f":"tbl_twdbdata[[#This Row],[utility]]&tbl_twdbdata[[#This Row],[Year]]","v":"HUBBARD2016"}]
[null,961,"HUBBARD","G",2020,1469,1585,5947237,{"$f":"IF(tbl_twdbdata[[#This Row],[Year]]=2016,0,tbl_twdbdata[[#This Row],[effsave]]-0.6*SUMIFS(tbl_twdbdata[effsave],tbl_twdbdata[Year],2020,tbl_twdbdata[utility],tbl_twdbdata[[#This Row],[utility]]))","v":2378894.8000000003},560,8,76,0,30248252,2937375,6933755,0,580191,5715743,{"$f":"tbl_twdbdata[[#This Row],[utility]]&tbl_twdbdata[[#This Row],[Year]]","v":"HUBBARD2020"}]
[null,961,"HUBBARD","G",2030,1469,1687,9162434,{"$f":"IF(tbl_twdbdata[[#This Row],[Year]]=2016,0,tbl_twdbdata[[#This Row],[effsave]]-0.6*SUMIFS(tbl_twdbdata[effsave],tbl_twdbdata[Year],2020,tbl_twdbdata[utility],tbl_twdbdata[[#This Row],[utility]]))","v":5594091.8000000007},596,9,81,0,32194827,3126405,7379966,0,617528,6083570,{"$f":"tbl_twdbdata[[#This Row],[utility]]&tbl_twdbdata[[#This Row],[Year]]","v":"HUBBARD2030"}]
[null,961,"HUBBARD","G",2040,1469,1756,11716383,{"$f":"IF(tbl_twdbdata[[#This Row],[Year]]=2016,0,tbl_twdbdata[[#This Row],[effsave]]-0.6*SUMIFS(tbl_twdbdata[effsave],tbl_twdbdata[Year],2020,tbl_twdbdata[utility],tbl_twdbdata[[#This Row],[utility]]))","v":8148040.8000000007},620,10,86,0,33511628,3254278,7681814,0,642786,6332394,{"$f":"tbl_twdbdata[[#This Row],[utility]]&tbl_twdbdata[[#This Row],[Year]]","v":"HUBBARD2040"}]
[null,961,"HUBBARD","G",2050,1469,1827,12410172,{"$f":"IF(tbl_twdbdata[[#This Row],[Year]]=2016,0,tbl_twdbdata[[#This Row],[effsave]]-0.6*SUMIFS(tbl_twdbdata[effsave],tbl_twdbdata[Year],2020,tbl_twdbdata[utility],tbl_twdbdata[[#This Row],[utility]]))","v":8841829.8000000007},645,11,92,0,34866597,3385858,7992412,0,668776,6588430,{"$f":"tbl_twdbdata[[#This Row],[utility]]&tbl_twdbdata[[#This Row],[Year]]","v":"HUBBARD2050"}]
[null,961,"HUBBARD","G",2060,1469,1882,12989846,{"$f":"IF(tbl_twdbdata[[#This Row],[Year]]=2016,0,tbl_twdbdata[[#This Row],[effsave]]-0.6*SUMIFS(tbl_twdbdata[effsave],tbl_twdbdata[Year],2020,tbl_twdbdata[utility],tbl_twdbdata[[#This Row],[utility]]))","v":9421503.8000000007},664,12,98,0,35916221,3487786,8233016,0,688909,6786768,{"$f":"tbl_twdbdata[[#This Row],[utility]]&tbl_twdbdata[[#This Row],[Year]]","v":"HUBBARD2060"}]
[null,961,"HUBBARD","G",2070,1469,1912,13224826,{"$f":"IF(tbl_twdbdata[[#This Row],[Year]]=2016,0,tbl_twdbdata[[#This Row],[effsave]]-0.6*SUMIFS(tbl_twdbdata[effsave],tbl_twdbdata[Year],2020,tbl_twdbdata[utility],tbl_twdbdata[[#This Row],[utility]]))","v":9656483.8000000007},675,13,104,0,36488743,3543383,8364254,0,699891,6894952,{"$f":"tbl_twdbdata[[#This Row],[utility]]&tbl_twdbdata[[#This Row],[Year]]","v":"HUBBARD2070"}]
[null,966,"HUMBLE","H",2016,15616,15616,0,{"$f":"IF(tbl_twdbdata[[#This Row],[Year]]=2016,0,tbl_twdbdata[[#This Row],[effsave]]-0.6*SUMIFS(tbl_twdbdata[effsave],tbl_twdbdata[Year],2020,tbl_twdbdata[utility],tbl_twdbdata[[#This Row],[utility]]))","v":0},3470,3141,1135,0,259345000,199523000,427085000,0,null,null,{"$f":"tbl_twdbdata[[#This Row],[utility]]&tbl_twdbdata[[#This Row],[Year]]","v":"HUMBLE2016"}]
[null,966,"HUMBLE","H",2020,15616,17428,63039690,{"$f":"IF(tbl_twdbdata[[#This Row],[Year]]=2016,0,tbl_twdbdata[[#This Row],[effsave]]-0.6*SUMIFS(tbl_twdbdata[effsave],tbl_twdbdata[Year],2020,tbl_twdbdata[utility],tbl_twdbdata[[#This Row],[utility]]))","v":25215876},3832,3468,1253,0,286375509,220318497,471598389,0,null,null,{"$f":"tbl_twdbdata[[#This Row],[utility]]&tbl_twdbdata[[#This Row],[Year]]","v":"HUMBLE2020"}]
[null,966,"HUMBLE","H",2030,15616,21152,110788888,{"$f":"IF(tbl_twdbdata[[#This Row],[Year]]=2016,0,tbl_twdbdata[[#This Row],[effsave]]-0.6*SUMIFS(tbl_twdbdata[effsave],tbl_twdbdata[Year],2020,tbl_twdbdata[utility],tbl_twdbdata[[#This Row],[utility]]))","v":72965074},4651,4209,1521,0,347567981,267395963,572369126,0,null,null,{"$f":"tbl_twdbdata[[#This Row],[utility]]&tbl_twdbdata[[#This Row],[Year]]","v":"HUMBLE2030"}]
[null,966,"HUMBLE","H",2040,15616,23856,147068662,{"$f":"IF(tbl_twdbdata[[#This Row],[Year]]=2016,0,tbl_twdbdata[[#This Row],[effsave]]-0.6*SUMIFS(tbl_twdbdata[effsave],tbl_twdbdata[Year],2020,tbl_twdbdata[utility],tbl_twdbdata[[#This Row],[utility]]))","v":109244848},5246,5108,1846,0,391999894,301578957,645538855,0,null,null,{"$f":"tbl_twdbdata[[#This Row],[utility]]&tbl_twdbdata[[#This Row],[Year]]","v":"HUMBLE2040"}]
[null,966,"HUMBLE","H",2050,15616,25864,170776112,{"$f":"IF(tbl_twdbdata[[#This Row],[Year]]=2016,0,tbl_twdbdata[[#This Row],[effsave]]-0.6*SUMIFS(tbl_twdbdata[effsave],tbl_twdbdata[Year],2020,tbl_twdbdata[utility],tbl_twdbdata[[#This Row],[utility]]))","v":132952298},5688,6199,2240,0,424995190,326963370,699874956,0,null,null,{"$f":"tbl_twdbdata[[#This Row],[utility]]&tbl_twdbdata[[#This Row],[Year]]","v":"HUMBLE2050"}]
[null,966,"HUMBLE","H",2060,15616,27358,183037331,{"$f":"IF(tbl_twdbdata[[#This Row],[Year]]=2016,0,tbl_twdbdata[[#This Row],[effsave]]-0.6*SUMIFS(tbl_twdbdata[effsave],tbl_twdbdata[Year],2020,tbl_twdbdata[utility],tbl_twdbdata[[#This Row],[utility]]))","v":145213517},6017,7524,2719,0,449544479,345849980,740302314,0,null,null,{"$f":"tbl_twdbdata[[#This Row],[utility]]&tbl_twdbdata[[#This Row],[Year]]","v":"HUMBLE2060"}]
[null,966,"HUMBLE","H",2070,15616,28472,190906184,{"$f":"IF(tbl_twdbdata[[#This Row],[Year]]=2016,0,tbl_twdbdata[[#This Row],[effsave]]-0.6*SUMIFS(tbl_twdbdata[effsave],tbl_twdbdata[Year],2020,tbl_twdbdata[utility],tbl_twdbdata[[#This Row],[utility]]))","v":153082370},6262,9132,3300,0,467849638,359932767,770446944,0,null,null,{"$f":"tbl_twdbdata[[#This Row],[utility]]&tbl_twdbdata[[#This Row],[Year]]","v":"HUMBLE2070"}]
[null,78,"HUNTSVILLE","H",2016,8115,40938,0,{"$f":"IF(tbl_twdbdata[[#This Row],[Year]]=2016,0,tbl_twdbdata[[#This Row],[effsave]]-0.6*SUMIFS(tbl_twdbdata[effsave],tbl_twdbdata[Year],2020,tbl_twdbdata[utility],tbl_twdbdata[[#This Row],[utility]]))","v":0},7803,312,1491,0,503598200,293938700,2991562800,0,668220964,195685336,{"$f":"tbl_twdbdata[[#This Row],[utility]]&tbl_twdbdata[[#This Row],[Year]]","v":"HUNTSVILLE2016"}]
[null,78,"HUNTSVILLE","H",2020,8115,40605,135758757,{"$f":"IF(tbl_twdbdata[[#This Row],[Year]]=2016,0,tbl_twdbdata[[#This Row],[effsave]]-0.6*SUMIFS(tbl_twdbdata[effsave],tbl_twdbdata[Year],2020,tbl_twdbdata[utility],tbl_twdbdata[[#This Row],[utility]]))","v":54303502.799999997},7740,309,1479,0,499501805,291547729,2967228675,0,662785486,194093582,{"$f":"tbl_twdbdata[[#This Row],[utility]]&tbl_twdbdata[[#This Row],[Year]]","v":"HUNTSVILLE2020"}]
[null,78,"HUNTSVILLE","H",2030,8115,42554,202540018,{"$f":"IF(tbl_twdbdata[[#This Row],[Year]]=2016,0,tbl_twdbdata[[#This Row],[effsave]]-0.6*SUMIFS(tbl_twdbdata[effsave],tbl_twdbdata[Year],2020,tbl_twdbdata[utility],tbl_twdbdata[[#This Row],[utility]]))","v":121084763.8},8112,324,1550,0,523477400,305541733,3109652728,0,694598536,203409883,{"$f":"tbl_twdbdata[[#This Row],[utility]]&tbl_twdbdata[[#This Row],[Year]]","v":"HUNTSVILLE2030"}]
[null,78,"HUNTSVILLE","H",2040,8115,43959,255757858,{"$f":"IF(tbl_twdbdata[[#This Row],[Year]]=2016,0,tbl_twdbdata[[#This Row],[effsave]]-0.6*SUMIFS(tbl_twdbdata[effsave],tbl_twdbdata[Year],2020,tbl_twdbdata[utility],tbl_twdbdata[[#This Row],[utility]]))","v":174302603.80000001},8380,340,1624,0,540760987,315629765,3212323736,0,717532007,210125841,{"$f":"tbl_twdbdata[[#This Row],[utility]]&tbl_twdbdata[[#This Row],[Year]]","v":"HUNTSVILLE2040"}]
[null,78,"HUNTSVILLE","H",2050,8115,45276,288869935,{"$f":"IF(tbl_twdbdata[[#This Row],[Year]]=2016,0,tbl_twdbdata[[#This Row],[effsave]]-0.6*SUMIFS(tbl_twdbdata[effsave],tbl_twdbdata[Year],2020,tbl_twdbdata[utility],tbl_twdbdata[[#This Row],[utility]]))","v":207414680.80000001},8631,356,1702,0,556962043,325085949,3308564104,0,739029076,216421156,{"$f":"tbl_twdbdata[[#This Row],[utility]]&tbl_twdbdata[[#This Row],[Year]]","v":"HUNTSVILLE2050"}]
[null,78,"HUNTSVILLE","H",2060,8115,46301,300479600,{"$f":"IF(tbl_twdbdata[[#This Row],[Year]]=2016,0,tbl_twdbdata[[#This Row],[effsave]]-0.6*SUMIFS(tbl_twdbdata[effsave],tbl_twdbdata[Year],2020,tbl_twdbdata[utility],tbl_twdbdata[[#This Row],[utility]]))","v":219024345.80000001},8826,373,1783,0,569571065,332445546,3383466441,0,755759900,221320698,{"$f":"tbl_twdbdata[[#This Row],[utility]]&tbl_twdbdata[[#This Row],[Year]]","v":"HUNTSVILLE2060"}]
[null,78,"HUNTSVILLE","H",2070,8115,47130,306375635,{"$f":"IF(tbl_twdbdata[[#This Row],[Year]]=2016,0,tbl_twdbdata[[#This Row],[effsave]]-0.6*SUMIFS(tbl_twdbdata[effsave],tbl_twdbdata[Year],2020,tbl_twdbdata[utility],tbl_twdbdata[[#This Row],[utility]]))","v":224920380.80000001},8984,391,1868,0,579768996,338397844,3444045990,0,769291464,225283352,{"$f":"tbl_twdbdata[[#This Row],[utility]]&tbl_twdbdata[[#This Row],[Year]]","v":"HUNTSVILLE2070"}]
[null,969,"HURST","C",2016,37337,37337,0,{"$f":"IF(tbl_twdbdata[[#This Row],[Year]]=2016,0,tbl_twdbdata[[#This Row],[effsave]]-0.6*SUMIFS(tbl_twdbdata[effsave],tbl_twdbdata[Year],2020,tbl_twdbdata[utility],tbl_twdbdata[[#This Row],[utility]]))","v":0},11118,3403,2208,0,1024978000,232148000,485759000,0,22668294,47910226,{"$f":"tbl_twdbdata[[#This Row],[utility]]&tbl_twdbdata[[#This Row],[Year]]","v":"HURST2016"}]
[null,969,"HURST","C",2020,37337,39229,137744788,{"$f":"IF(tbl_twdbdata[[#This Row],[Year]]=2016,0,tbl_twdbdata[[#This Row],[effsave]]-0.6*SUMIFS(tbl_twdbdata[effsave],tbl_twdbdata[Year],2020,tbl_twdbdata[utility],tbl_twdbdata[[#This Row],[utility]]))","v":55097915.200000003},11267,3449,2237,0,1038720278,235260498,492271760,0,22972217,48552577,{"$f":"tbl_twdbdata[[#This Row],[utility]]&tbl_twdbdata[[#This Row],[Year]]","v":"HURST2020"}]
[null,969,"HURST","C",2030,37337,40209,198570136,{"$f":"IF(tbl_twdbdata[[#This Row],[Year]]=2016,0,tbl_twdbdata[[#This Row],[effsave]]-0.6*SUMIFS(tbl_twdbdata[effsave],tbl_twdbdata[Year],2020,tbl_twdbdata[utility],tbl_twdbdata[[#This Row],[utility]]))","v":115923263.2},11548,3535,2292,0,1064669088,241137663,504569456,0,23546098,49765494,{"$f":"tbl_twdbdata[[#This Row],[utility]]&tbl_twdbdata[[#This Row],[Year]]","v":"HURST2030"}]
[null,969,"HURST","C",2040,37337,40209,242892517,{"$f":"IF(tbl_twdbdata[[#This Row],[Year]]=2016,0,tbl_twdbdata[[#This Row],[effsave]]-0.6*SUMIFS(tbl_twdbdata[effsave],tbl_twdbdata[Year],2020,tbl_twdbdata[utility],tbl_twdbdata[[#This Row],[utility]]))","v":160245644.19999999},11548,3623,2349,0,1064669088,241137663,504569456,0,23546098,49765494,{"$f":"tbl_twdbdata[[#This Row],[utility]]&tbl_twdbdata[[#This Row],[Year]]","v":"HURST2040"}]
[null,969,"HURST","C",2050,37337,40209,267255150,{"$f":"IF(tbl_twdbdata[[#This Row],[Year]]=2016,0,tbl_twdbdata[[#This Row],[effsave]]-0.6*SUMIFS(tbl_twdbdata[effsave],tbl_twdbdata[Year],2020,tbl_twdbdata[utility],tbl_twdbdata[[#This Row],[utility]]))","v":184608277.19999999},11548,3714,2408,0,1064669088,241137663,504569456,0,23546098,49765494,{"$f":"tbl_twdbdata[[#This Row],[utility]]&tbl_twdbdata[[#This Row],[Year]]","v":"HURST2050"}]
[null,969,"HURST","C",2060,37337,40209,271658035,{"$f":"IF(tbl_twdbdata[[#This Row],[Year]]=2016,0,tbl_twdbdata[[#This Row],[effsave]]-0.6*SUMIFS(tbl_twdbdata[effsave],tbl_twdbdata[Year],2020,tbl_twdbdata[utility],tbl_twdbdata[[#This Row],[utility]]))","v":189011162.19999999},11548,3807,2468,0,1064669088,241137663,504569456,0,23546098,49765494,{"$f":"tbl_twdbdata[[#This Row],[utility]]&tbl_twdbdata[[#This Row],[Year]]","v":"HURST2060"}]
[null,969,"HURST","C",2070,37337,40209,271804798,{"$f":"IF(tbl_twdbdata[[#This Row],[Year]]=2016,0,tbl_twdbdata[[#This Row],[effsave]]-0.6*SUMIFS(tbl_twdbdata[effsave],tbl_twdbdata[Year],2020,tbl_twdbdata[utility],tbl_twdbdata[[#This Row],[utility]]))","v":189157925.19999999},11548,3902,2529,0,1064669088,241137663,504569456,0,23546098,49765494,{"$f":"tbl_twdbdata[[#This Row],[utility]]&tbl_twdbdata[[#This Row],[Year]]","v":"HURST2070"}]
[null,971,"HUTTO","G",2016,15178,15178,0,{"$f":"IF(tbl_twdbdata[[#This Row],[Year]]=2016,0,tbl_twdbdata[[#This Row],[effsave]]-0.6*SUMIFS(tbl_twdbdata[effsave],tbl_twdbdata[Year],2020,tbl_twdbdata[utility],tbl_twdbdata[[#This Row],[utility]]))","v":0},4747,8,222,0,315687209,549530,75444988,0,5555498,47202654,{"$f":"tbl_twdbdata[[#This Row],[utility]]&tbl_twdbdata[[#This Row],[Year]]","v":"HUTTO2016"}]
[null,971,"HUTTO","G",2020,14713,17326,39335218,{"$f":"IF(tbl_twdbdata[[#This Row],[Year]]=2016,0,tbl_twdbdata[[#This Row],[effsave]]-0.6*SUMIFS(tbl_twdbdata[effsave],tbl_twdbdata[Year],2020,tbl_twdbdata[utility],tbl_twdbdata[[#This Row],[utility]]))","v":15734087.199999999},5590,9,262,0,371752639,647125,88843870,0,6542144,55585753,{"$f":"tbl_twdbdata[[#This Row],[utility]]&tbl_twdbdata[[#This Row],[Year]]","v":"HUTTO2020"}]
[null,971,"HUTTO","G",2030,14713,35646,98101357,{"$f":"IF(tbl_twdbdata[[#This Row],[Year]]=2016,0,tbl_twdbdata[[#This Row],[effsave]]-0.6*SUMIFS(tbl_twdbdata[effsave],tbl_twdbdata[Year],2020,tbl_twdbdata[utility],tbl_twdbdata[[#This Row],[utility]]))","v":74500226.200000003},11501,19,539,0,764832885,1331376,182784752,0,13459614,114360484,{"$f":"tbl_twdbdata[[#This Row],[utility]]&tbl_twdbdata[[#This Row],[Year]]","v":"HUTTO2030"}]
[null,971,"HUTTO","G",2040,14713,37963,109604875,{"$f":"IF(tbl_twdbdata[[#This Row],[Year]]=2016,0,tbl_twdbdata[[#This Row],[effsave]]-0.6*SUMIFS(tbl_twdbdata[effsave],tbl_twdbdata[Year],2020,tbl_twdbdata[utility],tbl_twdbdata[[#This Row],[utility]]))","v":86003744.200000003},12249,39,1109,0,814547237,1417916,194665812,0,14334493,121793948,{"$f":"tbl_twdbdata[[#This Row],[utility]]&tbl_twdbdata[[#This Row],[Year]]","v":"HUTTO2040"}]
[null,971,"HUTTO","G",2050,14713,56194,166342669,{"$f":"IF(tbl_twdbdata[[#This Row],[Year]]=2016,0,tbl_twdbdata[[#This Row],[effsave]]-0.6*SUMIFS(tbl_twdbdata[effsave],tbl_twdbdata[Year],2020,tbl_twdbdata[utility],tbl_twdbdata[[#This Row],[utility]]))","v":142741538.19999999},18131,80,2281,0,1205717868,2098843,288150321,0,21218357,180283147,{"$f":"tbl_twdbdata[[#This Row],[utility]]&tbl_twdbdata[[#This Row],[Year]]","v":"HUTTO2050"}]
[null,971,"HUTTO","G",2060,14713,83181,250175176,{"$f":"IF(tbl_twdbdata[[#This Row],[Year]]=2016,0,tbl_twdbdata[[#This Row],[effsave]]-0.6*SUMIFS(tbl_twdbdata[effsave],tbl_twdbdata[Year],2020,tbl_twdbdata[utility],tbl_twdbdata[[#This Row],[utility]]))","v":226574045.19999999},26838,165,4693,0,1784760259,3106806,426533649,0,31408409,266863588,{"$f":"tbl_twdbdata[[#This Row],[utility]]&tbl_twdbdata[[#This Row],[Year]]","v":"HUTTO2060"}]
[null,971,"HUTTO","G",2070,14713,101202,306960846,{"$f":"IF(tbl_twdbdata[[#This Row],[Year]]=2016,0,tbl_twdbdata[[#This Row],[effsave]]-0.6*SUMIFS(tbl_twdbdata[effsave],tbl_twdbdata[Year],2020,tbl_twdbdata[utility],tbl_twdbdata[[#This Row],[utility]]))","v":283359715.19999999},32652,339,9655,0,2171425058,3779889,518941325,0,38212979,324679059,{"$f":"tbl_twdbdata[[#This Row],[utility]]&tbl_twdbdata[[#This Row],[Year]]","v":"HUTTO2070"}]
[null,979,"IRAAN","F",2016,1229,1229,0,{"$f":"IF(tbl_twdbdata[[#This Row],[Year]]=2016,0,tbl_twdbdata[[#This Row],[effsave]]-0.6*SUMIFS(tbl_twdbdata[effsave],tbl_twdbdata[Year],2020,tbl_twdbdata[utility],tbl_twdbdata[[#This Row],[utility]]))","v":0},492,0,80,0,53419000,0,30236000,0,null,null,{"$f":"tbl_twdbdata[[#This Row],[utility]]&tbl_twdbdata[[#This Row],[Year]]","v":"IRAAN2016"}]
[null,979,"IRAAN","F",2020,1162,1347,5009964,{"$f":"IF(tbl_twdbdata[[#This Row],[Year]]=2016,0,tbl_twdbdata[[#This Row],[effsave]]-0.6*SUMIFS(tbl_twdbdata[effsave],tbl_twdbdata[Year],2020,tbl_twdbdata[utility],tbl_twdbdata[[#This Row],[utility]]))","v":2003985.6},570,0,93,0,61923746,0,35049821,0,null,null,{"$f":"tbl_twdbdata[[#This Row],[utility]]&tbl_twdbdata[[#This Row],[Year]]","v":"IRAAN2020"}]
[null,979,"IRAAN","F",2030,1162,1447,7700500,{"$f":"IF(tbl_twdbdata[[#This Row],[Year]]=2016,0,tbl_twdbdata[[#This Row],[effsave]]-0.6*SUMIFS(tbl_twdbdata[effsave],tbl_twdbdata[Year],2020,tbl_twdbdata[utility],tbl_twdbdata[[#This Row],[utility]]))","v":4694521.5999999996},612,0,100,0,66520906,0,37651886,0,null,null,{"$f":"tbl_twdbdata[[#This Row],[utility]]&tbl_twdbdata[[#This Row],[Year]]","v":"IRAAN2030"}]
[null,979,"IRAAN","F",2040,1162,1546,10055648,{"$f":"IF(tbl_twdbdata[[#This Row],[Year]]=2016,0,tbl_twdbdata[[#This Row],[effsave]]-0.6*SUMIFS(tbl_twdbdata[effsave],tbl_twdbdata[Year],2020,tbl_twdbdata[utility],tbl_twdbdata[[#This Row],[utility]]))","v":7049669.5999999996},654,0,108,0,71072094,0,40227931,0,null,null,{"$f":"tbl_twdbdata[[#This Row],[utility]]&tbl_twdbdata[[#This Row],[Year]]","v":"IRAAN2040"}]
[null,979,"IRAAN","F",2050,1162,1636,11429260,{"$f":"IF(tbl_twdbdata[[#This Row],[Year]]=2016,0,tbl_twdbdata[[#This Row],[effsave]]-0.6*SUMIFS(tbl_twdbdata[effsave],tbl_twdbdata[Year],2020,tbl_twdbdata[utility],tbl_twdbdata[[#This Row],[utility]]))","v":8423281.5999999996},692,0,116,0,75209538,0,42569790,0,null,null,{"$f":"tbl_twdbdata[[#This Row],[utility]]&tbl_twdbdata[[#This Row],[Year]]","v":"IRAAN2050"}]
[null,979,"IRAAN","F",2060,1162,1717,12176878,{"$f":"IF(tbl_twdbdata[[#This Row],[Year]]=2016,0,tbl_twdbdata[[#This Row],[effsave]]-0.6*SUMIFS(tbl_twdbdata[effsave],tbl_twdbdata[Year],2020,tbl_twdbdata[utility],tbl_twdbdata[[#This Row],[utility]]))","v":9170899.5999999996},726,0,124,0,78933238,0,44677463,0,null,null,{"$f":"tbl_twdbdata[[#This Row],[utility]]&tbl_twdbdata[[#This Row],[Year]]","v":"IRAAN2060"}]
[null,979,"IRAAN","F",2070,1162,1790,12733792,{"$f":"IF(tbl_twdbdata[[#This Row],[Year]]=2016,0,tbl_twdbdata[[#This Row],[effsave]]-0.6*SUMIFS(tbl_twdbdata[effsave],tbl_twdbdata[Year],2020,tbl_twdbdata[utility],tbl_twdbdata[[#This Row],[utility]]))","v":9727813.5999999996},757,0,133,0,82289165,0,46576971,0,null,null,{"$f":"tbl_twdbdata[[#This Row],[utility]]&tbl_twdbdata[[#This Row],[Year]]","v":"IRAAN2070"}]
[null,1219,"IRVING","C",2016,231040,231040,0,{"$f":"IF(tbl_twdbdata[[#This Row],[Year]]=2016,0,tbl_twdbdata[[#This Row],[effsave]]-0.6*SUMIFS(tbl_twdbdata[effsave],tbl_twdbdata[Year],2020,tbl_twdbdata[utility],tbl_twdbdata[[#This Row],[utility]]))","v":0},42609,53551,6671,0,3826675000,3613344000,4476532000,0,228907555,1291470657,{"$f":"tbl_twdbdata[[#This Row],[utility]]&tbl_twdbdata[[#This Row],[Year]]","v":"IRVING2016"}]
[null,1219,"IRVING","C",2020,230995,259186,928054351,{"$f":"IF(tbl_twdbdata[[#This Row],[Year]]=2016,0,tbl_twdbdata[[#This Row],[effsave]]-0.6*SUMIFS(tbl_twdbdata[effsave],tbl_twdbdata[Year],2020,tbl_twdbdata[utility],tbl_twdbdata[[#This Row],[utility]]))","v":371221740.39999998},47809,60086,7486,0,4293688550,4054322293,5022855140,0,256843800,1449083806,{"$f":"tbl_twdbdata[[#This Row],[utility]]&tbl_twdbdata[[#This Row],[Year]]","v":"IRVING2020"}]
[null,1219,"IRVING","C",2030,230995,294623,1425945858,{"$f":"IF(tbl_twdbdata[[#This Row],[Year]]=2016,0,tbl_twdbdata[[#This Row],[effsave]]-0.6*SUMIFS(tbl_twdbdata[effsave],tbl_twdbdata[Year],2020,tbl_twdbdata[utility],tbl_twdbdata[[#This Row],[utility]]))","v":869113247.39999998},54346,68301,8509,0,4880739707,4608646288,5709601020,0,291960565,1647208638,{"$f":"tbl_twdbdata[[#This Row],[utility]]&tbl_twdbdata[[#This Row],[Year]]","v":"IRVING2030"}]
[null,1219,"IRVING","C",2040,230995,301541,1697163210,{"$f":"IF(tbl_twdbdata[[#This Row],[Year]]=2016,0,tbl_twdbdata[[#This Row],[effsave]]-0.6*SUMIFS(tbl_twdbdata[effsave],tbl_twdbdata[Year],2020,tbl_twdbdata[utility],tbl_twdbdata[[#This Row],[utility]]))","v":1140330599.4000001},55622,77639,9673,0,4995343649,4716861244,5843667334,0,298816049,1685886506,{"$f":"tbl_twdbdata[[#This Row],[utility]]&tbl_twdbdata[[#This Row],[Year]]","v":"IRVING2040"}]
[null,1219,"IRVING","C",2050,230995,301541,1828137544,{"$f":"IF(tbl_twdbdata[[#This Row],[Year]]=2016,0,tbl_twdbdata[[#This Row],[effsave]]-0.6*SUMIFS(tbl_twdbdata[effsave],tbl_twdbdata[Year],2020,tbl_twdbdata[utility],tbl_twdbdata[[#This Row],[utility]]))","v":1271304933.4000001},55622,88254,10996,0,4995343649,4716861244,5843667334,0,298816049,1685886506,{"$f":"tbl_twdbdata[[#This Row],[utility]]&tbl_twdbdata[[#This Row],[Year]]","v":"IRVING2050"}]
[null,1219,"IRVING","C",2060,230995,301541,1855653160,{"$f":"IF(tbl_twdbdata[[#This Row],[Year]]=2016,0,tbl_twdbdata[[#This Row],[effsave]]-0.6*SUMIFS(tbl_twdbdata[effsave],tbl_twdbdata[Year],2020,tbl_twdbdata[utility],tbl_twdbdata[[#This Row],[utility]]))","v":1298820549.4000001},55622,100320,12500,0,4995343649,4716861244,5843667334,0,298816049,1685886506,{"$f":"tbl_twdbdata[[#This Row],[utility]]&tbl_twdbdata[[#This Row],[Year]]","v":"IRVING2060"}]
[null,1219,"IRVING","C",2070,230995,301541,1858955034,{"$f":"IF(tbl_twdbdata[[#This Row],[Year]]=2016,0,tbl_twdbdata[[#This Row],[effsave]]-0.6*SUMIFS(tbl_twdbdata[effsave],tbl_twdbdata[Year],2020,tbl_twdbdata[utility],tbl_twdbdata[[#This Row],[utility]]))","v":1302122423.4000001},55622,114036,14210,0,4995343649,4716861244,5843667334,0,298816049,1685886506,{"$f":"tbl_twdbdata[[#This Row],[utility]]&tbl_twdbdata[[#This Row],[Year]]","v":"IRVING2070"}]
[null,1223,"JACKSBORO","C",2016,4400,4400,0,{"$f":"IF(tbl_twdbdata[[#This Row],[Year]]=2016,0,tbl_twdbdata[[#This Row],[effsave]]-0.6*SUMIFS(tbl_twdbdata[effsave],tbl_twdbdata[Year],2020,tbl_twdbdata[utility],tbl_twdbdata[[#This Row],[utility]]))","v":0},1204,14,449,0,59499500,3678200,69217840,0,8950672,41271515,{"$f":"tbl_twdbdata[[#This Row],[utility]]&tbl_twdbdata[[#This Row],[Year]]","v":"JACKSBORO2016"}]
[null,1223,"JACKSBORO","C",2020,4222,4873,16096737,{"$f":"IF(tbl_twdbdata[[#This Row],[Year]]=2016,0,tbl_twdbdata[[#This Row],[effsave]]-0.6*SUMIFS(tbl_twdbdata[effsave],tbl_twdbdata[Year],2020,tbl_twdbdata[utility],tbl_twdbdata[[#This Row],[utility]]))","v":6438694.8000000007},1390,16,518,0,68673866,4245350,79890699,0,10330797,47635266,{"$f":"tbl_twdbdata[[#This Row],[utility]]&tbl_twdbdata[[#This Row],[Year]]","v":"JACKSBORO2020"}]
[null,1223,"JACKSBORO","C",2030,4222,5202,23942985,{"$f":"IF(tbl_twdbdata[[#This Row],[Year]]=2016,0,tbl_twdbdata[[#This Row],[effsave]]-0.6*SUMIFS(tbl_twdbdata[effsave],tbl_twdbdata[Year],2020,tbl_twdbdata[utility],tbl_twdbdata[[#This Row],[utility]]))","v":14284942.800000001},1484,17,553,0,73310374,4531974,85284509,0,11028279,50851355,{"$f":"tbl_twdbdata[[#This Row],[utility]]&tbl_twdbdata[[#This Row],[Year]]","v":"JACKSBORO2030"}]
[null,1223,"JACKSBORO","C",2040,4222,5406,29814901,{"$f":"IF(tbl_twdbdata[[#This Row],[Year]]=2016,0,tbl_twdbdata[[#This Row],[effsave]]-0.6*SUMIFS(tbl_twdbdata[effsave],tbl_twdbdata[Year],2020,tbl_twdbdata[utility],tbl_twdbdata[[#This Row],[utility]]))","v":20156858.800000001},1542,18,590,0,76185291,4709698,88628999,0,11460761,52845526,{"$f":"tbl_twdbdata[[#This Row],[utility]]&tbl_twdbdata[[#This Row],[Year]]","v":"JACKSBORO2040"}]
[null,1223,"JACKSBORO","C",2050,4222,5514,33047056,{"$f":"IF(tbl_twdbdata[[#This Row],[Year]]=2016,0,tbl_twdbdata[[#This Row],[effsave]]-0.6*SUMIFS(tbl_twdbdata[effsave],tbl_twdbdata[Year],2020,tbl_twdbdata[utility],tbl_twdbdata[[#This Row],[utility]]))","v":23389013.800000001},1573,19,629,0,77707306,4803787,90399612,0,11689722,53901263,{"$f":"tbl_twdbdata[[#This Row],[utility]]&tbl_twdbdata[[#This Row],[Year]]","v":"JACKSBORO2050"}]
[null,1223,"JACKSBORO","C",2060,4222,5593,34112546,{"$f":"IF(tbl_twdbdata[[#This Row],[Year]]=2016,0,tbl_twdbdata[[#This Row],[effsave]]-0.6*SUMIFS(tbl_twdbdata[effsave],tbl_twdbdata[Year],2020,tbl_twdbdata[utility],tbl_twdbdata[[#This Row],[utility]]))","v":24454503.800000001},1596,20,671,0,78820632,4872612,91694782,0,11857203,54673515,{"$f":"tbl_twdbdata[[#This Row],[utility]]&tbl_twdbdata[[#This Row],[Year]]","v":"JACKSBORO2060"}]
[null,1223,"JACKSBORO","C",2070,4222,5643,34458697,{"$f":"IF(tbl_twdbdata[[#This Row],[Year]]=2016,0,tbl_twdbdata[[#This Row],[effsave]]-0.6*SUMIFS(tbl_twdbdata[effsave],tbl_twdbdata[Year],2020,tbl_twdbdata[utility],tbl_twdbdata[[#This Row],[utility]]))","v":24800654.800000001},1610,21,717,0,79525268,4916172,92514510,0,11963203,55162282,{"$f":"tbl_twdbdata[[#This Row],[utility]]&tbl_twdbdata[[#This Row],[Year]]","v":"JACKSBORO2070"}]
[null,79,"JACKSONVILLE","I",2016,14544,14544,0,{"$f":"IF(tbl_twdbdata[[#This Row],[Year]]=2016,0,tbl_twdbdata[[#This Row],[effsave]]-0.6*SUMIFS(tbl_twdbdata[effsave],tbl_twdbdata[Year],2020,tbl_twdbdata[utility],tbl_twdbdata[[#This Row],[utility]]))","v":0},5526,0,1155,0,334361900,0,267741500,0,11534814,309146940,{"$f":"tbl_twdbdata[[#This Row],[utility]]&tbl_twdbdata[[#This Row],[Year]]","v":"JACKSONVILLE2016"}]
[null,79,"JACKSONVILLE","I",2020,14544,18083,63890856,{"$f":"IF(tbl_twdbdata[[#This Row],[Year]]=2016,0,tbl_twdbdata[[#This Row],[effsave]]-0.6*SUMIFS(tbl_twdbdata[effsave],tbl_twdbdata[Year],2020,tbl_twdbdata[utility],tbl_twdbdata[[#This Row],[utility]]))","v":25556342.399999999},6588,0,1377,0,398646155,0,319217349,0,13752492,368583379,{"$f":"tbl_twdbdata[[#This Row],[utility]]&tbl_twdbdata[[#This Row],[Year]]","v":"JACKSONVILLE2020"}]
[null,79,"JACKSONVILLE","I",2030,14544,19830,100100849,{"$f":"IF(tbl_twdbdata[[#This Row],[Year]]=2016,0,tbl_twdbdata[[#This Row],[effsave]]-0.6*SUMIFS(tbl_twdbdata[effsave],tbl_twdbdata[Year],2020,tbl_twdbdata[utility],tbl_twdbdata[[#This Row],[utility]]))","v":61766335.399999999},7224,0,1510,0,437159390,0,350056961,0,15081121,404192247,{"$f":"tbl_twdbdata[[#This Row],[utility]]&tbl_twdbdata[[#This Row],[Year]]","v":"JACKSONVILLE2030"}]
[null,79,"JACKSONVILLE","I",2040,14544,21543,131787148,{"$f":"IF(tbl_twdbdata[[#This Row],[Year]]=2016,0,tbl_twdbdata[[#This Row],[effsave]]-0.6*SUMIFS(tbl_twdbdata[effsave],tbl_twdbdata[Year],2020,tbl_twdbdata[utility],tbl_twdbdata[[#This Row],[utility]]))","v":93452634.400000006},7848,0,1656,0,474923083,0,380296375,0,16383893,439108098,{"$f":"tbl_twdbdata[[#This Row],[utility]]&tbl_twdbdata[[#This Row],[Year]]","v":"JACKSONVILLE2040"}]
[null,79,"JACKSONVILLE","I",2050,14544,23585,156933411,{"$f":"IF(tbl_twdbdata[[#This Row],[Year]]=2016,0,tbl_twdbdata[[#This Row],[effsave]]-0.6*SUMIFS(tbl_twdbdata[effsave],tbl_twdbdata[Year],2020,tbl_twdbdata[utility],tbl_twdbdata[[#This Row],[utility]]))","v":118598897.40000001},8592,0,1816,0,519939698,0,416343592,0,17936876,480729912,{"$f":"tbl_twdbdata[[#This Row],[utility]]&tbl_twdbdata[[#This Row],[Year]]","v":"JACKSONVILLE2050"}]
[null,79,"JACKSONVILLE","I",2060,14544,25726,174184315,{"$f":"IF(tbl_twdbdata[[#This Row],[Year]]=2016,0,tbl_twdbdata[[#This Row],[effsave]]-0.6*SUMIFS(tbl_twdbdata[effsave],tbl_twdbdata[Year],2020,tbl_twdbdata[utility],tbl_twdbdata[[#This Row],[utility]]))","v":135849801.40000001},9372,0,1991,0,567138803,0,454138446,0,19565150,524369630,{"$f":"tbl_twdbdata[[#This Row],[utility]]&tbl_twdbdata[[#This Row],[Year]]","v":"JACKSONVILLE2060"}]
[null,79,"JACKSONVILLE","I",2070,14544,28041,190677398,{"$f":"IF(tbl_twdbdata[[#This Row],[Year]]=2016,0,tbl_twdbdata[[#This Row],[effsave]]-0.6*SUMIFS(tbl_twdbdata[effsave],tbl_twdbdata[Year],2020,tbl_twdbdata[utility],tbl_twdbdata[[#This Row],[utility]]))","v":152342884.40000001},10215,0,2183,0,618173800,0,495004905,0,21325755,571555967,{"$f":"tbl_twdbdata[[#This Row],[utility]]&tbl_twdbdata[[#This Row],[Year]]","v":"JACKSONVILLE2070"}]
[null,1227,"JASPER","I",2016,7590,11322,0,{"$f":"IF(tbl_twdbdata[[#This Row],[Year]]=2016,0,tbl_twdbdata[[#This Row],[effsave]]-0.6*SUMIFS(tbl_twdbdata[effsave],tbl_twdbdata[Year],2020,tbl_twdbdata[utility],tbl_twdbdata[[#This Row],[utility]]))","v":0},3774,204,748,0,221132010,48893734,169073362,0,10509209,91538624,{"$f":"tbl_twdbdata[[#This Row],[utility]]&tbl_twdbdata[[#This Row],[Year]]","v":"JASPER2016"}]
[null,1227,"JASPER","I",2020,7590,9059,31478213,{"$f":"IF(tbl_twdbdata[[#This Row],[Year]]=2016,0,tbl_twdbdata[[#This Row],[effsave]]-0.6*SUMIFS(tbl_twdbdata[effsave],tbl_twdbdata[Year],2020,tbl_twdbdata[utility],tbl_twdbdata[[#This Row],[utility]]))","v":12591285.199999999},3197,173,633,0,187305739,41414524,143210433,0,8901629,77536082,{"$f":"tbl_twdbdata[[#This Row],[utility]]&tbl_twdbdata[[#This Row],[Year]]","v":"JASPER2020"}]
[null,1227,"JASPER","I",2030,7590,9259,46333425,{"$f":"IF(tbl_twdbdata[[#This Row],[Year]]=2016,0,tbl_twdbdata[[#This Row],[effsave]]-0.6*SUMIFS(tbl_twdbdata[effsave],tbl_twdbdata[Year],2020,tbl_twdbdata[utility],tbl_twdbdata[[#This Row],[utility]]))","v":27446497.199999999},3268,177,647,0,191440980,42328853,146372160,0,9098155,79247884,{"$f":"tbl_twdbdata[[#This Row],[utility]]&tbl_twdbdata[[#This Row],[Year]]","v":"JASPER2030"}]
[null,1227,"JASPER","I",2040,7590,9297,57823621,{"$f":"IF(tbl_twdbdata[[#This Row],[Year]]=2016,0,tbl_twdbdata[[#This Row],[effsave]]-0.6*SUMIFS(tbl_twdbdata[effsave],tbl_twdbdata[Year],2020,tbl_twdbdata[utility],tbl_twdbdata[[#This Row],[utility]]))","v":38936693.200000003},3281,181,661,0,192226676,42502575,146972888,0,9135495,79573126,{"$f":"tbl_twdbdata[[#This Row],[utility]]&tbl_twdbdata[[#This Row],[Year]]","v":"JASPER2040"}]
[null,1227,"JASPER","I",2050,7590,9297,63965684,{"$f":"IF(tbl_twdbdata[[#This Row],[Year]]=2016,0,tbl_twdbdata[[#This Row],[effsave]]-0.6*SUMIFS(tbl_twdbdata[effsave],tbl_twdbdata[Year],2020,tbl_twdbdata[utility],tbl_twdbdata[[#This Row],[utility]]))","v":45078756.200000003},3281,185,676,0,192226676,42502575,146972888,0,9135495,79573126,{"$f":"tbl_twdbdata[[#This Row],[utility]]&tbl_twdbdata[[#This Row],[Year]]","v":"JASPER2050"}]
[null,1227,"JASPER","I",2060,7590,9297,65017640,{"$f":"IF(tbl_twdbdata[[#This Row],[Year]]=2016,0,tbl_twdbdata[[#This Row],[effsave]]-0.6*SUMIFS(tbl_twdbdata[effsave],tbl_twdbdata[Year],2020,tbl_twdbdata[utility],tbl_twdbdata[[#This Row],[utility]]))","v":46130712.200000003},3281,189,691,0,192226676,42502575,146972888,0,9135495,79573126,{"$f":"tbl_twdbdata[[#This Row],[utility]]&tbl_twdbdata[[#This Row],[Year]]","v":"JASPER2060"}]
[null,1227,"JASPER","I",2070,7590,9297,65017640,{"$f":"IF(tbl_twdbdata[[#This Row],[Year]]=2016,0,tbl_twdbdata[[#This Row],[effsave]]-0.6*SUMIFS(tbl_twdbdata[effsave],tbl_twdbdata[Year],2020,tbl_twdbdata[utility],tbl_twdbdata[[#This Row],[utility]]))","v":46130712.200000003},3281,193,706,0,192226676,42502575,146972888,0,9135495,79573126,{"$f":"tbl_twdbdata[[#This Row],[utility]]&tbl_twdbdata[[#This Row],[Year]]","v":"JASPER2070"}]
[null,1228,"JASPER COUNTY WCID 1","I",2016,3500,3500,0,{"$f":"IF(tbl_twdbdata[[#This Row],[Year]]=2016,0,tbl_twdbdata[[#This Row],[effsave]]-0.6*SUMIFS(tbl_twdbdata[effsave],tbl_twdbdata[Year],2020,tbl_twdbdata[utility],tbl_twdbdata[[#This Row],[utility]]))","v":0},810,0,0,0,57832000,0,0,0,810430,6191945,{"$f":"tbl_twdbdata[[#This Row],[utility]]&tbl_twdbdata[[#This Row],[Year]]","v":"JASPER COUNTY WCID 12016"}]
[null,1228,"JASPER COUNTY WCID 1","I",2020,2281,2730,10363080,{"$f":"IF(tbl_twdbdata[[#This Row],[Year]]=2016,0,tbl_twdbdata[[#This Row],[effsave]]-0.6*SUMIFS(tbl_twdbdata[effsave],tbl_twdbdata[Year],2020,tbl_twdbdata[utility],tbl_twdbdata[[#This Row],[utility]]))","v":4145232},969,0,0,0,69215853,0,0,0,969958,7410789,{"$f":"tbl_twdbdata[[#This Row],[utility]]&tbl_twdbdata[[#This Row],[Year]]","v":"JASPER COUNTY WCID 12020"}]
[null,1228,"JASPER COUNTY WCID 1","I",2030,2281,2791,15739147,{"$f":"IF(tbl_twdbdata[[#This Row],[Year]]=2016,0,tbl_twdbdata[[#This Row],[effsave]]-0.6*SUMIFS(tbl_twdbdata[effsave],tbl_twdbdata[Year],2020,tbl_twdbdata[utility],tbl_twdbdata[[#This Row],[utility]]))","v":9521299},991,0,0,0,70762434,0,0,0,991631,7576378,{"$f":"tbl_twdbdata[[#This Row],[utility]]&tbl_twdbdata[[#This Row],[Year]]","v":"JASPER COUNTY WCID 12030"}]
[null,1228,"JASPER COUNTY WCID 1","I",2040,2281,2802,17386410,{"$f":"IF(tbl_twdbdata[[#This Row],[Year]]=2016,0,tbl_twdbdata[[#This Row],[effsave]]-0.6*SUMIFS(tbl_twdbdata[effsave],tbl_twdbdata[Year],2020,tbl_twdbdata[utility],tbl_twdbdata[[#This Row],[utility]]))","v":11168562},995,0,0,0,71041326,0,0,0,995539,7606238,{"$f":"tbl_twdbdata[[#This Row],[utility]]&tbl_twdbdata[[#This Row],[Year]]","v":"JASPER COUNTY WCID 12040"}]
[null,1228,"JASPER COUNTY WCID 1","I",2050,2281,2802,17386410,{"$f":"IF(tbl_twdbdata[[#This Row],[Year]]=2016,0,tbl_twdbdata[[#This Row],[effsave]]-0.6*SUMIFS(tbl_twdbdata[effsave],tbl_twdbdata[Year],2020,tbl_twdbdata[utility],tbl_twdbdata[[#This Row],[utility]]))","v":11168562},995,0,0,0,71041326,0,0,0,995539,7606238,{"$f":"tbl_twdbdata[[#This Row],[utility]]&tbl_twdbdata[[#This Row],[Year]]","v":"JASPER COUNTY WCID 12050"}]
[null,1228,"JASPER COUNTY WCID 1","I",2060,2281,2802,17386410,{"$f":"IF(tbl_twdbdata[[#This Row],[Year]]=2016,0,tbl_twdbdata[[#This Row],[effsave]]-0.6*SUMIFS(tbl_twdbdata[effsave],tbl_twdbdata[Year],2020,tbl_twdbdata[utility],tbl_twdbdata[[#This Row],[utility]]))","v":11168562},995,0,0,0,71041326,0,0,0,995539,7606238,{"$f":"tbl_twdbdata[[#This Row],[utility]]&tbl_twdbdata[[#This Row],[Year]]","v":"JASPER COUNTY WCID 12060"}]
[null,1228,"JASPER COUNTY WCID 1","I",2070,2281,2802,17386410,{"$f":"IF(tbl_twdbdata[[#This Row],[Year]]=2016,0,tbl_twdbdata[[#This Row],[effsave]]-0.6*SUMIFS(tbl_twdbdata[effsave],tbl_twdbdata[Year],2020,tbl_twdbdata[utility],tbl_twdbdata[[#This Row],[utility]]))","v":11168562},995,0,0,0,71041326,0,0,0,995539,7606238,{"$f":"tbl_twdbdata[[#This Row],[utility]]&tbl_twdbdata[[#This Row],[Year]]","v":"JASPER COUNTY WCID 12070"}]
[null,1232,"JERSEY VILLAGE","H",2016,7906,7906,0,{"$f":"IF(tbl_twdbdata[[#This Row],[Year]]=2016,0,tbl_twdbdata[[#This Row],[effsave]]-0.6*SUMIFS(tbl_twdbdata[effsave],tbl_twdbdata[Year],2020,tbl_twdbdata[utility],tbl_twdbdata[[#This Row],[utility]]))","v":0},2876,1520,327,0,208482000,80245000,88293000,0,24048725,67565427,{"$f":"tbl_twdbdata[[#This Row],[utility]]&tbl_twdbdata[[#This Row],[Year]]","v":"JERSEY VILLAGE2016"}]
[null,1232,"JERSEY VILLAGE","H",2020,7906,7959,23908438,{"$f":"IF(tbl_twdbdata[[#This Row],[Year]]=2016,0,tbl_twdbdata[[#This Row],[effsave]]-0.6*SUMIFS(tbl_twdbdata[effsave],tbl_twdbdata[Year],2020,tbl_twdbdata[utility],tbl_twdbdata[[#This Row],[utility]]))","v":9563375.2000000011},2895,1530,329,0,209879615,80782944,88884896,0,24209942,68018370,{"$f":"tbl_twdbdata[[#This Row],[utility]]&tbl_twdbdata[[#This Row],[Year]]","v":"JERSEY VILLAGE2020"}]
[null,1232,"JERSEY VILLAGE","H",2030,7906,8028,33668228,{"$f":"IF(tbl_twdbdata[[#This Row],[Year]]=2016,0,tbl_twdbdata[[#This Row],[effsave]]-0.6*SUMIFS(tbl_twdbdata[effsave],tbl_twdbdata[Year],2020,tbl_twdbdata[utility],tbl_twdbdata[[#This Row],[utility]]))","v":19323165.200000003},2920,1543,332,0,211699152,81483286,89655478,0,24419828,68608051,{"$f":"tbl_twdbdata[[#This Row],[utility]]&tbl_twdbdata[[#This Row],[Year]]","v":"JERSEY VILLAGE2030"}]
[null,1232,"JERSEY VILLAGE","H",2040,7906,8179,42033517,{"$f":"IF(tbl_twdbdata[[#This Row],[Year]]=2016,0,tbl_twdbdata[[#This Row],[effsave]]-0.6*SUMIFS(tbl_twdbdata[effsave],tbl_twdbdata[Year],2020,tbl_twdbdata[utility],tbl_twdbdata[[#This Row],[utility]]))","v":27688454.200000003},2975,1556,335,0,215681037,83015919,91341823,0,24879145,69898511,{"$f":"tbl_twdbdata[[#This Row],[utility]]&tbl_twdbdata[[#This Row],[Year]]","v":"JERSEY VILLAGE2040"}]
[null,1232,"JERSEY VILLAGE","H",2050,7906,8344,47236636,{"$f":"IF(tbl_twdbdata[[#This Row],[Year]]=2016,0,tbl_twdbdata[[#This Row],[effsave]]-0.6*SUMIFS(tbl_twdbdata[effsave],tbl_twdbdata[Year],2020,tbl_twdbdata[utility],tbl_twdbdata[[#This Row],[utility]]))","v":32891573.200000003},3035,1569,338,0,220032103,84690650,93184518,0,25381047,71308617,{"$f":"tbl_twdbdata[[#This Row],[utility]]&tbl_twdbdata[[#This Row],[Year]]","v":"JERSEY VILLAGE2050"}]
[null,1232,"JERSEY VILLAGE","H",2060,7906,8525,49319256,{"$f":"IF(tbl_twdbdata[[#This Row],[Year]]=2016,0,tbl_twdbdata[[#This Row],[effsave]]-0.6*SUMIFS(tbl_twdbdata[effsave],tbl_twdbdata[Year],2020,tbl_twdbdata[utility],tbl_twdbdata[[#This Row],[utility]]))","v":34974193.200000003},3101,1583,341,0,224805091,86527779,95205898,0,25931619,72855460,{"$f":"tbl_twdbdata[[#This Row],[utility]]&tbl_twdbdata[[#This Row],[Year]]","v":"JERSEY VILLAGE2060"}]
[null,1232,"JERSEY VILLAGE","H",2070,7906,8724,50566049,{"$f":"IF(tbl_twdbdata[[#This Row],[Year]]=2016,0,tbl_twdbdata[[#This Row],[effsave]]-0.6*SUMIFS(tbl_twdbdata[effsave],tbl_twdbdata[Year],2020,tbl_twdbdata[utility],tbl_twdbdata[[#This Row],[utility]]))","v":36220986.200000003},3173,1597,344,0,230052741,88547606,97428300,0,26536944,74556133,{"$f":"tbl_twdbdata[[#This Row],[utility]]&tbl_twdbdata[[#This Row],[Year]]","v":"JERSEY VILLAGE2070"}]
[null,1235,"JOHNSON CITY","K",2016,1670,1670,0,{"$f":"IF(tbl_twdbdata[[#This Row],[Year]]=2016,0,tbl_twdbdata[[#This Row],[effsave]]-0.6*SUMIFS(tbl_twdbdata[effsave],tbl_twdbdata[Year],2020,tbl_twdbdata[utility],tbl_twdbdata[[#This Row],[utility]]))","v":0},608,81,187,0,27863200,4551110,21780420,0,null,null,{"$f":"tbl_twdbdata[[#This Row],[utility]]&tbl_twdbdata[[#This Row],[Year]]","v":"JOHNSON CITY2016"}]
[null,1235,"JOHNSON CITY","K",2020,1670,2053,6983895,{"$f":"IF(tbl_twdbdata[[#This Row],[Year]]=2016,0,tbl_twdbdata[[#This Row],[effsave]]-0.6*SUMIFS(tbl_twdbdata[effsave],tbl_twdbdata[Year],2020,tbl_twdbdata[utility],tbl_twdbdata[[#This Row],[utility]]))","v":2793558},722,96,222,0,33103675,5407077,25876853,0,null,null,{"$f":"tbl_twdbdata[[#This Row],[utility]]&tbl_twdbdata[[#This Row],[Year]]","v":"JOHNSON CITY2020"}]
[null,1235,"JOHNSON CITY","K",2030,1670,2441,11386533,{"$f":"IF(tbl_twdbdata[[#This Row],[Year]]=2016,0,tbl_twdbdata[[#This Row],[effsave]]-0.6*SUMIFS(tbl_twdbdata[effsave],tbl_twdbdata[Year],2020,tbl_twdbdata[utility],tbl_twdbdata[[#This Row],[utility]]))","v":7196196},858,114,264,0,39359995,6428970,30767364,0,null,null,{"$f":"tbl_twdbdata[[#This Row],[utility]]&tbl_twdbdata[[#This Row],[Year]]","v":"JOHNSON CITY2030"}]
[null,1235,"JOHNSON CITY","K",2040,1670,2668,14305416,{"$f":"IF(tbl_twdbdata[[#This Row],[Year]]=2016,0,tbl_twdbdata[[#This Row],[effsave]]-0.6*SUMIFS(tbl_twdbdata[effsave],tbl_twdbdata[Year],2020,tbl_twdbdata[utility],tbl_twdbdata[[#This Row],[utility]]))","v":10115079},938,136,314,0,43020265,7026830,33628565,0,null,null,{"$f":"tbl_twdbdata[[#This Row],[utility]]&tbl_twdbdata[[#This Row],[Year]]","v":"JOHNSON CITY2040"}]
[null,1235,"JOHNSON CITY","K",2050,1670,2787,15899696,{"$f":"IF(tbl_twdbdata[[#This Row],[Year]]=2016,0,tbl_twdbdata[[#This Row],[effsave]]-0.6*SUMIFS(tbl_twdbdata[effsave],tbl_twdbdata[Year],2020,tbl_twdbdata[utility],tbl_twdbdata[[#This Row],[utility]]))","v":11709359},980,162,373,0,44939085,7340246,35128490,0,null,null,{"$f":"tbl_twdbdata[[#This Row],[utility]]&tbl_twdbdata[[#This Row],[Year]]","v":"JOHNSON CITY2050"}]
[null,1235,"JOHNSON CITY","K",2060,1670,2867,16575847,{"$f":"IF(tbl_twdbdata[[#This Row],[Year]]=2016,0,tbl_twdbdata[[#This Row],[effsave]]-0.6*SUMIFS(tbl_twdbdata[effsave],tbl_twdbdata[Year],2020,tbl_twdbdata[utility],tbl_twdbdata[[#This Row],[utility]]))","v":12385510},1008,193,443,0,46229048,7550946,36136843,0,null,null,{"$f":"tbl_twdbdata[[#This Row],[utility]]&tbl_twdbdata[[#This Row],[Year]]","v":"JOHNSON CITY2060"}]
[null,1235,"JOHNSON CITY","K",2070,1670,2914,16890127,{"$f":"IF(tbl_twdbdata[[#This Row],[Year]]=2016,0,tbl_twdbdata[[#This Row],[effsave]]-0.6*SUMIFS(tbl_twdbdata[effsave],tbl_twdbdata[Year],2020,tbl_twdbdata[utility],tbl_twdbdata[[#This Row],[utility]]))","v":12699790},1025,229,527,0,46986901,7674732,36729250,0,null,null,{"$f":"tbl_twdbdata[[#This Row],[utility]]&tbl_twdbdata[[#This Row],[Year]]","v":"JOHNSON CITY2070"}]
[null,1238,"JONAH WATER SUD","G",2016,17448,17448,0,{"$f":"IF(tbl_twdbdata[[#This Row],[Year]]=2016,0,tbl_twdbdata[[#This Row],[effsave]]-0.6*SUMIFS(tbl_twdbdata[effsave],tbl_twdbdata[Year],2020,tbl_twdbdata[utility],tbl_twdbdata[[#This Row],[utility]]))","v":0},6233,0,216,0,483261060,0,77920870,0,null,null,{"$f":"tbl_twdbdata[[#This Row],[utility]]&tbl_twdbdata[[#This Row],[Year]]","v":"JONAH WATER SUD2016"}]
[null,1238,"JONAH WATER SUD","G",2020,14713,23500,95982225,{"$f":"IF(tbl_twdbdata[[#This Row],[Year]]=2016,0,tbl_twdbdata[[#This Row],[effsave]]-0.6*SUMIFS(tbl_twdbdata[effsave],tbl_twdbdata[Year],2020,tbl_twdbdata[utility],tbl_twdbdata[[#This Row],[utility]]))","v":38392890},9956,0,345,0,771877585,0,124457313,0,null,null,{"$f":"tbl_twdbdata[[#This Row],[utility]]&tbl_twdbdata[[#This Row],[Year]]","v":"JONAH WATER SUD2020"}]
[null,1238,"JONAH WATER SUD","G",2030,14713,29522,155921919,{"$f":"IF(tbl_twdbdata[[#This Row],[Year]]=2016,0,tbl_twdbdata[[#This Row],[effsave]]-0.6*SUMIFS(tbl_twdbdata[effsave],tbl_twdbdata[Year],2020,tbl_twdbdata[utility],tbl_twdbdata[[#This Row],[utility]]))","v":98332584},12507,0,433,0,969675322,0,156350162,0,null,null,{"$f":"tbl_twdbdata[[#This Row],[utility]]&tbl_twdbdata[[#This Row],[Year]]","v":"JONAH WATER SUD2030"}]
[null,1238,"JONAH WATER SUD","G",2040,14713,37022,219451607,{"$f":"IF(tbl_twdbdata[[#This Row],[Year]]=2016,0,tbl_twdbdata[[#This Row],[effsave]]-0.6*SUMIFS(tbl_twdbdata[effsave],tbl_twdbdata[Year],2020,tbl_twdbdata[utility],tbl_twdbdata[[#This Row],[utility]]))","v":161862272},15684,0,544,0,1216019232,0,196070581,0,null,null,{"$f":"tbl_twdbdata[[#This Row],[utility]]&tbl_twdbdata[[#This Row],[Year]]","v":"JONAH WATER SUD2040"}]
[null,1238,"JONAH WATER SUD","G",2050,14713,45097,279826885,{"$f":"IF(tbl_twdbdata[[#This Row],[Year]]=2016,0,tbl_twdbdata[[#This Row],[effsave]]-0.6*SUMIFS(tbl_twdbdata[effsave],tbl_twdbdata[Year],2020,tbl_twdbdata[utility],tbl_twdbdata[[#This Row],[utility]]))","v":222237550},19105,0,684,0,1481249509,0,238836232,0,null,null,{"$f":"tbl_twdbdata[[#This Row],[utility]]&tbl_twdbdata[[#This Row],[Year]]","v":"JONAH WATER SUD2050"}]
[null,1238,"JONAH WATER SUD","G",2060,14713,54255,340612890,{"$f":"IF(tbl_twdbdata[[#This Row],[Year]]=2016,0,tbl_twdbdata[[#This Row],[effsave]]-0.6*SUMIFS(tbl_twdbdata[effsave],tbl_twdbdata[Year],2020,tbl_twdbdata[utility],tbl_twdbdata[[#This Row],[utility]]))","v":283023555},22985,0,859,0,1782051846,0,287337512,0,null,null,{"$f":"tbl_twdbdata[[#This Row],[utility]]&tbl_twdbdata[[#This Row],[Year]]","v":"JONAH WATER SUD2060"}]
[null,1238,"JONAH WATER SUD","G",2070,14713,63275,399088080,{"$f":"IF(tbl_twdbdata[[#This Row],[Year]]=2016,0,tbl_twdbdata[[#This Row],[effsave]]-0.6*SUMIFS(tbl_twdbdata[effsave],tbl_twdbdata[Year],2020,tbl_twdbdata[utility],tbl_twdbdata[[#This Row],[utility]]))","v":341498745},26806,0,1080,0,2078321455,0,335107936,0,null,null,{"$f":"tbl_twdbdata[[#This Row],[utility]]&tbl_twdbdata[[#This Row],[Year]]","v":"JONAH WATER SUD2070"}]
[null,1245,"JUNCTION","F",2016,2700,2700,0,{"$f":"IF(tbl_twdbdata[[#This Row],[Year]]=2016,0,tbl_twdbdata[[#This Row],[effsave]]-0.6*SUMIFS(tbl_twdbdata[effsave],tbl_twdbdata[Year],2020,tbl_twdbdata[utility],tbl_twdbdata[[#This Row],[utility]]))","v":0},1636,10,496,0,64699900,8538500,25672200,0,null,null,{"$f":"tbl_twdbdata[[#This Row],[utility]]&tbl_twdbdata[[#This Row],[Year]]","v":"JUNCTION2016"}]
[null,1245,"JUNCTION","F",2020,2655,2632,9145674,{"$f":"IF(tbl_twdbdata[[#This Row],[Year]]=2016,0,tbl_twdbdata[[#This Row],[effsave]]-0.6*SUMIFS(tbl_twdbdata[effsave],tbl_twdbdata[Year],2020,tbl_twdbdata[utility],tbl_twdbdata[[#This Row],[utility]]))","v":3658269.6000000006},1622,10,492,0,64139411,8464532,25449804,0,null,null,{"$f":"tbl_twdbdata[[#This Row],[utility]]&tbl_twdbdata[[#This Row],[Year]]","v":"JUNCTION2020"}]
[null,1245,"JUNCTION","F",2030,2655,2657,13344517,{"$f":"IF(tbl_twdbdata[[#This Row],[Year]]=2016,0,tbl_twdbdata[[#This Row],[effsave]]-0.6*SUMIFS(tbl_twdbdata[effsave],tbl_twdbdata[Year],2020,tbl_twdbdata[utility],tbl_twdbdata[[#This Row],[utility]]))","v":7857112.6000000006},1637,10,497,0,64748638,8544932,25691538,0,null,null,{"$f":"tbl_twdbdata[[#This Row],[utility]]&tbl_twdbdata[[#This Row],[Year]]","v":"JUNCTION2030"}]
[null,1245,"JUNCTION","F",2040,2655,2657,16729136,{"$f":"IF(tbl_twdbdata[[#This Row],[Year]]=2016,0,tbl_twdbdata[[#This Row],[effsave]]-0.6*SUMIFS(tbl_twdbdata[effsave],tbl_twdbdata[Year],2020,tbl_twdbdata[utility],tbl_twdbdata[[#This Row],[utility]]))","v":11241731.600000001},1637,10,502,0,64748638,8544932,25691538,0,null,null,{"$f":"tbl_twdbdata[[#This Row],[utility]]&tbl_twdbdata[[#This Row],[Year]]","v":"JUNCTION2040"}]
[null,1245,"JUNCTION","F",2050,2655,2657,18212938,{"$f":"IF(tbl_twdbdata[[#This Row],[Year]]=2016,0,tbl_twdbdata[[#This Row],[effsave]]-0.6*SUMIFS(tbl_twdbdata[effsave],tbl_twdbdata[Year],2020,tbl_twdbdata[utility],tbl_twdbdata[[#This Row],[utility]]))","v":12725533.600000001},1637,10,507,0,64748638,8544932,25691538,0,null,null,{"$f":"tbl_twdbdata[[#This Row],[utility]]&tbl_twdbdata[[#This Row],[Year]]","v":"JUNCTION2050"}]
[null,1245,"JUNCTION","F",2060,2655,2657,18513577,{"$f":"IF(tbl_twdbdata[[#This Row],[Year]]=2016,0,tbl_twdbdata[[#This Row],[effsave]]-0.6*SUMIFS(tbl_twdbdata[effsave],tbl_twdbdata[Year],2020,tbl_twdbdata[utility],tbl_twdbdata[[#This Row],[utility]]))","v":13026172.600000001},1637,10,512,0,64748638,8544932,25691538,0,null,null,{"$f":"tbl_twdbdata[[#This Row],[utility]]&tbl_twdbdata[[#This Row],[Year]]","v":"JUNCTION2060"}]
[null,1245,"JUNCTION","F",2070,2655,2657,18523276,{"$f":"IF(tbl_twdbdata[[#This Row],[Year]]=2016,0,tbl_twdbdata[[#This Row],[effsave]]-0.6*SUMIFS(tbl_twdbdata[effsave],tbl_twdbdata[Year],2020,tbl_twdbdata[utility],tbl_twdbdata[[#This Row],[utility]]))","v":13035871.600000001},1637,10,517,0,64748638,8544932,25691538,0,null,null,{"$f":"tbl_twdbdata[[#This Row],[utility]]&tbl_twdbdata[[#This Row],[Year]]","v":"JUNCTION2070"}]
[null,1247,"KARNES CITY","L",2016,3500,3500,0,{"$f":"IF(tbl_twdbdata[[#This Row],[Year]]=2016,0,tbl_twdbdata[[#This Row],[effsave]]-0.6*SUMIFS(tbl_twdbdata[effsave],tbl_twdbdata[Year],2020,tbl_twdbdata[utility],tbl_twdbdata[[#This Row],[utility]]))","v":0},1169,7,210,0,75027000,27745000,16612100,0,null,null,{"$f":"tbl_twdbdata[[#This Row],[utility]]&tbl_twdbdata[[#This Row],[Year]]","v":"KARNES CITY2016"}]
[null,1247,"KARNES CITY","L",2020,3008,3242,11419135,{"$f":"IF(tbl_twdbdata[[#This Row],[Year]]=2016,0,tbl_twdbdata[[#This Row],[effsave]]-0.6*SUMIFS(tbl_twdbdata[effsave],tbl_twdbdata[Year],2020,tbl_twdbdata[utility],tbl_twdbdata[[#This Row],[utility]]))","v":4567654},1260,8,226,0,80863542,29903354,17904398,0,null,null,{"$f":"tbl_twdbdata[[#This Row],[utility]]&tbl_twdbdata[[#This Row],[Year]]","v":"KARNES CITY2020"}]
[null,1247,"KARNES CITY","L",2030,3008,3343,16985114,{"$f":"IF(tbl_twdbdata[[#This Row],[Year]]=2016,0,tbl_twdbdata[[#This Row],[effsave]]-0.6*SUMIFS(tbl_twdbdata[effsave],tbl_twdbdata[Year],2020,tbl_twdbdata[utility],tbl_twdbdata[[#This Row],[utility]]))","v":10133633},1299,8,233,0,83382733,30834951,18462184,0,null,null,{"$f":"tbl_twdbdata[[#This Row],[utility]]&tbl_twdbdata[[#This Row],[Year]]","v":"KARNES CITY2030"}]
[null,1247,"KARNES CITY","L",2040,3008,3349,21049470,{"$f":"IF(tbl_twdbdata[[#This Row],[Year]]=2016,0,tbl_twdbdata[[#This Row],[effsave]]-0.6*SUMIFS(tbl_twdbdata[effsave],tbl_twdbdata[Year],2020,tbl_twdbdata[utility],tbl_twdbdata[[#This Row],[utility]]))","v":14197989},1301,8,240,0,83532388,30890293,18495320,0,null,null,{"$f":"tbl_twdbdata[[#This Row],[utility]]&tbl_twdbdata[[#This Row],[Year]]","v":"KARNES CITY2040"}]
[null,1247,"KARNES CITY","L",2050,3008,3349,23139748,{"$f":"IF(tbl_twdbdata[[#This Row],[Year]]=2016,0,tbl_twdbdata[[#This Row],[effsave]]-0.6*SUMIFS(tbl_twdbdata[effsave],tbl_twdbdata[Year],2020,tbl_twdbdata[utility],tbl_twdbdata[[#This Row],[utility]]))","v":16288267},1301,8,247,0,83532388,30890293,18495320,0,null,null,{"$f":"tbl_twdbdata[[#This Row],[utility]]&tbl_twdbdata[[#This Row],[Year]]","v":"KARNES CITY2050"}]
[null,1247,"KARNES CITY","L",2060,3008,3349,23506464,{"$f":"IF(tbl_twdbdata[[#This Row],[Year]]=2016,0,tbl_twdbdata[[#This Row],[effsave]]-0.6*SUMIFS(tbl_twdbdata[effsave],tbl_twdbdata[Year],2020,tbl_twdbdata[utility],tbl_twdbdata[[#This Row],[utility]]))","v":16654983},1301,8,255,0,83532388,30890293,18495320,0,null,null,{"$f":"tbl_twdbdata[[#This Row],[utility]]&tbl_twdbdata[[#This Row],[Year]]","v":"KARNES CITY2060"}]
[null,1247,"KARNES CITY","L",2070,3008,3349,23518687,{"$f":"IF(tbl_twdbdata[[#This Row],[Year]]=2016,0,tbl_twdbdata[[#This Row],[effsave]]-0.6*SUMIFS(tbl_twdbdata[effsave],tbl_twdbdata[Year],2020,tbl_twdbdata[utility],tbl_twdbdata[[#This Row],[utility]]))","v":16667206},1301,8,263,0,83532388,30890293,18495320,0,null,null,{"$f":"tbl_twdbdata[[#This Row],[utility]]&tbl_twdbdata[[#This Row],[Year]]","v":"KARNES CITY2070"}]
[null,1248,"KATY","H",2016,18757,18757,0,{"$f":"IF(tbl_twdbdata[[#This Row],[Year]]=2016,0,tbl_twdbdata[[#This Row],[effsave]]-0.6*SUMIFS(tbl_twdbdata[effsave],tbl_twdbdata[Year],2020,tbl_twdbdata[utility],tbl_twdbdata[[#This Row],[utility]]))","v":0},5521,64,892,0,580538000,49167000,474886000,0,48155813,85078187,{"$f":"tbl_twdbdata[[#This Row],[utility]]&tbl_twdbdata[[#This Row],[Year]]","v":"KATY2016"}]
[null,1248,"KATY","H",2020,16646,21731,87646556,{"$f":"IF(tbl_twdbdata[[#This Row],[Year]]=2016,0,tbl_twdbdata[[#This Row],[effsave]]-0.6*SUMIFS(tbl_twdbdata[effsave],tbl_twdbdata[Year],2020,tbl_twdbdata[utility],tbl_twdbdata[[#This Row],[utility]]))","v":35058622.399999999},7208,84,1164,0,757880048,64186476,619953602,0,62866393,111067769,{"$f":"tbl_twdbdata[[#This Row],[utility]]&tbl_twdbdata[[#This Row],[Year]]","v":"KATY2020"}]
[null,1248,"KATY","H",2030,16646,31941,171962359,{"$f":"IF(tbl_twdbdata[[#This Row],[Year]]=2016,0,tbl_twdbdata[[#This Row],[effsave]]-0.6*SUMIFS(tbl_twdbdata[effsave],tbl_twdbdata[Year],2020,tbl_twdbdata[utility],tbl_twdbdata[[#This Row],[utility]]))","v":119374425.40000001},10595,123,1710,0,1113959165,94343575,911229949,0,92403270,163251374,{"$f":"tbl_twdbdata[[#This Row],[utility]]&tbl_twdbdata[[#This Row],[Year]]","v":"KATY2030"}]
[null,1248,"KATY","H",2040,16646,32958,192354423,{"$f":"IF(tbl_twdbdata[[#This Row],[Year]]=2016,0,tbl_twdbdata[[#This Row],[effsave]]-0.6*SUMIFS(tbl_twdbdata[effsave],tbl_twdbdata[Year],2020,tbl_twdbdata[utility],tbl_twdbdata[[#This Row],[utility]]))","v":139766489.40000001},10932,181,2513,0,1149427575,97347470,940243469,0,95345386,168449290,{"$f":"tbl_twdbdata[[#This Row],[utility]]&tbl_twdbdata[[#This Row],[Year]]","v":"KATY2040"}]
[null,1248,"KATY","H",2050,16646,33930,206324937,{"$f":"IF(tbl_twdbdata[[#This Row],[Year]]=2016,0,tbl_twdbdata[[#This Row],[effsave]]-0.6*SUMIFS(tbl_twdbdata[effsave],tbl_twdbdata[Year],2020,tbl_twdbdata[utility],tbl_twdbdata[[#This Row],[utility]]))","v":153737003.40000001},11254,266,3693,0,1183326586,100218449,967973205,0,98157320,173417210,{"$f":"tbl_twdbdata[[#This Row],[utility]]&tbl_twdbdata[[#This Row],[Year]]","v":"KATY2050"}]
[null,1248,"KATY","H",2060,16646,34892,214212456,{"$f":"IF(tbl_twdbdata[[#This Row],[Year]]=2016,0,tbl_twdbdata[[#This Row],[effsave]]-0.6*SUMIFS(tbl_twdbdata[effsave],tbl_twdbdata[Year],2020,tbl_twdbdata[utility],tbl_twdbdata[[#This Row],[utility]]))","v":161624522.40000001},11573,391,5428,0,1216876842,103059892,995417656,0,100940324,178334020,{"$f":"tbl_twdbdata[[#This Row],[utility]]&tbl_twdbdata[[#This Row],[Year]]","v":"KATY2060"}]
[null,1248,"KATY","H",2070,16646,35856,220785113,{"$f":"IF(tbl_twdbdata[[#This Row],[Year]]=2016,0,tbl_twdbdata[[#This Row],[effsave]]-0.6*SUMIFS(tbl_twdbdata[effsave],tbl_twdbdata[Year],2020,tbl_twdbdata[utility],tbl_twdbdata[[#This Row],[utility]]))","v":168197179.40000001},11893,575,7978,0,1250496849,105907242,1022919164,0,103729114,183261052,{"$f":"tbl_twdbdata[[#This Row],[utility]]&tbl_twdbdata[[#This Row],[Year]]","v":"KATY2070"}]
[null,1251,"KELLER","C",2016,43590,44050,0,{"$f":"IF(tbl_twdbdata[[#This Row],[Year]]=2016,0,tbl_twdbdata[[#This Row],[effsave]]-0.6*SUMIFS(tbl_twdbdata[effsave],tbl_twdbdata[Year],2020,tbl_twdbdata[utility],tbl_twdbdata[[#This Row],[utility]]))","v":0},14739,61,1080,0,2130780697,45799557,439521944,0,5162588,163410092,{"$f":"tbl_twdbdata[[#This Row],[utility]]&tbl_twdbdata[[#This Row],[Year]]","v":"KELLER2016"}]
[null,1251,"KELLER","C",2020,43590,48279,138155186,{"$f":"IF(tbl_twdbdata[[#This Row],[Year]]=2016,0,tbl_twdbdata[[#This Row],[effsave]]-0.6*SUMIFS(tbl_twdbdata[effsave],tbl_twdbdata[Year],2020,tbl_twdbdata[utility],tbl_twdbdata[[#This Row],[utility]]))","v":55262074.400000006},16292,67,1193,0,2355289083,50625199,485831901,0,5706541,180627695,{"$f":"tbl_twdbdata[[#This Row],[utility]]&tbl_twdbdata[[#This Row],[Year]]","v":"KELLER2020"}]
[null,1251,"KELLER","C",2030,43590,51974,192740382,{"$f":"IF(tbl_twdbdata[[#This Row],[Year]]=2016,0,tbl_twdbdata[[#This Row],[effsave]]-0.6*SUMIFS(tbl_twdbdata[effsave],tbl_twdbdata[Year],2020,tbl_twdbdata[utility],tbl_twdbdata[[#This Row],[utility]]))","v":109847270.40000001},17539,72,1284,0,2535549510,54499764,523014711,0,6143287,194451911,{"$f":"tbl_twdbdata[[#This Row],[utility]]&tbl_twdbdata[[#This Row],[Year]]","v":"KELLER2030"}]
[null,1251,"KELLER","C",2040,43590,51974,217212340,{"$f":"IF(tbl_twdbdata[[#This Row],[Year]]=2016,0,tbl_twdbdata[[#This Row],[effsave]]-0.6*SUMIFS(tbl_twdbdata[effsave],tbl_twdbdata[Year],2020,tbl_twdbdata[utility],tbl_twdbdata[[#This Row],[utility]]))","v":134319228.40000001},17539,78,1382,0,2535549510,54499764,523014711,0,6143287,194451911,{"$f":"tbl_twdbdata[[#This Row],[utility]]&tbl_twdbdata[[#This Row],[Year]]","v":"KELLER2040"}]
[null,1251,"KELLER","C",2050,43590,51974,231819632,{"$f":"IF(tbl_twdbdata[[#This Row],[Year]]=2016,0,tbl_twdbdata[[#This Row],[effsave]]-0.6*SUMIFS(tbl_twdbdata[effsave],tbl_twdbdata[Year],2020,tbl_twdbdata[utility],tbl_twdbdata[[#This Row],[utility]]))","v":148926520.40000001},17539,84,1488,0,2535549510,54499764,523014711,0,6143287,194451911,{"$f":"tbl_twdbdata[[#This Row],[utility]]&tbl_twdbdata[[#This Row],[Year]]","v":"KELLER2050"}]
[null,1251,"KELLER","C",2060,43590,51974,236751965,{"$f":"IF(tbl_twdbdata[[#This Row],[Year]]=2016,0,tbl_twdbdata[[#This Row],[effsave]]-0.6*SUMIFS(tbl_twdbdata[effsave],tbl_twdbdata[Year],2020,tbl_twdbdata[utility],tbl_twdbdata[[#This Row],[utility]]))","v":153858853.40000001},17539,90,1602,0,2535549510,54499764,523014711,0,6143287,194451911,{"$f":"tbl_twdbdata[[#This Row],[utility]]&tbl_twdbdata[[#This Row],[Year]]","v":"KELLER2060"}]
[null,1251,"KELLER","C",2070,43590,51974,237131375,{"$f":"IF(tbl_twdbdata[[#This Row],[Year]]=2016,0,tbl_twdbdata[[#This Row],[effsave]]-0.6*SUMIFS(tbl_twdbdata[effsave],tbl_twdbdata[Year],2020,tbl_twdbdata[utility],tbl_twdbdata[[#This Row],[utility]]))","v":154238263.40000001},17539,97,1725,0,2535549510,54499764,523014711,0,6143287,194451911,{"$f":"tbl_twdbdata[[#This Row],[utility]]&tbl_twdbdata[[#This Row],[Year]]","v":"KELLER2070"}]
[null,1255,"KEMPNER WSC","G",2016,14115,14115,0,{"$f":"IF(tbl_twdbdata[[#This Row],[Year]]=2016,0,tbl_twdbdata[[#This Row],[effsave]]-0.6*SUMIFS(tbl_twdbdata[effsave],tbl_twdbdata[Year],2020,tbl_twdbdata[utility],tbl_twdbdata[[#This Row],[utility]]))","v":0},4705,303,44,0,393263163,26731750,216895730,0,10935340,174477214,{"$f":"tbl_twdbdata[[#This Row],[utility]]&tbl_twdbdata[[#This Row],[Year]]","v":"KEMPNER WSC2016"}]
[null,1255,"KEMPNER WSC","G",2020,13682,15764,47124113,{"$f":"IF(tbl_twdbdata[[#This Row],[Year]]=2016,0,tbl_twdbdata[[#This Row],[effsave]]-0.6*SUMIFS(tbl_twdbdata[effsave],tbl_twdbdata[Year],2020,tbl_twdbdata[utility],tbl_twdbdata[[#This Row],[utility]]))","v":18849645.199999999},5421,349,51,0,453106308,30799540,249900913,0,12599379,201027540,{"$f":"tbl_twdbdata[[#This Row],[utility]]&tbl_twdbdata[[#This Row],[Year]]","v":"KEMPNER WSC2020"}]
[null,1255,"KEMPNER WSC","G",2030,13682,17568,71817984,{"$f":"IF(tbl_twdbdata[[#This Row],[Year]]=2016,0,tbl_twdbdata[[#This Row],[effsave]]-0.6*SUMIFS(tbl_twdbdata[effsave],tbl_twdbdata[Year],2020,tbl_twdbdata[utility],tbl_twdbdata[[#This Row],[utility]]))","v":43543516.200000003},6041,389,57,0,504958870,34324177,278499063,0,14041226,224032722,{"$f":"tbl_twdbdata[[#This Row],[utility]]&tbl_twdbdata[[#This Row],[Year]]","v":"KEMPNER WSC2030"}]
[null,1255,"KEMPNER WSC","G",2040,13682,19051,90814212,{"$f":"IF(tbl_twdbdata[[#This Row],[Year]]=2016,0,tbl_twdbdata[[#This Row],[effsave]]-0.6*SUMIFS(tbl_twdbdata[effsave],tbl_twdbdata[Year],2020,tbl_twdbdata[utility],tbl_twdbdata[[#This Row],[utility]]))","v":62539744.200000003},6551,434,64,0,547584895,37221647,302008518,0,15226514,242944410,{"$f":"tbl_twdbdata[[#This Row],[utility]]&tbl_twdbdata[[#This Row],[Year]]","v":"KEMPNER WSC2040"}]
[null,1255,"KEMPNER WSC","G",2050,13682,20523,105097257,{"$f":"IF(tbl_twdbdata[[#This Row],[Year]]=2016,0,tbl_twdbdata[[#This Row],[effsave]]-0.6*SUMIFS(tbl_twdbdata[effsave],tbl_twdbdata[Year],2020,tbl_twdbdata[utility],tbl_twdbdata[[#This Row],[utility]]))","v":76822789.200000003},7057,484,71,0,589894746,40097625,325343594,0,16403010,261715822,{"$f":"tbl_twdbdata[[#This Row],[utility]]&tbl_twdbdata[[#This Row],[Year]]","v":"KEMPNER WSC2050"}]
[null,1255,"KEMPNER WSC","G",2060,13682,21871,114235514,{"$f":"IF(tbl_twdbdata[[#This Row],[Year]]=2016,0,tbl_twdbdata[[#This Row],[effsave]]-0.6*SUMIFS(tbl_twdbdata[effsave],tbl_twdbdata[Year],2020,tbl_twdbdata[utility],tbl_twdbdata[[#This Row],[utility]]))","v":85961046.200000003},7521,539,79,0,628640452,42731333,346712944,0,17480399,278905947,{"$f":"tbl_twdbdata[[#This Row],[utility]]&tbl_twdbdata[[#This Row],[Year]]","v":"KEMPNER WSC2060"}]
[null,1255,"KEMPNER WSC","G",2070,13682,23110,121297457,{"$f":"IF(tbl_twdbdata[[#This Row],[Year]]=2016,0,tbl_twdbdata[[#This Row],[effsave]]-0.6*SUMIFS(tbl_twdbdata[effsave],tbl_twdbdata[Year],2020,tbl_twdbdata[utility],tbl_twdbdata[[#This Row],[utility]]))","v":93022989.200000003},7947,601,88,0,664253159,45152078,366354356,0,18470670,294706069,{"$f":"tbl_twdbdata[[#This Row],[utility]]&tbl_twdbdata[[#This Row],[Year]]","v":"KEMPNER WSC2070"}]
[null,1260,"KERMIT","F",2016,5925,6250,0,{"$f":"IF(tbl_twdbdata[[#This Row],[Year]]=2016,0,tbl_twdbdata[[#This Row],[effsave]]-0.6*SUMIFS(tbl_twdbdata[effsave],tbl_twdbdata[Year],2020,tbl_twdbdata[utility],tbl_twdbdata[[#This Row],[utility]]))","v":0},2466,268,327,0,305934000,6482000,126618000,0,2959000,33347816,{"$f":"tbl_twdbdata[[#This Row],[utility]]&tbl_twdbdata[[#This Row],[Year]]","v":"KERMIT2016"}]
[null,1260,"KERMIT","F",2020,5925,5917,21208303,{"$f":"IF(tbl_twdbdata[[#This Row],[Year]]=2016,0,tbl_twdbdata[[#This Row],[effsave]]-0.6*SUMIFS(tbl_twdbdata[effsave],tbl_twdbdata[Year],2020,tbl_twdbdata[utility],tbl_twdbdata[[#This Row],[utility]]))","v":8483321.2000000011},2289,249,304,0,283999291,6017257,117539804,0,2746847,30956860,{"$f":"tbl_twdbdata[[#This Row],[utility]]&tbl_twdbdata[[#This Row],[Year]]","v":"KERMIT2020"}]
[null,1260,"KERMIT","F",2030,5925,5993,31674204,{"$f":"IF(tbl_twdbdata[[#This Row],[Year]]=2016,0,tbl_twdbdata[[#This Row],[effsave]]-0.6*SUMIFS(tbl_twdbdata[effsave],tbl_twdbdata[Year],2020,tbl_twdbdata[utility],tbl_twdbdata[[#This Row],[utility]]))","v":18949222.200000003},2318,252,308,0,287647076,6094545,119049526,0,2782128,31354481,{"$f":"tbl_twdbdata[[#This Row],[utility]]&tbl_twdbdata[[#This Row],[Year]]","v":"KERMIT2030"}]
[null,1260,"KERMIT","F",2040,5925,6057,39551301,{"$f":"IF(tbl_twdbdata[[#This Row],[Year]]=2016,0,tbl_twdbdata[[#This Row],[effsave]]-0.6*SUMIFS(tbl_twdbdata[effsave],tbl_twdbdata[Year],2020,tbl_twdbdata[utility],tbl_twdbdata[[#This Row],[utility]]))","v":26826319.200000003},2343,255,312,0,290718895,6159629,120320871,0,2811839,31689319,{"$f":"tbl_twdbdata[[#This Row],[utility]]&tbl_twdbdata[[#This Row],[Year]]","v":"KERMIT2040"}]
[null,1260,"KERMIT","F",2050,5925,6124,40748790,{"$f":"IF(tbl_twdbdata[[#This Row],[Year]]=2016,0,tbl_twdbdata[[#This Row],[effsave]]-0.6*SUMIFS(tbl_twdbdata[effsave],tbl_twdbdata[Year],2020,tbl_twdbdata[utility],tbl_twdbdata[[#This Row],[utility]]))","v":28023808.200000003},2369,258,316,0,293934706,6227764,121651810,0,2842942,32039853,{"$f":"tbl_twdbdata[[#This Row],[utility]]&tbl_twdbdata[[#This Row],[Year]]","v":"KERMIT2050"}]
[null,1260,"KERMIT","F",2060,5925,6178,41829694,{"$f":"IF(tbl_twdbdata[[#This Row],[Year]]=2016,0,tbl_twdbdata[[#This Row],[effsave]]-0.6*SUMIFS(tbl_twdbdata[effsave],tbl_twdbdata[Year],2020,tbl_twdbdata[utility],tbl_twdbdata[[#This Row],[utility]]))","v":29104712.200000003},2390,261,320,0,296526554,6282679,122724508,0,2868010,32322373,{"$f":"tbl_twdbdata[[#This Row],[utility]]&tbl_twdbdata[[#This Row],[Year]]","v":"KERMIT2060"}]
[null,1260,"KERMIT","F",2070,5925,6225,42170640,{"$f":"IF(tbl_twdbdata[[#This Row],[Year]]=2016,0,tbl_twdbdata[[#This Row],[effsave]]-0.6*SUMIFS(tbl_twdbdata[effsave],tbl_twdbdata[Year],2020,tbl_twdbdata[utility],tbl_twdbdata[[#This Row],[utility]]))","v":29445658.200000003},2408,264,324,0,298782421,6330475,123658152,0,2889829,32568270,{"$f":"tbl_twdbdata[[#This Row],[utility]]&tbl_twdbdata[[#This Row],[Year]]","v":"KERMIT2070"}]
[null,1261,"KERRVILLE","J",2016,23862,23862,0,{"$f":"IF(tbl_twdbdata[[#This Row],[Year]]=2016,0,tbl_twdbdata[[#This Row],[effsave]]-0.6*SUMIFS(tbl_twdbdata[effsave],tbl_twdbdata[Year],2020,tbl_twdbdata[utility],tbl_twdbdata[[#This Row],[utility]]))","v":0},8083,0,1654,512,639612900,0,307889600,101500800,40480234,257935182,{"$f":"tbl_twdbdata[[#This Row],[utility]]&tbl_twdbdata[[#This Row],[Year]]","v":"KERRVILLE2016"}]
[null,1261,"KERRVILLE","J",2020,23028,25658,85878609,{"$f":"IF(tbl_twdbdata[[#This Row],[Year]]=2016,0,tbl_twdbdata[[#This Row],[effsave]]-0.6*SUMIFS(tbl_twdbdata[effsave],tbl_twdbdata[Year],2020,tbl_twdbdata[utility],tbl_twdbdata[[#This Row],[utility]]))","v":34351443.600000001},9006,0,1843,570,712662315,0,343053298,113093083,45103433,287393647,{"$f":"tbl_twdbdata[[#This Row],[utility]]&tbl_twdbdata[[#This Row],[Year]]","v":"KERRVILLE2020"}]
[null,1261,"KERRVILLE","J",2030,23028,26638,127564054,{"$f":"IF(tbl_twdbdata[[#This Row],[Year]]=2016,0,tbl_twdbdata[[#This Row],[effsave]]-0.6*SUMIFS(tbl_twdbdata[effsave],tbl_twdbdata[Year],2020,tbl_twdbdata[utility],tbl_twdbdata[[#This Row],[utility]]))","v":76036888.599999994},9350,0,1914,592,739882249,0,356156121,117412641,46826146,298370565,{"$f":"tbl_twdbdata[[#This Row],[utility]]&tbl_twdbdata[[#This Row],[Year]]","v":"KERRVILLE2030"}]
[null,1261,"KERRVILLE","J",2040,23028,27217,160536753,{"$f":"IF(tbl_twdbdata[[#This Row],[Year]]=2016,0,tbl_twdbdata[[#This Row],[effsave]]-0.6*SUMIFS(tbl_twdbdata[effsave],tbl_twdbdata[Year],2020,tbl_twdbdata[utility],tbl_twdbdata[[#This Row],[utility]]))","v":109009587.59999999},9553,0,1987,615,755964230,0,363897483,119964706,47843953,304855908,{"$f":"tbl_twdbdata[[#This Row],[utility]]&tbl_twdbdata[[#This Row],[Year]]","v":"KERRVILLE2040"}]
[null,1261,"KERRVILLE","J",2050,23028,27792,180463183,{"$f":"IF(tbl_twdbdata[[#This Row],[Year]]=2016,0,tbl_twdbdata[[#This Row],[effsave]]-0.6*SUMIFS(tbl_twdbdata[effsave],tbl_twdbdata[Year],2020,tbl_twdbdata[utility],tbl_twdbdata[[#This Row],[utility]]))","v":128936017.59999999},9755,0,2063,638,771935110,0,371585364,122499141,48854728,311296447,{"$f":"tbl_twdbdata[[#This Row],[utility]]&tbl_twdbdata[[#This Row],[Year]]","v":"KERRVILLE2050"}]
[null,1261,"KERRVILLE","J",2060,23028,28203,186220179,{"$f":"IF(tbl_twdbdata[[#This Row],[Year]]=2016,0,tbl_twdbdata[[#This Row],[effsave]]-0.6*SUMIFS(tbl_twdbdata[effsave],tbl_twdbdata[Year],2020,tbl_twdbdata[utility],tbl_twdbdata[[#This Row],[utility]]))","v":134693013.59999999},9899,0,2142,662,783350817,0,377080528,124310711,49577213,315900032,{"$f":"tbl_twdbdata[[#This Row],[utility]]&tbl_twdbdata[[#This Row],[Year]]","v":"KERRVILLE2060"}]
[null,1261,"KERRVILLE","J",2070,23028,28522,188534698,{"$f":"IF(tbl_twdbdata[[#This Row],[Year]]=2016,0,tbl_twdbdata[[#This Row],[effsave]]-0.6*SUMIFS(tbl_twdbdata[effsave],tbl_twdbdata[Year],2020,tbl_twdbdata[utility],tbl_twdbdata[[#This Row],[utility]]))","v":137007532.59999999},10011,0,2224,687,792211183,0,381345631,125716771,50137974,319473131,{"$f":"tbl_twdbdata[[#This Row],[utility]]&tbl_twdbdata[[#This Row],[Year]]","v":"KERRVILLE2070"}]
[null,1263,"KILGORE","D",2016,14500,14500,0,{"$f":"IF(tbl_twdbdata[[#This Row],[Year]]=2016,0,tbl_twdbdata[[#This Row],[effsave]]-0.6*SUMIFS(tbl_twdbdata[effsave],tbl_twdbdata[Year],2020,tbl_twdbdata[utility],tbl_twdbdata[[#This Row],[utility]]))","v":0},5096,0,1020,0,236797595,0,199587765,0,null,null,{"$f":"tbl_twdbdata[[#This Row],[utility]]&tbl_twdbdata[[#This Row],[Year]]","v":"KILGORE2016"}]
[null,1263,"KILGORE","D",2020,14169,14152,48607167,{"$f":"IF(tbl_twdbdata[[#This Row],[Year]]=2016,0,tbl_twdbdata[[#This Row],[effsave]]-0.6*SUMIFS(tbl_twdbdata[effsave],tbl_twdbdata[Year],2020,tbl_twdbdata[utility],tbl_twdbdata[[#This Row],[utility]]))","v":19442866.800000001},5090,0,1019,0,236513485,0,199348299,0,null,null,{"$f":"tbl_twdbdata[[#This Row],[utility]]&tbl_twdbdata[[#This Row],[Year]]","v":"KILGORE2020"}]
[null,1263,"KILGORE","D",2030,14169,15564,76237141,{"$f":"IF(tbl_twdbdata[[#This Row],[Year]]=2016,0,tbl_twdbdata[[#This Row],[effsave]]-0.6*SUMIFS(tbl_twdbdata[effsave],tbl_twdbdata[Year],2020,tbl_twdbdata[utility],tbl_twdbdata[[#This Row],[utility]]))","v":47072840.799999997},5598,0,1121,0,260111354,0,219238054,0,null,null,{"$f":"tbl_twdbdata[[#This Row],[utility]]&tbl_twdbdata[[#This Row],[Year]]","v":"KILGORE2030"}]
[null,1263,"KILGORE","D",2040,14169,17113,101376556,{"$f":"IF(tbl_twdbdata[[#This Row],[Year]]=2016,0,tbl_twdbdata[[#This Row],[effsave]]-0.6*SUMIFS(tbl_twdbdata[effsave],tbl_twdbdata[Year],2020,tbl_twdbdata[utility],tbl_twdbdata[[#This Row],[utility]]))","v":72212255.799999997},6155,0,1233,0,285998818,0,241057621,0,null,null,{"$f":"tbl_twdbdata[[#This Row],[utility]]&tbl_twdbdata[[#This Row],[Year]]","v":"KILGORE2040"}]
[null,1263,"KILGORE","D",2050,14169,18841,121240893,{"$f":"IF(tbl_twdbdata[[#This Row],[Year]]=2016,0,tbl_twdbdata[[#This Row],[effsave]]-0.6*SUMIFS(tbl_twdbdata[effsave],tbl_twdbdata[Year],2020,tbl_twdbdata[utility],tbl_twdbdata[[#This Row],[utility]]))","v":92076592.799999997},6777,0,1356,0,314877796,0,265398623,0,null,null,{"$f":"tbl_twdbdata[[#This Row],[utility]]&tbl_twdbdata[[#This Row],[Year]]","v":"KILGORE2050"}]
[null,1263,"KILGORE","D",2060,14169,20752,135886171,{"$f":"IF(tbl_twdbdata[[#This Row],[Year]]=2016,0,tbl_twdbdata[[#This Row],[effsave]]-0.6*SUMIFS(tbl_twdbdata[effsave],tbl_twdbdata[Year],2020,tbl_twdbdata[utility],tbl_twdbdata[[#This Row],[utility]]))","v":106721870.8},7464,0,1492,0,346815138,0,292317406,0,null,null,{"$f":"tbl_twdbdata[[#This Row],[utility]]&tbl_twdbdata[[#This Row],[Year]]","v":"KILGORE2060"}]
[null,1263,"KILGORE","D",2070,14169,22873,150526069,{"$f":"IF(tbl_twdbdata[[#This Row],[Year]]=2016,0,tbl_twdbdata[[#This Row],[effsave]]-0.6*SUMIFS(tbl_twdbdata[effsave],tbl_twdbdata[Year],2020,tbl_twdbdata[utility],tbl_twdbdata[[#This Row],[utility]]))","v":121361768.8},8227,0,1641,0,382262078,0,322194295,0,null,null,{"$f":"tbl_twdbdata[[#This Row],[utility]]&tbl_twdbdata[[#This Row],[Year]]","v":"KILGORE2070"}]
[null,1264,"KILLEEN","G",2016,141218,141218,0,{"$f":"IF(tbl_twdbdata[[#This Row],[Year]]=2016,0,tbl_twdbdata[[#This Row],[effsave]]-0.6*SUMIFS(tbl_twdbdata[effsave],tbl_twdbdata[Year],2020,tbl_twdbdata[utility],tbl_twdbdata[[#This Row],[utility]]))","v":0},44473,10396,3166,0,2891192380,408217720,909020000,0,66398925,1037084975,{"$f":"tbl_twdbdata[[#This Row],[utility]]&tbl_twdbdata[[#This Row],[Year]]","v":"KILLEEN2016"}]
[null,1264,"KILLEEN","G",2020,134979,144243,457517160,{"$f":"IF(tbl_twdbdata[[#This Row],[Year]]=2016,0,tbl_twdbdata[[#This Row],[effsave]]-0.6*SUMIFS(tbl_twdbdata[effsave],tbl_twdbdata[Year],2020,tbl_twdbdata[utility],tbl_twdbdata[[#This Row],[utility]]))","v":183006864},47525,11110,3383,0,3089623293,436234885,971408678,0,70956076,1108263123,{"$f":"tbl_twdbdata[[#This Row],[utility]]&tbl_twdbdata[[#This Row],[Year]]","v":"KILLEEN2020"}]
[null,1264,"KILLEEN","G",2030,134979,169560,735864966,{"$f":"IF(tbl_twdbdata[[#This Row],[Year]]=2016,0,tbl_twdbdata[[#This Row],[effsave]]-0.6*SUMIFS(tbl_twdbdata[effsave],tbl_twdbdata[Year],2020,tbl_twdbdata[utility],tbl_twdbdata[[#This Row],[utility]]))","v":461354670},55866,13060,3977,0,3631902592,512801225,1141906750,0,83410025,1302781384,{"$f":"tbl_twdbdata[[#This Row],[utility]]&tbl_twdbdata[[#This Row],[Year]]","v":"KILLEEN2030"}]
[null,1264,"KILLEEN","G",2040,134979,195711,987224997,{"$f":"IF(tbl_twdbdata[[#This Row],[Year]]=2016,0,tbl_twdbdata[[#This Row],[effsave]]-0.6*SUMIFS(tbl_twdbdata[effsave],tbl_twdbdata[Year],2020,tbl_twdbdata[utility],tbl_twdbdata[[#This Row],[utility]]))","v":712714701},64482,15352,4675,0,4192045814,591889836,1318021420,0,96274236,1503707522,{"$f":"tbl_twdbdata[[#This Row],[utility]]&tbl_twdbdata[[#This Row],[Year]]","v":"KILLEEN2040"}]
[null,1264,"KILLEEN","G",2050,134979,221697,1195179612,{"$f":"IF(tbl_twdbdata[[#This Row],[Year]]=2016,0,tbl_twdbdata[[#This Row],[effsave]]-0.6*SUMIFS(tbl_twdbdata[effsave],tbl_twdbdata[Year],2020,tbl_twdbdata[utility],tbl_twdbdata[[#This Row],[utility]]))","v":920669316},73044,18047,5496,0,4748654806,670479436,1493024893,0,109057280,1703365915,{"$f":"tbl_twdbdata[[#This Row],[utility]]&tbl_twdbdata[[#This Row],[Year]]","v":"KILLEEN2050"}]
[null,1264,"KILLEEN","G",2060,134979,247195,1356099410,{"$f":"IF(tbl_twdbdata[[#This Row],[Year]]=2016,0,tbl_twdbdata[[#This Row],[effsave]]-0.6*SUMIFS(tbl_twdbdata[effsave],tbl_twdbdata[Year],2020,tbl_twdbdata[utility],tbl_twdbdata[[#This Row],[utility]]))","v":1081589114},81445,21215,6461,0,5294811047,747593175,1664741915,0,121600267,1899274854,{"$f":"tbl_twdbdata[[#This Row],[utility]]&tbl_twdbdata[[#This Row],[Year]]","v":"KILLEEN2060"}]
[null,1264,"KILLEEN","G",2070,134979,272291,1502719571,{"$f":"IF(tbl_twdbdata[[#This Row],[Year]]=2016,0,tbl_twdbdata[[#This Row],[effsave]]-0.6*SUMIFS(tbl_twdbdata[effsave],tbl_twdbdata[Year],2020,tbl_twdbdata[utility],tbl_twdbdata[[#This Row],[utility]]))","v":1228209275},89714,24939,7595,0,5832356620,823491143,1833751657,0,133945502,2092095104,{"$f":"tbl_twdbdata[[#This Row],[utility]]&tbl_twdbdata[[#This Row],[Year]]","v":"KILLEEN2070"}]
[null,1267,"KINGSVILLE","N",2016,26213,26213,0,{"$f":"IF(tbl_twdbdata[[#This Row],[Year]]=2016,0,tbl_twdbdata[[#This Row],[effsave]]-0.6*SUMIFS(tbl_twdbdata[effsave],tbl_twdbdata[Year],2020,tbl_twdbdata[utility],tbl_twdbdata[[#This Row],[utility]]))","v":0},6789,174,881,149,496211000,15130700,590155700,49416600,null,null,{"$f":"tbl_twdbdata[[#This Row],[utility]]&tbl_twdbdata[[#This Row],[Year]]","v":"KINGSVILLE2016"}]
[null,1267,"KINGSVILLE","N",2020,26213,28892,106299446,{"$f":"IF(tbl_twdbdata[[#This Row],[Year]]=2016,0,tbl_twdbdata[[#This Row],[effsave]]-0.6*SUMIFS(tbl_twdbdata[effsave],tbl_twdbdata[Year],2020,tbl_twdbdata[utility],tbl_twdbdata[[#This Row],[utility]]))","v":42519778.400000006},7288,187,946,160,532699001,16243309,633551758,53050363,null,null,{"$f":"tbl_twdbdata[[#This Row],[utility]]&tbl_twdbdata[[#This Row],[Year]]","v":"KINGSVILLE2020"}]
[null,1267,"KINGSVILLE","N",2030,26213,31651,166242130,{"$f":"IF(tbl_twdbdata[[#This Row],[Year]]=2016,0,tbl_twdbdata[[#This Row],[effsave]]-0.6*SUMIFS(tbl_twdbdata[effsave],tbl_twdbdata[Year],2020,tbl_twdbdata[utility],tbl_twdbdata[[#This Row],[utility]]))","v":102462462.40000001},7984,205,1036,175,583568326,17794440,694051872,58116331,null,null,{"$f":"tbl_twdbdata[[#This Row],[utility]]&tbl_twdbdata[[#This Row],[Year]]","v":"KINGSVILLE2030"}]
[null,1267,"KINGSVILLE","N",2040,26213,34282,218225499,{"$f":"IF(tbl_twdbdata[[#This Row],[Year]]=2016,0,tbl_twdbdata[[#This Row],[effsave]]-0.6*SUMIFS(tbl_twdbdata[effsave],tbl_twdbdata[Year],2020,tbl_twdbdata[utility],tbl_twdbdata[[#This Row],[utility]]))","v":154445831.40000001},8648,225,1134,192,632077639,19273609,751745167,62947271,null,null,{"$f":"tbl_twdbdata[[#This Row],[utility]]&tbl_twdbdata[[#This Row],[Year]]","v":"KINGSVILLE2040"}]
[null,1267,"KINGSVILLE","N",2050,26213,36817,254788367,{"$f":"IF(tbl_twdbdata[[#This Row],[Year]]=2016,0,tbl_twdbdata[[#This Row],[effsave]]-0.6*SUMIFS(tbl_twdbdata[effsave],tbl_twdbdata[Year],2020,tbl_twdbdata[utility],tbl_twdbdata[[#This Row],[utility]]))","v":191008699.40000001},9287,246,1243,210,678816943,20698806,807333347,67601939,null,null,{"$f":"tbl_twdbdata[[#This Row],[utility]]&tbl_twdbdata[[#This Row],[Year]]","v":"KINGSVILLE2050"}]
[null,1267,"KINGSVILLE","N",2060,26213,39194,275386843,{"$f":"IF(tbl_twdbdata[[#This Row],[Year]]=2016,0,tbl_twdbdata[[#This Row],[effsave]]-0.6*SUMIFS(tbl_twdbdata[effsave],tbl_twdbdata[Year],2020,tbl_twdbdata[utility],tbl_twdbdata[[#This Row],[utility]]))","v":211607175.40000001},9887,269,1362,230,722643107,22035174,859456860,71966494,null,null,{"$f":"tbl_twdbdata[[#This Row],[utility]]&tbl_twdbdata[[#This Row],[Year]]","v":"KINGSVILLE2060"}]
[null,1267,"KINGSVILLE","N",2070,26213,41419,291927325,{"$f":"IF(tbl_twdbdata[[#This Row],[Year]]=2016,0,tbl_twdbdata[[#This Row],[effsave]]-0.6*SUMIFS(tbl_twdbdata[effsave],tbl_twdbdata[Year],2020,tbl_twdbdata[utility],tbl_twdbdata[[#This Row],[utility]]))","v":228147657.40000001},10448,295,1492,252,763666756,23286086,908247274,76051952,null,null,{"$f":"tbl_twdbdata[[#This Row],[utility]]&tbl_twdbdata[[#This Row],[Year]]","v":"KINGSVILLE2070"}]
[null,1270,"KIRBYVILLE","I",2016,2114,2114,0,{"$f":"IF(tbl_twdbdata[[#This Row],[Year]]=2016,0,tbl_twdbdata[[#This Row],[effsave]]-0.6*SUMIFS(tbl_twdbdata[effsave],tbl_twdbdata[Year],2020,tbl_twdbdata[utility],tbl_twdbdata[[#This Row],[utility]]))","v":0},737,9,140,0,50987940,8715220,31104416,0,null,null,{"$f":"tbl_twdbdata[[#This Row],[utility]]&tbl_twdbdata[[#This Row],[Year]]","v":"KIRBYVILLE2016"}]
[null,1270,"KIRBYVILLE","I",2020,2114,2218,7399470,{"$f":"IF(tbl_twdbdata[[#This Row],[Year]]=2016,0,tbl_twdbdata[[#This Row],[effsave]]-0.6*SUMIFS(tbl_twdbdata[effsave],tbl_twdbdata[Year],2020,tbl_twdbdata[utility],tbl_twdbdata[[#This Row],[utility]]))","v":2959788},751,9,143,0,51948209,8879356,31690214,0,null,null,{"$f":"tbl_twdbdata[[#This Row],[utility]]&tbl_twdbdata[[#This Row],[Year]]","v":"KIRBYVILLE2020"}]
[null,1270,"KIRBYVILLE","I",2030,2114,2267,10773464,{"$f":"IF(tbl_twdbdata[[#This Row],[Year]]=2016,0,tbl_twdbdata[[#This Row],[effsave]]-0.6*SUMIFS(tbl_twdbdata[effsave],tbl_twdbdata[Year],2020,tbl_twdbdata[utility],tbl_twdbdata[[#This Row],[utility]]))","v":6333782},768,9,146,0,53095848,9075519,32390313,0,null,null,{"$f":"tbl_twdbdata[[#This Row],[utility]]&tbl_twdbdata[[#This Row],[Year]]","v":"KIRBYVILLE2030"}]
[null,1270,"KIRBYVILLE","I",2040,2114,2276,13341684,{"$f":"IF(tbl_twdbdata[[#This Row],[Year]]=2016,0,tbl_twdbdata[[#This Row],[effsave]]-0.6*SUMIFS(tbl_twdbdata[effsave],tbl_twdbdata[Year],2020,tbl_twdbdata[utility],tbl_twdbdata[[#This Row],[utility]]))","v":8902002},771,9,150,0,53306639,9111549,32518903,0,null,null,{"$f":"tbl_twdbdata[[#This Row],[utility]]&tbl_twdbdata[[#This Row],[Year]]","v":"KIRBYVILLE2040"}]
[null,1270,"KIRBYVILLE","I",2050,2114,2276,14712405,{"$f":"IF(tbl_twdbdata[[#This Row],[Year]]=2016,0,tbl_twdbdata[[#This Row],[effsave]]-0.6*SUMIFS(tbl_twdbdata[effsave],tbl_twdbdata[Year],2020,tbl_twdbdata[utility],tbl_twdbdata[[#This Row],[utility]]))","v":10272723},771,9,154,0,53306639,9111549,32518903,0,null,null,{"$f":"tbl_twdbdata[[#This Row],[utility]]&tbl_twdbdata[[#This Row],[Year]]","v":"KIRBYVILLE2050"}]
[null,1270,"KIRBYVILLE","I",2060,2114,2276,14969935,{"$f":"IF(tbl_twdbdata[[#This Row],[Year]]=2016,0,tbl_twdbdata[[#This Row],[effsave]]-0.6*SUMIFS(tbl_twdbdata[effsave],tbl_twdbdata[Year],2020,tbl_twdbdata[utility],tbl_twdbdata[[#This Row],[utility]]))","v":10530253},771,9,158,0,53306639,9111549,32518903,0,null,null,{"$f":"tbl_twdbdata[[#This Row],[utility]]&tbl_twdbdata[[#This Row],[Year]]","v":"KIRBYVILLE2060"}]
[null,1270,"KIRBYVILLE","I",2070,2114,2276,14978242,{"$f":"IF(tbl_twdbdata[[#This Row],[Year]]=2016,0,tbl_twdbdata[[#This Row],[effsave]]-0.6*SUMIFS(tbl_twdbdata[effsave],tbl_twdbdata[Year],2020,tbl_twdbdata[utility],tbl_twdbdata[[#This Row],[utility]]))","v":10538560},771,9,162,0,53306639,9111549,32518903,0,null,null,{"$f":"tbl_twdbdata[[#This Row],[utility]]&tbl_twdbdata[[#This Row],[Year]]","v":"KIRBYVILLE2070"}]
[null,1275,"KRUM","C",2016,4880,4880,0,{"$f":"IF(tbl_twdbdata[[#This Row],[Year]]=2016,0,tbl_twdbdata[[#This Row],[effsave]]-0.6*SUMIFS(tbl_twdbdata[effsave],tbl_twdbdata[Year],2020,tbl_twdbdata[utility],tbl_twdbdata[[#This Row],[utility]]))","v":0},1717,0,97,0,114042000,0,22587000,0,null,null,{"$f":"tbl_twdbdata[[#This Row],[utility]]&tbl_twdbdata[[#This Row],[Year]]","v":"KRUM2016"}]
[null,1275,"KRUM","C",2020,4880,5110,14343004,{"$f":"IF(tbl_twdbdata[[#This Row],[Year]]=2016,0,tbl_twdbdata[[#This Row],[effsave]]-0.6*SUMIFS(tbl_twdbdata[effsave],tbl_twdbdata[Year],2020,tbl_twdbdata[utility],tbl_twdbdata[[#This Row],[utility]]))","v":5737201.5999999996},1768,0,100,0,117396176,0,23251324,0,null,null,{"$f":"tbl_twdbdata[[#This Row],[utility]]&tbl_twdbdata[[#This Row],[Year]]","v":"KRUM2020"}]
[null,1275,"KRUM","C",2030,4880,6347,24070045,{"$f":"IF(tbl_twdbdata[[#This Row],[Year]]=2016,0,tbl_twdbdata[[#This Row],[effsave]]-0.6*SUMIFS(tbl_twdbdata[effsave],tbl_twdbdata[Year],2020,tbl_twdbdata[utility],tbl_twdbdata[[#This Row],[utility]]))","v":15464242.6},2196,0,124,0,145814781,0,28879873,0,null,null,{"$f":"tbl_twdbdata[[#This Row],[utility]]&tbl_twdbdata[[#This Row],[Year]]","v":"KRUM2030"}]
[null,1275,"KRUM","C",2040,4880,7827,33739458,{"$f":"IF(tbl_twdbdata[[#This Row],[Year]]=2016,0,tbl_twdbdata[[#This Row],[effsave]]-0.6*SUMIFS(tbl_twdbdata[effsave],tbl_twdbdata[Year],2020,tbl_twdbdata[utility],tbl_twdbdata[[#This Row],[utility]]))","v":25133655.600000001},2708,0,154,0,179816022,0,35614112,0,null,null,{"$f":"tbl_twdbdata[[#This Row],[utility]]&tbl_twdbdata[[#This Row],[Year]]","v":"KRUM2040"}]
[null,1275,"KRUM","C",2050,4880,9479,43213339,{"$f":"IF(tbl_twdbdata[[#This Row],[Year]]=2016,0,tbl_twdbdata[[#This Row],[effsave]]-0.6*SUMIFS(tbl_twdbdata[effsave],tbl_twdbdata[Year],2020,tbl_twdbdata[utility],tbl_twdbdata[[#This Row],[utility]]))","v":34607536.600000001},3280,0,191,0,217768758,0,43130978,0,null,null,{"$f":"tbl_twdbdata[[#This Row],[utility]]&tbl_twdbdata[[#This Row],[Year]]","v":"KRUM2050"}]
[null,1275,"KRUM","C",2060,4880,11413,53029934,{"$f":"IF(tbl_twdbdata[[#This Row],[Year]]=2016,0,tbl_twdbdata[[#This Row],[effsave]]-0.6*SUMIFS(tbl_twdbdata[effsave],tbl_twdbdata[Year],2020,tbl_twdbdata[utility],tbl_twdbdata[[#This Row],[utility]]))","v":44424131.600000001},3949,0,237,0,262200109,0,51930990,0,null,null,{"$f":"tbl_twdbdata[[#This Row],[utility]]&tbl_twdbdata[[#This Row],[Year]]","v":"KRUM2060"}]
[null,1275,"KRUM","C",2070,4880,13621,63786462,{"$f":"IF(tbl_twdbdata[[#This Row],[Year]]=2016,0,tbl_twdbdata[[#This Row],[effsave]]-0.6*SUMIFS(tbl_twdbdata[effsave],tbl_twdbdata[Year],2020,tbl_twdbdata[utility],tbl_twdbdata[[#This Row],[utility]]))","v":55180659.600000001},4713,0,294,0,312926284,0,61977746,0,null,null,{"$f":"tbl_twdbdata[[#This Row],[utility]]&tbl_twdbdata[[#This Row],[Year]]","v":"KRUM2070"}]
[null,1276,"KYLE","L",2016,26305,26305,0,{"$f":"IF(tbl_twdbdata[[#This Row],[Year]]=2016,0,tbl_twdbdata[[#This Row],[effsave]]-0.6*SUMIFS(tbl_twdbdata[effsave],tbl_twdbdata[Year],2020,tbl_twdbdata[utility],tbl_twdbdata[[#This Row],[utility]]))","v":0},8425,10,323,0,593556300,38155500,172534500,0,null,null,{"$f":"tbl_twdbdata[[#This Row],[utility]]&tbl_twdbdata[[#This Row],[Year]]","v":"KYLE2016"}]
[null,1276,"KYLE","L",2020,26305,48269,112932566,{"$f":"IF(tbl_twdbdata[[#This Row],[Year]]=2016,0,tbl_twdbdata[[#This Row],[effsave]]-0.6*SUMIFS(tbl_twdbdata[effsave],tbl_twdbdata[Year],2020,tbl_twdbdata[utility],tbl_twdbdata[[#This Row],[utility]]))","v":45173026.400000006},12826,15,492,0,903626097,58087675,262665356,0,null,null,{"$f":"tbl_twdbdata[[#This Row],[utility]]&tbl_twdbdata[[#This Row],[Year]]","v":"KYLE2020"}]
[null,1276,"KYLE","L",2030,26305,77050,225548465,{"$f":"IF(tbl_twdbdata[[#This Row],[Year]]=2016,0,tbl_twdbdata[[#This Row],[effsave]]-0.6*SUMIFS(tbl_twdbdata[effsave],tbl_twdbdata[Year],2020,tbl_twdbdata[utility],tbl_twdbdata[[#This Row],[utility]]))","v":157788925.40000001},20474,24,785,0,1442424554,92723184,419282887,0,null,null,{"$f":"tbl_twdbdata[[#This Row],[utility]]&tbl_twdbdata[[#This Row],[Year]]","v":"KYLE2030"}]
[null,1276,"KYLE","L",2040,26305,92000,281400400,{"$f":"IF(tbl_twdbdata[[#This Row],[Year]]=2016,0,tbl_twdbdata[[#This Row],[effsave]]-0.6*SUMIFS(tbl_twdbdata[effsave],tbl_twdbdata[Year],2020,tbl_twdbdata[utility],tbl_twdbdata[[#This Row],[utility]]))","v":213640860.40000001},24447,38,1253,0,1722297975,110714250,500636283,0,null,null,{"$f":"tbl_twdbdata[[#This Row],[utility]]&tbl_twdbdata[[#This Row],[Year]]","v":"KYLE2040"}]
[null,1276,"KYLE","L",2050,26305,92000,286101600,{"$f":"IF(tbl_twdbdata[[#This Row],[Year]]=2016,0,tbl_twdbdata[[#This Row],[effsave]]-0.6*SUMIFS(tbl_twdbdata[effsave],tbl_twdbdata[Year],2020,tbl_twdbdata[utility],tbl_twdbdata[[#This Row],[utility]]))","v":218342060.40000001},24447,61,2000,0,1722297975,110714250,500636283,0,null,null,{"$f":"tbl_twdbdata[[#This Row],[utility]]&tbl_twdbdata[[#This Row],[Year]]","v":"KYLE2050"}]
[null,1276,"KYLE","L",2060,26305,92000,289459600,{"$f":"IF(tbl_twdbdata[[#This Row],[Year]]=2016,0,tbl_twdbdata[[#This Row],[effsave]]-0.6*SUMIFS(tbl_twdbdata[effsave],tbl_twdbdata[Year],2020,tbl_twdbdata[utility],tbl_twdbdata[[#This Row],[utility]]))","v":221700060.40000001},24447,97,3192,0,1722297975,110714250,500636283,0,null,null,{"$f":"tbl_twdbdata[[#This Row],[utility]]&tbl_twdbdata[[#This Row],[Year]]","v":"KYLE2060"}]
[null,1276,"KYLE","L",2070,26305,92000,290802800,{"$f":"IF(tbl_twdbdata[[#This Row],[Year]]=2016,0,tbl_twdbdata[[#This Row],[effsave]]-0.6*SUMIFS(tbl_twdbdata[effsave],tbl_twdbdata[Year],2020,tbl_twdbdata[utility],tbl_twdbdata[[#This Row],[utility]]))","v":223043260.40000001},24447,155,5095,0,1722297975,110714250,500636283,0,null,null,{"$f":"tbl_twdbdata[[#This Row],[utility]]&tbl_twdbdata[[#This Row],[Year]]","v":"KYLE2070"}]
[null,1277,"LA FERIA","M",2016,8106,8106,0,{"$f":"IF(tbl_twdbdata[[#This Row],[Year]]=2016,0,tbl_twdbdata[[#This Row],[effsave]]-0.6*SUMIFS(tbl_twdbdata[effsave],tbl_twdbdata[Year],2020,tbl_twdbdata[utility],tbl_twdbdata[[#This Row],[utility]]))","v":0},2386,23,305,0,136477235,16840590,40105278,0,3296742,67019549,{"$f":"tbl_twdbdata[[#This Row],[utility]]&tbl_twdbdata[[#This Row],[Year]]","v":"LA FERIA2016"}]
[null,1277,"LA FERIA","M",2020,7783,8610,29258072,{"$f":"IF(tbl_twdbdata[[#This Row],[Year]]=2016,0,tbl_twdbdata[[#This Row],[effsave]]-0.6*SUMIFS(tbl_twdbdata[effsave],tbl_twdbdata[Year],2020,tbl_twdbdata[utility],tbl_twdbdata[[#This Row],[utility]]))","v":11703228.800000001},2640,25,337,0,150978928,18630024,44366753,0,3647045,74140860,{"$f":"tbl_twdbdata[[#This Row],[utility]]&tbl_twdbdata[[#This Row],[Year]]","v":"LA FERIA2020"}]
[null,1277,"LA FERIA","M",2030,7783,10059,47509663,{"$f":"IF(tbl_twdbdata[[#This Row],[Year]]=2016,0,tbl_twdbdata[[#This Row],[effsave]]-0.6*SUMIFS(tbl_twdbdata[effsave],tbl_twdbdata[Year],2020,tbl_twdbdata[utility],tbl_twdbdata[[#This Row],[utility]]))","v":29954819.800000001},3084,29,394,0,176387577,21765321,51833353,0,4260816,86618224,{"$f":"tbl_twdbdata[[#This Row],[utility]]&tbl_twdbdata[[#This Row],[Year]]","v":"LA FERIA2030"}]
[null,1277,"LA FERIA","M",2040,7783,11530,63758018,{"$f":"IF(tbl_twdbdata[[#This Row],[Year]]=2016,0,tbl_twdbdata[[#This Row],[effsave]]-0.6*SUMIFS(tbl_twdbdata[effsave],tbl_twdbdata[Year],2020,tbl_twdbdata[utility],tbl_twdbdata[[#This Row],[utility]]))","v":46203174.799999997},3535,34,460,0,202182002,24948221,59413318,0,4883906,99285031,{"$f":"tbl_twdbdata[[#This Row],[utility]]&tbl_twdbdata[[#This Row],[Year]]","v":"LA FERIA2040"}]
[null,1277,"LA FERIA","M",2050,7783,13113,77632894,{"$f":"IF(tbl_twdbdata[[#This Row],[Year]]=2016,0,tbl_twdbdata[[#This Row],[effsave]]-0.6*SUMIFS(tbl_twdbdata[effsave],tbl_twdbdata[Year],2020,tbl_twdbdata[utility],tbl_twdbdata[[#This Row],[utility]]))","v":60078050.799999997},4020,40,538,0,229940381,28373462,67570412,0,5554437,112916272,{"$f":"tbl_twdbdata[[#This Row],[utility]]&tbl_twdbdata[[#This Row],[Year]]","v":"LA FERIA2050"}]
[null,1277,"LA FERIA","M",2060,7783,14742,88729887,{"$f":"IF(tbl_twdbdata[[#This Row],[Year]]=2016,0,tbl_twdbdata[[#This Row],[effsave]]-0.6*SUMIFS(tbl_twdbdata[effsave],tbl_twdbdata[Year],2020,tbl_twdbdata[utility],tbl_twdbdata[[#This Row],[utility]]))","v":71175043.799999997},4519,47,629,0,258505384,31898237,75964540,0,6244453,126943619,{"$f":"tbl_twdbdata[[#This Row],[utility]]&tbl_twdbdata[[#This Row],[Year]]","v":"LA FERIA2060"}]
[null,1277,"LA FERIA","M",2070,7783,16411,99314449,{"$f":"IF(tbl_twdbdata[[#This Row],[Year]]=2016,0,tbl_twdbdata[[#This Row],[effsave]]-0.6*SUMIFS(tbl_twdbdata[effsave],tbl_twdbdata[Year],2020,tbl_twdbdata[utility],tbl_twdbdata[[#This Row],[utility]]))","v":81759605.799999997},5031,55,735,0,287771799,35509562,84564785,0,6951412,141315407,{"$f":"tbl_twdbdata[[#This Row],[utility]]&tbl_twdbdata[[#This Row],[Year]]","v":"LA FERIA2070"}]
[null,1279,"LA GRULLA","M",2016,9342,9342,0,{"$f":"IF(tbl_twdbdata[[#This Row],[Year]]=2016,0,tbl_twdbdata[[#This Row],[effsave]]-0.6*SUMIFS(tbl_twdbdata[effsave],tbl_twdbdata[Year],2020,tbl_twdbdata[utility],tbl_twdbdata[[#This Row],[utility]]))","v":0},3033,18,57,0,240000000,40000000,50000000,0,4462500,22537500,{"$f":"tbl_twdbdata[[#This Row],[utility]]&tbl_twdbdata[[#This Row],[Year]]","v":"LA GRULLA2016"}]
[null,1279,"LA GRULLA","M",2020,8548,7314,24907461,{"$f":"IF(tbl_twdbdata[[#This Row],[Year]]=2016,0,tbl_twdbdata[[#This Row],[effsave]]-0.6*SUMIFS(tbl_twdbdata[effsave],tbl_twdbdata[Year],2020,tbl_twdbdata[utility],tbl_twdbdata[[#This Row],[utility]]))","v":9962984.4000000004},2595,15,49,0,205353299,34225550,42781937,0,3818288,19283958,{"$f":"tbl_twdbdata[[#This Row],[utility]]&tbl_twdbdata[[#This Row],[Year]]","v":"LA GRULLA2020"}]
[null,1279,"LA GRULLA","M",2030,8548,8273,39436564,{"$f":"IF(tbl_twdbdata[[#This Row],[Year]]=2016,0,tbl_twdbdata[[#This Row],[effsave]]-0.6*SUMIFS(tbl_twdbdata[effsave],tbl_twdbdata[Year],2020,tbl_twdbdata[utility],tbl_twdbdata[[#This Row],[utility]]))","v":24492087.399999999},2935,17,55,0,232278896,38713149,48391436,0,4318936,21812440,{"$f":"tbl_twdbdata[[#This Row],[utility]]&tbl_twdbdata[[#This Row],[Year]]","v":"LA GRULLA2030"}]
[null,1279,"LA GRULLA","M",2040,8548,9158,51677678,{"$f":"IF(tbl_twdbdata[[#This Row],[Year]]=2016,0,tbl_twdbdata[[#This Row],[effsave]]-0.6*SUMIFS(tbl_twdbdata[effsave],tbl_twdbdata[Year],2020,tbl_twdbdata[utility],tbl_twdbdata[[#This Row],[utility]]))","v":36733201.399999999},3249,19,62,0,257126814,42854469,53568085,0,4780952,24145815,{"$f":"tbl_twdbdata[[#This Row],[utility]]&tbl_twdbdata[[#This Row],[Year]]","v":"LA GRULLA2040"}]
[null,1279,"LA GRULLA","M",2050,8548,10031,60960895,{"$f":"IF(tbl_twdbdata[[#This Row],[Year]]=2016,0,tbl_twdbdata[[#This Row],[effsave]]-0.6*SUMIFS(tbl_twdbdata[effsave],tbl_twdbdata[Year],2020,tbl_twdbdata[utility],tbl_twdbdata[[#This Row],[utility]]))","v":46016418.399999999},3559,21,70,0,281637811,46939635,58674543,0,5236703,26447551,{"$f":"tbl_twdbdata[[#This Row],[utility]]&tbl_twdbdata[[#This Row],[Year]]","v":"LA GRULLA2050"}]
[null,1279,"LA GRULLA","M",2060,8548,10815,66791277,{"$f":"IF(tbl_twdbdata[[#This Row],[Year]]=2016,0,tbl_twdbdata[[#This Row],[effsave]]-0.6*SUMIFS(tbl_twdbdata[effsave],tbl_twdbdata[Year],2020,tbl_twdbdata[utility],tbl_twdbdata[[#This Row],[utility]]))","v":51846800.399999999},3837,24,79,0,303649978,50608329,63260411,0,5645992,28514631,{"$f":"tbl_twdbdata[[#This Row],[utility]]&tbl_twdbdata[[#This Row],[Year]]","v":"LA GRULLA2060"}]
[null,1279,"LA GRULLA","M",2070,8548,11522,71451955,{"$f":"IF(tbl_twdbdata[[#This Row],[Year]]=2016,0,tbl_twdbdata[[#This Row],[effsave]]-0.6*SUMIFS(tbl_twdbdata[effsave],tbl_twdbdata[Year],2020,tbl_twdbdata[utility],tbl_twdbdata[[#This Row],[utility]]))","v":56507478.399999999},4088,27,89,0,323500235,53916705,67395881,0,6015083,30378694,{"$f":"tbl_twdbdata[[#This Row],[utility]]&tbl_twdbdata[[#This Row],[Year]]","v":"LA GRULLA2070"}]
[null,1280,"LA JOYA","M",2016,3985,3985,0,{"$f":"IF(tbl_twdbdata[[#This Row],[Year]]=2016,0,tbl_twdbdata[[#This Row],[effsave]]-0.6*SUMIFS(tbl_twdbdata[effsave],tbl_twdbdata[Year],2020,tbl_twdbdata[utility],tbl_twdbdata[[#This Row],[utility]]))","v":0},1039,6,135,0,92924530,896080,59678490,0,null,null,{"$f":"tbl_twdbdata[[#This Row],[utility]]&tbl_twdbdata[[#This Row],[Year]]","v":"LA JOYA2016"}]
[null,1280,"LA JOYA","M",2020,3985,5050,18156013,{"$f":"IF(tbl_twdbdata[[#This Row],[Year]]=2016,0,tbl_twdbdata[[#This Row],[effsave]]-0.6*SUMIFS(tbl_twdbdata[effsave],tbl_twdbdata[Year],2020,tbl_twdbdata[utility],tbl_twdbdata[[#This Row],[utility]]))","v":7262405.2000000011},1303,8,169,0,116559582,1123995,74857520,0,null,null,{"$f":"tbl_twdbdata[[#This Row],[utility]]&tbl_twdbdata[[#This Row],[Year]]","v":"LA JOYA2020"}]
[null,1280,"LA JOYA","M",2030,3985,6271,31037687,{"$f":"IF(tbl_twdbdata[[#This Row],[Year]]=2016,0,tbl_twdbdata[[#This Row],[effsave]]-0.6*SUMIFS(tbl_twdbdata[effsave],tbl_twdbdata[Year],2020,tbl_twdbdata[utility],tbl_twdbdata[[#This Row],[utility]]))","v":20144079.200000003},1618,10,210,0,144741612,1395757,92956734,0,null,null,{"$f":"tbl_twdbdata[[#This Row],[utility]]&tbl_twdbdata[[#This Row],[Year]]","v":"LA JOYA2030"}]
[null,1280,"LA JOYA","M",2040,3985,7496,42682224,{"$f":"IF(tbl_twdbdata[[#This Row],[Year]]=2016,0,tbl_twdbdata[[#This Row],[effsave]]-0.6*SUMIFS(tbl_twdbdata[effsave],tbl_twdbdata[Year],2020,tbl_twdbdata[utility],tbl_twdbdata[[#This Row],[utility]]))","v":31788616.200000003},1934,12,261,0,173015966,1668409,111115241,0,null,null,{"$f":"tbl_twdbdata[[#This Row],[utility]]&tbl_twdbdata[[#This Row],[Year]]","v":"LA JOYA2040"}]
[null,1280,"LA JOYA","M",2050,3985,8724,52635818,{"$f":"IF(tbl_twdbdata[[#This Row],[Year]]=2016,0,tbl_twdbdata[[#This Row],[effsave]]-0.6*SUMIFS(tbl_twdbdata[effsave],tbl_twdbdata[Year],2020,tbl_twdbdata[utility],tbl_twdbdata[[#This Row],[utility]]))","v":41742210.200000003},2251,15,324,0,201359563,1941729,129318218,0,null,null,{"$f":"tbl_twdbdata[[#This Row],[utility]]&tbl_twdbdata[[#This Row],[Year]]","v":"LA JOYA2050"}]
[null,1280,"LA JOYA","M",2060,3985,9952,60880365,{"$f":"IF(tbl_twdbdata[[#This Row],[Year]]=2016,0,tbl_twdbdata[[#This Row],[effsave]]-0.6*SUMIFS(tbl_twdbdata[effsave],tbl_twdbdata[Year],2020,tbl_twdbdata[utility],tbl_twdbdata[[#This Row],[utility]]))","v":49986757.200000003},2568,19,402,0,229703160,2215049,147521195,0,null,null,{"$f":"tbl_twdbdata[[#This Row],[utility]]&tbl_twdbdata[[#This Row],[Year]]","v":"LA JOYA2060"}]
[null,1280,"LA JOYA","M",2070,3985,11146,68510004,{"$f":"IF(tbl_twdbdata[[#This Row],[Year]]=2016,0,tbl_twdbdata[[#This Row],[effsave]]-0.6*SUMIFS(tbl_twdbdata[effsave],tbl_twdbdata[Year],2020,tbl_twdbdata[utility],tbl_twdbdata[[#This Row],[utility]]))","v":57616396.200000003},2876,24,499,0,257262000,2480801,165220181,0,null,null,{"$f":"tbl_twdbdata[[#This Row],[utility]]&tbl_twdbdata[[#This Row],[Year]]","v":"LA JOYA2070"}]
[null,1281,"LA MARQUE","H",2016,14509,14509,0,{"$f":"IF(tbl_twdbdata[[#This Row],[Year]]=2016,0,tbl_twdbdata[[#This Row],[effsave]]-0.6*SUMIFS(tbl_twdbdata[effsave],tbl_twdbdata[Year],2020,tbl_twdbdata[utility],tbl_twdbdata[[#This Row],[utility]]))","v":0},5196,0,0,0,776437250,0,0,0,null,null,{"$f":"tbl_twdbdata[[#This Row],[utility]]&tbl_twdbdata[[#This Row],[Year]]","v":"LA MARQUE2016"}]
[null,1281,"LA MARQUE","H",2020,14509,21572,92831866,{"$f":"IF(tbl_twdbdata[[#This Row],[Year]]=2016,0,tbl_twdbdata[[#This Row],[effsave]]-0.6*SUMIFS(tbl_twdbdata[effsave],tbl_twdbdata[Year],2020,tbl_twdbdata[utility],tbl_twdbdata[[#This Row],[utility]]))","v":37132746.399999999},7049,0,0,0,1053282880,0,0,0,null,null,{"$f":"tbl_twdbdata[[#This Row],[utility]]&tbl_twdbdata[[#This Row],[Year]]","v":"LA MARQUE2020"}]
[null,1281,"LA MARQUE","H",2030,14509,23566,132120422,{"$f":"IF(tbl_twdbdata[[#This Row],[Year]]=2016,0,tbl_twdbdata[[#This Row],[effsave]]-0.6*SUMIFS(tbl_twdbdata[effsave],tbl_twdbdata[Year],2020,tbl_twdbdata[utility],tbl_twdbdata[[#This Row],[utility]]))","v":76421302.400000006},7701,0,0,0,1150642701,0,0,0,null,null,{"$f":"tbl_twdbdata[[#This Row],[utility]]&tbl_twdbdata[[#This Row],[Year]]","v":"LA MARQUE2030"}]
[null,1281,"LA MARQUE","H",2040,14509,24058,154987651,{"$f":"IF(tbl_twdbdata[[#This Row],[Year]]=2016,0,tbl_twdbdata[[#This Row],[effsave]]-0.6*SUMIFS(tbl_twdbdata[effsave],tbl_twdbdata[Year],2020,tbl_twdbdata[utility],tbl_twdbdata[[#This Row],[utility]]))","v":99288531.400000006},7862,0,0,0,1174665285,0,0,0,null,null,{"$f":"tbl_twdbdata[[#This Row],[utility]]&tbl_twdbdata[[#This Row],[Year]]","v":"LA MARQUE2040"}]
[null,1281,"LA MARQUE","H",2050,14509,24467,168517686,{"$f":"IF(tbl_twdbdata[[#This Row],[Year]]=2016,0,tbl_twdbdata[[#This Row],[effsave]]-0.6*SUMIFS(tbl_twdbdata[effsave],tbl_twdbdata[Year],2020,tbl_twdbdata[utility],tbl_twdbdata[[#This Row],[utility]]))","v":112818566.40000001},7996,0,0,0,1194635278,0,0,0,null,null,{"$f":"tbl_twdbdata[[#This Row],[utility]]&tbl_twdbdata[[#This Row],[Year]]","v":"LA MARQUE2050"}]
[null,1281,"LA MARQUE","H",2060,14509,24813,172893262,{"$f":"IF(tbl_twdbdata[[#This Row],[Year]]=2016,0,tbl_twdbdata[[#This Row],[effsave]]-0.6*SUMIFS(tbl_twdbdata[effsave],tbl_twdbdata[Year],2020,tbl_twdbdata[utility],tbl_twdbdata[[#This Row],[utility]]))","v":117194142.40000001},8109,0,0,0,1211529209,0,0,0,null,null,{"$f":"tbl_twdbdata[[#This Row],[utility]]&tbl_twdbdata[[#This Row],[Year]]","v":"LA MARQUE2060"}]
[null,1281,"LA MARQUE","H",2070,14509,25115,175455902,{"$f":"IF(tbl_twdbdata[[#This Row],[Year]]=2016,0,tbl_twdbdata[[#This Row],[effsave]]-0.6*SUMIFS(tbl_twdbdata[effsave],tbl_twdbdata[Year],2020,tbl_twdbdata[utility],tbl_twdbdata[[#This Row],[utility]]))","v":119756782.40000001},8208,0,0,0,1226274779,0,0,0,null,null,{"$f":"tbl_twdbdata[[#This Row],[utility]]&tbl_twdbdata[[#This Row],[Year]]","v":"LA MARQUE2070"}]
[null,1282,"LA PORTE","H",2016,33585,34733,0,{"$f":"IF(tbl_twdbdata[[#This Row],[Year]]=2016,0,tbl_twdbdata[[#This Row],[effsave]]-0.6*SUMIFS(tbl_twdbdata[effsave],tbl_twdbdata[Year],2020,tbl_twdbdata[utility],tbl_twdbdata[[#This Row],[utility]]))","v":0},11266,3012,1222,0,645329800,134287300,317571320,0,56678282,214582086,{"$f":"tbl_twdbdata[[#This Row],[utility]]&tbl_twdbdata[[#This Row],[Year]]","v":"LA PORTE2016"}]
[null,1282,"LA PORTE","H",2020,33585,33703,110837371,{"$f":"IF(tbl_twdbdata[[#This Row],[Year]]=2016,0,tbl_twdbdata[[#This Row],[effsave]]-0.6*SUMIFS(tbl_twdbdata[effsave],tbl_twdbdata[Year],2020,tbl_twdbdata[utility],tbl_twdbdata[[#This Row],[utility]]))","v":44334948.400000006},10932,2923,1186,0,626192677,130305038,308153807,0,54997499,208218698,{"$f":"tbl_twdbdata[[#This Row],[utility]]&tbl_twdbdata[[#This Row],[Year]]","v":"LA PORTE2020"}]
[null,1282,"LA PORTE","H",2030,33585,34449,162957550,{"$f":"IF(tbl_twdbdata[[#This Row],[Year]]=2016,0,tbl_twdbdata[[#This Row],[effsave]]-0.6*SUMIFS(tbl_twdbdata[effsave],tbl_twdbdata[Year],2020,tbl_twdbdata[utility],tbl_twdbdata[[#This Row],[utility]]))","v":96455127.400000006},11174,2988,1212,0,640053156,133189279,314974645,0,56214843,212827521,{"$f":"tbl_twdbdata[[#This Row],[utility]]&tbl_twdbdata[[#This Row],[Year]]","v":"LA PORTE2030"}]
[null,1282,"LA PORTE","H",2040,33585,34963,206353374,{"$f":"IF(tbl_twdbdata[[#This Row],[Year]]=2016,0,tbl_twdbdata[[#This Row],[effsave]]-0.6*SUMIFS(tbl_twdbdata[effsave],tbl_twdbdata[Year],2020,tbl_twdbdata[utility],tbl_twdbdata[[#This Row],[utility]]))","v":139850951.40000001},11341,3054,1238,0,649603138,135176544,319674258,0,57053603,216003037,{"$f":"tbl_twdbdata[[#This Row],[utility]]&tbl_twdbdata[[#This Row],[Year]]","v":"LA PORTE2040"}]
[null,1282,"LA PORTE","H",2050,33585,35785,233931913,{"$f":"IF(tbl_twdbdata[[#This Row],[Year]]=2016,0,tbl_twdbdata[[#This Row],[effsave]]-0.6*SUMIFS(tbl_twdbdata[effsave],tbl_twdbdata[Year],2020,tbl_twdbdata[utility],tbl_twdbdata[[#This Row],[utility]]))","v":167429490.40000001},11608,3122,1265,0,664875677,138354621,327189981,0,58394966,221081391,{"$f":"tbl_twdbdata[[#This Row],[utility]]&tbl_twdbdata[[#This Row],[Year]]","v":"LA PORTE2050"}]
[null,1282,"LA PORTE","H",2060,33585,36261,241411234,{"$f":"IF(tbl_twdbdata[[#This Row],[Year]]=2016,0,tbl_twdbdata[[#This Row],[effsave]]-0.6*SUMIFS(tbl_twdbdata[effsave],tbl_twdbdata[Year],2020,tbl_twdbdata[utility],tbl_twdbdata[[#This Row],[utility]]))","v":174908811.40000001},11762,3191,1292,0,673719629,140194968,331542151,0,59171716,224022141,{"$f":"tbl_twdbdata[[#This Row],[utility]]&tbl_twdbdata[[#This Row],[Year]]","v":"LA PORTE2060"}]
[null,1282,"LA PORTE","H",2070,33585,36729,244795112,{"$f":"IF(tbl_twdbdata[[#This Row],[Year]]=2016,0,tbl_twdbdata[[#This Row],[effsave]]-0.6*SUMIFS(tbl_twdbdata[effsave],tbl_twdbdata[Year],2020,tbl_twdbdata[utility],tbl_twdbdata[[#This Row],[utility]]))","v":178292689.40000001},11914,3262,1320,0,682414943,142004384,335821176,0,59935412,226913467,{"$f":"tbl_twdbdata[[#This Row],[utility]]&tbl_twdbdata[[#This Row],[Year]]","v":"LA PORTE2070"}]
[null,82,"LAGUNA MADRE WATER DISTRICT","M",2016,20436,20436,0,{"$f":"IF(tbl_twdbdata[[#This Row],[Year]]=2016,0,tbl_twdbdata[[#This Row],[effsave]]-0.6*SUMIFS(tbl_twdbdata[effsave],tbl_twdbdata[Year],2020,tbl_twdbdata[utility],tbl_twdbdata[[#This Row],[utility]]))","v":0},4997,827,985,3,502901000,255093400,465444500,11154700,74139602,73474961,{"$f":"tbl_twdbdata[[#This Row],[utility]]&tbl_twdbdata[[#This Row],[Year]]","v":"LAGUNA MADRE WATER DISTRICT2016"}]
[null,82,"LAGUNA MADRE WATER DISTRICT","M",2020,14864,18783,62250619,{"$f":"IF(tbl_twdbdata[[#This Row],[Year]]=2016,0,tbl_twdbdata[[#This Row],[effsave]]-0.6*SUMIFS(tbl_twdbdata[effsave],tbl_twdbdata[Year],2020,tbl_twdbdata[utility],tbl_twdbdata[[#This Row],[utility]]))","v":24900247.600000001},6314,1045,1245,4,635494449,322350601,588162274,14095717,93687039,92847160,{"$f":"tbl_twdbdata[[#This Row],[utility]]&tbl_twdbdata[[#This Row],[Year]]","v":"LAGUNA MADRE WATER DISTRICT2020"}]
[null,82,"LAGUNA MADRE WATER DISTRICT","M",2030,14864,21944,100680169,{"$f":"IF(tbl_twdbdata[[#This Row],[Year]]=2016,0,tbl_twdbdata[[#This Row],[effsave]]-0.6*SUMIFS(tbl_twdbdata[effsave],tbl_twdbdata[Year],2020,tbl_twdbdata[utility],tbl_twdbdata[[#This Row],[utility]]))","v":63329797.600000001},7377,1221,1455,5,742442112,376599137,687144383,16467892,109453675,108472453,{"$f":"tbl_twdbdata[[#This Row],[utility]]&tbl_twdbdata[[#This Row],[Year]]","v":"LAGUNA MADRE WATER DISTRICT2030"}]
[null,82,"LAGUNA MADRE WATER DISTRICT","M",2040,14864,25150,134575135,{"$f":"IF(tbl_twdbdata[[#This Row],[Year]]=2016,0,tbl_twdbdata[[#This Row],[effsave]]-0.6*SUMIFS(tbl_twdbdata[effsave],tbl_twdbdata[Year],2020,tbl_twdbdata[utility],tbl_twdbdata[[#This Row],[utility]]))","v":97224763.599999994},8455,1426,1700,6,850912282,431619955,787535602,18873837,125444765,124320187,{"$f":"tbl_twdbdata[[#This Row],[utility]]&tbl_twdbdata[[#This Row],[Year]]","v":"LAGUNA MADRE WATER DISTRICT2040"}]
[null,82,"LAGUNA MADRE WATER DISTRICT","M",2050,14864,28603,163700690,{"$f":"IF(tbl_twdbdata[[#This Row],[Year]]=2016,0,tbl_twdbdata[[#This Row],[effsave]]-0.6*SUMIFS(tbl_twdbdata[effsave],tbl_twdbdata[Year],2020,tbl_twdbdata[utility],tbl_twdbdata[[#This Row],[utility]]))","v":126350318.59999999},9616,1666,1986,7,967739324,490879744,895661265,21465144,142667857,141388879,{"$f":"tbl_twdbdata[[#This Row],[utility]]&tbl_twdbdata[[#This Row],[Year]]","v":"LAGUNA MADRE WATER DISTRICT2050"}]
[null,82,"LAGUNA MADRE WATER DISTRICT","M",2060,14864,32157,187092642,{"$f":"IF(tbl_twdbdata[[#This Row],[Year]]=2016,0,tbl_twdbdata[[#This Row],[effsave]]-0.6*SUMIFS(tbl_twdbdata[effsave],tbl_twdbdata[Year],2020,tbl_twdbdata[utility],tbl_twdbdata[[#This Row],[utility]]))","v":149742270.59999999},10811,1946,2321,8,1087983549,551872878,1006949596,24132246,160394724,158956829,{"$f":"tbl_twdbdata[[#This Row],[utility]]&tbl_twdbdata[[#This Row],[Year]]","v":"LAGUNA MADRE WATER DISTRICT2060"}]
[null,82,"LAGUNA MADRE WATER DISTRICT","M",2070,14864,35798,209452308,{"$f":"IF(tbl_twdbdata[[#This Row],[Year]]=2016,0,tbl_twdbdata[[#This Row],[effsave]]-0.6*SUMIFS(tbl_twdbdata[effsave],tbl_twdbdata[Year],2020,tbl_twdbdata[utility],tbl_twdbdata[[#This Row],[utility]]))","v":172101936.59999999},12035,2273,2712,9,1211171287,614359091,1120962205,26864637,178555535,176954833,{"$f":"tbl_twdbdata[[#This Row],[utility]]&tbl_twdbdata[[#This Row],[Year]]","v":"LAGUNA MADRE WATER DISTRICT2070"}]
[null,83,"LAKE CITIES MUNICIPAL UTILITY AUTHORITY","C",2016,15500,15500,0,{"$f":"IF(tbl_twdbdata[[#This Row],[Year]]=2016,0,tbl_twdbdata[[#This Row],[effsave]]-0.6*SUMIFS(tbl_twdbdata[effsave],tbl_twdbdata[Year],2020,tbl_twdbdata[utility],tbl_twdbdata[[#This Row],[utility]]))","v":0},4458,0,430,0,381781000,0,95279000,0,6776512,58284427,{"$f":"tbl_twdbdata[[#This Row],[utility]]&tbl_twdbdata[[#This Row],[Year]]","v":"LAKE CITIES MUNICIPAL UTILITY AUTHORITY2016"}]
[null,83,"LAKE CITIES MUNICIPAL UTILITY AUTHORITY","C",2020,14881,15312,41860711,{"$f":"IF(tbl_twdbdata[[#This Row],[Year]]=2016,0,tbl_twdbdata[[#This Row],[effsave]]-0.6*SUMIFS(tbl_twdbdata[effsave],tbl_twdbdata[Year],2020,tbl_twdbdata[utility],tbl_twdbdata[[#This Row],[utility]]))","v":16744284.400000002},4587,0,442,0,392838564,0,98038576,0,6972781,59972525,{"$f":"tbl_twdbdata[[#This Row],[utility]]&tbl_twdbdata[[#This Row],[Year]]","v":"LAKE CITIES MUNICIPAL UTILITY AUTHORITY2020"}]
[null,83,"LAKE CITIES MUNICIPAL UTILITY AUTHORITY","C",2030,14881,17649,63710243,{"$f":"IF(tbl_twdbdata[[#This Row],[Year]]=2016,0,tbl_twdbdata[[#This Row],[effsave]]-0.6*SUMIFS(tbl_twdbdata[effsave],tbl_twdbdata[Year],2020,tbl_twdbdata[utility],tbl_twdbdata[[#This Row],[utility]]))","v":38593816.400000006},5287,0,509,0,452795704,0,113001752,0,8037004,69125855,{"$f":"tbl_twdbdata[[#This Row],[utility]]&tbl_twdbdata[[#This Row],[Year]]","v":"LAKE CITIES MUNICIPAL UTILITY AUTHORITY2030"}]
[null,83,"LAKE CITIES MUNICIPAL UTILITY AUTHORITY","C",2040,14881,20200,82208950,{"$f":"IF(tbl_twdbdata[[#This Row],[Year]]=2016,0,tbl_twdbdata[[#This Row],[effsave]]-0.6*SUMIFS(tbl_twdbdata[effsave],tbl_twdbdata[Year],2020,tbl_twdbdata[utility],tbl_twdbdata[[#This Row],[utility]]))","v":57092523.400000006},6051,0,587,0,518243142,0,129335112,0,9198679,79117359,{"$f":"tbl_twdbdata[[#This Row],[utility]]&tbl_twdbdata[[#This Row],[Year]]","v":"LAKE CITIES MUNICIPAL UTILITY AUTHORITY2040"}]
[null,83,"LAKE CITIES MUNICIPAL UTILITY AUTHORITY","C",2050,14881,21810,93935670,{"$f":"IF(tbl_twdbdata[[#This Row],[Year]]=2016,0,tbl_twdbdata[[#This Row],[effsave]]-0.6*SUMIFS(tbl_twdbdata[effsave],tbl_twdbdata[Year],2020,tbl_twdbdata[utility],tbl_twdbdata[[#This Row],[utility]]))","v":68819243.400000006},6533,0,677,0,559548660,0,139643505,0,9931841,85423248,{"$f":"tbl_twdbdata[[#This Row],[utility]]&tbl_twdbdata[[#This Row],[Year]]","v":"LAKE CITIES MUNICIPAL UTILITY AUTHORITY2050"}]
[null,83,"LAKE CITIES MUNICIPAL UTILITY AUTHORITY","C",2060,14881,21810,95766620,{"$f":"IF(tbl_twdbdata[[#This Row],[Year]]=2016,0,tbl_twdbdata[[#This Row],[effsave]]-0.6*SUMIFS(tbl_twdbdata[effsave],tbl_twdbdata[Year],2020,tbl_twdbdata[utility],tbl_twdbdata[[#This Row],[utility]]))","v":70650193.400000006},6533,0,780,0,559548660,0,139643505,0,9931841,85423248,{"$f":"tbl_twdbdata[[#This Row],[utility]]&tbl_twdbdata[[#This Row],[Year]]","v":"LAKE CITIES MUNICIPAL UTILITY AUTHORITY2060"}]
[null,83,"LAKE CITIES MUNICIPAL UTILITY AUTHORITY","C",2070,14881,21810,96323865,{"$f":"IF(tbl_twdbdata[[#This Row],[Year]]=2016,0,tbl_twdbdata[[#This Row],[effsave]]-0.6*SUMIFS(tbl_twdbdata[effsave],tbl_twdbdata[Year],2020,tbl_twdbdata[utility],tbl_twdbdata[[#This Row],[utility]]))","v":71207438.400000006},6533,0,899,0,559548660,0,139643505,0,9931841,85423248,{"$f":"tbl_twdbdata[[#This Row],[utility]]&tbl_twdbdata[[#This Row],[Year]]","v":"LAKE CITIES MUNICIPAL UTILITY AUTHORITY2070"}]
[null,1293,"LAKE JACKSON","H",2016,26849,28000,0,{"$f":"IF(tbl_twdbdata[[#This Row],[Year]]=2016,0,tbl_twdbdata[[#This Row],[effsave]]-0.6*SUMIFS(tbl_twdbdata[effsave],tbl_twdbdata[Year],2020,tbl_twdbdata[utility],tbl_twdbdata[[#This Row],[utility]]))","v":0},8417,3313,609,0,547379000,135847000,246141090,0,18044259,108929352,{"$f":"tbl_twdbdata[[#This Row],[utility]]&tbl_twdbdata[[#This Row],[Year]]","v":"LAKE JACKSON2016"}]
[null,1293,"LAKE JACKSON","H",2020,26849,26948,89409422,{"$f":"IF(tbl_twdbdata[[#This Row],[Year]]=2016,0,tbl_twdbdata[[#This Row],[effsave]]-0.6*SUMIFS(tbl_twdbdata[effsave],tbl_twdbdata[Year],2020,tbl_twdbdata[utility],tbl_twdbdata[[#This Row],[utility]]))","v":35763768.800000004},8209,3231,594,0,533848550,132489051,240056824,0,17598230,106236769,{"$f":"tbl_twdbdata[[#This Row],[utility]]&tbl_twdbdata[[#This Row],[Year]]","v":"LAKE JACKSON2020"}]
[null,1293,"LAKE JACKSON","H",2030,26849,27725,132971873,{"$f":"IF(tbl_twdbdata[[#This Row],[Year]]=2016,0,tbl_twdbdata[[#This Row],[effsave]]-0.6*SUMIFS(tbl_twdbdata[effsave],tbl_twdbdata[Year],2020,tbl_twdbdata[utility],tbl_twdbdata[[#This Row],[utility]]))","v":79326219.800000012},8446,3324,611,0,549241170,136309149,246978456,0,18105645,109299927,{"$f":"tbl_twdbdata[[#This Row],[utility]]&tbl_twdbdata[[#This Row],[Year]]","v":"LAKE JACKSON2030"}]
[null,1293,"LAKE JACKSON","H",2040,26849,28551,170385230,{"$f":"IF(tbl_twdbdata[[#This Row],[Year]]=2016,0,tbl_twdbdata[[#This Row],[effsave]]-0.6*SUMIFS(tbl_twdbdata[effsave],tbl_twdbdata[Year],2020,tbl_twdbdata[utility],tbl_twdbdata[[#This Row],[utility]]))","v":116739576.80000001},8698,3420,628,0,565604496,140370154,254336588,0,18645059,112556257,{"$f":"tbl_twdbdata[[#This Row],[utility]]&tbl_twdbdata[[#This Row],[Year]]","v":"LAKE JACKSON2040"}]
[null,1293,"LAKE JACKSON","H",2050,26849,29450,194238948,{"$f":"IF(tbl_twdbdata[[#This Row],[Year]]=2016,0,tbl_twdbdata[[#This Row],[effsave]]-0.6*SUMIFS(tbl_twdbdata[effsave],tbl_twdbdata[Year],2020,tbl_twdbdata[utility],tbl_twdbdata[[#This Row],[utility]]))","v":140593294.80000001},8972,3519,646,0,583413975,144790061,262345014,0,19232146,116100374,{"$f":"tbl_twdbdata[[#This Row],[utility]]&tbl_twdbdata[[#This Row],[Year]]","v":"LAKE JACKSON2050"}]
[null,1293,"LAKE JACKSON","H",2060,26849,30427,204347732,{"$f":"IF(tbl_twdbdata[[#This Row],[Year]]=2016,0,tbl_twdbdata[[#This Row],[effsave]]-0.6*SUMIFS(tbl_twdbdata[effsave],tbl_twdbdata[Year],2020,tbl_twdbdata[utility],tbl_twdbdata[[#This Row],[utility]]))","v":150702078.80000001},9270,3620,665,0,602768659,149593453,271048276,0,19870170,119951989,{"$f":"tbl_twdbdata[[#This Row],[utility]]&tbl_twdbdata[[#This Row],[Year]]","v":"LAKE JACKSON2060"}]
[null,1293,"LAKE JACKSON","H",2070,26849,31493,211966786,{"$f":"IF(tbl_twdbdata[[#This Row],[Year]]=2016,0,tbl_twdbdata[[#This Row],[effsave]]-0.6*SUMIFS(tbl_twdbdata[effsave],tbl_twdbdata[Year],2020,tbl_twdbdata[utility],tbl_twdbdata[[#This Row],[utility]]))","v":158321132.80000001},9595,3724,685,0,623886462,154834411,280544364,0,20566315,124154468,{"$f":"tbl_twdbdata[[#This Row],[utility]]&tbl_twdbdata[[#This Row],[Year]]","v":"LAKE JACKSON2070"}]
[null,2975,"LAKE KIOWA SUD","C",2016,2286,2286,0,{"$f":"IF(tbl_twdbdata[[#This Row],[Year]]=2016,0,tbl_twdbdata[[#This Row],[effsave]]-0.6*SUMIFS(tbl_twdbdata[effsave],tbl_twdbdata[Year],2020,tbl_twdbdata[utility],tbl_twdbdata[[#This Row],[utility]]))","v":0},1258,0,11,1,141677820,0,3924599,45114600,null,null,{"$f":"tbl_twdbdata[[#This Row],[utility]]&tbl_twdbdata[[#This Row],[Year]]","v":"LAKE KIOWA SUD2016"}]
[null,2975,"LAKE KIOWA SUD","C",2020,2156,2200,9949170,{"$f":"IF(tbl_twdbdata[[#This Row],[Year]]=2016,0,tbl_twdbdata[[#This Row],[effsave]]-0.6*SUMIFS(tbl_twdbdata[effsave],tbl_twdbdata[Year],2020,tbl_twdbdata[utility],tbl_twdbdata[[#This Row],[utility]]))","v":3979668},1284,0,11,1,144569204,0,4004693,46035306,null,null,{"$f":"tbl_twdbdata[[#This Row],[utility]]&tbl_twdbdata[[#This Row],[Year]]","v":"LAKE KIOWA SUD2020"}]
[null,2975,"LAKE KIOWA SUD","C",2030,2156,2300,13709035,{"$f":"IF(tbl_twdbdata[[#This Row],[Year]]=2016,0,tbl_twdbdata[[#This Row],[effsave]]-0.6*SUMIFS(tbl_twdbdata[effsave],tbl_twdbdata[Year],2020,tbl_twdbdata[utility],tbl_twdbdata[[#This Row],[utility]]))","v":7739533},1342,0,11,1,151140531,0,4186725,48127820,null,null,{"$f":"tbl_twdbdata[[#This Row],[utility]]&tbl_twdbdata[[#This Row],[Year]]","v":"LAKE KIOWA SUD2030"}]
[null,2975,"LAKE KIOWA SUD","C",2040,2156,2350,15207908,{"$f":"IF(tbl_twdbdata[[#This Row],[Year]]=2016,0,tbl_twdbdata[[#This Row],[effsave]]-0.6*SUMIFS(tbl_twdbdata[effsave],tbl_twdbdata[Year],2020,tbl_twdbdata[utility],tbl_twdbdata[[#This Row],[utility]]))","v":9238406},1371,0,11,1,154426195,0,4277740,49174077,null,null,{"$f":"tbl_twdbdata[[#This Row],[utility]]&tbl_twdbdata[[#This Row],[Year]]","v":"LAKE KIOWA SUD2040"}]
[null,2975,"LAKE KIOWA SUD","C",2050,2156,2400,15750480,{"$f":"IF(tbl_twdbdata[[#This Row],[Year]]=2016,0,tbl_twdbdata[[#This Row],[effsave]]-0.6*SUMIFS(tbl_twdbdata[effsave],tbl_twdbdata[Year],2020,tbl_twdbdata[utility],tbl_twdbdata[[#This Row],[utility]]))","v":9780978},1400,0,11,1,157711859,0,4368755,50220334,null,null,{"$f":"tbl_twdbdata[[#This Row],[utility]]&tbl_twdbdata[[#This Row],[Year]]","v":"LAKE KIOWA SUD2050"}]
[null,2975,"LAKE KIOWA SUD","C",2060,2156,2420,16093726,{"$f":"IF(tbl_twdbdata[[#This Row],[Year]]=2016,0,tbl_twdbdata[[#This Row],[effsave]]-0.6*SUMIFS(tbl_twdbdata[effsave],tbl_twdbdata[Year],2020,tbl_twdbdata[utility],tbl_twdbdata[[#This Row],[utility]]))","v":10124224},1412,0,11,1,159026124,0,4405162,50638837,null,null,{"$f":"tbl_twdbdata[[#This Row],[utility]]&tbl_twdbdata[[#This Row],[Year]]","v":"LAKE KIOWA SUD2060"}]
[null,2975,"LAKE KIOWA SUD","C",2070,2156,2450,16329005,{"$f":"IF(tbl_twdbdata[[#This Row],[Year]]=2016,0,tbl_twdbdata[[#This Row],[effsave]]-0.6*SUMIFS(tbl_twdbdata[effsave],tbl_twdbdata[Year],2020,tbl_twdbdata[utility],tbl_twdbdata[[#This Row],[utility]]))","v":10359503},1430,0,11,1,160997522,0,4459772,51266591,null,null,{"$f":"tbl_twdbdata[[#This Row],[utility]]&tbl_twdbdata[[#This Row],[Year]]","v":"LAKE KIOWA SUD2070"}]
[null,1295,"LAKE LIVINGSTON WSC","H",2016,23841,23841,0,{"$f":"IF(tbl_twdbdata[[#This Row],[Year]]=2016,0,tbl_twdbdata[[#This Row],[effsave]]-0.6*SUMIFS(tbl_twdbdata[effsave],tbl_twdbdata[Year],2020,tbl_twdbdata[utility],tbl_twdbdata[[#This Row],[utility]]))","v":0},7947,0,0,0,277883000,0,0,0,null,null,{"$f":"tbl_twdbdata[[#This Row],[utility]]&tbl_twdbdata[[#This Row],[Year]]","v":"LAKE LIVINGSTON WSC2016"}]
[null,1295,"LAKE LIVINGSTON WSC","H",2020,13781,14757,50254226,{"$f":"IF(tbl_twdbdata[[#This Row],[Year]]=2016,0,tbl_twdbdata[[#This Row],[effsave]]-0.6*SUMIFS(tbl_twdbdata[effsave],tbl_twdbdata[Year],2020,tbl_twdbdata[utility],tbl_twdbdata[[#This Row],[utility]]))","v":20101690.400000002},8510,0,0,0,297563271,0,0,0,null,null,{"$f":"tbl_twdbdata[[#This Row],[utility]]&tbl_twdbdata[[#This Row],[Year]]","v":"LAKE LIVINGSTON WSC2020"}]
[null,1295,"LAKE LIVINGSTON WSC","H",2030,13781,16588,60546200,{"$f":"IF(tbl_twdbdata[[#This Row],[Year]]=2016,0,tbl_twdbdata[[#This Row],[effsave]]-0.6*SUMIFS(tbl_twdbdata[effsave],tbl_twdbdata[Year],2020,tbl_twdbdata[utility],tbl_twdbdata[[#This Row],[utility]]))","v":30393664.400000002},9566,0,0,0,334483942,0,0,0,null,null,{"$f":"tbl_twdbdata[[#This Row],[utility]]&tbl_twdbdata[[#This Row],[Year]]","v":"LAKE LIVINGSTON WSC2030"}]
[null,1295,"LAKE LIVINGSTON WSC","H",2040,13781,18401,67163650,{"$f":"IF(tbl_twdbdata[[#This Row],[Year]]=2016,0,tbl_twdbdata[[#This Row],[effsave]]-0.6*SUMIFS(tbl_twdbdata[effsave],tbl_twdbdata[Year],2020,tbl_twdbdata[utility],tbl_twdbdata[[#This Row],[utility]]))","v":37011114.400000006},10612,0,0,0,371041658,0,0,0,null,null,{"$f":"tbl_twdbdata[[#This Row],[utility]]&tbl_twdbdata[[#This Row],[Year]]","v":"LAKE LIVINGSTON WSC2040"}]
[null,1295,"LAKE LIVINGSTON WSC","H",2050,13781,20340,74241000,{"$f":"IF(tbl_twdbdata[[#This Row],[Year]]=2016,0,tbl_twdbdata[[#This Row],[effsave]]-0.6*SUMIFS(tbl_twdbdata[effsave],tbl_twdbdata[Year],2020,tbl_twdbdata[utility],tbl_twdbdata[[#This Row],[utility]]))","v":44088464.400000006},11730,0,0,0,410140064,0,0,0,null,null,{"$f":"tbl_twdbdata[[#This Row],[utility]]&tbl_twdbdata[[#This Row],[Year]]","v":"LAKE LIVINGSTON WSC2050"}]
[null,1295,"LAKE LIVINGSTON WSC","H",2060,13781,22362,81621300,{"$f":"IF(tbl_twdbdata[[#This Row],[Year]]=2016,0,tbl_twdbdata[[#This Row],[effsave]]-0.6*SUMIFS(tbl_twdbdata[effsave],tbl_twdbdata[Year],2020,tbl_twdbdata[utility],tbl_twdbdata[[#This Row],[utility]]))","v":51468764.400000006},12896,0,0,0,450912100,0,0,0,null,null,{"$f":"tbl_twdbdata[[#This Row],[utility]]&tbl_twdbdata[[#This Row],[Year]]","v":"LAKE LIVINGSTON WSC2060"}]
[null,1295,"LAKE LIVINGSTON WSC","H",2070,13781,24495,89406750,{"$f":"IF(tbl_twdbdata[[#This Row],[Year]]=2016,0,tbl_twdbdata[[#This Row],[effsave]]-0.6*SUMIFS(tbl_twdbdata[effsave],tbl_twdbdata[Year],2020,tbl_twdbdata[utility],tbl_twdbdata[[#This Row],[utility]]))","v":59254214.400000006},14126,0,0,0,493922363,0,0,0,null,null,{"$f":"tbl_twdbdata[[#This Row],[utility]]&tbl_twdbdata[[#This Row],[Year]]","v":"LAKE LIVINGSTON WSC2070"}]
[null,6390,"LAKE PALO PINTO AREA WSC","G",2016,1878,1878,0,{"$f":"IF(tbl_twdbdata[[#This Row],[Year]]=2016,0,tbl_twdbdata[[#This Row],[effsave]]-0.6*SUMIFS(tbl_twdbdata[effsave],tbl_twdbdata[Year],2020,tbl_twdbdata[utility],tbl_twdbdata[[#This Row],[utility]]))","v":0},610,0,16,0,19597000,0,1869000,0,298020,2077580,{"$f":"tbl_twdbdata[[#This Row],[utility]]&tbl_twdbdata[[#This Row],[Year]]","v":"LAKE PALO PINTO AREA WSC2016"}]
[null,6390,"LAKE PALO PINTO AREA WSC","G",2020,984,1004,3371432,{"$f":"IF(tbl_twdbdata[[#This Row],[Year]]=2016,0,tbl_twdbdata[[#This Row],[effsave]]-0.6*SUMIFS(tbl_twdbdata[effsave],tbl_twdbdata[Year],2020,tbl_twdbdata[utility],tbl_twdbdata[[#This Row],[utility]]))","v":1348572.8},622,0,16,0,19995313,0,1906988,0,304077,2119807,{"$f":"tbl_twdbdata[[#This Row],[utility]]&tbl_twdbdata[[#This Row],[Year]]","v":"LAKE PALO PINTO AREA WSC2020"}]
[null,6390,"LAKE PALO PINTO AREA WSC","G",2030,984,1077,5102503,{"$f":"IF(tbl_twdbdata[[#This Row],[Year]]=2016,0,tbl_twdbdata[[#This Row],[effsave]]-0.6*SUMIFS(tbl_twdbdata[effsave],tbl_twdbdata[Year],2020,tbl_twdbdata[utility],tbl_twdbdata[[#This Row],[utility]]))","v":3079643.8},667,0,17,0,21449155,0,2045644,0,326186,2273936,{"$f":"tbl_twdbdata[[#This Row],[utility]]&tbl_twdbdata[[#This Row],[Year]]","v":"LAKE PALO PINTO AREA WSC2030"}]
[null,6390,"LAKE PALO PINTO AREA WSC","G",2040,984,1127,6429479,{"$f":"IF(tbl_twdbdata[[#This Row],[Year]]=2016,0,tbl_twdbdata[[#This Row],[effsave]]-0.6*SUMIFS(tbl_twdbdata[effsave],tbl_twdbdata[Year],2020,tbl_twdbdata[utility],tbl_twdbdata[[#This Row],[utility]]))","v":4406619.8},698,0,18,0,22444937,0,2140613,0,341329,2379504,{"$f":"tbl_twdbdata[[#This Row],[utility]]&tbl_twdbdata[[#This Row],[Year]]","v":"LAKE PALO PINTO AREA WSC2040"}]
[null,6390,"LAKE PALO PINTO AREA WSC","G",2050,984,1173,7278465,{"$f":"IF(tbl_twdbdata[[#This Row],[Year]]=2016,0,tbl_twdbdata[[#This Row],[effsave]]-0.6*SUMIFS(tbl_twdbdata[effsave],tbl_twdbdata[Year],2020,tbl_twdbdata[utility],tbl_twdbdata[[#This Row],[utility]]))","v":5255605.8},726,0,19,0,23361057,0,2227985,0,355261,2476627,{"$f":"tbl_twdbdata[[#This Row],[utility]]&tbl_twdbdata[[#This Row],[Year]]","v":"LAKE PALO PINTO AREA WSC2050"}]
[null,6390,"LAKE PALO PINTO AREA WSC","G",2060,984,1208,7623507,{"$f":"IF(tbl_twdbdata[[#This Row],[Year]]=2016,0,tbl_twdbdata[[#This Row],[effsave]]-0.6*SUMIFS(tbl_twdbdata[effsave],tbl_twdbdata[Year],2020,tbl_twdbdata[utility],tbl_twdbdata[[#This Row],[utility]]))","v":5600647.7999999998},748,0,20,0,24058105,0,2294464,0,365861,2550525,{"$f":"tbl_twdbdata[[#This Row],[utility]]&tbl_twdbdata[[#This Row],[Year]]","v":"LAKE PALO PINTO AREA WSC2060"}]
[null,6390,"LAKE PALO PINTO AREA WSC","G",2070,984,1235,7811931,{"$f":"IF(tbl_twdbdata[[#This Row],[Year]]=2016,0,tbl_twdbdata[[#This Row],[effsave]]-0.6*SUMIFS(tbl_twdbdata[effsave],tbl_twdbdata[Year],2020,tbl_twdbdata[utility],tbl_twdbdata[[#This Row],[utility]]))","v":5789071.7999999998},765,0,21,0,24595828,0,2345748,0,374038,2607532,{"$f":"tbl_twdbdata[[#This Row],[utility]]&tbl_twdbdata[[#This Row],[Year]]","v":"LAKE PALO PINTO AREA WSC2070"}]
[null,6391,"LAKEWAY MUD","K",2016,10335,10650,0,{"$f":"IF(tbl_twdbdata[[#This Row],[Year]]=2016,0,tbl_twdbdata[[#This Row],[effsave]]-0.6*SUMIFS(tbl_twdbdata[effsave],tbl_twdbdata[Year],2020,tbl_twdbdata[utility],tbl_twdbdata[[#This Row],[utility]]))","v":0},3723,314,86,37,518114000,12592000,36327000,19347000,8894791,116308496,{"$f":"tbl_twdbdata[[#This Row],[utility]]&tbl_twdbdata[[#This Row],[Year]]","v":"LAKEWAY MUD2016"}]
[null,6391,"LAKEWAY MUD","K",2020,10335,10906,33238762,{"$f":"IF(tbl_twdbdata[[#This Row],[Year]]=2016,0,tbl_twdbdata[[#This Row],[effsave]]-0.6*SUMIFS(tbl_twdbdata[effsave],tbl_twdbdata[Year],2020,tbl_twdbdata[utility],tbl_twdbdata[[#This Row],[utility]]))","v":13295504.800000001},3899,329,90,39,542539730,13185631,38039583,20259086,9314123,121791691,{"$f":"tbl_twdbdata[[#This Row],[utility]]&tbl_twdbdata[[#This Row],[Year]]","v":"LAKEWAY MUD2020"}]
[null,6391,"LAKEWAY MUD","K",2030,10335,11546,47031476,{"$f":"IF(tbl_twdbdata[[#This Row],[Year]]=2016,0,tbl_twdbdata[[#This Row],[effsave]]-0.6*SUMIFS(tbl_twdbdata[effsave],tbl_twdbdata[Year],2020,tbl_twdbdata[utility],tbl_twdbdata[[#This Row],[utility]]))","v":27088218.800000001},4128,348,95,41,574377748,13959407,40271871,21447956,9860706,128938829,{"$f":"tbl_twdbdata[[#This Row],[utility]]&tbl_twdbdata[[#This Row],[Year]]","v":"LAKEWAY MUD2030"}]
[null,6391,"LAKEWAY MUD","K",2040,10335,12186,56977471,{"$f":"IF(tbl_twdbdata[[#This Row],[Year]]=2016,0,tbl_twdbdata[[#This Row],[effsave]]-0.6*SUMIFS(tbl_twdbdata[effsave],tbl_twdbdata[Year],2020,tbl_twdbdata[utility],tbl_twdbdata[[#This Row],[utility]]))","v":37034213.799999997},4357,368,101,43,606215766,14733183,42504159,22636826,10407289,136085967,{"$f":"tbl_twdbdata[[#This Row],[utility]]&tbl_twdbdata[[#This Row],[Year]]","v":"LAKEWAY MUD2040"}]
[null,6391,"LAKEWAY MUD","K",2050,10335,12826,63808709,{"$f":"IF(tbl_twdbdata[[#This Row],[Year]]=2016,0,tbl_twdbdata[[#This Row],[effsave]]-0.6*SUMIFS(tbl_twdbdata[effsave],tbl_twdbdata[Year],2020,tbl_twdbdata[utility],tbl_twdbdata[[#This Row],[utility]]))","v":43865451.799999997},4586,390,107,46,638053784,15506959,44736447,23825696,10953872,143233105,{"$f":"tbl_twdbdata[[#This Row],[utility]]&tbl_twdbdata[[#This Row],[Year]]","v":"LAKEWAY MUD2050"}]
[null,6391,"LAKEWAY MUD","K",2060,10335,13025,65939714,{"$f":"IF(tbl_twdbdata[[#This Row],[Year]]=2016,0,tbl_twdbdata[[#This Row],[effsave]]-0.6*SUMIFS(tbl_twdbdata[effsave],tbl_twdbdata[Year],2020,tbl_twdbdata[utility],tbl_twdbdata[[#This Row],[utility]]))","v":45996456.799999997},4657,413,113,49,647953418,15747555,45430549,24195360,11123825,145455418,{"$f":"tbl_twdbdata[[#This Row],[utility]]&tbl_twdbdata[[#This Row],[Year]]","v":"LAKEWAY MUD2060"}]
[null,6391,"LAKEWAY MUD","K",2070,10335,13025,66224961,{"$f":"IF(tbl_twdbdata[[#This Row],[Year]]=2016,0,tbl_twdbdata[[#This Row],[effsave]]-0.6*SUMIFS(tbl_twdbdata[effsave],tbl_twdbdata[Year],2020,tbl_twdbdata[utility],tbl_twdbdata[[#This Row],[utility]]))","v":46281703.799999997},4657,437,120,52,647953418,15747555,45430549,24195360,11123825,145455418,{"$f":"tbl_twdbdata[[#This Row],[utility]]&tbl_twdbdata[[#This Row],[Year]]","v":"LAKEWAY MUD2070"}]
[null,84,"LAMAR COUNTY WSD","D",2016,18773,18773,0,{"$f":"IF(tbl_twdbdata[[#This Row],[Year]]=2016,0,tbl_twdbdata[[#This Row],[effsave]]-0.6*SUMIFS(tbl_twdbdata[effsave],tbl_twdbdata[Year],2020,tbl_twdbdata[utility],tbl_twdbdata[[#This Row],[utility]]))","v":0},7349,112,44,33,391886540,26471650,94093000,18120000,8339306,119361954,{"$f":"tbl_twdbdata[[#This Row],[utility]]&tbl_twdbdata[[#This Row],[Year]]","v":"LAMAR COUNTY WSD2016"}]
[null,84,"LAMAR COUNTY WSD","D",2020,17260,16972,52160048,{"$f":"IF(tbl_twdbdata[[#This Row],[Year]]=2016,0,tbl_twdbdata[[#This Row],[effsave]]-0.6*SUMIFS(tbl_twdbdata[effsave],tbl_twdbdata[Year],2020,tbl_twdbdata[utility],tbl_twdbdata[[#This Row],[utility]]))","v":20864019.200000003},7226,110,44,32,385347529,26029945,92522966,17817650,8200157,117370283,{"$f":"tbl_twdbdata[[#This Row],[utility]]&tbl_twdbdata[[#This Row],[Year]]","v":"LAMAR COUNTY WSD2020"}]
[null,84,"LAMAR COUNTY WSD","D",2030,17260,17629,74962915,{"$f":"IF(tbl_twdbdata[[#This Row],[Year]]=2016,0,tbl_twdbdata[[#This Row],[effsave]]-0.6*SUMIFS(tbl_twdbdata[effsave],tbl_twdbdata[Year],2020,tbl_twdbdata[utility],tbl_twdbdata[[#This Row],[utility]]))","v":43666886.200000003},7506,114,46,33,400264647,27037585,96104605,18507386,8517592,121913783,{"$f":"tbl_twdbdata[[#This Row],[utility]]&tbl_twdbdata[[#This Row],[Year]]","v":"LAMAR COUNTY WSD2030"}]
[null,84,"LAMAR COUNTY WSD","D",2040,17260,18115,92633770,{"$f":"IF(tbl_twdbdata[[#This Row],[Year]]=2016,0,tbl_twdbdata[[#This Row],[effsave]]-0.6*SUMIFS(tbl_twdbdata[effsave],tbl_twdbdata[Year],2020,tbl_twdbdata[utility],tbl_twdbdata[[#This Row],[utility]]))","v":61337741.200000003},7713,118,48,34,411299227,27782963,98754037,19017602,8752407,125274728,{"$f":"tbl_twdbdata[[#This Row],[utility]]&tbl_twdbdata[[#This Row],[Year]]","v":"LAMAR COUNTY WSD2040"}]
[null,84,"LAMAR COUNTY WSD","D",2050,17260,18555,103620398,{"$f":"IF(tbl_twdbdata[[#This Row],[Year]]=2016,0,tbl_twdbdata[[#This Row],[effsave]]-0.6*SUMIFS(tbl_twdbdata[effsave],tbl_twdbdata[Year],2020,tbl_twdbdata[utility],tbl_twdbdata[[#This Row],[utility]]))","v":72324369.200000003},7900,123,50,35,421289382,28457791,101152700,19479526,8964997,128317559,{"$f":"tbl_twdbdata[[#This Row],[utility]]&tbl_twdbdata[[#This Row],[Year]]","v":"LAMAR COUNTY WSD2050"}]
[null,84,"LAMAR COUNTY WSD","D",2060,17260,18898,107674190,{"$f":"IF(tbl_twdbdata[[#This Row],[Year]]=2016,0,tbl_twdbdata[[#This Row],[effsave]]-0.6*SUMIFS(tbl_twdbdata[effsave],tbl_twdbdata[Year],2020,tbl_twdbdata[utility],tbl_twdbdata[[#This Row],[utility]]))","v":76378161.200000003},8046,128,52,36,429077162,28983850,103022567,19839616,9130720,130689584,{"$f":"tbl_twdbdata[[#This Row],[utility]]&tbl_twdbdata[[#This Row],[Year]]","v":"LAMAR COUNTY WSD2060"}]
[null,84,"LAMAR COUNTY WSD","D",2070,17260,19175,109392416,{"$f":"IF(tbl_twdbdata[[#This Row],[Year]]=2016,0,tbl_twdbdata[[#This Row],[effsave]]-0.6*SUMIFS(tbl_twdbdata[effsave],tbl_twdbdata[Year],2020,tbl_twdbdata[utility],tbl_twdbdata[[#This Row],[utility]]))","v":78096387.200000003},8164,133,54,37,435366419,29408685,104532635,20130418,9264555,132605184,{"$f":"tbl_twdbdata[[#This Row],[utility]]&tbl_twdbdata[[#This Row],[Year]]","v":"LAMAR COUNTY WSD2070"}]
[null,1303,"LAMESA","O",2016,9422,9422,0,{"$f":"IF(tbl_twdbdata[[#This Row],[Year]]=2016,0,tbl_twdbdata[[#This Row],[effsave]]-0.6*SUMIFS(tbl_twdbdata[effsave],tbl_twdbdata[Year],2020,tbl_twdbdata[utility],tbl_twdbdata[[#This Row],[utility]]))","v":0},3599,8,463,0,289474000,5121000,209458000,0,17561900,32837009,{"$f":"tbl_twdbdata[[#This Row],[utility]]&tbl_twdbdata[[#This Row],[Year]]","v":"LAMESA2016"}]
[null,1303,"LAMESA","O",2020,8786,9755,35605750,{"$f":"IF(tbl_twdbdata[[#This Row],[Year]]=2016,0,tbl_twdbdata[[#This Row],[effsave]]-0.6*SUMIFS(tbl_twdbdata[effsave],tbl_twdbdata[Year],2020,tbl_twdbdata[utility],tbl_twdbdata[[#This Row],[utility]]))","v":14242300},3996,9,514,0,321399826,5685790,232558933,0,19498786,36458573,{"$f":"tbl_twdbdata[[#This Row],[utility]]&tbl_twdbdata[[#This Row],[Year]]","v":"LAMESA2020"}]
[null,1303,"LAMESA","O",2030,8786,10098,53517380,{"$f":"IF(tbl_twdbdata[[#This Row],[Year]]=2016,0,tbl_twdbdata[[#This Row],[effsave]]-0.6*SUMIFS(tbl_twdbdata[effsave],tbl_twdbdata[Year],2020,tbl_twdbdata[utility],tbl_twdbdata[[#This Row],[utility]]))","v":32153930},4137,9,532,0,332700712,5885711,240736043,0,20184392,37740509,{"$f":"tbl_twdbdata[[#This Row],[utility]]&tbl_twdbdata[[#This Row],[Year]]","v":"LAMESA2030"}]
[null,1303,"LAMESA","O",2040,8786,10333,68264965,{"$f":"IF(tbl_twdbdata[[#This Row],[Year]]=2016,0,tbl_twdbdata[[#This Row],[effsave]]-0.6*SUMIFS(tbl_twdbdata[effsave],tbl_twdbdata[Year],2020,tbl_twdbdata[utility],tbl_twdbdata[[#This Row],[utility]]))","v":46901515},4233,9,551,0,340443301,6022683,246338436,0,20654122,38618804,{"$f":"tbl_twdbdata[[#This Row],[utility]]&tbl_twdbdata[[#This Row],[Year]]","v":"LAMESA2040"}]
[null,1303,"LAMESA","O",2050,8786,10377,70184321,{"$f":"IF(tbl_twdbdata[[#This Row],[Year]]=2016,0,tbl_twdbdata[[#This Row],[effsave]]-0.6*SUMIFS(tbl_twdbdata[effsave],tbl_twdbdata[Year],2020,tbl_twdbdata[utility],tbl_twdbdata[[#This Row],[utility]]))","v":48820871},4251,9,570,0,341892977,6048329,247387395,0,20742071,38783251,{"$f":"tbl_twdbdata[[#This Row],[utility]]&tbl_twdbdata[[#This Row],[Year]]","v":"LAMESA2050"}]
[null,1303,"LAMESA","O",2060,8786,10678,73506284,{"$f":"IF(tbl_twdbdata[[#This Row],[Year]]=2016,0,tbl_twdbdata[[#This Row],[effsave]]-0.6*SUMIFS(tbl_twdbdata[effsave],tbl_twdbdata[Year],2020,tbl_twdbdata[utility],tbl_twdbdata[[#This Row],[utility]]))","v":52142834},4374,9,590,0,351810081,6223770,254563227,0,21343725,39908216,{"$f":"tbl_twdbdata[[#This Row],[utility]]&tbl_twdbdata[[#This Row],[Year]]","v":"LAMESA2060"}]
[null,1303,"LAMESA","O",2070,8786,10874,74974599,{"$f":"IF(tbl_twdbdata[[#This Row],[Year]]=2016,0,tbl_twdbdata[[#This Row],[effsave]]-0.6*SUMIFS(tbl_twdbdata[effsave],tbl_twdbdata[Year],2020,tbl_twdbdata[utility],tbl_twdbdata[[#This Row],[utility]]))","v":53611149},4454,9,611,0,358267730,6338010,259235862,0,21735500,40640751,{"$f":"tbl_twdbdata[[#This Row],[utility]]&tbl_twdbdata[[#This Row],[Year]]","v":"LAMESA2070"}]
[null,1304,"LAMPASAS","G",2016,6811,6811,0,{"$f":"IF(tbl_twdbdata[[#This Row],[Year]]=2016,0,tbl_twdbdata[[#This Row],[effsave]]-0.6*SUMIFS(tbl_twdbdata[effsave],tbl_twdbdata[Year],2020,tbl_twdbdata[utility],tbl_twdbdata[[#This Row],[utility]]))","v":0},2780,30,467,0,195563400,12544200,97546900,0,24756816,127167684,{"$f":"tbl_twdbdata[[#This Row],[utility]]&tbl_twdbdata[[#This Row],[Year]]","v":"LAMPASAS2016"}]
[null,1304,"LAMPASAS","G",2020,6811,7852,29147017,{"$f":"IF(tbl_twdbdata[[#This Row],[Year]]=2016,0,tbl_twdbdata[[#This Row],[effsave]]-0.6*SUMIFS(tbl_twdbdata[effsave],tbl_twdbdata[Year],2020,tbl_twdbdata[utility],tbl_twdbdata[[#This Row],[utility]]))","v":11658806.800000001},3083,33,518,0,216887545,13912014,108183370,0,27456288,141033991,{"$f":"tbl_twdbdata[[#This Row],[utility]]&tbl_twdbdata[[#This Row],[Year]]","v":"LAMPASAS2020"}]
[null,1304,"LAMPASAS","G",2030,6811,8680,46192356,{"$f":"IF(tbl_twdbdata[[#This Row],[Year]]=2016,0,tbl_twdbdata[[#This Row],[effsave]]-0.6*SUMIFS(tbl_twdbdata[effsave],tbl_twdbdata[Year],2020,tbl_twdbdata[utility],tbl_twdbdata[[#This Row],[utility]]))","v":28704145.800000001},3408,36,572,0,239758519,15379048,119591397,0,30351577,155906144,{"$f":"tbl_twdbdata[[#This Row],[utility]]&tbl_twdbdata[[#This Row],[Year]]","v":"LAMPASAS2030"}]
[null,1304,"LAMPASAS","G",2040,6811,9320,59973734,{"$f":"IF(tbl_twdbdata[[#This Row],[Year]]=2016,0,tbl_twdbdata[[#This Row],[effsave]]-0.6*SUMIFS(tbl_twdbdata[effsave],tbl_twdbdata[Year],2020,tbl_twdbdata[utility],tbl_twdbdata[[#This Row],[utility]]))","v":42485523.799999997},3659,40,632,0,257436566,16512987,128409196,0,32589481,167401528,{"$f":"tbl_twdbdata[[#This Row],[utility]]&tbl_twdbdata[[#This Row],[Year]]","v":"LAMPASAS2040"}]
[null,1304,"LAMPASAS","G",2050,6811,9973,69745178,{"$f":"IF(tbl_twdbdata[[#This Row],[Year]]=2016,0,tbl_twdbdata[[#This Row],[effsave]]-0.6*SUMIFS(tbl_twdbdata[effsave],tbl_twdbdata[Year],2020,tbl_twdbdata[utility],tbl_twdbdata[[#This Row],[utility]]))","v":52256967.799999997},3915,44,698,0,275473699,17669959,137406106,0,34872843,179130412,{"$f":"tbl_twdbdata[[#This Row],[utility]]&tbl_twdbdata[[#This Row],[Year]]","v":"LAMPASAS2050"}]
[null,1304,"LAMPASAS","G",2060,6811,10551,74904187,{"$f":"IF(tbl_twdbdata[[#This Row],[Year]]=2016,0,tbl_twdbdata[[#This Row],[effsave]]-0.6*SUMIFS(tbl_twdbdata[effsave],tbl_twdbdata[Year],2020,tbl_twdbdata[utility],tbl_twdbdata[[#This Row],[utility]]))","v":57415976.799999997},4142,49,771,0,291439186,18694048,145369681,0,36893950,189512181,{"$f":"tbl_twdbdata[[#This Row],[utility]]&tbl_twdbdata[[#This Row],[Year]]","v":"LAMPASAS2060"}]
[null,1304,"LAMPASAS","G",2070,6811,11072,78804960,{"$f":"IF(tbl_twdbdata[[#This Row],[Year]]=2016,0,tbl_twdbdata[[#This Row],[effsave]]-0.6*SUMIFS(tbl_twdbdata[effsave],tbl_twdbdata[Year],2020,tbl_twdbdata[utility],tbl_twdbdata[[#This Row],[utility]]))","v":61316749.799999997},4347,54,852,0,305830222,19617145,152547920,0,38715744,198870142,{"$f":"tbl_twdbdata[[#This Row],[utility]]&tbl_twdbdata[[#This Row],[Year]]","v":"LAMPASAS2070"}]
[null,1305,"LANCASTER","C",2016,37550,37550,0,{"$f":"IF(tbl_twdbdata[[#This Row],[Year]]=2016,0,tbl_twdbdata[[#This Row],[effsave]]-0.6*SUMIFS(tbl_twdbdata[effsave],tbl_twdbdata[Year],2020,tbl_twdbdata[utility],tbl_twdbdata[[#This Row],[utility]]))","v":0},12703,104,865,0,706121900,122386900,320034500,0,504552171,72585064,{"$f":"tbl_twdbdata[[#This Row],[utility]]&tbl_twdbdata[[#This Row],[Year]]","v":"LANCASTER2016"}]
[null,1305,"LANCASTER","C",2020,37550,45097,150777310,{"$f":"IF(tbl_twdbdata[[#This Row],[Year]]=2016,0,tbl_twdbdata[[#This Row],[effsave]]-0.6*SUMIFS(tbl_twdbdata[effsave],tbl_twdbdata[Year],2020,tbl_twdbdata[utility],tbl_twdbdata[[#This Row],[utility]]))","v":60310924},15218,125,1037,0,845901961,146613947,383386794,0,604430582,86953610,{"$f":"tbl_twdbdata[[#This Row],[utility]]&tbl_twdbdata[[#This Row],[Year]]","v":"LANCASTER2020"}]
[null,1305,"LANCASTER","C",2030,37550,58781,275483035,{"$f":"IF(tbl_twdbdata[[#This Row],[Year]]=2016,0,tbl_twdbdata[[#This Row],[effsave]]-0.6*SUMIFS(tbl_twdbdata[effsave],tbl_twdbdata[Year],2020,tbl_twdbdata[utility],tbl_twdbdata[[#This Row],[utility]]))","v":185016649},19836,163,1352,0,1102578069,191101723,499719696,0,787835866,113338363,{"$f":"tbl_twdbdata[[#This Row],[utility]]&tbl_twdbdata[[#This Row],[Year]]","v":"LANCASTER2030"}]
[null,1305,"LANCASTER","C",2040,37550,69582,372072350,{"$f":"IF(tbl_twdbdata[[#This Row],[Year]]=2016,0,tbl_twdbdata[[#This Row],[effsave]]-0.6*SUMIFS(tbl_twdbdata[effsave],tbl_twdbdata[Year],2020,tbl_twdbdata[utility],tbl_twdbdata[[#This Row],[utility]]))","v":281605964},23481,212,1762,0,1305176625,226216636,591543116,0,932600589,134164270,{"$f":"tbl_twdbdata[[#This Row],[utility]]&tbl_twdbdata[[#This Row],[Year]]","v":"LANCASTER2040"}]
[null,1305,"LANCASTER","C",2050,37550,77498,437313464,{"$f":"IF(tbl_twdbdata[[#This Row],[Year]]=2016,0,tbl_twdbdata[[#This Row],[effsave]]-0.6*SUMIFS(tbl_twdbdata[effsave],tbl_twdbdata[Year],2020,tbl_twdbdata[utility],tbl_twdbdata[[#This Row],[utility]]))","v":346847078},26152,276,2297,0,1453660114,251952184,658840051,0,1038697946,149427475,{"$f":"tbl_twdbdata[[#This Row],[utility]]&tbl_twdbdata[[#This Row],[Year]]","v":"LANCASTER2050"}]
[null,1305,"LANCASTER","C",2060,37550,85417,488546802,{"$f":"IF(tbl_twdbdata[[#This Row],[Year]]=2016,0,tbl_twdbdata[[#This Row],[effsave]]-0.6*SUMIFS(tbl_twdbdata[effsave],tbl_twdbdata[Year],2020,tbl_twdbdata[utility],tbl_twdbdata[[#This Row],[utility]]))","v":398080416},28824,360,2994,0,1602199876,277697485,726162490,0,1144835511,164696465,{"$f":"tbl_twdbdata[[#This Row],[utility]]&tbl_twdbdata[[#This Row],[Year]]","v":"LANCASTER2060"}]
[null,1305,"LANCASTER","C",2070,37550,93333,536207418,{"$f":"IF(tbl_twdbdata[[#This Row],[Year]]=2016,0,tbl_twdbdata[[#This Row],[effsave]]-0.6*SUMIFS(tbl_twdbdata[effsave],tbl_twdbdata[Year],2020,tbl_twdbdata[utility],tbl_twdbdata[[#This Row],[utility]]))","v":445741032},31495,469,3902,0,1750683365,303433033,793459425,0,1250932868,179959670,{"$f":"tbl_twdbdata[[#This Row],[utility]]&tbl_twdbdata[[#This Row],[Year]]","v":"LANCASTER2070"}]
[null,1306,"LAREDO","M",2016,255473,255473,0,{"$f":"IF(tbl_twdbdata[[#This Row],[Year]]=2016,0,tbl_twdbdata[[#This Row],[effsave]]-0.6*SUMIFS(tbl_twdbdata[effsave],tbl_twdbdata[Year],2020,tbl_twdbdata[utility],tbl_twdbdata[[#This Row],[utility]]))","v":0},61969,0,6550,0,6826000000,0,3975762800,0,353805568,1472515644,{"$f":"tbl_twdbdata[[#This Row],[utility]]&tbl_twdbdata[[#This Row],[Year]]","v":"LAREDO2016"}]
[null,1306,"LAREDO","M",2020,255473,301124,1033156444,{"$f":"IF(tbl_twdbdata[[#This Row],[Year]]=2016,0,tbl_twdbdata[[#This Row],[effsave]]-0.6*SUMIFS(tbl_twdbdata[effsave],tbl_twdbdata[Year],2020,tbl_twdbdata[utility],tbl_twdbdata[[#This Row],[utility]]))","v":413262577.60000002},73042,0,7720,0,8045752091,0,4686200097,0,417027818,1735642517,{"$f":"tbl_twdbdata[[#This Row],[utility]]&tbl_twdbdata[[#This Row],[Year]]","v":"LAREDO2020"}]
[null,1306,"LAREDO","M",2030,255473,372380,1747914482,{"$f":"IF(tbl_twdbdata[[#This Row],[Year]]=2016,0,tbl_twdbdata[[#This Row],[effsave]]-0.6*SUMIFS(tbl_twdbdata[effsave],tbl_twdbdata[Year],2020,tbl_twdbdata[utility],tbl_twdbdata[[#This Row],[utility]]))","v":1128020615.5999999},90326,0,9546,0,9949645872,0,5795111623,0,515710534,2146353530,{"$f":"tbl_twdbdata[[#This Row],[utility]]&tbl_twdbdata[[#This Row],[Year]]","v":"LAREDO2030"}]
[null,1306,"LAREDO","M",2040,255473,440247,2368572885,{"$f":"IF(tbl_twdbdata[[#This Row],[Year]]=2016,0,tbl_twdbdata[[#This Row],[effsave]]-0.6*SUMIFS(tbl_twdbdata[effsave],tbl_twdbdata[Year],2020,tbl_twdbdata[utility],tbl_twdbdata[[#This Row],[utility]]))","v":1748679018.5999999},106788,0,11804,0,11762988738,0,6851282310,0,609699811,2537530755,{"$f":"tbl_twdbdata[[#This Row],[utility]]&tbl_twdbdata[[#This Row],[Year]]","v":"LAREDO2040"}]
[null,1306,"LAREDO","M",2050,255473,502142,2861029366,{"$f":"IF(tbl_twdbdata[[#This Row],[Year]]=2016,0,tbl_twdbdata[[#This Row],[effsave]]-0.6*SUMIFS(tbl_twdbdata[effsave],tbl_twdbdata[Year],2020,tbl_twdbdata[utility],tbl_twdbdata[[#This Row],[utility]]))","v":2241135499.5999999},121801,0,14597,0,13416765341,0,7814514584,0,695418441,2894286090,{"$f":"tbl_twdbdata[[#This Row],[utility]]&tbl_twdbdata[[#This Row],[Year]]","v":"LAREDO2050"}]
[null,1306,"LAREDO","M",2060,255473,560482,3238436972,{"$f":"IF(tbl_twdbdata[[#This Row],[Year]]=2016,0,tbl_twdbdata[[#This Row],[effsave]]-0.6*SUMIFS(tbl_twdbdata[effsave],tbl_twdbdata[Year],2020,tbl_twdbdata[utility],tbl_twdbdata[[#This Row],[utility]]))","v":2618543105.5999999},135952,0,18051,0,14975555663,0,8722422667,0,776213738,3230550833,{"$f":"tbl_twdbdata[[#This Row],[utility]]&tbl_twdbdata[[#This Row],[Year]]","v":"LAREDO2060"}]
[null,1306,"LAREDO","M",2070,255473,613020,3557661570,{"$f":"IF(tbl_twdbdata[[#This Row],[Year]]=2016,0,tbl_twdbdata[[#This Row],[effsave]]-0.6*SUMIFS(tbl_twdbdata[effsave],tbl_twdbdata[Year],2020,tbl_twdbdata[utility],tbl_twdbdata[[#This Row],[utility]]))","v":2937767703.5999999},148696,0,22322,0,16379321963,0,9540037937,0,848973822,3533373546,{"$f":"tbl_twdbdata[[#This Row],[utility]]&tbl_twdbdata[[#This Row],[Year]]","v":"LAREDO2070"}]
[null,1309,"LEAGUE CITY","H",2016,100053,100053,0,{"$f":"IF(tbl_twdbdata[[#This Row],[Year]]=2016,0,tbl_twdbdata[[#This Row],[effsave]]-0.6*SUMIFS(tbl_twdbdata[effsave],tbl_twdbdata[Year],2020,tbl_twdbdata[utility],tbl_twdbdata[[#This Row],[utility]]))","v":0},30576,179,1811,0,2250083000,330532000,841850000,0,50996416,606251850,{"$f":"tbl_twdbdata[[#This Row],[utility]]&tbl_twdbdata[[#This Row],[Year]]","v":"LEAGUE CITY2016"}]
[null,1309,"LEAGUE CITY","H",2020,95105,109408,332250214,{"$f":"IF(tbl_twdbdata[[#This Row],[Year]]=2016,0,tbl_twdbdata[[#This Row],[effsave]]-0.6*SUMIFS(tbl_twdbdata[effsave],tbl_twdbdata[Year],2020,tbl_twdbdata[utility],tbl_twdbdata[[#This Row],[utility]]))","v":132900085.59999999},35174,206,2083,0,2588476745,380241260,968457229,0,58665852,697427080,{"$f":"tbl_twdbdata[[#This Row],[utility]]&tbl_twdbdata[[#This Row],[Year]]","v":"LEAGUE CITY2020"}]
[null,1309,"LEAGUE CITY","H",2030,95105,123301,487852737,{"$f":"IF(tbl_twdbdata[[#This Row],[Year]]=2016,0,tbl_twdbdata[[#This Row],[effsave]]-0.6*SUMIFS(tbl_twdbdata[effsave],tbl_twdbdata[Year],2020,tbl_twdbdata[utility],tbl_twdbdata[[#This Row],[utility]]))","v":288502608.60000002},39641,232,2348,0,2917170327,428525589,1091435223,0,66115441,785988743,{"$f":"tbl_twdbdata[[#This Row],[utility]]&tbl_twdbdata[[#This Row],[Year]]","v":"LEAGUE CITY2030"}]
[null,1309,"LEAGUE CITY","H",2040,95105,133984,599075960,{"$f":"IF(tbl_twdbdata[[#This Row],[Year]]=2016,0,tbl_twdbdata[[#This Row],[effsave]]-0.6*SUMIFS(tbl_twdbdata[effsave],tbl_twdbdata[Year],2020,tbl_twdbdata[utility],tbl_twdbdata[[#This Row],[utility]]))","v":399725831.60000002},43076,261,2646,0,3169918728,465653746,1185998954,0,71843791,854088091,{"$f":"tbl_twdbdata[[#This Row],[utility]]&tbl_twdbdata[[#This Row],[Year]]","v":"LEAGUE CITY2040"}]
[null,1309,"LEAGUE CITY","H",2050,95105,142761,677400945,{"$f":"IF(tbl_twdbdata[[#This Row],[Year]]=2016,0,tbl_twdbdata[[#This Row],[effsave]]-0.6*SUMIFS(tbl_twdbdata[effsave],tbl_twdbdata[Year],2020,tbl_twdbdata[utility],tbl_twdbdata[[#This Row],[utility]]))","v":478050816.60000002},45898,294,2982,0,3377573199,496157709,1263691162,0,76550121,910037541,{"$f":"tbl_twdbdata[[#This Row],[utility]]&tbl_twdbdata[[#This Row],[Year]]","v":"LEAGUE CITY2050"}]
[null,1309,"LEAGUE CITY","H",2060,95105,147813,713242069,{"$f":"IF(tbl_twdbdata[[#This Row],[Year]]=2016,0,tbl_twdbdata[[#This Row],[effsave]]-0.6*SUMIFS(tbl_twdbdata[effsave],tbl_twdbdata[Year],2020,tbl_twdbdata[utility],tbl_twdbdata[[#This Row],[utility]]))","v":513891940.60000002},47522,331,3361,0,3497098138,513715647,1308410432,0,79259063,942241782,{"$f":"tbl_twdbdata[[#This Row],[utility]]&tbl_twdbdata[[#This Row],[Year]]","v":"LEAGUE CITY2060"}]
[null,1309,"LEAGUE CITY","H",2070,95105,151278,732722557,{"$f":"IF(tbl_twdbdata[[#This Row],[Year]]=2016,0,tbl_twdbdata[[#This Row],[effsave]]-0.6*SUMIFS(tbl_twdbdata[effsave],tbl_twdbdata[Year],2020,tbl_twdbdata[utility],tbl_twdbdata[[#This Row],[utility]]))","v":533372428.60000002},48636,373,3787,0,3579076347,525758057,1339081903,0,81117037,964329608,{"$f":"tbl_twdbdata[[#This Row],[utility]]&tbl_twdbdata[[#This Row],[Year]]","v":"LEAGUE CITY2070"}]
[null,6395,"LEAKEY","J",2016,1737,1737,0,{"$f":"IF(tbl_twdbdata[[#This Row],[Year]]=2016,0,tbl_twdbdata[[#This Row],[effsave]]-0.6*SUMIFS(tbl_twdbdata[effsave],tbl_twdbdata[Year],2020,tbl_twdbdata[utility],tbl_twdbdata[[#This Row],[utility]]))","v":0},461,0,0,0,74672000,0,0,0,null,null,{"$f":"tbl_twdbdata[[#This Row],[utility]]&tbl_twdbdata[[#This Row],[Year]]","v":"LEAKEY2016"}]
[null,6395,"LEAKEY","J",2020,917,1415,4849700,{"$f":"IF(tbl_twdbdata[[#This Row],[Year]]=2016,0,tbl_twdbdata[[#This Row],[effsave]]-0.6*SUMIFS(tbl_twdbdata[effsave],tbl_twdbdata[Year],2020,tbl_twdbdata[utility],tbl_twdbdata[[#This Row],[utility]]))","v":1939880},711,0,0,0,115224515,0,0,0,null,null,{"$f":"tbl_twdbdata[[#This Row],[utility]]&tbl_twdbdata[[#This Row],[Year]]","v":"LEAKEY2020"}]
[null,6395,"LEAKEY","J",2030,917,1415,7075708,{"$f":"IF(tbl_twdbdata[[#This Row],[Year]]=2016,0,tbl_twdbdata[[#This Row],[effsave]]-0.6*SUMIFS(tbl_twdbdata[effsave],tbl_twdbdata[Year],2020,tbl_twdbdata[utility],tbl_twdbdata[[#This Row],[utility]]))","v":4165888},711,0,0,0,115224515,0,0,0,null,null,{"$f":"tbl_twdbdata[[#This Row],[utility]]&tbl_twdbdata[[#This Row],[Year]]","v":"LEAKEY2030"}]
[null,6395,"LEAKEY","J",2040,917,1415,8966006,{"$f":"IF(tbl_twdbdata[[#This Row],[Year]]=2016,0,tbl_twdbdata[[#This Row],[effsave]]-0.6*SUMIFS(tbl_twdbdata[effsave],tbl_twdbdata[Year],2020,tbl_twdbdata[utility],tbl_twdbdata[[#This Row],[utility]]))","v":6056186},711,0,0,0,115224515,0,0,0,null,null,{"$f":"tbl_twdbdata[[#This Row],[utility]]&tbl_twdbdata[[#This Row],[Year]]","v":"LEAKEY2040"}]
[null,6395,"LEAKEY","J",2050,917,1415,9663247,{"$f":"IF(tbl_twdbdata[[#This Row],[Year]]=2016,0,tbl_twdbdata[[#This Row],[effsave]]-0.6*SUMIFS(tbl_twdbdata[effsave],tbl_twdbdata[Year],2020,tbl_twdbdata[utility],tbl_twdbdata[[#This Row],[utility]]))","v":6753427},711,0,0,0,115224515,0,0,0,null,null,{"$f":"tbl_twdbdata[[#This Row],[utility]]&tbl_twdbdata[[#This Row],[Year]]","v":"LEAKEY2050"}]
[null,6395,"LEAKEY","J",2060,917,1415,9833684,{"$f":"IF(tbl_twdbdata[[#This Row],[Year]]=2016,0,tbl_twdbdata[[#This Row],[effsave]]-0.6*SUMIFS(tbl_twdbdata[effsave],tbl_twdbdata[Year],2020,tbl_twdbdata[utility],tbl_twdbdata[[#This Row],[utility]]))","v":6923864},711,0,0,0,115224515,0,0,0,null,null,{"$f":"tbl_twdbdata[[#This Row],[utility]]&tbl_twdbdata[[#This Row],[Year]]","v":"LEAKEY2060"}]
[null,6395,"LEAKEY","J",2070,917,1415,9833684,{"$f":"IF(tbl_twdbdata[[#This Row],[Year]]=2016,0,tbl_twdbdata[[#This Row],[effsave]]-0.6*SUMIFS(tbl_twdbdata[effsave],tbl_twdbdata[Year],2020,tbl_twdbdata[utility],tbl_twdbdata[[#This Row],[utility]]))","v":6923864},711,0,0,0,115224515,0,0,0,null,null,{"$f":"tbl_twdbdata[[#This Row],[utility]]&tbl_twdbdata[[#This Row],[Year]]","v":"LEAKEY2070"}]
[null,1310,"LEANDER","G",2016,49928,49928,0,{"$f":"IF(tbl_twdbdata[[#This Row],[Year]]=2016,0,tbl_twdbdata[[#This Row],[effsave]]-0.6*SUMIFS(tbl_twdbdata[effsave],tbl_twdbdata[Year],2020,tbl_twdbdata[utility],tbl_twdbdata[[#This Row],[utility]]))","v":0},13962,1339,682,0,1393050345,46503644,282653753,0,36978208,250761156,{"$f":"tbl_twdbdata[[#This Row],[utility]]&tbl_twdbdata[[#This Row],[Year]]","v":"LEANDER2016"}]
[null,1310,"LEANDER","G",2020,45377,59821,161576521,{"$f":"IF(tbl_twdbdata[[#This Row],[Year]]=2016,0,tbl_twdbdata[[#This Row],[effsave]]-0.6*SUMIFS(tbl_twdbdata[effsave],tbl_twdbdata[Year],2020,tbl_twdbdata[utility],tbl_twdbdata[[#This Row],[utility]]))","v":64630608.400000006},18406,1765,899,0,1836473647,61306267,372625563,0,48748780,330581200,{"$f":"tbl_twdbdata[[#This Row],[utility]]&tbl_twdbdata[[#This Row],[Year]]","v":"LEANDER2020"}]
[null,1310,"LEANDER","G",2030,45377,100885,348345817,{"$f":"IF(tbl_twdbdata[[#This Row],[Year]]=2016,0,tbl_twdbdata[[#This Row],[effsave]]-0.6*SUMIFS(tbl_twdbdata[effsave],tbl_twdbdata[Year],2020,tbl_twdbdata[utility],tbl_twdbdata[[#This Row],[utility]]))","v":251399904.40000001},31041,2977,1516,0,3097117131,103389825,628413599,0,82212278,557507971,{"$f":"tbl_twdbdata[[#This Row],[utility]]&tbl_twdbdata[[#This Row],[Year]]","v":"LEANDER2030"}]
[null,1310,"LEANDER","G",2040,45377,126106,460747187,{"$f":"IF(tbl_twdbdata[[#This Row],[Year]]=2016,0,tbl_twdbdata[[#This Row],[effsave]]-0.6*SUMIFS(tbl_twdbdata[effsave],tbl_twdbdata[Year],2020,tbl_twdbdata[utility],tbl_twdbdata[[#This Row],[utility]]))","v":363801274.39999998},38801,5021,2557,0,3871388739,129237025,785515442,0,102765144,696883582,{"$f":"tbl_twdbdata[[#This Row],[utility]]&tbl_twdbdata[[#This Row],[Year]]","v":"LEANDER2040"}]
[null,1310,"LEANDER","G",2050,45377,151328,564498838,{"$f":"IF(tbl_twdbdata[[#This Row],[Year]]=2016,0,tbl_twdbdata[[#This Row],[effsave]]-0.6*SUMIFS(tbl_twdbdata[effsave],tbl_twdbdata[Year],2020,tbl_twdbdata[utility],tbl_twdbdata[[#This Row],[utility]]))","v":467552925.39999998},46561,8468,4312,0,4645691046,155085250,942623514,0,123318825,836264719,{"$f":"tbl_twdbdata[[#This Row],[utility]]&tbl_twdbdata[[#This Row],[Year]]","v":"LEANDER2050"}]
[null,1310,"LEANDER","G",2060,45377,181594,682039825,{"$f":"IF(tbl_twdbdata[[#This Row],[Year]]=2016,0,tbl_twdbdata[[#This Row],[effsave]]-0.6*SUMIFS(tbl_twdbdata[effsave],tbl_twdbdata[Year],2020,tbl_twdbdata[utility],tbl_twdbdata[[#This Row],[utility]]))","v":585093912.39999998},55873,14281,7272,0,5574841535,186102710,1131150708,0,147982916,1003519873,{"$f":"tbl_twdbdata[[#This Row],[utility]]&tbl_twdbdata[[#This Row],[Year]]","v":"LEANDER2060"}]
[null,1310,"LEANDER","G",2070,45377,217912,821626300,{"$f":"IF(tbl_twdbdata[[#This Row],[Year]]=2016,0,tbl_twdbdata[[#This Row],[effsave]]-0.6*SUMIFS(tbl_twdbdata[effsave],tbl_twdbdata[Year],2020,tbl_twdbdata[utility],tbl_twdbdata[[#This Row],[utility]]))","v":724680387.39999998},67047,24084,12264,0,6689785282,223322432,1357375867,0,177578847,1204219427,{"$f":"tbl_twdbdata[[#This Row],[utility]]&tbl_twdbdata[[#This Row],[Year]]","v":"LEANDER2070"}]
[null,1312,"LEE COUNTY WSC","G",2016,11568,11568,0,{"$f":"IF(tbl_twdbdata[[#This Row],[Year]]=2016,0,tbl_twdbdata[[#This Row],[effsave]]-0.6*SUMIFS(tbl_twdbdata[effsave],tbl_twdbdata[Year],2020,tbl_twdbdata[utility],tbl_twdbdata[[#This Row],[utility]]))","v":0},3903,60,19,0,214622870,9385240,14029140,0,18822974,53449059,{"$f":"tbl_twdbdata[[#This Row],[utility]]&tbl_twdbdata[[#This Row],[Year]]","v":"LEE COUNTY WSC2016"}]
[null,1312,"LEE COUNTY WSC","G",2020,9566,9990,31869099,{"$f":"IF(tbl_twdbdata[[#This Row],[Year]]=2016,0,tbl_twdbdata[[#This Row],[effsave]]-0.6*SUMIFS(tbl_twdbdata[effsave],tbl_twdbdata[Year],2020,tbl_twdbdata[utility],tbl_twdbdata[[#This Row],[utility]]))","v":12747639.600000001},4076,63,20,0,224135738,9801228,14650963,0,19657277,55818116,{"$f":"tbl_twdbdata[[#This Row],[utility]]&tbl_twdbdata[[#This Row],[Year]]","v":"LEE COUNTY WSC2020"}]
[null,1312,"LEE COUNTY WSC","G",2030,9566,11446,50384147,{"$f":"IF(tbl_twdbdata[[#This Row],[Year]]=2016,0,tbl_twdbdata[[#This Row],[effsave]]-0.6*SUMIFS(tbl_twdbdata[effsave],tbl_twdbdata[Year],2020,tbl_twdbdata[utility],tbl_twdbdata[[#This Row],[utility]]))","v":31262687.600000001},4670,72,23,0,256802568,11229715,16786279,0,22522241,63953369,{"$f":"tbl_twdbdata[[#This Row],[utility]]&tbl_twdbdata[[#This Row],[Year]]","v":"LEE COUNTY WSC2030"}]
[null,1312,"LEE COUNTY WSC","G",2040,9566,12530,64256973,{"$f":"IF(tbl_twdbdata[[#This Row],[Year]]=2016,0,tbl_twdbdata[[#This Row],[effsave]]-0.6*SUMIFS(tbl_twdbdata[effsave],tbl_twdbdata[Year],2020,tbl_twdbdata[utility],tbl_twdbdata[[#This Row],[utility]]))","v":45135513.600000001},5112,82,26,0,281123203,12293232,18376033,0,24655223,70010110,{"$f":"tbl_twdbdata[[#This Row],[utility]]&tbl_twdbdata[[#This Row],[Year]]","v":"LEE COUNTY WSC2040"}]
[null,1312,"LEE COUNTY WSC","G",2050,9566,13395,73630976,{"$f":"IF(tbl_twdbdata[[#This Row],[Year]]=2016,0,tbl_twdbdata[[#This Row],[effsave]]-0.6*SUMIFS(tbl_twdbdata[effsave],tbl_twdbdata[Year],2020,tbl_twdbdata[utility],tbl_twdbdata[[#This Row],[utility]]))","v":54509516.600000001},5465,94,30,0,300530351,13141887,19644610,0,26357279,74843210,{"$f":"tbl_twdbdata[[#This Row],[utility]]&tbl_twdbdata[[#This Row],[Year]]","v":"LEE COUNTY WSC2050"}]
[null,1312,"LEE COUNTY WSC","G",2060,9566,14365,80378639,{"$f":"IF(tbl_twdbdata[[#This Row],[Year]]=2016,0,tbl_twdbdata[[#This Row],[effsave]]-0.6*SUMIFS(tbl_twdbdata[effsave],tbl_twdbdata[Year],2020,tbl_twdbdata[utility],tbl_twdbdata[[#This Row],[utility]]))","v":61257179.600000001},5861,108,34,0,322293280,14093558,21067176,0,28265943,80262987,{"$f":"tbl_twdbdata[[#This Row],[utility]]&tbl_twdbdata[[#This Row],[Year]]","v":"LEE COUNTY WSC2060"}]
[null,1312,"LEE COUNTY WSC","G",2070,9566,15497,87108637,{"$f":"IF(tbl_twdbdata[[#This Row],[Year]]=2016,0,tbl_twdbdata[[#This Row],[effsave]]-0.6*SUMIFS(tbl_twdbdata[effsave],tbl_twdbdata[Year],2020,tbl_twdbdata[utility],tbl_twdbdata[[#This Row],[utility]]))","v":67987177.599999994},6323,124,39,0,347690843,15204168,22727325,0,30493374,86587923,{"$f":"tbl_twdbdata[[#This Row],[utility]]&tbl_twdbdata[[#This Row],[Year]]","v":"LEE COUNTY WSC2070"}]
[null,1316,"LEVELLAND","O",2016,13929,13929,0,{"$f":"IF(tbl_twdbdata[[#This Row],[Year]]=2016,0,tbl_twdbdata[[#This Row],[effsave]]-0.6*SUMIFS(tbl_twdbdata[effsave],tbl_twdbdata[Year],2020,tbl_twdbdata[utility],tbl_twdbdata[[#This Row],[utility]]))","v":0},4802,52,50,320,404087000,12700000,19648000,80295000,8982870,192916722,{"$f":"tbl_twdbdata[[#This Row],[utility]]&tbl_twdbdata[[#This Row],[Year]]","v":"LEVELLAND2016"}]
[null,1316,"LEVELLAND","O",2020,13929,14839,54812298,{"$f":"IF(tbl_twdbdata[[#This Row],[Year]]=2016,0,tbl_twdbdata[[#This Row],[effsave]]-0.6*SUMIFS(tbl_twdbdata[effsave],tbl_twdbdata[Year],2020,tbl_twdbdata[utility],tbl_twdbdata[[#This Row],[utility]]))","v":21924919.200000003},5116,55,54,341,430486538,13529708,20931630,85540779,9569733,205520227,{"$f":"tbl_twdbdata[[#This Row],[utility]]&tbl_twdbdata[[#This Row],[Year]]","v":"LEVELLAND2020"}]
[null,1316,"LEVELLAND","O",2030,13929,15785,83311652,{"$f":"IF(tbl_twdbdata[[#This Row],[Year]]=2016,0,tbl_twdbdata[[#This Row],[effsave]]-0.6*SUMIFS(tbl_twdbdata[effsave],tbl_twdbdata[Year],2020,tbl_twdbdata[utility],tbl_twdbdata[[#This Row],[utility]]))","v":50424273.200000003},5442,59,58,363,457930454,14392239,22266040,90994083,10179812,218622332,{"$f":"tbl_twdbdata[[#This Row],[utility]]&tbl_twdbdata[[#This Row],[Year]]","v":"LEVELLAND2030"}]
[null,1316,"LEVELLAND","O",2040,13929,16359,105448478,{"$f":"IF(tbl_twdbdata[[#This Row],[Year]]=2016,0,tbl_twdbdata[[#This Row],[effsave]]-0.6*SUMIFS(tbl_twdbdata[effsave],tbl_twdbdata[Year],2020,tbl_twdbdata[utility],tbl_twdbdata[[#This Row],[utility]]))","v":72561099.200000003},5640,63,62,386,474582471,14915593,23075714,94302959,10549987,226572235,{"$f":"tbl_twdbdata[[#This Row],[utility]]&tbl_twdbdata[[#This Row],[Year]]","v":"LEVELLAND2040"}]
[null,1316,"LEVELLAND","O",2050,13929,16467,113717809,{"$f":"IF(tbl_twdbdata[[#This Row],[Year]]=2016,0,tbl_twdbdata[[#This Row],[effsave]]-0.6*SUMIFS(tbl_twdbdata[effsave],tbl_twdbdata[Year],2020,tbl_twdbdata[utility],tbl_twdbdata[[#This Row],[utility]]))","v":80830430.200000003},5677,67,66,411,477715603,15014064,23228057,94925535,10619637,228068036,{"$f":"tbl_twdbdata[[#This Row],[utility]]&tbl_twdbdata[[#This Row],[Year]]","v":"LEVELLAND2050"}]
[null,1316,"LEVELLAND","O",2060,13929,17202,120802765,{"$f":"IF(tbl_twdbdata[[#This Row],[Year]]=2016,0,tbl_twdbdata[[#This Row],[effsave]]-0.6*SUMIFS(tbl_twdbdata[effsave],tbl_twdbdata[Year],2020,tbl_twdbdata[utility],tbl_twdbdata[[#This Row],[utility]]))","v":87915386.200000003},5930,71,70,437,499038307,15684213,24264835,99162510,11093642,238247790,{"$f":"tbl_twdbdata[[#This Row],[utility]]&tbl_twdbdata[[#This Row],[Year]]","v":"LEVELLAND2060"}]
[null,1316,"LEVELLAND","O",2070,13929,17676,124389547,{"$f":"IF(tbl_twdbdata[[#This Row],[Year]]=2016,0,tbl_twdbdata[[#This Row],[effsave]]-0.6*SUMIFS(tbl_twdbdata[effsave],tbl_twdbdata[Year],2020,tbl_twdbdata[utility],tbl_twdbdata[[#This Row],[utility]]))","v":91502168.200000003},6093,76,74,465,512789275,16116390,24933451,101894927,11399327,244812692,{"$f":"tbl_twdbdata[[#This Row],[utility]]&tbl_twdbdata[[#This Row],[Year]]","v":"LEVELLAND2070"}]
[null,1317,"LEWISVILLE","C",2016,104039,104039,0,{"$f":"IF(tbl_twdbdata[[#This Row],[Year]]=2016,0,tbl_twdbdata[[#This Row],[effsave]]-0.6*SUMIFS(tbl_twdbdata[effsave],tbl_twdbdata[Year],2020,tbl_twdbdata[utility],tbl_twdbdata[[#This Row],[utility]]))","v":0},21228,21888,3335,0,1750201000,873395000,1739545000,0,60873855,445893514,{"$f":"tbl_twdbdata[[#This Row],[utility]]&tbl_twdbdata[[#This Row],[Year]]","v":"LEWISVILLE2016"}]
[null,1317,"LEWISVILLE","C",2020,97630,107326,331411955,{"$f":"IF(tbl_twdbdata[[#This Row],[Year]]=2016,0,tbl_twdbdata[[#This Row],[effsave]]-0.6*SUMIFS(tbl_twdbdata[effsave],tbl_twdbdata[Year],2020,tbl_twdbdata[utility],tbl_twdbdata[[#This Row],[utility]]))","v":132564782},23336,24062,3666,0,1924019999,960135120,1912305711,0,66919465,490176865,{"$f":"tbl_twdbdata[[#This Row],[utility]]&tbl_twdbdata[[#This Row],[Year]]","v":"LEWISVILLE2020"}]
[null,1317,"LEWISVILLE","C",2030,97630,121923,520227153,{"$f":"IF(tbl_twdbdata[[#This Row],[Year]]=2016,0,tbl_twdbdata[[#This Row],[effsave]]-0.6*SUMIFS(tbl_twdbdata[effsave],tbl_twdbdata[Year],2020,tbl_twdbdata[utility],tbl_twdbdata[[#This Row],[utility]]))","v":321379980},26510,27335,4165,0,2185698622,1090719436,2172391119,0,76020926,556843951,{"$f":"tbl_twdbdata[[#This Row],[utility]]&tbl_twdbdata[[#This Row],[Year]]","v":"LEWISVILLE2030"}]
[null,1317,"LEWISVILLE","C",2040,97630,139367,699448131,{"$f":"IF(tbl_twdbdata[[#This Row],[Year]]=2016,0,tbl_twdbdata[[#This Row],[effsave]]-0.6*SUMIFS(tbl_twdbdata[effsave],tbl_twdbdata[Year],2020,tbl_twdbdata[utility],tbl_twdbdata[[#This Row],[utility]]))","v":500600958},30303,31053,4731,0,2498415064,1246772927,2483203604,0,86897537,636513791,{"$f":"tbl_twdbdata[[#This Row],[utility]]&tbl_twdbdata[[#This Row],[Year]]","v":"LEWISVILLE2040"}]
[null,1317,"LEWISVILLE","C",2050,97630,158855,856975069,{"$f":"IF(tbl_twdbdata[[#This Row],[Year]]=2016,0,tbl_twdbdata[[#This Row],[effsave]]-0.6*SUMIFS(tbl_twdbdata[effsave],tbl_twdbdata[Year],2020,tbl_twdbdata[utility],tbl_twdbdata[[#This Row],[utility]]))","v":658127896},34540,35276,5374,0,2847774043,1421111980,2830435531,0,99048614,725518941,{"$f":"tbl_twdbdata[[#This Row],[utility]]&tbl_twdbdata[[#This Row],[Year]]","v":"LEWISVILLE2050"}]
[null,1317,"LEWISVILLE","C",2060,97630,177354,974897203,{"$f":"IF(tbl_twdbdata[[#This Row],[Year]]=2016,0,tbl_twdbdata[[#This Row],[effsave]]-0.6*SUMIFS(tbl_twdbdata[effsave],tbl_twdbdata[Year],2020,tbl_twdbdata[utility],tbl_twdbdata[[#This Row],[utility]]))","v":776050030},38562,40074,6106,0,3179403340,1586603469,3160045722,0,110583034,810007153,{"$f":"tbl_twdbdata[[#This Row],[utility]]&tbl_twdbdata[[#This Row],[Year]]","v":"LEWISVILLE2060"}]
[null,1317,"LEWISVILLE","C",2070,97630,177354,976191887,{"$f":"IF(tbl_twdbdata[[#This Row],[Year]]=2016,0,tbl_twdbdata[[#This Row],[effsave]]-0.6*SUMIFS(tbl_twdbdata[effsave],tbl_twdbdata[Year],2020,tbl_twdbdata[utility],tbl_twdbdata[[#This Row],[utility]]))","v":777344714},38562,45524,6936,0,3179403340,1586603469,3160045722,0,110583034,810007153,{"$f":"tbl_twdbdata[[#This Row],[utility]]&tbl_twdbdata[[#This Row],[Year]]","v":"LEWISVILLE2070"}]
[null,1319,"LIBERTY","H",2016,7140,8455,0,{"$f":"IF(tbl_twdbdata[[#This Row],[Year]]=2016,0,tbl_twdbdata[[#This Row],[effsave]]-0.6*SUMIFS(tbl_twdbdata[effsave],tbl_twdbdata[Year],2020,tbl_twdbdata[utility],tbl_twdbdata[[#This Row],[utility]]))","v":0},2602,0,572,0,172319000,0,153893000,0,5761907,128978619,{"$f":"tbl_twdbdata[[#This Row],[utility]]&tbl_twdbdata[[#This Row],[Year]]","v":"LIBERTY2016"}]
[null,1319,"LIBERTY","H",2020,7140,9270,32854271,{"$f":"IF(tbl_twdbdata[[#This Row],[Year]]=2016,0,tbl_twdbdata[[#This Row],[effsave]]-0.6*SUMIFS(tbl_twdbdata[effsave],tbl_twdbdata[Year],2020,tbl_twdbdata[utility],tbl_twdbdata[[#This Row],[utility]]))","v":13141708.400000002},2680,0,589,0,177508293,0,158527404,0,5935424,132862740,{"$f":"tbl_twdbdata[[#This Row],[utility]]&tbl_twdbdata[[#This Row],[Year]]","v":"LIBERTY2020"}]
[null,1319,"LIBERTY","H",2030,7140,10008,50775588,{"$f":"IF(tbl_twdbdata[[#This Row],[Year]]=2016,0,tbl_twdbdata[[#This Row],[effsave]]-0.6*SUMIFS(tbl_twdbdata[effsave],tbl_twdbdata[Year],2020,tbl_twdbdata[utility],tbl_twdbdata[[#This Row],[utility]]))","v":31063025.400000002},2893,0,636,0,191640021,0,171148032,0,6407953,143440162,{"$f":"tbl_twdbdata[[#This Row],[utility]]&tbl_twdbdata[[#This Row],[Year]]","v":"LIBERTY2030"}]
[null,1319,"LIBERTY","H",2040,7140,10711,66227184,{"$f":"IF(tbl_twdbdata[[#This Row],[Year]]=2016,0,tbl_twdbdata[[#This Row],[effsave]]-0.6*SUMIFS(tbl_twdbdata[effsave],tbl_twdbdata[Year],2020,tbl_twdbdata[utility],tbl_twdbdata[[#This Row],[utility]]))","v":46514621.400000006},3096,0,687,0,205101545,0,183170121,0,6858072,153515945,{"$f":"tbl_twdbdata[[#This Row],[utility]]&tbl_twdbdata[[#This Row],[Year]]","v":"LIBERTY2040"}]
[null,1319,"LIBERTY","H",2050,7140,11416,77003203,{"$f":"IF(tbl_twdbdata[[#This Row],[Year]]=2016,0,tbl_twdbdata[[#This Row],[effsave]]-0.6*SUMIFS(tbl_twdbdata[effsave],tbl_twdbdata[Year],2020,tbl_twdbdata[utility],tbl_twdbdata[[#This Row],[utility]]))","v":57290640.400000006},3300,0,742,0,218601367,0,195226413,0,7309472,163620393,{"$f":"tbl_twdbdata[[#This Row],[utility]]&tbl_twdbdata[[#This Row],[Year]]","v":"LIBERTY2050"}]
[null,1319,"LIBERTY","H",2060,7140,12090,82873323,{"$f":"IF(tbl_twdbdata[[#This Row],[Year]]=2016,0,tbl_twdbdata[[#This Row],[effsave]]-0.6*SUMIFS(tbl_twdbdata[effsave],tbl_twdbdata[Year],2020,tbl_twdbdata[utility],tbl_twdbdata[[#This Row],[utility]]))","v":63160760.400000006},3495,0,801,0,231507579,0,206752569,0,7741023,173280532,{"$f":"tbl_twdbdata[[#This Row],[utility]]&tbl_twdbdata[[#This Row],[Year]]","v":"LIBERTY2060"}]
[null,1319,"LIBERTY","H",2070,7140,12734,87566624,{"$f":"IF(tbl_twdbdata[[#This Row],[Year]]=2016,0,tbl_twdbdata[[#This Row],[effsave]]-0.6*SUMIFS(tbl_twdbdata[effsave],tbl_twdbdata[Year],2020,tbl_twdbdata[utility],tbl_twdbdata[[#This Row],[utility]]))","v":67854061.400000006},3681,0,865,0,243839331,0,217765692,0,8153365,182510694,{"$f":"tbl_twdbdata[[#This Row],[utility]]&tbl_twdbdata[[#This Row],[Year]]","v":"LIBERTY2070"}]
[null,1328,"LITTLE ELM","C",2016,35289,35289,0,{"$f":"IF(tbl_twdbdata[[#This Row],[Year]]=2016,0,tbl_twdbdata[[#This Row],[effsave]]-0.6*SUMIFS(tbl_twdbdata[effsave],tbl_twdbdata[Year],2020,tbl_twdbdata[utility],tbl_twdbdata[[#This Row],[utility]]))","v":0},10243,1728,288,1,812085000,60548000,184708000,9923000,null,null,{"$f":"tbl_twdbdata[[#This Row],[utility]]&tbl_twdbdata[[#This Row],[Year]]","v":"LITTLE ELM2016"}]
[null,1328,"LITTLE ELM","C",2020,33208,29627,56340185,{"$f":"IF(tbl_twdbdata[[#This Row],[Year]]=2016,0,tbl_twdbdata[[#This Row],[effsave]]-0.6*SUMIFS(tbl_twdbdata[effsave],tbl_twdbdata[Year],2020,tbl_twdbdata[utility],tbl_twdbdata[[#This Row],[utility]]))","v":22536074},9138,1542,257,1,724513439,54018778,164789927,8852949,null,null,{"$f":"tbl_twdbdata[[#This Row],[utility]]&tbl_twdbdata[[#This Row],[Year]]","v":"LITTLE ELM2020"}]
[null,1328,"LITTLE ELM","C",2030,33208,33557,80593847,{"$f":"IF(tbl_twdbdata[[#This Row],[Year]]=2016,0,tbl_twdbdata[[#This Row],[effsave]]-0.6*SUMIFS(tbl_twdbdata[effsave],tbl_twdbdata[Year],2020,tbl_twdbdata[utility],tbl_twdbdata[[#This Row],[utility]]))","v":46789736},10350,1747,291,1,820619620,61184330,186649191,10027286,null,null,{"$f":"tbl_twdbdata[[#This Row],[utility]]&tbl_twdbdata[[#This Row],[Year]]","v":"LITTLE ELM2030"}]
[null,1328,"LITTLE ELM","C",2040,33208,33557,85248203,{"$f":"IF(tbl_twdbdata[[#This Row],[Year]]=2016,0,tbl_twdbdata[[#This Row],[effsave]]-0.6*SUMIFS(tbl_twdbdata[effsave],tbl_twdbdata[Year],2020,tbl_twdbdata[utility],tbl_twdbdata[[#This Row],[utility]]))","v":51444092},10350,1979,329,1,820619620,61184330,186649191,10027286,null,null,{"$f":"tbl_twdbdata[[#This Row],[utility]]&tbl_twdbdata[[#This Row],[Year]]","v":"LITTLE ELM2040"}]
[null,1328,"LITTLE ELM","C",2050,33208,33557,89167660,{"$f":"IF(tbl_twdbdata[[#This Row],[Year]]=2016,0,tbl_twdbdata[[#This Row],[effsave]]-0.6*SUMIFS(tbl_twdbdata[effsave],tbl_twdbdata[Year],2020,tbl_twdbdata[utility],tbl_twdbdata[[#This Row],[utility]]))","v":55363549},10350,2242,373,1,820619620,61184330,186649191,10027286,null,null,{"$f":"tbl_twdbdata[[#This Row],[utility]]&tbl_twdbdata[[#This Row],[Year]]","v":"LITTLE ELM2050"}]
[null,1328,"LITTLE ELM","C",2060,33208,33557,92229737,{"$f":"IF(tbl_twdbdata[[#This Row],[Year]]=2016,0,tbl_twdbdata[[#This Row],[effsave]]-0.6*SUMIFS(tbl_twdbdata[effsave],tbl_twdbdata[Year],2020,tbl_twdbdata[utility],tbl_twdbdata[[#This Row],[utility]]))","v":58425626},10350,2539,423,1,820619620,61184330,186649191,10027286,null,null,{"$f":"tbl_twdbdata[[#This Row],[utility]]&tbl_twdbdata[[#This Row],[Year]]","v":"LITTLE ELM2060"}]
[null,1328,"LITTLE ELM","C",2070,33208,33557,92474703,{"$f":"IF(tbl_twdbdata[[#This Row],[Year]]=2016,0,tbl_twdbdata[[#This Row],[effsave]]-0.6*SUMIFS(tbl_twdbdata[effsave],tbl_twdbdata[Year],2020,tbl_twdbdata[utility],tbl_twdbdata[[#This Row],[utility]]))","v":58670592},10350,2876,479,1,820619620,61184330,186649191,10027286,null,null,{"$f":"tbl_twdbdata[[#This Row],[utility]]&tbl_twdbdata[[#This Row],[Year]]","v":"LITTLE ELM2070"}]
[null,1330,"LITTLEFIELD","O",2016,6372,6372,0,{"$f":"IF(tbl_twdbdata[[#This Row],[Year]]=2016,0,tbl_twdbdata[[#This Row],[effsave]]-0.6*SUMIFS(tbl_twdbdata[effsave],tbl_twdbdata[Year],2020,tbl_twdbdata[utility],tbl_twdbdata[[#This Row],[utility]]))","v":0},1991,0,347,0,49443000,0,158747000,0,5520430,52724002,{"$f":"tbl_twdbdata[[#This Row],[utility]]&tbl_twdbdata[[#This Row],[Year]]","v":"LITTLEFIELD2016"}]
[null,1330,"LITTLEFIELD","O",2020,6178,6642,22522026,{"$f":"IF(tbl_twdbdata[[#This Row],[Year]]=2016,0,tbl_twdbdata[[#This Row],[effsave]]-0.6*SUMIFS(tbl_twdbdata[effsave],tbl_twdbdata[Year],2020,tbl_twdbdata[utility],tbl_twdbdata[[#This Row],[utility]]))","v":9008810.4000000004},2141,0,373,0,53156427,0,170669727,0,5935043,56683849,{"$f":"tbl_twdbdata[[#This Row],[utility]]&tbl_twdbdata[[#This Row],[Year]]","v":"LITTLEFIELD2020"}]
[null,1330,"LITTLEFIELD","O",2030,6178,6642,32801185,{"$f":"IF(tbl_twdbdata[[#This Row],[Year]]=2016,0,tbl_twdbdata[[#This Row],[effsave]]-0.6*SUMIFS(tbl_twdbdata[effsave],tbl_twdbdata[Year],2020,tbl_twdbdata[utility],tbl_twdbdata[[#This Row],[utility]]))","v":19287969.399999999},2141,0,373,0,53156427,0,170669727,0,5935043,56683849,{"$f":"tbl_twdbdata[[#This Row],[utility]]&tbl_twdbdata[[#This Row],[Year]]","v":"LITTLEFIELD2030"}]
[null,1330,"LITTLEFIELD","O",2040,6178,6642,42037882,{"$f":"IF(tbl_twdbdata[[#This Row],[Year]]=2016,0,tbl_twdbdata[[#This Row],[effsave]]-0.6*SUMIFS(tbl_twdbdata[effsave],tbl_twdbdata[Year],2020,tbl_twdbdata[utility],tbl_twdbdata[[#This Row],[utility]]))","v":28524666.399999999},2141,0,373,0,53156427,0,170669727,0,5935043,56683849,{"$f":"tbl_twdbdata[[#This Row],[utility]]&tbl_twdbdata[[#This Row],[Year]]","v":"LITTLEFIELD2040"}]
[null,1330,"LITTLEFIELD","O",2050,6178,6642,45625891,{"$f":"IF(tbl_twdbdata[[#This Row],[Year]]=2016,0,tbl_twdbdata[[#This Row],[effsave]]-0.6*SUMIFS(tbl_twdbdata[effsave],tbl_twdbdata[Year],2020,tbl_twdbdata[utility],tbl_twdbdata[[#This Row],[utility]]))","v":32112675.399999999},2141,0,373,0,53156427,0,170669727,0,5935043,56683849,{"$f":"tbl_twdbdata[[#This Row],[utility]]&tbl_twdbdata[[#This Row],[Year]]","v":"LITTLEFIELD2050"}]
[null,1330,"LITTLEFIELD","O",2060,6178,6642,46474406,{"$f":"IF(tbl_twdbdata[[#This Row],[Year]]=2016,0,tbl_twdbdata[[#This Row],[effsave]]-0.6*SUMIFS(tbl_twdbdata[effsave],tbl_twdbdata[Year],2020,tbl_twdbdata[utility],tbl_twdbdata[[#This Row],[utility]]))","v":32961190.399999999},2141,0,373,0,53156427,0,170669727,0,5935043,56683849,{"$f":"tbl_twdbdata[[#This Row],[utility]]&tbl_twdbdata[[#This Row],[Year]]","v":"LITTLEFIELD2060"}]
[null,1330,"LITTLEFIELD","O",2070,6178,6642,46474406,{"$f":"IF(tbl_twdbdata[[#This Row],[Year]]=2016,0,tbl_twdbdata[[#This Row],[effsave]]-0.6*SUMIFS(tbl_twdbdata[effsave],tbl_twdbdata[Year],2020,tbl_twdbdata[utility],tbl_twdbdata[[#This Row],[utility]]))","v":32961190.399999999},2141,0,373,0,53156427,0,170669727,0,5935043,56683849,{"$f":"tbl_twdbdata[[#This Row],[utility]]&tbl_twdbdata[[#This Row],[Year]]","v":"LITTLEFIELD2070"}]
[null,1586,"LIVINGSTON","H",2016,5335,5335,0,{"$f":"IF(tbl_twdbdata[[#This Row],[Year]]=2016,0,tbl_twdbdata[[#This Row],[effsave]]-0.6*SUMIFS(tbl_twdbdata[effsave],tbl_twdbdata[Year],2020,tbl_twdbdata[utility],tbl_twdbdata[[#This Row],[utility]]))","v":0},1825,327,591,0,104968000,8541000,454061000,0,27897282,169708718,{"$f":"tbl_twdbdata[[#This Row],[utility]]&tbl_twdbdata[[#This Row],[Year]]","v":"LIVINGSTON2016"}]
[null,1586,"LIVINGSTON","H",2020,5316,6183,23515804,{"$f":"IF(tbl_twdbdata[[#This Row],[Year]]=2016,0,tbl_twdbdata[[#This Row],[effsave]]-0.6*SUMIFS(tbl_twdbdata[effsave],tbl_twdbdata[Year],2020,tbl_twdbdata[utility],tbl_twdbdata[[#This Row],[utility]]))","v":9406321.5999999996},2123,380,687,0,122087499,9933973,528114967,0,32447121,197386946,{"$f":"tbl_twdbdata[[#This Row],[utility]]&tbl_twdbdata[[#This Row],[Year]]","v":"LIVINGSTON2020"}]
[null,1586,"LIVINGSTON","H",2030,5316,6908,37241373,{"$f":"IF(tbl_twdbdata[[#This Row],[Year]]=2016,0,tbl_twdbdata[[#This Row],[effsave]]-0.6*SUMIFS(tbl_twdbdata[effsave],tbl_twdbdata[Year],2020,tbl_twdbdata[utility],tbl_twdbdata[[#This Row],[utility]]))","v":23131890.600000001},2372,425,767,0,136403112,11098801,590040141,0,36251773,220531946,{"$f":"tbl_twdbdata[[#This Row],[utility]]&tbl_twdbdata[[#This Row],[Year]]","v":"LIVINGSTON2030"}]
[null,1586,"LIVINGSTON","H",2040,5316,7477,48277867,{"$f":"IF(tbl_twdbdata[[#This Row],[Year]]=2016,0,tbl_twdbdata[[#This Row],[effsave]]-0.6*SUMIFS(tbl_twdbdata[effsave],tbl_twdbdata[Year],2020,tbl_twdbdata[utility],tbl_twdbdata[[#This Row],[utility]]))","v":34168384.600000001},2567,475,857,0,147638400,12012990,638640726,0,39237769,238696781,{"$f":"tbl_twdbdata[[#This Row],[utility]]&tbl_twdbdata[[#This Row],[Year]]","v":"LIVINGSTON2040"}]
[null,1586,"LIVINGSTON","H",2050,5316,7963,55630314,{"$f":"IF(tbl_twdbdata[[#This Row],[Year]]=2016,0,tbl_twdbdata[[#This Row],[effsave]]-0.6*SUMIFS(tbl_twdbdata[effsave],tbl_twdbdata[Year],2020,tbl_twdbdata[utility],tbl_twdbdata[[#This Row],[utility]]))","v":41520831.600000001},2734,531,957,0,157234797,12793826,680151946,0,41788198,254211912,{"$f":"tbl_twdbdata[[#This Row],[utility]]&tbl_twdbdata[[#This Row],[Year]]","v":"LIVINGSTON2050"}]
[null,1586,"LIVINGSTON","H",2060,5316,8359,59220589,{"$f":"IF(tbl_twdbdata[[#This Row],[Year]]=2016,0,tbl_twdbdata[[#This Row],[effsave]]-0.6*SUMIFS(tbl_twdbdata[effsave],tbl_twdbdata[Year],2020,tbl_twdbdata[utility],tbl_twdbdata[[#This Row],[utility]]))","v":45111106.600000001},2870,593,1069,0,165054084,13430063,713975903,0,43866325,266853871,{"$f":"tbl_twdbdata[[#This Row],[utility]]&tbl_twdbdata[[#This Row],[Year]]","v":"LIVINGSTON2060"}]
[null,1586,"LIVINGSTON","H",2070,5316,8678,61638966,{"$f":"IF(tbl_twdbdata[[#This Row],[Year]]=2016,0,tbl_twdbdata[[#This Row],[effsave]]-0.6*SUMIFS(tbl_twdbdata[effsave],tbl_twdbdata[Year],2020,tbl_twdbdata[utility],tbl_twdbdata[[#This Row],[utility]]))","v":47529483.600000001},2980,663,1194,0,171352954,13942587,741222980,0,45540372,277037671,{"$f":"tbl_twdbdata[[#This Row],[utility]]&tbl_twdbdata[[#This Row],[Year]]","v":"LIVINGSTON2070"}]
[null,1587,"LLANO","K",2016,3325,3325,0,{"$f":"IF(tbl_twdbdata[[#This Row],[Year]]=2016,0,tbl_twdbdata[[#This Row],[effsave]]-0.6*SUMIFS(tbl_twdbdata[effsave],tbl_twdbdata[Year],2020,tbl_twdbdata[utility],tbl_twdbdata[[#This Row],[utility]]))","v":0},1362,34,386,0,107941200,9484200,66023401,0,18047300,8284707,{"$f":"tbl_twdbdata[[#This Row],[utility]]&tbl_twdbdata[[#This Row],[Year]]","v":"LLANO2016"}]
[null,1587,"LLANO","K",2020,3325,3565,13207434,{"$f":"IF(tbl_twdbdata[[#This Row],[Year]]=2016,0,tbl_twdbdata[[#This Row],[effsave]]-0.6*SUMIFS(tbl_twdbdata[effsave],tbl_twdbdata[Year],2020,tbl_twdbdata[utility],tbl_twdbdata[[#This Row],[utility]]))","v":5282973.6000000006},1460,36,414,0,115732445,10168774,70789000,0,19349962,8882701,{"$f":"tbl_twdbdata[[#This Row],[utility]]&tbl_twdbdata[[#This Row],[Year]]","v":"LLANO2020"}]
[null,1587,"LLANO","K",2030,3325,3759,19647541,{"$f":"IF(tbl_twdbdata[[#This Row],[Year]]=2016,0,tbl_twdbdata[[#This Row],[effsave]]-0.6*SUMIFS(tbl_twdbdata[effsave],tbl_twdbdata[Year],2020,tbl_twdbdata[utility],tbl_twdbdata[[#This Row],[utility]]))","v":11723080.600000001},1539,38,437,0,122030368,10722138,74641192,0,20402947,9366079,{"$f":"tbl_twdbdata[[#This Row],[utility]]&tbl_twdbdata[[#This Row],[Year]]","v":"LLANO2030"}]
[null,1587,"LLANO","K",2040,3325,3754,23773144,{"$f":"IF(tbl_twdbdata[[#This Row],[Year]]=2016,0,tbl_twdbdata[[#This Row],[effsave]]-0.6*SUMIFS(tbl_twdbdata[effsave],tbl_twdbdata[Year],2020,tbl_twdbdata[utility],tbl_twdbdata[[#This Row],[utility]]))","v":15848683.600000001},1537,40,461,0,121868050,10707876,74541909,0,20375808,9353621,{"$f":"tbl_twdbdata[[#This Row],[utility]]&tbl_twdbdata[[#This Row],[Year]]","v":"LLANO2040"}]
[null,1587,"LLANO","K",2050,3325,3689,25556285,{"$f":"IF(tbl_twdbdata[[#This Row],[Year]]=2016,0,tbl_twdbdata[[#This Row],[effsave]]-0.6*SUMIFS(tbl_twdbdata[effsave],tbl_twdbdata[Year],2020,tbl_twdbdata[utility],tbl_twdbdata[[#This Row],[utility]]))","v":17631824.600000001},1510,42,486,0,119757921,10522471,73251226,0,20023004,9191664,{"$f":"tbl_twdbdata[[#This Row],[utility]]&tbl_twdbdata[[#This Row],[Year]]","v":"LLANO2050"}]
[null,1587,"LLANO","K",2060,3325,3814,26867723,{"$f":"IF(tbl_twdbdata[[#This Row],[Year]]=2016,0,tbl_twdbdata[[#This Row],[effsave]]-0.6*SUMIFS(tbl_twdbdata[effsave],tbl_twdbdata[Year],2020,tbl_twdbdata[utility],tbl_twdbdata[[#This Row],[utility]]))","v":18943262.600000001},1561,44,513,0,123815861,10879020,75733309,0,20701474,9503119,{"$f":"tbl_twdbdata[[#This Row],[utility]]&tbl_twdbdata[[#This Row],[Year]]","v":"LLANO2060"}]
[null,1587,"LLANO","K",2070,3325,3943,27848423,{"$f":"IF(tbl_twdbdata[[#This Row],[Year]]=2016,0,tbl_twdbdata[[#This Row],[effsave]]-0.6*SUMIFS(tbl_twdbdata[effsave],tbl_twdbdata[Year],2020,tbl_twdbdata[utility],tbl_twdbdata[[#This Row],[utility]]))","v":19923962.600000001},1614,46,541,0,128003655,11246978,78294819,0,21401655,9824541,{"$f":"tbl_twdbdata[[#This Row],[utility]]&tbl_twdbdata[[#This Row],[Year]]","v":"LLANO2070"}]
[null,1588,"LOCKHART","L",2016,13446,13446,0,{"$f":"IF(tbl_twdbdata[[#This Row],[Year]]=2016,0,tbl_twdbdata[[#This Row],[effsave]]-0.6*SUMIFS(tbl_twdbdata[effsave],tbl_twdbdata[Year],2020,tbl_twdbdata[utility],tbl_twdbdata[[#This Row],[utility]]))","v":0},4020,40,548,4,286231000,6800000,166566000,593000,6779508,75391098,{"$f":"tbl_twdbdata[[#This Row],[utility]]&tbl_twdbdata[[#This Row],[Year]]","v":"LOCKHART2016"}]
[null,1588,"LOCKHART","L",2020,13091,15726,56481502,{"$f":"IF(tbl_twdbdata[[#This Row],[Year]]=2016,0,tbl_twdbdata[[#This Row],[effsave]]-0.6*SUMIFS(tbl_twdbdata[effsave],tbl_twdbdata[Year],2020,tbl_twdbdata[utility],tbl_twdbdata[[#This Row],[utility]]))","v":22592600.800000004},4829,48,658,5,343844527,8168727,200092959,712361,8144110,90566069,{"$f":"tbl_twdbdata[[#This Row],[utility]]&tbl_twdbdata[[#This Row],[Year]]","v":"LOCKHART2020"}]
[null,1588,"LOCKHART","L",2030,13091,19254,95576856,{"$f":"IF(tbl_twdbdata[[#This Row],[Year]]=2016,0,tbl_twdbdata[[#This Row],[effsave]]-0.6*SUMIFS(tbl_twdbdata[effsave],tbl_twdbdata[Year],2020,tbl_twdbdata[utility],tbl_twdbdata[[#This Row],[utility]]))","v":61687954.800000004},5912,59,806,6,420983246,10001314,244982184,872173,9971175,110883829,{"$f":"tbl_twdbdata[[#This Row],[utility]]&tbl_twdbdata[[#This Row],[Year]]","v":"LOCKHART2030"}]
[null,1588,"LOCKHART","L",2040,13091,22734,130443145,{"$f":"IF(tbl_twdbdata[[#This Row],[Year]]=2016,0,tbl_twdbdata[[#This Row],[effsave]]-0.6*SUMIFS(tbl_twdbdata[effsave],tbl_twdbdata[Year],2020,tbl_twdbdata[utility],tbl_twdbdata[[#This Row],[utility]]))","v":96554243.800000012},6981,72,987,7,497072458,11808968,289260672,1029811,11773382,130925157,{"$f":"tbl_twdbdata[[#This Row],[utility]]&tbl_twdbdata[[#This Row],[Year]]","v":"LOCKHART2040"}]
[null,1588,"LOCKHART","L",2050,13091,26176,159555808,{"$f":"IF(tbl_twdbdata[[#This Row],[Year]]=2016,0,tbl_twdbdata[[#This Row],[effsave]]-0.6*SUMIFS(tbl_twdbdata[effsave],tbl_twdbdata[Year],2020,tbl_twdbdata[utility],tbl_twdbdata[[#This Row],[utility]]))","v":125666906.80000001},8038,88,1208,9,572330811,13596883,333055659,1185728,13555910,150747643,{"$f":"tbl_twdbdata[[#This Row],[utility]]&tbl_twdbdata[[#This Row],[Year]]","v":"LOCKHART2050"}]
[null,1588,"LOCKHART","L",2060,13091,29654,183353647,{"$f":"IF(tbl_twdbdata[[#This Row],[Year]]=2016,0,tbl_twdbdata[[#This Row],[effsave]]-0.6*SUMIFS(tbl_twdbdata[effsave],tbl_twdbdata[Year],2020,tbl_twdbdata[utility],tbl_twdbdata[[#This Row],[utility]]))","v":149464745.80000001},9106,108,1479,11,648376294,15403498,377308700,1343275,15357081,170777453,{"$f":"tbl_twdbdata[[#This Row],[utility]]&tbl_twdbdata[[#This Row],[Year]]","v":"LOCKHART2060"}]
[null,1588,"LOCKHART","L",2070,13091,33038,205241967,{"$f":"IF(tbl_twdbdata[[#This Row],[Year]]=2016,0,tbl_twdbdata[[#This Row],[effsave]]-0.6*SUMIFS(tbl_twdbdata[effsave],tbl_twdbdata[Year],2020,tbl_twdbdata[utility],tbl_twdbdata[[#This Row],[utility]]))","v":171353065.80000001},10145,132,1811,13,722366494,17161286,420365712,1496564,17109572,190265917,{"$f":"tbl_twdbdata[[#This Row],[utility]]&tbl_twdbdata[[#This Row],[Year]]","v":"LOCKHART2070"}]
[null,86,"LONGVIEW","D",2016,60778,80455,0,{"$f":"IF(tbl_twdbdata[[#This Row],[Year]]=2016,0,tbl_twdbdata[[#This Row],[effsave]]-0.6*SUMIFS(tbl_twdbdata[effsave],tbl_twdbdata[Year],2020,tbl_twdbdata[utility],tbl_twdbdata[[#This Row],[utility]]))","v":0},22219,803,3674,1635,1868454700,457527600,2677185600,564373800,601921429,459277732,{"$f":"tbl_twdbdata[[#This Row],[utility]]&tbl_twdbdata[[#This Row],[Year]]","v":"LONGVIEW2016"}]
[null,86,"LONGVIEW","D",2020,60778,88270,308009338,{"$f":"IF(tbl_twdbdata[[#This Row],[Year]]=2016,0,tbl_twdbdata[[#This Row],[effsave]]-0.6*SUMIFS(tbl_twdbdata[effsave],tbl_twdbdata[Year],2020,tbl_twdbdata[utility],tbl_twdbdata[[#This Row],[utility]]))","v":123203735.20000002},24327,879,4023,1790,2045751629,500942213,2931222685,617927007,659037516,502858415,{"$f":"tbl_twdbdata[[#This Row],[utility]]&tbl_twdbdata[[#This Row],[Year]]","v":"LONGVIEW2020"}]
[null,86,"LONGVIEW","D",2030,60778,96625,481409906,{"$f":"IF(tbl_twdbdata[[#This Row],[Year]]=2016,0,tbl_twdbdata[[#This Row],[effsave]]-0.6*SUMIFS(tbl_twdbdata[effsave],tbl_twdbdata[Year],2020,tbl_twdbdata[utility],tbl_twdbdata[[#This Row],[utility]]))","v":296604303.20000005},26630,962,4404,1959,2239387687,548357781,3208671031,676415510,721417242,550455357,{"$f":"tbl_twdbdata[[#This Row],[utility]]&tbl_twdbdata[[#This Row],[Year]]","v":"LONGVIEW2030"}]
[null,86,"LONGVIEW","D",2040,60778,106163,642079132,{"$f":"IF(tbl_twdbdata[[#This Row],[Year]]=2016,0,tbl_twdbdata[[#This Row],[effsave]]-0.6*SUMIFS(tbl_twdbdata[effsave],tbl_twdbdata[Year],2020,tbl_twdbdata[utility],tbl_twdbdata[[#This Row],[utility]]))","v":457273529.20000005},29259,1053,4821,2144,2460441035,602487008,3525403805,743185509,792629430,604791638,{"$f":"tbl_twdbdata[[#This Row],[utility]]&tbl_twdbdata[[#This Row],[Year]]","v":"LONGVIEW2040"}]
[null,86,"LONGVIEW","D",2050,60778,116979,769832950,{"$f":"IF(tbl_twdbdata[[#This Row],[Year]]=2016,0,tbl_twdbdata[[#This Row],[effsave]]-0.6*SUMIFS(tbl_twdbdata[effsave],tbl_twdbdata[Year],2020,tbl_twdbdata[utility],tbl_twdbdata[[#This Row],[utility]]))","v":585027347.20000005},32240,1153,5277,2347,2711113400,663869029,3884575715,818902044,873383364,666408457,{"$f":"tbl_twdbdata[[#This Row],[utility]]&tbl_twdbdata[[#This Row],[Year]]","v":"LONGVIEW2050"}]
[null,86,"LONGVIEW","D",2060,60778,129134,864435909,{"$f":"IF(tbl_twdbdata[[#This Row],[Year]]=2016,0,tbl_twdbdata[[#This Row],[effsave]]-0.6*SUMIFS(tbl_twdbdata[effsave],tbl_twdbdata[Year],2020,tbl_twdbdata[utility],tbl_twdbdata[[#This Row],[utility]]))","v":679630306.20000005},35590,1262,5776,2569,2992818521,732850026,4288212418,903992140,964134480,735653320,{"$f":"tbl_twdbdata[[#This Row],[utility]]&tbl_twdbdata[[#This Row],[Year]]","v":"LONGVIEW2060"}]
[null,86,"LONGVIEW","D",2070,60778,142898,961789279,{"$f":"IF(tbl_twdbdata[[#This Row],[Year]]=2016,0,tbl_twdbdata[[#This Row],[effsave]]-0.6*SUMIFS(tbl_twdbdata[effsave],tbl_twdbdata[Year],2020,tbl_twdbdata[utility],tbl_twdbdata[[#This Row],[utility]]))","v":776983676.20000005},39383,1381,6323,2812,3311813938,810962280,4745279926,1000345911,1066898640,814064368,{"$f":"tbl_twdbdata[[#This Row],[utility]]&tbl_twdbdata[[#This Row],[Year]]","v":"LONGVIEW2070"}]
[null,1597,"LORENA","G",2016,1723,2500,0,{"$f":"IF(tbl_twdbdata[[#This Row],[Year]]=2016,0,tbl_twdbdata[[#This Row],[effsave]]-0.6*SUMIFS(tbl_twdbdata[effsave],tbl_twdbdata[Year],2020,tbl_twdbdata[utility],tbl_twdbdata[[#This Row],[utility]]))","v":0},867,6,122,0,65866900,1348800,28633100,0,1664905,35678718,{"$f":"tbl_twdbdata[[#This Row],[utility]]&tbl_twdbdata[[#This Row],[Year]]","v":"LORENA2016"}]
[null,1597,"LORENA","G",2020,1723,1968,6572628,{"$f":"IF(tbl_twdbdata[[#This Row],[Year]]=2016,0,tbl_twdbdata[[#This Row],[effsave]]-0.6*SUMIFS(tbl_twdbdata[effsave],tbl_twdbdata[Year],2020,tbl_twdbdata[utility],tbl_twdbdata[[#This Row],[utility]]))","v":2629051.2000000002},695,5,98,0,52822355,1081678,22962486,0,1335181,28612762,{"$f":"tbl_twdbdata[[#This Row],[utility]]&tbl_twdbdata[[#This Row],[Year]]","v":"LORENA2020"}]
[null,1597,"LORENA","G",2030,1723,2218,10427262,{"$f":"IF(tbl_twdbdata[[#This Row],[Year]]=2016,0,tbl_twdbdata[[#This Row],[effsave]]-0.6*SUMIFS(tbl_twdbdata[effsave],tbl_twdbdata[Year],2020,tbl_twdbdata[utility],tbl_twdbdata[[#This Row],[utility]]))","v":6483685.2000000002},783,6,110,0,59532512,1219086,25879468,0,1504792,32247513,{"$f":"tbl_twdbdata[[#This Row],[utility]]&tbl_twdbdata[[#This Row],[Year]]","v":"LORENA2030"}]
[null,1597,"LORENA","G",2040,1723,2440,13626180,{"$f":"IF(tbl_twdbdata[[#This Row],[Year]]=2016,0,tbl_twdbdata[[#This Row],[effsave]]-0.6*SUMIFS(tbl_twdbdata[effsave],tbl_twdbdata[Year],2020,tbl_twdbdata[utility],tbl_twdbdata[[#This Row],[utility]]))","v":9682603.1999999993},861,7,124,0,65491131,1341105,28469748,0,1655407,35475172,{"$f":"tbl_twdbdata[[#This Row],[utility]]&tbl_twdbdata[[#This Row],[Year]]","v":"LORENA2040"}]
[null,1597,"LORENA","G",2050,1723,2662,16051328,{"$f":"IF(tbl_twdbdata[[#This Row],[Year]]=2016,0,tbl_twdbdata[[#This Row],[effsave]]-0.6*SUMIFS(tbl_twdbdata[effsave],tbl_twdbdata[Year],2020,tbl_twdbdata[utility],tbl_twdbdata[[#This Row],[utility]]))","v":12107751.199999999},939,8,140,0,71449750,1463124,31060028,0,1806022,38702831,{"$f":"tbl_twdbdata[[#This Row],[utility]]&tbl_twdbdata[[#This Row],[Year]]","v":"LORENA2050"}]
[null,1597,"LORENA","G",2060,1723,2884,17684688,{"$f":"IF(tbl_twdbdata[[#This Row],[Year]]=2016,0,tbl_twdbdata[[#This Row],[effsave]]-0.6*SUMIFS(tbl_twdbdata[effsave],tbl_twdbdata[Year],2020,tbl_twdbdata[utility],tbl_twdbdata[[#This Row],[utility]]))","v":13741111.199999999},1017,9,158,0,77408369,1585143,33650308,0,1956637,41930490,{"$f":"tbl_twdbdata[[#This Row],[utility]]&tbl_twdbdata[[#This Row],[Year]]","v":"LORENA2060"}]
[null,1597,"LORENA","G",2070,1723,3101,19105881,{"$f":"IF(tbl_twdbdata[[#This Row],[Year]]=2016,0,tbl_twdbdata[[#This Row],[effsave]]-0.6*SUMIFS(tbl_twdbdata[effsave],tbl_twdbdata[Year],2020,tbl_twdbdata[utility],tbl_twdbdata[[#This Row],[utility]]))","v":15162304.199999999},1094,10,178,0,83232785,1704413,36182249,0,2103860,45085454,{"$f":"tbl_twdbdata[[#This Row],[utility]]&tbl_twdbdata[[#This Row],[Year]]","v":"LORENA2070"}]
[null,1599,"LOS FRESNOS","M",2016,5542,5542,0,{"$f":"IF(tbl_twdbdata[[#This Row],[Year]]=2016,0,tbl_twdbdata[[#This Row],[effsave]]-0.6*SUMIFS(tbl_twdbdata[effsave],tbl_twdbdata[Year],2020,tbl_twdbdata[utility],tbl_twdbdata[[#This Row],[utility]]))","v":0},1677,44,188,0,115360000,23616600,58487500,0,6539000,3290163,{"$f":"tbl_twdbdata[[#This Row],[utility]]&tbl_twdbdata[[#This Row],[Year]]","v":"LOS FRESNOS2016"}]
[null,1599,"LOS FRESNOS","M",2020,5542,6573,0,{"$f":"IF(tbl_twdbdata[[#This Row],[Year]]=2016,0,tbl_twdbdata[[#This Row],[effsave]]-0.6*SUMIFS(tbl_twdbdata[effsave],tbl_twdbdata[Year],2020,tbl_twdbdata[utility],tbl_twdbdata[[#This Row],[utility]]))","v":0},1730,45,194,0,118980273,24357745,60322978,0,6744209,3393416,{"$f":"tbl_twdbdata[[#This Row],[utility]]&tbl_twdbdata[[#This Row],[Year]]","v":"LOS FRESNOS2020"}]
[null,1599,"LOS FRESNOS","M",2030,5542,7679,0,{"$f":"IF(tbl_twdbdata[[#This Row],[Year]]=2016,0,tbl_twdbdata[[#This Row],[effsave]]-0.6*SUMIFS(tbl_twdbdata[effsave],tbl_twdbdata[Year],2020,tbl_twdbdata[utility],tbl_twdbdata[[#This Row],[utility]]))","v":0},2021,53,226,0,139000383,28456279,70473171,0,7879017,3964406,{"$f":"tbl_twdbdata[[#This Row],[utility]]&tbl_twdbdata[[#This Row],[Year]]","v":"LOS FRESNOS2030"}]
[null,1599,"LOS FRESNOS","M",2040,5542,8801,0,{"$f":"IF(tbl_twdbdata[[#This Row],[Year]]=2016,0,tbl_twdbdata[[#This Row],[effsave]]-0.6*SUMIFS(tbl_twdbdata[effsave],tbl_twdbdata[Year],2020,tbl_twdbdata[utility],tbl_twdbdata[[#This Row],[utility]]))","v":0},2316,62,264,0,159310115,32614105,80770201,0,9030242,4543656,{"$f":"tbl_twdbdata[[#This Row],[utility]]&tbl_twdbdata[[#This Row],[Year]]","v":"LOS FRESNOS2040"}]
[null,1599,"LOS FRESNOS","M",2050,5542,10009,0,{"$f":"IF(tbl_twdbdata[[#This Row],[Year]]=2016,0,tbl_twdbdata[[#This Row],[effsave]]-0.6*SUMIFS(tbl_twdbdata[effsave],tbl_twdbdata[Year],2020,tbl_twdbdata[utility],tbl_twdbdata[[#This Row],[utility]]))","v":0},2634,72,309,0,181176564,37090623,91856487,0,10269707,5167305,{"$f":"tbl_twdbdata[[#This Row],[utility]]&tbl_twdbdata[[#This Row],[Year]]","v":"LOS FRESNOS2050"}]
[null,1599,"LOS FRESNOS","M",2060,5542,11253,0,{"$f":"IF(tbl_twdbdata[[#This Row],[Year]]=2016,0,tbl_twdbdata[[#This Row],[effsave]]-0.6*SUMIFS(tbl_twdbdata[effsave],tbl_twdbdata[Year],2020,tbl_twdbdata[utility],tbl_twdbdata[[#This Row],[utility]]))","v":0},2961,84,361,0,203694662,41700548,103273159,0,11546110,5809540,{"$f":"tbl_twdbdata[[#This Row],[utility]]&tbl_twdbdata[[#This Row],[Year]]","v":"LOS FRESNOS2060"}]
[null,1599,"LOS FRESNOS","M",2070,5542,12528,0,{"$f":"IF(tbl_twdbdata[[#This Row],[Year]]=2016,0,tbl_twdbdata[[#This Row],[effsave]]-0.6*SUMIFS(tbl_twdbdata[effsave],tbl_twdbdata[Year],2020,tbl_twdbdata[utility],tbl_twdbdata[[#This Row],[utility]]))","v":0},3296,98,422,0,226773903,46425350,114974330,0,12854320,6467779,{"$f":"tbl_twdbdata[[#This Row],[utility]]&tbl_twdbdata[[#This Row],[Year]]","v":"LOS FRESNOS2070"}]
[null,90,"LUBBOCK","O",2016,239743,249436,0,{"$f":"IF(tbl_twdbdata[[#This Row],[Year]]=2016,0,tbl_twdbdata[[#This Row],[effsave]]-0.6*SUMIFS(tbl_twdbdata[effsave],tbl_twdbdata[Year],2020,tbl_twdbdata[utility],tbl_twdbdata[[#This Row],[utility]]))","v":0},75117,28500,8064,0,6101196000,949800000,4091457000,0,199647671,967635654,{"$f":"tbl_twdbdata[[#This Row],[utility]]&tbl_twdbdata[[#This Row],[Year]]","v":"LUBBOCK2016"}]
[null,90,"LUBBOCK","O",2020,239743,261706,901734194,{"$f":"IF(tbl_twdbdata[[#This Row],[Year]]=2016,0,tbl_twdbdata[[#This Row],[effsave]]-0.6*SUMIFS(tbl_twdbdata[effsave],tbl_twdbdata[Year],2020,tbl_twdbdata[utility],tbl_twdbdata[[#This Row],[utility]]))","v":360693677.60000002},79601,30201,8545,0,6465420328,1006500402,4335705533,0,211566078,1025400795,{"$f":"tbl_twdbdata[[#This Row],[utility]]&tbl_twdbdata[[#This Row],[Year]]","v":"LUBBOCK2020"}]
[null,90,"LUBBOCK","O",2030,239743,294862,1444322535,{"$f":"IF(tbl_twdbdata[[#This Row],[Year]]=2016,0,tbl_twdbdata[[#This Row],[effsave]]-0.6*SUMIFS(tbl_twdbdata[effsave],tbl_twdbdata[Year],2020,tbl_twdbdata[utility],tbl_twdbdata[[#This Row],[utility]]))","v":903282018.60000002},89686,34027,9627,0,7284535963,1134015733,4885003802,0,238369762,1155310651,{"$f":"tbl_twdbdata[[#This Row],[utility]]&tbl_twdbdata[[#This Row],[Year]]","v":"LUBBOCK2030"}]
[null,90,"LUBBOCK","O",2040,239743,329597,1939282829,{"$f":"IF(tbl_twdbdata[[#This Row],[Year]]=2016,0,tbl_twdbdata[[#This Row],[effsave]]-0.6*SUMIFS(tbl_twdbdata[effsave],tbl_twdbdata[Year],2020,tbl_twdbdata[utility],tbl_twdbdata[[#This Row],[utility]]))","v":1398242312.5999999},100251,38338,10847,0,8142660634,1267603772,5460461498,0,266449927,1291407250,{"$f":"tbl_twdbdata[[#This Row],[utility]]&tbl_twdbdata[[#This Row],[Year]]","v":"LUBBOCK2040"}]
[null,90,"LUBBOCK","O",2050,239743,356227,2271499277,{"$f":"IF(tbl_twdbdata[[#This Row],[Year]]=2016,0,tbl_twdbdata[[#This Row],[effsave]]-0.6*SUMIFS(tbl_twdbdata[effsave],tbl_twdbdata[Year],2020,tbl_twdbdata[utility],tbl_twdbdata[[#This Row],[utility]]))","v":1730458760.5999999},108351,43195,12221,0,8800552097,1370020628,5901642970,0,287977919,1395747323,{"$f":"tbl_twdbdata[[#This Row],[utility]]&tbl_twdbdata[[#This Row],[Year]]","v":"LUBBOCK2050"}]
[null,90,"LUBBOCK","O",2060,239743,381205,2472514690,{"$f":"IF(tbl_twdbdata[[#This Row],[Year]]=2016,0,tbl_twdbdata[[#This Row],[effsave]]-0.6*SUMIFS(tbl_twdbdata[effsave],tbl_twdbdata[Year],2020,tbl_twdbdata[utility],tbl_twdbdata[[#This Row],[utility]]))","v":1931474173.5999999},115948,48667,13769,0,9417631067,1466084024,6315455618,0,308170416,1493614628,{"$f":"tbl_twdbdata[[#This Row],[utility]]&tbl_twdbdata[[#This Row],[Year]]","v":"LUBBOCK2060"}]
[null,90,"LUBBOCK","O",2070,239743,403901,2630041752,{"$f":"IF(tbl_twdbdata[[#This Row],[Year]]=2016,0,tbl_twdbdata[[#This Row],[effsave]]-0.6*SUMIFS(tbl_twdbdata[effsave],tbl_twdbdata[Year],2020,tbl_twdbdata[utility],tbl_twdbdata[[#This Row],[utility]]))","v":2089001235.5999999},122851,54833,15513,0,9978333457,1553371030,6691462179,0,326518118,1582540738,{"$f":"tbl_twdbdata[[#This Row],[utility]]&tbl_twdbdata[[#This Row],[Year]]","v":"LUBBOCK2070"}]
[null,91,"LUFKIN","I",2016,36259,42719,0,{"$f":"IF(tbl_twdbdata[[#This Row],[Year]]=2016,0,tbl_twdbdata[[#This Row],[effsave]]-0.6*SUMIFS(tbl_twdbdata[effsave],tbl_twdbdata[Year],2020,tbl_twdbdata[utility],tbl_twdbdata[[#This Row],[utility]]))","v":0},13124,2519,1796,553,776930650,116016920,1055286080,105681130,61390749,506914360,{"$f":"tbl_twdbdata[[#This Row],[utility]]&tbl_twdbdata[[#This Row],[Year]]","v":"LUFKIN2016"}]
[null,91,"LUFKIN","I",2020,36259,43626,152387799,{"$f":"IF(tbl_twdbdata[[#This Row],[Year]]=2016,0,tbl_twdbdata[[#This Row],[effsave]]-0.6*SUMIFS(tbl_twdbdata[effsave],tbl_twdbdata[Year],2020,tbl_twdbdata[utility],tbl_twdbdata[[#This Row],[utility]]))","v":60955119.600000009},13403,2572,1834,565,793426263,118480165,1077691672,107924927,62694183,517677049,{"$f":"tbl_twdbdata[[#This Row],[utility]]&tbl_twdbdata[[#This Row],[Year]]","v":"LUFKIN2020"}]
[null,91,"LUFKIN","I",2030,36259,46679,233418340,{"$f":"IF(tbl_twdbdata[[#This Row],[Year]]=2016,0,tbl_twdbdata[[#This Row],[effsave]]-0.6*SUMIFS(tbl_twdbdata[effsave],tbl_twdbdata[Year],2020,tbl_twdbdata[utility],tbl_twdbdata[[#This Row],[utility]]))","v":141985660.60000002},14341,2752,1962,605,848951188,126771550,1153109833,115477643,67081597,553904712,{"$f":"tbl_twdbdata[[#This Row],[utility]]&tbl_twdbdata[[#This Row],[Year]]","v":"LUFKIN2030"}]
[null,91,"LUFKIN","I",2040,36259,49241,300687704,{"$f":"IF(tbl_twdbdata[[#This Row],[Year]]=2016,0,tbl_twdbdata[[#This Row],[effsave]]-0.6*SUMIFS(tbl_twdbdata[effsave],tbl_twdbdata[Year],2020,tbl_twdbdata[utility],tbl_twdbdata[[#This Row],[utility]]))","v":209255024.60000002},15128,2945,2099,647,895546294,133729469,1216398837,121815691,70763404,584306046,{"$f":"tbl_twdbdata[[#This Row],[utility]]&tbl_twdbdata[[#This Row],[Year]]","v":"LUFKIN2040"}]
[null,91,"LUFKIN","I",2050,36259,51580,344152076,{"$f":"IF(tbl_twdbdata[[#This Row],[Year]]=2016,0,tbl_twdbdata[[#This Row],[effsave]]-0.6*SUMIFS(tbl_twdbdata[effsave],tbl_twdbdata[Year],2020,tbl_twdbdata[utility],tbl_twdbdata[[#This Row],[utility]]))","v":252719396.60000002},15847,3151,2246,692,938085698,140081761,1274179078,127602066,74124741,612061206,{"$f":"tbl_twdbdata[[#This Row],[utility]]&tbl_twdbdata[[#This Row],[Year]]","v":"LUFKIN2050"}]
[null,91,"LUFKIN","I",2060,36259,53673,363994184,{"$f":"IF(tbl_twdbdata[[#This Row],[Year]]=2016,0,tbl_twdbdata[[#This Row],[effsave]]-0.6*SUMIFS(tbl_twdbdata[effsave],tbl_twdbdata[Year],2020,tbl_twdbdata[utility],tbl_twdbdata[[#This Row],[utility]]))","v":272561504.60000002},16490,3372,2403,740,976151099,145765963,1325882389,132779870,77132556,636897269,{"$f":"tbl_twdbdata[[#This Row],[utility]]&tbl_twdbdata[[#This Row],[Year]]","v":"LUFKIN2060"}]
[null,91,"LUFKIN","I",2070,36259,55526,377574024,{"$f":"IF(tbl_twdbdata[[#This Row],[Year]]=2016,0,tbl_twdbdata[[#This Row],[effsave]]-0.6*SUMIFS(tbl_twdbdata[effsave],tbl_twdbdata[Year],2020,tbl_twdbdata[utility],tbl_twdbdata[[#This Row],[utility]]))","v":286141344.60000002},17059,3608,2571,792,1009851619,150798369,1371656989,137363946,79795471,658885431,{"$f":"tbl_twdbdata[[#This Row],[utility]]&tbl_twdbdata[[#This Row],[Year]]","v":"LUFKIN2070"}]
[null,1609,"LUMBERTON MUD","I",2016,23994,23994,0,{"$f":"IF(tbl_twdbdata[[#This Row],[Year]]=2016,0,tbl_twdbdata[[#This Row],[effsave]]-0.6*SUMIFS(tbl_twdbdata[effsave],tbl_twdbdata[Year],2020,tbl_twdbdata[utility],tbl_twdbdata[[#This Row],[utility]]))","v":0},7478,196,324,0,481892000,38553000,94409000,0,10143212,59833596,{"$f":"tbl_twdbdata[[#This Row],[utility]]&tbl_twdbdata[[#This Row],[Year]]","v":"LUMBERTON MUD2016"}]
[null,1609,"LUMBERTON MUD","I",2020,19688,28586,88479387,{"$f":"IF(tbl_twdbdata[[#This Row],[Year]]=2016,0,tbl_twdbdata[[#This Row],[effsave]]-0.6*SUMIFS(tbl_twdbdata[effsave],tbl_twdbdata[Year],2020,tbl_twdbdata[utility],tbl_twdbdata[[#This Row],[utility]]))","v":35391754.800000004},10858,285,470,0,699683295,55977045,137077188,0,14727441,86875415,{"$f":"tbl_twdbdata[[#This Row],[utility]]&tbl_twdbdata[[#This Row],[Year]]","v":"LUMBERTON MUD2020"}]
[null,1609,"LUMBERTON MUD","I",2030,19688,31985,136825433,{"$f":"IF(tbl_twdbdata[[#This Row],[Year]]=2016,0,tbl_twdbdata[[#This Row],[effsave]]-0.6*SUMIFS(tbl_twdbdata[effsave],tbl_twdbdata[Year],2020,tbl_twdbdata[utility],tbl_twdbdata[[#This Row],[utility]]))","v":83737800.800000012},12149,319,526,0,782878689,62632960,153376263,0,16478598,97205281,{"$f":"tbl_twdbdata[[#This Row],[utility]]&tbl_twdbdata[[#This Row],[Year]]","v":"LUMBERTON MUD2030"}]
[null,1609,"LUMBERTON MUD","I",2040,19688,34397,175517572,{"$f":"IF(tbl_twdbdata[[#This Row],[Year]]=2016,0,tbl_twdbdata[[#This Row],[effsave]]-0.6*SUMIFS(tbl_twdbdata[effsave],tbl_twdbdata[Year],2020,tbl_twdbdata[utility],tbl_twdbdata[[#This Row],[utility]]))","v":122429939.80000001},13065,357,588,0,841915844,67356133,164942421,0,17721255,104535565,{"$f":"tbl_twdbdata[[#This Row],[utility]]&tbl_twdbdata[[#This Row],[Year]]","v":"LUMBERTON MUD2040"}]
[null,1609,"LUMBERTON MUD","I",2050,19688,36192,200793216,{"$f":"IF(tbl_twdbdata[[#This Row],[Year]]=2016,0,tbl_twdbdata[[#This Row],[effsave]]-0.6*SUMIFS(tbl_twdbdata[effsave],tbl_twdbdata[Year],2020,tbl_twdbdata[utility],tbl_twdbdata[[#This Row],[utility]]))","v":147705583.80000001},13747,399,658,0,885851040,70871098,173549906,0,18646035,109990731,{"$f":"tbl_twdbdata[[#This Row],[utility]]&tbl_twdbdata[[#This Row],[Year]]","v":"LUMBERTON MUD2050"}]
[null,1609,"LUMBERTON MUD","I",2060,19688,37592,212676740,{"$f":"IF(tbl_twdbdata[[#This Row],[Year]]=2016,0,tbl_twdbdata[[#This Row],[effsave]]-0.6*SUMIFS(tbl_twdbdata[effsave],tbl_twdbdata[Year],2020,tbl_twdbdata[utility],tbl_twdbdata[[#This Row],[utility]]))","v":159589107.80000001},14279,446,736,0,920118045,73612575,180263264,0,19367312,114245456,{"$f":"tbl_twdbdata[[#This Row],[utility]]&tbl_twdbdata[[#This Row],[Year]]","v":"LUMBERTON MUD2060"}]
[null,1609,"LUMBERTON MUD","I",2070,19688,38619,218768911,{"$f":"IF(tbl_twdbdata[[#This Row],[Year]]=2016,0,tbl_twdbdata[[#This Row],[effsave]]-0.6*SUMIFS(tbl_twdbdata[effsave],tbl_twdbdata[Year],2020,tbl_twdbdata[utility],tbl_twdbdata[[#This Row],[utility]]))","v":165681278.80000001},14669,499,824,0,945255341,75623644,185187992,0,19896420,117366601,{"$f":"tbl_twdbdata[[#This Row],[utility]]&tbl_twdbdata[[#This Row],[Year]]","v":"LUMBERTON MUD2070"}]
[null,1613,"MABANK","C",2016,11184,11184,0,{"$f":"IF(tbl_twdbdata[[#This Row],[Year]]=2016,0,tbl_twdbdata[[#This Row],[effsave]]-0.6*SUMIFS(tbl_twdbdata[effsave],tbl_twdbdata[Year],2020,tbl_twdbdata[utility],tbl_twdbdata[[#This Row],[utility]]))","v":0},3054,374,300,0,179234080,12222140,35941750,0,3481511,47641399,{"$f":"tbl_twdbdata[[#This Row],[utility]]&tbl_twdbdata[[#This Row],[Year]]","v":"MABANK2016"}]
[null,1613,"MABANK","C",2020,8460,10006,33673192,{"$f":"IF(tbl_twdbdata[[#This Row],[Year]]=2016,0,tbl_twdbdata[[#This Row],[effsave]]-0.6*SUMIFS(tbl_twdbdata[effsave],tbl_twdbdata[Year],2020,tbl_twdbdata[utility],tbl_twdbdata[[#This Row],[utility]]))","v":13469276.800000001},3612,442,355,0,211987731,14455642,42509829,0,4117730,56347499,{"$f":"tbl_twdbdata[[#This Row],[utility]]&tbl_twdbdata[[#This Row],[Year]]","v":"MABANK2020"}]
[null,1613,"MABANK","C",2030,8460,11085,49604267,{"$f":"IF(tbl_twdbdata[[#This Row],[Year]]=2016,0,tbl_twdbdata[[#This Row],[effsave]]-0.6*SUMIFS(tbl_twdbdata[effsave],tbl_twdbdata[Year],2020,tbl_twdbdata[utility],tbl_twdbdata[[#This Row],[utility]]))","v":29400351.800000001},4002,490,393,0,234847491,16014470,47093889,0,4561767,62423748,{"$f":"tbl_twdbdata[[#This Row],[utility]]&tbl_twdbdata[[#This Row],[Year]]","v":"MABANK2030"}]
[null,1613,"MABANK","C",2040,8460,12075,61835471,{"$f":"IF(tbl_twdbdata[[#This Row],[Year]]=2016,0,tbl_twdbdata[[#This Row],[effsave]]-0.6*SUMIFS(tbl_twdbdata[effsave],tbl_twdbdata[Year],2020,tbl_twdbdata[utility],tbl_twdbdata[[#This Row],[utility]]))","v":41631555.799999997},4359,543,435,0,255821692,17444720,51299838,0,4969178,67998805,{"$f":"tbl_twdbdata[[#This Row],[utility]]&tbl_twdbdata[[#This Row],[Year]]","v":"MABANK2040"}]
[null,1613,"MABANK","C",2050,8460,16092,88573586,{"$f":"IF(tbl_twdbdata[[#This Row],[Year]]=2016,0,tbl_twdbdata[[#This Row],[effsave]]-0.6*SUMIFS(tbl_twdbdata[effsave],tbl_twdbdata[Year],2020,tbl_twdbdata[utility],tbl_twdbdata[[#This Row],[utility]]))","v":68369670.799999997},5809,602,482,0,340926101,23248069,68365797,0,6622278,90620022,{"$f":"tbl_twdbdata[[#This Row],[utility]]&tbl_twdbdata[[#This Row],[Year]]","v":"MABANK2050"}]
[null,1613,"MABANK","C",2060,8460,22597,127100216,{"$f":"IF(tbl_twdbdata[[#This Row],[Year]]=2016,0,tbl_twdbdata[[#This Row],[effsave]]-0.6*SUMIFS(tbl_twdbdata[effsave],tbl_twdbdata[Year],2020,tbl_twdbdata[utility],tbl_twdbdata[[#This Row],[utility]]))","v":106896300.8},8157,667,534,0,478741431,32645825,96001859,0,9299255,127252090,{"$f":"tbl_twdbdata[[#This Row],[utility]]&tbl_twdbdata[[#This Row],[Year]]","v":"MABANK2060"}]
[null,1613,"MABANK","C",2070,8460,31486,178706665,{"$f":"IF(tbl_twdbdata[[#This Row],[Year]]=2016,0,tbl_twdbdata[[#This Row],[effsave]]-0.6*SUMIFS(tbl_twdbdata[effsave],tbl_twdbdata[Year],2020,tbl_twdbdata[utility],tbl_twdbdata[[#This Row],[utility]]))","v":158502749.80000001},11366,739,592,0,667064331,45487739,133766187,0,12957310,177309347,{"$f":"tbl_twdbdata[[#This Row],[utility]]&tbl_twdbdata[[#This Row],[Year]]","v":"MABANK2070"}]
[null,1614,"MACBEE SUD","D",2016,7395,7395,0,{"$f":"IF(tbl_twdbdata[[#This Row],[Year]]=2016,0,tbl_twdbdata[[#This Row],[effsave]]-0.6*SUMIFS(tbl_twdbdata[effsave],tbl_twdbdata[Year],2020,tbl_twdbdata[utility],tbl_twdbdata[[#This Row],[utility]]))","v":0},2430,0,35,0,180659000,0,8334000,0,null,null,{"$f":"tbl_twdbdata[[#This Row],[utility]]&tbl_twdbdata[[#This Row],[Year]]","v":"MACBEE SUD2016"}]
[null,1614,"MACBEE SUD","D",2020,7171,7681,8410695,{"$f":"IF(tbl_twdbdata[[#This Row],[Year]]=2016,0,tbl_twdbdata[[#This Row],[effsave]]-0.6*SUMIFS(tbl_twdbdata[effsave],tbl_twdbdata[Year],2020,tbl_twdbdata[utility],tbl_twdbdata[[#This Row],[utility]]))","v":3364278},2603,0,37,0,193507430,0,8926712,0,null,null,{"$f":"tbl_twdbdata[[#This Row],[utility]]&tbl_twdbdata[[#This Row],[Year]]","v":"MACBEE SUD2020"}]
[null,1614,"MACBEE SUD","D",2030,7171,8518,9327210,{"$f":"IF(tbl_twdbdata[[#This Row],[Year]]=2016,0,tbl_twdbdata[[#This Row],[effsave]]-0.6*SUMIFS(tbl_twdbdata[effsave],tbl_twdbdata[Year],2020,tbl_twdbdata[utility],tbl_twdbdata[[#This Row],[utility]]))","v":4280793},2887,0,41,0,214593971,0,9899457,0,null,null,{"$f":"tbl_twdbdata[[#This Row],[utility]]&tbl_twdbdata[[#This Row],[Year]]","v":"MACBEE SUD2030"}]
[null,1614,"MACBEE SUD","D",2040,7171,9226,10102470,{"$f":"IF(tbl_twdbdata[[#This Row],[Year]]=2016,0,tbl_twdbdata[[#This Row],[effsave]]-0.6*SUMIFS(tbl_twdbdata[effsave],tbl_twdbdata[Year],2020,tbl_twdbdata[utility],tbl_twdbdata[[#This Row],[utility]]))","v":5056053},3127,0,45,0,232430615,0,10722281,0,null,null,{"$f":"tbl_twdbdata[[#This Row],[utility]]&tbl_twdbdata[[#This Row],[Year]]","v":"MACBEE SUD2040"}]
[null,1614,"MACBEE SUD","D",2050,7171,10008,10958760,{"$f":"IF(tbl_twdbdata[[#This Row],[Year]]=2016,0,tbl_twdbdata[[#This Row],[effsave]]-0.6*SUMIFS(tbl_twdbdata[effsave],tbl_twdbdata[Year],2020,tbl_twdbdata[utility],tbl_twdbdata[[#This Row],[utility]]))","v":5912343},3392,0,49,0,252131541,0,11631106,0,null,null,{"$f":"tbl_twdbdata[[#This Row],[utility]]&tbl_twdbdata[[#This Row],[Year]]","v":"MACBEE SUD2050"}]
[null,1614,"MACBEE SUD","D",2060,7171,10776,11799720,{"$f":"IF(tbl_twdbdata[[#This Row],[Year]]=2016,0,tbl_twdbdata[[#This Row],[effsave]]-0.6*SUMIFS(tbl_twdbdata[effsave],tbl_twdbdata[Year],2020,tbl_twdbdata[utility],tbl_twdbdata[[#This Row],[utility]]))","v":6753303},3652,0,54,0,271479765,0,12523661,0,null,null,{"$f":"tbl_twdbdata[[#This Row],[utility]]&tbl_twdbdata[[#This Row],[Year]]","v":"MACBEE SUD2060"}]
[null,1614,"MACBEE SUD","D",2070,7171,11592,12693240,{"$f":"IF(tbl_twdbdata[[#This Row],[Year]]=2016,0,tbl_twdbdata[[#This Row],[effsave]]-0.6*SUMIFS(tbl_twdbdata[effsave],tbl_twdbdata[Year],2020,tbl_twdbdata[utility],tbl_twdbdata[[#This Row],[utility]]))","v":7646823},3929,0,59,0,292037253,0,13472001,0,null,null,{"$f":"tbl_twdbdata[[#This Row],[utility]]&tbl_twdbdata[[#This Row],[Year]]","v":"MACBEE SUD2070"}]
[null,94,"MANSFIELD","C",2016,60872,60872,0,{"$f":"IF(tbl_twdbdata[[#This Row],[Year]]=2016,0,tbl_twdbdata[[#This Row],[effsave]]-0.6*SUMIFS(tbl_twdbdata[effsave],tbl_twdbdata[Year],2020,tbl_twdbdata[utility],tbl_twdbdata[[#This Row],[utility]]))","v":0},18857,0,1994,0,1980847510,0,1341482990,0,null,null,{"$f":"tbl_twdbdata[[#This Row],[utility]]&tbl_twdbdata[[#This Row],[Year]]","v":"MANSFIELD2016"}]
[null,94,"MANSFIELD","C",2020,58053,70187,189575087,{"$f":"IF(tbl_twdbdata[[#This Row],[Year]]=2016,0,tbl_twdbdata[[#This Row],[effsave]]-0.6*SUMIFS(tbl_twdbdata[effsave],tbl_twdbdata[Year],2020,tbl_twdbdata[utility],tbl_twdbdata[[#This Row],[utility]]))","v":75830034.799999997},22798,0,2411,0,2394876134,0,1621874263,0,null,null,{"$f":"tbl_twdbdata[[#This Row],[utility]]&tbl_twdbdata[[#This Row],[Year]]","v":"MANSFIELD2020"}]
[null,94,"MANSFIELD","C",2030,58053,89760,316484784,{"$f":"IF(tbl_twdbdata[[#This Row],[Year]]=2016,0,tbl_twdbdata[[#This Row],[effsave]]-0.6*SUMIFS(tbl_twdbdata[effsave],tbl_twdbdata[Year],2020,tbl_twdbdata[utility],tbl_twdbdata[[#This Row],[utility]]))","v":202739731.80000001},29156,0,3084,0,3062733580,0,2074165213,0,null,null,{"$f":"tbl_twdbdata[[#This Row],[utility]]&tbl_twdbdata[[#This Row],[Year]]","v":"MANSFIELD2030"}]
[null,94,"MANSFIELD","C",2040,58053,107689,428440687,{"$f":"IF(tbl_twdbdata[[#This Row],[Year]]=2016,0,tbl_twdbdata[[#This Row],[effsave]]-0.6*SUMIFS(tbl_twdbdata[effsave],tbl_twdbdata[Year],2020,tbl_twdbdata[utility],tbl_twdbdata[[#This Row],[utility]]))","v":314695634.80000001},34980,0,3944,0,3674495505,0,2488466774,0,null,null,{"$f":"tbl_twdbdata[[#This Row],[utility]]&tbl_twdbdata[[#This Row],[Year]]","v":"MANSFIELD2040"}]
[null,94,"MANSFIELD","C",2050,58053,133648,565865632,{"$f":"IF(tbl_twdbdata[[#This Row],[Year]]=2016,0,tbl_twdbdata[[#This Row],[effsave]]-0.6*SUMIFS(tbl_twdbdata[effsave],tbl_twdbdata[Year],2020,tbl_twdbdata[utility],tbl_twdbdata[[#This Row],[utility]]))","v":452120579.80000001},43412,0,5043,0,4560251978,0,3088324782,0,null,null,{"$f":"tbl_twdbdata[[#This Row],[utility]]&tbl_twdbdata[[#This Row],[Year]]","v":"MANSFIELD2050"}]
[null,94,"MANSFIELD","C",2060,58053,153824,663642883,{"$f":"IF(tbl_twdbdata[[#This Row],[Year]]=2016,0,tbl_twdbdata[[#This Row],[effsave]]-0.6*SUMIFS(tbl_twdbdata[effsave],tbl_twdbdata[Year],2020,tbl_twdbdata[utility],tbl_twdbdata[[#This Row],[utility]]))","v":549897830.79999995},49966,0,6449,0,5248684606,0,3554549797,0,null,null,{"$f":"tbl_twdbdata[[#This Row],[utility]]&tbl_twdbdata[[#This Row],[Year]]","v":"MANSFIELD2060"}]
[null,94,"MANSFIELD","C",2070,58053,174000,755769000,{"$f":"IF(tbl_twdbdata[[#This Row],[Year]]=2016,0,tbl_twdbdata[[#This Row],[effsave]]-0.6*SUMIFS(tbl_twdbdata[effsave],tbl_twdbdata[Year],2020,tbl_twdbdata[utility],tbl_twdbdata[[#This Row],[utility]]))","v":642023947.79999995},56520,0,8248,0,5937117234,0,4020774812,0,null,null,{"$f":"tbl_twdbdata[[#This Row],[utility]]&tbl_twdbdata[[#This Row],[Year]]","v":"MANSFIELD2070"}]
[null,1797,"MANVILLE WSC","K",2016,25806,26265,0,{"$f":"IF(tbl_twdbdata[[#This Row],[Year]]=2016,0,tbl_twdbdata[[#This Row],[effsave]]-0.6*SUMIFS(tbl_twdbdata[effsave],tbl_twdbdata[Year],2020,tbl_twdbdata[utility],tbl_twdbdata[[#This Row],[utility]]))","v":0},8352,250,410,0,804005894,14671000,109364139,0,23305991,55733843,{"$f":"tbl_twdbdata[[#This Row],[utility]]&tbl_twdbdata[[#This Row],[Year]]","v":"MANVILLE WSC2016"}]
[null,1797,"MANVILLE WSC","K",2020,25806,27768,90711114,{"$f":"IF(tbl_twdbdata[[#This Row],[Year]]=2016,0,tbl_twdbdata[[#This Row],[effsave]]-0.6*SUMIFS(tbl_twdbdata[effsave],tbl_twdbdata[Year],2020,tbl_twdbdata[utility],tbl_twdbdata[[#This Row],[utility]]))","v":36284445.600000001},8830,264,433,0,850014684,15510540,115622441,0,24639663,58923181,{"$f":"tbl_twdbdata[[#This Row],[utility]]&tbl_twdbdata[[#This Row],[Year]]","v":"MANVILLE WSC2020"}]
[null,1797,"MANVILLE WSC","K",2030,25806,33820,143811095,{"$f":"IF(tbl_twdbdata[[#This Row],[Year]]=2016,0,tbl_twdbdata[[#This Row],[effsave]]-0.6*SUMIFS(tbl_twdbdata[effsave],tbl_twdbdata[Year],2020,tbl_twdbdata[utility],tbl_twdbdata[[#This Row],[utility]]))","v":89384426.599999994},10754,322,527,0,1035274295,18891042,140822204,0,30009846,71765413,{"$f":"tbl_twdbdata[[#This Row],[utility]]&tbl_twdbdata[[#This Row],[Year]]","v":"MANVILLE WSC2030"}]
[null,1797,"MANVILLE WSC","K",2040,25806,40150,190804845,{"$f":"IF(tbl_twdbdata[[#This Row],[Year]]=2016,0,tbl_twdbdata[[#This Row],[effsave]]-0.6*SUMIFS(tbl_twdbdata[effsave],tbl_twdbdata[Year],2020,tbl_twdbdata[utility],tbl_twdbdata[[#This Row],[utility]]))","v":136378176.59999999},12767,392,642,0,1229043848,22426828,167179524,0,35626710,85197556,{"$f":"tbl_twdbdata[[#This Row],[utility]]&tbl_twdbdata[[#This Row],[Year]]","v":"MANVILLE WSC2040"}]
[null,1797,"MANVILLE WSC","K",2050,25806,47470,237200470,{"$f":"IF(tbl_twdbdata[[#This Row],[Year]]=2016,0,tbl_twdbdata[[#This Row],[effsave]]-0.6*SUMIFS(tbl_twdbdata[effsave],tbl_twdbdata[Year],2020,tbl_twdbdata[utility],tbl_twdbdata[[#This Row],[utility]]))","v":182773801.59999999},15095,477,782,0,1453118592,26515605,197659079,0,42122040,100730460,{"$f":"tbl_twdbdata[[#This Row],[utility]]&tbl_twdbdata[[#This Row],[Year]]","v":"MANVILLE WSC2050"}]
[null,1797,"MANVILLE WSC","K",2060,25806,55039,279240367,{"$f":"IF(tbl_twdbdata[[#This Row],[Year]]=2016,0,tbl_twdbdata[[#This Row],[effsave]]-0.6*SUMIFS(tbl_twdbdata[effsave],tbl_twdbdata[Year],2020,tbl_twdbdata[utility],tbl_twdbdata[[#This Row],[utility]]))","v":224813698.59999999},17502,581,952,0,1684815551,30743467,229175438,0,48838318,116791738,{"$f":"tbl_twdbdata[[#This Row],[utility]]&tbl_twdbdata[[#This Row],[Year]]","v":"MANVILLE WSC2060"}]
[null,1797,"MANVILLE WSC","K",2070,25806,63207,322526359,{"$f":"IF(tbl_twdbdata[[#This Row],[Year]]=2016,0,tbl_twdbdata[[#This Row],[effsave]]-0.6*SUMIFS(tbl_twdbdata[effsave],tbl_twdbdata[Year],2020,tbl_twdbdata[utility],tbl_twdbdata[[#This Row],[utility]]))","v":268099690.59999999},20099,708,1159,0,1934848681,35305916,263185957,0,56086113,134124083,{"$f":"tbl_twdbdata[[#This Row],[utility]]&tbl_twdbdata[[#This Row],[Year]]","v":"MANVILLE WSC2070"}]
[null,1798,"MARBLE FALLS","K",2016,6667,6667,0,{"$f":"IF(tbl_twdbdata[[#This Row],[Year]]=2016,0,tbl_twdbdata[[#This Row],[effsave]]-0.6*SUMIFS(tbl_twdbdata[effsave],tbl_twdbdata[Year],2020,tbl_twdbdata[utility],tbl_twdbdata[[#This Row],[utility]]))","v":0},2168,261,843,0,157054000,24772000,221414000,0,25571066,47453934,{"$f":"tbl_twdbdata[[#This Row],[utility]]&tbl_twdbdata[[#This Row],[Year]]","v":"MARBLE FALLS2016"}]
[null,1798,"MARBLE FALLS","K",2020,6667,8784,34594466,{"$f":"IF(tbl_twdbdata[[#This Row],[Year]]=2016,0,tbl_twdbdata[[#This Row],[effsave]]-0.6*SUMIFS(tbl_twdbdata[effsave],tbl_twdbdata[Year],2020,tbl_twdbdata[utility],tbl_twdbdata[[#This Row],[utility]]))","v":13837786.400000002},2696,325,1048,0,195267139,30799327,275286706,0,31792816,59000050,{"$f":"tbl_twdbdata[[#This Row],[utility]]&tbl_twdbdata[[#This Row],[Year]]","v":"MARBLE FALLS2020"}]
[null,1798,"MARBLE FALLS","K",2030,6667,12906,69765319,{"$f":"IF(tbl_twdbdata[[#This Row],[Year]]=2016,0,tbl_twdbdata[[#This Row],[effsave]]-0.6*SUMIFS(tbl_twdbdata[effsave],tbl_twdbdata[Year],2020,tbl_twdbdata[utility],tbl_twdbdata[[#This Row],[utility]]))","v":49008639.400000006},3961,478,1540,0,286898645,45252290,404468378,0,46711986,86686549,{"$f":"tbl_twdbdata[[#This Row],[utility]]&tbl_twdbdata[[#This Row],[Year]]","v":"MARBLE FALLS2030"}]
[null,1798,"MARBLE FALLS","K",2040,6667,18684,113479142,{"$f":"IF(tbl_twdbdata[[#This Row],[Year]]=2016,0,tbl_twdbdata[[#This Row],[effsave]]-0.6*SUMIFS(tbl_twdbdata[effsave],tbl_twdbdata[Year],2020,tbl_twdbdata[utility],tbl_twdbdata[[#This Row],[utility]]))","v":92722462.400000006},5734,702,2262,0,415342808,65511683,585548363,0,67624883,125496008,{"$f":"tbl_twdbdata[[#This Row],[utility]]&tbl_twdbdata[[#This Row],[Year]]","v":"MARBLE FALLS2040"}]
[null,1798,"MARBLE FALLS","K",2050,6667,21713,136551971,{"$f":"IF(tbl_twdbdata[[#This Row],[Year]]=2016,0,tbl_twdbdata[[#This Row],[effsave]]-0.6*SUMIFS(tbl_twdbdata[effsave],tbl_twdbdata[Year],2020,tbl_twdbdata[utility],tbl_twdbdata[[#This Row],[utility]]))","v":115795291.40000001},6664,1031,3323,0,482677071,76132261,680475894,0,78588048,145841084,{"$f":"tbl_twdbdata[[#This Row],[utility]]&tbl_twdbdata[[#This Row],[Year]]","v":"MARBLE FALLS2050"}]
[null,1798,"MARBLE FALLS","K",2060,6667,23732,150375445,{"$f":"IF(tbl_twdbdata[[#This Row],[Year]]=2016,0,tbl_twdbdata[[#This Row],[effsave]]-0.6*SUMIFS(tbl_twdbdata[effsave],tbl_twdbdata[Year],2020,tbl_twdbdata[utility],tbl_twdbdata[[#This Row],[utility]]))","v":129618765.40000001},7284,1515,4882,0,527559170,83211478,743750468,0,85895618,159402229,{"$f":"tbl_twdbdata[[#This Row],[utility]]&tbl_twdbdata[[#This Row],[Year]]","v":"MARBLE FALLS2060"}]
[null,1798,"MARBLE FALLS","K",2070,6667,24741,157130091,{"$f":"IF(tbl_twdbdata[[#This Row],[Year]]=2016,0,tbl_twdbdata[[#This Row],[effsave]]-0.6*SUMIFS(tbl_twdbdata[effsave],tbl_twdbdata[Year],2020,tbl_twdbdata[utility],tbl_twdbdata[[#This Row],[utility]]))","v":136373411.40000001},7594,2226,7172,0,549989104,86749333,775372085,0,89547593,166179443,{"$f":"tbl_twdbdata[[#This Row],[utility]]&tbl_twdbdata[[#This Row],[Year]]","v":"MARBLE FALLS2070"}]
[null,1799,"MARFA","E",2016,2000,2500,0,{"$f":"IF(tbl_twdbdata[[#This Row],[Year]]=2016,0,tbl_twdbdata[[#This Row],[effsave]]-0.6*SUMIFS(tbl_twdbdata[effsave],tbl_twdbdata[Year],2020,tbl_twdbdata[utility],tbl_twdbdata[[#This Row],[utility]]))","v":0},1285,0,193,0,71090647,0,25645446,0,60000000,9319116,{"$f":"tbl_twdbdata[[#This Row],[utility]]&tbl_twdbdata[[#This Row],[Year]]","v":"MARFA2016"}]
[null,1799,"MARFA","E",2020,2000,2583,10003055,{"$f":"IF(tbl_twdbdata[[#This Row],[Year]]=2016,0,tbl_twdbdata[[#This Row],[effsave]]-0.6*SUMIFS(tbl_twdbdata[effsave],tbl_twdbdata[Year],2020,tbl_twdbdata[utility],tbl_twdbdata[[#This Row],[utility]]))","v":4001222},1576,0,236,0,87192375,0,31454030,0,73589744,11429856,{"$f":"tbl_twdbdata[[#This Row],[utility]]&tbl_twdbdata[[#This Row],[Year]]","v":"MARFA2020"}]
[null,1799,"MARFA","E",2030,2000,2807,15634709,{"$f":"IF(tbl_twdbdata[[#This Row],[Year]]=2016,0,tbl_twdbdata[[#This Row],[effsave]]-0.6*SUMIFS(tbl_twdbdata[effsave],tbl_twdbdata[Year],2020,tbl_twdbdata[utility],tbl_twdbdata[[#This Row],[utility]]))","v":9632876},1713,0,256,0,94753773,0,34181751,0,79971510,12421063,{"$f":"tbl_twdbdata[[#This Row],[utility]]&tbl_twdbdata[[#This Row],[Year]]","v":"MARFA2030"}]
[null,1799,"MARFA","E",2040,2000,3022,20163388,{"$f":"IF(tbl_twdbdata[[#This Row],[Year]]=2016,0,tbl_twdbdata[[#This Row],[effsave]]-0.6*SUMIFS(tbl_twdbdata[effsave],tbl_twdbdata[Year],2020,tbl_twdbdata[utility],tbl_twdbdata[[#This Row],[utility]]))","v":14161555},1844,0,278,0,102011365,0,36799876,0,86096866,13372445,{"$f":"tbl_twdbdata[[#This Row],[utility]]&tbl_twdbdata[[#This Row],[Year]]","v":"MARFA2040"}]
[null,1799,"MARFA","E",2050,2000,3261,22174637,{"$f":"IF(tbl_twdbdata[[#This Row],[Year]]=2016,0,tbl_twdbdata[[#This Row],[effsave]]-0.6*SUMIFS(tbl_twdbdata[effsave],tbl_twdbdata[Year],2020,tbl_twdbdata[utility],tbl_twdbdata[[#This Row],[utility]]))","v":16172804},1990,0,302,0,110079107,0,39710257,0,92905983,14430028,{"$f":"tbl_twdbdata[[#This Row],[utility]]&tbl_twdbdata[[#This Row],[Year]]","v":"MARFA2050"}]
[null,1799,"MARFA","E",2060,2000,3473,23983843,{"$f":"IF(tbl_twdbdata[[#This Row],[Year]]=2016,0,tbl_twdbdata[[#This Row],[effsave]]-0.6*SUMIFS(tbl_twdbdata[effsave],tbl_twdbdata[Year],2020,tbl_twdbdata[utility],tbl_twdbdata[[#This Row],[utility]]))","v":17982010},2119,0,328,0,117235430,0,42291850,0,98945869,15368135,{"$f":"tbl_twdbdata[[#This Row],[utility]]&tbl_twdbdata[[#This Row],[Year]]","v":"MARFA2060"}]
[null,1799,"MARFA","E",2070,2000,3674,25465780,{"$f":"IF(tbl_twdbdata[[#This Row],[Year]]=2016,0,tbl_twdbdata[[#This Row],[effsave]]-0.6*SUMIFS(tbl_twdbdata[effsave],tbl_twdbdata[Year],2020,tbl_twdbdata[utility],tbl_twdbdata[[#This Row],[utility]]))","v":19463947},2242,0,356,0,124020435,0,44739493,0,104672365,16257566,{"$f":"tbl_twdbdata[[#This Row],[utility]]&tbl_twdbdata[[#This Row],[Year]]","v":"MARFA2070"}]
[null,1801,"MARLIN","G",2016,5967,5967,0,{"$f":"IF(tbl_twdbdata[[#This Row],[Year]]=2016,0,tbl_twdbdata[[#This Row],[effsave]]-0.6*SUMIFS(tbl_twdbdata[effsave],tbl_twdbdata[Year],2020,tbl_twdbdata[utility],tbl_twdbdata[[#This Row],[utility]]))","v":0},2000,0,250,0,86430900,0,80664300,0,6115335,279719465,{"$f":"tbl_twdbdata[[#This Row],[utility]]&tbl_twdbdata[[#This Row],[Year]]","v":"MARLIN2016"}]
[null,1801,"MARLIN","G",2020,5967,6772,25286309,{"$f":"IF(tbl_twdbdata[[#This Row],[Year]]=2016,0,tbl_twdbdata[[#This Row],[effsave]]-0.6*SUMIFS(tbl_twdbdata[effsave],tbl_twdbdata[Year],2020,tbl_twdbdata[utility],tbl_twdbdata[[#This Row],[utility]]))","v":10114523.600000001},2270,0,284,0,98091177,0,91546613,0,6940347,317456044,{"$f":"tbl_twdbdata[[#This Row],[utility]]&tbl_twdbdata[[#This Row],[Year]]","v":"MARLIN2020"}]
[null,1801,"MARLIN","G",2030,5967,7115,38019714,{"$f":"IF(tbl_twdbdata[[#This Row],[Year]]=2016,0,tbl_twdbdata[[#This Row],[effsave]]-0.6*SUMIFS(tbl_twdbdata[effsave],tbl_twdbdata[Year],2020,tbl_twdbdata[utility],tbl_twdbdata[[#This Row],[utility]]))","v":22847928.600000001},2385,0,298,0,103059469,0,96183424,0,7291874,333535108,{"$f":"tbl_twdbdata[[#This Row],[utility]]&tbl_twdbdata[[#This Row],[Year]]","v":"MARLIN2030"}]
[null,1801,"MARLIN","G",2040,5967,7189,47126771,{"$f":"IF(tbl_twdbdata[[#This Row],[Year]]=2016,0,tbl_twdbdata[[#This Row],[effsave]]-0.6*SUMIFS(tbl_twdbdata[effsave],tbl_twdbdata[Year],2020,tbl_twdbdata[utility],tbl_twdbdata[[#This Row],[utility]]))","v":31954985.600000001},2410,0,313,0,104131345,0,97183785,0,7367714,337004061,{"$f":"tbl_twdbdata[[#This Row],[utility]]&tbl_twdbdata[[#This Row],[Year]]","v":"MARLIN2040"}]
[null,1801,"MARLIN","G",2050,5967,7020,47940633,{"$f":"IF(tbl_twdbdata[[#This Row],[Year]]=2016,0,tbl_twdbdata[[#This Row],[effsave]]-0.6*SUMIFS(tbl_twdbdata[effsave],tbl_twdbdata[Year],2020,tbl_twdbdata[utility],tbl_twdbdata[[#This Row],[utility]]))","v":32768847.600000001},2353,0,329,0,101683411,0,94899175,0,7194513,329081723,{"$f":"tbl_twdbdata[[#This Row],[utility]]&tbl_twdbdata[[#This Row],[Year]]","v":"MARLIN2050"}]
[null,1801,"MARLIN","G",2060,5967,7233,50240056,{"$f":"IF(tbl_twdbdata[[#This Row],[Year]]=2016,0,tbl_twdbdata[[#This Row],[effsave]]-0.6*SUMIFS(tbl_twdbdata[effsave],tbl_twdbdata[Year],2020,tbl_twdbdata[utility],tbl_twdbdata[[#This Row],[utility]]))","v":35068270.600000001},2424,0,345,0,104768677,0,97778594,0,7412808,339066681,{"$f":"tbl_twdbdata[[#This Row],[utility]]&tbl_twdbdata[[#This Row],[Year]]","v":"MARLIN2060"}]
[null,1801,"MARLIN","G",2070,5967,7453,51904183,{"$f":"IF(tbl_twdbdata[[#This Row],[Year]]=2016,0,tbl_twdbdata[[#This Row],[effsave]]-0.6*SUMIFS(tbl_twdbdata[effsave],tbl_twdbdata[Year],2020,tbl_twdbdata[utility],tbl_twdbdata[[#This Row],[utility]]))","v":36732397.600000001},2498,0,362,0,107955337,0,100752643,0,7638277,349379783,{"$f":"tbl_twdbdata[[#This Row],[utility]]&tbl_twdbdata[[#This Row],[Year]]","v":"MARLIN2070"}]
[null,95,"MARSHALL","D",2016,23409,23409,0,{"$f":"IF(tbl_twdbdata[[#This Row],[Year]]=2016,0,tbl_twdbdata[[#This Row],[effsave]]-0.6*SUMIFS(tbl_twdbdata[effsave],tbl_twdbdata[Year],2020,tbl_twdbdata[utility],tbl_twdbdata[[#This Row],[utility]]))","v":0},8060,0,1312,0,622850400,0,906982700,0,232125414,222544386,{"$f":"tbl_twdbdata[[#This Row],[utility]]&tbl_twdbdata[[#This Row],[Year]]","v":"MARSHALL2016"}]
[null,95,"MARSHALL","D",2020,23105,24761,89835384,{"$f":"IF(tbl_twdbdata[[#This Row],[Year]]=2016,0,tbl_twdbdata[[#This Row],[effsave]]-0.6*SUMIFS(tbl_twdbdata[effsave],tbl_twdbdata[Year],2020,tbl_twdbdata[utility],tbl_twdbdata[[#This Row],[utility]]))","v":35934153.600000001},8638,0,1405,0,667491831,0,971988687,0,248762492,238494765,{"$f":"tbl_twdbdata[[#This Row],[utility]]&tbl_twdbdata[[#This Row],[Year]]","v":"MARSHALL2020"}]
[null,95,"MARSHALL","D",2030,23105,26594,139583928,{"$f":"IF(tbl_twdbdata[[#This Row],[Year]]=2016,0,tbl_twdbdata[[#This Row],[effsave]]-0.6*SUMIFS(tbl_twdbdata[effsave],tbl_twdbdata[Year],2020,tbl_twdbdata[utility],tbl_twdbdata[[#This Row],[utility]]))","v":85682697.599999994},9277,0,1509,0,716904719,0,1043942778,0,267177808,256149985,{"$f":"tbl_twdbdata[[#This Row],[utility]]&tbl_twdbdata[[#This Row],[Year]]","v":"MARSHALL2030"}]
[null,95,"MARSHALL","D",2040,23105,28489,183845215,{"$f":"IF(tbl_twdbdata[[#This Row],[Year]]=2016,0,tbl_twdbdata[[#This Row],[effsave]]-0.6*SUMIFS(tbl_twdbdata[effsave],tbl_twdbdata[Year],2020,tbl_twdbdata[utility],tbl_twdbdata[[#This Row],[utility]]))","v":129943984.59999999},9938,0,1620,0,767988965,0,1118330669,0,286216010,274402381,{"$f":"tbl_twdbdata[[#This Row],[utility]]&tbl_twdbdata[[#This Row],[Year]]","v":"MARSHALL2040"}]
[null,95,"MARSHALL","D",2050,23105,31148,218512564,{"$f":"IF(tbl_twdbdata[[#This Row],[Year]]=2016,0,tbl_twdbdata[[#This Row],[effsave]]-0.6*SUMIFS(tbl_twdbdata[effsave],tbl_twdbdata[Year],2020,tbl_twdbdata[utility],tbl_twdbdata[[#This Row],[utility]]))","v":164611333.59999999},10866,0,1739,0,839668654,0,1222709245,0,312929772,300013527,{"$f":"tbl_twdbdata[[#This Row],[utility]]&tbl_twdbdata[[#This Row],[Year]]","v":"MARSHALL2050"}]
[null,95,"MARSHALL","D",2060,23105,34046,242943745,{"$f":"IF(tbl_twdbdata[[#This Row],[Year]]=2016,0,tbl_twdbdata[[#This Row],[effsave]]-0.6*SUMIFS(tbl_twdbdata[effsave],tbl_twdbdata[Year],2020,tbl_twdbdata[utility],tbl_twdbdata[[#This Row],[utility]]))","v":189042514.59999999},11877,0,1868,0,917791158,0,1336469723,0,342044658,327926690,{"$f":"tbl_twdbdata[[#This Row],[utility]]&tbl_twdbdata[[#This Row],[Year]]","v":"MARSHALL2060"}]
[null,95,"MARSHALL","D",2070,23105,37462,268686830,{"$f":"IF(tbl_twdbdata[[#This Row],[Year]]=2016,0,tbl_twdbdata[[#This Row],[effsave]]-0.6*SUMIFS(tbl_twdbdata[effsave],tbl_twdbdata[Year],2020,tbl_twdbdata[utility],tbl_twdbdata[[#This Row],[utility]]))","v":214785599.59999999},13069,0,2006,0,1009877588,0,1470564200,0,376363654,360829162,{"$f":"tbl_twdbdata[[#This Row],[utility]]&tbl_twdbdata[[#This Row],[Year]]","v":"MARSHALL2070"}]
[null,1804,"MARTINDALE WSC","L",2016,2913,2913,0,{"$f":"IF(tbl_twdbdata[[#This Row],[Year]]=2016,0,tbl_twdbdata[[#This Row],[effsave]]-0.6*SUMIFS(tbl_twdbdata[effsave],tbl_twdbdata[Year],2020,tbl_twdbdata[utility],tbl_twdbdata[[#This Row],[utility]]))","v":0},831,96,36,7,41944510,4726360,1869070,141330,null,null,{"$f":"tbl_twdbdata[[#This Row],[utility]]&tbl_twdbdata[[#This Row],[Year]]","v":"MARTINDALE WSC2016"}]
[null,1804,"MARTINDALE WSC","L",2020,2566,3556,12499162,{"$f":"IF(tbl_twdbdata[[#This Row],[Year]]=2016,0,tbl_twdbdata[[#This Row],[effsave]]-0.6*SUMIFS(tbl_twdbdata[effsave],tbl_twdbdata[Year],2020,tbl_twdbdata[utility],tbl_twdbdata[[#This Row],[utility]]))","v":4999664.8},1152,133,50,10,58127310,6549858,2590184,195857,null,null,{"$f":"tbl_twdbdata[[#This Row],[utility]]&tbl_twdbdata[[#This Row],[Year]]","v":"MARTINDALE WSC2020"}]
[null,1804,"MARTINDALE WSC","L",2030,2566,4667,22672986,{"$f":"IF(tbl_twdbdata[[#This Row],[Year]]=2016,0,tbl_twdbdata[[#This Row],[effsave]]-0.6*SUMIFS(tbl_twdbdata[effsave],tbl_twdbdata[Year],2020,tbl_twdbdata[utility],tbl_twdbdata[[#This Row],[utility]]))","v":15173488.800000001},1512,175,66,13,76288008,8596228,3399435,257049,null,null,{"$f":"tbl_twdbdata[[#This Row],[utility]]&tbl_twdbdata[[#This Row],[Year]]","v":"MARTINDALE WSC2030"}]
[null,1804,"MARTINDALE WSC","L",2040,2566,5644,31766125,{"$f":"IF(tbl_twdbdata[[#This Row],[Year]]=2016,0,tbl_twdbdata[[#This Row],[effsave]]-0.6*SUMIFS(tbl_twdbdata[effsave],tbl_twdbdata[Year],2020,tbl_twdbdata[utility],tbl_twdbdata[[#This Row],[utility]]))","v":24266627.800000001},1829,230,86,17,92258307,10395781,4111080,310860,null,null,{"$f":"tbl_twdbdata[[#This Row],[utility]]&tbl_twdbdata[[#This Row],[Year]]","v":"MARTINDALE WSC2040"}]
[null,1804,"MARTINDALE WSC","L",2050,2566,6828,40872408,{"$f":"IF(tbl_twdbdata[[#This Row],[Year]]=2016,0,tbl_twdbdata[[#This Row],[effsave]]-0.6*SUMIFS(tbl_twdbdata[effsave],tbl_twdbdata[Year],2020,tbl_twdbdata[utility],tbl_twdbdata[[#This Row],[utility]]))","v":33372910.800000001},2213,302,113,22,111612282,12576611,4973503,376072,null,null,{"$f":"tbl_twdbdata[[#This Row],[utility]]&tbl_twdbdata[[#This Row],[Year]]","v":"MARTINDALE WSC2050"}]
[null,1804,"MARTINDALE WSC","L",2060,2566,8263,50216317,{"$f":"IF(tbl_twdbdata[[#This Row],[Year]]=2016,0,tbl_twdbdata[[#This Row],[effsave]]-0.6*SUMIFS(tbl_twdbdata[effsave],tbl_twdbdata[Year],2020,tbl_twdbdata[utility],tbl_twdbdata[[#This Row],[utility]]))","v":42716819.799999997},2678,396,149,29,135069169,15219762,6018754,455109,null,null,{"$f":"tbl_twdbdata[[#This Row],[utility]]&tbl_twdbdata[[#This Row],[Year]]","v":"MARTINDALE WSC2060"}]
[null,1804,"MARTINDALE WSC","L",2070,2566,9910,60551091,{"$f":"IF(tbl_twdbdata[[#This Row],[Year]]=2016,0,tbl_twdbdata[[#This Row],[effsave]]-0.6*SUMIFS(tbl_twdbdata[effsave],tbl_twdbdata[Year],2020,tbl_twdbdata[utility],tbl_twdbdata[[#This Row],[utility]]))","v":53051593.799999997},3212,520,195,38,161991464,18253400,7218426,545822,null,null,{"$f":"tbl_twdbdata[[#This Row],[utility]]&tbl_twdbdata[[#This Row],[Year]]","v":"MARTINDALE WSC2070"}]
[null,96,"MCALLEN","M",2016,168909,168909,0,{"$f":"IF(tbl_twdbdata[[#This Row],[Year]]=2016,0,tbl_twdbdata[[#This Row],[effsave]]-0.6*SUMIFS(tbl_twdbdata[effsave],tbl_twdbdata[Year],2020,tbl_twdbdata[utility],tbl_twdbdata[[#This Row],[utility]]))","v":0},38851,1276,6102,0,4548596600,704592600,2873240200,0,35741000,1114606540,{"$f":"tbl_twdbdata[[#This Row],[utility]]&tbl_twdbdata[[#This Row],[Year]]","v":"MCALLEN2016"}]
[null,96,"MCALLEN","M",2020,168909,169099,614125293,{"$f":"IF(tbl_twdbdata[[#This Row],[Year]]=2016,0,tbl_twdbdata[[#This Row],[effsave]]-0.6*SUMIFS(tbl_twdbdata[effsave],tbl_twdbdata[Year],2020,tbl_twdbdata[utility],tbl_twdbdata[[#This Row],[utility]]))","v":245650117.19999999},38895,1277,6109,0,4553713162,705385172,2876472210,0,35781204,1115860323,{"$f":"tbl_twdbdata[[#This Row],[utility]]&tbl_twdbdata[[#This Row],[Year]]","v":"MCALLEN2020"}]
[null,96,"MCALLEN","M",2030,168909,209972,1053796975,{"$f":"IF(tbl_twdbdata[[#This Row],[Year]]=2016,0,tbl_twdbdata[[#This Row],[effsave]]-0.6*SUMIFS(tbl_twdbdata[effsave],tbl_twdbdata[Year],2020,tbl_twdbdata[utility],tbl_twdbdata[[#This Row],[utility]]))","v":685321799.20000005},48296,1586,7586,0,5654393344,875884159,3571745681,0,44429896,1385575454,{"$f":"tbl_twdbdata[[#This Row],[utility]]&tbl_twdbdata[[#This Row],[Year]]","v":"MCALLEN2030"}]
[null,96,"MCALLEN","M",2040,168909,251008,1451227853,{"$f":"IF(tbl_twdbdata[[#This Row],[Year]]=2016,0,tbl_twdbdata[[#This Row],[effsave]]-0.6*SUMIFS(tbl_twdbdata[effsave],tbl_twdbdata[Year],2020,tbl_twdbdata[utility],tbl_twdbdata[[#This Row],[utility]]))","v":1082752677.2},57735,1969,9419,0,6759462997,1047063089,4269791877,0,53113079,1656366199,{"$f":"tbl_twdbdata[[#This Row],[utility]]&tbl_twdbdata[[#This Row],[Year]]","v":"MCALLEN2040"}]
[null,96,"MCALLEN","M",2050,168909,292126,1791316632,{"$f":"IF(tbl_twdbdata[[#This Row],[Year]]=2016,0,tbl_twdbdata[[#This Row],[effsave]]-0.6*SUMIFS(tbl_twdbdata[effsave],tbl_twdbdata[Year],2020,tbl_twdbdata[utility],tbl_twdbdata[[#This Row],[utility]]))","v":1422841456.2},67193,2445,11696,0,7866740851,1218584077,4969232941,0,61813613,1927698050,{"$f":"tbl_twdbdata[[#This Row],[utility]]&tbl_twdbdata[[#This Row],[Year]]","v":"MCALLEN2050"}]
[null,96,"MCALLEN","M",2060,168909,333245,2071434258,{"$f":"IF(tbl_twdbdata[[#This Row],[Year]]=2016,0,tbl_twdbdata[[#This Row],[effsave]]-0.6*SUMIFS(tbl_twdbdata[effsave],tbl_twdbdata[Year],2020,tbl_twdbdata[utility],tbl_twdbdata[[#This Row],[utility]]))","v":1702959082.2},76651,3036,14523,0,8974045634,1390109236,5668691015,0,70514358,2199036500,{"$f":"tbl_twdbdata[[#This Row],[utility]]&tbl_twdbdata[[#This Row],[Year]]","v":"MCALLEN2060"}]
[null,96,"MCALLEN","M",2070,168909,373221,2330821128,{"$f":"IF(tbl_twdbdata[[#This Row],[Year]]=2016,0,tbl_twdbdata[[#This Row],[effsave]]-0.6*SUMIFS(tbl_twdbdata[effsave],tbl_twdbdata[Year],2020,tbl_twdbdata[utility],tbl_twdbdata[[#This Row],[utility]]))","v":1962345952.2},85846,3770,18033,0,10050570258,1556866447,6348705995,0,78973246,2462832455,{"$f":"tbl_twdbdata[[#This Row],[utility]]&tbl_twdbdata[[#This Row],[Year]]","v":"MCALLEN2070"}]
[null,1815,"MCCOY WSC","L",2016,7329,7743,0,{"$f":"IF(tbl_twdbdata[[#This Row],[Year]]=2016,0,tbl_twdbdata[[#This Row],[effsave]]-0.6*SUMIFS(tbl_twdbdata[effsave],tbl_twdbdata[Year],2020,tbl_twdbdata[utility],tbl_twdbdata[[#This Row],[utility]]))","v":0},2443,0,138,1,244476068,0,35131443,699333,17352801,55683991,{"$f":"tbl_twdbdata[[#This Row],[utility]]&tbl_twdbdata[[#This Row],[Year]]","v":"MCCOY WSC2016"}]
[null,1815,"MCCOY WSC","L",2020,7329,7779,26888502,{"$f":"IF(tbl_twdbdata[[#This Row],[Year]]=2016,0,tbl_twdbdata[[#This Row],[effsave]]-0.6*SUMIFS(tbl_twdbdata[effsave],tbl_twdbdata[Year],2020,tbl_twdbdata[utility],tbl_twdbdata[[#This Row],[utility]]))","v":10755400.800000001},2455,0,139,1,245644450,0,35299341,702675,17435732,55950112,{"$f":"tbl_twdbdata[[#This Row],[utility]]&tbl_twdbdata[[#This Row],[Year]]","v":"MCCOY WSC2020"}]
[null,1815,"MCCOY WSC","L",2030,7329,8992,42765502,{"$f":"IF(tbl_twdbdata[[#This Row],[Year]]=2016,0,tbl_twdbdata[[#This Row],[effsave]]-0.6*SUMIFS(tbl_twdbdata[effsave],tbl_twdbdata[Year],2020,tbl_twdbdata[utility],tbl_twdbdata[[#This Row],[utility]]))","v":26632400.800000001},2838,0,161,1,283948437,0,40803660,812245,20154532,64674561,{"$f":"tbl_twdbdata[[#This Row],[utility]]&tbl_twdbdata[[#This Row],[Year]]","v":"MCCOY WSC2030"}]
[null,1815,"MCCOY WSC","L",2040,7329,10102,56119641,{"$f":"IF(tbl_twdbdata[[#This Row],[Year]]=2016,0,tbl_twdbdata[[#This Row],[effsave]]-0.6*SUMIFS(tbl_twdbdata[effsave],tbl_twdbdata[Year],2020,tbl_twdbdata[utility],tbl_twdbdata[[#This Row],[utility]]))","v":39986539.799999997},3188,0,186,1,318999901,0,45840589,912511,22642469,72658187,{"$f":"tbl_twdbdata[[#This Row],[utility]]&tbl_twdbdata[[#This Row],[Year]]","v":"MCCOY WSC2040"}]
[null,1815,"MCCOY WSC","L",2050,7329,11178,66462711,{"$f":"IF(tbl_twdbdata[[#This Row],[Year]]=2016,0,tbl_twdbdata[[#This Row],[effsave]]-0.6*SUMIFS(tbl_twdbdata[effsave],tbl_twdbdata[Year],2020,tbl_twdbdata[utility],tbl_twdbdata[[#This Row],[utility]]))","v":50329609.799999997},3528,0,215,1,352977717,0,50723233,1009706,25054199,80397269,{"$f":"tbl_twdbdata[[#This Row],[utility]]&tbl_twdbdata[[#This Row],[Year]]","v":"MCCOY WSC2050"}]
[null,1815,"MCCOY WSC","L",2060,7329,12192,73648824,{"$f":"IF(tbl_twdbdata[[#This Row],[Year]]=2016,0,tbl_twdbdata[[#This Row],[effsave]]-0.6*SUMIFS(tbl_twdbdata[effsave],tbl_twdbdata[Year],2020,tbl_twdbdata[utility],tbl_twdbdata[[#This Row],[utility]]))","v":57515722.799999997},3848,0,249,1,384997703,0,55324535,1101300,27326963,87690419,{"$f":"tbl_twdbdata[[#This Row],[utility]]&tbl_twdbdata[[#This Row],[Year]]","v":"MCCOY WSC2060"}]
[null,1815,"MCCOY WSC","L",2070,7329,13132,79662652,{"$f":"IF(tbl_twdbdata[[#This Row],[Year]]=2016,0,tbl_twdbdata[[#This Row],[effsave]]-0.6*SUMIFS(tbl_twdbdata[effsave],tbl_twdbdata[Year],2020,tbl_twdbdata[utility],tbl_twdbdata[[#This Row],[utility]]))","v":63529550.799999997},4145,0,288,1,414680925,0,59590042,1186210,29433865,94451327,{"$f":"tbl_twdbdata[[#This Row],[utility]]&tbl_twdbdata[[#This Row],[Year]]","v":"MCCOY WSC2070"}]
[null,1817,"MCKINNEY","C",2016,168358,168358,0,{"$f":"IF(tbl_twdbdata[[#This Row],[Year]]=2016,0,tbl_twdbdata[[#This Row],[effsave]]-0.6*SUMIFS(tbl_twdbdata[effsave],tbl_twdbdata[Year],2020,tbl_twdbdata[utility],tbl_twdbdata[[#This Row],[utility]]))","v":0},48860,1428,3819,0,5135000000,609000000,2125000000,0,507141411,2349155528,{"$f":"tbl_twdbdata[[#This Row],[utility]]&tbl_twdbdata[[#This Row],[Year]]","v":"MCKINNEY2016"}]
[null,1817,"MCKINNEY","C",2020,168358,186565,442625463,{"$f":"IF(tbl_twdbdata[[#This Row],[Year]]=2016,0,tbl_twdbdata[[#This Row],[effsave]]-0.6*SUMIFS(tbl_twdbdata[effsave],tbl_twdbdata[Year],2020,tbl_twdbdata[utility],tbl_twdbdata[[#This Row],[utility]]))","v":177050185.20000002},54142,1582,4232,0,5690085677,674831972,2354709263,0,561962625,2603095662,{"$f":"tbl_twdbdata[[#This Row],[utility]]&tbl_twdbdata[[#This Row],[Year]]","v":"MCKINNEY2020"}]
[null,1817,"MCKINNEY","C",2030,168358,205000,639005500,{"$f":"IF(tbl_twdbdata[[#This Row],[Year]]=2016,0,tbl_twdbdata[[#This Row],[effsave]]-0.6*SUMIFS(tbl_twdbdata[effsave],tbl_twdbdata[Year],2020,tbl_twdbdata[utility],tbl_twdbdata[[#This Row],[utility]]))","v":373430222.20000005},59492,1738,4650,0,6252338669,741513972,2587384552,0,617491695,2860314693,{"$f":"tbl_twdbdata[[#This Row],[utility]]&tbl_twdbdata[[#This Row],[Year]]","v":"MCKINNEY2030"}]
[null,1817,"MCKINNEY","C",2040,168358,227522,813846194,{"$f":"IF(tbl_twdbdata[[#This Row],[Year]]=2016,0,tbl_twdbdata[[#This Row],[effsave]]-0.6*SUMIFS(tbl_twdbdata[effsave],tbl_twdbdata[Year],2020,tbl_twdbdata[utility],tbl_twdbdata[[#This Row],[utility]]))","v":548270916.20000005},66028,1910,5109,0,6939241945,822979229,2871643454,0,685331441,3174558632,{"$f":"tbl_twdbdata[[#This Row],[utility]]&tbl_twdbdata[[#This Row],[Year]]","v":"MCKINNEY2040"}]
[null,1817,"MCKINNEY","C",2050,168358,275828,1038988910,{"$f":"IF(tbl_twdbdata[[#This Row],[Year]]=2016,0,tbl_twdbdata[[#This Row],[effsave]]-0.6*SUMIFS(tbl_twdbdata[effsave],tbl_twdbdata[Year],2020,tbl_twdbdata[utility],tbl_twdbdata[[#This Row],[utility]]))","v":773413632.20000005},80047,2099,5614,0,8412536929,997708858,3481332225,0,830836582,3848560396,{"$f":"tbl_twdbdata[[#This Row],[utility]]&tbl_twdbdata[[#This Row],[Year]]","v":"MCKINNEY2050"}]
[null,1817,"MCKINNEY","C",2060,168358,330324,1258732634,{"$f":"IF(tbl_twdbdata[[#This Row],[Year]]=2016,0,tbl_twdbdata[[#This Row],[effsave]]-0.6*SUMIFS(tbl_twdbdata[effsave],tbl_twdbdata[Year],2020,tbl_twdbdata[utility],tbl_twdbdata[[#This Row],[utility]]))","v":993157356.20000005},95862,2306,6169,0,10074622042,1194828592,4169147388,0,994986960,4608929711,{"$f":"tbl_twdbdata[[#This Row],[utility]]&tbl_twdbdata[[#This Row],[Year]]","v":"MCKINNEY2060"}]
[null,1817,"MCKINNEY","C",2070,168358,357967,1365375630,{"$f":"IF(tbl_twdbdata[[#This Row],[Year]]=2016,0,tbl_twdbdata[[#This Row],[effsave]]-0.6*SUMIFS(tbl_twdbdata[effsave],tbl_twdbdata[Year],2020,tbl_twdbdata[utility],tbl_twdbdata[[#This Row],[utility]]))","v":1099800352.2},103884,2534,6779,0,10917711788,1294817230,4518040418,0,1078251950,4994625706,{"$f":"tbl_twdbdata[[#This Row],[utility]]&tbl_twdbdata[[#This Row],[Year]]","v":"MCKINNEY2070"}]
[null,6416,"MEADOWCREEK MUD","H",2016,2704,2704,0,{"$f":"IF(tbl_twdbdata[[#This Row],[Year]]=2016,0,tbl_twdbdata[[#This Row],[effsave]]-0.6*SUMIFS(tbl_twdbdata[effsave],tbl_twdbdata[Year],2020,tbl_twdbdata[utility],tbl_twdbdata[[#This Row],[utility]]))","v":0},843,41,17,0,63381000,2268000,982000,0,null,null,{"$f":"tbl_twdbdata[[#This Row],[utility]]&tbl_twdbdata[[#This Row],[Year]]","v":"MEADOWCREEK MUD2016"}]
[null,6416,"MEADOWCREEK MUD","H",2020,2416,2882,7668570,{"$f":"IF(tbl_twdbdata[[#This Row],[Year]]=2016,0,tbl_twdbdata[[#This Row],[effsave]]-0.6*SUMIFS(tbl_twdbdata[effsave],tbl_twdbdata[Year],2020,tbl_twdbdata[utility],tbl_twdbdata[[#This Row],[utility]]))","v":3067428},1006,49,20,0,75605978,2705454,1171409,0,null,null,{"$f":"tbl_twdbdata[[#This Row],[utility]]&tbl_twdbdata[[#This Row],[Year]]","v":"MEADOWCREEK MUD2020"}]
[null,6416,"MEADOWCREEK MUD","H",2030,2416,3529,11901905,{"$f":"IF(tbl_twdbdata[[#This Row],[Year]]=2016,0,tbl_twdbdata[[#This Row],[effsave]]-0.6*SUMIFS(tbl_twdbdata[effsave],tbl_twdbdata[Year],2020,tbl_twdbdata[utility],tbl_twdbdata[[#This Row],[utility]]))","v":7300763},1232,60,24,0,92579284,3312820,1434387,0,null,null,{"$f":"tbl_twdbdata[[#This Row],[utility]]&tbl_twdbdata[[#This Row],[Year]]","v":"MEADOWCREEK MUD2030"}]
[null,6416,"MEADOWCREEK MUD","H",2040,2416,3529,13125586,{"$f":"IF(tbl_twdbdata[[#This Row],[Year]]=2016,0,tbl_twdbdata[[#This Row],[effsave]]-0.6*SUMIFS(tbl_twdbdata[effsave],tbl_twdbdata[Year],2020,tbl_twdbdata[utility],tbl_twdbdata[[#This Row],[utility]]))","v":8524444},1232,73,29,0,92579284,3312820,1434387,0,null,null,{"$f":"tbl_twdbdata[[#This Row],[utility]]&tbl_twdbdata[[#This Row],[Year]]","v":"MEADOWCREEK MUD2040"}]
[null,6416,"MEADOWCREEK MUD","H",2050,2416,3529,13769629,{"$f":"IF(tbl_twdbdata[[#This Row],[Year]]=2016,0,tbl_twdbdata[[#This Row],[effsave]]-0.6*SUMIFS(tbl_twdbdata[effsave],tbl_twdbdata[Year],2020,tbl_twdbdata[utility],tbl_twdbdata[[#This Row],[utility]]))","v":9168487},1232,89,36,0,92579284,3312820,1434387,0,null,null,{"$f":"tbl_twdbdata[[#This Row],[utility]]&tbl_twdbdata[[#This Row],[Year]]","v":"MEADOWCREEK MUD2050"}]
[null,6416,"MEADOWCREEK MUD","H",2060,2416,3529,14040127,{"$f":"IF(tbl_twdbdata[[#This Row],[Year]]=2016,0,tbl_twdbdata[[#This Row],[effsave]]-0.6*SUMIFS(tbl_twdbdata[effsave],tbl_twdbdata[Year],2020,tbl_twdbdata[utility],tbl_twdbdata[[#This Row],[utility]]))","v":9438985},1232,109,44,0,92579284,3312820,1434387,0,null,null,{"$f":"tbl_twdbdata[[#This Row],[utility]]&tbl_twdbdata[[#This Row],[Year]]","v":"MEADOWCREEK MUD2060"}]
[null,6416,"MEADOWCREEK MUD","H",2070,2416,3529,14117412,{"$f":"IF(tbl_twdbdata[[#This Row],[Year]]=2016,0,tbl_twdbdata[[#This Row],[effsave]]-0.6*SUMIFS(tbl_twdbdata[effsave],tbl_twdbdata[Year],2020,tbl_twdbdata[utility],tbl_twdbdata[[#This Row],[utility]]))","v":9516270},1232,133,54,0,92579284,3312820,1434387,0,null,null,{"$f":"tbl_twdbdata[[#This Row],[utility]]&tbl_twdbdata[[#This Row],[Year]]","v":"MEADOWCREEK MUD2070"}]
[null,6420,"MEMORIAL VILLAGES WATER AUTHORITY","H",2016,9882,9882,0,{"$f":"IF(tbl_twdbdata[[#This Row],[Year]]=2016,0,tbl_twdbdata[[#This Row],[effsave]]-0.6*SUMIFS(tbl_twdbdata[effsave],tbl_twdbdata[Year],2020,tbl_twdbdata[utility],tbl_twdbdata[[#This Row],[utility]]))","v":0},3158,492,155,0,1040386000,25663000,156721000,0,null,null,{"$f":"tbl_twdbdata[[#This Row],[utility]]&tbl_twdbdata[[#This Row],[Year]]","v":"MEMORIAL VILLAGES WATER AUTHORITY2016"}]
[null,6420,"MEMORIAL VILLAGES WATER AUTHORITY","H",2020,9882,10219,32823428,{"$f":"IF(tbl_twdbdata[[#This Row],[Year]]=2016,0,tbl_twdbdata[[#This Row],[effsave]]-0.6*SUMIFS(tbl_twdbdata[effsave],tbl_twdbdata[Year],2020,tbl_twdbdata[utility],tbl_twdbdata[[#This Row],[utility]]))","v":13129371.199999999},3266,509,161,0,1075865668,26538170,162065564,0,null,null,{"$f":"tbl_twdbdata[[#This Row],[utility]]&tbl_twdbdata[[#This Row],[Year]]","v":"MEMORIAL VILLAGES WATER AUTHORITY2020"}]
[null,6420,"MEMORIAL VILLAGES WATER AUTHORITY","H",2030,9882,11083,46642251,{"$f":"IF(tbl_twdbdata[[#This Row],[Year]]=2016,0,tbl_twdbdata[[#This Row],[effsave]]-0.6*SUMIFS(tbl_twdbdata[effsave],tbl_twdbdata[Year],2020,tbl_twdbdata[utility],tbl_twdbdata[[#This Row],[utility]]))","v":26948194.199999999},3542,552,174,0,1166828378,28781930,175767947,0,null,null,{"$f":"tbl_twdbdata[[#This Row],[utility]]&tbl_twdbdata[[#This Row],[Year]]","v":"MEMORIAL VILLAGES WATER AUTHORITY2030"}]
[null,6420,"MEMORIAL VILLAGES WATER AUTHORITY","H",2040,9882,12024,58414396,{"$f":"IF(tbl_twdbdata[[#This Row],[Year]]=2016,0,tbl_twdbdata[[#This Row],[effsave]]-0.6*SUMIFS(tbl_twdbdata[effsave],tbl_twdbdata[Year],2020,tbl_twdbdata[utility],tbl_twdbdata[[#This Row],[utility]]))","v":38720339.200000003},3843,599,188,0,1265897719,31225654,190691491,0,null,null,{"$f":"tbl_twdbdata[[#This Row],[utility]]&tbl_twdbdata[[#This Row],[Year]]","v":"MEMORIAL VILLAGES WATER AUTHORITY2040"}]
[null,6420,"MEMORIAL VILLAGES WATER AUTHORITY","H",2050,9882,13047,67813087,{"$f":"IF(tbl_twdbdata[[#This Row],[Year]]=2016,0,tbl_twdbdata[[#This Row],[effsave]]-0.6*SUMIFS(tbl_twdbdata[effsave],tbl_twdbdata[Year],2020,tbl_twdbdata[utility],tbl_twdbdata[[#This Row],[utility]]))","v":48119030.200000003},4170,650,204,0,1373600095,33882328,206915492,0,null,null,{"$f":"tbl_twdbdata[[#This Row],[utility]]&tbl_twdbdata[[#This Row],[Year]]","v":"MEMORIAL VILLAGES WATER AUTHORITY2050"}]
[null,6420,"MEMORIAL VILLAGES WATER AUTHORITY","H",2060,9882,14156,74920630,{"$f":"IF(tbl_twdbdata[[#This Row],[Year]]=2016,0,tbl_twdbdata[[#This Row],[effsave]]-0.6*SUMIFS(tbl_twdbdata[effsave],tbl_twdbdata[Year],2020,tbl_twdbdata[utility],tbl_twdbdata[[#This Row],[utility]]))","v":55226573.200000003},4524,705,222,0,1490356629,36762339,224503388,0,null,null,{"$f":"tbl_twdbdata[[#This Row],[utility]]&tbl_twdbdata[[#This Row],[Year]]","v":"MEMORIAL VILLAGES WATER AUTHORITY2060"}]
[null,6420,"MEMORIAL VILLAGES WATER AUTHORITY","H",2070,9882,15363,81589052,{"$f":"IF(tbl_twdbdata[[#This Row],[Year]]=2016,0,tbl_twdbdata[[#This Row],[effsave]]-0.6*SUMIFS(tbl_twdbdata[effsave],tbl_twdbdata[Year],2020,tbl_twdbdata[utility],tbl_twdbdata[[#This Row],[utility]]))","v":61894995.200000003},4910,765,241,0,1617430693,39896850,243645490,0,null,null,{"$f":"tbl_twdbdata[[#This Row],[utility]]&tbl_twdbdata[[#This Row],[Year]]","v":"MEMORIAL VILLAGES WATER AUTHORITY2070"}]
[null,1826,"MENARD","F",2016,1471,1471,0,{"$f":"IF(tbl_twdbdata[[#This Row],[Year]]=2016,0,tbl_twdbdata[[#This Row],[effsave]]-0.6*SUMIFS(tbl_twdbdata[effsave],tbl_twdbdata[Year],2020,tbl_twdbdata[utility],tbl_twdbdata[[#This Row],[utility]]))","v":0},683,2,143,8,56619900,1351600,13110120,471400,4596584,11505951,{"$f":"tbl_twdbdata[[#This Row],[utility]]&tbl_twdbdata[[#This Row],[Year]]","v":"MENARD2016"}]
[null,1826,"MENARD","F",2020,1350,1492,5217076,{"$f":"IF(tbl_twdbdata[[#This Row],[Year]]=2016,0,tbl_twdbdata[[#This Row],[effsave]]-0.6*SUMIFS(tbl_twdbdata[effsave],tbl_twdbdata[Year],2020,tbl_twdbdata[utility],tbl_twdbdata[[#This Row],[utility]]))","v":2086830.4},755,2,158,9,62575475,1493768,14489110,520984,5080077,12716207,{"$f":"tbl_twdbdata[[#This Row],[utility]]&tbl_twdbdata[[#This Row],[Year]]","v":"MENARD2020"}]
[null,1826,"MENARD","F",2030,1350,1492,7684024,{"$f":"IF(tbl_twdbdata[[#This Row],[Year]]=2016,0,tbl_twdbdata[[#This Row],[effsave]]-0.6*SUMIFS(tbl_twdbdata[effsave],tbl_twdbdata[Year],2020,tbl_twdbdata[utility],tbl_twdbdata[[#This Row],[utility]]))","v":4553778.4000000004},755,2,158,9,62575475,1493768,14489110,520984,5080077,12716207,{"$f":"tbl_twdbdata[[#This Row],[utility]]&tbl_twdbdata[[#This Row],[Year]]","v":"MENARD2030"}]
[null,1826,"MENARD","F",2040,1350,1492,9791548,{"$f":"IF(tbl_twdbdata[[#This Row],[Year]]=2016,0,tbl_twdbdata[[#This Row],[effsave]]-0.6*SUMIFS(tbl_twdbdata[effsave],tbl_twdbdata[Year],2020,tbl_twdbdata[utility],tbl_twdbdata[[#This Row],[utility]]))","v":6661302.4000000004},755,2,158,9,62575475,1493768,14489110,520984,5080077,12716207,{"$f":"tbl_twdbdata[[#This Row],[utility]]&tbl_twdbdata[[#This Row],[Year]]","v":"MENARD2040"}]
[null,1826,"MENARD","F",2050,1350,1492,9971260,{"$f":"IF(tbl_twdbdata[[#This Row],[Year]]=2016,0,tbl_twdbdata[[#This Row],[effsave]]-0.6*SUMIFS(tbl_twdbdata[effsave],tbl_twdbdata[Year],2020,tbl_twdbdata[utility],tbl_twdbdata[[#This Row],[utility]]))","v":6841014.4000000004},755,2,158,9,62575475,1493768,14489110,520984,5080077,12716207,{"$f":"tbl_twdbdata[[#This Row],[utility]]&tbl_twdbdata[[#This Row],[Year]]","v":"MENARD2050"}]
[null,1826,"MENARD","F",2060,1350,1492,10150971,{"$f":"IF(tbl_twdbdata[[#This Row],[Year]]=2016,0,tbl_twdbdata[[#This Row],[effsave]]-0.6*SUMIFS(tbl_twdbdata[effsave],tbl_twdbdata[Year],2020,tbl_twdbdata[utility],tbl_twdbdata[[#This Row],[utility]]))","v":7020725.4000000004},755,2,158,9,62575475,1493768,14489110,520984,5080077,12716207,{"$f":"tbl_twdbdata[[#This Row],[utility]]&tbl_twdbdata[[#This Row],[Year]]","v":"MENARD2060"}]
[null,1826,"MENARD","F",2070,1350,1492,10150971,{"$f":"IF(tbl_twdbdata[[#This Row],[Year]]=2016,0,tbl_twdbdata[[#This Row],[effsave]]-0.6*SUMIFS(tbl_twdbdata[effsave],tbl_twdbdata[Year],2020,tbl_twdbdata[utility],tbl_twdbdata[[#This Row],[utility]]))","v":7020725.4000000004},755,2,158,9,62575475,1493768,14489110,520984,5080077,12716207,{"$f":"tbl_twdbdata[[#This Row],[utility]]&tbl_twdbdata[[#This Row],[Year]]","v":"MENARD2070"}]
[null,1827,"MERCEDES","M",2016,15700,15700,0,{"$f":"IF(tbl_twdbdata[[#This Row],[Year]]=2016,0,tbl_twdbdata[[#This Row],[effsave]]-0.6*SUMIFS(tbl_twdbdata[effsave],tbl_twdbdata[Year],2020,tbl_twdbdata[utility],tbl_twdbdata[[#This Row],[utility]]))","v":0},3950,225,327,0,336644200,122307400,158412900,0,null,null,{"$f":"tbl_twdbdata[[#This Row],[utility]]&tbl_twdbdata[[#This Row],[Year]]","v":"MERCEDES2016"}]
[null,1827,"MERCEDES","M",2020,15700,19732,75334803,{"$f":"IF(tbl_twdbdata[[#This Row],[Year]]=2016,0,tbl_twdbdata[[#This Row],[effsave]]-0.6*SUMIFS(tbl_twdbdata[effsave],tbl_twdbdata[Year],2020,tbl_twdbdata[utility],tbl_twdbdata[[#This Row],[utility]]))","v":30133921.200000003},4810,274,398,0,409939728,148936659,192903193,0,null,null,{"$f":"tbl_twdbdata[[#This Row],[utility]]&tbl_twdbdata[[#This Row],[Year]]","v":"MERCEDES2020"}]
[null,1827,"MERCEDES","M",2030,15700,24501,129850400,{"$f":"IF(tbl_twdbdata[[#This Row],[Year]]=2016,0,tbl_twdbdata[[#This Row],[effsave]]-0.6*SUMIFS(tbl_twdbdata[effsave],tbl_twdbdata[Year],2020,tbl_twdbdata[utility],tbl_twdbdata[[#This Row],[utility]]))","v":84649518.200000003},5973,340,494,0,509017498,184932956,239525701,0,null,null,{"$f":"tbl_twdbdata[[#This Row],[utility]]&tbl_twdbdata[[#This Row],[Year]]","v":"MERCEDES2030"}]
[null,1827,"MERCEDES","M",2040,15700,29290,179713189,{"$f":"IF(tbl_twdbdata[[#This Row],[Year]]=2016,0,tbl_twdbdata[[#This Row],[effsave]]-0.6*SUMIFS(tbl_twdbdata[effsave],tbl_twdbdata[Year],2020,tbl_twdbdata[utility],tbl_twdbdata[[#This Row],[utility]]))","v":134512307.19999999},7140,422,613,0,608510776,221080212,286343732,0,null,null,{"$f":"tbl_twdbdata[[#This Row],[utility]]&tbl_twdbdata[[#This Row],[Year]]","v":"MERCEDES2040"}]
[null,1827,"MERCEDES","M",2050,15700,34088,221843000,{"$f":"IF(tbl_twdbdata[[#This Row],[Year]]=2016,0,tbl_twdbdata[[#This Row],[effsave]]-0.6*SUMIFS(tbl_twdbdata[effsave],tbl_twdbdata[Year],2020,tbl_twdbdata[utility],tbl_twdbdata[[#This Row],[utility]]))","v":176642118.19999999},8310,524,761,0,708191032,257295400,333249749,0,null,null,{"$f":"tbl_twdbdata[[#This Row],[utility]]&tbl_twdbdata[[#This Row],[Year]]","v":"MERCEDES2050"}]
[null,1827,"MERCEDES","M",2060,15700,38886,256332623,{"$f":"IF(tbl_twdbdata[[#This Row],[Year]]=2016,0,tbl_twdbdata[[#This Row],[effsave]]-0.6*SUMIFS(tbl_twdbdata[effsave],tbl_twdbdata[Year],2020,tbl_twdbdata[utility],tbl_twdbdata[[#This Row],[utility]]))","v":211131741.19999999},9480,651,945,0,807871288,293510588,380155766,0,null,null,{"$f":"tbl_twdbdata[[#This Row],[utility]]&tbl_twdbdata[[#This Row],[Year]]","v":"MERCEDES2060"}]
[null,1827,"MERCEDES","M",2070,15700,43551,288355526,{"$f":"IF(tbl_twdbdata[[#This Row],[Year]]=2016,0,tbl_twdbdata[[#This Row],[effsave]]-0.6*SUMIFS(tbl_twdbdata[effsave],tbl_twdbdata[Year],2020,tbl_twdbdata[utility],tbl_twdbdata[[#This Row],[utility]]))","v":243154644.19999999},10617,808,1173,0,904788419,328721895,425761553,0,null,null,{"$f":"tbl_twdbdata[[#This Row],[utility]]&tbl_twdbdata[[#This Row],[Year]]","v":"MERCEDES2070"}]
[null,1829,"MERIDIAN","G",2016,1524,1524,0,{"$f":"IF(tbl_twdbdata[[#This Row],[Year]]=2016,0,tbl_twdbdata[[#This Row],[effsave]]-0.6*SUMIFS(tbl_twdbdata[effsave],tbl_twdbdata[Year],2020,tbl_twdbdata[utility],tbl_twdbdata[[#This Row],[utility]]))","v":0},566,7,101,0,32196400,3329400,12430700,0,null,null,{"$f":"tbl_twdbdata[[#This Row],[utility]]&tbl_twdbdata[[#This Row],[Year]]","v":"MERIDIAN2016"}]
[null,1829,"MERIDIAN","G",2020,1524,1764,6522302,{"$f":"IF(tbl_twdbdata[[#This Row],[Year]]=2016,0,tbl_twdbdata[[#This Row],[effsave]]-0.6*SUMIFS(tbl_twdbdata[effsave],tbl_twdbdata[Year],2020,tbl_twdbdata[utility],tbl_twdbdata[[#This Row],[utility]]))","v":2608920.8000000003},655,8,117,0,37266699,3853715,14388291,0,null,null,{"$f":"tbl_twdbdata[[#This Row],[utility]]&tbl_twdbdata[[#This Row],[Year]]","v":"MERIDIAN2020"}]
[null,1829,"MERIDIAN","G",2030,1524,1927,10121278,{"$f":"IF(tbl_twdbdata[[#This Row],[Year]]=2016,0,tbl_twdbdata[[#This Row],[effsave]]-0.6*SUMIFS(tbl_twdbdata[effsave],tbl_twdbdata[Year],2020,tbl_twdbdata[utility],tbl_twdbdata[[#This Row],[utility]]))","v":6207896.8000000007},716,9,127,0,40710277,4209812,15717821,0,null,null,{"$f":"tbl_twdbdata[[#This Row],[utility]]&tbl_twdbdata[[#This Row],[Year]]","v":"MERIDIAN2030"}]
[null,1829,"MERIDIAN","G",2040,1524,2011,12705800,{"$f":"IF(tbl_twdbdata[[#This Row],[Year]]=2016,0,tbl_twdbdata[[#This Row],[effsave]]-0.6*SUMIFS(tbl_twdbdata[effsave],tbl_twdbdata[Year],2020,tbl_twdbdata[utility],tbl_twdbdata[[#This Row],[utility]]))","v":8792418.8000000007},747,10,138,0,42484882,4393322,16402978,0,null,null,{"$f":"tbl_twdbdata[[#This Row],[utility]]&tbl_twdbdata[[#This Row],[Year]]","v":"MERIDIAN2040"}]
[null,1829,"MERIDIAN","G",2050,1524,2062,14156970,{"$f":"IF(tbl_twdbdata[[#This Row],[Year]]=2016,0,tbl_twdbdata[[#This Row],[effsave]]-0.6*SUMIFS(tbl_twdbdata[effsave],tbl_twdbdata[Year],2020,tbl_twdbdata[utility],tbl_twdbdata[[#This Row],[utility]]))","v":10243588.800000001},766,11,150,0,43562321,4504739,16818966,0,null,null,{"$f":"tbl_twdbdata[[#This Row],[utility]]&tbl_twdbdata[[#This Row],[Year]]","v":"MERIDIAN2050"}]
[null,1829,"MERIDIAN","G",2060,1524,2097,14603927,{"$f":"IF(tbl_twdbdata[[#This Row],[Year]]=2016,0,tbl_twdbdata[[#This Row],[effsave]]-0.6*SUMIFS(tbl_twdbdata[effsave],tbl_twdbdata[Year],2020,tbl_twdbdata[utility],tbl_twdbdata[[#This Row],[utility]]))","v":10690545.800000001},779,12,163,0,44301740,4581202,17104448,0,null,null,{"$f":"tbl_twdbdata[[#This Row],[utility]]&tbl_twdbdata[[#This Row],[Year]]","v":"MERIDIAN2060"}]
[null,1829,"MERIDIAN","G",2070,1524,2117,14766393,{"$f":"IF(tbl_twdbdata[[#This Row],[Year]]=2016,0,tbl_twdbdata[[#This Row],[effsave]]-0.6*SUMIFS(tbl_twdbdata[effsave],tbl_twdbdata[Year],2020,tbl_twdbdata[utility],tbl_twdbdata[[#This Row],[utility]]))","v":10853011.800000001},786,13,178,0,44724265,4624895,17267581,0,null,null,{"$f":"tbl_twdbdata[[#This Row],[utility]]&tbl_twdbdata[[#This Row],[Year]]","v":"MERIDIAN2070"}]
[null,1830,"MERKEL","G",2016,3510,3510,0,{"$f":"IF(tbl_twdbdata[[#This Row],[Year]]=2016,0,tbl_twdbdata[[#This Row],[effsave]]-0.6*SUMIFS(tbl_twdbdata[effsave],tbl_twdbdata[Year],2020,tbl_twdbdata[utility],tbl_twdbdata[[#This Row],[utility]]))","v":0},1116,65,148,0,48947000,2445000,14771000,0,1395200,15657800,{"$f":"tbl_twdbdata[[#This Row],[utility]]&tbl_twdbdata[[#This Row],[Year]]","v":"MERKEL2016"}]
[null,1830,"MERKEL","G",2020,2732,3024,10827886,{"$f":"IF(tbl_twdbdata[[#This Row],[Year]]=2016,0,tbl_twdbdata[[#This Row],[effsave]]-0.6*SUMIFS(tbl_twdbdata[effsave],tbl_twdbdata[Year],2020,tbl_twdbdata[utility],tbl_twdbdata[[#This Row],[utility]]))","v":4331154.4000000004},1235,72,163,0,54178524,2706325,16349746,0,1544321,17331328,{"$f":"tbl_twdbdata[[#This Row],[utility]]&tbl_twdbdata[[#This Row],[Year]]","v":"MERKEL2020"}]
[null,1830,"MERKEL","G",2030,2732,3163,16151385,{"$f":"IF(tbl_twdbdata[[#This Row],[Year]]=2016,0,tbl_twdbdata[[#This Row],[effsave]]-0.6*SUMIFS(tbl_twdbdata[effsave],tbl_twdbdata[Year],2020,tbl_twdbdata[utility],tbl_twdbdata[[#This Row],[utility]]))","v":9654653.4000000004},1292,75,170,0,56668873,2830723,17101272,0,1615307,18127973,{"$f":"tbl_twdbdata[[#This Row],[utility]]&tbl_twdbdata[[#This Row],[Year]]","v":"MERKEL2030"}]
[null,1830,"MERKEL","G",2040,2732,3279,20573594,{"$f":"IF(tbl_twdbdata[[#This Row],[Year]]=2016,0,tbl_twdbdata[[#This Row],[effsave]]-0.6*SUMIFS(tbl_twdbdata[effsave],tbl_twdbdata[Year],2020,tbl_twdbdata[utility],tbl_twdbdata[[#This Row],[utility]]))","v":14076862.4},1339,78,178,0,58747150,2934537,17728445,0,1674547,18792799,{"$f":"tbl_twdbdata[[#This Row],[utility]]&tbl_twdbdata[[#This Row],[Year]]","v":"MERKEL2040"}]
[null,1830,"MERKEL","G",2050,2732,3370,23198743,{"$f":"IF(tbl_twdbdata[[#This Row],[Year]]=2016,0,tbl_twdbdata[[#This Row],[effsave]]-0.6*SUMIFS(tbl_twdbdata[effsave],tbl_twdbdata[Year],2020,tbl_twdbdata[utility],tbl_twdbdata[[#This Row],[utility]]))","v":16702011.4},1376,82,186,0,60377522,3015977,18220451,0,1721020,19314344,{"$f":"tbl_twdbdata[[#This Row],[utility]]&tbl_twdbdata[[#This Row],[Year]]","v":"MERKEL2050"}]
[null,1830,"MERKEL","G",2060,2732,3439,24050303,{"$f":"IF(tbl_twdbdata[[#This Row],[Year]]=2016,0,tbl_twdbdata[[#This Row],[effsave]]-0.6*SUMIFS(tbl_twdbdata[effsave],tbl_twdbdata[Year],2020,tbl_twdbdata[utility],tbl_twdbdata[[#This Row],[utility]]))","v":17553571.399999999},1404,86,194,0,61613738,3077728,18593511,0,1756258,19709801,{"$f":"tbl_twdbdata[[#This Row],[utility]]&tbl_twdbdata[[#This Row],[Year]]","v":"MERKEL2060"}]
[null,1830,"MERKEL","G",2070,2732,3491,24452186,{"$f":"IF(tbl_twdbdata[[#This Row],[Year]]=2016,0,tbl_twdbdata[[#This Row],[effsave]]-0.6*SUMIFS(tbl_twdbdata[effsave],tbl_twdbdata[Year],2020,tbl_twdbdata[utility],tbl_twdbdata[[#This Row],[utility]]))","v":17955454.399999999},1425,90,202,0,62545379,3124265,18874657,0,1782814,20007826,{"$f":"tbl_twdbdata[[#This Row],[utility]]&tbl_twdbdata[[#This Row],[Year]]","v":"MERKEL2070"}]
[null,1832,"MESQUITE","C",2016,142950,142950,0,{"$f":"IF(tbl_twdbdata[[#This Row],[Year]]=2016,0,tbl_twdbdata[[#This Row],[effsave]]-0.6*SUMIFS(tbl_twdbdata[effsave],tbl_twdbdata[Year],2020,tbl_twdbdata[utility],tbl_twdbdata[[#This Row],[utility]]))","v":0},37784,13753,3741,0,2553860000,803088400,1603308700,0,197009221,268285679,{"$f":"tbl_twdbdata[[#This Row],[utility]]&tbl_twdbdata[[#This Row],[Year]]","v":"MESQUITE2016"}]
[null,1832,"MESQUITE","C",2020,138463,149936,493634293,{"$f":"IF(tbl_twdbdata[[#This Row],[Year]]=2016,0,tbl_twdbdata[[#This Row],[effsave]]-0.6*SUMIFS(tbl_twdbdata[effsave],tbl_twdbdata[Year],2020,tbl_twdbdata[utility],tbl_twdbdata[[#This Row],[utility]]))","v":197453717.19999999},40915,14893,4051,0,2765472025,869632049,1736158347,0,213333342,290515745,{"$f":"tbl_twdbdata[[#This Row],[utility]]&tbl_twdbdata[[#This Row],[Year]]","v":"MESQUITE2020"}]
[null,1832,"MESQUITE","C",2030,138463,164928,777767462,{"$f":"IF(tbl_twdbdata[[#This Row],[Year]]=2016,0,tbl_twdbdata[[#This Row],[effsave]]-0.6*SUMIFS(tbl_twdbdata[effsave],tbl_twdbdata[Year],2020,tbl_twdbdata[utility],tbl_twdbdata[[#This Row],[utility]]))","v":481586886.19999999},45006,16382,4455,0,3041989717,956585974,1909755655,0,234664400,319564219,{"$f":"tbl_twdbdata[[#This Row],[utility]]&tbl_twdbdata[[#This Row],[Year]]","v":"MESQUITE2030"}]
[null,1832,"MESQUITE","C",2040,138463,186249,1067979703,{"$f":"IF(tbl_twdbdata[[#This Row],[Year]]=2016,0,tbl_twdbdata[[#This Row],[effsave]]-0.6*SUMIFS(tbl_twdbdata[effsave],tbl_twdbdata[Year],2020,tbl_twdbdata[utility],tbl_twdbdata[[#This Row],[utility]]))","v":771799127.20000005},50824,18020,4901,0,3435241698,1080248236,2156638539,0,265000545,360875753,{"$f":"tbl_twdbdata[[#This Row],[utility]]&tbl_twdbdata[[#This Row],[Year]]","v":"MESQUITE2040"}]
[null,1832,"MESQUITE","C",2050,138463,203079,1262328910,{"$f":"IF(tbl_twdbdata[[#This Row],[Year]]=2016,0,tbl_twdbdata[[#This Row],[effsave]]-0.6*SUMIFS(tbl_twdbdata[effsave],tbl_twdbdata[Year],2020,tbl_twdbdata[utility],tbl_twdbdata[[#This Row],[utility]]))","v":966148334.20000005},55417,19822,5391,0,3745660104,1177862601,2351518654,0,288946763,393485533,{"$f":"tbl_twdbdata[[#This Row],[utility]]&tbl_twdbdata[[#This Row],[Year]]","v":"MESQUITE2050"}]
[null,1832,"MESQUITE","C",2060,138463,219484,1387533951,{"$f":"IF(tbl_twdbdata[[#This Row],[Year]]=2016,0,tbl_twdbdata[[#This Row],[effsave]]-0.6*SUMIFS(tbl_twdbdata[effsave],tbl_twdbdata[Year],2020,tbl_twdbdata[utility],tbl_twdbdata[[#This Row],[utility]]))","v":1091353375.2},59894,21804,5930,0,4048239662,1273011957,2541477554,0,312288279,425271834,{"$f":"tbl_twdbdata[[#This Row],[utility]]&tbl_twdbdata[[#This Row],[Year]]","v":"MESQUITE2060"}]
[null,1832,"MESQUITE","C",2070,138463,235935,1497562022,{"$f":"IF(tbl_twdbdata[[#This Row],[Year]]=2016,0,tbl_twdbdata[[#This Row],[effsave]]-0.6*SUMIFS(tbl_twdbdata[effsave],tbl_twdbdata[Year],2020,tbl_twdbdata[utility],tbl_twdbdata[[#This Row],[utility]]))","v":1201381446.2},64383,23984,6523,0,4351667660,1368428114,2731969104,0,335695245,457147264,{"$f":"tbl_twdbdata[[#This Row],[utility]]&tbl_twdbdata[[#This Row],[Year]]","v":"MESQUITE2070"}]
[null,1833,"MEXIA","G",2016,7626,7626,0,{"$f":"IF(tbl_twdbdata[[#This Row],[Year]]=2016,0,tbl_twdbdata[[#This Row],[effsave]]-0.6*SUMIFS(tbl_twdbdata[effsave],tbl_twdbdata[Year],2020,tbl_twdbdata[utility],tbl_twdbdata[[#This Row],[utility]]))","v":0},2134,465,385,37,103786600,15929400,47975300,3385400,30754923,67098215,{"$f":"tbl_twdbdata[[#This Row],[utility]]&tbl_twdbdata[[#This Row],[Year]]","v":"MEXIA2016"}]
[null,1833,"MEXIA","G",2020,7617,8458,30871700,{"$f":"IF(tbl_twdbdata[[#This Row],[Year]]=2016,0,tbl_twdbdata[[#This Row],[effsave]]-0.6*SUMIFS(tbl_twdbdata[effsave],tbl_twdbdata[Year],2020,tbl_twdbdata[utility],tbl_twdbdata[[#This Row],[utility]]))","v":12348680},2370,516,428,41,115245774,17688180,53272298,3759185,34150602,74506591,{"$f":"tbl_twdbdata[[#This Row],[utility]]&tbl_twdbdata[[#This Row],[Year]]","v":"MEXIA2020"}]
[null,1833,"MEXIA","G",2030,7617,9432,34426800,{"$f":"IF(tbl_twdbdata[[#This Row],[Year]]=2016,0,tbl_twdbdata[[#This Row],[effsave]]-0.6*SUMIFS(tbl_twdbdata[effsave],tbl_twdbdata[Year],2020,tbl_twdbdata[utility],tbl_twdbdata[[#This Row],[utility]]))","v":15903780},2643,575,477,46,128517160,19725102,59406990,4192082,38083291,83086565,{"$f":"tbl_twdbdata[[#This Row],[utility]]&tbl_twdbdata[[#This Row],[Year]]","v":"MEXIA2030"}]
[null,1833,"MEXIA","G",2040,7617,10223,37313950,{"$f":"IF(tbl_twdbdata[[#This Row],[Year]]=2016,0,tbl_twdbdata[[#This Row],[effsave]]-0.6*SUMIFS(tbl_twdbdata[effsave],tbl_twdbdata[Year],2020,tbl_twdbdata[utility],tbl_twdbdata[[#This Row],[utility]]))","v":18790930},2865,641,532,51,139295052,21379317,64389065,4543644,41277087,90054490,{"$f":"tbl_twdbdata[[#This Row],[utility]]&tbl_twdbdata[[#This Row],[Year]]","v":"MEXIA2040"}]
[null,1833,"MEXIA","G",2050,7617,11092,40485800,{"$f":"IF(tbl_twdbdata[[#This Row],[Year]]=2016,0,tbl_twdbdata[[#This Row],[effsave]]-0.6*SUMIFS(tbl_twdbdata[effsave],tbl_twdbdata[Year],2020,tbl_twdbdata[utility],tbl_twdbdata[[#This Row],[utility]]))","v":21962780},3109,715,594,57,151135745,23196653,69862418,4929874,44785821,97709518,{"$f":"tbl_twdbdata[[#This Row],[utility]]&tbl_twdbdata[[#This Row],[Year]]","v":"MEXIA2050"}]
[null,1833,"MEXIA","G",2060,7617,11797,43059050,{"$f":"IF(tbl_twdbdata[[#This Row],[Year]]=2016,0,tbl_twdbdata[[#This Row],[effsave]]-0.6*SUMIFS(tbl_twdbdata[effsave],tbl_twdbdata[Year],2020,tbl_twdbdata[utility],tbl_twdbdata[[#This Row],[utility]]))","v":24536030},3307,797,662,64,160741830,24671017,74302826,5243213,47632377,103919869,{"$f":"tbl_twdbdata[[#This Row],[utility]]&tbl_twdbdata[[#This Row],[Year]]","v":"MEXIA2060"}]
[null,1833,"MEXIA","G",2070,7617,12296,44880400,{"$f":"IF(tbl_twdbdata[[#This Row],[Year]]=2016,0,tbl_twdbdata[[#This Row],[effsave]]-0.6*SUMIFS(tbl_twdbdata[effsave],tbl_twdbdata[Year],2020,tbl_twdbdata[utility],tbl_twdbdata[[#This Row],[utility]]))","v":26357380},3447,889,738,71,167541031,25714574,77445753,5464995,49647174,108315564,{"$f":"tbl_twdbdata[[#This Row],[utility]]&tbl_twdbdata[[#This Row],[Year]]","v":"MEXIA2070"}]
[null,98,"MIDLOTHIAN","C",2016,16728,16728,0,{"$f":"IF(tbl_twdbdata[[#This Row],[Year]]=2016,0,tbl_twdbdata[[#This Row],[effsave]]-0.6*SUMIFS(tbl_twdbdata[effsave],tbl_twdbdata[Year],2020,tbl_twdbdata[utility],tbl_twdbdata[[#This Row],[utility]]))","v":0},4330,1246,517,0,348954500,57857300,244077736,0,66244863,100886712,{"$f":"tbl_twdbdata[[#This Row],[utility]]&tbl_twdbdata[[#This Row],[Year]]","v":"MIDLOTHIAN2016"}]
[null,98,"MIDLOTHIAN","C",2020,15879,20660,46150308,{"$f":"IF(tbl_twdbdata[[#This Row],[Year]]=2016,0,tbl_twdbdata[[#This Row],[effsave]]-0.6*SUMIFS(tbl_twdbdata[effsave],tbl_twdbdata[Year],2020,tbl_twdbdata[utility],tbl_twdbdata[[#This Row],[utility]]))","v":18460123.199999999},5634,1621,673,0,454021032,75277525,317566977,0,86190495,131262641,{"$f":"tbl_twdbdata[[#This Row],[utility]]&tbl_twdbdata[[#This Row],[Year]]","v":"MIDLOTHIAN2020"}]
[null,98,"MIDLOTHIAN","C",2030,15879,30895,101715609,{"$f":"IF(tbl_twdbdata[[#This Row],[Year]]=2016,0,tbl_twdbdata[[#This Row],[effsave]]-0.6*SUMIFS(tbl_twdbdata[effsave],tbl_twdbdata[Year],2020,tbl_twdbdata[utility],tbl_twdbdata[[#This Row],[utility]]))","v":74025424.200000003},8425,2424,1006,0,678943842,112570142,474890210,0,128889416,196290382,{"$f":"tbl_twdbdata[[#This Row],[utility]]&tbl_twdbdata[[#This Row],[Year]]","v":"MIDLOTHIAN2030"}]
[null,98,"MIDLOTHIAN","C",2040,15879,32500,124556250,{"$f":"IF(tbl_twdbdata[[#This Row],[Year]]=2016,0,tbl_twdbdata[[#This Row],[effsave]]-0.6*SUMIFS(tbl_twdbdata[effsave],tbl_twdbdata[Year],2020,tbl_twdbdata[utility],tbl_twdbdata[[#This Row],[utility]]))","v":96866065.200000003},8863,3625,1504,0,714215079,118418178,499560830,0,135585241,206487698,{"$f":"tbl_twdbdata[[#This Row],[utility]]&tbl_twdbdata[[#This Row],[Year]]","v":"MIDLOTHIAN2040"}]
[null,98,"MIDLOTHIAN","C",2050,15879,34500,140532300,{"$f":"IF(tbl_twdbdata[[#This Row],[Year]]=2016,0,tbl_twdbdata[[#This Row],[effsave]]-0.6*SUMIFS(tbl_twdbdata[effsave],tbl_twdbdata[Year],2020,tbl_twdbdata[utility],tbl_twdbdata[[#This Row],[utility]]))","v":112842115.2},9408,5421,2248,0,758166776,125705450,530303035,0,143928948,219194633,{"$f":"tbl_twdbdata[[#This Row],[utility]]&tbl_twdbdata[[#This Row],[Year]]","v":"MIDLOTHIAN2050"}]
[null,98,"MIDLOTHIAN","C",2060,15879,36836,153409047,{"$f":"IF(tbl_twdbdata[[#This Row],[Year]]=2016,0,tbl_twdbdata[[#This Row],[effsave]]-0.6*SUMIFS(tbl_twdbdata[effsave],tbl_twdbdata[Year],2020,tbl_twdbdata[utility],tbl_twdbdata[[#This Row],[utility]]))","v":125718862.2},10045,8107,3362,0,809502358,134216984,566209931,0,153674398,234036333,{"$f":"tbl_twdbdata[[#This Row],[utility]]&tbl_twdbdata[[#This Row],[Year]]","v":"MIDLOTHIAN2060"}]
[null,98,"MIDLOTHIAN","C",2070,15879,40689,170198018,{"$f":"IF(tbl_twdbdata[[#This Row],[Year]]=2016,0,tbl_twdbdata[[#This Row],[effsave]]-0.6*SUMIFS(tbl_twdbdata[effsave],tbl_twdbdata[Year],2020,tbl_twdbdata[utility],tbl_twdbdata[[#This Row],[utility]]))","v":142507833.19999999},11096,12123,5027,0,894175303,148255914,625434789,0,169748550,258516244,{"$f":"tbl_twdbdata[[#This Row],[utility]]&tbl_twdbdata[[#This Row],[Year]]","v":"MIDLOTHIAN2070"}]
[null,1839,"MILITARY HIGHWAY WSC","M",2016,30580,30580,0,{"$f":"IF(tbl_twdbdata[[#This Row],[Year]]=2016,0,tbl_twdbdata[[#This Row],[effsave]]-0.6*SUMIFS(tbl_twdbdata[effsave],tbl_twdbdata[Year],2020,tbl_twdbdata[utility],tbl_twdbdata[[#This Row],[utility]]))","v":0},10093,0,419,0,1490713916,0,90724986,0,null,null,{"$f":"tbl_twdbdata[[#This Row],[utility]]&tbl_twdbdata[[#This Row],[Year]]","v":"MILITARY HIGHWAY WSC2016"}]
[null,1839,"MILITARY HIGHWAY WSC","M",2020,30580,42906,136091396,{"$f":"IF(tbl_twdbdata[[#This Row],[Year]]=2016,0,tbl_twdbdata[[#This Row],[effsave]]-0.6*SUMIFS(tbl_twdbdata[effsave],tbl_twdbdata[Year],2020,tbl_twdbdata[utility],tbl_twdbdata[[#This Row],[utility]]))","v":54436558.400000006},14161,0,588,0,2091581795,0,127293860,0,null,null,{"$f":"tbl_twdbdata[[#This Row],[utility]]&tbl_twdbdata[[#This Row],[Year]]","v":"MILITARY HIGHWAY WSC2020"}]
[null,1839,"MILITARY HIGHWAY WSC","M",2030,30580,51637,224850735,{"$f":"IF(tbl_twdbdata[[#This Row],[Year]]=2016,0,tbl_twdbdata[[#This Row],[effsave]]-0.6*SUMIFS(tbl_twdbdata[effsave],tbl_twdbdata[Year],2020,tbl_twdbdata[utility],tbl_twdbdata[[#This Row],[utility]]))","v":143195897.40000001},17043,0,708,0,2517200605,0,153197060,0,null,null,{"$f":"tbl_twdbdata[[#This Row],[utility]]&tbl_twdbdata[[#This Row],[Year]]","v":"MILITARY HIGHWAY WSC2030"}]
[null,1839,"MILITARY HIGHWAY WSC","M",2040,30580,60443,304010157,{"$f":"IF(tbl_twdbdata[[#This Row],[Year]]=2016,0,tbl_twdbdata[[#This Row],[effsave]]-0.6*SUMIFS(tbl_twdbdata[effsave],tbl_twdbdata[Year],2020,tbl_twdbdata[utility],tbl_twdbdata[[#This Row],[utility]]))","v":222355319.40000001},19949,0,852,0,2946475515,0,179322770,0,null,null,{"$f":"tbl_twdbdata[[#This Row],[utility]]&tbl_twdbdata[[#This Row],[Year]]","v":"MILITARY HIGHWAY WSC2040"}]
[null,1839,"MILITARY HIGHWAY WSC","M",2050,30580,69553,372425016,{"$f":"IF(tbl_twdbdata[[#This Row],[Year]]=2016,0,tbl_twdbdata[[#This Row],[effsave]]-0.6*SUMIFS(tbl_twdbdata[effsave],tbl_twdbdata[Year],2020,tbl_twdbdata[utility],tbl_twdbdata[[#This Row],[utility]]))","v":290770178.39999998},22956,0,1025,0,3390569818,0,206350390,0,null,null,{"$f":"tbl_twdbdata[[#This Row],[utility]]&tbl_twdbdata[[#This Row],[Year]]","v":"MILITARY HIGHWAY WSC2050"}]
[null,1839,"MILITARY HIGHWAY WSC","M",2060,30580,78780,429307671,{"$f":"IF(tbl_twdbdata[[#This Row],[Year]]=2016,0,tbl_twdbdata[[#This Row],[effsave]]-0.6*SUMIFS(tbl_twdbdata[effsave],tbl_twdbdata[Year],2020,tbl_twdbdata[utility],tbl_twdbdata[[#This Row],[utility]]))","v":347652833.39999998},26001,0,1233,0,3840367637,0,233725126,0,null,null,{"$f":"tbl_twdbdata[[#This Row],[utility]]&tbl_twdbdata[[#This Row],[Year]]","v":"MILITARY HIGHWAY WSC2060"}]
[null,1839,"MILITARY HIGHWAY WSC","M",2070,30580,87975,481984234,{"$f":"IF(tbl_twdbdata[[#This Row],[Year]]=2016,0,tbl_twdbdata[[#This Row],[effsave]]-0.6*SUMIFS(tbl_twdbdata[effsave],tbl_twdbdata[Year],2020,tbl_twdbdata[utility],tbl_twdbdata[[#This Row],[utility]]))","v":400329396.39999998},29036,0,1484,0,4288605520,0,261004924,0,null,null,{"$f":"tbl_twdbdata[[#This Row],[utility]]&tbl_twdbdata[[#This Row],[Year]]","v":"MILITARY HIGHWAY WSC2070"}]
[null,1840,"MILLERSVIEW-DOOLE WSC","F",2016,3987,3987,0,{"$f":"IF(tbl_twdbdata[[#This Row],[Year]]=2016,0,tbl_twdbdata[[#This Row],[effsave]]-0.6*SUMIFS(tbl_twdbdata[effsave],tbl_twdbdata[Year],2020,tbl_twdbdata[utility],tbl_twdbdata[[#This Row],[utility]]))","v":0},1527,0,69,0,82053400,0,5996600,0,11224700,96444496,{"$f":"tbl_twdbdata[[#This Row],[utility]]&tbl_twdbdata[[#This Row],[Year]]","v":"MILLERSVIEW-DOOLE WSC2016"}]
[null,1840,"MILLERSVIEW-DOOLE WSC","F",2020,3987,4249,14128562,{"$f":"IF(tbl_twdbdata[[#This Row],[Year]]=2016,0,tbl_twdbdata[[#This Row],[effsave]]-0.6*SUMIFS(tbl_twdbdata[effsave],tbl_twdbdata[Year],2020,tbl_twdbdata[utility],tbl_twdbdata[[#This Row],[utility]]))","v":5651424.8000000007},1577,0,71,0,84766569,0,6194883,0,11595855,99633519,{"$f":"tbl_twdbdata[[#This Row],[utility]]&tbl_twdbdata[[#This Row],[Year]]","v":"MILLERSVIEW-DOOLE WSC2020"}]
[null,1840,"MILLERSVIEW-DOOLE WSC","F",2030,3987,4409,20775869,{"$f":"IF(tbl_twdbdata[[#This Row],[Year]]=2016,0,tbl_twdbdata[[#This Row],[effsave]]-0.6*SUMIFS(tbl_twdbdata[effsave],tbl_twdbdata[Year],2020,tbl_twdbdata[utility],tbl_twdbdata[[#This Row],[utility]]))","v":12298731.800000001},1636,0,73,0,87958532,0,6428157,0,12032508,103385311,{"$f":"tbl_twdbdata[[#This Row],[utility]]&tbl_twdbdata[[#This Row],[Year]]","v":"MILLERSVIEW-DOOLE WSC2030"}]
[null,1840,"MILLERSVIEW-DOOLE WSC","F",2040,3987,4501,25924410,{"$f":"IF(tbl_twdbdata[[#This Row],[Year]]=2016,0,tbl_twdbdata[[#This Row],[effsave]]-0.6*SUMIFS(tbl_twdbdata[effsave],tbl_twdbdata[Year],2020,tbl_twdbdata[utility],tbl_twdbdata[[#This Row],[utility]]))","v":17447272.800000001},1670,0,75,0,89793911,0,6562290,0,12283583,105542591,{"$f":"tbl_twdbdata[[#This Row],[utility]]&tbl_twdbdata[[#This Row],[Year]]","v":"MILLERSVIEW-DOOLE WSC2040"}]
[null,1840,"MILLERSVIEW-DOOLE WSC","F",2050,3987,4590,29033816,{"$f":"IF(tbl_twdbdata[[#This Row],[Year]]=2016,0,tbl_twdbdata[[#This Row],[effsave]]-0.6*SUMIFS(tbl_twdbdata[effsave],tbl_twdbdata[Year],2020,tbl_twdbdata[utility],tbl_twdbdata[[#This Row],[utility]]))","v":20556678.800000001},1703,0,77,0,91569440,0,6692049,0,12526471,107629525,{"$f":"tbl_twdbdata[[#This Row],[utility]]&tbl_twdbdata[[#This Row],[Year]]","v":"MILLERSVIEW-DOOLE WSC2050"}]
[null,1840,"MILLERSVIEW-DOOLE WSC","F",2060,3987,4667,30048946,{"$f":"IF(tbl_twdbdata[[#This Row],[Year]]=2016,0,tbl_twdbdata[[#This Row],[effsave]]-0.6*SUMIFS(tbl_twdbdata[effsave],tbl_twdbdata[Year],2020,tbl_twdbdata[utility],tbl_twdbdata[[#This Row],[utility]]))","v":21571808.800000001},1732,0,79,0,93105572,0,6804312,0,12736610,109435075,{"$f":"tbl_twdbdata[[#This Row],[utility]]&tbl_twdbdata[[#This Row],[Year]]","v":"MILLERSVIEW-DOOLE WSC2060"}]
[null,1840,"MILLERSVIEW-DOOLE WSC","F",2070,3987,4734,30532170,{"$f":"IF(tbl_twdbdata[[#This Row],[Year]]=2016,0,tbl_twdbdata[[#This Row],[effsave]]-0.6*SUMIFS(tbl_twdbdata[effsave],tbl_twdbdata[Year],2020,tbl_twdbdata[utility],tbl_twdbdata[[#This Row],[utility]]))","v":22055032.800000001},1757,0,81,0,94442207,0,6901996,0,12919458,111006138,{"$f":"tbl_twdbdata[[#This Row],[utility]]&tbl_twdbdata[[#This Row],[Year]]","v":"MILLERSVIEW-DOOLE WSC2070"}]
[null,1843,"MINERAL WELLS","G",2016,15100,17700,0,{"$f":"IF(tbl_twdbdata[[#This Row],[Year]]=2016,0,tbl_twdbdata[[#This Row],[effsave]]-0.6*SUMIFS(tbl_twdbdata[effsave],tbl_twdbdata[Year],2020,tbl_twdbdata[utility],tbl_twdbdata[[#This Row],[utility]]))","v":0},5425,24,848,0,293518000,19558500,110729632,0,120038000,162167626,{"$f":"tbl_twdbdata[[#This Row],[utility]]&tbl_twdbdata[[#This Row],[Year]]","v":"MINERAL WELLS2016"}]
[null,1843,"MINERAL WELLS","G",2020,15100,17927,62031005,{"$f":"IF(tbl_twdbdata[[#This Row],[Year]]=2016,0,tbl_twdbdata[[#This Row],[effsave]]-0.6*SUMIFS(tbl_twdbdata[effsave],tbl_twdbdata[Year],2020,tbl_twdbdata[utility],tbl_twdbdata[[#This Row],[utility]]))","v":24812402},5542,25,866,0,299840286,19979784,113114714,0,122623581,165660666,{"$f":"tbl_twdbdata[[#This Row],[utility]]&tbl_twdbdata[[#This Row],[Year]]","v":"MINERAL WELLS2020"}]
[null,1843,"MINERAL WELLS","G",2030,15100,19056,93411559,{"$f":"IF(tbl_twdbdata[[#This Row],[Year]]=2016,0,tbl_twdbdata[[#This Row],[effsave]]-0.6*SUMIFS(tbl_twdbdata[effsave],tbl_twdbdata[Year],2020,tbl_twdbdata[utility],tbl_twdbdata[[#This Row],[utility]]))","v":56192956},5891,27,920,0,318723517,21238063,120238410,0,130346124,176093582,{"$f":"tbl_twdbdata[[#This Row],[utility]]&tbl_twdbdata[[#This Row],[Year]]","v":"MINERAL WELLS2030"}]
[null,1843,"MINERAL WELLS","G",2040,15100,19804,117823898,{"$f":"IF(tbl_twdbdata[[#This Row],[Year]]=2016,0,tbl_twdbdata[[#This Row],[effsave]]-0.6*SUMIFS(tbl_twdbdata[effsave],tbl_twdbdata[Year],2020,tbl_twdbdata[utility],tbl_twdbdata[[#This Row],[utility]]))","v":80605295},6122,29,978,0,331234285,22071715,124958095,0,135462565,183005736,{"$f":"tbl_twdbdata[[#This Row],[utility]]&tbl_twdbdata[[#This Row],[Year]]","v":"MINERAL WELLS2040"}]
[null,1843,"MINERAL WELLS","G",2050,15100,20487,133253594,{"$f":"IF(tbl_twdbdata[[#This Row],[Year]]=2016,0,tbl_twdbdata[[#This Row],[effsave]]-0.6*SUMIFS(tbl_twdbdata[effsave],tbl_twdbdata[Year],2020,tbl_twdbdata[utility],tbl_twdbdata[[#This Row],[utility]]))","v":96034991},6333,31,1040,0,342657887,22832924,129267647,0,140134396,189317235,{"$f":"tbl_twdbdata[[#This Row],[utility]]&tbl_twdbdata[[#This Row],[Year]]","v":"MINERAL WELLS2050"}]
[null,1843,"MINERAL WELLS","G",2060,15100,20992,138760269,{"$f":"IF(tbl_twdbdata[[#This Row],[Year]]=2016,0,tbl_twdbdata[[#This Row],[effsave]]-0.6*SUMIFS(tbl_twdbdata[effsave],tbl_twdbdata[Year],2020,tbl_twdbdata[utility],tbl_twdbdata[[#This Row],[utility]]))","v":101541666},6489,33,1106,0,351104328,23395751,132454066,0,143588678,193983863,{"$f":"tbl_twdbdata[[#This Row],[utility]]&tbl_twdbdata[[#This Row],[Year]]","v":"MINERAL WELLS2060"}]
[null,1843,"MINERAL WELLS","G",2070,15100,21375,141526013,{"$f":"IF(tbl_twdbdata[[#This Row],[Year]]=2016,0,tbl_twdbdata[[#This Row],[effsave]]-0.6*SUMIFS(tbl_twdbdata[effsave],tbl_twdbdata[Year],2020,tbl_twdbdata[utility],tbl_twdbdata[[#This Row],[utility]]))","v":104307410},6607,35,1176,0,357510243,23822608,134870697,0,146208460,197523107,{"$f":"tbl_twdbdata[[#This Row],[utility]]&tbl_twdbdata[[#This Row],[Year]]","v":"MINERAL WELLS2070"}]
[null,2070,"MISSION","M",2016,82056,82056,0,{"$f":"IF(tbl_twdbdata[[#This Row],[Year]]=2016,0,tbl_twdbdata[[#This Row],[effsave]]-0.6*SUMIFS(tbl_twdbdata[effsave],tbl_twdbdata[Year],2020,tbl_twdbdata[utility],tbl_twdbdata[[#This Row],[utility]]))","v":0},25342,3283,1722,0,3383403000,371967000,605999000,0,61368517,352851875,{"$f":"tbl_twdbdata[[#This Row],[utility]]&tbl_twdbdata[[#This Row],[Year]]","v":"MISSION2016"}]
[null,2070,"MISSION","M",2020,81484,96978,291671033,{"$f":"IF(tbl_twdbdata[[#This Row],[Year]]=2016,0,tbl_twdbdata[[#This Row],[effsave]]-0.6*SUMIFS(tbl_twdbdata[effsave],tbl_twdbdata[Year],2020,tbl_twdbdata[utility],tbl_twdbdata[[#This Row],[utility]]))","v":116668413.20000002},30161,3907,2049,0,4026749498,442695691,721228352,0,73037603,419945868,{"$f":"tbl_twdbdata[[#This Row],[utility]]&tbl_twdbdata[[#This Row],[Year]]","v":"MISSION2020"}]
[null,2070,"MISSION","M",2030,81484,120418,489192104,{"$f":"IF(tbl_twdbdata[[#This Row],[Year]]=2016,0,tbl_twdbdata[[#This Row],[effsave]]-0.6*SUMIFS(tbl_twdbdata[effsave],tbl_twdbdata[Year],2020,tbl_twdbdata[utility],tbl_twdbdata[[#This Row],[utility]]))","v":314189484.20000005},37451,4851,2545,0,5000032183,549697145,895552349,0,90691106,521448592,{"$f":"tbl_twdbdata[[#This Row],[utility]]&tbl_twdbdata[[#This Row],[Year]]","v":"MISSION2030"}]
[null,2070,"MISSION","M",2040,81484,143951,663081491,{"$f":"IF(tbl_twdbdata[[#This Row],[Year]]=2016,0,tbl_twdbdata[[#This Row],[effsave]]-0.6*SUMIFS(tbl_twdbdata[effsave],tbl_twdbdata[Year],2020,tbl_twdbdata[utility],tbl_twdbdata[[#This Row],[utility]]))","v":488078871.20000005},44770,6024,3160,0,5977176442,657123135,1070567990,0,108414651,623354036,{"$f":"tbl_twdbdata[[#This Row],[utility]]&tbl_twdbdata[[#This Row],[Year]]","v":"MISSION2040"}]
[null,2070,"MISSION","M",2050,81484,167532,815118569,{"$f":"IF(tbl_twdbdata[[#This Row],[Year]]=2016,0,tbl_twdbdata[[#This Row],[effsave]]-0.6*SUMIFS(tbl_twdbdata[effsave],tbl_twdbdata[Year],2020,tbl_twdbdata[utility],tbl_twdbdata[[#This Row],[utility]]))","v":640115949.20000005},52104,7480,3925,0,6956313771,764768241,1245940608,0,126174346,725467335,{"$f":"tbl_twdbdata[[#This Row],[utility]]&tbl_twdbdata[[#This Row],[Year]]","v":"MISSION2050"}]
[null,2070,"MISSION","M",2060,81484,191114,945899632,{"$f":"IF(tbl_twdbdata[[#This Row],[Year]]=2016,0,tbl_twdbdata[[#This Row],[effsave]]-0.6*SUMIFS(tbl_twdbdata[effsave],tbl_twdbdata[Year],2020,tbl_twdbdata[utility],tbl_twdbdata[[#This Row],[utility]]))","v":770897012.20000005},59438,9288,4873,0,7935492622,872417912,1421320663,0,143934794,827584964,{"$f":"tbl_twdbdata[[#This Row],[utility]]&tbl_twdbdata[[#This Row],[Year]]","v":"MISSION2060"}]
[null,2070,"MISSION","M",2070,81484,214039,1065614565,{"$f":"IF(tbl_twdbdata[[#This Row],[Year]]=2016,0,tbl_twdbdata[[#This Row],[effsave]]-0.6*SUMIFS(tbl_twdbdata[effsave],tbl_twdbdata[Year],2020,tbl_twdbdata[utility],tbl_twdbdata[[#This Row],[utility]]))","v":890611945.20000005},66568,11533,6050,0,8887391323,977068438,1591814589,0,161200432,926857572,{"$f":"tbl_twdbdata[[#This Row],[utility]]&tbl_twdbdata[[#This Row],[Year]]","v":"MISSION2070"}]
[null,2072,"MOFFAT WSC","G",2016,3590,3590,0,{"$f":"IF(tbl_twdbdata[[#This Row],[Year]]=2016,0,tbl_twdbdata[[#This Row],[effsave]]-0.6*SUMIFS(tbl_twdbdata[effsave],tbl_twdbdata[Year],2020,tbl_twdbdata[utility],tbl_twdbdata[[#This Row],[utility]]))","v":0},1428,0,0,0,117365000,0,0,0,1737535,19900302,{"$f":"tbl_twdbdata[[#This Row],[utility]]&tbl_twdbdata[[#This Row],[Year]]","v":"MOFFAT WSC2016"}]
[null,2072,"MOFFAT WSC","G",2020,2871,4019,12894359,{"$f":"IF(tbl_twdbdata[[#This Row],[Year]]=2016,0,tbl_twdbdata[[#This Row],[effsave]]-0.6*SUMIFS(tbl_twdbdata[effsave],tbl_twdbdata[Year],2020,tbl_twdbdata[utility],tbl_twdbdata[[#This Row],[utility]]))","v":5157743.6000000006},1999,0,0,0,164294648,0,0,0,2432307,27857650,{"$f":"tbl_twdbdata[[#This Row],[utility]]&tbl_twdbdata[[#This Row],[Year]]","v":"MOFFAT WSC2020"}]
[null,2072,"MOFFAT WSC","G",2030,2871,4242,19168325,{"$f":"IF(tbl_twdbdata[[#This Row],[Year]]=2016,0,tbl_twdbdata[[#This Row],[effsave]]-0.6*SUMIFS(tbl_twdbdata[effsave],tbl_twdbdata[Year],2020,tbl_twdbdata[utility],tbl_twdbdata[[#This Row],[utility]]))","v":11431709.600000001},2110,0,0,0,173410773,0,0,0,2567267,29403372,{"$f":"tbl_twdbdata[[#This Row],[utility]]&tbl_twdbdata[[#This Row],[Year]]","v":"MOFFAT WSC2030"}]
[null,2072,"MOFFAT WSC","G",2040,2871,4440,24471060,{"$f":"IF(tbl_twdbdata[[#This Row],[Year]]=2016,0,tbl_twdbdata[[#This Row],[effsave]]-0.6*SUMIFS(tbl_twdbdata[effsave],tbl_twdbdata[Year],2020,tbl_twdbdata[utility],tbl_twdbdata[[#This Row],[utility]]))","v":16734444.600000001},2208,0,0,0,181504911,0,0,0,2687097,30775807,{"$f":"tbl_twdbdata[[#This Row],[utility]]&tbl_twdbdata[[#This Row],[Year]]","v":"MOFFAT WSC2040"}]
[null,2072,"MOFFAT WSC","G",2050,2871,4621,27914306,{"$f":"IF(tbl_twdbdata[[#This Row],[Year]]=2016,0,tbl_twdbdata[[#This Row],[effsave]]-0.6*SUMIFS(tbl_twdbdata[effsave],tbl_twdbdata[Year],2020,tbl_twdbdata[utility],tbl_twdbdata[[#This Row],[utility]]))","v":20177690.600000001},2298,0,0,0,188904098,0,0,0,2796639,32030406,{"$f":"tbl_twdbdata[[#This Row],[utility]]&tbl_twdbdata[[#This Row],[Year]]","v":"MOFFAT WSC2050"}]
[null,2072,"MOFFAT WSC","G",2060,2871,4799,29567599,{"$f":"IF(tbl_twdbdata[[#This Row],[Year]]=2016,0,tbl_twdbdata[[#This Row],[effsave]]-0.6*SUMIFS(tbl_twdbdata[effsave],tbl_twdbdata[Year],2020,tbl_twdbdata[utility],tbl_twdbdata[[#This Row],[utility]]))","v":21830983.600000001},2387,0,0,0,196180646,0,0,0,2904365,33264211,{"$f":"tbl_twdbdata[[#This Row],[utility]]&tbl_twdbdata[[#This Row],[Year]]","v":"MOFFAT WSC2060"}]
[null,2072,"MOFFAT WSC","G",2070,2871,4974,30718429,{"$f":"IF(tbl_twdbdata[[#This Row],[Year]]=2016,0,tbl_twdbdata[[#This Row],[effsave]]-0.6*SUMIFS(tbl_twdbdata[effsave],tbl_twdbdata[Year],2020,tbl_twdbdata[utility],tbl_twdbdata[[#This Row],[utility]]))","v":22981813.600000001},2474,0,0,0,203334556,0,0,0,3010275,34477221,{"$f":"tbl_twdbdata[[#This Row],[utility]]&tbl_twdbdata[[#This Row],[Year]]","v":"MOFFAT WSC2070"}]
[null,2078,"MONTGOMERY COUNTY MUD 9","H",2016,13002,13002,0,{"$f":"IF(tbl_twdbdata[[#This Row],[Year]]=2016,0,tbl_twdbdata[[#This Row],[effsave]]-0.6*SUMIFS(tbl_twdbdata[effsave],tbl_twdbdata[Year],2020,tbl_twdbdata[utility],tbl_twdbdata[[#This Row],[utility]]))","v":0},3293,15,39,95,388887000,36497000,11200000,12862000,null,null,{"$f":"tbl_twdbdata[[#This Row],[utility]]&tbl_twdbdata[[#This Row],[Year]]","v":"MONTGOMERY COUNTY MUD 92016"}]
[null,2078,"MONTGOMERY COUNTY MUD 9","H",2020,8605,5912,15860418,{"$f":"IF(tbl_twdbdata[[#This Row],[Year]]=2016,0,tbl_twdbdata[[#This Row],[effsave]]-0.6*SUMIFS(tbl_twdbdata[effsave],tbl_twdbdata[Year],2020,tbl_twdbdata[utility],tbl_twdbdata[[#This Row],[utility]]))","v":6344167.2000000011},2262,10,27,65,267181864,25074987,7694875,8836740,null,null,{"$f":"tbl_twdbdata[[#This Row],[utility]]&tbl_twdbdata[[#This Row],[Year]]","v":"MONTGOMERY COUNTY MUD 92020"}]
[null,2078,"MONTGOMERY COUNTY MUD 9","H",2030,8605,6162,21996491,{"$f":"IF(tbl_twdbdata[[#This Row],[Year]]=2016,0,tbl_twdbdata[[#This Row],[effsave]]-0.6*SUMIFS(tbl_twdbdata[effsave],tbl_twdbdata[Year],2020,tbl_twdbdata[utility],tbl_twdbdata[[#This Row],[utility]]))","v":12480240.200000001},2358,10,28,68,278480150,26135330,8020267,9210418,null,null,{"$f":"tbl_twdbdata[[#This Row],[utility]]&tbl_twdbdata[[#This Row],[Year]]","v":"MONTGOMERY COUNTY MUD 92030"}]
[null,2078,"MONTGOMERY COUNTY MUD 9","H",2040,8605,7024,29765254,{"$f":"IF(tbl_twdbdata[[#This Row],[Year]]=2016,0,tbl_twdbdata[[#This Row],[effsave]]-0.6*SUMIFS(tbl_twdbdata[effsave],tbl_twdbdata[Year],2020,tbl_twdbdata[utility],tbl_twdbdata[[#This Row],[utility]]))","v":20249003.200000003},2688,10,29,71,317436640,29791392,9142219,10498860,null,null,{"$f":"tbl_twdbdata[[#This Row],[utility]]&tbl_twdbdata[[#This Row],[Year]]","v":"MONTGOMERY COUNTY MUD 92040"}]
[null,2078,"MONTGOMERY COUNTY MUD 9","H",2050,8605,7882,36105472,{"$f":"IF(tbl_twdbdata[[#This Row],[Year]]=2016,0,tbl_twdbdata[[#This Row],[effsave]]-0.6*SUMIFS(tbl_twdbdata[effsave],tbl_twdbdata[Year],2020,tbl_twdbdata[utility],tbl_twdbdata[[#This Row],[utility]]))","v":26589221.200000003},3016,10,30,74,356212357,33430489,10258965,11781323,null,null,{"$f":"tbl_twdbdata[[#This Row],[utility]]&tbl_twdbdata[[#This Row],[Year]]","v":"MONTGOMERY COUNTY MUD 92050"}]
[null,2078,"MONTGOMERY COUNTY MUD 9","H",2060,8605,7882,37026089,{"$f":"IF(tbl_twdbdata[[#This Row],[Year]]=2016,0,tbl_twdbdata[[#This Row],[effsave]]-0.6*SUMIFS(tbl_twdbdata[effsave],tbl_twdbdata[Year],2020,tbl_twdbdata[utility],tbl_twdbdata[[#This Row],[utility]]))","v":27509838.200000003},3016,10,31,77,356212357,33430489,10258965,11781323,null,null,{"$f":"tbl_twdbdata[[#This Row],[utility]]&tbl_twdbdata[[#This Row],[Year]]","v":"MONTGOMERY COUNTY MUD 92060"}]
[null,2078,"MONTGOMERY COUNTY MUD 9","H",2070,8605,7882,37486398,{"$f":"IF(tbl_twdbdata[[#This Row],[Year]]=2016,0,tbl_twdbdata[[#This Row],[effsave]]-0.6*SUMIFS(tbl_twdbdata[effsave],tbl_twdbdata[Year],2020,tbl_twdbdata[utility],tbl_twdbdata[[#This Row],[utility]]))","v":27970147.200000003},3016,10,32,80,356212357,33430489,10258965,11781323,null,null,{"$f":"tbl_twdbdata[[#This Row],[utility]]&tbl_twdbdata[[#This Row],[Year]]","v":"MONTGOMERY COUNTY MUD 92070"}]
[null,2080,"MONTGOMERY COUNTY UD 3","H",2016,5398,5398,0,{"$f":"IF(tbl_twdbdata[[#This Row],[Year]]=2016,0,tbl_twdbdata[[#This Row],[effsave]]-0.6*SUMIFS(tbl_twdbdata[effsave],tbl_twdbdata[Year],2020,tbl_twdbdata[utility],tbl_twdbdata[[#This Row],[utility]]))","v":0},2699,7,60,59,159226000,6076000,18413000,9433000,null,null,{"$f":"tbl_twdbdata[[#This Row],[utility]]&tbl_twdbdata[[#This Row],[Year]]","v":"MONTGOMERY COUNTY UD 32016"}]
[null,2080,"MONTGOMERY COUNTY UD 3","H",2020,4449,3695,15442329,{"$f":"IF(tbl_twdbdata[[#This Row],[Year]]=2016,0,tbl_twdbdata[[#This Row],[effsave]]-0.6*SUMIFS(tbl_twdbdata[effsave],tbl_twdbdata[Year],2020,tbl_twdbdata[utility],tbl_twdbdata[[#This Row],[utility]]))","v":6176931.5999999996},2242,6,50,49,132240969,5046262,15292433,7834330,null,null,{"$f":"tbl_twdbdata[[#This Row],[utility]]&tbl_twdbdata[[#This Row],[Year]]","v":"MONTGOMERY COUNTY UD 32020"}]
[null,2080,"MONTGOMERY COUNTY UD 3","H",2030,4449,3967,22255068,{"$f":"IF(tbl_twdbdata[[#This Row],[Year]]=2016,0,tbl_twdbdata[[#This Row],[effsave]]-0.6*SUMIFS(tbl_twdbdata[effsave],tbl_twdbdata[Year],2020,tbl_twdbdata[utility],tbl_twdbdata[[#This Row],[utility]]))","v":12989670.6},2407,6,54,53,141975622,5417732,16418155,8411038,null,null,{"$f":"tbl_twdbdata[[#This Row],[utility]]&tbl_twdbdata[[#This Row],[Year]]","v":"MONTGOMERY COUNTY UD 32030"}]
[null,2080,"MONTGOMERY COUNTY UD 3","H",2040,4449,3967,22660496,{"$f":"IF(tbl_twdbdata[[#This Row],[Year]]=2016,0,tbl_twdbdata[[#This Row],[effsave]]-0.6*SUMIFS(tbl_twdbdata[effsave],tbl_twdbdata[Year],2020,tbl_twdbdata[utility],tbl_twdbdata[[#This Row],[utility]]))","v":13395098.6},2407,6,58,57,141975622,5417732,16418155,8411038,null,null,{"$f":"tbl_twdbdata[[#This Row],[utility]]&tbl_twdbdata[[#This Row],[Year]]","v":"MONTGOMERY COUNTY UD 32040"}]
[null,2080,"MONTGOMERY COUNTY UD 3","H",2050,4449,3967,23312076,{"$f":"IF(tbl_twdbdata[[#This Row],[Year]]=2016,0,tbl_twdbdata[[#This Row],[effsave]]-0.6*SUMIFS(tbl_twdbdata[effsave],tbl_twdbdata[Year],2020,tbl_twdbdata[utility],tbl_twdbdata[[#This Row],[utility]]))","v":14046678.6},2407,6,62,61,141975622,5417732,16418155,8411038,null,null,{"$f":"tbl_twdbdata[[#This Row],[utility]]&tbl_twdbdata[[#This Row],[Year]]","v":"MONTGOMERY COUNTY UD 32050"}]
[null,2080,"MONTGOMERY COUNTY UD 3","H",2060,4449,3967,23963655,{"$f":"IF(tbl_twdbdata[[#This Row],[Year]]=2016,0,tbl_twdbdata[[#This Row],[effsave]]-0.6*SUMIFS(tbl_twdbdata[effsave],tbl_twdbdata[Year],2020,tbl_twdbdata[utility],tbl_twdbdata[[#This Row],[utility]]))","v":14698257.6},2407,6,67,65,141975622,5417732,16418155,8411038,null,null,{"$f":"tbl_twdbdata[[#This Row],[utility]]&tbl_twdbdata[[#This Row],[Year]]","v":"MONTGOMERY COUNTY UD 32060"}]
[null,2080,"MONTGOMERY COUNTY UD 3","H",2070,4449,3967,24224287,{"$f":"IF(tbl_twdbdata[[#This Row],[Year]]=2016,0,tbl_twdbdata[[#This Row],[effsave]]-0.6*SUMIFS(tbl_twdbdata[effsave],tbl_twdbdata[Year],2020,tbl_twdbdata[utility],tbl_twdbdata[[#This Row],[utility]]))","v":14958889.6},2407,6,72,70,141975622,5417732,16418155,8411038,null,null,{"$f":"tbl_twdbdata[[#This Row],[utility]]&tbl_twdbdata[[#This Row],[Year]]","v":"MONTGOMERY COUNTY UD 32070"}]
[null,100,"MOUNT PLEASANT","D",2016,16000,16000,0,{"$f":"IF(tbl_twdbdata[[#This Row],[Year]]=2016,0,tbl_twdbdata[[#This Row],[effsave]]-0.6*SUMIFS(tbl_twdbdata[effsave],tbl_twdbdata[Year],2020,tbl_twdbdata[utility],tbl_twdbdata[[#This Row],[utility]]))","v":0},5358,128,1095,0,341654011,42673590,1379731336,0,13248290,93121738,{"$f":"tbl_twdbdata[[#This Row],[utility]]&tbl_twdbdata[[#This Row],[Year]]","v":"MOUNT PLEASANT2016"}]
[null,100,"MOUNT PLEASANT","D",2020,15127,17512,62065155,{"$f":"IF(tbl_twdbdata[[#This Row],[Year]]=2016,0,tbl_twdbdata[[#This Row],[effsave]]-0.6*SUMIFS(tbl_twdbdata[effsave],tbl_twdbdata[Year],2020,tbl_twdbdata[utility],tbl_twdbdata[[#This Row],[utility]]))","v":24826062},6203,148,1268,0,395520926,49401726,1597266818,0,15337083,107803786,{"$f":"tbl_twdbdata[[#This Row],[utility]]&tbl_twdbdata[[#This Row],[Year]]","v":"MOUNT PLEASANT2020"}]
[null,100,"MOUNT PLEASANT","D",2030,15127,19775,99390139,{"$f":"IF(tbl_twdbdata[[#This Row],[Year]]=2016,0,tbl_twdbdata[[#This Row],[effsave]]-0.6*SUMIFS(tbl_twdbdata[effsave],tbl_twdbdata[Year],2020,tbl_twdbdata[utility],tbl_twdbdata[[#This Row],[utility]]))","v":62151046},7005,167,1432,0,446632384,55785697,1803674698,0,17319028,121734803,{"$f":"tbl_twdbdata[[#This Row],[utility]]&tbl_twdbdata[[#This Row],[Year]]","v":"MOUNT PLEASANT2030"}]
[null,100,"MOUNT PLEASANT","D",2040,15127,22118,133044194,{"$f":"IF(tbl_twdbdata[[#This Row],[Year]]=2016,0,tbl_twdbdata[[#This Row],[effsave]]-0.6*SUMIFS(tbl_twdbdata[effsave],tbl_twdbdata[Year],2020,tbl_twdbdata[utility],tbl_twdbdata[[#This Row],[utility]]))","v":95805101},7835,189,1617,0,499550699,62395350,2017379367,0,19371037,136158300,{"$f":"tbl_twdbdata[[#This Row],[utility]]&tbl_twdbdata[[#This Row],[Year]]","v":"MOUNT PLEASANT2040"}]
[null,100,"MOUNT PLEASANT","D",2050,15127,24689,160404433,{"$f":"IF(tbl_twdbdata[[#This Row],[Year]]=2016,0,tbl_twdbdata[[#This Row],[effsave]]-0.6*SUMIFS(tbl_twdbdata[effsave],tbl_twdbdata[Year],2020,tbl_twdbdata[utility],tbl_twdbdata[[#This Row],[utility]]))","v":123165340},8746,213,1826,0,557618555,69648196,2251879881,0,21622730,151985363,{"$f":"tbl_twdbdata[[#This Row],[utility]]&tbl_twdbdata[[#This Row],[Year]]","v":"MOUNT PLEASANT2050"}]
[null,100,"MOUNT PLEASANT","D",2060,15127,27397,180898281,{"$f":"IF(tbl_twdbdata[[#This Row],[Year]]=2016,0,tbl_twdbdata[[#This Row],[effsave]]-0.6*SUMIFS(tbl_twdbdata[effsave],tbl_twdbdata[Year],2020,tbl_twdbdata[utility],tbl_twdbdata[[#This Row],[utility]]))","v":143659188},9705,241,2062,0,618780653,77287522,2498876143,0,23994408,168655798,{"$f":"tbl_twdbdata[[#This Row],[utility]]&tbl_twdbdata[[#This Row],[Year]]","v":"MOUNT PLEASANT2060"}]
[null,100,"MOUNT PLEASANT","D",2070,15127,30257,200776375,{"$f":"IF(tbl_twdbdata[[#This Row],[Year]]=2016,0,tbl_twdbdata[[#This Row],[effsave]]-0.6*SUMIFS(tbl_twdbdata[effsave],tbl_twdbdata[Year],2020,tbl_twdbdata[utility],tbl_twdbdata[[#This Row],[utility]]))","v":163537282},10718,272,2329,0,683375779,85355643,2759736301,0,26499208,186261944,{"$f":"tbl_twdbdata[[#This Row],[utility]]&tbl_twdbdata[[#This Row],[Year]]","v":"MOUNT PLEASANT2070"}]
[null,2088,"MOUNT VERNON","D",2016,2662,2662,0,{"$f":"IF(tbl_twdbdata[[#This Row],[Year]]=2016,0,tbl_twdbdata[[#This Row],[effsave]]-0.6*SUMIFS(tbl_twdbdata[effsave],tbl_twdbdata[Year],2020,tbl_twdbdata[utility],tbl_twdbdata[[#This Row],[utility]]))","v":0},1006,21,210,0,62749000,4630000,41338000,0,12130708,59448958,{"$f":"tbl_twdbdata[[#This Row],[utility]]&tbl_twdbdata[[#This Row],[Year]]","v":"MOUNT VERNON2016"}]
[null,2088,"MOUNT VERNON","D",2020,2662,2877,9377438,{"$f":"IF(tbl_twdbdata[[#This Row],[Year]]=2016,0,tbl_twdbdata[[#This Row],[effsave]]-0.6*SUMIFS(tbl_twdbdata[effsave],tbl_twdbdata[Year],2020,tbl_twdbdata[utility],tbl_twdbdata[[#This Row],[utility]]))","v":3750975.2},1009,21,211,0,62923971,4642910,41453268,0,12164534,59614727,{"$f":"tbl_twdbdata[[#This Row],[utility]]&tbl_twdbdata[[#This Row],[Year]]","v":"MOUNT VERNON2020"}]
[null,2088,"MOUNT VERNON","D",2030,2662,3006,13989173,{"$f":"IF(tbl_twdbdata[[#This Row],[Year]]=2016,0,tbl_twdbdata[[#This Row],[effsave]]-0.6*SUMIFS(tbl_twdbdata[effsave],tbl_twdbdata[Year],2020,tbl_twdbdata[utility],tbl_twdbdata[[#This Row],[utility]]))","v":8362710.2000000002},1054,22,220,0,65745380,4851091,43311965,0,12709972,62287754,{"$f":"tbl_twdbdata[[#This Row],[utility]]&tbl_twdbdata[[#This Row],[Year]]","v":"MOUNT VERNON2030"}]
[null,2088,"MOUNT VERNON","D",2040,2662,3084,17549039,{"$f":"IF(tbl_twdbdata[[#This Row],[Year]]=2016,0,tbl_twdbdata[[#This Row],[effsave]]-0.6*SUMIFS(tbl_twdbdata[effsave],tbl_twdbdata[Year],2020,tbl_twdbdata[utility],tbl_twdbdata[[#This Row],[utility]]))","v":11922576.199999999},1081,23,230,0,67451348,4976968,44435828,0,13039772,63904003,{"$f":"tbl_twdbdata[[#This Row],[utility]]&tbl_twdbdata[[#This Row],[Year]]","v":"MOUNT VERNON2040"}]
[null,2088,"MOUNT VERNON","D",2050,2662,3161,19752457,{"$f":"IF(tbl_twdbdata[[#This Row],[Year]]=2016,0,tbl_twdbdata[[#This Row],[effsave]]-0.6*SUMIFS(tbl_twdbdata[effsave],tbl_twdbdata[Year],2020,tbl_twdbdata[utility],tbl_twdbdata[[#This Row],[utility]]))","v":14125994.199999999},1108,24,240,0,69135445,5101231,45545283,0,13365343,65499531,{"$f":"tbl_twdbdata[[#This Row],[utility]]&tbl_twdbdata[[#This Row],[Year]]","v":"MOUNT VERNON2050"}]
[null,2088,"MOUNT VERNON","D",2060,2662,3218,20472755,{"$f":"IF(tbl_twdbdata[[#This Row],[Year]]=2016,0,tbl_twdbdata[[#This Row],[effsave]]-0.6*SUMIFS(tbl_twdbdata[effsave],tbl_twdbdata[Year],2020,tbl_twdbdata[utility],tbl_twdbdata[[#This Row],[utility]]))","v":14846292.199999999},1128,25,251,0,70382114,5193218,46366568,0,13606350,66680636,{"$f":"tbl_twdbdata[[#This Row],[utility]]&tbl_twdbdata[[#This Row],[Year]]","v":"MOUNT VERNON2060"}]
[null,2088,"MOUNT VERNON","D",2070,2662,3263,20782863,{"$f":"IF(tbl_twdbdata[[#This Row],[Year]]=2016,0,tbl_twdbdata[[#This Row],[effsave]]-0.6*SUMIFS(tbl_twdbdata[effsave],tbl_twdbdata[Year],2020,tbl_twdbdata[utility],tbl_twdbdata[[#This Row],[utility]]))","v":15156400.199999999},1144,26,262,0,71366326,5265839,47014951,0,13796619,67613087,{"$f":"tbl_twdbdata[[#This Row],[utility]]&tbl_twdbdata[[#This Row],[Year]]","v":"MOUNT VERNON2070"}]
[null,2090,"MOUNTAIN PEAK SUD","C",2016,13851,13851,0,{"$f":"IF(tbl_twdbdata[[#This Row],[Year]]=2016,0,tbl_twdbdata[[#This Row],[effsave]]-0.6*SUMIFS(tbl_twdbdata[effsave],tbl_twdbdata[Year],2020,tbl_twdbdata[utility],tbl_twdbdata[[#This Row],[utility]]))","v":0},4578,0,39,0,427441000,0,11814000,0,8654192,244426191,{"$f":"tbl_twdbdata[[#This Row],[utility]]&tbl_twdbdata[[#This Row],[Year]]","v":"MOUNTAIN PEAK SUD2016"}]
[null,2090,"MOUNTAIN PEAK SUD","C",2020,12886,13046,46617924,{"$f":"IF(tbl_twdbdata[[#This Row],[Year]]=2016,0,tbl_twdbdata[[#This Row],[effsave]]-0.6*SUMIFS(tbl_twdbdata[effsave],tbl_twdbdata[Year],2020,tbl_twdbdata[utility],tbl_twdbdata[[#This Row],[utility]]))","v":18647169.600000001},4635,0,39,0,432748354,0,11960689,0,8761647,247461127,{"$f":"tbl_twdbdata[[#This Row],[utility]]&tbl_twdbdata[[#This Row],[Year]]","v":"MOUNTAIN PEAK SUD2020"}]
[null,2090,"MOUNTAIN PEAK SUD","C",2030,12886,16409,80256419,{"$f":"IF(tbl_twdbdata[[#This Row],[Year]]=2016,0,tbl_twdbdata[[#This Row],[effsave]]-0.6*SUMIFS(tbl_twdbdata[effsave],tbl_twdbdata[Year],2020,tbl_twdbdata[utility],tbl_twdbdata[[#This Row],[utility]]))","v":52285664.600000001},5830,0,50,0,544302295,0,15043917,0,11020226,311251697,{"$f":"tbl_twdbdata[[#This Row],[utility]]&tbl_twdbdata[[#This Row],[Year]]","v":"MOUNTAIN PEAK SUD2030"}]
[null,2090,"MOUNTAIN PEAK SUD","C",2040,12886,17970,100681418,{"$f":"IF(tbl_twdbdata[[#This Row],[Year]]=2016,0,tbl_twdbdata[[#This Row],[effsave]]-0.6*SUMIFS(tbl_twdbdata[effsave],tbl_twdbdata[Year],2020,tbl_twdbdata[utility],tbl_twdbdata[[#This Row],[utility]]))","v":72710663.599999994},6385,0,63,0,596082165,0,16475056,0,12068588,340861295,{"$f":"tbl_twdbdata[[#This Row],[utility]]&tbl_twdbdata[[#This Row],[Year]]","v":"MOUNTAIN PEAK SUD2040"}]
[null,2090,"MOUNTAIN PEAK SUD","C",2050,12886,24433,144739870,{"$f":"IF(tbl_twdbdata[[#This Row],[Year]]=2016,0,tbl_twdbdata[[#This Row],[effsave]]-0.6*SUMIFS(tbl_twdbdata[effsave],tbl_twdbdata[Year],2020,tbl_twdbdata[utility],tbl_twdbdata[[#This Row],[utility]]))","v":116769115.59999999},8681,0,79,0,810466084,0,22400391,0,16409116,463453757,{"$f":"tbl_twdbdata[[#This Row],[utility]]&tbl_twdbdata[[#This Row],[Year]]","v":"MOUNTAIN PEAK SUD2050"}]
[null,2090,"MOUNTAIN PEAK SUD","C",2060,12886,28281,169909420,{"$f":"IF(tbl_twdbdata[[#This Row],[Year]]=2016,0,tbl_twdbdata[[#This Row],[effsave]]-0.6*SUMIFS(tbl_twdbdata[effsave],tbl_twdbdata[Year],2020,tbl_twdbdata[utility],tbl_twdbdata[[#This Row],[utility]]))","v":141938665.59999999},10048,0,99,0,938107941,0,25928271,0,18993419,536443977,{"$f":"tbl_twdbdata[[#This Row],[utility]]&tbl_twdbdata[[#This Row],[Year]]","v":"MOUNTAIN PEAK SUD2060"}]
[null,2090,"MOUNTAIN PEAK SUD","C",2070,12886,31896,192792182,{"$f":"IF(tbl_twdbdata[[#This Row],[Year]]=2016,0,tbl_twdbdata[[#This Row],[effsave]]-0.6*SUMIFS(tbl_twdbdata[effsave],tbl_twdbdata[Year],2020,tbl_twdbdata[utility],tbl_twdbdata[[#This Row],[utility]]))","v":164821427.59999999},11332,0,125,0,1058020964,0,29242535,0,21421240,605014571,{"$f":"tbl_twdbdata[[#This Row],[utility]]&tbl_twdbdata[[#This Row],[Year]]","v":"MOUNTAIN PEAK SUD2070"}]
[null,6443,"MSEC ENTERPRISES","H",2016,14010,14010,0,{"$f":"IF(tbl_twdbdata[[#This Row],[Year]]=2016,0,tbl_twdbdata[[#This Row],[effsave]]-0.6*SUMIFS(tbl_twdbdata[effsave],tbl_twdbdata[Year],2020,tbl_twdbdata[utility],tbl_twdbdata[[#This Row],[utility]]))","v":0},4550,0,118,0,586190000,0,50965000,0,null,null,{"$f":"tbl_twdbdata[[#This Row],[utility]]&tbl_twdbdata[[#This Row],[Year]]","v":"MSEC ENTERPRISES2016"}]
[null,6443,"MSEC ENTERPRISES","H",2020,12039,19382,62891683,{"$f":"IF(tbl_twdbdata[[#This Row],[Year]]=2016,0,tbl_twdbdata[[#This Row],[effsave]]-0.6*SUMIFS(tbl_twdbdata[effsave],tbl_twdbdata[Year],2020,tbl_twdbdata[utility],tbl_twdbdata[[#This Row],[utility]]))","v":25156673.200000003},7325,0,190,0,943727434,0,82050305,0,null,null,{"$f":"tbl_twdbdata[[#This Row],[utility]]&tbl_twdbdata[[#This Row],[Year]]","v":"MSEC ENTERPRISES2020"}]
[null,6443,"MSEC ENTERPRISES","H",2030,12039,33987,146257956,{"$f":"IF(tbl_twdbdata[[#This Row],[Year]]=2016,0,tbl_twdbdata[[#This Row],[effsave]]-0.6*SUMIFS(tbl_twdbdata[effsave],tbl_twdbdata[Year],2020,tbl_twdbdata[utility],tbl_twdbdata[[#This Row],[utility]]))","v":108522946.2},12845,0,333,0,1654858338,0,143878017,0,null,null,{"$f":"tbl_twdbdata[[#This Row],[utility]]&tbl_twdbdata[[#This Row],[Year]]","v":"MSEC ENTERPRISES2030"}]
[null,6443,"MSEC ENTERPRISES","H",2040,12039,36228,179835792,{"$f":"IF(tbl_twdbdata[[#This Row],[Year]]=2016,0,tbl_twdbdata[[#This Row],[effsave]]-0.6*SUMIFS(tbl_twdbdata[effsave],tbl_twdbdata[Year],2020,tbl_twdbdata[utility],tbl_twdbdata[[#This Row],[utility]]))","v":142100782.19999999},13692,0,584,0,1763974692,0,153364899,0,null,null,{"$f":"tbl_twdbdata[[#This Row],[utility]]&tbl_twdbdata[[#This Row],[Year]]","v":"MSEC ENTERPRISES2040"}]
[null,6443,"MSEC ENTERPRISES","H",2050,12039,38907,205915298,{"$f":"IF(tbl_twdbdata[[#This Row],[Year]]=2016,0,tbl_twdbdata[[#This Row],[effsave]]-0.6*SUMIFS(tbl_twdbdata[effsave],tbl_twdbdata[Year],2020,tbl_twdbdata[utility],tbl_twdbdata[[#This Row],[utility]]))","v":168180288.19999999},14705,0,1024,0,1894417670,0,164705977,0,null,null,{"$f":"tbl_twdbdata[[#This Row],[utility]]&tbl_twdbdata[[#This Row],[Year]]","v":"MSEC ENTERPRISES2050"}]
[null,6443,"MSEC ENTERPRISES","H",2060,12039,42223,227780418,{"$f":"IF(tbl_twdbdata[[#This Row],[Year]]=2016,0,tbl_twdbdata[[#This Row],[effsave]]-0.6*SUMIFS(tbl_twdbdata[effsave],tbl_twdbdata[Year],2020,tbl_twdbdata[utility],tbl_twdbdata[[#This Row],[utility]]))","v":190045408.19999999},15958,0,1795,0,2055876765,0,178743683,0,null,null,{"$f":"tbl_twdbdata[[#This Row],[utility]]&tbl_twdbdata[[#This Row],[Year]]","v":"MSEC ENTERPRISES2060"}]
[null,6443,"MSEC ENTERPRISES","H",2070,12039,44093,239316962,{"$f":"IF(tbl_twdbdata[[#This Row],[Year]]=2016,0,tbl_twdbdata[[#This Row],[effsave]]-0.6*SUMIFS(tbl_twdbdata[effsave],tbl_twdbdata[Year],2020,tbl_twdbdata[utility],tbl_twdbdata[[#This Row],[utility]]))","v":201581952.19999999},16665,0,3148,0,2146928788,0,186660001,0,null,null,{"$f":"tbl_twdbdata[[#This Row],[utility]]&tbl_twdbdata[[#This Row],[Year]]","v":"MSEC ENTERPRISES2070"}]
[null,2096,"MURPHY","C",2016,19980,20230,0,{"$f":"IF(tbl_twdbdata[[#This Row],[Year]]=2016,0,tbl_twdbdata[[#This Row],[effsave]]-0.6*SUMIFS(tbl_twdbdata[effsave],tbl_twdbdata[Year],2020,tbl_twdbdata[utility],tbl_twdbdata[[#This Row],[utility]]))","v":0},5872,0,228,98,814049000,0,106648000,45355000,16435012,332313988,{"$f":"tbl_twdbdata[[#This Row],[utility]]&tbl_twdbdata[[#This Row],[Year]]","v":"MURPHY2016"}]
[null,2096,"MURPHY","C",2020,19980,19330,41556601,{"$f":"IF(tbl_twdbdata[[#This Row],[Year]]=2016,0,tbl_twdbdata[[#This Row],[effsave]]-0.6*SUMIFS(tbl_twdbdata[effsave],tbl_twdbdata[Year],2020,tbl_twdbdata[utility],tbl_twdbdata[[#This Row],[utility]]))","v":16622640.400000002},5591,0,217,93,775112909,0,101547009,43185663,15648923,316419358,{"$f":"tbl_twdbdata[[#This Row],[utility]]&tbl_twdbdata[[#This Row],[Year]]","v":"MURPHY2020"}]
[null,2096,"MURPHY","C",2030,19980,19330,50305359,{"$f":"IF(tbl_twdbdata[[#This Row],[Year]]=2016,0,tbl_twdbdata[[#This Row],[effsave]]-0.6*SUMIFS(tbl_twdbdata[effsave],tbl_twdbdata[Year],2020,tbl_twdbdata[utility],tbl_twdbdata[[#This Row],[utility]]))","v":25371398.400000002},5591,0,217,93,775112909,0,101547009,43185663,15648923,316419358,{"$f":"tbl_twdbdata[[#This Row],[utility]]&tbl_twdbdata[[#This Row],[Year]]","v":"MURPHY2030"}]
[null,2096,"MURPHY","C",2040,19980,19330,54256411,{"$f":"IF(tbl_twdbdata[[#This Row],[Year]]=2016,0,tbl_twdbdata[[#This Row],[effsave]]-0.6*SUMIFS(tbl_twdbdata[effsave],tbl_twdbdata[Year],2020,tbl_twdbdata[utility],tbl_twdbdata[[#This Row],[utility]]))","v":29322450.400000002},5591,0,217,93,775112909,0,101547009,43185663,15648923,316419358,{"$f":"tbl_twdbdata[[#This Row],[utility]]&tbl_twdbdata[[#This Row],[Year]]","v":"MURPHY2040"}]
[null,2096,"MURPHY","C",2050,19980,19330,57078591,{"$f":"IF(tbl_twdbdata[[#This Row],[Year]]=2016,0,tbl_twdbdata[[#This Row],[effsave]]-0.6*SUMIFS(tbl_twdbdata[effsave],tbl_twdbdata[Year],2020,tbl_twdbdata[utility],tbl_twdbdata[[#This Row],[utility]]))","v":32144630.400000002},5591,0,217,93,775112909,0,101547009,43185663,15648923,316419358,{"$f":"tbl_twdbdata[[#This Row],[utility]]&tbl_twdbdata[[#This Row],[Year]]","v":"MURPHY2050"}]
[null,2096,"MURPHY","C",2060,19980,19330,58842453,{"$f":"IF(tbl_twdbdata[[#This Row],[Year]]=2016,0,tbl_twdbdata[[#This Row],[effsave]]-0.6*SUMIFS(tbl_twdbdata[effsave],tbl_twdbdata[Year],2020,tbl_twdbdata[utility],tbl_twdbdata[[#This Row],[utility]]))","v":33908492.400000006},5591,0,217,93,775112909,0,101547009,43185663,15648923,316419358,{"$f":"tbl_twdbdata[[#This Row],[utility]]&tbl_twdbdata[[#This Row],[Year]]","v":"MURPHY2060"}]
[null,2096,"MURPHY","C",2070,19980,19330,59195226,{"$f":"IF(tbl_twdbdata[[#This Row],[Year]]=2016,0,tbl_twdbdata[[#This Row],[effsave]]-0.6*SUMIFS(tbl_twdbdata[effsave],tbl_twdbdata[Year],2020,tbl_twdbdata[utility],tbl_twdbdata[[#This Row],[utility]]))","v":34261265.400000006},5591,0,217,93,775112909,0,101547009,43185663,15648923,316419358,{"$f":"tbl_twdbdata[[#This Row],[utility]]&tbl_twdbdata[[#This Row],[Year]]","v":"MURPHY2070"}]
[null,101,"MUSTANG SUD","C",2016,18738,18738,0,{"$f":"IF(tbl_twdbdata[[#This Row],[Year]]=2016,0,tbl_twdbdata[[#This Row],[effsave]]-0.6*SUMIFS(tbl_twdbdata[effsave],tbl_twdbdata[Year],2020,tbl_twdbdata[utility],tbl_twdbdata[[#This Row],[utility]]))","v":0},6246,0,0,0,584314111,0,0,0,9159917,22806461,{"$f":"tbl_twdbdata[[#This Row],[utility]]&tbl_twdbdata[[#This Row],[Year]]","v":"MUSTANG SUD2016"}]
[null,101,"MUSTANG SUD","C",2020,17827,30600,91139040,{"$f":"IF(tbl_twdbdata[[#This Row],[Year]]=2016,0,tbl_twdbdata[[#This Row],[effsave]]-0.6*SUMIFS(tbl_twdbdata[effsave],tbl_twdbdata[Year],2020,tbl_twdbdata[utility],tbl_twdbdata[[#This Row],[utility]]))","v":36455616},10721,0,0,0,1002973680,0,0,0,15722974,39147232,{"$f":"tbl_twdbdata[[#This Row],[utility]]&tbl_twdbdata[[#This Row],[Year]]","v":"MUSTANG SUD2020"}]
[null,101,"MUSTANG SUD","C",2030,17827,57040,219022192,{"$f":"IF(tbl_twdbdata[[#This Row],[Year]]=2016,0,tbl_twdbdata[[#This Row],[effsave]]-0.6*SUMIFS(tbl_twdbdata[effsave],tbl_twdbdata[Year],2020,tbl_twdbdata[utility],tbl_twdbdata[[#This Row],[utility]]))","v":164338768},19985,0,0,0,1869595383,0,0,0,29308446,72972487,{"$f":"tbl_twdbdata[[#This Row],[utility]]&tbl_twdbdata[[#This Row],[Year]]","v":"MUSTANG SUD2030"}]
[null,101,"MUSTANG SUD","C",2040,17827,83480,338219220,{"$f":"IF(tbl_twdbdata[[#This Row],[Year]]=2016,0,tbl_twdbdata[[#This Row],[effsave]]-0.6*SUMIFS(tbl_twdbdata[effsave],tbl_twdbdata[Year],2020,tbl_twdbdata[utility],tbl_twdbdata[[#This Row],[utility]]))","v":283535796},29249,0,0,0,2736217086,0,0,0,42893918,106797742,{"$f":"tbl_twdbdata[[#This Row],[utility]]&tbl_twdbdata[[#This Row],[Year]]","v":"MUSTANG SUD2040"}]
[null,101,"MUSTANG SUD","C",2050,17827,109920,454568664,{"$f":"IF(tbl_twdbdata[[#This Row],[Year]]=2016,0,tbl_twdbdata[[#This Row],[effsave]]-0.6*SUMIFS(tbl_twdbdata[effsave],tbl_twdbdata[Year],2020,tbl_twdbdata[utility],tbl_twdbdata[[#This Row],[utility]]))","v":399885240},38513,0,0,0,3602838789,0,0,0,56479390,140622997,{"$f":"tbl_twdbdata[[#This Row],[utility]]&tbl_twdbdata[[#This Row],[Year]]","v":"MUSTANG SUD2050"}]
[null,101,"MUSTANG SUD","C",2060,17827,136360,568389388,{"$f":"IF(tbl_twdbdata[[#This Row],[Year]]=2016,0,tbl_twdbdata[[#This Row],[effsave]]-0.6*SUMIFS(tbl_twdbdata[effsave],tbl_twdbdata[Year],2020,tbl_twdbdata[utility],tbl_twdbdata[[#This Row],[utility]]))","v":513705964},47777,0,0,0,4469460492,0,0,0,70064862,174448252,{"$f":"tbl_twdbdata[[#This Row],[utility]]&tbl_twdbdata[[#This Row],[Year]]","v":"MUSTANG SUD2060"}]
[null,101,"MUSTANG SUD","C",2070,17827,162800,681570340,{"$f":"IF(tbl_twdbdata[[#This Row],[Year]]=2016,0,tbl_twdbdata[[#This Row],[effsave]]-0.6*SUMIFS(tbl_twdbdata[effsave],tbl_twdbdata[Year],2020,tbl_twdbdata[utility],tbl_twdbdata[[#This Row],[utility]]))","v":626886916},57041,0,0,0,5336082195,0,0,0,83650334,208273507,{"$f":"tbl_twdbdata[[#This Row],[utility]]&tbl_twdbdata[[#This Row],[Year]]","v":"MUSTANG SUD2070"}]
[null,102,"NACOGDOCHES","I",2016,37000,37000,0,{"$f":"IF(tbl_twdbdata[[#This Row],[Year]]=2016,0,tbl_twdbdata[[#This Row],[effsave]]-0.6*SUMIFS(tbl_twdbdata[effsave],tbl_twdbdata[Year],2020,tbl_twdbdata[utility],tbl_twdbdata[[#This Row],[utility]]))","v":0},9492,6098,1486,1713,518932100,256662600,1279567800,331904900,35949556,424947544,{"$f":"tbl_twdbdata[[#This Row],[utility]]&tbl_twdbdata[[#This Row],[Year]]","v":"NACOGDOCHES2016"}]
[null,102,"NACOGDOCHES","I",2020,35107,37580,134972328,{"$f":"IF(tbl_twdbdata[[#This Row],[Year]]=2016,0,tbl_twdbdata[[#This Row],[effsave]]-0.6*SUMIFS(tbl_twdbdata[effsave],tbl_twdbdata[Year],2020,tbl_twdbdata[utility],tbl_twdbdata[[#This Row],[utility]]))","v":53988931.200000003},10161,6528,1591,1834,555486607,274742374,1369702848,355284876,38481907,454881611,{"$f":"tbl_twdbdata[[#This Row],[utility]]&tbl_twdbdata[[#This Row],[Year]]","v":"NACOGDOCHES2020"}]
[null,102,"NACOGDOCHES","I",2030,35107,42218,217429033,{"$f":"IF(tbl_twdbdata[[#This Row],[Year]]=2016,0,tbl_twdbdata[[#This Row],[effsave]]-0.6*SUMIFS(tbl_twdbdata[effsave],tbl_twdbdata[Year],2020,tbl_twdbdata[utility],tbl_twdbdata[[#This Row],[utility]]))","v":136445636.19999999},11415,7334,1787,2060,624042937,308650174,1538747069,399132967,43231217,511021603,{"$f":"tbl_twdbdata[[#This Row],[utility]]&tbl_twdbdata[[#This Row],[Year]]","v":"NACOGDOCHES2030"}]
[null,102,"NACOGDOCHES","I",2040,35107,46790,290161167,{"$f":"IF(tbl_twdbdata[[#This Row],[Year]]=2016,0,tbl_twdbdata[[#This Row],[effsave]]-0.6*SUMIFS(tbl_twdbdata[effsave],tbl_twdbdata[Year],2020,tbl_twdbdata[utility],tbl_twdbdata[[#This Row],[utility]]))","v":209177770.19999999},12651,8239,2007,2314,691623692,342075457,1705385745,442357088,47912943,566362708,{"$f":"tbl_twdbdata[[#This Row],[utility]]&tbl_twdbdata[[#This Row],[Year]]","v":"NACOGDOCHES2040"}]
[null,102,"NACOGDOCHES","I",2050,35107,51655,346914980,{"$f":"IF(tbl_twdbdata[[#This Row],[Year]]=2016,0,tbl_twdbdata[[#This Row],[effsave]]-0.6*SUMIFS(tbl_twdbdata[effsave],tbl_twdbdata[Year],2020,tbl_twdbdata[utility],tbl_twdbdata[[#This Row],[utility]]))","v":265931583.19999999},13966,9256,2255,2600,763535409,377642824,1882703584,488351258,52894701,625250389,{"$f":"tbl_twdbdata[[#This Row],[utility]]&tbl_twdbdata[[#This Row],[Year]]","v":"NACOGDOCHES2050"}]
[null,102,"NACOGDOCHES","I",2060,35107,56802,387702051,{"$f":"IF(tbl_twdbdata[[#This Row],[Year]]=2016,0,tbl_twdbdata[[#This Row],[effsave]]-0.6*SUMIFS(tbl_twdbdata[effsave],tbl_twdbdata[Year],2020,tbl_twdbdata[utility],tbl_twdbdata[[#This Row],[utility]]))","v":306718654.19999999},15358,10398,2534,2921,839615493,415271855,2070299660,537011483,58165227,687551497,{"$f":"tbl_twdbdata[[#This Row],[utility]]&tbl_twdbdata[[#This Row],[Year]]","v":"NACOGDOCHES2060"}]
[null,102,"NACOGDOCHES","I",2070,35107,62183,426245810,{"$f":"IF(tbl_twdbdata[[#This Row],[Year]]=2016,0,tbl_twdbdata[[#This Row],[effsave]]-0.6*SUMIFS(tbl_twdbdata[effsave],tbl_twdbdata[Year],2020,tbl_twdbdata[utility],tbl_twdbdata[[#This Row],[utility]]))","v":345262413.19999999},16813,11681,2846,3282,919154435,454611629,2266424488,587883966,63675369,752685024,{"$f":"tbl_twdbdata[[#This Row],[utility]]&tbl_twdbdata[[#This Row],[Year]]","v":"NACOGDOCHES2070"}]
[null,2101,"NASSAU BAY","H",2016,4170,4170,0,{"$f":"IF(tbl_twdbdata[[#This Row],[Year]]=2016,0,tbl_twdbdata[[#This Row],[effsave]]-0.6*SUMIFS(tbl_twdbdata[effsave],tbl_twdbdata[Year],2020,tbl_twdbdata[utility],tbl_twdbdata[[#This Row],[utility]]))","v":0},1293,1198,160,0,101353000,84437000,92747000,0,3930345,31960225,{"$f":"tbl_twdbdata[[#This Row],[utility]]&tbl_twdbdata[[#This Row],[Year]]","v":"NASSAU BAY2016"}]
[null,2101,"NASSAU BAY","H",2020,3681,3977,13978956,{"$f":"IF(tbl_twdbdata[[#This Row],[Year]]=2016,0,tbl_twdbdata[[#This Row],[effsave]]-0.6*SUMIFS(tbl_twdbdata[effsave],tbl_twdbdata[Year],2020,tbl_twdbdata[utility],tbl_twdbdata[[#This Row],[utility]]))","v":5591582.4000000004},1397,1294,173,0,109503092,91226827,100205058,0,4246396,34530240,{"$f":"tbl_twdbdata[[#This Row],[utility]]&tbl_twdbdata[[#This Row],[Year]]","v":"NASSAU BAY2020"}]
[null,2101,"NASSAU BAY","H",2030,3681,4075,20838124,{"$f":"IF(tbl_twdbdata[[#This Row],[Year]]=2016,0,tbl_twdbdata[[#This Row],[effsave]]-0.6*SUMIFS(tbl_twdbdata[effsave],tbl_twdbdata[Year],2020,tbl_twdbdata[utility],tbl_twdbdata[[#This Row],[utility]]))","v":12450750.4},1431,1326,177,0,112201433,93474810,102674280,0,4351034,35381123,{"$f":"tbl_twdbdata[[#This Row],[utility]]&tbl_twdbdata[[#This Row],[Year]]","v":"NASSAU BAY2030"}]
[null,2101,"NASSAU BAY","H",2040,3681,4127,26557039,{"$f":"IF(tbl_twdbdata[[#This Row],[Year]]=2016,0,tbl_twdbdata[[#This Row],[effsave]]-0.6*SUMIFS(tbl_twdbdata[effsave],tbl_twdbdata[Year],2020,tbl_twdbdata[utility],tbl_twdbdata[[#This Row],[utility]]))","v":18169665.399999999},1449,1359,181,0,113633206,94667617,103984479,0,4406556,35832612,{"$f":"tbl_twdbdata[[#This Row],[utility]]&tbl_twdbdata[[#This Row],[Year]]","v":"NASSAU BAY2040"}]
[null,2101,"NASSAU BAY","H",2050,3681,4222,28740210,{"$f":"IF(tbl_twdbdata[[#This Row],[Year]]=2016,0,tbl_twdbdata[[#This Row],[effsave]]-0.6*SUMIFS(tbl_twdbdata[effsave],tbl_twdbdata[Year],2020,tbl_twdbdata[utility],tbl_twdbdata[[#This Row],[utility]]))","v":20352836.399999999},1482,1392,185,0,116248945,96846784,106378113,0,4507991,36657448,{"$f":"tbl_twdbdata[[#This Row],[utility]]&tbl_twdbdata[[#This Row],[Year]]","v":"NASSAU BAY2050"}]
[null,2101,"NASSAU BAY","H",2060,3681,4276,29622845,{"$f":"IF(tbl_twdbdata[[#This Row],[Year]]=2016,0,tbl_twdbdata[[#This Row],[effsave]]-0.6*SUMIFS(tbl_twdbdata[effsave],tbl_twdbdata[Year],2020,tbl_twdbdata[utility],tbl_twdbdata[[#This Row],[utility]]))","v":21235471.399999999},1501,1426,190,0,117735786,98085469,107738705,0,4565649,37126302,{"$f":"tbl_twdbdata[[#This Row],[utility]]&tbl_twdbdata[[#This Row],[Year]]","v":"NASSAU BAY2060"}]
[null,2101,"NASSAU BAY","H",2070,3681,4331,30035485,{"$f":"IF(tbl_twdbdata[[#This Row],[Year]]=2016,0,tbl_twdbdata[[#This Row],[effsave]]-0.6*SUMIFS(tbl_twdbdata[effsave],tbl_twdbdata[Year],2020,tbl_twdbdata[utility],tbl_twdbdata[[#This Row],[utility]]))","v":21648111.399999999},1520,1461,195,0,119250161,99347092,109124493,0,4624375,37603839,{"$f":"tbl_twdbdata[[#This Row],[utility]]&tbl_twdbdata[[#This Row],[Year]]","v":"NASSAU BAY2070"}]
[null,2105,"NEDERLAND","I",2016,17565,17565,0,{"$f":"IF(tbl_twdbdata[[#This Row],[Year]]=2016,0,tbl_twdbdata[[#This Row],[effsave]]-0.6*SUMIFS(tbl_twdbdata[effsave],tbl_twdbdata[Year],2020,tbl_twdbdata[utility],tbl_twdbdata[[#This Row],[utility]]))","v":0},6653,1415,612,0,360154000,63350000,135607000,0,8770434,133753261,{"$f":"tbl_twdbdata[[#This Row],[utility]]&tbl_twdbdata[[#This Row],[Year]]","v":"NEDERLAND2016"}]
[null,2105,"NEDERLAND","I",2020,17565,18855,66343203,{"$f":"IF(tbl_twdbdata[[#This Row],[Year]]=2016,0,tbl_twdbdata[[#This Row],[effsave]]-0.6*SUMIFS(tbl_twdbdata[effsave],tbl_twdbdata[Year],2020,tbl_twdbdata[utility],tbl_twdbdata[[#This Row],[utility]]))","v":26537281.200000003},7045,1498,648,0,381350237,67078354,143587914,0,9286603,141625076,{"$f":"tbl_twdbdata[[#This Row],[utility]]&tbl_twdbdata[[#This Row],[Year]]","v":"NEDERLAND2020"}]
[null,2105,"NEDERLAND","I",2030,17565,20071,101756959,{"$f":"IF(tbl_twdbdata[[#This Row],[Year]]=2016,0,tbl_twdbdata[[#This Row],[effsave]]-0.6*SUMIFS(tbl_twdbdata[effsave],tbl_twdbdata[Year],2020,tbl_twdbdata[utility],tbl_twdbdata[[#This Row],[utility]]))","v":61951037.200000003},7499,1595,689,0,405944344,71404383,152848211,0,9885516,150758785,{"$f":"tbl_twdbdata[[#This Row],[utility]]&tbl_twdbdata[[#This Row],[Year]]","v":"NEDERLAND2030"}]
[null,2105,"NEDERLAND","I",2040,17565,21348,133165622,{"$f":"IF(tbl_twdbdata[[#This Row],[Year]]=2016,0,tbl_twdbdata[[#This Row],[effsave]]-0.6*SUMIFS(tbl_twdbdata[effsave],tbl_twdbdata[Year],2020,tbl_twdbdata[utility],tbl_twdbdata[[#This Row],[utility]]))","v":93359700.200000003},7976,1698,733,0,431772201,75947425,162573047,0,10514473,160350682,{"$f":"tbl_twdbdata[[#This Row],[utility]]&tbl_twdbdata[[#This Row],[Year]]","v":"NEDERLAND2040"}]
[null,2105,"NEDERLAND","I",2050,17565,22833,156096663,{"$f":"IF(tbl_twdbdata[[#This Row],[Year]]=2016,0,tbl_twdbdata[[#This Row],[effsave]]-0.6*SUMIFS(tbl_twdbdata[effsave],tbl_twdbdata[Year],2020,tbl_twdbdata[utility],tbl_twdbdata[[#This Row],[utility]]))","v":116290741.2},8531,1808,781,0,461806945,81230446,173881881,0,11245876,171504924,{"$f":"tbl_twdbdata[[#This Row],[utility]]&tbl_twdbdata[[#This Row],[Year]]","v":"NEDERLAND2050"}]
[null,2105,"NEDERLAND","I",2060,17565,24471,170242300,{"$f":"IF(tbl_twdbdata[[#This Row],[Year]]=2016,0,tbl_twdbdata[[#This Row],[effsave]]-0.6*SUMIFS(tbl_twdbdata[effsave],tbl_twdbdata[Year],2020,tbl_twdbdata[utility],tbl_twdbdata[[#This Row],[utility]]))","v":130436378.2},9143,1925,832,0,494936178,87057778,186355867,0,12052636,183808391,{"$f":"tbl_twdbdata[[#This Row],[utility]]&tbl_twdbdata[[#This Row],[Year]]","v":"NEDERLAND2060"}]
[null,2105,"NEDERLAND","I",2070,17565,26306,183776347,{"$f":"IF(tbl_twdbdata[[#This Row],[Year]]=2016,0,tbl_twdbdata[[#This Row],[effsave]]-0.6*SUMIFS(tbl_twdbdata[effsave],tbl_twdbdata[Year],2020,tbl_twdbdata[utility],tbl_twdbdata[[#This Row],[utility]]))","v":143970425.19999999},9829,2049,886,0,532049818,93585955,200330082,0,12956424,197591579,{"$f":"tbl_twdbdata[[#This Row],[utility]]&tbl_twdbdata[[#This Row],[Year]]","v":"NEDERLAND2070"}]
[null,2109,"NEW BRAUNFELS","L",2016,89419,89419,0,{"$f":"IF(tbl_twdbdata[[#This Row],[Year]]=2016,0,tbl_twdbdata[[#This Row],[effsave]]-0.6*SUMIFS(tbl_twdbdata[effsave],tbl_twdbdata[Year],2020,tbl_twdbdata[utility],tbl_twdbdata[[#This Row],[utility]]))","v":0},26113,390,2228,5822,1944556153,233544242,776414543,590242461,null,null,{"$f":"tbl_twdbdata[[#This Row],[utility]]&tbl_twdbdata[[#This Row],[Year]]","v":"NEW BRAUNFELS2016"}]
[null,2109,"NEW BRAUNFELS","L",2020,83446,75462,238527836,{"$f":"IF(tbl_twdbdata[[#This Row],[Year]]=2016,0,tbl_twdbdata[[#This Row],[effsave]]-0.6*SUMIFS(tbl_twdbdata[effsave],tbl_twdbdata[Year],2020,tbl_twdbdata[utility],tbl_twdbdata[[#This Row],[utility]]))","v":95411134.400000006},23615,353,2015,5265,1758503660,211199046,702128253,533768864,null,null,{"$f":"tbl_twdbdata[[#This Row],[utility]]&tbl_twdbdata[[#This Row],[Year]]","v":"NEW BRAUNFELS2020"}]
[null,2109,"NEW BRAUNFELS","L",2030,83446,93398,401924283,{"$f":"IF(tbl_twdbdata[[#This Row],[Year]]=2016,0,tbl_twdbdata[[#This Row],[effsave]]-0.6*SUMIFS(tbl_twdbdata[effsave],tbl_twdbdata[Year],2020,tbl_twdbdata[utility],tbl_twdbdata[[#This Row],[utility]]))","v":258807581.40000001},29228,437,2494,6516,2176469280,261397372,869011881,660636405,null,null,{"$f":"tbl_twdbdata[[#This Row],[utility]]&tbl_twdbdata[[#This Row],[Year]]","v":"NEW BRAUNFELS2030"}]
[null,2109,"NEW BRAUNFELS","L",2040,83446,112241,551019129,{"$f":"IF(tbl_twdbdata[[#This Row],[Year]]=2016,0,tbl_twdbdata[[#This Row],[effsave]]-0.6*SUMIFS(tbl_twdbdata[effsave],tbl_twdbdata[Year],2020,tbl_twdbdata[utility],tbl_twdbdata[[#This Row],[utility]]))","v":407902427.39999998},35125,541,3087,8065,2615570874,314134162,1044334595,793919471,null,null,{"$f":"tbl_twdbdata[[#This Row],[utility]]&tbl_twdbdata[[#This Row],[Year]]","v":"NEW BRAUNFELS2040"}]
[null,2109,"NEW BRAUNFELS","L",2050,83446,130879,680256690,{"$f":"IF(tbl_twdbdata[[#This Row],[Year]]=2016,0,tbl_twdbdata[[#This Row],[effsave]]-0.6*SUMIFS(tbl_twdbdata[effsave],tbl_twdbdata[Year],2020,tbl_twdbdata[utility],tbl_twdbdata[[#This Row],[utility]]))","v":537139988.39999998},40958,670,3821,9982,3049895318,366297209,1217749908,925752501,null,null,{"$f":"tbl_twdbdata[[#This Row],[utility]]&tbl_twdbdata[[#This Row],[Year]]","v":"NEW BRAUNFELS2050"}]
[null,2109,"NEW BRAUNFELS","L",2060,83446,149453,789343492,{"$f":"IF(tbl_twdbdata[[#This Row],[Year]]=2016,0,tbl_twdbdata[[#This Row],[effsave]]-0.6*SUMIFS(tbl_twdbdata[effsave],tbl_twdbdata[Year],2020,tbl_twdbdata[utility],tbl_twdbdata[[#This Row],[utility]]))","v":646226790.39999998},46771,829,4729,12355,3482728359,418281136,1390569740,1057132837,null,null,{"$f":"tbl_twdbdata[[#This Row],[utility]]&tbl_twdbdata[[#This Row],[Year]]","v":"NEW BRAUNFELS2060"}]
[null,2109,"NEW BRAUNFELS","L",2070,83446,167339,888695594,{"$f":"IF(tbl_twdbdata[[#This Row],[Year]]=2016,0,tbl_twdbdata[[#This Row],[effsave]]-0.6*SUMIFS(tbl_twdbdata[effsave],tbl_twdbdata[Year],2020,tbl_twdbdata[utility],tbl_twdbdata[[#This Row],[utility]]))","v":745578892.39999998},52368,1026,5853,15292,3899528821,468339525,1556988148,1183646710,null,null,{"$f":"tbl_twdbdata[[#This Row],[utility]]&tbl_twdbdata[[#This Row],[Year]]","v":"NEW BRAUNFELS2070"}]
[null,2110,"NEW CANEY MUD","H",2016,14707,14707,0,{"$f":"IF(tbl_twdbdata[[#This Row],[Year]]=2016,0,tbl_twdbdata[[#This Row],[effsave]]-0.6*SUMIFS(tbl_twdbdata[effsave],tbl_twdbdata[Year],2020,tbl_twdbdata[utility],tbl_twdbdata[[#This Row],[utility]]))","v":0},3893,19,290,0,233569000,41392000,17069000,0,7893041,41360242,{"$f":"tbl_twdbdata[[#This Row],[utility]]&tbl_twdbdata[[#This Row],[Year]]","v":"NEW CANEY MUD2016"}]
[null,2110,"NEW CANEY MUD","H",2020,8765,9351,33448527,{"$f":"IF(tbl_twdbdata[[#This Row],[Year]]=2016,0,tbl_twdbdata[[#This Row],[effsave]]-0.6*SUMIFS(tbl_twdbdata[effsave],tbl_twdbdata[Year],2020,tbl_twdbdata[utility],tbl_twdbdata[[#This Row],[utility]]))","v":13379410.800000001},4153,20,309,0,249184680,44159337,18210179,0,8420745,44125456,{"$f":"tbl_twdbdata[[#This Row],[utility]]&tbl_twdbdata[[#This Row],[Year]]","v":"NEW CANEY MUD2020"}]
[null,2110,"NEW CANEY MUD","H",2030,8765,10341,52917999,{"$f":"IF(tbl_twdbdata[[#This Row],[Year]]=2016,0,tbl_twdbdata[[#This Row],[effsave]]-0.6*SUMIFS(tbl_twdbdata[effsave],tbl_twdbdata[Year],2020,tbl_twdbdata[utility],tbl_twdbdata[[#This Row],[utility]]))","v":32848882.800000001},4593,22,342,0,275566119,48834531,20138109,0,9312258,48797063,{"$f":"tbl_twdbdata[[#This Row],[utility]]&tbl_twdbdata[[#This Row],[Year]]","v":"NEW CANEY MUD2030"}]
[null,2110,"NEW CANEY MUD","H",2040,8765,11406,70607702,{"$f":"IF(tbl_twdbdata[[#This Row],[Year]]=2016,0,tbl_twdbdata[[#This Row],[effsave]]-0.6*SUMIFS(tbl_twdbdata[effsave],tbl_twdbdata[Year],2020,tbl_twdbdata[utility],tbl_twdbdata[[#This Row],[utility]]))","v":50538585.799999997},5066,24,378,0,303946152,53863907,22212095,0,10271310,53822580,{"$f":"tbl_twdbdata[[#This Row],[utility]]&tbl_twdbdata[[#This Row],[Year]]","v":"NEW CANEY MUD2040"}]
[null,2110,"NEW CANEY MUD","H",2050,8765,12680,85297726,{"$f":"IF(tbl_twdbdata[[#This Row],[Year]]=2016,0,tbl_twdbdata[[#This Row],[effsave]]-0.6*SUMIFS(tbl_twdbdata[effsave],tbl_twdbdata[Year],2020,tbl_twdbdata[utility],tbl_twdbdata[[#This Row],[utility]]))","v":65228609.799999997},5632,27,418,0,337895599,59880268,24693088,0,11418570,59834325,{"$f":"tbl_twdbdata[[#This Row],[utility]]&tbl_twdbdata[[#This Row],[Year]]","v":"NEW CANEY MUD2050"}]
[null,2110,"NEW CANEY MUD","H",2060,8765,14214,97277063,{"$f":"IF(tbl_twdbdata[[#This Row],[Year]]=2016,0,tbl_twdbdata[[#This Row],[effsave]]-0.6*SUMIFS(tbl_twdbdata[effsave],tbl_twdbdata[Year],2020,tbl_twdbdata[utility],tbl_twdbdata[[#This Row],[utility]]))","v":77207946.799999997},6313,30,462,0,378773505,67124458,27680406,0,12799965,67072957,{"$f":"tbl_twdbdata[[#This Row],[utility]]&tbl_twdbdata[[#This Row],[Year]]","v":"NEW CANEY MUD2060"}]
[null,2110,"NEW CANEY MUD","H",2070,8765,16078,110679344,{"$f":"IF(tbl_twdbdata[[#This Row],[Year]]=2016,0,tbl_twdbdata[[#This Row],[effsave]]-0.6*SUMIFS(tbl_twdbdata[effsave],tbl_twdbdata[Year],2020,tbl_twdbdata[utility],tbl_twdbdata[[#This Row],[utility]]))","v":90610227.799999997},7141,33,511,0,428445224,75927046,31310368,0,14478531,75868792,{"$f":"tbl_twdbdata[[#This Row],[utility]]&tbl_twdbdata[[#This Row],[Year]]","v":"NEW CANEY MUD2070"}]
[null,103,"NORTH ALAMO WSC","M",2016,133383,133383,0,{"$f":"IF(tbl_twdbdata[[#This Row],[Year]]=2016,0,tbl_twdbdata[[#This Row],[effsave]]-0.6*SUMIFS(tbl_twdbdata[effsave],tbl_twdbdata[Year],2020,tbl_twdbdata[utility],tbl_twdbdata[[#This Row],[utility]]))","v":0},43945,0,0,0,6190850300,0,0,0,null,null,{"$f":"tbl_twdbdata[[#This Row],[utility]]&tbl_twdbdata[[#This Row],[Year]]","v":"NORTH ALAMO WSC2016"}]
[null,103,"NORTH ALAMO WSC","M",2020,133383,173944,525693557,{"$f":"IF(tbl_twdbdata[[#This Row],[Year]]=2016,0,tbl_twdbdata[[#This Row],[effsave]]-0.6*SUMIFS(tbl_twdbdata[effsave],tbl_twdbdata[Year],2020,tbl_twdbdata[utility],tbl_twdbdata[[#This Row],[utility]]))","v":210277422.80000001},51661,0,0,0,7277810729,0,0,0,null,null,{"$f":"tbl_twdbdata[[#This Row],[utility]]&tbl_twdbdata[[#This Row],[Year]]","v":"NORTH ALAMO WSC2020"}]
[null,103,"NORTH ALAMO WSC","M",2030,133383,214383,867790227,{"$f":"IF(tbl_twdbdata[[#This Row],[Year]]=2016,0,tbl_twdbdata[[#This Row],[effsave]]-0.6*SUMIFS(tbl_twdbdata[effsave],tbl_twdbdata[Year],2020,tbl_twdbdata[utility],tbl_twdbdata[[#This Row],[utility]]))","v":552374092.79999995},63671,0,0,0,8969777040,0,0,0,null,null,{"$f":"tbl_twdbdata[[#This Row],[utility]]&tbl_twdbdata[[#This Row],[Year]]","v":"NORTH ALAMO WSC2030"}]
[null,103,"NORTH ALAMO WSC","M",2040,133383,254903,1166716521,{"$f":"IF(tbl_twdbdata[[#This Row],[Year]]=2016,0,tbl_twdbdata[[#This Row],[effsave]]-0.6*SUMIFS(tbl_twdbdata[effsave],tbl_twdbdata[Year],2020,tbl_twdbdata[utility],tbl_twdbdata[[#This Row],[utility]]))","v":851300386.79999995},75705,0,0,0,10665132388,0,0,0,null,null,{"$f":"tbl_twdbdata[[#This Row],[utility]]&tbl_twdbdata[[#This Row],[Year]]","v":"NORTH ALAMO WSC2040"}]
[null,103,"NORTH ALAMO WSC","M",2050,133383,295617,1428598714,{"$f":"IF(tbl_twdbdata[[#This Row],[Year]]=2016,0,tbl_twdbdata[[#This Row],[effsave]]-0.6*SUMIFS(tbl_twdbdata[effsave],tbl_twdbdata[Year],2020,tbl_twdbdata[utility],tbl_twdbdata[[#This Row],[utility]]))","v":1113182579.8},87797,0,0,0,12368604689,0,0,0,null,null,{"$f":"tbl_twdbdata[[#This Row],[utility]]&tbl_twdbdata[[#This Row],[Year]]","v":"NORTH ALAMO WSC2050"}]
[null,103,"NORTH ALAMO WSC","M",2060,133383,336278,1654555016,{"$f":"IF(tbl_twdbdata[[#This Row],[Year]]=2016,0,tbl_twdbdata[[#This Row],[effsave]]-0.6*SUMIFS(tbl_twdbdata[effsave],tbl_twdbdata[Year],2020,tbl_twdbdata[utility],tbl_twdbdata[[#This Row],[utility]]))","v":1339138881.8},99873,0,0,0,14069859472,0,0,0,null,null,{"$f":"tbl_twdbdata[[#This Row],[utility]]&tbl_twdbdata[[#This Row],[Year]]","v":"NORTH ALAMO WSC2060"}]
[null,103,"NORTH ALAMO WSC","M",2070,133383,375825,1860108255,{"$f":"IF(tbl_twdbdata[[#This Row],[Year]]=2016,0,tbl_twdbdata[[#This Row],[effsave]]-0.6*SUMIFS(tbl_twdbdata[effsave],tbl_twdbdata[Year],2020,tbl_twdbdata[utility],tbl_twdbdata[[#This Row],[utility]]))","v":1544692120.8},111618,0,0,0,15724504535,0,0,0,null,null,{"$f":"tbl_twdbdata[[#This Row],[utility]]&tbl_twdbdata[[#This Row],[Year]]","v":"NORTH ALAMO WSC2070"}]
[null,2129,"NORTH AUSTIN MUD 1","K",2016,11097,11097,0,{"$f":"IF(tbl_twdbdata[[#This Row],[Year]]=2016,0,tbl_twdbdata[[#This Row],[effsave]]-0.6*SUMIFS(tbl_twdbdata[effsave],tbl_twdbdata[Year],2020,tbl_twdbdata[utility],tbl_twdbdata[[#This Row],[utility]]))","v":0},2567,1144,45,0,191191000,41854000,71183000,0,4090152,18893970,{"$f":"tbl_twdbdata[[#This Row],[utility]]&tbl_twdbdata[[#This Row],[Year]]","v":"NORTH AUSTIN MUD 12016"}]
[null,2129,"NORTH AUSTIN MUD 1","K",2020,7993,8222,24518415,{"$f":"IF(tbl_twdbdata[[#This Row],[Year]]=2016,0,tbl_twdbdata[[#This Row],[effsave]]-0.6*SUMIFS(tbl_twdbdata[effsave],tbl_twdbdata[Year],2020,tbl_twdbdata[utility],tbl_twdbdata[[#This Row],[utility]]))","v":9807366},2641,1177,46,0,196668635,43053120,73222398,0,4207335,19435284,{"$f":"tbl_twdbdata[[#This Row],[utility]]&tbl_twdbdata[[#This Row],[Year]]","v":"NORTH AUSTIN MUD 12020"}]
[null,2129,"NORTH AUSTIN MUD 1","K",2030,7993,8222,34151721,{"$f":"IF(tbl_twdbdata[[#This Row],[Year]]=2016,0,tbl_twdbdata[[#This Row],[effsave]]-0.6*SUMIFS(tbl_twdbdata[effsave],tbl_twdbdata[Year],2020,tbl_twdbdata[utility],tbl_twdbdata[[#This Row],[utility]]))","v":19440672},2641,1177,46,0,196668635,43053120,73222398,0,4207335,19435284,{"$f":"tbl_twdbdata[[#This Row],[utility]]&tbl_twdbdata[[#This Row],[Year]]","v":"NORTH AUSTIN MUD 12030"}]
[null,2129,"NORTH AUSTIN MUD 1","K",2040,7993,8222,41834358,{"$f":"IF(tbl_twdbdata[[#This Row],[Year]]=2016,0,tbl_twdbdata[[#This Row],[effsave]]-0.6*SUMIFS(tbl_twdbdata[effsave],tbl_twdbdata[Year],2020,tbl_twdbdata[utility],tbl_twdbdata[[#This Row],[utility]]))","v":27123309},2641,1177,46,0,196668635,43053120,73222398,0,4207335,19435284,{"$f":"tbl_twdbdata[[#This Row],[utility]]&tbl_twdbdata[[#This Row],[Year]]","v":"NORTH AUSTIN MUD 12040"}]
[null,2129,"NORTH AUSTIN MUD 1","K",2050,7993,8222,46155841,{"$f":"IF(tbl_twdbdata[[#This Row],[Year]]=2016,0,tbl_twdbdata[[#This Row],[effsave]]-0.6*SUMIFS(tbl_twdbdata[effsave],tbl_twdbdata[Year],2020,tbl_twdbdata[utility],tbl_twdbdata[[#This Row],[utility]]))","v":31444792},2641,1177,46,0,196668635,43053120,73222398,0,4207335,19435284,{"$f":"tbl_twdbdata[[#This Row],[utility]]&tbl_twdbdata[[#This Row],[Year]]","v":"NORTH AUSTIN MUD 12050"}]
[null,2129,"NORTH AUSTIN MUD 1","K",2060,7993,8222,47146181,{"$f":"IF(tbl_twdbdata[[#This Row],[Year]]=2016,0,tbl_twdbdata[[#This Row],[effsave]]-0.6*SUMIFS(tbl_twdbdata[effsave],tbl_twdbdata[Year],2020,tbl_twdbdata[utility],tbl_twdbdata[[#This Row],[utility]]))","v":32435132},2641,1177,46,0,196668635,43053120,73222398,0,4207335,19435284,{"$f":"tbl_twdbdata[[#This Row],[utility]]&tbl_twdbdata[[#This Row],[Year]]","v":"NORTH AUSTIN MUD 12060"}]
[null,2129,"NORTH AUSTIN MUD 1","K",2070,7993,8222,47146181,{"$f":"IF(tbl_twdbdata[[#This Row],[Year]]=2016,0,tbl_twdbdata[[#This Row],[effsave]]-0.6*SUMIFS(tbl_twdbdata[effsave],tbl_twdbdata[Year],2020,tbl_twdbdata[utility],tbl_twdbdata[[#This Row],[utility]]))","v":32435132},2641,1177,46,0,196668635,43053120,73222398,0,4207335,19435284,{"$f":"tbl_twdbdata[[#This Row],[utility]]&tbl_twdbdata[[#This Row],[Year]]","v":"NORTH AUSTIN MUD 12070"}]
[null,6453,"NORTH FOREST MUD","H",2016,1545,1545,0,{"$f":"IF(tbl_twdbdata[[#This Row],[Year]]=2016,0,tbl_twdbdata[[#This Row],[effsave]]-0.6*SUMIFS(tbl_twdbdata[effsave],tbl_twdbdata[Year],2020,tbl_twdbdata[utility],tbl_twdbdata[[#This Row],[utility]]))","v":0},497,0,18,0,36325000,0,5742000,0,null,null,{"$f":"tbl_twdbdata[[#This Row],[utility]]&tbl_twdbdata[[#This Row],[Year]]","v":"NORTH FOREST MUD2016"}]
[null,6453,"NORTH FOREST MUD","H",2020,1392,1500,4818000,{"$f":"IF(tbl_twdbdata[[#This Row],[Year]]=2016,0,tbl_twdbdata[[#This Row],[effsave]]-0.6*SUMIFS(tbl_twdbdata[effsave],tbl_twdbdata[Year],2020,tbl_twdbdata[utility],tbl_twdbdata[[#This Row],[utility]]))","v":1927200},536,0,19,0,39143319,0,6187500,0,null,null,{"$f":"tbl_twdbdata[[#This Row],[utility]]&tbl_twdbdata[[#This Row],[Year]]","v":"NORTH FOREST MUD2020"}]
[null,6453,"NORTH FOREST MUD","H",2030,1392,1527,6426303,{"$f":"IF(tbl_twdbdata[[#This Row],[Year]]=2016,0,tbl_twdbdata[[#This Row],[effsave]]-0.6*SUMIFS(tbl_twdbdata[effsave],tbl_twdbdata[Year],2020,tbl_twdbdata[utility],tbl_twdbdata[[#This Row],[utility]]))","v":3535503},546,0,19,0,39847899,0,6298875,0,null,null,{"$f":"tbl_twdbdata[[#This Row],[utility]]&tbl_twdbdata[[#This Row],[Year]]","v":"NORTH FOREST MUD2030"}]
[null,6453,"NORTH FOREST MUD","H",2040,1392,1527,7418395,{"$f":"IF(tbl_twdbdata[[#This Row],[Year]]=2016,0,tbl_twdbdata[[#This Row],[effsave]]-0.6*SUMIFS(tbl_twdbdata[effsave],tbl_twdbdata[Year],2020,tbl_twdbdata[utility],tbl_twdbdata[[#This Row],[utility]]))","v":4527595},546,0,19,0,39847899,0,6298875,0,null,null,{"$f":"tbl_twdbdata[[#This Row],[utility]]&tbl_twdbdata[[#This Row],[Year]]","v":"NORTH FOREST MUD2040"}]
[null,6453,"NORTH FOREST MUD","H",2050,1392,1527,7936735,{"$f":"IF(tbl_twdbdata[[#This Row],[Year]]=2016,0,tbl_twdbdata[[#This Row],[effsave]]-0.6*SUMIFS(tbl_twdbdata[effsave],tbl_twdbdata[Year],2020,tbl_twdbdata[utility],tbl_twdbdata[[#This Row],[utility]]))","v":5045935},546,0,19,0,39847899,0,6298875,0,null,null,{"$f":"tbl_twdbdata[[#This Row],[utility]]&tbl_twdbdata[[#This Row],[Year]]","v":"NORTH FOREST MUD2050"}]
[null,6453,"NORTH FOREST MUD","H",2060,1392,1527,8081648,{"$f":"IF(tbl_twdbdata[[#This Row],[Year]]=2016,0,tbl_twdbdata[[#This Row],[effsave]]-0.6*SUMIFS(tbl_twdbdata[effsave],tbl_twdbdata[Year],2020,tbl_twdbdata[utility],tbl_twdbdata[[#This Row],[utility]]))","v":5190848},546,0,19,0,39847899,0,6298875,0,null,null,{"$f":"tbl_twdbdata[[#This Row],[utility]]&tbl_twdbdata[[#This Row],[Year]]","v":"NORTH FOREST MUD2060"}]
[null,6453,"NORTH FOREST MUD","H",2070,1392,1527,8109515,{"$f":"IF(tbl_twdbdata[[#This Row],[Year]]=2016,0,tbl_twdbdata[[#This Row],[effsave]]-0.6*SUMIFS(tbl_twdbdata[effsave],tbl_twdbdata[Year],2020,tbl_twdbdata[utility],tbl_twdbdata[[#This Row],[utility]]))","v":5218715},546,0,19,0,39847899,0,6298875,0,null,null,{"$f":"tbl_twdbdata[[#This Row],[utility]]&tbl_twdbdata[[#This Row],[Year]]","v":"NORTH FOREST MUD2070"}]
[null,6455,"NORTH KAUFMAN WSC","C",2016,2247,2247,0,{"$f":"IF(tbl_twdbdata[[#This Row],[Year]]=2016,0,tbl_twdbdata[[#This Row],[effsave]]-0.6*SUMIFS(tbl_twdbdata[effsave],tbl_twdbdata[Year],2020,tbl_twdbdata[utility],tbl_twdbdata[[#This Row],[utility]]))","v":0},749,0,0,0,39215640,0,0,0,1275000,4581360,{"$f":"tbl_twdbdata[[#This Row],[utility]]&tbl_twdbdata[[#This Row],[Year]]","v":"NORTH KAUFMAN WSC2016"}]
[null,6455,"NORTH KAUFMAN WSC","C",2020,2101,2818,10553128,{"$f":"IF(tbl_twdbdata[[#This Row],[Year]]=2016,0,tbl_twdbdata[[#This Row],[effsave]]-0.6*SUMIFS(tbl_twdbdata[effsave],tbl_twdbdata[Year],2020,tbl_twdbdata[utility],tbl_twdbdata[[#This Row],[utility]]))","v":4221251.2},1005,0,0,0,52598607,0,0,0,1710114,6144823,{"$f":"tbl_twdbdata[[#This Row],[utility]]&tbl_twdbdata[[#This Row],[Year]]","v":"NORTH KAUFMAN WSC2020"}]
[null,6455,"NORTH KAUFMAN WSC","C",2030,2101,3647,14895624,{"$f":"IF(tbl_twdbdata[[#This Row],[Year]]=2016,0,tbl_twdbdata[[#This Row],[effsave]]-0.6*SUMIFS(tbl_twdbdata[effsave],tbl_twdbdata[Year],2020,tbl_twdbdata[utility],tbl_twdbdata[[#This Row],[utility]]))","v":8563747.1999999993},1301,0,0,0,68072079,0,0,0,2213196,7952509,{"$f":"tbl_twdbdata[[#This Row],[utility]]&tbl_twdbdata[[#This Row],[Year]]","v":"NORTH KAUFMAN WSC2030"}]
[null,6455,"NORTH KAUFMAN WSC","C",2040,2101,4471,18261129,{"$f":"IF(tbl_twdbdata[[#This Row],[Year]]=2016,0,tbl_twdbdata[[#This Row],[effsave]]-0.6*SUMIFS(tbl_twdbdata[effsave],tbl_twdbdata[Year],2020,tbl_twdbdata[utility],tbl_twdbdata[[#This Row],[utility]]))","v":11929252.199999999},1595,0,0,0,83452225,0,0,0,2713244,9749292,{"$f":"tbl_twdbdata[[#This Row],[utility]]&tbl_twdbdata[[#This Row],[Year]]","v":"NORTH KAUFMAN WSC2040"}]
[null,6455,"NORTH KAUFMAN WSC","C",2050,2101,5952,24310051,{"$f":"IF(tbl_twdbdata[[#This Row],[Year]]=2016,0,tbl_twdbdata[[#This Row],[effsave]]-0.6*SUMIFS(tbl_twdbdata[effsave],tbl_twdbdata[Year],2020,tbl_twdbdata[utility],tbl_twdbdata[[#This Row],[utility]]))","v":17978174.199999999},2123,0,0,0,111095425,0,0,0,3611995,12978704,{"$f":"tbl_twdbdata[[#This Row],[utility]]&tbl_twdbdata[[#This Row],[Year]]","v":"NORTH KAUFMAN WSC2050"}]
[null,6455,"NORTH KAUFMAN WSC","C",2060,2101,8322,33989961,{"$f":"IF(tbl_twdbdata[[#This Row],[Year]]=2016,0,tbl_twdbdata[[#This Row],[effsave]]-0.6*SUMIFS(tbl_twdbdata[effsave],tbl_twdbdata[Year],2020,tbl_twdbdata[utility],tbl_twdbdata[[#This Row],[utility]]))","v":27658084.199999999},2968,0,0,0,155332011,0,0,0,5050239,18146636,{"$f":"tbl_twdbdata[[#This Row],[utility]]&tbl_twdbdata[[#This Row],[Year]]","v":"NORTH KAUFMAN WSC2060"}]
[null,6455,"NORTH KAUFMAN WSC","C",2070,2101,11103,45348538,{"$f":"IF(tbl_twdbdata[[#This Row],[Year]]=2016,0,tbl_twdbdata[[#This Row],[effsave]]-0.6*SUMIFS(tbl_twdbdata[effsave],tbl_twdbdata[Year],2020,tbl_twdbdata[utility],tbl_twdbdata[[#This Row],[utility]]))","v":39016661.200000003},3960,0,0,0,207240005,0,0,0,6737900,24210779,{"$f":"tbl_twdbdata[[#This Row],[utility]]&tbl_twdbdata[[#This Row],[Year]]","v":"NORTH KAUFMAN WSC2070"}]
[null,107,"NORTH RICHLAND HILLS","C",2016,67000,67000,0,{"$f":"IF(tbl_twdbdata[[#This Row],[Year]]=2016,0,tbl_twdbdata[[#This Row],[effsave]]-0.6*SUMIFS(tbl_twdbdata[effsave],tbl_twdbdata[Year],2020,tbl_twdbdata[utility],tbl_twdbdata[[#This Row],[utility]]))","v":0},19736,410,1499,0,1884618550,377632104,639537869,0,63676310,235903571,{"$f":"tbl_twdbdata[[#This Row],[utility]]&tbl_twdbdata[[#This Row],[Year]]","v":"NORTH RICHLAND HILLS2016"}]
[null,107,"NORTH RICHLAND HILLS","C",2020,63939,72102,246592445,{"$f":"IF(tbl_twdbdata[[#This Row],[Year]]=2016,0,tbl_twdbdata[[#This Row],[effsave]]-0.6*SUMIFS(tbl_twdbdata[effsave],tbl_twdbdata[Year],2020,tbl_twdbdata[utility],tbl_twdbdata[[#This Row],[utility]]))","v":98636978},22256,462,1690,0,2125225085,425843851,721186747,0,71805773,266021040,{"$f":"tbl_twdbdata[[#This Row],[utility]]&tbl_twdbdata[[#This Row],[Year]]","v":"NORTH RICHLAND HILLS2020"}]
[null,107,"NORTH RICHLAND HILLS","C",2030,63939,77480,365945788,{"$f":"IF(tbl_twdbdata[[#This Row],[Year]]=2016,0,tbl_twdbdata[[#This Row],[effsave]]-0.6*SUMIFS(tbl_twdbdata[effsave],tbl_twdbdata[Year],2020,tbl_twdbdata[utility],tbl_twdbdata[[#This Row],[utility]]))","v":217990321},23916,496,1816,0,2283743025,457607023,774979184,0,77161678,285863224,{"$f":"tbl_twdbdata[[#This Row],[utility]]&tbl_twdbdata[[#This Row],[Year]]","v":"NORTH RICHLAND HILLS2030"}]
[null,107,"NORTH RICHLAND HILLS","C",2040,63939,77480,432404258,{"$f":"IF(tbl_twdbdata[[#This Row],[Year]]=2016,0,tbl_twdbdata[[#This Row],[effsave]]-0.6*SUMIFS(tbl_twdbdata[effsave],tbl_twdbdata[Year],2020,tbl_twdbdata[utility],tbl_twdbdata[[#This Row],[utility]]))","v":284448791},23916,533,1952,0,2283743025,457607023,774979184,0,77161678,285863224,{"$f":"tbl_twdbdata[[#This Row],[utility]]&tbl_twdbdata[[#This Row],[Year]]","v":"NORTH RICHLAND HILLS2040"}]
[null,107,"NORTH RICHLAND HILLS","C",2050,63939,77480,469451320,{"$f":"IF(tbl_twdbdata[[#This Row],[Year]]=2016,0,tbl_twdbdata[[#This Row],[effsave]]-0.6*SUMIFS(tbl_twdbdata[effsave],tbl_twdbdata[Year],2020,tbl_twdbdata[utility],tbl_twdbdata[[#This Row],[utility]]))","v":321495853},23916,573,2098,0,2283743025,457607023,774979184,0,77161678,285863224,{"$f":"tbl_twdbdata[[#This Row],[utility]]&tbl_twdbdata[[#This Row],[Year]]","v":"NORTH RICHLAND HILLS2050"}]
[null,107,"NORTH RICHLAND HILLS","C",2060,63939,77480,477086974,{"$f":"IF(tbl_twdbdata[[#This Row],[Year]]=2016,0,tbl_twdbdata[[#This Row],[effsave]]-0.6*SUMIFS(tbl_twdbdata[effsave],tbl_twdbdata[Year],2020,tbl_twdbdata[utility],tbl_twdbdata[[#This Row],[utility]]))","v":329131507},23916,616,2254,0,2283743025,457607023,774979184,0,77161678,285863224,{"$f":"tbl_twdbdata[[#This Row],[utility]]&tbl_twdbdata[[#This Row],[Year]]","v":"NORTH RICHLAND HILLS2060"}]
[null,107,"NORTH RICHLAND HILLS","C",2070,63939,77480,477652578,{"$f":"IF(tbl_twdbdata[[#This Row],[Year]]=2016,0,tbl_twdbdata[[#This Row],[effsave]]-0.6*SUMIFS(tbl_twdbdata[effsave],tbl_twdbdata[Year],2020,tbl_twdbdata[utility],tbl_twdbdata[[#This Row],[utility]]))","v":329697111},23916,662,2422,0,2283743025,457607023,774979184,0,77161678,285863224,{"$f":"tbl_twdbdata[[#This Row],[utility]]&tbl_twdbdata[[#This Row],[Year]]","v":"NORTH RICHLAND HILLS2070"}]
[null,6459,"NORTH SAN SABA WSC","K",2016,850,850,0,{"$f":"IF(tbl_twdbdata[[#This Row],[Year]]=2016,0,tbl_twdbdata[[#This Row],[effsave]]-0.6*SUMIFS(tbl_twdbdata[effsave],tbl_twdbdata[Year],2020,tbl_twdbdata[utility],tbl_twdbdata[[#This Row],[utility]]))","v":0},305,0,2,0,22000680,0,1985620,0,null,null,{"$f":"tbl_twdbdata[[#This Row],[utility]]&tbl_twdbdata[[#This Row],[Year]]","v":"NORTH SAN SABA WSC2016"}]
[null,6459,"NORTH SAN SABA WSC","K",2020,647,647,2016764,{"$f":"IF(tbl_twdbdata[[#This Row],[Year]]=2016,0,tbl_twdbdata[[#This Row],[effsave]]-0.6*SUMIFS(tbl_twdbdata[effsave],tbl_twdbdata[Year],2020,tbl_twdbdata[utility],tbl_twdbdata[[#This Row],[utility]]))","v":806705.60000000009},305,0,2,0,22000680,0,1985620,0,null,null,{"$f":"tbl_twdbdata[[#This Row],[utility]]&tbl_twdbdata[[#This Row],[Year]]","v":"NORTH SAN SABA WSC2020"}]
[null,6459,"NORTH SAN SABA WSC","K",2030,647,678,2989438,{"$f":"IF(tbl_twdbdata[[#This Row],[Year]]=2016,0,tbl_twdbdata[[#This Row],[effsave]]-0.6*SUMIFS(tbl_twdbdata[effsave],tbl_twdbdata[Year],2020,tbl_twdbdata[utility],tbl_twdbdata[[#This Row],[utility]]))","v":1779379.6},320,0,2,0,23054808,0,2080758,0,null,null,{"$f":"tbl_twdbdata[[#This Row],[utility]]&tbl_twdbdata[[#This Row],[Year]]","v":"NORTH SAN SABA WSC2030"}]
[null,6459,"NORTH SAN SABA WSC","K",2040,647,681,3629049,{"$f":"IF(tbl_twdbdata[[#This Row],[Year]]=2016,0,tbl_twdbdata[[#This Row],[effsave]]-0.6*SUMIFS(tbl_twdbdata[effsave],tbl_twdbdata[Year],2020,tbl_twdbdata[utility],tbl_twdbdata[[#This Row],[utility]]))","v":2418990.6},321,0,2,0,23156820,0,2089965,0,null,null,{"$f":"tbl_twdbdata[[#This Row],[utility]]&tbl_twdbdata[[#This Row],[Year]]","v":"NORTH SAN SABA WSC2040"}]
[null,6459,"NORTH SAN SABA WSC","K",2050,647,671,3916191,{"$f":"IF(tbl_twdbdata[[#This Row],[Year]]=2016,0,tbl_twdbdata[[#This Row],[effsave]]-0.6*SUMIFS(tbl_twdbdata[effsave],tbl_twdbdata[Year],2020,tbl_twdbdata[utility],tbl_twdbdata[[#This Row],[utility]]))","v":2706132.6},316,0,2,0,22816779,0,2059275,0,null,null,{"$f":"tbl_twdbdata[[#This Row],[utility]]&tbl_twdbdata[[#This Row],[Year]]","v":"NORTH SAN SABA WSC2050"}]
[null,6459,"NORTH SAN SABA WSC","K",2060,647,686,4083861,{"$f":"IF(tbl_twdbdata[[#This Row],[Year]]=2016,0,tbl_twdbdata[[#This Row],[effsave]]-0.6*SUMIFS(tbl_twdbdata[effsave],tbl_twdbdata[Year],2020,tbl_twdbdata[utility],tbl_twdbdata[[#This Row],[utility]]))","v":2873802.6},323,0,2,0,23326841,0,2105309,0,null,null,{"$f":"tbl_twdbdata[[#This Row],[utility]]&tbl_twdbdata[[#This Row],[Year]]","v":"NORTH SAN SABA WSC2060"}]
[null,6459,"NORTH SAN SABA WSC","K",2070,647,702,4186798,{"$f":"IF(tbl_twdbdata[[#This Row],[Year]]=2016,0,tbl_twdbdata[[#This Row],[effsave]]-0.6*SUMIFS(tbl_twdbdata[effsave],tbl_twdbdata[Year],2020,tbl_twdbdata[utility],tbl_twdbdata[[#This Row],[utility]]))","v":2976739.6},331,0,2,0,23870907,0,2154412,0,null,null,{"$f":"tbl_twdbdata[[#This Row],[utility]]&tbl_twdbdata[[#This Row],[Year]]","v":"NORTH SAN SABA WSC2070"}]
[null,3030,"NORTHTOWN MUD","K",2016,11331,11331,0,{"$f":"IF(tbl_twdbdata[[#This Row],[Year]]=2016,0,tbl_twdbdata[[#This Row],[effsave]]-0.6*SUMIFS(tbl_twdbdata[effsave],tbl_twdbdata[Year],2020,tbl_twdbdata[utility],tbl_twdbdata[[#This Row],[utility]]))","v":0},2949,830,4,23,192940000,25047000,9815000,28987000,3556913,24207087,{"$f":"tbl_twdbdata[[#This Row],[utility]]&tbl_twdbdata[[#This Row],[Year]]","v":"NORTHTOWN MUD2016"}]
[null,3030,"NORTHTOWN MUD","K",2020,9410,10834,0,{"$f":"IF(tbl_twdbdata[[#This Row],[Year]]=2016,0,tbl_twdbdata[[#This Row],[effsave]]-0.6*SUMIFS(tbl_twdbdata[effsave],tbl_twdbdata[Year],2020,tbl_twdbdata[utility],tbl_twdbdata[[#This Row],[utility]]))","v":0},3395,956,4,26,222137296,28837322,11300288,33373556,4095175,27870306,{"$f":"tbl_twdbdata[[#This Row],[utility]]&tbl_twdbdata[[#This Row],[Year]]","v":"NORTHTOWN MUD2020"}]
[null,3030,"NORTHTOWN MUD","K",2030,9410,12509,0,{"$f":"IF(tbl_twdbdata[[#This Row],[Year]]=2016,0,tbl_twdbdata[[#This Row],[effsave]]-0.6*SUMIFS(tbl_twdbdata[effsave],tbl_twdbdata[Year],2020,tbl_twdbdata[utility],tbl_twdbdata[[#This Row],[utility]]))","v":0},3920,1104,4,30,256481026,33295741,13047379,38533304,4728313,32179219,{"$f":"tbl_twdbdata[[#This Row],[utility]]&tbl_twdbdata[[#This Row],[Year]]","v":"NORTHTOWN MUD2030"}]
[null,3030,"NORTHTOWN MUD","K",2040,9410,14091,0,{"$f":"IF(tbl_twdbdata[[#This Row],[Year]]=2016,0,tbl_twdbdata[[#This Row],[effsave]]-0.6*SUMIFS(tbl_twdbdata[effsave],tbl_twdbdata[Year],2020,tbl_twdbdata[utility],tbl_twdbdata[[#This Row],[utility]]))","v":0},4416,1275,4,35,288917910,37506618,14697467,43406570,5326298,36248891,{"$f":"tbl_twdbdata[[#This Row],[utility]]&tbl_twdbdata[[#This Row],[Year]]","v":"NORTHTOWN MUD2040"}]
[null,3030,"NORTHTOWN MUD","K",2050,9410,15859,0,{"$f":"IF(tbl_twdbdata[[#This Row],[Year]]=2016,0,tbl_twdbdata[[#This Row],[effsave]]-0.6*SUMIFS(tbl_twdbdata[effsave],tbl_twdbdata[Year],2020,tbl_twdbdata[utility],tbl_twdbdata[[#This Row],[utility]]))","v":0},4970,1472,4,40,325168486,42212579,16541560,48852799,5994589,40797045,{"$f":"tbl_twdbdata[[#This Row],[utility]]&tbl_twdbdata[[#This Row],[Year]]","v":"NORTHTOWN MUD2050"}]
[null,3030,"NORTHTOWN MUD","K",2060,9410,17421,0,{"$f":"IF(tbl_twdbdata[[#This Row],[Year]]=2016,0,tbl_twdbdata[[#This Row],[effsave]]-0.6*SUMIFS(tbl_twdbdata[effsave],tbl_twdbdata[Year],2020,tbl_twdbdata[utility],tbl_twdbdata[[#This Row],[utility]]))","v":0},5460,1700,4,46,357195296,46370221,18170788,53664456,6585014,44815267,{"$f":"tbl_twdbdata[[#This Row],[utility]]&tbl_twdbdata[[#This Row],[Year]]","v":"NORTHTOWN MUD2060"}]
[null,3030,"NORTHTOWN MUD","K",2070,9410,18874,0,{"$f":"IF(tbl_twdbdata[[#This Row],[Year]]=2016,0,tbl_twdbdata[[#This Row],[effsave]]-0.6*SUMIFS(tbl_twdbdata[effsave],tbl_twdbdata[Year],2020,tbl_twdbdata[utility],tbl_twdbdata[[#This Row],[utility]]))","v":0},5915,1963,4,53,386987200,50237733,19686324,58140345,7134238,48553088,{"$f":"tbl_twdbdata[[#This Row],[utility]]&tbl_twdbdata[[#This Row],[Year]]","v":"NORTHTOWN MUD2070"}]
[null,110,"NUECES COUNTY WCID 3","N",2016,19000,19000,0,{"$f":"IF(tbl_twdbdata[[#This Row],[Year]]=2016,0,tbl_twdbdata[[#This Row],[effsave]]-0.6*SUMIFS(tbl_twdbdata[effsave],tbl_twdbdata[Year],2020,tbl_twdbdata[utility],tbl_twdbdata[[#This Row],[utility]]))","v":0},3224,0,0,0,537154000,0,0,0,4356548,121020622,{"$f":"tbl_twdbdata[[#This Row],[utility]]&tbl_twdbdata[[#This Row],[Year]]","v":"NUECES COUNTY WCID 32016"}]
[null,110,"NUECES COUNTY WCID 3","N",2020,10456,13594,46244069,{"$f":"IF(tbl_twdbdata[[#This Row],[Year]]=2016,0,tbl_twdbdata[[#This Row],[effsave]]-0.6*SUMIFS(tbl_twdbdata[effsave],tbl_twdbdata[Year],2020,tbl_twdbdata[utility],tbl_twdbdata[[#This Row],[utility]]))","v":18497627.600000001},4192,0,0,0,698361847,0,0,0,5664012,157340698,{"$f":"tbl_twdbdata[[#This Row],[utility]]&tbl_twdbdata[[#This Row],[Year]]","v":"NUECES COUNTY WCID 32020"}]
[null,110,"NUECES COUNTY WCID 3","N",2030,10456,13756,66075570,{"$f":"IF(tbl_twdbdata[[#This Row],[Year]]=2016,0,tbl_twdbdata[[#This Row],[effsave]]-0.6*SUMIFS(tbl_twdbdata[effsave],tbl_twdbdata[Year],2020,tbl_twdbdata[utility],tbl_twdbdata[[#This Row],[utility]]))","v":38329128.600000001},4242,0,0,0,706684241,0,0,0,5731510,159215731,{"$f":"tbl_twdbdata[[#This Row],[utility]]&tbl_twdbdata[[#This Row],[Year]]","v":"NUECES COUNTY WCID 32030"}]
[null,110,"NUECES COUNTY WCID 3","N",2040,10456,13756,79230433,{"$f":"IF(tbl_twdbdata[[#This Row],[Year]]=2016,0,tbl_twdbdata[[#This Row],[effsave]]-0.6*SUMIFS(tbl_twdbdata[effsave],tbl_twdbdata[Year],2020,tbl_twdbdata[utility],tbl_twdbdata[[#This Row],[utility]]))","v":51483991.600000001},4242,0,0,0,706684241,0,0,0,5731510,159215731,{"$f":"tbl_twdbdata[[#This Row],[utility]]&tbl_twdbdata[[#This Row],[Year]]","v":"NUECES COUNTY WCID 32040"}]
[null,110,"NUECES COUNTY WCID 3","N",2050,10456,13756,85506608,{"$f":"IF(tbl_twdbdata[[#This Row],[Year]]=2016,0,tbl_twdbdata[[#This Row],[effsave]]-0.6*SUMIFS(tbl_twdbdata[effsave],tbl_twdbdata[Year],2020,tbl_twdbdata[utility],tbl_twdbdata[[#This Row],[utility]]))","v":57760166.600000001},4242,0,0,0,706684241,0,0,0,5731510,159215731,{"$f":"tbl_twdbdata[[#This Row],[utility]]&tbl_twdbdata[[#This Row],[Year]]","v":"NUECES COUNTY WCID 32050"}]
[null,110,"NUECES COUNTY WCID 3","N",2060,10456,13756,86862262,{"$f":"IF(tbl_twdbdata[[#This Row],[Year]]=2016,0,tbl_twdbdata[[#This Row],[effsave]]-0.6*SUMIFS(tbl_twdbdata[effsave],tbl_twdbdata[Year],2020,tbl_twdbdata[utility],tbl_twdbdata[[#This Row],[utility]]))","v":59115820.600000001},4242,0,0,0,706684241,0,0,0,5731510,159215731,{"$f":"tbl_twdbdata[[#This Row],[utility]]&tbl_twdbdata[[#This Row],[Year]]","v":"NUECES COUNTY WCID 32060"}]
[null,110,"NUECES COUNTY WCID 3","N",2070,10456,13756,87012890,{"$f":"IF(tbl_twdbdata[[#This Row],[Year]]=2016,0,tbl_twdbdata[[#This Row],[effsave]]-0.6*SUMIFS(tbl_twdbdata[effsave],tbl_twdbdata[Year],2020,tbl_twdbdata[utility],tbl_twdbdata[[#This Row],[utility]]))","v":59266448.600000001},4242,0,0,0,706684241,0,0,0,5731510,159215731,{"$f":"tbl_twdbdata[[#This Row],[utility]]&tbl_twdbdata[[#This Row],[Year]]","v":"NUECES COUNTY WCID 32070"}]
[null,2220,"NUECES COUNTY WCID 4","N",2016,10134,10134,0,{"$f":"IF(tbl_twdbdata[[#This Row],[Year]]=2016,0,tbl_twdbdata[[#This Row],[effsave]]-0.6*SUMIFS(tbl_twdbdata[effsave],tbl_twdbdata[Year],2020,tbl_twdbdata[utility],tbl_twdbdata[[#This Row],[utility]]))","v":0},3480,0,0,0,626530000,0,0,0,null,null,{"$f":"tbl_twdbdata[[#This Row],[utility]]&tbl_twdbdata[[#This Row],[Year]]","v":"NUECES COUNTY WCID 42016"}]
[null,2220,"NUECES COUNTY WCID 4","N",2020,4210,4846,16485123,{"$f":"IF(tbl_twdbdata[[#This Row],[Year]]=2016,0,tbl_twdbdata[[#This Row],[effsave]]-0.6*SUMIFS(tbl_twdbdata[effsave],tbl_twdbdata[Year],2020,tbl_twdbdata[utility],tbl_twdbdata[[#This Row],[utility]]))","v":6594049.2000000011},4006,0,0,0,721179188,0,0,0,null,null,{"$f":"tbl_twdbdata[[#This Row],[utility]]&tbl_twdbdata[[#This Row],[Year]]","v":"NUECES COUNTY WCID 42020"}]
[null,2220,"NUECES COUNTY WCID 4","N",2030,4210,5277,25347542,{"$f":"IF(tbl_twdbdata[[#This Row],[Year]]=2016,0,tbl_twdbdata[[#This Row],[effsave]]-0.6*SUMIFS(tbl_twdbdata[effsave],tbl_twdbdata[Year],2020,tbl_twdbdata[utility],tbl_twdbdata[[#This Row],[utility]]))","v":15456468.200000001},4362,0,0,0,785320383,0,0,0,null,null,{"$f":"tbl_twdbdata[[#This Row],[utility]]&tbl_twdbdata[[#This Row],[Year]]","v":"NUECES COUNTY WCID 42030"}]
[null,2220,"NUECES COUNTY WCID 4","N",2040,4210,5549,31960575,{"$f":"IF(tbl_twdbdata[[#This Row],[Year]]=2016,0,tbl_twdbdata[[#This Row],[effsave]]-0.6*SUMIFS(tbl_twdbdata[effsave],tbl_twdbdata[Year],2020,tbl_twdbdata[utility],tbl_twdbdata[[#This Row],[utility]]))","v":22069501.200000003},4587,0,0,0,825799281,0,0,0,null,null,{"$f":"tbl_twdbdata[[#This Row],[utility]]&tbl_twdbdata[[#This Row],[Year]]","v":"NUECES COUNTY WCID 42040"}]
[null,2220,"NUECES COUNTY WCID 4","N",2050,4210,5708,35480643,{"$f":"IF(tbl_twdbdata[[#This Row],[Year]]=2016,0,tbl_twdbdata[[#This Row],[effsave]]-0.6*SUMIFS(tbl_twdbdata[effsave],tbl_twdbdata[Year],2020,tbl_twdbdata[utility],tbl_twdbdata[[#This Row],[utility]]))","v":25589569.200000003},4718,0,0,0,849461578,0,0,0,null,null,{"$f":"tbl_twdbdata[[#This Row],[utility]]&tbl_twdbdata[[#This Row],[Year]]","v":"NUECES COUNTY WCID 42050"}]
[null,2220,"NUECES COUNTY WCID 4","N",2060,4210,5827,36794592,{"$f":"IF(tbl_twdbdata[[#This Row],[Year]]=2016,0,tbl_twdbdata[[#This Row],[effsave]]-0.6*SUMIFS(tbl_twdbdata[effsave],tbl_twdbdata[Year],2020,tbl_twdbdata[utility],tbl_twdbdata[[#This Row],[utility]]))","v":26903518.200000003},4816,0,0,0,867171096,0,0,0,null,null,{"$f":"tbl_twdbdata[[#This Row],[utility]]&tbl_twdbdata[[#This Row],[Year]]","v":"NUECES COUNTY WCID 42060"}]
[null,2220,"NUECES COUNTY WCID 4","N",2070,4210,5905,37351782,{"$f":"IF(tbl_twdbdata[[#This Row],[Year]]=2016,0,tbl_twdbdata[[#This Row],[effsave]]-0.6*SUMIFS(tbl_twdbdata[effsave],tbl_twdbdata[Year],2020,tbl_twdbdata[utility],tbl_twdbdata[[#This Row],[utility]]))","v":27460708.200000003},4880,0,0,0,878779015,0,0,0,null,null,{"$f":"tbl_twdbdata[[#This Row],[utility]]&tbl_twdbdata[[#This Row],[Year]]","v":"NUECES COUNTY WCID 42070"}]
[null,2149,"OAK RIDGE NORTH","H",2016,3600,3600,0,{"$f":"IF(tbl_twdbdata[[#This Row],[Year]]=2016,0,tbl_twdbdata[[#This Row],[effsave]]-0.6*SUMIFS(tbl_twdbdata[effsave],tbl_twdbdata[Year],2020,tbl_twdbdata[utility],tbl_twdbdata[[#This Row],[utility]]))","v":0},976,0,226,0,80101000,0,58397000,0,1870700,3606301,{"$f":"tbl_twdbdata[[#This Row],[utility]]&tbl_twdbdata[[#This Row],[Year]]","v":"OAK RIDGE NORTH2016"}]
[null,2149,"OAK RIDGE NORTH","H",2020,3111,3150,10623690,{"$f":"IF(tbl_twdbdata[[#This Row],[Year]]=2016,0,tbl_twdbdata[[#This Row],[effsave]]-0.6*SUMIFS(tbl_twdbdata[effsave],tbl_twdbdata[Year],2020,tbl_twdbdata[utility],tbl_twdbdata[[#This Row],[utility]]))","v":4249476},988,0,228,0,81105159,0,59129074,0,1894151,3651510,{"$f":"tbl_twdbdata[[#This Row],[utility]]&tbl_twdbdata[[#This Row],[Year]]","v":"OAK RIDGE NORTH2020"}]
[null,2149,"OAK RIDGE NORTH","H",2030,3111,3294,16195116,{"$f":"IF(tbl_twdbdata[[#This Row],[Year]]=2016,0,tbl_twdbdata[[#This Row],[effsave]]-0.6*SUMIFS(tbl_twdbdata[effsave],tbl_twdbdata[Year],2020,tbl_twdbdata[utility],tbl_twdbdata[[#This Row],[utility]]))","v":9820902},1033,0,239,0,84812823,0,61832118,0,1980741,3818436,{"$f":"tbl_twdbdata[[#This Row],[utility]]&tbl_twdbdata[[#This Row],[Year]]","v":"OAK RIDGE NORTH2030"}]
[null,2149,"OAK RIDGE NORTH","H",2040,3111,3517,21566244,{"$f":"IF(tbl_twdbdata[[#This Row],[Year]]=2016,0,tbl_twdbdata[[#This Row],[effsave]]-0.6*SUMIFS(tbl_twdbdata[effsave],tbl_twdbdata[Year],2020,tbl_twdbdata[utility],tbl_twdbdata[[#This Row],[utility]]))","v":15192030},1103,0,250,0,90554553,0,66018081,0,2114835,4076940,{"$f":"tbl_twdbdata[[#This Row],[utility]]&tbl_twdbdata[[#This Row],[Year]]","v":"OAK RIDGE NORTH2040"}]
[null,2149,"OAK RIDGE NORTH","H",2050,3111,3643,24559467,{"$f":"IF(tbl_twdbdata[[#This Row],[Year]]=2016,0,tbl_twdbdata[[#This Row],[effsave]]-0.6*SUMIFS(tbl_twdbdata[effsave],tbl_twdbdata[Year],2020,tbl_twdbdata[utility],tbl_twdbdata[[#This Row],[utility]]))","v":18185253},1143,0,262,0,93798759,0,68383244,0,2190601,4223000,{"$f":"tbl_twdbdata[[#This Row],[utility]]&tbl_twdbdata[[#This Row],[Year]]","v":"OAK RIDGE NORTH2050"}]
[null,2149,"OAK RIDGE NORTH","H",2060,3111,3688,25253211,{"$f":"IF(tbl_twdbdata[[#This Row],[Year]]=2016,0,tbl_twdbdata[[#This Row],[effsave]]-0.6*SUMIFS(tbl_twdbdata[effsave],tbl_twdbdata[Year],2020,tbl_twdbdata[utility],tbl_twdbdata[[#This Row],[utility]]))","v":18878997},1157,0,274,0,94957404,0,69227945,0,2217660,4275164,{"$f":"tbl_twdbdata[[#This Row],[utility]]&tbl_twdbdata[[#This Row],[Year]]","v":"OAK RIDGE NORTH2060"}]
[null,2149,"OAK RIDGE NORTH","H",2070,3111,3704,25362770,{"$f":"IF(tbl_twdbdata[[#This Row],[Year]]=2016,0,tbl_twdbdata[[#This Row],[effsave]]-0.6*SUMIFS(tbl_twdbdata[effsave],tbl_twdbdata[Year],2020,tbl_twdbdata[utility],tbl_twdbdata[[#This Row],[utility]]))","v":18988556},1162,0,287,0,95369367,0,69528283,0,2227281,4293711,{"$f":"tbl_twdbdata[[#This Row],[utility]]&tbl_twdbdata[[#This Row],[Year]]","v":"OAK RIDGE NORTH2070"}]
[null,111,"ODESSA","F",2016,105784,117351,0,{"$f":"IF(tbl_twdbdata[[#This Row],[Year]]=2016,0,tbl_twdbdata[[#This Row],[effsave]]-0.6*SUMIFS(tbl_twdbdata[effsave],tbl_twdbdata[Year],2020,tbl_twdbdata[utility],tbl_twdbdata[[#This Row],[utility]]))","v":0},32168,381,3495,0,2240691958,516870020,1523116200,0,63563788,356326242,{"$f":"tbl_twdbdata[[#This Row],[utility]]&tbl_twdbdata[[#This Row],[Year]]","v":"ODESSA2016"}]
[null,111,"ODESSA","F",2020,105784,127558,465586700,{"$f":"IF(tbl_twdbdata[[#This Row],[Year]]=2016,0,tbl_twdbdata[[#This Row],[effsave]]-0.6*SUMIFS(tbl_twdbdata[effsave],tbl_twdbdata[Year],2020,tbl_twdbdata[utility],tbl_twdbdata[[#This Row],[utility]]))","v":186234680},37770,447,4104,0,2630874308,606875055,1788343669,0,74632453,418375026,{"$f":"tbl_twdbdata[[#This Row],[utility]]&tbl_twdbdata[[#This Row],[Year]]","v":"ODESSA2020"}]
[null,111,"ODESSA","F",2030,105784,148036,765109262,{"$f":"IF(tbl_twdbdata[[#This Row],[Year]]=2016,0,tbl_twdbdata[[#This Row],[effsave]]-0.6*SUMIFS(tbl_twdbdata[effsave],tbl_twdbdata[Year],2020,tbl_twdbdata[utility],tbl_twdbdata[[#This Row],[utility]]))","v":485757242},43834,519,4763,0,3053231542,704302009,2075442100,0,86613853,485540424,{"$f":"tbl_twdbdata[[#This Row],[utility]]&tbl_twdbdata[[#This Row],[Year]]","v":"ODESSA2030"}]
[null,111,"ODESSA","F",2040,105784,165150,1020536168,{"$f":"IF(tbl_twdbdata[[#This Row],[Year]]=2016,0,tbl_twdbdata[[#This Row],[effsave]]-0.6*SUMIFS(tbl_twdbdata[effsave],tbl_twdbdata[Year],2020,tbl_twdbdata[utility],tbl_twdbdata[[#This Row],[utility]]))","v":741184148},48902,602,5528,0,3406206525,785724262,2315377765,0,96627022,541672303,{"$f":"tbl_twdbdata[[#This Row],[utility]]&tbl_twdbdata[[#This Row],[Year]]","v":"ODESSA2040"}]
[null,111,"ODESSA","F",2050,105784,182428,1216530239,{"$f":"IF(tbl_twdbdata[[#This Row],[Year]]=2016,0,tbl_twdbdata[[#This Row],[effsave]]-0.6*SUMIFS(tbl_twdbdata[effsave],tbl_twdbdata[Year],2020,tbl_twdbdata[utility],tbl_twdbdata[[#This Row],[utility]]))","v":937178219},54018,699,6415,0,3762563996,867926768,2557612685,0,106736145,598342082,{"$f":"tbl_twdbdata[[#This Row],[utility]]&tbl_twdbdata[[#This Row],[Year]]","v":"ODESSA2050"}]
[null,111,"ODESSA","F",2060,105784,199528,1350954206,{"$f":"IF(tbl_twdbdata[[#This Row],[Year]]=2016,0,tbl_twdbdata[[#This Row],[effsave]]-0.6*SUMIFS(tbl_twdbdata[effsave],tbl_twdbdata[Year],2020,tbl_twdbdata[utility],tbl_twdbdata[[#This Row],[utility]]))","v":1071602186},59081,811,7445,0,4115250230,949282414,2797352072,0,116741123,654428043,{"$f":"tbl_twdbdata[[#This Row],[utility]]&tbl_twdbdata[[#This Row],[Year]]","v":"ODESSA2060"}]
[null,111,"ODESSA","F",2070,105784,218231,1483959888,{"$f":"IF(tbl_twdbdata[[#This Row],[Year]]=2016,0,tbl_twdbdata[[#This Row],[effsave]]-0.6*SUMIFS(tbl_twdbdata[effsave],tbl_twdbdata[Year],2020,tbl_twdbdata[utility],tbl_twdbdata[[#This Row],[utility]]))","v":1204607868},64619,941,8640,0,4500998221,1038264557,3059565274,0,127683994,715771652,{"$f":"tbl_twdbdata[[#This Row],[utility]]&tbl_twdbdata[[#This Row],[Year]]","v":"ODESSA2070"}]
[null,2153,"OLMITO WSC","M",2016,5276,5716,0,{"$f":"IF(tbl_twdbdata[[#This Row],[Year]]=2016,0,tbl_twdbdata[[#This Row],[effsave]]-0.6*SUMIFS(tbl_twdbdata[effsave],tbl_twdbdata[Year],2020,tbl_twdbdata[utility],tbl_twdbdata[[#This Row],[utility]]))","v":0},1665,37,142,0,127103400,4755000,157758700,0,12707500,41801012,{"$f":"tbl_twdbdata[[#This Row],[utility]]&tbl_twdbdata[[#This Row],[Year]]","v":"OLMITO WSC2016"}]
[null,2153,"OLMITO WSC","M",2020,5276,6275,23201499,{"$f":"IF(tbl_twdbdata[[#This Row],[Year]]=2016,0,tbl_twdbdata[[#This Row],[effsave]]-0.6*SUMIFS(tbl_twdbdata[effsave],tbl_twdbdata[Year],2020,tbl_twdbdata[utility],tbl_twdbdata[[#This Row],[utility]]))","v":9280599.5999999996},1703,38,145,0,130003885,4863509,161358736,0,12997484,42754906,{"$f":"tbl_twdbdata[[#This Row],[utility]]&tbl_twdbdata[[#This Row],[Year]]","v":"OLMITO WSC2020"}]
[null,2153,"OLMITO WSC","M",2030,5276,7331,37943057,{"$f":"IF(tbl_twdbdata[[#This Row],[Year]]=2016,0,tbl_twdbdata[[#This Row],[effsave]]-0.6*SUMIFS(tbl_twdbdata[effsave],tbl_twdbdata[Year],2020,tbl_twdbdata[utility],tbl_twdbdata[[#This Row],[utility]]))","v":24022157.600000001},1990,44,169,0,151881830,5681974,188513290,0,15184790,49949995,{"$f":"tbl_twdbdata[[#This Row],[utility]]&tbl_twdbdata[[#This Row],[Year]]","v":"OLMITO WSC2030"}]
[null,2153,"OLMITO WSC","M",2040,5276,8404,51257257,{"$f":"IF(tbl_twdbdata[[#This Row],[Year]]=2016,0,tbl_twdbdata[[#This Row],[effsave]]-0.6*SUMIFS(tbl_twdbdata[effsave],tbl_twdbdata[Year],2020,tbl_twdbdata[utility],tbl_twdbdata[[#This Row],[utility]]))","v":37336357.600000001},2281,51,197,0,174111976,6513615,216104991,0,17407308,57260914,{"$f":"tbl_twdbdata[[#This Row],[utility]]&tbl_twdbdata[[#This Row],[Year]]","v":"OLMITO WSC2040"}]
[null,2153,"OLMITO WSC","M",2050,5276,9558,62516966,{"$f":"IF(tbl_twdbdata[[#This Row],[Year]]=2016,0,tbl_twdbdata[[#This Row],[effsave]]-0.6*SUMIFS(tbl_twdbdata[effsave],tbl_twdbdata[Year],2020,tbl_twdbdata[utility],tbl_twdbdata[[#This Row],[utility]]))","v":48596066.600000001},2594,60,230,0,198020260,7408036,245779570,0,19797602,65123729,{"$f":"tbl_twdbdata[[#This Row],[utility]]&tbl_twdbdata[[#This Row],[Year]]","v":"OLMITO WSC2050"}]
[null,2153,"OLMITO WSC","M",2060,5276,10746,71346455,{"$f":"IF(tbl_twdbdata[[#This Row],[Year]]=2016,0,tbl_twdbdata[[#This Row],[effsave]]-0.6*SUMIFS(tbl_twdbdata[effsave],tbl_twdbdata[Year],2020,tbl_twdbdata[utility],tbl_twdbdata[[#This Row],[utility]]))","v":57425555.600000001},2916,70,269,0,222632948,8328809,276328443,0,22258321,73218204,{"$f":"tbl_twdbdata[[#This Row],[utility]]&tbl_twdbdata[[#This Row],[Year]]","v":"OLMITO WSC2060"}]
[null,2153,"OLMITO WSC","M",2070,5276,11962,79769195,{"$f":"IF(tbl_twdbdata[[#This Row],[Year]]=2016,0,tbl_twdbdata[[#This Row],[effsave]]-0.6*SUMIFS(tbl_twdbdata[effsave],tbl_twdbdata[Year],2020,tbl_twdbdata[utility],tbl_twdbdata[[#This Row],[utility]]))","v":65848295.600000001},3246,82,314,0,247825733,9271284,307597323,0,24777037,81503458,{"$f":"tbl_twdbdata[[#This Row],[utility]]&tbl_twdbdata[[#This Row],[Year]]","v":"OLMITO WSC2070"}]
[null,2155,"OLNEY","B",2016,3285,3285,0,{"$f":"IF(tbl_twdbdata[[#This Row],[Year]]=2016,0,tbl_twdbdata[[#This Row],[effsave]]-0.6*SUMIFS(tbl_twdbdata[effsave],tbl_twdbdata[Year],2020,tbl_twdbdata[utility],tbl_twdbdata[[#This Row],[utility]]))","v":0},1460,11,203,0,54068000,8647000,40790000,0,12183617,21880770,{"$f":"tbl_twdbdata[[#This Row],[utility]]&tbl_twdbdata[[#This Row],[Year]]","v":"OLNEY2016"}]
[null,2155,"OLNEY","B",2020,3187,3370,11783879,{"$f":"IF(tbl_twdbdata[[#This Row],[Year]]=2016,0,tbl_twdbdata[[#This Row],[effsave]]-0.6*SUMIFS(tbl_twdbdata[effsave],tbl_twdbdata[Year],2020,tbl_twdbdata[utility],tbl_twdbdata[[#This Row],[utility]]))","v":4713551.6000000006},1544,12,215,0,57172626,9143517,43132193,0,12883210,23137181,{"$f":"tbl_twdbdata[[#This Row],[utility]]&tbl_twdbdata[[#This Row],[Year]]","v":"OLNEY2020"}]
[null,2155,"OLNEY","B",2030,3187,3485,17795630,{"$f":"IF(tbl_twdbdata[[#This Row],[Year]]=2016,0,tbl_twdbdata[[#This Row],[effsave]]-0.6*SUMIFS(tbl_twdbdata[effsave],tbl_twdbdata[Year],2020,tbl_twdbdata[utility],tbl_twdbdata[[#This Row],[utility]]))","v":10725302.600000001},1597,12,223,0,59123621,9455536,44604064,0,13322845,23926729,{"$f":"tbl_twdbdata[[#This Row],[utility]]&tbl_twdbdata[[#This Row],[Year]]","v":"OLNEY2030"}]
[null,2155,"OLNEY","B",2040,3187,3568,22764554,{"$f":"IF(tbl_twdbdata[[#This Row],[Year]]=2016,0,tbl_twdbdata[[#This Row],[effsave]]-0.6*SUMIFS(tbl_twdbdata[effsave],tbl_twdbdata[Year],2020,tbl_twdbdata[utility],tbl_twdbdata[[#This Row],[utility]]))","v":15694226.600000001},1635,12,231,0,60531730,9680732,45666370,0,13640147,24496576,{"$f":"tbl_twdbdata[[#This Row],[utility]]&tbl_twdbdata[[#This Row],[Year]]","v":"OLNEY2040"}]
[null,2155,"OLNEY","B",2050,3187,3655,25160655,{"$f":"IF(tbl_twdbdata[[#This Row],[Year]]=2016,0,tbl_twdbdata[[#This Row],[effsave]]-0.6*SUMIFS(tbl_twdbdata[effsave],tbl_twdbdata[Year],2020,tbl_twdbdata[utility],tbl_twdbdata[[#This Row],[utility]]))","v":18090327.600000001},1675,12,240,0,62007700,9916781,46779871,0,13972740,25093886,{"$f":"tbl_twdbdata[[#This Row],[utility]]&tbl_twdbdata[[#This Row],[Year]]","v":"OLNEY2050"}]
[null,2155,"OLNEY","B",2060,3187,3740,26182618,{"$f":"IF(tbl_twdbdata[[#This Row],[Year]]=2016,0,tbl_twdbdata[[#This Row],[effsave]]-0.6*SUMIFS(tbl_twdbdata[effsave],tbl_twdbdata[Year],2020,tbl_twdbdata[utility],tbl_twdbdata[[#This Row],[utility]]))","v":19112290.600000001},1714,12,249,0,63449740,10147404,47867775,0,14297687,25677465,{"$f":"tbl_twdbdata[[#This Row],[utility]]&tbl_twdbdata[[#This Row],[Year]]","v":"OLNEY2060"}]
[null,2155,"OLNEY","B",2070,3187,3822,26798526,{"$f":"IF(tbl_twdbdata[[#This Row],[Year]]=2016,0,tbl_twdbdata[[#This Row],[effsave]]-0.6*SUMIFS(tbl_twdbdata[effsave],tbl_twdbdata[Year],2020,tbl_twdbdata[utility],tbl_twdbdata[[#This Row],[utility]]))","v":19728198.600000001},1752,12,258,0,64840884,10369887,48917283,0,14611166,26240447,{"$f":"tbl_twdbdata[[#This Row],[utility]]&tbl_twdbdata[[#This Row],[Year]]","v":"OLNEY2070"}]
[null,2160,"ORANGE","I",2016,18500,18500,0,{"$f":"IF(tbl_twdbdata[[#This Row],[Year]]=2016,0,tbl_twdbdata[[#This Row],[effsave]]-0.6*SUMIFS(tbl_twdbdata[effsave],tbl_twdbdata[Year],2020,tbl_twdbdata[utility],tbl_twdbdata[[#This Row],[utility]]))","v":0},6198,2233,672,0,326263000,82842000,147138000,0,18119594,335124906,{"$f":"tbl_twdbdata[[#This Row],[utility]]&tbl_twdbdata[[#This Row],[Year]]","v":"ORANGE2016"}]
[null,2160,"ORANGE","I",2020,18500,19667,70492428,{"$f":"IF(tbl_twdbdata[[#This Row],[Year]]=2016,0,tbl_twdbdata[[#This Row],[effsave]]-0.6*SUMIFS(tbl_twdbdata[effsave],tbl_twdbdata[Year],2020,tbl_twdbdata[utility],tbl_twdbdata[[#This Row],[utility]]))","v":28196971.200000003},6589,2374,714,0,346844023,88067763,156419624,0,19262598,356264947,{"$f":"tbl_twdbdata[[#This Row],[utility]]&tbl_twdbdata[[#This Row],[Year]]","v":"ORANGE2020"}]
[null,2160,"ORANGE","I",2030,18500,20556,106316660,{"$f":"IF(tbl_twdbdata[[#This Row],[Year]]=2016,0,tbl_twdbdata[[#This Row],[effsave]]-0.6*SUMIFS(tbl_twdbdata[effsave],tbl_twdbdata[Year],2020,tbl_twdbdata[utility],tbl_twdbdata[[#This Row],[utility]]))","v":64021203.200000003},6887,2481,746,0,362522283,92048657,163490201,0,20133318,372369057,{"$f":"tbl_twdbdata[[#This Row],[utility]]&tbl_twdbdata[[#This Row],[Year]]","v":"ORANGE2030"}]
[null,2160,"ORANGE","I",2040,18500,21183,135461048,{"$f":"IF(tbl_twdbdata[[#This Row],[Year]]=2016,0,tbl_twdbdata[[#This Row],[effsave]]-0.6*SUMIFS(tbl_twdbdata[effsave],tbl_twdbdata[Year],2020,tbl_twdbdata[utility],tbl_twdbdata[[#This Row],[utility]]))","v":93165591.200000003},7097,2593,780,0,373579953,94856329,168476986,0,20747425,383727074,{"$f":"tbl_twdbdata[[#This Row],[utility]]&tbl_twdbdata[[#This Row],[Year]]","v":"ORANGE2040"}]
[null,2160,"ORANGE","I",2050,18500,21608,149614872,{"$f":"IF(tbl_twdbdata[[#This Row],[Year]]=2016,0,tbl_twdbdata[[#This Row],[effsave]]-0.6*SUMIFS(tbl_twdbdata[effsave],tbl_twdbdata[Year],2020,tbl_twdbdata[utility],tbl_twdbdata[[#This Row],[utility]]))","v":107319415.2},7239,2710,815,0,381075184,96759456,171857183,0,21163686,391425889,{"$f":"tbl_twdbdata[[#This Row],[utility]]&tbl_twdbdata[[#This Row],[Year]]","v":"ORANGE2050"}]
[null,2160,"ORANGE","I",2060,18500,21931,154252785,{"$f":"IF(tbl_twdbdata[[#This Row],[Year]]=2016,0,tbl_twdbdata[[#This Row],[effsave]]-0.6*SUMIFS(tbl_twdbdata[effsave],tbl_twdbdata[Year],2020,tbl_twdbdata[utility],tbl_twdbdata[[#This Row],[utility]]))","v":111957328.2},7347,2832,852,0,386771560,98205833,174426133,0,21480044,397276989,{"$f":"tbl_twdbdata[[#This Row],[utility]]&tbl_twdbdata[[#This Row],[Year]]","v":"ORANGE2060"}]
[null,2160,"ORANGE","I",2070,18500,22166,156067481,{"$f":"IF(tbl_twdbdata[[#This Row],[Year]]=2016,0,tbl_twdbdata[[#This Row],[effsave]]-0.6*SUMIFS(tbl_twdbdata[effsave],tbl_twdbdata[Year],2020,tbl_twdbdata[utility],tbl_twdbdata[[#This Row],[utility]]))","v":113772024.2},7426,2960,891,0,390915982,99258150,176295183,0,21710212,401533981,{"$f":"tbl_twdbdata[[#This Row],[utility]]&tbl_twdbdata[[#This Row],[Year]]","v":"ORANGE2070"}]
[null,2569,"ORANGE COUNTY WCID 1","I",2016,17678,17678,0,{"$f":"IF(tbl_twdbdata[[#This Row],[Year]]=2016,0,tbl_twdbdata[[#This Row],[effsave]]-0.6*SUMIFS(tbl_twdbdata[effsave],tbl_twdbdata[Year],2020,tbl_twdbdata[utility],tbl_twdbdata[[#This Row],[utility]]))","v":0},5265,594,379,38,223654400,34215600,59234797,1209000,34410606,73924597,{"$f":"tbl_twdbdata[[#This Row],[utility]]&tbl_twdbdata[[#This Row],[Year]]","v":"ORANGE COUNTY WCID 12016"}]
[null,2569,"ORANGE COUNTY WCID 1","I",2020,15018,12541,40693664,{"$f":"IF(tbl_twdbdata[[#This Row],[Year]]=2016,0,tbl_twdbdata[[#This Row],[effsave]]-0.6*SUMIFS(tbl_twdbdata[effsave],tbl_twdbdata[Year],2020,tbl_twdbdata[utility],tbl_twdbdata[[#This Row],[utility]]))","v":16277465.600000001},4397,496,316,32,186765870,28572236,49464881,1009593,28735079,61731813,{"$f":"tbl_twdbdata[[#This Row],[utility]]&tbl_twdbdata[[#This Row],[Year]]","v":"ORANGE COUNTY WCID 12020"}]
[null,2569,"ORANGE COUNTY WCID 1","I",2030,15018,13108,60092315,{"$f":"IF(tbl_twdbdata[[#This Row],[Year]]=2016,0,tbl_twdbdata[[#This Row],[effsave]]-0.6*SUMIFS(tbl_twdbdata[effsave],tbl_twdbdata[Year],2020,tbl_twdbdata[utility],tbl_twdbdata[[#This Row],[utility]]))","v":35676116.600000001},4596,518,330,33,195209874,29864036,51701272,1055238,30034241,64522814,{"$f":"tbl_twdbdata[[#This Row],[utility]]&tbl_twdbdata[[#This Row],[Year]]","v":"ORANGE COUNTY WCID 12030"}]
[null,2569,"ORANGE COUNTY WCID 1","I",2040,15018,13507,75084738,{"$f":"IF(tbl_twdbdata[[#This Row],[Year]]=2016,0,tbl_twdbdata[[#This Row],[effsave]]-0.6*SUMIFS(tbl_twdbdata[effsave],tbl_twdbdata[Year],2020,tbl_twdbdata[utility],tbl_twdbdata[[#This Row],[utility]]))","v":50668539.600000001},4736,541,345,34,201151951,30773080,53275029,1087359,30948466,66486851,{"$f":"tbl_twdbdata[[#This Row],[utility]]&tbl_twdbdata[[#This Row],[Year]]","v":"ORANGE COUNTY WCID 12040"}]
[null,2569,"ORANGE COUNTY WCID 1","I",2050,15018,13778,80765258,{"$f":"IF(tbl_twdbdata[[#This Row],[Year]]=2016,0,tbl_twdbdata[[#This Row],[effsave]]-0.6*SUMIFS(tbl_twdbdata[effsave],tbl_twdbdata[Year],2020,tbl_twdbdata[utility],tbl_twdbdata[[#This Row],[utility]]))","v":56349059.600000001},4831,565,361,36,205187798,31390501,54343922,1109175,31569406,67820821,{"$f":"tbl_twdbdata[[#This Row],[utility]]&tbl_twdbdata[[#This Row],[Year]]","v":"ORANGE COUNTY WCID 12050"}]
[null,2569,"ORANGE COUNTY WCID 1","I",2060,15018,13985,83510029,{"$f":"IF(tbl_twdbdata[[#This Row],[Year]]=2016,0,tbl_twdbdata[[#This Row],[effsave]]-0.6*SUMIFS(tbl_twdbdata[effsave],tbl_twdbdata[Year],2020,tbl_twdbdata[utility],tbl_twdbdata[[#This Row],[utility]]))","v":59093830.600000001},4904,591,378,38,208270529,31862110,55160383,1125839,32043703,68839758,{"$f":"tbl_twdbdata[[#This Row],[utility]]&tbl_twdbdata[[#This Row],[Year]]","v":"ORANGE COUNTY WCID 12060"}]
[null,2569,"ORANGE COUNTY WCID 1","I",2070,15018,14134,84502946,{"$f":"IF(tbl_twdbdata[[#This Row],[Year]]=2016,0,tbl_twdbdata[[#This Row],[effsave]]-0.6*SUMIFS(tbl_twdbdata[effsave],tbl_twdbdata[Year],2020,tbl_twdbdata[utility],tbl_twdbdata[[#This Row],[utility]]))","v":60086747.600000001},4956,618,395,40,210489500,32201578,55748077,1137834,32385105,69573196,{"$f":"tbl_twdbdata[[#This Row],[utility]]&tbl_twdbdata[[#This Row],[Year]]","v":"ORANGE COUNTY WCID 12070"}]
[null,2167,"PADUCAH","B",2016,1186,1186,0,{"$f":"IF(tbl_twdbdata[[#This Row],[Year]]=2016,0,tbl_twdbdata[[#This Row],[effsave]]-0.6*SUMIFS(tbl_twdbdata[effsave],tbl_twdbdata[Year],2020,tbl_twdbdata[utility],tbl_twdbdata[[#This Row],[utility]]))","v":0},649,35,8,0,12107692,652957,149247,0,null,null,{"$f":"tbl_twdbdata[[#This Row],[utility]]&tbl_twdbdata[[#This Row],[Year]]","v":"PADUCAH2016"}]
[null,2167,"PADUCAH","B",2020,1186,1196,4692805,{"$f":"IF(tbl_twdbdata[[#This Row],[Year]]=2016,0,tbl_twdbdata[[#This Row],[effsave]]-0.6*SUMIFS(tbl_twdbdata[effsave],tbl_twdbdata[Year],2020,tbl_twdbdata[utility],tbl_twdbdata[[#This Row],[utility]]))","v":1877122},654,35,8,0,12209780,658463,150505,0,null,null,{"$f":"tbl_twdbdata[[#This Row],[utility]]&tbl_twdbdata[[#This Row],[Year]]","v":"PADUCAH2020"}]
[null,2167,"PADUCAH","B",2030,1186,1196,7023929,{"$f":"IF(tbl_twdbdata[[#This Row],[Year]]=2016,0,tbl_twdbdata[[#This Row],[effsave]]-0.6*SUMIFS(tbl_twdbdata[effsave],tbl_twdbdata[Year],2020,tbl_twdbdata[utility],tbl_twdbdata[[#This Row],[utility]]))","v":4208246},654,35,8,0,12209780,658463,150505,0,null,null,{"$f":"tbl_twdbdata[[#This Row],[utility]]&tbl_twdbdata[[#This Row],[Year]]","v":"PADUCAH2030"}]
[null,2167,"PADUCAH","B",2040,1186,1196,7250929,{"$f":"IF(tbl_twdbdata[[#This Row],[Year]]=2016,0,tbl_twdbdata[[#This Row],[effsave]]-0.6*SUMIFS(tbl_twdbdata[effsave],tbl_twdbdata[Year],2020,tbl_twdbdata[utility],tbl_twdbdata[[#This Row],[utility]]))","v":4435246},654,35,8,0,12209780,658463,150505,0,null,null,{"$f":"tbl_twdbdata[[#This Row],[utility]]&tbl_twdbdata[[#This Row],[Year]]","v":"PADUCAH2040"}]
[null,2167,"PADUCAH","B",2050,1186,1196,7390622,{"$f":"IF(tbl_twdbdata[[#This Row],[Year]]=2016,0,tbl_twdbdata[[#This Row],[effsave]]-0.6*SUMIFS(tbl_twdbdata[effsave],tbl_twdbdata[Year],2020,tbl_twdbdata[utility],tbl_twdbdata[[#This Row],[utility]]))","v":4574939},654,35,8,0,12209780,658463,150505,0,null,null,{"$f":"tbl_twdbdata[[#This Row],[utility]]&tbl_twdbdata[[#This Row],[Year]]","v":"PADUCAH2050"}]
[null,2167,"PADUCAH","B",2060,1186,1196,7525950,{"$f":"IF(tbl_twdbdata[[#This Row],[Year]]=2016,0,tbl_twdbdata[[#This Row],[effsave]]-0.6*SUMIFS(tbl_twdbdata[effsave],tbl_twdbdata[Year],2020,tbl_twdbdata[utility],tbl_twdbdata[[#This Row],[utility]]))","v":4710267},654,35,8,0,12209780,658463,150505,0,null,null,{"$f":"tbl_twdbdata[[#This Row],[utility]]&tbl_twdbdata[[#This Row],[Year]]","v":"PADUCAH2060"}]
[null,2167,"PADUCAH","B",2070,1186,1196,7530315,{"$f":"IF(tbl_twdbdata[[#This Row],[Year]]=2016,0,tbl_twdbdata[[#This Row],[effsave]]-0.6*SUMIFS(tbl_twdbdata[effsave],tbl_twdbdata[Year],2020,tbl_twdbdata[utility],tbl_twdbdata[[#This Row],[utility]]))","v":4714632},654,35,8,0,12209780,658463,150505,0,null,null,{"$f":"tbl_twdbdata[[#This Row],[utility]]&tbl_twdbdata[[#This Row],[Year]]","v":"PADUCAH2070"}]
[null,2169,"PALESTINE","I",2016,16947,16947,0,{"$f":"IF(tbl_twdbdata[[#This Row],[Year]]=2016,0,tbl_twdbdata[[#This Row],[effsave]]-0.6*SUMIFS(tbl_twdbdata[effsave],tbl_twdbdata[Year],2020,tbl_twdbdata[utility],tbl_twdbdata[[#This Row],[utility]]))","v":0},5649,0,984,0,407417000,0,293608000,0,11436755,202478649,{"$f":"tbl_twdbdata[[#This Row],[utility]]&tbl_twdbdata[[#This Row],[Year]]","v":"PALESTINE2016"}]
[null,2169,"PALESTINE","I",2020,16506,18954,65100356,{"$f":"IF(tbl_twdbdata[[#This Row],[Year]]=2016,0,tbl_twdbdata[[#This Row],[effsave]]-0.6*SUMIFS(tbl_twdbdata[effsave],tbl_twdbdata[Year],2020,tbl_twdbdata[utility],tbl_twdbdata[[#This Row],[utility]]))","v":26040142.399999999},6487,0,1130,0,467840895,0,337152916,0,13132937,232508198,{"$f":"tbl_twdbdata[[#This Row],[utility]]&tbl_twdbdata[[#This Row],[Year]]","v":"PALESTINE2020"}]
[null,2169,"PALESTINE","I",2030,16506,19576,96603645,{"$f":"IF(tbl_twdbdata[[#This Row],[Year]]=2016,0,tbl_twdbdata[[#This Row],[effsave]]-0.6*SUMIFS(tbl_twdbdata[effsave],tbl_twdbdata[Year],2020,tbl_twdbdata[utility],tbl_twdbdata[[#This Row],[utility]]))","v":57543431.399999999},6700,0,1167,0,483193698,0,348217025,0,13563911,240138255,{"$f":"tbl_twdbdata[[#This Row],[utility]]&tbl_twdbdata[[#This Row],[Year]]","v":"PALESTINE2030"}]
[null,2169,"PALESTINE","I",2040,16506,19803,120709187,{"$f":"IF(tbl_twdbdata[[#This Row],[Year]]=2016,0,tbl_twdbdata[[#This Row],[effsave]]-0.6*SUMIFS(tbl_twdbdata[effsave],tbl_twdbdata[Year],2020,tbl_twdbdata[utility],tbl_twdbdata[[#This Row],[utility]]))","v":81648973.400000006},6778,0,1205,0,488796731,0,352254891,0,13721196,242922858,{"$f":"tbl_twdbdata[[#This Row],[utility]]&tbl_twdbdata[[#This Row],[Year]]","v":"PALESTINE2040"}]
[null,2169,"PALESTINE","I",2050,16506,19803,133069229,{"$f":"IF(tbl_twdbdata[[#This Row],[Year]]=2016,0,tbl_twdbdata[[#This Row],[effsave]]-0.6*SUMIFS(tbl_twdbdata[effsave],tbl_twdbdata[Year],2020,tbl_twdbdata[utility],tbl_twdbdata[[#This Row],[utility]]))","v":94009015.400000006},6778,0,1245,0,488796731,0,352254891,0,13721196,242922858,{"$f":"tbl_twdbdata[[#This Row],[utility]]&tbl_twdbdata[[#This Row],[Year]]","v":"PALESTINE2050"}]
[null,2169,"PALESTINE","I",2060,16506,19803,135237657,{"$f":"IF(tbl_twdbdata[[#This Row],[Year]]=2016,0,tbl_twdbdata[[#This Row],[effsave]]-0.6*SUMIFS(tbl_twdbdata[effsave],tbl_twdbdata[Year],2020,tbl_twdbdata[utility],tbl_twdbdata[[#This Row],[utility]]))","v":96177443.400000006},6778,0,1286,0,488796731,0,352254891,0,13721196,242922858,{"$f":"tbl_twdbdata[[#This Row],[utility]]&tbl_twdbdata[[#This Row],[Year]]","v":"PALESTINE2060"}]
[null,2169,"PALESTINE","I",2070,16506,19803,135237657,{"$f":"IF(tbl_twdbdata[[#This Row],[Year]]=2016,0,tbl_twdbdata[[#This Row],[effsave]]-0.6*SUMIFS(tbl_twdbdata[effsave],tbl_twdbdata[Year],2020,tbl_twdbdata[utility],tbl_twdbdata[[#This Row],[utility]]))","v":96177443.400000006},6778,0,1328,0,488796731,0,352254891,0,13721196,242922858,{"$f":"tbl_twdbdata[[#This Row],[utility]]&tbl_twdbdata[[#This Row],[Year]]","v":"PALESTINE2070"}]
[null,6470,"PALMER PLANTATION MUD 1","H",2016,1982,1982,0,{"$f":"IF(tbl_twdbdata[[#This Row],[Year]]=2016,0,tbl_twdbdata[[#This Row],[effsave]]-0.6*SUMIFS(tbl_twdbdata[effsave],tbl_twdbdata[Year],2020,tbl_twdbdata[utility],tbl_twdbdata[[#This Row],[utility]]))","v":0},642,0,18,0,76137000,0,13022000,0,null,null,{"$f":"tbl_twdbdata[[#This Row],[utility]]&tbl_twdbdata[[#This Row],[Year]]","v":"PALMER PLANTATION MUD 12016"}]
[null,6470,"PALMER PLANTATION MUD 1","H",2020,1791,2179,5797992,{"$f":"IF(tbl_twdbdata[[#This Row],[Year]]=2016,0,tbl_twdbdata[[#This Row],[effsave]]-0.6*SUMIFS(tbl_twdbdata[effsave],tbl_twdbdata[Year],2020,tbl_twdbdata[utility],tbl_twdbdata[[#This Row],[utility]]))","v":2319196.8000000003},781,0,22,0,92631224,0,15843070,0,null,null,{"$f":"tbl_twdbdata[[#This Row],[utility]]&tbl_twdbdata[[#This Row],[Year]]","v":"PALMER PLANTATION MUD 12020"}]
[null,6470,"PALMER PLANTATION MUD 1","H",2030,1791,2667,8994724,{"$f":"IF(tbl_twdbdata[[#This Row],[Year]]=2016,0,tbl_twdbdata[[#This Row],[effsave]]-0.6*SUMIFS(tbl_twdbdata[effsave],tbl_twdbdata[Year],2020,tbl_twdbdata[utility],tbl_twdbdata[[#This Row],[utility]]))","v":5515928.8000000007},956,0,27,0,113376537,0,19391220,0,null,null,{"$f":"tbl_twdbdata[[#This Row],[utility]]&tbl_twdbdata[[#This Row],[Year]]","v":"PALMER PLANTATION MUD 12030"}]
[null,6470,"PALMER PLANTATION MUD 1","H",2040,1791,2667,9919506,{"$f":"IF(tbl_twdbdata[[#This Row],[Year]]=2016,0,tbl_twdbdata[[#This Row],[effsave]]-0.6*SUMIFS(tbl_twdbdata[effsave],tbl_twdbdata[Year],2020,tbl_twdbdata[utility],tbl_twdbdata[[#This Row],[utility]]))","v":6440710.8000000007},956,0,33,0,113376537,0,19391220,0,null,null,{"$f":"tbl_twdbdata[[#This Row],[utility]]&tbl_twdbdata[[#This Row],[Year]]","v":"PALMER PLANTATION MUD 12040"}]
[null,6470,"PALMER PLANTATION MUD 1","H",2050,1791,2667,10406234,{"$f":"IF(tbl_twdbdata[[#This Row],[Year]]=2016,0,tbl_twdbdata[[#This Row],[effsave]]-0.6*SUMIFS(tbl_twdbdata[effsave],tbl_twdbdata[Year],2020,tbl_twdbdata[utility],tbl_twdbdata[[#This Row],[utility]]))","v":6927438.8000000007},956,0,40,0,113376537,0,19391220,0,null,null,{"$f":"tbl_twdbdata[[#This Row],[utility]]&tbl_twdbdata[[#This Row],[Year]]","v":"PALMER PLANTATION MUD 12050"}]
[null,6470,"PALMER PLANTATION MUD 1","H",2060,1791,2667,10610660,{"$f":"IF(tbl_twdbdata[[#This Row],[Year]]=2016,0,tbl_twdbdata[[#This Row],[effsave]]-0.6*SUMIFS(tbl_twdbdata[effsave],tbl_twdbdata[Year],2020,tbl_twdbdata[utility],tbl_twdbdata[[#This Row],[utility]]))","v":7131864.8000000007},956,0,49,0,113376537,0,19391220,0,null,null,{"$f":"tbl_twdbdata[[#This Row],[utility]]&tbl_twdbdata[[#This Row],[Year]]","v":"PALMER PLANTATION MUD 12060"}]
[null,6470,"PALMER PLANTATION MUD 1","H",2070,1791,2667,10669067,{"$f":"IF(tbl_twdbdata[[#This Row],[Year]]=2016,0,tbl_twdbdata[[#This Row],[effsave]]-0.6*SUMIFS(tbl_twdbdata[effsave],tbl_twdbdata[Year],2020,tbl_twdbdata[utility],tbl_twdbdata[[#This Row],[utility]]))","v":7190271.8000000007},956,0,60,0,113376537,0,19391220,0,null,null,{"$f":"tbl_twdbdata[[#This Row],[utility]]&tbl_twdbdata[[#This Row],[Year]]","v":"PALMER PLANTATION MUD 12070"}]
[null,6471,"PALMER PLANTATION MUD 2","H",2016,2488,2488,0,{"$f":"IF(tbl_twdbdata[[#This Row],[Year]]=2016,0,tbl_twdbdata[[#This Row],[effsave]]-0.6*SUMIFS(tbl_twdbdata[effsave],tbl_twdbdata[Year],2020,tbl_twdbdata[utility],tbl_twdbdata[[#This Row],[utility]]))","v":0},818,0,11,0,79400000,0,6980000,0,null,null,{"$f":"tbl_twdbdata[[#This Row],[utility]]&tbl_twdbdata[[#This Row],[Year]]","v":"PALMER PLANTATION MUD 22016"}]
[null,6471,"PALMER PLANTATION MUD 2","H",2020,2488,2956,7865473,{"$f":"IF(tbl_twdbdata[[#This Row],[Year]]=2016,0,tbl_twdbdata[[#This Row],[effsave]]-0.6*SUMIFS(tbl_twdbdata[effsave],tbl_twdbdata[Year],2020,tbl_twdbdata[utility],tbl_twdbdata[[#This Row],[utility]]))","v":3146189.2},969,0,13,0,94033013,0,8266378,0,null,null,{"$f":"tbl_twdbdata[[#This Row],[utility]]&tbl_twdbdata[[#This Row],[Year]]","v":"PALMER PLANTATION MUD 22020"}]
[null,6471,"PALMER PLANTATION MUD 2","H",2030,2488,2956,9969406,{"$f":"IF(tbl_twdbdata[[#This Row],[Year]]=2016,0,tbl_twdbdata[[#This Row],[effsave]]-0.6*SUMIFS(tbl_twdbdata[effsave],tbl_twdbdata[Year],2020,tbl_twdbdata[utility],tbl_twdbdata[[#This Row],[utility]]))","v":5250122.2},969,0,13,0,94033013,0,8266378,0,null,null,{"$f":"tbl_twdbdata[[#This Row],[utility]]&tbl_twdbdata[[#This Row],[Year]]","v":"PALMER PLANTATION MUD 22030"}]
[null,6471,"PALMER PLANTATION MUD 2","H",2040,2488,2956,10994399,{"$f":"IF(tbl_twdbdata[[#This Row],[Year]]=2016,0,tbl_twdbdata[[#This Row],[effsave]]-0.6*SUMIFS(tbl_twdbdata[effsave],tbl_twdbdata[Year],2020,tbl_twdbdata[utility],tbl_twdbdata[[#This Row],[utility]]))","v":6275115.2000000002},969,0,13,0,94033013,0,8266378,0,null,null,{"$f":"tbl_twdbdata[[#This Row],[utility]]&tbl_twdbdata[[#This Row],[Year]]","v":"PALMER PLANTATION MUD 22040"}]
[null,6471,"PALMER PLANTATION MUD 2","H",2050,2488,2956,11533869,{"$f":"IF(tbl_twdbdata[[#This Row],[Year]]=2016,0,tbl_twdbdata[[#This Row],[effsave]]-0.6*SUMIFS(tbl_twdbdata[effsave],tbl_twdbdata[Year],2020,tbl_twdbdata[utility],tbl_twdbdata[[#This Row],[utility]]))","v":6814585.2000000002},969,0,13,0,94033013,0,8266378,0,null,null,{"$f":"tbl_twdbdata[[#This Row],[utility]]&tbl_twdbdata[[#This Row],[Year]]","v":"PALMER PLANTATION MUD 22050"}]
[null,6471,"PALMER PLANTATION MUD 2","H",2060,2488,2956,11760446,{"$f":"IF(tbl_twdbdata[[#This Row],[Year]]=2016,0,tbl_twdbdata[[#This Row],[effsave]]-0.6*SUMIFS(tbl_twdbdata[effsave],tbl_twdbdata[Year],2020,tbl_twdbdata[utility],tbl_twdbdata[[#This Row],[utility]]))","v":7041162.2000000002},969,0,13,0,94033013,0,8266378,0,null,null,{"$f":"tbl_twdbdata[[#This Row],[utility]]&tbl_twdbdata[[#This Row],[Year]]","v":"PALMER PLANTATION MUD 22060"}]
[null,6471,"PALMER PLANTATION MUD 2","H",2070,2488,2956,11825182,{"$f":"IF(tbl_twdbdata[[#This Row],[Year]]=2016,0,tbl_twdbdata[[#This Row],[effsave]]-0.6*SUMIFS(tbl_twdbdata[effsave],tbl_twdbdata[Year],2020,tbl_twdbdata[utility],tbl_twdbdata[[#This Row],[utility]]))","v":7105898.2000000002},969,0,13,0,94033013,0,8266378,0,null,null,{"$f":"tbl_twdbdata[[#This Row],[utility]]&tbl_twdbdata[[#This Row],[Year]]","v":"PALMER PLANTATION MUD 22070"}]
[null,2175,"PAMPA MUNICIPAL WATER SYSTEM","A",2016,17565,17565,0,{"$f":"IF(tbl_twdbdata[[#This Row],[Year]]=2016,0,tbl_twdbdata[[#This Row],[effsave]]-0.6*SUMIFS(tbl_twdbdata[effsave],tbl_twdbdata[Year],2020,tbl_twdbdata[utility],tbl_twdbdata[[#This Row],[utility]]))","v":0},7093,65,872,0,476384000,15905000,189299000,0,20079951,64220491,{"$f":"tbl_twdbdata[[#This Row],[utility]]&tbl_twdbdata[[#This Row],[Year]]","v":"PAMPA MUNICIPAL WATER SYSTEM2016"}]
[null,2175,"PAMPA MUNICIPAL WATER SYSTEM","A",2020,17553,19384,72732645,{"$f":"IF(tbl_twdbdata[[#This Row],[Year]]=2016,0,tbl_twdbdata[[#This Row],[effsave]]-0.6*SUMIFS(tbl_twdbdata[effsave],tbl_twdbdata[Year],2020,tbl_twdbdata[utility],tbl_twdbdata[[#This Row],[utility]]))","v":29093058},7833,72,963,0,526076879,17564093,209045281,0,22174544,70919501,{"$f":"tbl_twdbdata[[#This Row],[utility]]&tbl_twdbdata[[#This Row],[Year]]","v":"PAMPA MUNICIPAL WATER SYSTEM2020"}]
[null,2175,"PAMPA MUNICIPAL WATER SYSTEM","A",2030,17553,21451,117600817,{"$f":"IF(tbl_twdbdata[[#This Row],[Year]]=2016,0,tbl_twdbdata[[#This Row],[effsave]]-0.6*SUMIFS(tbl_twdbdata[effsave],tbl_twdbdata[Year],2020,tbl_twdbdata[utility],tbl_twdbdata[[#This Row],[utility]]))","v":73961230},8668,80,1066,0,582174739,19437028,231336686,0,24539112,78481955,{"$f":"tbl_twdbdata[[#This Row],[utility]]&tbl_twdbdata[[#This Row],[Year]]","v":"PAMPA MUNICIPAL WATER SYSTEM2030"}]
[null,2175,"PAMPA MUNICIPAL WATER SYSTEM","A",2040,17553,23928,160875122,{"$f":"IF(tbl_twdbdata[[#This Row],[Year]]=2016,0,tbl_twdbdata[[#This Row],[effsave]]-0.6*SUMIFS(tbl_twdbdata[effsave],tbl_twdbdata[Year],2020,tbl_twdbdata[utility],tbl_twdbdata[[#This Row],[utility]]))","v":117235535},9669,89,1180,0,649399895,21681470,258049705,0,27372704,87544460,{"$f":"tbl_twdbdata[[#This Row],[utility]]&tbl_twdbdata[[#This Row],[Year]]","v":"PAMPA MUNICIPAL WATER SYSTEM2040"}]
[null,2175,"PAMPA MUNICIPAL WATER SYSTEM","A",2050,17553,27115,187349737,{"$f":"IF(tbl_twdbdata[[#This Row],[Year]]=2016,0,tbl_twdbdata[[#This Row],[effsave]]-0.6*SUMIFS(tbl_twdbdata[effsave],tbl_twdbdata[Year],2020,tbl_twdbdata[utility],tbl_twdbdata[[#This Row],[utility]]))","v":143710150},10957,98,1306,0,735894273,24569252,292419665,0,31018508,99204615,{"$f":"tbl_twdbdata[[#This Row],[utility]]&tbl_twdbdata[[#This Row],[Year]]","v":"PAMPA MUNICIPAL WATER SYSTEM2050"}]
[null,2175,"PAMPA MUNICIPAL WATER SYSTEM","A",2060,17553,29654,208031706,{"$f":"IF(tbl_twdbdata[[#This Row],[Year]]=2016,0,tbl_twdbdata[[#This Row],[effsave]]-0.6*SUMIFS(tbl_twdbdata[effsave],tbl_twdbdata[Year],2020,tbl_twdbdata[utility],tbl_twdbdata[[#This Row],[utility]]))","v":164392119},11983,108,1445,0,804802094,26869873,319801318,0,33923025,108493957,{"$f":"tbl_twdbdata[[#This Row],[utility]]&tbl_twdbdata[[#This Row],[Year]]","v":"PAMPA MUNICIPAL WATER SYSTEM2060"}]
[null,2175,"PAMPA MUNICIPAL WATER SYSTEM","A",2070,17553,32305,227572573,{"$f":"IF(tbl_twdbdata[[#This Row],[Year]]=2016,0,tbl_twdbdata[[#This Row],[effsave]]-0.6*SUMIFS(tbl_twdbdata[effsave],tbl_twdbdata[Year],2020,tbl_twdbdata[utility],tbl_twdbdata[[#This Row],[utility]]))","v":183932986},13054,120,1599,0,876749567,29271978,348390827,0,36955666,118193069,{"$f":"tbl_twdbdata[[#This Row],[utility]]&tbl_twdbdata[[#This Row],[Year]]","v":"PAMPA MUNICIPAL WATER SYSTEM2070"}]
[null,115,"PARIS","D",2016,25400,25400,0,{"$f":"IF(tbl_twdbdata[[#This Row],[Year]]=2016,0,tbl_twdbdata[[#This Row],[effsave]]-0.6*SUMIFS(tbl_twdbdata[effsave],tbl_twdbdata[Year],2020,tbl_twdbdata[utility],tbl_twdbdata[[#This Row],[utility]]))","v":0},8737,0,1931,1,441317020,0,3381995125,74658490,4087015,133058950,{"$f":"tbl_twdbdata[[#This Row],[utility]]&tbl_twdbdata[[#This Row],[Year]]","v":"PARIS2016"}]
[null,115,"PARIS","D",2020,25400,27230,96407815,{"$f":"IF(tbl_twdbdata[[#This Row],[Year]]=2016,0,tbl_twdbdata[[#This Row],[effsave]]-0.6*SUMIFS(tbl_twdbdata[effsave],tbl_twdbdata[Year],2020,tbl_twdbdata[utility],tbl_twdbdata[[#This Row],[utility]]))","v":38563126},9144,0,2021,1,461857199,0,3539403022,78133313,4277237,139251901,{"$f":"tbl_twdbdata[[#This Row],[utility]]&tbl_twdbdata[[#This Row],[Year]]","v":"PARIS2020"}]
[null,115,"PARIS","D",2030,25400,28283,144422897,{"$f":"IF(tbl_twdbdata[[#This Row],[Year]]=2016,0,tbl_twdbdata[[#This Row],[effsave]]-0.6*SUMIFS(tbl_twdbdata[effsave],tbl_twdbdata[Year],2020,tbl_twdbdata[utility],tbl_twdbdata[[#This Row],[utility]]))","v":86578208},9498,0,2100,1,479717487,0,3676273804,81154774,4442640,144636853,{"$f":"tbl_twdbdata[[#This Row],[utility]]&tbl_twdbdata[[#This Row],[Year]]","v":"PARIS2030"}]
[null,115,"PARIS","D",2040,25400,29063,183730473,{"$f":"IF(tbl_twdbdata[[#This Row],[Year]]=2016,0,tbl_twdbdata[[#This Row],[effsave]]-0.6*SUMIFS(tbl_twdbdata[effsave],tbl_twdbdata[Year],2020,tbl_twdbdata[utility],tbl_twdbdata[[#This Row],[utility]]))","v":125885784},9760,0,2182,1,492947330,0,3777659568,83392893,4565161,148625707,{"$f":"tbl_twdbdata[[#This Row],[utility]]&tbl_twdbdata[[#This Row],[Year]]","v":"PARIS2040"}]
[null,115,"PARIS","D",2050,25400,29770,206889592,{"$f":"IF(tbl_twdbdata[[#This Row],[Year]]=2016,0,tbl_twdbdata[[#This Row],[effsave]]-0.6*SUMIFS(tbl_twdbdata[effsave],tbl_twdbdata[Year],2020,tbl_twdbdata[utility],tbl_twdbdata[[#This Row],[utility]]))","v":149044903},9997,0,2267,1,504938995,0,3869556665,85421547,4676215,152241245,{"$f":"tbl_twdbdata[[#This Row],[utility]]&tbl_twdbdata[[#This Row],[Year]]","v":"PARIS2050"}]
[null,115,"PARIS","D",2060,25400,30321,214149643,{"$f":"IF(tbl_twdbdata[[#This Row],[Year]]=2016,0,tbl_twdbdata[[#This Row],[effsave]]-0.6*SUMIFS(tbl_twdbdata[effsave],tbl_twdbdata[Year],2020,tbl_twdbdata[utility],tbl_twdbdata[[#This Row],[utility]]))","v":156304954},10182,0,2355,1,514284692,0,3941176609,87002577,4762765,155059012,{"$f":"tbl_twdbdata[[#This Row],[utility]]&tbl_twdbdata[[#This Row],[Year]]","v":"PARIS2060"}]
[null,115,"PARIS","D",2070,25400,30765,217510088,{"$f":"IF(tbl_twdbdata[[#This Row],[Year]]=2016,0,tbl_twdbdata[[#This Row],[effsave]]-0.6*SUMIFS(tbl_twdbdata[effsave],tbl_twdbdata[Year],2020,tbl_twdbdata[utility],tbl_twdbdata[[#This Row],[utility]]))","v":159665399},10331,0,2446,1,521815526,0,3998888506,88276583,4832508,157329590,{"$f":"tbl_twdbdata[[#This Row],[utility]]&tbl_twdbdata[[#This Row],[Year]]","v":"PARIS2070"}]
[null,3032,"PARKER COUNTY SUD","C",2016,5715,5715,0,{"$f":"IF(tbl_twdbdata[[#This Row],[Year]]=2016,0,tbl_twdbdata[[#This Row],[effsave]]-0.6*SUMIFS(tbl_twdbdata[effsave],tbl_twdbdata[Year],2020,tbl_twdbdata[utility],tbl_twdbdata[[#This Row],[utility]]))","v":0},1695,0,21,0,127752260,0,8747565,0,1972508,19328294,{"$f":"tbl_twdbdata[[#This Row],[utility]]&tbl_twdbdata[[#This Row],[Year]]","v":"PARKER COUNTY SUD2016"}]
[null,3032,"PARKER COUNTY SUD","C",2020,5549,6822,20468047,{"$f":"IF(tbl_twdbdata[[#This Row],[Year]]=2016,0,tbl_twdbdata[[#This Row],[effsave]]-0.6*SUMIFS(tbl_twdbdata[effsave],tbl_twdbdata[Year],2020,tbl_twdbdata[utility],tbl_twdbdata[[#This Row],[utility]]))","v":8187218.8000000007},2084,0,26,0,157059996,0,10754350,0,28801966,37690643,{"$f":"tbl_twdbdata[[#This Row],[utility]]&tbl_twdbdata[[#This Row],[Year]]","v":"PARKER COUNTY SUD2020"}]
[null,3032,"PARKER COUNTY SUD","C",2030,5549,10812,43252325,{"$f":"IF(tbl_twdbdata[[#This Row],[Year]]=2016,0,tbl_twdbdata[[#This Row],[effsave]]-0.6*SUMIFS(tbl_twdbdata[effsave],tbl_twdbdata[Year],2020,tbl_twdbdata[utility],tbl_twdbdata[[#This Row],[utility]]))","v":30971496.800000001},3303,0,41,0,248920064,0,17044273,0,45647443,59734863,{"$f":"tbl_twdbdata[[#This Row],[utility]]&tbl_twdbdata[[#This Row],[Year]]","v":"PARKER COUNTY SUD2030"}]
[null,3032,"PARKER COUNTY SUD","C",2040,5549,14804,66084316,{"$f":"IF(tbl_twdbdata[[#This Row],[Year]]=2016,0,tbl_twdbdata[[#This Row],[effsave]]-0.6*SUMIFS(tbl_twdbdata[effsave],tbl_twdbdata[Year],2020,tbl_twdbdata[utility],tbl_twdbdata[[#This Row],[utility]]))","v":53803487.799999997},4523,0,65,0,340826177,0,23337349,0,62501364,81790132,{"$f":"tbl_twdbdata[[#This Row],[utility]]&tbl_twdbdata[[#This Row],[Year]]","v":"PARKER COUNTY SUD2040"}]
[null,3032,"PARKER COUNTY SUD","C",2050,5549,18800,87970840,{"$f":"IF(tbl_twdbdata[[#This Row],[Year]]=2016,0,tbl_twdbdata[[#This Row],[effsave]]-0.6*SUMIFS(tbl_twdbdata[effsave],tbl_twdbdata[Year],2020,tbl_twdbdata[utility],tbl_twdbdata[[#This Row],[utility]]))","v":75690011.799999997},5744,0,103,0,432824380,0,29636731,0,79372173,103867501,{"$f":"tbl_twdbdata[[#This Row],[utility]]&tbl_twdbdata[[#This Row],[Year]]","v":"PARKER COUNTY SUD2050"}]
[null,3032,"PARKER COUNTY SUD","C",2060,5549,22800,108435660,{"$f":"IF(tbl_twdbdata[[#This Row],[Year]]=2016,0,tbl_twdbdata[[#This Row],[effsave]]-0.6*SUMIFS(tbl_twdbdata[effsave],tbl_twdbdata[Year],2020,tbl_twdbdata[utility],tbl_twdbdata[[#This Row],[utility]]))","v":96154831.799999997},6966,0,163,0,524914674,0,35942418,0,96259869,125966969,{"$f":"tbl_twdbdata[[#This Row],[utility]]&tbl_twdbdata[[#This Row],[Year]]","v":"PARKER COUNTY SUD2060"}]
[null,3032,"PARKER COUNTY SUD","C",2070,5549,26805,128363784,{"$f":"IF(tbl_twdbdata[[#This Row],[Year]]=2016,0,tbl_twdbdata[[#This Row],[effsave]]-0.6*SUMIFS(tbl_twdbdata[effsave],tbl_twdbdata[Year],2020,tbl_twdbdata[utility],tbl_twdbdata[[#This Row],[utility]]))","v":116082955.8},8190,0,258,0,617120081,0,42255987,0,113168675,148094062,{"$f":"tbl_twdbdata[[#This Row],[utility]]&tbl_twdbdata[[#This Row],[Year]]","v":"PARKER COUNTY SUD2070"}]
[null,117,"PASADENA","H",2016,150230,150230,0,{"$f":"IF(tbl_twdbdata[[#This Row],[Year]]=2016,0,tbl_twdbdata[[#This Row],[effsave]]-0.6*SUMIFS(tbl_twdbdata[effsave],tbl_twdbdata[Year],2020,tbl_twdbdata[utility],tbl_twdbdata[[#This Row],[utility]]))","v":0},30849,368,3182,1088,1862077488,1235899360,2279476880,266943211,77725532,537477379,{"$f":"tbl_twdbdata[[#This Row],[utility]]&tbl_twdbdata[[#This Row],[Year]]","v":"PASADENA2016"}]
[null,117,"PASADENA","H",2020,144311,147738,487476305,{"$f":"IF(tbl_twdbdata[[#This Row],[Year]]=2016,0,tbl_twdbdata[[#This Row],[effsave]]-0.6*SUMIFS(tbl_twdbdata[effsave],tbl_twdbdata[Year],2020,tbl_twdbdata[utility],tbl_twdbdata[[#This Row],[utility]]))","v":194990522},31582,377,3257,1114,1906296844,1265248662,2333608355,273282398,79571305,550241028,{"$f":"tbl_twdbdata[[#This Row],[utility]]&tbl_twdbdata[[#This Row],[Year]]","v":"PASADENA2020"}]
[null,117,"PASADENA","H",2030,144311,152302,715446260,{"$f":"IF(tbl_twdbdata[[#This Row],[Year]]=2016,0,tbl_twdbdata[[#This Row],[effsave]]-0.6*SUMIFS(tbl_twdbdata[effsave],tbl_twdbdata[Year],2020,tbl_twdbdata[utility],tbl_twdbdata[[#This Row],[utility]]))","v":422960477},32558,389,3358,1148,1965187169,1304335389,2405699412,281724782,82029464,567239363,{"$f":"tbl_twdbdata[[#This Row],[utility]]&tbl_twdbdata[[#This Row],[Year]]","v":"PASADENA2030"}]
[null,117,"PASADENA","H",2040,144311,156408,906001160,{"$f":"IF(tbl_twdbdata[[#This Row],[Year]]=2016,0,tbl_twdbdata[[#This Row],[effsave]]-0.6*SUMIFS(tbl_twdbdata[effsave],tbl_twdbdata[Year],2020,tbl_twdbdata[utility],tbl_twdbdata[[#This Row],[utility]]))","v":613515377},33436,401,3462,1183,2018167816,1339499741,2470556090,289319968,84240945,582531906,{"$f":"tbl_twdbdata[[#This Row],[utility]]&tbl_twdbdata[[#This Row],[Year]]","v":"PASADENA2040"}]
[null,117,"PASADENA","H",2050,144311,160926,1026740065,{"$f":"IF(tbl_twdbdata[[#This Row],[Year]]=2016,0,tbl_twdbdata[[#This Row],[effsave]]-0.6*SUMIFS(tbl_twdbdata[effsave],tbl_twdbdata[Year],2020,tbl_twdbdata[utility],tbl_twdbdata[[#This Row],[utility]]))","v":734254282},34402,413,3569,1220,2076464592,1378192518,2541920549,297677262,86674328,599358917,{"$f":"tbl_twdbdata[[#This Row],[utility]]&tbl_twdbdata[[#This Row],[Year]]","v":"PASADENA2050"}]
[null,117,"PASADENA","H",2060,144311,165181,1073180957,{"$f":"IF(tbl_twdbdata[[#This Row],[Year]]=2016,0,tbl_twdbdata[[#This Row],[effsave]]-0.6*SUMIFS(tbl_twdbdata[effsave],tbl_twdbdata[Year],2020,tbl_twdbdata[utility],tbl_twdbdata[[#This Row],[utility]]))","v":780695174},35312,426,3680,1258,2131367820,1414632926,2609130770,305548064,88966060,615206401,{"$f":"tbl_twdbdata[[#This Row],[utility]]&tbl_twdbdata[[#This Row],[Year]]","v":"PASADENA2060"}]
[null,117,"PASADENA","H",2070,144311,169574,1104198058,{"$f":"IF(tbl_twdbdata[[#This Row],[Year]]=2016,0,tbl_twdbdata[[#This Row],[effsave]]-0.6*SUMIFS(tbl_twdbdata[effsave],tbl_twdbdata[Year],2020,tbl_twdbdata[utility],tbl_twdbdata[[#This Row],[utility]]))","v":811712275},36251,439,3794,1297,2188051693,1452255185,2678520781,313674136,91332118,631567857,{"$f":"tbl_twdbdata[[#This Row],[utility]]&tbl_twdbdata[[#This Row],[Year]]","v":"PASADENA2070"}]
[null,2184,"PEARLAND","H",2016,123696,123696,0,{"$f":"IF(tbl_twdbdata[[#This Row],[Year]]=2016,0,tbl_twdbdata[[#This Row],[effsave]]-0.6*SUMIFS(tbl_twdbdata[effsave],tbl_twdbdata[Year],2020,tbl_twdbdata[utility],tbl_twdbdata[[#This Row],[utility]]))","v":0},34913,146,2082,0,2652974873,369420500,1502078300,0,null,null,{"$f":"tbl_twdbdata[[#This Row],[utility]]&tbl_twdbdata[[#This Row],[Year]]","v":"PEARLAND2016"}]
[null,2184,"PEARLAND","H",2020,110177,127750,320339513,{"$f":"IF(tbl_twdbdata[[#This Row],[Year]]=2016,0,tbl_twdbdata[[#This Row],[effsave]]-0.6*SUMIFS(tbl_twdbdata[effsave],tbl_twdbdata[Year],2020,tbl_twdbdata[utility],tbl_twdbdata[[#This Row],[utility]]))","v":128135805.20000002},40482,169,2414,0,3076118791,428342294,1741656632,0,null,null,{"$f":"tbl_twdbdata[[#This Row],[utility]]&tbl_twdbdata[[#This Row],[Year]]","v":"PEARLAND2020"}]
[null,2184,"PEARLAND","H",2030,110177,138885,444070899,{"$f":"IF(tbl_twdbdata[[#This Row],[Year]]=2016,0,tbl_twdbdata[[#This Row],[effsave]]-0.6*SUMIFS(tbl_twdbdata[effsave],tbl_twdbdata[Year],2020,tbl_twdbdata[utility],tbl_twdbdata[[#This Row],[utility]]))","v":251867191.20000002},44011,184,2624,0,3344240769,465677648,1893463650,0,null,null,{"$f":"tbl_twdbdata[[#This Row],[utility]]&tbl_twdbdata[[#This Row],[Year]]","v":"PEARLAND2030"}]
[null,2184,"PEARLAND","H",2040,110177,152780,547609354,{"$f":"IF(tbl_twdbdata[[#This Row],[Year]]=2016,0,tbl_twdbdata[[#This Row],[effsave]]-0.6*SUMIFS(tbl_twdbdata[effsave],tbl_twdbdata[Year],2020,tbl_twdbdata[utility],tbl_twdbdata[[#This Row],[utility]]))","v":355405646.20000005},48414,200,2854,0,3678821361,512267207,2082898631,0,null,null,{"$f":"tbl_twdbdata[[#This Row],[utility]]&tbl_twdbdata[[#This Row],[Year]]","v":"PEARLAND2040"}]
[null,2184,"PEARLAND","H",2050,110177,166675,634523391,{"$f":"IF(tbl_twdbdata[[#This Row],[Year]]=2016,0,tbl_twdbdata[[#This Row],[effsave]]-0.6*SUMIFS(tbl_twdbdata[effsave],tbl_twdbdata[Year],2020,tbl_twdbdata[utility],tbl_twdbdata[[#This Row],[utility]]))","v":442319683.20000005},52817,217,3103,0,4013401953,558856766,2272333612,0,null,null,{"$f":"tbl_twdbdata[[#This Row],[utility]]&tbl_twdbdata[[#This Row],[Year]]","v":"PEARLAND2050"}]
[null,2184,"PEARLAND","H",2060,110177,180573,705886943,{"$f":"IF(tbl_twdbdata[[#This Row],[Year]]=2016,0,tbl_twdbdata[[#This Row],[effsave]]-0.6*SUMIFS(tbl_twdbdata[effsave],tbl_twdbdata[Year],2020,tbl_twdbdata[utility],tbl_twdbdata[[#This Row],[utility]]))","v":513683235.20000005},57221,236,3373,0,4348054782,605456384,2461809494,0,null,null,{"$f":"tbl_twdbdata[[#This Row],[utility]]&tbl_twdbdata[[#This Row],[Year]]","v":"PEARLAND2060"}]
[null,2184,"PEARLAND","H",2070,110177,193623,761848418,{"$f":"IF(tbl_twdbdata[[#This Row],[Year]]=2016,0,tbl_twdbdata[[#This Row],[effsave]]-0.6*SUMIFS(tbl_twdbdata[effsave],tbl_twdbdata[Year],2020,tbl_twdbdata[utility],tbl_twdbdata[[#This Row],[utility]]))","v":569644710.20000005},61356,257,3667,0,4662288443,649212681,2639724320,0,null,null,{"$f":"tbl_twdbdata[[#This Row],[utility]]&tbl_twdbdata[[#This Row],[Year]]","v":"PEARLAND2070"}]
[null,2186,"PECAN GROVE MUD 1","H",2016,15078,15078,0,{"$f":"IF(tbl_twdbdata[[#This Row],[Year]]=2016,0,tbl_twdbdata[[#This Row],[effsave]]-0.6*SUMIFS(tbl_twdbdata[effsave],tbl_twdbdata[Year],2020,tbl_twdbdata[utility],tbl_twdbdata[[#This Row],[utility]]))","v":0},4296,578,152,0,456604900,28052200,181775500,0,0,7688945,{"$f":"tbl_twdbdata[[#This Row],[utility]]&tbl_twdbdata[[#This Row],[Year]]","v":"PECAN GROVE MUD 12016"}]
[null,2186,"PECAN GROVE MUD 1","H",2020,13957,13078,46016251,{"$f":"IF(tbl_twdbdata[[#This Row],[Year]]=2016,0,tbl_twdbdata[[#This Row],[effsave]]-0.6*SUMIFS(tbl_twdbdata[effsave],tbl_twdbdata[Year],2020,tbl_twdbdata[utility],tbl_twdbdata[[#This Row],[utility]]))","v":18406500.400000002},4025,542,143,0,427848311,26285496,170327434,0,0,7204702,{"$f":"tbl_twdbdata[[#This Row],[utility]]&tbl_twdbdata[[#This Row],[Year]]","v":"PECAN GROVE MUD 12020"}]
[null,2186,"PECAN GROVE MUD 1","H",2030,13957,13107,67503016,{"$f":"IF(tbl_twdbdata[[#This Row],[Year]]=2016,0,tbl_twdbdata[[#This Row],[effsave]]-0.6*SUMIFS(tbl_twdbdata[effsave],tbl_twdbdata[Year],2020,tbl_twdbdata[utility],tbl_twdbdata[[#This Row],[utility]]))","v":39893265.400000006},4034,543,143,0,428797049,26343783,170705129,0,0,7220678,{"$f":"tbl_twdbdata[[#This Row],[utility]]&tbl_twdbdata[[#This Row],[Year]]","v":"PECAN GROVE MUD 12030"}]
[null,2186,"PECAN GROVE MUD 1","H",2040,13957,13159,85974327,{"$f":"IF(tbl_twdbdata[[#This Row],[Year]]=2016,0,tbl_twdbdata[[#This Row],[effsave]]-0.6*SUMIFS(tbl_twdbdata[effsave],tbl_twdbdata[Year],2020,tbl_twdbdata[utility],tbl_twdbdata[[#This Row],[utility]]))","v":58364576.400000006},4050,544,143,0,430498235,26448298,171382376,0,0,7249325,{"$f":"tbl_twdbdata[[#This Row],[utility]]&tbl_twdbdata[[#This Row],[Year]]","v":"PECAN GROVE MUD 12040"}]
[null,2186,"PECAN GROVE MUD 1","H",2050,13957,13203,88719539,{"$f":"IF(tbl_twdbdata[[#This Row],[Year]]=2016,0,tbl_twdbdata[[#This Row],[effsave]]-0.6*SUMIFS(tbl_twdbdata[effsave],tbl_twdbdata[Year],2020,tbl_twdbdata[utility],tbl_twdbdata[[#This Row],[utility]]))","v":61109788.400000006},4064,545,143,0,431937700,26536734,171955431,0,0,7273565,{"$f":"tbl_twdbdata[[#This Row],[utility]]&tbl_twdbdata[[#This Row],[Year]]","v":"PECAN GROVE MUD 12050"}]
[null,2186,"PECAN GROVE MUD 1","H",2060,13957,13241,90521434,{"$f":"IF(tbl_twdbdata[[#This Row],[Year]]=2016,0,tbl_twdbdata[[#This Row],[effsave]]-0.6*SUMIFS(tbl_twdbdata[effsave],tbl_twdbdata[Year],2020,tbl_twdbdata[utility],tbl_twdbdata[[#This Row],[utility]]))","v":62911683.400000006},4076,546,143,0,433180874,26613110,172450342,0,0,7294499,{"$f":"tbl_twdbdata[[#This Row],[utility]]&tbl_twdbdata[[#This Row],[Year]]","v":"PECAN GROVE MUD 12060"}]
[null,2186,"PECAN GROVE MUD 1","H",2070,13957,13275,90753874,{"$f":"IF(tbl_twdbdata[[#This Row],[Year]]=2016,0,tbl_twdbdata[[#This Row],[effsave]]-0.6*SUMIFS(tbl_twdbdata[effsave],tbl_twdbdata[Year],2020,tbl_twdbdata[utility],tbl_twdbdata[[#This Row],[utility]]))","v":63144123.400000006},4086,547,143,0,434293188,26681447,172893157,0,0,7313230,{"$f":"tbl_twdbdata[[#This Row],[utility]]&tbl_twdbdata[[#This Row],[Year]]","v":"PECAN GROVE MUD 12070"}]
[null,2188,"PECOS","F",2016,9061,9061,0,{"$f":"IF(tbl_twdbdata[[#This Row],[Year]]=2016,0,tbl_twdbdata[[#This Row],[effsave]]-0.6*SUMIFS(tbl_twdbdata[effsave],tbl_twdbdata[Year],2020,tbl_twdbdata[utility],tbl_twdbdata[[#This Row],[utility]]))","v":0},3653,49,584,0,319019000,40236000,522841000,0,13628734,194573958,{"$f":"tbl_twdbdata[[#This Row],[utility]]&tbl_twdbdata[[#This Row],[Year]]","v":"PECOS2016"}]
[null,2188,"PECOS","F",2020,9061,9398,37732970,{"$f":"IF(tbl_twdbdata[[#This Row],[Year]]=2016,0,tbl_twdbdata[[#This Row],[effsave]]-0.6*SUMIFS(tbl_twdbdata[effsave],tbl_twdbdata[Year],2020,tbl_twdbdata[utility],tbl_twdbdata[[#This Row],[utility]]))","v":15093188},3789,51,605,0,330884070,41732472,542286692,0,14135619,201810623,{"$f":"tbl_twdbdata[[#This Row],[utility]]&tbl_twdbdata[[#This Row],[Year]]","v":"PECOS2020"}]
[null,2188,"PECOS","F",2030,9061,10062,59092617,{"$f":"IF(tbl_twdbdata[[#This Row],[Year]]=2016,0,tbl_twdbdata[[#This Row],[effsave]]-0.6*SUMIFS(tbl_twdbdata[effsave],tbl_twdbdata[Year],2020,tbl_twdbdata[utility],tbl_twdbdata[[#This Row],[utility]]))","v":36452835},4057,55,648,0,354262132,44681010,580601053,0,15134348,216069216,{"$f":"tbl_twdbdata[[#This Row],[utility]]&tbl_twdbdata[[#This Row],[Year]]","v":"PECOS2030"}]
[null,2188,"PECOS","F",2040,9061,10599,66656581,{"$f":"IF(tbl_twdbdata[[#This Row],[Year]]=2016,0,tbl_twdbdata[[#This Row],[effsave]]-0.6*SUMIFS(tbl_twdbdata[effsave],tbl_twdbdata[Year],2020,tbl_twdbdata[utility],tbl_twdbdata[[#This Row],[utility]]))","v":44016799},4274,59,694,0,373168787,47065596,611587215,0,15942055,227600638,{"$f":"tbl_twdbdata[[#This Row],[utility]]&tbl_twdbdata[[#This Row],[Year]]","v":"PECOS2040"}]
[null,2188,"PECOS","F",2050,9061,10967,70211831,{"$f":"IF(tbl_twdbdata[[#This Row],[Year]]=2016,0,tbl_twdbdata[[#This Row],[effsave]]-0.6*SUMIFS(tbl_twdbdata[effsave],tbl_twdbdata[Year],2020,tbl_twdbdata[utility],tbl_twdbdata[[#This Row],[utility]]))","v":47572049},4422,63,744,0,386125303,48699726,632821680,0,16495567,235502991,{"$f":"tbl_twdbdata[[#This Row],[utility]]&tbl_twdbdata[[#This Row],[Year]]","v":"PECOS2050"}]
[null,2188,"PECOS","F",2060,9061,11250,73173375,{"$f":"IF(tbl_twdbdata[[#This Row],[Year]]=2016,0,tbl_twdbdata[[#This Row],[effsave]]-0.6*SUMIFS(tbl_twdbdata[effsave],tbl_twdbdata[Year],2020,tbl_twdbdata[utility],tbl_twdbdata[[#This Row],[utility]]))","v":50533593},4536,67,797,0,396089146,49956407,649151446,0,16921230,241580072,{"$f":"tbl_twdbdata[[#This Row],[utility]]&tbl_twdbdata[[#This Row],[Year]]","v":"PECOS2060"}]
[null,2188,"PECOS","F",2070,9061,11460,74664765,{"$f":"IF(tbl_twdbdata[[#This Row],[Year]]=2016,0,tbl_twdbdata[[#This Row],[effsave]]-0.6*SUMIFS(tbl_twdbdata[effsave],tbl_twdbdata[Year],2020,tbl_twdbdata[utility],tbl_twdbdata[[#This Row],[utility]]))","v":52024983},4621,72,853,0,403482810,50888927,661268940,0,17237093,246089567,{"$f":"tbl_twdbdata[[#This Row],[utility]]&tbl_twdbdata[[#This Row],[Year]]","v":"PECOS2070"}]
[null,2193,"PERRYTON MUNICIPAL WATER SYSTEM","A",2016,8802,8802,0,{"$f":"IF(tbl_twdbdata[[#This Row],[Year]]=2016,0,tbl_twdbdata[[#This Row],[effsave]]-0.6*SUMIFS(tbl_twdbdata[effsave],tbl_twdbdata[Year],2020,tbl_twdbdata[utility],tbl_twdbdata[[#This Row],[utility]]))","v":0},3172,65,526,0,387735600,8308620,65545780,0,null,null,{"$f":"tbl_twdbdata[[#This Row],[utility]]&tbl_twdbdata[[#This Row],[Year]]","v":"PERRYTON MUNICIPAL WATER SYSTEM2016"}]
[null,2193,"PERRYTON MUNICIPAL WATER SYSTEM","A",2020,8802,9263,32018023,{"$f":"IF(tbl_twdbdata[[#This Row],[Year]]=2016,0,tbl_twdbdata[[#This Row],[effsave]]-0.6*SUMIFS(tbl_twdbdata[effsave],tbl_twdbdata[Year],2020,tbl_twdbdata[utility],tbl_twdbdata[[#This Row],[utility]]))","v":12807209.199999999},3186,65,528,0,389501666,8346464,65844330,0,null,null,{"$f":"tbl_twdbdata[[#This Row],[utility]]&tbl_twdbdata[[#This Row],[Year]]","v":"PERRYTON MUNICIPAL WATER SYSTEM2020"}]
[null,2193,"PERRYTON MUNICIPAL WATER SYSTEM","A",2030,8802,9954,48430689,{"$f":"IF(tbl_twdbdata[[#This Row],[Year]]=2016,0,tbl_twdbdata[[#This Row],[effsave]]-0.6*SUMIFS(tbl_twdbdata[effsave],tbl_twdbdata[Year],2020,tbl_twdbdata[utility],tbl_twdbdata[[#This Row],[utility]]))","v":29219875.199999999},3424,70,568,0,418557658,8969092,70756177,0,null,null,{"$f":"tbl_twdbdata[[#This Row],[utility]]&tbl_twdbdata[[#This Row],[Year]]","v":"PERRYTON MUNICIPAL WATER SYSTEM2030"}]
[null,2193,"PERRYTON MUNICIPAL WATER SYSTEM","A",2040,8802,10697,62939009,{"$f":"IF(tbl_twdbdata[[#This Row],[Year]]=2016,0,tbl_twdbdata[[#This Row],[effsave]]-0.6*SUMIFS(tbl_twdbdata[effsave],tbl_twdbdata[Year],2020,tbl_twdbdata[utility],tbl_twdbdata[[#This Row],[utility]]))","v":43728195.200000003},3680,75,610,0,449800208,9638575,76037656,0,null,null,{"$f":"tbl_twdbdata[[#This Row],[utility]]&tbl_twdbdata[[#This Row],[Year]]","v":"PERRYTON MUNICIPAL WATER SYSTEM2040"}]
[null,2193,"PERRYTON MUNICIPAL WATER SYSTEM","A",2050,8802,11496,73640502,{"$f":"IF(tbl_twdbdata[[#This Row],[Year]]=2016,0,tbl_twdbdata[[#This Row],[effsave]]-0.6*SUMIFS(tbl_twdbdata[effsave],tbl_twdbdata[Year],2020,tbl_twdbdata[utility],tbl_twdbdata[[#This Row],[utility]]))","v":54429688.200000003},3955,81,656,0,483397512,10358517,81717200,0,null,null,{"$f":"tbl_twdbdata[[#This Row],[utility]]&tbl_twdbdata[[#This Row],[Year]]","v":"PERRYTON MUNICIPAL WATER SYSTEM2050"}]
[null,2193,"PERRYTON MUNICIPAL WATER SYSTEM","A",2060,8802,12353,80527972,{"$f":"IF(tbl_twdbdata[[#This Row],[Year]]=2016,0,tbl_twdbdata[[#This Row],[effsave]]-0.6*SUMIFS(tbl_twdbdata[effsave],tbl_twdbdata[Year],2020,tbl_twdbdata[utility],tbl_twdbdata[[#This Row],[utility]]))","v":61317158.200000003},4250,87,705,0,519433670,11130720,87809026,0,null,null,{"$f":"tbl_twdbdata[[#This Row],[utility]]&tbl_twdbdata[[#This Row],[Year]]","v":"PERRYTON MUNICIPAL WATER SYSTEM2060"}]
[null,2193,"PERRYTON MUNICIPAL WATER SYSTEM","A",2070,8802,13276,86884118,{"$f":"IF(tbl_twdbdata[[#This Row],[Year]]=2016,0,tbl_twdbdata[[#This Row],[effsave]]-0.6*SUMIFS(tbl_twdbdata[effsave],tbl_twdbdata[Year],2020,tbl_twdbdata[utility],tbl_twdbdata[[#This Row],[utility]]))","v":67673304.200000003},4568,93,757,0,558245074,11962393,94370002,0,null,null,{"$f":"tbl_twdbdata[[#This Row],[utility]]&tbl_twdbdata[[#This Row],[Year]]","v":"PERRYTON MUNICIPAL WATER SYSTEM2070"}]
[null,2196,"PFLUGERVILLE","K",2016,23147,33575,0,{"$f":"IF(tbl_twdbdata[[#This Row],[Year]]=2016,0,tbl_twdbdata[[#This Row],[effsave]]-0.6*SUMIFS(tbl_twdbdata[effsave],tbl_twdbdata[Year],2020,tbl_twdbdata[utility],tbl_twdbdata[[#This Row],[utility]]))","v":0},12158,29,548,0,1104928500,72574700,326714900,0,67557075,191492942,{"$f":"tbl_twdbdata[[#This Row],[utility]]&tbl_twdbdata[[#This Row],[Year]]","v":"PFLUGERVILLE2016"}]
[null,2196,"PFLUGERVILLE","K",2020,23147,63118,161036109,{"$f":"IF(tbl_twdbdata[[#This Row],[Year]]=2016,0,tbl_twdbdata[[#This Row],[effsave]]-0.6*SUMIFS(tbl_twdbdata[effsave],tbl_twdbdata[Year],2020,tbl_twdbdata[utility],tbl_twdbdata[[#This Row],[utility]]))","v":64414443.600000009},18840,45,849,0,1712230907,112463969,506287375,0,104688504,296743304,{"$f":"tbl_twdbdata[[#This Row],[utility]]&tbl_twdbdata[[#This Row],[Year]]","v":"PFLUGERVILLE2020"}]
[null,2196,"PFLUGERVILLE","K",2030,23147,78714,251105531,{"$f":"IF(tbl_twdbdata[[#This Row],[Year]]=2016,0,tbl_twdbdata[[#This Row],[effsave]]-0.6*SUMIFS(tbl_twdbdata[effsave],tbl_twdbdata[Year],2020,tbl_twdbdata[utility],tbl_twdbdata[[#This Row],[utility]]))","v":154483865.60000002},23495,56,1059,0,2135310745,140253000,631387313,0,130556274,370066422,{"$f":"tbl_twdbdata[[#This Row],[utility]]&tbl_twdbdata[[#This Row],[Year]]","v":"PFLUGERVILLE2030"}]
[null,2196,"PFLUGERVILLE","K",2040,23147,96187,327911102,{"$f":"IF(tbl_twdbdata[[#This Row],[Year]]=2016,0,tbl_twdbdata[[#This Row],[effsave]]-0.6*SUMIFS(tbl_twdbdata[effsave],tbl_twdbdata[Year],2020,tbl_twdbdata[utility],tbl_twdbdata[[#This Row],[utility]]))","v":231289436.60000002},28710,70,1321,0,2609308822,171386479,771543201,0,159537266,452214078,{"$f":"tbl_twdbdata[[#This Row],[utility]]&tbl_twdbdata[[#This Row],[Year]]","v":"PFLUGERVILLE2040"}]
[null,2196,"PFLUGERVILLE","K",2050,23147,113524,400688634,{"$f":"IF(tbl_twdbdata[[#This Row],[Year]]=2016,0,tbl_twdbdata[[#This Row],[effsave]]-0.6*SUMIFS(tbl_twdbdata[effsave],tbl_twdbdata[Year],2020,tbl_twdbdata[utility],tbl_twdbdata[[#This Row],[utility]]))","v":304066968.60000002},33885,87,1647,0,3079617565,202277633,910608194,0,188292686,533722343,{"$f":"tbl_twdbdata[[#This Row],[utility]]&tbl_twdbdata[[#This Row],[Year]]","v":"PFLUGERVILLE2050"}]
[null,2196,"PFLUGERVILLE","K",2060,23147,131029,470125501,{"$f":"IF(tbl_twdbdata[[#This Row],[Year]]=2016,0,tbl_twdbdata[[#This Row],[effsave]]-0.6*SUMIFS(tbl_twdbdata[effsave],tbl_twdbdata[Year],2020,tbl_twdbdata[utility],tbl_twdbdata[[#This Row],[utility]]))","v":373503835.60000002},39110,108,2054,0,3554483721,233468130,1051020762,0,217326753,616020444,{"$f":"tbl_twdbdata[[#This Row],[utility]]&tbl_twdbdata[[#This Row],[Year]]","v":"PFLUGERVILLE2060"}]
[null,2196,"PFLUGERVILLE","K",2070,23147,131180,474018930,{"$f":"IF(tbl_twdbdata[[#This Row],[Year]]=2016,0,tbl_twdbdata[[#This Row],[effsave]]-0.6*SUMIFS(tbl_twdbdata[effsave],tbl_twdbdata[Year],2020,tbl_twdbdata[utility],tbl_twdbdata[[#This Row],[utility]]))","v":377397264.60000002},39155,135,2562,0,3558579967,233737183,1052231976,0,217577204,616730356,{"$f":"tbl_twdbdata[[#This Row],[utility]]&tbl_twdbdata[[#This Row],[Year]]","v":"PFLUGERVILLE2070"}]
[null,2197,"PHARR","M",2016,76538,76538,0,{"$f":"IF(tbl_twdbdata[[#This Row],[Year]]=2016,0,tbl_twdbdata[[#This Row],[effsave]]-0.6*SUMIFS(tbl_twdbdata[effsave],tbl_twdbdata[Year],2020,tbl_twdbdata[utility],tbl_twdbdata[[#This Row],[utility]]))","v":0},18109,0,1986,0,1655173900,0,782802600,0,34839348,183447204,{"$f":"tbl_twdbdata[[#This Row],[utility]]&tbl_twdbdata[[#This Row],[Year]]","v":"PHARR2016"}]
[null,2197,"PHARR","M",2020,76538,89220,283643763,{"$f":"IF(tbl_twdbdata[[#This Row],[Year]]=2016,0,tbl_twdbdata[[#This Row],[effsave]]-0.6*SUMIFS(tbl_twdbdata[effsave],tbl_twdbdata[Year],2020,tbl_twdbdata[utility],tbl_twdbdata[[#This Row],[utility]]))","v":113457505.20000002},20000,0,2193,0,1827995486,0,864537327,0,38477027,202601467,{"$f":"tbl_twdbdata[[#This Row],[utility]]&tbl_twdbdata[[#This Row],[Year]]","v":"PHARR2020"}]
[null,2197,"PHARR","M",2030,76538,110785,478768456,{"$f":"IF(tbl_twdbdata[[#This Row],[Year]]=2016,0,tbl_twdbdata[[#This Row],[effsave]]-0.6*SUMIFS(tbl_twdbdata[effsave],tbl_twdbdata[Year],2020,tbl_twdbdata[utility],tbl_twdbdata[[#This Row],[utility]]))","v":308582198.20000005},24834,0,2723,0,2269832772,0,1073501096,0,47777151,251571436,{"$f":"tbl_twdbdata[[#This Row],[utility]]&tbl_twdbdata[[#This Row],[Year]]","v":"PHARR2030"}]
[null,2197,"PHARR","M",2040,76538,132436,652094999,{"$f":"IF(tbl_twdbdata[[#This Row],[Year]]=2016,0,tbl_twdbdata[[#This Row],[effsave]]-0.6*SUMIFS(tbl_twdbdata[effsave],tbl_twdbdata[Year],2020,tbl_twdbdata[utility],tbl_twdbdata[[#This Row],[utility]]))","v":481908741.20000005},29687,0,3381,0,2713432080,0,1283298201,0,57114364,300736694,{"$f":"tbl_twdbdata[[#This Row],[utility]]&tbl_twdbdata[[#This Row],[Year]]","v":"PHARR2040"}]
[null,2197,"PHARR","M",2050,76538,154131,802799020,{"$f":"IF(tbl_twdbdata[[#This Row],[Year]]=2016,0,tbl_twdbdata[[#This Row],[effsave]]-0.6*SUMIFS(tbl_twdbdata[effsave],tbl_twdbdata[Year],2020,tbl_twdbdata[utility],tbl_twdbdata[[#This Row],[utility]]))","v":632612762.20000005},34550,0,4198,0,3157932888,0,1493521663,0,66470552,350001868,{"$f":"tbl_twdbdata[[#This Row],[utility]]&tbl_twdbdata[[#This Row],[Year]]","v":"PHARR2050"}]
[null,2197,"PHARR","M",2060,76538,175826,930559105,{"$f":"IF(tbl_twdbdata[[#This Row],[Year]]=2016,0,tbl_twdbdata[[#This Row],[effsave]]-0.6*SUMIFS(tbl_twdbdata[effsave],tbl_twdbdata[Year],2020,tbl_twdbdata[utility],tbl_twdbdata[[#This Row],[utility]]))","v":760372847.20000005},39413,0,5213,0,3602433696,0,1703745125,0,75826740,399267042,{"$f":"tbl_twdbdata[[#This Row],[utility]]&tbl_twdbdata[[#This Row],[Year]]","v":"PHARR2060"}]
[null,2197,"PHARR","M",2070,76538,196917,1047933199,{"$f":"IF(tbl_twdbdata[[#This Row],[Year]]=2016,0,tbl_twdbdata[[#This Row],[effsave]]-0.6*SUMIFS(tbl_twdbdata[effsave],tbl_twdbdata[Year],2020,tbl_twdbdata[utility],tbl_twdbdata[[#This Row],[utility]]))","v":877746941.20000005},44141,0,6473,0,4034559372,0,1908115858,0,84922447,447160648,{"$f":"tbl_twdbdata[[#This Row],[utility]]&tbl_twdbdata[[#This Row],[Year]]","v":"PHARR2070"}]
[null,2207,"PLAINVIEW","O",2016,22194,22194,0,{"$f":"IF(tbl_twdbdata[[#This Row],[Year]]=2016,0,tbl_twdbdata[[#This Row],[effsave]]-0.6*SUMIFS(tbl_twdbdata[effsave],tbl_twdbdata[Year],2020,tbl_twdbdata[utility],tbl_twdbdata[[#This Row],[utility]]))","v":0},6109,282,897,322,520621000,73145000,275020000,93465000,null,null,{"$f":"tbl_twdbdata[[#This Row],[utility]]&tbl_twdbdata[[#This Row],[Year]]","v":"PLAINVIEW2016"}]
[null,2207,"PLAINVIEW","O",2020,22194,24624,87091394,{"$f":"IF(tbl_twdbdata[[#This Row],[Year]]=2016,0,tbl_twdbdata[[#This Row],[effsave]]-0.6*SUMIFS(tbl_twdbdata[effsave],tbl_twdbdata[Year],2020,tbl_twdbdata[utility],tbl_twdbdata[[#This Row],[utility]]))","v":34836557.600000001},6542,302,961,345,557502566,78326701,294502826,100086200,null,null,{"$f":"tbl_twdbdata[[#This Row],[utility]]&tbl_twdbdata[[#This Row],[Year]]","v":"PLAINVIEW2020"}]
[null,2207,"PLAINVIEW","O",2030,22194,25685,130312848,{"$f":"IF(tbl_twdbdata[[#This Row],[Year]]=2016,0,tbl_twdbdata[[#This Row],[effsave]]-0.6*SUMIFS(tbl_twdbdata[effsave],tbl_twdbdata[Year],2020,tbl_twdbdata[utility],tbl_twdbdata[[#This Row],[utility]]))","v":78058011.599999994},6824,315,1002,360,581524261,81701645,307192377,104398719,null,null,{"$f":"tbl_twdbdata[[#This Row],[utility]]&tbl_twdbdata[[#This Row],[Year]]","v":"PLAINVIEW2030"}]
[null,2207,"PLAINVIEW","O",2040,22194,26123,162951356,{"$f":"IF(tbl_twdbdata[[#This Row],[Year]]=2016,0,tbl_twdbdata[[#This Row],[effsave]]-0.6*SUMIFS(tbl_twdbdata[effsave],tbl_twdbdata[Year],2020,tbl_twdbdata[utility],tbl_twdbdata[[#This Row],[utility]]))","v":110696519.59999999},6940,329,1045,376,591440851,83094883,312430853,106179005,null,null,{"$f":"tbl_twdbdata[[#This Row],[utility]]&tbl_twdbdata[[#This Row],[Year]]","v":"PLAINVIEW2040"}]
[null,2207,"PLAINVIEW","O",2050,22194,25905,177571004,{"$f":"IF(tbl_twdbdata[[#This Row],[Year]]=2016,0,tbl_twdbdata[[#This Row],[effsave]]-0.6*SUMIFS(tbl_twdbdata[effsave],tbl_twdbdata[Year],2020,tbl_twdbdata[utility],tbl_twdbdata[[#This Row],[utility]]))","v":125316167.59999999},6882,343,1090,392,586505196,82401445,309823575,105292927,null,null,{"$f":"tbl_twdbdata[[#This Row],[utility]]&tbl_twdbdata[[#This Row],[Year]]","v":"PLAINVIEW2050"}]
[null,2207,"PLAINVIEW","O",2060,22194,26587,185448313,{"$f":"IF(tbl_twdbdata[[#This Row],[Year]]=2016,0,tbl_twdbdata[[#This Row],[effsave]]-0.6*SUMIFS(tbl_twdbdata[effsave],tbl_twdbdata[Year],2020,tbl_twdbdata[utility],tbl_twdbdata[[#This Row],[utility]]))","v":133193476.59999999},7063,358,1137,409,601946097,84570825,317980289,108064970,null,null,{"$f":"tbl_twdbdata[[#This Row],[utility]]&tbl_twdbdata[[#This Row],[Year]]","v":"PLAINVIEW2060"}]
[null,2207,"PLAINVIEW","O",2070,22194,26874,187646361,{"$f":"IF(tbl_twdbdata[[#This Row],[Year]]=2016,0,tbl_twdbdata[[#This Row],[effsave]]-0.6*SUMIFS(tbl_twdbdata[effsave],tbl_twdbdata[Year],2020,tbl_twdbdata[utility],tbl_twdbdata[[#This Row],[utility]]))","v":135391524.59999999},7139,373,1186,427,608443954,85483746,321412806,109231504,null,null,{"$f":"tbl_twdbdata[[#This Row],[utility]]&tbl_twdbdata[[#This Row],[Year]]","v":"PLAINVIEW2070"}]
[null,2208,"PLANO","C",2016,277400,277400,0,{"$f":"IF(tbl_twdbdata[[#This Row],[Year]]=2016,0,tbl_twdbdata[[#This Row],[effsave]]-0.6*SUMIFS(tbl_twdbdata[effsave],tbl_twdbdata[Year],2020,tbl_twdbdata[utility],tbl_twdbdata[[#This Row],[utility]]))","v":0},71773,1896,10412,0,9528527000,121588000,6566383000,0,1758087375,3586126625,{"$f":"tbl_twdbdata[[#This Row],[utility]]&tbl_twdbdata[[#This Row],[Year]]","v":"PLANO2016"}]
[null,2208,"PLANO","C",2020,267773,286600,846286810,{"$f":"IF(tbl_twdbdata[[#This Row],[Year]]=2016,0,tbl_twdbdata[[#This Row],[effsave]]-0.6*SUMIFS(tbl_twdbdata[effsave],tbl_twdbdata[Year],2020,tbl_twdbdata[utility],tbl_twdbdata[[#This Row],[utility]]))","v":338514724},76819,2029,11143,0,10198473476,130136798,7028062455,0,1881697713,3838265586,{"$f":"tbl_twdbdata[[#This Row],[utility]]&tbl_twdbdata[[#This Row],[Year]]","v":"PLANO2020"}]
[null,2208,"PLANO","C",2030,267773,291144,1196572726,{"$f":"IF(tbl_twdbdata[[#This Row],[Year]]=2016,0,tbl_twdbdata[[#This Row],[effsave]]-0.6*SUMIFS(tbl_twdbdata[effsave],tbl_twdbdata[Year],2020,tbl_twdbdata[utility],tbl_twdbdata[[#This Row],[utility]]))","v":688800640},78037,2061,11319,0,10360168743,132200097,7139491330,0,1911531748,3899120711,{"$f":"tbl_twdbdata[[#This Row],[utility]]&tbl_twdbdata[[#This Row],[Year]]","v":"PLANO2030"}]
[null,2208,"PLANO","C",2040,267773,295663,1469829472,{"$f":"IF(tbl_twdbdata[[#This Row],[Year]]=2016,0,tbl_twdbdata[[#This Row],[effsave]]-0.6*SUMIFS(tbl_twdbdata[effsave],tbl_twdbdata[Year],2020,tbl_twdbdata[utility],tbl_twdbdata[[#This Row],[utility]]))","v":962057386},79248,2094,11498,0,10520974401,134252045,7250307151,0,1941201643,3959641026,{"$f":"tbl_twdbdata[[#This Row],[utility]]&tbl_twdbdata[[#This Row],[Year]]","v":"PLANO2040"}]
[null,2208,"PLANO","C",2050,267773,296547,1607358877,{"$f":"IF(tbl_twdbdata[[#This Row],[Year]]=2016,0,tbl_twdbdata[[#This Row],[effsave]]-0.6*SUMIFS(tbl_twdbdata[effsave],tbl_twdbdata[Year],2020,tbl_twdbdata[utility],tbl_twdbdata[[#This Row],[utility]]))","v":1099586791},79485,2127,11680,0,10552430963,134653444,7271984775,0,1947005623,3971479919,{"$f":"tbl_twdbdata[[#This Row],[utility]]&tbl_twdbdata[[#This Row],[Year]]","v":"PLANO2050"}]
[null,2208,"PLANO","C",2060,267773,297000,1641251700,{"$f":"IF(tbl_twdbdata[[#This Row],[Year]]=2016,0,tbl_twdbdata[[#This Row],[effsave]]-0.6*SUMIFS(tbl_twdbdata[effsave],tbl_twdbdata[Year],2020,tbl_twdbdata[utility],tbl_twdbdata[[#This Row],[utility]]))","v":1133479614},79606,2161,11865,0,10568550672,134859138,7283093332,0,1949979835,3977546682,{"$f":"tbl_twdbdata[[#This Row],[utility]]&tbl_twdbdata[[#This Row],[Year]]","v":"PLANO2060"}]
[null,2208,"PLANO","C",2070,267773,300000,1657830000,{"$f":"IF(tbl_twdbdata[[#This Row],[Year]]=2016,0,tbl_twdbdata[[#This Row],[effsave]]-0.6*SUMIFS(tbl_twdbdata[effsave],tbl_twdbdata[Year],2020,tbl_twdbdata[utility],tbl_twdbdata[[#This Row],[utility]]))","v":1150057914},80410,2195,12052,0,10675303709,136221352,7356659931,0,1969676601,4017723921,{"$f":"tbl_twdbdata[[#This Row],[utility]]&tbl_twdbdata[[#This Row],[Year]]","v":"PLANO2070"}]
[null,6488,"PLEASANT SPRINGS WSC","I",2016,918,918,0,{"$f":"IF(tbl_twdbdata[[#This Row],[Year]]=2016,0,tbl_twdbdata[[#This Row],[effsave]]-0.6*SUMIFS(tbl_twdbdata[effsave],tbl_twdbdata[Year],2020,tbl_twdbdata[utility],tbl_twdbdata[[#This Row],[utility]]))","v":0},317,0,1,0,28849000,0,36000,0,null,null,{"$f":"tbl_twdbdata[[#This Row],[utility]]&tbl_twdbdata[[#This Row],[Year]]","v":"PLEASANT SPRINGS WSC2016"}]
[null,6488,"PLEASANT SPRINGS WSC","I",2020,918,974,3270692,{"$f":"IF(tbl_twdbdata[[#This Row],[Year]]=2016,0,tbl_twdbdata[[#This Row],[effsave]]-0.6*SUMIFS(tbl_twdbdata[effsave],tbl_twdbdata[Year],2020,tbl_twdbdata[utility],tbl_twdbdata[[#This Row],[utility]]))","v":1308276.8},331,0,1,0,30149062,0,37622,0,null,null,{"$f":"tbl_twdbdata[[#This Row],[utility]]&tbl_twdbdata[[#This Row],[Year]]","v":"PLEASANT SPRINGS WSC2020"}]
[null,6488,"PLEASANT SPRINGS WSC","I",2030,918,1007,4789242,{"$f":"IF(tbl_twdbdata[[#This Row],[Year]]=2016,0,tbl_twdbdata[[#This Row],[effsave]]-0.6*SUMIFS(tbl_twdbdata[effsave],tbl_twdbdata[Year],2020,tbl_twdbdata[utility],tbl_twdbdata[[#This Row],[utility]]))","v":2826826.8},342,0,1,0,31170539,0,38897,0,null,null,{"$f":"tbl_twdbdata[[#This Row],[utility]]&tbl_twdbdata[[#This Row],[Year]]","v":"PLEASANT SPRINGS WSC2030"}]
[null,6488,"PLEASANT SPRINGS WSC","I",2040,918,1018,5911679,{"$f":"IF(tbl_twdbdata[[#This Row],[Year]]=2016,0,tbl_twdbdata[[#This Row],[effsave]]-0.6*SUMIFS(tbl_twdbdata[effsave],tbl_twdbdata[Year],2020,tbl_twdbdata[utility],tbl_twdbdata[[#This Row],[utility]]))","v":3949263.8},346,0,1,0,31511031,0,39322,0,null,null,{"$f":"tbl_twdbdata[[#This Row],[utility]]&tbl_twdbdata[[#This Row],[Year]]","v":"PLEASANT SPRINGS WSC2040"}]
[null,6488,"PLEASANT SPRINGS WSC","I",2050,918,1018,6483897,{"$f":"IF(tbl_twdbdata[[#This Row],[Year]]=2016,0,tbl_twdbdata[[#This Row],[effsave]]-0.6*SUMIFS(tbl_twdbdata[effsave],tbl_twdbdata[Year],2020,tbl_twdbdata[utility],tbl_twdbdata[[#This Row],[utility]]))","v":4521481.8},346,0,1,0,31511031,0,39322,0,null,null,{"$f":"tbl_twdbdata[[#This Row],[utility]]&tbl_twdbdata[[#This Row],[Year]]","v":"PLEASANT SPRINGS WSC2050"}]
[null,6488,"PLEASANT SPRINGS WSC","I",2060,918,1018,6595368,{"$f":"IF(tbl_twdbdata[[#This Row],[Year]]=2016,0,tbl_twdbdata[[#This Row],[effsave]]-0.6*SUMIFS(tbl_twdbdata[effsave],tbl_twdbdata[Year],2020,tbl_twdbdata[utility],tbl_twdbdata[[#This Row],[utility]]))","v":4632952.8},346,0,1,0,31511031,0,39322,0,null,null,{"$f":"tbl_twdbdata[[#This Row],[utility]]&tbl_twdbdata[[#This Row],[Year]]","v":"PLEASANT SPRINGS WSC2060"}]
[null,6488,"PLEASANT SPRINGS WSC","I",2070,918,1018,6602799,{"$f":"IF(tbl_twdbdata[[#This Row],[Year]]=2016,0,tbl_twdbdata[[#This Row],[effsave]]-0.6*SUMIFS(tbl_twdbdata[effsave],tbl_twdbdata[Year],2020,tbl_twdbdata[utility],tbl_twdbdata[[#This Row],[utility]]))","v":4640383.8},346,0,1,0,31511031,0,39322,0,null,null,{"$f":"tbl_twdbdata[[#This Row],[utility]]&tbl_twdbdata[[#This Row],[Year]]","v":"PLEASANT SPRINGS WSC2070"}]
[null,2211,"PLEASANTON","L",2016,12564,12564,0,{"$f":"IF(tbl_twdbdata[[#This Row],[Year]]=2016,0,tbl_twdbdata[[#This Row],[effsave]]-0.6*SUMIFS(tbl_twdbdata[effsave],tbl_twdbdata[Year],2020,tbl_twdbdata[utility],tbl_twdbdata[[#This Row],[utility]]))","v":0},4188,0,613,0,427462000,0,143445000,0,7702895,37621737,{"$f":"tbl_twdbdata[[#This Row],[utility]]&tbl_twdbdata[[#This Row],[Year]]","v":"PLEASANTON2016"}]
[null,2211,"PLEASANTON","L",2020,11748,11142,41237656,{"$f":"IF(tbl_twdbdata[[#This Row],[Year]]=2016,0,tbl_twdbdata[[#This Row],[effsave]]-0.6*SUMIFS(tbl_twdbdata[effsave],tbl_twdbdata[Year],2020,tbl_twdbdata[utility],tbl_twdbdata[[#This Row],[utility]]))","v":16495062.400000002},3972,0,581,0,405412122,0,136045641,0,7305555,35681086,{"$f":"tbl_twdbdata[[#This Row],[utility]]&tbl_twdbdata[[#This Row],[Year]]","v":"PLEASANTON2020"}]
[null,2211,"PLEASANTON","L",2030,11748,12875,67154069,{"$f":"IF(tbl_twdbdata[[#This Row],[Year]]=2016,0,tbl_twdbdata[[#This Row],[effsave]]-0.6*SUMIFS(tbl_twdbdata[effsave],tbl_twdbdata[Year],2020,tbl_twdbdata[utility],tbl_twdbdata[[#This Row],[utility]]))","v":42411475.400000006},4590,0,671,0,468468953,0,157205855,0,8441844,41230837,{"$f":"tbl_twdbdata[[#This Row],[utility]]&tbl_twdbdata[[#This Row],[Year]]","v":"PLEASANTON2030"}]
[null,2211,"PLEASANTON","L",2040,11748,14454,89317770,{"$f":"IF(tbl_twdbdata[[#This Row],[Year]]=2016,0,tbl_twdbdata[[#This Row],[effsave]]-0.6*SUMIFS(tbl_twdbdata[effsave],tbl_twdbdata[Year],2020,tbl_twdbdata[utility],tbl_twdbdata[[#This Row],[utility]]))","v":64575176.400000006},5153,0,776,0,525922349,0,176485703,0,9477158,46287419,{"$f":"tbl_twdbdata[[#This Row],[utility]]&tbl_twdbdata[[#This Row],[Year]]","v":"PLEASANTON2040"}]
[null,2211,"PLEASANTON","L",2050,11748,15996,106203043,{"$f":"IF(tbl_twdbdata[[#This Row],[Year]]=2016,0,tbl_twdbdata[[#This Row],[effsave]]-0.6*SUMIFS(tbl_twdbdata[effsave],tbl_twdbdata[Year],2020,tbl_twdbdata[utility],tbl_twdbdata[[#This Row],[utility]]))","v":81460449.400000006},5703,0,897,0,582029466,0,195313775,0,10488212,51225512,{"$f":"tbl_twdbdata[[#This Row],[utility]]&tbl_twdbdata[[#This Row],[Year]]","v":"PLEASANTON2050"}]
[null,2211,"PLEASANTON","L",2060,11748,17446,117549403,{"$f":"IF(tbl_twdbdata[[#This Row],[Year]]=2016,0,tbl_twdbdata[[#This Row],[effsave]]-0.6*SUMIFS(tbl_twdbdata[effsave],tbl_twdbdata[Year],2020,tbl_twdbdata[utility],tbl_twdbdata[[#This Row],[utility]]))","v":92806809.400000006},6220,0,1037,0,634789076,0,213018512,0,11438944,55868985,{"$f":"tbl_twdbdata[[#This Row],[utility]]&tbl_twdbdata[[#This Row],[Year]]","v":"PLEASANTON2060"}]
[null,2211,"PLEASANTON","L",2070,11748,18792,127098752,{"$f":"IF(tbl_twdbdata[[#This Row],[Year]]=2016,0,tbl_twdbdata[[#This Row],[effsave]]-0.6*SUMIFS(tbl_twdbdata[effsave],tbl_twdbdata[Year],2020,tbl_twdbdata[utility],tbl_twdbdata[[#This Row],[utility]]))","v":102356158.40000001},6700,0,1198,0,683764549,0,229453392,0,12321485,60179409,{"$f":"tbl_twdbdata[[#This Row],[utility]]&tbl_twdbdata[[#This Row],[Year]]","v":"PLEASANTON2070"}]
[null,118,"PORT ARTHUR","I",2016,53818,53818,0,{"$f":"IF(tbl_twdbdata[[#This Row],[Year]]=2016,0,tbl_twdbdata[[#This Row],[effsave]]-0.6*SUMIFS(tbl_twdbdata[effsave],tbl_twdbdata[Year],2020,tbl_twdbdata[utility],tbl_twdbdata[[#This Row],[utility]]))","v":0},16316,4776,1605,0,1173613000,321314000,2500297000,0,269254648,1043799618,{"$f":"tbl_twdbdata[[#This Row],[utility]]&tbl_twdbdata[[#This Row],[Year]]","v":"PORT ARTHUR2016"}]
[null,118,"PORT ARTHUR","I",2020,46881,55398,202607105,{"$f":"IF(tbl_twdbdata[[#This Row],[Year]]=2016,0,tbl_twdbdata[[#This Row],[effsave]]-0.6*SUMIFS(tbl_twdbdata[effsave],tbl_twdbdata[Year],2020,tbl_twdbdata[utility],tbl_twdbdata[[#This Row],[utility]]))","v":81042842},19280,5644,1897,0,1386826496,379687997,2954532822,0,318170879,1233429561,{"$f":"tbl_twdbdata[[#This Row],[utility]]&tbl_twdbdata[[#This Row],[Year]]","v":"PORT ARTHUR2020"}]
[null,118,"PORT ARTHUR","I",2030,46881,56095,293402093,{"$f":"IF(tbl_twdbdata[[#This Row],[Year]]=2016,0,tbl_twdbdata[[#This Row],[effsave]]-0.6*SUMIFS(tbl_twdbdata[effsave],tbl_twdbdata[Year],2020,tbl_twdbdata[utility],tbl_twdbdata[[#This Row],[utility]]))","v":171837830},19523,5715,1921,0,1404275105,384465111,2991705813,0,322174004,1248948179,{"$f":"tbl_twdbdata[[#This Row],[utility]]&tbl_twdbdata[[#This Row],[Year]]","v":"PORT ARTHUR2030"}]
[null,118,"PORT ARTHUR","I",2040,46881,56095,365472949,{"$f":"IF(tbl_twdbdata[[#This Row],[Year]]=2016,0,tbl_twdbdata[[#This Row],[effsave]]-0.6*SUMIFS(tbl_twdbdata[effsave],tbl_twdbdata[Year],2020,tbl_twdbdata[utility],tbl_twdbdata[[#This Row],[utility]]))","v":243908686},19523,5787,1946,0,1404275105,384465111,2991705813,0,322174004,1248948179,{"$f":"tbl_twdbdata[[#This Row],[utility]]&tbl_twdbdata[[#This Row],[Year]]","v":"PORT ARTHUR2040"}]
[null,118,"PORT ARTHUR","I",2050,46881,56095,380214715,{"$f":"IF(tbl_twdbdata[[#This Row],[Year]]=2016,0,tbl_twdbdata[[#This Row],[effsave]]-0.6*SUMIFS(tbl_twdbdata[effsave],tbl_twdbdata[Year],2020,tbl_twdbdata[utility],tbl_twdbdata[[#This Row],[utility]]))","v":258650452},19523,5860,1971,0,1404275105,384465111,2991705813,0,322174004,1248948179,{"$f":"tbl_twdbdata[[#This Row],[utility]]&tbl_twdbdata[[#This Row],[Year]]","v":"PORT ARTHUR2050"}]
[null,118,"PORT ARTHUR","I",2060,46881,56095,386357117,{"$f":"IF(tbl_twdbdata[[#This Row],[Year]]=2016,0,tbl_twdbdata[[#This Row],[effsave]]-0.6*SUMIFS(tbl_twdbdata[effsave],tbl_twdbdata[Year],2020,tbl_twdbdata[utility],tbl_twdbdata[[#This Row],[utility]]))","v":264792854},19523,5934,1996,0,1404275105,384465111,2991705813,0,322174004,1248948179,{"$f":"tbl_twdbdata[[#This Row],[utility]]&tbl_twdbdata[[#This Row],[Year]]","v":"PORT ARTHUR2060"}]
[null,118,"PORT ARTHUR","I",2070,46881,56095,386561864,{"$f":"IF(tbl_twdbdata[[#This Row],[Year]]=2016,0,tbl_twdbdata[[#This Row],[effsave]]-0.6*SUMIFS(tbl_twdbdata[effsave],tbl_twdbdata[Year],2020,tbl_twdbdata[utility],tbl_twdbdata[[#This Row],[utility]]))","v":264997601},19523,6009,2021,0,1404275105,384465111,2991705813,0,322174004,1248948179,{"$f":"tbl_twdbdata[[#This Row],[utility]]&tbl_twdbdata[[#This Row],[Year]]","v":"PORT ARTHUR2070"}]
[null,2222,"PORT LAVACA","L",2016,12248,12248,0,{"$f":"IF(tbl_twdbdata[[#This Row],[Year]]=2016,0,tbl_twdbdata[[#This Row],[effsave]]-0.6*SUMIFS(tbl_twdbdata[effsave],tbl_twdbdata[Year],2020,tbl_twdbdata[utility],tbl_twdbdata[[#This Row],[utility]]))","v":0},4588,1306,558,0,231350000,46580000,115795000,0,null,null,{"$f":"tbl_twdbdata[[#This Row],[utility]]&tbl_twdbdata[[#This Row],[Year]]","v":"PORT LAVACA2016"}]
[null,2222,"PORT LAVACA","L",2020,12248,14196,52333554,{"$f":"IF(tbl_twdbdata[[#This Row],[Year]]=2016,0,tbl_twdbdata[[#This Row],[effsave]]-0.6*SUMIFS(tbl_twdbdata[effsave],tbl_twdbdata[Year],2020,tbl_twdbdata[utility],tbl_twdbdata[[#This Row],[utility]]))","v":20933421.600000001},4839,1377,588,0,243982215,49123370,122117660,0,null,null,{"$f":"tbl_twdbdata[[#This Row],[utility]]&tbl_twdbdata[[#This Row],[Year]]","v":"PORT LAVACA2020"}]
[null,2222,"PORT LAVACA","L",2030,12248,15867,83339037,{"$f":"IF(tbl_twdbdata[[#This Row],[Year]]=2016,0,tbl_twdbdata[[#This Row],[effsave]]-0.6*SUMIFS(tbl_twdbdata[effsave],tbl_twdbdata[Year],2020,tbl_twdbdata[utility],tbl_twdbdata[[#This Row],[utility]]))","v":51938904.600000001},5409,1539,657,0,272701170,54905643,136492034,0,null,null,{"$f":"tbl_twdbdata[[#This Row],[utility]]&tbl_twdbdata[[#This Row],[Year]]","v":"PORT LAVACA2030"}]
[null,2222,"PORT LAVACA","L",2040,12248,17494,110593569,{"$f":"IF(tbl_twdbdata[[#This Row],[Year]]=2016,0,tbl_twdbdata[[#This Row],[effsave]]-0.6*SUMIFS(tbl_twdbdata[effsave],tbl_twdbdata[Year],2020,tbl_twdbdata[utility],tbl_twdbdata[[#This Row],[utility]]))","v":79193436.599999994},5964,1720,734,0,300663911,60535660,150487908,0,null,null,{"$f":"tbl_twdbdata[[#This Row],[utility]]&tbl_twdbdata[[#This Row],[Year]]","v":"PORT LAVACA2040"}]
[null,2222,"PORT LAVACA","L",2050,12248,19062,130455563,{"$f":"IF(tbl_twdbdata[[#This Row],[Year]]=2016,0,tbl_twdbdata[[#This Row],[effsave]]-0.6*SUMIFS(tbl_twdbdata[effsave],tbl_twdbdata[Year],2020,tbl_twdbdata[utility],tbl_twdbdata[[#This Row],[utility]]))","v":99055430.599999994},6499,1922,820,0,327612637,65961515,163976249,0,null,null,{"$f":"tbl_twdbdata[[#This Row],[utility]]&tbl_twdbdata[[#This Row],[Year]]","v":"PORT LAVACA2050"}]
[null,2222,"PORT LAVACA","L",2060,12248,20614,143259054,{"$f":"IF(tbl_twdbdata[[#This Row],[Year]]=2016,0,tbl_twdbdata[[#This Row],[effsave]]-0.6*SUMIFS(tbl_twdbdata[effsave],tbl_twdbdata[Year],2020,tbl_twdbdata[utility],tbl_twdbdata[[#This Row],[utility]]))","v":111858921.59999999},7028,2148,916,0,354286376,71332005,177326954,0,null,null,{"$f":"tbl_twdbdata[[#This Row],[utility]]&tbl_twdbdata[[#This Row],[Year]]","v":"PORT LAVACA2060"}]
[null,2222,"PORT LAVACA","L",2070,12248,22120,154290318,{"$f":"IF(tbl_twdbdata[[#This Row],[Year]]=2016,0,tbl_twdbdata[[#This Row],[effsave]]-0.6*SUMIFS(tbl_twdbdata[effsave],tbl_twdbdata[Year],2020,tbl_twdbdata[utility],tbl_twdbdata[[#This Row],[utility]]))","v":122890185.59999999},7541,2401,1023,0,380169527,76543318,190281955,0,null,null,{"$f":"tbl_twdbdata[[#This Row],[utility]]&tbl_twdbdata[[#This Row],[Year]]","v":"PORT LAVACA2070"}]
[null,2223,"PORT NECHES","I",2016,13040,13040,0,{"$f":"IF(tbl_twdbdata[[#This Row],[Year]]=2016,0,tbl_twdbdata[[#This Row],[effsave]]-0.6*SUMIFS(tbl_twdbdata[effsave],tbl_twdbdata[Year],2020,tbl_twdbdata[utility],tbl_twdbdata[[#This Row],[utility]]))","v":0},5014,42,313,0,299076600,32630400,104756400,0,null,null,{"$f":"tbl_twdbdata[[#This Row],[utility]]&tbl_twdbdata[[#This Row],[Year]]","v":"PORT NECHES2016"}]
[null,2223,"PORT NECHES","I",2020,12536,13858,49671229,{"$f":"IF(tbl_twdbdata[[#This Row],[Year]]=2016,0,tbl_twdbdata[[#This Row],[effsave]]-0.6*SUMIFS(tbl_twdbdata[effsave],tbl_twdbdata[Year],2020,tbl_twdbdata[utility],tbl_twdbdata[[#This Row],[utility]]))","v":19868491.600000001},5543,46,346,0,330616107,36071481,115803621,0,null,null,{"$f":"tbl_twdbdata[[#This Row],[utility]]&tbl_twdbdata[[#This Row],[Year]]","v":"PORT NECHES2020"}]
[null,2223,"PORT NECHES","I",2030,12536,14752,76621150,{"$f":"IF(tbl_twdbdata[[#This Row],[Year]]=2016,0,tbl_twdbdata[[#This Row],[effsave]]-0.6*SUMIFS(tbl_twdbdata[effsave],tbl_twdbdata[Year],2020,tbl_twdbdata[utility],tbl_twdbdata[[#This Row],[utility]]))","v":46818412.600000001},5901,49,368,0,351944639,38398505,123274283,0,null,null,{"$f":"tbl_twdbdata[[#This Row],[utility]]&tbl_twdbdata[[#This Row],[Year]]","v":"PORT NECHES2030"}]
[null,2223,"PORT NECHES","I",2040,12536,15691,100569895,{"$f":"IF(tbl_twdbdata[[#This Row],[Year]]=2016,0,tbl_twdbdata[[#This Row],[effsave]]-0.6*SUMIFS(tbl_twdbdata[effsave],tbl_twdbdata[Year],2020,tbl_twdbdata[utility],tbl_twdbdata[[#This Row],[utility]]))","v":70767157.599999994},6277,52,391,0,374346755,40842661,131120985,0,null,null,{"$f":"tbl_twdbdata[[#This Row],[utility]]&tbl_twdbdata[[#This Row],[Year]]","v":"PORT NECHES2040"}]
[null,2223,"PORT NECHES","I",2050,12536,16782,117547002,{"$f":"IF(tbl_twdbdata[[#This Row],[Year]]=2016,0,tbl_twdbdata[[#This Row],[effsave]]-0.6*SUMIFS(tbl_twdbdata[effsave],tbl_twdbdata[Year],2020,tbl_twdbdata[utility],tbl_twdbdata[[#This Row],[utility]]))","v":87744264.599999994},6713,55,417,0,400375199,43682464,140237867,0,null,null,{"$f":"tbl_twdbdata[[#This Row],[utility]]&tbl_twdbdata[[#This Row],[Year]]","v":"PORT NECHES2050"}]
[null,2223,"PORT NECHES","I",2060,12536,17986,128146653,{"$f":"IF(tbl_twdbdata[[#This Row],[Year]]=2016,0,tbl_twdbdata[[#This Row],[effsave]]-0.6*SUMIFS(tbl_twdbdata[effsave],tbl_twdbdata[Year],2020,tbl_twdbdata[utility],tbl_twdbdata[[#This Row],[utility]]))","v":98343915.599999994},7195,59,444,0,429099531,46816398,150299028,0,null,null,{"$f":"tbl_twdbdata[[#This Row],[utility]]&tbl_twdbdata[[#This Row],[Year]]","v":"PORT NECHES2060"}]
[null,2223,"PORT NECHES","I",2070,12536,19335,138322590,{"$f":"IF(tbl_twdbdata[[#This Row],[Year]]=2016,0,tbl_twdbdata[[#This Row],[effsave]]-0.6*SUMIFS(tbl_twdbdata[effsave],tbl_twdbdata[Year],2020,tbl_twdbdata[utility],tbl_twdbdata[[#This Row],[utility]]))","v":108519852.59999999},7735,63,473,0,461283189,50327758,161571872,0,null,null,{"$f":"tbl_twdbdata[[#This Row],[utility]]&tbl_twdbdata[[#This Row],[Year]]","v":"PORT NECHES2070"}]
[null,2224,"PORT OCONNOR MUD","L",2016,5013,5013,0,{"$f":"IF(tbl_twdbdata[[#This Row],[Year]]=2016,0,tbl_twdbdata[[#This Row],[effsave]]-0.6*SUMIFS(tbl_twdbdata[effsave],tbl_twdbdata[Year],2020,tbl_twdbdata[utility],tbl_twdbdata[[#This Row],[utility]]))","v":0},1576,576,77,8,48393000,6327000,13778000,1054000,null,null,{"$f":"tbl_twdbdata[[#This Row],[utility]]&tbl_twdbdata[[#This Row],[Year]]","v":"PORT OCONNOR MUD2016"}]
[null,2224,"PORT OCONNOR MUD","L",2020,1458,1409,4895993,{"$f":"IF(tbl_twdbdata[[#This Row],[Year]]=2016,0,tbl_twdbdata[[#This Row],[effsave]]-0.6*SUMIFS(tbl_twdbdata[effsave],tbl_twdbdata[Year],2020,tbl_twdbdata[utility],tbl_twdbdata[[#This Row],[utility]]))","v":1958397.2000000002},1523,557,75,8,46766623,6114364,13314954,1018578,null,null,{"$f":"tbl_twdbdata[[#This Row],[utility]]&tbl_twdbdata[[#This Row],[Year]]","v":"PORT OCONNOR MUD2020"}]
[null,2224,"PORT OCONNOR MUD","L",2030,1458,1575,7668833,{"$f":"IF(tbl_twdbdata[[#This Row],[Year]]=2016,0,tbl_twdbdata[[#This Row],[effsave]]-0.6*SUMIFS(tbl_twdbdata[effsave],tbl_twdbdata[Year],2020,tbl_twdbdata[utility],tbl_twdbdata[[#This Row],[utility]]))","v":4731237.2},1702,623,84,9,52276388,6834722,14883643,1138581,null,null,{"$f":"tbl_twdbdata[[#This Row],[utility]]&tbl_twdbdata[[#This Row],[Year]]","v":"PORT OCONNOR MUD2030"}]
[null,2224,"PORT OCONNOR MUD","L",2040,1458,1736,10068540,{"$f":"IF(tbl_twdbdata[[#This Row],[Year]]=2016,0,tbl_twdbdata[[#This Row],[effsave]]-0.6*SUMIFS(tbl_twdbdata[effsave],tbl_twdbdata[Year],2020,tbl_twdbdata[utility],tbl_twdbdata[[#This Row],[utility]]))","v":7130944.2000000002},1876,696,94,10,57620197,7533382,16405082,1254969,null,null,{"$f":"tbl_twdbdata[[#This Row],[utility]]&tbl_twdbdata[[#This Row],[Year]]","v":"PORT OCONNOR MUD2040"}]
[null,2224,"PORT OCONNOR MUD","L",2050,1458,1892,11843447,{"$f":"IF(tbl_twdbdata[[#This Row],[Year]]=2016,0,tbl_twdbdata[[#This Row],[effsave]]-0.6*SUMIFS(tbl_twdbdata[effsave],tbl_twdbdata[Year],2020,tbl_twdbdata[utility],tbl_twdbdata[[#This Row],[utility]]))","v":8905851.1999999993},2045,778,105,11,62798049,8210345,17879272,1367743,null,null,{"$f":"tbl_twdbdata[[#This Row],[utility]]&tbl_twdbdata[[#This Row],[Year]]","v":"PORT OCONNOR MUD2050"}]
[null,2224,"PORT OCONNOR MUD","L",2060,1458,2046,13016550,{"$f":"IF(tbl_twdbdata[[#This Row],[Year]]=2016,0,tbl_twdbdata[[#This Row],[effsave]]-0.6*SUMIFS(tbl_twdbdata[effsave],tbl_twdbdata[Year],2020,tbl_twdbdata[utility],tbl_twdbdata[[#This Row],[utility]]))","v":10078954.199999999},2211,870,117,12,67909518,8878629,19334562,1479071,null,null,{"$f":"tbl_twdbdata[[#This Row],[utility]]&tbl_twdbdata[[#This Row],[Year]]","v":"PORT OCONNOR MUD2060"}]
[null,2224,"PORT OCONNOR MUD","L",2070,1458,2195,14028574,{"$f":"IF(tbl_twdbdata[[#This Row],[Year]]=2016,0,tbl_twdbdata[[#This Row],[effsave]]-0.6*SUMIFS(tbl_twdbdata[effsave],tbl_twdbdata[Year],2020,tbl_twdbdata[utility],tbl_twdbdata[[#This Row],[utility]]))","v":11090978.199999999},2372,972,131,13,72855030,9525215,20742602,1586784,null,null,{"$f":"tbl_twdbdata[[#This Row],[utility]]&tbl_twdbdata[[#This Row],[Year]]","v":"PORT OCONNOR MUD2070"}]
[null,2981,"PORTER SUD","H",2016,19175,19175,0,{"$f":"IF(tbl_twdbdata[[#This Row],[Year]]=2016,0,tbl_twdbdata[[#This Row],[effsave]]-0.6*SUMIFS(tbl_twdbdata[effsave],tbl_twdbdata[Year],2020,tbl_twdbdata[utility],tbl_twdbdata[[#This Row],[utility]]))","v":0},5030,38,280,0,344145916,160940003,113649112,0,8006519,13780004,{"$f":"tbl_twdbdata[[#This Row],[utility]]&tbl_twdbdata[[#This Row],[Year]]","v":"PORTER SUD2016"}]
[null,2981,"PORTER SUD","H",2020,14992,25185,0,{"$f":"IF(tbl_twdbdata[[#This Row],[Year]]=2016,0,tbl_twdbdata[[#This Row],[effsave]]-0.6*SUMIFS(tbl_twdbdata[effsave],tbl_twdbdata[Year],2020,tbl_twdbdata[utility],tbl_twdbdata[[#This Row],[utility]]))","v":0},8450,64,470,0,578129329,270362458,190918682,0,13450119,23148973,{"$f":"tbl_twdbdata[[#This Row],[utility]]&tbl_twdbdata[[#This Row],[Year]]","v":"PORTER SUD2020"}]
[null,2981,"PORTER SUD","H",2030,14992,31483,0,{"$f":"IF(tbl_twdbdata[[#This Row],[Year]]=2016,0,tbl_twdbdata[[#This Row],[effsave]]-0.6*SUMIFS(tbl_twdbdata[effsave],tbl_twdbdata[Year],2020,tbl_twdbdata[utility],tbl_twdbdata[[#This Row],[utility]]))","v":0},10563,80,588,0,722701833,337971859,238661619,0,16813583,28937825,{"$f":"tbl_twdbdata[[#This Row],[utility]]&tbl_twdbdata[[#This Row],[Year]]","v":"PORTER SUD2030"}]
[null,2981,"PORTER SUD","H",2040,14992,37835,0,{"$f":"IF(tbl_twdbdata[[#This Row],[Year]]=2016,0,tbl_twdbdata[[#This Row],[effsave]]-0.6*SUMIFS(tbl_twdbdata[effsave],tbl_twdbdata[Year],2020,tbl_twdbdata[utility],tbl_twdbdata[[#This Row],[utility]]))","v":0},12694,100,735,0,868513923,406160953,286813911,0,20205886,34776311,{"$f":"tbl_twdbdata[[#This Row],[utility]]&tbl_twdbdata[[#This Row],[Year]]","v":"PORTER SUD2040"}]
[null,2981,"PORTER SUD","H",2050,14992,44073,0,{"$f":"IF(tbl_twdbdata[[#This Row],[Year]]=2016,0,tbl_twdbdata[[#This Row],[effsave]]-0.6*SUMIFS(tbl_twdbdata[effsave],tbl_twdbdata[Year],2020,tbl_twdbdata[utility],tbl_twdbdata[[#This Row],[utility]]))","v":0},14787,125,919,0,1011709109,473126250,334102009,0,23537307,40510013,{"$f":"tbl_twdbdata[[#This Row],[utility]]&tbl_twdbdata[[#This Row],[Year]]","v":"PORTER SUD2050"}]
[null,2981,"PORTER SUD","H",2060,14992,50332,0,{"$f":"IF(tbl_twdbdata[[#This Row],[Year]]=2016,0,tbl_twdbdata[[#This Row],[effsave]]-0.6*SUMIFS(tbl_twdbdata[effsave],tbl_twdbdata[Year],2020,tbl_twdbdata[utility],tbl_twdbdata[[#This Row],[utility]]))","v":0},16887,156,1149,0,1155386356,540316984,381549300,0,26879943,46263018,{"$f":"tbl_twdbdata[[#This Row],[utility]]&tbl_twdbdata[[#This Row],[Year]]","v":"PORTER SUD2060"}]
[null,2981,"PORTER SUD","H",2070,14992,55511,0,{"$f":"IF(tbl_twdbdata[[#This Row],[Year]]=2016,0,tbl_twdbdata[[#This Row],[effsave]]-0.6*SUMIFS(tbl_twdbdata[effsave],tbl_twdbdata[Year],2020,tbl_twdbdata[utility],tbl_twdbdata[[#This Row],[utility]]))","v":0},18625,195,1436,0,1274271875,595913854,420809489,0,29645802,51023333,{"$f":"tbl_twdbdata[[#This Row],[utility]]&tbl_twdbdata[[#This Row],[Year]]","v":"PORTER SUD2070"}]
[null,2226,"PORTLAND","N",2016,20400,20400,0,{"$f":"IF(tbl_twdbdata[[#This Row],[Year]]=2016,0,tbl_twdbdata[[#This Row],[effsave]]-0.6*SUMIFS(tbl_twdbdata[effsave],tbl_twdbdata[Year],2020,tbl_twdbdata[utility],tbl_twdbdata[[#This Row],[utility]]))","v":0},7475,59,419,101,426898700,76836600,115572700,48419800,10408451,15402211,{"$f":"tbl_twdbdata[[#This Row],[utility]]&tbl_twdbdata[[#This Row],[Year]]","v":"PORTLAND2016"}]
[null,2226,"PORTLAND","N",2020,20400,20646,71137858,{"$f":"IF(tbl_twdbdata[[#This Row],[Year]]=2016,0,tbl_twdbdata[[#This Row],[effsave]]-0.6*SUMIFS(tbl_twdbdata[effsave],tbl_twdbdata[Year],2020,tbl_twdbdata[utility],tbl_twdbdata[[#This Row],[utility]]))","v":28455143.200000003},7565,60,424,102,432046596,77763159,116966371,49003686,10533965,15587944,{"$f":"tbl_twdbdata[[#This Row],[utility]]&tbl_twdbdata[[#This Row],[Year]]","v":"PORTLAND2020"}]
[null,2226,"PORTLAND","N",2030,20400,21654,106067788,{"$f":"IF(tbl_twdbdata[[#This Row],[Year]]=2016,0,tbl_twdbdata[[#This Row],[effsave]]-0.6*SUMIFS(tbl_twdbdata[effsave],tbl_twdbdata[Year],2020,tbl_twdbdata[utility],tbl_twdbdata[[#This Row],[utility]]))","v":63385073.200000003},7934,63,445,107,453140414,81559791,122677022,51396194,11048265,16348994,{"$f":"tbl_twdbdata[[#This Row],[utility]]&tbl_twdbdata[[#This Row],[Year]]","v":"PORTLAND2030"}]
[null,2226,"PORTLAND","N",2040,20400,22233,133086738,{"$f":"IF(tbl_twdbdata[[#This Row],[Year]]=2016,0,tbl_twdbdata[[#This Row],[effsave]]-0.6*SUMIFS(tbl_twdbdata[effsave],tbl_twdbdata[Year],2020,tbl_twdbdata[utility],tbl_twdbdata[[#This Row],[utility]]))","v":90404023.200000003},8146,66,467,112,465256804,83740595,125957247,52770462,11343681,16786145,{"$f":"tbl_twdbdata[[#This Row],[utility]]&tbl_twdbdata[[#This Row],[Year]]","v":"PORTLAND2040"}]
[null,2226,"PORTLAND","N",2050,20400,22655,148677969,{"$f":"IF(tbl_twdbdata[[#This Row],[Year]]=2016,0,tbl_twdbdata[[#This Row],[effsave]]-0.6*SUMIFS(tbl_twdbdata[effsave],tbl_twdbdata[Year],2020,tbl_twdbdata[utility],tbl_twdbdata[[#This Row],[utility]]))","v":105995254.2},8301,69,489,117,474087748,85330058,128348016,53772087,11558993,17104759,{"$f":"tbl_twdbdata[[#This Row],[utility]]&tbl_twdbdata[[#This Row],[Year]]","v":"PORTLAND2050"}]
[null,2226,"PORTLAND","N",2060,20400,22941,153066940,{"$f":"IF(tbl_twdbdata[[#This Row],[Year]]=2016,0,tbl_twdbdata[[#This Row],[effsave]]-0.6*SUMIFS(tbl_twdbdata[effsave],tbl_twdbdata[Year],2020,tbl_twdbdata[utility],tbl_twdbdata[[#This Row],[utility]]))","v":110384225.2},8406,72,513,123,480072700,86407277,129968300,54450914,11704915,17320692,{"$f":"tbl_twdbdata[[#This Row],[utility]]&tbl_twdbdata[[#This Row],[Year]]","v":"PORTLAND2060"}]
[null,2226,"PORTLAND","N",2070,20400,23136,154536912,{"$f":"IF(tbl_twdbdata[[#This Row],[Year]]=2016,0,tbl_twdbdata[[#This Row],[effsave]]-0.6*SUMIFS(tbl_twdbdata[effsave],tbl_twdbdata[Year],2020,tbl_twdbdata[utility],tbl_twdbdata[[#This Row],[utility]]))","v":111854197.2},8477,76,538,129,484153349,87141745,131073039,54913750,11804408,17467919,{"$f":"tbl_twdbdata[[#This Row],[utility]]&tbl_twdbdata[[#This Row],[Year]]","v":"PORTLAND2070"}]
[null,3033,"POSSUM KINGDOM WSC","G",2016,5000,5000,0,{"$f":"IF(tbl_twdbdata[[#This Row],[Year]]=2016,0,tbl_twdbdata[[#This Row],[effsave]]-0.6*SUMIFS(tbl_twdbdata[effsave],tbl_twdbdata[Year],2020,tbl_twdbdata[utility],tbl_twdbdata[[#This Row],[utility]]))","v":0},2088,230,122,0,80957270,5300850,30946630,0,11365000,14293927,{"$f":"tbl_twdbdata[[#This Row],[utility]]&tbl_twdbdata[[#This Row],[Year]]","v":"POSSUM KINGDOM WSC2016"}]
[null,3033,"POSSUM KINGDOM WSC","G",2020,1449,2026,6855072,{"$f":"IF(tbl_twdbdata[[#This Row],[Year]]=2016,0,tbl_twdbdata[[#This Row],[effsave]]-0.6*SUMIFS(tbl_twdbdata[effsave],tbl_twdbdata[Year],2020,tbl_twdbdata[utility],tbl_twdbdata[[#This Row],[utility]]))","v":2742028.8000000003},2919,322,171,0,113194913,7411678,43269753,0,15890607,19985850,{"$f":"tbl_twdbdata[[#This Row],[utility]]&tbl_twdbdata[[#This Row],[Year]]","v":"POSSUM KINGDOM WSC2020"}]
[null,3033,"POSSUM KINGDOM WSC","G",2030,1449,2171,10404409,{"$f":"IF(tbl_twdbdata[[#This Row],[Year]]=2016,0,tbl_twdbdata[[#This Row],[effsave]]-0.6*SUMIFS(tbl_twdbdata[effsave],tbl_twdbdata[Year],2020,tbl_twdbdata[utility],tbl_twdbdata[[#This Row],[utility]]))","v":6291365.8000000007},3128,345,183,0,121296227,7942129,46366552,0,17027891,21416229,{"$f":"tbl_twdbdata[[#This Row],[utility]]&tbl_twdbdata[[#This Row],[Year]]","v":"POSSUM KINGDOM WSC2030"}]
[null,3033,"POSSUM KINGDOM WSC","G",2040,1449,2269,13135014,{"$f":"IF(tbl_twdbdata[[#This Row],[Year]]=2016,0,tbl_twdbdata[[#This Row],[effsave]]-0.6*SUMIFS(tbl_twdbdata[effsave],tbl_twdbdata[Year],2020,tbl_twdbdata[utility],tbl_twdbdata[[#This Row],[utility]]))","v":9021970.8000000007},3269,370,196,0,126771598,8300641,48459561,0,17796538,22382968,{"$f":"tbl_twdbdata[[#This Row],[utility]]&tbl_twdbdata[[#This Row],[Year]]","v":"POSSUM KINGDOM WSC2040"}]
[null,3033,"POSSUM KINGDOM WSC","G",2050,1449,2358,14889591,{"$f":"IF(tbl_twdbdata[[#This Row],[Year]]=2016,0,tbl_twdbdata[[#This Row],[effsave]]-0.6*SUMIFS(tbl_twdbdata[effsave],tbl_twdbdata[Year],2020,tbl_twdbdata[utility],tbl_twdbdata[[#This Row],[utility]]))","v":10776547.800000001},3397,396,210,0,131744129,8626228,50360355,0,18494595,23260925,{"$f":"tbl_twdbdata[[#This Row],[utility]]&tbl_twdbdata[[#This Row],[Year]]","v":"POSSUM KINGDOM WSC2050"}]
[null,3033,"POSSUM KINGDOM WSC","G",2060,1449,2426,15575769,{"$f":"IF(tbl_twdbdata[[#This Row],[Year]]=2016,0,tbl_twdbdata[[#This Row],[effsave]]-0.6*SUMIFS(tbl_twdbdata[effsave],tbl_twdbdata[Year],2020,tbl_twdbdata[utility],tbl_twdbdata[[#This Row],[utility]]))","v":11462725.800000001},3495,424,225,0,135543366,8874991,51812647,0,19027942,23931724,{"$f":"tbl_twdbdata[[#This Row],[utility]]&tbl_twdbdata[[#This Row],[Year]]","v":"POSSUM KINGDOM WSC2060"}]
[null,3033,"POSSUM KINGDOM WSC","G",2070,1449,2480,15949624,{"$f":"IF(tbl_twdbdata[[#This Row],[Year]]=2016,0,tbl_twdbdata[[#This Row],[effsave]]-0.6*SUMIFS(tbl_twdbdata[effsave],tbl_twdbdata[Year],2020,tbl_twdbdata[utility],tbl_twdbdata[[#This Row],[utility]]))","v":11836580.800000001},3573,454,241,0,138560407,9072538,52965938,0,19451482,24464417,{"$f":"tbl_twdbdata[[#This Row],[utility]]&tbl_twdbdata[[#This Row],[Year]]","v":"POSSUM KINGDOM WSC2070"}]
[null,6500,"QUAIL VALLEY UD","H",2016,13967,13967,0,{"$f":"IF(tbl_twdbdata[[#This Row],[Year]]=2016,0,tbl_twdbdata[[#This Row],[effsave]]-0.6*SUMIFS(tbl_twdbdata[effsave],tbl_twdbdata[Year],2020,tbl_twdbdata[utility],tbl_twdbdata[[#This Row],[utility]]))","v":0},3618,853,185,0,307767000,51412000,49513000,0,4911000,27337745,{"$f":"tbl_twdbdata[[#This Row],[utility]]&tbl_twdbdata[[#This Row],[Year]]","v":"QUAIL VALLEY UD2016"}]
[null,6500,"QUAIL VALLEY UD","H",2020,13065,14534,38672794,{"$f":"IF(tbl_twdbdata[[#This Row],[Year]]=2016,0,tbl_twdbdata[[#This Row],[effsave]]-0.6*SUMIFS(tbl_twdbdata[effsave],tbl_twdbdata[Year],2020,tbl_twdbdata[utility],tbl_twdbdata[[#This Row],[utility]]))","v":15469117.600000001},4025,949,206,0,342371648,57192653,55080133,0,5463182,30411541,{"$f":"tbl_twdbdata[[#This Row],[utility]]&tbl_twdbdata[[#This Row],[Year]]","v":"QUAIL VALLEY UD2020"}]
[null,6500,"QUAIL VALLEY UD","H",2030,13065,17795,60015417,{"$f":"IF(tbl_twdbdata[[#This Row],[Year]]=2016,0,tbl_twdbdata[[#This Row],[effsave]]-0.6*SUMIFS(tbl_twdbdata[effsave],tbl_twdbdata[Year],2020,tbl_twdbdata[utility],tbl_twdbdata[[#This Row],[utility]]))","v":36811740.600000001},4928,1162,252,0,419189726,70024994,67438487,0,6688959,37234992,{"$f":"tbl_twdbdata[[#This Row],[utility]]&tbl_twdbdata[[#This Row],[Year]]","v":"QUAIL VALLEY UD2030"}]
[null,6500,"QUAIL VALLEY UD","H",2040,13065,21007,78132385,{"$f":"IF(tbl_twdbdata[[#This Row],[Year]]=2016,0,tbl_twdbdata[[#This Row],[effsave]]-0.6*SUMIFS(tbl_twdbdata[effsave],tbl_twdbdata[Year],2020,tbl_twdbdata[utility],tbl_twdbdata[[#This Row],[utility]]))","v":54928708.600000001},5818,1423,309,0,494853530,82664515,79611143,0,7896317,43955913,{"$f":"tbl_twdbdata[[#This Row],[utility]]&tbl_twdbdata[[#This Row],[Year]]","v":"QUAIL VALLEY UD2040"}]
[null,6500,"QUAIL VALLEY UD","H",2050,13065,21007,81966163,{"$f":"IF(tbl_twdbdata[[#This Row],[Year]]=2016,0,tbl_twdbdata[[#This Row],[effsave]]-0.6*SUMIFS(tbl_twdbdata[effsave],tbl_twdbdata[Year],2020,tbl_twdbdata[utility],tbl_twdbdata[[#This Row],[utility]]))","v":58762486.600000001},5818,1742,378,0,494853530,82664515,79611143,0,7896317,43955913,{"$f":"tbl_twdbdata[[#This Row],[utility]]&tbl_twdbdata[[#This Row],[Year]]","v":"QUAIL VALLEY UD2050"}]
[null,6500,"QUAIL VALLEY UD","H",2060,13065,21007,83576350,{"$f":"IF(tbl_twdbdata[[#This Row],[Year]]=2016,0,tbl_twdbdata[[#This Row],[effsave]]-0.6*SUMIFS(tbl_twdbdata[effsave],tbl_twdbdata[Year],2020,tbl_twdbdata[utility],tbl_twdbdata[[#This Row],[utility]]))","v":60372673.600000001},5818,2133,463,0,494853530,82664515,79611143,0,7896317,43955913,{"$f":"tbl_twdbdata[[#This Row],[utility]]&tbl_twdbdata[[#This Row],[Year]]","v":"QUAIL VALLEY UD2060"}]
[null,6500,"QUAIL VALLEY UD","H",2070,13065,21007,84036403,{"$f":"IF(tbl_twdbdata[[#This Row],[Year]]=2016,0,tbl_twdbdata[[#This Row],[effsave]]-0.6*SUMIFS(tbl_twdbdata[effsave],tbl_twdbdata[Year],2020,tbl_twdbdata[utility],tbl_twdbdata[[#This Row],[utility]]))","v":60832726.600000001},5818,2612,567,0,494853530,82664515,79611143,0,7896317,43955913,{"$f":"tbl_twdbdata[[#This Row],[utility]]&tbl_twdbdata[[#This Row],[Year]]","v":"QUAIL VALLEY UD2070"}]
[null,6504,"RAYBURN COUNTRY MUD","I",2016,2751,2751,0,{"$f":"IF(tbl_twdbdata[[#This Row],[Year]]=2016,0,tbl_twdbdata[[#This Row],[effsave]]-0.6*SUMIFS(tbl_twdbdata[effsave],tbl_twdbdata[Year],2020,tbl_twdbdata[utility],tbl_twdbdata[[#This Row],[utility]]))","v":0},917,0,0,0,55324200,0,0,0,null,null,{"$f":"tbl_twdbdata[[#This Row],[utility]]&tbl_twdbdata[[#This Row],[Year]]","v":"RAYBURN COUNTRY MUD2016"}]
[null,6504,"RAYBURN COUNTRY MUD","I",2020,1700,1703,5737322,{"$f":"IF(tbl_twdbdata[[#This Row],[Year]]=2016,0,tbl_twdbdata[[#This Row],[effsave]]-0.6*SUMIFS(tbl_twdbdata[effsave],tbl_twdbdata[Year],2020,tbl_twdbdata[utility],tbl_twdbdata[[#This Row],[utility]]))","v":2294928.8000000003},919,0,0,0,55421831,0,0,0,null,null,{"$f":"tbl_twdbdata[[#This Row],[utility]]&tbl_twdbdata[[#This Row],[Year]]","v":"RAYBURN COUNTRY MUD2020"}]
[null,6504,"RAYBURN COUNTRY MUD","I",2030,1700,1741,8400847,{"$f":"IF(tbl_twdbdata[[#This Row],[Year]]=2016,0,tbl_twdbdata[[#This Row],[effsave]]-0.6*SUMIFS(tbl_twdbdata[effsave],tbl_twdbdata[Year],2020,tbl_twdbdata[utility],tbl_twdbdata[[#This Row],[utility]]))","v":4958453.8000000007},940,0,0,0,56658490,0,0,0,null,null,{"$f":"tbl_twdbdata[[#This Row],[utility]]&tbl_twdbdata[[#This Row],[Year]]","v":"RAYBURN COUNTRY MUD2030"}]
[null,6504,"RAYBURN COUNTRY MUD","I",2040,1700,1748,10125377,{"$f":"IF(tbl_twdbdata[[#This Row],[Year]]=2016,0,tbl_twdbdata[[#This Row],[effsave]]-0.6*SUMIFS(tbl_twdbdata[effsave],tbl_twdbdata[Year],2020,tbl_twdbdata[utility],tbl_twdbdata[[#This Row],[utility]]))","v":6682983.8000000007},944,0,0,0,56886296,0,0,0,null,null,{"$f":"tbl_twdbdata[[#This Row],[utility]]&tbl_twdbdata[[#This Row],[Year]]","v":"RAYBURN COUNTRY MUD2040"}]
[null,6504,"RAYBURN COUNTRY MUD","I",2050,1700,1748,10967564,{"$f":"IF(tbl_twdbdata[[#This Row],[Year]]=2016,0,tbl_twdbdata[[#This Row],[effsave]]-0.6*SUMIFS(tbl_twdbdata[effsave],tbl_twdbdata[Year],2020,tbl_twdbdata[utility],tbl_twdbdata[[#This Row],[utility]]))","v":7525170.8000000007},944,0,0,0,56886296,0,0,0,null,null,{"$f":"tbl_twdbdata[[#This Row],[utility]]&tbl_twdbdata[[#This Row],[Year]]","v":"RAYBURN COUNTRY MUD2050"}]
[null,6504,"RAYBURN COUNTRY MUD","I",2060,1700,1748,11165350,{"$f":"IF(tbl_twdbdata[[#This Row],[Year]]=2016,0,tbl_twdbdata[[#This Row],[effsave]]-0.6*SUMIFS(tbl_twdbdata[effsave],tbl_twdbdata[Year],2020,tbl_twdbdata[utility],tbl_twdbdata[[#This Row],[utility]]))","v":7722956.8000000007},944,0,0,0,56886296,0,0,0,null,null,{"$f":"tbl_twdbdata[[#This Row],[utility]]&tbl_twdbdata[[#This Row],[Year]]","v":"RAYBURN COUNTRY MUD2060"}]
[null,6504,"RAYBURN COUNTRY MUD","I",2070,1700,1748,11165350,{"$f":"IF(tbl_twdbdata[[#This Row],[Year]]=2016,0,tbl_twdbdata[[#This Row],[effsave]]-0.6*SUMIFS(tbl_twdbdata[effsave],tbl_twdbdata[Year],2020,tbl_twdbdata[utility],tbl_twdbdata[[#This Row],[utility]]))","v":7722956.8000000007},944,0,0,0,56886296,0,0,0,null,null,{"$f":"tbl_twdbdata[[#This Row],[utility]]&tbl_twdbdata[[#This Row],[Year]]","v":"RAYBURN COUNTRY MUD2070"}]
[null,2252,"RAYFORD ROAD MUD","H",2016,10980,10980,0,{"$f":"IF(tbl_twdbdata[[#This Row],[Year]]=2016,0,tbl_twdbdata[[#This Row],[effsave]]-0.6*SUMIFS(tbl_twdbdata[effsave],tbl_twdbdata[Year],2020,tbl_twdbdata[utility],tbl_twdbdata[[#This Row],[utility]]))","v":0},3648,0,18,182,347886000,0,10431000,26778000,5281635,32154153,{"$f":"tbl_twdbdata[[#This Row],[utility]]&tbl_twdbdata[[#This Row],[Year]]","v":"RAYFORD ROAD MUD2016"}]
[null,2252,"RAYFORD ROAD MUD","H",2020,10378,11048,29800323,{"$f":"IF(tbl_twdbdata[[#This Row],[Year]]=2016,0,tbl_twdbdata[[#This Row],[effsave]]-0.6*SUMIFS(tbl_twdbdata[effsave],tbl_twdbdata[Year],2020,tbl_twdbdata[utility],tbl_twdbdata[[#This Row],[utility]]))","v":11920129.199999999},3884,0,19,194,370345397,0,11104421,28506778,5622615,34230014,{"$f":"tbl_twdbdata[[#This Row],[utility]]&tbl_twdbdata[[#This Row],[Year]]","v":"RAYFORD ROAD MUD2020"}]
[null,2252,"RAYFORD ROAD MUD","H",2030,10378,10918,39013835,{"$f":"IF(tbl_twdbdata[[#This Row],[Year]]=2016,0,tbl_twdbdata[[#This Row],[effsave]]-0.6*SUMIFS(tbl_twdbdata[effsave],tbl_twdbdata[Year],2020,tbl_twdbdata[utility],tbl_twdbdata[[#This Row],[utility]]))","v":21133641.199999999},3838,0,19,192,365987604,0,10973757,28171343,5556455,33827235,{"$f":"tbl_twdbdata[[#This Row],[utility]]&tbl_twdbdata[[#This Row],[Year]]","v":"RAYFORD ROAD MUD2030"}]
[null,2252,"RAYFORD ROAD MUD","H",2040,10378,11795,49423409,{"$f":"IF(tbl_twdbdata[[#This Row],[Year]]=2016,0,tbl_twdbdata[[#This Row],[effsave]]-0.6*SUMIFS(tbl_twdbdata[effsave],tbl_twdbdata[Year],2020,tbl_twdbdata[utility],tbl_twdbdata[[#This Row],[utility]]))","v":31543215.199999999},4146,0,19,190,395385949,0,11855236,30434236,6002783,36544444,{"$f":"tbl_twdbdata[[#This Row],[utility]]&tbl_twdbdata[[#This Row],[Year]]","v":"RAYFORD ROAD MUD2040"}]
[null,2252,"RAYFORD ROAD MUD","H",2050,10378,12774,58001624,{"$f":"IF(tbl_twdbdata[[#This Row],[Year]]=2016,0,tbl_twdbdata[[#This Row],[effsave]]-0.6*SUMIFS(tbl_twdbdata[effsave],tbl_twdbdata[Year],2020,tbl_twdbdata[utility],tbl_twdbdata[[#This Row],[utility]]))","v":40121430.200000003},4490,0,19,188,428203486,0,12839236,32960316,6501022,39577679,{"$f":"tbl_twdbdata[[#This Row],[utility]]&tbl_twdbdata[[#This Row],[Year]]","v":"RAYFORD ROAD MUD2050"}]
[null,2252,"RAYFORD ROAD MUD","H",2060,10378,13810,64419507,{"$f":"IF(tbl_twdbdata[[#This Row],[Year]]=2016,0,tbl_twdbdata[[#This Row],[effsave]]-0.6*SUMIFS(tbl_twdbdata[effsave],tbl_twdbdata[Year],2020,tbl_twdbdata[utility],tbl_twdbdata[[#This Row],[utility]]))","v":46539313.200000003},4854,0,19,186,462931747,0,13880527,35633471,7028269,42787517,{"$f":"tbl_twdbdata[[#This Row],[utility]]&tbl_twdbdata[[#This Row],[Year]]","v":"RAYFORD ROAD MUD2060"}]
[null,2252,"RAYFORD ROAD MUD","H",2070,10378,14179,66296041,{"$f":"IF(tbl_twdbdata[[#This Row],[Year]]=2016,0,tbl_twdbdata[[#This Row],[effsave]]-0.6*SUMIFS(tbl_twdbdata[effsave],tbl_twdbdata[Year],2020,tbl_twdbdata[utility],tbl_twdbdata[[#This Row],[utility]]))","v":48415847.200000003},4984,0,19,184,475301176,0,14251411,36585589,7216063,43930790,{"$f":"tbl_twdbdata[[#This Row],[utility]]&tbl_twdbdata[[#This Row],[Year]]","v":"RAYFORD ROAD MUD2070"}]
[null,2253,"RAYMONDVILLE","M",2016,11284,11284,0,{"$f":"IF(tbl_twdbdata[[#This Row],[Year]]=2016,0,tbl_twdbdata[[#This Row],[effsave]]-0.6*SUMIFS(tbl_twdbdata[effsave],tbl_twdbdata[Year],2020,tbl_twdbdata[utility],tbl_twdbdata[[#This Row],[utility]]))","v":0},2491,15,295,0,218071570,25327800,150576500,0,5984075,78766055,{"$f":"tbl_twdbdata[[#This Row],[utility]]&tbl_twdbdata[[#This Row],[Year]]","v":"RAYMONDVILLE2016"}]
[null,2253,"RAYMONDVILLE","M",2020,9564,12619,44032739,{"$f":"IF(tbl_twdbdata[[#This Row],[Year]]=2016,0,tbl_twdbdata[[#This Row],[effsave]]-0.6*SUMIFS(tbl_twdbdata[effsave],tbl_twdbdata[Year],2020,tbl_twdbdata[utility],tbl_twdbdata[[#This Row],[utility]]))","v":17613095.600000001},3287,20,389,0,287729521,33418184,198674702,0,7895550,103926061,{"$f":"tbl_twdbdata[[#This Row],[utility]]&tbl_twdbdata[[#This Row],[Year]]","v":"RAYMONDVILLE2020"}]
[null,2253,"RAYMONDVILLE","M",2030,9564,14224,69881090,{"$f":"IF(tbl_twdbdata[[#This Row],[Year]]=2016,0,tbl_twdbdata[[#This Row],[effsave]]-0.6*SUMIFS(tbl_twdbdata[effsave],tbl_twdbdata[Year],2020,tbl_twdbdata[utility],tbl_twdbdata[[#This Row],[utility]]))","v":43461446.600000001},3705,23,438,0,324325597,37668615,223943970,0,8899778,117144329,{"$f":"tbl_twdbdata[[#This Row],[utility]]&tbl_twdbdata[[#This Row],[Year]]","v":"RAYMONDVILLE2030"}]
[null,2253,"RAYMONDVILLE","M",2040,9564,15762,92222674,{"$f":"IF(tbl_twdbdata[[#This Row],[Year]]=2016,0,tbl_twdbdata[[#This Row],[effsave]]-0.6*SUMIFS(tbl_twdbdata[effsave],tbl_twdbdata[Year],2020,tbl_twdbdata[utility],tbl_twdbdata[[#This Row],[utility]]))","v":65803030.600000001},4106,26,494,0,359393986,41741613,248158384,0,9862085,129810807,{"$f":"tbl_twdbdata[[#This Row],[utility]]&tbl_twdbdata[[#This Row],[Year]]","v":"RAYMONDVILLE2040"}]
[null,2253,"RAYMONDVILLE","M",2050,9564,17401,109878615,{"$f":"IF(tbl_twdbdata[[#This Row],[Year]]=2016,0,tbl_twdbdata[[#This Row],[effsave]]-0.6*SUMIFS(tbl_twdbdata[effsave],tbl_twdbdata[Year],2020,tbl_twdbdata[utility],tbl_twdbdata[[#This Row],[utility]]))","v":83458971.599999994},4533,29,557,0,396765306,46082084,273962952,0,10887587,143309088,{"$f":"tbl_twdbdata[[#This Row],[utility]]&tbl_twdbdata[[#This Row],[Year]]","v":"RAYMONDVILLE2050"}]
[null,2253,"RAYMONDVILLE","M",2060,9564,18986,121827466,{"$f":"IF(tbl_twdbdata[[#This Row],[Year]]=2016,0,tbl_twdbdata[[#This Row],[effsave]]-0.6*SUMIFS(tbl_twdbdata[effsave],tbl_twdbdata[Year],2020,tbl_twdbdata[utility],tbl_twdbdata[[#This Row],[utility]]))","v":95407822.599999994},4946,33,628,0,432905356,50279550,298917339,0,11879302,156362643,{"$f":"tbl_twdbdata[[#This Row],[utility]]&tbl_twdbdata[[#This Row],[Year]]","v":"RAYMONDVILLE2060"}]
[null,2253,"RAYMONDVILLE","M",2070,9564,20538,132385894,{"$f":"IF(tbl_twdbdata[[#This Row],[Year]]=2016,0,tbl_twdbdata[[#This Row],[effsave]]-0.6*SUMIFS(tbl_twdbdata[effsave],tbl_twdbdata[Year],2020,tbl_twdbdata[utility],tbl_twdbdata[[#This Row],[utility]]))","v":105966250.59999999},5350,37,708,0,468292963,54389624,323352170,0,12850369,169144420,{"$f":"tbl_twdbdata[[#This Row],[utility]]&tbl_twdbdata[[#This Row],[Year]]","v":"RAYMONDVILLE2070"}]
[null,2256,"RED RIVER COUNTY WSC","D",2016,7020,7020,0,{"$f":"IF(tbl_twdbdata[[#This Row],[Year]]=2016,0,tbl_twdbdata[[#This Row],[effsave]]-0.6*SUMIFS(tbl_twdbdata[effsave],tbl_twdbdata[Year],2020,tbl_twdbdata[utility],tbl_twdbdata[[#This Row],[utility]]))","v":0},2340,0,0,0,122030380,0,0,0,2074766,41876140,{"$f":"tbl_twdbdata[[#This Row],[utility]]&tbl_twdbdata[[#This Row],[Year]]","v":"RED RIVER COUNTY WSC2016"}]
[null,2256,"RED RIVER COUNTY WSC","D",2020,5827,5832,20371468,{"$f":"IF(tbl_twdbdata[[#This Row],[Year]]=2016,0,tbl_twdbdata[[#This Row],[effsave]]-0.6*SUMIFS(tbl_twdbdata[effsave],tbl_twdbdata[Year],2020,tbl_twdbdata[utility],tbl_twdbdata[[#This Row],[utility]]))","v":8148587.2000000011},2342,0,0,0,122135091,0,0,0,2076546,41912073,{"$f":"tbl_twdbdata[[#This Row],[utility]]&tbl_twdbdata[[#This Row],[Year]]","v":"RED RIVER COUNTY WSC2020"}]
[null,2256,"RED RIVER COUNTY WSC","D",2030,5827,6196,31254483,{"$f":"IF(tbl_twdbdata[[#This Row],[Year]]=2016,0,tbl_twdbdata[[#This Row],[effsave]]-0.6*SUMIFS(tbl_twdbdata[effsave],tbl_twdbdata[Year],2020,tbl_twdbdata[utility],tbl_twdbdata[[#This Row],[utility]]))","v":19031602.200000003},2488,0,0,0,129758063,0,0,0,2206152,44527984,{"$f":"tbl_twdbdata[[#This Row],[utility]]&tbl_twdbdata[[#This Row],[Year]]","v":"RED RIVER COUNTY WSC2030"}]
[null,2256,"RED RIVER COUNTY WSC","D",2040,5827,6561,40711005,{"$f":"IF(tbl_twdbdata[[#This Row],[Year]]=2016,0,tbl_twdbdata[[#This Row],[effsave]]-0.6*SUMIFS(tbl_twdbdata[effsave],tbl_twdbdata[Year],2020,tbl_twdbdata[utility],tbl_twdbdata[[#This Row],[utility]]))","v":28488124.200000003},2635,0,0,0,137401977,0,0,0,2336114,47151082,{"$f":"tbl_twdbdata[[#This Row],[utility]]&tbl_twdbdata[[#This Row],[Year]]","v":"RED RIVER COUNTY WSC2040"}]
[null,2256,"RED RIVER COUNTY WSC","D",2050,5827,6684,41474220,{"$f":"IF(tbl_twdbdata[[#This Row],[Year]]=2016,0,tbl_twdbdata[[#This Row],[effsave]]-0.6*SUMIFS(tbl_twdbdata[effsave],tbl_twdbdata[Year],2020,tbl_twdbdata[utility],tbl_twdbdata[[#This Row],[utility]]))","v":29251339.200000003},2684,0,0,0,139977871,0,0,0,2379909,48035030,{"$f":"tbl_twdbdata[[#This Row],[utility]]&tbl_twdbdata[[#This Row],[Year]]","v":"RED RIVER COUNTY WSC2050"}]
[null,2256,"RED RIVER COUNTY WSC","D",2060,5827,6753,41902365,{"$f":"IF(tbl_twdbdata[[#This Row],[Year]]=2016,0,tbl_twdbdata[[#This Row],[effsave]]-0.6*SUMIFS(tbl_twdbdata[effsave],tbl_twdbdata[Year],2020,tbl_twdbdata[utility],tbl_twdbdata[[#This Row],[utility]]))","v":29679484.200000003},2712,0,0,0,141422885,0,0,0,2404477,48530903,{"$f":"tbl_twdbdata[[#This Row],[utility]]&tbl_twdbdata[[#This Row],[Year]]","v":"RED RIVER COUNTY WSC2060"}]
[null,2256,"RED RIVER COUNTY WSC","D",2070,5827,7012,43509460,{"$f":"IF(tbl_twdbdata[[#This Row],[Year]]=2016,0,tbl_twdbdata[[#This Row],[effsave]]-0.6*SUMIFS(tbl_twdbdata[effsave],tbl_twdbdata[Year],2020,tbl_twdbdata[utility],tbl_twdbdata[[#This Row],[utility]]))","v":31286579.200000003},2816,0,0,0,146846923,0,0,0,2496697,50392224,{"$f":"tbl_twdbdata[[#This Row],[utility]]&tbl_twdbdata[[#This Row],[Year]]","v":"RED RIVER COUNTY WSC2070"}]
[null,2264,"RICHARDSON","C",2016,11284,104300,0,{"$f":"IF(tbl_twdbdata[[#This Row],[Year]]=2016,0,tbl_twdbdata[[#This Row],[effsave]]-0.6*SUMIFS(tbl_twdbdata[effsave],tbl_twdbdata[Year],2020,tbl_twdbdata[utility],tbl_twdbdata[[#This Row],[utility]]))","v":0},29559,746,4155,0,3142971000,904464000,2887882000,0,5984075,78766055,{"$f":"tbl_twdbdata[[#This Row],[utility]]&tbl_twdbdata[[#This Row],[Year]]","v":"RICHARDSON2016"}]
[null,2264,"RICHARDSON","C",2020,11284,109516,366155794,{"$f":"IF(tbl_twdbdata[[#This Row],[Year]]=2016,0,tbl_twdbdata[[#This Row],[effsave]]-0.6*SUMIFS(tbl_twdbdata[effsave],tbl_twdbdata[Year],2020,tbl_twdbdata[utility],tbl_twdbdata[[#This Row],[utility]]))","v":146462317.59999999},31784,802,4468,0,3379567910,972550338,3105276293,0,6434545,84695415,{"$f":"tbl_twdbdata[[#This Row],[utility]]&tbl_twdbdata[[#This Row],[Year]]","v":"RICHARDSON2020"}]
[null,2264,"RICHARDSON","C",2030,11284,112539,530300649,{"$f":"IF(tbl_twdbdata[[#This Row],[Year]]=2016,0,tbl_twdbdata[[#This Row],[effsave]]-0.6*SUMIFS(tbl_twdbdata[effsave],tbl_twdbdata[Year],2020,tbl_twdbdata[utility],tbl_twdbdata[[#This Row],[utility]]))","v":310607172.60000002},32661,824,4591,0,3472855044,999395910,3190992081,0,6612159,87033286,{"$f":"tbl_twdbdata[[#This Row],[utility]]&tbl_twdbdata[[#This Row],[Year]]","v":"RICHARDSON2030"}]
[null,2264,"RICHARDSON","C",2040,11284,115592,669150529,{"$f":"IF(tbl_twdbdata[[#This Row],[Year]]=2016,0,tbl_twdbdata[[#This Row],[effsave]]-0.6*SUMIFS(tbl_twdbdata[effsave],tbl_twdbdata[Year],2020,tbl_twdbdata[utility],tbl_twdbdata[[#This Row],[utility]]))","v":449457052.60000002},33547,847,4717,0,3567067952,1026507895,3277558506,0,6791536,89394357,{"$f":"tbl_twdbdata[[#This Row],[utility]]&tbl_twdbdata[[#This Row],[Year]]","v":"RICHARDSON2040"}]
[null,2264,"RICHARDSON","C",2050,11284,118914,755222814,{"$f":"IF(tbl_twdbdata[[#This Row],[Year]]=2016,0,tbl_twdbdata[[#This Row],[effsave]]-0.6*SUMIFS(tbl_twdbdata[effsave],tbl_twdbdata[Year],2020,tbl_twdbdata[utility],tbl_twdbdata[[#This Row],[utility]]))","v":535529337.60000002},34511,870,4847,0,3669581965,1056008719,3371752304,0,6986718,91963463,{"$f":"tbl_twdbdata[[#This Row],[utility]]&tbl_twdbdata[[#This Row],[Year]]","v":"RICHARDSON2050"}]
[null,2264,"RICHARDSON","C",2060,11284,120585,778159122,{"$f":"IF(tbl_twdbdata[[#This Row],[Year]]=2016,0,tbl_twdbdata[[#This Row],[effsave]]-0.6*SUMIFS(tbl_twdbdata[effsave],tbl_twdbdata[Year],2020,tbl_twdbdata[utility],tbl_twdbdata[[#This Row],[utility]]))","v":558465645.60000002},34996,894,4981,0,3721147563,1070847935,3419132748,0,7084897,93255749,{"$f":"tbl_twdbdata[[#This Row],[utility]]&tbl_twdbdata[[#This Row],[Year]]","v":"RICHARDSON2060"}]
[null,2264,"RICHARDSON","C",2070,11284,124068,801088466,{"$f":"IF(tbl_twdbdata[[#This Row],[Year]]=2016,0,tbl_twdbdata[[#This Row],[effsave]]-0.6*SUMIFS(tbl_twdbdata[effsave],tbl_twdbdata[Year],2020,tbl_twdbdata[utility],tbl_twdbdata[[#This Row],[utility]]))","v":581394989.60000002},36007,919,5118,0,3828629895,1101778510,3517891626,0,7289539,95949366,{"$f":"tbl_twdbdata[[#This Row],[utility]]&tbl_twdbdata[[#This Row],[Year]]","v":"RICHARDSON2070"}]
[null,2266,"RICHLAND SUD","F",2016,2765,2765,0,{"$f":"IF(tbl_twdbdata[[#This Row],[Year]]=2016,0,tbl_twdbdata[[#This Row],[effsave]]-0.6*SUMIFS(tbl_twdbdata[effsave],tbl_twdbdata[Year],2020,tbl_twdbdata[utility],tbl_twdbdata[[#This Row],[utility]]))","v":0},1124,0,0,0,142518490,0,0,0,2074766,41876140,{"$f":"tbl_twdbdata[[#This Row],[utility]]&tbl_twdbdata[[#This Row],[Year]]","v":"RICHLAND SUD2016"}]
[null,2266,"RICHLAND SUD","F",2020,1874,1955,5772822,{"$f":"IF(tbl_twdbdata[[#This Row],[Year]]=2016,0,tbl_twdbdata[[#This Row],[effsave]]-0.6*SUMIFS(tbl_twdbdata[effsave],tbl_twdbdata[Year],2020,tbl_twdbdata[utility],tbl_twdbdata[[#This Row],[utility]]))","v":2309128.8000000003},1173,0,0,0,148678574,0,0,0,2164444,43686155,{"$f":"tbl_twdbdata[[#This Row],[utility]]&tbl_twdbdata[[#This Row],[Year]]","v":"RICHLAND SUD2020"}]
[null,2266,"RICHLAND SUD","F",2030,1874,2043,8456181,{"$f":"IF(tbl_twdbdata[[#This Row],[Year]]=2016,0,tbl_twdbdata[[#This Row],[effsave]]-0.6*SUMIFS(tbl_twdbdata[effsave],tbl_twdbdata[Year],2020,tbl_twdbdata[utility],tbl_twdbdata[[#This Row],[utility]]))","v":4992487.8000000007},1226,0,0,0,155371011,0,0,0,2261872,45652591,{"$f":"tbl_twdbdata[[#This Row],[utility]]&tbl_twdbdata[[#This Row],[Year]]","v":"RICHLAND SUD2030"}]
[null,2266,"RICHLAND SUD","F",2040,1874,2052,10201108,{"$f":"IF(tbl_twdbdata[[#This Row],[Year]]=2016,0,tbl_twdbdata[[#This Row],[effsave]]-0.6*SUMIFS(tbl_twdbdata[effsave],tbl_twdbdata[Year],2020,tbl_twdbdata[utility],tbl_twdbdata[[#This Row],[utility]]))","v":6737414.8000000007},1231,0,0,0,156055465,0,0,0,2271836,45853704,{"$f":"tbl_twdbdata[[#This Row],[utility]]&tbl_twdbdata[[#This Row],[Year]]","v":"RICHLAND SUD2040"}]
[null,2266,"RICHLAND SUD","F",2050,1874,2047,11125138,{"$f":"IF(tbl_twdbdata[[#This Row],[Year]]=2016,0,tbl_twdbdata[[#This Row],[effsave]]-0.6*SUMIFS(tbl_twdbdata[effsave],tbl_twdbdata[Year],2020,tbl_twdbdata[utility],tbl_twdbdata[[#This Row],[utility]]))","v":7661444.8000000007},1228,0,0,0,155675213,0,0,0,2266300,45741975,{"$f":"tbl_twdbdata[[#This Row],[utility]]&tbl_twdbdata[[#This Row],[Year]]","v":"RICHLAND SUD2050"}]
[null,2266,"RICHLAND SUD","F",2060,1874,2073,11501004,{"$f":"IF(tbl_twdbdata[[#This Row],[Year]]=2016,0,tbl_twdbdata[[#This Row],[effsave]]-0.6*SUMIFS(tbl_twdbdata[effsave],tbl_twdbdata[Year],2020,tbl_twdbdata[utility],tbl_twdbdata[[#This Row],[utility]]))","v":8037310.8000000007},1244,0,0,0,157652524,0,0,0,2295085,46322967,{"$f":"tbl_twdbdata[[#This Row],[utility]]&tbl_twdbdata[[#This Row],[Year]]","v":"RICHLAND SUD2060"}]
[null,2266,"RICHLAND SUD","F",2070,1874,2098,11662677,{"$f":"IF(tbl_twdbdata[[#This Row],[Year]]=2016,0,tbl_twdbdata[[#This Row],[effsave]]-0.6*SUMIFS(tbl_twdbdata[effsave],tbl_twdbdata[Year],2020,tbl_twdbdata[utility],tbl_twdbdata[[#This Row],[utility]]))","v":8198983.8000000007},1259,0,0,0,159553785,0,0,0,2322763,46881613,{"$f":"tbl_twdbdata[[#This Row],[utility]]&tbl_twdbdata[[#This Row],[Year]]","v":"RICHLAND SUD2070"}]
[null,2267,"RICHMOND","H",2016,8745,12093,0,{"$f":"IF(tbl_twdbdata[[#This Row],[Year]]=2016,0,tbl_twdbdata[[#This Row],[effsave]]-0.6*SUMIFS(tbl_twdbdata[effsave],tbl_twdbdata[Year],2020,tbl_twdbdata[utility],tbl_twdbdata[[#This Row],[utility]]))","v":0},2873,42,458,158,166452400,67103000,192365300,29626000,6122706,28147089,{"$f":"tbl_twdbdata[[#This Row],[utility]]&tbl_twdbdata[[#This Row],[Year]]","v":"RICHMOND2016"}]
[null,2267,"RICHMOND","H",2020,8745,12916,44220509,{"$f":"IF(tbl_twdbdata[[#This Row],[Year]]=2016,0,tbl_twdbdata[[#This Row],[effsave]]-0.6*SUMIFS(tbl_twdbdata[effsave],tbl_twdbdata[Year],2020,tbl_twdbdata[utility],tbl_twdbdata[[#This Row],[utility]]))","v":17688203.600000001},3487,51,556,192,202001240,81434027,233448296,35953154,7430318,34158395,{"$f":"tbl_twdbdata[[#This Row],[utility]]&tbl_twdbdata[[#This Row],[Year]]","v":"RICHMOND2020"}]
[null,2267,"RICHMOND","H",2030,8745,13426,65225522,{"$f":"IF(tbl_twdbdata[[#This Row],[Year]]=2016,0,tbl_twdbdata[[#This Row],[effsave]]-0.6*SUMIFS(tbl_twdbdata[effsave],tbl_twdbdata[Year],2020,tbl_twdbdata[utility],tbl_twdbdata[[#This Row],[utility]]))","v":38693216.600000001},3625,53,578,200,209977443,84649524,242666214,37372797,7723711,35507170,{"$f":"tbl_twdbdata[[#This Row],[utility]]&tbl_twdbdata[[#This Row],[Year]]","v":"RICHMOND2030"}]
[null,2267,"RICHMOND","H",2040,8745,14072,84080904,{"$f":"IF(tbl_twdbdata[[#This Row],[Year]]=2016,0,tbl_twdbdata[[#This Row],[effsave]]-0.6*SUMIFS(tbl_twdbdata[effsave],tbl_twdbdata[Year],2020,tbl_twdbdata[utility],tbl_twdbdata[[#This Row],[utility]]))","v":57548598.600000001},3799,55,601,208,220080633,88722486,254342244,39171011,8095342,37215619,{"$f":"tbl_twdbdata[[#This Row],[utility]]&tbl_twdbdata[[#This Row],[Year]]","v":"RICHMOND2040"}]
[null,2267,"RICHMOND","H",2050,8745,14973,98317959,{"$f":"IF(tbl_twdbdata[[#This Row],[Year]]=2016,0,tbl_twdbdata[[#This Row],[effsave]]-0.6*SUMIFS(tbl_twdbdata[effsave],tbl_twdbdata[Year],2020,tbl_twdbdata[utility],tbl_twdbdata[[#This Row],[utility]]))","v":71785653.599999994},4042,57,624,216,234171924,94403197,270627232,41679047,8613669,39598455,{"$f":"tbl_twdbdata[[#This Row],[utility]]&tbl_twdbdata[[#This Row],[Year]]","v":"RICHMOND2050"}]
[null,2267,"RICHMOND","H",2060,8745,15870,106119516,{"$f":"IF(tbl_twdbdata[[#This Row],[Year]]=2016,0,tbl_twdbdata[[#This Row],[effsave]]-0.6*SUMIFS(tbl_twdbdata[effsave],tbl_twdbdata[Year],2020,tbl_twdbdata[utility],tbl_twdbdata[[#This Row],[utility]]))","v":79587210.599999994},4284,59,649,225,248200657,100058688,286839923,44175948,9129695,41970713,{"$f":"tbl_twdbdata[[#This Row],[utility]]&tbl_twdbdata[[#This Row],[Year]]","v":"RICHMOND2060"}]
[null,2267,"RICHMOND","H",2070,8745,16762,112512411,{"$f":"IF(tbl_twdbdata[[#This Row],[Year]]=2016,0,tbl_twdbdata[[#This Row],[effsave]]-0.6*SUMIFS(tbl_twdbdata[effsave],tbl_twdbdata[Year],2020,tbl_twdbdata[utility],tbl_twdbdata[[#This Row],[utility]]))","v":85980105.599999994},4525,61,675,234,262151192,105682655,302962242,46658931,9642845,44329747,{"$f":"tbl_twdbdata[[#This Row],[utility]]&tbl_twdbdata[[#This Row],[Year]]","v":"RICHMOND2070"}]
[null,2271,"RIO GRANDE CITY","M",2016,17229,17229,0,{"$f":"IF(tbl_twdbdata[[#This Row],[Year]]=2016,0,tbl_twdbdata[[#This Row],[effsave]]-0.6*SUMIFS(tbl_twdbdata[effsave],tbl_twdbdata[Year],2020,tbl_twdbdata[utility],tbl_twdbdata[[#This Row],[utility]]))","v":0},5165,6,572,0,379198499,1570700,185047666,0,null,null,{"$f":"tbl_twdbdata[[#This Row],[utility]]&tbl_twdbdata[[#This Row],[Year]]","v":"RIO GRANDE CITY2016"}]
[null,2271,"RIO GRANDE CITY","M",2020,17025,20304,72108641,{"$f":"IF(tbl_twdbdata[[#This Row],[Year]]=2016,0,tbl_twdbdata[[#This Row],[effsave]]-0.6*SUMIFS(tbl_twdbdata[effsave],tbl_twdbdata[Year],2020,tbl_twdbdata[utility],tbl_twdbdata[[#This Row],[utility]]))","v":28843456.399999999},6160,7,682,0,452231796,1873215,220687683,0,null,null,{"$f":"tbl_twdbdata[[#This Row],[utility]]&tbl_twdbdata[[#This Row],[Year]]","v":"RIO GRANDE CITY2020"}]
[null,2271,"RIO GRANDE CITY","M",2030,17025,22966,114254702,{"$f":"IF(tbl_twdbdata[[#This Row],[Year]]=2016,0,tbl_twdbdata[[#This Row],[effsave]]-0.6*SUMIFS(tbl_twdbdata[effsave],tbl_twdbdata[Year],2020,tbl_twdbdata[utility],tbl_twdbdata[[#This Row],[utility]]))","v":70989517.400000006},6968,8,771,0,511522627,2118807,249621421,0,null,null,{"$f":"tbl_twdbdata[[#This Row],[utility]]&tbl_twdbdata[[#This Row],[Year]]","v":"RIO GRANDE CITY2030"}]
[null,2271,"RIO GRANDE CITY","M",2040,17025,25418,149925531,{"$f":"IF(tbl_twdbdata[[#This Row],[Year]]=2016,0,tbl_twdbdata[[#This Row],[effsave]]-0.6*SUMIFS(tbl_twdbdata[effsave],tbl_twdbdata[Year],2020,tbl_twdbdata[utility],tbl_twdbdata[[#This Row],[utility]]))","v":106660346.40000001},7712,9,872,0,566136120,2345025,276272633,0,null,null,{"$f":"tbl_twdbdata[[#This Row],[utility]]&tbl_twdbdata[[#This Row],[Year]]","v":"RIO GRANDE CITY2040"}]
[null,2271,"RIO GRANDE CITY","M",2050,17025,27848,176964293,{"$f":"IF(tbl_twdbdata[[#This Row],[Year]]=2016,0,tbl_twdbdata[[#This Row],[effsave]]-0.6*SUMIFS(tbl_twdbdata[effsave],tbl_twdbdata[Year],2020,tbl_twdbdata[utility],tbl_twdbdata[[#This Row],[utility]]))","v":133699108.40000001},8449,10,986,0,620259606,2569213,302684723,0,null,null,{"$f":"tbl_twdbdata[[#This Row],[utility]]&tbl_twdbdata[[#This Row],[Year]]","v":"RIO GRANDE CITY2050"}]
[null,2271,"RIO GRANDE CITY","M",2060,17025,30022,193737970,{"$f":"IF(tbl_twdbdata[[#This Row],[Year]]=2016,0,tbl_twdbdata[[#This Row],[effsave]]-0.6*SUMIFS(tbl_twdbdata[effsave],tbl_twdbdata[Year],2020,tbl_twdbdata[utility],tbl_twdbdata[[#This Row],[utility]]))","v":150472785.40000001},9109,11,1115,0,668681194,2769783,326314305,0,null,null,{"$f":"tbl_twdbdata[[#This Row],[utility]]&tbl_twdbdata[[#This Row],[Year]]","v":"RIO GRANDE CITY2060"}]
[null,2271,"RIO GRANDE CITY","M",2070,17025,31991,207261691,{"$f":"IF(tbl_twdbdata[[#This Row],[Year]]=2016,0,tbl_twdbdata[[#This Row],[effsave]]-0.6*SUMIFS(tbl_twdbdata[effsave],tbl_twdbdata[Year],2020,tbl_twdbdata[utility],tbl_twdbdata[[#This Row],[utility]]))","v":163996506.40000001},9706,12,1261,0,712536809,2951440,347715706,0,null,null,{"$f":"tbl_twdbdata[[#This Row],[utility]]&tbl_twdbdata[[#This Row],[Year]]","v":"RIO GRANDE CITY2070"}]
[null,2272,"RIO HONDO","M",2016,2363,2363,0,{"$f":"IF(tbl_twdbdata[[#This Row],[Year]]=2016,0,tbl_twdbdata[[#This Row],[effsave]]-0.6*SUMIFS(tbl_twdbdata[effsave],tbl_twdbdata[Year],2020,tbl_twdbdata[utility],tbl_twdbdata[[#This Row],[utility]]))","v":0},623,6,81,16,14714965,15765031,11357997,3977083,null,null,{"$f":"tbl_twdbdata[[#This Row],[utility]]&tbl_twdbdata[[#This Row],[Year]]","v":"RIO HONDO2016"}]
[null,2272,"RIO HONDO","M",2020,2362,2777,9730608,{"$f":"IF(tbl_twdbdata[[#This Row],[Year]]=2016,0,tbl_twdbdata[[#This Row],[effsave]]-0.6*SUMIFS(tbl_twdbdata[effsave],tbl_twdbdata[Year],2020,tbl_twdbdata[utility],tbl_twdbdata[[#This Row],[utility]]))","v":3892243.2},732,7,95,19,17300363,18534924,13353581,4675851,null,null,{"$f":"tbl_twdbdata[[#This Row],[utility]]&tbl_twdbdata[[#This Row],[Year]]","v":"RIO HONDO2020"}]
[null,2272,"RIO HONDO","M",2030,2362,3244,15937448,{"$f":"IF(tbl_twdbdata[[#This Row],[Year]]=2016,0,tbl_twdbdata[[#This Row],[effsave]]-0.6*SUMIFS(tbl_twdbdata[effsave],tbl_twdbdata[Year],2020,tbl_twdbdata[utility],tbl_twdbdata[[#This Row],[utility]]))","v":10099083.199999999},855,8,111,22,20209715,21651888,15599214,5462175,null,null,{"$f":"tbl_twdbdata[[#This Row],[utility]]&tbl_twdbdata[[#This Row],[Year]]","v":"RIO HONDO2030"}]
[null,2272,"RIO HONDO","M",2040,2362,3718,20356050,{"$f":"IF(tbl_twdbdata[[#This Row],[Year]]=2016,0,tbl_twdbdata[[#This Row],[effsave]]-0.6*SUMIFS(tbl_twdbdata[effsave],tbl_twdbdata[Year],2020,tbl_twdbdata[utility],tbl_twdbdata[[#This Row],[utility]]))","v":14517685.199999999},980,9,130,26,23162676,24815573,17878508,6260286,null,null,{"$f":"tbl_twdbdata[[#This Row],[utility]]&tbl_twdbdata[[#This Row],[Year]]","v":"RIO HONDO2040"}]
[null,2272,"RIO HONDO","M",2050,2362,4229,23153775,{"$f":"IF(tbl_twdbdata[[#This Row],[Year]]=2016,0,tbl_twdbdata[[#This Row],[effsave]]-0.6*SUMIFS(tbl_twdbdata[effsave],tbl_twdbdata[Year],2020,tbl_twdbdata[utility],tbl_twdbdata[[#This Row],[utility]]))","v":17315410.199999999},1115,11,152,30,26346142,28226213,20335721,7120696,null,null,{"$f":"tbl_twdbdata[[#This Row],[utility]]&tbl_twdbdata[[#This Row],[Year]]","v":"RIO HONDO2050"}]
[null,2272,"RIO HONDO","M",2060,2362,4755,26033625,{"$f":"IF(tbl_twdbdata[[#This Row],[Year]]=2016,0,tbl_twdbdata[[#This Row],[effsave]]-0.6*SUMIFS(tbl_twdbdata[effsave],tbl_twdbdata[Year],2020,tbl_twdbdata[utility],tbl_twdbdata[[#This Row],[utility]]))","v":20195260.199999999},1254,13,178,35,29623056,31736969,22865064,8006363,null,null,{"$f":"tbl_twdbdata[[#This Row],[utility]]&tbl_twdbdata[[#This Row],[Year]]","v":"RIO HONDO2060"}]
[null,2272,"RIO HONDO","M",2070,2362,5292,28973700,{"$f":"IF(tbl_twdbdata[[#This Row],[Year]]=2016,0,tbl_twdbdata[[#This Row],[effsave]]-0.6*SUMIFS(tbl_twdbdata[effsave],tbl_twdbdata[Year],2020,tbl_twdbdata[utility],tbl_twdbdata[[#This Row],[utility]]))","v":23135335.199999999},1396,15,208,41,32968499,35321144,25447302,8910552,null,null,{"$f":"tbl_twdbdata[[#This Row],[utility]]&tbl_twdbdata[[#This Row],[Year]]","v":"RIO HONDO2070"}]
[null,2280,"RIVERSIDE WSC","H",2016,6720,6720,0,{"$f":"IF(tbl_twdbdata[[#This Row],[Year]]=2016,0,tbl_twdbdata[[#This Row],[effsave]]-0.6*SUMIFS(tbl_twdbdata[effsave],tbl_twdbdata[Year],2020,tbl_twdbdata[utility],tbl_twdbdata[[#This Row],[utility]]))","v":0},1877,10,33,0,81096762,12144565,4107491,0,null,null,{"$f":"tbl_twdbdata[[#This Row],[utility]]&tbl_twdbdata[[#This Row],[Year]]","v":"RIVERSIDE WSC2016"}]
[null,2280,"RIVERSIDE WSC","H",2020,4800,5325,7774500,{"$f":"IF(tbl_twdbdata[[#This Row],[Year]]=2016,0,tbl_twdbdata[[#This Row],[effsave]]-0.6*SUMIFS(tbl_twdbdata[effsave],tbl_twdbdata[Year],2020,tbl_twdbdata[utility],tbl_twdbdata[[#This Row],[utility]]))","v":3109800},2082,11,36,0,89966720,13472877,4556748,0,null,null,{"$f":"tbl_twdbdata[[#This Row],[utility]]&tbl_twdbdata[[#This Row],[Year]]","v":"RIVERSIDE WSC2020"}]
[null,2280,"RIVERSIDE WSC","H",2030,4800,5860,8555600,{"$f":"IF(tbl_twdbdata[[#This Row],[Year]]=2016,0,tbl_twdbdata[[#This Row],[effsave]]-0.6*SUMIFS(tbl_twdbdata[effsave],tbl_twdbdata[Year],2020,tbl_twdbdata[utility],tbl_twdbdata[[#This Row],[utility]]))","v":3890900},2291,12,39,0,99005630,14826490,5014563,0,null,null,{"$f":"tbl_twdbdata[[#This Row],[utility]]&tbl_twdbdata[[#This Row],[Year]]","v":"RIVERSIDE WSC2030"}]
[null,2280,"RIVERSIDE WSC","H",2040,4800,6248,9122080,{"$f":"IF(tbl_twdbdata[[#This Row],[Year]]=2016,0,tbl_twdbdata[[#This Row],[effsave]]-0.6*SUMIFS(tbl_twdbdata[effsave],tbl_twdbdata[Year],2020,tbl_twdbdata[utility],tbl_twdbdata[[#This Row],[utility]]))","v":4457380},2443,13,43,0,105560952,15808176,5346585,0,null,null,{"$f":"tbl_twdbdata[[#This Row],[utility]]&tbl_twdbdata[[#This Row],[Year]]","v":"RIVERSIDE WSC2040"}]
[null,2280,"RIVERSIDE WSC","H",2050,4800,6621,9666660,{"$f":"IF(tbl_twdbdata[[#This Row],[Year]]=2016,0,tbl_twdbdata[[#This Row],[effsave]]-0.6*SUMIFS(tbl_twdbdata[effsave],tbl_twdbdata[Year],2020,tbl_twdbdata[utility],tbl_twdbdata[[#This Row],[utility]]))","v":5001960},2589,14,47,0,111862846,16751910,5665771,0,null,null,{"$f":"tbl_twdbdata[[#This Row],[utility]]&tbl_twdbdata[[#This Row],[Year]]","v":"RIVERSIDE WSC2050"}]
[null,2280,"RIVERSIDE WSC","H",2060,4800,6913,10092980,{"$f":"IF(tbl_twdbdata[[#This Row],[Year]]=2016,0,tbl_twdbdata[[#This Row],[effsave]]-0.6*SUMIFS(tbl_twdbdata[effsave],tbl_twdbdata[Year],2020,tbl_twdbdata[utility],tbl_twdbdata[[#This Row],[utility]]))","v":5428280},2703,15,51,0,116796232,17490704,5915643,0,null,null,{"$f":"tbl_twdbdata[[#This Row],[utility]]&tbl_twdbdata[[#This Row],[Year]]","v":"RIVERSIDE WSC2060"}]
[null,2280,"RIVERSIDE WSC","H",2070,4800,7152,10441920,{"$f":"IF(tbl_twdbdata[[#This Row],[Year]]=2016,0,tbl_twdbdata[[#This Row],[effsave]]-0.6*SUMIFS(tbl_twdbdata[effsave],tbl_twdbdata[Year],2020,tbl_twdbdata[utility],tbl_twdbdata[[#This Row],[utility]]))","v":5777220},2796,17,56,0,120834175,18095402,6120162,0,null,null,{"$f":"tbl_twdbdata[[#This Row],[utility]]&tbl_twdbdata[[#This Row],[Year]]","v":"RIVERSIDE WSC2070"}]
[null,2282,"ROBERT LEE","F",2016,1049,1049,0,{"$f":"IF(tbl_twdbdata[[#This Row],[Year]]=2016,0,tbl_twdbdata[[#This Row],[effsave]]-0.6*SUMIFS(tbl_twdbdata[effsave],tbl_twdbdata[Year],2020,tbl_twdbdata[utility],tbl_twdbdata[[#This Row],[utility]]))","v":0},503,42,81,0,25465000,1801000,9316000,0,5805543,12375917,{"$f":"tbl_twdbdata[[#This Row],[utility]]&tbl_twdbdata[[#This Row],[Year]]","v":"ROBERT LEE2016"}]
[null,2282,"ROBERT LEE","F",2020,1049,1050,3740520,{"$f":"IF(tbl_twdbdata[[#This Row],[Year]]=2016,0,tbl_twdbdata[[#This Row],[effsave]]-0.6*SUMIFS(tbl_twdbdata[effsave],tbl_twdbdata[Year],2020,tbl_twdbdata[utility],tbl_twdbdata[[#This Row],[utility]]))","v":1496208},503,42,81,0,25489276,1802717,9324881,0,5811077,12387715,{"$f":"tbl_twdbdata[[#This Row],[utility]]&tbl_twdbdata[[#This Row],[Year]]","v":"ROBERT LEE2020"}]
[null,2282,"ROBERT LEE","F",2030,1049,1050,5541795,{"$f":"IF(tbl_twdbdata[[#This Row],[Year]]=2016,0,tbl_twdbdata[[#This Row],[effsave]]-0.6*SUMIFS(tbl_twdbdata[effsave],tbl_twdbdata[Year],2020,tbl_twdbdata[utility],tbl_twdbdata[[#This Row],[utility]]))","v":3297483},503,42,81,0,25489276,1802717,9324881,0,5811077,12387715,{"$f":"tbl_twdbdata[[#This Row],[utility]]&tbl_twdbdata[[#This Row],[Year]]","v":"ROBERT LEE2030"}]
[null,2282,"ROBERT LEE","F",2040,1049,1050,6791190,{"$f":"IF(tbl_twdbdata[[#This Row],[Year]]=2016,0,tbl_twdbdata[[#This Row],[effsave]]-0.6*SUMIFS(tbl_twdbdata[effsave],tbl_twdbdata[Year],2020,tbl_twdbdata[utility],tbl_twdbdata[[#This Row],[utility]]))","v":4546878},503,42,81,0,25489276,1802717,9324881,0,5811077,12387715,{"$f":"tbl_twdbdata[[#This Row],[utility]]&tbl_twdbdata[[#This Row],[Year]]","v":"ROBERT LEE2040"}]
[null,2282,"ROBERT LEE","F",2050,1049,1050,6917663,{"$f":"IF(tbl_twdbdata[[#This Row],[Year]]=2016,0,tbl_twdbdata[[#This Row],[effsave]]-0.6*SUMIFS(tbl_twdbdata[effsave],tbl_twdbdata[Year],2020,tbl_twdbdata[utility],tbl_twdbdata[[#This Row],[utility]]))","v":4673351},503,42,81,0,25489276,1802717,9324881,0,5811077,12387715,{"$f":"tbl_twdbdata[[#This Row],[utility]]&tbl_twdbdata[[#This Row],[Year]]","v":"ROBERT LEE2050"}]
[null,2282,"ROBERT LEE","F",2060,1049,1050,7044135,{"$f":"IF(tbl_twdbdata[[#This Row],[Year]]=2016,0,tbl_twdbdata[[#This Row],[effsave]]-0.6*SUMIFS(tbl_twdbdata[effsave],tbl_twdbdata[Year],2020,tbl_twdbdata[utility],tbl_twdbdata[[#This Row],[utility]]))","v":4799823},503,42,81,0,25489276,1802717,9324881,0,5811077,12387715,{"$f":"tbl_twdbdata[[#This Row],[utility]]&tbl_twdbdata[[#This Row],[Year]]","v":"ROBERT LEE2060"}]
[null,2282,"ROBERT LEE","F",2070,1049,1050,7044135,{"$f":"IF(tbl_twdbdata[[#This Row],[Year]]=2016,0,tbl_twdbdata[[#This Row],[effsave]]-0.6*SUMIFS(tbl_twdbdata[effsave],tbl_twdbdata[Year],2020,tbl_twdbdata[utility],tbl_twdbdata[[#This Row],[utility]]))","v":4799823},503,42,81,0,25489276,1802717,9324881,0,5811077,12387715,{"$f":"tbl_twdbdata[[#This Row],[utility]]&tbl_twdbdata[[#This Row],[Year]]","v":"ROBERT LEE2070"}]
[null,2284,"ROBINSON","G",2016,12800,12800,0,{"$f":"IF(tbl_twdbdata[[#This Row],[Year]]=2016,0,tbl_twdbdata[[#This Row],[effsave]]-0.6*SUMIFS(tbl_twdbdata[effsave],tbl_twdbdata[Year],2020,tbl_twdbdata[utility],tbl_twdbdata[[#This Row],[utility]]))","v":0},4321,1,226,0,300411301,226800,36080500,0,5345097,61702864,{"$f":"tbl_twdbdata[[#This Row],[utility]]&tbl_twdbdata[[#This Row],[Year]]","v":"ROBINSON2016"}]
[null,2284,"ROBINSON","G",2020,9859,12851,43435095,{"$f":"IF(tbl_twdbdata[[#This Row],[Year]]=2016,0,tbl_twdbdata[[#This Row],[effsave]]-0.6*SUMIFS(tbl_twdbdata[effsave],tbl_twdbdata[Year],2020,tbl_twdbdata[utility],tbl_twdbdata[[#This Row],[utility]]))","v":17374038},5632,1,295,0,391579839,295629,47030176,0,6967222,80428391,{"$f":"tbl_twdbdata[[#This Row],[utility]]&tbl_twdbdata[[#This Row],[Year]]","v":"ROBINSON2020"}]
[null,2284,"ROBINSON","G",2030,9859,15380,72360593,{"$f":"IF(tbl_twdbdata[[#This Row],[Year]]=2016,0,tbl_twdbdata[[#This Row],[effsave]]-0.6*SUMIFS(tbl_twdbdata[effsave],tbl_twdbdata[Year],2020,tbl_twdbdata[utility],tbl_twdbdata[[#This Row],[utility]]))","v":46299536},6740,1,353,0,468640411,353807,56285434,0,8338330,96256218,{"$f":"tbl_twdbdata[[#This Row],[utility]]&tbl_twdbdata[[#This Row],[Year]]","v":"ROBINSON2030"}]
[null,2284,"ROBINSON","G",2040,9859,17613,96302600,{"$f":"IF(tbl_twdbdata[[#This Row],[Year]]=2016,0,tbl_twdbdata[[#This Row],[effsave]]-0.6*SUMIFS(tbl_twdbdata[effsave],tbl_twdbdata[Year],2020,tbl_twdbdata[utility],tbl_twdbdata[[#This Row],[utility]]))","v":70241543},7719,1,422,0,536681636,405176,64457435,0,9548960,110231519,{"$f":"tbl_twdbdata[[#This Row],[utility]]&tbl_twdbdata[[#This Row],[Year]]","v":"ROBINSON2040"}]
[null,2284,"ROBINSON","G",2050,9859,19859,115831589,{"$f":"IF(tbl_twdbdata[[#This Row],[Year]]=2016,0,tbl_twdbdata[[#This Row],[effsave]]-0.6*SUMIFS(tbl_twdbdata[effsave],tbl_twdbdata[Year],2020,tbl_twdbdata[utility],tbl_twdbdata[[#This Row],[utility]]))","v":89770532},8703,1,505,0,605118981,456844,72677011,0,10766638,124288181,{"$f":"tbl_twdbdata[[#This Row],[utility]]&tbl_twdbdata[[#This Row],[Year]]","v":"ROBINSON2050"}]
[null,2284,"ROBINSON","G",2060,9859,22099,130994032,{"$f":"IF(tbl_twdbdata[[#This Row],[Year]]=2016,0,tbl_twdbdata[[#This Row],[effsave]]-0.6*SUMIFS(tbl_twdbdata[effsave],tbl_twdbdata[Year],2020,tbl_twdbdata[utility],tbl_twdbdata[[#This Row],[utility]]))","v":104932975},9685,1,604,0,673373501,508374,80874629,0,11981063,138307292,{"$f":"tbl_twdbdata[[#This Row],[utility]]&tbl_twdbdata[[#This Row],[Year]]","v":"ROBINSON2060"}]
[null,2284,"ROBINSON","G",2070,9859,24296,144637732,{"$f":"IF(tbl_twdbdata[[#This Row],[Year]]=2016,0,tbl_twdbdata[[#This Row],[effsave]]-0.6*SUMIFS(tbl_twdbdata[effsave],tbl_twdbdata[Year],2020,tbl_twdbdata[utility],tbl_twdbdata[[#This Row],[utility]]))","v":118576675},10648,1,723,0,740317778,558915,88914882,0,13172176,152057286,{"$f":"tbl_twdbdata[[#This Row],[utility]]&tbl_twdbdata[[#This Row],[Year]]","v":"ROBINSON2070"}]
[null,121,"ROCKETT SUD","C",2016,37257,37257,0,{"$f":"IF(tbl_twdbdata[[#This Row],[Year]]=2016,0,tbl_twdbdata[[#This Row],[effsave]]-0.6*SUMIFS(tbl_twdbdata[effsave],tbl_twdbdata[Year],2020,tbl_twdbdata[utility],tbl_twdbdata[[#This Row],[utility]]))","v":0},11868,220,327,4,922418613,8617819,94560960,295435,null,null,{"$f":"tbl_twdbdata[[#This Row],[utility]]&tbl_twdbdata[[#This Row],[Year]]","v":"ROCKETT SUD2016"}]
[null,121,"ROCKETT SUD","C",2020,31888,40447,148369708,{"$f":"IF(tbl_twdbdata[[#This Row],[Year]]=2016,0,tbl_twdbdata[[#This Row],[effsave]]-0.6*SUMIFS(tbl_twdbdata[effsave],tbl_twdbdata[Year],2020,tbl_twdbdata[utility],tbl_twdbdata[[#This Row],[utility]]))","v":59347883.200000003},15053,279,415,5,1170003313,10930912,119941896,374732,null,null,{"$f":"tbl_twdbdata[[#This Row],[utility]]&tbl_twdbdata[[#This Row],[Year]]","v":"ROCKETT SUD2020"}]
[null,121,"ROCKETT SUD","C",2030,31888,53008,268742609,{"$f":"IF(tbl_twdbdata[[#This Row],[Year]]=2016,0,tbl_twdbdata[[#This Row],[effsave]]-0.6*SUMIFS(tbl_twdbdata[effsave],tbl_twdbdata[Year],2020,tbl_twdbdata[utility],tbl_twdbdata[[#This Row],[utility]]))","v":179720784.19999999},19728,366,544,7,1533353169,14325556,157190398,491107,null,null,{"$f":"tbl_twdbdata[[#This Row],[utility]]&tbl_twdbdata[[#This Row],[Year]]","v":"ROCKETT SUD2030"}]
[null,121,"ROCKETT SUD","C",2040,31888,58999,342400697,{"$f":"IF(tbl_twdbdata[[#This Row],[Year]]=2016,0,tbl_twdbdata[[#This Row],[effsave]]-0.6*SUMIFS(tbl_twdbdata[effsave],tbl_twdbdata[Year],2020,tbl_twdbdata[utility],tbl_twdbdata[[#This Row],[utility]]))","v":253378872.19999999},21958,480,713,9,1706653781,15944640,174956163,546612,null,null,{"$f":"tbl_twdbdata[[#This Row],[utility]]&tbl_twdbdata[[#This Row],[Year]]","v":"ROCKETT SUD2040"}]
[null,121,"ROCKETT SUD","C",2050,31888,78999,483845175,{"$f":"IF(tbl_twdbdata[[#This Row],[Year]]=2016,0,tbl_twdbdata[[#This Row],[effsave]]-0.6*SUMIFS(tbl_twdbdata[effsave],tbl_twdbdata[Year],2020,tbl_twdbdata[utility],tbl_twdbdata[[#This Row],[utility]]))","v":394823350.19999999},29402,629,934,12,2285190292,21349694,234264342,731907,null,null,{"$f":"tbl_twdbdata[[#This Row],[utility]]&tbl_twdbdata[[#This Row],[Year]]","v":"ROCKETT SUD2050"}]
[null,121,"ROCKETT SUD","C",2060,31888,104999,652668534,{"$f":"IF(tbl_twdbdata[[#This Row],[Year]]=2016,0,tbl_twdbdata[[#This Row],[effsave]]-0.6*SUMIFS(tbl_twdbdata[effsave],tbl_twdbdata[Year],2020,tbl_twdbdata[utility],tbl_twdbdata[[#This Row],[utility]]))","v":563646709.20000005},39079,824,1224,16,3037287756,28376265,311364974,972791,null,null,{"$f":"tbl_twdbdata[[#This Row],[utility]]&tbl_twdbdata[[#This Row],[Year]]","v":"ROCKETT SUD2060"}]
[null,121,"ROCKETT SUD","C",2070,31888,135999,849830551,{"$f":"IF(tbl_twdbdata[[#This Row],[Year]]=2016,0,tbl_twdbdata[[#This Row],[effsave]]-0.6*SUMIFS(tbl_twdbdata[effsave],tbl_twdbdata[Year],2020,tbl_twdbdata[utility],tbl_twdbdata[[#This Row],[utility]]))","v":760808726.20000005},50617,1080,1604,21,3934019348,36754099,403292651,1259999,null,null,{"$f":"tbl_twdbdata[[#This Row],[utility]]&tbl_twdbdata[[#This Row],[Year]]","v":"ROCKETT SUD2070"}]
[null,2288,"ROCKPORT","N",2016,26911,26911,0,{"$f":"IF(tbl_twdbdata[[#This Row],[Year]]=2016,0,tbl_twdbdata[[#This Row],[effsave]]-0.6*SUMIFS(tbl_twdbdata[effsave],tbl_twdbdata[Year],2020,tbl_twdbdata[utility],tbl_twdbdata[[#This Row],[utility]]))","v":0},8713,993,1323,0,645259202,73510542,98014056,0,5043622,120032178,{"$f":"tbl_twdbdata[[#This Row],[utility]]&tbl_twdbdata[[#This Row],[Year]]","v":"ROCKPORT2016"}]
[null,2288,"ROCKPORT","N",2020,19405,19120,58272980,{"$f":"IF(tbl_twdbdata[[#This Row],[Year]]=2016,0,tbl_twdbdata[[#This Row],[effsave]]-0.6*SUMIFS(tbl_twdbdata[effsave],tbl_twdbdata[Year],2020,tbl_twdbdata[utility],tbl_twdbdata[[#This Row],[utility]]))","v":23309192},8585,978,1304,0,635782321,72430897,96574530,0,4969547,118269273,{"$f":"tbl_twdbdata[[#This Row],[utility]]&tbl_twdbdata[[#This Row],[Year]]","v":"ROCKPORT2020"}]
[null,2288,"ROCKPORT","N",2030,19405,19533,81775881,{"$f":"IF(tbl_twdbdata[[#This Row],[Year]]=2016,0,tbl_twdbdata[[#This Row],[effsave]]-0.6*SUMIFS(tbl_twdbdata[effsave],tbl_twdbdata[Year],2020,tbl_twdbdata[utility],tbl_twdbdata[[#This Row],[utility]]))","v":46812093},8770,999,1332,0,649515485,73995435,98660580,0,5076891,120823939,{"$f":"tbl_twdbdata[[#This Row],[utility]]&tbl_twdbdata[[#This Row],[Year]]","v":"ROCKPORT2030"}]
[null,2288,"ROCKPORT","N",2040,19405,19491,98247309,{"$f":"IF(tbl_twdbdata[[#This Row],[Year]]=2016,0,tbl_twdbdata[[#This Row],[effsave]]-0.6*SUMIFS(tbl_twdbdata[effsave],tbl_twdbdata[Year],2020,tbl_twdbdata[utility],tbl_twdbdata[[#This Row],[utility]]))","v":63283521},8751,1021,1361,0,648118892,73836329,98448439,0,5065975,120564142,{"$f":"tbl_twdbdata[[#This Row],[utility]]&tbl_twdbdata[[#This Row],[Year]]","v":"ROCKPORT2040"}]
[null,2288,"ROCKPORT","N",2050,19405,19620,108064017,{"$f":"IF(tbl_twdbdata[[#This Row],[Year]]=2016,0,tbl_twdbdata[[#This Row],[effsave]]-0.6*SUMIFS(tbl_twdbdata[effsave],tbl_twdbdata[Year],2020,tbl_twdbdata[utility],tbl_twdbdata[[#This Row],[utility]]))","v":73100229},8809,1043,1390,0,652408428,74325010,99100014,0,5099504,121362088,{"$f":"tbl_twdbdata[[#This Row],[utility]]&tbl_twdbdata[[#This Row],[Year]]","v":"ROCKPORT2050"}]
[null,2288,"ROCKPORT","N",2060,19405,19622,110223642,{"$f":"IF(tbl_twdbdata[[#This Row],[Year]]=2016,0,tbl_twdbdata[[#This Row],[effsave]]-0.6*SUMIFS(tbl_twdbdata[effsave],tbl_twdbdata[Year],2020,tbl_twdbdata[utility],tbl_twdbdata[[#This Row],[utility]]))","v":75259854},8810,1066,1420,0,652474932,74332586,99110116,0,5100024,121374459,{"$f":"tbl_twdbdata[[#This Row],[utility]]&tbl_twdbdata[[#This Row],[Year]]","v":"ROCKPORT2060"}]
[null,2288,"ROCKPORT","N",2070,19405,19622,110295262,{"$f":"IF(tbl_twdbdata[[#This Row],[Year]]=2016,0,tbl_twdbdata[[#This Row],[effsave]]-0.6*SUMIFS(tbl_twdbdata[effsave],tbl_twdbdata[Year],2020,tbl_twdbdata[utility],tbl_twdbdata[[#This Row],[utility]]))","v":75331474},8810,1089,1451,0,652474932,74332586,99110116,0,5100024,121374459,{"$f":"tbl_twdbdata[[#This Row],[utility]]&tbl_twdbdata[[#This Row],[Year]]","v":"ROCKPORT2070"}]
[null,122,"ROCKWALL","C",2016,42500,42500,0,{"$f":"IF(tbl_twdbdata[[#This Row],[Year]]=2016,0,tbl_twdbdata[[#This Row],[effsave]]-0.6*SUMIFS(tbl_twdbdata[effsave],tbl_twdbdata[Year],2020,tbl_twdbdata[utility],tbl_twdbdata[[#This Row],[utility]]))","v":0},14073,145,1187,0,1273708214,92508900,488610100,0,0,41003645,{"$f":"tbl_twdbdata[[#This Row],[utility]]&tbl_twdbdata[[#This Row],[Year]]","v":"ROCKWALL2016"}]
[null,122,"ROCKWALL","C",2020,40733,52740,142258239,{"$f":"IF(tbl_twdbdata[[#This Row],[Year]]=2016,0,tbl_twdbdata[[#This Row],[effsave]]-0.6*SUMIFS(tbl_twdbdata[effsave],tbl_twdbdata[Year],2020,tbl_twdbdata[utility],tbl_twdbdata[[#This Row],[utility]]))","v":56903295.600000009},18221,188,1537,0,1649163362,119778052,632639302,0,0,53090424,{"$f":"tbl_twdbdata[[#This Row],[utility]]&tbl_twdbdata[[#This Row],[Year]]","v":"ROCKWALL2020"}]
[null,122,"ROCKWALL","C",2030,40733,77560,279413778,{"$f":"IF(tbl_twdbdata[[#This Row],[Year]]=2016,0,tbl_twdbdata[[#This Row],[effsave]]-0.6*SUMIFS(tbl_twdbdata[effsave],tbl_twdbdata[Year],2020,tbl_twdbdata[utility],tbl_twdbdata[[#This Row],[utility]]))","v":194058834.60000002},26796,276,2260,0,2425277026,176146866,930366027,0,0,78075337,{"$f":"tbl_twdbdata[[#This Row],[utility]]&tbl_twdbdata[[#This Row],[Year]]","v":"ROCKWALL2030"}]
[null,122,"ROCKWALL","C",2040,40733,114807,464721515,{"$f":"IF(tbl_twdbdata[[#This Row],[Year]]=2016,0,tbl_twdbdata[[#This Row],[effsave]]-0.6*SUMIFS(tbl_twdbdata[effsave],tbl_twdbdata[Year],2020,tbl_twdbdata[utility],tbl_twdbdata[[#This Row],[utility]]))","v":379366571.60000002},39664,406,3324,0,3589979107,260738696,1377160037,0,0,115569820,{"$f":"tbl_twdbdata[[#This Row],[utility]]&tbl_twdbdata[[#This Row],[Year]]","v":"ROCKWALL2040"}]
[null,122,"ROCKWALL","C",2050,40733,120268,512726538,{"$f":"IF(tbl_twdbdata[[#This Row],[Year]]=2016,0,tbl_twdbdata[[#This Row],[effsave]]-0.6*SUMIFS(tbl_twdbdata[effsave],tbl_twdbdata[Year],2020,tbl_twdbdata[utility],tbl_twdbdata[[#This Row],[utility]]))","v":427371594.60000002},41551,597,4888,0,3760742875,273141198,1442667114,0,0,121067105,{"$f":"tbl_twdbdata[[#This Row],[utility]]&tbl_twdbdata[[#This Row],[Year]]","v":"ROCKWALL2050"}]
[null,122,"ROCKWALL","C",2060,40733,130268,566294536,{"$f":"IF(tbl_twdbdata[[#This Row],[Year]]=2016,0,tbl_twdbdata[[#This Row],[effsave]]-0.6*SUMIFS(tbl_twdbdata[effsave],tbl_twdbdata[Year],2020,tbl_twdbdata[utility],tbl_twdbdata[[#This Row],[utility]]))","v":480939592.60000002},45006,878,7188,0,4073439758,295852243,1562621475,0,0,131133549,{"$f":"tbl_twdbdata[[#This Row],[utility]]&tbl_twdbdata[[#This Row],[Year]]","v":"ROCKWALL2060"}]
[null,122,"ROCKWALL","C",2070,40733,140268,614373840,{"$f":"IF(tbl_twdbdata[[#This Row],[Year]]=2016,0,tbl_twdbdata[[#This Row],[effsave]]-0.6*SUMIFS(tbl_twdbdata[effsave],tbl_twdbdata[Year],2020,tbl_twdbdata[utility],tbl_twdbdata[[#This Row],[utility]]))","v":529018896.60000002},48461,1291,10571,0,4386136641,318563288,1682575836,0,0,141199993,{"$f":"tbl_twdbdata[[#This Row],[utility]]&tbl_twdbdata[[#This Row],[Year]]","v":"ROCKWALL2070"}]
[null,2777,"ROMA","M",2016,18738,18738,0,{"$f":"IF(tbl_twdbdata[[#This Row],[Year]]=2016,0,tbl_twdbdata[[#This Row],[effsave]]-0.6*SUMIFS(tbl_twdbdata[effsave],tbl_twdbdata[Year],2020,tbl_twdbdata[utility],tbl_twdbdata[[#This Row],[utility]]))","v":0},6248,0,511,0,361514155,0,101633700,0,null,null,{"$f":"tbl_twdbdata[[#This Row],[utility]]&tbl_twdbdata[[#This Row],[Year]]","v":"ROMA2016"}]
[null,2777,"ROMA","M",2020,17504,20613,76817436,{"$f":"IF(tbl_twdbdata[[#This Row],[Year]]=2016,0,tbl_twdbdata[[#This Row],[effsave]]-0.6*SUMIFS(tbl_twdbdata[effsave],tbl_twdbdata[Year],2020,tbl_twdbdata[utility],tbl_twdbdata[[#This Row],[utility]]))","v":30726974.399999999},7358,0,602,0,425725050,0,119685527,0,null,null,{"$f":"tbl_twdbdata[[#This Row],[utility]]&tbl_twdbdata[[#This Row],[Year]]","v":"ROMA2020"}]
[null,2777,"ROMA","M",2030,17504,23314,121857615,{"$f":"IF(tbl_twdbdata[[#This Row],[Year]]=2016,0,tbl_twdbdata[[#This Row],[effsave]]-0.6*SUMIFS(tbl_twdbdata[effsave],tbl_twdbdata[Year],2020,tbl_twdbdata[utility],tbl_twdbdata[[#This Row],[utility]]))","v":75767153.400000006},8322,0,681,0,481509427,0,135368378,0,null,null,{"$f":"tbl_twdbdata[[#This Row],[utility]]&tbl_twdbdata[[#This Row],[Year]]","v":"ROMA2030"}]
[null,2777,"ROMA","M",2040,17504,25803,160295977,{"$f":"IF(tbl_twdbdata[[#This Row],[Year]]=2016,0,tbl_twdbdata[[#This Row],[effsave]]-0.6*SUMIFS(tbl_twdbdata[effsave],tbl_twdbdata[Year],2020,tbl_twdbdata[utility],tbl_twdbdata[[#This Row],[utility]]))","v":114205515.40000001},9210,0,771,0,532915319,0,149820290,0,null,null,{"$f":"tbl_twdbdata[[#This Row],[utility]]&tbl_twdbdata[[#This Row],[Year]]","v":"ROMA2040"}]
[null,2777,"ROMA","M",2050,17504,28271,189248901,{"$f":"IF(tbl_twdbdata[[#This Row],[Year]]=2016,0,tbl_twdbdata[[#This Row],[effsave]]-0.6*SUMIFS(tbl_twdbdata[effsave],tbl_twdbdata[Year],2020,tbl_twdbdata[utility],tbl_twdbdata[[#This Row],[utility]]))","v":143158439.40000001},10091,0,872,0,583887493,0,164150270,0,null,null,{"$f":"tbl_twdbdata[[#This Row],[utility]]&tbl_twdbdata[[#This Row],[Year]]","v":"ROMA2050"}]
[null,2777,"ROMA","M",2060,17504,30476,207012801,{"$f":"IF(tbl_twdbdata[[#This Row],[Year]]=2016,0,tbl_twdbdata[[#This Row],[effsave]]-0.6*SUMIFS(tbl_twdbdata[effsave],tbl_twdbdata[Year],2020,tbl_twdbdata[utility],tbl_twdbdata[[#This Row],[utility]]))","v":160922339.40000001},10878,0,987,0,629427867,0,176953190,0,null,null,{"$f":"tbl_twdbdata[[#This Row],[utility]]&tbl_twdbdata[[#This Row],[Year]]","v":"ROMA2060"}]
[null,2777,"ROMA","M",2070,17504,32476,221427863,{"$f":"IF(tbl_twdbdata[[#This Row],[Year]]=2016,0,tbl_twdbdata[[#This Row],[effsave]]-0.6*SUMIFS(tbl_twdbdata[effsave],tbl_twdbdata[Year],2020,tbl_twdbdata[utility],tbl_twdbdata[[#This Row],[utility]]))","v":175337401.40000001},11592,0,1117,0,670734329,0,188565816,0,null,null,{"$f":"tbl_twdbdata[[#This Row],[utility]]&tbl_twdbdata[[#This Row],[Year]]","v":"ROMA2070"}]
[null,2296,"ROSCOE","G",2016,1427,1427,0,{"$f":"IF(tbl_twdbdata[[#This Row],[Year]]=2016,0,tbl_twdbdata[[#This Row],[effsave]]-0.6*SUMIFS(tbl_twdbdata[effsave],tbl_twdbdata[Year],2020,tbl_twdbdata[utility],tbl_twdbdata[[#This Row],[utility]]))","v":0},465,10,57,3,24162008,110000,5884000,914000,715438,25449554,{"$f":"tbl_twdbdata[[#This Row],[utility]]&tbl_twdbdata[[#This Row],[Year]]","v":"ROSCOE2016"}]
[null,2296,"ROSCOE","G",2020,1159,1402,5117300,{"$f":"IF(tbl_twdbdata[[#This Row],[Year]]=2016,0,tbl_twdbdata[[#This Row],[effsave]]-0.6*SUMIFS(tbl_twdbdata[effsave],tbl_twdbdata[Year],2020,tbl_twdbdata[utility],tbl_twdbdata[[#This Row],[utility]]))","v":2046920},562,12,69,4,29227899,133063,7117660,1105632,865439,30785397,{"$f":"tbl_twdbdata[[#This Row],[utility]]&tbl_twdbdata[[#This Row],[Year]]","v":"ROSCOE2020"}]
[null,2296,"ROSCOE","G",2030,1159,1481,7849004,{"$f":"IF(tbl_twdbdata[[#This Row],[Year]]=2016,0,tbl_twdbdata[[#This Row],[effsave]]-0.6*SUMIFS(tbl_twdbdata[effsave],tbl_twdbdata[Year],2020,tbl_twdbdata[utility],tbl_twdbdata[[#This Row],[utility]]))","v":4778624},594,13,73,4,30874835,140561,7518726,1167932,914205,32520095,{"$f":"tbl_twdbdata[[#This Row],[utility]]&tbl_twdbdata[[#This Row],[Year]]","v":"ROSCOE2030"}]
[null,2296,"ROSCOE","G",2040,1159,1535,10062539,{"$f":"IF(tbl_twdbdata[[#This Row],[Year]]=2016,0,tbl_twdbdata[[#This Row],[effsave]]-0.6*SUMIFS(tbl_twdbdata[effsave],tbl_twdbdata[Year],2020,tbl_twdbdata[utility],tbl_twdbdata[[#This Row],[utility]]))","v":6992159},616,14,77,4,32000589,145686,7792872,1210517,947539,33705838,{"$f":"tbl_twdbdata[[#This Row],[utility]]&tbl_twdbdata[[#This Row],[Year]]","v":"ROSCOE2040"}]
[null,2296,"ROSCOE","G",2050,1159,1593,10925352,{"$f":"IF(tbl_twdbdata[[#This Row],[Year]]=2016,0,tbl_twdbdata[[#This Row],[effsave]]-0.6*SUMIFS(tbl_twdbdata[effsave],tbl_twdbdata[Year],2020,tbl_twdbdata[utility],tbl_twdbdata[[#This Row],[utility]]))","v":7854972},639,15,81,4,33209732,151191,8087326,1256256,983342,34979414,{"$f":"tbl_twdbdata[[#This Row],[utility]]&tbl_twdbdata[[#This Row],[Year]]","v":"ROSCOE2050"}]
[null,2296,"ROSCOE","G",2060,1159,1639,11420306,{"$f":"IF(tbl_twdbdata[[#This Row],[Year]]=2016,0,tbl_twdbdata[[#This Row],[effsave]]-0.6*SUMIFS(tbl_twdbdata[effsave],tbl_twdbdata[Year],2020,tbl_twdbdata[utility],tbl_twdbdata[[#This Row],[utility]]))","v":8349926},657,16,85,4,34168707,155557,8320858,1292532,1011737,35989491,{"$f":"tbl_twdbdata[[#This Row],[utility]]&tbl_twdbdata[[#This Row],[Year]]","v":"ROSCOE2060"}]
[null,2296,"ROSCOE","G",2070,1159,1679,11723534,{"$f":"IF(tbl_twdbdata[[#This Row],[Year]]=2016,0,tbl_twdbdata[[#This Row],[effsave]]-0.6*SUMIFS(tbl_twdbdata[effsave],tbl_twdbdata[Year],2020,tbl_twdbdata[utility],tbl_twdbdata[[#This Row],[utility]]))","v":8653154},673,17,90,4,35002599,159353,8523929,1324076,1036429,36867819,{"$f":"tbl_twdbdata[[#This Row],[utility]]&tbl_twdbdata[[#This Row],[Year]]","v":"ROSCOE2070"}]
[null,2299,"ROSENBERG","H",2016,38031,38031,0,{"$f":"IF(tbl_twdbdata[[#This Row],[Year]]=2016,0,tbl_twdbdata[[#This Row],[effsave]]-0.6*SUMIFS(tbl_twdbdata[effsave],tbl_twdbdata[Year],2020,tbl_twdbdata[utility],tbl_twdbdata[[#This Row],[utility]]))","v":0},9337,3584,1148,326,576858700,168515300,303919700,113208600,44270000,29642657,{"$f":"tbl_twdbdata[[#This Row],[utility]]&tbl_twdbdata[[#This Row],[Year]]","v":"ROSENBERG2016"}]
[null,2299,"ROSENBERG","H",2020,37154,40384,146664592,{"$f":"IF(tbl_twdbdata[[#This Row],[Year]]=2016,0,tbl_twdbdata[[#This Row],[effsave]]-0.6*SUMIFS(tbl_twdbdata[effsave],tbl_twdbdata[Year],2020,tbl_twdbdata[utility],tbl_twdbdata[[#This Row],[utility]]))","v":58665836.799999997},10149,3896,1248,354,627008175,183165255,330341099,123050441,48118633,32219655,{"$f":"tbl_twdbdata[[#This Row],[utility]]&tbl_twdbdata[[#This Row],[Year]]","v":"ROSENBERG2020"}]
[null,2299,"ROSENBERG","H",2030,37154,42560,199617040,{"$f":"IF(tbl_twdbdata[[#This Row],[Year]]=2016,0,tbl_twdbdata[[#This Row],[effsave]]-0.6*SUMIFS(tbl_twdbdata[effsave],tbl_twdbdata[Year],2020,tbl_twdbdata[utility],tbl_twdbdata[[#This Row],[utility]]))","v":111618284.8},10696,4106,1316,373,660793085,193034698,348140778,129680734,50711396,33955738,{"$f":"tbl_twdbdata[[#This Row],[utility]]&tbl_twdbdata[[#This Row],[Year]]","v":"ROSENBERG2030"}]
[null,2299,"ROSENBERG","H",2040,37154,44928,243848966,{"$f":"IF(tbl_twdbdata[[#This Row],[Year]]=2016,0,tbl_twdbdata[[#This Row],[effsave]]-0.6*SUMIFS(tbl_twdbdata[effsave],tbl_twdbdata[Year],2020,tbl_twdbdata[utility],tbl_twdbdata[[#This Row],[utility]]))","v":155850210.80000001},11291,4327,1387,393,697559016,203774974,367511017,136896053,53532932,35845005,{"$f":"tbl_twdbdata[[#This Row],[utility]]&tbl_twdbdata[[#This Row],[Year]]","v":"ROSENBERG2040"}]
[null,2299,"ROSENBERG","H",2050,37154,47378,275649942,{"$f":"IF(tbl_twdbdata[[#This Row],[Year]]=2016,0,tbl_twdbdata[[#This Row],[effsave]]-0.6*SUMIFS(tbl_twdbdata[effsave],tbl_twdbdata[Year],2020,tbl_twdbdata[utility],tbl_twdbdata[[#This Row],[utility]]))","v":187651186.80000001},11907,4560,1462,414,735598092,214887169,387552016,144361227,56452174,37799694,{"$f":"tbl_twdbdata[[#This Row],[utility]]&tbl_twdbdata[[#This Row],[Year]]","v":"ROSENBERG2050"}]
[null,2299,"ROSENBERG","H",2060,37154,50227,296992251,{"$f":"IF(tbl_twdbdata[[#This Row],[Year]]=2016,0,tbl_twdbdata[[#This Row],[effsave]]-0.6*SUMIFS(tbl_twdbdata[effsave],tbl_twdbdata[Year],2020,tbl_twdbdata[utility],tbl_twdbdata[[#This Row],[utility]]))","v":208993495.80000001},12623,4806,1541,436,779832103,227809064,410856834,153042158,59846835,40072718,{"$f":"tbl_twdbdata[[#This Row],[utility]]&tbl_twdbdata[[#This Row],[Year]]","v":"ROSENBERG2060"}]
[null,2299,"ROSENBERG","H",2070,37154,53654,319018636,{"$f":"IF(tbl_twdbdata[[#This Row],[Year]]=2016,0,tbl_twdbdata[[#This Row],[effsave]]-0.6*SUMIFS(tbl_twdbdata[effsave],tbl_twdbdata[Year],2020,tbl_twdbdata[utility],tbl_twdbdata[[#This Row],[utility]]))","v":231019880.80000001},13484,5065,1624,459,833040230,243352530,438889692,163484260,63930199,42806889,{"$f":"tbl_twdbdata[[#This Row],[utility]]&tbl_twdbdata[[#This Row],[Year]]","v":"ROSENBERG2070"}]
[null,123,"ROUND ROCK","G",2016,131588,131588,0,{"$f":"IF(tbl_twdbdata[[#This Row],[Year]]=2016,0,tbl_twdbdata[[#This Row],[effsave]]-0.6*SUMIFS(tbl_twdbdata[effsave],tbl_twdbdata[Year],2020,tbl_twdbdata[utility],tbl_twdbdata[[#This Row],[utility]]))","v":0},30710,284,2399,0,2993422800,477834200,1764769700,0,197466646,585027494,{"$f":"tbl_twdbdata[[#This Row],[utility]]&tbl_twdbdata[[#This Row],[Year]]","v":"ROUND ROCK2016"}]
[null,123,"ROUND ROCK","G",2020,109875,125330,409879232,{"$f":"IF(tbl_twdbdata[[#This Row],[Year]]=2016,0,tbl_twdbdata[[#This Row],[effsave]]-0.6*SUMIFS(tbl_twdbdata[effsave],tbl_twdbdata[Year],2020,tbl_twdbdata[utility],tbl_twdbdata[[#This Row],[utility]]))","v":163951692.80000001},35030,324,2737,0,3414477174,545046282,2013001925,0,225242273,667317368,{"$f":"tbl_twdbdata[[#This Row],[utility]]&tbl_twdbdata[[#This Row],[Year]]","v":"ROUND ROCK2020"}]
[null,123,"ROUND ROCK","G",2030,109875,156329,653337973,{"$f":"IF(tbl_twdbdata[[#This Row],[Year]]=2016,0,tbl_twdbdata[[#This Row],[effsave]]-0.6*SUMIFS(tbl_twdbdata[effsave],tbl_twdbdata[Year],2020,tbl_twdbdata[utility],tbl_twdbdata[[#This Row],[utility]]))","v":407410433.80000001},43694,404,3414,0,4259010629,679857498,2510895858,0,280953477,832370995,{"$f":"tbl_twdbdata[[#This Row],[utility]]&tbl_twdbdata[[#This Row],[Year]]","v":"ROUND ROCK2030"}]
[null,123,"ROUND ROCK","G",2040,109875,196085,908236307,{"$f":"IF(tbl_twdbdata[[#This Row],[Year]]=2016,0,tbl_twdbdata[[#This Row],[effsave]]-0.6*SUMIFS(tbl_twdbdata[effsave],tbl_twdbdata[Year],2020,tbl_twdbdata[utility],tbl_twdbdata[[#This Row],[utility]]))","v":662308767.79999995},54806,504,4258,0,5342118860,852751937,3149441334,0,352402705,1044051114,{"$f":"tbl_twdbdata[[#This Row],[utility]]&tbl_twdbdata[[#This Row],[Year]]","v":"ROUND ROCK2040"}]
[null,123,"ROUND ROCK","G",2050,109875,242109,1172667047,{"$f":"IF(tbl_twdbdata[[#This Row],[Year]]=2016,0,tbl_twdbdata[[#This Row],[effsave]]-0.6*SUMIFS(tbl_twdbdata[effsave],tbl_twdbdata[Year],2020,tbl_twdbdata[utility],tbl_twdbdata[[#This Row],[utility]]))","v":926739507.79999995},67670,629,5311,0,6595991815,1052905213,3888661000,0,435116743,1289105088,{"$f":"tbl_twdbdata[[#This Row],[utility]]&tbl_twdbdata[[#This Row],[Year]]","v":"ROUND ROCK2050"}]
[null,123,"ROUND ROCK","G",2060,109875,242361,1191579975,{"$f":"IF(tbl_twdbdata[[#This Row],[Year]]=2016,0,tbl_twdbdata[[#This Row],[effsave]]-0.6*SUMIFS(tbl_twdbdata[effsave],tbl_twdbdata[Year],2020,tbl_twdbdata[utility],tbl_twdbdata[[#This Row],[utility]]))","v":945652435.79999995},67740,785,6624,0,6602857276,1054001133,3892708526,0,435569636,1290446858,{"$f":"tbl_twdbdata[[#This Row],[utility]]&tbl_twdbdata[[#This Row],[Year]]","v":"ROUND ROCK2060"}]
[null,123,"ROUND ROCK","G",2070,109875,242595,1199814221,{"$f":"IF(tbl_twdbdata[[#This Row],[Year]]=2016,0,tbl_twdbdata[[#This Row],[effsave]]-0.6*SUMIFS(tbl_twdbdata[effsave],tbl_twdbdata[Year],2020,tbl_twdbdata[utility],tbl_twdbdata[[#This Row],[utility]]))","v":953886681.79999995},67805,979,8262,0,6609232347,1055018773,3896466943,0,435990179,1291692787,{"$f":"tbl_twdbdata[[#This Row],[utility]]&tbl_twdbdata[[#This Row],[Year]]","v":"ROUND ROCK2070"}]
[null,2302,"ROWLETT","C",2016,58407,58407,0,{"$f":"IF(tbl_twdbdata[[#This Row],[Year]]=2016,0,tbl_twdbdata[[#This Row],[effsave]]-0.6*SUMIFS(tbl_twdbdata[effsave],tbl_twdbdata[Year],2020,tbl_twdbdata[utility],tbl_twdbdata[[#This Row],[utility]]))","v":0},19645,405,1237,0,1664824693,38020000,360674560,0,30655525,358267222,{"$f":"tbl_twdbdata[[#This Row],[utility]]&tbl_twdbdata[[#This Row],[Year]]","v":"ROWLETT2016"}]
[null,2302,"ROWLETT","C",2020,58407,67523,207271977,{"$f":"IF(tbl_twdbdata[[#This Row],[Year]]=2016,0,tbl_twdbdata[[#This Row],[effsave]]-0.6*SUMIFS(tbl_twdbdata[effsave],tbl_twdbdata[Year],2020,tbl_twdbdata[utility],tbl_twdbdata[[#This Row],[utility]]))","v":82908790.800000012},22003,454,1385,0,1864646736,42583384,403964840,0,34334981,401268559,{"$f":"tbl_twdbdata[[#This Row],[utility]]&tbl_twdbdata[[#This Row],[Year]]","v":"ROWLETT2020"}]
[null,2302,"ROWLETT","C",2030,58407,73029,301474666,{"$f":"IF(tbl_twdbdata[[#This Row],[Year]]=2016,0,tbl_twdbdata[[#This Row],[effsave]]-0.6*SUMIFS(tbl_twdbdata[effsave],tbl_twdbdata[Year],2020,tbl_twdbdata[utility],tbl_twdbdata[[#This Row],[utility]]))","v":177111479.80000001},23797,491,1497,0,2016694852,46055743,436905177,0,37134744,433989035,{"$f":"tbl_twdbdata[[#This Row],[utility]]&tbl_twdbdata[[#This Row],[Year]]","v":"ROWLETT2030"}]
[null,2302,"ROWLETT","C",2040,58407,78535,373795186,{"$f":"IF(tbl_twdbdata[[#This Row],[Year]]=2016,0,tbl_twdbdata[[#This Row],[effsave]]-0.6*SUMIFS(tbl_twdbdata[effsave],tbl_twdbdata[Year],2020,tbl_twdbdata[utility],tbl_twdbdata[[#This Row],[utility]]))","v":249431999.80000001},25591,531,1619,0,2168742968,49528102,469845514,0,39934507,466709511,{"$f":"tbl_twdbdata[[#This Row],[utility]]&tbl_twdbdata[[#This Row],[Year]]","v":"ROWLETT2040"}]
[null,2302,"ROWLETT","C",2050,58407,83041,425551909,{"$f":"IF(tbl_twdbdata[[#This Row],[Year]]=2016,0,tbl_twdbdata[[#This Row],[effsave]]-0.6*SUMIFS(tbl_twdbdata[effsave],tbl_twdbdata[Year],2020,tbl_twdbdata[utility],tbl_twdbdata[[#This Row],[utility]]))","v":301188722.80000001},27059,574,1751,0,2293176097,52369811,496803226,0,42225777,493487292,{"$f":"tbl_twdbdata[[#This Row],[utility]]&tbl_twdbdata[[#This Row],[Year]]","v":"ROWLETT2050"}]
[null,2302,"ROWLETT","C",2060,58407,86547,451732067,{"$f":"IF(tbl_twdbdata[[#This Row],[Year]]=2016,0,tbl_twdbdata[[#This Row],[effsave]]-0.6*SUMIFS(tbl_twdbdata[effsave],tbl_twdbdata[Year],2020,tbl_twdbdata[utility],tbl_twdbdata[[#This Row],[utility]]))","v":327368880.80000001},28201,621,1894,0,2389994240,54580870,517778311,0,44008554,514322379,{"$f":"tbl_twdbdata[[#This Row],[utility]]&tbl_twdbdata[[#This Row],[Year]]","v":"ROWLETT2060"}]
[null,2302,"ROWLETT","C",2070,58407,91053,475915820,{"$f":"IF(tbl_twdbdata[[#This Row],[Year]]=2016,0,tbl_twdbdata[[#This Row],[effsave]]-0.6*SUMIFS(tbl_twdbdata[effsave],tbl_twdbdata[Year],2020,tbl_twdbdata[utility],tbl_twdbdata[[#This Row],[utility]]))","v":351552633.80000001},29669,672,2048,0,2514427369,57422579,544736023,0,46299824,541100160,{"$f":"tbl_twdbdata[[#This Row],[utility]]&tbl_twdbdata[[#This Row],[Year]]","v":"ROWLETT2070"}]
[null,2304,"ROYSE CITY","C",2016,12889,12889,0,{"$f":"IF(tbl_twdbdata[[#This Row],[Year]]=2016,0,tbl_twdbdata[[#This Row],[effsave]]-0.6*SUMIFS(tbl_twdbdata[effsave],tbl_twdbdata[Year],2020,tbl_twdbdata[utility],tbl_twdbdata[[#This Row],[utility]]))","v":0},3764,6,302,0,268292000,4115000,57882000,0,null,null,{"$f":"tbl_twdbdata[[#This Row],[utility]]&tbl_twdbdata[[#This Row],[Year]]","v":"ROYSE CITY2016"}]
[null,2304,"ROYSE CITY","C",2020,10763,11651,27727050,{"$f":"IF(tbl_twdbdata[[#This Row],[Year]]=2016,0,tbl_twdbdata[[#This Row],[effsave]]-0.6*SUMIFS(tbl_twdbdata[effsave],tbl_twdbdata[Year],2020,tbl_twdbdata[utility],tbl_twdbdata[[#This Row],[utility]]))","v":11090820},4075,6,327,0,290427399,4454508,62657547,0,null,null,{"$f":"tbl_twdbdata[[#This Row],[utility]]&tbl_twdbdata[[#This Row],[Year]]","v":"ROYSE CITY2020"}]
[null,2304,"ROYSE CITY","C",2030,10763,20772,69979829,{"$f":"IF(tbl_twdbdata[[#This Row],[Year]]=2016,0,tbl_twdbdata[[#This Row],[effsave]]-0.6*SUMIFS(tbl_twdbdata[effsave],tbl_twdbdata[Year],2020,tbl_twdbdata[utility],tbl_twdbdata[[#This Row],[utility]]))","v":53343599},7265,11,583,0,517788853,7941725,111709086,0,null,null,{"$f":"tbl_twdbdata[[#This Row],[utility]]&tbl_twdbdata[[#This Row],[Year]]","v":"ROYSE CITY2030"}]
[null,2304,"ROYSE CITY","C",2040,10763,29766,114295487,{"$f":"IF(tbl_twdbdata[[#This Row],[Year]]=2016,0,tbl_twdbdata[[#This Row],[effsave]]-0.6*SUMIFS(tbl_twdbdata[effsave],tbl_twdbdata[Year],2020,tbl_twdbdata[utility],tbl_twdbdata[[#This Row],[utility]]))","v":97659257},10411,20,1039,0,741984546,11380386,160077635,0,null,null,{"$f":"tbl_twdbdata[[#This Row],[utility]]&tbl_twdbdata[[#This Row],[Year]]","v":"ROYSE CITY2040"}]
[null,2304,"ROYSE CITY","C",2050,10763,54816,223487573,{"$f":"IF(tbl_twdbdata[[#This Row],[Year]]=2016,0,tbl_twdbdata[[#This Row],[effsave]]-0.6*SUMIFS(tbl_twdbdata[effsave],tbl_twdbdata[Year],2020,tbl_twdbdata[utility],tbl_twdbdata[[#This Row],[utility]]))","v":206851343},19173,36,1852,0,1366412177,20957711,294793242,0,null,null,{"$f":"tbl_twdbdata[[#This Row],[utility]]&tbl_twdbdata[[#This Row],[Year]]","v":"ROYSE CITY2050"}]
[null,2304,"ROYSE CITY","C",2060,10763,81859,339420158,{"$f":"IF(tbl_twdbdata[[#This Row],[Year]]=2016,0,tbl_twdbdata[[#This Row],[effsave]]-0.6*SUMIFS(tbl_twdbdata[effsave],tbl_twdbdata[Year],2020,tbl_twdbdata[utility],tbl_twdbdata[[#This Row],[utility]]))","v":322783928},28632,64,3302,0,2040519819,31297017,440226941,0,null,null,{"$f":"tbl_twdbdata[[#This Row],[utility]]&tbl_twdbdata[[#This Row],[Year]]","v":"ROYSE CITY2060"}]
[null,2304,"ROYSE CITY","C",2070,10763,99349,412665941,{"$f":"IF(tbl_twdbdata[[#This Row],[Year]]=2016,0,tbl_twdbdata[[#This Row],[effsave]]-0.6*SUMIFS(tbl_twdbdata[effsave],tbl_twdbdata[Year],2020,tbl_twdbdata[utility],tbl_twdbdata[[#This Row],[utility]]))","v":396029711},34750,114,5887,0,2476497435,37983940,534285862,0,null,null,{"$f":"tbl_twdbdata[[#This Row],[utility]]&tbl_twdbdata[[#This Row],[Year]]","v":"ROYSE CITY2070"}]
[null,2985,"S S WSC","L",2016,14319,15075,0,{"$f":"IF(tbl_twdbdata[[#This Row],[Year]]=2016,0,tbl_twdbdata[[#This Row],[effsave]]-0.6*SUMIFS(tbl_twdbdata[effsave],tbl_twdbdata[Year],2020,tbl_twdbdata[utility],tbl_twdbdata[[#This Row],[utility]]))","v":0},4903,145,129,207,495856200,4810300,9443900,5389700,51820900,18351031,{"$f":"tbl_twdbdata[[#This Row],[utility]]&tbl_twdbdata[[#This Row],[Year]]","v":"S S WSC2016"}]
[null,2985,"S S WSC","L",2020,14319,18219,53398978,{"$f":"IF(tbl_twdbdata[[#This Row],[Year]]=2016,0,tbl_twdbdata[[#This Row],[effsave]]-0.6*SUMIFS(tbl_twdbdata[effsave],tbl_twdbdata[Year],2020,tbl_twdbdata[utility],tbl_twdbdata[[#This Row],[utility]]))","v":21359591.200000003},5992,177,157,253,605942995,5878252,11540574,6586286,63325842,22425209,{"$f":"tbl_twdbdata[[#This Row],[utility]]&tbl_twdbdata[[#This Row],[Year]]","v":"S S WSC2020"}]
[null,2985,"S S WSC","L",2030,14319,24485,96251759,{"$f":"IF(tbl_twdbdata[[#This Row],[Year]]=2016,0,tbl_twdbdata[[#This Row],[effsave]]-0.6*SUMIFS(tbl_twdbdata[effsave],tbl_twdbdata[Year],2020,tbl_twdbdata[utility],tbl_twdbdata[[#This Row],[utility]]))","v":64212372.200000003},8053,238,211,340,814342951,7899940,15509685,8851485,85105288,30137836,{"$f":"tbl_twdbdata[[#This Row],[utility]]&tbl_twdbdata[[#This Row],[Year]]","v":"S S WSC2030"}]
[null,2985,"S S WSC","L",2040,14319,31343,139341575,{"$f":"IF(tbl_twdbdata[[#This Row],[Year]]=2016,0,tbl_twdbdata[[#This Row],[effsave]]-0.6*SUMIFS(tbl_twdbdata[effsave],tbl_twdbdata[Year],2020,tbl_twdbdata[utility],tbl_twdbdata[[#This Row],[utility]]))","v":107302188.2},10309,320,283,457,1042432147,10112633,19853791,11330696,108942415,38579138,{"$f":"tbl_twdbdata[[#This Row],[utility]]&tbl_twdbdata[[#This Row],[Year]]","v":"S S WSC2040"}]
[null,2985,"S S WSC","L",2050,14319,38238,179485348,{"$f":"IF(tbl_twdbdata[[#This Row],[Year]]=2016,0,tbl_twdbdata[[#This Row],[effsave]]-0.6*SUMIFS(tbl_twdbdata[effsave],tbl_twdbdata[Year],2020,tbl_twdbdata[utility],tbl_twdbdata[[#This Row],[utility]]))","v":147445961.19999999},12577,430,380,614,1271751920,12337264,24221333,13823283,132908147,47065982,{"$f":"tbl_twdbdata[[#This Row],[utility]]&tbl_twdbdata[[#This Row],[Year]]","v":"S S WSC2050"}]
[null,2985,"S S WSC","L",2060,14319,46651,222891480,{"$f":"IF(tbl_twdbdata[[#This Row],[Year]]=2016,0,tbl_twdbdata[[#This Row],[effsave]]-0.6*SUMIFS(tbl_twdbdata[effsave],tbl_twdbdata[Year],2020,tbl_twdbdata[utility],tbl_twdbdata[[#This Row],[utility]]))","v":190852093.19999999},15344,578,511,825,1551558628,15051669,29550431,16864637,162150164,57421286,{"$f":"tbl_twdbdata[[#This Row],[utility]]&tbl_twdbdata[[#This Row],[Year]]","v":"S S WSC2060"}]
[null,2985,"S S WSC","L",2070,14319,51316,246491274,{"$f":"IF(tbl_twdbdata[[#This Row],[Year]]=2016,0,tbl_twdbdata[[#This Row],[effsave]]-0.6*SUMIFS(tbl_twdbdata[effsave],tbl_twdbdata[Year],2020,tbl_twdbdata[utility],tbl_twdbdata[[#This Row],[utility]]))","v":214451887.19999999},16878,777,687,1109,1706711165,16556804,32505411,18551065,178364833,63163292,{"$f":"tbl_twdbdata[[#This Row],[utility]]&tbl_twdbdata[[#This Row],[Year]]","v":"S S WSC2070"}]
[null,2310,"SABINAL","L",2016,1701,1701,0,{"$f":"IF(tbl_twdbdata[[#This Row],[Year]]=2016,0,tbl_twdbdata[[#This Row],[effsave]]-0.6*SUMIFS(tbl_twdbdata[effsave],tbl_twdbdata[Year],2020,tbl_twdbdata[utility],tbl_twdbdata[[#This Row],[utility]]))","v":0},651,1,80,0,70393560,2270760,3027680,0,121950,24379989,{"$f":"tbl_twdbdata[[#This Row],[utility]]&tbl_twdbdata[[#This Row],[Year]]","v":"SABINAL2016"}]
[null,2310,"SABINAL","L",2020,1525,1844,6555604,{"$f":"IF(tbl_twdbdata[[#This Row],[Year]]=2016,0,tbl_twdbdata[[#This Row],[effsave]]-0.6*SUMIFS(tbl_twdbdata[effsave],tbl_twdbdata[Year],2020,tbl_twdbdata[utility],tbl_twdbdata[[#This Row],[utility]]))","v":2622241.6},787,1,97,0,85118508,2745758,3661012,0,147460,29479803,{"$f":"tbl_twdbdata[[#This Row],[utility]]&tbl_twdbdata[[#This Row],[Year]]","v":"SABINAL2020"}]
[null,2310,"SABINAL","L",2030,1525,2017,10292146,{"$f":"IF(tbl_twdbdata[[#This Row],[Year]]=2016,0,tbl_twdbdata[[#This Row],[effsave]]-0.6*SUMIFS(tbl_twdbdata[effsave],tbl_twdbdata[Year],2020,tbl_twdbdata[utility],tbl_twdbdata[[#This Row],[utility]]))","v":6358783.5999999996},861,1,106,0,93104138,3003359,4004480,0,161294,32245533,{"$f":"tbl_twdbdata[[#This Row],[utility]]&tbl_twdbdata[[#This Row],[Year]]","v":"SABINAL2030"}]
[null,2310,"SABINAL","L",2040,1525,2164,13396026,{"$f":"IF(tbl_twdbdata[[#This Row],[Year]]=2016,0,tbl_twdbdata[[#This Row],[effsave]]-0.6*SUMIFS(tbl_twdbdata[effsave],tbl_twdbdata[Year],2020,tbl_twdbdata[utility],tbl_twdbdata[[#This Row],[utility]]))","v":9462663.5999999996},924,1,116,0,99889616,3222245,4296328,0,173049,34595604,{"$f":"tbl_twdbdata[[#This Row],[utility]]&tbl_twdbdata[[#This Row],[Year]]","v":"SABINAL2040"}]
[null,2310,"SABINAL","L",2050,1525,2318,15626913,{"$f":"IF(tbl_twdbdata[[#This Row],[Year]]=2016,0,tbl_twdbdata[[#This Row],[effsave]]-0.6*SUMIFS(tbl_twdbdata[effsave],tbl_twdbdata[Year],2020,tbl_twdbdata[utility],tbl_twdbdata[[#This Row],[utility]]))","v":11693550.6},990,1,127,0,106998212,3451554,4602074,0,185364,37057583,{"$f":"tbl_twdbdata[[#This Row],[utility]]&tbl_twdbdata[[#This Row],[Year]]","v":"SABINAL2050"}]
[null,2310,"SABINAL","L",2060,1525,2464,16880987,{"$f":"IF(tbl_twdbdata[[#This Row],[Year]]=2016,0,tbl_twdbdata[[#This Row],[effsave]]-0.6*SUMIFS(tbl_twdbdata[effsave],tbl_twdbdata[Year],2020,tbl_twdbdata[utility],tbl_twdbdata[[#This Row],[utility]]))","v":12947624.6},1052,1,139,0,113737530,3668951,4891938,0,197039,39391667,{"$f":"tbl_twdbdata[[#This Row],[utility]]&tbl_twdbdata[[#This Row],[Year]]","v":"SABINAL2060"}]
[null,2310,"SABINAL","L",2070,1525,2603,17890289,{"$f":"IF(tbl_twdbdata[[#This Row],[Year]]=2016,0,tbl_twdbdata[[#This Row],[effsave]]-0.6*SUMIFS(tbl_twdbdata[effsave],tbl_twdbdata[Year],2020,tbl_twdbdata[utility],tbl_twdbdata[[#This Row],[utility]]))","v":13956926.6},1111,1,152,0,120153730,3875925,5167904,0,208154,41613843,{"$f":"tbl_twdbdata[[#This Row],[utility]]&tbl_twdbdata[[#This Row],[Year]]","v":"SABINAL2070"}]
[null,2311,"SACHSE","C",2016,24554,24554,0,{"$f":"IF(tbl_twdbdata[[#This Row],[Year]]=2016,0,tbl_twdbdata[[#This Row],[effsave]]-0.6*SUMIFS(tbl_twdbdata[effsave],tbl_twdbdata[Year],2020,tbl_twdbdata[utility],tbl_twdbdata[[#This Row],[utility]]))","v":0},7942,644,366,0,728333000,31740000,131863000,0,14000000,113442000,{"$f":"tbl_twdbdata[[#This Row],[utility]]&tbl_twdbdata[[#This Row],[Year]]","v":"SACHSE2016"}]
[null,2311,"SACHSE","C",2020,23805,28704,81720288,{"$f":"IF(tbl_twdbdata[[#This Row],[Year]]=2016,0,tbl_twdbdata[[#This Row],[effsave]]-0.6*SUMIFS(tbl_twdbdata[effsave],tbl_twdbdata[Year],2020,tbl_twdbdata[utility],tbl_twdbdata[[#This Row],[utility]]))","v":32688115.200000003},9576,777,442,0,878221820,38272000,159000023,0,16881159,136788035,{"$f":"tbl_twdbdata[[#This Row],[utility]]&tbl_twdbdata[[#This Row],[Year]]","v":"SACHSE2020"}]
[null,2311,"SACHSE","C",2030,23805,28704,99740659,{"$f":"IF(tbl_twdbdata[[#This Row],[Year]]=2016,0,tbl_twdbdata[[#This Row],[effsave]]-0.6*SUMIFS(tbl_twdbdata[effsave],tbl_twdbdata[Year],2020,tbl_twdbdata[utility],tbl_twdbdata[[#This Row],[utility]]))","v":50708486.200000003},9576,777,442,0,878221820,38272000,159000023,0,16881159,136788035,{"$f":"tbl_twdbdata[[#This Row],[utility]]&tbl_twdbdata[[#This Row],[Year]]","v":"SACHSE2030"}]
[null,2311,"SACHSE","C",2040,23805,28704,110531928,{"$f":"IF(tbl_twdbdata[[#This Row],[Year]]=2016,0,tbl_twdbdata[[#This Row],[effsave]]-0.6*SUMIFS(tbl_twdbdata[effsave],tbl_twdbdata[Year],2020,tbl_twdbdata[utility],tbl_twdbdata[[#This Row],[utility]]))","v":61499755.200000003},9576,777,442,0,878221820,38272000,159000023,0,16881159,136788035,{"$f":"tbl_twdbdata[[#This Row],[utility]]&tbl_twdbdata[[#This Row],[Year]]","v":"SACHSE2040"}]
[null,2311,"SACHSE","C",2050,23805,29037,118491286,{"$f":"IF(tbl_twdbdata[[#This Row],[Year]]=2016,0,tbl_twdbdata[[#This Row],[effsave]]-0.6*SUMIFS(tbl_twdbdata[effsave],tbl_twdbdata[Year],2020,tbl_twdbdata[utility],tbl_twdbdata[[#This Row],[utility]]))","v":69459113.200000003},9687,777,442,0,888410221,38716000,160844610,0,17077000,138374936,{"$f":"tbl_twdbdata[[#This Row],[utility]]&tbl_twdbdata[[#This Row],[Year]]","v":"SACHSE2050"}]
[null,2311,"SACHSE","C",2060,23805,29131,121320419,{"$f":"IF(tbl_twdbdata[[#This Row],[Year]]=2016,0,tbl_twdbdata[[#This Row],[effsave]]-0.6*SUMIFS(tbl_twdbdata[effsave],tbl_twdbdata[Year],2020,tbl_twdbdata[utility],tbl_twdbdata[[#This Row],[utility]]))","v":72288246.200000003},9718,777,442,0,891286226,38841333,161365304,0,17132283,138822890,{"$f":"tbl_twdbdata[[#This Row],[utility]]&tbl_twdbdata[[#This Row],[Year]]","v":"SACHSE2060"}]
[null,2311,"SACHSE","C",2070,23805,29131,121852060,{"$f":"IF(tbl_twdbdata[[#This Row],[Year]]=2016,0,tbl_twdbdata[[#This Row],[effsave]]-0.6*SUMIFS(tbl_twdbdata[effsave],tbl_twdbdata[Year],2020,tbl_twdbdata[utility],tbl_twdbdata[[#This Row],[utility]]))","v":72819887.200000003},9718,777,442,0,891286226,38841333,161365304,0,17132283,138822890,{"$f":"tbl_twdbdata[[#This Row],[utility]]&tbl_twdbdata[[#This Row],[Year]]","v":"SACHSE2070"}]
[null,2312,"SAGINAW","C",2016,20500,20500,0,{"$f":"IF(tbl_twdbdata[[#This Row],[Year]]=2016,0,tbl_twdbdata[[#This Row],[effsave]]-0.6*SUMIFS(tbl_twdbdata[effsave],tbl_twdbdata[Year],2020,tbl_twdbdata[utility],tbl_twdbdata[[#This Row],[utility]]))","v":0},7187,399,375,0,551762000,24812000,292293000,0,12365675,108021325,{"$f":"tbl_twdbdata[[#This Row],[utility]]&tbl_twdbdata[[#This Row],[Year]]","v":"SAGINAW2016"}]
[null,2312,"SAGINAW","C",2020,20500,23166,66460937,{"$f":"IF(tbl_twdbdata[[#This Row],[Year]]=2016,0,tbl_twdbdata[[#This Row],[effsave]]-0.6*SUMIFS(tbl_twdbdata[effsave],tbl_twdbdata[Year],2020,tbl_twdbdata[utility],tbl_twdbdata[[#This Row],[utility]]))","v":26584374.800000004},7940,441,415,0,609601225,27412953,322933023,0,13661924,119344812,{"$f":"tbl_twdbdata[[#This Row],[utility]]&tbl_twdbdata[[#This Row],[Year]]","v":"SAGINAW2020"}]
[null,2312,"SAGINAW","C",2030,20500,26386,102568979,{"$f":"IF(tbl_twdbdata[[#This Row],[Year]]=2016,0,tbl_twdbdata[[#This Row],[effsave]]-0.6*SUMIFS(tbl_twdbdata[effsave],tbl_twdbdata[Year],2020,tbl_twdbdata[utility],tbl_twdbdata[[#This Row],[utility]]))","v":62692416.800000004},9044,502,473,0,694333848,31223266,367819682,0,15560888,135933360,{"$f":"tbl_twdbdata[[#This Row],[utility]]&tbl_twdbdata[[#This Row],[Year]]","v":"SAGINAW2030"}]
[null,2312,"SAGINAW","C",2040,20500,29607,133136758,{"$f":"IF(tbl_twdbdata[[#This Row],[Year]]=2016,0,tbl_twdbdata[[#This Row],[effsave]]-0.6*SUMIFS(tbl_twdbdata[effsave],tbl_twdbdata[Year],2020,tbl_twdbdata[utility],tbl_twdbdata[[#This Row],[utility]]))","v":93260195.800000012},10148,572,539,0,779092785,35034762,412720282,0,17460442,152527059,{"$f":"tbl_twdbdata[[#This Row],[utility]]&tbl_twdbdata[[#This Row],[Year]]","v":"SAGINAW2040"}]
[null,2312,"SAGINAW","C",2050,20500,31218,149496758,{"$f":"IF(tbl_twdbdata[[#This Row],[Year]]=2016,0,tbl_twdbdata[[#This Row],[effsave]]-0.6*SUMIFS(tbl_twdbdata[effsave],tbl_twdbdata[Year],2020,tbl_twdbdata[utility],tbl_twdbdata[[#This Row],[utility]]))","v":109620195.80000001},10700,652,614,0,821485411,36941102,435177552,0,18410514,160826485,{"$f":"tbl_twdbdata[[#This Row],[utility]]&tbl_twdbdata[[#This Row],[Year]]","v":"SAGINAW2050"}]
[null,2312,"SAGINAW","C",2060,20500,31218,151889618,{"$f":"IF(tbl_twdbdata[[#This Row],[Year]]=2016,0,tbl_twdbdata[[#This Row],[effsave]]-0.6*SUMIFS(tbl_twdbdata[effsave],tbl_twdbdata[Year],2020,tbl_twdbdata[utility],tbl_twdbdata[[#This Row],[utility]]))","v":112013055.80000001},10700,743,699,0,821485411,36941102,435177552,0,18410514,160826485,{"$f":"tbl_twdbdata[[#This Row],[utility]]&tbl_twdbdata[[#This Row],[Year]]","v":"SAGINAW2060"}]
[null,2312,"SAGINAW","C",2070,20500,31218,152117510,{"$f":"IF(tbl_twdbdata[[#This Row],[Year]]=2016,0,tbl_twdbdata[[#This Row],[effsave]]-0.6*SUMIFS(tbl_twdbdata[effsave],tbl_twdbdata[Year],2020,tbl_twdbdata[utility],tbl_twdbdata[[#This Row],[utility]]))","v":112240947.80000001},10700,846,795,0,821485411,36941102,435177552,0,18410514,160826485,{"$f":"tbl_twdbdata[[#This Row],[utility]]&tbl_twdbdata[[#This Row],[Year]]","v":"SAGINAW2070"}]
[null,2315,"SALADO WSC","G",2016,5433,5433,0,{"$f":"IF(tbl_twdbdata[[#This Row],[Year]]=2016,0,tbl_twdbdata[[#This Row],[effsave]]-0.6*SUMIFS(tbl_twdbdata[effsave],tbl_twdbdata[Year],2020,tbl_twdbdata[utility],tbl_twdbdata[[#This Row],[utility]]))","v":0},2240,43,0,0,315267500,26988164,0,0,6373614,161259804,{"$f":"tbl_twdbdata[[#This Row],[utility]]&tbl_twdbdata[[#This Row],[Year]]","v":"SALADO WSC2016"}]
[null,2315,"SALADO WSC","G",2020,4176,6001,20830371,{"$f":"IF(tbl_twdbdata[[#This Row],[Year]]=2016,0,tbl_twdbdata[[#This Row],[effsave]]-0.6*SUMIFS(tbl_twdbdata[effsave],tbl_twdbdata[Year],2020,tbl_twdbdata[utility],tbl_twdbdata[[#This Row],[utility]]))","v":8332148.4000000004},3219,62,0,0,453046041,38782560,0,0,9159018,231733737,{"$f":"tbl_twdbdata[[#This Row],[utility]]&tbl_twdbdata[[#This Row],[Year]]","v":"SALADO WSC2020"}]
[null,2315,"SALADO WSC","G",2030,4176,6648,30525622,{"$f":"IF(tbl_twdbdata[[#This Row],[Year]]=2016,0,tbl_twdbdata[[#This Row],[effsave]]-0.6*SUMIFS(tbl_twdbdata[effsave],tbl_twdbdata[Year],2020,tbl_twdbdata[utility],tbl_twdbdata[[#This Row],[utility]]))","v":18027399.399999999},3566,69,0,0,501891365,42963916,0,0,10146501,256718194,{"$f":"tbl_twdbdata[[#This Row],[utility]]&tbl_twdbdata[[#This Row],[Year]]","v":"SALADO WSC2030"}]
[null,2315,"SALADO WSC","G",2040,4176,7288,38864353,{"$f":"IF(tbl_twdbdata[[#This Row],[Year]]=2016,0,tbl_twdbdata[[#This Row],[effsave]]-0.6*SUMIFS(tbl_twdbdata[effsave],tbl_twdbdata[Year],2020,tbl_twdbdata[utility],tbl_twdbdata[[#This Row],[utility]]))","v":26366130.399999999},3909,76,0,0,550208223,47100033,0,0,11123300,281432340,{"$f":"tbl_twdbdata[[#This Row],[utility]]&tbl_twdbdata[[#This Row],[Year]]","v":"SALADO WSC2040"}]
[null,2315,"SALADO WSC","G",2050,4176,7913,45229917,{"$f":"IF(tbl_twdbdata[[#This Row],[Year]]=2016,0,tbl_twdbdata[[#This Row],[effsave]]-0.6*SUMIFS(tbl_twdbdata[effsave],tbl_twdbdata[Year],2020,tbl_twdbdata[utility],tbl_twdbdata[[#This Row],[utility]]))","v":32731694.399999999},4244,84,0,0,597392655,51139210,0,0,12077205,305567248,{"$f":"tbl_twdbdata[[#This Row],[utility]]&tbl_twdbdata[[#This Row],[Year]]","v":"SALADO WSC2050"}]
[null,2315,"SALADO WSC","G",2060,4176,8525,49568186,{"$f":"IF(tbl_twdbdata[[#This Row],[Year]]=2016,0,tbl_twdbdata[[#This Row],[effsave]]-0.6*SUMIFS(tbl_twdbdata[effsave],tbl_twdbdata[Year],2020,tbl_twdbdata[utility],tbl_twdbdata[[#This Row],[utility]]))","v":37069963.399999999},4572,93,0,0,643595651,55094372,0,0,13011269,329200150,{"$f":"tbl_twdbdata[[#This Row],[utility]]&tbl_twdbdata[[#This Row],[Year]]","v":"SALADO WSC2060"}]
[null,2315,"SALADO WSC","G",2070,4176,9128,53340837,{"$f":"IF(tbl_twdbdata[[#This Row],[Year]]=2016,0,tbl_twdbdata[[#This Row],[effsave]]-0.6*SUMIFS(tbl_twdbdata[effsave],tbl_twdbdata[Year],2020,tbl_twdbdata[utility],tbl_twdbdata[[#This Row],[utility]]))","v":40842614.399999999},4895,103,0,0,689119191,58991370,0,0,13931597,352485510,{"$f":"tbl_twdbdata[[#This Row],[utility]]&tbl_twdbdata[[#This Row],[Year]]","v":"SALADO WSC2070"}]
[null,125,"SAN ANGELO","F",2016,100450,100450,0,{"$f":"IF(tbl_twdbdata[[#This Row],[Year]]=2016,0,tbl_twdbdata[[#This Row],[effsave]]-0.6*SUMIFS(tbl_twdbdata[effsave],tbl_twdbdata[Year],2020,tbl_twdbdata[utility],tbl_twdbdata[[#This Row],[utility]]))","v":0},30314,713,3469,5,2009983000,420210000,946441000,1695000,263323062,328992919,{"$f":"tbl_twdbdata[[#This Row],[utility]]&tbl_twdbdata[[#This Row],[Year]]","v":"SAN ANGELO2016"}]
[null,125,"SAN ANGELO","F",2020,93433,103243,377213787,{"$f":"IF(tbl_twdbdata[[#This Row],[Year]]=2016,0,tbl_twdbdata[[#This Row],[effsave]]-0.6*SUMIFS(tbl_twdbdata[effsave],tbl_twdbdata[Year],2020,tbl_twdbdata[utility],tbl_twdbdata[[#This Row],[utility]]))","v":150885514.80000001},33497,788,3832,6,2221021212,464329959,1045812594,1872967,290970673,363535538,{"$f":"tbl_twdbdata[[#This Row],[utility]]&tbl_twdbdata[[#This Row],[Year]]","v":"SAN ANGELO2020"}]
[null,125,"SAN ANGELO","F",2030,93433,116437,607317926,{"$f":"IF(tbl_twdbdata[[#This Row],[Year]]=2016,0,tbl_twdbdata[[#This Row],[effsave]]-0.6*SUMIFS(tbl_twdbdata[effsave],tbl_twdbdata[Year],2020,tbl_twdbdata[utility],tbl_twdbdata[[#This Row],[utility]]))","v":380989653.80000001},37778,889,4321,7,2504857926,523669280,1179462830,2112324,328155442,409993776,{"$f":"tbl_twdbdata[[#This Row],[utility]]&tbl_twdbdata[[#This Row],[Year]]","v":"SAN ANGELO2030"}]
[null,125,"SAN ANGELO","F",2040,93433,123653,769072199,{"$f":"IF(tbl_twdbdata[[#This Row],[Year]]=2016,0,tbl_twdbdata[[#This Row],[effsave]]-0.6*SUMIFS(tbl_twdbdata[effsave],tbl_twdbdata[Year],2020,tbl_twdbdata[utility],tbl_twdbdata[[#This Row],[utility]]))","v":542743926.79999995},40119,1003,4873,8,2660092558,556122860,1252558184,2243232,348492360,435402496,{"$f":"tbl_twdbdata[[#This Row],[utility]]&tbl_twdbdata[[#This Row],[Year]]","v":"SAN ANGELO2040"}]
[null,125,"SAN ANGELO","F",2050,93433,131315,884308039,{"$f":"IF(tbl_twdbdata[[#This Row],[Year]]=2016,0,tbl_twdbdata[[#This Row],[effsave]]-0.6*SUMIFS(tbl_twdbdata[effsave],tbl_twdbdata[Year],2020,tbl_twdbdata[utility],tbl_twdbdata[[#This Row],[utility]]))","v":657979766.79999995},42605,1131,5495,9,2824921791,590582302,1330171350,2382231,370086243,462381655,{"$f":"tbl_twdbdata[[#This Row],[utility]]&tbl_twdbdata[[#This Row],[Year]]","v":"SAN ANGELO2050"}]
[null,125,"SAN ANGELO","F",2060,93433,139451,953858785,{"$f":"IF(tbl_twdbdata[[#This Row],[Year]]=2016,0,tbl_twdbdata[[#This Row],[effsave]]-0.6*SUMIFS(tbl_twdbdata[effsave],tbl_twdbdata[Year],2020,tbl_twdbdata[utility],tbl_twdbdata[[#This Row],[utility]]))","v":727530512.79999995},45245,1276,6197,10,2999947978,627173534,1412585956,2529829,393016005,491029846,{"$f":"tbl_twdbdata[[#This Row],[utility]]&tbl_twdbdata[[#This Row],[Year]]","v":"SAN ANGELO2060"}]
[null,125,"SAN ANGELO","F",2070,93433,148090,1016734109,{"$f":"IF(tbl_twdbdata[[#This Row],[Year]]=2016,0,tbl_twdbdata[[#This Row],[effsave]]-0.6*SUMIFS(tbl_twdbdata[effsave],tbl_twdbdata[Year],2020,tbl_twdbdata[utility],tbl_twdbdata[[#This Row],[utility]]))","v":790405836.79999995},48048,1439,6989,11,3185794982,666026982,1500095763,2686552,417363376,521449182,{"$f":"tbl_twdbdata[[#This Row],[utility]]&tbl_twdbdata[[#This Row],[Year]]","v":"SAN ANGELO2070"}]
[null,3037,"SAN ANTONIO WATER SYSTEM","L",2016,1783426,1783426,0,{"$f":"IF(tbl_twdbdata[[#This Row],[Year]]=2016,0,tbl_twdbdata[[#This Row],[effsave]]-0.6*SUMIFS(tbl_twdbdata[effsave],tbl_twdbdata[Year],2020,tbl_twdbdata[utility],tbl_twdbdata[[#This Row],[utility]]))","v":0},458304,202468,24232,0,35697998946,9726468789,17823819973,0,1100310000,11805735889,{"$f":"tbl_twdbdata[[#This Row],[utility]]&tbl_twdbdata[[#This Row],[Year]]","v":"SAN ANTONIO WATER SYSTEM2016"}]
[null,3037,"SAN ANTONIO WATER SYSTEM","L",2020,1747333,1812792,6299089642,{"$f":"IF(tbl_twdbdata[[#This Row],[Year]]=2016,0,tbl_twdbdata[[#This Row],[effsave]]-0.6*SUMIFS(tbl_twdbdata[effsave],tbl_twdbdata[Year],2020,tbl_twdbdata[utility],tbl_twdbdata[[#This Row],[utility]]))","v":2519635856.8000002},475473,210053,25140,0,37035325782,10090844051,18491540111,0,1141530072,12248005145,{"$f":"tbl_twdbdata[[#This Row],[utility]]&tbl_twdbdata[[#This Row],[Year]]","v":"SAN ANTONIO WATER SYSTEM2020"}]
[null,3037,"SAN ANTONIO WATER SYSTEM","L",2030,1747333,2056014,10003433316,{"$f":"IF(tbl_twdbdata[[#This Row],[Year]]=2016,0,tbl_twdbdata[[#This Row],[effsave]]-0.6*SUMIFS(tbl_twdbdata[effsave],tbl_twdbdata[Year],2020,tbl_twdbdata[utility],tbl_twdbdata[[#This Row],[utility]]))","v":6223979530.8000002},539267,238236,28513,0,42004349259,11444730913,20972546960,0,1294688971,13891317951,{"$f":"tbl_twdbdata[[#This Row],[utility]]&tbl_twdbdata[[#This Row],[Year]]","v":"SAN ANTONIO WATER SYSTEM2030"}]
[null,3037,"SAN ANTONIO WATER SYSTEM","L",2040,1747333,2287677,13201383280,{"$f":"IF(tbl_twdbdata[[#This Row],[Year]]=2016,0,tbl_twdbdata[[#This Row],[effsave]]-0.6*SUMIFS(tbl_twdbdata[effsave],tbl_twdbdata[Year],2020,tbl_twdbdata[utility],tbl_twdbdata[[#This Row],[utility]]))","v":9421929494.7999992},600029,270200,32339,0,46737222460,12734275000,23335645240,0,1440569073,15456533164,{"$f":"tbl_twdbdata[[#This Row],[utility]]&tbl_twdbdata[[#This Row],[Year]]","v":"SAN ANTONIO WATER SYSTEM2040"}]
[null,3037,"SAN ANTONIO WATER SYSTEM","L",2050,1747333,2500490,15542920816,{"$f":"IF(tbl_twdbdata[[#This Row],[Year]]=2016,0,tbl_twdbdata[[#This Row],[effsave]]-0.6*SUMIFS(tbl_twdbdata[effsave],tbl_twdbdata[Year],2020,tbl_twdbdata[utility],tbl_twdbdata[[#This Row],[utility]]))","v":11763467030.799999},655847,306453,36678,0,51084990315,13918891214,25506462479,0,1574579174,16894389641,{"$f":"tbl_twdbdata[[#This Row],[utility]]&tbl_twdbdata[[#This Row],[Year]]","v":"SAN ANTONIO WATER SYSTEM2050"}]
[null,3037,"SAN ANTONIO WATER SYSTEM","L",2060,1747333,2696122,17024662369,{"$f":"IF(tbl_twdbdata[[#This Row],[Year]]=2016,0,tbl_twdbdata[[#This Row],[effsave]]-0.6*SUMIFS(tbl_twdbdata[effsave],tbl_twdbdata[Year],2020,tbl_twdbdata[utility],tbl_twdbdata[[#This Row],[utility]]))","v":13245208583.799999},707159,347570,41599,0,55081750480,15007869985,27502023456,0,1697770258,18216163867,{"$f":"tbl_twdbdata[[#This Row],[utility]]&tbl_twdbdata[[#This Row],[Year]]","v":"SAN ANTONIO WATER SYSTEM2060"}]
[null,3037,"SAN ANTONIO WATER SYSTEM","L",2070,1747333,2874852,18226705423,{"$f":"IF(tbl_twdbdata[[#This Row],[Year]]=2016,0,tbl_twdbdata[[#This Row],[effsave]]-0.6*SUMIFS(tbl_twdbdata[effsave],tbl_twdbdata[Year],2020,tbl_twdbdata[utility],tbl_twdbdata[[#This Row],[utility]]))","v":14447251637.799999},754038,394203,47180,0,58733202923,16002764356,29325174134,0,1810318013,19423740886,{"$f":"tbl_twdbdata[[#This Row],[utility]]&tbl_twdbdata[[#This Row],[Year]]","v":"SAN ANTONIO WATER SYSTEM2070"}]
[null,2316,"SAN AUGUSTINE","I",2016,2108,2108,0,{"$f":"IF(tbl_twdbdata[[#This Row],[Year]]=2016,0,tbl_twdbdata[[#This Row],[effsave]]-0.6*SUMIFS(tbl_twdbdata[effsave],tbl_twdbdata[Year],2020,tbl_twdbdata[utility],tbl_twdbdata[[#This Row],[utility]]))","v":0},746,143,212,0,37221000,7468000,34886000,0,19511228,25652038,{"$f":"tbl_twdbdata[[#This Row],[utility]]&tbl_twdbdata[[#This Row],[Year]]","v":"SAN AUGUSTINE2016"}]
[null,2316,"SAN AUGUSTINE","I",2020,1795,2121,7509401,{"$f":"IF(tbl_twdbdata[[#This Row],[Year]]=2016,0,tbl_twdbdata[[#This Row],[effsave]]-0.6*SUMIFS(tbl_twdbdata[effsave],tbl_twdbdata[Year],2020,tbl_twdbdata[utility],tbl_twdbdata[[#This Row],[utility]]))","v":3003760.4000000004},881,169,251,0,43980914,8824305,41221842,0,23054771,30310848,{"$f":"tbl_twdbdata[[#This Row],[utility]]&tbl_twdbdata[[#This Row],[Year]]","v":"SAN AUGUSTINE2020"}]
[null,2316,"SAN AUGUSTINE","I",2030,1795,2121,11055076,{"$f":"IF(tbl_twdbdata[[#This Row],[Year]]=2016,0,tbl_twdbdata[[#This Row],[effsave]]-0.6*SUMIFS(tbl_twdbdata[effsave],tbl_twdbdata[Year],2020,tbl_twdbdata[utility],tbl_twdbdata[[#This Row],[utility]]))","v":6549435.4000000004},881,169,251,0,43980914,8824305,41221842,0,23054771,30310848,{"$f":"tbl_twdbdata[[#This Row],[utility]]&tbl_twdbdata[[#This Row],[Year]]","v":"SAN AUGUSTINE2030"}]
[null,2316,"SAN AUGUSTINE","I",2040,1795,2121,13849812,{"$f":"IF(tbl_twdbdata[[#This Row],[Year]]=2016,0,tbl_twdbdata[[#This Row],[effsave]]-0.6*SUMIFS(tbl_twdbdata[effsave],tbl_twdbdata[Year],2020,tbl_twdbdata[utility],tbl_twdbdata[[#This Row],[utility]]))","v":9344171.4000000004},881,169,251,0,43980914,8824305,41221842,0,23054771,30310848,{"$f":"tbl_twdbdata[[#This Row],[utility]]&tbl_twdbdata[[#This Row],[Year]]","v":"SAN AUGUSTINE2040"}]
[null,2316,"SAN AUGUSTINE","I",2050,1795,2121,14105286,{"$f":"IF(tbl_twdbdata[[#This Row],[Year]]=2016,0,tbl_twdbdata[[#This Row],[effsave]]-0.6*SUMIFS(tbl_twdbdata[effsave],tbl_twdbdata[Year],2020,tbl_twdbdata[utility],tbl_twdbdata[[#This Row],[utility]]))","v":9599645.4000000004},881,169,251,0,43980914,8824305,41221842,0,23054771,30310848,{"$f":"tbl_twdbdata[[#This Row],[utility]]&tbl_twdbdata[[#This Row],[Year]]","v":"SAN AUGUSTINE2050"}]
[null,2316,"SAN AUGUSTINE","I",2060,1795,2121,14353019,{"$f":"IF(tbl_twdbdata[[#This Row],[Year]]=2016,0,tbl_twdbdata[[#This Row],[effsave]]-0.6*SUMIFS(tbl_twdbdata[effsave],tbl_twdbdata[Year],2020,tbl_twdbdata[utility],tbl_twdbdata[[#This Row],[utility]]))","v":9847378.4000000004},881,169,251,0,43980914,8824305,41221842,0,23054771,30310848,{"$f":"tbl_twdbdata[[#This Row],[utility]]&tbl_twdbdata[[#This Row],[Year]]","v":"SAN AUGUSTINE2060"}]
[null,2316,"SAN AUGUSTINE","I",2070,1795,2121,14353019,{"$f":"IF(tbl_twdbdata[[#This Row],[Year]]=2016,0,tbl_twdbdata[[#This Row],[effsave]]-0.6*SUMIFS(tbl_twdbdata[effsave],tbl_twdbdata[Year],2020,tbl_twdbdata[utility],tbl_twdbdata[[#This Row],[utility]]))","v":9847378.4000000004},881,169,251,0,43980914,8824305,41221842,0,23054771,30310848,{"$f":"tbl_twdbdata[[#This Row],[utility]]&tbl_twdbdata[[#This Row],[Year]]","v":"SAN AUGUSTINE2070"}]
[null,2317,"SAN BENITO","M",2016,24250,24250,0,{"$f":"IF(tbl_twdbdata[[#This Row],[Year]]=2016,0,tbl_twdbdata[[#This Row],[effsave]]-0.6*SUMIFS(tbl_twdbdata[effsave],tbl_twdbdata[Year],2020,tbl_twdbdata[utility],tbl_twdbdata[[#This Row],[utility]]))","v":0},6253,144,711,0,484783673,125881490,182394586,0,26078629,178550622,{"$f":"tbl_twdbdata[[#This Row],[utility]]&tbl_twdbdata[[#This Row],[Year]]","v":"SAN BENITO2016"}]
[null,2317,"SAN BENITO","M",2020,23415,29602,112477239,{"$f":"IF(tbl_twdbdata[[#This Row],[Year]]=2016,0,tbl_twdbdata[[#This Row],[effsave]]-0.6*SUMIFS(tbl_twdbdata[effsave],tbl_twdbdata[Year],2020,tbl_twdbdata[utility],tbl_twdbdata[[#This Row],[utility]]))","v":44990895.600000009},7905,182,899,0,612879192,159143449,230589132,0,32969446,225729469,{"$f":"tbl_twdbdata[[#This Row],[utility]]&tbl_twdbdata[[#This Row],[Year]]","v":"SAN BENITO2020"}]
[null,2317,"SAN BENITO","M",2030,23415,34583,185555087,{"$f":"IF(tbl_twdbdata[[#This Row],[Year]]=2016,0,tbl_twdbdata[[#This Row],[effsave]]-0.6*SUMIFS(tbl_twdbdata[effsave],tbl_twdbdata[Year],2020,tbl_twdbdata[utility],tbl_twdbdata[[#This Row],[utility]]))","v":118068743.60000001},9235,213,1050,0,716005712,185921826,269389364,0,38517072,263711987,{"$f":"tbl_twdbdata[[#This Row],[utility]]&tbl_twdbdata[[#This Row],[Year]]","v":"SAN BENITO2030"}]
[null,2317,"SAN BENITO","M",2040,23415,39638,252030295,{"$f":"IF(tbl_twdbdata[[#This Row],[Year]]=2016,0,tbl_twdbdata[[#This Row],[effsave]]-0.6*SUMIFS(tbl_twdbdata[effsave],tbl_twdbdata[Year],2020,tbl_twdbdata[utility],tbl_twdbdata[[#This Row],[utility]]))","v":184543951.60000002},10585,249,1227,0,820664327,213098035,308766030,0,44147116,302258790,{"$f":"tbl_twdbdata[[#This Row],[utility]]&tbl_twdbdata[[#This Row],[Year]]","v":"SAN BENITO2040"}]
[null,2317,"SAN BENITO","M",2050,23415,45082,307707191,{"$f":"IF(tbl_twdbdata[[#This Row],[Year]]=2016,0,tbl_twdbdata[[#This Row],[effsave]]-0.6*SUMIFS(tbl_twdbdata[effsave],tbl_twdbdata[Year],2020,tbl_twdbdata[utility],tbl_twdbdata[[#This Row],[utility]]))","v":240220847.60000002},12039,291,1433,0,933376790,242365549,351172869,0,50210411,343771905,{"$f":"tbl_twdbdata[[#This Row],[utility]]&tbl_twdbdata[[#This Row],[Year]]","v":"SAN BENITO2050"}]
[null,2317,"SAN BENITO","M",2060,23415,50682,350924702,{"$f":"IF(tbl_twdbdata[[#This Row],[Year]]=2016,0,tbl_twdbdata[[#This Row],[effsave]]-0.6*SUMIFS(tbl_twdbdata[effsave],tbl_twdbdata[Year],2020,tbl_twdbdata[utility],tbl_twdbdata[[#This Row],[utility]]))","v":283438358.60000002},13534,340,1674,0,1049319073,272471735,394794892,0,56447452,386474595,{"$f":"tbl_twdbdata[[#This Row],[utility]]&tbl_twdbdata[[#This Row],[Year]]","v":"SAN BENITO2060"}]
[null,2317,"SAN BENITO","M",2070,23415,56421,392309318,{"$f":"IF(tbl_twdbdata[[#This Row],[Year]]=2016,0,tbl_twdbdata[[#This Row],[effsave]]-0.6*SUMIFS(tbl_twdbdata[effsave],tbl_twdbdata[Year],2020,tbl_twdbdata[utility],tbl_twdbdata[[#This Row],[utility]]))","v":324822974.60000002},15067,397,1955,0,1168139210,303325199,439499676,0,62839306,430237227,{"$f":"tbl_twdbdata[[#This Row],[utility]]&tbl_twdbdata[[#This Row],[Year]]","v":"SAN BENITO2070"}]
[null,2322,"SAN JUAN","M",2016,18870,18870,0,{"$f":"IF(tbl_twdbdata[[#This Row],[Year]]=2016,0,tbl_twdbdata[[#This Row],[effsave]]-0.6*SUMIFS(tbl_twdbdata[effsave],tbl_twdbdata[Year],2020,tbl_twdbdata[utility],tbl_twdbdata[[#This Row],[utility]]))","v":0},5784,50,456,0,516211000,17737000,251998000,0,10546714,47244400,{"$f":"tbl_twdbdata[[#This Row],[utility]]&tbl_twdbdata[[#This Row],[Year]]","v":"SAN JUAN2016"}]
[null,2322,"SAN JUAN","M",2020,18870,34508,113484734,{"$f":"IF(tbl_twdbdata[[#This Row],[Year]]=2016,0,tbl_twdbdata[[#This Row],[effsave]]-0.6*SUMIFS(tbl_twdbdata[effsave],tbl_twdbdata[Year],2020,tbl_twdbdata[utility],tbl_twdbdata[[#This Row],[utility]]))","v":45393893.600000009},10577,91,834,0,944006846,32436057,460834498,0,19287017,86396913,{"$f":"tbl_twdbdata[[#This Row],[utility]]&tbl_twdbdata[[#This Row],[Year]]","v":"SAN JUAN2020"}]
[null,2322,"SAN JUAN","M",2030,18870,42849,190962996,{"$f":"IF(tbl_twdbdata[[#This Row],[Year]]=2016,0,tbl_twdbdata[[#This Row],[effsave]]-0.6*SUMIFS(tbl_twdbdata[effsave],tbl_twdbdata[Year],2020,tbl_twdbdata[utility],tbl_twdbdata[[#This Row],[utility]]))","v":122872155.60000001},13134,113,1036,0,1172184692,40276243,572223757,0,23948922,107280089,{"$f":"tbl_twdbdata[[#This Row],[utility]]&tbl_twdbdata[[#This Row],[Year]]","v":"SAN JUAN2030"}]
[null,2322,"SAN JUAN","M",2040,18870,51223,260066854,{"$f":"IF(tbl_twdbdata[[#This Row],[Year]]=2016,0,tbl_twdbdata[[#This Row],[effsave]]-0.6*SUMIFS(tbl_twdbdata[effsave],tbl_twdbdata[Year],2020,tbl_twdbdata[utility],tbl_twdbdata[[#This Row],[utility]]))","v":191976013.60000002},15701,140,1286,0,1401265292,48147448,684053712,0,28629271,128245887,{"$f":"tbl_twdbdata[[#This Row],[utility]]&tbl_twdbdata[[#This Row],[Year]]","v":"SAN JUAN2040"}]
[null,2322,"SAN JUAN","M",2050,18870,59614,320076508,{"$f":"IF(tbl_twdbdata[[#This Row],[Year]]=2016,0,tbl_twdbdata[[#This Row],[effsave]]-0.6*SUMIFS(tbl_twdbdata[effsave],tbl_twdbdata[Year],2020,tbl_twdbdata[utility],tbl_twdbdata[[#This Row],[utility]]))","v":251985667.60000002},18273,174,1597,0,1630810947,56034632,796110692,0,33319122,149254247,{"$f":"tbl_twdbdata[[#This Row],[utility]]&tbl_twdbdata[[#This Row],[Year]]","v":"SAN JUAN2050"}]
[null,2322,"SAN JUAN","M",2060,18870,68005,370838066,{"$f":"IF(tbl_twdbdata[[#This Row],[Year]]=2016,0,tbl_twdbdata[[#This Row],[effsave]]-0.6*SUMIFS(tbl_twdbdata[effsave],tbl_twdbdata[Year],2020,tbl_twdbdata[utility],tbl_twdbdata[[#This Row],[utility]]))","v":302747225.60000002},20845,216,1983,0,1860356602,63921816,908167672,0,38008973,170262607,{"$f":"tbl_twdbdata[[#This Row],[utility]]&tbl_twdbdata[[#This Row],[Year]]","v":"SAN JUAN2060"}]
[null,2322,"SAN JUAN","M",2070,18870,76163,417548415,{"$f":"IF(tbl_twdbdata[[#This Row],[Year]]=2016,0,tbl_twdbdata[[#This Row],[effsave]]-0.6*SUMIFS(tbl_twdbdata[effsave],tbl_twdbdata[Year],2020,tbl_twdbdata[utility],tbl_twdbdata[[#This Row],[utility]]))","v":349457574.60000002},23346,268,2462,0,2083528268,71589990,1017113071,0,42568597,190687610,{"$f":"tbl_twdbdata[[#This Row],[utility]]&tbl_twdbdata[[#This Row],[Year]]","v":"SAN JUAN2070"}]
[null,2324,"SAN MARCOS","L",2016,62969,62969,0,{"$f":"IF(tbl_twdbdata[[#This Row],[Year]]=2016,0,tbl_twdbdata[[#This Row],[effsave]]-0.6*SUMIFS(tbl_twdbdata[effsave],tbl_twdbdata[Year],2020,tbl_twdbdata[utility],tbl_twdbdata[[#This Row],[utility]]))","v":0},8471,1980,1923,0,489542957,943113099,657353944,0,78246684,521388809,{"$f":"tbl_twdbdata[[#This Row],[utility]]&tbl_twdbdata[[#This Row],[Year]]","v":"SAN MARCOS2016"}]
[null,2324,"SAN MARCOS","L",2020,50327,71135,290280595,{"$f":"IF(tbl_twdbdata[[#This Row],[Year]]=2016,0,tbl_twdbdata[[#This Row],[effsave]]-0.6*SUMIFS(tbl_twdbdata[effsave],tbl_twdbdata[Year],2020,tbl_twdbdata[utility],tbl_twdbdata[[#This Row],[utility]]))","v":116112238},11973,2799,2718,0,691947429,1333048866,929140875,0,110598245,736960139,{"$f":"tbl_twdbdata[[#This Row],[utility]]&tbl_twdbdata[[#This Row],[Year]]","v":"SAN MARCOS2020"}]
[null,2324,"SAN MARCOS","L",2030,50327,84861,441073534,{"$f":"IF(tbl_twdbdata[[#This Row],[Year]]=2016,0,tbl_twdbdata[[#This Row],[effsave]]-0.6*SUMIFS(tbl_twdbdata[effsave],tbl_twdbdata[Year],2020,tbl_twdbdata[utility],tbl_twdbdata[[#This Row],[utility]]))","v":266905177},14283,3339,3243,0,825463566,1590270047,1108425161,0,131938956,879161796,{"$f":"tbl_twdbdata[[#This Row],[utility]]&tbl_twdbdata[[#This Row],[Year]]","v":"SAN MARCOS2030"}]
[null,2324,"SAN MARCOS","L",2040,50327,101235,590473385,{"$f":"IF(tbl_twdbdata[[#This Row],[Year]]=2016,0,tbl_twdbdata[[#This Row],[effsave]]-0.6*SUMIFS(tbl_twdbdata[effsave],tbl_twdbdata[Year],2020,tbl_twdbdata[utility],tbl_twdbdata[[#This Row],[utility]]))","v":416305028},17039,3983,3869,0,984737442,1897113965,1322296711,0,157396686,1048796790,{"$f":"tbl_twdbdata[[#This Row],[utility]]&tbl_twdbdata[[#This Row],[Year]]","v":"SAN MARCOS2040"}]
[null,2324,"SAN MARCOS","L",2050,50327,120769,740114701,{"$f":"IF(tbl_twdbdata[[#This Row],[Year]]=2016,0,tbl_twdbdata[[#This Row],[effsave]]-0.6*SUMIFS(tbl_twdbdata[effsave],tbl_twdbdata[Year],2020,tbl_twdbdata[utility],tbl_twdbdata[[#This Row],[utility]]))","v":565946344},20327,4752,4615,0,1174749406,2263175349,1577443093,0,187767475,1251169453,{"$f":"tbl_twdbdata[[#This Row],[utility]]&tbl_twdbdata[[#This Row],[Year]]","v":"SAN MARCOS2050"}]
[null,2324,"SAN MARCOS","L",2060,50327,144072,893966760,{"$f":"IF(tbl_twdbdata[[#This Row],[Year]]=2016,0,tbl_twdbdata[[#This Row],[effsave]]-0.6*SUMIFS(tbl_twdbdata[effsave],tbl_twdbdata[Year],2020,tbl_twdbdata[utility],tbl_twdbdata[[#This Row],[utility]]))","v":719798403},24249,5669,5505,0,1401423349,2699866678,1881818855,0,223998176,1492589037,{"$f":"tbl_twdbdata[[#This Row],[utility]]&tbl_twdbdata[[#This Row],[Year]]","v":"SAN MARCOS2060"}]
[null,2324,"SAN MARCOS","L",2070,50327,171872,1073366421,{"$f":"IF(tbl_twdbdata[[#This Row],[Year]]=2016,0,tbl_twdbdata[[#This Row],[effsave]]-0.6*SUMIFS(tbl_twdbdata[effsave],tbl_twdbdata[Year],2020,tbl_twdbdata[utility],tbl_twdbdata[[#This Row],[utility]]))","v":899198064},28928,6763,6567,0,1671840704,3220830458,2244932883,0,267220657,1780597638,{"$f":"tbl_twdbdata[[#This Row],[utility]]&tbl_twdbdata[[#This Row],[Year]]","v":"SAN MARCOS2070"}]
[null,2334,"SARDIS LONE ELM WSC","C",2016,17307,17307,0,{"$f":"IF(tbl_twdbdata[[#This Row],[Year]]=2016,0,tbl_twdbdata[[#This Row],[effsave]]-0.6*SUMIFS(tbl_twdbdata[effsave],tbl_twdbdata[Year],2020,tbl_twdbdata[utility],tbl_twdbdata[[#This Row],[utility]]))","v":0},5669,0,100,0,744146390,0,7367580,0,null,null,{"$f":"tbl_twdbdata[[#This Row],[utility]]&tbl_twdbdata[[#This Row],[Year]]","v":"SARDIS LONE ELM WSC2016"}]
[null,2334,"SARDIS LONE ELM WSC","C",2020,15548,19699,76503036,{"$f":"IF(tbl_twdbdata[[#This Row],[Year]]=2016,0,tbl_twdbdata[[#This Row],[effsave]]-0.6*SUMIFS(tbl_twdbdata[effsave],tbl_twdbdata[Year],2020,tbl_twdbdata[utility],tbl_twdbdata[[#This Row],[utility]]))","v":30601214.399999999},7183,0,127,0,942818352,0,9334574,0,null,null,{"$f":"tbl_twdbdata[[#This Row],[utility]]&tbl_twdbdata[[#This Row],[Year]]","v":"SARDIS LONE ELM WSC2020"}]
[null,2334,"SARDIS LONE ELM WSC","C",2030,15548,26433,128608440,{"$f":"IF(tbl_twdbdata[[#This Row],[Year]]=2016,0,tbl_twdbdata[[#This Row],[effsave]]-0.6*SUMIFS(tbl_twdbdata[effsave],tbl_twdbdata[Year],2020,tbl_twdbdata[utility],tbl_twdbdata[[#This Row],[utility]]))","v":82706618.400000006},9638,0,170,0,1265115869,0,12525549,0,null,null,{"$f":"tbl_twdbdata[[#This Row],[utility]]&tbl_twdbdata[[#This Row],[Year]]","v":"SARDIS LONE ELM WSC2030"}]
[null,2334,"SARDIS LONE ELM WSC","C",2040,15548,30524,163776522,{"$f":"IF(tbl_twdbdata[[#This Row],[Year]]=2016,0,tbl_twdbdata[[#This Row],[effsave]]-0.6*SUMIFS(tbl_twdbdata[effsave],tbl_twdbdata[Year],2020,tbl_twdbdata[utility],tbl_twdbdata[[#This Row],[utility]]))","v":117874700.40000001},11130,0,228,0,1460916157,0,14464111,0,null,null,{"$f":"tbl_twdbdata[[#This Row],[utility]]&tbl_twdbdata[[#This Row],[Year]]","v":"SARDIS LONE ELM WSC2040"}]
[null,2334,"SARDIS LONE ELM WSC","C",2050,15548,31524,175700590,{"$f":"IF(tbl_twdbdata[[#This Row],[Year]]=2016,0,tbl_twdbdata[[#This Row],[effsave]]-0.6*SUMIFS(tbl_twdbdata[effsave],tbl_twdbdata[Year],2020,tbl_twdbdata[utility],tbl_twdbdata[[#This Row],[utility]]))","v":129798768.40000001},11495,0,306,0,1508777386,0,14937971,0,null,null,{"$f":"tbl_twdbdata[[#This Row],[utility]]&tbl_twdbdata[[#This Row],[Year]]","v":"SARDIS LONE ELM WSC2050"}]
[null,2334,"SARDIS LONE ELM WSC","C",2060,15548,32524,182936117,{"$f":"IF(tbl_twdbdata[[#This Row],[Year]]=2016,0,tbl_twdbdata[[#This Row],[effsave]]-0.6*SUMIFS(tbl_twdbdata[effsave],tbl_twdbdata[Year],2020,tbl_twdbdata[utility],tbl_twdbdata[[#This Row],[utility]]))","v":137034295.40000001},11860,0,411,0,1556638615,0,15411831,0,null,null,{"$f":"tbl_twdbdata[[#This Row],[utility]]&tbl_twdbdata[[#This Row],[Year]]","v":"SARDIS LONE ELM WSC2060"}]
[null,2334,"SARDIS LONE ELM WSC","C",2070,15548,32524,183410967,{"$f":"IF(tbl_twdbdata[[#This Row],[Year]]=2016,0,tbl_twdbdata[[#This Row],[effsave]]-0.6*SUMIFS(tbl_twdbdata[effsave],tbl_twdbdata[Year],2020,tbl_twdbdata[utility],tbl_twdbdata[[#This Row],[utility]]))","v":137509145.40000001},11860,0,551,0,1556638615,0,15411831,0,null,null,{"$f":"tbl_twdbdata[[#This Row],[utility]]&tbl_twdbdata[[#This Row],[Year]]","v":"SARDIS LONE ELM WSC2070"}]
[null,2336,"SCHERTZ","L",2016,37000,37000,0,{"$f":"IF(tbl_twdbdata[[#This Row],[Year]]=2016,0,tbl_twdbdata[[#This Row],[effsave]]-0.6*SUMIFS(tbl_twdbdata[effsave],tbl_twdbdata[Year],2020,tbl_twdbdata[utility],tbl_twdbdata[[#This Row],[utility]]))","v":0},12918,1401,888,0,1076997700,51638900,355050500,0,30814577,162768422,{"$f":"tbl_twdbdata[[#This Row],[utility]]&tbl_twdbdata[[#This Row],[Year]]","v":"SCHERTZ2016"}]
[null,2336,"SCHERTZ","L",2020,35878,43814,131135302,{"$f":"IF(tbl_twdbdata[[#This Row],[Year]]=2016,0,tbl_twdbdata[[#This Row],[effsave]]-0.6*SUMIFS(tbl_twdbdata[effsave],tbl_twdbdata[Year],2020,tbl_twdbdata[utility],tbl_twdbdata[[#This Row],[utility]]))","v":52454120.799999997},15775,1711,1084,0,1315223179,63061117,433585557,0,37630578,198771828,{"$f":"tbl_twdbdata[[#This Row],[utility]]&tbl_twdbdata[[#This Row],[Year]]","v":"SCHERTZ2020"}]
[null,2336,"SCHERTZ","L",2030,35878,58881,234043143,{"$f":"IF(tbl_twdbdata[[#This Row],[Year]]=2016,0,tbl_twdbdata[[#This Row],[effsave]]-0.6*SUMIFS(tbl_twdbdata[effsave],tbl_twdbdata[Year],2020,tbl_twdbdata[utility],tbl_twdbdata[[#This Row],[utility]]))","v":155361961.80000001},21200,2299,1457,0,1767509381,84746922,582689350,0,50571189,267126581,{"$f":"tbl_twdbdata[[#This Row],[utility]]&tbl_twdbdata[[#This Row],[Year]]","v":"SCHERTZ2030"}]
[null,2336,"SCHERTZ","L",2040,35878,70280,308339444,{"$f":"IF(tbl_twdbdata[[#This Row],[Year]]=2016,0,tbl_twdbdata[[#This Row],[effsave]]-0.6*SUMIFS(tbl_twdbdata[effsave],tbl_twdbdata[Year],2020,tbl_twdbdata[utility],tbl_twdbdata[[#This Row],[utility]]))","v":229658262.80000001},25304,3090,1958,0,2109688343,101153406,695494430,0,60361461,318840647,{"$f":"tbl_twdbdata[[#This Row],[utility]]&tbl_twdbdata[[#This Row],[Year]]","v":"SCHERTZ2040"}]
[null,2336,"SCHERTZ","L",2050,35878,81734,375298008,{"$f":"IF(tbl_twdbdata[[#This Row],[Year]]=2016,0,tbl_twdbdata[[#This Row],[effsave]]-0.6*SUMIFS(tbl_twdbdata[effsave],tbl_twdbdata[Year],2020,tbl_twdbdata[utility],tbl_twdbdata[[#This Row],[utility]]))","v":296616826.80000001},29428,4153,2631,0,2453518313,117639051,808843793,0,70198971,370804232,{"$f":"tbl_twdbdata[[#This Row],[utility]]&tbl_twdbdata[[#This Row],[Year]]","v":"SCHERTZ2050"}]
[null,2336,"SCHERTZ","L",2060,35878,93791,437506878,{"$f":"IF(tbl_twdbdata[[#This Row],[Year]]=2016,0,tbl_twdbdata[[#This Row],[effsave]]-0.6*SUMIFS(tbl_twdbdata[effsave],tbl_twdbdata[Year],2020,tbl_twdbdata[utility],tbl_twdbdata[[#This Row],[utility]]))","v":358825696.80000001},33769,5581,3535,0,2815449337,134992589,928160474,0,80554380,425503459,{"$f":"tbl_twdbdata[[#This Row],[utility]]&tbl_twdbdata[[#This Row],[Year]]","v":"SCHERTZ2060"}]
[null,2336,"SCHERTZ","L",2070,35878,105620,495769718,{"$f":"IF(tbl_twdbdata[[#This Row],[Year]]=2016,0,tbl_twdbdata[[#This Row],[effsave]]-0.6*SUMIFS(tbl_twdbdata[effsave],tbl_twdbdata[Year],2020,tbl_twdbdata[utility],tbl_twdbdata[[#This Row],[utility]]))","v":417088536.80000001},38028,7500,4751,0,3170536181,152017968,1045220855,0,90713966,479168314,{"$f":"tbl_twdbdata[[#This Row],[utility]]&tbl_twdbdata[[#This Row],[Year]]","v":"SCHERTZ2070"}]
[null,2338,"SEABROOK","H",2016,12100,12100,0,{"$f":"IF(tbl_twdbdata[[#This Row],[Year]]=2016,0,tbl_twdbdata[[#This Row],[effsave]]-0.6*SUMIFS(tbl_twdbdata[effsave],tbl_twdbdata[Year],2020,tbl_twdbdata[utility],tbl_twdbdata[[#This Row],[utility]]))","v":0},3371,2788,200,97,261356000,104262000,66858000,20480000,29212658,53003974,{"$f":"tbl_twdbdata[[#This Row],[utility]]&tbl_twdbdata[[#This Row],[Year]]","v":"SEABROOK2016"}]
[null,2338,"SEABROOK","H",2020,11319,12358,38160268,{"$f":"IF(tbl_twdbdata[[#This Row],[Year]]=2016,0,tbl_twdbdata[[#This Row],[effsave]]-0.6*SUMIFS(tbl_twdbdata[effsave],tbl_twdbdata[Year],2020,tbl_twdbdata[utility],tbl_twdbdata[[#This Row],[utility]]))","v":15264107.199999999},3680,3044,219,106,285346537,113832476,72995067,22359912,31894163,57869345,{"$f":"tbl_twdbdata[[#This Row],[utility]]&tbl_twdbdata[[#This Row],[Year]]","v":"SEABROOK2020"}]
[null,2338,"SEABROOK","H",2030,11319,12687,53763066,{"$f":"IF(tbl_twdbdata[[#This Row],[Year]]=2016,0,tbl_twdbdata[[#This Row],[effsave]]-0.6*SUMIFS(tbl_twdbdata[effsave],tbl_twdbdata[Year],2020,tbl_twdbdata[utility],tbl_twdbdata[[#This Row],[utility]]))","v":30866905.199999999},3778,3125,225,109,292943155,116862973,74938373,22955187,32743263,59409968,{"$f":"tbl_twdbdata[[#This Row],[utility]]&tbl_twdbdata[[#This Row],[Year]]","v":"SEABROOK2030"}]
[null,2338,"SEABROOK","H",2040,11319,12914,66084812,{"$f":"IF(tbl_twdbdata[[#This Row],[Year]]=2016,0,tbl_twdbdata[[#This Row],[effsave]]-0.6*SUMIFS(tbl_twdbdata[effsave],tbl_twdbdata[Year],2020,tbl_twdbdata[utility],tbl_twdbdata[[#This Row],[utility]]))","v":43188651.200000003},3846,3208,231,112,298184591,118953924,76279195,23365909,33329116,60472951,{"$f":"tbl_twdbdata[[#This Row],[utility]]&tbl_twdbdata[[#This Row],[Year]]","v":"SEABROOK2040"}]
[null,2338,"SEABROOK","H",2050,11319,13279,74447386,{"$f":"IF(tbl_twdbdata[[#This Row],[Year]]=2016,0,tbl_twdbdata[[#This Row],[effsave]]-0.6*SUMIFS(tbl_twdbdata[effsave],tbl_twdbdata[Year],2020,tbl_twdbdata[utility],tbl_twdbdata[[#This Row],[utility]]))","v":51551225.200000003},3955,3293,237,115,306612450,122316026,78435142,24026321,34271127,62182152,{"$f":"tbl_twdbdata[[#This Row],[utility]]&tbl_twdbdata[[#This Row],[Year]]","v":"SEABROOK2050"}]
[null,2338,"SEABROOK","H",2060,11319,13517,77311157,{"$f":"IF(tbl_twdbdata[[#This Row],[Year]]=2016,0,tbl_twdbdata[[#This Row],[effsave]]-0.6*SUMIFS(tbl_twdbdata[effsave],tbl_twdbdata[Year],2020,tbl_twdbdata[utility],tbl_twdbdata[[#This Row],[utility]]))","v":54414996.200000003},4026,3381,243,118,312107876,124508301,79840938,24456946,34885370,63296645,{"$f":"tbl_twdbdata[[#This Row],[utility]]&tbl_twdbdata[[#This Row],[Year]]","v":"SEABROOK2060"}]
[null,2338,"SEABROOK","H",2070,11319,13759,78845950,{"$f":"IF(tbl_twdbdata[[#This Row],[Year]]=2016,0,tbl_twdbdata[[#This Row],[effsave]]-0.6*SUMIFS(tbl_twdbdata[effsave],tbl_twdbdata[Year],2020,tbl_twdbdata[utility],tbl_twdbdata[[#This Row],[utility]]))","v":55949789.200000003},4098,3471,249,121,317695662,126737421,81270360,24894808,35509936,64429869,{"$f":"tbl_twdbdata[[#This Row],[utility]]&tbl_twdbdata[[#This Row],[Year]]","v":"SEABROOK2070"}]
[null,130,"SEAGOVILLE","C",2016,15130,15130,0,{"$f":"IF(tbl_twdbdata[[#This Row],[Year]]=2016,0,tbl_twdbdata[[#This Row],[effsave]]-0.6*SUMIFS(tbl_twdbdata[effsave],tbl_twdbdata[Year],2020,tbl_twdbdata[utility],tbl_twdbdata[[#This Row],[utility]]))","v":0},4287,18,390,0,297108190,19952300,242323688,0,8013972,73719628,{"$f":"tbl_twdbdata[[#This Row],[utility]]&tbl_twdbdata[[#This Row],[Year]]","v":"SEAGOVILLE2016"}]
[null,130,"SEAGOVILLE","C",2020,15130,18882,64921981,{"$f":"IF(tbl_twdbdata[[#This Row],[Year]]=2016,0,tbl_twdbdata[[#This Row],[effsave]]-0.6*SUMIFS(tbl_twdbdata[effsave],tbl_twdbdata[Year],2020,tbl_twdbdata[utility],tbl_twdbdata[[#This Row],[utility]]))","v":25968792.399999999},5185,22,471,0,359338768,24131394,293079418,0,9692533,89160519,{"$f":"tbl_twdbdata[[#This Row],[utility]]&tbl_twdbdata[[#This Row],[Year]]","v":"SEAGOVILLE2020"}]
[null,130,"SEAGOVILLE","C",2030,15130,22907,107439557,{"$f":"IF(tbl_twdbdata[[#This Row],[Year]]=2016,0,tbl_twdbdata[[#This Row],[effsave]]-0.6*SUMIFS(tbl_twdbdata[effsave],tbl_twdbdata[Year],2020,tbl_twdbdata[utility],tbl_twdbdata[[#This Row],[utility]]))","v":68486368.400000006},6290,27,571,0,435937568,29275386,355553978,0,11758651,108166508,{"$f":"tbl_twdbdata[[#This Row],[utility]]&tbl_twdbdata[[#This Row],[Year]]","v":"SEAGOVILLE2030"}]
[null,130,"SEAGOVILLE","C",2040,15130,26932,145290060,{"$f":"IF(tbl_twdbdata[[#This Row],[Year]]=2016,0,tbl_twdbdata[[#This Row],[effsave]]-0.6*SUMIFS(tbl_twdbdata[effsave],tbl_twdbdata[Year],2020,tbl_twdbdata[utility],tbl_twdbdata[[#This Row],[utility]]))","v":106336871.40000001},7395,33,692,0,512536368,34419378,418028538,0,13824769,127172497,{"$f":"tbl_twdbdata[[#This Row],[utility]]&tbl_twdbdata[[#This Row],[Year]]","v":"SEAGOVILLE2040"}]
[null,130,"SEAGOVILLE","C",2050,15130,30959,177297549,{"$f":"IF(tbl_twdbdata[[#This Row],[Year]]=2016,0,tbl_twdbdata[[#This Row],[effsave]]-0.6*SUMIFS(tbl_twdbdata[effsave],tbl_twdbdata[Year],2020,tbl_twdbdata[utility],tbl_twdbdata[[#This Row],[utility]]))","v":138344360.40000001},8501,40,839,0,589173230,39565926,480534142,0,15891914,146187930,{"$f":"tbl_twdbdata[[#This Row],[utility]]&tbl_twdbdata[[#This Row],[Year]]","v":"SEAGOVILLE2050"}]
[null,130,"SEAGOVILLE","C",2060,15130,35054,203691783,{"$f":"IF(tbl_twdbdata[[#This Row],[Year]]=2016,0,tbl_twdbdata[[#This Row],[effsave]]-0.6*SUMIFS(tbl_twdbdata[effsave],tbl_twdbdata[Year],2020,tbl_twdbdata[utility],tbl_twdbdata[[#This Row],[utility]]))","v":164738594.40000001},9625,49,1017,0,667104183,44799379,544095217,0,17993965,165524458,{"$f":"tbl_twdbdata[[#This Row],[utility]]&tbl_twdbdata[[#This Row],[Year]]","v":"SEAGOVILLE2060"}]
[null,130,"SEAGOVILLE","C",2070,15130,35054,203947677,{"$f":"IF(tbl_twdbdata[[#This Row],[Year]]=2016,0,tbl_twdbdata[[#This Row],[effsave]]-0.6*SUMIFS(tbl_twdbdata[effsave],tbl_twdbdata[Year],2020,tbl_twdbdata[utility],tbl_twdbdata[[#This Row],[utility]]))","v":164994488.40000001},9625,59,1233,0,667104183,44799379,544095217,0,17993965,165524458,{"$f":"tbl_twdbdata[[#This Row],[utility]]&tbl_twdbdata[[#This Row],[Year]]","v":"SEAGOVILLE2070"}]
[null,2340,"SEAGRAVES","O",2016,2417,2417,0,{"$f":"IF(tbl_twdbdata[[#This Row],[Year]]=2016,0,tbl_twdbdata[[#This Row],[effsave]]-0.6*SUMIFS(tbl_twdbdata[effsave],tbl_twdbdata[Year],2020,tbl_twdbdata[utility],tbl_twdbdata[[#This Row],[utility]]))","v":0},824,16,100,12,64132971,4102930,11926570,8708339,1228928,8214508,{"$f":"tbl_twdbdata[[#This Row],[utility]]&tbl_twdbdata[[#This Row],[Year]]","v":"SEAGRAVES2016"}]
[null,2340,"SEAGRAVES","O",2020,2417,2558,8888538,{"$f":"IF(tbl_twdbdata[[#This Row],[Year]]=2016,0,tbl_twdbdata[[#This Row],[effsave]]-0.6*SUMIFS(tbl_twdbdata[effsave],tbl_twdbdata[Year],2020,tbl_twdbdata[utility],tbl_twdbdata[[#This Row],[utility]]))","v":3555415.2},857,17,104,12,66714982,4268115,12406737,9058939,1278405,8545226,{"$f":"tbl_twdbdata[[#This Row],[utility]]&tbl_twdbdata[[#This Row],[Year]]","v":"SEAGRAVES2020"}]
[null,2340,"SEAGRAVES","O",2030,2417,2700,13590045,{"$f":"IF(tbl_twdbdata[[#This Row],[Year]]=2016,0,tbl_twdbdata[[#This Row],[effsave]]-0.6*SUMIFS(tbl_twdbdata[effsave],tbl_twdbdata[Year],2020,tbl_twdbdata[utility],tbl_twdbdata[[#This Row],[utility]]))","v":8256922.2000000002},905,18,110,13,70418472,4505047,13095461,9561820,1349372,9019590,{"$f":"tbl_twdbdata[[#This Row],[utility]]&tbl_twdbdata[[#This Row],[Year]]","v":"SEAGRAVES2030"}]
[null,2340,"SEAGRAVES","O",2040,2417,2871,17877430,{"$f":"IF(tbl_twdbdata[[#This Row],[Year]]=2016,0,tbl_twdbdata[[#This Row],[effsave]]-0.6*SUMIFS(tbl_twdbdata[effsave],tbl_twdbdata[Year],2020,tbl_twdbdata[utility],tbl_twdbdata[[#This Row],[utility]]))","v":12544307.199999999},962,19,116,14,74878309,4790367,13924840,10167402,1434832,9590831,{"$f":"tbl_twdbdata[[#This Row],[utility]]&tbl_twdbdata[[#This Row],[Year]]","v":"SEAGRAVES2040"}]
[null,2340,"SEAGRAVES","O",2050,2417,3060,20930706,{"$f":"IF(tbl_twdbdata[[#This Row],[Year]]=2016,0,tbl_twdbdata[[#This Row],[effsave]]-0.6*SUMIFS(tbl_twdbdata[effsave],tbl_twdbdata[Year],2020,tbl_twdbdata[utility],tbl_twdbdata[[#This Row],[utility]]))","v":15597583.199999999},1025,20,122,15,79807602,5105720,14841522,10836729,1529288,10222202,{"$f":"tbl_twdbdata[[#This Row],[utility]]&tbl_twdbdata[[#This Row],[Year]]","v":"SEAGRAVES2050"}]
[null,2340,"SEAGRAVES","O",2060,2417,3164,21988534,{"$f":"IF(tbl_twdbdata[[#This Row],[Year]]=2016,0,tbl_twdbdata[[#This Row],[effsave]]-0.6*SUMIFS(tbl_twdbdata[effsave],tbl_twdbdata[Year],2020,tbl_twdbdata[utility],tbl_twdbdata[[#This Row],[utility]]))","v":16655411.199999999},1060,21,129,16,82520017,5279248,15345940,11205036,1581264,10569623,{"$f":"tbl_twdbdata[[#This Row],[utility]]&tbl_twdbdata[[#This Row],[Year]]","v":"SEAGRAVES2060"}]
[null,2340,"SEAGRAVES","O",2070,2417,3273,22793827,{"$f":"IF(tbl_twdbdata[[#This Row],[Year]]=2016,0,tbl_twdbdata[[#This Row],[effsave]]-0.6*SUMIFS(tbl_twdbdata[effsave],tbl_twdbdata[Year],2020,tbl_twdbdata[utility],tbl_twdbdata[[#This Row],[utility]]))","v":17460704.199999999},1097,22,136,17,85362837,5461118,15874608,11591050,1635739,10933747,{"$f":"tbl_twdbdata[[#This Row],[utility]]&tbl_twdbdata[[#This Row],[Year]]","v":"SEAGRAVES2070"}]
[null,129,"SEGUIN","L",2016,27500,27500,0,{"$f":"IF(tbl_twdbdata[[#This Row],[Year]]=2016,0,tbl_twdbdata[[#This Row],[effsave]]-0.6*SUMIFS(tbl_twdbdata[effsave],tbl_twdbdata[Year],2020,tbl_twdbdata[utility],tbl_twdbdata[[#This Row],[utility]]))","v":0},6040,81,1177,0,433370000,88169000,1566240999,0,27109309,53855419,{"$f":"tbl_twdbdata[[#This Row],[utility]]&tbl_twdbdata[[#This Row],[Year]]","v":"SEGUIN2016"}]
[null,129,"SEGUIN","L",2020,23761,27874,102147060,{"$f":"IF(tbl_twdbdata[[#This Row],[Year]]=2016,0,tbl_twdbdata[[#This Row],[effsave]]-0.6*SUMIFS(tbl_twdbdata[effsave],tbl_twdbdata[Year],2020,tbl_twdbdata[utility],tbl_twdbdata[[#This Row],[utility]]))","v":40858824},7086,95,1381,0,508385816,103430946,1837355398,0,31801897,63177726,{"$f":"tbl_twdbdata[[#This Row],[utility]]&tbl_twdbdata[[#This Row],[Year]]","v":"SEGUIN2020"}]
[null,129,"SEGUIN","L",2030,23761,33511,171363525,{"$f":"IF(tbl_twdbdata[[#This Row],[Year]]=2016,0,tbl_twdbdata[[#This Row],[effsave]]-0.6*SUMIFS(tbl_twdbdata[effsave],tbl_twdbdata[Year],2020,tbl_twdbdata[utility],tbl_twdbdata[[#This Row],[utility]]))","v":110075289},8519,114,1660,0,611197427,124347938,2208926482,0,38233241,75954250,{"$f":"tbl_twdbdata[[#This Row],[utility]]&tbl_twdbdata[[#This Row],[Year]]","v":"SEGUIN2030"}]
[null,129,"SEGUIN","L",2040,23761,39279,234550621,{"$f":"IF(tbl_twdbdata[[#This Row],[Year]]=2016,0,tbl_twdbdata[[#This Row],[effsave]]-0.6*SUMIFS(tbl_twdbdata[effsave],tbl_twdbdata[Year],2020,tbl_twdbdata[utility],tbl_twdbdata[[#This Row],[utility]]))","v":173262385},9985,137,1996,0,716398309,145751027,2589132622,0,44814045,89027692,{"$f":"tbl_twdbdata[[#This Row],[utility]]&tbl_twdbdata[[#This Row],[Year]]","v":"SEGUIN2040"}]
[null,129,"SEGUIN","L",2050,23761,44921,285949118,{"$f":"IF(tbl_twdbdata[[#This Row],[Year]]=2016,0,tbl_twdbdata[[#This Row],[effsave]]-0.6*SUMIFS(tbl_twdbdata[effsave],tbl_twdbdata[Year],2020,tbl_twdbdata[utility],tbl_twdbdata[[#This Row],[utility]]))","v":224660882},11419,165,2399,0,819301114,166686573,2961033288,0,51251094,101815549,{"$f":"tbl_twdbdata[[#This Row],[utility]]&tbl_twdbdata[[#This Row],[Year]]","v":"SEGUIN2050"}]
[null,129,"SEGUIN","L",2060,23761,50664,327129848,{"$f":"IF(tbl_twdbdata[[#This Row],[Year]]=2016,0,tbl_twdbdata[[#This Row],[effsave]]-0.6*SUMIFS(tbl_twdbdata[effsave],tbl_twdbdata[Year],2020,tbl_twdbdata[utility],tbl_twdbdata[[#This Row],[utility]]))","v":265841612},12879,198,2883,0,924046028,187996895,3339591517,0,57803375,114832327,{"$f":"tbl_twdbdata[[#This Row],[utility]]&tbl_twdbdata[[#This Row],[Year]]","v":"SEGUIN2060"}]
[null,129,"SEGUIN","L",2070,23761,56302,365177587,{"$f":"IF(tbl_twdbdata[[#This Row],[Year]]=2016,0,tbl_twdbdata[[#This Row],[effsave]]-0.6*SUMIFS(tbl_twdbdata[effsave],tbl_twdbdata[Year],2020,tbl_twdbdata[utility],tbl_twdbdata[[#This Row],[utility]]))","v":303889351},14312,238,3466,0,1026875878,208917598,3711228516,0,64235860,127611118,{"$f":"tbl_twdbdata[[#This Row],[utility]]&tbl_twdbdata[[#This Row],[Year]]","v":"SEGUIN2070"}]
[null,3060,"SEIS LAGOS UD","C",2016,1599,1599,0,{"$f":"IF(tbl_twdbdata[[#This Row],[Year]]=2016,0,tbl_twdbdata[[#This Row],[effsave]]-0.6*SUMIFS(tbl_twdbdata[effsave],tbl_twdbdata[Year],2020,tbl_twdbdata[utility],tbl_twdbdata[[#This Row],[utility]]))","v":0},483,0,50,0,94952000,0,5928000,0,2283047,14656744,{"$f":"tbl_twdbdata[[#This Row],[utility]]&tbl_twdbdata[[#This Row],[Year]]","v":"SEIS LAGOS UD2016"}]
[null,3060,"SEIS LAGOS UD","C",2020,1540,2041,7151664,{"$f":"IF(tbl_twdbdata[[#This Row],[Year]]=2016,0,tbl_twdbdata[[#This Row],[effsave]]-0.6*SUMIFS(tbl_twdbdata[effsave],tbl_twdbdata[Year],2020,tbl_twdbdata[utility],tbl_twdbdata[[#This Row],[utility]]))","v":2860665.6000000006},640,0,66,0,125842229,0,7856525,0,3025779,19424944,{"$f":"tbl_twdbdata[[#This Row],[utility]]&tbl_twdbdata[[#This Row],[Year]]","v":"SEIS LAGOS UD2020"}]
[null,3060,"SEIS LAGOS UD","C",2030,1540,2041,8477702,{"$f":"IF(tbl_twdbdata[[#This Row],[Year]]=2016,0,tbl_twdbdata[[#This Row],[effsave]]-0.6*SUMIFS(tbl_twdbdata[effsave],tbl_twdbdata[Year],2020,tbl_twdbdata[utility],tbl_twdbdata[[#This Row],[utility]]))","v":4186703.6000000006},640,0,66,0,125842229,0,7856525,0,3025779,19424944,{"$f":"tbl_twdbdata[[#This Row],[utility]]&tbl_twdbdata[[#This Row],[Year]]","v":"SEIS LAGOS UD2030"}]
[null,3060,"SEIS LAGOS UD","C",2040,1540,2041,9274814,{"$f":"IF(tbl_twdbdata[[#This Row],[Year]]=2016,0,tbl_twdbdata[[#This Row],[effsave]]-0.6*SUMIFS(tbl_twdbdata[effsave],tbl_twdbdata[Year],2020,tbl_twdbdata[utility],tbl_twdbdata[[#This Row],[utility]]))","v":4983815.6000000006},640,0,66,0,125842229,0,7856525,0,3025779,19424944,{"$f":"tbl_twdbdata[[#This Row],[utility]]&tbl_twdbdata[[#This Row],[Year]]","v":"SEIS LAGOS UD2040"}]
[null,3060,"SEIS LAGOS UD","C",2050,1540,2124,10140401,{"$f":"IF(tbl_twdbdata[[#This Row],[Year]]=2016,0,tbl_twdbdata[[#This Row],[effsave]]-0.6*SUMIFS(tbl_twdbdata[effsave],tbl_twdbdata[Year],2020,tbl_twdbdata[utility],tbl_twdbdata[[#This Row],[utility]]))","v":5849402.6000000006},666,0,66,0,130959772,0,8176021,0,3148826,20214885,{"$f":"tbl_twdbdata[[#This Row],[utility]]&tbl_twdbdata[[#This Row],[Year]]","v":"SEIS LAGOS UD2050"}]
[null,3060,"SEIS LAGOS UD","C",2060,1540,2148,10403945,{"$f":"IF(tbl_twdbdata[[#This Row],[Year]]=2016,0,tbl_twdbdata[[#This Row],[effsave]]-0.6*SUMIFS(tbl_twdbdata[effsave],tbl_twdbdata[Year],2020,tbl_twdbdata[utility],tbl_twdbdata[[#This Row],[utility]]))","v":6112946.6000000006},674,0,66,0,132439543,0,8268406,0,3184406,20443302,{"$f":"tbl_twdbdata[[#This Row],[utility]]&tbl_twdbdata[[#This Row],[Year]]","v":"SEIS LAGOS UD2060"}]
[null,3060,"SEIS LAGOS UD","C",2070,1540,2148,10466667,{"$f":"IF(tbl_twdbdata[[#This Row],[Year]]=2016,0,tbl_twdbdata[[#This Row],[effsave]]-0.6*SUMIFS(tbl_twdbdata[effsave],tbl_twdbdata[Year],2020,tbl_twdbdata[utility],tbl_twdbdata[[#This Row],[utility]]))","v":6175668.6000000006},674,0,66,0,132439543,0,8268406,0,3184406,20443302,{"$f":"tbl_twdbdata[[#This Row],[utility]]&tbl_twdbdata[[#This Row],[Year]]","v":"SEIS LAGOS UD2070"}]
[null,2344,"SEMINOLE","O",2016,6750,6750,0,{"$f":"IF(tbl_twdbdata[[#This Row],[Year]]=2016,0,tbl_twdbdata[[#This Row],[effsave]]-0.6*SUMIFS(tbl_twdbdata[effsave],tbl_twdbdata[Year],2020,tbl_twdbdata[utility],tbl_twdbdata[[#This Row],[utility]]))","v":0},2447,10,373,0,317003410,13209486,110069631,0,6383444,64009565,{"$f":"tbl_twdbdata[[#This Row],[utility]]&tbl_twdbdata[[#This Row],[Year]]","v":"SEMINOLE2016"}]
[null,2344,"SEMINOLE","O",2020,6750,7102,25611232,{"$f":"IF(tbl_twdbdata[[#This Row],[Year]]=2016,0,tbl_twdbdata[[#This Row],[effsave]]-0.6*SUMIFS(tbl_twdbdata[effsave],tbl_twdbdata[Year],2020,tbl_twdbdata[utility],tbl_twdbdata[[#This Row],[utility]]))","v":10244492.800000001},2575,11,392,0,333534551,13898336,115809558,0,6716329,67347545,{"$f":"tbl_twdbdata[[#This Row],[utility]]&tbl_twdbdata[[#This Row],[Year]]","v":"SEMINOLE2020"}]
[null,2344,"SEMINOLE","O",2030,6750,7893,40995847,{"$f":"IF(tbl_twdbdata[[#This Row],[Year]]=2016,0,tbl_twdbdata[[#This Row],[effsave]]-0.6*SUMIFS(tbl_twdbdata[effsave],tbl_twdbdata[Year],2020,tbl_twdbdata[utility],tbl_twdbdata[[#This Row],[utility]]))","v":25629107.800000001},2862,12,436,0,370682654,15446292,128708088,0,7464374,74848518,{"$f":"tbl_twdbdata[[#This Row],[utility]]&tbl_twdbdata[[#This Row],[Year]]","v":"SEMINOLE2030"}]
[null,2344,"SEMINOLE","O",2040,6750,8834,55750049,{"$f":"IF(tbl_twdbdata[[#This Row],[Year]]=2016,0,tbl_twdbdata[[#This Row],[effsave]]-0.6*SUMIFS(tbl_twdbdata[effsave],tbl_twdbdata[Year],2020,tbl_twdbdata[utility],tbl_twdbdata[[#This Row],[utility]]))","v":40383309.799999997},3203,13,485,0,414875278,17287792,144052610,0,8354273,83771926,{"$f":"tbl_twdbdata[[#This Row],[utility]]&tbl_twdbdata[[#This Row],[Year]]","v":"SEMINOLE2040"}]
[null,2344,"SEMINOLE","O",2050,6750,9855,67517098,{"$f":"IF(tbl_twdbdata[[#This Row],[Year]]=2016,0,tbl_twdbdata[[#This Row],[effsave]]-0.6*SUMIFS(tbl_twdbdata[effsave],tbl_twdbdata[Year],2020,tbl_twdbdata[utility],tbl_twdbdata[[#This Row],[utility]]))","v":52150358.799999997},3573,14,539,0,462824979,19285849,160701661,0,9319828,93453965,{"$f":"tbl_twdbdata[[#This Row],[utility]]&tbl_twdbdata[[#This Row],[Year]]","v":"SEMINOLE2050"}]
[null,2344,"SEMINOLE","O",2060,6750,10648,74038206,{"$f":"IF(tbl_twdbdata[[#This Row],[Year]]=2016,0,tbl_twdbdata[[#This Row],[effsave]]-0.6*SUMIFS(tbl_twdbdata[effsave],tbl_twdbdata[Year],2020,tbl_twdbdata[utility],tbl_twdbdata[[#This Row],[utility]]))","v":58671466.799999997},3861,16,599,0,500067009,20837719,173632804,0,10069764,100973904,{"$f":"tbl_twdbdata[[#This Row],[utility]]&tbl_twdbdata[[#This Row],[Year]]","v":"SEMINOLE2060"}]
[null,2344,"SEMINOLE","O",2070,6750,11475,80081730,{"$f":"IF(tbl_twdbdata[[#This Row],[Year]]=2016,0,tbl_twdbdata[[#This Row],[effsave]]-0.6*SUMIFS(tbl_twdbdata[effsave],tbl_twdbdata[Year],2020,tbl_twdbdata[utility],tbl_twdbdata[[#This Row],[utility]]))","v":64714990.799999997},4161,18,666,0,538905797,22456126,187118372,0,10851854,108816261,{"$f":"tbl_twdbdata[[#This Row],[utility]]&tbl_twdbdata[[#This Row],[Year]]","v":"SEMINOLE2070"}]
[null,6518,"SEQUOIA IMPROVEMENT DISTRICT","H",2016,1134,1134,0,{"$f":"IF(tbl_twdbdata[[#This Row],[Year]]=2016,0,tbl_twdbdata[[#This Row],[effsave]]-0.6*SUMIFS(tbl_twdbdata[effsave],tbl_twdbdata[Year],2020,tbl_twdbdata[utility],tbl_twdbdata[[#This Row],[utility]]))","v":0},372,0,7,1,26803000,0,798000,0,null,null,{"$f":"tbl_twdbdata[[#This Row],[utility]]&tbl_twdbdata[[#This Row],[Year]]","v":"SEQUOIA IMPROVEMENT DISTRICT2016"}]
[null,6518,"SEQUOIA IMPROVEMENT DISTRICT","H",2020,968,1026,3295512,{"$f":"IF(tbl_twdbdata[[#This Row],[Year]]=2016,0,tbl_twdbdata[[#This Row],[effsave]]-0.6*SUMIFS(tbl_twdbdata[effsave],tbl_twdbdata[Year],2020,tbl_twdbdata[utility],tbl_twdbdata[[#This Row],[utility]]))","v":1318204.8},394,0,7,1,28408965,0,845814,0,null,null,{"$f":"tbl_twdbdata[[#This Row],[utility]]&tbl_twdbdata[[#This Row],[Year]]","v":"SEQUOIA IMPROVEMENT DISTRICT2020"}]
[null,6518,"SEQUOIA IMPROVEMENT DISTRICT","H",2030,968,1102,4637712,{"$f":"IF(tbl_twdbdata[[#This Row],[Year]]=2016,0,tbl_twdbdata[[#This Row],[effsave]]-0.6*SUMIFS(tbl_twdbdata[effsave],tbl_twdbdata[Year],2020,tbl_twdbdata[utility],tbl_twdbdata[[#This Row],[utility]]))","v":2660404.7999999998},423,0,7,1,30513333,0,908467,0,null,null,{"$f":"tbl_twdbdata[[#This Row],[utility]]&tbl_twdbdata[[#This Row],[Year]]","v":"SEQUOIA IMPROVEMENT DISTRICT2030"}]
[null,6518,"SEQUOIA IMPROVEMENT DISTRICT","H",2040,968,1172,5693752,{"$f":"IF(tbl_twdbdata[[#This Row],[Year]]=2016,0,tbl_twdbdata[[#This Row],[effsave]]-0.6*SUMIFS(tbl_twdbdata[effsave],tbl_twdbdata[Year],2020,tbl_twdbdata[utility],tbl_twdbdata[[#This Row],[utility]]))","v":3716444.8},450,0,7,1,32451566,0,966174,0,null,null,{"$f":"tbl_twdbdata[[#This Row],[utility]]&tbl_twdbdata[[#This Row],[Year]]","v":"SEQUOIA IMPROVEMENT DISTRICT2040"}]
[null,6518,"SEQUOIA IMPROVEMENT DISTRICT","H",2050,968,1172,6091587,{"$f":"IF(tbl_twdbdata[[#This Row],[Year]]=2016,0,tbl_twdbdata[[#This Row],[effsave]]-0.6*SUMIFS(tbl_twdbdata[effsave],tbl_twdbdata[Year],2020,tbl_twdbdata[utility],tbl_twdbdata[[#This Row],[utility]]))","v":4114279.8},450,0,7,1,32451566,0,966174,0,null,null,{"$f":"tbl_twdbdata[[#This Row],[utility]]&tbl_twdbdata[[#This Row],[Year]]","v":"SEQUOIA IMPROVEMENT DISTRICT2050"}]
[null,6518,"SEQUOIA IMPROVEMENT DISTRICT","H",2060,968,1172,6202810,{"$f":"IF(tbl_twdbdata[[#This Row],[Year]]=2016,0,tbl_twdbdata[[#This Row],[effsave]]-0.6*SUMIFS(tbl_twdbdata[effsave],tbl_twdbdata[Year],2020,tbl_twdbdata[utility],tbl_twdbdata[[#This Row],[utility]]))","v":4225502.8},450,0,7,1,32451566,0,966174,0,null,null,{"$f":"tbl_twdbdata[[#This Row],[utility]]&tbl_twdbdata[[#This Row],[Year]]","v":"SEQUOIA IMPROVEMENT DISTRICT2060"}]
[null,6518,"SEQUOIA IMPROVEMENT DISTRICT","H",2070,968,1172,6224199,{"$f":"IF(tbl_twdbdata[[#This Row],[Year]]=2016,0,tbl_twdbdata[[#This Row],[effsave]]-0.6*SUMIFS(tbl_twdbdata[effsave],tbl_twdbdata[Year],2020,tbl_twdbdata[utility],tbl_twdbdata[[#This Row],[utility]]))","v":4246891.8},450,0,7,1,32451566,0,966174,0,null,null,{"$f":"tbl_twdbdata[[#This Row],[utility]]&tbl_twdbdata[[#This Row],[Year]]","v":"SEQUOIA IMPROVEMENT DISTRICT2070"}]
[null,2349,"SHALLOWATER","O",2016,2800,2800,0,{"$f":"IF(tbl_twdbdata[[#This Row],[Year]]=2016,0,tbl_twdbdata[[#This Row],[effsave]]-0.6*SUMIFS(tbl_twdbdata[effsave],tbl_twdbdata[Year],2020,tbl_twdbdata[utility],tbl_twdbdata[[#This Row],[utility]]))","v":0},901,0,98,0,77110000,0,18629000,0,null,null,{"$f":"tbl_twdbdata[[#This Row],[utility]]&tbl_twdbdata[[#This Row],[Year]]","v":"SHALLOWATER2016"}]
[null,2349,"SHALLOWATER","O",2020,2669,2820,9675420,{"$f":"IF(tbl_twdbdata[[#This Row],[Year]]=2016,0,tbl_twdbdata[[#This Row],[effsave]]-0.6*SUMIFS(tbl_twdbdata[effsave],tbl_twdbdata[Year],2020,tbl_twdbdata[utility],tbl_twdbdata[[#This Row],[utility]]))","v":3870168},952,0,104,0,81472537,0,19682945,0,null,null,{"$f":"tbl_twdbdata[[#This Row],[utility]]&tbl_twdbdata[[#This Row],[Year]]","v":"SHALLOWATER2020"}]
[null,2349,"SHALLOWATER","O",2030,2669,3192,15472262,{"$f":"IF(tbl_twdbdata[[#This Row],[Year]]=2016,0,tbl_twdbdata[[#This Row],[effsave]]-0.6*SUMIFS(tbl_twdbdata[effsave],tbl_twdbdata[Year],2020,tbl_twdbdata[utility],tbl_twdbdata[[#This Row],[utility]]))","v":9667010},1078,0,118,0,92219978,0,22279419,0,null,null,{"$f":"tbl_twdbdata[[#This Row],[utility]]&tbl_twdbdata[[#This Row],[Year]]","v":"SHALLOWATER2030"}]
[null,2349,"SHALLOWATER","O",2040,2669,3562,20568057,{"$f":"IF(tbl_twdbdata[[#This Row],[Year]]=2016,0,tbl_twdbdata[[#This Row],[effsave]]-0.6*SUMIFS(tbl_twdbdata[effsave],tbl_twdbdata[Year],2020,tbl_twdbdata[utility],tbl_twdbdata[[#This Row],[utility]]))","v":14762805},1203,0,134,0,102909637,0,24861933,0,null,null,{"$f":"tbl_twdbdata[[#This Row],[utility]]&tbl_twdbdata[[#This Row],[Year]]","v":"SHALLOWATER2040"}]
[null,2349,"SHALLOWATER","O",2050,2669,3956,24648056,{"$f":"IF(tbl_twdbdata[[#This Row],[Year]]=2016,0,tbl_twdbdata[[#This Row],[effsave]]-0.6*SUMIFS(tbl_twdbdata[effsave],tbl_twdbdata[Year],2020,tbl_twdbdata[utility],tbl_twdbdata[[#This Row],[utility]]))","v":18842804},1336,0,152,0,114292679,0,27611962,0,null,null,{"$f":"tbl_twdbdata[[#This Row],[utility]]&tbl_twdbdata[[#This Row],[Year]]","v":"SHALLOWATER2050"}]
[null,2349,"SHALLOWATER","O",2060,2669,4334,27446139,{"$f":"IF(tbl_twdbdata[[#This Row],[Year]]=2016,0,tbl_twdbdata[[#This Row],[effsave]]-0.6*SUMIFS(tbl_twdbdata[effsave],tbl_twdbdata[Year],2020,tbl_twdbdata[utility],tbl_twdbdata[[#This Row],[utility]]))","v":21640887},1464,0,172,0,125213466,0,30250314,0,null,null,{"$f":"tbl_twdbdata[[#This Row],[utility]]&tbl_twdbdata[[#This Row],[Year]]","v":"SHALLOWATER2060"}]
[null,2349,"SHALLOWATER","O",2070,2669,4709,29958423,{"$f":"IF(tbl_twdbdata[[#This Row],[Year]]=2016,0,tbl_twdbdata[[#This Row],[effsave]]-0.6*SUMIFS(tbl_twdbdata[effsave],tbl_twdbdata[Year],2020,tbl_twdbdata[utility],tbl_twdbdata[[#This Row],[utility]]))","v":24153171},1591,0,195,0,136047580,0,32867727,0,null,null,{"$f":"tbl_twdbdata[[#This Row],[utility]]&tbl_twdbdata[[#This Row],[Year]]","v":"SHALLOWATER2070"}]
[null,131,"SHARYLAND WSC","M",2016,48741,52599,0,{"$f":"IF(tbl_twdbdata[[#This Row],[Year]]=2016,0,tbl_twdbdata[[#This Row],[effsave]]-0.6*SUMIFS(tbl_twdbdata[effsave],tbl_twdbdata[Year],2020,tbl_twdbdata[utility],tbl_twdbdata[[#This Row],[utility]]))","v":0},16432,0,1101,0,2282728584,0,366879416,0,39744120,144423880,{"$f":"tbl_twdbdata[[#This Row],[utility]]&tbl_twdbdata[[#This Row],[Year]]","v":"SHARYLAND WSC2016"}]
[null,131,"SHARYLAND WSC","M",2020,48741,72459,265797727,{"$f":"IF(tbl_twdbdata[[#This Row],[Year]]=2016,0,tbl_twdbdata[[#This Row],[effsave]]-0.6*SUMIFS(tbl_twdbdata[effsave],tbl_twdbdata[Year],2020,tbl_twdbdata[utility],tbl_twdbdata[[#This Row],[utility]]))","v":106319090.80000001},20760,0,1391,0,2883968240,0,463510463,0,50212181,182463165,{"$f":"tbl_twdbdata[[#This Row],[utility]]&tbl_twdbdata[[#This Row],[Year]]","v":"SHARYLAND WSC2020"}]
[null,131,"SHARYLAND WSC","M",2030,48741,89974,457796709,{"$f":"IF(tbl_twdbdata[[#This Row],[Year]]=2016,0,tbl_twdbdata[[#This Row],[effsave]]-0.6*SUMIFS(tbl_twdbdata[effsave],tbl_twdbdata[Year],2020,tbl_twdbdata[utility],tbl_twdbdata[[#This Row],[utility]]))","v":298318072.80000001},25778,0,1727,0,3581089422,0,575551559,0,62349615,226568691,{"$f":"tbl_twdbdata[[#This Row],[utility]]&tbl_twdbdata[[#This Row],[Year]]","v":"SHARYLAND WSC2030"}]
[null,131,"SHARYLAND WSC","M",2040,48741,107558,632064587,{"$f":"IF(tbl_twdbdata[[#This Row],[Year]]=2016,0,tbl_twdbdata[[#This Row],[effsave]]-0.6*SUMIFS(tbl_twdbdata[effsave],tbl_twdbdata[Year],2020,tbl_twdbdata[utility],tbl_twdbdata[[#This Row],[utility]]))","v":472585950.80000001},30816,0,2144,0,4280956899,0,688034039,0,74534864,270847970,{"$f":"tbl_twdbdata[[#This Row],[utility]]&tbl_twdbdata[[#This Row],[Year]]","v":"SHARYLAND WSC2040"}]
[null,131,"SHARYLAND WSC","M",2050,48741,125178,780384688,{"$f":"IF(tbl_twdbdata[[#This Row],[Year]]=2016,0,tbl_twdbdata[[#This Row],[effsave]]-0.6*SUMIFS(tbl_twdbdata[effsave],tbl_twdbdata[Year],2020,tbl_twdbdata[utility],tbl_twdbdata[[#This Row],[utility]]))","v":620906051.79999995},35864,0,2662,0,4982257226,0,800746806,0,86745060,315217903,{"$f":"tbl_twdbdata[[#This Row],[utility]]&tbl_twdbdata[[#This Row],[Year]]","v":"SHARYLAND WSC2050"}]
[null,131,"SHARYLAND WSC","M",2060,48741,142798,902219184,{"$f":"IF(tbl_twdbdata[[#This Row],[Year]]=2016,0,tbl_twdbdata[[#This Row],[effsave]]-0.6*SUMIFS(tbl_twdbdata[effsave],tbl_twdbdata[Year],2020,tbl_twdbdata[utility],tbl_twdbdata[[#This Row],[utility]]))","v":742740547.79999995},40912,0,3305,0,5683557553,0,913459573,0,98955256,359587836,{"$f":"tbl_twdbdata[[#This Row],[utility]]&tbl_twdbdata[[#This Row],[Year]]","v":"SHARYLAND WSC2060"}]
[null,131,"SHARYLAND WSC","M",2070,48741,159928,1015118991,{"$f":"IF(tbl_twdbdata[[#This Row],[Year]]=2016,0,tbl_twdbdata[[#This Row],[effsave]]-0.6*SUMIFS(tbl_twdbdata[effsave],tbl_twdbdata[Year],2020,tbl_twdbdata[utility],tbl_twdbdata[[#This Row],[utility]]))","v":855640354.79999995},45820,0,4104,0,6365355203,0,1023037876,0,110825895,402723872,{"$f":"tbl_twdbdata[[#This Row],[utility]]&tbl_twdbdata[[#This Row],[Year]]","v":"SHARYLAND WSC2070"}]
[null,2355,"SHERMAN","C",2016,40667,40667,0,{"$f":"IF(tbl_twdbdata[[#This Row],[Year]]=2016,0,tbl_twdbdata[[#This Row],[effsave]]-0.6*SUMIFS(tbl_twdbdata[effsave],tbl_twdbdata[Year],2020,tbl_twdbdata[utility],tbl_twdbdata[[#This Row],[utility]]))","v":0},12075,4774,1758,0,847048552,246538681,1910713994,0,33243162,310484826,{"$f":"tbl_twdbdata[[#This Row],[utility]]&tbl_twdbdata[[#This Row],[Year]]","v":"SHERMAN2016"}]
[null,2355,"SHERMAN","C",2020,40078,43522,150912535,{"$f":"IF(tbl_twdbdata[[#This Row],[Year]]=2016,0,tbl_twdbdata[[#This Row],[effsave]]-0.6*SUMIFS(tbl_twdbdata[effsave],tbl_twdbdata[Year],2020,tbl_twdbdata[utility],tbl_twdbdata[[#This Row],[utility]]))","v":60365014},13113,5184,1909,0,919837494,267724349,2074906294,0,36099828,337165542,{"$f":"tbl_twdbdata[[#This Row],[utility]]&tbl_twdbdata[[#This Row],[Year]]","v":"SHERMAN2020"}]
[null,2355,"SHERMAN","C",2030,40078,45675,219228581,{"$f":"IF(tbl_twdbdata[[#This Row],[Year]]=2016,0,tbl_twdbdata[[#This Row],[effsave]]-0.6*SUMIFS(tbl_twdbdata[effsave],tbl_twdbdata[Year],2020,tbl_twdbdata[utility],tbl_twdbdata[[#This Row],[utility]]))","v":128681060},13762,5440,2004,0,965341150,280968467,2177550319,0,37885659,353844863,{"$f":"tbl_twdbdata[[#This Row],[utility]]&tbl_twdbdata[[#This Row],[Year]]","v":"SHERMAN2030"}]
[null,2355,"SHERMAN","C",2040,40078,46749,273526062,{"$f":"IF(tbl_twdbdata[[#This Row],[Year]]=2016,0,tbl_twdbdata[[#This Row],[effsave]]-0.6*SUMIFS(tbl_twdbdata[effsave],tbl_twdbdata[Year],2020,tbl_twdbdata[utility],tbl_twdbdata[[#This Row],[utility]]))","v":182978541},14086,5709,2104,0,988040141,287575148,2228753145,0,38776501,362165156,{"$f":"tbl_twdbdata[[#This Row],[utility]]&tbl_twdbdata[[#This Row],[Year]]","v":"SHERMAN2040"}]
[null,2355,"SHERMAN","C",2050,40078,50692,323980176,{"$f":"IF(tbl_twdbdata[[#This Row],[Year]]=2016,0,tbl_twdbdata[[#This Row],[effsave]]-0.6*SUMIFS(tbl_twdbdata[effsave],tbl_twdbdata[Year],2020,tbl_twdbdata[utility],tbl_twdbdata[[#This Row],[utility]]))","v":233432655},15274,5991,2208,0,1071375448,311830401,2416735212,0,42047068,392711632,{"$f":"tbl_twdbdata[[#This Row],[utility]]&tbl_twdbdata[[#This Row],[Year]]","v":"SHERMAN2050"}]
[null,2355,"SHERMAN","C",2060,40078,66937,438310170,{"$f":"IF(tbl_twdbdata[[#This Row],[Year]]=2016,0,tbl_twdbdata[[#This Row],[effsave]]-0.6*SUMIFS(tbl_twdbdata[effsave],tbl_twdbdata[Year],2020,tbl_twdbdata[utility],tbl_twdbdata[[#This Row],[utility]]))","v":347762649},20169,6287,2317,0,1414713532,411761058,3191213700,0,55521672,518561874,{"$f":"tbl_twdbdata[[#This Row],[utility]]&tbl_twdbdata[[#This Row],[Year]]","v":"SHERMAN2060"}]
[null,2355,"SHERMAN","C",2070,40078,102574,679527107,{"$f":"IF(tbl_twdbdata[[#This Row],[Year]]=2016,0,tbl_twdbdata[[#This Row],[effsave]]-0.6*SUMIFS(tbl_twdbdata[effsave],tbl_twdbdata[Year],2020,tbl_twdbdata[utility],tbl_twdbdata[[#This Row],[utility]]))","v":588979586},30907,6598,2432,0,2167901547,630981053,4890203537,0,85081196,794642211,{"$f":"tbl_twdbdata[[#This Row],[utility]]&tbl_twdbdata[[#This Row],[Year]]","v":"SHERMAN2070"}]
[null,2984,"SMITH COUNTY MUD 1","D",2016,2343,2343,0,{"$f":"IF(tbl_twdbdata[[#This Row],[Year]]=2016,0,tbl_twdbdata[[#This Row],[effsave]]-0.6*SUMIFS(tbl_twdbdata[effsave],tbl_twdbdata[Year],2020,tbl_twdbdata[utility],tbl_twdbdata[[#This Row],[utility]]))","v":0},615,0,152,0,31448026,0,207068617,0,null,null,{"$f":"tbl_twdbdata[[#This Row],[utility]]&tbl_twdbdata[[#This Row],[Year]]","v":"SMITH COUNTY MUD 12016"}]
[null,2984,"SMITH COUNTY MUD 1","D",2020,2343,2033,6255439,{"$f":"IF(tbl_twdbdata[[#This Row],[Year]]=2016,0,tbl_twdbdata[[#This Row],[effsave]]-0.6*SUMIFS(tbl_twdbdata[effsave],tbl_twdbdata[Year],2020,tbl_twdbdata[utility],tbl_twdbdata[[#This Row],[utility]]))","v":2502175.6},534,0,131,0,27287169,0,179671575,0,null,null,{"$f":"tbl_twdbdata[[#This Row],[utility]]&tbl_twdbdata[[#This Row],[Year]]","v":"SMITH COUNTY MUD 12020"}]
[null,2984,"SMITH COUNTY MUD 1","D",2030,2343,2320,9755136,{"$f":"IF(tbl_twdbdata[[#This Row],[Year]]=2016,0,tbl_twdbdata[[#This Row],[effsave]]-0.6*SUMIFS(tbl_twdbdata[effsave],tbl_twdbdata[Year],2020,tbl_twdbdata[utility],tbl_twdbdata[[#This Row],[utility]]))","v":6001872.5999999996},609,0,150,0,31139317,0,205035935,0,null,null,{"$f":"tbl_twdbdata[[#This Row],[utility]]&tbl_twdbdata[[#This Row],[Year]]","v":"SMITH COUNTY MUD 12030"}]
[null,2984,"SMITH COUNTY MUD 1","D",2040,2343,2646,12970560,{"$f":"IF(tbl_twdbdata[[#This Row],[Year]]=2016,0,tbl_twdbdata[[#This Row],[effsave]]-0.6*SUMIFS(tbl_twdbdata[effsave],tbl_twdbdata[Year],2020,tbl_twdbdata[utility],tbl_twdbdata[[#This Row],[utility]]))","v":9217296.5999999996},695,0,172,0,35514928,0,233847019,0,null,null,{"$f":"tbl_twdbdata[[#This Row],[utility]]&tbl_twdbdata[[#This Row],[Year]]","v":"SMITH COUNTY MUD 12040"}]
[null,2984,"SMITH COUNTY MUD 1","D",2050,2343,3025,15899400,{"$f":"IF(tbl_twdbdata[[#This Row],[Year]]=2016,0,tbl_twdbdata[[#This Row],[effsave]]-0.6*SUMIFS(tbl_twdbdata[effsave],tbl_twdbdata[Year],2020,tbl_twdbdata[utility],tbl_twdbdata[[#This Row],[utility]]))","v":12146136.6},795,0,197,0,40601911,0,267342114,0,null,null,{"$f":"tbl_twdbdata[[#This Row],[utility]]&tbl_twdbdata[[#This Row],[Year]]","v":"SMITH COUNTY MUD 12050"}]
[null,2984,"SMITH COUNTY MUD 1","D",2060,2343,3476,18650478,{"$f":"IF(tbl_twdbdata[[#This Row],[Year]]=2016,0,tbl_twdbdata[[#This Row],[effsave]]-0.6*SUMIFS(tbl_twdbdata[effsave],tbl_twdbdata[Year],2020,tbl_twdbdata[utility],tbl_twdbdata[[#This Row],[utility]]))","v":14897214.6},914,0,225,0,46655287,0,307200393,0,null,null,{"$f":"tbl_twdbdata[[#This Row],[utility]]&tbl_twdbdata[[#This Row],[Year]]","v":"SMITH COUNTY MUD 12060"}]
[null,2984,"SMITH COUNTY MUD 1","D",2070,2343,4008,21665845,{"$f":"IF(tbl_twdbdata[[#This Row],[Year]]=2016,0,tbl_twdbdata[[#This Row],[effsave]]-0.6*SUMIFS(tbl_twdbdata[effsave],tbl_twdbdata[Year],2020,tbl_twdbdata[utility],tbl_twdbdata[[#This Row],[utility]]))","v":17912581.600000001},1054,0,256,0,53795855,0,354217254,0,null,null,{"$f":"tbl_twdbdata[[#This Row],[utility]]&tbl_twdbdata[[#This Row],[Year]]","v":"SMITH COUNTY MUD 12070"}]
[null,2370,"SNYDER","F",2016,11202,11202,0,{"$f":"IF(tbl_twdbdata[[#This Row],[Year]]=2016,0,tbl_twdbdata[[#This Row],[effsave]]-0.6*SUMIFS(tbl_twdbdata[effsave],tbl_twdbdata[Year],2020,tbl_twdbdata[utility],tbl_twdbdata[[#This Row],[utility]]))","v":0},3792,0,702,0,235845300,0,225220700,0,null,null,{"$f":"tbl_twdbdata[[#This Row],[utility]]&tbl_twdbdata[[#This Row],[Year]]","v":"SNYDER2016"}]
[null,2370,"SNYDER","F",2020,11202,13307,54301875,{"$f":"IF(tbl_twdbdata[[#This Row],[Year]]=2016,0,tbl_twdbdata[[#This Row],[effsave]]-0.6*SUMIFS(tbl_twdbdata[effsave],tbl_twdbdata[Year],2020,tbl_twdbdata[utility],tbl_twdbdata[[#This Row],[utility]]))","v":21720750},4458,0,825,0,277292225,0,264800482,0,null,null,{"$f":"tbl_twdbdata[[#This Row],[utility]]&tbl_twdbdata[[#This Row],[Year]]","v":"SNYDER2020"}]
[null,2370,"SNYDER","F",2030,11202,15307,87381540,{"$f":"IF(tbl_twdbdata[[#This Row],[Year]]=2016,0,tbl_twdbdata[[#This Row],[effsave]]-0.6*SUMIFS(tbl_twdbdata[effsave],tbl_twdbdata[Year],2020,tbl_twdbdata[utility],tbl_twdbdata[[#This Row],[utility]]))","v":54800415},5128,0,950,0,318968369,0,304599157,0,null,null,{"$f":"tbl_twdbdata[[#This Row],[utility]]&tbl_twdbdata[[#This Row],[Year]]","v":"SNYDER2030"}]
[null,2370,"SNYDER","F",2040,11202,16500,111175350,{"$f":"IF(tbl_twdbdata[[#This Row],[Year]]=2016,0,tbl_twdbdata[[#This Row],[effsave]]-0.6*SUMIFS(tbl_twdbdata[effsave],tbl_twdbdata[Year],2020,tbl_twdbdata[utility],tbl_twdbdata[[#This Row],[utility]]))","v":78594225},5528,0,1093,0,343828189,0,328339066,0,null,null,{"$f":"tbl_twdbdata[[#This Row],[utility]]&tbl_twdbdata[[#This Row],[Year]]","v":"SNYDER2040"}]
[null,2370,"SNYDER","F",2050,11202,17855,124019937,{"$f":"IF(tbl_twdbdata[[#This Row],[Year]]=2016,0,tbl_twdbdata[[#This Row],[effsave]]-0.6*SUMIFS(tbl_twdbdata[effsave],tbl_twdbdata[Year],2020,tbl_twdbdata[utility],tbl_twdbdata[[#This Row],[utility]]))","v":91438812},5982,0,1257,0,372063777,0,355302668,0,null,null,{"$f":"tbl_twdbdata[[#This Row],[utility]]&tbl_twdbdata[[#This Row],[Year]]","v":"SNYDER2050"}]
[null,2370,"SNYDER","F",2060,11202,19228,135451646,{"$f":"IF(tbl_twdbdata[[#This Row],[Year]]=2016,0,tbl_twdbdata[[#This Row],[effsave]]-0.6*SUMIFS(tbl_twdbdata[effsave],tbl_twdbdata[Year],2020,tbl_twdbdata[utility],tbl_twdbdata[[#This Row],[utility]]))","v":102870521},6442,0,1445,0,400674450,0,382624458,0,null,null,{"$f":"tbl_twdbdata[[#This Row],[utility]]&tbl_twdbdata[[#This Row],[Year]]","v":"SNYDER2060"}]
[null,2370,"SNYDER","F",2070,11202,20642,145939972,{"$f":"IF(tbl_twdbdata[[#This Row],[Year]]=2016,0,tbl_twdbdata[[#This Row],[effsave]]-0.6*SUMIFS(tbl_twdbdata[effsave],tbl_twdbdata[Year],2020,tbl_twdbdata[utility],tbl_twdbdata[[#This Row],[utility]]))","v":113358847},6916,0,1662,0,430139484,0,410762121,0,null,null,{"$f":"tbl_twdbdata[[#This Row],[utility]]&tbl_twdbdata[[#This Row],[Year]]","v":"SNYDER2070"}]
[null,6529,"SOMERVELL COUNTY WATER DISTRICT","G",2016,1440,1440,0,{"$f":"IF(tbl_twdbdata[[#This Row],[Year]]=2016,0,tbl_twdbdata[[#This Row],[effsave]]-0.6*SUMIFS(tbl_twdbdata[effsave],tbl_twdbdata[Year],2020,tbl_twdbdata[utility],tbl_twdbdata[[#This Row],[utility]]))","v":0},480,0,22,0,28657000,0,18579000,0,822410,17734375,{"$f":"tbl_twdbdata[[#This Row],[utility]]&tbl_twdbdata[[#This Row],[Year]]","v":"SOMERVELL COUNTY WATER DISTRICT2016"}]
[null,6529,"SOMERVELL COUNTY WATER DISTRICT","G",2020,422,1357,4665773,{"$f":"IF(tbl_twdbdata[[#This Row],[Year]]=2016,0,tbl_twdbdata[[#This Row],[effsave]]-0.6*SUMIFS(tbl_twdbdata[effsave],tbl_twdbdata[Year],2020,tbl_twdbdata[utility],tbl_twdbdata[[#This Row],[utility]]))","v":1866309.2000000002},1544,0,71,0,92150590,0,59743372,0,2644574,57027362,{"$f":"tbl_twdbdata[[#This Row],[utility]]&tbl_twdbdata[[#This Row],[Year]]","v":"SOMERVELL COUNTY WATER DISTRICT2020"}]
[null,6529,"SOMERVELL COUNTY WATER DISTRICT","G",2030,422,1516,7392622,{"$f":"IF(tbl_twdbdata[[#This Row],[Year]]=2016,0,tbl_twdbdata[[#This Row],[effsave]]-0.6*SUMIFS(tbl_twdbdata[effsave],tbl_twdbdata[Year],2020,tbl_twdbdata[utility],tbl_twdbdata[[#This Row],[utility]]))","v":4593158.2},1725,0,79,0,102947896,0,66743517,0,2954439,63709271,{"$f":"tbl_twdbdata[[#This Row],[utility]]&tbl_twdbdata[[#This Row],[Year]]","v":"SOMERVELL COUNTY WATER DISTRICT2030"}]
[null,6529,"SOMERVELL COUNTY WATER DISTRICT","G",2040,422,1631,9495274,{"$f":"IF(tbl_twdbdata[[#This Row],[Year]]=2016,0,tbl_twdbdata[[#This Row],[effsave]]-0.6*SUMIFS(tbl_twdbdata[effsave],tbl_twdbdata[Year],2020,tbl_twdbdata[utility],tbl_twdbdata[[#This Row],[utility]]))","v":6695810.2000000002},1856,0,88,0,110757268,0,71806515,0,3178555,68542098,{"$f":"tbl_twdbdata[[#This Row],[utility]]&tbl_twdbdata[[#This Row],[Year]]","v":"SOMERVELL COUNTY WATER DISTRICT2040"}]
[null,6529,"SOMERVELL COUNTY WATER DISTRICT","G",2050,422,1720,10829550,{"$f":"IF(tbl_twdbdata[[#This Row],[Year]]=2016,0,tbl_twdbdata[[#This Row],[effsave]]-0.6*SUMIFS(tbl_twdbdata[effsave],tbl_twdbdata[Year],2020,tbl_twdbdata[utility],tbl_twdbdata[[#This Row],[utility]]))","v":8030086.2000000002},1957,0,98,0,116801043,0,75724835,0,3352002,72282286,{"$f":"tbl_twdbdata[[#This Row],[utility]]&tbl_twdbdata[[#This Row],[Year]]","v":"SOMERVELL COUNTY WATER DISTRICT2050"}]
[null,6529,"SOMERVELL COUNTY WATER DISTRICT","G",2060,422,1794,11472271,{"$f":"IF(tbl_twdbdata[[#This Row],[Year]]=2016,0,tbl_twdbdata[[#This Row],[effsave]]-0.6*SUMIFS(tbl_twdbdata[effsave],tbl_twdbdata[Year],2020,tbl_twdbdata[utility],tbl_twdbdata[[#This Row],[utility]]))","v":8672807.1999999993},2041,0,109,0,121826204,0,78982764,0,3496216,75392105,{"$f":"tbl_twdbdata[[#This Row],[utility]]&tbl_twdbdata[[#This Row],[Year]]","v":"SOMERVELL COUNTY WATER DISTRICT2060"}]
[null,6529,"SOMERVELL COUNTY WATER DISTRICT","G",2070,422,1855,11896208,{"$f":"IF(tbl_twdbdata[[#This Row],[Year]]=2016,0,tbl_twdbdata[[#This Row],[effsave]]-0.6*SUMIFS(tbl_twdbdata[effsave],tbl_twdbdata[Year],2020,tbl_twdbdata[utility],tbl_twdbdata[[#This Row],[utility]]))","v":9096744.1999999993},2110,0,122,0,125968567,0,81668354,0,3615095,77955605,{"$f":"tbl_twdbdata[[#This Row],[utility]]&tbl_twdbdata[[#This Row],[Year]]","v":"SOMERVELL COUNTY WATER DISTRICT2070"}]
[null,2374,"SONORA","F",2016,3027,3027,0,{"$f":"IF(tbl_twdbdata[[#This Row],[Year]]=2016,0,tbl_twdbdata[[#This Row],[effsave]]-0.6*SUMIFS(tbl_twdbdata[effsave],tbl_twdbdata[Year],2020,tbl_twdbdata[utility],tbl_twdbdata[[#This Row],[utility]]))","v":0},1413,17,277,0,90000000,8000000,34645100,0,15720169,135861047,{"$f":"tbl_twdbdata[[#This Row],[utility]]&tbl_twdbdata[[#This Row],[Year]]","v":"SONORA2016"}]
[null,2374,"SONORA","F",2020,1813,2800,10046260,{"$f":"IF(tbl_twdbdata[[#This Row],[Year]]=2016,0,tbl_twdbdata[[#This Row],[effsave]]-0.6*SUMIFS(tbl_twdbdata[effsave],tbl_twdbdata[Year],2020,tbl_twdbdata[utility],tbl_twdbdata[[#This Row],[utility]]))","v":4018504},2182,26,428,0,138996139,12355212,53505946,0,24278253,209824011,{"$f":"tbl_twdbdata[[#This Row],[utility]]&tbl_twdbdata[[#This Row],[Year]]","v":"SONORA2020"}]
[null,2374,"SONORA","F",2030,1813,2999,15292051,{"$f":"IF(tbl_twdbdata[[#This Row],[Year]]=2016,0,tbl_twdbdata[[#This Row],[effsave]]-0.6*SUMIFS(tbl_twdbdata[effsave],tbl_twdbdata[Year],2020,tbl_twdbdata[utility],tbl_twdbdata[[#This Row],[utility]]))","v":9264295},2337,28,459,0,148874793,13233315,57308690,0,26003743,224736503,{"$f":"tbl_twdbdata[[#This Row],[utility]]&tbl_twdbdata[[#This Row],[Year]]","v":"SONORA2030"}]
[null,2374,"SONORA","F",2040,1813,3075,18934466,{"$f":"IF(tbl_twdbdata[[#This Row],[Year]]=2016,0,tbl_twdbdata[[#This Row],[effsave]]-0.6*SUMIFS(tbl_twdbdata[effsave],tbl_twdbdata[Year],2020,tbl_twdbdata[utility],tbl_twdbdata[[#This Row],[utility]]))","v":12906710},2396,30,491,0,152647545,13568671,58760994,0,26662724,230431726,{"$f":"tbl_twdbdata[[#This Row],[utility]]&tbl_twdbdata[[#This Row],[Year]]","v":"SONORA2040"}]
[null,2374,"SONORA","F",2050,1813,3133,21041228,{"$f":"IF(tbl_twdbdata[[#This Row],[Year]]=2016,0,tbl_twdbdata[[#This Row],[effsave]]-0.6*SUMIFS(tbl_twdbdata[effsave],tbl_twdbdata[Year],2020,tbl_twdbdata[utility],tbl_twdbdata[[#This Row],[utility]]))","v":15013472},2441,32,526,0,155526751,13824600,59869332,0,27165631,234778081,{"$f":"tbl_twdbdata[[#This Row],[utility]]&tbl_twdbdata[[#This Row],[Year]]","v":"SONORA2050"}]
[null,2374,"SONORA","F",2060,1813,3165,21579603,{"$f":"IF(tbl_twdbdata[[#This Row],[Year]]=2016,0,tbl_twdbdata[[#This Row],[effsave]]-0.6*SUMIFS(tbl_twdbdata[effsave],tbl_twdbdata[Year],2020,tbl_twdbdata[utility],tbl_twdbdata[[#This Row],[utility]]))","v":15551847},2466,34,563,0,157115278,13965802,60480829,0,27443097,237176070,{"$f":"tbl_twdbdata[[#This Row],[utility]]&tbl_twdbdata[[#This Row],[Year]]","v":"SONORA2060"}]
[null,2374,"SONORA","F",2070,1813,3183,21725567,{"$f":"IF(tbl_twdbdata[[#This Row],[Year]]=2016,0,tbl_twdbdata[[#This Row],[effsave]]-0.6*SUMIFS(tbl_twdbdata[effsave],tbl_twdbdata[Year],2020,tbl_twdbdata[utility],tbl_twdbdata[[#This Row],[utility]]))","v":15697811},2480,36,603,0,158008825,14045228,60824796,0,27599171,238524939,{"$f":"tbl_twdbdata[[#This Row],[utility]]&tbl_twdbdata[[#This Row],[Year]]","v":"SONORA2070"}]
[null,2377,"SOUTH HOUSTON","H",2016,17397,17397,0,{"$f":"IF(tbl_twdbdata[[#This Row],[Year]]=2016,0,tbl_twdbdata[[#This Row],[effsave]]-0.6*SUMIFS(tbl_twdbdata[effsave],tbl_twdbdata[Year],2020,tbl_twdbdata[utility],tbl_twdbdata[[#This Row],[utility]]))","v":0},2302,878,1420,0,217719730,89412620,139930750,0,9909394,113278617,{"$f":"tbl_twdbdata[[#This Row],[utility]]&tbl_twdbdata[[#This Row],[Year]]","v":"SOUTH HOUSTON2016"}]
[null,2377,"SOUTH HOUSTON","H",2020,15456,16774,53694413,{"$f":"IF(tbl_twdbdata[[#This Row],[Year]]=2016,0,tbl_twdbdata[[#This Row],[effsave]]-0.6*SUMIFS(tbl_twdbdata[effsave],tbl_twdbdata[Year],2020,tbl_twdbdata[utility],tbl_twdbdata[[#This Row],[utility]]))","v":21477765.200000003},2498,953,1541,0,236285633,97037221,151863251,0,10754411,122938375,{"$f":"tbl_twdbdata[[#This Row],[utility]]&tbl_twdbdata[[#This Row],[Year]]","v":"SOUTH HOUSTON2020"}]
[null,2377,"SOUTH HOUSTON","H",2030,15456,17346,81167138,{"$f":"IF(tbl_twdbdata[[#This Row],[Year]]=2016,0,tbl_twdbdata[[#This Row],[effsave]]-0.6*SUMIFS(tbl_twdbdata[effsave],tbl_twdbdata[Year],2020,tbl_twdbdata[utility],tbl_twdbdata[[#This Row],[utility]]))","v":48950490.200000003},2583,985,1593,0,244343066,100346228,157041847,0,11121141,127130622,{"$f":"tbl_twdbdata[[#This Row],[utility]]&tbl_twdbdata[[#This Row],[Year]]","v":"SOUTH HOUSTON2030"}]
[null,2377,"SOUTH HOUSTON","H",2040,15456,17937,104817550,{"$f":"IF(tbl_twdbdata[[#This Row],[Year]]=2016,0,tbl_twdbdata[[#This Row],[effsave]]-0.6*SUMIFS(tbl_twdbdata[effsave],tbl_twdbdata[Year],2020,tbl_twdbdata[utility],tbl_twdbdata[[#This Row],[utility]]))","v":72600902.200000003},2671,1019,1647,0,252668141,103765150,162392460,0,11500052,131462122,{"$f":"tbl_twdbdata[[#This Row],[utility]]&tbl_twdbdata[[#This Row],[Year]]","v":"SOUTH HOUSTON2040"}]
[null,2377,"SOUTH HOUSTON","H",2050,15456,18551,119848736,{"$f":"IF(tbl_twdbdata[[#This Row],[Year]]=2016,0,tbl_twdbdata[[#This Row],[effsave]]-0.6*SUMIFS(tbl_twdbdata[effsave],tbl_twdbdata[Year],2020,tbl_twdbdata[utility],tbl_twdbdata[[#This Row],[utility]]))","v":87632088.200000003},2762,1054,1703,0,261317204,107317126,167951303,0,11893709,135962191,{"$f":"tbl_twdbdata[[#This Row],[utility]]&tbl_twdbdata[[#This Row],[Year]]","v":"SOUTH HOUSTON2050"}]
[null,2377,"SOUTH HOUSTON","H",2060,15456,19186,126332136,{"$f":"IF(tbl_twdbdata[[#This Row],[Year]]=2016,0,tbl_twdbdata[[#This Row],[effsave]]-0.6*SUMIFS(tbl_twdbdata[effsave],tbl_twdbdata[Year],2020,tbl_twdbdata[utility],tbl_twdbdata[[#This Row],[utility]]))","v":94115488.200000003},2857,1090,1761,0,270262082,110990587,173700270,0,12300830,140616171,{"$f":"tbl_twdbdata[[#This Row],[utility]]&tbl_twdbdata[[#This Row],[Year]]","v":"SOUTH HOUSTON2060"}]
[null,2377,"SOUTH HOUSTON","H",2070,15456,19841,130934727,{"$f":"IF(tbl_twdbdata[[#This Row],[Year]]=2016,0,tbl_twdbdata[[#This Row],[effsave]]-0.6*SUMIFS(tbl_twdbdata[effsave],tbl_twdbdata[Year],2020,tbl_twdbdata[utility],tbl_twdbdata[[#This Row],[utility]]))","v":98718079.200000003},2955,1127,1821,0,279488688,114779748,179630306,0,12720774,145416733,{"$f":"tbl_twdbdata[[#This Row],[utility]]&tbl_twdbdata[[#This Row],[Year]]","v":"SOUTH HOUSTON2070"}]
[null,2381,"SOUTHERN MONTGOMERY COUNTY MUD","H",2016,10990,10990,0,{"$f":"IF(tbl_twdbdata[[#This Row],[Year]]=2016,0,tbl_twdbdata[[#This Row],[effsave]]-0.6*SUMIFS(tbl_twdbdata[effsave],tbl_twdbdata[Year],2020,tbl_twdbdata[utility],tbl_twdbdata[[#This Row],[utility]]))","v":0},1356,2498,482,0,111426000,132805000,144206000,0,7496626,203796493,{"$f":"tbl_twdbdata[[#This Row],[utility]]&tbl_twdbdata[[#This Row],[Year]]","v":"SOUTHERN MONTGOMERY COUNTY MUD2016"}]
[null,2381,"SOUTHERN MONTGOMERY COUNTY MUD","H",2020,10552,11437,34898862,{"$f":"IF(tbl_twdbdata[[#This Row],[Year]]=2016,0,tbl_twdbdata[[#This Row],[effsave]]-0.6*SUMIFS(tbl_twdbdata[effsave],tbl_twdbdata[Year],2020,tbl_twdbdata[utility],tbl_twdbdata[[#This Row],[utility]]))","v":13959544.800000001},1470,2708,522,0,120771338,143943403,156300609,0,8125371,220888977,{"$f":"tbl_twdbdata[[#This Row],[utility]]&tbl_twdbdata[[#This Row],[Year]]","v":"SOUTHERN MONTGOMERY COUNTY MUD2020"}]
[null,2381,"SOUTHERN MONTGOMERY COUNTY MUD","H",2030,10552,11864,50448694,{"$f":"IF(tbl_twdbdata[[#This Row],[Year]]=2016,0,tbl_twdbdata[[#This Row],[effsave]]-0.6*SUMIFS(tbl_twdbdata[effsave],tbl_twdbdata[Year],2020,tbl_twdbdata[utility],tbl_twdbdata[[#This Row],[utility]]))","v":29509376.800000001},1525,2809,541,0,125280332,149317525,162136087,0,8428731,229135859,{"$f":"tbl_twdbdata[[#This Row],[utility]]&tbl_twdbdata[[#This Row],[Year]]","v":"SOUTHERN MONTGOMERY COUNTY MUD2030"}]
[null,2381,"SOUTHERN MONTGOMERY COUNTY MUD","H",2040,10552,12158,62482394,{"$f":"IF(tbl_twdbdata[[#This Row],[Year]]=2016,0,tbl_twdbdata[[#This Row],[effsave]]-0.6*SUMIFS(tbl_twdbdata[effsave],tbl_twdbdata[Year],2020,tbl_twdbdata[utility],tbl_twdbdata[[#This Row],[utility]]))","v":41543076.799999997},1563,2914,561,0,128384885,153017740,166153957,0,8637602,234814040,{"$f":"tbl_twdbdata[[#This Row],[utility]]&tbl_twdbdata[[#This Row],[Year]]","v":"SOUTHERN MONTGOMERY COUNTY MUD2040"}]
[null,2381,"SOUTHERN MONTGOMERY COUNTY MUD","H",2050,10552,12395,69672295,{"$f":"IF(tbl_twdbdata[[#This Row],[Year]]=2016,0,tbl_twdbdata[[#This Row],[effsave]]-0.6*SUMIFS(tbl_twdbdata[effsave],tbl_twdbdata[Year],2020,tbl_twdbdata[utility],tbl_twdbdata[[#This Row],[utility]]))","v":48732977.799999997},1593,3023,582,0,130887535,156000566,169392852,0,8805978,239391349,{"$f":"tbl_twdbdata[[#This Row],[utility]]&tbl_twdbdata[[#This Row],[Year]]","v":"SOUTHERN MONTGOMERY COUNTY MUD2050"}]
[null,2381,"SOUTHERN MONTGOMERY COUNTY MUD","H",2060,10552,12585,72164278,{"$f":"IF(tbl_twdbdata[[#This Row],[Year]]=2016,0,tbl_twdbdata[[#This Row],[effsave]]-0.6*SUMIFS(tbl_twdbdata[effsave],tbl_twdbdata[Year],2020,tbl_twdbdata[utility],tbl_twdbdata[[#This Row],[utility]]))","v":51224960.799999997},1617,3136,604,0,132893879,158391861,171989435,0,8940963,243060922,{"$f":"tbl_twdbdata[[#This Row],[utility]]&tbl_twdbdata[[#This Row],[Year]]","v":"SOUTHERN MONTGOMERY COUNTY MUD2060"}]
[null,2381,"SOUTHERN MONTGOMERY COUNTY MUD","H",2070,10552,12783,73439613,{"$f":"IF(tbl_twdbdata[[#This Row],[Year]]=2016,0,tbl_twdbdata[[#This Row],[effsave]]-0.6*SUMIFS(tbl_twdbdata[effsave],tbl_twdbdata[Year],2020,tbl_twdbdata[utility],tbl_twdbdata[[#This Row],[utility]]))","v":52500295.799999997},1642,3253,627,0,134984700,160883843,174695347,0,9081631,246885003,{"$f":"tbl_twdbdata[[#This Row],[utility]]&tbl_twdbdata[[#This Row],[Year]]","v":"SOUTHERN MONTGOMERY COUNTY MUD2070"}]
[null,2382,"SOUTHERN UTILITIES","I",2016,58359,58359,0,{"$f":"IF(tbl_twdbdata[[#This Row],[Year]]=2016,0,tbl_twdbdata[[#This Row],[effsave]]-0.6*SUMIFS(tbl_twdbdata[effsave],tbl_twdbdata[Year],2020,tbl_twdbdata[utility],tbl_twdbdata[[#This Row],[utility]]))","v":0},19483,0,32,0,1902460000,0,13183000,0,null,null,{"$f":"tbl_twdbdata[[#This Row],[utility]]&tbl_twdbdata[[#This Row],[Year]]","v":"SOUTHERN UTILITIES2016"}]
[null,2382,"SOUTHERN UTILITIES","I",2020,47958,51624,176368234,{"$f":"IF(tbl_twdbdata[[#This Row],[Year]]=2016,0,tbl_twdbdata[[#This Row],[effsave]]-0.6*SUMIFS(tbl_twdbdata[effsave],tbl_twdbdata[Year],2020,tbl_twdbdata[utility],tbl_twdbdata[[#This Row],[utility]]))","v":70547293.600000009},20972,0,34,0,2047887632,0,14190733,0,null,null,{"$f":"tbl_twdbdata[[#This Row],[utility]]&tbl_twdbdata[[#This Row],[Year]]","v":"SOUTHERN UTILITIES2020"}]
[null,2382,"SOUTHERN UTILITIES","I",2030,47958,55649,271366784,{"$f":"IF(tbl_twdbdata[[#This Row],[Year]]=2016,0,tbl_twdbdata[[#This Row],[effsave]]-0.6*SUMIFS(tbl_twdbdata[effsave],tbl_twdbdata[Year],2020,tbl_twdbdata[utility],tbl_twdbdata[[#This Row],[utility]]))","v":165545843.60000002},22607,0,37,0,2207556540,0,15297150,0,null,null,{"$f":"tbl_twdbdata[[#This Row],[utility]]&tbl_twdbdata[[#This Row],[Year]]","v":"SOUTHERN UTILITIES2030"}]
[null,2382,"SOUTHERN UTILITIES","I",2040,47958,59991,356040586,{"$f":"IF(tbl_twdbdata[[#This Row],[Year]]=2016,0,tbl_twdbdata[[#This Row],[effsave]]-0.6*SUMIFS(tbl_twdbdata[effsave],tbl_twdbdata[Year],2020,tbl_twdbdata[utility],tbl_twdbdata[[#This Row],[utility]]))","v":250219645.60000002},24371,0,40,0,2379800614,0,16490707,0,null,null,{"$f":"tbl_twdbdata[[#This Row],[utility]]&tbl_twdbdata[[#This Row],[Year]]","v":"SOUTHERN UTILITIES2040"}]
[null,2382,"SOUTHERN UTILITIES","I",2050,47958,65463,423879471,{"$f":"IF(tbl_twdbdata[[#This Row],[Year]]=2016,0,tbl_twdbdata[[#This Row],[effsave]]-0.6*SUMIFS(tbl_twdbdata[effsave],tbl_twdbdata[Year],2020,tbl_twdbdata[utility],tbl_twdbdata[[#This Row],[utility]]))","v":318058530.60000002},26594,0,43,0,2596870991,0,17994885,0,null,null,{"$f":"tbl_twdbdata[[#This Row],[utility]]&tbl_twdbdata[[#This Row],[Year]]","v":"SOUTHERN UTILITIES2050"}]
[null,2382,"SOUTHERN UTILITIES","I",2060,47958,70936,467603018,{"$f":"IF(tbl_twdbdata[[#This Row],[Year]]=2016,0,tbl_twdbdata[[#This Row],[effsave]]-0.6*SUMIFS(tbl_twdbdata[effsave],tbl_twdbdata[Year],2020,tbl_twdbdata[utility],tbl_twdbdata[[#This Row],[utility]]))","v":361782077.60000002},28817,0,46,0,2813981037,0,19499338,0,null,null,{"$f":"tbl_twdbdata[[#This Row],[utility]]&tbl_twdbdata[[#This Row],[Year]]","v":"SOUTHERN UTILITIES2060"}]
[null,2382,"SOUTHERN UTILITIES","I",2070,47958,76996,509798216,{"$f":"IF(tbl_twdbdata[[#This Row],[Year]]=2016,0,tbl_twdbdata[[#This Row],[effsave]]-0.6*SUMIFS(tbl_twdbdata[effsave],tbl_twdbdata[Year],2020,tbl_twdbdata[utility],tbl_twdbdata[[#This Row],[utility]]))","v":403977275.60000002},31279,0,50,0,3054376958,0,21165149,0,null,null,{"$f":"tbl_twdbdata[[#This Row],[utility]]&tbl_twdbdata[[#This Row],[Year]]","v":"SOUTHERN UTILITIES2070"}]
[null,2383,"SOUTHLAKE","C",2016,28568,28568,0,{"$f":"IF(tbl_twdbdata[[#This Row],[Year]]=2016,0,tbl_twdbdata[[#This Row],[effsave]]-0.6*SUMIFS(tbl_twdbdata[effsave],tbl_twdbdata[Year],2020,tbl_twdbdata[utility],tbl_twdbdata[[#This Row],[utility]]))","v":0},9356,0,1366,0,2198915980,0,574809199,0,0,195303732,{"$f":"tbl_twdbdata[[#This Row],[utility]]&tbl_twdbdata[[#This Row],[Year]]","v":"SOUTHLAKE2016"}]
[null,2383,"SOUTHLAKE","C",2020,27964,27709,70088530,{"$f":"IF(tbl_twdbdata[[#This Row],[Year]]=2016,0,tbl_twdbdata[[#This Row],[effsave]]-0.6*SUMIFS(tbl_twdbdata[effsave],tbl_twdbdata[Year],2020,tbl_twdbdata[utility],tbl_twdbdata[[#This Row],[utility]]))","v":28035412},9271,0,1354,0,2178864357,0,569567590,0,0,193522783,{"$f":"tbl_twdbdata[[#This Row],[utility]]&tbl_twdbdata[[#This Row],[Year]]","v":"SOUTHLAKE2020"}]
[null,2383,"SOUTHLAKE","C",2030,27964,31192,105539692,{"$f":"IF(tbl_twdbdata[[#This Row],[Year]]=2016,0,tbl_twdbdata[[#This Row],[effsave]]-0.6*SUMIFS(tbl_twdbdata[effsave],tbl_twdbdata[Year],2020,tbl_twdbdata[utility],tbl_twdbdata[[#This Row],[utility]]))","v":63486574},10436,0,1524,0,2452745932,0,641161798,0,0,217848448,{"$f":"tbl_twdbdata[[#This Row],[utility]]&tbl_twdbdata[[#This Row],[Year]]","v":"SOUTHLAKE2030"}]
[null,2383,"SOUTHLAKE","C",2040,27964,36524,142644482,{"$f":"IF(tbl_twdbdata[[#This Row],[Year]]=2016,0,tbl_twdbdata[[#This Row],[effsave]]-0.6*SUMIFS(tbl_twdbdata[effsave],tbl_twdbdata[Year],2020,tbl_twdbdata[utility],tbl_twdbdata[[#This Row],[utility]]))","v":100591364},12220,0,1716,0,2872021429,0,750762808,0,0,255087738,{"$f":"tbl_twdbdata[[#This Row],[utility]]&tbl_twdbdata[[#This Row],[Year]]","v":"SOUTHLAKE2040"}]
[null,2383,"SOUTHLAKE","C",2050,27964,41900,175263510,{"$f":"IF(tbl_twdbdata[[#This Row],[Year]]=2016,0,tbl_twdbdata[[#This Row],[effsave]]-0.6*SUMIFS(tbl_twdbdata[effsave],tbl_twdbdata[Year],2020,tbl_twdbdata[utility],tbl_twdbdata[[#This Row],[utility]]))","v":133210392},14019,0,1932,0,3294756814,0,861268253,0,0,292634329,{"$f":"tbl_twdbdata[[#This Row],[utility]]&tbl_twdbdata[[#This Row],[Year]]","v":"SOUTHLAKE2050"}]
[null,2383,"SOUTHLAKE","C",2060,27964,47341,203379303,{"$f":"IF(tbl_twdbdata[[#This Row],[Year]]=2016,0,tbl_twdbdata[[#This Row],[effsave]]-0.6*SUMIFS(tbl_twdbdata[effsave],tbl_twdbdata[Year],2020,tbl_twdbdata[utility],tbl_twdbdata[[#This Row],[utility]]))","v":161326185},15839,0,2175,0,3722603397,0,973109794,0,0,330634887,{"$f":"tbl_twdbdata[[#This Row],[utility]]&tbl_twdbdata[[#This Row],[Year]]","v":"SOUTHLAKE2060"}]
[null,2383,"SOUTHLAKE","C",2070,27964,52848,228773707,{"$f":"IF(tbl_twdbdata[[#This Row],[Year]]=2016,0,tbl_twdbdata[[#This Row],[effsave]]-0.6*SUMIFS(tbl_twdbdata[effsave],tbl_twdbdata[Year],2020,tbl_twdbdata[utility],tbl_twdbdata[[#This Row],[utility]]))","v":186720589},17681,0,2448,0,4155639812,0,1086307987,0,0,369096397,{"$f":"tbl_twdbdata[[#This Row],[utility]]&tbl_twdbdata[[#This Row],[Year]]","v":"SOUTHLAKE2070"}]
[null,2391,"SPRING CREEK UD","H",2016,9997,10140,0,{"$f":"IF(tbl_twdbdata[[#This Row],[Year]]=2016,0,tbl_twdbdata[[#This Row],[effsave]]-0.6*SUMIFS(tbl_twdbdata[effsave],tbl_twdbdata[Year],2020,tbl_twdbdata[utility],tbl_twdbdata[[#This Row],[utility]]))","v":0},3437,0,40,59,232078000,0,31579000,17279000,12133367,29599979,{"$f":"tbl_twdbdata[[#This Row],[utility]]&tbl_twdbdata[[#This Row],[Year]]","v":"SPRING CREEK UD2016"}]
[null,2391,"SPRING CREEK UD","H",2020,9997,10802,28821356,{"$f":"IF(tbl_twdbdata[[#This Row],[Year]]=2016,0,tbl_twdbdata[[#This Row],[effsave]]-0.6*SUMIFS(tbl_twdbdata[effsave],tbl_twdbdata[Year],2020,tbl_twdbdata[utility],tbl_twdbdata[[#This Row],[utility]]))","v":11528542.400000002},3621,0,42,62,244528536,0,33273152,18205985,12784299,31187961,{"$f":"tbl_twdbdata[[#This Row],[utility]]&tbl_twdbdata[[#This Row],[Year]]","v":"SPRING CREEK UD2020"}]
[null,2391,"SPRING CREEK UD","H",2030,9997,11912,42087478,{"$f":"IF(tbl_twdbdata[[#This Row],[Year]]=2016,0,tbl_twdbdata[[#This Row],[effsave]]-0.6*SUMIFS(tbl_twdbdata[effsave],tbl_twdbdata[Year],2020,tbl_twdbdata[utility],tbl_twdbdata[[#This Row],[utility]]))","v":24794664.400000002},3993,0,47,68,269655982,0,36692259,20076809,14097998,34392797,{"$f":"tbl_twdbdata[[#This Row],[utility]]&tbl_twdbdata[[#This Row],[Year]]","v":"SPRING CREEK UD2030"}]
[null,2391,"SPRING CREEK UD","H",2040,9997,12569,50556289,{"$f":"IF(tbl_twdbdata[[#This Row],[Year]]=2016,0,tbl_twdbdata[[#This Row],[effsave]]-0.6*SUMIFS(tbl_twdbdata[effsave],tbl_twdbdata[Year],2020,tbl_twdbdata[utility],tbl_twdbdata[[#This Row],[utility]]))","v":33263475.400000002},4213,0,52,75,284528714,0,38716001,21184135,14875566,36289713,{"$f":"tbl_twdbdata[[#This Row],[utility]]&tbl_twdbdata[[#This Row],[Year]]","v":"SPRING CREEK UD2040"}]
[null,2391,"SPRING CREEK UD","H",2050,9997,13741,59332951,{"$f":"IF(tbl_twdbdata[[#This Row],[Year]]=2016,0,tbl_twdbdata[[#This Row],[effsave]]-0.6*SUMIFS(tbl_twdbdata[effsave],tbl_twdbdata[Year],2020,tbl_twdbdata[utility],tbl_twdbdata[[#This Row],[utility]]))","v":42040137.400000006},4606,0,57,83,311059675,0,42326086,23159456,16262642,39673558,{"$f":"tbl_twdbdata[[#This Row],[utility]]&tbl_twdbdata[[#This Row],[Year]]","v":"SPRING CREEK UD2050"}]
[null,2391,"SPRING CREEK UD","H",2060,9997,15195,67330565,{"$f":"IF(tbl_twdbdata[[#This Row],[Year]]=2016,0,tbl_twdbdata[[#This Row],[effsave]]-0.6*SUMIFS(tbl_twdbdata[effsave],tbl_twdbdata[Year],2020,tbl_twdbdata[utility],tbl_twdbdata[[#This Row],[utility]]))","v":50037751.400000006},5093,0,63,92,343974366,0,46804809,25610067,17983469,43871604,{"$f":"tbl_twdbdata[[#This Row],[utility]]&tbl_twdbdata[[#This Row],[Year]]","v":"SPRING CREEK UD2060"}]
[null,2391,"SPRING CREEK UD","H",2070,9997,15670,69721315,{"$f":"IF(tbl_twdbdata[[#This Row],[Year]]=2016,0,tbl_twdbdata[[#This Row],[effsave]]-0.6*SUMIFS(tbl_twdbdata[effsave],tbl_twdbdata[Year],2020,tbl_twdbdata[utility],tbl_twdbdata[[#This Row],[utility]]))","v":52428501.400000006},5252,0,69,101,354727102,0,48267941,26410645,18545637,45243043,{"$f":"tbl_twdbdata[[#This Row],[utility]]&tbl_twdbdata[[#This Row],[Year]]","v":"SPRING CREEK UD2070"}]
[null,134,"SPRINGS HILL WSC","L",2016,23331,23331,0,{"$f":"IF(tbl_twdbdata[[#This Row],[Year]]=2016,0,tbl_twdbdata[[#This Row],[effsave]]-0.6*SUMIFS(tbl_twdbdata[effsave],tbl_twdbdata[Year],2020,tbl_twdbdata[utility],tbl_twdbdata[[#This Row],[utility]]))","v":0},7125,577,71,1,499997900,44834900,81050700,271900,21695620,200992619,{"$f":"tbl_twdbdata[[#This Row],[utility]]&tbl_twdbdata[[#This Row],[Year]]","v":"SPRINGS HILL WSC2016"}]
[null,134,"SPRINGS HILL WSC","L",2020,22359,26444,91598049,{"$f":"IF(tbl_twdbdata[[#This Row],[Year]]=2016,0,tbl_twdbdata[[#This Row],[effsave]]-0.6*SUMIFS(tbl_twdbdata[effsave],tbl_twdbdata[Year],2020,tbl_twdbdata[utility],tbl_twdbdata[[#This Row],[utility]]))","v":36639219.600000001},8427,682,85,1,591347756,53026258,95858702,321576,25659420,237714067,{"$f":"tbl_twdbdata[[#This Row],[utility]]&tbl_twdbdata[[#This Row],[Year]]","v":"SPRINGS HILL WSC2020"}]
[null,134,"SPRINGS HILL WSC","L",2030,22359,30655,147360118,{"$f":"IF(tbl_twdbdata[[#This Row],[Year]]=2016,0,tbl_twdbdata[[#This Row],[effsave]]-0.6*SUMIFS(tbl_twdbdata[effsave],tbl_twdbdata[Year],2020,tbl_twdbdata[utility],tbl_twdbdata[[#This Row],[utility]]))","v":92401288.599999994},9769,791,99,1,685515257,61470275,111123450,372784,29745482,275568171,{"$f":"tbl_twdbdata[[#This Row],[utility]]&tbl_twdbdata[[#This Row],[Year]]","v":"SPRINGS HILL WSC2030"}]
[null,134,"SPRINGS HILL WSC","L",2040,22359,36538,204046461,{"$f":"IF(tbl_twdbdata[[#This Row],[Year]]=2016,0,tbl_twdbdata[[#This Row],[effsave]]-0.6*SUMIFS(tbl_twdbdata[effsave],tbl_twdbdata[Year],2020,tbl_twdbdata[utility],tbl_twdbdata[[#This Row],[utility]]))","v":149087631.59999999},11644,917,114,1,817072466,73267033,132449147,444325,35453936,328452449,{"$f":"tbl_twdbdata[[#This Row],[utility]]&tbl_twdbdata[[#This Row],[Year]]","v":"SPRINGS HILL WSC2040"}]
[null,134,"SPRINGS HILL WSC","L",2050,22359,42326,251818537,{"$f":"IF(tbl_twdbdata[[#This Row],[Year]]=2016,0,tbl_twdbdata[[#This Row],[effsave]]-0.6*SUMIFS(tbl_twdbdata[effsave],tbl_twdbdata[Year],2020,tbl_twdbdata[utility],tbl_twdbdata[[#This Row],[utility]]))","v":196859707.59999999},13489,1063,132,1,946505260,84873295,153430472,514711,41070209,380482740,{"$f":"tbl_twdbdata[[#This Row],[utility]]&tbl_twdbdata[[#This Row],[Year]]","v":"SPRINGS HILL WSC2050"}]
[null,134,"SPRINGS HILL WSC","L",2060,22359,48418,292481034,{"$f":"IF(tbl_twdbdata[[#This Row],[Year]]=2016,0,tbl_twdbdata[[#This Row],[effsave]]-0.6*SUMIFS(tbl_twdbdata[effsave],tbl_twdbdata[Year],2020,tbl_twdbdata[utility],tbl_twdbdata[[#This Row],[utility]]))","v":237522204.59999999},15430,1232,153,1,1082736183,97089146,175513789,588794,46981462,435245790,{"$f":"tbl_twdbdata[[#This Row],[utility]]&tbl_twdbdata[[#This Row],[Year]]","v":"SPRINGS HILL WSC2060"}]
[null,134,"SPRINGS HILL WSC","L",2070,22359,54204,329015570,{"$f":"IF(tbl_twdbdata[[#This Row],[Year]]=2016,0,tbl_twdbdata[[#This Row],[effsave]]-0.6*SUMIFS(tbl_twdbdata[effsave],tbl_twdbdata[Year],2020,tbl_twdbdata[utility],tbl_twdbdata[[#This Row],[utility]]))","v":274056740.60000002},17274,1428,177,1,1212124253,108691397,196487864,659155,52595794,487258102,{"$f":"tbl_twdbdata[[#This Row],[utility]]&tbl_twdbdata[[#This Row],[Year]]","v":"SPRINGS HILL WSC2070"}]
[null,2393,"SPRINGTOWN","C",2016,2670,2670,0,{"$f":"IF(tbl_twdbdata[[#This Row],[Year]]=2016,0,tbl_twdbdata[[#This Row],[effsave]]-0.6*SUMIFS(tbl_twdbdata[effsave],tbl_twdbdata[Year],2020,tbl_twdbdata[utility],tbl_twdbdata[[#This Row],[utility]]))","v":0},1056,10,226,0,47113500,3795000,27538000,0,1795450,35784185,{"$f":"tbl_twdbdata[[#This Row],[utility]]&tbl_twdbdata[[#This Row],[Year]]","v":"SPRINGTOWN2016"}]
[null,2393,"SPRINGTOWN","C",2020,1876,4068,16050904,{"$f":"IF(tbl_twdbdata[[#This Row],[Year]]=2016,0,tbl_twdbdata[[#This Row],[effsave]]-0.6*SUMIFS(tbl_twdbdata[effsave],tbl_twdbdata[Year],2020,tbl_twdbdata[utility],tbl_twdbdata[[#This Row],[utility]]))","v":6420361.5999999996},2290,22,490,0,102162963,8229243,59714597,0,3893332,77595983,{"$f":"tbl_twdbdata[[#This Row],[utility]]&tbl_twdbdata[[#This Row],[Year]]","v":"SPRINGTOWN2020"}]
[null,2393,"SPRINGTOWN","C",2030,1876,5484,28483622,{"$f":"IF(tbl_twdbdata[[#This Row],[Year]]=2016,0,tbl_twdbdata[[#This Row],[effsave]]-0.6*SUMIFS(tbl_twdbdata[effsave],tbl_twdbdata[Year],2020,tbl_twdbdata[utility],tbl_twdbdata[[#This Row],[utility]]))","v":18853079.600000001},3087,30,661,0,137724112,11093699,80500209,0,5248533,104605794,{"$f":"tbl_twdbdata[[#This Row],[utility]]&tbl_twdbdata[[#This Row],[Year]]","v":"SPRINGTOWN2030"}]
[null,2393,"SPRINGTOWN","C",2040,1876,5484,31025730,{"$f":"IF(tbl_twdbdata[[#This Row],[Year]]=2016,0,tbl_twdbdata[[#This Row],[effsave]]-0.6*SUMIFS(tbl_twdbdata[effsave],tbl_twdbdata[Year],2020,tbl_twdbdata[utility],tbl_twdbdata[[#This Row],[utility]]))","v":21395187.600000001},3087,40,891,0,137724112,11093699,80500209,0,5248533,104605794,{"$f":"tbl_twdbdata[[#This Row],[utility]]&tbl_twdbdata[[#This Row],[Year]]","v":"SPRINGTOWN2040"}]
[null,2393,"SPRINGTOWN","C",2050,1876,5484,32466925,{"$f":"IF(tbl_twdbdata[[#This Row],[Year]]=2016,0,tbl_twdbdata[[#This Row],[effsave]]-0.6*SUMIFS(tbl_twdbdata[effsave],tbl_twdbdata[Year],2020,tbl_twdbdata[utility],tbl_twdbdata[[#This Row],[utility]]))","v":22836382.600000001},3087,54,1201,0,137724112,11093699,80500209,0,5248533,104605794,{"$f":"tbl_twdbdata[[#This Row],[utility]]&tbl_twdbdata[[#This Row],[Year]]","v":"SPRINGTOWN2050"}]
[null,2393,"SPRINGTOWN","C",2060,1876,5484,32767174,{"$f":"IF(tbl_twdbdata[[#This Row],[Year]]=2016,0,tbl_twdbdata[[#This Row],[effsave]]-0.6*SUMIFS(tbl_twdbdata[effsave],tbl_twdbdata[Year],2020,tbl_twdbdata[utility],tbl_twdbdata[[#This Row],[utility]]))","v":23136631.600000001},3087,73,1619,0,137724112,11093699,80500209,0,5248533,104605794,{"$f":"tbl_twdbdata[[#This Row],[utility]]&tbl_twdbdata[[#This Row],[Year]]","v":"SPRINGTOWN2060"}]
[null,2393,"SPRINGTOWN","C",2070,1876,5484,32867257,{"$f":"IF(tbl_twdbdata[[#This Row],[Year]]=2016,0,tbl_twdbdata[[#This Row],[effsave]]-0.6*SUMIFS(tbl_twdbdata[effsave],tbl_twdbdata[Year],2020,tbl_twdbdata[utility],tbl_twdbdata[[#This Row],[utility]]))","v":23236714.600000001},3087,98,2183,0,137724112,11093699,80500209,0,5248533,104605794,{"$f":"tbl_twdbdata[[#This Row],[utility]]&tbl_twdbdata[[#This Row],[Year]]","v":"SPRINGTOWN2070"}]
[null,2398,"STAMFORD","G",2016,3500,3500,0,{"$f":"IF(tbl_twdbdata[[#This Row],[Year]]=2016,0,tbl_twdbdata[[#This Row],[effsave]]-0.6*SUMIFS(tbl_twdbdata[effsave],tbl_twdbdata[Year],2020,tbl_twdbdata[utility],tbl_twdbdata[[#This Row],[utility]]))","v":0},1177,4,159,8,64299510,218520,25266048,437040,14470619,67674437,{"$f":"tbl_twdbdata[[#This Row],[utility]]&tbl_twdbdata[[#This Row],[Year]]","v":"STAMFORD2016"}]
[null,2398,"STAMFORD","G",2020,3074,3339,12211725,{"$f":"IF(tbl_twdbdata[[#This Row],[Year]]=2016,0,tbl_twdbdata[[#This Row],[effsave]]-0.6*SUMIFS(tbl_twdbdata[effsave],tbl_twdbdata[Year],2020,tbl_twdbdata[utility],tbl_twdbdata[[#This Row],[utility]]))","v":4884690},1278,4,172,9,69842571,237358,27444155,474716,15718086,73508440,{"$f":"tbl_twdbdata[[#This Row],[utility]]&tbl_twdbdata[[#This Row],[Year]]","v":"STAMFORD2020"}]
[null,2398,"STAMFORD","G",2030,3074,3533,18788671,{"$f":"IF(tbl_twdbdata[[#This Row],[Year]]=2016,0,tbl_twdbdata[[#This Row],[effsave]]-0.6*SUMIFS(tbl_twdbdata[effsave],tbl_twdbdata[Year],2020,tbl_twdbdata[utility],tbl_twdbdata[[#This Row],[utility]]))","v":11461636},1352,4,181,10,73900510,251149,29038694,502298,16631326,77779371,{"$f":"tbl_twdbdata[[#This Row],[utility]]&tbl_twdbdata[[#This Row],[Year]]","v":"STAMFORD2030"}]
[null,2398,"STAMFORD","G",2040,3074,3669,24132114,{"$f":"IF(tbl_twdbdata[[#This Row],[Year]]=2016,0,tbl_twdbdata[[#This Row],[effsave]]-0.6*SUMIFS(tbl_twdbdata[effsave],tbl_twdbdata[Year],2020,tbl_twdbdata[utility],tbl_twdbdata[[#This Row],[utility]]))","v":16805079},1404,4,192,11,76745251,260817,30156516,521634,17271536,80773425,{"$f":"tbl_twdbdata[[#This Row],[utility]]&tbl_twdbdata[[#This Row],[Year]]","v":"STAMFORD2040"}]
[null,2398,"STAMFORD","G",2050,3074,3785,25903594,{"$f":"IF(tbl_twdbdata[[#This Row],[Year]]=2016,0,tbl_twdbdata[[#This Row],[effsave]]-0.6*SUMIFS(tbl_twdbdata[effsave],tbl_twdbdata[Year],2020,tbl_twdbdata[utility],tbl_twdbdata[[#This Row],[utility]]))","v":18576559},1448,4,203,12,79171648,269063,31109951,538126,17817597,83327177,{"$f":"tbl_twdbdata[[#This Row],[utility]]&tbl_twdbdata[[#This Row],[Year]]","v":"STAMFORD2050"}]
[null,2398,"STAMFORD","G",2060,3074,3883,26999470,{"$f":"IF(tbl_twdbdata[[#This Row],[Year]]=2016,0,tbl_twdbdata[[#This Row],[effsave]]-0.6*SUMIFS(tbl_twdbdata[effsave],tbl_twdbdata[Year],2020,tbl_twdbdata[utility],tbl_twdbdata[[#This Row],[utility]]))","v":19672435},1485,4,215,13,81221535,276029,31915440,552059,18278924,85484657,{"$f":"tbl_twdbdata[[#This Row],[utility]]&tbl_twdbdata[[#This Row],[Year]]","v":"STAMFORD2060"}]
[null,2398,"STAMFORD","G",2070,3074,3962,27592160,{"$f":"IF(tbl_twdbdata[[#This Row],[Year]]=2016,0,tbl_twdbdata[[#This Row],[effsave]]-0.6*SUMIFS(tbl_twdbdata[effsave],tbl_twdbdata[Year],2020,tbl_twdbdata[utility],tbl_twdbdata[[#This Row],[utility]]))","v":20265125},1515,4,227,14,82873995,281645,32564762,563291,18650810,87223850,{"$f":"tbl_twdbdata[[#This Row],[utility]]&tbl_twdbdata[[#This Row],[Year]]","v":"STAMFORD2070"}]
[null,2986,"STEPHENS REGIONAL SUD","G",2016,3116,3116,0,{"$f":"IF(tbl_twdbdata[[#This Row],[Year]]=2016,0,tbl_twdbdata[[#This Row],[effsave]]-0.6*SUMIFS(tbl_twdbdata[effsave],tbl_twdbdata[Year],2020,tbl_twdbdata[utility],tbl_twdbdata[[#This Row],[utility]]))","v":0},1349,4,94,33,57896400,437600,2110100,6240700,4841906,32252490,{"$f":"tbl_twdbdata[[#This Row],[utility]]&tbl_twdbdata[[#This Row],[Year]]","v":"STEPHENS REGIONAL SUD2016"}]
[null,2986,"STEPHENS REGIONAL SUD","G",2020,2700,2701,9286848,{"$f":"IF(tbl_twdbdata[[#This Row],[Year]]=2016,0,tbl_twdbdata[[#This Row],[effsave]]-0.6*SUMIFS(tbl_twdbdata[effsave],tbl_twdbdata[Year],2020,tbl_twdbdata[utility],tbl_twdbdata[[#This Row],[utility]]))","v":3714739.2},1349,4,94,33,57917843,437762,2110882,6243011,4843699,32264435,{"$f":"tbl_twdbdata[[#This Row],[utility]]&tbl_twdbdata[[#This Row],[Year]]","v":"STEPHENS REGIONAL SUD2020"}]
[null,2986,"STEPHENS REGIONAL SUD","G",2030,2700,2794,13910208,{"$f":"IF(tbl_twdbdata[[#This Row],[Year]]=2016,0,tbl_twdbdata[[#This Row],[effsave]]-0.6*SUMIFS(tbl_twdbdata[effsave],tbl_twdbdata[Year],2020,tbl_twdbdata[utility],tbl_twdbdata[[#This Row],[utility]]))","v":8338099.2000000002},1395,4,97,34,59912052,452835,2183563,6457968,5010476,33375354,{"$f":"tbl_twdbdata[[#This Row],[utility]]&tbl_twdbdata[[#This Row],[Year]]","v":"STEPHENS REGIONAL SUD2030"}]
[null,2986,"STEPHENS REGIONAL SUD","G",2040,2700,2836,17504217,{"$f":"IF(tbl_twdbdata[[#This Row],[Year]]=2016,0,tbl_twdbdata[[#This Row],[effsave]]-0.6*SUMIFS(tbl_twdbdata[effsave],tbl_twdbdata[Year],2020,tbl_twdbdata[utility],tbl_twdbdata[[#This Row],[utility]]))","v":11932108.199999999},1416,4,100,35,60812663,459642,2216387,6555046,5085795,33877059,{"$f":"tbl_twdbdata[[#This Row],[utility]]&tbl_twdbdata[[#This Row],[Year]]","v":"STEPHENS REGIONAL SUD2040"}]
[null,2986,"STEPHENS REGIONAL SUD","G",2050,2700,2863,19510057,{"$f":"IF(tbl_twdbdata[[#This Row],[Year]]=2016,0,tbl_twdbdata[[#This Row],[effsave]]-0.6*SUMIFS(tbl_twdbdata[effsave],tbl_twdbdata[Year],2020,tbl_twdbdata[utility],tbl_twdbdata[[#This Row],[utility]]))","v":13937948.199999999},1429,4,103,36,61391627,464018,2237488,6617453,5134214,34199584,{"$f":"tbl_twdbdata[[#This Row],[utility]]&tbl_twdbdata[[#This Row],[Year]]","v":"STEPHENS REGIONAL SUD2050"}]
[null,2986,"STEPHENS REGIONAL SUD","G",2060,2700,2882,19955112,{"$f":"IF(tbl_twdbdata[[#This Row],[Year]]=2016,0,tbl_twdbdata[[#This Row],[effsave]]-0.6*SUMIFS(tbl_twdbdata[effsave],tbl_twdbdata[Year],2020,tbl_twdbdata[utility],tbl_twdbdata[[#This Row],[utility]]))","v":14383003.199999999},1438,4,106,37,61799046,467097,2252337,6661369,5168287,34426546,{"$f":"tbl_twdbdata[[#This Row],[utility]]&tbl_twdbdata[[#This Row],[Year]]","v":"STEPHENS REGIONAL SUD2060"}]
[null,2986,"STEPHENS REGIONAL SUD","G",2070,2700,2895,20055692,{"$f":"IF(tbl_twdbdata[[#This Row],[Year]]=2016,0,tbl_twdbdata[[#This Row],[effsave]]-0.6*SUMIFS(tbl_twdbdata[effsave],tbl_twdbdata[Year],2020,tbl_twdbdata[utility],tbl_twdbdata[[#This Row],[utility]]))","v":14483583.199999999},1444,4,109,38,62077806,469204,2262497,6691417,5191600,34581836,{"$f":"tbl_twdbdata[[#This Row],[utility]]&tbl_twdbdata[[#This Row],[Year]]","v":"STEPHENS REGIONAL SUD2070"}]
[null,2486,"STEPHENVILLE","G",2016,21640,21640,0,{"$f":"IF(tbl_twdbdata[[#This Row],[Year]]=2016,0,tbl_twdbdata[[#This Row],[effsave]]-0.6*SUMIFS(tbl_twdbdata[effsave],tbl_twdbdata[Year],2020,tbl_twdbdata[utility],tbl_twdbdata[[#This Row],[utility]]))","v":0},5083,146,827,0,352305002,94379000,263549001,0,14164556,65430724,{"$f":"tbl_twdbdata[[#This Row],[utility]]&tbl_twdbdata[[#This Row],[Year]]","v":"STEPHENVILLE2016"}]
[null,2486,"STEPHENVILLE","G",2020,18747,19044,65131432,{"$f":"IF(tbl_twdbdata[[#This Row],[Year]]=2016,0,tbl_twdbdata[[#This Row],[effsave]]-0.6*SUMIFS(tbl_twdbdata[effsave],tbl_twdbdata[Year],2020,tbl_twdbdata[utility],tbl_twdbdata[[#This Row],[utility]]))","v":26052572.800000004},5164,148,840,0,357886406,95874203,267724285,0,14388958,66467313,{"$f":"tbl_twdbdata[[#This Row],[utility]]&tbl_twdbdata[[#This Row],[Year]]","v":"STEPHENVILLE2020"}]
[null,2486,"STEPHENVILLE","G",2030,18747,21209,102959091,{"$f":"IF(tbl_twdbdata[[#This Row],[Year]]=2016,0,tbl_twdbdata[[#This Row],[effsave]]-0.6*SUMIFS(tbl_twdbdata[effsave],tbl_twdbdata[Year],2020,tbl_twdbdata[utility],tbl_twdbdata[[#This Row],[utility]]))","v":63880231.800000004},5751,165,935,0,398572400,106773575,298160280,0,16024754,74023590,{"$f":"tbl_twdbdata[[#This Row],[utility]]&tbl_twdbdata[[#This Row],[Year]]","v":"STEPHENVILLE2030"}]
[null,2486,"STEPHENVILLE","G",2040,18747,23037,133947485,{"$f":"IF(tbl_twdbdata[[#This Row],[Year]]=2016,0,tbl_twdbdata[[#This Row],[effsave]]-0.6*SUMIFS(tbl_twdbdata[effsave],tbl_twdbdata[Year],2020,tbl_twdbdata[utility],tbl_twdbdata[[#This Row],[utility]]))","v":94868625.800000012},6247,184,1041,0,432925285,115976371,323858662,0,17405925,80403670,{"$f":"tbl_twdbdata[[#This Row],[utility]]&tbl_twdbdata[[#This Row],[Year]]","v":"STEPHENVILLE2040"}]
[null,2486,"STEPHENVILLE","G",2050,18747,24781,155936921,{"$f":"IF(tbl_twdbdata[[#This Row],[Year]]=2016,0,tbl_twdbdata[[#This Row],[effsave]]-0.6*SUMIFS(tbl_twdbdata[effsave],tbl_twdbdata[Year],2020,tbl_twdbdata[utility],tbl_twdbdata[[#This Row],[utility]]))","v":116858061.80000001},6720,205,1159,0,465699591,124756281,348376155,0,18723628,86490574,{"$f":"tbl_twdbdata[[#This Row],[utility]]&tbl_twdbdata[[#This Row],[Year]]","v":"STEPHENVILLE2050"}]
[null,2486,"STEPHENVILLE","G",2060,18747,26430,169111034,{"$f":"IF(tbl_twdbdata[[#This Row],[Year]]=2016,0,tbl_twdbdata[[#This Row],[effsave]]-0.6*SUMIFS(tbl_twdbdata[effsave],tbl_twdbdata[Year],2020,tbl_twdbdata[utility],tbl_twdbdata[[#This Row],[utility]]))","v":130032174.80000001},7167,228,1290,0,496688600,133057928,371558120,0,19969553,92245909,{"$f":"tbl_twdbdata[[#This Row],[utility]]&tbl_twdbdata[[#This Row],[Year]]","v":"STEPHENVILLE2060"}]
[null,2486,"STEPHENVILLE","G",2070,18747,27953,179468044,{"$f":"IF(tbl_twdbdata[[#This Row],[Year]]=2016,0,tbl_twdbdata[[#This Row],[effsave]]-0.6*SUMIFS(tbl_twdbdata[effsave],tbl_twdbdata[Year],2020,tbl_twdbdata[utility],tbl_twdbdata[[#This Row],[utility]]))","v":140389184.80000001},7580,254,1437,0,525309740,140725246,392968753,0,21120277,97561479,{"$f":"tbl_twdbdata[[#This Row],[utility]]&tbl_twdbdata[[#This Row],[Year]]","v":"STEPHENVILLE2070"}]
[null,2491,"STRAWN","G",2016,750,750,0,{"$f":"IF(tbl_twdbdata[[#This Row],[Year]]=2016,0,tbl_twdbdata[[#This Row],[effsave]]-0.6*SUMIFS(tbl_twdbdata[effsave],tbl_twdbdata[Year],2020,tbl_twdbdata[utility],tbl_twdbdata[[#This Row],[utility]]))","v":0},349,3,31,0,16262600,108100,4791600,0,2016129,6255915,{"$f":"tbl_twdbdata[[#This Row],[utility]]&tbl_twdbdata[[#This Row],[Year]]","v":"STRAWN2016"}]
[null,2491,"STRAWN","G",2020,748,753,2770438,{"$f":"IF(tbl_twdbdata[[#This Row],[Year]]=2016,0,tbl_twdbdata[[#This Row],[effsave]]-0.6*SUMIFS(tbl_twdbdata[effsave],tbl_twdbdata[Year],2020,tbl_twdbdata[utility],tbl_twdbdata[[#This Row],[utility]]))","v":1108175.2},351,3,31,0,16371307,108823,4823630,0,2029606,6297733,{"$f":"tbl_twdbdata[[#This Row],[utility]]&tbl_twdbdata[[#This Row],[Year]]","v":"STRAWN2020"}]
[null,2491,"STRAWN","G",2030,748,808,4264543,{"$f":"IF(tbl_twdbdata[[#This Row],[Year]]=2016,0,tbl_twdbdata[[#This Row],[effsave]]-0.6*SUMIFS(tbl_twdbdata[effsave],tbl_twdbdata[Year],2020,tbl_twdbdata[utility],tbl_twdbdata[[#This Row],[utility]]))","v":2602280.2000000002},377,3,33,0,17567086,116772,5175953,0,2177851,6757727,{"$f":"tbl_twdbdata[[#This Row],[utility]]&tbl_twdbdata[[#This Row],[Year]]","v":"STRAWN2030"}]
[null,2491,"STRAWN","G",2040,748,845,5440617,{"$f":"IF(tbl_twdbdata[[#This Row],[Year]]=2016,0,tbl_twdbdata[[#This Row],[effsave]]-0.6*SUMIFS(tbl_twdbdata[effsave],tbl_twdbdata[Year],2020,tbl_twdbdata[utility],tbl_twdbdata[[#This Row],[utility]]))","v":3778354.2},394,3,35,0,18371519,122119,5412971,0,2277579,7067177,{"$f":"tbl_twdbdata[[#This Row],[utility]]&tbl_twdbdata[[#This Row],[Year]]","v":"STRAWN2040"}]
[null,2491,"STRAWN","G",2050,748,879,6143990,{"$f":"IF(tbl_twdbdata[[#This Row],[Year]]=2016,0,tbl_twdbdata[[#This Row],[effsave]]-0.6*SUMIFS(tbl_twdbdata[effsave],tbl_twdbdata[Year],2020,tbl_twdbdata[utility],tbl_twdbdata[[#This Row],[utility]]))","v":4481727.2},410,3,37,0,19110728,127033,5630770,0,2369221,7351537,{"$f":"tbl_twdbdata[[#This Row],[utility]]&tbl_twdbdata[[#This Row],[Year]]","v":"STRAWN2050"}]
[null,2491,"STRAWN","G",2060,748,906,6428614,{"$f":"IF(tbl_twdbdata[[#This Row],[Year]]=2016,0,tbl_twdbdata[[#This Row],[effsave]]-0.6*SUMIFS(tbl_twdbdata[effsave],tbl_twdbdata[Year],2020,tbl_twdbdata[utility],tbl_twdbdata[[#This Row],[utility]]))","v":4766351.2},423,3,39,0,19697747,130935,5803728,0,2441996,7577352,{"$f":"tbl_twdbdata[[#This Row],[utility]]&tbl_twdbdata[[#This Row],[Year]]","v":"STRAWN2060"}]
[null,2491,"STRAWN","G",2070,748,926,6580665,{"$f":"IF(tbl_twdbdata[[#This Row],[Year]]=2016,0,tbl_twdbdata[[#This Row],[effsave]]-0.6*SUMIFS(tbl_twdbdata[effsave],tbl_twdbdata[Year],2020,tbl_twdbdata[utility],tbl_twdbdata[[#This Row],[utility]]))","v":4918402.2},432,3,41,0,20132576,133825,5931845,0,2495903,7744622,{"$f":"tbl_twdbdata[[#This Row],[utility]]&tbl_twdbdata[[#This Row],[Year]]","v":"STRAWN2070"}]
[null,136,"SULPHUR SPRINGS","D",2016,15785,15785,0,{"$f":"IF(tbl_twdbdata[[#This Row],[Year]]=2016,0,tbl_twdbdata[[#This Row],[effsave]]-0.6*SUMIFS(tbl_twdbdata[effsave],tbl_twdbdata[Year],2020,tbl_twdbdata[utility],tbl_twdbdata[[#This Row],[utility]]))","v":0},6012,98,1118,0,356394500,66464800,630526000,0,95872832,-9662448,{"$f":"tbl_twdbdata[[#This Row],[utility]]&tbl_twdbdata[[#This Row],[Year]]","v":"SULPHUR SPRINGS2016"}]
[null,136,"SULPHUR SPRINGS","D",2020,15275,15849,54146524,{"$f":"IF(tbl_twdbdata[[#This Row],[Year]]=2016,0,tbl_twdbdata[[#This Row],[effsave]]-0.6*SUMIFS(tbl_twdbdata[effsave],tbl_twdbdata[Year],2020,tbl_twdbdata[utility],tbl_twdbdata[[#This Row],[utility]]))","v":21658609.600000001},6238,102,1160,0,369787000,68962397,654219743,0,99475516,-10025541,{"$f":"tbl_twdbdata[[#This Row],[utility]]&tbl_twdbdata[[#This Row],[Year]]","v":"SULPHUR SPRINGS2020"}]
[null,136,"SULPHUR SPRINGS","D",2030,15275,16649,81794872,{"$f":"IF(tbl_twdbdata[[#This Row],[Year]]=2016,0,tbl_twdbdata[[#This Row],[effsave]]-0.6*SUMIFS(tbl_twdbdata[effsave],tbl_twdbdata[Year],2020,tbl_twdbdata[utility],tbl_twdbdata[[#This Row],[utility]]))","v":49306957.600000001},6553,107,1219,0,388452506,72443369,687242381,0,104496679,-10531594,{"$f":"tbl_twdbdata[[#This Row],[utility]]&tbl_twdbdata[[#This Row],[Year]]","v":"SULPHUR SPRINGS2030"}]
[null,136,"SULPHUR SPRINGS","D",2040,15275,17378,105166443,{"$f":"IF(tbl_twdbdata[[#This Row],[Year]]=2016,0,tbl_twdbdata[[#This Row],[effsave]]-0.6*SUMIFS(tbl_twdbdata[effsave],tbl_twdbdata[Year],2020,tbl_twdbdata[utility],tbl_twdbdata[[#This Row],[utility]]))","v":72678528.599999994},6840,112,1281,0,405461448,75615404,717334260,0,109072214,-10992735,{"$f":"tbl_twdbdata[[#This Row],[utility]]&tbl_twdbdata[[#This Row],[Year]]","v":"SULPHUR SPRINGS2040"}]
[null,136,"SULPHUR SPRINGS","D",2050,15275,18213,121055436,{"$f":"IF(tbl_twdbdata[[#This Row],[Year]]=2016,0,tbl_twdbdata[[#This Row],[effsave]]-0.6*SUMIFS(tbl_twdbdata[effsave],tbl_twdbdata[Year],2020,tbl_twdbdata[utility],tbl_twdbdata[[#This Row],[utility]]))","v":88567521.599999994},7169,118,1346,0,424943570,79248668,751801638,0,114313053,-11520928,{"$f":"tbl_twdbdata[[#This Row],[utility]]&tbl_twdbdata[[#This Row],[Year]]","v":"SULPHUR SPRINGS2050"}]
[null,136,"SULPHUR SPRINGS","D",2060,15275,19020,128640819,{"$f":"IF(tbl_twdbdata[[#This Row],[Year]]=2016,0,tbl_twdbdata[[#This Row],[effsave]]-0.6*SUMIFS(tbl_twdbdata[effsave],tbl_twdbdata[Year],2020,tbl_twdbdata[utility],tbl_twdbdata[[#This Row],[utility]]))","v":96152904.599999994},7487,124,1414,0,443772399,82760098,785113224,0,119378151,-12031409,{"$f":"tbl_twdbdata[[#This Row],[utility]]&tbl_twdbdata[[#This Row],[Year]]","v":"SULPHUR SPRINGS2060"}]
[null,136,"SULPHUR SPRINGS","D",2070,15275,19831,134487893,{"$f":"IF(tbl_twdbdata[[#This Row],[Year]]=2016,0,tbl_twdbdata[[#This Row],[effsave]]-0.6*SUMIFS(tbl_twdbdata[effsave],tbl_twdbdata[Year],2020,tbl_twdbdata[utility],tbl_twdbdata[[#This Row],[utility]]))","v":101999978.59999999},7806,130,1486,0,462694555,86288933,818589924,0,124468355,-12544420,{"$f":"tbl_twdbdata[[#This Row],[utility]]&tbl_twdbdata[[#This Row],[Year]]","v":"SULPHUR SPRINGS2070"}]
[null,2495,"SUNBELT FWSD","H",2016,13599,26139,0,{"$f":"IF(tbl_twdbdata[[#This Row],[Year]]=2016,0,tbl_twdbdata[[#This Row],[effsave]]-0.6*SUMIFS(tbl_twdbdata[effsave],tbl_twdbdata[Year],2020,tbl_twdbdata[utility],tbl_twdbdata[[#This Row],[utility]]))","v":0},7881,748,375,8,494448000,47224000,76914000,17000,4922574,39684398,{"$f":"tbl_twdbdata[[#This Row],[utility]]&tbl_twdbdata[[#This Row],[Year]]","v":"SUNBELT FWSD2016"}]
[null,2495,"SUNBELT FWSD","H",2020,13599,27671,95545196,{"$f":"IF(tbl_twdbdata[[#This Row],[Year]]=2016,0,tbl_twdbdata[[#This Row],[effsave]]-0.6*SUMIFS(tbl_twdbdata[effsave],tbl_twdbdata[Year],2020,tbl_twdbdata[utility],tbl_twdbdata[[#This Row],[utility]]))","v":38218078.399999999},8079,767,384,8,506886137,48411948,78848817,17428,6538094,25788402,{"$f":"tbl_twdbdata[[#This Row],[utility]]&tbl_twdbdata[[#This Row],[Year]]","v":"SUNBELT FWSD2020"}]
[null,2495,"SUNBELT FWSD","H",2030,13599,29105,148939017,{"$f":"IF(tbl_twdbdata[[#This Row],[Year]]=2016,0,tbl_twdbdata[[#This Row],[effsave]]-0.6*SUMIFS(tbl_twdbdata[effsave],tbl_twdbdata[Year],2020,tbl_twdbdata[utility],tbl_twdbdata[[#This Row],[utility]]))","v":91611899.400000006},8498,807,404,8,533154603,50920810,82935015,18331,6876919,27124840,{"$f":"tbl_twdbdata[[#This Row],[utility]]&tbl_twdbdata[[#This Row],[Year]]","v":"SUNBELT FWSD2030"}]
[null,2495,"SUNBELT FWSD","H",2040,13599,30496,195461062,{"$f":"IF(tbl_twdbdata[[#This Row],[Year]]=2016,0,tbl_twdbdata[[#This Row],[effsave]]-0.6*SUMIFS(tbl_twdbdata[effsave],tbl_twdbdata[Year],2020,tbl_twdbdata[utility],tbl_twdbdata[[#This Row],[utility]]))","v":138133944.40000001},8904,849,425,8,558635381,53354442,86898685,19207,7205584,28421203,{"$f":"tbl_twdbdata[[#This Row],[utility]]&tbl_twdbdata[[#This Row],[Year]]","v":"SUNBELT FWSD2040"}]
[null,2495,"SUNBELT FWSD","H",2050,13599,32092,221972341,{"$f":"IF(tbl_twdbdata[[#This Row],[Year]]=2016,0,tbl_twdbdata[[#This Row],[effsave]]-0.6*SUMIFS(tbl_twdbdata[effsave],tbl_twdbdata[Year],2020,tbl_twdbdata[utility],tbl_twdbdata[[#This Row],[utility]]))","v":164645223.40000001},9370,893,447,8,587871414,56146732,91446505,20212,7582686,29908619,{"$f":"tbl_twdbdata[[#This Row],[utility]]&tbl_twdbdata[[#This Row],[Year]]","v":"SUNBELT FWSD2050"}]
[null,2495,"SUNBELT FWSD","H",2060,13599,33934,238924204,{"$f":"IF(tbl_twdbdata[[#This Row],[Year]]=2016,0,tbl_twdbdata[[#This Row],[effsave]]-0.6*SUMIFS(tbl_twdbdata[effsave],tbl_twdbdata[Year],2020,tbl_twdbdata[utility],tbl_twdbdata[[#This Row],[utility]]))","v":181597086.40000001},9908,939,470,8,621613753,59369413,96695304,21372,8017913,31625298,{"$f":"tbl_twdbdata[[#This Row],[utility]]&tbl_twdbdata[[#This Row],[Year]]","v":"SUNBELT FWSD2060"}]
[null,2495,"SUNBELT FWSD","H",2070,13599,35955,253941176,{"$f":"IF(tbl_twdbdata[[#This Row],[Year]]=2016,0,tbl_twdbdata[[#This Row],[effsave]]-0.6*SUMIFS(tbl_twdbdata[effsave],tbl_twdbdata[Year],2020,tbl_twdbdata[utility],tbl_twdbdata[[#This Row],[utility]]))","v":196614058.40000001},10498,988,495,8,658635071,62905264,102454166,22645,8495434,33508799,{"$f":"tbl_twdbdata[[#This Row],[utility]]&tbl_twdbdata[[#This Row],[Year]]","v":"SUNBELT FWSD2070"}]
[null,6551,"SURFSIDE BEACH","H",2016,3081,3081,0,{"$f":"IF(tbl_twdbdata[[#This Row],[Year]]=2016,0,tbl_twdbdata[[#This Row],[effsave]]-0.6*SUMIFS(tbl_twdbdata[effsave],tbl_twdbdata[Year],2020,tbl_twdbdata[utility],tbl_twdbdata[[#This Row],[utility]]))","v":0},1178,0,0,0,64369600,0,0,0,null,null,{"$f":"tbl_twdbdata[[#This Row],[utility]]&tbl_twdbdata[[#This Row],[Year]]","v":"SURFSIDE BEACH2016"}]
[null,6551,"SURFSIDE BEACH","H",2020,626,723,2253663,{"$f":"IF(tbl_twdbdata[[#This Row],[Year]]=2016,0,tbl_twdbdata[[#This Row],[effsave]]-0.6*SUMIFS(tbl_twdbdata[effsave],tbl_twdbdata[Year],2020,tbl_twdbdata[utility],tbl_twdbdata[[#This Row],[utility]]))","v":901465.2},1361,0,0,0,74343803,0,0,0,null,null,{"$f":"tbl_twdbdata[[#This Row],[utility]]&tbl_twdbdata[[#This Row],[Year]]","v":"SURFSIDE BEACH2020"}]
[null,6551,"SURFSIDE BEACH","H",2030,626,826,3584716,{"$f":"IF(tbl_twdbdata[[#This Row],[Year]]=2016,0,tbl_twdbdata[[#This Row],[effsave]]-0.6*SUMIFS(tbl_twdbdata[effsave],tbl_twdbdata[Year],2020,tbl_twdbdata[utility],tbl_twdbdata[[#This Row],[utility]]))","v":2232518.2000000002},1555,0,0,0,84934967,0,0,0,null,null,{"$f":"tbl_twdbdata[[#This Row],[utility]]&tbl_twdbdata[[#This Row],[Year]]","v":"SURFSIDE BEACH2030"}]
[null,6551,"SURFSIDE BEACH","H",2040,626,826,4335426,{"$f":"IF(tbl_twdbdata[[#This Row],[Year]]=2016,0,tbl_twdbdata[[#This Row],[effsave]]-0.6*SUMIFS(tbl_twdbdata[effsave],tbl_twdbdata[Year],2020,tbl_twdbdata[utility],tbl_twdbdata[[#This Row],[utility]]))","v":2983228.2},1555,0,0,0,84934967,0,0,0,null,null,{"$f":"tbl_twdbdata[[#This Row],[utility]]&tbl_twdbdata[[#This Row],[Year]]","v":"SURFSIDE BEACH2040"}]
[null,6551,"SURFSIDE BEACH","H",2050,626,826,4691184,{"$f":"IF(tbl_twdbdata[[#This Row],[Year]]=2016,0,tbl_twdbdata[[#This Row],[effsave]]-0.6*SUMIFS(tbl_twdbdata[effsave],tbl_twdbdata[Year],2020,tbl_twdbdata[utility],tbl_twdbdata[[#This Row],[utility]]))","v":3338986.2},1555,0,0,0,84934967,0,0,0,null,null,{"$f":"tbl_twdbdata[[#This Row],[utility]]&tbl_twdbdata[[#This Row],[Year]]","v":"SURFSIDE BEACH2050"}]
[null,6551,"SURFSIDE BEACH","H",2060,626,826,4784646,{"$f":"IF(tbl_twdbdata[[#This Row],[Year]]=2016,0,tbl_twdbdata[[#This Row],[effsave]]-0.6*SUMIFS(tbl_twdbdata[effsave],tbl_twdbdata[Year],2020,tbl_twdbdata[utility],tbl_twdbdata[[#This Row],[utility]]))","v":3432448.2},1555,0,0,0,84934967,0,0,0,null,null,{"$f":"tbl_twdbdata[[#This Row],[utility]]&tbl_twdbdata[[#This Row],[Year]]","v":"SURFSIDE BEACH2060"}]
[null,6551,"SURFSIDE BEACH","H",2070,626,826,4796706,{"$f":"IF(tbl_twdbdata[[#This Row],[Year]]=2016,0,tbl_twdbdata[[#This Row],[effsave]]-0.6*SUMIFS(tbl_twdbdata[effsave],tbl_twdbdata[Year],2020,tbl_twdbdata[utility],tbl_twdbdata[[#This Row],[utility]]))","v":3444508.2},1555,0,0,0,84934967,0,0,0,null,null,{"$f":"tbl_twdbdata[[#This Row],[utility]]&tbl_twdbdata[[#This Row],[Year]]","v":"SURFSIDE BEACH2070"}]
[null,137,"SWEETWATER","G",2016,11720,11720,0,{"$f":"IF(tbl_twdbdata[[#This Row],[Year]]=2016,0,tbl_twdbdata[[#This Row],[effsave]]-0.6*SUMIFS(tbl_twdbdata[effsave],tbl_twdbdata[Year],2020,tbl_twdbdata[utility],tbl_twdbdata[[#This Row],[utility]]))","v":0},3732,53,658,0,218920000,27600000,270988000,0,28473510,108283117,{"$f":"tbl_twdbdata[[#This Row],[utility]]&tbl_twdbdata[[#This Row],[Year]]","v":"SWEETWATER2016"}]
[null,137,"SWEETWATER","G",2020,11208,12196,44782492,{"$f":"IF(tbl_twdbdata[[#This Row],[Year]]=2016,0,tbl_twdbdata[[#This Row],[effsave]]-0.6*SUMIFS(tbl_twdbdata[effsave],tbl_twdbdata[Year],2020,tbl_twdbdata[utility],tbl_twdbdata[[#This Row],[utility]]))","v":17912996.800000001},4061,58,716,0,238218087,30032976,294875950,0,30983488,117828417,{"$f":"tbl_twdbdata[[#This Row],[utility]]&tbl_twdbdata[[#This Row],[Year]]","v":"SWEETWATER2020"}]
[null,137,"SWEETWATER","G",2030,11208,12880,68778556,{"$f":"IF(tbl_twdbdata[[#This Row],[Year]]=2016,0,tbl_twdbdata[[#This Row],[effsave]]-0.6*SUMIFS(tbl_twdbdata[effsave],tbl_twdbdata[Year],2020,tbl_twdbdata[utility],tbl_twdbdata[[#This Row],[utility]]))","v":41909060.799999997},4289,61,756,0,251578301,31717344,311413762,0,32721165,124436701,{"$f":"tbl_twdbdata[[#This Row],[utility]]&tbl_twdbdata[[#This Row],[Year]]","v":"SWEETWATER2030"}]
[null,137,"SWEETWATER","G",2040,11208,13347,88225672,{"$f":"IF(tbl_twdbdata[[#This Row],[Year]]=2016,0,tbl_twdbdata[[#This Row],[effsave]]-0.6*SUMIFS(tbl_twdbdata[effsave],tbl_twdbdata[Year],2020,tbl_twdbdata[utility],tbl_twdbdata[[#This Row],[utility]]))","v":61356176.799999997},4445,64,798,0,260699968,32867344,322704928,0,33907561,128948498,{"$f":"tbl_twdbdata[[#This Row],[utility]]&tbl_twdbdata[[#This Row],[Year]]","v":"SWEETWATER2040"}]
[null,137,"SWEETWATER","G",2050,11208,13852,94496266,{"$f":"IF(tbl_twdbdata[[#This Row],[Year]]=2016,0,tbl_twdbdata[[#This Row],[effsave]]-0.6*SUMIFS(tbl_twdbdata[effsave],tbl_twdbdata[Year],2020,tbl_twdbdata[utility],tbl_twdbdata[[#This Row],[utility]]))","v":67626770.799999997},4613,68,843,0,270563869,34110920,334914863,0,35190495,133827421,{"$f":"tbl_twdbdata[[#This Row],[utility]]&tbl_twdbdata[[#This Row],[Year]]","v":"SWEETWATER2050"}]
[null,137,"SWEETWATER","G",2060,11208,14258,98827188,{"$f":"IF(tbl_twdbdata[[#This Row],[Year]]=2016,0,tbl_twdbdata[[#This Row],[effsave]]-0.6*SUMIFS(tbl_twdbdata[effsave],tbl_twdbdata[Year],2020,tbl_twdbdata[utility],tbl_twdbdata[[#This Row],[utility]]))","v":71957692.799999997},4748,72,890,0,278494055,35110706,344731167,0,36221923,137749882,{"$f":"tbl_twdbdata[[#This Row],[utility]]&tbl_twdbdata[[#This Row],[Year]]","v":"SWEETWATER2060"}]
[null,137,"SWEETWATER","G",2070,11208,14609,101473384,{"$f":"IF(tbl_twdbdata[[#This Row],[Year]]=2016,0,tbl_twdbdata[[#This Row],[effsave]]-0.6*SUMIFS(tbl_twdbdata[effsave],tbl_twdbdata[Year],2020,tbl_twdbdata[utility],tbl_twdbdata[[#This Row],[utility]]))","v":74603888.799999997},4865,76,940,0,285349954,35975053,353217675,0,37113626,141140975,{"$f":"tbl_twdbdata[[#This Row],[utility]]&tbl_twdbdata[[#This Row],[Year]]","v":"SWEETWATER2070"}]
[null,2504,"TAFT","N",2016,3400,3400,0,{"$f":"IF(tbl_twdbdata[[#This Row],[Year]]=2016,0,tbl_twdbdata[[#This Row],[effsave]]-0.6*SUMIFS(tbl_twdbdata[effsave],tbl_twdbdata[Year],2020,tbl_twdbdata[utility],tbl_twdbdata[[#This Row],[utility]]))","v":0},1476,0,0,0,125000000,0,0,0,1909658,25862974,{"$f":"tbl_twdbdata[[#This Row],[utility]]&tbl_twdbdata[[#This Row],[Year]]","v":"TAFT2016"}]
[null,2504,"TAFT","N",2020,2359,3768,13821966,{"$f":"IF(tbl_twdbdata[[#This Row],[Year]]=2016,0,tbl_twdbdata[[#This Row],[effsave]]-0.6*SUMIFS(tbl_twdbdata[effsave],tbl_twdbdata[Year],2020,tbl_twdbdata[utility],tbl_twdbdata[[#This Row],[utility]]))","v":5528786.4000000004},2358,0,0,0,199660873,0,0,0,3050272,41310592,{"$f":"tbl_twdbdata[[#This Row],[utility]]&tbl_twdbdata[[#This Row],[Year]]","v":"TAFT2020"}]
[null,2504,"TAFT","N",2030,2359,3951,20997194,{"$f":"IF(tbl_twdbdata[[#This Row],[Year]]=2016,0,tbl_twdbdata[[#This Row],[effsave]]-0.6*SUMIFS(tbl_twdbdata[effsave],tbl_twdbdata[Year],2020,tbl_twdbdata[utility],tbl_twdbdata[[#This Row],[utility]]))","v":12704014.4},2473,0,0,0,209357778,0,0,0,3198414,43316919,{"$f":"tbl_twdbdata[[#This Row],[utility]]&tbl_twdbdata[[#This Row],[Year]]","v":"TAFT2030"}]
[null,2504,"TAFT","N",2040,2359,4057,26698914,{"$f":"IF(tbl_twdbdata[[#This Row],[Year]]=2016,0,tbl_twdbdata[[#This Row],[effsave]]-0.6*SUMIFS(tbl_twdbdata[effsave],tbl_twdbdata[Year],2020,tbl_twdbdata[utility],tbl_twdbdata[[#This Row],[utility]]))","v":18405734.399999999},2539,0,0,0,214974565,0,0,0,3284223,44479054,{"$f":"tbl_twdbdata[[#This Row],[utility]]&tbl_twdbdata[[#This Row],[Year]]","v":"TAFT2040"}]
[null,2504,"TAFT","N",2050,2359,4133,28164535,{"$f":"IF(tbl_twdbdata[[#This Row],[Year]]=2016,0,tbl_twdbdata[[#This Row],[effsave]]-0.6*SUMIFS(tbl_twdbdata[effsave],tbl_twdbdata[Year],2020,tbl_twdbdata[utility],tbl_twdbdata[[#This Row],[utility]]))","v":19871355.399999999},2587,0,0,0,219001695,0,0,0,3345747,45312283,{"$f":"tbl_twdbdata[[#This Row],[utility]]&tbl_twdbdata[[#This Row],[Year]]","v":"TAFT2050"}]
[null,2504,"TAFT","N",2060,2359,4186,28968794,{"$f":"IF(tbl_twdbdata[[#This Row],[Year]]=2016,0,tbl_twdbdata[[#This Row],[effsave]]-0.6*SUMIFS(tbl_twdbdata[effsave],tbl_twdbdata[Year],2020,tbl_twdbdata[utility],tbl_twdbdata[[#This Row],[utility]]))","v":20675614.399999999},2620,0,0,0,221810088,0,0,0,3388652,45893350,{"$f":"tbl_twdbdata[[#This Row],[utility]]&tbl_twdbdata[[#This Row],[Year]]","v":"TAFT2060"}]
[null,2504,"TAFT","N",2070,2359,4221,29241822,{"$f":"IF(tbl_twdbdata[[#This Row],[Year]]=2016,0,tbl_twdbdata[[#This Row],[effsave]]-0.6*SUMIFS(tbl_twdbdata[effsave],tbl_twdbdata[Year],2020,tbl_twdbdata[utility],tbl_twdbdata[[#This Row],[utility]]))","v":20948642.399999999},2642,0,0,0,223664687,0,0,0,3416985,46277074,{"$f":"tbl_twdbdata[[#This Row],[utility]]&tbl_twdbdata[[#This Row],[Year]]","v":"TAFT2070"}]
[null,2509,"TAYLOR","G",2016,15600,15600,0,{"$f":"IF(tbl_twdbdata[[#This Row],[Year]]=2016,0,tbl_twdbdata[[#This Row],[effsave]]-0.6*SUMIFS(tbl_twdbdata[effsave],tbl_twdbdata[Year],2020,tbl_twdbdata[utility],tbl_twdbdata[[#This Row],[utility]]))","v":0},5200,48,588,92,387659900,24260800,236522200,25630100,9135129,47602187,{"$f":"tbl_twdbdata[[#This Row],[utility]]&tbl_twdbdata[[#This Row],[Year]]","v":"TAYLOR2016"}]
[null,2509,"TAYLOR","G",2020,14325,17233,60887636,{"$f":"IF(tbl_twdbdata[[#This Row],[Year]]=2016,0,tbl_twdbdata[[#This Row],[effsave]]-0.6*SUMIFS(tbl_twdbdata[effsave],tbl_twdbdata[Year],2020,tbl_twdbdata[utility],tbl_twdbdata[[#This Row],[utility]]))","v":24355054.399999999},6256,58,708,111,466355536,29185785,284536619,30833055,10989576,57265514,{"$f":"tbl_twdbdata[[#This Row],[utility]]&tbl_twdbdata[[#This Row],[Year]]","v":"TAYLOR2020"}]
[null,2509,"TAYLOR","G",2030,14325,18728,92487292,{"$f":"IF(tbl_twdbdata[[#This Row],[Year]]=2016,0,tbl_twdbdata[[#This Row],[effsave]]-0.6*SUMIFS(tbl_twdbdata[effsave],tbl_twdbdata[Year],2020,tbl_twdbdata[utility],tbl_twdbdata[[#This Row],[utility]]))","v":55954710.399999999},6799,63,769,121,506812887,31717715,309220785,33507889,11942945,62233421,{"$f":"tbl_twdbdata[[#This Row],[utility]]&tbl_twdbdata[[#This Row],[Year]]","v":"TAYLOR2030"}]
[null,2509,"TAYLOR","G",2040,14325,20589,122343956,{"$f":"IF(tbl_twdbdata[[#This Row],[Year]]=2016,0,tbl_twdbdata[[#This Row],[effsave]]-0.6*SUMIFS(tbl_twdbdata[effsave],tbl_twdbdata[Year],2020,tbl_twdbdata[utility],tbl_twdbdata[[#This Row],[utility]]))","v":85811374.400000006},7475,68,836,131,557174847,34869502,339948033,36837565,13129715,68417552,{"$f":"tbl_twdbdata[[#This Row],[utility]]&tbl_twdbdata[[#This Row],[Year]]","v":"TAYLOR2040"}]
[null,2509,"TAYLOR","G",2050,14325,22594,145556197,{"$f":"IF(tbl_twdbdata[[#This Row],[Year]]=2016,0,tbl_twdbdata[[#This Row],[effsave]]-0.6*SUMIFS(tbl_twdbdata[effsave],tbl_twdbdata[Year],2020,tbl_twdbdata[utility],tbl_twdbdata[[#This Row],[utility]]))","v":109023615.40000001},8203,74,908,142,611433702,38265167,373052886,40424884,14408314,75080197,{"$f":"tbl_twdbdata[[#This Row],[utility]]&tbl_twdbdata[[#This Row],[Year]]","v":"TAYLOR2050"}]
[null,2509,"TAYLOR","G",2060,14325,24868,162928919,{"$f":"IF(tbl_twdbdata[[#This Row],[Year]]=2016,0,tbl_twdbdata[[#This Row],[effsave]]-0.6*SUMIFS(tbl_twdbdata[effsave],tbl_twdbdata[Year],2020,tbl_twdbdata[utility],tbl_twdbdata[[#This Row],[utility]]))","v":126396337.40000001},9029,80,987,154,672972174,42116410,410599237,44493495,15858456,82636733,{"$f":"tbl_twdbdata[[#This Row],[utility]]&tbl_twdbdata[[#This Row],[Year]]","v":"TAYLOR2060"}]
[null,2509,"TAYLOR","G",2070,14325,27220,179232812,{"$f":"IF(tbl_twdbdata[[#This Row],[Year]]=2016,0,tbl_twdbdata[[#This Row],[effsave]]-0.6*SUMIFS(tbl_twdbdata[effsave],tbl_twdbdata[Year],2020,tbl_twdbdata[utility],tbl_twdbdata[[#This Row],[utility]]))","v":142700230.40000001},9883,87,1072,167,736621464,46099754,449433457,48701662,17358339,90452464,{"$f":"tbl_twdbdata[[#This Row],[utility]]&tbl_twdbdata[[#This Row],[Year]]","v":"TAYLOR2070"}]
[null,2513,"TEMPLE","G",2016,75293,78242,0,{"$f":"IF(tbl_twdbdata[[#This Row],[Year]]=2016,0,tbl_twdbdata[[#This Row],[effsave]]-0.6*SUMIFS(tbl_twdbdata[effsave],tbl_twdbdata[Year],2020,tbl_twdbdata[utility],tbl_twdbdata[[#This Row],[utility]]))","v":0},24082,7828,2831,6,2258472772,389936650,1444424878,5042000,64012088,729664885,{"$f":"tbl_twdbdata[[#This Row],[utility]]&tbl_twdbdata[[#This Row],[Year]]","v":"TEMPLE2016"}]
[null,2513,"TEMPLE","G",2020,75293,81736,284016253,{"$f":"IF(tbl_twdbdata[[#This Row],[Year]]=2016,0,tbl_twdbdata[[#This Row],[effsave]]-0.6*SUMIFS(tbl_twdbdata[effsave],tbl_twdbdata[Year],2020,tbl_twdbdata[utility],tbl_twdbdata[[#This Row],[utility]]))","v":113606501.20000002},24803,8062,2915,6,2326061044,401606104,1487651514,5192890,65927748,751501229,{"$f":"tbl_twdbdata[[#This Row],[utility]]&tbl_twdbdata[[#This Row],[Year]]","v":"TEMPLE2020"}]
[null,2513,"TEMPLE","G",2030,75293,96082,461169580,{"$f":"IF(tbl_twdbdata[[#This Row],[Year]]=2016,0,tbl_twdbdata[[#This Row],[effsave]]-0.6*SUMIFS(tbl_twdbdata[effsave],tbl_twdbdata[Year],2020,tbl_twdbdata[utility],tbl_twdbdata[[#This Row],[utility]]))","v":290759828.20000005},29156,9477,3427,7,2734322664,472094520,1748758598,6104327,77499142,883401941,{"$f":"tbl_twdbdata[[#This Row],[utility]]&tbl_twdbdata[[#This Row],[Year]]","v":"TEMPLE2030"}]
[null,2513,"TEMPLE","G",2040,75293,110900,624178470,{"$f":"IF(tbl_twdbdata[[#This Row],[Year]]=2016,0,tbl_twdbdata[[#This Row],[effsave]]-0.6*SUMIFS(tbl_twdbdata[effsave],tbl_twdbdata[Year],2020,tbl_twdbdata[utility],tbl_twdbdata[[#This Row],[utility]]))","v":453768718.20000005},33653,11140,4028,8,3156016563,544902086,2018456408,7045751,89451248,1019642339,{"$f":"tbl_twdbdata[[#This Row],[utility]]&tbl_twdbdata[[#This Row],[Year]]","v":"TEMPLE2040"}]
[null,2513,"TEMPLE","G",2050,75293,125626,756582585,{"$f":"IF(tbl_twdbdata[[#This Row],[Year]]=2016,0,tbl_twdbdata[[#This Row],[effsave]]-0.6*SUMIFS(tbl_twdbdata[effsave],tbl_twdbdata[Year],2020,tbl_twdbdata[utility],tbl_twdbdata[[#This Row],[utility]]))","v":586172833.20000005},38122,13095,4735,9,3575092306,617257615,2286479754,7981330,101329148,1155036866,{"$f":"tbl_twdbdata[[#This Row],[utility]]&tbl_twdbdata[[#This Row],[Year]]","v":"TEMPLE2050"}]
[null,2513,"TEMPLE","G",2060,75293,140074,856888688,{"$f":"IF(tbl_twdbdata[[#This Row],[Year]]=2016,0,tbl_twdbdata[[#This Row],[effsave]]-0.6*SUMIFS(tbl_twdbdata[effsave],tbl_twdbdata[Year],2020,tbl_twdbdata[utility],tbl_twdbdata[[#This Row],[utility]]))","v":686478936.20000005},42506,15393,5565,11,3986256664,688247203,2549443308,8899247,112982815,1287875392,{"$f":"tbl_twdbdata[[#This Row],[utility]]&tbl_twdbdata[[#This Row],[Year]]","v":"TEMPLE2060"}]
[null,2513,"TEMPLE","G",2070,75293,154295,948952824,{"$f":"IF(tbl_twdbdata[[#This Row],[Year]]=2016,0,tbl_twdbdata[[#This Row],[effsave]]-0.6*SUMIFS(tbl_twdbdata[effsave],tbl_twdbdata[Year],2020,tbl_twdbdata[utility],tbl_twdbdata[[#This Row],[utility]]))","v":778543072.20000005},46821,18095,6541,13,4390961006,758121437,2808275306,9802742,124453385,1418626823,{"$f":"tbl_twdbdata[[#This Row],[utility]]&tbl_twdbdata[[#This Row],[Year]]","v":"TEMPLE2070"}]
[null,139,"TERRELL","C",2016,17665,17665,0,{"$f":"IF(tbl_twdbdata[[#This Row],[Year]]=2016,0,tbl_twdbdata[[#This Row],[effsave]]-0.6*SUMIFS(tbl_twdbdata[effsave],tbl_twdbdata[Year],2020,tbl_twdbdata[utility],tbl_twdbdata[[#This Row],[utility]]))","v":0},5152,1350,911,236,258099000,74367000,248884000,37728000,9658675,143957325,{"$f":"tbl_twdbdata[[#This Row],[utility]]&tbl_twdbdata[[#This Row],[Year]]","v":"TERRELL2016"}]
[null,139,"TERRELL","C",2020,16741,22723,95048037,{"$f":"IF(tbl_twdbdata[[#This Row],[Year]]=2016,0,tbl_twdbdata[[#This Row],[effsave]]-0.6*SUMIFS(tbl_twdbdata[effsave],tbl_twdbdata[Year],2020,tbl_twdbdata[utility],tbl_twdbdata[[#This Row],[utility]]))","v":38019214.800000004},6993,1832,1237,320,350324567,100940287,337816804,51209208,13109974,195397067,{"$f":"tbl_twdbdata[[#This Row],[utility]]&tbl_twdbdata[[#This Row],[Year]]","v":"TERRELL2020"}]
[null,139,"TERRELL","C",2030,16741,43973,258086332,{"$f":"IF(tbl_twdbdata[[#This Row],[Year]]=2016,0,tbl_twdbdata[[#This Row],[effsave]]-0.6*SUMIFS(tbl_twdbdata[effsave],tbl_twdbdata[Year],2020,tbl_twdbdata[utility],tbl_twdbdata[[#This Row],[utility]]))","v":201057509.80000001},13533,3545,2394,619,677939629,195337202,653734908,99098821,25370105,378127678,{"$f":"tbl_twdbdata[[#This Row],[utility]]&tbl_twdbdata[[#This Row],[Year]]","v":"TERRELL2030"}]
[null,139,"TERRELL","C",2040,16741,60000,380841000,{"$f":"IF(tbl_twdbdata[[#This Row],[Year]]=2016,0,tbl_twdbdata[[#This Row],[effsave]]-0.6*SUMIFS(tbl_twdbdata[effsave],tbl_twdbdata[Year],2020,tbl_twdbdata[utility],tbl_twdbdata[[#This Row],[utility]]))","v":323812177.80000001},18465,6860,4633,1198,925030763,266532466,892004058,135217730,34616840,515945255,{"$f":"tbl_twdbdata[[#This Row],[utility]]&tbl_twdbdata[[#This Row],[Year]]","v":"TERRELL2040"}]
[null,139,"TERRELL","C",2050,16741,70000,459644500,{"$f":"IF(tbl_twdbdata[[#This Row],[Year]]=2016,0,tbl_twdbdata[[#This Row],[effsave]]-0.6*SUMIFS(tbl_twdbdata[effsave],tbl_twdbdata[Year],2020,tbl_twdbdata[utility],tbl_twdbdata[[#This Row],[utility]]))","v":402615677.80000001},21543,13275,8966,2318,1079202557,310954544,1040671402,157754018,40386313,601936131,{"$f":"tbl_twdbdata[[#This Row],[utility]]&tbl_twdbdata[[#This Row],[Year]]","v":"TERRELL2050"}]
[null,139,"TERRELL","C",2060,16741,78000,515876400,{"$f":"IF(tbl_twdbdata[[#This Row],[Year]]=2016,0,tbl_twdbdata[[#This Row],[effsave]]-0.6*SUMIFS(tbl_twdbdata[effsave],tbl_twdbdata[Year],2020,tbl_twdbdata[utility],tbl_twdbdata[[#This Row],[utility]]))","v":458847577.80000001},24005,25689,17351,4486,1202539992,346492206,1159605276,175783049,45001892,670728832,{"$f":"tbl_twdbdata[[#This Row],[utility]]&tbl_twdbdata[[#This Row],[Year]]","v":"TERRELL2060"}]
[null,139,"TERRELL","C",2070,16741,90869,602979423,{"$f":"IF(tbl_twdbdata[[#This Row],[Year]]=2016,0,tbl_twdbdata[[#This Row],[effsave]]-0.6*SUMIFS(tbl_twdbdata[effsave],tbl_twdbdata[Year],2020,tbl_twdbdata[utility],tbl_twdbdata[[#This Row],[utility]]))","v":545950600.79999995},27966,49713,33578,8681,1400943674,403658978,1350925280,204784998,52426627,781390490,{"$f":"tbl_twdbdata[[#This Row],[utility]]&tbl_twdbdata[[#This Row],[Year]]","v":"TERRELL2070"}]
[null,140,"TEXARKANA","D",2016,67633,67633,0,{"$f":"IF(tbl_twdbdata[[#This Row],[Year]]=2016,0,tbl_twdbdata[[#This Row],[effsave]]-0.6*SUMIFS(tbl_twdbdata[effsave],tbl_twdbdata[Year],2020,tbl_twdbdata[utility],tbl_twdbdata[[#This Row],[utility]]))","v":0},21730,372,2913,0,1720816075,0,1064422359,0,462793150,237344948,{"$f":"tbl_twdbdata[[#This Row],[utility]]&tbl_twdbdata[[#This Row],[Year]]","v":"TEXARKANA2016"}]
[null,140,"TEXARKANA","D",2020,36719,38007,127211329,{"$f":"IF(tbl_twdbdata[[#This Row],[Year]]=2016,0,tbl_twdbdata[[#This Row],[effsave]]-0.6*SUMIFS(tbl_twdbdata[effsave],tbl_twdbdata[Year],2020,tbl_twdbdata[utility],tbl_twdbdata[[#This Row],[utility]]))","v":50884531.600000009},22492,385,3015,0,1781177498,0,1101759323,0,479026642,245670346,{"$f":"tbl_twdbdata[[#This Row],[utility]]&tbl_twdbdata[[#This Row],[Year]]","v":"TEXARKANA2020"}]
[null,140,"TEXARKANA","D",2030,36719,39674,190135661,{"$f":"IF(tbl_twdbdata[[#This Row],[Year]]=2016,0,tbl_twdbdata[[#This Row],[effsave]]-0.6*SUMIFS(tbl_twdbdata[effsave],tbl_twdbdata[Year],2020,tbl_twdbdata[utility],tbl_twdbdata[[#This Row],[utility]]))","v":113808863.60000001},23479,402,3147,0,1859300551,0,1150082864,0,500036914,256445531,{"$f":"tbl_twdbdata[[#This Row],[utility]]&tbl_twdbdata[[#This Row],[Year]]","v":"TEXARKANA2030"}]
[null,140,"TEXARKANA","D",2040,36719,41413,245026226,{"$f":"IF(tbl_twdbdata[[#This Row],[Year]]=2016,0,tbl_twdbdata[[#This Row],[effsave]]-0.6*SUMIFS(tbl_twdbdata[effsave],tbl_twdbdata[Year],2020,tbl_twdbdata[utility],tbl_twdbdata[[#This Row],[utility]]))","v":168699428.60000002},24508,420,3285,0,1940797845,0,1200493564,0,521954648,267686111,{"$f":"tbl_twdbdata[[#This Row],[utility]]&tbl_twdbdata[[#This Row],[Year]]","v":"TEXARKANA2040"}]
[null,140,"TEXARKANA","D",2050,36719,43229,281963314,{"$f":"IF(tbl_twdbdata[[#This Row],[Year]]=2016,0,tbl_twdbdata[[#This Row],[effsave]]-0.6*SUMIFS(tbl_twdbdata[effsave],tbl_twdbdata[Year],2020,tbl_twdbdata[utility],tbl_twdbdata[[#This Row],[utility]]))","v":205636516.60000002},25583,438,3429,0,2025903703,0,1253136365,0,544842863,279424405,{"$f":"tbl_twdbdata[[#This Row],[utility]]&tbl_twdbdata[[#This Row],[Year]]","v":"TEXARKANA2050"}]
[null,140,"TEXARKANA","D",2060,36719,45124,299264624,{"$f":"IF(tbl_twdbdata[[#This Row],[Year]]=2016,0,tbl_twdbdata[[#This Row],[effsave]]-0.6*SUMIFS(tbl_twdbdata[effsave],tbl_twdbdata[Year],2020,tbl_twdbdata[utility],tbl_twdbdata[[#This Row],[utility]]))","v":222937826.60000002},26704,457,3579,0,2114711853,0,1308069244,0,568726766,291673341,{"$f":"tbl_twdbdata[[#This Row],[utility]]&tbl_twdbdata[[#This Row],[Year]]","v":"TEXARKANA2060"}]
[null,140,"TEXARKANA","D",2070,36719,47102,312554741,{"$f":"IF(tbl_twdbdata[[#This Row],[Year]]=2016,0,tbl_twdbdata[[#This Row],[effsave]]-0.6*SUMIFS(tbl_twdbdata[effsave],tbl_twdbdata[Year],2020,tbl_twdbdata[utility],tbl_twdbdata[[#This Row],[utility]]))","v":236227943.60000002},27875,477,3736,0,2207409753,0,1365408154,0,593656771,304458774,{"$f":"tbl_twdbdata[[#This Row],[utility]]&tbl_twdbdata[[#This Row],[Year]]","v":"TEXARKANA2070"}]
[null,2516,"TEXAS CITY","H",2016,45099,45099,0,{"$f":"IF(tbl_twdbdata[[#This Row],[Year]]=2016,0,tbl_twdbdata[[#This Row],[effsave]]-0.6*SUMIFS(tbl_twdbdata[effsave],tbl_twdbdata[Year],2020,tbl_twdbdata[utility],tbl_twdbdata[[#This Row],[utility]]))","v":0},13804,5158,1280,35,762461000,257741000,621511000,734000,null,null,{"$f":"tbl_twdbdata[[#This Row],[utility]]&tbl_twdbdata[[#This Row],[Year]]","v":"TEXAS CITY2016"}]
[null,2516,"TEXAS CITY","H",2020,45099,51383,187923046,{"$f":"IF(tbl_twdbdata[[#This Row],[Year]]=2016,0,tbl_twdbdata[[#This Row],[effsave]]-0.6*SUMIFS(tbl_twdbdata[effsave],tbl_twdbdata[Year],2020,tbl_twdbdata[utility],tbl_twdbdata[[#This Row],[utility]]))","v":75169218.400000006},15605,5831,1446,40,861954008,291373445,702611540,829779,null,null,{"$f":"tbl_twdbdata[[#This Row],[utility]]&tbl_twdbdata[[#This Row],[Year]]","v":"TEXAS CITY2020"}]
[null,2516,"TEXAS CITY","H",2030,45099,56490,290725785,{"$f":"IF(tbl_twdbdata[[#This Row],[Year]]=2016,0,tbl_twdbdata[[#This Row],[effsave]]-0.6*SUMIFS(tbl_twdbdata[effsave],tbl_twdbdata[Year],2020,tbl_twdbdata[utility],tbl_twdbdata[[#This Row],[utility]]))","v":177971957.40000001},17156,6411,1590,44,947624349,320333299,772444697,912251,null,null,{"$f":"tbl_twdbdata[[#This Row],[utility]]&tbl_twdbdata[[#This Row],[Year]]","v":"TEXAS CITY2030"}]
[null,2516,"TEXAS CITY","H",2040,45099,60731,374619174,{"$f":"IF(tbl_twdbdata[[#This Row],[Year]]=2016,0,tbl_twdbdata[[#This Row],[effsave]]-0.6*SUMIFS(tbl_twdbdata[effsave],tbl_twdbdata[Year],2020,tbl_twdbdata[utility],tbl_twdbdata[[#This Row],[utility]]))","v":261865346.40000001},18444,7048,1748,48,1018767469,344382397,830436164,980738,null,null,{"$f":"tbl_twdbdata[[#This Row],[utility]]&tbl_twdbdata[[#This Row],[Year]]","v":"TEXAS CITY2040"}]
[null,2516,"TEXAS CITY","H",2050,45099,64391,430334712,{"$f":"IF(tbl_twdbdata[[#This Row],[Year]]=2016,0,tbl_twdbdata[[#This Row],[effsave]]-0.6*SUMIFS(tbl_twdbdata[effsave],tbl_twdbdata[Year],2020,tbl_twdbdata[utility],tbl_twdbdata[[#This Row],[utility]]))","v":317580884.39999998},19556,7749,1922,53,1080164267,365136865,880483033,1039843,null,null,{"$f":"tbl_twdbdata[[#This Row],[utility]]&tbl_twdbdata[[#This Row],[Year]]","v":"TEXAS CITY2050"}]
[null,2516,"TEXAS CITY","H",2060,45099,67626,458866079,{"$f":"IF(tbl_twdbdata[[#This Row],[Year]]=2016,0,tbl_twdbdata[[#This Row],[effsave]]-0.6*SUMIFS(tbl_twdbdata[effsave],tbl_twdbdata[Year],2020,tbl_twdbdata[utility],tbl_twdbdata[[#This Row],[utility]]))","v":346112251.39999998},20538,8519,2112,58,1134431655,383481319,924718448,1092085,null,null,{"$f":"tbl_twdbdata[[#This Row],[utility]]&tbl_twdbdata[[#This Row],[Year]]","v":"TEXAS CITY2060"}]
[null,2516,"TEXAS CITY","H",2070,45099,70558,480048409,{"$f":"IF(tbl_twdbdata[[#This Row],[Year]]=2016,0,tbl_twdbdata[[#This Row],[effsave]]-0.6*SUMIFS(tbl_twdbdata[effsave],tbl_twdbdata[Year],2020,tbl_twdbdata[utility],tbl_twdbdata[[#This Row],[utility]]))","v":367294581.39999998},21428,9366,2321,64,1183616194,400107576,964810639,1139434,null,null,{"$f":"tbl_twdbdata[[#This Row],[utility]]&tbl_twdbdata[[#This Row],[Year]]","v":"TEXAS CITY2070"}]
[null,259,"THE BITTER CREEK WSC","G",2016,2172,3438,0,{"$f":"IF(tbl_twdbdata[[#This Row],[Year]]=2016,0,tbl_twdbdata[[#This Row],[effsave]]-0.6*SUMIFS(tbl_twdbdata[effsave],tbl_twdbdata[Year],2020,tbl_twdbdata[utility],tbl_twdbdata[[#This Row],[utility]]))","v":0},724,0,43,237,35245000,0,1777000,10887000,1782813,92933187,{"$f":"tbl_twdbdata[[#This Row],[utility]]&tbl_twdbdata[[#This Row],[Year]]","v":"THE BITTER CREEK WSC2016"}]
[null,259,"THE BITTER CREEK WSC","G",2020,2172,2475,8961480,{"$f":"IF(tbl_twdbdata[[#This Row],[Year]]=2016,0,tbl_twdbdata[[#This Row],[effsave]]-0.6*SUMIFS(tbl_twdbdata[effsave],tbl_twdbdata[Year],2020,tbl_twdbdata[utility],tbl_twdbdata[[#This Row],[utility]]))","v":3584592},791,0,47,259,38495752,0,1940898,11891141,1947247,101504695,{"$f":"tbl_twdbdata[[#This Row],[utility]]&tbl_twdbdata[[#This Row],[Year]]","v":"THE BITTER CREEK WSC2020"}]
[null,259,"THE BITTER CREEK WSC","G",2030,2172,2556,13518301,{"$f":"IF(tbl_twdbdata[[#This Row],[Year]]=2016,0,tbl_twdbdata[[#This Row],[effsave]]-0.6*SUMIFS(tbl_twdbdata[effsave],tbl_twdbdata[Year],2020,tbl_twdbdata[utility],tbl_twdbdata[[#This Row],[utility]]))","v":8141413},817,0,49,267,39755613,0,2004418,12280306,2010975,104826667,{"$f":"tbl_twdbdata[[#This Row],[utility]]&tbl_twdbdata[[#This Row],[Year]]","v":"THE BITTER CREEK WSC2030"}]
[null,259,"THE BITTER CREEK WSC","G",2040,2172,2613,17310472,{"$f":"IF(tbl_twdbdata[[#This Row],[Year]]=2016,0,tbl_twdbdata[[#This Row],[effsave]]-0.6*SUMIFS(tbl_twdbdata[effsave],tbl_twdbdata[Year],2020,tbl_twdbdata[utility],tbl_twdbdata[[#This Row],[utility]]))","v":11933584},835,0,51,276,40642182,0,2049117,12554163,2055821,107164351,{"$f":"tbl_twdbdata[[#This Row],[utility]]&tbl_twdbdata[[#This Row],[Year]]","v":"THE BITTER CREEK WSC2040"}]
[null,259,"THE BITTER CREEK WSC","G",2050,2172,2673,18049433,{"$f":"IF(tbl_twdbdata[[#This Row],[Year]]=2016,0,tbl_twdbdata[[#This Row],[effsave]]-0.6*SUMIFS(tbl_twdbdata[effsave],tbl_twdbdata[Year],2020,tbl_twdbdata[utility],tbl_twdbdata[[#This Row],[utility]]))","v":12672545},854,0,53,285,41575412,0,2096169,12842433,2103027,109625071,{"$f":"tbl_twdbdata[[#This Row],[utility]]&tbl_twdbdata[[#This Row],[Year]]","v":"THE BITTER CREEK WSC2050"}]
[null,259,"THE BITTER CREEK WSC","G",2060,2172,2722,18688299,{"$f":"IF(tbl_twdbdata[[#This Row],[Year]]=2016,0,tbl_twdbdata[[#This Row],[effsave]]-0.6*SUMIFS(tbl_twdbdata[effsave],tbl_twdbdata[Year],2020,tbl_twdbdata[utility],tbl_twdbdata[[#This Row],[utility]]))","v":13311411},870,0,55,294,42337550,0,2134595,13077854,2141579,111634659,{"$f":"tbl_twdbdata[[#This Row],[utility]]&tbl_twdbdata[[#This Row],[Year]]","v":"THE BITTER CREEK WSC2060"}]
[null,259,"THE BITTER CREEK WSC","G",2070,2172,2764,18996834,{"$f":"IF(tbl_twdbdata[[#This Row],[Year]]=2016,0,tbl_twdbdata[[#This Row],[effsave]]-0.6*SUMIFS(tbl_twdbdata[effsave],tbl_twdbdata[Year],2020,tbl_twdbdata[utility],tbl_twdbdata[[#This Row],[utility]]))","v":13619946},883,0,57,304,42990811,0,2167531,13279643,2174623,113357163,{"$f":"tbl_twdbdata[[#This Row],[utility]]&tbl_twdbdata[[#This Row],[Year]]","v":"THE BITTER CREEK WSC2070"}]
[null,2518,"THE COLONY","C",2016,44228,44228,0,{"$f":"IF(tbl_twdbdata[[#This Row],[Year]]=2016,0,tbl_twdbdata[[#This Row],[effsave]]-0.6*SUMIFS(tbl_twdbdata[effsave],tbl_twdbdata[Year],2020,tbl_twdbdata[utility],tbl_twdbdata[[#This Row],[utility]]))","v":0},11834,0,1014,0,1032180000,0,570639000,0,null,null,{"$f":"tbl_twdbdata[[#This Row],[utility]]&tbl_twdbdata[[#This Row],[Year]]","v":"THE COLONY2016"}]
[null,2518,"THE COLONY","C",2020,33875,53029,196072076,{"$f":"IF(tbl_twdbdata[[#This Row],[Year]]=2016,0,tbl_twdbdata[[#This Row],[effsave]]-0.6*SUMIFS(tbl_twdbdata[effsave],tbl_twdbdata[Year],2020,tbl_twdbdata[utility],tbl_twdbdata[[#This Row],[utility]]))","v":78428830.400000006},18525,0,1587,0,1615807328,0,893296400,0,null,null,{"$f":"tbl_twdbdata[[#This Row],[utility]]&tbl_twdbdata[[#This Row],[Year]]","v":"THE COLONY2020"}]
[null,2518,"THE COLONY","C",2030,33875,58000,278385500,{"$f":"IF(tbl_twdbdata[[#This Row],[Year]]=2016,0,tbl_twdbdata[[#This Row],[effsave]]-0.6*SUMIFS(tbl_twdbdata[effsave],tbl_twdbdata[Year],2020,tbl_twdbdata[utility],tbl_twdbdata[[#This Row],[utility]]))","v":160742254.40000001},20262,0,1735,0,1767274982,0,977035041,0,null,null,{"$f":"tbl_twdbdata[[#This Row],[utility]]&tbl_twdbdata[[#This Row],[Year]]","v":"THE COLONY2030"}]
[null,2518,"THE COLONY","C",2040,33875,62000,336960700,{"$f":"IF(tbl_twdbdata[[#This Row],[Year]]=2016,0,tbl_twdbdata[[#This Row],[effsave]]-0.6*SUMIFS(tbl_twdbdata[effsave],tbl_twdbdata[Year],2020,tbl_twdbdata[utility],tbl_twdbdata[[#This Row],[utility]]))","v":219317454.40000001},21659,0,1898,0,1889156015,0,1044416768,0,null,null,{"$f":"tbl_twdbdata[[#This Row],[utility]]&tbl_twdbdata[[#This Row],[Year]]","v":"THE COLONY2040"}]
[null,2518,"THE COLONY","C",2050,33875,67600,390589420,{"$f":"IF(tbl_twdbdata[[#This Row],[Year]]=2016,0,tbl_twdbdata[[#This Row],[effsave]]-0.6*SUMIFS(tbl_twdbdata[effsave],tbl_twdbdata[Year],2020,tbl_twdbdata[utility],tbl_twdbdata[[#This Row],[utility]]))","v":272946174.39999998},23615,0,2076,0,2059789462,0,1138751186,0,null,null,{"$f":"tbl_twdbdata[[#This Row],[utility]]&tbl_twdbdata[[#This Row],[Year]]","v":"THE COLONY2050"}]
[null,2518,"THE COLONY","C",2060,33875,67600,394784000,{"$f":"IF(tbl_twdbdata[[#This Row],[Year]]=2016,0,tbl_twdbdata[[#This Row],[effsave]]-0.6*SUMIFS(tbl_twdbdata[effsave],tbl_twdbdata[Year],2020,tbl_twdbdata[utility],tbl_twdbdata[[#This Row],[utility]]))","v":277140754.39999998},23615,0,2270,0,2059789462,0,1138751186,0,null,null,{"$f":"tbl_twdbdata[[#This Row],[utility]]&tbl_twdbdata[[#This Row],[Year]]","v":"THE COLONY2060"}]
[null,2518,"THE COLONY","C",2070,33875,67600,395770960,{"$f":"IF(tbl_twdbdata[[#This Row],[Year]]=2016,0,tbl_twdbdata[[#This Row],[effsave]]-0.6*SUMIFS(tbl_twdbdata[effsave],tbl_twdbdata[Year],2020,tbl_twdbdata[utility],tbl_twdbdata[[#This Row],[utility]]))","v":278127714.39999998},23615,0,2483,0,2059789462,0,1138751186,0,null,null,{"$f":"tbl_twdbdata[[#This Row],[utility]]&tbl_twdbdata[[#This Row],[Year]]","v":"THE COLONY2070"}]
[null,2524,"THREE RIVERS","N",2016,2172,4413,0,{"$f":"IF(tbl_twdbdata[[#This Row],[Year]]=2016,0,tbl_twdbdata[[#This Row],[effsave]]-0.6*SUMIFS(tbl_twdbdata[effsave],tbl_twdbdata[Year],2020,tbl_twdbdata[utility],tbl_twdbdata[[#This Row],[utility]]))","v":0},1128,10,227,0,82688980,4689900,491483180,0,8145456,64628941,{"$f":"tbl_twdbdata[[#This Row],[utility]]&tbl_twdbdata[[#This Row],[Year]]","v":"THREE RIVERS2016"}]
[null,2524,"THREE RIVERS","N",2020,2172,3146,10805409,{"$f":"IF(tbl_twdbdata[[#This Row],[Year]]=2016,0,tbl_twdbdata[[#This Row],[effsave]]-0.6*SUMIFS(tbl_twdbdata[effsave],tbl_twdbdata[Year],2020,tbl_twdbdata[utility],tbl_twdbdata[[#This Row],[utility]]))","v":4322163.6000000006},1054,9,212,0,77284472,4383371,459360096,0,1666289,86859122,{"$f":"tbl_twdbdata[[#This Row],[utility]]&tbl_twdbdata[[#This Row],[Year]]","v":"THREE RIVERS2020"}]
[null,2524,"THREE RIVERS","N",2030,2172,3148,15638162,{"$f":"IF(tbl_twdbdata[[#This Row],[Year]]=2016,0,tbl_twdbdata[[#This Row],[effsave]]-0.6*SUMIFS(tbl_twdbdata[effsave],tbl_twdbdata[Year],2020,tbl_twdbdata[utility],tbl_twdbdata[[#This Row],[utility]]))","v":9154916.6000000015},1055,9,212,0,77333604,4386158,459652125,0,1667348,86914341,{"$f":"tbl_twdbdata[[#This Row],[utility]]&tbl_twdbdata[[#This Row],[Year]]","v":"THREE RIVERS2030"}]
[null,2524,"THREE RIVERS","N",2040,2172,3148,19705693,{"$f":"IF(tbl_twdbdata[[#This Row],[Year]]=2016,0,tbl_twdbdata[[#This Row],[effsave]]-0.6*SUMIFS(tbl_twdbdata[effsave],tbl_twdbdata[Year],2020,tbl_twdbdata[utility],tbl_twdbdata[[#This Row],[utility]]))","v":13222447.600000001},1055,9,212,0,77333604,4386158,459652125,0,1667348,86914341,{"$f":"tbl_twdbdata[[#This Row],[utility]]&tbl_twdbdata[[#This Row],[Year]]","v":"THREE RIVERS2040"}]
[null,2524,"THREE RIVERS","N",2050,2172,3148,21567105,{"$f":"IF(tbl_twdbdata[[#This Row],[Year]]=2016,0,tbl_twdbdata[[#This Row],[effsave]]-0.6*SUMIFS(tbl_twdbdata[effsave],tbl_twdbdata[Year],2020,tbl_twdbdata[utility],tbl_twdbdata[[#This Row],[utility]]))","v":15083859.600000001},1055,9,212,0,77333604,4386158,459652125,0,1667348,86914341,{"$f":"tbl_twdbdata[[#This Row],[utility]]&tbl_twdbdata[[#This Row],[Year]]","v":"THREE RIVERS2050"}]
[null,2524,"THREE RIVERS","N",2060,2172,3148,21934792,{"$f":"IF(tbl_twdbdata[[#This Row],[Year]]=2016,0,tbl_twdbdata[[#This Row],[effsave]]-0.6*SUMIFS(tbl_twdbdata[effsave],tbl_twdbdata[Year],2020,tbl_twdbdata[utility],tbl_twdbdata[[#This Row],[utility]]))","v":15451546.600000001},1055,9,212,0,77333604,4386158,459652125,0,1667348,86914341,{"$f":"tbl_twdbdata[[#This Row],[utility]]&tbl_twdbdata[[#This Row],[Year]]","v":"THREE RIVERS2060"}]
[null,2524,"THREE RIVERS","N",2070,2172,3148,21946282,{"$f":"IF(tbl_twdbdata[[#This Row],[Year]]=2016,0,tbl_twdbdata[[#This Row],[effsave]]-0.6*SUMIFS(tbl_twdbdata[effsave],tbl_twdbdata[Year],2020,tbl_twdbdata[utility],tbl_twdbdata[[#This Row],[utility]]))","v":15463036.600000001},1055,9,212,0,77333604,4386158,459652125,0,1667348,86914341,{"$f":"tbl_twdbdata[[#This Row],[utility]]&tbl_twdbdata[[#This Row],[Year]]","v":"THREE RIVERS2070"}]
[null,6568,"THUNDERBIRD UD","H",2016,5899,5899,0,{"$f":"IF(tbl_twdbdata[[#This Row],[Year]]=2016,0,tbl_twdbdata[[#This Row],[effsave]]-0.6*SUMIFS(tbl_twdbdata[effsave],tbl_twdbdata[Year],2020,tbl_twdbdata[utility],tbl_twdbdata[[#This Row],[utility]]))","v":0},1851,0,116,0,170824000,0,53521000,0,null,null,{"$f":"tbl_twdbdata[[#This Row],[utility]]&tbl_twdbdata[[#This Row],[Year]]","v":"THUNDERBIRD UD2016"}]
[null,6568,"THUNDERBIRD UD","H",2020,5294,6681,17777139,{"$f":"IF(tbl_twdbdata[[#This Row],[Year]]=2016,0,tbl_twdbdata[[#This Row],[effsave]]-0.6*SUMIFS(tbl_twdbdata[effsave],tbl_twdbdata[Year],2020,tbl_twdbdata[utility],tbl_twdbdata[[#This Row],[utility]]))","v":7110855.5999999996},2336,0,146,0,215578985,0,67543219,0,null,null,{"$f":"tbl_twdbdata[[#This Row],[utility]]&tbl_twdbdata[[#This Row],[Year]]","v":"THUNDERBIRD UD2020"}]
[null,6568,"THUNDERBIRD UD","H",2030,5294,8180,27587868,{"$f":"IF(tbl_twdbdata[[#This Row],[Year]]=2016,0,tbl_twdbdata[[#This Row],[effsave]]-0.6*SUMIFS(tbl_twdbdata[effsave],tbl_twdbdata[Year],2020,tbl_twdbdata[utility],tbl_twdbdata[[#This Row],[utility]]))","v":16921584.600000001},2860,0,179,0,263947927,0,82697730,0,null,null,{"$f":"tbl_twdbdata[[#This Row],[utility]]&tbl_twdbdata[[#This Row],[Year]]","v":"THUNDERBIRD UD2030"}]
[null,6568,"THUNDERBIRD UD","H",2040,5294,8180,30424283,{"$f":"IF(tbl_twdbdata[[#This Row],[Year]]=2016,0,tbl_twdbdata[[#This Row],[effsave]]-0.6*SUMIFS(tbl_twdbdata[effsave],tbl_twdbdata[Year],2020,tbl_twdbdata[utility],tbl_twdbdata[[#This Row],[utility]]))","v":19757999.600000001},2860,0,219,0,263947927,0,82697730,0,null,null,{"$f":"tbl_twdbdata[[#This Row],[utility]]&tbl_twdbdata[[#This Row],[Year]]","v":"THUNDERBIRD UD2040"}]
[null,6568,"THUNDERBIRD UD","H",2050,5294,8180,31917133,{"$f":"IF(tbl_twdbdata[[#This Row],[Year]]=2016,0,tbl_twdbdata[[#This Row],[effsave]]-0.6*SUMIFS(tbl_twdbdata[effsave],tbl_twdbdata[Year],2020,tbl_twdbdata[utility],tbl_twdbdata[[#This Row],[utility]]))","v":21250849.600000001},2860,0,268,0,263947927,0,82697730,0,null,null,{"$f":"tbl_twdbdata[[#This Row],[utility]]&tbl_twdbdata[[#This Row],[Year]]","v":"THUNDERBIRD UD2050"}]
[null,6568,"THUNDERBIRD UD","H",2060,5294,8180,32544130,{"$f":"IF(tbl_twdbdata[[#This Row],[Year]]=2016,0,tbl_twdbdata[[#This Row],[effsave]]-0.6*SUMIFS(tbl_twdbdata[effsave],tbl_twdbdata[Year],2020,tbl_twdbdata[utility],tbl_twdbdata[[#This Row],[utility]]))","v":21877846.600000001},2860,0,328,0,263947927,0,82697730,0,null,null,{"$f":"tbl_twdbdata[[#This Row],[utility]]&tbl_twdbdata[[#This Row],[Year]]","v":"THUNDERBIRD UD2060"}]
[null,6568,"THUNDERBIRD UD","H",2070,5294,8180,32723272,{"$f":"IF(tbl_twdbdata[[#This Row],[Year]]=2016,0,tbl_twdbdata[[#This Row],[effsave]]-0.6*SUMIFS(tbl_twdbdata[effsave],tbl_twdbdata[Year],2020,tbl_twdbdata[utility],tbl_twdbdata[[#This Row],[utility]]))","v":22056988.600000001},2860,0,402,0,263947927,0,82697730,0,null,null,{"$f":"tbl_twdbdata[[#This Row],[utility]]&tbl_twdbdata[[#This Row],[Year]]","v":"THUNDERBIRD UD2070"}]
[null,2528,"TIOGA","C",2016,1407,1407,0,{"$f":"IF(tbl_twdbdata[[#This Row],[Year]]=2016,0,tbl_twdbdata[[#This Row],[effsave]]-0.6*SUMIFS(tbl_twdbdata[effsave],tbl_twdbdata[Year],2020,tbl_twdbdata[utility],tbl_twdbdata[[#This Row],[utility]]))","v":0},454,1,49,0,25871222,776000,9582700,0,498110,3120736,{"$f":"tbl_twdbdata[[#This Row],[utility]]&tbl_twdbdata[[#This Row],[Year]]","v":"TIOGA2016"}]
[null,2528,"TIOGA","C",2020,1016,1209,4028932,{"$f":"IF(tbl_twdbdata[[#This Row],[Year]]=2016,0,tbl_twdbdata[[#This Row],[effsave]]-0.6*SUMIFS(tbl_twdbdata[effsave],tbl_twdbdata[Year],2020,tbl_twdbdata[utility],tbl_twdbdata[[#This Row],[utility]]))","v":1611572.8000000003},540,1,59,0,30785736,923409,11403036,0,592731,3713553,{"$f":"tbl_twdbdata[[#This Row],[utility]]&tbl_twdbdata[[#This Row],[Year]]","v":"TIOGA2020"}]
[null,2528,"TIOGA","C",2030,1016,1322,6234288,{"$f":"IF(tbl_twdbdata[[#This Row],[Year]]=2016,0,tbl_twdbdata[[#This Row],[effsave]]-0.6*SUMIFS(tbl_twdbdata[effsave],tbl_twdbdata[Year],2020,tbl_twdbdata[utility],tbl_twdbdata[[#This Row],[utility]]))","v":3816928.8000000003},590,1,65,0,33663146,1009716,12468828,0,648131,4060643,{"$f":"tbl_twdbdata[[#This Row],[utility]]&tbl_twdbdata[[#This Row],[Year]]","v":"TIOGA2030"}]
[null,2528,"TIOGA","C",2040,1016,1421,8096361,{"$f":"IF(tbl_twdbdata[[#This Row],[Year]]=2016,0,tbl_twdbdata[[#This Row],[effsave]]-0.6*SUMIFS(tbl_twdbdata[effsave],tbl_twdbdata[Year],2020,tbl_twdbdata[utility],tbl_twdbdata[[#This Row],[utility]]))","v":5679001.8000000007},634,1,71,0,36184062,1085330,13402576,0,696667,4364730,{"$f":"tbl_twdbdata[[#This Row],[utility]]&tbl_twdbdata[[#This Row],[Year]]","v":"TIOGA2040"}]
[null,2528,"TIOGA","C",2050,1016,1535,9524675,{"$f":"IF(tbl_twdbdata[[#This Row],[Year]]=2016,0,tbl_twdbdata[[#This Row],[effsave]]-0.6*SUMIFS(tbl_twdbdata[effsave],tbl_twdbdata[Year],2020,tbl_twdbdata[utility],tbl_twdbdata[[#This Row],[utility]]))","v":7107315.8000000007},685,1,78,0,39086935,1172401,14477801,0,752557,4714891,{"$f":"tbl_twdbdata[[#This Row],[utility]]&tbl_twdbdata[[#This Row],[Year]]","v":"TIOGA2050"}]
[null,2528,"TIOGA","C",2060,1016,3395,22255583,{"$f":"IF(tbl_twdbdata[[#This Row],[Year]]=2016,0,tbl_twdbdata[[#This Row],[effsave]]-0.6*SUMIFS(tbl_twdbdata[effsave],tbl_twdbdata[Year],2020,tbl_twdbdata[utility],tbl_twdbdata[[#This Row],[utility]]))","v":19838223.800000001},1515,1,85,0,86449605,2593030,32020935,0,1664450,10428049,{"$f":"tbl_twdbdata[[#This Row],[utility]]&tbl_twdbdata[[#This Row],[Year]]","v":"TIOGA2060"}]
[null,2528,"TIOGA","C",2070,1016,4656,30657898,{"$f":"IF(tbl_twdbdata[[#This Row],[Year]]=2016,0,tbl_twdbdata[[#This Row],[effsave]]-0.6*SUMIFS(tbl_twdbdata[effsave],tbl_twdbdata[Year],2020,tbl_twdbdata[utility],tbl_twdbdata[[#This Row],[utility]]))","v":28240538.800000001},2078,1,93,0,118559458,3556155,43914425,0,2282674,14301324,{"$f":"tbl_twdbdata[[#This Row],[utility]]&tbl_twdbdata[[#This Row],[Year]]","v":"TIOGA2070"}]
[null,2530,"TOM BEAN","C",2016,1045,1045,0,{"$f":"IF(tbl_twdbdata[[#This Row],[Year]]=2016,0,tbl_twdbdata[[#This Row],[effsave]]-0.6*SUMIFS(tbl_twdbdata[effsave],tbl_twdbdata[Year],2020,tbl_twdbdata[utility],tbl_twdbdata[[#This Row],[utility]]))","v":0},397,38,26,0,22996320,1735200,4320800,0,4588486,10638072,{"$f":"tbl_twdbdata[[#This Row],[utility]]&tbl_twdbdata[[#This Row],[Year]]","v":"TOM BEAN2016"}]
[null,2530,"TOM BEAN","C",2020,1045,1256,4387271,{"$f":"IF(tbl_twdbdata[[#This Row],[Year]]=2016,0,tbl_twdbdata[[#This Row],[effsave]]-0.6*SUMIFS(tbl_twdbdata[effsave],tbl_twdbdata[Year],2020,tbl_twdbdata[utility],tbl_twdbdata[[#This Row],[utility]]))","v":1754908.4},423,41,28,0,24518997,1850094,4606897,0,4892308,11342460,{"$f":"tbl_twdbdata[[#This Row],[utility]]&tbl_twdbdata[[#This Row],[Year]]","v":"TOM BEAN2020"}]
[null,2530,"TOM BEAN","C",2030,1045,1432,7097994,{"$f":"IF(tbl_twdbdata[[#This Row],[Year]]=2016,0,tbl_twdbdata[[#This Row],[effsave]]-0.6*SUMIFS(tbl_twdbdata[effsave],tbl_twdbdata[Year],2020,tbl_twdbdata[utility],tbl_twdbdata[[#This Row],[utility]]))","v":4465631.4000000004},482,47,32,0,27954780,2109343,5252449,0,5577854,12931849,{"$f":"tbl_twdbdata[[#This Row],[utility]]&tbl_twdbdata[[#This Row],[Year]]","v":"TOM BEAN2030"}]
[null,2530,"TOM BEAN","C",2040,1045,1593,9431038,{"$f":"IF(tbl_twdbdata[[#This Row],[Year]]=2016,0,tbl_twdbdata[[#This Row],[effsave]]-0.6*SUMIFS(tbl_twdbdata[effsave],tbl_twdbdata[Year],2020,tbl_twdbdata[utility],tbl_twdbdata[[#This Row],[utility]]))","v":6798675.4000000004},536,54,36,0,31097741,2346497,5842983,0,6204973,14385779,{"$f":"tbl_twdbdata[[#This Row],[utility]]&tbl_twdbdata[[#This Row],[Year]]","v":"TOM BEAN2040"}]
[null,2530,"TOM BEAN","C",2050,1045,1779,11389336,{"$f":"IF(tbl_twdbdata[[#This Row],[Year]]=2016,0,tbl_twdbdata[[#This Row],[effsave]]-0.6*SUMIFS(tbl_twdbdata[effsave],tbl_twdbdata[Year],2020,tbl_twdbdata[utility],tbl_twdbdata[[#This Row],[utility]]))","v":8756973.4000000004},599,62,41,0,34728739,2620476,6525214,0,6929471,16065474,{"$f":"tbl_twdbdata[[#This Row],[utility]]&tbl_twdbdata[[#This Row],[Year]]","v":"TOM BEAN2050"}]
[null,2530,"TOM BEAN","C",2060,1045,2196,14347566,{"$f":"IF(tbl_twdbdata[[#This Row],[Year]]=2016,0,tbl_twdbdata[[#This Row],[effsave]]-0.6*SUMIFS(tbl_twdbdata[effsave],tbl_twdbdata[Year],2020,tbl_twdbdata[utility],tbl_twdbdata[[#This Row],[utility]]))","v":11715203.4},739,71,47,0,42869202,3234719,8054733,0,8553748,19831243,{"$f":"tbl_twdbdata[[#This Row],[utility]]&tbl_twdbdata[[#This Row],[Year]]","v":"TOM BEAN2060"}]
[null,2530,"TOM BEAN","C",2070,1045,3294,21821927,{"$f":"IF(tbl_twdbdata[[#This Row],[Year]]=2016,0,tbl_twdbdata[[#This Row],[effsave]]-0.6*SUMIFS(tbl_twdbdata[effsave],tbl_twdbdata[Year],2020,tbl_twdbdata[utility],tbl_twdbdata[[#This Row],[utility]]))","v":19189564.399999999},1109,81,54,0,64303803,4852079,12082100,0,12830622,29746865,{"$f":"tbl_twdbdata[[#This Row],[utility]]&tbl_twdbdata[[#This Row],[Year]]","v":"TOM BEAN2070"}]
[null,2531,"TOMBALL","H",2016,11928,11928,0,{"$f":"IF(tbl_twdbdata[[#This Row],[Year]]=2016,0,tbl_twdbdata[[#This Row],[effsave]]-0.6*SUMIFS(tbl_twdbdata[effsave],tbl_twdbdata[Year],2020,tbl_twdbdata[utility],tbl_twdbdata[[#This Row],[utility]]))","v":0},2809,173,1004,0,252488000,77071000,312819000,0,9933775,142390245,{"$f":"tbl_twdbdata[[#This Row],[utility]]&tbl_twdbdata[[#This Row],[Year]]","v":"TOMBALL2016"}]
[null,2531,"TOMBALL","H",2020,11928,12742,42462078,{"$f":"IF(tbl_twdbdata[[#This Row],[Year]]=2016,0,tbl_twdbdata[[#This Row],[effsave]]-0.6*SUMIFS(tbl_twdbdata[effsave],tbl_twdbdata[Year],2020,tbl_twdbdata[utility],tbl_twdbdata[[#This Row],[utility]]))","v":16984831.199999999},3001,185,1073,0,269718486,82330540,334166642,0,10611684,152107353,{"$f":"tbl_twdbdata[[#This Row],[utility]]&tbl_twdbdata[[#This Row],[Year]]","v":"TOMBALL2020"}]
[null,2531,"TOMBALL","H",2030,11928,13457,59629313,{"$f":"IF(tbl_twdbdata[[#This Row],[Year]]=2016,0,tbl_twdbdata[[#This Row],[effsave]]-0.6*SUMIFS(tbl_twdbdata[effsave],tbl_twdbdata[Year],2020,tbl_twdbdata[utility],tbl_twdbdata[[#This Row],[utility]]))","v":34152066.200000003},3169,195,1133,0,284853372,86950406,352917949,0,11207144,160642650,{"$f":"tbl_twdbdata[[#This Row],[utility]]&tbl_twdbdata[[#This Row],[Year]]","v":"TOMBALL2030"}]
[null,2531,"TOMBALL","H",2040,11928,14110,73338136,{"$f":"IF(tbl_twdbdata[[#This Row],[Year]]=2016,0,tbl_twdbdata[[#This Row],[effsave]]-0.6*SUMIFS(tbl_twdbdata[effsave],tbl_twdbdata[Year],2020,tbl_twdbdata[utility],tbl_twdbdata[[#This Row],[utility]]))","v":47860889.200000003},3323,206,1197,0,298675862,91169668,370043268,0,11750970,168437824,{"$f":"tbl_twdbdata[[#This Row],[utility]]&tbl_twdbdata[[#This Row],[Year]]","v":"TOMBALL2040"}]
[null,2531,"TOMBALL","H",2050,11928,14677,82285133,{"$f":"IF(tbl_twdbdata[[#This Row],[Year]]=2016,0,tbl_twdbdata[[#This Row],[effsave]]-0.6*SUMIFS(tbl_twdbdata[effsave],tbl_twdbdata[Year],2020,tbl_twdbdata[utility],tbl_twdbdata[[#This Row],[utility]]))","v":56807886.200000003},3457,218,1264,0,310677932,94833254,384913186,0,12223174,175206374,{"$f":"tbl_twdbdata[[#This Row],[utility]]&tbl_twdbdata[[#This Row],[Year]]","v":"TOMBALL2050"}]
[null,2531,"TOMBALL","H",2060,11928,15182,86612551,{"$f":"IF(tbl_twdbdata[[#This Row],[Year]]=2016,0,tbl_twdbdata[[#This Row],[effsave]]-0.6*SUMIFS(tbl_twdbdata[effsave],tbl_twdbdata[Year],2020,tbl_twdbdata[utility],tbl_twdbdata[[#This Row],[utility]]))","v":61135304.200000003},3576,230,1335,0,321367607,98096236,398157116,0,12643744,181234801,{"$f":"tbl_twdbdata[[#This Row],[utility]]&tbl_twdbdata[[#This Row],[Year]]","v":"TOMBALL2060"}]
[null,2531,"TOMBALL","H",2070,11928,15644,89533741,{"$f":"IF(tbl_twdbdata[[#This Row],[Year]]=2016,0,tbl_twdbdata[[#This Row],[effsave]]-0.6*SUMIFS(tbl_twdbdata[effsave],tbl_twdbdata[Year],2020,tbl_twdbdata[utility],tbl_twdbdata[[#This Row],[utility]]))","v":64056494.200000003},3685,243,1410,0,331147072,101081380,410273345,0,13028503,186749916,{"$f":"tbl_twdbdata[[#This Row],[utility]]&tbl_twdbdata[[#This Row],[Year]]","v":"TOMBALL2070"}]
[null,6570,"TRAVIS COUNTY MUD 10","K",2016,495,495,0,{"$f":"IF(tbl_twdbdata[[#This Row],[Year]]=2016,0,tbl_twdbdata[[#This Row],[effsave]]-0.6*SUMIFS(tbl_twdbdata[effsave],tbl_twdbdata[Year],2020,tbl_twdbdata[utility],tbl_twdbdata[[#This Row],[utility]]))","v":0},151,0,0,9,12955000,0,0,5320000,236442,403897,{"$f":"tbl_twdbdata[[#This Row],[utility]]&tbl_twdbdata[[#This Row],[Year]]","v":"TRAVIS COUNTY MUD 102016"}]
[null,6570,"TRAVIS COUNTY MUD 10","K",2020,480,348,1060617,{"$f":"IF(tbl_twdbdata[[#This Row],[Year]]=2016,0,tbl_twdbdata[[#This Row],[effsave]]-0.6*SUMIFS(tbl_twdbdata[effsave],tbl_twdbdata[Year],2020,tbl_twdbdata[utility],tbl_twdbdata[[#This Row],[utility]]))","v":424246.80000000005},109,0,0,7,9392375,0,0,3857000,171420,292825,{"$f":"tbl_twdbdata[[#This Row],[utility]]&tbl_twdbdata[[#This Row],[Year]]","v":"TRAVIS COUNTY MUD 102020"}]
[null,6570,"TRAVIS COUNTY MUD 10","K",2030,480,412,1678241,{"$f":"IF(tbl_twdbdata[[#This Row],[Year]]=2016,0,tbl_twdbdata[[#This Row],[effsave]]-0.6*SUMIFS(tbl_twdbdata[effsave],tbl_twdbdata[Year],2020,tbl_twdbdata[utility],tbl_twdbdata[[#This Row],[utility]]))","v":1041870.8},129,0,0,8,11119708,0,0,4566333,202946,346678,{"$f":"tbl_twdbdata[[#This Row],[utility]]&tbl_twdbdata[[#This Row],[Year]]","v":"TRAVIS COUNTY MUD 102030"}]
[null,6570,"TRAVIS COUNTY MUD 10","K",2040,480,474,2216258,{"$f":"IF(tbl_twdbdata[[#This Row],[Year]]=2016,0,tbl_twdbdata[[#This Row],[effsave]]-0.6*SUMIFS(tbl_twdbdata[effsave],tbl_twdbdata[Year],2020,tbl_twdbdata[utility],tbl_twdbdata[[#This Row],[utility]]))","v":1579887.8},148,0,0,9,12793062,0,0,5253500,233486,398848,{"$f":"tbl_twdbdata[[#This Row],[utility]]&tbl_twdbdata[[#This Row],[Year]]","v":"TRAVIS COUNTY MUD 102040"}]
[null,6570,"TRAVIS COUNTY MUD 10","K",2050,480,519,2581999,{"$f":"IF(tbl_twdbdata[[#This Row],[Year]]=2016,0,tbl_twdbdata[[#This Row],[effsave]]-0.6*SUMIFS(tbl_twdbdata[effsave],tbl_twdbdata[Year],2020,tbl_twdbdata[utility],tbl_twdbdata[[#This Row],[utility]]))","v":1945628.8},162,0,0,11,14007593,0,0,5752250,255652,436713,{"$f":"tbl_twdbdata[[#This Row],[utility]]&tbl_twdbdata[[#This Row],[Year]]","v":"TRAVIS COUNTY MUD 102050"}]
[null,6570,"TRAVIS COUNTY MUD 10","K",2060,480,556,2814778,{"$f":"IF(tbl_twdbdata[[#This Row],[Year]]=2016,0,tbl_twdbdata[[#This Row],[effsave]]-0.6*SUMIFS(tbl_twdbdata[effsave],tbl_twdbdata[Year],2020,tbl_twdbdata[utility],tbl_twdbdata[[#This Row],[utility]]))","v":2178407.7999999998},174,0,0,13,15006208,0,0,6162333,273878,467847,{"$f":"tbl_twdbdata[[#This Row],[utility]]&tbl_twdbdata[[#This Row],[Year]]","v":"TRAVIS COUNTY MUD 102060"}]
[null,6570,"TRAVIS COUNTY MUD 10","K",2070,480,597,3035417,{"$f":"IF(tbl_twdbdata[[#This Row],[Year]]=2016,0,tbl_twdbdata[[#This Row],[effsave]]-0.6*SUMIFS(tbl_twdbdata[effsave],tbl_twdbdata[Year],2020,tbl_twdbdata[utility],tbl_twdbdata[[#This Row],[utility]]))","v":2399046.7999999998},187,0,0,15,16112781,0,0,6616750,294074,502347,{"$f":"tbl_twdbdata[[#This Row],[utility]]&tbl_twdbdata[[#This Row],[Year]]","v":"TRAVIS COUNTY MUD 102070"}]
[null,2535,"TRAVIS COUNTY WCID 17","K",2016,29173,34290,0,{"$f":"IF(tbl_twdbdata[[#This Row],[Year]]=2016,0,tbl_twdbdata[[#This Row],[effsave]]-0.6*SUMIFS(tbl_twdbdata[effsave],tbl_twdbdata[Year],2020,tbl_twdbdata[utility],tbl_twdbdata[[#This Row],[utility]]))","v":0},10805,1720,548,0,1644972157,50912940,383106579,0,35698274,231020781,{"$f":"tbl_twdbdata[[#This Row],[utility]]&tbl_twdbdata[[#This Row],[Year]]","v":"TRAVIS COUNTY WCID 172016"}]
[null,2535,"TRAVIS COUNTY WCID 17","K",2020,29173,36720,109902960,{"$f":"IF(tbl_twdbdata[[#This Row],[Year]]=2016,0,tbl_twdbdata[[#This Row],[effsave]]-0.6*SUMIFS(tbl_twdbdata[effsave],tbl_twdbdata[Year],2020,tbl_twdbdata[utility],tbl_twdbdata[[#This Row],[utility]]))","v":43961184},12971,2065,658,0,1974676439,61117498,459893216,0,42853334,277324629,{"$f":"tbl_twdbdata[[#This Row],[utility]]&tbl_twdbdata[[#This Row],[Year]]","v":"TRAVIS COUNTY WCID 172020"}]
[null,2535,"TRAVIS COUNTY WCID 17","K",2030,29173,39741,147665634,{"$f":"IF(tbl_twdbdata[[#This Row],[Year]]=2016,0,tbl_twdbdata[[#This Row],[effsave]]-0.6*SUMIFS(tbl_twdbdata[effsave],tbl_twdbdata[Year],2020,tbl_twdbdata[utility],tbl_twdbdata[[#This Row],[utility]]))","v":81723858},14038,2235,712,0,2137135522,66145710,497729202,0,46378931,300140471,{"$f":"tbl_twdbdata[[#This Row],[utility]]&tbl_twdbdata[[#This Row],[Year]]","v":"TRAVIS COUNTY WCID 172030"}]
[null,2535,"TRAVIS COUNTY WCID 17","K",2040,29173,43715,175994404,{"$f":"IF(tbl_twdbdata[[#This Row],[Year]]=2016,0,tbl_twdbdata[[#This Row],[effsave]]-0.6*SUMIFS(tbl_twdbdata[effsave],tbl_twdbdata[Year],2020,tbl_twdbdata[utility],tbl_twdbdata[[#This Row],[utility]]))","v":110052628},15442,2419,771,0,2350843697,72760115,547500870,0,51016707,330153763,{"$f":"tbl_twdbdata[[#This Row],[utility]]&tbl_twdbdata[[#This Row],[Year]]","v":"TRAVIS COUNTY WCID 172040"}]
[null,2535,"TRAVIS COUNTY WCID 17","K",2050,29173,44473,185863785,{"$f":"IF(tbl_twdbdata[[#This Row],[Year]]=2016,0,tbl_twdbdata[[#This Row],[effsave]]-0.6*SUMIFS(tbl_twdbdata[effsave],tbl_twdbdata[Year],2020,tbl_twdbdata[utility],tbl_twdbdata[[#This Row],[utility]]))","v":119922009},15710,2618,834,0,2391606353,74021745,556994309,0,51901316,335878493,{"$f":"tbl_twdbdata[[#This Row],[utility]]&tbl_twdbdata[[#This Row],[Year]]","v":"TRAVIS COUNTY WCID 172050"}]
[null,2535,"TRAVIS COUNTY WCID 17","K",2060,29173,45671,193704412,{"$f":"IF(tbl_twdbdata[[#This Row],[Year]]=2016,0,tbl_twdbdata[[#This Row],[effsave]]-0.6*SUMIFS(tbl_twdbdata[effsave],tbl_twdbdata[Year],2020,tbl_twdbdata[utility],tbl_twdbdata[[#This Row],[utility]]))","v":127762636},16133,2833,902,0,2456030710,76015720,571998451,0,53299418,344926285,{"$f":"tbl_twdbdata[[#This Row],[utility]]&tbl_twdbdata[[#This Row],[Year]]","v":"TRAVIS COUNTY WCID 172060"}]
[null,2535,"TRAVIS COUNTY WCID 17","K",2070,29173,47125,200903300,{"$f":"IF(tbl_twdbdata[[#This Row],[Year]]=2016,0,tbl_twdbdata[[#This Row],[effsave]]-0.6*SUMIFS(tbl_twdbdata[effsave],tbl_twdbdata[Year],2020,tbl_twdbdata[utility],tbl_twdbdata[[#This Row],[utility]]))","v":134961524},16647,3066,976,0,2534221874,78435786,590208820,0,54996279,355907494,{"$f":"tbl_twdbdata[[#This Row],[utility]]&tbl_twdbdata[[#This Row],[Year]]","v":"TRAVIS COUNTY WCID 172070"}]
[null,2988,"TRI SUD","D",2016,14400,14400,0,{"$f":"IF(tbl_twdbdata[[#This Row],[Year]]=2016,0,tbl_twdbdata[[#This Row],[effsave]]-0.6*SUMIFS(tbl_twdbdata[effsave],tbl_twdbdata[Year],2020,tbl_twdbdata[utility],tbl_twdbdata[[#This Row],[utility]]))","v":0},5578,28,56,13,343094742,9761820,29401120,3320430,6486810,126879854,{"$f":"tbl_twdbdata[[#This Row],[utility]]&tbl_twdbdata[[#This Row],[Year]]","v":"TRI SUD2016"}]
[null,2988,"TRI SUD","D",2020,14400,17321,52979743,{"$f":"IF(tbl_twdbdata[[#This Row],[Year]]=2016,0,tbl_twdbdata[[#This Row],[effsave]]-0.6*SUMIFS(tbl_twdbdata[effsave],tbl_twdbdata[Year],2020,tbl_twdbdata[utility],tbl_twdbdata[[#This Row],[utility]]))","v":21191897.200000003},6073,30,61,14,373522566,10627560,32008598,3614907,7062102,138132367,{"$f":"tbl_twdbdata[[#This Row],[utility]]&tbl_twdbdata[[#This Row],[Year]]","v":"TRI SUD2020"}]
[null,2988,"TRI SUD","D",2030,14400,19359,81966006,{"$f":"IF(tbl_twdbdata[[#This Row],[Year]]=2016,0,tbl_twdbdata[[#This Row],[effsave]]-0.6*SUMIFS(tbl_twdbdata[effsave],tbl_twdbdata[Year],2020,tbl_twdbdata[utility],tbl_twdbdata[[#This Row],[utility]]))","v":50178160.200000003},6788,34,69,16,417471471,11878006,35774750,4040239,7893033,154385110,{"$f":"tbl_twdbdata[[#This Row],[utility]]&tbl_twdbdata[[#This Row],[Year]]","v":"TRI SUD2030"}]
[null,2988,"TRI SUD","D",2040,14400,21470,107125639,{"$f":"IF(tbl_twdbdata[[#This Row],[Year]]=2016,0,tbl_twdbdata[[#This Row],[effsave]]-0.6*SUMIFS(tbl_twdbdata[effsave],tbl_twdbdata[Year],2020,tbl_twdbdata[utility],tbl_twdbdata[[#This Row],[utility]]))","v":75337793.200000003},7528,38,77,18,462994601,13173242,39675804,4480806,8753728,171220017,{"$f":"tbl_twdbdata[[#This Row],[utility]]&tbl_twdbdata[[#This Row],[Year]]","v":"TRI SUD2040"}]
[null,2988,"TRI SUD","D",2050,14400,23801,127964886,{"$f":"IF(tbl_twdbdata[[#This Row],[Year]]=2016,0,tbl_twdbdata[[#This Row],[effsave]]-0.6*SUMIFS(tbl_twdbdata[effsave],tbl_twdbdata[Year],2020,tbl_twdbdata[utility],tbl_twdbdata[[#This Row],[utility]]))","v":96177040.200000003},8345,42,86,20,513261970,14603462,43983410,4967288,9704121,189809391,{"$f":"tbl_twdbdata[[#This Row],[utility]]&tbl_twdbdata[[#This Row],[Year]]","v":"TRI SUD2050"}]
[null,2988,"TRI SUD","D",2060,14400,26242,143962300,{"$f":"IF(tbl_twdbdata[[#This Row],[Year]]=2016,0,tbl_twdbdata[[#This Row],[effsave]]-0.6*SUMIFS(tbl_twdbdata[effsave],tbl_twdbdata[Year],2020,tbl_twdbdata[utility],tbl_twdbdata[[#This Row],[utility]]))","v":112174454.2},9201,47,96,22,565901459,16101174,48494292,5476727,10699363,209275998,{"$f":"tbl_twdbdata[[#This Row],[utility]]&tbl_twdbdata[[#This Row],[Year]]","v":"TRI SUD2060"}]
[null,2988,"TRI SUD","D",2070,14400,28819,159046297,{"$f":"IF(tbl_twdbdata[[#This Row],[Year]]=2016,0,tbl_twdbdata[[#This Row],[effsave]]-0.6*SUMIFS(tbl_twdbdata[effsave],tbl_twdbdata[Year],2020,tbl_twdbdata[utility],tbl_twdbdata[[#This Row],[utility]]))","v":127258451.2},10105,53,108,25,621473750,17682331,53256498,6014549,11750055,229827185,{"$f":"tbl_twdbdata[[#This Row],[utility]]&tbl_twdbdata[[#This Row],[Year]]","v":"TRI SUD2070"}]
[null,2545,"TRINITY RURAL WSC","H",2016,3801,3801,0,{"$f":"IF(tbl_twdbdata[[#This Row],[Year]]=2016,0,tbl_twdbdata[[#This Row],[effsave]]-0.6*SUMIFS(tbl_twdbdata[effsave],tbl_twdbdata[Year],2020,tbl_twdbdata[utility],tbl_twdbdata[[#This Row],[utility]]))","v":0},1267,0,0,0,86874220,0,0,0,6352452,17076701,{"$f":"tbl_twdbdata[[#This Row],[utility]]&tbl_twdbdata[[#This Row],[Year]]","v":"TRINITY RURAL WSC2016"}]
[null,2545,"TRINITY RURAL WSC","H",2020,3341,4234,12888719,{"$f":"IF(tbl_twdbdata[[#This Row],[Year]]=2016,0,tbl_twdbdata[[#This Row],[effsave]]-0.6*SUMIFS(tbl_twdbdata[effsave],tbl_twdbdata[Year],2020,tbl_twdbdata[utility],tbl_twdbdata[[#This Row],[utility]]))","v":5155487.6000000006},1606,0,0,0,110094417,0,0,0,1468155676,15188853047,{"$f":"tbl_twdbdata[[#This Row],[utility]]&tbl_twdbdata[[#This Row],[Year]]","v":"TRINITY RURAL WSC2020"}]
[null,2545,"TRINITY RURAL WSC","H",2030,3341,4587,18919082,{"$f":"IF(tbl_twdbdata[[#This Row],[Year]]=2016,0,tbl_twdbdata[[#This Row],[effsave]]-0.6*SUMIFS(tbl_twdbdata[effsave],tbl_twdbdata[Year],2020,tbl_twdbdata[utility],tbl_twdbdata[[#This Row],[utility]]))","v":11185850.600000001},1740,0,0,0,119273285,0,0,0,1590559775,16455188693,{"$f":"tbl_twdbdata[[#This Row],[utility]]&tbl_twdbdata[[#This Row],[Year]]","v":"TRINITY RURAL WSC2030"}]
[null,2545,"TRINITY RURAL WSC","H",2040,3341,4644,22222237,{"$f":"IF(tbl_twdbdata[[#This Row],[Year]]=2016,0,tbl_twdbdata[[#This Row],[effsave]]-0.6*SUMIFS(tbl_twdbdata[effsave],tbl_twdbdata[Year],2020,tbl_twdbdata[utility],tbl_twdbdata[[#This Row],[utility]]))","v":14489005.600000001},1762,0,0,0,120755425,0,0,0,1610324743,16659667820,{"$f":"tbl_twdbdata[[#This Row],[utility]]&tbl_twdbdata[[#This Row],[Year]]","v":"TRINITY RURAL WSC2040"}]
[null,2545,"TRINITY RURAL WSC","H",2050,3341,4545,23440610,{"$f":"IF(tbl_twdbdata[[#This Row],[Year]]=2016,0,tbl_twdbdata[[#This Row],[effsave]]-0.6*SUMIFS(tbl_twdbdata[effsave],tbl_twdbdata[Year],2020,tbl_twdbdata[utility],tbl_twdbdata[[#This Row],[utility]]))","v":15707378.600000001},1724,0,0,0,118181181,0,0,0,1575996115,16304519863,{"$f":"tbl_twdbdata[[#This Row],[utility]]&tbl_twdbdata[[#This Row],[Year]]","v":"TRINITY RURAL WSC2050"}]
[null,2545,"TRINITY RURAL WSC","H",2060,3341,4712,24852266,{"$f":"IF(tbl_twdbdata[[#This Row],[Year]]=2016,0,tbl_twdbdata[[#This Row],[effsave]]-0.6*SUMIFS(tbl_twdbdata[effsave],tbl_twdbdata[Year],2020,tbl_twdbdata[utility],tbl_twdbdata[[#This Row],[utility]]))","v":17119034.600000001},1787,0,0,0,122523592,0,0,0,1633904003,16903607832,{"$f":"tbl_twdbdata[[#This Row],[utility]]&tbl_twdbdata[[#This Row],[Year]]","v":"TRINITY RURAL WSC2060"}]
[null,2545,"TRINITY RURAL WSC","H",2070,3341,4926,26088835,{"$f":"IF(tbl_twdbdata[[#This Row],[Year]]=2016,0,tbl_twdbdata[[#This Row],[effsave]]-0.6*SUMIFS(tbl_twdbdata[effsave],tbl_twdbdata[Year],2020,tbl_twdbdata[utility],tbl_twdbdata[[#This Row],[utility]]))","v":18355603.600000001},1868,0,0,0,128088118,0,0,0,1708109321,17671301397,{"$f":"tbl_twdbdata[[#This Row],[utility]]&tbl_twdbdata[[#This Row],[Year]]","v":"TRINITY RURAL WSC2070"}]
[null,144,"TYLER","I",2016,103700,103700,0,{"$f":"IF(tbl_twdbdata[[#This Row],[Year]]=2016,0,tbl_twdbdata[[#This Row],[effsave]]-0.6*SUMIFS(tbl_twdbdata[effsave],tbl_twdbdata[Year],2020,tbl_twdbdata[utility],tbl_twdbdata[[#This Row],[utility]]))","v":0},29786,475,4339,0,3530083000,678277000,2944551000,0,885884268,864257258,{"$f":"tbl_twdbdata[[#This Row],[utility]]&tbl_twdbdata[[#This Row],[Year]]","v":"TYLER2016"}]
[null,144,"TYLER","I",2020,99904,105666,354440747,{"$f":"IF(tbl_twdbdata[[#This Row],[Year]]=2016,0,tbl_twdbdata[[#This Row],[effsave]]-0.6*SUMIFS(tbl_twdbdata[effsave],tbl_twdbdata[Year],2020,tbl_twdbdata[utility],tbl_twdbdata[[#This Row],[utility]]))","v":141776298.80000001},31504,502,4589,0,3733681837,717396876,3114379064,0,936977969,914103614,{"$f":"tbl_twdbdata[[#This Row],[utility]]&tbl_twdbdata[[#This Row],[Year]]","v":"TYLER2020"}]
[null,144,"TYLER","I",2030,99904,115064,547658614,{"$f":"IF(tbl_twdbdata[[#This Row],[Year]]=2016,0,tbl_twdbdata[[#This Row],[effsave]]-0.6*SUMIFS(tbl_twdbdata[effsave],tbl_twdbdata[Year],2020,tbl_twdbdata[utility],tbl_twdbdata[[#This Row],[utility]]))","v":334994165.80000001},34306,547,4997,0,4065757830,781202602,3391373882,0,1020313374,995404560,{"$f":"tbl_twdbdata[[#This Row],[utility]]&tbl_twdbdata[[#This Row],[Year]]","v":"TYLER2030"}]
[null,144,"TYLER","I",2040,99904,124509,715771114,{"$f":"IF(tbl_twdbdata[[#This Row],[Year]]=2016,0,tbl_twdbdata[[#This Row],[effsave]]-0.6*SUMIFS(tbl_twdbdata[effsave],tbl_twdbdata[Year],2020,tbl_twdbdata[utility],tbl_twdbdata[[#This Row],[utility]]))","v":503106665.80000001},37122,596,5442,0,4399494557,845327424,3669753970,0,1104065545,1077112097,{"$f":"tbl_twdbdata[[#This Row],[utility]]&tbl_twdbdata[[#This Row],[Year]]","v":"TYLER2040"}]
[null,144,"TYLER","I",2050,99904,134689,842136238,{"$f":"IF(tbl_twdbdata[[#This Row],[Year]]=2016,0,tbl_twdbdata[[#This Row],[effsave]]-0.6*SUMIFS(tbl_twdbdata[effsave],tbl_twdbdata[Year],2020,tbl_twdbdata[utility],tbl_twdbdata[[#This Row],[utility]]))","v":629471789.79999995},40157,649,5925,0,4759202326,914442373,3969797303,0,1194335222,1165178029,{"$f":"tbl_twdbdata[[#This Row],[utility]]&tbl_twdbdata[[#This Row],[Year]]","v":"TYLER2050"}]
[null,144,"TYLER","I",2060,99904,145081,922998068,{"$f":"IF(tbl_twdbdata[[#This Row],[Year]]=2016,0,tbl_twdbdata[[#This Row],[effsave]]-0.6*SUMIFS(tbl_twdbdata[effsave],tbl_twdbdata[Year],2020,tbl_twdbdata[utility],tbl_twdbdata[[#This Row],[utility]]))","v":710333619.79999995},43255,707,6452,0,5126401062,984996651,4276089082,0,1286484779,1255077947,{"$f":"tbl_twdbdata[[#This Row],[utility]]&tbl_twdbdata[[#This Row],[Year]]","v":"TYLER2060"}]
[null,144,"TYLER","I",2070,99904,155779,995606956,{"$f":"IF(tbl_twdbdata[[#This Row],[Year]]=2016,0,tbl_twdbdata[[#This Row],[effsave]]-0.6*SUMIFS(tbl_twdbdata[effsave],tbl_twdbdata[Year],2020,tbl_twdbdata[utility],tbl_twdbdata[[#This Row],[utility]]))","v":782942507.79999995},46445,770,7025,0,5504412232,1057628451,4591399846,0,1381347746,1347625034,{"$f":"tbl_twdbdata[[#This Row],[utility]]&tbl_twdbdata[[#This Row],[Year]]","v":"TYLER2070"}]
[null,2555,"TYLER COUNTY WSC","I",2016,5499,5499,0,{"$f":"IF(tbl_twdbdata[[#This Row],[Year]]=2016,0,tbl_twdbdata[[#This Row],[effsave]]-0.6*SUMIFS(tbl_twdbdata[effsave],tbl_twdbdata[Year],2020,tbl_twdbdata[utility],tbl_twdbdata[[#This Row],[utility]]))","v":0},1810,0,23,0,96763300,0,3694600,0,20500000,47330500,{"$f":"tbl_twdbdata[[#This Row],[utility]]&tbl_twdbdata[[#This Row],[Year]]","v":"TYLER COUNTY WSC2016"}]
[null,2555,"TYLER COUNTY WSC","I",2020,4442,5684,19273591,{"$f":"IF(tbl_twdbdata[[#This Row],[Year]]=2016,0,tbl_twdbdata[[#This Row],[effsave]]-0.6*SUMIFS(tbl_twdbdata[effsave],tbl_twdbdata[Year],2020,tbl_twdbdata[utility],tbl_twdbdata[[#This Row],[utility]]))","v":7709436.4000000004},2316,0,29,0,123818685,0,4727624,0,26231878,60564287,{"$f":"tbl_twdbdata[[#This Row],[utility]]&tbl_twdbdata[[#This Row],[Year]]","v":"TYLER COUNTY WSC2020"}]
[null,2555,"TYLER COUNTY WSC","I",2030,4442,5711,27619824,{"$f":"IF(tbl_twdbdata[[#This Row],[Year]]=2016,0,tbl_twdbdata[[#This Row],[effsave]]-0.6*SUMIFS(tbl_twdbdata[effsave],tbl_twdbdata[Year],2020,tbl_twdbdata[utility],tbl_twdbdata[[#This Row],[utility]]))","v":16055669.4},2327,0,29,0,124406846,0,4750081,0,26356484,60851978,{"$f":"tbl_twdbdata[[#This Row],[utility]]&tbl_twdbdata[[#This Row],[Year]]","v":"TYLER COUNTY WSC2030"}]
[null,2555,"TYLER COUNTY WSC","I",2040,4442,5711,34436188,{"$f":"IF(tbl_twdbdata[[#This Row],[Year]]=2016,0,tbl_twdbdata[[#This Row],[effsave]]-0.6*SUMIFS(tbl_twdbdata[effsave],tbl_twdbdata[Year],2020,tbl_twdbdata[utility],tbl_twdbdata[[#This Row],[utility]]))","v":22872033.399999999},2327,0,29,0,124406846,0,4750081,0,26356484,60851978,{"$f":"tbl_twdbdata[[#This Row],[utility]]&tbl_twdbdata[[#This Row],[Year]]","v":"TYLER COUNTY WSC2040"}]
[null,2555,"TYLER COUNTY WSC","I",2050,4442,5711,38167470,{"$f":"IF(tbl_twdbdata[[#This Row],[Year]]=2016,0,tbl_twdbdata[[#This Row],[effsave]]-0.6*SUMIFS(tbl_twdbdata[effsave],tbl_twdbdata[Year],2020,tbl_twdbdata[utility],tbl_twdbdata[[#This Row],[utility]]))","v":26603315.399999999},2327,0,29,0,124406846,0,4750081,0,26356484,60851978,{"$f":"tbl_twdbdata[[#This Row],[utility]]&tbl_twdbdata[[#This Row],[Year]]","v":"TYLER COUNTY WSC2050"}]
[null,2555,"TYLER COUNTY WSC","I",2060,4442,5711,38834514,{"$f":"IF(tbl_twdbdata[[#This Row],[Year]]=2016,0,tbl_twdbdata[[#This Row],[effsave]]-0.6*SUMIFS(tbl_twdbdata[effsave],tbl_twdbdata[Year],2020,tbl_twdbdata[utility],tbl_twdbdata[[#This Row],[utility]]))","v":27270359.399999999},2327,0,29,0,124406846,0,4750081,0,26356484,60851978,{"$f":"tbl_twdbdata[[#This Row],[utility]]&tbl_twdbdata[[#This Row],[Year]]","v":"TYLER COUNTY WSC2060"}]
[null,2555,"TYLER COUNTY WSC","I",2070,4442,5711,38834514,{"$f":"IF(tbl_twdbdata[[#This Row],[Year]]=2016,0,tbl_twdbdata[[#This Row],[effsave]]-0.6*SUMIFS(tbl_twdbdata[effsave],tbl_twdbdata[Year],2020,tbl_twdbdata[utility],tbl_twdbdata[[#This Row],[utility]]))","v":27270359.399999999},2327,0,29,0,124406846,0,4750081,0,26356484,60851978,{"$f":"tbl_twdbdata[[#This Row],[utility]]&tbl_twdbdata[[#This Row],[Year]]","v":"TYLER COUNTY WSC2070"}]
[null,3044,"UNION WSC","M",2016,5544,5544,0,{"$f":"IF(tbl_twdbdata[[#This Row],[Year]]=2016,0,tbl_twdbdata[[#This Row],[effsave]]-0.6*SUMIFS(tbl_twdbdata[effsave],tbl_twdbdata[Year],2020,tbl_twdbdata[utility],tbl_twdbdata[[#This Row],[utility]]))","v":0},1853,38,96,0,177880000,3648000,8100000,0,null,null,{"$f":"tbl_twdbdata[[#This Row],[utility]]&tbl_twdbdata[[#This Row],[Year]]","v":"UNION WSC2016"}]
[null,3044,"UNION WSC","M",2020,5544,7215,20883457,{"$f":"IF(tbl_twdbdata[[#This Row],[Year]]=2016,0,tbl_twdbdata[[#This Row],[effsave]]-0.6*SUMIFS(tbl_twdbdata[effsave],tbl_twdbdata[Year],2020,tbl_twdbdata[utility],tbl_twdbdata[[#This Row],[utility]]))","v":8353382.8000000007},2412,49,125,0,231494264,4747532,10541396,0,null,null,{"$f":"tbl_twdbdata[[#This Row],[utility]]&tbl_twdbdata[[#This Row],[Year]]","v":"UNION WSC2020"}]
[null,3044,"UNION WSC","M",2030,5544,8161,31723847,{"$f":"IF(tbl_twdbdata[[#This Row],[Year]]=2016,0,tbl_twdbdata[[#This Row],[effsave]]-0.6*SUMIFS(tbl_twdbdata[effsave],tbl_twdbdata[Year],2020,tbl_twdbdata[utility],tbl_twdbdata[[#This Row],[utility]]))","v":19193772.800000001},2728,55,141,0,261846804,5370008,11923539,0,null,null,{"$f":"tbl_twdbdata[[#This Row],[utility]]&tbl_twdbdata[[#This Row],[Year]]","v":"UNION WSC2030"}]
[null,3044,"UNION WSC","M",2040,5544,9032,40417297,{"$f":"IF(tbl_twdbdata[[#This Row],[Year]]=2016,0,tbl_twdbdata[[#This Row],[effsave]]-0.6*SUMIFS(tbl_twdbdata[effsave],tbl_twdbdata[Year],2020,tbl_twdbdata[utility],tbl_twdbdata[[#This Row],[utility]]))","v":27887222.800000001},3019,62,159,0,289792958,5943133,13196104,0,null,null,{"$f":"tbl_twdbdata[[#This Row],[utility]]&tbl_twdbdata[[#This Row],[Year]]","v":"UNION WSC2040"}]
[null,3044,"UNION WSC","M",2050,5544,9894,47344274,{"$f":"IF(tbl_twdbdata[[#This Row],[Year]]=2016,0,tbl_twdbdata[[#This Row],[effsave]]-0.6*SUMIFS(tbl_twdbdata[effsave],tbl_twdbdata[Year],2020,tbl_twdbdata[utility],tbl_twdbdata[[#This Row],[utility]]))","v":34814199.799999997},3307,70,180,0,317450346,6510336,14455519,0,null,null,{"$f":"tbl_twdbdata[[#This Row],[utility]]&tbl_twdbdata[[#This Row],[Year]]","v":"UNION WSC2050"}]
[null,3044,"UNION WSC","M",2060,5544,10667,52094428,{"$f":"IF(tbl_twdbdata[[#This Row],[Year]]=2016,0,tbl_twdbdata[[#This Row],[effsave]]-0.6*SUMIFS(tbl_twdbdata[effsave],tbl_twdbdata[Year],2020,tbl_twdbdata[utility],tbl_twdbdata[[#This Row],[utility]]))","v":39564353.799999997},3565,79,203,0,342252157,7018977,15584902,0,null,null,{"$f":"tbl_twdbdata[[#This Row],[utility]]&tbl_twdbdata[[#This Row],[Year]]","v":"UNION WSC2060"}]
[null,3044,"UNION WSC","M",2070,5544,11367,55761955,{"$f":"IF(tbl_twdbdata[[#This Row],[Year]]=2016,0,tbl_twdbdata[[#This Row],[effsave]]-0.6*SUMIFS(tbl_twdbdata[effsave],tbl_twdbdata[Year],2020,tbl_twdbdata[utility],tbl_twdbdata[[#This Row],[utility]]))","v":43231880.799999997},3799,89,230,0,364711753,7479583,16607629,0,null,null,{"$f":"tbl_twdbdata[[#This Row],[utility]]&tbl_twdbdata[[#This Row],[Year]]","v":"UNION WSC2070"}]
[null,2556,"UNIVERSAL CITY","L",2016,19372,19372,0,{"$f":"IF(tbl_twdbdata[[#This Row],[Year]]=2016,0,tbl_twdbdata[[#This Row],[effsave]]-0.6*SUMIFS(tbl_twdbdata[effsave],tbl_twdbdata[Year],2020,tbl_twdbdata[utility],tbl_twdbdata[[#This Row],[utility]]))","v":0},8375,141,486,0,418725000,179566000,147139000,0,9920339,38276780,{"$f":"tbl_twdbdata[[#This Row],[utility]]&tbl_twdbdata[[#This Row],[Year]]","v":"UNIVERSAL CITY2016"}]
[null,2556,"UNIVERSAL CITY","L",2020,18580,21072,71759642,{"$f":"IF(tbl_twdbdata[[#This Row],[Year]]=2016,0,tbl_twdbdata[[#This Row],[effsave]]-0.6*SUMIFS(tbl_twdbdata[effsave],tbl_twdbdata[Year],2020,tbl_twdbdata[utility],tbl_twdbdata[[#This Row],[utility]]))","v":28703856.800000004},9498,160,551,0,474885533,203649879,166873682,0,11250882,43410566,{"$f":"tbl_twdbdata[[#This Row],[utility]]&tbl_twdbdata[[#This Row],[Year]]","v":"UNIVERSAL CITY2020"}]
[null,2556,"UNIVERSAL CITY","L",2030,18580,21702,99807498,{"$f":"IF(tbl_twdbdata[[#This Row],[Year]]=2016,0,tbl_twdbdata[[#This Row],[effsave]]-0.6*SUMIFS(tbl_twdbdata[effsave],tbl_twdbdata[Year],2020,tbl_twdbdata[utility],tbl_twdbdata[[#This Row],[utility]]))","v":56751712.800000004},9782,165,568,0,489083421,209738500,171862787,0,11587255,44708433,{"$f":"tbl_twdbdata[[#This Row],[utility]]&tbl_twdbdata[[#This Row],[Year]]","v":"UNIVERSAL CITY2030"}]
[null,2556,"UNIVERSAL CITY","L",2040,18580,21702,118660025,{"$f":"IF(tbl_twdbdata[[#This Row],[Year]]=2016,0,tbl_twdbdata[[#This Row],[effsave]]-0.6*SUMIFS(tbl_twdbdata[effsave],tbl_twdbdata[Year],2020,tbl_twdbdata[utility],tbl_twdbdata[[#This Row],[utility]]))","v":75604239.800000012},9782,170,585,0,489083421,209738500,171862787,0,11587255,44708433,{"$f":"tbl_twdbdata[[#This Row],[utility]]&tbl_twdbdata[[#This Row],[Year]]","v":"UNIVERSAL CITY2040"}]
[null,2556,"UNIVERSAL CITY","L",2050,18580,21702,129195261,{"$f":"IF(tbl_twdbdata[[#This Row],[Year]]=2016,0,tbl_twdbdata[[#This Row],[effsave]]-0.6*SUMIFS(tbl_twdbdata[effsave],tbl_twdbdata[Year],2020,tbl_twdbdata[utility],tbl_twdbdata[[#This Row],[utility]]))","v":86139475.800000012},9782,175,603,0,489083421,209738500,171862787,0,11587255,44708433,{"$f":"tbl_twdbdata[[#This Row],[utility]]&tbl_twdbdata[[#This Row],[Year]]","v":"UNIVERSAL CITY2050"}]
[null,2556,"UNIVERSAL CITY","L",2060,18580,21702,131333993,{"$f":"IF(tbl_twdbdata[[#This Row],[Year]]=2016,0,tbl_twdbdata[[#This Row],[effsave]]-0.6*SUMIFS(tbl_twdbdata[effsave],tbl_twdbdata[Year],2020,tbl_twdbdata[utility],tbl_twdbdata[[#This Row],[utility]]))","v":88278207.800000012},9782,180,621,0,489083421,209738500,171862787,0,11587255,44708433,{"$f":"tbl_twdbdata[[#This Row],[utility]]&tbl_twdbdata[[#This Row],[Year]]","v":"UNIVERSAL CITY2060"}]
[null,2556,"UNIVERSAL CITY","L",2070,18580,21702,131571630,{"$f":"IF(tbl_twdbdata[[#This Row],[Year]]=2016,0,tbl_twdbdata[[#This Row],[effsave]]-0.6*SUMIFS(tbl_twdbdata[effsave],tbl_twdbdata[Year],2020,tbl_twdbdata[utility],tbl_twdbdata[[#This Row],[utility]]))","v":88515844.800000012},9782,185,640,0,489083421,209738500,171862787,0,11587255,44708433,{"$f":"tbl_twdbdata[[#This Row],[utility]]&tbl_twdbdata[[#This Row],[Year]]","v":"UNIVERSAL CITY2070"}]
[null,2557,"UNIVERSITY PARK","C",2016,23068,23068,0,{"$f":"IF(tbl_twdbdata[[#This Row],[Year]]=2016,0,tbl_twdbdata[[#This Row],[effsave]]-0.6*SUMIFS(tbl_twdbdata[effsave],tbl_twdbdata[Year],2020,tbl_twdbdata[utility],tbl_twdbdata[[#This Row],[utility]]))","v":0},8879,744,505,0,1258713700,53317200,394637800,0,24823900,122874400,{"$f":"tbl_twdbdata[[#This Row],[utility]]&tbl_twdbdata[[#This Row],[Year]]","v":"UNIVERSITY PARK2016"}]
[null,2557,"UNIVERSITY PARK","C",2020,22615,25656,94768133,{"$f":"IF(tbl_twdbdata[[#This Row],[Year]]=2016,0,tbl_twdbdata[[#This Row],[effsave]]-0.6*SUMIFS(tbl_twdbdata[effsave],tbl_twdbdata[Year],2020,tbl_twdbdata[utility],tbl_twdbdata[[#This Row],[utility]]))","v":37907253.200000003},10073,844,573,0,1427970758,60486672,447704063,0,28161927,139397108,{"$f":"tbl_twdbdata[[#This Row],[utility]]&tbl_twdbdata[[#This Row],[Year]]","v":"UNIVERSITY PARK2020"}]
[null,2557,"UNIVERSITY PARK","C",2030,22615,25656,129510205,{"$f":"IF(tbl_twdbdata[[#This Row],[Year]]=2016,0,tbl_twdbdata[[#This Row],[effsave]]-0.6*SUMIFS(tbl_twdbdata[effsave],tbl_twdbdata[Year],2020,tbl_twdbdata[utility],tbl_twdbdata[[#This Row],[utility]]))","v":72649325.200000003},10073,844,573,0,1427970758,60486672,447704063,0,28161927,139397108,{"$f":"tbl_twdbdata[[#This Row],[utility]]&tbl_twdbdata[[#This Row],[Year]]","v":"UNIVERSITY PARK2030"}]
[null,2557,"UNIVERSITY PARK","C",2040,22615,25656,158165392,{"$f":"IF(tbl_twdbdata[[#This Row],[Year]]=2016,0,tbl_twdbdata[[#This Row],[effsave]]-0.6*SUMIFS(tbl_twdbdata[effsave],tbl_twdbdata[Year],2020,tbl_twdbdata[utility],tbl_twdbdata[[#This Row],[utility]]))","v":101304512.2},10073,844,573,0,1427970758,60486672,447704063,0,28161927,139397108,{"$f":"tbl_twdbdata[[#This Row],[utility]]&tbl_twdbdata[[#This Row],[Year]]","v":"UNIVERSITY PARK2040"}]
[null,2557,"UNIVERSITY PARK","C",2050,22615,25656,173804006,{"$f":"IF(tbl_twdbdata[[#This Row],[Year]]=2016,0,tbl_twdbdata[[#This Row],[effsave]]-0.6*SUMIFS(tbl_twdbdata[effsave],tbl_twdbdata[Year],2020,tbl_twdbdata[utility],tbl_twdbdata[[#This Row],[utility]]))","v":116943126.2},10073,844,573,0,1427970758,60486672,447704063,0,28161927,139397108,{"$f":"tbl_twdbdata[[#This Row],[utility]]&tbl_twdbdata[[#This Row],[Year]]","v":"UNIVERSITY PARK2050"}]
[null,2557,"UNIVERSITY PARK","C",2060,22615,25656,176519694,{"$f":"IF(tbl_twdbdata[[#This Row],[Year]]=2016,0,tbl_twdbdata[[#This Row],[effsave]]-0.6*SUMIFS(tbl_twdbdata[effsave],tbl_twdbdata[Year],2020,tbl_twdbdata[utility],tbl_twdbdata[[#This Row],[utility]]))","v":119658814.2},10073,844,573,0,1427970758,60486672,447704063,0,28161927,139397108,{"$f":"tbl_twdbdata[[#This Row],[utility]]&tbl_twdbdata[[#This Row],[Year]]","v":"UNIVERSITY PARK2060"}]
[null,2557,"UNIVERSITY PARK","C",2070,22615,25656,176706983,{"$f":"IF(tbl_twdbdata[[#This Row],[Year]]=2016,0,tbl_twdbdata[[#This Row],[effsave]]-0.6*SUMIFS(tbl_twdbdata[effsave],tbl_twdbdata[Year],2020,tbl_twdbdata[utility],tbl_twdbdata[[#This Row],[utility]]))","v":119846103.2},10073,844,573,0,1427970758,60486672,447704063,0,28161927,139397108,{"$f":"tbl_twdbdata[[#This Row],[utility]]&tbl_twdbdata[[#This Row],[Year]]","v":"UNIVERSITY PARK2070"}]
[null,2558,"UVALDE","L",2016,17450,17450,0,{"$f":"IF(tbl_twdbdata[[#This Row],[Year]]=2016,0,tbl_twdbdata[[#This Row],[effsave]]-0.6*SUMIFS(tbl_twdbdata[effsave],tbl_twdbdata[Year],2020,tbl_twdbdata[utility],tbl_twdbdata[[#This Row],[utility]]))","v":0},4969,172,687,0,494937000,41973000,274777000,0,21563439,296011339,{"$f":"tbl_twdbdata[[#This Row],[utility]]&tbl_twdbdata[[#This Row],[Year]]","v":"UVALDE2016"}]
[null,2558,"UVALDE","L",2020,17140,18623,66546497,{"$f":"IF(tbl_twdbdata[[#This Row],[Year]]=2016,0,tbl_twdbdata[[#This Row],[effsave]]-0.6*SUMIFS(tbl_twdbdata[effsave],tbl_twdbdata[Year],2020,tbl_twdbdata[utility],tbl_twdbdata[[#This Row],[utility]]))","v":26618598.800000004},5399,187,746,0,537760312,45604620,298551463,0,23429167,321623055,{"$f":"tbl_twdbdata[[#This Row],[utility]]&tbl_twdbdata[[#This Row],[Year]]","v":"UVALDE2020"}]
[null,2558,"UVALDE","L",2030,17140,20366,104441940,{"$f":"IF(tbl_twdbdata[[#This Row],[Year]]=2016,0,tbl_twdbdata[[#This Row],[effsave]]-0.6*SUMIFS(tbl_twdbdata[effsave],tbl_twdbdata[Year],2020,tbl_twdbdata[utility],tbl_twdbdata[[#This Row],[utility]]))","v":64514041.800000004},5904,205,816,0,588091420,49872936,326494072,0,25621995,351725025,{"$f":"tbl_twdbdata[[#This Row],[utility]]&tbl_twdbdata[[#This Row],[Year]]","v":"UVALDE2030"}]
[null,2558,"UVALDE","L",2040,17140,21860,135960456,{"$f":"IF(tbl_twdbdata[[#This Row],[Year]]=2016,0,tbl_twdbdata[[#This Row],[effsave]]-0.6*SUMIFS(tbl_twdbdata[effsave],tbl_twdbdata[Year],2020,tbl_twdbdata[utility],tbl_twdbdata[[#This Row],[utility]]))","v":96032557.800000012},6337,224,892,0,631232370,53531493,350444879,0,27501562,377526713,{"$f":"tbl_twdbdata[[#This Row],[utility]]&tbl_twdbdata[[#This Row],[Year]]","v":"UVALDE2040"}]
[null,2558,"UVALDE","L",2050,17140,23407,158568381,{"$f":"IF(tbl_twdbdata[[#This Row],[Year]]=2016,0,tbl_twdbdata[[#This Row],[effsave]]-0.6*SUMIFS(tbl_twdbdata[effsave],tbl_twdbdata[Year],2020,tbl_twdbdata[utility],tbl_twdbdata[[#This Row],[utility]]))","v":118640482.80000001},6785,245,975,0,675903755,57319838,375245347,0,29447807,404243722,{"$f":"tbl_twdbdata[[#This Row],[utility]]&tbl_twdbdata[[#This Row],[Year]]","v":"UVALDE2050"}]
[null,2558,"UVALDE","L",2060,17140,24883,171292084,{"$f":"IF(tbl_twdbdata[[#This Row],[Year]]=2016,0,tbl_twdbdata[[#This Row],[effsave]]-0.6*SUMIFS(tbl_twdbdata[effsave],tbl_twdbdata[Year],2020,tbl_twdbdata[utility],tbl_twdbdata[[#This Row],[utility]]))","v":131364185.80000001},7213,268,1066,0,718524934,60934316,398907590,0,31304729,429734547,{"$f":"tbl_twdbdata[[#This Row],[utility]]&tbl_twdbdata[[#This Row],[Year]]","v":"UVALDE2060"}]
[null,2558,"UVALDE","L",2070,17140,26297,181601823,{"$f":"IF(tbl_twdbdata[[#This Row],[Year]]=2016,0,tbl_twdbdata[[#This Row],[effsave]]-0.6*SUMIFS(tbl_twdbdata[effsave],tbl_twdbdata[Year],2020,tbl_twdbdata[utility],tbl_twdbdata[[#This Row],[utility]]))","v":141673924.80000001},7623,293,1166,0,759355793,64396966,421575891,0,33083650,454154619,{"$f":"tbl_twdbdata[[#This Row],[utility]]&tbl_twdbdata[[#This Row],[Year]]","v":"UVALDE2070"}]
[null,2562,"VAN ALSTYNE","C",2016,3230,3230,0,{"$f":"IF(tbl_twdbdata[[#This Row],[Year]]=2016,0,tbl_twdbdata[[#This Row],[effsave]]-0.6*SUMIFS(tbl_twdbdata[effsave],tbl_twdbdata[Year],2020,tbl_twdbdata[utility],tbl_twdbdata[[#This Row],[utility]]))","v":0},1304,11,184,0,79663280,2693150,26787794,0,2083232,9377246,{"$f":"tbl_twdbdata[[#This Row],[utility]]&tbl_twdbdata[[#This Row],[Year]]","v":"VAN ALSTYNE2016"}]
[null,2562,"VAN ALSTYNE","C",2020,3150,3750,13194750,{"$f":"IF(tbl_twdbdata[[#This Row],[Year]]=2016,0,tbl_twdbdata[[#This Row],[effsave]]-0.6*SUMIFS(tbl_twdbdata[effsave],tbl_twdbdata[Year],2020,tbl_twdbdata[utility],tbl_twdbdata[[#This Row],[utility]]))","v":5277900},1552,13,219,0,94837238,3206131,31890231,0,2480038,11163388,{"$f":"tbl_twdbdata[[#This Row],[utility]]&tbl_twdbdata[[#This Row],[Year]]","v":"VAN ALSTYNE2020"}]
[null,2562,"VAN ALSTYNE","C",2030,3150,5300,25864265,{"$f":"IF(tbl_twdbdata[[#This Row],[Year]]=2016,0,tbl_twdbdata[[#This Row],[effsave]]-0.6*SUMIFS(tbl_twdbdata[effsave],tbl_twdbdata[Year],2020,tbl_twdbdata[utility],tbl_twdbdata[[#This Row],[utility]]))","v":17947415},2193,18,309,0,134036630,4531332,45071526,0,3505120,15777588,{"$f":"tbl_twdbdata[[#This Row],[utility]]&tbl_twdbdata[[#This Row],[Year]]","v":"VAN ALSTYNE2030"}]
[null,2562,"VAN ALSTYNE","C",2040,3150,7470,42288791,{"$f":"IF(tbl_twdbdata[[#This Row],[Year]]=2016,0,tbl_twdbdata[[#This Row],[effsave]]-0.6*SUMIFS(tbl_twdbdata[effsave],tbl_twdbdata[Year],2020,tbl_twdbdata[utility],tbl_twdbdata[[#This Row],[utility]]))","v":34371941},3091,25,436,0,188915779,6386613,63525339,0,4940235,22237468,{"$f":"tbl_twdbdata[[#This Row],[utility]]&tbl_twdbdata[[#This Row],[Year]]","v":"VAN ALSTYNE2040"}]
[null,2562,"VAN ALSTYNE","C",2050,3150,9640,58127272,{"$f":"IF(tbl_twdbdata[[#This Row],[Year]]=2016,0,tbl_twdbdata[[#This Row],[effsave]]-0.6*SUMIFS(tbl_twdbdata[effsave],tbl_twdbdata[Year],2020,tbl_twdbdata[utility],tbl_twdbdata[[#This Row],[utility]]))","v":50210422},3989,35,617,0,243794928,8241894,81979152,0,6375350,28697348,{"$f":"tbl_twdbdata[[#This Row],[utility]]&tbl_twdbdata[[#This Row],[Year]]","v":"VAN ALSTYNE2050"}]
[null,2562,"VAN ALSTYNE","C",2060,3150,18644,116638728,{"$f":"IF(tbl_twdbdata[[#This Row],[Year]]=2016,0,tbl_twdbdata[[#This Row],[effsave]]-0.6*SUMIFS(tbl_twdbdata[effsave],tbl_twdbdata[Year],2020,tbl_twdbdata[utility],tbl_twdbdata[[#This Row],[utility]]))","v":108721878},7715,49,872,0,471505460,15940028,158549721,0,12330086,55501385,{"$f":"tbl_twdbdata[[#This Row],[utility]]&tbl_twdbdata[[#This Row],[Year]]","v":"VAN ALSTYNE2060"}]
[null,2562,"VAN ALSTYNE","C",2070,3150,23494,147666838,{"$f":"IF(tbl_twdbdata[[#This Row],[Year]]=2016,0,tbl_twdbdata[[#This Row],[effsave]]-0.6*SUMIFS(tbl_twdbdata[effsave],tbl_twdbdata[Year],2020,tbl_twdbdata[utility],tbl_twdbdata[[#This Row],[utility]]))","v":139749988},9722,69,1233,0,594161622,20086624,199794418,0,15537601,69939366,{"$f":"tbl_twdbdata[[#This Row],[utility]]&tbl_twdbdata[[#This Row],[Year]]","v":"VAN ALSTYNE2070"}]
[null,2567,"VERNON","B",2016,11686,11686,0,{"$f":"IF(tbl_twdbdata[[#This Row],[Year]]=2016,0,tbl_twdbdata[[#This Row],[effsave]]-0.6*SUMIFS(tbl_twdbdata[effsave],tbl_twdbdata[Year],2020,tbl_twdbdata[utility],tbl_twdbdata[[#This Row],[utility]]))","v":0},3598,78,746,0,209341000,29707000,271514000,0,2968415,26556250,{"$f":"tbl_twdbdata[[#This Row],[utility]]&tbl_twdbdata[[#This Row],[Year]]","v":"VERNON2016"}]
[null,2567,"VERNON","B",2020,9380,11758,43302950,{"$f":"IF(tbl_twdbdata[[#This Row],[Year]]=2016,0,tbl_twdbdata[[#This Row],[effsave]]-0.6*SUMIFS(tbl_twdbdata[effsave],tbl_twdbdata[Year],2020,tbl_twdbdata[utility],tbl_twdbdata[[#This Row],[utility]]))","v":17321180},4510,98,936,0,262412738,37238263,340347719,0,3720962,33288741,{"$f":"tbl_twdbdata[[#This Row],[utility]]&tbl_twdbdata[[#This Row],[Year]]","v":"VERNON2020"}]
[null,2567,"VERNON","B",2030,9380,12398,65978437,{"$f":"IF(tbl_twdbdata[[#This Row],[Year]]=2016,0,tbl_twdbdata[[#This Row],[effsave]]-0.6*SUMIFS(tbl_twdbdata[effsave],tbl_twdbdata[Year],2020,tbl_twdbdata[utility],tbl_twdbdata[[#This Row],[utility]]))","v":39996667},4755,103,987,0,276696132,39265180,358873194,0,3923498,35100681,{"$f":"tbl_twdbdata[[#This Row],[utility]]&tbl_twdbdata[[#This Row],[Year]]","v":"VERNON2030"}]
[null,2567,"VERNON","B",2040,9380,12785,83950785,{"$f":"IF(tbl_twdbdata[[#This Row],[Year]]=2016,0,tbl_twdbdata[[#This Row],[effsave]]-0.6*SUMIFS(tbl_twdbdata[effsave],tbl_twdbdata[Year],2020,tbl_twdbdata[utility],tbl_twdbdata[[#This Row],[utility]]))","v":57969015},4903,109,1040,0,285333122,40490831,370075317,0,4045969,36196339,{"$f":"tbl_twdbdata[[#This Row],[utility]]&tbl_twdbdata[[#This Row],[Year]]","v":"VERNON2040"}]
[null,2567,"VERNON","B",2050,9380,13175,90214495,{"$f":"IF(tbl_twdbdata[[#This Row],[Year]]=2016,0,tbl_twdbdata[[#This Row],[effsave]]-0.6*SUMIFS(tbl_twdbdata[effsave],tbl_twdbdata[Year],2020,tbl_twdbdata[utility],tbl_twdbdata[[#This Row],[utility]]))","v":64232725},5053,115,1096,0,294037065,41725983,381364278,0,4169389,37300490,{"$f":"tbl_twdbdata[[#This Row],[utility]]&tbl_twdbdata[[#This Row],[Year]]","v":"VERNON2050"}]
[null,2567,"VERNON","B",2060,9380,13447,93500353,{"$f":"IF(tbl_twdbdata[[#This Row],[Year]]=2016,0,tbl_twdbdata[[#This Row],[effsave]]-0.6*SUMIFS(tbl_twdbdata[effsave],tbl_twdbdata[Year],2020,tbl_twdbdata[utility],tbl_twdbdata[[#This Row],[utility]]))","v":67518583},5157,121,1156,0,300107508,42587423,389237605,0,4255467,38070565,{"$f":"tbl_twdbdata[[#This Row],[utility]]&tbl_twdbdata[[#This Row],[Year]]","v":"VERNON2060"}]
[null,2567,"VERNON","B",2070,9380,13653,95082223,{"$f":"IF(tbl_twdbdata[[#This Row],[Year]]=2016,0,tbl_twdbdata[[#This Row],[effsave]]-0.6*SUMIFS(tbl_twdbdata[effsave],tbl_twdbdata[Year],2020,tbl_twdbdata[utility],tbl_twdbdata[[#This Row],[utility]]))","v":69100453},5236,128,1218,0,304704976,43239837,395200492,0,4320658,38653783,{"$f":"tbl_twdbdata[[#This Row],[utility]]&tbl_twdbdata[[#This Row],[Year]]","v":"VERNON2070"}]
[null,2568,"VICTORIA","L",2016,67574,67574,0,{"$f":"IF(tbl_twdbdata[[#This Row],[Year]]=2016,0,tbl_twdbdata[[#This Row],[effsave]]-0.6*SUMIFS(tbl_twdbdata[effsave],tbl_twdbdata[Year],2020,tbl_twdbdata[utility],tbl_twdbdata[[#This Row],[utility]]))","v":0},20117,7238,2267,326,1692702000,387168000,720837000,137880000,147051786,320504071,{"$f":"tbl_twdbdata[[#This Row],[utility]]&tbl_twdbdata[[#This Row],[Year]]","v":"VICTORIA2016"}]
[null,2568,"VICTORIA","L",2020,64918,67787,239257606,{"$f":"IF(tbl_twdbdata[[#This Row],[Year]]=2016,0,tbl_twdbdata[[#This Row],[effsave]]-0.6*SUMIFS(tbl_twdbdata[effsave],tbl_twdbdata[Year],2020,tbl_twdbdata[utility],tbl_twdbdata[[#This Row],[utility]]))","v":95703042.400000006},21006,7558,2367,340,1767509635,404278586,752693824,143973498,153550624,334668497,{"$f":"tbl_twdbdata[[#This Row],[utility]]&tbl_twdbdata[[#This Row],[Year]]","v":"VICTORIA2020"}]
[null,2568,"VICTORIA","L",2030,64918,72496,364368521,{"$f":"IF(tbl_twdbdata[[#This Row],[Year]]=2016,0,tbl_twdbdata[[#This Row],[effsave]]-0.6*SUMIFS(tbl_twdbdata[effsave],tbl_twdbdata[Year],2020,tbl_twdbdata[utility],tbl_twdbdata[[#This Row],[utility]]))","v":220813957.40000001},22465,8083,2531,364,1890294282,432362848,804981654,153974991,164217417,357917113,{"$f":"tbl_twdbdata[[#This Row],[utility]]&tbl_twdbdata[[#This Row],[Year]]","v":"VICTORIA2030"}]
[null,2568,"VICTORIA","L",2040,64918,76201,465873864,{"$f":"IF(tbl_twdbdata[[#This Row],[Year]]=2016,0,tbl_twdbdata[[#This Row],[effsave]]-0.6*SUMIFS(tbl_twdbdata[effsave],tbl_twdbdata[Year],2020,tbl_twdbdata[utility],tbl_twdbdata[[#This Row],[utility]]))","v":322319300.39999998},23613,8645,2707,389,1986900168,454459300,846121262,161844078,172609956,376208921,{"$f":"tbl_twdbdata[[#This Row],[utility]]&tbl_twdbdata[[#This Row],[Year]]","v":"VICTORIA2040"}]
[null,2568,"VICTORIA","L",2050,64918,79501,530736751,{"$f":"IF(tbl_twdbdata[[#This Row],[Year]]=2016,0,tbl_twdbdata[[#This Row],[effsave]]-0.6*SUMIFS(tbl_twdbdata[effsave],tbl_twdbdata[Year],2020,tbl_twdbdata[utility],tbl_twdbdata[[#This Row],[utility]]))","v":387182187.39999998},24636,9246,2895,416,2072945896,474140350,882763828,168852982,180085092,392501220,{"$f":"tbl_twdbdata[[#This Row],[utility]]&tbl_twdbdata[[#This Row],[Year]]","v":"VICTORIA2050"}]
[null,2568,"VICTORIA","L",2060,64918,82211,557530339,{"$f":"IF(tbl_twdbdata[[#This Row],[Year]]=2016,0,tbl_twdbdata[[#This Row],[effsave]]-0.6*SUMIFS(tbl_twdbdata[effsave],tbl_twdbdata[Year],2020,tbl_twdbdata[utility],tbl_twdbdata[[#This Row],[utility]]))","v":413975775.39999998},25476,9888,3096,445,2143607691,490302667,912855147,174608779,186223764,405880653,{"$f":"tbl_twdbdata[[#This Row],[utility]]&tbl_twdbdata[[#This Row],[Year]]","v":"VICTORIA2060"}]
[null,2568,"VICTORIA","L",2070,64918,84456,573988313,{"$f":"IF(tbl_twdbdata[[#This Row],[Year]]=2016,0,tbl_twdbdata[[#This Row],[effsave]]-0.6*SUMIFS(tbl_twdbdata[effsave],tbl_twdbdata[Year],2020,tbl_twdbdata[utility],tbl_twdbdata[[#This Row],[utility]]))","v":430433749.39999998},26172,10575,3311,476,2202144861,503691745,937783196,179376957,191309122,416964353,{"$f":"tbl_twdbdata[[#This Row],[utility]]&tbl_twdbdata[[#This Row],[Year]]","v":"VICTORIA2070"}]
[null,6582,"VICTORIA COUNTY WCID 1","L",2016,2459,2459,0,{"$f":"IF(tbl_twdbdata[[#This Row],[Year]]=2016,0,tbl_twdbdata[[#This Row],[effsave]]-0.6*SUMIFS(tbl_twdbdata[effsave],tbl_twdbdata[Year],2020,tbl_twdbdata[utility],tbl_twdbdata[[#This Row],[utility]]))","v":0},686,4,68,0,56254467,302140,17611593,0,4473125,1976284,{"$f":"tbl_twdbdata[[#This Row],[utility]]&tbl_twdbdata[[#This Row],[Year]]","v":"VICTORIA COUNTY WCID 12016"}]
[null,6582,"VICTORIA COUNTY WCID 1","L",2020,1953,2331,8227381,{"$f":"IF(tbl_twdbdata[[#This Row],[Year]]=2016,0,tbl_twdbdata[[#This Row],[effsave]]-0.6*SUMIFS(tbl_twdbdata[effsave],tbl_twdbdata[Year],2020,tbl_twdbdata[utility],tbl_twdbdata[[#This Row],[utility]]))","v":3290952.4000000004},819,5,81,0,67142428,360619,21020288,0,5338891,2358791,{"$f":"tbl_twdbdata[[#This Row],[utility]]&tbl_twdbdata[[#This Row],[Year]]","v":"VICTORIA COUNTY WCID 12020"}]
[null,6582,"VICTORIA COUNTY WCID 1","L",2030,1953,2491,12519891,{"$f":"IF(tbl_twdbdata[[#This Row],[Year]]=2016,0,tbl_twdbdata[[#This Row],[effsave]]-0.6*SUMIFS(tbl_twdbdata[effsave],tbl_twdbdata[Year],2020,tbl_twdbdata[utility],tbl_twdbdata[[#This Row],[utility]]))","v":7583462.4000000004},875,5,87,0,71751089,385372,22463122,0,5705353,2520699,{"$f":"tbl_twdbdata[[#This Row],[utility]]&tbl_twdbdata[[#This Row],[Year]]","v":"VICTORIA COUNTY WCID 12030"}]
[null,6582,"VICTORIA COUNTY WCID 1","L",2040,1953,2616,15993570,{"$f":"IF(tbl_twdbdata[[#This Row],[Year]]=2016,0,tbl_twdbdata[[#This Row],[effsave]]-0.6*SUMIFS(tbl_twdbdata[effsave],tbl_twdbdata[Year],2020,tbl_twdbdata[utility],tbl_twdbdata[[#This Row],[utility]]))","v":11057141.4},919,5,93,0,75351605,404710,23590336,0,5991651,2647189,{"$f":"tbl_twdbdata[[#This Row],[utility]]&tbl_twdbdata[[#This Row],[Year]]","v":"VICTORIA COUNTY WCID 12040"}]
[null,6582,"VICTORIA COUNTY WCID 1","L",2050,1953,2727,18205043,{"$f":"IF(tbl_twdbdata[[#This Row],[Year]]=2016,0,tbl_twdbdata[[#This Row],[effsave]]-0.6*SUMIFS(tbl_twdbdata[effsave],tbl_twdbdata[Year],2020,tbl_twdbdata[utility],tbl_twdbdata[[#This Row],[utility]]))","v":13268614.4},958,5,99,0,78548863,421882,24591302,0,6245884,2759512,{"$f":"tbl_twdbdata[[#This Row],[utility]]&tbl_twdbdata[[#This Row],[Year]]","v":"VICTORIA COUNTY WCID 12050"}]
[null,6582,"VICTORIA COUNTY WCID 1","L",2060,1953,2819,19117612,{"$f":"IF(tbl_twdbdata[[#This Row],[Year]]=2016,0,tbl_twdbdata[[#This Row],[effsave]]-0.6*SUMIFS(tbl_twdbdata[effsave],tbl_twdbdata[Year],2020,tbl_twdbdata[utility],tbl_twdbdata[[#This Row],[utility]]))","v":14181183.4},990,5,105,0,81198843,436115,25420931,0,6456600,2852609,{"$f":"tbl_twdbdata[[#This Row],[utility]]&tbl_twdbdata[[#This Row],[Year]]","v":"VICTORIA COUNTY WCID 12060"}]
[null,6582,"VICTORIA COUNTY WCID 1","L",2070,1953,2894,19668492,{"$f":"IF(tbl_twdbdata[[#This Row],[Year]]=2016,0,tbl_twdbdata[[#This Row],[effsave]]-0.6*SUMIFS(tbl_twdbdata[effsave],tbl_twdbdata[Year],2020,tbl_twdbdata[utility],tbl_twdbdata[[#This Row],[utility]]))","v":14732063.4},1016,5,113,0,83359153,447718,26097259,0,6628379,2928503,{"$f":"tbl_twdbdata[[#This Row],[utility]]&tbl_twdbdata[[#This Row],[Year]]","v":"VICTORIA COUNTY WCID 12070"}]
[null,152,"WACO","G",2016,132356,132356,0,{"$f":"IF(tbl_twdbdata[[#This Row],[Year]]=2016,0,tbl_twdbdata[[#This Row],[effsave]]-0.6*SUMIFS(tbl_twdbdata[effsave],tbl_twdbdata[Year],2020,tbl_twdbdata[utility],tbl_twdbdata[[#This Row],[utility]]))","v":0},36722,815,4491,0,3257036500,841296400,4835114600,0,354073210,1098663683,{"$f":"tbl_twdbdata[[#This Row],[utility]]&tbl_twdbdata[[#This Row],[Year]]","v":"WACO2016"}]
[null,152,"WACO","G",2020,132127,132512,448360978,{"$f":"IF(tbl_twdbdata[[#This Row],[Year]]=2016,0,tbl_twdbdata[[#This Row],[effsave]]-0.6*SUMIFS(tbl_twdbdata[effsave],tbl_twdbdata[Year],2020,tbl_twdbdata[utility],tbl_twdbdata[[#This Row],[utility]]))","v":179344391.19999999},36829,817,4504,0,3266527059,843747823,4849203462,0,355104931,1101865039,{"$f":"tbl_twdbdata[[#This Row],[utility]]&tbl_twdbdata[[#This Row],[Year]]","v":"WACO2020"}]
[null,152,"WACO","G",2030,132127,142778,691552382,{"$f":"IF(tbl_twdbdata[[#This Row],[Year]]=2016,0,tbl_twdbdata[[#This Row],[effsave]]-0.6*SUMIFS(tbl_twdbdata[effsave],tbl_twdbdata[Year],2020,tbl_twdbdata[utility],tbl_twdbdata[[#This Row],[utility]]))","v":422535795.19999999},39682,880,4853,0,3519592191,909114848,5224882063,0,382615702,1187228980,{"$f":"tbl_twdbdata[[#This Row],[utility]]&tbl_twdbdata[[#This Row],[Year]]","v":"WACO2030"}]
[null,152,"WACO","G",2040,132127,151846,893985733,{"$f":"IF(tbl_twdbdata[[#This Row],[Year]]=2016,0,tbl_twdbdata[[#This Row],[effsave]]-0.6*SUMIFS(tbl_twdbdata[effsave],tbl_twdbdata[Year],2020,tbl_twdbdata[utility],tbl_twdbdata[[#This Row],[utility]]))","v":624969146.20000005},42202,948,5229,0,3743125662,966853809,5556720515,0,406916079,1262631300,{"$f":"tbl_twdbdata[[#This Row],[utility]]&tbl_twdbdata[[#This Row],[Year]]","v":"WACO2040"}]
[null,152,"WACO","G",2050,132127,160966,1034045584,{"$f":"IF(tbl_twdbdata[[#This Row],[Year]]=2016,0,tbl_twdbdata[[#This Row],[effsave]]-0.6*SUMIFS(tbl_twdbdata[effsave],tbl_twdbdata[Year],2020,tbl_twdbdata[utility],tbl_twdbdata[[#This Row],[utility]]))","v":765028997.20000005},44737,1021,5635,0,3967940975,1024923872,5890461878,0,431355805,1338466011,{"$f":"tbl_twdbdata[[#This Row],[utility]]&tbl_twdbdata[[#This Row],[Year]]","v":"WACO2050"}]
[null,152,"WACO","G",2060,132127,170055,1111675043,{"$f":"IF(tbl_twdbdata[[#This Row],[Year]]=2016,0,tbl_twdbdata[[#This Row],[effsave]]-0.6*SUMIFS(tbl_twdbdata[effsave],tbl_twdbdata[Year],2020,tbl_twdbdata[utility],tbl_twdbdata[[#This Row],[utility]]))","v":842658456.20000005},47263,1100,6072,0,4191992113,1082796547,6223068813,0,455712457,1414042950,{"$f":"tbl_twdbdata[[#This Row],[utility]]&tbl_twdbdata[[#This Row],[Year]]","v":"WACO2060"}]
[null,152,"WACO","G",2070,132127,178976,1173912533,{"$f":"IF(tbl_twdbdata[[#This Row],[Year]]=2016,0,tbl_twdbdata[[#This Row],[effsave]]-0.6*SUMIFS(tbl_twdbdata[effsave],tbl_twdbdata[Year],2020,tbl_twdbdata[utility],tbl_twdbdata[[#This Row],[utility]]))","v":904895946.20000005},49742,1185,6543,0,4411901917,1139599511,6549527881,0,479618904,1488222934,{"$f":"tbl_twdbdata[[#This Row],[utility]]&tbl_twdbdata[[#This Row],[Year]]","v":"WACO2070"}]
[null,153,"WALNUT CREEK SUD","C",2016,23616,23616,0,{"$f":"IF(tbl_twdbdata[[#This Row],[Year]]=2016,0,tbl_twdbdata[[#This Row],[effsave]]-0.6*SUMIFS(tbl_twdbdata[effsave],tbl_twdbdata[Year],2020,tbl_twdbdata[utility],tbl_twdbdata[[#This Row],[utility]]))","v":0},7665,0,201,6,418960600,0,27598900,442800,99481405,42580645,{"$f":"tbl_twdbdata[[#This Row],[utility]]&tbl_twdbdata[[#This Row],[Year]]","v":"WALNUT CREEK SUD2016"}]
[null,153,"WALNUT CREEK SUD","C",2020,18901,21351,64604923,{"$f":"IF(tbl_twdbdata[[#This Row],[Year]]=2016,0,tbl_twdbdata[[#This Row],[effsave]]-0.6*SUMIFS(tbl_twdbdata[effsave],tbl_twdbdata[Year],2020,tbl_twdbdata[utility],tbl_twdbdata[[#This Row],[utility]]))","v":25841969.200000003},8659,0,227,7,473267434,0,31176346,500197,112376460,48100066,{"$f":"tbl_twdbdata[[#This Row],[utility]]&tbl_twdbdata[[#This Row],[Year]]","v":"WALNUT CREEK SUD2020"}]
[null,153,"WALNUT CREEK SUD","C",2030,18901,25966,104537818,{"$f":"IF(tbl_twdbdata[[#This Row],[Year]]=2016,0,tbl_twdbdata[[#This Row],[effsave]]-0.6*SUMIFS(tbl_twdbdata[effsave],tbl_twdbdata[Year],2020,tbl_twdbdata[utility],tbl_twdbdata[[#This Row],[utility]]))","v":65774864.200000003},10531,0,277,9,575563776,0,37915085,608314,136666534,58496853,{"$f":"tbl_twdbdata[[#This Row],[utility]]&tbl_twdbdata[[#This Row],[Year]]","v":"WALNUT CREEK SUD2030"}]
[null,153,"WALNUT CREEK SUD","C",2040,18901,28661,130765813,{"$f":"IF(tbl_twdbdata[[#This Row],[Year]]=2016,0,tbl_twdbdata[[#This Row],[effsave]]-0.6*SUMIFS(tbl_twdbdata[effsave],tbl_twdbdata[Year],2020,tbl_twdbdata[utility],tbl_twdbdata[[#This Row],[utility]]))","v":92002859.200000003},11624,0,337,11,635301293,0,41850275,671451,150851095,64568216,{"$f":"tbl_twdbdata[[#This Row],[utility]]&tbl_twdbdata[[#This Row],[Year]]","v":"WALNUT CREEK SUD2040"}]
[null,153,"WALNUT CREEK SUD","C",2050,18901,40088,194460875,{"$f":"IF(tbl_twdbdata[[#This Row],[Year]]=2016,0,tbl_twdbdata[[#This Row],[effsave]]-0.6*SUMIFS(tbl_twdbdata[effsave],tbl_twdbdata[Year],2020,tbl_twdbdata[utility],tbl_twdbdata[[#This Row],[utility]]))","v":155697921.19999999},16258,0,410,13,888592800,0,58535774,939155,210994686,90311247,{"$f":"tbl_twdbdata[[#This Row],[utility]]&tbl_twdbdata[[#This Row],[Year]]","v":"WALNUT CREEK SUD2050"}]
[null,153,"WALNUT CREEK SUD","C",2060,18901,59480,295692924,{"$f":"IF(tbl_twdbdata[[#This Row],[Year]]=2016,0,tbl_twdbdata[[#This Row],[effsave]]-0.6*SUMIFS(tbl_twdbdata[effsave],tbl_twdbdata[Year],2020,tbl_twdbdata[utility],tbl_twdbdata[[#This Row],[utility]]))","v":256929970.19999999},24123,0,499,16,1318436932,0,86851622,1393458,313060365,133998029,{"$f":"tbl_twdbdata[[#This Row],[utility]]&tbl_twdbdata[[#This Row],[Year]]","v":"WALNUT CREEK SUD2060"}]
[null,153,"WALNUT CREEK SUD","C",2070,18901,77781,389795592,{"$f":"IF(tbl_twdbdata[[#This Row],[Year]]=2016,0,tbl_twdbdata[[#This Row],[effsave]]-0.6*SUMIFS(tbl_twdbdata[effsave],tbl_twdbdata[Year],2020,tbl_twdbdata[utility],tbl_twdbdata[[#This Row],[utility]]))","v":351032638.19999999},31545,0,607,19,1724097899,0,113574412,1822202,409383797,175226979,{"$f":"tbl_twdbdata[[#This Row],[utility]]&tbl_twdbdata[[#This Row],[Year]]","v":"WALNUT CREEK SUD2070"}]
[null,2580,"WATAUGA","C",2016,24345,24345,0,{"$f":"IF(tbl_twdbdata[[#This Row],[Year]]=2016,0,tbl_twdbdata[[#This Row],[effsave]]-0.6*SUMIFS(tbl_twdbdata[effsave],tbl_twdbdata[Year],2020,tbl_twdbdata[utility],tbl_twdbdata[[#This Row],[utility]]))","v":0},7911,212,380,0,525695716,17313064,154964032,0,15571656,31249308,{"$f":"tbl_twdbdata[[#This Row],[utility]]&tbl_twdbdata[[#This Row],[Year]]","v":"WATAUGA2016"}]
[null,2580,"WATAUGA","C",2020,23386,24525,84861405,{"$f":"IF(tbl_twdbdata[[#This Row],[Year]]=2016,0,tbl_twdbdata[[#This Row],[effsave]]-0.6*SUMIFS(tbl_twdbdata[effsave],tbl_twdbdata[Year],2020,tbl_twdbdata[utility],tbl_twdbdata[[#This Row],[utility]]))","v":33944562},8296,222,399,0,551299386,18156286,162511455,0,16330063,32771285,{"$f":"tbl_twdbdata[[#This Row],[utility]]&tbl_twdbdata[[#This Row],[Year]]","v":"WATAUGA2020"}]
[null,2580,"WATAUGA","C",2030,23386,24525,118609031,{"$f":"IF(tbl_twdbdata[[#This Row],[Year]]=2016,0,tbl_twdbdata[[#This Row],[effsave]]-0.6*SUMIFS(tbl_twdbdata[effsave],tbl_twdbdata[Year],2020,tbl_twdbdata[utility],tbl_twdbdata[[#This Row],[utility]]))","v":67692188},8296,222,399,0,551299386,18156286,162511455,0,16330063,32771285,{"$f":"tbl_twdbdata[[#This Row],[utility]]&tbl_twdbdata[[#This Row],[Year]]","v":"WATAUGA2030"}]
[null,2580,"WATAUGA","C",2040,23386,24525,146359069,{"$f":"IF(tbl_twdbdata[[#This Row],[Year]]=2016,0,tbl_twdbdata[[#This Row],[effsave]]-0.6*SUMIFS(tbl_twdbdata[effsave],tbl_twdbdata[Year],2020,tbl_twdbdata[utility],tbl_twdbdata[[#This Row],[utility]]))","v":95442226},8296,222,399,0,551299386,18156286,162511455,0,16330063,32771285,{"$f":"tbl_twdbdata[[#This Row],[utility]]&tbl_twdbdata[[#This Row],[Year]]","v":"WATAUGA2040"}]
[null,2580,"WATAUGA","C",2050,23386,24525,161666348,{"$f":"IF(tbl_twdbdata[[#This Row],[Year]]=2016,0,tbl_twdbdata[[#This Row],[effsave]]-0.6*SUMIFS(tbl_twdbdata[effsave],tbl_twdbdata[Year],2020,tbl_twdbdata[utility],tbl_twdbdata[[#This Row],[utility]]))","v":110749505},8296,222,399,0,551299386,18156286,162511455,0,16330063,32771285,{"$f":"tbl_twdbdata[[#This Row],[utility]]&tbl_twdbdata[[#This Row],[Year]]","v":"WATAUGA2050"}]
[null,2580,"WATAUGA","C",2060,23386,24525,164441351,{"$f":"IF(tbl_twdbdata[[#This Row],[Year]]=2016,0,tbl_twdbdata[[#This Row],[effsave]]-0.6*SUMIFS(tbl_twdbdata[effsave],tbl_twdbdata[Year],2020,tbl_twdbdata[utility],tbl_twdbdata[[#This Row],[utility]]))","v":113524508},8296,222,399,0,551299386,18156286,162511455,0,16330063,32771285,{"$f":"tbl_twdbdata[[#This Row],[utility]]&tbl_twdbdata[[#This Row],[Year]]","v":"WATAUGA2060"}]
[null,2580,"WATAUGA","C",2070,23386,24525,164530868,{"$f":"IF(tbl_twdbdata[[#This Row],[Year]]=2016,0,tbl_twdbdata[[#This Row],[effsave]]-0.6*SUMIFS(tbl_twdbdata[effsave],tbl_twdbdata[Year],2020,tbl_twdbdata[utility],tbl_twdbdata[[#This Row],[utility]]))","v":113614025},8296,222,399,0,551299386,18156286,162511455,0,16330063,32771285,{"$f":"tbl_twdbdata[[#This Row],[utility]]&tbl_twdbdata[[#This Row],[Year]]","v":"WATAUGA2070"}]
[null,154,"WAXAHACHIE","C",2016,34531,34531,0,{"$f":"IF(tbl_twdbdata[[#This Row],[Year]]=2016,0,tbl_twdbdata[[#This Row],[effsave]]-0.6*SUMIFS(tbl_twdbdata[effsave],tbl_twdbdata[Year],2020,tbl_twdbdata[utility],tbl_twdbdata[[#This Row],[utility]]))","v":0},10750,2710,1877,0,664658193,167076300,1195443253,0,27604214,106471181,{"$f":"tbl_twdbdata[[#This Row],[utility]]&tbl_twdbdata[[#This Row],[Year]]","v":"WAXAHACHIE2016"}]
[null,154,"WAXAHACHIE","C",2020,31843,37700,127559835,{"$f":"IF(tbl_twdbdata[[#This Row],[Year]]=2016,0,tbl_twdbdata[[#This Row],[effsave]]-0.6*SUMIFS(tbl_twdbdata[effsave],tbl_twdbdata[Year],2020,tbl_twdbdata[utility],tbl_twdbdata[[#This Row],[utility]]))","v":51023934},12727,3208,2222,0,786911217,197807258,1415325524,0,32681559,126054817,{"$f":"tbl_twdbdata[[#This Row],[utility]]&tbl_twdbdata[[#This Row],[Year]]","v":"WAXAHACHIE2020"}]
[null,154,"WAXAHACHIE","C",2030,31843,43084,194998184,{"$f":"IF(tbl_twdbdata[[#This Row],[Year]]=2016,0,tbl_twdbdata[[#This Row],[effsave]]-0.6*SUMIFS(tbl_twdbdata[effsave],tbl_twdbdata[Year],2020,tbl_twdbdata[utility],tbl_twdbdata[[#This Row],[utility]]))","v":118462283},14545,3666,2540,0,899291323,226056443,1617450528,0,37348867,144056916,{"$f":"tbl_twdbdata[[#This Row],[utility]]&tbl_twdbdata[[#This Row],[Year]]","v":"WAXAHACHIE2030"}]
[null,154,"WAXAHACHIE","C",2040,31843,52272,275314010,{"$f":"IF(tbl_twdbdata[[#This Row],[Year]]=2016,0,tbl_twdbdata[[#This Row],[effsave]]-0.6*SUMIFS(tbl_twdbdata[effsave],tbl_twdbdata[Year],2020,tbl_twdbdata[utility],tbl_twdbdata[[#This Row],[utility]]))","v":198778109},17647,4190,2902,0,1091072232,274264748,1962384505,0,45313805,174778180,{"$f":"tbl_twdbdata[[#This Row],[utility]]&tbl_twdbdata[[#This Row],[Year]]","v":"WAXAHACHIE2040"}]
[null,154,"WAXAHACHIE","C",2050,31843,64400,361287220,{"$f":"IF(tbl_twdbdata[[#This Row],[Year]]=2016,0,tbl_twdbdata[[#This Row],[effsave]]-0.6*SUMIFS(tbl_twdbdata[effsave],tbl_twdbdata[Year],2020,tbl_twdbdata[utility],tbl_twdbdata[[#This Row],[utility]]))","v":284751319},21741,4788,3316,0,1344219692,337898871,2417691347,0,55827384,215329714,{"$f":"tbl_twdbdata[[#This Row],[utility]]&tbl_twdbdata[[#This Row],[Year]]","v":"WAXAHACHIE2050"}]
[null,154,"WAXAHACHIE","C",2060,31843,78500,448125100,{"$f":"IF(tbl_twdbdata[[#This Row],[Year]]=2016,0,tbl_twdbdata[[#This Row],[effsave]]-0.6*SUMIFS(tbl_twdbdata[effsave],tbl_twdbdata[Year],2020,tbl_twdbdata[utility],tbl_twdbdata[[#This Row],[utility]]))","v":371589199},26501,5472,3790,0,1638528662,411879835,2947030602,0,68050460,262474884,{"$f":"tbl_twdbdata[[#This Row],[utility]]&tbl_twdbdata[[#This Row],[Year]]","v":"WAXAHACHIE2060"}]
[null,154,"WAXAHACHIE","C",2070,31843,95500,549005625,{"$f":"IF(tbl_twdbdata[[#This Row],[Year]]=2016,0,tbl_twdbdata[[#This Row],[effsave]]-0.6*SUMIFS(tbl_twdbdata[effsave],tbl_twdbdata[Year],2020,tbl_twdbdata[utility],tbl_twdbdata[[#This Row],[utility]]))","v":472469724},32240,6253,4331,0,1993369264,501076742,3585241051,0,82787502,319316579,{"$f":"tbl_twdbdata[[#This Row],[utility]]&tbl_twdbdata[[#This Row],[Year]]","v":"WAXAHACHIE2070"}]
[null,155,"WEATHERFORD","C",2016,24372,27278,0,{"$f":"IF(tbl_twdbdata[[#This Row],[Year]]=2016,0,tbl_twdbdata[[#This Row],[effsave]]-0.6*SUMIFS(tbl_twdbdata[effsave],tbl_twdbdata[Year],2020,tbl_twdbdata[utility],tbl_twdbdata[[#This Row],[utility]]))","v":0},9240,1392,1548,0,665058416,0,509881777,0,70806257,158292852,{"$f":"tbl_twdbdata[[#This Row],[utility]]&tbl_twdbdata[[#This Row],[Year]]","v":"WEATHERFORD2016"}]
[null,155,"WEATHERFORD","C",2020,24372,30184,99815470,{"$f":"IF(tbl_twdbdata[[#This Row],[Year]]=2016,0,tbl_twdbdata[[#This Row],[effsave]]-0.6*SUMIFS(tbl_twdbdata[effsave],tbl_twdbdata[Year],2020,tbl_twdbdata[utility],tbl_twdbdata[[#This Row],[utility]]))","v":39926188},10224,1540,1713,0,735908909,0,564200879,0,78349441,175156223,{"$f":"tbl_twdbdata[[#This Row],[utility]]&tbl_twdbdata[[#This Row],[Year]]","v":"WEATHERFORD2020"}]
[null,155,"WEATHERFORD","C",2030,24372,36158,166290642,{"$f":"IF(tbl_twdbdata[[#This Row],[Year]]=2016,0,tbl_twdbdata[[#This Row],[effsave]]-0.6*SUMIFS(tbl_twdbdata[effsave],tbl_twdbdata[Year],2020,tbl_twdbdata[utility],tbl_twdbdata[[#This Row],[utility]]))","v":106401360},12248,1845,2052,0,881559579,0,675867194,0,93856318,209823042,{"$f":"tbl_twdbdata[[#This Row],[utility]]&tbl_twdbdata[[#This Row],[Year]]","v":"WEATHERFORD2030"}]
[null,155,"WEATHERFORD","C",2040,24372,38858,208208936,{"$f":"IF(tbl_twdbdata[[#This Row],[Year]]=2016,0,tbl_twdbdata[[#This Row],[effsave]]-0.6*SUMIFS(tbl_twdbdata[effsave],tbl_twdbdata[Year],2020,tbl_twdbdata[utility],tbl_twdbdata[[#This Row],[utility]]))","v":148319654},13163,2210,2458,0,947387635,0,726335733,0,100864782,225491005,{"$f":"tbl_twdbdata[[#This Row],[utility]]&tbl_twdbdata[[#This Row],[Year]]","v":"WEATHERFORD2040"}]
[null,155,"WEATHERFORD","C",2050,24372,65002,377476364,{"$f":"IF(tbl_twdbdata[[#This Row],[Year]]=2016,0,tbl_twdbdata[[#This Row],[effsave]]-0.6*SUMIFS(tbl_twdbdata[effsave],tbl_twdbdata[Year],2020,tbl_twdbdata[utility],tbl_twdbdata[[#This Row],[utility]]))","v":317587082},22019,2647,2945,0,1584798267,0,1215020724,0,168727484,377203312,{"$f":"tbl_twdbdata[[#This Row],[utility]]&tbl_twdbdata[[#This Row],[Year]]","v":"WEATHERFORD2050"}]
[null,155,"WEATHERFORD","C",2060,24372,106502,630135058,{"$f":"IF(tbl_twdbdata[[#This Row],[Year]]=2016,0,tbl_twdbdata[[#This Row],[effsave]]-0.6*SUMIFS(tbl_twdbdata[effsave],tbl_twdbdata[Year],2020,tbl_twdbdata[utility],tbl_twdbdata[[#This Row],[utility]]))","v":570245776},36077,3171,3528,0,2596599874,0,1990740856,0,276450178,618025709,{"$f":"tbl_twdbdata[[#This Row],[utility]]&tbl_twdbdata[[#This Row],[Year]]","v":"WEATHERFORD2060"}]
[null,155,"WEATHERFORD","C",2070,24372,146805,874488024,{"$f":"IF(tbl_twdbdata[[#This Row],[Year]]=2016,0,tbl_twdbdata[[#This Row],[effsave]]-0.6*SUMIFS(tbl_twdbdata[effsave],tbl_twdbdata[Year],2020,tbl_twdbdata[utility],tbl_twdbdata[[#This Row],[utility]]))","v":814598742},49729,3799,4226,0,3579217710,0,2744086603,0,381065786,851901976,{"$f":"tbl_twdbdata[[#This Row],[utility]]&tbl_twdbdata[[#This Row],[Year]]","v":"WEATHERFORD2070"}]
[null,2586,"WELLBORN SUD","G",2016,17000,17000,0,{"$f":"IF(tbl_twdbdata[[#This Row],[Year]]=2016,0,tbl_twdbdata[[#This Row],[effsave]]-0.6*SUMIFS(tbl_twdbdata[effsave],tbl_twdbdata[Year],2020,tbl_twdbdata[utility],tbl_twdbdata[[#This Row],[utility]]))","v":0},7780,0,0,0,918364999,0,0,0,13322273,81748545,{"$f":"tbl_twdbdata[[#This Row],[utility]]&tbl_twdbdata[[#This Row],[Year]]","v":"WELLBORN SUD2016"}]
[null,2586,"WELLBORN SUD","G",2020,17000,21608,77843900,{"$f":"IF(tbl_twdbdata[[#This Row],[Year]]=2016,0,tbl_twdbdata[[#This Row],[effsave]]-0.6*SUMIFS(tbl_twdbdata[effsave],tbl_twdbdata[Year],2020,tbl_twdbdata[utility],tbl_twdbdata[[#This Row],[utility]]))","v":31137560},9889,0,0,0,1167295935,0,0,0,16933393,103907209,{"$f":"tbl_twdbdata[[#This Row],[utility]]&tbl_twdbdata[[#This Row],[Year]]","v":"WELLBORN SUD2020"}]
[null,2586,"WELLBORN SUD","G",2030,17000,30721,143977039,{"$f":"IF(tbl_twdbdata[[#This Row],[Year]]=2016,0,tbl_twdbdata[[#This Row],[effsave]]-0.6*SUMIFS(tbl_twdbdata[effsave],tbl_twdbdata[Year],2020,tbl_twdbdata[utility],tbl_twdbdata[[#This Row],[utility]]))","v":97270699},14060,0,0,0,1659593596,0,0,0,24074915,147729238,{"$f":"tbl_twdbdata[[#This Row],[utility]]&tbl_twdbdata[[#This Row],[Year]]","v":"WELLBORN SUD2030"}]
[null,2586,"WELLBORN SUD","G",2040,17000,34324,183163161,{"$f":"IF(tbl_twdbdata[[#This Row],[Year]]=2016,0,tbl_twdbdata[[#This Row],[effsave]]-0.6*SUMIFS(tbl_twdbdata[effsave],tbl_twdbdata[Year],2020,tbl_twdbdata[utility],tbl_twdbdata[[#This Row],[utility]]))","v":136456821},15709,0,0,0,1854232954,0,0,0,26898453,165055121,{"$f":"tbl_twdbdata[[#This Row],[utility]]&tbl_twdbdata[[#This Row],[Year]]","v":"WELLBORN SUD2040"}]
[null,2586,"WELLBORN SUD","G",2050,17000,38362,217313058,{"$f":"IF(tbl_twdbdata[[#This Row],[Year]]=2016,0,tbl_twdbdata[[#This Row],[effsave]]-0.6*SUMIFS(tbl_twdbdata[effsave],tbl_twdbdata[Year],2020,tbl_twdbdata[utility],tbl_twdbdata[[#This Row],[utility]]))","v":170606718},17557,0,0,0,2072371652,0,0,0,30062885,184472805,{"$f":"tbl_twdbdata[[#This Row],[utility]]&tbl_twdbdata[[#This Row],[Year]]","v":"WELLBORN SUD2050"}]
[null,2586,"WELLBORN SUD","G",2060,17000,42840,246432816,{"$f":"IF(tbl_twdbdata[[#This Row],[Year]]=2016,0,tbl_twdbdata[[#This Row],[effsave]]-0.6*SUMIFS(tbl_twdbdata[effsave],tbl_twdbdata[Year],2020,tbl_twdbdata[utility],tbl_twdbdata[[#This Row],[utility]]))","v":199726476},19606,0,0,0,2314279797,0,0,0,33572128,206006334,{"$f":"tbl_twdbdata[[#This Row],[utility]]&tbl_twdbdata[[#This Row],[Year]]","v":"WELLBORN SUD2060"}]
[null,2586,"WELLBORN SUD","G",2070,17000,47457,274723827,{"$f":"IF(tbl_twdbdata[[#This Row],[Year]]=2016,0,tbl_twdbdata[[#This Row],[effsave]]-0.6*SUMIFS(tbl_twdbdata[effsave],tbl_twdbdata[Year],2020,tbl_twdbdata[utility],tbl_twdbdata[[#This Row],[utility]]))","v":228017487},21719,0,0,0,2563696926,0,0,0,37190301,228208277,{"$f":"tbl_twdbdata[[#This Row],[utility]]&tbl_twdbdata[[#This Row],[Year]]","v":"WELLBORN SUD2070"}]
[null,2589,"WELLS BRANCH MUD","K",2016,21621,21621,0,{"$f":"IF(tbl_twdbdata[[#This Row],[Year]]=2016,0,tbl_twdbdata[[#This Row],[effsave]]-0.6*SUMIFS(tbl_twdbdata[effsave],tbl_twdbdata[Year],2020,tbl_twdbdata[utility],tbl_twdbdata[[#This Row],[utility]]))","v":0},2761,4435,81,40,165895000,201370000,56606000,26554000,1628000,6166000,{"$f":"tbl_twdbdata[[#This Row],[utility]]&tbl_twdbdata[[#This Row],[Year]]","v":"WELLS BRANCH MUD2016"}]
[null,2589,"WELLS BRANCH MUD","K",2020,12144,19823,68519191,{"$f":"IF(tbl_twdbdata[[#This Row],[Year]]=2016,0,tbl_twdbdata[[#This Row],[effsave]]-0.6*SUMIFS(tbl_twdbdata[effsave],tbl_twdbdata[Year],2020,tbl_twdbdata[utility],tbl_twdbdata[[#This Row],[utility]]))","v":27407676.399999999},4507,7239,132,65,270795173,328702035,92399599,43344857,2657431,10064939,{"$f":"tbl_twdbdata[[#This Row],[utility]]&tbl_twdbdata[[#This Row],[Year]]","v":"WELLS BRANCH MUD2020"}]
[null,2589,"WELLS BRANCH MUD","K",2030,12144,19823,84219998,{"$f":"IF(tbl_twdbdata[[#This Row],[Year]]=2016,0,tbl_twdbdata[[#This Row],[effsave]]-0.6*SUMIFS(tbl_twdbdata[effsave],tbl_twdbdata[Year],2020,tbl_twdbdata[utility],tbl_twdbdata[[#This Row],[utility]]))","v":43108483.399999999},4507,7239,132,65,270795173,328702035,92399599,43344857,2657431,10064939,{"$f":"tbl_twdbdata[[#This Row],[utility]]&tbl_twdbdata[[#This Row],[Year]]","v":"WELLS BRANCH MUD2030"}]
[null,2589,"WELLS BRANCH MUD","K",2040,12144,19823,94856028,{"$f":"IF(tbl_twdbdata[[#This Row],[Year]]=2016,0,tbl_twdbdata[[#This Row],[effsave]]-0.6*SUMIFS(tbl_twdbdata[effsave],tbl_twdbdata[Year],2020,tbl_twdbdata[utility],tbl_twdbdata[[#This Row],[utility]]))","v":53744513.399999999},4507,7239,132,65,270795173,328702035,92399599,43344857,2657431,10064939,{"$f":"tbl_twdbdata[[#This Row],[utility]]&tbl_twdbdata[[#This Row],[Year]]","v":"WELLS BRANCH MUD2040"}]
[null,2589,"WELLS BRANCH MUD","K",2050,12144,19823,100933760,{"$f":"IF(tbl_twdbdata[[#This Row],[Year]]=2016,0,tbl_twdbdata[[#This Row],[effsave]]-0.6*SUMIFS(tbl_twdbdata[effsave],tbl_twdbdata[Year],2020,tbl_twdbdata[utility],tbl_twdbdata[[#This Row],[utility]]))","v":59822245.399999999},4507,7239,132,65,270795173,328702035,92399599,43344857,2657431,10064939,{"$f":"tbl_twdbdata[[#This Row],[utility]]&tbl_twdbdata[[#This Row],[Year]]","v":"WELLS BRANCH MUD2050"}]
[null,2589,"WELLS BRANCH MUD","K",2060,12144,19823,102597901,{"$f":"IF(tbl_twdbdata[[#This Row],[Year]]=2016,0,tbl_twdbdata[[#This Row],[effsave]]-0.6*SUMIFS(tbl_twdbdata[effsave],tbl_twdbdata[Year],2020,tbl_twdbdata[utility],tbl_twdbdata[[#This Row],[utility]]))","v":61486386.399999999},4507,7239,132,65,270795173,328702035,92399599,43344857,2657431,10064939,{"$f":"tbl_twdbdata[[#This Row],[utility]]&tbl_twdbdata[[#This Row],[Year]]","v":"WELLS BRANCH MUD2060"}]
[null,2589,"WELLS BRANCH MUD","K",2070,12144,19823,102959671,{"$f":"IF(tbl_twdbdata[[#This Row],[Year]]=2016,0,tbl_twdbdata[[#This Row],[effsave]]-0.6*SUMIFS(tbl_twdbdata[effsave],tbl_twdbdata[Year],2020,tbl_twdbdata[utility],tbl_twdbdata[[#This Row],[utility]]))","v":61848156.399999999},4507,7239,132,65,270795173,328702035,92399599,43344857,2657431,10064939,{"$f":"tbl_twdbdata[[#This Row],[utility]]&tbl_twdbdata[[#This Row],[Year]]","v":"WELLS BRANCH MUD2070"}]
[null,2590,"WESLACO","M",2016,37601,37601,0,{"$f":"IF(tbl_twdbdata[[#This Row],[Year]]=2016,0,tbl_twdbdata[[#This Row],[effsave]]-0.6*SUMIFS(tbl_twdbdata[effsave],tbl_twdbdata[Year],2020,tbl_twdbdata[utility],tbl_twdbdata[[#This Row],[utility]]))","v":0},9634,102,1507,0,1512125480,1981504,61545664,0,570215,193816570,{"$f":"tbl_twdbdata[[#This Row],[utility]]&tbl_twdbdata[[#This Row],[Year]]","v":"WESLACO2016"}]
[null,2590,"WESLACO","M",2020,35879,44194,153565311,{"$f":"IF(tbl_twdbdata[[#This Row],[Year]]=2016,0,tbl_twdbdata[[#This Row],[effsave]]-0.6*SUMIFS(tbl_twdbdata[effsave],tbl_twdbdata[Year],2020,tbl_twdbdata[utility],tbl_twdbdata[[#This Row],[utility]]))","v":61426124.400000006},11867,126,1856,0,1862562320,2440720,75808943,0,702363,238733786,{"$f":"tbl_twdbdata[[#This Row],[utility]]&tbl_twdbdata[[#This Row],[Year]]","v":"WESLACO2020"}]
[null,2590,"WESLACO","M",2030,35879,57073,272894550,{"$f":"IF(tbl_twdbdata[[#This Row],[Year]]=2016,0,tbl_twdbdata[[#This Row],[effsave]]-0.6*SUMIFS(tbl_twdbdata[effsave],tbl_twdbdata[Year],2020,tbl_twdbdata[utility],tbl_twdbdata[[#This Row],[utility]]))","v":180755363.40000001},15325,163,2397,0,2405349579,3151994,97901159,0,907045,308305502,{"$f":"tbl_twdbdata[[#This Row],[utility]]&tbl_twdbdata[[#This Row],[Year]]","v":"WESLACO2030"}]
[null,2590,"WESLACO","M",2040,35879,68676,372241089,{"$f":"IF(tbl_twdbdata[[#This Row],[Year]]=2016,0,tbl_twdbdata[[#This Row],[effsave]]-0.6*SUMIFS(tbl_twdbdata[effsave],tbl_twdbdata[Year],2020,tbl_twdbdata[utility],tbl_twdbdata[[#This Row],[utility]]))","v":280101902.39999998},18441,211,3095,0,2894359639,3792798,117804566,0,1091448,370984330,{"$f":"tbl_twdbdata[[#This Row],[utility]]&tbl_twdbdata[[#This Row],[Year]]","v":"WESLACO2040"}]
[null,2590,"WESLACO","M",2050,35879,80515,468444322,{"$f":"IF(tbl_twdbdata[[#This Row],[Year]]=2016,0,tbl_twdbdata[[#This Row],[effsave]]-0.6*SUMIFS(tbl_twdbdata[effsave],tbl_twdbdata[Year],2020,tbl_twdbdata[utility],tbl_twdbdata[[#This Row],[utility]]))","v":376305135.39999998},21620,272,3997,0,3393315952,4446635,138112800,0,1279602,434938018,{"$f":"tbl_twdbdata[[#This Row],[utility]]&tbl_twdbdata[[#This Row],[Year]]","v":"WESLACO2050"}]
[null,2590,"WESLACO","M",2060,35879,92319,544871354,{"$f":"IF(tbl_twdbdata[[#This Row],[Year]]=2016,0,tbl_twdbdata[[#This Row],[effsave]]-0.6*SUMIFS(tbl_twdbdata[effsave],tbl_twdbdata[Year],2020,tbl_twdbdata[utility],tbl_twdbdata[[#This Row],[utility]]))","v":452732167.39999998},24790,351,5162,0,3890797185,5098539,158360996,0,1467200,498702638,{"$f":"tbl_twdbdata[[#This Row],[utility]]&tbl_twdbdata[[#This Row],[Year]]","v":"WESLACO2060"}]
[null,2590,"WESLACO","M",2070,35879,103339,612929444,{"$f":"IF(tbl_twdbdata[[#This Row],[Year]]=2016,0,tbl_twdbdata[[#This Row],[effsave]]-0.6*SUMIFS(tbl_twdbdata[effsave],tbl_twdbdata[Year],2020,tbl_twdbdata[utility],tbl_twdbdata[[#This Row],[utility]]))","v":520790257.39999998},27749,453,6666,0,4355236628,5707145,177264344,0,1642338,558232129,{"$f":"tbl_twdbdata[[#This Row],[utility]]&tbl_twdbdata[[#This Row],[Year]]","v":"WESLACO2070"}]
[null,156,"WEST CEDAR CREEK MUD","C",2016,21000,21000,0,{"$f":"IF(tbl_twdbdata[[#This Row],[Year]]=2016,0,tbl_twdbdata[[#This Row],[effsave]]-0.6*SUMIFS(tbl_twdbdata[effsave],tbl_twdbdata[Year],2020,tbl_twdbdata[utility],tbl_twdbdata[[#This Row],[utility]]))","v":0},7120,294,251,0,280171600,13319100,18292200,0,63770088,35672913,{"$f":"tbl_twdbdata[[#This Row],[utility]]&tbl_twdbdata[[#This Row],[Year]]","v":"WEST CEDAR CREEK MUD2016"}]
[null,156,"WEST CEDAR CREEK MUD","C",2020,14332,18066,19782270,{"$f":"IF(tbl_twdbdata[[#This Row],[Year]]=2016,0,tbl_twdbdata[[#This Row],[effsave]]-0.6*SUMIFS(tbl_twdbdata[effsave],tbl_twdbdata[Year],2020,tbl_twdbdata[utility],tbl_twdbdata[[#This Row],[utility]]))","v":7912908},8975,371,316,0,353166350,16789203,23057974,0,80384483,44966986,{"$f":"tbl_twdbdata[[#This Row],[utility]]&tbl_twdbdata[[#This Row],[Year]]","v":"WEST CEDAR CREEK MUD2020"}]
[null,156,"WEST CEDAR CREEK MUD","C",2030,14332,18966,20767770,{"$f":"IF(tbl_twdbdata[[#This Row],[Year]]=2016,0,tbl_twdbdata[[#This Row],[effsave]]-0.6*SUMIFS(tbl_twdbdata[effsave],tbl_twdbdata[Year],2020,tbl_twdbdata[utility],tbl_twdbdata[[#This Row],[utility]]))","v":8898408},9422,389,332,0,370760157,17625596,24206661,0,84389024,47207121,{"$f":"tbl_twdbdata[[#This Row],[utility]]&tbl_twdbdata[[#This Row],[Year]]","v":"WEST CEDAR CREEK MUD2030"}]
[null,156,"WEST CEDAR CREEK MUD","C",2040,14332,19826,21709470,{"$f":"IF(tbl_twdbdata[[#This Row],[Year]]=2016,0,tbl_twdbdata[[#This Row],[effsave]]-0.6*SUMIFS(tbl_twdbdata[effsave],tbl_twdbdata[Year],2020,tbl_twdbdata[utility],tbl_twdbdata[[#This Row],[utility]]))","v":9840108},9849,408,349,0,387572017,18424816,25304295,0,88215585,49347695,{"$f":"tbl_twdbdata[[#This Row],[utility]]&tbl_twdbdata[[#This Row],[Year]]","v":"WEST CEDAR CREEK MUD2040"}]
[null,156,"WEST CEDAR CREEK MUD","C",2050,14332,21431,23466945,{"$f":"IF(tbl_twdbdata[[#This Row],[Year]]=2016,0,tbl_twdbdata[[#This Row],[effsave]]-0.6*SUMIFS(tbl_twdbdata[effsave],tbl_twdbdata[Year],2020,tbl_twdbdata[utility],tbl_twdbdata[[#This Row],[utility]]))","v":11597583},10646,428,366,0,418947639,19916384,27352787,0,95357016,53342603,{"$f":"tbl_twdbdata[[#This Row],[utility]]&tbl_twdbdata[[#This Row],[Year]]","v":"WEST CEDAR CREEK MUD2050"}]
[null,156,"WEST CEDAR CREEK MUD","C",2060,14332,26205,28694475,{"$f":"IF(tbl_twdbdata[[#This Row],[Year]]=2016,0,tbl_twdbdata[[#This Row],[effsave]]-0.6*SUMIFS(tbl_twdbdata[effsave],tbl_twdbdata[Year],2020,tbl_twdbdata[utility],tbl_twdbdata[[#This Row],[utility]]))","v":16825113},13018,449,384,0,512273010,24352986,33445933,0,116598880,65225277,{"$f":"tbl_twdbdata[[#This Row],[utility]]&tbl_twdbdata[[#This Row],[Year]]","v":"WEST CEDAR CREEK MUD2060"}]
[null,156,"WEST CEDAR CREEK MUD","C",2070,14332,32105,35154975,{"$f":"IF(tbl_twdbdata[[#This Row],[Year]]=2016,0,tbl_twdbdata[[#This Row],[effsave]]-0.6*SUMIFS(tbl_twdbdata[effsave],tbl_twdbdata[Year],2020,tbl_twdbdata[utility],tbl_twdbdata[[#This Row],[utility]]))","v":23285613},15949,471,403,0,627610188,29836009,40976214,0,142850870,79910609,{"$f":"tbl_twdbdata[[#This Row],[utility]]&tbl_twdbdata[[#This Row],[Year]]","v":"WEST CEDAR CREEK MUD2070"}]
[null,2992,"WEST TRAVIS COUNTY PUBLIC UTILITY AGENCY","K",2016,18000,20394,0,{"$f":"IF(tbl_twdbdata[[#This Row],[Year]]=2016,0,tbl_twdbdata[[#This Row],[effsave]]-0.6*SUMIFS(tbl_twdbdata[effsave],tbl_twdbdata[Year],2020,tbl_twdbdata[utility],tbl_twdbdata[[#This Row],[utility]]))","v":0},6798,33,283,0,907532000,49125000,99385000,0,20131066,534312219,{"$f":"tbl_twdbdata[[#This Row],[utility]]&tbl_twdbdata[[#This Row],[Year]]","v":"WEST TRAVIS COUNTY PUBLIC UTILITY AGENCY2016"}]
[null,2992,"WEST TRAVIS COUNTY PUBLIC UTILITY AGENCY","K",2020,18000,31827,80620974,{"$f":"IF(tbl_twdbdata[[#This Row],[Year]]=2016,0,tbl_twdbdata[[#This Row],[effsave]]-0.6*SUMIFS(tbl_twdbdata[effsave],tbl_twdbdata[Year],2020,tbl_twdbdata[utility],tbl_twdbdata[[#This Row],[utility]]))","v":32248389.600000001},10480,51,436,0,1399012931,75729021,153207711,0,31033200,823673108,{"$f":"tbl_twdbdata[[#This Row],[utility]]&tbl_twdbdata[[#This Row],[Year]]","v":"WEST TRAVIS COUNTY PUBLIC UTILITY AGENCY2020"}]
[null,2992,"WEST TRAVIS COUNTY PUBLIC UTILITY AGENCY","K",2030,18000,37022,118779534,{"$f":"IF(tbl_twdbdata[[#This Row],[Year]]=2016,0,tbl_twdbdata[[#This Row],[effsave]]-0.6*SUMIFS(tbl_twdbdata[effsave],tbl_twdbdata[Year],2020,tbl_twdbdata[utility],tbl_twdbdata[[#This Row],[utility]]))","v":70406949.599999994},12191,59,507,0,1627368484,88089981,178215222,0,36098631,958118133,{"$f":"tbl_twdbdata[[#This Row],[utility]]&tbl_twdbdata[[#This Row],[Year]]","v":"WEST TRAVIS COUNTY PUBLIC UTILITY AGENCY2030"}]
[null,2992,"WEST TRAVIS COUNTY PUBLIC UTILITY AGENCY","K",2040,18000,40696,141559001,{"$f":"IF(tbl_twdbdata[[#This Row],[Year]]=2016,0,tbl_twdbdata[[#This Row],[effsave]]-0.6*SUMIFS(tbl_twdbdata[effsave],tbl_twdbdata[Year],2020,tbl_twdbdata[utility],tbl_twdbdata[[#This Row],[utility]]))","v":93186416.599999994},13401,69,590,0,1788865751,96831880,195900996,0,39680997,1053200139,{"$f":"tbl_twdbdata[[#This Row],[utility]]&tbl_twdbdata[[#This Row],[Year]]","v":"WEST TRAVIS COUNTY PUBLIC UTILITY AGENCY2040"}]
[null,2992,"WEST TRAVIS COUNTY PUBLIC UTILITY AGENCY","K",2050,18000,47455,172171486,{"$f":"IF(tbl_twdbdata[[#This Row],[Year]]=2016,0,tbl_twdbdata[[#This Row],[effsave]]-0.6*SUMIFS(tbl_twdbdata[effsave],tbl_twdbdata[Year],2020,tbl_twdbdata[utility],tbl_twdbdata[[#This Row],[utility]]))","v":123798901.59999999},15627,80,686,0,2085969732,112914214,228437236,0,46271420,1228121009,{"$f":"tbl_twdbdata[[#This Row],[utility]]&tbl_twdbdata[[#This Row],[Year]]","v":"WEST TRAVIS COUNTY PUBLIC UTILITY AGENCY2050"}]
[null,2992,"WEST TRAVIS COUNTY PUBLIC UTILITY AGENCY","K",2060,18000,53271,197161298,{"$f":"IF(tbl_twdbdata[[#This Row],[Year]]=2016,0,tbl_twdbdata[[#This Row],[effsave]]-0.6*SUMIFS(tbl_twdbdata[effsave],tbl_twdbdata[Year],2020,tbl_twdbdata[utility],tbl_twdbdata[[#This Row],[utility]]))","v":148788713.59999999},17542,93,798,0,2341622455,126752778,256434095,0,51942363,1378637325,{"$f":"tbl_twdbdata[[#This Row],[utility]]&tbl_twdbdata[[#This Row],[Year]]","v":"WEST TRAVIS COUNTY PUBLIC UTILITY AGENCY2060"}]
[null,2992,"WEST TRAVIS COUNTY PUBLIC UTILITY AGENCY","K",2070,18000,58911,219970728,{"$f":"IF(tbl_twdbdata[[#This Row],[Year]]=2016,0,tbl_twdbdata[[#This Row],[effsave]]-0.6*SUMIFS(tbl_twdbdata[effsave],tbl_twdbdata[Year],2020,tbl_twdbdata[utility],tbl_twdbdata[[#This Row],[utility]]))","v":171598143.59999999},19399,108,928,0,2589538782,140172569,283583732,0,57441695,1524598815,{"$f":"tbl_twdbdata[[#This Row],[utility]]&tbl_twdbdata[[#This Row],[Year]]","v":"WEST TRAVIS COUNTY PUBLIC UTILITY AGENCY2070"}]
[null,2780,"WEST UNIVERSITY PLACE","H",2016,14857,14857,0,{"$f":"IF(tbl_twdbdata[[#This Row],[Year]]=2016,0,tbl_twdbdata[[#This Row],[effsave]]-0.6*SUMIFS(tbl_twdbdata[effsave],tbl_twdbdata[Year],2020,tbl_twdbdata[utility],tbl_twdbdata[[#This Row],[utility]]))","v":0},5995,0,139,0,713212550,0,29266295,0,9693788,23330368,{"$f":"tbl_twdbdata[[#This Row],[utility]]&tbl_twdbdata[[#This Row],[Year]]","v":"WEST UNIVERSITY PLACE2016"}]
[null,2780,"WEST UNIVERSITY PLACE","H",2020,14857,15189,49895865,{"$f":"IF(tbl_twdbdata[[#This Row],[Year]]=2016,0,tbl_twdbdata[[#This Row],[effsave]]-0.6*SUMIFS(tbl_twdbdata[effsave],tbl_twdbdata[Year],2020,tbl_twdbdata[utility],tbl_twdbdata[[#This Row],[utility]]))","v":19958346},6070,0,141,0,722150885,0,29633075,0,9815275,23622756,{"$f":"tbl_twdbdata[[#This Row],[utility]]&tbl_twdbdata[[#This Row],[Year]]","v":"WEST UNIVERSITY PLACE2020"}]
[null,2780,"WEST UNIVERSITY PLACE","H",2030,14857,16357,79584166,{"$f":"IF(tbl_twdbdata[[#This Row],[Year]]=2016,0,tbl_twdbdata[[#This Row],[effsave]]-0.6*SUMIFS(tbl_twdbdata[effsave],tbl_twdbdata[Year],2020,tbl_twdbdata[utility],tbl_twdbdata[[#This Row],[utility]]))","v":49646647},6537,0,152,0,777682667,0,31911792,0,10570048,25439293,{"$f":"tbl_twdbdata[[#This Row],[utility]]&tbl_twdbdata[[#This Row],[Year]]","v":"WEST UNIVERSITY PLACE2030"}]
[null,2780,"WEST UNIVERSITY PLACE","H",2040,14857,17629,106428036,{"$f":"IF(tbl_twdbdata[[#This Row],[Year]]=2016,0,tbl_twdbdata[[#This Row],[effsave]]-0.6*SUMIFS(tbl_twdbdata[effsave],tbl_twdbdata[Year],2020,tbl_twdbdata[utility],tbl_twdbdata[[#This Row],[utility]]))","v":76490517},7045,0,164,0,838159060,0,34393408,0,11392026,27417576,{"$f":"tbl_twdbdata[[#This Row],[utility]]&tbl_twdbdata[[#This Row],[Year]]","v":"WEST UNIVERSITY PLACE2040"}]
[null,2780,"WEST UNIVERSITY PLACE","H",2050,14857,19000,126008950,{"$f":"IF(tbl_twdbdata[[#This Row],[Year]]=2016,0,tbl_twdbdata[[#This Row],[effsave]]-0.6*SUMIFS(tbl_twdbdata[effsave],tbl_twdbdata[Year],2020,tbl_twdbdata[utility],tbl_twdbdata[[#This Row],[utility]]))","v":96071431},7593,0,177,0,903342342,0,37068169,0,12277979,29549829,{"$f":"tbl_twdbdata[[#This Row],[utility]]&tbl_twdbdata[[#This Row],[Year]]","v":"WEST UNIVERSITY PLACE2050"}]
[null,2780,"WEST UNIVERSITY PLACE","H",2060,14857,20478,138352440,{"$f":"IF(tbl_twdbdata[[#This Row],[Year]]=2016,0,tbl_twdbdata[[#This Row],[effsave]]-0.6*SUMIFS(tbl_twdbdata[effsave],tbl_twdbdata[Year],2020,tbl_twdbdata[utility],tbl_twdbdata[[#This Row],[utility]]))","v":108414921},8184,0,191,0,973612867,0,39951682,0,13233077,31848495,{"$f":"tbl_twdbdata[[#This Row],[utility]]&tbl_twdbdata[[#This Row],[Year]]","v":"WEST UNIVERSITY PLACE2060"}]
[null,2780,"WEST UNIVERSITY PLACE","H",2070,14857,22074,149699246,{"$f":"IF(tbl_twdbdata[[#This Row],[Year]]=2016,0,tbl_twdbdata[[#This Row],[effsave]]-0.6*SUMIFS(tbl_twdbdata[effsave],tbl_twdbdata[Year],2020,tbl_twdbdata[utility],tbl_twdbdata[[#This Row],[utility]]))","v":119761727},8822,0,206,0,1049493624,0,43065408,0,14264427,34330681,{"$f":"tbl_twdbdata[[#This Row],[utility]]&tbl_twdbdata[[#This Row],[Year]]","v":"WEST UNIVERSITY PLACE2070"}]
[null,6595,"WESTWOOD SHORES MUD","H",2016,2300,2300,0,{"$f":"IF(tbl_twdbdata[[#This Row],[Year]]=2016,0,tbl_twdbdata[[#This Row],[effsave]]-0.6*SUMIFS(tbl_twdbdata[effsave],tbl_twdbdata[Year],2020,tbl_twdbdata[utility],tbl_twdbdata[[#This Row],[utility]]))","v":0},670,0,0,0,36585538,0,0,0,null,null,{"$f":"tbl_twdbdata[[#This Row],[utility]]&tbl_twdbdata[[#This Row],[Year]]","v":"WESTWOOD SHORES MUD2016"}]
[null,6595,"WESTWOOD SHORES MUD","H",2020,1109,1112,3738155,{"$f":"IF(tbl_twdbdata[[#This Row],[Year]]=2016,0,tbl_twdbdata[[#This Row],[effsave]]-0.6*SUMIFS(tbl_twdbdata[effsave],tbl_twdbdata[Year],2020,tbl_twdbdata[utility],tbl_twdbdata[[#This Row],[utility]]))","v":1495262},672,0,0,0,36684507,0,0,0,null,null,{"$f":"tbl_twdbdata[[#This Row],[utility]]&tbl_twdbdata[[#This Row],[Year]]","v":"WESTWOOD SHORES MUD2020"}]
[null,6595,"WESTWOOD SHORES MUD","H",2030,1109,1203,5580897,{"$f":"IF(tbl_twdbdata[[#This Row],[Year]]=2016,0,tbl_twdbdata[[#This Row],[effsave]]-0.6*SUMIFS(tbl_twdbdata[effsave],tbl_twdbdata[Year],2020,tbl_twdbdata[utility],tbl_twdbdata[[#This Row],[utility]]))","v":3338004},727,0,0,0,39686566,0,0,0,null,null,{"$f":"tbl_twdbdata[[#This Row],[utility]]&tbl_twdbdata[[#This Row],[Year]]","v":"WESTWOOD SHORES MUD2030"}]
[null,6595,"WESTWOOD SHORES MUD","H",2040,1109,1212,6622429,{"$f":"IF(tbl_twdbdata[[#This Row],[Year]]=2016,0,tbl_twdbdata[[#This Row],[effsave]]-0.6*SUMIFS(tbl_twdbdata[effsave],tbl_twdbdata[Year],2020,tbl_twdbdata[utility],tbl_twdbdata[[#This Row],[utility]]))","v":4379536},732,0,0,0,39983473,0,0,0,null,null,{"$f":"tbl_twdbdata[[#This Row],[utility]]&tbl_twdbdata[[#This Row],[Year]]","v":"WESTWOOD SHORES MUD2040"}]
[null,6595,"WESTWOOD SHORES MUD","H",2050,1109,1177,6929529,{"$f":"IF(tbl_twdbdata[[#This Row],[Year]]=2016,0,tbl_twdbdata[[#This Row],[effsave]]-0.6*SUMIFS(tbl_twdbdata[effsave],tbl_twdbdata[Year],2020,tbl_twdbdata[utility],tbl_twdbdata[[#This Row],[utility]]))","v":4686636},711,0,0,0,38828835,0,0,0,null,null,{"$f":"tbl_twdbdata[[#This Row],[utility]]&tbl_twdbdata[[#This Row],[Year]]","v":"WESTWOOD SHORES MUD2050"}]
[null,6595,"WESTWOOD SHORES MUD","H",2060,1109,1220,7320732,{"$f":"IF(tbl_twdbdata[[#This Row],[Year]]=2016,0,tbl_twdbdata[[#This Row],[effsave]]-0.6*SUMIFS(tbl_twdbdata[effsave],tbl_twdbdata[Year],2020,tbl_twdbdata[utility],tbl_twdbdata[[#This Row],[utility]]))","v":5077839},737,0,0,0,40247391,0,0,0,null,null,{"$f":"tbl_twdbdata[[#This Row],[utility]]&tbl_twdbdata[[#This Row],[Year]]","v":"WESTWOOD SHORES MUD2060"}]
[null,6595,"WESTWOOD SHORES MUD","H",2070,1109,1276,7689367,{"$f":"IF(tbl_twdbdata[[#This Row],[Year]]=2016,0,tbl_twdbdata[[#This Row],[effsave]]-0.6*SUMIFS(tbl_twdbdata[effsave],tbl_twdbdata[Year],2020,tbl_twdbdata[utility],tbl_twdbdata[[#This Row],[utility]]))","v":5446474},771,0,0,0,42094812,0,0,0,null,null,{"$f":"tbl_twdbdata[[#This Row],[utility]]&tbl_twdbdata[[#This Row],[Year]]","v":"WESTWOOD SHORES MUD2070"}]
[null,2609,"WHARTON","K",2016,8756,8756,0,{"$f":"IF(tbl_twdbdata[[#This Row],[Year]]=2016,0,tbl_twdbdata[[#This Row],[effsave]]-0.6*SUMIFS(tbl_twdbdata[effsave],tbl_twdbdata[Year],2020,tbl_twdbdata[utility],tbl_twdbdata[[#This Row],[utility]]))","v":0},2670,47,499,55,159004700,57743100,138853600,10109900,null,null,{"$f":"tbl_twdbdata[[#This Row],[utility]]&tbl_twdbdata[[#This Row],[Year]]","v":"WHARTON2016"}]
[null,2609,"WHARTON","K",2020,8103,9427,34064465,{"$f":"IF(tbl_twdbdata[[#This Row],[Year]]=2016,0,tbl_twdbdata[[#This Row],[effsave]]-0.6*SUMIFS(tbl_twdbdata[effsave],tbl_twdbdata[Year],2020,tbl_twdbdata[utility],tbl_twdbdata[[#This Row],[utility]]))","v":13625786},3106,55,580,64,184985475,67178107,161541760,11761820,null,null,{"$f":"tbl_twdbdata[[#This Row],[utility]]&tbl_twdbdata[[#This Row],[Year]]","v":"WHARTON2020"}]
[null,2609,"WHARTON","K",2030,8103,10033,52623587,{"$f":"IF(tbl_twdbdata[[#This Row],[Year]]=2016,0,tbl_twdbdata[[#This Row],[effsave]]-0.6*SUMIFS(tbl_twdbdata[effsave],tbl_twdbdata[Year],2020,tbl_twdbdata[utility],tbl_twdbdata[[#This Row],[utility]]))","v":32184908},3306,59,618,68,196876978,71496547,171926220,12517910,null,null,{"$f":"tbl_twdbdata[[#This Row],[utility]]&tbl_twdbdata[[#This Row],[Year]]","v":"WHARTON2030"}]
[null,2609,"WHARTON","K",2040,8103,10516,68015385,{"$f":"IF(tbl_twdbdata[[#This Row],[Year]]=2016,0,tbl_twdbdata[[#This Row],[effsave]]-0.6*SUMIFS(tbl_twdbdata[effsave],tbl_twdbdata[Year],2020,tbl_twdbdata[utility],tbl_twdbdata[[#This Row],[utility]]))","v":47576706},3465,63,658,72,206354859,74938472,180202943,13120536,null,null,{"$f":"tbl_twdbdata[[#This Row],[utility]]&tbl_twdbdata[[#This Row],[Year]]","v":"WHARTON2040"}]
[null,2609,"WHARTON","K",2050,8103,10934,75827290,{"$f":"IF(tbl_twdbdata[[#This Row],[Year]]=2016,0,tbl_twdbdata[[#This Row],[effsave]]-0.6*SUMIFS(tbl_twdbdata[effsave],tbl_twdbdata[Year],2020,tbl_twdbdata[utility],tbl_twdbdata[[#This Row],[utility]]))","v":55388611},3603,67,701,77,214557249,77917198,187365821,13642064,null,null,{"$f":"tbl_twdbdata[[#This Row],[utility]]&tbl_twdbdata[[#This Row],[Year]]","v":"WHARTON2050"}]
[null,2609,"WHARTON","K",2060,8103,11320,79743740,{"$f":"IF(tbl_twdbdata[[#This Row],[Year]]=2016,0,tbl_twdbdata[[#This Row],[effsave]]-0.6*SUMIFS(tbl_twdbdata[effsave],tbl_twdbdata[Year],2020,tbl_twdbdata[utility],tbl_twdbdata[[#This Row],[utility]]))","v":59305061},3730,71,746,82,222131705,80667887,193980345,14123666,null,null,{"$f":"tbl_twdbdata[[#This Row],[utility]]&tbl_twdbdata[[#This Row],[Year]]","v":"WHARTON2060"}]
[null,2609,"WHARTON","K",2070,8103,11662,82323224,{"$f":"IF(tbl_twdbdata[[#This Row],[Year]]=2016,0,tbl_twdbdata[[#This Row],[effsave]]-0.6*SUMIFS(tbl_twdbdata[effsave],tbl_twdbdata[Year],2020,tbl_twdbdata[utility],tbl_twdbdata[[#This Row],[utility]]))","v":61884545},3843,76,794,87,228842751,83105026,199840882,14550370,null,null,{"$f":"tbl_twdbdata[[#This Row],[utility]]&tbl_twdbdata[[#This Row],[Year]]","v":"WHARTON2070"}]
[null,2618,"WHITEWRIGHT","C",2016,1633,2150,0,{"$f":"IF(tbl_twdbdata[[#This Row],[Year]]=2016,0,tbl_twdbdata[[#This Row],[effsave]]-0.6*SUMIFS(tbl_twdbdata[effsave],tbl_twdbdata[Year],2020,tbl_twdbdata[utility],tbl_twdbdata[[#This Row],[utility]]))","v":0},677,67,116,0,55050728,4701788,26374953,0,1412696,25475492,{"$f":"tbl_twdbdata[[#This Row],[utility]]&tbl_twdbdata[[#This Row],[Year]]","v":"WHITEWRIGHT2016"}]
[null,2618,"WHITEWRIGHT","C",2020,1633,1906,6518615,{"$f":"IF(tbl_twdbdata[[#This Row],[Year]]=2016,0,tbl_twdbdata[[#This Row],[effsave]]-0.6*SUMIFS(tbl_twdbdata[effsave],tbl_twdbdata[Year],2020,tbl_twdbdata[utility],tbl_twdbdata[[#This Row],[utility]]))","v":2607446},690,68,118,0,56110528,4792304,26882706,0,1439892,25965929,{"$f":"tbl_twdbdata[[#This Row],[utility]]&tbl_twdbdata[[#This Row],[Year]]","v":"WHITEWRIGHT2020"}]
[null,2618,"WHITEWRIGHT","C",2030,1633,1930,9707321,{"$f":"IF(tbl_twdbdata[[#This Row],[Year]]=2016,0,tbl_twdbdata[[#This Row],[effsave]]-0.6*SUMIFS(tbl_twdbdata[effsave],tbl_twdbdata[Year],2020,tbl_twdbdata[utility],tbl_twdbdata[[#This Row],[utility]]))","v":5796152},699,69,119,0,56817061,4852648,27221208,0,1458023,26292887,{"$f":"tbl_twdbdata[[#This Row],[utility]]&tbl_twdbdata[[#This Row],[Year]]","v":"WHITEWRIGHT2030"}]
[null,2618,"WHITEWRIGHT","C",2040,1633,1953,12432017,{"$f":"IF(tbl_twdbdata[[#This Row],[Year]]=2016,0,tbl_twdbdata[[#This Row],[effsave]]-0.6*SUMIFS(tbl_twdbdata[effsave],tbl_twdbdata[Year],2020,tbl_twdbdata[utility],tbl_twdbdata[[#This Row],[utility]]))","v":8520848},707,70,120,0,57494156,4910477,27545606,0,1475398,26606222,{"$f":"tbl_twdbdata[[#This Row],[utility]]&tbl_twdbdata[[#This Row],[Year]]","v":"WHITEWRIGHT2040"}]
[null,2618,"WHITEWRIGHT","C",2050,1633,1880,12818216,{"$f":"IF(tbl_twdbdata[[#This Row],[Year]]=2016,0,tbl_twdbdata[[#This Row],[effsave]]-0.6*SUMIFS(tbl_twdbdata[effsave],tbl_twdbdata[Year],2020,tbl_twdbdata[utility],tbl_twdbdata[[#This Row],[utility]]))","v":8907047},681,71,121,0,55345117,4726931,26515995,0,1420250,25611724,{"$f":"tbl_twdbdata[[#This Row],[utility]]&tbl_twdbdata[[#This Row],[Year]]","v":"WHITEWRIGHT2050"}]
[null,2618,"WHITEWRIGHT","C",2060,1633,1992,13865416,{"$f":"IF(tbl_twdbdata[[#This Row],[Year]]=2016,0,tbl_twdbdata[[#This Row],[effsave]]-0.6*SUMIFS(tbl_twdbdata[effsave],tbl_twdbdata[Year],2020,tbl_twdbdata[utility],tbl_twdbdata[[#This Row],[utility]]))","v":9954247},722,72,122,0,58642273,5008535,28095671,0,1504861,27137529,{"$f":"tbl_twdbdata[[#This Row],[utility]]&tbl_twdbdata[[#This Row],[Year]]","v":"WHITEWRIGHT2060"}]
[null,2618,"WHITEWRIGHT","C",2070,1633,2214,15467225,{"$f":"IF(tbl_twdbdata[[#This Row],[Year]]=2016,0,tbl_twdbdata[[#This Row],[effsave]]-0.6*SUMIFS(tbl_twdbdata[effsave],tbl_twdbdata[Year],2020,tbl_twdbdata[utility],tbl_twdbdata[[#This Row],[utility]]))","v":11556056},802,73,123,0,65177707,5566715,31226815,0,1672571,30161892,{"$f":"tbl_twdbdata[[#This Row],[utility]]&tbl_twdbdata[[#This Row],[Year]]","v":"WHITEWRIGHT2070"}]
[null,160,"WICHITA FALLS","B",2016,99596,99596,0,{"$f":"IF(tbl_twdbdata[[#This Row],[Year]]=2016,0,tbl_twdbdata[[#This Row],[effsave]]-0.6*SUMIFS(tbl_twdbdata[effsave],tbl_twdbdata[Year],2020,tbl_twdbdata[utility],tbl_twdbdata[[#This Row],[utility]]))","v":0},31735,1106,4092,9,1894983948,416244796,1204473834,3041368,51463496,546872242,{"$f":"tbl_twdbdata[[#This Row],[utility]]&tbl_twdbdata[[#This Row],[Year]]","v":"WICHITA FALLS2016"}]
[null,160,"WICHITA FALLS","B",2020,98130,104830,356228065,{"$f":"IF(tbl_twdbdata[[#This Row],[Year]]=2016,0,tbl_twdbdata[[#This Row],[effsave]]-0.6*SUMIFS(tbl_twdbdata[effsave],tbl_twdbdata[Year],2020,tbl_twdbdata[utility],tbl_twdbdata[[#This Row],[utility]]))","v":142491226},33902,1182,4371,10,2024367342,444664649,1286711424,3249023,54977258,584210915,{"$f":"tbl_twdbdata[[#This Row],[utility]]&tbl_twdbdata[[#This Row],[Year]]","v":"WICHITA FALLS2020"}]
[null,160,"WICHITA FALLS","B",2030,98130,108653,532611573,{"$f":"IF(tbl_twdbdata[[#This Row],[Year]]=2016,0,tbl_twdbdata[[#This Row],[effsave]]-0.6*SUMIFS(tbl_twdbdata[effsave],tbl_twdbdata[Year],2020,tbl_twdbdata[utility],tbl_twdbdata[[#This Row],[utility]]))","v":318874734},35138,1225,4531,10,2098193120,460880932,1333635948,3367510,56982200,605516251,{"$f":"tbl_twdbdata[[#This Row],[utility]]&tbl_twdbdata[[#This Row],[Year]]","v":"WICHITA FALLS2030"}]
[null,160,"WICHITA FALLS","B",2040,98130,111648,677697778,{"$f":"IF(tbl_twdbdata[[#This Row],[Year]]=2016,0,tbl_twdbdata[[#This Row],[effsave]]-0.6*SUMIFS(tbl_twdbdata[effsave],tbl_twdbdata[Year],2020,tbl_twdbdata[utility],tbl_twdbdata[[#This Row],[utility]]))","v":463960939},36107,1270,4697,10,2156029428,473585030,1370397379,3460335,58552904,622207195,{"$f":"tbl_twdbdata[[#This Row],[utility]]&tbl_twdbdata[[#This Row],[Year]]","v":"WICHITA FALLS2040"}]
[null,160,"WICHITA FALLS","B",2050,98130,113752,761052068,{"$f":"IF(tbl_twdbdata[[#This Row],[Year]]=2016,0,tbl_twdbdata[[#This Row],[effsave]]-0.6*SUMIFS(tbl_twdbdata[effsave],tbl_twdbdata[Year],2020,tbl_twdbdata[utility],tbl_twdbdata[[#This Row],[utility]]))","v":547315229},36787,1316,4868,10,2196659676,482509712,1396222437,3525545,59656330,633932653,{"$f":"tbl_twdbdata[[#This Row],[utility]]&tbl_twdbdata[[#This Row],[Year]]","v":"WICHITA FALLS2050"}]
[null,160,"WICHITA FALLS","B",2060,98130,115762,787598343,{"$f":"IF(tbl_twdbdata[[#This Row],[Year]]=2016,0,tbl_twdbdata[[#This Row],[effsave]]-0.6*SUMIFS(tbl_twdbdata[effsave],tbl_twdbdata[Year],2020,tbl_twdbdata[utility],tbl_twdbdata[[#This Row],[utility]]))","v":573861504},37437,1364,5045,10,2235474694,491035668,1420893713,3587841,60710458,645134255,{"$f":"tbl_twdbdata[[#This Row],[utility]]&tbl_twdbdata[[#This Row],[Year]]","v":"WICHITA FALLS2060"}]
[null,160,"WICHITA FALLS","B",2070,98130,117471,800083234,{"$f":"IF(tbl_twdbdata[[#This Row],[Year]]=2016,0,tbl_twdbdata[[#This Row],[effsave]]-0.6*SUMIFS(tbl_twdbdata[effsave],tbl_twdbdata[Year],2020,tbl_twdbdata[utility],tbl_twdbdata[[#This Row],[utility]]))","v":586346395},37990,1414,5229,10,2268477115,498284851,1441870436,3640808,61606729,654658403,{"$f":"tbl_twdbdata[[#This Row],[utility]]&tbl_twdbdata[[#This Row],[Year]]","v":"WICHITA FALLS2070"}]
[null,2623,"WILLIS","H",2016,5633,6100,0,{"$f":"IF(tbl_twdbdata[[#This Row],[Year]]=2016,0,tbl_twdbdata[[#This Row],[effsave]]-0.6*SUMIFS(tbl_twdbdata[effsave],tbl_twdbdata[Year],2020,tbl_twdbdata[utility],tbl_twdbdata[[#This Row],[utility]]))","v":0},1832,15,303,0,115254000,15215000,72910000,0,34257227,29832173,{"$f":"tbl_twdbdata[[#This Row],[utility]]&tbl_twdbdata[[#This Row],[Year]]","v":"WILLIS2016"}]
[null,2623,"WILLIS","H",2020,5633,7227,22078846,{"$f":"IF(tbl_twdbdata[[#This Row],[Year]]=2016,0,tbl_twdbdata[[#This Row],[effsave]]-0.6*SUMIFS(tbl_twdbdata[effsave],tbl_twdbdata[Year],2020,tbl_twdbdata[utility],tbl_twdbdata[[#This Row],[utility]]))","v":8831538.4000000004},2114,17,350,0,132972647,17554088,84118865,0,39523783,34418441,{"$f":"tbl_twdbdata[[#This Row],[utility]]&tbl_twdbdata[[#This Row],[Year]]","v":"WILLIS2020"}]
[null,2623,"WILLIS","H",2030,5633,7486,30329529,{"$f":"IF(tbl_twdbdata[[#This Row],[Year]]=2016,0,tbl_twdbdata[[#This Row],[effsave]]-0.6*SUMIFS(tbl_twdbdata[effsave],tbl_twdbdata[Year],2020,tbl_twdbdata[utility],tbl_twdbdata[[#This Row],[utility]]))","v":17082221.399999999},2190,18,363,0,137738098,18183188,87133503,0,40940230,35651923,{"$f":"tbl_twdbdata[[#This Row],[utility]]&tbl_twdbdata[[#This Row],[Year]]","v":"WILLIS2030"}]
[null,2623,"WILLIS","H",2040,5633,8071,38679864,{"$f":"IF(tbl_twdbdata[[#This Row],[Year]]=2016,0,tbl_twdbdata[[#This Row],[effsave]]-0.6*SUMIFS(tbl_twdbdata[effsave],tbl_twdbdata[Year],2020,tbl_twdbdata[utility],tbl_twdbdata[[#This Row],[utility]]))","v":25432556.399999999},2361,19,376,0,148501762,19604129,93942627,0,44139540,38437974,{"$f":"tbl_twdbdata[[#This Row],[utility]]&tbl_twdbdata[[#This Row],[Year]]","v":"WILLIS2040"}]
[null,2623,"WILLIS","H",2050,5633,8877,46106694,{"$f":"IF(tbl_twdbdata[[#This Row],[Year]]=2016,0,tbl_twdbdata[[#This Row],[effsave]]-0.6*SUMIFS(tbl_twdbdata[effsave],tbl_twdbdata[Year],2020,tbl_twdbdata[utility],tbl_twdbdata[[#This Row],[utility]]))","v":32859386.399999999},2597,20,389,0,163331699,21561870,103324086,0,48547478,42276533,{"$f":"tbl_twdbdata[[#This Row],[utility]]&tbl_twdbdata[[#This Row],[Year]]","v":"WILLIS2050"}]
[null,2623,"WILLIS","H",2060,5633,9995,53153910,{"$f":"IF(tbl_twdbdata[[#This Row],[Year]]=2016,0,tbl_twdbdata[[#This Row],[effsave]]-0.6*SUMIFS(tbl_twdbdata[effsave],tbl_twdbdata[Year],2020,tbl_twdbdata[utility],tbl_twdbdata[[#This Row],[utility]]))","v":39906602.399999999},2924,21,403,0,183902257,24277446,116337078,0,54661715,47600985,{"$f":"tbl_twdbdata[[#This Row],[utility]]&tbl_twdbdata[[#This Row],[Year]]","v":"WILLIS2060"}]
[null,2623,"WILLIS","H",2070,5633,11551,62019052,{"$f":"IF(tbl_twdbdata[[#This Row],[Year]]=2016,0,tbl_twdbdata[[#This Row],[effsave]]-0.6*SUMIFS(tbl_twdbdata[effsave],tbl_twdbdata[Year],2020,tbl_twdbdata[utility],tbl_twdbdata[[#This Row],[utility]]))","v":48771744.399999999},3379,22,417,0,212531763,28056906,134448183,0,63171333,55011403,{"$f":"tbl_twdbdata[[#This Row],[utility]]&tbl_twdbdata[[#This Row],[Year]]","v":"WILLIS2070"}]
[null,2624,"WILLOW PARK","C",2016,4443,4443,0,{"$f":"IF(tbl_twdbdata[[#This Row],[Year]]=2016,0,tbl_twdbdata[[#This Row],[effsave]]-0.6*SUMIFS(tbl_twdbdata[effsave],tbl_twdbdata[Year],2020,tbl_twdbdata[utility],tbl_twdbdata[[#This Row],[utility]]))","v":0},2184,0,0,0,185343836,0,0,0,2979091,50004326,{"$f":"tbl_twdbdata[[#This Row],[utility]]&tbl_twdbdata[[#This Row],[Year]]","v":"WILLOW PARK2016"}]
[null,2624,"WILLOW PARK","C",2020,4104,5500,18288325,{"$f":"IF(tbl_twdbdata[[#This Row],[Year]]=2016,0,tbl_twdbdata[[#This Row],[effsave]]-0.6*SUMIFS(tbl_twdbdata[effsave],tbl_twdbdata[Year],2020,tbl_twdbdata[utility],tbl_twdbdata[[#This Row],[utility]]))","v":7315330},2927,0,0,0,248389644,0,0,0,3992447,67013595,{"$f":"tbl_twdbdata[[#This Row],[utility]]&tbl_twdbdata[[#This Row],[Year]]","v":"WILLOW PARK2020"}]
[null,2624,"WILLOW PARK","C",2030,4104,8200,37801590,{"$f":"IF(tbl_twdbdata[[#This Row],[Year]]=2016,0,tbl_twdbdata[[#This Row],[effsave]]-0.6*SUMIFS(tbl_twdbdata[effsave],tbl_twdbdata[Year],2020,tbl_twdbdata[utility],tbl_twdbdata[[#This Row],[utility]]))","v":26828595},4364,0,0,0,370326378,0,0,0,5952376,99911178,{"$f":"tbl_twdbdata[[#This Row],[utility]]&tbl_twdbdata[[#This Row],[Year]]","v":"WILLOW PARK2030"}]
[null,2624,"WILLOW PARK","C",2040,4104,10100,53933495,{"$f":"IF(tbl_twdbdata[[#This Row],[Year]]=2016,0,tbl_twdbdata[[#This Row],[effsave]]-0.6*SUMIFS(tbl_twdbdata[effsave],tbl_twdbdata[Year],2020,tbl_twdbdata[utility],tbl_twdbdata[[#This Row],[utility]]))","v":42960500},5375,0,0,0,456133709,0,0,0,7331585,123061329,{"$f":"tbl_twdbdata[[#This Row],[utility]]&tbl_twdbdata[[#This Row],[Year]]","v":"WILLOW PARK2040"}]
[null,2624,"WILLOW PARK","C",2050,4104,12500,71540000,{"$f":"IF(tbl_twdbdata[[#This Row],[Year]]=2016,0,tbl_twdbdata[[#This Row],[effsave]]-0.6*SUMIFS(tbl_twdbdata[effsave],tbl_twdbdata[Year],2020,tbl_twdbdata[utility],tbl_twdbdata[[#This Row],[utility]]))","v":60567005},6652,0,0,0,564521917,0,0,0,9073744,152303625,{"$f":"tbl_twdbdata[[#This Row],[utility]]&tbl_twdbdata[[#This Row],[Year]]","v":"WILLOW PARK2050"}]
[null,2624,"WILLOW PARK","C",2060,4104,16000,93089600,{"$f":"IF(tbl_twdbdata[[#This Row],[Year]]=2016,0,tbl_twdbdata[[#This Row],[effsave]]-0.6*SUMIFS(tbl_twdbdata[effsave],tbl_twdbdata[Year],2020,tbl_twdbdata[utility],tbl_twdbdata[[#This Row],[utility]]))","v":82116605},8515,0,0,0,722588054,0,0,0,11614392,194948640,{"$f":"tbl_twdbdata[[#This Row],[utility]]&tbl_twdbdata[[#This Row],[Year]]","v":"WILLOW PARK2060"}]
[null,2624,"WILLOW PARK","C",2070,4104,18000,105317100,{"$f":"IF(tbl_twdbdata[[#This Row],[Year]]=2016,0,tbl_twdbdata[[#This Row],[effsave]]-0.6*SUMIFS(tbl_twdbdata[effsave],tbl_twdbdata[Year],2020,tbl_twdbdata[utility],tbl_twdbdata[[#This Row],[utility]]))","v":94344105},9579,0,0,0,812911561,0,0,0,13066191,219317220,{"$f":"tbl_twdbdata[[#This Row],[utility]]&tbl_twdbdata[[#This Row],[Year]]","v":"WILLOW PARK2070"}]
[null,6605,"WINDERMERE UTILITY","K",2016,17781,17781,0,{"$f":"IF(tbl_twdbdata[[#This Row],[Year]]=2016,0,tbl_twdbdata[[#This Row],[effsave]]-0.6*SUMIFS(tbl_twdbdata[effsave],tbl_twdbdata[Year],2020,tbl_twdbdata[utility],tbl_twdbdata[[#This Row],[utility]]))","v":0},4984,27,189,81,315779000,80459000,45471000,25335000,26150000,141963605,{"$f":"tbl_twdbdata[[#This Row],[utility]]&tbl_twdbdata[[#This Row],[Year]]","v":"WINDERMERE UTILITY2016"}]
[null,6605,"WINDERMERE UTILITY","K",2020,15843,17866,54451102,{"$f":"IF(tbl_twdbdata[[#This Row],[Year]]=2016,0,tbl_twdbdata[[#This Row],[effsave]]-0.6*SUMIFS(tbl_twdbdata[effsave],tbl_twdbdata[Year],2020,tbl_twdbdata[utility],tbl_twdbdata[[#This Row],[utility]]))","v":21780440.800000001},5620,30,213,91,356100967,90732847,51277213,28570038,29489106,160091003,{"$f":"tbl_twdbdata[[#This Row],[utility]]&tbl_twdbdata[[#This Row],[Year]]","v":"WINDERMERE UTILITY2020"}]
[null,6605,"WINDERMERE UTILITY","K",2030,15843,17866,72775364,{"$f":"IF(tbl_twdbdata[[#This Row],[Year]]=2016,0,tbl_twdbdata[[#This Row],[effsave]]-0.6*SUMIFS(tbl_twdbdata[effsave],tbl_twdbdata[Year],2020,tbl_twdbdata[utility],tbl_twdbdata[[#This Row],[utility]]))","v":40104702.799999997},5620,30,213,91,356100967,90732847,51277213,28570038,29489106,160091003,{"$f":"tbl_twdbdata[[#This Row],[utility]]&tbl_twdbdata[[#This Row],[Year]]","v":"WINDERMERE UTILITY2030"}]
[null,6605,"WINDERMERE UTILITY","K",2040,15843,17866,83535163,{"$f":"IF(tbl_twdbdata[[#This Row],[Year]]=2016,0,tbl_twdbdata[[#This Row],[effsave]]-0.6*SUMIFS(tbl_twdbdata[effsave],tbl_twdbdata[Year],2020,tbl_twdbdata[utility],tbl_twdbdata[[#This Row],[utility]]))","v":50864501.799999997},5620,30,213,91,356100967,90732847,51277213,28570038,29489106,160091003,{"$f":"tbl_twdbdata[[#This Row],[utility]]&tbl_twdbdata[[#This Row],[Year]]","v":"WINDERMERE UTILITY2040"}]
[null,6605,"WINDERMERE UTILITY","K",2050,15843,17866,88882457,{"$f":"IF(tbl_twdbdata[[#This Row],[Year]]=2016,0,tbl_twdbdata[[#This Row],[effsave]]-0.6*SUMIFS(tbl_twdbdata[effsave],tbl_twdbdata[Year],2020,tbl_twdbdata[utility],tbl_twdbdata[[#This Row],[utility]]))","v":56211795.799999997},5620,30,213,91,356100967,90732847,51277213,28570038,29489106,160091003,{"$f":"tbl_twdbdata[[#This Row],[utility]]&tbl_twdbdata[[#This Row],[Year]]","v":"WINDERMERE UTILITY2050"}]
[null,6605,"WINDERMERE UTILITY","K",2060,15843,17866,90447518,{"$f":"IF(tbl_twdbdata[[#This Row],[Year]]=2016,0,tbl_twdbdata[[#This Row],[effsave]]-0.6*SUMIFS(tbl_twdbdata[effsave],tbl_twdbdata[Year],2020,tbl_twdbdata[utility],tbl_twdbdata[[#This Row],[utility]]))","v":57776856.799999997},5620,30,213,91,356100967,90732847,51277213,28570038,29489106,160091003,{"$f":"tbl_twdbdata[[#This Row],[utility]]&tbl_twdbdata[[#This Row],[Year]]","v":"WINDERMERE UTILITY2060"}]
[null,6605,"WINDERMERE UTILITY","K",2070,15843,17866,90838784,{"$f":"IF(tbl_twdbdata[[#This Row],[Year]]=2016,0,tbl_twdbdata[[#This Row],[effsave]]-0.6*SUMIFS(tbl_twdbdata[effsave],tbl_twdbdata[Year],2020,tbl_twdbdata[utility],tbl_twdbdata[[#This Row],[utility]]))","v":58168122.799999997},5620,30,213,91,356100967,90732847,51277213,28570038,29489106,160091003,{"$f":"tbl_twdbdata[[#This Row],[utility]]&tbl_twdbdata[[#This Row],[Year]]","v":"WINDERMERE UTILITY2070"}]
[null,2635,"WINNSBORO","D",2016,3434,3434,0,{"$f":"IF(tbl_twdbdata[[#This Row],[Year]]=2016,0,tbl_twdbdata[[#This Row],[effsave]]-0.6*SUMIFS(tbl_twdbdata[effsave],tbl_twdbdata[Year],2020,tbl_twdbdata[utility],tbl_twdbdata[[#This Row],[utility]]))","v":0},1332,0,318,0,62778200,0,121393900,0,2761515,33987597,{"$f":"tbl_twdbdata[[#This Row],[utility]]&tbl_twdbdata[[#This Row],[Year]]","v":"WINNSBORO2016"}]
[null,2635,"WINNSBORO","D",2020,3434,3683,12878346,{"$f":"IF(tbl_twdbdata[[#This Row],[Year]]=2016,0,tbl_twdbdata[[#This Row],[effsave]]-0.6*SUMIFS(tbl_twdbdata[effsave],tbl_twdbdata[Year],2020,tbl_twdbdata[utility],tbl_twdbdata[[#This Row],[utility]]))","v":5151338.4000000004},1419,0,339,0,66901652,0,129367400,0,2942899,36220000,{"$f":"tbl_twdbdata[[#This Row],[utility]]&tbl_twdbdata[[#This Row],[Year]]","v":"WINNSBORO2020"}]
[null,2635,"WINNSBORO","D",2030,3434,3839,19042784,{"$f":"IF(tbl_twdbdata[[#This Row],[Year]]=2016,0,tbl_twdbdata[[#This Row],[effsave]]-0.6*SUMIFS(tbl_twdbdata[effsave],tbl_twdbdata[Year],2020,tbl_twdbdata[utility],tbl_twdbdata[[#This Row],[utility]]))","v":11315776.4},1479,0,353,0,69735390,0,134846986,0,3067551,37754162,{"$f":"tbl_twdbdata[[#This Row],[utility]]&tbl_twdbdata[[#This Row],[Year]]","v":"WINNSBORO2030"}]
[null,2635,"WINNSBORO","D",2040,3434,3909,23698899,{"$f":"IF(tbl_twdbdata[[#This Row],[Year]]=2016,0,tbl_twdbdata[[#This Row],[effsave]]-0.6*SUMIFS(tbl_twdbdata[effsave],tbl_twdbdata[Year],2020,tbl_twdbdata[utility],tbl_twdbdata[[#This Row],[utility]]))","v":15971891.4},1506,0,368,0,71006939,0,137305774,0,3123484,38442568,{"$f":"tbl_twdbdata[[#This Row],[utility]]&tbl_twdbdata[[#This Row],[Year]]","v":"WINNSBORO2040"}]
[null,2635,"WINNSBORO","D",2050,3434,4005,26663688,{"$f":"IF(tbl_twdbdata[[#This Row],[Year]]=2016,0,tbl_twdbdata[[#This Row],[effsave]]-0.6*SUMIFS(tbl_twdbdata[effsave],tbl_twdbdata[Year],2020,tbl_twdbdata[utility],tbl_twdbdata[[#This Row],[utility]]))","v":18936680.399999999},1543,0,384,0,72750778,0,140677827,0,3200193,39386668,{"$f":"tbl_twdbdata[[#This Row],[utility]]&tbl_twdbdata[[#This Row],[Year]]","v":"WINNSBORO2050"}]
[null,2635,"WINNSBORO","D",2060,3434,4057,27454125,{"$f":"IF(tbl_twdbdata[[#This Row],[Year]]=2016,0,tbl_twdbdata[[#This Row],[effsave]]-0.6*SUMIFS(tbl_twdbdata[effsave],tbl_twdbdata[Year],2020,tbl_twdbdata[utility],tbl_twdbdata[[#This Row],[utility]]))","v":19727117.399999999},1563,0,400,0,73695357,0,142504356,0,3241744,39898055,{"$f":"tbl_twdbdata[[#This Row],[utility]]&tbl_twdbdata[[#This Row],[Year]]","v":"WINNSBORO2060"}]
[null,2635,"WINNSBORO","D",2070,3434,4095,27741168,{"$f":"IF(tbl_twdbdata[[#This Row],[Year]]=2016,0,tbl_twdbdata[[#This Row],[effsave]]-0.6*SUMIFS(tbl_twdbdata[effsave],tbl_twdbdata[Year],2020,tbl_twdbdata[utility],tbl_twdbdata[[#This Row],[utility]]))","v":20014160.399999999},1578,0,417,0,74385627,0,143839127,0,3272108,40271761,{"$f":"tbl_twdbdata[[#This Row],[utility]]&tbl_twdbdata[[#This Row],[Year]]","v":"WINNSBORO2070"}]
[null,2637,"WINTERS","F",2016,3025,3025,0,{"$f":"IF(tbl_twdbdata[[#This Row],[Year]]=2016,0,tbl_twdbdata[[#This Row],[effsave]]-0.6*SUMIFS(tbl_twdbdata[effsave],tbl_twdbdata[Year],2020,tbl_twdbdata[utility],tbl_twdbdata[[#This Row],[utility]]))","v":0},1026,0,151,0,46828000,0,15736000,0,8215488,5621512,{"$f":"tbl_twdbdata[[#This Row],[utility]]&tbl_twdbdata[[#This Row],[Year]]","v":"WINTERS2016"}]
[null,2637,"WINTERS","F",2020,2726,2763,9943761,{"$f":"IF(tbl_twdbdata[[#This Row],[Year]]=2016,0,tbl_twdbdata[[#This Row],[effsave]]-0.6*SUMIFS(tbl_twdbdata[effsave],tbl_twdbdata[Year],2020,tbl_twdbdata[utility],tbl_twdbdata[[#This Row],[utility]]))","v":3977504.4000000004},1040,0,153,0,47463596,0,15949585,0,8326997,5697813,{"$f":"tbl_twdbdata[[#This Row],[utility]]&tbl_twdbdata[[#This Row],[Year]]","v":"WINTERS2020"}]
[null,2637,"WINTERS","F",2030,2726,2835,15004238,{"$f":"IF(tbl_twdbdata[[#This Row],[Year]]=2016,0,tbl_twdbdata[[#This Row],[effsave]]-0.6*SUMIFS(tbl_twdbdata[effsave],tbl_twdbdata[Year],2020,tbl_twdbdata[utility],tbl_twdbdata[[#This Row],[utility]]))","v":9037981.4000000004},1067,0,157,0,48700432,0,16365209,0,8543987,5846290,{"$f":"tbl_twdbdata[[#This Row],[utility]]&tbl_twdbdata[[#This Row],[Year]]","v":"WINTERS2030"}]
[null,2637,"WINTERS","F",2040,2726,2835,18625950,{"$f":"IF(tbl_twdbdata[[#This Row],[Year]]=2016,0,tbl_twdbdata[[#This Row],[effsave]]-0.6*SUMIFS(tbl_twdbdata[effsave],tbl_twdbdata[Year],2020,tbl_twdbdata[utility],tbl_twdbdata[[#This Row],[utility]]))","v":12659693.4},1067,0,161,0,48700432,0,16365209,0,8543987,5846290,{"$f":"tbl_twdbdata[[#This Row],[utility]]&tbl_twdbdata[[#This Row],[Year]]","v":"WINTERS2040"}]
[null,2637,"WINTERS","F",2050,2726,2835,18946730,{"$f":"IF(tbl_twdbdata[[#This Row],[Year]]=2016,0,tbl_twdbdata[[#This Row],[effsave]]-0.6*SUMIFS(tbl_twdbdata[effsave],tbl_twdbdata[Year],2020,tbl_twdbdata[utility],tbl_twdbdata[[#This Row],[utility]]))","v":12980473.4},1067,0,165,0,48700432,0,16365209,0,8543987,5846290,{"$f":"tbl_twdbdata[[#This Row],[utility]]&tbl_twdbdata[[#This Row],[Year]]","v":"WINTERS2050"}]
[null,2637,"WINTERS","F",2060,2726,2835,19267511,{"$f":"IF(tbl_twdbdata[[#This Row],[Year]]=2016,0,tbl_twdbdata[[#This Row],[effsave]]-0.6*SUMIFS(tbl_twdbdata[effsave],tbl_twdbdata[Year],2020,tbl_twdbdata[utility],tbl_twdbdata[[#This Row],[utility]]))","v":13301254.4},1067,0,169,0,48700432,0,16365209,0,8543987,5846290,{"$f":"tbl_twdbdata[[#This Row],[utility]]&tbl_twdbdata[[#This Row],[Year]]","v":"WINTERS2060"}]
[null,2637,"WINTERS","F",2070,2726,2835,19267511,{"$f":"IF(tbl_twdbdata[[#This Row],[Year]]=2016,0,tbl_twdbdata[[#This Row],[effsave]]-0.6*SUMIFS(tbl_twdbdata[effsave],tbl_twdbdata[Year],2020,tbl_twdbdata[utility],tbl_twdbdata[[#This Row],[utility]]))","v":13301254.4},1067,0,173,0,48700432,0,16365209,0,8543987,5846290,{"$f":"tbl_twdbdata[[#This Row],[utility]]&tbl_twdbdata[[#This Row],[Year]]","v":"WINTERS2070"}]
[null,2638,"WOLFE CITY","D",2016,1412,1412,0,{"$f":"IF(tbl_twdbdata[[#This Row],[Year]]=2016,0,tbl_twdbdata[[#This Row],[effsave]]-0.6*SUMIFS(tbl_twdbdata[effsave],tbl_twdbdata[Year],2020,tbl_twdbdata[utility],tbl_twdbdata[[#This Row],[utility]]))","v":0},604,3,68,0,26014150,2450380,6687350,0,null,null,{"$f":"tbl_twdbdata[[#This Row],[utility]]&tbl_twdbdata[[#This Row],[Year]]","v":"WOLFE CITY2016"}]
[null,2638,"WOLFE CITY","D",2020,1412,1810,7438919,{"$f":"IF(tbl_twdbdata[[#This Row],[Year]]=2016,0,tbl_twdbdata[[#This Row],[effsave]]-0.6*SUMIFS(tbl_twdbdata[effsave],tbl_twdbdata[Year],2020,tbl_twdbdata[utility],tbl_twdbdata[[#This Row],[utility]]))","v":2975567.6000000006},774,4,88,0,33346750,3141068,8572311,0,null,null,{"$f":"tbl_twdbdata[[#This Row],[utility]]&tbl_twdbdata[[#This Row],[Year]]","v":"WOLFE CITY2020"}]
[null,2638,"WOLFE CITY","D",2030,1412,2249,13191622,{"$f":"IF(tbl_twdbdata[[#This Row],[Year]]=2016,0,tbl_twdbdata[[#This Row],[effsave]]-0.6*SUMIFS(tbl_twdbdata[effsave],tbl_twdbdata[Year],2020,tbl_twdbdata[utility],tbl_twdbdata[[#This Row],[utility]]))","v":8728270.6000000015},962,5,109,0,41434719,3902907,10651452,0,null,null,{"$f":"tbl_twdbdata[[#This Row],[utility]]&tbl_twdbdata[[#This Row],[Year]]","v":"WOLFE CITY2030"}]
[null,2638,"WOLFE CITY","D",2040,1412,2846,19664295,{"$f":"IF(tbl_twdbdata[[#This Row],[Year]]=2016,0,tbl_twdbdata[[#This Row],[effsave]]-0.6*SUMIFS(tbl_twdbdata[effsave],tbl_twdbdata[Year],2020,tbl_twdbdata[utility],tbl_twdbdata[[#This Row],[utility]]))","v":15200943.600000001},1217,6,136,0,52433620,4938939,13478894,0,null,null,{"$f":"tbl_twdbdata[[#This Row],[utility]]&tbl_twdbdata[[#This Row],[Year]]","v":"WOLFE CITY2040"}]
[null,2638,"WOLFE CITY","D",2050,1412,3669,25899838,{"$f":"IF(tbl_twdbdata[[#This Row],[Year]]=2016,0,tbl_twdbdata[[#This Row],[effsave]]-0.6*SUMIFS(tbl_twdbdata[effsave],tbl_twdbdata[Year],2020,tbl_twdbdata[utility],tbl_twdbdata[[#This Row],[utility]]))","v":21436486.600000001},1569,7,169,0,67596259,6367170,17376691,0,null,null,{"$f":"tbl_twdbdata[[#This Row],[utility]]&tbl_twdbdata[[#This Row],[Year]]","v":"WOLFE CITY2050"}]
[null,2638,"WOLFE CITY","D",2060,1412,4842,34657341,{"$f":"IF(tbl_twdbdata[[#This Row],[Year]]=2016,0,tbl_twdbdata[[#This Row],[effsave]]-0.6*SUMIFS(tbl_twdbdata[effsave],tbl_twdbdata[Year],2020,tbl_twdbdata[utility],tbl_twdbdata[[#This Row],[utility]]))","v":30193989.600000001},2071,9,210,0,89207164,8402790,22932118,0,null,null,{"$f":"tbl_twdbdata[[#This Row],[utility]]&tbl_twdbdata[[#This Row],[Year]]","v":"WOLFE CITY2060"}]
[null,2638,"WOLFE CITY","D",2070,1412,6547,47171790,{"$f":"IF(tbl_twdbdata[[#This Row],[Year]]=2016,0,tbl_twdbdata[[#This Row],[effsave]]-0.6*SUMIFS(tbl_twdbdata[effsave],tbl_twdbdata[Year],2020,tbl_twdbdata[utility],tbl_twdbdata[[#This Row],[utility]]))","v":42708438.600000001},2800,11,261,0,120619435,11361641,31007141,0,null,null,{"$f":"tbl_twdbdata[[#This Row],[utility]]&tbl_twdbdata[[#This Row],[Year]]","v":"WOLFE CITY2070"}]
[null,2648,"WOODWAY","G",2016,8671,8671,0,{"$f":"IF(tbl_twdbdata[[#This Row],[Year]]=2016,0,tbl_twdbdata[[#This Row],[effsave]]-0.6*SUMIFS(tbl_twdbdata[effsave],tbl_twdbdata[Year],2020,tbl_twdbdata[utility],tbl_twdbdata[[#This Row],[utility]]))","v":0},3651,0,342,0,504387855,0,102167760,0,9514784,145112328,{"$f":"tbl_twdbdata[[#This Row],[utility]]&tbl_twdbdata[[#This Row],[Year]]","v":"WOODWAY2016"}]
[null,2648,"WOODWAY","G",2020,8548,9045,33047264,{"$f":"IF(tbl_twdbdata[[#This Row],[Year]]=2016,0,tbl_twdbdata[[#This Row],[effsave]]-0.6*SUMIFS(tbl_twdbdata[effsave],tbl_twdbdata[Year],2020,tbl_twdbdata[utility],tbl_twdbdata[[#This Row],[utility]]))","v":13218905.600000001},3863,0,362,0,533714103,0,108108024,0,10067995,153549486,{"$f":"tbl_twdbdata[[#This Row],[utility]]&tbl_twdbdata[[#This Row],[Year]]","v":"WOODWAY2020"}]
[null,2648,"WOODWAY","G",2030,8548,9762,51736648,{"$f":"IF(tbl_twdbdata[[#This Row],[Year]]=2016,0,tbl_twdbdata[[#This Row],[effsave]]-0.6*SUMIFS(tbl_twdbdata[effsave],tbl_twdbdata[Year],2020,tbl_twdbdata[utility],tbl_twdbdata[[#This Row],[utility]]))","v":31908289.600000001},4169,0,391,0,576021788,0,116677782,0,10866088,165721402,{"$f":"tbl_twdbdata[[#This Row],[utility]]&tbl_twdbdata[[#This Row],[Year]]","v":"WOODWAY2030"}]
[null,2648,"WOODWAY","G",2040,8548,10396,67580757,{"$f":"IF(tbl_twdbdata[[#This Row],[Year]]=2016,0,tbl_twdbdata[[#This Row],[effsave]]-0.6*SUMIFS(tbl_twdbdata[effsave],tbl_twdbdata[Year],2020,tbl_twdbdata[utility],tbl_twdbdata[[#This Row],[utility]]))","v":47752398.600000001},4440,0,422,0,613431931,0,124255503,0,11571794,176484296,{"$f":"tbl_twdbdata[[#This Row],[utility]]&tbl_twdbdata[[#This Row],[Year]]","v":"WOODWAY2040"}]
[null,2648,"WOODWAY","G",2050,8548,11033,76876289,{"$f":"IF(tbl_twdbdata[[#This Row],[Year]]=2016,0,tbl_twdbdata[[#This Row],[effsave]]-0.6*SUMIFS(tbl_twdbdata[effsave],tbl_twdbdata[Year],2020,tbl_twdbdata[utility],tbl_twdbdata[[#This Row],[utility]]))","v":57047930.600000001},4712,0,455,0,651019093,0,131869081,0,12280839,187298118,{"$f":"tbl_twdbdata[[#This Row],[utility]]&tbl_twdbdata[[#This Row],[Year]]","v":"WOODWAY2050"}]
[null,2648,"WOODWAY","G",2060,8548,11669,82628189,{"$f":"IF(tbl_twdbdata[[#This Row],[Year]]=2016,0,tbl_twdbdata[[#This Row],[effsave]]-0.6*SUMIFS(tbl_twdbdata[effsave],tbl_twdbdata[Year],2020,tbl_twdbdata[utility],tbl_twdbdata[[#This Row],[utility]]))","v":62799830.600000001},4984,0,491,0,688547249,0,139470707,0,12988771,198094964,{"$f":"tbl_twdbdata[[#This Row],[utility]]&tbl_twdbdata[[#This Row],[Year]]","v":"WOODWAY2060"}]
[null,2648,"WOODWAY","G",2070,8548,12292,87308847,{"$f":"IF(tbl_twdbdata[[#This Row],[Year]]=2016,0,tbl_twdbdata[[#This Row],[effsave]]-0.6*SUMIFS(tbl_twdbdata[effsave],tbl_twdbdata[Year],2020,tbl_twdbdata[utility],tbl_twdbdata[[#This Row],[utility]]))","v":67480488.599999994},5250,0,530,0,725308320,0,146916953,0,13682233,208671120,{"$f":"tbl_twdbdata[[#This Row],[utility]]&tbl_twdbdata[[#This Row],[Year]]","v":"WOODWAY2070"}]
[null,2649,"WORTHAM","C",2016,1082,1082,0,{"$f":"IF(tbl_twdbdata[[#This Row],[Year]]=2016,0,tbl_twdbdata[[#This Row],[effsave]]-0.6*SUMIFS(tbl_twdbdata[effsave],tbl_twdbdata[Year],2020,tbl_twdbdata[utility],tbl_twdbdata[[#This Row],[utility]]))","v":0},589,10,67,0,12200000,26100,1914500,0,478438,22264026,{"$f":"tbl_twdbdata[[#This Row],[utility]]&tbl_twdbdata[[#This Row],[Year]]","v":"WORTHAM2016"}]
[null,2649,"WORTHAM","C",2020,1004,1185,4307949,{"$f":"IF(tbl_twdbdata[[#This Row],[Year]]=2016,0,tbl_twdbdata[[#This Row],[effsave]]-0.6*SUMIFS(tbl_twdbdata[effsave],tbl_twdbdata[Year],2020,tbl_twdbdata[utility],tbl_twdbdata[[#This Row],[utility]]))","v":1723179.6},695,12,79,0,14399402,30805,2259644,0,564690,26277760,{"$f":"tbl_twdbdata[[#This Row],[utility]]&tbl_twdbdata[[#This Row],[Year]]","v":"WORTHAM2020"}]
[null,2649,"WORTHAM","C",2030,1004,1278,6619209,{"$f":"IF(tbl_twdbdata[[#This Row],[Year]]=2016,0,tbl_twdbdata[[#This Row],[effsave]]-0.6*SUMIFS(tbl_twdbdata[effsave],tbl_twdbdata[Year],2020,tbl_twdbdata[utility],tbl_twdbdata[[#This Row],[utility]]))","v":4034439.6},750,13,85,0,15529482,33223,2436983,0,609007,28340065,{"$f":"tbl_twdbdata[[#This Row],[utility]]&tbl_twdbdata[[#This Row],[Year]]","v":"WORTHAM2030"}]
[null,2649,"WORTHAM","C",2040,1004,1342,8429974,{"$f":"IF(tbl_twdbdata[[#This Row],[Year]]=2016,0,tbl_twdbdata[[#This Row],[effsave]]-0.6*SUMIFS(tbl_twdbdata[effsave],tbl_twdbdata[Year],2020,tbl_twdbdata[utility],tbl_twdbdata[[#This Row],[utility]]))","v":5845204.5999999996},788,14,92,0,16307171,34887,2559023,0,639505,29759286,{"$f":"tbl_twdbdata[[#This Row],[utility]]&tbl_twdbdata[[#This Row],[Year]]","v":"WORTHAM2040"}]
[null,2649,"WORTHAM","C",2050,1004,1390,9517886,{"$f":"IF(tbl_twdbdata[[#This Row],[Year]]=2016,0,tbl_twdbdata[[#This Row],[effsave]]-0.6*SUMIFS(tbl_twdbdata[effsave],tbl_twdbdata[Year],2020,tbl_twdbdata[utility],tbl_twdbdata[[#This Row],[utility]]))","v":6933116.5999999996},816,15,99,0,16890438,36135,2650553,0,662379,30823702,{"$f":"tbl_twdbdata[[#This Row],[utility]]&tbl_twdbdata[[#This Row],[Year]]","v":"WORTHAM2050"}]
[null,2649,"WORTHAM","C",2060,1004,2319,16471625,{"$f":"IF(tbl_twdbdata[[#This Row],[Year]]=2016,0,tbl_twdbdata[[#This Row],[effsave]]-0.6*SUMIFS(tbl_twdbdata[effsave],tbl_twdbdata[Year],2020,tbl_twdbdata[utility],tbl_twdbdata[[#This Row],[utility]]))","v":13886855.6},1361,16,107,0,28179083,60286,4422038,0,1105077,51424579,{"$f":"tbl_twdbdata[[#This Row],[utility]]&tbl_twdbdata[[#This Row],[Year]]","v":"WORTHAM2060"}]
[null,2649,"WORTHAM","C",2070,1004,2622,18700366,{"$f":"IF(tbl_twdbdata[[#This Row],[Year]]=2016,0,tbl_twdbdata[[#This Row],[effsave]]-0.6*SUMIFS(tbl_twdbdata[effsave],tbl_twdbdata[Year],2020,tbl_twdbdata[utility],tbl_twdbdata[[#This Row],[utility]]))","v":16115596.6},1539,17,115,0,31860955,68163,4999821,0,1249466,58143703,{"$f":"tbl_twdbdata[[#This Row],[utility]]&tbl_twdbdata[[#This Row],[Year]]","v":"WORTHAM2070"}]
[null,2650,"WYLIE","C",2016,42546,42546,0,{"$f":"IF(tbl_twdbdata[[#This Row],[Year]]=2016,0,tbl_twdbdata[[#This Row],[effsave]]-0.6*SUMIFS(tbl_twdbdata[effsave],tbl_twdbdata[Year],2020,tbl_twdbdata[utility],tbl_twdbdata[[#This Row],[utility]]))","v":0},11848,0,900,0,982285000,0,379548000,0,null,null,{"$f":"tbl_twdbdata[[#This Row],[utility]]&tbl_twdbdata[[#This Row],[Year]]","v":"WYLIE2016"}]
[null,2650,"WYLIE","C",2020,38169,47156,111189132,{"$f":"IF(tbl_twdbdata[[#This Row],[Year]]=2016,0,tbl_twdbdata[[#This Row],[effsave]]-0.6*SUMIFS(tbl_twdbdata[effsave],tbl_twdbdata[Year],2020,tbl_twdbdata[utility],tbl_twdbdata[[#This Row],[utility]]))","v":44475652.800000004},14638,0,1112,0,1213566807,0,468913660,0,null,null,{"$f":"tbl_twdbdata[[#This Row],[utility]]&tbl_twdbdata[[#This Row],[Year]]","v":"WYLIE2020"}]
[null,2650,"WYLIE","C",2030,38169,50465,154909887,{"$f":"IF(tbl_twdbdata[[#This Row],[Year]]=2016,0,tbl_twdbdata[[#This Row],[effsave]]-0.6*SUMIFS(tbl_twdbdata[effsave],tbl_twdbdata[Year],2020,tbl_twdbdata[utility],tbl_twdbdata[[#This Row],[utility]]))","v":88196407.800000012},15665,0,1190,0,1298724424,0,501817963,0,null,null,{"$f":"tbl_twdbdata[[#This Row],[utility]]&tbl_twdbdata[[#This Row],[Year]]","v":"WYLIE2030"}]
[null,2650,"WYLIE","C",2040,38169,53076,182103756,{"$f":"IF(tbl_twdbdata[[#This Row],[Year]]=2016,0,tbl_twdbdata[[#This Row],[effsave]]-0.6*SUMIFS(tbl_twdbdata[effsave],tbl_twdbdata[Year],2020,tbl_twdbdata[utility],tbl_twdbdata[[#This Row],[utility]]))","v":115390276.80000001},16475,0,1274,0,1365918905,0,527781437,0,null,null,{"$f":"tbl_twdbdata[[#This Row],[utility]]&tbl_twdbdata[[#This Row],[Year]]","v":"WYLIE2040"}]
[null,2650,"WYLIE","C",2050,38169,56812,206949072,{"$f":"IF(tbl_twdbdata[[#This Row],[Year]]=2016,0,tbl_twdbdata[[#This Row],[effsave]]-0.6*SUMIFS(tbl_twdbdata[effsave],tbl_twdbdata[Year],2020,tbl_twdbdata[utility],tbl_twdbdata[[#This Row],[utility]]))","v":140235592.80000001},17635,0,1363,0,1462065431,0,564931777,0,null,null,{"$f":"tbl_twdbdata[[#This Row],[utility]]&tbl_twdbdata[[#This Row],[Year]]","v":"WYLIE2050"}]
[null,2650,"WYLIE","C",2060,38169,59109,220710051,{"$f":"IF(tbl_twdbdata[[#This Row],[Year]]=2016,0,tbl_twdbdata[[#This Row],[effsave]]-0.6*SUMIFS(tbl_twdbdata[effsave],tbl_twdbdata[Year],2020,tbl_twdbdata[utility],tbl_twdbdata[[#This Row],[utility]]))","v":153996571.80000001},18348,0,1458,0,1521179074,0,587772872,0,null,null,{"$f":"tbl_twdbdata[[#This Row],[utility]]&tbl_twdbdata[[#This Row],[Year]]","v":"WYLIE2060"}]
[null,2650,"WYLIE","C",2070,38169,64809,243176330,{"$f":"IF(tbl_twdbdata[[#This Row],[Year]]=2016,0,tbl_twdbdata[[#This Row],[effsave]]-0.6*SUMIFS(tbl_twdbdata[effsave],tbl_twdbdata[Year],2020,tbl_twdbdata[utility],tbl_twdbdata[[#This Row],[utility]]))","v":176462850.80000001},20117,0,1560,0,1667869438,0,644452994,0,null,null,{"$f":"tbl_twdbdata[[#This Row],[utility]]&tbl_twdbdata[[#This Row],[Year]]","v":"WYLIE2070"}]
[null,2652,"YOAKUM","P",2016,5815,5815,0,{"$f":"IF(tbl_twdbdata[[#This Row],[Year]]=2016,0,tbl_twdbdata[[#This Row],[effsave]]-0.6*SUMIFS(tbl_twdbdata[effsave],tbl_twdbdata[Year],2020,tbl_twdbdata[utility],tbl_twdbdata[[#This Row],[utility]]))","v":0},2287,202,341,0,142323775,12140400,103485295,0,4639717,108588175,{"$f":"tbl_twdbdata[[#This Row],[utility]]&tbl_twdbdata[[#This Row],[Year]]","v":"YOAKUM2016"}]
[null,2652,"YOAKUM","P",2020,5815,5896,19927890,{"$f":"IF(tbl_twdbdata[[#This Row],[Year]]=2016,0,tbl_twdbdata[[#This Row],[effsave]]-0.6*SUMIFS(tbl_twdbdata[effsave],tbl_twdbdata[Year],2020,tbl_twdbdata[utility],tbl_twdbdata[[#This Row],[utility]]))","v":7971156},2319,205,346,0,144306273,12309510,104926793,0,4704346,110100753,{"$f":"tbl_twdbdata[[#This Row],[utility]]&tbl_twdbdata[[#This Row],[Year]]","v":"YOAKUM2020"}]
[null,2652,"YOAKUM","P",2030,5815,5970,29199270,{"$f":"IF(tbl_twdbdata[[#This Row],[Year]]=2016,0,tbl_twdbdata[[#This Row],[effsave]]-0.6*SUMIFS(tbl_twdbdata[effsave],tbl_twdbdata[Year],2020,tbl_twdbdata[utility],tbl_twdbdata[[#This Row],[utility]]))","v":17242536},2348,208,351,0,146117444,12464005,106243717,0,4763390,111482615,{"$f":"tbl_twdbdata[[#This Row],[utility]]&tbl_twdbdata[[#This Row],[Year]]","v":"YOAKUM2030"}]
[null,2652,"YOAKUM","P",2040,5815,6006,36763026,{"$f":"IF(tbl_twdbdata[[#This Row],[Year]]=2016,0,tbl_twdbdata[[#This Row],[effsave]]-0.6*SUMIFS(tbl_twdbdata[effsave],tbl_twdbdata[Year],2020,tbl_twdbdata[utility],tbl_twdbdata[[#This Row],[utility]]))","v":24806292},2362,211,356,0,146998554,12539165,106884383,0,4792114,112154872,{"$f":"tbl_twdbdata[[#This Row],[utility]]&tbl_twdbdata[[#This Row],[Year]]","v":"YOAKUM2040"}]
[null,2652,"YOAKUM","P",2050,5815,6039,41020813,{"$f":"IF(tbl_twdbdata[[#This Row],[Year]]=2016,0,tbl_twdbdata[[#This Row],[effsave]]-0.6*SUMIFS(tbl_twdbdata[effsave],tbl_twdbdata[Year],2020,tbl_twdbdata[utility],tbl_twdbdata[[#This Row],[utility]]))","v":29064079},2375,214,361,0,147806238,12608062,107471659,0,4818444,112771108,{"$f":"tbl_twdbdata[[#This Row],[utility]]&tbl_twdbdata[[#This Row],[Year]]","v":"YOAKUM2050"}]
[null,2652,"YOAKUM","P",2060,5815,6062,41885086,{"$f":"IF(tbl_twdbdata[[#This Row],[Year]]=2016,0,tbl_twdbdata[[#This Row],[effsave]]-0.6*SUMIFS(tbl_twdbdata[effsave],tbl_twdbdata[Year],2020,tbl_twdbdata[utility],tbl_twdbdata[[#This Row],[utility]]))","v":29928352},2384,217,366,0,148369170,12656081,107880973,0,4836795,113200606,{"$f":"tbl_twdbdata[[#This Row],[utility]]&tbl_twdbdata[[#This Row],[Year]]","v":"YOAKUM2060"}]
[null,2652,"YOAKUM","P",2070,5815,6077,41988728,{"$f":"IF(tbl_twdbdata[[#This Row],[Year]]=2016,0,tbl_twdbdata[[#This Row],[effsave]]-0.6*SUMIFS(tbl_twdbdata[effsave],tbl_twdbdata[Year],2020,tbl_twdbdata[utility],tbl_twdbdata[[#This Row],[utility]]))","v":30031994},2390,220,371,0,148736299,12687398,108147918,0,4848763,113480713,{"$f":"tbl_twdbdata[[#This Row],[utility]]&tbl_twdbdata[[#This Row],[Year]]","v":"YOAKUM2070"}]
[null,3052,"ZAPATA COUNTY","M",2016,12021,12021,0,{"$f":"IF(tbl_twdbdata[[#This Row],[Year]]=2016,0,tbl_twdbdata[[#This Row],[effsave]]-0.6*SUMIFS(tbl_twdbdata[effsave],tbl_twdbdata[Year],2020,tbl_twdbdata[utility],tbl_twdbdata[[#This Row],[utility]]))","v":0},3736,0,258,0,349360000,0,51817000,0,null,null,{"$f":"tbl_twdbdata[[#This Row],[utility]]&tbl_twdbdata[[#This Row],[Year]]","v":"ZAPATA COUNTY2016"}]
[null,3052,"ZAPATA COUNTY","M",2020,10273,12126,42356724,{"$f":"IF(tbl_twdbdata[[#This Row],[Year]]=2016,0,tbl_twdbdata[[#This Row],[effsave]]-0.6*SUMIFS(tbl_twdbdata[effsave],tbl_twdbdata[Year],2020,tbl_twdbdata[utility],tbl_twdbdata[[#This Row],[utility]]))","v":16942689.600000001},4410,0,304,0,412376069,0,61163529,0,null,null,{"$f":"tbl_twdbdata[[#This Row],[utility]]&tbl_twdbdata[[#This Row],[Year]]","v":"ZAPATA COUNTY2020"}]
[null,3052,"ZAPATA COUNTY","M",2030,10273,14250,69020588,{"$f":"IF(tbl_twdbdata[[#This Row],[Year]]=2016,0,tbl_twdbdata[[#This Row],[effsave]]-0.6*SUMIFS(tbl_twdbdata[effsave],tbl_twdbdata[Year],2020,tbl_twdbdata[utility],tbl_twdbdata[[#This Row],[utility]]))","v":43606553.600000001},5182,0,357,0,484608196,0,71876982,0,null,null,{"$f":"tbl_twdbdata[[#This Row],[utility]]&tbl_twdbdata[[#This Row],[Year]]","v":"ZAPATA COUNTY2030"}]
[null,3052,"ZAPATA COUNTY","M",2040,10273,16547,93856239,{"$f":"IF(tbl_twdbdata[[#This Row],[Year]]=2016,0,tbl_twdbdata[[#This Row],[effsave]]-0.6*SUMIFS(tbl_twdbdata[effsave],tbl_twdbdata[Year],2020,tbl_twdbdata[utility],tbl_twdbdata[[#This Row],[utility]]))","v":68442204.599999994},6017,0,420,0,562723636,0,83463047,0,null,null,{"$f":"tbl_twdbdata[[#This Row],[utility]]&tbl_twdbdata[[#This Row],[Year]]","v":"ZAPATA COUNTY2040"}]
[null,3052,"ZAPATA COUNTY","M",2050,10273,19142,116121115,{"$f":"IF(tbl_twdbdata[[#This Row],[Year]]=2016,0,tbl_twdbdata[[#This Row],[effsave]]-0.6*SUMIFS(tbl_twdbdata[effsave],tbl_twdbdata[Year],2020,tbl_twdbdata[utility],tbl_twdbdata[[#This Row],[utility]]))","v":90707080.599999994},6961,0,494,0,650973339,0,96552224,0,null,null,{"$f":"tbl_twdbdata[[#This Row],[utility]]&tbl_twdbdata[[#This Row],[Year]]","v":"ZAPATA COUNTY2050"}]
[null,3052,"ZAPATA COUNTY","M",2060,10273,21780,134270433,{"$f":"IF(tbl_twdbdata[[#This Row],[Year]]=2016,0,tbl_twdbdata[[#This Row],[effsave]]-0.6*SUMIFS(tbl_twdbdata[effsave],tbl_twdbdata[Year],2020,tbl_twdbdata[utility],tbl_twdbdata[[#This Row],[utility]]))","v":108856398.59999999},7920,0,580,0,740685368,0,109858292,0,null,null,{"$f":"tbl_twdbdata[[#This Row],[utility]]&tbl_twdbdata[[#This Row],[Year]]","v":"ZAPATA COUNTY2060"}]
[null,3052,"ZAPATA COUNTY","M",2070,10273,24627,152630758,{"$f":"IF(tbl_twdbdata[[#This Row],[Year]]=2016,0,tbl_twdbdata[[#This Row],[effsave]]-0.6*SUMIFS(tbl_twdbdata[effsave],tbl_twdbdata[Year],2020,tbl_twdbdata[utility],tbl_twdbdata[[#This Row],[utility]]))","v":127216723.59999999},8955,0,682,0,837504984,0,124218556,0,null,null,{"$f":"tbl_twdbdata[[#This Row],[utility]]&tbl_twdbdata[[#This Row],[Year]]","v":"ZAPATA COUNTY2070"}]
[null,3053,"ZAVALA COUNTY WCID 1","L",2016,1400,1400,0,{"$f":"IF(tbl_twdbdata[[#This Row],[Year]]=2016,0,tbl_twdbdata[[#This Row],[effsave]]-0.6*SUMIFS(tbl_twdbdata[effsave],tbl_twdbdata[Year],2020,tbl_twdbdata[utility],tbl_twdbdata[[#This Row],[utility]]))","v":0},568,3,57,0,54280900,316000,13694100,0,null,null,{"$f":"tbl_twdbdata[[#This Row],[utility]]&tbl_twdbdata[[#This Row],[Year]]","v":"ZAVALA COUNTY WCID 12016"}]
[null,3053,"ZAVALA COUNTY WCID 1","L",2020,1400,1683,6382525,{"$f":"IF(tbl_twdbdata[[#This Row],[Year]]=2016,0,tbl_twdbdata[[#This Row],[effsave]]-0.6*SUMIFS(tbl_twdbdata[effsave],tbl_twdbdata[Year],2020,tbl_twdbdata[utility],tbl_twdbdata[[#This Row],[utility]]))","v":2553010},683,4,69,0,65253396,379877,16462264,0,null,null,{"$f":"tbl_twdbdata[[#This Row],[utility]]&tbl_twdbdata[[#This Row],[Year]]","v":"ZAVALA COUNTY WCID 12020"}]
[null,3053,"ZAVALA COUNTY WCID 1","L",2030,1400,1883,10275060,{"$f":"IF(tbl_twdbdata[[#This Row],[Year]]=2016,0,tbl_twdbdata[[#This Row],[effsave]]-0.6*SUMIFS(tbl_twdbdata[effsave],tbl_twdbdata[Year],2020,tbl_twdbdata[utility],tbl_twdbdata[[#This Row],[utility]]))","v":6445545},764,4,77,0,73007810,425020,18418564,0,null,null,{"$f":"tbl_twdbdata[[#This Row],[utility]]&tbl_twdbdata[[#This Row],[Year]]","v":"ZAVALA COUNTY WCID 12030"}]
[null,3053,"ZAVALA COUNTY WCID 1","L",2040,1400,2062,13600024,{"$f":"IF(tbl_twdbdata[[#This Row],[Year]]=2016,0,tbl_twdbdata[[#This Row],[effsave]]-0.6*SUMIFS(tbl_twdbdata[effsave],tbl_twdbdata[Year],2020,tbl_twdbdata[utility],tbl_twdbdata[[#This Row],[utility]]))","v":9770509},837,4,86,0,79948011,465423,20169453,0,null,null,{"$f":"tbl_twdbdata[[#This Row],[utility]]&tbl_twdbdata[[#This Row],[Year]]","v":"ZAVALA COUNTY WCID 12040"}]
[null,3053,"ZAVALA COUNTY WCID 1","L",2050,1400,2235,15499725,{"$f":"IF(tbl_twdbdata[[#This Row],[Year]]=2016,0,tbl_twdbdata[[#This Row],[effsave]]-0.6*SUMIFS(tbl_twdbdata[effsave],tbl_twdbdata[Year],2020,tbl_twdbdata[utility],tbl_twdbdata[[#This Row],[utility]]))","v":11670210},907,4,96,0,86655579,504472,21861652,0,null,null,{"$f":"tbl_twdbdata[[#This Row],[utility]]&tbl_twdbdata[[#This Row],[Year]]","v":"ZAVALA COUNTY WCID 12050"}]
[null,3053,"ZAVALA COUNTY WCID 1","L",2060,1400,2397,16868168,{"$f":"IF(tbl_twdbdata[[#This Row],[Year]]=2016,0,tbl_twdbdata[[#This Row],[effsave]]-0.6*SUMIFS(tbl_twdbdata[effsave],tbl_twdbdata[Year],2020,tbl_twdbdata[utility],tbl_twdbdata[[#This Row],[utility]]))","v":13038653},973,4,108,0,92936655,541038,23446255,0,null,null,{"$f":"tbl_twdbdata[[#This Row],[utility]]&tbl_twdbdata[[#This Row],[Year]]","v":"ZAVALA COUNTY WCID 12060"}]
[null,3053,"ZAVALA COUNTY WCID 1","L",2070,1400,2546,17981762,{"$f":"IF(tbl_twdbdata[[#This Row],[Year]]=2016,0,tbl_twdbdata[[#This Row],[effsave]]-0.6*SUMIFS(tbl_twdbdata[effsave],tbl_twdbdata[Year],2020,tbl_twdbdata[utility],tbl_twdbdata[[#This Row],[utility]]))","v":14152247},1033,4,120,0,98713694,574669,24903699,0,null,null,{"$f":"tbl_twdbdata[[#This Row],[utility]]&tbl_twdbdata[[#This Row],[Year]]","v":"ZAVALA COUNTY WCID 12070"}]
[null,2656,"ZEPHYR WSC","F",2016,4400,4400,0,{"$f":"IF(tbl_twdbdata[[#This Row],[Year]]=2016,0,tbl_twdbdata[[#This Row],[effsave]]-0.6*SUMIFS(tbl_twdbdata[effsave],tbl_twdbdata[Year],2020,tbl_twdbdata[utility],tbl_twdbdata[[#This Row],[utility]]))","v":0},1469,0,13,0,90211500,0,1890570,0,null,null,{"$f":"tbl_twdbdata[[#This Row],[utility]]&tbl_twdbdata[[#This Row],[Year]]","v":"ZEPHYR WSC2016"}]
[null,2656,"ZEPHYR WSC","F",2020,4400,4212,13175347,{"$f":"IF(tbl_twdbdata[[#This Row],[Year]]=2016,0,tbl_twdbdata[[#This Row],[effsave]]-0.6*SUMIFS(tbl_twdbdata[effsave],tbl_twdbdata[Year],2020,tbl_twdbdata[utility],tbl_twdbdata[[#This Row],[utility]]))","v":5270138.8000000007},1406,0,13,0,86357009,0,1809791,0,null,null,{"$f":"tbl_twdbdata[[#This Row],[utility]]&tbl_twdbdata[[#This Row],[Year]]","v":"ZEPHYR WSC2020"}]
[null,2656,"ZEPHYR WSC","F",2030,4400,4314,17635632,{"$f":"IF(tbl_twdbdata[[#This Row],[Year]]=2016,0,tbl_twdbdata[[#This Row],[effsave]]-0.6*SUMIFS(tbl_twdbdata[effsave],tbl_twdbdata[Year],2020,tbl_twdbdata[utility],tbl_twdbdata[[#This Row],[utility]]))","v":9730423.8000000007},1440,0,13,0,88448276,0,1853618,0,null,null,{"$f":"tbl_twdbdata[[#This Row],[utility]]&tbl_twdbdata[[#This Row],[Year]]","v":"ZEPHYR WSC2030"}]
[null,2656,"ZEPHYR WSC","F",2040,4400,4316,20510927,{"$f":"IF(tbl_twdbdata[[#This Row],[Year]]=2016,0,tbl_twdbdata[[#This Row],[effsave]]-0.6*SUMIFS(tbl_twdbdata[effsave],tbl_twdbdata[Year],2020,tbl_twdbdata[utility],tbl_twdbdata[[#This Row],[utility]]))","v":12605718.800000001},1441,0,13,0,88489281,0,1854478,0,null,null,{"$f":"tbl_twdbdata[[#This Row],[utility]]&tbl_twdbdata[[#This Row],[Year]]","v":"ZEPHYR WSC2040"}]
[null,2656,"ZEPHYR WSC","F",2050,4400,4317,22170169,{"$f":"IF(tbl_twdbdata[[#This Row],[Year]]=2016,0,tbl_twdbdata[[#This Row],[effsave]]-0.6*SUMIFS(tbl_twdbdata[effsave],tbl_twdbdata[Year],2020,tbl_twdbdata[utility],tbl_twdbdata[[#This Row],[utility]]))","v":14264960.800000001},1441,0,13,0,88509784,0,1854908,0,null,null,{"$f":"tbl_twdbdata[[#This Row],[utility]]&tbl_twdbdata[[#This Row],[Year]]","v":"ZEPHYR WSC2050"}]
[null,2656,"ZEPHYR WSC","F",2060,4400,4319,22621842,{"$f":"IF(tbl_twdbdata[[#This Row],[Year]]=2016,0,tbl_twdbdata[[#This Row],[effsave]]-0.6*SUMIFS(tbl_twdbdata[effsave],tbl_twdbdata[Year],2020,tbl_twdbdata[utility],tbl_twdbdata[[#This Row],[utility]]))","v":14716633.800000001},1442,0,13,0,88550789,0,1855768,0,null,null,{"$f":"tbl_twdbdata[[#This Row],[utility]]&tbl_twdbdata[[#This Row],[Year]]","v":"ZEPHYR WSC2060"}]
[null,2656,"ZEPHYR WSC","F",2070,4400,4321,22663861,{"$f":"IF(tbl_twdbdata[[#This Row],[Year]]=2016,0,tbl_twdbdata[[#This Row],[effsave]]-0.6*SUMIFS(tbl_twdbdata[effsave],tbl_twdbdata[Year],2020,tbl_twdbdata[utility],tbl_twdbdata[[#This Row],[utility]]))","v":14758652.800000001},1443,0,13,0,88591794,0,1856628,0,null,null,{"$f":"tbl_twdbdata[[#This Row],[utility]]&tbl_twdbdata[[#This Row],[Year]]","v":"ZEPHYR WSC2070"}]

{"sheet":"Lists & Settings","index":10,"n_rows":464,"n_cols":20,"rows_kept":464,"cut":false,"hidden":false,"merged":[]}
["Municipal User Group",null,null,"Baseline Projection Selection",null,null,null,"Customer Classes",null,null,"Discount Rate",null,"Saved Scenario",null,"Loaded Scenario",null,"Plan Projection Volume Units",null,null,"Single-Year Calculator Volume Units"]
["UNLISTED",null,null,1,null,null,null,"SF",null,null,3.5000000000000003E-2,null,null,null,"Empty",null,{"$f":"IF(volunit_selected=\"kGal\",1,IF(volunit_selected=\"Gal\",2,3))","v":1},null,null,{"$f":"IF(singleyearcalcunit_selected=\"kGal\",1,IF(singleyearcalcunit_selected=\"Gal\",2,3))","v":1}]
["ABILENE",null,null,null,null,null,null,"MF"]
["ACTON MUD",null,null,"Baseline Projection Selection List",null,null,null,"ICI"]
["ADDISON",null,null,"Use TWDB Projection"]
["AFTON GROVE WSC",null,null,"Customize TWDB Projection"]
["ALAMO",null,null,"Enter My Own Projection"]
["ALBANY"]
["ALEDO"]
["ALICE"]
["ALLEN"]
["ALVIN",null,null,"Fixture Saturation Rate Selection",null,null,null,"Fixture Saturation Selection List"]
["AMARILLO",null,null,1,null,null,null,"Use Default Saturation Rates"]
["ANDREWS",null,null,null,null,null,null,"Use My Own Saturation Rates"]
["ANGLETON",null,null,"Fixture Ownership Rate Selection",null,null,null,"Fixture Ownership Rate Selection List"]
["ANTHONY",null,null,1,null,null,null,"Use Default Ownership Rates"]
["ANTON",null,null,null,null,null,null,"Use My Own Ownership Rates"]
["AQUA WSC",null,null,"Conservation Plan Chart Selection"]
["ARANSAS PASS",null,null,3]
["ARLINGTON",null,null,"Conservation Plan Chart List"]
["ATASCOSA RURAL WSC",null,null,"Total Production"]
["ATHENS",null,null,"Total GPCD"]
["AUSTIN",null,null,"Residential GPCD"]
["AZLE"]
["BALCH SPRINGS"]
["BALLINGER"]
["BANDERA COUNTY FWSD 1"]
["BASTROP"]
["BASTROP COUNTY WCID 2"]
["BAY CITY"]
["BAYLOR SUD"]
["BAYTOWN"]
["BEAUMONT"]
["BEDFORD"]
["BEEVILLE"]
["BELL COUNTY WCID 2"]
["BELL MILAM FALLS WSC"]
["BELLAIRE"]
["BELLMEAD"]
["BELTON"]
["BENBROOK WATER AUTHORITY"]
["BENTON CITY WSC"]
["BETHESDA WSC"]
["BIG SPRING"]
["BIROME WSC"]
["BISTONE MUNICIPAL WATER SUPPLY DISTRICT"]
["BLOSSOM"]
["BOERNE"]
["BOGATA"]
["BOIS D ARC MUD"]
["BOLIVAR PENINSULA SUD"]
["BONHAM"]
["BORGER"]
["BOWIE"]
["BRECKENRIDGE"]
["BRENHAM"]
["BRIDGE CITY"]
["BRIGHT STAR SALEM SUD"]
["BROOKESMITH SUD"]
["BROWNFIELD"]
["BROWNSVILLE"]
["BROWNWOOD"]
["BRUSHY CREEK WSC"]
["BRYAN"]
["BUENA VISTA-BETHEL SUD"]
["BUFFALO"]
["BURKBURNETT"]
["BURLESON"]
["BURNET"]
["CAMERON"]
["CAMP WOOD"]
["CANEY CREEK MUD OF MATAGORDA COUNTY"]
["CANTON"]
["CANYON"]
["CANYON LAKE WATER SERVICE"]
["CARROLLTON"]
["CARTHAGE"]
["CASH SUD"]
["CASTROVILLE"]
["CEDAR HILL"]
["CEDAR PARK"]
["CELINA"]
["CENTER"]
["CENTRAL BOWIE COUNTY WSC"]
["CISCO"]
["CLEAR BROOK CITY MUD"]
["CLEAR LAKE CITY WATER AUTHORITY"]
["CLEBURNE"]
["CLEVELAND"]
["CLIFTON"]
["CLUTE"]
["CLYDE"]
["COCKRELL HILL"]
["COLEMAN"]
["COLLEGE STATION"]
["COLLEYVILLE"]
["COMANCHE"]
["COMMERCE"]
["CONROE"]
["CONVERSE"]
["COOPER"]
["COPEVILLE SUD"]
["COPPELL"]
["COPPERAS COVE"]
["CORINTH"]
["CORPUS CHRISTI"]
["CORSICANA"]
["COTULLA"]
["CROSBY MUD"]
["CROWLEY"]
["CRYSTAL CLEAR WSC"]
["CUMBY"]
["CUSHING"]
["CYPRESS SPRINGS SUD"]
["DALHART"]
["DALLAS"]
["DAYTON"]
["DE LEON"]
["DEL RIO UTILITIES COMMISSION"]
["DENISON"]
["DENTON"]
["DENTON COUNTY FWSD 1-A"]
["DESOTO"]
["DONNA"]
["DUMAS"]
["DUNCANVILLE"]
["EAGLE PASS"]
["EARLY"]
["EAST CEDAR CREEK FWSD"]
["EAST CENTRAL SUD"]
["EAST FORK SUD"]
["EAST RIO HONDO WSC"]
["EAST TAWAKONI"]
["EASTLAND"]
["EDCOUCH"]
["EDEN"]
["EDGEWOOD"]
["EDINBURG"]
["EL CAMPO"]
["EL PASO COUNTY TORNILLO WID"]
["EL PASO WATER UTILITIES PUBLIC SERVICE BOARD"]
["ELDORADO"]
["EMORY"]
["ENNIS"]
["EULESS"]
["FAIRVIEW"]
["FARMERS BRANCH"]
["FLATONIA"]
["FLOWER MOUND"]
["FOREST HILL"]
["FORNEY"]
["FORT BEND COUNTY FWSD 1"]
["FORT BEND COUNTY MUD 23"]
["FORT BEND COUNTY MUD 25"]
["FORT BEND COUNTY MUD 26"]
["FORT BEND COUNTY MUD 42"]
["FORT BEND COUNTY MUD 49"]
["FORT STOCKTON"]
["FORT WORTH"]
["FREDERICKSBURG"]
["FRIENDSWOOD"]
["FRISCO"]
["G M WSC"]
["GAINESVILLE"]
["GALENA PARK"]
["GALVESTON"]
["GALVESTON COUNTY WCID 1"]
["GEORGETOWN"]
["GLADEWATER"]
["GLEN ROSE"]
["GOFORTH SUD"]
["GOLDEN WSC"]
["GOLDTHWAITE"]
["GONZALES"]
["GRAHAM"]
["GRANBURY"]
["GRAND PRAIRIE"]
["GRAPEVINE"]
["GREEN VALLEY SUD"]
["GREENVILLE"]
["GROESBECK"]
["GROVES"]
["GROVETON"]
["HALTOM CITY"]
["HARKER HEIGHTS"]
["HARLINGEN"]
["HARRIS COUNTY MUD 148"]
["HARRIS COUNTY MUD 46"]
["HARRIS COUNTY MUD 50"]
["HARRIS COUNTY MUD 55"]
["HARRIS COUNTY WCID 70"]
["HARRIS COUNTY WCID 89"]
["HENDERSON"]
["HENRIETTA"]
["HEWITT"]
["HICO"]
["HIDALGO"]
["HIDALGO COUNTY MUD 1"]
["HIGHLAND PARK"]
["HIGHLAND VILLAGE"]
["HONEY GROVE"]
["HORIZON REGIONAL MUD"]
["HORSESHOE BAY"]
["HOUSTON"]
["HUBBARD"]
["HUMBLE"]
["HUNTSVILLE"]
["HURST"]
["HUTTO"]
["IRAAN"]
["IRVING"]
["JACKSBORO"]
["JACKSONVILLE"]
["JASPER"]
["JASPER COUNTY WCID 1"]
["JERSEY VILLAGE"]
["JOHNSON CITY"]
["JONAH WATER SUD"]
["JUNCTION"]
["KARNES CITY"]
["KATY"]
["KELLER"]
["KEMPNER WSC"]
["KERMIT"]
["KERRVILLE"]
["KILGORE"]
["KILLEEN"]
["KINGSVILLE"]
["KIRBYVILLE"]
["KRUM"]
["KYLE"]
["LA FERIA"]
["LA GRULLA"]
["LA JOYA"]
["LA MARQUE"]
["LA PORTE"]
["LAGUNA MADRE WATER DISTRICT"]
["LAKE CITIES MUNICIPAL UTILITY AUTHORITY"]
["LAKE JACKSON"]
["LAKE KIOWA SUD"]
["LAKE LIVINGSTON WSC"]
["LAKE PALO PINTO AREA WSC"]
["LAKEWAY MUD"]
["LAMAR COUNTY WSD"]
["LAMESA"]
["LAMPASAS"]
["LANCASTER"]
["LAREDO"]
["LEAGUE CITY"]
["LEAKEY"]
["LEANDER"]
["LEE COUNTY WSC"]
["LEVELLAND"]
["LEWISVILLE"]
["LIBERTY"]
["LITTLE ELM"]
["LITTLEFIELD"]
["LIVINGSTON"]
["LLANO"]
["LOCKHART"]
["LONGVIEW"]
["LORENA"]
["LOS FRESNOS"]
["LUBBOCK"]
["LUFKIN"]
["LUMBERTON MUD"]
["MABANK"]
["MACBEE SUD"]
["MANSFIELD"]
["MANVILLE WSC"]
["MARBLE FALLS"]
["MARFA"]
["MARLIN"]
["MARSHALL"]
["MARTINDALE WSC"]
["MCALLEN"]
["MCCOY WSC"]
["MCKINNEY"]
["MEADOWCREEK MUD"]
["MEMORIAL VILLAGES WATER AUTHORITY"]
["MENARD"]
["MERCEDES"]
["MERIDIAN"]
["MERKEL"]
["MESQUITE"]
["MEXIA"]
["MIDLOTHIAN"]
["MILITARY HIGHWAY WSC"]
["MILLERSVIEW-DOOLE WSC"]
["MINERAL WELLS"]
["MISSION"]
["MOFFAT WSC"]
["MONTGOMERY COUNTY MUD 9"]
["MONTGOMERY COUNTY UD 3"]
["MOUNT PLEASANT"]
["MOUNT VERNON"]
["MOUNTAIN PEAK SUD"]
["MSEC ENTERPRISES"]
["MURPHY"]
["MUSTANG SUD"]
["NACOGDOCHES"]
["NASSAU BAY"]
["NEDERLAND"]
["NEW BRAUNFELS"]
["NEW CANEY MUD"]
["NORTH ALAMO WSC"]
["NORTH AUSTIN MUD 1"]
["NORTH FOREST MUD"]
["NORTH KAUFMAN WSC"]
["NORTH RICHLAND HILLS"]
["NORTH SAN SABA WSC"]
["NORTHTOWN MUD"]
["NUECES COUNTY WCID 3"]
["NUECES COUNTY WCID 4"]
["OAK RIDGE NORTH"]
["ODESSA"]
["OLMITO WSC"]
["OLNEY"]
["ORANGE"]
["ORANGE COUNTY WCID 1"]
["PADUCAH"]
["PALESTINE"]
["PALMER PLANTATION MUD 1"]
["PALMER PLANTATION MUD 2"]
["PAMPA MUNICIPAL WATER SYSTEM"]
["PARIS"]
["PARKER COUNTY SUD"]
["PASADENA"]
["PEARLAND"]
["PECAN GROVE MUD 1"]
["PECOS"]
["PERRYTON MUNICIPAL WATER SYSTEM"]
["PFLUGERVILLE"]
["PHARR"]
["PLAINVIEW"]
["PLANO"]
["PLEASANT SPRINGS WSC"]
["PLEASANTON"]
["PORT ARTHUR"]
["PORT LAVACA"]
["PORT NECHES"]
["PORT OCONNOR MUD"]
["PORTER SUD"]
["PORTLAND"]
["POSSUM KINGDOM WSC"]
["QUAIL VALLEY UD"]
["RAYBURN COUNTRY MUD"]
["RAYFORD ROAD MUD"]
["RAYMONDVILLE"]
["RED RIVER COUNTY WSC"]
["RICHARDSON"]
["RICHLAND SUD"]
["RICHMOND"]
["RIO GRANDE CITY"]
["RIO HONDO"]
["RIVERSIDE WSC"]
["ROBERT LEE"]
["ROBINSON"]
["ROCKETT SUD"]
["ROCKPORT"]
["ROCKWALL"]
["ROMA"]
["ROSCOE"]
["ROSENBERG"]
["ROUND ROCK"]
["ROWLETT"]
["ROYSE CITY"]
["S S WSC"]
["SABINAL"]
["SACHSE"]
["SAGINAW"]
["SALADO WSC"]
["SAN ANGELO"]
["SAN ANTONIO WATER SYSTEM"]
["SAN AUGUSTINE"]
["SAN BENITO"]
["SAN JUAN"]
["SAN MARCOS"]
["SARDIS LONE ELM WSC"]
["SCHERTZ"]
["SEABROOK"]
["SEAGOVILLE"]
["SEAGRAVES"]
["SEGUIN"]
["SEIS LAGOS UD"]
["SEMINOLE"]
["SEQUOIA IMPROVEMENT DISTRICT"]
["SHALLOWATER"]
["SHARYLAND WSC"]
["SHERMAN"]
["SMITH COUNTY MUD 1"]
["SNYDER"]
["SOMERVELL COUNTY WATER DISTRICT"]
["SONORA"]
["SOUTH HOUSTON"]
["SOUTHERN MONTGOMERY COUNTY MUD"]
["SOUTHERN UTILITIES"]
["SOUTHLAKE"]
["SPRING CREEK UD"]
["SPRINGS HILL WSC"]
["SPRINGTOWN"]
["STAMFORD"]
["STEPHENS REGIONAL SUD"]
["STEPHENVILLE"]
["STRAWN"]
["SULPHUR SPRINGS"]
["SUNBELT FWSD"]
["SURFSIDE BEACH"]
["SWEETWATER"]
["TAFT"]
["TAYLOR"]
["TEMPLE"]
["TERRELL"]
["TEXARKANA"]
["TEXAS CITY"]
["THE BITTER CREEK WSC"]
["THE COLONY"]
["THREE RIVERS"]
["THUNDERBIRD UD"]
["TIOGA"]
["TOM BEAN"]
["TOMBALL"]
["TRAVIS COUNTY MUD 10"]
["TRAVIS COUNTY WCID 17"]
["TRI SUD"]
["TRINITY RURAL WSC"]
["TYLER"]
["TYLER COUNTY WSC"]
["UNION WSC"]
["UNIVERSAL CITY"]
["UNIVERSITY PARK"]
["UVALDE"]
["VAN ALSTYNE"]
["VERNON"]
["VICTORIA"]
["VICTORIA COUNTY WCID 1"]
["WACO"]
["WALNUT CREEK SUD"]
["WATAUGA"]
["WAXAHACHIE"]
["WEATHERFORD"]
["WELLBORN SUD"]
["WELLS BRANCH MUD"]
["WESLACO"]
["WEST CEDAR CREEK MUD"]
["WEST TRAVIS COUNTY PUBLIC UTILITY AGENCY"]
["WEST UNIVERSITY PLACE"]
["WESTWOOD SHORES MUD"]
["WHARTON"]
["WHITEWRIGHT"]
["WICHITA FALLS"]
["WILLIS"]
["WILLOW PARK"]
["WINDERMERE UTILITY"]
["WINNSBORO"]
["WINTERS"]
["WOLFE CITY"]
["WOODWAY"]
["WORTHAM"]
["WYLIE"]
["YOAKUM"]
["ZAPATA COUNTY"]
["ZAVALA COUNTY WCID 1"]
["ZEPHYR WSC"]

{"sheet":"Scenarios","index":11,"n_rows":1665,"n_cols":2,"rows_kept":1665,"cut":false,"hidden":false,"merged":[]}
["worksheet","address"]
["2. Conservation Measures","$D$23"]
["2. Conservation Measures","$D$24"]
["2. Conservation Measures","$D$25"]
["2. Conservation Measures","$D$26"]
["2. Conservation Measures","$D$27"]
["2. Conservation Measures","$D$28"]
["2. Conservation Measures","$D$29"]
["2. Conservation Measures","$D$30"]
["2. Conservation Measures","$D$31"]
["2. Conservation Measures","$D$32"]
["2. Conservation Measures","$D$33"]
["2. Conservation Measures","$Q$23"]
["2. Conservation Measures","$Q$24"]
["2. Conservation Measures","$Q$25"]
["2. Conservation Measures","$Q$26"]
["2. Conservation Measures","$Q$27"]
["2. Conservation Measures","$Q$28"]
["2. Conservation Measures","$Q$29"]
["2. Conservation Measures","$Q$30"]
["2. Conservation Measures","$Q$31"]
["2. Conservation Measures","$Q$32"]
["2. Conservation Measures","$Q$33"]
["2. Conservation Measures","$F$23"]
["2. Conservation Measures","$G$23"]
["2. Conservation Measures","$H$23"]
["2. Conservation Measures","$I$23"]
["2. Conservation Measures","$J$23"]
["2. Conservation Measures","$F$24"]
["2. Conservation Measures","$G$24"]
["2. Conservation Measures","$H$24"]
["2. Conservation Measures","$I$24"]
["2. Conservation Measures","$J$24"]
["2. Conservation Measures","$F$25"]
["2. Conservation Measures","$G$25"]
["2. Conservation Measures","$H$25"]
["2. Conservation Measures","$I$25"]
["2. Conservation Measures","$J$25"]
["2. Conservation Measures","$F$26"]
["2. Conservation Measures","$G$26"]
["2. Conservation Measures","$H$26"]
["2. Conservation Measures","$I$26"]
["2. Conservation Measures","$J$26"]
["2. Conservation Measures","$F$27"]
["2. Conservation Measures","$G$27"]
["2. Conservation Measures","$H$27"]
["2. Conservation Measures","$I$27"]
["2. Conservation Measures","$J$27"]
["2. Conservation Measures","$F$28"]
["2. Conservation Measures","$G$28"]
["2. Conservation Measures","$H$28"]
["2. Conservation Measures","$I$28"]
["2. Conservation Measures","$J$28"]
["2. Conservation Measures","$F$29"]
["2. Conservation Measures","$G$29"]
["2. Conservation Measures","$H$29"]
["2. Conservation Measures","$I$29"]
["2. Conservation Measures","$J$29"]
["2. Conservation Measures","$F$30"]
["2. Conservation Measures","$G$30"]
["2. Conservation Measures","$H$30"]
["2. Conservation Measures","$I$30"]
["2. Conservation Measures","$J$30"]
["2. Conservation Measures","$F$31"]
["2. Conservation Measures","$G$31"]
["2. Conservation Measures","$H$31"]
["2. Conservation Measures","$I$31"]
["2. Conservation Measures","$J$31"]
["2. Conservation Measures","$F$32"]
["2. Conservation Measures","$G$32"]
["2. Conservation Measures","$H$32"]
["2. Conservation Measures","$I$32"]
["2. Conservation Measures","$J$32"]
["2. Conservation Measures","$F$33"]
["2. Conservation Measures","$G$33"]
["2. Conservation Measures","$H$33"]
["2. Conservation Measures","$I$33"]
["2. Conservation Measures","$J$33"]
["2. Conservation Measures","$D$36"]
["2. Conservation Measures","$D$37"]
["2. Conservation Measures","$D$38"]
["2. Conservation Measures","$D$39"]
["2. Conservation Measures","$D$40"]
["2. Conservation Measures","$D$41"]
["2. Conservation Measures","$D$42"]
["2. Conservation Measures","$D$43"]
["2. Conservation Measures","$D$44"]
["2. Conservation Measures","$Q$36"]
["2. Conservation Measures","$Q$37"]
["2. Conservation Measures","$Q$38"]
["2. Conservation Measures","$Q$39"]
["2. Conservation Measures","$Q$40"]
["2. Conservation Measures","$Q$41"]
["2. Conservation Measures","$Q$42"]
["2. Conservation Measures","$Q$43"]
["2. Conservation Measures","$Q$44"]
["2. Conservation Measures","$F$36"]
["2. Conservation Measures","$G$36"]
["2. Conservation Measures","$H$36"]
["2. Conservation Measures","$I$36"]
["2. Conservation Measures","$J$36"]
["2. Conservation Measures","$F$37"]
["2. Conservation Measures","$G$37"]
["2. Conservation Measures","$H$37"]
["2. Conservation Measures","$I$37"]
["2. Conservation Measures","$J$37"]
["2. Conservation Measures","$F$38"]
["2. Conservation Measures","$G$38"]
["2. Conservation Measures","$H$38"]
["2. Conservation Measures","$I$38"]
["2. Conservation Measures","$J$38"]
["2. Conservation Measures","$F$39"]
["2. Conservation Measures","$G$39"]
["2. Conservation Measures","$H$39"]
["2. Conservation Measures","$I$39"]
["2. Conservation Measures","$J$39"]
["2. Conservation Measures","$F$40"]
["2. Conservation Measures","$G$40"]
["2. Conservation Measures","$H$40"]
["2. Conservation Measures","$I$40"]
["2. Conservation Measures","$J$40"]
["2. Conservation Measures","$F$41"]
["2. Conservation Measures","$G$41"]
["2. Conservation Measures","$H$41"]
["2. Conservation Measures","$I$41"]
["2. Conservation Measures","$J$41"]
["2. Conservation Measures","$F$42"]
["2. Conservation Measures","$G$42"]
["2. Conservation Measures","$H$42"]
["2. Conservation Measures","$I$42"]
["2. Conservation Measures","$J$42"]
["2. Conservation Measures","$F$43"]
["2. Conservation Measures","$G$43"]
["2. Conservation Measures","$H$43"]
["2. Conservation Measures","$I$43"]
["2. Conservation Measures","$J$43"]
["2. Conservation Measures","$F$44"]
["2. Conservation Measures","$G$44"]
["2. Conservation Measures","$H$44"]
["2. Conservation Measures","$I$44"]
["2. Conservation Measures","$J$44"]
["2. Conservation Measures","$D$47"]
["2. Conservation Measures","$D$48"]
["2. Conservation Measures","$D$49"]
["2. Conservation Measures","$D$50"]
["2. Conservation Measures","$D$51"]
["2. Conservation Measures","$D$52"]
["2. Conservation Measures","$D$53"]
["2. Conservation Measures","$D$54"]
["2. Conservation Measures","$D$55"]
["2. Conservation Measures","$D$56"]
["2. Conservation Measures","$D$57"]
["2. Conservation Measures","$D$58"]
["2. Conservation Measures","$Q$47"]
["2. Conservation Measures","$Q$48"]
["2. Conservation Measures","$Q$49"]
["2. Conservation Measures","$Q$50"]
["2. Conservation Measures","$Q$51"]
["2. Conservation Measures","$Q$52"]
["2. Conservation Measures","$Q$53"]
["2. Conservation Measures","$Q$54"]
["2. Conservation Measures","$Q$55"]
["2. Conservation Measures","$Q$56"]
["2. Conservation Measures","$Q$57"]
["2. Conservation Measures","$Q$58"]
["2. Conservation Measures","$F$47"]
["2. Conservation Measures","$G$47"]
["2. Conservation Measures","$H$47"]
["2. Conservation Measures","$I$47"]
["2. Conservation Measures","$J$47"]
["2. Conservation Measures","$F$48"]
["2. Conservation Measures","$G$48"]
["2. Conservation Measures","$H$48"]
["2. Conservation Measures","$I$48"]
["2. Conservation Measures","$J$48"]
["2. Conservation Measures","$F$49"]
["2. Conservation Measures","$G$49"]
["2. Conservation Measures","$H$49"]
["2. Conservation Measures","$I$49"]
["2. Conservation Measures","$J$49"]
["2. Conservation Measures","$F$50"]
["2. Conservation Measures","$G$50"]
["2. Conservation Measures","$H$50"]
["2. Conservation Measures","$I$50"]
["2. Conservation Measures","$J$50"]
["2. Conservation Measures","$F$51"]
["2. Conservation Measures","$G$51"]
["2. Conservation Measures","$H$51"]
["2. Conservation Measures","$I$51"]
["2. Conservation Measures","$J$51"]
["2. Conservation Measures","$F$52"]
["2. Conservation Measures","$G$52"]
["2. Conservation Measures","$H$52"]
["2. Conservation Measures","$I$52"]
["2. Conservation Measures","$J$52"]
["2. Conservation Measures","$F$53"]
["2. Conservation Measures","$G$53"]
["2. Conservation Measures","$H$53"]
["2. Conservation Measures","$I$53"]
["2. Conservation Measures","$J$53"]
["2. Conservation Measures","$F$54"]
["2. Conservation Measures","$G$54"]
["2. Conservation Measures","$H$54"]
["2. Conservation Measures","$I$54"]
["2. Conservation Measures","$J$54"]
["2. Conservation Measures","$F$55"]
["2. Conservation Measures","$G$55"]
["2. Conservation Measures","$H$55"]
["2. Conservation Measures","$I$55"]
["2. Conservation Measures","$J$55"]
["2. Conservation Measures","$F$56"]
["2. Conservation Measures","$G$56"]
["2. Conservation Measures","$H$56"]
["2. Conservation Measures","$I$56"]
["2. Conservation Measures","$J$56"]
["2. Conservation Measures","$F$57"]
["2. Conservation Measures","$G$57"]
["2. Conservation Measures","$H$57"]
["2. Conservation Measures","$I$57"]
["2. Conservation Measures","$J$57"]
["2. Conservation Measures","$F$58"]
["2. Conservation Measures","$G$58"]
["2. Conservation Measures","$H$58"]
["2. Conservation Measures","$I$58"]
["2. Conservation Measures","$J$58"]
["2. Conservation Measures","$C$64"]
["2. Conservation Measures","$D$64"]
["2. Conservation Measures","$C$65"]
["2. Conservation Measures","$D$65"]
["2. Conservation Measures","$C$66"]
["2. Conservation Measures","$D$66"]
["2. Conservation Measures","$C$67"]
["2. Conservation Measures","$D$67"]
["2. Conservation Measures","$C$68"]
["2. Conservation Measures","$D$68"]
["2. Conservation Measures","$C$69"]
["2. Conservation Measures","$D$69"]
["2. Conservation Measures","$C$70"]
["2. Conservation Measures","$D$70"]
["2. Conservation Measures","$C$71"]
["2. Conservation Measures","$D$71"]
["2. Conservation Measures","$C$72"]
["2. Conservation Measures","$D$72"]
["2. Conservation Measures","$C$73"]
["2. Conservation Measures","$D$73"]
["2. Conservation Measures","$C$74"]
["2. Conservation Measures","$D$74"]
["2. Conservation Measures","$C$75"]
["2. Conservation Measures","$D$75"]
["2. Conservation Measures","$C$76"]
["2. Conservation Measures","$D$76"]
["2. Conservation Measures","$C$77"]
["2. Conservation Measures","$D$77"]
["2. Conservation Measures","$C$78"]
["2. Conservation Measures","$D$78"]
["2. Conservation Measures","$C$79"]
["2. Conservation Measures","$D$79"]
["2. Conservation Measures","$C$80"]
["2. Conservation Measures","$D$80"]
["2. Conservation Measures","$C$81"]
["2. Conservation Measures","$D$81"]
["2. Conservation Measures","$C$82"]
["2. Conservation Measures","$D$82"]
["2. Conservation Measures","$C$83"]
["2. Conservation Measures","$D$83"]
["2. Conservation Measures","$L$64"]
["2. Conservation Measures","$M$64"]
["2. Conservation Measures","$L$65"]
["2. Conservation Measures","$M$65"]
["2. Conservation Measures","$L$66"]
["2. Conservation Measures","$M$66"]
["2. Conservation Measures","$L$67"]
["2. Conservation Measures","$M$67"]
["2. Conservation Measures","$L$68"]
["2. Conservation Measures","$M$68"]
["2. Conservation Measures","$L$69"]
["2. Conservation Measures","$M$69"]
["2. Conservation Measures","$L$70"]
["2. Conservation Measures","$M$70"]
["2. Conservation Measures","$L$71"]
["2. Conservation Measures","$M$71"]
["2. Conservation Measures","$L$72"]
["2. Conservation Measures","$M$72"]
["2. Conservation Measures","$L$73"]
["2. Conservation Measures","$M$73"]
["2. Conservation Measures","$L$74"]
["2. Conservation Measures","$M$74"]
["2. Conservation Measures","$L$75"]
["2. Conservation Measures","$M$75"]
["2. Conservation Measures","$L$76"]
["2. Conservation Measures","$M$76"]
["2. Conservation Measures","$L$77"]
["2. Conservation Measures","$M$77"]
["2. Conservation Measures","$L$78"]
["2. Conservation Measures","$M$78"]
["2. Conservation Measures","$L$79"]
["2. Conservation Measures","$M$79"]
["2. Conservation Measures","$L$80"]
["2. Conservation Measures","$M$80"]
["2. Conservation Measures","$L$81"]
["2. Conservation Measures","$M$81"]
["2. Conservation Measures","$L$82"]
["2. Conservation Measures","$M$82"]
["2. Conservation Measures","$L$83"]
["2. Conservation Measures","$M$83"]
["2. Conservation Measures","$O$64"]
["2. Conservation Measures","$P$64"]
["2. Conservation Measures","$O$65"]
["2. Conservation Measures","$P$65"]
["2. Conservation Measures","$O$66"]
["2. Conservation Measures","$P$66"]
["2. Conservation Measures","$O$67"]
["2. Conservation Measures","$P$67"]
["2. Conservation Measures","$O$68"]
["2. Conservation Measures","$P$68"]
["2. Conservation Measures","$O$69"]
["2. Conservation Measures","$P$69"]
["2. Conservation Measures","$O$70"]
["2. Conservation Measures","$P$70"]
["2. Conservation Measures","$O$71"]
["2. Conservation Measures","$P$71"]
["2. Conservation Measures","$O$72"]
["2. Conservation Measures","$P$72"]
["2. Conservation Measures","$O$73"]
["2. Conservation Measures","$P$73"]
["2. Conservation Measures","$O$74"]
["2. Conservation Measures","$P$74"]
["2. Conservation Measures","$O$75"]
["2. Conservation Measures","$P$75"]
["2. Conservation Measures","$O$76"]
["2. Conservation Measures","$P$76"]
["2. Conservation Measures","$O$77"]
["2. Conservation Measures","$P$77"]
["2. Conservation Measures","$O$78"]
["2. Conservation Measures","$P$78"]
["2. Conservation Measures","$O$79"]
["2. Conservation Measures","$P$79"]
["2. Conservation Measures","$O$80"]
["2. Conservation Measures","$P$80"]
["2. Conservation Measures","$O$81"]
["2. Conservation Measures","$P$81"]
["2. Conservation Measures","$O$82"]
["2. Conservation Measures","$P$82"]
["2. Conservation Measures","$O$83"]
["2. Conservation Measures","$P$83"]
["2. Conservation Measures","$S$64"]
["2. Conservation Measures","$T$64"]
["2. Conservation Measures","$U$64"]
["2. Conservation Measures","$V$64"]
["2. Conservation Measures","$W$64"]
["2. Conservation Measures","$X$64"]
["2. Conservation Measures","$S$65"]
["2. Conservation Measures","$T$65"]
["2. Conservation Measures","$U$65"]
["2. Conservation Measures","$V$65"]
["2. Conservation Measures","$W$65"]
["2. Conservation Measures","$X$65"]
["2. Conservation Measures","$S$66"]
["2. Conservation Measures","$T$66"]
["2. Conservation Measures","$U$66"]
["2. Conservation Measures","$V$66"]
["2. Conservation Measures","$W$66"]
["2. Conservation Measures","$X$66"]
["2. Conservation Measures","$S$67"]
["2. Conservation Measures","$T$67"]
["2. Conservation Measures","$U$67"]
["2. Conservation Measures","$V$67"]
["2. Conservation Measures","$W$67"]
["2. Conservation Measures","$X$67"]
["2. Conservation Measures","$S$68"]
["2. Conservation Measures","$T$68"]
["2. Conservation Measures","$U$68"]
["2. Conservation Measures","$V$68"]
["2. Conservation Measures","$W$68"]
["2. Conservation Measures","$X$68"]
["2. Conservation Measures","$S$69"]
["2. Conservation Measures","$T$69"]
["2. Conservation Measures","$U$69"]
["2. Conservation Measures","$V$69"]
["2. Conservation Measures","$W$69"]
["2. Conservation Measures","$X$69"]
["2. Conservation Measures","$S$70"]
["2. Conservation Measures","$T$70"]
["2. Conservation Measures","$U$70"]
["2. Conservation Measures","$V$70"]
["2. Conservation Measures","$W$70"]
["2. Conservation Measures","$X$70"]
["2. Conservation Measures","$S$71"]
["2. Conservation Measures","$T$71"]
["2. Conservation Measures","$U$71"]
["2. Conservation Measures","$V$71"]
["2. Conservation Measures","$W$71"]
["2. Conservation Measures","$X$71"]
["2. Conservation Measures","$S$72"]
["2. Conservation Measures","$T$72"]
["2. Conservation Measures","$U$72"]
["2. Conservation Measures","$V$72"]
["2. Conservation Measures","$W$72"]
["2. Conservation Measures","$X$72"]
["2. Conservation Measures","$S$73"]
["2. Conservation Measures","$T$73"]
["2. Conservation Measures","$U$73"]
["2. Conservation Measures","$V$73"]
["2. Conservation Measures","$W$73"]
["2. Conservation Measures","$X$73"]
["2. Conservation Measures","$S$74"]
["2. Conservation Measures","$T$74"]
["2. Conservation Measures","$U$74"]
["2. Conservation Measures","$V$74"]
["2. Conservation Measures","$W$74"]
["2. Conservation Measures","$X$74"]
["2. Conservation Measures","$S$75"]
["2. Conservation Measures","$T$75"]
["2. Conservation Measures","$U$75"]
["2. Conservation Measures","$V$75"]
["2. Conservation Measures","$W$75"]
["2. Conservation Measures","$X$75"]
["2. Conservation Measures","$S$76"]
["2. Conservation Measures","$T$76"]
["2. Conservation Measures","$U$76"]
["2. Conservation Measures","$V$76"]
["2. Conservation Measures","$W$76"]
["2. Conservation Measures","$X$76"]
["2. Conservation Measures","$S$77"]
["2. Conservation Measures","$T$77"]
["2. Conservation Measures","$U$77"]
["2. Conservation Measures","$V$77"]
["2. Conservation Measures","$W$77"]
["2. Conservation Measures","$X$77"]
["2. Conservation Measures","$S$78"]
["2. Conservation Measures","$T$78"]
["2. Conservation Measures","$U$78"]
["2. Conservation Measures","$V$78"]
["2. Conservation Measures","$W$78"]
["2. Conservation Measures","$X$78"]
["2. Conservation Measures","$S$79"]
["2. Conservation Measures","$T$79"]
["2. Conservation Measures","$U$79"]
["2. Conservation Measures","$V$79"]
["2. Conservation Measures","$W$79"]
["2. Conservation Measures","$X$79"]
["2. Conservation Measures","$S$80"]
["2. Conservation Measures","$T$80"]
["2. Conservation Measures","$U$80"]
["2. Conservation Measures","$V$80"]
["2. Conservation Measures","$W$80"]
["2. Conservation Measures","$X$80"]
["2. Conservation Measures","$S$81"]
["2. Conservation Measures","$T$81"]
["2. Conservation Measures","$U$81"]
["2. Conservation Measures","$V$81"]
["2. Conservation Measures","$W$81"]
["2. Conservation Measures","$X$81"]
["2. Conservation Measures","$S$82"]
["2. Conservation Measures","$T$82"]
["2. Conservation Measures","$U$82"]
["2. Conservation Measures","$V$82"]
["2. Conservation Measures","$W$82"]
["2. Conservation Measures","$X$82"]
["2. Conservation Measures","$S$83"]
["2. Conservation Measures","$T$83"]
["2. Conservation Measures","$U$83"]
["2. Conservation Measures","$V$83"]
["2. Conservation Measures","$W$83"]
["2. Conservation Measures","$X$83"]
["2. Conservation Measures","$F$64"]
["2. Conservation Measures","$G$64"]
["2. Conservation Measures","$H$64"]
["2. Conservation Measures","$I$64"]
["2. Conservation Measures","$J$64"]
["2. Conservation Measures","$F$65"]
["2. Conservation Measures","$G$65"]
["2. Conservation Measures","$H$65"]
["2. Conservation Measures","$I$65"]
["2. Conservation Measures","$J$65"]
["2. Conservation Measures","$F$66"]
["2. Conservation Measures","$G$66"]
["2. Conservation Measures","$H$66"]
["2. Conservation Measures","$I$66"]
["2. Conservation Measures","$J$66"]
["2. Conservation Measures","$F$67"]
["2. Conservation Measures","$G$67"]
["2. Conservation Measures","$H$67"]
["2. Conservation Measures","$I$67"]
["2. Conservation Measures","$J$67"]
["2. Conservation Measures","$F$68"]
["2. Conservation Measures","$G$68"]
["2. Conservation Measures","$H$68"]
["2. Conservation Measures","$I$68"]
["2. Conservation Measures","$J$68"]
["2. Conservation Measures","$F$69"]
["2. Conservation Measures","$G$69"]
["2. Conservation Measures","$H$69"]
["2. Conservation Measures","$I$69"]
["2. Conservation Measures","$J$69"]
["2. Conservation Measures","$F$70"]
["2. Conservation Measures","$G$70"]
["2. Conservation Measures","$H$70"]
["2. Conservation Measures","$I$70"]
["2. Conservation Measures","$J$70"]
["2. Conservation Measures","$F$71"]
["2. Conservation Measures","$G$71"]
["2. Conservation Measures","$H$71"]
["2. Conservation Measures","$I$71"]
["2. Conservation Measures","$J$71"]
["2. Conservation Measures","$F$72"]
["2. Conservation Measures","$G$72"]
["2. Conservation Measures","$H$72"]
["2. Conservation Measures","$I$72"]
["2. Conservation Measures","$J$72"]
["2. Conservation Measures","$F$73"]
["2. Conservation Measures","$G$73"]
["2. Conservation Measures","$H$73"]
["2. Conservation Measures","$I$73"]
["2. Conservation Measures","$J$73"]
["2. Conservation Measures","$F$74"]
["2. Conservation Measures","$G$74"]
["2. Conservation Measures","$H$74"]
["2. Conservation Measures","$I$74"]
["2. Conservation Measures","$J$74"]
["2. Conservation Measures","$F$75"]
["2. Conservation Measures","$G$75"]
["2. Conservation Measures","$H$75"]
["2. Conservation Measures","$I$75"]
["2. Conservation Measures","$J$75"]
["2. Conservation Measures","$F$76"]
["2. Conservation Measures","$G$76"]
["2. Conservation Measures","$H$76"]
["2. Conservation Measures","$I$76"]
["2. Conservation Measures","$J$76"]
["2. Conservation Measures","$F$77"]
["2. Conservation Measures","$G$77"]
["2. Conservation Measures","$H$77"]
["2. Conservation Measures","$I$77"]
["2. Conservation Measures","$J$77"]
["2. Conservation Measures","$F$78"]
["2. Conservation Measures","$G$78"]
["2. Conservation Measures","$H$78"]
["2. Conservation Measures","$I$78"]
["2. Conservation Measures","$J$78"]
["2. Conservation Measures","$F$79"]
["2. Conservation Measures","$G$79"]
["2. Conservation Measures","$H$79"]
["2. Conservation Measures","$I$79"]
["2. Conservation Measures","$J$79"]
["2. Conservation Measures","$F$80"]
["2. Conservation Measures","$G$80"]
["2. Conservation Measures","$H$80"]
["2. Conservation Measures","$I$80"]
["2. Conservation Measures","$J$80"]
["2. Conservation Measures","$F$81"]
["2. Conservation Measures","$G$81"]
["2. Conservation Measures","$H$81"]
["2. Conservation Measures","$I$81"]
["2. Conservation Measures","$J$81"]
["2. Conservation Measures","$F$82"]
["2. Conservation Measures","$G$82"]
["2. Conservation Measures","$H$82"]
["2. Conservation Measures","$I$82"]
["2. Conservation Measures","$J$82"]
["2. Conservation Measures","$F$83"]
["2. Conservation Measures","$G$83"]
["2. Conservation Measures","$H$83"]
["2. Conservation Measures","$I$83"]
["2. Conservation Measures","$J$83"]
["2. Conservation Measures","$Q$64"]
["2. Conservation Measures","$Q$65"]
["2. Conservation Measures","$Q$66"]
["2. Conservation Measures","$Q$67"]
["2. Conservation Measures","$Q$68"]
["2. Conservation Measures","$Q$69"]
["2. Conservation Measures","$Q$70"]
["2. Conservation Measures","$Q$71"]
["2. Conservation Measures","$Q$72"]
["2. Conservation Measures","$Q$73"]
["2. Conservation Measures","$Q$74"]
["2. Conservation Measures","$Q$75"]
["2. Conservation Measures","$Q$76"]
["2. Conservation Measures","$Q$77"]
["2. Conservation Measures","$Q$78"]
["2. Conservation Measures","$Q$79"]
["2. Conservation Measures","$Q$80"]
["2. Conservation Measures","$Q$81"]
["2. Conservation Measures","$Q$82"]
["2. Conservation Measures","$Q$83"]
["2. Conservation Measures","$C$86"]
["2. Conservation Measures","$D$86"]
["2. Conservation Measures","$C$87"]
["2. Conservation Measures","$D$87"]
["2. Conservation Measures","$C$88"]
["2. Conservation Measures","$D$88"]
["2. Conservation Measures","$C$89"]
["2. Conservation Measures","$D$89"]
["2. Conservation Measures","$C$90"]
["2. Conservation Measures","$D$90"]
["2. Conservation Measures","$C$91"]
["2. Conservation Measures","$D$91"]
["2. Conservation Measures","$C$92"]
["2. Conservation Measures","$D$92"]
["2. Conservation Measures","$C$93"]
["2. Conservation Measures","$D$93"]
["2. Conservation Measures","$C$94"]
["2. Conservation Measures","$D$94"]
["2. Conservation Measures","$C$95"]
["2. Conservation Measures","$D$95"]
["2. Conservation Measures","$C$96"]
["2. Conservation Measures","$D$96"]
["2. Conservation Measures","$C$97"]
["2. Conservation Measures","$D$97"]
["2. Conservation Measures","$C$98"]
["2. Conservation Measures","$D$98"]
["2. Conservation Measures","$C$99"]
["2. Conservation Measures","$D$99"]
["2. Conservation Measures","$C$100"]
["2. Conservation Measures","$D$100"]
["2. Conservation Measures","$C$101"]
["2. Conservation Measures","$D$101"]
["2. Conservation Measures","$C$102"]
["2. Conservation Measures","$D$102"]
["2. Conservation Measures","$C$103"]
["2. Conservation Measures","$D$103"]
["2. Conservation Measures","$C$104"]
["2. Conservation Measures","$D$104"]
["2. Conservation Measures","$C$105"]
["2. Conservation Measures","$D$105"]
["2. Conservation Measures","$L$86"]
["2. Conservation Measures","$M$86"]
["2. Conservation Measures","$L$87"]
["2. Conservation Measures","$M$87"]
["2. Conservation Measures","$L$88"]
["2. Conservation Measures","$M$88"]
["2. Conservation Measures","$L$89"]
["2. Conservation Measures","$M$89"]
["2. Conservation Measures","$L$90"]
["2. Conservation Measures","$M$90"]
["2. Conservation Measures","$L$91"]
["2. Conservation Measures","$M$91"]
["2. Conservation Measures","$L$92"]
["2. Conservation Measures","$M$92"]
["2. Conservation Measures","$L$93"]
["2. Conservation Measures","$M$93"]
["2. Conservation Measures","$L$94"]
["2. Conservation Measures","$M$94"]
["2. Conservation Measures","$L$95"]
["2. Conservation Measures","$M$95"]
["2. Conservation Measures","$L$96"]
["2. Conservation Measures","$M$96"]
["2. Conservation Measures","$L$97"]
["2. Conservation Measures","$M$97"]
["2. Conservation Measures","$L$98"]
["2. Conservation Measures","$M$98"]
["2. Conservation Measures","$L$99"]
["2. Conservation Measures","$M$99"]
["2. Conservation Measures","$L$100"]
["2. Conservation Measures","$M$100"]
["2. Conservation Measures","$L$101"]
["2. Conservation Measures","$M$101"]
["2. Conservation Measures","$L$102"]
["2. Conservation Measures","$M$102"]
["2. Conservation Measures","$L$103"]
["2. Conservation Measures","$M$103"]
["2. Conservation Measures","$L$104"]
["2. Conservation Measures","$M$104"]
["2. Conservation Measures","$L$105"]
["2. Conservation Measures","$M$105"]
["2. Conservation Measures","$O$86"]
["2. Conservation Measures","$P$86"]
["2. Conservation Measures","$O$87"]
["2. Conservation Measures","$P$87"]
["2. Conservation Measures","$O$88"]
["2. Conservation Measures","$P$88"]
["2. Conservation Measures","$O$89"]
["2. Conservation Measures","$P$89"]
["2. Conservation Measures","$O$90"]
["2. Conservation Measures","$P$90"]
["2. Conservation Measures","$O$91"]
["2. Conservation Measures","$P$91"]
["2. Conservation Measures","$O$92"]
["2. Conservation Measures","$P$92"]
["2. Conservation Measures","$O$93"]
["2. Conservation Measures","$P$93"]
["2. Conservation Measures","$O$94"]
["2. Conservation Measures","$P$94"]
["2. Conservation Measures","$O$95"]
["2. Conservation Measures","$P$95"]
["2. Conservation Measures","$O$96"]
["2. Conservation Measures","$P$96"]
["2. Conservation Measures","$O$97"]
["2. Conservation Measures","$P$97"]
["2. Conservation Measures","$O$98"]
["2. Conservation Measures","$P$98"]
["2. Conservation Measures","$O$99"]
["2. Conservation Measures","$P$99"]
["2. Conservation Measures","$O$100"]
["2. Conservation Measures","$P$100"]
["2. Conservation Measures","$O$101"]
["2. Conservation Measures","$P$101"]
["2. Conservation Measures","$O$102"]
["2. Conservation Measures","$P$102"]
["2. Conservation Measures","$O$103"]
["2. Conservation Measures","$P$103"]
["2. Conservation Measures","$O$104"]
["2. Conservation Measures","$P$104"]
["2. Conservation Measures","$O$105"]
["2. Conservation Measures","$P$105"]
["2. Conservation Measures","$S$86"]
["2. Conservation Measures","$T$86"]
["2. Conservation Measures","$U$86"]
["2. Conservation Measures","$V$86"]
["2. Conservation Measures","$W$86"]
["2. Conservation Measures","$X$86"]
["2. Conservation Measures","$S$87"]
["2. Conservation Measures","$T$87"]
["2. Conservation Measures","$U$87"]
["2. Conservation Measures","$V$87"]
["2. Conservation Measures","$W$87"]
["2. Conservation Measures","$X$87"]
["2. Conservation Measures","$S$88"]
["2. Conservation Measures","$T$88"]
["2. Conservation Measures","$U$88"]
["2. Conservation Measures","$V$88"]
["2. Conservation Measures","$W$88"]
["2. Conservation Measures","$X$88"]
["2. Conservation Measures","$S$89"]
["2. Conservation Measures","$T$89"]
["2. Conservation Measures","$U$89"]
["2. Conservation Measures","$V$89"]
["2. Conservation Measures","$W$89"]
["2. Conservation Measures","$X$89"]
["2. Conservation Measures","$S$90"]
["2. Conservation Measures","$T$90"]
["2. Conservation Measures","$U$90"]
["2. Conservation Measures","$V$90"]
["2. Conservation Measures","$W$90"]
["2. Conservation Measures","$X$90"]
["2. Conservation Measures","$S$91"]
["2. Conservation Measures","$T$91"]
["2. Conservation Measures","$U$91"]
["2. Conservation Measures","$V$91"]
["2. Conservation Measures","$W$91"]
["2. Conservation Measures","$X$91"]
["2. Conservation Measures","$S$92"]
["2. Conservation Measures","$T$92"]
["2. Conservation Measures","$U$92"]
["2. Conservation Measures","$V$92"]
["2. Conservation Measures","$W$92"]
["2. Conservation Measures","$X$92"]
["2. Conservation Measures","$S$93"]
["2. Conservation Measures","$T$93"]
["2. Conservation Measures","$U$93"]
["2. Conservation Measures","$V$93"]
["2. Conservation Measures","$W$93"]
["2. Conservation Measures","$X$93"]
["2. Conservation Measures","$S$94"]
["2. Conservation Measures","$T$94"]
["2. Conservation Measures","$U$94"]
["2. Conservation Measures","$V$94"]
["2. Conservation Measures","$W$94"]
["2. Conservation Measures","$X$94"]
["2. Conservation Measures","$S$95"]
["2. Conservation Measures","$T$95"]
["2. Conservation Measures","$U$95"]
["2. Conservation Measures","$V$95"]
["2. Conservation Measures","$W$95"]
["2. Conservation Measures","$X$95"]
["2. Conservation Measures","$S$96"]
["2. Conservation Measures","$T$96"]
["2. Conservation Measures","$U$96"]
["2. Conservation Measures","$V$96"]
["2. Conservation Measures","$W$96"]
["2. Conservation Measures","$X$96"]
["2. Conservation Measures","$S$97"]
["2. Conservation Measures","$T$97"]
["2. Conservation Measures","$U$97"]
["2. Conservation Measures","$V$97"]
["2. Conservation Measures","$W$97"]
["2. Conservation Measures","$X$97"]
["2. Conservation Measures","$S$98"]
["2. Conservation Measures","$T$98"]
["2. Conservation Measures","$U$98"]
["2. Conservation Measures","$V$98"]
["2. Conservation Measures","$W$98"]
["2. Conservation Measures","$X$98"]
["2. Conservation Measures","$S$99"]
["2. Conservation Measures","$T$99"]
["2. Conservation Measures","$U$99"]
["2. Conservation Measures","$V$99"]
["2. Conservation Measures","$W$99"]
["2. Conservation Measures","$X$99"]
["2. Conservation Measures","$S$100"]
["2. Conservation Measures","$T$100"]
["2. Conservation Measures","$U$100"]
["2. Conservation Measures","$V$100"]
["2. Conservation Measures","$W$100"]
["2. Conservation Measures","$X$100"]
["2. Conservation Measures","$S$101"]
["2. Conservation Measures","$T$101"]
["2. Conservation Measures","$U$101"]
["2. Conservation Measures","$V$101"]
["2. Conservation Measures","$W$101"]
["2. Conservation Measures","$X$101"]
["2. Conservation Measures","$S$102"]
["2. Conservation Measures","$T$102"]
["2. Conservation Measures","$U$102"]
["2. Conservation Measures","$V$102"]
["2. Conservation Measures","$W$102"]
["2. Conservation Measures","$X$102"]
["2. Conservation Measures","$S$103"]
["2. Conservation Measures","$T$103"]
["2. Conservation Measures","$U$103"]
["2. Conservation Measures","$V$103"]
["2. Conservation Measures","$W$103"]
["2. Conservation Measures","$X$103"]
["2. Conservation Measures","$S$104"]
["2. Conservation Measures","$T$104"]
["2. Conservation Measures","$U$104"]
["2. Conservation Measures","$V$104"]
["2. Conservation Measures","$W$104"]
["2. Conservation Measures","$X$104"]
["2. Conservation Measures","$S$105"]
["2. Conservation Measures","$T$105"]
["2. Conservation Measures","$U$105"]
["2. Conservation Measures","$V$105"]
["2. Conservation Measures","$W$105"]
["2. Conservation Measures","$X$105"]
["2. Conservation Measures","$F$86"]
["2. Conservation Measures","$G$86"]
["2. Conservation Measures","$H$86"]
["2. Conservation Measures","$I$86"]
["2. Conservation Measures","$J$86"]
["2. Conservation Measures","$F$87"]
["2. Conservation Measures","$G$87"]
["2. Conservation Measures","$H$87"]
["2. Conservation Measures","$I$87"]
["2. Conservation Measures","$J$87"]
["2. Conservation Measures","$F$88"]
["2. Conservation Measures","$G$88"]
["2. Conservation Measures","$H$88"]
["2. Conservation Measures","$I$88"]
["2. Conservation Measures","$J$88"]
["2. Conservation Measures","$F$89"]
["2. Conservation Measures","$G$89"]
["2. Conservation Measures","$H$89"]
["2. Conservation Measures","$I$89"]
["2. Conservation Measures","$J$89"]
["2. Conservation Measures","$F$90"]
["2. Conservation Measures","$G$90"]
["2. Conservation Measures","$H$90"]
["2. Conservation Measures","$I$90"]
["2. Conservation Measures","$J$90"]
["2. Conservation Measures","$F$91"]
["2. Conservation Measures","$G$91"]
["2. Conservation Measures","$H$91"]
["2. Conservation Measures","$I$91"]
["2. Conservation Measures","$J$91"]
["2. Conservation Measures","$F$92"]
["2. Conservation Measures","$G$92"]
["2. Conservation Measures","$H$92"]
["2. Conservation Measures","$I$92"]
["2. Conservation Measures","$J$92"]
["2. Conservation Measures","$F$93"]
["2. Conservation Measures","$G$93"]
["2. Conservation Measures","$H$93"]
["2. Conservation Measures","$I$93"]
["2. Conservation Measures","$J$93"]
["2. Conservation Measures","$F$94"]
["2. Conservation Measures","$G$94"]
["2. Conservation Measures","$H$94"]
["2. Conservation Measures","$I$94"]
["2. Conservation Measures","$J$94"]
["2. Conservation Measures","$F$95"]
["2. Conservation Measures","$G$95"]
["2. Conservation Measures","$H$95"]
["2. Conservation Measures","$I$95"]
["2. Conservation Measures","$J$95"]
["2. Conservation Measures","$F$96"]
["2. Conservation Measures","$G$96"]
["2. Conservation Measures","$H$96"]
["2. Conservation Measures","$I$96"]
["2. Conservation Measures","$J$96"]
["2. Conservation Measures","$F$97"]
["2. Conservation Measures","$G$97"]
["2. Conservation Measures","$H$97"]
["2. Conservation Measures","$I$97"]
["2. Conservation Measures","$J$97"]
["2. Conservation Measures","$F$98"]
["2. Conservation Measures","$G$98"]
["2. Conservation Measures","$H$98"]
["2. Conservation Measures","$I$98"]
["2. Conservation Measures","$J$98"]
["2. Conservation Measures","$F$99"]
["2. Conservation Measures","$G$99"]
["2. Conservation Measures","$H$99"]
["2. Conservation Measures","$I$99"]
["2. Conservation Measures","$J$99"]
["2. Conservation Measures","$F$100"]
["2. Conservation Measures","$G$100"]
["2. Conservation Measures","$H$100"]
["2. Conservation Measures","$I$100"]
["2. Conservation Measures","$J$100"]
["2. Conservation Measures","$F$101"]
["2. Conservation Measures","$G$101"]
["2. Conservation Measures","$H$101"]
["2. Conservation Measures","$I$101"]
["2. Conservation Measures","$J$101"]
["2. Conservation Measures","$F$102"]
["2. Conservation Measures","$G$102"]
["2. Conservation Measures","$H$102"]
["2. Conservation Measures","$I$102"]
["2. Conservation Measures","$J$102"]
["2. Conservation Measures","$F$103"]
["2. Conservation Measures","$G$103"]
["2. Conservation Measures","$H$103"]
["2. Conservation Measures","$I$103"]
["2. Conservation Measures","$J$103"]
["2. Conservation Measures","$F$104"]
["2. Conservation Measures","$G$104"]
["2. Conservation Measures","$H$104"]
["2. Conservation Measures","$I$104"]
["2. Conservation Measures","$J$104"]
["2. Conservation Measures","$F$105"]
["2. Conservation Measures","$G$105"]
["2. Conservation Measures","$H$105"]
["2. Conservation Measures","$I$105"]
["2. Conservation Measures","$J$105"]
["2. Conservation Measures","$Q$86"]
["2. Conservation Measures","$Q$87"]
["2. Conservation Measures","$Q$88"]
["2. Conservation Measures","$Q$89"]
["2. Conservation Measures","$Q$90"]
["2. Conservation Measures","$Q$91"]
["2. Conservation Measures","$Q$92"]
["2. Conservation Measures","$Q$93"]
["2. Conservation Measures","$Q$94"]
["2. Conservation Measures","$Q$95"]
["2. Conservation Measures","$Q$96"]
["2. Conservation Measures","$Q$97"]
["2. Conservation Measures","$Q$98"]
["2. Conservation Measures","$Q$99"]
["2. Conservation Measures","$Q$100"]
["2. Conservation Measures","$Q$101"]
["2. Conservation Measures","$Q$102"]
["2. Conservation Measures","$Q$103"]
["2. Conservation Measures","$Q$104"]
["2. Conservation Measures","$Q$105"]
["2. Conservation Measures","$C$108"]
["2. Conservation Measures","$D$108"]
["2. Conservation Measures","$C$109"]
["2. Conservation Measures","$D$109"]
["2. Conservation Measures","$C$110"]
["2. Conservation Measures","$D$110"]
["2. Conservation Measures","$C$111"]
["2. Conservation Measures","$D$111"]
["2. Conservation Measures","$C$112"]
["2. Conservation Measures","$D$112"]
["2. Conservation Measures","$C$113"]
["2. Conservation Measures","$D$113"]
["2. Conservation Measures","$C$114"]
["2. Conservation Measures","$D$114"]
["2. Conservation Measures","$C$115"]
["2. Conservation Measures","$D$115"]
["2. Conservation Measures","$C$116"]
["2. Conservation Measures","$D$116"]
["2. Conservation Measures","$C$117"]
["2. Conservation Measures","$D$117"]
["2. Conservation Measures","$C$118"]
["2. Conservation Measures","$D$118"]
["2. Conservation Measures","$C$119"]
["2. Conservation Measures","$D$119"]
["2. Conservation Measures","$C$120"]
["2. Conservation Measures","$D$120"]
["2. Conservation Measures","$C$121"]
["2. Conservation Measures","$D$121"]
["2. Conservation Measures","$C$122"]
["2. Conservation Measures","$D$122"]
["2. Conservation Measures","$C$123"]
["2. Conservation Measures","$D$123"]
["2. Conservation Measures","$C$124"]
["2. Conservation Measures","$D$124"]
["2. Conservation Measures","$C$125"]
["2. Conservation Measures","$D$125"]
["2. Conservation Measures","$C$126"]
["2. Conservation Measures","$D$126"]
["2. Conservation Measures","$C$127"]
["2. Conservation Measures","$D$127"]
["2. Conservation Measures","$L$108"]
["2. Conservation Measures","$M$108"]
["2. Conservation Measures","$L$109"]
["2. Conservation Measures","$M$109"]
["2. Conservation Measures","$L$110"]
["2. Conservation Measures","$M$110"]
["2. Conservation Measures","$L$111"]
["2. Conservation Measures","$M$111"]
["2. Conservation Measures","$L$112"]
["2. Conservation Measures","$M$112"]
["2. Conservation Measures","$L$113"]
["2. Conservation Measures","$M$113"]
["2. Conservation Measures","$L$114"]
["2. Conservation Measures","$M$114"]
["2. Conservation Measures","$L$115"]
["2. Conservation Measures","$M$115"]
["2. Conservation Measures","$L$116"]
["2. Conservation Measures","$M$116"]
["2. Conservation Measures","$L$117"]
["2. Conservation Measures","$M$117"]
["2. Conservation Measures","$L$118"]
["2. Conservation Measures","$M$118"]
["2. Conservation Measures","$L$119"]
["2. Conservation Measures","$M$119"]
["2. Conservation Measures","$L$120"]
["2. Conservation Measures","$M$120"]
["2. Conservation Measures","$L$121"]
["2. Conservation Measures","$M$121"]
["2. Conservation Measures","$L$122"]
["2. Conservation Measures","$M$122"]
["2. Conservation Measures","$L$123"]
["2. Conservation Measures","$M$123"]
["2. Conservation Measures","$L$124"]
["2. Conservation Measures","$M$124"]
["2. Conservation Measures","$L$125"]
["2. Conservation Measures","$M$125"]
["2. Conservation Measures","$L$126"]
["2. Conservation Measures","$M$126"]
["2. Conservation Measures","$L$127"]
["2. Conservation Measures","$M$127"]
["2. Conservation Measures","$O$108"]
["2. Conservation Measures","$P$108"]
["2. Conservation Measures","$O$109"]
["2. Conservation Measures","$P$109"]
["2. Conservation Measures","$O$110"]
["2. Conservation Measures","$P$110"]
["2. Conservation Measures","$O$111"]
["2. Conservation Measures","$P$111"]
["2. Conservation Measures","$O$112"]
["2. Conservation Measures","$P$112"]
["2. Conservation Measures","$O$113"]
["2. Conservation Measures","$P$113"]
["2. Conservation Measures","$O$114"]
["2. Conservation Measures","$P$114"]
["2. Conservation Measures","$O$115"]
["2. Conservation Measures","$P$115"]
["2. Conservation Measures","$O$116"]
["2. Conservation Measures","$P$116"]
["2. Conservation Measures","$O$117"]
["2. Conservation Measures","$P$117"]
["2. Conservation Measures","$O$118"]
["2. Conservation Measures","$P$118"]
["2. Conservation Measures","$O$119"]
["2. Conservation Measures","$P$119"]
["2. Conservation Measures","$O$120"]
["2. Conservation Measures","$P$120"]
["2. Conservation Measures","$O$121"]
["2. Conservation Measures","$P$121"]
["2. Conservation Measures","$O$122"]
["2. Conservation Measures","$P$122"]
["2. Conservation Measures","$O$123"]
["2. Conservation Measures","$P$123"]
["2. Conservation Measures","$O$124"]
["2. Conservation Measures","$P$124"]
["2. Conservation Measures","$O$125"]
["2. Conservation Measures","$P$125"]
["2. Conservation Measures","$O$126"]
["2. Conservation Measures","$P$126"]
["2. Conservation Measures","$O$127"]
["2. Conservation Measures","$P$127"]
["2. Conservation Measures","$S$108"]
["2. Conservation Measures","$T$108"]
["2. Conservation Measures","$U$108"]
["2. Conservation Measures","$V$108"]
["2. Conservation Measures","$W$108"]
["2. Conservation Measures","$X$108"]
["2. Conservation Measures","$S$109"]
["2. Conservation Measures","$T$109"]
["2. Conservation Measures","$U$109"]
["2. Conservation Measures","$V$109"]
["2. Conservation Measures","$W$109"]
["2. Conservation Measures","$X$109"]
["2. Conservation Measures","$S$110"]
["2. Conservation Measures","$T$110"]
["2. Conservation Measures","$U$110"]
["2. Conservation Measures","$V$110"]
["2. Conservation Measures","$W$110"]
["2. Conservation Measures","$X$110"]
["2. Conservation Measures","$S$111"]
["2. Conservation Measures","$T$111"]
["2. Conservation Measures","$U$111"]
["2. Conservation Measures","$V$111"]
["2. Conservation Measures","$W$111"]
["2. Conservation Measures","$X$111"]
["2. Conservation Measures","$S$112"]
["2. Conservation Measures","$T$112"]
["2. Conservation Measures","$U$112"]
["2. Conservation Measures","$V$112"]
["2. Conservation Measures","$W$112"]
["2. Conservation Measures","$X$112"]
["2. Conservation Measures","$S$113"]
["2. Conservation Measures","$T$113"]
["2. Conservation Measures","$U$113"]
["2. Conservation Measures","$V$113"]
["2. Conservation Measures","$W$113"]
["2. Conservation Measures","$X$113"]
["2. Conservation Measures","$S$114"]
["2. Conservation Measures","$T$114"]
["2. Conservation Measures","$U$114"]
["2. Conservation Measures","$V$114"]
["2. Conservation Measures","$W$114"]
["2. Conservation Measures","$X$114"]
["2. Conservation Measures","$S$115"]
["2. Conservation Measures","$T$115"]
["2. Conservation Measures","$U$115"]
["2. Conservation Measures","$V$115"]
["2. Conservation Measures","$W$115"]
["2. Conservation Measures","$X$115"]
["2. Conservation Measures","$S$116"]
["2. Conservation Measures","$T$116"]
["2. Conservation Measures","$U$116"]
["2. Conservation Measures","$V$116"]
["2. Conservation Measures","$W$116"]
["2. Conservation Measures","$X$116"]
["2. Conservation Measures","$S$117"]
["2. Conservation Measures","$T$117"]
["2. Conservation Measures","$U$117"]
["2. Conservation Measures","$V$117"]
["2. Conservation Measures","$W$117"]
["2. Conservation Measures","$X$117"]
["2. Conservation Measures","$S$118"]
["2. Conservation Measures","$T$118"]
["2. Conservation Measures","$U$118"]
["2. Conservation Measures","$V$118"]
["2. Conservation Measures","$W$118"]
["2. Conservation Measures","$X$118"]
["2. Conservation Measures","$S$119"]
["2. Conservation Measures","$T$119"]
["2. Conservation Measures","$U$119"]
["2. Conservation Measures","$V$119"]
["2. Conservation Measures","$W$119"]
["2. Conservation Measures","$X$119"]
["2. Conservation Measures","$S$120"]
["2. Conservation Measures","$T$120"]
["2. Conservation Measures","$U$120"]
["2. Conservation Measures","$V$120"]
["2. Conservation Measures","$W$120"]
["2. Conservation Measures","$X$120"]
["2. Conservation Measures","$S$121"]
["2. Conservation Measures","$T$121"]
["2. Conservation Measures","$U$121"]
["2. Conservation Measures","$V$121"]
["2. Conservation Measures","$W$121"]
["2. Conservation Measures","$X$121"]
["2. Conservation Measures","$S$122"]
["2. Conservation Measures","$T$122"]
["2. Conservation Measures","$U$122"]
["2. Conservation Measures","$V$122"]
["2. Conservation Measures","$W$122"]
["2. Conservation Measures","$X$122"]
["2. Conservation Measures","$S$123"]
["2. Conservation Measures","$T$123"]
["2. Conservation Measures","$U$123"]
["2. Conservation Measures","$V$123"]
["2. Conservation Measures","$W$123"]
["2. Conservation Measures","$X$123"]
["2. Conservation Measures","$S$124"]
["2. Conservation Measures","$T$124"]
["2. Conservation Measures","$U$124"]
["2. Conservation Measures","$V$124"]
["2. Conservation Measures","$W$124"]
["2. Conservation Measures","$X$124"]
["2. Conservation Measures","$S$125"]
["2. Conservation Measures","$T$125"]
["2. Conservation Measures","$U$125"]
["2. Conservation Measures","$V$125"]
["2. Conservation Measures","$W$125"]
["2. Conservation Measures","$X$125"]
["2. Conservation Measures","$S$126"]
["2. Conservation Measures","$T$126"]
["2. Conservation Measures","$U$126"]
["2. Conservation Measures","$V$126"]
["2. Conservation Measures","$W$126"]
["2. Conservation Measures","$X$126"]
["2. Conservation Measures","$S$127"]
["2. Conservation Measures","$T$127"]
["2. Conservation Measures","$U$127"]
["2. Conservation Measures","$V$127"]
["2. Conservation Measures","$W$127"]
["2. Conservation Measures","$X$127"]
["2. Conservation Measures","$F$108"]
["2. Conservation Measures","$G$108"]
["2. Conservation Measures","$H$108"]
["2. Conservation Measures","$I$108"]
["2. Conservation Measures","$J$108"]
["2. Conservation Measures","$F$109"]
["2. Conservation Measures","$G$109"]
["2. Conservation Measures","$H$109"]
["2. Conservation Measures","$I$109"]
["2. Conservation Measures","$J$109"]
["2. Conservation Measures","$F$110"]
["2. Conservation Measures","$G$110"]
["2. Conservation Measures","$H$110"]
["2. Conservation Measures","$I$110"]
["2. Conservation Measures","$J$110"]
["2. Conservation Measures","$F$111"]
["2. Conservation Measures","$G$111"]
["2. Conservation Measures","$H$111"]
["2. Conservation Measures","$I$111"]
["2. Conservation Measures","$J$111"]
["2. Conservation Measures","$F$112"]
["2. Conservation Measures","$G$112"]
["2. Conservation Measures","$H$112"]
["2. Conservation Measures","$I$112"]
["2. Conservation Measures","$J$112"]
["2. Conservation Measures","$F$113"]
["2. Conservation Measures","$G$113"]
["2. Conservation Measures","$H$113"]
["2. Conservation Measures","$I$113"]
["2. Conservation Measures","$J$113"]
["2. Conservation Measures","$F$114"]
["2. Conservation Measures","$G$114"]
["2. Conservation Measures","$H$114"]
["2. Conservation Measures","$I$114"]
["2. Conservation Measures","$J$114"]
["2. Conservation Measures","$F$115"]
["2. Conservation Measures","$G$115"]
["2. Conservation Measures","$H$115"]
["2. Conservation Measures","$I$115"]
["2. Conservation Measures","$J$115"]
["2. Conservation Measures","$F$116"]
["2. Conservation Measures","$G$116"]
["2. Conservation Measures","$H$116"]
["2. Conservation Measures","$I$116"]
["2. Conservation Measures","$J$116"]
["2. Conservation Measures","$F$117"]
["2. Conservation Measures","$G$117"]
["2. Conservation Measures","$H$117"]
["2. Conservation Measures","$I$117"]
["2. Conservation Measures","$J$117"]
["2. Conservation Measures","$F$118"]
["2. Conservation Measures","$G$118"]
["2. Conservation Measures","$H$118"]
["2. Conservation Measures","$I$118"]
["2. Conservation Measures","$J$118"]
["2. Conservation Measures","$F$119"]
["2. Conservation Measures","$G$119"]
["2. Conservation Measures","$H$119"]
["2. Conservation Measures","$I$119"]
["2. Conservation Measures","$J$119"]
["2. Conservation Measures","$F$120"]
["2. Conservation Measures","$G$120"]
["2. Conservation Measures","$H$120"]
["2. Conservation Measures","$I$120"]
["2. Conservation Measures","$J$120"]
["2. Conservation Measures","$F$121"]
["2. Conservation Measures","$G$121"]
["2. Conservation Measures","$H$121"]
["2. Conservation Measures","$I$121"]
["2. Conservation Measures","$J$121"]
["2. Conservation Measures","$F$122"]
["2. Conservation Measures","$G$122"]
["2. Conservation Measures","$H$122"]
["2. Conservation Measures","$I$122"]
["2. Conservation Measures","$J$122"]
["2. Conservation Measures","$F$123"]
["2. Conservation Measures","$G$123"]
["2. Conservation Measures","$H$123"]
["2. Conservation Measures","$I$123"]
["2. Conservation Measures","$J$123"]
["2. Conservation Measures","$F$124"]
["2. Conservation Measures","$G$124"]
["2. Conservation Measures","$H$124"]
["2. Conservation Measures","$I$124"]
["2. Conservation Measures","$J$124"]
["2. Conservation Measures","$F$125"]
["2. Conservation Measures","$G$125"]
["2. Conservation Measures","$H$125"]
["2. Conservation Measures","$I$125"]
["2. Conservation Measures","$J$125"]
["2. Conservation Measures","$F$126"]
["2. Conservation Measures","$G$126"]
["2. Conservation Measures","$H$126"]
["2. Conservation Measures","$I$126"]
["2. Conservation Measures","$J$126"]
["2. Conservation Measures","$F$127"]
["2. Conservation Measures","$G$127"]
["2. Conservation Measures","$H$127"]
["2. Conservation Measures","$I$127"]
["2. Conservation Measures","$J$127"]
["2. Conservation Measures","$Q$108"]
["2. Conservation Measures","$Q$109"]
["2. Conservation Measures","$Q$110"]
["2. Conservation Measures","$Q$111"]
["2. Conservation Measures","$Q$112"]
["2. Conservation Measures","$Q$113"]
["2. Conservation Measures","$Q$114"]
["2. Conservation Measures","$Q$115"]
["2. Conservation Measures","$Q$116"]
["2. Conservation Measures","$Q$117"]
["2. Conservation Measures","$Q$118"]
["2. Conservation Measures","$Q$119"]
["2. Conservation Measures","$Q$120"]
["2. Conservation Measures","$Q$121"]
["2. Conservation Measures","$Q$122"]
["2. Conservation Measures","$Q$123"]
["2. Conservation Measures","$Q$124"]
["2. Conservation Measures","$Q$125"]
["2. Conservation Measures","$Q$126"]
["2. Conservation Measures","$Q$127"]
["2. Conservation Measures","$C$130"]
["2. Conservation Measures","$D$130"]
["2. Conservation Measures","$C$131"]
["2. Conservation Measures","$D$131"]
["2. Conservation Measures","$C$132"]
["2. Conservation Measures","$D$132"]
["2. Conservation Measures","$C$133"]
["2. Conservation Measures","$D$133"]
["2. Conservation Measures","$C$134"]
["2. Conservation Measures","$D$134"]
["2. Conservation Measures","$C$135"]
["2. Conservation Measures","$D$135"]
["2. Conservation Measures","$C$136"]
["2. Conservation Measures","$D$136"]
["2. Conservation Measures","$C$137"]
["2. Conservation Measures","$D$137"]
["2. Conservation Measures","$C$138"]
["2. Conservation Measures","$D$138"]
["2. Conservation Measures","$C$139"]
["2. Conservation Measures","$D$139"]
["2. Conservation Measures","$C$140"]
["2. Conservation Measures","$D$140"]
["2. Conservation Measures","$C$141"]
["2. Conservation Measures","$D$141"]
["2. Conservation Measures","$C$142"]
["2. Conservation Measures","$D$142"]
["2. Conservation Measures","$C$143"]
["2. Conservation Measures","$D$143"]
["2. Conservation Measures","$C$144"]
["2. Conservation Measures","$D$144"]
["2. Conservation Measures","$C$145"]
["2. Conservation Measures","$D$145"]
["2. Conservation Measures","$C$146"]
["2. Conservation Measures","$D$146"]
["2. Conservation Measures","$C$147"]
["2. Conservation Measures","$D$147"]
["2. Conservation Measures","$C$148"]
["2. Conservation Measures","$D$148"]
["2. Conservation Measures","$C$149"]
["2. Conservation Measures","$D$149"]
["2. Conservation Measures","$L$130"]
["2. Conservation Measures","$M$130"]
["2. Conservation Measures","$L$131"]
["2. Conservation Measures","$M$131"]
["2. Conservation Measures","$L$132"]
["2. Conservation Measures","$M$132"]
["2. Conservation Measures","$L$133"]
["2. Conservation Measures","$M$133"]
["2. Conservation Measures","$L$134"]
["2. Conservation Measures","$M$134"]
["2. Conservation Measures","$L$135"]
["2. Conservation Measures","$M$135"]
["2. Conservation Measures","$L$136"]
["2. Conservation Measures","$M$136"]
["2. Conservation Measures","$L$137"]
["2. Conservation Measures","$M$137"]
["2. Conservation Measures","$L$138"]
["2. Conservation Measures","$M$138"]
["2. Conservation Measures","$L$139"]
["2. Conservation Measures","$M$139"]
["2. Conservation Measures","$L$140"]
["2. Conservation Measures","$M$140"]
["2. Conservation Measures","$L$141"]
["2. Conservation Measures","$M$141"]
["2. Conservation Measures","$L$142"]
["2. Conservation Measures","$M$142"]
["2. Conservation Measures","$L$143"]
["2. Conservation Measures","$M$143"]
["2. Conservation Measures","$L$144"]
["2. Conservation Measures","$M$144"]
["2. Conservation Measures","$L$145"]
["2. Conservation Measures","$M$145"]
["2. Conservation Measures","$L$146"]
["2. Conservation Measures","$M$146"]
["2. Conservation Measures","$L$147"]
["2. Conservation Measures","$M$147"]
["2. Conservation Measures","$L$148"]
["2. Conservation Measures","$M$148"]
["2. Conservation Measures","$L$149"]
["2. Conservation Measures","$M$149"]
["2. Conservation Measures","$O$130"]
["2. Conservation Measures","$P$130"]
["2. Conservation Measures","$O$131"]
["2. Conservation Measures","$P$131"]
["2. Conservation Measures","$O$132"]
["2. Conservation Measures","$P$132"]
["2. Conservation Measures","$O$133"]
["2. Conservation Measures","$P$133"]
["2. Conservation Measures","$O$134"]
["2. Conservation Measures","$P$134"]
["2. Conservation Measures","$O$135"]
["2. Conservation Measures","$P$135"]
["2. Conservation Measures","$O$136"]
["2. Conservation Measures","$P$136"]
["2. Conservation Measures","$O$137"]
["2. Conservation Measures","$P$137"]
["2. Conservation Measures","$O$138"]
["2. Conservation Measures","$P$138"]
["2. Conservation Measures","$O$139"]
["2. Conservation Measures","$P$139"]
["2. Conservation Measures","$O$140"]
["2. Conservation Measures","$P$140"]
["2. Conservation Measures","$O$141"]
["2. Conservation Measures","$P$141"]
["2. Conservation Measures","$O$142"]
["2. Conservation Measures","$P$142"]
["2. Conservation Measures","$O$143"]
["2. Conservation Measures","$P$143"]
["2. Conservation Measures","$O$144"]
["2. Conservation Measures","$P$144"]
["2. Conservation Measures","$O$145"]
["2. Conservation Measures","$P$145"]
["2. Conservation Measures","$O$146"]
["2. Conservation Measures","$P$146"]
["2. Conservation Measures","$O$147"]
["2. Conservation Measures","$P$147"]
["2. Conservation Measures","$O$148"]
["2. Conservation Measures","$P$148"]
["2. Conservation Measures","$O$149"]
["2. Conservation Measures","$P$149"]
["2. Conservation Measures","$S$130"]
["2. Conservation Measures","$T$130"]
["2. Conservation Measures","$U$130"]
["2. Conservation Measures","$V$130"]
["2. Conservation Measures","$W$130"]
["2. Conservation Measures","$X$130"]
["2. Conservation Measures","$S$131"]
["2. Conservation Measures","$T$131"]
["2. Conservation Measures","$U$131"]
["2. Conservation Measures","$V$131"]
["2. Conservation Measures","$W$131"]
["2. Conservation Measures","$X$131"]
["2. Conservation Measures","$S$132"]
["2. Conservation Measures","$T$132"]
["2. Conservation Measures","$U$132"]
["2. Conservation Measures","$V$132"]
["2. Conservation Measures","$W$132"]
["2. Conservation Measures","$X$132"]
["2. Conservation Measures","$S$133"]
["2. Conservation Measures","$T$133"]
["2. Conservation Measures","$U$133"]
["2. Conservation Measures","$V$133"]
["2. Conservation Measures","$W$133"]
["2. Conservation Measures","$X$133"]
["2. Conservation Measures","$S$134"]
["2. Conservation Measures","$T$134"]
["2. Conservation Measures","$U$134"]
["2. Conservation Measures","$V$134"]
["2. Conservation Measures","$W$134"]
["2. Conservation Measures","$X$134"]
["2. Conservation Measures","$S$135"]
["2. Conservation Measures","$T$135"]
["2. Conservation Measures","$U$135"]
["2. Conservation Measures","$V$135"]
["2. Conservation Measures","$W$135"]
["2. Conservation Measures","$X$135"]
["2. Conservation Measures","$S$136"]
["2. Conservation Measures","$T$136"]
["2. Conservation Measures","$U$136"]
["2. Conservation Measures","$V$136"]
["2. Conservation Measures","$W$136"]
["2. Conservation Measures","$X$136"]
["2. Conservation Measures","$S$137"]
["2. Conservation Measures","$T$137"]
["2. Conservation Measures","$U$137"]
["2. Conservation Measures","$V$137"]
["2. Conservation Measures","$W$137"]
["2. Conservation Measures","$X$137"]
["2. Conservation Measures","$S$138"]
["2. Conservation Measures","$T$138"]
["2. Conservation Measures","$U$138"]
["2. Conservation Measures","$V$138"]
["2. Conservation Measures","$W$138"]
["2. Conservation Measures","$X$138"]
["2. Conservation Measures","$S$139"]
["2. Conservation Measures","$T$139"]
["2. Conservation Measures","$U$139"]
["2. Conservation Measures","$V$139"]
["2. Conservation Measures","$W$139"]
["2. Conservation Measures","$X$139"]
["2. Conservation Measures","$S$140"]
["2. Conservation Measures","$T$140"]
["2. Conservation Measures","$U$140"]
["2. Conservation Measures","$V$140"]
["2. Conservation Measures","$W$140"]
["2. Conservation Measures","$X$140"]
["2. Conservation Measures","$S$141"]
["2. Conservation Measures","$T$141"]
["2. Conservation Measures","$U$141"]
["2. Conservation Measures","$V$141"]
["2. Conservation Measures","$W$141"]
["2. Conservation Measures","$X$141"]
["2. Conservation Measures","$S$142"]
["2. Conservation Measures","$T$142"]
["2. Conservation Measures","$U$142"]
["2. Conservation Measures","$V$142"]
["2. Conservation Measures","$W$142"]
["2. Conservation Measures","$X$142"]
["2. Conservation Measures","$S$143"]
["2. Conservation Measures","$T$143"]
["2. Conservation Measures","$U$143"]
["2. Conservation Measures","$V$143"]
["2. Conservation Measures","$W$143"]
["2. Conservation Measures","$X$143"]
["2. Conservation Measures","$S$144"]
["2. Conservation Measures","$T$144"]
["2. Conservation Measures","$U$144"]
["2. Conservation Measures","$V$144"]
["2. Conservation Measures","$W$144"]
["2. Conservation Measures","$X$144"]
["2. Conservation Measures","$S$145"]
["2. Conservation Measures","$T$145"]
["2. Conservation Measures","$U$145"]
["2. Conservation Measures","$V$145"]
["2. Conservation Measures","$W$145"]
["2. Conservation Measures","$X$145"]
["2. Conservation Measures","$S$146"]
["2. Conservation Measures","$T$146"]
["2. Conservation Measures","$U$146"]
["2. Conservation Measures","$V$146"]
["2. Conservation Measures","$W$146"]
["2. Conservation Measures","$X$146"]
["2. Conservation Measures","$S$147"]
["2. Conservation Measures","$T$147"]
["2. Conservation Measures","$U$147"]
["2. Conservation Measures","$V$147"]
["2. Conservation Measures","$W$147"]
["2. Conservation Measures","$X$147"]
["2. Conservation Measures","$S$148"]
["2. Conservation Measures","$T$148"]
["2. Conservation Measures","$U$148"]
["2. Conservation Measures","$V$148"]
["2. Conservation Measures","$W$148"]
["2. Conservation Measures","$X$148"]
["2. Conservation Measures","$S$149"]
["2. Conservation Measures","$T$149"]
["2. Conservation Measures","$U$149"]
["2. Conservation Measures","$V$149"]
["2. Conservation Measures","$W$149"]
["2. Conservation Measures","$X$149"]
["2. Conservation Measures","$F$130"]
["2. Conservation Measures","$G$130"]
["2. Conservation Measures","$H$130"]
["2. Conservation Measures","$I$130"]
["2. Conservation Measures","$J$130"]
["2. Conservation Measures","$F$131"]
["2. Conservation Measures","$G$131"]
["2. Conservation Measures","$H$131"]
["2. Conservation Measures","$I$131"]
["2. Conservation Measures","$J$131"]
["2. Conservation Measures","$F$132"]
["2. Conservation Measures","$G$132"]
["2. Conservation Measures","$H$132"]
["2. Conservation Measures","$I$132"]
["2. Conservation Measures","$J$132"]
["2. Conservation Measures","$F$133"]
["2. Conservation Measures","$G$133"]
["2. Conservation Measures","$H$133"]
["2. Conservation Measures","$I$133"]
["2. Conservation Measures","$J$133"]
["2. Conservation Measures","$F$134"]
["2. Conservation Measures","$G$134"]
["2. Conservation Measures","$H$134"]
["2. Conservation Measures","$I$134"]
["2. Conservation Measures","$J$134"]
["2. Conservation Measures","$F$135"]
["2. Conservation Measures","$G$135"]
["2. Conservation Measures","$H$135"]
["2. Conservation Measures","$I$135"]
["2. Conservation Measures","$J$135"]
["2. Conservation Measures","$F$136"]
["2. Conservation Measures","$G$136"]
["2. Conservation Measures","$H$136"]
["2. Conservation Measures","$I$136"]
["2. Conservation Measures","$J$136"]
["2. Conservation Measures","$F$137"]
["2. Conservation Measures","$G$137"]
["2. Conservation Measures","$H$137"]
["2. Conservation Measures","$I$137"]
["2. Conservation Measures","$J$137"]
["2. Conservation Measures","$F$138"]
["2. Conservation Measures","$G$138"]
["2. Conservation Measures","$H$138"]
["2. Conservation Measures","$I$138"]
["2. Conservation Measures","$J$138"]
["2. Conservation Measures","$F$139"]
["2. Conservation Measures","$G$139"]
["2. Conservation Measures","$H$139"]
["2. Conservation Measures","$I$139"]
["2. Conservation Measures","$J$139"]
["2. Conservation Measures","$F$140"]
["2. Conservation Measures","$G$140"]
["2. Conservation Measures","$H$140"]
["2. Conservation Measures","$I$140"]
["2. Conservation Measures","$J$140"]
["2. Conservation Measures","$F$141"]
["2. Conservation Measures","$G$141"]
["2. Conservation Measures","$H$141"]
["2. Conservation Measures","$I$141"]
["2. Conservation Measures","$J$141"]
["2. Conservation Measures","$F$142"]
["2. Conservation Measures","$G$142"]
["2. Conservation Measures","$H$142"]
["2. Conservation Measures","$I$142"]
["2. Conservation Measures","$J$142"]
["2. Conservation Measures","$F$143"]
["2. Conservation Measures","$G$143"]
["2. Conservation Measures","$H$143"]
["2. Conservation Measures","$I$143"]
["2. Conservation Measures","$J$143"]
["2. Conservation Measures","$F$144"]
["2. Conservation Measures","$G$144"]
["2. Conservation Measures","$H$144"]
["2. Conservation Measures","$I$144"]
["2. Conservation Measures","$J$144"]
["2. Conservation Measures","$F$145"]
["2. Conservation Measures","$G$145"]
["2. Conservation Measures","$H$145"]
["2. Conservation Measures","$I$145"]
["2. Conservation Measures","$J$145"]
["2. Conservation Measures","$F$146"]
["2. Conservation Measures","$G$146"]
["2. Conservation Measures","$H$146"]
["2. Conservation Measures","$I$146"]
["2. Conservation Measures","$J$146"]
["2. Conservation Measures","$F$147"]
["2. Conservation Measures","$G$147"]
["2. Conservation Measures","$H$147"]
["2. Conservation Measures","$I$147"]
["2. Conservation Measures","$J$147"]
["2. Conservation Measures","$F$148"]
["2. Conservation Measures","$G$148"]
["2. Conservation Measures","$H$148"]
["2. Conservation Measures","$I$148"]
["2. Conservation Measures","$J$148"]
["2. Conservation Measures","$F$149"]
["2. Conservation Measures","$G$149"]
["2. Conservation Measures","$H$149"]
["2. Conservation Measures","$I$149"]
["2. Conservation Measures","$J$149"]
["2. Conservation Measures","$Q$130"]
["2. Conservation Measures","$Q$131"]
["2. Conservation Measures","$Q$132"]
["2. Conservation Measures","$Q$133"]
["2. Conservation Measures","$Q$134"]
["2. Conservation Measures","$Q$135"]
["2. Conservation Measures","$Q$136"]
["2. Conservation Measures","$Q$137"]
["2. Conservation Measures","$Q$138"]
["2. Conservation Measures","$Q$139"]
["2. Conservation Measures","$Q$140"]
["2. Conservation Measures","$Q$141"]
["2. Conservation Measures","$Q$142"]
["2. Conservation Measures","$Q$143"]
["2. Conservation Measures","$Q$144"]
["2. Conservation Measures","$Q$145"]
["2. Conservation Measures","$Q$146"]
["2. Conservation Measures","$Q$147"]
["2. Conservation Measures","$Q$148"]
["2. Conservation Measures","$Q$149"]